{"text_format":"1","workbook":"xlsx","n_sheets":15,"sheets":["To do ","Guidance ","Checklist & Authorisation","Reconciliation Form","Bank Reconciliation","Balance Sheet ","CFR Return","CFR - XML import","CFR - Manual Entry","Remunerations","Terminations","Export","xml convertor","FinYr Lookup","Lookup"],"not_rendered":{"charts":0,"images":0,"macros":1,"external_links":0,"defined_names":9,"comments":6,"pivot_tables":0},"unopened":[],"bounds":{"document_bytes":16777216,"sheet_cells":100000,"rows_first":2000,"rows_last":500,"rows_between":2000,"halvings":0,"cell_chars":16384,"cell_head_chars":4096},"cells_cut":0,"cells_raw":0,"read":"whole","date_system":"1900"}

{"sheet":"To do ","index":0,"n_rows":17,"n_cols":4,"rows_kept":17,"cut":false,"hidden":true,"merged":[]}
["To Do/done","Done","To do","Accessible?"]
[]
["To Do sheet",null,"hide sheet"]
["Guidance","Done",null,"Y"]
["Checklist","Done",null,"Y"]
["Rec form","Done",null,"Y"]
["Balance Sheet","Done",null,"Y"]
["Bank Rec","Done",null,"Y"]
["CFR xml import","Done",null,"Y"]
["CFR manual entry","Done",null,"Y"]
["CFR return","Done",null,"Y"]
["Remunerations","Done",null,"Y"]
["Terminations","Done",null,"Y"]
["xml convertor","Done",null,"Y"]
["lookup","Done",null,"Y"]
["Export","Done",null,"Y"]
["spreadsheet",null,null,"Y"]

{"sheet":"Guidance ","index":1,"n_rows":62,"n_cols":4,"rows_kept":62,"cut":false,"hidden":false,"merged":[]}
[null,"Guidance Notes","V23.1","Initial release"]
[null,"This return is required from all converting schools that held an external bank account and should be submitted to the Local Authority within four months of the date of conversion."]
[null,"Please note:"]
["a","It is only possible to enter data in the red, yellow or orange cells on this spreadsheet.  Most editable cells will initially have a yellow background.  Some of these will turn orange if you manually overtype the data originally shown in them.  Data must be entered in every red cell, including zeros where appropriate. "]
["b","All amounts should be entered including pence"]
["c","The Export tab is for use by the Schools Finance Team and can be ignored by schools."]
[null,"How to Complete this Return"]
[1,"Identify your school - go to the Checklist & Authorisation tab, enter your school's cost code in cell F1 and check that the correct school name appears at the top of the sheet. This step needs to be completed first to enable some data to be entered onto the various forms automatically and also for the checklist to function correctly."]
[2,"Completing the CFR Return Section (green tabs)"]
[]
[null,"Option A - Updating from a System Generated CFR Return XML File"]
[null,"NB: This must be the Preliminary or Final CFR Report .xml file, not the Income & Expenditure.xml file."]
[null,"This should be used If you have system generated CFR report that is correct, or which is mostly correct but requires some amendments that you cannot complete on your accounting system.  Examples of why you might need to make an amendment include:\n*The opening balance shown on the CFR report is incorrect\n*The Schools Finance Team have asked you to correct an error on a previously submitted return.\nImporting the XML file will mean that you only have to manually enter data on the CFR Return tab in cells where the XML file data is incorrect. "]
[]
[null,"To import your XML file, go to the location where it is saved on your computer and open it as a text file:"]
[null,"- Right click on the file & select 'open with'"]
[null,"- Select a text viewing programme such as Notepad or Wordpad to open the file"]
[null,"- once the file is open, click anywhere on the file so the cursor appears"]
[null,"- Press Ctrl+A to highlight the file content (ie. press the Ctrl key & the A key at the same time)"]
[null,"- Press Ctrl+C to copy the file content"]
[null,"- Select cell A1 of the CFR - XML Import tab of this spreadsheet"]
[null,"- Paste the data to cell A1 of this spreadsheet (you can do this by pressing Ctrl+V)"]
[null,"- Go to the CFR Return tab of this spreadsheet and click on the 'Import Data from XML File Sheet' button at the top of the page."]
[null,"- On the CFR Return tab, manually overtype any incorrect figures as required. You will see that these cells turn orange to signify that a manual amendment has been made."]
[null,"- Check column G and address any error/query messages that are shown there."]
[null,"Once all errors and queries have been addressed, a message will apear on row 101, confirming that the CFR Return sheet has been completed. A warning message will be shown here if there are errors or queries that still need to be addressed."]
[]
[null,"Option B - Entering Data Manually Using Ledger Code Information"]
[null,"- Open the 'CFR - Manual Entry' tab and, using data from your financial accounting system (FAS), enter in column H the amounts of actual income received and expenditure incurred under each ledger code.  "]
[null,"NB:The figures in columns B and D are the ledger codes used in the Essex County Council code structure.  If your school does not use the Essex code structure you will need to overtype the codes in columns B and D with the codes used in your school relating to the income descriptions given in column F. You will see that these cells turn orange to signify that a manual amendment has been made."]
[null,"- When you have entered data for every CFR heading (zeros are not required), go to the CFR Return tab of this spreadsheet and click on the 'Import Data from Manual Entry Sheet' button at the top of the page."]
[null,"- Check column G and address any error/query messages that are shown there."]
[null,"Once all errors and queries have been addressed, a message will apear on row 101, confirming that the CFR Return sheet has been completed. A warning message will be shown here if there are errors or queries that still need to be addressed."]
[]
[null,"Option C - Entering Data Manually Directly on to the CFR Return Form"]
[null,"NB: It is not recommended that you use this method unless you are absolutely sure that all the manually entered data is correct. Option B is designed to assist you in correctly mapping ledger code information to the appropriate CFR heading and can greatly reduce the chance that your CFR return will generate errors on the CFR Return  and Checklist & Authorisation sheets"]
[null,"- Complete the return by entering all required data in the yellow shaded cells. You will see that many of the cells turn orange to signify that data has been entered on to this sheet manually."]
[null,"- Check column G and address any error/query messages that are shown there."]
[null,"Once all errors and queries have been addressed, a message will apear on row 101, confirming that the CFR Return sheet has been completed. A warning message will be shown here if there are errors or queries that still need to be addressed."]
[]
[3,"Reconciliation Form"]
[null,"Enter data in all of the required (red) cells, entering zeros where appropriate."]
[null,"Please note that all figures on this page need to be entered including pence so that the balance produced equals the CFR closing balance exactly."]
[null,"Once the Reconciliation Form has been completed a confirmation message will appear at the bottom of the form.\n"]
[4,"Bank Reconciliation"]
[null,"Enter data in the red and yellow cells as directed. Please ensure that a copy of the reconciled bank statement(s) is also submitted with this return."]
[]
[5,"Balance Sheet"]
[null,"Enter data as directed in the red cells at the top section of Balance Sheet tab. As these are the final accounts, the closing balance should only be comprised of the closing bank balance."]
[null,"Once you have entered the required information and if there are no outstanding errors, a message will appear at the top of the sheet confirming that this section of the return is complete."]
[]
[6,"Remunerations, Terminations and Staff Reorganisation Sheets"]
[null,"Complete these as directed on the Remunerations, Termination and Staff Reorganisation tabs."]
[]
[7,"Checking and Authorising Your Return"]
[null,"Review the questions of the Checklist & Authorisation tab. If any errors have been identified on your return, you will see an 'N' in column E, with additional details or guidance in column F and G. Depending on the data you have entered on the other sheets, you may also be directed to select 'Y' in one or both of the yellow cells on the checklist."]
[null,"It is important that you address all error messages shown on this checklist, as it is very likely that any returns submitted with oustanding errors will be returned to you for amendment. If you are unable to resolve any of these errors, or are unsure how to proceed, you should contact your finance support provider for assistance."]
[null,"Once any errors shown on the checklist have been resolved, you should pass the return to your headteacher/Chair of Governors for authorisation. A copy of this speadsheet should then be submitted to the Local Authority, along with a scanned copy of your final bank statement(s)."]
[]
[null,"The return should be e-mailed to the Schools Finance Team by at the following e-mail address:"]
[null,"finance.monitoring@essex.gov.uk"]
[null,"Once it has been been checked and agreed to the Local Authority's accounts, we will authorise the transfer of the closing school bank account balance to the academy account. No funds can be transferred without written authorisation from the Local Authority."]

{"sheet":"Checklist & Authorisation","index":2,"n_rows":40,"n_cols":6,"rows_kept":40,"cut":false,"hidden":false,"merged":[]}
[null,"Academy Conversion Return","Cost Code ",null,{"$f":"IF(D1=\"\",\"          Please enter your school's cost code\",IF(ISNA(VLOOKUP(D1,Lookup!A:A,1,FALSE)),\"     This cost code has not been recognised. Please check\",VLOOKUP('Checklist & Authorisation'!D1,Lookup!A:C,3,FALSE)))","v":"          Please enter your school's cost code"},{"$f":"IF(E2=\"The Finance Officer Details and Headteacher's Authorisation sections are not complete. Please enter data in all red cells in those sections\",\"N\",\"Y\")","v":"N"}]
[null,"Checklist and Authorisation Sheet","DfE No.",{"$f":"VLOOKUP(D1,Lookup!A:B,2,FALSE)","v":{"$error":"#N/A"}},{"$f":"IF(SUM(F21:F32)>0,\"The Finance Officer Details and Headteacher's Authorisation sections are not complete. Please enter data in all red cells in those sections\",IF(SUM(F4:F19)>0,\"Please note that if this return is submitted with checklist errors it will be queried and most likely returned to your for amendment\",\"Thank you, this return is now ready to submit to the Local Authority\"))","v":"The Finance Officer Details and Headteacher's Authorisation sections are not complete. Please enter data in all red cells in those sections"},{"$f":"IF(E2=\"Thank you, this return is now ready to submit to the Local Authority\",\"Y\",\"N\")","v":"N"}]
[]
[null,null,null,null,"Date of Conversion (mmm-yy)",{"$f":"IF(D4=\"\",1,0)","v":1}]
[null,null,null,null,"Date the the accounts  were finalised (dd/mm/yy)",{"$f":"IF(D5=\"\",1,0)","v":1}]
[null,null,null,null,"ECC Accounting period that accounts are reconciled to",1]
[]
[]
[null,"Checklist Question","Correct?","Difference","Notes / Guidance"]
[1,"Is the CFR Return sheet complete?",{"$f":"IF(SUM('CFR Return'!H2:I2)=0,\"Y\",IF(AND('CFR Return'!I2=0,'Checklist & Authorisation'!C11=\"Y\"),\"Y\",\"N\"))","v":"N"},null,{"$f":"IF('CFR Return'!I2>0,\"There are errors on your CFR Return. Please check and amend\",IF(AND(C11<>\"Y\",'CFR Return'!H2>0),\"Your CFR return has generated \"&'CFR Return'!H2&\" queries (see below)\",\"\"))","v":"There are errors on your CFR Return. Please check and amend"},{"$f":"IF(C10=\"Y\",0,1)","v":1}]
[null,null,null,null,{"$f":"IF(AND('CFR Return'!H2>0,C11<>\"Y\"),\"An explanatory note must be entered for each query in cell A101 of the CFR Return tab. Please confirm that you have done this by entering a 'Y' in cell D11\",IF(AND('CFR Return'!H2>0,C11=\"Y\"),\"You have confirmed that explanatory notes have been added to the CFR Return sheet to address each query shown on that sheet\",\"\"))","v":"An explanatory note must be entered for each query in cell A101 of the CFR Return tab. Please confirm that you have done this by entering a 'Y' in cell D11"},"-"]
[2,"Is the Reconciliation Form complete?",{"$f":"IF('Reconciliation Form'!A26=\"Thank you, your reconciliation form is now complete\",\"Y\",\"N\")","v":"N"},null,{"$f":"IF(C12=\"N\", \"Please address the error message(s) on the Reconciliation Form tab\",\"\")","v":"Please address the error message(s) on the Reconciliation Form tab"},{"$f":"IF(C12=\"Y\",0,1)","v":1}]
[3,"Is the Bank Reconciliation Complete?",{"$f":"IF('Bank Reconciliation'!A33=\"Thank you, this reconciliation is complete.\",\"Y\",\"N\")","v":"N"},null,{"$f":"IF(C13=\"N\", \"Please address the error message(s) on the Bank Reconciliation tab.\",\"\")","v":"Please address the error message(s) on the Bank Reconciliation tab."},{"$f":"IF(C13=\"Y\",0,1)","v":1}]
[4,"Is the Balance Sheet complete?",{"$f":"IF('Balance Sheet '!G1=\"Thank you, the Balance Sheet is now complete\",\"Y\",\"N\")","v":"N"},null,{"$f":"IF(C14=\"N\", \"Please address the error message(s) on the Balance Sheet tab.\",\"\")","v":"Please address the error message(s) on the Balance Sheet tab."},{"$f":"IF(C14=\"Y\",0,1)","v":1}]
[5,"Is the Rumunerations sheet complete?",{"$f":"IF(OR(LEFT(Remunerations!B8,3)=\"you\",LEFT(Remunerations!B8,6)=\"If all\"),\"Y\",\"N\")","v":"N"},null,{"$f":"IF(C15=\"N\", \"Please address the error message(s) on the Remunerations tab.\",\"\")","v":"Please address the error message(s) on the Remunerations tab."},{"$f":"IF(C15=\"Y\",0,1)","v":1}]
[6,"Is the Terminations sheet complete?",{"$f":"IF(OR(LEFT(Terminations!C6,3)=\"you\",LEFT(Terminations!C6,6)=\"If all\"),\"Y\",\"N\")","v":"N"},null,{"$f":"IF(C16=\"N\", \"Please address the error message(s) on the Terminations tab.\",\"\")","v":"Please address the error message(s) on the Terminations tab."},{"$f":"IF(C16=\"Y\",0,1)","v":1}]
[8,"Does the CFR total year-end balance equal the Reconciliation Form balance?",{"$f":"IF(ROUND('CFR Return'!C101-'Reconciliation Form'!E23,2)=0,\"Y\",\"N\")","v":"Y"},{"$f":"ROUND('CFR Return'!C101-'Reconciliation Form'!E23,2)","v":0},{"$f":"IF(C17=\"N\",\"The balance shown in cell C97 on the CFR Return tab is currently £\"&D17&\" greater than the balance shown in cell F23 on the Reconciliation form tab. The balance on these two sheets must match. Please check and amend.\",\"\")","v":""},0]
[9,"Does the revenue year-end revenue balance on the Balance Sheet equal the revenue balance on the CFR return (B01+B02+B06)?",{"$f":"IF(D18=0,\"Y\",\"N\")","v":"Y"},{"$f":"ROUND('Balance Sheet '!E20-'CFR Return'!C95-'CFR Return'!C96-'CFR Return'!C100,2)","v":0},{"$f":"IF(C18=\"N\",\"The revenue closing balance shown in cell E20 on the Balance Sheet tab is currently £\"&D18&\" greater than the sum of balances B01,B02 & B06 on the CFR Return tab. The total revenue balance on these two sheets must match. Please check and amend.\",\"\")","v":""},0]
[10,"Does the capital year-end revenue balance on the Balance Sheet equal the capital balance on the CFR return (B03+B05)?",{"$f":"IF(D19=0,\"Y\",\"N\")","v":"Y"},{"$f":"ROUND('Balance Sheet '!F20-'CFR Return'!C97-'CFR Return'!C99,2)","v":0},{"$f":"IF(C19=\"N\",\"The closing capital balance shown in cell Cell F20 of the Balance Sheet tab is currently £\"&D19&\" greater than the sum of balances B03 & B05 on the CFR Return tab. The total closing capital balance on these sheets must match. Please check and amend.\",\"\")","v":""},0]
[null,"Year-End Balance to be Carried Forward",null,null,"Finance Officer Details"]
[null,"Pupil Focused Revenue ",{"$f":"'CFR Return'!C95+'CFR Return'!C96","v":0},"Return prepared by ",null,{"$f":"IF(E21=\"\",1,0)","v":1}]
[null,"Community Focused Revenue ",{"$f":"'CFR Return'!C100","v":0},"Position ",null,{"$f":"IF(E22=\"\",1,0)","v":1}]
[null,"Total Revenue ",{"$f":"C21+C22","v":0},"Date Prepared ",null,1]
[null,"Capital ",{"$f":"'CFR Return'!C97+'CFR Return'!C99","v":0},"Signature "]
[null,"Total ",{"$f":"IF(C17=\"Y\",'CFR Return'!C101,\"See checklist question 8\")","v":0}]
[]
[null,"Headteacher Authorisation"]
[null,"Before signing the balance sheet the Headteacher should obtain assurance as to the validity of amounts included on the Balance Sheet as current assets and current liabilities.\n"]
[null,"The Headteacher/Chair of Governors should type his/her name in the box below to certify that the copy emailed to the Local Authority is correct."]
[null,"I confirm that the amounts entered accurately reflect the information held on the school’s FAS, and they are a true record of the school's closing financial position."]
[null,null,null,"Name ",null,{"$f":"IF(E31=\"\",1,0)","v":1}]
[null,null,null,"Date Authorised ",null,{"$f":"IF(E32=\"\",1,0)","v":1}]
[null,{"$f":"IF(OR(E31=\"\",E32=\"\"),\"The Headteacher must enter their name and the date they certified this return before it can be sent to the Local Authority\",\"Return certified by Headteacher\")","v":"The Headteacher must enter their name and the date they certified this return before it can be sent to the Local Authority"},null,"Signature "]
["This entire spreadsheet is to be e-mailed to finance.monitoring@essex.gov.uk    A signed copy of this authorisation sheet should be scanned and submitted along with the excel spreadsheet."]
[]
[null,"Schools Finance Team use only below this Line"]
[]
[null,"Monitoring Details",null,null,"School contacted"]
[null,"Monitored on  ",null,"Contact name:"]
[null,"Monitored by  ",null,"Date"]

{"sheet":"Reconciliation Form","index":3,"n_rows":28,"n_cols":10,"rows_kept":28,"cut":false,"hidden":false,"merged":[]}
[" Final Reconciliation of the School's Financial Accounting System (FAS) to ECC General Ledger"]
[]
[null,"School Name  ",{"$f":"IF(ISNA(VLOOKUP(H5,Lookup!A:C,3,FALSE)),\"Please enter cost code on Checklist & Authorisation sheet\",'Checklist & Authorisation'!A2)","v":"Please enter cost code on Checklist & Authorisation sheet"}]
[]
[null,null,null,"Date of Conversion (MMM-YY)",{"$f":"IF(ISBLANK('Checklist & Authorisation'!D4),\"\",'Checklist & Authorisation'!D4)","v":""},null,"School Cost Code* ",{"$f":"'Checklist & Authorisation'!D1","v":0},{"$f":"IF(E5=\"\",1,0)","v":1},{"$f":"IF(I5=1,\"Please enter ECC GL Month on Checklist tab\",\"\")","v":"Please enter ECC GL Month on Checklist tab"}]
[]
[null,null,null,"ECC General Ledger Month that accounts were finalised",{"$f":"IF(ISBLANK('Checklist & Authorisation'!D6),\"\",'Checklist & Authorisation'!D6)","v":""},null,"DfE No: ",{"$f":"'Checklist & Authorisation'!D2","v":{"$error":"#N/A"}},{"$f":"IF(E7=\"\",1,0)","v":1},{"$f":"IF(I7=1,\"Please enter ECC GL Month on Checklist tab\",\"\")","v":"Please enter ECC GL Month on Checklist tab"}]
[]
["Budget",null,null,"Total Budget Allocation on LA income cost centres\n(including any Capital balance brought forward)",null,"X",null,null,{"$f":"IF(ISBLANK(E9),1,0)","v":1},{"$f":"IF(I9=1,\"Please enter data required in red cell\",\"\")","v":"Please enter data required in red cell"}]
[]
[null,null,null,"Budget Brought forward rounding adjustment",null,"(debit or credit)",null,null,{"$f":"IF(ISBLANK(E11),1,0)","v":1},{"$f":"IF(I11=1,\"Please enter data required in red cell\",\"\")","v":"Please enter data required in red cell"}]
[]
[null,null,null,"Total Budget Allocation Sub-total",{"$f":"E9+E11","v":0},"A"]
[]
[null,"Less",null,"Total per ECC GL Budget Summary",null,null,null,null,{"$f":"IF(ISBLANK(E15),1,0)","v":1},{"$f":"IF(I15=1,\"Please enter data required in red cell\",\"\")","v":"Please enter data required in red cell"}]
[]
[null,"Less",null,"Capital balance at start of financial year",null,null,null,null,{"$f":"IF(ISBLANK(E17),1,0)","v":1},{"$f":"IF(I17=1,\"Please enter data required in red cell\",\"\")","v":"Please enter data required in red cell"}]
[]
[null,null,null,"Difference in Budget (should be zero)",{"$f":"E13-E15-E17","v":0}]
[]
["Expenditure ",null,null,"Net Expenditure (Revenue & Capital)",null,"B",null,null,{"$f":"IF(ISBLANK(E21),1,0)","v":1},{"$f":"IF(I21=1,\"Please enter data required in red cell\",\"\")","v":"Please enter data required in red cell"}]
[]
[null,null,null,"Total of A - B",{"$f":"ROUND(E13-E21,2)","v":0},"C = The sum of balances B01 to "]
[null,null,null,null,null,"       B06 on the CFR Report"]
[]
[{"$f":"IF(I26=0,\"Thank you, your reconciliation form is now complete\",\"You haven't entered data in all the mandatory (red) cells. Please complete all cells before submitting this form\")","v":"You haven't entered data in all the mandatory (red) cells. Please complete all cells before submitting this form"},null,null,null,null,null,null,null,{"$f":"SUM(I5:I25)","v":7}]
[]
["It appears that the Calculation Sheet has not been completed (some cells are still orange). Before this return is submitted, we strongly recommend that this is completed fully to ensure all LA funding appears under the correct CFR heading. Please note that you may be asked to resubmit your CFR return if there are coding errors."]

{"sheet":"Bank Reconciliation","index":4,"n_rows":36,"n_cols":7,"rows_kept":36,"cut":false,"hidden":false,"merged":[]}
["Final Reconciliation of Bank Balances to Cash at Bank as per Balance Sheet"]
["Please enter data in the yellow cells as directed. Data must be entered in red cells."]
[null,"School name ",{"$f":"IF(ISNA(VLOOKUP('Checklist & Authorisation'!D1,Lookup!A:A,1,FALSE)),\"Please enter cost code on Checklist & Authorisation tab\",'Checklist & Authorisation'!E1)","v":"Please enter cost code on Checklist & Authorisation tab"},null,null,{"$f":"IF(OR(C3=\"Please enter cost code on Checklist & Authorisation tab\",C3=\"Invalid cost code entered. Please check\"),1,0)","v":1}]
[null,null,null,"Final Statement Balance Date (dd/mm/yy)",null,{"$f":"IF(ISBLANK(E4),1,0)","v":1},{"$f":"IF(AND(E4<>\"\",E4<>'Checklist & Authorisation'!D5),\"The statement date must be the date that the accounts were finalised\",\"\")","v":""}]
[null,null,null,"this must be the date that the accounts were finalised (as shown on the Checklist sheet)"]
[]
["Please list below all bank accounts that contain delegated funds"]
["Sort Code","Account Number","Account Name","Statement Balance"]
[]
[]
[]
[]
[]
[]
[]
[]
[]
[]
["In the reconciliation below, boxes B, C & D are filled automatically when details of unpresented cheques, additional income"]
["and any other adjustments are entered on the Reconciliation Items section at the bottom of this page. However, you can enter"]
["the totals into these boxes directly if you will be attaching system generated reports containing this information to your return"]
["to the Schools Finance Team"]
[null,null," Total of all Bank Account Balances as per statement balance(s) listed above",{"$f":"ROUND(SUM(D9:D18),2)","v":0}," Box A"]
[" Less:-",null,"Unpresented Cheques",null,"Box B",{"$f":"IF(D24=\"\",1,0)","v":1},{"$f":"IF(F24=1,\"Please enter amount\",IF(D24=0,\"ok\",\"This must be zero when your final accounts are submitted\"))","v":"Please enter amount"}]
[" Add:-",null," Income banked but not credited on bank statements",null,"Box C",{"$f":"IF(D25=\"\",1,0)","v":1},{"$f":"IF(F25=1,\"Please enter amount\",IF(D25=0,\"ok\",\"This must be zero when your final accounts are submitted\"))","v":"Please enter amount"}]
[" Add or deduct as required:-",null," Other adjustments",null," Box D",{"$f":"IF(D26=\"\",1,0)","v":1},{"$f":"IF(F26=1,\"Please enter amount\",IF(D26=0,\"ok\",\"This must be zero when your final accounts are submitted\"))","v":"Please enter amount"}]
[" ",null,"Calculated balance sheet \"cash at bank\" figure (Box A - Box B + boxes C & D)",{"$f":"ROUND(D23-D24+D25+D26,2)","v":0}," Box E"]
[]
[" ",null,"System ledger balance as recorded on balance sheet",{"$f":"ROUND('Balance Sheet '!E7+'Balance Sheet '!F7,2)","v":0}," Box F",{"$f":"IF(D29=\"\",1,0)","v":0}]
[]
[null,null,"Difference (Box E - Box F). This figure must be £0.",{"$f":"ROUND(D27-D29,2)","v":0},"Box G",{"$f":"SUM(F1:F29)","v":5}]
[]
[{"$f":"IF(D31<>0,\"The reconciliation is not complete. Please ensure that Box G equals zero before this return\",IF(F31>0,\"The form is not complete. Please ensure that data has been entered in all remaining red cells before\",\"Thank you, this reconciliation is complete.\"))","v":"The form is not complete. Please ensure that data has been entered in all remaining red cells before"}]
[{"$f":"IF(A33=\"The form is not complete. Please ensure that data has been entered in all remaining red cells before\",\"this return is sent to the Schools Finance Team\",\"\")","v":"this return is sent to the Schools Finance Team"}]
["Please ensure that copies of bank statements for all the listed accounts are attached along"]
["with this spreadsheet when it is e-mailed to the Schools Finance Team"]

{"sheet":"Balance Sheet ","index":5,"n_rows":1487,"n_cols":18,"rows_kept":1487,"cut":false,"hidden":false,"merged":[]}
["BALANCE SHEET STATEMENT",null,null,null,null,null,{"$f":"IF(SUM(L23:L1022)+L7>0,\"Some rows are incomplete or have errors. These need to be addressed before this return\",\"Thank you, the Balance Sheet is now complete\")","v":"Some rows are incomplete or have errors. These need to be addressed before this return"},null,null,{"$f":"IF(G1=\"If you have entered all known year end accruals, ths return is now ready to send to the Local Authority\",\"Y\",\"N\")","v":"N"}]
[{"$f":"IF(ISNA(VLOOKUP(F2,Lookup!A:C,3,FALSE)),\"Please enter cost code on Checklist & Authorisation sheet\",'Checklist & Authorisation'!E1)","v":"Please enter cost code on Checklist & Authorisation sheet"},null,null,null,"Cost Code ",{"$f":"'Checklist & Authorisation'!D1","v":0},{"$f":"IF(G1=\"Some rows are incomplete or have errors. These need to be addressed before this return\",\"can be submitted to the Local Authority\",\"\")","v":"can be submitted to the Local Authority"}]
[]
[null,null,null,"Current Assets","Revenue","Capital"]
[null,null,null,"Debtors",{"$f":"SUMIF(J:J,1,E:E)","v":0},{"$f":"SUMIF(J:J,3,E:E)","v":0},"          Data can only be entered in red & yellow cells. Data must be entered in all red cells."]
[null,null,null,"Payments in Advance",{"$f":"SUMIF(J:J,2,E:E)","v":0},{"$f":"SUMIF(J:J,4,E:E)","v":0}]
[null,null,null,"Cash at bank",null,null,{"$f":"IF(ROUND(E7+F7-'Bank Reconciliation'!D27,2)=0,\"As shown on bank reconciliation sheet\",\"Error: the sum of revenue and capital cash at bank must equal the total shown in Box E on the Bank Reconciliation tab\")","v":"As shown on bank reconciliation sheet"},null,null,null,null,{"$f":"IF(OR(E7=\"\",F7=\"\",E8=\"\",E9=\"\",E14=\"\",E15=\"\"),1,0)+IF(G6=\"Error: the sum of revenue and capital cash at bank must equal the total shown in Box E on the Bank Reconciliation tab\",1,0)","v":1}]
[null,null,null,"Cash in Hand",0,"Cash in hand must be zero"]
[null,null,null,"VAT Control"]
[null,null,null,"Total Assets",{"$f":"SUM(E5:E9)","v":0},{"$f":"SUM(F5:F9)","v":0},"Counterparty Categories:"]
[]
[null,null,null,"Current Liabilities","Revenue","Capital","0 = Essex County Council"]
[null,null,null,"`Creditors",{"$f":"SUMIF(K:K,5,E:E)","v":0},{"$f":"SUMIF(K:K,7,E:E)","v":0},"1 = Central Government"]
[null,null,null,"Employee accruals (salaries & mileages)",null,null,"2 = Other Local  Authorities/Councils"]
[null,null,null,"Payroll Control",null,null,"3 = NHS"]
[null,null,null,"Total Receipts in Advance",{"$f":"SUMIF(K:K,6,E:E)","v":0},{"$f":"SUMIF(K:K,8,E:E)","v":0},"4 = Public Corporations"]
[null,null,null,"Total Liabilities",{"$f":"SUM(E13:E16)","v":0},{"$f":"SUM(F13:F16)","v":0},"5 = Other"]
[]
[null,null,null,"Year End Balance","Revenue","Capital","Total"]
[null,null,null,"(Net Current Assets)",{"$f":"ROUND(E10-E17,2)","v":0},{"$f":"ROUND(F10-F17,2)","v":0},{"$f":"E20+F20","v":0}]
[]
["Row Complete?","Entry Type","Inc/Exp Type","Description/detail","Amount","Revenue / Capital","Counterparty","ECC Counterparty Contact\n(if applicable)","Validation check","A","L","N?","BS",null,null,"CP","CPID"]
[{"$f":"IF(I23=\"\",\"\",IF(I23=\"Complete\",\"Y\",\"N\"))","v":""},null,null,null,null,null,null,null,{"$f":"IF(COUNTA(B23:G23)=0,\"\",IF(OR(B23=\"\",C23=\"\"),\"Please select item types from the drop down lists in columns B & C\",IF(D23=\"\",\"Please enter description/details in column C\",IF(E23=\"\",\"Please enter amount\",IF(F23=\"\",\"Please select 'Revenue' or 'Capital' from the drop down list in column E\",IF(AND(G23=\"\",B23<>\"Employee Accrual\"),\"Please select the Counterparty from the drop down list in colum F\",IF(AND(G23=\"0 - Essex County Council\",H23=\"\"),\"Please enter the name of the ECC contact who asked you to raise this entry\",IF(COUNTIF(P:P,G23)=0,\"Counterparty not valid. Please check\",\"Complete\"))))))))","v":""},{"$f":"IF(AND(B23=\"Debtor\",F23=\"Revenue\"),1,IF(AND(B23=\"P.I.A.\",F23=\"Revenue\"),2,IF(AND(B23=\"Debtor\",F23=\"Capital\"),3,IF(AND(B23=\"P.I.A.\",F23=\"Capital\"),4,\"\"))))","v":""},{"$f":"IF(AND(B23=\"Creditor\",F23=\"Revenue\"),5,IF(AND(B23=\"R.I.A.\",F23=\"Revenue\"),6,IF(AND(B23=\"Creditor\",F23=\"Capital\"),7,IF(AND(B23=\"R.I.A.\",F23=\"Capital\"),8,\"\"))))","v":""},{"$f":"IF(A23=\"N\",1,0)","v":0},{"$f":"J23&K23&LEFT(G23,1)","v":""},{"$f":"IF(AND(ISBLANK(F23),B23<>0),1,0)","v":0},{"$f":"IF(AND(ISBLANK(G23),B23<>0,B23<>\"Employee Accrual\"),1,0)","v":0},"0 - Essex County Council","ESSEX",{"$f":"IF(AND(ISBLANK(C23),B23<>0),1,0)","v":0}]
["",null,null,null,null,null,null,null,"","","",0,"",0,0,"1 - Academies Consolidated Account","CAD022",0]
["",null,null,null,null,null,null,null,"","","",0,"",0,0,"1 - ABF: the Soldiers’ Charity","MOD017",0]
["",null,null,null,null,null,null,null,"","","",0,"",0,0,"1 - Administration of Radioactive Substances Advisory Committee","DOH033",0]
["",null,null,null,null,null,null,null,"","","",0,"",0,0,"1 - Administrative Justice and Tribunals Council","LCD047",0]
["",null,null,null,null,null,null,null,"","","",0,"",0,0,"1 - Advantage West Midlands","WMD084",0]
["",null,null,null,null,null,null,null,"","","",0,"",0,0,"1 - Advisory Committee on Animal Feedingstuffs","FSA026",0]
["",null,null,null,null,null,null,null,"","","",0,"",0,0,"1 - Advisory Committee on Antimicrobial Resistance and Healthcare Associated Infection","DOH033",0]
["",null,null,null,null,null,null,null,"","","",0,"",0,0,"1 - Advisory Committee on Business Appointments","CAB010",0]
["",null,null,null,null,null,null,null,"","","",0,"",0,0,"1 - Advisory Committee on Civil Costs","LCD047",0]
["",null,null,null,null,null,null,null,"","","",0,"",0,0,"1 - Advisory Committee on Conscientious Objectors","MOD017",0]
["",null,null,null,null,null,null,null,"","","",0,"",0,0,"1 - Advisory Committee on Consumer Engagement","FSA026",0]
["",null,null,null,null,null,null,null,"","","",0,"",0,0,"1 - Advisory Committee on Dangerous Pathogens","DOH033",0]
["",null,null,null,null,null,null,null,"","","",0,"",0,0,"1 - Advisory Committee on Hazardous Substances","EFR003",0]
["",null,null,null,null,null,null,null,"","","",0,"",0,0,"1 - Advisory Committee on Novel Foods and Processes","FSA026",0]
["",null,null,null,null,null,null,null,"","","",0,"",0,0,"1 - Advisory Committee on Pesticides","EFR003",0]
["",null,null,null,null,null,null,null,"","","",0,"",0,0,"1 - Advisory Committee on Releases to the Environment","EFR003",0]
["",null,null,null,null,null,null,null,"","","",0,"",0,0,"1 - Advisory Committee on the Microbiological Safety of Food","FSA026",0]
["",null,null,null,null,null,null,null,"","","",0,"",0,0,"1 - Advisory Committees on Justices of the Peace in England and Wales","LCD047",0]
["",null,null,null,null,null,null,null,"","","",0,"",0,0,"1 - Advisory Conciliation and Arbitration Service (ACAS)","DTI084",0]
["",null,null,null,null,null,null,null,"","","",0,"",0,0,"1 - Advisory Council on Libraries","DCM048",0]
["",null,null,null,null,null,null,null,"","","",0,"",0,0,"1 - Advisory Council on National Records and Archives","LCD047",0]
["",null,null,null,null,null,null,null,"","","",0,"",0,0,"1 - Advisory Group on Hepatitis","DOH033",0]
["",null,null,null,null,null,null,null,"","","",0,"",0,0,"1 - Advisory Group on Military Medicine","MOD017",0]
["",null,null,null,null,null,null,null,"","","",0,"",0,0,"1 - Advisory Panel on Public Sector Information","LCD047",0]
["",null,null,null,null,null,null,null,"","","",0,"",0,0,"1 - Agricultural Dwelling House Advisory Committees (England)","EFR003",0]
["",null,null,null,null,null,null,null,"","","",0,"",0,0,"1 - Agricultural Land Tribunals (England)","EFR003",0]
["",null,null,null,null,null,null,null,"","","",0,"",0,0,"1 - Agricultural Wages Board for England and Wales","EFR003",0]
["",null,null,null,null,null,null,null,"","","",0,"",0,0,"1 - Agricultural Wages Committees for England","EFR003",0]
["",null,null,null,null,null,null,null,"","","",0,"",0,0,"1 - Agriculture and Horticulture Development Board","AHD003",0]
["",null,null,null,null,null,null,null,"","","",0,"",0,0,"1 - Agri-Food and Biosciences Institute","ARI201",0]
["",null,null,null,null,null,null,null,"","","",0,"",0,0,"1 - Alcohol Education Research Council","DOH033",0]
["",null,null,null,null,null,null,null,"","","",0,"",0,0,"1 - Animal Procedures Committee","HOF034",0]
["",null,null,null,null,null,null,null,"","","",0,"",0,0,"1 - Appointments Commission","DOH033",0]
["",null,null,null,null,null,null,null,"","","",0,"",0,0,"1 - Architects Registrations Board","DPM085",0]
["",null,null,null,null,null,null,null,"","","",0,"",0,0,"1 - Armagh Planetarium and Observatory","APO202",0]
["",null,null,null,null,null,null,null,"","","",0,"",0,0,"1 - Armed Forces Pay Review Body","MOD017",0]
["",null,null,null,null,null,null,null,"","","",0,"",0,0,"1 - Armed Forces Retired Pay, Pensions etc","AFS902",0]
["",null,null,null,null,null,null,null,"","","",0,"",0,0,"1 - Artco Trading Ltd","DCM048",0]
["",null,null,null,null,null,null,null,"","","",0,"",0,0,"1 - Arts and Humanities Research Council","AHC084",0]
["",null,null,null,null,null,null,null,"","","",0,"",0,0,"1 - Arts Council of England","ACE048",0]
["",null,null,null,null,null,null,null,"","","",0,"",0,0,"1 - Arts Council of England Lottery","ACL048",0]
["",null,null,null,null,null,null,null,"","","",0,"",0,0,"1 - Arts Council of Northern Ireland","ACI202",0]
["",null,null,null,null,null,null,null,"","","",0,"",0,0,"1 - Arts Council of Northern Ireland Lottery Distribution Account","ANL850",0]
["",null,null,null,null,null,null,null,"","","",0,"",0,0,"1 - Arts Council of Wales","ACW090",0]
["",null,null,null,null,null,null,null,"","","",0,"",0,0,"1 - Arts Council of Wales National Lottery","AWL090",0]
["",null,null,null,null,null,null,null,"","","",0,"",0,0,"1 - Assessor for Compensation of Miscarriages of Justice","LCD047",0]
["",null,null,null,null,null,null,null,"","","",0,"",0,0,"1 - Asset Protection Agency","HMT087",0]
["",null,null,null,null,null,null,null,"","","",0,"",0,0,"1 - AWM (Subsidiary) Ltd","DPM085",0]
["",null,null,null,null,null,null,null,"","","",0,"",0,0,"1 - Bank of England","BOE091",0]
["",null,null,null,null,null,null,null,"","","",0,"",0,0,"1 - BBC","BBC048",0]
["",null,null,null,null,null,null,null,"","","",0,"",0,0,"1 - BBC Children in Need Appeal Ltd","DCM048",0]
["",null,null,null,null,null,null,null,"","","",0,"",0,0,"1 - BBC Free to View (Satellite) Ltd","DCM048",0]
["",null,null,null,null,null,null,null,"","","",0,"",0,0,"1 - BBC Free to View Ltd","DCM048",0]
["",null,null,null,null,null,null,null,"","","",0,"",0,0,"1 - BBC News Ltd","DCM048",0]
["",null,null,null,null,null,null,null,"","","",0,"",0,0,"1 - BBC Property Development Ltd","DCM048",0]
["",null,null,null,null,null,null,null,"","","",0,"",0,0,"1 - BBC Property Investment Ltd","DCM048",0]
["",null,null,null,null,null,null,null,"","","",0,"",0,0,"1 - BBC Property Ltd","DCM048",0]
["",null,null,null,null,null,null,null,"","","",0,"",0,0,"1 - BBC World Service","FCO027",0]
["",null,null,null,null,null,null,null,"","","",0,"",0,0,"1 - Belfast Education and Library Board","BEL203",0]
["",null,null,null,null,null,null,null,"","","",0,"",0,0,"1 - BIG Lottery Fund","NLB048",0]
["",null,null,null,null,null,null,null,"","","",0,"",0,0,"1 - Biotechnology and Biological Sciences Research Council (BBSRC)","BRC084",0]
["",null,null,null,null,null,null,null,"","","",0,"",0,0,"1 - Boundary Commission for England","CAB010",0]
["",null,null,null,null,null,null,null,"","","",0,"",0,0,"1 - Boundary Commission for Wales","CAB010",0]
[{"$f":"IF(I87=\"\",\"\",IF(I87=\"Complete\",\"Y\",\"N\"))","v":""},null,null,null,null,null,null,null,{"$f":"IF(COUNTA(B87:G87)=0,\"\",IF(OR(B87=\"\",C87=\"\"),\"Please select item types from the drop down lists in columns B & C\",IF(D87=\"\",\"Please enter description/details in column C\",IF(E87=\"\",\"Please enter amount\",IF(F87=\"\",\"Please select 'Revenue' or 'Capital' from the drop down list in column E\",IF(AND(G87=\"\",B87<>\"Employee Accrual\"),\"Please select the Counterparty from the drop down list in colum F\",IF(AND(G87=\"0 - Essex County Council\",H87=\"\"),\"Please enter the name of the ECC contact who asked you to raise this entry\",IF(COUNTIF(P:P,G87)=0,\"Counterparty not valid. Please check\",\"Complete\"))))))))","v":""},{"$f":"IF(AND(B87=\"Debtor\",F87=\"Revenue\"),1,IF(AND(B87=\"P.I.A.\",F87=\"Revenue\"),2,IF(AND(B87=\"Debtor\",F87=\"Capital\"),3,IF(AND(B87=\"P.I.A.\",F87=\"Capital\"),4,\"\"))))","v":""},{"$f":"IF(AND(B87=\"Creditor\",F87=\"Revenue\"),5,IF(AND(B87=\"R.I.A.\",F87=\"Revenue\"),6,IF(AND(B87=\"Creditor\",F87=\"Capital\"),7,IF(AND(B87=\"R.I.A.\",F87=\"Capital\"),8,\"\"))))","v":""},{"$f":"IF(A87=\"N\",1,0)","v":0},{"$f":"J87&K87&LEFT(G87,1)","v":""},{"$f":"IF(AND(ISBLANK(F87),B87<>0),1,0)","v":0},{"$f":"IF(AND(ISBLANK(G87),B87<>0,B87<>\"Employee Accrual\"),1,0)","v":0},"1 - Bristol and Bath Science Park Estate Management Company Limited","DPM085",{"$f":"IF(AND(ISBLANK(C87),B87<>0),1,0)","v":0}]
["",null,null,null,null,null,null,null,"","","",0,"",0,0,"1 - British Educational Communications and Technology Agency","BEC022",0]
["",null,null,null,null,null,null,null,"","","",0,"",0,0,"1 - British Film Institute","BFI048",0]
["",null,null,null,null,null,null,null,"","","",0,"",0,0,"1 - British Hallmarking Council","DTI084",0]
["",null,null,null,null,null,null,null,"","","",0,"",0,0,"1 - British Library","BRL048",0]
["",null,null,null,null,null,null,null,"","","",0,"",0,0,"1 - British Museum","BRM048",0]
["",null,null,null,null,null,null,null,"","","",0,"",0,0,"1 - British Museum Great Court Limited","DCM048",0]
["",null,null,null,null,null,null,null,"","","",0,"",0,0,"1 - British Railways Board (Residuary) Ltd","BRB004",0]
["",null,null,null,null,null,null,null,"","","",0,"",0,0,"1 - British Shipbuilders","DTI084",0]
["",null,null,null,null,null,null,null,"","","",0,"",0,0,"1 - British Transport Police Authority (sSRA)","BTP004",0]
["",null,null,null,null,null,null,null,"","","",0,"",0,0,"1 - Broadcasters’ Audience Research Board Ltd","DCM048",0]
["",null,null,null,null,null,null,null,"","","",0,"",0,0,"1 - Building Regulations Advisory Committee","DPM085",0]
["",null,null,null,null,null,null,null,"","","",0,"",0,0,"1 - Business Services Organisation","BSO208",0]
["",null,null,null,null,null,null,null,"","","",0,"",0,0,"1 - Business Services Organisation","BSO208",0]
["",null,null,null,null,null,null,null,"","","",0,"",0,0,"1 - Cabinet Office","CAB010",0]
["",null,null,null,null,null,null,null,"","","",0,"",0,0,"1 - Cabinet Office: Civil superannuation","PCS901",0]
["",null,null,null,null,null,null,null,"","","",0,"",0,0,"1 - Capacity Builders","CAP010",0]
["",null,null,null,null,null,null,null,"","","",0,"",0,0,"1 - Capital for Enterprise Ltd","DTI084",0]
["",null,null,null,null,null,null,null,"","","",0,"",0,0,"1 - Carbon Reduction Commitment Trust Statement","CRC066",0]
["",null,null,null,null,null,null,null,"","","",0,"",0,0,"1 - Care Council for Wales","CLW090",0]
["",null,null,null,null,null,null,null,"","","",0,"",0,0,"1 - Care Inspectorate (SCSWIS)","CIS075",0]
["",null,null,null,null,null,null,null,"","","",0,"",0,0,"1 - Care Quality Commission","CQC033",0]
["",null,null,null,null,null,null,null,"","","",0,"",0,0,"1 - Care Quality Commission","CQC033",0]
["",null,null,null,null,null,null,null,"","","",0,"",0,0,"1 - Caversham Lakes Trust Limited","DCM048",0]
["",null,null,null,null,null,null,null,"","","",0,"",0,0,"1 - Central Advisory Committee on Pensions and Compensation","MOD017",0]
["",null,null,null,null,null,null,null,"","","",0,"",0,0,"1 - Charity Commission","CHC009",0]
["",null,null,null,null,null,null,null,"","","",0,"",0,0,"1 - Charity Commission for Northern Ireland","CCN210",0]
["",null,null,null,null,null,null,null,"","","",0,"",0,0,"1 - Chief Executive of Skills Funding","DTI084",0]
["",null,null,null,null,null,null,null,"","","",0,"",0,0,"1 - Child Maintenance and Enforcement Commission (CMEC)","DWP032",0]
["",null,null,null,null,null,null,null,"","","",0,"",0,0,"1 - Children and Family Court Advisory and Support Service","CFA022",0]
["",null,null,null,null,null,null,null,"","","",0,"",0,0,"1 - Children in Need Ltd","DCM048",0]
["",null,null,null,null,null,null,null,"","","",0,"",0,0,"1 - Children’s Workforce Development Council","CWD022",0]
["",null,null,null,null,null,null,null,"","","",0,"",0,0,"1 - Children's Commissioner for Wales","CWA090",0]
["",null,null,null,null,null,null,null,"","","",0,"",0,0,"1 - Churches Conservation Trust","DCM048",0]
["",null,null,null,null,null,null,null,"","","",0,"",0,0,"1 - Civil Justice Council","LCD047",0]
["",null,null,null,null,null,null,null,"","","",0,"",0,0,"1 - Civil Nuclear Police Authority (CNPA)","CNC066",0]
["",null,null,null,null,null,null,null,"","","",0,"",0,0,"1 - Civil Procedure Rule Committee","LCD047",0]
["",null,null,null,null,null,null,null,"","","",0,"",0,0,"1 - Civil Service Appeal Board","CAB010",0]
["",null,null,null,null,null,null,null,"","","",0,"",0,0,"1 - Civil Service Commission","CSS010",0]
["",null,null,null,null,null,null,null,"","","",0,"",0,0,"1 - Coal Authority","COL066",0]
["",null,null,null,null,null,null,null,"","","",0,"",0,0,"1 - Commission for Local Administration in England","CLA085",0]
["",null,null,null,null,null,null,null,"","","",0,"",0,0,"1 - Commission for Rural Communities","CRU003",0]
["",null,null,null,null,null,null,null,"","","",0,"",0,0,"1 - Commission for Victims and Survivors for Northern Ireland","NIE099",0]
["",null,null,null,null,null,null,null,"","","",0,"",0,0,"1 - Commission on a Bill of Rights","LCD047",0]
["",null,null,null,null,null,null,null,"","","",0,"",0,0,"1 - Commissioner for Children and Young People for Northern Ireland","NIE099",0]
["",null,null,null,null,null,null,null,"","","",0,"",0,0,"1 - Commissioner for Public Appointments","CAB010",0]
["",null,null,null,null,null,null,null,"","","",0,"",0,0,"1 - Committee on Carcinogenicity of Chemicals in Food, Consumer Products and the Environment","DOH033",0]
["",null,null,null,null,null,null,null,"","","",0,"",0,0,"1 - Committee on Climate Change (CCC)","DEC066",0]
["",null,null,null,null,null,null,null,"","","",0,"",0,0,"1 - Committee on Radioactive Waste Management","DEC066",0]
["",null,null,null,null,null,null,null,"","","",0,"",0,0,"1 - Committee on Standards in Public Life","CAB010",0]
["",null,null,null,null,null,null,null,"","","",0,"",0,0,"1 - Committee on the Medical Aspects of Radiation in the Environment","DOH033",0]
["",null,null,null,null,null,null,null,"","","",0,"",0,0,"1 - Committee on the Medical Effects of Air Pollutants","DOH033",0]
["",null,null,null,null,null,null,null,"","","",0,"",0,0,"1 - Committee on the Mutagenicity of Chemicals in Food, Consumer Products and the Environment","DOH033",0]
["",null,null,null,null,null,null,null,"","","",0,"",0,0,"1 - Committee on Toxicity of Chemicals in Food, Consumer Products and the Environment","FSA026",0]
["",null,null,null,null,null,null,null,"","","",0,"",0,0,"1 - Commonwealth Scholarship Commission in the United Kingdom","DID030",0]
["",null,null,null,null,null,null,null,"","","",0,"",0,0,"1 - Commonwealth War Graves Commission","MOD017",0]
["",null,null,null,null,null,null,null,"","","",0,"",0,0,"1 - Community Development Foundation","CDF085",0]
["",null,null,null,null,null,null,null,"","","",0,"",0,0,"1 - Community Relations Council for Northern Ireland","COR211",0]
["",null,null,null,null,null,null,null,"","","",0,"",0,0,"1 - Competition Appeal Tribunal","DTI084",0]
["",null,null,null,null,null,null,null,"","","",0,"",0,0,"1 - Competition Commission ","CMC084",0]
["",null,null,null,null,null,null,null,"","","",0,"",0,0,"1 - Competition Service","DTI084",0]
["",null,null,null,null,null,null,null,"","","",0,"",0,0,"1 - Consolidated Fund","COF888",0]
["",null,null,null,null,null,null,null,"","","",0,"",0,0,"1 - Construction Industry Training Board","NIE099",0]
["",null,null,null,null,null,null,null,"","","",0,"",0,0,"1 - Construction Industry Training Board (CITB)","CIT084",0]
[{"$f":"IF(I151=\"\",\"\",IF(I151=\"Complete\",\"Y\",\"N\"))","v":""},null,null,null,null,null,null,null,{"$f":"IF(COUNTA(B151:G151)=0,\"\",IF(OR(B151=\"\",C151=\"\"),\"Please select item types from the drop down lists in columns B & C\",IF(D151=\"\",\"Please enter description/details in column C\",IF(E151=\"\",\"Please enter amount\",IF(F151=\"\",\"Please select 'Revenue' or 'Capital' from the drop down list in column E\",IF(AND(G151=\"\",B151<>\"Employee Accrual\"),\"Please select the Counterparty from the drop down list in colum F\",IF(AND(G151=\"0 - Essex County Council\",H151=\"\"),\"Please enter the name of the ECC contact who asked you to raise this entry\",IF(COUNTIF(P:P,G151)=0,\"Counterparty not valid. Please check\",\"Complete\"))))))))","v":""},{"$f":"IF(AND(B151=\"Debtor\",F151=\"Revenue\"),1,IF(AND(B151=\"P.I.A.\",F151=\"Revenue\"),2,IF(AND(B151=\"Debtor\",F151=\"Capital\"),3,IF(AND(B151=\"P.I.A.\",F151=\"Capital\"),4,\"\"))))","v":""},{"$f":"IF(AND(B151=\"Creditor\",F151=\"Revenue\"),5,IF(AND(B151=\"R.I.A.\",F151=\"Revenue\"),6,IF(AND(B151=\"Creditor\",F151=\"Capital\"),7,IF(AND(B151=\"R.I.A.\",F151=\"Capital\"),8,\"\"))))","v":""},{"$f":"IF(A151=\"N\",1,0)","v":0},{"$f":"J151&K151&LEFT(G151,1)","v":""},{"$f":"IF(AND(ISBLANK(F151),B151<>0),1,0)","v":0},{"$f":"IF(AND(ISBLANK(G151),B151<>0,B151<>\"Employee Accrual\"),1,0)","v":0},"1 - Consumer Council for Water","CFW003",{"$f":"IF(AND(ISBLANK(C151),B151<>0),1,0)","v":0}]
["",null,null,null,null,null,null,null,"","","",0,"",0,0,"1 - Consumer Focus (AKA National Consumer Council)","CFO084",0]
["",null,null,null,null,null,null,null,"","","",0,"",0,0,"1 - Contingencies Fund","CTF888",0]
["",null,null,null,null,null,null,null,"","","",0,"",0,0,"1 - Copyright Tribunal","DTI084",0]
["",null,null,null,null,null,null,null,"","","",0,"",0,0,"1 - Council for Catholic Maintained Schools","CCS203",0]
["",null,null,null,null,null,null,null,"","","",0,"",0,0,"1 - Council for Science and Technology","DTI084",0]
["",null,null,null,null,null,null,null,"","","",0,"",0,0,"1 - Council for the Regulation of Healthcare Professionals","DOH033",0]
["",null,null,null,null,null,null,null,"","","",0,"",0,0,"1 - Council of Reserve Forces and Cadet Associations","MOD017",0]
["",null,null,null,null,null,null,null,"","","",0,"",0,0,"1 - Countryside Council for Wales","CCW090",0]
["",null,null,null,null,null,null,null,"","","",0,"",0,0,"1 - Court Funds Office  ","LCD047",0]
["",null,null,null,null,null,null,null,"","","",0,"",0,0,"1 - Creative Scotland","CRE075",0]
["",null,null,null,null,null,null,null,"","","",0,"",0,0,"1 - Criminal Cases Review Commission","LCD047",0]
["",null,null,null,null,null,null,null,"","","",0,"",0,0,"1 - Criminal Injuries Compensation Authority","CIC047",0]
["",null,null,null,null,null,null,null,"","","",0,"",0,0,"1 - Criminal Justice Inspection Northern Ireland","CJI097",0]
["",null,null,null,null,null,null,null,"","","",0,"",0,0,"1 - Criminal Procedure Rule Committee","LCD047",0]
["",null,null,null,null,null,null,null,"","","",0,"",0,0,"1 - Criminal Records Bureau","HOF034",0]
["",null,null,null,null,null,null,null,"","","",0,"",0,0,"1 - Crown Court Rule Committee","LCD047",0]
["",null,null,null,null,null,null,null,"","","",0,"",0,0,"1 - Crown Prosecution Service","CPS016",0]
["",null,null,null,null,null,null,null,"","","",0,"",0,0,"1 - CTRL Section 1 Finance Plc","DFT004",0]
["",null,null,null,null,null,null,null,"","","",0,"",0,0,"1 - Debt Management Account","DMA888",0]
["",null,null,null,null,null,null,null,"","","",0,"",0,0,"1 - Defence Nuclear Safety Committee","MOD017",0]
["",null,null,null,null,null,null,null,"","","",0,"",0,0,"1 - Defence Scientific Advisory Council","MOD017",0]
["",null,null,null,null,null,null,null,"","","",0,"",0,0,"1 - Department for Business, Innovation and Skills","DTI084",0]
["",null,null,null,null,null,null,null,"","","",0,"",0,0,"1 - Department for Communities and Local Government","DPM085",0]
["",null,null,null,null,null,null,null,"","","",0,"",0,0,"1 - Department for Education","DES022",0]
["",null,null,null,null,null,null,null,"","","",0,"",0,0,"1 - Department for Employment and Learning","DEL207",0]
["",null,null,null,null,null,null,null,"","","",0,"",0,0,"1 - Department for Environment, Food and Rural Affairs","EFR003",0]
["",null,null,null,null,null,null,null,"","","",0,"",0,0,"1 - Department for International Development","DID030",0]
["",null,null,null,null,null,null,null,"","","",0,"",0,0,"1 - Department for International Development: Overseas Superannuation","OSS907",0]
["",null,null,null,null,null,null,null,"","","",0,"",0,0,"1 - Department for Regional Development","DRD209",0]
["",null,null,null,null,null,null,null,"","","",0,"",0,0,"1 - Department for Social Development","DSD210",0]
["",null,null,null,null,null,null,null,"","","",0,"",0,0,"1 - Department for Transport","DFT004",0]
["",null,null,null,null,null,null,null,"","","",0,"",0,0,"1 - Department for Work and Pensions (DWP)","DWP032",0]
["",null,null,null,null,null,null,null,"","","",0,"",0,0,"1 - Department of Agriculture and Rural Development","DAR201",0]
["",null,null,null,null,null,null,null,"","","",0,"",0,0,"1 - Department of Culture, Arts and Leisure","DCA202",0]
["",null,null,null,null,null,null,null,"","","",0,"",0,0,"1 - Department of Education","ENI203",0]
["",null,null,null,null,null,null,null,"","","",0,"",0,0,"1 - Department of Energy and Climate Change","DEC066",0]
["",null,null,null,null,null,null,null,"","","",0,"",0,0,"1 - Department of Enterprise, Trade and Investment","DET204",0]
["",null,null,null,null,null,null,null,"","","",0,"",0,0,"1 - Department of Finance and Personnel","DFP205",0]
["",null,null,null,null,null,null,null,"","","",0,"",0,0,"1 - Department of Health","DOH033",0]
["",null,null,null,null,null,null,null,"","","",0,"",0,0,"1 - Department of Health, Social Services and Public Safety","HSP208",0]
["",null,null,null,null,null,null,null,"","","",0,"",0,0,"1 - Department of Justice","DOJ213",0]
["",null,null,null,null,null,null,null,"","","",0,"",0,0,"1 - Department of the Environment","DEN206",0]
["",null,null,null,null,null,null,null,"","","",0,"",0,0,"1 - Dept. Culture Media and Sport","DCM048",0]
["",null,null,null,null,null,null,null,"","","",0,"",0,0,"1 - DFP - Superannuation & Other Allowances - Northern Ireland","FPS911",0]
["",null,null,null,null,null,null,null,"","","",0,"",0,0,"1 - Diamond Light Source Ltd","DTI084",0]
["",null,null,null,null,null,null,null,"","","",0,"",0,0,"1 - Digital UK Limited","DCM048",0]
["",null,null,null,null,null,null,null,"","","",0,"",0,0,"1 - Directly Operated Railways","DRS004",0]
["",null,null,null,null,null,null,null,"","","",0,"",0,0,"1 - Disability Living Allowance Advisory Board (DLAAB)","DWP032",0]
["",null,null,null,null,null,null,null,"","","",0,"",0,0,"1 - Disabled Persons Transport Advisory Committee","DFT004",0]
["",null,null,null,null,null,null,null,"","","",0,"",0,0,"1 - DoA Limited","DFT004",0]
["",null,null,null,null,null,null,null,"","","",0,"",0,0,"1 - Dounreay Site Restoration Site Limited (DSRL)","DEC066",0]
["",null,null,null,null,null,null,null,"","","",0,"",0,0,"1 - Driver and Vehicle Licensing Agency","DVL004",0]
["",null,null,null,null,null,null,null,"","","",0,"",0,0,"1 - DSHS Ltd","DCM048",0]
["",null,null,null,null,null,null,null,"","","",0,"",0,0,"1 - DTT Multiplex Operators Ltd","DCM048",0]
["",null,null,null,null,null,null,null,"","","",0,"",0,0,"1 - East Midlands Development Agency","EMD084",0]
["",null,null,null,null,null,null,null,"","","",0,"",0,0,"1 - East of England Development Agency","EED084",0]
["",null,null,null,null,null,null,null,"","","",0,"",0,0,"1 - Economic and Social Research Council","ESR084",0]
["",null,null,null,null,null,null,null,"","","",0,"",0,0,"1 - Economic Research Institute of Northern Ireland","NIE099",0]
["",null,null,null,null,null,null,null,"","","",0,"",0,0,"1 - emEP Limited","DPM085",0]
["",null,null,null,null,null,null,null,"","","",0,"",0,0,"1 - Engineering and Physical Sciences Research Council","EPS084",0]
["",null,null,null,null,null,null,null,"","","",0,"",0,0,"1 - Engineering Construction Industry Training Board","EIT084",0]
["",null,null,null,null,null,null,null,"","","",0,"",0,0,"1 - English Heritage","EHG048",0]
["",null,null,null,null,null,null,null,"","","",0,"",0,0,"1 - English Institute of Sport","DCM048",0]
[{"$f":"IF(I215=\"\",\"\",IF(I215=\"Complete\",\"Y\",\"N\"))","v":""},null,null,null,null,null,null,null,{"$f":"IF(COUNTA(B215:G215)=0,\"\",IF(OR(B215=\"\",C215=\"\"),\"Please select item types from the drop down lists in columns B & C\",IF(D215=\"\",\"Please enter description/details in column C\",IF(E215=\"\",\"Please enter amount\",IF(F215=\"\",\"Please select 'Revenue' or 'Capital' from the drop down list in column E\",IF(AND(G215=\"\",B215<>\"Employee Accrual\"),\"Please select the Counterparty from the drop down list in colum F\",IF(AND(G215=\"0 - Essex County Council\",H215=\"\"),\"Please enter the name of the ECC contact who asked you to raise this entry\",IF(COUNTIF(P:P,G215)=0,\"Counterparty not valid. Please check\",\"Complete\"))))))))","v":""},{"$f":"IF(AND(B215=\"Debtor\",F215=\"Revenue\"),1,IF(AND(B215=\"P.I.A.\",F215=\"Revenue\"),2,IF(AND(B215=\"Debtor\",F215=\"Capital\"),3,IF(AND(B215=\"P.I.A.\",F215=\"Capital\"),4,\"\"))))","v":""},{"$f":"IF(AND(B215=\"Creditor\",F215=\"Revenue\"),5,IF(AND(B215=\"R.I.A.\",F215=\"Revenue\"),6,IF(AND(B215=\"Creditor\",F215=\"Capital\"),7,IF(AND(B215=\"R.I.A.\",F215=\"Capital\"),8,\"\"))))","v":""},{"$f":"IF(A215=\"N\",1,0)","v":0},{"$f":"J215&K215&LEFT(G215,1)","v":""},{"$f":"IF(AND(ISBLANK(F215),B215<>0),1,0)","v":0},{"$f":"IF(AND(ISBLANK(G215),B215<>0,B215<>\"Employee Accrual\"),1,0)","v":0},"1 - English Partnerships (LP) Limited","DPM085",{"$f":"IF(AND(ISBLANK(C215),B215<>0),1,0)","v":0}]
["",null,null,null,null,null,null,null,"","","",0,"",0,0,"1 - English Sports Council","SPE048",0]
["",null,null,null,null,null,null,null,"","","",0,"",0,0,"1 - English Tourist Authority","DCM048",0]
["",null,null,null,null,null,null,null,"","","",0,"",0,0,"1 - Environment Agency","ENV003",0]
["",null,null,null,null,null,null,null,"","","",0,"",0,0,"1 - Equality 2025","DWP032",0]
["",null,null,null,null,null,null,null,"","","",0,"",0,0,"1 - Equality Commission for Northern Ireland","ECN211",0]
["",null,null,null,null,null,null,null,"","","",0,"",0,0,"1 - Estuary Management Company Ltd","DPM085",0]
["",null,null,null,null,null,null,null,"","","",0,"",0,0,"1 - Estyn: Her Majesty's Inspectorate for Education & Training for Wales","EST090",0]
["",null,null,null,null,null,null,null,"","","",0,"",0,0,"1 - EU Emissions Allowance Trust Statement","EAT066",0]
["",null,null,null,null,null,null,null,"","","",0,"",0,0,"1 - Exchange Equalisation Account","EEA888",0]
["",null,null,null,null,null,null,null,"","","",0,"",0,0,"1 - Expert Advisory Group on AIDS","DOH033",0]
["",null,null,null,null,null,null,null,"","","",0,"",0,0,"1 - Expert Group on Vitamins and Minerals","DOH033",0]
["",null,null,null,null,null,null,null,"","","",0,"",0,0,"1 - Export Credits Guarantee Department","ECG025",0]
["",null,null,null,null,null,null,null,"","","",0,"",0,0,"1 - Export Guarantees Advisory Council","ECG025",0]
["",null,null,null,null,null,null,null,"","","",0,"",0,0,"1 - Family Justice Council","LCD047",0]
["",null,null,null,null,null,null,null,"","","",0,"",0,0,"1 - Family Procedure Rules Committee","LCD047",0]
["",null,null,null,null,null,null,null,"","","",0,"",0,0,"1 - Financial Reporting Advisory Board","HMT087",0]
["",null,null,null,null,null,null,null,"","","",0,"",0,0,"1 - Financial Reporting Council","FRC084",0]
["",null,null,null,null,null,null,null,"","","",0,"",0,0,"1 - Financial Services Compensation Scheme","FSV087",0]
["",null,null,null,null,null,null,null,"","","",0,"",0,0,"1 - Food Standards Agency","FSA026",0]
["",null,null,null,null,null,null,null,"","","",0,"",0,0,"1 - Foreign and Commonwealth Office","FCO027",0]
["",null,null,null,null,null,null,null,"","","",0,"",0,0,"1 - Foreign Compensation Commission","FCO027",0]
["",null,null,null,null,null,null,null,"","","",0,"",0,0,"1 - Forestry Commission","FCM003",0]
["",null,null,null,null,null,null,null,"","","",0,"",0,0,"1 - Fuel Poverty Advisory Group","DEC066",0]
["",null,null,null,null,null,null,null,"","","",0,"",0,0,"1 - Further Education Corporations","DTI084",0]
["",null,null,null,null,null,null,null,"","","",0,"",0,0,"1 - Gambling Commission","GBG048",0]
["",null,null,null,null,null,null,null,"","","",0,"",0,0,"1 - Gangmasters Licensing Authority","GLA003",0]
["",null,null,null,null,null,null,null,"","","",0,"",0,0,"1 - Geffrye Museum","GFF048",0]
["",null,null,null,null,null,null,null,"","","",0,"",0,0,"1 - Geffrye Museum Trust Ltd","DCM048",0]
["",null,null,null,null,null,null,null,"","","",0,"",0,0,"1 - Gene Therapy Advisory Committee","DOH033",0]
["",null,null,null,null,null,null,null,"","","",0,"",0,0,"1 - General Advisory Committee on Science","FSA026",0]
["",null,null,null,null,null,null,null,"","","",0,"",0,0,"1 - General Consumer Council for Northern Ireland","NIE099",0]
["",null,null,null,null,null,null,null,"","","",0,"",0,0,"1 - General Registers of Scotland","GRS075",0]
["",null,null,null,null,null,null,null,"","","",0,"",0,0,"1 - General Social Care Council","GSC033",0]
["",null,null,null,null,null,null,null,"","","",0,"",0,0,"1 - General Social Care Council","GSC033",0]
["",null,null,null,null,null,null,null,"","","",0,"",0,0,"1 - General Teaching Council for Northern Ireland","NIE099",0]
["",null,null,null,null,null,null,null,"","","",0,"",0,0,"1 - Genetics and Insurance Committee","DOH033",0]
["",null,null,null,null,null,null,null,"","","",0,"",0,0,"1 - Government Actuary's Department","GAD031",0]
["",null,null,null,null,null,null,null,"","","",0,"",0,0,"1 - Government Car and Dispatch Agency","DFT004",0]
["",null,null,null,null,null,null,null,"","","",0,"",0,0,"1 - Government Procurement Service","BYA010",0]
["",null,null,null,null,null,null,null,"","","",0,"",0,0,"1 - Governors of the Armagh Observatory and Planetarium","NIE099",0]
["",null,null,null,null,null,null,null,"","","",0,"",0,0,"1 - Guaranteed Export Finance Corporation","GEF025",0]
["",null,null,null,null,null,null,null,"","","",0,"",0,0,"1 - Health and Safety Executive (HSE)","DWP032",0]
["",null,null,null,null,null,null,null,"","","",0,"",0,0,"1 - Health and Safety Executive for Northern Ireland","HSE204",0]
["",null,null,null,null,null,null,null,"","","",0,"",0,0,"1 - Health and Safety Laboratory (HSL)","DWP032",0]
["",null,null,null,null,null,null,null,"","","",0,"",0,0,"1 - Health Protection Agency","HPG033",0]
["",null,null,null,null,null,null,null,"","","",0,"",0,0,"1 - Health Research Authority","DOH033",0]
["",null,null,null,null,null,null,null,"","","",0,"",0,0,"1 - Her Majesty’s Inspectorate of Constabulary","HOF034",0]
["",null,null,null,null,null,null,null,"","","",0,"",0,0,"1 - Her Majesty's Courts and Tribunal Service","LCD047",0]
["",null,null,null,null,null,null,null,"","","",0,"",0,0,"1 - Heritage Lottery Fund","HLF048",0]
["",null,null,null,null,null,null,null,"","","",0,"",0,0,"1 - High House Production Park Limited","DPM085",0]
["",null,null,null,null,null,null,null,"","","",0,"",0,0,"1 - High Speed Two (HS2) Limited","DFT004",0]
["",null,null,null,null,null,null,null,"","","",0,"",0,0,"1 - Higher Education Funding Council for England","HEF084",0]
["",null,null,null,null,null,null,null,"","","",0,"",0,0,"1 - Higher Education Funding Council for Wales","HFW090",0]
["",null,null,null,null,null,null,null,"","","",0,"",0,0,"1 - Highland and Islands Enterprise","HIE075",0]
["",null,null,null,null,null,null,null,"","","",0,"",0,0,"1 - HM Procurator General and Treasury Solicitor","HGT089",0]
["",null,null,null,null,null,null,null,"","","",0,"",0,0,"1 - HM Revenue and Customs","ILR041",0]
["",null,null,null,null,null,null,null,"","","",0,"",0,0,"1 - HM Revenue and Customs Trust Statement","IRT813",0]
["",null,null,null,null,null,null,null,"","","",0,"",0,0,"1 - HM Treasury","HMT087",0]
["",null,null,null,null,null,null,null,"","","",0,"",0,0,"1 - Home Office","HOF034",0]
["",null,null,null,null,null,null,null,"","","",0,"",0,0,"1 - Homes and Communities Agency","HCA085",0]
["",null,null,null,null,null,null,null,"","","",0,"",0,0,"1 - Horniman Museum and Public Park Foundation","HMM048",0]
["",null,null,null,null,null,null,null,"","","",0,"",0,0,"1 - Horniman Museum Enterprises Limited","DCM048",0]
["",null,null,null,null,null,null,null,"","","",0,"",0,0,"1 - Horniman Public Museum and Public Park Trust","DCM048",0]
[{"$f":"IF(I279=\"\",\"\",IF(I279=\"Complete\",\"Y\",\"N\"))","v":""},null,null,null,null,null,null,null,{"$f":"IF(COUNTA(B279:G279)=0,\"\",IF(OR(B279=\"\",C279=\"\"),\"Please select item types from the drop down lists in columns B & C\",IF(D279=\"\",\"Please enter description/details in column C\",IF(E279=\"\",\"Please enter amount\",IF(F279=\"\",\"Please select 'Revenue' or 'Capital' from the drop down list in column E\",IF(AND(G279=\"\",B279<>\"Employee Accrual\"),\"Please select the Counterparty from the drop down list in colum F\",IF(AND(G279=\"0 - Essex County Council\",H279=\"\"),\"Please enter the name of the ECC contact who asked you to raise this entry\",IF(COUNTIF(P:P,G279)=0,\"Counterparty not valid. Please check\",\"Complete\"))))))))","v":""},{"$f":"IF(AND(B279=\"Debtor\",F279=\"Revenue\"),1,IF(AND(B279=\"P.I.A.\",F279=\"Revenue\"),2,IF(AND(B279=\"Debtor\",F279=\"Capital\"),3,IF(AND(B279=\"P.I.A.\",F279=\"Capital\"),4,\"\"))))","v":""},{"$f":"IF(AND(B279=\"Creditor\",F279=\"Revenue\"),5,IF(AND(B279=\"R.I.A.\",F279=\"Revenue\"),6,IF(AND(B279=\"Creditor\",F279=\"Capital\"),7,IF(AND(B279=\"R.I.A.\",F279=\"Capital\"),8,\"\"))))","v":""},{"$f":"IF(A279=\"N\",1,0)","v":0},{"$f":"J279&K279&LEFT(G279,1)","v":""},{"$f":"IF(AND(ISBLANK(F279),B279<>0),1,0)","v":0},{"$f":"IF(AND(ISBLANK(G279),B279<>0,B279<>\"Employee Accrual\"),1,0)","v":0},"1 - Horserace Betting Levy Appeals Tribunal for England and Wales","DCM048",{"$f":"IF(AND(ISBLANK(C279),B279<>0),1,0)","v":0}]
["",null,null,null,null,null,null,null,"","","",0,"",0,0,"1 - Horserace Betting Levy Board","HBL048",0]
["",null,null,null,null,null,null,null,"","","",0,"",0,0,"1 - House of Lords Appointments Commission","CAB010",0]
["",null,null,null,null,null,null,null,"","","",0,"",0,0,"1 - HPSS Superannuation Account - Northern Ireland","HPS910",0]
["",null,null,null,null,null,null,null,"","","",0,"",0,0,"1 - Human Fertilisation and Embryology Authority","DOH033",0]
["",null,null,null,null,null,null,null,"","","",0,"",0,0,"1 - Human Genetics Commission","DOH033",0]
["",null,null,null,null,null,null,null,"","","",0,"",0,0,"1 - Human Tissue Authority","DOH033",0]
["",null,null,null,null,null,null,null,"","","",0,"",0,0,"1 - Identity & Passport Service","HOF034",0]
["",null,null,null,null,null,null,null,"","","",0,"",0,0,"1 - Ilex Urban Regeneration Company Limited","IUR210",0]
["",null,null,null,null,null,null,null,"","","",0,"",0,0,"1 - Imperial War Museum","IWM048",0]
["",null,null,null,null,null,null,null,"","","",0,"",0,0,"1 - Imperial War Museum Trading Company Limited","DCM048",0]
["",null,null,null,null,null,null,null,"","","",0,"",0,0,"1 - Independent Advisory Panel on Deaths in Custody","LCD047",0]
["",null,null,null,null,null,null,null,"","","",0,"",0,0,"1 - Independent Agricultural Appeals Panel","EFR003",0]
["",null,null,null,null,null,null,null,"","","",0,"",0,0,"1 - Independent Chief Inspector of the UK Border Agency","HOF034",0]
["",null,null,null,null,null,null,null,"","","",0,"",0,0,"1 - Independent Housing Ombudsman Limited","DPM085",0]
["",null,null,null,null,null,null,null,"","","",0,"",0,0,"1 - Independent Living Fund (ILF)","ILF032",0]
["",null,null,null,null,null,null,null,"","","",0,"",0,0,"1 - Independent Monitoring Board for the Military Corrective Training Centre (MCTC) Colchester","MOD017",0]
["",null,null,null,null,null,null,null,"","","",0,"",0,0,"1 - Independent Monitoring Boards of Prisons, Immigration Removal Centres and Immigration Holding Facilities ","LCD047",0]
["",null,null,null,null,null,null,null,"","","",0,"",0,0,"1 - Independent Police Complaints Commission","IPO034",0]
["",null,null,null,null,null,null,null,"","","",0,"",0,0,"1 - Independent Safeguarding Authority","ISA034",0]
["",null,null,null,null,null,null,null,"","","",0,"",0,0,"1 - Industrial Development Advisory Board","DTI084",0]
["",null,null,null,null,null,null,null,"","","",0,"",0,0,"1 - Industrial Injuries Advisory Council (IIAC)","DWP032",0]
["",null,null,null,null,null,null,null,"","","",0,"",0,0,"1 - Industrial Training Boards","DTI084",0]
["",null,null,null,null,null,null,null,"","","",0,"",0,0,"1 - Infrastructure Planning Commission","DPM085",0]
["",null,null,null,null,null,null,null,"","","",0,"",0,0,"1 - Inland Waterways Advisory Council","EFR003",0]
["",null,null,null,null,null,null,null,"","","",0,"",0,0,"1 - Insolvency Practitioners Tribunal","DTI084",0]
["",null,null,null,null,null,null,null,"","","",0,"",0,0,"1 - Insolvency Rules Committee","LCD047",0]
["",null,null,null,null,null,null,null,"","","",0,"",0,0,"1 - Insolvency Service","DTI084",0]
["",null,null,null,null,null,null,null,"","","",0,"",0,0,"1 - Insolvency Service Investment Account","ISI814",0]
["",null,null,null,null,null,null,null,"","","",0,"",0,0,"1 - International Nuclear Services Ltd","INS066",0]
["",null,null,null,null,null,null,null,"","","",0,"",0,0,"1 - Invest Northern Ireland","INL204",0]
["",null,null,null,null,null,null,null,"","","",0,"",0,0,"1 - Investigatory Powers Tribunal","HOF034",0]
["",null,null,null,null,null,null,null,"","","",0,"",0,0,"1 - Iveagh Bequest","DCM048",0]
["",null,null,null,null,null,null,null,"","","",0,"",0,0,"1 - Jobcentre Plus (JCP)","DWP032",0]
["",null,null,null,null,null,null,null,"","","",0,"",0,0,"1 - Joint Committee on Vaccination and Immunisation","DOH033",0]
["",null,null,null,null,null,null,null,"","","",0,"",0,0,"1 - Joint Industry Grading Scheme Ltd","DCM048",0]
["",null,null,null,null,null,null,null,"","","",0,"",0,0,"1 - Joint Nature Conservation Committee","JNC003",0]
["",null,null,null,null,null,null,null,"","","",0,"",0,0,"1 - Judicial Appointments and Conduct Ombudsman","LCD047",0]
["",null,null,null,null,null,null,null,"","","",0,"",0,0,"1 - Judicial Appointments Commission","LCD047",0]
["",null,null,null,null,null,null,null,"","","",0,"",0,0,"1 - Judicial College","LCD047",0]
["",null,null,null,null,null,null,null,"","","",0,"",0,0,"1 - Judicial Communications Office","LCD047",0]
["",null,null,null,null,null,null,null,"","","",0,"",0,0,"1 - Judicial Office","LCD047",0]
["",null,null,null,null,null,null,null,"","","",0,"",0,0,"1 - Labour Relations Agency","NIE099",0]
["",null,null,null,null,null,null,null,"","","",0,"",0,0,"1 - Law Commission","LCD047",0]
["",null,null,null,null,null,null,null,"","","",0,"",0,0,"1 - LCR Finance Plc","DFT004",0]
["",null,null,null,null,null,null,null,"","","",0,"",0,0,"1 - Learning and Skills Improvement Service","LSI084",0]
["",null,null,null,null,null,null,null,"","","",0,"",0,0,"1 - Legal Services Board","LCD047",0]
["",null,null,null,null,null,null,null,"","","",0,"",0,0,"1 - Legal Services Commission","LEC047",0]
["",null,null,null,null,null,null,null,"","","",0,"",0,0,"1 - Livestock and Meat Commission","NIE099",0]
["",null,null,null,null,null,null,null,"","","",0,"",0,0,"1 - LLW Repository Limited","DEC066",0]
["",null,null,null,null,null,null,null,"","","",0,"",0,0,"1 - Local Better Regulation Office (LBRO)","DTI084",0]
["",null,null,null,null,null,null,null,"","","",0,"",0,0,"1 - Local Government Staff Commission for Northern Ireland","NIE099",0]
["",null,null,null,null,null,null,null,"","","",0,"",0,0,"1 - Local Partnerships LLP","HMT087",0]
["",null,null,null,null,null,null,null,"","","",0,"",0,0,"1 - London and Continental Railways","DFT004",0]
["",null,null,null,null,null,null,null,"","","",0,"",0,0,"1 - London Organising Committee of the Olympic Games Limited","LOG048",0]
["",null,null,null,null,null,null,null,"","","",0,"",0,0,"1 - London Probation Trust","PROBSUM",0]
["",null,null,null,null,null,null,null,"","","",0,"",0,0,"1 - London Thames Gateway Development Corporation","LTG085",0]
["",null,null,null,null,null,null,null,"","","",0,"",0,0,"1 - Low Pay Commission","DTI084",0]
["",null,null,null,null,null,null,null,"","","",0,"",0,0,"1 - Magistrates’ Courts Rules Committee","LCD047",0]
["",null,null,null,null,null,null,null,"","","",0,"",0,0,"1 - Magnox Limited","DEC066",0]
["",null,null,null,null,null,null,null,"","","",0,"",0,0,"1 - Magnox South Limited","DEC066",0]
["",null,null,null,null,null,null,null,"","","",0,"",0,0,"1 - Main Honours Advisory Committee","CAB010",0]
["",null,null,null,null,null,null,null,"","","",0,"",0,0,"1 - Marine Management Organisation","MMO003",0]
["",null,null,null,null,null,null,null,"","","",0,"",0,0,"1 - Marshall Aid Commemoration Commission","FCO027",0]
[{"$f":"IF(I343=\"\",\"\",IF(I343=\"Complete\",\"Y\",\"N\"))","v":""},null,null,null,null,null,null,null,{"$f":"IF(COUNTA(B343:G343)=0,\"\",IF(OR(B343=\"\",C343=\"\"),\"Please select item types from the drop down lists in columns B & C\",IF(D343=\"\",\"Please enter description/details in column C\",IF(E343=\"\",\"Please enter amount\",IF(F343=\"\",\"Please select 'Revenue' or 'Capital' from the drop down list in column E\",IF(AND(G343=\"\",B343<>\"Employee Accrual\"),\"Please select the Counterparty from the drop down list in colum F\",IF(AND(G343=\"0 - Essex County Council\",H343=\"\"),\"Please enter the name of the ECC contact who asked you to raise this entry\",IF(COUNTIF(P:P,G343)=0,\"Counterparty not valid. Please check\",\"Complete\"))))))))","v":""},{"$f":"IF(AND(B343=\"Debtor\",F343=\"Revenue\"),1,IF(AND(B343=\"P.I.A.\",F343=\"Revenue\"),2,IF(AND(B343=\"Debtor\",F343=\"Capital\"),3,IF(AND(B343=\"P.I.A.\",F343=\"Capital\"),4,\"\"))))","v":""},{"$f":"IF(AND(B343=\"Creditor\",F343=\"Revenue\"),5,IF(AND(B343=\"R.I.A.\",F343=\"Revenue\"),6,IF(AND(B343=\"Creditor\",F343=\"Capital\"),7,IF(AND(B343=\"R.I.A.\",F343=\"Capital\"),8,\"\"))))","v":""},{"$f":"IF(A343=\"N\",1,0)","v":0},{"$f":"J343&K343&LEFT(G343,1)","v":""},{"$f":"IF(AND(ISBLANK(F343),B343<>0),1,0)","v":0},{"$f":"IF(AND(ISBLANK(G343),B343<>0,B343<>\"Employee Accrual\"),1,0)","v":0},"1 - Meat and Livestock Commercial Services Limited","EFR003",{"$f":"IF(AND(ISBLANK(C343),B343<>0),1,0)","v":0}]
["",null,null,null,null,null,null,null,"","","",0,"",0,0,"1 - Media Applications Technologies Ltd","DCM048",0]
["",null,null,null,null,null,null,null,"","","",0,"",0,0,"1 - Medical Research Council","MRC084",0]
["",null,null,null,null,null,null,null,"","","",0,"",0,0,"1 - Migration Advisory Committee","HOF034",0]
["",null,null,null,null,null,null,null,"","","",0,"",0,0,"1 - Ministry of Defence","MOD017",0]
["",null,null,null,null,null,null,null,"","","",0,"",0,0,"1 - Ministry of Justice","LCD047",0]
["",null,null,null,null,null,null,null,"","","",0,"",0,0,"1 - Ministry of Justice: Judicial Pensions Scheme","JPS908",0]
["",null,null,null,null,null,null,null,"","","",0,"",0,0,"1 - MLA West Midlands: the Regional Council for Museums, Libraries and Archives","DCM048",0]
["",null,null,null,null,null,null,null,"","","",0,"",0,0,"1 - Money Advice Service (formerly CFEB)","HMT087",0]
["",null,null,null,null,null,null,null,"","","",0,"",0,0,"1 - Monitor – Independent Regulator of NHS Foundation Trusts","MIR033",0]
["",null,null,null,null,null,null,null,"","","",0,"",0,0,"1 - Mortimer Productions Ltd","DCM048",0]
["",null,null,null,null,null,null,null,"","","",0,"",0,0,"1 - Museum of Science and Industry in Manchester","MSI048",0]
["",null,null,null,null,null,null,null,"","","",0,"",0,0,"1 - Museums, Libraries and Archives Council","RCM048",0]
["",null,null,null,null,null,null,null,"","","",0,"",0,0,"1 - National Army Museum","NAM017",0]
["",null,null,null,null,null,null,null,"","","",0,"",0,0,"1 - National DNA Database Ethics Group","HOF034",0]
["",null,null,null,null,null,null,null,"","","",0,"",0,0,"1 - National Employer Advisory Board","MOD017",0]
["",null,null,null,null,null,null,null,"","","",0,"",0,0,"1 - National Employment Savings Trust (NEST)","NST032",0]
["",null,null,null,null,null,null,null,"","","",0,"",0,0,"1 - National Endowment for Science, Technology and the Arts","NES084",0]
["",null,null,null,null,null,null,null,"","","",0,"",0,0,"1 - National Forest Company","NFC003",0]
["",null,null,null,null,null,null,null,"","","",0,"",0,0,"1 - National Fraud Authority","HOF034",0]
["",null,null,null,null,null,null,null,"","","",0,"",0,0,"1 - National Galleries of Scotland","NGS075",0]
["",null,null,null,null,null,null,null,"","","",0,"",0,0,"1 - National Gallery","NGL048",0]
["",null,null,null,null,null,null,null,"","","",0,"",0,0,"1 - National Health Service Pension Scheme","NHP903",0]
["",null,null,null,null,null,null,null,"","","",0,"",0,0,"1 - National Heritage Memorial Fund","NHF048",0]
["",null,null,null,null,null,null,null,"","","",0,"",0,0,"1 - National Institute for Health and Clinical Excellence","DOH033",0]
["",null,null,null,null,null,null,null,"","","",0,"",0,0,"1 - National Insurance Fund","NIF822",0]
["",null,null,null,null,null,null,null,"","","",0,"",0,0,"1 - National Library of Scotland","NLS075",0]
["",null,null,null,null,null,null,null,"","","",0,"",0,0,"1 - National Library of Wales","NLW090",0]
["",null,null,null,null,null,null,null,"","","",0,"",0,0,"1 - National Loans Fund","NLF888",0]
["",null,null,null,null,null,null,null,"","","",0,"",0,0,"1 - National Lottery Commission","DCM048",0]
["",null,null,null,null,null,null,null,"","","",0,"",0,0,"1 - National Lottery Distribution Fund","NLD048",0]
["",null,null,null,null,null,null,null,"","","",0,"",0,0,"1 - National Lottery: UKSC Lottery","NLL048",0]
["",null,null,null,null,null,null,null,"","","",0,"",0,0,"1 - National Maritime Museum","NMM048",0]
["",null,null,null,null,null,null,null,"","","",0,"",0,0,"1 - National Measurement Office, The","DTI084",0]
["",null,null,null,null,null,null,null,"","","",0,"",0,0,"1 - National Museum of Science and Industry","NMS048",0]
["",null,null,null,null,null,null,null,"","","",0,"",0,0,"1 - National Museum of the Royal Navy","MOD017",0]
["",null,null,null,null,null,null,null,"","","",0,"",0,0,"1 - National Museums and Galleries of Northern Ireland","NMN202",0]
["",null,null,null,null,null,null,null,"","","",0,"",0,0,"1 - National Museums and Galleries of Wales","NMW090",0]
["",null,null,null,null,null,null,null,"","","",0,"",0,0,"1 - National Museums and Galleries on Merseyside","NMG048",0]
["",null,null,null,null,null,null,null,"","","",0,"",0,0,"1 - National Museums of Scotland","NMU075",0]
["",null,null,null,null,null,null,null,"","","",0,"",0,0,"1 - National Non-Food Crops Centre","DEC066",0]
["",null,null,null,null,null,null,null,"","","",0,"",0,0,"1 - National Offender Management Service","LCD047",0]
["",null,null,null,null,null,null,null,"","","",0,"",0,0,"1 - National Patient Safety Agency","DOH033",0]
["",null,null,null,null,null,null,null,"","","",0,"",0,0,"1 - National Policing Improvement Agency","PIA034",0]
["",null,null,null,null,null,null,null,"","","",0,"",0,0,"1 - National Portrait Gallery","NPG048",0]
["",null,null,null,null,null,null,null,"","","",0,"",0,0,"1 - National Savings and Investments","DNS049",0]
["",null,null,null,null,null,null,null,"","","",0,"",0,0,"1 - National School of Government","NSG062",0]
["",null,null,null,null,null,null,null,"","","",0,"",0,0,"1 - National Treatment Agency for Substance Misuse","DOH033",0]
["",null,null,null,null,null,null,null,"","","",0,"",0,0,"1 - Natural England","NEN003",0]
["",null,null,null,null,null,null,null,"","","",0,"",0,0,"1 - Natural Environment Research Council","NER084",0]
["",null,null,null,null,null,null,null,"","","",0,"",0,0,"1 - Natural History Museum","NHM048",0]
["",null,null,null,null,null,null,null,"","","",0,"",0,0,"1 - NHS Business Services Authority","DOH033",0]
["",null,null,null,null,null,null,null,"","","",0,"",0,0,"1 - NHS Charities in England (as defined by section 43 of the Charities Act 1993 as amended)","DOH033",0]
["",null,null,null,null,null,null,null,"","","",0,"",0,0,"1 - NHS Commissioning Board","DOH033",0]
["",null,null,null,null,null,null,null,"","","",0,"",0,0,"1 - NHS Direct","NHD033",0]
["",null,null,null,null,null,null,null,"","","",0,"",0,0,"1 - NHS Foundation Trusts (as established under section 30 of the National Health Service Act 2006)","DOH033",0]
["",null,null,null,null,null,null,null,"","","",0,"",0,0,"1 - NHS Institute for Innovation and Improvement","DOH033",0]
["",null,null,null,null,null,null,null,"","","",0,"",0,0,"1 - NHS Litigation Authority","DOH033",0]
["",null,null,null,null,null,null,null,"","","",0,"",0,0,"1 - North Eastern Education and Library Board - Northern Ireland","NEE203",0]
["",null,null,null,null,null,null,null,"","","",0,"",0,0,"1 - North West Regional Development Agency","NWD084",0]
["",null,null,null,null,null,null,null,"","","",0,"",0,0,"1 - Northern Ireland Authority for Utility Regulation","REG212",0]
["",null,null,null,null,null,null,null,"","","",0,"",0,0,"1 - Northern Ireland Blood Transfusion Service","BTS208",0]
["",null,null,null,null,null,null,null,"","","",0,"",0,0,"1 - Northern Ireland Boundary Commision","NIO097",0]
["",null,null,null,null,null,null,null,"","","",0,"",0,0,"1 - Northern Ireland Consolidated Fund","NCF843",0]
[{"$f":"IF(I407=\"\",\"\",IF(I407=\"Complete\",\"Y\",\"N\"))","v":""},null,null,null,null,null,null,null,{"$f":"IF(COUNTA(B407:G407)=0,\"\",IF(OR(B407=\"\",C407=\"\"),\"Please select item types from the drop down lists in columns B & C\",IF(D407=\"\",\"Please enter description/details in column C\",IF(E407=\"\",\"Please enter amount\",IF(F407=\"\",\"Please select 'Revenue' or 'Capital' from the drop down list in column E\",IF(AND(G407=\"\",B407<>\"Employee Accrual\"),\"Please select the Counterparty from the drop down list in colum F\",IF(AND(G407=\"0 - Essex County Council\",H407=\"\"),\"Please enter the name of the ECC contact who asked you to raise this entry\",IF(COUNTIF(P:P,G407)=0,\"Counterparty not valid. Please check\",\"Complete\"))))))))","v":""},{"$f":"IF(AND(B407=\"Debtor\",F407=\"Revenue\"),1,IF(AND(B407=\"P.I.A.\",F407=\"Revenue\"),2,IF(AND(B407=\"Debtor\",F407=\"Capital\"),3,IF(AND(B407=\"P.I.A.\",F407=\"Capital\"),4,\"\"))))","v":""},{"$f":"IF(AND(B407=\"Creditor\",F407=\"Revenue\"),5,IF(AND(B407=\"R.I.A.\",F407=\"Revenue\"),6,IF(AND(B407=\"Creditor\",F407=\"Capital\"),7,IF(AND(B407=\"R.I.A.\",F407=\"Capital\"),8,\"\"))))","v":""},{"$f":"IF(A407=\"N\",1,0)","v":0},{"$f":"J407&K407&LEFT(G407,1)","v":""},{"$f":"IF(AND(ISBLANK(F407),B407<>0),1,0)","v":0},{"$f":"IF(AND(ISBLANK(G407),B407<>0,B407<>\"Employee Accrual\"),1,0)","v":0},"1 - Northern Ireland Council for the Curriculum, Examinations and Assessment","CEA203",{"$f":"IF(AND(ISBLANK(C407),B407<>0),1,0)","v":0}]
["",null,null,null,null,null,null,null,"","","",0,"",0,0,"1 - Northern Ireland Executive","NIE099",0]
["",null,null,null,null,null,null,null,"","","",0,"",0,0,"1 - Northern Ireland Fire and Rescue Service","FIA208",0]
["",null,null,null,null,null,null,null,"","","",0,"",0,0,"1 - Northern Ireland Fire and Rescue Service","NIE099",0]
["",null,null,null,null,null,null,null,"","","",0,"",0,0,"1 - Northern Ireland Fishery Harbour Authority","FHA201",0]
["",null,null,null,null,null,null,null,"","","",0,"",0,0,"1 - Northern Ireland Housing Executive","NIE099",0]
["",null,null,null,null,null,null,null,"","","",0,"",0,0,"1 - Northern Ireland Legal Services Commission","ILS081",0]
["",null,null,null,null,null,null,null,"","","",0,"",0,0,"1 - Northern Ireland Legal Services Commission","NJC081",0]
["",null,null,null,null,null,null,null,"","","",0,"",0,0,"1 - Northern Ireland Local Government Officers Superannuation Committee","NIL206",0]
["",null,null,null,null,null,null,null,"","","",0,"",0,0,"1 - Northern Ireland Local Government Officers’ Superannuation Committee","NLY202",0]
["",null,null,null,null,null,null,null,"","","",0,"",0,0,"1 - Northern Ireland Medical and Dental Training Agency","PMD208",0]
["",null,null,null,null,null,null,null,"","","",0,"",0,0,"1 - Northern Ireland Museums Council","NIE099",0]
["",null,null,null,null,null,null,null,"","","",0,"",0,0,"1 - Northern Ireland National Insurance Fund","IIF848",0]
["",null,null,null,null,null,null,null,"","","",0,"",0,0,"1 - Northern Ireland Office","NIO097",0]
["",null,null,null,null,null,null,null,"","","",0,"",0,0,"1 - Northern Ireland Police Fund","NIE099",0]
["",null,null,null,null,null,null,null,"","","",0,"",0,0,"1 - Northern Ireland Policing Board","NIP097",0]
["",null,null,null,null,null,null,null,"","","",0,"",0,0,"1 - Northern Ireland Policing Board","NIE099",0]
["",null,null,null,null,null,null,null,"","","",0,"",0,0,"1 - Northern Ireland Screen Commission","NIS202",0]
["",null,null,null,null,null,null,null,"","","",0,"",0,0,"1 - Northern Ireland Screen Commission Limited","NIE099",0]
["",null,null,null,null,null,null,null,"","","",0,"",0,0,"1 - Northern Ireland Tourist Board","NIE099",0]
["",null,null,null,null,null,null,null,"","","",0,"",0,0,"1 - Northern Ireland Transport Holding Company","NTB204",0]
["",null,null,null,null,null,null,null,"","","",0,"",0,0,"1 - NorwePP (NWDA Subsidiary) Limited","DPM085",0]
["",null,null,null,null,null,null,null,"","","",0,"",0,0,"1 - Nuclear Decommissioning Authority","NDA066",0]
["",null,null,null,null,null,null,null,"","","",0,"",0,0,"1 - Nuclear Liabilities Financing Assurance Board","DEC066",0]
["",null,null,null,null,null,null,null,"","","",0,"",0,0,"1 - Nuclear Liabilities Fund","NUL066",0]
["",null,null,null,null,null,null,null,"","","",0,"",0,0,"1 - Nuclear Research Advisory Council","MOD017",0]
["",null,null,null,null,null,null,null,"","","",0,"",0,0,"1 - Office for Budget Responsibility","HMT087",0]
["",null,null,null,null,null,null,null,"","","",0,"",0,0,"1 - Office for Fair Access","DTI084",0]
["",null,null,null,null,null,null,null,"","","",0,"",0,0,"1 - Office for Judicial Complaints","LCD047",0]
["",null,null,null,null,null,null,null,"","","",0,"",0,0,"1 - Office for Legal Complaints","LCD047",0]
["",null,null,null,null,null,null,null,"","","",0,"",0,0,"1 - Office for National Statistics","ONS005",0]
["",null,null,null,null,null,null,null,"","","",0,"",0,0,"1 - Office for Nuclear Regulation (ONR)","DWP032",0]
["",null,null,null,null,null,null,null,"","","",0,"",0,0,"1 - Office for Standards in Education, Children's Services and Skills","OIS022",0]
["",null,null,null,null,null,null,null,"","","",0,"",0,0,"1 - Office of Fair Trading","OFT074",0]
["",null,null,null,null,null,null,null,"","","",0,"",0,0,"1 - Office of Gas and Electricity Markets","OGE020",0]
["",null,null,null,null,null,null,null,"","","",0,"",0,0,"1 - Office of HM Inspectorate of Prisons","LCD047",0]
["",null,null,null,null,null,null,null,"","","",0,"",0,0,"1 - Office of HM Inspectorate of Probation","LCD047",0]
["",null,null,null,null,null,null,null,"","","",0,"",0,0,"1 - Office of Rail Regulation","ORR088",0]
["",null,null,null,null,null,null,null,"","","",0,"",0,0,"1 - Office of Surveillance Commissioners","HOF034",0]
["",null,null,null,null,null,null,null,"","","",0,"",0,0,"1 - Office of the Children’s Commissioner (please note Name of Body revised)","DES022",0]
["",null,null,null,null,null,null,null,"","","",0,"",0,0,"1 - Office of the First Minister and Deputy First Minister","OFM211",0]
["",null,null,null,null,null,null,null,"","","",0,"",0,0,"1 - Office of the Immigration Services Commissioner","HOF034",0]
["",null,null,null,null,null,null,null,"","","",0,"",0,0,"1 - Office of the Information Commissioner","OIC047",0]
["",null,null,null,null,null,null,null,"","","",0,"",0,0,"1 - Office of the Judge Advocate General","LCD047",0]
["",null,null,null,null,null,null,null,"","","",0,"",0,0,"1 - Office of the Legal Services Ombudsman","LCD047",0]
["",null,null,null,null,null,null,null,"","","",0,"",0,0,"1 - Office of the Public Guardian","LCD047",0]
["",null,null,null,null,null,null,null,"","","",0,"",0,0,"1 - Official Solicitor and Public Trustee","LCD047",0]
["",null,null,null,null,null,null,null,"","","",0,"",0,0,"1 - Olympic Delivery Authority","OLA048",0]
["",null,null,null,null,null,null,null,"","","",0,"",0,0,"1 - Olympic Lottery Distribution Fund","OLF048",0]
["",null,null,null,null,null,null,null,"","","",0,"",0,0,"1 - Olympic Lottery Distributor","OLD048",0]
["",null,null,null,null,null,null,null,"","","",0,"",0,0,"1 - Ombudsman for the Board of the Pension Protection Fund (OPPF)","DWP032",0]
["",null,null,null,null,null,null,null,"","","",0,"",0,0,"1 - ONE North East","NED084",0]
["",null,null,null,null,null,null,null,"","","",0,"",0,0,"1 - ONE North East General Partner Limited","DPM085",0]
["",null,null,null,null,null,null,null,"","","",0,"",0,0,"1 - Parole Board for England and Wales","LCD047",0]
["",null,null,null,null,null,null,null,"","","",0,"",0,0,"1 - Partnerships for Schools","PFS022",0]
["",null,null,null,null,null,null,null,"","","",0,"",0,0,"1 - Passengers’ Council","DFT004",0]
["",null,null,null,null,null,null,null,"","","",0,"",0,0,"1 - Patient and Client Council","PCC208",0]
["",null,null,null,null,null,null,null,"","","",0,"",0,0,"1 - Pension Protection Fund (PPF)","PPF032",0]
["",null,null,null,null,null,null,null,"","","",0,"",0,0,"1 - Petroleum Licences Trust Statement","PLT066",0]
["",null,null,null,null,null,null,null,"","","",0,"",0,0,"1 - Police Advisory Board for England and Wales","HOF034",0]
["",null,null,null,null,null,null,null,"","","",0,"",0,0,"1 - Police Appeals Tribunal","HOF034",0]
["",null,null,null,null,null,null,null,"","","",0,"",0,0,"1 - Police Arbitration Tribunal","HOF034",0]
["",null,null,null,null,null,null,null,"","","",0,"",0,0,"1 - Police Negotiating Board","HOF034",0]
["",null,null,null,null,null,null,null,"","","",0,"",0,0,"1 - Police Ombudsman for Northern Ireland","PON097",0]
[{"$f":"IF(I471=\"\",\"\",IF(I471=\"Complete\",\"Y\",\"N\"))","v":""},null,null,null,null,null,null,null,{"$f":"IF(COUNTA(B471:G471)=0,\"\",IF(OR(B471=\"\",C471=\"\"),\"Please select item types from the drop down lists in columns B & C\",IF(D471=\"\",\"Please enter description/details in column C\",IF(E471=\"\",\"Please enter amount\",IF(F471=\"\",\"Please select 'Revenue' or 'Capital' from the drop down list in column E\",IF(AND(G471=\"\",B471<>\"Employee Accrual\"),\"Please select the Counterparty from the drop down list in colum F\",IF(AND(G471=\"0 - Essex County Council\",H471=\"\"),\"Please enter the name of the ECC contact who asked you to raise this entry\",IF(COUNTIF(P:P,G471)=0,\"Counterparty not valid. Please check\",\"Complete\"))))))))","v":""},{"$f":"IF(AND(B471=\"Debtor\",F471=\"Revenue\"),1,IF(AND(B471=\"P.I.A.\",F471=\"Revenue\"),2,IF(AND(B471=\"Debtor\",F471=\"Capital\"),3,IF(AND(B471=\"P.I.A.\",F471=\"Capital\"),4,\"\"))))","v":""},{"$f":"IF(AND(B471=\"Creditor\",F471=\"Revenue\"),5,IF(AND(B471=\"R.I.A.\",F471=\"Revenue\"),6,IF(AND(B471=\"Creditor\",F471=\"Capital\"),7,IF(AND(B471=\"R.I.A.\",F471=\"Capital\"),8,\"\"))))","v":""},{"$f":"IF(A471=\"N\",1,0)","v":0},{"$f":"J471&K471&LEFT(G471,1)","v":""},{"$f":"IF(AND(ISBLANK(F471),B471<>0),1,0)","v":0},{"$f":"IF(AND(ISBLANK(G471),B471<>0,B471<>\"Employee Accrual\"),1,0)","v":0},"1 - Police Pension Scheme - Northern Ireland Office","PPS912",{"$f":"IF(AND(ISBLANK(C471),B471<>0),1,0)","v":0}]
["",null,null,null,null,null,null,null,"","","",0,"",0,0,"1 - Police Service of Northern Ireland","PSN097",0]
["",null,null,null,null,null,null,null,"","","",0,"",0,0,"1 - Prison Service Pay Review Body","LCD047",0]
["",null,null,null,null,null,null,null,"","","",0,"",0,0,"1 - Prisons and Probation Ombudsman","LCD047",0]
["",null,null,null,null,null,null,null,"","","",0,"",0,0,"1 - Probation Board for Northern Ireland","PBN097",0]
["",null,null,null,null,null,null,null,"","","",0,"",0,0,"1 - Public Prosecution Service","PRS214",0]
["",null,null,null,null,null,null,null,"","","",0,"",0,0,"1 - Public Works Loans Board","PWL888",0]
["",null,null,null,null,null,null,null,"","","",0,"",0,0,"1 - Qualifications and Curriculum Development Agency","QCA022",0]
["",null,null,null,null,null,null,null,"","","",0,"",0,0,"1 - Queen Elizabeth II Conference Centre","QEC085",0]
["",null,null,null,null,null,null,null,"","","",0,"",0,0,"1 - RBG Kew Enterprises Limited","EFR003",0]
["",null,null,null,null,null,null,null,"","","",0,"",0,0,"1 - RCUK Shared Services Centre Ltd","SSC084",0]
["",null,null,null,null,null,null,null,"","","",0,"",0,0,"1 - Regional Industrial Development Boards","DTI084",0]
["",null,null,null,null,null,null,null,"","","",0,"",0,0,"1 - Registrar of the Public Lending Right","DCM048",0]
["",null,null,null,null,null,null,null,"","","",0,"",0,0,"1 - Regulation and Quality and Improvement Agency","RAI208",0]
["",null,null,null,null,null,null,null,"","","",0,"",0,0,"1 - Regulation and Quality Improvement Authority","RAI208",0]
["",null,null,null,null,null,null,null,"","","",0,"",0,0,"1 - Research Councils Pension Scheme","RCP906",0]
["",null,null,null,null,null,null,null,"","","",0,"",0,0,"1 - Research Site Restoration Limited (RSRL)","DEC066",0]
["",null,null,null,null,null,null,null,"","","",0,"",0,0,"1 - Restraint Advisory Board","LCD047",0]
["",null,null,null,null,null,null,null,"","","",0,"",0,0,"1 - Review Board for Government Contracts","MOD017",0]
["",null,null,null,null,null,null,null,"","","",0,"",0,0,"1 - Review Body on Doctors’ and Dentists’ Remuneration","DOH033",0]
["",null,null,null,null,null,null,null,"","","",0,"",0,0,"1 - Reviewing Committee on the Export of Works of Art","DCM048",0]
["",null,null,null,null,null,null,null,"","","",0,"",0,0,"1 - Royal Air Force Museum","RAF017",0]
["",null,null,null,null,null,null,null,"","","",0,"",0,0,"1 - Royal Armouries Museum","RAM048",0]
["",null,null,null,null,null,null,null,"","","",0,"",0,0,"1 - Royal Botanic Garden, Edinburgh","RBG075",0]
["",null,null,null,null,null,null,null,"","","",0,"",0,0,"1 - Royal Botanic Gardens, Kew","KEW003",0]
["",null,null,null,null,null,null,null,"","","",0,"",0,0,"1 - Royal Hospital Chelsea","RHC017",0]
["",null,null,null,null,null,null,null,"","","",0,"",0,0,"1 - Royal Household","HMT087",0]
["",null,null,null,null,null,null,null,"","","",0,"",0,0,"1 - Royal Mint Advisory Committee on the Design of Coins, Medals, Seals and Decorations","HMT087",0]
["",null,null,null,null,null,null,null,"","","",0,"",0,0,"1 - Royal Ulster Constabulary George Cross Foundation","NIE099",0]
["",null,null,null,null,null,null,null,"","","",0,"",0,0,"1 - School Food Trust","STU022",0]
["",null,null,null,null,null,null,null,"","","",0,"",0,0,"1 - School Teachers’ Review Body","DES022",0]
["",null,null,null,null,null,null,null,"","","",0,"",0,0,"1 - Science Advisory Committee on the Medical Implications of Less Lethal Weapons","MOD017",0]
["",null,null,null,null,null,null,null,"","","",0,"",0,0,"1 - Science Advisory Council","EFR003",0]
["",null,null,null,null,null,null,null,"","","",0,"",0,0,"1 - Science and Technology Facilities Council","STF084",0]
["",null,null,null,null,null,null,null,"","","",0,"",0,0,"1 - Scottish Children's Reporter Administration","CRA075",0]
["",null,null,null,null,null,null,null,"","","",0,"",0,0,"1 - Scottish Commission for the Regulation of Care","SCR075",0]
["",null,null,null,null,null,null,null,"","","",0,"",0,0,"1 - Scottish Consolidated Fund","SCF842",0]
["",null,null,null,null,null,null,null,"","","",0,"",0,0,"1 - Scottish Court Service","CRC075",0]
["",null,null,null,null,null,null,null,"","","",0,"",0,0,"1 - Scottish Enterprise","SEN075",0]
["",null,null,null,null,null,null,null,"","","",0,"",0,0,"1 - Scottish Environment Protection Agency","EPA075",0]
["",null,null,null,null,null,null,null,"","","",0,"",0,0,"1 - Scottish Further and Higher Education Funding Council ","SFC075",0]
["",null,null,null,null,null,null,null,"","","",0,"",0,0,"1 - Scottish Government","SCT075",0]
["",null,null,null,null,null,null,null,"","","",0,"",0,0,"1 - Scottish Legal Aid Board","LAB075",0]
["",null,null,null,null,null,null,null,"","","",0,"",0,0,"1 - Scottish Natural Heritage","SNH075",0]
["",null,null,null,null,null,null,null,"","","",0,"",0,0,"1 - Scottish Police Services Authority","SPA075",0]
["",null,null,null,null,null,null,null,"","","",0,"",0,0,"1 - Scottish Public Pensions Agency","SNP914",0]
["",null,null,null,null,null,null,null,"","","",0,"",0,0,"1 - Scottish Qualifications Authority","SQA075",0]
["",null,null,null,null,null,null,null,"","","",0,"",0,0,"1 - Scottish Social Services Council ","SSO075",0]
["",null,null,null,null,null,null,null,"","","",0,"",0,0,"1 - Scottish Teachers Pension Scheme","STP913",0]
["",null,null,null,null,null,null,null,"","","",0,"",0,0,"1 - Sea Fish Industry Authority","SIA003",0]
["",null,null,null,null,null,null,null,"","","",0,"",0,0,"1 - Security and Intelligence Agencies","SIV007",0]
["",null,null,null,null,null,null,null,"","","",0,"",0,0,"1 - Security Industry Authority","SIY034",0]
["",null,null,null,null,null,null,null,"","","",0,"",0,0,"1 - Security Vetting Appeals Panel","CAB010",0]
["",null,null,null,null,null,null,null,"","","",0,"",0,0,"1 - Sellafield Limited","DEC066",0]
["",null,null,null,null,null,null,null,"","","",0,"",0,0,"1 - Senior Salaries Review Body","CAB010",0]
["",null,null,null,null,null,null,null,"","","",0,"",0,0,"1 - Sentencing Council for England and Wales","LCD047",0]
["",null,null,null,null,null,null,null,"","","",0,"",0,0,"1 - Serious Fraud Office","SFO019",0]
["",null,null,null,null,null,null,null,"","","",0,"",0,0,"1 - Serious Organised Crime Agency","SOC034",0]
["",null,null,null,null,null,null,null,"","","",0,"",0,0,"1 - Sir John Soane’s Museum","SJS048",0]
["",null,null,null,null,null,null,null,"","","",0,"",0,0,"1 - Skills Development Scotland","SDS075",0]
["",null,null,null,null,null,null,null,"","","",0,"",0,0,"1 - Skills Funding Agency","DTI084",0]
["",null,null,null,null,null,null,null,"","","",0,"",0,0,"1 - Skipton Fund Ltd","DOH033",0]
["",null,null,null,null,null,null,null,"","","",0,"",0,0,"1 - Social Science Research Committee","FSA026",0]
["",null,null,null,null,null,null,null,"","","",0,"",0,0,"1 - Social Security Advisory Committee (SSAC)","DWP032",0]
[{"$f":"IF(I535=\"\",\"\",IF(I535=\"Complete\",\"Y\",\"N\"))","v":""},null,null,null,null,null,null,null,{"$f":"IF(COUNTA(B535:G535)=0,\"\",IF(OR(B535=\"\",C535=\"\"),\"Please select item types from the drop down lists in columns B & C\",IF(D535=\"\",\"Please enter description/details in column C\",IF(E535=\"\",\"Please enter amount\",IF(F535=\"\",\"Please select 'Revenue' or 'Capital' from the drop down list in column E\",IF(AND(G535=\"\",B535<>\"Employee Accrual\"),\"Please select the Counterparty from the drop down list in colum F\",IF(AND(G535=\"0 - Essex County Council\",H535=\"\"),\"Please enter the name of the ECC contact who asked you to raise this entry\",IF(COUNTIF(P:P,G535)=0,\"Counterparty not valid. Please check\",\"Complete\"))))))))","v":""},{"$f":"IF(AND(B535=\"Debtor\",F535=\"Revenue\"),1,IF(AND(B535=\"P.I.A.\",F535=\"Revenue\"),2,IF(AND(B535=\"Debtor\",F535=\"Capital\"),3,IF(AND(B535=\"P.I.A.\",F535=\"Capital\"),4,\"\"))))","v":""},{"$f":"IF(AND(B535=\"Creditor\",F535=\"Revenue\"),5,IF(AND(B535=\"R.I.A.\",F535=\"Revenue\"),6,IF(AND(B535=\"Creditor\",F535=\"Capital\"),7,IF(AND(B535=\"R.I.A.\",F535=\"Capital\"),8,\"\"))))","v":""},{"$f":"IF(A535=\"N\",1,0)","v":0},{"$f":"J535&K535&LEFT(G535,1)","v":""},{"$f":"IF(AND(ISBLANK(F535),B535<>0),1,0)","v":0},{"$f":"IF(AND(ISBLANK(G535),B535<>0,B535<>\"Employee Accrual\"),1,0)","v":0},"1 - South East Development Agency","DTI084",{"$f":"IF(AND(ISBLANK(C535),B535<>0),1,0)","v":0}]
["",null,null,null,null,null,null,null,"","","",0,"",0,0,"1 - South Eastern Education and Library Board - Northern Ireland","SEE203",0]
["",null,null,null,null,null,null,null,"","","",0,"",0,0,"1 - South West of England Regional Development Agency","DTI084",0]
["",null,null,null,null,null,null,null,"","","",0,"",0,0,"1 - Southern Education and Library Board","SEB203",0]
["",null,null,null,null,null,null,null,"","","",0,"",0,0,"1 - Southern Waste Management Partnership (SWaMP2008)","NIE099",0]
["",null,null,null,null,null,null,null,"","","",0,"",0,0,"1 - Sport England Lottery","SEL048",0]
["",null,null,null,null,null,null,null,"","","",0,"",0,0,"1 - Sports Council for Northern Ireland","SCN202",0]
["",null,null,null,null,null,null,null,"","","",0,"",0,0,"1 - Sports Council for Northern Ireland Lottery Distribution Account","SNL851",0]
["",null,null,null,null,null,null,null,"","","",0,"",0,0,"1 - Sports Council for Wales","SCW090",0]
["",null,null,null,null,null,null,null,"","","",0,"",0,0,"1 - Sports Council for Wales National Lottery","SCL090",0]
["",null,null,null,null,null,null,null,"","","",0,"",0,0,"1 - Sports Ground Safety Authority","DCM048",0]
["",null,null,null,null,null,null,null,"","","",0,"",0,0,"1 - Sportscotland","SPS075",0]
["",null,null,null,null,null,null,null,"","","",0,"",0,0,"1 - Staff Commission for Education and Library Boards","NIE099",0]
["",null,null,null,null,null,null,null,"","","",0,"",0,0,"1 - Standards and Testing Agency","DES022",0]
["",null,null,null,null,null,null,null,"","","",0,"",0,0,"1 - Standards Board for England","DPM085",0]
["",null,null,null,null,null,null,null,"","","",0,"",0,0,"1 - STFC Innovations Ltd","DTI084",0]
["",null,null,null,null,null,null,null,"","","",0,"",0,0,"1 - Strategic Health Authorities","DOH033",0]
["",null,null,null,null,null,null,null,"","","",0,"",0,0,"1 - Strategic Investment Board","SIB211",0]
["",null,null,null,null,null,null,null,"","","",0,"",0,0,"1 - Strategic Investment Board Limited","SIB211",0]
["",null,null,null,null,null,null,null,"","","",0,"",0,0,"1 - Stratford Village Development (GP) Ltd","DCM048",0]
["",null,null,null,null,null,null,null,"","","",0,"",0,0,"1 - Student Loans Company Limited","SLC084",0]
["",null,null,null,null,null,null,null,"","","",0,"",0,0,"1 - Sustainable Development Commission","SDC003",0]
["",null,null,null,null,null,null,null,"","","",0,"",0,0,"1 - Sutton Bridge Experimental Unit Limited","EFR003",0]
["",null,null,null,null,null,null,null,"","","",0,"",0,0,"1 - Tate Gallery","TGL048",0]
["",null,null,null,null,null,null,null,"","","",0,"",0,0,"1 - Tate Gallery Projects Limited","DCM048",0]
["",null,null,null,null,null,null,null,"","","",0,"",0,0,"1 - Teachers' Pension Scheme (England & Wales)","TPS904",0]
["",null,null,null,null,null,null,null,"","","",0,"",0,0,"1 - Teachers Superanuation Scheme Statements - Northern Ireland","SNI909",0]
["",null,null,null,null,null,null,null,"","","",0,"",0,0,"1 - Technical Advisory Board","HOF034",0]
["",null,null,null,null,null,null,null,"","","",0,"",0,0,"1 - Technology Strategy Board","TST084",0]
["",null,null,null,null,null,null,null,"","","",0,"",0,0,"1 - Tenant Services Authority","TSA085",0]
["",null,null,null,null,null,null,null,"","","",0,"",0,0,"1 - The Advisory Council on the Misuse of Drugs","HOF034",0]
["",null,null,null,null,null,null,null,"","","",0,"",0,0,"1 - The Commission for Equality and Human Rights","EHR034",0]
["",null,null,null,null,null,null,null,"","","",0,"",0,0,"1 - The Commonwealth Broadcasting  Association","DCM048",0]
["",null,null,null,null,null,null,null,"","","",0,"",0,0,"1 - The Dame Helen Gardner Bequest","DCM048",0]
["",null,null,null,null,null,null,null,"","","",0,"",0,0,"1 - The Development Fund","DCM048",0]
["",null,null,null,null,null,null,null,"","","",0,"",0,0,"1 - The Great Britain-China Centre","FCO027",0]
["",null,null,null,null,null,null,null,"","","",0,"",0,0,"1 - The Historic Buildings and Monuments Commission for England","DCM048",0]
["",null,null,null,null,null,null,null,"","","",0,"",0,0,"1 - The Independent Commission for Aid Impact","DID030",0]
["",null,null,null,null,null,null,null,"","","",0,"",0,0,"1 - The Information Centre","DOH033",0]
["",null,null,null,null,null,null,null,"","","",0,"",0,0,"1 - The Leasehold Advisory Service","DPM085",0]
["",null,null,null,null,null,null,null,"","","",0,"",0,0,"1 - The National Archives","PRO067",0]
["",null,null,null,null,null,null,null,"","","",0,"",0,0,"1 - The National College for School Leadership Limited","NCS022",0]
["",null,null,null,null,null,null,null,"","","",0,"",0,0,"1 - The NHS Pay Review Body","DOH033",0]
["",null,null,null,null,null,null,null,"","","",0,"",0,0,"1 - The Number 3 Trust Fund","DCM048",0]
["",null,null,null,null,null,null,null,"","","",0,"",0,0,"1 - The Pension, Disability and Carers Service (PDCS)","DWP032",0]
["",null,null,null,null,null,null,null,"","","",0,"",0,0,"1 - The Pensions Advisory Service Limited (TPAS)","DWP032",0]
["",null,null,null,null,null,null,null,"","","",0,"",0,0,"1 - The Pensions Ombudsman (TPO)","DWP032",0]
["",null,null,null,null,null,null,null,"","","",0,"",0,0,"1 - The Pensions Regulator (TPR)","TPR032",0]
["",null,null,null,null,null,null,null,"","","",0,"",0,0,"1 - The Portrait Fund","DCM048",0]
["",null,null,null,null,null,null,null,"","","",0,"",0,0,"1 - The Sports Council Trust Company","DCM048",0]
["",null,null,null,null,null,null,null,"","","",0,"",0,0,"1 - The Westminster Foundation for Democracy Limited","FCO027",0]
["",null,null,null,null,null,null,null,"","","",0,"",0,0,"1 - Theatres Trust","DCM048",0]
["",null,null,null,null,null,null,null,"","","",0,"",0,0,"1 - Thurrock Development Corporation","UDC085",0]
["",null,null,null,null,null,null,null,"","","",0,"",0,0,"1 - Traffic Commissioners/Licensing Authorities","DFT004",0]
["",null,null,null,null,null,null,null,"","","",0,"",0,0,"1 - Training and Development Agency for Schools","TTA022",0]
["",null,null,null,null,null,null,null,"","","",0,"",0,0,"1 - Treasure Valuation Committee","DCM048",0]
["",null,null,null,null,null,null,null,"","","",0,"",0,0,"1 - Tribunal Procedure Committee","LCD047",0]
["",null,null,null,null,null,null,null,"","","",0,"",0,0,"1 - UK Anti-Doping","DCM048",0]
["",null,null,null,null,null,null,null,"","","",0,"",0,0,"1 - UK Debt Management Office","HMT087",0]
["",null,null,null,null,null,null,null,"","","",0,"",0,0,"1 - UK Financial Investments Ltd","HMT087",0]
["",null,null,null,null,null,null,null,"","","",0,"",0,0,"1 - UK Space Agency","DTI084",0]
["",null,null,null,null,null,null,null,"","","",0,"",0,0,"1 - UK Sport","UKS048",0]
["",null,null,null,null,null,null,null,"","","",0,"",0,0,"1 - UK Sport Council","DCM048",0]
["",null,null,null,null,null,null,null,"","","",0,"",0,0,"1 - UK Trade & Investment","BTI013",0]
[{"$f":"IF(I599=\"\",\"\",IF(I599=\"Complete\",\"Y\",\"N\"))","v":""},null,null,null,null,null,null,null,{"$f":"IF(COUNTA(B599:G599)=0,\"\",IF(OR(B599=\"\",C599=\"\"),\"Please select item types from the drop down lists in columns B & C\",IF(D599=\"\",\"Please enter description/details in column C\",IF(E599=\"\",\"Please enter amount\",IF(F599=\"\",\"Please select 'Revenue' or 'Capital' from the drop down list in column E\",IF(AND(G599=\"\",B599<>\"Employee Accrual\"),\"Please select the Counterparty from the drop down list in colum F\",IF(AND(G599=\"0 - Essex County Council\",H599=\"\"),\"Please enter the name of the ECC contact who asked you to raise this entry\",IF(COUNTIF(P:P,G599)=0,\"Counterparty not valid. Please check\",\"Complete\"))))))))","v":""},{"$f":"IF(AND(B599=\"Debtor\",F599=\"Revenue\"),1,IF(AND(B599=\"P.I.A.\",F599=\"Revenue\"),2,IF(AND(B599=\"Debtor\",F599=\"Capital\"),3,IF(AND(B599=\"P.I.A.\",F599=\"Capital\"),4,\"\"))))","v":""},{"$f":"IF(AND(B599=\"Creditor\",F599=\"Revenue\"),5,IF(AND(B599=\"R.I.A.\",F599=\"Revenue\"),6,IF(AND(B599=\"Creditor\",F599=\"Capital\"),7,IF(AND(B599=\"R.I.A.\",F599=\"Capital\"),8,\"\"))))","v":""},{"$f":"IF(A599=\"N\",1,0)","v":0},{"$f":"J599&K599&LEFT(G599,1)","v":""},{"$f":"IF(AND(ISBLANK(F599),B599<>0),1,0)","v":0},{"$f":"IF(AND(ISBLANK(G599),B599<>0,B599<>\"Employee Accrual\"),1,0)","v":0},"1 - UKAEA pension schemes","UKP905",{"$f":"IF(AND(ISBLANK(C599),B599<>0),1,0)","v":0}]
["",null,null,null,null,null,null,null,"","","",0,"",0,0,"1 - Ulster Supported Employment Limited","USE207",0]
["",null,null,null,null,null,null,null,"","","",0,"",0,0,"1 - United Kingdom Atomic Energy Authority","UKA084",0]
["",null,null,null,null,null,null,null,"","","",0,"",0,0,"1 - United Kingdom Border Agency","HOF034",0]
["",null,null,null,null,null,null,null,"","","",0,"",0,0,"1 - United Kingdom Commission for Employment and Skills","UKC084",0]
["",null,null,null,null,null,null,null,"","","",0,"",0,0,"1 - University for Industry Limited ","UNI084",0]
["",null,null,null,null,null,null,null,"","","",0,"",0,0,"1 - Valuation Office Agency","ILR041",0]
["",null,null,null,null,null,null,null,"","","",0,"",0,0,"1 - Valuation Tribunal Service","VTS085",0]
["",null,null,null,null,null,null,null,"","","",0,"",0,0,"1 - Vehicle Excise Duty","VED837",0]
["",null,null,null,null,null,null,null,"","","",0,"",0,0,"1 - Veterinary Products Committee","EFR003",0]
["",null,null,null,null,null,null,null,"","","",0,"",0,0,"1 - Victims Advisory Panel","LCD047",0]
["",null,null,null,null,null,null,null,"","","",0,"",0,0,"1 - Victims’ Commissioner","LCD047",0]
["",null,null,null,null,null,null,null,"","","",0,"",0,0,"1 - Victoria and Albert Museum","VAM048",0]
["",null,null,null,null,null,null,null,"","","",0,"",0,0,"1 - VisitBritain","BTA048",0]
["",null,null,null,null,null,null,null,"","","",0,"",0,0,"1 - VisitScotland","STB075",0]
["",null,null,null,null,null,null,null,"","","",0,"",0,0,"1 - Wales Centre for Health","WCH090",0]
["",null,null,null,null,null,null,null,"","","",0,"",0,0,"1 - Wallace Collection","WCO048",0]
["",null,null,null,null,null,null,null,"","","",0,"",0,0,"1 - War Pensions Committees","MOD017",0]
["",null,null,null,null,null,null,null,"","","",0,"",0,0,"1 - Welsh Assembly Government","WAG090",0]
["",null,null,null,null,null,null,null,"","","",0,"",0,0,"1 - Welsh Consolidated Fund","WCF854",0]
["",null,null,null,null,null,null,null,"","","",0,"",0,0,"1 - Welsh Language Board","WLB090",0]
["",null,null,null,null,null,null,null,"","","",0,"",0,0,"1 - Welsh Levy Board","LEB090",0]
["",null,null,null,null,null,null,null,"","","",0,"",0,0,"1 - West Northamptonshire Development Corporation","WNU085",0]
["",null,null,null,null,null,null,null,"","","",0,"",0,0,"1 - Western Education and Library Board","WEL203",0]
["",null,null,null,null,null,null,null,"","","",0,"",0,0,"1 - Yorkshire Forward","YHD084",0]
["",null,null,null,null,null,null,null,"","","",0,"",0,0,"1 - Young People’s Learning Agency","YPL002",0]
["",null,null,null,null,null,null,null,"","","",0,"",0,0,"1 - Youth Council for Northern Ireland","NIE099",0]
["",null,null,null,null,null,null,null,"","","",0,"",0,0,"1 - Youth Justice Board for England and Wales","YJB047",0]
["",null,null,null,null,null,null,null,"","","",0,"",0,0,"2 - Adur District Council","E3831",0]
["",null,null,null,null,null,null,null,"","","",0,"",0,0,"2 - Allerdale Borough Council","E0931",0]
["",null,null,null,null,null,null,null,"","","",0,"",0,0,"2 - Amber Valley Borough Council","E1031",0]
["",null,null,null,null,null,null,null,"","","",0,"",0,0,"2 - Arun District Council","E3832",0]
["",null,null,null,null,null,null,null,"","","",0,"",0,0,"2 - Ashfield District Council","E3031",0]
["",null,null,null,null,null,null,null,"","","",0,"",0,0,"2 - Ashford Borough Council","E2231",0]
["",null,null,null,null,null,null,null,"","","",0,"",0,0,"2 - Avon and Somerset Police Authority","E6050",0]
["",null,null,null,null,null,null,null,"","","",0,"",0,0,"2 - Avon Fire Authority","E6101",0]
["",null,null,null,null,null,null,null,"","","",0,"",0,0,"2 - Aylesbury Vale District Council","E0431",0]
["",null,null,null,null,null,null,null,"","","",0,"",0,0,"2 - Babergh District Council","E3531",0]
["",null,null,null,null,null,null,null,"","","",0,"",0,0,"2 - Barking & Dagenham London Borough Council","E5030",0]
["",null,null,null,null,null,null,null,"","","",0,"",0,0,"2 - Barnet London Borough Council","E5031",0]
["",null,null,null,null,null,null,null,"","","",0,"",0,0,"2 - Barnsley Metropolitan Borough Council","E4401",0]
["",null,null,null,null,null,null,null,"","","",0,"",0,0,"2 - Barrow-in-Furness Borough Council","E0932",0]
["",null,null,null,null,null,null,null,"","","",0,"",0,0,"2 - Basildon District Council","E1531",0]
["",null,null,null,null,null,null,null,"","","",0,"",0,0,"2 - Basingstoke and Deane Borough Council","E1731",0]
["",null,null,null,null,null,null,null,"","","",0,"",0,0,"2 - Bassetlaw District Council","E3032",0]
["",null,null,null,null,null,null,null,"","","",0,"",0,0,"2 - Bath & North East Somerset Council","E0101",0]
["",null,null,null,null,null,null,null,"","","",0,"",0,0,"2 - Bedford Unitary Authority","E0202",0]
["",null,null,null,null,null,null,null,"","","",0,"",0,0,"2 - Bedfordshire and Luton Fire Authority","E6102",0]
["",null,null,null,null,null,null,null,"","","",0,"",0,0,"2 - Bedfordshire Police Authority","E6002",0]
["",null,null,null,null,null,null,null,"","","",0,"",0,0,"2 - Bexley London Borough Council","E5032",0]
["",null,null,null,null,null,null,null,"","","",0,"",0,0,"2 - Birmingham City Council","E4601",0]
["",null,null,null,null,null,null,null,"","","",0,"",0,0,"2 - Blaby District Council","E2431",0]
["",null,null,null,null,null,null,null,"","","",0,"",0,0,"2 - Blackburn with Darwen Unitary Authority","E2301",0]
["",null,null,null,null,null,null,null,"","","",0,"",0,0,"2 - Blackpool Unitary Authority","E2302",0]
["",null,null,null,null,null,null,null,"","","",0,"",0,0,"2 - Bolsover District Council","E1032",0]
["",null,null,null,null,null,null,null,"","","",0,"",0,0,"2 - Bolton Metropolitan Borough Council","E4201",0]
["",null,null,null,null,null,null,null,"","","",0,"",0,0,"2 - Boston Borough Council","E2531",0]
["",null,null,null,null,null,null,null,"","","",0,"",0,0,"2 - Bournemouth Council","E1202",0]
["",null,null,null,null,null,null,null,"","","",0,"",0,0,"2 - Bracknell Forest Borough Council","E0301",0]
["",null,null,null,null,null,null,null,"","","",0,"",0,0,"2 - Bradford City Council","E4701",0]
["",null,null,null,null,null,null,null,"","","",0,"",0,0,"2 - Braintree District Council","E1532",0]
["",null,null,null,null,null,null,null,"","","",0,"",0,0,"2 - Breckland District Council","E2631",0]
["",null,null,null,null,null,null,null,"","","",0,"",0,0,"2 - Brent London Borough Council","E5033",0]
["",null,null,null,null,null,null,null,"","","",0,"",0,0,"2 - Brentwood Borough Council","E1533",0]
[{"$f":"IF(I663=\"\",\"\",IF(I663=\"Complete\",\"Y\",\"N\"))","v":""},null,null,null,null,null,null,null,{"$f":"IF(COUNTA(B663:G663)=0,\"\",IF(OR(B663=\"\",C663=\"\"),\"Please select item types from the drop down lists in columns B & C\",IF(D663=\"\",\"Please enter description/details in column C\",IF(E663=\"\",\"Please enter amount\",IF(F663=\"\",\"Please select 'Revenue' or 'Capital' from the drop down list in column E\",IF(AND(G663=\"\",B663<>\"Employee Accrual\"),\"Please select the Counterparty from the drop down list in colum F\",IF(AND(G663=\"0 - Essex County Council\",H663=\"\"),\"Please enter the name of the ECC contact who asked you to raise this entry\",IF(COUNTIF(P:P,G663)=0,\"Counterparty not valid. Please check\",\"Complete\"))))))))","v":""},{"$f":"IF(AND(B663=\"Debtor\",F663=\"Revenue\"),1,IF(AND(B663=\"P.I.A.\",F663=\"Revenue\"),2,IF(AND(B663=\"Debtor\",F663=\"Capital\"),3,IF(AND(B663=\"P.I.A.\",F663=\"Capital\"),4,\"\"))))","v":""},{"$f":"IF(AND(B663=\"Creditor\",F663=\"Revenue\"),5,IF(AND(B663=\"R.I.A.\",F663=\"Revenue\"),6,IF(AND(B663=\"Creditor\",F663=\"Capital\"),7,IF(AND(B663=\"R.I.A.\",F663=\"Capital\"),8,\"\"))))","v":""},{"$f":"IF(A663=\"N\",1,0)","v":0},{"$f":"J663&K663&LEFT(G663,1)","v":""},{"$f":"IF(AND(ISBLANK(F663),B663<>0),1,0)","v":0},{"$f":"IF(AND(ISBLANK(G663),B663<>0,B663<>\"Employee Accrual\"),1,0)","v":0},"2 - Brighton & Hove City Council","E1401",{"$f":"IF(AND(ISBLANK(C663),B663<>0),1,0)","v":0}]
["",null,null,null,null,null,null,null,"","","",0,"",0,0,"2 - Bristol City Council","E0102",0]
["",null,null,null,null,null,null,null,"","","",0,"",0,0,"2 - Broadland District Council","E2632",0]
["",null,null,null,null,null,null,null,"","","",0,"",0,0,"2 - Broads Authority (The)","E6408",0]
["",null,null,null,null,null,null,null,"","","",0,"",0,0,"2 - Bromley London Borough Council","E5034",0]
["",null,null,null,null,null,null,null,"","","",0,"",0,0,"2 - Bromsgrove District Council","E1831",0]
["",null,null,null,null,null,null,null,"","","",0,"",0,0,"2 - Broxbourne Borough Council","E1931",0]
["",null,null,null,null,null,null,null,"","","",0,"",0,0,"2 - Broxtowe Borough Council","E3033",0]
["",null,null,null,null,null,null,null,"","","",0,"",0,0,"2 - Buckinghamshire and Milton Keynes Fire Authority","E6104",0]
["",null,null,null,null,null,null,null,"","","",0,"",0,0,"2 - Buckinghamshire County Council","E0421",0]
["",null,null,null,null,null,null,null,"","","",0,"",0,0,"2 - Burnley Borough Council","E2333",0]
["",null,null,null,null,null,null,null,"","","",0,"",0,0,"2 - Bury Metropolitan Borough Council","E4202",0]
["",null,null,null,null,null,null,null,"","","",0,"",0,0,"2 - Calderdale Metropolitan Borough Council","E4702",0]
["",null,null,null,null,null,null,null,"","","",0,"",0,0,"2 - Cambridge City Council","E0531",0]
["",null,null,null,null,null,null,null,"","","",0,"",0,0,"2 - Cambridgeshire and Peterborough Fire Authority","E6105",0]
["",null,null,null,null,null,null,null,"","","",0,"",0,0,"2 - Cambridgeshire County Council","E0521",0]
["",null,null,null,null,null,null,null,"","","",0,"",0,0,"2 - Cambridgeshire Police Authority","E6005",0]
["",null,null,null,null,null,null,null,"","","",0,"",0,0,"2 - Camden London Borough Council","E5011",0]
["",null,null,null,null,null,null,null,"","","",0,"",0,0,"2 - Cannock Chase District Council","E3431",0]
["",null,null,null,null,null,null,null,"","","",0,"",0,0,"2 - Canterbury City Council","E2232",0]
["",null,null,null,null,null,null,null,"","","",0,"",0,0,"2 - Carlisle City Council","E0933",0]
["",null,null,null,null,null,null,null,"","","",0,"",0,0,"2 - Castle Point Borough Council","E1534",0]
["",null,null,null,null,null,null,null,"","","",0,"",0,0,"2 - Central Bedfordshire Unitary Authority","E0203",0]
["",null,null,null,null,null,null,null,"","","",0,"",0,0,"2 - Charnwood Borough Council","E2432",0]
["",null,null,null,null,null,null,null,"","","",0,"",0,0,"2 - Chelmsford Borough Council","E1535",0]
["",null,null,null,null,null,null,null,"","","",0,"",0,0,"2 - Cheltenham Borough Council","E1631",0]
["",null,null,null,null,null,null,null,"","","",0,"",0,0,"2 - Cherwell District Council","E3131",0]
["",null,null,null,null,null,null,null,"","","",0,"",0,0,"2 - Cheshire East Unitary Authority","E0603",0]
["",null,null,null,null,null,null,null,"","","",0,"",0,0,"2 - Cheshire Fire Authority","E6106",0]
["",null,null,null,null,null,null,null,"","","",0,"",0,0,"2 - Cheshire Police Authority","E6006",0]
["",null,null,null,null,null,null,null,"","","",0,"",0,0,"2 - Cheshire West and Chester Unitary Authority","E0604",0]
["",null,null,null,null,null,null,null,"","","",0,"",0,0,"2 - Chesterfield Borough Council","E1033",0]
["",null,null,null,null,null,null,null,"","","",0,"",0,0,"2 - Chichester District Council","E3833",0]
["",null,null,null,null,null,null,null,"","","",0,"",0,0,"2 - Chiltern District Council","E0432",0]
["",null,null,null,null,null,null,null,"","","",0,"",0,0,"2 - Chorley Borough Council","E2334",0]
["",null,null,null,null,null,null,null,"","","",0,"",0,0,"2 - Christchurch Borough Council","E1232",0]
["",null,null,null,null,null,null,null,"","","",0,"",0,0,"2 - City of York Council","E2701",0]
["",null,null,null,null,null,null,null,"","","",0,"",0,0,"2 - Cleveland Fire Authority","E6107",0]
["",null,null,null,null,null,null,null,"","","",0,"",0,0,"2 - Cleveland Police Authority","E6007",0]
["",null,null,null,null,null,null,null,"","","",0,"",0,0,"2 - Colchester Borough Council","E1536",0]
["",null,null,null,null,null,null,null,"","","",0,"",0,0,"2 - Common Council of the City of London","E5010",0]
["",null,null,null,null,null,null,null,"","","",0,"",0,0,"2 - Copeland Borough Council","E0934",0]
["",null,null,null,null,null,null,null,"","","",0,"",0,0,"2 - Corby Borough Council","E2831",0]
["",null,null,null,null,null,null,null,"","","",0,"",0,0,"2 - Cornwall Unitary Authority","E0801",0]
["",null,null,null,null,null,null,null,"","","",0,"",0,0,"2 - Cotswold District Council","E1632",0]
["",null,null,null,null,null,null,null,"","","",0,"",0,0,"2 - County Durham and Darlington Fire and Rescue Authority","E6113",0]
["",null,null,null,null,null,null,null,"","","",0,"",0,0,"2 - County Durham Unitary Authority","E1302",0]
["",null,null,null,null,null,null,null,"","","",0,"",0,0,"2 - Coventry City Council","E4602",0]
["",null,null,null,null,null,null,null,"","","",0,"",0,0,"2 - Craven District Council","E2731",0]
["",null,null,null,null,null,null,null,"","","",0,"",0,0,"2 - Crawley Borough Council","E3834",0]
["",null,null,null,null,null,null,null,"","","",0,"",0,0,"2 - Croydon London Borough Council","E5035",0]
["",null,null,null,null,null,null,null,"","","",0,"",0,0,"2 - Cumbria County Council","E0920",0]
["",null,null,null,null,null,null,null,"","","",0,"",0,0,"2 - Cumbria Police Authority","E6009",0]
["",null,null,null,null,null,null,null,"","","",0,"",0,0,"2 - Dacorum Borough Council","E1932",0]
["",null,null,null,null,null,null,null,"","","",0,"",0,0,"2 - Darlington Borough Council","E1301",0]
["",null,null,null,null,null,null,null,"","","",0,"",0,0,"2 - Dartford Borough Council","E2233",0]
["",null,null,null,null,null,null,null,"","","",0,"",0,0,"2 - Dartmoor National Park Authority","E6401",0]
["",null,null,null,null,null,null,null,"","","",0,"",0,0,"2 - Daventry District Council","E2832",0]
["",null,null,null,null,null,null,null,"","","",0,"",0,0,"2 - Derby City Council","E1001",0]
["",null,null,null,null,null,null,null,"","","",0,"",0,0,"2 - Derbyshire County Council","E1021",0]
["",null,null,null,null,null,null,null,"","","",0,"",0,0,"2 - Derbyshire Dales District Council","E1035",0]
["",null,null,null,null,null,null,null,"","","",0,"",0,0,"2 - Derbyshire Fire Authority","E6110",0]
["",null,null,null,null,null,null,null,"","","",0,"",0,0,"2 - Derbyshire Police Authority","E6010",0]
["",null,null,null,null,null,null,null,"","","",0,"",0,0,"2 - Devon & Somerset Fire and Rescue Authority","E6161",0]
[{"$f":"IF(I727=\"\",\"\",IF(I727=\"Complete\",\"Y\",\"N\"))","v":""},null,null,null,null,null,null,null,{"$f":"IF(COUNTA(B727:G727)=0,\"\",IF(OR(B727=\"\",C727=\"\"),\"Please select item types from the drop down lists in columns B & C\",IF(D727=\"\",\"Please enter description/details in column C\",IF(E727=\"\",\"Please enter amount\",IF(F727=\"\",\"Please select 'Revenue' or 'Capital' from the drop down list in column E\",IF(AND(G727=\"\",B727<>\"Employee Accrual\"),\"Please select the Counterparty from the drop down list in colum F\",IF(AND(G727=\"0 - Essex County Council\",H727=\"\"),\"Please enter the name of the ECC contact who asked you to raise this entry\",IF(COUNTIF(P:P,G727)=0,\"Counterparty not valid. Please check\",\"Complete\"))))))))","v":""},{"$f":"IF(AND(B727=\"Debtor\",F727=\"Revenue\"),1,IF(AND(B727=\"P.I.A.\",F727=\"Revenue\"),2,IF(AND(B727=\"Debtor\",F727=\"Capital\"),3,IF(AND(B727=\"P.I.A.\",F727=\"Capital\"),4,\"\"))))","v":""},{"$f":"IF(AND(B727=\"Creditor\",F727=\"Revenue\"),5,IF(AND(B727=\"R.I.A.\",F727=\"Revenue\"),6,IF(AND(B727=\"Creditor\",F727=\"Capital\"),7,IF(AND(B727=\"R.I.A.\",F727=\"Capital\"),8,\"\"))))","v":""},{"$f":"IF(A727=\"N\",1,0)","v":0},{"$f":"J727&K727&LEFT(G727,1)","v":""},{"$f":"IF(AND(ISBLANK(F727),B727<>0),1,0)","v":0},{"$f":"IF(AND(ISBLANK(G727),B727<>0,B727<>\"Employee Accrual\"),1,0)","v":0},"2 - Devon and Cornwall Police Authority","E6051",{"$f":"IF(AND(ISBLANK(C727),B727<>0),1,0)","v":0}]
["",null,null,null,null,null,null,null,"","","",0,"",0,0,"2 - Devon County Council","E1121",0]
["",null,null,null,null,null,null,null,"","","",0,"",0,0,"2 - Doncaster Metropolitan Borough Council","E4402",0]
["",null,null,null,null,null,null,null,"","","",0,"",0,0,"2 - Dorset County Council","E1221",0]
["",null,null,null,null,null,null,null,"","","",0,"",0,0,"2 - Dorset Fire Authority","E6112",0]
["",null,null,null,null,null,null,null,"","","",0,"",0,0,"2 - Dorset Police Authority","E6012",0]
["",null,null,null,null,null,null,null,"","","",0,"",0,0,"2 - Dover District Council","E2234",0]
["",null,null,null,null,null,null,null,"","","",0,"",0,0,"2 - Dudley Metropolitan Borough Council","E4603",0]
["",null,null,null,null,null,null,null,"","","",0,"",0,0,"2 - Durham Police Authority","E6013",0]
["",null,null,null,null,null,null,null,"","","",0,"",0,0,"2 - Ealing London Borough Council","E5036",0]
["",null,null,null,null,null,null,null,"","","",0,"",0,0,"2 - East Cambridgeshire District Council","E0532",0]
["",null,null,null,null,null,null,null,"","","",0,"",0,0,"2 - East Devon District Council","E1131",0]
["",null,null,null,null,null,null,null,"","","",0,"",0,0,"2 - East Dorset District Council","E1233",0]
["",null,null,null,null,null,null,null,"","","",0,"",0,0,"2 - East Hampshire District Council","E1732",0]
["",null,null,null,null,null,null,null,"","","",0,"",0,0,"2 - East Hertfordshire District Council","E1933",0]
["",null,null,null,null,null,null,null,"","","",0,"",0,0,"2 - East Lindsey District Council","E2532",0]
["",null,null,null,null,null,null,null,"","","",0,"",0,0,"2 - East London Waste Authority","E6201",0]
["",null,null,null,null,null,null,null,"","","",0,"",0,0,"2 - East Northamptonshire District Council","E2833",0]
["",null,null,null,null,null,null,null,"","","",0,"",0,0,"2 - East Riding of Yorkshire Council","E2001",0]
["",null,null,null,null,null,null,null,"","","",0,"",0,0,"2 - East Staffordshire Borough Council","E3432",0]
["",null,null,null,null,null,null,null,"","","",0,"",0,0,"2 - East Sussex County Council","E1421",0]
["",null,null,null,null,null,null,null,"","","",0,"",0,0,"2 - East Sussex Fire Authority","E6114",0]
["",null,null,null,null,null,null,null,"","","",0,"",0,0,"2 - Eastbourne Borough Council","E1432",0]
["",null,null,null,null,null,null,null,"","","",0,"",0,0,"2 - Eastleigh Borough Council","E1733",0]
["",null,null,null,null,null,null,null,"","","",0,"",0,0,"2 - Eden District Council","E0935",0]
["",null,null,null,null,null,null,null,"","","",0,"",0,0,"2 - Elmbridge Borough Council","E3631",0]
["",null,null,null,null,null,null,null,"","","",0,"",0,0,"2 - Enfield London Borough Council","E5037",0]
["",null,null,null,null,null,null,null,"","","",0,"",0,0,"2 - Epping Forest District Council","E1537",0]
["",null,null,null,null,null,null,null,"","","",0,"",0,0,"2 - Epsom and Ewell Borough Council","E3632",0]
["",null,null,null,null,null,null,null,"","","",0,"",0,0,"2 - Erewash Borough Council","E1036",0]
["",null,null,null,null,null,null,null,"","","",0,"",0,0,"2 - Essex Fire Authority","E6115",0]
["",null,null,null,null,null,null,null,"","","",0,"",0,0,"2 - Essex Police Authority","E6071",0]
["",null,null,null,null,null,null,null,"","","",0,"",0,0,"2 - Exeter City Council","E1132",0]
["",null,null,null,null,null,null,null,"","","",0,"",0,0,"2 - Exmoor National Park Authority","E6402",0]
["",null,null,null,null,null,null,null,"","","",0,"",0,0,"2 - Fareham Borough Council","E1734",0]
["",null,null,null,null,null,null,null,"","","",0,"",0,0,"2 - Fenland District Council","E0533",0]
["",null,null,null,null,null,null,null,"","","",0,"",0,0,"2 - Forest Heath District Council","E3532",0]
["",null,null,null,null,null,null,null,"","","",0,"",0,0,"2 - Forest of Dean District Council","E1633",0]
["",null,null,null,null,null,null,null,"","","",0,"",0,0,"2 - Fylde Borough Council","E2335",0]
["",null,null,null,null,null,null,null,"","","",0,"",0,0,"2 - Gateshead Council","E4501",0]
["",null,null,null,null,null,null,null,"","","",0,"",0,0,"2 - Gedling Borough Council","E3034",0]
["",null,null,null,null,null,null,null,"","","",0,"",0,0,"2 - Gloucester City Council","E1634",0]
["",null,null,null,null,null,null,null,"","","",0,"",0,0,"2 - Gloucestershire County Council","E1620",0]
["",null,null,null,null,null,null,null,"","","",0,"",0,0,"2 - Gloucestershire Police Authority","E6016",0]
["",null,null,null,null,null,null,null,"","","",0,"",0,0,"2 - Gosport Borough Council","E1735",0]
["",null,null,null,null,null,null,null,"","","",0,"",0,0,"2 - Gravesham Borough Council","E2236",0]
["",null,null,null,null,null,null,null,"","","",0,"",0,0,"2 - Great Yarmouth Borough Council","E2633",0]
["",null,null,null,null,null,null,null,"","","",0,"",0,0,"2 - Greater London Authority","E5100",0]
["",null,null,null,null,null,null,null,"","","",0,"",0,0,"2 - Greater Manchester Fire and Rescue Authority","E6142",0]
["",null,null,null,null,null,null,null,"","","",0,"",0,0,"2 - Greater Manchester Police Authority","E6042",0]
["",null,null,null,null,null,null,null,"","","",0,"",0,0,"2 - Greater Manchester Waste Disposal Authority","E6202",0]
["",null,null,null,null,null,null,null,"","","",0,"",0,0,"2 - Greenwich London Borough Council","E5012",0]
["",null,null,null,null,null,null,null,"","","",0,"",0,0,"2 - Guildford Borough Council","E3633",0]
["",null,null,null,null,null,null,null,"","","",0,"",0,0,"2 - Hackney London Borough Council","E5013",0]
["",null,null,null,null,null,null,null,"","","",0,"",0,0,"2 - Halton Borough Council","E0601",0]
["",null,null,null,null,null,null,null,"","","",0,"",0,0,"2 - Hambleton District Council","E2732",0]
["",null,null,null,null,null,null,null,"","","",0,"",0,0,"2 - Hammersmith and Fulham London Borough Council","E5014",0]
["",null,null,null,null,null,null,null,"","","",0,"",0,0,"2 - Hampshire County Council","E1721",0]
["",null,null,null,null,null,null,null,"","","",0,"",0,0,"2 - Hampshire Fire and Rescue Authority","E6117",0]
["",null,null,null,null,null,null,null,"","","",0,"",0,0,"2 - Hampshire Police Authority","E6052",0]
["",null,null,null,null,null,null,null,"","","",0,"",0,0,"2 - Harborough District Council","E2433",0]
["",null,null,null,null,null,null,null,"","","",0,"",0,0,"2 - Haringey London Borough Council","E5038",0]
["",null,null,null,null,null,null,null,"","","",0,"",0,0,"2 - Harlow District Council","E1538",0]
["",null,null,null,null,null,null,null,"","","",0,"",0,0,"2 - Harrogate Borough Council","E2753",0]
[{"$f":"IF(I791=\"\",\"\",IF(I791=\"Complete\",\"Y\",\"N\"))","v":""},null,null,null,null,null,null,null,{"$f":"IF(COUNTA(B791:G791)=0,\"\",IF(OR(B791=\"\",C791=\"\"),\"Please select item types from the drop down lists in columns B & C\",IF(D791=\"\",\"Please enter description/details in column C\",IF(E791=\"\",\"Please enter amount\",IF(F791=\"\",\"Please select 'Revenue' or 'Capital' from the drop down list in column E\",IF(AND(G791=\"\",B791<>\"Employee Accrual\"),\"Please select the Counterparty from the drop down list in colum F\",IF(AND(G791=\"0 - Essex County Council\",H791=\"\"),\"Please enter the name of the ECC contact who asked you to raise this entry\",IF(COUNTIF(P:P,G791)=0,\"Counterparty not valid. Please check\",\"Complete\"))))))))","v":""},{"$f":"IF(AND(B791=\"Debtor\",F791=\"Revenue\"),1,IF(AND(B791=\"P.I.A.\",F791=\"Revenue\"),2,IF(AND(B791=\"Debtor\",F791=\"Capital\"),3,IF(AND(B791=\"P.I.A.\",F791=\"Capital\"),4,\"\"))))","v":""},{"$f":"IF(AND(B791=\"Creditor\",F791=\"Revenue\"),5,IF(AND(B791=\"R.I.A.\",F791=\"Revenue\"),6,IF(AND(B791=\"Creditor\",F791=\"Capital\"),7,IF(AND(B791=\"R.I.A.\",F791=\"Capital\"),8,\"\"))))","v":""},{"$f":"IF(A791=\"N\",1,0)","v":0},{"$f":"J791&K791&LEFT(G791,1)","v":""},{"$f":"IF(AND(ISBLANK(F791),B791<>0),1,0)","v":0},{"$f":"IF(AND(ISBLANK(G791),B791<>0,B791<>\"Employee Accrual\"),1,0)","v":0},"2 - Harrow London Borough Council","E5039",{"$f":"IF(AND(ISBLANK(C791),B791<>0),1,0)","v":0}]
["",null,null,null,null,null,null,null,"","","",0,"",0,0,"2 - Hart District Council","E1736",0]
["",null,null,null,null,null,null,null,"","","",0,"",0,0,"2 - Hartlepool Borough Council","E0701",0]
["",null,null,null,null,null,null,null,"","","",0,"",0,0,"2 - Hastings Borough Council","E1433",0]
["",null,null,null,null,null,null,null,"","","",0,"",0,0,"2 - Havant Borough Council","E1737",0]
["",null,null,null,null,null,null,null,"","","",0,"",0,0,"2 - Havering London Borough Council","E5040",0]
["",null,null,null,null,null,null,null,"","","",0,"",0,0,"2 - Hereford and Worcester Fire and Rescue Authority","E6118",0]
["",null,null,null,null,null,null,null,"","","",0,"",0,0,"2 - Herefordshire Council","E1801",0]
["",null,null,null,null,null,null,null,"","","",0,"",0,0,"2 - Hertfordshire County Council","E1920",0]
["",null,null,null,null,null,null,null,"","","",0,"",0,0,"2 - Hertfordshire Police Authority","E6072",0]
["",null,null,null,null,null,null,null,"","","",0,"",0,0,"2 - Hertsmere Borough Council","E1934",0]
["",null,null,null,null,null,null,null,"","","",0,"",0,0,"2 - High Peak Borough Council","E1037",0]
["",null,null,null,null,null,null,null,"","","",0,"",0,0,"2 - Hillingdon London Borough Council","E5041",0]
["",null,null,null,null,null,null,null,"","","",0,"",0,0,"2 - Hinckley and Bosworth Borough Council","E2434",0]
["",null,null,null,null,null,null,null,"","","",0,"",0,0,"2 - Horsham District Council","E3835",0]
["",null,null,null,null,null,null,null,"","","",0,"",0,0,"2 - Hounslow London Borough Council","E5042",0]
["",null,null,null,null,null,null,null,"","","",0,"",0,0,"2 - Humberside Fire Authority","E6120",0]
["",null,null,null,null,null,null,null,"","","",0,"",0,0,"2 - Humberside Police Authority","E6020",0]
["",null,null,null,null,null,null,null,"","","",0,"",0,0,"2 - Huntingdonshire District Council","E0551",0]
["",null,null,null,null,null,null,null,"","","",0,"",0,0,"2 - Hyndburn Borough Council","E2336",0]
["",null,null,null,null,null,null,null,"","","",0,"",0,0,"2 - Ipswich Borough Council","E3533",0]
["",null,null,null,null,null,null,null,"","","",0,"",0,0,"2 - Isle of Wight Council","E2101",0]
["",null,null,null,null,null,null,null,"","","",0,"",0,0,"2 - Isles of Scilly (Council of the)","E4001",0]
["",null,null,null,null,null,null,null,"","","",0,"",0,0,"2 - Islington London Borough Council","E5015",0]
["",null,null,null,null,null,null,null,"","","",0,"",0,0,"2 - Kensington and Chelsea Council (Royal Borough of)","E5016",0]
["",null,null,null,null,null,null,null,"","","",0,"",0,0,"2 - Kent and Medway Fire and Rescue Authority","E6122",0]
["",null,null,null,null,null,null,null,"","","",0,"",0,0,"2 - Kent County Council","E2221",0]
["",null,null,null,null,null,null,null,"","","",0,"",0,0,"2 - Kent Police Authority","E6022",0]
["",null,null,null,null,null,null,null,"","","",0,"",0,0,"2 - Kettering Borough Council","E2834",0]
["",null,null,null,null,null,null,null,"","","",0,"",0,0,"2 - Kings Lynn and West Norfolk Borough Council","E2634",0]
["",null,null,null,null,null,null,null,"","","",0,"",0,0,"2 - Kingston upon Hull City Council","E2002",0]
["",null,null,null,null,null,null,null,"","","",0,"",0,0,"2 - Kingston upon Thames Council (Royal Borough of)","E5043",0]
["",null,null,null,null,null,null,null,"","","",0,"",0,0,"2 - Kirklees Metropolitan Council","E4703",0]
["",null,null,null,null,null,null,null,"","","",0,"",0,0,"2 - Knowsley Metropolitan Borough Council","E4301",0]
["",null,null,null,null,null,null,null,"","","",0,"",0,0,"2 - Lake District National Park Authority","E6403",0]
["",null,null,null,null,null,null,null,"","","",0,"",0,0,"2 - Lambeth London Borough Council","E5017",0]
["",null,null,null,null,null,null,null,"","","",0,"",0,0,"2 - Lancashire County Council","E2321",0]
["",null,null,null,null,null,null,null,"","","",0,"",0,0,"2 - Lancashire Fire Authority","E6123",0]
["",null,null,null,null,null,null,null,"","","",0,"",0,0,"2 - Lancashire Police Authority","E6023",0]
["",null,null,null,null,null,null,null,"","","",0,"",0,0,"2 - Lancaster City Council","E2337",0]
["",null,null,null,null,null,null,null,"","","",0,"",0,0,"2 - Lee Valley Regional Park Authority","E6803",0]
["",null,null,null,null,null,null,null,"","","",0,"",0,0,"2 - Leeds City Council","E4704",0]
["",null,null,null,null,null,null,null,"","","",0,"",0,0,"2 - Leicester City Council","E2401",0]
["",null,null,null,null,null,null,null,"","","",0,"",0,0,"2 - Leicester, Leicestershire and Rutland Combined Fire Authority","E6124",0]
["",null,null,null,null,null,null,null,"","","",0,"",0,0,"2 - Leicestershire County Council","E2421",0]
["",null,null,null,null,null,null,null,"","","",0,"",0,0,"2 - Leicestershire Police Authority","E6024",0]
["",null,null,null,null,null,null,null,"","","",0,"",0,0,"2 - Lewes District Council","E1435",0]
["",null,null,null,null,null,null,null,"","","",0,"",0,0,"2 - Lewisham London Borough Council","E5018",0]
["",null,null,null,null,null,null,null,"","","",0,"",0,0,"2 - Lichfield District Council","E3433",0]
["",null,null,null,null,null,null,null,"","","",0,"",0,0,"2 - Lincoln City Council","E2533",0]
["",null,null,null,null,null,null,null,"","","",0,"",0,0,"2 - Lincolnshire County Council","E2520",0]
["",null,null,null,null,null,null,null,"","","",0,"",0,0,"2 - Lincolnshire Police Authority","E6025",0]
["",null,null,null,null,null,null,null,"","","",0,"",0,0,"2 - Liverpool City Council","E4302",0]
["",null,null,null,null,null,null,null,"","","",0,"",0,0,"2 - London Development Agency","E5101",0]
["",null,null,null,null,null,null,null,"","","",0,"",0,0,"2 - London Fire and Emergency Planning Authority","E5102",0]
["",null,null,null,null,null,null,null,"","","",0,"",0,0,"2 - Luton Borough Council","E0201",0]
["",null,null,null,null,null,null,null,"","","",0,"",0,0,"2 - Maidstone Borough Council","E2237",0]
["",null,null,null,null,null,null,null,"","","",0,"",0,0,"2 - Maldon District Council","E1539",0]
["",null,null,null,null,null,null,null,"","","",0,"",0,0,"2 - Malvern Hills District Council","E1851",0]
["",null,null,null,null,null,null,null,"","","",0,"",0,0,"2 - Manchester City Council","E4203",0]
["",null,null,null,null,null,null,null,"","","",0,"",0,0,"2 - Mansfield District Council","E3035",0]
["",null,null,null,null,null,null,null,"","","",0,"",0,0,"2 - Medway Towns Unitary Authority (The)","E2201",0]
["",null,null,null,null,null,null,null,"","","",0,"",0,0,"2 - Melton Borough Council","E2436",0]
["",null,null,null,null,null,null,null,"","","",0,"",0,0,"2 - Mendip District Council","E3331",0]
[{"$f":"IF(I855=\"\",\"\",IF(I855=\"Complete\",\"Y\",\"N\"))","v":""},null,null,null,null,null,null,null,{"$f":"IF(COUNTA(B855:G855)=0,\"\",IF(OR(B855=\"\",C855=\"\"),\"Please select item types from the drop down lists in columns B & C\",IF(D855=\"\",\"Please enter description/details in column C\",IF(E855=\"\",\"Please enter amount\",IF(F855=\"\",\"Please select 'Revenue' or 'Capital' from the drop down list in column E\",IF(AND(G855=\"\",B855<>\"Employee Accrual\"),\"Please select the Counterparty from the drop down list in colum F\",IF(AND(G855=\"0 - Essex County Council\",H855=\"\"),\"Please enter the name of the ECC contact who asked you to raise this entry\",IF(COUNTIF(P:P,G855)=0,\"Counterparty not valid. Please check\",\"Complete\"))))))))","v":""},{"$f":"IF(AND(B855=\"Debtor\",F855=\"Revenue\"),1,IF(AND(B855=\"P.I.A.\",F855=\"Revenue\"),2,IF(AND(B855=\"Debtor\",F855=\"Capital\"),3,IF(AND(B855=\"P.I.A.\",F855=\"Capital\"),4,\"\"))))","v":""},{"$f":"IF(AND(B855=\"Creditor\",F855=\"Revenue\"),5,IF(AND(B855=\"R.I.A.\",F855=\"Revenue\"),6,IF(AND(B855=\"Creditor\",F855=\"Capital\"),7,IF(AND(B855=\"R.I.A.\",F855=\"Capital\"),8,\"\"))))","v":""},{"$f":"IF(A855=\"N\",1,0)","v":0},{"$f":"J855&K855&LEFT(G855,1)","v":""},{"$f":"IF(AND(ISBLANK(F855),B855<>0),1,0)","v":0},{"$f":"IF(AND(ISBLANK(G855),B855<>0,B855<>\"Employee Accrual\"),1,0)","v":0},"2 - Merseyside Fire and Civil Defence Authority","E6143",{"$f":"IF(AND(ISBLANK(C855),B855<>0),1,0)","v":0}]
["",null,null,null,null,null,null,null,"","","",0,"",0,0,"2 - Merseyside Integrated Transport Authority","E6343",0]
["",null,null,null,null,null,null,null,"","","",0,"",0,0,"2 - Merseyside Police Authority","E6043",0]
["",null,null,null,null,null,null,null,"","","",0,"",0,0,"2 - Merseyside Waste Disposal Authority","E6204",0]
["",null,null,null,null,null,null,null,"","","",0,"",0,0,"2 - Merton Borough Council","E5044",0]
["",null,null,null,null,null,null,null,"","","",0,"",0,0,"2 - Mid Devon District Council","E1133",0]
["",null,null,null,null,null,null,null,"","","",0,"",0,0,"2 - Mid Suffolk District Council","E3534",0]
["",null,null,null,null,null,null,null,"","","",0,"",0,0,"2 - Mid Sussex District Council","E3836",0]
["",null,null,null,null,null,null,null,"","","",0,"",0,0,"2 - Middlesbrough Council","E0702",0]
["",null,null,null,null,null,null,null,"","","",0,"",0,0,"2 - Milton Keynes Council","E0401",0]
["",null,null,null,null,null,null,null,"","","",0,"",0,0,"2 - Mole Valley District Council","E3634",0]
["",null,null,null,null,null,null,null,"","","",0,"",0,0,"2 - Museum of London","E5105",0]
["",null,null,null,null,null,null,null,"","","",0,"",0,0,"2 - New Forest District Council","E1738",0]
["",null,null,null,null,null,null,null,"","","",0,"",0,0,"2 - New Forest National Park Authority","E6409",0]
["",null,null,null,null,null,null,null,"","","",0,"",0,0,"2 - Newark and Sherwood District Council","E3036",0]
["",null,null,null,null,null,null,null,"","","",0,"",0,0,"2 - Newcastle upon Tyne City Council","E4502",0]
["",null,null,null,null,null,null,null,"","","",0,"",0,0,"2 - Newcastle-under-Lyme Borough Council","E3434",0]
["",null,null,null,null,null,null,null,"","","",0,"",0,0,"2 - Newham London Borough Council","E5045",0]
["",null,null,null,null,null,null,null,"","","",0,"",0,0,"2 - Norfolk County Council","E2620",0]
["",null,null,null,null,null,null,null,"","","",0,"",0,0,"2 - Norfolk Police Authority","E6026",0]
["",null,null,null,null,null,null,null,"","","",0,"",0,0,"2 - North Devon District Council","E1134",0]
["",null,null,null,null,null,null,null,"","","",0,"",0,0,"2 - North Dorset District Council","E1234",0]
["",null,null,null,null,null,null,null,"","","",0,"",0,0,"2 - North East Derbyshire District Council","E1038",0]
["",null,null,null,null,null,null,null,"","","",0,"",0,0,"2 - North East Lincolnshire Council","E2003",0]
["",null,null,null,null,null,null,null,"","","",0,"",0,0,"2 - North Hertfordshire District Council","E1935",0]
["",null,null,null,null,null,null,null,"","","",0,"",0,0,"2 - North Kesteven District Council","E2534",0]
["",null,null,null,null,null,null,null,"","","",0,"",0,0,"2 - North Lincolnshire Council","E2004",0]
["",null,null,null,null,null,null,null,"","","",0,"",0,0,"2 - North London Waste Authority","E6205",0]
["",null,null,null,null,null,null,null,"","","",0,"",0,0,"2 - North Norfolk District Council","E2635",0]
["",null,null,null,null,null,null,null,"","","",0,"",0,0,"2 - North Somerset Council","E0104",0]
["",null,null,null,null,null,null,null,"","","",0,"",0,0,"2 - North Tyneside Metropolitan Borough Council","E4503",0]
["",null,null,null,null,null,null,null,"","","",0,"",0,0,"2 - North Warwickshire Borough Council","E3731",0]
["",null,null,null,null,null,null,null,"","","",0,"",0,0,"2 - North West Leicestershire District Council","E2437",0]
["",null,null,null,null,null,null,null,"","","",0,"",0,0,"2 - North York Moors National Park Authority","E6404",0]
["",null,null,null,null,null,null,null,"","","",0,"",0,0,"2 - North Yorkshire County Council","E2721",0]
["",null,null,null,null,null,null,null,"","","",0,"",0,0,"2 - North Yorkshire Fire and Rescue Authority","E6127",0]
["",null,null,null,null,null,null,null,"","","",0,"",0,0,"2 - North Yorkshire Police Authority","E6027",0]
["",null,null,null,null,null,null,null,"","","",0,"",0,0,"2 - Northampton Borough Council","E2835",0]
["",null,null,null,null,null,null,null,"","","",0,"",0,0,"2 - Northamptonshire County Council","E2820",0]
["",null,null,null,null,null,null,null,"","","",0,"",0,0,"2 - Northamptonshire Police Authority","E6028",0]
["",null,null,null,null,null,null,null,"","","",0,"",0,0,"2 - Northumberland National Park Authority","E6405",0]
["",null,null,null,null,null,null,null,"","","",0,"",0,0,"2 - Northumberland Unitary Authority","E2901",0]
["",null,null,null,null,null,null,null,"","","",0,"",0,0,"2 - Northumbria Police Authority","E6045",0]
["",null,null,null,null,null,null,null,"","","",0,"",0,0,"2 - Norwich City Council","E2636",0]
["",null,null,null,null,null,null,null,"","","",0,"",0,0,"2 - Nottingham City Council","E3001",0]
["",null,null,null,null,null,null,null,"","","",0,"",0,0,"2 - Nottinghamshire and City of Nottingham Fire and Rescue Authority","E6130",0]
["",null,null,null,null,null,null,null,"","","",0,"",0,0,"2 - Nottinghamshire County Council","E3021",0]
["",null,null,null,null,null,null,null,"","","",0,"",0,0,"2 - Nottinghamshire Police Authority","E6030",0]
["",null,null,null,null,null,null,null,"","","",0,"",0,0,"2 - Nuneaton and Bedworth Borough Council","E3732",0]
["",null,null,null,null,null,null,null,"","","",0,"",0,0,"2 - Oadby and Wigston Borough Council","E2438",0]
["",null,null,null,null,null,null,null,"","","",0,"",0,0,"2 - Oldham Metropolitan Borough Council","E4204",0]
["",null,null,null,null,null,null,null,"","","",0,"",0,0,"2 - Oxford City Council","E3132",0]
["",null,null,null,null,null,null,null,"","","",0,"",0,0,"2 - Oxfordshire County Council","E3120",0]
["",null,null,null,null,null,null,null,"","","",0,"",0,0,"2 - Peak District National Park Authority","E6406",0]
["",null,null,null,null,null,null,null,"","","",0,"",0,0,"2 - Pendle Borough Council","E2338",0]
["",null,null,null,null,null,null,null,"","","",0,"",0,0,"2 - Peterborough City Council","E0501",0]
["",null,null,null,null,null,null,null,"","","",0,"",0,0,"2 - Plymouth City Council","E1101",0]
["",null,null,null,null,null,null,null,"","","",0,"",0,0,"2 - Poole (Borough of)","E1201",0]
["",null,null,null,null,null,null,null,"","","",0,"",0,0,"2 - Portsmouth City Council","E1701",0]
["",null,null,null,null,null,null,null,"","","",0,"",0,0,"2 - Preston City Council","E2339",0]
["",null,null,null,null,null,null,null,"","","",0,"",0,0,"2 - Purbeck District Council","E1236",0]
["",null,null,null,null,null,null,null,"","","",0,"",0,0,"2 - Reading Borough Council","E0303",0]
["",null,null,null,null,null,null,null,"","","",0,"",0,0,"2 - Redbridge London Borough Council","E5046",0]
["",null,null,null,null,null,null,null,"","","",0,"",0,0,"2 - Redcar and Cleveland Borough Council","E0703",0]
[{"$f":"IF(I919=\"\",\"\",IF(I919=\"Complete\",\"Y\",\"N\"))","v":""},null,null,null,null,null,null,null,{"$f":"IF(COUNTA(B919:G919)=0,\"\",IF(OR(B919=\"\",C919=\"\"),\"Please select item types from the drop down lists in columns B & C\",IF(D919=\"\",\"Please enter description/details in column C\",IF(E919=\"\",\"Please enter amount\",IF(F919=\"\",\"Please select 'Revenue' or 'Capital' from the drop down list in column E\",IF(AND(G919=\"\",B919<>\"Employee Accrual\"),\"Please select the Counterparty from the drop down list in colum F\",IF(AND(G919=\"0 - Essex County Council\",H919=\"\"),\"Please enter the name of the ECC contact who asked you to raise this entry\",IF(COUNTIF(P:P,G919)=0,\"Counterparty not valid. Please check\",\"Complete\"))))))))","v":""},{"$f":"IF(AND(B919=\"Debtor\",F919=\"Revenue\"),1,IF(AND(B919=\"P.I.A.\",F919=\"Revenue\"),2,IF(AND(B919=\"Debtor\",F919=\"Capital\"),3,IF(AND(B919=\"P.I.A.\",F919=\"Capital\"),4,\"\"))))","v":""},{"$f":"IF(AND(B919=\"Creditor\",F919=\"Revenue\"),5,IF(AND(B919=\"R.I.A.\",F919=\"Revenue\"),6,IF(AND(B919=\"Creditor\",F919=\"Capital\"),7,IF(AND(B919=\"R.I.A.\",F919=\"Capital\"),8,\"\"))))","v":""},{"$f":"IF(A919=\"N\",1,0)","v":0},{"$f":"J919&K919&LEFT(G919,1)","v":""},{"$f":"IF(AND(ISBLANK(F919),B919<>0),1,0)","v":0},{"$f":"IF(AND(ISBLANK(G919),B919<>0,B919<>\"Employee Accrual\"),1,0)","v":0},"2 - Redditch Borough Council","E1835",{"$f":"IF(AND(ISBLANK(C919),B919<>0),1,0)","v":0}]
["",null,null,null,null,null,null,null,"","","",0,"",0,0,"2 - Reigate and Banstead Borough Council","E3635",0]
["",null,null,null,null,null,null,null,"","","",0,"",0,0,"2 - Ribble Valley Borough Council","E2340",0]
["",null,null,null,null,null,null,null,"","","",0,"",0,0,"2 - Richmond upon Thames Borough Council","E5047",0]
["",null,null,null,null,null,null,null,"","","",0,"",0,0,"2 - Richmondshire District Council","E2734",0]
["",null,null,null,null,null,null,null,"","","",0,"",0,0,"2 - Rochdale Borough Council","E4205",0]
["",null,null,null,null,null,null,null,"","","",0,"",0,0,"2 - Rochford District Council","E1540",0]
["",null,null,null,null,null,null,null,"","","",0,"",0,0,"2 - Rossendale Borough Council","E2341",0]
["",null,null,null,null,null,null,null,"","","",0,"",0,0,"2 - Rother District Council","E1436",0]
["",null,null,null,null,null,null,null,"","","",0,"",0,0,"2 - Rotherham Borough Council","E4403",0]
["",null,null,null,null,null,null,null,"","","",0,"",0,0,"2 - Royal Berkshire Fire Authority","E6103",0]
["",null,null,null,null,null,null,null,"","","",0,"",0,0,"2 - Rugby Borough Council","E3733",0]
["",null,null,null,null,null,null,null,"","","",0,"",0,0,"2 - Runnymede Borough Council","E3636",0]
["",null,null,null,null,null,null,null,"","","",0,"",0,0,"2 - Rushcliffe Borough Council","E3038",0]
["",null,null,null,null,null,null,null,"","","",0,"",0,0,"2 - Rushmoor Borough Council","E1740",0]
["",null,null,null,null,null,null,null,"","","",0,"",0,0,"2 - Rutland County Council","E2402",0]
["",null,null,null,null,null,null,null,"","","",0,"",0,0,"2 - Ryedale District Council","E2755",0]
["",null,null,null,null,null,null,null,"","","",0,"",0,0,"2 - Salford City Council","E4206",0]
["",null,null,null,null,null,null,null,"","","",0,"",0,0,"2 - Sandwell Metropolitan Borough Council","E4604",0]
["",null,null,null,null,null,null,null,"","","",0,"",0,0,"2 - Scarborough Borough Council","E2736",0]
["",null,null,null,null,null,null,null,"","","",0,"",0,0,"2 - Sedgemoor District Council","E3332",0]
["",null,null,null,null,null,null,null,"","","",0,"",0,0,"2 - Sefton Metropolitan Borough Council","E4304",0]
["",null,null,null,null,null,null,null,"","","",0,"",0,0,"2 - Selby District Council","E2757",0]
["",null,null,null,null,null,null,null,"","","",0,"",0,0,"2 - Sevenoaks District Council","E2239",0]
["",null,null,null,null,null,null,null,"","","",0,"",0,0,"2 - Sheffield City Council","E4404",0]
["",null,null,null,null,null,null,null,"","","",0,"",0,0,"2 - Shepway District Council","E2240",0]
["",null,null,null,null,null,null,null,"","","",0,"",0,0,"2 - Shropshire and Wrekin Fire Authority","E6132",0]
["",null,null,null,null,null,null,null,"","","",0,"",0,0,"2 - Shropshire Unitary Authority","E3202",0]
["",null,null,null,null,null,null,null,"","","",0,"",0,0,"2 - Slough Borough Council","E0304",0]
["",null,null,null,null,null,null,null,"","","",0,"",0,0,"2 - Solihull Metropolitan Borough Council","E4605",0]
["",null,null,null,null,null,null,null,"","","",0,"",0,0,"2 - Somerset County Council","E3320",0]
["",null,null,null,null,null,null,null,"","","",0,"",0,0,"2 - South Bucks District Council","E0434",0]
["",null,null,null,null,null,null,null,"","","",0,"",0,0,"2 - South Cambridgeshire District Council","E0536",0]
["",null,null,null,null,null,null,null,"","","",0,"",0,0,"2 - South Derbyshire District Council","E1039",0]
["",null,null,null,null,null,null,null,"","","",0,"",0,0,"2 - South Downs National Park","E6410",0]
["",null,null,null,null,null,null,null,"","","",0,"",0,0,"2 - South Gloucestershire Council","E0103",0]
["",null,null,null,null,null,null,null,"","","",0,"",0,0,"2 - South Hams District Council","E1136",0]
["",null,null,null,null,null,null,null,"","","",0,"",0,0,"2 - South Holland District Council","E2535",0]
["",null,null,null,null,null,null,null,"","","",0,"",0,0,"2 - South Kesteven District Council","E2536",0]
["",null,null,null,null,null,null,null,"","","",0,"",0,0,"2 - South Lakeland District Council","E0936",0]
["",null,null,null,null,null,null,null,"","","",0,"",0,0,"2 - South Norfolk District Council","E2637",0]
["",null,null,null,null,null,null,null,"","","",0,"",0,0,"2 - South Northamptonshire Council","E2836",0]
["",null,null,null,null,null,null,null,"","","",0,"",0,0,"2 - South Oxfordshire District Council","E3133",0]
["",null,null,null,null,null,null,null,"","","",0,"",0,0,"2 - South Ribble Borough Council","E2342",0]
["",null,null,null,null,null,null,null,"","","",0,"",0,0,"2 - South Somerset District Council","E3334",0]
["",null,null,null,null,null,null,null,"","","",0,"",0,0,"2 - South Staffordshire District Council","E3435",0]
["",null,null,null,null,null,null,null,"","","",0,"",0,0,"2 - South Tyneside Council","E4504",0]
["",null,null,null,null,null,null,null,"","","",0,"",0,0,"2 - South Yorkshire Fire and Civil Defence Authority","E6144",0]
["",null,null,null,null,null,null,null,"","","",0,"",0,0,"2 - South Yorkshire Integrated Transport Authority","E6344",0]
["",null,null,null,null,null,null,null,"","","",0,"",0,0,"2 - South Yorkshire Police Authority","E6044",0]
["",null,null,null,null,null,null,null,"","","",0,"",0,0,"2 - Southampton City Council","E1702",0]
["",null,null,null,null,null,null,null,"","","",0,"",0,0,"2 - Southend-on-Sea Borough Council","E1501",0]
["",null,null,null,null,null,null,null,"","","",0,"",0,0,"2 - Southwark London Borough Council","E5019",0]
["",null,null,null,null,null,null,null,"","","",0,"",0,0,"2 - Spelthorne Borough Council","E3637",0]
["",null,null,null,null,null,null,null,"","","",0,"",0,0,"2 - St Albans City and District Council","E1936",0]
["",null,null,null,null,null,null,null,"","","",0,"",0,0,"2 - St Edmundsbury Borough Council","E3535",0]
["",null,null,null,null,null,null,null,"","","",0,"",0,0,"2 - St Helens Metropolitan Borough Council","E4303",0]
["",null,null,null,null,null,null,null,"","","",0,"",0,0,"2 - Stafford Borough Council","E3436",0]
["",null,null,null,null,null,null,null,"","","",0,"",0,0,"2 - Staffordshire County Council","E3421",0]
["",null,null,null,null,null,null,null,"","","",0,"",0,0,"2 - Staffordshire Moorlands District Council","E3437",0]
["",null,null,null,null,null,null,null,"","","",0,"",0,0,"2 - Staffordshire Police Authority","E6034",0]
["",null,null,null,null,null,null,null,"","","",0,"",0,0,"2 - Stevenage Borough Council","E1937",0]
["",null,null,null,null,null,null,null,"","","",0,"",0,0,"2 - Stockport Metropolitan Borough Council","E4207",0]
["",null,null,null,null,null,null,null,"","","",0,"",0,0,"2 - Stockton-on-Tees Borough Council","E0704",0]
[{"$f":"IF(I983=\"\",\"\",IF(I983=\"Complete\",\"Y\",\"N\"))","v":""},null,null,null,null,null,null,null,{"$f":"IF(COUNTA(B983:G983)=0,\"\",IF(OR(B983=\"\",C983=\"\"),\"Please select item types from the drop down lists in columns B & C\",IF(D983=\"\",\"Please enter description/details in column C\",IF(E983=\"\",\"Please enter amount\",IF(F983=\"\",\"Please select 'Revenue' or 'Capital' from the drop down list in column E\",IF(AND(G983=\"\",B983<>\"Employee Accrual\"),\"Please select the Counterparty from the drop down list in colum F\",IF(AND(G983=\"0 - Essex County Council\",H983=\"\"),\"Please enter the name of the ECC contact who asked you to raise this entry\",IF(COUNTIF(P:P,G983)=0,\"Counterparty not valid. Please check\",\"Complete\"))))))))","v":""},"","",0,"",0,{"$f":"IF(AND(ISBLANK(G983),B983<>0,B983<>\"Employee Accrual\"),1,0)","v":0},"2 - Stoke-on-Trent and Staffordshire Fire Authority","E6134",0]
["",null,null,null,null,null,null,null,"",{"$f":"IF(AND(B984=\"Debtor\",F984=\"Revenue\"),1,IF(AND(B984=\"P.I.A.\",F984=\"Revenue\"),2,IF(AND(B984=\"Debtor\",F984=\"Capital\"),3,IF(AND(B984=\"P.I.A.\",F984=\"Capital\"),4,\"\"))))","v":""},{"$f":"IF(AND(B984=\"Creditor\",F984=\"Revenue\"),5,IF(AND(B984=\"R.I.A.\",F984=\"Revenue\"),6,IF(AND(B984=\"Creditor\",F984=\"Capital\"),7,IF(AND(B984=\"R.I.A.\",F984=\"Capital\"),8,\"\"))))","v":""},{"$f":"IF(A984=\"N\",1,0)","v":0},{"$f":"J984&K984&LEFT(G984,1)","v":""},{"$f":"IF(AND(ISBLANK(F984),B984<>0),1,0)","v":0},0,"2 - Stoke-on-Trent Unitary Authority","E3401",{"$f":"IF(AND(ISBLANK(C984),B984<>0),1,0)","v":0}]
["",null,null,null,null,null,null,null,"","","",0,"",0,0,"2 - Stratford-on-Avon District Council","E3734",0]
["",null,null,null,null,null,null,null,"","","",0,"",0,0,"2 - Stroud District Council","E1635",0]
["",null,null,null,null,null,null,null,"","","",0,"",0,0,"2 - Suffolk Coastal District Council","E3536",0]
["",null,null,null,null,null,null,null,"","","",0,"",0,0,"2 - Suffolk County Council","E3520",0]
["",null,null,null,null,null,null,null,"","","",0,"",0,0,"2 - Suffolk Police Authority","E6035",0]
["",null,null,null,null,null,null,null,"","","",0,"",0,0,"2 - Sunderland City Metropolitan Borough Council","E4505",0]
["",null,null,null,null,null,null,null,"","","",0,"",0,0,"2 - Surrey County Council","E3620",0]
["",null,null,null,null,null,null,null,"","","",0,"",0,0,"2 - Surrey Heath Borough Council","E3638",0]
["",null,null,null,null,null,null,null,"","","",0,"",0,0,"2 - Surrey Police Authority","E6073",0]
["",null,null,null,null,null,null,null,"","","",0,"",0,0,"2 - Sussex Police Authority","E6053",0]
["",null,null,null,null,null,null,null,"","","",0,"",0,0,"2 - Sutton London Borough Council","E5048",0]
["",null,null,null,null,null,null,null,"","","",0,"",0,0,"2 - Swale Borough Council","E2241",0]
["",null,null,null,null,null,null,null,"","","",0,"",0,0,"2 - Swindon Unitary Authority","E3901",0]
["",null,null,null,null,null,null,null,"","","",0,"",0,0,"2 - Tameside Metropolitan Borough Council","E4208",0]
["",null,null,null,null,null,null,null,"","","",0,"",0,0,"2 - Tamworth Borough Council","E3439",0]
["",null,null,null,null,null,null,null,"","","",0,"",0,0,"2 - Tandridge District Council","E3639",0]
["",null,null,null,null,null,null,null,"","","",0,"",0,0,"2 - Taunton Deane Borough Council","E3333",0]
["",null,null,null,null,null,null,null,"","","",0,"",0,0,"2 - Teignbridge District Council","E1137",0]
["",null,null,null,null,null,null,null,"","","",0,"",0,0,"2 - Telford and Wrekin (Borough of)","E3201",0]
["",null,null,null,null,null,null,null,"","","",0,"",0,0,"2 - Tendring District Council","E1542",0]
["",null,null,null,null,null,null,null,"","","",0,"",0,0,"2 - Test Valley Borough Council","E1742",0]
["",null,null,null,null,null,null,null,"","","",0,"",0,0,"2 - Tewkesbury Borough Council","E1636",0]
["",null,null,null,null,null,null,null,"","","",0,"",0,0,"2 - Thames Valley Police Authority","E6054",0]
["",null,null,null,null,null,null,null,"","","",0,"",0,0,"2 - Thanet District Council","E2242",0]
["",null,null,null,null,null,null,null,"","","",0,"",0,0,"2 - Three Rivers District Council","E1938",0]
["",null,null,null,null,null,null,null,"","","",0,"",0,0,"2 - Thurrock Unitary Authority","E1502",0]
["",null,null,null,null,null,null,null,"","","",0,"",0,0,"2 - Tonbridge and Malling Borough Council","E2243",0]
["",null,null,null,null,null,null,null,"","","",0,"",0,0,"2 - Torbay Council","E1102",0]
["",null,null,null,null,null,null,null,"","","",0,"",0,0,"2 - Torridge District Council","E1139",0]
["",null,null,null,null,null,null,null,"","","",0,"",{"$f":"IF(AND(ISBLANK(F1014),B1014<>0),1,0)","v":0},0,"2 - Tower Hamlets London Borough Council","E5020",0]
["",null,null,null,null,null,null,null,"","","",0,"",{"$f":"IF(AND(ISBLANK(F1015),B1015<>0),1,0)","v":0},{"$f":"IF(AND(ISBLANK(G1015),B1015<>0,B1015<>\"Employee Accrual\"),1,0)","v":0},"2 - Trafford Metropolitan Borough Council","E4209",0]
["",null,null,null,null,null,null,null,"","","",0,"",0,0,"2 - Transport for London","E5104",0]
["",null,null,null,null,null,null,null,"","","",0,"",0,0,"2 - Tunbridge Wells Borough Council","E2244",0]
["",null,null,null,null,null,null,null,"","","",0,"",0,0,"2 - Tyne & Wear Integrated Transport Authority","E6345",0]
["",null,null,null,null,null,null,null,"","","",0,"",0,0,"2 - Tyne and Wear Fire and Civil Defence Authority","E6145",0]
["",null,null,null,null,null,null,null,"","","",0,"",0,0,"2 - Uttlesford District Council","E1544",0]
["",null,null,null,null,null,null,null,"","","",0,"",0,0,"2 - Vale of White Horse District Council","E3134",0]
["",null,null,null,null,null,null,null,"","","",0,"",0,0,"2 - Wakefield City Council","E4705",0]
[null,null,null,null,null,null,null,null,null,null,null,null,null,null,null,"2 - Walsall Metropolitan Borough Council","E4606"]
[null,null,null,null,null,null,null,null,null,null,null,null,null,null,null,"2 - Waltham Forest London Borough Council","E5049"]
[null,null,null,null,null,null,null,null,null,null,null,null,null,null,null,"2 - Wandsworth London Borough Council","E5021"]
[null,null,null,null,null,null,null,null,null,null,null,null,null,null,null,"2 - Warrington Borough Council","E0602"]
[null,null,null,null,null,null,null,null,null,null,null,null,null,null,null,"2 - Warwick District Council","E3735"]
[null,null,null,null,null,null,null,null,null,null,null,null,null,null,null,"2 - Warwickshire County Council","E3720"]
[null,null,null,null,null,null,null,null,null,null,null,null,null,null,null,"2 - Warwickshire Police Authority","E6037"]
[null,null,null,null,null,null,null,null,null,null,null,null,null,null,null,"2 - Watford Borough Council","E1939"]
[null,null,null,null,null,null,null,null,null,null,null,null,null,null,null,"2 - Waveney District Council","E3537"]
[null,null,null,null,null,null,null,null,null,null,null,null,null,null,null,"2 - Waverley Borough Council","E3640"]
[null,null,null,null,null,null,null,null,null,null,null,null,null,null,null,"2 - Wealden District Council","E1437"]
[null,null,null,null,null,null,null,null,null,null,null,null,null,null,null,"2 - Wellingborough Borough Council","E2837"]
[null,null,null,null,null,null,null,null,null,null,null,null,null,null,null,"2 - Welwyn Hatfield District Council","E1940"]
[null,null,null,null,null,null,null,null,null,null,null,null,null,null,null,"2 - West Berkshire Council","E0302"]
[null,null,null,null,null,null,null,null,null,null,null,null,null,null,null,"2 - West Devon Borough Council","E1140"]
[null,null,null,null,null,null,null,null,null,null,null,null,null,null,null,"2 - West Dorset District Council","E1237"]
[null,null,null,null,null,null,null,null,null,null,null,null,null,null,null,"2 - West Lancashire District Council","E2343"]
[null,null,null,null,null,null,null,null,null,null,null,null,null,null,null,"2 - West Lindsey District Council","E2537"]
[null,null,null,null,null,null,null,null,null,null,null,null,null,null,null,"2 - West London Waste Authority","E6207"]
[null,null,null,null,null,null,null,null,null,null,null,null,null,null,null,"2 - West Mercia Police Authority","E6055"]
[null,null,null,null,null,null,null,null,null,null,null,null,null,null,null,"2 - West Midlands Fire and Civil Defence Authority","E6146"]
[null,null,null,null,null,null,null,null,null,null,null,null,null,null,null,"2 - West Midlands Integrated Transport Authority","E6346"]
[null,null,null,null,null,null,null,null,null,null,null,null,null,null,null,"2 - West Midlands Police Authority","E6046"]
[null,null,null,null,null,null,null,null,null,null,null,null,null,null,null,"2 - West Oxfordshire District Council","E3135"]
[null,null,null,null,null,null,null,null,null,null,null,null,null,null,null,"2 - West Somerset District Council","E3335"]
[null,null,null,null,null,null,null,null,null,null,null,null,null,null,null,"2 - West Sussex County Council","E3820"]
[null,null,null,null,null,null,null,null,null,null,null,null,null,null,null,"2 - West Yorkshire Fire and Civil Defence Authority","E6147"]
[null,null,null,null,null,null,null,null,null,null,null,null,null,null,null,"2 - West Yorkshire Integrated Transport Authority","E6347"]
[null,null,null,null,null,null,null,null,null,null,null,null,null,null,null,"2 - West Yorkshire Police Authority","E6047"]
[null,null,null,null,null,null,null,null,null,null,null,null,null,null,null,"2 - Western Riverside Waste Authority","E6206"]
[null,null,null,null,null,null,null,null,null,null,null,null,null,null,null,"2 - Westminster City Council","E5022"]
[null,null,null,null,null,null,null,null,null,null,null,null,null,null,null,"2 - Weymouth and Portland Borough Council","E1238"]
[null,null,null,null,null,null,null,null,null,null,null,null,null,null,null,"2 - Wigan Metropolitan Borough Council","E4210"]
[null,null,null,null,null,null,null,null,null,null,null,null,null,null,null,"2 - Wiltshire and Swindon Fire Authority","E6139"]
[null,null,null,null,null,null,null,null,null,null,null,null,null,null,null,"2 - Wiltshire Police Authority","E6039"]
[null,null,null,null,null,null,null,null,null,null,null,null,null,null,null,"2 - Wiltshire Unitary Authority","E3902"]
[null,null,null,null,null,null,null,null,null,null,null,null,null,null,null,"2 - Winchester City Council","E1743"]
[null,null,null,null,null,null,null,null,null,null,null,null,null,null,null,"2 - Windsor and Maidenhead (Royal Borough of)","E0305"]
[null,null,null,null,null,null,null,null,null,null,null,null,null,null,null,"2 - Wirral Metropolitan Borough Council","E4305"]
[null,null,null,null,null,null,null,null,null,null,null,null,null,null,null,"2 - Woking Borough Council","E3641"]
[null,null,null,null,null,null,null,null,null,null,null,null,null,null,null,"2 - Wokingham Council","E0306"]
[null,null,null,null,null,null,null,null,null,null,null,null,null,null,null,"2 - Wolverhampton City Council","E4607"]
[null,null,null,null,null,null,null,null,null,null,null,null,null,null,null,"2 - Worcester City Council","E1837"]
[null,null,null,null,null,null,null,null,null,null,null,null,null,null,null,"2 - Worcestershire County Council","E1821"]
[null,null,null,null,null,null,null,null,null,null,null,null,null,null,null,"2 - Worthing Borough Council","E3837"]
[null,null,null,null,null,null,null,null,null,null,null,null,null,null,null,"2 - Wychavon District Council","E1838"]
[null,null,null,null,null,null,null,null,null,null,null,null,null,null,null,"2 - Wycombe District Council","E0435"]
[null,null,null,null,null,null,null,null,null,null,null,null,null,null,null,"2 - Wyre Borough Council","E2344"]
[null,null,null,null,null,null,null,null,null,null,null,null,null,null,null,"2 - Wyre Forest District Council","E1839"]
[null,null,null,null,null,null,null,null,null,null,null,null,null,null,null,"2 - Yorkshire Dales National Park Authority","E6407"]
[null,null,null,null,null,null,null,null,null,null,null,null,null,null,null,"2 - Greater Manchester Combined Authority","E6348"]
[null,null,null,null,null,null,null,null,null,null,null,null,null,null,null,"2 - Mayor’s Office for Policing and Crime and Metropolis Police Commissioner","E7060"]
[null,null,null,null,null,null,null,null,null,null,null,null,null,null,null,"2 - Antrim Borough Council","NI001"]
[null,null,null,null,null,null,null,null,null,null,null,null,null,null,null,"2 - Arc21 Joint Committee","NI027"]
[null,null,null,null,null,null,null,null,null,null,null,null,null,null,null,"2 - Ards Borough Council","NI002"]
[null,null,null,null,null,null,null,null,null,null,null,null,null,null,null,"2 - Armagh City and District Council","NI003"]
[null,null,null,null,null,null,null,null,null,null,null,null,null,null,null,"2 - Ballymena Borough Council","NI004"]
[null,null,null,null,null,null,null,null,null,null,null,null,null,null,null,"2 - Ballymoney Borough Council","NI005"]
[null,null,null,null,null,null,null,null,null,null,null,null,null,null,null,"2 - Banbridge District Council","NI006"]
[null,null,null,null,null,null,null,null,null,null,null,null,null,null,null,"2 - Belfast City Council","NI007"]
[null,null,null,null,null,null,null,null,null,null,null,null,null,null,null,"2 - Carrickfergus Borough Council","NI008"]
[null,null,null,null,null,null,null,null,null,null,null,null,null,null,null,"2 - Castlereagh Borough Council","NI009"]
[null,null,null,null,null,null,null,null,null,null,null,null,null,null,null,"2 - Coleraine Borough Council","NI010"]
[null,null,null,null,null,null,null,null,null,null,null,null,null,null,null,"2 - Cookstown District Council","NI011"]
[null,null,null,null,null,null,null,null,null,null,null,null,null,null,null,"2 - Craigavon Borough Council","NI012"]
[null,null,null,null,null,null,null,null,null,null,null,null,null,null,null,"2 - Derry City Council","NI013"]
[null,null,null,null,null,null,null,null,null,null,null,null,null,null,null,"2 - Down District Council","NI014"]
[null,null,null,null,null,null,null,null,null,null,null,null,null,null,null,"2 - Dungannon and South Tyrone Borough Council","NI015"]
[null,null,null,null,null,null,null,null,null,null,null,null,null,null,null,"2 - Fermanagh District Council","NI016"]
[null,null,null,null,null,null,null,null,null,null,null,null,null,null,null,"2 - Larne Borough Council","NI017"]
[null,null,null,null,null,null,null,null,null,null,null,null,null,null,null,"2 - Limavady Borough Council","NI018"]
[null,null,null,null,null,null,null,null,null,null,null,null,null,null,null,"2 - Lisburn City Council","NI019"]
[null,null,null,null,null,null,null,null,null,null,null,null,null,null,null,"2 - Magherafelt District Council","NI020"]
[null,null,null,null,null,null,null,null,null,null,null,null,null,null,null,"2 - Moyle District Council","NI021"]
[null,null,null,null,null,null,null,null,null,null,null,null,null,null,null,"2 - Newry and Mourne District Council","NI022"]
[null,null,null,null,null,null,null,null,null,null,null,null,null,null,null,"2 - Newtownabbey Borough Council","NI023"]
[null,null,null,null,null,null,null,null,null,null,null,null,null,null,null,"2 - North Down Borough Council","NI024"]
[null,null,null,null,null,null,null,null,null,null,null,null,null,null,null,"2 - Omagh District Council","NI025"]
[null,null,null,null,null,null,null,null,null,null,null,null,null,null,null,"2 - Strabane District Council","NI026"]
[null,null,null,null,null,null,null,null,null,null,null,null,null,null,null,"2 - Aberdeen City Council","S001"]
[null,null,null,null,null,null,null,null,null,null,null,null,null,null,null,"2 - Aberdeenshire Council","S002"]
[null,null,null,null,null,null,null,null,null,null,null,null,null,null,null,"2 - Angus Council","S003"]
[null,null,null,null,null,null,null,null,null,null,null,null,null,null,null,"2 - Argyll and Bute Council","S004"]
[null,null,null,null,null,null,null,null,null,null,null,null,null,null,null,"2 - Central Scotland Fire and Rescue Service","S034"]
[null,null,null,null,null,null,null,null,null,null,null,null,null,null,null,"2 - Central Scotland Police","S040"]
[null,null,null,null,null,null,null,null,null,null,null,null,null,null,null,"2 - Clackmannanshire Council","S005"]
[null,null,null,null,null,null,null,null,null,null,null,null,null,null,null,"2 - Comhairle nan Eilean Siar (Western Isles Council)","S006"]
[null,null,null,null,null,null,null,null,null,null,null,null,null,null,null,"2 - Dumfries and Galloway Council","S007"]
[null,null,null,null,null,null,null,null,null,null,null,null,null,null,null,"2 - Dundee City Council","S008"]
[null,null,null,null,null,null,null,null,null,null,null,null,null,null,null,"2 - East Ayrshire Council","S009"]
[null,null,null,null,null,null,null,null,null,null,null,null,null,null,null,"2 - East Dunbartonshire Council","S010"]
[null,null,null,null,null,null,null,null,null,null,null,null,null,null,null,"2 - East Lothian Council","S011"]
[null,null,null,null,null,null,null,null,null,null,null,null,null,null,null,"2 - East Renfrewshire Council","S012"]
[null,null,null,null,null,null,null,null,null,null,null,null,null,null,null,"2 - Edinburgh City Council","S013"]
[null,null,null,null,null,null,null,null,null,null,null,null,null,null,null,"2 - Falkirk Council","S014"]
[null,null,null,null,null,null,null,null,null,null,null,null,null,null,null,"2 - Fife Council","S015"]
[null,null,null,null,null,null,null,null,null,null,null,null,null,null,null,"2 - Forth Estuary Transport Authority","S055"]
[null,null,null,null,null,null,null,null,null,null,null,null,null,null,null,"2 - Glasgow City Council","S016"]
[null,null,null,null,null,null,null,null,null,null,null,null,null,null,null,"2 - Grampian Fire and Rescue Service","S035"]
[null,null,null,null,null,null,null,null,null,null,null,null,null,null,null,"2 - Grampian Police","S041"]
[null,null,null,null,null,null,null,null,null,null,null,null,null,null,null,"2 - Highland Council","S017"]
[null,null,null,null,null,null,null,null,null,null,null,null,null,null,null,"2 - Highlands & Islands Fire Brigade","S036"]
[null,null,null,null,null,null,null,null,null,null,null,null,null,null,null,"2 - Inverclyde Council","S018"]
[null,null,null,null,null,null,null,null,null,null,null,null,null,null,null,"2 - Lothian & Borders Fire and Rescue Service","S037"]
[null,null,null,null,null,null,null,null,null,null,null,null,null,null,null,"2 - Lothian & Borders Police ","S042"]
[null,null,null,null,null,null,null,null,null,null,null,null,null,null,null,"2 - Midlothian Council","S019"]
[null,null,null,null,null,null,null,null,null,null,null,null,null,null,null,"2 - Moray Council","S020"]
[null,null,null,null,null,null,null,null,null,null,null,null,null,null,null,"2 - North Ayrshire Council","S021"]
[null,null,null,null,null,null,null,null,null,null,null,null,null,null,null,"2 - North Lanarkshire Council","S022"]
[null,null,null,null,null,null,null,null,null,null,null,null,null,null,null,"2 - Northern Constabulary","S043"]
[null,null,null,null,null,null,null,null,null,null,null,null,null,null,null,"2 - Orkney Islands Council","S023"]
[null,null,null,null,null,null,null,null,null,null,null,null,null,null,null,"2 - Perth and Kinross Council","S025"]
[null,null,null,null,null,null,null,null,null,null,null,null,null,null,null,"2 - Renfrewshire Council","S026"]
[null,null,null,null,null,null,null,null,null,null,null,null,null,null,null,"2 - Scottish Borders Council","S027"]
[null,null,null,null,null,null,null,null,null,null,null,null,null,null,null,"2 - Shetland Charitable Trust","S099"]
[null,null,null,null,null,null,null,null,null,null,null,null,null,null,null,"2 - Shetland Islands Council","S028"]
[null,null,null,null,null,null,null,null,null,null,null,null,null,null,null,"2 - South Ayrshire Council","S029"]
[null,null,null,null,null,null,null,null,null,null,null,null,null,null,null,"2 - South Lanarkshire Council","S030"]
[null,null,null,null,null,null,null,null,null,null,null,null,null,null,null,"2 - South-East of Scotland Transport Partnership (SESTRAN)","S049"]
[null,null,null,null,null,null,null,null,null,null,null,null,null,null,null,"2 - Stirling Council","S031"]
[null,null,null,null,null,null,null,null,null,null,null,null,null,null,null,"2 - Strathclyde Fire and Rescue Service","S038"]
[null,null,null,null,null,null,null,null,null,null,null,null,null,null,null,"2 - Strathclyde Partnership for Transport","S046"]
[null,null,null,null,null,null,null,null,null,null,null,null,null,null,null,"2 - Strathclyde Police","S044"]
[null,null,null,null,null,null,null,null,null,null,null,null,null,null,null,"2 - Tay Road Bridge Joint Board","S056"]
[null,null,null,null,null,null,null,null,null,null,null,null,null,null,null,"2 - Tayside Fire and Rescue","S039"]
[null,null,null,null,null,null,null,null,null,null,null,null,null,null,null,"2 - Tayside Police","S045"]
[null,null,null,null,null,null,null,null,null,null,null,null,null,null,null,"2 - West Dunbartonshire Council","S032"]
[null,null,null,null,null,null,null,null,null,null,null,null,null,null,null,"2 - West Lothian Council","S033"]
[null,null,null,null,null,null,null,null,null,null,null,null,null,null,null,"2 - Blaenau Gwent County Borough Council","W545"]
[null,null,null,null,null,null,null,null,null,null,null,null,null,null,null,"2 - Brecon Beacons National Park Authority","W582"]
[null,null,null,null,null,null,null,null,null,null,null,null,null,null,null,"2 - Bridgend County Borough Council","W536"]
[null,null,null,null,null,null,null,null,null,null,null,null,null,null,null,"2 - Caerphilly County Borough Council","W544"]
[null,null,null,null,null,null,null,null,null,null,null,null,null,null,null,"2 - Cardiff City and County Council","W552"]
[null,null,null,null,null,null,null,null,null,null,null,null,null,null,null,"2 - Carmarthenshire County Council","W530"]
[null,null,null,null,null,null,null,null,null,null,null,null,null,null,null,"2 - Ceredigion County Council","W526"]
[null,null,null,null,null,null,null,null,null,null,null,null,null,null,null,"2 - Conwy County Borough Council","W516"]
[null,null,null,null,null,null,null,null,null,null,null,null,null,null,null,"2 - Denbighshire County Council","W518"]
[null,null,null,null,null,null,null,null,null,null,null,null,null,null,null,"2 - Dyfed Powys Police Authority","W562"]
[null,null,null,null,null,null,null,null,null,null,null,null,null,null,null,"2 - Flintshire County Council","W520"]
[null,null,null,null,null,null,null,null,null,null,null,null,null,null,null,"2 - Gwent Police Authority","W564"]
[null,null,null,null,null,null,null,null,null,null,null,null,null,null,null,"2 - Gwynedd County Council","W514"]
[null,null,null,null,null,null,null,null,null,null,null,null,null,null,null,"2 - Isle of Anglesey County Council","W512"]
[null,null,null,null,null,null,null,null,null,null,null,null,null,null,null,"2 - Merthyr Tydfil County Borough Council","W542"]
[null,null,null,null,null,null,null,null,null,null,null,null,null,null,null,"2 - Mid and West Wales Fire Authority","W572"]
[null,null,null,null,null,null,null,null,null,null,null,null,null,null,null,"2 - Monmouthshire County Council","W548"]
[null,null,null,null,null,null,null,null,null,null,null,null,null,null,null,"2 - Neath Port Talbot County Borough Council","W534"]
[null,null,null,null,null,null,null,null,null,null,null,null,null,null,null,"2 - Newport City Council","W550"]
[null,null,null,null,null,null,null,null,null,null,null,null,null,null,null,"2 - North Wales Fire Authority","W574"]
[null,null,null,null,null,null,null,null,null,null,null,null,null,null,null,"2 - North Wales Police Authority","W566"]
[null,null,null,null,null,null,null,null,null,null,null,null,null,null,null,"2 - Pembrokeshire Coast National Park Authority","W584"]
[null,null,null,null,null,null,null,null,null,null,null,null,null,null,null,"2 - Pembrokeshire County Council","W528"]
[null,null,null,null,null,null,null,null,null,null,null,null,null,null,null,"2 - Powys County Council","W524"]
[null,null,null,null,null,null,null,null,null,null,null,null,null,null,null,"2 - Rhondda Cynon Taff County Borough Council","W540"]
[null,null,null,null,null,null,null,null,null,null,null,null,null,null,null,"2 - Snowdonia National Park Authority","W586"]
[null,null,null,null,null,null,null,null,null,null,null,null,null,null,null,"2 - South Wales Fire Authority","W576"]
[null,null,null,null,null,null,null,null,null,null,null,null,null,null,null,"2 - South Wales Police Authority","W568"]
[null,null,null,null,null,null,null,null,null,null,null,null,null,null,null,"2 - Swansea City and County Council","W532"]
[null,null,null,null,null,null,null,null,null,null,null,null,null,null,null,"2 - Torfaen County Borough Council","W546"]
[null,null,null,null,null,null,null,null,null,null,null,null,null,null,null,"2 - Vale of Glamorgan County Council","W538"]
[null,null,null,null,null,null,null,null,null,null,null,null,null,null,null,"2 - Wrexham County Borough Council","W522"]
[null,null,null,null,null,null,null,null,null,null,null,null,null,null,null,"3 - ²gether NHS Foundation Trust","NHTRTQFT"]
[null,null,null,null,null,null,null,null,null,null,null,null,null,null,null,"3 - 5 Boroughs Partnership NHS Foundation Trust","NHTRTVFT"]
[null,null,null,null,null,null,null,null,null,null,null,null,null,null,null,"3 - Aintree University Hospitals NHS Foundation Trust","NHTREMFT"]
[null,null,null,null,null,null,null,null,null,null,null,null,null,null,null,"3 - Airedale NHS Foundation Trust","NHTRCFFT"]
[null,null,null,null,null,null,null,null,null,null,null,null,null,null,null,"3 - Alder Hey Children's NHS Foundation Trust","NHTRBSFT"]
[null,null,null,null,null,null,null,null,null,null,null,null,null,null,null,"3 - Ashford and St Peter's Hospitals NHS Foundation Trust","NHTRTKFT"]
[null,null,null,null,null,null,null,null,null,null,null,null,null,null,null,"3 - Barnsley Hospital NHS Foundation Trust","NHTRFFFT"]
[null,null,null,null,null,null,null,null,null,null,null,null,null,null,null,"3 - Basildon and Thurrock University Hospitals NHS Foundation Trust","NHTR01FT"]
[null,null,null,null,null,null,null,null,null,null,null,null,null,null,null,"3 - Basingstoke and North Hampshire NHS Foundation Trust","NHTRN5FT"]
[null,null,null,null,null,null,null,null,null,null,null,null,null,null,null,"3 - Berkshire Healthcare NHS Foundation Trust","NHTRWXFT"]
[null,null,null,null,null,null,null,null,null,null,null,null,null,null,null,"3 - Birmingham and Solihull Mental Health NHS Foundation Trust","NHTRXTFT"]
[null,null,null,null,null,null,null,null,null,null,null,null,null,null,null,"3 - Birmingham Children's Hospital NHS Foundation Trust","NHTRQ3FT"]
[null,null,null,null,null,null,null,null,null,null,null,null,null,null,null,"3 - Birmingham Women`s NHS Foundation Trust","NHTRLUFT"]
[null,null,null,null,null,null,null,null,null,null,null,null,null,null,null,"3 - Blackpool, Fylde And Wyre Hospitals NHS Foundation Trust","NHTRXLFT"]
[null,null,null,null,null,null,null,null,null,null,null,null,null,null,null,"3 - Bradford Teaching Hospitals NHS Foundation Trust","NHTR02FT"]
[null,null,null,null,null,null,null,null,null,null,null,null,null,null,null,"3 - Burton Hospitals NHS Foundation Trust","NHTRJFFT"]
[null,null,null,null,null,null,null,null,null,null,null,null,null,null,null,"3 - Calderdale and Huddersfield NHS Foundation Trust","NHTRWYFT"]
[null,null,null,null,null,null,null,null,null,null,null,null,null,null,null,"3 - Calderstones Partnership NHS Foundation Trust","NHTRJXFT"]
[null,null,null,null,null,null,null,null,null,null,null,null,null,null,null,"3 - Cambridge University Hospitals NHS Foundation Trust","NHTR11FT"]
[null,null,null,null,null,null,null,null,null,null,null,null,null,null,null,"3 - Cambridgeshire and Peterborough NHS Foundation Trust","NHTRT1FT"]
[null,null,null,null,null,null,null,null,null,null,null,null,null,null,null,"3 - Camden and Islington NHS Foundation Trust","NHTTAFFT"]
[null,null,null,null,null,null,null,null,null,null,null,null,null,null,null,"3 - Central and North West London NHS Foundation Trust","NHTRV3FT"]
[null,null,null,null,null,null,null,null,null,null,null,null,null,null,null,"3 - Central Manchseter University Hospitals NHS Foundation Trust","NHTRW3FT"]
[null,null,null,null,null,null,null,null,null,null,null,null,null,null,null,"3 - Chelsea and Westminster Hospital NHS Foundation Trust","NHTRQMFT"]
[null,null,null,null,null,null,null,null,null,null,null,null,null,null,null,"3 - Cheshire and Wirral Partnership NHS Foundation Trust","NHTRXAFT"]
[null,null,null,null,null,null,null,null,null,null,null,null,null,null,null,"3 - Chesterfield Royal Hospital NHS Foundation Trust","NHTRFSFT"]
[null,null,null,null,null,null,null,null,null,null,null,null,null,null,null,"3 - The Christie NHS Foundation Trust","NHTRBVFT"]
[null,null,null,null,null,null,null,null,null,null,null,null,null,null,null,"3 - City Hospitals Sunderland NHS Foundation Trust","NHTR12FT"]
[null,null,null,null,null,null,null,null,null,null,null,null,null,null,null,"3 - Clatterbridge Centre for Oncology NHS Foundation Trust","NHTRENFT"]
[null,null,null,null,null,null,null,null,null,null,null,null,null,null,null,"3 - Colchester Hospital University NHS Foundation Trust","NHTRDEFT"]
[null,null,null,null,null,null,null,null,null,null,null,null,null,null,null,"3 - Cornwall Partnership NHS Foundation Trust","NHTRJ8FT"]
[null,null,null,null,null,null,null,null,null,null,null,null,null,null,null,"3 - Countess of Chester Hospital NHS Foundation Trust","NHTR03FT"]
[null,null,null,null,null,null,null,null,null,null,null,null,null,null,null,"3 - County Durham and Darlington NHS Foundation Trust","NHTRXPFT"]
[null,null,null,null,null,null,null,null,null,null,null,null,null,null,null,"3 - Cumbria Partnership NHS Foundation Trust","NHTRNNFT"]
[null,null,null,null,null,null,null,null,null,null,null,null,null,null,null,"3 - Derby Hospitals NHS Foundation Trust","NHTR13FT"]
[null,null,null,null,null,null,null,null,null,null,null,null,null,null,null,"3 - Doncaster and Bassetlaw Hospitals NHS Foundation Trust","NHTRP5FT"]
[null,null,null,null,null,null,null,null,null,null,null,null,null,null,null,"3 - Dorset County Hospital NHS Foundation Trust","NHTRBDFT"]
[null,null,null,null,null,null,null,null,null,null,null,null,null,null,null,"3 - Dorset Healthcare NHS Foundation Trust","NHTRDYFT"]
[null,null,null,null,null,null,null,null,null,null,null,null,null,null,null,"3 - The Dudley Group of Hospitals NHS Foundation Trust","NHTRNAFT"]
[null,null,null,null,null,null,null,null,null,null,null,null,null,null,null,"3 - East Kent Hospitals University NHS Foundation Trust ","NHTRVVFT"]
[null,null,null,null,null,null,null,null,null,null,null,null,null,null,null,"3 - East London NHS Foundation Trust","NHTRWKFT"]
[null,null,null,null,null,null,null,null,null,null,null,null,null,null,null,"3 - Frimley Park Hospital NHS Foundation Trust","NHTRDUFT"]
[null,null,null,null,null,null,null,null,null,null,null,null,null,null,null,"3 - Gateshead Health NHS Foundation Trust","NHTRR7FT"]
[null,null,null,null,null,null,null,null,null,null,null,null,null,null,null,"3 - Gloucestershire Hospitals NHS Foundation Trust","NHTRTEFT"]
[null,null,null,null,null,null,null,null,null,null,null,null,null,null,null,"3 - Great Western Hospitals NHS Foundation Trust","NHTRN3FT"]
[null,null,null,null,null,null,null,null,null,null,null,null,null,null,null,"3 - Greater Manchester West Mental Health Foundation Trust","NHTRXVFT"]
[null,null,null,null,null,null,null,null,null,null,null,null,null,null,null,"3 - Guy's and St. Thomas's NHS Foundation Trust","NHTRJ1FT"]
[null,null,null,null,null,null,null,null,null,null,null,null,null,null,null,"3 - Hampshire Partnership NHS Foundation Trust","NHTRW1FT"]
[null,null,null,null,null,null,null,null,null,null,null,null,null,null,null,"3 - Harrogate and District NHS Foundation Trust","NHTRCDFT"]
[null,null,null,null,null,null,null,null,null,null,null,null,null,null,null,"3 - Heart of England NHS Foundation Trust","NHTRR1FT"]
[null,null,null,null,null,null,null,null,null,null,null,null,null,null,null,"3 - Heatherwood and Wexham Park Hospitals NHS Foundation Trust","NHTRD7FT"]
[null,null,null,null,null,null,null,null,null,null,null,null,null,null,null,"3 - Hertfordshire Partnership NHS Foundation Trust","NHTRWRFT"]
[null,null,null,null,null,null,null,null,null,null,null,null,null,null,null,"3 - Homerton University Hospital NHS Foundation Trust","NHTRQXFT"]
[null,null,null,null,null,null,null,null,null,null,null,null,null,null,null,"3 - Humber NHS Foundation Trust","NHTRV9FT"]
[null,null,null,null,null,null,null,null,null,null,null,null,null,null,null,"3 - James Paget University Hospitals NHS Foundation Trust","NHTRGPFT"]
[null,null,null,null,null,null,null,null,null,null,null,null,null,null,null,"3 - Kettering General Hospital NHS Foundation Trust","NHTRNQFT"]
[null,null,null,null,null,null,null,null,null,null,null,null,null,null,null,"3 - King's College Hospital NHS Foundation Trust","NHTRJZFT"]
[null,null,null,null,null,null,null,null,null,null,null,null,null,null,null,"3 - Lancashire Care NHS Foundation Trust","NHTRW5FT"]
[null,null,null,null,null,null,null,null,null,null,null,null,null,null,null,"3 - Lancashire Teaching Hospitals NHS Foundation Trust","NHTRXNFT"]
[null,null,null,null,null,null,null,null,null,null,null,null,null,null,null,"3 - Leeds Partnerships NHS Foundation Trust","NHTRGDFT"]
[null,null,null,null,null,null,null,null,null,null,null,null,null,null,null,"3 - Lincolnshire Partnership NHS Foundation Trust","NHTRP7FT"]
[null,null,null,null,null,null,null,null,null,null,null,null,null,null,null,"3 - Liverpool Heart and Chest NHS Foundation Trust","NHTRBQFT"]
[null,null,null,null,null,null,null,null,null,null,null,null,null,null,null,"3 - Liverpool Women's NHS Foundation Trust","NHTREPFT"]
[null,null,null,null,null,null,null,null,null,null,null,null,null,null,null,"3 - Luton and Dunstable Hospital NHS Foundation Trust","NHTRC9FT"]
[null,null,null,null,null,null,null,null,null,null,null,null,null,null,null,"3 - Medway NHS Foundation Trust","NHTRPAFT"]
[null,null,null,null,null,null,null,null,null,null,null,null,null,null,null,"3 - Mid-Cheshire Hospitals NHS Foundation Trust","NHTRBTFT"]
[null,null,null,null,null,null,null,null,null,null,null,null,null,null,null,"3 - Mid Staffordshire NHS Foundation Trust","NHTRJDFT"]
[null,null,null,null,null,null,null,null,null,null,null,null,null,null,null,"3 - Milton Keynes Hospital NHS Foundation Trust","NHTRD8FT"]
[null,null,null,null,null,null,null,null,null,null,null,null,null,null,null,"3 - Moorfields Eye Hospital NHS Foundation Trust","NHTR06FT"]
[null,null,null,null,null,null,null,null,null,null,null,null,null,null,null,"3 - The Newcastle Upon Tyne Hospitals NHS Foundation Trust","NHTRTDFT"]
[null,null,null,null,null,null,null,null,null,null,null,null,null,null,null,"3 - Norfolk and Norwich University Hosptials NHS Foundation Trust","NHTRM1FT"]
[null,null,null,null,null,null,null,null,null,null,null,null,null,null,null,"3 - Norfolk and Waveney Mental Health Partnership NHS Foundation Trust","NHTRMYFT"]
[null,null,null,null,null,null,null,null,null,null,null,null,null,null,null,"3 - North East London NHS Foundation Trust","NHTRATFT"]
[null,null,null,null,null,null,null,null,null,null,null,null,null,null,null,"3 - North Essex Partnership NHS Foundation Trust","NHTRRDFT"]
[null,null,null,null,null,null,null,null,null,null,null,null,null,null,null,"3 - North Tees & Hartlepool NHS Foundation Trust","NHTRVWFT"]
[null,null,null,null,null,null,null,null,null,null,null,null,null,null,null,"3 - Northamptonshire Healthcare NHS Foundation Trust","NHTRP1FT"]
[null,null,null,null,null,null,null,null,null,null,null,null,null,null,null,"3 - Northern Lincolnshire and Goole Hospitals NHS Foundation Trust","NHTRJLFT"]
[null,null,null,null,null,null,null,null,null,null,null,null,null,null,null,"3 - Northumberland, Tyne & Wear NHS Foundation Trust","NHTRX4FT"]
[null,null,null,null,null,null,null,null,null,null,null,null,null,null,null,"3 - Northumbria Healthcare NHS Foundation Trust","NHTRTFFT"]
[null,null,null,null,null,null,null,null,null,null,null,null,null,null,null,"3 - Oxford and Buckinhamshire Mental Health NHS Foundation Trust","NHTRNUFT"]
[null,null,null,null,null,null,null,null,null,null,null,null,null,null,null,"3 - Oxleas NHS Foundation Trust","NHTRPGFT"]
[null,null,null,null,null,null,null,null,null,null,null,null,null,null,null,"3 - Papworth Hospital NHS Foundation Trust","NHTR16FT"]
[null,null,null,null,null,null,null,null,null,null,null,null,null,null,null,"3 - Pennine Care NHS Foundation Trust","NHTRT2FT"]
[null,null,null,null,null,null,null,null,null,null,null,null,null,null,null,"3 - Peterborough and Stamford Hospitals NHS Foundation Trust","NHTR07FT"]
[null,null,null,null,null,null,null,null,null,null,null,null,null,null,null,"3 - Poole Hospital NHS Foundation Trust","NHTRD3FT"]
[null,null,null,null,null,null,null,null,null,null,null,null,null,null,null,"3 - The Queen Elizabeth Hospital, King’s Lynn, NHS Foundation Trust","NHTRCXFT"]
[null,null,null,null,null,null,null,null,null,null,null,null,null,null,null,"3 - Queen Victoria Hospital NHS Foundation Trust","NHTRPCFT"]
[null,null,null,null,null,null,null,null,null,null,null,null,null,null,null,"3 - Rotherham Doncaster and South Humber Mental Health NHS Foundation Trust","NHTRWCFT"]
[null,null,null,null,null,null,null,null,null,null,null,null,null,null,null,"3 - The Rotherham NHS Foundation Trust","NHTRFRFT"]
[null,null,null,null,null,null,null,null,null,null,null,null,null,null,null,"3 - Royal Berkshire NHS Foundation Trust","NHTRHWFT"]
[null,null,null,null,null,null,null,null,null,null,null,null,null,null,null,"3 - Royal Bolton Hospital NHS Foundation Trust","NHTRMCFT"]
[null,null,null,null,null,null,null,null,null,null,null,null,null,null,null,"3 - The Royal Bournemouth & Christchurch Hospitals NHS Foundation Trust","NHTRDZFT"]
[null,null,null,null,null,null,null,null,null,null,null,null,null,null,null,"3 - Royal Brompton and Harefield NHS Foundation Trust","NHTRT3FT"]
[null,null,null,null,null,null,null,null,null,null,null,null,null,null,null,"3 - Royal Devon and Exeter NHS Foundation Trust","NHTR08FT"]
[null,null,null,null,null,null,null,null,null,null,null,null,null,null,null,"3 - The Royal Marsden NHS Foundation Trust","NHTR10FT"]
[null,null,null,null,null,null,null,null,null,null,null,null,null,null,null,"3 - Royal National Hospital for Rheumatic Diseases NHS Foundation Trust","NHTRBBFT"]
[null,null,null,null,null,null,null,null,null,null,null,null,null,null,null,"3 - The Royal Orthopaedic Hospital NHS Foundation Trust","NHTRRJFT"]
[null,null,null,null,null,null,null,null,null,null,null,null,null,null,null,"3 - Royal Surrey County NHS Foundation Trust","NHTRA2FT"]
[null,null,null,null,null,null,null,null,null,null,null,null,null,null,null,"3 - Salford Royal NHS Foundation Trust","NHTRM3FT"]
[null,null,null,null,null,null,null,null,null,null,null,null,null,null,null,"3 - Salisbury NHS Foundation Trust","NHTRNZFT"]
[null,null,null,null,null,null,null,null,null,null,null,null,null,null,null,"3 - Sandwell Mental Health and Social Care NHS Foundation Trust","NHTTAJFT"]
[null,null,null,null,null,null,null,null,null,null,null,null,null,null,null,"3 - Sheffield Children’s NHS Foundation Trust","NHTRCUFT"]
[null,null,null,null,null,null,null,null,null,null,null,null,null,null,null,"3 - Sheffield Health and Social Care NHS Foundation Trust","NHTTAHFT"]
[null,null,null,null,null,null,null,null,null,null,null,null,null,null,null,"3 - Sheffield Teaching Hospitals NHS Foundation Trust","NHTR18FT"]
[null,null,null,null,null,null,null,null,null,null,null,null,null,null,null,"3 - Sherwood Forest Hospitals NHS Foundation Trust","NHTRK5FT"]
[null,null,null,null,null,null,null,null,null,null,null,null,null,null,null,"3 - Somerset Partnership NHS Foundation Trust","NHTRH5FT"]
[null,null,null,null,null,null,null,null,null,null,null,null,null,null,null,"3 - South Central Ambulance Service NHS Foundation Trust","NHTRYENFT"]
[null,null,null,null,null,null,null,null,null,null,null,null,null,null,null,"3 - South Devon Healthcare NHS Foundation Trust","NHTRA9FT"]
[null,null,null,null,null,null,null,null,null,null,null,null,null,null,null,"3 - South Essex Partnership University NHS Foundation Trust","NHTRWNFT"]
[null,null,null,null,null,null,null,null,null,null,null,null,null,null,null,"3 - South London and Maudsley NHS Foundation Trust","NHTRV5FT"]
[null,null,null,null,null,null,null,null,null,null,null,null,null,null,null,"3 - South Staffordshire and Shropshire Healthcare NHS Foundation Trust","NHTRREFT"]
[null,null,null,null,null,null,null,null,null,null,null,null,null,null,null,"3 - South Tees NHS Foundation Trust","NHTRTRFT"]
[null,null,null,null,null,null,null,null,null,null,null,null,null,null,null,"3 - South Tyneside NHS Foundation Trust","NHTRE9FT"]
[null,null,null,null,null,null,null,null,null,null,null,null,null,null,null,"3 - South Warwickshire NHS Foundation Trust","NHTRJCFT"]
[null,null,null,null,null,null,null,null,null,null,null,null,null,null,null,"3 - South West Yorkshire Partnership NHS foundation trust","NHTRXGFT"]
[null,null,null,null,null,null,null,null,null,null,null,null,null,null,null,"3 - South Western Ambulance Service NHS Foundation Trust","NHTRYFNFT"]
[null,null,null,null,null,null,null,null,null,null,null,null,null,null,null,"3 - Southend University Hospital NHS Foundation Trust","NHTRAJFT"]
[null,null,null,null,null,null,null,null,null,null,null,null,null,null,null,"3 - Stockport NHS Foundation Trust","NHTR09FT"]
[null,null,null,null,null,null,null,null,null,null,null,null,null,null,null,"3 - Surrey and Borders Partnership NHS Foundation Trust","NHTRXXFT"]
[null,null,null,null,null,null,null,null,null,null,null,null,null,null,null,"3 - Sussex Partnership NHS Foundation Trust","NHTRX2FT"]
[null,null,null,null,null,null,null,null,null,null,null,null,null,null,null,"3 - Tameside Hospital NHS Foundation Trust","NHTRMPFT"]
[null,null,null,null,null,null,null,null,null,null,null,null,null,null,null,"3 - Taunton And Somerset NHS Foundation Trust","NHTRBAFT"]
[null,null,null,null,null,null,null,null,null,null,null,null,null,null,null,"3 - Tavistock and Portman NHS Foundation Trust","NHTRNKFT"]
[null,null,null,null,null,null,null,null,null,null,null,null,null,null,null,"3 - Tees Esk and Wear Valleys NHS Foundation Trust","NHTRX3FT"]
[null,null,null,null,null,null,null,null,null,null,null,null,null,null,null,"3 - University College London Hospitals NHS Foundation Trust","NHTRRVFT"]
[null,null,null,null,null,null,null,null,null,null,null,null,null,null,null,"3 - University Hospital of South Manchester NHS Foundation Trust","NHTRM2FT"]
[null,null,null,null,null,null,null,null,null,null,null,null,null,null,null,"3 - University Hospital Birmingham NHS Foundation Trust","NHTR20FT"]
[null,null,null,null,null,null,null,null,null,null,null,null,null,null,null,"3 - University Hospitals Bristol NHS Foundation Trust","NHTRA7FT"]
[null,null,null,null,null,null,null,null,null,null,null,null,null,null,null,"3 - University Hospitals of Morecambe Bay NHS Foundation Trust","NHTRTXFT"]
[null,null,null,null,null,null,null,null,null,null,null,null,null,null,null,"3 - The Walton Centre NHS Foundation Trust","NHTRETFT"]
[null,null,null,null,null,null,null,null,null,null,null,null,null,null,null,"3 - Warrington and Halton Hospitals NHS Foundation Trust","NHTRWWFT"]
[null,null,null,null,null,null,null,null,null,null,null,null,null,null,null,"3 - Wirral University Teaching Hospital NHS Foundation Trust","NHTRBLFT"]
[null,null,null,null,null,null,null,null,null,null,null,null,null,null,null,"3 - Wrightington, Wigan and Leigh NHS Foundation Trust","NHTRRFFT"]
[null,null,null,null,null,null,null,null,null,null,null,null,null,null,null,"3 - Yeovil District Hospital NHS Foundation Trust","NHTRA4FT"]
[null,null,null,null,null,null,null,null,null,null,null,null,null,null,null,"3 - York Hospitals NHS Foundation Trust","NHTRCBFT"]
[null,null,null,null,null,null,null,null,null,null,null,null,null,null,null,"3 - Derbyshire Healthcare NHS Foundation Trust","NHTRXMNFT"]
[null,null,null,null,null,null,null,null,null,null,null,null,null,null,null,"3 - Great Ormond Street Hospital for Children NHS Foundation Trust","NHTRP4FT"]
[null,null,null,null,null,null,null,null,null,null,null,null,null,null,null,"3 - North East Ambulance Service NHS Foundation Trust","NHTRVKFT"]
[null,null,null,null,null,null,null,null,null,null,null,null,null,null,null,"3 - South East Coast Ambulance Service NHS Foundation Trust","NHTRYEFT"]
[null,null,null,null,null,null,null,null,null,null,null,null,null,null,null,"3 - The Hillingdon Hospitals NHS Foundation Trust","NHTRASFT"]
[null,null,null,null,null,null,null,null,null,null,null,null,null,null,null,"3 - The Robert Jones and Agnes Hunt Orthopaedic Hospital NHS Foundation Trust","NHTRL1FT"]
[null,null,null,null,null,null,null,null,null,null,null,null,null,null,null,"3 - University Hospital Southampton NHS Foundation Trust","NHTRHMFT"]
[null,null,null,null,null,null,null,null,null,null,null,null,null,null,null,"3 - West Suffolk NHS Foundation Trust","NHTRGRFT"]
[null,null,null,null,null,null,null,null,null,null,null,null,null,null,null,"3 - North Staffordshire Combined Healthcare NFT","NHTRLYNFT"]
[null,null,null,null,null,null,null,null,null,null,null,null,null,null,null,"3 - Avon and Wiltshire Mental Health Partner NFT","NHTRVNNFT"]
[null,null,null,null,null,null,null,null,null,null,null,null,null,null,null,"3 - Barking, Havering and Redbridge Hospital NFT","NHTRF4NFT"]
[null,null,null,null,null,null,null,null,null,null,null,null,null,null,null,"3 - Barnet and Chase Farm Hospitals NFT","NHTRVLNFT"]
[null,null,null,null,null,null,null,null,null,null,null,null,null,null,null,"3 - Barnet, Enfield and Haringey Mental Heal NFT","NHTRRPNFT"]
[null,null,null,null,null,null,null,null,null,null,null,null,null,null,null,"3 - Barts and The London NFT","NHTRNJNFT"]
[null,null,null,null,null,null,null,null,null,null,null,null,null,null,null,"3 - Bedford Hospitals NFT","NHTRC1NFT"]
[null,null,null,null,null,null,null,null,null,null,null,null,null,null,null,"3 - Bradford District Care Trust NFT","NHTTADNFT"]
[null,null,null,null,null,null,null,null,null,null,null,null,null,null,null,"3 - Brighton and Sussex University Hospitals NFT","NHTRXHNFT"]
[null,null,null,null,null,null,null,null,null,null,null,null,null,null,null,"3 - Buckinghamshire Hospitals NFT","NHTRXQNFT"]
[null,null,null,null,null,null,null,null,null,null,null,null,null,null,null,"3 - Coventry and Warwickshire Partnership NHS Trust","NHTRYGNFT"]
[null,null,null,null,null,null,null,null,null,null,null,null,null,null,null,"3 - Croydon Health Services NFT","NHTRJ6NFT"]
[null,null,null,null,null,null,null,null,null,null,null,null,null,null,null,"3 - Dartford and Gravesham NFT","NHTRN7NFT"]
[null,null,null,null,null,null,null,null,null,null,null,null,null,null,null,"3 - Devon Partnership NFT","NHTRWVNFT"]
[null,null,null,null,null,null,null,null,null,null,null,null,null,null,null,"3 - Dudley and Walsall Mental Health Partnership NHS Trust","NHTRYKNFT"]
[null,null,null,null,null,null,null,null,null,null,null,null,null,null,null,"3 - Ealing Hospital NFT","NHTRC3NFT"]
[null,null,null,null,null,null,null,null,null,null,null,null,null,null,null,"3 - East And North Hertfordshire NFT","NHTRWHNFT"]
[null,null,null,null,null,null,null,null,null,null,null,null,null,null,null,"3 - East Cheshire NFT","NHTRJNNFT"]
[null,null,null,null,null,null,null,null,null,null,null,null,null,null,null,"3 - East Lancashire Hospitals NFT","NHTRXRNFT"]
[null,null,null,null,null,null,null,null,null,null,null,null,null,null,null,"3 - East Midlands Ambulance Service NHS Trust","NHTRX9NFT"]
[null,null,null,null,null,null,null,null,null,null,null,null,null,null,null,"3 - East of England Ambulance Service NHS Trust","NHTRYCNFT"]
[null,null,null,null,null,null,null,null,null,null,null,null,null,null,null,"3 - East Sussex Hospitals NFT","NHTRXCNFT"]
[null,null,null,null,null,null,null,null,null,null,null,null,null,null,null,"3 - Epsom and St Helier University Hospitals NFT","NHTRVRNFT"]
[null,null,null,null,null,null,null,null,null,null,null,null,null,null,null,"3 - George Eliot Hospital NFT","NHTRLTNFT"]
[null,null,null,null,null,null,null,null,null,null,null,null,null,null,null,"3 - Great Western Ambulance Service NHS Trust","NHTRX5NFT"]
[null,null,null,null,null,null,null,null,null,null,null,null,null,null,null,"3 - Hereford Hospitals NFT","NHTRLQNFT"]
[null,null,null,null,null,null,null,null,null,null,null,null,null,null,null,"3 - Hinchingbrooke Health Care NFT","NHTRQQNFT"]
[null,null,null,null,null,null,null,null,null,null,null,null,null,null,null,"3 - Hull and East Yorkshire Hospitals NFT","NHTRWANFT"]
[null,null,null,null,null,null,null,null,null,null,null,null,null,null,null,"3 - Imperial College Healthcare NFT","NHTRYJNFT"]
[null,null,null,null,null,null,null,null,null,null,null,null,null,null,null,"3 - Ipswich Hospital NFT","NHTRGQNFT"]
[null,null,null,null,null,null,null,null,null,null,null,null,null,null,null,"3 - Kent and Medway NHS and Social Care Partnership Trust","NHTRXYNFT"]
[null,null,null,null,null,null,null,null,null,null,null,null,null,null,null,"3 - Kingston Hospital NFT","NHTRAXNFT"]
[null,null,null,null,null,null,null,null,null,null,null,null,null,null,null,"3 - Leeds Teaching Hospitals NFT","NHTRR8NFT"]
[null,null,null,null,null,null,null,null,null,null,null,null,null,null,null,"3 - Leicestershire Partnership NFT","NHTRT5NFT"]
[null,null,null,null,null,null,null,null,null,null,null,null,null,null,null,"3 - Lewisham Healthcare NFT","NHTRJ2NFT"]
[null,null,null,null,null,null,null,null,null,null,null,null,null,null,null,"3 - London Ambulance Service NFT","NHTRRUNFT"]
[null,null,null,null,null,null,null,null,null,null,null,null,null,null,null,"3 - Maidstone and Tunbridge Wells NFT","NHTRWFNFT"]
[null,null,null,null,null,null,null,null,null,null,null,null,null,null,null,"3 - Manchester Mental Health and Social Care NFT","NHTTAENFT"]
[null,null,null,null,null,null,null,null,null,null,null,null,null,null,null,"3 - Mersey Care NFT","NHTRW4NFT"]
[null,null,null,null,null,null,null,null,null,null,null,null,null,null,null,"3 - Mid Essex Hospital Services NFT","NHTRQ8NFT"]
[null,null,null,null,null,null,null,null,null,null,null,null,null,null,null,"3 - Mid Yorkshire Hospitals NFT","NHTRXFNFT"]
[null,null,null,null,null,null,null,null,null,null,null,null,null,null,null,"3 - Newham Healthcare NFT","NHTRNHNFT"]
[null,null,null,null,null,null,null,null,null,null,null,null,null,null,null,"3 - North Bristol NFT","NHTRVJNFT"]
[null,null,null,null,null,null,null,null,null,null,null,null,null,null,null,"3 - North Cumbria Acute Hospitals NFT","NHTRNLNFT"]
[null,null,null,null,null,null,null,null,null,null,null,null,null,null,null,"3 - North Middlesex University Hospital NFT","NHTRAPNFT"]
[null,null,null,null,null,null,null,null,null,null,null,null,null,null,null,"3 - North West Ambulance Service NHS Trust","NHTRX7NFT"]
[null,null,null,null,null,null,null,null,null,null,null,null,null,null,null,"3 - North West London Hospitals NFT","NHTRV8NFT"]
[null,null,null,null,null,null,null,null,null,null,null,null,null,null,null,"3 - Northampton General Hospital NFT","NHTRNSNFT"]
[null,null,null,null,null,null,null,null,null,null,null,null,null,null,null,"3 - Northern Devon Healthcare NFT","NHTRBZNFT"]
[null,null,null,null,null,null,null,null,null,null,null,null,null,null,null,"3 - Nottingham University Hospitals NHS Trust","NHTRX1NFT"]
[null,null,null,null,null,null,null,null,null,null,null,null,null,null,null,"3 - Nottinghamshire Healthcare NFT","NHTRHANFT"]
[null,null,null,null,null,null,null,null,null,null,null,null,null,null,null,"3 - Oxford Radcliffe Hospitals NFT","NHTRTHNFT"]
[null,null,null,null,null,null,null,null,null,null,null,null,null,null,null,"3 - Oxfordshire Learning Disability NFT","NHTRHXNFT"]
[null,null,null,null,null,null,null,null,null,null,null,null,null,null,null,"3 - Pennine Acute Hospitals NFT","NHTRW6NFT"]
[null,null,null,null,null,null,null,null,null,null,null,null,null,null,null,"3 - Plymouth Hospitals NFT","NHTRK9NFT"]
[null,null,null,null,null,null,null,null,null,null,null,null,null,null,null,"3 - Portsmouth Hospitals NFT","NHTRHUNFT"]
[null,null,null,null,null,null,null,null,null,null,null,null,null,null,null,"3 - Princess Alexandra Hospital NFT","NHTRQWNFT"]
[null,null,null,null,null,null,null,null,null,null,null,null,null,null,null,"3 - Royal Cornwall Hospitals NFT","NHTREFNFT"]
[null,null,null,null,null,null,null,null,null,null,null,null,null,null,null,"3 - Royal Free Hampstead NFT","NHTRALNFT"]
[null,null,null,null,null,null,null,null,null,null,null,null,null,null,null,"3 - Royal Liverpool and Broadgreen Universit NFT","NHTRQ6NFT"]
[null,null,null,null,null,null,null,null,null,null,null,null,null,null,null,"3 - Royal National Orthopaedic Hospital NFT","NHTRANNFT"]
[null,null,null,null,null,null,null,null,null,null,null,null,null,null,null,"3 - Royal United Hospital Bath NFT","NHTRD1NFT"]
[null,null,null,null,null,null,null,null,null,null,null,null,null,null,null,"3 - Royal Wolverhampton Hospitals NFT","NHTRL4NFT"]
[null,null,null,null,null,null,null,null,null,null,null,null,null,null,null,"3 - Sandwell and West Birmingham Hospitals NFT","NHTRXKNFT"]
[null,null,null,null,null,null,null,null,null,null,null,null,null,null,null,"3 - Scarborough and North East Yorkshire Hea NFT","NHTRCCNFT"]
[null,null,null,null,null,null,null,null,null,null,null,null,null,null,null,"3 - Shrewsbury and Telford Hospitals NFT","NHTRXWNFT"]
[null,null,null,null,null,null,null,null,null,null,null,null,null,null,null,"3 - South London Healthcare NHS Trust","NHTRYQNFT"]
[null,null,null,null,null,null,null,null,null,null,null,null,null,null,null,"3 - South West London and St George's Mental NFT","NHTRQYNFT"]
[null,null,null,null,null,null,null,null,null,null,null,null,null,null,null,"3 - Southport and Ormskirk Hospital NFT","NHTRVYNFT"]
[null,null,null,null,null,null,null,null,null,null,null,null,null,null,null,"3 - St George's Healthcare NFT","NHTRJ7NFT"]
[null,null,null,null,null,null,null,null,null,null,null,null,null,null,null,"3 - St Helens and Knowsley Hospitals NFT","NHTRBNNFT"]
[null,null,null,null,null,null,null,null,null,null,null,null,null,null,null,"3 - Surrey And Sussex Healthcare NFT","NHTRTPNFT"]
[null,null,null,null,null,null,null,null,null,null,null,null,null,null,null,"3 - Sussex Community NFT","NHTRDRNFT"]
[null,null,null,null,null,null,null,null,null,null,null,null,null,null,null,"3 - Trafford Healthcare NFT","NHTRM4NFT"]
[null,null,null,null,null,null,null,null,null,null,null,null,null,null,null,"3 - United Lincolnshire Hospitals NFT","NHTRWDNFT"]
[null,null,null,null,null,null,null,null,null,null,null,null,null,null,null,"3 - University Hospital of North Staffordshi NFT","NHTRJENFT"]
[null,null,null,null,null,null,null,null,null,null,null,null,null,null,null,"3 - University Hospitals Coventry and Warwic NFT","NHTRKBNFT"]
[null,null,null,null,null,null,null,null,null,null,null,null,null,null,null,"3 - University Hospitals of Leicester NFT","NHTRWENFT"]
[null,null,null,null,null,null,null,null,null,null,null,null,null,null,null,"3 - Walsall Hospitals NFT","NHTRBKNFT"]
[null,null,null,null,null,null,null,null,null,null,null,null,null,null,null,"3 - West Hertfordshire Hospitals NFT","NHTRWGNFT"]
[null,null,null,null,null,null,null,null,null,null,null,null,null,null,null,"3 - West London Mental Health NFT","NHTRKLNFT"]
[null,null,null,null,null,null,null,null,null,null,null,null,null,null,null,"3 - West Middlesex University NFT","NHTRFWNFT"]
[null,null,null,null,null,null,null,null,null,null,null,null,null,null,null,"3 - West Midlands Ambulance Service NHS Trust","NHTRYANFT"]
[null,null,null,null,null,null,null,null,null,null,null,null,null,null,null,"3 - Weston Area Health NFT","NHTRA3NFT"]
[null,null,null,null,null,null,null,null,null,null,null,null,null,null,null,"3 - Whipps Cross University Hospital NFT","NHTRGCNFT"]
[null,null,null,null,null,null,null,null,null,null,null,null,null,null,null,"3 - Whittington Hospital NFT","NHTRKENFT"]
[null,null,null,null,null,null,null,null,null,null,null,null,null,null,null,"3 - Worcestershire Acute Hospitals NFT","NHTRWPNFT"]
[null,null,null,null,null,null,null,null,null,null,null,null,null,null,null,"3 - Yorkshire Ambulance Service NHS Trust","NHTRX8NFT"]
[null,null,null,null,null,null,null,null,null,null,null,null,null,null,null,"3 - Ashton, Leigh & Wigan Community Healthcare NFT","NHTRY2NFT"]
[null,null,null,null,null,null,null,null,null,null,null,null,null,null,null,"3 - Birmingham Community Healthcare NFT","NHTRYWNFT"]
[null,null,null,null,null,null,null,null,null,null,null,null,null,null,null,"3 - Cambridgeshire Community Services NFT","NHTRYVNFT"]
[null,null,null,null,null,null,null,null,null,null,null,null,null,null,null,"3 - Central London Community Healthcare NFT","NHTRYXNFT"]
[null,null,null,null,null,null,null,null,null,null,null,null,null,null,null,"3 - Eastern and Coastal Kent Community Health NFT","NHTRYYNFT"]
[null,null,null,null,null,null,null,null,null,null,null,null,null,null,null,"3 - Hertfordshire Community NFT","NHTRY4NFT"]
[null,null,null,null,null,null,null,null,null,null,null,null,null,null,null,"3 - Liverpool Community Healthcare NFT","NHTRY1NFT"]
[null,null,null,null,null,null,null,null,null,null,null,null,null,null,null,"3 - Norfolk Community Health and Care NFT","NHTRY3NFT"]
[null,null,null,null,null,null,null,null,null,null,null,null,null,null,null,"3 - The Wirral Community NHS Trust","NHTRY7NFT"]
[null,null,null,null,null,null,null,null,null,null,null,null,null,null,null,"3 - The Leeds Community NHS Trust","NHTRY6NFT"]
[null,null,null,null,null,null,null,null,null,null,null,null,null,null,null,"3 - The Lincolnshire Community Health Services NHS Trust","NHTRY5NFT"]
[null,null,null,null,null,null,null,null,null,null,null,null,null,null,null,"3 - The Derbyshire Community Health Services NHS Trust","NHTRY8NFT"]
[null,null,null,null,null,null,null,null,null,null,null,null,null,null,null,"3 - Worcestshire Health and Care NHS Trust","NHTR1ANFT"]
[null,null,null,null,null,null,null,null,null,null,null,null,null,null,null,"3 - Shropshire Community NHS Trust","NHTR1DNFT"]
[null,null,null,null,null,null,null,null,null,null,null,null,null,null,null,"3 - Staffordshire and Stoke on Trent Partnership NHS Trust ","NHTR1ENFT"]
[null,null,null,null,null,null,null,null,null,null,null,null,null,null,null,"3 - The Hounclow and Richmond  Community Healthcare NHS Trust","NHTRY9NFT"]
[null,null,null,null,null,null,null,null,null,null,null,null,null,null,null,"3 - Western Sussex Hospitals NHS Trust","NHTRYRNFT"]
[null,null,null,null,null,null,null,null,null,null,null,null,null,null,null,"3 - The Solent NHS Trust","NHTR1CNFT"]
[null,null,null,null,null,null,null,null,null,null,null,null,null,null,null,"3 - Belfast Health and Social Care Trust","NISCT1"]
[null,null,null,null,null,null,null,null,null,null,null,null,null,null,null,"3 - NI Ambulance Service HSS Trust","HSST14"]
[null,null,null,null,null,null,null,null,null,null,null,null,null,null,null,"3 - Southern Health and Social Care Trust","NISCT4"]
[null,null,null,null,null,null,null,null,null,null,null,null,null,null,null,"3 - Western Health and Social Care Trust","NISCT5"]
[null,null,null,null,null,null,null,null,null,null,null,null,null,null,null,"3 - Northern Health and Social Care Trust","NISCT2"]
[null,null,null,null,null,null,null,null,null,null,null,null,null,null,null,"3 - South Eastern Health and Social Care Trust","NISCT3"]
[null,null,null,null,null,null,null,null,null,null,null,null,null,null,null,"3 - Public Health Wales NHS Trust","WNHT15"]
[null,null,null,null,null,null,null,null,null,null,null,null,null,null,null,"3 - Velindre","WNHT13"]
[null,null,null,null,null,null,null,null,null,null,null,null,null,null,null,"3 - Welsh Ambulance Services","WNHT14"]
[null,null,null,null,null,null,null,null,null,null,null,null,null,null,null,"3 - Foundation Trusts Summarised Account","FTSUM"]
[null,null,null,null,null,null,null,null,null,null,null,null,null,null,null,"3 - NHS Trusts Summarised Account","NFTSUM"]
[null,null,null,null,null,null,null,null,null,null,null,null,null,null,null,"4 - Companies House","COH084"]
[null,null,null,null,null,null,null,null,null,null,null,null,null,null,null,"4 - Intellectual Property Office","PAO084"]
[null,null,null,null,null,null,null,null,null,null,null,null,null,null,null,"4 - OFCOM","OFC084"]
[null,null,null,null,null,null,null,null,null,null,null,null,null,null,null,"4 - Audit Commission","AUC085"]
[null,null,null,null,null,null,null,null,null,null,null,null,null,null,null,"4 - Fire Service College","FSC085"]
[null,null,null,null,null,null,null,null,null,null,null,null,null,null,null,"4 - Ordnance Survey","ORD085"]
[null,null,null,null,null,null,null,null,null,null,null,null,null,null,null,"4 - Welsh Fourth Channel Authority (S4C)","WFC048"]
[null,null,null,null,null,null,null,null,null,null,null,null,null,null,null,"4 - General Teaching Council for England","GTC022"]
[null,null,null,null,null,null,null,null,null,null,null,null,null,null,null,"4 - British Waterways Board","BWB003"]
[null,null,null,null,null,null,null,null,null,null,null,null,null,null,null,"4 - Forest Enterprise Agency","FEA028"]
[null,null,null,null,null,null,null,null,null,null,null,null,null,null,null,"4 - Commonwealth Development Corporation","CDC030"]
[null,null,null,null,null,null,null,null,null,null,null,null,null,null,null,"4 - Civil Aviation Authority","CAA004"]
[null,null,null,null,null,null,null,null,null,null,null,null,null,null,null,"4 - Driving Standards Agency","DSA004"]
[null,null,null,null,null,null,null,null,null,null,null,null,null,null,null,"4 - General Lighthouse Fund","GLF004"]
[null,null,null,null,null,null,null,null,null,null,null,null,null,null,null,"4 - Vehicle and Operator Services Agency","VOS004"]
[null,null,null,null,null,null,null,null,null,null,null,null,null,null,null,"4 - Remploy","REL032"]
[null,null,null,null,null,null,null,null,null,null,null,null,null,null,null,"4 - National Nuclear Laboratory Ltd","NNL066"]
[null,null,null,null,null,null,null,null,null,null,null,null,null,null,null,"4 - NHS Blood and Transplant","NBA033"]
[null,null,null,null,null,null,null,null,null,null,null,null,null,null,null,"4 - Medicines and Healthcare Products Regulatory Agency","MHP033"]
[null,null,null,null,null,null,null,null,null,null,null,null,null,null,null,"4 - Nexus (Tyne & Wear Passenger Transport Executive)","NXS004"]
[null,null,null,null,null,null,null,null,null,null,null,null,null,null,null,"4 - British Council","BCL027"]
[null,null,null,null,null,null,null,null,null,null,null,null,null,null,null,"4 - FCO Services","FCS027"]
[null,null,null,null,null,null,null,null,null,null,null,null,null,null,null,"4 - Forensic Science Service","FSS034"]
[null,null,null,null,null,null,null,null,null,null,null,null,null,null,null,"4 - Defence Science and Technology Laboratory","DST017"]
[null,null,null,null,null,null,null,null,null,null,null,null,null,null,null,"4 - Defence Support Group","DSG017"]
[null,null,null,null,null,null,null,null,null,null,null,null,null,null,null,"4 - UK Hydrographic Office","HYO017"]
[null,null,null,null,null,null,null,null,null,null,null,null,null,null,null,"4 - Driver and Vehicle Agency (Trading Fund element only) Northern Ireland","VTA206"]
[null,null,null,null,null,null,null,null,null,null,null,null,null,null,null,"4 - Northern Ireland Housing Executive","IHE210"]
[null,null,null,null,null,null,null,null,null,null,null,null,null,null,null,"4 - Northern Ireland Transport Holding Company","THC209"]
[null,null,null,null,null,null,null,null,null,null,null,null,null,null,null,"4 - Northern Ireland Water Ltd","NIW099"]
[null,null,null,null,null,null,null,null,null,null,null,null,null,null,null,"4 - Royal Mint","RMT087"]
[null,null,null,null,null,null,null,null,null,null,null,null,null,null,null,"4 - Central Office of Information","COI010"]
[null,null,null,null,null,null,null,null,null,null,null,null,null,null,null,"4 - Channel Four Television Corporation","CFT048"]
[null,null,null,null,null,null,null,null,null,null,null,null,null,null,null,"4 - Land Registry","LRG045"]
[null,null,null,null,null,null,null,null,null,null,null,null,null,null,null,"4 - Meteorological Office","MEO017"]
[null,null,null,null,null,null,null,null,null,null,null,null,null,null,null,"4 - NHS Professionals","NSP033"]
[null,null,null,null,null,null,null,null,null,null,null,null,null,null,null,"4 - Pacific Nuclear Transport Ltd","PNT066"]
[null,null,null,null,null,null,null,null,null,null,null,null,null,null,null,"4 - Royal Mail Holdings plc","RMH084"]
[null,null,null,null,null,null,null,null,null,null,null,null,null,null,null,"4 - General Teaching Council for Wales","TCW090"]
[null,null,null,null,null,null,null,null,null,null,null,null,null,null,null,"4 - Caledonian Maritime Assets Ltd","CMB075"]
[null,null,null,null,null,null,null,null,null,null,null,null,null,null,null,"4 - David MacBrayne Ltd","DMB075"]
[null,null,null,null,null,null,null,null,null,null,null,null,null,null,null,"4 - Scottish Water","SWA075"]
[null,null,null,null,null,null,null,null,null,null,null,null,null,null,null,"4 - National Records of Scotland","NRS075"]
[null,null,null,null,null,null,null,null,null,null,null,null,null,null,null,"4 - Registers of Scotland","ROS075"]
[null,null,null,null,null,null,null,null,null,null,null,null,null,null,null,"5 - Other Entities","OTHER"]

{"sheet":"CFR Return","index":6,"n_rows":106,"n_cols":9,"rows_kept":106,"cut":false,"hidden":false,"merged":[]}
["Final CFR Return",null,null,null,{"$f":"IF(B2=\"XML File\",1,IF(B2=\"Manual Entry\",2,0))","v":2},null,"Errors and Queries\nErrors - missing or incorect data. The DfE will not accept CFR returns with errors and so your return must be amended to remove  all error messages before it is sent to the Local Authority.\n","Q","E"]
["Data Source Used: ","Manual Entry",null,null,null,null,"Queries  - an explanatory note must be entered in the note section (row 99). You can ignore any query warnings for which you have already added an explanation in the note section.",{"$f":"SUM(H3:H106)","v":1},{"$f":"SUM(I3:I106)","v":8}]
[null,"School Cost Code  ",{"$f":"'Checklist & Authorisation'!D1","v":0},null,null,null,{"$f":"IF(ISNA(VLOOKUP('Checklist & Authorisation'!D1,Lookup!A:A,1,FALSE)),\"Please enter cost code on Checklist & Authorisation tab\",\"\")","v":"Please enter cost code on Checklist & Authorisation tab"},null,{"$f":"IF(G3=\"\",0,1)","v":1}]
[]
["School:  ",{"$f":"IF(ISNA(VLOOKUP(C3,Lookup!A:C,3,FALSE)),\"\",VLOOKUP(C3,Lookup!A:C,3,FALSE))","v":""}]
["DfE No.",{"$f":"IF(ISNA(VLOOKUP(C3,Lookup!A:B,2,FALSE)),\"\",VLOOKUP(C3,Lookup!A:B,2,FALSE))","v":""}]
["Contact Name",{"$f":"IF(E1=1,'xml convertor'!CH5,\"\")","v":""},null,null,null,{"$f":"IF(B7=\"\",1,0)","v":1},{"$f":"IF(OR(B7=\"\",B7=0),\"Error: A contact name must be entered\",\"Check information is correct and amend if necessary\")","v":"Error: A contact name must be entered"},{"$f":"IF(LEFT(G7,5)=\"Query\",1,0)","v":0},{"$f":"IF(LEFT(G7,5)=\"Error\",1,0)","v":1}]
["Contact E-mail",{"$f":"IF(E1=1,'xml convertor'!CI5,\"\")","v":""},null,null,null,{"$f":"IF(B8=\"\",1,0)","v":1},{"$f":"IF(OR(B8=\"\",B8=0),\"Error: A contact e-mail must be entered\",\"Check information is correct and amend if necessary\")","v":"Error: A contact e-mail must be entered"},{"$f":"IF(LEFT(G8,5)=\"Query\",1,0)","v":0},{"$f":"IF(LEFT(G8,5)=\"Error\",1,0)","v":1}]
["Contact Phone",{"$f":"IF(E1=1,'xml convertor'!CJ5,\"\")","v":""},null,null,null,{"$f":"IF(B9=\"\",1,0)","v":1},{"$f":"IF(OR(B9=\"\",B9=0),\"Error: A contact phone must be entered\",\"Check information is correct and amend if necessary\")","v":"Error: A contact phone must be entered"},0,1]
["Financial Federation",{"$f":"IF(E1=1,'xml convertor'!CL5,\"\")","v":""},"(Y or N)",null,null,{"$f":"IF(B10=\"\",1,0)","v":1},{"$f":"IF(OR(B10=\"\",B10=0),\"Error: federation status must be entered\",\"Check information is correct and amend if necessary\")","v":"Error: federation status must be entered"},0,1]
["Complete Year (Y/N)","N","(Y or N)",null,null,{"$f":"IF(B11=\"\",1,0)","v":0},null,0,0]
["Rates Exempt (Y/N)",{"$f":"IF(ISBLANK(C3),\"Please enter cost code above\",IF(C3<8000,\"N\",\"Y\"))","v":"N"},null,null,null,null,null,0,0]
["Date Completed",{"$f":"IF(E1=1,'xml convertor'!F5,\"\")","v":""},"(dd-mm-yyyy)",null,null,{"$f":"IF(B13=\"\",1,0)","v":1},{"$f":"IF(OR(B13=\"\",B13=0),\"Error: A date must be entered\",\"Check information is correct and amend if necessary\")","v":"Error: A date must be entered"},0,1]
[null,null,null,null,null,{"$f":"SUM(F3:F13)","v":5},null,0,0]
["Opening Balances (in pounds and pence)",null,null,null,null,null,null,0,0]
["OB01 Opening Pupil Focused Revenue Balance",null,{"$f":"E16","v":0},null,{"$f":"IF($E$1=1,'xml convertor'!$G$5,IF($E$1=2,'CFR - Manual Entry'!H7,\"\"))","v":0},null,{"$f":"IF(ISBLANK(C16),\"Error: An opening balance must be entered\",\"\")","v":""},0,0]
["OB02 Opening Community Focused Revenue Balance",null,{"$f":"E17","v":0},null,{"$f":"IF($E$1=1,'xml convertor'!$H$5,IF($E$1=2,'CFR - Manual Entry'!H8,\"\"))","v":0},null,{"$f":"IF(ISBLANK(C17),\"Error: An opening balance must be entered\",\"\")","v":""},0,0]
["OB03 Opening Capital Balance",null,{"$f":"E18","v":0},null,{"$f":"IF($E$1=1,'xml convertor'!$I$5,IF($E$1=2,'CFR - Manual Entry'!H9,\"\"))","v":0},null,"",0,0]
[]
["CFR Income Headings",null,"Actual"]
["I01 Funds delegated by the LEA",null,{"$f":"E21","v":0},null,{"$f":"IF($E$1=1,'xml convertor'!J5,IF($E$1=2,'CFR - Manual Entry'!J26,\"\"))","v":0},null,{"$f":"IF(C21<1000,\"Error: I01 Must be > £1,000\",\"\")","v":"Error: I01 Must be > £1,000"},0,1]
["I02 Funding for sixth form students",null,{"$f":"E22","v":0},null,{"$f":"IF($E$1=1,'xml convertor'!K5,IF($E$1=2,'CFR - Manual Entry'!J31,\"\"))","v":0},null,{"$f":"IF(C22<0,\"Error: I02 must not be < £0\",\"\")","v":""},0,0]
["I03 SEN funding",null,0,null,{"$f":"IF($E$1=1,'xml convertor'!L5,IF($E$1=2,'CFR - Manual Entry'!J36,\"\"))","v":0},null,{"$f":"IF(C23<0,\"Error: I03 must not be < £0\",\"\")","v":""},0,0]
["I04 Funding for minority ethnic pupils",null,0,null,{"$f":"IF($E$1=1,'xml convertor'!M5,IF($E$1=2,'CFR - Manual Entry'!J42,\"\"))","v":0},null,{"$f":"IF(C24<0,\"Error: I04 must not be < £0\",\"\")","v":""},0,0]
["I05 Pupil Premium",null,0,null,{"$f":"IF($E$1=1,'xml convertor'!N5,IF($E$1=2,'CFR - Manual Entry'!J47,\"\"))","v":0},null,{"$f":"IF(C25<0,\"Error: I05 must not be < £0\",\"\")","v":""},0,0]
["I06 Other Government grants",null,0,null,{"$f":"IF($E$1=1,'xml convertor'!O5,IF($E$1=2,'CFR - Manual Entry'!J57,\"\"))","v":0},null,{"$f":"IF(C26<0,\"Error: I06 must not be < £0\",\"\")","v":""},0,0]
["I07 Other grants and payments",null,0,null,{"$f":"IF($E$1=1,'xml convertor'!P5,IF($E$1=2,'CFR - Manual Entry'!J63,\"\"))","v":0},null,{"$f":"IF(C27<0,\"Error: I07 must not be < £0\",\"\")","v":""},0,0]
["I08a Income from lettings",null,0,null,{"$f":"IF($E$1=1,'xml convertor'!Q5,IF($E$1=2,'CFR - Manual Entry'!J67,\"\"))","v":0},null,{"$f":"IF(C28<0,\"Error: I08a must not be < £0\",\"\")","v":""},0,0]
["I08b Other income from facilities and services",null,0,null,{"$f":"IF($E$1=1,'xml convertor'!R5,IF($E$1=2,'CFR - Manual Entry'!J82,\"\"))","v":0},null,{"$f":"IF(C29<0,\"Error: I08b must not be < £0\",\"\")","v":""},0,0]
["I09 Income from catering",null,0,null,{"$f":"IF($E$1=1,'xml convertor'!S5,IF($E$1=2,'CFR - Manual Entry'!J87,\"\"))","v":0},null,{"$f":"IF(C30<0,\"Error: I09 must not be < £0\",\"\")","v":""},0,0]
["I10 Receipts from supply teacher insurance claims",null,0,null,{"$f":"IF($E$1=1,'xml convertor'!T5,IF($E$1=2,'CFR - Manual Entry'!J91,\"\"))","v":0},null,{"$f":"IF(C31<0,\"Error: I10 must not be < £0\",\"\")","v":""},0,0]
["I11 Receipts from other insurance claims",null,0,null,{"$f":"IF($E$1=1,'xml convertor'!U5,IF($E$1=2,'CFR - Manual Entry'!J100,\"\"))","v":0},null,{"$f":"IF(C32<0,\"Error: I11 must not be < £0\",\"\")","v":""},0,0]
["I12 Income from contributions to visits etc.",null,0,null,{"$f":"IF($E$1=1,'xml convertor'!V5,IF($E$1=2,'CFR - Manual Entry'!J107,\"\"))","v":0},null,{"$f":"IF(C33<0,\"Error: I12 must not be < £0\",\"\")","v":""},0,0]
["I13 Donations and/or voluntary funds",null,0,null,{"$f":"IF($E$1=1,'xml convertor'!W5,IF($E$1=2,'CFR - Manual Entry'!J113,\"\"))","v":0},null,{"$f":"IF(C34<0,\"Error: I13 must not be < £0\",\"\")","v":""},0,0]
["I14 (Not in Use)",null,0]
["I15 Pupil focused extended school funding and/or grants",null,0,null,{"$f":"IF($E$1=1,'xml convertor'!Y5,IF($E$1=2,'CFR - Manual Entry'!J121,\"\"))","v":0},null,{"$f":"IF(C36<0,\"Error: I15 must not be < £0\",\"\")","v":""},0,0]
["I16 Community focused extended school funding and/or grants",null,0,null,{"$f":"IF($E$1=1,'xml convertor'!Z5,IF($E$1=2,'CFR - Manual Entry'!J126,\"\"))","v":0},null,{"$f":"IF(C37<0,\"Error: I16 must not be < £0\",\"\")","v":""},0,0]
["I17 Community focused extended school facilities income",null,0,null,{"$f":"IF($E$1=1,'xml convertor'!AA5,IF($E$1=2,'CFR - Manual Entry'!J130,\"\"))","v":0},null,{"$f":"IF(C38<0,\"Error: I17 must not be < £0\",\"\")","v":""},0,0]
["I18A Covid Job Retention",null,0,null,{"$f":"IF($E$1=1,'xml convertor'!AB5,IF($E$1=2,'CFR - Manual Entry'!J134,\"\"))","v":0},null,{"$f":"IF(C39<0,\"Error: I18A must not be < £0\",\"\")","v":""},0,0]
["I18B Covid Grants",null,0,null,{"$f":"IF($E$1=1,'xml convertor'!AC5,IF($E$1=2,'CFR - Manual Entry'!J139,\"\"))","v":0},null,{"$f":"IF(C40<0,\"Error: I18B must not be < £0\",\"\")","v":""},0,0]
["I18C Covid Catch Up Activity",null,0,null,{"$f":"IF($E$1=1,'xml convertor'!AD5,IF($E$1=2,'CFR - Manual Entry'!J144,\"\"))","v":0},null,{"$f":"IF(C41<0,\"Error: I18C must not be < £0\",\"\")","v":""},0,0]
["I18D Additional Grant for Schools",null,0,null,{"$f":"IF($E$1=1,'xml convertor'!AE5,IF($E$1=2,'CFR - Manual Entry'!J149,\"\"))","v":0},null,{"$f":"IF(C42<0,\"Error: I18D must not be < £0\",\"\")","v":""},0,0]
["Total CFR Income Headings",null,{"$f":"SUM(C21:C42)","v":0}]
[]
["CFR Expenditure Headings",null,"Actual"]
["E01 Teaching staff",null,{"$f":"E46","v":0},null,{"$f":"IF($E$1=1,'xml convertor'!AF5,IF($E$1=2,'CFR - Manual Entry'!J160,\"\"))","v":0},null,{"$f":"IF(C46<0,\"Query: E01 should not normally be < £0. Please add explanatory note below\",\"\")","v":""},0,0]
["E02 Supply staff",null,0,null,{"$f":"IF($E$1=1,'xml convertor'!AG5,IF($E$1=2,'CFR - Manual Entry'!J166,\"\"))","v":0},null,{"$f":"IF(C47<0,\"Query: E02 should not normally be < £0. Please add explanatory note below\",\"\")","v":""},0,0]
["E03 Education support staff",null,0,null,{"$f":"IF($E$1=1,'xml convertor'!AH5,IF($E$1=2,'CFR - Manual Entry'!J193,\"\"))","v":0},null,{"$f":"IF(C48<0,\"Query: E03 should not normally be < £0. Please add explanatory note below\",\"\")","v":""},0,0]
["E04 Premises staff",null,0,null,{"$f":"IF($E$1=1,'xml convertor'!AI5,IF($E$1=2,'CFR - Manual Entry'!J207,\"\"))","v":0},null,{"$f":"IF(C49<0,\"Query: E04 should not normally be < £0. Please add explanatory note below\",\"\")","v":""},0,0]
["E05 Administrative & clerical staff",null,0,null,{"$f":"IF($E$1=1,'xml convertor'!AJ5,IF($E$1=2,'CFR - Manual Entry'!J218,\"\"))","v":0},null,{"$f":"IF(C50<0,\"Query: E05 should not normally be < £0. Please add explanatory note below\",\"\")","v":""},0,0]
["E06 Catering staff",null,0,null,{"$f":"IF($E$1=1,'xml convertor'!AK5,IF($E$1=2,'CFR - Manual Entry'!J225,\"\"))","v":0},null,{"$f":"IF(C51<0,\"Query: E06 should not normally be < £0. Please add explanatory note below\",\"\")","v":""},0,0]
["E07 Cost of other staff",null,0,null,{"$f":"IF($E$1=1,'xml convertor'!AL5,IF($E$1=2,'CFR - Manual Entry'!J236,\"\"))","v":0},null,{"$f":"IF(C52<0,\"Query: E07 should not normally be < £0. Please add explanatory note below\",\"\")","v":""},0,0]
["E08 Indirect employee expenses",null,0,null,{"$f":"IF($E$1=1,'xml convertor'!AM5,IF($E$1=2,'CFR - Manual Entry'!J257,\"\"))","v":0},null,{"$f":"IF(C53<0,\"Query: E08 should not normally be < £0. Please add explanatory note below\",\"\")","v":""},0,0]
["E09 Staff development  & training",null,0,null,{"$f":"IF($E$1=1,'xml convertor'!AN5,IF($E$1=2,'CFR - Manual Entry'!J264,\"\"))","v":0},null,{"$f":"IF(C54<0,\"Query: E09 should not normally be < £0. Please add explanatory note below\",\"\")","v":""},0,0]
["E10 Supply teacher insurance",null,0,null,{"$f":"IF($E$1=1,'xml convertor'!AO5,IF($E$1=2,'CFR - Manual Entry'!J269,\"\"))","v":0},null,{"$f":"IF(C55<0,\"Query: E10 should not normally be < £0. Please add explanatory note below\",\"\")","v":""},0,0]
["E11 Staff related insurance",null,0,null,{"$f":"IF($E$1=1,'xml convertor'!AP5,IF($E$1=2,'CFR - Manual Entry'!J276,\"\"))","v":0},null,{"$f":"IF(C56<0,\"Query: E11 should not normally be < £0. Please add explanatory note below\",\"\")","v":""},0,0]
["E12 Buildings maintenance and improvement",null,0,null,{"$f":"IF($E$1=1,'xml convertor'!AQ5,IF($E$1=2,'CFR - Manual Entry'!J284,\"\"))","v":0},null,{"$f":"IF(C57<0,\"Query: E12 should not normally be < £0. Please add explanatory note below\",\"\")","v":""},0,0]
["E13 Grounds maintenance and improvement",null,0,null,{"$f":"IF($E$1=1,'xml convertor'!AR5,IF($E$1=2,'CFR - Manual Entry'!J290,\"\"))","v":0},null,{"$f":"IF(C58<0,\"Query: E13 should not normally be < £0. Please add explanatory note below\",\"\")","v":""},0,0]
["E14 Cleaning & caretaking",null,0,null,{"$f":"IF($E$1=1,'xml convertor'!AS5,IF($E$1=2,'CFR - Manual Entry'!J297,\"\"))","v":0},null,{"$f":"IF(C59<0,\"Query: E14 should not normally be < £0. Please add explanatory note below\",\"\")","v":""},0,0]
["E15 Water & sewage",null,0,null,{"$f":"IF($E$1=1,'xml convertor'!AT5,IF($E$1=2,'CFR - Manual Entry'!J303,\"\"))","v":0},null,{"$f":"IF(C60<0,\"Query: E15 should not normally be < £0. Please add explanatory note below\",\"\")","v":""},0,0]
["E16 Energy",null,0,null,{"$f":"IF($E$1=1,'xml convertor'!AU5,IF($E$1=2,'CFR - Manual Entry'!J311,\"\"))","v":0},null,{"$f":"IF(C61<0,\"Query: E16 should not normally be < £0. Please add explanatory note below\",\"\")","v":""},0,0]
["E17 Rates",null,0,null,{"$f":"IF($E$1=1,'xml convertor'!AV5,IF($E$1=2,'CFR - Manual Entry'!J315,\"\"))","v":0},null,{"$f":"IF(C62<0,\"Query: E17 should not normally be < £0. Please add explanatory note below\",\"\")","v":""},0,0]
["E18 Other occupation costs",null,0,null,{"$f":"IF($E$1=1,'xml convertor'!AW5,IF($E$1=2,'CFR - Manual Entry'!J324,\"\"))","v":0},null,{"$f":"IF(C63<0,\"Query: E18 should not normally be < £0. Please add explanatory note below\",\"\")","v":""},0,0]
["E19 Learning resources (not ICT)",null,0,null,{"$f":"IF($E$1=1,'xml convertor'!AX5,IF($E$1=2,'CFR - Manual Entry'!J341,\"\"))","v":0},null,{"$f":"IF(C64<0,\"Query: E19 should not normally be < £0. Please add explanatory note below\",\"\")","v":""},0,0]
["E20 ICT Learning resources ",null,0,null,{"$f":"IF($E$1=1,'xml convertor'!AY5,IF($E$1=2,'CFR - Manual Entry'!J348,\"\"))","v":0},null,{"$f":"IF(C65<0,\"Query: E20 should not normally be < £0. Please add explanatory note below\",\"\")","v":""},0,0]
["E21 Exam fees",null,0,null,{"$f":"IF($E$1=1,'xml convertor'!AZ5,IF($E$1=2,'CFR - Manual Entry'!J352,\"\"))","v":0},null,{"$f":"IF(C66<0,\"Query: E21 should not normally be < £0. Please add explanatory note below\",IF(AND('Checklist & Authorisation'!D1<5000,'CFR Return'!C66>0),\"Query: Exam Fees should be zero for primary sector schools. Pease add explanatory note below\",IF(AND('Checklist & Authorisation'!D1>4999,'Checklist & Authorisation'!D1<8000,'CFR Return'!C66<1),\"Query: Exam Fees should be above zero for secondary schools. Pease add explanatory note below\",\"\")))","v":""},0,0]
["E22 Administrative supplies",null,0,null,{"$f":"IF($E$1=1,'xml convertor'!BA5,IF($E$1=2,'CFR - Manual Entry'!J367,\"\"))","v":0},null,{"$f":"IF(C67<0,\"Query: E22 should not normally be < £0. Please add explanatory note below\",\"\")","v":""},0,0]
["E23 Other insurance premiums",null,0,null,{"$f":"IF($E$1=1,'xml convertor'!BB5,IF($E$1=2,'CFR - Manual Entry'!J373,\"\"))","v":0},null,{"$f":"IF(C68<0.01,\"Query: E23 should normally be > £0. Please add explanatory note below\",\"\")","v":"Query: E23 should normally be > £0. Please add explanatory note below"},1,0]
["E24 Special facilities",null,0,null,{"$f":"IF($E$1=1,'xml convertor'!BC5,IF($E$1=2,'CFR - Manual Entry'!J385,\"\"))","v":0},null,{"$f":"IF(C69<0,\"Query: E24 should not normally be < £0. Please add explanatory note below\",\"\")","v":""},0,0]
["E25 Catering supplies",null,0,null,{"$f":"IF($E$1=1,'xml convertor'!BD5,IF($E$1=2,'CFR - Manual Entry'!J393,\"\"))","v":0},null,{"$f":"IF(C70<0,\"Query: E25 should not normally be < £0. Please add explanatory note below\",\"\")","v":""},0,0]
["E26 Agency supply staff",null,0,null,{"$f":"IF($E$1=1,'xml convertor'!BE5,IF($E$1=2,'CFR - Manual Entry'!J397,\"\"))","v":0},null,{"$f":"IF(C71<0,\"Query: E26 should not normally be < £0. Please add explanatory note below\",\"\")","v":""},0,0]
["E27 Bought in professional services - curriculum",null,0,null,{"$f":"IF($E$1=1,'xml convertor'!BF5,IF($E$1=2,'CFR - Manual Entry'!J404,\"\"))","v":0},null,{"$f":"IF(C72<0,\"Query: E27 should not normally be < £0. Please add explanatory note below\",\"\")","v":""},0,0]
["E28a Bought in professional services - other",null,0,null,{"$f":"IF($E$1=1,'xml convertor'!BG5,IF($E$1=2,'CFR - Manual Entry'!J411,\"\"))","v":0},null,{"$f":"IF(C73<0,\"Query: E28a should not normally be < £0. Please add explanatory note below\",\"\")","v":""},0,0]
["E28b Bought in professional services - PFI",null,0,null,{"$f":"IF($E$1=1,'xml convertor'!BI5,IF($E$1=2,'CFR - Manual Entry'!J416,\"\"))","v":0},null,{"$f":"IF(ISNA(VLOOKUP('Checklist & Authorisation'!D1,Lookup!A:A,1,FALSE)),\"\",IF(AND(C74<0.001,VLOOKUP('Checklist & Authorisation'!D1,Lookup!A:G,7,FALSE)=\"Y\"),\"Error: E28b must be greater than £0\",IF(AND(C74>0,VLOOKUP('Checklist & Authorisation'!D1,Lookup!A:G,7,FALSE)=\"\"),\"Error: E28b must be £0\",\"\")))","v":""},{"$f":"IF(LEFT(G74,5)=\"Query\",1,0)","v":0},{"$f":"IF(LEFT(G74,5)=\"Error\",1,0)","v":0}]
["E29 Loan interest",null,0,null,{"$f":"IF($E$1=1,'xml convertor'!BI5,IF($E$1=2,'CFR - Manual Entry'!J419,\"\"))","v":0},null,{"$f":"IF(C75<0,\"Query: E29 should not normally be < £0. Please add explanatory note below\",\"\")","v":""},0,0]
["E30 Direct revenue financing (revenue contributions to capital)",null,0,null,{"$f":"IF($E$1=1,'xml convertor'!BJ5,IF($E$1=2,'CFR - Manual Entry'!J423,\"\"))","v":0},null,{"$f":"IF(C76<0,\"Query: E30 should not normally be < £0. Please add explanatory note below\",\"\")","v":""},0,0]
["E31 Community focused school staff",null,0,null,{"$f":"IF($E$1=1,'xml convertor'!BK5,IF($E$1=2,'CFR - Manual Entry'!J427,\"\"))","v":0},null,{"$f":"IF(C77<0,\"Query: E31 should not normally be < £0. Please add explanatory note below\",\"\")","v":""},{"$f":"IF(LEFT(G77,5)=\"Query\",1,0)","v":0},{"$f":"IF(LEFT(G77,5)=\"Error\",1,0)","v":0}]
["E32 Community focused school costs",null,0,null,{"$f":"IF($E$1=1,'xml convertor'!BL5,IF($E$1=2,'CFR - Manual Entry'!J431,\"\"))","v":0},null,{"$f":"IF(C78<0,\"Query: E32 should not normally be < £0. Please add explanatory note below\",\"\")","v":""},0,0]
["Total CFR Expenditure Headings",null,{"$f":"SUM(C46:C78)","v":0}]
[]
["CFR Capital Income Headings",null,"Actual"]
["CI01 Capital income",null,{"$f":"E82","v":0},null,{"$f":"IF($E$1=1,'xml convertor'!BM5,IF($E$1=2,'CFR - Manual Entry'!J439,\"\"))","v":0},null,{"$f":"IF(C82<0,\"Error: CI01 must not be < £0\",\"\")","v":""},0,0]
["CI03 Voluntary or Private income",null,0,null,{"$f":"IF($E$1=1,'xml convertor'!BN5,IF($E$1=2,'CFR - Manual Entry'!J449,\"\"))","v":0},null,{"$f":"IF(C83<0,\"Error: CI03 must not be < £0\",\"\")","v":""},0,0]
["CI04 Direct revenue financing (revenue contributions to capital)",null,0,null,{"$f":"IF($E$1=1,'xml convertor'!BO5,IF($E$1=2,'CFR - Manual Entry'!J456,\"\"))","v":0},null,{"$f":"IF(C84<0,\"Error: CI04 must not be < £0\",\"\")","v":""},0,0]
["Total CFR Capital Income Headings",null,{"$f":"SUM(C82:C84)","v":0}]
[]
["CFR Capital Expenditure Headings",null,"Actual"]
["CE01 Acquisition of land and existing buildings",null,{"$f":"E88","v":0},null,{"$f":"IF($E$1=1,'xml convertor'!BQ5,IF($E$1=2,'CFR - Manual Entry'!J465,\"\"))","v":0},null,{"$f":"IF(C88<0,\"Error: CE01 must not be < £0\",\"\")","v":""},0,0]
["CE02 New construction, conversion and renovation",null,0,null,{"$f":"IF($E$1=1,'xml convertor'!BR5,IF($E$1=2,'CFR - Manual Entry'!J471,\"\"))","v":0},null,{"$f":"IF(C89<0,\"Error: CE02 must not be < £0\",\"\")","v":""},0,0]
["CE03 Vehicles, plant, equipment and machinery",null,0,null,{"$f":"IF($E$1=1,'xml convertor'!BS5,IF($E$1=2,'CFR - Manual Entry'!J476,\"\"))","v":0},null,{"$f":"IF(C90<0,\"Error: CE03 must not be < £0\",\"\")","v":""},0,0]
["CE04 Information & communications technology (ICT)",null,0,null,{"$f":"IF($E$1=1,'xml convertor'!BT5,IF($E$1=2,'CFR - Manual Entry'!J481,\"\"))","v":0},null,{"$f":"IF(C91<0,\"Error: CE04 must not be < £0\",\"\")","v":""},0,0]
["Total CFR Capital Expenditure Headings",null,{"$f":"SUM(C88:C91)","v":0}]
[]
["Closing Balances"]
["B01 Committed Revenue balance",null,{"$f":"IF((C16+C43-C37-C38-C79+C78+C77)<0,0,C16+C43-C37-C38-C79+C78+C77)","v":0},null,{"$f":"IF((C16+C43-C37-C38-C79+C78+C77)<0,0,C16+C43-C37-C38-C79+C78+C77)","v":0},null,{"$f":"IF(OR(C43=0,ROUND(SUM(C95:C96),2)=ROUND(C16+C43-C37-C38-C79+C77+C78,2)),\"Please note that the entire pupil focused surplus revenue balance will be shown under B01 if it\",\"Error: Your closing revenue balance (B01 & B02) must equal OB01 plus\")","v":"Please note that the entire pupil focused surplus revenue balance will be shown under B01 if it"},0,0]
["B02 Uncommitted Revenue balance",null,{"$f":"IF((C16+C43-C37-C38-C79+C78+C77)<0,C16+C43-C37-C38-C79+C78+C77,0)","v":0},null,{"$f":"IF((C16+C43-C37-C38-C79+C78+C77)<0,C16+C43-C37-C38-C79+C78+C77,0)","v":0},null,{"$f":"IF(OR(C43=0,ROUND(SUM(C95:C96),2)=ROUND(C16+C43-C37-C38-C79+C77+C78,2)),\"is a surplus or B02 if it is a deficit\",\"Income (I01 to I15) less expenditure (E01 to E30)\")","v":"is a surplus or B02 if it is a deficit"}]
["B03 Devolved Capital balance",null,{"$f":"C18+C85-C92","v":0},null,{"$f":"C18+C85-C92","v":0},null,{"$f":"IF(ROUND(SUM(C97:C99),2)=ROUND(C18+C85-C92,2),\"Please note that the entire capital balance will be shown under B03,\",\"Error: Your closing capital balance (B03 to B05) must equal OB03 plus\")","v":"Please note that the entire capital balance will be shown under B03,"},0,0]
["B04 Standards Fund Capital balance",null,{"$f":"E98","v":0}]
["B05 Other Capital balances",null,0,null,0,null,{"$f":"IF(ROUND(SUM(C97:C99),2)=ROUND(C18+C85-C92,2),\"but you can amend this manually if necessary\",\"income (CI01 to CI04) less expenditure (CE01 to CE04)\")","v":"but you can amend this manually if necessary"}]
["B06 Community Focused Revenue Balance",null,{"$f":"C17+C37+C38-C77-C78","v":0}]
["Total Balances Current Year ",null,{"$f":"SUM(C95:C100)","v":0},null,null,null,{"$f":"IF(OR(C95=\"\",C96=\"\",C97=\"\",C99=\"\"),\"Error: a figure must be entered for all balances, including a zero where appropriate\",\"\")","v":""},null,{"$f":"IF(G101=\"\",0,1)","v":0}]
[]
["Explanatory Notes for any Queries shown above"]
[null,null,null,{"$f":"IF(AND(H2>0,G104=\"\"),\"Error: explanatory notes must be entered in cell G104 for all queries shown Colum G\",\"\")","v":"Error: explanatory notes must be entered in cell G104 for all queries shown Colum G"},null,null,null,"-",{"$f":"IF(LEFT(D104,5)=\"Error\",1,0)","v":1}]
[null,null,null,null,null,null,null,0,0]
[null,null,null,null,null,null,{"$f":"IF(I2>0,\"This form contains \"&I2&\" errors. Please refer to column G & address these before submitting this return\",IF(H2>0,\"This form has generated \"&H2&\" queries. Please ensure notes have been added on row 104 to address all queries before submitting this return\",\"Thank you, your CFR Return has been completed\"))","v":"This form contains 8 errors. Please refer to column G & address these before submitting this return"}]

{"sheet":"CFR - XML import","index":7,"n_rows":0,"n_cols":0,"rows_kept":0,"cut":false,"hidden":false,"merged":[]}

{"sheet":"CFR - Manual Entry","index":8,"n_rows":483,"n_cols":11,"rows_kept":483,"cut":false,"hidden":false,"merged":[]}
[null,"Manual Data Entry by Ledger Code"]
[]
[null,"IFS Budget",null,"Detail ",null,"                       Description",null,"    Actual ",null,"CFR Heading "]
[null,"Codes",null,"Codes",null,null,null,null,null,"Total "]
[null,"Opening Balances"]
[null,null,null,null,null,"Opening Balances (in pounds and pence)",null,"£"]
[null,null,null,null,null,"OB01 Opening Pupil Focused Revenue Balance"]
[null,null,null,null,null,"OB02 Opening Community Focused Revenue Balance"]
[null,null,null,null,null,"OB03 Opening Capital Balance"]
[null,"Revenue Income"]
[null,"I01 Funds delegated by the LA"]
[null,"0001",null,null,null,"Schools Block Funding excluding rates & Notional SEN",null,null,null,null,"0001"]
[null,null,null,null,null,"Early Years Block Funding"]
[null,"0002",null,null,null,"Rates",null,null,null,null,"0002"]
[null,"0007",null,null,null,"Growth Fund",null,null,null,null,"0007"]
[null,"0008",null,null,null,"Other Devolved Funding",null,null,null,null,"0008"]
[null,"0012",null,null,null,"Standards Funds",null,null,null,null,"0012"]
[null,"0016",null,null,null,"Furniture & Equipment",null,null,null,null,"0016"]
[null,"0026",null,null,null,"Notional SEN & Pre 16 Place Led Funding",null,null,null,null,"0026"]
[null,null,null,"0971",null,"LA Contribution to Teachers Compromise Agreement",null,null,null,null,"0971"]
[null,"(less)",null,6831,null,"Excluded Pupils - Costs ",null,null,null,null,6831]
[null,null,null,5001,null,"Total De-delegation",null,null,null,null,5001]
[null,null,null,8098,null,"Other LA Contributions",null,null,null,null,8098]
[null,null,null,8124,null,"Excluded Pupils - Income ",null,null,null,null,8124]
[null,null,null,8392,null,"LA Contributions to Staff Absences",null,null,null,null,8392]
[null,null,null,null,null,"Total of I01 Funds delegated by the LA",null,null,null,{"$f":"SUM(H12:H20)-H21+SUM(H22:H25)","v":0}]
[]
[null,"I02 Funding for sixth form students"]
[null,"0023",null,null,null,"Sixth Form Funding",null,null,null,null,"0023"]
[null,"0030",null,null,null,"16-19 Bursary Funding",null,null,null,null,"0030"]
[null,null,null,null,null,"Total of I02 Funding for sixth form students",null,null,null,{"$f":"SUM(H29:H30)","v":0}]
[]
[null,"I03 SEN funding"]
[null,"0004",null,null,null,"Additional SEN & High Needs Pupil Led Funding",null,null,null,null,"0004"]
[null,null,null,8099,null,"SEN and Pupil Led Funding from Other LA's",null,null,null,null,8099]
[null,null,null,null,null,"Total of I03 SEN funding",null,null,null,{"$f":"SUM(H34:H35)","v":0}]
[]
[null,"I04 Funding for minority ethnic pupils"]
[null,"0005",null,null,null,"English as an Additional Language",null,null,null,null,"0005"]
[null,null,null,8100,null,"Afghan Resettlement Grant",null,null,null,null,8100]
[null,null,null,8101,null,"Homes for Ukraine",null,null,null,null,8101]
[null,null,null,null,null,"Total of 04 Funding for minority ethnic pupils",null,null,null,{"$f":"SUM(H39:H41)","v":0}]
[]
[null,"I05 Pupil Premium"]
[null,"0014",null,null,null,"Pupil Premium",null,null,null,null,"0014"]
[null,null,null,8083,null,null,null,null,null,null,8083]
[null,null,null,null,null,"Total of I05 Pupil Premium",null,null,null,{"$f":"SUM(H45:H46)","v":0}]
[]
[null,"I06 Other government grants"]
[null,"0009",null,null,null,"NQT Early Career Framework",null,null,null,null,"0009"]
[null,"0024",null,null,null,"Vulnerable Children Grant",null,null,null,null,"0024"]
[null,"0025",null,null,null,"Mental Health Lead Training Funding",null,null,null,null,"0025"]
[null,null,null,8029,null,"Other Government Grants Income",null,null,null,null,8029]
[null,null,null,8039,null,"Salix loans for energy efficiency projects",null,null,null,null,8039]
[]
[null,null,null,8044,null,"Teacher Training income",null,null,null,null,8044]
[null,null,null,null,null,"Total of I06 Other government grants",null,null,null,{"$f":"SUM(H50:H56)","v":0}]
[]
[null,"I07 Other grants and payments"]
[null,null,null,8031,null,"Other Grants & Payments Income",null,null,null,null,8031]
[]
[]
[null,null,null,null,null,"Total of I07 Other grants and payments",null,null,null,{"$f":"SUM(H60:H62)","v":0}]
[]
[null,"I08a Income from lettings"]
[null,null,null,8086,null,"Rent & Lettings Income",null,null,null,null,8086]
[null,null,null,null,null,null,null,null,null,{"$f":"H66","v":0}]
[]
[null,"I08b Other income from facilities and services"]
[null,null,null,4012,null,"Telephone Income              ",null,null,null,null,4012]
[null,null,null,8033,null,"Income from energy/feed in tariffs",null,null,null,null,8033]
[null,null,null,8050,null,"Grants, Reimbursements etc.",null,null,null,null,8050]
[null,null,null,8109,null,"Income for meals provided to external customers including other schools",null,null,null,null,8109]
[null,null,null,8111,null,"Income from consultancy, exam fees, training courses",null,null,null,null,8111]
[null,null,null,8115,null,"Income from sale of school uniform, publications, photocopying               ",null,null,null,null,8115]
[null,null,null,8126,null,"Sales",null,null,null,null,8126]
[null,null,null,8206,null,"Income from sale of musical isntruments, class resources, commission on photos",null,null,null,null,8206]
[null,null,null,8207,null,"Income from non catering vending machines",null,null,null,null,8207]
[null,null,null,8297,null,"Income from before and after schools clubs and pupil focused special facilities",null,null,null,null,8297]
[null,null,null,8346,null,"Salary deductions for staff living on site",null,null,null,null,8346]
[null,null,null,8812,null,"Bank Interest Received",null,null,null,null,8812]
[null,null,null,null,null,"Total of I08 Income from facilities and services",null,null,null,{"$f":"SUM(H70:H81)","v":0}]
[]
[null,"I09 Income from catering"]
[null,null,null,8108,null,"Catering income including from catering vending machines",null,null,null,null,8108]
[null,null,null,8224,null,"Free School Meals Income",null,null,null,null,8224]
[null,null,null,null,null,"Total of I09 Income from catering",null,null,null,{"$f":"SUM(H85:H86)","v":0}]
[]
[null,"I10 Receipts from supply teacher insurance claims"]
[null,null,null,8389,null,"Reimbursement Supply - Teachers Ins. ",null,null,null,null,8389]
[null,null,null,null,null,"Total of I10 Receipts from supply teacher insurance claims",null,null,null,{"$f":"H90","v":0}]
[]
[null,"I11 Receipts from other insurance claims"]
[null,null,null,8025,null,"Insurance Claims - Vehicles",null,null,null,null,8025]
[null,null,null,8026,null,"Insurance Claims - Excluding Vehicles",null,null,null,null,8026]
[null,null,null,8027,null,"Insurance Claims Educational Equip.       ",null,null,null,null,8027]
[null,null,null,8387,null,"Reimbursement Educ Support/Admin Ins. ",null,null,null,null,8387]
[null,null,null,8388,null,"Reimbursement Relocation Ins. ",null,null,null,null,8388]
[]
[null,null,null,null,null,"Total of I11 Receipts from other insurance claims",null,null,null,{"$f":"SUM(H94:H99)","v":0}]
[]
[null,"I12 Income from contributions to visits etc."]
[null,null,null,8221,null,"Accommodation/Bookings - Income  ",null,null,null,null,8221]
[null,null,null,8286,null,"Fees for additional hours of nursery provision paid by parents",null,null,null,null,8286]
[null,null,null,8287,null,"Payments to the school for damage done by pupils",null,null,null,null,8287]
[null,null,null,8288,null,"Educational Visits - Income   ",null,null,null,null,8288]
[null,null,null,null,null,"Total of I12 Income from contributions to visits etc.",null,null,null,{"$f":"SUM(H103:H106)","v":0}]
[]
[null,"I13 Donations and/or voluntary funds"]
[null,null,null,8024,null,"Donations/Private Fund Contributions",null,null,null,null,8024]
[null,null,null,8202,null,"Music Tuition Fees Income     ",null,null,null,null,8202]
[null,null,null,8259,null,"Parental Contribution Swimming          ",null,null,null,null,8259]
[null,null,null,null,null,"Total of I13 Donations and/or private funds",null,null,null,{"$f":"SUM(H110:H112)","v":0}]
[]
[null,"I14 (Not Used)"]
[null,null,null,null,null,"Total of I14 (Not Used)",null,null,null,0]
[]
[null,"I15 Pupil focused extended school funding and/or grants"]
[null,"0027",null,null,null,"Extended School Grant",null,null,null,null,"0027"]
[null,null,null,8330,null,"Extended School Funding and Grants",null,null,null,null,8330]
[null,null,null,null,null,"Total of I15 Pupil focused extended school funding and/or grants",null,null,null,{"$f":"SUM(H119:H120)","v":0}]
[]
[null,"I16 Community focused funding and/or grants"]
[null,9930,null,"(LA inc)",null,"Community Focused Extended School Funding Recodes",null,null,null,null,9930]
[null,null,null,8330,null,"Extended School Funding and Grants",null,null,null,null,8330]
[null,null,null,null,null,"Total of I16 Community focused extended school funding and/or grants",null,null,null,{"$f":"SUM(H124:H125)","v":0}]
[]
[null,"I17 Community focused facilities income"]
[null,null,null,"(RB30)",null,"Income detail codes with the RB30 sub code"]
[null,null,null,null,null,"Total of I17 Community focused extended schools facilities income",null,null,null,{"$f":"SUM(H129)","v":0}]
[]
[null,"I18A Covid Job Retention"]
[null,"0005",null,null,null,"Covid Job Retention",null,null,null,null,"0005"]
[null,null,null,null,null,"Total of I18 Pupil focused extended school funding and/or grants",null,null,null,{"$f":"SUM(H133:H133)","v":0}]
[]
[null,"I18B Covid Grants"]
[null,"0006",null,null,null,"Covid grants for testing, free school meals, workforce fund",null,null,null,null,"0006"]
[]
[null,null,null,null,null,"Total of I18 Pupil focused extended school funding and/or grants",null,null,null,{"$f":"SUM(H137:H138)","v":0}]
[]
[null,"I18C Covid Catch Up Activity"]
[null,"0012",null,null,null,"Catch up and recovery premiums, digital education platforms, tutoring, summer schools",null,null,null,null,"0012"]
[]
[null,null,null,null,null,"Total of I18 Pupil focused extended school funding and/or grants",null,null,null,{"$f":"SUM(H142:H143)","v":0}]
[]
[null,"I18D Additional Grant for Schools"]
[null,"0018",null,null,null,"Additional Grant Income",null,null,null,null,"0018"]
[null,null,null,8089,null,"Grant Income",null,null,null,null,8089]
[null,null,null,null,null,"Total of I18 Pupil focused extended school funding and/or grants",null,null,null,{"$f":"SUM(H147:H148)","v":0}]
[]
[]
[null,null,null,null,null,"Total Revenue Income",null,null,null,{"$f":"SUM(J25:J149)","v":0}]
[null,"Revenue Expenditure"]
[null,null,null,"E01 Teaching staff"]
[null,null,null,"0101",null,"Teachers Pay                  ",null,null,null,null,"0101"]
[null,null,null,"0301",null,"Teachers Overtime                  ",null,null,null,null,"0301"]
[null,null,null,"0401",null,"Teachers NI                   ",null,null,null,null,"0401"]
[null,null,null,"0501",null,"Teachers Super                ",null,null,null,null,"0501"]
[null,null,null,"0937",null,"Salary Deduction Child Care Vouchers",null,null,null,null,"0937"]
[null,null,null,null,null,"Total of E01 Teaching staff",null,null,null,{"$f":"SUM(H155:H159)","v":0}]
[]
[null,null,null,"E02 Supply staff"]
[null,null,null,"0102",null,"Supply Pay                    ",null,null,null,null,"0102"]
[null,null,null,"0402",null,"Supply NI                     ",null,null,null,null,"0402"]
[null,null,null,"0502",null,"Supply Super                  ",null,null,null,null,"0502"]
[null,null,null,null,null,"Total of E02 Supply staff",null,null,null,{"$f":"SUM(H163:H165)","v":0}]
[]
[null,null,null,"E03 Education support staff"]
[null,null,null,"0104",null,"Other Education Support Staff Pay",null,null,null,null,"0104"]
[null,null,null,"0304",null,"Other Education Support Staff Overtime",null,null,null,null,"0304"]
[null,null,null,"0404",null,"Other Education Support Staff NI",null,null,null,null,"0404"]
[null,null,null,"0504",null,"Other Education Support Staff Super",null,null,null,null,"0504"]
[null,null,null,"0132",null,"Technicians Pay            ",null,null,null,null,"0132"]
[null,null,null,"0332",null,"Technicians Overtime            ",null,null,null,null,"0332"]
[null,null,null,"0432",null,"Technicians NI            ",null,null,null,null,"0432"]
[null,null,null,"0532",null,"Technicians Super            ",null,null,null,null,"0532"]
[null,null,null,"0139",null,"Teaching Assts Pay            ",null,null,null,null,"0139"]
[null,null,null,"0339",null,"Teaching Assts Overtime       ",null,null,null,null,"0339"]
[null,null,null,"0439",null,"Teaching Assts NI             ",null,null,null,null,"0439"]
[null,null,null,"0539",null,"Teaching Assts Super          ",null,null,null,null,"0539"]
[null,null,null,"0141",null,"Nursery Nurses Pay            ",null,null,null,null,"0141"]
[null,null,null,"0341",null,"Nursery Nurses Overtime            ",null,null,null,null,"0341"]
[null,null,null,"0441",null,"Nursery Nurses NI            ",null,null,null,null,"0441"]
[null,null,null,"0541",null,"Nursery Nurses Super            ",null,null,null,null,"0541"]
[null,null,null,"0142",null,"SEN Welfare Pay               ",null,null,null,null,"0142"]
[null,null,null,"0342",null,"SEN Welfare Overtime          ",null,null,null,null,"0342"]
[null,null,null,"0442",null,"SEN Welfare NI                ",null,null,null,null,"0442"]
[null,null,null,"0542",null,"SEN Welfare Super             ",null,null,null,null,"0542"]
[null,null,null,"0155",null,"Advanced Classroom Assistant Pay",null,null,null,null,"0155"]
[null,null,null,"0355",null,"Advanced Classroom Assistant Overtime",null,null,null,null,"0355"]
[null,null,null,"0455",null,"Advanced Classroom Assistant NI",null,null,null,null,"0455"]
[null,null,null,"0555",null,"Advanced Classroom Assistant Super",null,null,null,null,"0555"]
[null,null,null,null,null,"Total of E03 Education support staff",null,null,null,{"$f":"SUM(H169:H192)","v":0}]
[]
[null,null,null,"E04 Premises staff"]
[null,null,null,"0135",null,"Premises Staff Pay                ",null,null,null,null,"0135"]
[null,null,null,"0335",null,"Premises Staff Overtime                ",null,null,null,null,"0335"]
[null,null,null,"0435",null,"Premises Staff NI                ",null,null,null,null,"0435"]
[null,null,null,"0535",null,"Premises Staff Super                ",null,null,null,null,"0535"]
[null,null,null,"0168",null,"Caretakers Lettings Pay       ",null,null,null,null,"0168"]
[null,null,null,"0468",null,"Caretakers Lettings NI        ",null,null,null,null,"0468"]
[null,null,null,"0568",null,"Caretakers Lettings Super     ",null,null,null,null,"0568"]
[null,null,null,"0187",null,"Cleaning Staff Pay            ",null,null,null,null,"0187"]
[null,null,null,"0387",null,"Cleaning Staff Overtime       ",null,null,null,null,"0387"]
[null,null,null,"0487",null,"Cleaning Staff NI             ",null,null,null,null,"0487"]
[null,null,null,"0587",null,"Cleaning Staff Super          ",null,null,null,null,"0587"]
[null,null,null,null,null,"Total of E04 Premises staff",null,null,null,{"$f":"SUM(H196:H206)","v":0}]
[]
[null,null,null,"E05 Administrative & clerical staff"]
[null,null,null,"0131",null,"Admin Assts Pay               ",null,null,null,null,"0131"]
[null,null,null,"0331",null,"Admin Assts Overtime          ",null,null,null,null,"0331"]
[null,null,null,"0431",null,"Admin Assts NI                ",null,null,null,null,"0431"]
[null,null,null,"0531",null,"Admin Assts Super             ",null,null,null,null,"0531"]
[null,null,null,"0138",null,"Clerk to Govs Pay",null,null,null,null,"0138"]
[null,null,null,"0338",null,"Clerk to Govs Overtime",null,null,null,null,"0338"]
[null,null,null,"0438",null,"Clerk to Govs NI              ",null,null,null,null,"0438"]
[null,null,null,"0538",null,"Clerk to Govs Super",null,null,null,null,"0538"]
[null,null,null,null,null,"Total of E05 Administrative & clerical staff",null,null,null,{"$f":"SUM(H210:H217)","v":0}]
[]
[null,null,null,"E06 Catering staff"]
[null,null,null,"0171",null,"Catering Staff Pay          ",null,null,null,null,"0171"]
[null,null,null,"0371",null,"Catering Staff Overtime          ",null,null,null,null,"0371"]
[null,null,null,"0471",null,"Catering Staff NI          ",null,null,null,null,"0471"]
[null,null,null,"0571",null,"Catering Staff Super          ",null,null,null,null,"0571"]
[null,null,null,null,null,"Total of E06 Catering staff",null,null,null,{"$f":"SUM(H221:H224)","v":0}]
[]
[null,null,null,"E07 Cost of other staff"]
[null,null,null,"0130",null,"Other Staff Pay   ",null,null,null,null,"0130"]
[null,null,null,"0330",null,"Other Staff Overtime",null,null,null,null,"0330"]
[null,null,null,"0430",null,"Other Staff NI",null,null,null,null,"0430"]
[null,null,null,"0530",null,"Other Staff Super",null,null,null,null,"0530"]
[null,null,null,"0172",null,"Midday Staff Pay              ",null,null,null,null,"0172"]
[null,null,null,"0372",null,"Midday Staff Overtime              ",null,null,null,null,"0372"]
[null,null,null,"0472",null,"Midday Staff NI              ",null,null,null,null,"0472"]
[null,null,null,"0572",null,"Midday Staff Super              ",null,null,null,null,"0572"]
[null,null,null,null,null,"Total of E07 Cost of other staff",null,null,null,{"$f":"SUM(H228:H235)","v":0}]
[]
[null,null,null,"E08 Indirect employee expenses"]
[null,null,null,"0911",null,"Relocation Expenses           ",null,null,null,null,"0911"]
[null,null,null,"0916",null,"Provided Accommodation Allowance           ",null,null,null,null,"0916"]
[null,null,null,"0917",null,"Free Meals for Staff          ",null,null,null,null,"0917"]
[null,null,null,"0925",null,"Sleeping In Allowance           ",null,null,null,null,"0925"]
[null,null,null,"0930",null,"Enhanced Lump Sum",null,null,null,null,"0930"]
[null,null,null,"0932",null,"Support Staff Redundancy Payments",null,null,null,null,"0932"]
[null,null,null,"0940",null,"Teachers Redundancy Payments",null,null,null,null,"0940"]
[null,null,null,"0950",null,"Apprenticeship Levy",null,null,null,null,"0950"]
[null,null,null,"0959",null,"Rent Subsidy",null,null,null,null,"0959"]
[null,null,null,"0960",null,"Mortgage Subsidy",null,null,null,null,"0960"]
[null,null,null,2650,null,"Clothing, Uniforms & Footwear          ",null,null,null,null,2650]
[null,null,null,2906,null,"Medical Fees and Criminal Record Search Fees",null,null,null,null,2906]
[null,null,null,3103,null,"Mileage",null,null,null,null,3103]
[null,null,null,4010,null,"Telephone Rental Reimbursements (via expenses claims)            ",null,null,null,null,4010]
[null,null,null,4016,null,"Advertising - Staff",null,null,null,null,4016]
[null,null,null,4110,null,"Travel and Subsistence",null,null,null,null,4110]
[null,null,null,4113,null,"Interview Expenses",null,null,null,null,4113]
[null,null,null,6709,null,"Child Care Vouchers - purchase",null,null,null,null,6709]
[null,null,null,null,null,"Total of E08 Indirect employee expenses",null,null,null,{"$f":"SUM(H239:H256)","v":0}]
[]
[null,null,null,"E09 Staff development  & training"]
[null,null,null,"0701",null,"Course Fees",null,null,null,null,"0701"]
[null,null,null,"0799",null,"Training",null,null,null,null,"0799"]
[null,null,null,3105,null,"Car Allowance - Training",null,null,null,null,3105]
[null,null,null,4130,null,"Hospitality and Entertaining",null,null,null,null,4130]
[null,null,null,null,null,"Total of E09 Staff development & training",null,null,null,{"$f":"SUM(H260:H263)","v":0}]
[]
[null,null,null,"E10 Supply teacher insurance"]
[null,null,null,4965,null,"Staff Insurance Premiums - Teachers",null,null,null,null,4965]
[null,null,null,5002,null,"De-delegation for Staff Costs",null,null,null,null,5002]
[null,null,null,null,null,"Total of E10 Supply teacher insurance",null,null,null,{"$f":"SUM(H267:H268)","v":0}]
[]
[null,null,null,"E11 Staff related insurance"]
[null,null,null,4203,null,"Employee Related Insurance",null,null,null,null,4203]
[null,null,null,4966,null,"Staff Insurance Premiums - Educ. Support & Admin",null,null,null,null,4966]
[null,null,null,4967,null,"Staff Relocation Insurance Premiums",null,null,null,null,4967]
[null,null,null,4968,null,"Staff Insurance Premiums - Premises & Other",null,null,null,null,4968]
[null,null,null,null,null,"Total of E11 Staff related insurance",null,null,null,{"$f":"SUM(H272:H275)","v":0}]
[]
[null,null,null,"E12 Buildings maintenance and improvement"]
[null,null,null,1030,null,"Internal Decorations          ",null,null,null,null,1030]
[null,null,null,1040,null,"Alterations and Improvements  ",null,null,null,null,1040]
[null,null,null,1041,null,"Repairs & Maintenance         ",null,null,null,null,1041]
[null,null,null,2070,null,"Building Maintenance Tools",null,null,null,null,2070]
[null,null,null,2905,null,"Surveyors/Architects Fees     ",null,null,null,null,2905]
[null,null,null,null,null,"Total of E12 Buildings maintenance and improvement",null,null,null,{"$f":"SUM(H279:H283)","v":0}]
[]
[null,null,null,"E13 Grounds maintenance and improvement"]
[null,null,null,1060,null,"Grounds Maintenance           ",null,null,null,null,1060]
[null,null,null,1062,null,"Grounds Improvements          ",null,null,null,null,1062]
[null,null,null,2030,null,"Grounds Maintenance Equipment & Materials",null,null,null,null,2030]
[null,null,null,null,null,"Total of E13 Grounds maintenance and improvement",null,null,null,{"$f":"SUM(H287:H289)","v":0}]
[]
[null,null,null,"E14 Cleaning & caretaking"]
[null,null,null,1310,null,"Cleaning Materials ",null,null,null,null,1310]
[null,null,null,1330,null,"Contract Cleaning",null,null,null,null,1330]
[null,null,null,1399,null,"Cleaning - Other              ",null,null,null,null,1399]
[null,null,null,2009,null,"Cleaning Equipment      ",null,null,null,null,2009]
[null,null,null,null,null,"Total of E14 Cleaning & caretaking",null,null,null,{"$f":"SUM(H293:H296)","v":0}]
[]
[null,null,null,"E15 Water & sewerage"]
[null,null,null,1320,null,"Water Rates                   ",null,null,null,null,1320]
[null,null,null,1321,null,"Water - Meter Charges         ",null,null,null,null,1321]
[null,null,null,1322,null,"Water - General Services      ",null,null,null,null,1322]
[null,null,null,null,null,"Total of E15 Water & sewerage",null,null,null,{"$f":"SUM(H300:H302)","v":0}]
[]
[null,null,null,"E16 Energy"]
[null,null,null,1301,null,"Gas                           ",null,null,null,null,1301]
[null,null,null,1302,null,"Electricity                   ",null,null,null,null,1302]
[null,null,null,1303,null,"Oil                           ",null,null,null,null,1303]
[null,null,null,1304,null,"Fuel - Other                  ",null,null,null,null,1304]
[null,null,null,1305,null,"Repayment of Salix loans for energy efficiency projects         ",null,null,null,null,1305]
[null,null,null,null,null,"Total of E16 Energy",null,null,null,{"$f":"SUM(H306:H310)","v":0}]
[]
[null,null,null,"E17 Rates"]
[null,null,null,1510,null,"Non domestic rates expenditure (NNDR)",null,null,null,null,1510]
[null,null,null,null,null,"Total of E17 Rates",null,null,null,{"$f":"H314","v":0}]
[]
[null,null,null,"E18 Other occupation costs"]
[null,null,null,1043,null,"Security Measures",null,null,null,null,1043]
[null,null,null,1046,null,"Health & Safety Precautions   ",null,null,null,null,1046]
[null,null,null,"1315",null,"Refuse Collection",null,null,null,null,"1315"]
[null,null,null,1316,null,"Hygiene services including paper towels, toilet rolls, hand driers",null,null,null,null,1316]
[null,null,null,1501,null,"Rent, lease or hire charges for premises and playing fields",null,null,null,null,1501]
[null,null,null,2655,null,"Laundry",null,null,null,null,2655]
[null,null,null,null,null,"Total of E18 Other occupation costs",null,null,null,{"$f":"SUM(H318:H323)","v":0}]
[]
[null,null,null,"E19 Learning resources (not ICT)"]
[null,null,null,1408,null,"Classroom Furniture           ",null,null,null,null,1408]
[null,null,null,2001,null,"Textbooks & Library Books     ",null,null,null,null,2001]
[null,null,null,2002,null,"Educational Equipment/Materials       ",null,null,null,null,2002]
[null,null,null,2015,null,"Reprographic rental and leasing costs used for teaching purposes",null,null,null,null,2015]
[null,null,null,2016,null,"Purchase, lease, hire or maintenance costs for equipment used for teaching purposes",null,null,null,null,2016]
[null,null,null,2121,null,"Music Instruments/Equipment     ",null,null,null,null,2121]
[null,null,null,3001,null,"Vehicle Purchase and Lease Costs ",null,null,null,null,3001]
[null,null,null,3201,null,"Petrol, Oil and Antifreeze",null,null,null,null,3201]
[null,null,null,3401,null,"Vehicle Repair and Maintenance",null,null,null,null,3401]
[null,null,null,"4026",null,"Photocopying for teaching purposes",null,null,null,null,"4026"]
[null,null,null,6334,null,"PE Clothing                   ",null,null,null,null,6334]
[null,null,null,6811,null,"Educational Visits - Costs    ",null,null,null,null,6811]
[null,null,null,6813,null,"Payments to students in receipt of 16-19 Bursary Fund",null,null,null,null,6813]
[null,null,null,6850,null,"Transport School Visits/Sports           ",null,null,null,null,6850]
[null,null,null,null,null,"Total of E19 Learning resources (not ICT)",null,null,null,{"$f":"SUM(H327:H340)","v":0}]
[]
[null,null,null,"E20 ICT Learning resources "]
[null,null,null,2047,null,"ICT purchase, lease, hire or maintenance contracts used for teaching",null,null,null,null,2047]
[null,null,null,2049,null,"Hardware including key boards, monitors used for teaching purposes",null,null,null,null,2049]
[null,null,null,2921,null,"Educational software including licences",null,null,null,null,2921]
[null,null,null,"4076",null,"Cost of broadband, ISDN ASDL or other dedicated phone lines",null,null,null,null,"4076"]
[null,null,null,null,null,"Total of E20 ICT Learning resources ",null,null,null,{"$f":"SUM(H344:H347)","v":0}]
[]
[null,null,null,"E21 Exam fees"]
[null,null,null,2911,null,"Exam Fees Expenditure",null,null,null,null,2911]
[null,null,null,null,null,null,null,null,null,{"$f":"H351","v":0}]
[]
[null,null,null,"E22 Administrative supplies"]
[null,null,null,1401,null,"Office Furniture & Fittings          ",null,null,null,null,1401]
[null,null,null,2012,null,"Office Equipment             ",null,null,null,null,2012]
[null,null,null,2014,null,"Office Rentals & Leasing Costs",null,null,null,null,2014]
[null,null,null,2040,null,"Office IT Equipment",null,null,null,null,2040]
[null,null,null,2601,null,"Medical and domestic supplies",null,null,null,null,2601]
[null,null,null,4001,null,"Printing & Stationery not used for teaching purposes  ",null,null,null,null,4001]
[null,null,null,4003,null,"Postages                      ",null,null,null,null,4003]
[null,null,null,4011,null,"Telephones             ",null,null,null,null,4011]
[null,null,null,4015,null,"Advertising - Publicity",null,null,null,null,4015]
[null,null,null,4028,null,"Bank Charges",null,null,null,null,4028]
[null,null,null,4099,null,"Office Expenses - Other       ",null,null,null,null,4099]
[null,null,null,4118,null,"Governors Expenses",null,null,null,null,4118]
[null,null,null,null,null,"Total of E22 Administrative supplies",null,null,null,{"$f":"SUM(H355:H366)","v":0}]
[]
[null,null,null,"E23 Other insurance premiums"]
[null,null,null,3206,null,"Vehicle Insurance    ",null,null,null,null,3206]
[null,null,null,4201,null,"Accident & public liability insurance for persons not employed directly by the school. Risk Protection Arrangement membership",null,null,null,null,4201]
[null,null,null,4202,null,"School Insurance Premises/Other   ",null,null,null,null,4202]
[null,null,null,null,null,"Total of E23 Other insurance premiums",null,null,null,{"$f":"SUM(H370:H372)","v":0}]
[]
[null,null,null,"E24 Special facilities"]
[null,null,null,"1590",null,"Joint Use of Premises",null,null,null,null,"1590"]
[null,null,null,2031,null,"Swimming pools and sports centres",null,null,null,null,2031]
[null,null,null,2032,null,"Expenses for before and after school clubs",null,null,null,null,2032]
[null,null,null,2033,null,"Consumable Materials",null,null,null,null,2033]
[null,null,null,6349,null,"Home to School Transport - School Funded ",null,null,null,null,6349]
[null,null,null,6708,null,"Children's Centre Teacher Costs",null,null,null,null,6708]
[null,null,null,6810,null,"Grants/Contributions to Third Parties\n e.g.LDG/Beacon School Payments to Another School  ",null,null,null,null,6810]
[null,null,null,6812,null,"Pocket Money and Incidentals",null,null,null,null,6812]
[null,null,null,8655,null,"Children's Centre Teacher Income",null,null,null,null,8655]
[null,null,null,null,null,"Total of E24 Special facilities",null,null,null,{"$f":"SUM(H376:H384)","v":0}]
[]
[null,null,null,"E25 Catering supplies"]
[null,null,null,2017,null,"Catering Equipment",null,null,null,null,2017]
[null,null,null,2021,null,"Catering Consumables, Cleaning, Clothing etc.",null,null,null,null,2021]
[null,null,null,2202,null,"Provision of Meals",null,null,null,null,2202]
[null,null,null,2205,null,"Food and Drink",null,null,null,null,2205]
[null,null,null,2230,null,"Catering Contract",null,null,null,null,2230]
[null,null,null,null,null,"Total of E25 Catering supplies",null,null,null,{"$f":"SUM(H388:H392)","v":0}]
[]
[null,null,null,"E26 Agency supply staff"]
[null,null,null,"0191",null,"Agency Supply Staff Costs - Teachers",null,null,null,null,"0191"]
[null,null,null,null,null,"Total of E26 Agency supply staff",null,null,null,{"$f":"H396","v":0}]
[]
[null,null,null,"E27 Bought in professional services - curriculum"]
[null,null,null,"0190",null,"Agency Supply Staff Costs - Non-Teachers",null,null,null,null,"0190"]
[null,null,null,"2977",null,"Professional Fees - Curriculum      ",null,null,null,null,"2977"]
[null,null,null,2993,null,"Music Fees                    ",null,null,null,null,2993]
[null,null,null,6327,null,"Pupil Support Courses",null,null,null,null,6327]
[null,null,null,null,null,"Total of E27 Bought in professional services - curriculum",null,null,null,{"$f":"SUM(H400:H403)","v":0}]
[]
[null,null,null,"E28a Bought in professional services - except PFI"]
[null,null,null,2999,null,"Other Hired Services",null,null,null,null,2999]
[null,null,null,4508,null,"ECC Charges",null,null,null,null,4508]
[null,null,null,4923,null,"Education Support Services              ",null,null,null,null,4923]
[null,null,null,5007,null,"De-delegation for School Improvement         ",null,null,null,null,5007]
[null,null,null,null,null,"Total of E28 Bought in professional services - other",null,null,null,{"$f":"SUM(H407:H410)","v":0}]
[]
[null,null,null,"E28b Bought in professional services - PFI"]
[null,null,null,1502,null,"Other Hired Services - PFI",null,null,null,null,1502]
[null,null,null,null,null,"Total of E28b Bought in professional services - PFI",null,null,null,{"$f":"H414","v":0}]
[]
[null,null,null,"E29 Loan interest"]
[null,null,null,"7411",null,"Interest - Long Term Borrowing",null,null,null,null,"7411"]
[null,null,null,null,null,"Total of E29 Loan interest",null,null,null,{"$f":"H418","v":0}]
[]
[null,null,null,"E30 Direct revenue financing (revenue contributions to capital)"]
[null,null,null,7602,null,"Revenue Contributions to Capital Expenditure",null,null,null,null,7602]
[null,null,null,null,null,"Total of E30 Direct revenue financing (revenue contributions to capital)",null,null,null,{"$f":"H422","v":0}]
[]
[null,null,null,"E31 Community Focused School Staff"]
[null,null,null,null,null,"RB30 plus the appropriate expenditure detail codes"]
[null,null,null,null,null,"Total of E31 Community Focused Extended School Staff",null,null,null,{"$f":"H426","v":0}]
[]
[null,null,null,"E32 Community Focused School Costs"]
[null,null,null,null,null,"RB30 plus the appropriate expenditure detail codes"]
[null,null,null,null,null,"Total of E31 Community Focused Extended School Costs",null,null,null,{"$f":"H430","v":0}]
[]
[null,null,null,null,null,"Total Revenue Expenditure",null,null,null,{"$f":"SUM(J160:J431)","v":0}]
[null,"Capital Income"]
[null,"CI01 Capital income"]
[null,null,null,1610,null,"Capital - Schools Capital Income",null,null,null,null,1610]
[null,null,null,1614,null,"Capital - Joint Funding",null,null,null,null,1614]
[]
[null,null,null,null,null,"Total of CI01 Capital income",null,null,null,{"$f":"SUM(H436:H437)","v":0}]
[]
[null,"CI02 Loans"]
[null,null,null,"----",null,"No Longer in Use",null,0,null,null,"----"]
[null,null,null,null,null,"(No Code set-up for this heading)"]
[null,null,null,null,null,"Total of CI02 Capital income",null,null,null,{"$f":"H442","v":0}]
[]
[null,"CI03 Private income"]
[null,null,null,1611,null,"Capital - Voluntary or Private Income",null,null,null,null,1611]
[]
[null,null,null,null,null,"Total of CI03 Private income",null,null,null,{"$f":"H447","v":0}]
[]
[null,"CI04 Direct revenue financing"]
[null,"(Revenue contributions to Capital)"]
[null,null,null,1612,null,"Direct Revenue Financing Income",null,null,null,null,1612]
[]
[null,null,null,null,null,"Total of CI04 Direct revenue financing"]
[null,null,null,null,null,"                (revenue contributions to capital)",null,null,null,{"$f":"H453","v":0}]
[]
[]
[null,null,null,null,null,"Total Capital Income",null,null,null,{"$f":"SUM(J439:J456)","v":0}]
[null,"Capital Expenditure"]
[null,"CE01 Acquisition of land and existing buildings"]
[null,1604,null,"Capital - Fees Acquisition Land & Existing Buildings",null,null,null,null,null,null,1604]
[null,1605,null,"Captial - Acquisition Land & Existing Buildings",null,null,null,null,null,null,1605]
[]
[null,null,null,null,null,null,null,null,null,{"$f":"SUM(H462:H463)","v":0}]
[]
[null,"CE02 New construction, conversion and renovation"]
[null,1601,null,"Capital - Fees Construction, Conversion etc",null,null,null,null,null,null,1601]
[null,1602,null,"Capital - Construction, Conversion & Renovation",null,null,null,null,null,null,1602]
[]
[null,null,null,null,null,"Total of CE02 New construction, conversion and renovation",null,null,null,{"$f":"SUM(H468:H469)","v":0}]
[]
[null,"CE03 Vehicles, plant, equipment and machinery"]
[null,1603,null,"Capital - Vehicles, Plant, Equipment & Machinery",null,null,null,null,null,null,1603]
[]
[null,null,null,null,null,"Total of CE03 Vehicles, plant, equipment and machinery",null,null,null,{"$f":"H474","v":0}]
[]
[null,"CE04 Information & communications technology (ICT)"]
[null,1606,null,"Capital - ICT Equipment",null,null,null,null,null,null,1606]
[]
[null,null,null,null,null,"Total of CE04 Information & communications technology (ICT)",null,null,null,{"$f":"H479","v":0}]
[]
[null,null,null,null,null,"Total Capital Expenditure",null,null,null,{"$f":"SUM(J465:J481)","v":0}]

{"sheet":"Remunerations","index":9,"n_rows":119,"n_cols":12,"rows_kept":119,"cut":false,"hidden":false,"merged":[]}
["EMPLOYEES REMUNERATION RETURN FOR THE FINANCIAL YEAR UP TO THE DATE OF CONVERSION"]
[]
["School Cost Code",{"$f":"'Checklist & Authorisation'!D1","v":0}]
["School Name",{"$f":"IF('Checklist & Authorisation'!E1=\"          Please enter your school's cost code\",\"Please enter valid cost code on Checklist sheet\",IF('Checklist & Authorisation'!E1=\"     This cost code has not been recognised. Please check\",\"Please enter valid cost code on Checklist sheet\",'Checklist & Authorisation'!E1))","v":"Please enter valid cost code on Checklist sheet"}]
[]
["Name of Payroll Provider",null,null,"Nil Return?",null,null,null,{"$f":"IF(OR(B6=\"\",B6=\"(Please enter name of provider here)\"),1,0)","v":1}]
[]
[null,{"$f":"IF(SUM(H:H)>0,\"To complete this return form, please enter data in all red cells\",IF(AND(E6=\"\",SUM(D12:D91)=0),\"                         If you have no employees that received total remuneration of £40,000 or more and no employees with annualised salaries of £40,000 or more, please enter a Y in cell E2 to confirm this\",IF(AND(E6=\"Y\",COUNTBLANK(C12:C91)<80),\"This has been flagged as a nil return even though remunerations have been recorded. Please check and amend\",IF(AND(E6=\"Y\",SUM(D12:D91)=0),\"You have confirmed that this a nil return\",IF(AND(E6=\"\",SUM(D12:D91)>0,SUM(H:H)=0),\"If all the details of employees that received total remuneration of £40,000 or more and all the details of employees\",\"\")))))","v":"To complete this return form, please enter data in all red cells"}]
[null,{"$f":"IF(SUM(H:H)>0,\"\",IF(AND(E6=\"\",SUM(D12:D91)=0),\"\",IF(AND(E6=\"Y\",COUNTBLANK(C12:C91)<80),\"\",IF(AND(E6=\"Y\",SUM(D12:D91)=0),\"\",IF(AND(E6=\"\",SUM(D12:D91)>0,SUM(H:H)=0),\"with annualised salaries of £40,000 or more in the financial year have been recorded below, this return is complete\",\"\")))))","v":""}]
["Instructions are provided below this table - please read these before completing this form"]
["Employee Name","Job Title / Position",{"$f":"\"Total remuneration \nreceived for \"&'FinYr Lookup'!C3","v":"Total remuneration \nreceived for 2023-24"},"Annualised Salary","Value of P11D Taxable Benefits","Renumeration Band (incl P11D taxable benefits)",null,null,null,null,null,"Remuneration Bands"]
[null,null,null,null,null,{"$f":"IF(ISNA(VLOOKUP(MATCH((C12+E12),$K$12:$K$34,1),J:L,3,FALSE)),\"\",VLOOKUP(MATCH((C12+E12),$K$12:$K$34,1),J:L,3,FALSE))","v":""},{"$f":"IF(AND(COUNTBLANK(A12:E12)<5,COUNTBLANK(A12:E12)>0),\"Please enter data in all red cells\",\"\")","v":""},{"$f":"IF(G12=\"Please enter data in all red cells\",1,0)","v":0},null,1,40000,"£40,000 to £44,999"]
[null,null,null,null,null,"","",{"$f":"IF(G13=\"Please enter data in all red cells\",1,0)","v":0},null,2,45000,"£45,000 to £49,999"]
[null,null,null,null,null,"","",0,null,3,50000,"£50,000 to £54,999"]
[null,null,null,null,null,"","",0,null,4,55000,"£55,000 to £59,999"]
[null,null,null,null,null,"","",0,null,5,60000,"£60,000 to £64,999"]
[null,null,null,null,null,"","",0,null,6,65000,"£65,000 to £69,999"]
[null,null,null,null,null,"","",0,null,7,70000,"£70,000 to £74,999"]
[null,null,null,null,null,"","",0,null,8,75000,"£75,000 to £79,999"]
[null,null,null,null,null,"","",0,null,9,80000,"£80,000 to £84,999"]
[null,null,null,null,null,"","",0,null,10,85000,"£85,000 to £89,999"]
[null,null,null,null,null,"","",0,null,11,90000,"£90,000 to £94,999"]
[null,null,null,null,null,"","",0,null,12,95000,"£95,000 to £99,999"]
[null,null,null,null,null,"","",0,null,13,100000,"£100,000 to £104,999"]
[null,null,null,null,null,"","",0,null,14,105000,"£105,000 to £109,999"]
[null,null,null,null,null,"","",0,null,15,110000,"£110,000 to £114,999"]
[null,null,null,null,null,"","",0,null,16,115000,"£115,000 to £119,999"]
[null,null,null,null,null,"","",0,null,17,120000,"£120,000 to £124,999"]
[null,null,null,null,null,"","",0,null,18,125000,"£125,000 to £129,999"]
[null,null,null,null,null,"","",0,null,19,130000,"£130,000 to £134,999"]
[null,null,null,null,null,"","",0,null,20,135000,"£135,000 to £139,999"]
[null,null,null,null,null,"","",0,null,21,140000,"£140,000 to £144,999"]
[null,null,null,null,null,"","",0,null,22,145000,"£145,000 to £149,999"]
[null,null,null,null,null,"","",0,null,23,150000,"£150,000+"]
[null,null,null,null,null,"","",0]
[null,null,null,null,null,"","",0]
[null,null,null,null,null,"","",0]
[null,null,null,null,null,"","",0]
[null,null,null,null,null,"","",0]
[null,null,null,null,null,"","",0]
[null,null,null,null,null,"","",0]
[null,null,null,null,null,"","",0]
[null,null,null,null,null,"","",0]
[null,null,null,null,null,"","",0]
[null,null,null,null,null,"","",0]
[null,null,null,null,null,"","",0]
[null,null,null,null,null,"","",0]
[null,null,null,null,null,"","",0]
[null,null,null,null,null,"","",0]
[null,null,null,null,null,"","",0]
[null,null,null,null,null,"","",0]
[null,null,null,null,null,"","",0]
[null,null,null,null,null,"","",0]
[null,null,null,null,null,"","",0]
[null,null,null,null,null,"","",0]
[null,null,null,null,null,"","",0]
[null,null,null,null,null,"","",0]
[null,null,null,null,null,"","",0]
[null,null,null,null,null,"","",0]
[null,null,null,null,null,"","",0]
[null,null,null,null,null,"","",0]
[null,null,null,null,null,"","",0]
[null,null,null,null,null,"","",0]
[null,null,null,null,null,"","",0]
[null,null,null,null,null,"","",0]
[null,null,null,null,null,"","",0]
[null,null,null,null,null,"","",0]
[null,null,null,null,null,"","",0]
[null,null,null,null,null,"","",0]
[null,null,null,null,null,"","",0]
[null,null,null,null,null,"","",0]
[null,null,null,null,null,"","",0]
[null,null,null,null,null,"","",0]
[null,null,null,null,null,"","",0]
[null,null,null,null,null,"","",0]
[null,null,null,null,null,{"$f":"IF(ISNA(VLOOKUP(MATCH((C76+E76),$K$12:$K$34,1),J:L,3,FALSE)),\"\",VLOOKUP(MATCH((C76+E76),$K$12:$K$34,1),J:L,3,FALSE))","v":""},{"$f":"IF(AND(COUNTBLANK(A76:E76)<5,COUNTBLANK(A76:E76)>0),\"Please enter data in all red cells\",\"\")","v":""},0]
[null,null,null,null,null,"","",{"$f":"IF(G77=\"Please enter data in all red cells\",1,0)","v":0}]
[null,null,null,null,null,"","",0]
[null,null,null,null,null,"","",0]
[null,null,null,null,null,"","",0]
[null,null,null,null,null,"","",0]
[null,null,null,null,null,"","",0]
[null,null,null,null,null,"","",0]
[null,null,null,null,null,"","",0]
[null,null,null,null,null,"","",0]
[null,null,null,null,null,"","",0]
[null,null,null,null,null,"","",0]
[null,null,null,null,null,"","",0]
[null,null,null,null,null,"","",0]
[null,null,null,null,null,"","",0]
[null,null,null,null,null,"","",0]
[]
["INSTRUCTIONS FOR COMPLETING THIS YEAR’S RETURN"]
["The Council is required by Regulation to include a note within its annual Statement of Accounts that shows the number of employees in the year whose remuneration "]
["amounted to £40,000 or more in the financial year."]
[]
["For the purpose of this disclosure note, remuneration is defined as 'All amounts paid to or receivable by a person, and includes sums by way of allowances and the "]
["estimated money value of any other benefits (including termination benefits) received by an employee otherwise than in cash.'"]
["Employer’s pension contributions should be excluded from the general definition of remuneration. "]
[]
["Please record in the above table the details for all employees with total remunerations of £40,000 or more and the details for all employees with annualised salaries of £40,000 or more."]
[]
[{"$f":"\"Total Remuneration Received for \"&'FinYr Lookup'!C3","v":"Total Remuneration Received for 2023-24"}]
["In this column input the total value of the actual gross pay received, including any overtime, allowances and termination payments"]
["Please note that:"]
["- Included within total remuneration are payments made to staff who are covering other posts e.g. acting Headteacher are regarded as salary, performance related pay (bonuses), termination "]
["  payments and recompense for any loss or other diminution suffered by the employee (allowances)."]
[]
["Annualised Salary"]
["In this column enter the total basic salary that would have been received, if the employee had worked at the school for the full financial year based on their contracted hours."]
["Please note that:"]
["- If an employee has only worked for part of the year at school, enter the amount that would have been paid had they worked the full financial year for their contracted hours (e.g. employee receives basic salary "]
["  of £46,000 for 9 months and they are contracted to work the whole calendar year -  enter in £61,333 for the annualised salary)."]
[]
["Value of P11D Taxable Benefits"]
["Please enter the total value of all taxable benefits for each employee."]
["  Please refer to your payroll provider for this information."]
["  Further information on the benefits to be included can be found on the following gov.uk webpage:"]
["  Expenses and benefits for employers: Reporting and paying - GOV.UK (www.gov.uk)"]

{"sheet":"Terminations","index":10,"n_rows":110,"n_cols":18,"rows_kept":110,"cut":false,"hidden":false,"merged":[[5,7,6,13],[7,7,8,12],[7,13,8,13]]}
[null,"Termination Payments"]
[null,"School Cost Code",{"$f":"'Checklist & Authorisation'!D1","v":0}]
[null,"School Name",{"$f":"IF('Checklist & Authorisation'!E1=\"          Please enter your school's cost code\",\"Please enter valid cost code on Checklist sheet\",IF('Checklist & Authorisation'!E1=\"     This cost code has not been recognised. Please check\",\"Please enter valid cost code on Checklist sheet\",'Checklist & Authorisation'!E1))","v":"Please enter valid cost code on Checklist sheet"},"Please enter details of all termination payments for employees who left"]
[null,null,null,"your school in the financial year up to the date of conversion"]
[null,"Nil return?"]
[null,null,{"$f":"IF(AND($B$6=\"\",SUM($P$11:$P$110)=0),\"If there were no employee termination payments this year, please confirm this by entering a 'Y' in cell B3\",IF(AND($B$6=\"Y\",SUM($P$11:$P$110)=0),\"You have confirmed that this is a nil return\",IF(AND(COUNTBLANK(B11:B110)<100,B6=\"Y\"),\"This has been flagged as a nil return even though terminations have been recorded. Please check and amend.\",IF(C7=\"\",\"If all termination payments have been recorded then this return is complete\",\"\"))))","v":"If there were no employee termination payments this year, please confirm this by entering a 'Y' in cell B3"},null,null,null,null,"Amounts paid through the school's accounting system"]
[null,null,{"$f":"IF(SUM(R11:R110)=0,\"\",\"     There are error messages in colum P - please check and resolve these\")","v":""}]
[null,null,null,null,null,null,null,"Paid to Employee through payroll system",null,null,null,null,null,"Paid to Pension Fund"]
[]
[null,"Payroll reference","Employee name","Position","Date employee left organisation (DD/MM/YY)","Reason for leaving\n(please select)","If 'Other' is selected in column F, please enter the reason for leaving below ","Pay in Lieu of Notice \n(£)","Pay in Lieu Tax and NI (£)","Redundancy \n\n(£)","Compromise Agreement (£)","Settlement\n\n(£)","Severance Payment \n(£)","Pension strain invoice amount paid to pension fund in respect of employee  (£)"]
[1,null,null,null,null,null,null,null,null,null,null,null,null,null,{"$f":"COUNTBLANK(H11:N11)","v":7},{"$f":"IF(B11=\"\",0,1)","v":0},{"$f":"IF(OR(AND(F11=\"Other\",G11=\"\"),AND(O11<7,COUNTBLANK(B11:F11)>0)),\"Please complete all red cells\",IF(AND(O11=7,COUNTBLANK(B11:F11)<5),\"No cost has been entered\",\"\"))","v":""},{"$f":"IF(Q11=\"\",0,1)","v":0}]
[2,null,null,null,null,null,null,null,null,null,null,null,null,null,{"$f":"COUNTBLANK(H12:N12)","v":7},{"$f":"IF(B12=\"\",0,1)","v":0},{"$f":"IF(OR(AND(F12=\"Other\",G12=\"\"),AND(O12<7,COUNTBLANK(B12:F12)>0)),\"Please complete all red cells\",IF(AND(O12=7,COUNTBLANK(B12:F12)<5),\"No cost has been entered\",\"\"))","v":""},{"$f":"IF(Q12=\"\",0,1)","v":0}]
[3,null,null,null,null,null,null,null,null,null,null,null,null,null,7,0,"",0]
[4,null,null,null,null,null,null,null,null,null,null,null,null,null,7,0,"",0]
[5,null,null,null,null,null,null,null,null,null,null,null,null,null,7,0,"",0]
[6,null,null,null,null,null,null,null,null,null,null,null,null,null,7,0,"",0]
[7,null,null,null,null,null,null,null,null,null,null,null,null,null,7,0,"",0]
[8,null,null,null,null,null,null,null,null,null,null,null,null,null,7,0,"",0]
[9,null,null,null,null,null,null,null,null,null,null,null,null,null,7,0,"",0]
[10,null,null,null,null,null,null,null,null,null,null,null,null,null,7,0,"",0]
[11,null,null,null,null,null,null,null,null,null,null,null,null,null,7,0,"",0]
[12,null,null,null,null,null,null,null,null,null,null,null,null,null,7,0,"",0]
[13,null,null,null,null,null,null,null,null,null,null,null,null,null,7,0,"",0]
[14,null,null,null,null,null,null,null,null,null,null,null,null,null,7,0,"",0]
[15,null,null,null,null,null,null,null,null,null,null,null,null,null,7,0,"",0]
[16,null,null,null,null,null,null,null,null,null,null,null,null,null,7,0,"",0]
[17,null,null,null,null,null,null,null,null,null,null,null,null,null,7,0,"",0]
[18,null,null,null,null,null,null,null,null,null,null,null,null,null,7,0,"",0]
[19,null,null,null,null,null,null,null,null,null,null,null,null,null,7,0,"",0]
[20,null,null,null,null,null,null,null,null,null,null,null,null,null,7,0,"",0]
[21,null,null,null,null,null,null,null,null,null,null,null,null,null,7,0,"",0]
[22,null,null,null,null,null,null,null,null,null,null,null,null,null,7,0,"",0]
[23,null,null,null,null,null,null,null,null,null,null,null,null,null,7,0,"",0]
[24,null,null,null,null,null,null,null,null,null,null,null,null,null,7,0,"",0]
[25,null,null,null,null,null,null,null,null,null,null,null,null,null,7,0,"",0]
[26,null,null,null,null,null,null,null,null,null,null,null,null,null,7,0,"",0]
[27,null,null,null,null,null,null,null,null,null,null,null,null,null,7,0,"",0]
[28,null,null,null,null,null,null,null,null,null,null,null,null,null,7,0,"",0]
[29,null,null,null,null,null,null,null,null,null,null,null,null,null,7,0,"",0]
[30,null,null,null,null,null,null,null,null,null,null,null,null,null,7,0,"",0]
[31,null,null,null,null,null,null,null,null,null,null,null,null,null,7,0,"",0]
[32,null,null,null,null,null,null,null,null,null,null,null,null,null,7,0,"",0]
[33,null,null,null,null,null,null,null,null,null,null,null,null,null,7,0,"",0]
[34,null,null,null,null,null,null,null,null,null,null,null,null,null,7,0,"",0]
[35,null,null,null,null,null,null,null,null,null,null,null,null,null,7,0,"",0]
[36,null,null,null,null,null,null,null,null,null,null,null,null,null,7,0,"",0]
[37,null,null,null,null,null,null,null,null,null,null,null,null,null,7,0,"",0]
[38,null,null,null,null,null,null,null,null,null,null,null,null,null,7,0,"",0]
[39,null,null,null,null,null,null,null,null,null,null,null,null,null,7,0,"",0]
[40,null,null,null,null,null,null,null,null,null,null,null,null,null,7,0,"",0]
[41,null,null,null,null,null,null,null,null,null,null,null,null,null,7,0,"",0]
[42,null,null,null,null,null,null,null,null,null,null,null,null,null,7,0,"",0]
[43,null,null,null,null,null,null,null,null,null,null,null,null,null,7,0,"",0]
[44,null,null,null,null,null,null,null,null,null,null,null,null,null,7,0,"",0]
[45,null,null,null,null,null,null,null,null,null,null,null,null,null,7,0,"",0]
[46,null,null,null,null,null,null,null,null,null,null,null,null,null,7,0,"",0]
[47,null,null,null,null,null,null,null,null,null,null,null,null,null,7,0,"",0]
[48,null,null,null,null,null,null,null,null,null,null,null,null,null,7,0,"",0]
[49,null,null,null,null,null,null,null,null,null,null,null,null,null,7,0,"",0]
[50,null,null,null,null,null,null,null,null,null,null,null,null,null,7,0,"",0]
[51,null,null,null,null,null,null,null,null,null,null,null,null,null,7,0,"",0]
[52,null,null,null,null,null,null,null,null,null,null,null,null,null,7,0,"",0]
[53,null,null,null,null,null,null,null,null,null,null,null,null,null,7,0,"",0]
[54,null,null,null,null,null,null,null,null,null,null,null,null,null,7,0,"",0]
[55,null,null,null,null,null,null,null,null,null,null,null,null,null,7,0,"",0]
[56,null,null,null,null,null,null,null,null,null,null,null,null,null,7,0,"",0]
[57,null,null,null,null,null,null,null,null,null,null,null,null,null,7,0,"",0]
[58,null,null,null,null,null,null,null,null,null,null,null,null,null,7,0,"",0]
[59,null,null,null,null,null,null,null,null,null,null,null,null,null,7,0,"",0]
[60,null,null,null,null,null,null,null,null,null,null,null,null,null,7,0,"",0]
[61,null,null,null,null,null,null,null,null,null,null,null,null,null,7,0,"",0]
[62,null,null,null,null,null,null,null,null,null,null,null,null,null,7,0,"",0]
[63,null,null,null,null,null,null,null,null,null,null,null,null,null,7,0,"",0]
[64,null,null,null,null,null,null,null,null,null,null,null,null,null,7,0,"",0]
[65,null,null,null,null,null,null,null,null,null,null,null,null,null,7,0,"",0]
[66,null,null,null,null,null,null,null,null,null,null,null,null,null,{"$f":"COUNTBLANK(H76:N76)","v":7},{"$f":"IF(B76=\"\",0,1)","v":0},{"$f":"IF(OR(AND(F76=\"Other\",G76=\"\"),AND(O76<7,COUNTBLANK(B76:F76)>0)),\"Please complete all red cells\",IF(AND(O76=7,COUNTBLANK(B76:F76)<5),\"No cost has been entered\",\"\"))","v":""},{"$f":"IF(Q76=\"\",0,1)","v":0}]
[67,null,null,null,null,null,null,null,null,null,null,null,null,null,7,0,"",0]
[68,null,null,null,null,null,null,null,null,null,null,null,null,null,7,0,"",0]
[69,null,null,null,null,null,null,null,null,null,null,null,null,null,7,0,"",0]
[70,null,null,null,null,null,null,null,null,null,null,null,null,null,7,0,"",0]
[71,null,null,null,null,null,null,null,null,null,null,null,null,null,7,0,"",0]
[72,null,null,null,null,null,null,null,null,null,null,null,null,null,7,0,"",0]
[73,null,null,null,null,null,null,null,null,null,null,null,null,null,7,0,"",0]
[74,null,null,null,null,null,null,null,null,null,null,null,null,null,7,0,"",0]
[75,null,null,null,null,null,null,null,null,null,null,null,null,null,7,0,"",0]
[76,null,null,null,null,null,null,null,null,null,null,null,null,null,7,0,"",0]
[77,null,null,null,null,null,null,null,null,null,null,null,null,null,7,0,"",0]
[78,null,null,null,null,null,null,null,null,null,null,null,null,null,7,0,"",0]
[79,null,null,null,null,null,null,null,null,null,null,null,null,null,7,0,"",0]
[80,null,null,null,null,null,null,null,null,null,null,null,null,null,7,0,"",0]
[81,null,null,null,null,null,null,null,null,null,null,null,null,null,7,0,"",0]
[82,null,null,null,null,null,null,null,null,null,null,null,null,null,7,0,"",0]
[83,null,null,null,null,null,null,null,null,null,null,null,null,null,7,0,"",0]
[84,null,null,null,null,null,null,null,null,null,null,null,null,null,7,0,"",0]
[85,null,null,null,null,null,null,null,null,null,null,null,null,null,7,0,"",0]
[86,null,null,null,null,null,null,null,null,null,null,null,null,null,7,0,"",0]
[87,null,null,null,null,null,null,null,null,null,null,null,null,null,7,0,"",0]
[88,null,null,null,null,null,null,null,null,null,null,null,null,null,7,0,"",0]
[89,null,null,null,null,null,null,null,null,null,null,null,null,null,7,0,"",0]
[90,null,null,null,null,null,null,null,null,null,null,null,null,null,7,0,"",0]
[91,null,null,null,null,null,null,null,null,null,null,null,null,null,7,0,"",0]
[92,null,null,null,null,null,null,null,null,null,null,null,null,null,7,0,"",0]
[93,null,null,null,null,null,null,null,null,null,null,null,null,null,7,0,"",0]
[94,null,null,null,null,null,null,null,null,null,null,null,null,null,7,0,"",0]
[95,null,null,null,null,null,null,null,null,null,null,null,null,null,7,0,"",0]
[96,null,null,null,null,null,null,null,null,null,null,null,null,null,7,0,"",0]
[97,null,null,null,null,null,null,null,null,null,null,null,null,null,7,0,"",0]
[98,null,null,null,null,null,null,null,null,null,null,null,null,null,7,0,"",0]
[99,null,null,null,null,null,null,null,null,null,null,null,null,null,7,0,"",0]
[100,null,null,null,null,null,null,null,null,null,null,null,null,null,7,0,"",0]

{"sheet":"Export","index":11,"n_rows":115,"n_cols":84,"rows_kept":115,"cut":false,"hidden":false,"merged":[]}
[]
[]
["CFR Data"]
["CFR DATA","CFR DATA","CFR DATA","CFR DATA","CFR DATA","CFR DATA","CFR DATA","CFR DATA","CFR DATA","CFR DATA","CFR DATA","CFR DATA","CFR DATA","CFR DATA","CFR DATA","CFR DATA","CFR DATA","CFR DATA","CFR DATA","CFR DATA","CFR DATA","CFR DATA","CFR DATA","CFR DATA","CFR DATA","CFR DATA","CFR DATA","CFR DATA","CFR DATA","CFR DATA","CFR DATA","CFR DATA","CFR DATA","CFR DATA","CFR DATA","CFR DATA","CFR DATA","CFR DATA","CFR DATA","CFR DATA","CFR DATA","CFR DATA","CFR DATA","CFR DATA","CFR DATA","CFR DATA","CFR DATA","CFR DATA","CFR DATA","CFR DATA","CFR DATA","CFR DATA","CFR DATA","CFR DATA","CFR DATA","CFR DATA","CFR DATA","CFR DATA","CFR DATA","CFR DATA","CFR DATA","CFR DATA","CFR DATA","CFR DATA","CFR DATA","CFR DATA","CFR DATA","CFR DATA","CFR DATA","CFR DATA","CFR DATA","CFR DATA","CFR DATA","CFR DATA","CFR DATA","CFR DATA","CFR DATA","CFR DATA","CFR DATA","CFR DATA","CFR DATA","CFR DATA","CFR DATA","CFR DATA"]
["School Number","School Name","Contact Name","Contact Email","Contact Phone","Federated\nFlag\n(Y/N)","Data Preparation\n(Y/N)","Data Version\n(Final/\nPreliminary)","Complete\n(Y/N)","Cash or Accruals","Rates Exempt\n(Y/N)","Insurance\n(Y/N)","OB01","OB02","OB03","I01","I02","I03","I04","I05","I06","I07","I08a","I08b","I09","I10","I11","I12","I13","I15","I16","I17","I18A","I18B","I18C","I18D","E01","E02","E03","E04","E05","E06","E07","E08","E09","E10","E11","E12","E13","E14","E15","E16","E17","E18","E19","E20","E21","E22","E23","E24","E25","E26","E27","E28a","E28b","E29","E30","E31","E32","CI01","CI03","CI04","De Minimis","CE01","CE02","CE03","CE04","B01","B02","B03","B05","B06","Notes","Errors"]
[{"$f":"'CFR Return'!B6","v":""},{"$f":"'CFR Return'!B5","v":""},{"$f":"'CFR Return'!B7","v":""},{"$f":"'CFR Return'!B8","v":""},{"$f":"'CFR Return'!B9","v":""},{"$f":"'CFR Return'!B10","v":""},"Y","FINAL","Y","Accruals",{"$f":"IF('Checklist & Authorisation'!D1>7999,\"Y\",\"N\")","v":"N"},"N",{"$f":"'CFR Return'!C16","v":0},{"$f":"'CFR Return'!C17","v":0},{"$f":"'CFR Return'!C18","v":0},{"$f":"'CFR Return'!C21","v":0},{"$f":"'CFR Return'!C22","v":0},{"$f":"'CFR Return'!C23","v":0},{"$f":"'CFR Return'!C24","v":0},{"$f":"'CFR Return'!C25","v":0},{"$f":"'CFR Return'!C26","v":0},{"$f":"'CFR Return'!C27","v":0},{"$f":"'CFR Return'!C28","v":0},{"$f":"'CFR Return'!C29","v":0},{"$f":"'CFR Return'!C30","v":0},{"$f":"'CFR Return'!C31","v":0},{"$f":"'CFR Return'!C32","v":0},{"$f":"'CFR Return'!C33","v":0},{"$f":"'CFR Return'!C34","v":0},{"$f":"'CFR Return'!C36","v":0},{"$f":"'CFR Return'!C37","v":0},{"$f":"'CFR Return'!C38","v":0},{"$f":"'CFR Return'!C39","v":0},{"$f":"'CFR Return'!C40","v":0},{"$f":"'CFR Return'!C41","v":0},{"$f":"'CFR Return'!C42","v":0},{"$f":"'CFR Return'!C46","v":0},{"$f":"'CFR Return'!C47","v":0},{"$f":"'CFR Return'!C48","v":0},{"$f":"'CFR Return'!C49","v":0},{"$f":"'CFR Return'!C50","v":0},{"$f":"'CFR Return'!C51","v":0},{"$f":"'CFR Return'!C52","v":0},{"$f":"'CFR Return'!C53","v":0},{"$f":"'CFR Return'!C54","v":0},{"$f":"'CFR Return'!C55","v":0},{"$f":"'CFR Return'!C56","v":0},{"$f":"'CFR Return'!C57","v":0},{"$f":"'CFR Return'!C58","v":0},{"$f":"'CFR Return'!C59","v":0},{"$f":"'CFR Return'!C60","v":0},{"$f":"'CFR Return'!C61","v":0},{"$f":"'CFR Return'!C62","v":0},{"$f":"'CFR Return'!C63","v":0},{"$f":"'CFR Return'!C64","v":0},{"$f":"'CFR Return'!C65","v":0},{"$f":"'CFR Return'!C66","v":0},{"$f":"'CFR Return'!C67","v":0},{"$f":"'CFR Return'!C68","v":0},{"$f":"'CFR Return'!C69","v":0},{"$f":"'CFR Return'!C70","v":0},{"$f":"'CFR Return'!C71","v":0},{"$f":"'CFR Return'!C72","v":0},{"$f":"'CFR Return'!C73","v":0},{"$f":"'CFR Return'!C74","v":0},{"$f":"'CFR Return'!C75","v":0},{"$f":"'CFR Return'!C76","v":0},{"$f":"'CFR Return'!C77","v":0},{"$f":"'CFR Return'!C78","v":0},{"$f":"'CFR Return'!C82","v":0},{"$f":"'CFR Return'!C83","v":0},{"$f":"'CFR Return'!C84","v":0},1,{"$f":"'CFR Return'!C88","v":0},{"$f":"'CFR Return'!C89","v":0},{"$f":"'CFR Return'!C90","v":0},{"$f":"'CFR Return'!C91","v":0},{"$f":"'CFR Return'!C95","v":0},{"$f":"'CFR Return'!C96","v":0},{"$f":"'CFR Return'!C97","v":0},{"$f":"'CFR Return'!C99","v":0},{"$f":"'CFR Return'!C100","v":0},{"$f":"'CFR Return'!G104","v":0},{"$f":"IF('CFR Return'!I2>0,\"Y\",\"N\")","v":"Y"}]
[]
[]
[]
[]
[null,null,null,null,null,null,null,"C code","Sch",null,null,null,"Rem ok","Term ok"]
[null,null,null,null,null,null,null,{"$f":"'Checklist & Authorisation'!D1","v":0},{"$f":"'Checklist & Authorisation'!E1","v":"          Please enter your school's cost code"},null,null,null,{"$f":"'Checklist & Authorisation'!C15","v":"N"},{"$f":"'Checklist & Authorisation'!C16","v":"N"}]
[]
[null,null,null,null,null,null,null,"Termination Payments",null,null,null,null,null,null,null,null,null,null,null,null,null,null,null,null,null,null,"Remunerations"]
[null,null,null,null,null,null,null,"C. Centre","Sch","Nil rtn","Payroll reference","Employee name","Position","Date employee left organisation (DD/MM/YY)","Reason for leaving\n(e.g. Compulsory redundancy / Voluntary redundancy / Resignation / Settlement /Mutual agreement etc.)","If 'Other' is selected in column F, please enter the reason for leaving below ","Pay in Lieu of Notice \n(£)","Pay in Lieu Tax and NI (£)","Redundancy \n\n(£)","Compromise Agreement (£)","Settlement\n\n(£)","Severance Payment \n(£)","Pension strain invoice amount paid to pension fund in respect of employee  (£)",null,null,null,"Cost Centre","School","Payroll Provider","Nil Rtn?","Employee Name","Job Title / Position",{"$f":"\"Total remuneration \nreceived for \"&'FinYr Lookup'!C3","v":"Total remuneration \nreceived for 2023-24"},"Annualised Salary","Value of P11D Taxable Benefits","Renumeration Band (incl P11D taxable benefits)"]
[null,null,null,null,null,null,null,{"$f":"$I$11","v":"Sch"},{"$f":"$I$12","v":"          Please enter your school's cost code"},{"$f":"Terminations!$B$6","v":0},{"$f":"Terminations!B11","v":0},{"$f":"Terminations!C11","v":0},{"$f":"Terminations!D11","v":0},{"$f":"Terminations!E11","v":0},{"$f":"Terminations!F11","v":0},{"$f":"Terminations!G11","v":0},{"$f":"Terminations!H11","v":0},{"$f":"Terminations!I11","v":0},{"$f":"Terminations!J11","v":0},{"$f":"Terminations!K11","v":0},{"$f":"Terminations!L11","v":0},{"$f":"Terminations!M11","v":0},{"$f":"Terminations!N11","v":0},null,null,null,{"$f":"$I$11","v":"Sch"},{"$f":"$I$12","v":"          Please enter your school's cost code"},{"$f":"Remunerations!$B$6","v":0},{"$f":"Remunerations!$E$6","v":0},{"$f":"Remunerations!A12","v":0},{"$f":"Remunerations!B12","v":0},{"$f":"Remunerations!C12","v":0},{"$f":"Remunerations!D12","v":0},{"$f":"Remunerations!E12","v":0},{"$f":"Remunerations!F12","v":""}]
[null,null,null,null,null,null,null,{"$f":"$I$11","v":"Sch"},{"$f":"$I$12","v":"          Please enter your school's cost code"},{"$f":"Terminations!$B$6","v":0},{"$f":"Terminations!B12","v":0},{"$f":"Terminations!C12","v":0},{"$f":"Terminations!D12","v":0},{"$f":"Terminations!E12","v":0},{"$f":"Terminations!F12","v":0},{"$f":"Terminations!G12","v":0},{"$f":"Terminations!H12","v":0},{"$f":"Terminations!I12","v":0},{"$f":"Terminations!J12","v":0},{"$f":"Terminations!K12","v":0},{"$f":"Terminations!L12","v":0},{"$f":"Terminations!M12","v":0},{"$f":"Terminations!N12","v":0},null,null,null,{"$f":"$I$11","v":"Sch"},{"$f":"$I$12","v":"          Please enter your school's cost code"},{"$f":"Remunerations!$B$6","v":0},{"$f":"Remunerations!$E$6","v":0},{"$f":"Remunerations!A13","v":0},{"$f":"Remunerations!B13","v":0},{"$f":"Remunerations!C13","v":0},{"$f":"Remunerations!D13","v":0},{"$f":"Remunerations!E13","v":0},{"$f":"Remunerations!F13","v":""}]
[null,null,null,null,null,null,null,"Sch","          Please enter your school's cost code",{"$f":"Terminations!$B$6","v":0},{"$f":"Terminations!B13","v":0},{"$f":"Terminations!C13","v":0},{"$f":"Terminations!D13","v":0},{"$f":"Terminations!E13","v":0},{"$f":"Terminations!F13","v":0},{"$f":"Terminations!G13","v":0},{"$f":"Terminations!H13","v":0},{"$f":"Terminations!I13","v":0},{"$f":"Terminations!J13","v":0},{"$f":"Terminations!K13","v":0},{"$f":"Terminations!L13","v":0},{"$f":"Terminations!M13","v":0},{"$f":"Terminations!N13","v":0},null,null,null,"Sch","          Please enter your school's cost code",{"$f":"Remunerations!$B$6","v":0},{"$f":"Remunerations!$E$6","v":0},{"$f":"Remunerations!A14","v":0},{"$f":"Remunerations!B14","v":0},{"$f":"Remunerations!C14","v":0},{"$f":"Remunerations!D14","v":0},{"$f":"Remunerations!E14","v":0},{"$f":"Remunerations!F14","v":""}]
[null,null,null,null,null,null,null,"Sch","          Please enter your school's cost code",{"$f":"Terminations!$B$6","v":0},{"$f":"Terminations!B14","v":0},{"$f":"Terminations!C14","v":0},{"$f":"Terminations!D14","v":0},{"$f":"Terminations!E14","v":0},{"$f":"Terminations!F14","v":0},{"$f":"Terminations!G14","v":0},{"$f":"Terminations!H14","v":0},{"$f":"Terminations!I14","v":0},{"$f":"Terminations!J14","v":0},{"$f":"Terminations!K14","v":0},{"$f":"Terminations!L14","v":0},{"$f":"Terminations!M14","v":0},{"$f":"Terminations!N14","v":0},null,null,null,"Sch","          Please enter your school's cost code",{"$f":"Remunerations!$B$6","v":0},{"$f":"Remunerations!$E$6","v":0},{"$f":"Remunerations!A15","v":0},{"$f":"Remunerations!B15","v":0},{"$f":"Remunerations!C15","v":0},{"$f":"Remunerations!D15","v":0},{"$f":"Remunerations!E15","v":0},{"$f":"Remunerations!F15","v":""}]
[null,null,null,null,null,null,null,"Sch","          Please enter your school's cost code",{"$f":"Terminations!$B$6","v":0},{"$f":"Terminations!B15","v":0},{"$f":"Terminations!C15","v":0},{"$f":"Terminations!D15","v":0},{"$f":"Terminations!E15","v":0},{"$f":"Terminations!F15","v":0},{"$f":"Terminations!G15","v":0},{"$f":"Terminations!H15","v":0},{"$f":"Terminations!I15","v":0},{"$f":"Terminations!J15","v":0},{"$f":"Terminations!K15","v":0},{"$f":"Terminations!L15","v":0},{"$f":"Terminations!M15","v":0},{"$f":"Terminations!N15","v":0},null,null,null,"Sch","          Please enter your school's cost code",{"$f":"Remunerations!$B$6","v":0},{"$f":"Remunerations!$E$6","v":0},{"$f":"Remunerations!A16","v":0},{"$f":"Remunerations!B16","v":0},{"$f":"Remunerations!C16","v":0},{"$f":"Remunerations!D16","v":0},{"$f":"Remunerations!E16","v":0},{"$f":"Remunerations!F16","v":""}]
[null,null,null,null,null,null,null,"Sch","          Please enter your school's cost code",{"$f":"Terminations!$B$6","v":0},{"$f":"Terminations!B16","v":0},{"$f":"Terminations!C16","v":0},{"$f":"Terminations!D16","v":0},{"$f":"Terminations!E16","v":0},{"$f":"Terminations!F16","v":0},{"$f":"Terminations!G16","v":0},{"$f":"Terminations!H16","v":0},{"$f":"Terminations!I16","v":0},{"$f":"Terminations!J16","v":0},{"$f":"Terminations!K16","v":0},{"$f":"Terminations!L16","v":0},{"$f":"Terminations!M16","v":0},{"$f":"Terminations!N16","v":0},null,null,null,"Sch","          Please enter your school's cost code",{"$f":"Remunerations!$B$6","v":0},{"$f":"Remunerations!$E$6","v":0},{"$f":"Remunerations!A17","v":0},{"$f":"Remunerations!B17","v":0},{"$f":"Remunerations!C17","v":0},{"$f":"Remunerations!D17","v":0},{"$f":"Remunerations!E17","v":0},{"$f":"Remunerations!F17","v":""}]
[null,null,null,null,null,null,null,"Sch","          Please enter your school's cost code",{"$f":"Terminations!$B$6","v":0},{"$f":"Terminations!B17","v":0},{"$f":"Terminations!C17","v":0},{"$f":"Terminations!D17","v":0},{"$f":"Terminations!E17","v":0},{"$f":"Terminations!F17","v":0},{"$f":"Terminations!G17","v":0},{"$f":"Terminations!H17","v":0},{"$f":"Terminations!I17","v":0},{"$f":"Terminations!J17","v":0},{"$f":"Terminations!K17","v":0},{"$f":"Terminations!L17","v":0},{"$f":"Terminations!M17","v":0},{"$f":"Terminations!N17","v":0},null,null,null,"Sch","          Please enter your school's cost code",{"$f":"Remunerations!$B$6","v":0},{"$f":"Remunerations!$E$6","v":0},{"$f":"Remunerations!A18","v":0},{"$f":"Remunerations!B18","v":0},{"$f":"Remunerations!C18","v":0},{"$f":"Remunerations!D18","v":0},{"$f":"Remunerations!E18","v":0},{"$f":"Remunerations!F18","v":""}]
[null,null,null,null,null,null,null,"Sch","          Please enter your school's cost code",{"$f":"Terminations!$B$6","v":0},{"$f":"Terminations!B18","v":0},{"$f":"Terminations!C18","v":0},{"$f":"Terminations!D18","v":0},{"$f":"Terminations!E18","v":0},{"$f":"Terminations!F18","v":0},{"$f":"Terminations!G18","v":0},{"$f":"Terminations!H18","v":0},{"$f":"Terminations!I18","v":0},{"$f":"Terminations!J18","v":0},{"$f":"Terminations!K18","v":0},{"$f":"Terminations!L18","v":0},{"$f":"Terminations!M18","v":0},{"$f":"Terminations!N18","v":0},null,null,null,"Sch","          Please enter your school's cost code",{"$f":"Remunerations!$B$6","v":0},{"$f":"Remunerations!$E$6","v":0},{"$f":"Remunerations!A19","v":0},{"$f":"Remunerations!B19","v":0},{"$f":"Remunerations!C19","v":0},{"$f":"Remunerations!D19","v":0},{"$f":"Remunerations!E19","v":0},{"$f":"Remunerations!F19","v":""}]
[null,null,null,null,null,null,null,"Sch","          Please enter your school's cost code",{"$f":"Terminations!$B$6","v":0},{"$f":"Terminations!B19","v":0},{"$f":"Terminations!C19","v":0},{"$f":"Terminations!D19","v":0},{"$f":"Terminations!E19","v":0},{"$f":"Terminations!F19","v":0},{"$f":"Terminations!G19","v":0},{"$f":"Terminations!H19","v":0},{"$f":"Terminations!I19","v":0},{"$f":"Terminations!J19","v":0},{"$f":"Terminations!K19","v":0},{"$f":"Terminations!L19","v":0},{"$f":"Terminations!M19","v":0},{"$f":"Terminations!N19","v":0},null,null,null,"Sch","          Please enter your school's cost code",{"$f":"Remunerations!$B$6","v":0},{"$f":"Remunerations!$E$6","v":0},{"$f":"Remunerations!A20","v":0},{"$f":"Remunerations!B20","v":0},{"$f":"Remunerations!C20","v":0},{"$f":"Remunerations!D20","v":0},{"$f":"Remunerations!E20","v":0},{"$f":"Remunerations!F20","v":""}]
[null,null,null,null,null,null,null,"Sch","          Please enter your school's cost code",{"$f":"Terminations!$B$6","v":0},{"$f":"Terminations!B20","v":0},{"$f":"Terminations!C20","v":0},{"$f":"Terminations!D20","v":0},{"$f":"Terminations!E20","v":0},{"$f":"Terminations!F20","v":0},{"$f":"Terminations!G20","v":0},{"$f":"Terminations!H20","v":0},{"$f":"Terminations!I20","v":0},{"$f":"Terminations!J20","v":0},{"$f":"Terminations!K20","v":0},{"$f":"Terminations!L20","v":0},{"$f":"Terminations!M20","v":0},{"$f":"Terminations!N20","v":0},null,null,null,"Sch","          Please enter your school's cost code",{"$f":"Remunerations!$B$6","v":0},{"$f":"Remunerations!$E$6","v":0},{"$f":"Remunerations!A21","v":0},{"$f":"Remunerations!B21","v":0},{"$f":"Remunerations!C21","v":0},{"$f":"Remunerations!D21","v":0},{"$f":"Remunerations!E21","v":0},{"$f":"Remunerations!F21","v":""}]
[null,null,null,null,null,null,null,"Sch","          Please enter your school's cost code",{"$f":"Terminations!$B$6","v":0},{"$f":"Terminations!B21","v":0},{"$f":"Terminations!C21","v":0},{"$f":"Terminations!D21","v":0},{"$f":"Terminations!E21","v":0},{"$f":"Terminations!F21","v":0},{"$f":"Terminations!G21","v":0},{"$f":"Terminations!H21","v":0},{"$f":"Terminations!I21","v":0},{"$f":"Terminations!J21","v":0},{"$f":"Terminations!K21","v":0},{"$f":"Terminations!L21","v":0},{"$f":"Terminations!M21","v":0},{"$f":"Terminations!N21","v":0},null,null,null,"Sch","          Please enter your school's cost code",{"$f":"Remunerations!$B$6","v":0},{"$f":"Remunerations!$E$6","v":0},{"$f":"Remunerations!A22","v":0},{"$f":"Remunerations!B22","v":0},{"$f":"Remunerations!C22","v":0},{"$f":"Remunerations!D22","v":0},{"$f":"Remunerations!E22","v":0},{"$f":"Remunerations!F22","v":""}]
[null,null,null,null,null,null,null,"Sch","          Please enter your school's cost code",{"$f":"Terminations!$B$6","v":0},{"$f":"Terminations!B22","v":0},{"$f":"Terminations!C22","v":0},{"$f":"Terminations!D22","v":0},{"$f":"Terminations!E22","v":0},{"$f":"Terminations!F22","v":0},{"$f":"Terminations!G22","v":0},{"$f":"Terminations!H22","v":0},{"$f":"Terminations!I22","v":0},{"$f":"Terminations!J22","v":0},{"$f":"Terminations!K22","v":0},{"$f":"Terminations!L22","v":0},{"$f":"Terminations!M22","v":0},{"$f":"Terminations!N22","v":0},null,null,null,"Sch","          Please enter your school's cost code",{"$f":"Remunerations!$B$6","v":0},{"$f":"Remunerations!$E$6","v":0},{"$f":"Remunerations!A23","v":0},{"$f":"Remunerations!B23","v":0},{"$f":"Remunerations!C23","v":0},{"$f":"Remunerations!D23","v":0},{"$f":"Remunerations!E23","v":0},{"$f":"Remunerations!F23","v":""}]
[null,null,null,null,null,null,null,"Sch","          Please enter your school's cost code",{"$f":"Terminations!$B$6","v":0},{"$f":"Terminations!B23","v":0},{"$f":"Terminations!C23","v":0},{"$f":"Terminations!D23","v":0},{"$f":"Terminations!E23","v":0},{"$f":"Terminations!F23","v":0},{"$f":"Terminations!G23","v":0},{"$f":"Terminations!H23","v":0},{"$f":"Terminations!I23","v":0},{"$f":"Terminations!J23","v":0},{"$f":"Terminations!K23","v":0},{"$f":"Terminations!L23","v":0},{"$f":"Terminations!M23","v":0},{"$f":"Terminations!N23","v":0},null,null,null,"Sch","          Please enter your school's cost code",{"$f":"Remunerations!$B$6","v":0},{"$f":"Remunerations!$E$6","v":0},{"$f":"Remunerations!A24","v":0},{"$f":"Remunerations!B24","v":0},{"$f":"Remunerations!C24","v":0},{"$f":"Remunerations!D24","v":0},{"$f":"Remunerations!E24","v":0},{"$f":"Remunerations!F24","v":""}]
[null,null,null,null,null,null,null,"Sch","          Please enter your school's cost code",{"$f":"Terminations!$B$6","v":0},{"$f":"Terminations!B24","v":0},{"$f":"Terminations!C24","v":0},{"$f":"Terminations!D24","v":0},{"$f":"Terminations!E24","v":0},{"$f":"Terminations!F24","v":0},{"$f":"Terminations!G24","v":0},{"$f":"Terminations!H24","v":0},{"$f":"Terminations!I24","v":0},{"$f":"Terminations!J24","v":0},{"$f":"Terminations!K24","v":0},{"$f":"Terminations!L24","v":0},{"$f":"Terminations!M24","v":0},{"$f":"Terminations!N24","v":0},null,null,null,"Sch","          Please enter your school's cost code",{"$f":"Remunerations!$B$6","v":0},{"$f":"Remunerations!$E$6","v":0},{"$f":"Remunerations!A25","v":0},{"$f":"Remunerations!B25","v":0},{"$f":"Remunerations!C25","v":0},{"$f":"Remunerations!D25","v":0},{"$f":"Remunerations!E25","v":0},{"$f":"Remunerations!F25","v":""}]
[null,null,null,null,null,null,null,"Sch","          Please enter your school's cost code",{"$f":"Terminations!$B$6","v":0},{"$f":"Terminations!B25","v":0},{"$f":"Terminations!C25","v":0},{"$f":"Terminations!D25","v":0},{"$f":"Terminations!E25","v":0},{"$f":"Terminations!F25","v":0},{"$f":"Terminations!G25","v":0},{"$f":"Terminations!H25","v":0},{"$f":"Terminations!I25","v":0},{"$f":"Terminations!J25","v":0},{"$f":"Terminations!K25","v":0},{"$f":"Terminations!L25","v":0},{"$f":"Terminations!M25","v":0},{"$f":"Terminations!N25","v":0},null,null,null,"Sch","          Please enter your school's cost code",{"$f":"Remunerations!$B$6","v":0},{"$f":"Remunerations!$E$6","v":0},{"$f":"Remunerations!A26","v":0},{"$f":"Remunerations!B26","v":0},{"$f":"Remunerations!C26","v":0},{"$f":"Remunerations!D26","v":0},{"$f":"Remunerations!E26","v":0},{"$f":"Remunerations!F26","v":""}]
[null,null,null,null,null,null,null,"Sch","          Please enter your school's cost code",{"$f":"Terminations!$B$6","v":0},{"$f":"Terminations!B26","v":0},{"$f":"Terminations!C26","v":0},{"$f":"Terminations!D26","v":0},{"$f":"Terminations!E26","v":0},{"$f":"Terminations!F26","v":0},{"$f":"Terminations!G26","v":0},{"$f":"Terminations!H26","v":0},{"$f":"Terminations!I26","v":0},{"$f":"Terminations!J26","v":0},{"$f":"Terminations!K26","v":0},{"$f":"Terminations!L26","v":0},{"$f":"Terminations!M26","v":0},{"$f":"Terminations!N26","v":0},null,null,null,"Sch","          Please enter your school's cost code",{"$f":"Remunerations!$B$6","v":0},{"$f":"Remunerations!$E$6","v":0},{"$f":"Remunerations!A27","v":0},{"$f":"Remunerations!B27","v":0},{"$f":"Remunerations!C27","v":0},{"$f":"Remunerations!D27","v":0},{"$f":"Remunerations!E27","v":0},{"$f":"Remunerations!F27","v":""}]
[null,null,null,null,null,null,null,"Sch","          Please enter your school's cost code",{"$f":"Terminations!$B$6","v":0},{"$f":"Terminations!B27","v":0},{"$f":"Terminations!C27","v":0},{"$f":"Terminations!D27","v":0},{"$f":"Terminations!E27","v":0},{"$f":"Terminations!F27","v":0},{"$f":"Terminations!G27","v":0},{"$f":"Terminations!H27","v":0},{"$f":"Terminations!I27","v":0},{"$f":"Terminations!J27","v":0},{"$f":"Terminations!K27","v":0},{"$f":"Terminations!L27","v":0},{"$f":"Terminations!M27","v":0},{"$f":"Terminations!N27","v":0},null,null,null,"Sch","          Please enter your school's cost code",{"$f":"Remunerations!$B$6","v":0},{"$f":"Remunerations!$E$6","v":0},{"$f":"Remunerations!A28","v":0},{"$f":"Remunerations!B28","v":0},{"$f":"Remunerations!C28","v":0},{"$f":"Remunerations!D28","v":0},{"$f":"Remunerations!E28","v":0},{"$f":"Remunerations!F28","v":""}]
[null,null,null,null,null,null,null,"Sch","          Please enter your school's cost code",{"$f":"Terminations!$B$6","v":0},{"$f":"Terminations!B28","v":0},{"$f":"Terminations!C28","v":0},{"$f":"Terminations!D28","v":0},{"$f":"Terminations!E28","v":0},{"$f":"Terminations!F28","v":0},{"$f":"Terminations!G28","v":0},{"$f":"Terminations!H28","v":0},{"$f":"Terminations!I28","v":0},{"$f":"Terminations!J28","v":0},{"$f":"Terminations!K28","v":0},{"$f":"Terminations!L28","v":0},{"$f":"Terminations!M28","v":0},{"$f":"Terminations!N28","v":0},null,null,null,"Sch","          Please enter your school's cost code",{"$f":"Remunerations!$B$6","v":0},{"$f":"Remunerations!$E$6","v":0},{"$f":"Remunerations!A29","v":0},{"$f":"Remunerations!B29","v":0},{"$f":"Remunerations!C29","v":0},{"$f":"Remunerations!D29","v":0},{"$f":"Remunerations!E29","v":0},{"$f":"Remunerations!F29","v":""}]
[null,null,null,null,null,null,null,"Sch","          Please enter your school's cost code",{"$f":"Terminations!$B$6","v":0},{"$f":"Terminations!B29","v":0},{"$f":"Terminations!C29","v":0},{"$f":"Terminations!D29","v":0},{"$f":"Terminations!E29","v":0},{"$f":"Terminations!F29","v":0},{"$f":"Terminations!G29","v":0},{"$f":"Terminations!H29","v":0},{"$f":"Terminations!I29","v":0},{"$f":"Terminations!J29","v":0},{"$f":"Terminations!K29","v":0},{"$f":"Terminations!L29","v":0},{"$f":"Terminations!M29","v":0},{"$f":"Terminations!N29","v":0},null,null,null,"Sch","          Please enter your school's cost code",{"$f":"Remunerations!$B$6","v":0},{"$f":"Remunerations!$E$6","v":0},{"$f":"Remunerations!A30","v":0},{"$f":"Remunerations!B30","v":0},{"$f":"Remunerations!C30","v":0},{"$f":"Remunerations!D30","v":0},{"$f":"Remunerations!E30","v":0},{"$f":"Remunerations!F30","v":""}]
[null,null,null,null,null,null,null,"Sch","          Please enter your school's cost code",{"$f":"Terminations!$B$6","v":0},{"$f":"Terminations!B30","v":0},{"$f":"Terminations!C30","v":0},{"$f":"Terminations!D30","v":0},{"$f":"Terminations!E30","v":0},{"$f":"Terminations!F30","v":0},{"$f":"Terminations!G30","v":0},{"$f":"Terminations!H30","v":0},{"$f":"Terminations!I30","v":0},{"$f":"Terminations!J30","v":0},{"$f":"Terminations!K30","v":0},{"$f":"Terminations!L30","v":0},{"$f":"Terminations!M30","v":0},{"$f":"Terminations!N30","v":0},null,null,null,"Sch","          Please enter your school's cost code",{"$f":"Remunerations!$B$6","v":0},{"$f":"Remunerations!$E$6","v":0},{"$f":"Remunerations!A31","v":0},{"$f":"Remunerations!B31","v":0},{"$f":"Remunerations!C31","v":0},{"$f":"Remunerations!D31","v":0},{"$f":"Remunerations!E31","v":0},{"$f":"Remunerations!F31","v":""}]
[null,null,null,null,null,null,null,"Sch","          Please enter your school's cost code",{"$f":"Terminations!$B$6","v":0},{"$f":"Terminations!B31","v":0},{"$f":"Terminations!C31","v":0},{"$f":"Terminations!D31","v":0},{"$f":"Terminations!E31","v":0},{"$f":"Terminations!F31","v":0},{"$f":"Terminations!G31","v":0},{"$f":"Terminations!H31","v":0},{"$f":"Terminations!I31","v":0},{"$f":"Terminations!J31","v":0},{"$f":"Terminations!K31","v":0},{"$f":"Terminations!L31","v":0},{"$f":"Terminations!M31","v":0},{"$f":"Terminations!N31","v":0},null,null,null,"Sch","          Please enter your school's cost code",{"$f":"Remunerations!$B$6","v":0},{"$f":"Remunerations!$E$6","v":0},{"$f":"Remunerations!A32","v":0},{"$f":"Remunerations!B32","v":0},{"$f":"Remunerations!C32","v":0},{"$f":"Remunerations!D32","v":0},{"$f":"Remunerations!E32","v":0},{"$f":"Remunerations!F32","v":""}]
[null,null,null,null,null,null,null,"Sch","          Please enter your school's cost code",{"$f":"Terminations!$B$6","v":0},{"$f":"Terminations!B32","v":0},{"$f":"Terminations!C32","v":0},{"$f":"Terminations!D32","v":0},{"$f":"Terminations!E32","v":0},{"$f":"Terminations!F32","v":0},{"$f":"Terminations!G32","v":0},{"$f":"Terminations!H32","v":0},{"$f":"Terminations!I32","v":0},{"$f":"Terminations!J32","v":0},{"$f":"Terminations!K32","v":0},{"$f":"Terminations!L32","v":0},{"$f":"Terminations!M32","v":0},{"$f":"Terminations!N32","v":0},null,null,null,"Sch","          Please enter your school's cost code",{"$f":"Remunerations!$B$6","v":0},{"$f":"Remunerations!$E$6","v":0},{"$f":"Remunerations!A33","v":0},{"$f":"Remunerations!B33","v":0},{"$f":"Remunerations!C33","v":0},{"$f":"Remunerations!D33","v":0},{"$f":"Remunerations!E33","v":0},{"$f":"Remunerations!F33","v":""}]
[null,null,null,null,null,null,null,"Sch","          Please enter your school's cost code",{"$f":"Terminations!$B$6","v":0},{"$f":"Terminations!B33","v":0},{"$f":"Terminations!C33","v":0},{"$f":"Terminations!D33","v":0},{"$f":"Terminations!E33","v":0},{"$f":"Terminations!F33","v":0},{"$f":"Terminations!G33","v":0},{"$f":"Terminations!H33","v":0},{"$f":"Terminations!I33","v":0},{"$f":"Terminations!J33","v":0},{"$f":"Terminations!K33","v":0},{"$f":"Terminations!L33","v":0},{"$f":"Terminations!M33","v":0},{"$f":"Terminations!N33","v":0},null,null,null,"Sch","          Please enter your school's cost code",{"$f":"Remunerations!$B$6","v":0},{"$f":"Remunerations!$E$6","v":0},{"$f":"Remunerations!A34","v":0},{"$f":"Remunerations!B34","v":0},{"$f":"Remunerations!C34","v":0},{"$f":"Remunerations!D34","v":0},{"$f":"Remunerations!E34","v":0},{"$f":"Remunerations!F34","v":""}]
[null,null,null,null,null,null,null,"Sch","          Please enter your school's cost code",{"$f":"Terminations!$B$6","v":0},{"$f":"Terminations!B34","v":0},{"$f":"Terminations!C34","v":0},{"$f":"Terminations!D34","v":0},{"$f":"Terminations!E34","v":0},{"$f":"Terminations!F34","v":0},{"$f":"Terminations!G34","v":0},{"$f":"Terminations!H34","v":0},{"$f":"Terminations!I34","v":0},{"$f":"Terminations!J34","v":0},{"$f":"Terminations!K34","v":0},{"$f":"Terminations!L34","v":0},{"$f":"Terminations!M34","v":0},{"$f":"Terminations!N34","v":0},null,null,null,"Sch","          Please enter your school's cost code",{"$f":"Remunerations!$B$6","v":0},{"$f":"Remunerations!$E$6","v":0},{"$f":"Remunerations!A35","v":0},{"$f":"Remunerations!B35","v":0},{"$f":"Remunerations!C35","v":0},{"$f":"Remunerations!D35","v":0},{"$f":"Remunerations!E35","v":0},{"$f":"Remunerations!F35","v":""}]
[null,null,null,null,null,null,null,"Sch","          Please enter your school's cost code",{"$f":"Terminations!$B$6","v":0},{"$f":"Terminations!B35","v":0},{"$f":"Terminations!C35","v":0},{"$f":"Terminations!D35","v":0},{"$f":"Terminations!E35","v":0},{"$f":"Terminations!F35","v":0},{"$f":"Terminations!G35","v":0},{"$f":"Terminations!H35","v":0},{"$f":"Terminations!I35","v":0},{"$f":"Terminations!J35","v":0},{"$f":"Terminations!K35","v":0},{"$f":"Terminations!L35","v":0},{"$f":"Terminations!M35","v":0},{"$f":"Terminations!N35","v":0},null,null,null,"Sch","          Please enter your school's cost code",{"$f":"Remunerations!$B$6","v":0},{"$f":"Remunerations!$E$6","v":0},{"$f":"Remunerations!A36","v":0},{"$f":"Remunerations!B36","v":0},{"$f":"Remunerations!C36","v":0},{"$f":"Remunerations!D36","v":0},{"$f":"Remunerations!E36","v":0},{"$f":"Remunerations!F36","v":""}]
[null,null,null,null,null,null,null,"Sch","          Please enter your school's cost code",{"$f":"Terminations!$B$6","v":0},{"$f":"Terminations!B36","v":0},{"$f":"Terminations!C36","v":0},{"$f":"Terminations!D36","v":0},{"$f":"Terminations!E36","v":0},{"$f":"Terminations!F36","v":0},{"$f":"Terminations!G36","v":0},{"$f":"Terminations!H36","v":0},{"$f":"Terminations!I36","v":0},{"$f":"Terminations!J36","v":0},{"$f":"Terminations!K36","v":0},{"$f":"Terminations!L36","v":0},{"$f":"Terminations!M36","v":0},{"$f":"Terminations!N36","v":0},null,null,null,"Sch","          Please enter your school's cost code",{"$f":"Remunerations!$B$6","v":0},{"$f":"Remunerations!$E$6","v":0},{"$f":"Remunerations!A37","v":0},{"$f":"Remunerations!B37","v":0},{"$f":"Remunerations!C37","v":0},{"$f":"Remunerations!D37","v":0},{"$f":"Remunerations!E37","v":0},{"$f":"Remunerations!F37","v":""}]
[null,null,null,null,null,null,null,"Sch","          Please enter your school's cost code",{"$f":"Terminations!$B$6","v":0},{"$f":"Terminations!B37","v":0},{"$f":"Terminations!C37","v":0},{"$f":"Terminations!D37","v":0},{"$f":"Terminations!E37","v":0},{"$f":"Terminations!F37","v":0},{"$f":"Terminations!G37","v":0},{"$f":"Terminations!H37","v":0},{"$f":"Terminations!I37","v":0},{"$f":"Terminations!J37","v":0},{"$f":"Terminations!K37","v":0},{"$f":"Terminations!L37","v":0},{"$f":"Terminations!M37","v":0},{"$f":"Terminations!N37","v":0},null,null,null,"Sch","          Please enter your school's cost code",{"$f":"Remunerations!$B$6","v":0},{"$f":"Remunerations!$E$6","v":0},{"$f":"Remunerations!A38","v":0},{"$f":"Remunerations!B38","v":0},{"$f":"Remunerations!C38","v":0},{"$f":"Remunerations!D38","v":0},{"$f":"Remunerations!E38","v":0},{"$f":"Remunerations!F38","v":""}]
[null,null,null,null,null,null,null,"Sch","          Please enter your school's cost code",{"$f":"Terminations!$B$6","v":0},{"$f":"Terminations!B38","v":0},{"$f":"Terminations!C38","v":0},{"$f":"Terminations!D38","v":0},{"$f":"Terminations!E38","v":0},{"$f":"Terminations!F38","v":0},{"$f":"Terminations!G38","v":0},{"$f":"Terminations!H38","v":0},{"$f":"Terminations!I38","v":0},{"$f":"Terminations!J38","v":0},{"$f":"Terminations!K38","v":0},{"$f":"Terminations!L38","v":0},{"$f":"Terminations!M38","v":0},{"$f":"Terminations!N38","v":0},null,null,null,"Sch","          Please enter your school's cost code",{"$f":"Remunerations!$B$6","v":0},{"$f":"Remunerations!$E$6","v":0},{"$f":"Remunerations!A39","v":0},{"$f":"Remunerations!B39","v":0},{"$f":"Remunerations!C39","v":0},{"$f":"Remunerations!D39","v":0},{"$f":"Remunerations!E39","v":0},{"$f":"Remunerations!F39","v":""}]
[null,null,null,null,null,null,null,"Sch","          Please enter your school's cost code",{"$f":"Terminations!$B$6","v":0},{"$f":"Terminations!B39","v":0},{"$f":"Terminations!C39","v":0},{"$f":"Terminations!D39","v":0},{"$f":"Terminations!E39","v":0},{"$f":"Terminations!F39","v":0},{"$f":"Terminations!G39","v":0},{"$f":"Terminations!H39","v":0},{"$f":"Terminations!I39","v":0},{"$f":"Terminations!J39","v":0},{"$f":"Terminations!K39","v":0},{"$f":"Terminations!L39","v":0},{"$f":"Terminations!M39","v":0},{"$f":"Terminations!N39","v":0},null,null,null,"Sch","          Please enter your school's cost code",{"$f":"Remunerations!$B$6","v":0},{"$f":"Remunerations!$E$6","v":0},{"$f":"Remunerations!A40","v":0},{"$f":"Remunerations!B40","v":0},{"$f":"Remunerations!C40","v":0},{"$f":"Remunerations!D40","v":0},{"$f":"Remunerations!E40","v":0},{"$f":"Remunerations!F40","v":""}]
[null,null,null,null,null,null,null,"Sch","          Please enter your school's cost code",{"$f":"Terminations!$B$6","v":0},{"$f":"Terminations!B40","v":0},{"$f":"Terminations!C40","v":0},{"$f":"Terminations!D40","v":0},{"$f":"Terminations!E40","v":0},{"$f":"Terminations!F40","v":0},{"$f":"Terminations!G40","v":0},{"$f":"Terminations!H40","v":0},{"$f":"Terminations!I40","v":0},{"$f":"Terminations!J40","v":0},{"$f":"Terminations!K40","v":0},{"$f":"Terminations!L40","v":0},{"$f":"Terminations!M40","v":0},{"$f":"Terminations!N40","v":0},null,null,null,"Sch","          Please enter your school's cost code",{"$f":"Remunerations!$B$6","v":0},{"$f":"Remunerations!$E$6","v":0},{"$f":"Remunerations!A41","v":0},{"$f":"Remunerations!B41","v":0},{"$f":"Remunerations!C41","v":0},{"$f":"Remunerations!D41","v":0},{"$f":"Remunerations!E41","v":0},{"$f":"Remunerations!F41","v":""}]
[null,null,null,null,null,null,null,"Sch","          Please enter your school's cost code",{"$f":"Terminations!$B$6","v":0},{"$f":"Terminations!B41","v":0},{"$f":"Terminations!C41","v":0},{"$f":"Terminations!D41","v":0},{"$f":"Terminations!E41","v":0},{"$f":"Terminations!F41","v":0},{"$f":"Terminations!G41","v":0},{"$f":"Terminations!H41","v":0},{"$f":"Terminations!I41","v":0},{"$f":"Terminations!J41","v":0},{"$f":"Terminations!K41","v":0},{"$f":"Terminations!L41","v":0},{"$f":"Terminations!M41","v":0},{"$f":"Terminations!N41","v":0},null,null,null,"Sch","          Please enter your school's cost code",{"$f":"Remunerations!$B$6","v":0},{"$f":"Remunerations!$E$6","v":0},{"$f":"Remunerations!A42","v":0},{"$f":"Remunerations!B42","v":0},{"$f":"Remunerations!C42","v":0},{"$f":"Remunerations!D42","v":0},{"$f":"Remunerations!E42","v":0},{"$f":"Remunerations!F42","v":""}]
[null,null,null,null,null,null,null,"Sch","          Please enter your school's cost code",{"$f":"Terminations!$B$6","v":0},{"$f":"Terminations!B42","v":0},{"$f":"Terminations!C42","v":0},{"$f":"Terminations!D42","v":0},{"$f":"Terminations!E42","v":0},{"$f":"Terminations!F42","v":0},{"$f":"Terminations!G42","v":0},{"$f":"Terminations!H42","v":0},{"$f":"Terminations!I42","v":0},{"$f":"Terminations!J42","v":0},{"$f":"Terminations!K42","v":0},{"$f":"Terminations!L42","v":0},{"$f":"Terminations!M42","v":0},{"$f":"Terminations!N42","v":0},null,null,null,"Sch","          Please enter your school's cost code",{"$f":"Remunerations!$B$6","v":0},{"$f":"Remunerations!$E$6","v":0},{"$f":"Remunerations!A43","v":0},{"$f":"Remunerations!B43","v":0},{"$f":"Remunerations!C43","v":0},{"$f":"Remunerations!D43","v":0},{"$f":"Remunerations!E43","v":0},{"$f":"Remunerations!F43","v":""}]
[null,null,null,null,null,null,null,"Sch","          Please enter your school's cost code",{"$f":"Terminations!$B$6","v":0},{"$f":"Terminations!B43","v":0},{"$f":"Terminations!C43","v":0},{"$f":"Terminations!D43","v":0},{"$f":"Terminations!E43","v":0},{"$f":"Terminations!F43","v":0},{"$f":"Terminations!G43","v":0},{"$f":"Terminations!H43","v":0},{"$f":"Terminations!I43","v":0},{"$f":"Terminations!J43","v":0},{"$f":"Terminations!K43","v":0},{"$f":"Terminations!L43","v":0},{"$f":"Terminations!M43","v":0},{"$f":"Terminations!N43","v":0},null,null,null,"Sch","          Please enter your school's cost code",{"$f":"Remunerations!$B$6","v":0},{"$f":"Remunerations!$E$6","v":0},{"$f":"Remunerations!A44","v":0},{"$f":"Remunerations!B44","v":0},{"$f":"Remunerations!C44","v":0},{"$f":"Remunerations!D44","v":0},{"$f":"Remunerations!E44","v":0},{"$f":"Remunerations!F44","v":""}]
[null,null,null,null,null,null,null,"Sch","          Please enter your school's cost code",{"$f":"Terminations!$B$6","v":0},{"$f":"Terminations!B44","v":0},{"$f":"Terminations!C44","v":0},{"$f":"Terminations!D44","v":0},{"$f":"Terminations!E44","v":0},{"$f":"Terminations!F44","v":0},{"$f":"Terminations!G44","v":0},{"$f":"Terminations!H44","v":0},{"$f":"Terminations!I44","v":0},{"$f":"Terminations!J44","v":0},{"$f":"Terminations!K44","v":0},{"$f":"Terminations!L44","v":0},{"$f":"Terminations!M44","v":0},{"$f":"Terminations!N44","v":0},null,null,null,"Sch","          Please enter your school's cost code",{"$f":"Remunerations!$B$6","v":0},{"$f":"Remunerations!$E$6","v":0},{"$f":"Remunerations!A45","v":0},{"$f":"Remunerations!B45","v":0},{"$f":"Remunerations!C45","v":0},{"$f":"Remunerations!D45","v":0},{"$f":"Remunerations!E45","v":0},{"$f":"Remunerations!F45","v":""}]
[null,null,null,null,null,null,null,"Sch","          Please enter your school's cost code",{"$f":"Terminations!$B$6","v":0},{"$f":"Terminations!B45","v":0},{"$f":"Terminations!C45","v":0},{"$f":"Terminations!D45","v":0},{"$f":"Terminations!E45","v":0},{"$f":"Terminations!F45","v":0},{"$f":"Terminations!G45","v":0},{"$f":"Terminations!H45","v":0},{"$f":"Terminations!I45","v":0},{"$f":"Terminations!J45","v":0},{"$f":"Terminations!K45","v":0},{"$f":"Terminations!L45","v":0},{"$f":"Terminations!M45","v":0},{"$f":"Terminations!N45","v":0},null,null,null,"Sch","          Please enter your school's cost code",{"$f":"Remunerations!$B$6","v":0},{"$f":"Remunerations!$E$6","v":0},{"$f":"Remunerations!A46","v":0},{"$f":"Remunerations!B46","v":0},{"$f":"Remunerations!C46","v":0},{"$f":"Remunerations!D46","v":0},{"$f":"Remunerations!E46","v":0},{"$f":"Remunerations!F46","v":""}]
[null,null,null,null,null,null,null,"Sch","          Please enter your school's cost code",{"$f":"Terminations!$B$6","v":0},{"$f":"Terminations!B46","v":0},{"$f":"Terminations!C46","v":0},{"$f":"Terminations!D46","v":0},{"$f":"Terminations!E46","v":0},{"$f":"Terminations!F46","v":0},{"$f":"Terminations!G46","v":0},{"$f":"Terminations!H46","v":0},{"$f":"Terminations!I46","v":0},{"$f":"Terminations!J46","v":0},{"$f":"Terminations!K46","v":0},{"$f":"Terminations!L46","v":0},{"$f":"Terminations!M46","v":0},{"$f":"Terminations!N46","v":0},null,null,null,"Sch","          Please enter your school's cost code",{"$f":"Remunerations!$B$6","v":0},{"$f":"Remunerations!$E$6","v":0},{"$f":"Remunerations!A47","v":0},{"$f":"Remunerations!B47","v":0},{"$f":"Remunerations!C47","v":0},{"$f":"Remunerations!D47","v":0},{"$f":"Remunerations!E47","v":0},{"$f":"Remunerations!F47","v":""}]
[null,null,null,null,null,null,null,"Sch","          Please enter your school's cost code",{"$f":"Terminations!$B$6","v":0},{"$f":"Terminations!B47","v":0},{"$f":"Terminations!C47","v":0},{"$f":"Terminations!D47","v":0},{"$f":"Terminations!E47","v":0},{"$f":"Terminations!F47","v":0},{"$f":"Terminations!G47","v":0},{"$f":"Terminations!H47","v":0},{"$f":"Terminations!I47","v":0},{"$f":"Terminations!J47","v":0},{"$f":"Terminations!K47","v":0},{"$f":"Terminations!L47","v":0},{"$f":"Terminations!M47","v":0},{"$f":"Terminations!N47","v":0},null,null,null,"Sch","          Please enter your school's cost code",{"$f":"Remunerations!$B$6","v":0},{"$f":"Remunerations!$E$6","v":0},{"$f":"Remunerations!A48","v":0},{"$f":"Remunerations!B48","v":0},{"$f":"Remunerations!C48","v":0},{"$f":"Remunerations!D48","v":0},{"$f":"Remunerations!E48","v":0},{"$f":"Remunerations!F48","v":""}]
[null,null,null,null,null,null,null,"Sch","          Please enter your school's cost code",{"$f":"Terminations!$B$6","v":0},{"$f":"Terminations!B48","v":0},{"$f":"Terminations!C48","v":0},{"$f":"Terminations!D48","v":0},{"$f":"Terminations!E48","v":0},{"$f":"Terminations!F48","v":0},{"$f":"Terminations!G48","v":0},{"$f":"Terminations!H48","v":0},{"$f":"Terminations!I48","v":0},{"$f":"Terminations!J48","v":0},{"$f":"Terminations!K48","v":0},{"$f":"Terminations!L48","v":0},{"$f":"Terminations!M48","v":0},{"$f":"Terminations!N48","v":0},null,null,null,"Sch","          Please enter your school's cost code",{"$f":"Remunerations!$B$6","v":0},{"$f":"Remunerations!$E$6","v":0},{"$f":"Remunerations!A49","v":0},{"$f":"Remunerations!B49","v":0},{"$f":"Remunerations!C49","v":0},{"$f":"Remunerations!D49","v":0},{"$f":"Remunerations!E49","v":0},{"$f":"Remunerations!F49","v":""}]
[null,null,null,null,null,null,null,"Sch","          Please enter your school's cost code",{"$f":"Terminations!$B$6","v":0},{"$f":"Terminations!B49","v":0},{"$f":"Terminations!C49","v":0},{"$f":"Terminations!D49","v":0},{"$f":"Terminations!E49","v":0},{"$f":"Terminations!F49","v":0},{"$f":"Terminations!G49","v":0},{"$f":"Terminations!H49","v":0},{"$f":"Terminations!I49","v":0},{"$f":"Terminations!J49","v":0},{"$f":"Terminations!K49","v":0},{"$f":"Terminations!L49","v":0},{"$f":"Terminations!M49","v":0},{"$f":"Terminations!N49","v":0},null,null,null,"Sch","          Please enter your school's cost code",{"$f":"Remunerations!$B$6","v":0},{"$f":"Remunerations!$E$6","v":0},{"$f":"Remunerations!A50","v":0},{"$f":"Remunerations!B50","v":0},{"$f":"Remunerations!C50","v":0},{"$f":"Remunerations!D50","v":0},{"$f":"Remunerations!E50","v":0},{"$f":"Remunerations!F50","v":""}]
[null,null,null,null,null,null,null,"Sch","          Please enter your school's cost code",{"$f":"Terminations!$B$6","v":0},{"$f":"Terminations!B50","v":0},{"$f":"Terminations!C50","v":0},{"$f":"Terminations!D50","v":0},{"$f":"Terminations!E50","v":0},{"$f":"Terminations!F50","v":0},{"$f":"Terminations!G50","v":0},{"$f":"Terminations!H50","v":0},{"$f":"Terminations!I50","v":0},{"$f":"Terminations!J50","v":0},{"$f":"Terminations!K50","v":0},{"$f":"Terminations!L50","v":0},{"$f":"Terminations!M50","v":0},{"$f":"Terminations!N50","v":0},null,null,null,"Sch","          Please enter your school's cost code",{"$f":"Remunerations!$B$6","v":0},{"$f":"Remunerations!$E$6","v":0},{"$f":"Remunerations!A51","v":0},{"$f":"Remunerations!B51","v":0},{"$f":"Remunerations!C51","v":0},{"$f":"Remunerations!D51","v":0},{"$f":"Remunerations!E51","v":0},{"$f":"Remunerations!F51","v":""}]
[null,null,null,null,null,null,null,"Sch","          Please enter your school's cost code",{"$f":"Terminations!$B$6","v":0},{"$f":"Terminations!B51","v":0},{"$f":"Terminations!C51","v":0},{"$f":"Terminations!D51","v":0},{"$f":"Terminations!E51","v":0},{"$f":"Terminations!F51","v":0},{"$f":"Terminations!G51","v":0},{"$f":"Terminations!H51","v":0},{"$f":"Terminations!I51","v":0},{"$f":"Terminations!J51","v":0},{"$f":"Terminations!K51","v":0},{"$f":"Terminations!L51","v":0},{"$f":"Terminations!M51","v":0},{"$f":"Terminations!N51","v":0},null,null,null,"Sch","          Please enter your school's cost code",{"$f":"Remunerations!$B$6","v":0},{"$f":"Remunerations!$E$6","v":0},{"$f":"Remunerations!A52","v":0},{"$f":"Remunerations!B52","v":0},{"$f":"Remunerations!C52","v":0},{"$f":"Remunerations!D52","v":0},{"$f":"Remunerations!E52","v":0},{"$f":"Remunerations!F52","v":""}]
[null,null,null,null,null,null,null,"Sch","          Please enter your school's cost code",{"$f":"Terminations!$B$6","v":0},{"$f":"Terminations!B52","v":0},{"$f":"Terminations!C52","v":0},{"$f":"Terminations!D52","v":0},{"$f":"Terminations!E52","v":0},{"$f":"Terminations!F52","v":0},{"$f":"Terminations!G52","v":0},{"$f":"Terminations!H52","v":0},{"$f":"Terminations!I52","v":0},{"$f":"Terminations!J52","v":0},{"$f":"Terminations!K52","v":0},{"$f":"Terminations!L52","v":0},{"$f":"Terminations!M52","v":0},{"$f":"Terminations!N52","v":0},null,null,null,"Sch","          Please enter your school's cost code",{"$f":"Remunerations!$B$6","v":0},{"$f":"Remunerations!$E$6","v":0},{"$f":"Remunerations!A53","v":0},{"$f":"Remunerations!B53","v":0},{"$f":"Remunerations!C53","v":0},{"$f":"Remunerations!D53","v":0},{"$f":"Remunerations!E53","v":0},{"$f":"Remunerations!F53","v":""}]
[null,null,null,null,null,null,null,"Sch","          Please enter your school's cost code",{"$f":"Terminations!$B$6","v":0},{"$f":"Terminations!B53","v":0},{"$f":"Terminations!C53","v":0},{"$f":"Terminations!D53","v":0},{"$f":"Terminations!E53","v":0},{"$f":"Terminations!F53","v":0},{"$f":"Terminations!G53","v":0},{"$f":"Terminations!H53","v":0},{"$f":"Terminations!I53","v":0},{"$f":"Terminations!J53","v":0},{"$f":"Terminations!K53","v":0},{"$f":"Terminations!L53","v":0},{"$f":"Terminations!M53","v":0},{"$f":"Terminations!N53","v":0},null,null,null,"Sch","          Please enter your school's cost code",{"$f":"Remunerations!$B$6","v":0},{"$f":"Remunerations!$E$6","v":0},{"$f":"Remunerations!A54","v":0},{"$f":"Remunerations!B54","v":0},{"$f":"Remunerations!C54","v":0},{"$f":"Remunerations!D54","v":0},{"$f":"Remunerations!E54","v":0},{"$f":"Remunerations!F54","v":""}]
[null,null,null,null,null,null,null,"Sch","          Please enter your school's cost code",{"$f":"Terminations!$B$6","v":0},{"$f":"Terminations!B54","v":0},{"$f":"Terminations!C54","v":0},{"$f":"Terminations!D54","v":0},{"$f":"Terminations!E54","v":0},{"$f":"Terminations!F54","v":0},{"$f":"Terminations!G54","v":0},{"$f":"Terminations!H54","v":0},{"$f":"Terminations!I54","v":0},{"$f":"Terminations!J54","v":0},{"$f":"Terminations!K54","v":0},{"$f":"Terminations!L54","v":0},{"$f":"Terminations!M54","v":0},{"$f":"Terminations!N54","v":0},null,null,null,"Sch","          Please enter your school's cost code",{"$f":"Remunerations!$B$6","v":0},{"$f":"Remunerations!$E$6","v":0},{"$f":"Remunerations!A55","v":0},{"$f":"Remunerations!B55","v":0},{"$f":"Remunerations!C55","v":0},{"$f":"Remunerations!D55","v":0},{"$f":"Remunerations!E55","v":0},{"$f":"Remunerations!F55","v":""}]
[null,null,null,null,null,null,null,"Sch","          Please enter your school's cost code",{"$f":"Terminations!$B$6","v":0},{"$f":"Terminations!B55","v":0},{"$f":"Terminations!C55","v":0},{"$f":"Terminations!D55","v":0},{"$f":"Terminations!E55","v":0},{"$f":"Terminations!F55","v":0},{"$f":"Terminations!G55","v":0},{"$f":"Terminations!H55","v":0},{"$f":"Terminations!I55","v":0},{"$f":"Terminations!J55","v":0},{"$f":"Terminations!K55","v":0},{"$f":"Terminations!L55","v":0},{"$f":"Terminations!M55","v":0},{"$f":"Terminations!N55","v":0},null,null,null,"Sch","          Please enter your school's cost code",{"$f":"Remunerations!$B$6","v":0},{"$f":"Remunerations!$E$6","v":0},{"$f":"Remunerations!A56","v":0},{"$f":"Remunerations!B56","v":0},{"$f":"Remunerations!C56","v":0},{"$f":"Remunerations!D56","v":0},{"$f":"Remunerations!E56","v":0},{"$f":"Remunerations!F56","v":""}]
[null,null,null,null,null,null,null,"Sch","          Please enter your school's cost code",{"$f":"Terminations!$B$6","v":0},{"$f":"Terminations!B56","v":0},{"$f":"Terminations!C56","v":0},{"$f":"Terminations!D56","v":0},{"$f":"Terminations!E56","v":0},{"$f":"Terminations!F56","v":0},{"$f":"Terminations!G56","v":0},{"$f":"Terminations!H56","v":0},{"$f":"Terminations!I56","v":0},{"$f":"Terminations!J56","v":0},{"$f":"Terminations!K56","v":0},{"$f":"Terminations!L56","v":0},{"$f":"Terminations!M56","v":0},{"$f":"Terminations!N56","v":0},null,null,null,"Sch","          Please enter your school's cost code",{"$f":"Remunerations!$B$6","v":0},{"$f":"Remunerations!$E$6","v":0},{"$f":"Remunerations!A57","v":0},{"$f":"Remunerations!B57","v":0},{"$f":"Remunerations!C57","v":0},{"$f":"Remunerations!D57","v":0},{"$f":"Remunerations!E57","v":0},{"$f":"Remunerations!F57","v":""}]
[null,null,null,null,null,null,null,"Sch","          Please enter your school's cost code",{"$f":"Terminations!$B$6","v":0},{"$f":"Terminations!B57","v":0},{"$f":"Terminations!C57","v":0},{"$f":"Terminations!D57","v":0},{"$f":"Terminations!E57","v":0},{"$f":"Terminations!F57","v":0},{"$f":"Terminations!G57","v":0},{"$f":"Terminations!H57","v":0},{"$f":"Terminations!I57","v":0},{"$f":"Terminations!J57","v":0},{"$f":"Terminations!K57","v":0},{"$f":"Terminations!L57","v":0},{"$f":"Terminations!M57","v":0},{"$f":"Terminations!N57","v":0},null,null,null,"Sch","          Please enter your school's cost code",{"$f":"Remunerations!$B$6","v":0},{"$f":"Remunerations!$E$6","v":0},{"$f":"Remunerations!A58","v":0},{"$f":"Remunerations!B58","v":0},{"$f":"Remunerations!C58","v":0},{"$f":"Remunerations!D58","v":0},{"$f":"Remunerations!E58","v":0},{"$f":"Remunerations!F58","v":""}]
[null,null,null,null,null,null,null,"Sch","          Please enter your school's cost code",{"$f":"Terminations!$B$6","v":0},{"$f":"Terminations!B58","v":0},{"$f":"Terminations!C58","v":0},{"$f":"Terminations!D58","v":0},{"$f":"Terminations!E58","v":0},{"$f":"Terminations!F58","v":0},{"$f":"Terminations!G58","v":0},{"$f":"Terminations!H58","v":0},{"$f":"Terminations!I58","v":0},{"$f":"Terminations!J58","v":0},{"$f":"Terminations!K58","v":0},{"$f":"Terminations!L58","v":0},{"$f":"Terminations!M58","v":0},{"$f":"Terminations!N58","v":0},null,null,null,"Sch","          Please enter your school's cost code",{"$f":"Remunerations!$B$6","v":0},{"$f":"Remunerations!$E$6","v":0},{"$f":"Remunerations!A59","v":0},{"$f":"Remunerations!B59","v":0},{"$f":"Remunerations!C59","v":0},{"$f":"Remunerations!D59","v":0},{"$f":"Remunerations!E59","v":0},{"$f":"Remunerations!F59","v":""}]
[null,null,null,null,null,null,null,"Sch","          Please enter your school's cost code",{"$f":"Terminations!$B$6","v":0},{"$f":"Terminations!B59","v":0},{"$f":"Terminations!C59","v":0},{"$f":"Terminations!D59","v":0},{"$f":"Terminations!E59","v":0},{"$f":"Terminations!F59","v":0},{"$f":"Terminations!G59","v":0},{"$f":"Terminations!H59","v":0},{"$f":"Terminations!I59","v":0},{"$f":"Terminations!J59","v":0},{"$f":"Terminations!K59","v":0},{"$f":"Terminations!L59","v":0},{"$f":"Terminations!M59","v":0},{"$f":"Terminations!N59","v":0},null,null,null,"Sch","          Please enter your school's cost code",{"$f":"Remunerations!$B$6","v":0},{"$f":"Remunerations!$E$6","v":0},{"$f":"Remunerations!A60","v":0},{"$f":"Remunerations!B60","v":0},{"$f":"Remunerations!C60","v":0},{"$f":"Remunerations!D60","v":0},{"$f":"Remunerations!E60","v":0},{"$f":"Remunerations!F60","v":""}]
[null,null,null,null,null,null,null,"Sch","          Please enter your school's cost code",{"$f":"Terminations!$B$6","v":0},{"$f":"Terminations!B60","v":0},{"$f":"Terminations!C60","v":0},{"$f":"Terminations!D60","v":0},{"$f":"Terminations!E60","v":0},{"$f":"Terminations!F60","v":0},{"$f":"Terminations!G60","v":0},{"$f":"Terminations!H60","v":0},{"$f":"Terminations!I60","v":0},{"$f":"Terminations!J60","v":0},{"$f":"Terminations!K60","v":0},{"$f":"Terminations!L60","v":0},{"$f":"Terminations!M60","v":0},{"$f":"Terminations!N60","v":0},null,null,null,"Sch","          Please enter your school's cost code",{"$f":"Remunerations!$B$6","v":0},{"$f":"Remunerations!$E$6","v":0},{"$f":"Remunerations!A61","v":0},{"$f":"Remunerations!B61","v":0},{"$f":"Remunerations!C61","v":0},{"$f":"Remunerations!D61","v":0},{"$f":"Remunerations!E61","v":0},{"$f":"Remunerations!F61","v":""}]
[null,null,null,null,null,null,null,"Sch","          Please enter your school's cost code",{"$f":"Terminations!$B$6","v":0},{"$f":"Terminations!B61","v":0},{"$f":"Terminations!C61","v":0},{"$f":"Terminations!D61","v":0},{"$f":"Terminations!E61","v":0},{"$f":"Terminations!F61","v":0},{"$f":"Terminations!G61","v":0},{"$f":"Terminations!H61","v":0},{"$f":"Terminations!I61","v":0},{"$f":"Terminations!J61","v":0},{"$f":"Terminations!K61","v":0},{"$f":"Terminations!L61","v":0},{"$f":"Terminations!M61","v":0},{"$f":"Terminations!N61","v":0},null,null,null,"Sch","          Please enter your school's cost code",{"$f":"Remunerations!$B$6","v":0},{"$f":"Remunerations!$E$6","v":0},{"$f":"Remunerations!A62","v":0},{"$f":"Remunerations!B62","v":0},{"$f":"Remunerations!C62","v":0},{"$f":"Remunerations!D62","v":0},{"$f":"Remunerations!E62","v":0},{"$f":"Remunerations!F62","v":""}]
[null,null,null,null,null,null,null,"Sch","          Please enter your school's cost code",{"$f":"Terminations!$B$6","v":0},{"$f":"Terminations!B62","v":0},{"$f":"Terminations!C62","v":0},{"$f":"Terminations!D62","v":0},{"$f":"Terminations!E62","v":0},{"$f":"Terminations!F62","v":0},{"$f":"Terminations!G62","v":0},{"$f":"Terminations!H62","v":0},{"$f":"Terminations!I62","v":0},{"$f":"Terminations!J62","v":0},{"$f":"Terminations!K62","v":0},{"$f":"Terminations!L62","v":0},{"$f":"Terminations!M62","v":0},{"$f":"Terminations!N62","v":0},null,null,null,"Sch","          Please enter your school's cost code",{"$f":"Remunerations!$B$6","v":0},{"$f":"Remunerations!$E$6","v":0},{"$f":"Remunerations!A63","v":0},{"$f":"Remunerations!B63","v":0},{"$f":"Remunerations!C63","v":0},{"$f":"Remunerations!D63","v":0},{"$f":"Remunerations!E63","v":0},{"$f":"Remunerations!F63","v":""}]
[null,null,null,null,null,null,null,"Sch","          Please enter your school's cost code",{"$f":"Terminations!$B$6","v":0},{"$f":"Terminations!B63","v":0},{"$f":"Terminations!C63","v":0},{"$f":"Terminations!D63","v":0},{"$f":"Terminations!E63","v":0},{"$f":"Terminations!F63","v":0},{"$f":"Terminations!G63","v":0},{"$f":"Terminations!H63","v":0},{"$f":"Terminations!I63","v":0},{"$f":"Terminations!J63","v":0},{"$f":"Terminations!K63","v":0},{"$f":"Terminations!L63","v":0},{"$f":"Terminations!M63","v":0},{"$f":"Terminations!N63","v":0},null,null,null,"Sch","          Please enter your school's cost code",{"$f":"Remunerations!$B$6","v":0},{"$f":"Remunerations!$E$6","v":0},{"$f":"Remunerations!A64","v":0},{"$f":"Remunerations!B64","v":0},{"$f":"Remunerations!C64","v":0},{"$f":"Remunerations!D64","v":0},{"$f":"Remunerations!E64","v":0},{"$f":"Remunerations!F64","v":""}]
[null,null,null,null,null,null,null,"Sch","          Please enter your school's cost code",{"$f":"Terminations!$B$6","v":0},{"$f":"Terminations!B64","v":0},{"$f":"Terminations!C64","v":0},{"$f":"Terminations!D64","v":0},{"$f":"Terminations!E64","v":0},{"$f":"Terminations!F64","v":0},{"$f":"Terminations!G64","v":0},{"$f":"Terminations!H64","v":0},{"$f":"Terminations!I64","v":0},{"$f":"Terminations!J64","v":0},{"$f":"Terminations!K64","v":0},{"$f":"Terminations!L64","v":0},{"$f":"Terminations!M64","v":0},{"$f":"Terminations!N64","v":0},null,null,null,"Sch","          Please enter your school's cost code",{"$f":"Remunerations!$B$6","v":0},{"$f":"Remunerations!$E$6","v":0},{"$f":"Remunerations!A65","v":0},{"$f":"Remunerations!B65","v":0},{"$f":"Remunerations!C65","v":0},{"$f":"Remunerations!D65","v":0},{"$f":"Remunerations!E65","v":0},{"$f":"Remunerations!F65","v":""}]
[null,null,null,null,null,null,null,"Sch","          Please enter your school's cost code",{"$f":"Terminations!$B$6","v":0},{"$f":"Terminations!B65","v":0},{"$f":"Terminations!C65","v":0},{"$f":"Terminations!D65","v":0},{"$f":"Terminations!E65","v":0},{"$f":"Terminations!F65","v":0},{"$f":"Terminations!G65","v":0},{"$f":"Terminations!H65","v":0},{"$f":"Terminations!I65","v":0},{"$f":"Terminations!J65","v":0},{"$f":"Terminations!K65","v":0},{"$f":"Terminations!L65","v":0},{"$f":"Terminations!M65","v":0},{"$f":"Terminations!N65","v":0},null,null,null,"Sch","          Please enter your school's cost code",{"$f":"Remunerations!$B$6","v":0},{"$f":"Remunerations!$E$6","v":0},{"$f":"Remunerations!A66","v":0},{"$f":"Remunerations!B66","v":0},{"$f":"Remunerations!C66","v":0},{"$f":"Remunerations!D66","v":0},{"$f":"Remunerations!E66","v":0},{"$f":"Remunerations!F66","v":""}]
[null,null,null,null,null,null,null,"Sch","          Please enter your school's cost code",{"$f":"Terminations!$B$6","v":0},{"$f":"Terminations!B66","v":0},{"$f":"Terminations!C66","v":0},{"$f":"Terminations!D66","v":0},{"$f":"Terminations!E66","v":0},{"$f":"Terminations!F66","v":0},{"$f":"Terminations!G66","v":0},{"$f":"Terminations!H66","v":0},{"$f":"Terminations!I66","v":0},{"$f":"Terminations!J66","v":0},{"$f":"Terminations!K66","v":0},{"$f":"Terminations!L66","v":0},{"$f":"Terminations!M66","v":0},{"$f":"Terminations!N66","v":0},null,null,null,"Sch","          Please enter your school's cost code",{"$f":"Remunerations!$B$6","v":0},{"$f":"Remunerations!$E$6","v":0},{"$f":"Remunerations!A67","v":0},{"$f":"Remunerations!B67","v":0},{"$f":"Remunerations!C67","v":0},{"$f":"Remunerations!D67","v":0},{"$f":"Remunerations!E67","v":0},{"$f":"Remunerations!F67","v":""}]
[null,null,null,null,null,null,null,"Sch","          Please enter your school's cost code",{"$f":"Terminations!$B$6","v":0},{"$f":"Terminations!B67","v":0},{"$f":"Terminations!C67","v":0},{"$f":"Terminations!D67","v":0},{"$f":"Terminations!E67","v":0},{"$f":"Terminations!F67","v":0},{"$f":"Terminations!G67","v":0},{"$f":"Terminations!H67","v":0},{"$f":"Terminations!I67","v":0},{"$f":"Terminations!J67","v":0},{"$f":"Terminations!K67","v":0},{"$f":"Terminations!L67","v":0},{"$f":"Terminations!M67","v":0},{"$f":"Terminations!N67","v":0},null,null,null,"Sch","          Please enter your school's cost code",{"$f":"Remunerations!$B$6","v":0},{"$f":"Remunerations!$E$6","v":0},{"$f":"Remunerations!A68","v":0},{"$f":"Remunerations!B68","v":0},{"$f":"Remunerations!C68","v":0},{"$f":"Remunerations!D68","v":0},{"$f":"Remunerations!E68","v":0},{"$f":"Remunerations!F68","v":""}]
[null,null,null,null,null,null,null,"Sch","          Please enter your school's cost code",{"$f":"Terminations!$B$6","v":0},{"$f":"Terminations!B68","v":0},{"$f":"Terminations!C68","v":0},{"$f":"Terminations!D68","v":0},{"$f":"Terminations!E68","v":0},{"$f":"Terminations!F68","v":0},{"$f":"Terminations!G68","v":0},{"$f":"Terminations!H68","v":0},{"$f":"Terminations!I68","v":0},{"$f":"Terminations!J68","v":0},{"$f":"Terminations!K68","v":0},{"$f":"Terminations!L68","v":0},{"$f":"Terminations!M68","v":0},{"$f":"Terminations!N68","v":0},null,null,null,"Sch","          Please enter your school's cost code",{"$f":"Remunerations!$B$6","v":0},{"$f":"Remunerations!$E$6","v":0},{"$f":"Remunerations!A69","v":0},{"$f":"Remunerations!B69","v":0},{"$f":"Remunerations!C69","v":0},{"$f":"Remunerations!D69","v":0},{"$f":"Remunerations!E69","v":0},{"$f":"Remunerations!F69","v":""}]
[null,null,null,null,null,null,null,"Sch","          Please enter your school's cost code",{"$f":"Terminations!$B$6","v":0},{"$f":"Terminations!B69","v":0},{"$f":"Terminations!C69","v":0},{"$f":"Terminations!D69","v":0},{"$f":"Terminations!E69","v":0},{"$f":"Terminations!F69","v":0},{"$f":"Terminations!G69","v":0},{"$f":"Terminations!H69","v":0},{"$f":"Terminations!I69","v":0},{"$f":"Terminations!J69","v":0},{"$f":"Terminations!K69","v":0},{"$f":"Terminations!L69","v":0},{"$f":"Terminations!M69","v":0},{"$f":"Terminations!N69","v":0},null,null,null,"Sch","          Please enter your school's cost code",{"$f":"Remunerations!$B$6","v":0},{"$f":"Remunerations!$E$6","v":0},{"$f":"Remunerations!A70","v":0},{"$f":"Remunerations!B70","v":0},{"$f":"Remunerations!C70","v":0},{"$f":"Remunerations!D70","v":0},{"$f":"Remunerations!E70","v":0},{"$f":"Remunerations!F70","v":""}]
[null,null,null,null,null,null,null,"Sch","          Please enter your school's cost code",{"$f":"Terminations!$B$6","v":0},{"$f":"Terminations!B70","v":0},{"$f":"Terminations!C70","v":0},{"$f":"Terminations!D70","v":0},{"$f":"Terminations!E70","v":0},{"$f":"Terminations!F70","v":0},{"$f":"Terminations!G70","v":0},{"$f":"Terminations!H70","v":0},{"$f":"Terminations!I70","v":0},{"$f":"Terminations!J70","v":0},{"$f":"Terminations!K70","v":0},{"$f":"Terminations!L70","v":0},{"$f":"Terminations!M70","v":0},{"$f":"Terminations!N70","v":0},null,null,null,"Sch","          Please enter your school's cost code",{"$f":"Remunerations!$B$6","v":0},{"$f":"Remunerations!$E$6","v":0},{"$f":"Remunerations!A71","v":0},{"$f":"Remunerations!B71","v":0},{"$f":"Remunerations!C71","v":0},{"$f":"Remunerations!D71","v":0},{"$f":"Remunerations!E71","v":0},{"$f":"Remunerations!F71","v":""}]
[null,null,null,null,null,null,null,"Sch","          Please enter your school's cost code",{"$f":"Terminations!$B$6","v":0},{"$f":"Terminations!B71","v":0},{"$f":"Terminations!C71","v":0},{"$f":"Terminations!D71","v":0},{"$f":"Terminations!E71","v":0},{"$f":"Terminations!F71","v":0},{"$f":"Terminations!G71","v":0},{"$f":"Terminations!H71","v":0},{"$f":"Terminations!I71","v":0},{"$f":"Terminations!J71","v":0},{"$f":"Terminations!K71","v":0},{"$f":"Terminations!L71","v":0},{"$f":"Terminations!M71","v":0},{"$f":"Terminations!N71","v":0},null,null,null,"Sch","          Please enter your school's cost code",{"$f":"Remunerations!$B$6","v":0},{"$f":"Remunerations!$E$6","v":0},{"$f":"Remunerations!A72","v":0},{"$f":"Remunerations!B72","v":0},{"$f":"Remunerations!C72","v":0},{"$f":"Remunerations!D72","v":0},{"$f":"Remunerations!E72","v":0},{"$f":"Remunerations!F72","v":""}]
[null,null,null,null,null,null,null,"Sch","          Please enter your school's cost code",{"$f":"Terminations!$B$6","v":0},{"$f":"Terminations!B72","v":0},{"$f":"Terminations!C72","v":0},{"$f":"Terminations!D72","v":0},{"$f":"Terminations!E72","v":0},{"$f":"Terminations!F72","v":0},{"$f":"Terminations!G72","v":0},{"$f":"Terminations!H72","v":0},{"$f":"Terminations!I72","v":0},{"$f":"Terminations!J72","v":0},{"$f":"Terminations!K72","v":0},{"$f":"Terminations!L72","v":0},{"$f":"Terminations!M72","v":0},{"$f":"Terminations!N72","v":0},null,null,null,"Sch","          Please enter your school's cost code",{"$f":"Remunerations!$B$6","v":0},{"$f":"Remunerations!$E$6","v":0},{"$f":"Remunerations!A73","v":0},{"$f":"Remunerations!B73","v":0},{"$f":"Remunerations!C73","v":0},{"$f":"Remunerations!D73","v":0},{"$f":"Remunerations!E73","v":0},{"$f":"Remunerations!F73","v":""}]
[null,null,null,null,null,null,null,"Sch","          Please enter your school's cost code",{"$f":"Terminations!$B$6","v":0},{"$f":"Terminations!B73","v":0},{"$f":"Terminations!C73","v":0},{"$f":"Terminations!D73","v":0},{"$f":"Terminations!E73","v":0},{"$f":"Terminations!F73","v":0},{"$f":"Terminations!G73","v":0},{"$f":"Terminations!H73","v":0},{"$f":"Terminations!I73","v":0},{"$f":"Terminations!J73","v":0},{"$f":"Terminations!K73","v":0},{"$f":"Terminations!L73","v":0},{"$f":"Terminations!M73","v":0},{"$f":"Terminations!N73","v":0},null,null,null,"Sch","          Please enter your school's cost code",{"$f":"Remunerations!$B$6","v":0},{"$f":"Remunerations!$E$6","v":0},{"$f":"Remunerations!A74","v":0},{"$f":"Remunerations!B74","v":0},{"$f":"Remunerations!C74","v":0},{"$f":"Remunerations!D74","v":0},{"$f":"Remunerations!E74","v":0},{"$f":"Remunerations!F74","v":""}]
[null,null,null,null,null,null,null,"Sch","          Please enter your school's cost code",{"$f":"Terminations!$B$6","v":0},{"$f":"Terminations!B74","v":0},{"$f":"Terminations!C74","v":0},{"$f":"Terminations!D74","v":0},{"$f":"Terminations!E74","v":0},{"$f":"Terminations!F74","v":0},{"$f":"Terminations!G74","v":0},{"$f":"Terminations!H74","v":0},{"$f":"Terminations!I74","v":0},{"$f":"Terminations!J74","v":0},{"$f":"Terminations!K74","v":0},{"$f":"Terminations!L74","v":0},{"$f":"Terminations!M74","v":0},{"$f":"Terminations!N74","v":0},null,null,null,"Sch","          Please enter your school's cost code",{"$f":"Remunerations!$B$6","v":0},{"$f":"Remunerations!$E$6","v":0},{"$f":"Remunerations!A75","v":0},{"$f":"Remunerations!B75","v":0},{"$f":"Remunerations!C75","v":0},{"$f":"Remunerations!D75","v":0},{"$f":"Remunerations!E75","v":0},{"$f":"Remunerations!F75","v":""}]
[null,null,null,null,null,null,null,"Sch","          Please enter your school's cost code",{"$f":"Terminations!$B$6","v":0},{"$f":"Terminations!B75","v":0},{"$f":"Terminations!C75","v":0},{"$f":"Terminations!D75","v":0},{"$f":"Terminations!E75","v":0},{"$f":"Terminations!F75","v":0},{"$f":"Terminations!G75","v":0},{"$f":"Terminations!H75","v":0},{"$f":"Terminations!I75","v":0},{"$f":"Terminations!J75","v":0},{"$f":"Terminations!K75","v":0},{"$f":"Terminations!L75","v":0},{"$f":"Terminations!M75","v":0},{"$f":"Terminations!N75","v":0},null,null,null,"Sch","          Please enter your school's cost code",{"$f":"Remunerations!$B$6","v":0},{"$f":"Remunerations!$E$6","v":0},{"$f":"Remunerations!A76","v":0},{"$f":"Remunerations!B76","v":0},{"$f":"Remunerations!C76","v":0},{"$f":"Remunerations!D76","v":0},{"$f":"Remunerations!E76","v":0},{"$f":"Remunerations!F76","v":""}]
[null,null,null,null,null,null,null,{"$f":"$I$11","v":"Sch"},{"$f":"$I$12","v":"          Please enter your school's cost code"},{"$f":"Terminations!$B$6","v":0},{"$f":"Terminations!B76","v":0},{"$f":"Terminations!C76","v":0},{"$f":"Terminations!D76","v":0},{"$f":"Terminations!E76","v":0},{"$f":"Terminations!F76","v":0},{"$f":"Terminations!G76","v":0},{"$f":"Terminations!H76","v":0},{"$f":"Terminations!I76","v":0},{"$f":"Terminations!J76","v":0},{"$f":"Terminations!K76","v":0},{"$f":"Terminations!L76","v":0},{"$f":"Terminations!M76","v":0},{"$f":"Terminations!N76","v":0},null,null,null,{"$f":"$I$11","v":"Sch"},{"$f":"$I$12","v":"          Please enter your school's cost code"},{"$f":"Remunerations!$B$6","v":0},{"$f":"Remunerations!$E$6","v":0},{"$f":"Remunerations!A77","v":0},{"$f":"Remunerations!B77","v":0},{"$f":"Remunerations!C77","v":0},{"$f":"Remunerations!D77","v":0},{"$f":"Remunerations!E77","v":0},{"$f":"Remunerations!F77","v":""}]
[null,null,null,null,null,null,null,"Sch","          Please enter your school's cost code",{"$f":"Terminations!$B$6","v":0},{"$f":"Terminations!B77","v":0},{"$f":"Terminations!C77","v":0},{"$f":"Terminations!D77","v":0},{"$f":"Terminations!E77","v":0},{"$f":"Terminations!F77","v":0},{"$f":"Terminations!G77","v":0},{"$f":"Terminations!H77","v":0},{"$f":"Terminations!I77","v":0},{"$f":"Terminations!J77","v":0},{"$f":"Terminations!K77","v":0},{"$f":"Terminations!L77","v":0},{"$f":"Terminations!M77","v":0},{"$f":"Terminations!N77","v":0},null,null,null,"Sch","          Please enter your school's cost code",{"$f":"Remunerations!$B$6","v":0},{"$f":"Remunerations!$E$6","v":0},{"$f":"Remunerations!A78","v":0},{"$f":"Remunerations!B78","v":0},{"$f":"Remunerations!C78","v":0},{"$f":"Remunerations!D78","v":0},{"$f":"Remunerations!E78","v":0},{"$f":"Remunerations!F78","v":""}]
[null,null,null,null,null,null,null,"Sch","          Please enter your school's cost code",{"$f":"Terminations!$B$6","v":0},{"$f":"Terminations!B78","v":0},{"$f":"Terminations!C78","v":0},{"$f":"Terminations!D78","v":0},{"$f":"Terminations!E78","v":0},{"$f":"Terminations!F78","v":0},{"$f":"Terminations!G78","v":0},{"$f":"Terminations!H78","v":0},{"$f":"Terminations!I78","v":0},{"$f":"Terminations!J78","v":0},{"$f":"Terminations!K78","v":0},{"$f":"Terminations!L78","v":0},{"$f":"Terminations!M78","v":0},{"$f":"Terminations!N78","v":0},null,null,null,"Sch","          Please enter your school's cost code",{"$f":"Remunerations!$B$6","v":0},{"$f":"Remunerations!$E$6","v":0},{"$f":"Remunerations!A79","v":0},{"$f":"Remunerations!B79","v":0},{"$f":"Remunerations!C79","v":0},{"$f":"Remunerations!D79","v":0},{"$f":"Remunerations!E79","v":0},{"$f":"Remunerations!F79","v":""}]
[null,null,null,null,null,null,null,"Sch","          Please enter your school's cost code",{"$f":"Terminations!$B$6","v":0},{"$f":"Terminations!B79","v":0},{"$f":"Terminations!C79","v":0},{"$f":"Terminations!D79","v":0},{"$f":"Terminations!E79","v":0},{"$f":"Terminations!F79","v":0},{"$f":"Terminations!G79","v":0},{"$f":"Terminations!H79","v":0},{"$f":"Terminations!I79","v":0},{"$f":"Terminations!J79","v":0},{"$f":"Terminations!K79","v":0},{"$f":"Terminations!L79","v":0},{"$f":"Terminations!M79","v":0},{"$f":"Terminations!N79","v":0},null,null,null,"Sch","          Please enter your school's cost code",{"$f":"Remunerations!$B$6","v":0},{"$f":"Remunerations!$E$6","v":0},{"$f":"Remunerations!A80","v":0},{"$f":"Remunerations!B80","v":0},{"$f":"Remunerations!C80","v":0},{"$f":"Remunerations!D80","v":0},{"$f":"Remunerations!E80","v":0},{"$f":"Remunerations!F80","v":""}]
[null,null,null,null,null,null,null,"Sch","          Please enter your school's cost code",{"$f":"Terminations!$B$6","v":0},{"$f":"Terminations!B80","v":0},{"$f":"Terminations!C80","v":0},{"$f":"Terminations!D80","v":0},{"$f":"Terminations!E80","v":0},{"$f":"Terminations!F80","v":0},{"$f":"Terminations!G80","v":0},{"$f":"Terminations!H80","v":0},{"$f":"Terminations!I80","v":0},{"$f":"Terminations!J80","v":0},{"$f":"Terminations!K80","v":0},{"$f":"Terminations!L80","v":0},{"$f":"Terminations!M80","v":0},{"$f":"Terminations!N80","v":0},null,null,null,"Sch","          Please enter your school's cost code",{"$f":"Remunerations!$B$6","v":0},{"$f":"Remunerations!$E$6","v":0},{"$f":"Remunerations!A81","v":0},{"$f":"Remunerations!B81","v":0},{"$f":"Remunerations!C81","v":0},{"$f":"Remunerations!D81","v":0},{"$f":"Remunerations!E81","v":0},{"$f":"Remunerations!F81","v":""}]
[null,null,null,null,null,null,null,"Sch","          Please enter your school's cost code",{"$f":"Terminations!$B$6","v":0},{"$f":"Terminations!B81","v":0},{"$f":"Terminations!C81","v":0},{"$f":"Terminations!D81","v":0},{"$f":"Terminations!E81","v":0},{"$f":"Terminations!F81","v":0},{"$f":"Terminations!G81","v":0},{"$f":"Terminations!H81","v":0},{"$f":"Terminations!I81","v":0},{"$f":"Terminations!J81","v":0},{"$f":"Terminations!K81","v":0},{"$f":"Terminations!L81","v":0},{"$f":"Terminations!M81","v":0},{"$f":"Terminations!N81","v":0},null,null,null,"Sch","          Please enter your school's cost code",{"$f":"Remunerations!$B$6","v":0},{"$f":"Remunerations!$E$6","v":0},{"$f":"Remunerations!A82","v":0},{"$f":"Remunerations!B82","v":0},{"$f":"Remunerations!C82","v":0},{"$f":"Remunerations!D82","v":0},{"$f":"Remunerations!E82","v":0},{"$f":"Remunerations!F82","v":""}]
[null,null,null,null,null,null,null,"Sch","          Please enter your school's cost code",{"$f":"Terminations!$B$6","v":0},{"$f":"Terminations!B82","v":0},{"$f":"Terminations!C82","v":0},{"$f":"Terminations!D82","v":0},{"$f":"Terminations!E82","v":0},{"$f":"Terminations!F82","v":0},{"$f":"Terminations!G82","v":0},{"$f":"Terminations!H82","v":0},{"$f":"Terminations!I82","v":0},{"$f":"Terminations!J82","v":0},{"$f":"Terminations!K82","v":0},{"$f":"Terminations!L82","v":0},{"$f":"Terminations!M82","v":0},{"$f":"Terminations!N82","v":0},null,null,null,"Sch","          Please enter your school's cost code",{"$f":"Remunerations!$B$6","v":0},{"$f":"Remunerations!$E$6","v":0},{"$f":"Remunerations!A83","v":0},{"$f":"Remunerations!B83","v":0},{"$f":"Remunerations!C83","v":0},{"$f":"Remunerations!D83","v":0},{"$f":"Remunerations!E83","v":0},{"$f":"Remunerations!F83","v":""}]
[null,null,null,null,null,null,null,"Sch","          Please enter your school's cost code",{"$f":"Terminations!$B$6","v":0},{"$f":"Terminations!B83","v":0},{"$f":"Terminations!C83","v":0},{"$f":"Terminations!D83","v":0},{"$f":"Terminations!E83","v":0},{"$f":"Terminations!F83","v":0},{"$f":"Terminations!G83","v":0},{"$f":"Terminations!H83","v":0},{"$f":"Terminations!I83","v":0},{"$f":"Terminations!J83","v":0},{"$f":"Terminations!K83","v":0},{"$f":"Terminations!L83","v":0},{"$f":"Terminations!M83","v":0},{"$f":"Terminations!N83","v":0},null,null,null,"Sch","          Please enter your school's cost code",{"$f":"Remunerations!$B$6","v":0},{"$f":"Remunerations!$E$6","v":0},{"$f":"Remunerations!A84","v":0},{"$f":"Remunerations!B84","v":0},{"$f":"Remunerations!C84","v":0},{"$f":"Remunerations!D84","v":0},{"$f":"Remunerations!E84","v":0},{"$f":"Remunerations!F84","v":""}]
[null,null,null,null,null,null,null,"Sch","          Please enter your school's cost code",{"$f":"Terminations!$B$6","v":0},{"$f":"Terminations!B84","v":0},{"$f":"Terminations!C84","v":0},{"$f":"Terminations!D84","v":0},{"$f":"Terminations!E84","v":0},{"$f":"Terminations!F84","v":0},{"$f":"Terminations!G84","v":0},{"$f":"Terminations!H84","v":0},{"$f":"Terminations!I84","v":0},{"$f":"Terminations!J84","v":0},{"$f":"Terminations!K84","v":0},{"$f":"Terminations!L84","v":0},{"$f":"Terminations!M84","v":0},{"$f":"Terminations!N84","v":0},null,null,null,"Sch","          Please enter your school's cost code",{"$f":"Remunerations!$B$6","v":0},{"$f":"Remunerations!$E$6","v":0},{"$f":"Remunerations!A85","v":0},{"$f":"Remunerations!B85","v":0},{"$f":"Remunerations!C85","v":0},{"$f":"Remunerations!D85","v":0},{"$f":"Remunerations!E85","v":0},{"$f":"Remunerations!F85","v":""}]
[null,null,null,null,null,null,null,"Sch","          Please enter your school's cost code",{"$f":"Terminations!$B$6","v":0},{"$f":"Terminations!B85","v":0},{"$f":"Terminations!C85","v":0},{"$f":"Terminations!D85","v":0},{"$f":"Terminations!E85","v":0},{"$f":"Terminations!F85","v":0},{"$f":"Terminations!G85","v":0},{"$f":"Terminations!H85","v":0},{"$f":"Terminations!I85","v":0},{"$f":"Terminations!J85","v":0},{"$f":"Terminations!K85","v":0},{"$f":"Terminations!L85","v":0},{"$f":"Terminations!M85","v":0},{"$f":"Terminations!N85","v":0},null,null,null,"Sch","          Please enter your school's cost code",{"$f":"Remunerations!$B$6","v":0},{"$f":"Remunerations!$E$6","v":0},{"$f":"Remunerations!A86","v":0},{"$f":"Remunerations!B86","v":0},{"$f":"Remunerations!C86","v":0},{"$f":"Remunerations!D86","v":0},{"$f":"Remunerations!E86","v":0},{"$f":"Remunerations!F86","v":""}]
[null,null,null,null,null,null,null,"Sch","          Please enter your school's cost code",{"$f":"Terminations!$B$6","v":0},{"$f":"Terminations!B86","v":0},{"$f":"Terminations!C86","v":0},{"$f":"Terminations!D86","v":0},{"$f":"Terminations!E86","v":0},{"$f":"Terminations!F86","v":0},{"$f":"Terminations!G86","v":0},{"$f":"Terminations!H86","v":0},{"$f":"Terminations!I86","v":0},{"$f":"Terminations!J86","v":0},{"$f":"Terminations!K86","v":0},{"$f":"Terminations!L86","v":0},{"$f":"Terminations!M86","v":0},{"$f":"Terminations!N86","v":0},null,null,null,"Sch","          Please enter your school's cost code",{"$f":"Remunerations!$B$6","v":0},{"$f":"Remunerations!$E$6","v":0},{"$f":"Remunerations!A87","v":0},{"$f":"Remunerations!B87","v":0},{"$f":"Remunerations!C87","v":0},{"$f":"Remunerations!D87","v":0},{"$f":"Remunerations!E87","v":0},{"$f":"Remunerations!F87","v":""}]
[null,null,null,null,null,null,null,"Sch","          Please enter your school's cost code",{"$f":"Terminations!$B$6","v":0},{"$f":"Terminations!B87","v":0},{"$f":"Terminations!C87","v":0},{"$f":"Terminations!D87","v":0},{"$f":"Terminations!E87","v":0},{"$f":"Terminations!F87","v":0},{"$f":"Terminations!G87","v":0},{"$f":"Terminations!H87","v":0},{"$f":"Terminations!I87","v":0},{"$f":"Terminations!J87","v":0},{"$f":"Terminations!K87","v":0},{"$f":"Terminations!L87","v":0},{"$f":"Terminations!M87","v":0},{"$f":"Terminations!N87","v":0},null,null,null,"Sch","          Please enter your school's cost code",{"$f":"Remunerations!$B$6","v":0},{"$f":"Remunerations!$E$6","v":0},{"$f":"Remunerations!A88","v":0},{"$f":"Remunerations!B88","v":0},{"$f":"Remunerations!C88","v":0},{"$f":"Remunerations!D88","v":0},{"$f":"Remunerations!E88","v":0},{"$f":"Remunerations!F88","v":""}]
[null,null,null,null,null,null,null,"Sch","          Please enter your school's cost code",{"$f":"Terminations!$B$6","v":0},{"$f":"Terminations!B88","v":0},{"$f":"Terminations!C88","v":0},{"$f":"Terminations!D88","v":0},{"$f":"Terminations!E88","v":0},{"$f":"Terminations!F88","v":0},{"$f":"Terminations!G88","v":0},{"$f":"Terminations!H88","v":0},{"$f":"Terminations!I88","v":0},{"$f":"Terminations!J88","v":0},{"$f":"Terminations!K88","v":0},{"$f":"Terminations!L88","v":0},{"$f":"Terminations!M88","v":0},{"$f":"Terminations!N88","v":0},null,null,null,"Sch","          Please enter your school's cost code",{"$f":"Remunerations!$B$6","v":0},{"$f":"Remunerations!$E$6","v":0},{"$f":"Remunerations!A89","v":0},{"$f":"Remunerations!B89","v":0},{"$f":"Remunerations!C89","v":0},{"$f":"Remunerations!D89","v":0},{"$f":"Remunerations!E89","v":0},{"$f":"Remunerations!F89","v":""}]
[null,null,null,null,null,null,null,"Sch","          Please enter your school's cost code",{"$f":"Terminations!$B$6","v":0},{"$f":"Terminations!B89","v":0},{"$f":"Terminations!C89","v":0},{"$f":"Terminations!D89","v":0},{"$f":"Terminations!E89","v":0},{"$f":"Terminations!F89","v":0},{"$f":"Terminations!G89","v":0},{"$f":"Terminations!H89","v":0},{"$f":"Terminations!I89","v":0},{"$f":"Terminations!J89","v":0},{"$f":"Terminations!K89","v":0},{"$f":"Terminations!L89","v":0},{"$f":"Terminations!M89","v":0},{"$f":"Terminations!N89","v":0},null,null,null,"Sch","          Please enter your school's cost code",{"$f":"Remunerations!$B$6","v":0},{"$f":"Remunerations!$E$6","v":0},{"$f":"Remunerations!A90","v":0},{"$f":"Remunerations!B90","v":0},{"$f":"Remunerations!C90","v":0},{"$f":"Remunerations!D90","v":0},{"$f":"Remunerations!E90","v":0},{"$f":"Remunerations!F90","v":""}]
[null,null,null,null,null,null,null,"Sch","          Please enter your school's cost code",{"$f":"Terminations!$B$6","v":0},{"$f":"Terminations!B90","v":0},{"$f":"Terminations!C90","v":0},{"$f":"Terminations!D90","v":0},{"$f":"Terminations!E90","v":0},{"$f":"Terminations!F90","v":0},{"$f":"Terminations!G90","v":0},{"$f":"Terminations!H90","v":0},{"$f":"Terminations!I90","v":0},{"$f":"Terminations!J90","v":0},{"$f":"Terminations!K90","v":0},{"$f":"Terminations!L90","v":0},{"$f":"Terminations!M90","v":0},{"$f":"Terminations!N90","v":0},null,null,null,"Sch","          Please enter your school's cost code",{"$f":"Remunerations!$B$6","v":0},{"$f":"Remunerations!$E$6","v":0},{"$f":"Remunerations!A91","v":0},{"$f":"Remunerations!B91","v":0},{"$f":"Remunerations!C91","v":0},{"$f":"Remunerations!D91","v":0},{"$f":"Remunerations!E91","v":0},{"$f":"Remunerations!F91","v":""}]
[null,null,null,null,null,null,null,"Sch","          Please enter your school's cost code",{"$f":"Terminations!$B$6","v":0},{"$f":"Terminations!B91","v":0},{"$f":"Terminations!C91","v":0},{"$f":"Terminations!D91","v":0},{"$f":"Terminations!E91","v":0},{"$f":"Terminations!F91","v":0},{"$f":"Terminations!G91","v":0},{"$f":"Terminations!H91","v":0},{"$f":"Terminations!I91","v":0},{"$f":"Terminations!J91","v":0},{"$f":"Terminations!K91","v":0},{"$f":"Terminations!L91","v":0},{"$f":"Terminations!M91","v":0},{"$f":"Terminations!N91","v":0}]
[null,null,null,null,null,null,null,"Sch","          Please enter your school's cost code",{"$f":"Terminations!$B$6","v":0},{"$f":"Terminations!B92","v":0},{"$f":"Terminations!C92","v":0},{"$f":"Terminations!D92","v":0},{"$f":"Terminations!E92","v":0},{"$f":"Terminations!F92","v":0},{"$f":"Terminations!G92","v":0},{"$f":"Terminations!H92","v":0},{"$f":"Terminations!I92","v":0},{"$f":"Terminations!J92","v":0},{"$f":"Terminations!K92","v":0},{"$f":"Terminations!L92","v":0},{"$f":"Terminations!M92","v":0},{"$f":"Terminations!N92","v":0}]
[null,null,null,null,null,null,null,"Sch","          Please enter your school's cost code",{"$f":"Terminations!$B$6","v":0},{"$f":"Terminations!B93","v":0},{"$f":"Terminations!C93","v":0},{"$f":"Terminations!D93","v":0},{"$f":"Terminations!E93","v":0},{"$f":"Terminations!F93","v":0},{"$f":"Terminations!G93","v":0},{"$f":"Terminations!H93","v":0},{"$f":"Terminations!I93","v":0},{"$f":"Terminations!J93","v":0},{"$f":"Terminations!K93","v":0},{"$f":"Terminations!L93","v":0},{"$f":"Terminations!M93","v":0},{"$f":"Terminations!N93","v":0}]
[null,null,null,null,null,null,null,"Sch","          Please enter your school's cost code",{"$f":"Terminations!$B$6","v":0},{"$f":"Terminations!B94","v":0},{"$f":"Terminations!C94","v":0},{"$f":"Terminations!D94","v":0},{"$f":"Terminations!E94","v":0},{"$f":"Terminations!F94","v":0},{"$f":"Terminations!G94","v":0},{"$f":"Terminations!H94","v":0},{"$f":"Terminations!I94","v":0},{"$f":"Terminations!J94","v":0},{"$f":"Terminations!K94","v":0},{"$f":"Terminations!L94","v":0},{"$f":"Terminations!M94","v":0},{"$f":"Terminations!N94","v":0}]
[null,null,null,null,null,null,null,"Sch","          Please enter your school's cost code",{"$f":"Terminations!$B$6","v":0},{"$f":"Terminations!B95","v":0},{"$f":"Terminations!C95","v":0},{"$f":"Terminations!D95","v":0},{"$f":"Terminations!E95","v":0},{"$f":"Terminations!F95","v":0},{"$f":"Terminations!G95","v":0},{"$f":"Terminations!H95","v":0},{"$f":"Terminations!I95","v":0},{"$f":"Terminations!J95","v":0},{"$f":"Terminations!K95","v":0},{"$f":"Terminations!L95","v":0},{"$f":"Terminations!M95","v":0},{"$f":"Terminations!N95","v":0}]
[null,null,null,null,null,null,null,"Sch","          Please enter your school's cost code",{"$f":"Terminations!$B$6","v":0},{"$f":"Terminations!B96","v":0},{"$f":"Terminations!C96","v":0},{"$f":"Terminations!D96","v":0},{"$f":"Terminations!E96","v":0},{"$f":"Terminations!F96","v":0},{"$f":"Terminations!G96","v":0},{"$f":"Terminations!H96","v":0},{"$f":"Terminations!I96","v":0},{"$f":"Terminations!J96","v":0},{"$f":"Terminations!K96","v":0},{"$f":"Terminations!L96","v":0},{"$f":"Terminations!M96","v":0},{"$f":"Terminations!N96","v":0}]
[null,null,null,null,null,null,null,"Sch","          Please enter your school's cost code",{"$f":"Terminations!$B$6","v":0},{"$f":"Terminations!B97","v":0},{"$f":"Terminations!C97","v":0},{"$f":"Terminations!D97","v":0},{"$f":"Terminations!E97","v":0},{"$f":"Terminations!F97","v":0},{"$f":"Terminations!G97","v":0},{"$f":"Terminations!H97","v":0},{"$f":"Terminations!I97","v":0},{"$f":"Terminations!J97","v":0},{"$f":"Terminations!K97","v":0},{"$f":"Terminations!L97","v":0},{"$f":"Terminations!M97","v":0},{"$f":"Terminations!N97","v":0}]
[null,null,null,null,null,null,null,"Sch","          Please enter your school's cost code",{"$f":"Terminations!$B$6","v":0},{"$f":"Terminations!B98","v":0},{"$f":"Terminations!C98","v":0},{"$f":"Terminations!D98","v":0},{"$f":"Terminations!E98","v":0},{"$f":"Terminations!F98","v":0},{"$f":"Terminations!G98","v":0},{"$f":"Terminations!H98","v":0},{"$f":"Terminations!I98","v":0},{"$f":"Terminations!J98","v":0},{"$f":"Terminations!K98","v":0},{"$f":"Terminations!L98","v":0},{"$f":"Terminations!M98","v":0},{"$f":"Terminations!N98","v":0}]
[null,null,null,null,null,null,null,"Sch","          Please enter your school's cost code",{"$f":"Terminations!$B$6","v":0},{"$f":"Terminations!B99","v":0},{"$f":"Terminations!C99","v":0},{"$f":"Terminations!D99","v":0},{"$f":"Terminations!E99","v":0},{"$f":"Terminations!F99","v":0},{"$f":"Terminations!G99","v":0},{"$f":"Terminations!H99","v":0},{"$f":"Terminations!I99","v":0},{"$f":"Terminations!J99","v":0},{"$f":"Terminations!K99","v":0},{"$f":"Terminations!L99","v":0},{"$f":"Terminations!M99","v":0},{"$f":"Terminations!N99","v":0}]
[null,null,null,null,null,null,null,"Sch","          Please enter your school's cost code",{"$f":"Terminations!$B$6","v":0},{"$f":"Terminations!B100","v":0},{"$f":"Terminations!C100","v":0},{"$f":"Terminations!D100","v":0},{"$f":"Terminations!E100","v":0},{"$f":"Terminations!F100","v":0},{"$f":"Terminations!G100","v":0},{"$f":"Terminations!H100","v":0},{"$f":"Terminations!I100","v":0},{"$f":"Terminations!J100","v":0},{"$f":"Terminations!K100","v":0},{"$f":"Terminations!L100","v":0},{"$f":"Terminations!M100","v":0},{"$f":"Terminations!N100","v":0}]
[null,null,null,null,null,null,null,"Sch","          Please enter your school's cost code",{"$f":"Terminations!$B$6","v":0},{"$f":"Terminations!B101","v":0},{"$f":"Terminations!C101","v":0},{"$f":"Terminations!D101","v":0},{"$f":"Terminations!E101","v":0},{"$f":"Terminations!F101","v":0},{"$f":"Terminations!G101","v":0},{"$f":"Terminations!H101","v":0},{"$f":"Terminations!I101","v":0},{"$f":"Terminations!J101","v":0},{"$f":"Terminations!K101","v":0},{"$f":"Terminations!L101","v":0},{"$f":"Terminations!M101","v":0},{"$f":"Terminations!N101","v":0}]
[null,null,null,null,null,null,null,"Sch","          Please enter your school's cost code",{"$f":"Terminations!$B$6","v":0},{"$f":"Terminations!B102","v":0},{"$f":"Terminations!C102","v":0},{"$f":"Terminations!D102","v":0},{"$f":"Terminations!E102","v":0},{"$f":"Terminations!F102","v":0},{"$f":"Terminations!G102","v":0},{"$f":"Terminations!H102","v":0},{"$f":"Terminations!I102","v":0},{"$f":"Terminations!J102","v":0},{"$f":"Terminations!K102","v":0},{"$f":"Terminations!L102","v":0},{"$f":"Terminations!M102","v":0},{"$f":"Terminations!N102","v":0}]
[null,null,null,null,null,null,null,"Sch","          Please enter your school's cost code",{"$f":"Terminations!$B$6","v":0},{"$f":"Terminations!B103","v":0},{"$f":"Terminations!C103","v":0},{"$f":"Terminations!D103","v":0},{"$f":"Terminations!E103","v":0},{"$f":"Terminations!F103","v":0},{"$f":"Terminations!G103","v":0},{"$f":"Terminations!H103","v":0},{"$f":"Terminations!I103","v":0},{"$f":"Terminations!J103","v":0},{"$f":"Terminations!K103","v":0},{"$f":"Terminations!L103","v":0},{"$f":"Terminations!M103","v":0},{"$f":"Terminations!N103","v":0}]
[null,null,null,null,null,null,null,"Sch","          Please enter your school's cost code",{"$f":"Terminations!$B$6","v":0},{"$f":"Terminations!B104","v":0},{"$f":"Terminations!C104","v":0},{"$f":"Terminations!D104","v":0},{"$f":"Terminations!E104","v":0},{"$f":"Terminations!F104","v":0},{"$f":"Terminations!G104","v":0},{"$f":"Terminations!H104","v":0},{"$f":"Terminations!I104","v":0},{"$f":"Terminations!J104","v":0},{"$f":"Terminations!K104","v":0},{"$f":"Terminations!L104","v":0},{"$f":"Terminations!M104","v":0},{"$f":"Terminations!N104","v":0}]
[null,null,null,null,null,null,null,"Sch","          Please enter your school's cost code",{"$f":"Terminations!$B$6","v":0},{"$f":"Terminations!B105","v":0},{"$f":"Terminations!C105","v":0},{"$f":"Terminations!D105","v":0},{"$f":"Terminations!E105","v":0},{"$f":"Terminations!F105","v":0},{"$f":"Terminations!G105","v":0},{"$f":"Terminations!H105","v":0},{"$f":"Terminations!I105","v":0},{"$f":"Terminations!J105","v":0},{"$f":"Terminations!K105","v":0},{"$f":"Terminations!L105","v":0},{"$f":"Terminations!M105","v":0},{"$f":"Terminations!N105","v":0}]
[null,null,null,null,null,null,null,"Sch","          Please enter your school's cost code",{"$f":"Terminations!$B$6","v":0},{"$f":"Terminations!B106","v":0},{"$f":"Terminations!C106","v":0},{"$f":"Terminations!D106","v":0},{"$f":"Terminations!E106","v":0},{"$f":"Terminations!F106","v":0},{"$f":"Terminations!G106","v":0},{"$f":"Terminations!H106","v":0},{"$f":"Terminations!I106","v":0},{"$f":"Terminations!J106","v":0},{"$f":"Terminations!K106","v":0},{"$f":"Terminations!L106","v":0},{"$f":"Terminations!M106","v":0},{"$f":"Terminations!N106","v":0}]
[null,null,null,null,null,null,null,"Sch","          Please enter your school's cost code",{"$f":"Terminations!$B$6","v":0},{"$f":"Terminations!B107","v":0},{"$f":"Terminations!C107","v":0},{"$f":"Terminations!D107","v":0},{"$f":"Terminations!E107","v":0},{"$f":"Terminations!F107","v":0},{"$f":"Terminations!G107","v":0},{"$f":"Terminations!H107","v":0},{"$f":"Terminations!I107","v":0},{"$f":"Terminations!J107","v":0},{"$f":"Terminations!K107","v":0},{"$f":"Terminations!L107","v":0},{"$f":"Terminations!M107","v":0},{"$f":"Terminations!N107","v":0}]
[null,null,null,null,null,null,null,"Sch","          Please enter your school's cost code",{"$f":"Terminations!$B$6","v":0},{"$f":"Terminations!B108","v":0},{"$f":"Terminations!C108","v":0},{"$f":"Terminations!D108","v":0},{"$f":"Terminations!E108","v":0},{"$f":"Terminations!F108","v":0},{"$f":"Terminations!G108","v":0},{"$f":"Terminations!H108","v":0},{"$f":"Terminations!I108","v":0},{"$f":"Terminations!J108","v":0},{"$f":"Terminations!K108","v":0},{"$f":"Terminations!L108","v":0},{"$f":"Terminations!M108","v":0},{"$f":"Terminations!N108","v":0}]
[null,null,null,null,null,null,null,"Sch","          Please enter your school's cost code",{"$f":"Terminations!$B$6","v":0},{"$f":"Terminations!B109","v":0},{"$f":"Terminations!C109","v":0},{"$f":"Terminations!D109","v":0},{"$f":"Terminations!E109","v":0},{"$f":"Terminations!F109","v":0},{"$f":"Terminations!G109","v":0},{"$f":"Terminations!H109","v":0},{"$f":"Terminations!I109","v":0},{"$f":"Terminations!J109","v":0},{"$f":"Terminations!K109","v":0},{"$f":"Terminations!L109","v":0},{"$f":"Terminations!M109","v":0},{"$f":"Terminations!N109","v":0}]
[null,null,null,null,null,null,null,"Sch","          Please enter your school's cost code",{"$f":"Terminations!$B$6","v":0},{"$f":"Terminations!B110","v":0},{"$f":"Terminations!C110","v":0},{"$f":"Terminations!D110","v":0},{"$f":"Terminations!E110","v":0},{"$f":"Terminations!F110","v":0},{"$f":"Terminations!G110","v":0},{"$f":"Terminations!H110","v":0},{"$f":"Terminations!I110","v":0},{"$f":"Terminations!J110","v":0},{"$f":"Terminations!K110","v":0},{"$f":"Terminations!L110","v":0},{"$f":"Terminations!M110","v":0},{"$f":"Terminations!N110","v":0}]

{"sheet":"xml convertor","index":12,"n_rows":200,"n_cols":90,"rows_kept":200,"cut":false,"hidden":true,"merged":[]}
[null,{"$f":"CG3","v":"Error"}]
[]
["Notes","<Estab>","Cost Code","<SchoolName>","<SchoolName>","<DateTime>","<OB01_OpeningPupilFocusedRevenueBalance>","<OB02_OpeningCommunityFocusedRevenueBalance>","<OB03_OpeningCapitalBalance>","<I01_LA>","<I02_SixthForm>","<I03_HighNeedsTopUp>","<I04_MinorityEthnic>","<I05_PupilPremium>","<I06_OtherGovGrants>","<I07_OtherGrants>","<I08a_LettingPremises>","<I08b_OtherServices>","<I09_Catering>","<I10_SupplyInsurance>","<I11_OtherInsurance>","<I12_Contributions>","<I13_Donations>",null,"<I15_PupilFocusedExtendedFunding>","<I16_CommunityFocusedFunding>","<I17_CommunityFocusedSchoolFacilitiesIncome>","<I18a_CovidRetentionScheme>","<I18b_CovidExceptionalCosts>","<I18c_CovidOther>","<I18d_AdditionalGrantSchools>","<E01_TeachingStaff>","<E02_SupplyStaff>","<E03_SupportStaff>","<E04_PremisesStaff>","<E05_AdminStaff>","<E06_CateringStaff>","<E07_OtherStaff>","<E08_IndirectEmployee>","<E09_StaffDevelopment>","<E10_SupplyInsurance>","<E11_StaffInsurance>","<E12_Buildings>","<E13_Grounds>","<E14_CleaningCaretaking>","<E15_WaterSewerage>","<E16_Energy>","<E17_Rates>","<E18_OtherOccupation>","<E19_LearningResources>","<E20_ICTLearningResources>","<E21_ExaminationFees>","<E22_AdministrativeSupplies>","<E23_OtherInsurance>","<E24_SpecialFacilities>","<E25_CateringSupplies>","<E26_AgencySupplyStaff>","<E27_CurriculumServices>","<E28a_OtherServices_exceptPFI>","<E28b_OtherServices_PFI>","<E29_LoanInterest>","<E30_DirectRevenueFinancing>","<E31_CommunityFocusedStaff>","<E32_CommunityFocusedSchoolCosts>","<CI01_CapitalIncome>","<CI03_VoluntaryIncome>","<CI04_DirectRevenueFinancing>","<DeMinimis>","<CE01_LandBuildings>","<CE02_ConstructionConversion>","<CE03_Equipment>","<CE04_ICT>","<B01_CommittedRevenue>","<B02_UncommittedRevenue>","<B03_DevolvedCapital>","<B04_StandardsCapital>","<B05_OtherCapital>","<B06_CommunityFocused>","Gross_Exp","LEA_Income","Other_Income","Total\n'Balances - B01-B06","Revenue\n'Balances - B01+B02+B06","Source",{"$f":"IF(SUM(CG7:CG176)=1,\"RM\",IF(SUM(CG7:CG176)=2,\"SIMS\",\"Error\"))","v":"Error"},"<Contact>","<Email>","<Phone>","<Complete>","<FederatedFlag>"]
[{"$f":"A107&\"  \"&A108&\"  \"&A109&\"  \"&A110&\"  \"&A111&\"  \"&A112&\"  \"&A113&\"  \"&A114&\"  \"&A115&\"  \"&A116&\"  \"&A117&\"  \"&A118&\"  \"&A119&\"  \"&A120&\"  \"&A121&\"  \"&A122&\"  \"&A123&\"  \"&A124&\"  \"&A125&\"  \"&A126&\"  \"&A127&\"  \"&A128&\"  \"&A129&\"  \"&A130&\"  \"&A131&\"  \"&A132&\"  \"&A133&\"  \"&A134&\"  \"&A135&\"  \"&A136&\"  \"&A137&\"  \"&A138&\"  \"&A139&\"  \"&A140&\"  \"&A141&\"  \"&A142","v":"                                                                      "},null,null,null,null,null,null,null,null,null,null,null,null,null,null,null,null,null,null,null,null,null,null,null,null,null,null,null,null,null,null,null,null,null,null,null,null,null,null,null,null,null,null,null,null,null,null,null,null,null,null,null,null,null,null,null,null,null,null,null,null,null,null,null,null,null,null,null,null,null,null,null,null,null,null,null,null,null,null,null,null,null,null,"<InputSystem>"]
[{"$f":"A107&\"  \"&A108&\"  \"&A109&\"  \"&A110&\"  \"&A111&\"  \"&A112&\"  \"&A113&\"  \"&A114&\"  \"&A115&\"  \"&A116&\"  \"&A117&\"  \"&A118&\"  \"&A119&\"  \"&A120&\"  \"&A121&\"  \"&A122&\"  \"&A123&\"  \"&A124&\"  \"&A125&\"  \"&A126&\"  \"&A127&\"  \"&A128&\"  \"&A129&\"  \"&A130&\"  \"&A131&\"  \"&A132&\"  \"&A133&\"  \"&A134&\"  \"&A135&\"  \"&A136&\"  \"&A137&\"  \"&A138&\"  \"&A139&\"  \"&A140&\"  \"&A141&\"  \"&A142","v":"                                                                      "},{"$f":"SUM(B15:B34)","v":0},null," ",null,{"$f":"MAX(F6:F200)","v":"00:00:00"},{"$f":"SUM(G7:G200)","v":0},{"$f":"SUM(H7:H200)","v":0},0,0,0,0,0,0,0,0,0,null,0,0,0,0,0,null,0,0,0,{"$f":"SUM(AB7:AB200)","v":0},0,0,0,0,0,0,0,0,0,0,0,0,0,0,0,0,0,0,0,0,0,0,0,0,0,0,0,0,0,0,0,{"$f":"SUM(BH7:BH200)","v":0},0,0,0,0,0,0,0,0,0,0,0,0,0,0,0,0,{"$f":"SUM(BY7:BY200)","v":0},{"$f":"SUM(BZ7:BZ200)","v":0},{"$f":"SUM(AF5:BL5)","v":0},{"$f":"SUM(J5:N5)+SUM(X5:Z5)+AE5","v":0},{"$f":"SUM(O5:W5)+AA5","v":0},{"$f":"SUM(BU5:BZ5)","v":0},{"$f":"SUM(BU5:BV5)+BZ5","v":0},"XML file",{"$f":"A5","v":"                                                                      "},{"$f":"CH17","v":0},{"$f":"CI18","v":0},{"$f":"CJ19","v":0},{"$f":"IF(CG3=\"SIMS\",CK25,CK24)","v":0},{"$f":"IF(SUM(CL7:CL200)=0,\"N\",\"Y\")","v":"N"}]
[]
[{"$f":"IF(AND('CFR - XML import'!A1<>\"\",LEFT('CFR - XML import'!A1,1)<>\"<\",LEFT('CFR - XML import'!A1,3)<>\"  <\",LEFT('CFR - XML import'!A1,5)<>\"    <\",LEFT('CFR - XML import'!A1,7)<>\"      <\",LEFT('CFR - XML import'!A1,9)<>\"        <\",$B$1=\"SIMS\"),'CFR - XML import'!A1,IF(AND(LEFT('CFR - XML import'!A1,9)=\"<Details>\",$B$1=\"RM\"),'CFR - XML import'!A1,\"\"))","v":""},{"$f":"IF(ISERROR(FIND(B$3,'CFR - XML import'!$A1)),0,VALUE(MID('CFR - XML import'!$A1,SEARCH(\">\",'CFR - XML import'!$A1,1)+1,SEARCH(\"/\",'CFR - XML import'!$A1,1)-SEARCH(\">\",'CFR - XML import'!$A1,1)-2)))","v":0},null,{"$f":"IF(ISERROR(FIND(D$3,'CFR - XML import'!$A1)),0,MID('CFR - XML import'!$A1,SEARCH(\">\",'CFR - XML import'!$A1,1)+1,SEARCH(\"/\",'CFR - XML import'!$A1,1)-SEARCH(\">\",'CFR - XML import'!$A1,1)-2))","v":0},{"$f":"IF(ISERROR(FIND(E$3,'CFR - XML import'!$A1)),0,MID('CFR - XML import'!$A1,SEARCH(\">\",'CFR - XML import'!$A1,1)+1,SEARCH(\"/\",'CFR - XML import'!$A1,1)-SEARCH(\">\",'CFR - XML import'!$A1,1)-2))","v":0},{"$f":"IF($B$1=\"SIMS\",IF(ISERROR(FIND(F$3,'CFR - XML import'!$A1)),0,VALUE(MID('CFR - XML import'!$A1,15,10))),IF(ISERROR(FIND(F$3,'CFR - XML import'!$A1)),0,VALUE(MID('CFR - XML import'!$A1,11,10))))","v":"00:00:00"},{"$f":"IF(ISERROR(FIND(G$3,'CFR - XML import'!$A1)),0,VALUE(MID('CFR - XML import'!$A1,SEARCH(\">\",'CFR - XML import'!$A1,1)+1,SEARCH(\"/\",'CFR - XML import'!$A1,1)-SEARCH(\">\",'CFR - XML import'!$A1,1)-2)))","v":0},{"$f":"IF(ISERROR(FIND(H$3,'CFR - XML import'!$A1)),0,VALUE(MID('CFR - XML import'!$A1,SEARCH(\">\",'CFR - XML import'!$A1,1)+1,SEARCH(\"/\",'CFR - XML import'!$A1,1)-SEARCH(\">\",'CFR - XML import'!$A1,1)-2)))","v":0},{"$f":"IF(ISERROR(FIND(I$3,'CFR - XML import'!$A1)),0,VALUE(MID('CFR - XML import'!$A1,SEARCH(\">\",'CFR - XML import'!$A1,1)+1,SEARCH(\"/\",'CFR - XML import'!$A1,1)-SEARCH(\">\",'CFR - XML import'!$A1,1)-2)))","v":0},{"$f":"IF(ISERROR(FIND(J$3,'CFR - XML import'!$A1)),0,VALUE(MID('CFR - XML import'!$A1,SEARCH(\">\",'CFR - XML import'!$A1,1)+1,SEARCH(\"/\",'CFR - XML import'!$A1,1)-SEARCH(\">\",'CFR - XML import'!$A1,1)-2)))","v":0},{"$f":"IF(ISERROR(FIND(K$3,'CFR - XML import'!$A1)),0,VALUE(MID('CFR - XML import'!$A1,SEARCH(\">\",'CFR - XML import'!$A1,1)+1,SEARCH(\"/\",'CFR - XML import'!$A1,1)-SEARCH(\">\",'CFR - XML import'!$A1,1)-2)))","v":0},{"$f":"IF(ISERROR(FIND(L$3,'CFR - XML import'!$A1)),0,VALUE(MID('CFR - XML import'!$A1,SEARCH(\">\",'CFR - XML import'!$A1,1)+1,SEARCH(\"/\",'CFR - XML import'!$A1,1)-SEARCH(\">\",'CFR - XML import'!$A1,1)-2)))","v":0},{"$f":"IF(ISERROR(FIND(M$3,'CFR - XML import'!$A1)),0,VALUE(MID('CFR - XML import'!$A1,SEARCH(\">\",'CFR - XML import'!$A1,1)+1,SEARCH(\"/\",'CFR - XML import'!$A1,1)-SEARCH(\">\",'CFR - XML import'!$A1,1)-2)))","v":0},{"$f":"IF(ISERROR(FIND(N$3,'CFR - XML import'!$A1)),0,VALUE(MID('CFR - XML import'!$A1,SEARCH(\">\",'CFR - XML import'!$A1,1)+1,SEARCH(\"/\",'CFR - XML import'!$A1,1)-SEARCH(\">\",'CFR - XML import'!$A1,1)-2)))","v":0},{"$f":"IF(ISERROR(FIND(O$3,'CFR - XML import'!$A1)),0,VALUE(MID('CFR - XML import'!$A1,SEARCH(\">\",'CFR - XML import'!$A1,1)+1,SEARCH(\"/\",'CFR - XML import'!$A1,1)-SEARCH(\">\",'CFR - XML import'!$A1,1)-2)))","v":0},{"$f":"IF(ISERROR(FIND(P$3,'CFR - XML import'!$A1)),0,VALUE(MID('CFR - XML import'!$A1,SEARCH(\">\",'CFR - XML import'!$A1,1)+1,SEARCH(\"/\",'CFR - XML import'!$A1,1)-SEARCH(\">\",'CFR - XML import'!$A1,1)-2)))","v":0},{"$f":"IF(ISERROR(FIND(Q$3,'CFR - XML import'!$A1)),0,VALUE(MID('CFR - XML import'!$A1,SEARCH(\">\",'CFR - XML import'!$A1,1)+1,SEARCH(\"/\",'CFR - XML import'!$A1,1)-SEARCH(\">\",'CFR - XML import'!$A1,1)-2)))","v":0},{"$f":"IF(ISERROR(FIND(R$3,'CFR - XML import'!$A1)),0,VALUE(MID('CFR - XML import'!$A1,SEARCH(\">\",'CFR - XML import'!$A1,1)+1,SEARCH(\"/\",'CFR - XML import'!$A1,1)-SEARCH(\">\",'CFR - XML import'!$A1,1)-2)))","v":0},{"$f":"IF(ISERROR(FIND(S$3,'CFR - XML import'!$A1)),0,VALUE(MID('CFR - XML import'!$A1,SEARCH(\">\",'CFR - XML import'!$A1,1)+1,SEARCH(\"/\",'CFR - XML import'!$A1,1)-SEARCH(\">\",'CFR - XML import'!$A1,1)-2)))","v":0},{"$f":"IF(ISERROR(FIND(T$3,'CFR - XML import'!$A1)),0,VALUE(MID('CFR - XML import'!$A1,SEARCH(\">\",'CFR - XML import'!$A1,1)+1,SEARCH(\"/\",'CFR - XML import'!$A1,1)-SEARCH(\">\",'CFR - XML import'!$A1,1)-2)))","v":0},{"$f":"IF(ISERROR(FIND(U$3,'CFR - XML import'!$A1)),0,VALUE(MID('CFR - XML import'!$A1,SEARCH(\">\",'CFR - XML import'!$A1,1)+1,SEARCH(\"/\",'CFR - XML import'!$A1,1)-SEARCH(\">\",'CFR - XML import'!$A1,1)-2)))","v":0},{"$f":"IF(ISERROR(FIND(V$3,'CFR - XML import'!$A1)),0,VALUE(MID('CFR - XML import'!$A1,SEARCH(\">\",'CFR - XML import'!$A1,1)+1,SEARCH(\"/\",'CFR - XML import'!$A1,1)-SEARCH(\">\",'CFR - XML import'!$A1,1)-2)))","v":0},{"$f":"IF(ISERROR(FIND(W$3,'CFR - XML import'!$A1)),0,VALUE(MID('CFR - XML import'!$A1,SEARCH(\">\",'CFR - XML import'!$A1,1)+1,SEARCH(\"/\",'CFR - XML import'!$A1,1)-SEARCH(\">\",'CFR - XML import'!$A1,1)-2)))","v":0},null,{"$f":"IF(ISERROR(FIND(Y$3,'CFR - XML import'!$A1)),0,VALUE(MID('CFR - XML import'!$A1,SEARCH(\">\",'CFR - XML import'!$A1,1)+1,SEARCH(\"/\",'CFR - XML import'!$A1,1)-SEARCH(\">\",'CFR - XML import'!$A1,1)-2)))","v":0},{"$f":"IF(ISERROR(FIND(Z$3,'CFR - XML import'!$A1)),0,VALUE(MID('CFR - XML import'!$A1,SEARCH(\">\",'CFR - XML import'!$A1,1)+1,SEARCH(\"/\",'CFR - XML import'!$A1,1)-SEARCH(\">\",'CFR - XML import'!$A1,1)-2)))","v":0},{"$f":"IF(ISERROR(FIND(AA$3,'CFR - XML import'!$A1)),0,VALUE(MID('CFR - XML import'!$A1,SEARCH(\">\",'CFR - XML import'!$A1,1)+1,SEARCH(\"/\",'CFR - XML import'!$A1,1)-SEARCH(\">\",'CFR - XML import'!$A1,1)-2)))","v":0},{"$f":"IF(ISERROR(FIND(AB$3,'CFR - XML import'!$A1)),0,VALUE(MID('CFR - XML import'!$A1,SEARCH(\">\",'CFR - XML import'!$A1,1)+1,SEARCH(\"/\",'CFR - XML import'!$A1,1)-SEARCH(\">\",'CFR - XML import'!$A1,1)-2)))","v":0},{"$f":"IF(ISERROR(FIND(AC$3,'CFR - XML import'!$A1)),0,VALUE(MID('CFR - XML import'!$A1,SEARCH(\">\",'CFR - XML import'!$A1,1)+1,SEARCH(\"/\",'CFR - XML import'!$A1,1)-SEARCH(\">\",'CFR - XML import'!$A1,1)-2)))","v":0},{"$f":"IF(ISERROR(FIND(AD$3,'CFR - XML import'!$A1)),0,VALUE(MID('CFR - XML import'!$A1,SEARCH(\">\",'CFR - XML import'!$A1,1)+1,SEARCH(\"/\",'CFR - XML import'!$A1,1)-SEARCH(\">\",'CFR - XML import'!$A1,1)-2)))","v":0},{"$f":"IF(ISERROR(FIND(AE$3,'CFR - XML import'!$A1)),0,VALUE(MID('CFR - XML import'!$A1,SEARCH(\">\",'CFR - XML import'!$A1,1)+1,SEARCH(\"/\",'CFR - XML import'!$A1,1)-SEARCH(\">\",'CFR - XML import'!$A1,1)-2)))","v":0},{"$f":"IF(ISERROR(FIND(AF$3,'CFR - XML import'!$A1)),0,VALUE(MID('CFR - XML import'!$A1,SEARCH(\">\",'CFR - XML import'!$A1,1)+1,SEARCH(\"/\",'CFR - XML import'!$A1,1)-SEARCH(\">\",'CFR - XML import'!$A1,1)-2)))","v":0},{"$f":"IF(ISERROR(FIND(AG$3,'CFR - XML import'!$A1)),0,VALUE(MID('CFR - XML import'!$A1,SEARCH(\">\",'CFR - XML import'!$A1,1)+1,SEARCH(\"/\",'CFR - XML import'!$A1,1)-SEARCH(\">\",'CFR - XML import'!$A1,1)-2)))","v":0},{"$f":"IF(ISERROR(FIND(AH$3,'CFR - XML import'!$A1)),0,VALUE(MID('CFR - XML import'!$A1,SEARCH(\">\",'CFR - XML import'!$A1,1)+1,SEARCH(\"/\",'CFR - XML import'!$A1,1)-SEARCH(\">\",'CFR - XML import'!$A1,1)-2)))","v":0},{"$f":"IF(ISERROR(FIND(AI$3,'CFR - XML import'!$A1)),0,VALUE(MID('CFR - XML import'!$A1,SEARCH(\">\",'CFR - XML import'!$A1,1)+1,SEARCH(\"/\",'CFR - XML import'!$A1,1)-SEARCH(\">\",'CFR - XML import'!$A1,1)-2)))","v":0},{"$f":"IF(ISERROR(FIND(AJ$3,'CFR - XML import'!$A1)),0,VALUE(MID('CFR - XML import'!$A1,SEARCH(\">\",'CFR - XML import'!$A1,1)+1,SEARCH(\"/\",'CFR - XML import'!$A1,1)-SEARCH(\">\",'CFR - XML import'!$A1,1)-2)))","v":0},{"$f":"IF(ISERROR(FIND(AK$3,'CFR - XML import'!$A1)),0,VALUE(MID('CFR - XML import'!$A1,SEARCH(\">\",'CFR - XML import'!$A1,1)+1,SEARCH(\"/\",'CFR - XML import'!$A1,1)-SEARCH(\">\",'CFR - XML import'!$A1,1)-2)))","v":0},{"$f":"IF(ISERROR(FIND(AL$3,'CFR - XML import'!$A1)),0,VALUE(MID('CFR - XML import'!$A1,SEARCH(\">\",'CFR - XML import'!$A1,1)+1,SEARCH(\"/\",'CFR - XML import'!$A1,1)-SEARCH(\">\",'CFR - XML import'!$A1,1)-2)))","v":0},{"$f":"IF(ISERROR(FIND(AM$3,'CFR - XML import'!$A1)),0,VALUE(MID('CFR - XML import'!$A1,SEARCH(\">\",'CFR - XML import'!$A1,1)+1,SEARCH(\"/\",'CFR - XML import'!$A1,1)-SEARCH(\">\",'CFR - XML import'!$A1,1)-2)))","v":0},{"$f":"IF(ISERROR(FIND(AN$3,'CFR - XML import'!$A1)),0,VALUE(MID('CFR - XML import'!$A1,SEARCH(\">\",'CFR - XML import'!$A1,1)+1,SEARCH(\"/\",'CFR - XML import'!$A1,1)-SEARCH(\">\",'CFR - XML import'!$A1,1)-2)))","v":0},{"$f":"IF(ISERROR(FIND(AO$3,'CFR - XML import'!$A1)),0,VALUE(MID('CFR - XML import'!$A1,SEARCH(\">\",'CFR - XML import'!$A1,1)+1,SEARCH(\"/\",'CFR - XML import'!$A1,1)-SEARCH(\">\",'CFR - XML import'!$A1,1)-2)))","v":0},{"$f":"IF(ISERROR(FIND(AP$3,'CFR - XML import'!$A1)),0,VALUE(MID('CFR - XML import'!$A1,SEARCH(\">\",'CFR - XML import'!$A1,1)+1,SEARCH(\"/\",'CFR - XML import'!$A1,1)-SEARCH(\">\",'CFR - XML import'!$A1,1)-2)))","v":0},{"$f":"IF(ISERROR(FIND(AQ$3,'CFR - XML import'!$A1)),0,VALUE(MID('CFR - XML import'!$A1,SEARCH(\">\",'CFR - XML import'!$A1,1)+1,SEARCH(\"/\",'CFR - XML import'!$A1,1)-SEARCH(\">\",'CFR - XML import'!$A1,1)-2)))","v":0},{"$f":"IF(ISERROR(FIND(AR$3,'CFR - XML import'!$A1)),0,VALUE(MID('CFR - XML import'!$A1,SEARCH(\">\",'CFR - XML import'!$A1,1)+1,SEARCH(\"/\",'CFR - XML import'!$A1,1)-SEARCH(\">\",'CFR - XML import'!$A1,1)-2)))","v":0},{"$f":"IF(ISERROR(FIND(AS$3,'CFR - XML import'!$A1)),0,VALUE(MID('CFR - XML import'!$A1,SEARCH(\">\",'CFR - XML import'!$A1,1)+1,SEARCH(\"/\",'CFR - XML import'!$A1,1)-SEARCH(\">\",'CFR - XML import'!$A1,1)-2)))","v":0},{"$f":"IF(ISERROR(FIND(AT$3,'CFR - XML import'!$A1)),0,VALUE(MID('CFR - XML import'!$A1,SEARCH(\">\",'CFR - XML import'!$A1,1)+1,SEARCH(\"/\",'CFR - XML import'!$A1,1)-SEARCH(\">\",'CFR - XML import'!$A1,1)-2)))","v":0},{"$f":"IF(ISERROR(FIND(AU$3,'CFR - XML import'!$A1)),0,VALUE(MID('CFR - XML import'!$A1,SEARCH(\">\",'CFR - XML import'!$A1,1)+1,SEARCH(\"/\",'CFR - XML import'!$A1,1)-SEARCH(\">\",'CFR - XML import'!$A1,1)-2)))","v":0},{"$f":"IF(ISERROR(FIND(AV$3,'CFR - XML import'!$A1)),0,VALUE(MID('CFR - XML import'!$A1,SEARCH(\">\",'CFR - XML import'!$A1,1)+1,SEARCH(\"/\",'CFR - XML import'!$A1,1)-SEARCH(\">\",'CFR - XML import'!$A1,1)-2)))","v":0},{"$f":"IF(ISERROR(FIND(AW$3,'CFR - XML import'!$A1)),0,VALUE(MID('CFR - XML import'!$A1,SEARCH(\">\",'CFR - XML import'!$A1,1)+1,SEARCH(\"/\",'CFR - XML import'!$A1,1)-SEARCH(\">\",'CFR - XML import'!$A1,1)-2)))","v":0},{"$f":"IF(ISERROR(FIND(AX$3,'CFR - XML import'!$A1)),0,VALUE(MID('CFR - XML import'!$A1,SEARCH(\">\",'CFR - XML import'!$A1,1)+1,SEARCH(\"/\",'CFR - XML import'!$A1,1)-SEARCH(\">\",'CFR - XML import'!$A1,1)-2)))","v":0},{"$f":"IF(ISERROR(FIND(AY$3,'CFR - XML import'!$A1)),0,VALUE(MID('CFR - XML import'!$A1,SEARCH(\">\",'CFR - XML import'!$A1,1)+1,SEARCH(\"/\",'CFR - XML import'!$A1,1)-SEARCH(\">\",'CFR - XML import'!$A1,1)-2)))","v":0},{"$f":"IF(ISERROR(FIND(AZ$3,'CFR - XML import'!$A1)),0,VALUE(MID('CFR - XML import'!$A1,SEARCH(\">\",'CFR - XML import'!$A1,1)+1,SEARCH(\"/\",'CFR - XML import'!$A1,1)-SEARCH(\">\",'CFR - XML import'!$A1,1)-2)))","v":0},{"$f":"IF(ISERROR(FIND(BA$3,'CFR - XML import'!$A1)),0,VALUE(MID('CFR - XML import'!$A1,SEARCH(\">\",'CFR - XML import'!$A1,1)+1,SEARCH(\"/\",'CFR - XML import'!$A1,1)-SEARCH(\">\",'CFR - XML import'!$A1,1)-2)))","v":0},{"$f":"IF(ISERROR(FIND(BB$3,'CFR - XML import'!$A1)),0,VALUE(MID('CFR - XML import'!$A1,SEARCH(\">\",'CFR - XML import'!$A1,1)+1,SEARCH(\"/\",'CFR - XML import'!$A1,1)-SEARCH(\">\",'CFR - XML import'!$A1,1)-2)))","v":0},{"$f":"IF(ISERROR(FIND(BC$3,'CFR - XML import'!$A1)),0,VALUE(MID('CFR - XML import'!$A1,SEARCH(\">\",'CFR - XML import'!$A1,1)+1,SEARCH(\"/\",'CFR - XML import'!$A1,1)-SEARCH(\">\",'CFR - XML import'!$A1,1)-2)))","v":0},{"$f":"IF(ISERROR(FIND(BD$3,'CFR - XML import'!$A1)),0,VALUE(MID('CFR - XML import'!$A1,SEARCH(\">\",'CFR - XML import'!$A1,1)+1,SEARCH(\"/\",'CFR - XML import'!$A1,1)-SEARCH(\">\",'CFR - XML import'!$A1,1)-2)))","v":0},{"$f":"IF(ISERROR(FIND(BE$3,'CFR - XML import'!$A1)),0,VALUE(MID('CFR - XML import'!$A1,SEARCH(\">\",'CFR - XML import'!$A1,1)+1,SEARCH(\"/\",'CFR - XML import'!$A1,1)-SEARCH(\">\",'CFR - XML import'!$A1,1)-2)))","v":0},{"$f":"IF(ISERROR(FIND(BF$3,'CFR - XML import'!$A1)),0,VALUE(MID('CFR - XML import'!$A1,SEARCH(\">\",'CFR - XML import'!$A1,1)+1,SEARCH(\"/\",'CFR - XML import'!$A1,1)-SEARCH(\">\",'CFR - XML import'!$A1,1)-2)))","v":0},{"$f":"IF(ISERROR(FIND(BG$3,'CFR - XML import'!$A1)),0,VALUE(MID('CFR - XML import'!$A1,SEARCH(\">\",'CFR - XML import'!$A1,1)+1,SEARCH(\"/\",'CFR - XML import'!$A1,1)-SEARCH(\">\",'CFR - XML import'!$A1,1)-2)))","v":0},{"$f":"IF(ISERROR(FIND(BH$3,'CFR - XML import'!$A1)),0,VALUE(MID('CFR - XML import'!$A1,SEARCH(\">\",'CFR - XML import'!$A1,1)+1,SEARCH(\"/\",'CFR - XML import'!$A1,1)-SEARCH(\">\",'CFR - XML import'!$A1,1)-2)))","v":0},{"$f":"IF(ISERROR(FIND(BI$3,'CFR - XML import'!$A1)),0,VALUE(MID('CFR - XML import'!$A1,SEARCH(\">\",'CFR - XML import'!$A1,1)+1,SEARCH(\"/\",'CFR - XML import'!$A1,1)-SEARCH(\">\",'CFR - XML import'!$A1,1)-2)))","v":0},{"$f":"IF(ISERROR(FIND(BJ$3,'CFR - XML import'!$A1)),0,VALUE(MID('CFR - XML import'!$A1,SEARCH(\">\",'CFR - XML import'!$A1,1)+1,SEARCH(\"/\",'CFR - XML import'!$A1,1)-SEARCH(\">\",'CFR - XML import'!$A1,1)-2)))","v":0},{"$f":"IF(ISERROR(FIND(BK$3,'CFR - XML import'!$A1)),0,VALUE(MID('CFR - XML import'!$A1,SEARCH(\">\",'CFR - XML import'!$A1,1)+1,SEARCH(\"/\",'CFR - XML import'!$A1,1)-SEARCH(\">\",'CFR - XML import'!$A1,1)-2)))","v":0},{"$f":"IF(ISERROR(FIND(BL$3,'CFR - XML import'!$A1)),0,VALUE(MID('CFR - XML import'!$A1,SEARCH(\">\",'CFR - XML import'!$A1,1)+1,SEARCH(\"/\",'CFR - XML import'!$A1,1)-SEARCH(\">\",'CFR - XML import'!$A1,1)-2)))","v":0},{"$f":"IF(ISERROR(FIND(BM$3,'CFR - XML import'!$A1)),0,VALUE(MID('CFR - XML import'!$A1,SEARCH(\">\",'CFR - XML import'!$A1,1)+1,SEARCH(\"/\",'CFR - XML import'!$A1,1)-SEARCH(\">\",'CFR - XML import'!$A1,1)-2)))","v":0},{"$f":"IF(ISERROR(FIND(BN$3,'CFR - XML import'!$A1)),0,VALUE(MID('CFR - XML import'!$A1,SEARCH(\">\",'CFR - XML import'!$A1,1)+1,SEARCH(\"/\",'CFR - XML import'!$A1,1)-SEARCH(\">\",'CFR - XML import'!$A1,1)-2)))","v":0},{"$f":"IF(ISERROR(FIND(BO$3,'CFR - XML import'!$A1)),0,VALUE(MID('CFR - XML import'!$A1,SEARCH(\">\",'CFR - XML import'!$A1,1)+1,SEARCH(\"/\",'CFR - XML import'!$A1,1)-SEARCH(\">\",'CFR - XML import'!$A1,1)-2)))","v":0},{"$f":"IF(ISERROR(FIND(BP$3,'CFR - XML import'!$A1)),0,VALUE(MID('CFR - XML import'!$A1,SEARCH(\">\",'CFR - XML import'!$A1,1)+1,SEARCH(\"/\",'CFR - XML import'!$A1,1)-SEARCH(\">\",'CFR - XML import'!$A1,1)-2)))","v":0},{"$f":"IF(ISERROR(FIND(BQ$3,'CFR - XML import'!$A1)),0,VALUE(MID('CFR - XML import'!$A1,SEARCH(\">\",'CFR - XML import'!$A1,1)+1,SEARCH(\"/\",'CFR - XML import'!$A1,1)-SEARCH(\">\",'CFR - XML import'!$A1,1)-2)))","v":0},{"$f":"IF(ISERROR(FIND(BR$3,'CFR - XML import'!$A1)),0,VALUE(MID('CFR - XML import'!$A1,SEARCH(\">\",'CFR - XML import'!$A1,1)+1,SEARCH(\"/\",'CFR - XML import'!$A1,1)-SEARCH(\">\",'CFR - XML import'!$A1,1)-2)))","v":0},{"$f":"IF(ISERROR(FIND(BS$3,'CFR - XML import'!$A1)),0,VALUE(MID('CFR - XML import'!$A1,SEARCH(\">\",'CFR - XML import'!$A1,1)+1,SEARCH(\"/\",'CFR - XML import'!$A1,1)-SEARCH(\">\",'CFR - XML import'!$A1,1)-2)))","v":0},{"$f":"IF(ISERROR(FIND(BT$3,'CFR - XML import'!$A1)),0,VALUE(MID('CFR - XML import'!$A1,SEARCH(\">\",'CFR - XML import'!$A1,1)+1,SEARCH(\"/\",'CFR - XML import'!$A1,1)-SEARCH(\">\",'CFR - XML import'!$A1,1)-2)))","v":0},{"$f":"IF(ISERROR(FIND(BU$3,'CFR - XML import'!$A1)),0,VALUE(MID('CFR - XML import'!$A1,SEARCH(\">\",'CFR - XML import'!$A1,1)+1,SEARCH(\"/\",'CFR - XML import'!$A1,1)-SEARCH(\">\",'CFR - XML import'!$A1,1)-2)))","v":0},{"$f":"IF(ISERROR(FIND(BV$3,'CFR - XML import'!$A1)),0,VALUE(MID('CFR - XML import'!$A1,SEARCH(\">\",'CFR - XML import'!$A1,1)+1,SEARCH(\"/\",'CFR - XML import'!$A1,1)-SEARCH(\">\",'CFR - XML import'!$A1,1)-2)))","v":0},{"$f":"IF(ISERROR(FIND(BW$3,'CFR - XML import'!$A1)),0,VALUE(MID('CFR - XML import'!$A1,SEARCH(\">\",'CFR - XML import'!$A1,1)+1,SEARCH(\"/\",'CFR - XML import'!$A1,1)-SEARCH(\">\",'CFR - XML import'!$A1,1)-2)))","v":0},{"$f":"IF(ISERROR(FIND(BX$3,'CFR - XML import'!$A1)),0,VALUE(MID('CFR - XML import'!$A1,SEARCH(\">\",'CFR - XML import'!$A1,1)+1,SEARCH(\"/\",'CFR - XML import'!$A1,1)-SEARCH(\">\",'CFR - XML import'!$A1,1)-2)))","v":0},{"$f":"IF(ISERROR(FIND(BY$3,'CFR - XML import'!$A1)),0,VALUE(MID('CFR - XML import'!$A1,SEARCH(\">\",'CFR - XML import'!$A1,1)+1,SEARCH(\"/\",'CFR - XML import'!$A1,1)-SEARCH(\">\",'CFR - XML import'!$A1,1)-2)))","v":0},{"$f":"IF(ISERROR(FIND(BZ$3,'CFR - XML import'!$A1)),0,VALUE(MID('CFR - XML import'!$A1,SEARCH(\">\",'CFR - XML import'!$A1,1)+1,SEARCH(\"/\",'CFR - XML import'!$A1,1)-SEARCH(\">\",'CFR - XML import'!$A1,1)-2)))","v":0},null,null,null,null,null,null,{"$f":"IF(ISERROR(IF(MID('CFR - XML import'!$A1,LEN($CF$4)+1,LEN('CFR - XML import'!$A1)-(2*LEN($CF$4)+1))=\"RMMS\",1,IF(MID('CFR - XML import'!$A1,LEN(\"    <InputSystem>\")+1,LEN('CFR - XML import'!$A1)-(LEN(\"    <InputSystem>\")+LEN($CF$4)+1))=\"SIMS\",2,0))),0,IF(MID('CFR - XML import'!$A1,LEN($CF$4)+1,LEN('CFR - XML import'!$A1)-(2*LEN($CF$4)+1))=\"RMMS\",1,IF(MID('CFR - XML import'!$A1,LEN(\"    <InputSystem>\")+1,LEN('CFR - XML import'!$A1)-(LEN(\"    <InputSystem>\")+LEN($CF$4)+1))=\"SIMS\",2,0)))","v":0},{"$f":"IF(ISERROR(FIND(CH$3,'CFR - XML import'!$A1)),0,MID('CFR - XML import'!$A1,SEARCH(\">\",'CFR - XML import'!$A1,1)+1,SEARCH(\"/\",'CFR - XML import'!$A1,1)-SEARCH(\">\",'CFR - XML import'!$A1,1)-2))","v":0},{"$f":"IF(ISERROR(FIND(CI$3,'CFR - XML import'!$A1)),0,MID('CFR - XML import'!$A1,SEARCH(\">\",'CFR - XML import'!$A1,1)+1,SEARCH(\"/\",'CFR - XML import'!$A1,1)-SEARCH(\">\",'CFR - XML import'!$A1,1)-2))","v":0},{"$f":"IF(ISERROR(FIND(CJ$3,'CFR - XML import'!$A1)),0,MID('CFR - XML import'!$A1,SEARCH(\">\",'CFR - XML import'!$A1,1)+1,SEARCH(\"/\",'CFR - XML import'!$A1,1)-SEARCH(\">\",'CFR - XML import'!$A1,1)-2))","v":0},{"$f":"IF(ISERROR(FIND(CK$3,'CFR - XML import'!$A1)),0,MID('CFR - XML import'!$A1,SEARCH(\">\",'CFR - XML import'!$A1,1)+1,SEARCH(\"/\",'CFR - XML import'!$A1,1)-SEARCH(\">\",'CFR - XML import'!$A1,1)-2))","v":0},{"$f":"IF(ISERROR(FIND(CL$3,'CFR - XML import'!$A1)),0,MID('CFR - XML import'!$A1,SEARCH(\">\",'CFR - XML import'!$A1,1)+1,SEARCH(\"/\",'CFR - XML import'!$A1,1)-SEARCH(\">\",'CFR - XML import'!$A1,1)-2))","v":0}]
[{"$f":"IF(AND('CFR - XML import'!A2<>\"\",LEFT('CFR - XML import'!A2,1)<>\"<\",LEFT('CFR - XML import'!A2,3)<>\"  <\",LEFT('CFR - XML import'!A2,5)<>\"    <\",LEFT('CFR - XML import'!A2,7)<>\"      <\",LEFT('CFR - XML import'!A2,9)<>\"        <\",$B$1=\"SIMS\"),'CFR - XML import'!A2,IF(AND(LEFT('CFR - XML import'!A2,9)=\"<Details>\",$B$1=\"RM\"),'CFR - XML import'!A2,\"\"))","v":""},{"$f":"IF(ISERROR(FIND(B$3,'CFR - XML import'!$A2)),0,VALUE(MID('CFR - XML import'!$A2,SEARCH(\">\",'CFR - XML import'!$A2,1)+1,SEARCH(\"/\",'CFR - XML import'!$A2,1)-SEARCH(\">\",'CFR - XML import'!$A2,1)-2)))","v":0},null,{"$f":"IF(ISERROR(FIND(D$3,'CFR - XML import'!$A2)),0,MID('CFR - XML import'!$A2,SEARCH(\">\",'CFR - XML import'!$A2,1)+1,SEARCH(\"/\",'CFR - XML import'!$A2,1)-SEARCH(\">\",'CFR - XML import'!$A2,1)-2))","v":0},{"$f":"IF(ISERROR(FIND(E$3,'CFR - XML import'!$A2)),0,MID('CFR - XML import'!$A2,SEARCH(\">\",'CFR - XML import'!$A2,1)+1,SEARCH(\"/\",'CFR - XML import'!$A2,1)-SEARCH(\">\",'CFR - XML import'!$A2,1)-2))","v":0},{"$f":"IF($B$1=\"SIMS\",IF(ISERROR(FIND(F$3,'CFR - XML import'!$A2)),0,VALUE(MID('CFR - XML import'!$A2,15,10))),IF(ISERROR(FIND(F$3,'CFR - XML import'!$A2)),0,VALUE(MID('CFR - XML import'!$A2,11,10))))","v":"00:00:00"},{"$f":"IF(ISERROR(FIND(G$3,'CFR - XML import'!$A2)),0,VALUE(MID('CFR - XML import'!$A2,SEARCH(\">\",'CFR - XML import'!$A2,1)+1,SEARCH(\"/\",'CFR - XML import'!$A2,1)-SEARCH(\">\",'CFR - XML import'!$A2,1)-2)))","v":0},{"$f":"IF(ISERROR(FIND(H$3,'CFR - XML import'!$A2)),0,VALUE(MID('CFR - XML import'!$A2,SEARCH(\">\",'CFR - XML import'!$A2,1)+1,SEARCH(\"/\",'CFR - XML import'!$A2,1)-SEARCH(\">\",'CFR - XML import'!$A2,1)-2)))","v":0},{"$f":"IF(ISERROR(FIND(I$3,'CFR - XML import'!$A2)),0,VALUE(MID('CFR - XML import'!$A2,SEARCH(\">\",'CFR - XML import'!$A2,1)+1,SEARCH(\"/\",'CFR - XML import'!$A2,1)-SEARCH(\">\",'CFR - XML import'!$A2,1)-2)))","v":0},{"$f":"IF(ISERROR(FIND(J$3,'CFR - XML import'!$A2)),0,VALUE(MID('CFR - XML import'!$A2,SEARCH(\">\",'CFR - XML import'!$A2,1)+1,SEARCH(\"/\",'CFR - XML import'!$A2,1)-SEARCH(\">\",'CFR - XML import'!$A2,1)-2)))","v":0},{"$f":"IF(ISERROR(FIND(K$3,'CFR - XML import'!$A2)),0,VALUE(MID('CFR - XML import'!$A2,SEARCH(\">\",'CFR - XML import'!$A2,1)+1,SEARCH(\"/\",'CFR - XML import'!$A2,1)-SEARCH(\">\",'CFR - XML import'!$A2,1)-2)))","v":0},{"$f":"IF(ISERROR(FIND(L$3,'CFR - XML import'!$A2)),0,VALUE(MID('CFR - XML import'!$A2,SEARCH(\">\",'CFR - XML import'!$A2,1)+1,SEARCH(\"/\",'CFR - XML import'!$A2,1)-SEARCH(\">\",'CFR - XML import'!$A2,1)-2)))","v":0},{"$f":"IF(ISERROR(FIND(M$3,'CFR - XML import'!$A2)),0,VALUE(MID('CFR - XML import'!$A2,SEARCH(\">\",'CFR - XML import'!$A2,1)+1,SEARCH(\"/\",'CFR - XML import'!$A2,1)-SEARCH(\">\",'CFR - XML import'!$A2,1)-2)))","v":0},{"$f":"IF(ISERROR(FIND(N$3,'CFR - XML import'!$A2)),0,VALUE(MID('CFR - XML import'!$A2,SEARCH(\">\",'CFR - XML import'!$A2,1)+1,SEARCH(\"/\",'CFR - XML import'!$A2,1)-SEARCH(\">\",'CFR - XML import'!$A2,1)-2)))","v":0},{"$f":"IF(ISERROR(FIND(O$3,'CFR - XML import'!$A2)),0,VALUE(MID('CFR - XML import'!$A2,SEARCH(\">\",'CFR - XML import'!$A2,1)+1,SEARCH(\"/\",'CFR - XML import'!$A2,1)-SEARCH(\">\",'CFR - XML import'!$A2,1)-2)))","v":0},{"$f":"IF(ISERROR(FIND(P$3,'CFR - XML import'!$A2)),0,VALUE(MID('CFR - XML import'!$A2,SEARCH(\">\",'CFR - XML import'!$A2,1)+1,SEARCH(\"/\",'CFR - XML import'!$A2,1)-SEARCH(\">\",'CFR - XML import'!$A2,1)-2)))","v":0},{"$f":"IF(ISERROR(FIND(Q$3,'CFR - XML import'!$A2)),0,VALUE(MID('CFR - XML import'!$A2,SEARCH(\">\",'CFR - XML import'!$A2,1)+1,SEARCH(\"/\",'CFR - XML import'!$A2,1)-SEARCH(\">\",'CFR - XML import'!$A2,1)-2)))","v":0},{"$f":"IF(ISERROR(FIND(R$3,'CFR - XML import'!$A2)),0,VALUE(MID('CFR - XML import'!$A2,SEARCH(\">\",'CFR - XML import'!$A2,1)+1,SEARCH(\"/\",'CFR - XML import'!$A2,1)-SEARCH(\">\",'CFR - XML import'!$A2,1)-2)))","v":0},{"$f":"IF(ISERROR(FIND(S$3,'CFR - XML import'!$A2)),0,VALUE(MID('CFR - XML import'!$A2,SEARCH(\">\",'CFR - XML import'!$A2,1)+1,SEARCH(\"/\",'CFR - XML import'!$A2,1)-SEARCH(\">\",'CFR - XML import'!$A2,1)-2)))","v":0},{"$f":"IF(ISERROR(FIND(T$3,'CFR - XML import'!$A2)),0,VALUE(MID('CFR - XML import'!$A2,SEARCH(\">\",'CFR - XML import'!$A2,1)+1,SEARCH(\"/\",'CFR - XML import'!$A2,1)-SEARCH(\">\",'CFR - XML import'!$A2,1)-2)))","v":0},{"$f":"IF(ISERROR(FIND(U$3,'CFR - XML import'!$A2)),0,VALUE(MID('CFR - XML import'!$A2,SEARCH(\">\",'CFR - XML import'!$A2,1)+1,SEARCH(\"/\",'CFR - XML import'!$A2,1)-SEARCH(\">\",'CFR - XML import'!$A2,1)-2)))","v":0},{"$f":"IF(ISERROR(FIND(V$3,'CFR - XML import'!$A2)),0,VALUE(MID('CFR - XML import'!$A2,SEARCH(\">\",'CFR - XML import'!$A2,1)+1,SEARCH(\"/\",'CFR - XML import'!$A2,1)-SEARCH(\">\",'CFR - XML import'!$A2,1)-2)))","v":0},{"$f":"IF(ISERROR(FIND(W$3,'CFR - XML import'!$A2)),0,VALUE(MID('CFR - XML import'!$A2,SEARCH(\">\",'CFR - XML import'!$A2,1)+1,SEARCH(\"/\",'CFR - XML import'!$A2,1)-SEARCH(\">\",'CFR - XML import'!$A2,1)-2)))","v":0},null,{"$f":"IF(ISERROR(FIND(Y$3,'CFR - XML import'!$A2)),0,VALUE(MID('CFR - XML import'!$A2,SEARCH(\">\",'CFR - XML import'!$A2,1)+1,SEARCH(\"/\",'CFR - XML import'!$A2,1)-SEARCH(\">\",'CFR - XML import'!$A2,1)-2)))","v":0},{"$f":"IF(ISERROR(FIND(Z$3,'CFR - XML import'!$A2)),0,VALUE(MID('CFR - XML import'!$A2,SEARCH(\">\",'CFR - XML import'!$A2,1)+1,SEARCH(\"/\",'CFR - XML import'!$A2,1)-SEARCH(\">\",'CFR - XML import'!$A2,1)-2)))","v":0},{"$f":"IF(ISERROR(FIND(AA$3,'CFR - XML import'!$A2)),0,VALUE(MID('CFR - XML import'!$A2,SEARCH(\">\",'CFR - XML import'!$A2,1)+1,SEARCH(\"/\",'CFR - XML import'!$A2,1)-SEARCH(\">\",'CFR - XML import'!$A2,1)-2)))","v":0},{"$f":"IF(ISERROR(FIND(AB$3,'CFR - XML import'!$A2)),0,VALUE(MID('CFR - XML import'!$A2,SEARCH(\">\",'CFR - XML import'!$A2,1)+1,SEARCH(\"/\",'CFR - XML import'!$A2,1)-SEARCH(\">\",'CFR - XML import'!$A2,1)-2)))","v":0},{"$f":"IF(ISERROR(FIND(AC$3,'CFR - XML import'!$A2)),0,VALUE(MID('CFR - XML import'!$A2,SEARCH(\">\",'CFR - XML import'!$A2,1)+1,SEARCH(\"/\",'CFR - XML import'!$A2,1)-SEARCH(\">\",'CFR - XML import'!$A2,1)-2)))","v":0},{"$f":"IF(ISERROR(FIND(AD$3,'CFR - XML import'!$A2)),0,VALUE(MID('CFR - XML import'!$A2,SEARCH(\">\",'CFR - XML import'!$A2,1)+1,SEARCH(\"/\",'CFR - XML import'!$A2,1)-SEARCH(\">\",'CFR - XML import'!$A2,1)-2)))","v":0},{"$f":"IF(ISERROR(FIND(AE$3,'CFR - XML import'!$A2)),0,VALUE(MID('CFR - XML import'!$A2,SEARCH(\">\",'CFR - XML import'!$A2,1)+1,SEARCH(\"/\",'CFR - XML import'!$A2,1)-SEARCH(\">\",'CFR - XML import'!$A2,1)-2)))","v":0},{"$f":"IF(ISERROR(FIND(AF$3,'CFR - XML import'!$A2)),0,VALUE(MID('CFR - XML import'!$A2,SEARCH(\">\",'CFR - XML import'!$A2,1)+1,SEARCH(\"/\",'CFR - XML import'!$A2,1)-SEARCH(\">\",'CFR - XML import'!$A2,1)-2)))","v":0},{"$f":"IF(ISERROR(FIND(AG$3,'CFR - XML import'!$A2)),0,VALUE(MID('CFR - XML import'!$A2,SEARCH(\">\",'CFR - XML import'!$A2,1)+1,SEARCH(\"/\",'CFR - XML import'!$A2,1)-SEARCH(\">\",'CFR - XML import'!$A2,1)-2)))","v":0},{"$f":"IF(ISERROR(FIND(AH$3,'CFR - XML import'!$A2)),0,VALUE(MID('CFR - XML import'!$A2,SEARCH(\">\",'CFR - XML import'!$A2,1)+1,SEARCH(\"/\",'CFR - XML import'!$A2,1)-SEARCH(\">\",'CFR - XML import'!$A2,1)-2)))","v":0},{"$f":"IF(ISERROR(FIND(AI$3,'CFR - XML import'!$A2)),0,VALUE(MID('CFR - XML import'!$A2,SEARCH(\">\",'CFR - XML import'!$A2,1)+1,SEARCH(\"/\",'CFR - XML import'!$A2,1)-SEARCH(\">\",'CFR - XML import'!$A2,1)-2)))","v":0},{"$f":"IF(ISERROR(FIND(AJ$3,'CFR - XML import'!$A2)),0,VALUE(MID('CFR - XML import'!$A2,SEARCH(\">\",'CFR - XML import'!$A2,1)+1,SEARCH(\"/\",'CFR - XML import'!$A2,1)-SEARCH(\">\",'CFR - XML import'!$A2,1)-2)))","v":0},{"$f":"IF(ISERROR(FIND(AK$3,'CFR - XML import'!$A2)),0,VALUE(MID('CFR - XML import'!$A2,SEARCH(\">\",'CFR - XML import'!$A2,1)+1,SEARCH(\"/\",'CFR - XML import'!$A2,1)-SEARCH(\">\",'CFR - XML import'!$A2,1)-2)))","v":0},{"$f":"IF(ISERROR(FIND(AL$3,'CFR - XML import'!$A2)),0,VALUE(MID('CFR - XML import'!$A2,SEARCH(\">\",'CFR - XML import'!$A2,1)+1,SEARCH(\"/\",'CFR - XML import'!$A2,1)-SEARCH(\">\",'CFR - XML import'!$A2,1)-2)))","v":0},{"$f":"IF(ISERROR(FIND(AM$3,'CFR - XML import'!$A2)),0,VALUE(MID('CFR - XML import'!$A2,SEARCH(\">\",'CFR - XML import'!$A2,1)+1,SEARCH(\"/\",'CFR - XML import'!$A2,1)-SEARCH(\">\",'CFR - XML import'!$A2,1)-2)))","v":0},{"$f":"IF(ISERROR(FIND(AN$3,'CFR - XML import'!$A2)),0,VALUE(MID('CFR - XML import'!$A2,SEARCH(\">\",'CFR - XML import'!$A2,1)+1,SEARCH(\"/\",'CFR - XML import'!$A2,1)-SEARCH(\">\",'CFR - XML import'!$A2,1)-2)))","v":0},{"$f":"IF(ISERROR(FIND(AO$3,'CFR - XML import'!$A2)),0,VALUE(MID('CFR - XML import'!$A2,SEARCH(\">\",'CFR - XML import'!$A2,1)+1,SEARCH(\"/\",'CFR - XML import'!$A2,1)-SEARCH(\">\",'CFR - XML import'!$A2,1)-2)))","v":0},{"$f":"IF(ISERROR(FIND(AP$3,'CFR - XML import'!$A2)),0,VALUE(MID('CFR - XML import'!$A2,SEARCH(\">\",'CFR - XML import'!$A2,1)+1,SEARCH(\"/\",'CFR - XML import'!$A2,1)-SEARCH(\">\",'CFR - XML import'!$A2,1)-2)))","v":0},{"$f":"IF(ISERROR(FIND(AQ$3,'CFR - XML import'!$A2)),0,VALUE(MID('CFR - XML import'!$A2,SEARCH(\">\",'CFR - XML import'!$A2,1)+1,SEARCH(\"/\",'CFR - XML import'!$A2,1)-SEARCH(\">\",'CFR - XML import'!$A2,1)-2)))","v":0},{"$f":"IF(ISERROR(FIND(AR$3,'CFR - XML import'!$A2)),0,VALUE(MID('CFR - XML import'!$A2,SEARCH(\">\",'CFR - XML import'!$A2,1)+1,SEARCH(\"/\",'CFR - XML import'!$A2,1)-SEARCH(\">\",'CFR - XML import'!$A2,1)-2)))","v":0},{"$f":"IF(ISERROR(FIND(AS$3,'CFR - XML import'!$A2)),0,VALUE(MID('CFR - XML import'!$A2,SEARCH(\">\",'CFR - XML import'!$A2,1)+1,SEARCH(\"/\",'CFR - XML import'!$A2,1)-SEARCH(\">\",'CFR - XML import'!$A2,1)-2)))","v":0},{"$f":"IF(ISERROR(FIND(AT$3,'CFR - XML import'!$A2)),0,VALUE(MID('CFR - XML import'!$A2,SEARCH(\">\",'CFR - XML import'!$A2,1)+1,SEARCH(\"/\",'CFR - XML import'!$A2,1)-SEARCH(\">\",'CFR - XML import'!$A2,1)-2)))","v":0},{"$f":"IF(ISERROR(FIND(AU$3,'CFR - XML import'!$A2)),0,VALUE(MID('CFR - XML import'!$A2,SEARCH(\">\",'CFR - XML import'!$A2,1)+1,SEARCH(\"/\",'CFR - XML import'!$A2,1)-SEARCH(\">\",'CFR - XML import'!$A2,1)-2)))","v":0},{"$f":"IF(ISERROR(FIND(AV$3,'CFR - XML import'!$A2)),0,VALUE(MID('CFR - XML import'!$A2,SEARCH(\">\",'CFR - XML import'!$A2,1)+1,SEARCH(\"/\",'CFR - XML import'!$A2,1)-SEARCH(\">\",'CFR - XML import'!$A2,1)-2)))","v":0},{"$f":"IF(ISERROR(FIND(AW$3,'CFR - XML import'!$A2)),0,VALUE(MID('CFR - XML import'!$A2,SEARCH(\">\",'CFR - XML import'!$A2,1)+1,SEARCH(\"/\",'CFR - XML import'!$A2,1)-SEARCH(\">\",'CFR - XML import'!$A2,1)-2)))","v":0},{"$f":"IF(ISERROR(FIND(AX$3,'CFR - XML import'!$A2)),0,VALUE(MID('CFR - XML import'!$A2,SEARCH(\">\",'CFR - XML import'!$A2,1)+1,SEARCH(\"/\",'CFR - XML import'!$A2,1)-SEARCH(\">\",'CFR - XML import'!$A2,1)-2)))","v":0},{"$f":"IF(ISERROR(FIND(AY$3,'CFR - XML import'!$A2)),0,VALUE(MID('CFR - XML import'!$A2,SEARCH(\">\",'CFR - XML import'!$A2,1)+1,SEARCH(\"/\",'CFR - XML import'!$A2,1)-SEARCH(\">\",'CFR - XML import'!$A2,1)-2)))","v":0},{"$f":"IF(ISERROR(FIND(AZ$3,'CFR - XML import'!$A2)),0,VALUE(MID('CFR - XML import'!$A2,SEARCH(\">\",'CFR - XML import'!$A2,1)+1,SEARCH(\"/\",'CFR - XML import'!$A2,1)-SEARCH(\">\",'CFR - XML import'!$A2,1)-2)))","v":0},{"$f":"IF(ISERROR(FIND(BA$3,'CFR - XML import'!$A2)),0,VALUE(MID('CFR - XML import'!$A2,SEARCH(\">\",'CFR - XML import'!$A2,1)+1,SEARCH(\"/\",'CFR - XML import'!$A2,1)-SEARCH(\">\",'CFR - XML import'!$A2,1)-2)))","v":0},{"$f":"IF(ISERROR(FIND(BB$3,'CFR - XML import'!$A2)),0,VALUE(MID('CFR - XML import'!$A2,SEARCH(\">\",'CFR - XML import'!$A2,1)+1,SEARCH(\"/\",'CFR - XML import'!$A2,1)-SEARCH(\">\",'CFR - XML import'!$A2,1)-2)))","v":0},{"$f":"IF(ISERROR(FIND(BC$3,'CFR - XML import'!$A2)),0,VALUE(MID('CFR - XML import'!$A2,SEARCH(\">\",'CFR - XML import'!$A2,1)+1,SEARCH(\"/\",'CFR - XML import'!$A2,1)-SEARCH(\">\",'CFR - XML import'!$A2,1)-2)))","v":0},{"$f":"IF(ISERROR(FIND(BD$3,'CFR - XML import'!$A2)),0,VALUE(MID('CFR - XML import'!$A2,SEARCH(\">\",'CFR - XML import'!$A2,1)+1,SEARCH(\"/\",'CFR - XML import'!$A2,1)-SEARCH(\">\",'CFR - XML import'!$A2,1)-2)))","v":0},{"$f":"IF(ISERROR(FIND(BE$3,'CFR - XML import'!$A2)),0,VALUE(MID('CFR - XML import'!$A2,SEARCH(\">\",'CFR - XML import'!$A2,1)+1,SEARCH(\"/\",'CFR - XML import'!$A2,1)-SEARCH(\">\",'CFR - XML import'!$A2,1)-2)))","v":0},{"$f":"IF(ISERROR(FIND(BF$3,'CFR - XML import'!$A2)),0,VALUE(MID('CFR - XML import'!$A2,SEARCH(\">\",'CFR - XML import'!$A2,1)+1,SEARCH(\"/\",'CFR - XML import'!$A2,1)-SEARCH(\">\",'CFR - XML import'!$A2,1)-2)))","v":0},{"$f":"IF(ISERROR(FIND(BG$3,'CFR - XML import'!$A2)),0,VALUE(MID('CFR - XML import'!$A2,SEARCH(\">\",'CFR - XML import'!$A2,1)+1,SEARCH(\"/\",'CFR - XML import'!$A2,1)-SEARCH(\">\",'CFR - XML import'!$A2,1)-2)))","v":0},{"$f":"IF(ISERROR(FIND(BH$3,'CFR - XML import'!$A2)),0,VALUE(MID('CFR - XML import'!$A2,SEARCH(\">\",'CFR - XML import'!$A2,1)+1,SEARCH(\"/\",'CFR - XML import'!$A2,1)-SEARCH(\">\",'CFR - XML import'!$A2,1)-2)))","v":0},{"$f":"IF(ISERROR(FIND(BI$3,'CFR - XML import'!$A2)),0,VALUE(MID('CFR - XML import'!$A2,SEARCH(\">\",'CFR - XML import'!$A2,1)+1,SEARCH(\"/\",'CFR - XML import'!$A2,1)-SEARCH(\">\",'CFR - XML import'!$A2,1)-2)))","v":0},{"$f":"IF(ISERROR(FIND(BJ$3,'CFR - XML import'!$A2)),0,VALUE(MID('CFR - XML import'!$A2,SEARCH(\">\",'CFR - XML import'!$A2,1)+1,SEARCH(\"/\",'CFR - XML import'!$A2,1)-SEARCH(\">\",'CFR - XML import'!$A2,1)-2)))","v":0},{"$f":"IF(ISERROR(FIND(BK$3,'CFR - XML import'!$A2)),0,VALUE(MID('CFR - XML import'!$A2,SEARCH(\">\",'CFR - XML import'!$A2,1)+1,SEARCH(\"/\",'CFR - XML import'!$A2,1)-SEARCH(\">\",'CFR - XML import'!$A2,1)-2)))","v":0},{"$f":"IF(ISERROR(FIND(BL$3,'CFR - XML import'!$A2)),0,VALUE(MID('CFR - XML import'!$A2,SEARCH(\">\",'CFR - XML import'!$A2,1)+1,SEARCH(\"/\",'CFR - XML import'!$A2,1)-SEARCH(\">\",'CFR - XML import'!$A2,1)-2)))","v":0},{"$f":"IF(ISERROR(FIND(BM$3,'CFR - XML import'!$A2)),0,VALUE(MID('CFR - XML import'!$A2,SEARCH(\">\",'CFR - XML import'!$A2,1)+1,SEARCH(\"/\",'CFR - XML import'!$A2,1)-SEARCH(\">\",'CFR - XML import'!$A2,1)-2)))","v":0},{"$f":"IF(ISERROR(FIND(BN$3,'CFR - XML import'!$A2)),0,VALUE(MID('CFR - XML import'!$A2,SEARCH(\">\",'CFR - XML import'!$A2,1)+1,SEARCH(\"/\",'CFR - XML import'!$A2,1)-SEARCH(\">\",'CFR - XML import'!$A2,1)-2)))","v":0},{"$f":"IF(ISERROR(FIND(BO$3,'CFR - XML import'!$A2)),0,VALUE(MID('CFR - XML import'!$A2,SEARCH(\">\",'CFR - XML import'!$A2,1)+1,SEARCH(\"/\",'CFR - XML import'!$A2,1)-SEARCH(\">\",'CFR - XML import'!$A2,1)-2)))","v":0},{"$f":"IF(ISERROR(FIND(BP$3,'CFR - XML import'!$A2)),0,VALUE(MID('CFR - XML import'!$A2,SEARCH(\">\",'CFR - XML import'!$A2,1)+1,SEARCH(\"/\",'CFR - XML import'!$A2,1)-SEARCH(\">\",'CFR - XML import'!$A2,1)-2)))","v":0},{"$f":"IF(ISERROR(FIND(BQ$3,'CFR - XML import'!$A2)),0,VALUE(MID('CFR - XML import'!$A2,SEARCH(\">\",'CFR - XML import'!$A2,1)+1,SEARCH(\"/\",'CFR - XML import'!$A2,1)-SEARCH(\">\",'CFR - XML import'!$A2,1)-2)))","v":0},{"$f":"IF(ISERROR(FIND(BR$3,'CFR - XML import'!$A2)),0,VALUE(MID('CFR - XML import'!$A2,SEARCH(\">\",'CFR - XML import'!$A2,1)+1,SEARCH(\"/\",'CFR - XML import'!$A2,1)-SEARCH(\">\",'CFR - XML import'!$A2,1)-2)))","v":0},{"$f":"IF(ISERROR(FIND(BS$3,'CFR - XML import'!$A2)),0,VALUE(MID('CFR - XML import'!$A2,SEARCH(\">\",'CFR - XML import'!$A2,1)+1,SEARCH(\"/\",'CFR - XML import'!$A2,1)-SEARCH(\">\",'CFR - XML import'!$A2,1)-2)))","v":0},{"$f":"IF(ISERROR(FIND(BT$3,'CFR - XML import'!$A2)),0,VALUE(MID('CFR - XML import'!$A2,SEARCH(\">\",'CFR - XML import'!$A2,1)+1,SEARCH(\"/\",'CFR - XML import'!$A2,1)-SEARCH(\">\",'CFR - XML import'!$A2,1)-2)))","v":0},{"$f":"IF(ISERROR(FIND(BU$3,'CFR - XML import'!$A2)),0,VALUE(MID('CFR - XML import'!$A2,SEARCH(\">\",'CFR - XML import'!$A2,1)+1,SEARCH(\"/\",'CFR - XML import'!$A2,1)-SEARCH(\">\",'CFR - XML import'!$A2,1)-2)))","v":0},{"$f":"IF(ISERROR(FIND(BV$3,'CFR - XML import'!$A2)),0,VALUE(MID('CFR - XML import'!$A2,SEARCH(\">\",'CFR - XML import'!$A2,1)+1,SEARCH(\"/\",'CFR - XML import'!$A2,1)-SEARCH(\">\",'CFR - XML import'!$A2,1)-2)))","v":0},{"$f":"IF(ISERROR(FIND(BW$3,'CFR - XML import'!$A2)),0,VALUE(MID('CFR - XML import'!$A2,SEARCH(\">\",'CFR - XML import'!$A2,1)+1,SEARCH(\"/\",'CFR - XML import'!$A2,1)-SEARCH(\">\",'CFR - XML import'!$A2,1)-2)))","v":0},{"$f":"IF(ISERROR(FIND(BX$3,'CFR - XML import'!$A2)),0,VALUE(MID('CFR - XML import'!$A2,SEARCH(\">\",'CFR - XML import'!$A2,1)+1,SEARCH(\"/\",'CFR - XML import'!$A2,1)-SEARCH(\">\",'CFR - XML import'!$A2,1)-2)))","v":0},{"$f":"IF(ISERROR(FIND(BY$3,'CFR - XML import'!$A2)),0,VALUE(MID('CFR - XML import'!$A2,SEARCH(\">\",'CFR - XML import'!$A2,1)+1,SEARCH(\"/\",'CFR - XML import'!$A2,1)-SEARCH(\">\",'CFR - XML import'!$A2,1)-2)))","v":0},{"$f":"IF(ISERROR(FIND(BZ$3,'CFR - XML import'!$A2)),0,VALUE(MID('CFR - XML import'!$A2,SEARCH(\">\",'CFR - XML import'!$A2,1)+1,SEARCH(\"/\",'CFR - XML import'!$A2,1)-SEARCH(\">\",'CFR - XML import'!$A2,1)-2)))","v":0},null,null,null,null,null,null,{"$f":"IF(ISERROR(IF(MID('CFR - XML import'!$A2,LEN($CF$4)+1,LEN('CFR - XML import'!$A2)-(2*LEN($CF$4)+1))=\"RMMS\",1,IF(MID('CFR - XML import'!$A2,LEN(\"    <InputSystem>\")+1,LEN('CFR - XML import'!$A2)-(LEN(\"    <InputSystem>\")+LEN($CF$4)+1))=\"SIMS\",2,0))),0,IF(MID('CFR - XML import'!$A2,LEN($CF$4)+1,LEN('CFR - XML import'!$A2)-(2*LEN($CF$4)+1))=\"RMMS\",1,IF(MID('CFR - XML import'!$A2,LEN(\"    <InputSystem>\")+1,LEN('CFR - XML import'!$A2)-(LEN(\"    <InputSystem>\")+LEN($CF$4)+1))=\"SIMS\",2,0)))","v":0},{"$f":"IF(ISERROR(FIND(CH$3,'CFR - XML import'!$A2)),0,MID('CFR - XML import'!$A2,SEARCH(\">\",'CFR - XML import'!$A2,1)+1,SEARCH(\"/\",'CFR - XML import'!$A2,1)-SEARCH(\">\",'CFR - XML import'!$A2,1)-2))","v":0},{"$f":"IF(ISERROR(FIND(CI$3,'CFR - XML import'!$A2)),0,MID('CFR - XML import'!$A2,SEARCH(\">\",'CFR - XML import'!$A2,1)+1,SEARCH(\"/\",'CFR - XML import'!$A2,1)-SEARCH(\">\",'CFR - XML import'!$A2,1)-2))","v":0},{"$f":"IF(ISERROR(FIND(CJ$3,'CFR - XML import'!$A2)),0,MID('CFR - XML import'!$A2,SEARCH(\">\",'CFR - XML import'!$A2,1)+1,SEARCH(\"/\",'CFR - XML import'!$A2,1)-SEARCH(\">\",'CFR - XML import'!$A2,1)-2))","v":0},{"$f":"IF(ISERROR(FIND(CK$3,'CFR - XML import'!$A2)),0,MID('CFR - XML import'!$A2,SEARCH(\">\",'CFR - XML import'!$A2,1)+1,SEARCH(\"/\",'CFR - XML import'!$A2,1)-SEARCH(\">\",'CFR - XML import'!$A2,1)-2))","v":0},{"$f":"IF(ISERROR(FIND(CL$3,'CFR - XML import'!$A2)),0,MID('CFR - XML import'!$A2,SEARCH(\">\",'CFR - XML import'!$A2,1)+1,SEARCH(\"/\",'CFR - XML import'!$A2,1)-SEARCH(\">\",'CFR - XML import'!$A2,1)-2))","v":0}]
[{"$f":"IF(AND('CFR - XML import'!A3<>\"\",LEFT('CFR - XML import'!A3,1)<>\"<\",LEFT('CFR - XML import'!A3,3)<>\"  <\",LEFT('CFR - XML import'!A3,5)<>\"    <\",LEFT('CFR - XML import'!A3,7)<>\"      <\",LEFT('CFR - XML import'!A3,9)<>\"        <\",$B$1=\"SIMS\"),'CFR - XML import'!A3,IF(AND(LEFT('CFR - XML import'!A3,9)=\"<Details>\",$B$1=\"RM\"),'CFR - XML import'!A3,\"\"))","v":""},{"$f":"IF(ISERROR(FIND(B$3,'CFR - XML import'!$A3)),0,VALUE(MID('CFR - XML import'!$A3,SEARCH(\">\",'CFR - XML import'!$A3,1)+1,SEARCH(\"/\",'CFR - XML import'!$A3,1)-SEARCH(\">\",'CFR - XML import'!$A3,1)-2)))","v":0},null,{"$f":"IF(ISERROR(FIND(D$3,'CFR - XML import'!$A3)),0,MID('CFR - XML import'!$A3,SEARCH(\">\",'CFR - XML import'!$A3,1)+1,SEARCH(\"/\",'CFR - XML import'!$A3,1)-SEARCH(\">\",'CFR - XML import'!$A3,1)-2))","v":0},{"$f":"IF(ISERROR(FIND(E$3,'CFR - XML import'!$A3)),0,MID('CFR - XML import'!$A3,SEARCH(\">\",'CFR - XML import'!$A3,1)+1,SEARCH(\"/\",'CFR - XML import'!$A3,1)-SEARCH(\">\",'CFR - XML import'!$A3,1)-2))","v":0},{"$f":"IF($B$1=\"SIMS\",IF(ISERROR(FIND(F$3,'CFR - XML import'!$A3)),0,VALUE(MID('CFR - XML import'!$A3,15,10))),IF(ISERROR(FIND(F$3,'CFR - XML import'!$A3)),0,VALUE(MID('CFR - XML import'!$A3,11,10))))","v":"00:00:00"},{"$f":"IF(ISERROR(FIND(G$3,'CFR - XML import'!$A3)),0,VALUE(MID('CFR - XML import'!$A3,SEARCH(\">\",'CFR - XML import'!$A3,1)+1,SEARCH(\"/\",'CFR - XML import'!$A3,1)-SEARCH(\">\",'CFR - XML import'!$A3,1)-2)))","v":0},{"$f":"IF(ISERROR(FIND(H$3,'CFR - XML import'!$A3)),0,VALUE(MID('CFR - XML import'!$A3,SEARCH(\">\",'CFR - XML import'!$A3,1)+1,SEARCH(\"/\",'CFR - XML import'!$A3,1)-SEARCH(\">\",'CFR - XML import'!$A3,1)-2)))","v":0},{"$f":"IF(ISERROR(FIND(I$3,'CFR - XML import'!$A3)),0,VALUE(MID('CFR - XML import'!$A3,SEARCH(\">\",'CFR - XML import'!$A3,1)+1,SEARCH(\"/\",'CFR - XML import'!$A3,1)-SEARCH(\">\",'CFR - XML import'!$A3,1)-2)))","v":0},{"$f":"IF(ISERROR(FIND(J$3,'CFR - XML import'!$A3)),0,VALUE(MID('CFR - XML import'!$A3,SEARCH(\">\",'CFR - XML import'!$A3,1)+1,SEARCH(\"/\",'CFR - XML import'!$A3,1)-SEARCH(\">\",'CFR - XML import'!$A3,1)-2)))","v":0},{"$f":"IF(ISERROR(FIND(K$3,'CFR - XML import'!$A3)),0,VALUE(MID('CFR - XML import'!$A3,SEARCH(\">\",'CFR - XML import'!$A3,1)+1,SEARCH(\"/\",'CFR - XML import'!$A3,1)-SEARCH(\">\",'CFR - XML import'!$A3,1)-2)))","v":0},{"$f":"IF(ISERROR(FIND(L$3,'CFR - XML import'!$A3)),0,VALUE(MID('CFR - XML import'!$A3,SEARCH(\">\",'CFR - XML import'!$A3,1)+1,SEARCH(\"/\",'CFR - XML import'!$A3,1)-SEARCH(\">\",'CFR - XML import'!$A3,1)-2)))","v":0},{"$f":"IF(ISERROR(FIND(M$3,'CFR - XML import'!$A3)),0,VALUE(MID('CFR - XML import'!$A3,SEARCH(\">\",'CFR - XML import'!$A3,1)+1,SEARCH(\"/\",'CFR - XML import'!$A3,1)-SEARCH(\">\",'CFR - XML import'!$A3,1)-2)))","v":0},{"$f":"IF(ISERROR(FIND(N$3,'CFR - XML import'!$A3)),0,VALUE(MID('CFR - XML import'!$A3,SEARCH(\">\",'CFR - XML import'!$A3,1)+1,SEARCH(\"/\",'CFR - XML import'!$A3,1)-SEARCH(\">\",'CFR - XML import'!$A3,1)-2)))","v":0},{"$f":"IF(ISERROR(FIND(O$3,'CFR - XML import'!$A3)),0,VALUE(MID('CFR - XML import'!$A3,SEARCH(\">\",'CFR - XML import'!$A3,1)+1,SEARCH(\"/\",'CFR - XML import'!$A3,1)-SEARCH(\">\",'CFR - XML import'!$A3,1)-2)))","v":0},{"$f":"IF(ISERROR(FIND(P$3,'CFR - XML import'!$A3)),0,VALUE(MID('CFR - XML import'!$A3,SEARCH(\">\",'CFR - XML import'!$A3,1)+1,SEARCH(\"/\",'CFR - XML import'!$A3,1)-SEARCH(\">\",'CFR - XML import'!$A3,1)-2)))","v":0},{"$f":"IF(ISERROR(FIND(Q$3,'CFR - XML import'!$A3)),0,VALUE(MID('CFR - XML import'!$A3,SEARCH(\">\",'CFR - XML import'!$A3,1)+1,SEARCH(\"/\",'CFR - XML import'!$A3,1)-SEARCH(\">\",'CFR - XML import'!$A3,1)-2)))","v":0},{"$f":"IF(ISERROR(FIND(R$3,'CFR - XML import'!$A3)),0,VALUE(MID('CFR - XML import'!$A3,SEARCH(\">\",'CFR - XML import'!$A3,1)+1,SEARCH(\"/\",'CFR - XML import'!$A3,1)-SEARCH(\">\",'CFR - XML import'!$A3,1)-2)))","v":0},{"$f":"IF(ISERROR(FIND(S$3,'CFR - XML import'!$A3)),0,VALUE(MID('CFR - XML import'!$A3,SEARCH(\">\",'CFR - XML import'!$A3,1)+1,SEARCH(\"/\",'CFR - XML import'!$A3,1)-SEARCH(\">\",'CFR - XML import'!$A3,1)-2)))","v":0},{"$f":"IF(ISERROR(FIND(T$3,'CFR - XML import'!$A3)),0,VALUE(MID('CFR - XML import'!$A3,SEARCH(\">\",'CFR - XML import'!$A3,1)+1,SEARCH(\"/\",'CFR - XML import'!$A3,1)-SEARCH(\">\",'CFR - XML import'!$A3,1)-2)))","v":0},{"$f":"IF(ISERROR(FIND(U$3,'CFR - XML import'!$A3)),0,VALUE(MID('CFR - XML import'!$A3,SEARCH(\">\",'CFR - XML import'!$A3,1)+1,SEARCH(\"/\",'CFR - XML import'!$A3,1)-SEARCH(\">\",'CFR - XML import'!$A3,1)-2)))","v":0},{"$f":"IF(ISERROR(FIND(V$3,'CFR - XML import'!$A3)),0,VALUE(MID('CFR - XML import'!$A3,SEARCH(\">\",'CFR - XML import'!$A3,1)+1,SEARCH(\"/\",'CFR - XML import'!$A3,1)-SEARCH(\">\",'CFR - XML import'!$A3,1)-2)))","v":0},{"$f":"IF(ISERROR(FIND(W$3,'CFR - XML import'!$A3)),0,VALUE(MID('CFR - XML import'!$A3,SEARCH(\">\",'CFR - XML import'!$A3,1)+1,SEARCH(\"/\",'CFR - XML import'!$A3,1)-SEARCH(\">\",'CFR - XML import'!$A3,1)-2)))","v":0},null,{"$f":"IF(ISERROR(FIND(Y$3,'CFR - XML import'!$A3)),0,VALUE(MID('CFR - XML import'!$A3,SEARCH(\">\",'CFR - XML import'!$A3,1)+1,SEARCH(\"/\",'CFR - XML import'!$A3,1)-SEARCH(\">\",'CFR - XML import'!$A3,1)-2)))","v":0},{"$f":"IF(ISERROR(FIND(Z$3,'CFR - XML import'!$A3)),0,VALUE(MID('CFR - XML import'!$A3,SEARCH(\">\",'CFR - XML import'!$A3,1)+1,SEARCH(\"/\",'CFR - XML import'!$A3,1)-SEARCH(\">\",'CFR - XML import'!$A3,1)-2)))","v":0},{"$f":"IF(ISERROR(FIND(AA$3,'CFR - XML import'!$A3)),0,VALUE(MID('CFR - XML import'!$A3,SEARCH(\">\",'CFR - XML import'!$A3,1)+1,SEARCH(\"/\",'CFR - XML import'!$A3,1)-SEARCH(\">\",'CFR - XML import'!$A3,1)-2)))","v":0},{"$f":"IF(ISERROR(FIND(AB$3,'CFR - XML import'!$A3)),0,VALUE(MID('CFR - XML import'!$A3,SEARCH(\">\",'CFR - XML import'!$A3,1)+1,SEARCH(\"/\",'CFR - XML import'!$A3,1)-SEARCH(\">\",'CFR - XML import'!$A3,1)-2)))","v":0},{"$f":"IF(ISERROR(FIND(AC$3,'CFR - XML import'!$A3)),0,VALUE(MID('CFR - XML import'!$A3,SEARCH(\">\",'CFR - XML import'!$A3,1)+1,SEARCH(\"/\",'CFR - XML import'!$A3,1)-SEARCH(\">\",'CFR - XML import'!$A3,1)-2)))","v":0},{"$f":"IF(ISERROR(FIND(AD$3,'CFR - XML import'!$A3)),0,VALUE(MID('CFR - XML import'!$A3,SEARCH(\">\",'CFR - XML import'!$A3,1)+1,SEARCH(\"/\",'CFR - XML import'!$A3,1)-SEARCH(\">\",'CFR - XML import'!$A3,1)-2)))","v":0},{"$f":"IF(ISERROR(FIND(AE$3,'CFR - XML import'!$A3)),0,VALUE(MID('CFR - XML import'!$A3,SEARCH(\">\",'CFR - XML import'!$A3,1)+1,SEARCH(\"/\",'CFR - XML import'!$A3,1)-SEARCH(\">\",'CFR - XML import'!$A3,1)-2)))","v":0},{"$f":"IF(ISERROR(FIND(AF$3,'CFR - XML import'!$A3)),0,VALUE(MID('CFR - XML import'!$A3,SEARCH(\">\",'CFR - XML import'!$A3,1)+1,SEARCH(\"/\",'CFR - XML import'!$A3,1)-SEARCH(\">\",'CFR - XML import'!$A3,1)-2)))","v":0},{"$f":"IF(ISERROR(FIND(AG$3,'CFR - XML import'!$A3)),0,VALUE(MID('CFR - XML import'!$A3,SEARCH(\">\",'CFR - XML import'!$A3,1)+1,SEARCH(\"/\",'CFR - XML import'!$A3,1)-SEARCH(\">\",'CFR - XML import'!$A3,1)-2)))","v":0},{"$f":"IF(ISERROR(FIND(AH$3,'CFR - XML import'!$A3)),0,VALUE(MID('CFR - XML import'!$A3,SEARCH(\">\",'CFR - XML import'!$A3,1)+1,SEARCH(\"/\",'CFR - XML import'!$A3,1)-SEARCH(\">\",'CFR - XML import'!$A3,1)-2)))","v":0},{"$f":"IF(ISERROR(FIND(AI$3,'CFR - XML import'!$A3)),0,VALUE(MID('CFR - XML import'!$A3,SEARCH(\">\",'CFR - XML import'!$A3,1)+1,SEARCH(\"/\",'CFR - XML import'!$A3,1)-SEARCH(\">\",'CFR - XML import'!$A3,1)-2)))","v":0},{"$f":"IF(ISERROR(FIND(AJ$3,'CFR - XML import'!$A3)),0,VALUE(MID('CFR - XML import'!$A3,SEARCH(\">\",'CFR - XML import'!$A3,1)+1,SEARCH(\"/\",'CFR - XML import'!$A3,1)-SEARCH(\">\",'CFR - XML import'!$A3,1)-2)))","v":0},{"$f":"IF(ISERROR(FIND(AK$3,'CFR - XML import'!$A3)),0,VALUE(MID('CFR - XML import'!$A3,SEARCH(\">\",'CFR - XML import'!$A3,1)+1,SEARCH(\"/\",'CFR - XML import'!$A3,1)-SEARCH(\">\",'CFR - XML import'!$A3,1)-2)))","v":0},{"$f":"IF(ISERROR(FIND(AL$3,'CFR - XML import'!$A3)),0,VALUE(MID('CFR - XML import'!$A3,SEARCH(\">\",'CFR - XML import'!$A3,1)+1,SEARCH(\"/\",'CFR - XML import'!$A3,1)-SEARCH(\">\",'CFR - XML import'!$A3,1)-2)))","v":0},{"$f":"IF(ISERROR(FIND(AM$3,'CFR - XML import'!$A3)),0,VALUE(MID('CFR - XML import'!$A3,SEARCH(\">\",'CFR - XML import'!$A3,1)+1,SEARCH(\"/\",'CFR - XML import'!$A3,1)-SEARCH(\">\",'CFR - XML import'!$A3,1)-2)))","v":0},{"$f":"IF(ISERROR(FIND(AN$3,'CFR - XML import'!$A3)),0,VALUE(MID('CFR - XML import'!$A3,SEARCH(\">\",'CFR - XML import'!$A3,1)+1,SEARCH(\"/\",'CFR - XML import'!$A3,1)-SEARCH(\">\",'CFR - XML import'!$A3,1)-2)))","v":0},{"$f":"IF(ISERROR(FIND(AO$3,'CFR - XML import'!$A3)),0,VALUE(MID('CFR - XML import'!$A3,SEARCH(\">\",'CFR - XML import'!$A3,1)+1,SEARCH(\"/\",'CFR - XML import'!$A3,1)-SEARCH(\">\",'CFR - XML import'!$A3,1)-2)))","v":0},{"$f":"IF(ISERROR(FIND(AP$3,'CFR - XML import'!$A3)),0,VALUE(MID('CFR - XML import'!$A3,SEARCH(\">\",'CFR - XML import'!$A3,1)+1,SEARCH(\"/\",'CFR - XML import'!$A3,1)-SEARCH(\">\",'CFR - XML import'!$A3,1)-2)))","v":0},{"$f":"IF(ISERROR(FIND(AQ$3,'CFR - XML import'!$A3)),0,VALUE(MID('CFR - XML import'!$A3,SEARCH(\">\",'CFR - XML import'!$A3,1)+1,SEARCH(\"/\",'CFR - XML import'!$A3,1)-SEARCH(\">\",'CFR - XML import'!$A3,1)-2)))","v":0},{"$f":"IF(ISERROR(FIND(AR$3,'CFR - XML import'!$A3)),0,VALUE(MID('CFR - XML import'!$A3,SEARCH(\">\",'CFR - XML import'!$A3,1)+1,SEARCH(\"/\",'CFR - XML import'!$A3,1)-SEARCH(\">\",'CFR - XML import'!$A3,1)-2)))","v":0},{"$f":"IF(ISERROR(FIND(AS$3,'CFR - XML import'!$A3)),0,VALUE(MID('CFR - XML import'!$A3,SEARCH(\">\",'CFR - XML import'!$A3,1)+1,SEARCH(\"/\",'CFR - XML import'!$A3,1)-SEARCH(\">\",'CFR - XML import'!$A3,1)-2)))","v":0},{"$f":"IF(ISERROR(FIND(AT$3,'CFR - XML import'!$A3)),0,VALUE(MID('CFR - XML import'!$A3,SEARCH(\">\",'CFR - XML import'!$A3,1)+1,SEARCH(\"/\",'CFR - XML import'!$A3,1)-SEARCH(\">\",'CFR - XML import'!$A3,1)-2)))","v":0},{"$f":"IF(ISERROR(FIND(AU$3,'CFR - XML import'!$A3)),0,VALUE(MID('CFR - XML import'!$A3,SEARCH(\">\",'CFR - XML import'!$A3,1)+1,SEARCH(\"/\",'CFR - XML import'!$A3,1)-SEARCH(\">\",'CFR - XML import'!$A3,1)-2)))","v":0},{"$f":"IF(ISERROR(FIND(AV$3,'CFR - XML import'!$A3)),0,VALUE(MID('CFR - XML import'!$A3,SEARCH(\">\",'CFR - XML import'!$A3,1)+1,SEARCH(\"/\",'CFR - XML import'!$A3,1)-SEARCH(\">\",'CFR - XML import'!$A3,1)-2)))","v":0},{"$f":"IF(ISERROR(FIND(AW$3,'CFR - XML import'!$A3)),0,VALUE(MID('CFR - XML import'!$A3,SEARCH(\">\",'CFR - XML import'!$A3,1)+1,SEARCH(\"/\",'CFR - XML import'!$A3,1)-SEARCH(\">\",'CFR - XML import'!$A3,1)-2)))","v":0},{"$f":"IF(ISERROR(FIND(AX$3,'CFR - XML import'!$A3)),0,VALUE(MID('CFR - XML import'!$A3,SEARCH(\">\",'CFR - XML import'!$A3,1)+1,SEARCH(\"/\",'CFR - XML import'!$A3,1)-SEARCH(\">\",'CFR - XML import'!$A3,1)-2)))","v":0},{"$f":"IF(ISERROR(FIND(AY$3,'CFR - XML import'!$A3)),0,VALUE(MID('CFR - XML import'!$A3,SEARCH(\">\",'CFR - XML import'!$A3,1)+1,SEARCH(\"/\",'CFR - XML import'!$A3,1)-SEARCH(\">\",'CFR - XML import'!$A3,1)-2)))","v":0},{"$f":"IF(ISERROR(FIND(AZ$3,'CFR - XML import'!$A3)),0,VALUE(MID('CFR - XML import'!$A3,SEARCH(\">\",'CFR - XML import'!$A3,1)+1,SEARCH(\"/\",'CFR - XML import'!$A3,1)-SEARCH(\">\",'CFR - XML import'!$A3,1)-2)))","v":0},{"$f":"IF(ISERROR(FIND(BA$3,'CFR - XML import'!$A3)),0,VALUE(MID('CFR - XML import'!$A3,SEARCH(\">\",'CFR - XML import'!$A3,1)+1,SEARCH(\"/\",'CFR - XML import'!$A3,1)-SEARCH(\">\",'CFR - XML import'!$A3,1)-2)))","v":0},{"$f":"IF(ISERROR(FIND(BB$3,'CFR - XML import'!$A3)),0,VALUE(MID('CFR - XML import'!$A3,SEARCH(\">\",'CFR - XML import'!$A3,1)+1,SEARCH(\"/\",'CFR - XML import'!$A3,1)-SEARCH(\">\",'CFR - XML import'!$A3,1)-2)))","v":0},{"$f":"IF(ISERROR(FIND(BC$3,'CFR - XML import'!$A3)),0,VALUE(MID('CFR - XML import'!$A3,SEARCH(\">\",'CFR - XML import'!$A3,1)+1,SEARCH(\"/\",'CFR - XML import'!$A3,1)-SEARCH(\">\",'CFR - XML import'!$A3,1)-2)))","v":0},{"$f":"IF(ISERROR(FIND(BD$3,'CFR - XML import'!$A3)),0,VALUE(MID('CFR - XML import'!$A3,SEARCH(\">\",'CFR - XML import'!$A3,1)+1,SEARCH(\"/\",'CFR - XML import'!$A3,1)-SEARCH(\">\",'CFR - XML import'!$A3,1)-2)))","v":0},{"$f":"IF(ISERROR(FIND(BE$3,'CFR - XML import'!$A3)),0,VALUE(MID('CFR - XML import'!$A3,SEARCH(\">\",'CFR - XML import'!$A3,1)+1,SEARCH(\"/\",'CFR - XML import'!$A3,1)-SEARCH(\">\",'CFR - XML import'!$A3,1)-2)))","v":0},{"$f":"IF(ISERROR(FIND(BF$3,'CFR - XML import'!$A3)),0,VALUE(MID('CFR - XML import'!$A3,SEARCH(\">\",'CFR - XML import'!$A3,1)+1,SEARCH(\"/\",'CFR - XML import'!$A3,1)-SEARCH(\">\",'CFR - XML import'!$A3,1)-2)))","v":0},{"$f":"IF(ISERROR(FIND(BG$3,'CFR - XML import'!$A3)),0,VALUE(MID('CFR - XML import'!$A3,SEARCH(\">\",'CFR - XML import'!$A3,1)+1,SEARCH(\"/\",'CFR - XML import'!$A3,1)-SEARCH(\">\",'CFR - XML import'!$A3,1)-2)))","v":0},{"$f":"IF(ISERROR(FIND(BH$3,'CFR - XML import'!$A3)),0,VALUE(MID('CFR - XML import'!$A3,SEARCH(\">\",'CFR - XML import'!$A3,1)+1,SEARCH(\"/\",'CFR - XML import'!$A3,1)-SEARCH(\">\",'CFR - XML import'!$A3,1)-2)))","v":0},{"$f":"IF(ISERROR(FIND(BI$3,'CFR - XML import'!$A3)),0,VALUE(MID('CFR - XML import'!$A3,SEARCH(\">\",'CFR - XML import'!$A3,1)+1,SEARCH(\"/\",'CFR - XML import'!$A3,1)-SEARCH(\">\",'CFR - XML import'!$A3,1)-2)))","v":0},{"$f":"IF(ISERROR(FIND(BJ$3,'CFR - XML import'!$A3)),0,VALUE(MID('CFR - XML import'!$A3,SEARCH(\">\",'CFR - XML import'!$A3,1)+1,SEARCH(\"/\",'CFR - XML import'!$A3,1)-SEARCH(\">\",'CFR - XML import'!$A3,1)-2)))","v":0},{"$f":"IF(ISERROR(FIND(BK$3,'CFR - XML import'!$A3)),0,VALUE(MID('CFR - XML import'!$A3,SEARCH(\">\",'CFR - XML import'!$A3,1)+1,SEARCH(\"/\",'CFR - XML import'!$A3,1)-SEARCH(\">\",'CFR - XML import'!$A3,1)-2)))","v":0},{"$f":"IF(ISERROR(FIND(BL$3,'CFR - XML import'!$A3)),0,VALUE(MID('CFR - XML import'!$A3,SEARCH(\">\",'CFR - XML import'!$A3,1)+1,SEARCH(\"/\",'CFR - XML import'!$A3,1)-SEARCH(\">\",'CFR - XML import'!$A3,1)-2)))","v":0},{"$f":"IF(ISERROR(FIND(BM$3,'CFR - XML import'!$A3)),0,VALUE(MID('CFR - XML import'!$A3,SEARCH(\">\",'CFR - XML import'!$A3,1)+1,SEARCH(\"/\",'CFR - XML import'!$A3,1)-SEARCH(\">\",'CFR - XML import'!$A3,1)-2)))","v":0},{"$f":"IF(ISERROR(FIND(BN$3,'CFR - XML import'!$A3)),0,VALUE(MID('CFR - XML import'!$A3,SEARCH(\">\",'CFR - XML import'!$A3,1)+1,SEARCH(\"/\",'CFR - XML import'!$A3,1)-SEARCH(\">\",'CFR - XML import'!$A3,1)-2)))","v":0},{"$f":"IF(ISERROR(FIND(BO$3,'CFR - XML import'!$A3)),0,VALUE(MID('CFR - XML import'!$A3,SEARCH(\">\",'CFR - XML import'!$A3,1)+1,SEARCH(\"/\",'CFR - XML import'!$A3,1)-SEARCH(\">\",'CFR - XML import'!$A3,1)-2)))","v":0},{"$f":"IF(ISERROR(FIND(BP$3,'CFR - XML import'!$A3)),0,VALUE(MID('CFR - XML import'!$A3,SEARCH(\">\",'CFR - XML import'!$A3,1)+1,SEARCH(\"/\",'CFR - XML import'!$A3,1)-SEARCH(\">\",'CFR - XML import'!$A3,1)-2)))","v":0},{"$f":"IF(ISERROR(FIND(BQ$3,'CFR - XML import'!$A3)),0,VALUE(MID('CFR - XML import'!$A3,SEARCH(\">\",'CFR - XML import'!$A3,1)+1,SEARCH(\"/\",'CFR - XML import'!$A3,1)-SEARCH(\">\",'CFR - XML import'!$A3,1)-2)))","v":0},{"$f":"IF(ISERROR(FIND(BR$3,'CFR - XML import'!$A3)),0,VALUE(MID('CFR - XML import'!$A3,SEARCH(\">\",'CFR - XML import'!$A3,1)+1,SEARCH(\"/\",'CFR - XML import'!$A3,1)-SEARCH(\">\",'CFR - XML import'!$A3,1)-2)))","v":0},{"$f":"IF(ISERROR(FIND(BS$3,'CFR - XML import'!$A3)),0,VALUE(MID('CFR - XML import'!$A3,SEARCH(\">\",'CFR - XML import'!$A3,1)+1,SEARCH(\"/\",'CFR - XML import'!$A3,1)-SEARCH(\">\",'CFR - XML import'!$A3,1)-2)))","v":0},{"$f":"IF(ISERROR(FIND(BT$3,'CFR - XML import'!$A3)),0,VALUE(MID('CFR - XML import'!$A3,SEARCH(\">\",'CFR - XML import'!$A3,1)+1,SEARCH(\"/\",'CFR - XML import'!$A3,1)-SEARCH(\">\",'CFR - XML import'!$A3,1)-2)))","v":0},{"$f":"IF(ISERROR(FIND(BU$3,'CFR - XML import'!$A3)),0,VALUE(MID('CFR - XML import'!$A3,SEARCH(\">\",'CFR - XML import'!$A3,1)+1,SEARCH(\"/\",'CFR - XML import'!$A3,1)-SEARCH(\">\",'CFR - XML import'!$A3,1)-2)))","v":0},{"$f":"IF(ISERROR(FIND(BV$3,'CFR - XML import'!$A3)),0,VALUE(MID('CFR - XML import'!$A3,SEARCH(\">\",'CFR - XML import'!$A3,1)+1,SEARCH(\"/\",'CFR - XML import'!$A3,1)-SEARCH(\">\",'CFR - XML import'!$A3,1)-2)))","v":0},{"$f":"IF(ISERROR(FIND(BW$3,'CFR - XML import'!$A3)),0,VALUE(MID('CFR - XML import'!$A3,SEARCH(\">\",'CFR - XML import'!$A3,1)+1,SEARCH(\"/\",'CFR - XML import'!$A3,1)-SEARCH(\">\",'CFR - XML import'!$A3,1)-2)))","v":0},{"$f":"IF(ISERROR(FIND(BX$3,'CFR - XML import'!$A3)),0,VALUE(MID('CFR - XML import'!$A3,SEARCH(\">\",'CFR - XML import'!$A3,1)+1,SEARCH(\"/\",'CFR - XML import'!$A3,1)-SEARCH(\">\",'CFR - XML import'!$A3,1)-2)))","v":0},{"$f":"IF(ISERROR(FIND(BY$3,'CFR - XML import'!$A3)),0,VALUE(MID('CFR - XML import'!$A3,SEARCH(\">\",'CFR - XML import'!$A3,1)+1,SEARCH(\"/\",'CFR - XML import'!$A3,1)-SEARCH(\">\",'CFR - XML import'!$A3,1)-2)))","v":0},{"$f":"IF(ISERROR(FIND(BZ$3,'CFR - XML import'!$A3)),0,VALUE(MID('CFR - XML import'!$A3,SEARCH(\">\",'CFR - XML import'!$A3,1)+1,SEARCH(\"/\",'CFR - XML import'!$A3,1)-SEARCH(\">\",'CFR - XML import'!$A3,1)-2)))","v":0},null,null,null,null,null,null,{"$f":"IF(ISERROR(IF(MID('CFR - XML import'!$A3,LEN($CF$4)+1,LEN('CFR - XML import'!$A3)-(2*LEN($CF$4)+1))=\"RMMS\",1,IF(MID('CFR - XML import'!$A3,LEN(\"    <InputSystem>\")+1,LEN('CFR - XML import'!$A3)-(LEN(\"    <InputSystem>\")+LEN($CF$4)+1))=\"SIMS\",2,0))),0,IF(MID('CFR - XML import'!$A3,LEN($CF$4)+1,LEN('CFR - XML import'!$A3)-(2*LEN($CF$4)+1))=\"RMMS\",1,IF(MID('CFR - XML import'!$A3,LEN(\"    <InputSystem>\")+1,LEN('CFR - XML import'!$A3)-(LEN(\"    <InputSystem>\")+LEN($CF$4)+1))=\"SIMS\",2,0)))","v":0},{"$f":"IF(ISERROR(FIND(CH$3,'CFR - XML import'!$A3)),0,MID('CFR - XML import'!$A3,SEARCH(\">\",'CFR - XML import'!$A3,1)+1,SEARCH(\"/\",'CFR - XML import'!$A3,1)-SEARCH(\">\",'CFR - XML import'!$A3,1)-2))","v":0},{"$f":"IF(ISERROR(FIND(CI$3,'CFR - XML import'!$A3)),0,MID('CFR - XML import'!$A3,SEARCH(\">\",'CFR - XML import'!$A3,1)+1,SEARCH(\"/\",'CFR - XML import'!$A3,1)-SEARCH(\">\",'CFR - XML import'!$A3,1)-2))","v":0},{"$f":"IF(ISERROR(FIND(CJ$3,'CFR - XML import'!$A3)),0,MID('CFR - XML import'!$A3,SEARCH(\">\",'CFR - XML import'!$A3,1)+1,SEARCH(\"/\",'CFR - XML import'!$A3,1)-SEARCH(\">\",'CFR - XML import'!$A3,1)-2))","v":0},{"$f":"IF(ISERROR(FIND(CK$3,'CFR - XML import'!$A3)),0,MID('CFR - XML import'!$A3,SEARCH(\">\",'CFR - XML import'!$A3,1)+1,SEARCH(\"/\",'CFR - XML import'!$A3,1)-SEARCH(\">\",'CFR - XML import'!$A3,1)-2))","v":0},{"$f":"IF(ISERROR(FIND(CL$3,'CFR - XML import'!$A3)),0,MID('CFR - XML import'!$A3,SEARCH(\">\",'CFR - XML import'!$A3,1)+1,SEARCH(\"/\",'CFR - XML import'!$A3,1)-SEARCH(\">\",'CFR - XML import'!$A3,1)-2))","v":0}]
[{"$f":"IF(AND('CFR - XML import'!A4<>\"\",LEFT('CFR - XML import'!A4,1)<>\"<\",LEFT('CFR - XML import'!A4,3)<>\"  <\",LEFT('CFR - XML import'!A4,5)<>\"    <\",LEFT('CFR - XML import'!A4,7)<>\"      <\",LEFT('CFR - XML import'!A4,9)<>\"        <\",$B$1=\"SIMS\"),'CFR - XML import'!A4,IF(AND(LEFT('CFR - XML import'!A4,9)=\"<Details>\",$B$1=\"RM\"),'CFR - XML import'!A4,\"\"))","v":""},{"$f":"IF(ISERROR(FIND(B$3,'CFR - XML import'!$A4)),0,VALUE(MID('CFR - XML import'!$A4,SEARCH(\">\",'CFR - XML import'!$A4,1)+1,SEARCH(\"/\",'CFR - XML import'!$A4,1)-SEARCH(\">\",'CFR - XML import'!$A4,1)-2)))","v":0},null,{"$f":"IF(ISERROR(FIND(D$3,'CFR - XML import'!$A4)),0,MID('CFR - XML import'!$A4,SEARCH(\">\",'CFR - XML import'!$A4,1)+1,SEARCH(\"/\",'CFR - XML import'!$A4,1)-SEARCH(\">\",'CFR - XML import'!$A4,1)-2))","v":0},{"$f":"IF(ISERROR(FIND(E$3,'CFR - XML import'!$A4)),0,MID('CFR - XML import'!$A4,SEARCH(\">\",'CFR - XML import'!$A4,1)+1,SEARCH(\"/\",'CFR - XML import'!$A4,1)-SEARCH(\">\",'CFR - XML import'!$A4,1)-2))","v":0},{"$f":"IF($B$1=\"SIMS\",IF(ISERROR(FIND(F$3,'CFR - XML import'!$A4)),0,VALUE(MID('CFR - XML import'!$A4,15,10))),IF(ISERROR(FIND(F$3,'CFR - XML import'!$A4)),0,VALUE(MID('CFR - XML import'!$A4,11,10))))","v":"00:00:00"},{"$f":"IF(ISERROR(FIND(G$3,'CFR - XML import'!$A4)),0,VALUE(MID('CFR - XML import'!$A4,SEARCH(\">\",'CFR - XML import'!$A4,1)+1,SEARCH(\"/\",'CFR - XML import'!$A4,1)-SEARCH(\">\",'CFR - XML import'!$A4,1)-2)))","v":0},{"$f":"IF(ISERROR(FIND(H$3,'CFR - XML import'!$A4)),0,VALUE(MID('CFR - XML import'!$A4,SEARCH(\">\",'CFR - XML import'!$A4,1)+1,SEARCH(\"/\",'CFR - XML import'!$A4,1)-SEARCH(\">\",'CFR - XML import'!$A4,1)-2)))","v":0},{"$f":"IF(ISERROR(FIND(I$3,'CFR - XML import'!$A4)),0,VALUE(MID('CFR - XML import'!$A4,SEARCH(\">\",'CFR - XML import'!$A4,1)+1,SEARCH(\"/\",'CFR - XML import'!$A4,1)-SEARCH(\">\",'CFR - XML import'!$A4,1)-2)))","v":0},{"$f":"IF(ISERROR(FIND(J$3,'CFR - XML import'!$A4)),0,VALUE(MID('CFR - XML import'!$A4,SEARCH(\">\",'CFR - XML import'!$A4,1)+1,SEARCH(\"/\",'CFR - XML import'!$A4,1)-SEARCH(\">\",'CFR - XML import'!$A4,1)-2)))","v":0},{"$f":"IF(ISERROR(FIND(K$3,'CFR - XML import'!$A4)),0,VALUE(MID('CFR - XML import'!$A4,SEARCH(\">\",'CFR - XML import'!$A4,1)+1,SEARCH(\"/\",'CFR - XML import'!$A4,1)-SEARCH(\">\",'CFR - XML import'!$A4,1)-2)))","v":0},{"$f":"IF(ISERROR(FIND(L$3,'CFR - XML import'!$A4)),0,VALUE(MID('CFR - XML import'!$A4,SEARCH(\">\",'CFR - XML import'!$A4,1)+1,SEARCH(\"/\",'CFR - XML import'!$A4,1)-SEARCH(\">\",'CFR - XML import'!$A4,1)-2)))","v":0},{"$f":"IF(ISERROR(FIND(M$3,'CFR - XML import'!$A4)),0,VALUE(MID('CFR - XML import'!$A4,SEARCH(\">\",'CFR - XML import'!$A4,1)+1,SEARCH(\"/\",'CFR - XML import'!$A4,1)-SEARCH(\">\",'CFR - XML import'!$A4,1)-2)))","v":0},{"$f":"IF(ISERROR(FIND(N$3,'CFR - XML import'!$A4)),0,VALUE(MID('CFR - XML import'!$A4,SEARCH(\">\",'CFR - XML import'!$A4,1)+1,SEARCH(\"/\",'CFR - XML import'!$A4,1)-SEARCH(\">\",'CFR - XML import'!$A4,1)-2)))","v":0},{"$f":"IF(ISERROR(FIND(O$3,'CFR - XML import'!$A4)),0,VALUE(MID('CFR - XML import'!$A4,SEARCH(\">\",'CFR - XML import'!$A4,1)+1,SEARCH(\"/\",'CFR - XML import'!$A4,1)-SEARCH(\">\",'CFR - XML import'!$A4,1)-2)))","v":0},{"$f":"IF(ISERROR(FIND(P$3,'CFR - XML import'!$A4)),0,VALUE(MID('CFR - XML import'!$A4,SEARCH(\">\",'CFR - XML import'!$A4,1)+1,SEARCH(\"/\",'CFR - XML import'!$A4,1)-SEARCH(\">\",'CFR - XML import'!$A4,1)-2)))","v":0},{"$f":"IF(ISERROR(FIND(Q$3,'CFR - XML import'!$A4)),0,VALUE(MID('CFR - XML import'!$A4,SEARCH(\">\",'CFR - XML import'!$A4,1)+1,SEARCH(\"/\",'CFR - XML import'!$A4,1)-SEARCH(\">\",'CFR - XML import'!$A4,1)-2)))","v":0},{"$f":"IF(ISERROR(FIND(R$3,'CFR - XML import'!$A4)),0,VALUE(MID('CFR - XML import'!$A4,SEARCH(\">\",'CFR - XML import'!$A4,1)+1,SEARCH(\"/\",'CFR - XML import'!$A4,1)-SEARCH(\">\",'CFR - XML import'!$A4,1)-2)))","v":0},{"$f":"IF(ISERROR(FIND(S$3,'CFR - XML import'!$A4)),0,VALUE(MID('CFR - XML import'!$A4,SEARCH(\">\",'CFR - XML import'!$A4,1)+1,SEARCH(\"/\",'CFR - XML import'!$A4,1)-SEARCH(\">\",'CFR - XML import'!$A4,1)-2)))","v":0},{"$f":"IF(ISERROR(FIND(T$3,'CFR - XML import'!$A4)),0,VALUE(MID('CFR - XML import'!$A4,SEARCH(\">\",'CFR - XML import'!$A4,1)+1,SEARCH(\"/\",'CFR - XML import'!$A4,1)-SEARCH(\">\",'CFR - XML import'!$A4,1)-2)))","v":0},{"$f":"IF(ISERROR(FIND(U$3,'CFR - XML import'!$A4)),0,VALUE(MID('CFR - XML import'!$A4,SEARCH(\">\",'CFR - XML import'!$A4,1)+1,SEARCH(\"/\",'CFR - XML import'!$A4,1)-SEARCH(\">\",'CFR - XML import'!$A4,1)-2)))","v":0},{"$f":"IF(ISERROR(FIND(V$3,'CFR - XML import'!$A4)),0,VALUE(MID('CFR - XML import'!$A4,SEARCH(\">\",'CFR - XML import'!$A4,1)+1,SEARCH(\"/\",'CFR - XML import'!$A4,1)-SEARCH(\">\",'CFR - XML import'!$A4,1)-2)))","v":0},{"$f":"IF(ISERROR(FIND(W$3,'CFR - XML import'!$A4)),0,VALUE(MID('CFR - XML import'!$A4,SEARCH(\">\",'CFR - XML import'!$A4,1)+1,SEARCH(\"/\",'CFR - XML import'!$A4,1)-SEARCH(\">\",'CFR - XML import'!$A4,1)-2)))","v":0},null,{"$f":"IF(ISERROR(FIND(Y$3,'CFR - XML import'!$A4)),0,VALUE(MID('CFR - XML import'!$A4,SEARCH(\">\",'CFR - XML import'!$A4,1)+1,SEARCH(\"/\",'CFR - XML import'!$A4,1)-SEARCH(\">\",'CFR - XML import'!$A4,1)-2)))","v":0},{"$f":"IF(ISERROR(FIND(Z$3,'CFR - XML import'!$A4)),0,VALUE(MID('CFR - XML import'!$A4,SEARCH(\">\",'CFR - XML import'!$A4,1)+1,SEARCH(\"/\",'CFR - XML import'!$A4,1)-SEARCH(\">\",'CFR - XML import'!$A4,1)-2)))","v":0},{"$f":"IF(ISERROR(FIND(AA$3,'CFR - XML import'!$A4)),0,VALUE(MID('CFR - XML import'!$A4,SEARCH(\">\",'CFR - XML import'!$A4,1)+1,SEARCH(\"/\",'CFR - XML import'!$A4,1)-SEARCH(\">\",'CFR - XML import'!$A4,1)-2)))","v":0},{"$f":"IF(ISERROR(FIND(AB$3,'CFR - XML import'!$A4)),0,VALUE(MID('CFR - XML import'!$A4,SEARCH(\">\",'CFR - XML import'!$A4,1)+1,SEARCH(\"/\",'CFR - XML import'!$A4,1)-SEARCH(\">\",'CFR - XML import'!$A4,1)-2)))","v":0},{"$f":"IF(ISERROR(FIND(AC$3,'CFR - XML import'!$A4)),0,VALUE(MID('CFR - XML import'!$A4,SEARCH(\">\",'CFR - XML import'!$A4,1)+1,SEARCH(\"/\",'CFR - XML import'!$A4,1)-SEARCH(\">\",'CFR - XML import'!$A4,1)-2)))","v":0},{"$f":"IF(ISERROR(FIND(AD$3,'CFR - XML import'!$A4)),0,VALUE(MID('CFR - XML import'!$A4,SEARCH(\">\",'CFR - XML import'!$A4,1)+1,SEARCH(\"/\",'CFR - XML import'!$A4,1)-SEARCH(\">\",'CFR - XML import'!$A4,1)-2)))","v":0},{"$f":"IF(ISERROR(FIND(AE$3,'CFR - XML import'!$A4)),0,VALUE(MID('CFR - XML import'!$A4,SEARCH(\">\",'CFR - XML import'!$A4,1)+1,SEARCH(\"/\",'CFR - XML import'!$A4,1)-SEARCH(\">\",'CFR - XML import'!$A4,1)-2)))","v":0},{"$f":"IF(ISERROR(FIND(AF$3,'CFR - XML import'!$A4)),0,VALUE(MID('CFR - XML import'!$A4,SEARCH(\">\",'CFR - XML import'!$A4,1)+1,SEARCH(\"/\",'CFR - XML import'!$A4,1)-SEARCH(\">\",'CFR - XML import'!$A4,1)-2)))","v":0},{"$f":"IF(ISERROR(FIND(AG$3,'CFR - XML import'!$A4)),0,VALUE(MID('CFR - XML import'!$A4,SEARCH(\">\",'CFR - XML import'!$A4,1)+1,SEARCH(\"/\",'CFR - XML import'!$A4,1)-SEARCH(\">\",'CFR - XML import'!$A4,1)-2)))","v":0},{"$f":"IF(ISERROR(FIND(AH$3,'CFR - XML import'!$A4)),0,VALUE(MID('CFR - XML import'!$A4,SEARCH(\">\",'CFR - XML import'!$A4,1)+1,SEARCH(\"/\",'CFR - XML import'!$A4,1)-SEARCH(\">\",'CFR - XML import'!$A4,1)-2)))","v":0},{"$f":"IF(ISERROR(FIND(AI$3,'CFR - XML import'!$A4)),0,VALUE(MID('CFR - XML import'!$A4,SEARCH(\">\",'CFR - XML import'!$A4,1)+1,SEARCH(\"/\",'CFR - XML import'!$A4,1)-SEARCH(\">\",'CFR - XML import'!$A4,1)-2)))","v":0},{"$f":"IF(ISERROR(FIND(AJ$3,'CFR - XML import'!$A4)),0,VALUE(MID('CFR - XML import'!$A4,SEARCH(\">\",'CFR - XML import'!$A4,1)+1,SEARCH(\"/\",'CFR - XML import'!$A4,1)-SEARCH(\">\",'CFR - XML import'!$A4,1)-2)))","v":0},{"$f":"IF(ISERROR(FIND(AK$3,'CFR - XML import'!$A4)),0,VALUE(MID('CFR - XML import'!$A4,SEARCH(\">\",'CFR - XML import'!$A4,1)+1,SEARCH(\"/\",'CFR - XML import'!$A4,1)-SEARCH(\">\",'CFR - XML import'!$A4,1)-2)))","v":0},{"$f":"IF(ISERROR(FIND(AL$3,'CFR - XML import'!$A4)),0,VALUE(MID('CFR - XML import'!$A4,SEARCH(\">\",'CFR - XML import'!$A4,1)+1,SEARCH(\"/\",'CFR - XML import'!$A4,1)-SEARCH(\">\",'CFR - XML import'!$A4,1)-2)))","v":0},{"$f":"IF(ISERROR(FIND(AM$3,'CFR - XML import'!$A4)),0,VALUE(MID('CFR - XML import'!$A4,SEARCH(\">\",'CFR - XML import'!$A4,1)+1,SEARCH(\"/\",'CFR - XML import'!$A4,1)-SEARCH(\">\",'CFR - XML import'!$A4,1)-2)))","v":0},{"$f":"IF(ISERROR(FIND(AN$3,'CFR - XML import'!$A4)),0,VALUE(MID('CFR - XML import'!$A4,SEARCH(\">\",'CFR - XML import'!$A4,1)+1,SEARCH(\"/\",'CFR - XML import'!$A4,1)-SEARCH(\">\",'CFR - XML import'!$A4,1)-2)))","v":0},{"$f":"IF(ISERROR(FIND(AO$3,'CFR - XML import'!$A4)),0,VALUE(MID('CFR - XML import'!$A4,SEARCH(\">\",'CFR - XML import'!$A4,1)+1,SEARCH(\"/\",'CFR - XML import'!$A4,1)-SEARCH(\">\",'CFR - XML import'!$A4,1)-2)))","v":0},{"$f":"IF(ISERROR(FIND(AP$3,'CFR - XML import'!$A4)),0,VALUE(MID('CFR - XML import'!$A4,SEARCH(\">\",'CFR - XML import'!$A4,1)+1,SEARCH(\"/\",'CFR - XML import'!$A4,1)-SEARCH(\">\",'CFR - XML import'!$A4,1)-2)))","v":0},{"$f":"IF(ISERROR(FIND(AQ$3,'CFR - XML import'!$A4)),0,VALUE(MID('CFR - XML import'!$A4,SEARCH(\">\",'CFR - XML import'!$A4,1)+1,SEARCH(\"/\",'CFR - XML import'!$A4,1)-SEARCH(\">\",'CFR - XML import'!$A4,1)-2)))","v":0},{"$f":"IF(ISERROR(FIND(AR$3,'CFR - XML import'!$A4)),0,VALUE(MID('CFR - XML import'!$A4,SEARCH(\">\",'CFR - XML import'!$A4,1)+1,SEARCH(\"/\",'CFR - XML import'!$A4,1)-SEARCH(\">\",'CFR - XML import'!$A4,1)-2)))","v":0},{"$f":"IF(ISERROR(FIND(AS$3,'CFR - XML import'!$A4)),0,VALUE(MID('CFR - XML import'!$A4,SEARCH(\">\",'CFR - XML import'!$A4,1)+1,SEARCH(\"/\",'CFR - XML import'!$A4,1)-SEARCH(\">\",'CFR - XML import'!$A4,1)-2)))","v":0},{"$f":"IF(ISERROR(FIND(AT$3,'CFR - XML import'!$A4)),0,VALUE(MID('CFR - XML import'!$A4,SEARCH(\">\",'CFR - XML import'!$A4,1)+1,SEARCH(\"/\",'CFR - XML import'!$A4,1)-SEARCH(\">\",'CFR - XML import'!$A4,1)-2)))","v":0},{"$f":"IF(ISERROR(FIND(AU$3,'CFR - XML import'!$A4)),0,VALUE(MID('CFR - XML import'!$A4,SEARCH(\">\",'CFR - XML import'!$A4,1)+1,SEARCH(\"/\",'CFR - XML import'!$A4,1)-SEARCH(\">\",'CFR - XML import'!$A4,1)-2)))","v":0},{"$f":"IF(ISERROR(FIND(AV$3,'CFR - XML import'!$A4)),0,VALUE(MID('CFR - XML import'!$A4,SEARCH(\">\",'CFR - XML import'!$A4,1)+1,SEARCH(\"/\",'CFR - XML import'!$A4,1)-SEARCH(\">\",'CFR - XML import'!$A4,1)-2)))","v":0},{"$f":"IF(ISERROR(FIND(AW$3,'CFR - XML import'!$A4)),0,VALUE(MID('CFR - XML import'!$A4,SEARCH(\">\",'CFR - XML import'!$A4,1)+1,SEARCH(\"/\",'CFR - XML import'!$A4,1)-SEARCH(\">\",'CFR - XML import'!$A4,1)-2)))","v":0},{"$f":"IF(ISERROR(FIND(AX$3,'CFR - XML import'!$A4)),0,VALUE(MID('CFR - XML import'!$A4,SEARCH(\">\",'CFR - XML import'!$A4,1)+1,SEARCH(\"/\",'CFR - XML import'!$A4,1)-SEARCH(\">\",'CFR - XML import'!$A4,1)-2)))","v":0},{"$f":"IF(ISERROR(FIND(AY$3,'CFR - XML import'!$A4)),0,VALUE(MID('CFR - XML import'!$A4,SEARCH(\">\",'CFR - XML import'!$A4,1)+1,SEARCH(\"/\",'CFR - XML import'!$A4,1)-SEARCH(\">\",'CFR - XML import'!$A4,1)-2)))","v":0},{"$f":"IF(ISERROR(FIND(AZ$3,'CFR - XML import'!$A4)),0,VALUE(MID('CFR - XML import'!$A4,SEARCH(\">\",'CFR - XML import'!$A4,1)+1,SEARCH(\"/\",'CFR - XML import'!$A4,1)-SEARCH(\">\",'CFR - XML import'!$A4,1)-2)))","v":0},{"$f":"IF(ISERROR(FIND(BA$3,'CFR - XML import'!$A4)),0,VALUE(MID('CFR - XML import'!$A4,SEARCH(\">\",'CFR - XML import'!$A4,1)+1,SEARCH(\"/\",'CFR - XML import'!$A4,1)-SEARCH(\">\",'CFR - XML import'!$A4,1)-2)))","v":0},{"$f":"IF(ISERROR(FIND(BB$3,'CFR - XML import'!$A4)),0,VALUE(MID('CFR - XML import'!$A4,SEARCH(\">\",'CFR - XML import'!$A4,1)+1,SEARCH(\"/\",'CFR - XML import'!$A4,1)-SEARCH(\">\",'CFR - XML import'!$A4,1)-2)))","v":0},{"$f":"IF(ISERROR(FIND(BC$3,'CFR - XML import'!$A4)),0,VALUE(MID('CFR - XML import'!$A4,SEARCH(\">\",'CFR - XML import'!$A4,1)+1,SEARCH(\"/\",'CFR - XML import'!$A4,1)-SEARCH(\">\",'CFR - XML import'!$A4,1)-2)))","v":0},{"$f":"IF(ISERROR(FIND(BD$3,'CFR - XML import'!$A4)),0,VALUE(MID('CFR - XML import'!$A4,SEARCH(\">\",'CFR - XML import'!$A4,1)+1,SEARCH(\"/\",'CFR - XML import'!$A4,1)-SEARCH(\">\",'CFR - XML import'!$A4,1)-2)))","v":0},{"$f":"IF(ISERROR(FIND(BE$3,'CFR - XML import'!$A4)),0,VALUE(MID('CFR - XML import'!$A4,SEARCH(\">\",'CFR - XML import'!$A4,1)+1,SEARCH(\"/\",'CFR - XML import'!$A4,1)-SEARCH(\">\",'CFR - XML import'!$A4,1)-2)))","v":0},{"$f":"IF(ISERROR(FIND(BF$3,'CFR - XML import'!$A4)),0,VALUE(MID('CFR - XML import'!$A4,SEARCH(\">\",'CFR - XML import'!$A4,1)+1,SEARCH(\"/\",'CFR - XML import'!$A4,1)-SEARCH(\">\",'CFR - XML import'!$A4,1)-2)))","v":0},{"$f":"IF(ISERROR(FIND(BG$3,'CFR - XML import'!$A4)),0,VALUE(MID('CFR - XML import'!$A4,SEARCH(\">\",'CFR - XML import'!$A4,1)+1,SEARCH(\"/\",'CFR - XML import'!$A4,1)-SEARCH(\">\",'CFR - XML import'!$A4,1)-2)))","v":0},{"$f":"IF(ISERROR(FIND(BH$3,'CFR - XML import'!$A4)),0,VALUE(MID('CFR - XML import'!$A4,SEARCH(\">\",'CFR - XML import'!$A4,1)+1,SEARCH(\"/\",'CFR - XML import'!$A4,1)-SEARCH(\">\",'CFR - XML import'!$A4,1)-2)))","v":0},{"$f":"IF(ISERROR(FIND(BI$3,'CFR - XML import'!$A4)),0,VALUE(MID('CFR - XML import'!$A4,SEARCH(\">\",'CFR - XML import'!$A4,1)+1,SEARCH(\"/\",'CFR - XML import'!$A4,1)-SEARCH(\">\",'CFR - XML import'!$A4,1)-2)))","v":0},{"$f":"IF(ISERROR(FIND(BJ$3,'CFR - XML import'!$A4)),0,VALUE(MID('CFR - XML import'!$A4,SEARCH(\">\",'CFR - XML import'!$A4,1)+1,SEARCH(\"/\",'CFR - XML import'!$A4,1)-SEARCH(\">\",'CFR - XML import'!$A4,1)-2)))","v":0},{"$f":"IF(ISERROR(FIND(BK$3,'CFR - XML import'!$A4)),0,VALUE(MID('CFR - XML import'!$A4,SEARCH(\">\",'CFR - XML import'!$A4,1)+1,SEARCH(\"/\",'CFR - XML import'!$A4,1)-SEARCH(\">\",'CFR - XML import'!$A4,1)-2)))","v":0},{"$f":"IF(ISERROR(FIND(BL$3,'CFR - XML import'!$A4)),0,VALUE(MID('CFR - XML import'!$A4,SEARCH(\">\",'CFR - XML import'!$A4,1)+1,SEARCH(\"/\",'CFR - XML import'!$A4,1)-SEARCH(\">\",'CFR - XML import'!$A4,1)-2)))","v":0},{"$f":"IF(ISERROR(FIND(BM$3,'CFR - XML import'!$A4)),0,VALUE(MID('CFR - XML import'!$A4,SEARCH(\">\",'CFR - XML import'!$A4,1)+1,SEARCH(\"/\",'CFR - XML import'!$A4,1)-SEARCH(\">\",'CFR - XML import'!$A4,1)-2)))","v":0},{"$f":"IF(ISERROR(FIND(BN$3,'CFR - XML import'!$A4)),0,VALUE(MID('CFR - XML import'!$A4,SEARCH(\">\",'CFR - XML import'!$A4,1)+1,SEARCH(\"/\",'CFR - XML import'!$A4,1)-SEARCH(\">\",'CFR - XML import'!$A4,1)-2)))","v":0},{"$f":"IF(ISERROR(FIND(BO$3,'CFR - XML import'!$A4)),0,VALUE(MID('CFR - XML import'!$A4,SEARCH(\">\",'CFR - XML import'!$A4,1)+1,SEARCH(\"/\",'CFR - XML import'!$A4,1)-SEARCH(\">\",'CFR - XML import'!$A4,1)-2)))","v":0},{"$f":"IF(ISERROR(FIND(BP$3,'CFR - XML import'!$A4)),0,VALUE(MID('CFR - XML import'!$A4,SEARCH(\">\",'CFR - XML import'!$A4,1)+1,SEARCH(\"/\",'CFR - XML import'!$A4,1)-SEARCH(\">\",'CFR - XML import'!$A4,1)-2)))","v":0},{"$f":"IF(ISERROR(FIND(BQ$3,'CFR - XML import'!$A4)),0,VALUE(MID('CFR - XML import'!$A4,SEARCH(\">\",'CFR - XML import'!$A4,1)+1,SEARCH(\"/\",'CFR - XML import'!$A4,1)-SEARCH(\">\",'CFR - XML import'!$A4,1)-2)))","v":0},{"$f":"IF(ISERROR(FIND(BR$3,'CFR - XML import'!$A4)),0,VALUE(MID('CFR - XML import'!$A4,SEARCH(\">\",'CFR - XML import'!$A4,1)+1,SEARCH(\"/\",'CFR - XML import'!$A4,1)-SEARCH(\">\",'CFR - XML import'!$A4,1)-2)))","v":0},{"$f":"IF(ISERROR(FIND(BS$3,'CFR - XML import'!$A4)),0,VALUE(MID('CFR - XML import'!$A4,SEARCH(\">\",'CFR - XML import'!$A4,1)+1,SEARCH(\"/\",'CFR - XML import'!$A4,1)-SEARCH(\">\",'CFR - XML import'!$A4,1)-2)))","v":0},{"$f":"IF(ISERROR(FIND(BT$3,'CFR - XML import'!$A4)),0,VALUE(MID('CFR - XML import'!$A4,SEARCH(\">\",'CFR - XML import'!$A4,1)+1,SEARCH(\"/\",'CFR - XML import'!$A4,1)-SEARCH(\">\",'CFR - XML import'!$A4,1)-2)))","v":0},{"$f":"IF(ISERROR(FIND(BU$3,'CFR - XML import'!$A4)),0,VALUE(MID('CFR - XML import'!$A4,SEARCH(\">\",'CFR - XML import'!$A4,1)+1,SEARCH(\"/\",'CFR - XML import'!$A4,1)-SEARCH(\">\",'CFR - XML import'!$A4,1)-2)))","v":0},{"$f":"IF(ISERROR(FIND(BV$3,'CFR - XML import'!$A4)),0,VALUE(MID('CFR - XML import'!$A4,SEARCH(\">\",'CFR - XML import'!$A4,1)+1,SEARCH(\"/\",'CFR - XML import'!$A4,1)-SEARCH(\">\",'CFR - XML import'!$A4,1)-2)))","v":0},{"$f":"IF(ISERROR(FIND(BW$3,'CFR - XML import'!$A4)),0,VALUE(MID('CFR - XML import'!$A4,SEARCH(\">\",'CFR - XML import'!$A4,1)+1,SEARCH(\"/\",'CFR - XML import'!$A4,1)-SEARCH(\">\",'CFR - XML import'!$A4,1)-2)))","v":0},{"$f":"IF(ISERROR(FIND(BX$3,'CFR - XML import'!$A4)),0,VALUE(MID('CFR - XML import'!$A4,SEARCH(\">\",'CFR - XML import'!$A4,1)+1,SEARCH(\"/\",'CFR - XML import'!$A4,1)-SEARCH(\">\",'CFR - XML import'!$A4,1)-2)))","v":0},{"$f":"IF(ISERROR(FIND(BY$3,'CFR - XML import'!$A4)),0,VALUE(MID('CFR - XML import'!$A4,SEARCH(\">\",'CFR - XML import'!$A4,1)+1,SEARCH(\"/\",'CFR - XML import'!$A4,1)-SEARCH(\">\",'CFR - XML import'!$A4,1)-2)))","v":0},{"$f":"IF(ISERROR(FIND(BZ$3,'CFR - XML import'!$A4)),0,VALUE(MID('CFR - XML import'!$A4,SEARCH(\">\",'CFR - XML import'!$A4,1)+1,SEARCH(\"/\",'CFR - XML import'!$A4,1)-SEARCH(\">\",'CFR - XML import'!$A4,1)-2)))","v":0},null,null,null,null,null,null,{"$f":"IF(ISERROR(IF(MID('CFR - XML import'!$A4,LEN($CF$4)+1,LEN('CFR - XML import'!$A4)-(2*LEN($CF$4)+1))=\"RMMS\",1,IF(MID('CFR - XML import'!$A4,LEN(\"    <InputSystem>\")+1,LEN('CFR - XML import'!$A4)-(LEN(\"    <InputSystem>\")+LEN($CF$4)+1))=\"SIMS\",2,0))),0,IF(MID('CFR - XML import'!$A4,LEN($CF$4)+1,LEN('CFR - XML import'!$A4)-(2*LEN($CF$4)+1))=\"RMMS\",1,IF(MID('CFR - XML import'!$A4,LEN(\"    <InputSystem>\")+1,LEN('CFR - XML import'!$A4)-(LEN(\"    <InputSystem>\")+LEN($CF$4)+1))=\"SIMS\",2,0)))","v":0},{"$f":"IF(ISERROR(FIND(CH$3,'CFR - XML import'!$A4)),0,MID('CFR - XML import'!$A4,SEARCH(\">\",'CFR - XML import'!$A4,1)+1,SEARCH(\"/\",'CFR - XML import'!$A4,1)-SEARCH(\">\",'CFR - XML import'!$A4,1)-2))","v":0},{"$f":"IF(ISERROR(FIND(CI$3,'CFR - XML import'!$A4)),0,MID('CFR - XML import'!$A4,SEARCH(\">\",'CFR - XML import'!$A4,1)+1,SEARCH(\"/\",'CFR - XML import'!$A4,1)-SEARCH(\">\",'CFR - XML import'!$A4,1)-2))","v":0},{"$f":"IF(ISERROR(FIND(CJ$3,'CFR - XML import'!$A4)),0,MID('CFR - XML import'!$A4,SEARCH(\">\",'CFR - XML import'!$A4,1)+1,SEARCH(\"/\",'CFR - XML import'!$A4,1)-SEARCH(\">\",'CFR - XML import'!$A4,1)-2))","v":0},{"$f":"IF(ISERROR(FIND(CK$3,'CFR - XML import'!$A4)),0,MID('CFR - XML import'!$A4,SEARCH(\">\",'CFR - XML import'!$A4,1)+1,SEARCH(\"/\",'CFR - XML import'!$A4,1)-SEARCH(\">\",'CFR - XML import'!$A4,1)-2))","v":0},{"$f":"IF(ISERROR(FIND(CL$3,'CFR - XML import'!$A4)),0,MID('CFR - XML import'!$A4,SEARCH(\">\",'CFR - XML import'!$A4,1)+1,SEARCH(\"/\",'CFR - XML import'!$A4,1)-SEARCH(\">\",'CFR - XML import'!$A4,1)-2))","v":0}]
[{"$f":"IF(AND('CFR - XML import'!A5<>\"\",LEFT('CFR - XML import'!A5,1)<>\"<\",LEFT('CFR - XML import'!A5,3)<>\"  <\",LEFT('CFR - XML import'!A5,5)<>\"    <\",LEFT('CFR - XML import'!A5,7)<>\"      <\",LEFT('CFR - XML import'!A5,9)<>\"        <\",$B$1=\"SIMS\"),'CFR - XML import'!A5,IF(AND(LEFT('CFR - XML import'!A5,9)=\"<Details>\",$B$1=\"RM\"),'CFR - XML import'!A5,\"\"))","v":""},{"$f":"IF(ISERROR(FIND(B$3,'CFR - XML import'!$A5)),0,VALUE(MID('CFR - XML import'!$A5,SEARCH(\">\",'CFR - XML import'!$A5,1)+1,SEARCH(\"/\",'CFR - XML import'!$A5,1)-SEARCH(\">\",'CFR - XML import'!$A5,1)-2)))","v":0},null,{"$f":"IF(ISERROR(FIND(D$3,'CFR - XML import'!$A5)),0,MID('CFR - XML import'!$A5,SEARCH(\">\",'CFR - XML import'!$A5,1)+1,SEARCH(\"/\",'CFR - XML import'!$A5,1)-SEARCH(\">\",'CFR - XML import'!$A5,1)-2))","v":0},{"$f":"IF(ISERROR(FIND(E$3,'CFR - XML import'!$A5)),0,MID('CFR - XML import'!$A5,SEARCH(\">\",'CFR - XML import'!$A5,1)+1,SEARCH(\"/\",'CFR - XML import'!$A5,1)-SEARCH(\">\",'CFR - XML import'!$A5,1)-2))","v":0},{"$f":"IF($B$1=\"SIMS\",IF(ISERROR(FIND(F$3,'CFR - XML import'!$A5)),0,VALUE(MID('CFR - XML import'!$A5,15,10))),IF(ISERROR(FIND(F$3,'CFR - XML import'!$A5)),0,VALUE(MID('CFR - XML import'!$A5,11,10))))","v":"00:00:00"},{"$f":"IF(ISERROR(FIND(G$3,'CFR - XML import'!$A5)),0,VALUE(MID('CFR - XML import'!$A5,SEARCH(\">\",'CFR - XML import'!$A5,1)+1,SEARCH(\"/\",'CFR - XML import'!$A5,1)-SEARCH(\">\",'CFR - XML import'!$A5,1)-2)))","v":0},{"$f":"IF(ISERROR(FIND(H$3,'CFR - XML import'!$A5)),0,VALUE(MID('CFR - XML import'!$A5,SEARCH(\">\",'CFR - XML import'!$A5,1)+1,SEARCH(\"/\",'CFR - XML import'!$A5,1)-SEARCH(\">\",'CFR - XML import'!$A5,1)-2)))","v":0},{"$f":"IF(ISERROR(FIND(I$3,'CFR - XML import'!$A5)),0,VALUE(MID('CFR - XML import'!$A5,SEARCH(\">\",'CFR - XML import'!$A5,1)+1,SEARCH(\"/\",'CFR - XML import'!$A5,1)-SEARCH(\">\",'CFR - XML import'!$A5,1)-2)))","v":0},{"$f":"IF(ISERROR(FIND(J$3,'CFR - XML import'!$A5)),0,VALUE(MID('CFR - XML import'!$A5,SEARCH(\">\",'CFR - XML import'!$A5,1)+1,SEARCH(\"/\",'CFR - XML import'!$A5,1)-SEARCH(\">\",'CFR - XML import'!$A5,1)-2)))","v":0},{"$f":"IF(ISERROR(FIND(K$3,'CFR - XML import'!$A5)),0,VALUE(MID('CFR - XML import'!$A5,SEARCH(\">\",'CFR - XML import'!$A5,1)+1,SEARCH(\"/\",'CFR - XML import'!$A5,1)-SEARCH(\">\",'CFR - XML import'!$A5,1)-2)))","v":0},{"$f":"IF(ISERROR(FIND(L$3,'CFR - XML import'!$A5)),0,VALUE(MID('CFR - XML import'!$A5,SEARCH(\">\",'CFR - XML import'!$A5,1)+1,SEARCH(\"/\",'CFR - XML import'!$A5,1)-SEARCH(\">\",'CFR - XML import'!$A5,1)-2)))","v":0},{"$f":"IF(ISERROR(FIND(M$3,'CFR - XML import'!$A5)),0,VALUE(MID('CFR - XML import'!$A5,SEARCH(\">\",'CFR - XML import'!$A5,1)+1,SEARCH(\"/\",'CFR - XML import'!$A5,1)-SEARCH(\">\",'CFR - XML import'!$A5,1)-2)))","v":0},{"$f":"IF(ISERROR(FIND(N$3,'CFR - XML import'!$A5)),0,VALUE(MID('CFR - XML import'!$A5,SEARCH(\">\",'CFR - XML import'!$A5,1)+1,SEARCH(\"/\",'CFR - XML import'!$A5,1)-SEARCH(\">\",'CFR - XML import'!$A5,1)-2)))","v":0},{"$f":"IF(ISERROR(FIND(O$3,'CFR - XML import'!$A5)),0,VALUE(MID('CFR - XML import'!$A5,SEARCH(\">\",'CFR - XML import'!$A5,1)+1,SEARCH(\"/\",'CFR - XML import'!$A5,1)-SEARCH(\">\",'CFR - XML import'!$A5,1)-2)))","v":0},{"$f":"IF(ISERROR(FIND(P$3,'CFR - XML import'!$A5)),0,VALUE(MID('CFR - XML import'!$A5,SEARCH(\">\",'CFR - XML import'!$A5,1)+1,SEARCH(\"/\",'CFR - XML import'!$A5,1)-SEARCH(\">\",'CFR - XML import'!$A5,1)-2)))","v":0},{"$f":"IF(ISERROR(FIND(Q$3,'CFR - XML import'!$A5)),0,VALUE(MID('CFR - XML import'!$A5,SEARCH(\">\",'CFR - XML import'!$A5,1)+1,SEARCH(\"/\",'CFR - XML import'!$A5,1)-SEARCH(\">\",'CFR - XML import'!$A5,1)-2)))","v":0},{"$f":"IF(ISERROR(FIND(R$3,'CFR - XML import'!$A5)),0,VALUE(MID('CFR - XML import'!$A5,SEARCH(\">\",'CFR - XML import'!$A5,1)+1,SEARCH(\"/\",'CFR - XML import'!$A5,1)-SEARCH(\">\",'CFR - XML import'!$A5,1)-2)))","v":0},{"$f":"IF(ISERROR(FIND(S$3,'CFR - XML import'!$A5)),0,VALUE(MID('CFR - XML import'!$A5,SEARCH(\">\",'CFR - XML import'!$A5,1)+1,SEARCH(\"/\",'CFR - XML import'!$A5,1)-SEARCH(\">\",'CFR - XML import'!$A5,1)-2)))","v":0},{"$f":"IF(ISERROR(FIND(T$3,'CFR - XML import'!$A5)),0,VALUE(MID('CFR - XML import'!$A5,SEARCH(\">\",'CFR - XML import'!$A5,1)+1,SEARCH(\"/\",'CFR - XML import'!$A5,1)-SEARCH(\">\",'CFR - XML import'!$A5,1)-2)))","v":0},{"$f":"IF(ISERROR(FIND(U$3,'CFR - XML import'!$A5)),0,VALUE(MID('CFR - XML import'!$A5,SEARCH(\">\",'CFR - XML import'!$A5,1)+1,SEARCH(\"/\",'CFR - XML import'!$A5,1)-SEARCH(\">\",'CFR - XML import'!$A5,1)-2)))","v":0},{"$f":"IF(ISERROR(FIND(V$3,'CFR - XML import'!$A5)),0,VALUE(MID('CFR - XML import'!$A5,SEARCH(\">\",'CFR - XML import'!$A5,1)+1,SEARCH(\"/\",'CFR - XML import'!$A5,1)-SEARCH(\">\",'CFR - XML import'!$A5,1)-2)))","v":0},{"$f":"IF(ISERROR(FIND(W$3,'CFR - XML import'!$A5)),0,VALUE(MID('CFR - XML import'!$A5,SEARCH(\">\",'CFR - XML import'!$A5,1)+1,SEARCH(\"/\",'CFR - XML import'!$A5,1)-SEARCH(\">\",'CFR - XML import'!$A5,1)-2)))","v":0},null,{"$f":"IF(ISERROR(FIND(Y$3,'CFR - XML import'!$A5)),0,VALUE(MID('CFR - XML import'!$A5,SEARCH(\">\",'CFR - XML import'!$A5,1)+1,SEARCH(\"/\",'CFR - XML import'!$A5,1)-SEARCH(\">\",'CFR - XML import'!$A5,1)-2)))","v":0},{"$f":"IF(ISERROR(FIND(Z$3,'CFR - XML import'!$A5)),0,VALUE(MID('CFR - XML import'!$A5,SEARCH(\">\",'CFR - XML import'!$A5,1)+1,SEARCH(\"/\",'CFR - XML import'!$A5,1)-SEARCH(\">\",'CFR - XML import'!$A5,1)-2)))","v":0},{"$f":"IF(ISERROR(FIND(AA$3,'CFR - XML import'!$A5)),0,VALUE(MID('CFR - XML import'!$A5,SEARCH(\">\",'CFR - XML import'!$A5,1)+1,SEARCH(\"/\",'CFR - XML import'!$A5,1)-SEARCH(\">\",'CFR - XML import'!$A5,1)-2)))","v":0},{"$f":"IF(ISERROR(FIND(AB$3,'CFR - XML import'!$A5)),0,VALUE(MID('CFR - XML import'!$A5,SEARCH(\">\",'CFR - XML import'!$A5,1)+1,SEARCH(\"/\",'CFR - XML import'!$A5,1)-SEARCH(\">\",'CFR - XML import'!$A5,1)-2)))","v":0},{"$f":"IF(ISERROR(FIND(AC$3,'CFR - XML import'!$A5)),0,VALUE(MID('CFR - XML import'!$A5,SEARCH(\">\",'CFR - XML import'!$A5,1)+1,SEARCH(\"/\",'CFR - XML import'!$A5,1)-SEARCH(\">\",'CFR - XML import'!$A5,1)-2)))","v":0},{"$f":"IF(ISERROR(FIND(AD$3,'CFR - XML import'!$A5)),0,VALUE(MID('CFR - XML import'!$A5,SEARCH(\">\",'CFR - XML import'!$A5,1)+1,SEARCH(\"/\",'CFR - XML import'!$A5,1)-SEARCH(\">\",'CFR - XML import'!$A5,1)-2)))","v":0},{"$f":"IF(ISERROR(FIND(AE$3,'CFR - XML import'!$A5)),0,VALUE(MID('CFR - XML import'!$A5,SEARCH(\">\",'CFR - XML import'!$A5,1)+1,SEARCH(\"/\",'CFR - XML import'!$A5,1)-SEARCH(\">\",'CFR - XML import'!$A5,1)-2)))","v":0},{"$f":"IF(ISERROR(FIND(AF$3,'CFR - XML import'!$A5)),0,VALUE(MID('CFR - XML import'!$A5,SEARCH(\">\",'CFR - XML import'!$A5,1)+1,SEARCH(\"/\",'CFR - XML import'!$A5,1)-SEARCH(\">\",'CFR - XML import'!$A5,1)-2)))","v":0},{"$f":"IF(ISERROR(FIND(AG$3,'CFR - XML import'!$A5)),0,VALUE(MID('CFR - XML import'!$A5,SEARCH(\">\",'CFR - XML import'!$A5,1)+1,SEARCH(\"/\",'CFR - XML import'!$A5,1)-SEARCH(\">\",'CFR - XML import'!$A5,1)-2)))","v":0},{"$f":"IF(ISERROR(FIND(AH$3,'CFR - XML import'!$A5)),0,VALUE(MID('CFR - XML import'!$A5,SEARCH(\">\",'CFR - XML import'!$A5,1)+1,SEARCH(\"/\",'CFR - XML import'!$A5,1)-SEARCH(\">\",'CFR - XML import'!$A5,1)-2)))","v":0},{"$f":"IF(ISERROR(FIND(AI$3,'CFR - XML import'!$A5)),0,VALUE(MID('CFR - XML import'!$A5,SEARCH(\">\",'CFR - XML import'!$A5,1)+1,SEARCH(\"/\",'CFR - XML import'!$A5,1)-SEARCH(\">\",'CFR - XML import'!$A5,1)-2)))","v":0},{"$f":"IF(ISERROR(FIND(AJ$3,'CFR - XML import'!$A5)),0,VALUE(MID('CFR - XML import'!$A5,SEARCH(\">\",'CFR - XML import'!$A5,1)+1,SEARCH(\"/\",'CFR - XML import'!$A5,1)-SEARCH(\">\",'CFR - XML import'!$A5,1)-2)))","v":0},{"$f":"IF(ISERROR(FIND(AK$3,'CFR - XML import'!$A5)),0,VALUE(MID('CFR - XML import'!$A5,SEARCH(\">\",'CFR - XML import'!$A5,1)+1,SEARCH(\"/\",'CFR - XML import'!$A5,1)-SEARCH(\">\",'CFR - XML import'!$A5,1)-2)))","v":0},{"$f":"IF(ISERROR(FIND(AL$3,'CFR - XML import'!$A5)),0,VALUE(MID('CFR - XML import'!$A5,SEARCH(\">\",'CFR - XML import'!$A5,1)+1,SEARCH(\"/\",'CFR - XML import'!$A5,1)-SEARCH(\">\",'CFR - XML import'!$A5,1)-2)))","v":0},{"$f":"IF(ISERROR(FIND(AM$3,'CFR - XML import'!$A5)),0,VALUE(MID('CFR - XML import'!$A5,SEARCH(\">\",'CFR - XML import'!$A5,1)+1,SEARCH(\"/\",'CFR - XML import'!$A5,1)-SEARCH(\">\",'CFR - XML import'!$A5,1)-2)))","v":0},{"$f":"IF(ISERROR(FIND(AN$3,'CFR - XML import'!$A5)),0,VALUE(MID('CFR - XML import'!$A5,SEARCH(\">\",'CFR - XML import'!$A5,1)+1,SEARCH(\"/\",'CFR - XML import'!$A5,1)-SEARCH(\">\",'CFR - XML import'!$A5,1)-2)))","v":0},{"$f":"IF(ISERROR(FIND(AO$3,'CFR - XML import'!$A5)),0,VALUE(MID('CFR - XML import'!$A5,SEARCH(\">\",'CFR - XML import'!$A5,1)+1,SEARCH(\"/\",'CFR - XML import'!$A5,1)-SEARCH(\">\",'CFR - XML import'!$A5,1)-2)))","v":0},{"$f":"IF(ISERROR(FIND(AP$3,'CFR - XML import'!$A5)),0,VALUE(MID('CFR - XML import'!$A5,SEARCH(\">\",'CFR - XML import'!$A5,1)+1,SEARCH(\"/\",'CFR - XML import'!$A5,1)-SEARCH(\">\",'CFR - XML import'!$A5,1)-2)))","v":0},{"$f":"IF(ISERROR(FIND(AQ$3,'CFR - XML import'!$A5)),0,VALUE(MID('CFR - XML import'!$A5,SEARCH(\">\",'CFR - XML import'!$A5,1)+1,SEARCH(\"/\",'CFR - XML import'!$A5,1)-SEARCH(\">\",'CFR - XML import'!$A5,1)-2)))","v":0},{"$f":"IF(ISERROR(FIND(AR$3,'CFR - XML import'!$A5)),0,VALUE(MID('CFR - XML import'!$A5,SEARCH(\">\",'CFR - XML import'!$A5,1)+1,SEARCH(\"/\",'CFR - XML import'!$A5,1)-SEARCH(\">\",'CFR - XML import'!$A5,1)-2)))","v":0},{"$f":"IF(ISERROR(FIND(AS$3,'CFR - XML import'!$A5)),0,VALUE(MID('CFR - XML import'!$A5,SEARCH(\">\",'CFR - XML import'!$A5,1)+1,SEARCH(\"/\",'CFR - XML import'!$A5,1)-SEARCH(\">\",'CFR - XML import'!$A5,1)-2)))","v":0},{"$f":"IF(ISERROR(FIND(AT$3,'CFR - XML import'!$A5)),0,VALUE(MID('CFR - XML import'!$A5,SEARCH(\">\",'CFR - XML import'!$A5,1)+1,SEARCH(\"/\",'CFR - XML import'!$A5,1)-SEARCH(\">\",'CFR - XML import'!$A5,1)-2)))","v":0},{"$f":"IF(ISERROR(FIND(AU$3,'CFR - XML import'!$A5)),0,VALUE(MID('CFR - XML import'!$A5,SEARCH(\">\",'CFR - XML import'!$A5,1)+1,SEARCH(\"/\",'CFR - XML import'!$A5,1)-SEARCH(\">\",'CFR - XML import'!$A5,1)-2)))","v":0},{"$f":"IF(ISERROR(FIND(AV$3,'CFR - XML import'!$A5)),0,VALUE(MID('CFR - XML import'!$A5,SEARCH(\">\",'CFR - XML import'!$A5,1)+1,SEARCH(\"/\",'CFR - XML import'!$A5,1)-SEARCH(\">\",'CFR - XML import'!$A5,1)-2)))","v":0},{"$f":"IF(ISERROR(FIND(AW$3,'CFR - XML import'!$A5)),0,VALUE(MID('CFR - XML import'!$A5,SEARCH(\">\",'CFR - XML import'!$A5,1)+1,SEARCH(\"/\",'CFR - XML import'!$A5,1)-SEARCH(\">\",'CFR - XML import'!$A5,1)-2)))","v":0},{"$f":"IF(ISERROR(FIND(AX$3,'CFR - XML import'!$A5)),0,VALUE(MID('CFR - XML import'!$A5,SEARCH(\">\",'CFR - XML import'!$A5,1)+1,SEARCH(\"/\",'CFR - XML import'!$A5,1)-SEARCH(\">\",'CFR - XML import'!$A5,1)-2)))","v":0},{"$f":"IF(ISERROR(FIND(AY$3,'CFR - XML import'!$A5)),0,VALUE(MID('CFR - XML import'!$A5,SEARCH(\">\",'CFR - XML import'!$A5,1)+1,SEARCH(\"/\",'CFR - XML import'!$A5,1)-SEARCH(\">\",'CFR - XML import'!$A5,1)-2)))","v":0},{"$f":"IF(ISERROR(FIND(AZ$3,'CFR - XML import'!$A5)),0,VALUE(MID('CFR - XML import'!$A5,SEARCH(\">\",'CFR - XML import'!$A5,1)+1,SEARCH(\"/\",'CFR - XML import'!$A5,1)-SEARCH(\">\",'CFR - XML import'!$A5,1)-2)))","v":0},{"$f":"IF(ISERROR(FIND(BA$3,'CFR - XML import'!$A5)),0,VALUE(MID('CFR - XML import'!$A5,SEARCH(\">\",'CFR - XML import'!$A5,1)+1,SEARCH(\"/\",'CFR - XML import'!$A5,1)-SEARCH(\">\",'CFR - XML import'!$A5,1)-2)))","v":0},{"$f":"IF(ISERROR(FIND(BB$3,'CFR - XML import'!$A5)),0,VALUE(MID('CFR - XML import'!$A5,SEARCH(\">\",'CFR - XML import'!$A5,1)+1,SEARCH(\"/\",'CFR - XML import'!$A5,1)-SEARCH(\">\",'CFR - XML import'!$A5,1)-2)))","v":0},{"$f":"IF(ISERROR(FIND(BC$3,'CFR - XML import'!$A5)),0,VALUE(MID('CFR - XML import'!$A5,SEARCH(\">\",'CFR - XML import'!$A5,1)+1,SEARCH(\"/\",'CFR - XML import'!$A5,1)-SEARCH(\">\",'CFR - XML import'!$A5,1)-2)))","v":0},{"$f":"IF(ISERROR(FIND(BD$3,'CFR - XML import'!$A5)),0,VALUE(MID('CFR - XML import'!$A5,SEARCH(\">\",'CFR - XML import'!$A5,1)+1,SEARCH(\"/\",'CFR - XML import'!$A5,1)-SEARCH(\">\",'CFR - XML import'!$A5,1)-2)))","v":0},{"$f":"IF(ISERROR(FIND(BE$3,'CFR - XML import'!$A5)),0,VALUE(MID('CFR - XML import'!$A5,SEARCH(\">\",'CFR - XML import'!$A5,1)+1,SEARCH(\"/\",'CFR - XML import'!$A5,1)-SEARCH(\">\",'CFR - XML import'!$A5,1)-2)))","v":0},{"$f":"IF(ISERROR(FIND(BF$3,'CFR - XML import'!$A5)),0,VALUE(MID('CFR - XML import'!$A5,SEARCH(\">\",'CFR - XML import'!$A5,1)+1,SEARCH(\"/\",'CFR - XML import'!$A5,1)-SEARCH(\">\",'CFR - XML import'!$A5,1)-2)))","v":0},{"$f":"IF(ISERROR(FIND(BG$3,'CFR - XML import'!$A5)),0,VALUE(MID('CFR - XML import'!$A5,SEARCH(\">\",'CFR - XML import'!$A5,1)+1,SEARCH(\"/\",'CFR - XML import'!$A5,1)-SEARCH(\">\",'CFR - XML import'!$A5,1)-2)))","v":0},{"$f":"IF(ISERROR(FIND(BH$3,'CFR - XML import'!$A5)),0,VALUE(MID('CFR - XML import'!$A5,SEARCH(\">\",'CFR - XML import'!$A5,1)+1,SEARCH(\"/\",'CFR - XML import'!$A5,1)-SEARCH(\">\",'CFR - XML import'!$A5,1)-2)))","v":0},{"$f":"IF(ISERROR(FIND(BI$3,'CFR - XML import'!$A5)),0,VALUE(MID('CFR - XML import'!$A5,SEARCH(\">\",'CFR - XML import'!$A5,1)+1,SEARCH(\"/\",'CFR - XML import'!$A5,1)-SEARCH(\">\",'CFR - XML import'!$A5,1)-2)))","v":0},{"$f":"IF(ISERROR(FIND(BJ$3,'CFR - XML import'!$A5)),0,VALUE(MID('CFR - XML import'!$A5,SEARCH(\">\",'CFR - XML import'!$A5,1)+1,SEARCH(\"/\",'CFR - XML import'!$A5,1)-SEARCH(\">\",'CFR - XML import'!$A5,1)-2)))","v":0},{"$f":"IF(ISERROR(FIND(BK$3,'CFR - XML import'!$A5)),0,VALUE(MID('CFR - XML import'!$A5,SEARCH(\">\",'CFR - XML import'!$A5,1)+1,SEARCH(\"/\",'CFR - XML import'!$A5,1)-SEARCH(\">\",'CFR - XML import'!$A5,1)-2)))","v":0},{"$f":"IF(ISERROR(FIND(BL$3,'CFR - XML import'!$A5)),0,VALUE(MID('CFR - XML import'!$A5,SEARCH(\">\",'CFR - XML import'!$A5,1)+1,SEARCH(\"/\",'CFR - XML import'!$A5,1)-SEARCH(\">\",'CFR - XML import'!$A5,1)-2)))","v":0},{"$f":"IF(ISERROR(FIND(BM$3,'CFR - XML import'!$A5)),0,VALUE(MID('CFR - XML import'!$A5,SEARCH(\">\",'CFR - XML import'!$A5,1)+1,SEARCH(\"/\",'CFR - XML import'!$A5,1)-SEARCH(\">\",'CFR - XML import'!$A5,1)-2)))","v":0},{"$f":"IF(ISERROR(FIND(BN$3,'CFR - XML import'!$A5)),0,VALUE(MID('CFR - XML import'!$A5,SEARCH(\">\",'CFR - XML import'!$A5,1)+1,SEARCH(\"/\",'CFR - XML import'!$A5,1)-SEARCH(\">\",'CFR - XML import'!$A5,1)-2)))","v":0},{"$f":"IF(ISERROR(FIND(BO$3,'CFR - XML import'!$A5)),0,VALUE(MID('CFR - XML import'!$A5,SEARCH(\">\",'CFR - XML import'!$A5,1)+1,SEARCH(\"/\",'CFR - XML import'!$A5,1)-SEARCH(\">\",'CFR - XML import'!$A5,1)-2)))","v":0},{"$f":"IF(ISERROR(FIND(BP$3,'CFR - XML import'!$A5)),0,VALUE(MID('CFR - XML import'!$A5,SEARCH(\">\",'CFR - XML import'!$A5,1)+1,SEARCH(\"/\",'CFR - XML import'!$A5,1)-SEARCH(\">\",'CFR - XML import'!$A5,1)-2)))","v":0},{"$f":"IF(ISERROR(FIND(BQ$3,'CFR - XML import'!$A5)),0,VALUE(MID('CFR - XML import'!$A5,SEARCH(\">\",'CFR - XML import'!$A5,1)+1,SEARCH(\"/\",'CFR - XML import'!$A5,1)-SEARCH(\">\",'CFR - XML import'!$A5,1)-2)))","v":0},{"$f":"IF(ISERROR(FIND(BR$3,'CFR - XML import'!$A5)),0,VALUE(MID('CFR - XML import'!$A5,SEARCH(\">\",'CFR - XML import'!$A5,1)+1,SEARCH(\"/\",'CFR - XML import'!$A5,1)-SEARCH(\">\",'CFR - XML import'!$A5,1)-2)))","v":0},{"$f":"IF(ISERROR(FIND(BS$3,'CFR - XML import'!$A5)),0,VALUE(MID('CFR - XML import'!$A5,SEARCH(\">\",'CFR - XML import'!$A5,1)+1,SEARCH(\"/\",'CFR - XML import'!$A5,1)-SEARCH(\">\",'CFR - XML import'!$A5,1)-2)))","v":0},{"$f":"IF(ISERROR(FIND(BT$3,'CFR - XML import'!$A5)),0,VALUE(MID('CFR - XML import'!$A5,SEARCH(\">\",'CFR - XML import'!$A5,1)+1,SEARCH(\"/\",'CFR - XML import'!$A5,1)-SEARCH(\">\",'CFR - XML import'!$A5,1)-2)))","v":0},{"$f":"IF(ISERROR(FIND(BU$3,'CFR - XML import'!$A5)),0,VALUE(MID('CFR - XML import'!$A5,SEARCH(\">\",'CFR - XML import'!$A5,1)+1,SEARCH(\"/\",'CFR - XML import'!$A5,1)-SEARCH(\">\",'CFR - XML import'!$A5,1)-2)))","v":0},{"$f":"IF(ISERROR(FIND(BV$3,'CFR - XML import'!$A5)),0,VALUE(MID('CFR - XML import'!$A5,SEARCH(\">\",'CFR - XML import'!$A5,1)+1,SEARCH(\"/\",'CFR - XML import'!$A5,1)-SEARCH(\">\",'CFR - XML import'!$A5,1)-2)))","v":0},{"$f":"IF(ISERROR(FIND(BW$3,'CFR - XML import'!$A5)),0,VALUE(MID('CFR - XML import'!$A5,SEARCH(\">\",'CFR - XML import'!$A5,1)+1,SEARCH(\"/\",'CFR - XML import'!$A5,1)-SEARCH(\">\",'CFR - XML import'!$A5,1)-2)))","v":0},{"$f":"IF(ISERROR(FIND(BX$3,'CFR - XML import'!$A5)),0,VALUE(MID('CFR - XML import'!$A5,SEARCH(\">\",'CFR - XML import'!$A5,1)+1,SEARCH(\"/\",'CFR - XML import'!$A5,1)-SEARCH(\">\",'CFR - XML import'!$A5,1)-2)))","v":0},{"$f":"IF(ISERROR(FIND(BY$3,'CFR - XML import'!$A5)),0,VALUE(MID('CFR - XML import'!$A5,SEARCH(\">\",'CFR - XML import'!$A5,1)+1,SEARCH(\"/\",'CFR - XML import'!$A5,1)-SEARCH(\">\",'CFR - XML import'!$A5,1)-2)))","v":0},{"$f":"IF(ISERROR(FIND(BZ$3,'CFR - XML import'!$A5)),0,VALUE(MID('CFR - XML import'!$A5,SEARCH(\">\",'CFR - XML import'!$A5,1)+1,SEARCH(\"/\",'CFR - XML import'!$A5,1)-SEARCH(\">\",'CFR - XML import'!$A5,1)-2)))","v":0},null,null,null,null,null,null,{"$f":"IF(ISERROR(IF(MID('CFR - XML import'!$A5,LEN($CF$4)+1,LEN('CFR - XML import'!$A5)-(2*LEN($CF$4)+1))=\"RMMS\",1,IF(MID('CFR - XML import'!$A5,LEN(\"    <InputSystem>\")+1,LEN('CFR - XML import'!$A5)-(LEN(\"    <InputSystem>\")+LEN($CF$4)+1))=\"SIMS\",2,0))),0,IF(MID('CFR - XML import'!$A5,LEN($CF$4)+1,LEN('CFR - XML import'!$A5)-(2*LEN($CF$4)+1))=\"RMMS\",1,IF(MID('CFR - XML import'!$A5,LEN(\"    <InputSystem>\")+1,LEN('CFR - XML import'!$A5)-(LEN(\"    <InputSystem>\")+LEN($CF$4)+1))=\"SIMS\",2,0)))","v":0},{"$f":"IF(ISERROR(FIND(CH$3,'CFR - XML import'!$A5)),0,MID('CFR - XML import'!$A5,SEARCH(\">\",'CFR - XML import'!$A5,1)+1,SEARCH(\"/\",'CFR - XML import'!$A5,1)-SEARCH(\">\",'CFR - XML import'!$A5,1)-2))","v":0},{"$f":"IF(ISERROR(FIND(CI$3,'CFR - XML import'!$A5)),0,MID('CFR - XML import'!$A5,SEARCH(\">\",'CFR - XML import'!$A5,1)+1,SEARCH(\"/\",'CFR - XML import'!$A5,1)-SEARCH(\">\",'CFR - XML import'!$A5,1)-2))","v":0},{"$f":"IF(ISERROR(FIND(CJ$3,'CFR - XML import'!$A5)),0,MID('CFR - XML import'!$A5,SEARCH(\">\",'CFR - XML import'!$A5,1)+1,SEARCH(\"/\",'CFR - XML import'!$A5,1)-SEARCH(\">\",'CFR - XML import'!$A5,1)-2))","v":0},{"$f":"IF(ISERROR(FIND(CK$3,'CFR - XML import'!$A5)),0,MID('CFR - XML import'!$A5,SEARCH(\">\",'CFR - XML import'!$A5,1)+1,SEARCH(\"/\",'CFR - XML import'!$A5,1)-SEARCH(\">\",'CFR - XML import'!$A5,1)-2))","v":0},{"$f":"IF(ISERROR(FIND(CL$3,'CFR - XML import'!$A5)),0,MID('CFR - XML import'!$A5,SEARCH(\">\",'CFR - XML import'!$A5,1)+1,SEARCH(\"/\",'CFR - XML import'!$A5,1)-SEARCH(\">\",'CFR - XML import'!$A5,1)-2))","v":0}]
[{"$f":"IF(AND('CFR - XML import'!A6<>\"\",LEFT('CFR - XML import'!A6,1)<>\"<\",LEFT('CFR - XML import'!A6,3)<>\"  <\",LEFT('CFR - XML import'!A6,5)<>\"    <\",LEFT('CFR - XML import'!A6,7)<>\"      <\",LEFT('CFR - XML import'!A6,9)<>\"        <\",$B$1=\"SIMS\"),'CFR - XML import'!A6,IF(AND(LEFT('CFR - XML import'!A6,9)=\"<Details>\",$B$1=\"RM\"),'CFR - XML import'!A6,\"\"))","v":""},{"$f":"IF(ISERROR(FIND(B$3,'CFR - XML import'!$A6)),0,VALUE(MID('CFR - XML import'!$A6,SEARCH(\">\",'CFR - XML import'!$A6,1)+1,SEARCH(\"/\",'CFR - XML import'!$A6,1)-SEARCH(\">\",'CFR - XML import'!$A6,1)-2)))","v":0},null,{"$f":"IF(ISERROR(FIND(D$3,'CFR - XML import'!$A6)),0,MID('CFR - XML import'!$A6,SEARCH(\">\",'CFR - XML import'!$A6,1)+1,SEARCH(\"/\",'CFR - XML import'!$A6,1)-SEARCH(\">\",'CFR - XML import'!$A6,1)-2))","v":0},{"$f":"IF(ISERROR(FIND(E$3,'CFR - XML import'!$A6)),0,MID('CFR - XML import'!$A6,SEARCH(\">\",'CFR - XML import'!$A6,1)+1,SEARCH(\"/\",'CFR - XML import'!$A6,1)-SEARCH(\">\",'CFR - XML import'!$A6,1)-2))","v":0},{"$f":"IF($B$1=\"SIMS\",IF(ISERROR(FIND(F$3,'CFR - XML import'!$A6)),0,VALUE(MID('CFR - XML import'!$A6,15,10))),IF(ISERROR(FIND(F$3,'CFR - XML import'!$A6)),0,VALUE(MID('CFR - XML import'!$A6,11,10))))","v":"00:00:00"},{"$f":"IF(ISERROR(FIND(G$3,'CFR - XML import'!$A6)),0,VALUE(MID('CFR - XML import'!$A6,SEARCH(\">\",'CFR - XML import'!$A6,1)+1,SEARCH(\"/\",'CFR - XML import'!$A6,1)-SEARCH(\">\",'CFR - XML import'!$A6,1)-2)))","v":0},{"$f":"IF(ISERROR(FIND(H$3,'CFR - XML import'!$A6)),0,VALUE(MID('CFR - XML import'!$A6,SEARCH(\">\",'CFR - XML import'!$A6,1)+1,SEARCH(\"/\",'CFR - XML import'!$A6,1)-SEARCH(\">\",'CFR - XML import'!$A6,1)-2)))","v":0},{"$f":"IF(ISERROR(FIND(I$3,'CFR - XML import'!$A6)),0,VALUE(MID('CFR - XML import'!$A6,SEARCH(\">\",'CFR - XML import'!$A6,1)+1,SEARCH(\"/\",'CFR - XML import'!$A6,1)-SEARCH(\">\",'CFR - XML import'!$A6,1)-2)))","v":0},{"$f":"IF(ISERROR(FIND(J$3,'CFR - XML import'!$A6)),0,VALUE(MID('CFR - XML import'!$A6,SEARCH(\">\",'CFR - XML import'!$A6,1)+1,SEARCH(\"/\",'CFR - XML import'!$A6,1)-SEARCH(\">\",'CFR - XML import'!$A6,1)-2)))","v":0},{"$f":"IF(ISERROR(FIND(K$3,'CFR - XML import'!$A6)),0,VALUE(MID('CFR - XML import'!$A6,SEARCH(\">\",'CFR - XML import'!$A6,1)+1,SEARCH(\"/\",'CFR - XML import'!$A6,1)-SEARCH(\">\",'CFR - XML import'!$A6,1)-2)))","v":0},{"$f":"IF(ISERROR(FIND(L$3,'CFR - XML import'!$A6)),0,VALUE(MID('CFR - XML import'!$A6,SEARCH(\">\",'CFR - XML import'!$A6,1)+1,SEARCH(\"/\",'CFR - XML import'!$A6,1)-SEARCH(\">\",'CFR - XML import'!$A6,1)-2)))","v":0},{"$f":"IF(ISERROR(FIND(M$3,'CFR - XML import'!$A6)),0,VALUE(MID('CFR - XML import'!$A6,SEARCH(\">\",'CFR - XML import'!$A6,1)+1,SEARCH(\"/\",'CFR - XML import'!$A6,1)-SEARCH(\">\",'CFR - XML import'!$A6,1)-2)))","v":0},{"$f":"IF(ISERROR(FIND(N$3,'CFR - XML import'!$A6)),0,VALUE(MID('CFR - XML import'!$A6,SEARCH(\">\",'CFR - XML import'!$A6,1)+1,SEARCH(\"/\",'CFR - XML import'!$A6,1)-SEARCH(\">\",'CFR - XML import'!$A6,1)-2)))","v":0},{"$f":"IF(ISERROR(FIND(O$3,'CFR - XML import'!$A6)),0,VALUE(MID('CFR - XML import'!$A6,SEARCH(\">\",'CFR - XML import'!$A6,1)+1,SEARCH(\"/\",'CFR - XML import'!$A6,1)-SEARCH(\">\",'CFR - XML import'!$A6,1)-2)))","v":0},{"$f":"IF(ISERROR(FIND(P$3,'CFR - XML import'!$A6)),0,VALUE(MID('CFR - XML import'!$A6,SEARCH(\">\",'CFR - XML import'!$A6,1)+1,SEARCH(\"/\",'CFR - XML import'!$A6,1)-SEARCH(\">\",'CFR - XML import'!$A6,1)-2)))","v":0},{"$f":"IF(ISERROR(FIND(Q$3,'CFR - XML import'!$A6)),0,VALUE(MID('CFR - XML import'!$A6,SEARCH(\">\",'CFR - XML import'!$A6,1)+1,SEARCH(\"/\",'CFR - XML import'!$A6,1)-SEARCH(\">\",'CFR - XML import'!$A6,1)-2)))","v":0},{"$f":"IF(ISERROR(FIND(R$3,'CFR - XML import'!$A6)),0,VALUE(MID('CFR - XML import'!$A6,SEARCH(\">\",'CFR - XML import'!$A6,1)+1,SEARCH(\"/\",'CFR - XML import'!$A6,1)-SEARCH(\">\",'CFR - XML import'!$A6,1)-2)))","v":0},{"$f":"IF(ISERROR(FIND(S$3,'CFR - XML import'!$A6)),0,VALUE(MID('CFR - XML import'!$A6,SEARCH(\">\",'CFR - XML import'!$A6,1)+1,SEARCH(\"/\",'CFR - XML import'!$A6,1)-SEARCH(\">\",'CFR - XML import'!$A6,1)-2)))","v":0},{"$f":"IF(ISERROR(FIND(T$3,'CFR - XML import'!$A6)),0,VALUE(MID('CFR - XML import'!$A6,SEARCH(\">\",'CFR - XML import'!$A6,1)+1,SEARCH(\"/\",'CFR - XML import'!$A6,1)-SEARCH(\">\",'CFR - XML import'!$A6,1)-2)))","v":0},{"$f":"IF(ISERROR(FIND(U$3,'CFR - XML import'!$A6)),0,VALUE(MID('CFR - XML import'!$A6,SEARCH(\">\",'CFR - XML import'!$A6,1)+1,SEARCH(\"/\",'CFR - XML import'!$A6,1)-SEARCH(\">\",'CFR - XML import'!$A6,1)-2)))","v":0},{"$f":"IF(ISERROR(FIND(V$3,'CFR - XML import'!$A6)),0,VALUE(MID('CFR - XML import'!$A6,SEARCH(\">\",'CFR - XML import'!$A6,1)+1,SEARCH(\"/\",'CFR - XML import'!$A6,1)-SEARCH(\">\",'CFR - XML import'!$A6,1)-2)))","v":0},{"$f":"IF(ISERROR(FIND(W$3,'CFR - XML import'!$A6)),0,VALUE(MID('CFR - XML import'!$A6,SEARCH(\">\",'CFR - XML import'!$A6,1)+1,SEARCH(\"/\",'CFR - XML import'!$A6,1)-SEARCH(\">\",'CFR - XML import'!$A6,1)-2)))","v":0},null,{"$f":"IF(ISERROR(FIND(Y$3,'CFR - XML import'!$A6)),0,VALUE(MID('CFR - XML import'!$A6,SEARCH(\">\",'CFR - XML import'!$A6,1)+1,SEARCH(\"/\",'CFR - XML import'!$A6,1)-SEARCH(\">\",'CFR - XML import'!$A6,1)-2)))","v":0},{"$f":"IF(ISERROR(FIND(Z$3,'CFR - XML import'!$A6)),0,VALUE(MID('CFR - XML import'!$A6,SEARCH(\">\",'CFR - XML import'!$A6,1)+1,SEARCH(\"/\",'CFR - XML import'!$A6,1)-SEARCH(\">\",'CFR - XML import'!$A6,1)-2)))","v":0},{"$f":"IF(ISERROR(FIND(AA$3,'CFR - XML import'!$A6)),0,VALUE(MID('CFR - XML import'!$A6,SEARCH(\">\",'CFR - XML import'!$A6,1)+1,SEARCH(\"/\",'CFR - XML import'!$A6,1)-SEARCH(\">\",'CFR - XML import'!$A6,1)-2)))","v":0},{"$f":"IF(ISERROR(FIND(AB$3,'CFR - XML import'!$A6)),0,VALUE(MID('CFR - XML import'!$A6,SEARCH(\">\",'CFR - XML import'!$A6,1)+1,SEARCH(\"/\",'CFR - XML import'!$A6,1)-SEARCH(\">\",'CFR - XML import'!$A6,1)-2)))","v":0},{"$f":"IF(ISERROR(FIND(AC$3,'CFR - XML import'!$A6)),0,VALUE(MID('CFR - XML import'!$A6,SEARCH(\">\",'CFR - XML import'!$A6,1)+1,SEARCH(\"/\",'CFR - XML import'!$A6,1)-SEARCH(\">\",'CFR - XML import'!$A6,1)-2)))","v":0},{"$f":"IF(ISERROR(FIND(AD$3,'CFR - XML import'!$A6)),0,VALUE(MID('CFR - XML import'!$A6,SEARCH(\">\",'CFR - XML import'!$A6,1)+1,SEARCH(\"/\",'CFR - XML import'!$A6,1)-SEARCH(\">\",'CFR - XML import'!$A6,1)-2)))","v":0},{"$f":"IF(ISERROR(FIND(AE$3,'CFR - XML import'!$A6)),0,VALUE(MID('CFR - XML import'!$A6,SEARCH(\">\",'CFR - XML import'!$A6,1)+1,SEARCH(\"/\",'CFR - XML import'!$A6,1)-SEARCH(\">\",'CFR - XML import'!$A6,1)-2)))","v":0},{"$f":"IF(ISERROR(FIND(AF$3,'CFR - XML import'!$A6)),0,VALUE(MID('CFR - XML import'!$A6,SEARCH(\">\",'CFR - XML import'!$A6,1)+1,SEARCH(\"/\",'CFR - XML import'!$A6,1)-SEARCH(\">\",'CFR - XML import'!$A6,1)-2)))","v":0},{"$f":"IF(ISERROR(FIND(AG$3,'CFR - XML import'!$A6)),0,VALUE(MID('CFR - XML import'!$A6,SEARCH(\">\",'CFR - XML import'!$A6,1)+1,SEARCH(\"/\",'CFR - XML import'!$A6,1)-SEARCH(\">\",'CFR - XML import'!$A6,1)-2)))","v":0},{"$f":"IF(ISERROR(FIND(AH$3,'CFR - XML import'!$A6)),0,VALUE(MID('CFR - XML import'!$A6,SEARCH(\">\",'CFR - XML import'!$A6,1)+1,SEARCH(\"/\",'CFR - XML import'!$A6,1)-SEARCH(\">\",'CFR - XML import'!$A6,1)-2)))","v":0},{"$f":"IF(ISERROR(FIND(AI$3,'CFR - XML import'!$A6)),0,VALUE(MID('CFR - XML import'!$A6,SEARCH(\">\",'CFR - XML import'!$A6,1)+1,SEARCH(\"/\",'CFR - XML import'!$A6,1)-SEARCH(\">\",'CFR - XML import'!$A6,1)-2)))","v":0},{"$f":"IF(ISERROR(FIND(AJ$3,'CFR - XML import'!$A6)),0,VALUE(MID('CFR - XML import'!$A6,SEARCH(\">\",'CFR - XML import'!$A6,1)+1,SEARCH(\"/\",'CFR - XML import'!$A6,1)-SEARCH(\">\",'CFR - XML import'!$A6,1)-2)))","v":0},{"$f":"IF(ISERROR(FIND(AK$3,'CFR - XML import'!$A6)),0,VALUE(MID('CFR - XML import'!$A6,SEARCH(\">\",'CFR - XML import'!$A6,1)+1,SEARCH(\"/\",'CFR - XML import'!$A6,1)-SEARCH(\">\",'CFR - XML import'!$A6,1)-2)))","v":0},{"$f":"IF(ISERROR(FIND(AL$3,'CFR - XML import'!$A6)),0,VALUE(MID('CFR - XML import'!$A6,SEARCH(\">\",'CFR - XML import'!$A6,1)+1,SEARCH(\"/\",'CFR - XML import'!$A6,1)-SEARCH(\">\",'CFR - XML import'!$A6,1)-2)))","v":0},{"$f":"IF(ISERROR(FIND(AM$3,'CFR - XML import'!$A6)),0,VALUE(MID('CFR - XML import'!$A6,SEARCH(\">\",'CFR - XML import'!$A6,1)+1,SEARCH(\"/\",'CFR - XML import'!$A6,1)-SEARCH(\">\",'CFR - XML import'!$A6,1)-2)))","v":0},{"$f":"IF(ISERROR(FIND(AN$3,'CFR - XML import'!$A6)),0,VALUE(MID('CFR - XML import'!$A6,SEARCH(\">\",'CFR - XML import'!$A6,1)+1,SEARCH(\"/\",'CFR - XML import'!$A6,1)-SEARCH(\">\",'CFR - XML import'!$A6,1)-2)))","v":0},{"$f":"IF(ISERROR(FIND(AO$3,'CFR - XML import'!$A6)),0,VALUE(MID('CFR - XML import'!$A6,SEARCH(\">\",'CFR - XML import'!$A6,1)+1,SEARCH(\"/\",'CFR - XML import'!$A6,1)-SEARCH(\">\",'CFR - XML import'!$A6,1)-2)))","v":0},{"$f":"IF(ISERROR(FIND(AP$3,'CFR - XML import'!$A6)),0,VALUE(MID('CFR - XML import'!$A6,SEARCH(\">\",'CFR - XML import'!$A6,1)+1,SEARCH(\"/\",'CFR - XML import'!$A6,1)-SEARCH(\">\",'CFR - XML import'!$A6,1)-2)))","v":0},{"$f":"IF(ISERROR(FIND(AQ$3,'CFR - XML import'!$A6)),0,VALUE(MID('CFR - XML import'!$A6,SEARCH(\">\",'CFR - XML import'!$A6,1)+1,SEARCH(\"/\",'CFR - XML import'!$A6,1)-SEARCH(\">\",'CFR - XML import'!$A6,1)-2)))","v":0},{"$f":"IF(ISERROR(FIND(AR$3,'CFR - XML import'!$A6)),0,VALUE(MID('CFR - XML import'!$A6,SEARCH(\">\",'CFR - XML import'!$A6,1)+1,SEARCH(\"/\",'CFR - XML import'!$A6,1)-SEARCH(\">\",'CFR - XML import'!$A6,1)-2)))","v":0},{"$f":"IF(ISERROR(FIND(AS$3,'CFR - XML import'!$A6)),0,VALUE(MID('CFR - XML import'!$A6,SEARCH(\">\",'CFR - XML import'!$A6,1)+1,SEARCH(\"/\",'CFR - XML import'!$A6,1)-SEARCH(\">\",'CFR - XML import'!$A6,1)-2)))","v":0},{"$f":"IF(ISERROR(FIND(AT$3,'CFR - XML import'!$A6)),0,VALUE(MID('CFR - XML import'!$A6,SEARCH(\">\",'CFR - XML import'!$A6,1)+1,SEARCH(\"/\",'CFR - XML import'!$A6,1)-SEARCH(\">\",'CFR - XML import'!$A6,1)-2)))","v":0},{"$f":"IF(ISERROR(FIND(AU$3,'CFR - XML import'!$A6)),0,VALUE(MID('CFR - XML import'!$A6,SEARCH(\">\",'CFR - XML import'!$A6,1)+1,SEARCH(\"/\",'CFR - XML import'!$A6,1)-SEARCH(\">\",'CFR - XML import'!$A6,1)-2)))","v":0},{"$f":"IF(ISERROR(FIND(AV$3,'CFR - XML import'!$A6)),0,VALUE(MID('CFR - XML import'!$A6,SEARCH(\">\",'CFR - XML import'!$A6,1)+1,SEARCH(\"/\",'CFR - XML import'!$A6,1)-SEARCH(\">\",'CFR - XML import'!$A6,1)-2)))","v":0},{"$f":"IF(ISERROR(FIND(AW$3,'CFR - XML import'!$A6)),0,VALUE(MID('CFR - XML import'!$A6,SEARCH(\">\",'CFR - XML import'!$A6,1)+1,SEARCH(\"/\",'CFR - XML import'!$A6,1)-SEARCH(\">\",'CFR - XML import'!$A6,1)-2)))","v":0},{"$f":"IF(ISERROR(FIND(AX$3,'CFR - XML import'!$A6)),0,VALUE(MID('CFR - XML import'!$A6,SEARCH(\">\",'CFR - XML import'!$A6,1)+1,SEARCH(\"/\",'CFR - XML import'!$A6,1)-SEARCH(\">\",'CFR - XML import'!$A6,1)-2)))","v":0},{"$f":"IF(ISERROR(FIND(AY$3,'CFR - XML import'!$A6)),0,VALUE(MID('CFR - XML import'!$A6,SEARCH(\">\",'CFR - XML import'!$A6,1)+1,SEARCH(\"/\",'CFR - XML import'!$A6,1)-SEARCH(\">\",'CFR - XML import'!$A6,1)-2)))","v":0},{"$f":"IF(ISERROR(FIND(AZ$3,'CFR - XML import'!$A6)),0,VALUE(MID('CFR - XML import'!$A6,SEARCH(\">\",'CFR - XML import'!$A6,1)+1,SEARCH(\"/\",'CFR - XML import'!$A6,1)-SEARCH(\">\",'CFR - XML import'!$A6,1)-2)))","v":0},{"$f":"IF(ISERROR(FIND(BA$3,'CFR - XML import'!$A6)),0,VALUE(MID('CFR - XML import'!$A6,SEARCH(\">\",'CFR - XML import'!$A6,1)+1,SEARCH(\"/\",'CFR - XML import'!$A6,1)-SEARCH(\">\",'CFR - XML import'!$A6,1)-2)))","v":0},{"$f":"IF(ISERROR(FIND(BB$3,'CFR - XML import'!$A6)),0,VALUE(MID('CFR - XML import'!$A6,SEARCH(\">\",'CFR - XML import'!$A6,1)+1,SEARCH(\"/\",'CFR - XML import'!$A6,1)-SEARCH(\">\",'CFR - XML import'!$A6,1)-2)))","v":0},{"$f":"IF(ISERROR(FIND(BC$3,'CFR - XML import'!$A6)),0,VALUE(MID('CFR - XML import'!$A6,SEARCH(\">\",'CFR - XML import'!$A6,1)+1,SEARCH(\"/\",'CFR - XML import'!$A6,1)-SEARCH(\">\",'CFR - XML import'!$A6,1)-2)))","v":0},{"$f":"IF(ISERROR(FIND(BD$3,'CFR - XML import'!$A6)),0,VALUE(MID('CFR - XML import'!$A6,SEARCH(\">\",'CFR - XML import'!$A6,1)+1,SEARCH(\"/\",'CFR - XML import'!$A6,1)-SEARCH(\">\",'CFR - XML import'!$A6,1)-2)))","v":0},{"$f":"IF(ISERROR(FIND(BE$3,'CFR - XML import'!$A6)),0,VALUE(MID('CFR - XML import'!$A6,SEARCH(\">\",'CFR - XML import'!$A6,1)+1,SEARCH(\"/\",'CFR - XML import'!$A6,1)-SEARCH(\">\",'CFR - XML import'!$A6,1)-2)))","v":0},{"$f":"IF(ISERROR(FIND(BF$3,'CFR - XML import'!$A6)),0,VALUE(MID('CFR - XML import'!$A6,SEARCH(\">\",'CFR - XML import'!$A6,1)+1,SEARCH(\"/\",'CFR - XML import'!$A6,1)-SEARCH(\">\",'CFR - XML import'!$A6,1)-2)))","v":0},{"$f":"IF(ISERROR(FIND(BG$3,'CFR - XML import'!$A6)),0,VALUE(MID('CFR - XML import'!$A6,SEARCH(\">\",'CFR - XML import'!$A6,1)+1,SEARCH(\"/\",'CFR - XML import'!$A6,1)-SEARCH(\">\",'CFR - XML import'!$A6,1)-2)))","v":0},{"$f":"IF(ISERROR(FIND(BH$3,'CFR - XML import'!$A6)),0,VALUE(MID('CFR - XML import'!$A6,SEARCH(\">\",'CFR - XML import'!$A6,1)+1,SEARCH(\"/\",'CFR - XML import'!$A6,1)-SEARCH(\">\",'CFR - XML import'!$A6,1)-2)))","v":0},{"$f":"IF(ISERROR(FIND(BI$3,'CFR - XML import'!$A6)),0,VALUE(MID('CFR - XML import'!$A6,SEARCH(\">\",'CFR - XML import'!$A6,1)+1,SEARCH(\"/\",'CFR - XML import'!$A6,1)-SEARCH(\">\",'CFR - XML import'!$A6,1)-2)))","v":0},{"$f":"IF(ISERROR(FIND(BJ$3,'CFR - XML import'!$A6)),0,VALUE(MID('CFR - XML import'!$A6,SEARCH(\">\",'CFR - XML import'!$A6,1)+1,SEARCH(\"/\",'CFR - XML import'!$A6,1)-SEARCH(\">\",'CFR - XML import'!$A6,1)-2)))","v":0},{"$f":"IF(ISERROR(FIND(BK$3,'CFR - XML import'!$A6)),0,VALUE(MID('CFR - XML import'!$A6,SEARCH(\">\",'CFR - XML import'!$A6,1)+1,SEARCH(\"/\",'CFR - XML import'!$A6,1)-SEARCH(\">\",'CFR - XML import'!$A6,1)-2)))","v":0},{"$f":"IF(ISERROR(FIND(BL$3,'CFR - XML import'!$A6)),0,VALUE(MID('CFR - XML import'!$A6,SEARCH(\">\",'CFR - XML import'!$A6,1)+1,SEARCH(\"/\",'CFR - XML import'!$A6,1)-SEARCH(\">\",'CFR - XML import'!$A6,1)-2)))","v":0},{"$f":"IF(ISERROR(FIND(BM$3,'CFR - XML import'!$A6)),0,VALUE(MID('CFR - XML import'!$A6,SEARCH(\">\",'CFR - XML import'!$A6,1)+1,SEARCH(\"/\",'CFR - XML import'!$A6,1)-SEARCH(\">\",'CFR - XML import'!$A6,1)-2)))","v":0},{"$f":"IF(ISERROR(FIND(BN$3,'CFR - XML import'!$A6)),0,VALUE(MID('CFR - XML import'!$A6,SEARCH(\">\",'CFR - XML import'!$A6,1)+1,SEARCH(\"/\",'CFR - XML import'!$A6,1)-SEARCH(\">\",'CFR - XML import'!$A6,1)-2)))","v":0},{"$f":"IF(ISERROR(FIND(BO$3,'CFR - XML import'!$A6)),0,VALUE(MID('CFR - XML import'!$A6,SEARCH(\">\",'CFR - XML import'!$A6,1)+1,SEARCH(\"/\",'CFR - XML import'!$A6,1)-SEARCH(\">\",'CFR - XML import'!$A6,1)-2)))","v":0},{"$f":"IF(ISERROR(FIND(BP$3,'CFR - XML import'!$A6)),0,VALUE(MID('CFR - XML import'!$A6,SEARCH(\">\",'CFR - XML import'!$A6,1)+1,SEARCH(\"/\",'CFR - XML import'!$A6,1)-SEARCH(\">\",'CFR - XML import'!$A6,1)-2)))","v":0},{"$f":"IF(ISERROR(FIND(BQ$3,'CFR - XML import'!$A6)),0,VALUE(MID('CFR - XML import'!$A6,SEARCH(\">\",'CFR - XML import'!$A6,1)+1,SEARCH(\"/\",'CFR - XML import'!$A6,1)-SEARCH(\">\",'CFR - XML import'!$A6,1)-2)))","v":0},{"$f":"IF(ISERROR(FIND(BR$3,'CFR - XML import'!$A6)),0,VALUE(MID('CFR - XML import'!$A6,SEARCH(\">\",'CFR - XML import'!$A6,1)+1,SEARCH(\"/\",'CFR - XML import'!$A6,1)-SEARCH(\">\",'CFR - XML import'!$A6,1)-2)))","v":0},{"$f":"IF(ISERROR(FIND(BS$3,'CFR - XML import'!$A6)),0,VALUE(MID('CFR - XML import'!$A6,SEARCH(\">\",'CFR - XML import'!$A6,1)+1,SEARCH(\"/\",'CFR - XML import'!$A6,1)-SEARCH(\">\",'CFR - XML import'!$A6,1)-2)))","v":0},{"$f":"IF(ISERROR(FIND(BT$3,'CFR - XML import'!$A6)),0,VALUE(MID('CFR - XML import'!$A6,SEARCH(\">\",'CFR - XML import'!$A6,1)+1,SEARCH(\"/\",'CFR - XML import'!$A6,1)-SEARCH(\">\",'CFR - XML import'!$A6,1)-2)))","v":0},{"$f":"IF(ISERROR(FIND(BU$3,'CFR - XML import'!$A6)),0,VALUE(MID('CFR - XML import'!$A6,SEARCH(\">\",'CFR - XML import'!$A6,1)+1,SEARCH(\"/\",'CFR - XML import'!$A6,1)-SEARCH(\">\",'CFR - XML import'!$A6,1)-2)))","v":0},{"$f":"IF(ISERROR(FIND(BV$3,'CFR - XML import'!$A6)),0,VALUE(MID('CFR - XML import'!$A6,SEARCH(\">\",'CFR - XML import'!$A6,1)+1,SEARCH(\"/\",'CFR - XML import'!$A6,1)-SEARCH(\">\",'CFR - XML import'!$A6,1)-2)))","v":0},{"$f":"IF(ISERROR(FIND(BW$3,'CFR - XML import'!$A6)),0,VALUE(MID('CFR - XML import'!$A6,SEARCH(\">\",'CFR - XML import'!$A6,1)+1,SEARCH(\"/\",'CFR - XML import'!$A6,1)-SEARCH(\">\",'CFR - XML import'!$A6,1)-2)))","v":0},{"$f":"IF(ISERROR(FIND(BX$3,'CFR - XML import'!$A6)),0,VALUE(MID('CFR - XML import'!$A6,SEARCH(\">\",'CFR - XML import'!$A6,1)+1,SEARCH(\"/\",'CFR - XML import'!$A6,1)-SEARCH(\">\",'CFR - XML import'!$A6,1)-2)))","v":0},{"$f":"IF(ISERROR(FIND(BY$3,'CFR - XML import'!$A6)),0,VALUE(MID('CFR - XML import'!$A6,SEARCH(\">\",'CFR - XML import'!$A6,1)+1,SEARCH(\"/\",'CFR - XML import'!$A6,1)-SEARCH(\">\",'CFR - XML import'!$A6,1)-2)))","v":0},{"$f":"IF(ISERROR(FIND(BZ$3,'CFR - XML import'!$A6)),0,VALUE(MID('CFR - XML import'!$A6,SEARCH(\">\",'CFR - XML import'!$A6,1)+1,SEARCH(\"/\",'CFR - XML import'!$A6,1)-SEARCH(\">\",'CFR - XML import'!$A6,1)-2)))","v":0},null,null,null,null,null,null,{"$f":"IF(ISERROR(IF(MID('CFR - XML import'!$A6,LEN($CF$4)+1,LEN('CFR - XML import'!$A6)-(2*LEN($CF$4)+1))=\"RMMS\",1,IF(MID('CFR - XML import'!$A6,LEN(\"    <InputSystem>\")+1,LEN('CFR - XML import'!$A6)-(LEN(\"    <InputSystem>\")+LEN($CF$4)+1))=\"SIMS\",2,0))),0,IF(MID('CFR - XML import'!$A6,LEN($CF$4)+1,LEN('CFR - XML import'!$A6)-(2*LEN($CF$4)+1))=\"RMMS\",1,IF(MID('CFR - XML import'!$A6,LEN(\"    <InputSystem>\")+1,LEN('CFR - XML import'!$A6)-(LEN(\"    <InputSystem>\")+LEN($CF$4)+1))=\"SIMS\",2,0)))","v":0},{"$f":"IF(ISERROR(FIND(CH$3,'CFR - XML import'!$A6)),0,MID('CFR - XML import'!$A6,SEARCH(\">\",'CFR - XML import'!$A6,1)+1,SEARCH(\"/\",'CFR - XML import'!$A6,1)-SEARCH(\">\",'CFR - XML import'!$A6,1)-2))","v":0},{"$f":"IF(ISERROR(FIND(CI$3,'CFR - XML import'!$A6)),0,MID('CFR - XML import'!$A6,SEARCH(\">\",'CFR - XML import'!$A6,1)+1,SEARCH(\"/\",'CFR - XML import'!$A6,1)-SEARCH(\">\",'CFR - XML import'!$A6,1)-2))","v":0},{"$f":"IF(ISERROR(FIND(CJ$3,'CFR - XML import'!$A6)),0,MID('CFR - XML import'!$A6,SEARCH(\">\",'CFR - XML import'!$A6,1)+1,SEARCH(\"/\",'CFR - XML import'!$A6,1)-SEARCH(\">\",'CFR - XML import'!$A6,1)-2))","v":0},{"$f":"IF(ISERROR(FIND(CK$3,'CFR - XML import'!$A6)),0,MID('CFR - XML import'!$A6,SEARCH(\">\",'CFR - XML import'!$A6,1)+1,SEARCH(\"/\",'CFR - XML import'!$A6,1)-SEARCH(\">\",'CFR - XML import'!$A6,1)-2))","v":0},{"$f":"IF(ISERROR(FIND(CL$3,'CFR - XML import'!$A6)),0,MID('CFR - XML import'!$A6,SEARCH(\">\",'CFR - XML import'!$A6,1)+1,SEARCH(\"/\",'CFR - XML import'!$A6,1)-SEARCH(\">\",'CFR - XML import'!$A6,1)-2))","v":0}]
[{"$f":"IF(AND('CFR - XML import'!A7<>\"\",LEFT('CFR - XML import'!A7,1)<>\"<\",LEFT('CFR - XML import'!A7,3)<>\"  <\",LEFT('CFR - XML import'!A7,5)<>\"    <\",LEFT('CFR - XML import'!A7,7)<>\"      <\",LEFT('CFR - XML import'!A7,9)<>\"        <\",$B$1=\"SIMS\"),'CFR - XML import'!A7,IF(AND(LEFT('CFR - XML import'!A7,9)=\"<Details>\",$B$1=\"RM\"),'CFR - XML import'!A7,\"\"))","v":""},{"$f":"IF(ISERROR(FIND(B$3,'CFR - XML import'!$A7)),0,VALUE(MID('CFR - XML import'!$A7,SEARCH(\">\",'CFR - XML import'!$A7,1)+1,SEARCH(\"/\",'CFR - XML import'!$A7,1)-SEARCH(\">\",'CFR - XML import'!$A7,1)-2)))","v":0},null,{"$f":"IF(ISERROR(FIND(D$3,'CFR - XML import'!$A7)),0,MID('CFR - XML import'!$A7,SEARCH(\">\",'CFR - XML import'!$A7,1)+1,SEARCH(\"/\",'CFR - XML import'!$A7,1)-SEARCH(\">\",'CFR - XML import'!$A7,1)-2))","v":0},{"$f":"IF(ISERROR(FIND(E$3,'CFR - XML import'!$A7)),0,MID('CFR - XML import'!$A7,SEARCH(\">\",'CFR - XML import'!$A7,1)+1,SEARCH(\"/\",'CFR - XML import'!$A7,1)-SEARCH(\">\",'CFR - XML import'!$A7,1)-2))","v":0},{"$f":"IF($B$1=\"SIMS\",IF(ISERROR(FIND(F$3,'CFR - XML import'!$A7)),0,VALUE(MID('CFR - XML import'!$A7,15,10))),IF(ISERROR(FIND(F$3,'CFR - XML import'!$A7)),0,VALUE(MID('CFR - XML import'!$A7,11,10))))","v":"00:00:00"},{"$f":"IF(ISERROR(FIND(G$3,'CFR - XML import'!$A7)),0,VALUE(MID('CFR - XML import'!$A7,SEARCH(\">\",'CFR - XML import'!$A7,1)+1,SEARCH(\"/\",'CFR - XML import'!$A7,1)-SEARCH(\">\",'CFR - XML import'!$A7,1)-2)))","v":0},{"$f":"IF(ISERROR(FIND(H$3,'CFR - XML import'!$A7)),0,VALUE(MID('CFR - XML import'!$A7,SEARCH(\">\",'CFR - XML import'!$A7,1)+1,SEARCH(\"/\",'CFR - XML import'!$A7,1)-SEARCH(\">\",'CFR - XML import'!$A7,1)-2)))","v":0},{"$f":"IF(ISERROR(FIND(I$3,'CFR - XML import'!$A7)),0,VALUE(MID('CFR - XML import'!$A7,SEARCH(\">\",'CFR - XML import'!$A7,1)+1,SEARCH(\"/\",'CFR - XML import'!$A7,1)-SEARCH(\">\",'CFR - XML import'!$A7,1)-2)))","v":0},{"$f":"IF(ISERROR(FIND(J$3,'CFR - XML import'!$A7)),0,VALUE(MID('CFR - XML import'!$A7,SEARCH(\">\",'CFR - XML import'!$A7,1)+1,SEARCH(\"/\",'CFR - XML import'!$A7,1)-SEARCH(\">\",'CFR - XML import'!$A7,1)-2)))","v":0},{"$f":"IF(ISERROR(FIND(K$3,'CFR - XML import'!$A7)),0,VALUE(MID('CFR - XML import'!$A7,SEARCH(\">\",'CFR - XML import'!$A7,1)+1,SEARCH(\"/\",'CFR - XML import'!$A7,1)-SEARCH(\">\",'CFR - XML import'!$A7,1)-2)))","v":0},{"$f":"IF(ISERROR(FIND(L$3,'CFR - XML import'!$A7)),0,VALUE(MID('CFR - XML import'!$A7,SEARCH(\">\",'CFR - XML import'!$A7,1)+1,SEARCH(\"/\",'CFR - XML import'!$A7,1)-SEARCH(\">\",'CFR - XML import'!$A7,1)-2)))","v":0},{"$f":"IF(ISERROR(FIND(M$3,'CFR - XML import'!$A7)),0,VALUE(MID('CFR - XML import'!$A7,SEARCH(\">\",'CFR - XML import'!$A7,1)+1,SEARCH(\"/\",'CFR - XML import'!$A7,1)-SEARCH(\">\",'CFR - XML import'!$A7,1)-2)))","v":0},{"$f":"IF(ISERROR(FIND(N$3,'CFR - XML import'!$A7)),0,VALUE(MID('CFR - XML import'!$A7,SEARCH(\">\",'CFR - XML import'!$A7,1)+1,SEARCH(\"/\",'CFR - XML import'!$A7,1)-SEARCH(\">\",'CFR - XML import'!$A7,1)-2)))","v":0},{"$f":"IF(ISERROR(FIND(O$3,'CFR - XML import'!$A7)),0,VALUE(MID('CFR - XML import'!$A7,SEARCH(\">\",'CFR - XML import'!$A7,1)+1,SEARCH(\"/\",'CFR - XML import'!$A7,1)-SEARCH(\">\",'CFR - XML import'!$A7,1)-2)))","v":0},{"$f":"IF(ISERROR(FIND(P$3,'CFR - XML import'!$A7)),0,VALUE(MID('CFR - XML import'!$A7,SEARCH(\">\",'CFR - XML import'!$A7,1)+1,SEARCH(\"/\",'CFR - XML import'!$A7,1)-SEARCH(\">\",'CFR - XML import'!$A7,1)-2)))","v":0},{"$f":"IF(ISERROR(FIND(Q$3,'CFR - XML import'!$A7)),0,VALUE(MID('CFR - XML import'!$A7,SEARCH(\">\",'CFR - XML import'!$A7,1)+1,SEARCH(\"/\",'CFR - XML import'!$A7,1)-SEARCH(\">\",'CFR - XML import'!$A7,1)-2)))","v":0},{"$f":"IF(ISERROR(FIND(R$3,'CFR - XML import'!$A7)),0,VALUE(MID('CFR - XML import'!$A7,SEARCH(\">\",'CFR - XML import'!$A7,1)+1,SEARCH(\"/\",'CFR - XML import'!$A7,1)-SEARCH(\">\",'CFR - XML import'!$A7,1)-2)))","v":0},{"$f":"IF(ISERROR(FIND(S$3,'CFR - XML import'!$A7)),0,VALUE(MID('CFR - XML import'!$A7,SEARCH(\">\",'CFR - XML import'!$A7,1)+1,SEARCH(\"/\",'CFR - XML import'!$A7,1)-SEARCH(\">\",'CFR - XML import'!$A7,1)-2)))","v":0},{"$f":"IF(ISERROR(FIND(T$3,'CFR - XML import'!$A7)),0,VALUE(MID('CFR - XML import'!$A7,SEARCH(\">\",'CFR - XML import'!$A7,1)+1,SEARCH(\"/\",'CFR - XML import'!$A7,1)-SEARCH(\">\",'CFR - XML import'!$A7,1)-2)))","v":0},{"$f":"IF(ISERROR(FIND(U$3,'CFR - XML import'!$A7)),0,VALUE(MID('CFR - XML import'!$A7,SEARCH(\">\",'CFR - XML import'!$A7,1)+1,SEARCH(\"/\",'CFR - XML import'!$A7,1)-SEARCH(\">\",'CFR - XML import'!$A7,1)-2)))","v":0},{"$f":"IF(ISERROR(FIND(V$3,'CFR - XML import'!$A7)),0,VALUE(MID('CFR - XML import'!$A7,SEARCH(\">\",'CFR - XML import'!$A7,1)+1,SEARCH(\"/\",'CFR - XML import'!$A7,1)-SEARCH(\">\",'CFR - XML import'!$A7,1)-2)))","v":0},{"$f":"IF(ISERROR(FIND(W$3,'CFR - XML import'!$A7)),0,VALUE(MID('CFR - XML import'!$A7,SEARCH(\">\",'CFR - XML import'!$A7,1)+1,SEARCH(\"/\",'CFR - XML import'!$A7,1)-SEARCH(\">\",'CFR - XML import'!$A7,1)-2)))","v":0},null,{"$f":"IF(ISERROR(FIND(Y$3,'CFR - XML import'!$A7)),0,VALUE(MID('CFR - XML import'!$A7,SEARCH(\">\",'CFR - XML import'!$A7,1)+1,SEARCH(\"/\",'CFR - XML import'!$A7,1)-SEARCH(\">\",'CFR - XML import'!$A7,1)-2)))","v":0},{"$f":"IF(ISERROR(FIND(Z$3,'CFR - XML import'!$A7)),0,VALUE(MID('CFR - XML import'!$A7,SEARCH(\">\",'CFR - XML import'!$A7,1)+1,SEARCH(\"/\",'CFR - XML import'!$A7,1)-SEARCH(\">\",'CFR - XML import'!$A7,1)-2)))","v":0},{"$f":"IF(ISERROR(FIND(AA$3,'CFR - XML import'!$A7)),0,VALUE(MID('CFR - XML import'!$A7,SEARCH(\">\",'CFR - XML import'!$A7,1)+1,SEARCH(\"/\",'CFR - XML import'!$A7,1)-SEARCH(\">\",'CFR - XML import'!$A7,1)-2)))","v":0},{"$f":"IF(ISERROR(FIND(AB$3,'CFR - XML import'!$A7)),0,VALUE(MID('CFR - XML import'!$A7,SEARCH(\">\",'CFR - XML import'!$A7,1)+1,SEARCH(\"/\",'CFR - XML import'!$A7,1)-SEARCH(\">\",'CFR - XML import'!$A7,1)-2)))","v":0},{"$f":"IF(ISERROR(FIND(AC$3,'CFR - XML import'!$A7)),0,VALUE(MID('CFR - XML import'!$A7,SEARCH(\">\",'CFR - XML import'!$A7,1)+1,SEARCH(\"/\",'CFR - XML import'!$A7,1)-SEARCH(\">\",'CFR - XML import'!$A7,1)-2)))","v":0},{"$f":"IF(ISERROR(FIND(AD$3,'CFR - XML import'!$A7)),0,VALUE(MID('CFR - XML import'!$A7,SEARCH(\">\",'CFR - XML import'!$A7,1)+1,SEARCH(\"/\",'CFR - XML import'!$A7,1)-SEARCH(\">\",'CFR - XML import'!$A7,1)-2)))","v":0},{"$f":"IF(ISERROR(FIND(AE$3,'CFR - XML import'!$A7)),0,VALUE(MID('CFR - XML import'!$A7,SEARCH(\">\",'CFR - XML import'!$A7,1)+1,SEARCH(\"/\",'CFR - XML import'!$A7,1)-SEARCH(\">\",'CFR - XML import'!$A7,1)-2)))","v":0},{"$f":"IF(ISERROR(FIND(AF$3,'CFR - XML import'!$A7)),0,VALUE(MID('CFR - XML import'!$A7,SEARCH(\">\",'CFR - XML import'!$A7,1)+1,SEARCH(\"/\",'CFR - XML import'!$A7,1)-SEARCH(\">\",'CFR - XML import'!$A7,1)-2)))","v":0},{"$f":"IF(ISERROR(FIND(AG$3,'CFR - XML import'!$A7)),0,VALUE(MID('CFR - XML import'!$A7,SEARCH(\">\",'CFR - XML import'!$A7,1)+1,SEARCH(\"/\",'CFR - XML import'!$A7,1)-SEARCH(\">\",'CFR - XML import'!$A7,1)-2)))","v":0},{"$f":"IF(ISERROR(FIND(AH$3,'CFR - XML import'!$A7)),0,VALUE(MID('CFR - XML import'!$A7,SEARCH(\">\",'CFR - XML import'!$A7,1)+1,SEARCH(\"/\",'CFR - XML import'!$A7,1)-SEARCH(\">\",'CFR - XML import'!$A7,1)-2)))","v":0},{"$f":"IF(ISERROR(FIND(AI$3,'CFR - XML import'!$A7)),0,VALUE(MID('CFR - XML import'!$A7,SEARCH(\">\",'CFR - XML import'!$A7,1)+1,SEARCH(\"/\",'CFR - XML import'!$A7,1)-SEARCH(\">\",'CFR - XML import'!$A7,1)-2)))","v":0},{"$f":"IF(ISERROR(FIND(AJ$3,'CFR - XML import'!$A7)),0,VALUE(MID('CFR - XML import'!$A7,SEARCH(\">\",'CFR - XML import'!$A7,1)+1,SEARCH(\"/\",'CFR - XML import'!$A7,1)-SEARCH(\">\",'CFR - XML import'!$A7,1)-2)))","v":0},{"$f":"IF(ISERROR(FIND(AK$3,'CFR - XML import'!$A7)),0,VALUE(MID('CFR - XML import'!$A7,SEARCH(\">\",'CFR - XML import'!$A7,1)+1,SEARCH(\"/\",'CFR - XML import'!$A7,1)-SEARCH(\">\",'CFR - XML import'!$A7,1)-2)))","v":0},{"$f":"IF(ISERROR(FIND(AL$3,'CFR - XML import'!$A7)),0,VALUE(MID('CFR - XML import'!$A7,SEARCH(\">\",'CFR - XML import'!$A7,1)+1,SEARCH(\"/\",'CFR - XML import'!$A7,1)-SEARCH(\">\",'CFR - XML import'!$A7,1)-2)))","v":0},{"$f":"IF(ISERROR(FIND(AM$3,'CFR - XML import'!$A7)),0,VALUE(MID('CFR - XML import'!$A7,SEARCH(\">\",'CFR - XML import'!$A7,1)+1,SEARCH(\"/\",'CFR - XML import'!$A7,1)-SEARCH(\">\",'CFR - XML import'!$A7,1)-2)))","v":0},{"$f":"IF(ISERROR(FIND(AN$3,'CFR - XML import'!$A7)),0,VALUE(MID('CFR - XML import'!$A7,SEARCH(\">\",'CFR - XML import'!$A7,1)+1,SEARCH(\"/\",'CFR - XML import'!$A7,1)-SEARCH(\">\",'CFR - XML import'!$A7,1)-2)))","v":0},{"$f":"IF(ISERROR(FIND(AO$3,'CFR - XML import'!$A7)),0,VALUE(MID('CFR - XML import'!$A7,SEARCH(\">\",'CFR - XML import'!$A7,1)+1,SEARCH(\"/\",'CFR - XML import'!$A7,1)-SEARCH(\">\",'CFR - XML import'!$A7,1)-2)))","v":0},{"$f":"IF(ISERROR(FIND(AP$3,'CFR - XML import'!$A7)),0,VALUE(MID('CFR - XML import'!$A7,SEARCH(\">\",'CFR - XML import'!$A7,1)+1,SEARCH(\"/\",'CFR - XML import'!$A7,1)-SEARCH(\">\",'CFR - XML import'!$A7,1)-2)))","v":0},{"$f":"IF(ISERROR(FIND(AQ$3,'CFR - XML import'!$A7)),0,VALUE(MID('CFR - XML import'!$A7,SEARCH(\">\",'CFR - XML import'!$A7,1)+1,SEARCH(\"/\",'CFR - XML import'!$A7,1)-SEARCH(\">\",'CFR - XML import'!$A7,1)-2)))","v":0},{"$f":"IF(ISERROR(FIND(AR$3,'CFR - XML import'!$A7)),0,VALUE(MID('CFR - XML import'!$A7,SEARCH(\">\",'CFR - XML import'!$A7,1)+1,SEARCH(\"/\",'CFR - XML import'!$A7,1)-SEARCH(\">\",'CFR - XML import'!$A7,1)-2)))","v":0},{"$f":"IF(ISERROR(FIND(AS$3,'CFR - XML import'!$A7)),0,VALUE(MID('CFR - XML import'!$A7,SEARCH(\">\",'CFR - XML import'!$A7,1)+1,SEARCH(\"/\",'CFR - XML import'!$A7,1)-SEARCH(\">\",'CFR - XML import'!$A7,1)-2)))","v":0},{"$f":"IF(ISERROR(FIND(AT$3,'CFR - XML import'!$A7)),0,VALUE(MID('CFR - XML import'!$A7,SEARCH(\">\",'CFR - XML import'!$A7,1)+1,SEARCH(\"/\",'CFR - XML import'!$A7,1)-SEARCH(\">\",'CFR - XML import'!$A7,1)-2)))","v":0},{"$f":"IF(ISERROR(FIND(AU$3,'CFR - XML import'!$A7)),0,VALUE(MID('CFR - XML import'!$A7,SEARCH(\">\",'CFR - XML import'!$A7,1)+1,SEARCH(\"/\",'CFR - XML import'!$A7,1)-SEARCH(\">\",'CFR - XML import'!$A7,1)-2)))","v":0},{"$f":"IF(ISERROR(FIND(AV$3,'CFR - XML import'!$A7)),0,VALUE(MID('CFR - XML import'!$A7,SEARCH(\">\",'CFR - XML import'!$A7,1)+1,SEARCH(\"/\",'CFR - XML import'!$A7,1)-SEARCH(\">\",'CFR - XML import'!$A7,1)-2)))","v":0},{"$f":"IF(ISERROR(FIND(AW$3,'CFR - XML import'!$A7)),0,VALUE(MID('CFR - XML import'!$A7,SEARCH(\">\",'CFR - XML import'!$A7,1)+1,SEARCH(\"/\",'CFR - XML import'!$A7,1)-SEARCH(\">\",'CFR - XML import'!$A7,1)-2)))","v":0},{"$f":"IF(ISERROR(FIND(AX$3,'CFR - XML import'!$A7)),0,VALUE(MID('CFR - XML import'!$A7,SEARCH(\">\",'CFR - XML import'!$A7,1)+1,SEARCH(\"/\",'CFR - XML import'!$A7,1)-SEARCH(\">\",'CFR - XML import'!$A7,1)-2)))","v":0},{"$f":"IF(ISERROR(FIND(AY$3,'CFR - XML import'!$A7)),0,VALUE(MID('CFR - XML import'!$A7,SEARCH(\">\",'CFR - XML import'!$A7,1)+1,SEARCH(\"/\",'CFR - XML import'!$A7,1)-SEARCH(\">\",'CFR - XML import'!$A7,1)-2)))","v":0},{"$f":"IF(ISERROR(FIND(AZ$3,'CFR - XML import'!$A7)),0,VALUE(MID('CFR - XML import'!$A7,SEARCH(\">\",'CFR - XML import'!$A7,1)+1,SEARCH(\"/\",'CFR - XML import'!$A7,1)-SEARCH(\">\",'CFR - XML import'!$A7,1)-2)))","v":0},{"$f":"IF(ISERROR(FIND(BA$3,'CFR - XML import'!$A7)),0,VALUE(MID('CFR - XML import'!$A7,SEARCH(\">\",'CFR - XML import'!$A7,1)+1,SEARCH(\"/\",'CFR - XML import'!$A7,1)-SEARCH(\">\",'CFR - XML import'!$A7,1)-2)))","v":0},{"$f":"IF(ISERROR(FIND(BB$3,'CFR - XML import'!$A7)),0,VALUE(MID('CFR - XML import'!$A7,SEARCH(\">\",'CFR - XML import'!$A7,1)+1,SEARCH(\"/\",'CFR - XML import'!$A7,1)-SEARCH(\">\",'CFR - XML import'!$A7,1)-2)))","v":0},{"$f":"IF(ISERROR(FIND(BC$3,'CFR - XML import'!$A7)),0,VALUE(MID('CFR - XML import'!$A7,SEARCH(\">\",'CFR - XML import'!$A7,1)+1,SEARCH(\"/\",'CFR - XML import'!$A7,1)-SEARCH(\">\",'CFR - XML import'!$A7,1)-2)))","v":0},{"$f":"IF(ISERROR(FIND(BD$3,'CFR - XML import'!$A7)),0,VALUE(MID('CFR - XML import'!$A7,SEARCH(\">\",'CFR - XML import'!$A7,1)+1,SEARCH(\"/\",'CFR - XML import'!$A7,1)-SEARCH(\">\",'CFR - XML import'!$A7,1)-2)))","v":0},{"$f":"IF(ISERROR(FIND(BE$3,'CFR - XML import'!$A7)),0,VALUE(MID('CFR - XML import'!$A7,SEARCH(\">\",'CFR - XML import'!$A7,1)+1,SEARCH(\"/\",'CFR - XML import'!$A7,1)-SEARCH(\">\",'CFR - XML import'!$A7,1)-2)))","v":0},{"$f":"IF(ISERROR(FIND(BF$3,'CFR - XML import'!$A7)),0,VALUE(MID('CFR - XML import'!$A7,SEARCH(\">\",'CFR - XML import'!$A7,1)+1,SEARCH(\"/\",'CFR - XML import'!$A7,1)-SEARCH(\">\",'CFR - XML import'!$A7,1)-2)))","v":0},{"$f":"IF(ISERROR(FIND(BG$3,'CFR - XML import'!$A7)),0,VALUE(MID('CFR - XML import'!$A7,SEARCH(\">\",'CFR - XML import'!$A7,1)+1,SEARCH(\"/\",'CFR - XML import'!$A7,1)-SEARCH(\">\",'CFR - XML import'!$A7,1)-2)))","v":0},{"$f":"IF(ISERROR(FIND(BH$3,'CFR - XML import'!$A7)),0,VALUE(MID('CFR - XML import'!$A7,SEARCH(\">\",'CFR - XML import'!$A7,1)+1,SEARCH(\"/\",'CFR - XML import'!$A7,1)-SEARCH(\">\",'CFR - XML import'!$A7,1)-2)))","v":0},{"$f":"IF(ISERROR(FIND(BI$3,'CFR - XML import'!$A7)),0,VALUE(MID('CFR - XML import'!$A7,SEARCH(\">\",'CFR - XML import'!$A7,1)+1,SEARCH(\"/\",'CFR - XML import'!$A7,1)-SEARCH(\">\",'CFR - XML import'!$A7,1)-2)))","v":0},{"$f":"IF(ISERROR(FIND(BJ$3,'CFR - XML import'!$A7)),0,VALUE(MID('CFR - XML import'!$A7,SEARCH(\">\",'CFR - XML import'!$A7,1)+1,SEARCH(\"/\",'CFR - XML import'!$A7,1)-SEARCH(\">\",'CFR - XML import'!$A7,1)-2)))","v":0},{"$f":"IF(ISERROR(FIND(BK$3,'CFR - XML import'!$A7)),0,VALUE(MID('CFR - XML import'!$A7,SEARCH(\">\",'CFR - XML import'!$A7,1)+1,SEARCH(\"/\",'CFR - XML import'!$A7,1)-SEARCH(\">\",'CFR - XML import'!$A7,1)-2)))","v":0},{"$f":"IF(ISERROR(FIND(BL$3,'CFR - XML import'!$A7)),0,VALUE(MID('CFR - XML import'!$A7,SEARCH(\">\",'CFR - XML import'!$A7,1)+1,SEARCH(\"/\",'CFR - XML import'!$A7,1)-SEARCH(\">\",'CFR - XML import'!$A7,1)-2)))","v":0},{"$f":"IF(ISERROR(FIND(BM$3,'CFR - XML import'!$A7)),0,VALUE(MID('CFR - XML import'!$A7,SEARCH(\">\",'CFR - XML import'!$A7,1)+1,SEARCH(\"/\",'CFR - XML import'!$A7,1)-SEARCH(\">\",'CFR - XML import'!$A7,1)-2)))","v":0},{"$f":"IF(ISERROR(FIND(BN$3,'CFR - XML import'!$A7)),0,VALUE(MID('CFR - XML import'!$A7,SEARCH(\">\",'CFR - XML import'!$A7,1)+1,SEARCH(\"/\",'CFR - XML import'!$A7,1)-SEARCH(\">\",'CFR - XML import'!$A7,1)-2)))","v":0},{"$f":"IF(ISERROR(FIND(BO$3,'CFR - XML import'!$A7)),0,VALUE(MID('CFR - XML import'!$A7,SEARCH(\">\",'CFR - XML import'!$A7,1)+1,SEARCH(\"/\",'CFR - XML import'!$A7,1)-SEARCH(\">\",'CFR - XML import'!$A7,1)-2)))","v":0},{"$f":"IF(ISERROR(FIND(BP$3,'CFR - XML import'!$A7)),0,VALUE(MID('CFR - XML import'!$A7,SEARCH(\">\",'CFR - XML import'!$A7,1)+1,SEARCH(\"/\",'CFR - XML import'!$A7,1)-SEARCH(\">\",'CFR - XML import'!$A7,1)-2)))","v":0},{"$f":"IF(ISERROR(FIND(BQ$3,'CFR - XML import'!$A7)),0,VALUE(MID('CFR - XML import'!$A7,SEARCH(\">\",'CFR - XML import'!$A7,1)+1,SEARCH(\"/\",'CFR - XML import'!$A7,1)-SEARCH(\">\",'CFR - XML import'!$A7,1)-2)))","v":0},{"$f":"IF(ISERROR(FIND(BR$3,'CFR - XML import'!$A7)),0,VALUE(MID('CFR - XML import'!$A7,SEARCH(\">\",'CFR - XML import'!$A7,1)+1,SEARCH(\"/\",'CFR - XML import'!$A7,1)-SEARCH(\">\",'CFR - XML import'!$A7,1)-2)))","v":0},{"$f":"IF(ISERROR(FIND(BS$3,'CFR - XML import'!$A7)),0,VALUE(MID('CFR - XML import'!$A7,SEARCH(\">\",'CFR - XML import'!$A7,1)+1,SEARCH(\"/\",'CFR - XML import'!$A7,1)-SEARCH(\">\",'CFR - XML import'!$A7,1)-2)))","v":0},{"$f":"IF(ISERROR(FIND(BT$3,'CFR - XML import'!$A7)),0,VALUE(MID('CFR - XML import'!$A7,SEARCH(\">\",'CFR - XML import'!$A7,1)+1,SEARCH(\"/\",'CFR - XML import'!$A7,1)-SEARCH(\">\",'CFR - XML import'!$A7,1)-2)))","v":0},{"$f":"IF(ISERROR(FIND(BU$3,'CFR - XML import'!$A7)),0,VALUE(MID('CFR - XML import'!$A7,SEARCH(\">\",'CFR - XML import'!$A7,1)+1,SEARCH(\"/\",'CFR - XML import'!$A7,1)-SEARCH(\">\",'CFR - XML import'!$A7,1)-2)))","v":0},{"$f":"IF(ISERROR(FIND(BV$3,'CFR - XML import'!$A7)),0,VALUE(MID('CFR - XML import'!$A7,SEARCH(\">\",'CFR - XML import'!$A7,1)+1,SEARCH(\"/\",'CFR - XML import'!$A7,1)-SEARCH(\">\",'CFR - XML import'!$A7,1)-2)))","v":0},{"$f":"IF(ISERROR(FIND(BW$3,'CFR - XML import'!$A7)),0,VALUE(MID('CFR - XML import'!$A7,SEARCH(\">\",'CFR - XML import'!$A7,1)+1,SEARCH(\"/\",'CFR - XML import'!$A7,1)-SEARCH(\">\",'CFR - XML import'!$A7,1)-2)))","v":0},{"$f":"IF(ISERROR(FIND(BX$3,'CFR - XML import'!$A7)),0,VALUE(MID('CFR - XML import'!$A7,SEARCH(\">\",'CFR - XML import'!$A7,1)+1,SEARCH(\"/\",'CFR - XML import'!$A7,1)-SEARCH(\">\",'CFR - XML import'!$A7,1)-2)))","v":0},{"$f":"IF(ISERROR(FIND(BY$3,'CFR - XML import'!$A7)),0,VALUE(MID('CFR - XML import'!$A7,SEARCH(\">\",'CFR - XML import'!$A7,1)+1,SEARCH(\"/\",'CFR - XML import'!$A7,1)-SEARCH(\">\",'CFR - XML import'!$A7,1)-2)))","v":0},{"$f":"IF(ISERROR(FIND(BZ$3,'CFR - XML import'!$A7)),0,VALUE(MID('CFR - XML import'!$A7,SEARCH(\">\",'CFR - XML import'!$A7,1)+1,SEARCH(\"/\",'CFR - XML import'!$A7,1)-SEARCH(\">\",'CFR - XML import'!$A7,1)-2)))","v":0},null,null,null,null,null,null,{"$f":"IF(ISERROR(IF(MID('CFR - XML import'!$A7,LEN($CF$4)+1,LEN('CFR - XML import'!$A7)-(2*LEN($CF$4)+1))=\"RMMS\",1,IF(MID('CFR - XML import'!$A7,LEN(\"    <InputSystem>\")+1,LEN('CFR - XML import'!$A7)-(LEN(\"    <InputSystem>\")+LEN($CF$4)+1))=\"SIMS\",2,0))),0,IF(MID('CFR - XML import'!$A7,LEN($CF$4)+1,LEN('CFR - XML import'!$A7)-(2*LEN($CF$4)+1))=\"RMMS\",1,IF(MID('CFR - XML import'!$A7,LEN(\"    <InputSystem>\")+1,LEN('CFR - XML import'!$A7)-(LEN(\"    <InputSystem>\")+LEN($CF$4)+1))=\"SIMS\",2,0)))","v":0},{"$f":"IF(ISERROR(FIND(CH$3,'CFR - XML import'!$A7)),0,MID('CFR - XML import'!$A7,SEARCH(\">\",'CFR - XML import'!$A7,1)+1,SEARCH(\"/\",'CFR - XML import'!$A7,1)-SEARCH(\">\",'CFR - XML import'!$A7,1)-2))","v":0},{"$f":"IF(ISERROR(FIND(CI$3,'CFR - XML import'!$A7)),0,MID('CFR - XML import'!$A7,SEARCH(\">\",'CFR - XML import'!$A7,1)+1,SEARCH(\"/\",'CFR - XML import'!$A7,1)-SEARCH(\">\",'CFR - XML import'!$A7,1)-2))","v":0},{"$f":"IF(ISERROR(FIND(CJ$3,'CFR - XML import'!$A7)),0,MID('CFR - XML import'!$A7,SEARCH(\">\",'CFR - XML import'!$A7,1)+1,SEARCH(\"/\",'CFR - XML import'!$A7,1)-SEARCH(\">\",'CFR - XML import'!$A7,1)-2))","v":0},{"$f":"IF(ISERROR(FIND(CK$3,'CFR - XML import'!$A7)),0,MID('CFR - XML import'!$A7,SEARCH(\">\",'CFR - XML import'!$A7,1)+1,SEARCH(\"/\",'CFR - XML import'!$A7,1)-SEARCH(\">\",'CFR - XML import'!$A7,1)-2))","v":0},{"$f":"IF(ISERROR(FIND(CL$3,'CFR - XML import'!$A7)),0,MID('CFR - XML import'!$A7,SEARCH(\">\",'CFR - XML import'!$A7,1)+1,SEARCH(\"/\",'CFR - XML import'!$A7,1)-SEARCH(\">\",'CFR - XML import'!$A7,1)-2))","v":0}]
[{"$f":"IF(AND('CFR - XML import'!A8<>\"\",LEFT('CFR - XML import'!A8,1)<>\"<\",LEFT('CFR - XML import'!A8,3)<>\"  <\",LEFT('CFR - XML import'!A8,5)<>\"    <\",LEFT('CFR - XML import'!A8,7)<>\"      <\",LEFT('CFR - XML import'!A8,9)<>\"        <\",$B$1=\"SIMS\"),'CFR - XML import'!A8,IF(AND(LEFT('CFR - XML import'!A8,9)=\"<Details>\",$B$1=\"RM\"),'CFR - XML import'!A8,\"\"))","v":""},{"$f":"IF(ISERROR(FIND(B$3,'CFR - XML import'!$A8)),0,VALUE(MID('CFR - XML import'!$A8,SEARCH(\">\",'CFR - XML import'!$A8,1)+1,SEARCH(\"/\",'CFR - XML import'!$A8,1)-SEARCH(\">\",'CFR - XML import'!$A8,1)-2)))","v":0},null,{"$f":"IF(ISERROR(FIND(D$3,'CFR - XML import'!$A8)),0,MID('CFR - XML import'!$A8,SEARCH(\">\",'CFR - XML import'!$A8,1)+1,SEARCH(\"/\",'CFR - XML import'!$A8,1)-SEARCH(\">\",'CFR - XML import'!$A8,1)-2))","v":0},{"$f":"IF(ISERROR(FIND(E$3,'CFR - XML import'!$A8)),0,MID('CFR - XML import'!$A8,SEARCH(\">\",'CFR - XML import'!$A8,1)+1,SEARCH(\"/\",'CFR - XML import'!$A8,1)-SEARCH(\">\",'CFR - XML import'!$A8,1)-2))","v":0},{"$f":"IF($B$1=\"SIMS\",IF(ISERROR(FIND(F$3,'CFR - XML import'!$A8)),0,VALUE(MID('CFR - XML import'!$A8,15,10))),IF(ISERROR(FIND(F$3,'CFR - XML import'!$A8)),0,VALUE(MID('CFR - XML import'!$A8,11,10))))","v":"00:00:00"},{"$f":"IF(ISERROR(FIND(G$3,'CFR - XML import'!$A8)),0,VALUE(MID('CFR - XML import'!$A8,SEARCH(\">\",'CFR - XML import'!$A8,1)+1,SEARCH(\"/\",'CFR - XML import'!$A8,1)-SEARCH(\">\",'CFR - XML import'!$A8,1)-2)))","v":0},{"$f":"IF(ISERROR(FIND(H$3,'CFR - XML import'!$A8)),0,VALUE(MID('CFR - XML import'!$A8,SEARCH(\">\",'CFR - XML import'!$A8,1)+1,SEARCH(\"/\",'CFR - XML import'!$A8,1)-SEARCH(\">\",'CFR - XML import'!$A8,1)-2)))","v":0},{"$f":"IF(ISERROR(FIND(I$3,'CFR - XML import'!$A8)),0,VALUE(MID('CFR - XML import'!$A8,SEARCH(\">\",'CFR - XML import'!$A8,1)+1,SEARCH(\"/\",'CFR - XML import'!$A8,1)-SEARCH(\">\",'CFR - XML import'!$A8,1)-2)))","v":0},{"$f":"IF(ISERROR(FIND(J$3,'CFR - XML import'!$A8)),0,VALUE(MID('CFR - XML import'!$A8,SEARCH(\">\",'CFR - XML import'!$A8,1)+1,SEARCH(\"/\",'CFR - XML import'!$A8,1)-SEARCH(\">\",'CFR - XML import'!$A8,1)-2)))","v":0},{"$f":"IF(ISERROR(FIND(K$3,'CFR - XML import'!$A8)),0,VALUE(MID('CFR - XML import'!$A8,SEARCH(\">\",'CFR - XML import'!$A8,1)+1,SEARCH(\"/\",'CFR - XML import'!$A8,1)-SEARCH(\">\",'CFR - XML import'!$A8,1)-2)))","v":0},{"$f":"IF(ISERROR(FIND(L$3,'CFR - XML import'!$A8)),0,VALUE(MID('CFR - XML import'!$A8,SEARCH(\">\",'CFR - XML import'!$A8,1)+1,SEARCH(\"/\",'CFR - XML import'!$A8,1)-SEARCH(\">\",'CFR - XML import'!$A8,1)-2)))","v":0},{"$f":"IF(ISERROR(FIND(M$3,'CFR - XML import'!$A8)),0,VALUE(MID('CFR - XML import'!$A8,SEARCH(\">\",'CFR - XML import'!$A8,1)+1,SEARCH(\"/\",'CFR - XML import'!$A8,1)-SEARCH(\">\",'CFR - XML import'!$A8,1)-2)))","v":0},{"$f":"IF(ISERROR(FIND(N$3,'CFR - XML import'!$A8)),0,VALUE(MID('CFR - XML import'!$A8,SEARCH(\">\",'CFR - XML import'!$A8,1)+1,SEARCH(\"/\",'CFR - XML import'!$A8,1)-SEARCH(\">\",'CFR - XML import'!$A8,1)-2)))","v":0},{"$f":"IF(ISERROR(FIND(O$3,'CFR - XML import'!$A8)),0,VALUE(MID('CFR - XML import'!$A8,SEARCH(\">\",'CFR - XML import'!$A8,1)+1,SEARCH(\"/\",'CFR - XML import'!$A8,1)-SEARCH(\">\",'CFR - XML import'!$A8,1)-2)))","v":0},{"$f":"IF(ISERROR(FIND(P$3,'CFR - XML import'!$A8)),0,VALUE(MID('CFR - XML import'!$A8,SEARCH(\">\",'CFR - XML import'!$A8,1)+1,SEARCH(\"/\",'CFR - XML import'!$A8,1)-SEARCH(\">\",'CFR - XML import'!$A8,1)-2)))","v":0},{"$f":"IF(ISERROR(FIND(Q$3,'CFR - XML import'!$A8)),0,VALUE(MID('CFR - XML import'!$A8,SEARCH(\">\",'CFR - XML import'!$A8,1)+1,SEARCH(\"/\",'CFR - XML import'!$A8,1)-SEARCH(\">\",'CFR - XML import'!$A8,1)-2)))","v":0},{"$f":"IF(ISERROR(FIND(R$3,'CFR - XML import'!$A8)),0,VALUE(MID('CFR - XML import'!$A8,SEARCH(\">\",'CFR - XML import'!$A8,1)+1,SEARCH(\"/\",'CFR - XML import'!$A8,1)-SEARCH(\">\",'CFR - XML import'!$A8,1)-2)))","v":0},{"$f":"IF(ISERROR(FIND(S$3,'CFR - XML import'!$A8)),0,VALUE(MID('CFR - XML import'!$A8,SEARCH(\">\",'CFR - XML import'!$A8,1)+1,SEARCH(\"/\",'CFR - XML import'!$A8,1)-SEARCH(\">\",'CFR - XML import'!$A8,1)-2)))","v":0},{"$f":"IF(ISERROR(FIND(T$3,'CFR - XML import'!$A8)),0,VALUE(MID('CFR - XML import'!$A8,SEARCH(\">\",'CFR - XML import'!$A8,1)+1,SEARCH(\"/\",'CFR - XML import'!$A8,1)-SEARCH(\">\",'CFR - XML import'!$A8,1)-2)))","v":0},{"$f":"IF(ISERROR(FIND(U$3,'CFR - XML import'!$A8)),0,VALUE(MID('CFR - XML import'!$A8,SEARCH(\">\",'CFR - XML import'!$A8,1)+1,SEARCH(\"/\",'CFR - XML import'!$A8,1)-SEARCH(\">\",'CFR - XML import'!$A8,1)-2)))","v":0},{"$f":"IF(ISERROR(FIND(V$3,'CFR - XML import'!$A8)),0,VALUE(MID('CFR - XML import'!$A8,SEARCH(\">\",'CFR - XML import'!$A8,1)+1,SEARCH(\"/\",'CFR - XML import'!$A8,1)-SEARCH(\">\",'CFR - XML import'!$A8,1)-2)))","v":0},{"$f":"IF(ISERROR(FIND(W$3,'CFR - XML import'!$A8)),0,VALUE(MID('CFR - XML import'!$A8,SEARCH(\">\",'CFR - XML import'!$A8,1)+1,SEARCH(\"/\",'CFR - XML import'!$A8,1)-SEARCH(\">\",'CFR - XML import'!$A8,1)-2)))","v":0},null,{"$f":"IF(ISERROR(FIND(Y$3,'CFR - XML import'!$A8)),0,VALUE(MID('CFR - XML import'!$A8,SEARCH(\">\",'CFR - XML import'!$A8,1)+1,SEARCH(\"/\",'CFR - XML import'!$A8,1)-SEARCH(\">\",'CFR - XML import'!$A8,1)-2)))","v":0},{"$f":"IF(ISERROR(FIND(Z$3,'CFR - XML import'!$A8)),0,VALUE(MID('CFR - XML import'!$A8,SEARCH(\">\",'CFR - XML import'!$A8,1)+1,SEARCH(\"/\",'CFR - XML import'!$A8,1)-SEARCH(\">\",'CFR - XML import'!$A8,1)-2)))","v":0},{"$f":"IF(ISERROR(FIND(AA$3,'CFR - XML import'!$A8)),0,VALUE(MID('CFR - XML import'!$A8,SEARCH(\">\",'CFR - XML import'!$A8,1)+1,SEARCH(\"/\",'CFR - XML import'!$A8,1)-SEARCH(\">\",'CFR - XML import'!$A8,1)-2)))","v":0},{"$f":"IF(ISERROR(FIND(AB$3,'CFR - XML import'!$A8)),0,VALUE(MID('CFR - XML import'!$A8,SEARCH(\">\",'CFR - XML import'!$A8,1)+1,SEARCH(\"/\",'CFR - XML import'!$A8,1)-SEARCH(\">\",'CFR - XML import'!$A8,1)-2)))","v":0},{"$f":"IF(ISERROR(FIND(AC$3,'CFR - XML import'!$A8)),0,VALUE(MID('CFR - XML import'!$A8,SEARCH(\">\",'CFR - XML import'!$A8,1)+1,SEARCH(\"/\",'CFR - XML import'!$A8,1)-SEARCH(\">\",'CFR - XML import'!$A8,1)-2)))","v":0},{"$f":"IF(ISERROR(FIND(AD$3,'CFR - XML import'!$A8)),0,VALUE(MID('CFR - XML import'!$A8,SEARCH(\">\",'CFR - XML import'!$A8,1)+1,SEARCH(\"/\",'CFR - XML import'!$A8,1)-SEARCH(\">\",'CFR - XML import'!$A8,1)-2)))","v":0},{"$f":"IF(ISERROR(FIND(AE$3,'CFR - XML import'!$A8)),0,VALUE(MID('CFR - XML import'!$A8,SEARCH(\">\",'CFR - XML import'!$A8,1)+1,SEARCH(\"/\",'CFR - XML import'!$A8,1)-SEARCH(\">\",'CFR - XML import'!$A8,1)-2)))","v":0},{"$f":"IF(ISERROR(FIND(AF$3,'CFR - XML import'!$A8)),0,VALUE(MID('CFR - XML import'!$A8,SEARCH(\">\",'CFR - XML import'!$A8,1)+1,SEARCH(\"/\",'CFR - XML import'!$A8,1)-SEARCH(\">\",'CFR - XML import'!$A8,1)-2)))","v":0},{"$f":"IF(ISERROR(FIND(AG$3,'CFR - XML import'!$A8)),0,VALUE(MID('CFR - XML import'!$A8,SEARCH(\">\",'CFR - XML import'!$A8,1)+1,SEARCH(\"/\",'CFR - XML import'!$A8,1)-SEARCH(\">\",'CFR - XML import'!$A8,1)-2)))","v":0},{"$f":"IF(ISERROR(FIND(AH$3,'CFR - XML import'!$A8)),0,VALUE(MID('CFR - XML import'!$A8,SEARCH(\">\",'CFR - XML import'!$A8,1)+1,SEARCH(\"/\",'CFR - XML import'!$A8,1)-SEARCH(\">\",'CFR - XML import'!$A8,1)-2)))","v":0},{"$f":"IF(ISERROR(FIND(AI$3,'CFR - XML import'!$A8)),0,VALUE(MID('CFR - XML import'!$A8,SEARCH(\">\",'CFR - XML import'!$A8,1)+1,SEARCH(\"/\",'CFR - XML import'!$A8,1)-SEARCH(\">\",'CFR - XML import'!$A8,1)-2)))","v":0},{"$f":"IF(ISERROR(FIND(AJ$3,'CFR - XML import'!$A8)),0,VALUE(MID('CFR - XML import'!$A8,SEARCH(\">\",'CFR - XML import'!$A8,1)+1,SEARCH(\"/\",'CFR - XML import'!$A8,1)-SEARCH(\">\",'CFR - XML import'!$A8,1)-2)))","v":0},{"$f":"IF(ISERROR(FIND(AK$3,'CFR - XML import'!$A8)),0,VALUE(MID('CFR - XML import'!$A8,SEARCH(\">\",'CFR - XML import'!$A8,1)+1,SEARCH(\"/\",'CFR - XML import'!$A8,1)-SEARCH(\">\",'CFR - XML import'!$A8,1)-2)))","v":0},{"$f":"IF(ISERROR(FIND(AL$3,'CFR - XML import'!$A8)),0,VALUE(MID('CFR - XML import'!$A8,SEARCH(\">\",'CFR - XML import'!$A8,1)+1,SEARCH(\"/\",'CFR - XML import'!$A8,1)-SEARCH(\">\",'CFR - XML import'!$A8,1)-2)))","v":0},{"$f":"IF(ISERROR(FIND(AM$3,'CFR - XML import'!$A8)),0,VALUE(MID('CFR - XML import'!$A8,SEARCH(\">\",'CFR - XML import'!$A8,1)+1,SEARCH(\"/\",'CFR - XML import'!$A8,1)-SEARCH(\">\",'CFR - XML import'!$A8,1)-2)))","v":0},{"$f":"IF(ISERROR(FIND(AN$3,'CFR - XML import'!$A8)),0,VALUE(MID('CFR - XML import'!$A8,SEARCH(\">\",'CFR - XML import'!$A8,1)+1,SEARCH(\"/\",'CFR - XML import'!$A8,1)-SEARCH(\">\",'CFR - XML import'!$A8,1)-2)))","v":0},{"$f":"IF(ISERROR(FIND(AO$3,'CFR - XML import'!$A8)),0,VALUE(MID('CFR - XML import'!$A8,SEARCH(\">\",'CFR - XML import'!$A8,1)+1,SEARCH(\"/\",'CFR - XML import'!$A8,1)-SEARCH(\">\",'CFR - XML import'!$A8,1)-2)))","v":0},{"$f":"IF(ISERROR(FIND(AP$3,'CFR - XML import'!$A8)),0,VALUE(MID('CFR - XML import'!$A8,SEARCH(\">\",'CFR - XML import'!$A8,1)+1,SEARCH(\"/\",'CFR - XML import'!$A8,1)-SEARCH(\">\",'CFR - XML import'!$A8,1)-2)))","v":0},{"$f":"IF(ISERROR(FIND(AQ$3,'CFR - XML import'!$A8)),0,VALUE(MID('CFR - XML import'!$A8,SEARCH(\">\",'CFR - XML import'!$A8,1)+1,SEARCH(\"/\",'CFR - XML import'!$A8,1)-SEARCH(\">\",'CFR - XML import'!$A8,1)-2)))","v":0},{"$f":"IF(ISERROR(FIND(AR$3,'CFR - XML import'!$A8)),0,VALUE(MID('CFR - XML import'!$A8,SEARCH(\">\",'CFR - XML import'!$A8,1)+1,SEARCH(\"/\",'CFR - XML import'!$A8,1)-SEARCH(\">\",'CFR - XML import'!$A8,1)-2)))","v":0},{"$f":"IF(ISERROR(FIND(AS$3,'CFR - XML import'!$A8)),0,VALUE(MID('CFR - XML import'!$A8,SEARCH(\">\",'CFR - XML import'!$A8,1)+1,SEARCH(\"/\",'CFR - XML import'!$A8,1)-SEARCH(\">\",'CFR - XML import'!$A8,1)-2)))","v":0},{"$f":"IF(ISERROR(FIND(AT$3,'CFR - XML import'!$A8)),0,VALUE(MID('CFR - XML import'!$A8,SEARCH(\">\",'CFR - XML import'!$A8,1)+1,SEARCH(\"/\",'CFR - XML import'!$A8,1)-SEARCH(\">\",'CFR - XML import'!$A8,1)-2)))","v":0},{"$f":"IF(ISERROR(FIND(AU$3,'CFR - XML import'!$A8)),0,VALUE(MID('CFR - XML import'!$A8,SEARCH(\">\",'CFR - XML import'!$A8,1)+1,SEARCH(\"/\",'CFR - XML import'!$A8,1)-SEARCH(\">\",'CFR - XML import'!$A8,1)-2)))","v":0},{"$f":"IF(ISERROR(FIND(AV$3,'CFR - XML import'!$A8)),0,VALUE(MID('CFR - XML import'!$A8,SEARCH(\">\",'CFR - XML import'!$A8,1)+1,SEARCH(\"/\",'CFR - XML import'!$A8,1)-SEARCH(\">\",'CFR - XML import'!$A8,1)-2)))","v":0},{"$f":"IF(ISERROR(FIND(AW$3,'CFR - XML import'!$A8)),0,VALUE(MID('CFR - XML import'!$A8,SEARCH(\">\",'CFR - XML import'!$A8,1)+1,SEARCH(\"/\",'CFR - XML import'!$A8,1)-SEARCH(\">\",'CFR - XML import'!$A8,1)-2)))","v":0},{"$f":"IF(ISERROR(FIND(AX$3,'CFR - XML import'!$A8)),0,VALUE(MID('CFR - XML import'!$A8,SEARCH(\">\",'CFR - XML import'!$A8,1)+1,SEARCH(\"/\",'CFR - XML import'!$A8,1)-SEARCH(\">\",'CFR - XML import'!$A8,1)-2)))","v":0},{"$f":"IF(ISERROR(FIND(AY$3,'CFR - XML import'!$A8)),0,VALUE(MID('CFR - XML import'!$A8,SEARCH(\">\",'CFR - XML import'!$A8,1)+1,SEARCH(\"/\",'CFR - XML import'!$A8,1)-SEARCH(\">\",'CFR - XML import'!$A8,1)-2)))","v":0},{"$f":"IF(ISERROR(FIND(AZ$3,'CFR - XML import'!$A8)),0,VALUE(MID('CFR - XML import'!$A8,SEARCH(\">\",'CFR - XML import'!$A8,1)+1,SEARCH(\"/\",'CFR - XML import'!$A8,1)-SEARCH(\">\",'CFR - XML import'!$A8,1)-2)))","v":0},{"$f":"IF(ISERROR(FIND(BA$3,'CFR - XML import'!$A8)),0,VALUE(MID('CFR - XML import'!$A8,SEARCH(\">\",'CFR - XML import'!$A8,1)+1,SEARCH(\"/\",'CFR - XML import'!$A8,1)-SEARCH(\">\",'CFR - XML import'!$A8,1)-2)))","v":0},{"$f":"IF(ISERROR(FIND(BB$3,'CFR - XML import'!$A8)),0,VALUE(MID('CFR - XML import'!$A8,SEARCH(\">\",'CFR - XML import'!$A8,1)+1,SEARCH(\"/\",'CFR - XML import'!$A8,1)-SEARCH(\">\",'CFR - XML import'!$A8,1)-2)))","v":0},{"$f":"IF(ISERROR(FIND(BC$3,'CFR - XML import'!$A8)),0,VALUE(MID('CFR - XML import'!$A8,SEARCH(\">\",'CFR - XML import'!$A8,1)+1,SEARCH(\"/\",'CFR - XML import'!$A8,1)-SEARCH(\">\",'CFR - XML import'!$A8,1)-2)))","v":0},{"$f":"IF(ISERROR(FIND(BD$3,'CFR - XML import'!$A8)),0,VALUE(MID('CFR - XML import'!$A8,SEARCH(\">\",'CFR - XML import'!$A8,1)+1,SEARCH(\"/\",'CFR - XML import'!$A8,1)-SEARCH(\">\",'CFR - XML import'!$A8,1)-2)))","v":0},{"$f":"IF(ISERROR(FIND(BE$3,'CFR - XML import'!$A8)),0,VALUE(MID('CFR - XML import'!$A8,SEARCH(\">\",'CFR - XML import'!$A8,1)+1,SEARCH(\"/\",'CFR - XML import'!$A8,1)-SEARCH(\">\",'CFR - XML import'!$A8,1)-2)))","v":0},{"$f":"IF(ISERROR(FIND(BF$3,'CFR - XML import'!$A8)),0,VALUE(MID('CFR - XML import'!$A8,SEARCH(\">\",'CFR - XML import'!$A8,1)+1,SEARCH(\"/\",'CFR - XML import'!$A8,1)-SEARCH(\">\",'CFR - XML import'!$A8,1)-2)))","v":0},{"$f":"IF(ISERROR(FIND(BG$3,'CFR - XML import'!$A8)),0,VALUE(MID('CFR - XML import'!$A8,SEARCH(\">\",'CFR - XML import'!$A8,1)+1,SEARCH(\"/\",'CFR - XML import'!$A8,1)-SEARCH(\">\",'CFR - XML import'!$A8,1)-2)))","v":0},{"$f":"IF(ISERROR(FIND(BH$3,'CFR - XML import'!$A8)),0,VALUE(MID('CFR - XML import'!$A8,SEARCH(\">\",'CFR - XML import'!$A8,1)+1,SEARCH(\"/\",'CFR - XML import'!$A8,1)-SEARCH(\">\",'CFR - XML import'!$A8,1)-2)))","v":0},{"$f":"IF(ISERROR(FIND(BI$3,'CFR - XML import'!$A8)),0,VALUE(MID('CFR - XML import'!$A8,SEARCH(\">\",'CFR - XML import'!$A8,1)+1,SEARCH(\"/\",'CFR - XML import'!$A8,1)-SEARCH(\">\",'CFR - XML import'!$A8,1)-2)))","v":0},{"$f":"IF(ISERROR(FIND(BJ$3,'CFR - XML import'!$A8)),0,VALUE(MID('CFR - XML import'!$A8,SEARCH(\">\",'CFR - XML import'!$A8,1)+1,SEARCH(\"/\",'CFR - XML import'!$A8,1)-SEARCH(\">\",'CFR - XML import'!$A8,1)-2)))","v":0},{"$f":"IF(ISERROR(FIND(BK$3,'CFR - XML import'!$A8)),0,VALUE(MID('CFR - XML import'!$A8,SEARCH(\">\",'CFR - XML import'!$A8,1)+1,SEARCH(\"/\",'CFR - XML import'!$A8,1)-SEARCH(\">\",'CFR - XML import'!$A8,1)-2)))","v":0},{"$f":"IF(ISERROR(FIND(BL$3,'CFR - XML import'!$A8)),0,VALUE(MID('CFR - XML import'!$A8,SEARCH(\">\",'CFR - XML import'!$A8,1)+1,SEARCH(\"/\",'CFR - XML import'!$A8,1)-SEARCH(\">\",'CFR - XML import'!$A8,1)-2)))","v":0},{"$f":"IF(ISERROR(FIND(BM$3,'CFR - XML import'!$A8)),0,VALUE(MID('CFR - XML import'!$A8,SEARCH(\">\",'CFR - XML import'!$A8,1)+1,SEARCH(\"/\",'CFR - XML import'!$A8,1)-SEARCH(\">\",'CFR - XML import'!$A8,1)-2)))","v":0},{"$f":"IF(ISERROR(FIND(BN$3,'CFR - XML import'!$A8)),0,VALUE(MID('CFR - XML import'!$A8,SEARCH(\">\",'CFR - XML import'!$A8,1)+1,SEARCH(\"/\",'CFR - XML import'!$A8,1)-SEARCH(\">\",'CFR - XML import'!$A8,1)-2)))","v":0},{"$f":"IF(ISERROR(FIND(BO$3,'CFR - XML import'!$A8)),0,VALUE(MID('CFR - XML import'!$A8,SEARCH(\">\",'CFR - XML import'!$A8,1)+1,SEARCH(\"/\",'CFR - XML import'!$A8,1)-SEARCH(\">\",'CFR - XML import'!$A8,1)-2)))","v":0},{"$f":"IF(ISERROR(FIND(BP$3,'CFR - XML import'!$A8)),0,VALUE(MID('CFR - XML import'!$A8,SEARCH(\">\",'CFR - XML import'!$A8,1)+1,SEARCH(\"/\",'CFR - XML import'!$A8,1)-SEARCH(\">\",'CFR - XML import'!$A8,1)-2)))","v":0},{"$f":"IF(ISERROR(FIND(BQ$3,'CFR - XML import'!$A8)),0,VALUE(MID('CFR - XML import'!$A8,SEARCH(\">\",'CFR - XML import'!$A8,1)+1,SEARCH(\"/\",'CFR - XML import'!$A8,1)-SEARCH(\">\",'CFR - XML import'!$A8,1)-2)))","v":0},{"$f":"IF(ISERROR(FIND(BR$3,'CFR - XML import'!$A8)),0,VALUE(MID('CFR - XML import'!$A8,SEARCH(\">\",'CFR - XML import'!$A8,1)+1,SEARCH(\"/\",'CFR - XML import'!$A8,1)-SEARCH(\">\",'CFR - XML import'!$A8,1)-2)))","v":0},{"$f":"IF(ISERROR(FIND(BS$3,'CFR - XML import'!$A8)),0,VALUE(MID('CFR - XML import'!$A8,SEARCH(\">\",'CFR - XML import'!$A8,1)+1,SEARCH(\"/\",'CFR - XML import'!$A8,1)-SEARCH(\">\",'CFR - XML import'!$A8,1)-2)))","v":0},{"$f":"IF(ISERROR(FIND(BT$3,'CFR - XML import'!$A8)),0,VALUE(MID('CFR - XML import'!$A8,SEARCH(\">\",'CFR - XML import'!$A8,1)+1,SEARCH(\"/\",'CFR - XML import'!$A8,1)-SEARCH(\">\",'CFR - XML import'!$A8,1)-2)))","v":0},{"$f":"IF(ISERROR(FIND(BU$3,'CFR - XML import'!$A8)),0,VALUE(MID('CFR - XML import'!$A8,SEARCH(\">\",'CFR - XML import'!$A8,1)+1,SEARCH(\"/\",'CFR - XML import'!$A8,1)-SEARCH(\">\",'CFR - XML import'!$A8,1)-2)))","v":0},{"$f":"IF(ISERROR(FIND(BV$3,'CFR - XML import'!$A8)),0,VALUE(MID('CFR - XML import'!$A8,SEARCH(\">\",'CFR - XML import'!$A8,1)+1,SEARCH(\"/\",'CFR - XML import'!$A8,1)-SEARCH(\">\",'CFR - XML import'!$A8,1)-2)))","v":0},{"$f":"IF(ISERROR(FIND(BW$3,'CFR - XML import'!$A8)),0,VALUE(MID('CFR - XML import'!$A8,SEARCH(\">\",'CFR - XML import'!$A8,1)+1,SEARCH(\"/\",'CFR - XML import'!$A8,1)-SEARCH(\">\",'CFR - XML import'!$A8,1)-2)))","v":0},{"$f":"IF(ISERROR(FIND(BX$3,'CFR - XML import'!$A8)),0,VALUE(MID('CFR - XML import'!$A8,SEARCH(\">\",'CFR - XML import'!$A8,1)+1,SEARCH(\"/\",'CFR - XML import'!$A8,1)-SEARCH(\">\",'CFR - XML import'!$A8,1)-2)))","v":0},{"$f":"IF(ISERROR(FIND(BY$3,'CFR - XML import'!$A8)),0,VALUE(MID('CFR - XML import'!$A8,SEARCH(\">\",'CFR - XML import'!$A8,1)+1,SEARCH(\"/\",'CFR - XML import'!$A8,1)-SEARCH(\">\",'CFR - XML import'!$A8,1)-2)))","v":0},{"$f":"IF(ISERROR(FIND(BZ$3,'CFR - XML import'!$A8)),0,VALUE(MID('CFR - XML import'!$A8,SEARCH(\">\",'CFR - XML import'!$A8,1)+1,SEARCH(\"/\",'CFR - XML import'!$A8,1)-SEARCH(\">\",'CFR - XML import'!$A8,1)-2)))","v":0},null,null,null,null,null,null,{"$f":"IF(ISERROR(IF(MID('CFR - XML import'!$A8,LEN($CF$4)+1,LEN('CFR - XML import'!$A8)-(2*LEN($CF$4)+1))=\"RMMS\",1,IF(MID('CFR - XML import'!$A8,LEN(\"    <InputSystem>\")+1,LEN('CFR - XML import'!$A8)-(LEN(\"    <InputSystem>\")+LEN($CF$4)+1))=\"SIMS\",2,0))),0,IF(MID('CFR - XML import'!$A8,LEN($CF$4)+1,LEN('CFR - XML import'!$A8)-(2*LEN($CF$4)+1))=\"RMMS\",1,IF(MID('CFR - XML import'!$A8,LEN(\"    <InputSystem>\")+1,LEN('CFR - XML import'!$A8)-(LEN(\"    <InputSystem>\")+LEN($CF$4)+1))=\"SIMS\",2,0)))","v":0},{"$f":"IF(ISERROR(FIND(CH$3,'CFR - XML import'!$A8)),0,MID('CFR - XML import'!$A8,SEARCH(\">\",'CFR - XML import'!$A8,1)+1,SEARCH(\"/\",'CFR - XML import'!$A8,1)-SEARCH(\">\",'CFR - XML import'!$A8,1)-2))","v":0},{"$f":"IF(ISERROR(FIND(CI$3,'CFR - XML import'!$A8)),0,MID('CFR - XML import'!$A8,SEARCH(\">\",'CFR - XML import'!$A8,1)+1,SEARCH(\"/\",'CFR - XML import'!$A8,1)-SEARCH(\">\",'CFR - XML import'!$A8,1)-2))","v":0},{"$f":"IF(ISERROR(FIND(CJ$3,'CFR - XML import'!$A8)),0,MID('CFR - XML import'!$A8,SEARCH(\">\",'CFR - XML import'!$A8,1)+1,SEARCH(\"/\",'CFR - XML import'!$A8,1)-SEARCH(\">\",'CFR - XML import'!$A8,1)-2))","v":0},{"$f":"IF(ISERROR(FIND(CK$3,'CFR - XML import'!$A8)),0,MID('CFR - XML import'!$A8,SEARCH(\">\",'CFR - XML import'!$A8,1)+1,SEARCH(\"/\",'CFR - XML import'!$A8,1)-SEARCH(\">\",'CFR - XML import'!$A8,1)-2))","v":0},{"$f":"IF(ISERROR(FIND(CL$3,'CFR - XML import'!$A8)),0,MID('CFR - XML import'!$A8,SEARCH(\">\",'CFR - XML import'!$A8,1)+1,SEARCH(\"/\",'CFR - XML import'!$A8,1)-SEARCH(\">\",'CFR - XML import'!$A8,1)-2))","v":0}]
[{"$f":"IF(AND('CFR - XML import'!A9<>\"\",LEFT('CFR - XML import'!A9,1)<>\"<\",LEFT('CFR - XML import'!A9,3)<>\"  <\",LEFT('CFR - XML import'!A9,5)<>\"    <\",LEFT('CFR - XML import'!A9,7)<>\"      <\",LEFT('CFR - XML import'!A9,9)<>\"        <\",$B$1=\"SIMS\"),'CFR - XML import'!A9,IF(AND(LEFT('CFR - XML import'!A9,9)=\"<Details>\",$B$1=\"RM\"),'CFR - XML import'!A9,\"\"))","v":""},{"$f":"IF(ISERROR(FIND(B$3,'CFR - XML import'!$A9)),0,VALUE(MID('CFR - XML import'!$A9,SEARCH(\">\",'CFR - XML import'!$A9,1)+1,SEARCH(\"/\",'CFR - XML import'!$A9,1)-SEARCH(\">\",'CFR - XML import'!$A9,1)-2)))","v":0},null,{"$f":"IF(ISERROR(FIND(D$3,'CFR - XML import'!$A9)),0,MID('CFR - XML import'!$A9,SEARCH(\">\",'CFR - XML import'!$A9,1)+1,SEARCH(\"/\",'CFR - XML import'!$A9,1)-SEARCH(\">\",'CFR - XML import'!$A9,1)-2))","v":0},{"$f":"IF(ISERROR(FIND(E$3,'CFR - XML import'!$A9)),0,MID('CFR - XML import'!$A9,SEARCH(\">\",'CFR - XML import'!$A9,1)+1,SEARCH(\"/\",'CFR - XML import'!$A9,1)-SEARCH(\">\",'CFR - XML import'!$A9,1)-2))","v":0},{"$f":"IF($B$1=\"SIMS\",IF(ISERROR(FIND(F$3,'CFR - XML import'!$A9)),0,VALUE(MID('CFR - XML import'!$A9,15,10))),IF(ISERROR(FIND(F$3,'CFR - XML import'!$A9)),0,VALUE(MID('CFR - XML import'!$A9,11,10))))","v":"00:00:00"},{"$f":"IF(ISERROR(FIND(G$3,'CFR - XML import'!$A9)),0,VALUE(MID('CFR - XML import'!$A9,SEARCH(\">\",'CFR - XML import'!$A9,1)+1,SEARCH(\"/\",'CFR - XML import'!$A9,1)-SEARCH(\">\",'CFR - XML import'!$A9,1)-2)))","v":0},{"$f":"IF(ISERROR(FIND(H$3,'CFR - XML import'!$A9)),0,VALUE(MID('CFR - XML import'!$A9,SEARCH(\">\",'CFR - XML import'!$A9,1)+1,SEARCH(\"/\",'CFR - XML import'!$A9,1)-SEARCH(\">\",'CFR - XML import'!$A9,1)-2)))","v":0},{"$f":"IF(ISERROR(FIND(I$3,'CFR - XML import'!$A9)),0,VALUE(MID('CFR - XML import'!$A9,SEARCH(\">\",'CFR - XML import'!$A9,1)+1,SEARCH(\"/\",'CFR - XML import'!$A9,1)-SEARCH(\">\",'CFR - XML import'!$A9,1)-2)))","v":0},{"$f":"IF(ISERROR(FIND(J$3,'CFR - XML import'!$A9)),0,VALUE(MID('CFR - XML import'!$A9,SEARCH(\">\",'CFR - XML import'!$A9,1)+1,SEARCH(\"/\",'CFR - XML import'!$A9,1)-SEARCH(\">\",'CFR - XML import'!$A9,1)-2)))","v":0},{"$f":"IF(ISERROR(FIND(K$3,'CFR - XML import'!$A9)),0,VALUE(MID('CFR - XML import'!$A9,SEARCH(\">\",'CFR - XML import'!$A9,1)+1,SEARCH(\"/\",'CFR - XML import'!$A9,1)-SEARCH(\">\",'CFR - XML import'!$A9,1)-2)))","v":0},{"$f":"IF(ISERROR(FIND(L$3,'CFR - XML import'!$A9)),0,VALUE(MID('CFR - XML import'!$A9,SEARCH(\">\",'CFR - XML import'!$A9,1)+1,SEARCH(\"/\",'CFR - XML import'!$A9,1)-SEARCH(\">\",'CFR - XML import'!$A9,1)-2)))","v":0},{"$f":"IF(ISERROR(FIND(M$3,'CFR - XML import'!$A9)),0,VALUE(MID('CFR - XML import'!$A9,SEARCH(\">\",'CFR - XML import'!$A9,1)+1,SEARCH(\"/\",'CFR - XML import'!$A9,1)-SEARCH(\">\",'CFR - XML import'!$A9,1)-2)))","v":0},{"$f":"IF(ISERROR(FIND(N$3,'CFR - XML import'!$A9)),0,VALUE(MID('CFR - XML import'!$A9,SEARCH(\">\",'CFR - XML import'!$A9,1)+1,SEARCH(\"/\",'CFR - XML import'!$A9,1)-SEARCH(\">\",'CFR - XML import'!$A9,1)-2)))","v":0},{"$f":"IF(ISERROR(FIND(O$3,'CFR - XML import'!$A9)),0,VALUE(MID('CFR - XML import'!$A9,SEARCH(\">\",'CFR - XML import'!$A9,1)+1,SEARCH(\"/\",'CFR - XML import'!$A9,1)-SEARCH(\">\",'CFR - XML import'!$A9,1)-2)))","v":0},{"$f":"IF(ISERROR(FIND(P$3,'CFR - XML import'!$A9)),0,VALUE(MID('CFR - XML import'!$A9,SEARCH(\">\",'CFR - XML import'!$A9,1)+1,SEARCH(\"/\",'CFR - XML import'!$A9,1)-SEARCH(\">\",'CFR - XML import'!$A9,1)-2)))","v":0},{"$f":"IF(ISERROR(FIND(Q$3,'CFR - XML import'!$A9)),0,VALUE(MID('CFR - XML import'!$A9,SEARCH(\">\",'CFR - XML import'!$A9,1)+1,SEARCH(\"/\",'CFR - XML import'!$A9,1)-SEARCH(\">\",'CFR - XML import'!$A9,1)-2)))","v":0},{"$f":"IF(ISERROR(FIND(R$3,'CFR - XML import'!$A9)),0,VALUE(MID('CFR - XML import'!$A9,SEARCH(\">\",'CFR - XML import'!$A9,1)+1,SEARCH(\"/\",'CFR - XML import'!$A9,1)-SEARCH(\">\",'CFR - XML import'!$A9,1)-2)))","v":0},{"$f":"IF(ISERROR(FIND(S$3,'CFR - XML import'!$A9)),0,VALUE(MID('CFR - XML import'!$A9,SEARCH(\">\",'CFR - XML import'!$A9,1)+1,SEARCH(\"/\",'CFR - XML import'!$A9,1)-SEARCH(\">\",'CFR - XML import'!$A9,1)-2)))","v":0},{"$f":"IF(ISERROR(FIND(T$3,'CFR - XML import'!$A9)),0,VALUE(MID('CFR - XML import'!$A9,SEARCH(\">\",'CFR - XML import'!$A9,1)+1,SEARCH(\"/\",'CFR - XML import'!$A9,1)-SEARCH(\">\",'CFR - XML import'!$A9,1)-2)))","v":0},{"$f":"IF(ISERROR(FIND(U$3,'CFR - XML import'!$A9)),0,VALUE(MID('CFR - XML import'!$A9,SEARCH(\">\",'CFR - XML import'!$A9,1)+1,SEARCH(\"/\",'CFR - XML import'!$A9,1)-SEARCH(\">\",'CFR - XML import'!$A9,1)-2)))","v":0},{"$f":"IF(ISERROR(FIND(V$3,'CFR - XML import'!$A9)),0,VALUE(MID('CFR - XML import'!$A9,SEARCH(\">\",'CFR - XML import'!$A9,1)+1,SEARCH(\"/\",'CFR - XML import'!$A9,1)-SEARCH(\">\",'CFR - XML import'!$A9,1)-2)))","v":0},{"$f":"IF(ISERROR(FIND(W$3,'CFR - XML import'!$A9)),0,VALUE(MID('CFR - XML import'!$A9,SEARCH(\">\",'CFR - XML import'!$A9,1)+1,SEARCH(\"/\",'CFR - XML import'!$A9,1)-SEARCH(\">\",'CFR - XML import'!$A9,1)-2)))","v":0},null,{"$f":"IF(ISERROR(FIND(Y$3,'CFR - XML import'!$A9)),0,VALUE(MID('CFR - XML import'!$A9,SEARCH(\">\",'CFR - XML import'!$A9,1)+1,SEARCH(\"/\",'CFR - XML import'!$A9,1)-SEARCH(\">\",'CFR - XML import'!$A9,1)-2)))","v":0},{"$f":"IF(ISERROR(FIND(Z$3,'CFR - XML import'!$A9)),0,VALUE(MID('CFR - XML import'!$A9,SEARCH(\">\",'CFR - XML import'!$A9,1)+1,SEARCH(\"/\",'CFR - XML import'!$A9,1)-SEARCH(\">\",'CFR - XML import'!$A9,1)-2)))","v":0},{"$f":"IF(ISERROR(FIND(AA$3,'CFR - XML import'!$A9)),0,VALUE(MID('CFR - XML import'!$A9,SEARCH(\">\",'CFR - XML import'!$A9,1)+1,SEARCH(\"/\",'CFR - XML import'!$A9,1)-SEARCH(\">\",'CFR - XML import'!$A9,1)-2)))","v":0},{"$f":"IF(ISERROR(FIND(AB$3,'CFR - XML import'!$A9)),0,VALUE(MID('CFR - XML import'!$A9,SEARCH(\">\",'CFR - XML import'!$A9,1)+1,SEARCH(\"/\",'CFR - XML import'!$A9,1)-SEARCH(\">\",'CFR - XML import'!$A9,1)-2)))","v":0},{"$f":"IF(ISERROR(FIND(AC$3,'CFR - XML import'!$A9)),0,VALUE(MID('CFR - XML import'!$A9,SEARCH(\">\",'CFR - XML import'!$A9,1)+1,SEARCH(\"/\",'CFR - XML import'!$A9,1)-SEARCH(\">\",'CFR - XML import'!$A9,1)-2)))","v":0},{"$f":"IF(ISERROR(FIND(AD$3,'CFR - XML import'!$A9)),0,VALUE(MID('CFR - XML import'!$A9,SEARCH(\">\",'CFR - XML import'!$A9,1)+1,SEARCH(\"/\",'CFR - XML import'!$A9,1)-SEARCH(\">\",'CFR - XML import'!$A9,1)-2)))","v":0},{"$f":"IF(ISERROR(FIND(AE$3,'CFR - XML import'!$A9)),0,VALUE(MID('CFR - XML import'!$A9,SEARCH(\">\",'CFR - XML import'!$A9,1)+1,SEARCH(\"/\",'CFR - XML import'!$A9,1)-SEARCH(\">\",'CFR - XML import'!$A9,1)-2)))","v":0},{"$f":"IF(ISERROR(FIND(AF$3,'CFR - XML import'!$A9)),0,VALUE(MID('CFR - XML import'!$A9,SEARCH(\">\",'CFR - XML import'!$A9,1)+1,SEARCH(\"/\",'CFR - XML import'!$A9,1)-SEARCH(\">\",'CFR - XML import'!$A9,1)-2)))","v":0},{"$f":"IF(ISERROR(FIND(AG$3,'CFR - XML import'!$A9)),0,VALUE(MID('CFR - XML import'!$A9,SEARCH(\">\",'CFR - XML import'!$A9,1)+1,SEARCH(\"/\",'CFR - XML import'!$A9,1)-SEARCH(\">\",'CFR - XML import'!$A9,1)-2)))","v":0},{"$f":"IF(ISERROR(FIND(AH$3,'CFR - XML import'!$A9)),0,VALUE(MID('CFR - XML import'!$A9,SEARCH(\">\",'CFR - XML import'!$A9,1)+1,SEARCH(\"/\",'CFR - XML import'!$A9,1)-SEARCH(\">\",'CFR - XML import'!$A9,1)-2)))","v":0},{"$f":"IF(ISERROR(FIND(AI$3,'CFR - XML import'!$A9)),0,VALUE(MID('CFR - XML import'!$A9,SEARCH(\">\",'CFR - XML import'!$A9,1)+1,SEARCH(\"/\",'CFR - XML import'!$A9,1)-SEARCH(\">\",'CFR - XML import'!$A9,1)-2)))","v":0},{"$f":"IF(ISERROR(FIND(AJ$3,'CFR - XML import'!$A9)),0,VALUE(MID('CFR - XML import'!$A9,SEARCH(\">\",'CFR - XML import'!$A9,1)+1,SEARCH(\"/\",'CFR - XML import'!$A9,1)-SEARCH(\">\",'CFR - XML import'!$A9,1)-2)))","v":0},{"$f":"IF(ISERROR(FIND(AK$3,'CFR - XML import'!$A9)),0,VALUE(MID('CFR - XML import'!$A9,SEARCH(\">\",'CFR - XML import'!$A9,1)+1,SEARCH(\"/\",'CFR - XML import'!$A9,1)-SEARCH(\">\",'CFR - XML import'!$A9,1)-2)))","v":0},{"$f":"IF(ISERROR(FIND(AL$3,'CFR - XML import'!$A9)),0,VALUE(MID('CFR - XML import'!$A9,SEARCH(\">\",'CFR - XML import'!$A9,1)+1,SEARCH(\"/\",'CFR - XML import'!$A9,1)-SEARCH(\">\",'CFR - XML import'!$A9,1)-2)))","v":0},{"$f":"IF(ISERROR(FIND(AM$3,'CFR - XML import'!$A9)),0,VALUE(MID('CFR - XML import'!$A9,SEARCH(\">\",'CFR - XML import'!$A9,1)+1,SEARCH(\"/\",'CFR - XML import'!$A9,1)-SEARCH(\">\",'CFR - XML import'!$A9,1)-2)))","v":0},{"$f":"IF(ISERROR(FIND(AN$3,'CFR - XML import'!$A9)),0,VALUE(MID('CFR - XML import'!$A9,SEARCH(\">\",'CFR - XML import'!$A9,1)+1,SEARCH(\"/\",'CFR - XML import'!$A9,1)-SEARCH(\">\",'CFR - XML import'!$A9,1)-2)))","v":0},{"$f":"IF(ISERROR(FIND(AO$3,'CFR - XML import'!$A9)),0,VALUE(MID('CFR - XML import'!$A9,SEARCH(\">\",'CFR - XML import'!$A9,1)+1,SEARCH(\"/\",'CFR - XML import'!$A9,1)-SEARCH(\">\",'CFR - XML import'!$A9,1)-2)))","v":0},{"$f":"IF(ISERROR(FIND(AP$3,'CFR - XML import'!$A9)),0,VALUE(MID('CFR - XML import'!$A9,SEARCH(\">\",'CFR - XML import'!$A9,1)+1,SEARCH(\"/\",'CFR - XML import'!$A9,1)-SEARCH(\">\",'CFR - XML import'!$A9,1)-2)))","v":0},{"$f":"IF(ISERROR(FIND(AQ$3,'CFR - XML import'!$A9)),0,VALUE(MID('CFR - XML import'!$A9,SEARCH(\">\",'CFR - XML import'!$A9,1)+1,SEARCH(\"/\",'CFR - XML import'!$A9,1)-SEARCH(\">\",'CFR - XML import'!$A9,1)-2)))","v":0},{"$f":"IF(ISERROR(FIND(AR$3,'CFR - XML import'!$A9)),0,VALUE(MID('CFR - XML import'!$A9,SEARCH(\">\",'CFR - XML import'!$A9,1)+1,SEARCH(\"/\",'CFR - XML import'!$A9,1)-SEARCH(\">\",'CFR - XML import'!$A9,1)-2)))","v":0},{"$f":"IF(ISERROR(FIND(AS$3,'CFR - XML import'!$A9)),0,VALUE(MID('CFR - XML import'!$A9,SEARCH(\">\",'CFR - XML import'!$A9,1)+1,SEARCH(\"/\",'CFR - XML import'!$A9,1)-SEARCH(\">\",'CFR - XML import'!$A9,1)-2)))","v":0},{"$f":"IF(ISERROR(FIND(AT$3,'CFR - XML import'!$A9)),0,VALUE(MID('CFR - XML import'!$A9,SEARCH(\">\",'CFR - XML import'!$A9,1)+1,SEARCH(\"/\",'CFR - XML import'!$A9,1)-SEARCH(\">\",'CFR - XML import'!$A9,1)-2)))","v":0},{"$f":"IF(ISERROR(FIND(AU$3,'CFR - XML import'!$A9)),0,VALUE(MID('CFR - XML import'!$A9,SEARCH(\">\",'CFR - XML import'!$A9,1)+1,SEARCH(\"/\",'CFR - XML import'!$A9,1)-SEARCH(\">\",'CFR - XML import'!$A9,1)-2)))","v":0},{"$f":"IF(ISERROR(FIND(AV$3,'CFR - XML import'!$A9)),0,VALUE(MID('CFR - XML import'!$A9,SEARCH(\">\",'CFR - XML import'!$A9,1)+1,SEARCH(\"/\",'CFR - XML import'!$A9,1)-SEARCH(\">\",'CFR - XML import'!$A9,1)-2)))","v":0},{"$f":"IF(ISERROR(FIND(AW$3,'CFR - XML import'!$A9)),0,VALUE(MID('CFR - XML import'!$A9,SEARCH(\">\",'CFR - XML import'!$A9,1)+1,SEARCH(\"/\",'CFR - XML import'!$A9,1)-SEARCH(\">\",'CFR - XML import'!$A9,1)-2)))","v":0},{"$f":"IF(ISERROR(FIND(AX$3,'CFR - XML import'!$A9)),0,VALUE(MID('CFR - XML import'!$A9,SEARCH(\">\",'CFR - XML import'!$A9,1)+1,SEARCH(\"/\",'CFR - XML import'!$A9,1)-SEARCH(\">\",'CFR - XML import'!$A9,1)-2)))","v":0},{"$f":"IF(ISERROR(FIND(AY$3,'CFR - XML import'!$A9)),0,VALUE(MID('CFR - XML import'!$A9,SEARCH(\">\",'CFR - XML import'!$A9,1)+1,SEARCH(\"/\",'CFR - XML import'!$A9,1)-SEARCH(\">\",'CFR - XML import'!$A9,1)-2)))","v":0},{"$f":"IF(ISERROR(FIND(AZ$3,'CFR - XML import'!$A9)),0,VALUE(MID('CFR - XML import'!$A9,SEARCH(\">\",'CFR - XML import'!$A9,1)+1,SEARCH(\"/\",'CFR - XML import'!$A9,1)-SEARCH(\">\",'CFR - XML import'!$A9,1)-2)))","v":0},{"$f":"IF(ISERROR(FIND(BA$3,'CFR - XML import'!$A9)),0,VALUE(MID('CFR - XML import'!$A9,SEARCH(\">\",'CFR - XML import'!$A9,1)+1,SEARCH(\"/\",'CFR - XML import'!$A9,1)-SEARCH(\">\",'CFR - XML import'!$A9,1)-2)))","v":0},{"$f":"IF(ISERROR(FIND(BB$3,'CFR - XML import'!$A9)),0,VALUE(MID('CFR - XML import'!$A9,SEARCH(\">\",'CFR - XML import'!$A9,1)+1,SEARCH(\"/\",'CFR - XML import'!$A9,1)-SEARCH(\">\",'CFR - XML import'!$A9,1)-2)))","v":0},{"$f":"IF(ISERROR(FIND(BC$3,'CFR - XML import'!$A9)),0,VALUE(MID('CFR - XML import'!$A9,SEARCH(\">\",'CFR - XML import'!$A9,1)+1,SEARCH(\"/\",'CFR - XML import'!$A9,1)-SEARCH(\">\",'CFR - XML import'!$A9,1)-2)))","v":0},{"$f":"IF(ISERROR(FIND(BD$3,'CFR - XML import'!$A9)),0,VALUE(MID('CFR - XML import'!$A9,SEARCH(\">\",'CFR - XML import'!$A9,1)+1,SEARCH(\"/\",'CFR - XML import'!$A9,1)-SEARCH(\">\",'CFR - XML import'!$A9,1)-2)))","v":0},{"$f":"IF(ISERROR(FIND(BE$3,'CFR - XML import'!$A9)),0,VALUE(MID('CFR - XML import'!$A9,SEARCH(\">\",'CFR - XML import'!$A9,1)+1,SEARCH(\"/\",'CFR - XML import'!$A9,1)-SEARCH(\">\",'CFR - XML import'!$A9,1)-2)))","v":0},{"$f":"IF(ISERROR(FIND(BF$3,'CFR - XML import'!$A9)),0,VALUE(MID('CFR - XML import'!$A9,SEARCH(\">\",'CFR - XML import'!$A9,1)+1,SEARCH(\"/\",'CFR - XML import'!$A9,1)-SEARCH(\">\",'CFR - XML import'!$A9,1)-2)))","v":0},{"$f":"IF(ISERROR(FIND(BG$3,'CFR - XML import'!$A9)),0,VALUE(MID('CFR - XML import'!$A9,SEARCH(\">\",'CFR - XML import'!$A9,1)+1,SEARCH(\"/\",'CFR - XML import'!$A9,1)-SEARCH(\">\",'CFR - XML import'!$A9,1)-2)))","v":0},{"$f":"IF(ISERROR(FIND(BH$3,'CFR - XML import'!$A9)),0,VALUE(MID('CFR - XML import'!$A9,SEARCH(\">\",'CFR - XML import'!$A9,1)+1,SEARCH(\"/\",'CFR - XML import'!$A9,1)-SEARCH(\">\",'CFR - XML import'!$A9,1)-2)))","v":0},{"$f":"IF(ISERROR(FIND(BI$3,'CFR - XML import'!$A9)),0,VALUE(MID('CFR - XML import'!$A9,SEARCH(\">\",'CFR - XML import'!$A9,1)+1,SEARCH(\"/\",'CFR - XML import'!$A9,1)-SEARCH(\">\",'CFR - XML import'!$A9,1)-2)))","v":0},{"$f":"IF(ISERROR(FIND(BJ$3,'CFR - XML import'!$A9)),0,VALUE(MID('CFR - XML import'!$A9,SEARCH(\">\",'CFR - XML import'!$A9,1)+1,SEARCH(\"/\",'CFR - XML import'!$A9,1)-SEARCH(\">\",'CFR - XML import'!$A9,1)-2)))","v":0},{"$f":"IF(ISERROR(FIND(BK$3,'CFR - XML import'!$A9)),0,VALUE(MID('CFR - XML import'!$A9,SEARCH(\">\",'CFR - XML import'!$A9,1)+1,SEARCH(\"/\",'CFR - XML import'!$A9,1)-SEARCH(\">\",'CFR - XML import'!$A9,1)-2)))","v":0},{"$f":"IF(ISERROR(FIND(BL$3,'CFR - XML import'!$A9)),0,VALUE(MID('CFR - XML import'!$A9,SEARCH(\">\",'CFR - XML import'!$A9,1)+1,SEARCH(\"/\",'CFR - XML import'!$A9,1)-SEARCH(\">\",'CFR - XML import'!$A9,1)-2)))","v":0},{"$f":"IF(ISERROR(FIND(BM$3,'CFR - XML import'!$A9)),0,VALUE(MID('CFR - XML import'!$A9,SEARCH(\">\",'CFR - XML import'!$A9,1)+1,SEARCH(\"/\",'CFR - XML import'!$A9,1)-SEARCH(\">\",'CFR - XML import'!$A9,1)-2)))","v":0},{"$f":"IF(ISERROR(FIND(BN$3,'CFR - XML import'!$A9)),0,VALUE(MID('CFR - XML import'!$A9,SEARCH(\">\",'CFR - XML import'!$A9,1)+1,SEARCH(\"/\",'CFR - XML import'!$A9,1)-SEARCH(\">\",'CFR - XML import'!$A9,1)-2)))","v":0},{"$f":"IF(ISERROR(FIND(BO$3,'CFR - XML import'!$A9)),0,VALUE(MID('CFR - XML import'!$A9,SEARCH(\">\",'CFR - XML import'!$A9,1)+1,SEARCH(\"/\",'CFR - XML import'!$A9,1)-SEARCH(\">\",'CFR - XML import'!$A9,1)-2)))","v":0},{"$f":"IF(ISERROR(FIND(BP$3,'CFR - XML import'!$A9)),0,VALUE(MID('CFR - XML import'!$A9,SEARCH(\">\",'CFR - XML import'!$A9,1)+1,SEARCH(\"/\",'CFR - XML import'!$A9,1)-SEARCH(\">\",'CFR - XML import'!$A9,1)-2)))","v":0},{"$f":"IF(ISERROR(FIND(BQ$3,'CFR - XML import'!$A9)),0,VALUE(MID('CFR - XML import'!$A9,SEARCH(\">\",'CFR - XML import'!$A9,1)+1,SEARCH(\"/\",'CFR - XML import'!$A9,1)-SEARCH(\">\",'CFR - XML import'!$A9,1)-2)))","v":0},{"$f":"IF(ISERROR(FIND(BR$3,'CFR - XML import'!$A9)),0,VALUE(MID('CFR - XML import'!$A9,SEARCH(\">\",'CFR - XML import'!$A9,1)+1,SEARCH(\"/\",'CFR - XML import'!$A9,1)-SEARCH(\">\",'CFR - XML import'!$A9,1)-2)))","v":0},{"$f":"IF(ISERROR(FIND(BS$3,'CFR - XML import'!$A9)),0,VALUE(MID('CFR - XML import'!$A9,SEARCH(\">\",'CFR - XML import'!$A9,1)+1,SEARCH(\"/\",'CFR - XML import'!$A9,1)-SEARCH(\">\",'CFR - XML import'!$A9,1)-2)))","v":0},{"$f":"IF(ISERROR(FIND(BT$3,'CFR - XML import'!$A9)),0,VALUE(MID('CFR - XML import'!$A9,SEARCH(\">\",'CFR - XML import'!$A9,1)+1,SEARCH(\"/\",'CFR - XML import'!$A9,1)-SEARCH(\">\",'CFR - XML import'!$A9,1)-2)))","v":0},{"$f":"IF(ISERROR(FIND(BU$3,'CFR - XML import'!$A9)),0,VALUE(MID('CFR - XML import'!$A9,SEARCH(\">\",'CFR - XML import'!$A9,1)+1,SEARCH(\"/\",'CFR - XML import'!$A9,1)-SEARCH(\">\",'CFR - XML import'!$A9,1)-2)))","v":0},{"$f":"IF(ISERROR(FIND(BV$3,'CFR - XML import'!$A9)),0,VALUE(MID('CFR - XML import'!$A9,SEARCH(\">\",'CFR - XML import'!$A9,1)+1,SEARCH(\"/\",'CFR - XML import'!$A9,1)-SEARCH(\">\",'CFR - XML import'!$A9,1)-2)))","v":0},{"$f":"IF(ISERROR(FIND(BW$3,'CFR - XML import'!$A9)),0,VALUE(MID('CFR - XML import'!$A9,SEARCH(\">\",'CFR - XML import'!$A9,1)+1,SEARCH(\"/\",'CFR - XML import'!$A9,1)-SEARCH(\">\",'CFR - XML import'!$A9,1)-2)))","v":0},{"$f":"IF(ISERROR(FIND(BX$3,'CFR - XML import'!$A9)),0,VALUE(MID('CFR - XML import'!$A9,SEARCH(\">\",'CFR - XML import'!$A9,1)+1,SEARCH(\"/\",'CFR - XML import'!$A9,1)-SEARCH(\">\",'CFR - XML import'!$A9,1)-2)))","v":0},{"$f":"IF(ISERROR(FIND(BY$3,'CFR - XML import'!$A9)),0,VALUE(MID('CFR - XML import'!$A9,SEARCH(\">\",'CFR - XML import'!$A9,1)+1,SEARCH(\"/\",'CFR - XML import'!$A9,1)-SEARCH(\">\",'CFR - XML import'!$A9,1)-2)))","v":0},{"$f":"IF(ISERROR(FIND(BZ$3,'CFR - XML import'!$A9)),0,VALUE(MID('CFR - XML import'!$A9,SEARCH(\">\",'CFR - XML import'!$A9,1)+1,SEARCH(\"/\",'CFR - XML import'!$A9,1)-SEARCH(\">\",'CFR - XML import'!$A9,1)-2)))","v":0},null,null,null,null,null,null,{"$f":"IF(ISERROR(IF(MID('CFR - XML import'!$A9,LEN($CF$4)+1,LEN('CFR - XML import'!$A9)-(2*LEN($CF$4)+1))=\"RMMS\",1,IF(MID('CFR - XML import'!$A9,LEN(\"    <InputSystem>\")+1,LEN('CFR - XML import'!$A9)-(LEN(\"    <InputSystem>\")+LEN($CF$4)+1))=\"SIMS\",2,0))),0,IF(MID('CFR - XML import'!$A9,LEN($CF$4)+1,LEN('CFR - XML import'!$A9)-(2*LEN($CF$4)+1))=\"RMMS\",1,IF(MID('CFR - XML import'!$A9,LEN(\"    <InputSystem>\")+1,LEN('CFR - XML import'!$A9)-(LEN(\"    <InputSystem>\")+LEN($CF$4)+1))=\"SIMS\",2,0)))","v":0},{"$f":"IF(ISERROR(FIND(CH$3,'CFR - XML import'!$A9)),0,MID('CFR - XML import'!$A9,SEARCH(\">\",'CFR - XML import'!$A9,1)+1,SEARCH(\"/\",'CFR - XML import'!$A9,1)-SEARCH(\">\",'CFR - XML import'!$A9,1)-2))","v":0},{"$f":"IF(ISERROR(FIND(CI$3,'CFR - XML import'!$A9)),0,MID('CFR - XML import'!$A9,SEARCH(\">\",'CFR - XML import'!$A9,1)+1,SEARCH(\"/\",'CFR - XML import'!$A9,1)-SEARCH(\">\",'CFR - XML import'!$A9,1)-2))","v":0},{"$f":"IF(ISERROR(FIND(CJ$3,'CFR - XML import'!$A9)),0,MID('CFR - XML import'!$A9,SEARCH(\">\",'CFR - XML import'!$A9,1)+1,SEARCH(\"/\",'CFR - XML import'!$A9,1)-SEARCH(\">\",'CFR - XML import'!$A9,1)-2))","v":0},{"$f":"IF(ISERROR(FIND(CK$3,'CFR - XML import'!$A9)),0,MID('CFR - XML import'!$A9,SEARCH(\">\",'CFR - XML import'!$A9,1)+1,SEARCH(\"/\",'CFR - XML import'!$A9,1)-SEARCH(\">\",'CFR - XML import'!$A9,1)-2))","v":0},{"$f":"IF(ISERROR(FIND(CL$3,'CFR - XML import'!$A9)),0,MID('CFR - XML import'!$A9,SEARCH(\">\",'CFR - XML import'!$A9,1)+1,SEARCH(\"/\",'CFR - XML import'!$A9,1)-SEARCH(\">\",'CFR - XML import'!$A9,1)-2))","v":0}]
[{"$f":"IF(AND('CFR - XML import'!A10<>\"\",LEFT('CFR - XML import'!A10,1)<>\"<\",LEFT('CFR - XML import'!A10,3)<>\"  <\",LEFT('CFR - XML import'!A10,5)<>\"    <\",LEFT('CFR - XML import'!A10,7)<>\"      <\",LEFT('CFR - XML import'!A10,9)<>\"        <\",$B$1=\"SIMS\"),'CFR - XML import'!A10,IF(AND(LEFT('CFR - XML import'!A10,9)=\"<Details>\",$B$1=\"RM\"),'CFR - XML import'!A10,\"\"))","v":""},{"$f":"IF(ISERROR(FIND(B$3,'CFR - XML import'!$A10)),0,VALUE(MID('CFR - XML import'!$A10,SEARCH(\">\",'CFR - XML import'!$A10,1)+1,SEARCH(\"/\",'CFR - XML import'!$A10,1)-SEARCH(\">\",'CFR - XML import'!$A10,1)-2)))","v":0},null,{"$f":"IF(ISERROR(FIND(D$3,'CFR - XML import'!$A10)),0,MID('CFR - XML import'!$A10,SEARCH(\">\",'CFR - XML import'!$A10,1)+1,SEARCH(\"/\",'CFR - XML import'!$A10,1)-SEARCH(\">\",'CFR - XML import'!$A10,1)-2))","v":0},{"$f":"IF(ISERROR(FIND(E$3,'CFR - XML import'!$A10)),0,MID('CFR - XML import'!$A10,SEARCH(\">\",'CFR - XML import'!$A10,1)+1,SEARCH(\"/\",'CFR - XML import'!$A10,1)-SEARCH(\">\",'CFR - XML import'!$A10,1)-2))","v":0},{"$f":"IF($B$1=\"SIMS\",IF(ISERROR(FIND(F$3,'CFR - XML import'!$A10)),0,VALUE(MID('CFR - XML import'!$A10,15,10))),IF(ISERROR(FIND(F$3,'CFR - XML import'!$A10)),0,VALUE(MID('CFR - XML import'!$A10,11,10))))","v":"00:00:00"},{"$f":"IF(ISERROR(FIND(G$3,'CFR - XML import'!$A10)),0,VALUE(MID('CFR - XML import'!$A10,SEARCH(\">\",'CFR - XML import'!$A10,1)+1,SEARCH(\"/\",'CFR - XML import'!$A10,1)-SEARCH(\">\",'CFR - XML import'!$A10,1)-2)))","v":0},{"$f":"IF(ISERROR(FIND(H$3,'CFR - XML import'!$A10)),0,VALUE(MID('CFR - XML import'!$A10,SEARCH(\">\",'CFR - XML import'!$A10,1)+1,SEARCH(\"/\",'CFR - XML import'!$A10,1)-SEARCH(\">\",'CFR - XML import'!$A10,1)-2)))","v":0},{"$f":"IF(ISERROR(FIND(I$3,'CFR - XML import'!$A10)),0,VALUE(MID('CFR - XML import'!$A10,SEARCH(\">\",'CFR - XML import'!$A10,1)+1,SEARCH(\"/\",'CFR - XML import'!$A10,1)-SEARCH(\">\",'CFR - XML import'!$A10,1)-2)))","v":0},{"$f":"IF(ISERROR(FIND(J$3,'CFR - XML import'!$A10)),0,VALUE(MID('CFR - XML import'!$A10,SEARCH(\">\",'CFR - XML import'!$A10,1)+1,SEARCH(\"/\",'CFR - XML import'!$A10,1)-SEARCH(\">\",'CFR - XML import'!$A10,1)-2)))","v":0},{"$f":"IF(ISERROR(FIND(K$3,'CFR - XML import'!$A10)),0,VALUE(MID('CFR - XML import'!$A10,SEARCH(\">\",'CFR - XML import'!$A10,1)+1,SEARCH(\"/\",'CFR - XML import'!$A10,1)-SEARCH(\">\",'CFR - XML import'!$A10,1)-2)))","v":0},{"$f":"IF(ISERROR(FIND(L$3,'CFR - XML import'!$A10)),0,VALUE(MID('CFR - XML import'!$A10,SEARCH(\">\",'CFR - XML import'!$A10,1)+1,SEARCH(\"/\",'CFR - XML import'!$A10,1)-SEARCH(\">\",'CFR - XML import'!$A10,1)-2)))","v":0},{"$f":"IF(ISERROR(FIND(M$3,'CFR - XML import'!$A10)),0,VALUE(MID('CFR - XML import'!$A10,SEARCH(\">\",'CFR - XML import'!$A10,1)+1,SEARCH(\"/\",'CFR - XML import'!$A10,1)-SEARCH(\">\",'CFR - XML import'!$A10,1)-2)))","v":0},{"$f":"IF(ISERROR(FIND(N$3,'CFR - XML import'!$A10)),0,VALUE(MID('CFR - XML import'!$A10,SEARCH(\">\",'CFR - XML import'!$A10,1)+1,SEARCH(\"/\",'CFR - XML import'!$A10,1)-SEARCH(\">\",'CFR - XML import'!$A10,1)-2)))","v":0},{"$f":"IF(ISERROR(FIND(O$3,'CFR - XML import'!$A10)),0,VALUE(MID('CFR - XML import'!$A10,SEARCH(\">\",'CFR - XML import'!$A10,1)+1,SEARCH(\"/\",'CFR - XML import'!$A10,1)-SEARCH(\">\",'CFR - XML import'!$A10,1)-2)))","v":0},{"$f":"IF(ISERROR(FIND(P$3,'CFR - XML import'!$A10)),0,VALUE(MID('CFR - XML import'!$A10,SEARCH(\">\",'CFR - XML import'!$A10,1)+1,SEARCH(\"/\",'CFR - XML import'!$A10,1)-SEARCH(\">\",'CFR - XML import'!$A10,1)-2)))","v":0},{"$f":"IF(ISERROR(FIND(Q$3,'CFR - XML import'!$A10)),0,VALUE(MID('CFR - XML import'!$A10,SEARCH(\">\",'CFR - XML import'!$A10,1)+1,SEARCH(\"/\",'CFR - XML import'!$A10,1)-SEARCH(\">\",'CFR - XML import'!$A10,1)-2)))","v":0},{"$f":"IF(ISERROR(FIND(R$3,'CFR - XML import'!$A10)),0,VALUE(MID('CFR - XML import'!$A10,SEARCH(\">\",'CFR - XML import'!$A10,1)+1,SEARCH(\"/\",'CFR - XML import'!$A10,1)-SEARCH(\">\",'CFR - XML import'!$A10,1)-2)))","v":0},{"$f":"IF(ISERROR(FIND(S$3,'CFR - XML import'!$A10)),0,VALUE(MID('CFR - XML import'!$A10,SEARCH(\">\",'CFR - XML import'!$A10,1)+1,SEARCH(\"/\",'CFR - XML import'!$A10,1)-SEARCH(\">\",'CFR - XML import'!$A10,1)-2)))","v":0},{"$f":"IF(ISERROR(FIND(T$3,'CFR - XML import'!$A10)),0,VALUE(MID('CFR - XML import'!$A10,SEARCH(\">\",'CFR - XML import'!$A10,1)+1,SEARCH(\"/\",'CFR - XML import'!$A10,1)-SEARCH(\">\",'CFR - XML import'!$A10,1)-2)))","v":0},{"$f":"IF(ISERROR(FIND(U$3,'CFR - XML import'!$A10)),0,VALUE(MID('CFR - XML import'!$A10,SEARCH(\">\",'CFR - XML import'!$A10,1)+1,SEARCH(\"/\",'CFR - XML import'!$A10,1)-SEARCH(\">\",'CFR - XML import'!$A10,1)-2)))","v":0},{"$f":"IF(ISERROR(FIND(V$3,'CFR - XML import'!$A10)),0,VALUE(MID('CFR - XML import'!$A10,SEARCH(\">\",'CFR - XML import'!$A10,1)+1,SEARCH(\"/\",'CFR - XML import'!$A10,1)-SEARCH(\">\",'CFR - XML import'!$A10,1)-2)))","v":0},{"$f":"IF(ISERROR(FIND(W$3,'CFR - XML import'!$A10)),0,VALUE(MID('CFR - XML import'!$A10,SEARCH(\">\",'CFR - XML import'!$A10,1)+1,SEARCH(\"/\",'CFR - XML import'!$A10,1)-SEARCH(\">\",'CFR - XML import'!$A10,1)-2)))","v":0},null,{"$f":"IF(ISERROR(FIND(Y$3,'CFR - XML import'!$A10)),0,VALUE(MID('CFR - XML import'!$A10,SEARCH(\">\",'CFR - XML import'!$A10,1)+1,SEARCH(\"/\",'CFR - XML import'!$A10,1)-SEARCH(\">\",'CFR - XML import'!$A10,1)-2)))","v":0},{"$f":"IF(ISERROR(FIND(Z$3,'CFR - XML import'!$A10)),0,VALUE(MID('CFR - XML import'!$A10,SEARCH(\">\",'CFR - XML import'!$A10,1)+1,SEARCH(\"/\",'CFR - XML import'!$A10,1)-SEARCH(\">\",'CFR - XML import'!$A10,1)-2)))","v":0},{"$f":"IF(ISERROR(FIND(AA$3,'CFR - XML import'!$A10)),0,VALUE(MID('CFR - XML import'!$A10,SEARCH(\">\",'CFR - XML import'!$A10,1)+1,SEARCH(\"/\",'CFR - XML import'!$A10,1)-SEARCH(\">\",'CFR - XML import'!$A10,1)-2)))","v":0},{"$f":"IF(ISERROR(FIND(AB$3,'CFR - XML import'!$A10)),0,VALUE(MID('CFR - XML import'!$A10,SEARCH(\">\",'CFR - XML import'!$A10,1)+1,SEARCH(\"/\",'CFR - XML import'!$A10,1)-SEARCH(\">\",'CFR - XML import'!$A10,1)-2)))","v":0},{"$f":"IF(ISERROR(FIND(AC$3,'CFR - XML import'!$A10)),0,VALUE(MID('CFR - XML import'!$A10,SEARCH(\">\",'CFR - XML import'!$A10,1)+1,SEARCH(\"/\",'CFR - XML import'!$A10,1)-SEARCH(\">\",'CFR - XML import'!$A10,1)-2)))","v":0},{"$f":"IF(ISERROR(FIND(AD$3,'CFR - XML import'!$A10)),0,VALUE(MID('CFR - XML import'!$A10,SEARCH(\">\",'CFR - XML import'!$A10,1)+1,SEARCH(\"/\",'CFR - XML import'!$A10,1)-SEARCH(\">\",'CFR - XML import'!$A10,1)-2)))","v":0},{"$f":"IF(ISERROR(FIND(AE$3,'CFR - XML import'!$A10)),0,VALUE(MID('CFR - XML import'!$A10,SEARCH(\">\",'CFR - XML import'!$A10,1)+1,SEARCH(\"/\",'CFR - XML import'!$A10,1)-SEARCH(\">\",'CFR - XML import'!$A10,1)-2)))","v":0},{"$f":"IF(ISERROR(FIND(AF$3,'CFR - XML import'!$A10)),0,VALUE(MID('CFR - XML import'!$A10,SEARCH(\">\",'CFR - XML import'!$A10,1)+1,SEARCH(\"/\",'CFR - XML import'!$A10,1)-SEARCH(\">\",'CFR - XML import'!$A10,1)-2)))","v":0},{"$f":"IF(ISERROR(FIND(AG$3,'CFR - XML import'!$A10)),0,VALUE(MID('CFR - XML import'!$A10,SEARCH(\">\",'CFR - XML import'!$A10,1)+1,SEARCH(\"/\",'CFR - XML import'!$A10,1)-SEARCH(\">\",'CFR - XML import'!$A10,1)-2)))","v":0},{"$f":"IF(ISERROR(FIND(AH$3,'CFR - XML import'!$A10)),0,VALUE(MID('CFR - XML import'!$A10,SEARCH(\">\",'CFR - XML import'!$A10,1)+1,SEARCH(\"/\",'CFR - XML import'!$A10,1)-SEARCH(\">\",'CFR - XML import'!$A10,1)-2)))","v":0},{"$f":"IF(ISERROR(FIND(AI$3,'CFR - XML import'!$A10)),0,VALUE(MID('CFR - XML import'!$A10,SEARCH(\">\",'CFR - XML import'!$A10,1)+1,SEARCH(\"/\",'CFR - XML import'!$A10,1)-SEARCH(\">\",'CFR - XML import'!$A10,1)-2)))","v":0},{"$f":"IF(ISERROR(FIND(AJ$3,'CFR - XML import'!$A10)),0,VALUE(MID('CFR - XML import'!$A10,SEARCH(\">\",'CFR - XML import'!$A10,1)+1,SEARCH(\"/\",'CFR - XML import'!$A10,1)-SEARCH(\">\",'CFR - XML import'!$A10,1)-2)))","v":0},{"$f":"IF(ISERROR(FIND(AK$3,'CFR - XML import'!$A10)),0,VALUE(MID('CFR - XML import'!$A10,SEARCH(\">\",'CFR - XML import'!$A10,1)+1,SEARCH(\"/\",'CFR - XML import'!$A10,1)-SEARCH(\">\",'CFR - XML import'!$A10,1)-2)))","v":0},{"$f":"IF(ISERROR(FIND(AL$3,'CFR - XML import'!$A10)),0,VALUE(MID('CFR - XML import'!$A10,SEARCH(\">\",'CFR - XML import'!$A10,1)+1,SEARCH(\"/\",'CFR - XML import'!$A10,1)-SEARCH(\">\",'CFR - XML import'!$A10,1)-2)))","v":0},{"$f":"IF(ISERROR(FIND(AM$3,'CFR - XML import'!$A10)),0,VALUE(MID('CFR - XML import'!$A10,SEARCH(\">\",'CFR - XML import'!$A10,1)+1,SEARCH(\"/\",'CFR - XML import'!$A10,1)-SEARCH(\">\",'CFR - XML import'!$A10,1)-2)))","v":0},{"$f":"IF(ISERROR(FIND(AN$3,'CFR - XML import'!$A10)),0,VALUE(MID('CFR - XML import'!$A10,SEARCH(\">\",'CFR - XML import'!$A10,1)+1,SEARCH(\"/\",'CFR - XML import'!$A10,1)-SEARCH(\">\",'CFR - XML import'!$A10,1)-2)))","v":0},{"$f":"IF(ISERROR(FIND(AO$3,'CFR - XML import'!$A10)),0,VALUE(MID('CFR - XML import'!$A10,SEARCH(\">\",'CFR - XML import'!$A10,1)+1,SEARCH(\"/\",'CFR - XML import'!$A10,1)-SEARCH(\">\",'CFR - XML import'!$A10,1)-2)))","v":0},{"$f":"IF(ISERROR(FIND(AP$3,'CFR - XML import'!$A10)),0,VALUE(MID('CFR - XML import'!$A10,SEARCH(\">\",'CFR - XML import'!$A10,1)+1,SEARCH(\"/\",'CFR - XML import'!$A10,1)-SEARCH(\">\",'CFR - XML import'!$A10,1)-2)))","v":0},{"$f":"IF(ISERROR(FIND(AQ$3,'CFR - XML import'!$A10)),0,VALUE(MID('CFR - XML import'!$A10,SEARCH(\">\",'CFR - XML import'!$A10,1)+1,SEARCH(\"/\",'CFR - XML import'!$A10,1)-SEARCH(\">\",'CFR - XML import'!$A10,1)-2)))","v":0},{"$f":"IF(ISERROR(FIND(AR$3,'CFR - XML import'!$A10)),0,VALUE(MID('CFR - XML import'!$A10,SEARCH(\">\",'CFR - XML import'!$A10,1)+1,SEARCH(\"/\",'CFR - XML import'!$A10,1)-SEARCH(\">\",'CFR - XML import'!$A10,1)-2)))","v":0},{"$f":"IF(ISERROR(FIND(AS$3,'CFR - XML import'!$A10)),0,VALUE(MID('CFR - XML import'!$A10,SEARCH(\">\",'CFR - XML import'!$A10,1)+1,SEARCH(\"/\",'CFR - XML import'!$A10,1)-SEARCH(\">\",'CFR - XML import'!$A10,1)-2)))","v":0},{"$f":"IF(ISERROR(FIND(AT$3,'CFR - XML import'!$A10)),0,VALUE(MID('CFR - XML import'!$A10,SEARCH(\">\",'CFR - XML import'!$A10,1)+1,SEARCH(\"/\",'CFR - XML import'!$A10,1)-SEARCH(\">\",'CFR - XML import'!$A10,1)-2)))","v":0},{"$f":"IF(ISERROR(FIND(AU$3,'CFR - XML import'!$A10)),0,VALUE(MID('CFR - XML import'!$A10,SEARCH(\">\",'CFR - XML import'!$A10,1)+1,SEARCH(\"/\",'CFR - XML import'!$A10,1)-SEARCH(\">\",'CFR - XML import'!$A10,1)-2)))","v":0},{"$f":"IF(ISERROR(FIND(AV$3,'CFR - XML import'!$A10)),0,VALUE(MID('CFR - XML import'!$A10,SEARCH(\">\",'CFR - XML import'!$A10,1)+1,SEARCH(\"/\",'CFR - XML import'!$A10,1)-SEARCH(\">\",'CFR - XML import'!$A10,1)-2)))","v":0},{"$f":"IF(ISERROR(FIND(AW$3,'CFR - XML import'!$A10)),0,VALUE(MID('CFR - XML import'!$A10,SEARCH(\">\",'CFR - XML import'!$A10,1)+1,SEARCH(\"/\",'CFR - XML import'!$A10,1)-SEARCH(\">\",'CFR - XML import'!$A10,1)-2)))","v":0},{"$f":"IF(ISERROR(FIND(AX$3,'CFR - XML import'!$A10)),0,VALUE(MID('CFR - XML import'!$A10,SEARCH(\">\",'CFR - XML import'!$A10,1)+1,SEARCH(\"/\",'CFR - XML import'!$A10,1)-SEARCH(\">\",'CFR - XML import'!$A10,1)-2)))","v":0},{"$f":"IF(ISERROR(FIND(AY$3,'CFR - XML import'!$A10)),0,VALUE(MID('CFR - XML import'!$A10,SEARCH(\">\",'CFR - XML import'!$A10,1)+1,SEARCH(\"/\",'CFR - XML import'!$A10,1)-SEARCH(\">\",'CFR - XML import'!$A10,1)-2)))","v":0},{"$f":"IF(ISERROR(FIND(AZ$3,'CFR - XML import'!$A10)),0,VALUE(MID('CFR - XML import'!$A10,SEARCH(\">\",'CFR - XML import'!$A10,1)+1,SEARCH(\"/\",'CFR - XML import'!$A10,1)-SEARCH(\">\",'CFR - XML import'!$A10,1)-2)))","v":0},{"$f":"IF(ISERROR(FIND(BA$3,'CFR - XML import'!$A10)),0,VALUE(MID('CFR - XML import'!$A10,SEARCH(\">\",'CFR - XML import'!$A10,1)+1,SEARCH(\"/\",'CFR - XML import'!$A10,1)-SEARCH(\">\",'CFR - XML import'!$A10,1)-2)))","v":0},{"$f":"IF(ISERROR(FIND(BB$3,'CFR - XML import'!$A10)),0,VALUE(MID('CFR - XML import'!$A10,SEARCH(\">\",'CFR - XML import'!$A10,1)+1,SEARCH(\"/\",'CFR - XML import'!$A10,1)-SEARCH(\">\",'CFR - XML import'!$A10,1)-2)))","v":0},{"$f":"IF(ISERROR(FIND(BC$3,'CFR - XML import'!$A10)),0,VALUE(MID('CFR - XML import'!$A10,SEARCH(\">\",'CFR - XML import'!$A10,1)+1,SEARCH(\"/\",'CFR - XML import'!$A10,1)-SEARCH(\">\",'CFR - XML import'!$A10,1)-2)))","v":0},{"$f":"IF(ISERROR(FIND(BD$3,'CFR - XML import'!$A10)),0,VALUE(MID('CFR - XML import'!$A10,SEARCH(\">\",'CFR - XML import'!$A10,1)+1,SEARCH(\"/\",'CFR - XML import'!$A10,1)-SEARCH(\">\",'CFR - XML import'!$A10,1)-2)))","v":0},{"$f":"IF(ISERROR(FIND(BE$3,'CFR - XML import'!$A10)),0,VALUE(MID('CFR - XML import'!$A10,SEARCH(\">\",'CFR - XML import'!$A10,1)+1,SEARCH(\"/\",'CFR - XML import'!$A10,1)-SEARCH(\">\",'CFR - XML import'!$A10,1)-2)))","v":0},{"$f":"IF(ISERROR(FIND(BF$3,'CFR - XML import'!$A10)),0,VALUE(MID('CFR - XML import'!$A10,SEARCH(\">\",'CFR - XML import'!$A10,1)+1,SEARCH(\"/\",'CFR - XML import'!$A10,1)-SEARCH(\">\",'CFR - XML import'!$A10,1)-2)))","v":0},{"$f":"IF(ISERROR(FIND(BG$3,'CFR - XML import'!$A10)),0,VALUE(MID('CFR - XML import'!$A10,SEARCH(\">\",'CFR - XML import'!$A10,1)+1,SEARCH(\"/\",'CFR - XML import'!$A10,1)-SEARCH(\">\",'CFR - XML import'!$A10,1)-2)))","v":0},{"$f":"IF(ISERROR(FIND(BH$3,'CFR - XML import'!$A10)),0,VALUE(MID('CFR - XML import'!$A10,SEARCH(\">\",'CFR - XML import'!$A10,1)+1,SEARCH(\"/\",'CFR - XML import'!$A10,1)-SEARCH(\">\",'CFR - XML import'!$A10,1)-2)))","v":0},{"$f":"IF(ISERROR(FIND(BI$3,'CFR - XML import'!$A10)),0,VALUE(MID('CFR - XML import'!$A10,SEARCH(\">\",'CFR - XML import'!$A10,1)+1,SEARCH(\"/\",'CFR - XML import'!$A10,1)-SEARCH(\">\",'CFR - XML import'!$A10,1)-2)))","v":0},{"$f":"IF(ISERROR(FIND(BJ$3,'CFR - XML import'!$A10)),0,VALUE(MID('CFR - XML import'!$A10,SEARCH(\">\",'CFR - XML import'!$A10,1)+1,SEARCH(\"/\",'CFR - XML import'!$A10,1)-SEARCH(\">\",'CFR - XML import'!$A10,1)-2)))","v":0},{"$f":"IF(ISERROR(FIND(BK$3,'CFR - XML import'!$A10)),0,VALUE(MID('CFR - XML import'!$A10,SEARCH(\">\",'CFR - XML import'!$A10,1)+1,SEARCH(\"/\",'CFR - XML import'!$A10,1)-SEARCH(\">\",'CFR - XML import'!$A10,1)-2)))","v":0},{"$f":"IF(ISERROR(FIND(BL$3,'CFR - XML import'!$A10)),0,VALUE(MID('CFR - XML import'!$A10,SEARCH(\">\",'CFR - XML import'!$A10,1)+1,SEARCH(\"/\",'CFR - XML import'!$A10,1)-SEARCH(\">\",'CFR - XML import'!$A10,1)-2)))","v":0},{"$f":"IF(ISERROR(FIND(BM$3,'CFR - XML import'!$A10)),0,VALUE(MID('CFR - XML import'!$A10,SEARCH(\">\",'CFR - XML import'!$A10,1)+1,SEARCH(\"/\",'CFR - XML import'!$A10,1)-SEARCH(\">\",'CFR - XML import'!$A10,1)-2)))","v":0},{"$f":"IF(ISERROR(FIND(BN$3,'CFR - XML import'!$A10)),0,VALUE(MID('CFR - XML import'!$A10,SEARCH(\">\",'CFR - XML import'!$A10,1)+1,SEARCH(\"/\",'CFR - XML import'!$A10,1)-SEARCH(\">\",'CFR - XML import'!$A10,1)-2)))","v":0},{"$f":"IF(ISERROR(FIND(BO$3,'CFR - XML import'!$A10)),0,VALUE(MID('CFR - XML import'!$A10,SEARCH(\">\",'CFR - XML import'!$A10,1)+1,SEARCH(\"/\",'CFR - XML import'!$A10,1)-SEARCH(\">\",'CFR - XML import'!$A10,1)-2)))","v":0},{"$f":"IF(ISERROR(FIND(BP$3,'CFR - XML import'!$A10)),0,VALUE(MID('CFR - XML import'!$A10,SEARCH(\">\",'CFR - XML import'!$A10,1)+1,SEARCH(\"/\",'CFR - XML import'!$A10,1)-SEARCH(\">\",'CFR - XML import'!$A10,1)-2)))","v":0},{"$f":"IF(ISERROR(FIND(BQ$3,'CFR - XML import'!$A10)),0,VALUE(MID('CFR - XML import'!$A10,SEARCH(\">\",'CFR - XML import'!$A10,1)+1,SEARCH(\"/\",'CFR - XML import'!$A10,1)-SEARCH(\">\",'CFR - XML import'!$A10,1)-2)))","v":0},{"$f":"IF(ISERROR(FIND(BR$3,'CFR - XML import'!$A10)),0,VALUE(MID('CFR - XML import'!$A10,SEARCH(\">\",'CFR - XML import'!$A10,1)+1,SEARCH(\"/\",'CFR - XML import'!$A10,1)-SEARCH(\">\",'CFR - XML import'!$A10,1)-2)))","v":0},{"$f":"IF(ISERROR(FIND(BS$3,'CFR - XML import'!$A10)),0,VALUE(MID('CFR - XML import'!$A10,SEARCH(\">\",'CFR - XML import'!$A10,1)+1,SEARCH(\"/\",'CFR - XML import'!$A10,1)-SEARCH(\">\",'CFR - XML import'!$A10,1)-2)))","v":0},{"$f":"IF(ISERROR(FIND(BT$3,'CFR - XML import'!$A10)),0,VALUE(MID('CFR - XML import'!$A10,SEARCH(\">\",'CFR - XML import'!$A10,1)+1,SEARCH(\"/\",'CFR - XML import'!$A10,1)-SEARCH(\">\",'CFR - XML import'!$A10,1)-2)))","v":0},{"$f":"IF(ISERROR(FIND(BU$3,'CFR - XML import'!$A10)),0,VALUE(MID('CFR - XML import'!$A10,SEARCH(\">\",'CFR - XML import'!$A10,1)+1,SEARCH(\"/\",'CFR - XML import'!$A10,1)-SEARCH(\">\",'CFR - XML import'!$A10,1)-2)))","v":0},{"$f":"IF(ISERROR(FIND(BV$3,'CFR - XML import'!$A10)),0,VALUE(MID('CFR - XML import'!$A10,SEARCH(\">\",'CFR - XML import'!$A10,1)+1,SEARCH(\"/\",'CFR - XML import'!$A10,1)-SEARCH(\">\",'CFR - XML import'!$A10,1)-2)))","v":0},{"$f":"IF(ISERROR(FIND(BW$3,'CFR - XML import'!$A10)),0,VALUE(MID('CFR - XML import'!$A10,SEARCH(\">\",'CFR - XML import'!$A10,1)+1,SEARCH(\"/\",'CFR - XML import'!$A10,1)-SEARCH(\">\",'CFR - XML import'!$A10,1)-2)))","v":0},{"$f":"IF(ISERROR(FIND(BX$3,'CFR - XML import'!$A10)),0,VALUE(MID('CFR - XML import'!$A10,SEARCH(\">\",'CFR - XML import'!$A10,1)+1,SEARCH(\"/\",'CFR - XML import'!$A10,1)-SEARCH(\">\",'CFR - XML import'!$A10,1)-2)))","v":0},{"$f":"IF(ISERROR(FIND(BY$3,'CFR - XML import'!$A10)),0,VALUE(MID('CFR - XML import'!$A10,SEARCH(\">\",'CFR - XML import'!$A10,1)+1,SEARCH(\"/\",'CFR - XML import'!$A10,1)-SEARCH(\">\",'CFR - XML import'!$A10,1)-2)))","v":0},{"$f":"IF(ISERROR(FIND(BZ$3,'CFR - XML import'!$A10)),0,VALUE(MID('CFR - XML import'!$A10,SEARCH(\">\",'CFR - XML import'!$A10,1)+1,SEARCH(\"/\",'CFR - XML import'!$A10,1)-SEARCH(\">\",'CFR - XML import'!$A10,1)-2)))","v":0},null,null,null,null,null,null,{"$f":"IF(ISERROR(IF(MID('CFR - XML import'!$A10,LEN($CF$4)+1,LEN('CFR - XML import'!$A10)-(2*LEN($CF$4)+1))=\"RMMS\",1,IF(MID('CFR - XML import'!$A10,LEN(\"    <InputSystem>\")+1,LEN('CFR - XML import'!$A10)-(LEN(\"    <InputSystem>\")+LEN($CF$4)+1))=\"SIMS\",2,0))),0,IF(MID('CFR - XML import'!$A10,LEN($CF$4)+1,LEN('CFR - XML import'!$A10)-(2*LEN($CF$4)+1))=\"RMMS\",1,IF(MID('CFR - XML import'!$A10,LEN(\"    <InputSystem>\")+1,LEN('CFR - XML import'!$A10)-(LEN(\"    <InputSystem>\")+LEN($CF$4)+1))=\"SIMS\",2,0)))","v":0},{"$f":"IF(ISERROR(FIND(CH$3,'CFR - XML import'!$A10)),0,MID('CFR - XML import'!$A10,SEARCH(\">\",'CFR - XML import'!$A10,1)+1,SEARCH(\"/\",'CFR - XML import'!$A10,1)-SEARCH(\">\",'CFR - XML import'!$A10,1)-2))","v":0},{"$f":"IF(ISERROR(FIND(CI$3,'CFR - XML import'!$A10)),0,MID('CFR - XML import'!$A10,SEARCH(\">\",'CFR - XML import'!$A10,1)+1,SEARCH(\"/\",'CFR - XML import'!$A10,1)-SEARCH(\">\",'CFR - XML import'!$A10,1)-2))","v":0},{"$f":"IF(ISERROR(FIND(CJ$3,'CFR - XML import'!$A10)),0,MID('CFR - XML import'!$A10,SEARCH(\">\",'CFR - XML import'!$A10,1)+1,SEARCH(\"/\",'CFR - XML import'!$A10,1)-SEARCH(\">\",'CFR - XML import'!$A10,1)-2))","v":0},{"$f":"IF(ISERROR(FIND(CK$3,'CFR - XML import'!$A10)),0,MID('CFR - XML import'!$A10,SEARCH(\">\",'CFR - XML import'!$A10,1)+1,SEARCH(\"/\",'CFR - XML import'!$A10,1)-SEARCH(\">\",'CFR - XML import'!$A10,1)-2))","v":0},{"$f":"IF(ISERROR(FIND(CL$3,'CFR - XML import'!$A10)),0,MID('CFR - XML import'!$A10,SEARCH(\">\",'CFR - XML import'!$A10,1)+1,SEARCH(\"/\",'CFR - XML import'!$A10,1)-SEARCH(\">\",'CFR - XML import'!$A10,1)-2))","v":0}]
[{"$f":"IF(AND('CFR - XML import'!A11<>\"\",LEFT('CFR - XML import'!A11,1)<>\"<\",LEFT('CFR - XML import'!A11,3)<>\"  <\",LEFT('CFR - XML import'!A11,5)<>\"    <\",LEFT('CFR - XML import'!A11,7)<>\"      <\",LEFT('CFR - XML import'!A11,9)<>\"        <\",$B$1=\"SIMS\"),'CFR - XML import'!A11,IF(AND(LEFT('CFR - XML import'!A11,9)=\"<Details>\",$B$1=\"RM\"),'CFR - XML import'!A11,\"\"))","v":""},{"$f":"IF(ISERROR(FIND(B$3,'CFR - XML import'!$A11)),0,VALUE(MID('CFR - XML import'!$A11,SEARCH(\">\",'CFR - XML import'!$A11,1)+1,SEARCH(\"/\",'CFR - XML import'!$A11,1)-SEARCH(\">\",'CFR - XML import'!$A11,1)-2)))","v":0},null,{"$f":"IF(ISERROR(FIND(D$3,'CFR - XML import'!$A11)),0,MID('CFR - XML import'!$A11,SEARCH(\">\",'CFR - XML import'!$A11,1)+1,SEARCH(\"/\",'CFR - XML import'!$A11,1)-SEARCH(\">\",'CFR - XML import'!$A11,1)-2))","v":0},{"$f":"IF(ISERROR(FIND(E$3,'CFR - XML import'!$A11)),0,MID('CFR - XML import'!$A11,SEARCH(\">\",'CFR - XML import'!$A11,1)+1,SEARCH(\"/\",'CFR - XML import'!$A11,1)-SEARCH(\">\",'CFR - XML import'!$A11,1)-2))","v":0},{"$f":"IF($B$1=\"SIMS\",IF(ISERROR(FIND(F$3,'CFR - XML import'!$A11)),0,VALUE(MID('CFR - XML import'!$A11,15,10))),IF(ISERROR(FIND(F$3,'CFR - XML import'!$A11)),0,VALUE(MID('CFR - XML import'!$A11,11,10))))","v":"00:00:00"},{"$f":"IF(ISERROR(FIND(G$3,'CFR - XML import'!$A11)),0,VALUE(MID('CFR - XML import'!$A11,SEARCH(\">\",'CFR - XML import'!$A11,1)+1,SEARCH(\"/\",'CFR - XML import'!$A11,1)-SEARCH(\">\",'CFR - XML import'!$A11,1)-2)))","v":0},{"$f":"IF(ISERROR(FIND(H$3,'CFR - XML import'!$A11)),0,VALUE(MID('CFR - XML import'!$A11,SEARCH(\">\",'CFR - XML import'!$A11,1)+1,SEARCH(\"/\",'CFR - XML import'!$A11,1)-SEARCH(\">\",'CFR - XML import'!$A11,1)-2)))","v":0},{"$f":"IF(ISERROR(FIND(I$3,'CFR - XML import'!$A11)),0,VALUE(MID('CFR - XML import'!$A11,SEARCH(\">\",'CFR - XML import'!$A11,1)+1,SEARCH(\"/\",'CFR - XML import'!$A11,1)-SEARCH(\">\",'CFR - XML import'!$A11,1)-2)))","v":0},{"$f":"IF(ISERROR(FIND(J$3,'CFR - XML import'!$A11)),0,VALUE(MID('CFR - XML import'!$A11,SEARCH(\">\",'CFR - XML import'!$A11,1)+1,SEARCH(\"/\",'CFR - XML import'!$A11,1)-SEARCH(\">\",'CFR - XML import'!$A11,1)-2)))","v":0},{"$f":"IF(ISERROR(FIND(K$3,'CFR - XML import'!$A11)),0,VALUE(MID('CFR - XML import'!$A11,SEARCH(\">\",'CFR - XML import'!$A11,1)+1,SEARCH(\"/\",'CFR - XML import'!$A11,1)-SEARCH(\">\",'CFR - XML import'!$A11,1)-2)))","v":0},{"$f":"IF(ISERROR(FIND(L$3,'CFR - XML import'!$A11)),0,VALUE(MID('CFR - XML import'!$A11,SEARCH(\">\",'CFR - XML import'!$A11,1)+1,SEARCH(\"/\",'CFR - XML import'!$A11,1)-SEARCH(\">\",'CFR - XML import'!$A11,1)-2)))","v":0},{"$f":"IF(ISERROR(FIND(M$3,'CFR - XML import'!$A11)),0,VALUE(MID('CFR - XML import'!$A11,SEARCH(\">\",'CFR - XML import'!$A11,1)+1,SEARCH(\"/\",'CFR - XML import'!$A11,1)-SEARCH(\">\",'CFR - XML import'!$A11,1)-2)))","v":0},{"$f":"IF(ISERROR(FIND(N$3,'CFR - XML import'!$A11)),0,VALUE(MID('CFR - XML import'!$A11,SEARCH(\">\",'CFR - XML import'!$A11,1)+1,SEARCH(\"/\",'CFR - XML import'!$A11,1)-SEARCH(\">\",'CFR - XML import'!$A11,1)-2)))","v":0},{"$f":"IF(ISERROR(FIND(O$3,'CFR - XML import'!$A11)),0,VALUE(MID('CFR - XML import'!$A11,SEARCH(\">\",'CFR - XML import'!$A11,1)+1,SEARCH(\"/\",'CFR - XML import'!$A11,1)-SEARCH(\">\",'CFR - XML import'!$A11,1)-2)))","v":0},{"$f":"IF(ISERROR(FIND(P$3,'CFR - XML import'!$A11)),0,VALUE(MID('CFR - XML import'!$A11,SEARCH(\">\",'CFR - XML import'!$A11,1)+1,SEARCH(\"/\",'CFR - XML import'!$A11,1)-SEARCH(\">\",'CFR - XML import'!$A11,1)-2)))","v":0},{"$f":"IF(ISERROR(FIND(Q$3,'CFR - XML import'!$A11)),0,VALUE(MID('CFR - XML import'!$A11,SEARCH(\">\",'CFR - XML import'!$A11,1)+1,SEARCH(\"/\",'CFR - XML import'!$A11,1)-SEARCH(\">\",'CFR - XML import'!$A11,1)-2)))","v":0},{"$f":"IF(ISERROR(FIND(R$3,'CFR - XML import'!$A11)),0,VALUE(MID('CFR - XML import'!$A11,SEARCH(\">\",'CFR - XML import'!$A11,1)+1,SEARCH(\"/\",'CFR - XML import'!$A11,1)-SEARCH(\">\",'CFR - XML import'!$A11,1)-2)))","v":0},{"$f":"IF(ISERROR(FIND(S$3,'CFR - XML import'!$A11)),0,VALUE(MID('CFR - XML import'!$A11,SEARCH(\">\",'CFR - XML import'!$A11,1)+1,SEARCH(\"/\",'CFR - XML import'!$A11,1)-SEARCH(\">\",'CFR - XML import'!$A11,1)-2)))","v":0},{"$f":"IF(ISERROR(FIND(T$3,'CFR - XML import'!$A11)),0,VALUE(MID('CFR - XML import'!$A11,SEARCH(\">\",'CFR - XML import'!$A11,1)+1,SEARCH(\"/\",'CFR - XML import'!$A11,1)-SEARCH(\">\",'CFR - XML import'!$A11,1)-2)))","v":0},{"$f":"IF(ISERROR(FIND(U$3,'CFR - XML import'!$A11)),0,VALUE(MID('CFR - XML import'!$A11,SEARCH(\">\",'CFR - XML import'!$A11,1)+1,SEARCH(\"/\",'CFR - XML import'!$A11,1)-SEARCH(\">\",'CFR - XML import'!$A11,1)-2)))","v":0},{"$f":"IF(ISERROR(FIND(V$3,'CFR - XML import'!$A11)),0,VALUE(MID('CFR - XML import'!$A11,SEARCH(\">\",'CFR - XML import'!$A11,1)+1,SEARCH(\"/\",'CFR - XML import'!$A11,1)-SEARCH(\">\",'CFR - XML import'!$A11,1)-2)))","v":0},{"$f":"IF(ISERROR(FIND(W$3,'CFR - XML import'!$A11)),0,VALUE(MID('CFR - XML import'!$A11,SEARCH(\">\",'CFR - XML import'!$A11,1)+1,SEARCH(\"/\",'CFR - XML import'!$A11,1)-SEARCH(\">\",'CFR - XML import'!$A11,1)-2)))","v":0},null,{"$f":"IF(ISERROR(FIND(Y$3,'CFR - XML import'!$A11)),0,VALUE(MID('CFR - XML import'!$A11,SEARCH(\">\",'CFR - XML import'!$A11,1)+1,SEARCH(\"/\",'CFR - XML import'!$A11,1)-SEARCH(\">\",'CFR - XML import'!$A11,1)-2)))","v":0},{"$f":"IF(ISERROR(FIND(Z$3,'CFR - XML import'!$A11)),0,VALUE(MID('CFR - XML import'!$A11,SEARCH(\">\",'CFR - XML import'!$A11,1)+1,SEARCH(\"/\",'CFR - XML import'!$A11,1)-SEARCH(\">\",'CFR - XML import'!$A11,1)-2)))","v":0},{"$f":"IF(ISERROR(FIND(AA$3,'CFR - XML import'!$A11)),0,VALUE(MID('CFR - XML import'!$A11,SEARCH(\">\",'CFR - XML import'!$A11,1)+1,SEARCH(\"/\",'CFR - XML import'!$A11,1)-SEARCH(\">\",'CFR - XML import'!$A11,1)-2)))","v":0},{"$f":"IF(ISERROR(FIND(AB$3,'CFR - XML import'!$A11)),0,VALUE(MID('CFR - XML import'!$A11,SEARCH(\">\",'CFR - XML import'!$A11,1)+1,SEARCH(\"/\",'CFR - XML import'!$A11,1)-SEARCH(\">\",'CFR - XML import'!$A11,1)-2)))","v":0},{"$f":"IF(ISERROR(FIND(AC$3,'CFR - XML import'!$A11)),0,VALUE(MID('CFR - XML import'!$A11,SEARCH(\">\",'CFR - XML import'!$A11,1)+1,SEARCH(\"/\",'CFR - XML import'!$A11,1)-SEARCH(\">\",'CFR - XML import'!$A11,1)-2)))","v":0},{"$f":"IF(ISERROR(FIND(AD$3,'CFR - XML import'!$A11)),0,VALUE(MID('CFR - XML import'!$A11,SEARCH(\">\",'CFR - XML import'!$A11,1)+1,SEARCH(\"/\",'CFR - XML import'!$A11,1)-SEARCH(\">\",'CFR - XML import'!$A11,1)-2)))","v":0},{"$f":"IF(ISERROR(FIND(AE$3,'CFR - XML import'!$A11)),0,VALUE(MID('CFR - XML import'!$A11,SEARCH(\">\",'CFR - XML import'!$A11,1)+1,SEARCH(\"/\",'CFR - XML import'!$A11,1)-SEARCH(\">\",'CFR - XML import'!$A11,1)-2)))","v":0},{"$f":"IF(ISERROR(FIND(AF$3,'CFR - XML import'!$A11)),0,VALUE(MID('CFR - XML import'!$A11,SEARCH(\">\",'CFR - XML import'!$A11,1)+1,SEARCH(\"/\",'CFR - XML import'!$A11,1)-SEARCH(\">\",'CFR - XML import'!$A11,1)-2)))","v":0},{"$f":"IF(ISERROR(FIND(AG$3,'CFR - XML import'!$A11)),0,VALUE(MID('CFR - XML import'!$A11,SEARCH(\">\",'CFR - XML import'!$A11,1)+1,SEARCH(\"/\",'CFR - XML import'!$A11,1)-SEARCH(\">\",'CFR - XML import'!$A11,1)-2)))","v":0},{"$f":"IF(ISERROR(FIND(AH$3,'CFR - XML import'!$A11)),0,VALUE(MID('CFR - XML import'!$A11,SEARCH(\">\",'CFR - XML import'!$A11,1)+1,SEARCH(\"/\",'CFR - XML import'!$A11,1)-SEARCH(\">\",'CFR - XML import'!$A11,1)-2)))","v":0},{"$f":"IF(ISERROR(FIND(AI$3,'CFR - XML import'!$A11)),0,VALUE(MID('CFR - XML import'!$A11,SEARCH(\">\",'CFR - XML import'!$A11,1)+1,SEARCH(\"/\",'CFR - XML import'!$A11,1)-SEARCH(\">\",'CFR - XML import'!$A11,1)-2)))","v":0},{"$f":"IF(ISERROR(FIND(AJ$3,'CFR - XML import'!$A11)),0,VALUE(MID('CFR - XML import'!$A11,SEARCH(\">\",'CFR - XML import'!$A11,1)+1,SEARCH(\"/\",'CFR - XML import'!$A11,1)-SEARCH(\">\",'CFR - XML import'!$A11,1)-2)))","v":0},{"$f":"IF(ISERROR(FIND(AK$3,'CFR - XML import'!$A11)),0,VALUE(MID('CFR - XML import'!$A11,SEARCH(\">\",'CFR - XML import'!$A11,1)+1,SEARCH(\"/\",'CFR - XML import'!$A11,1)-SEARCH(\">\",'CFR - XML import'!$A11,1)-2)))","v":0},{"$f":"IF(ISERROR(FIND(AL$3,'CFR - XML import'!$A11)),0,VALUE(MID('CFR - XML import'!$A11,SEARCH(\">\",'CFR - XML import'!$A11,1)+1,SEARCH(\"/\",'CFR - XML import'!$A11,1)-SEARCH(\">\",'CFR - XML import'!$A11,1)-2)))","v":0},{"$f":"IF(ISERROR(FIND(AM$3,'CFR - XML import'!$A11)),0,VALUE(MID('CFR - XML import'!$A11,SEARCH(\">\",'CFR - XML import'!$A11,1)+1,SEARCH(\"/\",'CFR - XML import'!$A11,1)-SEARCH(\">\",'CFR - XML import'!$A11,1)-2)))","v":0},{"$f":"IF(ISERROR(FIND(AN$3,'CFR - XML import'!$A11)),0,VALUE(MID('CFR - XML import'!$A11,SEARCH(\">\",'CFR - XML import'!$A11,1)+1,SEARCH(\"/\",'CFR - XML import'!$A11,1)-SEARCH(\">\",'CFR - XML import'!$A11,1)-2)))","v":0},{"$f":"IF(ISERROR(FIND(AO$3,'CFR - XML import'!$A11)),0,VALUE(MID('CFR - XML import'!$A11,SEARCH(\">\",'CFR - XML import'!$A11,1)+1,SEARCH(\"/\",'CFR - XML import'!$A11,1)-SEARCH(\">\",'CFR - XML import'!$A11,1)-2)))","v":0},{"$f":"IF(ISERROR(FIND(AP$3,'CFR - XML import'!$A11)),0,VALUE(MID('CFR - XML import'!$A11,SEARCH(\">\",'CFR - XML import'!$A11,1)+1,SEARCH(\"/\",'CFR - XML import'!$A11,1)-SEARCH(\">\",'CFR - XML import'!$A11,1)-2)))","v":0},{"$f":"IF(ISERROR(FIND(AQ$3,'CFR - XML import'!$A11)),0,VALUE(MID('CFR - XML import'!$A11,SEARCH(\">\",'CFR - XML import'!$A11,1)+1,SEARCH(\"/\",'CFR - XML import'!$A11,1)-SEARCH(\">\",'CFR - XML import'!$A11,1)-2)))","v":0},{"$f":"IF(ISERROR(FIND(AR$3,'CFR - XML import'!$A11)),0,VALUE(MID('CFR - XML import'!$A11,SEARCH(\">\",'CFR - XML import'!$A11,1)+1,SEARCH(\"/\",'CFR - XML import'!$A11,1)-SEARCH(\">\",'CFR - XML import'!$A11,1)-2)))","v":0},{"$f":"IF(ISERROR(FIND(AS$3,'CFR - XML import'!$A11)),0,VALUE(MID('CFR - XML import'!$A11,SEARCH(\">\",'CFR - XML import'!$A11,1)+1,SEARCH(\"/\",'CFR - XML import'!$A11,1)-SEARCH(\">\",'CFR - XML import'!$A11,1)-2)))","v":0},{"$f":"IF(ISERROR(FIND(AT$3,'CFR - XML import'!$A11)),0,VALUE(MID('CFR - XML import'!$A11,SEARCH(\">\",'CFR - XML import'!$A11,1)+1,SEARCH(\"/\",'CFR - XML import'!$A11,1)-SEARCH(\">\",'CFR - XML import'!$A11,1)-2)))","v":0},{"$f":"IF(ISERROR(FIND(AU$3,'CFR - XML import'!$A11)),0,VALUE(MID('CFR - XML import'!$A11,SEARCH(\">\",'CFR - XML import'!$A11,1)+1,SEARCH(\"/\",'CFR - XML import'!$A11,1)-SEARCH(\">\",'CFR - XML import'!$A11,1)-2)))","v":0},{"$f":"IF(ISERROR(FIND(AV$3,'CFR - XML import'!$A11)),0,VALUE(MID('CFR - XML import'!$A11,SEARCH(\">\",'CFR - XML import'!$A11,1)+1,SEARCH(\"/\",'CFR - XML import'!$A11,1)-SEARCH(\">\",'CFR - XML import'!$A11,1)-2)))","v":0},{"$f":"IF(ISERROR(FIND(AW$3,'CFR - XML import'!$A11)),0,VALUE(MID('CFR - XML import'!$A11,SEARCH(\">\",'CFR - XML import'!$A11,1)+1,SEARCH(\"/\",'CFR - XML import'!$A11,1)-SEARCH(\">\",'CFR - XML import'!$A11,1)-2)))","v":0},{"$f":"IF(ISERROR(FIND(AX$3,'CFR - XML import'!$A11)),0,VALUE(MID('CFR - XML import'!$A11,SEARCH(\">\",'CFR - XML import'!$A11,1)+1,SEARCH(\"/\",'CFR - XML import'!$A11,1)-SEARCH(\">\",'CFR - XML import'!$A11,1)-2)))","v":0},{"$f":"IF(ISERROR(FIND(AY$3,'CFR - XML import'!$A11)),0,VALUE(MID('CFR - XML import'!$A11,SEARCH(\">\",'CFR - XML import'!$A11,1)+1,SEARCH(\"/\",'CFR - XML import'!$A11,1)-SEARCH(\">\",'CFR - XML import'!$A11,1)-2)))","v":0},{"$f":"IF(ISERROR(FIND(AZ$3,'CFR - XML import'!$A11)),0,VALUE(MID('CFR - XML import'!$A11,SEARCH(\">\",'CFR - XML import'!$A11,1)+1,SEARCH(\"/\",'CFR - XML import'!$A11,1)-SEARCH(\">\",'CFR - XML import'!$A11,1)-2)))","v":0},{"$f":"IF(ISERROR(FIND(BA$3,'CFR - XML import'!$A11)),0,VALUE(MID('CFR - XML import'!$A11,SEARCH(\">\",'CFR - XML import'!$A11,1)+1,SEARCH(\"/\",'CFR - XML import'!$A11,1)-SEARCH(\">\",'CFR - XML import'!$A11,1)-2)))","v":0},{"$f":"IF(ISERROR(FIND(BB$3,'CFR - XML import'!$A11)),0,VALUE(MID('CFR - XML import'!$A11,SEARCH(\">\",'CFR - XML import'!$A11,1)+1,SEARCH(\"/\",'CFR - XML import'!$A11,1)-SEARCH(\">\",'CFR - XML import'!$A11,1)-2)))","v":0},{"$f":"IF(ISERROR(FIND(BC$3,'CFR - XML import'!$A11)),0,VALUE(MID('CFR - XML import'!$A11,SEARCH(\">\",'CFR - XML import'!$A11,1)+1,SEARCH(\"/\",'CFR - XML import'!$A11,1)-SEARCH(\">\",'CFR - XML import'!$A11,1)-2)))","v":0},{"$f":"IF(ISERROR(FIND(BD$3,'CFR - XML import'!$A11)),0,VALUE(MID('CFR - XML import'!$A11,SEARCH(\">\",'CFR - XML import'!$A11,1)+1,SEARCH(\"/\",'CFR - XML import'!$A11,1)-SEARCH(\">\",'CFR - XML import'!$A11,1)-2)))","v":0},{"$f":"IF(ISERROR(FIND(BE$3,'CFR - XML import'!$A11)),0,VALUE(MID('CFR - XML import'!$A11,SEARCH(\">\",'CFR - XML import'!$A11,1)+1,SEARCH(\"/\",'CFR - XML import'!$A11,1)-SEARCH(\">\",'CFR - XML import'!$A11,1)-2)))","v":0},{"$f":"IF(ISERROR(FIND(BF$3,'CFR - XML import'!$A11)),0,VALUE(MID('CFR - XML import'!$A11,SEARCH(\">\",'CFR - XML import'!$A11,1)+1,SEARCH(\"/\",'CFR - XML import'!$A11,1)-SEARCH(\">\",'CFR - XML import'!$A11,1)-2)))","v":0},{"$f":"IF(ISERROR(FIND(BG$3,'CFR - XML import'!$A11)),0,VALUE(MID('CFR - XML import'!$A11,SEARCH(\">\",'CFR - XML import'!$A11,1)+1,SEARCH(\"/\",'CFR - XML import'!$A11,1)-SEARCH(\">\",'CFR - XML import'!$A11,1)-2)))","v":0},{"$f":"IF(ISERROR(FIND(BH$3,'CFR - XML import'!$A11)),0,VALUE(MID('CFR - XML import'!$A11,SEARCH(\">\",'CFR - XML import'!$A11,1)+1,SEARCH(\"/\",'CFR - XML import'!$A11,1)-SEARCH(\">\",'CFR - XML import'!$A11,1)-2)))","v":0},{"$f":"IF(ISERROR(FIND(BI$3,'CFR - XML import'!$A11)),0,VALUE(MID('CFR - XML import'!$A11,SEARCH(\">\",'CFR - XML import'!$A11,1)+1,SEARCH(\"/\",'CFR - XML import'!$A11,1)-SEARCH(\">\",'CFR - XML import'!$A11,1)-2)))","v":0},{"$f":"IF(ISERROR(FIND(BJ$3,'CFR - XML import'!$A11)),0,VALUE(MID('CFR - XML import'!$A11,SEARCH(\">\",'CFR - XML import'!$A11,1)+1,SEARCH(\"/\",'CFR - XML import'!$A11,1)-SEARCH(\">\",'CFR - XML import'!$A11,1)-2)))","v":0},{"$f":"IF(ISERROR(FIND(BK$3,'CFR - XML import'!$A11)),0,VALUE(MID('CFR - XML import'!$A11,SEARCH(\">\",'CFR - XML import'!$A11,1)+1,SEARCH(\"/\",'CFR - XML import'!$A11,1)-SEARCH(\">\",'CFR - XML import'!$A11,1)-2)))","v":0},{"$f":"IF(ISERROR(FIND(BL$3,'CFR - XML import'!$A11)),0,VALUE(MID('CFR - XML import'!$A11,SEARCH(\">\",'CFR - XML import'!$A11,1)+1,SEARCH(\"/\",'CFR - XML import'!$A11,1)-SEARCH(\">\",'CFR - XML import'!$A11,1)-2)))","v":0},{"$f":"IF(ISERROR(FIND(BM$3,'CFR - XML import'!$A11)),0,VALUE(MID('CFR - XML import'!$A11,SEARCH(\">\",'CFR - XML import'!$A11,1)+1,SEARCH(\"/\",'CFR - XML import'!$A11,1)-SEARCH(\">\",'CFR - XML import'!$A11,1)-2)))","v":0},{"$f":"IF(ISERROR(FIND(BN$3,'CFR - XML import'!$A11)),0,VALUE(MID('CFR - XML import'!$A11,SEARCH(\">\",'CFR - XML import'!$A11,1)+1,SEARCH(\"/\",'CFR - XML import'!$A11,1)-SEARCH(\">\",'CFR - XML import'!$A11,1)-2)))","v":0},{"$f":"IF(ISERROR(FIND(BO$3,'CFR - XML import'!$A11)),0,VALUE(MID('CFR - XML import'!$A11,SEARCH(\">\",'CFR - XML import'!$A11,1)+1,SEARCH(\"/\",'CFR - XML import'!$A11,1)-SEARCH(\">\",'CFR - XML import'!$A11,1)-2)))","v":0},{"$f":"IF(ISERROR(FIND(BP$3,'CFR - XML import'!$A11)),0,VALUE(MID('CFR - XML import'!$A11,SEARCH(\">\",'CFR - XML import'!$A11,1)+1,SEARCH(\"/\",'CFR - XML import'!$A11,1)-SEARCH(\">\",'CFR - XML import'!$A11,1)-2)))","v":0},{"$f":"IF(ISERROR(FIND(BQ$3,'CFR - XML import'!$A11)),0,VALUE(MID('CFR - XML import'!$A11,SEARCH(\">\",'CFR - XML import'!$A11,1)+1,SEARCH(\"/\",'CFR - XML import'!$A11,1)-SEARCH(\">\",'CFR - XML import'!$A11,1)-2)))","v":0},{"$f":"IF(ISERROR(FIND(BR$3,'CFR - XML import'!$A11)),0,VALUE(MID('CFR - XML import'!$A11,SEARCH(\">\",'CFR - XML import'!$A11,1)+1,SEARCH(\"/\",'CFR - XML import'!$A11,1)-SEARCH(\">\",'CFR - XML import'!$A11,1)-2)))","v":0},{"$f":"IF(ISERROR(FIND(BS$3,'CFR - XML import'!$A11)),0,VALUE(MID('CFR - XML import'!$A11,SEARCH(\">\",'CFR - XML import'!$A11,1)+1,SEARCH(\"/\",'CFR - XML import'!$A11,1)-SEARCH(\">\",'CFR - XML import'!$A11,1)-2)))","v":0},{"$f":"IF(ISERROR(FIND(BT$3,'CFR - XML import'!$A11)),0,VALUE(MID('CFR - XML import'!$A11,SEARCH(\">\",'CFR - XML import'!$A11,1)+1,SEARCH(\"/\",'CFR - XML import'!$A11,1)-SEARCH(\">\",'CFR - XML import'!$A11,1)-2)))","v":0},{"$f":"IF(ISERROR(FIND(BU$3,'CFR - XML import'!$A11)),0,VALUE(MID('CFR - XML import'!$A11,SEARCH(\">\",'CFR - XML import'!$A11,1)+1,SEARCH(\"/\",'CFR - XML import'!$A11,1)-SEARCH(\">\",'CFR - XML import'!$A11,1)-2)))","v":0},{"$f":"IF(ISERROR(FIND(BV$3,'CFR - XML import'!$A11)),0,VALUE(MID('CFR - XML import'!$A11,SEARCH(\">\",'CFR - XML import'!$A11,1)+1,SEARCH(\"/\",'CFR - XML import'!$A11,1)-SEARCH(\">\",'CFR - XML import'!$A11,1)-2)))","v":0},{"$f":"IF(ISERROR(FIND(BW$3,'CFR - XML import'!$A11)),0,VALUE(MID('CFR - XML import'!$A11,SEARCH(\">\",'CFR - XML import'!$A11,1)+1,SEARCH(\"/\",'CFR - XML import'!$A11,1)-SEARCH(\">\",'CFR - XML import'!$A11,1)-2)))","v":0},{"$f":"IF(ISERROR(FIND(BX$3,'CFR - XML import'!$A11)),0,VALUE(MID('CFR - XML import'!$A11,SEARCH(\">\",'CFR - XML import'!$A11,1)+1,SEARCH(\"/\",'CFR - XML import'!$A11,1)-SEARCH(\">\",'CFR - XML import'!$A11,1)-2)))","v":0},{"$f":"IF(ISERROR(FIND(BY$3,'CFR - XML import'!$A11)),0,VALUE(MID('CFR - XML import'!$A11,SEARCH(\">\",'CFR - XML import'!$A11,1)+1,SEARCH(\"/\",'CFR - XML import'!$A11,1)-SEARCH(\">\",'CFR - XML import'!$A11,1)-2)))","v":0},{"$f":"IF(ISERROR(FIND(BZ$3,'CFR - XML import'!$A11)),0,VALUE(MID('CFR - XML import'!$A11,SEARCH(\">\",'CFR - XML import'!$A11,1)+1,SEARCH(\"/\",'CFR - XML import'!$A11,1)-SEARCH(\">\",'CFR - XML import'!$A11,1)-2)))","v":0},null,null,null,null,null,null,{"$f":"IF(ISERROR(IF(MID('CFR - XML import'!$A11,LEN($CF$4)+1,LEN('CFR - XML import'!$A11)-(2*LEN($CF$4)+1))=\"RMMS\",1,IF(MID('CFR - XML import'!$A11,LEN(\"    <InputSystem>\")+1,LEN('CFR - XML import'!$A11)-(LEN(\"    <InputSystem>\")+LEN($CF$4)+1))=\"SIMS\",2,0))),0,IF(MID('CFR - XML import'!$A11,LEN($CF$4)+1,LEN('CFR - XML import'!$A11)-(2*LEN($CF$4)+1))=\"RMMS\",1,IF(MID('CFR - XML import'!$A11,LEN(\"    <InputSystem>\")+1,LEN('CFR - XML import'!$A11)-(LEN(\"    <InputSystem>\")+LEN($CF$4)+1))=\"SIMS\",2,0)))","v":0},{"$f":"IF(ISERROR(FIND(CH$3,'CFR - XML import'!$A11)),0,MID('CFR - XML import'!$A11,SEARCH(\">\",'CFR - XML import'!$A11,1)+1,SEARCH(\"/\",'CFR - XML import'!$A11,1)-SEARCH(\">\",'CFR - XML import'!$A11,1)-2))","v":0},{"$f":"IF(ISERROR(FIND(CI$3,'CFR - XML import'!$A11)),0,MID('CFR - XML import'!$A11,SEARCH(\">\",'CFR - XML import'!$A11,1)+1,SEARCH(\"/\",'CFR - XML import'!$A11,1)-SEARCH(\">\",'CFR - XML import'!$A11,1)-2))","v":0},{"$f":"IF(ISERROR(FIND(CJ$3,'CFR - XML import'!$A11)),0,MID('CFR - XML import'!$A11,SEARCH(\">\",'CFR - XML import'!$A11,1)+1,SEARCH(\"/\",'CFR - XML import'!$A11,1)-SEARCH(\">\",'CFR - XML import'!$A11,1)-2))","v":0},{"$f":"IF(ISERROR(FIND(CK$3,'CFR - XML import'!$A11)),0,MID('CFR - XML import'!$A11,SEARCH(\">\",'CFR - XML import'!$A11,1)+1,SEARCH(\"/\",'CFR - XML import'!$A11,1)-SEARCH(\">\",'CFR - XML import'!$A11,1)-2))","v":0},{"$f":"IF(ISERROR(FIND(CL$3,'CFR - XML import'!$A11)),0,MID('CFR - XML import'!$A11,SEARCH(\">\",'CFR - XML import'!$A11,1)+1,SEARCH(\"/\",'CFR - XML import'!$A11,1)-SEARCH(\">\",'CFR - XML import'!$A11,1)-2))","v":0}]
[{"$f":"IF(AND('CFR - XML import'!A12<>\"\",LEFT('CFR - XML import'!A12,1)<>\"<\",LEFT('CFR - XML import'!A12,3)<>\"  <\",LEFT('CFR - XML import'!A12,5)<>\"    <\",LEFT('CFR - XML import'!A12,7)<>\"      <\",LEFT('CFR - XML import'!A12,9)<>\"        <\",$B$1=\"SIMS\"),'CFR - XML import'!A12,IF(AND(LEFT('CFR - XML import'!A12,9)=\"<Details>\",$B$1=\"RM\"),'CFR - XML import'!A12,\"\"))","v":""},{"$f":"IF(ISERROR(FIND(B$3,'CFR - XML import'!$A12)),0,VALUE(MID('CFR - XML import'!$A12,SEARCH(\">\",'CFR - XML import'!$A12,1)+1,SEARCH(\"/\",'CFR - XML import'!$A12,1)-SEARCH(\">\",'CFR - XML import'!$A12,1)-2)))","v":0},null,{"$f":"IF(ISERROR(FIND(D$3,'CFR - XML import'!$A12)),0,MID('CFR - XML import'!$A12,SEARCH(\">\",'CFR - XML import'!$A12,1)+1,SEARCH(\"/\",'CFR - XML import'!$A12,1)-SEARCH(\">\",'CFR - XML import'!$A12,1)-2))","v":0},{"$f":"IF(ISERROR(FIND(E$3,'CFR - XML import'!$A12)),0,MID('CFR - XML import'!$A12,SEARCH(\">\",'CFR - XML import'!$A12,1)+1,SEARCH(\"/\",'CFR - XML import'!$A12,1)-SEARCH(\">\",'CFR - XML import'!$A12,1)-2))","v":0},{"$f":"IF($B$1=\"SIMS\",IF(ISERROR(FIND(F$3,'CFR - XML import'!$A12)),0,VALUE(MID('CFR - XML import'!$A12,15,10))),IF(ISERROR(FIND(F$3,'CFR - XML import'!$A12)),0,VALUE(MID('CFR - XML import'!$A12,11,10))))","v":"00:00:00"},{"$f":"IF(ISERROR(FIND(G$3,'CFR - XML import'!$A12)),0,VALUE(MID('CFR - XML import'!$A12,SEARCH(\">\",'CFR - XML import'!$A12,1)+1,SEARCH(\"/\",'CFR - XML import'!$A12,1)-SEARCH(\">\",'CFR - XML import'!$A12,1)-2)))","v":0},{"$f":"IF(ISERROR(FIND(H$3,'CFR - XML import'!$A12)),0,VALUE(MID('CFR - XML import'!$A12,SEARCH(\">\",'CFR - XML import'!$A12,1)+1,SEARCH(\"/\",'CFR - XML import'!$A12,1)-SEARCH(\">\",'CFR - XML import'!$A12,1)-2)))","v":0},{"$f":"IF(ISERROR(FIND(I$3,'CFR - XML import'!$A12)),0,VALUE(MID('CFR - XML import'!$A12,SEARCH(\">\",'CFR - XML import'!$A12,1)+1,SEARCH(\"/\",'CFR - XML import'!$A12,1)-SEARCH(\">\",'CFR - XML import'!$A12,1)-2)))","v":0},{"$f":"IF(ISERROR(FIND(J$3,'CFR - XML import'!$A12)),0,VALUE(MID('CFR - XML import'!$A12,SEARCH(\">\",'CFR - XML import'!$A12,1)+1,SEARCH(\"/\",'CFR - XML import'!$A12,1)-SEARCH(\">\",'CFR - XML import'!$A12,1)-2)))","v":0},{"$f":"IF(ISERROR(FIND(K$3,'CFR - XML import'!$A12)),0,VALUE(MID('CFR - XML import'!$A12,SEARCH(\">\",'CFR - XML import'!$A12,1)+1,SEARCH(\"/\",'CFR - XML import'!$A12,1)-SEARCH(\">\",'CFR - XML import'!$A12,1)-2)))","v":0},{"$f":"IF(ISERROR(FIND(L$3,'CFR - XML import'!$A12)),0,VALUE(MID('CFR - XML import'!$A12,SEARCH(\">\",'CFR - XML import'!$A12,1)+1,SEARCH(\"/\",'CFR - XML import'!$A12,1)-SEARCH(\">\",'CFR - XML import'!$A12,1)-2)))","v":0},{"$f":"IF(ISERROR(FIND(M$3,'CFR - XML import'!$A12)),0,VALUE(MID('CFR - XML import'!$A12,SEARCH(\">\",'CFR - XML import'!$A12,1)+1,SEARCH(\"/\",'CFR - XML import'!$A12,1)-SEARCH(\">\",'CFR - XML import'!$A12,1)-2)))","v":0},{"$f":"IF(ISERROR(FIND(N$3,'CFR - XML import'!$A12)),0,VALUE(MID('CFR - XML import'!$A12,SEARCH(\">\",'CFR - XML import'!$A12,1)+1,SEARCH(\"/\",'CFR - XML import'!$A12,1)-SEARCH(\">\",'CFR - XML import'!$A12,1)-2)))","v":0},{"$f":"IF(ISERROR(FIND(O$3,'CFR - XML import'!$A12)),0,VALUE(MID('CFR - XML import'!$A12,SEARCH(\">\",'CFR - XML import'!$A12,1)+1,SEARCH(\"/\",'CFR - XML import'!$A12,1)-SEARCH(\">\",'CFR - XML import'!$A12,1)-2)))","v":0},{"$f":"IF(ISERROR(FIND(P$3,'CFR - XML import'!$A12)),0,VALUE(MID('CFR - XML import'!$A12,SEARCH(\">\",'CFR - XML import'!$A12,1)+1,SEARCH(\"/\",'CFR - XML import'!$A12,1)-SEARCH(\">\",'CFR - XML import'!$A12,1)-2)))","v":0},{"$f":"IF(ISERROR(FIND(Q$3,'CFR - XML import'!$A12)),0,VALUE(MID('CFR - XML import'!$A12,SEARCH(\">\",'CFR - XML import'!$A12,1)+1,SEARCH(\"/\",'CFR - XML import'!$A12,1)-SEARCH(\">\",'CFR - XML import'!$A12,1)-2)))","v":0},{"$f":"IF(ISERROR(FIND(R$3,'CFR - XML import'!$A12)),0,VALUE(MID('CFR - XML import'!$A12,SEARCH(\">\",'CFR - XML import'!$A12,1)+1,SEARCH(\"/\",'CFR - XML import'!$A12,1)-SEARCH(\">\",'CFR - XML import'!$A12,1)-2)))","v":0},{"$f":"IF(ISERROR(FIND(S$3,'CFR - XML import'!$A12)),0,VALUE(MID('CFR - XML import'!$A12,SEARCH(\">\",'CFR - XML import'!$A12,1)+1,SEARCH(\"/\",'CFR - XML import'!$A12,1)-SEARCH(\">\",'CFR - XML import'!$A12,1)-2)))","v":0},{"$f":"IF(ISERROR(FIND(T$3,'CFR - XML import'!$A12)),0,VALUE(MID('CFR - XML import'!$A12,SEARCH(\">\",'CFR - XML import'!$A12,1)+1,SEARCH(\"/\",'CFR - XML import'!$A12,1)-SEARCH(\">\",'CFR - XML import'!$A12,1)-2)))","v":0},{"$f":"IF(ISERROR(FIND(U$3,'CFR - XML import'!$A12)),0,VALUE(MID('CFR - XML import'!$A12,SEARCH(\">\",'CFR - XML import'!$A12,1)+1,SEARCH(\"/\",'CFR - XML import'!$A12,1)-SEARCH(\">\",'CFR - XML import'!$A12,1)-2)))","v":0},{"$f":"IF(ISERROR(FIND(V$3,'CFR - XML import'!$A12)),0,VALUE(MID('CFR - XML import'!$A12,SEARCH(\">\",'CFR - XML import'!$A12,1)+1,SEARCH(\"/\",'CFR - XML import'!$A12,1)-SEARCH(\">\",'CFR - XML import'!$A12,1)-2)))","v":0},{"$f":"IF(ISERROR(FIND(W$3,'CFR - XML import'!$A12)),0,VALUE(MID('CFR - XML import'!$A12,SEARCH(\">\",'CFR - XML import'!$A12,1)+1,SEARCH(\"/\",'CFR - XML import'!$A12,1)-SEARCH(\">\",'CFR - XML import'!$A12,1)-2)))","v":0},null,{"$f":"IF(ISERROR(FIND(Y$3,'CFR - XML import'!$A12)),0,VALUE(MID('CFR - XML import'!$A12,SEARCH(\">\",'CFR - XML import'!$A12,1)+1,SEARCH(\"/\",'CFR - XML import'!$A12,1)-SEARCH(\">\",'CFR - XML import'!$A12,1)-2)))","v":0},{"$f":"IF(ISERROR(FIND(Z$3,'CFR - XML import'!$A12)),0,VALUE(MID('CFR - XML import'!$A12,SEARCH(\">\",'CFR - XML import'!$A12,1)+1,SEARCH(\"/\",'CFR - XML import'!$A12,1)-SEARCH(\">\",'CFR - XML import'!$A12,1)-2)))","v":0},{"$f":"IF(ISERROR(FIND(AA$3,'CFR - XML import'!$A12)),0,VALUE(MID('CFR - XML import'!$A12,SEARCH(\">\",'CFR - XML import'!$A12,1)+1,SEARCH(\"/\",'CFR - XML import'!$A12,1)-SEARCH(\">\",'CFR - XML import'!$A12,1)-2)))","v":0},{"$f":"IF(ISERROR(FIND(AB$3,'CFR - XML import'!$A12)),0,VALUE(MID('CFR - XML import'!$A12,SEARCH(\">\",'CFR - XML import'!$A12,1)+1,SEARCH(\"/\",'CFR - XML import'!$A12,1)-SEARCH(\">\",'CFR - XML import'!$A12,1)-2)))","v":0},{"$f":"IF(ISERROR(FIND(AC$3,'CFR - XML import'!$A12)),0,VALUE(MID('CFR - XML import'!$A12,SEARCH(\">\",'CFR - XML import'!$A12,1)+1,SEARCH(\"/\",'CFR - XML import'!$A12,1)-SEARCH(\">\",'CFR - XML import'!$A12,1)-2)))","v":0},{"$f":"IF(ISERROR(FIND(AD$3,'CFR - XML import'!$A12)),0,VALUE(MID('CFR - XML import'!$A12,SEARCH(\">\",'CFR - XML import'!$A12,1)+1,SEARCH(\"/\",'CFR - XML import'!$A12,1)-SEARCH(\">\",'CFR - XML import'!$A12,1)-2)))","v":0},{"$f":"IF(ISERROR(FIND(AE$3,'CFR - XML import'!$A12)),0,VALUE(MID('CFR - XML import'!$A12,SEARCH(\">\",'CFR - XML import'!$A12,1)+1,SEARCH(\"/\",'CFR - XML import'!$A12,1)-SEARCH(\">\",'CFR - XML import'!$A12,1)-2)))","v":0},{"$f":"IF(ISERROR(FIND(AF$3,'CFR - XML import'!$A12)),0,VALUE(MID('CFR - XML import'!$A12,SEARCH(\">\",'CFR - XML import'!$A12,1)+1,SEARCH(\"/\",'CFR - XML import'!$A12,1)-SEARCH(\">\",'CFR - XML import'!$A12,1)-2)))","v":0},{"$f":"IF(ISERROR(FIND(AG$3,'CFR - XML import'!$A12)),0,VALUE(MID('CFR - XML import'!$A12,SEARCH(\">\",'CFR - XML import'!$A12,1)+1,SEARCH(\"/\",'CFR - XML import'!$A12,1)-SEARCH(\">\",'CFR - XML import'!$A12,1)-2)))","v":0},{"$f":"IF(ISERROR(FIND(AH$3,'CFR - XML import'!$A12)),0,VALUE(MID('CFR - XML import'!$A12,SEARCH(\">\",'CFR - XML import'!$A12,1)+1,SEARCH(\"/\",'CFR - XML import'!$A12,1)-SEARCH(\">\",'CFR - XML import'!$A12,1)-2)))","v":0},{"$f":"IF(ISERROR(FIND(AI$3,'CFR - XML import'!$A12)),0,VALUE(MID('CFR - XML import'!$A12,SEARCH(\">\",'CFR - XML import'!$A12,1)+1,SEARCH(\"/\",'CFR - XML import'!$A12,1)-SEARCH(\">\",'CFR - XML import'!$A12,1)-2)))","v":0},{"$f":"IF(ISERROR(FIND(AJ$3,'CFR - XML import'!$A12)),0,VALUE(MID('CFR - XML import'!$A12,SEARCH(\">\",'CFR - XML import'!$A12,1)+1,SEARCH(\"/\",'CFR - XML import'!$A12,1)-SEARCH(\">\",'CFR - XML import'!$A12,1)-2)))","v":0},{"$f":"IF(ISERROR(FIND(AK$3,'CFR - XML import'!$A12)),0,VALUE(MID('CFR - XML import'!$A12,SEARCH(\">\",'CFR - XML import'!$A12,1)+1,SEARCH(\"/\",'CFR - XML import'!$A12,1)-SEARCH(\">\",'CFR - XML import'!$A12,1)-2)))","v":0},{"$f":"IF(ISERROR(FIND(AL$3,'CFR - XML import'!$A12)),0,VALUE(MID('CFR - XML import'!$A12,SEARCH(\">\",'CFR - XML import'!$A12,1)+1,SEARCH(\"/\",'CFR - XML import'!$A12,1)-SEARCH(\">\",'CFR - XML import'!$A12,1)-2)))","v":0},{"$f":"IF(ISERROR(FIND(AM$3,'CFR - XML import'!$A12)),0,VALUE(MID('CFR - XML import'!$A12,SEARCH(\">\",'CFR - XML import'!$A12,1)+1,SEARCH(\"/\",'CFR - XML import'!$A12,1)-SEARCH(\">\",'CFR - XML import'!$A12,1)-2)))","v":0},{"$f":"IF(ISERROR(FIND(AN$3,'CFR - XML import'!$A12)),0,VALUE(MID('CFR - XML import'!$A12,SEARCH(\">\",'CFR - XML import'!$A12,1)+1,SEARCH(\"/\",'CFR - XML import'!$A12,1)-SEARCH(\">\",'CFR - XML import'!$A12,1)-2)))","v":0},{"$f":"IF(ISERROR(FIND(AO$3,'CFR - XML import'!$A12)),0,VALUE(MID('CFR - XML import'!$A12,SEARCH(\">\",'CFR - XML import'!$A12,1)+1,SEARCH(\"/\",'CFR - XML import'!$A12,1)-SEARCH(\">\",'CFR - XML import'!$A12,1)-2)))","v":0},{"$f":"IF(ISERROR(FIND(AP$3,'CFR - XML import'!$A12)),0,VALUE(MID('CFR - XML import'!$A12,SEARCH(\">\",'CFR - XML import'!$A12,1)+1,SEARCH(\"/\",'CFR - XML import'!$A12,1)-SEARCH(\">\",'CFR - XML import'!$A12,1)-2)))","v":0},{"$f":"IF(ISERROR(FIND(AQ$3,'CFR - XML import'!$A12)),0,VALUE(MID('CFR - XML import'!$A12,SEARCH(\">\",'CFR - XML import'!$A12,1)+1,SEARCH(\"/\",'CFR - XML import'!$A12,1)-SEARCH(\">\",'CFR - XML import'!$A12,1)-2)))","v":0},{"$f":"IF(ISERROR(FIND(AR$3,'CFR - XML import'!$A12)),0,VALUE(MID('CFR - XML import'!$A12,SEARCH(\">\",'CFR - XML import'!$A12,1)+1,SEARCH(\"/\",'CFR - XML import'!$A12,1)-SEARCH(\">\",'CFR - XML import'!$A12,1)-2)))","v":0},{"$f":"IF(ISERROR(FIND(AS$3,'CFR - XML import'!$A12)),0,VALUE(MID('CFR - XML import'!$A12,SEARCH(\">\",'CFR - XML import'!$A12,1)+1,SEARCH(\"/\",'CFR - XML import'!$A12,1)-SEARCH(\">\",'CFR - XML import'!$A12,1)-2)))","v":0},{"$f":"IF(ISERROR(FIND(AT$3,'CFR - XML import'!$A12)),0,VALUE(MID('CFR - XML import'!$A12,SEARCH(\">\",'CFR - XML import'!$A12,1)+1,SEARCH(\"/\",'CFR - XML import'!$A12,1)-SEARCH(\">\",'CFR - XML import'!$A12,1)-2)))","v":0},{"$f":"IF(ISERROR(FIND(AU$3,'CFR - XML import'!$A12)),0,VALUE(MID('CFR - XML import'!$A12,SEARCH(\">\",'CFR - XML import'!$A12,1)+1,SEARCH(\"/\",'CFR - XML import'!$A12,1)-SEARCH(\">\",'CFR - XML import'!$A12,1)-2)))","v":0},{"$f":"IF(ISERROR(FIND(AV$3,'CFR - XML import'!$A12)),0,VALUE(MID('CFR - XML import'!$A12,SEARCH(\">\",'CFR - XML import'!$A12,1)+1,SEARCH(\"/\",'CFR - XML import'!$A12,1)-SEARCH(\">\",'CFR - XML import'!$A12,1)-2)))","v":0},{"$f":"IF(ISERROR(FIND(AW$3,'CFR - XML import'!$A12)),0,VALUE(MID('CFR - XML import'!$A12,SEARCH(\">\",'CFR - XML import'!$A12,1)+1,SEARCH(\"/\",'CFR - XML import'!$A12,1)-SEARCH(\">\",'CFR - XML import'!$A12,1)-2)))","v":0},{"$f":"IF(ISERROR(FIND(AX$3,'CFR - XML import'!$A12)),0,VALUE(MID('CFR - XML import'!$A12,SEARCH(\">\",'CFR - XML import'!$A12,1)+1,SEARCH(\"/\",'CFR - XML import'!$A12,1)-SEARCH(\">\",'CFR - XML import'!$A12,1)-2)))","v":0},{"$f":"IF(ISERROR(FIND(AY$3,'CFR - XML import'!$A12)),0,VALUE(MID('CFR - XML import'!$A12,SEARCH(\">\",'CFR - XML import'!$A12,1)+1,SEARCH(\"/\",'CFR - XML import'!$A12,1)-SEARCH(\">\",'CFR - XML import'!$A12,1)-2)))","v":0},{"$f":"IF(ISERROR(FIND(AZ$3,'CFR - XML import'!$A12)),0,VALUE(MID('CFR - XML import'!$A12,SEARCH(\">\",'CFR - XML import'!$A12,1)+1,SEARCH(\"/\",'CFR - XML import'!$A12,1)-SEARCH(\">\",'CFR - XML import'!$A12,1)-2)))","v":0},{"$f":"IF(ISERROR(FIND(BA$3,'CFR - XML import'!$A12)),0,VALUE(MID('CFR - XML import'!$A12,SEARCH(\">\",'CFR - XML import'!$A12,1)+1,SEARCH(\"/\",'CFR - XML import'!$A12,1)-SEARCH(\">\",'CFR - XML import'!$A12,1)-2)))","v":0},{"$f":"IF(ISERROR(FIND(BB$3,'CFR - XML import'!$A12)),0,VALUE(MID('CFR - XML import'!$A12,SEARCH(\">\",'CFR - XML import'!$A12,1)+1,SEARCH(\"/\",'CFR - XML import'!$A12,1)-SEARCH(\">\",'CFR - XML import'!$A12,1)-2)))","v":0},{"$f":"IF(ISERROR(FIND(BC$3,'CFR - XML import'!$A12)),0,VALUE(MID('CFR - XML import'!$A12,SEARCH(\">\",'CFR - XML import'!$A12,1)+1,SEARCH(\"/\",'CFR - XML import'!$A12,1)-SEARCH(\">\",'CFR - XML import'!$A12,1)-2)))","v":0},{"$f":"IF(ISERROR(FIND(BD$3,'CFR - XML import'!$A12)),0,VALUE(MID('CFR - XML import'!$A12,SEARCH(\">\",'CFR - XML import'!$A12,1)+1,SEARCH(\"/\",'CFR - XML import'!$A12,1)-SEARCH(\">\",'CFR - XML import'!$A12,1)-2)))","v":0},{"$f":"IF(ISERROR(FIND(BE$3,'CFR - XML import'!$A12)),0,VALUE(MID('CFR - XML import'!$A12,SEARCH(\">\",'CFR - XML import'!$A12,1)+1,SEARCH(\"/\",'CFR - XML import'!$A12,1)-SEARCH(\">\",'CFR - XML import'!$A12,1)-2)))","v":0},{"$f":"IF(ISERROR(FIND(BF$3,'CFR - XML import'!$A12)),0,VALUE(MID('CFR - XML import'!$A12,SEARCH(\">\",'CFR - XML import'!$A12,1)+1,SEARCH(\"/\",'CFR - XML import'!$A12,1)-SEARCH(\">\",'CFR - XML import'!$A12,1)-2)))","v":0},{"$f":"IF(ISERROR(FIND(BG$3,'CFR - XML import'!$A12)),0,VALUE(MID('CFR - XML import'!$A12,SEARCH(\">\",'CFR - XML import'!$A12,1)+1,SEARCH(\"/\",'CFR - XML import'!$A12,1)-SEARCH(\">\",'CFR - XML import'!$A12,1)-2)))","v":0},{"$f":"IF(ISERROR(FIND(BH$3,'CFR - XML import'!$A12)),0,VALUE(MID('CFR - XML import'!$A12,SEARCH(\">\",'CFR - XML import'!$A12,1)+1,SEARCH(\"/\",'CFR - XML import'!$A12,1)-SEARCH(\">\",'CFR - XML import'!$A12,1)-2)))","v":0},{"$f":"IF(ISERROR(FIND(BI$3,'CFR - XML import'!$A12)),0,VALUE(MID('CFR - XML import'!$A12,SEARCH(\">\",'CFR - XML import'!$A12,1)+1,SEARCH(\"/\",'CFR - XML import'!$A12,1)-SEARCH(\">\",'CFR - XML import'!$A12,1)-2)))","v":0},{"$f":"IF(ISERROR(FIND(BJ$3,'CFR - XML import'!$A12)),0,VALUE(MID('CFR - XML import'!$A12,SEARCH(\">\",'CFR - XML import'!$A12,1)+1,SEARCH(\"/\",'CFR - XML import'!$A12,1)-SEARCH(\">\",'CFR - XML import'!$A12,1)-2)))","v":0},{"$f":"IF(ISERROR(FIND(BK$3,'CFR - XML import'!$A12)),0,VALUE(MID('CFR - XML import'!$A12,SEARCH(\">\",'CFR - XML import'!$A12,1)+1,SEARCH(\"/\",'CFR - XML import'!$A12,1)-SEARCH(\">\",'CFR - XML import'!$A12,1)-2)))","v":0},{"$f":"IF(ISERROR(FIND(BL$3,'CFR - XML import'!$A12)),0,VALUE(MID('CFR - XML import'!$A12,SEARCH(\">\",'CFR - XML import'!$A12,1)+1,SEARCH(\"/\",'CFR - XML import'!$A12,1)-SEARCH(\">\",'CFR - XML import'!$A12,1)-2)))","v":0},{"$f":"IF(ISERROR(FIND(BM$3,'CFR - XML import'!$A12)),0,VALUE(MID('CFR - XML import'!$A12,SEARCH(\">\",'CFR - XML import'!$A12,1)+1,SEARCH(\"/\",'CFR - XML import'!$A12,1)-SEARCH(\">\",'CFR - XML import'!$A12,1)-2)))","v":0},{"$f":"IF(ISERROR(FIND(BN$3,'CFR - XML import'!$A12)),0,VALUE(MID('CFR - XML import'!$A12,SEARCH(\">\",'CFR - XML import'!$A12,1)+1,SEARCH(\"/\",'CFR - XML import'!$A12,1)-SEARCH(\">\",'CFR - XML import'!$A12,1)-2)))","v":0},{"$f":"IF(ISERROR(FIND(BO$3,'CFR - XML import'!$A12)),0,VALUE(MID('CFR - XML import'!$A12,SEARCH(\">\",'CFR - XML import'!$A12,1)+1,SEARCH(\"/\",'CFR - XML import'!$A12,1)-SEARCH(\">\",'CFR - XML import'!$A12,1)-2)))","v":0},{"$f":"IF(ISERROR(FIND(BP$3,'CFR - XML import'!$A12)),0,VALUE(MID('CFR - XML import'!$A12,SEARCH(\">\",'CFR - XML import'!$A12,1)+1,SEARCH(\"/\",'CFR - XML import'!$A12,1)-SEARCH(\">\",'CFR - XML import'!$A12,1)-2)))","v":0},{"$f":"IF(ISERROR(FIND(BQ$3,'CFR - XML import'!$A12)),0,VALUE(MID('CFR - XML import'!$A12,SEARCH(\">\",'CFR - XML import'!$A12,1)+1,SEARCH(\"/\",'CFR - XML import'!$A12,1)-SEARCH(\">\",'CFR - XML import'!$A12,1)-2)))","v":0},{"$f":"IF(ISERROR(FIND(BR$3,'CFR - XML import'!$A12)),0,VALUE(MID('CFR - XML import'!$A12,SEARCH(\">\",'CFR - XML import'!$A12,1)+1,SEARCH(\"/\",'CFR - XML import'!$A12,1)-SEARCH(\">\",'CFR - XML import'!$A12,1)-2)))","v":0},{"$f":"IF(ISERROR(FIND(BS$3,'CFR - XML import'!$A12)),0,VALUE(MID('CFR - XML import'!$A12,SEARCH(\">\",'CFR - XML import'!$A12,1)+1,SEARCH(\"/\",'CFR - XML import'!$A12,1)-SEARCH(\">\",'CFR - XML import'!$A12,1)-2)))","v":0},{"$f":"IF(ISERROR(FIND(BT$3,'CFR - XML import'!$A12)),0,VALUE(MID('CFR - XML import'!$A12,SEARCH(\">\",'CFR - XML import'!$A12,1)+1,SEARCH(\"/\",'CFR - XML import'!$A12,1)-SEARCH(\">\",'CFR - XML import'!$A12,1)-2)))","v":0},{"$f":"IF(ISERROR(FIND(BU$3,'CFR - XML import'!$A12)),0,VALUE(MID('CFR - XML import'!$A12,SEARCH(\">\",'CFR - XML import'!$A12,1)+1,SEARCH(\"/\",'CFR - XML import'!$A12,1)-SEARCH(\">\",'CFR - XML import'!$A12,1)-2)))","v":0},{"$f":"IF(ISERROR(FIND(BV$3,'CFR - XML import'!$A12)),0,VALUE(MID('CFR - XML import'!$A12,SEARCH(\">\",'CFR - XML import'!$A12,1)+1,SEARCH(\"/\",'CFR - XML import'!$A12,1)-SEARCH(\">\",'CFR - XML import'!$A12,1)-2)))","v":0},{"$f":"IF(ISERROR(FIND(BW$3,'CFR - XML import'!$A12)),0,VALUE(MID('CFR - XML import'!$A12,SEARCH(\">\",'CFR - XML import'!$A12,1)+1,SEARCH(\"/\",'CFR - XML import'!$A12,1)-SEARCH(\">\",'CFR - XML import'!$A12,1)-2)))","v":0},{"$f":"IF(ISERROR(FIND(BX$3,'CFR - XML import'!$A12)),0,VALUE(MID('CFR - XML import'!$A12,SEARCH(\">\",'CFR - XML import'!$A12,1)+1,SEARCH(\"/\",'CFR - XML import'!$A12,1)-SEARCH(\">\",'CFR - XML import'!$A12,1)-2)))","v":0},{"$f":"IF(ISERROR(FIND(BY$3,'CFR - XML import'!$A12)),0,VALUE(MID('CFR - XML import'!$A12,SEARCH(\">\",'CFR - XML import'!$A12,1)+1,SEARCH(\"/\",'CFR - XML import'!$A12,1)-SEARCH(\">\",'CFR - XML import'!$A12,1)-2)))","v":0},{"$f":"IF(ISERROR(FIND(BZ$3,'CFR - XML import'!$A12)),0,VALUE(MID('CFR - XML import'!$A12,SEARCH(\">\",'CFR - XML import'!$A12,1)+1,SEARCH(\"/\",'CFR - XML import'!$A12,1)-SEARCH(\">\",'CFR - XML import'!$A12,1)-2)))","v":0},null,null,null,null,null,null,{"$f":"IF(ISERROR(IF(MID('CFR - XML import'!$A12,LEN($CF$4)+1,LEN('CFR - XML import'!$A12)-(2*LEN($CF$4)+1))=\"RMMS\",1,IF(MID('CFR - XML import'!$A12,LEN(\"    <InputSystem>\")+1,LEN('CFR - XML import'!$A12)-(LEN(\"    <InputSystem>\")+LEN($CF$4)+1))=\"SIMS\",2,0))),0,IF(MID('CFR - XML import'!$A12,LEN($CF$4)+1,LEN('CFR - XML import'!$A12)-(2*LEN($CF$4)+1))=\"RMMS\",1,IF(MID('CFR - XML import'!$A12,LEN(\"    <InputSystem>\")+1,LEN('CFR - XML import'!$A12)-(LEN(\"    <InputSystem>\")+LEN($CF$4)+1))=\"SIMS\",2,0)))","v":0},{"$f":"IF(ISERROR(FIND(CH$3,'CFR - XML import'!$A12)),0,MID('CFR - XML import'!$A12,SEARCH(\">\",'CFR - XML import'!$A12,1)+1,SEARCH(\"/\",'CFR - XML import'!$A12,1)-SEARCH(\">\",'CFR - XML import'!$A12,1)-2))","v":0},{"$f":"IF(ISERROR(FIND(CI$3,'CFR - XML import'!$A12)),0,MID('CFR - XML import'!$A12,SEARCH(\">\",'CFR - XML import'!$A12,1)+1,SEARCH(\"/\",'CFR - XML import'!$A12,1)-SEARCH(\">\",'CFR - XML import'!$A12,1)-2))","v":0},{"$f":"IF(ISERROR(FIND(CJ$3,'CFR - XML import'!$A12)),0,MID('CFR - XML import'!$A12,SEARCH(\">\",'CFR - XML import'!$A12,1)+1,SEARCH(\"/\",'CFR - XML import'!$A12,1)-SEARCH(\">\",'CFR - XML import'!$A12,1)-2))","v":0},{"$f":"IF(ISERROR(FIND(CK$3,'CFR - XML import'!$A12)),0,MID('CFR - XML import'!$A12,SEARCH(\">\",'CFR - XML import'!$A12,1)+1,SEARCH(\"/\",'CFR - XML import'!$A12,1)-SEARCH(\">\",'CFR - XML import'!$A12,1)-2))","v":0},{"$f":"IF(ISERROR(FIND(CL$3,'CFR - XML import'!$A12)),0,MID('CFR - XML import'!$A12,SEARCH(\">\",'CFR - XML import'!$A12,1)+1,SEARCH(\"/\",'CFR - XML import'!$A12,1)-SEARCH(\">\",'CFR - XML import'!$A12,1)-2))","v":0}]
[{"$f":"IF(AND('CFR - XML import'!A13<>\"\",LEFT('CFR - XML import'!A13,1)<>\"<\",LEFT('CFR - XML import'!A13,3)<>\"  <\",LEFT('CFR - XML import'!A13,5)<>\"    <\",LEFT('CFR - XML import'!A13,7)<>\"      <\",LEFT('CFR - XML import'!A13,9)<>\"        <\",$B$1=\"SIMS\"),'CFR - XML import'!A13,IF(AND(LEFT('CFR - XML import'!A13,9)=\"<Details>\",$B$1=\"RM\"),'CFR - XML import'!A13,\"\"))","v":""},{"$f":"IF(ISERROR(FIND(B$3,'CFR - XML import'!$A13)),0,VALUE(MID('CFR - XML import'!$A13,SEARCH(\">\",'CFR - XML import'!$A13,1)+1,SEARCH(\"/\",'CFR - XML import'!$A13,1)-SEARCH(\">\",'CFR - XML import'!$A13,1)-2)))","v":0},null,{"$f":"IF(ISERROR(FIND(D$3,'CFR - XML import'!$A13)),0,MID('CFR - XML import'!$A13,SEARCH(\">\",'CFR - XML import'!$A13,1)+1,SEARCH(\"/\",'CFR - XML import'!$A13,1)-SEARCH(\">\",'CFR - XML import'!$A13,1)-2))","v":0},{"$f":"IF(ISERROR(FIND(E$3,'CFR - XML import'!$A13)),0,MID('CFR - XML import'!$A13,SEARCH(\">\",'CFR - XML import'!$A13,1)+1,SEARCH(\"/\",'CFR - XML import'!$A13,1)-SEARCH(\">\",'CFR - XML import'!$A13,1)-2))","v":0},{"$f":"IF($B$1=\"SIMS\",IF(ISERROR(FIND(F$3,'CFR - XML import'!$A13)),0,VALUE(MID('CFR - XML import'!$A13,15,10))),IF(ISERROR(FIND(F$3,'CFR - XML import'!$A13)),0,VALUE(MID('CFR - XML import'!$A13,11,10))))","v":"00:00:00"},{"$f":"IF(ISERROR(FIND(G$3,'CFR - XML import'!$A13)),0,VALUE(MID('CFR - XML import'!$A13,SEARCH(\">\",'CFR - XML import'!$A13,1)+1,SEARCH(\"/\",'CFR - XML import'!$A13,1)-SEARCH(\">\",'CFR - XML import'!$A13,1)-2)))","v":0},{"$f":"IF(ISERROR(FIND(H$3,'CFR - XML import'!$A13)),0,VALUE(MID('CFR - XML import'!$A13,SEARCH(\">\",'CFR - XML import'!$A13,1)+1,SEARCH(\"/\",'CFR - XML import'!$A13,1)-SEARCH(\">\",'CFR - XML import'!$A13,1)-2)))","v":0},{"$f":"IF(ISERROR(FIND(I$3,'CFR - XML import'!$A13)),0,VALUE(MID('CFR - XML import'!$A13,SEARCH(\">\",'CFR - XML import'!$A13,1)+1,SEARCH(\"/\",'CFR - XML import'!$A13,1)-SEARCH(\">\",'CFR - XML import'!$A13,1)-2)))","v":0},{"$f":"IF(ISERROR(FIND(J$3,'CFR - XML import'!$A13)),0,VALUE(MID('CFR - XML import'!$A13,SEARCH(\">\",'CFR - XML import'!$A13,1)+1,SEARCH(\"/\",'CFR - XML import'!$A13,1)-SEARCH(\">\",'CFR - XML import'!$A13,1)-2)))","v":0},{"$f":"IF(ISERROR(FIND(K$3,'CFR - XML import'!$A13)),0,VALUE(MID('CFR - XML import'!$A13,SEARCH(\">\",'CFR - XML import'!$A13,1)+1,SEARCH(\"/\",'CFR - XML import'!$A13,1)-SEARCH(\">\",'CFR - XML import'!$A13,1)-2)))","v":0},{"$f":"IF(ISERROR(FIND(L$3,'CFR - XML import'!$A13)),0,VALUE(MID('CFR - XML import'!$A13,SEARCH(\">\",'CFR - XML import'!$A13,1)+1,SEARCH(\"/\",'CFR - XML import'!$A13,1)-SEARCH(\">\",'CFR - XML import'!$A13,1)-2)))","v":0},{"$f":"IF(ISERROR(FIND(M$3,'CFR - XML import'!$A13)),0,VALUE(MID('CFR - XML import'!$A13,SEARCH(\">\",'CFR - XML import'!$A13,1)+1,SEARCH(\"/\",'CFR - XML import'!$A13,1)-SEARCH(\">\",'CFR - XML import'!$A13,1)-2)))","v":0},{"$f":"IF(ISERROR(FIND(N$3,'CFR - XML import'!$A13)),0,VALUE(MID('CFR - XML import'!$A13,SEARCH(\">\",'CFR - XML import'!$A13,1)+1,SEARCH(\"/\",'CFR - XML import'!$A13,1)-SEARCH(\">\",'CFR - XML import'!$A13,1)-2)))","v":0},{"$f":"IF(ISERROR(FIND(O$3,'CFR - XML import'!$A13)),0,VALUE(MID('CFR - XML import'!$A13,SEARCH(\">\",'CFR - XML import'!$A13,1)+1,SEARCH(\"/\",'CFR - XML import'!$A13,1)-SEARCH(\">\",'CFR - XML import'!$A13,1)-2)))","v":0},{"$f":"IF(ISERROR(FIND(P$3,'CFR - XML import'!$A13)),0,VALUE(MID('CFR - XML import'!$A13,SEARCH(\">\",'CFR - XML import'!$A13,1)+1,SEARCH(\"/\",'CFR - XML import'!$A13,1)-SEARCH(\">\",'CFR - XML import'!$A13,1)-2)))","v":0},{"$f":"IF(ISERROR(FIND(Q$3,'CFR - XML import'!$A13)),0,VALUE(MID('CFR - XML import'!$A13,SEARCH(\">\",'CFR - XML import'!$A13,1)+1,SEARCH(\"/\",'CFR - XML import'!$A13,1)-SEARCH(\">\",'CFR - XML import'!$A13,1)-2)))","v":0},{"$f":"IF(ISERROR(FIND(R$3,'CFR - XML import'!$A13)),0,VALUE(MID('CFR - XML import'!$A13,SEARCH(\">\",'CFR - XML import'!$A13,1)+1,SEARCH(\"/\",'CFR - XML import'!$A13,1)-SEARCH(\">\",'CFR - XML import'!$A13,1)-2)))","v":0},{"$f":"IF(ISERROR(FIND(S$3,'CFR - XML import'!$A13)),0,VALUE(MID('CFR - XML import'!$A13,SEARCH(\">\",'CFR - XML import'!$A13,1)+1,SEARCH(\"/\",'CFR - XML import'!$A13,1)-SEARCH(\">\",'CFR - XML import'!$A13,1)-2)))","v":0},{"$f":"IF(ISERROR(FIND(T$3,'CFR - XML import'!$A13)),0,VALUE(MID('CFR - XML import'!$A13,SEARCH(\">\",'CFR - XML import'!$A13,1)+1,SEARCH(\"/\",'CFR - XML import'!$A13,1)-SEARCH(\">\",'CFR - XML import'!$A13,1)-2)))","v":0},{"$f":"IF(ISERROR(FIND(U$3,'CFR - XML import'!$A13)),0,VALUE(MID('CFR - XML import'!$A13,SEARCH(\">\",'CFR - XML import'!$A13,1)+1,SEARCH(\"/\",'CFR - XML import'!$A13,1)-SEARCH(\">\",'CFR - XML import'!$A13,1)-2)))","v":0},{"$f":"IF(ISERROR(FIND(V$3,'CFR - XML import'!$A13)),0,VALUE(MID('CFR - XML import'!$A13,SEARCH(\">\",'CFR - XML import'!$A13,1)+1,SEARCH(\"/\",'CFR - XML import'!$A13,1)-SEARCH(\">\",'CFR - XML import'!$A13,1)-2)))","v":0},{"$f":"IF(ISERROR(FIND(W$3,'CFR - XML import'!$A13)),0,VALUE(MID('CFR - XML import'!$A13,SEARCH(\">\",'CFR - XML import'!$A13,1)+1,SEARCH(\"/\",'CFR - XML import'!$A13,1)-SEARCH(\">\",'CFR - XML import'!$A13,1)-2)))","v":0},null,{"$f":"IF(ISERROR(FIND(Y$3,'CFR - XML import'!$A13)),0,VALUE(MID('CFR - XML import'!$A13,SEARCH(\">\",'CFR - XML import'!$A13,1)+1,SEARCH(\"/\",'CFR - XML import'!$A13,1)-SEARCH(\">\",'CFR - XML import'!$A13,1)-2)))","v":0},{"$f":"IF(ISERROR(FIND(Z$3,'CFR - XML import'!$A13)),0,VALUE(MID('CFR - XML import'!$A13,SEARCH(\">\",'CFR - XML import'!$A13,1)+1,SEARCH(\"/\",'CFR - XML import'!$A13,1)-SEARCH(\">\",'CFR - XML import'!$A13,1)-2)))","v":0},{"$f":"IF(ISERROR(FIND(AA$3,'CFR - XML import'!$A13)),0,VALUE(MID('CFR - XML import'!$A13,SEARCH(\">\",'CFR - XML import'!$A13,1)+1,SEARCH(\"/\",'CFR - XML import'!$A13,1)-SEARCH(\">\",'CFR - XML import'!$A13,1)-2)))","v":0},{"$f":"IF(ISERROR(FIND(AB$3,'CFR - XML import'!$A13)),0,VALUE(MID('CFR - XML import'!$A13,SEARCH(\">\",'CFR - XML import'!$A13,1)+1,SEARCH(\"/\",'CFR - XML import'!$A13,1)-SEARCH(\">\",'CFR - XML import'!$A13,1)-2)))","v":0},{"$f":"IF(ISERROR(FIND(AC$3,'CFR - XML import'!$A13)),0,VALUE(MID('CFR - XML import'!$A13,SEARCH(\">\",'CFR - XML import'!$A13,1)+1,SEARCH(\"/\",'CFR - XML import'!$A13,1)-SEARCH(\">\",'CFR - XML import'!$A13,1)-2)))","v":0},{"$f":"IF(ISERROR(FIND(AD$3,'CFR - XML import'!$A13)),0,VALUE(MID('CFR - XML import'!$A13,SEARCH(\">\",'CFR - XML import'!$A13,1)+1,SEARCH(\"/\",'CFR - XML import'!$A13,1)-SEARCH(\">\",'CFR - XML import'!$A13,1)-2)))","v":0},{"$f":"IF(ISERROR(FIND(AE$3,'CFR - XML import'!$A13)),0,VALUE(MID('CFR - XML import'!$A13,SEARCH(\">\",'CFR - XML import'!$A13,1)+1,SEARCH(\"/\",'CFR - XML import'!$A13,1)-SEARCH(\">\",'CFR - XML import'!$A13,1)-2)))","v":0},{"$f":"IF(ISERROR(FIND(AF$3,'CFR - XML import'!$A13)),0,VALUE(MID('CFR - XML import'!$A13,SEARCH(\">\",'CFR - XML import'!$A13,1)+1,SEARCH(\"/\",'CFR - XML import'!$A13,1)-SEARCH(\">\",'CFR - XML import'!$A13,1)-2)))","v":0},{"$f":"IF(ISERROR(FIND(AG$3,'CFR - XML import'!$A13)),0,VALUE(MID('CFR - XML import'!$A13,SEARCH(\">\",'CFR - XML import'!$A13,1)+1,SEARCH(\"/\",'CFR - XML import'!$A13,1)-SEARCH(\">\",'CFR - XML import'!$A13,1)-2)))","v":0},{"$f":"IF(ISERROR(FIND(AH$3,'CFR - XML import'!$A13)),0,VALUE(MID('CFR - XML import'!$A13,SEARCH(\">\",'CFR - XML import'!$A13,1)+1,SEARCH(\"/\",'CFR - XML import'!$A13,1)-SEARCH(\">\",'CFR - XML import'!$A13,1)-2)))","v":0},{"$f":"IF(ISERROR(FIND(AI$3,'CFR - XML import'!$A13)),0,VALUE(MID('CFR - XML import'!$A13,SEARCH(\">\",'CFR - XML import'!$A13,1)+1,SEARCH(\"/\",'CFR - XML import'!$A13,1)-SEARCH(\">\",'CFR - XML import'!$A13,1)-2)))","v":0},{"$f":"IF(ISERROR(FIND(AJ$3,'CFR - XML import'!$A13)),0,VALUE(MID('CFR - XML import'!$A13,SEARCH(\">\",'CFR - XML import'!$A13,1)+1,SEARCH(\"/\",'CFR - XML import'!$A13,1)-SEARCH(\">\",'CFR - XML import'!$A13,1)-2)))","v":0},{"$f":"IF(ISERROR(FIND(AK$3,'CFR - XML import'!$A13)),0,VALUE(MID('CFR - XML import'!$A13,SEARCH(\">\",'CFR - XML import'!$A13,1)+1,SEARCH(\"/\",'CFR - XML import'!$A13,1)-SEARCH(\">\",'CFR - XML import'!$A13,1)-2)))","v":0},{"$f":"IF(ISERROR(FIND(AL$3,'CFR - XML import'!$A13)),0,VALUE(MID('CFR - XML import'!$A13,SEARCH(\">\",'CFR - XML import'!$A13,1)+1,SEARCH(\"/\",'CFR - XML import'!$A13,1)-SEARCH(\">\",'CFR - XML import'!$A13,1)-2)))","v":0},{"$f":"IF(ISERROR(FIND(AM$3,'CFR - XML import'!$A13)),0,VALUE(MID('CFR - XML import'!$A13,SEARCH(\">\",'CFR - XML import'!$A13,1)+1,SEARCH(\"/\",'CFR - XML import'!$A13,1)-SEARCH(\">\",'CFR - XML import'!$A13,1)-2)))","v":0},{"$f":"IF(ISERROR(FIND(AN$3,'CFR - XML import'!$A13)),0,VALUE(MID('CFR - XML import'!$A13,SEARCH(\">\",'CFR - XML import'!$A13,1)+1,SEARCH(\"/\",'CFR - XML import'!$A13,1)-SEARCH(\">\",'CFR - XML import'!$A13,1)-2)))","v":0},{"$f":"IF(ISERROR(FIND(AO$3,'CFR - XML import'!$A13)),0,VALUE(MID('CFR - XML import'!$A13,SEARCH(\">\",'CFR - XML import'!$A13,1)+1,SEARCH(\"/\",'CFR - XML import'!$A13,1)-SEARCH(\">\",'CFR - XML import'!$A13,1)-2)))","v":0},{"$f":"IF(ISERROR(FIND(AP$3,'CFR - XML import'!$A13)),0,VALUE(MID('CFR - XML import'!$A13,SEARCH(\">\",'CFR - XML import'!$A13,1)+1,SEARCH(\"/\",'CFR - XML import'!$A13,1)-SEARCH(\">\",'CFR - XML import'!$A13,1)-2)))","v":0},{"$f":"IF(ISERROR(FIND(AQ$3,'CFR - XML import'!$A13)),0,VALUE(MID('CFR - XML import'!$A13,SEARCH(\">\",'CFR - XML import'!$A13,1)+1,SEARCH(\"/\",'CFR - XML import'!$A13,1)-SEARCH(\">\",'CFR - XML import'!$A13,1)-2)))","v":0},{"$f":"IF(ISERROR(FIND(AR$3,'CFR - XML import'!$A13)),0,VALUE(MID('CFR - XML import'!$A13,SEARCH(\">\",'CFR - XML import'!$A13,1)+1,SEARCH(\"/\",'CFR - XML import'!$A13,1)-SEARCH(\">\",'CFR - XML import'!$A13,1)-2)))","v":0},{"$f":"IF(ISERROR(FIND(AS$3,'CFR - XML import'!$A13)),0,VALUE(MID('CFR - XML import'!$A13,SEARCH(\">\",'CFR - XML import'!$A13,1)+1,SEARCH(\"/\",'CFR - XML import'!$A13,1)-SEARCH(\">\",'CFR - XML import'!$A13,1)-2)))","v":0},{"$f":"IF(ISERROR(FIND(AT$3,'CFR - XML import'!$A13)),0,VALUE(MID('CFR - XML import'!$A13,SEARCH(\">\",'CFR - XML import'!$A13,1)+1,SEARCH(\"/\",'CFR - XML import'!$A13,1)-SEARCH(\">\",'CFR - XML import'!$A13,1)-2)))","v":0},{"$f":"IF(ISERROR(FIND(AU$3,'CFR - XML import'!$A13)),0,VALUE(MID('CFR - XML import'!$A13,SEARCH(\">\",'CFR - XML import'!$A13,1)+1,SEARCH(\"/\",'CFR - XML import'!$A13,1)-SEARCH(\">\",'CFR - XML import'!$A13,1)-2)))","v":0},{"$f":"IF(ISERROR(FIND(AV$3,'CFR - XML import'!$A13)),0,VALUE(MID('CFR - XML import'!$A13,SEARCH(\">\",'CFR - XML import'!$A13,1)+1,SEARCH(\"/\",'CFR - XML import'!$A13,1)-SEARCH(\">\",'CFR - XML import'!$A13,1)-2)))","v":0},{"$f":"IF(ISERROR(FIND(AW$3,'CFR - XML import'!$A13)),0,VALUE(MID('CFR - XML import'!$A13,SEARCH(\">\",'CFR - XML import'!$A13,1)+1,SEARCH(\"/\",'CFR - XML import'!$A13,1)-SEARCH(\">\",'CFR - XML import'!$A13,1)-2)))","v":0},{"$f":"IF(ISERROR(FIND(AX$3,'CFR - XML import'!$A13)),0,VALUE(MID('CFR - XML import'!$A13,SEARCH(\">\",'CFR - XML import'!$A13,1)+1,SEARCH(\"/\",'CFR - XML import'!$A13,1)-SEARCH(\">\",'CFR - XML import'!$A13,1)-2)))","v":0},{"$f":"IF(ISERROR(FIND(AY$3,'CFR - XML import'!$A13)),0,VALUE(MID('CFR - XML import'!$A13,SEARCH(\">\",'CFR - XML import'!$A13,1)+1,SEARCH(\"/\",'CFR - XML import'!$A13,1)-SEARCH(\">\",'CFR - XML import'!$A13,1)-2)))","v":0},{"$f":"IF(ISERROR(FIND(AZ$3,'CFR - XML import'!$A13)),0,VALUE(MID('CFR - XML import'!$A13,SEARCH(\">\",'CFR - XML import'!$A13,1)+1,SEARCH(\"/\",'CFR - XML import'!$A13,1)-SEARCH(\">\",'CFR - XML import'!$A13,1)-2)))","v":0},{"$f":"IF(ISERROR(FIND(BA$3,'CFR - XML import'!$A13)),0,VALUE(MID('CFR - XML import'!$A13,SEARCH(\">\",'CFR - XML import'!$A13,1)+1,SEARCH(\"/\",'CFR - XML import'!$A13,1)-SEARCH(\">\",'CFR - XML import'!$A13,1)-2)))","v":0},{"$f":"IF(ISERROR(FIND(BB$3,'CFR - XML import'!$A13)),0,VALUE(MID('CFR - XML import'!$A13,SEARCH(\">\",'CFR - XML import'!$A13,1)+1,SEARCH(\"/\",'CFR - XML import'!$A13,1)-SEARCH(\">\",'CFR - XML import'!$A13,1)-2)))","v":0},{"$f":"IF(ISERROR(FIND(BC$3,'CFR - XML import'!$A13)),0,VALUE(MID('CFR - XML import'!$A13,SEARCH(\">\",'CFR - XML import'!$A13,1)+1,SEARCH(\"/\",'CFR - XML import'!$A13,1)-SEARCH(\">\",'CFR - XML import'!$A13,1)-2)))","v":0},{"$f":"IF(ISERROR(FIND(BD$3,'CFR - XML import'!$A13)),0,VALUE(MID('CFR - XML import'!$A13,SEARCH(\">\",'CFR - XML import'!$A13,1)+1,SEARCH(\"/\",'CFR - XML import'!$A13,1)-SEARCH(\">\",'CFR - XML import'!$A13,1)-2)))","v":0},{"$f":"IF(ISERROR(FIND(BE$3,'CFR - XML import'!$A13)),0,VALUE(MID('CFR - XML import'!$A13,SEARCH(\">\",'CFR - XML import'!$A13,1)+1,SEARCH(\"/\",'CFR - XML import'!$A13,1)-SEARCH(\">\",'CFR - XML import'!$A13,1)-2)))","v":0},{"$f":"IF(ISERROR(FIND(BF$3,'CFR - XML import'!$A13)),0,VALUE(MID('CFR - XML import'!$A13,SEARCH(\">\",'CFR - XML import'!$A13,1)+1,SEARCH(\"/\",'CFR - XML import'!$A13,1)-SEARCH(\">\",'CFR - XML import'!$A13,1)-2)))","v":0},{"$f":"IF(ISERROR(FIND(BG$3,'CFR - XML import'!$A13)),0,VALUE(MID('CFR - XML import'!$A13,SEARCH(\">\",'CFR - XML import'!$A13,1)+1,SEARCH(\"/\",'CFR - XML import'!$A13,1)-SEARCH(\">\",'CFR - XML import'!$A13,1)-2)))","v":0},{"$f":"IF(ISERROR(FIND(BH$3,'CFR - XML import'!$A13)),0,VALUE(MID('CFR - XML import'!$A13,SEARCH(\">\",'CFR - XML import'!$A13,1)+1,SEARCH(\"/\",'CFR - XML import'!$A13,1)-SEARCH(\">\",'CFR - XML import'!$A13,1)-2)))","v":0},{"$f":"IF(ISERROR(FIND(BI$3,'CFR - XML import'!$A13)),0,VALUE(MID('CFR - XML import'!$A13,SEARCH(\">\",'CFR - XML import'!$A13,1)+1,SEARCH(\"/\",'CFR - XML import'!$A13,1)-SEARCH(\">\",'CFR - XML import'!$A13,1)-2)))","v":0},{"$f":"IF(ISERROR(FIND(BJ$3,'CFR - XML import'!$A13)),0,VALUE(MID('CFR - XML import'!$A13,SEARCH(\">\",'CFR - XML import'!$A13,1)+1,SEARCH(\"/\",'CFR - XML import'!$A13,1)-SEARCH(\">\",'CFR - XML import'!$A13,1)-2)))","v":0},{"$f":"IF(ISERROR(FIND(BK$3,'CFR - XML import'!$A13)),0,VALUE(MID('CFR - XML import'!$A13,SEARCH(\">\",'CFR - XML import'!$A13,1)+1,SEARCH(\"/\",'CFR - XML import'!$A13,1)-SEARCH(\">\",'CFR - XML import'!$A13,1)-2)))","v":0},{"$f":"IF(ISERROR(FIND(BL$3,'CFR - XML import'!$A13)),0,VALUE(MID('CFR - XML import'!$A13,SEARCH(\">\",'CFR - XML import'!$A13,1)+1,SEARCH(\"/\",'CFR - XML import'!$A13,1)-SEARCH(\">\",'CFR - XML import'!$A13,1)-2)))","v":0},{"$f":"IF(ISERROR(FIND(BM$3,'CFR - XML import'!$A13)),0,VALUE(MID('CFR - XML import'!$A13,SEARCH(\">\",'CFR - XML import'!$A13,1)+1,SEARCH(\"/\",'CFR - XML import'!$A13,1)-SEARCH(\">\",'CFR - XML import'!$A13,1)-2)))","v":0},{"$f":"IF(ISERROR(FIND(BN$3,'CFR - XML import'!$A13)),0,VALUE(MID('CFR - XML import'!$A13,SEARCH(\">\",'CFR - XML import'!$A13,1)+1,SEARCH(\"/\",'CFR - XML import'!$A13,1)-SEARCH(\">\",'CFR - XML import'!$A13,1)-2)))","v":0},{"$f":"IF(ISERROR(FIND(BO$3,'CFR - XML import'!$A13)),0,VALUE(MID('CFR - XML import'!$A13,SEARCH(\">\",'CFR - XML import'!$A13,1)+1,SEARCH(\"/\",'CFR - XML import'!$A13,1)-SEARCH(\">\",'CFR - XML import'!$A13,1)-2)))","v":0},{"$f":"IF(ISERROR(FIND(BP$3,'CFR - XML import'!$A13)),0,VALUE(MID('CFR - XML import'!$A13,SEARCH(\">\",'CFR - XML import'!$A13,1)+1,SEARCH(\"/\",'CFR - XML import'!$A13,1)-SEARCH(\">\",'CFR - XML import'!$A13,1)-2)))","v":0},{"$f":"IF(ISERROR(FIND(BQ$3,'CFR - XML import'!$A13)),0,VALUE(MID('CFR - XML import'!$A13,SEARCH(\">\",'CFR - XML import'!$A13,1)+1,SEARCH(\"/\",'CFR - XML import'!$A13,1)-SEARCH(\">\",'CFR - XML import'!$A13,1)-2)))","v":0},{"$f":"IF(ISERROR(FIND(BR$3,'CFR - XML import'!$A13)),0,VALUE(MID('CFR - XML import'!$A13,SEARCH(\">\",'CFR - XML import'!$A13,1)+1,SEARCH(\"/\",'CFR - XML import'!$A13,1)-SEARCH(\">\",'CFR - XML import'!$A13,1)-2)))","v":0},{"$f":"IF(ISERROR(FIND(BS$3,'CFR - XML import'!$A13)),0,VALUE(MID('CFR - XML import'!$A13,SEARCH(\">\",'CFR - XML import'!$A13,1)+1,SEARCH(\"/\",'CFR - XML import'!$A13,1)-SEARCH(\">\",'CFR - XML import'!$A13,1)-2)))","v":0},{"$f":"IF(ISERROR(FIND(BT$3,'CFR - XML import'!$A13)),0,VALUE(MID('CFR - XML import'!$A13,SEARCH(\">\",'CFR - XML import'!$A13,1)+1,SEARCH(\"/\",'CFR - XML import'!$A13,1)-SEARCH(\">\",'CFR - XML import'!$A13,1)-2)))","v":0},{"$f":"IF(ISERROR(FIND(BU$3,'CFR - XML import'!$A13)),0,VALUE(MID('CFR - XML import'!$A13,SEARCH(\">\",'CFR - XML import'!$A13,1)+1,SEARCH(\"/\",'CFR - XML import'!$A13,1)-SEARCH(\">\",'CFR - XML import'!$A13,1)-2)))","v":0},{"$f":"IF(ISERROR(FIND(BV$3,'CFR - XML import'!$A13)),0,VALUE(MID('CFR - XML import'!$A13,SEARCH(\">\",'CFR - XML import'!$A13,1)+1,SEARCH(\"/\",'CFR - XML import'!$A13,1)-SEARCH(\">\",'CFR - XML import'!$A13,1)-2)))","v":0},{"$f":"IF(ISERROR(FIND(BW$3,'CFR - XML import'!$A13)),0,VALUE(MID('CFR - XML import'!$A13,SEARCH(\">\",'CFR - XML import'!$A13,1)+1,SEARCH(\"/\",'CFR - XML import'!$A13,1)-SEARCH(\">\",'CFR - XML import'!$A13,1)-2)))","v":0},{"$f":"IF(ISERROR(FIND(BX$3,'CFR - XML import'!$A13)),0,VALUE(MID('CFR - XML import'!$A13,SEARCH(\">\",'CFR - XML import'!$A13,1)+1,SEARCH(\"/\",'CFR - XML import'!$A13,1)-SEARCH(\">\",'CFR - XML import'!$A13,1)-2)))","v":0},{"$f":"IF(ISERROR(FIND(BY$3,'CFR - XML import'!$A13)),0,VALUE(MID('CFR - XML import'!$A13,SEARCH(\">\",'CFR - XML import'!$A13,1)+1,SEARCH(\"/\",'CFR - XML import'!$A13,1)-SEARCH(\">\",'CFR - XML import'!$A13,1)-2)))","v":0},{"$f":"IF(ISERROR(FIND(BZ$3,'CFR - XML import'!$A13)),0,VALUE(MID('CFR - XML import'!$A13,SEARCH(\">\",'CFR - XML import'!$A13,1)+1,SEARCH(\"/\",'CFR - XML import'!$A13,1)-SEARCH(\">\",'CFR - XML import'!$A13,1)-2)))","v":0},null,null,null,null,null,null,{"$f":"IF(ISERROR(IF(MID('CFR - XML import'!$A13,LEN($CF$4)+1,LEN('CFR - XML import'!$A13)-(2*LEN($CF$4)+1))=\"RMMS\",1,IF(MID('CFR - XML import'!$A13,LEN(\"    <InputSystem>\")+1,LEN('CFR - XML import'!$A13)-(LEN(\"    <InputSystem>\")+LEN($CF$4)+1))=\"SIMS\",2,0))),0,IF(MID('CFR - XML import'!$A13,LEN($CF$4)+1,LEN('CFR - XML import'!$A13)-(2*LEN($CF$4)+1))=\"RMMS\",1,IF(MID('CFR - XML import'!$A13,LEN(\"    <InputSystem>\")+1,LEN('CFR - XML import'!$A13)-(LEN(\"    <InputSystem>\")+LEN($CF$4)+1))=\"SIMS\",2,0)))","v":0},{"$f":"IF(ISERROR(FIND(CH$3,'CFR - XML import'!$A13)),0,MID('CFR - XML import'!$A13,SEARCH(\">\",'CFR - XML import'!$A13,1)+1,SEARCH(\"/\",'CFR - XML import'!$A13,1)-SEARCH(\">\",'CFR - XML import'!$A13,1)-2))","v":0},{"$f":"IF(ISERROR(FIND(CI$3,'CFR - XML import'!$A13)),0,MID('CFR - XML import'!$A13,SEARCH(\">\",'CFR - XML import'!$A13,1)+1,SEARCH(\"/\",'CFR - XML import'!$A13,1)-SEARCH(\">\",'CFR - XML import'!$A13,1)-2))","v":0},{"$f":"IF(ISERROR(FIND(CJ$3,'CFR - XML import'!$A13)),0,MID('CFR - XML import'!$A13,SEARCH(\">\",'CFR - XML import'!$A13,1)+1,SEARCH(\"/\",'CFR - XML import'!$A13,1)-SEARCH(\">\",'CFR - XML import'!$A13,1)-2))","v":0},{"$f":"IF(ISERROR(FIND(CK$3,'CFR - XML import'!$A13)),0,MID('CFR - XML import'!$A13,SEARCH(\">\",'CFR - XML import'!$A13,1)+1,SEARCH(\"/\",'CFR - XML import'!$A13,1)-SEARCH(\">\",'CFR - XML import'!$A13,1)-2))","v":0},{"$f":"IF(ISERROR(FIND(CL$3,'CFR - XML import'!$A13)),0,MID('CFR - XML import'!$A13,SEARCH(\">\",'CFR - XML import'!$A13,1)+1,SEARCH(\"/\",'CFR - XML import'!$A13,1)-SEARCH(\">\",'CFR - XML import'!$A13,1)-2))","v":0}]
[{"$f":"IF(AND('CFR - XML import'!A14<>\"\",LEFT('CFR - XML import'!A14,1)<>\"<\",LEFT('CFR - XML import'!A14,3)<>\"  <\",LEFT('CFR - XML import'!A14,5)<>\"    <\",LEFT('CFR - XML import'!A14,7)<>\"      <\",LEFT('CFR - XML import'!A14,9)<>\"        <\",$B$1=\"SIMS\"),'CFR - XML import'!A14,IF(AND(LEFT('CFR - XML import'!A14,9)=\"<Details>\",$B$1=\"RM\"),'CFR - XML import'!A14,\"\"))","v":""},{"$f":"IF(ISERROR(FIND(B$3,'CFR - XML import'!$A14)),0,VALUE(MID('CFR - XML import'!$A14,SEARCH(\">\",'CFR - XML import'!$A14,1)+1,SEARCH(\"/\",'CFR - XML import'!$A14,1)-SEARCH(\">\",'CFR - XML import'!$A14,1)-2)))","v":0},null,{"$f":"IF(ISERROR(FIND(D$3,'CFR - XML import'!$A14)),0,MID('CFR - XML import'!$A14,SEARCH(\">\",'CFR - XML import'!$A14,1)+1,SEARCH(\"/\",'CFR - XML import'!$A14,1)-SEARCH(\">\",'CFR - XML import'!$A14,1)-2))","v":0},{"$f":"IF(ISERROR(FIND(E$3,'CFR - XML import'!$A14)),0,MID('CFR - XML import'!$A14,SEARCH(\">\",'CFR - XML import'!$A14,1)+1,SEARCH(\"/\",'CFR - XML import'!$A14,1)-SEARCH(\">\",'CFR - XML import'!$A14,1)-2))","v":0},{"$f":"IF($B$1=\"SIMS\",IF(ISERROR(FIND(F$3,'CFR - XML import'!$A14)),0,VALUE(MID('CFR - XML import'!$A14,15,10))),IF(ISERROR(FIND(F$3,'CFR - XML import'!$A14)),0,VALUE(MID('CFR - XML import'!$A14,11,10))))","v":"00:00:00"},{"$f":"IF(ISERROR(FIND(G$3,'CFR - XML import'!$A14)),0,VALUE(MID('CFR - XML import'!$A14,SEARCH(\">\",'CFR - XML import'!$A14,1)+1,SEARCH(\"/\",'CFR - XML import'!$A14,1)-SEARCH(\">\",'CFR - XML import'!$A14,1)-2)))","v":0},{"$f":"IF(ISERROR(FIND(H$3,'CFR - XML import'!$A14)),0,VALUE(MID('CFR - XML import'!$A14,SEARCH(\">\",'CFR - XML import'!$A14,1)+1,SEARCH(\"/\",'CFR - XML import'!$A14,1)-SEARCH(\">\",'CFR - XML import'!$A14,1)-2)))","v":0},{"$f":"IF(ISERROR(FIND(I$3,'CFR - XML import'!$A14)),0,VALUE(MID('CFR - XML import'!$A14,SEARCH(\">\",'CFR - XML import'!$A14,1)+1,SEARCH(\"/\",'CFR - XML import'!$A14,1)-SEARCH(\">\",'CFR - XML import'!$A14,1)-2)))","v":0},{"$f":"IF(ISERROR(FIND(J$3,'CFR - XML import'!$A14)),0,VALUE(MID('CFR - XML import'!$A14,SEARCH(\">\",'CFR - XML import'!$A14,1)+1,SEARCH(\"/\",'CFR - XML import'!$A14,1)-SEARCH(\">\",'CFR - XML import'!$A14,1)-2)))","v":0},{"$f":"IF(ISERROR(FIND(K$3,'CFR - XML import'!$A14)),0,VALUE(MID('CFR - XML import'!$A14,SEARCH(\">\",'CFR - XML import'!$A14,1)+1,SEARCH(\"/\",'CFR - XML import'!$A14,1)-SEARCH(\">\",'CFR - XML import'!$A14,1)-2)))","v":0},{"$f":"IF(ISERROR(FIND(L$3,'CFR - XML import'!$A14)),0,VALUE(MID('CFR - XML import'!$A14,SEARCH(\">\",'CFR - XML import'!$A14,1)+1,SEARCH(\"/\",'CFR - XML import'!$A14,1)-SEARCH(\">\",'CFR - XML import'!$A14,1)-2)))","v":0},{"$f":"IF(ISERROR(FIND(M$3,'CFR - XML import'!$A14)),0,VALUE(MID('CFR - XML import'!$A14,SEARCH(\">\",'CFR - XML import'!$A14,1)+1,SEARCH(\"/\",'CFR - XML import'!$A14,1)-SEARCH(\">\",'CFR - XML import'!$A14,1)-2)))","v":0},{"$f":"IF(ISERROR(FIND(N$3,'CFR - XML import'!$A14)),0,VALUE(MID('CFR - XML import'!$A14,SEARCH(\">\",'CFR - XML import'!$A14,1)+1,SEARCH(\"/\",'CFR - XML import'!$A14,1)-SEARCH(\">\",'CFR - XML import'!$A14,1)-2)))","v":0},{"$f":"IF(ISERROR(FIND(O$3,'CFR - XML import'!$A14)),0,VALUE(MID('CFR - XML import'!$A14,SEARCH(\">\",'CFR - XML import'!$A14,1)+1,SEARCH(\"/\",'CFR - XML import'!$A14,1)-SEARCH(\">\",'CFR - XML import'!$A14,1)-2)))","v":0},{"$f":"IF(ISERROR(FIND(P$3,'CFR - XML import'!$A14)),0,VALUE(MID('CFR - XML import'!$A14,SEARCH(\">\",'CFR - XML import'!$A14,1)+1,SEARCH(\"/\",'CFR - XML import'!$A14,1)-SEARCH(\">\",'CFR - XML import'!$A14,1)-2)))","v":0},{"$f":"IF(ISERROR(FIND(Q$3,'CFR - XML import'!$A14)),0,VALUE(MID('CFR - XML import'!$A14,SEARCH(\">\",'CFR - XML import'!$A14,1)+1,SEARCH(\"/\",'CFR - XML import'!$A14,1)-SEARCH(\">\",'CFR - XML import'!$A14,1)-2)))","v":0},{"$f":"IF(ISERROR(FIND(R$3,'CFR - XML import'!$A14)),0,VALUE(MID('CFR - XML import'!$A14,SEARCH(\">\",'CFR - XML import'!$A14,1)+1,SEARCH(\"/\",'CFR - XML import'!$A14,1)-SEARCH(\">\",'CFR - XML import'!$A14,1)-2)))","v":0},{"$f":"IF(ISERROR(FIND(S$3,'CFR - XML import'!$A14)),0,VALUE(MID('CFR - XML import'!$A14,SEARCH(\">\",'CFR - XML import'!$A14,1)+1,SEARCH(\"/\",'CFR - XML import'!$A14,1)-SEARCH(\">\",'CFR - XML import'!$A14,1)-2)))","v":0},{"$f":"IF(ISERROR(FIND(T$3,'CFR - XML import'!$A14)),0,VALUE(MID('CFR - XML import'!$A14,SEARCH(\">\",'CFR - XML import'!$A14,1)+1,SEARCH(\"/\",'CFR - XML import'!$A14,1)-SEARCH(\">\",'CFR - XML import'!$A14,1)-2)))","v":0},{"$f":"IF(ISERROR(FIND(U$3,'CFR - XML import'!$A14)),0,VALUE(MID('CFR - XML import'!$A14,SEARCH(\">\",'CFR - XML import'!$A14,1)+1,SEARCH(\"/\",'CFR - XML import'!$A14,1)-SEARCH(\">\",'CFR - XML import'!$A14,1)-2)))","v":0},{"$f":"IF(ISERROR(FIND(V$3,'CFR - XML import'!$A14)),0,VALUE(MID('CFR - XML import'!$A14,SEARCH(\">\",'CFR - XML import'!$A14,1)+1,SEARCH(\"/\",'CFR - XML import'!$A14,1)-SEARCH(\">\",'CFR - XML import'!$A14,1)-2)))","v":0},{"$f":"IF(ISERROR(FIND(W$3,'CFR - XML import'!$A14)),0,VALUE(MID('CFR - XML import'!$A14,SEARCH(\">\",'CFR - XML import'!$A14,1)+1,SEARCH(\"/\",'CFR - XML import'!$A14,1)-SEARCH(\">\",'CFR - XML import'!$A14,1)-2)))","v":0},null,{"$f":"IF(ISERROR(FIND(Y$3,'CFR - XML import'!$A14)),0,VALUE(MID('CFR - XML import'!$A14,SEARCH(\">\",'CFR - XML import'!$A14,1)+1,SEARCH(\"/\",'CFR - XML import'!$A14,1)-SEARCH(\">\",'CFR - XML import'!$A14,1)-2)))","v":0},{"$f":"IF(ISERROR(FIND(Z$3,'CFR - XML import'!$A14)),0,VALUE(MID('CFR - XML import'!$A14,SEARCH(\">\",'CFR - XML import'!$A14,1)+1,SEARCH(\"/\",'CFR - XML import'!$A14,1)-SEARCH(\">\",'CFR - XML import'!$A14,1)-2)))","v":0},{"$f":"IF(ISERROR(FIND(AA$3,'CFR - XML import'!$A14)),0,VALUE(MID('CFR - XML import'!$A14,SEARCH(\">\",'CFR - XML import'!$A14,1)+1,SEARCH(\"/\",'CFR - XML import'!$A14,1)-SEARCH(\">\",'CFR - XML import'!$A14,1)-2)))","v":0},{"$f":"IF(ISERROR(FIND(AB$3,'CFR - XML import'!$A14)),0,VALUE(MID('CFR - XML import'!$A14,SEARCH(\">\",'CFR - XML import'!$A14,1)+1,SEARCH(\"/\",'CFR - XML import'!$A14,1)-SEARCH(\">\",'CFR - XML import'!$A14,1)-2)))","v":0},{"$f":"IF(ISERROR(FIND(AC$3,'CFR - XML import'!$A14)),0,VALUE(MID('CFR - XML import'!$A14,SEARCH(\">\",'CFR - XML import'!$A14,1)+1,SEARCH(\"/\",'CFR - XML import'!$A14,1)-SEARCH(\">\",'CFR - XML import'!$A14,1)-2)))","v":0},{"$f":"IF(ISERROR(FIND(AD$3,'CFR - XML import'!$A14)),0,VALUE(MID('CFR - XML import'!$A14,SEARCH(\">\",'CFR - XML import'!$A14,1)+1,SEARCH(\"/\",'CFR - XML import'!$A14,1)-SEARCH(\">\",'CFR - XML import'!$A14,1)-2)))","v":0},{"$f":"IF(ISERROR(FIND(AE$3,'CFR - XML import'!$A14)),0,VALUE(MID('CFR - XML import'!$A14,SEARCH(\">\",'CFR - XML import'!$A14,1)+1,SEARCH(\"/\",'CFR - XML import'!$A14,1)-SEARCH(\">\",'CFR - XML import'!$A14,1)-2)))","v":0},{"$f":"IF(ISERROR(FIND(AF$3,'CFR - XML import'!$A14)),0,VALUE(MID('CFR - XML import'!$A14,SEARCH(\">\",'CFR - XML import'!$A14,1)+1,SEARCH(\"/\",'CFR - XML import'!$A14,1)-SEARCH(\">\",'CFR - XML import'!$A14,1)-2)))","v":0},{"$f":"IF(ISERROR(FIND(AG$3,'CFR - XML import'!$A14)),0,VALUE(MID('CFR - XML import'!$A14,SEARCH(\">\",'CFR - XML import'!$A14,1)+1,SEARCH(\"/\",'CFR - XML import'!$A14,1)-SEARCH(\">\",'CFR - XML import'!$A14,1)-2)))","v":0},{"$f":"IF(ISERROR(FIND(AH$3,'CFR - XML import'!$A14)),0,VALUE(MID('CFR - XML import'!$A14,SEARCH(\">\",'CFR - XML import'!$A14,1)+1,SEARCH(\"/\",'CFR - XML import'!$A14,1)-SEARCH(\">\",'CFR - XML import'!$A14,1)-2)))","v":0},{"$f":"IF(ISERROR(FIND(AI$3,'CFR - XML import'!$A14)),0,VALUE(MID('CFR - XML import'!$A14,SEARCH(\">\",'CFR - XML import'!$A14,1)+1,SEARCH(\"/\",'CFR - XML import'!$A14,1)-SEARCH(\">\",'CFR - XML import'!$A14,1)-2)))","v":0},{"$f":"IF(ISERROR(FIND(AJ$3,'CFR - XML import'!$A14)),0,VALUE(MID('CFR - XML import'!$A14,SEARCH(\">\",'CFR - XML import'!$A14,1)+1,SEARCH(\"/\",'CFR - XML import'!$A14,1)-SEARCH(\">\",'CFR - XML import'!$A14,1)-2)))","v":0},{"$f":"IF(ISERROR(FIND(AK$3,'CFR - XML import'!$A14)),0,VALUE(MID('CFR - XML import'!$A14,SEARCH(\">\",'CFR - XML import'!$A14,1)+1,SEARCH(\"/\",'CFR - XML import'!$A14,1)-SEARCH(\">\",'CFR - XML import'!$A14,1)-2)))","v":0},{"$f":"IF(ISERROR(FIND(AL$3,'CFR - XML import'!$A14)),0,VALUE(MID('CFR - XML import'!$A14,SEARCH(\">\",'CFR - XML import'!$A14,1)+1,SEARCH(\"/\",'CFR - XML import'!$A14,1)-SEARCH(\">\",'CFR - XML import'!$A14,1)-2)))","v":0},{"$f":"IF(ISERROR(FIND(AM$3,'CFR - XML import'!$A14)),0,VALUE(MID('CFR - XML import'!$A14,SEARCH(\">\",'CFR - XML import'!$A14,1)+1,SEARCH(\"/\",'CFR - XML import'!$A14,1)-SEARCH(\">\",'CFR - XML import'!$A14,1)-2)))","v":0},{"$f":"IF(ISERROR(FIND(AN$3,'CFR - XML import'!$A14)),0,VALUE(MID('CFR - XML import'!$A14,SEARCH(\">\",'CFR - XML import'!$A14,1)+1,SEARCH(\"/\",'CFR - XML import'!$A14,1)-SEARCH(\">\",'CFR - XML import'!$A14,1)-2)))","v":0},{"$f":"IF(ISERROR(FIND(AO$3,'CFR - XML import'!$A14)),0,VALUE(MID('CFR - XML import'!$A14,SEARCH(\">\",'CFR - XML import'!$A14,1)+1,SEARCH(\"/\",'CFR - XML import'!$A14,1)-SEARCH(\">\",'CFR - XML import'!$A14,1)-2)))","v":0},{"$f":"IF(ISERROR(FIND(AP$3,'CFR - XML import'!$A14)),0,VALUE(MID('CFR - XML import'!$A14,SEARCH(\">\",'CFR - XML import'!$A14,1)+1,SEARCH(\"/\",'CFR - XML import'!$A14,1)-SEARCH(\">\",'CFR - XML import'!$A14,1)-2)))","v":0},{"$f":"IF(ISERROR(FIND(AQ$3,'CFR - XML import'!$A14)),0,VALUE(MID('CFR - XML import'!$A14,SEARCH(\">\",'CFR - XML import'!$A14,1)+1,SEARCH(\"/\",'CFR - XML import'!$A14,1)-SEARCH(\">\",'CFR - XML import'!$A14,1)-2)))","v":0},{"$f":"IF(ISERROR(FIND(AR$3,'CFR - XML import'!$A14)),0,VALUE(MID('CFR - XML import'!$A14,SEARCH(\">\",'CFR - XML import'!$A14,1)+1,SEARCH(\"/\",'CFR - XML import'!$A14,1)-SEARCH(\">\",'CFR - XML import'!$A14,1)-2)))","v":0},{"$f":"IF(ISERROR(FIND(AS$3,'CFR - XML import'!$A14)),0,VALUE(MID('CFR - XML import'!$A14,SEARCH(\">\",'CFR - XML import'!$A14,1)+1,SEARCH(\"/\",'CFR - XML import'!$A14,1)-SEARCH(\">\",'CFR - XML import'!$A14,1)-2)))","v":0},{"$f":"IF(ISERROR(FIND(AT$3,'CFR - XML import'!$A14)),0,VALUE(MID('CFR - XML import'!$A14,SEARCH(\">\",'CFR - XML import'!$A14,1)+1,SEARCH(\"/\",'CFR - XML import'!$A14,1)-SEARCH(\">\",'CFR - XML import'!$A14,1)-2)))","v":0},{"$f":"IF(ISERROR(FIND(AU$3,'CFR - XML import'!$A14)),0,VALUE(MID('CFR - XML import'!$A14,SEARCH(\">\",'CFR - XML import'!$A14,1)+1,SEARCH(\"/\",'CFR - XML import'!$A14,1)-SEARCH(\">\",'CFR - XML import'!$A14,1)-2)))","v":0},{"$f":"IF(ISERROR(FIND(AV$3,'CFR - XML import'!$A14)),0,VALUE(MID('CFR - XML import'!$A14,SEARCH(\">\",'CFR - XML import'!$A14,1)+1,SEARCH(\"/\",'CFR - XML import'!$A14,1)-SEARCH(\">\",'CFR - XML import'!$A14,1)-2)))","v":0},{"$f":"IF(ISERROR(FIND(AW$3,'CFR - XML import'!$A14)),0,VALUE(MID('CFR - XML import'!$A14,SEARCH(\">\",'CFR - XML import'!$A14,1)+1,SEARCH(\"/\",'CFR - XML import'!$A14,1)-SEARCH(\">\",'CFR - XML import'!$A14,1)-2)))","v":0},{"$f":"IF(ISERROR(FIND(AX$3,'CFR - XML import'!$A14)),0,VALUE(MID('CFR - XML import'!$A14,SEARCH(\">\",'CFR - XML import'!$A14,1)+1,SEARCH(\"/\",'CFR - XML import'!$A14,1)-SEARCH(\">\",'CFR - XML import'!$A14,1)-2)))","v":0},{"$f":"IF(ISERROR(FIND(AY$3,'CFR - XML import'!$A14)),0,VALUE(MID('CFR - XML import'!$A14,SEARCH(\">\",'CFR - XML import'!$A14,1)+1,SEARCH(\"/\",'CFR - XML import'!$A14,1)-SEARCH(\">\",'CFR - XML import'!$A14,1)-2)))","v":0},{"$f":"IF(ISERROR(FIND(AZ$3,'CFR - XML import'!$A14)),0,VALUE(MID('CFR - XML import'!$A14,SEARCH(\">\",'CFR - XML import'!$A14,1)+1,SEARCH(\"/\",'CFR - XML import'!$A14,1)-SEARCH(\">\",'CFR - XML import'!$A14,1)-2)))","v":0},{"$f":"IF(ISERROR(FIND(BA$3,'CFR - XML import'!$A14)),0,VALUE(MID('CFR - XML import'!$A14,SEARCH(\">\",'CFR - XML import'!$A14,1)+1,SEARCH(\"/\",'CFR - XML import'!$A14,1)-SEARCH(\">\",'CFR - XML import'!$A14,1)-2)))","v":0},{"$f":"IF(ISERROR(FIND(BB$3,'CFR - XML import'!$A14)),0,VALUE(MID('CFR - XML import'!$A14,SEARCH(\">\",'CFR - XML import'!$A14,1)+1,SEARCH(\"/\",'CFR - XML import'!$A14,1)-SEARCH(\">\",'CFR - XML import'!$A14,1)-2)))","v":0},{"$f":"IF(ISERROR(FIND(BC$3,'CFR - XML import'!$A14)),0,VALUE(MID('CFR - XML import'!$A14,SEARCH(\">\",'CFR - XML import'!$A14,1)+1,SEARCH(\"/\",'CFR - XML import'!$A14,1)-SEARCH(\">\",'CFR - XML import'!$A14,1)-2)))","v":0},{"$f":"IF(ISERROR(FIND(BD$3,'CFR - XML import'!$A14)),0,VALUE(MID('CFR - XML import'!$A14,SEARCH(\">\",'CFR - XML import'!$A14,1)+1,SEARCH(\"/\",'CFR - XML import'!$A14,1)-SEARCH(\">\",'CFR - XML import'!$A14,1)-2)))","v":0},{"$f":"IF(ISERROR(FIND(BE$3,'CFR - XML import'!$A14)),0,VALUE(MID('CFR - XML import'!$A14,SEARCH(\">\",'CFR - XML import'!$A14,1)+1,SEARCH(\"/\",'CFR - XML import'!$A14,1)-SEARCH(\">\",'CFR - XML import'!$A14,1)-2)))","v":0},{"$f":"IF(ISERROR(FIND(BF$3,'CFR - XML import'!$A14)),0,VALUE(MID('CFR - XML import'!$A14,SEARCH(\">\",'CFR - XML import'!$A14,1)+1,SEARCH(\"/\",'CFR - XML import'!$A14,1)-SEARCH(\">\",'CFR - XML import'!$A14,1)-2)))","v":0},{"$f":"IF(ISERROR(FIND(BG$3,'CFR - XML import'!$A14)),0,VALUE(MID('CFR - XML import'!$A14,SEARCH(\">\",'CFR - XML import'!$A14,1)+1,SEARCH(\"/\",'CFR - XML import'!$A14,1)-SEARCH(\">\",'CFR - XML import'!$A14,1)-2)))","v":0},{"$f":"IF(ISERROR(FIND(BH$3,'CFR - XML import'!$A14)),0,VALUE(MID('CFR - XML import'!$A14,SEARCH(\">\",'CFR - XML import'!$A14,1)+1,SEARCH(\"/\",'CFR - XML import'!$A14,1)-SEARCH(\">\",'CFR - XML import'!$A14,1)-2)))","v":0},{"$f":"IF(ISERROR(FIND(BI$3,'CFR - XML import'!$A14)),0,VALUE(MID('CFR - XML import'!$A14,SEARCH(\">\",'CFR - XML import'!$A14,1)+1,SEARCH(\"/\",'CFR - XML import'!$A14,1)-SEARCH(\">\",'CFR - XML import'!$A14,1)-2)))","v":0},{"$f":"IF(ISERROR(FIND(BJ$3,'CFR - XML import'!$A14)),0,VALUE(MID('CFR - XML import'!$A14,SEARCH(\">\",'CFR - XML import'!$A14,1)+1,SEARCH(\"/\",'CFR - XML import'!$A14,1)-SEARCH(\">\",'CFR - XML import'!$A14,1)-2)))","v":0},{"$f":"IF(ISERROR(FIND(BK$3,'CFR - XML import'!$A14)),0,VALUE(MID('CFR - XML import'!$A14,SEARCH(\">\",'CFR - XML import'!$A14,1)+1,SEARCH(\"/\",'CFR - XML import'!$A14,1)-SEARCH(\">\",'CFR - XML import'!$A14,1)-2)))","v":0},{"$f":"IF(ISERROR(FIND(BL$3,'CFR - XML import'!$A14)),0,VALUE(MID('CFR - XML import'!$A14,SEARCH(\">\",'CFR - XML import'!$A14,1)+1,SEARCH(\"/\",'CFR - XML import'!$A14,1)-SEARCH(\">\",'CFR - XML import'!$A14,1)-2)))","v":0},{"$f":"IF(ISERROR(FIND(BM$3,'CFR - XML import'!$A14)),0,VALUE(MID('CFR - XML import'!$A14,SEARCH(\">\",'CFR - XML import'!$A14,1)+1,SEARCH(\"/\",'CFR - XML import'!$A14,1)-SEARCH(\">\",'CFR - XML import'!$A14,1)-2)))","v":0},{"$f":"IF(ISERROR(FIND(BN$3,'CFR - XML import'!$A14)),0,VALUE(MID('CFR - XML import'!$A14,SEARCH(\">\",'CFR - XML import'!$A14,1)+1,SEARCH(\"/\",'CFR - XML import'!$A14,1)-SEARCH(\">\",'CFR - XML import'!$A14,1)-2)))","v":0},{"$f":"IF(ISERROR(FIND(BO$3,'CFR - XML import'!$A14)),0,VALUE(MID('CFR - XML import'!$A14,SEARCH(\">\",'CFR - XML import'!$A14,1)+1,SEARCH(\"/\",'CFR - XML import'!$A14,1)-SEARCH(\">\",'CFR - XML import'!$A14,1)-2)))","v":0},{"$f":"IF(ISERROR(FIND(BP$3,'CFR - XML import'!$A14)),0,VALUE(MID('CFR - XML import'!$A14,SEARCH(\">\",'CFR - XML import'!$A14,1)+1,SEARCH(\"/\",'CFR - XML import'!$A14,1)-SEARCH(\">\",'CFR - XML import'!$A14,1)-2)))","v":0},{"$f":"IF(ISERROR(FIND(BQ$3,'CFR - XML import'!$A14)),0,VALUE(MID('CFR - XML import'!$A14,SEARCH(\">\",'CFR - XML import'!$A14,1)+1,SEARCH(\"/\",'CFR - XML import'!$A14,1)-SEARCH(\">\",'CFR - XML import'!$A14,1)-2)))","v":0},{"$f":"IF(ISERROR(FIND(BR$3,'CFR - XML import'!$A14)),0,VALUE(MID('CFR - XML import'!$A14,SEARCH(\">\",'CFR - XML import'!$A14,1)+1,SEARCH(\"/\",'CFR - XML import'!$A14,1)-SEARCH(\">\",'CFR - XML import'!$A14,1)-2)))","v":0},{"$f":"IF(ISERROR(FIND(BS$3,'CFR - XML import'!$A14)),0,VALUE(MID('CFR - XML import'!$A14,SEARCH(\">\",'CFR - XML import'!$A14,1)+1,SEARCH(\"/\",'CFR - XML import'!$A14,1)-SEARCH(\">\",'CFR - XML import'!$A14,1)-2)))","v":0},{"$f":"IF(ISERROR(FIND(BT$3,'CFR - XML import'!$A14)),0,VALUE(MID('CFR - XML import'!$A14,SEARCH(\">\",'CFR - XML import'!$A14,1)+1,SEARCH(\"/\",'CFR - XML import'!$A14,1)-SEARCH(\">\",'CFR - XML import'!$A14,1)-2)))","v":0},{"$f":"IF(ISERROR(FIND(BU$3,'CFR - XML import'!$A14)),0,VALUE(MID('CFR - XML import'!$A14,SEARCH(\">\",'CFR - XML import'!$A14,1)+1,SEARCH(\"/\",'CFR - XML import'!$A14,1)-SEARCH(\">\",'CFR - XML import'!$A14,1)-2)))","v":0},{"$f":"IF(ISERROR(FIND(BV$3,'CFR - XML import'!$A14)),0,VALUE(MID('CFR - XML import'!$A14,SEARCH(\">\",'CFR - XML import'!$A14,1)+1,SEARCH(\"/\",'CFR - XML import'!$A14,1)-SEARCH(\">\",'CFR - XML import'!$A14,1)-2)))","v":0},{"$f":"IF(ISERROR(FIND(BW$3,'CFR - XML import'!$A14)),0,VALUE(MID('CFR - XML import'!$A14,SEARCH(\">\",'CFR - XML import'!$A14,1)+1,SEARCH(\"/\",'CFR - XML import'!$A14,1)-SEARCH(\">\",'CFR - XML import'!$A14,1)-2)))","v":0},{"$f":"IF(ISERROR(FIND(BX$3,'CFR - XML import'!$A14)),0,VALUE(MID('CFR - XML import'!$A14,SEARCH(\">\",'CFR - XML import'!$A14,1)+1,SEARCH(\"/\",'CFR - XML import'!$A14,1)-SEARCH(\">\",'CFR - XML import'!$A14,1)-2)))","v":0},{"$f":"IF(ISERROR(FIND(BY$3,'CFR - XML import'!$A14)),0,VALUE(MID('CFR - XML import'!$A14,SEARCH(\">\",'CFR - XML import'!$A14,1)+1,SEARCH(\"/\",'CFR - XML import'!$A14,1)-SEARCH(\">\",'CFR - XML import'!$A14,1)-2)))","v":0},{"$f":"IF(ISERROR(FIND(BZ$3,'CFR - XML import'!$A14)),0,VALUE(MID('CFR - XML import'!$A14,SEARCH(\">\",'CFR - XML import'!$A14,1)+1,SEARCH(\"/\",'CFR - XML import'!$A14,1)-SEARCH(\">\",'CFR - XML import'!$A14,1)-2)))","v":0},null,null,null,null,null,null,{"$f":"IF(ISERROR(IF(MID('CFR - XML import'!$A14,LEN($CF$4)+1,LEN('CFR - XML import'!$A14)-(2*LEN($CF$4)+1))=\"RMMS\",1,IF(MID('CFR - XML import'!$A14,LEN(\"    <InputSystem>\")+1,LEN('CFR - XML import'!$A14)-(LEN(\"    <InputSystem>\")+LEN($CF$4)+1))=\"SIMS\",2,0))),0,IF(MID('CFR - XML import'!$A14,LEN($CF$4)+1,LEN('CFR - XML import'!$A14)-(2*LEN($CF$4)+1))=\"RMMS\",1,IF(MID('CFR - XML import'!$A14,LEN(\"    <InputSystem>\")+1,LEN('CFR - XML import'!$A14)-(LEN(\"    <InputSystem>\")+LEN($CF$4)+1))=\"SIMS\",2,0)))","v":0},{"$f":"IF(ISERROR(FIND(CH$3,'CFR - XML import'!$A14)),0,MID('CFR - XML import'!$A14,SEARCH(\">\",'CFR - XML import'!$A14,1)+1,SEARCH(\"/\",'CFR - XML import'!$A14,1)-SEARCH(\">\",'CFR - XML import'!$A14,1)-2))","v":0},{"$f":"IF(ISERROR(FIND(CI$3,'CFR - XML import'!$A14)),0,MID('CFR - XML import'!$A14,SEARCH(\">\",'CFR - XML import'!$A14,1)+1,SEARCH(\"/\",'CFR - XML import'!$A14,1)-SEARCH(\">\",'CFR - XML import'!$A14,1)-2))","v":0},{"$f":"IF(ISERROR(FIND(CJ$3,'CFR - XML import'!$A14)),0,MID('CFR - XML import'!$A14,SEARCH(\">\",'CFR - XML import'!$A14,1)+1,SEARCH(\"/\",'CFR - XML import'!$A14,1)-SEARCH(\">\",'CFR - XML import'!$A14,1)-2))","v":0},{"$f":"IF(ISERROR(FIND(CK$3,'CFR - XML import'!$A14)),0,MID('CFR - XML import'!$A14,SEARCH(\">\",'CFR - XML import'!$A14,1)+1,SEARCH(\"/\",'CFR - XML import'!$A14,1)-SEARCH(\">\",'CFR - XML import'!$A14,1)-2))","v":0},{"$f":"IF(ISERROR(FIND(CL$3,'CFR - XML import'!$A14)),0,MID('CFR - XML import'!$A14,SEARCH(\">\",'CFR - XML import'!$A14,1)+1,SEARCH(\"/\",'CFR - XML import'!$A14,1)-SEARCH(\">\",'CFR - XML import'!$A14,1)-2))","v":0}]
[{"$f":"IF(AND('CFR - XML import'!A15<>\"\",LEFT('CFR - XML import'!A15,1)<>\"<\",LEFT('CFR - XML import'!A15,3)<>\"  <\",LEFT('CFR - XML import'!A15,5)<>\"    <\",LEFT('CFR - XML import'!A15,7)<>\"      <\",LEFT('CFR - XML import'!A15,9)<>\"        <\",$B$1=\"SIMS\"),'CFR - XML import'!A15,IF(AND(LEFT('CFR - XML import'!A15,9)=\"<Details>\",$B$1=\"RM\"),'CFR - XML import'!A15,\"\"))","v":""},{"$f":"IF(ISERROR(FIND(B$3,'CFR - XML import'!$A15)),0,VALUE(MID('CFR - XML import'!$A15,SEARCH(\">\",'CFR - XML import'!$A15,1)+1,SEARCH(\"/\",'CFR - XML import'!$A15,1)-SEARCH(\">\",'CFR - XML import'!$A15,1)-2)))","v":0},null,{"$f":"IF(ISERROR(FIND(D$3,'CFR - XML import'!$A15)),0,MID('CFR - XML import'!$A15,SEARCH(\">\",'CFR - XML import'!$A15,1)+1,SEARCH(\"/\",'CFR - XML import'!$A15,1)-SEARCH(\">\",'CFR - XML import'!$A15,1)-2))","v":0},{"$f":"IF(ISERROR(FIND(E$3,'CFR - XML import'!$A15)),0,MID('CFR - XML import'!$A15,SEARCH(\">\",'CFR - XML import'!$A15,1)+1,SEARCH(\"/\",'CFR - XML import'!$A15,1)-SEARCH(\">\",'CFR - XML import'!$A15,1)-2))","v":0},{"$f":"IF($B$1=\"SIMS\",IF(ISERROR(FIND(F$3,'CFR - XML import'!$A15)),0,VALUE(MID('CFR - XML import'!$A15,15,10))),IF(ISERROR(FIND(F$3,'CFR - XML import'!$A15)),0,VALUE(MID('CFR - XML import'!$A15,11,10))))","v":"00:00:00"},{"$f":"IF(ISERROR(FIND(G$3,'CFR - XML import'!$A15)),0,VALUE(MID('CFR - XML import'!$A15,SEARCH(\">\",'CFR - XML import'!$A15,1)+1,SEARCH(\"/\",'CFR - XML import'!$A15,1)-SEARCH(\">\",'CFR - XML import'!$A15,1)-2)))","v":0},{"$f":"IF(ISERROR(FIND(H$3,'CFR - XML import'!$A15)),0,VALUE(MID('CFR - XML import'!$A15,SEARCH(\">\",'CFR - XML import'!$A15,1)+1,SEARCH(\"/\",'CFR - XML import'!$A15,1)-SEARCH(\">\",'CFR - XML import'!$A15,1)-2)))","v":0},{"$f":"IF(ISERROR(FIND(I$3,'CFR - XML import'!$A15)),0,VALUE(MID('CFR - XML import'!$A15,SEARCH(\">\",'CFR - XML import'!$A15,1)+1,SEARCH(\"/\",'CFR - XML import'!$A15,1)-SEARCH(\">\",'CFR - XML import'!$A15,1)-2)))","v":0},{"$f":"IF(ISERROR(FIND(J$3,'CFR - XML import'!$A15)),0,VALUE(MID('CFR - XML import'!$A15,SEARCH(\">\",'CFR - XML import'!$A15,1)+1,SEARCH(\"/\",'CFR - XML import'!$A15,1)-SEARCH(\">\",'CFR - XML import'!$A15,1)-2)))","v":0},{"$f":"IF(ISERROR(FIND(K$3,'CFR - XML import'!$A15)),0,VALUE(MID('CFR - XML import'!$A15,SEARCH(\">\",'CFR - XML import'!$A15,1)+1,SEARCH(\"/\",'CFR - XML import'!$A15,1)-SEARCH(\">\",'CFR - XML import'!$A15,1)-2)))","v":0},{"$f":"IF(ISERROR(FIND(L$3,'CFR - XML import'!$A15)),0,VALUE(MID('CFR - XML import'!$A15,SEARCH(\">\",'CFR - XML import'!$A15,1)+1,SEARCH(\"/\",'CFR - XML import'!$A15,1)-SEARCH(\">\",'CFR - XML import'!$A15,1)-2)))","v":0},{"$f":"IF(ISERROR(FIND(M$3,'CFR - XML import'!$A15)),0,VALUE(MID('CFR - XML import'!$A15,SEARCH(\">\",'CFR - XML import'!$A15,1)+1,SEARCH(\"/\",'CFR - XML import'!$A15,1)-SEARCH(\">\",'CFR - XML import'!$A15,1)-2)))","v":0},{"$f":"IF(ISERROR(FIND(N$3,'CFR - XML import'!$A15)),0,VALUE(MID('CFR - XML import'!$A15,SEARCH(\">\",'CFR - XML import'!$A15,1)+1,SEARCH(\"/\",'CFR - XML import'!$A15,1)-SEARCH(\">\",'CFR - XML import'!$A15,1)-2)))","v":0},{"$f":"IF(ISERROR(FIND(O$3,'CFR - XML import'!$A15)),0,VALUE(MID('CFR - XML import'!$A15,SEARCH(\">\",'CFR - XML import'!$A15,1)+1,SEARCH(\"/\",'CFR - XML import'!$A15,1)-SEARCH(\">\",'CFR - XML import'!$A15,1)-2)))","v":0},{"$f":"IF(ISERROR(FIND(P$3,'CFR - XML import'!$A15)),0,VALUE(MID('CFR - XML import'!$A15,SEARCH(\">\",'CFR - XML import'!$A15,1)+1,SEARCH(\"/\",'CFR - XML import'!$A15,1)-SEARCH(\">\",'CFR - XML import'!$A15,1)-2)))","v":0},{"$f":"IF(ISERROR(FIND(Q$3,'CFR - XML import'!$A15)),0,VALUE(MID('CFR - XML import'!$A15,SEARCH(\">\",'CFR - XML import'!$A15,1)+1,SEARCH(\"/\",'CFR - XML import'!$A15,1)-SEARCH(\">\",'CFR - XML import'!$A15,1)-2)))","v":0},{"$f":"IF(ISERROR(FIND(R$3,'CFR - XML import'!$A15)),0,VALUE(MID('CFR - XML import'!$A15,SEARCH(\">\",'CFR - XML import'!$A15,1)+1,SEARCH(\"/\",'CFR - XML import'!$A15,1)-SEARCH(\">\",'CFR - XML import'!$A15,1)-2)))","v":0},{"$f":"IF(ISERROR(FIND(S$3,'CFR - XML import'!$A15)),0,VALUE(MID('CFR - XML import'!$A15,SEARCH(\">\",'CFR - XML import'!$A15,1)+1,SEARCH(\"/\",'CFR - XML import'!$A15,1)-SEARCH(\">\",'CFR - XML import'!$A15,1)-2)))","v":0},{"$f":"IF(ISERROR(FIND(T$3,'CFR - XML import'!$A15)),0,VALUE(MID('CFR - XML import'!$A15,SEARCH(\">\",'CFR - XML import'!$A15,1)+1,SEARCH(\"/\",'CFR - XML import'!$A15,1)-SEARCH(\">\",'CFR - XML import'!$A15,1)-2)))","v":0},{"$f":"IF(ISERROR(FIND(U$3,'CFR - XML import'!$A15)),0,VALUE(MID('CFR - XML import'!$A15,SEARCH(\">\",'CFR - XML import'!$A15,1)+1,SEARCH(\"/\",'CFR - XML import'!$A15,1)-SEARCH(\">\",'CFR - XML import'!$A15,1)-2)))","v":0},{"$f":"IF(ISERROR(FIND(V$3,'CFR - XML import'!$A15)),0,VALUE(MID('CFR - XML import'!$A15,SEARCH(\">\",'CFR - XML import'!$A15,1)+1,SEARCH(\"/\",'CFR - XML import'!$A15,1)-SEARCH(\">\",'CFR - XML import'!$A15,1)-2)))","v":0},{"$f":"IF(ISERROR(FIND(W$3,'CFR - XML import'!$A15)),0,VALUE(MID('CFR - XML import'!$A15,SEARCH(\">\",'CFR - XML import'!$A15,1)+1,SEARCH(\"/\",'CFR - XML import'!$A15,1)-SEARCH(\">\",'CFR - XML import'!$A15,1)-2)))","v":0},null,{"$f":"IF(ISERROR(FIND(Y$3,'CFR - XML import'!$A15)),0,VALUE(MID('CFR - XML import'!$A15,SEARCH(\">\",'CFR - XML import'!$A15,1)+1,SEARCH(\"/\",'CFR - XML import'!$A15,1)-SEARCH(\">\",'CFR - XML import'!$A15,1)-2)))","v":0},{"$f":"IF(ISERROR(FIND(Z$3,'CFR - XML import'!$A15)),0,VALUE(MID('CFR - XML import'!$A15,SEARCH(\">\",'CFR - XML import'!$A15,1)+1,SEARCH(\"/\",'CFR - XML import'!$A15,1)-SEARCH(\">\",'CFR - XML import'!$A15,1)-2)))","v":0},{"$f":"IF(ISERROR(FIND(AA$3,'CFR - XML import'!$A15)),0,VALUE(MID('CFR - XML import'!$A15,SEARCH(\">\",'CFR - XML import'!$A15,1)+1,SEARCH(\"/\",'CFR - XML import'!$A15,1)-SEARCH(\">\",'CFR - XML import'!$A15,1)-2)))","v":0},{"$f":"IF(ISERROR(FIND(AB$3,'CFR - XML import'!$A15)),0,VALUE(MID('CFR - XML import'!$A15,SEARCH(\">\",'CFR - XML import'!$A15,1)+1,SEARCH(\"/\",'CFR - XML import'!$A15,1)-SEARCH(\">\",'CFR - XML import'!$A15,1)-2)))","v":0},{"$f":"IF(ISERROR(FIND(AC$3,'CFR - XML import'!$A15)),0,VALUE(MID('CFR - XML import'!$A15,SEARCH(\">\",'CFR - XML import'!$A15,1)+1,SEARCH(\"/\",'CFR - XML import'!$A15,1)-SEARCH(\">\",'CFR - XML import'!$A15,1)-2)))","v":0},{"$f":"IF(ISERROR(FIND(AD$3,'CFR - XML import'!$A15)),0,VALUE(MID('CFR - XML import'!$A15,SEARCH(\">\",'CFR - XML import'!$A15,1)+1,SEARCH(\"/\",'CFR - XML import'!$A15,1)-SEARCH(\">\",'CFR - XML import'!$A15,1)-2)))","v":0},{"$f":"IF(ISERROR(FIND(AE$3,'CFR - XML import'!$A15)),0,VALUE(MID('CFR - XML import'!$A15,SEARCH(\">\",'CFR - XML import'!$A15,1)+1,SEARCH(\"/\",'CFR - XML import'!$A15,1)-SEARCH(\">\",'CFR - XML import'!$A15,1)-2)))","v":0},{"$f":"IF(ISERROR(FIND(AF$3,'CFR - XML import'!$A15)),0,VALUE(MID('CFR - XML import'!$A15,SEARCH(\">\",'CFR - XML import'!$A15,1)+1,SEARCH(\"/\",'CFR - XML import'!$A15,1)-SEARCH(\">\",'CFR - XML import'!$A15,1)-2)))","v":0},{"$f":"IF(ISERROR(FIND(AG$3,'CFR - XML import'!$A15)),0,VALUE(MID('CFR - XML import'!$A15,SEARCH(\">\",'CFR - XML import'!$A15,1)+1,SEARCH(\"/\",'CFR - XML import'!$A15,1)-SEARCH(\">\",'CFR - XML import'!$A15,1)-2)))","v":0},{"$f":"IF(ISERROR(FIND(AH$3,'CFR - XML import'!$A15)),0,VALUE(MID('CFR - XML import'!$A15,SEARCH(\">\",'CFR - XML import'!$A15,1)+1,SEARCH(\"/\",'CFR - XML import'!$A15,1)-SEARCH(\">\",'CFR - XML import'!$A15,1)-2)))","v":0},{"$f":"IF(ISERROR(FIND(AI$3,'CFR - XML import'!$A15)),0,VALUE(MID('CFR - XML import'!$A15,SEARCH(\">\",'CFR - XML import'!$A15,1)+1,SEARCH(\"/\",'CFR - XML import'!$A15,1)-SEARCH(\">\",'CFR - XML import'!$A15,1)-2)))","v":0},{"$f":"IF(ISERROR(FIND(AJ$3,'CFR - XML import'!$A15)),0,VALUE(MID('CFR - XML import'!$A15,SEARCH(\">\",'CFR - XML import'!$A15,1)+1,SEARCH(\"/\",'CFR - XML import'!$A15,1)-SEARCH(\">\",'CFR - XML import'!$A15,1)-2)))","v":0},{"$f":"IF(ISERROR(FIND(AK$3,'CFR - XML import'!$A15)),0,VALUE(MID('CFR - XML import'!$A15,SEARCH(\">\",'CFR - XML import'!$A15,1)+1,SEARCH(\"/\",'CFR - XML import'!$A15,1)-SEARCH(\">\",'CFR - XML import'!$A15,1)-2)))","v":0},{"$f":"IF(ISERROR(FIND(AL$3,'CFR - XML import'!$A15)),0,VALUE(MID('CFR - XML import'!$A15,SEARCH(\">\",'CFR - XML import'!$A15,1)+1,SEARCH(\"/\",'CFR - XML import'!$A15,1)-SEARCH(\">\",'CFR - XML import'!$A15,1)-2)))","v":0},{"$f":"IF(ISERROR(FIND(AM$3,'CFR - XML import'!$A15)),0,VALUE(MID('CFR - XML import'!$A15,SEARCH(\">\",'CFR - XML import'!$A15,1)+1,SEARCH(\"/\",'CFR - XML import'!$A15,1)-SEARCH(\">\",'CFR - XML import'!$A15,1)-2)))","v":0},{"$f":"IF(ISERROR(FIND(AN$3,'CFR - XML import'!$A15)),0,VALUE(MID('CFR - XML import'!$A15,SEARCH(\">\",'CFR - XML import'!$A15,1)+1,SEARCH(\"/\",'CFR - XML import'!$A15,1)-SEARCH(\">\",'CFR - XML import'!$A15,1)-2)))","v":0},{"$f":"IF(ISERROR(FIND(AO$3,'CFR - XML import'!$A15)),0,VALUE(MID('CFR - XML import'!$A15,SEARCH(\">\",'CFR - XML import'!$A15,1)+1,SEARCH(\"/\",'CFR - XML import'!$A15,1)-SEARCH(\">\",'CFR - XML import'!$A15,1)-2)))","v":0},{"$f":"IF(ISERROR(FIND(AP$3,'CFR - XML import'!$A15)),0,VALUE(MID('CFR - XML import'!$A15,SEARCH(\">\",'CFR - XML import'!$A15,1)+1,SEARCH(\"/\",'CFR - XML import'!$A15,1)-SEARCH(\">\",'CFR - XML import'!$A15,1)-2)))","v":0},{"$f":"IF(ISERROR(FIND(AQ$3,'CFR - XML import'!$A15)),0,VALUE(MID('CFR - XML import'!$A15,SEARCH(\">\",'CFR - XML import'!$A15,1)+1,SEARCH(\"/\",'CFR - XML import'!$A15,1)-SEARCH(\">\",'CFR - XML import'!$A15,1)-2)))","v":0},{"$f":"IF(ISERROR(FIND(AR$3,'CFR - XML import'!$A15)),0,VALUE(MID('CFR - XML import'!$A15,SEARCH(\">\",'CFR - XML import'!$A15,1)+1,SEARCH(\"/\",'CFR - XML import'!$A15,1)-SEARCH(\">\",'CFR - XML import'!$A15,1)-2)))","v":0},{"$f":"IF(ISERROR(FIND(AS$3,'CFR - XML import'!$A15)),0,VALUE(MID('CFR - XML import'!$A15,SEARCH(\">\",'CFR - XML import'!$A15,1)+1,SEARCH(\"/\",'CFR - XML import'!$A15,1)-SEARCH(\">\",'CFR - XML import'!$A15,1)-2)))","v":0},{"$f":"IF(ISERROR(FIND(AT$3,'CFR - XML import'!$A15)),0,VALUE(MID('CFR - XML import'!$A15,SEARCH(\">\",'CFR - XML import'!$A15,1)+1,SEARCH(\"/\",'CFR - XML import'!$A15,1)-SEARCH(\">\",'CFR - XML import'!$A15,1)-2)))","v":0},{"$f":"IF(ISERROR(FIND(AU$3,'CFR - XML import'!$A15)),0,VALUE(MID('CFR - XML import'!$A15,SEARCH(\">\",'CFR - XML import'!$A15,1)+1,SEARCH(\"/\",'CFR - XML import'!$A15,1)-SEARCH(\">\",'CFR - XML import'!$A15,1)-2)))","v":0},{"$f":"IF(ISERROR(FIND(AV$3,'CFR - XML import'!$A15)),0,VALUE(MID('CFR - XML import'!$A15,SEARCH(\">\",'CFR - XML import'!$A15,1)+1,SEARCH(\"/\",'CFR - XML import'!$A15,1)-SEARCH(\">\",'CFR - XML import'!$A15,1)-2)))","v":0},{"$f":"IF(ISERROR(FIND(AW$3,'CFR - XML import'!$A15)),0,VALUE(MID('CFR - XML import'!$A15,SEARCH(\">\",'CFR - XML import'!$A15,1)+1,SEARCH(\"/\",'CFR - XML import'!$A15,1)-SEARCH(\">\",'CFR - XML import'!$A15,1)-2)))","v":0},{"$f":"IF(ISERROR(FIND(AX$3,'CFR - XML import'!$A15)),0,VALUE(MID('CFR - XML import'!$A15,SEARCH(\">\",'CFR - XML import'!$A15,1)+1,SEARCH(\"/\",'CFR - XML import'!$A15,1)-SEARCH(\">\",'CFR - XML import'!$A15,1)-2)))","v":0},{"$f":"IF(ISERROR(FIND(AY$3,'CFR - XML import'!$A15)),0,VALUE(MID('CFR - XML import'!$A15,SEARCH(\">\",'CFR - XML import'!$A15,1)+1,SEARCH(\"/\",'CFR - XML import'!$A15,1)-SEARCH(\">\",'CFR - XML import'!$A15,1)-2)))","v":0},{"$f":"IF(ISERROR(FIND(AZ$3,'CFR - XML import'!$A15)),0,VALUE(MID('CFR - XML import'!$A15,SEARCH(\">\",'CFR - XML import'!$A15,1)+1,SEARCH(\"/\",'CFR - XML import'!$A15,1)-SEARCH(\">\",'CFR - XML import'!$A15,1)-2)))","v":0},{"$f":"IF(ISERROR(FIND(BA$3,'CFR - XML import'!$A15)),0,VALUE(MID('CFR - XML import'!$A15,SEARCH(\">\",'CFR - XML import'!$A15,1)+1,SEARCH(\"/\",'CFR - XML import'!$A15,1)-SEARCH(\">\",'CFR - XML import'!$A15,1)-2)))","v":0},{"$f":"IF(ISERROR(FIND(BB$3,'CFR - XML import'!$A15)),0,VALUE(MID('CFR - XML import'!$A15,SEARCH(\">\",'CFR - XML import'!$A15,1)+1,SEARCH(\"/\",'CFR - XML import'!$A15,1)-SEARCH(\">\",'CFR - XML import'!$A15,1)-2)))","v":0},{"$f":"IF(ISERROR(FIND(BC$3,'CFR - XML import'!$A15)),0,VALUE(MID('CFR - XML import'!$A15,SEARCH(\">\",'CFR - XML import'!$A15,1)+1,SEARCH(\"/\",'CFR - XML import'!$A15,1)-SEARCH(\">\",'CFR - XML import'!$A15,1)-2)))","v":0},{"$f":"IF(ISERROR(FIND(BD$3,'CFR - XML import'!$A15)),0,VALUE(MID('CFR - XML import'!$A15,SEARCH(\">\",'CFR - XML import'!$A15,1)+1,SEARCH(\"/\",'CFR - XML import'!$A15,1)-SEARCH(\">\",'CFR - XML import'!$A15,1)-2)))","v":0},{"$f":"IF(ISERROR(FIND(BE$3,'CFR - XML import'!$A15)),0,VALUE(MID('CFR - XML import'!$A15,SEARCH(\">\",'CFR - XML import'!$A15,1)+1,SEARCH(\"/\",'CFR - XML import'!$A15,1)-SEARCH(\">\",'CFR - XML import'!$A15,1)-2)))","v":0},{"$f":"IF(ISERROR(FIND(BF$3,'CFR - XML import'!$A15)),0,VALUE(MID('CFR - XML import'!$A15,SEARCH(\">\",'CFR - XML import'!$A15,1)+1,SEARCH(\"/\",'CFR - XML import'!$A15,1)-SEARCH(\">\",'CFR - XML import'!$A15,1)-2)))","v":0},{"$f":"IF(ISERROR(FIND(BG$3,'CFR - XML import'!$A15)),0,VALUE(MID('CFR - XML import'!$A15,SEARCH(\">\",'CFR - XML import'!$A15,1)+1,SEARCH(\"/\",'CFR - XML import'!$A15,1)-SEARCH(\">\",'CFR - XML import'!$A15,1)-2)))","v":0},{"$f":"IF(ISERROR(FIND(BH$3,'CFR - XML import'!$A15)),0,VALUE(MID('CFR - XML import'!$A15,SEARCH(\">\",'CFR - XML import'!$A15,1)+1,SEARCH(\"/\",'CFR - XML import'!$A15,1)-SEARCH(\">\",'CFR - XML import'!$A15,1)-2)))","v":0},{"$f":"IF(ISERROR(FIND(BI$3,'CFR - XML import'!$A15)),0,VALUE(MID('CFR - XML import'!$A15,SEARCH(\">\",'CFR - XML import'!$A15,1)+1,SEARCH(\"/\",'CFR - XML import'!$A15,1)-SEARCH(\">\",'CFR - XML import'!$A15,1)-2)))","v":0},{"$f":"IF(ISERROR(FIND(BJ$3,'CFR - XML import'!$A15)),0,VALUE(MID('CFR - XML import'!$A15,SEARCH(\">\",'CFR - XML import'!$A15,1)+1,SEARCH(\"/\",'CFR - XML import'!$A15,1)-SEARCH(\">\",'CFR - XML import'!$A15,1)-2)))","v":0},{"$f":"IF(ISERROR(FIND(BK$3,'CFR - XML import'!$A15)),0,VALUE(MID('CFR - XML import'!$A15,SEARCH(\">\",'CFR - XML import'!$A15,1)+1,SEARCH(\"/\",'CFR - XML import'!$A15,1)-SEARCH(\">\",'CFR - XML import'!$A15,1)-2)))","v":0},{"$f":"IF(ISERROR(FIND(BL$3,'CFR - XML import'!$A15)),0,VALUE(MID('CFR - XML import'!$A15,SEARCH(\">\",'CFR - XML import'!$A15,1)+1,SEARCH(\"/\",'CFR - XML import'!$A15,1)-SEARCH(\">\",'CFR - XML import'!$A15,1)-2)))","v":0},{"$f":"IF(ISERROR(FIND(BM$3,'CFR - XML import'!$A15)),0,VALUE(MID('CFR - XML import'!$A15,SEARCH(\">\",'CFR - XML import'!$A15,1)+1,SEARCH(\"/\",'CFR - XML import'!$A15,1)-SEARCH(\">\",'CFR - XML import'!$A15,1)-2)))","v":0},{"$f":"IF(ISERROR(FIND(BN$3,'CFR - XML import'!$A15)),0,VALUE(MID('CFR - XML import'!$A15,SEARCH(\">\",'CFR - XML import'!$A15,1)+1,SEARCH(\"/\",'CFR - XML import'!$A15,1)-SEARCH(\">\",'CFR - XML import'!$A15,1)-2)))","v":0},{"$f":"IF(ISERROR(FIND(BO$3,'CFR - XML import'!$A15)),0,VALUE(MID('CFR - XML import'!$A15,SEARCH(\">\",'CFR - XML import'!$A15,1)+1,SEARCH(\"/\",'CFR - XML import'!$A15,1)-SEARCH(\">\",'CFR - XML import'!$A15,1)-2)))","v":0},{"$f":"IF(ISERROR(FIND(BP$3,'CFR - XML import'!$A15)),0,VALUE(MID('CFR - XML import'!$A15,SEARCH(\">\",'CFR - XML import'!$A15,1)+1,SEARCH(\"/\",'CFR - XML import'!$A15,1)-SEARCH(\">\",'CFR - XML import'!$A15,1)-2)))","v":0},{"$f":"IF(ISERROR(FIND(BQ$3,'CFR - XML import'!$A15)),0,VALUE(MID('CFR - XML import'!$A15,SEARCH(\">\",'CFR - XML import'!$A15,1)+1,SEARCH(\"/\",'CFR - XML import'!$A15,1)-SEARCH(\">\",'CFR - XML import'!$A15,1)-2)))","v":0},{"$f":"IF(ISERROR(FIND(BR$3,'CFR - XML import'!$A15)),0,VALUE(MID('CFR - XML import'!$A15,SEARCH(\">\",'CFR - XML import'!$A15,1)+1,SEARCH(\"/\",'CFR - XML import'!$A15,1)-SEARCH(\">\",'CFR - XML import'!$A15,1)-2)))","v":0},{"$f":"IF(ISERROR(FIND(BS$3,'CFR - XML import'!$A15)),0,VALUE(MID('CFR - XML import'!$A15,SEARCH(\">\",'CFR - XML import'!$A15,1)+1,SEARCH(\"/\",'CFR - XML import'!$A15,1)-SEARCH(\">\",'CFR - XML import'!$A15,1)-2)))","v":0},{"$f":"IF(ISERROR(FIND(BT$3,'CFR - XML import'!$A15)),0,VALUE(MID('CFR - XML import'!$A15,SEARCH(\">\",'CFR - XML import'!$A15,1)+1,SEARCH(\"/\",'CFR - XML import'!$A15,1)-SEARCH(\">\",'CFR - XML import'!$A15,1)-2)))","v":0},{"$f":"IF(ISERROR(FIND(BU$3,'CFR - XML import'!$A15)),0,VALUE(MID('CFR - XML import'!$A15,SEARCH(\">\",'CFR - XML import'!$A15,1)+1,SEARCH(\"/\",'CFR - XML import'!$A15,1)-SEARCH(\">\",'CFR - XML import'!$A15,1)-2)))","v":0},{"$f":"IF(ISERROR(FIND(BV$3,'CFR - XML import'!$A15)),0,VALUE(MID('CFR - XML import'!$A15,SEARCH(\">\",'CFR - XML import'!$A15,1)+1,SEARCH(\"/\",'CFR - XML import'!$A15,1)-SEARCH(\">\",'CFR - XML import'!$A15,1)-2)))","v":0},{"$f":"IF(ISERROR(FIND(BW$3,'CFR - XML import'!$A15)),0,VALUE(MID('CFR - XML import'!$A15,SEARCH(\">\",'CFR - XML import'!$A15,1)+1,SEARCH(\"/\",'CFR - XML import'!$A15,1)-SEARCH(\">\",'CFR - XML import'!$A15,1)-2)))","v":0},{"$f":"IF(ISERROR(FIND(BX$3,'CFR - XML import'!$A15)),0,VALUE(MID('CFR - XML import'!$A15,SEARCH(\">\",'CFR - XML import'!$A15,1)+1,SEARCH(\"/\",'CFR - XML import'!$A15,1)-SEARCH(\">\",'CFR - XML import'!$A15,1)-2)))","v":0},{"$f":"IF(ISERROR(FIND(BY$3,'CFR - XML import'!$A15)),0,VALUE(MID('CFR - XML import'!$A15,SEARCH(\">\",'CFR - XML import'!$A15,1)+1,SEARCH(\"/\",'CFR - XML import'!$A15,1)-SEARCH(\">\",'CFR - XML import'!$A15,1)-2)))","v":0},{"$f":"IF(ISERROR(FIND(BZ$3,'CFR - XML import'!$A15)),0,VALUE(MID('CFR - XML import'!$A15,SEARCH(\">\",'CFR - XML import'!$A15,1)+1,SEARCH(\"/\",'CFR - XML import'!$A15,1)-SEARCH(\">\",'CFR - XML import'!$A15,1)-2)))","v":0},null,null,null,null,null,null,{"$f":"IF(ISERROR(IF(MID('CFR - XML import'!$A15,LEN($CF$4)+1,LEN('CFR - XML import'!$A15)-(2*LEN($CF$4)+1))=\"RMMS\",1,IF(MID('CFR - XML import'!$A15,LEN(\"    <InputSystem>\")+1,LEN('CFR - XML import'!$A15)-(LEN(\"    <InputSystem>\")+LEN($CF$4)+1))=\"SIMS\",2,0))),0,IF(MID('CFR - XML import'!$A15,LEN($CF$4)+1,LEN('CFR - XML import'!$A15)-(2*LEN($CF$4)+1))=\"RMMS\",1,IF(MID('CFR - XML import'!$A15,LEN(\"    <InputSystem>\")+1,LEN('CFR - XML import'!$A15)-(LEN(\"    <InputSystem>\")+LEN($CF$4)+1))=\"SIMS\",2,0)))","v":0},{"$f":"IF(ISERROR(FIND(CH$3,'CFR - XML import'!$A15)),0,MID('CFR - XML import'!$A15,SEARCH(\">\",'CFR - XML import'!$A15,1)+1,SEARCH(\"/\",'CFR - XML import'!$A15,1)-SEARCH(\">\",'CFR - XML import'!$A15,1)-2))","v":0},{"$f":"IF(ISERROR(FIND(CI$3,'CFR - XML import'!$A15)),0,MID('CFR - XML import'!$A15,SEARCH(\">\",'CFR - XML import'!$A15,1)+1,SEARCH(\"/\",'CFR - XML import'!$A15,1)-SEARCH(\">\",'CFR - XML import'!$A15,1)-2))","v":0},{"$f":"IF(ISERROR(FIND(CJ$3,'CFR - XML import'!$A15)),0,MID('CFR - XML import'!$A15,SEARCH(\">\",'CFR - XML import'!$A15,1)+1,SEARCH(\"/\",'CFR - XML import'!$A15,1)-SEARCH(\">\",'CFR - XML import'!$A15,1)-2))","v":0},{"$f":"IF(ISERROR(FIND(CK$3,'CFR - XML import'!$A15)),0,MID('CFR - XML import'!$A15,SEARCH(\">\",'CFR - XML import'!$A15,1)+1,SEARCH(\"/\",'CFR - XML import'!$A15,1)-SEARCH(\">\",'CFR - XML import'!$A15,1)-2))","v":0},{"$f":"IF(ISERROR(FIND(CL$3,'CFR - XML import'!$A15)),0,MID('CFR - XML import'!$A15,SEARCH(\">\",'CFR - XML import'!$A15,1)+1,SEARCH(\"/\",'CFR - XML import'!$A15,1)-SEARCH(\">\",'CFR - XML import'!$A15,1)-2))","v":0}]
[{"$f":"IF(AND('CFR - XML import'!A16<>\"\",LEFT('CFR - XML import'!A16,1)<>\"<\",LEFT('CFR - XML import'!A16,3)<>\"  <\",LEFT('CFR - XML import'!A16,5)<>\"    <\",LEFT('CFR - XML import'!A16,7)<>\"      <\",LEFT('CFR - XML import'!A16,9)<>\"        <\",$B$1=\"SIMS\"),'CFR - XML import'!A16,IF(AND(LEFT('CFR - XML import'!A16,9)=\"<Details>\",$B$1=\"RM\"),'CFR - XML import'!A16,\"\"))","v":""},{"$f":"IF(ISERROR(FIND(B$3,'CFR - XML import'!$A16)),0,VALUE(MID('CFR - XML import'!$A16,SEARCH(\">\",'CFR - XML import'!$A16,1)+1,SEARCH(\"/\",'CFR - XML import'!$A16,1)-SEARCH(\">\",'CFR - XML import'!$A16,1)-2)))","v":0},null,{"$f":"IF(ISERROR(FIND(D$3,'CFR - XML import'!$A16)),0,MID('CFR - XML import'!$A16,SEARCH(\">\",'CFR - XML import'!$A16,1)+1,SEARCH(\"/\",'CFR - XML import'!$A16,1)-SEARCH(\">\",'CFR - XML import'!$A16,1)-2))","v":0},{"$f":"IF(ISERROR(FIND(E$3,'CFR - XML import'!$A16)),0,MID('CFR - XML import'!$A16,SEARCH(\">\",'CFR - XML import'!$A16,1)+1,SEARCH(\"/\",'CFR - XML import'!$A16,1)-SEARCH(\">\",'CFR - XML import'!$A16,1)-2))","v":0},{"$f":"IF($B$1=\"SIMS\",IF(ISERROR(FIND(F$3,'CFR - XML import'!$A16)),0,VALUE(MID('CFR - XML import'!$A16,15,10))),IF(ISERROR(FIND(F$3,'CFR - XML import'!$A16)),0,VALUE(MID('CFR - XML import'!$A16,11,10))))","v":"00:00:00"},{"$f":"IF(ISERROR(FIND(G$3,'CFR - XML import'!$A16)),0,VALUE(MID('CFR - XML import'!$A16,SEARCH(\">\",'CFR - XML import'!$A16,1)+1,SEARCH(\"/\",'CFR - XML import'!$A16,1)-SEARCH(\">\",'CFR - XML import'!$A16,1)-2)))","v":0},{"$f":"IF(ISERROR(FIND(H$3,'CFR - XML import'!$A16)),0,VALUE(MID('CFR - XML import'!$A16,SEARCH(\">\",'CFR - XML import'!$A16,1)+1,SEARCH(\"/\",'CFR - XML import'!$A16,1)-SEARCH(\">\",'CFR - XML import'!$A16,1)-2)))","v":0},{"$f":"IF(ISERROR(FIND(I$3,'CFR - XML import'!$A16)),0,VALUE(MID('CFR - XML import'!$A16,SEARCH(\">\",'CFR - XML import'!$A16,1)+1,SEARCH(\"/\",'CFR - XML import'!$A16,1)-SEARCH(\">\",'CFR - XML import'!$A16,1)-2)))","v":0},{"$f":"IF(ISERROR(FIND(J$3,'CFR - XML import'!$A16)),0,VALUE(MID('CFR - XML import'!$A16,SEARCH(\">\",'CFR - XML import'!$A16,1)+1,SEARCH(\"/\",'CFR - XML import'!$A16,1)-SEARCH(\">\",'CFR - XML import'!$A16,1)-2)))","v":0},{"$f":"IF(ISERROR(FIND(K$3,'CFR - XML import'!$A16)),0,VALUE(MID('CFR - XML import'!$A16,SEARCH(\">\",'CFR - XML import'!$A16,1)+1,SEARCH(\"/\",'CFR - XML import'!$A16,1)-SEARCH(\">\",'CFR - XML import'!$A16,1)-2)))","v":0},{"$f":"IF(ISERROR(FIND(L$3,'CFR - XML import'!$A16)),0,VALUE(MID('CFR - XML import'!$A16,SEARCH(\">\",'CFR - XML import'!$A16,1)+1,SEARCH(\"/\",'CFR - XML import'!$A16,1)-SEARCH(\">\",'CFR - XML import'!$A16,1)-2)))","v":0},{"$f":"IF(ISERROR(FIND(M$3,'CFR - XML import'!$A16)),0,VALUE(MID('CFR - XML import'!$A16,SEARCH(\">\",'CFR - XML import'!$A16,1)+1,SEARCH(\"/\",'CFR - XML import'!$A16,1)-SEARCH(\">\",'CFR - XML import'!$A16,1)-2)))","v":0},{"$f":"IF(ISERROR(FIND(N$3,'CFR - XML import'!$A16)),0,VALUE(MID('CFR - XML import'!$A16,SEARCH(\">\",'CFR - XML import'!$A16,1)+1,SEARCH(\"/\",'CFR - XML import'!$A16,1)-SEARCH(\">\",'CFR - XML import'!$A16,1)-2)))","v":0},{"$f":"IF(ISERROR(FIND(O$3,'CFR - XML import'!$A16)),0,VALUE(MID('CFR - XML import'!$A16,SEARCH(\">\",'CFR - XML import'!$A16,1)+1,SEARCH(\"/\",'CFR - XML import'!$A16,1)-SEARCH(\">\",'CFR - XML import'!$A16,1)-2)))","v":0},{"$f":"IF(ISERROR(FIND(P$3,'CFR - XML import'!$A16)),0,VALUE(MID('CFR - XML import'!$A16,SEARCH(\">\",'CFR - XML import'!$A16,1)+1,SEARCH(\"/\",'CFR - XML import'!$A16,1)-SEARCH(\">\",'CFR - XML import'!$A16,1)-2)))","v":0},{"$f":"IF(ISERROR(FIND(Q$3,'CFR - XML import'!$A16)),0,VALUE(MID('CFR - XML import'!$A16,SEARCH(\">\",'CFR - XML import'!$A16,1)+1,SEARCH(\"/\",'CFR - XML import'!$A16,1)-SEARCH(\">\",'CFR - XML import'!$A16,1)-2)))","v":0},{"$f":"IF(ISERROR(FIND(R$3,'CFR - XML import'!$A16)),0,VALUE(MID('CFR - XML import'!$A16,SEARCH(\">\",'CFR - XML import'!$A16,1)+1,SEARCH(\"/\",'CFR - XML import'!$A16,1)-SEARCH(\">\",'CFR - XML import'!$A16,1)-2)))","v":0},{"$f":"IF(ISERROR(FIND(S$3,'CFR - XML import'!$A16)),0,VALUE(MID('CFR - XML import'!$A16,SEARCH(\">\",'CFR - XML import'!$A16,1)+1,SEARCH(\"/\",'CFR - XML import'!$A16,1)-SEARCH(\">\",'CFR - XML import'!$A16,1)-2)))","v":0},{"$f":"IF(ISERROR(FIND(T$3,'CFR - XML import'!$A16)),0,VALUE(MID('CFR - XML import'!$A16,SEARCH(\">\",'CFR - XML import'!$A16,1)+1,SEARCH(\"/\",'CFR - XML import'!$A16,1)-SEARCH(\">\",'CFR - XML import'!$A16,1)-2)))","v":0},{"$f":"IF(ISERROR(FIND(U$3,'CFR - XML import'!$A16)),0,VALUE(MID('CFR - XML import'!$A16,SEARCH(\">\",'CFR - XML import'!$A16,1)+1,SEARCH(\"/\",'CFR - XML import'!$A16,1)-SEARCH(\">\",'CFR - XML import'!$A16,1)-2)))","v":0},{"$f":"IF(ISERROR(FIND(V$3,'CFR - XML import'!$A16)),0,VALUE(MID('CFR - XML import'!$A16,SEARCH(\">\",'CFR - XML import'!$A16,1)+1,SEARCH(\"/\",'CFR - XML import'!$A16,1)-SEARCH(\">\",'CFR - XML import'!$A16,1)-2)))","v":0},{"$f":"IF(ISERROR(FIND(W$3,'CFR - XML import'!$A16)),0,VALUE(MID('CFR - XML import'!$A16,SEARCH(\">\",'CFR - XML import'!$A16,1)+1,SEARCH(\"/\",'CFR - XML import'!$A16,1)-SEARCH(\">\",'CFR - XML import'!$A16,1)-2)))","v":0},null,{"$f":"IF(ISERROR(FIND(Y$3,'CFR - XML import'!$A16)),0,VALUE(MID('CFR - XML import'!$A16,SEARCH(\">\",'CFR - XML import'!$A16,1)+1,SEARCH(\"/\",'CFR - XML import'!$A16,1)-SEARCH(\">\",'CFR - XML import'!$A16,1)-2)))","v":0},{"$f":"IF(ISERROR(FIND(Z$3,'CFR - XML import'!$A16)),0,VALUE(MID('CFR - XML import'!$A16,SEARCH(\">\",'CFR - XML import'!$A16,1)+1,SEARCH(\"/\",'CFR - XML import'!$A16,1)-SEARCH(\">\",'CFR - XML import'!$A16,1)-2)))","v":0},{"$f":"IF(ISERROR(FIND(AA$3,'CFR - XML import'!$A16)),0,VALUE(MID('CFR - XML import'!$A16,SEARCH(\">\",'CFR - XML import'!$A16,1)+1,SEARCH(\"/\",'CFR - XML import'!$A16,1)-SEARCH(\">\",'CFR - XML import'!$A16,1)-2)))","v":0},{"$f":"IF(ISERROR(FIND(AB$3,'CFR - XML import'!$A16)),0,VALUE(MID('CFR - XML import'!$A16,SEARCH(\">\",'CFR - XML import'!$A16,1)+1,SEARCH(\"/\",'CFR - XML import'!$A16,1)-SEARCH(\">\",'CFR - XML import'!$A16,1)-2)))","v":0},{"$f":"IF(ISERROR(FIND(AC$3,'CFR - XML import'!$A16)),0,VALUE(MID('CFR - XML import'!$A16,SEARCH(\">\",'CFR - XML import'!$A16,1)+1,SEARCH(\"/\",'CFR - XML import'!$A16,1)-SEARCH(\">\",'CFR - XML import'!$A16,1)-2)))","v":0},{"$f":"IF(ISERROR(FIND(AD$3,'CFR - XML import'!$A16)),0,VALUE(MID('CFR - XML import'!$A16,SEARCH(\">\",'CFR - XML import'!$A16,1)+1,SEARCH(\"/\",'CFR - XML import'!$A16,1)-SEARCH(\">\",'CFR - XML import'!$A16,1)-2)))","v":0},{"$f":"IF(ISERROR(FIND(AE$3,'CFR - XML import'!$A16)),0,VALUE(MID('CFR - XML import'!$A16,SEARCH(\">\",'CFR - XML import'!$A16,1)+1,SEARCH(\"/\",'CFR - XML import'!$A16,1)-SEARCH(\">\",'CFR - XML import'!$A16,1)-2)))","v":0},{"$f":"IF(ISERROR(FIND(AF$3,'CFR - XML import'!$A16)),0,VALUE(MID('CFR - XML import'!$A16,SEARCH(\">\",'CFR - XML import'!$A16,1)+1,SEARCH(\"/\",'CFR - XML import'!$A16,1)-SEARCH(\">\",'CFR - XML import'!$A16,1)-2)))","v":0},{"$f":"IF(ISERROR(FIND(AG$3,'CFR - XML import'!$A16)),0,VALUE(MID('CFR - XML import'!$A16,SEARCH(\">\",'CFR - XML import'!$A16,1)+1,SEARCH(\"/\",'CFR - XML import'!$A16,1)-SEARCH(\">\",'CFR - XML import'!$A16,1)-2)))","v":0},{"$f":"IF(ISERROR(FIND(AH$3,'CFR - XML import'!$A16)),0,VALUE(MID('CFR - XML import'!$A16,SEARCH(\">\",'CFR - XML import'!$A16,1)+1,SEARCH(\"/\",'CFR - XML import'!$A16,1)-SEARCH(\">\",'CFR - XML import'!$A16,1)-2)))","v":0},{"$f":"IF(ISERROR(FIND(AI$3,'CFR - XML import'!$A16)),0,VALUE(MID('CFR - XML import'!$A16,SEARCH(\">\",'CFR - XML import'!$A16,1)+1,SEARCH(\"/\",'CFR - XML import'!$A16,1)-SEARCH(\">\",'CFR - XML import'!$A16,1)-2)))","v":0},{"$f":"IF(ISERROR(FIND(AJ$3,'CFR - XML import'!$A16)),0,VALUE(MID('CFR - XML import'!$A16,SEARCH(\">\",'CFR - XML import'!$A16,1)+1,SEARCH(\"/\",'CFR - XML import'!$A16,1)-SEARCH(\">\",'CFR - XML import'!$A16,1)-2)))","v":0},{"$f":"IF(ISERROR(FIND(AK$3,'CFR - XML import'!$A16)),0,VALUE(MID('CFR - XML import'!$A16,SEARCH(\">\",'CFR - XML import'!$A16,1)+1,SEARCH(\"/\",'CFR - XML import'!$A16,1)-SEARCH(\">\",'CFR - XML import'!$A16,1)-2)))","v":0},{"$f":"IF(ISERROR(FIND(AL$3,'CFR - XML import'!$A16)),0,VALUE(MID('CFR - XML import'!$A16,SEARCH(\">\",'CFR - XML import'!$A16,1)+1,SEARCH(\"/\",'CFR - XML import'!$A16,1)-SEARCH(\">\",'CFR - XML import'!$A16,1)-2)))","v":0},{"$f":"IF(ISERROR(FIND(AM$3,'CFR - XML import'!$A16)),0,VALUE(MID('CFR - XML import'!$A16,SEARCH(\">\",'CFR - XML import'!$A16,1)+1,SEARCH(\"/\",'CFR - XML import'!$A16,1)-SEARCH(\">\",'CFR - XML import'!$A16,1)-2)))","v":0},{"$f":"IF(ISERROR(FIND(AN$3,'CFR - XML import'!$A16)),0,VALUE(MID('CFR - XML import'!$A16,SEARCH(\">\",'CFR - XML import'!$A16,1)+1,SEARCH(\"/\",'CFR - XML import'!$A16,1)-SEARCH(\">\",'CFR - XML import'!$A16,1)-2)))","v":0},{"$f":"IF(ISERROR(FIND(AO$3,'CFR - XML import'!$A16)),0,VALUE(MID('CFR - XML import'!$A16,SEARCH(\">\",'CFR - XML import'!$A16,1)+1,SEARCH(\"/\",'CFR - XML import'!$A16,1)-SEARCH(\">\",'CFR - XML import'!$A16,1)-2)))","v":0},{"$f":"IF(ISERROR(FIND(AP$3,'CFR - XML import'!$A16)),0,VALUE(MID('CFR - XML import'!$A16,SEARCH(\">\",'CFR - XML import'!$A16,1)+1,SEARCH(\"/\",'CFR - XML import'!$A16,1)-SEARCH(\">\",'CFR - XML import'!$A16,1)-2)))","v":0},{"$f":"IF(ISERROR(FIND(AQ$3,'CFR - XML import'!$A16)),0,VALUE(MID('CFR - XML import'!$A16,SEARCH(\">\",'CFR - XML import'!$A16,1)+1,SEARCH(\"/\",'CFR - XML import'!$A16,1)-SEARCH(\">\",'CFR - XML import'!$A16,1)-2)))","v":0},{"$f":"IF(ISERROR(FIND(AR$3,'CFR - XML import'!$A16)),0,VALUE(MID('CFR - XML import'!$A16,SEARCH(\">\",'CFR - XML import'!$A16,1)+1,SEARCH(\"/\",'CFR - XML import'!$A16,1)-SEARCH(\">\",'CFR - XML import'!$A16,1)-2)))","v":0},{"$f":"IF(ISERROR(FIND(AS$3,'CFR - XML import'!$A16)),0,VALUE(MID('CFR - XML import'!$A16,SEARCH(\">\",'CFR - XML import'!$A16,1)+1,SEARCH(\"/\",'CFR - XML import'!$A16,1)-SEARCH(\">\",'CFR - XML import'!$A16,1)-2)))","v":0},{"$f":"IF(ISERROR(FIND(AT$3,'CFR - XML import'!$A16)),0,VALUE(MID('CFR - XML import'!$A16,SEARCH(\">\",'CFR - XML import'!$A16,1)+1,SEARCH(\"/\",'CFR - XML import'!$A16,1)-SEARCH(\">\",'CFR - XML import'!$A16,1)-2)))","v":0},{"$f":"IF(ISERROR(FIND(AU$3,'CFR - XML import'!$A16)),0,VALUE(MID('CFR - XML import'!$A16,SEARCH(\">\",'CFR - XML import'!$A16,1)+1,SEARCH(\"/\",'CFR - XML import'!$A16,1)-SEARCH(\">\",'CFR - XML import'!$A16,1)-2)))","v":0},{"$f":"IF(ISERROR(FIND(AV$3,'CFR - XML import'!$A16)),0,VALUE(MID('CFR - XML import'!$A16,SEARCH(\">\",'CFR - XML import'!$A16,1)+1,SEARCH(\"/\",'CFR - XML import'!$A16,1)-SEARCH(\">\",'CFR - XML import'!$A16,1)-2)))","v":0},{"$f":"IF(ISERROR(FIND(AW$3,'CFR - XML import'!$A16)),0,VALUE(MID('CFR - XML import'!$A16,SEARCH(\">\",'CFR - XML import'!$A16,1)+1,SEARCH(\"/\",'CFR - XML import'!$A16,1)-SEARCH(\">\",'CFR - XML import'!$A16,1)-2)))","v":0},{"$f":"IF(ISERROR(FIND(AX$3,'CFR - XML import'!$A16)),0,VALUE(MID('CFR - XML import'!$A16,SEARCH(\">\",'CFR - XML import'!$A16,1)+1,SEARCH(\"/\",'CFR - XML import'!$A16,1)-SEARCH(\">\",'CFR - XML import'!$A16,1)-2)))","v":0},{"$f":"IF(ISERROR(FIND(AY$3,'CFR - XML import'!$A16)),0,VALUE(MID('CFR - XML import'!$A16,SEARCH(\">\",'CFR - XML import'!$A16,1)+1,SEARCH(\"/\",'CFR - XML import'!$A16,1)-SEARCH(\">\",'CFR - XML import'!$A16,1)-2)))","v":0},{"$f":"IF(ISERROR(FIND(AZ$3,'CFR - XML import'!$A16)),0,VALUE(MID('CFR - XML import'!$A16,SEARCH(\">\",'CFR - XML import'!$A16,1)+1,SEARCH(\"/\",'CFR - XML import'!$A16,1)-SEARCH(\">\",'CFR - XML import'!$A16,1)-2)))","v":0},{"$f":"IF(ISERROR(FIND(BA$3,'CFR - XML import'!$A16)),0,VALUE(MID('CFR - XML import'!$A16,SEARCH(\">\",'CFR - XML import'!$A16,1)+1,SEARCH(\"/\",'CFR - XML import'!$A16,1)-SEARCH(\">\",'CFR - XML import'!$A16,1)-2)))","v":0},{"$f":"IF(ISERROR(FIND(BB$3,'CFR - XML import'!$A16)),0,VALUE(MID('CFR - XML import'!$A16,SEARCH(\">\",'CFR - XML import'!$A16,1)+1,SEARCH(\"/\",'CFR - XML import'!$A16,1)-SEARCH(\">\",'CFR - XML import'!$A16,1)-2)))","v":0},{"$f":"IF(ISERROR(FIND(BC$3,'CFR - XML import'!$A16)),0,VALUE(MID('CFR - XML import'!$A16,SEARCH(\">\",'CFR - XML import'!$A16,1)+1,SEARCH(\"/\",'CFR - XML import'!$A16,1)-SEARCH(\">\",'CFR - XML import'!$A16,1)-2)))","v":0},{"$f":"IF(ISERROR(FIND(BD$3,'CFR - XML import'!$A16)),0,VALUE(MID('CFR - XML import'!$A16,SEARCH(\">\",'CFR - XML import'!$A16,1)+1,SEARCH(\"/\",'CFR - XML import'!$A16,1)-SEARCH(\">\",'CFR - XML import'!$A16,1)-2)))","v":0},{"$f":"IF(ISERROR(FIND(BE$3,'CFR - XML import'!$A16)),0,VALUE(MID('CFR - XML import'!$A16,SEARCH(\">\",'CFR - XML import'!$A16,1)+1,SEARCH(\"/\",'CFR - XML import'!$A16,1)-SEARCH(\">\",'CFR - XML import'!$A16,1)-2)))","v":0},{"$f":"IF(ISERROR(FIND(BF$3,'CFR - XML import'!$A16)),0,VALUE(MID('CFR - XML import'!$A16,SEARCH(\">\",'CFR - XML import'!$A16,1)+1,SEARCH(\"/\",'CFR - XML import'!$A16,1)-SEARCH(\">\",'CFR - XML import'!$A16,1)-2)))","v":0},{"$f":"IF(ISERROR(FIND(BG$3,'CFR - XML import'!$A16)),0,VALUE(MID('CFR - XML import'!$A16,SEARCH(\">\",'CFR - XML import'!$A16,1)+1,SEARCH(\"/\",'CFR - XML import'!$A16,1)-SEARCH(\">\",'CFR - XML import'!$A16,1)-2)))","v":0},{"$f":"IF(ISERROR(FIND(BH$3,'CFR - XML import'!$A16)),0,VALUE(MID('CFR - XML import'!$A16,SEARCH(\">\",'CFR - XML import'!$A16,1)+1,SEARCH(\"/\",'CFR - XML import'!$A16,1)-SEARCH(\">\",'CFR - XML import'!$A16,1)-2)))","v":0},{"$f":"IF(ISERROR(FIND(BI$3,'CFR - XML import'!$A16)),0,VALUE(MID('CFR - XML import'!$A16,SEARCH(\">\",'CFR - XML import'!$A16,1)+1,SEARCH(\"/\",'CFR - XML import'!$A16,1)-SEARCH(\">\",'CFR - XML import'!$A16,1)-2)))","v":0},{"$f":"IF(ISERROR(FIND(BJ$3,'CFR - XML import'!$A16)),0,VALUE(MID('CFR - XML import'!$A16,SEARCH(\">\",'CFR - XML import'!$A16,1)+1,SEARCH(\"/\",'CFR - XML import'!$A16,1)-SEARCH(\">\",'CFR - XML import'!$A16,1)-2)))","v":0},{"$f":"IF(ISERROR(FIND(BK$3,'CFR - XML import'!$A16)),0,VALUE(MID('CFR - XML import'!$A16,SEARCH(\">\",'CFR - XML import'!$A16,1)+1,SEARCH(\"/\",'CFR - XML import'!$A16,1)-SEARCH(\">\",'CFR - XML import'!$A16,1)-2)))","v":0},{"$f":"IF(ISERROR(FIND(BL$3,'CFR - XML import'!$A16)),0,VALUE(MID('CFR - XML import'!$A16,SEARCH(\">\",'CFR - XML import'!$A16,1)+1,SEARCH(\"/\",'CFR - XML import'!$A16,1)-SEARCH(\">\",'CFR - XML import'!$A16,1)-2)))","v":0},{"$f":"IF(ISERROR(FIND(BM$3,'CFR - XML import'!$A16)),0,VALUE(MID('CFR - XML import'!$A16,SEARCH(\">\",'CFR - XML import'!$A16,1)+1,SEARCH(\"/\",'CFR - XML import'!$A16,1)-SEARCH(\">\",'CFR - XML import'!$A16,1)-2)))","v":0},{"$f":"IF(ISERROR(FIND(BN$3,'CFR - XML import'!$A16)),0,VALUE(MID('CFR - XML import'!$A16,SEARCH(\">\",'CFR - XML import'!$A16,1)+1,SEARCH(\"/\",'CFR - XML import'!$A16,1)-SEARCH(\">\",'CFR - XML import'!$A16,1)-2)))","v":0},{"$f":"IF(ISERROR(FIND(BO$3,'CFR - XML import'!$A16)),0,VALUE(MID('CFR - XML import'!$A16,SEARCH(\">\",'CFR - XML import'!$A16,1)+1,SEARCH(\"/\",'CFR - XML import'!$A16,1)-SEARCH(\">\",'CFR - XML import'!$A16,1)-2)))","v":0},{"$f":"IF(ISERROR(FIND(BP$3,'CFR - XML import'!$A16)),0,VALUE(MID('CFR - XML import'!$A16,SEARCH(\">\",'CFR - XML import'!$A16,1)+1,SEARCH(\"/\",'CFR - XML import'!$A16,1)-SEARCH(\">\",'CFR - XML import'!$A16,1)-2)))","v":0},{"$f":"IF(ISERROR(FIND(BQ$3,'CFR - XML import'!$A16)),0,VALUE(MID('CFR - XML import'!$A16,SEARCH(\">\",'CFR - XML import'!$A16,1)+1,SEARCH(\"/\",'CFR - XML import'!$A16,1)-SEARCH(\">\",'CFR - XML import'!$A16,1)-2)))","v":0},{"$f":"IF(ISERROR(FIND(BR$3,'CFR - XML import'!$A16)),0,VALUE(MID('CFR - XML import'!$A16,SEARCH(\">\",'CFR - XML import'!$A16,1)+1,SEARCH(\"/\",'CFR - XML import'!$A16,1)-SEARCH(\">\",'CFR - XML import'!$A16,1)-2)))","v":0},{"$f":"IF(ISERROR(FIND(BS$3,'CFR - XML import'!$A16)),0,VALUE(MID('CFR - XML import'!$A16,SEARCH(\">\",'CFR - XML import'!$A16,1)+1,SEARCH(\"/\",'CFR - XML import'!$A16,1)-SEARCH(\">\",'CFR - XML import'!$A16,1)-2)))","v":0},{"$f":"IF(ISERROR(FIND(BT$3,'CFR - XML import'!$A16)),0,VALUE(MID('CFR - XML import'!$A16,SEARCH(\">\",'CFR - XML import'!$A16,1)+1,SEARCH(\"/\",'CFR - XML import'!$A16,1)-SEARCH(\">\",'CFR - XML import'!$A16,1)-2)))","v":0},{"$f":"IF(ISERROR(FIND(BU$3,'CFR - XML import'!$A16)),0,VALUE(MID('CFR - XML import'!$A16,SEARCH(\">\",'CFR - XML import'!$A16,1)+1,SEARCH(\"/\",'CFR - XML import'!$A16,1)-SEARCH(\">\",'CFR - XML import'!$A16,1)-2)))","v":0},{"$f":"IF(ISERROR(FIND(BV$3,'CFR - XML import'!$A16)),0,VALUE(MID('CFR - XML import'!$A16,SEARCH(\">\",'CFR - XML import'!$A16,1)+1,SEARCH(\"/\",'CFR - XML import'!$A16,1)-SEARCH(\">\",'CFR - XML import'!$A16,1)-2)))","v":0},{"$f":"IF(ISERROR(FIND(BW$3,'CFR - XML import'!$A16)),0,VALUE(MID('CFR - XML import'!$A16,SEARCH(\">\",'CFR - XML import'!$A16,1)+1,SEARCH(\"/\",'CFR - XML import'!$A16,1)-SEARCH(\">\",'CFR - XML import'!$A16,1)-2)))","v":0},{"$f":"IF(ISERROR(FIND(BX$3,'CFR - XML import'!$A16)),0,VALUE(MID('CFR - XML import'!$A16,SEARCH(\">\",'CFR - XML import'!$A16,1)+1,SEARCH(\"/\",'CFR - XML import'!$A16,1)-SEARCH(\">\",'CFR - XML import'!$A16,1)-2)))","v":0},{"$f":"IF(ISERROR(FIND(BY$3,'CFR - XML import'!$A16)),0,VALUE(MID('CFR - XML import'!$A16,SEARCH(\">\",'CFR - XML import'!$A16,1)+1,SEARCH(\"/\",'CFR - XML import'!$A16,1)-SEARCH(\">\",'CFR - XML import'!$A16,1)-2)))","v":0},{"$f":"IF(ISERROR(FIND(BZ$3,'CFR - XML import'!$A16)),0,VALUE(MID('CFR - XML import'!$A16,SEARCH(\">\",'CFR - XML import'!$A16,1)+1,SEARCH(\"/\",'CFR - XML import'!$A16,1)-SEARCH(\">\",'CFR - XML import'!$A16,1)-2)))","v":0},null,null,null,null,null,null,{"$f":"IF(ISERROR(IF(MID('CFR - XML import'!$A16,LEN($CF$4)+1,LEN('CFR - XML import'!$A16)-(2*LEN($CF$4)+1))=\"RMMS\",1,IF(MID('CFR - XML import'!$A16,LEN(\"    <InputSystem>\")+1,LEN('CFR - XML import'!$A16)-(LEN(\"    <InputSystem>\")+LEN($CF$4)+1))=\"SIMS\",2,0))),0,IF(MID('CFR - XML import'!$A16,LEN($CF$4)+1,LEN('CFR - XML import'!$A16)-(2*LEN($CF$4)+1))=\"RMMS\",1,IF(MID('CFR - XML import'!$A16,LEN(\"    <InputSystem>\")+1,LEN('CFR - XML import'!$A16)-(LEN(\"    <InputSystem>\")+LEN($CF$4)+1))=\"SIMS\",2,0)))","v":0},{"$f":"IF(ISERROR(FIND(CH$3,'CFR - XML import'!$A16)),0,MID('CFR - XML import'!$A16,SEARCH(\">\",'CFR - XML import'!$A16,1)+1,SEARCH(\"/\",'CFR - XML import'!$A16,1)-SEARCH(\">\",'CFR - XML import'!$A16,1)-2))","v":0},{"$f":"IF(ISERROR(FIND(CI$3,'CFR - XML import'!$A16)),0,MID('CFR - XML import'!$A16,SEARCH(\">\",'CFR - XML import'!$A16,1)+1,SEARCH(\"/\",'CFR - XML import'!$A16,1)-SEARCH(\">\",'CFR - XML import'!$A16,1)-2))","v":0},{"$f":"IF(ISERROR(FIND(CJ$3,'CFR - XML import'!$A16)),0,MID('CFR - XML import'!$A16,SEARCH(\">\",'CFR - XML import'!$A16,1)+1,SEARCH(\"/\",'CFR - XML import'!$A16,1)-SEARCH(\">\",'CFR - XML import'!$A16,1)-2))","v":0},{"$f":"IF(ISERROR(FIND(CK$3,'CFR - XML import'!$A16)),0,MID('CFR - XML import'!$A16,SEARCH(\">\",'CFR - XML import'!$A16,1)+1,SEARCH(\"/\",'CFR - XML import'!$A16,1)-SEARCH(\">\",'CFR - XML import'!$A16,1)-2))","v":0},{"$f":"IF(ISERROR(FIND(CL$3,'CFR - XML import'!$A16)),0,MID('CFR - XML import'!$A16,SEARCH(\">\",'CFR - XML import'!$A16,1)+1,SEARCH(\"/\",'CFR - XML import'!$A16,1)-SEARCH(\">\",'CFR - XML import'!$A16,1)-2))","v":0}]
[{"$f":"IF(AND('CFR - XML import'!A17<>\"\",LEFT('CFR - XML import'!A17,1)<>\"<\",LEFT('CFR - XML import'!A17,3)<>\"  <\",LEFT('CFR - XML import'!A17,5)<>\"    <\",LEFT('CFR - XML import'!A17,7)<>\"      <\",LEFT('CFR - XML import'!A17,9)<>\"        <\",$B$1=\"SIMS\"),'CFR - XML import'!A17,IF(AND(LEFT('CFR - XML import'!A17,9)=\"<Details>\",$B$1=\"RM\"),'CFR - XML import'!A17,\"\"))","v":""},{"$f":"IF(ISERROR(FIND(B$3,'CFR - XML import'!$A17)),0,VALUE(MID('CFR - XML import'!$A17,SEARCH(\">\",'CFR - XML import'!$A17,1)+1,SEARCH(\"/\",'CFR - XML import'!$A17,1)-SEARCH(\">\",'CFR - XML import'!$A17,1)-2)))","v":0},null,{"$f":"IF(ISERROR(FIND(D$3,'CFR - XML import'!$A17)),0,MID('CFR - XML import'!$A17,SEARCH(\">\",'CFR - XML import'!$A17,1)+1,SEARCH(\"/\",'CFR - XML import'!$A17,1)-SEARCH(\">\",'CFR - XML import'!$A17,1)-2))","v":0},{"$f":"IF(ISERROR(FIND(E$3,'CFR - XML import'!$A17)),0,MID('CFR - XML import'!$A17,SEARCH(\">\",'CFR - XML import'!$A17,1)+1,SEARCH(\"/\",'CFR - XML import'!$A17,1)-SEARCH(\">\",'CFR - XML import'!$A17,1)-2))","v":0},{"$f":"IF($B$1=\"SIMS\",IF(ISERROR(FIND(F$3,'CFR - XML import'!$A17)),0,VALUE(MID('CFR - XML import'!$A17,15,10))),IF(ISERROR(FIND(F$3,'CFR - XML import'!$A17)),0,VALUE(MID('CFR - XML import'!$A17,11,10))))","v":"00:00:00"},{"$f":"IF(ISERROR(FIND(G$3,'CFR - XML import'!$A17)),0,VALUE(MID('CFR - XML import'!$A17,SEARCH(\">\",'CFR - XML import'!$A17,1)+1,SEARCH(\"/\",'CFR - XML import'!$A17,1)-SEARCH(\">\",'CFR - XML import'!$A17,1)-2)))","v":0},{"$f":"IF(ISERROR(FIND(H$3,'CFR - XML import'!$A17)),0,VALUE(MID('CFR - XML import'!$A17,SEARCH(\">\",'CFR - XML import'!$A17,1)+1,SEARCH(\"/\",'CFR - XML import'!$A17,1)-SEARCH(\">\",'CFR - XML import'!$A17,1)-2)))","v":0},{"$f":"IF(ISERROR(FIND(I$3,'CFR - XML import'!$A17)),0,VALUE(MID('CFR - XML import'!$A17,SEARCH(\">\",'CFR - XML import'!$A17,1)+1,SEARCH(\"/\",'CFR - XML import'!$A17,1)-SEARCH(\">\",'CFR - XML import'!$A17,1)-2)))","v":0},{"$f":"IF(ISERROR(FIND(J$3,'CFR - XML import'!$A17)),0,VALUE(MID('CFR - XML import'!$A17,SEARCH(\">\",'CFR - XML import'!$A17,1)+1,SEARCH(\"/\",'CFR - XML import'!$A17,1)-SEARCH(\">\",'CFR - XML import'!$A17,1)-2)))","v":0},{"$f":"IF(ISERROR(FIND(K$3,'CFR - XML import'!$A17)),0,VALUE(MID('CFR - XML import'!$A17,SEARCH(\">\",'CFR - XML import'!$A17,1)+1,SEARCH(\"/\",'CFR - XML import'!$A17,1)-SEARCH(\">\",'CFR - XML import'!$A17,1)-2)))","v":0},{"$f":"IF(ISERROR(FIND(L$3,'CFR - XML import'!$A17)),0,VALUE(MID('CFR - XML import'!$A17,SEARCH(\">\",'CFR - XML import'!$A17,1)+1,SEARCH(\"/\",'CFR - XML import'!$A17,1)-SEARCH(\">\",'CFR - XML import'!$A17,1)-2)))","v":0},{"$f":"IF(ISERROR(FIND(M$3,'CFR - XML import'!$A17)),0,VALUE(MID('CFR - XML import'!$A17,SEARCH(\">\",'CFR - XML import'!$A17,1)+1,SEARCH(\"/\",'CFR - XML import'!$A17,1)-SEARCH(\">\",'CFR - XML import'!$A17,1)-2)))","v":0},{"$f":"IF(ISERROR(FIND(N$3,'CFR - XML import'!$A17)),0,VALUE(MID('CFR - XML import'!$A17,SEARCH(\">\",'CFR - XML import'!$A17,1)+1,SEARCH(\"/\",'CFR - XML import'!$A17,1)-SEARCH(\">\",'CFR - XML import'!$A17,1)-2)))","v":0},{"$f":"IF(ISERROR(FIND(O$3,'CFR - XML import'!$A17)),0,VALUE(MID('CFR - XML import'!$A17,SEARCH(\">\",'CFR - XML import'!$A17,1)+1,SEARCH(\"/\",'CFR - XML import'!$A17,1)-SEARCH(\">\",'CFR - XML import'!$A17,1)-2)))","v":0},{"$f":"IF(ISERROR(FIND(P$3,'CFR - XML import'!$A17)),0,VALUE(MID('CFR - XML import'!$A17,SEARCH(\">\",'CFR - XML import'!$A17,1)+1,SEARCH(\"/\",'CFR - XML import'!$A17,1)-SEARCH(\">\",'CFR - XML import'!$A17,1)-2)))","v":0},{"$f":"IF(ISERROR(FIND(Q$3,'CFR - XML import'!$A17)),0,VALUE(MID('CFR - XML import'!$A17,SEARCH(\">\",'CFR - XML import'!$A17,1)+1,SEARCH(\"/\",'CFR - XML import'!$A17,1)-SEARCH(\">\",'CFR - XML import'!$A17,1)-2)))","v":0},{"$f":"IF(ISERROR(FIND(R$3,'CFR - XML import'!$A17)),0,VALUE(MID('CFR - XML import'!$A17,SEARCH(\">\",'CFR - XML import'!$A17,1)+1,SEARCH(\"/\",'CFR - XML import'!$A17,1)-SEARCH(\">\",'CFR - XML import'!$A17,1)-2)))","v":0},{"$f":"IF(ISERROR(FIND(S$3,'CFR - XML import'!$A17)),0,VALUE(MID('CFR - XML import'!$A17,SEARCH(\">\",'CFR - XML import'!$A17,1)+1,SEARCH(\"/\",'CFR - XML import'!$A17,1)-SEARCH(\">\",'CFR - XML import'!$A17,1)-2)))","v":0},{"$f":"IF(ISERROR(FIND(T$3,'CFR - XML import'!$A17)),0,VALUE(MID('CFR - XML import'!$A17,SEARCH(\">\",'CFR - XML import'!$A17,1)+1,SEARCH(\"/\",'CFR - XML import'!$A17,1)-SEARCH(\">\",'CFR - XML import'!$A17,1)-2)))","v":0},{"$f":"IF(ISERROR(FIND(U$3,'CFR - XML import'!$A17)),0,VALUE(MID('CFR - XML import'!$A17,SEARCH(\">\",'CFR - XML import'!$A17,1)+1,SEARCH(\"/\",'CFR - XML import'!$A17,1)-SEARCH(\">\",'CFR - XML import'!$A17,1)-2)))","v":0},{"$f":"IF(ISERROR(FIND(V$3,'CFR - XML import'!$A17)),0,VALUE(MID('CFR - XML import'!$A17,SEARCH(\">\",'CFR - XML import'!$A17,1)+1,SEARCH(\"/\",'CFR - XML import'!$A17,1)-SEARCH(\">\",'CFR - XML import'!$A17,1)-2)))","v":0},{"$f":"IF(ISERROR(FIND(W$3,'CFR - XML import'!$A17)),0,VALUE(MID('CFR - XML import'!$A17,SEARCH(\">\",'CFR - XML import'!$A17,1)+1,SEARCH(\"/\",'CFR - XML import'!$A17,1)-SEARCH(\">\",'CFR - XML import'!$A17,1)-2)))","v":0},null,{"$f":"IF(ISERROR(FIND(Y$3,'CFR - XML import'!$A17)),0,VALUE(MID('CFR - XML import'!$A17,SEARCH(\">\",'CFR - XML import'!$A17,1)+1,SEARCH(\"/\",'CFR - XML import'!$A17,1)-SEARCH(\">\",'CFR - XML import'!$A17,1)-2)))","v":0},{"$f":"IF(ISERROR(FIND(Z$3,'CFR - XML import'!$A17)),0,VALUE(MID('CFR - XML import'!$A17,SEARCH(\">\",'CFR - XML import'!$A17,1)+1,SEARCH(\"/\",'CFR - XML import'!$A17,1)-SEARCH(\">\",'CFR - XML import'!$A17,1)-2)))","v":0},{"$f":"IF(ISERROR(FIND(AA$3,'CFR - XML import'!$A17)),0,VALUE(MID('CFR - XML import'!$A17,SEARCH(\">\",'CFR - XML import'!$A17,1)+1,SEARCH(\"/\",'CFR - XML import'!$A17,1)-SEARCH(\">\",'CFR - XML import'!$A17,1)-2)))","v":0},{"$f":"IF(ISERROR(FIND(AB$3,'CFR - XML import'!$A17)),0,VALUE(MID('CFR - XML import'!$A17,SEARCH(\">\",'CFR - XML import'!$A17,1)+1,SEARCH(\"/\",'CFR - XML import'!$A17,1)-SEARCH(\">\",'CFR - XML import'!$A17,1)-2)))","v":0},{"$f":"IF(ISERROR(FIND(AC$3,'CFR - XML import'!$A17)),0,VALUE(MID('CFR - XML import'!$A17,SEARCH(\">\",'CFR - XML import'!$A17,1)+1,SEARCH(\"/\",'CFR - XML import'!$A17,1)-SEARCH(\">\",'CFR - XML import'!$A17,1)-2)))","v":0},{"$f":"IF(ISERROR(FIND(AD$3,'CFR - XML import'!$A17)),0,VALUE(MID('CFR - XML import'!$A17,SEARCH(\">\",'CFR - XML import'!$A17,1)+1,SEARCH(\"/\",'CFR - XML import'!$A17,1)-SEARCH(\">\",'CFR - XML import'!$A17,1)-2)))","v":0},{"$f":"IF(ISERROR(FIND(AE$3,'CFR - XML import'!$A17)),0,VALUE(MID('CFR - XML import'!$A17,SEARCH(\">\",'CFR - XML import'!$A17,1)+1,SEARCH(\"/\",'CFR - XML import'!$A17,1)-SEARCH(\">\",'CFR - XML import'!$A17,1)-2)))","v":0},{"$f":"IF(ISERROR(FIND(AF$3,'CFR - XML import'!$A17)),0,VALUE(MID('CFR - XML import'!$A17,SEARCH(\">\",'CFR - XML import'!$A17,1)+1,SEARCH(\"/\",'CFR - XML import'!$A17,1)-SEARCH(\">\",'CFR - XML import'!$A17,1)-2)))","v":0},{"$f":"IF(ISERROR(FIND(AG$3,'CFR - XML import'!$A17)),0,VALUE(MID('CFR - XML import'!$A17,SEARCH(\">\",'CFR - XML import'!$A17,1)+1,SEARCH(\"/\",'CFR - XML import'!$A17,1)-SEARCH(\">\",'CFR - XML import'!$A17,1)-2)))","v":0},{"$f":"IF(ISERROR(FIND(AH$3,'CFR - XML import'!$A17)),0,VALUE(MID('CFR - XML import'!$A17,SEARCH(\">\",'CFR - XML import'!$A17,1)+1,SEARCH(\"/\",'CFR - XML import'!$A17,1)-SEARCH(\">\",'CFR - XML import'!$A17,1)-2)))","v":0},{"$f":"IF(ISERROR(FIND(AI$3,'CFR - XML import'!$A17)),0,VALUE(MID('CFR - XML import'!$A17,SEARCH(\">\",'CFR - XML import'!$A17,1)+1,SEARCH(\"/\",'CFR - XML import'!$A17,1)-SEARCH(\">\",'CFR - XML import'!$A17,1)-2)))","v":0},{"$f":"IF(ISERROR(FIND(AJ$3,'CFR - XML import'!$A17)),0,VALUE(MID('CFR - XML import'!$A17,SEARCH(\">\",'CFR - XML import'!$A17,1)+1,SEARCH(\"/\",'CFR - XML import'!$A17,1)-SEARCH(\">\",'CFR - XML import'!$A17,1)-2)))","v":0},{"$f":"IF(ISERROR(FIND(AK$3,'CFR - XML import'!$A17)),0,VALUE(MID('CFR - XML import'!$A17,SEARCH(\">\",'CFR - XML import'!$A17,1)+1,SEARCH(\"/\",'CFR - XML import'!$A17,1)-SEARCH(\">\",'CFR - XML import'!$A17,1)-2)))","v":0},{"$f":"IF(ISERROR(FIND(AL$3,'CFR - XML import'!$A17)),0,VALUE(MID('CFR - XML import'!$A17,SEARCH(\">\",'CFR - XML import'!$A17,1)+1,SEARCH(\"/\",'CFR - XML import'!$A17,1)-SEARCH(\">\",'CFR - XML import'!$A17,1)-2)))","v":0},{"$f":"IF(ISERROR(FIND(AM$3,'CFR - XML import'!$A17)),0,VALUE(MID('CFR - XML import'!$A17,SEARCH(\">\",'CFR - XML import'!$A17,1)+1,SEARCH(\"/\",'CFR - XML import'!$A17,1)-SEARCH(\">\",'CFR - XML import'!$A17,1)-2)))","v":0},{"$f":"IF(ISERROR(FIND(AN$3,'CFR - XML import'!$A17)),0,VALUE(MID('CFR - XML import'!$A17,SEARCH(\">\",'CFR - XML import'!$A17,1)+1,SEARCH(\"/\",'CFR - XML import'!$A17,1)-SEARCH(\">\",'CFR - XML import'!$A17,1)-2)))","v":0},{"$f":"IF(ISERROR(FIND(AO$3,'CFR - XML import'!$A17)),0,VALUE(MID('CFR - XML import'!$A17,SEARCH(\">\",'CFR - XML import'!$A17,1)+1,SEARCH(\"/\",'CFR - XML import'!$A17,1)-SEARCH(\">\",'CFR - XML import'!$A17,1)-2)))","v":0},{"$f":"IF(ISERROR(FIND(AP$3,'CFR - XML import'!$A17)),0,VALUE(MID('CFR - XML import'!$A17,SEARCH(\">\",'CFR - XML import'!$A17,1)+1,SEARCH(\"/\",'CFR - XML import'!$A17,1)-SEARCH(\">\",'CFR - XML import'!$A17,1)-2)))","v":0},{"$f":"IF(ISERROR(FIND(AQ$3,'CFR - XML import'!$A17)),0,VALUE(MID('CFR - XML import'!$A17,SEARCH(\">\",'CFR - XML import'!$A17,1)+1,SEARCH(\"/\",'CFR - XML import'!$A17,1)-SEARCH(\">\",'CFR - XML import'!$A17,1)-2)))","v":0},{"$f":"IF(ISERROR(FIND(AR$3,'CFR - XML import'!$A17)),0,VALUE(MID('CFR - XML import'!$A17,SEARCH(\">\",'CFR - XML import'!$A17,1)+1,SEARCH(\"/\",'CFR - XML import'!$A17,1)-SEARCH(\">\",'CFR - XML import'!$A17,1)-2)))","v":0},{"$f":"IF(ISERROR(FIND(AS$3,'CFR - XML import'!$A17)),0,VALUE(MID('CFR - XML import'!$A17,SEARCH(\">\",'CFR - XML import'!$A17,1)+1,SEARCH(\"/\",'CFR - XML import'!$A17,1)-SEARCH(\">\",'CFR - XML import'!$A17,1)-2)))","v":0},{"$f":"IF(ISERROR(FIND(AT$3,'CFR - XML import'!$A17)),0,VALUE(MID('CFR - XML import'!$A17,SEARCH(\">\",'CFR - XML import'!$A17,1)+1,SEARCH(\"/\",'CFR - XML import'!$A17,1)-SEARCH(\">\",'CFR - XML import'!$A17,1)-2)))","v":0},{"$f":"IF(ISERROR(FIND(AU$3,'CFR - XML import'!$A17)),0,VALUE(MID('CFR - XML import'!$A17,SEARCH(\">\",'CFR - XML import'!$A17,1)+1,SEARCH(\"/\",'CFR - XML import'!$A17,1)-SEARCH(\">\",'CFR - XML import'!$A17,1)-2)))","v":0},{"$f":"IF(ISERROR(FIND(AV$3,'CFR - XML import'!$A17)),0,VALUE(MID('CFR - XML import'!$A17,SEARCH(\">\",'CFR - XML import'!$A17,1)+1,SEARCH(\"/\",'CFR - XML import'!$A17,1)-SEARCH(\">\",'CFR - XML import'!$A17,1)-2)))","v":0},{"$f":"IF(ISERROR(FIND(AW$3,'CFR - XML import'!$A17)),0,VALUE(MID('CFR - XML import'!$A17,SEARCH(\">\",'CFR - XML import'!$A17,1)+1,SEARCH(\"/\",'CFR - XML import'!$A17,1)-SEARCH(\">\",'CFR - XML import'!$A17,1)-2)))","v":0},{"$f":"IF(ISERROR(FIND(AX$3,'CFR - XML import'!$A17)),0,VALUE(MID('CFR - XML import'!$A17,SEARCH(\">\",'CFR - XML import'!$A17,1)+1,SEARCH(\"/\",'CFR - XML import'!$A17,1)-SEARCH(\">\",'CFR - XML import'!$A17,1)-2)))","v":0},{"$f":"IF(ISERROR(FIND(AY$3,'CFR - XML import'!$A17)),0,VALUE(MID('CFR - XML import'!$A17,SEARCH(\">\",'CFR - XML import'!$A17,1)+1,SEARCH(\"/\",'CFR - XML import'!$A17,1)-SEARCH(\">\",'CFR - XML import'!$A17,1)-2)))","v":0},{"$f":"IF(ISERROR(FIND(AZ$3,'CFR - XML import'!$A17)),0,VALUE(MID('CFR - XML import'!$A17,SEARCH(\">\",'CFR - XML import'!$A17,1)+1,SEARCH(\"/\",'CFR - XML import'!$A17,1)-SEARCH(\">\",'CFR - XML import'!$A17,1)-2)))","v":0},{"$f":"IF(ISERROR(FIND(BA$3,'CFR - XML import'!$A17)),0,VALUE(MID('CFR - XML import'!$A17,SEARCH(\">\",'CFR - XML import'!$A17,1)+1,SEARCH(\"/\",'CFR - XML import'!$A17,1)-SEARCH(\">\",'CFR - XML import'!$A17,1)-2)))","v":0},{"$f":"IF(ISERROR(FIND(BB$3,'CFR - XML import'!$A17)),0,VALUE(MID('CFR - XML import'!$A17,SEARCH(\">\",'CFR - XML import'!$A17,1)+1,SEARCH(\"/\",'CFR - XML import'!$A17,1)-SEARCH(\">\",'CFR - XML import'!$A17,1)-2)))","v":0},{"$f":"IF(ISERROR(FIND(BC$3,'CFR - XML import'!$A17)),0,VALUE(MID('CFR - XML import'!$A17,SEARCH(\">\",'CFR - XML import'!$A17,1)+1,SEARCH(\"/\",'CFR - XML import'!$A17,1)-SEARCH(\">\",'CFR - XML import'!$A17,1)-2)))","v":0},{"$f":"IF(ISERROR(FIND(BD$3,'CFR - XML import'!$A17)),0,VALUE(MID('CFR - XML import'!$A17,SEARCH(\">\",'CFR - XML import'!$A17,1)+1,SEARCH(\"/\",'CFR - XML import'!$A17,1)-SEARCH(\">\",'CFR - XML import'!$A17,1)-2)))","v":0},{"$f":"IF(ISERROR(FIND(BE$3,'CFR - XML import'!$A17)),0,VALUE(MID('CFR - XML import'!$A17,SEARCH(\">\",'CFR - XML import'!$A17,1)+1,SEARCH(\"/\",'CFR - XML import'!$A17,1)-SEARCH(\">\",'CFR - XML import'!$A17,1)-2)))","v":0},{"$f":"IF(ISERROR(FIND(BF$3,'CFR - XML import'!$A17)),0,VALUE(MID('CFR - XML import'!$A17,SEARCH(\">\",'CFR - XML import'!$A17,1)+1,SEARCH(\"/\",'CFR - XML import'!$A17,1)-SEARCH(\">\",'CFR - XML import'!$A17,1)-2)))","v":0},{"$f":"IF(ISERROR(FIND(BG$3,'CFR - XML import'!$A17)),0,VALUE(MID('CFR - XML import'!$A17,SEARCH(\">\",'CFR - XML import'!$A17,1)+1,SEARCH(\"/\",'CFR - XML import'!$A17,1)-SEARCH(\">\",'CFR - XML import'!$A17,1)-2)))","v":0},{"$f":"IF(ISERROR(FIND(BH$3,'CFR - XML import'!$A17)),0,VALUE(MID('CFR - XML import'!$A17,SEARCH(\">\",'CFR - XML import'!$A17,1)+1,SEARCH(\"/\",'CFR - XML import'!$A17,1)-SEARCH(\">\",'CFR - XML import'!$A17,1)-2)))","v":0},{"$f":"IF(ISERROR(FIND(BI$3,'CFR - XML import'!$A17)),0,VALUE(MID('CFR - XML import'!$A17,SEARCH(\">\",'CFR - XML import'!$A17,1)+1,SEARCH(\"/\",'CFR - XML import'!$A17,1)-SEARCH(\">\",'CFR - XML import'!$A17,1)-2)))","v":0},{"$f":"IF(ISERROR(FIND(BJ$3,'CFR - XML import'!$A17)),0,VALUE(MID('CFR - XML import'!$A17,SEARCH(\">\",'CFR - XML import'!$A17,1)+1,SEARCH(\"/\",'CFR - XML import'!$A17,1)-SEARCH(\">\",'CFR - XML import'!$A17,1)-2)))","v":0},{"$f":"IF(ISERROR(FIND(BK$3,'CFR - XML import'!$A17)),0,VALUE(MID('CFR - XML import'!$A17,SEARCH(\">\",'CFR - XML import'!$A17,1)+1,SEARCH(\"/\",'CFR - XML import'!$A17,1)-SEARCH(\">\",'CFR - XML import'!$A17,1)-2)))","v":0},{"$f":"IF(ISERROR(FIND(BL$3,'CFR - XML import'!$A17)),0,VALUE(MID('CFR - XML import'!$A17,SEARCH(\">\",'CFR - XML import'!$A17,1)+1,SEARCH(\"/\",'CFR - XML import'!$A17,1)-SEARCH(\">\",'CFR - XML import'!$A17,1)-2)))","v":0},{"$f":"IF(ISERROR(FIND(BM$3,'CFR - XML import'!$A17)),0,VALUE(MID('CFR - XML import'!$A17,SEARCH(\">\",'CFR - XML import'!$A17,1)+1,SEARCH(\"/\",'CFR - XML import'!$A17,1)-SEARCH(\">\",'CFR - XML import'!$A17,1)-2)))","v":0},{"$f":"IF(ISERROR(FIND(BN$3,'CFR - XML import'!$A17)),0,VALUE(MID('CFR - XML import'!$A17,SEARCH(\">\",'CFR - XML import'!$A17,1)+1,SEARCH(\"/\",'CFR - XML import'!$A17,1)-SEARCH(\">\",'CFR - XML import'!$A17,1)-2)))","v":0},{"$f":"IF(ISERROR(FIND(BO$3,'CFR - XML import'!$A17)),0,VALUE(MID('CFR - XML import'!$A17,SEARCH(\">\",'CFR - XML import'!$A17,1)+1,SEARCH(\"/\",'CFR - XML import'!$A17,1)-SEARCH(\">\",'CFR - XML import'!$A17,1)-2)))","v":0},{"$f":"IF(ISERROR(FIND(BP$3,'CFR - XML import'!$A17)),0,VALUE(MID('CFR - XML import'!$A17,SEARCH(\">\",'CFR - XML import'!$A17,1)+1,SEARCH(\"/\",'CFR - XML import'!$A17,1)-SEARCH(\">\",'CFR - XML import'!$A17,1)-2)))","v":0},{"$f":"IF(ISERROR(FIND(BQ$3,'CFR - XML import'!$A17)),0,VALUE(MID('CFR - XML import'!$A17,SEARCH(\">\",'CFR - XML import'!$A17,1)+1,SEARCH(\"/\",'CFR - XML import'!$A17,1)-SEARCH(\">\",'CFR - XML import'!$A17,1)-2)))","v":0},{"$f":"IF(ISERROR(FIND(BR$3,'CFR - XML import'!$A17)),0,VALUE(MID('CFR - XML import'!$A17,SEARCH(\">\",'CFR - XML import'!$A17,1)+1,SEARCH(\"/\",'CFR - XML import'!$A17,1)-SEARCH(\">\",'CFR - XML import'!$A17,1)-2)))","v":0},{"$f":"IF(ISERROR(FIND(BS$3,'CFR - XML import'!$A17)),0,VALUE(MID('CFR - XML import'!$A17,SEARCH(\">\",'CFR - XML import'!$A17,1)+1,SEARCH(\"/\",'CFR - XML import'!$A17,1)-SEARCH(\">\",'CFR - XML import'!$A17,1)-2)))","v":0},{"$f":"IF(ISERROR(FIND(BT$3,'CFR - XML import'!$A17)),0,VALUE(MID('CFR - XML import'!$A17,SEARCH(\">\",'CFR - XML import'!$A17,1)+1,SEARCH(\"/\",'CFR - XML import'!$A17,1)-SEARCH(\">\",'CFR - XML import'!$A17,1)-2)))","v":0},{"$f":"IF(ISERROR(FIND(BU$3,'CFR - XML import'!$A17)),0,VALUE(MID('CFR - XML import'!$A17,SEARCH(\">\",'CFR - XML import'!$A17,1)+1,SEARCH(\"/\",'CFR - XML import'!$A17,1)-SEARCH(\">\",'CFR - XML import'!$A17,1)-2)))","v":0},{"$f":"IF(ISERROR(FIND(BV$3,'CFR - XML import'!$A17)),0,VALUE(MID('CFR - XML import'!$A17,SEARCH(\">\",'CFR - XML import'!$A17,1)+1,SEARCH(\"/\",'CFR - XML import'!$A17,1)-SEARCH(\">\",'CFR - XML import'!$A17,1)-2)))","v":0},{"$f":"IF(ISERROR(FIND(BW$3,'CFR - XML import'!$A17)),0,VALUE(MID('CFR - XML import'!$A17,SEARCH(\">\",'CFR - XML import'!$A17,1)+1,SEARCH(\"/\",'CFR - XML import'!$A17,1)-SEARCH(\">\",'CFR - XML import'!$A17,1)-2)))","v":0},{"$f":"IF(ISERROR(FIND(BX$3,'CFR - XML import'!$A17)),0,VALUE(MID('CFR - XML import'!$A17,SEARCH(\">\",'CFR - XML import'!$A17,1)+1,SEARCH(\"/\",'CFR - XML import'!$A17,1)-SEARCH(\">\",'CFR - XML import'!$A17,1)-2)))","v":0},{"$f":"IF(ISERROR(FIND(BY$3,'CFR - XML import'!$A17)),0,VALUE(MID('CFR - XML import'!$A17,SEARCH(\">\",'CFR - XML import'!$A17,1)+1,SEARCH(\"/\",'CFR - XML import'!$A17,1)-SEARCH(\">\",'CFR - XML import'!$A17,1)-2)))","v":0},{"$f":"IF(ISERROR(FIND(BZ$3,'CFR - XML import'!$A17)),0,VALUE(MID('CFR - XML import'!$A17,SEARCH(\">\",'CFR - XML import'!$A17,1)+1,SEARCH(\"/\",'CFR - XML import'!$A17,1)-SEARCH(\">\",'CFR - XML import'!$A17,1)-2)))","v":0},null,null,null,null,null,null,{"$f":"IF(ISERROR(IF(MID('CFR - XML import'!$A17,LEN($CF$4)+1,LEN('CFR - XML import'!$A17)-(2*LEN($CF$4)+1))=\"RMMS\",1,IF(MID('CFR - XML import'!$A17,LEN(\"    <InputSystem>\")+1,LEN('CFR - XML import'!$A17)-(LEN(\"    <InputSystem>\")+LEN($CF$4)+1))=\"SIMS\",2,0))),0,IF(MID('CFR - XML import'!$A17,LEN($CF$4)+1,LEN('CFR - XML import'!$A17)-(2*LEN($CF$4)+1))=\"RMMS\",1,IF(MID('CFR - XML import'!$A17,LEN(\"    <InputSystem>\")+1,LEN('CFR - XML import'!$A17)-(LEN(\"    <InputSystem>\")+LEN($CF$4)+1))=\"SIMS\",2,0)))","v":0},{"$f":"IF(ISERROR(FIND(CH$3,'CFR - XML import'!$A17)),0,MID('CFR - XML import'!$A17,SEARCH(\">\",'CFR - XML import'!$A17,1)+1,SEARCH(\"/\",'CFR - XML import'!$A17,1)-SEARCH(\">\",'CFR - XML import'!$A17,1)-2))","v":0},{"$f":"IF(ISERROR(FIND(CI$3,'CFR - XML import'!$A17)),0,MID('CFR - XML import'!$A17,SEARCH(\">\",'CFR - XML import'!$A17,1)+1,SEARCH(\"/\",'CFR - XML import'!$A17,1)-SEARCH(\">\",'CFR - XML import'!$A17,1)-2))","v":0},{"$f":"IF(ISERROR(FIND(CJ$3,'CFR - XML import'!$A17)),0,MID('CFR - XML import'!$A17,SEARCH(\">\",'CFR - XML import'!$A17,1)+1,SEARCH(\"/\",'CFR - XML import'!$A17,1)-SEARCH(\">\",'CFR - XML import'!$A17,1)-2))","v":0},{"$f":"IF(ISERROR(FIND(CK$3,'CFR - XML import'!$A17)),0,MID('CFR - XML import'!$A17,SEARCH(\">\",'CFR - XML import'!$A17,1)+1,SEARCH(\"/\",'CFR - XML import'!$A17,1)-SEARCH(\">\",'CFR - XML import'!$A17,1)-2))","v":0},{"$f":"IF(ISERROR(FIND(CL$3,'CFR - XML import'!$A17)),0,MID('CFR - XML import'!$A17,SEARCH(\">\",'CFR - XML import'!$A17,1)+1,SEARCH(\"/\",'CFR - XML import'!$A17,1)-SEARCH(\">\",'CFR - XML import'!$A17,1)-2))","v":0}]
[{"$f":"IF(AND('CFR - XML import'!A18<>\"\",LEFT('CFR - XML import'!A18,1)<>\"<\",LEFT('CFR - XML import'!A18,3)<>\"  <\",LEFT('CFR - XML import'!A18,5)<>\"    <\",LEFT('CFR - XML import'!A18,7)<>\"      <\",LEFT('CFR - XML import'!A18,9)<>\"        <\",$B$1=\"SIMS\"),'CFR - XML import'!A18,IF(AND(LEFT('CFR - XML import'!A18,9)=\"<Details>\",$B$1=\"RM\"),'CFR - XML import'!A18,\"\"))","v":""},{"$f":"IF(ISERROR(FIND(B$3,'CFR - XML import'!$A18)),0,VALUE(MID('CFR - XML import'!$A18,SEARCH(\">\",'CFR - XML import'!$A18,1)+1,SEARCH(\"/\",'CFR - XML import'!$A18,1)-SEARCH(\">\",'CFR - XML import'!$A18,1)-2)))","v":0},null,{"$f":"IF(ISERROR(FIND(D$3,'CFR - XML import'!$A18)),0,MID('CFR - XML import'!$A18,SEARCH(\">\",'CFR - XML import'!$A18,1)+1,SEARCH(\"/\",'CFR - XML import'!$A18,1)-SEARCH(\">\",'CFR - XML import'!$A18,1)-2))","v":0},{"$f":"IF(ISERROR(FIND(E$3,'CFR - XML import'!$A18)),0,MID('CFR - XML import'!$A18,SEARCH(\">\",'CFR - XML import'!$A18,1)+1,SEARCH(\"/\",'CFR - XML import'!$A18,1)-SEARCH(\">\",'CFR - XML import'!$A18,1)-2))","v":0},{"$f":"IF($B$1=\"SIMS\",IF(ISERROR(FIND(F$3,'CFR - XML import'!$A18)),0,VALUE(MID('CFR - XML import'!$A18,15,10))),IF(ISERROR(FIND(F$3,'CFR - XML import'!$A18)),0,VALUE(MID('CFR - XML import'!$A18,11,10))))","v":"00:00:00"},{"$f":"IF(ISERROR(FIND(G$3,'CFR - XML import'!$A18)),0,VALUE(MID('CFR - XML import'!$A18,SEARCH(\">\",'CFR - XML import'!$A18,1)+1,SEARCH(\"/\",'CFR - XML import'!$A18,1)-SEARCH(\">\",'CFR - XML import'!$A18,1)-2)))","v":0},{"$f":"IF(ISERROR(FIND(H$3,'CFR - XML import'!$A18)),0,VALUE(MID('CFR - XML import'!$A18,SEARCH(\">\",'CFR - XML import'!$A18,1)+1,SEARCH(\"/\",'CFR - XML import'!$A18,1)-SEARCH(\">\",'CFR - XML import'!$A18,1)-2)))","v":0},{"$f":"IF(ISERROR(FIND(I$3,'CFR - XML import'!$A18)),0,VALUE(MID('CFR - XML import'!$A18,SEARCH(\">\",'CFR - XML import'!$A18,1)+1,SEARCH(\"/\",'CFR - XML import'!$A18,1)-SEARCH(\">\",'CFR - XML import'!$A18,1)-2)))","v":0},{"$f":"IF(ISERROR(FIND(J$3,'CFR - XML import'!$A18)),0,VALUE(MID('CFR - XML import'!$A18,SEARCH(\">\",'CFR - XML import'!$A18,1)+1,SEARCH(\"/\",'CFR - XML import'!$A18,1)-SEARCH(\">\",'CFR - XML import'!$A18,1)-2)))","v":0},{"$f":"IF(ISERROR(FIND(K$3,'CFR - XML import'!$A18)),0,VALUE(MID('CFR - XML import'!$A18,SEARCH(\">\",'CFR - XML import'!$A18,1)+1,SEARCH(\"/\",'CFR - XML import'!$A18,1)-SEARCH(\">\",'CFR - XML import'!$A18,1)-2)))","v":0},{"$f":"IF(ISERROR(FIND(L$3,'CFR - XML import'!$A18)),0,VALUE(MID('CFR - XML import'!$A18,SEARCH(\">\",'CFR - XML import'!$A18,1)+1,SEARCH(\"/\",'CFR - XML import'!$A18,1)-SEARCH(\">\",'CFR - XML import'!$A18,1)-2)))","v":0},{"$f":"IF(ISERROR(FIND(M$3,'CFR - XML import'!$A18)),0,VALUE(MID('CFR - XML import'!$A18,SEARCH(\">\",'CFR - XML import'!$A18,1)+1,SEARCH(\"/\",'CFR - XML import'!$A18,1)-SEARCH(\">\",'CFR - XML import'!$A18,1)-2)))","v":0},{"$f":"IF(ISERROR(FIND(N$3,'CFR - XML import'!$A18)),0,VALUE(MID('CFR - XML import'!$A18,SEARCH(\">\",'CFR - XML import'!$A18,1)+1,SEARCH(\"/\",'CFR - XML import'!$A18,1)-SEARCH(\">\",'CFR - XML import'!$A18,1)-2)))","v":0},{"$f":"IF(ISERROR(FIND(O$3,'CFR - XML import'!$A18)),0,VALUE(MID('CFR - XML import'!$A18,SEARCH(\">\",'CFR - XML import'!$A18,1)+1,SEARCH(\"/\",'CFR - XML import'!$A18,1)-SEARCH(\">\",'CFR - XML import'!$A18,1)-2)))","v":0},{"$f":"IF(ISERROR(FIND(P$3,'CFR - XML import'!$A18)),0,VALUE(MID('CFR - XML import'!$A18,SEARCH(\">\",'CFR - XML import'!$A18,1)+1,SEARCH(\"/\",'CFR - XML import'!$A18,1)-SEARCH(\">\",'CFR - XML import'!$A18,1)-2)))","v":0},{"$f":"IF(ISERROR(FIND(Q$3,'CFR - XML import'!$A18)),0,VALUE(MID('CFR - XML import'!$A18,SEARCH(\">\",'CFR - XML import'!$A18,1)+1,SEARCH(\"/\",'CFR - XML import'!$A18,1)-SEARCH(\">\",'CFR - XML import'!$A18,1)-2)))","v":0},{"$f":"IF(ISERROR(FIND(R$3,'CFR - XML import'!$A18)),0,VALUE(MID('CFR - XML import'!$A18,SEARCH(\">\",'CFR - XML import'!$A18,1)+1,SEARCH(\"/\",'CFR - XML import'!$A18,1)-SEARCH(\">\",'CFR - XML import'!$A18,1)-2)))","v":0},{"$f":"IF(ISERROR(FIND(S$3,'CFR - XML import'!$A18)),0,VALUE(MID('CFR - XML import'!$A18,SEARCH(\">\",'CFR - XML import'!$A18,1)+1,SEARCH(\"/\",'CFR - XML import'!$A18,1)-SEARCH(\">\",'CFR - XML import'!$A18,1)-2)))","v":0},{"$f":"IF(ISERROR(FIND(T$3,'CFR - XML import'!$A18)),0,VALUE(MID('CFR - XML import'!$A18,SEARCH(\">\",'CFR - XML import'!$A18,1)+1,SEARCH(\"/\",'CFR - XML import'!$A18,1)-SEARCH(\">\",'CFR - XML import'!$A18,1)-2)))","v":0},{"$f":"IF(ISERROR(FIND(U$3,'CFR - XML import'!$A18)),0,VALUE(MID('CFR - XML import'!$A18,SEARCH(\">\",'CFR - XML import'!$A18,1)+1,SEARCH(\"/\",'CFR - XML import'!$A18,1)-SEARCH(\">\",'CFR - XML import'!$A18,1)-2)))","v":0},{"$f":"IF(ISERROR(FIND(V$3,'CFR - XML import'!$A18)),0,VALUE(MID('CFR - XML import'!$A18,SEARCH(\">\",'CFR - XML import'!$A18,1)+1,SEARCH(\"/\",'CFR - XML import'!$A18,1)-SEARCH(\">\",'CFR - XML import'!$A18,1)-2)))","v":0},{"$f":"IF(ISERROR(FIND(W$3,'CFR - XML import'!$A18)),0,VALUE(MID('CFR - XML import'!$A18,SEARCH(\">\",'CFR - XML import'!$A18,1)+1,SEARCH(\"/\",'CFR - XML import'!$A18,1)-SEARCH(\">\",'CFR - XML import'!$A18,1)-2)))","v":0},null,{"$f":"IF(ISERROR(FIND(Y$3,'CFR - XML import'!$A18)),0,VALUE(MID('CFR - XML import'!$A18,SEARCH(\">\",'CFR - XML import'!$A18,1)+1,SEARCH(\"/\",'CFR - XML import'!$A18,1)-SEARCH(\">\",'CFR - XML import'!$A18,1)-2)))","v":0},{"$f":"IF(ISERROR(FIND(Z$3,'CFR - XML import'!$A18)),0,VALUE(MID('CFR - XML import'!$A18,SEARCH(\">\",'CFR - XML import'!$A18,1)+1,SEARCH(\"/\",'CFR - XML import'!$A18,1)-SEARCH(\">\",'CFR - XML import'!$A18,1)-2)))","v":0},{"$f":"IF(ISERROR(FIND(AA$3,'CFR - XML import'!$A18)),0,VALUE(MID('CFR - XML import'!$A18,SEARCH(\">\",'CFR - XML import'!$A18,1)+1,SEARCH(\"/\",'CFR - XML import'!$A18,1)-SEARCH(\">\",'CFR - XML import'!$A18,1)-2)))","v":0},{"$f":"IF(ISERROR(FIND(AB$3,'CFR - XML import'!$A18)),0,VALUE(MID('CFR - XML import'!$A18,SEARCH(\">\",'CFR - XML import'!$A18,1)+1,SEARCH(\"/\",'CFR - XML import'!$A18,1)-SEARCH(\">\",'CFR - XML import'!$A18,1)-2)))","v":0},{"$f":"IF(ISERROR(FIND(AC$3,'CFR - XML import'!$A18)),0,VALUE(MID('CFR - XML import'!$A18,SEARCH(\">\",'CFR - XML import'!$A18,1)+1,SEARCH(\"/\",'CFR - XML import'!$A18,1)-SEARCH(\">\",'CFR - XML import'!$A18,1)-2)))","v":0},{"$f":"IF(ISERROR(FIND(AD$3,'CFR - XML import'!$A18)),0,VALUE(MID('CFR - XML import'!$A18,SEARCH(\">\",'CFR - XML import'!$A18,1)+1,SEARCH(\"/\",'CFR - XML import'!$A18,1)-SEARCH(\">\",'CFR - XML import'!$A18,1)-2)))","v":0},{"$f":"IF(ISERROR(FIND(AE$3,'CFR - XML import'!$A18)),0,VALUE(MID('CFR - XML import'!$A18,SEARCH(\">\",'CFR - XML import'!$A18,1)+1,SEARCH(\"/\",'CFR - XML import'!$A18,1)-SEARCH(\">\",'CFR - XML import'!$A18,1)-2)))","v":0},{"$f":"IF(ISERROR(FIND(AF$3,'CFR - XML import'!$A18)),0,VALUE(MID('CFR - XML import'!$A18,SEARCH(\">\",'CFR - XML import'!$A18,1)+1,SEARCH(\"/\",'CFR - XML import'!$A18,1)-SEARCH(\">\",'CFR - XML import'!$A18,1)-2)))","v":0},{"$f":"IF(ISERROR(FIND(AG$3,'CFR - XML import'!$A18)),0,VALUE(MID('CFR - XML import'!$A18,SEARCH(\">\",'CFR - XML import'!$A18,1)+1,SEARCH(\"/\",'CFR - XML import'!$A18,1)-SEARCH(\">\",'CFR - XML import'!$A18,1)-2)))","v":0},{"$f":"IF(ISERROR(FIND(AH$3,'CFR - XML import'!$A18)),0,VALUE(MID('CFR - XML import'!$A18,SEARCH(\">\",'CFR - XML import'!$A18,1)+1,SEARCH(\"/\",'CFR - XML import'!$A18,1)-SEARCH(\">\",'CFR - XML import'!$A18,1)-2)))","v":0},{"$f":"IF(ISERROR(FIND(AI$3,'CFR - XML import'!$A18)),0,VALUE(MID('CFR - XML import'!$A18,SEARCH(\">\",'CFR - XML import'!$A18,1)+1,SEARCH(\"/\",'CFR - XML import'!$A18,1)-SEARCH(\">\",'CFR - XML import'!$A18,1)-2)))","v":0},{"$f":"IF(ISERROR(FIND(AJ$3,'CFR - XML import'!$A18)),0,VALUE(MID('CFR - XML import'!$A18,SEARCH(\">\",'CFR - XML import'!$A18,1)+1,SEARCH(\"/\",'CFR - XML import'!$A18,1)-SEARCH(\">\",'CFR - XML import'!$A18,1)-2)))","v":0},{"$f":"IF(ISERROR(FIND(AK$3,'CFR - XML import'!$A18)),0,VALUE(MID('CFR - XML import'!$A18,SEARCH(\">\",'CFR - XML import'!$A18,1)+1,SEARCH(\"/\",'CFR - XML import'!$A18,1)-SEARCH(\">\",'CFR - XML import'!$A18,1)-2)))","v":0},{"$f":"IF(ISERROR(FIND(AL$3,'CFR - XML import'!$A18)),0,VALUE(MID('CFR - XML import'!$A18,SEARCH(\">\",'CFR - XML import'!$A18,1)+1,SEARCH(\"/\",'CFR - XML import'!$A18,1)-SEARCH(\">\",'CFR - XML import'!$A18,1)-2)))","v":0},{"$f":"IF(ISERROR(FIND(AM$3,'CFR - XML import'!$A18)),0,VALUE(MID('CFR - XML import'!$A18,SEARCH(\">\",'CFR - XML import'!$A18,1)+1,SEARCH(\"/\",'CFR - XML import'!$A18,1)-SEARCH(\">\",'CFR - XML import'!$A18,1)-2)))","v":0},{"$f":"IF(ISERROR(FIND(AN$3,'CFR - XML import'!$A18)),0,VALUE(MID('CFR - XML import'!$A18,SEARCH(\">\",'CFR - XML import'!$A18,1)+1,SEARCH(\"/\",'CFR - XML import'!$A18,1)-SEARCH(\">\",'CFR - XML import'!$A18,1)-2)))","v":0},{"$f":"IF(ISERROR(FIND(AO$3,'CFR - XML import'!$A18)),0,VALUE(MID('CFR - XML import'!$A18,SEARCH(\">\",'CFR - XML import'!$A18,1)+1,SEARCH(\"/\",'CFR - XML import'!$A18,1)-SEARCH(\">\",'CFR - XML import'!$A18,1)-2)))","v":0},{"$f":"IF(ISERROR(FIND(AP$3,'CFR - XML import'!$A18)),0,VALUE(MID('CFR - XML import'!$A18,SEARCH(\">\",'CFR - XML import'!$A18,1)+1,SEARCH(\"/\",'CFR - XML import'!$A18,1)-SEARCH(\">\",'CFR - XML import'!$A18,1)-2)))","v":0},{"$f":"IF(ISERROR(FIND(AQ$3,'CFR - XML import'!$A18)),0,VALUE(MID('CFR - XML import'!$A18,SEARCH(\">\",'CFR - XML import'!$A18,1)+1,SEARCH(\"/\",'CFR - XML import'!$A18,1)-SEARCH(\">\",'CFR - XML import'!$A18,1)-2)))","v":0},{"$f":"IF(ISERROR(FIND(AR$3,'CFR - XML import'!$A18)),0,VALUE(MID('CFR - XML import'!$A18,SEARCH(\">\",'CFR - XML import'!$A18,1)+1,SEARCH(\"/\",'CFR - XML import'!$A18,1)-SEARCH(\">\",'CFR - XML import'!$A18,1)-2)))","v":0},{"$f":"IF(ISERROR(FIND(AS$3,'CFR - XML import'!$A18)),0,VALUE(MID('CFR - XML import'!$A18,SEARCH(\">\",'CFR - XML import'!$A18,1)+1,SEARCH(\"/\",'CFR - XML import'!$A18,1)-SEARCH(\">\",'CFR - XML import'!$A18,1)-2)))","v":0},{"$f":"IF(ISERROR(FIND(AT$3,'CFR - XML import'!$A18)),0,VALUE(MID('CFR - XML import'!$A18,SEARCH(\">\",'CFR - XML import'!$A18,1)+1,SEARCH(\"/\",'CFR - XML import'!$A18,1)-SEARCH(\">\",'CFR - XML import'!$A18,1)-2)))","v":0},{"$f":"IF(ISERROR(FIND(AU$3,'CFR - XML import'!$A18)),0,VALUE(MID('CFR - XML import'!$A18,SEARCH(\">\",'CFR - XML import'!$A18,1)+1,SEARCH(\"/\",'CFR - XML import'!$A18,1)-SEARCH(\">\",'CFR - XML import'!$A18,1)-2)))","v":0},{"$f":"IF(ISERROR(FIND(AV$3,'CFR - XML import'!$A18)),0,VALUE(MID('CFR - XML import'!$A18,SEARCH(\">\",'CFR - XML import'!$A18,1)+1,SEARCH(\"/\",'CFR - XML import'!$A18,1)-SEARCH(\">\",'CFR - XML import'!$A18,1)-2)))","v":0},{"$f":"IF(ISERROR(FIND(AW$3,'CFR - XML import'!$A18)),0,VALUE(MID('CFR - XML import'!$A18,SEARCH(\">\",'CFR - XML import'!$A18,1)+1,SEARCH(\"/\",'CFR - XML import'!$A18,1)-SEARCH(\">\",'CFR - XML import'!$A18,1)-2)))","v":0},{"$f":"IF(ISERROR(FIND(AX$3,'CFR - XML import'!$A18)),0,VALUE(MID('CFR - XML import'!$A18,SEARCH(\">\",'CFR - XML import'!$A18,1)+1,SEARCH(\"/\",'CFR - XML import'!$A18,1)-SEARCH(\">\",'CFR - XML import'!$A18,1)-2)))","v":0},{"$f":"IF(ISERROR(FIND(AY$3,'CFR - XML import'!$A18)),0,VALUE(MID('CFR - XML import'!$A18,SEARCH(\">\",'CFR - XML import'!$A18,1)+1,SEARCH(\"/\",'CFR - XML import'!$A18,1)-SEARCH(\">\",'CFR - XML import'!$A18,1)-2)))","v":0},{"$f":"IF(ISERROR(FIND(AZ$3,'CFR - XML import'!$A18)),0,VALUE(MID('CFR - XML import'!$A18,SEARCH(\">\",'CFR - XML import'!$A18,1)+1,SEARCH(\"/\",'CFR - XML import'!$A18,1)-SEARCH(\">\",'CFR - XML import'!$A18,1)-2)))","v":0},{"$f":"IF(ISERROR(FIND(BA$3,'CFR - XML import'!$A18)),0,VALUE(MID('CFR - XML import'!$A18,SEARCH(\">\",'CFR - XML import'!$A18,1)+1,SEARCH(\"/\",'CFR - XML import'!$A18,1)-SEARCH(\">\",'CFR - XML import'!$A18,1)-2)))","v":0},{"$f":"IF(ISERROR(FIND(BB$3,'CFR - XML import'!$A18)),0,VALUE(MID('CFR - XML import'!$A18,SEARCH(\">\",'CFR - XML import'!$A18,1)+1,SEARCH(\"/\",'CFR - XML import'!$A18,1)-SEARCH(\">\",'CFR - XML import'!$A18,1)-2)))","v":0},{"$f":"IF(ISERROR(FIND(BC$3,'CFR - XML import'!$A18)),0,VALUE(MID('CFR - XML import'!$A18,SEARCH(\">\",'CFR - XML import'!$A18,1)+1,SEARCH(\"/\",'CFR - XML import'!$A18,1)-SEARCH(\">\",'CFR - XML import'!$A18,1)-2)))","v":0},{"$f":"IF(ISERROR(FIND(BD$3,'CFR - XML import'!$A18)),0,VALUE(MID('CFR - XML import'!$A18,SEARCH(\">\",'CFR - XML import'!$A18,1)+1,SEARCH(\"/\",'CFR - XML import'!$A18,1)-SEARCH(\">\",'CFR - XML import'!$A18,1)-2)))","v":0},{"$f":"IF(ISERROR(FIND(BE$3,'CFR - XML import'!$A18)),0,VALUE(MID('CFR - XML import'!$A18,SEARCH(\">\",'CFR - XML import'!$A18,1)+1,SEARCH(\"/\",'CFR - XML import'!$A18,1)-SEARCH(\">\",'CFR - XML import'!$A18,1)-2)))","v":0},{"$f":"IF(ISERROR(FIND(BF$3,'CFR - XML import'!$A18)),0,VALUE(MID('CFR - XML import'!$A18,SEARCH(\">\",'CFR - XML import'!$A18,1)+1,SEARCH(\"/\",'CFR - XML import'!$A18,1)-SEARCH(\">\",'CFR - XML import'!$A18,1)-2)))","v":0},{"$f":"IF(ISERROR(FIND(BG$3,'CFR - XML import'!$A18)),0,VALUE(MID('CFR - XML import'!$A18,SEARCH(\">\",'CFR - XML import'!$A18,1)+1,SEARCH(\"/\",'CFR - XML import'!$A18,1)-SEARCH(\">\",'CFR - XML import'!$A18,1)-2)))","v":0},{"$f":"IF(ISERROR(FIND(BH$3,'CFR - XML import'!$A18)),0,VALUE(MID('CFR - XML import'!$A18,SEARCH(\">\",'CFR - XML import'!$A18,1)+1,SEARCH(\"/\",'CFR - XML import'!$A18,1)-SEARCH(\">\",'CFR - XML import'!$A18,1)-2)))","v":0},{"$f":"IF(ISERROR(FIND(BI$3,'CFR - XML import'!$A18)),0,VALUE(MID('CFR - XML import'!$A18,SEARCH(\">\",'CFR - XML import'!$A18,1)+1,SEARCH(\"/\",'CFR - XML import'!$A18,1)-SEARCH(\">\",'CFR - XML import'!$A18,1)-2)))","v":0},{"$f":"IF(ISERROR(FIND(BJ$3,'CFR - XML import'!$A18)),0,VALUE(MID('CFR - XML import'!$A18,SEARCH(\">\",'CFR - XML import'!$A18,1)+1,SEARCH(\"/\",'CFR - XML import'!$A18,1)-SEARCH(\">\",'CFR - XML import'!$A18,1)-2)))","v":0},{"$f":"IF(ISERROR(FIND(BK$3,'CFR - XML import'!$A18)),0,VALUE(MID('CFR - XML import'!$A18,SEARCH(\">\",'CFR - XML import'!$A18,1)+1,SEARCH(\"/\",'CFR - XML import'!$A18,1)-SEARCH(\">\",'CFR - XML import'!$A18,1)-2)))","v":0},{"$f":"IF(ISERROR(FIND(BL$3,'CFR - XML import'!$A18)),0,VALUE(MID('CFR - XML import'!$A18,SEARCH(\">\",'CFR - XML import'!$A18,1)+1,SEARCH(\"/\",'CFR - XML import'!$A18,1)-SEARCH(\">\",'CFR - XML import'!$A18,1)-2)))","v":0},{"$f":"IF(ISERROR(FIND(BM$3,'CFR - XML import'!$A18)),0,VALUE(MID('CFR - XML import'!$A18,SEARCH(\">\",'CFR - XML import'!$A18,1)+1,SEARCH(\"/\",'CFR - XML import'!$A18,1)-SEARCH(\">\",'CFR - XML import'!$A18,1)-2)))","v":0},{"$f":"IF(ISERROR(FIND(BN$3,'CFR - XML import'!$A18)),0,VALUE(MID('CFR - XML import'!$A18,SEARCH(\">\",'CFR - XML import'!$A18,1)+1,SEARCH(\"/\",'CFR - XML import'!$A18,1)-SEARCH(\">\",'CFR - XML import'!$A18,1)-2)))","v":0},{"$f":"IF(ISERROR(FIND(BO$3,'CFR - XML import'!$A18)),0,VALUE(MID('CFR - XML import'!$A18,SEARCH(\">\",'CFR - XML import'!$A18,1)+1,SEARCH(\"/\",'CFR - XML import'!$A18,1)-SEARCH(\">\",'CFR - XML import'!$A18,1)-2)))","v":0},{"$f":"IF(ISERROR(FIND(BP$3,'CFR - XML import'!$A18)),0,VALUE(MID('CFR - XML import'!$A18,SEARCH(\">\",'CFR - XML import'!$A18,1)+1,SEARCH(\"/\",'CFR - XML import'!$A18,1)-SEARCH(\">\",'CFR - XML import'!$A18,1)-2)))","v":0},{"$f":"IF(ISERROR(FIND(BQ$3,'CFR - XML import'!$A18)),0,VALUE(MID('CFR - XML import'!$A18,SEARCH(\">\",'CFR - XML import'!$A18,1)+1,SEARCH(\"/\",'CFR - XML import'!$A18,1)-SEARCH(\">\",'CFR - XML import'!$A18,1)-2)))","v":0},{"$f":"IF(ISERROR(FIND(BR$3,'CFR - XML import'!$A18)),0,VALUE(MID('CFR - XML import'!$A18,SEARCH(\">\",'CFR - XML import'!$A18,1)+1,SEARCH(\"/\",'CFR - XML import'!$A18,1)-SEARCH(\">\",'CFR - XML import'!$A18,1)-2)))","v":0},{"$f":"IF(ISERROR(FIND(BS$3,'CFR - XML import'!$A18)),0,VALUE(MID('CFR - XML import'!$A18,SEARCH(\">\",'CFR - XML import'!$A18,1)+1,SEARCH(\"/\",'CFR - XML import'!$A18,1)-SEARCH(\">\",'CFR - XML import'!$A18,1)-2)))","v":0},{"$f":"IF(ISERROR(FIND(BT$3,'CFR - XML import'!$A18)),0,VALUE(MID('CFR - XML import'!$A18,SEARCH(\">\",'CFR - XML import'!$A18,1)+1,SEARCH(\"/\",'CFR - XML import'!$A18,1)-SEARCH(\">\",'CFR - XML import'!$A18,1)-2)))","v":0},{"$f":"IF(ISERROR(FIND(BU$3,'CFR - XML import'!$A18)),0,VALUE(MID('CFR - XML import'!$A18,SEARCH(\">\",'CFR - XML import'!$A18,1)+1,SEARCH(\"/\",'CFR - XML import'!$A18,1)-SEARCH(\">\",'CFR - XML import'!$A18,1)-2)))","v":0},{"$f":"IF(ISERROR(FIND(BV$3,'CFR - XML import'!$A18)),0,VALUE(MID('CFR - XML import'!$A18,SEARCH(\">\",'CFR - XML import'!$A18,1)+1,SEARCH(\"/\",'CFR - XML import'!$A18,1)-SEARCH(\">\",'CFR - XML import'!$A18,1)-2)))","v":0},{"$f":"IF(ISERROR(FIND(BW$3,'CFR - XML import'!$A18)),0,VALUE(MID('CFR - XML import'!$A18,SEARCH(\">\",'CFR - XML import'!$A18,1)+1,SEARCH(\"/\",'CFR - XML import'!$A18,1)-SEARCH(\">\",'CFR - XML import'!$A18,1)-2)))","v":0},{"$f":"IF(ISERROR(FIND(BX$3,'CFR - XML import'!$A18)),0,VALUE(MID('CFR - XML import'!$A18,SEARCH(\">\",'CFR - XML import'!$A18,1)+1,SEARCH(\"/\",'CFR - XML import'!$A18,1)-SEARCH(\">\",'CFR - XML import'!$A18,1)-2)))","v":0},{"$f":"IF(ISERROR(FIND(BY$3,'CFR - XML import'!$A18)),0,VALUE(MID('CFR - XML import'!$A18,SEARCH(\">\",'CFR - XML import'!$A18,1)+1,SEARCH(\"/\",'CFR - XML import'!$A18,1)-SEARCH(\">\",'CFR - XML import'!$A18,1)-2)))","v":0},{"$f":"IF(ISERROR(FIND(BZ$3,'CFR - XML import'!$A18)),0,VALUE(MID('CFR - XML import'!$A18,SEARCH(\">\",'CFR - XML import'!$A18,1)+1,SEARCH(\"/\",'CFR - XML import'!$A18,1)-SEARCH(\">\",'CFR - XML import'!$A18,1)-2)))","v":0},null,null,null,null,null,null,{"$f":"IF(ISERROR(IF(MID('CFR - XML import'!$A18,LEN($CF$4)+1,LEN('CFR - XML import'!$A18)-(2*LEN($CF$4)+1))=\"RMMS\",1,IF(MID('CFR - XML import'!$A18,LEN(\"    <InputSystem>\")+1,LEN('CFR - XML import'!$A18)-(LEN(\"    <InputSystem>\")+LEN($CF$4)+1))=\"SIMS\",2,0))),0,IF(MID('CFR - XML import'!$A18,LEN($CF$4)+1,LEN('CFR - XML import'!$A18)-(2*LEN($CF$4)+1))=\"RMMS\",1,IF(MID('CFR - XML import'!$A18,LEN(\"    <InputSystem>\")+1,LEN('CFR - XML import'!$A18)-(LEN(\"    <InputSystem>\")+LEN($CF$4)+1))=\"SIMS\",2,0)))","v":0},{"$f":"IF(ISERROR(FIND(CH$3,'CFR - XML import'!$A18)),0,MID('CFR - XML import'!$A18,SEARCH(\">\",'CFR - XML import'!$A18,1)+1,SEARCH(\"/\",'CFR - XML import'!$A18,1)-SEARCH(\">\",'CFR - XML import'!$A18,1)-2))","v":0},{"$f":"IF(ISERROR(FIND(CI$3,'CFR - XML import'!$A18)),0,MID('CFR - XML import'!$A18,SEARCH(\">\",'CFR - XML import'!$A18,1)+1,SEARCH(\"/\",'CFR - XML import'!$A18,1)-SEARCH(\">\",'CFR - XML import'!$A18,1)-2))","v":0},{"$f":"IF(ISERROR(FIND(CJ$3,'CFR - XML import'!$A18)),0,MID('CFR - XML import'!$A18,SEARCH(\">\",'CFR - XML import'!$A18,1)+1,SEARCH(\"/\",'CFR - XML import'!$A18,1)-SEARCH(\">\",'CFR - XML import'!$A18,1)-2))","v":0},{"$f":"IF(ISERROR(FIND(CK$3,'CFR - XML import'!$A18)),0,MID('CFR - XML import'!$A18,SEARCH(\">\",'CFR - XML import'!$A18,1)+1,SEARCH(\"/\",'CFR - XML import'!$A18,1)-SEARCH(\">\",'CFR - XML import'!$A18,1)-2))","v":0},{"$f":"IF(ISERROR(FIND(CL$3,'CFR - XML import'!$A18)),0,MID('CFR - XML import'!$A18,SEARCH(\">\",'CFR - XML import'!$A18,1)+1,SEARCH(\"/\",'CFR - XML import'!$A18,1)-SEARCH(\">\",'CFR - XML import'!$A18,1)-2))","v":0}]
[{"$f":"IF(AND('CFR - XML import'!A19<>\"\",LEFT('CFR - XML import'!A19,1)<>\"<\",LEFT('CFR - XML import'!A19,3)<>\"  <\",LEFT('CFR - XML import'!A19,5)<>\"    <\",LEFT('CFR - XML import'!A19,7)<>\"      <\",LEFT('CFR - XML import'!A19,9)<>\"        <\",$B$1=\"SIMS\"),'CFR - XML import'!A19,IF(AND(LEFT('CFR - XML import'!A19,9)=\"<Details>\",$B$1=\"RM\"),'CFR - XML import'!A19,\"\"))","v":""},{"$f":"IF(ISERROR(FIND(B$3,'CFR - XML import'!$A19)),0,VALUE(MID('CFR - XML import'!$A19,SEARCH(\">\",'CFR - XML import'!$A19,1)+1,SEARCH(\"/\",'CFR - XML import'!$A19,1)-SEARCH(\">\",'CFR - XML import'!$A19,1)-2)))","v":0},null,{"$f":"IF(ISERROR(FIND(D$3,'CFR - XML import'!$A19)),0,MID('CFR - XML import'!$A19,SEARCH(\">\",'CFR - XML import'!$A19,1)+1,SEARCH(\"/\",'CFR - XML import'!$A19,1)-SEARCH(\">\",'CFR - XML import'!$A19,1)-2))","v":0},{"$f":"IF(ISERROR(FIND(E$3,'CFR - XML import'!$A19)),0,MID('CFR - XML import'!$A19,SEARCH(\">\",'CFR - XML import'!$A19,1)+1,SEARCH(\"/\",'CFR - XML import'!$A19,1)-SEARCH(\">\",'CFR - XML import'!$A19,1)-2))","v":0},{"$f":"IF($B$1=\"SIMS\",IF(ISERROR(FIND(F$3,'CFR - XML import'!$A19)),0,VALUE(MID('CFR - XML import'!$A19,15,10))),IF(ISERROR(FIND(F$3,'CFR - XML import'!$A19)),0,VALUE(MID('CFR - XML import'!$A19,11,10))))","v":"00:00:00"},{"$f":"IF(ISERROR(FIND(G$3,'CFR - XML import'!$A19)),0,VALUE(MID('CFR - XML import'!$A19,SEARCH(\">\",'CFR - XML import'!$A19,1)+1,SEARCH(\"/\",'CFR - XML import'!$A19,1)-SEARCH(\">\",'CFR - XML import'!$A19,1)-2)))","v":0},{"$f":"IF(ISERROR(FIND(H$3,'CFR - XML import'!$A19)),0,VALUE(MID('CFR - XML import'!$A19,SEARCH(\">\",'CFR - XML import'!$A19,1)+1,SEARCH(\"/\",'CFR - XML import'!$A19,1)-SEARCH(\">\",'CFR - XML import'!$A19,1)-2)))","v":0},{"$f":"IF(ISERROR(FIND(I$3,'CFR - XML import'!$A19)),0,VALUE(MID('CFR - XML import'!$A19,SEARCH(\">\",'CFR - XML import'!$A19,1)+1,SEARCH(\"/\",'CFR - XML import'!$A19,1)-SEARCH(\">\",'CFR - XML import'!$A19,1)-2)))","v":0},{"$f":"IF(ISERROR(FIND(J$3,'CFR - XML import'!$A19)),0,VALUE(MID('CFR - XML import'!$A19,SEARCH(\">\",'CFR - XML import'!$A19,1)+1,SEARCH(\"/\",'CFR - XML import'!$A19,1)-SEARCH(\">\",'CFR - XML import'!$A19,1)-2)))","v":0},{"$f":"IF(ISERROR(FIND(K$3,'CFR - XML import'!$A19)),0,VALUE(MID('CFR - XML import'!$A19,SEARCH(\">\",'CFR - XML import'!$A19,1)+1,SEARCH(\"/\",'CFR - XML import'!$A19,1)-SEARCH(\">\",'CFR - XML import'!$A19,1)-2)))","v":0},{"$f":"IF(ISERROR(FIND(L$3,'CFR - XML import'!$A19)),0,VALUE(MID('CFR - XML import'!$A19,SEARCH(\">\",'CFR - XML import'!$A19,1)+1,SEARCH(\"/\",'CFR - XML import'!$A19,1)-SEARCH(\">\",'CFR - XML import'!$A19,1)-2)))","v":0},{"$f":"IF(ISERROR(FIND(M$3,'CFR - XML import'!$A19)),0,VALUE(MID('CFR - XML import'!$A19,SEARCH(\">\",'CFR - XML import'!$A19,1)+1,SEARCH(\"/\",'CFR - XML import'!$A19,1)-SEARCH(\">\",'CFR - XML import'!$A19,1)-2)))","v":0},{"$f":"IF(ISERROR(FIND(N$3,'CFR - XML import'!$A19)),0,VALUE(MID('CFR - XML import'!$A19,SEARCH(\">\",'CFR - XML import'!$A19,1)+1,SEARCH(\"/\",'CFR - XML import'!$A19,1)-SEARCH(\">\",'CFR - XML import'!$A19,1)-2)))","v":0},{"$f":"IF(ISERROR(FIND(O$3,'CFR - XML import'!$A19)),0,VALUE(MID('CFR - XML import'!$A19,SEARCH(\">\",'CFR - XML import'!$A19,1)+1,SEARCH(\"/\",'CFR - XML import'!$A19,1)-SEARCH(\">\",'CFR - XML import'!$A19,1)-2)))","v":0},{"$f":"IF(ISERROR(FIND(P$3,'CFR - XML import'!$A19)),0,VALUE(MID('CFR - XML import'!$A19,SEARCH(\">\",'CFR - XML import'!$A19,1)+1,SEARCH(\"/\",'CFR - XML import'!$A19,1)-SEARCH(\">\",'CFR - XML import'!$A19,1)-2)))","v":0},{"$f":"IF(ISERROR(FIND(Q$3,'CFR - XML import'!$A19)),0,VALUE(MID('CFR - XML import'!$A19,SEARCH(\">\",'CFR - XML import'!$A19,1)+1,SEARCH(\"/\",'CFR - XML import'!$A19,1)-SEARCH(\">\",'CFR - XML import'!$A19,1)-2)))","v":0},{"$f":"IF(ISERROR(FIND(R$3,'CFR - XML import'!$A19)),0,VALUE(MID('CFR - XML import'!$A19,SEARCH(\">\",'CFR - XML import'!$A19,1)+1,SEARCH(\"/\",'CFR - XML import'!$A19,1)-SEARCH(\">\",'CFR - XML import'!$A19,1)-2)))","v":0},{"$f":"IF(ISERROR(FIND(S$3,'CFR - XML import'!$A19)),0,VALUE(MID('CFR - XML import'!$A19,SEARCH(\">\",'CFR - XML import'!$A19,1)+1,SEARCH(\"/\",'CFR - XML import'!$A19,1)-SEARCH(\">\",'CFR - XML import'!$A19,1)-2)))","v":0},{"$f":"IF(ISERROR(FIND(T$3,'CFR - XML import'!$A19)),0,VALUE(MID('CFR - XML import'!$A19,SEARCH(\">\",'CFR - XML import'!$A19,1)+1,SEARCH(\"/\",'CFR - XML import'!$A19,1)-SEARCH(\">\",'CFR - XML import'!$A19,1)-2)))","v":0},{"$f":"IF(ISERROR(FIND(U$3,'CFR - XML import'!$A19)),0,VALUE(MID('CFR - XML import'!$A19,SEARCH(\">\",'CFR - XML import'!$A19,1)+1,SEARCH(\"/\",'CFR - XML import'!$A19,1)-SEARCH(\">\",'CFR - XML import'!$A19,1)-2)))","v":0},{"$f":"IF(ISERROR(FIND(V$3,'CFR - XML import'!$A19)),0,VALUE(MID('CFR - XML import'!$A19,SEARCH(\">\",'CFR - XML import'!$A19,1)+1,SEARCH(\"/\",'CFR - XML import'!$A19,1)-SEARCH(\">\",'CFR - XML import'!$A19,1)-2)))","v":0},{"$f":"IF(ISERROR(FIND(W$3,'CFR - XML import'!$A19)),0,VALUE(MID('CFR - XML import'!$A19,SEARCH(\">\",'CFR - XML import'!$A19,1)+1,SEARCH(\"/\",'CFR - XML import'!$A19,1)-SEARCH(\">\",'CFR - XML import'!$A19,1)-2)))","v":0},null,{"$f":"IF(ISERROR(FIND(Y$3,'CFR - XML import'!$A19)),0,VALUE(MID('CFR - XML import'!$A19,SEARCH(\">\",'CFR - XML import'!$A19,1)+1,SEARCH(\"/\",'CFR - XML import'!$A19,1)-SEARCH(\">\",'CFR - XML import'!$A19,1)-2)))","v":0},{"$f":"IF(ISERROR(FIND(Z$3,'CFR - XML import'!$A19)),0,VALUE(MID('CFR - XML import'!$A19,SEARCH(\">\",'CFR - XML import'!$A19,1)+1,SEARCH(\"/\",'CFR - XML import'!$A19,1)-SEARCH(\">\",'CFR - XML import'!$A19,1)-2)))","v":0},{"$f":"IF(ISERROR(FIND(AA$3,'CFR - XML import'!$A19)),0,VALUE(MID('CFR - XML import'!$A19,SEARCH(\">\",'CFR - XML import'!$A19,1)+1,SEARCH(\"/\",'CFR - XML import'!$A19,1)-SEARCH(\">\",'CFR - XML import'!$A19,1)-2)))","v":0},{"$f":"IF(ISERROR(FIND(AB$3,'CFR - XML import'!$A19)),0,VALUE(MID('CFR - XML import'!$A19,SEARCH(\">\",'CFR - XML import'!$A19,1)+1,SEARCH(\"/\",'CFR - XML import'!$A19,1)-SEARCH(\">\",'CFR - XML import'!$A19,1)-2)))","v":0},{"$f":"IF(ISERROR(FIND(AC$3,'CFR - XML import'!$A19)),0,VALUE(MID('CFR - XML import'!$A19,SEARCH(\">\",'CFR - XML import'!$A19,1)+1,SEARCH(\"/\",'CFR - XML import'!$A19,1)-SEARCH(\">\",'CFR - XML import'!$A19,1)-2)))","v":0},{"$f":"IF(ISERROR(FIND(AD$3,'CFR - XML import'!$A19)),0,VALUE(MID('CFR - XML import'!$A19,SEARCH(\">\",'CFR - XML import'!$A19,1)+1,SEARCH(\"/\",'CFR - XML import'!$A19,1)-SEARCH(\">\",'CFR - XML import'!$A19,1)-2)))","v":0},{"$f":"IF(ISERROR(FIND(AE$3,'CFR - XML import'!$A19)),0,VALUE(MID('CFR - XML import'!$A19,SEARCH(\">\",'CFR - XML import'!$A19,1)+1,SEARCH(\"/\",'CFR - XML import'!$A19,1)-SEARCH(\">\",'CFR - XML import'!$A19,1)-2)))","v":0},{"$f":"IF(ISERROR(FIND(AF$3,'CFR - XML import'!$A19)),0,VALUE(MID('CFR - XML import'!$A19,SEARCH(\">\",'CFR - XML import'!$A19,1)+1,SEARCH(\"/\",'CFR - XML import'!$A19,1)-SEARCH(\">\",'CFR - XML import'!$A19,1)-2)))","v":0},{"$f":"IF(ISERROR(FIND(AG$3,'CFR - XML import'!$A19)),0,VALUE(MID('CFR - XML import'!$A19,SEARCH(\">\",'CFR - XML import'!$A19,1)+1,SEARCH(\"/\",'CFR - XML import'!$A19,1)-SEARCH(\">\",'CFR - XML import'!$A19,1)-2)))","v":0},{"$f":"IF(ISERROR(FIND(AH$3,'CFR - XML import'!$A19)),0,VALUE(MID('CFR - XML import'!$A19,SEARCH(\">\",'CFR - XML import'!$A19,1)+1,SEARCH(\"/\",'CFR - XML import'!$A19,1)-SEARCH(\">\",'CFR - XML import'!$A19,1)-2)))","v":0},{"$f":"IF(ISERROR(FIND(AI$3,'CFR - XML import'!$A19)),0,VALUE(MID('CFR - XML import'!$A19,SEARCH(\">\",'CFR - XML import'!$A19,1)+1,SEARCH(\"/\",'CFR - XML import'!$A19,1)-SEARCH(\">\",'CFR - XML import'!$A19,1)-2)))","v":0},{"$f":"IF(ISERROR(FIND(AJ$3,'CFR - XML import'!$A19)),0,VALUE(MID('CFR - XML import'!$A19,SEARCH(\">\",'CFR - XML import'!$A19,1)+1,SEARCH(\"/\",'CFR - XML import'!$A19,1)-SEARCH(\">\",'CFR - XML import'!$A19,1)-2)))","v":0},{"$f":"IF(ISERROR(FIND(AK$3,'CFR - XML import'!$A19)),0,VALUE(MID('CFR - XML import'!$A19,SEARCH(\">\",'CFR - XML import'!$A19,1)+1,SEARCH(\"/\",'CFR - XML import'!$A19,1)-SEARCH(\">\",'CFR - XML import'!$A19,1)-2)))","v":0},{"$f":"IF(ISERROR(FIND(AL$3,'CFR - XML import'!$A19)),0,VALUE(MID('CFR - XML import'!$A19,SEARCH(\">\",'CFR - XML import'!$A19,1)+1,SEARCH(\"/\",'CFR - XML import'!$A19,1)-SEARCH(\">\",'CFR - XML import'!$A19,1)-2)))","v":0},{"$f":"IF(ISERROR(FIND(AM$3,'CFR - XML import'!$A19)),0,VALUE(MID('CFR - XML import'!$A19,SEARCH(\">\",'CFR - XML import'!$A19,1)+1,SEARCH(\"/\",'CFR - XML import'!$A19,1)-SEARCH(\">\",'CFR - XML import'!$A19,1)-2)))","v":0},{"$f":"IF(ISERROR(FIND(AN$3,'CFR - XML import'!$A19)),0,VALUE(MID('CFR - XML import'!$A19,SEARCH(\">\",'CFR - XML import'!$A19,1)+1,SEARCH(\"/\",'CFR - XML import'!$A19,1)-SEARCH(\">\",'CFR - XML import'!$A19,1)-2)))","v":0},{"$f":"IF(ISERROR(FIND(AO$3,'CFR - XML import'!$A19)),0,VALUE(MID('CFR - XML import'!$A19,SEARCH(\">\",'CFR - XML import'!$A19,1)+1,SEARCH(\"/\",'CFR - XML import'!$A19,1)-SEARCH(\">\",'CFR - XML import'!$A19,1)-2)))","v":0},{"$f":"IF(ISERROR(FIND(AP$3,'CFR - XML import'!$A19)),0,VALUE(MID('CFR - XML import'!$A19,SEARCH(\">\",'CFR - XML import'!$A19,1)+1,SEARCH(\"/\",'CFR - XML import'!$A19,1)-SEARCH(\">\",'CFR - XML import'!$A19,1)-2)))","v":0},{"$f":"IF(ISERROR(FIND(AQ$3,'CFR - XML import'!$A19)),0,VALUE(MID('CFR - XML import'!$A19,SEARCH(\">\",'CFR - XML import'!$A19,1)+1,SEARCH(\"/\",'CFR - XML import'!$A19,1)-SEARCH(\">\",'CFR - XML import'!$A19,1)-2)))","v":0},{"$f":"IF(ISERROR(FIND(AR$3,'CFR - XML import'!$A19)),0,VALUE(MID('CFR - XML import'!$A19,SEARCH(\">\",'CFR - XML import'!$A19,1)+1,SEARCH(\"/\",'CFR - XML import'!$A19,1)-SEARCH(\">\",'CFR - XML import'!$A19,1)-2)))","v":0},{"$f":"IF(ISERROR(FIND(AS$3,'CFR - XML import'!$A19)),0,VALUE(MID('CFR - XML import'!$A19,SEARCH(\">\",'CFR - XML import'!$A19,1)+1,SEARCH(\"/\",'CFR - XML import'!$A19,1)-SEARCH(\">\",'CFR - XML import'!$A19,1)-2)))","v":0},{"$f":"IF(ISERROR(FIND(AT$3,'CFR - XML import'!$A19)),0,VALUE(MID('CFR - XML import'!$A19,SEARCH(\">\",'CFR - XML import'!$A19,1)+1,SEARCH(\"/\",'CFR - XML import'!$A19,1)-SEARCH(\">\",'CFR - XML import'!$A19,1)-2)))","v":0},{"$f":"IF(ISERROR(FIND(AU$3,'CFR - XML import'!$A19)),0,VALUE(MID('CFR - XML import'!$A19,SEARCH(\">\",'CFR - XML import'!$A19,1)+1,SEARCH(\"/\",'CFR - XML import'!$A19,1)-SEARCH(\">\",'CFR - XML import'!$A19,1)-2)))","v":0},{"$f":"IF(ISERROR(FIND(AV$3,'CFR - XML import'!$A19)),0,VALUE(MID('CFR - XML import'!$A19,SEARCH(\">\",'CFR - XML import'!$A19,1)+1,SEARCH(\"/\",'CFR - XML import'!$A19,1)-SEARCH(\">\",'CFR - XML import'!$A19,1)-2)))","v":0},{"$f":"IF(ISERROR(FIND(AW$3,'CFR - XML import'!$A19)),0,VALUE(MID('CFR - XML import'!$A19,SEARCH(\">\",'CFR - XML import'!$A19,1)+1,SEARCH(\"/\",'CFR - XML import'!$A19,1)-SEARCH(\">\",'CFR - XML import'!$A19,1)-2)))","v":0},{"$f":"IF(ISERROR(FIND(AX$3,'CFR - XML import'!$A19)),0,VALUE(MID('CFR - XML import'!$A19,SEARCH(\">\",'CFR - XML import'!$A19,1)+1,SEARCH(\"/\",'CFR - XML import'!$A19,1)-SEARCH(\">\",'CFR - XML import'!$A19,1)-2)))","v":0},{"$f":"IF(ISERROR(FIND(AY$3,'CFR - XML import'!$A19)),0,VALUE(MID('CFR - XML import'!$A19,SEARCH(\">\",'CFR - XML import'!$A19,1)+1,SEARCH(\"/\",'CFR - XML import'!$A19,1)-SEARCH(\">\",'CFR - XML import'!$A19,1)-2)))","v":0},{"$f":"IF(ISERROR(FIND(AZ$3,'CFR - XML import'!$A19)),0,VALUE(MID('CFR - XML import'!$A19,SEARCH(\">\",'CFR - XML import'!$A19,1)+1,SEARCH(\"/\",'CFR - XML import'!$A19,1)-SEARCH(\">\",'CFR - XML import'!$A19,1)-2)))","v":0},{"$f":"IF(ISERROR(FIND(BA$3,'CFR - XML import'!$A19)),0,VALUE(MID('CFR - XML import'!$A19,SEARCH(\">\",'CFR - XML import'!$A19,1)+1,SEARCH(\"/\",'CFR - XML import'!$A19,1)-SEARCH(\">\",'CFR - XML import'!$A19,1)-2)))","v":0},{"$f":"IF(ISERROR(FIND(BB$3,'CFR - XML import'!$A19)),0,VALUE(MID('CFR - XML import'!$A19,SEARCH(\">\",'CFR - XML import'!$A19,1)+1,SEARCH(\"/\",'CFR - XML import'!$A19,1)-SEARCH(\">\",'CFR - XML import'!$A19,1)-2)))","v":0},{"$f":"IF(ISERROR(FIND(BC$3,'CFR - XML import'!$A19)),0,VALUE(MID('CFR - XML import'!$A19,SEARCH(\">\",'CFR - XML import'!$A19,1)+1,SEARCH(\"/\",'CFR - XML import'!$A19,1)-SEARCH(\">\",'CFR - XML import'!$A19,1)-2)))","v":0},{"$f":"IF(ISERROR(FIND(BD$3,'CFR - XML import'!$A19)),0,VALUE(MID('CFR - XML import'!$A19,SEARCH(\">\",'CFR - XML import'!$A19,1)+1,SEARCH(\"/\",'CFR - XML import'!$A19,1)-SEARCH(\">\",'CFR - XML import'!$A19,1)-2)))","v":0},{"$f":"IF(ISERROR(FIND(BE$3,'CFR - XML import'!$A19)),0,VALUE(MID('CFR - XML import'!$A19,SEARCH(\">\",'CFR - XML import'!$A19,1)+1,SEARCH(\"/\",'CFR - XML import'!$A19,1)-SEARCH(\">\",'CFR - XML import'!$A19,1)-2)))","v":0},{"$f":"IF(ISERROR(FIND(BF$3,'CFR - XML import'!$A19)),0,VALUE(MID('CFR - XML import'!$A19,SEARCH(\">\",'CFR - XML import'!$A19,1)+1,SEARCH(\"/\",'CFR - XML import'!$A19,1)-SEARCH(\">\",'CFR - XML import'!$A19,1)-2)))","v":0},{"$f":"IF(ISERROR(FIND(BG$3,'CFR - XML import'!$A19)),0,VALUE(MID('CFR - XML import'!$A19,SEARCH(\">\",'CFR - XML import'!$A19,1)+1,SEARCH(\"/\",'CFR - XML import'!$A19,1)-SEARCH(\">\",'CFR - XML import'!$A19,1)-2)))","v":0},{"$f":"IF(ISERROR(FIND(BH$3,'CFR - XML import'!$A19)),0,VALUE(MID('CFR - XML import'!$A19,SEARCH(\">\",'CFR - XML import'!$A19,1)+1,SEARCH(\"/\",'CFR - XML import'!$A19,1)-SEARCH(\">\",'CFR - XML import'!$A19,1)-2)))","v":0},{"$f":"IF(ISERROR(FIND(BI$3,'CFR - XML import'!$A19)),0,VALUE(MID('CFR - XML import'!$A19,SEARCH(\">\",'CFR - XML import'!$A19,1)+1,SEARCH(\"/\",'CFR - XML import'!$A19,1)-SEARCH(\">\",'CFR - XML import'!$A19,1)-2)))","v":0},{"$f":"IF(ISERROR(FIND(BJ$3,'CFR - XML import'!$A19)),0,VALUE(MID('CFR - XML import'!$A19,SEARCH(\">\",'CFR - XML import'!$A19,1)+1,SEARCH(\"/\",'CFR - XML import'!$A19,1)-SEARCH(\">\",'CFR - XML import'!$A19,1)-2)))","v":0},{"$f":"IF(ISERROR(FIND(BK$3,'CFR - XML import'!$A19)),0,VALUE(MID('CFR - XML import'!$A19,SEARCH(\">\",'CFR - XML import'!$A19,1)+1,SEARCH(\"/\",'CFR - XML import'!$A19,1)-SEARCH(\">\",'CFR - XML import'!$A19,1)-2)))","v":0},{"$f":"IF(ISERROR(FIND(BL$3,'CFR - XML import'!$A19)),0,VALUE(MID('CFR - XML import'!$A19,SEARCH(\">\",'CFR - XML import'!$A19,1)+1,SEARCH(\"/\",'CFR - XML import'!$A19,1)-SEARCH(\">\",'CFR - XML import'!$A19,1)-2)))","v":0},{"$f":"IF(ISERROR(FIND(BM$3,'CFR - XML import'!$A19)),0,VALUE(MID('CFR - XML import'!$A19,SEARCH(\">\",'CFR - XML import'!$A19,1)+1,SEARCH(\"/\",'CFR - XML import'!$A19,1)-SEARCH(\">\",'CFR - XML import'!$A19,1)-2)))","v":0},{"$f":"IF(ISERROR(FIND(BN$3,'CFR - XML import'!$A19)),0,VALUE(MID('CFR - XML import'!$A19,SEARCH(\">\",'CFR - XML import'!$A19,1)+1,SEARCH(\"/\",'CFR - XML import'!$A19,1)-SEARCH(\">\",'CFR - XML import'!$A19,1)-2)))","v":0},{"$f":"IF(ISERROR(FIND(BO$3,'CFR - XML import'!$A19)),0,VALUE(MID('CFR - XML import'!$A19,SEARCH(\">\",'CFR - XML import'!$A19,1)+1,SEARCH(\"/\",'CFR - XML import'!$A19,1)-SEARCH(\">\",'CFR - XML import'!$A19,1)-2)))","v":0},{"$f":"IF(ISERROR(FIND(BP$3,'CFR - XML import'!$A19)),0,VALUE(MID('CFR - XML import'!$A19,SEARCH(\">\",'CFR - XML import'!$A19,1)+1,SEARCH(\"/\",'CFR - XML import'!$A19,1)-SEARCH(\">\",'CFR - XML import'!$A19,1)-2)))","v":0},{"$f":"IF(ISERROR(FIND(BQ$3,'CFR - XML import'!$A19)),0,VALUE(MID('CFR - XML import'!$A19,SEARCH(\">\",'CFR - XML import'!$A19,1)+1,SEARCH(\"/\",'CFR - XML import'!$A19,1)-SEARCH(\">\",'CFR - XML import'!$A19,1)-2)))","v":0},{"$f":"IF(ISERROR(FIND(BR$3,'CFR - XML import'!$A19)),0,VALUE(MID('CFR - XML import'!$A19,SEARCH(\">\",'CFR - XML import'!$A19,1)+1,SEARCH(\"/\",'CFR - XML import'!$A19,1)-SEARCH(\">\",'CFR - XML import'!$A19,1)-2)))","v":0},{"$f":"IF(ISERROR(FIND(BS$3,'CFR - XML import'!$A19)),0,VALUE(MID('CFR - XML import'!$A19,SEARCH(\">\",'CFR - XML import'!$A19,1)+1,SEARCH(\"/\",'CFR - XML import'!$A19,1)-SEARCH(\">\",'CFR - XML import'!$A19,1)-2)))","v":0},{"$f":"IF(ISERROR(FIND(BT$3,'CFR - XML import'!$A19)),0,VALUE(MID('CFR - XML import'!$A19,SEARCH(\">\",'CFR - XML import'!$A19,1)+1,SEARCH(\"/\",'CFR - XML import'!$A19,1)-SEARCH(\">\",'CFR - XML import'!$A19,1)-2)))","v":0},{"$f":"IF(ISERROR(FIND(BU$3,'CFR - XML import'!$A19)),0,VALUE(MID('CFR - XML import'!$A19,SEARCH(\">\",'CFR - XML import'!$A19,1)+1,SEARCH(\"/\",'CFR - XML import'!$A19,1)-SEARCH(\">\",'CFR - XML import'!$A19,1)-2)))","v":0},{"$f":"IF(ISERROR(FIND(BV$3,'CFR - XML import'!$A19)),0,VALUE(MID('CFR - XML import'!$A19,SEARCH(\">\",'CFR - XML import'!$A19,1)+1,SEARCH(\"/\",'CFR - XML import'!$A19,1)-SEARCH(\">\",'CFR - XML import'!$A19,1)-2)))","v":0},{"$f":"IF(ISERROR(FIND(BW$3,'CFR - XML import'!$A19)),0,VALUE(MID('CFR - XML import'!$A19,SEARCH(\">\",'CFR - XML import'!$A19,1)+1,SEARCH(\"/\",'CFR - XML import'!$A19,1)-SEARCH(\">\",'CFR - XML import'!$A19,1)-2)))","v":0},{"$f":"IF(ISERROR(FIND(BX$3,'CFR - XML import'!$A19)),0,VALUE(MID('CFR - XML import'!$A19,SEARCH(\">\",'CFR - XML import'!$A19,1)+1,SEARCH(\"/\",'CFR - XML import'!$A19,1)-SEARCH(\">\",'CFR - XML import'!$A19,1)-2)))","v":0},{"$f":"IF(ISERROR(FIND(BY$3,'CFR - XML import'!$A19)),0,VALUE(MID('CFR - XML import'!$A19,SEARCH(\">\",'CFR - XML import'!$A19,1)+1,SEARCH(\"/\",'CFR - XML import'!$A19,1)-SEARCH(\">\",'CFR - XML import'!$A19,1)-2)))","v":0},{"$f":"IF(ISERROR(FIND(BZ$3,'CFR - XML import'!$A19)),0,VALUE(MID('CFR - XML import'!$A19,SEARCH(\">\",'CFR - XML import'!$A19,1)+1,SEARCH(\"/\",'CFR - XML import'!$A19,1)-SEARCH(\">\",'CFR - XML import'!$A19,1)-2)))","v":0},null,null,null,null,null,null,{"$f":"IF(ISERROR(IF(MID('CFR - XML import'!$A19,LEN($CF$4)+1,LEN('CFR - XML import'!$A19)-(2*LEN($CF$4)+1))=\"RMMS\",1,IF(MID('CFR - XML import'!$A19,LEN(\"    <InputSystem>\")+1,LEN('CFR - XML import'!$A19)-(LEN(\"    <InputSystem>\")+LEN($CF$4)+1))=\"SIMS\",2,0))),0,IF(MID('CFR - XML import'!$A19,LEN($CF$4)+1,LEN('CFR - XML import'!$A19)-(2*LEN($CF$4)+1))=\"RMMS\",1,IF(MID('CFR - XML import'!$A19,LEN(\"    <InputSystem>\")+1,LEN('CFR - XML import'!$A19)-(LEN(\"    <InputSystem>\")+LEN($CF$4)+1))=\"SIMS\",2,0)))","v":0},{"$f":"IF(ISERROR(FIND(CH$3,'CFR - XML import'!$A19)),0,MID('CFR - XML import'!$A19,SEARCH(\">\",'CFR - XML import'!$A19,1)+1,SEARCH(\"/\",'CFR - XML import'!$A19,1)-SEARCH(\">\",'CFR - XML import'!$A19,1)-2))","v":0},{"$f":"IF(ISERROR(FIND(CI$3,'CFR - XML import'!$A19)),0,MID('CFR - XML import'!$A19,SEARCH(\">\",'CFR - XML import'!$A19,1)+1,SEARCH(\"/\",'CFR - XML import'!$A19,1)-SEARCH(\">\",'CFR - XML import'!$A19,1)-2))","v":0},{"$f":"IF(ISERROR(FIND(CJ$3,'CFR - XML import'!$A19)),0,MID('CFR - XML import'!$A19,SEARCH(\">\",'CFR - XML import'!$A19,1)+1,SEARCH(\"/\",'CFR - XML import'!$A19,1)-SEARCH(\">\",'CFR - XML import'!$A19,1)-2))","v":0},{"$f":"IF(ISERROR(FIND(CK$3,'CFR - XML import'!$A19)),0,MID('CFR - XML import'!$A19,SEARCH(\">\",'CFR - XML import'!$A19,1)+1,SEARCH(\"/\",'CFR - XML import'!$A19,1)-SEARCH(\">\",'CFR - XML import'!$A19,1)-2))","v":0},{"$f":"IF(ISERROR(FIND(CL$3,'CFR - XML import'!$A19)),0,MID('CFR - XML import'!$A19,SEARCH(\">\",'CFR - XML import'!$A19,1)+1,SEARCH(\"/\",'CFR - XML import'!$A19,1)-SEARCH(\">\",'CFR - XML import'!$A19,1)-2))","v":0}]
[{"$f":"IF(AND('CFR - XML import'!A20<>\"\",LEFT('CFR - XML import'!A20,1)<>\"<\",LEFT('CFR - XML import'!A20,3)<>\"  <\",LEFT('CFR - XML import'!A20,5)<>\"    <\",LEFT('CFR - XML import'!A20,7)<>\"      <\",LEFT('CFR - XML import'!A20,9)<>\"        <\",$B$1=\"SIMS\"),'CFR - XML import'!A20,IF(AND(LEFT('CFR - XML import'!A20,9)=\"<Details>\",$B$1=\"RM\"),'CFR - XML import'!A20,\"\"))","v":""},{"$f":"IF(ISERROR(FIND(B$3,'CFR - XML import'!$A20)),0,VALUE(MID('CFR - XML import'!$A20,SEARCH(\">\",'CFR - XML import'!$A20,1)+1,SEARCH(\"/\",'CFR - XML import'!$A20,1)-SEARCH(\">\",'CFR - XML import'!$A20,1)-2)))","v":0},null,{"$f":"IF(ISERROR(FIND(D$3,'CFR - XML import'!$A20)),0,MID('CFR - XML import'!$A20,SEARCH(\">\",'CFR - XML import'!$A20,1)+1,SEARCH(\"/\",'CFR - XML import'!$A20,1)-SEARCH(\">\",'CFR - XML import'!$A20,1)-2))","v":0},{"$f":"IF(ISERROR(FIND(E$3,'CFR - XML import'!$A20)),0,MID('CFR - XML import'!$A20,SEARCH(\">\",'CFR - XML import'!$A20,1)+1,SEARCH(\"/\",'CFR - XML import'!$A20,1)-SEARCH(\">\",'CFR - XML import'!$A20,1)-2))","v":0},{"$f":"IF($B$1=\"SIMS\",IF(ISERROR(FIND(F$3,'CFR - XML import'!$A20)),0,VALUE(MID('CFR - XML import'!$A20,15,10))),IF(ISERROR(FIND(F$3,'CFR - XML import'!$A20)),0,VALUE(MID('CFR - XML import'!$A20,11,10))))","v":"00:00:00"},{"$f":"IF(ISERROR(FIND(G$3,'CFR - XML import'!$A20)),0,VALUE(MID('CFR - XML import'!$A20,SEARCH(\">\",'CFR - XML import'!$A20,1)+1,SEARCH(\"/\",'CFR - XML import'!$A20,1)-SEARCH(\">\",'CFR - XML import'!$A20,1)-2)))","v":0},{"$f":"IF(ISERROR(FIND(H$3,'CFR - XML import'!$A20)),0,VALUE(MID('CFR - XML import'!$A20,SEARCH(\">\",'CFR - XML import'!$A20,1)+1,SEARCH(\"/\",'CFR - XML import'!$A20,1)-SEARCH(\">\",'CFR - XML import'!$A20,1)-2)))","v":0},{"$f":"IF(ISERROR(FIND(I$3,'CFR - XML import'!$A20)),0,VALUE(MID('CFR - XML import'!$A20,SEARCH(\">\",'CFR - XML import'!$A20,1)+1,SEARCH(\"/\",'CFR - XML import'!$A20,1)-SEARCH(\">\",'CFR - XML import'!$A20,1)-2)))","v":0},{"$f":"IF(ISERROR(FIND(J$3,'CFR - XML import'!$A20)),0,VALUE(MID('CFR - XML import'!$A20,SEARCH(\">\",'CFR - XML import'!$A20,1)+1,SEARCH(\"/\",'CFR - XML import'!$A20,1)-SEARCH(\">\",'CFR - XML import'!$A20,1)-2)))","v":0},{"$f":"IF(ISERROR(FIND(K$3,'CFR - XML import'!$A20)),0,VALUE(MID('CFR - XML import'!$A20,SEARCH(\">\",'CFR - XML import'!$A20,1)+1,SEARCH(\"/\",'CFR - XML import'!$A20,1)-SEARCH(\">\",'CFR - XML import'!$A20,1)-2)))","v":0},{"$f":"IF(ISERROR(FIND(L$3,'CFR - XML import'!$A20)),0,VALUE(MID('CFR - XML import'!$A20,SEARCH(\">\",'CFR - XML import'!$A20,1)+1,SEARCH(\"/\",'CFR - XML import'!$A20,1)-SEARCH(\">\",'CFR - XML import'!$A20,1)-2)))","v":0},{"$f":"IF(ISERROR(FIND(M$3,'CFR - XML import'!$A20)),0,VALUE(MID('CFR - XML import'!$A20,SEARCH(\">\",'CFR - XML import'!$A20,1)+1,SEARCH(\"/\",'CFR - XML import'!$A20,1)-SEARCH(\">\",'CFR - XML import'!$A20,1)-2)))","v":0},{"$f":"IF(ISERROR(FIND(N$3,'CFR - XML import'!$A20)),0,VALUE(MID('CFR - XML import'!$A20,SEARCH(\">\",'CFR - XML import'!$A20,1)+1,SEARCH(\"/\",'CFR - XML import'!$A20,1)-SEARCH(\">\",'CFR - XML import'!$A20,1)-2)))","v":0},{"$f":"IF(ISERROR(FIND(O$3,'CFR - XML import'!$A20)),0,VALUE(MID('CFR - XML import'!$A20,SEARCH(\">\",'CFR - XML import'!$A20,1)+1,SEARCH(\"/\",'CFR - XML import'!$A20,1)-SEARCH(\">\",'CFR - XML import'!$A20,1)-2)))","v":0},{"$f":"IF(ISERROR(FIND(P$3,'CFR - XML import'!$A20)),0,VALUE(MID('CFR - XML import'!$A20,SEARCH(\">\",'CFR - XML import'!$A20,1)+1,SEARCH(\"/\",'CFR - XML import'!$A20,1)-SEARCH(\">\",'CFR - XML import'!$A20,1)-2)))","v":0},{"$f":"IF(ISERROR(FIND(Q$3,'CFR - XML import'!$A20)),0,VALUE(MID('CFR - XML import'!$A20,SEARCH(\">\",'CFR - XML import'!$A20,1)+1,SEARCH(\"/\",'CFR - XML import'!$A20,1)-SEARCH(\">\",'CFR - XML import'!$A20,1)-2)))","v":0},{"$f":"IF(ISERROR(FIND(R$3,'CFR - XML import'!$A20)),0,VALUE(MID('CFR - XML import'!$A20,SEARCH(\">\",'CFR - XML import'!$A20,1)+1,SEARCH(\"/\",'CFR - XML import'!$A20,1)-SEARCH(\">\",'CFR - XML import'!$A20,1)-2)))","v":0},{"$f":"IF(ISERROR(FIND(S$3,'CFR - XML import'!$A20)),0,VALUE(MID('CFR - XML import'!$A20,SEARCH(\">\",'CFR - XML import'!$A20,1)+1,SEARCH(\"/\",'CFR - XML import'!$A20,1)-SEARCH(\">\",'CFR - XML import'!$A20,1)-2)))","v":0},{"$f":"IF(ISERROR(FIND(T$3,'CFR - XML import'!$A20)),0,VALUE(MID('CFR - XML import'!$A20,SEARCH(\">\",'CFR - XML import'!$A20,1)+1,SEARCH(\"/\",'CFR - XML import'!$A20,1)-SEARCH(\">\",'CFR - XML import'!$A20,1)-2)))","v":0},{"$f":"IF(ISERROR(FIND(U$3,'CFR - XML import'!$A20)),0,VALUE(MID('CFR - XML import'!$A20,SEARCH(\">\",'CFR - XML import'!$A20,1)+1,SEARCH(\"/\",'CFR - XML import'!$A20,1)-SEARCH(\">\",'CFR - XML import'!$A20,1)-2)))","v":0},{"$f":"IF(ISERROR(FIND(V$3,'CFR - XML import'!$A20)),0,VALUE(MID('CFR - XML import'!$A20,SEARCH(\">\",'CFR - XML import'!$A20,1)+1,SEARCH(\"/\",'CFR - XML import'!$A20,1)-SEARCH(\">\",'CFR - XML import'!$A20,1)-2)))","v":0},{"$f":"IF(ISERROR(FIND(W$3,'CFR - XML import'!$A20)),0,VALUE(MID('CFR - XML import'!$A20,SEARCH(\">\",'CFR - XML import'!$A20,1)+1,SEARCH(\"/\",'CFR - XML import'!$A20,1)-SEARCH(\">\",'CFR - XML import'!$A20,1)-2)))","v":0},null,{"$f":"IF(ISERROR(FIND(Y$3,'CFR - XML import'!$A20)),0,VALUE(MID('CFR - XML import'!$A20,SEARCH(\">\",'CFR - XML import'!$A20,1)+1,SEARCH(\"/\",'CFR - XML import'!$A20,1)-SEARCH(\">\",'CFR - XML import'!$A20,1)-2)))","v":0},{"$f":"IF(ISERROR(FIND(Z$3,'CFR - XML import'!$A20)),0,VALUE(MID('CFR - XML import'!$A20,SEARCH(\">\",'CFR - XML import'!$A20,1)+1,SEARCH(\"/\",'CFR - XML import'!$A20,1)-SEARCH(\">\",'CFR - XML import'!$A20,1)-2)))","v":0},{"$f":"IF(ISERROR(FIND(AA$3,'CFR - XML import'!$A20)),0,VALUE(MID('CFR - XML import'!$A20,SEARCH(\">\",'CFR - XML import'!$A20,1)+1,SEARCH(\"/\",'CFR - XML import'!$A20,1)-SEARCH(\">\",'CFR - XML import'!$A20,1)-2)))","v":0},{"$f":"IF(ISERROR(FIND(AB$3,'CFR - XML import'!$A20)),0,VALUE(MID('CFR - XML import'!$A20,SEARCH(\">\",'CFR - XML import'!$A20,1)+1,SEARCH(\"/\",'CFR - XML import'!$A20,1)-SEARCH(\">\",'CFR - XML import'!$A20,1)-2)))","v":0},{"$f":"IF(ISERROR(FIND(AC$3,'CFR - XML import'!$A20)),0,VALUE(MID('CFR - XML import'!$A20,SEARCH(\">\",'CFR - XML import'!$A20,1)+1,SEARCH(\"/\",'CFR - XML import'!$A20,1)-SEARCH(\">\",'CFR - XML import'!$A20,1)-2)))","v":0},{"$f":"IF(ISERROR(FIND(AD$3,'CFR - XML import'!$A20)),0,VALUE(MID('CFR - XML import'!$A20,SEARCH(\">\",'CFR - XML import'!$A20,1)+1,SEARCH(\"/\",'CFR - XML import'!$A20,1)-SEARCH(\">\",'CFR - XML import'!$A20,1)-2)))","v":0},{"$f":"IF(ISERROR(FIND(AE$3,'CFR - XML import'!$A20)),0,VALUE(MID('CFR - XML import'!$A20,SEARCH(\">\",'CFR - XML import'!$A20,1)+1,SEARCH(\"/\",'CFR - XML import'!$A20,1)-SEARCH(\">\",'CFR - XML import'!$A20,1)-2)))","v":0},{"$f":"IF(ISERROR(FIND(AF$3,'CFR - XML import'!$A20)),0,VALUE(MID('CFR - XML import'!$A20,SEARCH(\">\",'CFR - XML import'!$A20,1)+1,SEARCH(\"/\",'CFR - XML import'!$A20,1)-SEARCH(\">\",'CFR - XML import'!$A20,1)-2)))","v":0},{"$f":"IF(ISERROR(FIND(AG$3,'CFR - XML import'!$A20)),0,VALUE(MID('CFR - XML import'!$A20,SEARCH(\">\",'CFR - XML import'!$A20,1)+1,SEARCH(\"/\",'CFR - XML import'!$A20,1)-SEARCH(\">\",'CFR - XML import'!$A20,1)-2)))","v":0},{"$f":"IF(ISERROR(FIND(AH$3,'CFR - XML import'!$A20)),0,VALUE(MID('CFR - XML import'!$A20,SEARCH(\">\",'CFR - XML import'!$A20,1)+1,SEARCH(\"/\",'CFR - XML import'!$A20,1)-SEARCH(\">\",'CFR - XML import'!$A20,1)-2)))","v":0},{"$f":"IF(ISERROR(FIND(AI$3,'CFR - XML import'!$A20)),0,VALUE(MID('CFR - XML import'!$A20,SEARCH(\">\",'CFR - XML import'!$A20,1)+1,SEARCH(\"/\",'CFR - XML import'!$A20,1)-SEARCH(\">\",'CFR - XML import'!$A20,1)-2)))","v":0},{"$f":"IF(ISERROR(FIND(AJ$3,'CFR - XML import'!$A20)),0,VALUE(MID('CFR - XML import'!$A20,SEARCH(\">\",'CFR - XML import'!$A20,1)+1,SEARCH(\"/\",'CFR - XML import'!$A20,1)-SEARCH(\">\",'CFR - XML import'!$A20,1)-2)))","v":0},{"$f":"IF(ISERROR(FIND(AK$3,'CFR - XML import'!$A20)),0,VALUE(MID('CFR - XML import'!$A20,SEARCH(\">\",'CFR - XML import'!$A20,1)+1,SEARCH(\"/\",'CFR - XML import'!$A20,1)-SEARCH(\">\",'CFR - XML import'!$A20,1)-2)))","v":0},{"$f":"IF(ISERROR(FIND(AL$3,'CFR - XML import'!$A20)),0,VALUE(MID('CFR - XML import'!$A20,SEARCH(\">\",'CFR - XML import'!$A20,1)+1,SEARCH(\"/\",'CFR - XML import'!$A20,1)-SEARCH(\">\",'CFR - XML import'!$A20,1)-2)))","v":0},{"$f":"IF(ISERROR(FIND(AM$3,'CFR - XML import'!$A20)),0,VALUE(MID('CFR - XML import'!$A20,SEARCH(\">\",'CFR - XML import'!$A20,1)+1,SEARCH(\"/\",'CFR - XML import'!$A20,1)-SEARCH(\">\",'CFR - XML import'!$A20,1)-2)))","v":0},{"$f":"IF(ISERROR(FIND(AN$3,'CFR - XML import'!$A20)),0,VALUE(MID('CFR - XML import'!$A20,SEARCH(\">\",'CFR - XML import'!$A20,1)+1,SEARCH(\"/\",'CFR - XML import'!$A20,1)-SEARCH(\">\",'CFR - XML import'!$A20,1)-2)))","v":0},{"$f":"IF(ISERROR(FIND(AO$3,'CFR - XML import'!$A20)),0,VALUE(MID('CFR - XML import'!$A20,SEARCH(\">\",'CFR - XML import'!$A20,1)+1,SEARCH(\"/\",'CFR - XML import'!$A20,1)-SEARCH(\">\",'CFR - XML import'!$A20,1)-2)))","v":0},{"$f":"IF(ISERROR(FIND(AP$3,'CFR - XML import'!$A20)),0,VALUE(MID('CFR - XML import'!$A20,SEARCH(\">\",'CFR - XML import'!$A20,1)+1,SEARCH(\"/\",'CFR - XML import'!$A20,1)-SEARCH(\">\",'CFR - XML import'!$A20,1)-2)))","v":0},{"$f":"IF(ISERROR(FIND(AQ$3,'CFR - XML import'!$A20)),0,VALUE(MID('CFR - XML import'!$A20,SEARCH(\">\",'CFR - XML import'!$A20,1)+1,SEARCH(\"/\",'CFR - XML import'!$A20,1)-SEARCH(\">\",'CFR - XML import'!$A20,1)-2)))","v":0},{"$f":"IF(ISERROR(FIND(AR$3,'CFR - XML import'!$A20)),0,VALUE(MID('CFR - XML import'!$A20,SEARCH(\">\",'CFR - XML import'!$A20,1)+1,SEARCH(\"/\",'CFR - XML import'!$A20,1)-SEARCH(\">\",'CFR - XML import'!$A20,1)-2)))","v":0},{"$f":"IF(ISERROR(FIND(AS$3,'CFR - XML import'!$A20)),0,VALUE(MID('CFR - XML import'!$A20,SEARCH(\">\",'CFR - XML import'!$A20,1)+1,SEARCH(\"/\",'CFR - XML import'!$A20,1)-SEARCH(\">\",'CFR - XML import'!$A20,1)-2)))","v":0},{"$f":"IF(ISERROR(FIND(AT$3,'CFR - XML import'!$A20)),0,VALUE(MID('CFR - XML import'!$A20,SEARCH(\">\",'CFR - XML import'!$A20,1)+1,SEARCH(\"/\",'CFR - XML import'!$A20,1)-SEARCH(\">\",'CFR - XML import'!$A20,1)-2)))","v":0},{"$f":"IF(ISERROR(FIND(AU$3,'CFR - XML import'!$A20)),0,VALUE(MID('CFR - XML import'!$A20,SEARCH(\">\",'CFR - XML import'!$A20,1)+1,SEARCH(\"/\",'CFR - XML import'!$A20,1)-SEARCH(\">\",'CFR - XML import'!$A20,1)-2)))","v":0},{"$f":"IF(ISERROR(FIND(AV$3,'CFR - XML import'!$A20)),0,VALUE(MID('CFR - XML import'!$A20,SEARCH(\">\",'CFR - XML import'!$A20,1)+1,SEARCH(\"/\",'CFR - XML import'!$A20,1)-SEARCH(\">\",'CFR - XML import'!$A20,1)-2)))","v":0},{"$f":"IF(ISERROR(FIND(AW$3,'CFR - XML import'!$A20)),0,VALUE(MID('CFR - XML import'!$A20,SEARCH(\">\",'CFR - XML import'!$A20,1)+1,SEARCH(\"/\",'CFR - XML import'!$A20,1)-SEARCH(\">\",'CFR - XML import'!$A20,1)-2)))","v":0},{"$f":"IF(ISERROR(FIND(AX$3,'CFR - XML import'!$A20)),0,VALUE(MID('CFR - XML import'!$A20,SEARCH(\">\",'CFR - XML import'!$A20,1)+1,SEARCH(\"/\",'CFR - XML import'!$A20,1)-SEARCH(\">\",'CFR - XML import'!$A20,1)-2)))","v":0},{"$f":"IF(ISERROR(FIND(AY$3,'CFR - XML import'!$A20)),0,VALUE(MID('CFR - XML import'!$A20,SEARCH(\">\",'CFR - XML import'!$A20,1)+1,SEARCH(\"/\",'CFR - XML import'!$A20,1)-SEARCH(\">\",'CFR - XML import'!$A20,1)-2)))","v":0},{"$f":"IF(ISERROR(FIND(AZ$3,'CFR - XML import'!$A20)),0,VALUE(MID('CFR - XML import'!$A20,SEARCH(\">\",'CFR - XML import'!$A20,1)+1,SEARCH(\"/\",'CFR - XML import'!$A20,1)-SEARCH(\">\",'CFR - XML import'!$A20,1)-2)))","v":0},{"$f":"IF(ISERROR(FIND(BA$3,'CFR - XML import'!$A20)),0,VALUE(MID('CFR - XML import'!$A20,SEARCH(\">\",'CFR - XML import'!$A20,1)+1,SEARCH(\"/\",'CFR - XML import'!$A20,1)-SEARCH(\">\",'CFR - XML import'!$A20,1)-2)))","v":0},{"$f":"IF(ISERROR(FIND(BB$3,'CFR - XML import'!$A20)),0,VALUE(MID('CFR - XML import'!$A20,SEARCH(\">\",'CFR - XML import'!$A20,1)+1,SEARCH(\"/\",'CFR - XML import'!$A20,1)-SEARCH(\">\",'CFR - XML import'!$A20,1)-2)))","v":0},{"$f":"IF(ISERROR(FIND(BC$3,'CFR - XML import'!$A20)),0,VALUE(MID('CFR - XML import'!$A20,SEARCH(\">\",'CFR - XML import'!$A20,1)+1,SEARCH(\"/\",'CFR - XML import'!$A20,1)-SEARCH(\">\",'CFR - XML import'!$A20,1)-2)))","v":0},{"$f":"IF(ISERROR(FIND(BD$3,'CFR - XML import'!$A20)),0,VALUE(MID('CFR - XML import'!$A20,SEARCH(\">\",'CFR - XML import'!$A20,1)+1,SEARCH(\"/\",'CFR - XML import'!$A20,1)-SEARCH(\">\",'CFR - XML import'!$A20,1)-2)))","v":0},{"$f":"IF(ISERROR(FIND(BE$3,'CFR - XML import'!$A20)),0,VALUE(MID('CFR - XML import'!$A20,SEARCH(\">\",'CFR - XML import'!$A20,1)+1,SEARCH(\"/\",'CFR - XML import'!$A20,1)-SEARCH(\">\",'CFR - XML import'!$A20,1)-2)))","v":0},{"$f":"IF(ISERROR(FIND(BF$3,'CFR - XML import'!$A20)),0,VALUE(MID('CFR - XML import'!$A20,SEARCH(\">\",'CFR - XML import'!$A20,1)+1,SEARCH(\"/\",'CFR - XML import'!$A20,1)-SEARCH(\">\",'CFR - XML import'!$A20,1)-2)))","v":0},{"$f":"IF(ISERROR(FIND(BG$3,'CFR - XML import'!$A20)),0,VALUE(MID('CFR - XML import'!$A20,SEARCH(\">\",'CFR - XML import'!$A20,1)+1,SEARCH(\"/\",'CFR - XML import'!$A20,1)-SEARCH(\">\",'CFR - XML import'!$A20,1)-2)))","v":0},{"$f":"IF(ISERROR(FIND(BH$3,'CFR - XML import'!$A20)),0,VALUE(MID('CFR - XML import'!$A20,SEARCH(\">\",'CFR - XML import'!$A20,1)+1,SEARCH(\"/\",'CFR - XML import'!$A20,1)-SEARCH(\">\",'CFR - XML import'!$A20,1)-2)))","v":0},{"$f":"IF(ISERROR(FIND(BI$3,'CFR - XML import'!$A20)),0,VALUE(MID('CFR - XML import'!$A20,SEARCH(\">\",'CFR - XML import'!$A20,1)+1,SEARCH(\"/\",'CFR - XML import'!$A20,1)-SEARCH(\">\",'CFR - XML import'!$A20,1)-2)))","v":0},{"$f":"IF(ISERROR(FIND(BJ$3,'CFR - XML import'!$A20)),0,VALUE(MID('CFR - XML import'!$A20,SEARCH(\">\",'CFR - XML import'!$A20,1)+1,SEARCH(\"/\",'CFR - XML import'!$A20,1)-SEARCH(\">\",'CFR - XML import'!$A20,1)-2)))","v":0},{"$f":"IF(ISERROR(FIND(BK$3,'CFR - XML import'!$A20)),0,VALUE(MID('CFR - XML import'!$A20,SEARCH(\">\",'CFR - XML import'!$A20,1)+1,SEARCH(\"/\",'CFR - XML import'!$A20,1)-SEARCH(\">\",'CFR - XML import'!$A20,1)-2)))","v":0},{"$f":"IF(ISERROR(FIND(BL$3,'CFR - XML import'!$A20)),0,VALUE(MID('CFR - XML import'!$A20,SEARCH(\">\",'CFR - XML import'!$A20,1)+1,SEARCH(\"/\",'CFR - XML import'!$A20,1)-SEARCH(\">\",'CFR - XML import'!$A20,1)-2)))","v":0},{"$f":"IF(ISERROR(FIND(BM$3,'CFR - XML import'!$A20)),0,VALUE(MID('CFR - XML import'!$A20,SEARCH(\">\",'CFR - XML import'!$A20,1)+1,SEARCH(\"/\",'CFR - XML import'!$A20,1)-SEARCH(\">\",'CFR - XML import'!$A20,1)-2)))","v":0},{"$f":"IF(ISERROR(FIND(BN$3,'CFR - XML import'!$A20)),0,VALUE(MID('CFR - XML import'!$A20,SEARCH(\">\",'CFR - XML import'!$A20,1)+1,SEARCH(\"/\",'CFR - XML import'!$A20,1)-SEARCH(\">\",'CFR - XML import'!$A20,1)-2)))","v":0},{"$f":"IF(ISERROR(FIND(BO$3,'CFR - XML import'!$A20)),0,VALUE(MID('CFR - XML import'!$A20,SEARCH(\">\",'CFR - XML import'!$A20,1)+1,SEARCH(\"/\",'CFR - XML import'!$A20,1)-SEARCH(\">\",'CFR - XML import'!$A20,1)-2)))","v":0},{"$f":"IF(ISERROR(FIND(BP$3,'CFR - XML import'!$A20)),0,VALUE(MID('CFR - XML import'!$A20,SEARCH(\">\",'CFR - XML import'!$A20,1)+1,SEARCH(\"/\",'CFR - XML import'!$A20,1)-SEARCH(\">\",'CFR - XML import'!$A20,1)-2)))","v":0},{"$f":"IF(ISERROR(FIND(BQ$3,'CFR - XML import'!$A20)),0,VALUE(MID('CFR - XML import'!$A20,SEARCH(\">\",'CFR - XML import'!$A20,1)+1,SEARCH(\"/\",'CFR - XML import'!$A20,1)-SEARCH(\">\",'CFR - XML import'!$A20,1)-2)))","v":0},{"$f":"IF(ISERROR(FIND(BR$3,'CFR - XML import'!$A20)),0,VALUE(MID('CFR - XML import'!$A20,SEARCH(\">\",'CFR - XML import'!$A20,1)+1,SEARCH(\"/\",'CFR - XML import'!$A20,1)-SEARCH(\">\",'CFR - XML import'!$A20,1)-2)))","v":0},{"$f":"IF(ISERROR(FIND(BS$3,'CFR - XML import'!$A20)),0,VALUE(MID('CFR - XML import'!$A20,SEARCH(\">\",'CFR - XML import'!$A20,1)+1,SEARCH(\"/\",'CFR - XML import'!$A20,1)-SEARCH(\">\",'CFR - XML import'!$A20,1)-2)))","v":0},{"$f":"IF(ISERROR(FIND(BT$3,'CFR - XML import'!$A20)),0,VALUE(MID('CFR - XML import'!$A20,SEARCH(\">\",'CFR - XML import'!$A20,1)+1,SEARCH(\"/\",'CFR - XML import'!$A20,1)-SEARCH(\">\",'CFR - XML import'!$A20,1)-2)))","v":0},{"$f":"IF(ISERROR(FIND(BU$3,'CFR - XML import'!$A20)),0,VALUE(MID('CFR - XML import'!$A20,SEARCH(\">\",'CFR - XML import'!$A20,1)+1,SEARCH(\"/\",'CFR - XML import'!$A20,1)-SEARCH(\">\",'CFR - XML import'!$A20,1)-2)))","v":0},{"$f":"IF(ISERROR(FIND(BV$3,'CFR - XML import'!$A20)),0,VALUE(MID('CFR - XML import'!$A20,SEARCH(\">\",'CFR - XML import'!$A20,1)+1,SEARCH(\"/\",'CFR - XML import'!$A20,1)-SEARCH(\">\",'CFR - XML import'!$A20,1)-2)))","v":0},{"$f":"IF(ISERROR(FIND(BW$3,'CFR - XML import'!$A20)),0,VALUE(MID('CFR - XML import'!$A20,SEARCH(\">\",'CFR - XML import'!$A20,1)+1,SEARCH(\"/\",'CFR - XML import'!$A20,1)-SEARCH(\">\",'CFR - XML import'!$A20,1)-2)))","v":0},{"$f":"IF(ISERROR(FIND(BX$3,'CFR - XML import'!$A20)),0,VALUE(MID('CFR - XML import'!$A20,SEARCH(\">\",'CFR - XML import'!$A20,1)+1,SEARCH(\"/\",'CFR - XML import'!$A20,1)-SEARCH(\">\",'CFR - XML import'!$A20,1)-2)))","v":0},{"$f":"IF(ISERROR(FIND(BY$3,'CFR - XML import'!$A20)),0,VALUE(MID('CFR - XML import'!$A20,SEARCH(\">\",'CFR - XML import'!$A20,1)+1,SEARCH(\"/\",'CFR - XML import'!$A20,1)-SEARCH(\">\",'CFR - XML import'!$A20,1)-2)))","v":0},{"$f":"IF(ISERROR(FIND(BZ$3,'CFR - XML import'!$A20)),0,VALUE(MID('CFR - XML import'!$A20,SEARCH(\">\",'CFR - XML import'!$A20,1)+1,SEARCH(\"/\",'CFR - XML import'!$A20,1)-SEARCH(\">\",'CFR - XML import'!$A20,1)-2)))","v":0},null,null,null,null,null,null,{"$f":"IF(ISERROR(IF(MID('CFR - XML import'!$A20,LEN($CF$4)+1,LEN('CFR - XML import'!$A20)-(2*LEN($CF$4)+1))=\"RMMS\",1,IF(MID('CFR - XML import'!$A20,LEN(\"    <InputSystem>\")+1,LEN('CFR - XML import'!$A20)-(LEN(\"    <InputSystem>\")+LEN($CF$4)+1))=\"SIMS\",2,0))),0,IF(MID('CFR - XML import'!$A20,LEN($CF$4)+1,LEN('CFR - XML import'!$A20)-(2*LEN($CF$4)+1))=\"RMMS\",1,IF(MID('CFR - XML import'!$A20,LEN(\"    <InputSystem>\")+1,LEN('CFR - XML import'!$A20)-(LEN(\"    <InputSystem>\")+LEN($CF$4)+1))=\"SIMS\",2,0)))","v":0},{"$f":"IF(ISERROR(FIND(CH$3,'CFR - XML import'!$A20)),0,MID('CFR - XML import'!$A20,SEARCH(\">\",'CFR - XML import'!$A20,1)+1,SEARCH(\"/\",'CFR - XML import'!$A20,1)-SEARCH(\">\",'CFR - XML import'!$A20,1)-2))","v":0},{"$f":"IF(ISERROR(FIND(CI$3,'CFR - XML import'!$A20)),0,MID('CFR - XML import'!$A20,SEARCH(\">\",'CFR - XML import'!$A20,1)+1,SEARCH(\"/\",'CFR - XML import'!$A20,1)-SEARCH(\">\",'CFR - XML import'!$A20,1)-2))","v":0},{"$f":"IF(ISERROR(FIND(CJ$3,'CFR - XML import'!$A20)),0,MID('CFR - XML import'!$A20,SEARCH(\">\",'CFR - XML import'!$A20,1)+1,SEARCH(\"/\",'CFR - XML import'!$A20,1)-SEARCH(\">\",'CFR - XML import'!$A20,1)-2))","v":0},{"$f":"IF(ISERROR(FIND(CK$3,'CFR - XML import'!$A20)),0,MID('CFR - XML import'!$A20,SEARCH(\">\",'CFR - XML import'!$A20,1)+1,SEARCH(\"/\",'CFR - XML import'!$A20,1)-SEARCH(\">\",'CFR - XML import'!$A20,1)-2))","v":0},{"$f":"IF(ISERROR(FIND(CL$3,'CFR - XML import'!$A20)),0,MID('CFR - XML import'!$A20,SEARCH(\">\",'CFR - XML import'!$A20,1)+1,SEARCH(\"/\",'CFR - XML import'!$A20,1)-SEARCH(\">\",'CFR - XML import'!$A20,1)-2))","v":0}]
[{"$f":"IF(AND('CFR - XML import'!A21<>\"\",LEFT('CFR - XML import'!A21,1)<>\"<\",LEFT('CFR - XML import'!A21,3)<>\"  <\",LEFT('CFR - XML import'!A21,5)<>\"    <\",LEFT('CFR - XML import'!A21,7)<>\"      <\",LEFT('CFR - XML import'!A21,9)<>\"        <\",$B$1=\"SIMS\"),'CFR - XML import'!A21,IF(AND(LEFT('CFR - XML import'!A21,9)=\"<Details>\",$B$1=\"RM\"),'CFR - XML import'!A21,\"\"))","v":""},{"$f":"IF(ISERROR(FIND(B$3,'CFR - XML import'!$A21)),0,VALUE(MID('CFR - XML import'!$A21,SEARCH(\">\",'CFR - XML import'!$A21,1)+1,SEARCH(\"/\",'CFR - XML import'!$A21,1)-SEARCH(\">\",'CFR - XML import'!$A21,1)-2)))","v":0},null,{"$f":"IF(ISERROR(FIND(D$3,'CFR - XML import'!$A21)),0,MID('CFR - XML import'!$A21,SEARCH(\">\",'CFR - XML import'!$A21,1)+1,SEARCH(\"/\",'CFR - XML import'!$A21,1)-SEARCH(\">\",'CFR - XML import'!$A21,1)-2))","v":0},{"$f":"IF(ISERROR(FIND(E$3,'CFR - XML import'!$A21)),0,MID('CFR - XML import'!$A21,SEARCH(\">\",'CFR - XML import'!$A21,1)+1,SEARCH(\"/\",'CFR - XML import'!$A21,1)-SEARCH(\">\",'CFR - XML import'!$A21,1)-2))","v":0},{"$f":"IF($B$1=\"SIMS\",IF(ISERROR(FIND(F$3,'CFR - XML import'!$A21)),0,VALUE(MID('CFR - XML import'!$A21,15,10))),IF(ISERROR(FIND(F$3,'CFR - XML import'!$A21)),0,VALUE(MID('CFR - XML import'!$A21,11,10))))","v":"00:00:00"},{"$f":"IF(ISERROR(FIND(G$3,'CFR - XML import'!$A21)),0,VALUE(MID('CFR - XML import'!$A21,SEARCH(\">\",'CFR - XML import'!$A21,1)+1,SEARCH(\"/\",'CFR - XML import'!$A21,1)-SEARCH(\">\",'CFR - XML import'!$A21,1)-2)))","v":0},{"$f":"IF(ISERROR(FIND(H$3,'CFR - XML import'!$A21)),0,VALUE(MID('CFR - XML import'!$A21,SEARCH(\">\",'CFR - XML import'!$A21,1)+1,SEARCH(\"/\",'CFR - XML import'!$A21,1)-SEARCH(\">\",'CFR - XML import'!$A21,1)-2)))","v":0},{"$f":"IF(ISERROR(FIND(I$3,'CFR - XML import'!$A21)),0,VALUE(MID('CFR - XML import'!$A21,SEARCH(\">\",'CFR - XML import'!$A21,1)+1,SEARCH(\"/\",'CFR - XML import'!$A21,1)-SEARCH(\">\",'CFR - XML import'!$A21,1)-2)))","v":0},{"$f":"IF(ISERROR(FIND(J$3,'CFR - XML import'!$A21)),0,VALUE(MID('CFR - XML import'!$A21,SEARCH(\">\",'CFR - XML import'!$A21,1)+1,SEARCH(\"/\",'CFR - XML import'!$A21,1)-SEARCH(\">\",'CFR - XML import'!$A21,1)-2)))","v":0},{"$f":"IF(ISERROR(FIND(K$3,'CFR - XML import'!$A21)),0,VALUE(MID('CFR - XML import'!$A21,SEARCH(\">\",'CFR - XML import'!$A21,1)+1,SEARCH(\"/\",'CFR - XML import'!$A21,1)-SEARCH(\">\",'CFR - XML import'!$A21,1)-2)))","v":0},{"$f":"IF(ISERROR(FIND(L$3,'CFR - XML import'!$A21)),0,VALUE(MID('CFR - XML import'!$A21,SEARCH(\">\",'CFR - XML import'!$A21,1)+1,SEARCH(\"/\",'CFR - XML import'!$A21,1)-SEARCH(\">\",'CFR - XML import'!$A21,1)-2)))","v":0},{"$f":"IF(ISERROR(FIND(M$3,'CFR - XML import'!$A21)),0,VALUE(MID('CFR - XML import'!$A21,SEARCH(\">\",'CFR - XML import'!$A21,1)+1,SEARCH(\"/\",'CFR - XML import'!$A21,1)-SEARCH(\">\",'CFR - XML import'!$A21,1)-2)))","v":0},{"$f":"IF(ISERROR(FIND(N$3,'CFR - XML import'!$A21)),0,VALUE(MID('CFR - XML import'!$A21,SEARCH(\">\",'CFR - XML import'!$A21,1)+1,SEARCH(\"/\",'CFR - XML import'!$A21,1)-SEARCH(\">\",'CFR - XML import'!$A21,1)-2)))","v":0},{"$f":"IF(ISERROR(FIND(O$3,'CFR - XML import'!$A21)),0,VALUE(MID('CFR - XML import'!$A21,SEARCH(\">\",'CFR - XML import'!$A21,1)+1,SEARCH(\"/\",'CFR - XML import'!$A21,1)-SEARCH(\">\",'CFR - XML import'!$A21,1)-2)))","v":0},{"$f":"IF(ISERROR(FIND(P$3,'CFR - XML import'!$A21)),0,VALUE(MID('CFR - XML import'!$A21,SEARCH(\">\",'CFR - XML import'!$A21,1)+1,SEARCH(\"/\",'CFR - XML import'!$A21,1)-SEARCH(\">\",'CFR - XML import'!$A21,1)-2)))","v":0},{"$f":"IF(ISERROR(FIND(Q$3,'CFR - XML import'!$A21)),0,VALUE(MID('CFR - XML import'!$A21,SEARCH(\">\",'CFR - XML import'!$A21,1)+1,SEARCH(\"/\",'CFR - XML import'!$A21,1)-SEARCH(\">\",'CFR - XML import'!$A21,1)-2)))","v":0},{"$f":"IF(ISERROR(FIND(R$3,'CFR - XML import'!$A21)),0,VALUE(MID('CFR - XML import'!$A21,SEARCH(\">\",'CFR - XML import'!$A21,1)+1,SEARCH(\"/\",'CFR - XML import'!$A21,1)-SEARCH(\">\",'CFR - XML import'!$A21,1)-2)))","v":0},{"$f":"IF(ISERROR(FIND(S$3,'CFR - XML import'!$A21)),0,VALUE(MID('CFR - XML import'!$A21,SEARCH(\">\",'CFR - XML import'!$A21,1)+1,SEARCH(\"/\",'CFR - XML import'!$A21,1)-SEARCH(\">\",'CFR - XML import'!$A21,1)-2)))","v":0},{"$f":"IF(ISERROR(FIND(T$3,'CFR - XML import'!$A21)),0,VALUE(MID('CFR - XML import'!$A21,SEARCH(\">\",'CFR - XML import'!$A21,1)+1,SEARCH(\"/\",'CFR - XML import'!$A21,1)-SEARCH(\">\",'CFR - XML import'!$A21,1)-2)))","v":0},{"$f":"IF(ISERROR(FIND(U$3,'CFR - XML import'!$A21)),0,VALUE(MID('CFR - XML import'!$A21,SEARCH(\">\",'CFR - XML import'!$A21,1)+1,SEARCH(\"/\",'CFR - XML import'!$A21,1)-SEARCH(\">\",'CFR - XML import'!$A21,1)-2)))","v":0},{"$f":"IF(ISERROR(FIND(V$3,'CFR - XML import'!$A21)),0,VALUE(MID('CFR - XML import'!$A21,SEARCH(\">\",'CFR - XML import'!$A21,1)+1,SEARCH(\"/\",'CFR - XML import'!$A21,1)-SEARCH(\">\",'CFR - XML import'!$A21,1)-2)))","v":0},{"$f":"IF(ISERROR(FIND(W$3,'CFR - XML import'!$A21)),0,VALUE(MID('CFR - XML import'!$A21,SEARCH(\">\",'CFR - XML import'!$A21,1)+1,SEARCH(\"/\",'CFR - XML import'!$A21,1)-SEARCH(\">\",'CFR - XML import'!$A21,1)-2)))","v":0},null,{"$f":"IF(ISERROR(FIND(Y$3,'CFR - XML import'!$A21)),0,VALUE(MID('CFR - XML import'!$A21,SEARCH(\">\",'CFR - XML import'!$A21,1)+1,SEARCH(\"/\",'CFR - XML import'!$A21,1)-SEARCH(\">\",'CFR - XML import'!$A21,1)-2)))","v":0},{"$f":"IF(ISERROR(FIND(Z$3,'CFR - XML import'!$A21)),0,VALUE(MID('CFR - XML import'!$A21,SEARCH(\">\",'CFR - XML import'!$A21,1)+1,SEARCH(\"/\",'CFR - XML import'!$A21,1)-SEARCH(\">\",'CFR - XML import'!$A21,1)-2)))","v":0},{"$f":"IF(ISERROR(FIND(AA$3,'CFR - XML import'!$A21)),0,VALUE(MID('CFR - XML import'!$A21,SEARCH(\">\",'CFR - XML import'!$A21,1)+1,SEARCH(\"/\",'CFR - XML import'!$A21,1)-SEARCH(\">\",'CFR - XML import'!$A21,1)-2)))","v":0},{"$f":"IF(ISERROR(FIND(AB$3,'CFR - XML import'!$A21)),0,VALUE(MID('CFR - XML import'!$A21,SEARCH(\">\",'CFR - XML import'!$A21,1)+1,SEARCH(\"/\",'CFR - XML import'!$A21,1)-SEARCH(\">\",'CFR - XML import'!$A21,1)-2)))","v":0},{"$f":"IF(ISERROR(FIND(AC$3,'CFR - XML import'!$A21)),0,VALUE(MID('CFR - XML import'!$A21,SEARCH(\">\",'CFR - XML import'!$A21,1)+1,SEARCH(\"/\",'CFR - XML import'!$A21,1)-SEARCH(\">\",'CFR - XML import'!$A21,1)-2)))","v":0},{"$f":"IF(ISERROR(FIND(AD$3,'CFR - XML import'!$A21)),0,VALUE(MID('CFR - XML import'!$A21,SEARCH(\">\",'CFR - XML import'!$A21,1)+1,SEARCH(\"/\",'CFR - XML import'!$A21,1)-SEARCH(\">\",'CFR - XML import'!$A21,1)-2)))","v":0},{"$f":"IF(ISERROR(FIND(AE$3,'CFR - XML import'!$A21)),0,VALUE(MID('CFR - XML import'!$A21,SEARCH(\">\",'CFR - XML import'!$A21,1)+1,SEARCH(\"/\",'CFR - XML import'!$A21,1)-SEARCH(\">\",'CFR - XML import'!$A21,1)-2)))","v":0},{"$f":"IF(ISERROR(FIND(AF$3,'CFR - XML import'!$A21)),0,VALUE(MID('CFR - XML import'!$A21,SEARCH(\">\",'CFR - XML import'!$A21,1)+1,SEARCH(\"/\",'CFR - XML import'!$A21,1)-SEARCH(\">\",'CFR - XML import'!$A21,1)-2)))","v":0},{"$f":"IF(ISERROR(FIND(AG$3,'CFR - XML import'!$A21)),0,VALUE(MID('CFR - XML import'!$A21,SEARCH(\">\",'CFR - XML import'!$A21,1)+1,SEARCH(\"/\",'CFR - XML import'!$A21,1)-SEARCH(\">\",'CFR - XML import'!$A21,1)-2)))","v":0},{"$f":"IF(ISERROR(FIND(AH$3,'CFR - XML import'!$A21)),0,VALUE(MID('CFR - XML import'!$A21,SEARCH(\">\",'CFR - XML import'!$A21,1)+1,SEARCH(\"/\",'CFR - XML import'!$A21,1)-SEARCH(\">\",'CFR - XML import'!$A21,1)-2)))","v":0},{"$f":"IF(ISERROR(FIND(AI$3,'CFR - XML import'!$A21)),0,VALUE(MID('CFR - XML import'!$A21,SEARCH(\">\",'CFR - XML import'!$A21,1)+1,SEARCH(\"/\",'CFR - XML import'!$A21,1)-SEARCH(\">\",'CFR - XML import'!$A21,1)-2)))","v":0},{"$f":"IF(ISERROR(FIND(AJ$3,'CFR - XML import'!$A21)),0,VALUE(MID('CFR - XML import'!$A21,SEARCH(\">\",'CFR - XML import'!$A21,1)+1,SEARCH(\"/\",'CFR - XML import'!$A21,1)-SEARCH(\">\",'CFR - XML import'!$A21,1)-2)))","v":0},{"$f":"IF(ISERROR(FIND(AK$3,'CFR - XML import'!$A21)),0,VALUE(MID('CFR - XML import'!$A21,SEARCH(\">\",'CFR - XML import'!$A21,1)+1,SEARCH(\"/\",'CFR - XML import'!$A21,1)-SEARCH(\">\",'CFR - XML import'!$A21,1)-2)))","v":0},{"$f":"IF(ISERROR(FIND(AL$3,'CFR - XML import'!$A21)),0,VALUE(MID('CFR - XML import'!$A21,SEARCH(\">\",'CFR - XML import'!$A21,1)+1,SEARCH(\"/\",'CFR - XML import'!$A21,1)-SEARCH(\">\",'CFR - XML import'!$A21,1)-2)))","v":0},{"$f":"IF(ISERROR(FIND(AM$3,'CFR - XML import'!$A21)),0,VALUE(MID('CFR - XML import'!$A21,SEARCH(\">\",'CFR - XML import'!$A21,1)+1,SEARCH(\"/\",'CFR - XML import'!$A21,1)-SEARCH(\">\",'CFR - XML import'!$A21,1)-2)))","v":0},{"$f":"IF(ISERROR(FIND(AN$3,'CFR - XML import'!$A21)),0,VALUE(MID('CFR - XML import'!$A21,SEARCH(\">\",'CFR - XML import'!$A21,1)+1,SEARCH(\"/\",'CFR - XML import'!$A21,1)-SEARCH(\">\",'CFR - XML import'!$A21,1)-2)))","v":0},{"$f":"IF(ISERROR(FIND(AO$3,'CFR - XML import'!$A21)),0,VALUE(MID('CFR - XML import'!$A21,SEARCH(\">\",'CFR - XML import'!$A21,1)+1,SEARCH(\"/\",'CFR - XML import'!$A21,1)-SEARCH(\">\",'CFR - XML import'!$A21,1)-2)))","v":0},{"$f":"IF(ISERROR(FIND(AP$3,'CFR - XML import'!$A21)),0,VALUE(MID('CFR - XML import'!$A21,SEARCH(\">\",'CFR - XML import'!$A21,1)+1,SEARCH(\"/\",'CFR - XML import'!$A21,1)-SEARCH(\">\",'CFR - XML import'!$A21,1)-2)))","v":0},{"$f":"IF(ISERROR(FIND(AQ$3,'CFR - XML import'!$A21)),0,VALUE(MID('CFR - XML import'!$A21,SEARCH(\">\",'CFR - XML import'!$A21,1)+1,SEARCH(\"/\",'CFR - XML import'!$A21,1)-SEARCH(\">\",'CFR - XML import'!$A21,1)-2)))","v":0},{"$f":"IF(ISERROR(FIND(AR$3,'CFR - XML import'!$A21)),0,VALUE(MID('CFR - XML import'!$A21,SEARCH(\">\",'CFR - XML import'!$A21,1)+1,SEARCH(\"/\",'CFR - XML import'!$A21,1)-SEARCH(\">\",'CFR - XML import'!$A21,1)-2)))","v":0},{"$f":"IF(ISERROR(FIND(AS$3,'CFR - XML import'!$A21)),0,VALUE(MID('CFR - XML import'!$A21,SEARCH(\">\",'CFR - XML import'!$A21,1)+1,SEARCH(\"/\",'CFR - XML import'!$A21,1)-SEARCH(\">\",'CFR - XML import'!$A21,1)-2)))","v":0},{"$f":"IF(ISERROR(FIND(AT$3,'CFR - XML import'!$A21)),0,VALUE(MID('CFR - XML import'!$A21,SEARCH(\">\",'CFR - XML import'!$A21,1)+1,SEARCH(\"/\",'CFR - XML import'!$A21,1)-SEARCH(\">\",'CFR - XML import'!$A21,1)-2)))","v":0},{"$f":"IF(ISERROR(FIND(AU$3,'CFR - XML import'!$A21)),0,VALUE(MID('CFR - XML import'!$A21,SEARCH(\">\",'CFR - XML import'!$A21,1)+1,SEARCH(\"/\",'CFR - XML import'!$A21,1)-SEARCH(\">\",'CFR - XML import'!$A21,1)-2)))","v":0},{"$f":"IF(ISERROR(FIND(AV$3,'CFR - XML import'!$A21)),0,VALUE(MID('CFR - XML import'!$A21,SEARCH(\">\",'CFR - XML import'!$A21,1)+1,SEARCH(\"/\",'CFR - XML import'!$A21,1)-SEARCH(\">\",'CFR - XML import'!$A21,1)-2)))","v":0},{"$f":"IF(ISERROR(FIND(AW$3,'CFR - XML import'!$A21)),0,VALUE(MID('CFR - XML import'!$A21,SEARCH(\">\",'CFR - XML import'!$A21,1)+1,SEARCH(\"/\",'CFR - XML import'!$A21,1)-SEARCH(\">\",'CFR - XML import'!$A21,1)-2)))","v":0},{"$f":"IF(ISERROR(FIND(AX$3,'CFR - XML import'!$A21)),0,VALUE(MID('CFR - XML import'!$A21,SEARCH(\">\",'CFR - XML import'!$A21,1)+1,SEARCH(\"/\",'CFR - XML import'!$A21,1)-SEARCH(\">\",'CFR - XML import'!$A21,1)-2)))","v":0},{"$f":"IF(ISERROR(FIND(AY$3,'CFR - XML import'!$A21)),0,VALUE(MID('CFR - XML import'!$A21,SEARCH(\">\",'CFR - XML import'!$A21,1)+1,SEARCH(\"/\",'CFR - XML import'!$A21,1)-SEARCH(\">\",'CFR - XML import'!$A21,1)-2)))","v":0},{"$f":"IF(ISERROR(FIND(AZ$3,'CFR - XML import'!$A21)),0,VALUE(MID('CFR - XML import'!$A21,SEARCH(\">\",'CFR - XML import'!$A21,1)+1,SEARCH(\"/\",'CFR - XML import'!$A21,1)-SEARCH(\">\",'CFR - XML import'!$A21,1)-2)))","v":0},{"$f":"IF(ISERROR(FIND(BA$3,'CFR - XML import'!$A21)),0,VALUE(MID('CFR - XML import'!$A21,SEARCH(\">\",'CFR - XML import'!$A21,1)+1,SEARCH(\"/\",'CFR - XML import'!$A21,1)-SEARCH(\">\",'CFR - XML import'!$A21,1)-2)))","v":0},{"$f":"IF(ISERROR(FIND(BB$3,'CFR - XML import'!$A21)),0,VALUE(MID('CFR - XML import'!$A21,SEARCH(\">\",'CFR - XML import'!$A21,1)+1,SEARCH(\"/\",'CFR - XML import'!$A21,1)-SEARCH(\">\",'CFR - XML import'!$A21,1)-2)))","v":0},{"$f":"IF(ISERROR(FIND(BC$3,'CFR - XML import'!$A21)),0,VALUE(MID('CFR - XML import'!$A21,SEARCH(\">\",'CFR - XML import'!$A21,1)+1,SEARCH(\"/\",'CFR - XML import'!$A21,1)-SEARCH(\">\",'CFR - XML import'!$A21,1)-2)))","v":0},{"$f":"IF(ISERROR(FIND(BD$3,'CFR - XML import'!$A21)),0,VALUE(MID('CFR - XML import'!$A21,SEARCH(\">\",'CFR - XML import'!$A21,1)+1,SEARCH(\"/\",'CFR - XML import'!$A21,1)-SEARCH(\">\",'CFR - XML import'!$A21,1)-2)))","v":0},{"$f":"IF(ISERROR(FIND(BE$3,'CFR - XML import'!$A21)),0,VALUE(MID('CFR - XML import'!$A21,SEARCH(\">\",'CFR - XML import'!$A21,1)+1,SEARCH(\"/\",'CFR - XML import'!$A21,1)-SEARCH(\">\",'CFR - XML import'!$A21,1)-2)))","v":0},{"$f":"IF(ISERROR(FIND(BF$3,'CFR - XML import'!$A21)),0,VALUE(MID('CFR - XML import'!$A21,SEARCH(\">\",'CFR - XML import'!$A21,1)+1,SEARCH(\"/\",'CFR - XML import'!$A21,1)-SEARCH(\">\",'CFR - XML import'!$A21,1)-2)))","v":0},{"$f":"IF(ISERROR(FIND(BG$3,'CFR - XML import'!$A21)),0,VALUE(MID('CFR - XML import'!$A21,SEARCH(\">\",'CFR - XML import'!$A21,1)+1,SEARCH(\"/\",'CFR - XML import'!$A21,1)-SEARCH(\">\",'CFR - XML import'!$A21,1)-2)))","v":0},{"$f":"IF(ISERROR(FIND(BH$3,'CFR - XML import'!$A21)),0,VALUE(MID('CFR - XML import'!$A21,SEARCH(\">\",'CFR - XML import'!$A21,1)+1,SEARCH(\"/\",'CFR - XML import'!$A21,1)-SEARCH(\">\",'CFR - XML import'!$A21,1)-2)))","v":0},{"$f":"IF(ISERROR(FIND(BI$3,'CFR - XML import'!$A21)),0,VALUE(MID('CFR - XML import'!$A21,SEARCH(\">\",'CFR - XML import'!$A21,1)+1,SEARCH(\"/\",'CFR - XML import'!$A21,1)-SEARCH(\">\",'CFR - XML import'!$A21,1)-2)))","v":0},{"$f":"IF(ISERROR(FIND(BJ$3,'CFR - XML import'!$A21)),0,VALUE(MID('CFR - XML import'!$A21,SEARCH(\">\",'CFR - XML import'!$A21,1)+1,SEARCH(\"/\",'CFR - XML import'!$A21,1)-SEARCH(\">\",'CFR - XML import'!$A21,1)-2)))","v":0},{"$f":"IF(ISERROR(FIND(BK$3,'CFR - XML import'!$A21)),0,VALUE(MID('CFR - XML import'!$A21,SEARCH(\">\",'CFR - XML import'!$A21,1)+1,SEARCH(\"/\",'CFR - XML import'!$A21,1)-SEARCH(\">\",'CFR - XML import'!$A21,1)-2)))","v":0},{"$f":"IF(ISERROR(FIND(BL$3,'CFR - XML import'!$A21)),0,VALUE(MID('CFR - XML import'!$A21,SEARCH(\">\",'CFR - XML import'!$A21,1)+1,SEARCH(\"/\",'CFR - XML import'!$A21,1)-SEARCH(\">\",'CFR - XML import'!$A21,1)-2)))","v":0},{"$f":"IF(ISERROR(FIND(BM$3,'CFR - XML import'!$A21)),0,VALUE(MID('CFR - XML import'!$A21,SEARCH(\">\",'CFR - XML import'!$A21,1)+1,SEARCH(\"/\",'CFR - XML import'!$A21,1)-SEARCH(\">\",'CFR - XML import'!$A21,1)-2)))","v":0},{"$f":"IF(ISERROR(FIND(BN$3,'CFR - XML import'!$A21)),0,VALUE(MID('CFR - XML import'!$A21,SEARCH(\">\",'CFR - XML import'!$A21,1)+1,SEARCH(\"/\",'CFR - XML import'!$A21,1)-SEARCH(\">\",'CFR - XML import'!$A21,1)-2)))","v":0},{"$f":"IF(ISERROR(FIND(BO$3,'CFR - XML import'!$A21)),0,VALUE(MID('CFR - XML import'!$A21,SEARCH(\">\",'CFR - XML import'!$A21,1)+1,SEARCH(\"/\",'CFR - XML import'!$A21,1)-SEARCH(\">\",'CFR - XML import'!$A21,1)-2)))","v":0},{"$f":"IF(ISERROR(FIND(BP$3,'CFR - XML import'!$A21)),0,VALUE(MID('CFR - XML import'!$A21,SEARCH(\">\",'CFR - XML import'!$A21,1)+1,SEARCH(\"/\",'CFR - XML import'!$A21,1)-SEARCH(\">\",'CFR - XML import'!$A21,1)-2)))","v":0},{"$f":"IF(ISERROR(FIND(BQ$3,'CFR - XML import'!$A21)),0,VALUE(MID('CFR - XML import'!$A21,SEARCH(\">\",'CFR - XML import'!$A21,1)+1,SEARCH(\"/\",'CFR - XML import'!$A21,1)-SEARCH(\">\",'CFR - XML import'!$A21,1)-2)))","v":0},{"$f":"IF(ISERROR(FIND(BR$3,'CFR - XML import'!$A21)),0,VALUE(MID('CFR - XML import'!$A21,SEARCH(\">\",'CFR - XML import'!$A21,1)+1,SEARCH(\"/\",'CFR - XML import'!$A21,1)-SEARCH(\">\",'CFR - XML import'!$A21,1)-2)))","v":0},{"$f":"IF(ISERROR(FIND(BS$3,'CFR - XML import'!$A21)),0,VALUE(MID('CFR - XML import'!$A21,SEARCH(\">\",'CFR - XML import'!$A21,1)+1,SEARCH(\"/\",'CFR - XML import'!$A21,1)-SEARCH(\">\",'CFR - XML import'!$A21,1)-2)))","v":0},{"$f":"IF(ISERROR(FIND(BT$3,'CFR - XML import'!$A21)),0,VALUE(MID('CFR - XML import'!$A21,SEARCH(\">\",'CFR - XML import'!$A21,1)+1,SEARCH(\"/\",'CFR - XML import'!$A21,1)-SEARCH(\">\",'CFR - XML import'!$A21,1)-2)))","v":0},{"$f":"IF(ISERROR(FIND(BU$3,'CFR - XML import'!$A21)),0,VALUE(MID('CFR - XML import'!$A21,SEARCH(\">\",'CFR - XML import'!$A21,1)+1,SEARCH(\"/\",'CFR - XML import'!$A21,1)-SEARCH(\">\",'CFR - XML import'!$A21,1)-2)))","v":0},{"$f":"IF(ISERROR(FIND(BV$3,'CFR - XML import'!$A21)),0,VALUE(MID('CFR - XML import'!$A21,SEARCH(\">\",'CFR - XML import'!$A21,1)+1,SEARCH(\"/\",'CFR - XML import'!$A21,1)-SEARCH(\">\",'CFR - XML import'!$A21,1)-2)))","v":0},{"$f":"IF(ISERROR(FIND(BW$3,'CFR - XML import'!$A21)),0,VALUE(MID('CFR - XML import'!$A21,SEARCH(\">\",'CFR - XML import'!$A21,1)+1,SEARCH(\"/\",'CFR - XML import'!$A21,1)-SEARCH(\">\",'CFR - XML import'!$A21,1)-2)))","v":0},{"$f":"IF(ISERROR(FIND(BX$3,'CFR - XML import'!$A21)),0,VALUE(MID('CFR - XML import'!$A21,SEARCH(\">\",'CFR - XML import'!$A21,1)+1,SEARCH(\"/\",'CFR - XML import'!$A21,1)-SEARCH(\">\",'CFR - XML import'!$A21,1)-2)))","v":0},{"$f":"IF(ISERROR(FIND(BY$3,'CFR - XML import'!$A21)),0,VALUE(MID('CFR - XML import'!$A21,SEARCH(\">\",'CFR - XML import'!$A21,1)+1,SEARCH(\"/\",'CFR - XML import'!$A21,1)-SEARCH(\">\",'CFR - XML import'!$A21,1)-2)))","v":0},{"$f":"IF(ISERROR(FIND(BZ$3,'CFR - XML import'!$A21)),0,VALUE(MID('CFR - XML import'!$A21,SEARCH(\">\",'CFR - XML import'!$A21,1)+1,SEARCH(\"/\",'CFR - XML import'!$A21,1)-SEARCH(\">\",'CFR - XML import'!$A21,1)-2)))","v":0},null,null,null,null,null,null,{"$f":"IF(ISERROR(IF(MID('CFR - XML import'!$A21,LEN($CF$4)+1,LEN('CFR - XML import'!$A21)-(2*LEN($CF$4)+1))=\"RMMS\",1,IF(MID('CFR - XML import'!$A21,LEN(\"    <InputSystem>\")+1,LEN('CFR - XML import'!$A21)-(LEN(\"    <InputSystem>\")+LEN($CF$4)+1))=\"SIMS\",2,0))),0,IF(MID('CFR - XML import'!$A21,LEN($CF$4)+1,LEN('CFR - XML import'!$A21)-(2*LEN($CF$4)+1))=\"RMMS\",1,IF(MID('CFR - XML import'!$A21,LEN(\"    <InputSystem>\")+1,LEN('CFR - XML import'!$A21)-(LEN(\"    <InputSystem>\")+LEN($CF$4)+1))=\"SIMS\",2,0)))","v":0},{"$f":"IF(ISERROR(FIND(CH$3,'CFR - XML import'!$A21)),0,MID('CFR - XML import'!$A21,SEARCH(\">\",'CFR - XML import'!$A21,1)+1,SEARCH(\"/\",'CFR - XML import'!$A21,1)-SEARCH(\">\",'CFR - XML import'!$A21,1)-2))","v":0},{"$f":"IF(ISERROR(FIND(CI$3,'CFR - XML import'!$A21)),0,MID('CFR - XML import'!$A21,SEARCH(\">\",'CFR - XML import'!$A21,1)+1,SEARCH(\"/\",'CFR - XML import'!$A21,1)-SEARCH(\">\",'CFR - XML import'!$A21,1)-2))","v":0},{"$f":"IF(ISERROR(FIND(CJ$3,'CFR - XML import'!$A21)),0,MID('CFR - XML import'!$A21,SEARCH(\">\",'CFR - XML import'!$A21,1)+1,SEARCH(\"/\",'CFR - XML import'!$A21,1)-SEARCH(\">\",'CFR - XML import'!$A21,1)-2))","v":0},{"$f":"IF(ISERROR(FIND(CK$3,'CFR - XML import'!$A21)),0,MID('CFR - XML import'!$A21,SEARCH(\">\",'CFR - XML import'!$A21,1)+1,SEARCH(\"/\",'CFR - XML import'!$A21,1)-SEARCH(\">\",'CFR - XML import'!$A21,1)-2))","v":0},{"$f":"IF(ISERROR(FIND(CL$3,'CFR - XML import'!$A21)),0,MID('CFR - XML import'!$A21,SEARCH(\">\",'CFR - XML import'!$A21,1)+1,SEARCH(\"/\",'CFR - XML import'!$A21,1)-SEARCH(\">\",'CFR - XML import'!$A21,1)-2))","v":0}]
[{"$f":"IF(AND('CFR - XML import'!A22<>\"\",LEFT('CFR - XML import'!A22,1)<>\"<\",LEFT('CFR - XML import'!A22,3)<>\"  <\",LEFT('CFR - XML import'!A22,5)<>\"    <\",LEFT('CFR - XML import'!A22,7)<>\"      <\",LEFT('CFR - XML import'!A22,9)<>\"        <\",$B$1=\"SIMS\"),'CFR - XML import'!A22,IF(AND(LEFT('CFR - XML import'!A22,9)=\"<Details>\",$B$1=\"RM\"),'CFR - XML import'!A22,\"\"))","v":""},{"$f":"IF(ISERROR(FIND(B$3,'CFR - XML import'!$A22)),0,VALUE(MID('CFR - XML import'!$A22,SEARCH(\">\",'CFR - XML import'!$A22,1)+1,SEARCH(\"/\",'CFR - XML import'!$A22,1)-SEARCH(\">\",'CFR - XML import'!$A22,1)-2)))","v":0},null,{"$f":"IF(ISERROR(FIND(D$3,'CFR - XML import'!$A22)),0,MID('CFR - XML import'!$A22,SEARCH(\">\",'CFR - XML import'!$A22,1)+1,SEARCH(\"/\",'CFR - XML import'!$A22,1)-SEARCH(\">\",'CFR - XML import'!$A22,1)-2))","v":0},{"$f":"IF(ISERROR(FIND(E$3,'CFR - XML import'!$A22)),0,MID('CFR - XML import'!$A22,SEARCH(\">\",'CFR - XML import'!$A22,1)+1,SEARCH(\"/\",'CFR - XML import'!$A22,1)-SEARCH(\">\",'CFR - XML import'!$A22,1)-2))","v":0},{"$f":"IF($B$1=\"SIMS\",IF(ISERROR(FIND(F$3,'CFR - XML import'!$A22)),0,VALUE(MID('CFR - XML import'!$A22,15,10))),IF(ISERROR(FIND(F$3,'CFR - XML import'!$A22)),0,VALUE(MID('CFR - XML import'!$A22,11,10))))","v":"00:00:00"},{"$f":"IF(ISERROR(FIND(G$3,'CFR - XML import'!$A22)),0,VALUE(MID('CFR - XML import'!$A22,SEARCH(\">\",'CFR - XML import'!$A22,1)+1,SEARCH(\"/\",'CFR - XML import'!$A22,1)-SEARCH(\">\",'CFR - XML import'!$A22,1)-2)))","v":0},{"$f":"IF(ISERROR(FIND(H$3,'CFR - XML import'!$A22)),0,VALUE(MID('CFR - XML import'!$A22,SEARCH(\">\",'CFR - XML import'!$A22,1)+1,SEARCH(\"/\",'CFR - XML import'!$A22,1)-SEARCH(\">\",'CFR - XML import'!$A22,1)-2)))","v":0},{"$f":"IF(ISERROR(FIND(I$3,'CFR - XML import'!$A22)),0,VALUE(MID('CFR - XML import'!$A22,SEARCH(\">\",'CFR - XML import'!$A22,1)+1,SEARCH(\"/\",'CFR - XML import'!$A22,1)-SEARCH(\">\",'CFR - XML import'!$A22,1)-2)))","v":0},{"$f":"IF(ISERROR(FIND(J$3,'CFR - XML import'!$A22)),0,VALUE(MID('CFR - XML import'!$A22,SEARCH(\">\",'CFR - XML import'!$A22,1)+1,SEARCH(\"/\",'CFR - XML import'!$A22,1)-SEARCH(\">\",'CFR - XML import'!$A22,1)-2)))","v":0},{"$f":"IF(ISERROR(FIND(K$3,'CFR - XML import'!$A22)),0,VALUE(MID('CFR - XML import'!$A22,SEARCH(\">\",'CFR - XML import'!$A22,1)+1,SEARCH(\"/\",'CFR - XML import'!$A22,1)-SEARCH(\">\",'CFR - XML import'!$A22,1)-2)))","v":0},{"$f":"IF(ISERROR(FIND(L$3,'CFR - XML import'!$A22)),0,VALUE(MID('CFR - XML import'!$A22,SEARCH(\">\",'CFR - XML import'!$A22,1)+1,SEARCH(\"/\",'CFR - XML import'!$A22,1)-SEARCH(\">\",'CFR - XML import'!$A22,1)-2)))","v":0},{"$f":"IF(ISERROR(FIND(M$3,'CFR - XML import'!$A22)),0,VALUE(MID('CFR - XML import'!$A22,SEARCH(\">\",'CFR - XML import'!$A22,1)+1,SEARCH(\"/\",'CFR - XML import'!$A22,1)-SEARCH(\">\",'CFR - XML import'!$A22,1)-2)))","v":0},{"$f":"IF(ISERROR(FIND(N$3,'CFR - XML import'!$A22)),0,VALUE(MID('CFR - XML import'!$A22,SEARCH(\">\",'CFR - XML import'!$A22,1)+1,SEARCH(\"/\",'CFR - XML import'!$A22,1)-SEARCH(\">\",'CFR - XML import'!$A22,1)-2)))","v":0},{"$f":"IF(ISERROR(FIND(O$3,'CFR - XML import'!$A22)),0,VALUE(MID('CFR - XML import'!$A22,SEARCH(\">\",'CFR - XML import'!$A22,1)+1,SEARCH(\"/\",'CFR - XML import'!$A22,1)-SEARCH(\">\",'CFR - XML import'!$A22,1)-2)))","v":0},{"$f":"IF(ISERROR(FIND(P$3,'CFR - XML import'!$A22)),0,VALUE(MID('CFR - XML import'!$A22,SEARCH(\">\",'CFR - XML import'!$A22,1)+1,SEARCH(\"/\",'CFR - XML import'!$A22,1)-SEARCH(\">\",'CFR - XML import'!$A22,1)-2)))","v":0},{"$f":"IF(ISERROR(FIND(Q$3,'CFR - XML import'!$A22)),0,VALUE(MID('CFR - XML import'!$A22,SEARCH(\">\",'CFR - XML import'!$A22,1)+1,SEARCH(\"/\",'CFR - XML import'!$A22,1)-SEARCH(\">\",'CFR - XML import'!$A22,1)-2)))","v":0},{"$f":"IF(ISERROR(FIND(R$3,'CFR - XML import'!$A22)),0,VALUE(MID('CFR - XML import'!$A22,SEARCH(\">\",'CFR - XML import'!$A22,1)+1,SEARCH(\"/\",'CFR - XML import'!$A22,1)-SEARCH(\">\",'CFR - XML import'!$A22,1)-2)))","v":0},{"$f":"IF(ISERROR(FIND(S$3,'CFR - XML import'!$A22)),0,VALUE(MID('CFR - XML import'!$A22,SEARCH(\">\",'CFR - XML import'!$A22,1)+1,SEARCH(\"/\",'CFR - XML import'!$A22,1)-SEARCH(\">\",'CFR - XML import'!$A22,1)-2)))","v":0},{"$f":"IF(ISERROR(FIND(T$3,'CFR - XML import'!$A22)),0,VALUE(MID('CFR - XML import'!$A22,SEARCH(\">\",'CFR - XML import'!$A22,1)+1,SEARCH(\"/\",'CFR - XML import'!$A22,1)-SEARCH(\">\",'CFR - XML import'!$A22,1)-2)))","v":0},{"$f":"IF(ISERROR(FIND(U$3,'CFR - XML import'!$A22)),0,VALUE(MID('CFR - XML import'!$A22,SEARCH(\">\",'CFR - XML import'!$A22,1)+1,SEARCH(\"/\",'CFR - XML import'!$A22,1)-SEARCH(\">\",'CFR - XML import'!$A22,1)-2)))","v":0},{"$f":"IF(ISERROR(FIND(V$3,'CFR - XML import'!$A22)),0,VALUE(MID('CFR - XML import'!$A22,SEARCH(\">\",'CFR - XML import'!$A22,1)+1,SEARCH(\"/\",'CFR - XML import'!$A22,1)-SEARCH(\">\",'CFR - XML import'!$A22,1)-2)))","v":0},{"$f":"IF(ISERROR(FIND(W$3,'CFR - XML import'!$A22)),0,VALUE(MID('CFR - XML import'!$A22,SEARCH(\">\",'CFR - XML import'!$A22,1)+1,SEARCH(\"/\",'CFR - XML import'!$A22,1)-SEARCH(\">\",'CFR - XML import'!$A22,1)-2)))","v":0},null,{"$f":"IF(ISERROR(FIND(Y$3,'CFR - XML import'!$A22)),0,VALUE(MID('CFR - XML import'!$A22,SEARCH(\">\",'CFR - XML import'!$A22,1)+1,SEARCH(\"/\",'CFR - XML import'!$A22,1)-SEARCH(\">\",'CFR - XML import'!$A22,1)-2)))","v":0},{"$f":"IF(ISERROR(FIND(Z$3,'CFR - XML import'!$A22)),0,VALUE(MID('CFR - XML import'!$A22,SEARCH(\">\",'CFR - XML import'!$A22,1)+1,SEARCH(\"/\",'CFR - XML import'!$A22,1)-SEARCH(\">\",'CFR - XML import'!$A22,1)-2)))","v":0},{"$f":"IF(ISERROR(FIND(AA$3,'CFR - XML import'!$A22)),0,VALUE(MID('CFR - XML import'!$A22,SEARCH(\">\",'CFR - XML import'!$A22,1)+1,SEARCH(\"/\",'CFR - XML import'!$A22,1)-SEARCH(\">\",'CFR - XML import'!$A22,1)-2)))","v":0},{"$f":"IF(ISERROR(FIND(AB$3,'CFR - XML import'!$A22)),0,VALUE(MID('CFR - XML import'!$A22,SEARCH(\">\",'CFR - XML import'!$A22,1)+1,SEARCH(\"/\",'CFR - XML import'!$A22,1)-SEARCH(\">\",'CFR - XML import'!$A22,1)-2)))","v":0},{"$f":"IF(ISERROR(FIND(AC$3,'CFR - XML import'!$A22)),0,VALUE(MID('CFR - XML import'!$A22,SEARCH(\">\",'CFR - XML import'!$A22,1)+1,SEARCH(\"/\",'CFR - XML import'!$A22,1)-SEARCH(\">\",'CFR - XML import'!$A22,1)-2)))","v":0},{"$f":"IF(ISERROR(FIND(AD$3,'CFR - XML import'!$A22)),0,VALUE(MID('CFR - XML import'!$A22,SEARCH(\">\",'CFR - XML import'!$A22,1)+1,SEARCH(\"/\",'CFR - XML import'!$A22,1)-SEARCH(\">\",'CFR - XML import'!$A22,1)-2)))","v":0},{"$f":"IF(ISERROR(FIND(AE$3,'CFR - XML import'!$A22)),0,VALUE(MID('CFR - XML import'!$A22,SEARCH(\">\",'CFR - XML import'!$A22,1)+1,SEARCH(\"/\",'CFR - XML import'!$A22,1)-SEARCH(\">\",'CFR - XML import'!$A22,1)-2)))","v":0},{"$f":"IF(ISERROR(FIND(AF$3,'CFR - XML import'!$A22)),0,VALUE(MID('CFR - XML import'!$A22,SEARCH(\">\",'CFR - XML import'!$A22,1)+1,SEARCH(\"/\",'CFR - XML import'!$A22,1)-SEARCH(\">\",'CFR - XML import'!$A22,1)-2)))","v":0},{"$f":"IF(ISERROR(FIND(AG$3,'CFR - XML import'!$A22)),0,VALUE(MID('CFR - XML import'!$A22,SEARCH(\">\",'CFR - XML import'!$A22,1)+1,SEARCH(\"/\",'CFR - XML import'!$A22,1)-SEARCH(\">\",'CFR - XML import'!$A22,1)-2)))","v":0},{"$f":"IF(ISERROR(FIND(AH$3,'CFR - XML import'!$A22)),0,VALUE(MID('CFR - XML import'!$A22,SEARCH(\">\",'CFR - XML import'!$A22,1)+1,SEARCH(\"/\",'CFR - XML import'!$A22,1)-SEARCH(\">\",'CFR - XML import'!$A22,1)-2)))","v":0},{"$f":"IF(ISERROR(FIND(AI$3,'CFR - XML import'!$A22)),0,VALUE(MID('CFR - XML import'!$A22,SEARCH(\">\",'CFR - XML import'!$A22,1)+1,SEARCH(\"/\",'CFR - XML import'!$A22,1)-SEARCH(\">\",'CFR - XML import'!$A22,1)-2)))","v":0},{"$f":"IF(ISERROR(FIND(AJ$3,'CFR - XML import'!$A22)),0,VALUE(MID('CFR - XML import'!$A22,SEARCH(\">\",'CFR - XML import'!$A22,1)+1,SEARCH(\"/\",'CFR - XML import'!$A22,1)-SEARCH(\">\",'CFR - XML import'!$A22,1)-2)))","v":0},{"$f":"IF(ISERROR(FIND(AK$3,'CFR - XML import'!$A22)),0,VALUE(MID('CFR - XML import'!$A22,SEARCH(\">\",'CFR - XML import'!$A22,1)+1,SEARCH(\"/\",'CFR - XML import'!$A22,1)-SEARCH(\">\",'CFR - XML import'!$A22,1)-2)))","v":0},{"$f":"IF(ISERROR(FIND(AL$3,'CFR - XML import'!$A22)),0,VALUE(MID('CFR - XML import'!$A22,SEARCH(\">\",'CFR - XML import'!$A22,1)+1,SEARCH(\"/\",'CFR - XML import'!$A22,1)-SEARCH(\">\",'CFR - XML import'!$A22,1)-2)))","v":0},{"$f":"IF(ISERROR(FIND(AM$3,'CFR - XML import'!$A22)),0,VALUE(MID('CFR - XML import'!$A22,SEARCH(\">\",'CFR - XML import'!$A22,1)+1,SEARCH(\"/\",'CFR - XML import'!$A22,1)-SEARCH(\">\",'CFR - XML import'!$A22,1)-2)))","v":0},{"$f":"IF(ISERROR(FIND(AN$3,'CFR - XML import'!$A22)),0,VALUE(MID('CFR - XML import'!$A22,SEARCH(\">\",'CFR - XML import'!$A22,1)+1,SEARCH(\"/\",'CFR - XML import'!$A22,1)-SEARCH(\">\",'CFR - XML import'!$A22,1)-2)))","v":0},{"$f":"IF(ISERROR(FIND(AO$3,'CFR - XML import'!$A22)),0,VALUE(MID('CFR - XML import'!$A22,SEARCH(\">\",'CFR - XML import'!$A22,1)+1,SEARCH(\"/\",'CFR - XML import'!$A22,1)-SEARCH(\">\",'CFR - XML import'!$A22,1)-2)))","v":0},{"$f":"IF(ISERROR(FIND(AP$3,'CFR - XML import'!$A22)),0,VALUE(MID('CFR - XML import'!$A22,SEARCH(\">\",'CFR - XML import'!$A22,1)+1,SEARCH(\"/\",'CFR - XML import'!$A22,1)-SEARCH(\">\",'CFR - XML import'!$A22,1)-2)))","v":0},{"$f":"IF(ISERROR(FIND(AQ$3,'CFR - XML import'!$A22)),0,VALUE(MID('CFR - XML import'!$A22,SEARCH(\">\",'CFR - XML import'!$A22,1)+1,SEARCH(\"/\",'CFR - XML import'!$A22,1)-SEARCH(\">\",'CFR - XML import'!$A22,1)-2)))","v":0},{"$f":"IF(ISERROR(FIND(AR$3,'CFR - XML import'!$A22)),0,VALUE(MID('CFR - XML import'!$A22,SEARCH(\">\",'CFR - XML import'!$A22,1)+1,SEARCH(\"/\",'CFR - XML import'!$A22,1)-SEARCH(\">\",'CFR - XML import'!$A22,1)-2)))","v":0},{"$f":"IF(ISERROR(FIND(AS$3,'CFR - XML import'!$A22)),0,VALUE(MID('CFR - XML import'!$A22,SEARCH(\">\",'CFR - XML import'!$A22,1)+1,SEARCH(\"/\",'CFR - XML import'!$A22,1)-SEARCH(\">\",'CFR - XML import'!$A22,1)-2)))","v":0},{"$f":"IF(ISERROR(FIND(AT$3,'CFR - XML import'!$A22)),0,VALUE(MID('CFR - XML import'!$A22,SEARCH(\">\",'CFR - XML import'!$A22,1)+1,SEARCH(\"/\",'CFR - XML import'!$A22,1)-SEARCH(\">\",'CFR - XML import'!$A22,1)-2)))","v":0},{"$f":"IF(ISERROR(FIND(AU$3,'CFR - XML import'!$A22)),0,VALUE(MID('CFR - XML import'!$A22,SEARCH(\">\",'CFR - XML import'!$A22,1)+1,SEARCH(\"/\",'CFR - XML import'!$A22,1)-SEARCH(\">\",'CFR - XML import'!$A22,1)-2)))","v":0},{"$f":"IF(ISERROR(FIND(AV$3,'CFR - XML import'!$A22)),0,VALUE(MID('CFR - XML import'!$A22,SEARCH(\">\",'CFR - XML import'!$A22,1)+1,SEARCH(\"/\",'CFR - XML import'!$A22,1)-SEARCH(\">\",'CFR - XML import'!$A22,1)-2)))","v":0},{"$f":"IF(ISERROR(FIND(AW$3,'CFR - XML import'!$A22)),0,VALUE(MID('CFR - XML import'!$A22,SEARCH(\">\",'CFR - XML import'!$A22,1)+1,SEARCH(\"/\",'CFR - XML import'!$A22,1)-SEARCH(\">\",'CFR - XML import'!$A22,1)-2)))","v":0},{"$f":"IF(ISERROR(FIND(AX$3,'CFR - XML import'!$A22)),0,VALUE(MID('CFR - XML import'!$A22,SEARCH(\">\",'CFR - XML import'!$A22,1)+1,SEARCH(\"/\",'CFR - XML import'!$A22,1)-SEARCH(\">\",'CFR - XML import'!$A22,1)-2)))","v":0},{"$f":"IF(ISERROR(FIND(AY$3,'CFR - XML import'!$A22)),0,VALUE(MID('CFR - XML import'!$A22,SEARCH(\">\",'CFR - XML import'!$A22,1)+1,SEARCH(\"/\",'CFR - XML import'!$A22,1)-SEARCH(\">\",'CFR - XML import'!$A22,1)-2)))","v":0},{"$f":"IF(ISERROR(FIND(AZ$3,'CFR - XML import'!$A22)),0,VALUE(MID('CFR - XML import'!$A22,SEARCH(\">\",'CFR - XML import'!$A22,1)+1,SEARCH(\"/\",'CFR - XML import'!$A22,1)-SEARCH(\">\",'CFR - XML import'!$A22,1)-2)))","v":0},{"$f":"IF(ISERROR(FIND(BA$3,'CFR - XML import'!$A22)),0,VALUE(MID('CFR - XML import'!$A22,SEARCH(\">\",'CFR - XML import'!$A22,1)+1,SEARCH(\"/\",'CFR - XML import'!$A22,1)-SEARCH(\">\",'CFR - XML import'!$A22,1)-2)))","v":0},{"$f":"IF(ISERROR(FIND(BB$3,'CFR - XML import'!$A22)),0,VALUE(MID('CFR - XML import'!$A22,SEARCH(\">\",'CFR - XML import'!$A22,1)+1,SEARCH(\"/\",'CFR - XML import'!$A22,1)-SEARCH(\">\",'CFR - XML import'!$A22,1)-2)))","v":0},{"$f":"IF(ISERROR(FIND(BC$3,'CFR - XML import'!$A22)),0,VALUE(MID('CFR - XML import'!$A22,SEARCH(\">\",'CFR - XML import'!$A22,1)+1,SEARCH(\"/\",'CFR - XML import'!$A22,1)-SEARCH(\">\",'CFR - XML import'!$A22,1)-2)))","v":0},{"$f":"IF(ISERROR(FIND(BD$3,'CFR - XML import'!$A22)),0,VALUE(MID('CFR - XML import'!$A22,SEARCH(\">\",'CFR - XML import'!$A22,1)+1,SEARCH(\"/\",'CFR - XML import'!$A22,1)-SEARCH(\">\",'CFR - XML import'!$A22,1)-2)))","v":0},{"$f":"IF(ISERROR(FIND(BE$3,'CFR - XML import'!$A22)),0,VALUE(MID('CFR - XML import'!$A22,SEARCH(\">\",'CFR - XML import'!$A22,1)+1,SEARCH(\"/\",'CFR - XML import'!$A22,1)-SEARCH(\">\",'CFR - XML import'!$A22,1)-2)))","v":0},{"$f":"IF(ISERROR(FIND(BF$3,'CFR - XML import'!$A22)),0,VALUE(MID('CFR - XML import'!$A22,SEARCH(\">\",'CFR - XML import'!$A22,1)+1,SEARCH(\"/\",'CFR - XML import'!$A22,1)-SEARCH(\">\",'CFR - XML import'!$A22,1)-2)))","v":0},{"$f":"IF(ISERROR(FIND(BG$3,'CFR - XML import'!$A22)),0,VALUE(MID('CFR - XML import'!$A22,SEARCH(\">\",'CFR - XML import'!$A22,1)+1,SEARCH(\"/\",'CFR - XML import'!$A22,1)-SEARCH(\">\",'CFR - XML import'!$A22,1)-2)))","v":0},{"$f":"IF(ISERROR(FIND(BH$3,'CFR - XML import'!$A22)),0,VALUE(MID('CFR - XML import'!$A22,SEARCH(\">\",'CFR - XML import'!$A22,1)+1,SEARCH(\"/\",'CFR - XML import'!$A22,1)-SEARCH(\">\",'CFR - XML import'!$A22,1)-2)))","v":0},{"$f":"IF(ISERROR(FIND(BI$3,'CFR - XML import'!$A22)),0,VALUE(MID('CFR - XML import'!$A22,SEARCH(\">\",'CFR - XML import'!$A22,1)+1,SEARCH(\"/\",'CFR - XML import'!$A22,1)-SEARCH(\">\",'CFR - XML import'!$A22,1)-2)))","v":0},{"$f":"IF(ISERROR(FIND(BJ$3,'CFR - XML import'!$A22)),0,VALUE(MID('CFR - XML import'!$A22,SEARCH(\">\",'CFR - XML import'!$A22,1)+1,SEARCH(\"/\",'CFR - XML import'!$A22,1)-SEARCH(\">\",'CFR - XML import'!$A22,1)-2)))","v":0},{"$f":"IF(ISERROR(FIND(BK$3,'CFR - XML import'!$A22)),0,VALUE(MID('CFR - XML import'!$A22,SEARCH(\">\",'CFR - XML import'!$A22,1)+1,SEARCH(\"/\",'CFR - XML import'!$A22,1)-SEARCH(\">\",'CFR - XML import'!$A22,1)-2)))","v":0},{"$f":"IF(ISERROR(FIND(BL$3,'CFR - XML import'!$A22)),0,VALUE(MID('CFR - XML import'!$A22,SEARCH(\">\",'CFR - XML import'!$A22,1)+1,SEARCH(\"/\",'CFR - XML import'!$A22,1)-SEARCH(\">\",'CFR - XML import'!$A22,1)-2)))","v":0},{"$f":"IF(ISERROR(FIND(BM$3,'CFR - XML import'!$A22)),0,VALUE(MID('CFR - XML import'!$A22,SEARCH(\">\",'CFR - XML import'!$A22,1)+1,SEARCH(\"/\",'CFR - XML import'!$A22,1)-SEARCH(\">\",'CFR - XML import'!$A22,1)-2)))","v":0},{"$f":"IF(ISERROR(FIND(BN$3,'CFR - XML import'!$A22)),0,VALUE(MID('CFR - XML import'!$A22,SEARCH(\">\",'CFR - XML import'!$A22,1)+1,SEARCH(\"/\",'CFR - XML import'!$A22,1)-SEARCH(\">\",'CFR - XML import'!$A22,1)-2)))","v":0},{"$f":"IF(ISERROR(FIND(BO$3,'CFR - XML import'!$A22)),0,VALUE(MID('CFR - XML import'!$A22,SEARCH(\">\",'CFR - XML import'!$A22,1)+1,SEARCH(\"/\",'CFR - XML import'!$A22,1)-SEARCH(\">\",'CFR - XML import'!$A22,1)-2)))","v":0},{"$f":"IF(ISERROR(FIND(BP$3,'CFR - XML import'!$A22)),0,VALUE(MID('CFR - XML import'!$A22,SEARCH(\">\",'CFR - XML import'!$A22,1)+1,SEARCH(\"/\",'CFR - XML import'!$A22,1)-SEARCH(\">\",'CFR - XML import'!$A22,1)-2)))","v":0},{"$f":"IF(ISERROR(FIND(BQ$3,'CFR - XML import'!$A22)),0,VALUE(MID('CFR - XML import'!$A22,SEARCH(\">\",'CFR - XML import'!$A22,1)+1,SEARCH(\"/\",'CFR - XML import'!$A22,1)-SEARCH(\">\",'CFR - XML import'!$A22,1)-2)))","v":0},{"$f":"IF(ISERROR(FIND(BR$3,'CFR - XML import'!$A22)),0,VALUE(MID('CFR - XML import'!$A22,SEARCH(\">\",'CFR - XML import'!$A22,1)+1,SEARCH(\"/\",'CFR - XML import'!$A22,1)-SEARCH(\">\",'CFR - XML import'!$A22,1)-2)))","v":0},{"$f":"IF(ISERROR(FIND(BS$3,'CFR - XML import'!$A22)),0,VALUE(MID('CFR - XML import'!$A22,SEARCH(\">\",'CFR - XML import'!$A22,1)+1,SEARCH(\"/\",'CFR - XML import'!$A22,1)-SEARCH(\">\",'CFR - XML import'!$A22,1)-2)))","v":0},{"$f":"IF(ISERROR(FIND(BT$3,'CFR - XML import'!$A22)),0,VALUE(MID('CFR - XML import'!$A22,SEARCH(\">\",'CFR - XML import'!$A22,1)+1,SEARCH(\"/\",'CFR - XML import'!$A22,1)-SEARCH(\">\",'CFR - XML import'!$A22,1)-2)))","v":0},{"$f":"IF(ISERROR(FIND(BU$3,'CFR - XML import'!$A22)),0,VALUE(MID('CFR - XML import'!$A22,SEARCH(\">\",'CFR - XML import'!$A22,1)+1,SEARCH(\"/\",'CFR - XML import'!$A22,1)-SEARCH(\">\",'CFR - XML import'!$A22,1)-2)))","v":0},{"$f":"IF(ISERROR(FIND(BV$3,'CFR - XML import'!$A22)),0,VALUE(MID('CFR - XML import'!$A22,SEARCH(\">\",'CFR - XML import'!$A22,1)+1,SEARCH(\"/\",'CFR - XML import'!$A22,1)-SEARCH(\">\",'CFR - XML import'!$A22,1)-2)))","v":0},{"$f":"IF(ISERROR(FIND(BW$3,'CFR - XML import'!$A22)),0,VALUE(MID('CFR - XML import'!$A22,SEARCH(\">\",'CFR - XML import'!$A22,1)+1,SEARCH(\"/\",'CFR - XML import'!$A22,1)-SEARCH(\">\",'CFR - XML import'!$A22,1)-2)))","v":0},{"$f":"IF(ISERROR(FIND(BX$3,'CFR - XML import'!$A22)),0,VALUE(MID('CFR - XML import'!$A22,SEARCH(\">\",'CFR - XML import'!$A22,1)+1,SEARCH(\"/\",'CFR - XML import'!$A22,1)-SEARCH(\">\",'CFR - XML import'!$A22,1)-2)))","v":0},{"$f":"IF(ISERROR(FIND(BY$3,'CFR - XML import'!$A22)),0,VALUE(MID('CFR - XML import'!$A22,SEARCH(\">\",'CFR - XML import'!$A22,1)+1,SEARCH(\"/\",'CFR - XML import'!$A22,1)-SEARCH(\">\",'CFR - XML import'!$A22,1)-2)))","v":0},{"$f":"IF(ISERROR(FIND(BZ$3,'CFR - XML import'!$A22)),0,VALUE(MID('CFR - XML import'!$A22,SEARCH(\">\",'CFR - XML import'!$A22,1)+1,SEARCH(\"/\",'CFR - XML import'!$A22,1)-SEARCH(\">\",'CFR - XML import'!$A22,1)-2)))","v":0},null,null,null,null,null,null,{"$f":"IF(ISERROR(IF(MID('CFR - XML import'!$A22,LEN($CF$4)+1,LEN('CFR - XML import'!$A22)-(2*LEN($CF$4)+1))=\"RMMS\",1,IF(MID('CFR - XML import'!$A22,LEN(\"    <InputSystem>\")+1,LEN('CFR - XML import'!$A22)-(LEN(\"    <InputSystem>\")+LEN($CF$4)+1))=\"SIMS\",2,0))),0,IF(MID('CFR - XML import'!$A22,LEN($CF$4)+1,LEN('CFR - XML import'!$A22)-(2*LEN($CF$4)+1))=\"RMMS\",1,IF(MID('CFR - XML import'!$A22,LEN(\"    <InputSystem>\")+1,LEN('CFR - XML import'!$A22)-(LEN(\"    <InputSystem>\")+LEN($CF$4)+1))=\"SIMS\",2,0)))","v":0},{"$f":"IF(ISERROR(FIND(CH$3,'CFR - XML import'!$A22)),0,MID('CFR - XML import'!$A22,SEARCH(\">\",'CFR - XML import'!$A22,1)+1,SEARCH(\"/\",'CFR - XML import'!$A22,1)-SEARCH(\">\",'CFR - XML import'!$A22,1)-2))","v":0},{"$f":"IF(ISERROR(FIND(CI$3,'CFR - XML import'!$A22)),0,MID('CFR - XML import'!$A22,SEARCH(\">\",'CFR - XML import'!$A22,1)+1,SEARCH(\"/\",'CFR - XML import'!$A22,1)-SEARCH(\">\",'CFR - XML import'!$A22,1)-2))","v":0},{"$f":"IF(ISERROR(FIND(CJ$3,'CFR - XML import'!$A22)),0,MID('CFR - XML import'!$A22,SEARCH(\">\",'CFR - XML import'!$A22,1)+1,SEARCH(\"/\",'CFR - XML import'!$A22,1)-SEARCH(\">\",'CFR - XML import'!$A22,1)-2))","v":0},{"$f":"IF(ISERROR(FIND(CK$3,'CFR - XML import'!$A22)),0,MID('CFR - XML import'!$A22,SEARCH(\">\",'CFR - XML import'!$A22,1)+1,SEARCH(\"/\",'CFR - XML import'!$A22,1)-SEARCH(\">\",'CFR - XML import'!$A22,1)-2))","v":0},{"$f":"IF(ISERROR(FIND(CL$3,'CFR - XML import'!$A22)),0,MID('CFR - XML import'!$A22,SEARCH(\">\",'CFR - XML import'!$A22,1)+1,SEARCH(\"/\",'CFR - XML import'!$A22,1)-SEARCH(\">\",'CFR - XML import'!$A22,1)-2))","v":0}]
[{"$f":"IF(AND('CFR - XML import'!A23<>\"\",LEFT('CFR - XML import'!A23,1)<>\"<\",LEFT('CFR - XML import'!A23,3)<>\"  <\",LEFT('CFR - XML import'!A23,5)<>\"    <\",LEFT('CFR - XML import'!A23,7)<>\"      <\",LEFT('CFR - XML import'!A23,9)<>\"        <\",$B$1=\"SIMS\"),'CFR - XML import'!A23,IF(AND(LEFT('CFR - XML import'!A23,9)=\"<Details>\",$B$1=\"RM\"),'CFR - XML import'!A23,\"\"))","v":""},{"$f":"IF(ISERROR(FIND(B$3,'CFR - XML import'!$A23)),0,VALUE(MID('CFR - XML import'!$A23,SEARCH(\">\",'CFR - XML import'!$A23,1)+1,SEARCH(\"/\",'CFR - XML import'!$A23,1)-SEARCH(\">\",'CFR - XML import'!$A23,1)-2)))","v":0},null,{"$f":"IF(ISERROR(FIND(D$3,'CFR - XML import'!$A23)),0,MID('CFR - XML import'!$A23,SEARCH(\">\",'CFR - XML import'!$A23,1)+1,SEARCH(\"/\",'CFR - XML import'!$A23,1)-SEARCH(\">\",'CFR - XML import'!$A23,1)-2))","v":0},{"$f":"IF(ISERROR(FIND(E$3,'CFR - XML import'!$A23)),0,MID('CFR - XML import'!$A23,SEARCH(\">\",'CFR - XML import'!$A23,1)+1,SEARCH(\"/\",'CFR - XML import'!$A23,1)-SEARCH(\">\",'CFR - XML import'!$A23,1)-2))","v":0},{"$f":"IF($B$1=\"SIMS\",IF(ISERROR(FIND(F$3,'CFR - XML import'!$A23)),0,VALUE(MID('CFR - XML import'!$A23,15,10))),IF(ISERROR(FIND(F$3,'CFR - XML import'!$A23)),0,VALUE(MID('CFR - XML import'!$A23,11,10))))","v":"00:00:00"},{"$f":"IF(ISERROR(FIND(G$3,'CFR - XML import'!$A23)),0,VALUE(MID('CFR - XML import'!$A23,SEARCH(\">\",'CFR - XML import'!$A23,1)+1,SEARCH(\"/\",'CFR - XML import'!$A23,1)-SEARCH(\">\",'CFR - XML import'!$A23,1)-2)))","v":0},{"$f":"IF(ISERROR(FIND(H$3,'CFR - XML import'!$A23)),0,VALUE(MID('CFR - XML import'!$A23,SEARCH(\">\",'CFR - XML import'!$A23,1)+1,SEARCH(\"/\",'CFR - XML import'!$A23,1)-SEARCH(\">\",'CFR - XML import'!$A23,1)-2)))","v":0},{"$f":"IF(ISERROR(FIND(I$3,'CFR - XML import'!$A23)),0,VALUE(MID('CFR - XML import'!$A23,SEARCH(\">\",'CFR - XML import'!$A23,1)+1,SEARCH(\"/\",'CFR - XML import'!$A23,1)-SEARCH(\">\",'CFR - XML import'!$A23,1)-2)))","v":0},{"$f":"IF(ISERROR(FIND(J$3,'CFR - XML import'!$A23)),0,VALUE(MID('CFR - XML import'!$A23,SEARCH(\">\",'CFR - XML import'!$A23,1)+1,SEARCH(\"/\",'CFR - XML import'!$A23,1)-SEARCH(\">\",'CFR - XML import'!$A23,1)-2)))","v":0},{"$f":"IF(ISERROR(FIND(K$3,'CFR - XML import'!$A23)),0,VALUE(MID('CFR - XML import'!$A23,SEARCH(\">\",'CFR - XML import'!$A23,1)+1,SEARCH(\"/\",'CFR - XML import'!$A23,1)-SEARCH(\">\",'CFR - XML import'!$A23,1)-2)))","v":0},{"$f":"IF(ISERROR(FIND(L$3,'CFR - XML import'!$A23)),0,VALUE(MID('CFR - XML import'!$A23,SEARCH(\">\",'CFR - XML import'!$A23,1)+1,SEARCH(\"/\",'CFR - XML import'!$A23,1)-SEARCH(\">\",'CFR - XML import'!$A23,1)-2)))","v":0},{"$f":"IF(ISERROR(FIND(M$3,'CFR - XML import'!$A23)),0,VALUE(MID('CFR - XML import'!$A23,SEARCH(\">\",'CFR - XML import'!$A23,1)+1,SEARCH(\"/\",'CFR - XML import'!$A23,1)-SEARCH(\">\",'CFR - XML import'!$A23,1)-2)))","v":0},{"$f":"IF(ISERROR(FIND(N$3,'CFR - XML import'!$A23)),0,VALUE(MID('CFR - XML import'!$A23,SEARCH(\">\",'CFR - XML import'!$A23,1)+1,SEARCH(\"/\",'CFR - XML import'!$A23,1)-SEARCH(\">\",'CFR - XML import'!$A23,1)-2)))","v":0},{"$f":"IF(ISERROR(FIND(O$3,'CFR - XML import'!$A23)),0,VALUE(MID('CFR - XML import'!$A23,SEARCH(\">\",'CFR - XML import'!$A23,1)+1,SEARCH(\"/\",'CFR - XML import'!$A23,1)-SEARCH(\">\",'CFR - XML import'!$A23,1)-2)))","v":0},{"$f":"IF(ISERROR(FIND(P$3,'CFR - XML import'!$A23)),0,VALUE(MID('CFR - XML import'!$A23,SEARCH(\">\",'CFR - XML import'!$A23,1)+1,SEARCH(\"/\",'CFR - XML import'!$A23,1)-SEARCH(\">\",'CFR - XML import'!$A23,1)-2)))","v":0},{"$f":"IF(ISERROR(FIND(Q$3,'CFR - XML import'!$A23)),0,VALUE(MID('CFR - XML import'!$A23,SEARCH(\">\",'CFR - XML import'!$A23,1)+1,SEARCH(\"/\",'CFR - XML import'!$A23,1)-SEARCH(\">\",'CFR - XML import'!$A23,1)-2)))","v":0},{"$f":"IF(ISERROR(FIND(R$3,'CFR - XML import'!$A23)),0,VALUE(MID('CFR - XML import'!$A23,SEARCH(\">\",'CFR - XML import'!$A23,1)+1,SEARCH(\"/\",'CFR - XML import'!$A23,1)-SEARCH(\">\",'CFR - XML import'!$A23,1)-2)))","v":0},{"$f":"IF(ISERROR(FIND(S$3,'CFR - XML import'!$A23)),0,VALUE(MID('CFR - XML import'!$A23,SEARCH(\">\",'CFR - XML import'!$A23,1)+1,SEARCH(\"/\",'CFR - XML import'!$A23,1)-SEARCH(\">\",'CFR - XML import'!$A23,1)-2)))","v":0},{"$f":"IF(ISERROR(FIND(T$3,'CFR - XML import'!$A23)),0,VALUE(MID('CFR - XML import'!$A23,SEARCH(\">\",'CFR - XML import'!$A23,1)+1,SEARCH(\"/\",'CFR - XML import'!$A23,1)-SEARCH(\">\",'CFR - XML import'!$A23,1)-2)))","v":0},{"$f":"IF(ISERROR(FIND(U$3,'CFR - XML import'!$A23)),0,VALUE(MID('CFR - XML import'!$A23,SEARCH(\">\",'CFR - XML import'!$A23,1)+1,SEARCH(\"/\",'CFR - XML import'!$A23,1)-SEARCH(\">\",'CFR - XML import'!$A23,1)-2)))","v":0},{"$f":"IF(ISERROR(FIND(V$3,'CFR - XML import'!$A23)),0,VALUE(MID('CFR - XML import'!$A23,SEARCH(\">\",'CFR - XML import'!$A23,1)+1,SEARCH(\"/\",'CFR - XML import'!$A23,1)-SEARCH(\">\",'CFR - XML import'!$A23,1)-2)))","v":0},{"$f":"IF(ISERROR(FIND(W$3,'CFR - XML import'!$A23)),0,VALUE(MID('CFR - XML import'!$A23,SEARCH(\">\",'CFR - XML import'!$A23,1)+1,SEARCH(\"/\",'CFR - XML import'!$A23,1)-SEARCH(\">\",'CFR - XML import'!$A23,1)-2)))","v":0},null,{"$f":"IF(ISERROR(FIND(Y$3,'CFR - XML import'!$A23)),0,VALUE(MID('CFR - XML import'!$A23,SEARCH(\">\",'CFR - XML import'!$A23,1)+1,SEARCH(\"/\",'CFR - XML import'!$A23,1)-SEARCH(\">\",'CFR - XML import'!$A23,1)-2)))","v":0},{"$f":"IF(ISERROR(FIND(Z$3,'CFR - XML import'!$A23)),0,VALUE(MID('CFR - XML import'!$A23,SEARCH(\">\",'CFR - XML import'!$A23,1)+1,SEARCH(\"/\",'CFR - XML import'!$A23,1)-SEARCH(\">\",'CFR - XML import'!$A23,1)-2)))","v":0},{"$f":"IF(ISERROR(FIND(AA$3,'CFR - XML import'!$A23)),0,VALUE(MID('CFR - XML import'!$A23,SEARCH(\">\",'CFR - XML import'!$A23,1)+1,SEARCH(\"/\",'CFR - XML import'!$A23,1)-SEARCH(\">\",'CFR - XML import'!$A23,1)-2)))","v":0},{"$f":"IF(ISERROR(FIND(AB$3,'CFR - XML import'!$A23)),0,VALUE(MID('CFR - XML import'!$A23,SEARCH(\">\",'CFR - XML import'!$A23,1)+1,SEARCH(\"/\",'CFR - XML import'!$A23,1)-SEARCH(\">\",'CFR - XML import'!$A23,1)-2)))","v":0},{"$f":"IF(ISERROR(FIND(AC$3,'CFR - XML import'!$A23)),0,VALUE(MID('CFR - XML import'!$A23,SEARCH(\">\",'CFR - XML import'!$A23,1)+1,SEARCH(\"/\",'CFR - XML import'!$A23,1)-SEARCH(\">\",'CFR - XML import'!$A23,1)-2)))","v":0},{"$f":"IF(ISERROR(FIND(AD$3,'CFR - XML import'!$A23)),0,VALUE(MID('CFR - XML import'!$A23,SEARCH(\">\",'CFR - XML import'!$A23,1)+1,SEARCH(\"/\",'CFR - XML import'!$A23,1)-SEARCH(\">\",'CFR - XML import'!$A23,1)-2)))","v":0},{"$f":"IF(ISERROR(FIND(AE$3,'CFR - XML import'!$A23)),0,VALUE(MID('CFR - XML import'!$A23,SEARCH(\">\",'CFR - XML import'!$A23,1)+1,SEARCH(\"/\",'CFR - XML import'!$A23,1)-SEARCH(\">\",'CFR - XML import'!$A23,1)-2)))","v":0},{"$f":"IF(ISERROR(FIND(AF$3,'CFR - XML import'!$A23)),0,VALUE(MID('CFR - XML import'!$A23,SEARCH(\">\",'CFR - XML import'!$A23,1)+1,SEARCH(\"/\",'CFR - XML import'!$A23,1)-SEARCH(\">\",'CFR - XML import'!$A23,1)-2)))","v":0},{"$f":"IF(ISERROR(FIND(AG$3,'CFR - XML import'!$A23)),0,VALUE(MID('CFR - XML import'!$A23,SEARCH(\">\",'CFR - XML import'!$A23,1)+1,SEARCH(\"/\",'CFR - XML import'!$A23,1)-SEARCH(\">\",'CFR - XML import'!$A23,1)-2)))","v":0},{"$f":"IF(ISERROR(FIND(AH$3,'CFR - XML import'!$A23)),0,VALUE(MID('CFR - XML import'!$A23,SEARCH(\">\",'CFR - XML import'!$A23,1)+1,SEARCH(\"/\",'CFR - XML import'!$A23,1)-SEARCH(\">\",'CFR - XML import'!$A23,1)-2)))","v":0},{"$f":"IF(ISERROR(FIND(AI$3,'CFR - XML import'!$A23)),0,VALUE(MID('CFR - XML import'!$A23,SEARCH(\">\",'CFR - XML import'!$A23,1)+1,SEARCH(\"/\",'CFR - XML import'!$A23,1)-SEARCH(\">\",'CFR - XML import'!$A23,1)-2)))","v":0},{"$f":"IF(ISERROR(FIND(AJ$3,'CFR - XML import'!$A23)),0,VALUE(MID('CFR - XML import'!$A23,SEARCH(\">\",'CFR - XML import'!$A23,1)+1,SEARCH(\"/\",'CFR - XML import'!$A23,1)-SEARCH(\">\",'CFR - XML import'!$A23,1)-2)))","v":0},{"$f":"IF(ISERROR(FIND(AK$3,'CFR - XML import'!$A23)),0,VALUE(MID('CFR - XML import'!$A23,SEARCH(\">\",'CFR - XML import'!$A23,1)+1,SEARCH(\"/\",'CFR - XML import'!$A23,1)-SEARCH(\">\",'CFR - XML import'!$A23,1)-2)))","v":0},{"$f":"IF(ISERROR(FIND(AL$3,'CFR - XML import'!$A23)),0,VALUE(MID('CFR - XML import'!$A23,SEARCH(\">\",'CFR - XML import'!$A23,1)+1,SEARCH(\"/\",'CFR - XML import'!$A23,1)-SEARCH(\">\",'CFR - XML import'!$A23,1)-2)))","v":0},{"$f":"IF(ISERROR(FIND(AM$3,'CFR - XML import'!$A23)),0,VALUE(MID('CFR - XML import'!$A23,SEARCH(\">\",'CFR - XML import'!$A23,1)+1,SEARCH(\"/\",'CFR - XML import'!$A23,1)-SEARCH(\">\",'CFR - XML import'!$A23,1)-2)))","v":0},{"$f":"IF(ISERROR(FIND(AN$3,'CFR - XML import'!$A23)),0,VALUE(MID('CFR - XML import'!$A23,SEARCH(\">\",'CFR - XML import'!$A23,1)+1,SEARCH(\"/\",'CFR - XML import'!$A23,1)-SEARCH(\">\",'CFR - XML import'!$A23,1)-2)))","v":0},{"$f":"IF(ISERROR(FIND(AO$3,'CFR - XML import'!$A23)),0,VALUE(MID('CFR - XML import'!$A23,SEARCH(\">\",'CFR - XML import'!$A23,1)+1,SEARCH(\"/\",'CFR - XML import'!$A23,1)-SEARCH(\">\",'CFR - XML import'!$A23,1)-2)))","v":0},{"$f":"IF(ISERROR(FIND(AP$3,'CFR - XML import'!$A23)),0,VALUE(MID('CFR - XML import'!$A23,SEARCH(\">\",'CFR - XML import'!$A23,1)+1,SEARCH(\"/\",'CFR - XML import'!$A23,1)-SEARCH(\">\",'CFR - XML import'!$A23,1)-2)))","v":0},{"$f":"IF(ISERROR(FIND(AQ$3,'CFR - XML import'!$A23)),0,VALUE(MID('CFR - XML import'!$A23,SEARCH(\">\",'CFR - XML import'!$A23,1)+1,SEARCH(\"/\",'CFR - XML import'!$A23,1)-SEARCH(\">\",'CFR - XML import'!$A23,1)-2)))","v":0},{"$f":"IF(ISERROR(FIND(AR$3,'CFR - XML import'!$A23)),0,VALUE(MID('CFR - XML import'!$A23,SEARCH(\">\",'CFR - XML import'!$A23,1)+1,SEARCH(\"/\",'CFR - XML import'!$A23,1)-SEARCH(\">\",'CFR - XML import'!$A23,1)-2)))","v":0},{"$f":"IF(ISERROR(FIND(AS$3,'CFR - XML import'!$A23)),0,VALUE(MID('CFR - XML import'!$A23,SEARCH(\">\",'CFR - XML import'!$A23,1)+1,SEARCH(\"/\",'CFR - XML import'!$A23,1)-SEARCH(\">\",'CFR - XML import'!$A23,1)-2)))","v":0},{"$f":"IF(ISERROR(FIND(AT$3,'CFR - XML import'!$A23)),0,VALUE(MID('CFR - XML import'!$A23,SEARCH(\">\",'CFR - XML import'!$A23,1)+1,SEARCH(\"/\",'CFR - XML import'!$A23,1)-SEARCH(\">\",'CFR - XML import'!$A23,1)-2)))","v":0},{"$f":"IF(ISERROR(FIND(AU$3,'CFR - XML import'!$A23)),0,VALUE(MID('CFR - XML import'!$A23,SEARCH(\">\",'CFR - XML import'!$A23,1)+1,SEARCH(\"/\",'CFR - XML import'!$A23,1)-SEARCH(\">\",'CFR - XML import'!$A23,1)-2)))","v":0},{"$f":"IF(ISERROR(FIND(AV$3,'CFR - XML import'!$A23)),0,VALUE(MID('CFR - XML import'!$A23,SEARCH(\">\",'CFR - XML import'!$A23,1)+1,SEARCH(\"/\",'CFR - XML import'!$A23,1)-SEARCH(\">\",'CFR - XML import'!$A23,1)-2)))","v":0},{"$f":"IF(ISERROR(FIND(AW$3,'CFR - XML import'!$A23)),0,VALUE(MID('CFR - XML import'!$A23,SEARCH(\">\",'CFR - XML import'!$A23,1)+1,SEARCH(\"/\",'CFR - XML import'!$A23,1)-SEARCH(\">\",'CFR - XML import'!$A23,1)-2)))","v":0},{"$f":"IF(ISERROR(FIND(AX$3,'CFR - XML import'!$A23)),0,VALUE(MID('CFR - XML import'!$A23,SEARCH(\">\",'CFR - XML import'!$A23,1)+1,SEARCH(\"/\",'CFR - XML import'!$A23,1)-SEARCH(\">\",'CFR - XML import'!$A23,1)-2)))","v":0},{"$f":"IF(ISERROR(FIND(AY$3,'CFR - XML import'!$A23)),0,VALUE(MID('CFR - XML import'!$A23,SEARCH(\">\",'CFR - XML import'!$A23,1)+1,SEARCH(\"/\",'CFR - XML import'!$A23,1)-SEARCH(\">\",'CFR - XML import'!$A23,1)-2)))","v":0},{"$f":"IF(ISERROR(FIND(AZ$3,'CFR - XML import'!$A23)),0,VALUE(MID('CFR - XML import'!$A23,SEARCH(\">\",'CFR - XML import'!$A23,1)+1,SEARCH(\"/\",'CFR - XML import'!$A23,1)-SEARCH(\">\",'CFR - XML import'!$A23,1)-2)))","v":0},{"$f":"IF(ISERROR(FIND(BA$3,'CFR - XML import'!$A23)),0,VALUE(MID('CFR - XML import'!$A23,SEARCH(\">\",'CFR - XML import'!$A23,1)+1,SEARCH(\"/\",'CFR - XML import'!$A23,1)-SEARCH(\">\",'CFR - XML import'!$A23,1)-2)))","v":0},{"$f":"IF(ISERROR(FIND(BB$3,'CFR - XML import'!$A23)),0,VALUE(MID('CFR - XML import'!$A23,SEARCH(\">\",'CFR - XML import'!$A23,1)+1,SEARCH(\"/\",'CFR - XML import'!$A23,1)-SEARCH(\">\",'CFR - XML import'!$A23,1)-2)))","v":0},{"$f":"IF(ISERROR(FIND(BC$3,'CFR - XML import'!$A23)),0,VALUE(MID('CFR - XML import'!$A23,SEARCH(\">\",'CFR - XML import'!$A23,1)+1,SEARCH(\"/\",'CFR - XML import'!$A23,1)-SEARCH(\">\",'CFR - XML import'!$A23,1)-2)))","v":0},{"$f":"IF(ISERROR(FIND(BD$3,'CFR - XML import'!$A23)),0,VALUE(MID('CFR - XML import'!$A23,SEARCH(\">\",'CFR - XML import'!$A23,1)+1,SEARCH(\"/\",'CFR - XML import'!$A23,1)-SEARCH(\">\",'CFR - XML import'!$A23,1)-2)))","v":0},{"$f":"IF(ISERROR(FIND(BE$3,'CFR - XML import'!$A23)),0,VALUE(MID('CFR - XML import'!$A23,SEARCH(\">\",'CFR - XML import'!$A23,1)+1,SEARCH(\"/\",'CFR - XML import'!$A23,1)-SEARCH(\">\",'CFR - XML import'!$A23,1)-2)))","v":0},{"$f":"IF(ISERROR(FIND(BF$3,'CFR - XML import'!$A23)),0,VALUE(MID('CFR - XML import'!$A23,SEARCH(\">\",'CFR - XML import'!$A23,1)+1,SEARCH(\"/\",'CFR - XML import'!$A23,1)-SEARCH(\">\",'CFR - XML import'!$A23,1)-2)))","v":0},{"$f":"IF(ISERROR(FIND(BG$3,'CFR - XML import'!$A23)),0,VALUE(MID('CFR - XML import'!$A23,SEARCH(\">\",'CFR - XML import'!$A23,1)+1,SEARCH(\"/\",'CFR - XML import'!$A23,1)-SEARCH(\">\",'CFR - XML import'!$A23,1)-2)))","v":0},{"$f":"IF(ISERROR(FIND(BH$3,'CFR - XML import'!$A23)),0,VALUE(MID('CFR - XML import'!$A23,SEARCH(\">\",'CFR - XML import'!$A23,1)+1,SEARCH(\"/\",'CFR - XML import'!$A23,1)-SEARCH(\">\",'CFR - XML import'!$A23,1)-2)))","v":0},{"$f":"IF(ISERROR(FIND(BI$3,'CFR - XML import'!$A23)),0,VALUE(MID('CFR - XML import'!$A23,SEARCH(\">\",'CFR - XML import'!$A23,1)+1,SEARCH(\"/\",'CFR - XML import'!$A23,1)-SEARCH(\">\",'CFR - XML import'!$A23,1)-2)))","v":0},{"$f":"IF(ISERROR(FIND(BJ$3,'CFR - XML import'!$A23)),0,VALUE(MID('CFR - XML import'!$A23,SEARCH(\">\",'CFR - XML import'!$A23,1)+1,SEARCH(\"/\",'CFR - XML import'!$A23,1)-SEARCH(\">\",'CFR - XML import'!$A23,1)-2)))","v":0},{"$f":"IF(ISERROR(FIND(BK$3,'CFR - XML import'!$A23)),0,VALUE(MID('CFR - XML import'!$A23,SEARCH(\">\",'CFR - XML import'!$A23,1)+1,SEARCH(\"/\",'CFR - XML import'!$A23,1)-SEARCH(\">\",'CFR - XML import'!$A23,1)-2)))","v":0},{"$f":"IF(ISERROR(FIND(BL$3,'CFR - XML import'!$A23)),0,VALUE(MID('CFR - XML import'!$A23,SEARCH(\">\",'CFR - XML import'!$A23,1)+1,SEARCH(\"/\",'CFR - XML import'!$A23,1)-SEARCH(\">\",'CFR - XML import'!$A23,1)-2)))","v":0},{"$f":"IF(ISERROR(FIND(BM$3,'CFR - XML import'!$A23)),0,VALUE(MID('CFR - XML import'!$A23,SEARCH(\">\",'CFR - XML import'!$A23,1)+1,SEARCH(\"/\",'CFR - XML import'!$A23,1)-SEARCH(\">\",'CFR - XML import'!$A23,1)-2)))","v":0},{"$f":"IF(ISERROR(FIND(BN$3,'CFR - XML import'!$A23)),0,VALUE(MID('CFR - XML import'!$A23,SEARCH(\">\",'CFR - XML import'!$A23,1)+1,SEARCH(\"/\",'CFR - XML import'!$A23,1)-SEARCH(\">\",'CFR - XML import'!$A23,1)-2)))","v":0},{"$f":"IF(ISERROR(FIND(BO$3,'CFR - XML import'!$A23)),0,VALUE(MID('CFR - XML import'!$A23,SEARCH(\">\",'CFR - XML import'!$A23,1)+1,SEARCH(\"/\",'CFR - XML import'!$A23,1)-SEARCH(\">\",'CFR - XML import'!$A23,1)-2)))","v":0},{"$f":"IF(ISERROR(FIND(BP$3,'CFR - XML import'!$A23)),0,VALUE(MID('CFR - XML import'!$A23,SEARCH(\">\",'CFR - XML import'!$A23,1)+1,SEARCH(\"/\",'CFR - XML import'!$A23,1)-SEARCH(\">\",'CFR - XML import'!$A23,1)-2)))","v":0},{"$f":"IF(ISERROR(FIND(BQ$3,'CFR - XML import'!$A23)),0,VALUE(MID('CFR - XML import'!$A23,SEARCH(\">\",'CFR - XML import'!$A23,1)+1,SEARCH(\"/\",'CFR - XML import'!$A23,1)-SEARCH(\">\",'CFR - XML import'!$A23,1)-2)))","v":0},{"$f":"IF(ISERROR(FIND(BR$3,'CFR - XML import'!$A23)),0,VALUE(MID('CFR - XML import'!$A23,SEARCH(\">\",'CFR - XML import'!$A23,1)+1,SEARCH(\"/\",'CFR - XML import'!$A23,1)-SEARCH(\">\",'CFR - XML import'!$A23,1)-2)))","v":0},{"$f":"IF(ISERROR(FIND(BS$3,'CFR - XML import'!$A23)),0,VALUE(MID('CFR - XML import'!$A23,SEARCH(\">\",'CFR - XML import'!$A23,1)+1,SEARCH(\"/\",'CFR - XML import'!$A23,1)-SEARCH(\">\",'CFR - XML import'!$A23,1)-2)))","v":0},{"$f":"IF(ISERROR(FIND(BT$3,'CFR - XML import'!$A23)),0,VALUE(MID('CFR - XML import'!$A23,SEARCH(\">\",'CFR - XML import'!$A23,1)+1,SEARCH(\"/\",'CFR - XML import'!$A23,1)-SEARCH(\">\",'CFR - XML import'!$A23,1)-2)))","v":0},{"$f":"IF(ISERROR(FIND(BU$3,'CFR - XML import'!$A23)),0,VALUE(MID('CFR - XML import'!$A23,SEARCH(\">\",'CFR - XML import'!$A23,1)+1,SEARCH(\"/\",'CFR - XML import'!$A23,1)-SEARCH(\">\",'CFR - XML import'!$A23,1)-2)))","v":0},{"$f":"IF(ISERROR(FIND(BV$3,'CFR - XML import'!$A23)),0,VALUE(MID('CFR - XML import'!$A23,SEARCH(\">\",'CFR - XML import'!$A23,1)+1,SEARCH(\"/\",'CFR - XML import'!$A23,1)-SEARCH(\">\",'CFR - XML import'!$A23,1)-2)))","v":0},{"$f":"IF(ISERROR(FIND(BW$3,'CFR - XML import'!$A23)),0,VALUE(MID('CFR - XML import'!$A23,SEARCH(\">\",'CFR - XML import'!$A23,1)+1,SEARCH(\"/\",'CFR - XML import'!$A23,1)-SEARCH(\">\",'CFR - XML import'!$A23,1)-2)))","v":0},{"$f":"IF(ISERROR(FIND(BX$3,'CFR - XML import'!$A23)),0,VALUE(MID('CFR - XML import'!$A23,SEARCH(\">\",'CFR - XML import'!$A23,1)+1,SEARCH(\"/\",'CFR - XML import'!$A23,1)-SEARCH(\">\",'CFR - XML import'!$A23,1)-2)))","v":0},{"$f":"IF(ISERROR(FIND(BY$3,'CFR - XML import'!$A23)),0,VALUE(MID('CFR - XML import'!$A23,SEARCH(\">\",'CFR - XML import'!$A23,1)+1,SEARCH(\"/\",'CFR - XML import'!$A23,1)-SEARCH(\">\",'CFR - XML import'!$A23,1)-2)))","v":0},{"$f":"IF(ISERROR(FIND(BZ$3,'CFR - XML import'!$A23)),0,VALUE(MID('CFR - XML import'!$A23,SEARCH(\">\",'CFR - XML import'!$A23,1)+1,SEARCH(\"/\",'CFR - XML import'!$A23,1)-SEARCH(\">\",'CFR - XML import'!$A23,1)-2)))","v":0},null,null,null,null,null,null,{"$f":"IF(ISERROR(IF(MID('CFR - XML import'!$A23,LEN($CF$4)+1,LEN('CFR - XML import'!$A23)-(2*LEN($CF$4)+1))=\"RMMS\",1,IF(MID('CFR - XML import'!$A23,LEN(\"    <InputSystem>\")+1,LEN('CFR - XML import'!$A23)-(LEN(\"    <InputSystem>\")+LEN($CF$4)+1))=\"SIMS\",2,0))),0,IF(MID('CFR - XML import'!$A23,LEN($CF$4)+1,LEN('CFR - XML import'!$A23)-(2*LEN($CF$4)+1))=\"RMMS\",1,IF(MID('CFR - XML import'!$A23,LEN(\"    <InputSystem>\")+1,LEN('CFR - XML import'!$A23)-(LEN(\"    <InputSystem>\")+LEN($CF$4)+1))=\"SIMS\",2,0)))","v":0},{"$f":"IF(ISERROR(FIND(CH$3,'CFR - XML import'!$A23)),0,MID('CFR - XML import'!$A23,SEARCH(\">\",'CFR - XML import'!$A23,1)+1,SEARCH(\"/\",'CFR - XML import'!$A23,1)-SEARCH(\">\",'CFR - XML import'!$A23,1)-2))","v":0},{"$f":"IF(ISERROR(FIND(CI$3,'CFR - XML import'!$A23)),0,MID('CFR - XML import'!$A23,SEARCH(\">\",'CFR - XML import'!$A23,1)+1,SEARCH(\"/\",'CFR - XML import'!$A23,1)-SEARCH(\">\",'CFR - XML import'!$A23,1)-2))","v":0},{"$f":"IF(ISERROR(FIND(CJ$3,'CFR - XML import'!$A23)),0,MID('CFR - XML import'!$A23,SEARCH(\">\",'CFR - XML import'!$A23,1)+1,SEARCH(\"/\",'CFR - XML import'!$A23,1)-SEARCH(\">\",'CFR - XML import'!$A23,1)-2))","v":0},{"$f":"IF(ISERROR(FIND(CK$3,'CFR - XML import'!$A23)),0,MID('CFR - XML import'!$A23,SEARCH(\">\",'CFR - XML import'!$A23,1)+1,SEARCH(\"/\",'CFR - XML import'!$A23,1)-SEARCH(\">\",'CFR - XML import'!$A23,1)-2))","v":0},{"$f":"IF(ISERROR(FIND(CL$3,'CFR - XML import'!$A23)),0,MID('CFR - XML import'!$A23,SEARCH(\">\",'CFR - XML import'!$A23,1)+1,SEARCH(\"/\",'CFR - XML import'!$A23,1)-SEARCH(\">\",'CFR - XML import'!$A23,1)-2))","v":0}]
[{"$f":"IF(AND('CFR - XML import'!A24<>\"\",LEFT('CFR - XML import'!A24,1)<>\"<\",LEFT('CFR - XML import'!A24,3)<>\"  <\",LEFT('CFR - XML import'!A24,5)<>\"    <\",LEFT('CFR - XML import'!A24,7)<>\"      <\",LEFT('CFR - XML import'!A24,9)<>\"        <\",$B$1=\"SIMS\"),'CFR - XML import'!A24,IF(AND(LEFT('CFR - XML import'!A24,9)=\"<Details>\",$B$1=\"RM\"),'CFR - XML import'!A24,\"\"))","v":""},{"$f":"IF(ISERROR(FIND(B$3,'CFR - XML import'!$A24)),0,VALUE(MID('CFR - XML import'!$A24,SEARCH(\">\",'CFR - XML import'!$A24,1)+1,SEARCH(\"/\",'CFR - XML import'!$A24,1)-SEARCH(\">\",'CFR - XML import'!$A24,1)-2)))","v":0},null,{"$f":"IF(ISERROR(FIND(D$3,'CFR - XML import'!$A24)),0,MID('CFR - XML import'!$A24,SEARCH(\">\",'CFR - XML import'!$A24,1)+1,SEARCH(\"/\",'CFR - XML import'!$A24,1)-SEARCH(\">\",'CFR - XML import'!$A24,1)-2))","v":0},{"$f":"IF(ISERROR(FIND(E$3,'CFR - XML import'!$A24)),0,MID('CFR - XML import'!$A24,SEARCH(\">\",'CFR - XML import'!$A24,1)+1,SEARCH(\"/\",'CFR - XML import'!$A24,1)-SEARCH(\">\",'CFR - XML import'!$A24,1)-2))","v":0},{"$f":"IF($B$1=\"SIMS\",IF(ISERROR(FIND(F$3,'CFR - XML import'!$A24)),0,VALUE(MID('CFR - XML import'!$A24,15,10))),IF(ISERROR(FIND(F$3,'CFR - XML import'!$A24)),0,VALUE(MID('CFR - XML import'!$A24,11,10))))","v":"00:00:00"},{"$f":"IF(ISERROR(FIND(G$3,'CFR - XML import'!$A24)),0,VALUE(MID('CFR - XML import'!$A24,SEARCH(\">\",'CFR - XML import'!$A24,1)+1,SEARCH(\"/\",'CFR - XML import'!$A24,1)-SEARCH(\">\",'CFR - XML import'!$A24,1)-2)))","v":0},{"$f":"IF(ISERROR(FIND(H$3,'CFR - XML import'!$A24)),0,VALUE(MID('CFR - XML import'!$A24,SEARCH(\">\",'CFR - XML import'!$A24,1)+1,SEARCH(\"/\",'CFR - XML import'!$A24,1)-SEARCH(\">\",'CFR - XML import'!$A24,1)-2)))","v":0},{"$f":"IF(ISERROR(FIND(I$3,'CFR - XML import'!$A24)),0,VALUE(MID('CFR - XML import'!$A24,SEARCH(\">\",'CFR - XML import'!$A24,1)+1,SEARCH(\"/\",'CFR - XML import'!$A24,1)-SEARCH(\">\",'CFR - XML import'!$A24,1)-2)))","v":0},{"$f":"IF(ISERROR(FIND(J$3,'CFR - XML import'!$A24)),0,VALUE(MID('CFR - XML import'!$A24,SEARCH(\">\",'CFR - XML import'!$A24,1)+1,SEARCH(\"/\",'CFR - XML import'!$A24,1)-SEARCH(\">\",'CFR - XML import'!$A24,1)-2)))","v":0},{"$f":"IF(ISERROR(FIND(K$3,'CFR - XML import'!$A24)),0,VALUE(MID('CFR - XML import'!$A24,SEARCH(\">\",'CFR - XML import'!$A24,1)+1,SEARCH(\"/\",'CFR - XML import'!$A24,1)-SEARCH(\">\",'CFR - XML import'!$A24,1)-2)))","v":0},{"$f":"IF(ISERROR(FIND(L$3,'CFR - XML import'!$A24)),0,VALUE(MID('CFR - XML import'!$A24,SEARCH(\">\",'CFR - XML import'!$A24,1)+1,SEARCH(\"/\",'CFR - XML import'!$A24,1)-SEARCH(\">\",'CFR - XML import'!$A24,1)-2)))","v":0},{"$f":"IF(ISERROR(FIND(M$3,'CFR - XML import'!$A24)),0,VALUE(MID('CFR - XML import'!$A24,SEARCH(\">\",'CFR - XML import'!$A24,1)+1,SEARCH(\"/\",'CFR - XML import'!$A24,1)-SEARCH(\">\",'CFR - XML import'!$A24,1)-2)))","v":0},{"$f":"IF(ISERROR(FIND(N$3,'CFR - XML import'!$A24)),0,VALUE(MID('CFR - XML import'!$A24,SEARCH(\">\",'CFR - XML import'!$A24,1)+1,SEARCH(\"/\",'CFR - XML import'!$A24,1)-SEARCH(\">\",'CFR - XML import'!$A24,1)-2)))","v":0},{"$f":"IF(ISERROR(FIND(O$3,'CFR - XML import'!$A24)),0,VALUE(MID('CFR - XML import'!$A24,SEARCH(\">\",'CFR - XML import'!$A24,1)+1,SEARCH(\"/\",'CFR - XML import'!$A24,1)-SEARCH(\">\",'CFR - XML import'!$A24,1)-2)))","v":0},{"$f":"IF(ISERROR(FIND(P$3,'CFR - XML import'!$A24)),0,VALUE(MID('CFR - XML import'!$A24,SEARCH(\">\",'CFR - XML import'!$A24,1)+1,SEARCH(\"/\",'CFR - XML import'!$A24,1)-SEARCH(\">\",'CFR - XML import'!$A24,1)-2)))","v":0},{"$f":"IF(ISERROR(FIND(Q$3,'CFR - XML import'!$A24)),0,VALUE(MID('CFR - XML import'!$A24,SEARCH(\">\",'CFR - XML import'!$A24,1)+1,SEARCH(\"/\",'CFR - XML import'!$A24,1)-SEARCH(\">\",'CFR - XML import'!$A24,1)-2)))","v":0},{"$f":"IF(ISERROR(FIND(R$3,'CFR - XML import'!$A24)),0,VALUE(MID('CFR - XML import'!$A24,SEARCH(\">\",'CFR - XML import'!$A24,1)+1,SEARCH(\"/\",'CFR - XML import'!$A24,1)-SEARCH(\">\",'CFR - XML import'!$A24,1)-2)))","v":0},{"$f":"IF(ISERROR(FIND(S$3,'CFR - XML import'!$A24)),0,VALUE(MID('CFR - XML import'!$A24,SEARCH(\">\",'CFR - XML import'!$A24,1)+1,SEARCH(\"/\",'CFR - XML import'!$A24,1)-SEARCH(\">\",'CFR - XML import'!$A24,1)-2)))","v":0},{"$f":"IF(ISERROR(FIND(T$3,'CFR - XML import'!$A24)),0,VALUE(MID('CFR - XML import'!$A24,SEARCH(\">\",'CFR - XML import'!$A24,1)+1,SEARCH(\"/\",'CFR - XML import'!$A24,1)-SEARCH(\">\",'CFR - XML import'!$A24,1)-2)))","v":0},{"$f":"IF(ISERROR(FIND(U$3,'CFR - XML import'!$A24)),0,VALUE(MID('CFR - XML import'!$A24,SEARCH(\">\",'CFR - XML import'!$A24,1)+1,SEARCH(\"/\",'CFR - XML import'!$A24,1)-SEARCH(\">\",'CFR - XML import'!$A24,1)-2)))","v":0},{"$f":"IF(ISERROR(FIND(V$3,'CFR - XML import'!$A24)),0,VALUE(MID('CFR - XML import'!$A24,SEARCH(\">\",'CFR - XML import'!$A24,1)+1,SEARCH(\"/\",'CFR - XML import'!$A24,1)-SEARCH(\">\",'CFR - XML import'!$A24,1)-2)))","v":0},{"$f":"IF(ISERROR(FIND(W$3,'CFR - XML import'!$A24)),0,VALUE(MID('CFR - XML import'!$A24,SEARCH(\">\",'CFR - XML import'!$A24,1)+1,SEARCH(\"/\",'CFR - XML import'!$A24,1)-SEARCH(\">\",'CFR - XML import'!$A24,1)-2)))","v":0},null,{"$f":"IF(ISERROR(FIND(Y$3,'CFR - XML import'!$A24)),0,VALUE(MID('CFR - XML import'!$A24,SEARCH(\">\",'CFR - XML import'!$A24,1)+1,SEARCH(\"/\",'CFR - XML import'!$A24,1)-SEARCH(\">\",'CFR - XML import'!$A24,1)-2)))","v":0},{"$f":"IF(ISERROR(FIND(Z$3,'CFR - XML import'!$A24)),0,VALUE(MID('CFR - XML import'!$A24,SEARCH(\">\",'CFR - XML import'!$A24,1)+1,SEARCH(\"/\",'CFR - XML import'!$A24,1)-SEARCH(\">\",'CFR - XML import'!$A24,1)-2)))","v":0},{"$f":"IF(ISERROR(FIND(AA$3,'CFR - XML import'!$A24)),0,VALUE(MID('CFR - XML import'!$A24,SEARCH(\">\",'CFR - XML import'!$A24,1)+1,SEARCH(\"/\",'CFR - XML import'!$A24,1)-SEARCH(\">\",'CFR - XML import'!$A24,1)-2)))","v":0},{"$f":"IF(ISERROR(FIND(AB$3,'CFR - XML import'!$A24)),0,VALUE(MID('CFR - XML import'!$A24,SEARCH(\">\",'CFR - XML import'!$A24,1)+1,SEARCH(\"/\",'CFR - XML import'!$A24,1)-SEARCH(\">\",'CFR - XML import'!$A24,1)-2)))","v":0},{"$f":"IF(ISERROR(FIND(AC$3,'CFR - XML import'!$A24)),0,VALUE(MID('CFR - XML import'!$A24,SEARCH(\">\",'CFR - XML import'!$A24,1)+1,SEARCH(\"/\",'CFR - XML import'!$A24,1)-SEARCH(\">\",'CFR - XML import'!$A24,1)-2)))","v":0},{"$f":"IF(ISERROR(FIND(AD$3,'CFR - XML import'!$A24)),0,VALUE(MID('CFR - XML import'!$A24,SEARCH(\">\",'CFR - XML import'!$A24,1)+1,SEARCH(\"/\",'CFR - XML import'!$A24,1)-SEARCH(\">\",'CFR - XML import'!$A24,1)-2)))","v":0},{"$f":"IF(ISERROR(FIND(AE$3,'CFR - XML import'!$A24)),0,VALUE(MID('CFR - XML import'!$A24,SEARCH(\">\",'CFR - XML import'!$A24,1)+1,SEARCH(\"/\",'CFR - XML import'!$A24,1)-SEARCH(\">\",'CFR - XML import'!$A24,1)-2)))","v":0},{"$f":"IF(ISERROR(FIND(AF$3,'CFR - XML import'!$A24)),0,VALUE(MID('CFR - XML import'!$A24,SEARCH(\">\",'CFR - XML import'!$A24,1)+1,SEARCH(\"/\",'CFR - XML import'!$A24,1)-SEARCH(\">\",'CFR - XML import'!$A24,1)-2)))","v":0},{"$f":"IF(ISERROR(FIND(AG$3,'CFR - XML import'!$A24)),0,VALUE(MID('CFR - XML import'!$A24,SEARCH(\">\",'CFR - XML import'!$A24,1)+1,SEARCH(\"/\",'CFR - XML import'!$A24,1)-SEARCH(\">\",'CFR - XML import'!$A24,1)-2)))","v":0},{"$f":"IF(ISERROR(FIND(AH$3,'CFR - XML import'!$A24)),0,VALUE(MID('CFR - XML import'!$A24,SEARCH(\">\",'CFR - XML import'!$A24,1)+1,SEARCH(\"/\",'CFR - XML import'!$A24,1)-SEARCH(\">\",'CFR - XML import'!$A24,1)-2)))","v":0},{"$f":"IF(ISERROR(FIND(AI$3,'CFR - XML import'!$A24)),0,VALUE(MID('CFR - XML import'!$A24,SEARCH(\">\",'CFR - XML import'!$A24,1)+1,SEARCH(\"/\",'CFR - XML import'!$A24,1)-SEARCH(\">\",'CFR - XML import'!$A24,1)-2)))","v":0},{"$f":"IF(ISERROR(FIND(AJ$3,'CFR - XML import'!$A24)),0,VALUE(MID('CFR - XML import'!$A24,SEARCH(\">\",'CFR - XML import'!$A24,1)+1,SEARCH(\"/\",'CFR - XML import'!$A24,1)-SEARCH(\">\",'CFR - XML import'!$A24,1)-2)))","v":0},{"$f":"IF(ISERROR(FIND(AK$3,'CFR - XML import'!$A24)),0,VALUE(MID('CFR - XML import'!$A24,SEARCH(\">\",'CFR - XML import'!$A24,1)+1,SEARCH(\"/\",'CFR - XML import'!$A24,1)-SEARCH(\">\",'CFR - XML import'!$A24,1)-2)))","v":0},{"$f":"IF(ISERROR(FIND(AL$3,'CFR - XML import'!$A24)),0,VALUE(MID('CFR - XML import'!$A24,SEARCH(\">\",'CFR - XML import'!$A24,1)+1,SEARCH(\"/\",'CFR - XML import'!$A24,1)-SEARCH(\">\",'CFR - XML import'!$A24,1)-2)))","v":0},{"$f":"IF(ISERROR(FIND(AM$3,'CFR - XML import'!$A24)),0,VALUE(MID('CFR - XML import'!$A24,SEARCH(\">\",'CFR - XML import'!$A24,1)+1,SEARCH(\"/\",'CFR - XML import'!$A24,1)-SEARCH(\">\",'CFR - XML import'!$A24,1)-2)))","v":0},{"$f":"IF(ISERROR(FIND(AN$3,'CFR - XML import'!$A24)),0,VALUE(MID('CFR - XML import'!$A24,SEARCH(\">\",'CFR - XML import'!$A24,1)+1,SEARCH(\"/\",'CFR - XML import'!$A24,1)-SEARCH(\">\",'CFR - XML import'!$A24,1)-2)))","v":0},{"$f":"IF(ISERROR(FIND(AO$3,'CFR - XML import'!$A24)),0,VALUE(MID('CFR - XML import'!$A24,SEARCH(\">\",'CFR - XML import'!$A24,1)+1,SEARCH(\"/\",'CFR - XML import'!$A24,1)-SEARCH(\">\",'CFR - XML import'!$A24,1)-2)))","v":0},{"$f":"IF(ISERROR(FIND(AP$3,'CFR - XML import'!$A24)),0,VALUE(MID('CFR - XML import'!$A24,SEARCH(\">\",'CFR - XML import'!$A24,1)+1,SEARCH(\"/\",'CFR - XML import'!$A24,1)-SEARCH(\">\",'CFR - XML import'!$A24,1)-2)))","v":0},{"$f":"IF(ISERROR(FIND(AQ$3,'CFR - XML import'!$A24)),0,VALUE(MID('CFR - XML import'!$A24,SEARCH(\">\",'CFR - XML import'!$A24,1)+1,SEARCH(\"/\",'CFR - XML import'!$A24,1)-SEARCH(\">\",'CFR - XML import'!$A24,1)-2)))","v":0},{"$f":"IF(ISERROR(FIND(AR$3,'CFR - XML import'!$A24)),0,VALUE(MID('CFR - XML import'!$A24,SEARCH(\">\",'CFR - XML import'!$A24,1)+1,SEARCH(\"/\",'CFR - XML import'!$A24,1)-SEARCH(\">\",'CFR - XML import'!$A24,1)-2)))","v":0},{"$f":"IF(ISERROR(FIND(AS$3,'CFR - XML import'!$A24)),0,VALUE(MID('CFR - XML import'!$A24,SEARCH(\">\",'CFR - XML import'!$A24,1)+1,SEARCH(\"/\",'CFR - XML import'!$A24,1)-SEARCH(\">\",'CFR - XML import'!$A24,1)-2)))","v":0},{"$f":"IF(ISERROR(FIND(AT$3,'CFR - XML import'!$A24)),0,VALUE(MID('CFR - XML import'!$A24,SEARCH(\">\",'CFR - XML import'!$A24,1)+1,SEARCH(\"/\",'CFR - XML import'!$A24,1)-SEARCH(\">\",'CFR - XML import'!$A24,1)-2)))","v":0},{"$f":"IF(ISERROR(FIND(AU$3,'CFR - XML import'!$A24)),0,VALUE(MID('CFR - XML import'!$A24,SEARCH(\">\",'CFR - XML import'!$A24,1)+1,SEARCH(\"/\",'CFR - XML import'!$A24,1)-SEARCH(\">\",'CFR - XML import'!$A24,1)-2)))","v":0},{"$f":"IF(ISERROR(FIND(AV$3,'CFR - XML import'!$A24)),0,VALUE(MID('CFR - XML import'!$A24,SEARCH(\">\",'CFR - XML import'!$A24,1)+1,SEARCH(\"/\",'CFR - XML import'!$A24,1)-SEARCH(\">\",'CFR - XML import'!$A24,1)-2)))","v":0},{"$f":"IF(ISERROR(FIND(AW$3,'CFR - XML import'!$A24)),0,VALUE(MID('CFR - XML import'!$A24,SEARCH(\">\",'CFR - XML import'!$A24,1)+1,SEARCH(\"/\",'CFR - XML import'!$A24,1)-SEARCH(\">\",'CFR - XML import'!$A24,1)-2)))","v":0},{"$f":"IF(ISERROR(FIND(AX$3,'CFR - XML import'!$A24)),0,VALUE(MID('CFR - XML import'!$A24,SEARCH(\">\",'CFR - XML import'!$A24,1)+1,SEARCH(\"/\",'CFR - XML import'!$A24,1)-SEARCH(\">\",'CFR - XML import'!$A24,1)-2)))","v":0},{"$f":"IF(ISERROR(FIND(AY$3,'CFR - XML import'!$A24)),0,VALUE(MID('CFR - XML import'!$A24,SEARCH(\">\",'CFR - XML import'!$A24,1)+1,SEARCH(\"/\",'CFR - XML import'!$A24,1)-SEARCH(\">\",'CFR - XML import'!$A24,1)-2)))","v":0},{"$f":"IF(ISERROR(FIND(AZ$3,'CFR - XML import'!$A24)),0,VALUE(MID('CFR - XML import'!$A24,SEARCH(\">\",'CFR - XML import'!$A24,1)+1,SEARCH(\"/\",'CFR - XML import'!$A24,1)-SEARCH(\">\",'CFR - XML import'!$A24,1)-2)))","v":0},{"$f":"IF(ISERROR(FIND(BA$3,'CFR - XML import'!$A24)),0,VALUE(MID('CFR - XML import'!$A24,SEARCH(\">\",'CFR - XML import'!$A24,1)+1,SEARCH(\"/\",'CFR - XML import'!$A24,1)-SEARCH(\">\",'CFR - XML import'!$A24,1)-2)))","v":0},{"$f":"IF(ISERROR(FIND(BB$3,'CFR - XML import'!$A24)),0,VALUE(MID('CFR - XML import'!$A24,SEARCH(\">\",'CFR - XML import'!$A24,1)+1,SEARCH(\"/\",'CFR - XML import'!$A24,1)-SEARCH(\">\",'CFR - XML import'!$A24,1)-2)))","v":0},{"$f":"IF(ISERROR(FIND(BC$3,'CFR - XML import'!$A24)),0,VALUE(MID('CFR - XML import'!$A24,SEARCH(\">\",'CFR - XML import'!$A24,1)+1,SEARCH(\"/\",'CFR - XML import'!$A24,1)-SEARCH(\">\",'CFR - XML import'!$A24,1)-2)))","v":0},{"$f":"IF(ISERROR(FIND(BD$3,'CFR - XML import'!$A24)),0,VALUE(MID('CFR - XML import'!$A24,SEARCH(\">\",'CFR - XML import'!$A24,1)+1,SEARCH(\"/\",'CFR - XML import'!$A24,1)-SEARCH(\">\",'CFR - XML import'!$A24,1)-2)))","v":0},{"$f":"IF(ISERROR(FIND(BE$3,'CFR - XML import'!$A24)),0,VALUE(MID('CFR - XML import'!$A24,SEARCH(\">\",'CFR - XML import'!$A24,1)+1,SEARCH(\"/\",'CFR - XML import'!$A24,1)-SEARCH(\">\",'CFR - XML import'!$A24,1)-2)))","v":0},{"$f":"IF(ISERROR(FIND(BF$3,'CFR - XML import'!$A24)),0,VALUE(MID('CFR - XML import'!$A24,SEARCH(\">\",'CFR - XML import'!$A24,1)+1,SEARCH(\"/\",'CFR - XML import'!$A24,1)-SEARCH(\">\",'CFR - XML import'!$A24,1)-2)))","v":0},{"$f":"IF(ISERROR(FIND(BG$3,'CFR - XML import'!$A24)),0,VALUE(MID('CFR - XML import'!$A24,SEARCH(\">\",'CFR - XML import'!$A24,1)+1,SEARCH(\"/\",'CFR - XML import'!$A24,1)-SEARCH(\">\",'CFR - XML import'!$A24,1)-2)))","v":0},{"$f":"IF(ISERROR(FIND(BH$3,'CFR - XML import'!$A24)),0,VALUE(MID('CFR - XML import'!$A24,SEARCH(\">\",'CFR - XML import'!$A24,1)+1,SEARCH(\"/\",'CFR - XML import'!$A24,1)-SEARCH(\">\",'CFR - XML import'!$A24,1)-2)))","v":0},{"$f":"IF(ISERROR(FIND(BI$3,'CFR - XML import'!$A24)),0,VALUE(MID('CFR - XML import'!$A24,SEARCH(\">\",'CFR - XML import'!$A24,1)+1,SEARCH(\"/\",'CFR - XML import'!$A24,1)-SEARCH(\">\",'CFR - XML import'!$A24,1)-2)))","v":0},{"$f":"IF(ISERROR(FIND(BJ$3,'CFR - XML import'!$A24)),0,VALUE(MID('CFR - XML import'!$A24,SEARCH(\">\",'CFR - XML import'!$A24,1)+1,SEARCH(\"/\",'CFR - XML import'!$A24,1)-SEARCH(\">\",'CFR - XML import'!$A24,1)-2)))","v":0},{"$f":"IF(ISERROR(FIND(BK$3,'CFR - XML import'!$A24)),0,VALUE(MID('CFR - XML import'!$A24,SEARCH(\">\",'CFR - XML import'!$A24,1)+1,SEARCH(\"/\",'CFR - XML import'!$A24,1)-SEARCH(\">\",'CFR - XML import'!$A24,1)-2)))","v":0},{"$f":"IF(ISERROR(FIND(BL$3,'CFR - XML import'!$A24)),0,VALUE(MID('CFR - XML import'!$A24,SEARCH(\">\",'CFR - XML import'!$A24,1)+1,SEARCH(\"/\",'CFR - XML import'!$A24,1)-SEARCH(\">\",'CFR - XML import'!$A24,1)-2)))","v":0},{"$f":"IF(ISERROR(FIND(BM$3,'CFR - XML import'!$A24)),0,VALUE(MID('CFR - XML import'!$A24,SEARCH(\">\",'CFR - XML import'!$A24,1)+1,SEARCH(\"/\",'CFR - XML import'!$A24,1)-SEARCH(\">\",'CFR - XML import'!$A24,1)-2)))","v":0},{"$f":"IF(ISERROR(FIND(BN$3,'CFR - XML import'!$A24)),0,VALUE(MID('CFR - XML import'!$A24,SEARCH(\">\",'CFR - XML import'!$A24,1)+1,SEARCH(\"/\",'CFR - XML import'!$A24,1)-SEARCH(\">\",'CFR - XML import'!$A24,1)-2)))","v":0},{"$f":"IF(ISERROR(FIND(BO$3,'CFR - XML import'!$A24)),0,VALUE(MID('CFR - XML import'!$A24,SEARCH(\">\",'CFR - XML import'!$A24,1)+1,SEARCH(\"/\",'CFR - XML import'!$A24,1)-SEARCH(\">\",'CFR - XML import'!$A24,1)-2)))","v":0},{"$f":"IF(ISERROR(FIND(BP$3,'CFR - XML import'!$A24)),0,VALUE(MID('CFR - XML import'!$A24,SEARCH(\">\",'CFR - XML import'!$A24,1)+1,SEARCH(\"/\",'CFR - XML import'!$A24,1)-SEARCH(\">\",'CFR - XML import'!$A24,1)-2)))","v":0},{"$f":"IF(ISERROR(FIND(BQ$3,'CFR - XML import'!$A24)),0,VALUE(MID('CFR - XML import'!$A24,SEARCH(\">\",'CFR - XML import'!$A24,1)+1,SEARCH(\"/\",'CFR - XML import'!$A24,1)-SEARCH(\">\",'CFR - XML import'!$A24,1)-2)))","v":0},{"$f":"IF(ISERROR(FIND(BR$3,'CFR - XML import'!$A24)),0,VALUE(MID('CFR - XML import'!$A24,SEARCH(\">\",'CFR - XML import'!$A24,1)+1,SEARCH(\"/\",'CFR - XML import'!$A24,1)-SEARCH(\">\",'CFR - XML import'!$A24,1)-2)))","v":0},{"$f":"IF(ISERROR(FIND(BS$3,'CFR - XML import'!$A24)),0,VALUE(MID('CFR - XML import'!$A24,SEARCH(\">\",'CFR - XML import'!$A24,1)+1,SEARCH(\"/\",'CFR - XML import'!$A24,1)-SEARCH(\">\",'CFR - XML import'!$A24,1)-2)))","v":0},{"$f":"IF(ISERROR(FIND(BT$3,'CFR - XML import'!$A24)),0,VALUE(MID('CFR - XML import'!$A24,SEARCH(\">\",'CFR - XML import'!$A24,1)+1,SEARCH(\"/\",'CFR - XML import'!$A24,1)-SEARCH(\">\",'CFR - XML import'!$A24,1)-2)))","v":0},{"$f":"IF(ISERROR(FIND(BU$3,'CFR - XML import'!$A24)),0,VALUE(MID('CFR - XML import'!$A24,SEARCH(\">\",'CFR - XML import'!$A24,1)+1,SEARCH(\"/\",'CFR - XML import'!$A24,1)-SEARCH(\">\",'CFR - XML import'!$A24,1)-2)))","v":0},{"$f":"IF(ISERROR(FIND(BV$3,'CFR - XML import'!$A24)),0,VALUE(MID('CFR - XML import'!$A24,SEARCH(\">\",'CFR - XML import'!$A24,1)+1,SEARCH(\"/\",'CFR - XML import'!$A24,1)-SEARCH(\">\",'CFR - XML import'!$A24,1)-2)))","v":0},{"$f":"IF(ISERROR(FIND(BW$3,'CFR - XML import'!$A24)),0,VALUE(MID('CFR - XML import'!$A24,SEARCH(\">\",'CFR - XML import'!$A24,1)+1,SEARCH(\"/\",'CFR - XML import'!$A24,1)-SEARCH(\">\",'CFR - XML import'!$A24,1)-2)))","v":0},{"$f":"IF(ISERROR(FIND(BX$3,'CFR - XML import'!$A24)),0,VALUE(MID('CFR - XML import'!$A24,SEARCH(\">\",'CFR - XML import'!$A24,1)+1,SEARCH(\"/\",'CFR - XML import'!$A24,1)-SEARCH(\">\",'CFR - XML import'!$A24,1)-2)))","v":0},{"$f":"IF(ISERROR(FIND(BY$3,'CFR - XML import'!$A24)),0,VALUE(MID('CFR - XML import'!$A24,SEARCH(\">\",'CFR - XML import'!$A24,1)+1,SEARCH(\"/\",'CFR - XML import'!$A24,1)-SEARCH(\">\",'CFR - XML import'!$A24,1)-2)))","v":0},{"$f":"IF(ISERROR(FIND(BZ$3,'CFR - XML import'!$A24)),0,VALUE(MID('CFR - XML import'!$A24,SEARCH(\">\",'CFR - XML import'!$A24,1)+1,SEARCH(\"/\",'CFR - XML import'!$A24,1)-SEARCH(\">\",'CFR - XML import'!$A24,1)-2)))","v":0},null,null,null,null,null,null,{"$f":"IF(ISERROR(IF(MID('CFR - XML import'!$A24,LEN($CF$4)+1,LEN('CFR - XML import'!$A24)-(2*LEN($CF$4)+1))=\"RMMS\",1,IF(MID('CFR - XML import'!$A24,LEN(\"    <InputSystem>\")+1,LEN('CFR - XML import'!$A24)-(LEN(\"    <InputSystem>\")+LEN($CF$4)+1))=\"SIMS\",2,0))),0,IF(MID('CFR - XML import'!$A24,LEN($CF$4)+1,LEN('CFR - XML import'!$A24)-(2*LEN($CF$4)+1))=\"RMMS\",1,IF(MID('CFR - XML import'!$A24,LEN(\"    <InputSystem>\")+1,LEN('CFR - XML import'!$A24)-(LEN(\"    <InputSystem>\")+LEN($CF$4)+1))=\"SIMS\",2,0)))","v":0},{"$f":"IF(ISERROR(FIND(CH$3,'CFR - XML import'!$A24)),0,MID('CFR - XML import'!$A24,SEARCH(\">\",'CFR - XML import'!$A24,1)+1,SEARCH(\"/\",'CFR - XML import'!$A24,1)-SEARCH(\">\",'CFR - XML import'!$A24,1)-2))","v":0},{"$f":"IF(ISERROR(FIND(CI$3,'CFR - XML import'!$A24)),0,MID('CFR - XML import'!$A24,SEARCH(\">\",'CFR - XML import'!$A24,1)+1,SEARCH(\"/\",'CFR - XML import'!$A24,1)-SEARCH(\">\",'CFR - XML import'!$A24,1)-2))","v":0},{"$f":"IF(ISERROR(FIND(CJ$3,'CFR - XML import'!$A24)),0,MID('CFR - XML import'!$A24,SEARCH(\">\",'CFR - XML import'!$A24,1)+1,SEARCH(\"/\",'CFR - XML import'!$A24,1)-SEARCH(\">\",'CFR - XML import'!$A24,1)-2))","v":0},{"$f":"IF(ISERROR(FIND(CK$3,'CFR - XML import'!$A24)),0,MID('CFR - XML import'!$A24,SEARCH(\">\",'CFR - XML import'!$A24,1)+1,SEARCH(\"/\",'CFR - XML import'!$A24,1)-SEARCH(\">\",'CFR - XML import'!$A24,1)-2))","v":0},{"$f":"IF(ISERROR(FIND(CL$3,'CFR - XML import'!$A24)),0,MID('CFR - XML import'!$A24,SEARCH(\">\",'CFR - XML import'!$A24,1)+1,SEARCH(\"/\",'CFR - XML import'!$A24,1)-SEARCH(\">\",'CFR - XML import'!$A24,1)-2))","v":0}]
[{"$f":"IF(AND('CFR - XML import'!A25<>\"\",LEFT('CFR - XML import'!A25,1)<>\"<\",LEFT('CFR - XML import'!A25,3)<>\"  <\",LEFT('CFR - XML import'!A25,5)<>\"    <\",LEFT('CFR - XML import'!A25,7)<>\"      <\",LEFT('CFR - XML import'!A25,9)<>\"        <\",$B$1=\"SIMS\"),'CFR - XML import'!A25,IF(AND(LEFT('CFR - XML import'!A25,9)=\"<Details>\",$B$1=\"RM\"),'CFR - XML import'!A25,\"\"))","v":""},{"$f":"IF(ISERROR(FIND(B$3,'CFR - XML import'!$A25)),0,VALUE(MID('CFR - XML import'!$A25,SEARCH(\">\",'CFR - XML import'!$A25,1)+1,SEARCH(\"/\",'CFR - XML import'!$A25,1)-SEARCH(\">\",'CFR - XML import'!$A25,1)-2)))","v":0},null,{"$f":"IF(ISERROR(FIND(D$3,'CFR - XML import'!$A25)),0,MID('CFR - XML import'!$A25,SEARCH(\">\",'CFR - XML import'!$A25,1)+1,SEARCH(\"/\",'CFR - XML import'!$A25,1)-SEARCH(\">\",'CFR - XML import'!$A25,1)-2))","v":0},{"$f":"IF(ISERROR(FIND(E$3,'CFR - XML import'!$A25)),0,MID('CFR - XML import'!$A25,SEARCH(\">\",'CFR - XML import'!$A25,1)+1,SEARCH(\"/\",'CFR - XML import'!$A25,1)-SEARCH(\">\",'CFR - XML import'!$A25,1)-2))","v":0},{"$f":"IF($B$1=\"SIMS\",IF(ISERROR(FIND(F$3,'CFR - XML import'!$A25)),0,VALUE(MID('CFR - XML import'!$A25,15,10))),IF(ISERROR(FIND(F$3,'CFR - XML import'!$A25)),0,VALUE(MID('CFR - XML import'!$A25,11,10))))","v":"00:00:00"},{"$f":"IF(ISERROR(FIND(G$3,'CFR - XML import'!$A25)),0,VALUE(MID('CFR - XML import'!$A25,SEARCH(\">\",'CFR - XML import'!$A25,1)+1,SEARCH(\"/\",'CFR - XML import'!$A25,1)-SEARCH(\">\",'CFR - XML import'!$A25,1)-2)))","v":0},{"$f":"IF(ISERROR(FIND(H$3,'CFR - XML import'!$A25)),0,VALUE(MID('CFR - XML import'!$A25,SEARCH(\">\",'CFR - XML import'!$A25,1)+1,SEARCH(\"/\",'CFR - XML import'!$A25,1)-SEARCH(\">\",'CFR - XML import'!$A25,1)-2)))","v":0},{"$f":"IF(ISERROR(FIND(I$3,'CFR - XML import'!$A25)),0,VALUE(MID('CFR - XML import'!$A25,SEARCH(\">\",'CFR - XML import'!$A25,1)+1,SEARCH(\"/\",'CFR - XML import'!$A25,1)-SEARCH(\">\",'CFR - XML import'!$A25,1)-2)))","v":0},{"$f":"IF(ISERROR(FIND(J$3,'CFR - XML import'!$A25)),0,VALUE(MID('CFR - XML import'!$A25,SEARCH(\">\",'CFR - XML import'!$A25,1)+1,SEARCH(\"/\",'CFR - XML import'!$A25,1)-SEARCH(\">\",'CFR - XML import'!$A25,1)-2)))","v":0},{"$f":"IF(ISERROR(FIND(K$3,'CFR - XML import'!$A25)),0,VALUE(MID('CFR - XML import'!$A25,SEARCH(\">\",'CFR - XML import'!$A25,1)+1,SEARCH(\"/\",'CFR - XML import'!$A25,1)-SEARCH(\">\",'CFR - XML import'!$A25,1)-2)))","v":0},{"$f":"IF(ISERROR(FIND(L$3,'CFR - XML import'!$A25)),0,VALUE(MID('CFR - XML import'!$A25,SEARCH(\">\",'CFR - XML import'!$A25,1)+1,SEARCH(\"/\",'CFR - XML import'!$A25,1)-SEARCH(\">\",'CFR - XML import'!$A25,1)-2)))","v":0},{"$f":"IF(ISERROR(FIND(M$3,'CFR - XML import'!$A25)),0,VALUE(MID('CFR - XML import'!$A25,SEARCH(\">\",'CFR - XML import'!$A25,1)+1,SEARCH(\"/\",'CFR - XML import'!$A25,1)-SEARCH(\">\",'CFR - XML import'!$A25,1)-2)))","v":0},{"$f":"IF(ISERROR(FIND(N$3,'CFR - XML import'!$A25)),0,VALUE(MID('CFR - XML import'!$A25,SEARCH(\">\",'CFR - XML import'!$A25,1)+1,SEARCH(\"/\",'CFR - XML import'!$A25,1)-SEARCH(\">\",'CFR - XML import'!$A25,1)-2)))","v":0},{"$f":"IF(ISERROR(FIND(O$3,'CFR - XML import'!$A25)),0,VALUE(MID('CFR - XML import'!$A25,SEARCH(\">\",'CFR - XML import'!$A25,1)+1,SEARCH(\"/\",'CFR - XML import'!$A25,1)-SEARCH(\">\",'CFR - XML import'!$A25,1)-2)))","v":0},{"$f":"IF(ISERROR(FIND(P$3,'CFR - XML import'!$A25)),0,VALUE(MID('CFR - XML import'!$A25,SEARCH(\">\",'CFR - XML import'!$A25,1)+1,SEARCH(\"/\",'CFR - XML import'!$A25,1)-SEARCH(\">\",'CFR - XML import'!$A25,1)-2)))","v":0},{"$f":"IF(ISERROR(FIND(Q$3,'CFR - XML import'!$A25)),0,VALUE(MID('CFR - XML import'!$A25,SEARCH(\">\",'CFR - XML import'!$A25,1)+1,SEARCH(\"/\",'CFR - XML import'!$A25,1)-SEARCH(\">\",'CFR - XML import'!$A25,1)-2)))","v":0},{"$f":"IF(ISERROR(FIND(R$3,'CFR - XML import'!$A25)),0,VALUE(MID('CFR - XML import'!$A25,SEARCH(\">\",'CFR - XML import'!$A25,1)+1,SEARCH(\"/\",'CFR - XML import'!$A25,1)-SEARCH(\">\",'CFR - XML import'!$A25,1)-2)))","v":0},{"$f":"IF(ISERROR(FIND(S$3,'CFR - XML import'!$A25)),0,VALUE(MID('CFR - XML import'!$A25,SEARCH(\">\",'CFR - XML import'!$A25,1)+1,SEARCH(\"/\",'CFR - XML import'!$A25,1)-SEARCH(\">\",'CFR - XML import'!$A25,1)-2)))","v":0},{"$f":"IF(ISERROR(FIND(T$3,'CFR - XML import'!$A25)),0,VALUE(MID('CFR - XML import'!$A25,SEARCH(\">\",'CFR - XML import'!$A25,1)+1,SEARCH(\"/\",'CFR - XML import'!$A25,1)-SEARCH(\">\",'CFR - XML import'!$A25,1)-2)))","v":0},{"$f":"IF(ISERROR(FIND(U$3,'CFR - XML import'!$A25)),0,VALUE(MID('CFR - XML import'!$A25,SEARCH(\">\",'CFR - XML import'!$A25,1)+1,SEARCH(\"/\",'CFR - XML import'!$A25,1)-SEARCH(\">\",'CFR - XML import'!$A25,1)-2)))","v":0},{"$f":"IF(ISERROR(FIND(V$3,'CFR - XML import'!$A25)),0,VALUE(MID('CFR - XML import'!$A25,SEARCH(\">\",'CFR - XML import'!$A25,1)+1,SEARCH(\"/\",'CFR - XML import'!$A25,1)-SEARCH(\">\",'CFR - XML import'!$A25,1)-2)))","v":0},{"$f":"IF(ISERROR(FIND(W$3,'CFR - XML import'!$A25)),0,VALUE(MID('CFR - XML import'!$A25,SEARCH(\">\",'CFR - XML import'!$A25,1)+1,SEARCH(\"/\",'CFR - XML import'!$A25,1)-SEARCH(\">\",'CFR - XML import'!$A25,1)-2)))","v":0},null,{"$f":"IF(ISERROR(FIND(Y$3,'CFR - XML import'!$A25)),0,VALUE(MID('CFR - XML import'!$A25,SEARCH(\">\",'CFR - XML import'!$A25,1)+1,SEARCH(\"/\",'CFR - XML import'!$A25,1)-SEARCH(\">\",'CFR - XML import'!$A25,1)-2)))","v":0},{"$f":"IF(ISERROR(FIND(Z$3,'CFR - XML import'!$A25)),0,VALUE(MID('CFR - XML import'!$A25,SEARCH(\">\",'CFR - XML import'!$A25,1)+1,SEARCH(\"/\",'CFR - XML import'!$A25,1)-SEARCH(\">\",'CFR - XML import'!$A25,1)-2)))","v":0},{"$f":"IF(ISERROR(FIND(AA$3,'CFR - XML import'!$A25)),0,VALUE(MID('CFR - XML import'!$A25,SEARCH(\">\",'CFR - XML import'!$A25,1)+1,SEARCH(\"/\",'CFR - XML import'!$A25,1)-SEARCH(\">\",'CFR - XML import'!$A25,1)-2)))","v":0},{"$f":"IF(ISERROR(FIND(AB$3,'CFR - XML import'!$A25)),0,VALUE(MID('CFR - XML import'!$A25,SEARCH(\">\",'CFR - XML import'!$A25,1)+1,SEARCH(\"/\",'CFR - XML import'!$A25,1)-SEARCH(\">\",'CFR - XML import'!$A25,1)-2)))","v":0},{"$f":"IF(ISERROR(FIND(AC$3,'CFR - XML import'!$A25)),0,VALUE(MID('CFR - XML import'!$A25,SEARCH(\">\",'CFR - XML import'!$A25,1)+1,SEARCH(\"/\",'CFR - XML import'!$A25,1)-SEARCH(\">\",'CFR - XML import'!$A25,1)-2)))","v":0},{"$f":"IF(ISERROR(FIND(AD$3,'CFR - XML import'!$A25)),0,VALUE(MID('CFR - XML import'!$A25,SEARCH(\">\",'CFR - XML import'!$A25,1)+1,SEARCH(\"/\",'CFR - XML import'!$A25,1)-SEARCH(\">\",'CFR - XML import'!$A25,1)-2)))","v":0},{"$f":"IF(ISERROR(FIND(AE$3,'CFR - XML import'!$A25)),0,VALUE(MID('CFR - XML import'!$A25,SEARCH(\">\",'CFR - XML import'!$A25,1)+1,SEARCH(\"/\",'CFR - XML import'!$A25,1)-SEARCH(\">\",'CFR - XML import'!$A25,1)-2)))","v":0},{"$f":"IF(ISERROR(FIND(AF$3,'CFR - XML import'!$A25)),0,VALUE(MID('CFR - XML import'!$A25,SEARCH(\">\",'CFR - XML import'!$A25,1)+1,SEARCH(\"/\",'CFR - XML import'!$A25,1)-SEARCH(\">\",'CFR - XML import'!$A25,1)-2)))","v":0},{"$f":"IF(ISERROR(FIND(AG$3,'CFR - XML import'!$A25)),0,VALUE(MID('CFR - XML import'!$A25,SEARCH(\">\",'CFR - XML import'!$A25,1)+1,SEARCH(\"/\",'CFR - XML import'!$A25,1)-SEARCH(\">\",'CFR - XML import'!$A25,1)-2)))","v":0},{"$f":"IF(ISERROR(FIND(AH$3,'CFR - XML import'!$A25)),0,VALUE(MID('CFR - XML import'!$A25,SEARCH(\">\",'CFR - XML import'!$A25,1)+1,SEARCH(\"/\",'CFR - XML import'!$A25,1)-SEARCH(\">\",'CFR - XML import'!$A25,1)-2)))","v":0},{"$f":"IF(ISERROR(FIND(AI$3,'CFR - XML import'!$A25)),0,VALUE(MID('CFR - XML import'!$A25,SEARCH(\">\",'CFR - XML import'!$A25,1)+1,SEARCH(\"/\",'CFR - XML import'!$A25,1)-SEARCH(\">\",'CFR - XML import'!$A25,1)-2)))","v":0},{"$f":"IF(ISERROR(FIND(AJ$3,'CFR - XML import'!$A25)),0,VALUE(MID('CFR - XML import'!$A25,SEARCH(\">\",'CFR - XML import'!$A25,1)+1,SEARCH(\"/\",'CFR - XML import'!$A25,1)-SEARCH(\">\",'CFR - XML import'!$A25,1)-2)))","v":0},{"$f":"IF(ISERROR(FIND(AK$3,'CFR - XML import'!$A25)),0,VALUE(MID('CFR - XML import'!$A25,SEARCH(\">\",'CFR - XML import'!$A25,1)+1,SEARCH(\"/\",'CFR - XML import'!$A25,1)-SEARCH(\">\",'CFR - XML import'!$A25,1)-2)))","v":0},{"$f":"IF(ISERROR(FIND(AL$3,'CFR - XML import'!$A25)),0,VALUE(MID('CFR - XML import'!$A25,SEARCH(\">\",'CFR - XML import'!$A25,1)+1,SEARCH(\"/\",'CFR - XML import'!$A25,1)-SEARCH(\">\",'CFR - XML import'!$A25,1)-2)))","v":0},{"$f":"IF(ISERROR(FIND(AM$3,'CFR - XML import'!$A25)),0,VALUE(MID('CFR - XML import'!$A25,SEARCH(\">\",'CFR - XML import'!$A25,1)+1,SEARCH(\"/\",'CFR - XML import'!$A25,1)-SEARCH(\">\",'CFR - XML import'!$A25,1)-2)))","v":0},{"$f":"IF(ISERROR(FIND(AN$3,'CFR - XML import'!$A25)),0,VALUE(MID('CFR - XML import'!$A25,SEARCH(\">\",'CFR - XML import'!$A25,1)+1,SEARCH(\"/\",'CFR - XML import'!$A25,1)-SEARCH(\">\",'CFR - XML import'!$A25,1)-2)))","v":0},{"$f":"IF(ISERROR(FIND(AO$3,'CFR - XML import'!$A25)),0,VALUE(MID('CFR - XML import'!$A25,SEARCH(\">\",'CFR - XML import'!$A25,1)+1,SEARCH(\"/\",'CFR - XML import'!$A25,1)-SEARCH(\">\",'CFR - XML import'!$A25,1)-2)))","v":0},{"$f":"IF(ISERROR(FIND(AP$3,'CFR - XML import'!$A25)),0,VALUE(MID('CFR - XML import'!$A25,SEARCH(\">\",'CFR - XML import'!$A25,1)+1,SEARCH(\"/\",'CFR - XML import'!$A25,1)-SEARCH(\">\",'CFR - XML import'!$A25,1)-2)))","v":0},{"$f":"IF(ISERROR(FIND(AQ$3,'CFR - XML import'!$A25)),0,VALUE(MID('CFR - XML import'!$A25,SEARCH(\">\",'CFR - XML import'!$A25,1)+1,SEARCH(\"/\",'CFR - XML import'!$A25,1)-SEARCH(\">\",'CFR - XML import'!$A25,1)-2)))","v":0},{"$f":"IF(ISERROR(FIND(AR$3,'CFR - XML import'!$A25)),0,VALUE(MID('CFR - XML import'!$A25,SEARCH(\">\",'CFR - XML import'!$A25,1)+1,SEARCH(\"/\",'CFR - XML import'!$A25,1)-SEARCH(\">\",'CFR - XML import'!$A25,1)-2)))","v":0},{"$f":"IF(ISERROR(FIND(AS$3,'CFR - XML import'!$A25)),0,VALUE(MID('CFR - XML import'!$A25,SEARCH(\">\",'CFR - XML import'!$A25,1)+1,SEARCH(\"/\",'CFR - XML import'!$A25,1)-SEARCH(\">\",'CFR - XML import'!$A25,1)-2)))","v":0},{"$f":"IF(ISERROR(FIND(AT$3,'CFR - XML import'!$A25)),0,VALUE(MID('CFR - XML import'!$A25,SEARCH(\">\",'CFR - XML import'!$A25,1)+1,SEARCH(\"/\",'CFR - XML import'!$A25,1)-SEARCH(\">\",'CFR - XML import'!$A25,1)-2)))","v":0},{"$f":"IF(ISERROR(FIND(AU$3,'CFR - XML import'!$A25)),0,VALUE(MID('CFR - XML import'!$A25,SEARCH(\">\",'CFR - XML import'!$A25,1)+1,SEARCH(\"/\",'CFR - XML import'!$A25,1)-SEARCH(\">\",'CFR - XML import'!$A25,1)-2)))","v":0},{"$f":"IF(ISERROR(FIND(AV$3,'CFR - XML import'!$A25)),0,VALUE(MID('CFR - XML import'!$A25,SEARCH(\">\",'CFR - XML import'!$A25,1)+1,SEARCH(\"/\",'CFR - XML import'!$A25,1)-SEARCH(\">\",'CFR - XML import'!$A25,1)-2)))","v":0},{"$f":"IF(ISERROR(FIND(AW$3,'CFR - XML import'!$A25)),0,VALUE(MID('CFR - XML import'!$A25,SEARCH(\">\",'CFR - XML import'!$A25,1)+1,SEARCH(\"/\",'CFR - XML import'!$A25,1)-SEARCH(\">\",'CFR - XML import'!$A25,1)-2)))","v":0},{"$f":"IF(ISERROR(FIND(AX$3,'CFR - XML import'!$A25)),0,VALUE(MID('CFR - XML import'!$A25,SEARCH(\">\",'CFR - XML import'!$A25,1)+1,SEARCH(\"/\",'CFR - XML import'!$A25,1)-SEARCH(\">\",'CFR - XML import'!$A25,1)-2)))","v":0},{"$f":"IF(ISERROR(FIND(AY$3,'CFR - XML import'!$A25)),0,VALUE(MID('CFR - XML import'!$A25,SEARCH(\">\",'CFR - XML import'!$A25,1)+1,SEARCH(\"/\",'CFR - XML import'!$A25,1)-SEARCH(\">\",'CFR - XML import'!$A25,1)-2)))","v":0},{"$f":"IF(ISERROR(FIND(AZ$3,'CFR - XML import'!$A25)),0,VALUE(MID('CFR - XML import'!$A25,SEARCH(\">\",'CFR - XML import'!$A25,1)+1,SEARCH(\"/\",'CFR - XML import'!$A25,1)-SEARCH(\">\",'CFR - XML import'!$A25,1)-2)))","v":0},{"$f":"IF(ISERROR(FIND(BA$3,'CFR - XML import'!$A25)),0,VALUE(MID('CFR - XML import'!$A25,SEARCH(\">\",'CFR - XML import'!$A25,1)+1,SEARCH(\"/\",'CFR - XML import'!$A25,1)-SEARCH(\">\",'CFR - XML import'!$A25,1)-2)))","v":0},{"$f":"IF(ISERROR(FIND(BB$3,'CFR - XML import'!$A25)),0,VALUE(MID('CFR - XML import'!$A25,SEARCH(\">\",'CFR - XML import'!$A25,1)+1,SEARCH(\"/\",'CFR - XML import'!$A25,1)-SEARCH(\">\",'CFR - XML import'!$A25,1)-2)))","v":0},{"$f":"IF(ISERROR(FIND(BC$3,'CFR - XML import'!$A25)),0,VALUE(MID('CFR - XML import'!$A25,SEARCH(\">\",'CFR - XML import'!$A25,1)+1,SEARCH(\"/\",'CFR - XML import'!$A25,1)-SEARCH(\">\",'CFR - XML import'!$A25,1)-2)))","v":0},{"$f":"IF(ISERROR(FIND(BD$3,'CFR - XML import'!$A25)),0,VALUE(MID('CFR - XML import'!$A25,SEARCH(\">\",'CFR - XML import'!$A25,1)+1,SEARCH(\"/\",'CFR - XML import'!$A25,1)-SEARCH(\">\",'CFR - XML import'!$A25,1)-2)))","v":0},{"$f":"IF(ISERROR(FIND(BE$3,'CFR - XML import'!$A25)),0,VALUE(MID('CFR - XML import'!$A25,SEARCH(\">\",'CFR - XML import'!$A25,1)+1,SEARCH(\"/\",'CFR - XML import'!$A25,1)-SEARCH(\">\",'CFR - XML import'!$A25,1)-2)))","v":0},{"$f":"IF(ISERROR(FIND(BF$3,'CFR - XML import'!$A25)),0,VALUE(MID('CFR - XML import'!$A25,SEARCH(\">\",'CFR - XML import'!$A25,1)+1,SEARCH(\"/\",'CFR - XML import'!$A25,1)-SEARCH(\">\",'CFR - XML import'!$A25,1)-2)))","v":0},{"$f":"IF(ISERROR(FIND(BG$3,'CFR - XML import'!$A25)),0,VALUE(MID('CFR - XML import'!$A25,SEARCH(\">\",'CFR - XML import'!$A25,1)+1,SEARCH(\"/\",'CFR - XML import'!$A25,1)-SEARCH(\">\",'CFR - XML import'!$A25,1)-2)))","v":0},{"$f":"IF(ISERROR(FIND(BH$3,'CFR - XML import'!$A25)),0,VALUE(MID('CFR - XML import'!$A25,SEARCH(\">\",'CFR - XML import'!$A25,1)+1,SEARCH(\"/\",'CFR - XML import'!$A25,1)-SEARCH(\">\",'CFR - XML import'!$A25,1)-2)))","v":0},{"$f":"IF(ISERROR(FIND(BI$3,'CFR - XML import'!$A25)),0,VALUE(MID('CFR - XML import'!$A25,SEARCH(\">\",'CFR - XML import'!$A25,1)+1,SEARCH(\"/\",'CFR - XML import'!$A25,1)-SEARCH(\">\",'CFR - XML import'!$A25,1)-2)))","v":0},{"$f":"IF(ISERROR(FIND(BJ$3,'CFR - XML import'!$A25)),0,VALUE(MID('CFR - XML import'!$A25,SEARCH(\">\",'CFR - XML import'!$A25,1)+1,SEARCH(\"/\",'CFR - XML import'!$A25,1)-SEARCH(\">\",'CFR - XML import'!$A25,1)-2)))","v":0},{"$f":"IF(ISERROR(FIND(BK$3,'CFR - XML import'!$A25)),0,VALUE(MID('CFR - XML import'!$A25,SEARCH(\">\",'CFR - XML import'!$A25,1)+1,SEARCH(\"/\",'CFR - XML import'!$A25,1)-SEARCH(\">\",'CFR - XML import'!$A25,1)-2)))","v":0},{"$f":"IF(ISERROR(FIND(BL$3,'CFR - XML import'!$A25)),0,VALUE(MID('CFR - XML import'!$A25,SEARCH(\">\",'CFR - XML import'!$A25,1)+1,SEARCH(\"/\",'CFR - XML import'!$A25,1)-SEARCH(\">\",'CFR - XML import'!$A25,1)-2)))","v":0},{"$f":"IF(ISERROR(FIND(BM$3,'CFR - XML import'!$A25)),0,VALUE(MID('CFR - XML import'!$A25,SEARCH(\">\",'CFR - XML import'!$A25,1)+1,SEARCH(\"/\",'CFR - XML import'!$A25,1)-SEARCH(\">\",'CFR - XML import'!$A25,1)-2)))","v":0},{"$f":"IF(ISERROR(FIND(BN$3,'CFR - XML import'!$A25)),0,VALUE(MID('CFR - XML import'!$A25,SEARCH(\">\",'CFR - XML import'!$A25,1)+1,SEARCH(\"/\",'CFR - XML import'!$A25,1)-SEARCH(\">\",'CFR - XML import'!$A25,1)-2)))","v":0},{"$f":"IF(ISERROR(FIND(BO$3,'CFR - XML import'!$A25)),0,VALUE(MID('CFR - XML import'!$A25,SEARCH(\">\",'CFR - XML import'!$A25,1)+1,SEARCH(\"/\",'CFR - XML import'!$A25,1)-SEARCH(\">\",'CFR - XML import'!$A25,1)-2)))","v":0},{"$f":"IF(ISERROR(FIND(BP$3,'CFR - XML import'!$A25)),0,VALUE(MID('CFR - XML import'!$A25,SEARCH(\">\",'CFR - XML import'!$A25,1)+1,SEARCH(\"/\",'CFR - XML import'!$A25,1)-SEARCH(\">\",'CFR - XML import'!$A25,1)-2)))","v":0},{"$f":"IF(ISERROR(FIND(BQ$3,'CFR - XML import'!$A25)),0,VALUE(MID('CFR - XML import'!$A25,SEARCH(\">\",'CFR - XML import'!$A25,1)+1,SEARCH(\"/\",'CFR - XML import'!$A25,1)-SEARCH(\">\",'CFR - XML import'!$A25,1)-2)))","v":0},{"$f":"IF(ISERROR(FIND(BR$3,'CFR - XML import'!$A25)),0,VALUE(MID('CFR - XML import'!$A25,SEARCH(\">\",'CFR - XML import'!$A25,1)+1,SEARCH(\"/\",'CFR - XML import'!$A25,1)-SEARCH(\">\",'CFR - XML import'!$A25,1)-2)))","v":0},{"$f":"IF(ISERROR(FIND(BS$3,'CFR - XML import'!$A25)),0,VALUE(MID('CFR - XML import'!$A25,SEARCH(\">\",'CFR - XML import'!$A25,1)+1,SEARCH(\"/\",'CFR - XML import'!$A25,1)-SEARCH(\">\",'CFR - XML import'!$A25,1)-2)))","v":0},{"$f":"IF(ISERROR(FIND(BT$3,'CFR - XML import'!$A25)),0,VALUE(MID('CFR - XML import'!$A25,SEARCH(\">\",'CFR - XML import'!$A25,1)+1,SEARCH(\"/\",'CFR - XML import'!$A25,1)-SEARCH(\">\",'CFR - XML import'!$A25,1)-2)))","v":0},{"$f":"IF(ISERROR(FIND(BU$3,'CFR - XML import'!$A25)),0,VALUE(MID('CFR - XML import'!$A25,SEARCH(\">\",'CFR - XML import'!$A25,1)+1,SEARCH(\"/\",'CFR - XML import'!$A25,1)-SEARCH(\">\",'CFR - XML import'!$A25,1)-2)))","v":0},{"$f":"IF(ISERROR(FIND(BV$3,'CFR - XML import'!$A25)),0,VALUE(MID('CFR - XML import'!$A25,SEARCH(\">\",'CFR - XML import'!$A25,1)+1,SEARCH(\"/\",'CFR - XML import'!$A25,1)-SEARCH(\">\",'CFR - XML import'!$A25,1)-2)))","v":0},{"$f":"IF(ISERROR(FIND(BW$3,'CFR - XML import'!$A25)),0,VALUE(MID('CFR - XML import'!$A25,SEARCH(\">\",'CFR - XML import'!$A25,1)+1,SEARCH(\"/\",'CFR - XML import'!$A25,1)-SEARCH(\">\",'CFR - XML import'!$A25,1)-2)))","v":0},{"$f":"IF(ISERROR(FIND(BX$3,'CFR - XML import'!$A25)),0,VALUE(MID('CFR - XML import'!$A25,SEARCH(\">\",'CFR - XML import'!$A25,1)+1,SEARCH(\"/\",'CFR - XML import'!$A25,1)-SEARCH(\">\",'CFR - XML import'!$A25,1)-2)))","v":0},{"$f":"IF(ISERROR(FIND(BY$3,'CFR - XML import'!$A25)),0,VALUE(MID('CFR - XML import'!$A25,SEARCH(\">\",'CFR - XML import'!$A25,1)+1,SEARCH(\"/\",'CFR - XML import'!$A25,1)-SEARCH(\">\",'CFR - XML import'!$A25,1)-2)))","v":0},{"$f":"IF(ISERROR(FIND(BZ$3,'CFR - XML import'!$A25)),0,VALUE(MID('CFR - XML import'!$A25,SEARCH(\">\",'CFR - XML import'!$A25,1)+1,SEARCH(\"/\",'CFR - XML import'!$A25,1)-SEARCH(\">\",'CFR - XML import'!$A25,1)-2)))","v":0},null,null,null,null,null,null,{"$f":"IF(ISERROR(IF(MID('CFR - XML import'!$A25,LEN($CF$4)+1,LEN('CFR - XML import'!$A25)-(2*LEN($CF$4)+1))=\"RMMS\",1,IF(MID('CFR - XML import'!$A25,LEN(\"    <InputSystem>\")+1,LEN('CFR - XML import'!$A25)-(LEN(\"    <InputSystem>\")+LEN($CF$4)+1))=\"SIMS\",2,0))),0,IF(MID('CFR - XML import'!$A25,LEN($CF$4)+1,LEN('CFR - XML import'!$A25)-(2*LEN($CF$4)+1))=\"RMMS\",1,IF(MID('CFR - XML import'!$A25,LEN(\"    <InputSystem>\")+1,LEN('CFR - XML import'!$A25)-(LEN(\"    <InputSystem>\")+LEN($CF$4)+1))=\"SIMS\",2,0)))","v":0},{"$f":"IF(ISERROR(FIND(CH$3,'CFR - XML import'!$A25)),0,MID('CFR - XML import'!$A25,SEARCH(\">\",'CFR - XML import'!$A25,1)+1,SEARCH(\"/\",'CFR - XML import'!$A25,1)-SEARCH(\">\",'CFR - XML import'!$A25,1)-2))","v":0},{"$f":"IF(ISERROR(FIND(CI$3,'CFR - XML import'!$A25)),0,MID('CFR - XML import'!$A25,SEARCH(\">\",'CFR - XML import'!$A25,1)+1,SEARCH(\"/\",'CFR - XML import'!$A25,1)-SEARCH(\">\",'CFR - XML import'!$A25,1)-2))","v":0},{"$f":"IF(ISERROR(FIND(CJ$3,'CFR - XML import'!$A25)),0,MID('CFR - XML import'!$A25,SEARCH(\">\",'CFR - XML import'!$A25,1)+1,SEARCH(\"/\",'CFR - XML import'!$A25,1)-SEARCH(\">\",'CFR - XML import'!$A25,1)-2))","v":0},{"$f":"IF(ISERROR(FIND(CK$3,'CFR - XML import'!$A25)),0,MID('CFR - XML import'!$A25,SEARCH(\">\",'CFR - XML import'!$A25,1)+1,SEARCH(\"/\",'CFR - XML import'!$A25,1)-SEARCH(\">\",'CFR - XML import'!$A25,1)-2))","v":0},{"$f":"IF(ISERROR(FIND(CL$3,'CFR - XML import'!$A25)),0,MID('CFR - XML import'!$A25,SEARCH(\">\",'CFR - XML import'!$A25,1)+1,SEARCH(\"/\",'CFR - XML import'!$A25,1)-SEARCH(\">\",'CFR - XML import'!$A25,1)-2))","v":0}]
[{"$f":"IF(AND('CFR - XML import'!A26<>\"\",LEFT('CFR - XML import'!A26,1)<>\"<\",LEFT('CFR - XML import'!A26,3)<>\"  <\",LEFT('CFR - XML import'!A26,5)<>\"    <\",LEFT('CFR - XML import'!A26,7)<>\"      <\",LEFT('CFR - XML import'!A26,9)<>\"        <\",$B$1=\"SIMS\"),'CFR - XML import'!A26,IF(AND(LEFT('CFR - XML import'!A26,9)=\"<Details>\",$B$1=\"RM\"),'CFR - XML import'!A26,\"\"))","v":""},{"$f":"IF(ISERROR(FIND(B$3,'CFR - XML import'!$A26)),0,VALUE(MID('CFR - XML import'!$A26,SEARCH(\">\",'CFR - XML import'!$A26,1)+1,SEARCH(\"/\",'CFR - XML import'!$A26,1)-SEARCH(\">\",'CFR - XML import'!$A26,1)-2)))","v":0},null,{"$f":"IF(ISERROR(FIND(D$3,'CFR - XML import'!$A26)),0,MID('CFR - XML import'!$A26,SEARCH(\">\",'CFR - XML import'!$A26,1)+1,SEARCH(\"/\",'CFR - XML import'!$A26,1)-SEARCH(\">\",'CFR - XML import'!$A26,1)-2))","v":0},{"$f":"IF(ISERROR(FIND(E$3,'CFR - XML import'!$A26)),0,MID('CFR - XML import'!$A26,SEARCH(\">\",'CFR - XML import'!$A26,1)+1,SEARCH(\"/\",'CFR - XML import'!$A26,1)-SEARCH(\">\",'CFR - XML import'!$A26,1)-2))","v":0},{"$f":"IF($B$1=\"SIMS\",IF(ISERROR(FIND(F$3,'CFR - XML import'!$A26)),0,VALUE(MID('CFR - XML import'!$A26,15,10))),IF(ISERROR(FIND(F$3,'CFR - XML import'!$A26)),0,VALUE(MID('CFR - XML import'!$A26,11,10))))","v":"00:00:00"},{"$f":"IF(ISERROR(FIND(G$3,'CFR - XML import'!$A26)),0,VALUE(MID('CFR - XML import'!$A26,SEARCH(\">\",'CFR - XML import'!$A26,1)+1,SEARCH(\"/\",'CFR - XML import'!$A26,1)-SEARCH(\">\",'CFR - XML import'!$A26,1)-2)))","v":0},{"$f":"IF(ISERROR(FIND(H$3,'CFR - XML import'!$A26)),0,VALUE(MID('CFR - XML import'!$A26,SEARCH(\">\",'CFR - XML import'!$A26,1)+1,SEARCH(\"/\",'CFR - XML import'!$A26,1)-SEARCH(\">\",'CFR - XML import'!$A26,1)-2)))","v":0},{"$f":"IF(ISERROR(FIND(I$3,'CFR - XML import'!$A26)),0,VALUE(MID('CFR - XML import'!$A26,SEARCH(\">\",'CFR - XML import'!$A26,1)+1,SEARCH(\"/\",'CFR - XML import'!$A26,1)-SEARCH(\">\",'CFR - XML import'!$A26,1)-2)))","v":0},{"$f":"IF(ISERROR(FIND(J$3,'CFR - XML import'!$A26)),0,VALUE(MID('CFR - XML import'!$A26,SEARCH(\">\",'CFR - XML import'!$A26,1)+1,SEARCH(\"/\",'CFR - XML import'!$A26,1)-SEARCH(\">\",'CFR - XML import'!$A26,1)-2)))","v":0},{"$f":"IF(ISERROR(FIND(K$3,'CFR - XML import'!$A26)),0,VALUE(MID('CFR - XML import'!$A26,SEARCH(\">\",'CFR - XML import'!$A26,1)+1,SEARCH(\"/\",'CFR - XML import'!$A26,1)-SEARCH(\">\",'CFR - XML import'!$A26,1)-2)))","v":0},{"$f":"IF(ISERROR(FIND(L$3,'CFR - XML import'!$A26)),0,VALUE(MID('CFR - XML import'!$A26,SEARCH(\">\",'CFR - XML import'!$A26,1)+1,SEARCH(\"/\",'CFR - XML import'!$A26,1)-SEARCH(\">\",'CFR - XML import'!$A26,1)-2)))","v":0},{"$f":"IF(ISERROR(FIND(M$3,'CFR - XML import'!$A26)),0,VALUE(MID('CFR - XML import'!$A26,SEARCH(\">\",'CFR - XML import'!$A26,1)+1,SEARCH(\"/\",'CFR - XML import'!$A26,1)-SEARCH(\">\",'CFR - XML import'!$A26,1)-2)))","v":0},{"$f":"IF(ISERROR(FIND(N$3,'CFR - XML import'!$A26)),0,VALUE(MID('CFR - XML import'!$A26,SEARCH(\">\",'CFR - XML import'!$A26,1)+1,SEARCH(\"/\",'CFR - XML import'!$A26,1)-SEARCH(\">\",'CFR - XML import'!$A26,1)-2)))","v":0},{"$f":"IF(ISERROR(FIND(O$3,'CFR - XML import'!$A26)),0,VALUE(MID('CFR - XML import'!$A26,SEARCH(\">\",'CFR - XML import'!$A26,1)+1,SEARCH(\"/\",'CFR - XML import'!$A26,1)-SEARCH(\">\",'CFR - XML import'!$A26,1)-2)))","v":0},{"$f":"IF(ISERROR(FIND(P$3,'CFR - XML import'!$A26)),0,VALUE(MID('CFR - XML import'!$A26,SEARCH(\">\",'CFR - XML import'!$A26,1)+1,SEARCH(\"/\",'CFR - XML import'!$A26,1)-SEARCH(\">\",'CFR - XML import'!$A26,1)-2)))","v":0},{"$f":"IF(ISERROR(FIND(Q$3,'CFR - XML import'!$A26)),0,VALUE(MID('CFR - XML import'!$A26,SEARCH(\">\",'CFR - XML import'!$A26,1)+1,SEARCH(\"/\",'CFR - XML import'!$A26,1)-SEARCH(\">\",'CFR - XML import'!$A26,1)-2)))","v":0},{"$f":"IF(ISERROR(FIND(R$3,'CFR - XML import'!$A26)),0,VALUE(MID('CFR - XML import'!$A26,SEARCH(\">\",'CFR - XML import'!$A26,1)+1,SEARCH(\"/\",'CFR - XML import'!$A26,1)-SEARCH(\">\",'CFR - XML import'!$A26,1)-2)))","v":0},{"$f":"IF(ISERROR(FIND(S$3,'CFR - XML import'!$A26)),0,VALUE(MID('CFR - XML import'!$A26,SEARCH(\">\",'CFR - XML import'!$A26,1)+1,SEARCH(\"/\",'CFR - XML import'!$A26,1)-SEARCH(\">\",'CFR - XML import'!$A26,1)-2)))","v":0},{"$f":"IF(ISERROR(FIND(T$3,'CFR - XML import'!$A26)),0,VALUE(MID('CFR - XML import'!$A26,SEARCH(\">\",'CFR - XML import'!$A26,1)+1,SEARCH(\"/\",'CFR - XML import'!$A26,1)-SEARCH(\">\",'CFR - XML import'!$A26,1)-2)))","v":0},{"$f":"IF(ISERROR(FIND(U$3,'CFR - XML import'!$A26)),0,VALUE(MID('CFR - XML import'!$A26,SEARCH(\">\",'CFR - XML import'!$A26,1)+1,SEARCH(\"/\",'CFR - XML import'!$A26,1)-SEARCH(\">\",'CFR - XML import'!$A26,1)-2)))","v":0},{"$f":"IF(ISERROR(FIND(V$3,'CFR - XML import'!$A26)),0,VALUE(MID('CFR - XML import'!$A26,SEARCH(\">\",'CFR - XML import'!$A26,1)+1,SEARCH(\"/\",'CFR - XML import'!$A26,1)-SEARCH(\">\",'CFR - XML import'!$A26,1)-2)))","v":0},{"$f":"IF(ISERROR(FIND(W$3,'CFR - XML import'!$A26)),0,VALUE(MID('CFR - XML import'!$A26,SEARCH(\">\",'CFR - XML import'!$A26,1)+1,SEARCH(\"/\",'CFR - XML import'!$A26,1)-SEARCH(\">\",'CFR - XML import'!$A26,1)-2)))","v":0},null,{"$f":"IF(ISERROR(FIND(Y$3,'CFR - XML import'!$A26)),0,VALUE(MID('CFR - XML import'!$A26,SEARCH(\">\",'CFR - XML import'!$A26,1)+1,SEARCH(\"/\",'CFR - XML import'!$A26,1)-SEARCH(\">\",'CFR - XML import'!$A26,1)-2)))","v":0},{"$f":"IF(ISERROR(FIND(Z$3,'CFR - XML import'!$A26)),0,VALUE(MID('CFR - XML import'!$A26,SEARCH(\">\",'CFR - XML import'!$A26,1)+1,SEARCH(\"/\",'CFR - XML import'!$A26,1)-SEARCH(\">\",'CFR - XML import'!$A26,1)-2)))","v":0},{"$f":"IF(ISERROR(FIND(AA$3,'CFR - XML import'!$A26)),0,VALUE(MID('CFR - XML import'!$A26,SEARCH(\">\",'CFR - XML import'!$A26,1)+1,SEARCH(\"/\",'CFR - XML import'!$A26,1)-SEARCH(\">\",'CFR - XML import'!$A26,1)-2)))","v":0},{"$f":"IF(ISERROR(FIND(AB$3,'CFR - XML import'!$A26)),0,VALUE(MID('CFR - XML import'!$A26,SEARCH(\">\",'CFR - XML import'!$A26,1)+1,SEARCH(\"/\",'CFR - XML import'!$A26,1)-SEARCH(\">\",'CFR - XML import'!$A26,1)-2)))","v":0},{"$f":"IF(ISERROR(FIND(AC$3,'CFR - XML import'!$A26)),0,VALUE(MID('CFR - XML import'!$A26,SEARCH(\">\",'CFR - XML import'!$A26,1)+1,SEARCH(\"/\",'CFR - XML import'!$A26,1)-SEARCH(\">\",'CFR - XML import'!$A26,1)-2)))","v":0},{"$f":"IF(ISERROR(FIND(AD$3,'CFR - XML import'!$A26)),0,VALUE(MID('CFR - XML import'!$A26,SEARCH(\">\",'CFR - XML import'!$A26,1)+1,SEARCH(\"/\",'CFR - XML import'!$A26,1)-SEARCH(\">\",'CFR - XML import'!$A26,1)-2)))","v":0},{"$f":"IF(ISERROR(FIND(AE$3,'CFR - XML import'!$A26)),0,VALUE(MID('CFR - XML import'!$A26,SEARCH(\">\",'CFR - XML import'!$A26,1)+1,SEARCH(\"/\",'CFR - XML import'!$A26,1)-SEARCH(\">\",'CFR - XML import'!$A26,1)-2)))","v":0},{"$f":"IF(ISERROR(FIND(AF$3,'CFR - XML import'!$A26)),0,VALUE(MID('CFR - XML import'!$A26,SEARCH(\">\",'CFR - XML import'!$A26,1)+1,SEARCH(\"/\",'CFR - XML import'!$A26,1)-SEARCH(\">\",'CFR - XML import'!$A26,1)-2)))","v":0},{"$f":"IF(ISERROR(FIND(AG$3,'CFR - XML import'!$A26)),0,VALUE(MID('CFR - XML import'!$A26,SEARCH(\">\",'CFR - XML import'!$A26,1)+1,SEARCH(\"/\",'CFR - XML import'!$A26,1)-SEARCH(\">\",'CFR - XML import'!$A26,1)-2)))","v":0},{"$f":"IF(ISERROR(FIND(AH$3,'CFR - XML import'!$A26)),0,VALUE(MID('CFR - XML import'!$A26,SEARCH(\">\",'CFR - XML import'!$A26,1)+1,SEARCH(\"/\",'CFR - XML import'!$A26,1)-SEARCH(\">\",'CFR - XML import'!$A26,1)-2)))","v":0},{"$f":"IF(ISERROR(FIND(AI$3,'CFR - XML import'!$A26)),0,VALUE(MID('CFR - XML import'!$A26,SEARCH(\">\",'CFR - XML import'!$A26,1)+1,SEARCH(\"/\",'CFR - XML import'!$A26,1)-SEARCH(\">\",'CFR - XML import'!$A26,1)-2)))","v":0},{"$f":"IF(ISERROR(FIND(AJ$3,'CFR - XML import'!$A26)),0,VALUE(MID('CFR - XML import'!$A26,SEARCH(\">\",'CFR - XML import'!$A26,1)+1,SEARCH(\"/\",'CFR - XML import'!$A26,1)-SEARCH(\">\",'CFR - XML import'!$A26,1)-2)))","v":0},{"$f":"IF(ISERROR(FIND(AK$3,'CFR - XML import'!$A26)),0,VALUE(MID('CFR - XML import'!$A26,SEARCH(\">\",'CFR - XML import'!$A26,1)+1,SEARCH(\"/\",'CFR - XML import'!$A26,1)-SEARCH(\">\",'CFR - XML import'!$A26,1)-2)))","v":0},{"$f":"IF(ISERROR(FIND(AL$3,'CFR - XML import'!$A26)),0,VALUE(MID('CFR - XML import'!$A26,SEARCH(\">\",'CFR - XML import'!$A26,1)+1,SEARCH(\"/\",'CFR - XML import'!$A26,1)-SEARCH(\">\",'CFR - XML import'!$A26,1)-2)))","v":0},{"$f":"IF(ISERROR(FIND(AM$3,'CFR - XML import'!$A26)),0,VALUE(MID('CFR - XML import'!$A26,SEARCH(\">\",'CFR - XML import'!$A26,1)+1,SEARCH(\"/\",'CFR - XML import'!$A26,1)-SEARCH(\">\",'CFR - XML import'!$A26,1)-2)))","v":0},{"$f":"IF(ISERROR(FIND(AN$3,'CFR - XML import'!$A26)),0,VALUE(MID('CFR - XML import'!$A26,SEARCH(\">\",'CFR - XML import'!$A26,1)+1,SEARCH(\"/\",'CFR - XML import'!$A26,1)-SEARCH(\">\",'CFR - XML import'!$A26,1)-2)))","v":0},{"$f":"IF(ISERROR(FIND(AO$3,'CFR - XML import'!$A26)),0,VALUE(MID('CFR - XML import'!$A26,SEARCH(\">\",'CFR - XML import'!$A26,1)+1,SEARCH(\"/\",'CFR - XML import'!$A26,1)-SEARCH(\">\",'CFR - XML import'!$A26,1)-2)))","v":0},{"$f":"IF(ISERROR(FIND(AP$3,'CFR - XML import'!$A26)),0,VALUE(MID('CFR - XML import'!$A26,SEARCH(\">\",'CFR - XML import'!$A26,1)+1,SEARCH(\"/\",'CFR - XML import'!$A26,1)-SEARCH(\">\",'CFR - XML import'!$A26,1)-2)))","v":0},{"$f":"IF(ISERROR(FIND(AQ$3,'CFR - XML import'!$A26)),0,VALUE(MID('CFR - XML import'!$A26,SEARCH(\">\",'CFR - XML import'!$A26,1)+1,SEARCH(\"/\",'CFR - XML import'!$A26,1)-SEARCH(\">\",'CFR - XML import'!$A26,1)-2)))","v":0},{"$f":"IF(ISERROR(FIND(AR$3,'CFR - XML import'!$A26)),0,VALUE(MID('CFR - XML import'!$A26,SEARCH(\">\",'CFR - XML import'!$A26,1)+1,SEARCH(\"/\",'CFR - XML import'!$A26,1)-SEARCH(\">\",'CFR - XML import'!$A26,1)-2)))","v":0},{"$f":"IF(ISERROR(FIND(AS$3,'CFR - XML import'!$A26)),0,VALUE(MID('CFR - XML import'!$A26,SEARCH(\">\",'CFR - XML import'!$A26,1)+1,SEARCH(\"/\",'CFR - XML import'!$A26,1)-SEARCH(\">\",'CFR - XML import'!$A26,1)-2)))","v":0},{"$f":"IF(ISERROR(FIND(AT$3,'CFR - XML import'!$A26)),0,VALUE(MID('CFR - XML import'!$A26,SEARCH(\">\",'CFR - XML import'!$A26,1)+1,SEARCH(\"/\",'CFR - XML import'!$A26,1)-SEARCH(\">\",'CFR - XML import'!$A26,1)-2)))","v":0},{"$f":"IF(ISERROR(FIND(AU$3,'CFR - XML import'!$A26)),0,VALUE(MID('CFR - XML import'!$A26,SEARCH(\">\",'CFR - XML import'!$A26,1)+1,SEARCH(\"/\",'CFR - XML import'!$A26,1)-SEARCH(\">\",'CFR - XML import'!$A26,1)-2)))","v":0},{"$f":"IF(ISERROR(FIND(AV$3,'CFR - XML import'!$A26)),0,VALUE(MID('CFR - XML import'!$A26,SEARCH(\">\",'CFR - XML import'!$A26,1)+1,SEARCH(\"/\",'CFR - XML import'!$A26,1)-SEARCH(\">\",'CFR - XML import'!$A26,1)-2)))","v":0},{"$f":"IF(ISERROR(FIND(AW$3,'CFR - XML import'!$A26)),0,VALUE(MID('CFR - XML import'!$A26,SEARCH(\">\",'CFR - XML import'!$A26,1)+1,SEARCH(\"/\",'CFR - XML import'!$A26,1)-SEARCH(\">\",'CFR - XML import'!$A26,1)-2)))","v":0},{"$f":"IF(ISERROR(FIND(AX$3,'CFR - XML import'!$A26)),0,VALUE(MID('CFR - XML import'!$A26,SEARCH(\">\",'CFR - XML import'!$A26,1)+1,SEARCH(\"/\",'CFR - XML import'!$A26,1)-SEARCH(\">\",'CFR - XML import'!$A26,1)-2)))","v":0},{"$f":"IF(ISERROR(FIND(AY$3,'CFR - XML import'!$A26)),0,VALUE(MID('CFR - XML import'!$A26,SEARCH(\">\",'CFR - XML import'!$A26,1)+1,SEARCH(\"/\",'CFR - XML import'!$A26,1)-SEARCH(\">\",'CFR - XML import'!$A26,1)-2)))","v":0},{"$f":"IF(ISERROR(FIND(AZ$3,'CFR - XML import'!$A26)),0,VALUE(MID('CFR - XML import'!$A26,SEARCH(\">\",'CFR - XML import'!$A26,1)+1,SEARCH(\"/\",'CFR - XML import'!$A26,1)-SEARCH(\">\",'CFR - XML import'!$A26,1)-2)))","v":0},{"$f":"IF(ISERROR(FIND(BA$3,'CFR - XML import'!$A26)),0,VALUE(MID('CFR - XML import'!$A26,SEARCH(\">\",'CFR - XML import'!$A26,1)+1,SEARCH(\"/\",'CFR - XML import'!$A26,1)-SEARCH(\">\",'CFR - XML import'!$A26,1)-2)))","v":0},{"$f":"IF(ISERROR(FIND(BB$3,'CFR - XML import'!$A26)),0,VALUE(MID('CFR - XML import'!$A26,SEARCH(\">\",'CFR - XML import'!$A26,1)+1,SEARCH(\"/\",'CFR - XML import'!$A26,1)-SEARCH(\">\",'CFR - XML import'!$A26,1)-2)))","v":0},{"$f":"IF(ISERROR(FIND(BC$3,'CFR - XML import'!$A26)),0,VALUE(MID('CFR - XML import'!$A26,SEARCH(\">\",'CFR - XML import'!$A26,1)+1,SEARCH(\"/\",'CFR - XML import'!$A26,1)-SEARCH(\">\",'CFR - XML import'!$A26,1)-2)))","v":0},{"$f":"IF(ISERROR(FIND(BD$3,'CFR - XML import'!$A26)),0,VALUE(MID('CFR - XML import'!$A26,SEARCH(\">\",'CFR - XML import'!$A26,1)+1,SEARCH(\"/\",'CFR - XML import'!$A26,1)-SEARCH(\">\",'CFR - XML import'!$A26,1)-2)))","v":0},{"$f":"IF(ISERROR(FIND(BE$3,'CFR - XML import'!$A26)),0,VALUE(MID('CFR - XML import'!$A26,SEARCH(\">\",'CFR - XML import'!$A26,1)+1,SEARCH(\"/\",'CFR - XML import'!$A26,1)-SEARCH(\">\",'CFR - XML import'!$A26,1)-2)))","v":0},{"$f":"IF(ISERROR(FIND(BF$3,'CFR - XML import'!$A26)),0,VALUE(MID('CFR - XML import'!$A26,SEARCH(\">\",'CFR - XML import'!$A26,1)+1,SEARCH(\"/\",'CFR - XML import'!$A26,1)-SEARCH(\">\",'CFR - XML import'!$A26,1)-2)))","v":0},{"$f":"IF(ISERROR(FIND(BG$3,'CFR - XML import'!$A26)),0,VALUE(MID('CFR - XML import'!$A26,SEARCH(\">\",'CFR - XML import'!$A26,1)+1,SEARCH(\"/\",'CFR - XML import'!$A26,1)-SEARCH(\">\",'CFR - XML import'!$A26,1)-2)))","v":0},{"$f":"IF(ISERROR(FIND(BH$3,'CFR - XML import'!$A26)),0,VALUE(MID('CFR - XML import'!$A26,SEARCH(\">\",'CFR - XML import'!$A26,1)+1,SEARCH(\"/\",'CFR - XML import'!$A26,1)-SEARCH(\">\",'CFR - XML import'!$A26,1)-2)))","v":0},{"$f":"IF(ISERROR(FIND(BI$3,'CFR - XML import'!$A26)),0,VALUE(MID('CFR - XML import'!$A26,SEARCH(\">\",'CFR - XML import'!$A26,1)+1,SEARCH(\"/\",'CFR - XML import'!$A26,1)-SEARCH(\">\",'CFR - XML import'!$A26,1)-2)))","v":0},{"$f":"IF(ISERROR(FIND(BJ$3,'CFR - XML import'!$A26)),0,VALUE(MID('CFR - XML import'!$A26,SEARCH(\">\",'CFR - XML import'!$A26,1)+1,SEARCH(\"/\",'CFR - XML import'!$A26,1)-SEARCH(\">\",'CFR - XML import'!$A26,1)-2)))","v":0},{"$f":"IF(ISERROR(FIND(BK$3,'CFR - XML import'!$A26)),0,VALUE(MID('CFR - XML import'!$A26,SEARCH(\">\",'CFR - XML import'!$A26,1)+1,SEARCH(\"/\",'CFR - XML import'!$A26,1)-SEARCH(\">\",'CFR - XML import'!$A26,1)-2)))","v":0},{"$f":"IF(ISERROR(FIND(BL$3,'CFR - XML import'!$A26)),0,VALUE(MID('CFR - XML import'!$A26,SEARCH(\">\",'CFR - XML import'!$A26,1)+1,SEARCH(\"/\",'CFR - XML import'!$A26,1)-SEARCH(\">\",'CFR - XML import'!$A26,1)-2)))","v":0},{"$f":"IF(ISERROR(FIND(BM$3,'CFR - XML import'!$A26)),0,VALUE(MID('CFR - XML import'!$A26,SEARCH(\">\",'CFR - XML import'!$A26,1)+1,SEARCH(\"/\",'CFR - XML import'!$A26,1)-SEARCH(\">\",'CFR - XML import'!$A26,1)-2)))","v":0},{"$f":"IF(ISERROR(FIND(BN$3,'CFR - XML import'!$A26)),0,VALUE(MID('CFR - XML import'!$A26,SEARCH(\">\",'CFR - XML import'!$A26,1)+1,SEARCH(\"/\",'CFR - XML import'!$A26,1)-SEARCH(\">\",'CFR - XML import'!$A26,1)-2)))","v":0},{"$f":"IF(ISERROR(FIND(BO$3,'CFR - XML import'!$A26)),0,VALUE(MID('CFR - XML import'!$A26,SEARCH(\">\",'CFR - XML import'!$A26,1)+1,SEARCH(\"/\",'CFR - XML import'!$A26,1)-SEARCH(\">\",'CFR - XML import'!$A26,1)-2)))","v":0},{"$f":"IF(ISERROR(FIND(BP$3,'CFR - XML import'!$A26)),0,VALUE(MID('CFR - XML import'!$A26,SEARCH(\">\",'CFR - XML import'!$A26,1)+1,SEARCH(\"/\",'CFR - XML import'!$A26,1)-SEARCH(\">\",'CFR - XML import'!$A26,1)-2)))","v":0},{"$f":"IF(ISERROR(FIND(BQ$3,'CFR - XML import'!$A26)),0,VALUE(MID('CFR - XML import'!$A26,SEARCH(\">\",'CFR - XML import'!$A26,1)+1,SEARCH(\"/\",'CFR - XML import'!$A26,1)-SEARCH(\">\",'CFR - XML import'!$A26,1)-2)))","v":0},{"$f":"IF(ISERROR(FIND(BR$3,'CFR - XML import'!$A26)),0,VALUE(MID('CFR - XML import'!$A26,SEARCH(\">\",'CFR - XML import'!$A26,1)+1,SEARCH(\"/\",'CFR - XML import'!$A26,1)-SEARCH(\">\",'CFR - XML import'!$A26,1)-2)))","v":0},{"$f":"IF(ISERROR(FIND(BS$3,'CFR - XML import'!$A26)),0,VALUE(MID('CFR - XML import'!$A26,SEARCH(\">\",'CFR - XML import'!$A26,1)+1,SEARCH(\"/\",'CFR - XML import'!$A26,1)-SEARCH(\">\",'CFR - XML import'!$A26,1)-2)))","v":0},{"$f":"IF(ISERROR(FIND(BT$3,'CFR - XML import'!$A26)),0,VALUE(MID('CFR - XML import'!$A26,SEARCH(\">\",'CFR - XML import'!$A26,1)+1,SEARCH(\"/\",'CFR - XML import'!$A26,1)-SEARCH(\">\",'CFR - XML import'!$A26,1)-2)))","v":0},{"$f":"IF(ISERROR(FIND(BU$3,'CFR - XML import'!$A26)),0,VALUE(MID('CFR - XML import'!$A26,SEARCH(\">\",'CFR - XML import'!$A26,1)+1,SEARCH(\"/\",'CFR - XML import'!$A26,1)-SEARCH(\">\",'CFR - XML import'!$A26,1)-2)))","v":0},{"$f":"IF(ISERROR(FIND(BV$3,'CFR - XML import'!$A26)),0,VALUE(MID('CFR - XML import'!$A26,SEARCH(\">\",'CFR - XML import'!$A26,1)+1,SEARCH(\"/\",'CFR - XML import'!$A26,1)-SEARCH(\">\",'CFR - XML import'!$A26,1)-2)))","v":0},{"$f":"IF(ISERROR(FIND(BW$3,'CFR - XML import'!$A26)),0,VALUE(MID('CFR - XML import'!$A26,SEARCH(\">\",'CFR - XML import'!$A26,1)+1,SEARCH(\"/\",'CFR - XML import'!$A26,1)-SEARCH(\">\",'CFR - XML import'!$A26,1)-2)))","v":0},{"$f":"IF(ISERROR(FIND(BX$3,'CFR - XML import'!$A26)),0,VALUE(MID('CFR - XML import'!$A26,SEARCH(\">\",'CFR - XML import'!$A26,1)+1,SEARCH(\"/\",'CFR - XML import'!$A26,1)-SEARCH(\">\",'CFR - XML import'!$A26,1)-2)))","v":0},{"$f":"IF(ISERROR(FIND(BY$3,'CFR - XML import'!$A26)),0,VALUE(MID('CFR - XML import'!$A26,SEARCH(\">\",'CFR - XML import'!$A26,1)+1,SEARCH(\"/\",'CFR - XML import'!$A26,1)-SEARCH(\">\",'CFR - XML import'!$A26,1)-2)))","v":0},{"$f":"IF(ISERROR(FIND(BZ$3,'CFR - XML import'!$A26)),0,VALUE(MID('CFR - XML import'!$A26,SEARCH(\">\",'CFR - XML import'!$A26,1)+1,SEARCH(\"/\",'CFR - XML import'!$A26,1)-SEARCH(\">\",'CFR - XML import'!$A26,1)-2)))","v":0},null,null,null,null,null,null,{"$f":"IF(ISERROR(IF(MID('CFR - XML import'!$A26,LEN($CF$4)+1,LEN('CFR - XML import'!$A26)-(2*LEN($CF$4)+1))=\"RMMS\",1,IF(MID('CFR - XML import'!$A26,LEN(\"    <InputSystem>\")+1,LEN('CFR - XML import'!$A26)-(LEN(\"    <InputSystem>\")+LEN($CF$4)+1))=\"SIMS\",2,0))),0,IF(MID('CFR - XML import'!$A26,LEN($CF$4)+1,LEN('CFR - XML import'!$A26)-(2*LEN($CF$4)+1))=\"RMMS\",1,IF(MID('CFR - XML import'!$A26,LEN(\"    <InputSystem>\")+1,LEN('CFR - XML import'!$A26)-(LEN(\"    <InputSystem>\")+LEN($CF$4)+1))=\"SIMS\",2,0)))","v":0},{"$f":"IF(ISERROR(FIND(CH$3,'CFR - XML import'!$A26)),0,MID('CFR - XML import'!$A26,SEARCH(\">\",'CFR - XML import'!$A26,1)+1,SEARCH(\"/\",'CFR - XML import'!$A26,1)-SEARCH(\">\",'CFR - XML import'!$A26,1)-2))","v":0},{"$f":"IF(ISERROR(FIND(CI$3,'CFR - XML import'!$A26)),0,MID('CFR - XML import'!$A26,SEARCH(\">\",'CFR - XML import'!$A26,1)+1,SEARCH(\"/\",'CFR - XML import'!$A26,1)-SEARCH(\">\",'CFR - XML import'!$A26,1)-2))","v":0},{"$f":"IF(ISERROR(FIND(CJ$3,'CFR - XML import'!$A26)),0,MID('CFR - XML import'!$A26,SEARCH(\">\",'CFR - XML import'!$A26,1)+1,SEARCH(\"/\",'CFR - XML import'!$A26,1)-SEARCH(\">\",'CFR - XML import'!$A26,1)-2))","v":0},{"$f":"IF(ISERROR(FIND(CK$3,'CFR - XML import'!$A26)),0,MID('CFR - XML import'!$A26,SEARCH(\">\",'CFR - XML import'!$A26,1)+1,SEARCH(\"/\",'CFR - XML import'!$A26,1)-SEARCH(\">\",'CFR - XML import'!$A26,1)-2))","v":0},{"$f":"IF(ISERROR(FIND(CL$3,'CFR - XML import'!$A26)),0,MID('CFR - XML import'!$A26,SEARCH(\">\",'CFR - XML import'!$A26,1)+1,SEARCH(\"/\",'CFR - XML import'!$A26,1)-SEARCH(\">\",'CFR - XML import'!$A26,1)-2))","v":0}]
[{"$f":"IF(AND('CFR - XML import'!A27<>\"\",LEFT('CFR - XML import'!A27,1)<>\"<\",LEFT('CFR - XML import'!A27,3)<>\"  <\",LEFT('CFR - XML import'!A27,5)<>\"    <\",LEFT('CFR - XML import'!A27,7)<>\"      <\",LEFT('CFR - XML import'!A27,9)<>\"        <\",$B$1=\"SIMS\"),'CFR - XML import'!A27,IF(AND(LEFT('CFR - XML import'!A27,9)=\"<Details>\",$B$1=\"RM\"),'CFR - XML import'!A27,\"\"))","v":""},{"$f":"IF(ISERROR(FIND(B$3,'CFR - XML import'!$A27)),0,VALUE(MID('CFR - XML import'!$A27,SEARCH(\">\",'CFR - XML import'!$A27,1)+1,SEARCH(\"/\",'CFR - XML import'!$A27,1)-SEARCH(\">\",'CFR - XML import'!$A27,1)-2)))","v":0},null,{"$f":"IF(ISERROR(FIND(D$3,'CFR - XML import'!$A27)),0,MID('CFR - XML import'!$A27,SEARCH(\">\",'CFR - XML import'!$A27,1)+1,SEARCH(\"/\",'CFR - XML import'!$A27,1)-SEARCH(\">\",'CFR - XML import'!$A27,1)-2))","v":0},{"$f":"IF(ISERROR(FIND(E$3,'CFR - XML import'!$A27)),0,MID('CFR - XML import'!$A27,SEARCH(\">\",'CFR - XML import'!$A27,1)+1,SEARCH(\"/\",'CFR - XML import'!$A27,1)-SEARCH(\">\",'CFR - XML import'!$A27,1)-2))","v":0},{"$f":"IF($B$1=\"SIMS\",IF(ISERROR(FIND(F$3,'CFR - XML import'!$A27)),0,VALUE(MID('CFR - XML import'!$A27,15,10))),IF(ISERROR(FIND(F$3,'CFR - XML import'!$A27)),0,VALUE(MID('CFR - XML import'!$A27,11,10))))","v":"00:00:00"},{"$f":"IF(ISERROR(FIND(G$3,'CFR - XML import'!$A27)),0,VALUE(MID('CFR - XML import'!$A27,SEARCH(\">\",'CFR - XML import'!$A27,1)+1,SEARCH(\"/\",'CFR - XML import'!$A27,1)-SEARCH(\">\",'CFR - XML import'!$A27,1)-2)))","v":0},{"$f":"IF(ISERROR(FIND(H$3,'CFR - XML import'!$A27)),0,VALUE(MID('CFR - XML import'!$A27,SEARCH(\">\",'CFR - XML import'!$A27,1)+1,SEARCH(\"/\",'CFR - XML import'!$A27,1)-SEARCH(\">\",'CFR - XML import'!$A27,1)-2)))","v":0},{"$f":"IF(ISERROR(FIND(I$3,'CFR - XML import'!$A27)),0,VALUE(MID('CFR - XML import'!$A27,SEARCH(\">\",'CFR - XML import'!$A27,1)+1,SEARCH(\"/\",'CFR - XML import'!$A27,1)-SEARCH(\">\",'CFR - XML import'!$A27,1)-2)))","v":0},{"$f":"IF(ISERROR(FIND(J$3,'CFR - XML import'!$A27)),0,VALUE(MID('CFR - XML import'!$A27,SEARCH(\">\",'CFR - XML import'!$A27,1)+1,SEARCH(\"/\",'CFR - XML import'!$A27,1)-SEARCH(\">\",'CFR - XML import'!$A27,1)-2)))","v":0},{"$f":"IF(ISERROR(FIND(K$3,'CFR - XML import'!$A27)),0,VALUE(MID('CFR - XML import'!$A27,SEARCH(\">\",'CFR - XML import'!$A27,1)+1,SEARCH(\"/\",'CFR - XML import'!$A27,1)-SEARCH(\">\",'CFR - XML import'!$A27,1)-2)))","v":0},{"$f":"IF(ISERROR(FIND(L$3,'CFR - XML import'!$A27)),0,VALUE(MID('CFR - XML import'!$A27,SEARCH(\">\",'CFR - XML import'!$A27,1)+1,SEARCH(\"/\",'CFR - XML import'!$A27,1)-SEARCH(\">\",'CFR - XML import'!$A27,1)-2)))","v":0},{"$f":"IF(ISERROR(FIND(M$3,'CFR - XML import'!$A27)),0,VALUE(MID('CFR - XML import'!$A27,SEARCH(\">\",'CFR - XML import'!$A27,1)+1,SEARCH(\"/\",'CFR - XML import'!$A27,1)-SEARCH(\">\",'CFR - XML import'!$A27,1)-2)))","v":0},{"$f":"IF(ISERROR(FIND(N$3,'CFR - XML import'!$A27)),0,VALUE(MID('CFR - XML import'!$A27,SEARCH(\">\",'CFR - XML import'!$A27,1)+1,SEARCH(\"/\",'CFR - XML import'!$A27,1)-SEARCH(\">\",'CFR - XML import'!$A27,1)-2)))","v":0},{"$f":"IF(ISERROR(FIND(O$3,'CFR - XML import'!$A27)),0,VALUE(MID('CFR - XML import'!$A27,SEARCH(\">\",'CFR - XML import'!$A27,1)+1,SEARCH(\"/\",'CFR - XML import'!$A27,1)-SEARCH(\">\",'CFR - XML import'!$A27,1)-2)))","v":0},{"$f":"IF(ISERROR(FIND(P$3,'CFR - XML import'!$A27)),0,VALUE(MID('CFR - XML import'!$A27,SEARCH(\">\",'CFR - XML import'!$A27,1)+1,SEARCH(\"/\",'CFR - XML import'!$A27,1)-SEARCH(\">\",'CFR - XML import'!$A27,1)-2)))","v":0},{"$f":"IF(ISERROR(FIND(Q$3,'CFR - XML import'!$A27)),0,VALUE(MID('CFR - XML import'!$A27,SEARCH(\">\",'CFR - XML import'!$A27,1)+1,SEARCH(\"/\",'CFR - XML import'!$A27,1)-SEARCH(\">\",'CFR - XML import'!$A27,1)-2)))","v":0},{"$f":"IF(ISERROR(FIND(R$3,'CFR - XML import'!$A27)),0,VALUE(MID('CFR - XML import'!$A27,SEARCH(\">\",'CFR - XML import'!$A27,1)+1,SEARCH(\"/\",'CFR - XML import'!$A27,1)-SEARCH(\">\",'CFR - XML import'!$A27,1)-2)))","v":0},{"$f":"IF(ISERROR(FIND(S$3,'CFR - XML import'!$A27)),0,VALUE(MID('CFR - XML import'!$A27,SEARCH(\">\",'CFR - XML import'!$A27,1)+1,SEARCH(\"/\",'CFR - XML import'!$A27,1)-SEARCH(\">\",'CFR - XML import'!$A27,1)-2)))","v":0},{"$f":"IF(ISERROR(FIND(T$3,'CFR - XML import'!$A27)),0,VALUE(MID('CFR - XML import'!$A27,SEARCH(\">\",'CFR - XML import'!$A27,1)+1,SEARCH(\"/\",'CFR - XML import'!$A27,1)-SEARCH(\">\",'CFR - XML import'!$A27,1)-2)))","v":0},{"$f":"IF(ISERROR(FIND(U$3,'CFR - XML import'!$A27)),0,VALUE(MID('CFR - XML import'!$A27,SEARCH(\">\",'CFR - XML import'!$A27,1)+1,SEARCH(\"/\",'CFR - XML import'!$A27,1)-SEARCH(\">\",'CFR - XML import'!$A27,1)-2)))","v":0},{"$f":"IF(ISERROR(FIND(V$3,'CFR - XML import'!$A27)),0,VALUE(MID('CFR - XML import'!$A27,SEARCH(\">\",'CFR - XML import'!$A27,1)+1,SEARCH(\"/\",'CFR - XML import'!$A27,1)-SEARCH(\">\",'CFR - XML import'!$A27,1)-2)))","v":0},{"$f":"IF(ISERROR(FIND(W$3,'CFR - XML import'!$A27)),0,VALUE(MID('CFR - XML import'!$A27,SEARCH(\">\",'CFR - XML import'!$A27,1)+1,SEARCH(\"/\",'CFR - XML import'!$A27,1)-SEARCH(\">\",'CFR - XML import'!$A27,1)-2)))","v":0},null,{"$f":"IF(ISERROR(FIND(Y$3,'CFR - XML import'!$A27)),0,VALUE(MID('CFR - XML import'!$A27,SEARCH(\">\",'CFR - XML import'!$A27,1)+1,SEARCH(\"/\",'CFR - XML import'!$A27,1)-SEARCH(\">\",'CFR - XML import'!$A27,1)-2)))","v":0},{"$f":"IF(ISERROR(FIND(Z$3,'CFR - XML import'!$A27)),0,VALUE(MID('CFR - XML import'!$A27,SEARCH(\">\",'CFR - XML import'!$A27,1)+1,SEARCH(\"/\",'CFR - XML import'!$A27,1)-SEARCH(\">\",'CFR - XML import'!$A27,1)-2)))","v":0},{"$f":"IF(ISERROR(FIND(AA$3,'CFR - XML import'!$A27)),0,VALUE(MID('CFR - XML import'!$A27,SEARCH(\">\",'CFR - XML import'!$A27,1)+1,SEARCH(\"/\",'CFR - XML import'!$A27,1)-SEARCH(\">\",'CFR - XML import'!$A27,1)-2)))","v":0},{"$f":"IF(ISERROR(FIND(AB$3,'CFR - XML import'!$A27)),0,VALUE(MID('CFR - XML import'!$A27,SEARCH(\">\",'CFR - XML import'!$A27,1)+1,SEARCH(\"/\",'CFR - XML import'!$A27,1)-SEARCH(\">\",'CFR - XML import'!$A27,1)-2)))","v":0},{"$f":"IF(ISERROR(FIND(AC$3,'CFR - XML import'!$A27)),0,VALUE(MID('CFR - XML import'!$A27,SEARCH(\">\",'CFR - XML import'!$A27,1)+1,SEARCH(\"/\",'CFR - XML import'!$A27,1)-SEARCH(\">\",'CFR - XML import'!$A27,1)-2)))","v":0},{"$f":"IF(ISERROR(FIND(AD$3,'CFR - XML import'!$A27)),0,VALUE(MID('CFR - XML import'!$A27,SEARCH(\">\",'CFR - XML import'!$A27,1)+1,SEARCH(\"/\",'CFR - XML import'!$A27,1)-SEARCH(\">\",'CFR - XML import'!$A27,1)-2)))","v":0},{"$f":"IF(ISERROR(FIND(AE$3,'CFR - XML import'!$A27)),0,VALUE(MID('CFR - XML import'!$A27,SEARCH(\">\",'CFR - XML import'!$A27,1)+1,SEARCH(\"/\",'CFR - XML import'!$A27,1)-SEARCH(\">\",'CFR - XML import'!$A27,1)-2)))","v":0},{"$f":"IF(ISERROR(FIND(AF$3,'CFR - XML import'!$A27)),0,VALUE(MID('CFR - XML import'!$A27,SEARCH(\">\",'CFR - XML import'!$A27,1)+1,SEARCH(\"/\",'CFR - XML import'!$A27,1)-SEARCH(\">\",'CFR - XML import'!$A27,1)-2)))","v":0},{"$f":"IF(ISERROR(FIND(AG$3,'CFR - XML import'!$A27)),0,VALUE(MID('CFR - XML import'!$A27,SEARCH(\">\",'CFR - XML import'!$A27,1)+1,SEARCH(\"/\",'CFR - XML import'!$A27,1)-SEARCH(\">\",'CFR - XML import'!$A27,1)-2)))","v":0},{"$f":"IF(ISERROR(FIND(AH$3,'CFR - XML import'!$A27)),0,VALUE(MID('CFR - XML import'!$A27,SEARCH(\">\",'CFR - XML import'!$A27,1)+1,SEARCH(\"/\",'CFR - XML import'!$A27,1)-SEARCH(\">\",'CFR - XML import'!$A27,1)-2)))","v":0},{"$f":"IF(ISERROR(FIND(AI$3,'CFR - XML import'!$A27)),0,VALUE(MID('CFR - XML import'!$A27,SEARCH(\">\",'CFR - XML import'!$A27,1)+1,SEARCH(\"/\",'CFR - XML import'!$A27,1)-SEARCH(\">\",'CFR - XML import'!$A27,1)-2)))","v":0},{"$f":"IF(ISERROR(FIND(AJ$3,'CFR - XML import'!$A27)),0,VALUE(MID('CFR - XML import'!$A27,SEARCH(\">\",'CFR - XML import'!$A27,1)+1,SEARCH(\"/\",'CFR - XML import'!$A27,1)-SEARCH(\">\",'CFR - XML import'!$A27,1)-2)))","v":0},{"$f":"IF(ISERROR(FIND(AK$3,'CFR - XML import'!$A27)),0,VALUE(MID('CFR - XML import'!$A27,SEARCH(\">\",'CFR - XML import'!$A27,1)+1,SEARCH(\"/\",'CFR - XML import'!$A27,1)-SEARCH(\">\",'CFR - XML import'!$A27,1)-2)))","v":0},{"$f":"IF(ISERROR(FIND(AL$3,'CFR - XML import'!$A27)),0,VALUE(MID('CFR - XML import'!$A27,SEARCH(\">\",'CFR - XML import'!$A27,1)+1,SEARCH(\"/\",'CFR - XML import'!$A27,1)-SEARCH(\">\",'CFR - XML import'!$A27,1)-2)))","v":0},{"$f":"IF(ISERROR(FIND(AM$3,'CFR - XML import'!$A27)),0,VALUE(MID('CFR - XML import'!$A27,SEARCH(\">\",'CFR - XML import'!$A27,1)+1,SEARCH(\"/\",'CFR - XML import'!$A27,1)-SEARCH(\">\",'CFR - XML import'!$A27,1)-2)))","v":0},{"$f":"IF(ISERROR(FIND(AN$3,'CFR - XML import'!$A27)),0,VALUE(MID('CFR - XML import'!$A27,SEARCH(\">\",'CFR - XML import'!$A27,1)+1,SEARCH(\"/\",'CFR - XML import'!$A27,1)-SEARCH(\">\",'CFR - XML import'!$A27,1)-2)))","v":0},{"$f":"IF(ISERROR(FIND(AO$3,'CFR - XML import'!$A27)),0,VALUE(MID('CFR - XML import'!$A27,SEARCH(\">\",'CFR - XML import'!$A27,1)+1,SEARCH(\"/\",'CFR - XML import'!$A27,1)-SEARCH(\">\",'CFR - XML import'!$A27,1)-2)))","v":0},{"$f":"IF(ISERROR(FIND(AP$3,'CFR - XML import'!$A27)),0,VALUE(MID('CFR - XML import'!$A27,SEARCH(\">\",'CFR - XML import'!$A27,1)+1,SEARCH(\"/\",'CFR - XML import'!$A27,1)-SEARCH(\">\",'CFR - XML import'!$A27,1)-2)))","v":0},{"$f":"IF(ISERROR(FIND(AQ$3,'CFR - XML import'!$A27)),0,VALUE(MID('CFR - XML import'!$A27,SEARCH(\">\",'CFR - XML import'!$A27,1)+1,SEARCH(\"/\",'CFR - XML import'!$A27,1)-SEARCH(\">\",'CFR - XML import'!$A27,1)-2)))","v":0},{"$f":"IF(ISERROR(FIND(AR$3,'CFR - XML import'!$A27)),0,VALUE(MID('CFR - XML import'!$A27,SEARCH(\">\",'CFR - XML import'!$A27,1)+1,SEARCH(\"/\",'CFR - XML import'!$A27,1)-SEARCH(\">\",'CFR - XML import'!$A27,1)-2)))","v":0},{"$f":"IF(ISERROR(FIND(AS$3,'CFR - XML import'!$A27)),0,VALUE(MID('CFR - XML import'!$A27,SEARCH(\">\",'CFR - XML import'!$A27,1)+1,SEARCH(\"/\",'CFR - XML import'!$A27,1)-SEARCH(\">\",'CFR - XML import'!$A27,1)-2)))","v":0},{"$f":"IF(ISERROR(FIND(AT$3,'CFR - XML import'!$A27)),0,VALUE(MID('CFR - XML import'!$A27,SEARCH(\">\",'CFR - XML import'!$A27,1)+1,SEARCH(\"/\",'CFR - XML import'!$A27,1)-SEARCH(\">\",'CFR - XML import'!$A27,1)-2)))","v":0},{"$f":"IF(ISERROR(FIND(AU$3,'CFR - XML import'!$A27)),0,VALUE(MID('CFR - XML import'!$A27,SEARCH(\">\",'CFR - XML import'!$A27,1)+1,SEARCH(\"/\",'CFR - XML import'!$A27,1)-SEARCH(\">\",'CFR - XML import'!$A27,1)-2)))","v":0},{"$f":"IF(ISERROR(FIND(AV$3,'CFR - XML import'!$A27)),0,VALUE(MID('CFR - XML import'!$A27,SEARCH(\">\",'CFR - XML import'!$A27,1)+1,SEARCH(\"/\",'CFR - XML import'!$A27,1)-SEARCH(\">\",'CFR - XML import'!$A27,1)-2)))","v":0},{"$f":"IF(ISERROR(FIND(AW$3,'CFR - XML import'!$A27)),0,VALUE(MID('CFR - XML import'!$A27,SEARCH(\">\",'CFR - XML import'!$A27,1)+1,SEARCH(\"/\",'CFR - XML import'!$A27,1)-SEARCH(\">\",'CFR - XML import'!$A27,1)-2)))","v":0},{"$f":"IF(ISERROR(FIND(AX$3,'CFR - XML import'!$A27)),0,VALUE(MID('CFR - XML import'!$A27,SEARCH(\">\",'CFR - XML import'!$A27,1)+1,SEARCH(\"/\",'CFR - XML import'!$A27,1)-SEARCH(\">\",'CFR - XML import'!$A27,1)-2)))","v":0},{"$f":"IF(ISERROR(FIND(AY$3,'CFR - XML import'!$A27)),0,VALUE(MID('CFR - XML import'!$A27,SEARCH(\">\",'CFR - XML import'!$A27,1)+1,SEARCH(\"/\",'CFR - XML import'!$A27,1)-SEARCH(\">\",'CFR - XML import'!$A27,1)-2)))","v":0},{"$f":"IF(ISERROR(FIND(AZ$3,'CFR - XML import'!$A27)),0,VALUE(MID('CFR - XML import'!$A27,SEARCH(\">\",'CFR - XML import'!$A27,1)+1,SEARCH(\"/\",'CFR - XML import'!$A27,1)-SEARCH(\">\",'CFR - XML import'!$A27,1)-2)))","v":0},{"$f":"IF(ISERROR(FIND(BA$3,'CFR - XML import'!$A27)),0,VALUE(MID('CFR - XML import'!$A27,SEARCH(\">\",'CFR - XML import'!$A27,1)+1,SEARCH(\"/\",'CFR - XML import'!$A27,1)-SEARCH(\">\",'CFR - XML import'!$A27,1)-2)))","v":0},{"$f":"IF(ISERROR(FIND(BB$3,'CFR - XML import'!$A27)),0,VALUE(MID('CFR - XML import'!$A27,SEARCH(\">\",'CFR - XML import'!$A27,1)+1,SEARCH(\"/\",'CFR - XML import'!$A27,1)-SEARCH(\">\",'CFR - XML import'!$A27,1)-2)))","v":0},{"$f":"IF(ISERROR(FIND(BC$3,'CFR - XML import'!$A27)),0,VALUE(MID('CFR - XML import'!$A27,SEARCH(\">\",'CFR - XML import'!$A27,1)+1,SEARCH(\"/\",'CFR - XML import'!$A27,1)-SEARCH(\">\",'CFR - XML import'!$A27,1)-2)))","v":0},{"$f":"IF(ISERROR(FIND(BD$3,'CFR - XML import'!$A27)),0,VALUE(MID('CFR - XML import'!$A27,SEARCH(\">\",'CFR - XML import'!$A27,1)+1,SEARCH(\"/\",'CFR - XML import'!$A27,1)-SEARCH(\">\",'CFR - XML import'!$A27,1)-2)))","v":0},{"$f":"IF(ISERROR(FIND(BE$3,'CFR - XML import'!$A27)),0,VALUE(MID('CFR - XML import'!$A27,SEARCH(\">\",'CFR - XML import'!$A27,1)+1,SEARCH(\"/\",'CFR - XML import'!$A27,1)-SEARCH(\">\",'CFR - XML import'!$A27,1)-2)))","v":0},{"$f":"IF(ISERROR(FIND(BF$3,'CFR - XML import'!$A27)),0,VALUE(MID('CFR - XML import'!$A27,SEARCH(\">\",'CFR - XML import'!$A27,1)+1,SEARCH(\"/\",'CFR - XML import'!$A27,1)-SEARCH(\">\",'CFR - XML import'!$A27,1)-2)))","v":0},{"$f":"IF(ISERROR(FIND(BG$3,'CFR - XML import'!$A27)),0,VALUE(MID('CFR - XML import'!$A27,SEARCH(\">\",'CFR - XML import'!$A27,1)+1,SEARCH(\"/\",'CFR - XML import'!$A27,1)-SEARCH(\">\",'CFR - XML import'!$A27,1)-2)))","v":0},{"$f":"IF(ISERROR(FIND(BH$3,'CFR - XML import'!$A27)),0,VALUE(MID('CFR - XML import'!$A27,SEARCH(\">\",'CFR - XML import'!$A27,1)+1,SEARCH(\"/\",'CFR - XML import'!$A27,1)-SEARCH(\">\",'CFR - XML import'!$A27,1)-2)))","v":0},{"$f":"IF(ISERROR(FIND(BI$3,'CFR - XML import'!$A27)),0,VALUE(MID('CFR - XML import'!$A27,SEARCH(\">\",'CFR - XML import'!$A27,1)+1,SEARCH(\"/\",'CFR - XML import'!$A27,1)-SEARCH(\">\",'CFR - XML import'!$A27,1)-2)))","v":0},{"$f":"IF(ISERROR(FIND(BJ$3,'CFR - XML import'!$A27)),0,VALUE(MID('CFR - XML import'!$A27,SEARCH(\">\",'CFR - XML import'!$A27,1)+1,SEARCH(\"/\",'CFR - XML import'!$A27,1)-SEARCH(\">\",'CFR - XML import'!$A27,1)-2)))","v":0},{"$f":"IF(ISERROR(FIND(BK$3,'CFR - XML import'!$A27)),0,VALUE(MID('CFR - XML import'!$A27,SEARCH(\">\",'CFR - XML import'!$A27,1)+1,SEARCH(\"/\",'CFR - XML import'!$A27,1)-SEARCH(\">\",'CFR - XML import'!$A27,1)-2)))","v":0},{"$f":"IF(ISERROR(FIND(BL$3,'CFR - XML import'!$A27)),0,VALUE(MID('CFR - XML import'!$A27,SEARCH(\">\",'CFR - XML import'!$A27,1)+1,SEARCH(\"/\",'CFR - XML import'!$A27,1)-SEARCH(\">\",'CFR - XML import'!$A27,1)-2)))","v":0},{"$f":"IF(ISERROR(FIND(BM$3,'CFR - XML import'!$A27)),0,VALUE(MID('CFR - XML import'!$A27,SEARCH(\">\",'CFR - XML import'!$A27,1)+1,SEARCH(\"/\",'CFR - XML import'!$A27,1)-SEARCH(\">\",'CFR - XML import'!$A27,1)-2)))","v":0},{"$f":"IF(ISERROR(FIND(BN$3,'CFR - XML import'!$A27)),0,VALUE(MID('CFR - XML import'!$A27,SEARCH(\">\",'CFR - XML import'!$A27,1)+1,SEARCH(\"/\",'CFR - XML import'!$A27,1)-SEARCH(\">\",'CFR - XML import'!$A27,1)-2)))","v":0},{"$f":"IF(ISERROR(FIND(BO$3,'CFR - XML import'!$A27)),0,VALUE(MID('CFR - XML import'!$A27,SEARCH(\">\",'CFR - XML import'!$A27,1)+1,SEARCH(\"/\",'CFR - XML import'!$A27,1)-SEARCH(\">\",'CFR - XML import'!$A27,1)-2)))","v":0},{"$f":"IF(ISERROR(FIND(BP$3,'CFR - XML import'!$A27)),0,VALUE(MID('CFR - XML import'!$A27,SEARCH(\">\",'CFR - XML import'!$A27,1)+1,SEARCH(\"/\",'CFR - XML import'!$A27,1)-SEARCH(\">\",'CFR - XML import'!$A27,1)-2)))","v":0},{"$f":"IF(ISERROR(FIND(BQ$3,'CFR - XML import'!$A27)),0,VALUE(MID('CFR - XML import'!$A27,SEARCH(\">\",'CFR - XML import'!$A27,1)+1,SEARCH(\"/\",'CFR - XML import'!$A27,1)-SEARCH(\">\",'CFR - XML import'!$A27,1)-2)))","v":0},{"$f":"IF(ISERROR(FIND(BR$3,'CFR - XML import'!$A27)),0,VALUE(MID('CFR - XML import'!$A27,SEARCH(\">\",'CFR - XML import'!$A27,1)+1,SEARCH(\"/\",'CFR - XML import'!$A27,1)-SEARCH(\">\",'CFR - XML import'!$A27,1)-2)))","v":0},{"$f":"IF(ISERROR(FIND(BS$3,'CFR - XML import'!$A27)),0,VALUE(MID('CFR - XML import'!$A27,SEARCH(\">\",'CFR - XML import'!$A27,1)+1,SEARCH(\"/\",'CFR - XML import'!$A27,1)-SEARCH(\">\",'CFR - XML import'!$A27,1)-2)))","v":0},{"$f":"IF(ISERROR(FIND(BT$3,'CFR - XML import'!$A27)),0,VALUE(MID('CFR - XML import'!$A27,SEARCH(\">\",'CFR - XML import'!$A27,1)+1,SEARCH(\"/\",'CFR - XML import'!$A27,1)-SEARCH(\">\",'CFR - XML import'!$A27,1)-2)))","v":0},{"$f":"IF(ISERROR(FIND(BU$3,'CFR - XML import'!$A27)),0,VALUE(MID('CFR - XML import'!$A27,SEARCH(\">\",'CFR - XML import'!$A27,1)+1,SEARCH(\"/\",'CFR - XML import'!$A27,1)-SEARCH(\">\",'CFR - XML import'!$A27,1)-2)))","v":0},{"$f":"IF(ISERROR(FIND(BV$3,'CFR - XML import'!$A27)),0,VALUE(MID('CFR - XML import'!$A27,SEARCH(\">\",'CFR - XML import'!$A27,1)+1,SEARCH(\"/\",'CFR - XML import'!$A27,1)-SEARCH(\">\",'CFR - XML import'!$A27,1)-2)))","v":0},{"$f":"IF(ISERROR(FIND(BW$3,'CFR - XML import'!$A27)),0,VALUE(MID('CFR - XML import'!$A27,SEARCH(\">\",'CFR - XML import'!$A27,1)+1,SEARCH(\"/\",'CFR - XML import'!$A27,1)-SEARCH(\">\",'CFR - XML import'!$A27,1)-2)))","v":0},{"$f":"IF(ISERROR(FIND(BX$3,'CFR - XML import'!$A27)),0,VALUE(MID('CFR - XML import'!$A27,SEARCH(\">\",'CFR - XML import'!$A27,1)+1,SEARCH(\"/\",'CFR - XML import'!$A27,1)-SEARCH(\">\",'CFR - XML import'!$A27,1)-2)))","v":0},{"$f":"IF(ISERROR(FIND(BY$3,'CFR - XML import'!$A27)),0,VALUE(MID('CFR - XML import'!$A27,SEARCH(\">\",'CFR - XML import'!$A27,1)+1,SEARCH(\"/\",'CFR - XML import'!$A27,1)-SEARCH(\">\",'CFR - XML import'!$A27,1)-2)))","v":0},{"$f":"IF(ISERROR(FIND(BZ$3,'CFR - XML import'!$A27)),0,VALUE(MID('CFR - XML import'!$A27,SEARCH(\">\",'CFR - XML import'!$A27,1)+1,SEARCH(\"/\",'CFR - XML import'!$A27,1)-SEARCH(\">\",'CFR - XML import'!$A27,1)-2)))","v":0},null,null,null,null,null,null,{"$f":"IF(ISERROR(IF(MID('CFR - XML import'!$A27,LEN($CF$4)+1,LEN('CFR - XML import'!$A27)-(2*LEN($CF$4)+1))=\"RMMS\",1,IF(MID('CFR - XML import'!$A27,LEN(\"    <InputSystem>\")+1,LEN('CFR - XML import'!$A27)-(LEN(\"    <InputSystem>\")+LEN($CF$4)+1))=\"SIMS\",2,0))),0,IF(MID('CFR - XML import'!$A27,LEN($CF$4)+1,LEN('CFR - XML import'!$A27)-(2*LEN($CF$4)+1))=\"RMMS\",1,IF(MID('CFR - XML import'!$A27,LEN(\"    <InputSystem>\")+1,LEN('CFR - XML import'!$A27)-(LEN(\"    <InputSystem>\")+LEN($CF$4)+1))=\"SIMS\",2,0)))","v":0},{"$f":"IF(ISERROR(FIND(CH$3,'CFR - XML import'!$A27)),0,MID('CFR - XML import'!$A27,SEARCH(\">\",'CFR - XML import'!$A27,1)+1,SEARCH(\"/\",'CFR - XML import'!$A27,1)-SEARCH(\">\",'CFR - XML import'!$A27,1)-2))","v":0},{"$f":"IF(ISERROR(FIND(CI$3,'CFR - XML import'!$A27)),0,MID('CFR - XML import'!$A27,SEARCH(\">\",'CFR - XML import'!$A27,1)+1,SEARCH(\"/\",'CFR - XML import'!$A27,1)-SEARCH(\">\",'CFR - XML import'!$A27,1)-2))","v":0},{"$f":"IF(ISERROR(FIND(CJ$3,'CFR - XML import'!$A27)),0,MID('CFR - XML import'!$A27,SEARCH(\">\",'CFR - XML import'!$A27,1)+1,SEARCH(\"/\",'CFR - XML import'!$A27,1)-SEARCH(\">\",'CFR - XML import'!$A27,1)-2))","v":0},{"$f":"IF(ISERROR(FIND(CK$3,'CFR - XML import'!$A27)),0,MID('CFR - XML import'!$A27,SEARCH(\">\",'CFR - XML import'!$A27,1)+1,SEARCH(\"/\",'CFR - XML import'!$A27,1)-SEARCH(\">\",'CFR - XML import'!$A27,1)-2))","v":0},{"$f":"IF(ISERROR(FIND(CL$3,'CFR - XML import'!$A27)),0,MID('CFR - XML import'!$A27,SEARCH(\">\",'CFR - XML import'!$A27,1)+1,SEARCH(\"/\",'CFR - XML import'!$A27,1)-SEARCH(\">\",'CFR - XML import'!$A27,1)-2))","v":0}]
[{"$f":"IF(AND('CFR - XML import'!A28<>\"\",LEFT('CFR - XML import'!A28,1)<>\"<\",LEFT('CFR - XML import'!A28,3)<>\"  <\",LEFT('CFR - XML import'!A28,5)<>\"    <\",LEFT('CFR - XML import'!A28,7)<>\"      <\",LEFT('CFR - XML import'!A28,9)<>\"        <\",$B$1=\"SIMS\"),'CFR - XML import'!A28,IF(AND(LEFT('CFR - XML import'!A28,9)=\"<Details>\",$B$1=\"RM\"),'CFR - XML import'!A28,\"\"))","v":""},{"$f":"IF(ISERROR(FIND(B$3,'CFR - XML import'!$A28)),0,VALUE(MID('CFR - XML import'!$A28,SEARCH(\">\",'CFR - XML import'!$A28,1)+1,SEARCH(\"/\",'CFR - XML import'!$A28,1)-SEARCH(\">\",'CFR - XML import'!$A28,1)-2)))","v":0},null,{"$f":"IF(ISERROR(FIND(D$3,'CFR - XML import'!$A28)),0,MID('CFR - XML import'!$A28,SEARCH(\">\",'CFR - XML import'!$A28,1)+1,SEARCH(\"/\",'CFR - XML import'!$A28,1)-SEARCH(\">\",'CFR - XML import'!$A28,1)-2))","v":0},{"$f":"IF(ISERROR(FIND(E$3,'CFR - XML import'!$A28)),0,MID('CFR - XML import'!$A28,SEARCH(\">\",'CFR - XML import'!$A28,1)+1,SEARCH(\"/\",'CFR - XML import'!$A28,1)-SEARCH(\">\",'CFR - XML import'!$A28,1)-2))","v":0},{"$f":"IF($B$1=\"SIMS\",IF(ISERROR(FIND(F$3,'CFR - XML import'!$A28)),0,VALUE(MID('CFR - XML import'!$A28,15,10))),IF(ISERROR(FIND(F$3,'CFR - XML import'!$A28)),0,VALUE(MID('CFR - XML import'!$A28,11,10))))","v":"00:00:00"},{"$f":"IF(ISERROR(FIND(G$3,'CFR - XML import'!$A28)),0,VALUE(MID('CFR - XML import'!$A28,SEARCH(\">\",'CFR - XML import'!$A28,1)+1,SEARCH(\"/\",'CFR - XML import'!$A28,1)-SEARCH(\">\",'CFR - XML import'!$A28,1)-2)))","v":0},{"$f":"IF(ISERROR(FIND(H$3,'CFR - XML import'!$A28)),0,VALUE(MID('CFR - XML import'!$A28,SEARCH(\">\",'CFR - XML import'!$A28,1)+1,SEARCH(\"/\",'CFR - XML import'!$A28,1)-SEARCH(\">\",'CFR - XML import'!$A28,1)-2)))","v":0},{"$f":"IF(ISERROR(FIND(I$3,'CFR - XML import'!$A28)),0,VALUE(MID('CFR - XML import'!$A28,SEARCH(\">\",'CFR - XML import'!$A28,1)+1,SEARCH(\"/\",'CFR - XML import'!$A28,1)-SEARCH(\">\",'CFR - XML import'!$A28,1)-2)))","v":0},{"$f":"IF(ISERROR(FIND(J$3,'CFR - XML import'!$A28)),0,VALUE(MID('CFR - XML import'!$A28,SEARCH(\">\",'CFR - XML import'!$A28,1)+1,SEARCH(\"/\",'CFR - XML import'!$A28,1)-SEARCH(\">\",'CFR - XML import'!$A28,1)-2)))","v":0},{"$f":"IF(ISERROR(FIND(K$3,'CFR - XML import'!$A28)),0,VALUE(MID('CFR - XML import'!$A28,SEARCH(\">\",'CFR - XML import'!$A28,1)+1,SEARCH(\"/\",'CFR - XML import'!$A28,1)-SEARCH(\">\",'CFR - XML import'!$A28,1)-2)))","v":0},{"$f":"IF(ISERROR(FIND(L$3,'CFR - XML import'!$A28)),0,VALUE(MID('CFR - XML import'!$A28,SEARCH(\">\",'CFR - XML import'!$A28,1)+1,SEARCH(\"/\",'CFR - XML import'!$A28,1)-SEARCH(\">\",'CFR - XML import'!$A28,1)-2)))","v":0},{"$f":"IF(ISERROR(FIND(M$3,'CFR - XML import'!$A28)),0,VALUE(MID('CFR - XML import'!$A28,SEARCH(\">\",'CFR - XML import'!$A28,1)+1,SEARCH(\"/\",'CFR - XML import'!$A28,1)-SEARCH(\">\",'CFR - XML import'!$A28,1)-2)))","v":0},{"$f":"IF(ISERROR(FIND(N$3,'CFR - XML import'!$A28)),0,VALUE(MID('CFR - XML import'!$A28,SEARCH(\">\",'CFR - XML import'!$A28,1)+1,SEARCH(\"/\",'CFR - XML import'!$A28,1)-SEARCH(\">\",'CFR - XML import'!$A28,1)-2)))","v":0},{"$f":"IF(ISERROR(FIND(O$3,'CFR - XML import'!$A28)),0,VALUE(MID('CFR - XML import'!$A28,SEARCH(\">\",'CFR - XML import'!$A28,1)+1,SEARCH(\"/\",'CFR - XML import'!$A28,1)-SEARCH(\">\",'CFR - XML import'!$A28,1)-2)))","v":0},{"$f":"IF(ISERROR(FIND(P$3,'CFR - XML import'!$A28)),0,VALUE(MID('CFR - XML import'!$A28,SEARCH(\">\",'CFR - XML import'!$A28,1)+1,SEARCH(\"/\",'CFR - XML import'!$A28,1)-SEARCH(\">\",'CFR - XML import'!$A28,1)-2)))","v":0},{"$f":"IF(ISERROR(FIND(Q$3,'CFR - XML import'!$A28)),0,VALUE(MID('CFR - XML import'!$A28,SEARCH(\">\",'CFR - XML import'!$A28,1)+1,SEARCH(\"/\",'CFR - XML import'!$A28,1)-SEARCH(\">\",'CFR - XML import'!$A28,1)-2)))","v":0},{"$f":"IF(ISERROR(FIND(R$3,'CFR - XML import'!$A28)),0,VALUE(MID('CFR - XML import'!$A28,SEARCH(\">\",'CFR - XML import'!$A28,1)+1,SEARCH(\"/\",'CFR - XML import'!$A28,1)-SEARCH(\">\",'CFR - XML import'!$A28,1)-2)))","v":0},{"$f":"IF(ISERROR(FIND(S$3,'CFR - XML import'!$A28)),0,VALUE(MID('CFR - XML import'!$A28,SEARCH(\">\",'CFR - XML import'!$A28,1)+1,SEARCH(\"/\",'CFR - XML import'!$A28,1)-SEARCH(\">\",'CFR - XML import'!$A28,1)-2)))","v":0},{"$f":"IF(ISERROR(FIND(T$3,'CFR - XML import'!$A28)),0,VALUE(MID('CFR - XML import'!$A28,SEARCH(\">\",'CFR - XML import'!$A28,1)+1,SEARCH(\"/\",'CFR - XML import'!$A28,1)-SEARCH(\">\",'CFR - XML import'!$A28,1)-2)))","v":0},{"$f":"IF(ISERROR(FIND(U$3,'CFR - XML import'!$A28)),0,VALUE(MID('CFR - XML import'!$A28,SEARCH(\">\",'CFR - XML import'!$A28,1)+1,SEARCH(\"/\",'CFR - XML import'!$A28,1)-SEARCH(\">\",'CFR - XML import'!$A28,1)-2)))","v":0},{"$f":"IF(ISERROR(FIND(V$3,'CFR - XML import'!$A28)),0,VALUE(MID('CFR - XML import'!$A28,SEARCH(\">\",'CFR - XML import'!$A28,1)+1,SEARCH(\"/\",'CFR - XML import'!$A28,1)-SEARCH(\">\",'CFR - XML import'!$A28,1)-2)))","v":0},{"$f":"IF(ISERROR(FIND(W$3,'CFR - XML import'!$A28)),0,VALUE(MID('CFR - XML import'!$A28,SEARCH(\">\",'CFR - XML import'!$A28,1)+1,SEARCH(\"/\",'CFR - XML import'!$A28,1)-SEARCH(\">\",'CFR - XML import'!$A28,1)-2)))","v":0},null,{"$f":"IF(ISERROR(FIND(Y$3,'CFR - XML import'!$A28)),0,VALUE(MID('CFR - XML import'!$A28,SEARCH(\">\",'CFR - XML import'!$A28,1)+1,SEARCH(\"/\",'CFR - XML import'!$A28,1)-SEARCH(\">\",'CFR - XML import'!$A28,1)-2)))","v":0},{"$f":"IF(ISERROR(FIND(Z$3,'CFR - XML import'!$A28)),0,VALUE(MID('CFR - XML import'!$A28,SEARCH(\">\",'CFR - XML import'!$A28,1)+1,SEARCH(\"/\",'CFR - XML import'!$A28,1)-SEARCH(\">\",'CFR - XML import'!$A28,1)-2)))","v":0},{"$f":"IF(ISERROR(FIND(AA$3,'CFR - XML import'!$A28)),0,VALUE(MID('CFR - XML import'!$A28,SEARCH(\">\",'CFR - XML import'!$A28,1)+1,SEARCH(\"/\",'CFR - XML import'!$A28,1)-SEARCH(\">\",'CFR - XML import'!$A28,1)-2)))","v":0},{"$f":"IF(ISERROR(FIND(AB$3,'CFR - XML import'!$A28)),0,VALUE(MID('CFR - XML import'!$A28,SEARCH(\">\",'CFR - XML import'!$A28,1)+1,SEARCH(\"/\",'CFR - XML import'!$A28,1)-SEARCH(\">\",'CFR - XML import'!$A28,1)-2)))","v":0},{"$f":"IF(ISERROR(FIND(AC$3,'CFR - XML import'!$A28)),0,VALUE(MID('CFR - XML import'!$A28,SEARCH(\">\",'CFR - XML import'!$A28,1)+1,SEARCH(\"/\",'CFR - XML import'!$A28,1)-SEARCH(\">\",'CFR - XML import'!$A28,1)-2)))","v":0},{"$f":"IF(ISERROR(FIND(AD$3,'CFR - XML import'!$A28)),0,VALUE(MID('CFR - XML import'!$A28,SEARCH(\">\",'CFR - XML import'!$A28,1)+1,SEARCH(\"/\",'CFR - XML import'!$A28,1)-SEARCH(\">\",'CFR - XML import'!$A28,1)-2)))","v":0},{"$f":"IF(ISERROR(FIND(AE$3,'CFR - XML import'!$A28)),0,VALUE(MID('CFR - XML import'!$A28,SEARCH(\">\",'CFR - XML import'!$A28,1)+1,SEARCH(\"/\",'CFR - XML import'!$A28,1)-SEARCH(\">\",'CFR - XML import'!$A28,1)-2)))","v":0},{"$f":"IF(ISERROR(FIND(AF$3,'CFR - XML import'!$A28)),0,VALUE(MID('CFR - XML import'!$A28,SEARCH(\">\",'CFR - XML import'!$A28,1)+1,SEARCH(\"/\",'CFR - XML import'!$A28,1)-SEARCH(\">\",'CFR - XML import'!$A28,1)-2)))","v":0},{"$f":"IF(ISERROR(FIND(AG$3,'CFR - XML import'!$A28)),0,VALUE(MID('CFR - XML import'!$A28,SEARCH(\">\",'CFR - XML import'!$A28,1)+1,SEARCH(\"/\",'CFR - XML import'!$A28,1)-SEARCH(\">\",'CFR - XML import'!$A28,1)-2)))","v":0},{"$f":"IF(ISERROR(FIND(AH$3,'CFR - XML import'!$A28)),0,VALUE(MID('CFR - XML import'!$A28,SEARCH(\">\",'CFR - XML import'!$A28,1)+1,SEARCH(\"/\",'CFR - XML import'!$A28,1)-SEARCH(\">\",'CFR - XML import'!$A28,1)-2)))","v":0},{"$f":"IF(ISERROR(FIND(AI$3,'CFR - XML import'!$A28)),0,VALUE(MID('CFR - XML import'!$A28,SEARCH(\">\",'CFR - XML import'!$A28,1)+1,SEARCH(\"/\",'CFR - XML import'!$A28,1)-SEARCH(\">\",'CFR - XML import'!$A28,1)-2)))","v":0},{"$f":"IF(ISERROR(FIND(AJ$3,'CFR - XML import'!$A28)),0,VALUE(MID('CFR - XML import'!$A28,SEARCH(\">\",'CFR - XML import'!$A28,1)+1,SEARCH(\"/\",'CFR - XML import'!$A28,1)-SEARCH(\">\",'CFR - XML import'!$A28,1)-2)))","v":0},{"$f":"IF(ISERROR(FIND(AK$3,'CFR - XML import'!$A28)),0,VALUE(MID('CFR - XML import'!$A28,SEARCH(\">\",'CFR - XML import'!$A28,1)+1,SEARCH(\"/\",'CFR - XML import'!$A28,1)-SEARCH(\">\",'CFR - XML import'!$A28,1)-2)))","v":0},{"$f":"IF(ISERROR(FIND(AL$3,'CFR - XML import'!$A28)),0,VALUE(MID('CFR - XML import'!$A28,SEARCH(\">\",'CFR - XML import'!$A28,1)+1,SEARCH(\"/\",'CFR - XML import'!$A28,1)-SEARCH(\">\",'CFR - XML import'!$A28,1)-2)))","v":0},{"$f":"IF(ISERROR(FIND(AM$3,'CFR - XML import'!$A28)),0,VALUE(MID('CFR - XML import'!$A28,SEARCH(\">\",'CFR - XML import'!$A28,1)+1,SEARCH(\"/\",'CFR - XML import'!$A28,1)-SEARCH(\">\",'CFR - XML import'!$A28,1)-2)))","v":0},{"$f":"IF(ISERROR(FIND(AN$3,'CFR - XML import'!$A28)),0,VALUE(MID('CFR - XML import'!$A28,SEARCH(\">\",'CFR - XML import'!$A28,1)+1,SEARCH(\"/\",'CFR - XML import'!$A28,1)-SEARCH(\">\",'CFR - XML import'!$A28,1)-2)))","v":0},{"$f":"IF(ISERROR(FIND(AO$3,'CFR - XML import'!$A28)),0,VALUE(MID('CFR - XML import'!$A28,SEARCH(\">\",'CFR - XML import'!$A28,1)+1,SEARCH(\"/\",'CFR - XML import'!$A28,1)-SEARCH(\">\",'CFR - XML import'!$A28,1)-2)))","v":0},{"$f":"IF(ISERROR(FIND(AP$3,'CFR - XML import'!$A28)),0,VALUE(MID('CFR - XML import'!$A28,SEARCH(\">\",'CFR - XML import'!$A28,1)+1,SEARCH(\"/\",'CFR - XML import'!$A28,1)-SEARCH(\">\",'CFR - XML import'!$A28,1)-2)))","v":0},{"$f":"IF(ISERROR(FIND(AQ$3,'CFR - XML import'!$A28)),0,VALUE(MID('CFR - XML import'!$A28,SEARCH(\">\",'CFR - XML import'!$A28,1)+1,SEARCH(\"/\",'CFR - XML import'!$A28,1)-SEARCH(\">\",'CFR - XML import'!$A28,1)-2)))","v":0},{"$f":"IF(ISERROR(FIND(AR$3,'CFR - XML import'!$A28)),0,VALUE(MID('CFR - XML import'!$A28,SEARCH(\">\",'CFR - XML import'!$A28,1)+1,SEARCH(\"/\",'CFR - XML import'!$A28,1)-SEARCH(\">\",'CFR - XML import'!$A28,1)-2)))","v":0},{"$f":"IF(ISERROR(FIND(AS$3,'CFR - XML import'!$A28)),0,VALUE(MID('CFR - XML import'!$A28,SEARCH(\">\",'CFR - XML import'!$A28,1)+1,SEARCH(\"/\",'CFR - XML import'!$A28,1)-SEARCH(\">\",'CFR - XML import'!$A28,1)-2)))","v":0},{"$f":"IF(ISERROR(FIND(AT$3,'CFR - XML import'!$A28)),0,VALUE(MID('CFR - XML import'!$A28,SEARCH(\">\",'CFR - XML import'!$A28,1)+1,SEARCH(\"/\",'CFR - XML import'!$A28,1)-SEARCH(\">\",'CFR - XML import'!$A28,1)-2)))","v":0},{"$f":"IF(ISERROR(FIND(AU$3,'CFR - XML import'!$A28)),0,VALUE(MID('CFR - XML import'!$A28,SEARCH(\">\",'CFR - XML import'!$A28,1)+1,SEARCH(\"/\",'CFR - XML import'!$A28,1)-SEARCH(\">\",'CFR - XML import'!$A28,1)-2)))","v":0},{"$f":"IF(ISERROR(FIND(AV$3,'CFR - XML import'!$A28)),0,VALUE(MID('CFR - XML import'!$A28,SEARCH(\">\",'CFR - XML import'!$A28,1)+1,SEARCH(\"/\",'CFR - XML import'!$A28,1)-SEARCH(\">\",'CFR - XML import'!$A28,1)-2)))","v":0},{"$f":"IF(ISERROR(FIND(AW$3,'CFR - XML import'!$A28)),0,VALUE(MID('CFR - XML import'!$A28,SEARCH(\">\",'CFR - XML import'!$A28,1)+1,SEARCH(\"/\",'CFR - XML import'!$A28,1)-SEARCH(\">\",'CFR - XML import'!$A28,1)-2)))","v":0},{"$f":"IF(ISERROR(FIND(AX$3,'CFR - XML import'!$A28)),0,VALUE(MID('CFR - XML import'!$A28,SEARCH(\">\",'CFR - XML import'!$A28,1)+1,SEARCH(\"/\",'CFR - XML import'!$A28,1)-SEARCH(\">\",'CFR - XML import'!$A28,1)-2)))","v":0},{"$f":"IF(ISERROR(FIND(AY$3,'CFR - XML import'!$A28)),0,VALUE(MID('CFR - XML import'!$A28,SEARCH(\">\",'CFR - XML import'!$A28,1)+1,SEARCH(\"/\",'CFR - XML import'!$A28,1)-SEARCH(\">\",'CFR - XML import'!$A28,1)-2)))","v":0},{"$f":"IF(ISERROR(FIND(AZ$3,'CFR - XML import'!$A28)),0,VALUE(MID('CFR - XML import'!$A28,SEARCH(\">\",'CFR - XML import'!$A28,1)+1,SEARCH(\"/\",'CFR - XML import'!$A28,1)-SEARCH(\">\",'CFR - XML import'!$A28,1)-2)))","v":0},{"$f":"IF(ISERROR(FIND(BA$3,'CFR - XML import'!$A28)),0,VALUE(MID('CFR - XML import'!$A28,SEARCH(\">\",'CFR - XML import'!$A28,1)+1,SEARCH(\"/\",'CFR - XML import'!$A28,1)-SEARCH(\">\",'CFR - XML import'!$A28,1)-2)))","v":0},{"$f":"IF(ISERROR(FIND(BB$3,'CFR - XML import'!$A28)),0,VALUE(MID('CFR - XML import'!$A28,SEARCH(\">\",'CFR - XML import'!$A28,1)+1,SEARCH(\"/\",'CFR - XML import'!$A28,1)-SEARCH(\">\",'CFR - XML import'!$A28,1)-2)))","v":0},{"$f":"IF(ISERROR(FIND(BC$3,'CFR - XML import'!$A28)),0,VALUE(MID('CFR - XML import'!$A28,SEARCH(\">\",'CFR - XML import'!$A28,1)+1,SEARCH(\"/\",'CFR - XML import'!$A28,1)-SEARCH(\">\",'CFR - XML import'!$A28,1)-2)))","v":0},{"$f":"IF(ISERROR(FIND(BD$3,'CFR - XML import'!$A28)),0,VALUE(MID('CFR - XML import'!$A28,SEARCH(\">\",'CFR - XML import'!$A28,1)+1,SEARCH(\"/\",'CFR - XML import'!$A28,1)-SEARCH(\">\",'CFR - XML import'!$A28,1)-2)))","v":0},{"$f":"IF(ISERROR(FIND(BE$3,'CFR - XML import'!$A28)),0,VALUE(MID('CFR - XML import'!$A28,SEARCH(\">\",'CFR - XML import'!$A28,1)+1,SEARCH(\"/\",'CFR - XML import'!$A28,1)-SEARCH(\">\",'CFR - XML import'!$A28,1)-2)))","v":0},{"$f":"IF(ISERROR(FIND(BF$3,'CFR - XML import'!$A28)),0,VALUE(MID('CFR - XML import'!$A28,SEARCH(\">\",'CFR - XML import'!$A28,1)+1,SEARCH(\"/\",'CFR - XML import'!$A28,1)-SEARCH(\">\",'CFR - XML import'!$A28,1)-2)))","v":0},{"$f":"IF(ISERROR(FIND(BG$3,'CFR - XML import'!$A28)),0,VALUE(MID('CFR - XML import'!$A28,SEARCH(\">\",'CFR - XML import'!$A28,1)+1,SEARCH(\"/\",'CFR - XML import'!$A28,1)-SEARCH(\">\",'CFR - XML import'!$A28,1)-2)))","v":0},{"$f":"IF(ISERROR(FIND(BH$3,'CFR - XML import'!$A28)),0,VALUE(MID('CFR - XML import'!$A28,SEARCH(\">\",'CFR - XML import'!$A28,1)+1,SEARCH(\"/\",'CFR - XML import'!$A28,1)-SEARCH(\">\",'CFR - XML import'!$A28,1)-2)))","v":0},{"$f":"IF(ISERROR(FIND(BI$3,'CFR - XML import'!$A28)),0,VALUE(MID('CFR - XML import'!$A28,SEARCH(\">\",'CFR - XML import'!$A28,1)+1,SEARCH(\"/\",'CFR - XML import'!$A28,1)-SEARCH(\">\",'CFR - XML import'!$A28,1)-2)))","v":0},{"$f":"IF(ISERROR(FIND(BJ$3,'CFR - XML import'!$A28)),0,VALUE(MID('CFR - XML import'!$A28,SEARCH(\">\",'CFR - XML import'!$A28,1)+1,SEARCH(\"/\",'CFR - XML import'!$A28,1)-SEARCH(\">\",'CFR - XML import'!$A28,1)-2)))","v":0},{"$f":"IF(ISERROR(FIND(BK$3,'CFR - XML import'!$A28)),0,VALUE(MID('CFR - XML import'!$A28,SEARCH(\">\",'CFR - XML import'!$A28,1)+1,SEARCH(\"/\",'CFR - XML import'!$A28,1)-SEARCH(\">\",'CFR - XML import'!$A28,1)-2)))","v":0},{"$f":"IF(ISERROR(FIND(BL$3,'CFR - XML import'!$A28)),0,VALUE(MID('CFR - XML import'!$A28,SEARCH(\">\",'CFR - XML import'!$A28,1)+1,SEARCH(\"/\",'CFR - XML import'!$A28,1)-SEARCH(\">\",'CFR - XML import'!$A28,1)-2)))","v":0},{"$f":"IF(ISERROR(FIND(BM$3,'CFR - XML import'!$A28)),0,VALUE(MID('CFR - XML import'!$A28,SEARCH(\">\",'CFR - XML import'!$A28,1)+1,SEARCH(\"/\",'CFR - XML import'!$A28,1)-SEARCH(\">\",'CFR - XML import'!$A28,1)-2)))","v":0},{"$f":"IF(ISERROR(FIND(BN$3,'CFR - XML import'!$A28)),0,VALUE(MID('CFR - XML import'!$A28,SEARCH(\">\",'CFR - XML import'!$A28,1)+1,SEARCH(\"/\",'CFR - XML import'!$A28,1)-SEARCH(\">\",'CFR - XML import'!$A28,1)-2)))","v":0},{"$f":"IF(ISERROR(FIND(BO$3,'CFR - XML import'!$A28)),0,VALUE(MID('CFR - XML import'!$A28,SEARCH(\">\",'CFR - XML import'!$A28,1)+1,SEARCH(\"/\",'CFR - XML import'!$A28,1)-SEARCH(\">\",'CFR - XML import'!$A28,1)-2)))","v":0},{"$f":"IF(ISERROR(FIND(BP$3,'CFR - XML import'!$A28)),0,VALUE(MID('CFR - XML import'!$A28,SEARCH(\">\",'CFR - XML import'!$A28,1)+1,SEARCH(\"/\",'CFR - XML import'!$A28,1)-SEARCH(\">\",'CFR - XML import'!$A28,1)-2)))","v":0},{"$f":"IF(ISERROR(FIND(BQ$3,'CFR - XML import'!$A28)),0,VALUE(MID('CFR - XML import'!$A28,SEARCH(\">\",'CFR - XML import'!$A28,1)+1,SEARCH(\"/\",'CFR - XML import'!$A28,1)-SEARCH(\">\",'CFR - XML import'!$A28,1)-2)))","v":0},{"$f":"IF(ISERROR(FIND(BR$3,'CFR - XML import'!$A28)),0,VALUE(MID('CFR - XML import'!$A28,SEARCH(\">\",'CFR - XML import'!$A28,1)+1,SEARCH(\"/\",'CFR - XML import'!$A28,1)-SEARCH(\">\",'CFR - XML import'!$A28,1)-2)))","v":0},{"$f":"IF(ISERROR(FIND(BS$3,'CFR - XML import'!$A28)),0,VALUE(MID('CFR - XML import'!$A28,SEARCH(\">\",'CFR - XML import'!$A28,1)+1,SEARCH(\"/\",'CFR - XML import'!$A28,1)-SEARCH(\">\",'CFR - XML import'!$A28,1)-2)))","v":0},{"$f":"IF(ISERROR(FIND(BT$3,'CFR - XML import'!$A28)),0,VALUE(MID('CFR - XML import'!$A28,SEARCH(\">\",'CFR - XML import'!$A28,1)+1,SEARCH(\"/\",'CFR - XML import'!$A28,1)-SEARCH(\">\",'CFR - XML import'!$A28,1)-2)))","v":0},{"$f":"IF(ISERROR(FIND(BU$3,'CFR - XML import'!$A28)),0,VALUE(MID('CFR - XML import'!$A28,SEARCH(\">\",'CFR - XML import'!$A28,1)+1,SEARCH(\"/\",'CFR - XML import'!$A28,1)-SEARCH(\">\",'CFR - XML import'!$A28,1)-2)))","v":0},{"$f":"IF(ISERROR(FIND(BV$3,'CFR - XML import'!$A28)),0,VALUE(MID('CFR - XML import'!$A28,SEARCH(\">\",'CFR - XML import'!$A28,1)+1,SEARCH(\"/\",'CFR - XML import'!$A28,1)-SEARCH(\">\",'CFR - XML import'!$A28,1)-2)))","v":0},{"$f":"IF(ISERROR(FIND(BW$3,'CFR - XML import'!$A28)),0,VALUE(MID('CFR - XML import'!$A28,SEARCH(\">\",'CFR - XML import'!$A28,1)+1,SEARCH(\"/\",'CFR - XML import'!$A28,1)-SEARCH(\">\",'CFR - XML import'!$A28,1)-2)))","v":0},{"$f":"IF(ISERROR(FIND(BX$3,'CFR - XML import'!$A28)),0,VALUE(MID('CFR - XML import'!$A28,SEARCH(\">\",'CFR - XML import'!$A28,1)+1,SEARCH(\"/\",'CFR - XML import'!$A28,1)-SEARCH(\">\",'CFR - XML import'!$A28,1)-2)))","v":0},{"$f":"IF(ISERROR(FIND(BY$3,'CFR - XML import'!$A28)),0,VALUE(MID('CFR - XML import'!$A28,SEARCH(\">\",'CFR - XML import'!$A28,1)+1,SEARCH(\"/\",'CFR - XML import'!$A28,1)-SEARCH(\">\",'CFR - XML import'!$A28,1)-2)))","v":0},{"$f":"IF(ISERROR(FIND(BZ$3,'CFR - XML import'!$A28)),0,VALUE(MID('CFR - XML import'!$A28,SEARCH(\">\",'CFR - XML import'!$A28,1)+1,SEARCH(\"/\",'CFR - XML import'!$A28,1)-SEARCH(\">\",'CFR - XML import'!$A28,1)-2)))","v":0},null,null,null,null,null,null,{"$f":"IF(ISERROR(IF(MID('CFR - XML import'!$A28,LEN($CF$4)+1,LEN('CFR - XML import'!$A28)-(2*LEN($CF$4)+1))=\"RMMS\",1,IF(MID('CFR - XML import'!$A28,LEN(\"    <InputSystem>\")+1,LEN('CFR - XML import'!$A28)-(LEN(\"    <InputSystem>\")+LEN($CF$4)+1))=\"SIMS\",2,0))),0,IF(MID('CFR - XML import'!$A28,LEN($CF$4)+1,LEN('CFR - XML import'!$A28)-(2*LEN($CF$4)+1))=\"RMMS\",1,IF(MID('CFR - XML import'!$A28,LEN(\"    <InputSystem>\")+1,LEN('CFR - XML import'!$A28)-(LEN(\"    <InputSystem>\")+LEN($CF$4)+1))=\"SIMS\",2,0)))","v":0},{"$f":"IF(ISERROR(FIND(CH$3,'CFR - XML import'!$A28)),0,MID('CFR - XML import'!$A28,SEARCH(\">\",'CFR - XML import'!$A28,1)+1,SEARCH(\"/\",'CFR - XML import'!$A28,1)-SEARCH(\">\",'CFR - XML import'!$A28,1)-2))","v":0},{"$f":"IF(ISERROR(FIND(CI$3,'CFR - XML import'!$A28)),0,MID('CFR - XML import'!$A28,SEARCH(\">\",'CFR - XML import'!$A28,1)+1,SEARCH(\"/\",'CFR - XML import'!$A28,1)-SEARCH(\">\",'CFR - XML import'!$A28,1)-2))","v":0},{"$f":"IF(ISERROR(FIND(CJ$3,'CFR - XML import'!$A28)),0,MID('CFR - XML import'!$A28,SEARCH(\">\",'CFR - XML import'!$A28,1)+1,SEARCH(\"/\",'CFR - XML import'!$A28,1)-SEARCH(\">\",'CFR - XML import'!$A28,1)-2))","v":0},{"$f":"IF(ISERROR(FIND(CK$3,'CFR - XML import'!$A28)),0,MID('CFR - XML import'!$A28,SEARCH(\">\",'CFR - XML import'!$A28,1)+1,SEARCH(\"/\",'CFR - XML import'!$A28,1)-SEARCH(\">\",'CFR - XML import'!$A28,1)-2))","v":0},{"$f":"IF(ISERROR(FIND(CL$3,'CFR - XML import'!$A28)),0,MID('CFR - XML import'!$A28,SEARCH(\">\",'CFR - XML import'!$A28,1)+1,SEARCH(\"/\",'CFR - XML import'!$A28,1)-SEARCH(\">\",'CFR - XML import'!$A28,1)-2))","v":0}]
[{"$f":"IF(AND('CFR - XML import'!A29<>\"\",LEFT('CFR - XML import'!A29,1)<>\"<\",LEFT('CFR - XML import'!A29,3)<>\"  <\",LEFT('CFR - XML import'!A29,5)<>\"    <\",LEFT('CFR - XML import'!A29,7)<>\"      <\",LEFT('CFR - XML import'!A29,9)<>\"        <\",$B$1=\"SIMS\"),'CFR - XML import'!A29,IF(AND(LEFT('CFR - XML import'!A29,9)=\"<Details>\",$B$1=\"RM\"),'CFR - XML import'!A29,\"\"))","v":""},{"$f":"IF(ISERROR(FIND(B$3,'CFR - XML import'!$A29)),0,VALUE(MID('CFR - XML import'!$A29,SEARCH(\">\",'CFR - XML import'!$A29,1)+1,SEARCH(\"/\",'CFR - XML import'!$A29,1)-SEARCH(\">\",'CFR - XML import'!$A29,1)-2)))","v":0},null,{"$f":"IF(ISERROR(FIND(D$3,'CFR - XML import'!$A29)),0,MID('CFR - XML import'!$A29,SEARCH(\">\",'CFR - XML import'!$A29,1)+1,SEARCH(\"/\",'CFR - XML import'!$A29,1)-SEARCH(\">\",'CFR - XML import'!$A29,1)-2))","v":0},{"$f":"IF(ISERROR(FIND(E$3,'CFR - XML import'!$A29)),0,MID('CFR - XML import'!$A29,SEARCH(\">\",'CFR - XML import'!$A29,1)+1,SEARCH(\"/\",'CFR - XML import'!$A29,1)-SEARCH(\">\",'CFR - XML import'!$A29,1)-2))","v":0},{"$f":"IF($B$1=\"SIMS\",IF(ISERROR(FIND(F$3,'CFR - XML import'!$A29)),0,VALUE(MID('CFR - XML import'!$A29,15,10))),IF(ISERROR(FIND(F$3,'CFR - XML import'!$A29)),0,VALUE(MID('CFR - XML import'!$A29,11,10))))","v":"00:00:00"},{"$f":"IF(ISERROR(FIND(G$3,'CFR - XML import'!$A29)),0,VALUE(MID('CFR - XML import'!$A29,SEARCH(\">\",'CFR - XML import'!$A29,1)+1,SEARCH(\"/\",'CFR - XML import'!$A29,1)-SEARCH(\">\",'CFR - XML import'!$A29,1)-2)))","v":0},{"$f":"IF(ISERROR(FIND(H$3,'CFR - XML import'!$A29)),0,VALUE(MID('CFR - XML import'!$A29,SEARCH(\">\",'CFR - XML import'!$A29,1)+1,SEARCH(\"/\",'CFR - XML import'!$A29,1)-SEARCH(\">\",'CFR - XML import'!$A29,1)-2)))","v":0},{"$f":"IF(ISERROR(FIND(I$3,'CFR - XML import'!$A29)),0,VALUE(MID('CFR - XML import'!$A29,SEARCH(\">\",'CFR - XML import'!$A29,1)+1,SEARCH(\"/\",'CFR - XML import'!$A29,1)-SEARCH(\">\",'CFR - XML import'!$A29,1)-2)))","v":0},{"$f":"IF(ISERROR(FIND(J$3,'CFR - XML import'!$A29)),0,VALUE(MID('CFR - XML import'!$A29,SEARCH(\">\",'CFR - XML import'!$A29,1)+1,SEARCH(\"/\",'CFR - XML import'!$A29,1)-SEARCH(\">\",'CFR - XML import'!$A29,1)-2)))","v":0},{"$f":"IF(ISERROR(FIND(K$3,'CFR - XML import'!$A29)),0,VALUE(MID('CFR - XML import'!$A29,SEARCH(\">\",'CFR - XML import'!$A29,1)+1,SEARCH(\"/\",'CFR - XML import'!$A29,1)-SEARCH(\">\",'CFR - XML import'!$A29,1)-2)))","v":0},{"$f":"IF(ISERROR(FIND(L$3,'CFR - XML import'!$A29)),0,VALUE(MID('CFR - XML import'!$A29,SEARCH(\">\",'CFR - XML import'!$A29,1)+1,SEARCH(\"/\",'CFR - XML import'!$A29,1)-SEARCH(\">\",'CFR - XML import'!$A29,1)-2)))","v":0},{"$f":"IF(ISERROR(FIND(M$3,'CFR - XML import'!$A29)),0,VALUE(MID('CFR - XML import'!$A29,SEARCH(\">\",'CFR - XML import'!$A29,1)+1,SEARCH(\"/\",'CFR - XML import'!$A29,1)-SEARCH(\">\",'CFR - XML import'!$A29,1)-2)))","v":0},{"$f":"IF(ISERROR(FIND(N$3,'CFR - XML import'!$A29)),0,VALUE(MID('CFR - XML import'!$A29,SEARCH(\">\",'CFR - XML import'!$A29,1)+1,SEARCH(\"/\",'CFR - XML import'!$A29,1)-SEARCH(\">\",'CFR - XML import'!$A29,1)-2)))","v":0},{"$f":"IF(ISERROR(FIND(O$3,'CFR - XML import'!$A29)),0,VALUE(MID('CFR - XML import'!$A29,SEARCH(\">\",'CFR - XML import'!$A29,1)+1,SEARCH(\"/\",'CFR - XML import'!$A29,1)-SEARCH(\">\",'CFR - XML import'!$A29,1)-2)))","v":0},{"$f":"IF(ISERROR(FIND(P$3,'CFR - XML import'!$A29)),0,VALUE(MID('CFR - XML import'!$A29,SEARCH(\">\",'CFR - XML import'!$A29,1)+1,SEARCH(\"/\",'CFR - XML import'!$A29,1)-SEARCH(\">\",'CFR - XML import'!$A29,1)-2)))","v":0},{"$f":"IF(ISERROR(FIND(Q$3,'CFR - XML import'!$A29)),0,VALUE(MID('CFR - XML import'!$A29,SEARCH(\">\",'CFR - XML import'!$A29,1)+1,SEARCH(\"/\",'CFR - XML import'!$A29,1)-SEARCH(\">\",'CFR - XML import'!$A29,1)-2)))","v":0},{"$f":"IF(ISERROR(FIND(R$3,'CFR - XML import'!$A29)),0,VALUE(MID('CFR - XML import'!$A29,SEARCH(\">\",'CFR - XML import'!$A29,1)+1,SEARCH(\"/\",'CFR - XML import'!$A29,1)-SEARCH(\">\",'CFR - XML import'!$A29,1)-2)))","v":0},{"$f":"IF(ISERROR(FIND(S$3,'CFR - XML import'!$A29)),0,VALUE(MID('CFR - XML import'!$A29,SEARCH(\">\",'CFR - XML import'!$A29,1)+1,SEARCH(\"/\",'CFR - XML import'!$A29,1)-SEARCH(\">\",'CFR - XML import'!$A29,1)-2)))","v":0},{"$f":"IF(ISERROR(FIND(T$3,'CFR - XML import'!$A29)),0,VALUE(MID('CFR - XML import'!$A29,SEARCH(\">\",'CFR - XML import'!$A29,1)+1,SEARCH(\"/\",'CFR - XML import'!$A29,1)-SEARCH(\">\",'CFR - XML import'!$A29,1)-2)))","v":0},{"$f":"IF(ISERROR(FIND(U$3,'CFR - XML import'!$A29)),0,VALUE(MID('CFR - XML import'!$A29,SEARCH(\">\",'CFR - XML import'!$A29,1)+1,SEARCH(\"/\",'CFR - XML import'!$A29,1)-SEARCH(\">\",'CFR - XML import'!$A29,1)-2)))","v":0},{"$f":"IF(ISERROR(FIND(V$3,'CFR - XML import'!$A29)),0,VALUE(MID('CFR - XML import'!$A29,SEARCH(\">\",'CFR - XML import'!$A29,1)+1,SEARCH(\"/\",'CFR - XML import'!$A29,1)-SEARCH(\">\",'CFR - XML import'!$A29,1)-2)))","v":0},{"$f":"IF(ISERROR(FIND(W$3,'CFR - XML import'!$A29)),0,VALUE(MID('CFR - XML import'!$A29,SEARCH(\">\",'CFR - XML import'!$A29,1)+1,SEARCH(\"/\",'CFR - XML import'!$A29,1)-SEARCH(\">\",'CFR - XML import'!$A29,1)-2)))","v":0},null,{"$f":"IF(ISERROR(FIND(Y$3,'CFR - XML import'!$A29)),0,VALUE(MID('CFR - XML import'!$A29,SEARCH(\">\",'CFR - XML import'!$A29,1)+1,SEARCH(\"/\",'CFR - XML import'!$A29,1)-SEARCH(\">\",'CFR - XML import'!$A29,1)-2)))","v":0},{"$f":"IF(ISERROR(FIND(Z$3,'CFR - XML import'!$A29)),0,VALUE(MID('CFR - XML import'!$A29,SEARCH(\">\",'CFR - XML import'!$A29,1)+1,SEARCH(\"/\",'CFR - XML import'!$A29,1)-SEARCH(\">\",'CFR - XML import'!$A29,1)-2)))","v":0},{"$f":"IF(ISERROR(FIND(AA$3,'CFR - XML import'!$A29)),0,VALUE(MID('CFR - XML import'!$A29,SEARCH(\">\",'CFR - XML import'!$A29,1)+1,SEARCH(\"/\",'CFR - XML import'!$A29,1)-SEARCH(\">\",'CFR - XML import'!$A29,1)-2)))","v":0},{"$f":"IF(ISERROR(FIND(AB$3,'CFR - XML import'!$A29)),0,VALUE(MID('CFR - XML import'!$A29,SEARCH(\">\",'CFR - XML import'!$A29,1)+1,SEARCH(\"/\",'CFR - XML import'!$A29,1)-SEARCH(\">\",'CFR - XML import'!$A29,1)-2)))","v":0},{"$f":"IF(ISERROR(FIND(AC$3,'CFR - XML import'!$A29)),0,VALUE(MID('CFR - XML import'!$A29,SEARCH(\">\",'CFR - XML import'!$A29,1)+1,SEARCH(\"/\",'CFR - XML import'!$A29,1)-SEARCH(\">\",'CFR - XML import'!$A29,1)-2)))","v":0},{"$f":"IF(ISERROR(FIND(AD$3,'CFR - XML import'!$A29)),0,VALUE(MID('CFR - XML import'!$A29,SEARCH(\">\",'CFR - XML import'!$A29,1)+1,SEARCH(\"/\",'CFR - XML import'!$A29,1)-SEARCH(\">\",'CFR - XML import'!$A29,1)-2)))","v":0},{"$f":"IF(ISERROR(FIND(AE$3,'CFR - XML import'!$A29)),0,VALUE(MID('CFR - XML import'!$A29,SEARCH(\">\",'CFR - XML import'!$A29,1)+1,SEARCH(\"/\",'CFR - XML import'!$A29,1)-SEARCH(\">\",'CFR - XML import'!$A29,1)-2)))","v":0},{"$f":"IF(ISERROR(FIND(AF$3,'CFR - XML import'!$A29)),0,VALUE(MID('CFR - XML import'!$A29,SEARCH(\">\",'CFR - XML import'!$A29,1)+1,SEARCH(\"/\",'CFR - XML import'!$A29,1)-SEARCH(\">\",'CFR - XML import'!$A29,1)-2)))","v":0},{"$f":"IF(ISERROR(FIND(AG$3,'CFR - XML import'!$A29)),0,VALUE(MID('CFR - XML import'!$A29,SEARCH(\">\",'CFR - XML import'!$A29,1)+1,SEARCH(\"/\",'CFR - XML import'!$A29,1)-SEARCH(\">\",'CFR - XML import'!$A29,1)-2)))","v":0},{"$f":"IF(ISERROR(FIND(AH$3,'CFR - XML import'!$A29)),0,VALUE(MID('CFR - XML import'!$A29,SEARCH(\">\",'CFR - XML import'!$A29,1)+1,SEARCH(\"/\",'CFR - XML import'!$A29,1)-SEARCH(\">\",'CFR - XML import'!$A29,1)-2)))","v":0},{"$f":"IF(ISERROR(FIND(AI$3,'CFR - XML import'!$A29)),0,VALUE(MID('CFR - XML import'!$A29,SEARCH(\">\",'CFR - XML import'!$A29,1)+1,SEARCH(\"/\",'CFR - XML import'!$A29,1)-SEARCH(\">\",'CFR - XML import'!$A29,1)-2)))","v":0},{"$f":"IF(ISERROR(FIND(AJ$3,'CFR - XML import'!$A29)),0,VALUE(MID('CFR - XML import'!$A29,SEARCH(\">\",'CFR - XML import'!$A29,1)+1,SEARCH(\"/\",'CFR - XML import'!$A29,1)-SEARCH(\">\",'CFR - XML import'!$A29,1)-2)))","v":0},{"$f":"IF(ISERROR(FIND(AK$3,'CFR - XML import'!$A29)),0,VALUE(MID('CFR - XML import'!$A29,SEARCH(\">\",'CFR - XML import'!$A29,1)+1,SEARCH(\"/\",'CFR - XML import'!$A29,1)-SEARCH(\">\",'CFR - XML import'!$A29,1)-2)))","v":0},{"$f":"IF(ISERROR(FIND(AL$3,'CFR - XML import'!$A29)),0,VALUE(MID('CFR - XML import'!$A29,SEARCH(\">\",'CFR - XML import'!$A29,1)+1,SEARCH(\"/\",'CFR - XML import'!$A29,1)-SEARCH(\">\",'CFR - XML import'!$A29,1)-2)))","v":0},{"$f":"IF(ISERROR(FIND(AM$3,'CFR - XML import'!$A29)),0,VALUE(MID('CFR - XML import'!$A29,SEARCH(\">\",'CFR - XML import'!$A29,1)+1,SEARCH(\"/\",'CFR - XML import'!$A29,1)-SEARCH(\">\",'CFR - XML import'!$A29,1)-2)))","v":0},{"$f":"IF(ISERROR(FIND(AN$3,'CFR - XML import'!$A29)),0,VALUE(MID('CFR - XML import'!$A29,SEARCH(\">\",'CFR - XML import'!$A29,1)+1,SEARCH(\"/\",'CFR - XML import'!$A29,1)-SEARCH(\">\",'CFR - XML import'!$A29,1)-2)))","v":0},{"$f":"IF(ISERROR(FIND(AO$3,'CFR - XML import'!$A29)),0,VALUE(MID('CFR - XML import'!$A29,SEARCH(\">\",'CFR - XML import'!$A29,1)+1,SEARCH(\"/\",'CFR - XML import'!$A29,1)-SEARCH(\">\",'CFR - XML import'!$A29,1)-2)))","v":0},{"$f":"IF(ISERROR(FIND(AP$3,'CFR - XML import'!$A29)),0,VALUE(MID('CFR - XML import'!$A29,SEARCH(\">\",'CFR - XML import'!$A29,1)+1,SEARCH(\"/\",'CFR - XML import'!$A29,1)-SEARCH(\">\",'CFR - XML import'!$A29,1)-2)))","v":0},{"$f":"IF(ISERROR(FIND(AQ$3,'CFR - XML import'!$A29)),0,VALUE(MID('CFR - XML import'!$A29,SEARCH(\">\",'CFR - XML import'!$A29,1)+1,SEARCH(\"/\",'CFR - XML import'!$A29,1)-SEARCH(\">\",'CFR - XML import'!$A29,1)-2)))","v":0},{"$f":"IF(ISERROR(FIND(AR$3,'CFR - XML import'!$A29)),0,VALUE(MID('CFR - XML import'!$A29,SEARCH(\">\",'CFR - XML import'!$A29,1)+1,SEARCH(\"/\",'CFR - XML import'!$A29,1)-SEARCH(\">\",'CFR - XML import'!$A29,1)-2)))","v":0},{"$f":"IF(ISERROR(FIND(AS$3,'CFR - XML import'!$A29)),0,VALUE(MID('CFR - XML import'!$A29,SEARCH(\">\",'CFR - XML import'!$A29,1)+1,SEARCH(\"/\",'CFR - XML import'!$A29,1)-SEARCH(\">\",'CFR - XML import'!$A29,1)-2)))","v":0},{"$f":"IF(ISERROR(FIND(AT$3,'CFR - XML import'!$A29)),0,VALUE(MID('CFR - XML import'!$A29,SEARCH(\">\",'CFR - XML import'!$A29,1)+1,SEARCH(\"/\",'CFR - XML import'!$A29,1)-SEARCH(\">\",'CFR - XML import'!$A29,1)-2)))","v":0},{"$f":"IF(ISERROR(FIND(AU$3,'CFR - XML import'!$A29)),0,VALUE(MID('CFR - XML import'!$A29,SEARCH(\">\",'CFR - XML import'!$A29,1)+1,SEARCH(\"/\",'CFR - XML import'!$A29,1)-SEARCH(\">\",'CFR - XML import'!$A29,1)-2)))","v":0},{"$f":"IF(ISERROR(FIND(AV$3,'CFR - XML import'!$A29)),0,VALUE(MID('CFR - XML import'!$A29,SEARCH(\">\",'CFR - XML import'!$A29,1)+1,SEARCH(\"/\",'CFR - XML import'!$A29,1)-SEARCH(\">\",'CFR - XML import'!$A29,1)-2)))","v":0},{"$f":"IF(ISERROR(FIND(AW$3,'CFR - XML import'!$A29)),0,VALUE(MID('CFR - XML import'!$A29,SEARCH(\">\",'CFR - XML import'!$A29,1)+1,SEARCH(\"/\",'CFR - XML import'!$A29,1)-SEARCH(\">\",'CFR - XML import'!$A29,1)-2)))","v":0},{"$f":"IF(ISERROR(FIND(AX$3,'CFR - XML import'!$A29)),0,VALUE(MID('CFR - XML import'!$A29,SEARCH(\">\",'CFR - XML import'!$A29,1)+1,SEARCH(\"/\",'CFR - XML import'!$A29,1)-SEARCH(\">\",'CFR - XML import'!$A29,1)-2)))","v":0},{"$f":"IF(ISERROR(FIND(AY$3,'CFR - XML import'!$A29)),0,VALUE(MID('CFR - XML import'!$A29,SEARCH(\">\",'CFR - XML import'!$A29,1)+1,SEARCH(\"/\",'CFR - XML import'!$A29,1)-SEARCH(\">\",'CFR - XML import'!$A29,1)-2)))","v":0},{"$f":"IF(ISERROR(FIND(AZ$3,'CFR - XML import'!$A29)),0,VALUE(MID('CFR - XML import'!$A29,SEARCH(\">\",'CFR - XML import'!$A29,1)+1,SEARCH(\"/\",'CFR - XML import'!$A29,1)-SEARCH(\">\",'CFR - XML import'!$A29,1)-2)))","v":0},{"$f":"IF(ISERROR(FIND(BA$3,'CFR - XML import'!$A29)),0,VALUE(MID('CFR - XML import'!$A29,SEARCH(\">\",'CFR - XML import'!$A29,1)+1,SEARCH(\"/\",'CFR - XML import'!$A29,1)-SEARCH(\">\",'CFR - XML import'!$A29,1)-2)))","v":0},{"$f":"IF(ISERROR(FIND(BB$3,'CFR - XML import'!$A29)),0,VALUE(MID('CFR - XML import'!$A29,SEARCH(\">\",'CFR - XML import'!$A29,1)+1,SEARCH(\"/\",'CFR - XML import'!$A29,1)-SEARCH(\">\",'CFR - XML import'!$A29,1)-2)))","v":0},{"$f":"IF(ISERROR(FIND(BC$3,'CFR - XML import'!$A29)),0,VALUE(MID('CFR - XML import'!$A29,SEARCH(\">\",'CFR - XML import'!$A29,1)+1,SEARCH(\"/\",'CFR - XML import'!$A29,1)-SEARCH(\">\",'CFR - XML import'!$A29,1)-2)))","v":0},{"$f":"IF(ISERROR(FIND(BD$3,'CFR - XML import'!$A29)),0,VALUE(MID('CFR - XML import'!$A29,SEARCH(\">\",'CFR - XML import'!$A29,1)+1,SEARCH(\"/\",'CFR - XML import'!$A29,1)-SEARCH(\">\",'CFR - XML import'!$A29,1)-2)))","v":0},{"$f":"IF(ISERROR(FIND(BE$3,'CFR - XML import'!$A29)),0,VALUE(MID('CFR - XML import'!$A29,SEARCH(\">\",'CFR - XML import'!$A29,1)+1,SEARCH(\"/\",'CFR - XML import'!$A29,1)-SEARCH(\">\",'CFR - XML import'!$A29,1)-2)))","v":0},{"$f":"IF(ISERROR(FIND(BF$3,'CFR - XML import'!$A29)),0,VALUE(MID('CFR - XML import'!$A29,SEARCH(\">\",'CFR - XML import'!$A29,1)+1,SEARCH(\"/\",'CFR - XML import'!$A29,1)-SEARCH(\">\",'CFR - XML import'!$A29,1)-2)))","v":0},{"$f":"IF(ISERROR(FIND(BG$3,'CFR - XML import'!$A29)),0,VALUE(MID('CFR - XML import'!$A29,SEARCH(\">\",'CFR - XML import'!$A29,1)+1,SEARCH(\"/\",'CFR - XML import'!$A29,1)-SEARCH(\">\",'CFR - XML import'!$A29,1)-2)))","v":0},{"$f":"IF(ISERROR(FIND(BH$3,'CFR - XML import'!$A29)),0,VALUE(MID('CFR - XML import'!$A29,SEARCH(\">\",'CFR - XML import'!$A29,1)+1,SEARCH(\"/\",'CFR - XML import'!$A29,1)-SEARCH(\">\",'CFR - XML import'!$A29,1)-2)))","v":0},{"$f":"IF(ISERROR(FIND(BI$3,'CFR - XML import'!$A29)),0,VALUE(MID('CFR - XML import'!$A29,SEARCH(\">\",'CFR - XML import'!$A29,1)+1,SEARCH(\"/\",'CFR - XML import'!$A29,1)-SEARCH(\">\",'CFR - XML import'!$A29,1)-2)))","v":0},{"$f":"IF(ISERROR(FIND(BJ$3,'CFR - XML import'!$A29)),0,VALUE(MID('CFR - XML import'!$A29,SEARCH(\">\",'CFR - XML import'!$A29,1)+1,SEARCH(\"/\",'CFR - XML import'!$A29,1)-SEARCH(\">\",'CFR - XML import'!$A29,1)-2)))","v":0},{"$f":"IF(ISERROR(FIND(BK$3,'CFR - XML import'!$A29)),0,VALUE(MID('CFR - XML import'!$A29,SEARCH(\">\",'CFR - XML import'!$A29,1)+1,SEARCH(\"/\",'CFR - XML import'!$A29,1)-SEARCH(\">\",'CFR - XML import'!$A29,1)-2)))","v":0},{"$f":"IF(ISERROR(FIND(BL$3,'CFR - XML import'!$A29)),0,VALUE(MID('CFR - XML import'!$A29,SEARCH(\">\",'CFR - XML import'!$A29,1)+1,SEARCH(\"/\",'CFR - XML import'!$A29,1)-SEARCH(\">\",'CFR - XML import'!$A29,1)-2)))","v":0},{"$f":"IF(ISERROR(FIND(BM$3,'CFR - XML import'!$A29)),0,VALUE(MID('CFR - XML import'!$A29,SEARCH(\">\",'CFR - XML import'!$A29,1)+1,SEARCH(\"/\",'CFR - XML import'!$A29,1)-SEARCH(\">\",'CFR - XML import'!$A29,1)-2)))","v":0},{"$f":"IF(ISERROR(FIND(BN$3,'CFR - XML import'!$A29)),0,VALUE(MID('CFR - XML import'!$A29,SEARCH(\">\",'CFR - XML import'!$A29,1)+1,SEARCH(\"/\",'CFR - XML import'!$A29,1)-SEARCH(\">\",'CFR - XML import'!$A29,1)-2)))","v":0},{"$f":"IF(ISERROR(FIND(BO$3,'CFR - XML import'!$A29)),0,VALUE(MID('CFR - XML import'!$A29,SEARCH(\">\",'CFR - XML import'!$A29,1)+1,SEARCH(\"/\",'CFR - XML import'!$A29,1)-SEARCH(\">\",'CFR - XML import'!$A29,1)-2)))","v":0},{"$f":"IF(ISERROR(FIND(BP$3,'CFR - XML import'!$A29)),0,VALUE(MID('CFR - XML import'!$A29,SEARCH(\">\",'CFR - XML import'!$A29,1)+1,SEARCH(\"/\",'CFR - XML import'!$A29,1)-SEARCH(\">\",'CFR - XML import'!$A29,1)-2)))","v":0},{"$f":"IF(ISERROR(FIND(BQ$3,'CFR - XML import'!$A29)),0,VALUE(MID('CFR - XML import'!$A29,SEARCH(\">\",'CFR - XML import'!$A29,1)+1,SEARCH(\"/\",'CFR - XML import'!$A29,1)-SEARCH(\">\",'CFR - XML import'!$A29,1)-2)))","v":0},{"$f":"IF(ISERROR(FIND(BR$3,'CFR - XML import'!$A29)),0,VALUE(MID('CFR - XML import'!$A29,SEARCH(\">\",'CFR - XML import'!$A29,1)+1,SEARCH(\"/\",'CFR - XML import'!$A29,1)-SEARCH(\">\",'CFR - XML import'!$A29,1)-2)))","v":0},{"$f":"IF(ISERROR(FIND(BS$3,'CFR - XML import'!$A29)),0,VALUE(MID('CFR - XML import'!$A29,SEARCH(\">\",'CFR - XML import'!$A29,1)+1,SEARCH(\"/\",'CFR - XML import'!$A29,1)-SEARCH(\">\",'CFR - XML import'!$A29,1)-2)))","v":0},{"$f":"IF(ISERROR(FIND(BT$3,'CFR - XML import'!$A29)),0,VALUE(MID('CFR - XML import'!$A29,SEARCH(\">\",'CFR - XML import'!$A29,1)+1,SEARCH(\"/\",'CFR - XML import'!$A29,1)-SEARCH(\">\",'CFR - XML import'!$A29,1)-2)))","v":0},{"$f":"IF(ISERROR(FIND(BU$3,'CFR - XML import'!$A29)),0,VALUE(MID('CFR - XML import'!$A29,SEARCH(\">\",'CFR - XML import'!$A29,1)+1,SEARCH(\"/\",'CFR - XML import'!$A29,1)-SEARCH(\">\",'CFR - XML import'!$A29,1)-2)))","v":0},{"$f":"IF(ISERROR(FIND(BV$3,'CFR - XML import'!$A29)),0,VALUE(MID('CFR - XML import'!$A29,SEARCH(\">\",'CFR - XML import'!$A29,1)+1,SEARCH(\"/\",'CFR - XML import'!$A29,1)-SEARCH(\">\",'CFR - XML import'!$A29,1)-2)))","v":0},{"$f":"IF(ISERROR(FIND(BW$3,'CFR - XML import'!$A29)),0,VALUE(MID('CFR - XML import'!$A29,SEARCH(\">\",'CFR - XML import'!$A29,1)+1,SEARCH(\"/\",'CFR - XML import'!$A29,1)-SEARCH(\">\",'CFR - XML import'!$A29,1)-2)))","v":0},{"$f":"IF(ISERROR(FIND(BX$3,'CFR - XML import'!$A29)),0,VALUE(MID('CFR - XML import'!$A29,SEARCH(\">\",'CFR - XML import'!$A29,1)+1,SEARCH(\"/\",'CFR - XML import'!$A29,1)-SEARCH(\">\",'CFR - XML import'!$A29,1)-2)))","v":0},{"$f":"IF(ISERROR(FIND(BY$3,'CFR - XML import'!$A29)),0,VALUE(MID('CFR - XML import'!$A29,SEARCH(\">\",'CFR - XML import'!$A29,1)+1,SEARCH(\"/\",'CFR - XML import'!$A29,1)-SEARCH(\">\",'CFR - XML import'!$A29,1)-2)))","v":0},{"$f":"IF(ISERROR(FIND(BZ$3,'CFR - XML import'!$A29)),0,VALUE(MID('CFR - XML import'!$A29,SEARCH(\">\",'CFR - XML import'!$A29,1)+1,SEARCH(\"/\",'CFR - XML import'!$A29,1)-SEARCH(\">\",'CFR - XML import'!$A29,1)-2)))","v":0},null,null,null,null,null,null,{"$f":"IF(ISERROR(IF(MID('CFR - XML import'!$A29,LEN($CF$4)+1,LEN('CFR - XML import'!$A29)-(2*LEN($CF$4)+1))=\"RMMS\",1,IF(MID('CFR - XML import'!$A29,LEN(\"    <InputSystem>\")+1,LEN('CFR - XML import'!$A29)-(LEN(\"    <InputSystem>\")+LEN($CF$4)+1))=\"SIMS\",2,0))),0,IF(MID('CFR - XML import'!$A29,LEN($CF$4)+1,LEN('CFR - XML import'!$A29)-(2*LEN($CF$4)+1))=\"RMMS\",1,IF(MID('CFR - XML import'!$A29,LEN(\"    <InputSystem>\")+1,LEN('CFR - XML import'!$A29)-(LEN(\"    <InputSystem>\")+LEN($CF$4)+1))=\"SIMS\",2,0)))","v":0},{"$f":"IF(ISERROR(FIND(CH$3,'CFR - XML import'!$A29)),0,MID('CFR - XML import'!$A29,SEARCH(\">\",'CFR - XML import'!$A29,1)+1,SEARCH(\"/\",'CFR - XML import'!$A29,1)-SEARCH(\">\",'CFR - XML import'!$A29,1)-2))","v":0},{"$f":"IF(ISERROR(FIND(CI$3,'CFR - XML import'!$A29)),0,MID('CFR - XML import'!$A29,SEARCH(\">\",'CFR - XML import'!$A29,1)+1,SEARCH(\"/\",'CFR - XML import'!$A29,1)-SEARCH(\">\",'CFR - XML import'!$A29,1)-2))","v":0},{"$f":"IF(ISERROR(FIND(CJ$3,'CFR - XML import'!$A29)),0,MID('CFR - XML import'!$A29,SEARCH(\">\",'CFR - XML import'!$A29,1)+1,SEARCH(\"/\",'CFR - XML import'!$A29,1)-SEARCH(\">\",'CFR - XML import'!$A29,1)-2))","v":0},{"$f":"IF(ISERROR(FIND(CK$3,'CFR - XML import'!$A29)),0,MID('CFR - XML import'!$A29,SEARCH(\">\",'CFR - XML import'!$A29,1)+1,SEARCH(\"/\",'CFR - XML import'!$A29,1)-SEARCH(\">\",'CFR - XML import'!$A29,1)-2))","v":0},{"$f":"IF(ISERROR(FIND(CL$3,'CFR - XML import'!$A29)),0,MID('CFR - XML import'!$A29,SEARCH(\">\",'CFR - XML import'!$A29,1)+1,SEARCH(\"/\",'CFR - XML import'!$A29,1)-SEARCH(\">\",'CFR - XML import'!$A29,1)-2))","v":0}]
[{"$f":"IF(AND('CFR - XML import'!A30<>\"\",LEFT('CFR - XML import'!A30,1)<>\"<\",LEFT('CFR - XML import'!A30,3)<>\"  <\",LEFT('CFR - XML import'!A30,5)<>\"    <\",LEFT('CFR - XML import'!A30,7)<>\"      <\",LEFT('CFR - XML import'!A30,9)<>\"        <\",$B$1=\"SIMS\"),'CFR - XML import'!A30,IF(AND(LEFT('CFR - XML import'!A30,9)=\"<Details>\",$B$1=\"RM\"),'CFR - XML import'!A30,\"\"))","v":""},{"$f":"IF(ISERROR(FIND(B$3,'CFR - XML import'!$A30)),0,VALUE(MID('CFR - XML import'!$A30,SEARCH(\">\",'CFR - XML import'!$A30,1)+1,SEARCH(\"/\",'CFR - XML import'!$A30,1)-SEARCH(\">\",'CFR - XML import'!$A30,1)-2)))","v":0},null,{"$f":"IF(ISERROR(FIND(D$3,'CFR - XML import'!$A30)),0,MID('CFR - XML import'!$A30,SEARCH(\">\",'CFR - XML import'!$A30,1)+1,SEARCH(\"/\",'CFR - XML import'!$A30,1)-SEARCH(\">\",'CFR - XML import'!$A30,1)-2))","v":0},{"$f":"IF(ISERROR(FIND(E$3,'CFR - XML import'!$A30)),0,MID('CFR - XML import'!$A30,SEARCH(\">\",'CFR - XML import'!$A30,1)+1,SEARCH(\"/\",'CFR - XML import'!$A30,1)-SEARCH(\">\",'CFR - XML import'!$A30,1)-2))","v":0},{"$f":"IF($B$1=\"SIMS\",IF(ISERROR(FIND(F$3,'CFR - XML import'!$A30)),0,VALUE(MID('CFR - XML import'!$A30,15,10))),IF(ISERROR(FIND(F$3,'CFR - XML import'!$A30)),0,VALUE(MID('CFR - XML import'!$A30,11,10))))","v":"00:00:00"},{"$f":"IF(ISERROR(FIND(G$3,'CFR - XML import'!$A30)),0,VALUE(MID('CFR - XML import'!$A30,SEARCH(\">\",'CFR - XML import'!$A30,1)+1,SEARCH(\"/\",'CFR - XML import'!$A30,1)-SEARCH(\">\",'CFR - XML import'!$A30,1)-2)))","v":0},{"$f":"IF(ISERROR(FIND(H$3,'CFR - XML import'!$A30)),0,VALUE(MID('CFR - XML import'!$A30,SEARCH(\">\",'CFR - XML import'!$A30,1)+1,SEARCH(\"/\",'CFR - XML import'!$A30,1)-SEARCH(\">\",'CFR - XML import'!$A30,1)-2)))","v":0},{"$f":"IF(ISERROR(FIND(I$3,'CFR - XML import'!$A30)),0,VALUE(MID('CFR - XML import'!$A30,SEARCH(\">\",'CFR - XML import'!$A30,1)+1,SEARCH(\"/\",'CFR - XML import'!$A30,1)-SEARCH(\">\",'CFR - XML import'!$A30,1)-2)))","v":0},{"$f":"IF(ISERROR(FIND(J$3,'CFR - XML import'!$A30)),0,VALUE(MID('CFR - XML import'!$A30,SEARCH(\">\",'CFR - XML import'!$A30,1)+1,SEARCH(\"/\",'CFR - XML import'!$A30,1)-SEARCH(\">\",'CFR - XML import'!$A30,1)-2)))","v":0},{"$f":"IF(ISERROR(FIND(K$3,'CFR - XML import'!$A30)),0,VALUE(MID('CFR - XML import'!$A30,SEARCH(\">\",'CFR - XML import'!$A30,1)+1,SEARCH(\"/\",'CFR - XML import'!$A30,1)-SEARCH(\">\",'CFR - XML import'!$A30,1)-2)))","v":0},{"$f":"IF(ISERROR(FIND(L$3,'CFR - XML import'!$A30)),0,VALUE(MID('CFR - XML import'!$A30,SEARCH(\">\",'CFR - XML import'!$A30,1)+1,SEARCH(\"/\",'CFR - XML import'!$A30,1)-SEARCH(\">\",'CFR - XML import'!$A30,1)-2)))","v":0},{"$f":"IF(ISERROR(FIND(M$3,'CFR - XML import'!$A30)),0,VALUE(MID('CFR - XML import'!$A30,SEARCH(\">\",'CFR - XML import'!$A30,1)+1,SEARCH(\"/\",'CFR - XML import'!$A30,1)-SEARCH(\">\",'CFR - XML import'!$A30,1)-2)))","v":0},{"$f":"IF(ISERROR(FIND(N$3,'CFR - XML import'!$A30)),0,VALUE(MID('CFR - XML import'!$A30,SEARCH(\">\",'CFR - XML import'!$A30,1)+1,SEARCH(\"/\",'CFR - XML import'!$A30,1)-SEARCH(\">\",'CFR - XML import'!$A30,1)-2)))","v":0},{"$f":"IF(ISERROR(FIND(O$3,'CFR - XML import'!$A30)),0,VALUE(MID('CFR - XML import'!$A30,SEARCH(\">\",'CFR - XML import'!$A30,1)+1,SEARCH(\"/\",'CFR - XML import'!$A30,1)-SEARCH(\">\",'CFR - XML import'!$A30,1)-2)))","v":0},{"$f":"IF(ISERROR(FIND(P$3,'CFR - XML import'!$A30)),0,VALUE(MID('CFR - XML import'!$A30,SEARCH(\">\",'CFR - XML import'!$A30,1)+1,SEARCH(\"/\",'CFR - XML import'!$A30,1)-SEARCH(\">\",'CFR - XML import'!$A30,1)-2)))","v":0},{"$f":"IF(ISERROR(FIND(Q$3,'CFR - XML import'!$A30)),0,VALUE(MID('CFR - XML import'!$A30,SEARCH(\">\",'CFR - XML import'!$A30,1)+1,SEARCH(\"/\",'CFR - XML import'!$A30,1)-SEARCH(\">\",'CFR - XML import'!$A30,1)-2)))","v":0},{"$f":"IF(ISERROR(FIND(R$3,'CFR - XML import'!$A30)),0,VALUE(MID('CFR - XML import'!$A30,SEARCH(\">\",'CFR - XML import'!$A30,1)+1,SEARCH(\"/\",'CFR - XML import'!$A30,1)-SEARCH(\">\",'CFR - XML import'!$A30,1)-2)))","v":0},{"$f":"IF(ISERROR(FIND(S$3,'CFR - XML import'!$A30)),0,VALUE(MID('CFR - XML import'!$A30,SEARCH(\">\",'CFR - XML import'!$A30,1)+1,SEARCH(\"/\",'CFR - XML import'!$A30,1)-SEARCH(\">\",'CFR - XML import'!$A30,1)-2)))","v":0},{"$f":"IF(ISERROR(FIND(T$3,'CFR - XML import'!$A30)),0,VALUE(MID('CFR - XML import'!$A30,SEARCH(\">\",'CFR - XML import'!$A30,1)+1,SEARCH(\"/\",'CFR - XML import'!$A30,1)-SEARCH(\">\",'CFR - XML import'!$A30,1)-2)))","v":0},{"$f":"IF(ISERROR(FIND(U$3,'CFR - XML import'!$A30)),0,VALUE(MID('CFR - XML import'!$A30,SEARCH(\">\",'CFR - XML import'!$A30,1)+1,SEARCH(\"/\",'CFR - XML import'!$A30,1)-SEARCH(\">\",'CFR - XML import'!$A30,1)-2)))","v":0},{"$f":"IF(ISERROR(FIND(V$3,'CFR - XML import'!$A30)),0,VALUE(MID('CFR - XML import'!$A30,SEARCH(\">\",'CFR - XML import'!$A30,1)+1,SEARCH(\"/\",'CFR - XML import'!$A30,1)-SEARCH(\">\",'CFR - XML import'!$A30,1)-2)))","v":0},{"$f":"IF(ISERROR(FIND(W$3,'CFR - XML import'!$A30)),0,VALUE(MID('CFR - XML import'!$A30,SEARCH(\">\",'CFR - XML import'!$A30,1)+1,SEARCH(\"/\",'CFR - XML import'!$A30,1)-SEARCH(\">\",'CFR - XML import'!$A30,1)-2)))","v":0},null,{"$f":"IF(ISERROR(FIND(Y$3,'CFR - XML import'!$A30)),0,VALUE(MID('CFR - XML import'!$A30,SEARCH(\">\",'CFR - XML import'!$A30,1)+1,SEARCH(\"/\",'CFR - XML import'!$A30,1)-SEARCH(\">\",'CFR - XML import'!$A30,1)-2)))","v":0},{"$f":"IF(ISERROR(FIND(Z$3,'CFR - XML import'!$A30)),0,VALUE(MID('CFR - XML import'!$A30,SEARCH(\">\",'CFR - XML import'!$A30,1)+1,SEARCH(\"/\",'CFR - XML import'!$A30,1)-SEARCH(\">\",'CFR - XML import'!$A30,1)-2)))","v":0},{"$f":"IF(ISERROR(FIND(AA$3,'CFR - XML import'!$A30)),0,VALUE(MID('CFR - XML import'!$A30,SEARCH(\">\",'CFR - XML import'!$A30,1)+1,SEARCH(\"/\",'CFR - XML import'!$A30,1)-SEARCH(\">\",'CFR - XML import'!$A30,1)-2)))","v":0},{"$f":"IF(ISERROR(FIND(AB$3,'CFR - XML import'!$A30)),0,VALUE(MID('CFR - XML import'!$A30,SEARCH(\">\",'CFR - XML import'!$A30,1)+1,SEARCH(\"/\",'CFR - XML import'!$A30,1)-SEARCH(\">\",'CFR - XML import'!$A30,1)-2)))","v":0},{"$f":"IF(ISERROR(FIND(AC$3,'CFR - XML import'!$A30)),0,VALUE(MID('CFR - XML import'!$A30,SEARCH(\">\",'CFR - XML import'!$A30,1)+1,SEARCH(\"/\",'CFR - XML import'!$A30,1)-SEARCH(\">\",'CFR - XML import'!$A30,1)-2)))","v":0},{"$f":"IF(ISERROR(FIND(AD$3,'CFR - XML import'!$A30)),0,VALUE(MID('CFR - XML import'!$A30,SEARCH(\">\",'CFR - XML import'!$A30,1)+1,SEARCH(\"/\",'CFR - XML import'!$A30,1)-SEARCH(\">\",'CFR - XML import'!$A30,1)-2)))","v":0},{"$f":"IF(ISERROR(FIND(AE$3,'CFR - XML import'!$A30)),0,VALUE(MID('CFR - XML import'!$A30,SEARCH(\">\",'CFR - XML import'!$A30,1)+1,SEARCH(\"/\",'CFR - XML import'!$A30,1)-SEARCH(\">\",'CFR - XML import'!$A30,1)-2)))","v":0},{"$f":"IF(ISERROR(FIND(AF$3,'CFR - XML import'!$A30)),0,VALUE(MID('CFR - XML import'!$A30,SEARCH(\">\",'CFR - XML import'!$A30,1)+1,SEARCH(\"/\",'CFR - XML import'!$A30,1)-SEARCH(\">\",'CFR - XML import'!$A30,1)-2)))","v":0},{"$f":"IF(ISERROR(FIND(AG$3,'CFR - XML import'!$A30)),0,VALUE(MID('CFR - XML import'!$A30,SEARCH(\">\",'CFR - XML import'!$A30,1)+1,SEARCH(\"/\",'CFR - XML import'!$A30,1)-SEARCH(\">\",'CFR - XML import'!$A30,1)-2)))","v":0},{"$f":"IF(ISERROR(FIND(AH$3,'CFR - XML import'!$A30)),0,VALUE(MID('CFR - XML import'!$A30,SEARCH(\">\",'CFR - XML import'!$A30,1)+1,SEARCH(\"/\",'CFR - XML import'!$A30,1)-SEARCH(\">\",'CFR - XML import'!$A30,1)-2)))","v":0},{"$f":"IF(ISERROR(FIND(AI$3,'CFR - XML import'!$A30)),0,VALUE(MID('CFR - XML import'!$A30,SEARCH(\">\",'CFR - XML import'!$A30,1)+1,SEARCH(\"/\",'CFR - XML import'!$A30,1)-SEARCH(\">\",'CFR - XML import'!$A30,1)-2)))","v":0},{"$f":"IF(ISERROR(FIND(AJ$3,'CFR - XML import'!$A30)),0,VALUE(MID('CFR - XML import'!$A30,SEARCH(\">\",'CFR - XML import'!$A30,1)+1,SEARCH(\"/\",'CFR - XML import'!$A30,1)-SEARCH(\">\",'CFR - XML import'!$A30,1)-2)))","v":0},{"$f":"IF(ISERROR(FIND(AK$3,'CFR - XML import'!$A30)),0,VALUE(MID('CFR - XML import'!$A30,SEARCH(\">\",'CFR - XML import'!$A30,1)+1,SEARCH(\"/\",'CFR - XML import'!$A30,1)-SEARCH(\">\",'CFR - XML import'!$A30,1)-2)))","v":0},{"$f":"IF(ISERROR(FIND(AL$3,'CFR - XML import'!$A30)),0,VALUE(MID('CFR - XML import'!$A30,SEARCH(\">\",'CFR - XML import'!$A30,1)+1,SEARCH(\"/\",'CFR - XML import'!$A30,1)-SEARCH(\">\",'CFR - XML import'!$A30,1)-2)))","v":0},{"$f":"IF(ISERROR(FIND(AM$3,'CFR - XML import'!$A30)),0,VALUE(MID('CFR - XML import'!$A30,SEARCH(\">\",'CFR - XML import'!$A30,1)+1,SEARCH(\"/\",'CFR - XML import'!$A30,1)-SEARCH(\">\",'CFR - XML import'!$A30,1)-2)))","v":0},{"$f":"IF(ISERROR(FIND(AN$3,'CFR - XML import'!$A30)),0,VALUE(MID('CFR - XML import'!$A30,SEARCH(\">\",'CFR - XML import'!$A30,1)+1,SEARCH(\"/\",'CFR - XML import'!$A30,1)-SEARCH(\">\",'CFR - XML import'!$A30,1)-2)))","v":0},{"$f":"IF(ISERROR(FIND(AO$3,'CFR - XML import'!$A30)),0,VALUE(MID('CFR - XML import'!$A30,SEARCH(\">\",'CFR - XML import'!$A30,1)+1,SEARCH(\"/\",'CFR - XML import'!$A30,1)-SEARCH(\">\",'CFR - XML import'!$A30,1)-2)))","v":0},{"$f":"IF(ISERROR(FIND(AP$3,'CFR - XML import'!$A30)),0,VALUE(MID('CFR - XML import'!$A30,SEARCH(\">\",'CFR - XML import'!$A30,1)+1,SEARCH(\"/\",'CFR - XML import'!$A30,1)-SEARCH(\">\",'CFR - XML import'!$A30,1)-2)))","v":0},{"$f":"IF(ISERROR(FIND(AQ$3,'CFR - XML import'!$A30)),0,VALUE(MID('CFR - XML import'!$A30,SEARCH(\">\",'CFR - XML import'!$A30,1)+1,SEARCH(\"/\",'CFR - XML import'!$A30,1)-SEARCH(\">\",'CFR - XML import'!$A30,1)-2)))","v":0},{"$f":"IF(ISERROR(FIND(AR$3,'CFR - XML import'!$A30)),0,VALUE(MID('CFR - XML import'!$A30,SEARCH(\">\",'CFR - XML import'!$A30,1)+1,SEARCH(\"/\",'CFR - XML import'!$A30,1)-SEARCH(\">\",'CFR - XML import'!$A30,1)-2)))","v":0},{"$f":"IF(ISERROR(FIND(AS$3,'CFR - XML import'!$A30)),0,VALUE(MID('CFR - XML import'!$A30,SEARCH(\">\",'CFR - XML import'!$A30,1)+1,SEARCH(\"/\",'CFR - XML import'!$A30,1)-SEARCH(\">\",'CFR - XML import'!$A30,1)-2)))","v":0},{"$f":"IF(ISERROR(FIND(AT$3,'CFR - XML import'!$A30)),0,VALUE(MID('CFR - XML import'!$A30,SEARCH(\">\",'CFR - XML import'!$A30,1)+1,SEARCH(\"/\",'CFR - XML import'!$A30,1)-SEARCH(\">\",'CFR - XML import'!$A30,1)-2)))","v":0},{"$f":"IF(ISERROR(FIND(AU$3,'CFR - XML import'!$A30)),0,VALUE(MID('CFR - XML import'!$A30,SEARCH(\">\",'CFR - XML import'!$A30,1)+1,SEARCH(\"/\",'CFR - XML import'!$A30,1)-SEARCH(\">\",'CFR - XML import'!$A30,1)-2)))","v":0},{"$f":"IF(ISERROR(FIND(AV$3,'CFR - XML import'!$A30)),0,VALUE(MID('CFR - XML import'!$A30,SEARCH(\">\",'CFR - XML import'!$A30,1)+1,SEARCH(\"/\",'CFR - XML import'!$A30,1)-SEARCH(\">\",'CFR - XML import'!$A30,1)-2)))","v":0},{"$f":"IF(ISERROR(FIND(AW$3,'CFR - XML import'!$A30)),0,VALUE(MID('CFR - XML import'!$A30,SEARCH(\">\",'CFR - XML import'!$A30,1)+1,SEARCH(\"/\",'CFR - XML import'!$A30,1)-SEARCH(\">\",'CFR - XML import'!$A30,1)-2)))","v":0},{"$f":"IF(ISERROR(FIND(AX$3,'CFR - XML import'!$A30)),0,VALUE(MID('CFR - XML import'!$A30,SEARCH(\">\",'CFR - XML import'!$A30,1)+1,SEARCH(\"/\",'CFR - XML import'!$A30,1)-SEARCH(\">\",'CFR - XML import'!$A30,1)-2)))","v":0},{"$f":"IF(ISERROR(FIND(AY$3,'CFR - XML import'!$A30)),0,VALUE(MID('CFR - XML import'!$A30,SEARCH(\">\",'CFR - XML import'!$A30,1)+1,SEARCH(\"/\",'CFR - XML import'!$A30,1)-SEARCH(\">\",'CFR - XML import'!$A30,1)-2)))","v":0},{"$f":"IF(ISERROR(FIND(AZ$3,'CFR - XML import'!$A30)),0,VALUE(MID('CFR - XML import'!$A30,SEARCH(\">\",'CFR - XML import'!$A30,1)+1,SEARCH(\"/\",'CFR - XML import'!$A30,1)-SEARCH(\">\",'CFR - XML import'!$A30,1)-2)))","v":0},{"$f":"IF(ISERROR(FIND(BA$3,'CFR - XML import'!$A30)),0,VALUE(MID('CFR - XML import'!$A30,SEARCH(\">\",'CFR - XML import'!$A30,1)+1,SEARCH(\"/\",'CFR - XML import'!$A30,1)-SEARCH(\">\",'CFR - XML import'!$A30,1)-2)))","v":0},{"$f":"IF(ISERROR(FIND(BB$3,'CFR - XML import'!$A30)),0,VALUE(MID('CFR - XML import'!$A30,SEARCH(\">\",'CFR - XML import'!$A30,1)+1,SEARCH(\"/\",'CFR - XML import'!$A30,1)-SEARCH(\">\",'CFR - XML import'!$A30,1)-2)))","v":0},{"$f":"IF(ISERROR(FIND(BC$3,'CFR - XML import'!$A30)),0,VALUE(MID('CFR - XML import'!$A30,SEARCH(\">\",'CFR - XML import'!$A30,1)+1,SEARCH(\"/\",'CFR - XML import'!$A30,1)-SEARCH(\">\",'CFR - XML import'!$A30,1)-2)))","v":0},{"$f":"IF(ISERROR(FIND(BD$3,'CFR - XML import'!$A30)),0,VALUE(MID('CFR - XML import'!$A30,SEARCH(\">\",'CFR - XML import'!$A30,1)+1,SEARCH(\"/\",'CFR - XML import'!$A30,1)-SEARCH(\">\",'CFR - XML import'!$A30,1)-2)))","v":0},{"$f":"IF(ISERROR(FIND(BE$3,'CFR - XML import'!$A30)),0,VALUE(MID('CFR - XML import'!$A30,SEARCH(\">\",'CFR - XML import'!$A30,1)+1,SEARCH(\"/\",'CFR - XML import'!$A30,1)-SEARCH(\">\",'CFR - XML import'!$A30,1)-2)))","v":0},{"$f":"IF(ISERROR(FIND(BF$3,'CFR - XML import'!$A30)),0,VALUE(MID('CFR - XML import'!$A30,SEARCH(\">\",'CFR - XML import'!$A30,1)+1,SEARCH(\"/\",'CFR - XML import'!$A30,1)-SEARCH(\">\",'CFR - XML import'!$A30,1)-2)))","v":0},{"$f":"IF(ISERROR(FIND(BG$3,'CFR - XML import'!$A30)),0,VALUE(MID('CFR - XML import'!$A30,SEARCH(\">\",'CFR - XML import'!$A30,1)+1,SEARCH(\"/\",'CFR - XML import'!$A30,1)-SEARCH(\">\",'CFR - XML import'!$A30,1)-2)))","v":0},{"$f":"IF(ISERROR(FIND(BH$3,'CFR - XML import'!$A30)),0,VALUE(MID('CFR - XML import'!$A30,SEARCH(\">\",'CFR - XML import'!$A30,1)+1,SEARCH(\"/\",'CFR - XML import'!$A30,1)-SEARCH(\">\",'CFR - XML import'!$A30,1)-2)))","v":0},{"$f":"IF(ISERROR(FIND(BI$3,'CFR - XML import'!$A30)),0,VALUE(MID('CFR - XML import'!$A30,SEARCH(\">\",'CFR - XML import'!$A30,1)+1,SEARCH(\"/\",'CFR - XML import'!$A30,1)-SEARCH(\">\",'CFR - XML import'!$A30,1)-2)))","v":0},{"$f":"IF(ISERROR(FIND(BJ$3,'CFR - XML import'!$A30)),0,VALUE(MID('CFR - XML import'!$A30,SEARCH(\">\",'CFR - XML import'!$A30,1)+1,SEARCH(\"/\",'CFR - XML import'!$A30,1)-SEARCH(\">\",'CFR - XML import'!$A30,1)-2)))","v":0},{"$f":"IF(ISERROR(FIND(BK$3,'CFR - XML import'!$A30)),0,VALUE(MID('CFR - XML import'!$A30,SEARCH(\">\",'CFR - XML import'!$A30,1)+1,SEARCH(\"/\",'CFR - XML import'!$A30,1)-SEARCH(\">\",'CFR - XML import'!$A30,1)-2)))","v":0},{"$f":"IF(ISERROR(FIND(BL$3,'CFR - XML import'!$A30)),0,VALUE(MID('CFR - XML import'!$A30,SEARCH(\">\",'CFR - XML import'!$A30,1)+1,SEARCH(\"/\",'CFR - XML import'!$A30,1)-SEARCH(\">\",'CFR - XML import'!$A30,1)-2)))","v":0},{"$f":"IF(ISERROR(FIND(BM$3,'CFR - XML import'!$A30)),0,VALUE(MID('CFR - XML import'!$A30,SEARCH(\">\",'CFR - XML import'!$A30,1)+1,SEARCH(\"/\",'CFR - XML import'!$A30,1)-SEARCH(\">\",'CFR - XML import'!$A30,1)-2)))","v":0},{"$f":"IF(ISERROR(FIND(BN$3,'CFR - XML import'!$A30)),0,VALUE(MID('CFR - XML import'!$A30,SEARCH(\">\",'CFR - XML import'!$A30,1)+1,SEARCH(\"/\",'CFR - XML import'!$A30,1)-SEARCH(\">\",'CFR - XML import'!$A30,1)-2)))","v":0},{"$f":"IF(ISERROR(FIND(BO$3,'CFR - XML import'!$A30)),0,VALUE(MID('CFR - XML import'!$A30,SEARCH(\">\",'CFR - XML import'!$A30,1)+1,SEARCH(\"/\",'CFR - XML import'!$A30,1)-SEARCH(\">\",'CFR - XML import'!$A30,1)-2)))","v":0},{"$f":"IF(ISERROR(FIND(BP$3,'CFR - XML import'!$A30)),0,VALUE(MID('CFR - XML import'!$A30,SEARCH(\">\",'CFR - XML import'!$A30,1)+1,SEARCH(\"/\",'CFR - XML import'!$A30,1)-SEARCH(\">\",'CFR - XML import'!$A30,1)-2)))","v":0},{"$f":"IF(ISERROR(FIND(BQ$3,'CFR - XML import'!$A30)),0,VALUE(MID('CFR - XML import'!$A30,SEARCH(\">\",'CFR - XML import'!$A30,1)+1,SEARCH(\"/\",'CFR - XML import'!$A30,1)-SEARCH(\">\",'CFR - XML import'!$A30,1)-2)))","v":0},{"$f":"IF(ISERROR(FIND(BR$3,'CFR - XML import'!$A30)),0,VALUE(MID('CFR - XML import'!$A30,SEARCH(\">\",'CFR - XML import'!$A30,1)+1,SEARCH(\"/\",'CFR - XML import'!$A30,1)-SEARCH(\">\",'CFR - XML import'!$A30,1)-2)))","v":0},{"$f":"IF(ISERROR(FIND(BS$3,'CFR - XML import'!$A30)),0,VALUE(MID('CFR - XML import'!$A30,SEARCH(\">\",'CFR - XML import'!$A30,1)+1,SEARCH(\"/\",'CFR - XML import'!$A30,1)-SEARCH(\">\",'CFR - XML import'!$A30,1)-2)))","v":0},{"$f":"IF(ISERROR(FIND(BT$3,'CFR - XML import'!$A30)),0,VALUE(MID('CFR - XML import'!$A30,SEARCH(\">\",'CFR - XML import'!$A30,1)+1,SEARCH(\"/\",'CFR - XML import'!$A30,1)-SEARCH(\">\",'CFR - XML import'!$A30,1)-2)))","v":0},{"$f":"IF(ISERROR(FIND(BU$3,'CFR - XML import'!$A30)),0,VALUE(MID('CFR - XML import'!$A30,SEARCH(\">\",'CFR - XML import'!$A30,1)+1,SEARCH(\"/\",'CFR - XML import'!$A30,1)-SEARCH(\">\",'CFR - XML import'!$A30,1)-2)))","v":0},{"$f":"IF(ISERROR(FIND(BV$3,'CFR - XML import'!$A30)),0,VALUE(MID('CFR - XML import'!$A30,SEARCH(\">\",'CFR - XML import'!$A30,1)+1,SEARCH(\"/\",'CFR - XML import'!$A30,1)-SEARCH(\">\",'CFR - XML import'!$A30,1)-2)))","v":0},{"$f":"IF(ISERROR(FIND(BW$3,'CFR - XML import'!$A30)),0,VALUE(MID('CFR - XML import'!$A30,SEARCH(\">\",'CFR - XML import'!$A30,1)+1,SEARCH(\"/\",'CFR - XML import'!$A30,1)-SEARCH(\">\",'CFR - XML import'!$A30,1)-2)))","v":0},{"$f":"IF(ISERROR(FIND(BX$3,'CFR - XML import'!$A30)),0,VALUE(MID('CFR - XML import'!$A30,SEARCH(\">\",'CFR - XML import'!$A30,1)+1,SEARCH(\"/\",'CFR - XML import'!$A30,1)-SEARCH(\">\",'CFR - XML import'!$A30,1)-2)))","v":0},{"$f":"IF(ISERROR(FIND(BY$3,'CFR - XML import'!$A30)),0,VALUE(MID('CFR - XML import'!$A30,SEARCH(\">\",'CFR - XML import'!$A30,1)+1,SEARCH(\"/\",'CFR - XML import'!$A30,1)-SEARCH(\">\",'CFR - XML import'!$A30,1)-2)))","v":0},{"$f":"IF(ISERROR(FIND(BZ$3,'CFR - XML import'!$A30)),0,VALUE(MID('CFR - XML import'!$A30,SEARCH(\">\",'CFR - XML import'!$A30,1)+1,SEARCH(\"/\",'CFR - XML import'!$A30,1)-SEARCH(\">\",'CFR - XML import'!$A30,1)-2)))","v":0},null,null,null,null,null,null,{"$f":"IF(ISERROR(IF(MID('CFR - XML import'!$A30,LEN($CF$4)+1,LEN('CFR - XML import'!$A30)-(2*LEN($CF$4)+1))=\"RMMS\",1,IF(MID('CFR - XML import'!$A30,LEN(\"    <InputSystem>\")+1,LEN('CFR - XML import'!$A30)-(LEN(\"    <InputSystem>\")+LEN($CF$4)+1))=\"SIMS\",2,0))),0,IF(MID('CFR - XML import'!$A30,LEN($CF$4)+1,LEN('CFR - XML import'!$A30)-(2*LEN($CF$4)+1))=\"RMMS\",1,IF(MID('CFR - XML import'!$A30,LEN(\"    <InputSystem>\")+1,LEN('CFR - XML import'!$A30)-(LEN(\"    <InputSystem>\")+LEN($CF$4)+1))=\"SIMS\",2,0)))","v":0},{"$f":"IF(ISERROR(FIND(CH$3,'CFR - XML import'!$A30)),0,MID('CFR - XML import'!$A30,SEARCH(\">\",'CFR - XML import'!$A30,1)+1,SEARCH(\"/\",'CFR - XML import'!$A30,1)-SEARCH(\">\",'CFR - XML import'!$A30,1)-2))","v":0},{"$f":"IF(ISERROR(FIND(CI$3,'CFR - XML import'!$A30)),0,MID('CFR - XML import'!$A30,SEARCH(\">\",'CFR - XML import'!$A30,1)+1,SEARCH(\"/\",'CFR - XML import'!$A30,1)-SEARCH(\">\",'CFR - XML import'!$A30,1)-2))","v":0},{"$f":"IF(ISERROR(FIND(CJ$3,'CFR - XML import'!$A30)),0,MID('CFR - XML import'!$A30,SEARCH(\">\",'CFR - XML import'!$A30,1)+1,SEARCH(\"/\",'CFR - XML import'!$A30,1)-SEARCH(\">\",'CFR - XML import'!$A30,1)-2))","v":0},{"$f":"IF(ISERROR(FIND(CK$3,'CFR - XML import'!$A30)),0,MID('CFR - XML import'!$A30,SEARCH(\">\",'CFR - XML import'!$A30,1)+1,SEARCH(\"/\",'CFR - XML import'!$A30,1)-SEARCH(\">\",'CFR - XML import'!$A30,1)-2))","v":0},{"$f":"IF(ISERROR(FIND(CL$3,'CFR - XML import'!$A30)),0,MID('CFR - XML import'!$A30,SEARCH(\">\",'CFR - XML import'!$A30,1)+1,SEARCH(\"/\",'CFR - XML import'!$A30,1)-SEARCH(\">\",'CFR - XML import'!$A30,1)-2))","v":0}]
[{"$f":"IF(AND('CFR - XML import'!A31<>\"\",LEFT('CFR - XML import'!A31,1)<>\"<\",LEFT('CFR - XML import'!A31,3)<>\"  <\",LEFT('CFR - XML import'!A31,5)<>\"    <\",LEFT('CFR - XML import'!A31,7)<>\"      <\",LEFT('CFR - XML import'!A31,9)<>\"        <\",$B$1=\"SIMS\"),'CFR - XML import'!A31,IF(AND(LEFT('CFR - XML import'!A31,9)=\"<Details>\",$B$1=\"RM\"),'CFR - XML import'!A31,\"\"))","v":""},{"$f":"IF(ISERROR(FIND(B$3,'CFR - XML import'!$A31)),0,VALUE(MID('CFR - XML import'!$A31,SEARCH(\">\",'CFR - XML import'!$A31,1)+1,SEARCH(\"/\",'CFR - XML import'!$A31,1)-SEARCH(\">\",'CFR - XML import'!$A31,1)-2)))","v":0},null,{"$f":"IF(ISERROR(FIND(D$3,'CFR - XML import'!$A31)),0,MID('CFR - XML import'!$A31,SEARCH(\">\",'CFR - XML import'!$A31,1)+1,SEARCH(\"/\",'CFR - XML import'!$A31,1)-SEARCH(\">\",'CFR - XML import'!$A31,1)-2))","v":0},{"$f":"IF(ISERROR(FIND(E$3,'CFR - XML import'!$A31)),0,MID('CFR - XML import'!$A31,SEARCH(\">\",'CFR - XML import'!$A31,1)+1,SEARCH(\"/\",'CFR - XML import'!$A31,1)-SEARCH(\">\",'CFR - XML import'!$A31,1)-2))","v":0},{"$f":"IF($B$1=\"SIMS\",IF(ISERROR(FIND(F$3,'CFR - XML import'!$A31)),0,VALUE(MID('CFR - XML import'!$A31,15,10))),IF(ISERROR(FIND(F$3,'CFR - XML import'!$A31)),0,VALUE(MID('CFR - XML import'!$A31,11,10))))","v":"00:00:00"},{"$f":"IF(ISERROR(FIND(G$3,'CFR - XML import'!$A31)),0,VALUE(MID('CFR - XML import'!$A31,SEARCH(\">\",'CFR - XML import'!$A31,1)+1,SEARCH(\"/\",'CFR - XML import'!$A31,1)-SEARCH(\">\",'CFR - XML import'!$A31,1)-2)))","v":0},{"$f":"IF(ISERROR(FIND(H$3,'CFR - XML import'!$A31)),0,VALUE(MID('CFR - XML import'!$A31,SEARCH(\">\",'CFR - XML import'!$A31,1)+1,SEARCH(\"/\",'CFR - XML import'!$A31,1)-SEARCH(\">\",'CFR - XML import'!$A31,1)-2)))","v":0},{"$f":"IF(ISERROR(FIND(I$3,'CFR - XML import'!$A31)),0,VALUE(MID('CFR - XML import'!$A31,SEARCH(\">\",'CFR - XML import'!$A31,1)+1,SEARCH(\"/\",'CFR - XML import'!$A31,1)-SEARCH(\">\",'CFR - XML import'!$A31,1)-2)))","v":0},{"$f":"IF(ISERROR(FIND(J$3,'CFR - XML import'!$A31)),0,VALUE(MID('CFR - XML import'!$A31,SEARCH(\">\",'CFR - XML import'!$A31,1)+1,SEARCH(\"/\",'CFR - XML import'!$A31,1)-SEARCH(\">\",'CFR - XML import'!$A31,1)-2)))","v":0},{"$f":"IF(ISERROR(FIND(K$3,'CFR - XML import'!$A31)),0,VALUE(MID('CFR - XML import'!$A31,SEARCH(\">\",'CFR - XML import'!$A31,1)+1,SEARCH(\"/\",'CFR - XML import'!$A31,1)-SEARCH(\">\",'CFR - XML import'!$A31,1)-2)))","v":0},{"$f":"IF(ISERROR(FIND(L$3,'CFR - XML import'!$A31)),0,VALUE(MID('CFR - XML import'!$A31,SEARCH(\">\",'CFR - XML import'!$A31,1)+1,SEARCH(\"/\",'CFR - XML import'!$A31,1)-SEARCH(\">\",'CFR - XML import'!$A31,1)-2)))","v":0},{"$f":"IF(ISERROR(FIND(M$3,'CFR - XML import'!$A31)),0,VALUE(MID('CFR - XML import'!$A31,SEARCH(\">\",'CFR - XML import'!$A31,1)+1,SEARCH(\"/\",'CFR - XML import'!$A31,1)-SEARCH(\">\",'CFR - XML import'!$A31,1)-2)))","v":0},{"$f":"IF(ISERROR(FIND(N$3,'CFR - XML import'!$A31)),0,VALUE(MID('CFR - XML import'!$A31,SEARCH(\">\",'CFR - XML import'!$A31,1)+1,SEARCH(\"/\",'CFR - XML import'!$A31,1)-SEARCH(\">\",'CFR - XML import'!$A31,1)-2)))","v":0},{"$f":"IF(ISERROR(FIND(O$3,'CFR - XML import'!$A31)),0,VALUE(MID('CFR - XML import'!$A31,SEARCH(\">\",'CFR - XML import'!$A31,1)+1,SEARCH(\"/\",'CFR - XML import'!$A31,1)-SEARCH(\">\",'CFR - XML import'!$A31,1)-2)))","v":0},{"$f":"IF(ISERROR(FIND(P$3,'CFR - XML import'!$A31)),0,VALUE(MID('CFR - XML import'!$A31,SEARCH(\">\",'CFR - XML import'!$A31,1)+1,SEARCH(\"/\",'CFR - XML import'!$A31,1)-SEARCH(\">\",'CFR - XML import'!$A31,1)-2)))","v":0},{"$f":"IF(ISERROR(FIND(Q$3,'CFR - XML import'!$A31)),0,VALUE(MID('CFR - XML import'!$A31,SEARCH(\">\",'CFR - XML import'!$A31,1)+1,SEARCH(\"/\",'CFR - XML import'!$A31,1)-SEARCH(\">\",'CFR - XML import'!$A31,1)-2)))","v":0},{"$f":"IF(ISERROR(FIND(R$3,'CFR - XML import'!$A31)),0,VALUE(MID('CFR - XML import'!$A31,SEARCH(\">\",'CFR - XML import'!$A31,1)+1,SEARCH(\"/\",'CFR - XML import'!$A31,1)-SEARCH(\">\",'CFR - XML import'!$A31,1)-2)))","v":0},{"$f":"IF(ISERROR(FIND(S$3,'CFR - XML import'!$A31)),0,VALUE(MID('CFR - XML import'!$A31,SEARCH(\">\",'CFR - XML import'!$A31,1)+1,SEARCH(\"/\",'CFR - XML import'!$A31,1)-SEARCH(\">\",'CFR - XML import'!$A31,1)-2)))","v":0},{"$f":"IF(ISERROR(FIND(T$3,'CFR - XML import'!$A31)),0,VALUE(MID('CFR - XML import'!$A31,SEARCH(\">\",'CFR - XML import'!$A31,1)+1,SEARCH(\"/\",'CFR - XML import'!$A31,1)-SEARCH(\">\",'CFR - XML import'!$A31,1)-2)))","v":0},{"$f":"IF(ISERROR(FIND(U$3,'CFR - XML import'!$A31)),0,VALUE(MID('CFR - XML import'!$A31,SEARCH(\">\",'CFR - XML import'!$A31,1)+1,SEARCH(\"/\",'CFR - XML import'!$A31,1)-SEARCH(\">\",'CFR - XML import'!$A31,1)-2)))","v":0},{"$f":"IF(ISERROR(FIND(V$3,'CFR - XML import'!$A31)),0,VALUE(MID('CFR - XML import'!$A31,SEARCH(\">\",'CFR - XML import'!$A31,1)+1,SEARCH(\"/\",'CFR - XML import'!$A31,1)-SEARCH(\">\",'CFR - XML import'!$A31,1)-2)))","v":0},{"$f":"IF(ISERROR(FIND(W$3,'CFR - XML import'!$A31)),0,VALUE(MID('CFR - XML import'!$A31,SEARCH(\">\",'CFR - XML import'!$A31,1)+1,SEARCH(\"/\",'CFR - XML import'!$A31,1)-SEARCH(\">\",'CFR - XML import'!$A31,1)-2)))","v":0},null,{"$f":"IF(ISERROR(FIND(Y$3,'CFR - XML import'!$A31)),0,VALUE(MID('CFR - XML import'!$A31,SEARCH(\">\",'CFR - XML import'!$A31,1)+1,SEARCH(\"/\",'CFR - XML import'!$A31,1)-SEARCH(\">\",'CFR - XML import'!$A31,1)-2)))","v":0},{"$f":"IF(ISERROR(FIND(Z$3,'CFR - XML import'!$A31)),0,VALUE(MID('CFR - XML import'!$A31,SEARCH(\">\",'CFR - XML import'!$A31,1)+1,SEARCH(\"/\",'CFR - XML import'!$A31,1)-SEARCH(\">\",'CFR - XML import'!$A31,1)-2)))","v":0},{"$f":"IF(ISERROR(FIND(AA$3,'CFR - XML import'!$A31)),0,VALUE(MID('CFR - XML import'!$A31,SEARCH(\">\",'CFR - XML import'!$A31,1)+1,SEARCH(\"/\",'CFR - XML import'!$A31,1)-SEARCH(\">\",'CFR - XML import'!$A31,1)-2)))","v":0},{"$f":"IF(ISERROR(FIND(AB$3,'CFR - XML import'!$A31)),0,VALUE(MID('CFR - XML import'!$A31,SEARCH(\">\",'CFR - XML import'!$A31,1)+1,SEARCH(\"/\",'CFR - XML import'!$A31,1)-SEARCH(\">\",'CFR - XML import'!$A31,1)-2)))","v":0},{"$f":"IF(ISERROR(FIND(AC$3,'CFR - XML import'!$A31)),0,VALUE(MID('CFR - XML import'!$A31,SEARCH(\">\",'CFR - XML import'!$A31,1)+1,SEARCH(\"/\",'CFR - XML import'!$A31,1)-SEARCH(\">\",'CFR - XML import'!$A31,1)-2)))","v":0},{"$f":"IF(ISERROR(FIND(AD$3,'CFR - XML import'!$A31)),0,VALUE(MID('CFR - XML import'!$A31,SEARCH(\">\",'CFR - XML import'!$A31,1)+1,SEARCH(\"/\",'CFR - XML import'!$A31,1)-SEARCH(\">\",'CFR - XML import'!$A31,1)-2)))","v":0},{"$f":"IF(ISERROR(FIND(AE$3,'CFR - XML import'!$A31)),0,VALUE(MID('CFR - XML import'!$A31,SEARCH(\">\",'CFR - XML import'!$A31,1)+1,SEARCH(\"/\",'CFR - XML import'!$A31,1)-SEARCH(\">\",'CFR - XML import'!$A31,1)-2)))","v":0},{"$f":"IF(ISERROR(FIND(AF$3,'CFR - XML import'!$A31)),0,VALUE(MID('CFR - XML import'!$A31,SEARCH(\">\",'CFR - XML import'!$A31,1)+1,SEARCH(\"/\",'CFR - XML import'!$A31,1)-SEARCH(\">\",'CFR - XML import'!$A31,1)-2)))","v":0},{"$f":"IF(ISERROR(FIND(AG$3,'CFR - XML import'!$A31)),0,VALUE(MID('CFR - XML import'!$A31,SEARCH(\">\",'CFR - XML import'!$A31,1)+1,SEARCH(\"/\",'CFR - XML import'!$A31,1)-SEARCH(\">\",'CFR - XML import'!$A31,1)-2)))","v":0},{"$f":"IF(ISERROR(FIND(AH$3,'CFR - XML import'!$A31)),0,VALUE(MID('CFR - XML import'!$A31,SEARCH(\">\",'CFR - XML import'!$A31,1)+1,SEARCH(\"/\",'CFR - XML import'!$A31,1)-SEARCH(\">\",'CFR - XML import'!$A31,1)-2)))","v":0},{"$f":"IF(ISERROR(FIND(AI$3,'CFR - XML import'!$A31)),0,VALUE(MID('CFR - XML import'!$A31,SEARCH(\">\",'CFR - XML import'!$A31,1)+1,SEARCH(\"/\",'CFR - XML import'!$A31,1)-SEARCH(\">\",'CFR - XML import'!$A31,1)-2)))","v":0},{"$f":"IF(ISERROR(FIND(AJ$3,'CFR - XML import'!$A31)),0,VALUE(MID('CFR - XML import'!$A31,SEARCH(\">\",'CFR - XML import'!$A31,1)+1,SEARCH(\"/\",'CFR - XML import'!$A31,1)-SEARCH(\">\",'CFR - XML import'!$A31,1)-2)))","v":0},{"$f":"IF(ISERROR(FIND(AK$3,'CFR - XML import'!$A31)),0,VALUE(MID('CFR - XML import'!$A31,SEARCH(\">\",'CFR - XML import'!$A31,1)+1,SEARCH(\"/\",'CFR - XML import'!$A31,1)-SEARCH(\">\",'CFR - XML import'!$A31,1)-2)))","v":0},{"$f":"IF(ISERROR(FIND(AL$3,'CFR - XML import'!$A31)),0,VALUE(MID('CFR - XML import'!$A31,SEARCH(\">\",'CFR - XML import'!$A31,1)+1,SEARCH(\"/\",'CFR - XML import'!$A31,1)-SEARCH(\">\",'CFR - XML import'!$A31,1)-2)))","v":0},{"$f":"IF(ISERROR(FIND(AM$3,'CFR - XML import'!$A31)),0,VALUE(MID('CFR - XML import'!$A31,SEARCH(\">\",'CFR - XML import'!$A31,1)+1,SEARCH(\"/\",'CFR - XML import'!$A31,1)-SEARCH(\">\",'CFR - XML import'!$A31,1)-2)))","v":0},{"$f":"IF(ISERROR(FIND(AN$3,'CFR - XML import'!$A31)),0,VALUE(MID('CFR - XML import'!$A31,SEARCH(\">\",'CFR - XML import'!$A31,1)+1,SEARCH(\"/\",'CFR - XML import'!$A31,1)-SEARCH(\">\",'CFR - XML import'!$A31,1)-2)))","v":0},{"$f":"IF(ISERROR(FIND(AO$3,'CFR - XML import'!$A31)),0,VALUE(MID('CFR - XML import'!$A31,SEARCH(\">\",'CFR - XML import'!$A31,1)+1,SEARCH(\"/\",'CFR - XML import'!$A31,1)-SEARCH(\">\",'CFR - XML import'!$A31,1)-2)))","v":0},{"$f":"IF(ISERROR(FIND(AP$3,'CFR - XML import'!$A31)),0,VALUE(MID('CFR - XML import'!$A31,SEARCH(\">\",'CFR - XML import'!$A31,1)+1,SEARCH(\"/\",'CFR - XML import'!$A31,1)-SEARCH(\">\",'CFR - XML import'!$A31,1)-2)))","v":0},{"$f":"IF(ISERROR(FIND(AQ$3,'CFR - XML import'!$A31)),0,VALUE(MID('CFR - XML import'!$A31,SEARCH(\">\",'CFR - XML import'!$A31,1)+1,SEARCH(\"/\",'CFR - XML import'!$A31,1)-SEARCH(\">\",'CFR - XML import'!$A31,1)-2)))","v":0},{"$f":"IF(ISERROR(FIND(AR$3,'CFR - XML import'!$A31)),0,VALUE(MID('CFR - XML import'!$A31,SEARCH(\">\",'CFR - XML import'!$A31,1)+1,SEARCH(\"/\",'CFR - XML import'!$A31,1)-SEARCH(\">\",'CFR - XML import'!$A31,1)-2)))","v":0},{"$f":"IF(ISERROR(FIND(AS$3,'CFR - XML import'!$A31)),0,VALUE(MID('CFR - XML import'!$A31,SEARCH(\">\",'CFR - XML import'!$A31,1)+1,SEARCH(\"/\",'CFR - XML import'!$A31,1)-SEARCH(\">\",'CFR - XML import'!$A31,1)-2)))","v":0},{"$f":"IF(ISERROR(FIND(AT$3,'CFR - XML import'!$A31)),0,VALUE(MID('CFR - XML import'!$A31,SEARCH(\">\",'CFR - XML import'!$A31,1)+1,SEARCH(\"/\",'CFR - XML import'!$A31,1)-SEARCH(\">\",'CFR - XML import'!$A31,1)-2)))","v":0},{"$f":"IF(ISERROR(FIND(AU$3,'CFR - XML import'!$A31)),0,VALUE(MID('CFR - XML import'!$A31,SEARCH(\">\",'CFR - XML import'!$A31,1)+1,SEARCH(\"/\",'CFR - XML import'!$A31,1)-SEARCH(\">\",'CFR - XML import'!$A31,1)-2)))","v":0},{"$f":"IF(ISERROR(FIND(AV$3,'CFR - XML import'!$A31)),0,VALUE(MID('CFR - XML import'!$A31,SEARCH(\">\",'CFR - XML import'!$A31,1)+1,SEARCH(\"/\",'CFR - XML import'!$A31,1)-SEARCH(\">\",'CFR - XML import'!$A31,1)-2)))","v":0},{"$f":"IF(ISERROR(FIND(AW$3,'CFR - XML import'!$A31)),0,VALUE(MID('CFR - XML import'!$A31,SEARCH(\">\",'CFR - XML import'!$A31,1)+1,SEARCH(\"/\",'CFR - XML import'!$A31,1)-SEARCH(\">\",'CFR - XML import'!$A31,1)-2)))","v":0},{"$f":"IF(ISERROR(FIND(AX$3,'CFR - XML import'!$A31)),0,VALUE(MID('CFR - XML import'!$A31,SEARCH(\">\",'CFR - XML import'!$A31,1)+1,SEARCH(\"/\",'CFR - XML import'!$A31,1)-SEARCH(\">\",'CFR - XML import'!$A31,1)-2)))","v":0},{"$f":"IF(ISERROR(FIND(AY$3,'CFR - XML import'!$A31)),0,VALUE(MID('CFR - XML import'!$A31,SEARCH(\">\",'CFR - XML import'!$A31,1)+1,SEARCH(\"/\",'CFR - XML import'!$A31,1)-SEARCH(\">\",'CFR - XML import'!$A31,1)-2)))","v":0},{"$f":"IF(ISERROR(FIND(AZ$3,'CFR - XML import'!$A31)),0,VALUE(MID('CFR - XML import'!$A31,SEARCH(\">\",'CFR - XML import'!$A31,1)+1,SEARCH(\"/\",'CFR - XML import'!$A31,1)-SEARCH(\">\",'CFR - XML import'!$A31,1)-2)))","v":0},{"$f":"IF(ISERROR(FIND(BA$3,'CFR - XML import'!$A31)),0,VALUE(MID('CFR - XML import'!$A31,SEARCH(\">\",'CFR - XML import'!$A31,1)+1,SEARCH(\"/\",'CFR - XML import'!$A31,1)-SEARCH(\">\",'CFR - XML import'!$A31,1)-2)))","v":0},{"$f":"IF(ISERROR(FIND(BB$3,'CFR - XML import'!$A31)),0,VALUE(MID('CFR - XML import'!$A31,SEARCH(\">\",'CFR - XML import'!$A31,1)+1,SEARCH(\"/\",'CFR - XML import'!$A31,1)-SEARCH(\">\",'CFR - XML import'!$A31,1)-2)))","v":0},{"$f":"IF(ISERROR(FIND(BC$3,'CFR - XML import'!$A31)),0,VALUE(MID('CFR - XML import'!$A31,SEARCH(\">\",'CFR - XML import'!$A31,1)+1,SEARCH(\"/\",'CFR - XML import'!$A31,1)-SEARCH(\">\",'CFR - XML import'!$A31,1)-2)))","v":0},{"$f":"IF(ISERROR(FIND(BD$3,'CFR - XML import'!$A31)),0,VALUE(MID('CFR - XML import'!$A31,SEARCH(\">\",'CFR - XML import'!$A31,1)+1,SEARCH(\"/\",'CFR - XML import'!$A31,1)-SEARCH(\">\",'CFR - XML import'!$A31,1)-2)))","v":0},{"$f":"IF(ISERROR(FIND(BE$3,'CFR - XML import'!$A31)),0,VALUE(MID('CFR - XML import'!$A31,SEARCH(\">\",'CFR - XML import'!$A31,1)+1,SEARCH(\"/\",'CFR - XML import'!$A31,1)-SEARCH(\">\",'CFR - XML import'!$A31,1)-2)))","v":0},{"$f":"IF(ISERROR(FIND(BF$3,'CFR - XML import'!$A31)),0,VALUE(MID('CFR - XML import'!$A31,SEARCH(\">\",'CFR - XML import'!$A31,1)+1,SEARCH(\"/\",'CFR - XML import'!$A31,1)-SEARCH(\">\",'CFR - XML import'!$A31,1)-2)))","v":0},{"$f":"IF(ISERROR(FIND(BG$3,'CFR - XML import'!$A31)),0,VALUE(MID('CFR - XML import'!$A31,SEARCH(\">\",'CFR - XML import'!$A31,1)+1,SEARCH(\"/\",'CFR - XML import'!$A31,1)-SEARCH(\">\",'CFR - XML import'!$A31,1)-2)))","v":0},{"$f":"IF(ISERROR(FIND(BH$3,'CFR - XML import'!$A31)),0,VALUE(MID('CFR - XML import'!$A31,SEARCH(\">\",'CFR - XML import'!$A31,1)+1,SEARCH(\"/\",'CFR - XML import'!$A31,1)-SEARCH(\">\",'CFR - XML import'!$A31,1)-2)))","v":0},{"$f":"IF(ISERROR(FIND(BI$3,'CFR - XML import'!$A31)),0,VALUE(MID('CFR - XML import'!$A31,SEARCH(\">\",'CFR - XML import'!$A31,1)+1,SEARCH(\"/\",'CFR - XML import'!$A31,1)-SEARCH(\">\",'CFR - XML import'!$A31,1)-2)))","v":0},{"$f":"IF(ISERROR(FIND(BJ$3,'CFR - XML import'!$A31)),0,VALUE(MID('CFR - XML import'!$A31,SEARCH(\">\",'CFR - XML import'!$A31,1)+1,SEARCH(\"/\",'CFR - XML import'!$A31,1)-SEARCH(\">\",'CFR - XML import'!$A31,1)-2)))","v":0},{"$f":"IF(ISERROR(FIND(BK$3,'CFR - XML import'!$A31)),0,VALUE(MID('CFR - XML import'!$A31,SEARCH(\">\",'CFR - XML import'!$A31,1)+1,SEARCH(\"/\",'CFR - XML import'!$A31,1)-SEARCH(\">\",'CFR - XML import'!$A31,1)-2)))","v":0},{"$f":"IF(ISERROR(FIND(BL$3,'CFR - XML import'!$A31)),0,VALUE(MID('CFR - XML import'!$A31,SEARCH(\">\",'CFR - XML import'!$A31,1)+1,SEARCH(\"/\",'CFR - XML import'!$A31,1)-SEARCH(\">\",'CFR - XML import'!$A31,1)-2)))","v":0},{"$f":"IF(ISERROR(FIND(BM$3,'CFR - XML import'!$A31)),0,VALUE(MID('CFR - XML import'!$A31,SEARCH(\">\",'CFR - XML import'!$A31,1)+1,SEARCH(\"/\",'CFR - XML import'!$A31,1)-SEARCH(\">\",'CFR - XML import'!$A31,1)-2)))","v":0},{"$f":"IF(ISERROR(FIND(BN$3,'CFR - XML import'!$A31)),0,VALUE(MID('CFR - XML import'!$A31,SEARCH(\">\",'CFR - XML import'!$A31,1)+1,SEARCH(\"/\",'CFR - XML import'!$A31,1)-SEARCH(\">\",'CFR - XML import'!$A31,1)-2)))","v":0},{"$f":"IF(ISERROR(FIND(BO$3,'CFR - XML import'!$A31)),0,VALUE(MID('CFR - XML import'!$A31,SEARCH(\">\",'CFR - XML import'!$A31,1)+1,SEARCH(\"/\",'CFR - XML import'!$A31,1)-SEARCH(\">\",'CFR - XML import'!$A31,1)-2)))","v":0},{"$f":"IF(ISERROR(FIND(BP$3,'CFR - XML import'!$A31)),0,VALUE(MID('CFR - XML import'!$A31,SEARCH(\">\",'CFR - XML import'!$A31,1)+1,SEARCH(\"/\",'CFR - XML import'!$A31,1)-SEARCH(\">\",'CFR - XML import'!$A31,1)-2)))","v":0},{"$f":"IF(ISERROR(FIND(BQ$3,'CFR - XML import'!$A31)),0,VALUE(MID('CFR - XML import'!$A31,SEARCH(\">\",'CFR - XML import'!$A31,1)+1,SEARCH(\"/\",'CFR - XML import'!$A31,1)-SEARCH(\">\",'CFR - XML import'!$A31,1)-2)))","v":0},{"$f":"IF(ISERROR(FIND(BR$3,'CFR - XML import'!$A31)),0,VALUE(MID('CFR - XML import'!$A31,SEARCH(\">\",'CFR - XML import'!$A31,1)+1,SEARCH(\"/\",'CFR - XML import'!$A31,1)-SEARCH(\">\",'CFR - XML import'!$A31,1)-2)))","v":0},{"$f":"IF(ISERROR(FIND(BS$3,'CFR - XML import'!$A31)),0,VALUE(MID('CFR - XML import'!$A31,SEARCH(\">\",'CFR - XML import'!$A31,1)+1,SEARCH(\"/\",'CFR - XML import'!$A31,1)-SEARCH(\">\",'CFR - XML import'!$A31,1)-2)))","v":0},{"$f":"IF(ISERROR(FIND(BT$3,'CFR - XML import'!$A31)),0,VALUE(MID('CFR - XML import'!$A31,SEARCH(\">\",'CFR - XML import'!$A31,1)+1,SEARCH(\"/\",'CFR - XML import'!$A31,1)-SEARCH(\">\",'CFR - XML import'!$A31,1)-2)))","v":0},{"$f":"IF(ISERROR(FIND(BU$3,'CFR - XML import'!$A31)),0,VALUE(MID('CFR - XML import'!$A31,SEARCH(\">\",'CFR - XML import'!$A31,1)+1,SEARCH(\"/\",'CFR - XML import'!$A31,1)-SEARCH(\">\",'CFR - XML import'!$A31,1)-2)))","v":0},{"$f":"IF(ISERROR(FIND(BV$3,'CFR - XML import'!$A31)),0,VALUE(MID('CFR - XML import'!$A31,SEARCH(\">\",'CFR - XML import'!$A31,1)+1,SEARCH(\"/\",'CFR - XML import'!$A31,1)-SEARCH(\">\",'CFR - XML import'!$A31,1)-2)))","v":0},{"$f":"IF(ISERROR(FIND(BW$3,'CFR - XML import'!$A31)),0,VALUE(MID('CFR - XML import'!$A31,SEARCH(\">\",'CFR - XML import'!$A31,1)+1,SEARCH(\"/\",'CFR - XML import'!$A31,1)-SEARCH(\">\",'CFR - XML import'!$A31,1)-2)))","v":0},{"$f":"IF(ISERROR(FIND(BX$3,'CFR - XML import'!$A31)),0,VALUE(MID('CFR - XML import'!$A31,SEARCH(\">\",'CFR - XML import'!$A31,1)+1,SEARCH(\"/\",'CFR - XML import'!$A31,1)-SEARCH(\">\",'CFR - XML import'!$A31,1)-2)))","v":0},{"$f":"IF(ISERROR(FIND(BY$3,'CFR - XML import'!$A31)),0,VALUE(MID('CFR - XML import'!$A31,SEARCH(\">\",'CFR - XML import'!$A31,1)+1,SEARCH(\"/\",'CFR - XML import'!$A31,1)-SEARCH(\">\",'CFR - XML import'!$A31,1)-2)))","v":0},{"$f":"IF(ISERROR(FIND(BZ$3,'CFR - XML import'!$A31)),0,VALUE(MID('CFR - XML import'!$A31,SEARCH(\">\",'CFR - XML import'!$A31,1)+1,SEARCH(\"/\",'CFR - XML import'!$A31,1)-SEARCH(\">\",'CFR - XML import'!$A31,1)-2)))","v":0},null,null,null,null,null,null,{"$f":"IF(ISERROR(IF(MID('CFR - XML import'!$A31,LEN($CF$4)+1,LEN('CFR - XML import'!$A31)-(2*LEN($CF$4)+1))=\"RMMS\",1,IF(MID('CFR - XML import'!$A31,LEN(\"    <InputSystem>\")+1,LEN('CFR - XML import'!$A31)-(LEN(\"    <InputSystem>\")+LEN($CF$4)+1))=\"SIMS\",2,0))),0,IF(MID('CFR - XML import'!$A31,LEN($CF$4)+1,LEN('CFR - XML import'!$A31)-(2*LEN($CF$4)+1))=\"RMMS\",1,IF(MID('CFR - XML import'!$A31,LEN(\"    <InputSystem>\")+1,LEN('CFR - XML import'!$A31)-(LEN(\"    <InputSystem>\")+LEN($CF$4)+1))=\"SIMS\",2,0)))","v":0},{"$f":"IF(ISERROR(FIND(CH$3,'CFR - XML import'!$A31)),0,MID('CFR - XML import'!$A31,SEARCH(\">\",'CFR - XML import'!$A31,1)+1,SEARCH(\"/\",'CFR - XML import'!$A31,1)-SEARCH(\">\",'CFR - XML import'!$A31,1)-2))","v":0},{"$f":"IF(ISERROR(FIND(CI$3,'CFR - XML import'!$A31)),0,MID('CFR - XML import'!$A31,SEARCH(\">\",'CFR - XML import'!$A31,1)+1,SEARCH(\"/\",'CFR - XML import'!$A31,1)-SEARCH(\">\",'CFR - XML import'!$A31,1)-2))","v":0},{"$f":"IF(ISERROR(FIND(CJ$3,'CFR - XML import'!$A31)),0,MID('CFR - XML import'!$A31,SEARCH(\">\",'CFR - XML import'!$A31,1)+1,SEARCH(\"/\",'CFR - XML import'!$A31,1)-SEARCH(\">\",'CFR - XML import'!$A31,1)-2))","v":0},{"$f":"IF(ISERROR(FIND(CK$3,'CFR - XML import'!$A31)),0,MID('CFR - XML import'!$A31,SEARCH(\">\",'CFR - XML import'!$A31,1)+1,SEARCH(\"/\",'CFR - XML import'!$A31,1)-SEARCH(\">\",'CFR - XML import'!$A31,1)-2))","v":0},{"$f":"IF(ISERROR(FIND(CL$3,'CFR - XML import'!$A31)),0,MID('CFR - XML import'!$A31,SEARCH(\">\",'CFR - XML import'!$A31,1)+1,SEARCH(\"/\",'CFR - XML import'!$A31,1)-SEARCH(\">\",'CFR - XML import'!$A31,1)-2))","v":0}]
[{"$f":"IF(AND('CFR - XML import'!A32<>\"\",LEFT('CFR - XML import'!A32,1)<>\"<\",LEFT('CFR - XML import'!A32,3)<>\"  <\",LEFT('CFR - XML import'!A32,5)<>\"    <\",LEFT('CFR - XML import'!A32,7)<>\"      <\",LEFT('CFR - XML import'!A32,9)<>\"        <\",$B$1=\"SIMS\"),'CFR - XML import'!A32,IF(AND(LEFT('CFR - XML import'!A32,9)=\"<Details>\",$B$1=\"RM\"),'CFR - XML import'!A32,\"\"))","v":""},{"$f":"IF(ISERROR(FIND(B$3,'CFR - XML import'!$A32)),0,VALUE(MID('CFR - XML import'!$A32,SEARCH(\">\",'CFR - XML import'!$A32,1)+1,SEARCH(\"/\",'CFR - XML import'!$A32,1)-SEARCH(\">\",'CFR - XML import'!$A32,1)-2)))","v":0},null,{"$f":"IF(ISERROR(FIND(D$3,'CFR - XML import'!$A32)),0,MID('CFR - XML import'!$A32,SEARCH(\">\",'CFR - XML import'!$A32,1)+1,SEARCH(\"/\",'CFR - XML import'!$A32,1)-SEARCH(\">\",'CFR - XML import'!$A32,1)-2))","v":0},{"$f":"IF(ISERROR(FIND(E$3,'CFR - XML import'!$A32)),0,MID('CFR - XML import'!$A32,SEARCH(\">\",'CFR - XML import'!$A32,1)+1,SEARCH(\"/\",'CFR - XML import'!$A32,1)-SEARCH(\">\",'CFR - XML import'!$A32,1)-2))","v":0},{"$f":"IF($B$1=\"SIMS\",IF(ISERROR(FIND(F$3,'CFR - XML import'!$A32)),0,VALUE(MID('CFR - XML import'!$A32,15,10))),IF(ISERROR(FIND(F$3,'CFR - XML import'!$A32)),0,VALUE(MID('CFR - XML import'!$A32,11,10))))","v":"00:00:00"},{"$f":"IF(ISERROR(FIND(G$3,'CFR - XML import'!$A32)),0,VALUE(MID('CFR - XML import'!$A32,SEARCH(\">\",'CFR - XML import'!$A32,1)+1,SEARCH(\"/\",'CFR - XML import'!$A32,1)-SEARCH(\">\",'CFR - XML import'!$A32,1)-2)))","v":0},{"$f":"IF(ISERROR(FIND(H$3,'CFR - XML import'!$A32)),0,VALUE(MID('CFR - XML import'!$A32,SEARCH(\">\",'CFR - XML import'!$A32,1)+1,SEARCH(\"/\",'CFR - XML import'!$A32,1)-SEARCH(\">\",'CFR - XML import'!$A32,1)-2)))","v":0},{"$f":"IF(ISERROR(FIND(I$3,'CFR - XML import'!$A32)),0,VALUE(MID('CFR - XML import'!$A32,SEARCH(\">\",'CFR - XML import'!$A32,1)+1,SEARCH(\"/\",'CFR - XML import'!$A32,1)-SEARCH(\">\",'CFR - XML import'!$A32,1)-2)))","v":0},{"$f":"IF(ISERROR(FIND(J$3,'CFR - XML import'!$A32)),0,VALUE(MID('CFR - XML import'!$A32,SEARCH(\">\",'CFR - XML import'!$A32,1)+1,SEARCH(\"/\",'CFR - XML import'!$A32,1)-SEARCH(\">\",'CFR - XML import'!$A32,1)-2)))","v":0},{"$f":"IF(ISERROR(FIND(K$3,'CFR - XML import'!$A32)),0,VALUE(MID('CFR - XML import'!$A32,SEARCH(\">\",'CFR - XML import'!$A32,1)+1,SEARCH(\"/\",'CFR - XML import'!$A32,1)-SEARCH(\">\",'CFR - XML import'!$A32,1)-2)))","v":0},{"$f":"IF(ISERROR(FIND(L$3,'CFR - XML import'!$A32)),0,VALUE(MID('CFR - XML import'!$A32,SEARCH(\">\",'CFR - XML import'!$A32,1)+1,SEARCH(\"/\",'CFR - XML import'!$A32,1)-SEARCH(\">\",'CFR - XML import'!$A32,1)-2)))","v":0},{"$f":"IF(ISERROR(FIND(M$3,'CFR - XML import'!$A32)),0,VALUE(MID('CFR - XML import'!$A32,SEARCH(\">\",'CFR - XML import'!$A32,1)+1,SEARCH(\"/\",'CFR - XML import'!$A32,1)-SEARCH(\">\",'CFR - XML import'!$A32,1)-2)))","v":0},{"$f":"IF(ISERROR(FIND(N$3,'CFR - XML import'!$A32)),0,VALUE(MID('CFR - XML import'!$A32,SEARCH(\">\",'CFR - XML import'!$A32,1)+1,SEARCH(\"/\",'CFR - XML import'!$A32,1)-SEARCH(\">\",'CFR - XML import'!$A32,1)-2)))","v":0},{"$f":"IF(ISERROR(FIND(O$3,'CFR - XML import'!$A32)),0,VALUE(MID('CFR - XML import'!$A32,SEARCH(\">\",'CFR - XML import'!$A32,1)+1,SEARCH(\"/\",'CFR - XML import'!$A32,1)-SEARCH(\">\",'CFR - XML import'!$A32,1)-2)))","v":0},{"$f":"IF(ISERROR(FIND(P$3,'CFR - XML import'!$A32)),0,VALUE(MID('CFR - XML import'!$A32,SEARCH(\">\",'CFR - XML import'!$A32,1)+1,SEARCH(\"/\",'CFR - XML import'!$A32,1)-SEARCH(\">\",'CFR - XML import'!$A32,1)-2)))","v":0},{"$f":"IF(ISERROR(FIND(Q$3,'CFR - XML import'!$A32)),0,VALUE(MID('CFR - XML import'!$A32,SEARCH(\">\",'CFR - XML import'!$A32,1)+1,SEARCH(\"/\",'CFR - XML import'!$A32,1)-SEARCH(\">\",'CFR - XML import'!$A32,1)-2)))","v":0},{"$f":"IF(ISERROR(FIND(R$3,'CFR - XML import'!$A32)),0,VALUE(MID('CFR - XML import'!$A32,SEARCH(\">\",'CFR - XML import'!$A32,1)+1,SEARCH(\"/\",'CFR - XML import'!$A32,1)-SEARCH(\">\",'CFR - XML import'!$A32,1)-2)))","v":0},{"$f":"IF(ISERROR(FIND(S$3,'CFR - XML import'!$A32)),0,VALUE(MID('CFR - XML import'!$A32,SEARCH(\">\",'CFR - XML import'!$A32,1)+1,SEARCH(\"/\",'CFR - XML import'!$A32,1)-SEARCH(\">\",'CFR - XML import'!$A32,1)-2)))","v":0},{"$f":"IF(ISERROR(FIND(T$3,'CFR - XML import'!$A32)),0,VALUE(MID('CFR - XML import'!$A32,SEARCH(\">\",'CFR - XML import'!$A32,1)+1,SEARCH(\"/\",'CFR - XML import'!$A32,1)-SEARCH(\">\",'CFR - XML import'!$A32,1)-2)))","v":0},{"$f":"IF(ISERROR(FIND(U$3,'CFR - XML import'!$A32)),0,VALUE(MID('CFR - XML import'!$A32,SEARCH(\">\",'CFR - XML import'!$A32,1)+1,SEARCH(\"/\",'CFR - XML import'!$A32,1)-SEARCH(\">\",'CFR - XML import'!$A32,1)-2)))","v":0},{"$f":"IF(ISERROR(FIND(V$3,'CFR - XML import'!$A32)),0,VALUE(MID('CFR - XML import'!$A32,SEARCH(\">\",'CFR - XML import'!$A32,1)+1,SEARCH(\"/\",'CFR - XML import'!$A32,1)-SEARCH(\">\",'CFR - XML import'!$A32,1)-2)))","v":0},{"$f":"IF(ISERROR(FIND(W$3,'CFR - XML import'!$A32)),0,VALUE(MID('CFR - XML import'!$A32,SEARCH(\">\",'CFR - XML import'!$A32,1)+1,SEARCH(\"/\",'CFR - XML import'!$A32,1)-SEARCH(\">\",'CFR - XML import'!$A32,1)-2)))","v":0},null,{"$f":"IF(ISERROR(FIND(Y$3,'CFR - XML import'!$A32)),0,VALUE(MID('CFR - XML import'!$A32,SEARCH(\">\",'CFR - XML import'!$A32,1)+1,SEARCH(\"/\",'CFR - XML import'!$A32,1)-SEARCH(\">\",'CFR - XML import'!$A32,1)-2)))","v":0},{"$f":"IF(ISERROR(FIND(Z$3,'CFR - XML import'!$A32)),0,VALUE(MID('CFR - XML import'!$A32,SEARCH(\">\",'CFR - XML import'!$A32,1)+1,SEARCH(\"/\",'CFR - XML import'!$A32,1)-SEARCH(\">\",'CFR - XML import'!$A32,1)-2)))","v":0},{"$f":"IF(ISERROR(FIND(AA$3,'CFR - XML import'!$A32)),0,VALUE(MID('CFR - XML import'!$A32,SEARCH(\">\",'CFR - XML import'!$A32,1)+1,SEARCH(\"/\",'CFR - XML import'!$A32,1)-SEARCH(\">\",'CFR - XML import'!$A32,1)-2)))","v":0},{"$f":"IF(ISERROR(FIND(AB$3,'CFR - XML import'!$A32)),0,VALUE(MID('CFR - XML import'!$A32,SEARCH(\">\",'CFR - XML import'!$A32,1)+1,SEARCH(\"/\",'CFR - XML import'!$A32,1)-SEARCH(\">\",'CFR - XML import'!$A32,1)-2)))","v":0},{"$f":"IF(ISERROR(FIND(AC$3,'CFR - XML import'!$A32)),0,VALUE(MID('CFR - XML import'!$A32,SEARCH(\">\",'CFR - XML import'!$A32,1)+1,SEARCH(\"/\",'CFR - XML import'!$A32,1)-SEARCH(\">\",'CFR - XML import'!$A32,1)-2)))","v":0},{"$f":"IF(ISERROR(FIND(AD$3,'CFR - XML import'!$A32)),0,VALUE(MID('CFR - XML import'!$A32,SEARCH(\">\",'CFR - XML import'!$A32,1)+1,SEARCH(\"/\",'CFR - XML import'!$A32,1)-SEARCH(\">\",'CFR - XML import'!$A32,1)-2)))","v":0},{"$f":"IF(ISERROR(FIND(AE$3,'CFR - XML import'!$A32)),0,VALUE(MID('CFR - XML import'!$A32,SEARCH(\">\",'CFR - XML import'!$A32,1)+1,SEARCH(\"/\",'CFR - XML import'!$A32,1)-SEARCH(\">\",'CFR - XML import'!$A32,1)-2)))","v":0},{"$f":"IF(ISERROR(FIND(AF$3,'CFR - XML import'!$A32)),0,VALUE(MID('CFR - XML import'!$A32,SEARCH(\">\",'CFR - XML import'!$A32,1)+1,SEARCH(\"/\",'CFR - XML import'!$A32,1)-SEARCH(\">\",'CFR - XML import'!$A32,1)-2)))","v":0},{"$f":"IF(ISERROR(FIND(AG$3,'CFR - XML import'!$A32)),0,VALUE(MID('CFR - XML import'!$A32,SEARCH(\">\",'CFR - XML import'!$A32,1)+1,SEARCH(\"/\",'CFR - XML import'!$A32,1)-SEARCH(\">\",'CFR - XML import'!$A32,1)-2)))","v":0},{"$f":"IF(ISERROR(FIND(AH$3,'CFR - XML import'!$A32)),0,VALUE(MID('CFR - XML import'!$A32,SEARCH(\">\",'CFR - XML import'!$A32,1)+1,SEARCH(\"/\",'CFR - XML import'!$A32,1)-SEARCH(\">\",'CFR - XML import'!$A32,1)-2)))","v":0},{"$f":"IF(ISERROR(FIND(AI$3,'CFR - XML import'!$A32)),0,VALUE(MID('CFR - XML import'!$A32,SEARCH(\">\",'CFR - XML import'!$A32,1)+1,SEARCH(\"/\",'CFR - XML import'!$A32,1)-SEARCH(\">\",'CFR - XML import'!$A32,1)-2)))","v":0},{"$f":"IF(ISERROR(FIND(AJ$3,'CFR - XML import'!$A32)),0,VALUE(MID('CFR - XML import'!$A32,SEARCH(\">\",'CFR - XML import'!$A32,1)+1,SEARCH(\"/\",'CFR - XML import'!$A32,1)-SEARCH(\">\",'CFR - XML import'!$A32,1)-2)))","v":0},{"$f":"IF(ISERROR(FIND(AK$3,'CFR - XML import'!$A32)),0,VALUE(MID('CFR - XML import'!$A32,SEARCH(\">\",'CFR - XML import'!$A32,1)+1,SEARCH(\"/\",'CFR - XML import'!$A32,1)-SEARCH(\">\",'CFR - XML import'!$A32,1)-2)))","v":0},{"$f":"IF(ISERROR(FIND(AL$3,'CFR - XML import'!$A32)),0,VALUE(MID('CFR - XML import'!$A32,SEARCH(\">\",'CFR - XML import'!$A32,1)+1,SEARCH(\"/\",'CFR - XML import'!$A32,1)-SEARCH(\">\",'CFR - XML import'!$A32,1)-2)))","v":0},{"$f":"IF(ISERROR(FIND(AM$3,'CFR - XML import'!$A32)),0,VALUE(MID('CFR - XML import'!$A32,SEARCH(\">\",'CFR - XML import'!$A32,1)+1,SEARCH(\"/\",'CFR - XML import'!$A32,1)-SEARCH(\">\",'CFR - XML import'!$A32,1)-2)))","v":0},{"$f":"IF(ISERROR(FIND(AN$3,'CFR - XML import'!$A32)),0,VALUE(MID('CFR - XML import'!$A32,SEARCH(\">\",'CFR - XML import'!$A32,1)+1,SEARCH(\"/\",'CFR - XML import'!$A32,1)-SEARCH(\">\",'CFR - XML import'!$A32,1)-2)))","v":0},{"$f":"IF(ISERROR(FIND(AO$3,'CFR - XML import'!$A32)),0,VALUE(MID('CFR - XML import'!$A32,SEARCH(\">\",'CFR - XML import'!$A32,1)+1,SEARCH(\"/\",'CFR - XML import'!$A32,1)-SEARCH(\">\",'CFR - XML import'!$A32,1)-2)))","v":0},{"$f":"IF(ISERROR(FIND(AP$3,'CFR - XML import'!$A32)),0,VALUE(MID('CFR - XML import'!$A32,SEARCH(\">\",'CFR - XML import'!$A32,1)+1,SEARCH(\"/\",'CFR - XML import'!$A32,1)-SEARCH(\">\",'CFR - XML import'!$A32,1)-2)))","v":0},{"$f":"IF(ISERROR(FIND(AQ$3,'CFR - XML import'!$A32)),0,VALUE(MID('CFR - XML import'!$A32,SEARCH(\">\",'CFR - XML import'!$A32,1)+1,SEARCH(\"/\",'CFR - XML import'!$A32,1)-SEARCH(\">\",'CFR - XML import'!$A32,1)-2)))","v":0},{"$f":"IF(ISERROR(FIND(AR$3,'CFR - XML import'!$A32)),0,VALUE(MID('CFR - XML import'!$A32,SEARCH(\">\",'CFR - XML import'!$A32,1)+1,SEARCH(\"/\",'CFR - XML import'!$A32,1)-SEARCH(\">\",'CFR - XML import'!$A32,1)-2)))","v":0},{"$f":"IF(ISERROR(FIND(AS$3,'CFR - XML import'!$A32)),0,VALUE(MID('CFR - XML import'!$A32,SEARCH(\">\",'CFR - XML import'!$A32,1)+1,SEARCH(\"/\",'CFR - XML import'!$A32,1)-SEARCH(\">\",'CFR - XML import'!$A32,1)-2)))","v":0},{"$f":"IF(ISERROR(FIND(AT$3,'CFR - XML import'!$A32)),0,VALUE(MID('CFR - XML import'!$A32,SEARCH(\">\",'CFR - XML import'!$A32,1)+1,SEARCH(\"/\",'CFR - XML import'!$A32,1)-SEARCH(\">\",'CFR - XML import'!$A32,1)-2)))","v":0},{"$f":"IF(ISERROR(FIND(AU$3,'CFR - XML import'!$A32)),0,VALUE(MID('CFR - XML import'!$A32,SEARCH(\">\",'CFR - XML import'!$A32,1)+1,SEARCH(\"/\",'CFR - XML import'!$A32,1)-SEARCH(\">\",'CFR - XML import'!$A32,1)-2)))","v":0},{"$f":"IF(ISERROR(FIND(AV$3,'CFR - XML import'!$A32)),0,VALUE(MID('CFR - XML import'!$A32,SEARCH(\">\",'CFR - XML import'!$A32,1)+1,SEARCH(\"/\",'CFR - XML import'!$A32,1)-SEARCH(\">\",'CFR - XML import'!$A32,1)-2)))","v":0},{"$f":"IF(ISERROR(FIND(AW$3,'CFR - XML import'!$A32)),0,VALUE(MID('CFR - XML import'!$A32,SEARCH(\">\",'CFR - XML import'!$A32,1)+1,SEARCH(\"/\",'CFR - XML import'!$A32,1)-SEARCH(\">\",'CFR - XML import'!$A32,1)-2)))","v":0},{"$f":"IF(ISERROR(FIND(AX$3,'CFR - XML import'!$A32)),0,VALUE(MID('CFR - XML import'!$A32,SEARCH(\">\",'CFR - XML import'!$A32,1)+1,SEARCH(\"/\",'CFR - XML import'!$A32,1)-SEARCH(\">\",'CFR - XML import'!$A32,1)-2)))","v":0},{"$f":"IF(ISERROR(FIND(AY$3,'CFR - XML import'!$A32)),0,VALUE(MID('CFR - XML import'!$A32,SEARCH(\">\",'CFR - XML import'!$A32,1)+1,SEARCH(\"/\",'CFR - XML import'!$A32,1)-SEARCH(\">\",'CFR - XML import'!$A32,1)-2)))","v":0},{"$f":"IF(ISERROR(FIND(AZ$3,'CFR - XML import'!$A32)),0,VALUE(MID('CFR - XML import'!$A32,SEARCH(\">\",'CFR - XML import'!$A32,1)+1,SEARCH(\"/\",'CFR - XML import'!$A32,1)-SEARCH(\">\",'CFR - XML import'!$A32,1)-2)))","v":0},{"$f":"IF(ISERROR(FIND(BA$3,'CFR - XML import'!$A32)),0,VALUE(MID('CFR - XML import'!$A32,SEARCH(\">\",'CFR - XML import'!$A32,1)+1,SEARCH(\"/\",'CFR - XML import'!$A32,1)-SEARCH(\">\",'CFR - XML import'!$A32,1)-2)))","v":0},{"$f":"IF(ISERROR(FIND(BB$3,'CFR - XML import'!$A32)),0,VALUE(MID('CFR - XML import'!$A32,SEARCH(\">\",'CFR - XML import'!$A32,1)+1,SEARCH(\"/\",'CFR - XML import'!$A32,1)-SEARCH(\">\",'CFR - XML import'!$A32,1)-2)))","v":0},{"$f":"IF(ISERROR(FIND(BC$3,'CFR - XML import'!$A32)),0,VALUE(MID('CFR - XML import'!$A32,SEARCH(\">\",'CFR - XML import'!$A32,1)+1,SEARCH(\"/\",'CFR - XML import'!$A32,1)-SEARCH(\">\",'CFR - XML import'!$A32,1)-2)))","v":0},{"$f":"IF(ISERROR(FIND(BD$3,'CFR - XML import'!$A32)),0,VALUE(MID('CFR - XML import'!$A32,SEARCH(\">\",'CFR - XML import'!$A32,1)+1,SEARCH(\"/\",'CFR - XML import'!$A32,1)-SEARCH(\">\",'CFR - XML import'!$A32,1)-2)))","v":0},{"$f":"IF(ISERROR(FIND(BE$3,'CFR - XML import'!$A32)),0,VALUE(MID('CFR - XML import'!$A32,SEARCH(\">\",'CFR - XML import'!$A32,1)+1,SEARCH(\"/\",'CFR - XML import'!$A32,1)-SEARCH(\">\",'CFR - XML import'!$A32,1)-2)))","v":0},{"$f":"IF(ISERROR(FIND(BF$3,'CFR - XML import'!$A32)),0,VALUE(MID('CFR - XML import'!$A32,SEARCH(\">\",'CFR - XML import'!$A32,1)+1,SEARCH(\"/\",'CFR - XML import'!$A32,1)-SEARCH(\">\",'CFR - XML import'!$A32,1)-2)))","v":0},{"$f":"IF(ISERROR(FIND(BG$3,'CFR - XML import'!$A32)),0,VALUE(MID('CFR - XML import'!$A32,SEARCH(\">\",'CFR - XML import'!$A32,1)+1,SEARCH(\"/\",'CFR - XML import'!$A32,1)-SEARCH(\">\",'CFR - XML import'!$A32,1)-2)))","v":0},{"$f":"IF(ISERROR(FIND(BH$3,'CFR - XML import'!$A32)),0,VALUE(MID('CFR - XML import'!$A32,SEARCH(\">\",'CFR - XML import'!$A32,1)+1,SEARCH(\"/\",'CFR - XML import'!$A32,1)-SEARCH(\">\",'CFR - XML import'!$A32,1)-2)))","v":0},{"$f":"IF(ISERROR(FIND(BI$3,'CFR - XML import'!$A32)),0,VALUE(MID('CFR - XML import'!$A32,SEARCH(\">\",'CFR - XML import'!$A32,1)+1,SEARCH(\"/\",'CFR - XML import'!$A32,1)-SEARCH(\">\",'CFR - XML import'!$A32,1)-2)))","v":0},{"$f":"IF(ISERROR(FIND(BJ$3,'CFR - XML import'!$A32)),0,VALUE(MID('CFR - XML import'!$A32,SEARCH(\">\",'CFR - XML import'!$A32,1)+1,SEARCH(\"/\",'CFR - XML import'!$A32,1)-SEARCH(\">\",'CFR - XML import'!$A32,1)-2)))","v":0},{"$f":"IF(ISERROR(FIND(BK$3,'CFR - XML import'!$A32)),0,VALUE(MID('CFR - XML import'!$A32,SEARCH(\">\",'CFR - XML import'!$A32,1)+1,SEARCH(\"/\",'CFR - XML import'!$A32,1)-SEARCH(\">\",'CFR - XML import'!$A32,1)-2)))","v":0},{"$f":"IF(ISERROR(FIND(BL$3,'CFR - XML import'!$A32)),0,VALUE(MID('CFR - XML import'!$A32,SEARCH(\">\",'CFR - XML import'!$A32,1)+1,SEARCH(\"/\",'CFR - XML import'!$A32,1)-SEARCH(\">\",'CFR - XML import'!$A32,1)-2)))","v":0},{"$f":"IF(ISERROR(FIND(BM$3,'CFR - XML import'!$A32)),0,VALUE(MID('CFR - XML import'!$A32,SEARCH(\">\",'CFR - XML import'!$A32,1)+1,SEARCH(\"/\",'CFR - XML import'!$A32,1)-SEARCH(\">\",'CFR - XML import'!$A32,1)-2)))","v":0},{"$f":"IF(ISERROR(FIND(BN$3,'CFR - XML import'!$A32)),0,VALUE(MID('CFR - XML import'!$A32,SEARCH(\">\",'CFR - XML import'!$A32,1)+1,SEARCH(\"/\",'CFR - XML import'!$A32,1)-SEARCH(\">\",'CFR - XML import'!$A32,1)-2)))","v":0},{"$f":"IF(ISERROR(FIND(BO$3,'CFR - XML import'!$A32)),0,VALUE(MID('CFR - XML import'!$A32,SEARCH(\">\",'CFR - XML import'!$A32,1)+1,SEARCH(\"/\",'CFR - XML import'!$A32,1)-SEARCH(\">\",'CFR - XML import'!$A32,1)-2)))","v":0},{"$f":"IF(ISERROR(FIND(BP$3,'CFR - XML import'!$A32)),0,VALUE(MID('CFR - XML import'!$A32,SEARCH(\">\",'CFR - XML import'!$A32,1)+1,SEARCH(\"/\",'CFR - XML import'!$A32,1)-SEARCH(\">\",'CFR - XML import'!$A32,1)-2)))","v":0},{"$f":"IF(ISERROR(FIND(BQ$3,'CFR - XML import'!$A32)),0,VALUE(MID('CFR - XML import'!$A32,SEARCH(\">\",'CFR - XML import'!$A32,1)+1,SEARCH(\"/\",'CFR - XML import'!$A32,1)-SEARCH(\">\",'CFR - XML import'!$A32,1)-2)))","v":0},{"$f":"IF(ISERROR(FIND(BR$3,'CFR - XML import'!$A32)),0,VALUE(MID('CFR - XML import'!$A32,SEARCH(\">\",'CFR - XML import'!$A32,1)+1,SEARCH(\"/\",'CFR - XML import'!$A32,1)-SEARCH(\">\",'CFR - XML import'!$A32,1)-2)))","v":0},{"$f":"IF(ISERROR(FIND(BS$3,'CFR - XML import'!$A32)),0,VALUE(MID('CFR - XML import'!$A32,SEARCH(\">\",'CFR - XML import'!$A32,1)+1,SEARCH(\"/\",'CFR - XML import'!$A32,1)-SEARCH(\">\",'CFR - XML import'!$A32,1)-2)))","v":0},{"$f":"IF(ISERROR(FIND(BT$3,'CFR - XML import'!$A32)),0,VALUE(MID('CFR - XML import'!$A32,SEARCH(\">\",'CFR - XML import'!$A32,1)+1,SEARCH(\"/\",'CFR - XML import'!$A32,1)-SEARCH(\">\",'CFR - XML import'!$A32,1)-2)))","v":0},{"$f":"IF(ISERROR(FIND(BU$3,'CFR - XML import'!$A32)),0,VALUE(MID('CFR - XML import'!$A32,SEARCH(\">\",'CFR - XML import'!$A32,1)+1,SEARCH(\"/\",'CFR - XML import'!$A32,1)-SEARCH(\">\",'CFR - XML import'!$A32,1)-2)))","v":0},{"$f":"IF(ISERROR(FIND(BV$3,'CFR - XML import'!$A32)),0,VALUE(MID('CFR - XML import'!$A32,SEARCH(\">\",'CFR - XML import'!$A32,1)+1,SEARCH(\"/\",'CFR - XML import'!$A32,1)-SEARCH(\">\",'CFR - XML import'!$A32,1)-2)))","v":0},{"$f":"IF(ISERROR(FIND(BW$3,'CFR - XML import'!$A32)),0,VALUE(MID('CFR - XML import'!$A32,SEARCH(\">\",'CFR - XML import'!$A32,1)+1,SEARCH(\"/\",'CFR - XML import'!$A32,1)-SEARCH(\">\",'CFR - XML import'!$A32,1)-2)))","v":0},{"$f":"IF(ISERROR(FIND(BX$3,'CFR - XML import'!$A32)),0,VALUE(MID('CFR - XML import'!$A32,SEARCH(\">\",'CFR - XML import'!$A32,1)+1,SEARCH(\"/\",'CFR - XML import'!$A32,1)-SEARCH(\">\",'CFR - XML import'!$A32,1)-2)))","v":0},{"$f":"IF(ISERROR(FIND(BY$3,'CFR - XML import'!$A32)),0,VALUE(MID('CFR - XML import'!$A32,SEARCH(\">\",'CFR - XML import'!$A32,1)+1,SEARCH(\"/\",'CFR - XML import'!$A32,1)-SEARCH(\">\",'CFR - XML import'!$A32,1)-2)))","v":0},{"$f":"IF(ISERROR(FIND(BZ$3,'CFR - XML import'!$A32)),0,VALUE(MID('CFR - XML import'!$A32,SEARCH(\">\",'CFR - XML import'!$A32,1)+1,SEARCH(\"/\",'CFR - XML import'!$A32,1)-SEARCH(\">\",'CFR - XML import'!$A32,1)-2)))","v":0},null,null,null,null,null,null,{"$f":"IF(ISERROR(IF(MID('CFR - XML import'!$A32,LEN($CF$4)+1,LEN('CFR - XML import'!$A32)-(2*LEN($CF$4)+1))=\"RMMS\",1,IF(MID('CFR - XML import'!$A32,LEN(\"    <InputSystem>\")+1,LEN('CFR - XML import'!$A32)-(LEN(\"    <InputSystem>\")+LEN($CF$4)+1))=\"SIMS\",2,0))),0,IF(MID('CFR - XML import'!$A32,LEN($CF$4)+1,LEN('CFR - XML import'!$A32)-(2*LEN($CF$4)+1))=\"RMMS\",1,IF(MID('CFR - XML import'!$A32,LEN(\"    <InputSystem>\")+1,LEN('CFR - XML import'!$A32)-(LEN(\"    <InputSystem>\")+LEN($CF$4)+1))=\"SIMS\",2,0)))","v":0},{"$f":"IF(ISERROR(FIND(CH$3,'CFR - XML import'!$A32)),0,MID('CFR - XML import'!$A32,SEARCH(\">\",'CFR - XML import'!$A32,1)+1,SEARCH(\"/\",'CFR - XML import'!$A32,1)-SEARCH(\">\",'CFR - XML import'!$A32,1)-2))","v":0},{"$f":"IF(ISERROR(FIND(CI$3,'CFR - XML import'!$A32)),0,MID('CFR - XML import'!$A32,SEARCH(\">\",'CFR - XML import'!$A32,1)+1,SEARCH(\"/\",'CFR - XML import'!$A32,1)-SEARCH(\">\",'CFR - XML import'!$A32,1)-2))","v":0},{"$f":"IF(ISERROR(FIND(CJ$3,'CFR - XML import'!$A32)),0,MID('CFR - XML import'!$A32,SEARCH(\">\",'CFR - XML import'!$A32,1)+1,SEARCH(\"/\",'CFR - XML import'!$A32,1)-SEARCH(\">\",'CFR - XML import'!$A32,1)-2))","v":0},{"$f":"IF(ISERROR(FIND(CK$3,'CFR - XML import'!$A32)),0,MID('CFR - XML import'!$A32,SEARCH(\">\",'CFR - XML import'!$A32,1)+1,SEARCH(\"/\",'CFR - XML import'!$A32,1)-SEARCH(\">\",'CFR - XML import'!$A32,1)-2))","v":0},{"$f":"IF(ISERROR(FIND(CL$3,'CFR - XML import'!$A32)),0,MID('CFR - XML import'!$A32,SEARCH(\">\",'CFR - XML import'!$A32,1)+1,SEARCH(\"/\",'CFR - XML import'!$A32,1)-SEARCH(\">\",'CFR - XML import'!$A32,1)-2))","v":0}]
[{"$f":"IF(AND('CFR - XML import'!A33<>\"\",LEFT('CFR - XML import'!A33,1)<>\"<\",LEFT('CFR - XML import'!A33,3)<>\"  <\",LEFT('CFR - XML import'!A33,5)<>\"    <\",LEFT('CFR - XML import'!A33,7)<>\"      <\",LEFT('CFR - XML import'!A33,9)<>\"        <\",$B$1=\"SIMS\"),'CFR - XML import'!A33,IF(AND(LEFT('CFR - XML import'!A33,9)=\"<Details>\",$B$1=\"RM\"),'CFR - XML import'!A33,\"\"))","v":""},{"$f":"IF(ISERROR(FIND(B$3,'CFR - XML import'!$A33)),0,VALUE(MID('CFR - XML import'!$A33,SEARCH(\">\",'CFR - XML import'!$A33,1)+1,SEARCH(\"/\",'CFR - XML import'!$A33,1)-SEARCH(\">\",'CFR - XML import'!$A33,1)-2)))","v":0},null,{"$f":"IF(ISERROR(FIND(D$3,'CFR - XML import'!$A33)),0,MID('CFR - XML import'!$A33,SEARCH(\">\",'CFR - XML import'!$A33,1)+1,SEARCH(\"/\",'CFR - XML import'!$A33,1)-SEARCH(\">\",'CFR - XML import'!$A33,1)-2))","v":0},{"$f":"IF(ISERROR(FIND(E$3,'CFR - XML import'!$A33)),0,MID('CFR - XML import'!$A33,SEARCH(\">\",'CFR - XML import'!$A33,1)+1,SEARCH(\"/\",'CFR - XML import'!$A33,1)-SEARCH(\">\",'CFR - XML import'!$A33,1)-2))","v":0},{"$f":"IF($B$1=\"SIMS\",IF(ISERROR(FIND(F$3,'CFR - XML import'!$A33)),0,VALUE(MID('CFR - XML import'!$A33,15,10))),IF(ISERROR(FIND(F$3,'CFR - XML import'!$A33)),0,VALUE(MID('CFR - XML import'!$A33,11,10))))","v":"00:00:00"},{"$f":"IF(ISERROR(FIND(G$3,'CFR - XML import'!$A33)),0,VALUE(MID('CFR - XML import'!$A33,SEARCH(\">\",'CFR - XML import'!$A33,1)+1,SEARCH(\"/\",'CFR - XML import'!$A33,1)-SEARCH(\">\",'CFR - XML import'!$A33,1)-2)))","v":0},{"$f":"IF(ISERROR(FIND(H$3,'CFR - XML import'!$A33)),0,VALUE(MID('CFR - XML import'!$A33,SEARCH(\">\",'CFR - XML import'!$A33,1)+1,SEARCH(\"/\",'CFR - XML import'!$A33,1)-SEARCH(\">\",'CFR - XML import'!$A33,1)-2)))","v":0},{"$f":"IF(ISERROR(FIND(I$3,'CFR - XML import'!$A33)),0,VALUE(MID('CFR - XML import'!$A33,SEARCH(\">\",'CFR - XML import'!$A33,1)+1,SEARCH(\"/\",'CFR - XML import'!$A33,1)-SEARCH(\">\",'CFR - XML import'!$A33,1)-2)))","v":0},{"$f":"IF(ISERROR(FIND(J$3,'CFR - XML import'!$A33)),0,VALUE(MID('CFR - XML import'!$A33,SEARCH(\">\",'CFR - XML import'!$A33,1)+1,SEARCH(\"/\",'CFR - XML import'!$A33,1)-SEARCH(\">\",'CFR - XML import'!$A33,1)-2)))","v":0},{"$f":"IF(ISERROR(FIND(K$3,'CFR - XML import'!$A33)),0,VALUE(MID('CFR - XML import'!$A33,SEARCH(\">\",'CFR - XML import'!$A33,1)+1,SEARCH(\"/\",'CFR - XML import'!$A33,1)-SEARCH(\">\",'CFR - XML import'!$A33,1)-2)))","v":0},{"$f":"IF(ISERROR(FIND(L$3,'CFR - XML import'!$A33)),0,VALUE(MID('CFR - XML import'!$A33,SEARCH(\">\",'CFR - XML import'!$A33,1)+1,SEARCH(\"/\",'CFR - XML import'!$A33,1)-SEARCH(\">\",'CFR - XML import'!$A33,1)-2)))","v":0},{"$f":"IF(ISERROR(FIND(M$3,'CFR - XML import'!$A33)),0,VALUE(MID('CFR - XML import'!$A33,SEARCH(\">\",'CFR - XML import'!$A33,1)+1,SEARCH(\"/\",'CFR - XML import'!$A33,1)-SEARCH(\">\",'CFR - XML import'!$A33,1)-2)))","v":0},{"$f":"IF(ISERROR(FIND(N$3,'CFR - XML import'!$A33)),0,VALUE(MID('CFR - XML import'!$A33,SEARCH(\">\",'CFR - XML import'!$A33,1)+1,SEARCH(\"/\",'CFR - XML import'!$A33,1)-SEARCH(\">\",'CFR - XML import'!$A33,1)-2)))","v":0},{"$f":"IF(ISERROR(FIND(O$3,'CFR - XML import'!$A33)),0,VALUE(MID('CFR - XML import'!$A33,SEARCH(\">\",'CFR - XML import'!$A33,1)+1,SEARCH(\"/\",'CFR - XML import'!$A33,1)-SEARCH(\">\",'CFR - XML import'!$A33,1)-2)))","v":0},{"$f":"IF(ISERROR(FIND(P$3,'CFR - XML import'!$A33)),0,VALUE(MID('CFR - XML import'!$A33,SEARCH(\">\",'CFR - XML import'!$A33,1)+1,SEARCH(\"/\",'CFR - XML import'!$A33,1)-SEARCH(\">\",'CFR - XML import'!$A33,1)-2)))","v":0},{"$f":"IF(ISERROR(FIND(Q$3,'CFR - XML import'!$A33)),0,VALUE(MID('CFR - XML import'!$A33,SEARCH(\">\",'CFR - XML import'!$A33,1)+1,SEARCH(\"/\",'CFR - XML import'!$A33,1)-SEARCH(\">\",'CFR - XML import'!$A33,1)-2)))","v":0},{"$f":"IF(ISERROR(FIND(R$3,'CFR - XML import'!$A33)),0,VALUE(MID('CFR - XML import'!$A33,SEARCH(\">\",'CFR - XML import'!$A33,1)+1,SEARCH(\"/\",'CFR - XML import'!$A33,1)-SEARCH(\">\",'CFR - XML import'!$A33,1)-2)))","v":0},{"$f":"IF(ISERROR(FIND(S$3,'CFR - XML import'!$A33)),0,VALUE(MID('CFR - XML import'!$A33,SEARCH(\">\",'CFR - XML import'!$A33,1)+1,SEARCH(\"/\",'CFR - XML import'!$A33,1)-SEARCH(\">\",'CFR - XML import'!$A33,1)-2)))","v":0},{"$f":"IF(ISERROR(FIND(T$3,'CFR - XML import'!$A33)),0,VALUE(MID('CFR - XML import'!$A33,SEARCH(\">\",'CFR - XML import'!$A33,1)+1,SEARCH(\"/\",'CFR - XML import'!$A33,1)-SEARCH(\">\",'CFR - XML import'!$A33,1)-2)))","v":0},{"$f":"IF(ISERROR(FIND(U$3,'CFR - XML import'!$A33)),0,VALUE(MID('CFR - XML import'!$A33,SEARCH(\">\",'CFR - XML import'!$A33,1)+1,SEARCH(\"/\",'CFR - XML import'!$A33,1)-SEARCH(\">\",'CFR - XML import'!$A33,1)-2)))","v":0},{"$f":"IF(ISERROR(FIND(V$3,'CFR - XML import'!$A33)),0,VALUE(MID('CFR - XML import'!$A33,SEARCH(\">\",'CFR - XML import'!$A33,1)+1,SEARCH(\"/\",'CFR - XML import'!$A33,1)-SEARCH(\">\",'CFR - XML import'!$A33,1)-2)))","v":0},{"$f":"IF(ISERROR(FIND(W$3,'CFR - XML import'!$A33)),0,VALUE(MID('CFR - XML import'!$A33,SEARCH(\">\",'CFR - XML import'!$A33,1)+1,SEARCH(\"/\",'CFR - XML import'!$A33,1)-SEARCH(\">\",'CFR - XML import'!$A33,1)-2)))","v":0},null,{"$f":"IF(ISERROR(FIND(Y$3,'CFR - XML import'!$A33)),0,VALUE(MID('CFR - XML import'!$A33,SEARCH(\">\",'CFR - XML import'!$A33,1)+1,SEARCH(\"/\",'CFR - XML import'!$A33,1)-SEARCH(\">\",'CFR - XML import'!$A33,1)-2)))","v":0},{"$f":"IF(ISERROR(FIND(Z$3,'CFR - XML import'!$A33)),0,VALUE(MID('CFR - XML import'!$A33,SEARCH(\">\",'CFR - XML import'!$A33,1)+1,SEARCH(\"/\",'CFR - XML import'!$A33,1)-SEARCH(\">\",'CFR - XML import'!$A33,1)-2)))","v":0},{"$f":"IF(ISERROR(FIND(AA$3,'CFR - XML import'!$A33)),0,VALUE(MID('CFR - XML import'!$A33,SEARCH(\">\",'CFR - XML import'!$A33,1)+1,SEARCH(\"/\",'CFR - XML import'!$A33,1)-SEARCH(\">\",'CFR - XML import'!$A33,1)-2)))","v":0},{"$f":"IF(ISERROR(FIND(AB$3,'CFR - XML import'!$A33)),0,VALUE(MID('CFR - XML import'!$A33,SEARCH(\">\",'CFR - XML import'!$A33,1)+1,SEARCH(\"/\",'CFR - XML import'!$A33,1)-SEARCH(\">\",'CFR - XML import'!$A33,1)-2)))","v":0},{"$f":"IF(ISERROR(FIND(AC$3,'CFR - XML import'!$A33)),0,VALUE(MID('CFR - XML import'!$A33,SEARCH(\">\",'CFR - XML import'!$A33,1)+1,SEARCH(\"/\",'CFR - XML import'!$A33,1)-SEARCH(\">\",'CFR - XML import'!$A33,1)-2)))","v":0},{"$f":"IF(ISERROR(FIND(AD$3,'CFR - XML import'!$A33)),0,VALUE(MID('CFR - XML import'!$A33,SEARCH(\">\",'CFR - XML import'!$A33,1)+1,SEARCH(\"/\",'CFR - XML import'!$A33,1)-SEARCH(\">\",'CFR - XML import'!$A33,1)-2)))","v":0},{"$f":"IF(ISERROR(FIND(AE$3,'CFR - XML import'!$A33)),0,VALUE(MID('CFR - XML import'!$A33,SEARCH(\">\",'CFR - XML import'!$A33,1)+1,SEARCH(\"/\",'CFR - XML import'!$A33,1)-SEARCH(\">\",'CFR - XML import'!$A33,1)-2)))","v":0},{"$f":"IF(ISERROR(FIND(AF$3,'CFR - XML import'!$A33)),0,VALUE(MID('CFR - XML import'!$A33,SEARCH(\">\",'CFR - XML import'!$A33,1)+1,SEARCH(\"/\",'CFR - XML import'!$A33,1)-SEARCH(\">\",'CFR - XML import'!$A33,1)-2)))","v":0},{"$f":"IF(ISERROR(FIND(AG$3,'CFR - XML import'!$A33)),0,VALUE(MID('CFR - XML import'!$A33,SEARCH(\">\",'CFR - XML import'!$A33,1)+1,SEARCH(\"/\",'CFR - XML import'!$A33,1)-SEARCH(\">\",'CFR - XML import'!$A33,1)-2)))","v":0},{"$f":"IF(ISERROR(FIND(AH$3,'CFR - XML import'!$A33)),0,VALUE(MID('CFR - XML import'!$A33,SEARCH(\">\",'CFR - XML import'!$A33,1)+1,SEARCH(\"/\",'CFR - XML import'!$A33,1)-SEARCH(\">\",'CFR - XML import'!$A33,1)-2)))","v":0},{"$f":"IF(ISERROR(FIND(AI$3,'CFR - XML import'!$A33)),0,VALUE(MID('CFR - XML import'!$A33,SEARCH(\">\",'CFR - XML import'!$A33,1)+1,SEARCH(\"/\",'CFR - XML import'!$A33,1)-SEARCH(\">\",'CFR - XML import'!$A33,1)-2)))","v":0},{"$f":"IF(ISERROR(FIND(AJ$3,'CFR - XML import'!$A33)),0,VALUE(MID('CFR - XML import'!$A33,SEARCH(\">\",'CFR - XML import'!$A33,1)+1,SEARCH(\"/\",'CFR - XML import'!$A33,1)-SEARCH(\">\",'CFR - XML import'!$A33,1)-2)))","v":0},{"$f":"IF(ISERROR(FIND(AK$3,'CFR - XML import'!$A33)),0,VALUE(MID('CFR - XML import'!$A33,SEARCH(\">\",'CFR - XML import'!$A33,1)+1,SEARCH(\"/\",'CFR - XML import'!$A33,1)-SEARCH(\">\",'CFR - XML import'!$A33,1)-2)))","v":0},{"$f":"IF(ISERROR(FIND(AL$3,'CFR - XML import'!$A33)),0,VALUE(MID('CFR - XML import'!$A33,SEARCH(\">\",'CFR - XML import'!$A33,1)+1,SEARCH(\"/\",'CFR - XML import'!$A33,1)-SEARCH(\">\",'CFR - XML import'!$A33,1)-2)))","v":0},{"$f":"IF(ISERROR(FIND(AM$3,'CFR - XML import'!$A33)),0,VALUE(MID('CFR - XML import'!$A33,SEARCH(\">\",'CFR - XML import'!$A33,1)+1,SEARCH(\"/\",'CFR - XML import'!$A33,1)-SEARCH(\">\",'CFR - XML import'!$A33,1)-2)))","v":0},{"$f":"IF(ISERROR(FIND(AN$3,'CFR - XML import'!$A33)),0,VALUE(MID('CFR - XML import'!$A33,SEARCH(\">\",'CFR - XML import'!$A33,1)+1,SEARCH(\"/\",'CFR - XML import'!$A33,1)-SEARCH(\">\",'CFR - XML import'!$A33,1)-2)))","v":0},{"$f":"IF(ISERROR(FIND(AO$3,'CFR - XML import'!$A33)),0,VALUE(MID('CFR - XML import'!$A33,SEARCH(\">\",'CFR - XML import'!$A33,1)+1,SEARCH(\"/\",'CFR - XML import'!$A33,1)-SEARCH(\">\",'CFR - XML import'!$A33,1)-2)))","v":0},{"$f":"IF(ISERROR(FIND(AP$3,'CFR - XML import'!$A33)),0,VALUE(MID('CFR - XML import'!$A33,SEARCH(\">\",'CFR - XML import'!$A33,1)+1,SEARCH(\"/\",'CFR - XML import'!$A33,1)-SEARCH(\">\",'CFR - XML import'!$A33,1)-2)))","v":0},{"$f":"IF(ISERROR(FIND(AQ$3,'CFR - XML import'!$A33)),0,VALUE(MID('CFR - XML import'!$A33,SEARCH(\">\",'CFR - XML import'!$A33,1)+1,SEARCH(\"/\",'CFR - XML import'!$A33,1)-SEARCH(\">\",'CFR - XML import'!$A33,1)-2)))","v":0},{"$f":"IF(ISERROR(FIND(AR$3,'CFR - XML import'!$A33)),0,VALUE(MID('CFR - XML import'!$A33,SEARCH(\">\",'CFR - XML import'!$A33,1)+1,SEARCH(\"/\",'CFR - XML import'!$A33,1)-SEARCH(\">\",'CFR - XML import'!$A33,1)-2)))","v":0},{"$f":"IF(ISERROR(FIND(AS$3,'CFR - XML import'!$A33)),0,VALUE(MID('CFR - XML import'!$A33,SEARCH(\">\",'CFR - XML import'!$A33,1)+1,SEARCH(\"/\",'CFR - XML import'!$A33,1)-SEARCH(\">\",'CFR - XML import'!$A33,1)-2)))","v":0},{"$f":"IF(ISERROR(FIND(AT$3,'CFR - XML import'!$A33)),0,VALUE(MID('CFR - XML import'!$A33,SEARCH(\">\",'CFR - XML import'!$A33,1)+1,SEARCH(\"/\",'CFR - XML import'!$A33,1)-SEARCH(\">\",'CFR - XML import'!$A33,1)-2)))","v":0},{"$f":"IF(ISERROR(FIND(AU$3,'CFR - XML import'!$A33)),0,VALUE(MID('CFR - XML import'!$A33,SEARCH(\">\",'CFR - XML import'!$A33,1)+1,SEARCH(\"/\",'CFR - XML import'!$A33,1)-SEARCH(\">\",'CFR - XML import'!$A33,1)-2)))","v":0},{"$f":"IF(ISERROR(FIND(AV$3,'CFR - XML import'!$A33)),0,VALUE(MID('CFR - XML import'!$A33,SEARCH(\">\",'CFR - XML import'!$A33,1)+1,SEARCH(\"/\",'CFR - XML import'!$A33,1)-SEARCH(\">\",'CFR - XML import'!$A33,1)-2)))","v":0},{"$f":"IF(ISERROR(FIND(AW$3,'CFR - XML import'!$A33)),0,VALUE(MID('CFR - XML import'!$A33,SEARCH(\">\",'CFR - XML import'!$A33,1)+1,SEARCH(\"/\",'CFR - XML import'!$A33,1)-SEARCH(\">\",'CFR - XML import'!$A33,1)-2)))","v":0},{"$f":"IF(ISERROR(FIND(AX$3,'CFR - XML import'!$A33)),0,VALUE(MID('CFR - XML import'!$A33,SEARCH(\">\",'CFR - XML import'!$A33,1)+1,SEARCH(\"/\",'CFR - XML import'!$A33,1)-SEARCH(\">\",'CFR - XML import'!$A33,1)-2)))","v":0},{"$f":"IF(ISERROR(FIND(AY$3,'CFR - XML import'!$A33)),0,VALUE(MID('CFR - XML import'!$A33,SEARCH(\">\",'CFR - XML import'!$A33,1)+1,SEARCH(\"/\",'CFR - XML import'!$A33,1)-SEARCH(\">\",'CFR - XML import'!$A33,1)-2)))","v":0},{"$f":"IF(ISERROR(FIND(AZ$3,'CFR - XML import'!$A33)),0,VALUE(MID('CFR - XML import'!$A33,SEARCH(\">\",'CFR - XML import'!$A33,1)+1,SEARCH(\"/\",'CFR - XML import'!$A33,1)-SEARCH(\">\",'CFR - XML import'!$A33,1)-2)))","v":0},{"$f":"IF(ISERROR(FIND(BA$3,'CFR - XML import'!$A33)),0,VALUE(MID('CFR - XML import'!$A33,SEARCH(\">\",'CFR - XML import'!$A33,1)+1,SEARCH(\"/\",'CFR - XML import'!$A33,1)-SEARCH(\">\",'CFR - XML import'!$A33,1)-2)))","v":0},{"$f":"IF(ISERROR(FIND(BB$3,'CFR - XML import'!$A33)),0,VALUE(MID('CFR - XML import'!$A33,SEARCH(\">\",'CFR - XML import'!$A33,1)+1,SEARCH(\"/\",'CFR - XML import'!$A33,1)-SEARCH(\">\",'CFR - XML import'!$A33,1)-2)))","v":0},{"$f":"IF(ISERROR(FIND(BC$3,'CFR - XML import'!$A33)),0,VALUE(MID('CFR - XML import'!$A33,SEARCH(\">\",'CFR - XML import'!$A33,1)+1,SEARCH(\"/\",'CFR - XML import'!$A33,1)-SEARCH(\">\",'CFR - XML import'!$A33,1)-2)))","v":0},{"$f":"IF(ISERROR(FIND(BD$3,'CFR - XML import'!$A33)),0,VALUE(MID('CFR - XML import'!$A33,SEARCH(\">\",'CFR - XML import'!$A33,1)+1,SEARCH(\"/\",'CFR - XML import'!$A33,1)-SEARCH(\">\",'CFR - XML import'!$A33,1)-2)))","v":0},{"$f":"IF(ISERROR(FIND(BE$3,'CFR - XML import'!$A33)),0,VALUE(MID('CFR - XML import'!$A33,SEARCH(\">\",'CFR - XML import'!$A33,1)+1,SEARCH(\"/\",'CFR - XML import'!$A33,1)-SEARCH(\">\",'CFR - XML import'!$A33,1)-2)))","v":0},{"$f":"IF(ISERROR(FIND(BF$3,'CFR - XML import'!$A33)),0,VALUE(MID('CFR - XML import'!$A33,SEARCH(\">\",'CFR - XML import'!$A33,1)+1,SEARCH(\"/\",'CFR - XML import'!$A33,1)-SEARCH(\">\",'CFR - XML import'!$A33,1)-2)))","v":0},{"$f":"IF(ISERROR(FIND(BG$3,'CFR - XML import'!$A33)),0,VALUE(MID('CFR - XML import'!$A33,SEARCH(\">\",'CFR - XML import'!$A33,1)+1,SEARCH(\"/\",'CFR - XML import'!$A33,1)-SEARCH(\">\",'CFR - XML import'!$A33,1)-2)))","v":0},{"$f":"IF(ISERROR(FIND(BH$3,'CFR - XML import'!$A33)),0,VALUE(MID('CFR - XML import'!$A33,SEARCH(\">\",'CFR - XML import'!$A33,1)+1,SEARCH(\"/\",'CFR - XML import'!$A33,1)-SEARCH(\">\",'CFR - XML import'!$A33,1)-2)))","v":0},{"$f":"IF(ISERROR(FIND(BI$3,'CFR - XML import'!$A33)),0,VALUE(MID('CFR - XML import'!$A33,SEARCH(\">\",'CFR - XML import'!$A33,1)+1,SEARCH(\"/\",'CFR - XML import'!$A33,1)-SEARCH(\">\",'CFR - XML import'!$A33,1)-2)))","v":0},{"$f":"IF(ISERROR(FIND(BJ$3,'CFR - XML import'!$A33)),0,VALUE(MID('CFR - XML import'!$A33,SEARCH(\">\",'CFR - XML import'!$A33,1)+1,SEARCH(\"/\",'CFR - XML import'!$A33,1)-SEARCH(\">\",'CFR - XML import'!$A33,1)-2)))","v":0},{"$f":"IF(ISERROR(FIND(BK$3,'CFR - XML import'!$A33)),0,VALUE(MID('CFR - XML import'!$A33,SEARCH(\">\",'CFR - XML import'!$A33,1)+1,SEARCH(\"/\",'CFR - XML import'!$A33,1)-SEARCH(\">\",'CFR - XML import'!$A33,1)-2)))","v":0},{"$f":"IF(ISERROR(FIND(BL$3,'CFR - XML import'!$A33)),0,VALUE(MID('CFR - XML import'!$A33,SEARCH(\">\",'CFR - XML import'!$A33,1)+1,SEARCH(\"/\",'CFR - XML import'!$A33,1)-SEARCH(\">\",'CFR - XML import'!$A33,1)-2)))","v":0},{"$f":"IF(ISERROR(FIND(BM$3,'CFR - XML import'!$A33)),0,VALUE(MID('CFR - XML import'!$A33,SEARCH(\">\",'CFR - XML import'!$A33,1)+1,SEARCH(\"/\",'CFR - XML import'!$A33,1)-SEARCH(\">\",'CFR - XML import'!$A33,1)-2)))","v":0},{"$f":"IF(ISERROR(FIND(BN$3,'CFR - XML import'!$A33)),0,VALUE(MID('CFR - XML import'!$A33,SEARCH(\">\",'CFR - XML import'!$A33,1)+1,SEARCH(\"/\",'CFR - XML import'!$A33,1)-SEARCH(\">\",'CFR - XML import'!$A33,1)-2)))","v":0},{"$f":"IF(ISERROR(FIND(BO$3,'CFR - XML import'!$A33)),0,VALUE(MID('CFR - XML import'!$A33,SEARCH(\">\",'CFR - XML import'!$A33,1)+1,SEARCH(\"/\",'CFR - XML import'!$A33,1)-SEARCH(\">\",'CFR - XML import'!$A33,1)-2)))","v":0},{"$f":"IF(ISERROR(FIND(BP$3,'CFR - XML import'!$A33)),0,VALUE(MID('CFR - XML import'!$A33,SEARCH(\">\",'CFR - XML import'!$A33,1)+1,SEARCH(\"/\",'CFR - XML import'!$A33,1)-SEARCH(\">\",'CFR - XML import'!$A33,1)-2)))","v":0},{"$f":"IF(ISERROR(FIND(BQ$3,'CFR - XML import'!$A33)),0,VALUE(MID('CFR - XML import'!$A33,SEARCH(\">\",'CFR - XML import'!$A33,1)+1,SEARCH(\"/\",'CFR - XML import'!$A33,1)-SEARCH(\">\",'CFR - XML import'!$A33,1)-2)))","v":0},{"$f":"IF(ISERROR(FIND(BR$3,'CFR - XML import'!$A33)),0,VALUE(MID('CFR - XML import'!$A33,SEARCH(\">\",'CFR - XML import'!$A33,1)+1,SEARCH(\"/\",'CFR - XML import'!$A33,1)-SEARCH(\">\",'CFR - XML import'!$A33,1)-2)))","v":0},{"$f":"IF(ISERROR(FIND(BS$3,'CFR - XML import'!$A33)),0,VALUE(MID('CFR - XML import'!$A33,SEARCH(\">\",'CFR - XML import'!$A33,1)+1,SEARCH(\"/\",'CFR - XML import'!$A33,1)-SEARCH(\">\",'CFR - XML import'!$A33,1)-2)))","v":0},{"$f":"IF(ISERROR(FIND(BT$3,'CFR - XML import'!$A33)),0,VALUE(MID('CFR - XML import'!$A33,SEARCH(\">\",'CFR - XML import'!$A33,1)+1,SEARCH(\"/\",'CFR - XML import'!$A33,1)-SEARCH(\">\",'CFR - XML import'!$A33,1)-2)))","v":0},{"$f":"IF(ISERROR(FIND(BU$3,'CFR - XML import'!$A33)),0,VALUE(MID('CFR - XML import'!$A33,SEARCH(\">\",'CFR - XML import'!$A33,1)+1,SEARCH(\"/\",'CFR - XML import'!$A33,1)-SEARCH(\">\",'CFR - XML import'!$A33,1)-2)))","v":0},{"$f":"IF(ISERROR(FIND(BV$3,'CFR - XML import'!$A33)),0,VALUE(MID('CFR - XML import'!$A33,SEARCH(\">\",'CFR - XML import'!$A33,1)+1,SEARCH(\"/\",'CFR - XML import'!$A33,1)-SEARCH(\">\",'CFR - XML import'!$A33,1)-2)))","v":0},{"$f":"IF(ISERROR(FIND(BW$3,'CFR - XML import'!$A33)),0,VALUE(MID('CFR - XML import'!$A33,SEARCH(\">\",'CFR - XML import'!$A33,1)+1,SEARCH(\"/\",'CFR - XML import'!$A33,1)-SEARCH(\">\",'CFR - XML import'!$A33,1)-2)))","v":0},{"$f":"IF(ISERROR(FIND(BX$3,'CFR - XML import'!$A33)),0,VALUE(MID('CFR - XML import'!$A33,SEARCH(\">\",'CFR - XML import'!$A33,1)+1,SEARCH(\"/\",'CFR - XML import'!$A33,1)-SEARCH(\">\",'CFR - XML import'!$A33,1)-2)))","v":0},{"$f":"IF(ISERROR(FIND(BY$3,'CFR - XML import'!$A33)),0,VALUE(MID('CFR - XML import'!$A33,SEARCH(\">\",'CFR - XML import'!$A33,1)+1,SEARCH(\"/\",'CFR - XML import'!$A33,1)-SEARCH(\">\",'CFR - XML import'!$A33,1)-2)))","v":0},{"$f":"IF(ISERROR(FIND(BZ$3,'CFR - XML import'!$A33)),0,VALUE(MID('CFR - XML import'!$A33,SEARCH(\">\",'CFR - XML import'!$A33,1)+1,SEARCH(\"/\",'CFR - XML import'!$A33,1)-SEARCH(\">\",'CFR - XML import'!$A33,1)-2)))","v":0},null,null,null,null,null,null,{"$f":"IF(ISERROR(IF(MID('CFR - XML import'!$A33,LEN($CF$4)+1,LEN('CFR - XML import'!$A33)-(2*LEN($CF$4)+1))=\"RMMS\",1,IF(MID('CFR - XML import'!$A33,LEN(\"    <InputSystem>\")+1,LEN('CFR - XML import'!$A33)-(LEN(\"    <InputSystem>\")+LEN($CF$4)+1))=\"SIMS\",2,0))),0,IF(MID('CFR - XML import'!$A33,LEN($CF$4)+1,LEN('CFR - XML import'!$A33)-(2*LEN($CF$4)+1))=\"RMMS\",1,IF(MID('CFR - XML import'!$A33,LEN(\"    <InputSystem>\")+1,LEN('CFR - XML import'!$A33)-(LEN(\"    <InputSystem>\")+LEN($CF$4)+1))=\"SIMS\",2,0)))","v":0},{"$f":"IF(ISERROR(FIND(CH$3,'CFR - XML import'!$A33)),0,MID('CFR - XML import'!$A33,SEARCH(\">\",'CFR - XML import'!$A33,1)+1,SEARCH(\"/\",'CFR - XML import'!$A33,1)-SEARCH(\">\",'CFR - XML import'!$A33,1)-2))","v":0},{"$f":"IF(ISERROR(FIND(CI$3,'CFR - XML import'!$A33)),0,MID('CFR - XML import'!$A33,SEARCH(\">\",'CFR - XML import'!$A33,1)+1,SEARCH(\"/\",'CFR - XML import'!$A33,1)-SEARCH(\">\",'CFR - XML import'!$A33,1)-2))","v":0},{"$f":"IF(ISERROR(FIND(CJ$3,'CFR - XML import'!$A33)),0,MID('CFR - XML import'!$A33,SEARCH(\">\",'CFR - XML import'!$A33,1)+1,SEARCH(\"/\",'CFR - XML import'!$A33,1)-SEARCH(\">\",'CFR - XML import'!$A33,1)-2))","v":0},{"$f":"IF(ISERROR(FIND(CK$3,'CFR - XML import'!$A33)),0,MID('CFR - XML import'!$A33,SEARCH(\">\",'CFR - XML import'!$A33,1)+1,SEARCH(\"/\",'CFR - XML import'!$A33,1)-SEARCH(\">\",'CFR - XML import'!$A33,1)-2))","v":0},{"$f":"IF(ISERROR(FIND(CL$3,'CFR - XML import'!$A33)),0,MID('CFR - XML import'!$A33,SEARCH(\">\",'CFR - XML import'!$A33,1)+1,SEARCH(\"/\",'CFR - XML import'!$A33,1)-SEARCH(\">\",'CFR - XML import'!$A33,1)-2))","v":0}]
[{"$f":"IF(AND('CFR - XML import'!A34<>\"\",LEFT('CFR - XML import'!A34,1)<>\"<\",LEFT('CFR - XML import'!A34,3)<>\"  <\",LEFT('CFR - XML import'!A34,5)<>\"    <\",LEFT('CFR - XML import'!A34,7)<>\"      <\",LEFT('CFR - XML import'!A34,9)<>\"        <\",$B$1=\"SIMS\"),'CFR - XML import'!A34,IF(AND(LEFT('CFR - XML import'!A34,9)=\"<Details>\",$B$1=\"RM\"),'CFR - XML import'!A34,\"\"))","v":""},{"$f":"IF(ISERROR(FIND(B$3,'CFR - XML import'!$A34)),0,VALUE(MID('CFR - XML import'!$A34,SEARCH(\">\",'CFR - XML import'!$A34,1)+1,SEARCH(\"/\",'CFR - XML import'!$A34,1)-SEARCH(\">\",'CFR - XML import'!$A34,1)-2)))","v":0},null,{"$f":"IF(ISERROR(FIND(D$3,'CFR - XML import'!$A34)),0,MID('CFR - XML import'!$A34,SEARCH(\">\",'CFR - XML import'!$A34,1)+1,SEARCH(\"/\",'CFR - XML import'!$A34,1)-SEARCH(\">\",'CFR - XML import'!$A34,1)-2))","v":0},{"$f":"IF(ISERROR(FIND(E$3,'CFR - XML import'!$A34)),0,MID('CFR - XML import'!$A34,SEARCH(\">\",'CFR - XML import'!$A34,1)+1,SEARCH(\"/\",'CFR - XML import'!$A34,1)-SEARCH(\">\",'CFR - XML import'!$A34,1)-2))","v":0},{"$f":"IF($B$1=\"SIMS\",IF(ISERROR(FIND(F$3,'CFR - XML import'!$A34)),0,VALUE(MID('CFR - XML import'!$A34,15,10))),IF(ISERROR(FIND(F$3,'CFR - XML import'!$A34)),0,VALUE(MID('CFR - XML import'!$A34,11,10))))","v":"00:00:00"},{"$f":"IF(ISERROR(FIND(G$3,'CFR - XML import'!$A34)),0,VALUE(MID('CFR - XML import'!$A34,SEARCH(\">\",'CFR - XML import'!$A34,1)+1,SEARCH(\"/\",'CFR - XML import'!$A34,1)-SEARCH(\">\",'CFR - XML import'!$A34,1)-2)))","v":0},{"$f":"IF(ISERROR(FIND(H$3,'CFR - XML import'!$A34)),0,VALUE(MID('CFR - XML import'!$A34,SEARCH(\">\",'CFR - XML import'!$A34,1)+1,SEARCH(\"/\",'CFR - XML import'!$A34,1)-SEARCH(\">\",'CFR - XML import'!$A34,1)-2)))","v":0},{"$f":"IF(ISERROR(FIND(I$3,'CFR - XML import'!$A34)),0,VALUE(MID('CFR - XML import'!$A34,SEARCH(\">\",'CFR - XML import'!$A34,1)+1,SEARCH(\"/\",'CFR - XML import'!$A34,1)-SEARCH(\">\",'CFR - XML import'!$A34,1)-2)))","v":0},{"$f":"IF(ISERROR(FIND(J$3,'CFR - XML import'!$A34)),0,VALUE(MID('CFR - XML import'!$A34,SEARCH(\">\",'CFR - XML import'!$A34,1)+1,SEARCH(\"/\",'CFR - XML import'!$A34,1)-SEARCH(\">\",'CFR - XML import'!$A34,1)-2)))","v":0},{"$f":"IF(ISERROR(FIND(K$3,'CFR - XML import'!$A34)),0,VALUE(MID('CFR - XML import'!$A34,SEARCH(\">\",'CFR - XML import'!$A34,1)+1,SEARCH(\"/\",'CFR - XML import'!$A34,1)-SEARCH(\">\",'CFR - XML import'!$A34,1)-2)))","v":0},{"$f":"IF(ISERROR(FIND(L$3,'CFR - XML import'!$A34)),0,VALUE(MID('CFR - XML import'!$A34,SEARCH(\">\",'CFR - XML import'!$A34,1)+1,SEARCH(\"/\",'CFR - XML import'!$A34,1)-SEARCH(\">\",'CFR - XML import'!$A34,1)-2)))","v":0},{"$f":"IF(ISERROR(FIND(M$3,'CFR - XML import'!$A34)),0,VALUE(MID('CFR - XML import'!$A34,SEARCH(\">\",'CFR - XML import'!$A34,1)+1,SEARCH(\"/\",'CFR - XML import'!$A34,1)-SEARCH(\">\",'CFR - XML import'!$A34,1)-2)))","v":0},{"$f":"IF(ISERROR(FIND(N$3,'CFR - XML import'!$A34)),0,VALUE(MID('CFR - XML import'!$A34,SEARCH(\">\",'CFR - XML import'!$A34,1)+1,SEARCH(\"/\",'CFR - XML import'!$A34,1)-SEARCH(\">\",'CFR - XML import'!$A34,1)-2)))","v":0},{"$f":"IF(ISERROR(FIND(O$3,'CFR - XML import'!$A34)),0,VALUE(MID('CFR - XML import'!$A34,SEARCH(\">\",'CFR - XML import'!$A34,1)+1,SEARCH(\"/\",'CFR - XML import'!$A34,1)-SEARCH(\">\",'CFR - XML import'!$A34,1)-2)))","v":0},{"$f":"IF(ISERROR(FIND(P$3,'CFR - XML import'!$A34)),0,VALUE(MID('CFR - XML import'!$A34,SEARCH(\">\",'CFR - XML import'!$A34,1)+1,SEARCH(\"/\",'CFR - XML import'!$A34,1)-SEARCH(\">\",'CFR - XML import'!$A34,1)-2)))","v":0},{"$f":"IF(ISERROR(FIND(Q$3,'CFR - XML import'!$A34)),0,VALUE(MID('CFR - XML import'!$A34,SEARCH(\">\",'CFR - XML import'!$A34,1)+1,SEARCH(\"/\",'CFR - XML import'!$A34,1)-SEARCH(\">\",'CFR - XML import'!$A34,1)-2)))","v":0},{"$f":"IF(ISERROR(FIND(R$3,'CFR - XML import'!$A34)),0,VALUE(MID('CFR - XML import'!$A34,SEARCH(\">\",'CFR - XML import'!$A34,1)+1,SEARCH(\"/\",'CFR - XML import'!$A34,1)-SEARCH(\">\",'CFR - XML import'!$A34,1)-2)))","v":0},{"$f":"IF(ISERROR(FIND(S$3,'CFR - XML import'!$A34)),0,VALUE(MID('CFR - XML import'!$A34,SEARCH(\">\",'CFR - XML import'!$A34,1)+1,SEARCH(\"/\",'CFR - XML import'!$A34,1)-SEARCH(\">\",'CFR - XML import'!$A34,1)-2)))","v":0},{"$f":"IF(ISERROR(FIND(T$3,'CFR - XML import'!$A34)),0,VALUE(MID('CFR - XML import'!$A34,SEARCH(\">\",'CFR - XML import'!$A34,1)+1,SEARCH(\"/\",'CFR - XML import'!$A34,1)-SEARCH(\">\",'CFR - XML import'!$A34,1)-2)))","v":0},{"$f":"IF(ISERROR(FIND(U$3,'CFR - XML import'!$A34)),0,VALUE(MID('CFR - XML import'!$A34,SEARCH(\">\",'CFR - XML import'!$A34,1)+1,SEARCH(\"/\",'CFR - XML import'!$A34,1)-SEARCH(\">\",'CFR - XML import'!$A34,1)-2)))","v":0},{"$f":"IF(ISERROR(FIND(V$3,'CFR - XML import'!$A34)),0,VALUE(MID('CFR - XML import'!$A34,SEARCH(\">\",'CFR - XML import'!$A34,1)+1,SEARCH(\"/\",'CFR - XML import'!$A34,1)-SEARCH(\">\",'CFR - XML import'!$A34,1)-2)))","v":0},{"$f":"IF(ISERROR(FIND(W$3,'CFR - XML import'!$A34)),0,VALUE(MID('CFR - XML import'!$A34,SEARCH(\">\",'CFR - XML import'!$A34,1)+1,SEARCH(\"/\",'CFR - XML import'!$A34,1)-SEARCH(\">\",'CFR - XML import'!$A34,1)-2)))","v":0},null,{"$f":"IF(ISERROR(FIND(Y$3,'CFR - XML import'!$A34)),0,VALUE(MID('CFR - XML import'!$A34,SEARCH(\">\",'CFR - XML import'!$A34,1)+1,SEARCH(\"/\",'CFR - XML import'!$A34,1)-SEARCH(\">\",'CFR - XML import'!$A34,1)-2)))","v":0},{"$f":"IF(ISERROR(FIND(Z$3,'CFR - XML import'!$A34)),0,VALUE(MID('CFR - XML import'!$A34,SEARCH(\">\",'CFR - XML import'!$A34,1)+1,SEARCH(\"/\",'CFR - XML import'!$A34,1)-SEARCH(\">\",'CFR - XML import'!$A34,1)-2)))","v":0},{"$f":"IF(ISERROR(FIND(AA$3,'CFR - XML import'!$A34)),0,VALUE(MID('CFR - XML import'!$A34,SEARCH(\">\",'CFR - XML import'!$A34,1)+1,SEARCH(\"/\",'CFR - XML import'!$A34,1)-SEARCH(\">\",'CFR - XML import'!$A34,1)-2)))","v":0},{"$f":"IF(ISERROR(FIND(AB$3,'CFR - XML import'!$A34)),0,VALUE(MID('CFR - XML import'!$A34,SEARCH(\">\",'CFR - XML import'!$A34,1)+1,SEARCH(\"/\",'CFR - XML import'!$A34,1)-SEARCH(\">\",'CFR - XML import'!$A34,1)-2)))","v":0},{"$f":"IF(ISERROR(FIND(AC$3,'CFR - XML import'!$A34)),0,VALUE(MID('CFR - XML import'!$A34,SEARCH(\">\",'CFR - XML import'!$A34,1)+1,SEARCH(\"/\",'CFR - XML import'!$A34,1)-SEARCH(\">\",'CFR - XML import'!$A34,1)-2)))","v":0},{"$f":"IF(ISERROR(FIND(AD$3,'CFR - XML import'!$A34)),0,VALUE(MID('CFR - XML import'!$A34,SEARCH(\">\",'CFR - XML import'!$A34,1)+1,SEARCH(\"/\",'CFR - XML import'!$A34,1)-SEARCH(\">\",'CFR - XML import'!$A34,1)-2)))","v":0},{"$f":"IF(ISERROR(FIND(AE$3,'CFR - XML import'!$A34)),0,VALUE(MID('CFR - XML import'!$A34,SEARCH(\">\",'CFR - XML import'!$A34,1)+1,SEARCH(\"/\",'CFR - XML import'!$A34,1)-SEARCH(\">\",'CFR - XML import'!$A34,1)-2)))","v":0},{"$f":"IF(ISERROR(FIND(AF$3,'CFR - XML import'!$A34)),0,VALUE(MID('CFR - XML import'!$A34,SEARCH(\">\",'CFR - XML import'!$A34,1)+1,SEARCH(\"/\",'CFR - XML import'!$A34,1)-SEARCH(\">\",'CFR - XML import'!$A34,1)-2)))","v":0},{"$f":"IF(ISERROR(FIND(AG$3,'CFR - XML import'!$A34)),0,VALUE(MID('CFR - XML import'!$A34,SEARCH(\">\",'CFR - XML import'!$A34,1)+1,SEARCH(\"/\",'CFR - XML import'!$A34,1)-SEARCH(\">\",'CFR - XML import'!$A34,1)-2)))","v":0},{"$f":"IF(ISERROR(FIND(AH$3,'CFR - XML import'!$A34)),0,VALUE(MID('CFR - XML import'!$A34,SEARCH(\">\",'CFR - XML import'!$A34,1)+1,SEARCH(\"/\",'CFR - XML import'!$A34,1)-SEARCH(\">\",'CFR - XML import'!$A34,1)-2)))","v":0},{"$f":"IF(ISERROR(FIND(AI$3,'CFR - XML import'!$A34)),0,VALUE(MID('CFR - XML import'!$A34,SEARCH(\">\",'CFR - XML import'!$A34,1)+1,SEARCH(\"/\",'CFR - XML import'!$A34,1)-SEARCH(\">\",'CFR - XML import'!$A34,1)-2)))","v":0},{"$f":"IF(ISERROR(FIND(AJ$3,'CFR - XML import'!$A34)),0,VALUE(MID('CFR - XML import'!$A34,SEARCH(\">\",'CFR - XML import'!$A34,1)+1,SEARCH(\"/\",'CFR - XML import'!$A34,1)-SEARCH(\">\",'CFR - XML import'!$A34,1)-2)))","v":0},{"$f":"IF(ISERROR(FIND(AK$3,'CFR - XML import'!$A34)),0,VALUE(MID('CFR - XML import'!$A34,SEARCH(\">\",'CFR - XML import'!$A34,1)+1,SEARCH(\"/\",'CFR - XML import'!$A34,1)-SEARCH(\">\",'CFR - XML import'!$A34,1)-2)))","v":0},{"$f":"IF(ISERROR(FIND(AL$3,'CFR - XML import'!$A34)),0,VALUE(MID('CFR - XML import'!$A34,SEARCH(\">\",'CFR - XML import'!$A34,1)+1,SEARCH(\"/\",'CFR - XML import'!$A34,1)-SEARCH(\">\",'CFR - XML import'!$A34,1)-2)))","v":0},{"$f":"IF(ISERROR(FIND(AM$3,'CFR - XML import'!$A34)),0,VALUE(MID('CFR - XML import'!$A34,SEARCH(\">\",'CFR - XML import'!$A34,1)+1,SEARCH(\"/\",'CFR - XML import'!$A34,1)-SEARCH(\">\",'CFR - XML import'!$A34,1)-2)))","v":0},{"$f":"IF(ISERROR(FIND(AN$3,'CFR - XML import'!$A34)),0,VALUE(MID('CFR - XML import'!$A34,SEARCH(\">\",'CFR - XML import'!$A34,1)+1,SEARCH(\"/\",'CFR - XML import'!$A34,1)-SEARCH(\">\",'CFR - XML import'!$A34,1)-2)))","v":0},{"$f":"IF(ISERROR(FIND(AO$3,'CFR - XML import'!$A34)),0,VALUE(MID('CFR - XML import'!$A34,SEARCH(\">\",'CFR - XML import'!$A34,1)+1,SEARCH(\"/\",'CFR - XML import'!$A34,1)-SEARCH(\">\",'CFR - XML import'!$A34,1)-2)))","v":0},{"$f":"IF(ISERROR(FIND(AP$3,'CFR - XML import'!$A34)),0,VALUE(MID('CFR - XML import'!$A34,SEARCH(\">\",'CFR - XML import'!$A34,1)+1,SEARCH(\"/\",'CFR - XML import'!$A34,1)-SEARCH(\">\",'CFR - XML import'!$A34,1)-2)))","v":0},{"$f":"IF(ISERROR(FIND(AQ$3,'CFR - XML import'!$A34)),0,VALUE(MID('CFR - XML import'!$A34,SEARCH(\">\",'CFR - XML import'!$A34,1)+1,SEARCH(\"/\",'CFR - XML import'!$A34,1)-SEARCH(\">\",'CFR - XML import'!$A34,1)-2)))","v":0},{"$f":"IF(ISERROR(FIND(AR$3,'CFR - XML import'!$A34)),0,VALUE(MID('CFR - XML import'!$A34,SEARCH(\">\",'CFR - XML import'!$A34,1)+1,SEARCH(\"/\",'CFR - XML import'!$A34,1)-SEARCH(\">\",'CFR - XML import'!$A34,1)-2)))","v":0},{"$f":"IF(ISERROR(FIND(AS$3,'CFR - XML import'!$A34)),0,VALUE(MID('CFR - XML import'!$A34,SEARCH(\">\",'CFR - XML import'!$A34,1)+1,SEARCH(\"/\",'CFR - XML import'!$A34,1)-SEARCH(\">\",'CFR - XML import'!$A34,1)-2)))","v":0},{"$f":"IF(ISERROR(FIND(AT$3,'CFR - XML import'!$A34)),0,VALUE(MID('CFR - XML import'!$A34,SEARCH(\">\",'CFR - XML import'!$A34,1)+1,SEARCH(\"/\",'CFR - XML import'!$A34,1)-SEARCH(\">\",'CFR - XML import'!$A34,1)-2)))","v":0},{"$f":"IF(ISERROR(FIND(AU$3,'CFR - XML import'!$A34)),0,VALUE(MID('CFR - XML import'!$A34,SEARCH(\">\",'CFR - XML import'!$A34,1)+1,SEARCH(\"/\",'CFR - XML import'!$A34,1)-SEARCH(\">\",'CFR - XML import'!$A34,1)-2)))","v":0},{"$f":"IF(ISERROR(FIND(AV$3,'CFR - XML import'!$A34)),0,VALUE(MID('CFR - XML import'!$A34,SEARCH(\">\",'CFR - XML import'!$A34,1)+1,SEARCH(\"/\",'CFR - XML import'!$A34,1)-SEARCH(\">\",'CFR - XML import'!$A34,1)-2)))","v":0},{"$f":"IF(ISERROR(FIND(AW$3,'CFR - XML import'!$A34)),0,VALUE(MID('CFR - XML import'!$A34,SEARCH(\">\",'CFR - XML import'!$A34,1)+1,SEARCH(\"/\",'CFR - XML import'!$A34,1)-SEARCH(\">\",'CFR - XML import'!$A34,1)-2)))","v":0},{"$f":"IF(ISERROR(FIND(AX$3,'CFR - XML import'!$A34)),0,VALUE(MID('CFR - XML import'!$A34,SEARCH(\">\",'CFR - XML import'!$A34,1)+1,SEARCH(\"/\",'CFR - XML import'!$A34,1)-SEARCH(\">\",'CFR - XML import'!$A34,1)-2)))","v":0},{"$f":"IF(ISERROR(FIND(AY$3,'CFR - XML import'!$A34)),0,VALUE(MID('CFR - XML import'!$A34,SEARCH(\">\",'CFR - XML import'!$A34,1)+1,SEARCH(\"/\",'CFR - XML import'!$A34,1)-SEARCH(\">\",'CFR - XML import'!$A34,1)-2)))","v":0},{"$f":"IF(ISERROR(FIND(AZ$3,'CFR - XML import'!$A34)),0,VALUE(MID('CFR - XML import'!$A34,SEARCH(\">\",'CFR - XML import'!$A34,1)+1,SEARCH(\"/\",'CFR - XML import'!$A34,1)-SEARCH(\">\",'CFR - XML import'!$A34,1)-2)))","v":0},{"$f":"IF(ISERROR(FIND(BA$3,'CFR - XML import'!$A34)),0,VALUE(MID('CFR - XML import'!$A34,SEARCH(\">\",'CFR - XML import'!$A34,1)+1,SEARCH(\"/\",'CFR - XML import'!$A34,1)-SEARCH(\">\",'CFR - XML import'!$A34,1)-2)))","v":0},{"$f":"IF(ISERROR(FIND(BB$3,'CFR - XML import'!$A34)),0,VALUE(MID('CFR - XML import'!$A34,SEARCH(\">\",'CFR - XML import'!$A34,1)+1,SEARCH(\"/\",'CFR - XML import'!$A34,1)-SEARCH(\">\",'CFR - XML import'!$A34,1)-2)))","v":0},{"$f":"IF(ISERROR(FIND(BC$3,'CFR - XML import'!$A34)),0,VALUE(MID('CFR - XML import'!$A34,SEARCH(\">\",'CFR - XML import'!$A34,1)+1,SEARCH(\"/\",'CFR - XML import'!$A34,1)-SEARCH(\">\",'CFR - XML import'!$A34,1)-2)))","v":0},{"$f":"IF(ISERROR(FIND(BD$3,'CFR - XML import'!$A34)),0,VALUE(MID('CFR - XML import'!$A34,SEARCH(\">\",'CFR - XML import'!$A34,1)+1,SEARCH(\"/\",'CFR - XML import'!$A34,1)-SEARCH(\">\",'CFR - XML import'!$A34,1)-2)))","v":0},{"$f":"IF(ISERROR(FIND(BE$3,'CFR - XML import'!$A34)),0,VALUE(MID('CFR - XML import'!$A34,SEARCH(\">\",'CFR - XML import'!$A34,1)+1,SEARCH(\"/\",'CFR - XML import'!$A34,1)-SEARCH(\">\",'CFR - XML import'!$A34,1)-2)))","v":0},{"$f":"IF(ISERROR(FIND(BF$3,'CFR - XML import'!$A34)),0,VALUE(MID('CFR - XML import'!$A34,SEARCH(\">\",'CFR - XML import'!$A34,1)+1,SEARCH(\"/\",'CFR - XML import'!$A34,1)-SEARCH(\">\",'CFR - XML import'!$A34,1)-2)))","v":0},{"$f":"IF(ISERROR(FIND(BG$3,'CFR - XML import'!$A34)),0,VALUE(MID('CFR - XML import'!$A34,SEARCH(\">\",'CFR - XML import'!$A34,1)+1,SEARCH(\"/\",'CFR - XML import'!$A34,1)-SEARCH(\">\",'CFR - XML import'!$A34,1)-2)))","v":0},{"$f":"IF(ISERROR(FIND(BH$3,'CFR - XML import'!$A34)),0,VALUE(MID('CFR - XML import'!$A34,SEARCH(\">\",'CFR - XML import'!$A34,1)+1,SEARCH(\"/\",'CFR - XML import'!$A34,1)-SEARCH(\">\",'CFR - XML import'!$A34,1)-2)))","v":0},{"$f":"IF(ISERROR(FIND(BI$3,'CFR - XML import'!$A34)),0,VALUE(MID('CFR - XML import'!$A34,SEARCH(\">\",'CFR - XML import'!$A34,1)+1,SEARCH(\"/\",'CFR - XML import'!$A34,1)-SEARCH(\">\",'CFR - XML import'!$A34,1)-2)))","v":0},{"$f":"IF(ISERROR(FIND(BJ$3,'CFR - XML import'!$A34)),0,VALUE(MID('CFR - XML import'!$A34,SEARCH(\">\",'CFR - XML import'!$A34,1)+1,SEARCH(\"/\",'CFR - XML import'!$A34,1)-SEARCH(\">\",'CFR - XML import'!$A34,1)-2)))","v":0},{"$f":"IF(ISERROR(FIND(BK$3,'CFR - XML import'!$A34)),0,VALUE(MID('CFR - XML import'!$A34,SEARCH(\">\",'CFR - XML import'!$A34,1)+1,SEARCH(\"/\",'CFR - XML import'!$A34,1)-SEARCH(\">\",'CFR - XML import'!$A34,1)-2)))","v":0},{"$f":"IF(ISERROR(FIND(BL$3,'CFR - XML import'!$A34)),0,VALUE(MID('CFR - XML import'!$A34,SEARCH(\">\",'CFR - XML import'!$A34,1)+1,SEARCH(\"/\",'CFR - XML import'!$A34,1)-SEARCH(\">\",'CFR - XML import'!$A34,1)-2)))","v":0},{"$f":"IF(ISERROR(FIND(BM$3,'CFR - XML import'!$A34)),0,VALUE(MID('CFR - XML import'!$A34,SEARCH(\">\",'CFR - XML import'!$A34,1)+1,SEARCH(\"/\",'CFR - XML import'!$A34,1)-SEARCH(\">\",'CFR - XML import'!$A34,1)-2)))","v":0},{"$f":"IF(ISERROR(FIND(BN$3,'CFR - XML import'!$A34)),0,VALUE(MID('CFR - XML import'!$A34,SEARCH(\">\",'CFR - XML import'!$A34,1)+1,SEARCH(\"/\",'CFR - XML import'!$A34,1)-SEARCH(\">\",'CFR - XML import'!$A34,1)-2)))","v":0},{"$f":"IF(ISERROR(FIND(BO$3,'CFR - XML import'!$A34)),0,VALUE(MID('CFR - XML import'!$A34,SEARCH(\">\",'CFR - XML import'!$A34,1)+1,SEARCH(\"/\",'CFR - XML import'!$A34,1)-SEARCH(\">\",'CFR - XML import'!$A34,1)-2)))","v":0},{"$f":"IF(ISERROR(FIND(BP$3,'CFR - XML import'!$A34)),0,VALUE(MID('CFR - XML import'!$A34,SEARCH(\">\",'CFR - XML import'!$A34,1)+1,SEARCH(\"/\",'CFR - XML import'!$A34,1)-SEARCH(\">\",'CFR - XML import'!$A34,1)-2)))","v":0},{"$f":"IF(ISERROR(FIND(BQ$3,'CFR - XML import'!$A34)),0,VALUE(MID('CFR - XML import'!$A34,SEARCH(\">\",'CFR - XML import'!$A34,1)+1,SEARCH(\"/\",'CFR - XML import'!$A34,1)-SEARCH(\">\",'CFR - XML import'!$A34,1)-2)))","v":0},{"$f":"IF(ISERROR(FIND(BR$3,'CFR - XML import'!$A34)),0,VALUE(MID('CFR - XML import'!$A34,SEARCH(\">\",'CFR - XML import'!$A34,1)+1,SEARCH(\"/\",'CFR - XML import'!$A34,1)-SEARCH(\">\",'CFR - XML import'!$A34,1)-2)))","v":0},{"$f":"IF(ISERROR(FIND(BS$3,'CFR - XML import'!$A34)),0,VALUE(MID('CFR - XML import'!$A34,SEARCH(\">\",'CFR - XML import'!$A34,1)+1,SEARCH(\"/\",'CFR - XML import'!$A34,1)-SEARCH(\">\",'CFR - XML import'!$A34,1)-2)))","v":0},{"$f":"IF(ISERROR(FIND(BT$3,'CFR - XML import'!$A34)),0,VALUE(MID('CFR - XML import'!$A34,SEARCH(\">\",'CFR - XML import'!$A34,1)+1,SEARCH(\"/\",'CFR - XML import'!$A34,1)-SEARCH(\">\",'CFR - XML import'!$A34,1)-2)))","v":0},{"$f":"IF(ISERROR(FIND(BU$3,'CFR - XML import'!$A34)),0,VALUE(MID('CFR - XML import'!$A34,SEARCH(\">\",'CFR - XML import'!$A34,1)+1,SEARCH(\"/\",'CFR - XML import'!$A34,1)-SEARCH(\">\",'CFR - XML import'!$A34,1)-2)))","v":0},{"$f":"IF(ISERROR(FIND(BV$3,'CFR - XML import'!$A34)),0,VALUE(MID('CFR - XML import'!$A34,SEARCH(\">\",'CFR - XML import'!$A34,1)+1,SEARCH(\"/\",'CFR - XML import'!$A34,1)-SEARCH(\">\",'CFR - XML import'!$A34,1)-2)))","v":0},{"$f":"IF(ISERROR(FIND(BW$3,'CFR - XML import'!$A34)),0,VALUE(MID('CFR - XML import'!$A34,SEARCH(\">\",'CFR - XML import'!$A34,1)+1,SEARCH(\"/\",'CFR - XML import'!$A34,1)-SEARCH(\">\",'CFR - XML import'!$A34,1)-2)))","v":0},{"$f":"IF(ISERROR(FIND(BX$3,'CFR - XML import'!$A34)),0,VALUE(MID('CFR - XML import'!$A34,SEARCH(\">\",'CFR - XML import'!$A34,1)+1,SEARCH(\"/\",'CFR - XML import'!$A34,1)-SEARCH(\">\",'CFR - XML import'!$A34,1)-2)))","v":0},{"$f":"IF(ISERROR(FIND(BY$3,'CFR - XML import'!$A34)),0,VALUE(MID('CFR - XML import'!$A34,SEARCH(\">\",'CFR - XML import'!$A34,1)+1,SEARCH(\"/\",'CFR - XML import'!$A34,1)-SEARCH(\">\",'CFR - XML import'!$A34,1)-2)))","v":0},{"$f":"IF(ISERROR(FIND(BZ$3,'CFR - XML import'!$A34)),0,VALUE(MID('CFR - XML import'!$A34,SEARCH(\">\",'CFR - XML import'!$A34,1)+1,SEARCH(\"/\",'CFR - XML import'!$A34,1)-SEARCH(\">\",'CFR - XML import'!$A34,1)-2)))","v":0},null,null,null,null,null,null,{"$f":"IF(ISERROR(IF(MID('CFR - XML import'!$A34,LEN($CF$4)+1,LEN('CFR - XML import'!$A34)-(2*LEN($CF$4)+1))=\"RMMS\",1,IF(MID('CFR - XML import'!$A34,LEN(\"    <InputSystem>\")+1,LEN('CFR - XML import'!$A34)-(LEN(\"    <InputSystem>\")+LEN($CF$4)+1))=\"SIMS\",2,0))),0,IF(MID('CFR - XML import'!$A34,LEN($CF$4)+1,LEN('CFR - XML import'!$A34)-(2*LEN($CF$4)+1))=\"RMMS\",1,IF(MID('CFR - XML import'!$A34,LEN(\"    <InputSystem>\")+1,LEN('CFR - XML import'!$A34)-(LEN(\"    <InputSystem>\")+LEN($CF$4)+1))=\"SIMS\",2,0)))","v":0},{"$f":"IF(ISERROR(FIND(CH$3,'CFR - XML import'!$A34)),0,MID('CFR - XML import'!$A34,SEARCH(\">\",'CFR - XML import'!$A34,1)+1,SEARCH(\"/\",'CFR - XML import'!$A34,1)-SEARCH(\">\",'CFR - XML import'!$A34,1)-2))","v":0},{"$f":"IF(ISERROR(FIND(CI$3,'CFR - XML import'!$A34)),0,MID('CFR - XML import'!$A34,SEARCH(\">\",'CFR - XML import'!$A34,1)+1,SEARCH(\"/\",'CFR - XML import'!$A34,1)-SEARCH(\">\",'CFR - XML import'!$A34,1)-2))","v":0},{"$f":"IF(ISERROR(FIND(CJ$3,'CFR - XML import'!$A34)),0,MID('CFR - XML import'!$A34,SEARCH(\">\",'CFR - XML import'!$A34,1)+1,SEARCH(\"/\",'CFR - XML import'!$A34,1)-SEARCH(\">\",'CFR - XML import'!$A34,1)-2))","v":0},{"$f":"IF(ISERROR(FIND(CK$3,'CFR - XML import'!$A34)),0,MID('CFR - XML import'!$A34,SEARCH(\">\",'CFR - XML import'!$A34,1)+1,SEARCH(\"/\",'CFR - XML import'!$A34,1)-SEARCH(\">\",'CFR - XML import'!$A34,1)-2))","v":0},{"$f":"IF(ISERROR(FIND(CL$3,'CFR - XML import'!$A34)),0,MID('CFR - XML import'!$A34,SEARCH(\">\",'CFR - XML import'!$A34,1)+1,SEARCH(\"/\",'CFR - XML import'!$A34,1)-SEARCH(\">\",'CFR - XML import'!$A34,1)-2))","v":0}]
[{"$f":"IF(AND('CFR - XML import'!A35<>\"\",LEFT('CFR - XML import'!A35,1)<>\"<\",LEFT('CFR - XML import'!A35,3)<>\"  <\",LEFT('CFR - XML import'!A35,5)<>\"    <\",LEFT('CFR - XML import'!A35,7)<>\"      <\",LEFT('CFR - XML import'!A35,9)<>\"        <\",$B$1=\"SIMS\"),'CFR - XML import'!A35,IF(AND(LEFT('CFR - XML import'!A35,9)=\"<Details>\",$B$1=\"RM\"),'CFR - XML import'!A35,\"\"))","v":""},{"$f":"IF(ISERROR(FIND(B$3,'CFR - XML import'!$A35)),0,VALUE(MID('CFR - XML import'!$A35,SEARCH(\">\",'CFR - XML import'!$A35,1)+1,SEARCH(\"/\",'CFR - XML import'!$A35,1)-SEARCH(\">\",'CFR - XML import'!$A35,1)-2)))","v":0},null,{"$f":"IF(ISERROR(FIND(D$3,'CFR - XML import'!$A35)),0,MID('CFR - XML import'!$A35,SEARCH(\">\",'CFR - XML import'!$A35,1)+1,SEARCH(\"/\",'CFR - XML import'!$A35,1)-SEARCH(\">\",'CFR - XML import'!$A35,1)-2))","v":0},{"$f":"IF(ISERROR(FIND(E$3,'CFR - XML import'!$A35)),0,MID('CFR - XML import'!$A35,SEARCH(\">\",'CFR - XML import'!$A35,1)+1,SEARCH(\"/\",'CFR - XML import'!$A35,1)-SEARCH(\">\",'CFR - XML import'!$A35,1)-2))","v":0},{"$f":"IF($B$1=\"SIMS\",IF(ISERROR(FIND(F$3,'CFR - XML import'!$A35)),0,VALUE(MID('CFR - XML import'!$A35,15,10))),IF(ISERROR(FIND(F$3,'CFR - XML import'!$A35)),0,VALUE(MID('CFR - XML import'!$A35,11,10))))","v":"00:00:00"},{"$f":"IF(ISERROR(FIND(G$3,'CFR - XML import'!$A35)),0,VALUE(MID('CFR - XML import'!$A35,SEARCH(\">\",'CFR - XML import'!$A35,1)+1,SEARCH(\"/\",'CFR - XML import'!$A35,1)-SEARCH(\">\",'CFR - XML import'!$A35,1)-2)))","v":0},{"$f":"IF(ISERROR(FIND(H$3,'CFR - XML import'!$A35)),0,VALUE(MID('CFR - XML import'!$A35,SEARCH(\">\",'CFR - XML import'!$A35,1)+1,SEARCH(\"/\",'CFR - XML import'!$A35,1)-SEARCH(\">\",'CFR - XML import'!$A35,1)-2)))","v":0},{"$f":"IF(ISERROR(FIND(I$3,'CFR - XML import'!$A35)),0,VALUE(MID('CFR - XML import'!$A35,SEARCH(\">\",'CFR - XML import'!$A35,1)+1,SEARCH(\"/\",'CFR - XML import'!$A35,1)-SEARCH(\">\",'CFR - XML import'!$A35,1)-2)))","v":0},{"$f":"IF(ISERROR(FIND(J$3,'CFR - XML import'!$A35)),0,VALUE(MID('CFR - XML import'!$A35,SEARCH(\">\",'CFR - XML import'!$A35,1)+1,SEARCH(\"/\",'CFR - XML import'!$A35,1)-SEARCH(\">\",'CFR - XML import'!$A35,1)-2)))","v":0},{"$f":"IF(ISERROR(FIND(K$3,'CFR - XML import'!$A35)),0,VALUE(MID('CFR - XML import'!$A35,SEARCH(\">\",'CFR - XML import'!$A35,1)+1,SEARCH(\"/\",'CFR - XML import'!$A35,1)-SEARCH(\">\",'CFR - XML import'!$A35,1)-2)))","v":0},{"$f":"IF(ISERROR(FIND(L$3,'CFR - XML import'!$A35)),0,VALUE(MID('CFR - XML import'!$A35,SEARCH(\">\",'CFR - XML import'!$A35,1)+1,SEARCH(\"/\",'CFR - XML import'!$A35,1)-SEARCH(\">\",'CFR - XML import'!$A35,1)-2)))","v":0},{"$f":"IF(ISERROR(FIND(M$3,'CFR - XML import'!$A35)),0,VALUE(MID('CFR - XML import'!$A35,SEARCH(\">\",'CFR - XML import'!$A35,1)+1,SEARCH(\"/\",'CFR - XML import'!$A35,1)-SEARCH(\">\",'CFR - XML import'!$A35,1)-2)))","v":0},{"$f":"IF(ISERROR(FIND(N$3,'CFR - XML import'!$A35)),0,VALUE(MID('CFR - XML import'!$A35,SEARCH(\">\",'CFR - XML import'!$A35,1)+1,SEARCH(\"/\",'CFR - XML import'!$A35,1)-SEARCH(\">\",'CFR - XML import'!$A35,1)-2)))","v":0},{"$f":"IF(ISERROR(FIND(O$3,'CFR - XML import'!$A35)),0,VALUE(MID('CFR - XML import'!$A35,SEARCH(\">\",'CFR - XML import'!$A35,1)+1,SEARCH(\"/\",'CFR - XML import'!$A35,1)-SEARCH(\">\",'CFR - XML import'!$A35,1)-2)))","v":0},{"$f":"IF(ISERROR(FIND(P$3,'CFR - XML import'!$A35)),0,VALUE(MID('CFR - XML import'!$A35,SEARCH(\">\",'CFR - XML import'!$A35,1)+1,SEARCH(\"/\",'CFR - XML import'!$A35,1)-SEARCH(\">\",'CFR - XML import'!$A35,1)-2)))","v":0},{"$f":"IF(ISERROR(FIND(Q$3,'CFR - XML import'!$A35)),0,VALUE(MID('CFR - XML import'!$A35,SEARCH(\">\",'CFR - XML import'!$A35,1)+1,SEARCH(\"/\",'CFR - XML import'!$A35,1)-SEARCH(\">\",'CFR - XML import'!$A35,1)-2)))","v":0},{"$f":"IF(ISERROR(FIND(R$3,'CFR - XML import'!$A35)),0,VALUE(MID('CFR - XML import'!$A35,SEARCH(\">\",'CFR - XML import'!$A35,1)+1,SEARCH(\"/\",'CFR - XML import'!$A35,1)-SEARCH(\">\",'CFR - XML import'!$A35,1)-2)))","v":0},{"$f":"IF(ISERROR(FIND(S$3,'CFR - XML import'!$A35)),0,VALUE(MID('CFR - XML import'!$A35,SEARCH(\">\",'CFR - XML import'!$A35,1)+1,SEARCH(\"/\",'CFR - XML import'!$A35,1)-SEARCH(\">\",'CFR - XML import'!$A35,1)-2)))","v":0},{"$f":"IF(ISERROR(FIND(T$3,'CFR - XML import'!$A35)),0,VALUE(MID('CFR - XML import'!$A35,SEARCH(\">\",'CFR - XML import'!$A35,1)+1,SEARCH(\"/\",'CFR - XML import'!$A35,1)-SEARCH(\">\",'CFR - XML import'!$A35,1)-2)))","v":0},{"$f":"IF(ISERROR(FIND(U$3,'CFR - XML import'!$A35)),0,VALUE(MID('CFR - XML import'!$A35,SEARCH(\">\",'CFR - XML import'!$A35,1)+1,SEARCH(\"/\",'CFR - XML import'!$A35,1)-SEARCH(\">\",'CFR - XML import'!$A35,1)-2)))","v":0},{"$f":"IF(ISERROR(FIND(V$3,'CFR - XML import'!$A35)),0,VALUE(MID('CFR - XML import'!$A35,SEARCH(\">\",'CFR - XML import'!$A35,1)+1,SEARCH(\"/\",'CFR - XML import'!$A35,1)-SEARCH(\">\",'CFR - XML import'!$A35,1)-2)))","v":0},{"$f":"IF(ISERROR(FIND(W$3,'CFR - XML import'!$A35)),0,VALUE(MID('CFR - XML import'!$A35,SEARCH(\">\",'CFR - XML import'!$A35,1)+1,SEARCH(\"/\",'CFR - XML import'!$A35,1)-SEARCH(\">\",'CFR - XML import'!$A35,1)-2)))","v":0},null,{"$f":"IF(ISERROR(FIND(Y$3,'CFR - XML import'!$A35)),0,VALUE(MID('CFR - XML import'!$A35,SEARCH(\">\",'CFR - XML import'!$A35,1)+1,SEARCH(\"/\",'CFR - XML import'!$A35,1)-SEARCH(\">\",'CFR - XML import'!$A35,1)-2)))","v":0},{"$f":"IF(ISERROR(FIND(Z$3,'CFR - XML import'!$A35)),0,VALUE(MID('CFR - XML import'!$A35,SEARCH(\">\",'CFR - XML import'!$A35,1)+1,SEARCH(\"/\",'CFR - XML import'!$A35,1)-SEARCH(\">\",'CFR - XML import'!$A35,1)-2)))","v":0},{"$f":"IF(ISERROR(FIND(AA$3,'CFR - XML import'!$A35)),0,VALUE(MID('CFR - XML import'!$A35,SEARCH(\">\",'CFR - XML import'!$A35,1)+1,SEARCH(\"/\",'CFR - XML import'!$A35,1)-SEARCH(\">\",'CFR - XML import'!$A35,1)-2)))","v":0},{"$f":"IF(ISERROR(FIND(AB$3,'CFR - XML import'!$A35)),0,VALUE(MID('CFR - XML import'!$A35,SEARCH(\">\",'CFR - XML import'!$A35,1)+1,SEARCH(\"/\",'CFR - XML import'!$A35,1)-SEARCH(\">\",'CFR - XML import'!$A35,1)-2)))","v":0},{"$f":"IF(ISERROR(FIND(AC$3,'CFR - XML import'!$A35)),0,VALUE(MID('CFR - XML import'!$A35,SEARCH(\">\",'CFR - XML import'!$A35,1)+1,SEARCH(\"/\",'CFR - XML import'!$A35,1)-SEARCH(\">\",'CFR - XML import'!$A35,1)-2)))","v":0},{"$f":"IF(ISERROR(FIND(AD$3,'CFR - XML import'!$A35)),0,VALUE(MID('CFR - XML import'!$A35,SEARCH(\">\",'CFR - XML import'!$A35,1)+1,SEARCH(\"/\",'CFR - XML import'!$A35,1)-SEARCH(\">\",'CFR - XML import'!$A35,1)-2)))","v":0},{"$f":"IF(ISERROR(FIND(AE$3,'CFR - XML import'!$A35)),0,VALUE(MID('CFR - XML import'!$A35,SEARCH(\">\",'CFR - XML import'!$A35,1)+1,SEARCH(\"/\",'CFR - XML import'!$A35,1)-SEARCH(\">\",'CFR - XML import'!$A35,1)-2)))","v":0},{"$f":"IF(ISERROR(FIND(AF$3,'CFR - XML import'!$A35)),0,VALUE(MID('CFR - XML import'!$A35,SEARCH(\">\",'CFR - XML import'!$A35,1)+1,SEARCH(\"/\",'CFR - XML import'!$A35,1)-SEARCH(\">\",'CFR - XML import'!$A35,1)-2)))","v":0},{"$f":"IF(ISERROR(FIND(AG$3,'CFR - XML import'!$A35)),0,VALUE(MID('CFR - XML import'!$A35,SEARCH(\">\",'CFR - XML import'!$A35,1)+1,SEARCH(\"/\",'CFR - XML import'!$A35,1)-SEARCH(\">\",'CFR - XML import'!$A35,1)-2)))","v":0},{"$f":"IF(ISERROR(FIND(AH$3,'CFR - XML import'!$A35)),0,VALUE(MID('CFR - XML import'!$A35,SEARCH(\">\",'CFR - XML import'!$A35,1)+1,SEARCH(\"/\",'CFR - XML import'!$A35,1)-SEARCH(\">\",'CFR - XML import'!$A35,1)-2)))","v":0},{"$f":"IF(ISERROR(FIND(AI$3,'CFR - XML import'!$A35)),0,VALUE(MID('CFR - XML import'!$A35,SEARCH(\">\",'CFR - XML import'!$A35,1)+1,SEARCH(\"/\",'CFR - XML import'!$A35,1)-SEARCH(\">\",'CFR - XML import'!$A35,1)-2)))","v":0},{"$f":"IF(ISERROR(FIND(AJ$3,'CFR - XML import'!$A35)),0,VALUE(MID('CFR - XML import'!$A35,SEARCH(\">\",'CFR - XML import'!$A35,1)+1,SEARCH(\"/\",'CFR - XML import'!$A35,1)-SEARCH(\">\",'CFR - XML import'!$A35,1)-2)))","v":0},{"$f":"IF(ISERROR(FIND(AK$3,'CFR - XML import'!$A35)),0,VALUE(MID('CFR - XML import'!$A35,SEARCH(\">\",'CFR - XML import'!$A35,1)+1,SEARCH(\"/\",'CFR - XML import'!$A35,1)-SEARCH(\">\",'CFR - XML import'!$A35,1)-2)))","v":0},{"$f":"IF(ISERROR(FIND(AL$3,'CFR - XML import'!$A35)),0,VALUE(MID('CFR - XML import'!$A35,SEARCH(\">\",'CFR - XML import'!$A35,1)+1,SEARCH(\"/\",'CFR - XML import'!$A35,1)-SEARCH(\">\",'CFR - XML import'!$A35,1)-2)))","v":0},{"$f":"IF(ISERROR(FIND(AM$3,'CFR - XML import'!$A35)),0,VALUE(MID('CFR - XML import'!$A35,SEARCH(\">\",'CFR - XML import'!$A35,1)+1,SEARCH(\"/\",'CFR - XML import'!$A35,1)-SEARCH(\">\",'CFR - XML import'!$A35,1)-2)))","v":0},{"$f":"IF(ISERROR(FIND(AN$3,'CFR - XML import'!$A35)),0,VALUE(MID('CFR - XML import'!$A35,SEARCH(\">\",'CFR - XML import'!$A35,1)+1,SEARCH(\"/\",'CFR - XML import'!$A35,1)-SEARCH(\">\",'CFR - XML import'!$A35,1)-2)))","v":0},{"$f":"IF(ISERROR(FIND(AO$3,'CFR - XML import'!$A35)),0,VALUE(MID('CFR - XML import'!$A35,SEARCH(\">\",'CFR - XML import'!$A35,1)+1,SEARCH(\"/\",'CFR - XML import'!$A35,1)-SEARCH(\">\",'CFR - XML import'!$A35,1)-2)))","v":0},{"$f":"IF(ISERROR(FIND(AP$3,'CFR - XML import'!$A35)),0,VALUE(MID('CFR - XML import'!$A35,SEARCH(\">\",'CFR - XML import'!$A35,1)+1,SEARCH(\"/\",'CFR - XML import'!$A35,1)-SEARCH(\">\",'CFR - XML import'!$A35,1)-2)))","v":0},{"$f":"IF(ISERROR(FIND(AQ$3,'CFR - XML import'!$A35)),0,VALUE(MID('CFR - XML import'!$A35,SEARCH(\">\",'CFR - XML import'!$A35,1)+1,SEARCH(\"/\",'CFR - XML import'!$A35,1)-SEARCH(\">\",'CFR - XML import'!$A35,1)-2)))","v":0},{"$f":"IF(ISERROR(FIND(AR$3,'CFR - XML import'!$A35)),0,VALUE(MID('CFR - XML import'!$A35,SEARCH(\">\",'CFR - XML import'!$A35,1)+1,SEARCH(\"/\",'CFR - XML import'!$A35,1)-SEARCH(\">\",'CFR - XML import'!$A35,1)-2)))","v":0},{"$f":"IF(ISERROR(FIND(AS$3,'CFR - XML import'!$A35)),0,VALUE(MID('CFR - XML import'!$A35,SEARCH(\">\",'CFR - XML import'!$A35,1)+1,SEARCH(\"/\",'CFR - XML import'!$A35,1)-SEARCH(\">\",'CFR - XML import'!$A35,1)-2)))","v":0},{"$f":"IF(ISERROR(FIND(AT$3,'CFR - XML import'!$A35)),0,VALUE(MID('CFR - XML import'!$A35,SEARCH(\">\",'CFR - XML import'!$A35,1)+1,SEARCH(\"/\",'CFR - XML import'!$A35,1)-SEARCH(\">\",'CFR - XML import'!$A35,1)-2)))","v":0},{"$f":"IF(ISERROR(FIND(AU$3,'CFR - XML import'!$A35)),0,VALUE(MID('CFR - XML import'!$A35,SEARCH(\">\",'CFR - XML import'!$A35,1)+1,SEARCH(\"/\",'CFR - XML import'!$A35,1)-SEARCH(\">\",'CFR - XML import'!$A35,1)-2)))","v":0},{"$f":"IF(ISERROR(FIND(AV$3,'CFR - XML import'!$A35)),0,VALUE(MID('CFR - XML import'!$A35,SEARCH(\">\",'CFR - XML import'!$A35,1)+1,SEARCH(\"/\",'CFR - XML import'!$A35,1)-SEARCH(\">\",'CFR - XML import'!$A35,1)-2)))","v":0},{"$f":"IF(ISERROR(FIND(AW$3,'CFR - XML import'!$A35)),0,VALUE(MID('CFR - XML import'!$A35,SEARCH(\">\",'CFR - XML import'!$A35,1)+1,SEARCH(\"/\",'CFR - XML import'!$A35,1)-SEARCH(\">\",'CFR - XML import'!$A35,1)-2)))","v":0},{"$f":"IF(ISERROR(FIND(AX$3,'CFR - XML import'!$A35)),0,VALUE(MID('CFR - XML import'!$A35,SEARCH(\">\",'CFR - XML import'!$A35,1)+1,SEARCH(\"/\",'CFR - XML import'!$A35,1)-SEARCH(\">\",'CFR - XML import'!$A35,1)-2)))","v":0},{"$f":"IF(ISERROR(FIND(AY$3,'CFR - XML import'!$A35)),0,VALUE(MID('CFR - XML import'!$A35,SEARCH(\">\",'CFR - XML import'!$A35,1)+1,SEARCH(\"/\",'CFR - XML import'!$A35,1)-SEARCH(\">\",'CFR - XML import'!$A35,1)-2)))","v":0},{"$f":"IF(ISERROR(FIND(AZ$3,'CFR - XML import'!$A35)),0,VALUE(MID('CFR - XML import'!$A35,SEARCH(\">\",'CFR - XML import'!$A35,1)+1,SEARCH(\"/\",'CFR - XML import'!$A35,1)-SEARCH(\">\",'CFR - XML import'!$A35,1)-2)))","v":0},{"$f":"IF(ISERROR(FIND(BA$3,'CFR - XML import'!$A35)),0,VALUE(MID('CFR - XML import'!$A35,SEARCH(\">\",'CFR - XML import'!$A35,1)+1,SEARCH(\"/\",'CFR - XML import'!$A35,1)-SEARCH(\">\",'CFR - XML import'!$A35,1)-2)))","v":0},{"$f":"IF(ISERROR(FIND(BB$3,'CFR - XML import'!$A35)),0,VALUE(MID('CFR - XML import'!$A35,SEARCH(\">\",'CFR - XML import'!$A35,1)+1,SEARCH(\"/\",'CFR - XML import'!$A35,1)-SEARCH(\">\",'CFR - XML import'!$A35,1)-2)))","v":0},{"$f":"IF(ISERROR(FIND(BC$3,'CFR - XML import'!$A35)),0,VALUE(MID('CFR - XML import'!$A35,SEARCH(\">\",'CFR - XML import'!$A35,1)+1,SEARCH(\"/\",'CFR - XML import'!$A35,1)-SEARCH(\">\",'CFR - XML import'!$A35,1)-2)))","v":0},{"$f":"IF(ISERROR(FIND(BD$3,'CFR - XML import'!$A35)),0,VALUE(MID('CFR - XML import'!$A35,SEARCH(\">\",'CFR - XML import'!$A35,1)+1,SEARCH(\"/\",'CFR - XML import'!$A35,1)-SEARCH(\">\",'CFR - XML import'!$A35,1)-2)))","v":0},{"$f":"IF(ISERROR(FIND(BE$3,'CFR - XML import'!$A35)),0,VALUE(MID('CFR - XML import'!$A35,SEARCH(\">\",'CFR - XML import'!$A35,1)+1,SEARCH(\"/\",'CFR - XML import'!$A35,1)-SEARCH(\">\",'CFR - XML import'!$A35,1)-2)))","v":0},{"$f":"IF(ISERROR(FIND(BF$3,'CFR - XML import'!$A35)),0,VALUE(MID('CFR - XML import'!$A35,SEARCH(\">\",'CFR - XML import'!$A35,1)+1,SEARCH(\"/\",'CFR - XML import'!$A35,1)-SEARCH(\">\",'CFR - XML import'!$A35,1)-2)))","v":0},{"$f":"IF(ISERROR(FIND(BG$3,'CFR - XML import'!$A35)),0,VALUE(MID('CFR - XML import'!$A35,SEARCH(\">\",'CFR - XML import'!$A35,1)+1,SEARCH(\"/\",'CFR - XML import'!$A35,1)-SEARCH(\">\",'CFR - XML import'!$A35,1)-2)))","v":0},{"$f":"IF(ISERROR(FIND(BH$3,'CFR - XML import'!$A35)),0,VALUE(MID('CFR - XML import'!$A35,SEARCH(\">\",'CFR - XML import'!$A35,1)+1,SEARCH(\"/\",'CFR - XML import'!$A35,1)-SEARCH(\">\",'CFR - XML import'!$A35,1)-2)))","v":0},{"$f":"IF(ISERROR(FIND(BI$3,'CFR - XML import'!$A35)),0,VALUE(MID('CFR - XML import'!$A35,SEARCH(\">\",'CFR - XML import'!$A35,1)+1,SEARCH(\"/\",'CFR - XML import'!$A35,1)-SEARCH(\">\",'CFR - XML import'!$A35,1)-2)))","v":0},{"$f":"IF(ISERROR(FIND(BJ$3,'CFR - XML import'!$A35)),0,VALUE(MID('CFR - XML import'!$A35,SEARCH(\">\",'CFR - XML import'!$A35,1)+1,SEARCH(\"/\",'CFR - XML import'!$A35,1)-SEARCH(\">\",'CFR - XML import'!$A35,1)-2)))","v":0},{"$f":"IF(ISERROR(FIND(BK$3,'CFR - XML import'!$A35)),0,VALUE(MID('CFR - XML import'!$A35,SEARCH(\">\",'CFR - XML import'!$A35,1)+1,SEARCH(\"/\",'CFR - XML import'!$A35,1)-SEARCH(\">\",'CFR - XML import'!$A35,1)-2)))","v":0},{"$f":"IF(ISERROR(FIND(BL$3,'CFR - XML import'!$A35)),0,VALUE(MID('CFR - XML import'!$A35,SEARCH(\">\",'CFR - XML import'!$A35,1)+1,SEARCH(\"/\",'CFR - XML import'!$A35,1)-SEARCH(\">\",'CFR - XML import'!$A35,1)-2)))","v":0},{"$f":"IF(ISERROR(FIND(BM$3,'CFR - XML import'!$A35)),0,VALUE(MID('CFR - XML import'!$A35,SEARCH(\">\",'CFR - XML import'!$A35,1)+1,SEARCH(\"/\",'CFR - XML import'!$A35,1)-SEARCH(\">\",'CFR - XML import'!$A35,1)-2)))","v":0},{"$f":"IF(ISERROR(FIND(BN$3,'CFR - XML import'!$A35)),0,VALUE(MID('CFR - XML import'!$A35,SEARCH(\">\",'CFR - XML import'!$A35,1)+1,SEARCH(\"/\",'CFR - XML import'!$A35,1)-SEARCH(\">\",'CFR - XML import'!$A35,1)-2)))","v":0},{"$f":"IF(ISERROR(FIND(BO$3,'CFR - XML import'!$A35)),0,VALUE(MID('CFR - XML import'!$A35,SEARCH(\">\",'CFR - XML import'!$A35,1)+1,SEARCH(\"/\",'CFR - XML import'!$A35,1)-SEARCH(\">\",'CFR - XML import'!$A35,1)-2)))","v":0},{"$f":"IF(ISERROR(FIND(BP$3,'CFR - XML import'!$A35)),0,VALUE(MID('CFR - XML import'!$A35,SEARCH(\">\",'CFR - XML import'!$A35,1)+1,SEARCH(\"/\",'CFR - XML import'!$A35,1)-SEARCH(\">\",'CFR - XML import'!$A35,1)-2)))","v":0},{"$f":"IF(ISERROR(FIND(BQ$3,'CFR - XML import'!$A35)),0,VALUE(MID('CFR - XML import'!$A35,SEARCH(\">\",'CFR - XML import'!$A35,1)+1,SEARCH(\"/\",'CFR - XML import'!$A35,1)-SEARCH(\">\",'CFR - XML import'!$A35,1)-2)))","v":0},{"$f":"IF(ISERROR(FIND(BR$3,'CFR - XML import'!$A35)),0,VALUE(MID('CFR - XML import'!$A35,SEARCH(\">\",'CFR - XML import'!$A35,1)+1,SEARCH(\"/\",'CFR - XML import'!$A35,1)-SEARCH(\">\",'CFR - XML import'!$A35,1)-2)))","v":0},{"$f":"IF(ISERROR(FIND(BS$3,'CFR - XML import'!$A35)),0,VALUE(MID('CFR - XML import'!$A35,SEARCH(\">\",'CFR - XML import'!$A35,1)+1,SEARCH(\"/\",'CFR - XML import'!$A35,1)-SEARCH(\">\",'CFR - XML import'!$A35,1)-2)))","v":0},{"$f":"IF(ISERROR(FIND(BT$3,'CFR - XML import'!$A35)),0,VALUE(MID('CFR - XML import'!$A35,SEARCH(\">\",'CFR - XML import'!$A35,1)+1,SEARCH(\"/\",'CFR - XML import'!$A35,1)-SEARCH(\">\",'CFR - XML import'!$A35,1)-2)))","v":0},{"$f":"IF(ISERROR(FIND(BU$3,'CFR - XML import'!$A35)),0,VALUE(MID('CFR - XML import'!$A35,SEARCH(\">\",'CFR - XML import'!$A35,1)+1,SEARCH(\"/\",'CFR - XML import'!$A35,1)-SEARCH(\">\",'CFR - XML import'!$A35,1)-2)))","v":0},{"$f":"IF(ISERROR(FIND(BV$3,'CFR - XML import'!$A35)),0,VALUE(MID('CFR - XML import'!$A35,SEARCH(\">\",'CFR - XML import'!$A35,1)+1,SEARCH(\"/\",'CFR - XML import'!$A35,1)-SEARCH(\">\",'CFR - XML import'!$A35,1)-2)))","v":0},{"$f":"IF(ISERROR(FIND(BW$3,'CFR - XML import'!$A35)),0,VALUE(MID('CFR - XML import'!$A35,SEARCH(\">\",'CFR - XML import'!$A35,1)+1,SEARCH(\"/\",'CFR - XML import'!$A35,1)-SEARCH(\">\",'CFR - XML import'!$A35,1)-2)))","v":0},{"$f":"IF(ISERROR(FIND(BX$3,'CFR - XML import'!$A35)),0,VALUE(MID('CFR - XML import'!$A35,SEARCH(\">\",'CFR - XML import'!$A35,1)+1,SEARCH(\"/\",'CFR - XML import'!$A35,1)-SEARCH(\">\",'CFR - XML import'!$A35,1)-2)))","v":0},{"$f":"IF(ISERROR(FIND(BY$3,'CFR - XML import'!$A35)),0,VALUE(MID('CFR - XML import'!$A35,SEARCH(\">\",'CFR - XML import'!$A35,1)+1,SEARCH(\"/\",'CFR - XML import'!$A35,1)-SEARCH(\">\",'CFR - XML import'!$A35,1)-2)))","v":0},{"$f":"IF(ISERROR(FIND(BZ$3,'CFR - XML import'!$A35)),0,VALUE(MID('CFR - XML import'!$A35,SEARCH(\">\",'CFR - XML import'!$A35,1)+1,SEARCH(\"/\",'CFR - XML import'!$A35,1)-SEARCH(\">\",'CFR - XML import'!$A35,1)-2)))","v":0},null,null,null,null,null,null,{"$f":"IF(ISERROR(IF(MID('CFR - XML import'!$A35,LEN($CF$4)+1,LEN('CFR - XML import'!$A35)-(2*LEN($CF$4)+1))=\"RMMS\",1,IF(MID('CFR - XML import'!$A35,LEN(\"    <InputSystem>\")+1,LEN('CFR - XML import'!$A35)-(LEN(\"    <InputSystem>\")+LEN($CF$4)+1))=\"SIMS\",2,0))),0,IF(MID('CFR - XML import'!$A35,LEN($CF$4)+1,LEN('CFR - XML import'!$A35)-(2*LEN($CF$4)+1))=\"RMMS\",1,IF(MID('CFR - XML import'!$A35,LEN(\"    <InputSystem>\")+1,LEN('CFR - XML import'!$A35)-(LEN(\"    <InputSystem>\")+LEN($CF$4)+1))=\"SIMS\",2,0)))","v":0},{"$f":"IF(ISERROR(FIND(CH$3,'CFR - XML import'!$A35)),0,MID('CFR - XML import'!$A35,SEARCH(\">\",'CFR - XML import'!$A35,1)+1,SEARCH(\"/\",'CFR - XML import'!$A35,1)-SEARCH(\">\",'CFR - XML import'!$A35,1)-2))","v":0},{"$f":"IF(ISERROR(FIND(CI$3,'CFR - XML import'!$A35)),0,MID('CFR - XML import'!$A35,SEARCH(\">\",'CFR - XML import'!$A35,1)+1,SEARCH(\"/\",'CFR - XML import'!$A35,1)-SEARCH(\">\",'CFR - XML import'!$A35,1)-2))","v":0},{"$f":"IF(ISERROR(FIND(CJ$3,'CFR - XML import'!$A35)),0,MID('CFR - XML import'!$A35,SEARCH(\">\",'CFR - XML import'!$A35,1)+1,SEARCH(\"/\",'CFR - XML import'!$A35,1)-SEARCH(\">\",'CFR - XML import'!$A35,1)-2))","v":0},{"$f":"IF(ISERROR(FIND(CK$3,'CFR - XML import'!$A35)),0,MID('CFR - XML import'!$A35,SEARCH(\">\",'CFR - XML import'!$A35,1)+1,SEARCH(\"/\",'CFR - XML import'!$A35,1)-SEARCH(\">\",'CFR - XML import'!$A35,1)-2))","v":0},{"$f":"IF(ISERROR(FIND(CL$3,'CFR - XML import'!$A35)),0,MID('CFR - XML import'!$A35,SEARCH(\">\",'CFR - XML import'!$A35,1)+1,SEARCH(\"/\",'CFR - XML import'!$A35,1)-SEARCH(\">\",'CFR - XML import'!$A35,1)-2))","v":0}]
[{"$f":"IF(AND('CFR - XML import'!A36<>\"\",LEFT('CFR - XML import'!A36,1)<>\"<\",LEFT('CFR - XML import'!A36,3)<>\"  <\",LEFT('CFR - XML import'!A36,5)<>\"    <\",LEFT('CFR - XML import'!A36,7)<>\"      <\",LEFT('CFR - XML import'!A36,9)<>\"        <\",$B$1=\"SIMS\"),'CFR - XML import'!A36,IF(AND(LEFT('CFR - XML import'!A36,9)=\"<Details>\",$B$1=\"RM\"),'CFR - XML import'!A36,\"\"))","v":""},{"$f":"IF(ISERROR(FIND(B$3,'CFR - XML import'!$A36)),0,VALUE(MID('CFR - XML import'!$A36,SEARCH(\">\",'CFR - XML import'!$A36,1)+1,SEARCH(\"/\",'CFR - XML import'!$A36,1)-SEARCH(\">\",'CFR - XML import'!$A36,1)-2)))","v":0},null,{"$f":"IF(ISERROR(FIND(D$3,'CFR - XML import'!$A36)),0,MID('CFR - XML import'!$A36,SEARCH(\">\",'CFR - XML import'!$A36,1)+1,SEARCH(\"/\",'CFR - XML import'!$A36,1)-SEARCH(\">\",'CFR - XML import'!$A36,1)-2))","v":0},{"$f":"IF(ISERROR(FIND(E$3,'CFR - XML import'!$A36)),0,MID('CFR - XML import'!$A36,SEARCH(\">\",'CFR - XML import'!$A36,1)+1,SEARCH(\"/\",'CFR - XML import'!$A36,1)-SEARCH(\">\",'CFR - XML import'!$A36,1)-2))","v":0},{"$f":"IF($B$1=\"SIMS\",IF(ISERROR(FIND(F$3,'CFR - XML import'!$A36)),0,VALUE(MID('CFR - XML import'!$A36,15,10))),IF(ISERROR(FIND(F$3,'CFR - XML import'!$A36)),0,VALUE(MID('CFR - XML import'!$A36,11,10))))","v":"00:00:00"},{"$f":"IF(ISERROR(FIND(G$3,'CFR - XML import'!$A36)),0,VALUE(MID('CFR - XML import'!$A36,SEARCH(\">\",'CFR - XML import'!$A36,1)+1,SEARCH(\"/\",'CFR - XML import'!$A36,1)-SEARCH(\">\",'CFR - XML import'!$A36,1)-2)))","v":0},{"$f":"IF(ISERROR(FIND(H$3,'CFR - XML import'!$A36)),0,VALUE(MID('CFR - XML import'!$A36,SEARCH(\">\",'CFR - XML import'!$A36,1)+1,SEARCH(\"/\",'CFR - XML import'!$A36,1)-SEARCH(\">\",'CFR - XML import'!$A36,1)-2)))","v":0},{"$f":"IF(ISERROR(FIND(I$3,'CFR - XML import'!$A36)),0,VALUE(MID('CFR - XML import'!$A36,SEARCH(\">\",'CFR - XML import'!$A36,1)+1,SEARCH(\"/\",'CFR - XML import'!$A36,1)-SEARCH(\">\",'CFR - XML import'!$A36,1)-2)))","v":0},{"$f":"IF(ISERROR(FIND(J$3,'CFR - XML import'!$A36)),0,VALUE(MID('CFR - XML import'!$A36,SEARCH(\">\",'CFR - XML import'!$A36,1)+1,SEARCH(\"/\",'CFR - XML import'!$A36,1)-SEARCH(\">\",'CFR - XML import'!$A36,1)-2)))","v":0},{"$f":"IF(ISERROR(FIND(K$3,'CFR - XML import'!$A36)),0,VALUE(MID('CFR - XML import'!$A36,SEARCH(\">\",'CFR - XML import'!$A36,1)+1,SEARCH(\"/\",'CFR - XML import'!$A36,1)-SEARCH(\">\",'CFR - XML import'!$A36,1)-2)))","v":0},{"$f":"IF(ISERROR(FIND(L$3,'CFR - XML import'!$A36)),0,VALUE(MID('CFR - XML import'!$A36,SEARCH(\">\",'CFR - XML import'!$A36,1)+1,SEARCH(\"/\",'CFR - XML import'!$A36,1)-SEARCH(\">\",'CFR - XML import'!$A36,1)-2)))","v":0},{"$f":"IF(ISERROR(FIND(M$3,'CFR - XML import'!$A36)),0,VALUE(MID('CFR - XML import'!$A36,SEARCH(\">\",'CFR - XML import'!$A36,1)+1,SEARCH(\"/\",'CFR - XML import'!$A36,1)-SEARCH(\">\",'CFR - XML import'!$A36,1)-2)))","v":0},{"$f":"IF(ISERROR(FIND(N$3,'CFR - XML import'!$A36)),0,VALUE(MID('CFR - XML import'!$A36,SEARCH(\">\",'CFR - XML import'!$A36,1)+1,SEARCH(\"/\",'CFR - XML import'!$A36,1)-SEARCH(\">\",'CFR - XML import'!$A36,1)-2)))","v":0},{"$f":"IF(ISERROR(FIND(O$3,'CFR - XML import'!$A36)),0,VALUE(MID('CFR - XML import'!$A36,SEARCH(\">\",'CFR - XML import'!$A36,1)+1,SEARCH(\"/\",'CFR - XML import'!$A36,1)-SEARCH(\">\",'CFR - XML import'!$A36,1)-2)))","v":0},{"$f":"IF(ISERROR(FIND(P$3,'CFR - XML import'!$A36)),0,VALUE(MID('CFR - XML import'!$A36,SEARCH(\">\",'CFR - XML import'!$A36,1)+1,SEARCH(\"/\",'CFR - XML import'!$A36,1)-SEARCH(\">\",'CFR - XML import'!$A36,1)-2)))","v":0},{"$f":"IF(ISERROR(FIND(Q$3,'CFR - XML import'!$A36)),0,VALUE(MID('CFR - XML import'!$A36,SEARCH(\">\",'CFR - XML import'!$A36,1)+1,SEARCH(\"/\",'CFR - XML import'!$A36,1)-SEARCH(\">\",'CFR - XML import'!$A36,1)-2)))","v":0},{"$f":"IF(ISERROR(FIND(R$3,'CFR - XML import'!$A36)),0,VALUE(MID('CFR - XML import'!$A36,SEARCH(\">\",'CFR - XML import'!$A36,1)+1,SEARCH(\"/\",'CFR - XML import'!$A36,1)-SEARCH(\">\",'CFR - XML import'!$A36,1)-2)))","v":0},{"$f":"IF(ISERROR(FIND(S$3,'CFR - XML import'!$A36)),0,VALUE(MID('CFR - XML import'!$A36,SEARCH(\">\",'CFR - XML import'!$A36,1)+1,SEARCH(\"/\",'CFR - XML import'!$A36,1)-SEARCH(\">\",'CFR - XML import'!$A36,1)-2)))","v":0},{"$f":"IF(ISERROR(FIND(T$3,'CFR - XML import'!$A36)),0,VALUE(MID('CFR - XML import'!$A36,SEARCH(\">\",'CFR - XML import'!$A36,1)+1,SEARCH(\"/\",'CFR - XML import'!$A36,1)-SEARCH(\">\",'CFR - XML import'!$A36,1)-2)))","v":0},{"$f":"IF(ISERROR(FIND(U$3,'CFR - XML import'!$A36)),0,VALUE(MID('CFR - XML import'!$A36,SEARCH(\">\",'CFR - XML import'!$A36,1)+1,SEARCH(\"/\",'CFR - XML import'!$A36,1)-SEARCH(\">\",'CFR - XML import'!$A36,1)-2)))","v":0},{"$f":"IF(ISERROR(FIND(V$3,'CFR - XML import'!$A36)),0,VALUE(MID('CFR - XML import'!$A36,SEARCH(\">\",'CFR - XML import'!$A36,1)+1,SEARCH(\"/\",'CFR - XML import'!$A36,1)-SEARCH(\">\",'CFR - XML import'!$A36,1)-2)))","v":0},{"$f":"IF(ISERROR(FIND(W$3,'CFR - XML import'!$A36)),0,VALUE(MID('CFR - XML import'!$A36,SEARCH(\">\",'CFR - XML import'!$A36,1)+1,SEARCH(\"/\",'CFR - XML import'!$A36,1)-SEARCH(\">\",'CFR - XML import'!$A36,1)-2)))","v":0},null,{"$f":"IF(ISERROR(FIND(Y$3,'CFR - XML import'!$A36)),0,VALUE(MID('CFR - XML import'!$A36,SEARCH(\">\",'CFR - XML import'!$A36,1)+1,SEARCH(\"/\",'CFR - XML import'!$A36,1)-SEARCH(\">\",'CFR - XML import'!$A36,1)-2)))","v":0},{"$f":"IF(ISERROR(FIND(Z$3,'CFR - XML import'!$A36)),0,VALUE(MID('CFR - XML import'!$A36,SEARCH(\">\",'CFR - XML import'!$A36,1)+1,SEARCH(\"/\",'CFR - XML import'!$A36,1)-SEARCH(\">\",'CFR - XML import'!$A36,1)-2)))","v":0},{"$f":"IF(ISERROR(FIND(AA$3,'CFR - XML import'!$A36)),0,VALUE(MID('CFR - XML import'!$A36,SEARCH(\">\",'CFR - XML import'!$A36,1)+1,SEARCH(\"/\",'CFR - XML import'!$A36,1)-SEARCH(\">\",'CFR - XML import'!$A36,1)-2)))","v":0},{"$f":"IF(ISERROR(FIND(AB$3,'CFR - XML import'!$A36)),0,VALUE(MID('CFR - XML import'!$A36,SEARCH(\">\",'CFR - XML import'!$A36,1)+1,SEARCH(\"/\",'CFR - XML import'!$A36,1)-SEARCH(\">\",'CFR - XML import'!$A36,1)-2)))","v":0},{"$f":"IF(ISERROR(FIND(AC$3,'CFR - XML import'!$A36)),0,VALUE(MID('CFR - XML import'!$A36,SEARCH(\">\",'CFR - XML import'!$A36,1)+1,SEARCH(\"/\",'CFR - XML import'!$A36,1)-SEARCH(\">\",'CFR - XML import'!$A36,1)-2)))","v":0},{"$f":"IF(ISERROR(FIND(AD$3,'CFR - XML import'!$A36)),0,VALUE(MID('CFR - XML import'!$A36,SEARCH(\">\",'CFR - XML import'!$A36,1)+1,SEARCH(\"/\",'CFR - XML import'!$A36,1)-SEARCH(\">\",'CFR - XML import'!$A36,1)-2)))","v":0},{"$f":"IF(ISERROR(FIND(AE$3,'CFR - XML import'!$A36)),0,VALUE(MID('CFR - XML import'!$A36,SEARCH(\">\",'CFR - XML import'!$A36,1)+1,SEARCH(\"/\",'CFR - XML import'!$A36,1)-SEARCH(\">\",'CFR - XML import'!$A36,1)-2)))","v":0},{"$f":"IF(ISERROR(FIND(AF$3,'CFR - XML import'!$A36)),0,VALUE(MID('CFR - XML import'!$A36,SEARCH(\">\",'CFR - XML import'!$A36,1)+1,SEARCH(\"/\",'CFR - XML import'!$A36,1)-SEARCH(\">\",'CFR - XML import'!$A36,1)-2)))","v":0},{"$f":"IF(ISERROR(FIND(AG$3,'CFR - XML import'!$A36)),0,VALUE(MID('CFR - XML import'!$A36,SEARCH(\">\",'CFR - XML import'!$A36,1)+1,SEARCH(\"/\",'CFR - XML import'!$A36,1)-SEARCH(\">\",'CFR - XML import'!$A36,1)-2)))","v":0},{"$f":"IF(ISERROR(FIND(AH$3,'CFR - XML import'!$A36)),0,VALUE(MID('CFR - XML import'!$A36,SEARCH(\">\",'CFR - XML import'!$A36,1)+1,SEARCH(\"/\",'CFR - XML import'!$A36,1)-SEARCH(\">\",'CFR - XML import'!$A36,1)-2)))","v":0},{"$f":"IF(ISERROR(FIND(AI$3,'CFR - XML import'!$A36)),0,VALUE(MID('CFR - XML import'!$A36,SEARCH(\">\",'CFR - XML import'!$A36,1)+1,SEARCH(\"/\",'CFR - XML import'!$A36,1)-SEARCH(\">\",'CFR - XML import'!$A36,1)-2)))","v":0},{"$f":"IF(ISERROR(FIND(AJ$3,'CFR - XML import'!$A36)),0,VALUE(MID('CFR - XML import'!$A36,SEARCH(\">\",'CFR - XML import'!$A36,1)+1,SEARCH(\"/\",'CFR - XML import'!$A36,1)-SEARCH(\">\",'CFR - XML import'!$A36,1)-2)))","v":0},{"$f":"IF(ISERROR(FIND(AK$3,'CFR - XML import'!$A36)),0,VALUE(MID('CFR - XML import'!$A36,SEARCH(\">\",'CFR - XML import'!$A36,1)+1,SEARCH(\"/\",'CFR - XML import'!$A36,1)-SEARCH(\">\",'CFR - XML import'!$A36,1)-2)))","v":0},{"$f":"IF(ISERROR(FIND(AL$3,'CFR - XML import'!$A36)),0,VALUE(MID('CFR - XML import'!$A36,SEARCH(\">\",'CFR - XML import'!$A36,1)+1,SEARCH(\"/\",'CFR - XML import'!$A36,1)-SEARCH(\">\",'CFR - XML import'!$A36,1)-2)))","v":0},{"$f":"IF(ISERROR(FIND(AM$3,'CFR - XML import'!$A36)),0,VALUE(MID('CFR - XML import'!$A36,SEARCH(\">\",'CFR - XML import'!$A36,1)+1,SEARCH(\"/\",'CFR - XML import'!$A36,1)-SEARCH(\">\",'CFR - XML import'!$A36,1)-2)))","v":0},{"$f":"IF(ISERROR(FIND(AN$3,'CFR - XML import'!$A36)),0,VALUE(MID('CFR - XML import'!$A36,SEARCH(\">\",'CFR - XML import'!$A36,1)+1,SEARCH(\"/\",'CFR - XML import'!$A36,1)-SEARCH(\">\",'CFR - XML import'!$A36,1)-2)))","v":0},{"$f":"IF(ISERROR(FIND(AO$3,'CFR - XML import'!$A36)),0,VALUE(MID('CFR - XML import'!$A36,SEARCH(\">\",'CFR - XML import'!$A36,1)+1,SEARCH(\"/\",'CFR - XML import'!$A36,1)-SEARCH(\">\",'CFR - XML import'!$A36,1)-2)))","v":0},{"$f":"IF(ISERROR(FIND(AP$3,'CFR - XML import'!$A36)),0,VALUE(MID('CFR - XML import'!$A36,SEARCH(\">\",'CFR - XML import'!$A36,1)+1,SEARCH(\"/\",'CFR - XML import'!$A36,1)-SEARCH(\">\",'CFR - XML import'!$A36,1)-2)))","v":0},{"$f":"IF(ISERROR(FIND(AQ$3,'CFR - XML import'!$A36)),0,VALUE(MID('CFR - XML import'!$A36,SEARCH(\">\",'CFR - XML import'!$A36,1)+1,SEARCH(\"/\",'CFR - XML import'!$A36,1)-SEARCH(\">\",'CFR - XML import'!$A36,1)-2)))","v":0},{"$f":"IF(ISERROR(FIND(AR$3,'CFR - XML import'!$A36)),0,VALUE(MID('CFR - XML import'!$A36,SEARCH(\">\",'CFR - XML import'!$A36,1)+1,SEARCH(\"/\",'CFR - XML import'!$A36,1)-SEARCH(\">\",'CFR - XML import'!$A36,1)-2)))","v":0},{"$f":"IF(ISERROR(FIND(AS$3,'CFR - XML import'!$A36)),0,VALUE(MID('CFR - XML import'!$A36,SEARCH(\">\",'CFR - XML import'!$A36,1)+1,SEARCH(\"/\",'CFR - XML import'!$A36,1)-SEARCH(\">\",'CFR - XML import'!$A36,1)-2)))","v":0},{"$f":"IF(ISERROR(FIND(AT$3,'CFR - XML import'!$A36)),0,VALUE(MID('CFR - XML import'!$A36,SEARCH(\">\",'CFR - XML import'!$A36,1)+1,SEARCH(\"/\",'CFR - XML import'!$A36,1)-SEARCH(\">\",'CFR - XML import'!$A36,1)-2)))","v":0},{"$f":"IF(ISERROR(FIND(AU$3,'CFR - XML import'!$A36)),0,VALUE(MID('CFR - XML import'!$A36,SEARCH(\">\",'CFR - XML import'!$A36,1)+1,SEARCH(\"/\",'CFR - XML import'!$A36,1)-SEARCH(\">\",'CFR - XML import'!$A36,1)-2)))","v":0},{"$f":"IF(ISERROR(FIND(AV$3,'CFR - XML import'!$A36)),0,VALUE(MID('CFR - XML import'!$A36,SEARCH(\">\",'CFR - XML import'!$A36,1)+1,SEARCH(\"/\",'CFR - XML import'!$A36,1)-SEARCH(\">\",'CFR - XML import'!$A36,1)-2)))","v":0},{"$f":"IF(ISERROR(FIND(AW$3,'CFR - XML import'!$A36)),0,VALUE(MID('CFR - XML import'!$A36,SEARCH(\">\",'CFR - XML import'!$A36,1)+1,SEARCH(\"/\",'CFR - XML import'!$A36,1)-SEARCH(\">\",'CFR - XML import'!$A36,1)-2)))","v":0},{"$f":"IF(ISERROR(FIND(AX$3,'CFR - XML import'!$A36)),0,VALUE(MID('CFR - XML import'!$A36,SEARCH(\">\",'CFR - XML import'!$A36,1)+1,SEARCH(\"/\",'CFR - XML import'!$A36,1)-SEARCH(\">\",'CFR - XML import'!$A36,1)-2)))","v":0},{"$f":"IF(ISERROR(FIND(AY$3,'CFR - XML import'!$A36)),0,VALUE(MID('CFR - XML import'!$A36,SEARCH(\">\",'CFR - XML import'!$A36,1)+1,SEARCH(\"/\",'CFR - XML import'!$A36,1)-SEARCH(\">\",'CFR - XML import'!$A36,1)-2)))","v":0},{"$f":"IF(ISERROR(FIND(AZ$3,'CFR - XML import'!$A36)),0,VALUE(MID('CFR - XML import'!$A36,SEARCH(\">\",'CFR - XML import'!$A36,1)+1,SEARCH(\"/\",'CFR - XML import'!$A36,1)-SEARCH(\">\",'CFR - XML import'!$A36,1)-2)))","v":0},{"$f":"IF(ISERROR(FIND(BA$3,'CFR - XML import'!$A36)),0,VALUE(MID('CFR - XML import'!$A36,SEARCH(\">\",'CFR - XML import'!$A36,1)+1,SEARCH(\"/\",'CFR - XML import'!$A36,1)-SEARCH(\">\",'CFR - XML import'!$A36,1)-2)))","v":0},{"$f":"IF(ISERROR(FIND(BB$3,'CFR - XML import'!$A36)),0,VALUE(MID('CFR - XML import'!$A36,SEARCH(\">\",'CFR - XML import'!$A36,1)+1,SEARCH(\"/\",'CFR - XML import'!$A36,1)-SEARCH(\">\",'CFR - XML import'!$A36,1)-2)))","v":0},{"$f":"IF(ISERROR(FIND(BC$3,'CFR - XML import'!$A36)),0,VALUE(MID('CFR - XML import'!$A36,SEARCH(\">\",'CFR - XML import'!$A36,1)+1,SEARCH(\"/\",'CFR - XML import'!$A36,1)-SEARCH(\">\",'CFR - XML import'!$A36,1)-2)))","v":0},{"$f":"IF(ISERROR(FIND(BD$3,'CFR - XML import'!$A36)),0,VALUE(MID('CFR - XML import'!$A36,SEARCH(\">\",'CFR - XML import'!$A36,1)+1,SEARCH(\"/\",'CFR - XML import'!$A36,1)-SEARCH(\">\",'CFR - XML import'!$A36,1)-2)))","v":0},{"$f":"IF(ISERROR(FIND(BE$3,'CFR - XML import'!$A36)),0,VALUE(MID('CFR - XML import'!$A36,SEARCH(\">\",'CFR - XML import'!$A36,1)+1,SEARCH(\"/\",'CFR - XML import'!$A36,1)-SEARCH(\">\",'CFR - XML import'!$A36,1)-2)))","v":0},{"$f":"IF(ISERROR(FIND(BF$3,'CFR - XML import'!$A36)),0,VALUE(MID('CFR - XML import'!$A36,SEARCH(\">\",'CFR - XML import'!$A36,1)+1,SEARCH(\"/\",'CFR - XML import'!$A36,1)-SEARCH(\">\",'CFR - XML import'!$A36,1)-2)))","v":0},{"$f":"IF(ISERROR(FIND(BG$3,'CFR - XML import'!$A36)),0,VALUE(MID('CFR - XML import'!$A36,SEARCH(\">\",'CFR - XML import'!$A36,1)+1,SEARCH(\"/\",'CFR - XML import'!$A36,1)-SEARCH(\">\",'CFR - XML import'!$A36,1)-2)))","v":0},{"$f":"IF(ISERROR(FIND(BH$3,'CFR - XML import'!$A36)),0,VALUE(MID('CFR - XML import'!$A36,SEARCH(\">\",'CFR - XML import'!$A36,1)+1,SEARCH(\"/\",'CFR - XML import'!$A36,1)-SEARCH(\">\",'CFR - XML import'!$A36,1)-2)))","v":0},{"$f":"IF(ISERROR(FIND(BI$3,'CFR - XML import'!$A36)),0,VALUE(MID('CFR - XML import'!$A36,SEARCH(\">\",'CFR - XML import'!$A36,1)+1,SEARCH(\"/\",'CFR - XML import'!$A36,1)-SEARCH(\">\",'CFR - XML import'!$A36,1)-2)))","v":0},{"$f":"IF(ISERROR(FIND(BJ$3,'CFR - XML import'!$A36)),0,VALUE(MID('CFR - XML import'!$A36,SEARCH(\">\",'CFR - XML import'!$A36,1)+1,SEARCH(\"/\",'CFR - XML import'!$A36,1)-SEARCH(\">\",'CFR - XML import'!$A36,1)-2)))","v":0},{"$f":"IF(ISERROR(FIND(BK$3,'CFR - XML import'!$A36)),0,VALUE(MID('CFR - XML import'!$A36,SEARCH(\">\",'CFR - XML import'!$A36,1)+1,SEARCH(\"/\",'CFR - XML import'!$A36,1)-SEARCH(\">\",'CFR - XML import'!$A36,1)-2)))","v":0},{"$f":"IF(ISERROR(FIND(BL$3,'CFR - XML import'!$A36)),0,VALUE(MID('CFR - XML import'!$A36,SEARCH(\">\",'CFR - XML import'!$A36,1)+1,SEARCH(\"/\",'CFR - XML import'!$A36,1)-SEARCH(\">\",'CFR - XML import'!$A36,1)-2)))","v":0},{"$f":"IF(ISERROR(FIND(BM$3,'CFR - XML import'!$A36)),0,VALUE(MID('CFR - XML import'!$A36,SEARCH(\">\",'CFR - XML import'!$A36,1)+1,SEARCH(\"/\",'CFR - XML import'!$A36,1)-SEARCH(\">\",'CFR - XML import'!$A36,1)-2)))","v":0},{"$f":"IF(ISERROR(FIND(BN$3,'CFR - XML import'!$A36)),0,VALUE(MID('CFR - XML import'!$A36,SEARCH(\">\",'CFR - XML import'!$A36,1)+1,SEARCH(\"/\",'CFR - XML import'!$A36,1)-SEARCH(\">\",'CFR - XML import'!$A36,1)-2)))","v":0},{"$f":"IF(ISERROR(FIND(BO$3,'CFR - XML import'!$A36)),0,VALUE(MID('CFR - XML import'!$A36,SEARCH(\">\",'CFR - XML import'!$A36,1)+1,SEARCH(\"/\",'CFR - XML import'!$A36,1)-SEARCH(\">\",'CFR - XML import'!$A36,1)-2)))","v":0},{"$f":"IF(ISERROR(FIND(BP$3,'CFR - XML import'!$A36)),0,VALUE(MID('CFR - XML import'!$A36,SEARCH(\">\",'CFR - XML import'!$A36,1)+1,SEARCH(\"/\",'CFR - XML import'!$A36,1)-SEARCH(\">\",'CFR - XML import'!$A36,1)-2)))","v":0},{"$f":"IF(ISERROR(FIND(BQ$3,'CFR - XML import'!$A36)),0,VALUE(MID('CFR - XML import'!$A36,SEARCH(\">\",'CFR - XML import'!$A36,1)+1,SEARCH(\"/\",'CFR - XML import'!$A36,1)-SEARCH(\">\",'CFR - XML import'!$A36,1)-2)))","v":0},{"$f":"IF(ISERROR(FIND(BR$3,'CFR - XML import'!$A36)),0,VALUE(MID('CFR - XML import'!$A36,SEARCH(\">\",'CFR - XML import'!$A36,1)+1,SEARCH(\"/\",'CFR - XML import'!$A36,1)-SEARCH(\">\",'CFR - XML import'!$A36,1)-2)))","v":0},{"$f":"IF(ISERROR(FIND(BS$3,'CFR - XML import'!$A36)),0,VALUE(MID('CFR - XML import'!$A36,SEARCH(\">\",'CFR - XML import'!$A36,1)+1,SEARCH(\"/\",'CFR - XML import'!$A36,1)-SEARCH(\">\",'CFR - XML import'!$A36,1)-2)))","v":0},{"$f":"IF(ISERROR(FIND(BT$3,'CFR - XML import'!$A36)),0,VALUE(MID('CFR - XML import'!$A36,SEARCH(\">\",'CFR - XML import'!$A36,1)+1,SEARCH(\"/\",'CFR - XML import'!$A36,1)-SEARCH(\">\",'CFR - XML import'!$A36,1)-2)))","v":0},{"$f":"IF(ISERROR(FIND(BU$3,'CFR - XML import'!$A36)),0,VALUE(MID('CFR - XML import'!$A36,SEARCH(\">\",'CFR - XML import'!$A36,1)+1,SEARCH(\"/\",'CFR - XML import'!$A36,1)-SEARCH(\">\",'CFR - XML import'!$A36,1)-2)))","v":0},{"$f":"IF(ISERROR(FIND(BV$3,'CFR - XML import'!$A36)),0,VALUE(MID('CFR - XML import'!$A36,SEARCH(\">\",'CFR - XML import'!$A36,1)+1,SEARCH(\"/\",'CFR - XML import'!$A36,1)-SEARCH(\">\",'CFR - XML import'!$A36,1)-2)))","v":0},{"$f":"IF(ISERROR(FIND(BW$3,'CFR - XML import'!$A36)),0,VALUE(MID('CFR - XML import'!$A36,SEARCH(\">\",'CFR - XML import'!$A36,1)+1,SEARCH(\"/\",'CFR - XML import'!$A36,1)-SEARCH(\">\",'CFR - XML import'!$A36,1)-2)))","v":0},{"$f":"IF(ISERROR(FIND(BX$3,'CFR - XML import'!$A36)),0,VALUE(MID('CFR - XML import'!$A36,SEARCH(\">\",'CFR - XML import'!$A36,1)+1,SEARCH(\"/\",'CFR - XML import'!$A36,1)-SEARCH(\">\",'CFR - XML import'!$A36,1)-2)))","v":0},{"$f":"IF(ISERROR(FIND(BY$3,'CFR - XML import'!$A36)),0,VALUE(MID('CFR - XML import'!$A36,SEARCH(\">\",'CFR - XML import'!$A36,1)+1,SEARCH(\"/\",'CFR - XML import'!$A36,1)-SEARCH(\">\",'CFR - XML import'!$A36,1)-2)))","v":0},{"$f":"IF(ISERROR(FIND(BZ$3,'CFR - XML import'!$A36)),0,VALUE(MID('CFR - XML import'!$A36,SEARCH(\">\",'CFR - XML import'!$A36,1)+1,SEARCH(\"/\",'CFR - XML import'!$A36,1)-SEARCH(\">\",'CFR - XML import'!$A36,1)-2)))","v":0},null,null,null,null,null,null,{"$f":"IF(ISERROR(IF(MID('CFR - XML import'!$A36,LEN($CF$4)+1,LEN('CFR - XML import'!$A36)-(2*LEN($CF$4)+1))=\"RMMS\",1,IF(MID('CFR - XML import'!$A36,LEN(\"    <InputSystem>\")+1,LEN('CFR - XML import'!$A36)-(LEN(\"    <InputSystem>\")+LEN($CF$4)+1))=\"SIMS\",2,0))),0,IF(MID('CFR - XML import'!$A36,LEN($CF$4)+1,LEN('CFR - XML import'!$A36)-(2*LEN($CF$4)+1))=\"RMMS\",1,IF(MID('CFR - XML import'!$A36,LEN(\"    <InputSystem>\")+1,LEN('CFR - XML import'!$A36)-(LEN(\"    <InputSystem>\")+LEN($CF$4)+1))=\"SIMS\",2,0)))","v":0},{"$f":"IF(ISERROR(FIND(CH$3,'CFR - XML import'!$A36)),0,MID('CFR - XML import'!$A36,SEARCH(\">\",'CFR - XML import'!$A36,1)+1,SEARCH(\"/\",'CFR - XML import'!$A36,1)-SEARCH(\">\",'CFR - XML import'!$A36,1)-2))","v":0},{"$f":"IF(ISERROR(FIND(CI$3,'CFR - XML import'!$A36)),0,MID('CFR - XML import'!$A36,SEARCH(\">\",'CFR - XML import'!$A36,1)+1,SEARCH(\"/\",'CFR - XML import'!$A36,1)-SEARCH(\">\",'CFR - XML import'!$A36,1)-2))","v":0},{"$f":"IF(ISERROR(FIND(CJ$3,'CFR - XML import'!$A36)),0,MID('CFR - XML import'!$A36,SEARCH(\">\",'CFR - XML import'!$A36,1)+1,SEARCH(\"/\",'CFR - XML import'!$A36,1)-SEARCH(\">\",'CFR - XML import'!$A36,1)-2))","v":0},{"$f":"IF(ISERROR(FIND(CK$3,'CFR - XML import'!$A36)),0,MID('CFR - XML import'!$A36,SEARCH(\">\",'CFR - XML import'!$A36,1)+1,SEARCH(\"/\",'CFR - XML import'!$A36,1)-SEARCH(\">\",'CFR - XML import'!$A36,1)-2))","v":0},{"$f":"IF(ISERROR(FIND(CL$3,'CFR - XML import'!$A36)),0,MID('CFR - XML import'!$A36,SEARCH(\">\",'CFR - XML import'!$A36,1)+1,SEARCH(\"/\",'CFR - XML import'!$A36,1)-SEARCH(\">\",'CFR - XML import'!$A36,1)-2))","v":0}]
[{"$f":"IF(AND('CFR - XML import'!A37<>\"\",LEFT('CFR - XML import'!A37,1)<>\"<\",LEFT('CFR - XML import'!A37,3)<>\"  <\",LEFT('CFR - XML import'!A37,5)<>\"    <\",LEFT('CFR - XML import'!A37,7)<>\"      <\",LEFT('CFR - XML import'!A37,9)<>\"        <\",$B$1=\"SIMS\"),'CFR - XML import'!A37,IF(AND(LEFT('CFR - XML import'!A37,9)=\"<Details>\",$B$1=\"RM\"),'CFR - XML import'!A37,\"\"))","v":""},{"$f":"IF(ISERROR(FIND(B$3,'CFR - XML import'!$A37)),0,VALUE(MID('CFR - XML import'!$A37,SEARCH(\">\",'CFR - XML import'!$A37,1)+1,SEARCH(\"/\",'CFR - XML import'!$A37,1)-SEARCH(\">\",'CFR - XML import'!$A37,1)-2)))","v":0},null,{"$f":"IF(ISERROR(FIND(D$3,'CFR - XML import'!$A37)),0,MID('CFR - XML import'!$A37,SEARCH(\">\",'CFR - XML import'!$A37,1)+1,SEARCH(\"/\",'CFR - XML import'!$A37,1)-SEARCH(\">\",'CFR - XML import'!$A37,1)-2))","v":0},{"$f":"IF(ISERROR(FIND(E$3,'CFR - XML import'!$A37)),0,MID('CFR - XML import'!$A37,SEARCH(\">\",'CFR - XML import'!$A37,1)+1,SEARCH(\"/\",'CFR - XML import'!$A37,1)-SEARCH(\">\",'CFR - XML import'!$A37,1)-2))","v":0},{"$f":"IF($B$1=\"SIMS\",IF(ISERROR(FIND(F$3,'CFR - XML import'!$A37)),0,VALUE(MID('CFR - XML import'!$A37,15,10))),IF(ISERROR(FIND(F$3,'CFR - XML import'!$A37)),0,VALUE(MID('CFR - XML import'!$A37,11,10))))","v":"00:00:00"},{"$f":"IF(ISERROR(FIND(G$3,'CFR - XML import'!$A37)),0,VALUE(MID('CFR - XML import'!$A37,SEARCH(\">\",'CFR - XML import'!$A37,1)+1,SEARCH(\"/\",'CFR - XML import'!$A37,1)-SEARCH(\">\",'CFR - XML import'!$A37,1)-2)))","v":0},{"$f":"IF(ISERROR(FIND(H$3,'CFR - XML import'!$A37)),0,VALUE(MID('CFR - XML import'!$A37,SEARCH(\">\",'CFR - XML import'!$A37,1)+1,SEARCH(\"/\",'CFR - XML import'!$A37,1)-SEARCH(\">\",'CFR - XML import'!$A37,1)-2)))","v":0},{"$f":"IF(ISERROR(FIND(I$3,'CFR - XML import'!$A37)),0,VALUE(MID('CFR - XML import'!$A37,SEARCH(\">\",'CFR - XML import'!$A37,1)+1,SEARCH(\"/\",'CFR - XML import'!$A37,1)-SEARCH(\">\",'CFR - XML import'!$A37,1)-2)))","v":0},{"$f":"IF(ISERROR(FIND(J$3,'CFR - XML import'!$A37)),0,VALUE(MID('CFR - XML import'!$A37,SEARCH(\">\",'CFR - XML import'!$A37,1)+1,SEARCH(\"/\",'CFR - XML import'!$A37,1)-SEARCH(\">\",'CFR - XML import'!$A37,1)-2)))","v":0},{"$f":"IF(ISERROR(FIND(K$3,'CFR - XML import'!$A37)),0,VALUE(MID('CFR - XML import'!$A37,SEARCH(\">\",'CFR - XML import'!$A37,1)+1,SEARCH(\"/\",'CFR - XML import'!$A37,1)-SEARCH(\">\",'CFR - XML import'!$A37,1)-2)))","v":0},{"$f":"IF(ISERROR(FIND(L$3,'CFR - XML import'!$A37)),0,VALUE(MID('CFR - XML import'!$A37,SEARCH(\">\",'CFR - XML import'!$A37,1)+1,SEARCH(\"/\",'CFR - XML import'!$A37,1)-SEARCH(\">\",'CFR - XML import'!$A37,1)-2)))","v":0},{"$f":"IF(ISERROR(FIND(M$3,'CFR - XML import'!$A37)),0,VALUE(MID('CFR - XML import'!$A37,SEARCH(\">\",'CFR - XML import'!$A37,1)+1,SEARCH(\"/\",'CFR - XML import'!$A37,1)-SEARCH(\">\",'CFR - XML import'!$A37,1)-2)))","v":0},{"$f":"IF(ISERROR(FIND(N$3,'CFR - XML import'!$A37)),0,VALUE(MID('CFR - XML import'!$A37,SEARCH(\">\",'CFR - XML import'!$A37,1)+1,SEARCH(\"/\",'CFR - XML import'!$A37,1)-SEARCH(\">\",'CFR - XML import'!$A37,1)-2)))","v":0},{"$f":"IF(ISERROR(FIND(O$3,'CFR - XML import'!$A37)),0,VALUE(MID('CFR - XML import'!$A37,SEARCH(\">\",'CFR - XML import'!$A37,1)+1,SEARCH(\"/\",'CFR - XML import'!$A37,1)-SEARCH(\">\",'CFR - XML import'!$A37,1)-2)))","v":0},{"$f":"IF(ISERROR(FIND(P$3,'CFR - XML import'!$A37)),0,VALUE(MID('CFR - XML import'!$A37,SEARCH(\">\",'CFR - XML import'!$A37,1)+1,SEARCH(\"/\",'CFR - XML import'!$A37,1)-SEARCH(\">\",'CFR - XML import'!$A37,1)-2)))","v":0},{"$f":"IF(ISERROR(FIND(Q$3,'CFR - XML import'!$A37)),0,VALUE(MID('CFR - XML import'!$A37,SEARCH(\">\",'CFR - XML import'!$A37,1)+1,SEARCH(\"/\",'CFR - XML import'!$A37,1)-SEARCH(\">\",'CFR - XML import'!$A37,1)-2)))","v":0},{"$f":"IF(ISERROR(FIND(R$3,'CFR - XML import'!$A37)),0,VALUE(MID('CFR - XML import'!$A37,SEARCH(\">\",'CFR - XML import'!$A37,1)+1,SEARCH(\"/\",'CFR - XML import'!$A37,1)-SEARCH(\">\",'CFR - XML import'!$A37,1)-2)))","v":0},{"$f":"IF(ISERROR(FIND(S$3,'CFR - XML import'!$A37)),0,VALUE(MID('CFR - XML import'!$A37,SEARCH(\">\",'CFR - XML import'!$A37,1)+1,SEARCH(\"/\",'CFR - XML import'!$A37,1)-SEARCH(\">\",'CFR - XML import'!$A37,1)-2)))","v":0},{"$f":"IF(ISERROR(FIND(T$3,'CFR - XML import'!$A37)),0,VALUE(MID('CFR - XML import'!$A37,SEARCH(\">\",'CFR - XML import'!$A37,1)+1,SEARCH(\"/\",'CFR - XML import'!$A37,1)-SEARCH(\">\",'CFR - XML import'!$A37,1)-2)))","v":0},{"$f":"IF(ISERROR(FIND(U$3,'CFR - XML import'!$A37)),0,VALUE(MID('CFR - XML import'!$A37,SEARCH(\">\",'CFR - XML import'!$A37,1)+1,SEARCH(\"/\",'CFR - XML import'!$A37,1)-SEARCH(\">\",'CFR - XML import'!$A37,1)-2)))","v":0},{"$f":"IF(ISERROR(FIND(V$3,'CFR - XML import'!$A37)),0,VALUE(MID('CFR - XML import'!$A37,SEARCH(\">\",'CFR - XML import'!$A37,1)+1,SEARCH(\"/\",'CFR - XML import'!$A37,1)-SEARCH(\">\",'CFR - XML import'!$A37,1)-2)))","v":0},{"$f":"IF(ISERROR(FIND(W$3,'CFR - XML import'!$A37)),0,VALUE(MID('CFR - XML import'!$A37,SEARCH(\">\",'CFR - XML import'!$A37,1)+1,SEARCH(\"/\",'CFR - XML import'!$A37,1)-SEARCH(\">\",'CFR - XML import'!$A37,1)-2)))","v":0},null,{"$f":"IF(ISERROR(FIND(Y$3,'CFR - XML import'!$A37)),0,VALUE(MID('CFR - XML import'!$A37,SEARCH(\">\",'CFR - XML import'!$A37,1)+1,SEARCH(\"/\",'CFR - XML import'!$A37,1)-SEARCH(\">\",'CFR - XML import'!$A37,1)-2)))","v":0},{"$f":"IF(ISERROR(FIND(Z$3,'CFR - XML import'!$A37)),0,VALUE(MID('CFR - XML import'!$A37,SEARCH(\">\",'CFR - XML import'!$A37,1)+1,SEARCH(\"/\",'CFR - XML import'!$A37,1)-SEARCH(\">\",'CFR - XML import'!$A37,1)-2)))","v":0},{"$f":"IF(ISERROR(FIND(AA$3,'CFR - XML import'!$A37)),0,VALUE(MID('CFR - XML import'!$A37,SEARCH(\">\",'CFR - XML import'!$A37,1)+1,SEARCH(\"/\",'CFR - XML import'!$A37,1)-SEARCH(\">\",'CFR - XML import'!$A37,1)-2)))","v":0},{"$f":"IF(ISERROR(FIND(AB$3,'CFR - XML import'!$A37)),0,VALUE(MID('CFR - XML import'!$A37,SEARCH(\">\",'CFR - XML import'!$A37,1)+1,SEARCH(\"/\",'CFR - XML import'!$A37,1)-SEARCH(\">\",'CFR - XML import'!$A37,1)-2)))","v":0},{"$f":"IF(ISERROR(FIND(AC$3,'CFR - XML import'!$A37)),0,VALUE(MID('CFR - XML import'!$A37,SEARCH(\">\",'CFR - XML import'!$A37,1)+1,SEARCH(\"/\",'CFR - XML import'!$A37,1)-SEARCH(\">\",'CFR - XML import'!$A37,1)-2)))","v":0},{"$f":"IF(ISERROR(FIND(AD$3,'CFR - XML import'!$A37)),0,VALUE(MID('CFR - XML import'!$A37,SEARCH(\">\",'CFR - XML import'!$A37,1)+1,SEARCH(\"/\",'CFR - XML import'!$A37,1)-SEARCH(\">\",'CFR - XML import'!$A37,1)-2)))","v":0},{"$f":"IF(ISERROR(FIND(AE$3,'CFR - XML import'!$A37)),0,VALUE(MID('CFR - XML import'!$A37,SEARCH(\">\",'CFR - XML import'!$A37,1)+1,SEARCH(\"/\",'CFR - XML import'!$A37,1)-SEARCH(\">\",'CFR - XML import'!$A37,1)-2)))","v":0},{"$f":"IF(ISERROR(FIND(AF$3,'CFR - XML import'!$A37)),0,VALUE(MID('CFR - XML import'!$A37,SEARCH(\">\",'CFR - XML import'!$A37,1)+1,SEARCH(\"/\",'CFR - XML import'!$A37,1)-SEARCH(\">\",'CFR - XML import'!$A37,1)-2)))","v":0},{"$f":"IF(ISERROR(FIND(AG$3,'CFR - XML import'!$A37)),0,VALUE(MID('CFR - XML import'!$A37,SEARCH(\">\",'CFR - XML import'!$A37,1)+1,SEARCH(\"/\",'CFR - XML import'!$A37,1)-SEARCH(\">\",'CFR - XML import'!$A37,1)-2)))","v":0},{"$f":"IF(ISERROR(FIND(AH$3,'CFR - XML import'!$A37)),0,VALUE(MID('CFR - XML import'!$A37,SEARCH(\">\",'CFR - XML import'!$A37,1)+1,SEARCH(\"/\",'CFR - XML import'!$A37,1)-SEARCH(\">\",'CFR - XML import'!$A37,1)-2)))","v":0},{"$f":"IF(ISERROR(FIND(AI$3,'CFR - XML import'!$A37)),0,VALUE(MID('CFR - XML import'!$A37,SEARCH(\">\",'CFR - XML import'!$A37,1)+1,SEARCH(\"/\",'CFR - XML import'!$A37,1)-SEARCH(\">\",'CFR - XML import'!$A37,1)-2)))","v":0},{"$f":"IF(ISERROR(FIND(AJ$3,'CFR - XML import'!$A37)),0,VALUE(MID('CFR - XML import'!$A37,SEARCH(\">\",'CFR - XML import'!$A37,1)+1,SEARCH(\"/\",'CFR - XML import'!$A37,1)-SEARCH(\">\",'CFR - XML import'!$A37,1)-2)))","v":0},{"$f":"IF(ISERROR(FIND(AK$3,'CFR - XML import'!$A37)),0,VALUE(MID('CFR - XML import'!$A37,SEARCH(\">\",'CFR - XML import'!$A37,1)+1,SEARCH(\"/\",'CFR - XML import'!$A37,1)-SEARCH(\">\",'CFR - XML import'!$A37,1)-2)))","v":0},{"$f":"IF(ISERROR(FIND(AL$3,'CFR - XML import'!$A37)),0,VALUE(MID('CFR - XML import'!$A37,SEARCH(\">\",'CFR - XML import'!$A37,1)+1,SEARCH(\"/\",'CFR - XML import'!$A37,1)-SEARCH(\">\",'CFR - XML import'!$A37,1)-2)))","v":0},{"$f":"IF(ISERROR(FIND(AM$3,'CFR - XML import'!$A37)),0,VALUE(MID('CFR - XML import'!$A37,SEARCH(\">\",'CFR - XML import'!$A37,1)+1,SEARCH(\"/\",'CFR - XML import'!$A37,1)-SEARCH(\">\",'CFR - XML import'!$A37,1)-2)))","v":0},{"$f":"IF(ISERROR(FIND(AN$3,'CFR - XML import'!$A37)),0,VALUE(MID('CFR - XML import'!$A37,SEARCH(\">\",'CFR - XML import'!$A37,1)+1,SEARCH(\"/\",'CFR - XML import'!$A37,1)-SEARCH(\">\",'CFR - XML import'!$A37,1)-2)))","v":0},{"$f":"IF(ISERROR(FIND(AO$3,'CFR - XML import'!$A37)),0,VALUE(MID('CFR - XML import'!$A37,SEARCH(\">\",'CFR - XML import'!$A37,1)+1,SEARCH(\"/\",'CFR - XML import'!$A37,1)-SEARCH(\">\",'CFR - XML import'!$A37,1)-2)))","v":0},{"$f":"IF(ISERROR(FIND(AP$3,'CFR - XML import'!$A37)),0,VALUE(MID('CFR - XML import'!$A37,SEARCH(\">\",'CFR - XML import'!$A37,1)+1,SEARCH(\"/\",'CFR - XML import'!$A37,1)-SEARCH(\">\",'CFR - XML import'!$A37,1)-2)))","v":0},{"$f":"IF(ISERROR(FIND(AQ$3,'CFR - XML import'!$A37)),0,VALUE(MID('CFR - XML import'!$A37,SEARCH(\">\",'CFR - XML import'!$A37,1)+1,SEARCH(\"/\",'CFR - XML import'!$A37,1)-SEARCH(\">\",'CFR - XML import'!$A37,1)-2)))","v":0},{"$f":"IF(ISERROR(FIND(AR$3,'CFR - XML import'!$A37)),0,VALUE(MID('CFR - XML import'!$A37,SEARCH(\">\",'CFR - XML import'!$A37,1)+1,SEARCH(\"/\",'CFR - XML import'!$A37,1)-SEARCH(\">\",'CFR - XML import'!$A37,1)-2)))","v":0},{"$f":"IF(ISERROR(FIND(AS$3,'CFR - XML import'!$A37)),0,VALUE(MID('CFR - XML import'!$A37,SEARCH(\">\",'CFR - XML import'!$A37,1)+1,SEARCH(\"/\",'CFR - XML import'!$A37,1)-SEARCH(\">\",'CFR - XML import'!$A37,1)-2)))","v":0},{"$f":"IF(ISERROR(FIND(AT$3,'CFR - XML import'!$A37)),0,VALUE(MID('CFR - XML import'!$A37,SEARCH(\">\",'CFR - XML import'!$A37,1)+1,SEARCH(\"/\",'CFR - XML import'!$A37,1)-SEARCH(\">\",'CFR - XML import'!$A37,1)-2)))","v":0},{"$f":"IF(ISERROR(FIND(AU$3,'CFR - XML import'!$A37)),0,VALUE(MID('CFR - XML import'!$A37,SEARCH(\">\",'CFR - XML import'!$A37,1)+1,SEARCH(\"/\",'CFR - XML import'!$A37,1)-SEARCH(\">\",'CFR - XML import'!$A37,1)-2)))","v":0},{"$f":"IF(ISERROR(FIND(AV$3,'CFR - XML import'!$A37)),0,VALUE(MID('CFR - XML import'!$A37,SEARCH(\">\",'CFR - XML import'!$A37,1)+1,SEARCH(\"/\",'CFR - XML import'!$A37,1)-SEARCH(\">\",'CFR - XML import'!$A37,1)-2)))","v":0},{"$f":"IF(ISERROR(FIND(AW$3,'CFR - XML import'!$A37)),0,VALUE(MID('CFR - XML import'!$A37,SEARCH(\">\",'CFR - XML import'!$A37,1)+1,SEARCH(\"/\",'CFR - XML import'!$A37,1)-SEARCH(\">\",'CFR - XML import'!$A37,1)-2)))","v":0},{"$f":"IF(ISERROR(FIND(AX$3,'CFR - XML import'!$A37)),0,VALUE(MID('CFR - XML import'!$A37,SEARCH(\">\",'CFR - XML import'!$A37,1)+1,SEARCH(\"/\",'CFR - XML import'!$A37,1)-SEARCH(\">\",'CFR - XML import'!$A37,1)-2)))","v":0},{"$f":"IF(ISERROR(FIND(AY$3,'CFR - XML import'!$A37)),0,VALUE(MID('CFR - XML import'!$A37,SEARCH(\">\",'CFR - XML import'!$A37,1)+1,SEARCH(\"/\",'CFR - XML import'!$A37,1)-SEARCH(\">\",'CFR - XML import'!$A37,1)-2)))","v":0},{"$f":"IF(ISERROR(FIND(AZ$3,'CFR - XML import'!$A37)),0,VALUE(MID('CFR - XML import'!$A37,SEARCH(\">\",'CFR - XML import'!$A37,1)+1,SEARCH(\"/\",'CFR - XML import'!$A37,1)-SEARCH(\">\",'CFR - XML import'!$A37,1)-2)))","v":0},{"$f":"IF(ISERROR(FIND(BA$3,'CFR - XML import'!$A37)),0,VALUE(MID('CFR - XML import'!$A37,SEARCH(\">\",'CFR - XML import'!$A37,1)+1,SEARCH(\"/\",'CFR - XML import'!$A37,1)-SEARCH(\">\",'CFR - XML import'!$A37,1)-2)))","v":0},{"$f":"IF(ISERROR(FIND(BB$3,'CFR - XML import'!$A37)),0,VALUE(MID('CFR - XML import'!$A37,SEARCH(\">\",'CFR - XML import'!$A37,1)+1,SEARCH(\"/\",'CFR - XML import'!$A37,1)-SEARCH(\">\",'CFR - XML import'!$A37,1)-2)))","v":0},{"$f":"IF(ISERROR(FIND(BC$3,'CFR - XML import'!$A37)),0,VALUE(MID('CFR - XML import'!$A37,SEARCH(\">\",'CFR - XML import'!$A37,1)+1,SEARCH(\"/\",'CFR - XML import'!$A37,1)-SEARCH(\">\",'CFR - XML import'!$A37,1)-2)))","v":0},{"$f":"IF(ISERROR(FIND(BD$3,'CFR - XML import'!$A37)),0,VALUE(MID('CFR - XML import'!$A37,SEARCH(\">\",'CFR - XML import'!$A37,1)+1,SEARCH(\"/\",'CFR - XML import'!$A37,1)-SEARCH(\">\",'CFR - XML import'!$A37,1)-2)))","v":0},{"$f":"IF(ISERROR(FIND(BE$3,'CFR - XML import'!$A37)),0,VALUE(MID('CFR - XML import'!$A37,SEARCH(\">\",'CFR - XML import'!$A37,1)+1,SEARCH(\"/\",'CFR - XML import'!$A37,1)-SEARCH(\">\",'CFR - XML import'!$A37,1)-2)))","v":0},{"$f":"IF(ISERROR(FIND(BF$3,'CFR - XML import'!$A37)),0,VALUE(MID('CFR - XML import'!$A37,SEARCH(\">\",'CFR - XML import'!$A37,1)+1,SEARCH(\"/\",'CFR - XML import'!$A37,1)-SEARCH(\">\",'CFR - XML import'!$A37,1)-2)))","v":0},{"$f":"IF(ISERROR(FIND(BG$3,'CFR - XML import'!$A37)),0,VALUE(MID('CFR - XML import'!$A37,SEARCH(\">\",'CFR - XML import'!$A37,1)+1,SEARCH(\"/\",'CFR - XML import'!$A37,1)-SEARCH(\">\",'CFR - XML import'!$A37,1)-2)))","v":0},{"$f":"IF(ISERROR(FIND(BH$3,'CFR - XML import'!$A37)),0,VALUE(MID('CFR - XML import'!$A37,SEARCH(\">\",'CFR - XML import'!$A37,1)+1,SEARCH(\"/\",'CFR - XML import'!$A37,1)-SEARCH(\">\",'CFR - XML import'!$A37,1)-2)))","v":0},{"$f":"IF(ISERROR(FIND(BI$3,'CFR - XML import'!$A37)),0,VALUE(MID('CFR - XML import'!$A37,SEARCH(\">\",'CFR - XML import'!$A37,1)+1,SEARCH(\"/\",'CFR - XML import'!$A37,1)-SEARCH(\">\",'CFR - XML import'!$A37,1)-2)))","v":0},{"$f":"IF(ISERROR(FIND(BJ$3,'CFR - XML import'!$A37)),0,VALUE(MID('CFR - XML import'!$A37,SEARCH(\">\",'CFR - XML import'!$A37,1)+1,SEARCH(\"/\",'CFR - XML import'!$A37,1)-SEARCH(\">\",'CFR - XML import'!$A37,1)-2)))","v":0},{"$f":"IF(ISERROR(FIND(BK$3,'CFR - XML import'!$A37)),0,VALUE(MID('CFR - XML import'!$A37,SEARCH(\">\",'CFR - XML import'!$A37,1)+1,SEARCH(\"/\",'CFR - XML import'!$A37,1)-SEARCH(\">\",'CFR - XML import'!$A37,1)-2)))","v":0},{"$f":"IF(ISERROR(FIND(BL$3,'CFR - XML import'!$A37)),0,VALUE(MID('CFR - XML import'!$A37,SEARCH(\">\",'CFR - XML import'!$A37,1)+1,SEARCH(\"/\",'CFR - XML import'!$A37,1)-SEARCH(\">\",'CFR - XML import'!$A37,1)-2)))","v":0},{"$f":"IF(ISERROR(FIND(BM$3,'CFR - XML import'!$A37)),0,VALUE(MID('CFR - XML import'!$A37,SEARCH(\">\",'CFR - XML import'!$A37,1)+1,SEARCH(\"/\",'CFR - XML import'!$A37,1)-SEARCH(\">\",'CFR - XML import'!$A37,1)-2)))","v":0},{"$f":"IF(ISERROR(FIND(BN$3,'CFR - XML import'!$A37)),0,VALUE(MID('CFR - XML import'!$A37,SEARCH(\">\",'CFR - XML import'!$A37,1)+1,SEARCH(\"/\",'CFR - XML import'!$A37,1)-SEARCH(\">\",'CFR - XML import'!$A37,1)-2)))","v":0},{"$f":"IF(ISERROR(FIND(BO$3,'CFR - XML import'!$A37)),0,VALUE(MID('CFR - XML import'!$A37,SEARCH(\">\",'CFR - XML import'!$A37,1)+1,SEARCH(\"/\",'CFR - XML import'!$A37,1)-SEARCH(\">\",'CFR - XML import'!$A37,1)-2)))","v":0},{"$f":"IF(ISERROR(FIND(BP$3,'CFR - XML import'!$A37)),0,VALUE(MID('CFR - XML import'!$A37,SEARCH(\">\",'CFR - XML import'!$A37,1)+1,SEARCH(\"/\",'CFR - XML import'!$A37,1)-SEARCH(\">\",'CFR - XML import'!$A37,1)-2)))","v":0},{"$f":"IF(ISERROR(FIND(BQ$3,'CFR - XML import'!$A37)),0,VALUE(MID('CFR - XML import'!$A37,SEARCH(\">\",'CFR - XML import'!$A37,1)+1,SEARCH(\"/\",'CFR - XML import'!$A37,1)-SEARCH(\">\",'CFR - XML import'!$A37,1)-2)))","v":0},{"$f":"IF(ISERROR(FIND(BR$3,'CFR - XML import'!$A37)),0,VALUE(MID('CFR - XML import'!$A37,SEARCH(\">\",'CFR - XML import'!$A37,1)+1,SEARCH(\"/\",'CFR - XML import'!$A37,1)-SEARCH(\">\",'CFR - XML import'!$A37,1)-2)))","v":0},{"$f":"IF(ISERROR(FIND(BS$3,'CFR - XML import'!$A37)),0,VALUE(MID('CFR - XML import'!$A37,SEARCH(\">\",'CFR - XML import'!$A37,1)+1,SEARCH(\"/\",'CFR - XML import'!$A37,1)-SEARCH(\">\",'CFR - XML import'!$A37,1)-2)))","v":0},{"$f":"IF(ISERROR(FIND(BT$3,'CFR - XML import'!$A37)),0,VALUE(MID('CFR - XML import'!$A37,SEARCH(\">\",'CFR - XML import'!$A37,1)+1,SEARCH(\"/\",'CFR - XML import'!$A37,1)-SEARCH(\">\",'CFR - XML import'!$A37,1)-2)))","v":0},{"$f":"IF(ISERROR(FIND(BU$3,'CFR - XML import'!$A37)),0,VALUE(MID('CFR - XML import'!$A37,SEARCH(\">\",'CFR - XML import'!$A37,1)+1,SEARCH(\"/\",'CFR - XML import'!$A37,1)-SEARCH(\">\",'CFR - XML import'!$A37,1)-2)))","v":0},{"$f":"IF(ISERROR(FIND(BV$3,'CFR - XML import'!$A37)),0,VALUE(MID('CFR - XML import'!$A37,SEARCH(\">\",'CFR - XML import'!$A37,1)+1,SEARCH(\"/\",'CFR - XML import'!$A37,1)-SEARCH(\">\",'CFR - XML import'!$A37,1)-2)))","v":0},{"$f":"IF(ISERROR(FIND(BW$3,'CFR - XML import'!$A37)),0,VALUE(MID('CFR - XML import'!$A37,SEARCH(\">\",'CFR - XML import'!$A37,1)+1,SEARCH(\"/\",'CFR - XML import'!$A37,1)-SEARCH(\">\",'CFR - XML import'!$A37,1)-2)))","v":0},{"$f":"IF(ISERROR(FIND(BX$3,'CFR - XML import'!$A37)),0,VALUE(MID('CFR - XML import'!$A37,SEARCH(\">\",'CFR - XML import'!$A37,1)+1,SEARCH(\"/\",'CFR - XML import'!$A37,1)-SEARCH(\">\",'CFR - XML import'!$A37,1)-2)))","v":0},{"$f":"IF(ISERROR(FIND(BY$3,'CFR - XML import'!$A37)),0,VALUE(MID('CFR - XML import'!$A37,SEARCH(\">\",'CFR - XML import'!$A37,1)+1,SEARCH(\"/\",'CFR - XML import'!$A37,1)-SEARCH(\">\",'CFR - XML import'!$A37,1)-2)))","v":0},{"$f":"IF(ISERROR(FIND(BZ$3,'CFR - XML import'!$A37)),0,VALUE(MID('CFR - XML import'!$A37,SEARCH(\">\",'CFR - XML import'!$A37,1)+1,SEARCH(\"/\",'CFR - XML import'!$A37,1)-SEARCH(\">\",'CFR - XML import'!$A37,1)-2)))","v":0},null,null,null,null,null,null,{"$f":"IF(ISERROR(IF(MID('CFR - XML import'!$A37,LEN($CF$4)+1,LEN('CFR - XML import'!$A37)-(2*LEN($CF$4)+1))=\"RMMS\",1,IF(MID('CFR - XML import'!$A37,LEN(\"    <InputSystem>\")+1,LEN('CFR - XML import'!$A37)-(LEN(\"    <InputSystem>\")+LEN($CF$4)+1))=\"SIMS\",2,0))),0,IF(MID('CFR - XML import'!$A37,LEN($CF$4)+1,LEN('CFR - XML import'!$A37)-(2*LEN($CF$4)+1))=\"RMMS\",1,IF(MID('CFR - XML import'!$A37,LEN(\"    <InputSystem>\")+1,LEN('CFR - XML import'!$A37)-(LEN(\"    <InputSystem>\")+LEN($CF$4)+1))=\"SIMS\",2,0)))","v":0},{"$f":"IF(ISERROR(FIND(CH$3,'CFR - XML import'!$A37)),0,MID('CFR - XML import'!$A37,SEARCH(\">\",'CFR - XML import'!$A37,1)+1,SEARCH(\"/\",'CFR - XML import'!$A37,1)-SEARCH(\">\",'CFR - XML import'!$A37,1)-2))","v":0},{"$f":"IF(ISERROR(FIND(CI$3,'CFR - XML import'!$A37)),0,MID('CFR - XML import'!$A37,SEARCH(\">\",'CFR - XML import'!$A37,1)+1,SEARCH(\"/\",'CFR - XML import'!$A37,1)-SEARCH(\">\",'CFR - XML import'!$A37,1)-2))","v":0},{"$f":"IF(ISERROR(FIND(CJ$3,'CFR - XML import'!$A37)),0,MID('CFR - XML import'!$A37,SEARCH(\">\",'CFR - XML import'!$A37,1)+1,SEARCH(\"/\",'CFR - XML import'!$A37,1)-SEARCH(\">\",'CFR - XML import'!$A37,1)-2))","v":0},{"$f":"IF(ISERROR(FIND(CK$3,'CFR - XML import'!$A37)),0,MID('CFR - XML import'!$A37,SEARCH(\">\",'CFR - XML import'!$A37,1)+1,SEARCH(\"/\",'CFR - XML import'!$A37,1)-SEARCH(\">\",'CFR - XML import'!$A37,1)-2))","v":0},{"$f":"IF(ISERROR(FIND(CL$3,'CFR - XML import'!$A37)),0,MID('CFR - XML import'!$A37,SEARCH(\">\",'CFR - XML import'!$A37,1)+1,SEARCH(\"/\",'CFR - XML import'!$A37,1)-SEARCH(\">\",'CFR - XML import'!$A37,1)-2))","v":0}]
[{"$f":"IF(AND('CFR - XML import'!A38<>\"\",LEFT('CFR - XML import'!A38,1)<>\"<\",LEFT('CFR - XML import'!A38,3)<>\"  <\",LEFT('CFR - XML import'!A38,5)<>\"    <\",LEFT('CFR - XML import'!A38,7)<>\"      <\",LEFT('CFR - XML import'!A38,9)<>\"        <\",$B$1=\"SIMS\"),'CFR - XML import'!A38,IF(AND(LEFT('CFR - XML import'!A38,9)=\"<Details>\",$B$1=\"RM\"),'CFR - XML import'!A38,\"\"))","v":""},{"$f":"IF(ISERROR(FIND(B$3,'CFR - XML import'!$A38)),0,VALUE(MID('CFR - XML import'!$A38,SEARCH(\">\",'CFR - XML import'!$A38,1)+1,SEARCH(\"/\",'CFR - XML import'!$A38,1)-SEARCH(\">\",'CFR - XML import'!$A38,1)-2)))","v":0},null,{"$f":"IF(ISERROR(FIND(D$3,'CFR - XML import'!$A38)),0,MID('CFR - XML import'!$A38,SEARCH(\">\",'CFR - XML import'!$A38,1)+1,SEARCH(\"/\",'CFR - XML import'!$A38,1)-SEARCH(\">\",'CFR - XML import'!$A38,1)-2))","v":0},{"$f":"IF(ISERROR(FIND(E$3,'CFR - XML import'!$A38)),0,MID('CFR - XML import'!$A38,SEARCH(\">\",'CFR - XML import'!$A38,1)+1,SEARCH(\"/\",'CFR - XML import'!$A38,1)-SEARCH(\">\",'CFR - XML import'!$A38,1)-2))","v":0},{"$f":"IF($B$1=\"SIMS\",IF(ISERROR(FIND(F$3,'CFR - XML import'!$A38)),0,VALUE(MID('CFR - XML import'!$A38,15,10))),IF(ISERROR(FIND(F$3,'CFR - XML import'!$A38)),0,VALUE(MID('CFR - XML import'!$A38,11,10))))","v":"00:00:00"},{"$f":"IF(ISERROR(FIND(G$3,'CFR - XML import'!$A38)),0,VALUE(MID('CFR - XML import'!$A38,SEARCH(\">\",'CFR - XML import'!$A38,1)+1,SEARCH(\"/\",'CFR - XML import'!$A38,1)-SEARCH(\">\",'CFR - XML import'!$A38,1)-2)))","v":0},{"$f":"IF(ISERROR(FIND(H$3,'CFR - XML import'!$A38)),0,VALUE(MID('CFR - XML import'!$A38,SEARCH(\">\",'CFR - XML import'!$A38,1)+1,SEARCH(\"/\",'CFR - XML import'!$A38,1)-SEARCH(\">\",'CFR - XML import'!$A38,1)-2)))","v":0},{"$f":"IF(ISERROR(FIND(I$3,'CFR - XML import'!$A38)),0,VALUE(MID('CFR - XML import'!$A38,SEARCH(\">\",'CFR - XML import'!$A38,1)+1,SEARCH(\"/\",'CFR - XML import'!$A38,1)-SEARCH(\">\",'CFR - XML import'!$A38,1)-2)))","v":0},{"$f":"IF(ISERROR(FIND(J$3,'CFR - XML import'!$A38)),0,VALUE(MID('CFR - XML import'!$A38,SEARCH(\">\",'CFR - XML import'!$A38,1)+1,SEARCH(\"/\",'CFR - XML import'!$A38,1)-SEARCH(\">\",'CFR - XML import'!$A38,1)-2)))","v":0},{"$f":"IF(ISERROR(FIND(K$3,'CFR - XML import'!$A38)),0,VALUE(MID('CFR - XML import'!$A38,SEARCH(\">\",'CFR - XML import'!$A38,1)+1,SEARCH(\"/\",'CFR - XML import'!$A38,1)-SEARCH(\">\",'CFR - XML import'!$A38,1)-2)))","v":0},{"$f":"IF(ISERROR(FIND(L$3,'CFR - XML import'!$A38)),0,VALUE(MID('CFR - XML import'!$A38,SEARCH(\">\",'CFR - XML import'!$A38,1)+1,SEARCH(\"/\",'CFR - XML import'!$A38,1)-SEARCH(\">\",'CFR - XML import'!$A38,1)-2)))","v":0},{"$f":"IF(ISERROR(FIND(M$3,'CFR - XML import'!$A38)),0,VALUE(MID('CFR - XML import'!$A38,SEARCH(\">\",'CFR - XML import'!$A38,1)+1,SEARCH(\"/\",'CFR - XML import'!$A38,1)-SEARCH(\">\",'CFR - XML import'!$A38,1)-2)))","v":0},{"$f":"IF(ISERROR(FIND(N$3,'CFR - XML import'!$A38)),0,VALUE(MID('CFR - XML import'!$A38,SEARCH(\">\",'CFR - XML import'!$A38,1)+1,SEARCH(\"/\",'CFR - XML import'!$A38,1)-SEARCH(\">\",'CFR - XML import'!$A38,1)-2)))","v":0},{"$f":"IF(ISERROR(FIND(O$3,'CFR - XML import'!$A38)),0,VALUE(MID('CFR - XML import'!$A38,SEARCH(\">\",'CFR - XML import'!$A38,1)+1,SEARCH(\"/\",'CFR - XML import'!$A38,1)-SEARCH(\">\",'CFR - XML import'!$A38,1)-2)))","v":0},{"$f":"IF(ISERROR(FIND(P$3,'CFR - XML import'!$A38)),0,VALUE(MID('CFR - XML import'!$A38,SEARCH(\">\",'CFR - XML import'!$A38,1)+1,SEARCH(\"/\",'CFR - XML import'!$A38,1)-SEARCH(\">\",'CFR - XML import'!$A38,1)-2)))","v":0},{"$f":"IF(ISERROR(FIND(Q$3,'CFR - XML import'!$A38)),0,VALUE(MID('CFR - XML import'!$A38,SEARCH(\">\",'CFR - XML import'!$A38,1)+1,SEARCH(\"/\",'CFR - XML import'!$A38,1)-SEARCH(\">\",'CFR - XML import'!$A38,1)-2)))","v":0},{"$f":"IF(ISERROR(FIND(R$3,'CFR - XML import'!$A38)),0,VALUE(MID('CFR - XML import'!$A38,SEARCH(\">\",'CFR - XML import'!$A38,1)+1,SEARCH(\"/\",'CFR - XML import'!$A38,1)-SEARCH(\">\",'CFR - XML import'!$A38,1)-2)))","v":0},{"$f":"IF(ISERROR(FIND(S$3,'CFR - XML import'!$A38)),0,VALUE(MID('CFR - XML import'!$A38,SEARCH(\">\",'CFR - XML import'!$A38,1)+1,SEARCH(\"/\",'CFR - XML import'!$A38,1)-SEARCH(\">\",'CFR - XML import'!$A38,1)-2)))","v":0},{"$f":"IF(ISERROR(FIND(T$3,'CFR - XML import'!$A38)),0,VALUE(MID('CFR - XML import'!$A38,SEARCH(\">\",'CFR - XML import'!$A38,1)+1,SEARCH(\"/\",'CFR - XML import'!$A38,1)-SEARCH(\">\",'CFR - XML import'!$A38,1)-2)))","v":0},{"$f":"IF(ISERROR(FIND(U$3,'CFR - XML import'!$A38)),0,VALUE(MID('CFR - XML import'!$A38,SEARCH(\">\",'CFR - XML import'!$A38,1)+1,SEARCH(\"/\",'CFR - XML import'!$A38,1)-SEARCH(\">\",'CFR - XML import'!$A38,1)-2)))","v":0},{"$f":"IF(ISERROR(FIND(V$3,'CFR - XML import'!$A38)),0,VALUE(MID('CFR - XML import'!$A38,SEARCH(\">\",'CFR - XML import'!$A38,1)+1,SEARCH(\"/\",'CFR - XML import'!$A38,1)-SEARCH(\">\",'CFR - XML import'!$A38,1)-2)))","v":0},{"$f":"IF(ISERROR(FIND(W$3,'CFR - XML import'!$A38)),0,VALUE(MID('CFR - XML import'!$A38,SEARCH(\">\",'CFR - XML import'!$A38,1)+1,SEARCH(\"/\",'CFR - XML import'!$A38,1)-SEARCH(\">\",'CFR - XML import'!$A38,1)-2)))","v":0},null,{"$f":"IF(ISERROR(FIND(Y$3,'CFR - XML import'!$A38)),0,VALUE(MID('CFR - XML import'!$A38,SEARCH(\">\",'CFR - XML import'!$A38,1)+1,SEARCH(\"/\",'CFR - XML import'!$A38,1)-SEARCH(\">\",'CFR - XML import'!$A38,1)-2)))","v":0},{"$f":"IF(ISERROR(FIND(Z$3,'CFR - XML import'!$A38)),0,VALUE(MID('CFR - XML import'!$A38,SEARCH(\">\",'CFR - XML import'!$A38,1)+1,SEARCH(\"/\",'CFR - XML import'!$A38,1)-SEARCH(\">\",'CFR - XML import'!$A38,1)-2)))","v":0},{"$f":"IF(ISERROR(FIND(AA$3,'CFR - XML import'!$A38)),0,VALUE(MID('CFR - XML import'!$A38,SEARCH(\">\",'CFR - XML import'!$A38,1)+1,SEARCH(\"/\",'CFR - XML import'!$A38,1)-SEARCH(\">\",'CFR - XML import'!$A38,1)-2)))","v":0},{"$f":"IF(ISERROR(FIND(AB$3,'CFR - XML import'!$A38)),0,VALUE(MID('CFR - XML import'!$A38,SEARCH(\">\",'CFR - XML import'!$A38,1)+1,SEARCH(\"/\",'CFR - XML import'!$A38,1)-SEARCH(\">\",'CFR - XML import'!$A38,1)-2)))","v":0},{"$f":"IF(ISERROR(FIND(AC$3,'CFR - XML import'!$A38)),0,VALUE(MID('CFR - XML import'!$A38,SEARCH(\">\",'CFR - XML import'!$A38,1)+1,SEARCH(\"/\",'CFR - XML import'!$A38,1)-SEARCH(\">\",'CFR - XML import'!$A38,1)-2)))","v":0},{"$f":"IF(ISERROR(FIND(AD$3,'CFR - XML import'!$A38)),0,VALUE(MID('CFR - XML import'!$A38,SEARCH(\">\",'CFR - XML import'!$A38,1)+1,SEARCH(\"/\",'CFR - XML import'!$A38,1)-SEARCH(\">\",'CFR - XML import'!$A38,1)-2)))","v":0},{"$f":"IF(ISERROR(FIND(AE$3,'CFR - XML import'!$A38)),0,VALUE(MID('CFR - XML import'!$A38,SEARCH(\">\",'CFR - XML import'!$A38,1)+1,SEARCH(\"/\",'CFR - XML import'!$A38,1)-SEARCH(\">\",'CFR - XML import'!$A38,1)-2)))","v":0},{"$f":"IF(ISERROR(FIND(AF$3,'CFR - XML import'!$A38)),0,VALUE(MID('CFR - XML import'!$A38,SEARCH(\">\",'CFR - XML import'!$A38,1)+1,SEARCH(\"/\",'CFR - XML import'!$A38,1)-SEARCH(\">\",'CFR - XML import'!$A38,1)-2)))","v":0},{"$f":"IF(ISERROR(FIND(AG$3,'CFR - XML import'!$A38)),0,VALUE(MID('CFR - XML import'!$A38,SEARCH(\">\",'CFR - XML import'!$A38,1)+1,SEARCH(\"/\",'CFR - XML import'!$A38,1)-SEARCH(\">\",'CFR - XML import'!$A38,1)-2)))","v":0},{"$f":"IF(ISERROR(FIND(AH$3,'CFR - XML import'!$A38)),0,VALUE(MID('CFR - XML import'!$A38,SEARCH(\">\",'CFR - XML import'!$A38,1)+1,SEARCH(\"/\",'CFR - XML import'!$A38,1)-SEARCH(\">\",'CFR - XML import'!$A38,1)-2)))","v":0},{"$f":"IF(ISERROR(FIND(AI$3,'CFR - XML import'!$A38)),0,VALUE(MID('CFR - XML import'!$A38,SEARCH(\">\",'CFR - XML import'!$A38,1)+1,SEARCH(\"/\",'CFR - XML import'!$A38,1)-SEARCH(\">\",'CFR - XML import'!$A38,1)-2)))","v":0},{"$f":"IF(ISERROR(FIND(AJ$3,'CFR - XML import'!$A38)),0,VALUE(MID('CFR - XML import'!$A38,SEARCH(\">\",'CFR - XML import'!$A38,1)+1,SEARCH(\"/\",'CFR - XML import'!$A38,1)-SEARCH(\">\",'CFR - XML import'!$A38,1)-2)))","v":0},{"$f":"IF(ISERROR(FIND(AK$3,'CFR - XML import'!$A38)),0,VALUE(MID('CFR - XML import'!$A38,SEARCH(\">\",'CFR - XML import'!$A38,1)+1,SEARCH(\"/\",'CFR - XML import'!$A38,1)-SEARCH(\">\",'CFR - XML import'!$A38,1)-2)))","v":0},{"$f":"IF(ISERROR(FIND(AL$3,'CFR - XML import'!$A38)),0,VALUE(MID('CFR - XML import'!$A38,SEARCH(\">\",'CFR - XML import'!$A38,1)+1,SEARCH(\"/\",'CFR - XML import'!$A38,1)-SEARCH(\">\",'CFR - XML import'!$A38,1)-2)))","v":0},{"$f":"IF(ISERROR(FIND(AM$3,'CFR - XML import'!$A38)),0,VALUE(MID('CFR - XML import'!$A38,SEARCH(\">\",'CFR - XML import'!$A38,1)+1,SEARCH(\"/\",'CFR - XML import'!$A38,1)-SEARCH(\">\",'CFR - XML import'!$A38,1)-2)))","v":0},{"$f":"IF(ISERROR(FIND(AN$3,'CFR - XML import'!$A38)),0,VALUE(MID('CFR - XML import'!$A38,SEARCH(\">\",'CFR - XML import'!$A38,1)+1,SEARCH(\"/\",'CFR - XML import'!$A38,1)-SEARCH(\">\",'CFR - XML import'!$A38,1)-2)))","v":0},{"$f":"IF(ISERROR(FIND(AO$3,'CFR - XML import'!$A38)),0,VALUE(MID('CFR - XML import'!$A38,SEARCH(\">\",'CFR - XML import'!$A38,1)+1,SEARCH(\"/\",'CFR - XML import'!$A38,1)-SEARCH(\">\",'CFR - XML import'!$A38,1)-2)))","v":0},{"$f":"IF(ISERROR(FIND(AP$3,'CFR - XML import'!$A38)),0,VALUE(MID('CFR - XML import'!$A38,SEARCH(\">\",'CFR - XML import'!$A38,1)+1,SEARCH(\"/\",'CFR - XML import'!$A38,1)-SEARCH(\">\",'CFR - XML import'!$A38,1)-2)))","v":0},{"$f":"IF(ISERROR(FIND(AQ$3,'CFR - XML import'!$A38)),0,VALUE(MID('CFR - XML import'!$A38,SEARCH(\">\",'CFR - XML import'!$A38,1)+1,SEARCH(\"/\",'CFR - XML import'!$A38,1)-SEARCH(\">\",'CFR - XML import'!$A38,1)-2)))","v":0},{"$f":"IF(ISERROR(FIND(AR$3,'CFR - XML import'!$A38)),0,VALUE(MID('CFR - XML import'!$A38,SEARCH(\">\",'CFR - XML import'!$A38,1)+1,SEARCH(\"/\",'CFR - XML import'!$A38,1)-SEARCH(\">\",'CFR - XML import'!$A38,1)-2)))","v":0},{"$f":"IF(ISERROR(FIND(AS$3,'CFR - XML import'!$A38)),0,VALUE(MID('CFR - XML import'!$A38,SEARCH(\">\",'CFR - XML import'!$A38,1)+1,SEARCH(\"/\",'CFR - XML import'!$A38,1)-SEARCH(\">\",'CFR - XML import'!$A38,1)-2)))","v":0},{"$f":"IF(ISERROR(FIND(AT$3,'CFR - XML import'!$A38)),0,VALUE(MID('CFR - XML import'!$A38,SEARCH(\">\",'CFR - XML import'!$A38,1)+1,SEARCH(\"/\",'CFR - XML import'!$A38,1)-SEARCH(\">\",'CFR - XML import'!$A38,1)-2)))","v":0},{"$f":"IF(ISERROR(FIND(AU$3,'CFR - XML import'!$A38)),0,VALUE(MID('CFR - XML import'!$A38,SEARCH(\">\",'CFR - XML import'!$A38,1)+1,SEARCH(\"/\",'CFR - XML import'!$A38,1)-SEARCH(\">\",'CFR - XML import'!$A38,1)-2)))","v":0},{"$f":"IF(ISERROR(FIND(AV$3,'CFR - XML import'!$A38)),0,VALUE(MID('CFR - XML import'!$A38,SEARCH(\">\",'CFR - XML import'!$A38,1)+1,SEARCH(\"/\",'CFR - XML import'!$A38,1)-SEARCH(\">\",'CFR - XML import'!$A38,1)-2)))","v":0},{"$f":"IF(ISERROR(FIND(AW$3,'CFR - XML import'!$A38)),0,VALUE(MID('CFR - XML import'!$A38,SEARCH(\">\",'CFR - XML import'!$A38,1)+1,SEARCH(\"/\",'CFR - XML import'!$A38,1)-SEARCH(\">\",'CFR - XML import'!$A38,1)-2)))","v":0},{"$f":"IF(ISERROR(FIND(AX$3,'CFR - XML import'!$A38)),0,VALUE(MID('CFR - XML import'!$A38,SEARCH(\">\",'CFR - XML import'!$A38,1)+1,SEARCH(\"/\",'CFR - XML import'!$A38,1)-SEARCH(\">\",'CFR - XML import'!$A38,1)-2)))","v":0},{"$f":"IF(ISERROR(FIND(AY$3,'CFR - XML import'!$A38)),0,VALUE(MID('CFR - XML import'!$A38,SEARCH(\">\",'CFR - XML import'!$A38,1)+1,SEARCH(\"/\",'CFR - XML import'!$A38,1)-SEARCH(\">\",'CFR - XML import'!$A38,1)-2)))","v":0},{"$f":"IF(ISERROR(FIND(AZ$3,'CFR - XML import'!$A38)),0,VALUE(MID('CFR - XML import'!$A38,SEARCH(\">\",'CFR - XML import'!$A38,1)+1,SEARCH(\"/\",'CFR - XML import'!$A38,1)-SEARCH(\">\",'CFR - XML import'!$A38,1)-2)))","v":0},{"$f":"IF(ISERROR(FIND(BA$3,'CFR - XML import'!$A38)),0,VALUE(MID('CFR - XML import'!$A38,SEARCH(\">\",'CFR - XML import'!$A38,1)+1,SEARCH(\"/\",'CFR - XML import'!$A38,1)-SEARCH(\">\",'CFR - XML import'!$A38,1)-2)))","v":0},{"$f":"IF(ISERROR(FIND(BB$3,'CFR - XML import'!$A38)),0,VALUE(MID('CFR - XML import'!$A38,SEARCH(\">\",'CFR - XML import'!$A38,1)+1,SEARCH(\"/\",'CFR - XML import'!$A38,1)-SEARCH(\">\",'CFR - XML import'!$A38,1)-2)))","v":0},{"$f":"IF(ISERROR(FIND(BC$3,'CFR - XML import'!$A38)),0,VALUE(MID('CFR - XML import'!$A38,SEARCH(\">\",'CFR - XML import'!$A38,1)+1,SEARCH(\"/\",'CFR - XML import'!$A38,1)-SEARCH(\">\",'CFR - XML import'!$A38,1)-2)))","v":0},{"$f":"IF(ISERROR(FIND(BD$3,'CFR - XML import'!$A38)),0,VALUE(MID('CFR - XML import'!$A38,SEARCH(\">\",'CFR - XML import'!$A38,1)+1,SEARCH(\"/\",'CFR - XML import'!$A38,1)-SEARCH(\">\",'CFR - XML import'!$A38,1)-2)))","v":0},{"$f":"IF(ISERROR(FIND(BE$3,'CFR - XML import'!$A38)),0,VALUE(MID('CFR - XML import'!$A38,SEARCH(\">\",'CFR - XML import'!$A38,1)+1,SEARCH(\"/\",'CFR - XML import'!$A38,1)-SEARCH(\">\",'CFR - XML import'!$A38,1)-2)))","v":0},{"$f":"IF(ISERROR(FIND(BF$3,'CFR - XML import'!$A38)),0,VALUE(MID('CFR - XML import'!$A38,SEARCH(\">\",'CFR - XML import'!$A38,1)+1,SEARCH(\"/\",'CFR - XML import'!$A38,1)-SEARCH(\">\",'CFR - XML import'!$A38,1)-2)))","v":0},{"$f":"IF(ISERROR(FIND(BG$3,'CFR - XML import'!$A38)),0,VALUE(MID('CFR - XML import'!$A38,SEARCH(\">\",'CFR - XML import'!$A38,1)+1,SEARCH(\"/\",'CFR - XML import'!$A38,1)-SEARCH(\">\",'CFR - XML import'!$A38,1)-2)))","v":0},{"$f":"IF(ISERROR(FIND(BH$3,'CFR - XML import'!$A38)),0,VALUE(MID('CFR - XML import'!$A38,SEARCH(\">\",'CFR - XML import'!$A38,1)+1,SEARCH(\"/\",'CFR - XML import'!$A38,1)-SEARCH(\">\",'CFR - XML import'!$A38,1)-2)))","v":0},{"$f":"IF(ISERROR(FIND(BI$3,'CFR - XML import'!$A38)),0,VALUE(MID('CFR - XML import'!$A38,SEARCH(\">\",'CFR - XML import'!$A38,1)+1,SEARCH(\"/\",'CFR - XML import'!$A38,1)-SEARCH(\">\",'CFR - XML import'!$A38,1)-2)))","v":0},{"$f":"IF(ISERROR(FIND(BJ$3,'CFR - XML import'!$A38)),0,VALUE(MID('CFR - XML import'!$A38,SEARCH(\">\",'CFR - XML import'!$A38,1)+1,SEARCH(\"/\",'CFR - XML import'!$A38,1)-SEARCH(\">\",'CFR - XML import'!$A38,1)-2)))","v":0},{"$f":"IF(ISERROR(FIND(BK$3,'CFR - XML import'!$A38)),0,VALUE(MID('CFR - XML import'!$A38,SEARCH(\">\",'CFR - XML import'!$A38,1)+1,SEARCH(\"/\",'CFR - XML import'!$A38,1)-SEARCH(\">\",'CFR - XML import'!$A38,1)-2)))","v":0},{"$f":"IF(ISERROR(FIND(BL$3,'CFR - XML import'!$A38)),0,VALUE(MID('CFR - XML import'!$A38,SEARCH(\">\",'CFR - XML import'!$A38,1)+1,SEARCH(\"/\",'CFR - XML import'!$A38,1)-SEARCH(\">\",'CFR - XML import'!$A38,1)-2)))","v":0},{"$f":"IF(ISERROR(FIND(BM$3,'CFR - XML import'!$A38)),0,VALUE(MID('CFR - XML import'!$A38,SEARCH(\">\",'CFR - XML import'!$A38,1)+1,SEARCH(\"/\",'CFR - XML import'!$A38,1)-SEARCH(\">\",'CFR - XML import'!$A38,1)-2)))","v":0},{"$f":"IF(ISERROR(FIND(BN$3,'CFR - XML import'!$A38)),0,VALUE(MID('CFR - XML import'!$A38,SEARCH(\">\",'CFR - XML import'!$A38,1)+1,SEARCH(\"/\",'CFR - XML import'!$A38,1)-SEARCH(\">\",'CFR - XML import'!$A38,1)-2)))","v":0},{"$f":"IF(ISERROR(FIND(BO$3,'CFR - XML import'!$A38)),0,VALUE(MID('CFR - XML import'!$A38,SEARCH(\">\",'CFR - XML import'!$A38,1)+1,SEARCH(\"/\",'CFR - XML import'!$A38,1)-SEARCH(\">\",'CFR - XML import'!$A38,1)-2)))","v":0},{"$f":"IF(ISERROR(FIND(BP$3,'CFR - XML import'!$A38)),0,VALUE(MID('CFR - XML import'!$A38,SEARCH(\">\",'CFR - XML import'!$A38,1)+1,SEARCH(\"/\",'CFR - XML import'!$A38,1)-SEARCH(\">\",'CFR - XML import'!$A38,1)-2)))","v":0},{"$f":"IF(ISERROR(FIND(BQ$3,'CFR - XML import'!$A38)),0,VALUE(MID('CFR - XML import'!$A38,SEARCH(\">\",'CFR - XML import'!$A38,1)+1,SEARCH(\"/\",'CFR - XML import'!$A38,1)-SEARCH(\">\",'CFR - XML import'!$A38,1)-2)))","v":0},{"$f":"IF(ISERROR(FIND(BR$3,'CFR - XML import'!$A38)),0,VALUE(MID('CFR - XML import'!$A38,SEARCH(\">\",'CFR - XML import'!$A38,1)+1,SEARCH(\"/\",'CFR - XML import'!$A38,1)-SEARCH(\">\",'CFR - XML import'!$A38,1)-2)))","v":0},{"$f":"IF(ISERROR(FIND(BS$3,'CFR - XML import'!$A38)),0,VALUE(MID('CFR - XML import'!$A38,SEARCH(\">\",'CFR - XML import'!$A38,1)+1,SEARCH(\"/\",'CFR - XML import'!$A38,1)-SEARCH(\">\",'CFR - XML import'!$A38,1)-2)))","v":0},{"$f":"IF(ISERROR(FIND(BT$3,'CFR - XML import'!$A38)),0,VALUE(MID('CFR - XML import'!$A38,SEARCH(\">\",'CFR - XML import'!$A38,1)+1,SEARCH(\"/\",'CFR - XML import'!$A38,1)-SEARCH(\">\",'CFR - XML import'!$A38,1)-2)))","v":0},{"$f":"IF(ISERROR(FIND(BU$3,'CFR - XML import'!$A38)),0,VALUE(MID('CFR - XML import'!$A38,SEARCH(\">\",'CFR - XML import'!$A38,1)+1,SEARCH(\"/\",'CFR - XML import'!$A38,1)-SEARCH(\">\",'CFR - XML import'!$A38,1)-2)))","v":0},{"$f":"IF(ISERROR(FIND(BV$3,'CFR - XML import'!$A38)),0,VALUE(MID('CFR - XML import'!$A38,SEARCH(\">\",'CFR - XML import'!$A38,1)+1,SEARCH(\"/\",'CFR - XML import'!$A38,1)-SEARCH(\">\",'CFR - XML import'!$A38,1)-2)))","v":0},{"$f":"IF(ISERROR(FIND(BW$3,'CFR - XML import'!$A38)),0,VALUE(MID('CFR - XML import'!$A38,SEARCH(\">\",'CFR - XML import'!$A38,1)+1,SEARCH(\"/\",'CFR - XML import'!$A38,1)-SEARCH(\">\",'CFR - XML import'!$A38,1)-2)))","v":0},{"$f":"IF(ISERROR(FIND(BX$3,'CFR - XML import'!$A38)),0,VALUE(MID('CFR - XML import'!$A38,SEARCH(\">\",'CFR - XML import'!$A38,1)+1,SEARCH(\"/\",'CFR - XML import'!$A38,1)-SEARCH(\">\",'CFR - XML import'!$A38,1)-2)))","v":0},{"$f":"IF(ISERROR(FIND(BY$3,'CFR - XML import'!$A38)),0,VALUE(MID('CFR - XML import'!$A38,SEARCH(\">\",'CFR - XML import'!$A38,1)+1,SEARCH(\"/\",'CFR - XML import'!$A38,1)-SEARCH(\">\",'CFR - XML import'!$A38,1)-2)))","v":0},{"$f":"IF(ISERROR(FIND(BZ$3,'CFR - XML import'!$A38)),0,VALUE(MID('CFR - XML import'!$A38,SEARCH(\">\",'CFR - XML import'!$A38,1)+1,SEARCH(\"/\",'CFR - XML import'!$A38,1)-SEARCH(\">\",'CFR - XML import'!$A38,1)-2)))","v":0},null,null,null,null,null,null,{"$f":"IF(ISERROR(IF(MID('CFR - XML import'!$A38,LEN($CF$4)+1,LEN('CFR - XML import'!$A38)-(2*LEN($CF$4)+1))=\"RMMS\",1,IF(MID('CFR - XML import'!$A38,LEN(\"    <InputSystem>\")+1,LEN('CFR - XML import'!$A38)-(LEN(\"    <InputSystem>\")+LEN($CF$4)+1))=\"SIMS\",2,0))),0,IF(MID('CFR - XML import'!$A38,LEN($CF$4)+1,LEN('CFR - XML import'!$A38)-(2*LEN($CF$4)+1))=\"RMMS\",1,IF(MID('CFR - XML import'!$A38,LEN(\"    <InputSystem>\")+1,LEN('CFR - XML import'!$A38)-(LEN(\"    <InputSystem>\")+LEN($CF$4)+1))=\"SIMS\",2,0)))","v":0},{"$f":"IF(ISERROR(FIND(CH$3,'CFR - XML import'!$A38)),0,MID('CFR - XML import'!$A38,SEARCH(\">\",'CFR - XML import'!$A38,1)+1,SEARCH(\"/\",'CFR - XML import'!$A38,1)-SEARCH(\">\",'CFR - XML import'!$A38,1)-2))","v":0},{"$f":"IF(ISERROR(FIND(CI$3,'CFR - XML import'!$A38)),0,MID('CFR - XML import'!$A38,SEARCH(\">\",'CFR - XML import'!$A38,1)+1,SEARCH(\"/\",'CFR - XML import'!$A38,1)-SEARCH(\">\",'CFR - XML import'!$A38,1)-2))","v":0},{"$f":"IF(ISERROR(FIND(CJ$3,'CFR - XML import'!$A38)),0,MID('CFR - XML import'!$A38,SEARCH(\">\",'CFR - XML import'!$A38,1)+1,SEARCH(\"/\",'CFR - XML import'!$A38,1)-SEARCH(\">\",'CFR - XML import'!$A38,1)-2))","v":0},{"$f":"IF(ISERROR(FIND(CK$3,'CFR - XML import'!$A38)),0,MID('CFR - XML import'!$A38,SEARCH(\">\",'CFR - XML import'!$A38,1)+1,SEARCH(\"/\",'CFR - XML import'!$A38,1)-SEARCH(\">\",'CFR - XML import'!$A38,1)-2))","v":0},{"$f":"IF(ISERROR(FIND(CL$3,'CFR - XML import'!$A38)),0,MID('CFR - XML import'!$A38,SEARCH(\">\",'CFR - XML import'!$A38,1)+1,SEARCH(\"/\",'CFR - XML import'!$A38,1)-SEARCH(\">\",'CFR - XML import'!$A38,1)-2))","v":0}]
[{"$f":"IF(AND('CFR - XML import'!A39<>\"\",LEFT('CFR - XML import'!A39,1)<>\"<\",LEFT('CFR - XML import'!A39,3)<>\"  <\",LEFT('CFR - XML import'!A39,5)<>\"    <\",LEFT('CFR - XML import'!A39,7)<>\"      <\",LEFT('CFR - XML import'!A39,9)<>\"        <\",$B$1=\"SIMS\"),'CFR - XML import'!A39,IF(AND(LEFT('CFR - XML import'!A39,9)=\"<Details>\",$B$1=\"RM\"),'CFR - XML import'!A39,\"\"))","v":""},{"$f":"IF(ISERROR(FIND(B$3,'CFR - XML import'!$A39)),0,VALUE(MID('CFR - XML import'!$A39,SEARCH(\">\",'CFR - XML import'!$A39,1)+1,SEARCH(\"/\",'CFR - XML import'!$A39,1)-SEARCH(\">\",'CFR - XML import'!$A39,1)-2)))","v":0},null,{"$f":"IF(ISERROR(FIND(D$3,'CFR - XML import'!$A39)),0,MID('CFR - XML import'!$A39,SEARCH(\">\",'CFR - XML import'!$A39,1)+1,SEARCH(\"/\",'CFR - XML import'!$A39,1)-SEARCH(\">\",'CFR - XML import'!$A39,1)-2))","v":0},{"$f":"IF(ISERROR(FIND(E$3,'CFR - XML import'!$A39)),0,MID('CFR - XML import'!$A39,SEARCH(\">\",'CFR - XML import'!$A39,1)+1,SEARCH(\"/\",'CFR - XML import'!$A39,1)-SEARCH(\">\",'CFR - XML import'!$A39,1)-2))","v":0},{"$f":"IF($B$1=\"SIMS\",IF(ISERROR(FIND(F$3,'CFR - XML import'!$A39)),0,VALUE(MID('CFR - XML import'!$A39,15,10))),IF(ISERROR(FIND(F$3,'CFR - XML import'!$A39)),0,VALUE(MID('CFR - XML import'!$A39,11,10))))","v":"00:00:00"},{"$f":"IF(ISERROR(FIND(G$3,'CFR - XML import'!$A39)),0,VALUE(MID('CFR - XML import'!$A39,SEARCH(\">\",'CFR - XML import'!$A39,1)+1,SEARCH(\"/\",'CFR - XML import'!$A39,1)-SEARCH(\">\",'CFR - XML import'!$A39,1)-2)))","v":0},{"$f":"IF(ISERROR(FIND(H$3,'CFR - XML import'!$A39)),0,VALUE(MID('CFR - XML import'!$A39,SEARCH(\">\",'CFR - XML import'!$A39,1)+1,SEARCH(\"/\",'CFR - XML import'!$A39,1)-SEARCH(\">\",'CFR - XML import'!$A39,1)-2)))","v":0},{"$f":"IF(ISERROR(FIND(I$3,'CFR - XML import'!$A39)),0,VALUE(MID('CFR - XML import'!$A39,SEARCH(\">\",'CFR - XML import'!$A39,1)+1,SEARCH(\"/\",'CFR - XML import'!$A39,1)-SEARCH(\">\",'CFR - XML import'!$A39,1)-2)))","v":0},{"$f":"IF(ISERROR(FIND(J$3,'CFR - XML import'!$A39)),0,VALUE(MID('CFR - XML import'!$A39,SEARCH(\">\",'CFR - XML import'!$A39,1)+1,SEARCH(\"/\",'CFR - XML import'!$A39,1)-SEARCH(\">\",'CFR - XML import'!$A39,1)-2)))","v":0},{"$f":"IF(ISERROR(FIND(K$3,'CFR - XML import'!$A39)),0,VALUE(MID('CFR - XML import'!$A39,SEARCH(\">\",'CFR - XML import'!$A39,1)+1,SEARCH(\"/\",'CFR - XML import'!$A39,1)-SEARCH(\">\",'CFR - XML import'!$A39,1)-2)))","v":0},{"$f":"IF(ISERROR(FIND(L$3,'CFR - XML import'!$A39)),0,VALUE(MID('CFR - XML import'!$A39,SEARCH(\">\",'CFR - XML import'!$A39,1)+1,SEARCH(\"/\",'CFR - XML import'!$A39,1)-SEARCH(\">\",'CFR - XML import'!$A39,1)-2)))","v":0},{"$f":"IF(ISERROR(FIND(M$3,'CFR - XML import'!$A39)),0,VALUE(MID('CFR - XML import'!$A39,SEARCH(\">\",'CFR - XML import'!$A39,1)+1,SEARCH(\"/\",'CFR - XML import'!$A39,1)-SEARCH(\">\",'CFR - XML import'!$A39,1)-2)))","v":0},{"$f":"IF(ISERROR(FIND(N$3,'CFR - XML import'!$A39)),0,VALUE(MID('CFR - XML import'!$A39,SEARCH(\">\",'CFR - XML import'!$A39,1)+1,SEARCH(\"/\",'CFR - XML import'!$A39,1)-SEARCH(\">\",'CFR - XML import'!$A39,1)-2)))","v":0},{"$f":"IF(ISERROR(FIND(O$3,'CFR - XML import'!$A39)),0,VALUE(MID('CFR - XML import'!$A39,SEARCH(\">\",'CFR - XML import'!$A39,1)+1,SEARCH(\"/\",'CFR - XML import'!$A39,1)-SEARCH(\">\",'CFR - XML import'!$A39,1)-2)))","v":0},{"$f":"IF(ISERROR(FIND(P$3,'CFR - XML import'!$A39)),0,VALUE(MID('CFR - XML import'!$A39,SEARCH(\">\",'CFR - XML import'!$A39,1)+1,SEARCH(\"/\",'CFR - XML import'!$A39,1)-SEARCH(\">\",'CFR - XML import'!$A39,1)-2)))","v":0},{"$f":"IF(ISERROR(FIND(Q$3,'CFR - XML import'!$A39)),0,VALUE(MID('CFR - XML import'!$A39,SEARCH(\">\",'CFR - XML import'!$A39,1)+1,SEARCH(\"/\",'CFR - XML import'!$A39,1)-SEARCH(\">\",'CFR - XML import'!$A39,1)-2)))","v":0},{"$f":"IF(ISERROR(FIND(R$3,'CFR - XML import'!$A39)),0,VALUE(MID('CFR - XML import'!$A39,SEARCH(\">\",'CFR - XML import'!$A39,1)+1,SEARCH(\"/\",'CFR - XML import'!$A39,1)-SEARCH(\">\",'CFR - XML import'!$A39,1)-2)))","v":0},{"$f":"IF(ISERROR(FIND(S$3,'CFR - XML import'!$A39)),0,VALUE(MID('CFR - XML import'!$A39,SEARCH(\">\",'CFR - XML import'!$A39,1)+1,SEARCH(\"/\",'CFR - XML import'!$A39,1)-SEARCH(\">\",'CFR - XML import'!$A39,1)-2)))","v":0},{"$f":"IF(ISERROR(FIND(T$3,'CFR - XML import'!$A39)),0,VALUE(MID('CFR - XML import'!$A39,SEARCH(\">\",'CFR - XML import'!$A39,1)+1,SEARCH(\"/\",'CFR - XML import'!$A39,1)-SEARCH(\">\",'CFR - XML import'!$A39,1)-2)))","v":0},{"$f":"IF(ISERROR(FIND(U$3,'CFR - XML import'!$A39)),0,VALUE(MID('CFR - XML import'!$A39,SEARCH(\">\",'CFR - XML import'!$A39,1)+1,SEARCH(\"/\",'CFR - XML import'!$A39,1)-SEARCH(\">\",'CFR - XML import'!$A39,1)-2)))","v":0},{"$f":"IF(ISERROR(FIND(V$3,'CFR - XML import'!$A39)),0,VALUE(MID('CFR - XML import'!$A39,SEARCH(\">\",'CFR - XML import'!$A39,1)+1,SEARCH(\"/\",'CFR - XML import'!$A39,1)-SEARCH(\">\",'CFR - XML import'!$A39,1)-2)))","v":0},{"$f":"IF(ISERROR(FIND(W$3,'CFR - XML import'!$A39)),0,VALUE(MID('CFR - XML import'!$A39,SEARCH(\">\",'CFR - XML import'!$A39,1)+1,SEARCH(\"/\",'CFR - XML import'!$A39,1)-SEARCH(\">\",'CFR - XML import'!$A39,1)-2)))","v":0},null,{"$f":"IF(ISERROR(FIND(Y$3,'CFR - XML import'!$A39)),0,VALUE(MID('CFR - XML import'!$A39,SEARCH(\">\",'CFR - XML import'!$A39,1)+1,SEARCH(\"/\",'CFR - XML import'!$A39,1)-SEARCH(\">\",'CFR - XML import'!$A39,1)-2)))","v":0},{"$f":"IF(ISERROR(FIND(Z$3,'CFR - XML import'!$A39)),0,VALUE(MID('CFR - XML import'!$A39,SEARCH(\">\",'CFR - XML import'!$A39,1)+1,SEARCH(\"/\",'CFR - XML import'!$A39,1)-SEARCH(\">\",'CFR - XML import'!$A39,1)-2)))","v":0},{"$f":"IF(ISERROR(FIND(AA$3,'CFR - XML import'!$A39)),0,VALUE(MID('CFR - XML import'!$A39,SEARCH(\">\",'CFR - XML import'!$A39,1)+1,SEARCH(\"/\",'CFR - XML import'!$A39,1)-SEARCH(\">\",'CFR - XML import'!$A39,1)-2)))","v":0},{"$f":"IF(ISERROR(FIND(AB$3,'CFR - XML import'!$A39)),0,VALUE(MID('CFR - XML import'!$A39,SEARCH(\">\",'CFR - XML import'!$A39,1)+1,SEARCH(\"/\",'CFR - XML import'!$A39,1)-SEARCH(\">\",'CFR - XML import'!$A39,1)-2)))","v":0},{"$f":"IF(ISERROR(FIND(AC$3,'CFR - XML import'!$A39)),0,VALUE(MID('CFR - XML import'!$A39,SEARCH(\">\",'CFR - XML import'!$A39,1)+1,SEARCH(\"/\",'CFR - XML import'!$A39,1)-SEARCH(\">\",'CFR - XML import'!$A39,1)-2)))","v":0},{"$f":"IF(ISERROR(FIND(AD$3,'CFR - XML import'!$A39)),0,VALUE(MID('CFR - XML import'!$A39,SEARCH(\">\",'CFR - XML import'!$A39,1)+1,SEARCH(\"/\",'CFR - XML import'!$A39,1)-SEARCH(\">\",'CFR - XML import'!$A39,1)-2)))","v":0},{"$f":"IF(ISERROR(FIND(AE$3,'CFR - XML import'!$A39)),0,VALUE(MID('CFR - XML import'!$A39,SEARCH(\">\",'CFR - XML import'!$A39,1)+1,SEARCH(\"/\",'CFR - XML import'!$A39,1)-SEARCH(\">\",'CFR - XML import'!$A39,1)-2)))","v":0},{"$f":"IF(ISERROR(FIND(AF$3,'CFR - XML import'!$A39)),0,VALUE(MID('CFR - XML import'!$A39,SEARCH(\">\",'CFR - XML import'!$A39,1)+1,SEARCH(\"/\",'CFR - XML import'!$A39,1)-SEARCH(\">\",'CFR - XML import'!$A39,1)-2)))","v":0},{"$f":"IF(ISERROR(FIND(AG$3,'CFR - XML import'!$A39)),0,VALUE(MID('CFR - XML import'!$A39,SEARCH(\">\",'CFR - XML import'!$A39,1)+1,SEARCH(\"/\",'CFR - XML import'!$A39,1)-SEARCH(\">\",'CFR - XML import'!$A39,1)-2)))","v":0},{"$f":"IF(ISERROR(FIND(AH$3,'CFR - XML import'!$A39)),0,VALUE(MID('CFR - XML import'!$A39,SEARCH(\">\",'CFR - XML import'!$A39,1)+1,SEARCH(\"/\",'CFR - XML import'!$A39,1)-SEARCH(\">\",'CFR - XML import'!$A39,1)-2)))","v":0},{"$f":"IF(ISERROR(FIND(AI$3,'CFR - XML import'!$A39)),0,VALUE(MID('CFR - XML import'!$A39,SEARCH(\">\",'CFR - XML import'!$A39,1)+1,SEARCH(\"/\",'CFR - XML import'!$A39,1)-SEARCH(\">\",'CFR - XML import'!$A39,1)-2)))","v":0},{"$f":"IF(ISERROR(FIND(AJ$3,'CFR - XML import'!$A39)),0,VALUE(MID('CFR - XML import'!$A39,SEARCH(\">\",'CFR - XML import'!$A39,1)+1,SEARCH(\"/\",'CFR - XML import'!$A39,1)-SEARCH(\">\",'CFR - XML import'!$A39,1)-2)))","v":0},{"$f":"IF(ISERROR(FIND(AK$3,'CFR - XML import'!$A39)),0,VALUE(MID('CFR - XML import'!$A39,SEARCH(\">\",'CFR - XML import'!$A39,1)+1,SEARCH(\"/\",'CFR - XML import'!$A39,1)-SEARCH(\">\",'CFR - XML import'!$A39,1)-2)))","v":0},{"$f":"IF(ISERROR(FIND(AL$3,'CFR - XML import'!$A39)),0,VALUE(MID('CFR - XML import'!$A39,SEARCH(\">\",'CFR - XML import'!$A39,1)+1,SEARCH(\"/\",'CFR - XML import'!$A39,1)-SEARCH(\">\",'CFR - XML import'!$A39,1)-2)))","v":0},{"$f":"IF(ISERROR(FIND(AM$3,'CFR - XML import'!$A39)),0,VALUE(MID('CFR - XML import'!$A39,SEARCH(\">\",'CFR - XML import'!$A39,1)+1,SEARCH(\"/\",'CFR - XML import'!$A39,1)-SEARCH(\">\",'CFR - XML import'!$A39,1)-2)))","v":0},{"$f":"IF(ISERROR(FIND(AN$3,'CFR - XML import'!$A39)),0,VALUE(MID('CFR - XML import'!$A39,SEARCH(\">\",'CFR - XML import'!$A39,1)+1,SEARCH(\"/\",'CFR - XML import'!$A39,1)-SEARCH(\">\",'CFR - XML import'!$A39,1)-2)))","v":0},{"$f":"IF(ISERROR(FIND(AO$3,'CFR - XML import'!$A39)),0,VALUE(MID('CFR - XML import'!$A39,SEARCH(\">\",'CFR - XML import'!$A39,1)+1,SEARCH(\"/\",'CFR - XML import'!$A39,1)-SEARCH(\">\",'CFR - XML import'!$A39,1)-2)))","v":0},{"$f":"IF(ISERROR(FIND(AP$3,'CFR - XML import'!$A39)),0,VALUE(MID('CFR - XML import'!$A39,SEARCH(\">\",'CFR - XML import'!$A39,1)+1,SEARCH(\"/\",'CFR - XML import'!$A39,1)-SEARCH(\">\",'CFR - XML import'!$A39,1)-2)))","v":0},{"$f":"IF(ISERROR(FIND(AQ$3,'CFR - XML import'!$A39)),0,VALUE(MID('CFR - XML import'!$A39,SEARCH(\">\",'CFR - XML import'!$A39,1)+1,SEARCH(\"/\",'CFR - XML import'!$A39,1)-SEARCH(\">\",'CFR - XML import'!$A39,1)-2)))","v":0},{"$f":"IF(ISERROR(FIND(AR$3,'CFR - XML import'!$A39)),0,VALUE(MID('CFR - XML import'!$A39,SEARCH(\">\",'CFR - XML import'!$A39,1)+1,SEARCH(\"/\",'CFR - XML import'!$A39,1)-SEARCH(\">\",'CFR - XML import'!$A39,1)-2)))","v":0},{"$f":"IF(ISERROR(FIND(AS$3,'CFR - XML import'!$A39)),0,VALUE(MID('CFR - XML import'!$A39,SEARCH(\">\",'CFR - XML import'!$A39,1)+1,SEARCH(\"/\",'CFR - XML import'!$A39,1)-SEARCH(\">\",'CFR - XML import'!$A39,1)-2)))","v":0},{"$f":"IF(ISERROR(FIND(AT$3,'CFR - XML import'!$A39)),0,VALUE(MID('CFR - XML import'!$A39,SEARCH(\">\",'CFR - XML import'!$A39,1)+1,SEARCH(\"/\",'CFR - XML import'!$A39,1)-SEARCH(\">\",'CFR - XML import'!$A39,1)-2)))","v":0},{"$f":"IF(ISERROR(FIND(AU$3,'CFR - XML import'!$A39)),0,VALUE(MID('CFR - XML import'!$A39,SEARCH(\">\",'CFR - XML import'!$A39,1)+1,SEARCH(\"/\",'CFR - XML import'!$A39,1)-SEARCH(\">\",'CFR - XML import'!$A39,1)-2)))","v":0},{"$f":"IF(ISERROR(FIND(AV$3,'CFR - XML import'!$A39)),0,VALUE(MID('CFR - XML import'!$A39,SEARCH(\">\",'CFR - XML import'!$A39,1)+1,SEARCH(\"/\",'CFR - XML import'!$A39,1)-SEARCH(\">\",'CFR - XML import'!$A39,1)-2)))","v":0},{"$f":"IF(ISERROR(FIND(AW$3,'CFR - XML import'!$A39)),0,VALUE(MID('CFR - XML import'!$A39,SEARCH(\">\",'CFR - XML import'!$A39,1)+1,SEARCH(\"/\",'CFR - XML import'!$A39,1)-SEARCH(\">\",'CFR - XML import'!$A39,1)-2)))","v":0},{"$f":"IF(ISERROR(FIND(AX$3,'CFR - XML import'!$A39)),0,VALUE(MID('CFR - XML import'!$A39,SEARCH(\">\",'CFR - XML import'!$A39,1)+1,SEARCH(\"/\",'CFR - XML import'!$A39,1)-SEARCH(\">\",'CFR - XML import'!$A39,1)-2)))","v":0},{"$f":"IF(ISERROR(FIND(AY$3,'CFR - XML import'!$A39)),0,VALUE(MID('CFR - XML import'!$A39,SEARCH(\">\",'CFR - XML import'!$A39,1)+1,SEARCH(\"/\",'CFR - XML import'!$A39,1)-SEARCH(\">\",'CFR - XML import'!$A39,1)-2)))","v":0},{"$f":"IF(ISERROR(FIND(AZ$3,'CFR - XML import'!$A39)),0,VALUE(MID('CFR - XML import'!$A39,SEARCH(\">\",'CFR - XML import'!$A39,1)+1,SEARCH(\"/\",'CFR - XML import'!$A39,1)-SEARCH(\">\",'CFR - XML import'!$A39,1)-2)))","v":0},{"$f":"IF(ISERROR(FIND(BA$3,'CFR - XML import'!$A39)),0,VALUE(MID('CFR - XML import'!$A39,SEARCH(\">\",'CFR - XML import'!$A39,1)+1,SEARCH(\"/\",'CFR - XML import'!$A39,1)-SEARCH(\">\",'CFR - XML import'!$A39,1)-2)))","v":0},{"$f":"IF(ISERROR(FIND(BB$3,'CFR - XML import'!$A39)),0,VALUE(MID('CFR - XML import'!$A39,SEARCH(\">\",'CFR - XML import'!$A39,1)+1,SEARCH(\"/\",'CFR - XML import'!$A39,1)-SEARCH(\">\",'CFR - XML import'!$A39,1)-2)))","v":0},{"$f":"IF(ISERROR(FIND(BC$3,'CFR - XML import'!$A39)),0,VALUE(MID('CFR - XML import'!$A39,SEARCH(\">\",'CFR - XML import'!$A39,1)+1,SEARCH(\"/\",'CFR - XML import'!$A39,1)-SEARCH(\">\",'CFR - XML import'!$A39,1)-2)))","v":0},{"$f":"IF(ISERROR(FIND(BD$3,'CFR - XML import'!$A39)),0,VALUE(MID('CFR - XML import'!$A39,SEARCH(\">\",'CFR - XML import'!$A39,1)+1,SEARCH(\"/\",'CFR - XML import'!$A39,1)-SEARCH(\">\",'CFR - XML import'!$A39,1)-2)))","v":0},{"$f":"IF(ISERROR(FIND(BE$3,'CFR - XML import'!$A39)),0,VALUE(MID('CFR - XML import'!$A39,SEARCH(\">\",'CFR - XML import'!$A39,1)+1,SEARCH(\"/\",'CFR - XML import'!$A39,1)-SEARCH(\">\",'CFR - XML import'!$A39,1)-2)))","v":0},{"$f":"IF(ISERROR(FIND(BF$3,'CFR - XML import'!$A39)),0,VALUE(MID('CFR - XML import'!$A39,SEARCH(\">\",'CFR - XML import'!$A39,1)+1,SEARCH(\"/\",'CFR - XML import'!$A39,1)-SEARCH(\">\",'CFR - XML import'!$A39,1)-2)))","v":0},{"$f":"IF(ISERROR(FIND(BG$3,'CFR - XML import'!$A39)),0,VALUE(MID('CFR - XML import'!$A39,SEARCH(\">\",'CFR - XML import'!$A39,1)+1,SEARCH(\"/\",'CFR - XML import'!$A39,1)-SEARCH(\">\",'CFR - XML import'!$A39,1)-2)))","v":0},{"$f":"IF(ISERROR(FIND(BH$3,'CFR - XML import'!$A39)),0,VALUE(MID('CFR - XML import'!$A39,SEARCH(\">\",'CFR - XML import'!$A39,1)+1,SEARCH(\"/\",'CFR - XML import'!$A39,1)-SEARCH(\">\",'CFR - XML import'!$A39,1)-2)))","v":0},{"$f":"IF(ISERROR(FIND(BI$3,'CFR - XML import'!$A39)),0,VALUE(MID('CFR - XML import'!$A39,SEARCH(\">\",'CFR - XML import'!$A39,1)+1,SEARCH(\"/\",'CFR - XML import'!$A39,1)-SEARCH(\">\",'CFR - XML import'!$A39,1)-2)))","v":0},{"$f":"IF(ISERROR(FIND(BJ$3,'CFR - XML import'!$A39)),0,VALUE(MID('CFR - XML import'!$A39,SEARCH(\">\",'CFR - XML import'!$A39,1)+1,SEARCH(\"/\",'CFR - XML import'!$A39,1)-SEARCH(\">\",'CFR - XML import'!$A39,1)-2)))","v":0},{"$f":"IF(ISERROR(FIND(BK$3,'CFR - XML import'!$A39)),0,VALUE(MID('CFR - XML import'!$A39,SEARCH(\">\",'CFR - XML import'!$A39,1)+1,SEARCH(\"/\",'CFR - XML import'!$A39,1)-SEARCH(\">\",'CFR - XML import'!$A39,1)-2)))","v":0},{"$f":"IF(ISERROR(FIND(BL$3,'CFR - XML import'!$A39)),0,VALUE(MID('CFR - XML import'!$A39,SEARCH(\">\",'CFR - XML import'!$A39,1)+1,SEARCH(\"/\",'CFR - XML import'!$A39,1)-SEARCH(\">\",'CFR - XML import'!$A39,1)-2)))","v":0},{"$f":"IF(ISERROR(FIND(BM$3,'CFR - XML import'!$A39)),0,VALUE(MID('CFR - XML import'!$A39,SEARCH(\">\",'CFR - XML import'!$A39,1)+1,SEARCH(\"/\",'CFR - XML import'!$A39,1)-SEARCH(\">\",'CFR - XML import'!$A39,1)-2)))","v":0},{"$f":"IF(ISERROR(FIND(BN$3,'CFR - XML import'!$A39)),0,VALUE(MID('CFR - XML import'!$A39,SEARCH(\">\",'CFR - XML import'!$A39,1)+1,SEARCH(\"/\",'CFR - XML import'!$A39,1)-SEARCH(\">\",'CFR - XML import'!$A39,1)-2)))","v":0},{"$f":"IF(ISERROR(FIND(BO$3,'CFR - XML import'!$A39)),0,VALUE(MID('CFR - XML import'!$A39,SEARCH(\">\",'CFR - XML import'!$A39,1)+1,SEARCH(\"/\",'CFR - XML import'!$A39,1)-SEARCH(\">\",'CFR - XML import'!$A39,1)-2)))","v":0},{"$f":"IF(ISERROR(FIND(BP$3,'CFR - XML import'!$A39)),0,VALUE(MID('CFR - XML import'!$A39,SEARCH(\">\",'CFR - XML import'!$A39,1)+1,SEARCH(\"/\",'CFR - XML import'!$A39,1)-SEARCH(\">\",'CFR - XML import'!$A39,1)-2)))","v":0},{"$f":"IF(ISERROR(FIND(BQ$3,'CFR - XML import'!$A39)),0,VALUE(MID('CFR - XML import'!$A39,SEARCH(\">\",'CFR - XML import'!$A39,1)+1,SEARCH(\"/\",'CFR - XML import'!$A39,1)-SEARCH(\">\",'CFR - XML import'!$A39,1)-2)))","v":0},{"$f":"IF(ISERROR(FIND(BR$3,'CFR - XML import'!$A39)),0,VALUE(MID('CFR - XML import'!$A39,SEARCH(\">\",'CFR - XML import'!$A39,1)+1,SEARCH(\"/\",'CFR - XML import'!$A39,1)-SEARCH(\">\",'CFR - XML import'!$A39,1)-2)))","v":0},{"$f":"IF(ISERROR(FIND(BS$3,'CFR - XML import'!$A39)),0,VALUE(MID('CFR - XML import'!$A39,SEARCH(\">\",'CFR - XML import'!$A39,1)+1,SEARCH(\"/\",'CFR - XML import'!$A39,1)-SEARCH(\">\",'CFR - XML import'!$A39,1)-2)))","v":0},{"$f":"IF(ISERROR(FIND(BT$3,'CFR - XML import'!$A39)),0,VALUE(MID('CFR - XML import'!$A39,SEARCH(\">\",'CFR - XML import'!$A39,1)+1,SEARCH(\"/\",'CFR - XML import'!$A39,1)-SEARCH(\">\",'CFR - XML import'!$A39,1)-2)))","v":0},{"$f":"IF(ISERROR(FIND(BU$3,'CFR - XML import'!$A39)),0,VALUE(MID('CFR - XML import'!$A39,SEARCH(\">\",'CFR - XML import'!$A39,1)+1,SEARCH(\"/\",'CFR - XML import'!$A39,1)-SEARCH(\">\",'CFR - XML import'!$A39,1)-2)))","v":0},{"$f":"IF(ISERROR(FIND(BV$3,'CFR - XML import'!$A39)),0,VALUE(MID('CFR - XML import'!$A39,SEARCH(\">\",'CFR - XML import'!$A39,1)+1,SEARCH(\"/\",'CFR - XML import'!$A39,1)-SEARCH(\">\",'CFR - XML import'!$A39,1)-2)))","v":0},{"$f":"IF(ISERROR(FIND(BW$3,'CFR - XML import'!$A39)),0,VALUE(MID('CFR - XML import'!$A39,SEARCH(\">\",'CFR - XML import'!$A39,1)+1,SEARCH(\"/\",'CFR - XML import'!$A39,1)-SEARCH(\">\",'CFR - XML import'!$A39,1)-2)))","v":0},{"$f":"IF(ISERROR(FIND(BX$3,'CFR - XML import'!$A39)),0,VALUE(MID('CFR - XML import'!$A39,SEARCH(\">\",'CFR - XML import'!$A39,1)+1,SEARCH(\"/\",'CFR - XML import'!$A39,1)-SEARCH(\">\",'CFR - XML import'!$A39,1)-2)))","v":0},{"$f":"IF(ISERROR(FIND(BY$3,'CFR - XML import'!$A39)),0,VALUE(MID('CFR - XML import'!$A39,SEARCH(\">\",'CFR - XML import'!$A39,1)+1,SEARCH(\"/\",'CFR - XML import'!$A39,1)-SEARCH(\">\",'CFR - XML import'!$A39,1)-2)))","v":0},{"$f":"IF(ISERROR(FIND(BZ$3,'CFR - XML import'!$A39)),0,VALUE(MID('CFR - XML import'!$A39,SEARCH(\">\",'CFR - XML import'!$A39,1)+1,SEARCH(\"/\",'CFR - XML import'!$A39,1)-SEARCH(\">\",'CFR - XML import'!$A39,1)-2)))","v":0},null,null,null,null,null,null,{"$f":"IF(ISERROR(IF(MID('CFR - XML import'!$A39,LEN($CF$4)+1,LEN('CFR - XML import'!$A39)-(2*LEN($CF$4)+1))=\"RMMS\",1,IF(MID('CFR - XML import'!$A39,LEN(\"    <InputSystem>\")+1,LEN('CFR - XML import'!$A39)-(LEN(\"    <InputSystem>\")+LEN($CF$4)+1))=\"SIMS\",2,0))),0,IF(MID('CFR - XML import'!$A39,LEN($CF$4)+1,LEN('CFR - XML import'!$A39)-(2*LEN($CF$4)+1))=\"RMMS\",1,IF(MID('CFR - XML import'!$A39,LEN(\"    <InputSystem>\")+1,LEN('CFR - XML import'!$A39)-(LEN(\"    <InputSystem>\")+LEN($CF$4)+1))=\"SIMS\",2,0)))","v":0},{"$f":"IF(ISERROR(FIND(CH$3,'CFR - XML import'!$A39)),0,MID('CFR - XML import'!$A39,SEARCH(\">\",'CFR - XML import'!$A39,1)+1,SEARCH(\"/\",'CFR - XML import'!$A39,1)-SEARCH(\">\",'CFR - XML import'!$A39,1)-2))","v":0},{"$f":"IF(ISERROR(FIND(CI$3,'CFR - XML import'!$A39)),0,MID('CFR - XML import'!$A39,SEARCH(\">\",'CFR - XML import'!$A39,1)+1,SEARCH(\"/\",'CFR - XML import'!$A39,1)-SEARCH(\">\",'CFR - XML import'!$A39,1)-2))","v":0},{"$f":"IF(ISERROR(FIND(CJ$3,'CFR - XML import'!$A39)),0,MID('CFR - XML import'!$A39,SEARCH(\">\",'CFR - XML import'!$A39,1)+1,SEARCH(\"/\",'CFR - XML import'!$A39,1)-SEARCH(\">\",'CFR - XML import'!$A39,1)-2))","v":0},{"$f":"IF(ISERROR(FIND(CK$3,'CFR - XML import'!$A39)),0,MID('CFR - XML import'!$A39,SEARCH(\">\",'CFR - XML import'!$A39,1)+1,SEARCH(\"/\",'CFR - XML import'!$A39,1)-SEARCH(\">\",'CFR - XML import'!$A39,1)-2))","v":0},{"$f":"IF(ISERROR(FIND(CL$3,'CFR - XML import'!$A39)),0,MID('CFR - XML import'!$A39,SEARCH(\">\",'CFR - XML import'!$A39,1)+1,SEARCH(\"/\",'CFR - XML import'!$A39,1)-SEARCH(\">\",'CFR - XML import'!$A39,1)-2))","v":0}]
[{"$f":"IF(AND('CFR - XML import'!A40<>\"\",LEFT('CFR - XML import'!A40,1)<>\"<\",LEFT('CFR - XML import'!A40,3)<>\"  <\",LEFT('CFR - XML import'!A40,5)<>\"    <\",LEFT('CFR - XML import'!A40,7)<>\"      <\",LEFT('CFR - XML import'!A40,9)<>\"        <\",$B$1=\"SIMS\"),'CFR - XML import'!A40,IF(AND(LEFT('CFR - XML import'!A40,9)=\"<Details>\",$B$1=\"RM\"),'CFR - XML import'!A40,\"\"))","v":""},{"$f":"IF(ISERROR(FIND(B$3,'CFR - XML import'!$A40)),0,VALUE(MID('CFR - XML import'!$A40,SEARCH(\">\",'CFR - XML import'!$A40,1)+1,SEARCH(\"/\",'CFR - XML import'!$A40,1)-SEARCH(\">\",'CFR - XML import'!$A40,1)-2)))","v":0},null,{"$f":"IF(ISERROR(FIND(D$3,'CFR - XML import'!$A40)),0,MID('CFR - XML import'!$A40,SEARCH(\">\",'CFR - XML import'!$A40,1)+1,SEARCH(\"/\",'CFR - XML import'!$A40,1)-SEARCH(\">\",'CFR - XML import'!$A40,1)-2))","v":0},{"$f":"IF(ISERROR(FIND(E$3,'CFR - XML import'!$A40)),0,MID('CFR - XML import'!$A40,SEARCH(\">\",'CFR - XML import'!$A40,1)+1,SEARCH(\"/\",'CFR - XML import'!$A40,1)-SEARCH(\">\",'CFR - XML import'!$A40,1)-2))","v":0},{"$f":"IF($B$1=\"SIMS\",IF(ISERROR(FIND(F$3,'CFR - XML import'!$A40)),0,VALUE(MID('CFR - XML import'!$A40,15,10))),IF(ISERROR(FIND(F$3,'CFR - XML import'!$A40)),0,VALUE(MID('CFR - XML import'!$A40,11,10))))","v":"00:00:00"},{"$f":"IF(ISERROR(FIND(G$3,'CFR - XML import'!$A40)),0,VALUE(MID('CFR - XML import'!$A40,SEARCH(\">\",'CFR - XML import'!$A40,1)+1,SEARCH(\"/\",'CFR - XML import'!$A40,1)-SEARCH(\">\",'CFR - XML import'!$A40,1)-2)))","v":0},{"$f":"IF(ISERROR(FIND(H$3,'CFR - XML import'!$A40)),0,VALUE(MID('CFR - XML import'!$A40,SEARCH(\">\",'CFR - XML import'!$A40,1)+1,SEARCH(\"/\",'CFR - XML import'!$A40,1)-SEARCH(\">\",'CFR - XML import'!$A40,1)-2)))","v":0},{"$f":"IF(ISERROR(FIND(I$3,'CFR - XML import'!$A40)),0,VALUE(MID('CFR - XML import'!$A40,SEARCH(\">\",'CFR - XML import'!$A40,1)+1,SEARCH(\"/\",'CFR - XML import'!$A40,1)-SEARCH(\">\",'CFR - XML import'!$A40,1)-2)))","v":0},{"$f":"IF(ISERROR(FIND(J$3,'CFR - XML import'!$A40)),0,VALUE(MID('CFR - XML import'!$A40,SEARCH(\">\",'CFR - XML import'!$A40,1)+1,SEARCH(\"/\",'CFR - XML import'!$A40,1)-SEARCH(\">\",'CFR - XML import'!$A40,1)-2)))","v":0},{"$f":"IF(ISERROR(FIND(K$3,'CFR - XML import'!$A40)),0,VALUE(MID('CFR - XML import'!$A40,SEARCH(\">\",'CFR - XML import'!$A40,1)+1,SEARCH(\"/\",'CFR - XML import'!$A40,1)-SEARCH(\">\",'CFR - XML import'!$A40,1)-2)))","v":0},{"$f":"IF(ISERROR(FIND(L$3,'CFR - XML import'!$A40)),0,VALUE(MID('CFR - XML import'!$A40,SEARCH(\">\",'CFR - XML import'!$A40,1)+1,SEARCH(\"/\",'CFR - XML import'!$A40,1)-SEARCH(\">\",'CFR - XML import'!$A40,1)-2)))","v":0},{"$f":"IF(ISERROR(FIND(M$3,'CFR - XML import'!$A40)),0,VALUE(MID('CFR - XML import'!$A40,SEARCH(\">\",'CFR - XML import'!$A40,1)+1,SEARCH(\"/\",'CFR - XML import'!$A40,1)-SEARCH(\">\",'CFR - XML import'!$A40,1)-2)))","v":0},{"$f":"IF(ISERROR(FIND(N$3,'CFR - XML import'!$A40)),0,VALUE(MID('CFR - XML import'!$A40,SEARCH(\">\",'CFR - XML import'!$A40,1)+1,SEARCH(\"/\",'CFR - XML import'!$A40,1)-SEARCH(\">\",'CFR - XML import'!$A40,1)-2)))","v":0},{"$f":"IF(ISERROR(FIND(O$3,'CFR - XML import'!$A40)),0,VALUE(MID('CFR - XML import'!$A40,SEARCH(\">\",'CFR - XML import'!$A40,1)+1,SEARCH(\"/\",'CFR - XML import'!$A40,1)-SEARCH(\">\",'CFR - XML import'!$A40,1)-2)))","v":0},{"$f":"IF(ISERROR(FIND(P$3,'CFR - XML import'!$A40)),0,VALUE(MID('CFR - XML import'!$A40,SEARCH(\">\",'CFR - XML import'!$A40,1)+1,SEARCH(\"/\",'CFR - XML import'!$A40,1)-SEARCH(\">\",'CFR - XML import'!$A40,1)-2)))","v":0},{"$f":"IF(ISERROR(FIND(Q$3,'CFR - XML import'!$A40)),0,VALUE(MID('CFR - XML import'!$A40,SEARCH(\">\",'CFR - XML import'!$A40,1)+1,SEARCH(\"/\",'CFR - XML import'!$A40,1)-SEARCH(\">\",'CFR - XML import'!$A40,1)-2)))","v":0},{"$f":"IF(ISERROR(FIND(R$3,'CFR - XML import'!$A40)),0,VALUE(MID('CFR - XML import'!$A40,SEARCH(\">\",'CFR - XML import'!$A40,1)+1,SEARCH(\"/\",'CFR - XML import'!$A40,1)-SEARCH(\">\",'CFR - XML import'!$A40,1)-2)))","v":0},{"$f":"IF(ISERROR(FIND(S$3,'CFR - XML import'!$A40)),0,VALUE(MID('CFR - XML import'!$A40,SEARCH(\">\",'CFR - XML import'!$A40,1)+1,SEARCH(\"/\",'CFR - XML import'!$A40,1)-SEARCH(\">\",'CFR - XML import'!$A40,1)-2)))","v":0},{"$f":"IF(ISERROR(FIND(T$3,'CFR - XML import'!$A40)),0,VALUE(MID('CFR - XML import'!$A40,SEARCH(\">\",'CFR - XML import'!$A40,1)+1,SEARCH(\"/\",'CFR - XML import'!$A40,1)-SEARCH(\">\",'CFR - XML import'!$A40,1)-2)))","v":0},{"$f":"IF(ISERROR(FIND(U$3,'CFR - XML import'!$A40)),0,VALUE(MID('CFR - XML import'!$A40,SEARCH(\">\",'CFR - XML import'!$A40,1)+1,SEARCH(\"/\",'CFR - XML import'!$A40,1)-SEARCH(\">\",'CFR - XML import'!$A40,1)-2)))","v":0},{"$f":"IF(ISERROR(FIND(V$3,'CFR - XML import'!$A40)),0,VALUE(MID('CFR - XML import'!$A40,SEARCH(\">\",'CFR - XML import'!$A40,1)+1,SEARCH(\"/\",'CFR - XML import'!$A40,1)-SEARCH(\">\",'CFR - XML import'!$A40,1)-2)))","v":0},{"$f":"IF(ISERROR(FIND(W$3,'CFR - XML import'!$A40)),0,VALUE(MID('CFR - XML import'!$A40,SEARCH(\">\",'CFR - XML import'!$A40,1)+1,SEARCH(\"/\",'CFR - XML import'!$A40,1)-SEARCH(\">\",'CFR - XML import'!$A40,1)-2)))","v":0},null,{"$f":"IF(ISERROR(FIND(Y$3,'CFR - XML import'!$A40)),0,VALUE(MID('CFR - XML import'!$A40,SEARCH(\">\",'CFR - XML import'!$A40,1)+1,SEARCH(\"/\",'CFR - XML import'!$A40,1)-SEARCH(\">\",'CFR - XML import'!$A40,1)-2)))","v":0},{"$f":"IF(ISERROR(FIND(Z$3,'CFR - XML import'!$A40)),0,VALUE(MID('CFR - XML import'!$A40,SEARCH(\">\",'CFR - XML import'!$A40,1)+1,SEARCH(\"/\",'CFR - XML import'!$A40,1)-SEARCH(\">\",'CFR - XML import'!$A40,1)-2)))","v":0},{"$f":"IF(ISERROR(FIND(AA$3,'CFR - XML import'!$A40)),0,VALUE(MID('CFR - XML import'!$A40,SEARCH(\">\",'CFR - XML import'!$A40,1)+1,SEARCH(\"/\",'CFR - XML import'!$A40,1)-SEARCH(\">\",'CFR - XML import'!$A40,1)-2)))","v":0},{"$f":"IF(ISERROR(FIND(AB$3,'CFR - XML import'!$A40)),0,VALUE(MID('CFR - XML import'!$A40,SEARCH(\">\",'CFR - XML import'!$A40,1)+1,SEARCH(\"/\",'CFR - XML import'!$A40,1)-SEARCH(\">\",'CFR - XML import'!$A40,1)-2)))","v":0},{"$f":"IF(ISERROR(FIND(AC$3,'CFR - XML import'!$A40)),0,VALUE(MID('CFR - XML import'!$A40,SEARCH(\">\",'CFR - XML import'!$A40,1)+1,SEARCH(\"/\",'CFR - XML import'!$A40,1)-SEARCH(\">\",'CFR - XML import'!$A40,1)-2)))","v":0},{"$f":"IF(ISERROR(FIND(AD$3,'CFR - XML import'!$A40)),0,VALUE(MID('CFR - XML import'!$A40,SEARCH(\">\",'CFR - XML import'!$A40,1)+1,SEARCH(\"/\",'CFR - XML import'!$A40,1)-SEARCH(\">\",'CFR - XML import'!$A40,1)-2)))","v":0},{"$f":"IF(ISERROR(FIND(AE$3,'CFR - XML import'!$A40)),0,VALUE(MID('CFR - XML import'!$A40,SEARCH(\">\",'CFR - XML import'!$A40,1)+1,SEARCH(\"/\",'CFR - XML import'!$A40,1)-SEARCH(\">\",'CFR - XML import'!$A40,1)-2)))","v":0},{"$f":"IF(ISERROR(FIND(AF$3,'CFR - XML import'!$A40)),0,VALUE(MID('CFR - XML import'!$A40,SEARCH(\">\",'CFR - XML import'!$A40,1)+1,SEARCH(\"/\",'CFR - XML import'!$A40,1)-SEARCH(\">\",'CFR - XML import'!$A40,1)-2)))","v":0},{"$f":"IF(ISERROR(FIND(AG$3,'CFR - XML import'!$A40)),0,VALUE(MID('CFR - XML import'!$A40,SEARCH(\">\",'CFR - XML import'!$A40,1)+1,SEARCH(\"/\",'CFR - XML import'!$A40,1)-SEARCH(\">\",'CFR - XML import'!$A40,1)-2)))","v":0},{"$f":"IF(ISERROR(FIND(AH$3,'CFR - XML import'!$A40)),0,VALUE(MID('CFR - XML import'!$A40,SEARCH(\">\",'CFR - XML import'!$A40,1)+1,SEARCH(\"/\",'CFR - XML import'!$A40,1)-SEARCH(\">\",'CFR - XML import'!$A40,1)-2)))","v":0},{"$f":"IF(ISERROR(FIND(AI$3,'CFR - XML import'!$A40)),0,VALUE(MID('CFR - XML import'!$A40,SEARCH(\">\",'CFR - XML import'!$A40,1)+1,SEARCH(\"/\",'CFR - XML import'!$A40,1)-SEARCH(\">\",'CFR - XML import'!$A40,1)-2)))","v":0},{"$f":"IF(ISERROR(FIND(AJ$3,'CFR - XML import'!$A40)),0,VALUE(MID('CFR - XML import'!$A40,SEARCH(\">\",'CFR - XML import'!$A40,1)+1,SEARCH(\"/\",'CFR - XML import'!$A40,1)-SEARCH(\">\",'CFR - XML import'!$A40,1)-2)))","v":0},{"$f":"IF(ISERROR(FIND(AK$3,'CFR - XML import'!$A40)),0,VALUE(MID('CFR - XML import'!$A40,SEARCH(\">\",'CFR - XML import'!$A40,1)+1,SEARCH(\"/\",'CFR - XML import'!$A40,1)-SEARCH(\">\",'CFR - XML import'!$A40,1)-2)))","v":0},{"$f":"IF(ISERROR(FIND(AL$3,'CFR - XML import'!$A40)),0,VALUE(MID('CFR - XML import'!$A40,SEARCH(\">\",'CFR - XML import'!$A40,1)+1,SEARCH(\"/\",'CFR - XML import'!$A40,1)-SEARCH(\">\",'CFR - XML import'!$A40,1)-2)))","v":0},{"$f":"IF(ISERROR(FIND(AM$3,'CFR - XML import'!$A40)),0,VALUE(MID('CFR - XML import'!$A40,SEARCH(\">\",'CFR - XML import'!$A40,1)+1,SEARCH(\"/\",'CFR - XML import'!$A40,1)-SEARCH(\">\",'CFR - XML import'!$A40,1)-2)))","v":0},{"$f":"IF(ISERROR(FIND(AN$3,'CFR - XML import'!$A40)),0,VALUE(MID('CFR - XML import'!$A40,SEARCH(\">\",'CFR - XML import'!$A40,1)+1,SEARCH(\"/\",'CFR - XML import'!$A40,1)-SEARCH(\">\",'CFR - XML import'!$A40,1)-2)))","v":0},{"$f":"IF(ISERROR(FIND(AO$3,'CFR - XML import'!$A40)),0,VALUE(MID('CFR - XML import'!$A40,SEARCH(\">\",'CFR - XML import'!$A40,1)+1,SEARCH(\"/\",'CFR - XML import'!$A40,1)-SEARCH(\">\",'CFR - XML import'!$A40,1)-2)))","v":0},{"$f":"IF(ISERROR(FIND(AP$3,'CFR - XML import'!$A40)),0,VALUE(MID('CFR - XML import'!$A40,SEARCH(\">\",'CFR - XML import'!$A40,1)+1,SEARCH(\"/\",'CFR - XML import'!$A40,1)-SEARCH(\">\",'CFR - XML import'!$A40,1)-2)))","v":0},{"$f":"IF(ISERROR(FIND(AQ$3,'CFR - XML import'!$A40)),0,VALUE(MID('CFR - XML import'!$A40,SEARCH(\">\",'CFR - XML import'!$A40,1)+1,SEARCH(\"/\",'CFR - XML import'!$A40,1)-SEARCH(\">\",'CFR - XML import'!$A40,1)-2)))","v":0},{"$f":"IF(ISERROR(FIND(AR$3,'CFR - XML import'!$A40)),0,VALUE(MID('CFR - XML import'!$A40,SEARCH(\">\",'CFR - XML import'!$A40,1)+1,SEARCH(\"/\",'CFR - XML import'!$A40,1)-SEARCH(\">\",'CFR - XML import'!$A40,1)-2)))","v":0},{"$f":"IF(ISERROR(FIND(AS$3,'CFR - XML import'!$A40)),0,VALUE(MID('CFR - XML import'!$A40,SEARCH(\">\",'CFR - XML import'!$A40,1)+1,SEARCH(\"/\",'CFR - XML import'!$A40,1)-SEARCH(\">\",'CFR - XML import'!$A40,1)-2)))","v":0},{"$f":"IF(ISERROR(FIND(AT$3,'CFR - XML import'!$A40)),0,VALUE(MID('CFR - XML import'!$A40,SEARCH(\">\",'CFR - XML import'!$A40,1)+1,SEARCH(\"/\",'CFR - XML import'!$A40,1)-SEARCH(\">\",'CFR - XML import'!$A40,1)-2)))","v":0},{"$f":"IF(ISERROR(FIND(AU$3,'CFR - XML import'!$A40)),0,VALUE(MID('CFR - XML import'!$A40,SEARCH(\">\",'CFR - XML import'!$A40,1)+1,SEARCH(\"/\",'CFR - XML import'!$A40,1)-SEARCH(\">\",'CFR - XML import'!$A40,1)-2)))","v":0},{"$f":"IF(ISERROR(FIND(AV$3,'CFR - XML import'!$A40)),0,VALUE(MID('CFR - XML import'!$A40,SEARCH(\">\",'CFR - XML import'!$A40,1)+1,SEARCH(\"/\",'CFR - XML import'!$A40,1)-SEARCH(\">\",'CFR - XML import'!$A40,1)-2)))","v":0},{"$f":"IF(ISERROR(FIND(AW$3,'CFR - XML import'!$A40)),0,VALUE(MID('CFR - XML import'!$A40,SEARCH(\">\",'CFR - XML import'!$A40,1)+1,SEARCH(\"/\",'CFR - XML import'!$A40,1)-SEARCH(\">\",'CFR - XML import'!$A40,1)-2)))","v":0},{"$f":"IF(ISERROR(FIND(AX$3,'CFR - XML import'!$A40)),0,VALUE(MID('CFR - XML import'!$A40,SEARCH(\">\",'CFR - XML import'!$A40,1)+1,SEARCH(\"/\",'CFR - XML import'!$A40,1)-SEARCH(\">\",'CFR - XML import'!$A40,1)-2)))","v":0},{"$f":"IF(ISERROR(FIND(AY$3,'CFR - XML import'!$A40)),0,VALUE(MID('CFR - XML import'!$A40,SEARCH(\">\",'CFR - XML import'!$A40,1)+1,SEARCH(\"/\",'CFR - XML import'!$A40,1)-SEARCH(\">\",'CFR - XML import'!$A40,1)-2)))","v":0},{"$f":"IF(ISERROR(FIND(AZ$3,'CFR - XML import'!$A40)),0,VALUE(MID('CFR - XML import'!$A40,SEARCH(\">\",'CFR - XML import'!$A40,1)+1,SEARCH(\"/\",'CFR - XML import'!$A40,1)-SEARCH(\">\",'CFR - XML import'!$A40,1)-2)))","v":0},{"$f":"IF(ISERROR(FIND(BA$3,'CFR - XML import'!$A40)),0,VALUE(MID('CFR - XML import'!$A40,SEARCH(\">\",'CFR - XML import'!$A40,1)+1,SEARCH(\"/\",'CFR - XML import'!$A40,1)-SEARCH(\">\",'CFR - XML import'!$A40,1)-2)))","v":0},{"$f":"IF(ISERROR(FIND(BB$3,'CFR - XML import'!$A40)),0,VALUE(MID('CFR - XML import'!$A40,SEARCH(\">\",'CFR - XML import'!$A40,1)+1,SEARCH(\"/\",'CFR - XML import'!$A40,1)-SEARCH(\">\",'CFR - XML import'!$A40,1)-2)))","v":0},{"$f":"IF(ISERROR(FIND(BC$3,'CFR - XML import'!$A40)),0,VALUE(MID('CFR - XML import'!$A40,SEARCH(\">\",'CFR - XML import'!$A40,1)+1,SEARCH(\"/\",'CFR - XML import'!$A40,1)-SEARCH(\">\",'CFR - XML import'!$A40,1)-2)))","v":0},{"$f":"IF(ISERROR(FIND(BD$3,'CFR - XML import'!$A40)),0,VALUE(MID('CFR - XML import'!$A40,SEARCH(\">\",'CFR - XML import'!$A40,1)+1,SEARCH(\"/\",'CFR - XML import'!$A40,1)-SEARCH(\">\",'CFR - XML import'!$A40,1)-2)))","v":0},{"$f":"IF(ISERROR(FIND(BE$3,'CFR - XML import'!$A40)),0,VALUE(MID('CFR - XML import'!$A40,SEARCH(\">\",'CFR - XML import'!$A40,1)+1,SEARCH(\"/\",'CFR - XML import'!$A40,1)-SEARCH(\">\",'CFR - XML import'!$A40,1)-2)))","v":0},{"$f":"IF(ISERROR(FIND(BF$3,'CFR - XML import'!$A40)),0,VALUE(MID('CFR - XML import'!$A40,SEARCH(\">\",'CFR - XML import'!$A40,1)+1,SEARCH(\"/\",'CFR - XML import'!$A40,1)-SEARCH(\">\",'CFR - XML import'!$A40,1)-2)))","v":0},{"$f":"IF(ISERROR(FIND(BG$3,'CFR - XML import'!$A40)),0,VALUE(MID('CFR - XML import'!$A40,SEARCH(\">\",'CFR - XML import'!$A40,1)+1,SEARCH(\"/\",'CFR - XML import'!$A40,1)-SEARCH(\">\",'CFR - XML import'!$A40,1)-2)))","v":0},{"$f":"IF(ISERROR(FIND(BH$3,'CFR - XML import'!$A40)),0,VALUE(MID('CFR - XML import'!$A40,SEARCH(\">\",'CFR - XML import'!$A40,1)+1,SEARCH(\"/\",'CFR - XML import'!$A40,1)-SEARCH(\">\",'CFR - XML import'!$A40,1)-2)))","v":0},{"$f":"IF(ISERROR(FIND(BI$3,'CFR - XML import'!$A40)),0,VALUE(MID('CFR - XML import'!$A40,SEARCH(\">\",'CFR - XML import'!$A40,1)+1,SEARCH(\"/\",'CFR - XML import'!$A40,1)-SEARCH(\">\",'CFR - XML import'!$A40,1)-2)))","v":0},{"$f":"IF(ISERROR(FIND(BJ$3,'CFR - XML import'!$A40)),0,VALUE(MID('CFR - XML import'!$A40,SEARCH(\">\",'CFR - XML import'!$A40,1)+1,SEARCH(\"/\",'CFR - XML import'!$A40,1)-SEARCH(\">\",'CFR - XML import'!$A40,1)-2)))","v":0},{"$f":"IF(ISERROR(FIND(BK$3,'CFR - XML import'!$A40)),0,VALUE(MID('CFR - XML import'!$A40,SEARCH(\">\",'CFR - XML import'!$A40,1)+1,SEARCH(\"/\",'CFR - XML import'!$A40,1)-SEARCH(\">\",'CFR - XML import'!$A40,1)-2)))","v":0},{"$f":"IF(ISERROR(FIND(BL$3,'CFR - XML import'!$A40)),0,VALUE(MID('CFR - XML import'!$A40,SEARCH(\">\",'CFR - XML import'!$A40,1)+1,SEARCH(\"/\",'CFR - XML import'!$A40,1)-SEARCH(\">\",'CFR - XML import'!$A40,1)-2)))","v":0},{"$f":"IF(ISERROR(FIND(BM$3,'CFR - XML import'!$A40)),0,VALUE(MID('CFR - XML import'!$A40,SEARCH(\">\",'CFR - XML import'!$A40,1)+1,SEARCH(\"/\",'CFR - XML import'!$A40,1)-SEARCH(\">\",'CFR - XML import'!$A40,1)-2)))","v":0},{"$f":"IF(ISERROR(FIND(BN$3,'CFR - XML import'!$A40)),0,VALUE(MID('CFR - XML import'!$A40,SEARCH(\">\",'CFR - XML import'!$A40,1)+1,SEARCH(\"/\",'CFR - XML import'!$A40,1)-SEARCH(\">\",'CFR - XML import'!$A40,1)-2)))","v":0},{"$f":"IF(ISERROR(FIND(BO$3,'CFR - XML import'!$A40)),0,VALUE(MID('CFR - XML import'!$A40,SEARCH(\">\",'CFR - XML import'!$A40,1)+1,SEARCH(\"/\",'CFR - XML import'!$A40,1)-SEARCH(\">\",'CFR - XML import'!$A40,1)-2)))","v":0},{"$f":"IF(ISERROR(FIND(BP$3,'CFR - XML import'!$A40)),0,VALUE(MID('CFR - XML import'!$A40,SEARCH(\">\",'CFR - XML import'!$A40,1)+1,SEARCH(\"/\",'CFR - XML import'!$A40,1)-SEARCH(\">\",'CFR - XML import'!$A40,1)-2)))","v":0},{"$f":"IF(ISERROR(FIND(BQ$3,'CFR - XML import'!$A40)),0,VALUE(MID('CFR - XML import'!$A40,SEARCH(\">\",'CFR - XML import'!$A40,1)+1,SEARCH(\"/\",'CFR - XML import'!$A40,1)-SEARCH(\">\",'CFR - XML import'!$A40,1)-2)))","v":0},{"$f":"IF(ISERROR(FIND(BR$3,'CFR - XML import'!$A40)),0,VALUE(MID('CFR - XML import'!$A40,SEARCH(\">\",'CFR - XML import'!$A40,1)+1,SEARCH(\"/\",'CFR - XML import'!$A40,1)-SEARCH(\">\",'CFR - XML import'!$A40,1)-2)))","v":0},{"$f":"IF(ISERROR(FIND(BS$3,'CFR - XML import'!$A40)),0,VALUE(MID('CFR - XML import'!$A40,SEARCH(\">\",'CFR - XML import'!$A40,1)+1,SEARCH(\"/\",'CFR - XML import'!$A40,1)-SEARCH(\">\",'CFR - XML import'!$A40,1)-2)))","v":0},{"$f":"IF(ISERROR(FIND(BT$3,'CFR - XML import'!$A40)),0,VALUE(MID('CFR - XML import'!$A40,SEARCH(\">\",'CFR - XML import'!$A40,1)+1,SEARCH(\"/\",'CFR - XML import'!$A40,1)-SEARCH(\">\",'CFR - XML import'!$A40,1)-2)))","v":0},{"$f":"IF(ISERROR(FIND(BU$3,'CFR - XML import'!$A40)),0,VALUE(MID('CFR - XML import'!$A40,SEARCH(\">\",'CFR - XML import'!$A40,1)+1,SEARCH(\"/\",'CFR - XML import'!$A40,1)-SEARCH(\">\",'CFR - XML import'!$A40,1)-2)))","v":0},{"$f":"IF(ISERROR(FIND(BV$3,'CFR - XML import'!$A40)),0,VALUE(MID('CFR - XML import'!$A40,SEARCH(\">\",'CFR - XML import'!$A40,1)+1,SEARCH(\"/\",'CFR - XML import'!$A40,1)-SEARCH(\">\",'CFR - XML import'!$A40,1)-2)))","v":0},{"$f":"IF(ISERROR(FIND(BW$3,'CFR - XML import'!$A40)),0,VALUE(MID('CFR - XML import'!$A40,SEARCH(\">\",'CFR - XML import'!$A40,1)+1,SEARCH(\"/\",'CFR - XML import'!$A40,1)-SEARCH(\">\",'CFR - XML import'!$A40,1)-2)))","v":0},{"$f":"IF(ISERROR(FIND(BX$3,'CFR - XML import'!$A40)),0,VALUE(MID('CFR - XML import'!$A40,SEARCH(\">\",'CFR - XML import'!$A40,1)+1,SEARCH(\"/\",'CFR - XML import'!$A40,1)-SEARCH(\">\",'CFR - XML import'!$A40,1)-2)))","v":0},{"$f":"IF(ISERROR(FIND(BY$3,'CFR - XML import'!$A40)),0,VALUE(MID('CFR - XML import'!$A40,SEARCH(\">\",'CFR - XML import'!$A40,1)+1,SEARCH(\"/\",'CFR - XML import'!$A40,1)-SEARCH(\">\",'CFR - XML import'!$A40,1)-2)))","v":0},{"$f":"IF(ISERROR(FIND(BZ$3,'CFR - XML import'!$A40)),0,VALUE(MID('CFR - XML import'!$A40,SEARCH(\">\",'CFR - XML import'!$A40,1)+1,SEARCH(\"/\",'CFR - XML import'!$A40,1)-SEARCH(\">\",'CFR - XML import'!$A40,1)-2)))","v":0},null,null,null,null,null,null,{"$f":"IF(ISERROR(IF(MID('CFR - XML import'!$A40,LEN($CF$4)+1,LEN('CFR - XML import'!$A40)-(2*LEN($CF$4)+1))=\"RMMS\",1,IF(MID('CFR - XML import'!$A40,LEN(\"    <InputSystem>\")+1,LEN('CFR - XML import'!$A40)-(LEN(\"    <InputSystem>\")+LEN($CF$4)+1))=\"SIMS\",2,0))),0,IF(MID('CFR - XML import'!$A40,LEN($CF$4)+1,LEN('CFR - XML import'!$A40)-(2*LEN($CF$4)+1))=\"RMMS\",1,IF(MID('CFR - XML import'!$A40,LEN(\"    <InputSystem>\")+1,LEN('CFR - XML import'!$A40)-(LEN(\"    <InputSystem>\")+LEN($CF$4)+1))=\"SIMS\",2,0)))","v":0},{"$f":"IF(ISERROR(FIND(CH$3,'CFR - XML import'!$A40)),0,MID('CFR - XML import'!$A40,SEARCH(\">\",'CFR - XML import'!$A40,1)+1,SEARCH(\"/\",'CFR - XML import'!$A40,1)-SEARCH(\">\",'CFR - XML import'!$A40,1)-2))","v":0},{"$f":"IF(ISERROR(FIND(CI$3,'CFR - XML import'!$A40)),0,MID('CFR - XML import'!$A40,SEARCH(\">\",'CFR - XML import'!$A40,1)+1,SEARCH(\"/\",'CFR - XML import'!$A40,1)-SEARCH(\">\",'CFR - XML import'!$A40,1)-2))","v":0},{"$f":"IF(ISERROR(FIND(CJ$3,'CFR - XML import'!$A40)),0,MID('CFR - XML import'!$A40,SEARCH(\">\",'CFR - XML import'!$A40,1)+1,SEARCH(\"/\",'CFR - XML import'!$A40,1)-SEARCH(\">\",'CFR - XML import'!$A40,1)-2))","v":0},{"$f":"IF(ISERROR(FIND(CK$3,'CFR - XML import'!$A40)),0,MID('CFR - XML import'!$A40,SEARCH(\">\",'CFR - XML import'!$A40,1)+1,SEARCH(\"/\",'CFR - XML import'!$A40,1)-SEARCH(\">\",'CFR - XML import'!$A40,1)-2))","v":0},{"$f":"IF(ISERROR(FIND(CL$3,'CFR - XML import'!$A40)),0,MID('CFR - XML import'!$A40,SEARCH(\">\",'CFR - XML import'!$A40,1)+1,SEARCH(\"/\",'CFR - XML import'!$A40,1)-SEARCH(\">\",'CFR - XML import'!$A40,1)-2))","v":0}]
[{"$f":"IF(AND('CFR - XML import'!A41<>\"\",LEFT('CFR - XML import'!A41,1)<>\"<\",LEFT('CFR - XML import'!A41,3)<>\"  <\",LEFT('CFR - XML import'!A41,5)<>\"    <\",LEFT('CFR - XML import'!A41,7)<>\"      <\",LEFT('CFR - XML import'!A41,9)<>\"        <\",$B$1=\"SIMS\"),'CFR - XML import'!A41,IF(AND(LEFT('CFR - XML import'!A41,9)=\"<Details>\",$B$1=\"RM\"),'CFR - XML import'!A41,\"\"))","v":""},{"$f":"IF(ISERROR(FIND(B$3,'CFR - XML import'!$A41)),0,VALUE(MID('CFR - XML import'!$A41,SEARCH(\">\",'CFR - XML import'!$A41,1)+1,SEARCH(\"/\",'CFR - XML import'!$A41,1)-SEARCH(\">\",'CFR - XML import'!$A41,1)-2)))","v":0},null,{"$f":"IF(ISERROR(FIND(D$3,'CFR - XML import'!$A41)),0,MID('CFR - XML import'!$A41,SEARCH(\">\",'CFR - XML import'!$A41,1)+1,SEARCH(\"/\",'CFR - XML import'!$A41,1)-SEARCH(\">\",'CFR - XML import'!$A41,1)-2))","v":0},{"$f":"IF(ISERROR(FIND(E$3,'CFR - XML import'!$A41)),0,MID('CFR - XML import'!$A41,SEARCH(\">\",'CFR - XML import'!$A41,1)+1,SEARCH(\"/\",'CFR - XML import'!$A41,1)-SEARCH(\">\",'CFR - XML import'!$A41,1)-2))","v":0},{"$f":"IF($B$1=\"SIMS\",IF(ISERROR(FIND(F$3,'CFR - XML import'!$A41)),0,VALUE(MID('CFR - XML import'!$A41,15,10))),IF(ISERROR(FIND(F$3,'CFR - XML import'!$A41)),0,VALUE(MID('CFR - XML import'!$A41,11,10))))","v":"00:00:00"},{"$f":"IF(ISERROR(FIND(G$3,'CFR - XML import'!$A41)),0,VALUE(MID('CFR - XML import'!$A41,SEARCH(\">\",'CFR - XML import'!$A41,1)+1,SEARCH(\"/\",'CFR - XML import'!$A41,1)-SEARCH(\">\",'CFR - XML import'!$A41,1)-2)))","v":0},{"$f":"IF(ISERROR(FIND(H$3,'CFR - XML import'!$A41)),0,VALUE(MID('CFR - XML import'!$A41,SEARCH(\">\",'CFR - XML import'!$A41,1)+1,SEARCH(\"/\",'CFR - XML import'!$A41,1)-SEARCH(\">\",'CFR - XML import'!$A41,1)-2)))","v":0},{"$f":"IF(ISERROR(FIND(I$3,'CFR - XML import'!$A41)),0,VALUE(MID('CFR - XML import'!$A41,SEARCH(\">\",'CFR - XML import'!$A41,1)+1,SEARCH(\"/\",'CFR - XML import'!$A41,1)-SEARCH(\">\",'CFR - XML import'!$A41,1)-2)))","v":0},{"$f":"IF(ISERROR(FIND(J$3,'CFR - XML import'!$A41)),0,VALUE(MID('CFR - XML import'!$A41,SEARCH(\">\",'CFR - XML import'!$A41,1)+1,SEARCH(\"/\",'CFR - XML import'!$A41,1)-SEARCH(\">\",'CFR - XML import'!$A41,1)-2)))","v":0},{"$f":"IF(ISERROR(FIND(K$3,'CFR - XML import'!$A41)),0,VALUE(MID('CFR - XML import'!$A41,SEARCH(\">\",'CFR - XML import'!$A41,1)+1,SEARCH(\"/\",'CFR - XML import'!$A41,1)-SEARCH(\">\",'CFR - XML import'!$A41,1)-2)))","v":0},{"$f":"IF(ISERROR(FIND(L$3,'CFR - XML import'!$A41)),0,VALUE(MID('CFR - XML import'!$A41,SEARCH(\">\",'CFR - XML import'!$A41,1)+1,SEARCH(\"/\",'CFR - XML import'!$A41,1)-SEARCH(\">\",'CFR - XML import'!$A41,1)-2)))","v":0},{"$f":"IF(ISERROR(FIND(M$3,'CFR - XML import'!$A41)),0,VALUE(MID('CFR - XML import'!$A41,SEARCH(\">\",'CFR - XML import'!$A41,1)+1,SEARCH(\"/\",'CFR - XML import'!$A41,1)-SEARCH(\">\",'CFR - XML import'!$A41,1)-2)))","v":0},{"$f":"IF(ISERROR(FIND(N$3,'CFR - XML import'!$A41)),0,VALUE(MID('CFR - XML import'!$A41,SEARCH(\">\",'CFR - XML import'!$A41,1)+1,SEARCH(\"/\",'CFR - XML import'!$A41,1)-SEARCH(\">\",'CFR - XML import'!$A41,1)-2)))","v":0},{"$f":"IF(ISERROR(FIND(O$3,'CFR - XML import'!$A41)),0,VALUE(MID('CFR - XML import'!$A41,SEARCH(\">\",'CFR - XML import'!$A41,1)+1,SEARCH(\"/\",'CFR - XML import'!$A41,1)-SEARCH(\">\",'CFR - XML import'!$A41,1)-2)))","v":0},{"$f":"IF(ISERROR(FIND(P$3,'CFR - XML import'!$A41)),0,VALUE(MID('CFR - XML import'!$A41,SEARCH(\">\",'CFR - XML import'!$A41,1)+1,SEARCH(\"/\",'CFR - XML import'!$A41,1)-SEARCH(\">\",'CFR - XML import'!$A41,1)-2)))","v":0},{"$f":"IF(ISERROR(FIND(Q$3,'CFR - XML import'!$A41)),0,VALUE(MID('CFR - XML import'!$A41,SEARCH(\">\",'CFR - XML import'!$A41,1)+1,SEARCH(\"/\",'CFR - XML import'!$A41,1)-SEARCH(\">\",'CFR - XML import'!$A41,1)-2)))","v":0},{"$f":"IF(ISERROR(FIND(R$3,'CFR - XML import'!$A41)),0,VALUE(MID('CFR - XML import'!$A41,SEARCH(\">\",'CFR - XML import'!$A41,1)+1,SEARCH(\"/\",'CFR - XML import'!$A41,1)-SEARCH(\">\",'CFR - XML import'!$A41,1)-2)))","v":0},{"$f":"IF(ISERROR(FIND(S$3,'CFR - XML import'!$A41)),0,VALUE(MID('CFR - XML import'!$A41,SEARCH(\">\",'CFR - XML import'!$A41,1)+1,SEARCH(\"/\",'CFR - XML import'!$A41,1)-SEARCH(\">\",'CFR - XML import'!$A41,1)-2)))","v":0},{"$f":"IF(ISERROR(FIND(T$3,'CFR - XML import'!$A41)),0,VALUE(MID('CFR - XML import'!$A41,SEARCH(\">\",'CFR - XML import'!$A41,1)+1,SEARCH(\"/\",'CFR - XML import'!$A41,1)-SEARCH(\">\",'CFR - XML import'!$A41,1)-2)))","v":0},{"$f":"IF(ISERROR(FIND(U$3,'CFR - XML import'!$A41)),0,VALUE(MID('CFR - XML import'!$A41,SEARCH(\">\",'CFR - XML import'!$A41,1)+1,SEARCH(\"/\",'CFR - XML import'!$A41,1)-SEARCH(\">\",'CFR - XML import'!$A41,1)-2)))","v":0},{"$f":"IF(ISERROR(FIND(V$3,'CFR - XML import'!$A41)),0,VALUE(MID('CFR - XML import'!$A41,SEARCH(\">\",'CFR - XML import'!$A41,1)+1,SEARCH(\"/\",'CFR - XML import'!$A41,1)-SEARCH(\">\",'CFR - XML import'!$A41,1)-2)))","v":0},{"$f":"IF(ISERROR(FIND(W$3,'CFR - XML import'!$A41)),0,VALUE(MID('CFR - XML import'!$A41,SEARCH(\">\",'CFR - XML import'!$A41,1)+1,SEARCH(\"/\",'CFR - XML import'!$A41,1)-SEARCH(\">\",'CFR - XML import'!$A41,1)-2)))","v":0},null,{"$f":"IF(ISERROR(FIND(Y$3,'CFR - XML import'!$A41)),0,VALUE(MID('CFR - XML import'!$A41,SEARCH(\">\",'CFR - XML import'!$A41,1)+1,SEARCH(\"/\",'CFR - XML import'!$A41,1)-SEARCH(\">\",'CFR - XML import'!$A41,1)-2)))","v":0},{"$f":"IF(ISERROR(FIND(Z$3,'CFR - XML import'!$A41)),0,VALUE(MID('CFR - XML import'!$A41,SEARCH(\">\",'CFR - XML import'!$A41,1)+1,SEARCH(\"/\",'CFR - XML import'!$A41,1)-SEARCH(\">\",'CFR - XML import'!$A41,1)-2)))","v":0},{"$f":"IF(ISERROR(FIND(AA$3,'CFR - XML import'!$A41)),0,VALUE(MID('CFR - XML import'!$A41,SEARCH(\">\",'CFR - XML import'!$A41,1)+1,SEARCH(\"/\",'CFR - XML import'!$A41,1)-SEARCH(\">\",'CFR - XML import'!$A41,1)-2)))","v":0},{"$f":"IF(ISERROR(FIND(AB$3,'CFR - XML import'!$A41)),0,VALUE(MID('CFR - XML import'!$A41,SEARCH(\">\",'CFR - XML import'!$A41,1)+1,SEARCH(\"/\",'CFR - XML import'!$A41,1)-SEARCH(\">\",'CFR - XML import'!$A41,1)-2)))","v":0},{"$f":"IF(ISERROR(FIND(AC$3,'CFR - XML import'!$A41)),0,VALUE(MID('CFR - XML import'!$A41,SEARCH(\">\",'CFR - XML import'!$A41,1)+1,SEARCH(\"/\",'CFR - XML import'!$A41,1)-SEARCH(\">\",'CFR - XML import'!$A41,1)-2)))","v":0},{"$f":"IF(ISERROR(FIND(AD$3,'CFR - XML import'!$A41)),0,VALUE(MID('CFR - XML import'!$A41,SEARCH(\">\",'CFR - XML import'!$A41,1)+1,SEARCH(\"/\",'CFR - XML import'!$A41,1)-SEARCH(\">\",'CFR - XML import'!$A41,1)-2)))","v":0},{"$f":"IF(ISERROR(FIND(AE$3,'CFR - XML import'!$A41)),0,VALUE(MID('CFR - XML import'!$A41,SEARCH(\">\",'CFR - XML import'!$A41,1)+1,SEARCH(\"/\",'CFR - XML import'!$A41,1)-SEARCH(\">\",'CFR - XML import'!$A41,1)-2)))","v":0},{"$f":"IF(ISERROR(FIND(AF$3,'CFR - XML import'!$A41)),0,VALUE(MID('CFR - XML import'!$A41,SEARCH(\">\",'CFR - XML import'!$A41,1)+1,SEARCH(\"/\",'CFR - XML import'!$A41,1)-SEARCH(\">\",'CFR - XML import'!$A41,1)-2)))","v":0},{"$f":"IF(ISERROR(FIND(AG$3,'CFR - XML import'!$A41)),0,VALUE(MID('CFR - XML import'!$A41,SEARCH(\">\",'CFR - XML import'!$A41,1)+1,SEARCH(\"/\",'CFR - XML import'!$A41,1)-SEARCH(\">\",'CFR - XML import'!$A41,1)-2)))","v":0},{"$f":"IF(ISERROR(FIND(AH$3,'CFR - XML import'!$A41)),0,VALUE(MID('CFR - XML import'!$A41,SEARCH(\">\",'CFR - XML import'!$A41,1)+1,SEARCH(\"/\",'CFR - XML import'!$A41,1)-SEARCH(\">\",'CFR - XML import'!$A41,1)-2)))","v":0},{"$f":"IF(ISERROR(FIND(AI$3,'CFR - XML import'!$A41)),0,VALUE(MID('CFR - XML import'!$A41,SEARCH(\">\",'CFR - XML import'!$A41,1)+1,SEARCH(\"/\",'CFR - XML import'!$A41,1)-SEARCH(\">\",'CFR - XML import'!$A41,1)-2)))","v":0},{"$f":"IF(ISERROR(FIND(AJ$3,'CFR - XML import'!$A41)),0,VALUE(MID('CFR - XML import'!$A41,SEARCH(\">\",'CFR - XML import'!$A41,1)+1,SEARCH(\"/\",'CFR - XML import'!$A41,1)-SEARCH(\">\",'CFR - XML import'!$A41,1)-2)))","v":0},{"$f":"IF(ISERROR(FIND(AK$3,'CFR - XML import'!$A41)),0,VALUE(MID('CFR - XML import'!$A41,SEARCH(\">\",'CFR - XML import'!$A41,1)+1,SEARCH(\"/\",'CFR - XML import'!$A41,1)-SEARCH(\">\",'CFR - XML import'!$A41,1)-2)))","v":0},{"$f":"IF(ISERROR(FIND(AL$3,'CFR - XML import'!$A41)),0,VALUE(MID('CFR - XML import'!$A41,SEARCH(\">\",'CFR - XML import'!$A41,1)+1,SEARCH(\"/\",'CFR - XML import'!$A41,1)-SEARCH(\">\",'CFR - XML import'!$A41,1)-2)))","v":0},{"$f":"IF(ISERROR(FIND(AM$3,'CFR - XML import'!$A41)),0,VALUE(MID('CFR - XML import'!$A41,SEARCH(\">\",'CFR - XML import'!$A41,1)+1,SEARCH(\"/\",'CFR - XML import'!$A41,1)-SEARCH(\">\",'CFR - XML import'!$A41,1)-2)))","v":0},{"$f":"IF(ISERROR(FIND(AN$3,'CFR - XML import'!$A41)),0,VALUE(MID('CFR - XML import'!$A41,SEARCH(\">\",'CFR - XML import'!$A41,1)+1,SEARCH(\"/\",'CFR - XML import'!$A41,1)-SEARCH(\">\",'CFR - XML import'!$A41,1)-2)))","v":0},{"$f":"IF(ISERROR(FIND(AO$3,'CFR - XML import'!$A41)),0,VALUE(MID('CFR - XML import'!$A41,SEARCH(\">\",'CFR - XML import'!$A41,1)+1,SEARCH(\"/\",'CFR - XML import'!$A41,1)-SEARCH(\">\",'CFR - XML import'!$A41,1)-2)))","v":0},{"$f":"IF(ISERROR(FIND(AP$3,'CFR - XML import'!$A41)),0,VALUE(MID('CFR - XML import'!$A41,SEARCH(\">\",'CFR - XML import'!$A41,1)+1,SEARCH(\"/\",'CFR - XML import'!$A41,1)-SEARCH(\">\",'CFR - XML import'!$A41,1)-2)))","v":0},{"$f":"IF(ISERROR(FIND(AQ$3,'CFR - XML import'!$A41)),0,VALUE(MID('CFR - XML import'!$A41,SEARCH(\">\",'CFR - XML import'!$A41,1)+1,SEARCH(\"/\",'CFR - XML import'!$A41,1)-SEARCH(\">\",'CFR - XML import'!$A41,1)-2)))","v":0},{"$f":"IF(ISERROR(FIND(AR$3,'CFR - XML import'!$A41)),0,VALUE(MID('CFR - XML import'!$A41,SEARCH(\">\",'CFR - XML import'!$A41,1)+1,SEARCH(\"/\",'CFR - XML import'!$A41,1)-SEARCH(\">\",'CFR - XML import'!$A41,1)-2)))","v":0},{"$f":"IF(ISERROR(FIND(AS$3,'CFR - XML import'!$A41)),0,VALUE(MID('CFR - XML import'!$A41,SEARCH(\">\",'CFR - XML import'!$A41,1)+1,SEARCH(\"/\",'CFR - XML import'!$A41,1)-SEARCH(\">\",'CFR - XML import'!$A41,1)-2)))","v":0},{"$f":"IF(ISERROR(FIND(AT$3,'CFR - XML import'!$A41)),0,VALUE(MID('CFR - XML import'!$A41,SEARCH(\">\",'CFR - XML import'!$A41,1)+1,SEARCH(\"/\",'CFR - XML import'!$A41,1)-SEARCH(\">\",'CFR - XML import'!$A41,1)-2)))","v":0},{"$f":"IF(ISERROR(FIND(AU$3,'CFR - XML import'!$A41)),0,VALUE(MID('CFR - XML import'!$A41,SEARCH(\">\",'CFR - XML import'!$A41,1)+1,SEARCH(\"/\",'CFR - XML import'!$A41,1)-SEARCH(\">\",'CFR - XML import'!$A41,1)-2)))","v":0},{"$f":"IF(ISERROR(FIND(AV$3,'CFR - XML import'!$A41)),0,VALUE(MID('CFR - XML import'!$A41,SEARCH(\">\",'CFR - XML import'!$A41,1)+1,SEARCH(\"/\",'CFR - XML import'!$A41,1)-SEARCH(\">\",'CFR - XML import'!$A41,1)-2)))","v":0},{"$f":"IF(ISERROR(FIND(AW$3,'CFR - XML import'!$A41)),0,VALUE(MID('CFR - XML import'!$A41,SEARCH(\">\",'CFR - XML import'!$A41,1)+1,SEARCH(\"/\",'CFR - XML import'!$A41,1)-SEARCH(\">\",'CFR - XML import'!$A41,1)-2)))","v":0},{"$f":"IF(ISERROR(FIND(AX$3,'CFR - XML import'!$A41)),0,VALUE(MID('CFR - XML import'!$A41,SEARCH(\">\",'CFR - XML import'!$A41,1)+1,SEARCH(\"/\",'CFR - XML import'!$A41,1)-SEARCH(\">\",'CFR - XML import'!$A41,1)-2)))","v":0},{"$f":"IF(ISERROR(FIND(AY$3,'CFR - XML import'!$A41)),0,VALUE(MID('CFR - XML import'!$A41,SEARCH(\">\",'CFR - XML import'!$A41,1)+1,SEARCH(\"/\",'CFR - XML import'!$A41,1)-SEARCH(\">\",'CFR - XML import'!$A41,1)-2)))","v":0},{"$f":"IF(ISERROR(FIND(AZ$3,'CFR - XML import'!$A41)),0,VALUE(MID('CFR - XML import'!$A41,SEARCH(\">\",'CFR - XML import'!$A41,1)+1,SEARCH(\"/\",'CFR - XML import'!$A41,1)-SEARCH(\">\",'CFR - XML import'!$A41,1)-2)))","v":0},{"$f":"IF(ISERROR(FIND(BA$3,'CFR - XML import'!$A41)),0,VALUE(MID('CFR - XML import'!$A41,SEARCH(\">\",'CFR - XML import'!$A41,1)+1,SEARCH(\"/\",'CFR - XML import'!$A41,1)-SEARCH(\">\",'CFR - XML import'!$A41,1)-2)))","v":0},{"$f":"IF(ISERROR(FIND(BB$3,'CFR - XML import'!$A41)),0,VALUE(MID('CFR - XML import'!$A41,SEARCH(\">\",'CFR - XML import'!$A41,1)+1,SEARCH(\"/\",'CFR - XML import'!$A41,1)-SEARCH(\">\",'CFR - XML import'!$A41,1)-2)))","v":0},{"$f":"IF(ISERROR(FIND(BC$3,'CFR - XML import'!$A41)),0,VALUE(MID('CFR - XML import'!$A41,SEARCH(\">\",'CFR - XML import'!$A41,1)+1,SEARCH(\"/\",'CFR - XML import'!$A41,1)-SEARCH(\">\",'CFR - XML import'!$A41,1)-2)))","v":0},{"$f":"IF(ISERROR(FIND(BD$3,'CFR - XML import'!$A41)),0,VALUE(MID('CFR - XML import'!$A41,SEARCH(\">\",'CFR - XML import'!$A41,1)+1,SEARCH(\"/\",'CFR - XML import'!$A41,1)-SEARCH(\">\",'CFR - XML import'!$A41,1)-2)))","v":0},{"$f":"IF(ISERROR(FIND(BE$3,'CFR - XML import'!$A41)),0,VALUE(MID('CFR - XML import'!$A41,SEARCH(\">\",'CFR - XML import'!$A41,1)+1,SEARCH(\"/\",'CFR - XML import'!$A41,1)-SEARCH(\">\",'CFR - XML import'!$A41,1)-2)))","v":0},{"$f":"IF(ISERROR(FIND(BF$3,'CFR - XML import'!$A41)),0,VALUE(MID('CFR - XML import'!$A41,SEARCH(\">\",'CFR - XML import'!$A41,1)+1,SEARCH(\"/\",'CFR - XML import'!$A41,1)-SEARCH(\">\",'CFR - XML import'!$A41,1)-2)))","v":0},{"$f":"IF(ISERROR(FIND(BG$3,'CFR - XML import'!$A41)),0,VALUE(MID('CFR - XML import'!$A41,SEARCH(\">\",'CFR - XML import'!$A41,1)+1,SEARCH(\"/\",'CFR - XML import'!$A41,1)-SEARCH(\">\",'CFR - XML import'!$A41,1)-2)))","v":0},{"$f":"IF(ISERROR(FIND(BH$3,'CFR - XML import'!$A41)),0,VALUE(MID('CFR - XML import'!$A41,SEARCH(\">\",'CFR - XML import'!$A41,1)+1,SEARCH(\"/\",'CFR - XML import'!$A41,1)-SEARCH(\">\",'CFR - XML import'!$A41,1)-2)))","v":0},{"$f":"IF(ISERROR(FIND(BI$3,'CFR - XML import'!$A41)),0,VALUE(MID('CFR - XML import'!$A41,SEARCH(\">\",'CFR - XML import'!$A41,1)+1,SEARCH(\"/\",'CFR - XML import'!$A41,1)-SEARCH(\">\",'CFR - XML import'!$A41,1)-2)))","v":0},{"$f":"IF(ISERROR(FIND(BJ$3,'CFR - XML import'!$A41)),0,VALUE(MID('CFR - XML import'!$A41,SEARCH(\">\",'CFR - XML import'!$A41,1)+1,SEARCH(\"/\",'CFR - XML import'!$A41,1)-SEARCH(\">\",'CFR - XML import'!$A41,1)-2)))","v":0},{"$f":"IF(ISERROR(FIND(BK$3,'CFR - XML import'!$A41)),0,VALUE(MID('CFR - XML import'!$A41,SEARCH(\">\",'CFR - XML import'!$A41,1)+1,SEARCH(\"/\",'CFR - XML import'!$A41,1)-SEARCH(\">\",'CFR - XML import'!$A41,1)-2)))","v":0},{"$f":"IF(ISERROR(FIND(BL$3,'CFR - XML import'!$A41)),0,VALUE(MID('CFR - XML import'!$A41,SEARCH(\">\",'CFR - XML import'!$A41,1)+1,SEARCH(\"/\",'CFR - XML import'!$A41,1)-SEARCH(\">\",'CFR - XML import'!$A41,1)-2)))","v":0},{"$f":"IF(ISERROR(FIND(BM$3,'CFR - XML import'!$A41)),0,VALUE(MID('CFR - XML import'!$A41,SEARCH(\">\",'CFR - XML import'!$A41,1)+1,SEARCH(\"/\",'CFR - XML import'!$A41,1)-SEARCH(\">\",'CFR - XML import'!$A41,1)-2)))","v":0},{"$f":"IF(ISERROR(FIND(BN$3,'CFR - XML import'!$A41)),0,VALUE(MID('CFR - XML import'!$A41,SEARCH(\">\",'CFR - XML import'!$A41,1)+1,SEARCH(\"/\",'CFR - XML import'!$A41,1)-SEARCH(\">\",'CFR - XML import'!$A41,1)-2)))","v":0},{"$f":"IF(ISERROR(FIND(BO$3,'CFR - XML import'!$A41)),0,VALUE(MID('CFR - XML import'!$A41,SEARCH(\">\",'CFR - XML import'!$A41,1)+1,SEARCH(\"/\",'CFR - XML import'!$A41,1)-SEARCH(\">\",'CFR - XML import'!$A41,1)-2)))","v":0},{"$f":"IF(ISERROR(FIND(BP$3,'CFR - XML import'!$A41)),0,VALUE(MID('CFR - XML import'!$A41,SEARCH(\">\",'CFR - XML import'!$A41,1)+1,SEARCH(\"/\",'CFR - XML import'!$A41,1)-SEARCH(\">\",'CFR - XML import'!$A41,1)-2)))","v":0},{"$f":"IF(ISERROR(FIND(BQ$3,'CFR - XML import'!$A41)),0,VALUE(MID('CFR - XML import'!$A41,SEARCH(\">\",'CFR - XML import'!$A41,1)+1,SEARCH(\"/\",'CFR - XML import'!$A41,1)-SEARCH(\">\",'CFR - XML import'!$A41,1)-2)))","v":0},{"$f":"IF(ISERROR(FIND(BR$3,'CFR - XML import'!$A41)),0,VALUE(MID('CFR - XML import'!$A41,SEARCH(\">\",'CFR - XML import'!$A41,1)+1,SEARCH(\"/\",'CFR - XML import'!$A41,1)-SEARCH(\">\",'CFR - XML import'!$A41,1)-2)))","v":0},{"$f":"IF(ISERROR(FIND(BS$3,'CFR - XML import'!$A41)),0,VALUE(MID('CFR - XML import'!$A41,SEARCH(\">\",'CFR - XML import'!$A41,1)+1,SEARCH(\"/\",'CFR - XML import'!$A41,1)-SEARCH(\">\",'CFR - XML import'!$A41,1)-2)))","v":0},{"$f":"IF(ISERROR(FIND(BT$3,'CFR - XML import'!$A41)),0,VALUE(MID('CFR - XML import'!$A41,SEARCH(\">\",'CFR - XML import'!$A41,1)+1,SEARCH(\"/\",'CFR - XML import'!$A41,1)-SEARCH(\">\",'CFR - XML import'!$A41,1)-2)))","v":0},{"$f":"IF(ISERROR(FIND(BU$3,'CFR - XML import'!$A41)),0,VALUE(MID('CFR - XML import'!$A41,SEARCH(\">\",'CFR - XML import'!$A41,1)+1,SEARCH(\"/\",'CFR - XML import'!$A41,1)-SEARCH(\">\",'CFR - XML import'!$A41,1)-2)))","v":0},{"$f":"IF(ISERROR(FIND(BV$3,'CFR - XML import'!$A41)),0,VALUE(MID('CFR - XML import'!$A41,SEARCH(\">\",'CFR - XML import'!$A41,1)+1,SEARCH(\"/\",'CFR - XML import'!$A41,1)-SEARCH(\">\",'CFR - XML import'!$A41,1)-2)))","v":0},{"$f":"IF(ISERROR(FIND(BW$3,'CFR - XML import'!$A41)),0,VALUE(MID('CFR - XML import'!$A41,SEARCH(\">\",'CFR - XML import'!$A41,1)+1,SEARCH(\"/\",'CFR - XML import'!$A41,1)-SEARCH(\">\",'CFR - XML import'!$A41,1)-2)))","v":0},{"$f":"IF(ISERROR(FIND(BX$3,'CFR - XML import'!$A41)),0,VALUE(MID('CFR - XML import'!$A41,SEARCH(\">\",'CFR - XML import'!$A41,1)+1,SEARCH(\"/\",'CFR - XML import'!$A41,1)-SEARCH(\">\",'CFR - XML import'!$A41,1)-2)))","v":0},{"$f":"IF(ISERROR(FIND(BY$3,'CFR - XML import'!$A41)),0,VALUE(MID('CFR - XML import'!$A41,SEARCH(\">\",'CFR - XML import'!$A41,1)+1,SEARCH(\"/\",'CFR - XML import'!$A41,1)-SEARCH(\">\",'CFR - XML import'!$A41,1)-2)))","v":0},{"$f":"IF(ISERROR(FIND(BZ$3,'CFR - XML import'!$A41)),0,VALUE(MID('CFR - XML import'!$A41,SEARCH(\">\",'CFR - XML import'!$A41,1)+1,SEARCH(\"/\",'CFR - XML import'!$A41,1)-SEARCH(\">\",'CFR - XML import'!$A41,1)-2)))","v":0},null,null,null,null,null,null,{"$f":"IF(ISERROR(IF(MID('CFR - XML import'!$A41,LEN($CF$4)+1,LEN('CFR - XML import'!$A41)-(2*LEN($CF$4)+1))=\"RMMS\",1,IF(MID('CFR - XML import'!$A41,LEN(\"    <InputSystem>\")+1,LEN('CFR - XML import'!$A41)-(LEN(\"    <InputSystem>\")+LEN($CF$4)+1))=\"SIMS\",2,0))),0,IF(MID('CFR - XML import'!$A41,LEN($CF$4)+1,LEN('CFR - XML import'!$A41)-(2*LEN($CF$4)+1))=\"RMMS\",1,IF(MID('CFR - XML import'!$A41,LEN(\"    <InputSystem>\")+1,LEN('CFR - XML import'!$A41)-(LEN(\"    <InputSystem>\")+LEN($CF$4)+1))=\"SIMS\",2,0)))","v":0},{"$f":"IF(ISERROR(FIND(CH$3,'CFR - XML import'!$A41)),0,MID('CFR - XML import'!$A41,SEARCH(\">\",'CFR - XML import'!$A41,1)+1,SEARCH(\"/\",'CFR - XML import'!$A41,1)-SEARCH(\">\",'CFR - XML import'!$A41,1)-2))","v":0},{"$f":"IF(ISERROR(FIND(CI$3,'CFR - XML import'!$A41)),0,MID('CFR - XML import'!$A41,SEARCH(\">\",'CFR - XML import'!$A41,1)+1,SEARCH(\"/\",'CFR - XML import'!$A41,1)-SEARCH(\">\",'CFR - XML import'!$A41,1)-2))","v":0},{"$f":"IF(ISERROR(FIND(CJ$3,'CFR - XML import'!$A41)),0,MID('CFR - XML import'!$A41,SEARCH(\">\",'CFR - XML import'!$A41,1)+1,SEARCH(\"/\",'CFR - XML import'!$A41,1)-SEARCH(\">\",'CFR - XML import'!$A41,1)-2))","v":0},{"$f":"IF(ISERROR(FIND(CK$3,'CFR - XML import'!$A41)),0,MID('CFR - XML import'!$A41,SEARCH(\">\",'CFR - XML import'!$A41,1)+1,SEARCH(\"/\",'CFR - XML import'!$A41,1)-SEARCH(\">\",'CFR - XML import'!$A41,1)-2))","v":0},{"$f":"IF(ISERROR(FIND(CL$3,'CFR - XML import'!$A41)),0,MID('CFR - XML import'!$A41,SEARCH(\">\",'CFR - XML import'!$A41,1)+1,SEARCH(\"/\",'CFR - XML import'!$A41,1)-SEARCH(\">\",'CFR - XML import'!$A41,1)-2))","v":0}]
[{"$f":"IF(AND('CFR - XML import'!A42<>\"\",LEFT('CFR - XML import'!A42,1)<>\"<\",LEFT('CFR - XML import'!A42,3)<>\"  <\",LEFT('CFR - XML import'!A42,5)<>\"    <\",LEFT('CFR - XML import'!A42,7)<>\"      <\",LEFT('CFR - XML import'!A42,9)<>\"        <\",$B$1=\"SIMS\"),'CFR - XML import'!A42,IF(AND(LEFT('CFR - XML import'!A42,9)=\"<Details>\",$B$1=\"RM\"),'CFR - XML import'!A42,\"\"))","v":""},{"$f":"IF(ISERROR(FIND(B$3,'CFR - XML import'!$A42)),0,VALUE(MID('CFR - XML import'!$A42,SEARCH(\">\",'CFR - XML import'!$A42,1)+1,SEARCH(\"/\",'CFR - XML import'!$A42,1)-SEARCH(\">\",'CFR - XML import'!$A42,1)-2)))","v":0},null,{"$f":"IF(ISERROR(FIND(D$3,'CFR - XML import'!$A42)),0,MID('CFR - XML import'!$A42,SEARCH(\">\",'CFR - XML import'!$A42,1)+1,SEARCH(\"/\",'CFR - XML import'!$A42,1)-SEARCH(\">\",'CFR - XML import'!$A42,1)-2))","v":0},{"$f":"IF(ISERROR(FIND(E$3,'CFR - XML import'!$A42)),0,MID('CFR - XML import'!$A42,SEARCH(\">\",'CFR - XML import'!$A42,1)+1,SEARCH(\"/\",'CFR - XML import'!$A42,1)-SEARCH(\">\",'CFR - XML import'!$A42,1)-2))","v":0},{"$f":"IF($B$1=\"SIMS\",IF(ISERROR(FIND(F$3,'CFR - XML import'!$A42)),0,VALUE(MID('CFR - XML import'!$A42,15,10))),IF(ISERROR(FIND(F$3,'CFR - XML import'!$A42)),0,VALUE(MID('CFR - XML import'!$A42,11,10))))","v":"00:00:00"},{"$f":"IF(ISERROR(FIND(G$3,'CFR - XML import'!$A42)),0,VALUE(MID('CFR - XML import'!$A42,SEARCH(\">\",'CFR - XML import'!$A42,1)+1,SEARCH(\"/\",'CFR - XML import'!$A42,1)-SEARCH(\">\",'CFR - XML import'!$A42,1)-2)))","v":0},{"$f":"IF(ISERROR(FIND(H$3,'CFR - XML import'!$A42)),0,VALUE(MID('CFR - XML import'!$A42,SEARCH(\">\",'CFR - XML import'!$A42,1)+1,SEARCH(\"/\",'CFR - XML import'!$A42,1)-SEARCH(\">\",'CFR - XML import'!$A42,1)-2)))","v":0},{"$f":"IF(ISERROR(FIND(I$3,'CFR - XML import'!$A42)),0,VALUE(MID('CFR - XML import'!$A42,SEARCH(\">\",'CFR - XML import'!$A42,1)+1,SEARCH(\"/\",'CFR - XML import'!$A42,1)-SEARCH(\">\",'CFR - XML import'!$A42,1)-2)))","v":0},{"$f":"IF(ISERROR(FIND(J$3,'CFR - XML import'!$A42)),0,VALUE(MID('CFR - XML import'!$A42,SEARCH(\">\",'CFR - XML import'!$A42,1)+1,SEARCH(\"/\",'CFR - XML import'!$A42,1)-SEARCH(\">\",'CFR - XML import'!$A42,1)-2)))","v":0},{"$f":"IF(ISERROR(FIND(K$3,'CFR - XML import'!$A42)),0,VALUE(MID('CFR - XML import'!$A42,SEARCH(\">\",'CFR - XML import'!$A42,1)+1,SEARCH(\"/\",'CFR - XML import'!$A42,1)-SEARCH(\">\",'CFR - XML import'!$A42,1)-2)))","v":0},{"$f":"IF(ISERROR(FIND(L$3,'CFR - XML import'!$A42)),0,VALUE(MID('CFR - XML import'!$A42,SEARCH(\">\",'CFR - XML import'!$A42,1)+1,SEARCH(\"/\",'CFR - XML import'!$A42,1)-SEARCH(\">\",'CFR - XML import'!$A42,1)-2)))","v":0},{"$f":"IF(ISERROR(FIND(M$3,'CFR - XML import'!$A42)),0,VALUE(MID('CFR - XML import'!$A42,SEARCH(\">\",'CFR - XML import'!$A42,1)+1,SEARCH(\"/\",'CFR - XML import'!$A42,1)-SEARCH(\">\",'CFR - XML import'!$A42,1)-2)))","v":0},{"$f":"IF(ISERROR(FIND(N$3,'CFR - XML import'!$A42)),0,VALUE(MID('CFR - XML import'!$A42,SEARCH(\">\",'CFR - XML import'!$A42,1)+1,SEARCH(\"/\",'CFR - XML import'!$A42,1)-SEARCH(\">\",'CFR - XML import'!$A42,1)-2)))","v":0},{"$f":"IF(ISERROR(FIND(O$3,'CFR - XML import'!$A42)),0,VALUE(MID('CFR - XML import'!$A42,SEARCH(\">\",'CFR - XML import'!$A42,1)+1,SEARCH(\"/\",'CFR - XML import'!$A42,1)-SEARCH(\">\",'CFR - XML import'!$A42,1)-2)))","v":0},{"$f":"IF(ISERROR(FIND(P$3,'CFR - XML import'!$A42)),0,VALUE(MID('CFR - XML import'!$A42,SEARCH(\">\",'CFR - XML import'!$A42,1)+1,SEARCH(\"/\",'CFR - XML import'!$A42,1)-SEARCH(\">\",'CFR - XML import'!$A42,1)-2)))","v":0},{"$f":"IF(ISERROR(FIND(Q$3,'CFR - XML import'!$A42)),0,VALUE(MID('CFR - XML import'!$A42,SEARCH(\">\",'CFR - XML import'!$A42,1)+1,SEARCH(\"/\",'CFR - XML import'!$A42,1)-SEARCH(\">\",'CFR - XML import'!$A42,1)-2)))","v":0},{"$f":"IF(ISERROR(FIND(R$3,'CFR - XML import'!$A42)),0,VALUE(MID('CFR - XML import'!$A42,SEARCH(\">\",'CFR - XML import'!$A42,1)+1,SEARCH(\"/\",'CFR - XML import'!$A42,1)-SEARCH(\">\",'CFR - XML import'!$A42,1)-2)))","v":0},{"$f":"IF(ISERROR(FIND(S$3,'CFR - XML import'!$A42)),0,VALUE(MID('CFR - XML import'!$A42,SEARCH(\">\",'CFR - XML import'!$A42,1)+1,SEARCH(\"/\",'CFR - XML import'!$A42,1)-SEARCH(\">\",'CFR - XML import'!$A42,1)-2)))","v":0},{"$f":"IF(ISERROR(FIND(T$3,'CFR - XML import'!$A42)),0,VALUE(MID('CFR - XML import'!$A42,SEARCH(\">\",'CFR - XML import'!$A42,1)+1,SEARCH(\"/\",'CFR - XML import'!$A42,1)-SEARCH(\">\",'CFR - XML import'!$A42,1)-2)))","v":0},{"$f":"IF(ISERROR(FIND(U$3,'CFR - XML import'!$A42)),0,VALUE(MID('CFR - XML import'!$A42,SEARCH(\">\",'CFR - XML import'!$A42,1)+1,SEARCH(\"/\",'CFR - XML import'!$A42,1)-SEARCH(\">\",'CFR - XML import'!$A42,1)-2)))","v":0},{"$f":"IF(ISERROR(FIND(V$3,'CFR - XML import'!$A42)),0,VALUE(MID('CFR - XML import'!$A42,SEARCH(\">\",'CFR - XML import'!$A42,1)+1,SEARCH(\"/\",'CFR - XML import'!$A42,1)-SEARCH(\">\",'CFR - XML import'!$A42,1)-2)))","v":0},{"$f":"IF(ISERROR(FIND(W$3,'CFR - XML import'!$A42)),0,VALUE(MID('CFR - XML import'!$A42,SEARCH(\">\",'CFR - XML import'!$A42,1)+1,SEARCH(\"/\",'CFR - XML import'!$A42,1)-SEARCH(\">\",'CFR - XML import'!$A42,1)-2)))","v":0},null,{"$f":"IF(ISERROR(FIND(Y$3,'CFR - XML import'!$A42)),0,VALUE(MID('CFR - XML import'!$A42,SEARCH(\">\",'CFR - XML import'!$A42,1)+1,SEARCH(\"/\",'CFR - XML import'!$A42,1)-SEARCH(\">\",'CFR - XML import'!$A42,1)-2)))","v":0},{"$f":"IF(ISERROR(FIND(Z$3,'CFR - XML import'!$A42)),0,VALUE(MID('CFR - XML import'!$A42,SEARCH(\">\",'CFR - XML import'!$A42,1)+1,SEARCH(\"/\",'CFR - XML import'!$A42,1)-SEARCH(\">\",'CFR - XML import'!$A42,1)-2)))","v":0},{"$f":"IF(ISERROR(FIND(AA$3,'CFR - XML import'!$A42)),0,VALUE(MID('CFR - XML import'!$A42,SEARCH(\">\",'CFR - XML import'!$A42,1)+1,SEARCH(\"/\",'CFR - XML import'!$A42,1)-SEARCH(\">\",'CFR - XML import'!$A42,1)-2)))","v":0},{"$f":"IF(ISERROR(FIND(AB$3,'CFR - XML import'!$A42)),0,VALUE(MID('CFR - XML import'!$A42,SEARCH(\">\",'CFR - XML import'!$A42,1)+1,SEARCH(\"/\",'CFR - XML import'!$A42,1)-SEARCH(\">\",'CFR - XML import'!$A42,1)-2)))","v":0},{"$f":"IF(ISERROR(FIND(AC$3,'CFR - XML import'!$A42)),0,VALUE(MID('CFR - XML import'!$A42,SEARCH(\">\",'CFR - XML import'!$A42,1)+1,SEARCH(\"/\",'CFR - XML import'!$A42,1)-SEARCH(\">\",'CFR - XML import'!$A42,1)-2)))","v":0},{"$f":"IF(ISERROR(FIND(AD$3,'CFR - XML import'!$A42)),0,VALUE(MID('CFR - XML import'!$A42,SEARCH(\">\",'CFR - XML import'!$A42,1)+1,SEARCH(\"/\",'CFR - XML import'!$A42,1)-SEARCH(\">\",'CFR - XML import'!$A42,1)-2)))","v":0},{"$f":"IF(ISERROR(FIND(AE$3,'CFR - XML import'!$A42)),0,VALUE(MID('CFR - XML import'!$A42,SEARCH(\">\",'CFR - XML import'!$A42,1)+1,SEARCH(\"/\",'CFR - XML import'!$A42,1)-SEARCH(\">\",'CFR - XML import'!$A42,1)-2)))","v":0},{"$f":"IF(ISERROR(FIND(AF$3,'CFR - XML import'!$A42)),0,VALUE(MID('CFR - XML import'!$A42,SEARCH(\">\",'CFR - XML import'!$A42,1)+1,SEARCH(\"/\",'CFR - XML import'!$A42,1)-SEARCH(\">\",'CFR - XML import'!$A42,1)-2)))","v":0},{"$f":"IF(ISERROR(FIND(AG$3,'CFR - XML import'!$A42)),0,VALUE(MID('CFR - XML import'!$A42,SEARCH(\">\",'CFR - XML import'!$A42,1)+1,SEARCH(\"/\",'CFR - XML import'!$A42,1)-SEARCH(\">\",'CFR - XML import'!$A42,1)-2)))","v":0},{"$f":"IF(ISERROR(FIND(AH$3,'CFR - XML import'!$A42)),0,VALUE(MID('CFR - XML import'!$A42,SEARCH(\">\",'CFR - XML import'!$A42,1)+1,SEARCH(\"/\",'CFR - XML import'!$A42,1)-SEARCH(\">\",'CFR - XML import'!$A42,1)-2)))","v":0},{"$f":"IF(ISERROR(FIND(AI$3,'CFR - XML import'!$A42)),0,VALUE(MID('CFR - XML import'!$A42,SEARCH(\">\",'CFR - XML import'!$A42,1)+1,SEARCH(\"/\",'CFR - XML import'!$A42,1)-SEARCH(\">\",'CFR - XML import'!$A42,1)-2)))","v":0},{"$f":"IF(ISERROR(FIND(AJ$3,'CFR - XML import'!$A42)),0,VALUE(MID('CFR - XML import'!$A42,SEARCH(\">\",'CFR - XML import'!$A42,1)+1,SEARCH(\"/\",'CFR - XML import'!$A42,1)-SEARCH(\">\",'CFR - XML import'!$A42,1)-2)))","v":0},{"$f":"IF(ISERROR(FIND(AK$3,'CFR - XML import'!$A42)),0,VALUE(MID('CFR - XML import'!$A42,SEARCH(\">\",'CFR - XML import'!$A42,1)+1,SEARCH(\"/\",'CFR - XML import'!$A42,1)-SEARCH(\">\",'CFR - XML import'!$A42,1)-2)))","v":0},{"$f":"IF(ISERROR(FIND(AL$3,'CFR - XML import'!$A42)),0,VALUE(MID('CFR - XML import'!$A42,SEARCH(\">\",'CFR - XML import'!$A42,1)+1,SEARCH(\"/\",'CFR - XML import'!$A42,1)-SEARCH(\">\",'CFR - XML import'!$A42,1)-2)))","v":0},{"$f":"IF(ISERROR(FIND(AM$3,'CFR - XML import'!$A42)),0,VALUE(MID('CFR - XML import'!$A42,SEARCH(\">\",'CFR - XML import'!$A42,1)+1,SEARCH(\"/\",'CFR - XML import'!$A42,1)-SEARCH(\">\",'CFR - XML import'!$A42,1)-2)))","v":0},{"$f":"IF(ISERROR(FIND(AN$3,'CFR - XML import'!$A42)),0,VALUE(MID('CFR - XML import'!$A42,SEARCH(\">\",'CFR - XML import'!$A42,1)+1,SEARCH(\"/\",'CFR - XML import'!$A42,1)-SEARCH(\">\",'CFR - XML import'!$A42,1)-2)))","v":0},{"$f":"IF(ISERROR(FIND(AO$3,'CFR - XML import'!$A42)),0,VALUE(MID('CFR - XML import'!$A42,SEARCH(\">\",'CFR - XML import'!$A42,1)+1,SEARCH(\"/\",'CFR - XML import'!$A42,1)-SEARCH(\">\",'CFR - XML import'!$A42,1)-2)))","v":0},{"$f":"IF(ISERROR(FIND(AP$3,'CFR - XML import'!$A42)),0,VALUE(MID('CFR - XML import'!$A42,SEARCH(\">\",'CFR - XML import'!$A42,1)+1,SEARCH(\"/\",'CFR - XML import'!$A42,1)-SEARCH(\">\",'CFR - XML import'!$A42,1)-2)))","v":0},{"$f":"IF(ISERROR(FIND(AQ$3,'CFR - XML import'!$A42)),0,VALUE(MID('CFR - XML import'!$A42,SEARCH(\">\",'CFR - XML import'!$A42,1)+1,SEARCH(\"/\",'CFR - XML import'!$A42,1)-SEARCH(\">\",'CFR - XML import'!$A42,1)-2)))","v":0},{"$f":"IF(ISERROR(FIND(AR$3,'CFR - XML import'!$A42)),0,VALUE(MID('CFR - XML import'!$A42,SEARCH(\">\",'CFR - XML import'!$A42,1)+1,SEARCH(\"/\",'CFR - XML import'!$A42,1)-SEARCH(\">\",'CFR - XML import'!$A42,1)-2)))","v":0},{"$f":"IF(ISERROR(FIND(AS$3,'CFR - XML import'!$A42)),0,VALUE(MID('CFR - XML import'!$A42,SEARCH(\">\",'CFR - XML import'!$A42,1)+1,SEARCH(\"/\",'CFR - XML import'!$A42,1)-SEARCH(\">\",'CFR - XML import'!$A42,1)-2)))","v":0},{"$f":"IF(ISERROR(FIND(AT$3,'CFR - XML import'!$A42)),0,VALUE(MID('CFR - XML import'!$A42,SEARCH(\">\",'CFR - XML import'!$A42,1)+1,SEARCH(\"/\",'CFR - XML import'!$A42,1)-SEARCH(\">\",'CFR - XML import'!$A42,1)-2)))","v":0},{"$f":"IF(ISERROR(FIND(AU$3,'CFR - XML import'!$A42)),0,VALUE(MID('CFR - XML import'!$A42,SEARCH(\">\",'CFR - XML import'!$A42,1)+1,SEARCH(\"/\",'CFR - XML import'!$A42,1)-SEARCH(\">\",'CFR - XML import'!$A42,1)-2)))","v":0},{"$f":"IF(ISERROR(FIND(AV$3,'CFR - XML import'!$A42)),0,VALUE(MID('CFR - XML import'!$A42,SEARCH(\">\",'CFR - XML import'!$A42,1)+1,SEARCH(\"/\",'CFR - XML import'!$A42,1)-SEARCH(\">\",'CFR - XML import'!$A42,1)-2)))","v":0},{"$f":"IF(ISERROR(FIND(AW$3,'CFR - XML import'!$A42)),0,VALUE(MID('CFR - XML import'!$A42,SEARCH(\">\",'CFR - XML import'!$A42,1)+1,SEARCH(\"/\",'CFR - XML import'!$A42,1)-SEARCH(\">\",'CFR - XML import'!$A42,1)-2)))","v":0},{"$f":"IF(ISERROR(FIND(AX$3,'CFR - XML import'!$A42)),0,VALUE(MID('CFR - XML import'!$A42,SEARCH(\">\",'CFR - XML import'!$A42,1)+1,SEARCH(\"/\",'CFR - XML import'!$A42,1)-SEARCH(\">\",'CFR - XML import'!$A42,1)-2)))","v":0},{"$f":"IF(ISERROR(FIND(AY$3,'CFR - XML import'!$A42)),0,VALUE(MID('CFR - XML import'!$A42,SEARCH(\">\",'CFR - XML import'!$A42,1)+1,SEARCH(\"/\",'CFR - XML import'!$A42,1)-SEARCH(\">\",'CFR - XML import'!$A42,1)-2)))","v":0},{"$f":"IF(ISERROR(FIND(AZ$3,'CFR - XML import'!$A42)),0,VALUE(MID('CFR - XML import'!$A42,SEARCH(\">\",'CFR - XML import'!$A42,1)+1,SEARCH(\"/\",'CFR - XML import'!$A42,1)-SEARCH(\">\",'CFR - XML import'!$A42,1)-2)))","v":0},{"$f":"IF(ISERROR(FIND(BA$3,'CFR - XML import'!$A42)),0,VALUE(MID('CFR - XML import'!$A42,SEARCH(\">\",'CFR - XML import'!$A42,1)+1,SEARCH(\"/\",'CFR - XML import'!$A42,1)-SEARCH(\">\",'CFR - XML import'!$A42,1)-2)))","v":0},{"$f":"IF(ISERROR(FIND(BB$3,'CFR - XML import'!$A42)),0,VALUE(MID('CFR - XML import'!$A42,SEARCH(\">\",'CFR - XML import'!$A42,1)+1,SEARCH(\"/\",'CFR - XML import'!$A42,1)-SEARCH(\">\",'CFR - XML import'!$A42,1)-2)))","v":0},{"$f":"IF(ISERROR(FIND(BC$3,'CFR - XML import'!$A42)),0,VALUE(MID('CFR - XML import'!$A42,SEARCH(\">\",'CFR - XML import'!$A42,1)+1,SEARCH(\"/\",'CFR - XML import'!$A42,1)-SEARCH(\">\",'CFR - XML import'!$A42,1)-2)))","v":0},{"$f":"IF(ISERROR(FIND(BD$3,'CFR - XML import'!$A42)),0,VALUE(MID('CFR - XML import'!$A42,SEARCH(\">\",'CFR - XML import'!$A42,1)+1,SEARCH(\"/\",'CFR - XML import'!$A42,1)-SEARCH(\">\",'CFR - XML import'!$A42,1)-2)))","v":0},{"$f":"IF(ISERROR(FIND(BE$3,'CFR - XML import'!$A42)),0,VALUE(MID('CFR - XML import'!$A42,SEARCH(\">\",'CFR - XML import'!$A42,1)+1,SEARCH(\"/\",'CFR - XML import'!$A42,1)-SEARCH(\">\",'CFR - XML import'!$A42,1)-2)))","v":0},{"$f":"IF(ISERROR(FIND(BF$3,'CFR - XML import'!$A42)),0,VALUE(MID('CFR - XML import'!$A42,SEARCH(\">\",'CFR - XML import'!$A42,1)+1,SEARCH(\"/\",'CFR - XML import'!$A42,1)-SEARCH(\">\",'CFR - XML import'!$A42,1)-2)))","v":0},{"$f":"IF(ISERROR(FIND(BG$3,'CFR - XML import'!$A42)),0,VALUE(MID('CFR - XML import'!$A42,SEARCH(\">\",'CFR - XML import'!$A42,1)+1,SEARCH(\"/\",'CFR - XML import'!$A42,1)-SEARCH(\">\",'CFR - XML import'!$A42,1)-2)))","v":0},{"$f":"IF(ISERROR(FIND(BH$3,'CFR - XML import'!$A42)),0,VALUE(MID('CFR - XML import'!$A42,SEARCH(\">\",'CFR - XML import'!$A42,1)+1,SEARCH(\"/\",'CFR - XML import'!$A42,1)-SEARCH(\">\",'CFR - XML import'!$A42,1)-2)))","v":0},{"$f":"IF(ISERROR(FIND(BI$3,'CFR - XML import'!$A42)),0,VALUE(MID('CFR - XML import'!$A42,SEARCH(\">\",'CFR - XML import'!$A42,1)+1,SEARCH(\"/\",'CFR - XML import'!$A42,1)-SEARCH(\">\",'CFR - XML import'!$A42,1)-2)))","v":0},{"$f":"IF(ISERROR(FIND(BJ$3,'CFR - XML import'!$A42)),0,VALUE(MID('CFR - XML import'!$A42,SEARCH(\">\",'CFR - XML import'!$A42,1)+1,SEARCH(\"/\",'CFR - XML import'!$A42,1)-SEARCH(\">\",'CFR - XML import'!$A42,1)-2)))","v":0},{"$f":"IF(ISERROR(FIND(BK$3,'CFR - XML import'!$A42)),0,VALUE(MID('CFR - XML import'!$A42,SEARCH(\">\",'CFR - XML import'!$A42,1)+1,SEARCH(\"/\",'CFR - XML import'!$A42,1)-SEARCH(\">\",'CFR - XML import'!$A42,1)-2)))","v":0},{"$f":"IF(ISERROR(FIND(BL$3,'CFR - XML import'!$A42)),0,VALUE(MID('CFR - XML import'!$A42,SEARCH(\">\",'CFR - XML import'!$A42,1)+1,SEARCH(\"/\",'CFR - XML import'!$A42,1)-SEARCH(\">\",'CFR - XML import'!$A42,1)-2)))","v":0},{"$f":"IF(ISERROR(FIND(BM$3,'CFR - XML import'!$A42)),0,VALUE(MID('CFR - XML import'!$A42,SEARCH(\">\",'CFR - XML import'!$A42,1)+1,SEARCH(\"/\",'CFR - XML import'!$A42,1)-SEARCH(\">\",'CFR - XML import'!$A42,1)-2)))","v":0},{"$f":"IF(ISERROR(FIND(BN$3,'CFR - XML import'!$A42)),0,VALUE(MID('CFR - XML import'!$A42,SEARCH(\">\",'CFR - XML import'!$A42,1)+1,SEARCH(\"/\",'CFR - XML import'!$A42,1)-SEARCH(\">\",'CFR - XML import'!$A42,1)-2)))","v":0},{"$f":"IF(ISERROR(FIND(BO$3,'CFR - XML import'!$A42)),0,VALUE(MID('CFR - XML import'!$A42,SEARCH(\">\",'CFR - XML import'!$A42,1)+1,SEARCH(\"/\",'CFR - XML import'!$A42,1)-SEARCH(\">\",'CFR - XML import'!$A42,1)-2)))","v":0},{"$f":"IF(ISERROR(FIND(BP$3,'CFR - XML import'!$A42)),0,VALUE(MID('CFR - XML import'!$A42,SEARCH(\">\",'CFR - XML import'!$A42,1)+1,SEARCH(\"/\",'CFR - XML import'!$A42,1)-SEARCH(\">\",'CFR - XML import'!$A42,1)-2)))","v":0},{"$f":"IF(ISERROR(FIND(BQ$3,'CFR - XML import'!$A42)),0,VALUE(MID('CFR - XML import'!$A42,SEARCH(\">\",'CFR - XML import'!$A42,1)+1,SEARCH(\"/\",'CFR - XML import'!$A42,1)-SEARCH(\">\",'CFR - XML import'!$A42,1)-2)))","v":0},{"$f":"IF(ISERROR(FIND(BR$3,'CFR - XML import'!$A42)),0,VALUE(MID('CFR - XML import'!$A42,SEARCH(\">\",'CFR - XML import'!$A42,1)+1,SEARCH(\"/\",'CFR - XML import'!$A42,1)-SEARCH(\">\",'CFR - XML import'!$A42,1)-2)))","v":0},{"$f":"IF(ISERROR(FIND(BS$3,'CFR - XML import'!$A42)),0,VALUE(MID('CFR - XML import'!$A42,SEARCH(\">\",'CFR - XML import'!$A42,1)+1,SEARCH(\"/\",'CFR - XML import'!$A42,1)-SEARCH(\">\",'CFR - XML import'!$A42,1)-2)))","v":0},{"$f":"IF(ISERROR(FIND(BT$3,'CFR - XML import'!$A42)),0,VALUE(MID('CFR - XML import'!$A42,SEARCH(\">\",'CFR - XML import'!$A42,1)+1,SEARCH(\"/\",'CFR - XML import'!$A42,1)-SEARCH(\">\",'CFR - XML import'!$A42,1)-2)))","v":0},{"$f":"IF(ISERROR(FIND(BU$3,'CFR - XML import'!$A42)),0,VALUE(MID('CFR - XML import'!$A42,SEARCH(\">\",'CFR - XML import'!$A42,1)+1,SEARCH(\"/\",'CFR - XML import'!$A42,1)-SEARCH(\">\",'CFR - XML import'!$A42,1)-2)))","v":0},{"$f":"IF(ISERROR(FIND(BV$3,'CFR - XML import'!$A42)),0,VALUE(MID('CFR - XML import'!$A42,SEARCH(\">\",'CFR - XML import'!$A42,1)+1,SEARCH(\"/\",'CFR - XML import'!$A42,1)-SEARCH(\">\",'CFR - XML import'!$A42,1)-2)))","v":0},{"$f":"IF(ISERROR(FIND(BW$3,'CFR - XML import'!$A42)),0,VALUE(MID('CFR - XML import'!$A42,SEARCH(\">\",'CFR - XML import'!$A42,1)+1,SEARCH(\"/\",'CFR - XML import'!$A42,1)-SEARCH(\">\",'CFR - XML import'!$A42,1)-2)))","v":0},{"$f":"IF(ISERROR(FIND(BX$3,'CFR - XML import'!$A42)),0,VALUE(MID('CFR - XML import'!$A42,SEARCH(\">\",'CFR - XML import'!$A42,1)+1,SEARCH(\"/\",'CFR - XML import'!$A42,1)-SEARCH(\">\",'CFR - XML import'!$A42,1)-2)))","v":0},{"$f":"IF(ISERROR(FIND(BY$3,'CFR - XML import'!$A42)),0,VALUE(MID('CFR - XML import'!$A42,SEARCH(\">\",'CFR - XML import'!$A42,1)+1,SEARCH(\"/\",'CFR - XML import'!$A42,1)-SEARCH(\">\",'CFR - XML import'!$A42,1)-2)))","v":0},{"$f":"IF(ISERROR(FIND(BZ$3,'CFR - XML import'!$A42)),0,VALUE(MID('CFR - XML import'!$A42,SEARCH(\">\",'CFR - XML import'!$A42,1)+1,SEARCH(\"/\",'CFR - XML import'!$A42,1)-SEARCH(\">\",'CFR - XML import'!$A42,1)-2)))","v":0},null,null,null,null,null,null,{"$f":"IF(ISERROR(IF(MID('CFR - XML import'!$A42,LEN($CF$4)+1,LEN('CFR - XML import'!$A42)-(2*LEN($CF$4)+1))=\"RMMS\",1,IF(MID('CFR - XML import'!$A42,LEN(\"    <InputSystem>\")+1,LEN('CFR - XML import'!$A42)-(LEN(\"    <InputSystem>\")+LEN($CF$4)+1))=\"SIMS\",2,0))),0,IF(MID('CFR - XML import'!$A42,LEN($CF$4)+1,LEN('CFR - XML import'!$A42)-(2*LEN($CF$4)+1))=\"RMMS\",1,IF(MID('CFR - XML import'!$A42,LEN(\"    <InputSystem>\")+1,LEN('CFR - XML import'!$A42)-(LEN(\"    <InputSystem>\")+LEN($CF$4)+1))=\"SIMS\",2,0)))","v":0},{"$f":"IF(ISERROR(FIND(CH$3,'CFR - XML import'!$A42)),0,MID('CFR - XML import'!$A42,SEARCH(\">\",'CFR - XML import'!$A42,1)+1,SEARCH(\"/\",'CFR - XML import'!$A42,1)-SEARCH(\">\",'CFR - XML import'!$A42,1)-2))","v":0},{"$f":"IF(ISERROR(FIND(CI$3,'CFR - XML import'!$A42)),0,MID('CFR - XML import'!$A42,SEARCH(\">\",'CFR - XML import'!$A42,1)+1,SEARCH(\"/\",'CFR - XML import'!$A42,1)-SEARCH(\">\",'CFR - XML import'!$A42,1)-2))","v":0},{"$f":"IF(ISERROR(FIND(CJ$3,'CFR - XML import'!$A42)),0,MID('CFR - XML import'!$A42,SEARCH(\">\",'CFR - XML import'!$A42,1)+1,SEARCH(\"/\",'CFR - XML import'!$A42,1)-SEARCH(\">\",'CFR - XML import'!$A42,1)-2))","v":0},{"$f":"IF(ISERROR(FIND(CK$3,'CFR - XML import'!$A42)),0,MID('CFR - XML import'!$A42,SEARCH(\">\",'CFR - XML import'!$A42,1)+1,SEARCH(\"/\",'CFR - XML import'!$A42,1)-SEARCH(\">\",'CFR - XML import'!$A42,1)-2))","v":0},{"$f":"IF(ISERROR(FIND(CL$3,'CFR - XML import'!$A42)),0,MID('CFR - XML import'!$A42,SEARCH(\">\",'CFR - XML import'!$A42,1)+1,SEARCH(\"/\",'CFR - XML import'!$A42,1)-SEARCH(\">\",'CFR - XML import'!$A42,1)-2))","v":0}]
[{"$f":"IF(AND('CFR - XML import'!A43<>\"\",LEFT('CFR - XML import'!A43,1)<>\"<\",LEFT('CFR - XML import'!A43,3)<>\"  <\",LEFT('CFR - XML import'!A43,5)<>\"    <\",LEFT('CFR - XML import'!A43,7)<>\"      <\",LEFT('CFR - XML import'!A43,9)<>\"        <\",$B$1=\"SIMS\"),'CFR - XML import'!A43,IF(AND(LEFT('CFR - XML import'!A43,9)=\"<Details>\",$B$1=\"RM\"),'CFR - XML import'!A43,\"\"))","v":""},{"$f":"IF(ISERROR(FIND(B$3,'CFR - XML import'!$A43)),0,VALUE(MID('CFR - XML import'!$A43,SEARCH(\">\",'CFR - XML import'!$A43,1)+1,SEARCH(\"/\",'CFR - XML import'!$A43,1)-SEARCH(\">\",'CFR - XML import'!$A43,1)-2)))","v":0},null,{"$f":"IF(ISERROR(FIND(D$3,'CFR - XML import'!$A43)),0,MID('CFR - XML import'!$A43,SEARCH(\">\",'CFR - XML import'!$A43,1)+1,SEARCH(\"/\",'CFR - XML import'!$A43,1)-SEARCH(\">\",'CFR - XML import'!$A43,1)-2))","v":0},{"$f":"IF(ISERROR(FIND(E$3,'CFR - XML import'!$A43)),0,MID('CFR - XML import'!$A43,SEARCH(\">\",'CFR - XML import'!$A43,1)+1,SEARCH(\"/\",'CFR - XML import'!$A43,1)-SEARCH(\">\",'CFR - XML import'!$A43,1)-2))","v":0},{"$f":"IF($B$1=\"SIMS\",IF(ISERROR(FIND(F$3,'CFR - XML import'!$A43)),0,VALUE(MID('CFR - XML import'!$A43,15,10))),IF(ISERROR(FIND(F$3,'CFR - XML import'!$A43)),0,VALUE(MID('CFR - XML import'!$A43,11,10))))","v":"00:00:00"},{"$f":"IF(ISERROR(FIND(G$3,'CFR - XML import'!$A43)),0,VALUE(MID('CFR - XML import'!$A43,SEARCH(\">\",'CFR - XML import'!$A43,1)+1,SEARCH(\"/\",'CFR - XML import'!$A43,1)-SEARCH(\">\",'CFR - XML import'!$A43,1)-2)))","v":0},{"$f":"IF(ISERROR(FIND(H$3,'CFR - XML import'!$A43)),0,VALUE(MID('CFR - XML import'!$A43,SEARCH(\">\",'CFR - XML import'!$A43,1)+1,SEARCH(\"/\",'CFR - XML import'!$A43,1)-SEARCH(\">\",'CFR - XML import'!$A43,1)-2)))","v":0},{"$f":"IF(ISERROR(FIND(I$3,'CFR - XML import'!$A43)),0,VALUE(MID('CFR - XML import'!$A43,SEARCH(\">\",'CFR - XML import'!$A43,1)+1,SEARCH(\"/\",'CFR - XML import'!$A43,1)-SEARCH(\">\",'CFR - XML import'!$A43,1)-2)))","v":0},{"$f":"IF(ISERROR(FIND(J$3,'CFR - XML import'!$A43)),0,VALUE(MID('CFR - XML import'!$A43,SEARCH(\">\",'CFR - XML import'!$A43,1)+1,SEARCH(\"/\",'CFR - XML import'!$A43,1)-SEARCH(\">\",'CFR - XML import'!$A43,1)-2)))","v":0},{"$f":"IF(ISERROR(FIND(K$3,'CFR - XML import'!$A43)),0,VALUE(MID('CFR - XML import'!$A43,SEARCH(\">\",'CFR - XML import'!$A43,1)+1,SEARCH(\"/\",'CFR - XML import'!$A43,1)-SEARCH(\">\",'CFR - XML import'!$A43,1)-2)))","v":0},{"$f":"IF(ISERROR(FIND(L$3,'CFR - XML import'!$A43)),0,VALUE(MID('CFR - XML import'!$A43,SEARCH(\">\",'CFR - XML import'!$A43,1)+1,SEARCH(\"/\",'CFR - XML import'!$A43,1)-SEARCH(\">\",'CFR - XML import'!$A43,1)-2)))","v":0},{"$f":"IF(ISERROR(FIND(M$3,'CFR - XML import'!$A43)),0,VALUE(MID('CFR - XML import'!$A43,SEARCH(\">\",'CFR - XML import'!$A43,1)+1,SEARCH(\"/\",'CFR - XML import'!$A43,1)-SEARCH(\">\",'CFR - XML import'!$A43,1)-2)))","v":0},{"$f":"IF(ISERROR(FIND(N$3,'CFR - XML import'!$A43)),0,VALUE(MID('CFR - XML import'!$A43,SEARCH(\">\",'CFR - XML import'!$A43,1)+1,SEARCH(\"/\",'CFR - XML import'!$A43,1)-SEARCH(\">\",'CFR - XML import'!$A43,1)-2)))","v":0},{"$f":"IF(ISERROR(FIND(O$3,'CFR - XML import'!$A43)),0,VALUE(MID('CFR - XML import'!$A43,SEARCH(\">\",'CFR - XML import'!$A43,1)+1,SEARCH(\"/\",'CFR - XML import'!$A43,1)-SEARCH(\">\",'CFR - XML import'!$A43,1)-2)))","v":0},{"$f":"IF(ISERROR(FIND(P$3,'CFR - XML import'!$A43)),0,VALUE(MID('CFR - XML import'!$A43,SEARCH(\">\",'CFR - XML import'!$A43,1)+1,SEARCH(\"/\",'CFR - XML import'!$A43,1)-SEARCH(\">\",'CFR - XML import'!$A43,1)-2)))","v":0},{"$f":"IF(ISERROR(FIND(Q$3,'CFR - XML import'!$A43)),0,VALUE(MID('CFR - XML import'!$A43,SEARCH(\">\",'CFR - XML import'!$A43,1)+1,SEARCH(\"/\",'CFR - XML import'!$A43,1)-SEARCH(\">\",'CFR - XML import'!$A43,1)-2)))","v":0},{"$f":"IF(ISERROR(FIND(R$3,'CFR - XML import'!$A43)),0,VALUE(MID('CFR - XML import'!$A43,SEARCH(\">\",'CFR - XML import'!$A43,1)+1,SEARCH(\"/\",'CFR - XML import'!$A43,1)-SEARCH(\">\",'CFR - XML import'!$A43,1)-2)))","v":0},{"$f":"IF(ISERROR(FIND(S$3,'CFR - XML import'!$A43)),0,VALUE(MID('CFR - XML import'!$A43,SEARCH(\">\",'CFR - XML import'!$A43,1)+1,SEARCH(\"/\",'CFR - XML import'!$A43,1)-SEARCH(\">\",'CFR - XML import'!$A43,1)-2)))","v":0},{"$f":"IF(ISERROR(FIND(T$3,'CFR - XML import'!$A43)),0,VALUE(MID('CFR - XML import'!$A43,SEARCH(\">\",'CFR - XML import'!$A43,1)+1,SEARCH(\"/\",'CFR - XML import'!$A43,1)-SEARCH(\">\",'CFR - XML import'!$A43,1)-2)))","v":0},{"$f":"IF(ISERROR(FIND(U$3,'CFR - XML import'!$A43)),0,VALUE(MID('CFR - XML import'!$A43,SEARCH(\">\",'CFR - XML import'!$A43,1)+1,SEARCH(\"/\",'CFR - XML import'!$A43,1)-SEARCH(\">\",'CFR - XML import'!$A43,1)-2)))","v":0},{"$f":"IF(ISERROR(FIND(V$3,'CFR - XML import'!$A43)),0,VALUE(MID('CFR - XML import'!$A43,SEARCH(\">\",'CFR - XML import'!$A43,1)+1,SEARCH(\"/\",'CFR - XML import'!$A43,1)-SEARCH(\">\",'CFR - XML import'!$A43,1)-2)))","v":0},{"$f":"IF(ISERROR(FIND(W$3,'CFR - XML import'!$A43)),0,VALUE(MID('CFR - XML import'!$A43,SEARCH(\">\",'CFR - XML import'!$A43,1)+1,SEARCH(\"/\",'CFR - XML import'!$A43,1)-SEARCH(\">\",'CFR - XML import'!$A43,1)-2)))","v":0},null,{"$f":"IF(ISERROR(FIND(Y$3,'CFR - XML import'!$A43)),0,VALUE(MID('CFR - XML import'!$A43,SEARCH(\">\",'CFR - XML import'!$A43,1)+1,SEARCH(\"/\",'CFR - XML import'!$A43,1)-SEARCH(\">\",'CFR - XML import'!$A43,1)-2)))","v":0},{"$f":"IF(ISERROR(FIND(Z$3,'CFR - XML import'!$A43)),0,VALUE(MID('CFR - XML import'!$A43,SEARCH(\">\",'CFR - XML import'!$A43,1)+1,SEARCH(\"/\",'CFR - XML import'!$A43,1)-SEARCH(\">\",'CFR - XML import'!$A43,1)-2)))","v":0},{"$f":"IF(ISERROR(FIND(AA$3,'CFR - XML import'!$A43)),0,VALUE(MID('CFR - XML import'!$A43,SEARCH(\">\",'CFR - XML import'!$A43,1)+1,SEARCH(\"/\",'CFR - XML import'!$A43,1)-SEARCH(\">\",'CFR - XML import'!$A43,1)-2)))","v":0},{"$f":"IF(ISERROR(FIND(AB$3,'CFR - XML import'!$A43)),0,VALUE(MID('CFR - XML import'!$A43,SEARCH(\">\",'CFR - XML import'!$A43,1)+1,SEARCH(\"/\",'CFR - XML import'!$A43,1)-SEARCH(\">\",'CFR - XML import'!$A43,1)-2)))","v":0},{"$f":"IF(ISERROR(FIND(AC$3,'CFR - XML import'!$A43)),0,VALUE(MID('CFR - XML import'!$A43,SEARCH(\">\",'CFR - XML import'!$A43,1)+1,SEARCH(\"/\",'CFR - XML import'!$A43,1)-SEARCH(\">\",'CFR - XML import'!$A43,1)-2)))","v":0},{"$f":"IF(ISERROR(FIND(AD$3,'CFR - XML import'!$A43)),0,VALUE(MID('CFR - XML import'!$A43,SEARCH(\">\",'CFR - XML import'!$A43,1)+1,SEARCH(\"/\",'CFR - XML import'!$A43,1)-SEARCH(\">\",'CFR - XML import'!$A43,1)-2)))","v":0},{"$f":"IF(ISERROR(FIND(AE$3,'CFR - XML import'!$A43)),0,VALUE(MID('CFR - XML import'!$A43,SEARCH(\">\",'CFR - XML import'!$A43,1)+1,SEARCH(\"/\",'CFR - XML import'!$A43,1)-SEARCH(\">\",'CFR - XML import'!$A43,1)-2)))","v":0},{"$f":"IF(ISERROR(FIND(AF$3,'CFR - XML import'!$A43)),0,VALUE(MID('CFR - XML import'!$A43,SEARCH(\">\",'CFR - XML import'!$A43,1)+1,SEARCH(\"/\",'CFR - XML import'!$A43,1)-SEARCH(\">\",'CFR - XML import'!$A43,1)-2)))","v":0},{"$f":"IF(ISERROR(FIND(AG$3,'CFR - XML import'!$A43)),0,VALUE(MID('CFR - XML import'!$A43,SEARCH(\">\",'CFR - XML import'!$A43,1)+1,SEARCH(\"/\",'CFR - XML import'!$A43,1)-SEARCH(\">\",'CFR - XML import'!$A43,1)-2)))","v":0},{"$f":"IF(ISERROR(FIND(AH$3,'CFR - XML import'!$A43)),0,VALUE(MID('CFR - XML import'!$A43,SEARCH(\">\",'CFR - XML import'!$A43,1)+1,SEARCH(\"/\",'CFR - XML import'!$A43,1)-SEARCH(\">\",'CFR - XML import'!$A43,1)-2)))","v":0},{"$f":"IF(ISERROR(FIND(AI$3,'CFR - XML import'!$A43)),0,VALUE(MID('CFR - XML import'!$A43,SEARCH(\">\",'CFR - XML import'!$A43,1)+1,SEARCH(\"/\",'CFR - XML import'!$A43,1)-SEARCH(\">\",'CFR - XML import'!$A43,1)-2)))","v":0},{"$f":"IF(ISERROR(FIND(AJ$3,'CFR - XML import'!$A43)),0,VALUE(MID('CFR - XML import'!$A43,SEARCH(\">\",'CFR - XML import'!$A43,1)+1,SEARCH(\"/\",'CFR - XML import'!$A43,1)-SEARCH(\">\",'CFR - XML import'!$A43,1)-2)))","v":0},{"$f":"IF(ISERROR(FIND(AK$3,'CFR - XML import'!$A43)),0,VALUE(MID('CFR - XML import'!$A43,SEARCH(\">\",'CFR - XML import'!$A43,1)+1,SEARCH(\"/\",'CFR - XML import'!$A43,1)-SEARCH(\">\",'CFR - XML import'!$A43,1)-2)))","v":0},{"$f":"IF(ISERROR(FIND(AL$3,'CFR - XML import'!$A43)),0,VALUE(MID('CFR - XML import'!$A43,SEARCH(\">\",'CFR - XML import'!$A43,1)+1,SEARCH(\"/\",'CFR - XML import'!$A43,1)-SEARCH(\">\",'CFR - XML import'!$A43,1)-2)))","v":0},{"$f":"IF(ISERROR(FIND(AM$3,'CFR - XML import'!$A43)),0,VALUE(MID('CFR - XML import'!$A43,SEARCH(\">\",'CFR - XML import'!$A43,1)+1,SEARCH(\"/\",'CFR - XML import'!$A43,1)-SEARCH(\">\",'CFR - XML import'!$A43,1)-2)))","v":0},{"$f":"IF(ISERROR(FIND(AN$3,'CFR - XML import'!$A43)),0,VALUE(MID('CFR - XML import'!$A43,SEARCH(\">\",'CFR - XML import'!$A43,1)+1,SEARCH(\"/\",'CFR - XML import'!$A43,1)-SEARCH(\">\",'CFR - XML import'!$A43,1)-2)))","v":0},{"$f":"IF(ISERROR(FIND(AO$3,'CFR - XML import'!$A43)),0,VALUE(MID('CFR - XML import'!$A43,SEARCH(\">\",'CFR - XML import'!$A43,1)+1,SEARCH(\"/\",'CFR - XML import'!$A43,1)-SEARCH(\">\",'CFR - XML import'!$A43,1)-2)))","v":0},{"$f":"IF(ISERROR(FIND(AP$3,'CFR - XML import'!$A43)),0,VALUE(MID('CFR - XML import'!$A43,SEARCH(\">\",'CFR - XML import'!$A43,1)+1,SEARCH(\"/\",'CFR - XML import'!$A43,1)-SEARCH(\">\",'CFR - XML import'!$A43,1)-2)))","v":0},{"$f":"IF(ISERROR(FIND(AQ$3,'CFR - XML import'!$A43)),0,VALUE(MID('CFR - XML import'!$A43,SEARCH(\">\",'CFR - XML import'!$A43,1)+1,SEARCH(\"/\",'CFR - XML import'!$A43,1)-SEARCH(\">\",'CFR - XML import'!$A43,1)-2)))","v":0},{"$f":"IF(ISERROR(FIND(AR$3,'CFR - XML import'!$A43)),0,VALUE(MID('CFR - XML import'!$A43,SEARCH(\">\",'CFR - XML import'!$A43,1)+1,SEARCH(\"/\",'CFR - XML import'!$A43,1)-SEARCH(\">\",'CFR - XML import'!$A43,1)-2)))","v":0},{"$f":"IF(ISERROR(FIND(AS$3,'CFR - XML import'!$A43)),0,VALUE(MID('CFR - XML import'!$A43,SEARCH(\">\",'CFR - XML import'!$A43,1)+1,SEARCH(\"/\",'CFR - XML import'!$A43,1)-SEARCH(\">\",'CFR - XML import'!$A43,1)-2)))","v":0},{"$f":"IF(ISERROR(FIND(AT$3,'CFR - XML import'!$A43)),0,VALUE(MID('CFR - XML import'!$A43,SEARCH(\">\",'CFR - XML import'!$A43,1)+1,SEARCH(\"/\",'CFR - XML import'!$A43,1)-SEARCH(\">\",'CFR - XML import'!$A43,1)-2)))","v":0},{"$f":"IF(ISERROR(FIND(AU$3,'CFR - XML import'!$A43)),0,VALUE(MID('CFR - XML import'!$A43,SEARCH(\">\",'CFR - XML import'!$A43,1)+1,SEARCH(\"/\",'CFR - XML import'!$A43,1)-SEARCH(\">\",'CFR - XML import'!$A43,1)-2)))","v":0},{"$f":"IF(ISERROR(FIND(AV$3,'CFR - XML import'!$A43)),0,VALUE(MID('CFR - XML import'!$A43,SEARCH(\">\",'CFR - XML import'!$A43,1)+1,SEARCH(\"/\",'CFR - XML import'!$A43,1)-SEARCH(\">\",'CFR - XML import'!$A43,1)-2)))","v":0},{"$f":"IF(ISERROR(FIND(AW$3,'CFR - XML import'!$A43)),0,VALUE(MID('CFR - XML import'!$A43,SEARCH(\">\",'CFR - XML import'!$A43,1)+1,SEARCH(\"/\",'CFR - XML import'!$A43,1)-SEARCH(\">\",'CFR - XML import'!$A43,1)-2)))","v":0},{"$f":"IF(ISERROR(FIND(AX$3,'CFR - XML import'!$A43)),0,VALUE(MID('CFR - XML import'!$A43,SEARCH(\">\",'CFR - XML import'!$A43,1)+1,SEARCH(\"/\",'CFR - XML import'!$A43,1)-SEARCH(\">\",'CFR - XML import'!$A43,1)-2)))","v":0},{"$f":"IF(ISERROR(FIND(AY$3,'CFR - XML import'!$A43)),0,VALUE(MID('CFR - XML import'!$A43,SEARCH(\">\",'CFR - XML import'!$A43,1)+1,SEARCH(\"/\",'CFR - XML import'!$A43,1)-SEARCH(\">\",'CFR - XML import'!$A43,1)-2)))","v":0},{"$f":"IF(ISERROR(FIND(AZ$3,'CFR - XML import'!$A43)),0,VALUE(MID('CFR - XML import'!$A43,SEARCH(\">\",'CFR - XML import'!$A43,1)+1,SEARCH(\"/\",'CFR - XML import'!$A43,1)-SEARCH(\">\",'CFR - XML import'!$A43,1)-2)))","v":0},{"$f":"IF(ISERROR(FIND(BA$3,'CFR - XML import'!$A43)),0,VALUE(MID('CFR - XML import'!$A43,SEARCH(\">\",'CFR - XML import'!$A43,1)+1,SEARCH(\"/\",'CFR - XML import'!$A43,1)-SEARCH(\">\",'CFR - XML import'!$A43,1)-2)))","v":0},{"$f":"IF(ISERROR(FIND(BB$3,'CFR - XML import'!$A43)),0,VALUE(MID('CFR - XML import'!$A43,SEARCH(\">\",'CFR - XML import'!$A43,1)+1,SEARCH(\"/\",'CFR - XML import'!$A43,1)-SEARCH(\">\",'CFR - XML import'!$A43,1)-2)))","v":0},{"$f":"IF(ISERROR(FIND(BC$3,'CFR - XML import'!$A43)),0,VALUE(MID('CFR - XML import'!$A43,SEARCH(\">\",'CFR - XML import'!$A43,1)+1,SEARCH(\"/\",'CFR - XML import'!$A43,1)-SEARCH(\">\",'CFR - XML import'!$A43,1)-2)))","v":0},{"$f":"IF(ISERROR(FIND(BD$3,'CFR - XML import'!$A43)),0,VALUE(MID('CFR - XML import'!$A43,SEARCH(\">\",'CFR - XML import'!$A43,1)+1,SEARCH(\"/\",'CFR - XML import'!$A43,1)-SEARCH(\">\",'CFR - XML import'!$A43,1)-2)))","v":0},{"$f":"IF(ISERROR(FIND(BE$3,'CFR - XML import'!$A43)),0,VALUE(MID('CFR - XML import'!$A43,SEARCH(\">\",'CFR - XML import'!$A43,1)+1,SEARCH(\"/\",'CFR - XML import'!$A43,1)-SEARCH(\">\",'CFR - XML import'!$A43,1)-2)))","v":0},{"$f":"IF(ISERROR(FIND(BF$3,'CFR - XML import'!$A43)),0,VALUE(MID('CFR - XML import'!$A43,SEARCH(\">\",'CFR - XML import'!$A43,1)+1,SEARCH(\"/\",'CFR - XML import'!$A43,1)-SEARCH(\">\",'CFR - XML import'!$A43,1)-2)))","v":0},{"$f":"IF(ISERROR(FIND(BG$3,'CFR - XML import'!$A43)),0,VALUE(MID('CFR - XML import'!$A43,SEARCH(\">\",'CFR - XML import'!$A43,1)+1,SEARCH(\"/\",'CFR - XML import'!$A43,1)-SEARCH(\">\",'CFR - XML import'!$A43,1)-2)))","v":0},{"$f":"IF(ISERROR(FIND(BH$3,'CFR - XML import'!$A43)),0,VALUE(MID('CFR - XML import'!$A43,SEARCH(\">\",'CFR - XML import'!$A43,1)+1,SEARCH(\"/\",'CFR - XML import'!$A43,1)-SEARCH(\">\",'CFR - XML import'!$A43,1)-2)))","v":0},{"$f":"IF(ISERROR(FIND(BI$3,'CFR - XML import'!$A43)),0,VALUE(MID('CFR - XML import'!$A43,SEARCH(\">\",'CFR - XML import'!$A43,1)+1,SEARCH(\"/\",'CFR - XML import'!$A43,1)-SEARCH(\">\",'CFR - XML import'!$A43,1)-2)))","v":0},{"$f":"IF(ISERROR(FIND(BJ$3,'CFR - XML import'!$A43)),0,VALUE(MID('CFR - XML import'!$A43,SEARCH(\">\",'CFR - XML import'!$A43,1)+1,SEARCH(\"/\",'CFR - XML import'!$A43,1)-SEARCH(\">\",'CFR - XML import'!$A43,1)-2)))","v":0},{"$f":"IF(ISERROR(FIND(BK$3,'CFR - XML import'!$A43)),0,VALUE(MID('CFR - XML import'!$A43,SEARCH(\">\",'CFR - XML import'!$A43,1)+1,SEARCH(\"/\",'CFR - XML import'!$A43,1)-SEARCH(\">\",'CFR - XML import'!$A43,1)-2)))","v":0},{"$f":"IF(ISERROR(FIND(BL$3,'CFR - XML import'!$A43)),0,VALUE(MID('CFR - XML import'!$A43,SEARCH(\">\",'CFR - XML import'!$A43,1)+1,SEARCH(\"/\",'CFR - XML import'!$A43,1)-SEARCH(\">\",'CFR - XML import'!$A43,1)-2)))","v":0},{"$f":"IF(ISERROR(FIND(BM$3,'CFR - XML import'!$A43)),0,VALUE(MID('CFR - XML import'!$A43,SEARCH(\">\",'CFR - XML import'!$A43,1)+1,SEARCH(\"/\",'CFR - XML import'!$A43,1)-SEARCH(\">\",'CFR - XML import'!$A43,1)-2)))","v":0},{"$f":"IF(ISERROR(FIND(BN$3,'CFR - XML import'!$A43)),0,VALUE(MID('CFR - XML import'!$A43,SEARCH(\">\",'CFR - XML import'!$A43,1)+1,SEARCH(\"/\",'CFR - XML import'!$A43,1)-SEARCH(\">\",'CFR - XML import'!$A43,1)-2)))","v":0},{"$f":"IF(ISERROR(FIND(BO$3,'CFR - XML import'!$A43)),0,VALUE(MID('CFR - XML import'!$A43,SEARCH(\">\",'CFR - XML import'!$A43,1)+1,SEARCH(\"/\",'CFR - XML import'!$A43,1)-SEARCH(\">\",'CFR - XML import'!$A43,1)-2)))","v":0},{"$f":"IF(ISERROR(FIND(BP$3,'CFR - XML import'!$A43)),0,VALUE(MID('CFR - XML import'!$A43,SEARCH(\">\",'CFR - XML import'!$A43,1)+1,SEARCH(\"/\",'CFR - XML import'!$A43,1)-SEARCH(\">\",'CFR - XML import'!$A43,1)-2)))","v":0},{"$f":"IF(ISERROR(FIND(BQ$3,'CFR - XML import'!$A43)),0,VALUE(MID('CFR - XML import'!$A43,SEARCH(\">\",'CFR - XML import'!$A43,1)+1,SEARCH(\"/\",'CFR - XML import'!$A43,1)-SEARCH(\">\",'CFR - XML import'!$A43,1)-2)))","v":0},{"$f":"IF(ISERROR(FIND(BR$3,'CFR - XML import'!$A43)),0,VALUE(MID('CFR - XML import'!$A43,SEARCH(\">\",'CFR - XML import'!$A43,1)+1,SEARCH(\"/\",'CFR - XML import'!$A43,1)-SEARCH(\">\",'CFR - XML import'!$A43,1)-2)))","v":0},{"$f":"IF(ISERROR(FIND(BS$3,'CFR - XML import'!$A43)),0,VALUE(MID('CFR - XML import'!$A43,SEARCH(\">\",'CFR - XML import'!$A43,1)+1,SEARCH(\"/\",'CFR - XML import'!$A43,1)-SEARCH(\">\",'CFR - XML import'!$A43,1)-2)))","v":0},{"$f":"IF(ISERROR(FIND(BT$3,'CFR - XML import'!$A43)),0,VALUE(MID('CFR - XML import'!$A43,SEARCH(\">\",'CFR - XML import'!$A43,1)+1,SEARCH(\"/\",'CFR - XML import'!$A43,1)-SEARCH(\">\",'CFR - XML import'!$A43,1)-2)))","v":0},{"$f":"IF(ISERROR(FIND(BU$3,'CFR - XML import'!$A43)),0,VALUE(MID('CFR - XML import'!$A43,SEARCH(\">\",'CFR - XML import'!$A43,1)+1,SEARCH(\"/\",'CFR - XML import'!$A43,1)-SEARCH(\">\",'CFR - XML import'!$A43,1)-2)))","v":0},{"$f":"IF(ISERROR(FIND(BV$3,'CFR - XML import'!$A43)),0,VALUE(MID('CFR - XML import'!$A43,SEARCH(\">\",'CFR - XML import'!$A43,1)+1,SEARCH(\"/\",'CFR - XML import'!$A43,1)-SEARCH(\">\",'CFR - XML import'!$A43,1)-2)))","v":0},{"$f":"IF(ISERROR(FIND(BW$3,'CFR - XML import'!$A43)),0,VALUE(MID('CFR - XML import'!$A43,SEARCH(\">\",'CFR - XML import'!$A43,1)+1,SEARCH(\"/\",'CFR - XML import'!$A43,1)-SEARCH(\">\",'CFR - XML import'!$A43,1)-2)))","v":0},{"$f":"IF(ISERROR(FIND(BX$3,'CFR - XML import'!$A43)),0,VALUE(MID('CFR - XML import'!$A43,SEARCH(\">\",'CFR - XML import'!$A43,1)+1,SEARCH(\"/\",'CFR - XML import'!$A43,1)-SEARCH(\">\",'CFR - XML import'!$A43,1)-2)))","v":0},{"$f":"IF(ISERROR(FIND(BY$3,'CFR - XML import'!$A43)),0,VALUE(MID('CFR - XML import'!$A43,SEARCH(\">\",'CFR - XML import'!$A43,1)+1,SEARCH(\"/\",'CFR - XML import'!$A43,1)-SEARCH(\">\",'CFR - XML import'!$A43,1)-2)))","v":0},{"$f":"IF(ISERROR(FIND(BZ$3,'CFR - XML import'!$A43)),0,VALUE(MID('CFR - XML import'!$A43,SEARCH(\">\",'CFR - XML import'!$A43,1)+1,SEARCH(\"/\",'CFR - XML import'!$A43,1)-SEARCH(\">\",'CFR - XML import'!$A43,1)-2)))","v":0},null,null,null,null,null,null,{"$f":"IF(ISERROR(IF(MID('CFR - XML import'!$A43,LEN($CF$4)+1,LEN('CFR - XML import'!$A43)-(2*LEN($CF$4)+1))=\"RMMS\",1,IF(MID('CFR - XML import'!$A43,LEN(\"    <InputSystem>\")+1,LEN('CFR - XML import'!$A43)-(LEN(\"    <InputSystem>\")+LEN($CF$4)+1))=\"SIMS\",2,0))),0,IF(MID('CFR - XML import'!$A43,LEN($CF$4)+1,LEN('CFR - XML import'!$A43)-(2*LEN($CF$4)+1))=\"RMMS\",1,IF(MID('CFR - XML import'!$A43,LEN(\"    <InputSystem>\")+1,LEN('CFR - XML import'!$A43)-(LEN(\"    <InputSystem>\")+LEN($CF$4)+1))=\"SIMS\",2,0)))","v":0},{"$f":"IF(ISERROR(FIND(CH$3,'CFR - XML import'!$A43)),0,MID('CFR - XML import'!$A43,SEARCH(\">\",'CFR - XML import'!$A43,1)+1,SEARCH(\"/\",'CFR - XML import'!$A43,1)-SEARCH(\">\",'CFR - XML import'!$A43,1)-2))","v":0},{"$f":"IF(ISERROR(FIND(CI$3,'CFR - XML import'!$A43)),0,MID('CFR - XML import'!$A43,SEARCH(\">\",'CFR - XML import'!$A43,1)+1,SEARCH(\"/\",'CFR - XML import'!$A43,1)-SEARCH(\">\",'CFR - XML import'!$A43,1)-2))","v":0},{"$f":"IF(ISERROR(FIND(CJ$3,'CFR - XML import'!$A43)),0,MID('CFR - XML import'!$A43,SEARCH(\">\",'CFR - XML import'!$A43,1)+1,SEARCH(\"/\",'CFR - XML import'!$A43,1)-SEARCH(\">\",'CFR - XML import'!$A43,1)-2))","v":0},{"$f":"IF(ISERROR(FIND(CK$3,'CFR - XML import'!$A43)),0,MID('CFR - XML import'!$A43,SEARCH(\">\",'CFR - XML import'!$A43,1)+1,SEARCH(\"/\",'CFR - XML import'!$A43,1)-SEARCH(\">\",'CFR - XML import'!$A43,1)-2))","v":0},{"$f":"IF(ISERROR(FIND(CL$3,'CFR - XML import'!$A43)),0,MID('CFR - XML import'!$A43,SEARCH(\">\",'CFR - XML import'!$A43,1)+1,SEARCH(\"/\",'CFR - XML import'!$A43,1)-SEARCH(\">\",'CFR - XML import'!$A43,1)-2))","v":0}]
[{"$f":"IF(AND('CFR - XML import'!A44<>\"\",LEFT('CFR - XML import'!A44,1)<>\"<\",LEFT('CFR - XML import'!A44,3)<>\"  <\",LEFT('CFR - XML import'!A44,5)<>\"    <\",LEFT('CFR - XML import'!A44,7)<>\"      <\",LEFT('CFR - XML import'!A44,9)<>\"        <\",$B$1=\"SIMS\"),'CFR - XML import'!A44,IF(AND(LEFT('CFR - XML import'!A44,9)=\"<Details>\",$B$1=\"RM\"),'CFR - XML import'!A44,\"\"))","v":""},{"$f":"IF(ISERROR(FIND(B$3,'CFR - XML import'!$A44)),0,VALUE(MID('CFR - XML import'!$A44,SEARCH(\">\",'CFR - XML import'!$A44,1)+1,SEARCH(\"/\",'CFR - XML import'!$A44,1)-SEARCH(\">\",'CFR - XML import'!$A44,1)-2)))","v":0},null,{"$f":"IF(ISERROR(FIND(D$3,'CFR - XML import'!$A44)),0,MID('CFR - XML import'!$A44,SEARCH(\">\",'CFR - XML import'!$A44,1)+1,SEARCH(\"/\",'CFR - XML import'!$A44,1)-SEARCH(\">\",'CFR - XML import'!$A44,1)-2))","v":0},{"$f":"IF(ISERROR(FIND(E$3,'CFR - XML import'!$A44)),0,MID('CFR - XML import'!$A44,SEARCH(\">\",'CFR - XML import'!$A44,1)+1,SEARCH(\"/\",'CFR - XML import'!$A44,1)-SEARCH(\">\",'CFR - XML import'!$A44,1)-2))","v":0},{"$f":"IF($B$1=\"SIMS\",IF(ISERROR(FIND(F$3,'CFR - XML import'!$A44)),0,VALUE(MID('CFR - XML import'!$A44,15,10))),IF(ISERROR(FIND(F$3,'CFR - XML import'!$A44)),0,VALUE(MID('CFR - XML import'!$A44,11,10))))","v":"00:00:00"},{"$f":"IF(ISERROR(FIND(G$3,'CFR - XML import'!$A44)),0,VALUE(MID('CFR - XML import'!$A44,SEARCH(\">\",'CFR - XML import'!$A44,1)+1,SEARCH(\"/\",'CFR - XML import'!$A44,1)-SEARCH(\">\",'CFR - XML import'!$A44,1)-2)))","v":0},{"$f":"IF(ISERROR(FIND(H$3,'CFR - XML import'!$A44)),0,VALUE(MID('CFR - XML import'!$A44,SEARCH(\">\",'CFR - XML import'!$A44,1)+1,SEARCH(\"/\",'CFR - XML import'!$A44,1)-SEARCH(\">\",'CFR - XML import'!$A44,1)-2)))","v":0},{"$f":"IF(ISERROR(FIND(I$3,'CFR - XML import'!$A44)),0,VALUE(MID('CFR - XML import'!$A44,SEARCH(\">\",'CFR - XML import'!$A44,1)+1,SEARCH(\"/\",'CFR - XML import'!$A44,1)-SEARCH(\">\",'CFR - XML import'!$A44,1)-2)))","v":0},{"$f":"IF(ISERROR(FIND(J$3,'CFR - XML import'!$A44)),0,VALUE(MID('CFR - XML import'!$A44,SEARCH(\">\",'CFR - XML import'!$A44,1)+1,SEARCH(\"/\",'CFR - XML import'!$A44,1)-SEARCH(\">\",'CFR - XML import'!$A44,1)-2)))","v":0},{"$f":"IF(ISERROR(FIND(K$3,'CFR - XML import'!$A44)),0,VALUE(MID('CFR - XML import'!$A44,SEARCH(\">\",'CFR - XML import'!$A44,1)+1,SEARCH(\"/\",'CFR - XML import'!$A44,1)-SEARCH(\">\",'CFR - XML import'!$A44,1)-2)))","v":0},{"$f":"IF(ISERROR(FIND(L$3,'CFR - XML import'!$A44)),0,VALUE(MID('CFR - XML import'!$A44,SEARCH(\">\",'CFR - XML import'!$A44,1)+1,SEARCH(\"/\",'CFR - XML import'!$A44,1)-SEARCH(\">\",'CFR - XML import'!$A44,1)-2)))","v":0},{"$f":"IF(ISERROR(FIND(M$3,'CFR - XML import'!$A44)),0,VALUE(MID('CFR - XML import'!$A44,SEARCH(\">\",'CFR - XML import'!$A44,1)+1,SEARCH(\"/\",'CFR - XML import'!$A44,1)-SEARCH(\">\",'CFR - XML import'!$A44,1)-2)))","v":0},{"$f":"IF(ISERROR(FIND(N$3,'CFR - XML import'!$A44)),0,VALUE(MID('CFR - XML import'!$A44,SEARCH(\">\",'CFR - XML import'!$A44,1)+1,SEARCH(\"/\",'CFR - XML import'!$A44,1)-SEARCH(\">\",'CFR - XML import'!$A44,1)-2)))","v":0},{"$f":"IF(ISERROR(FIND(O$3,'CFR - XML import'!$A44)),0,VALUE(MID('CFR - XML import'!$A44,SEARCH(\">\",'CFR - XML import'!$A44,1)+1,SEARCH(\"/\",'CFR - XML import'!$A44,1)-SEARCH(\">\",'CFR - XML import'!$A44,1)-2)))","v":0},{"$f":"IF(ISERROR(FIND(P$3,'CFR - XML import'!$A44)),0,VALUE(MID('CFR - XML import'!$A44,SEARCH(\">\",'CFR - XML import'!$A44,1)+1,SEARCH(\"/\",'CFR - XML import'!$A44,1)-SEARCH(\">\",'CFR - XML import'!$A44,1)-2)))","v":0},{"$f":"IF(ISERROR(FIND(Q$3,'CFR - XML import'!$A44)),0,VALUE(MID('CFR - XML import'!$A44,SEARCH(\">\",'CFR - XML import'!$A44,1)+1,SEARCH(\"/\",'CFR - XML import'!$A44,1)-SEARCH(\">\",'CFR - XML import'!$A44,1)-2)))","v":0},{"$f":"IF(ISERROR(FIND(R$3,'CFR - XML import'!$A44)),0,VALUE(MID('CFR - XML import'!$A44,SEARCH(\">\",'CFR - XML import'!$A44,1)+1,SEARCH(\"/\",'CFR - XML import'!$A44,1)-SEARCH(\">\",'CFR - XML import'!$A44,1)-2)))","v":0},{"$f":"IF(ISERROR(FIND(S$3,'CFR - XML import'!$A44)),0,VALUE(MID('CFR - XML import'!$A44,SEARCH(\">\",'CFR - XML import'!$A44,1)+1,SEARCH(\"/\",'CFR - XML import'!$A44,1)-SEARCH(\">\",'CFR - XML import'!$A44,1)-2)))","v":0},{"$f":"IF(ISERROR(FIND(T$3,'CFR - XML import'!$A44)),0,VALUE(MID('CFR - XML import'!$A44,SEARCH(\">\",'CFR - XML import'!$A44,1)+1,SEARCH(\"/\",'CFR - XML import'!$A44,1)-SEARCH(\">\",'CFR - XML import'!$A44,1)-2)))","v":0},{"$f":"IF(ISERROR(FIND(U$3,'CFR - XML import'!$A44)),0,VALUE(MID('CFR - XML import'!$A44,SEARCH(\">\",'CFR - XML import'!$A44,1)+1,SEARCH(\"/\",'CFR - XML import'!$A44,1)-SEARCH(\">\",'CFR - XML import'!$A44,1)-2)))","v":0},{"$f":"IF(ISERROR(FIND(V$3,'CFR - XML import'!$A44)),0,VALUE(MID('CFR - XML import'!$A44,SEARCH(\">\",'CFR - XML import'!$A44,1)+1,SEARCH(\"/\",'CFR - XML import'!$A44,1)-SEARCH(\">\",'CFR - XML import'!$A44,1)-2)))","v":0},{"$f":"IF(ISERROR(FIND(W$3,'CFR - XML import'!$A44)),0,VALUE(MID('CFR - XML import'!$A44,SEARCH(\">\",'CFR - XML import'!$A44,1)+1,SEARCH(\"/\",'CFR - XML import'!$A44,1)-SEARCH(\">\",'CFR - XML import'!$A44,1)-2)))","v":0},null,{"$f":"IF(ISERROR(FIND(Y$3,'CFR - XML import'!$A44)),0,VALUE(MID('CFR - XML import'!$A44,SEARCH(\">\",'CFR - XML import'!$A44,1)+1,SEARCH(\"/\",'CFR - XML import'!$A44,1)-SEARCH(\">\",'CFR - XML import'!$A44,1)-2)))","v":0},{"$f":"IF(ISERROR(FIND(Z$3,'CFR - XML import'!$A44)),0,VALUE(MID('CFR - XML import'!$A44,SEARCH(\">\",'CFR - XML import'!$A44,1)+1,SEARCH(\"/\",'CFR - XML import'!$A44,1)-SEARCH(\">\",'CFR - XML import'!$A44,1)-2)))","v":0},{"$f":"IF(ISERROR(FIND(AA$3,'CFR - XML import'!$A44)),0,VALUE(MID('CFR - XML import'!$A44,SEARCH(\">\",'CFR - XML import'!$A44,1)+1,SEARCH(\"/\",'CFR - XML import'!$A44,1)-SEARCH(\">\",'CFR - XML import'!$A44,1)-2)))","v":0},{"$f":"IF(ISERROR(FIND(AB$3,'CFR - XML import'!$A44)),0,VALUE(MID('CFR - XML import'!$A44,SEARCH(\">\",'CFR - XML import'!$A44,1)+1,SEARCH(\"/\",'CFR - XML import'!$A44,1)-SEARCH(\">\",'CFR - XML import'!$A44,1)-2)))","v":0},{"$f":"IF(ISERROR(FIND(AC$3,'CFR - XML import'!$A44)),0,VALUE(MID('CFR - XML import'!$A44,SEARCH(\">\",'CFR - XML import'!$A44,1)+1,SEARCH(\"/\",'CFR - XML import'!$A44,1)-SEARCH(\">\",'CFR - XML import'!$A44,1)-2)))","v":0},{"$f":"IF(ISERROR(FIND(AD$3,'CFR - XML import'!$A44)),0,VALUE(MID('CFR - XML import'!$A44,SEARCH(\">\",'CFR - XML import'!$A44,1)+1,SEARCH(\"/\",'CFR - XML import'!$A44,1)-SEARCH(\">\",'CFR - XML import'!$A44,1)-2)))","v":0},{"$f":"IF(ISERROR(FIND(AE$3,'CFR - XML import'!$A44)),0,VALUE(MID('CFR - XML import'!$A44,SEARCH(\">\",'CFR - XML import'!$A44,1)+1,SEARCH(\"/\",'CFR - XML import'!$A44,1)-SEARCH(\">\",'CFR - XML import'!$A44,1)-2)))","v":0},{"$f":"IF(ISERROR(FIND(AF$3,'CFR - XML import'!$A44)),0,VALUE(MID('CFR - XML import'!$A44,SEARCH(\">\",'CFR - XML import'!$A44,1)+1,SEARCH(\"/\",'CFR - XML import'!$A44,1)-SEARCH(\">\",'CFR - XML import'!$A44,1)-2)))","v":0},{"$f":"IF(ISERROR(FIND(AG$3,'CFR - XML import'!$A44)),0,VALUE(MID('CFR - XML import'!$A44,SEARCH(\">\",'CFR - XML import'!$A44,1)+1,SEARCH(\"/\",'CFR - XML import'!$A44,1)-SEARCH(\">\",'CFR - XML import'!$A44,1)-2)))","v":0},{"$f":"IF(ISERROR(FIND(AH$3,'CFR - XML import'!$A44)),0,VALUE(MID('CFR - XML import'!$A44,SEARCH(\">\",'CFR - XML import'!$A44,1)+1,SEARCH(\"/\",'CFR - XML import'!$A44,1)-SEARCH(\">\",'CFR - XML import'!$A44,1)-2)))","v":0},{"$f":"IF(ISERROR(FIND(AI$3,'CFR - XML import'!$A44)),0,VALUE(MID('CFR - XML import'!$A44,SEARCH(\">\",'CFR - XML import'!$A44,1)+1,SEARCH(\"/\",'CFR - XML import'!$A44,1)-SEARCH(\">\",'CFR - XML import'!$A44,1)-2)))","v":0},{"$f":"IF(ISERROR(FIND(AJ$3,'CFR - XML import'!$A44)),0,VALUE(MID('CFR - XML import'!$A44,SEARCH(\">\",'CFR - XML import'!$A44,1)+1,SEARCH(\"/\",'CFR - XML import'!$A44,1)-SEARCH(\">\",'CFR - XML import'!$A44,1)-2)))","v":0},{"$f":"IF(ISERROR(FIND(AK$3,'CFR - XML import'!$A44)),0,VALUE(MID('CFR - XML import'!$A44,SEARCH(\">\",'CFR - XML import'!$A44,1)+1,SEARCH(\"/\",'CFR - XML import'!$A44,1)-SEARCH(\">\",'CFR - XML import'!$A44,1)-2)))","v":0},{"$f":"IF(ISERROR(FIND(AL$3,'CFR - XML import'!$A44)),0,VALUE(MID('CFR - XML import'!$A44,SEARCH(\">\",'CFR - XML import'!$A44,1)+1,SEARCH(\"/\",'CFR - XML import'!$A44,1)-SEARCH(\">\",'CFR - XML import'!$A44,1)-2)))","v":0},{"$f":"IF(ISERROR(FIND(AM$3,'CFR - XML import'!$A44)),0,VALUE(MID('CFR - XML import'!$A44,SEARCH(\">\",'CFR - XML import'!$A44,1)+1,SEARCH(\"/\",'CFR - XML import'!$A44,1)-SEARCH(\">\",'CFR - XML import'!$A44,1)-2)))","v":0},{"$f":"IF(ISERROR(FIND(AN$3,'CFR - XML import'!$A44)),0,VALUE(MID('CFR - XML import'!$A44,SEARCH(\">\",'CFR - XML import'!$A44,1)+1,SEARCH(\"/\",'CFR - XML import'!$A44,1)-SEARCH(\">\",'CFR - XML import'!$A44,1)-2)))","v":0},{"$f":"IF(ISERROR(FIND(AO$3,'CFR - XML import'!$A44)),0,VALUE(MID('CFR - XML import'!$A44,SEARCH(\">\",'CFR - XML import'!$A44,1)+1,SEARCH(\"/\",'CFR - XML import'!$A44,1)-SEARCH(\">\",'CFR - XML import'!$A44,1)-2)))","v":0},{"$f":"IF(ISERROR(FIND(AP$3,'CFR - XML import'!$A44)),0,VALUE(MID('CFR - XML import'!$A44,SEARCH(\">\",'CFR - XML import'!$A44,1)+1,SEARCH(\"/\",'CFR - XML import'!$A44,1)-SEARCH(\">\",'CFR - XML import'!$A44,1)-2)))","v":0},{"$f":"IF(ISERROR(FIND(AQ$3,'CFR - XML import'!$A44)),0,VALUE(MID('CFR - XML import'!$A44,SEARCH(\">\",'CFR - XML import'!$A44,1)+1,SEARCH(\"/\",'CFR - XML import'!$A44,1)-SEARCH(\">\",'CFR - XML import'!$A44,1)-2)))","v":0},{"$f":"IF(ISERROR(FIND(AR$3,'CFR - XML import'!$A44)),0,VALUE(MID('CFR - XML import'!$A44,SEARCH(\">\",'CFR - XML import'!$A44,1)+1,SEARCH(\"/\",'CFR - XML import'!$A44,1)-SEARCH(\">\",'CFR - XML import'!$A44,1)-2)))","v":0},{"$f":"IF(ISERROR(FIND(AS$3,'CFR - XML import'!$A44)),0,VALUE(MID('CFR - XML import'!$A44,SEARCH(\">\",'CFR - XML import'!$A44,1)+1,SEARCH(\"/\",'CFR - XML import'!$A44,1)-SEARCH(\">\",'CFR - XML import'!$A44,1)-2)))","v":0},{"$f":"IF(ISERROR(FIND(AT$3,'CFR - XML import'!$A44)),0,VALUE(MID('CFR - XML import'!$A44,SEARCH(\">\",'CFR - XML import'!$A44,1)+1,SEARCH(\"/\",'CFR - XML import'!$A44,1)-SEARCH(\">\",'CFR - XML import'!$A44,1)-2)))","v":0},{"$f":"IF(ISERROR(FIND(AU$3,'CFR - XML import'!$A44)),0,VALUE(MID('CFR - XML import'!$A44,SEARCH(\">\",'CFR - XML import'!$A44,1)+1,SEARCH(\"/\",'CFR - XML import'!$A44,1)-SEARCH(\">\",'CFR - XML import'!$A44,1)-2)))","v":0},{"$f":"IF(ISERROR(FIND(AV$3,'CFR - XML import'!$A44)),0,VALUE(MID('CFR - XML import'!$A44,SEARCH(\">\",'CFR - XML import'!$A44,1)+1,SEARCH(\"/\",'CFR - XML import'!$A44,1)-SEARCH(\">\",'CFR - XML import'!$A44,1)-2)))","v":0},{"$f":"IF(ISERROR(FIND(AW$3,'CFR - XML import'!$A44)),0,VALUE(MID('CFR - XML import'!$A44,SEARCH(\">\",'CFR - XML import'!$A44,1)+1,SEARCH(\"/\",'CFR - XML import'!$A44,1)-SEARCH(\">\",'CFR - XML import'!$A44,1)-2)))","v":0},{"$f":"IF(ISERROR(FIND(AX$3,'CFR - XML import'!$A44)),0,VALUE(MID('CFR - XML import'!$A44,SEARCH(\">\",'CFR - XML import'!$A44,1)+1,SEARCH(\"/\",'CFR - XML import'!$A44,1)-SEARCH(\">\",'CFR - XML import'!$A44,1)-2)))","v":0},{"$f":"IF(ISERROR(FIND(AY$3,'CFR - XML import'!$A44)),0,VALUE(MID('CFR - XML import'!$A44,SEARCH(\">\",'CFR - XML import'!$A44,1)+1,SEARCH(\"/\",'CFR - XML import'!$A44,1)-SEARCH(\">\",'CFR - XML import'!$A44,1)-2)))","v":0},{"$f":"IF(ISERROR(FIND(AZ$3,'CFR - XML import'!$A44)),0,VALUE(MID('CFR - XML import'!$A44,SEARCH(\">\",'CFR - XML import'!$A44,1)+1,SEARCH(\"/\",'CFR - XML import'!$A44,1)-SEARCH(\">\",'CFR - XML import'!$A44,1)-2)))","v":0},{"$f":"IF(ISERROR(FIND(BA$3,'CFR - XML import'!$A44)),0,VALUE(MID('CFR - XML import'!$A44,SEARCH(\">\",'CFR - XML import'!$A44,1)+1,SEARCH(\"/\",'CFR - XML import'!$A44,1)-SEARCH(\">\",'CFR - XML import'!$A44,1)-2)))","v":0},{"$f":"IF(ISERROR(FIND(BB$3,'CFR - XML import'!$A44)),0,VALUE(MID('CFR - XML import'!$A44,SEARCH(\">\",'CFR - XML import'!$A44,1)+1,SEARCH(\"/\",'CFR - XML import'!$A44,1)-SEARCH(\">\",'CFR - XML import'!$A44,1)-2)))","v":0},{"$f":"IF(ISERROR(FIND(BC$3,'CFR - XML import'!$A44)),0,VALUE(MID('CFR - XML import'!$A44,SEARCH(\">\",'CFR - XML import'!$A44,1)+1,SEARCH(\"/\",'CFR - XML import'!$A44,1)-SEARCH(\">\",'CFR - XML import'!$A44,1)-2)))","v":0},{"$f":"IF(ISERROR(FIND(BD$3,'CFR - XML import'!$A44)),0,VALUE(MID('CFR - XML import'!$A44,SEARCH(\">\",'CFR - XML import'!$A44,1)+1,SEARCH(\"/\",'CFR - XML import'!$A44,1)-SEARCH(\">\",'CFR - XML import'!$A44,1)-2)))","v":0},{"$f":"IF(ISERROR(FIND(BE$3,'CFR - XML import'!$A44)),0,VALUE(MID('CFR - XML import'!$A44,SEARCH(\">\",'CFR - XML import'!$A44,1)+1,SEARCH(\"/\",'CFR - XML import'!$A44,1)-SEARCH(\">\",'CFR - XML import'!$A44,1)-2)))","v":0},{"$f":"IF(ISERROR(FIND(BF$3,'CFR - XML import'!$A44)),0,VALUE(MID('CFR - XML import'!$A44,SEARCH(\">\",'CFR - XML import'!$A44,1)+1,SEARCH(\"/\",'CFR - XML import'!$A44,1)-SEARCH(\">\",'CFR - XML import'!$A44,1)-2)))","v":0},{"$f":"IF(ISERROR(FIND(BG$3,'CFR - XML import'!$A44)),0,VALUE(MID('CFR - XML import'!$A44,SEARCH(\">\",'CFR - XML import'!$A44,1)+1,SEARCH(\"/\",'CFR - XML import'!$A44,1)-SEARCH(\">\",'CFR - XML import'!$A44,1)-2)))","v":0},{"$f":"IF(ISERROR(FIND(BH$3,'CFR - XML import'!$A44)),0,VALUE(MID('CFR - XML import'!$A44,SEARCH(\">\",'CFR - XML import'!$A44,1)+1,SEARCH(\"/\",'CFR - XML import'!$A44,1)-SEARCH(\">\",'CFR - XML import'!$A44,1)-2)))","v":0},{"$f":"IF(ISERROR(FIND(BI$3,'CFR - XML import'!$A44)),0,VALUE(MID('CFR - XML import'!$A44,SEARCH(\">\",'CFR - XML import'!$A44,1)+1,SEARCH(\"/\",'CFR - XML import'!$A44,1)-SEARCH(\">\",'CFR - XML import'!$A44,1)-2)))","v":0},{"$f":"IF(ISERROR(FIND(BJ$3,'CFR - XML import'!$A44)),0,VALUE(MID('CFR - XML import'!$A44,SEARCH(\">\",'CFR - XML import'!$A44,1)+1,SEARCH(\"/\",'CFR - XML import'!$A44,1)-SEARCH(\">\",'CFR - XML import'!$A44,1)-2)))","v":0},{"$f":"IF(ISERROR(FIND(BK$3,'CFR - XML import'!$A44)),0,VALUE(MID('CFR - XML import'!$A44,SEARCH(\">\",'CFR - XML import'!$A44,1)+1,SEARCH(\"/\",'CFR - XML import'!$A44,1)-SEARCH(\">\",'CFR - XML import'!$A44,1)-2)))","v":0},{"$f":"IF(ISERROR(FIND(BL$3,'CFR - XML import'!$A44)),0,VALUE(MID('CFR - XML import'!$A44,SEARCH(\">\",'CFR - XML import'!$A44,1)+1,SEARCH(\"/\",'CFR - XML import'!$A44,1)-SEARCH(\">\",'CFR - XML import'!$A44,1)-2)))","v":0},{"$f":"IF(ISERROR(FIND(BM$3,'CFR - XML import'!$A44)),0,VALUE(MID('CFR - XML import'!$A44,SEARCH(\">\",'CFR - XML import'!$A44,1)+1,SEARCH(\"/\",'CFR - XML import'!$A44,1)-SEARCH(\">\",'CFR - XML import'!$A44,1)-2)))","v":0},{"$f":"IF(ISERROR(FIND(BN$3,'CFR - XML import'!$A44)),0,VALUE(MID('CFR - XML import'!$A44,SEARCH(\">\",'CFR - XML import'!$A44,1)+1,SEARCH(\"/\",'CFR - XML import'!$A44,1)-SEARCH(\">\",'CFR - XML import'!$A44,1)-2)))","v":0},{"$f":"IF(ISERROR(FIND(BO$3,'CFR - XML import'!$A44)),0,VALUE(MID('CFR - XML import'!$A44,SEARCH(\">\",'CFR - XML import'!$A44,1)+1,SEARCH(\"/\",'CFR - XML import'!$A44,1)-SEARCH(\">\",'CFR - XML import'!$A44,1)-2)))","v":0},{"$f":"IF(ISERROR(FIND(BP$3,'CFR - XML import'!$A44)),0,VALUE(MID('CFR - XML import'!$A44,SEARCH(\">\",'CFR - XML import'!$A44,1)+1,SEARCH(\"/\",'CFR - XML import'!$A44,1)-SEARCH(\">\",'CFR - XML import'!$A44,1)-2)))","v":0},{"$f":"IF(ISERROR(FIND(BQ$3,'CFR - XML import'!$A44)),0,VALUE(MID('CFR - XML import'!$A44,SEARCH(\">\",'CFR - XML import'!$A44,1)+1,SEARCH(\"/\",'CFR - XML import'!$A44,1)-SEARCH(\">\",'CFR - XML import'!$A44,1)-2)))","v":0},{"$f":"IF(ISERROR(FIND(BR$3,'CFR - XML import'!$A44)),0,VALUE(MID('CFR - XML import'!$A44,SEARCH(\">\",'CFR - XML import'!$A44,1)+1,SEARCH(\"/\",'CFR - XML import'!$A44,1)-SEARCH(\">\",'CFR - XML import'!$A44,1)-2)))","v":0},{"$f":"IF(ISERROR(FIND(BS$3,'CFR - XML import'!$A44)),0,VALUE(MID('CFR - XML import'!$A44,SEARCH(\">\",'CFR - XML import'!$A44,1)+1,SEARCH(\"/\",'CFR - XML import'!$A44,1)-SEARCH(\">\",'CFR - XML import'!$A44,1)-2)))","v":0},{"$f":"IF(ISERROR(FIND(BT$3,'CFR - XML import'!$A44)),0,VALUE(MID('CFR - XML import'!$A44,SEARCH(\">\",'CFR - XML import'!$A44,1)+1,SEARCH(\"/\",'CFR - XML import'!$A44,1)-SEARCH(\">\",'CFR - XML import'!$A44,1)-2)))","v":0},{"$f":"IF(ISERROR(FIND(BU$3,'CFR - XML import'!$A44)),0,VALUE(MID('CFR - XML import'!$A44,SEARCH(\">\",'CFR - XML import'!$A44,1)+1,SEARCH(\"/\",'CFR - XML import'!$A44,1)-SEARCH(\">\",'CFR - XML import'!$A44,1)-2)))","v":0},{"$f":"IF(ISERROR(FIND(BV$3,'CFR - XML import'!$A44)),0,VALUE(MID('CFR - XML import'!$A44,SEARCH(\">\",'CFR - XML import'!$A44,1)+1,SEARCH(\"/\",'CFR - XML import'!$A44,1)-SEARCH(\">\",'CFR - XML import'!$A44,1)-2)))","v":0},{"$f":"IF(ISERROR(FIND(BW$3,'CFR - XML import'!$A44)),0,VALUE(MID('CFR - XML import'!$A44,SEARCH(\">\",'CFR - XML import'!$A44,1)+1,SEARCH(\"/\",'CFR - XML import'!$A44,1)-SEARCH(\">\",'CFR - XML import'!$A44,1)-2)))","v":0},{"$f":"IF(ISERROR(FIND(BX$3,'CFR - XML import'!$A44)),0,VALUE(MID('CFR - XML import'!$A44,SEARCH(\">\",'CFR - XML import'!$A44,1)+1,SEARCH(\"/\",'CFR - XML import'!$A44,1)-SEARCH(\">\",'CFR - XML import'!$A44,1)-2)))","v":0},{"$f":"IF(ISERROR(FIND(BY$3,'CFR - XML import'!$A44)),0,VALUE(MID('CFR - XML import'!$A44,SEARCH(\">\",'CFR - XML import'!$A44,1)+1,SEARCH(\"/\",'CFR - XML import'!$A44,1)-SEARCH(\">\",'CFR - XML import'!$A44,1)-2)))","v":0},{"$f":"IF(ISERROR(FIND(BZ$3,'CFR - XML import'!$A44)),0,VALUE(MID('CFR - XML import'!$A44,SEARCH(\">\",'CFR - XML import'!$A44,1)+1,SEARCH(\"/\",'CFR - XML import'!$A44,1)-SEARCH(\">\",'CFR - XML import'!$A44,1)-2)))","v":0},null,null,null,null,null,null,{"$f":"IF(ISERROR(IF(MID('CFR - XML import'!$A44,LEN($CF$4)+1,LEN('CFR - XML import'!$A44)-(2*LEN($CF$4)+1))=\"RMMS\",1,IF(MID('CFR - XML import'!$A44,LEN(\"    <InputSystem>\")+1,LEN('CFR - XML import'!$A44)-(LEN(\"    <InputSystem>\")+LEN($CF$4)+1))=\"SIMS\",2,0))),0,IF(MID('CFR - XML import'!$A44,LEN($CF$4)+1,LEN('CFR - XML import'!$A44)-(2*LEN($CF$4)+1))=\"RMMS\",1,IF(MID('CFR - XML import'!$A44,LEN(\"    <InputSystem>\")+1,LEN('CFR - XML import'!$A44)-(LEN(\"    <InputSystem>\")+LEN($CF$4)+1))=\"SIMS\",2,0)))","v":0},{"$f":"IF(ISERROR(FIND(CH$3,'CFR - XML import'!$A44)),0,MID('CFR - XML import'!$A44,SEARCH(\">\",'CFR - XML import'!$A44,1)+1,SEARCH(\"/\",'CFR - XML import'!$A44,1)-SEARCH(\">\",'CFR - XML import'!$A44,1)-2))","v":0},{"$f":"IF(ISERROR(FIND(CI$3,'CFR - XML import'!$A44)),0,MID('CFR - XML import'!$A44,SEARCH(\">\",'CFR - XML import'!$A44,1)+1,SEARCH(\"/\",'CFR - XML import'!$A44,1)-SEARCH(\">\",'CFR - XML import'!$A44,1)-2))","v":0},{"$f":"IF(ISERROR(FIND(CJ$3,'CFR - XML import'!$A44)),0,MID('CFR - XML import'!$A44,SEARCH(\">\",'CFR - XML import'!$A44,1)+1,SEARCH(\"/\",'CFR - XML import'!$A44,1)-SEARCH(\">\",'CFR - XML import'!$A44,1)-2))","v":0},{"$f":"IF(ISERROR(FIND(CK$3,'CFR - XML import'!$A44)),0,MID('CFR - XML import'!$A44,SEARCH(\">\",'CFR - XML import'!$A44,1)+1,SEARCH(\"/\",'CFR - XML import'!$A44,1)-SEARCH(\">\",'CFR - XML import'!$A44,1)-2))","v":0},{"$f":"IF(ISERROR(FIND(CL$3,'CFR - XML import'!$A44)),0,MID('CFR - XML import'!$A44,SEARCH(\">\",'CFR - XML import'!$A44,1)+1,SEARCH(\"/\",'CFR - XML import'!$A44,1)-SEARCH(\">\",'CFR - XML import'!$A44,1)-2))","v":0}]
[{"$f":"IF(AND('CFR - XML import'!A45<>\"\",LEFT('CFR - XML import'!A45,1)<>\"<\",LEFT('CFR - XML import'!A45,3)<>\"  <\",LEFT('CFR - XML import'!A45,5)<>\"    <\",LEFT('CFR - XML import'!A45,7)<>\"      <\",LEFT('CFR - XML import'!A45,9)<>\"        <\",$B$1=\"SIMS\"),'CFR - XML import'!A45,IF(AND(LEFT('CFR - XML import'!A45,9)=\"<Details>\",$B$1=\"RM\"),'CFR - XML import'!A45,\"\"))","v":""},{"$f":"IF(ISERROR(FIND(B$3,'CFR - XML import'!$A45)),0,VALUE(MID('CFR - XML import'!$A45,SEARCH(\">\",'CFR - XML import'!$A45,1)+1,SEARCH(\"/\",'CFR - XML import'!$A45,1)-SEARCH(\">\",'CFR - XML import'!$A45,1)-2)))","v":0},null,{"$f":"IF(ISERROR(FIND(D$3,'CFR - XML import'!$A45)),0,MID('CFR - XML import'!$A45,SEARCH(\">\",'CFR - XML import'!$A45,1)+1,SEARCH(\"/\",'CFR - XML import'!$A45,1)-SEARCH(\">\",'CFR - XML import'!$A45,1)-2))","v":0},{"$f":"IF(ISERROR(FIND(E$3,'CFR - XML import'!$A45)),0,MID('CFR - XML import'!$A45,SEARCH(\">\",'CFR - XML import'!$A45,1)+1,SEARCH(\"/\",'CFR - XML import'!$A45,1)-SEARCH(\">\",'CFR - XML import'!$A45,1)-2))","v":0},{"$f":"IF($B$1=\"SIMS\",IF(ISERROR(FIND(F$3,'CFR - XML import'!$A45)),0,VALUE(MID('CFR - XML import'!$A45,15,10))),IF(ISERROR(FIND(F$3,'CFR - XML import'!$A45)),0,VALUE(MID('CFR - XML import'!$A45,11,10))))","v":"00:00:00"},{"$f":"IF(ISERROR(FIND(G$3,'CFR - XML import'!$A45)),0,VALUE(MID('CFR - XML import'!$A45,SEARCH(\">\",'CFR - XML import'!$A45,1)+1,SEARCH(\"/\",'CFR - XML import'!$A45,1)-SEARCH(\">\",'CFR - XML import'!$A45,1)-2)))","v":0},{"$f":"IF(ISERROR(FIND(H$3,'CFR - XML import'!$A45)),0,VALUE(MID('CFR - XML import'!$A45,SEARCH(\">\",'CFR - XML import'!$A45,1)+1,SEARCH(\"/\",'CFR - XML import'!$A45,1)-SEARCH(\">\",'CFR - XML import'!$A45,1)-2)))","v":0},{"$f":"IF(ISERROR(FIND(I$3,'CFR - XML import'!$A45)),0,VALUE(MID('CFR - XML import'!$A45,SEARCH(\">\",'CFR - XML import'!$A45,1)+1,SEARCH(\"/\",'CFR - XML import'!$A45,1)-SEARCH(\">\",'CFR - XML import'!$A45,1)-2)))","v":0},{"$f":"IF(ISERROR(FIND(J$3,'CFR - XML import'!$A45)),0,VALUE(MID('CFR - XML import'!$A45,SEARCH(\">\",'CFR - XML import'!$A45,1)+1,SEARCH(\"/\",'CFR - XML import'!$A45,1)-SEARCH(\">\",'CFR - XML import'!$A45,1)-2)))","v":0},{"$f":"IF(ISERROR(FIND(K$3,'CFR - XML import'!$A45)),0,VALUE(MID('CFR - XML import'!$A45,SEARCH(\">\",'CFR - XML import'!$A45,1)+1,SEARCH(\"/\",'CFR - XML import'!$A45,1)-SEARCH(\">\",'CFR - XML import'!$A45,1)-2)))","v":0},{"$f":"IF(ISERROR(FIND(L$3,'CFR - XML import'!$A45)),0,VALUE(MID('CFR - XML import'!$A45,SEARCH(\">\",'CFR - XML import'!$A45,1)+1,SEARCH(\"/\",'CFR - XML import'!$A45,1)-SEARCH(\">\",'CFR - XML import'!$A45,1)-2)))","v":0},{"$f":"IF(ISERROR(FIND(M$3,'CFR - XML import'!$A45)),0,VALUE(MID('CFR - XML import'!$A45,SEARCH(\">\",'CFR - XML import'!$A45,1)+1,SEARCH(\"/\",'CFR - XML import'!$A45,1)-SEARCH(\">\",'CFR - XML import'!$A45,1)-2)))","v":0},{"$f":"IF(ISERROR(FIND(N$3,'CFR - XML import'!$A45)),0,VALUE(MID('CFR - XML import'!$A45,SEARCH(\">\",'CFR - XML import'!$A45,1)+1,SEARCH(\"/\",'CFR - XML import'!$A45,1)-SEARCH(\">\",'CFR - XML import'!$A45,1)-2)))","v":0},{"$f":"IF(ISERROR(FIND(O$3,'CFR - XML import'!$A45)),0,VALUE(MID('CFR - XML import'!$A45,SEARCH(\">\",'CFR - XML import'!$A45,1)+1,SEARCH(\"/\",'CFR - XML import'!$A45,1)-SEARCH(\">\",'CFR - XML import'!$A45,1)-2)))","v":0},{"$f":"IF(ISERROR(FIND(P$3,'CFR - XML import'!$A45)),0,VALUE(MID('CFR - XML import'!$A45,SEARCH(\">\",'CFR - XML import'!$A45,1)+1,SEARCH(\"/\",'CFR - XML import'!$A45,1)-SEARCH(\">\",'CFR - XML import'!$A45,1)-2)))","v":0},{"$f":"IF(ISERROR(FIND(Q$3,'CFR - XML import'!$A45)),0,VALUE(MID('CFR - XML import'!$A45,SEARCH(\">\",'CFR - XML import'!$A45,1)+1,SEARCH(\"/\",'CFR - XML import'!$A45,1)-SEARCH(\">\",'CFR - XML import'!$A45,1)-2)))","v":0},{"$f":"IF(ISERROR(FIND(R$3,'CFR - XML import'!$A45)),0,VALUE(MID('CFR - XML import'!$A45,SEARCH(\">\",'CFR - XML import'!$A45,1)+1,SEARCH(\"/\",'CFR - XML import'!$A45,1)-SEARCH(\">\",'CFR - XML import'!$A45,1)-2)))","v":0},{"$f":"IF(ISERROR(FIND(S$3,'CFR - XML import'!$A45)),0,VALUE(MID('CFR - XML import'!$A45,SEARCH(\">\",'CFR - XML import'!$A45,1)+1,SEARCH(\"/\",'CFR - XML import'!$A45,1)-SEARCH(\">\",'CFR - XML import'!$A45,1)-2)))","v":0},{"$f":"IF(ISERROR(FIND(T$3,'CFR - XML import'!$A45)),0,VALUE(MID('CFR - XML import'!$A45,SEARCH(\">\",'CFR - XML import'!$A45,1)+1,SEARCH(\"/\",'CFR - XML import'!$A45,1)-SEARCH(\">\",'CFR - XML import'!$A45,1)-2)))","v":0},{"$f":"IF(ISERROR(FIND(U$3,'CFR - XML import'!$A45)),0,VALUE(MID('CFR - XML import'!$A45,SEARCH(\">\",'CFR - XML import'!$A45,1)+1,SEARCH(\"/\",'CFR - XML import'!$A45,1)-SEARCH(\">\",'CFR - XML import'!$A45,1)-2)))","v":0},{"$f":"IF(ISERROR(FIND(V$3,'CFR - XML import'!$A45)),0,VALUE(MID('CFR - XML import'!$A45,SEARCH(\">\",'CFR - XML import'!$A45,1)+1,SEARCH(\"/\",'CFR - XML import'!$A45,1)-SEARCH(\">\",'CFR - XML import'!$A45,1)-2)))","v":0},{"$f":"IF(ISERROR(FIND(W$3,'CFR - XML import'!$A45)),0,VALUE(MID('CFR - XML import'!$A45,SEARCH(\">\",'CFR - XML import'!$A45,1)+1,SEARCH(\"/\",'CFR - XML import'!$A45,1)-SEARCH(\">\",'CFR - XML import'!$A45,1)-2)))","v":0},null,{"$f":"IF(ISERROR(FIND(Y$3,'CFR - XML import'!$A45)),0,VALUE(MID('CFR - XML import'!$A45,SEARCH(\">\",'CFR - XML import'!$A45,1)+1,SEARCH(\"/\",'CFR - XML import'!$A45,1)-SEARCH(\">\",'CFR - XML import'!$A45,1)-2)))","v":0},{"$f":"IF(ISERROR(FIND(Z$3,'CFR - XML import'!$A45)),0,VALUE(MID('CFR - XML import'!$A45,SEARCH(\">\",'CFR - XML import'!$A45,1)+1,SEARCH(\"/\",'CFR - XML import'!$A45,1)-SEARCH(\">\",'CFR - XML import'!$A45,1)-2)))","v":0},{"$f":"IF(ISERROR(FIND(AA$3,'CFR - XML import'!$A45)),0,VALUE(MID('CFR - XML import'!$A45,SEARCH(\">\",'CFR - XML import'!$A45,1)+1,SEARCH(\"/\",'CFR - XML import'!$A45,1)-SEARCH(\">\",'CFR - XML import'!$A45,1)-2)))","v":0},{"$f":"IF(ISERROR(FIND(AB$3,'CFR - XML import'!$A45)),0,VALUE(MID('CFR - XML import'!$A45,SEARCH(\">\",'CFR - XML import'!$A45,1)+1,SEARCH(\"/\",'CFR - XML import'!$A45,1)-SEARCH(\">\",'CFR - XML import'!$A45,1)-2)))","v":0},{"$f":"IF(ISERROR(FIND(AC$3,'CFR - XML import'!$A45)),0,VALUE(MID('CFR - XML import'!$A45,SEARCH(\">\",'CFR - XML import'!$A45,1)+1,SEARCH(\"/\",'CFR - XML import'!$A45,1)-SEARCH(\">\",'CFR - XML import'!$A45,1)-2)))","v":0},{"$f":"IF(ISERROR(FIND(AD$3,'CFR - XML import'!$A45)),0,VALUE(MID('CFR - XML import'!$A45,SEARCH(\">\",'CFR - XML import'!$A45,1)+1,SEARCH(\"/\",'CFR - XML import'!$A45,1)-SEARCH(\">\",'CFR - XML import'!$A45,1)-2)))","v":0},{"$f":"IF(ISERROR(FIND(AE$3,'CFR - XML import'!$A45)),0,VALUE(MID('CFR - XML import'!$A45,SEARCH(\">\",'CFR - XML import'!$A45,1)+1,SEARCH(\"/\",'CFR - XML import'!$A45,1)-SEARCH(\">\",'CFR - XML import'!$A45,1)-2)))","v":0},{"$f":"IF(ISERROR(FIND(AF$3,'CFR - XML import'!$A45)),0,VALUE(MID('CFR - XML import'!$A45,SEARCH(\">\",'CFR - XML import'!$A45,1)+1,SEARCH(\"/\",'CFR - XML import'!$A45,1)-SEARCH(\">\",'CFR - XML import'!$A45,1)-2)))","v":0},{"$f":"IF(ISERROR(FIND(AG$3,'CFR - XML import'!$A45)),0,VALUE(MID('CFR - XML import'!$A45,SEARCH(\">\",'CFR - XML import'!$A45,1)+1,SEARCH(\"/\",'CFR - XML import'!$A45,1)-SEARCH(\">\",'CFR - XML import'!$A45,1)-2)))","v":0},{"$f":"IF(ISERROR(FIND(AH$3,'CFR - XML import'!$A45)),0,VALUE(MID('CFR - XML import'!$A45,SEARCH(\">\",'CFR - XML import'!$A45,1)+1,SEARCH(\"/\",'CFR - XML import'!$A45,1)-SEARCH(\">\",'CFR - XML import'!$A45,1)-2)))","v":0},{"$f":"IF(ISERROR(FIND(AI$3,'CFR - XML import'!$A45)),0,VALUE(MID('CFR - XML import'!$A45,SEARCH(\">\",'CFR - XML import'!$A45,1)+1,SEARCH(\"/\",'CFR - XML import'!$A45,1)-SEARCH(\">\",'CFR - XML import'!$A45,1)-2)))","v":0},{"$f":"IF(ISERROR(FIND(AJ$3,'CFR - XML import'!$A45)),0,VALUE(MID('CFR - XML import'!$A45,SEARCH(\">\",'CFR - XML import'!$A45,1)+1,SEARCH(\"/\",'CFR - XML import'!$A45,1)-SEARCH(\">\",'CFR - XML import'!$A45,1)-2)))","v":0},{"$f":"IF(ISERROR(FIND(AK$3,'CFR - XML import'!$A45)),0,VALUE(MID('CFR - XML import'!$A45,SEARCH(\">\",'CFR - XML import'!$A45,1)+1,SEARCH(\"/\",'CFR - XML import'!$A45,1)-SEARCH(\">\",'CFR - XML import'!$A45,1)-2)))","v":0},{"$f":"IF(ISERROR(FIND(AL$3,'CFR - XML import'!$A45)),0,VALUE(MID('CFR - XML import'!$A45,SEARCH(\">\",'CFR - XML import'!$A45,1)+1,SEARCH(\"/\",'CFR - XML import'!$A45,1)-SEARCH(\">\",'CFR - XML import'!$A45,1)-2)))","v":0},{"$f":"IF(ISERROR(FIND(AM$3,'CFR - XML import'!$A45)),0,VALUE(MID('CFR - XML import'!$A45,SEARCH(\">\",'CFR - XML import'!$A45,1)+1,SEARCH(\"/\",'CFR - XML import'!$A45,1)-SEARCH(\">\",'CFR - XML import'!$A45,1)-2)))","v":0},{"$f":"IF(ISERROR(FIND(AN$3,'CFR - XML import'!$A45)),0,VALUE(MID('CFR - XML import'!$A45,SEARCH(\">\",'CFR - XML import'!$A45,1)+1,SEARCH(\"/\",'CFR - XML import'!$A45,1)-SEARCH(\">\",'CFR - XML import'!$A45,1)-2)))","v":0},{"$f":"IF(ISERROR(FIND(AO$3,'CFR - XML import'!$A45)),0,VALUE(MID('CFR - XML import'!$A45,SEARCH(\">\",'CFR - XML import'!$A45,1)+1,SEARCH(\"/\",'CFR - XML import'!$A45,1)-SEARCH(\">\",'CFR - XML import'!$A45,1)-2)))","v":0},{"$f":"IF(ISERROR(FIND(AP$3,'CFR - XML import'!$A45)),0,VALUE(MID('CFR - XML import'!$A45,SEARCH(\">\",'CFR - XML import'!$A45,1)+1,SEARCH(\"/\",'CFR - XML import'!$A45,1)-SEARCH(\">\",'CFR - XML import'!$A45,1)-2)))","v":0},{"$f":"IF(ISERROR(FIND(AQ$3,'CFR - XML import'!$A45)),0,VALUE(MID('CFR - XML import'!$A45,SEARCH(\">\",'CFR - XML import'!$A45,1)+1,SEARCH(\"/\",'CFR - XML import'!$A45,1)-SEARCH(\">\",'CFR - XML import'!$A45,1)-2)))","v":0},{"$f":"IF(ISERROR(FIND(AR$3,'CFR - XML import'!$A45)),0,VALUE(MID('CFR - XML import'!$A45,SEARCH(\">\",'CFR - XML import'!$A45,1)+1,SEARCH(\"/\",'CFR - XML import'!$A45,1)-SEARCH(\">\",'CFR - XML import'!$A45,1)-2)))","v":0},{"$f":"IF(ISERROR(FIND(AS$3,'CFR - XML import'!$A45)),0,VALUE(MID('CFR - XML import'!$A45,SEARCH(\">\",'CFR - XML import'!$A45,1)+1,SEARCH(\"/\",'CFR - XML import'!$A45,1)-SEARCH(\">\",'CFR - XML import'!$A45,1)-2)))","v":0},{"$f":"IF(ISERROR(FIND(AT$3,'CFR - XML import'!$A45)),0,VALUE(MID('CFR - XML import'!$A45,SEARCH(\">\",'CFR - XML import'!$A45,1)+1,SEARCH(\"/\",'CFR - XML import'!$A45,1)-SEARCH(\">\",'CFR - XML import'!$A45,1)-2)))","v":0},{"$f":"IF(ISERROR(FIND(AU$3,'CFR - XML import'!$A45)),0,VALUE(MID('CFR - XML import'!$A45,SEARCH(\">\",'CFR - XML import'!$A45,1)+1,SEARCH(\"/\",'CFR - XML import'!$A45,1)-SEARCH(\">\",'CFR - XML import'!$A45,1)-2)))","v":0},{"$f":"IF(ISERROR(FIND(AV$3,'CFR - XML import'!$A45)),0,VALUE(MID('CFR - XML import'!$A45,SEARCH(\">\",'CFR - XML import'!$A45,1)+1,SEARCH(\"/\",'CFR - XML import'!$A45,1)-SEARCH(\">\",'CFR - XML import'!$A45,1)-2)))","v":0},{"$f":"IF(ISERROR(FIND(AW$3,'CFR - XML import'!$A45)),0,VALUE(MID('CFR - XML import'!$A45,SEARCH(\">\",'CFR - XML import'!$A45,1)+1,SEARCH(\"/\",'CFR - XML import'!$A45,1)-SEARCH(\">\",'CFR - XML import'!$A45,1)-2)))","v":0},{"$f":"IF(ISERROR(FIND(AX$3,'CFR - XML import'!$A45)),0,VALUE(MID('CFR - XML import'!$A45,SEARCH(\">\",'CFR - XML import'!$A45,1)+1,SEARCH(\"/\",'CFR - XML import'!$A45,1)-SEARCH(\">\",'CFR - XML import'!$A45,1)-2)))","v":0},{"$f":"IF(ISERROR(FIND(AY$3,'CFR - XML import'!$A45)),0,VALUE(MID('CFR - XML import'!$A45,SEARCH(\">\",'CFR - XML import'!$A45,1)+1,SEARCH(\"/\",'CFR - XML import'!$A45,1)-SEARCH(\">\",'CFR - XML import'!$A45,1)-2)))","v":0},{"$f":"IF(ISERROR(FIND(AZ$3,'CFR - XML import'!$A45)),0,VALUE(MID('CFR - XML import'!$A45,SEARCH(\">\",'CFR - XML import'!$A45,1)+1,SEARCH(\"/\",'CFR - XML import'!$A45,1)-SEARCH(\">\",'CFR - XML import'!$A45,1)-2)))","v":0},{"$f":"IF(ISERROR(FIND(BA$3,'CFR - XML import'!$A45)),0,VALUE(MID('CFR - XML import'!$A45,SEARCH(\">\",'CFR - XML import'!$A45,1)+1,SEARCH(\"/\",'CFR - XML import'!$A45,1)-SEARCH(\">\",'CFR - XML import'!$A45,1)-2)))","v":0},{"$f":"IF(ISERROR(FIND(BB$3,'CFR - XML import'!$A45)),0,VALUE(MID('CFR - XML import'!$A45,SEARCH(\">\",'CFR - XML import'!$A45,1)+1,SEARCH(\"/\",'CFR - XML import'!$A45,1)-SEARCH(\">\",'CFR - XML import'!$A45,1)-2)))","v":0},{"$f":"IF(ISERROR(FIND(BC$3,'CFR - XML import'!$A45)),0,VALUE(MID('CFR - XML import'!$A45,SEARCH(\">\",'CFR - XML import'!$A45,1)+1,SEARCH(\"/\",'CFR - XML import'!$A45,1)-SEARCH(\">\",'CFR - XML import'!$A45,1)-2)))","v":0},{"$f":"IF(ISERROR(FIND(BD$3,'CFR - XML import'!$A45)),0,VALUE(MID('CFR - XML import'!$A45,SEARCH(\">\",'CFR - XML import'!$A45,1)+1,SEARCH(\"/\",'CFR - XML import'!$A45,1)-SEARCH(\">\",'CFR - XML import'!$A45,1)-2)))","v":0},{"$f":"IF(ISERROR(FIND(BE$3,'CFR - XML import'!$A45)),0,VALUE(MID('CFR - XML import'!$A45,SEARCH(\">\",'CFR - XML import'!$A45,1)+1,SEARCH(\"/\",'CFR - XML import'!$A45,1)-SEARCH(\">\",'CFR - XML import'!$A45,1)-2)))","v":0},{"$f":"IF(ISERROR(FIND(BF$3,'CFR - XML import'!$A45)),0,VALUE(MID('CFR - XML import'!$A45,SEARCH(\">\",'CFR - XML import'!$A45,1)+1,SEARCH(\"/\",'CFR - XML import'!$A45,1)-SEARCH(\">\",'CFR - XML import'!$A45,1)-2)))","v":0},{"$f":"IF(ISERROR(FIND(BG$3,'CFR - XML import'!$A45)),0,VALUE(MID('CFR - XML import'!$A45,SEARCH(\">\",'CFR - XML import'!$A45,1)+1,SEARCH(\"/\",'CFR - XML import'!$A45,1)-SEARCH(\">\",'CFR - XML import'!$A45,1)-2)))","v":0},{"$f":"IF(ISERROR(FIND(BH$3,'CFR - XML import'!$A45)),0,VALUE(MID('CFR - XML import'!$A45,SEARCH(\">\",'CFR - XML import'!$A45,1)+1,SEARCH(\"/\",'CFR - XML import'!$A45,1)-SEARCH(\">\",'CFR - XML import'!$A45,1)-2)))","v":0},{"$f":"IF(ISERROR(FIND(BI$3,'CFR - XML import'!$A45)),0,VALUE(MID('CFR - XML import'!$A45,SEARCH(\">\",'CFR - XML import'!$A45,1)+1,SEARCH(\"/\",'CFR - XML import'!$A45,1)-SEARCH(\">\",'CFR - XML import'!$A45,1)-2)))","v":0},{"$f":"IF(ISERROR(FIND(BJ$3,'CFR - XML import'!$A45)),0,VALUE(MID('CFR - XML import'!$A45,SEARCH(\">\",'CFR - XML import'!$A45,1)+1,SEARCH(\"/\",'CFR - XML import'!$A45,1)-SEARCH(\">\",'CFR - XML import'!$A45,1)-2)))","v":0},{"$f":"IF(ISERROR(FIND(BK$3,'CFR - XML import'!$A45)),0,VALUE(MID('CFR - XML import'!$A45,SEARCH(\">\",'CFR - XML import'!$A45,1)+1,SEARCH(\"/\",'CFR - XML import'!$A45,1)-SEARCH(\">\",'CFR - XML import'!$A45,1)-2)))","v":0},{"$f":"IF(ISERROR(FIND(BL$3,'CFR - XML import'!$A45)),0,VALUE(MID('CFR - XML import'!$A45,SEARCH(\">\",'CFR - XML import'!$A45,1)+1,SEARCH(\"/\",'CFR - XML import'!$A45,1)-SEARCH(\">\",'CFR - XML import'!$A45,1)-2)))","v":0},{"$f":"IF(ISERROR(FIND(BM$3,'CFR - XML import'!$A45)),0,VALUE(MID('CFR - XML import'!$A45,SEARCH(\">\",'CFR - XML import'!$A45,1)+1,SEARCH(\"/\",'CFR - XML import'!$A45,1)-SEARCH(\">\",'CFR - XML import'!$A45,1)-2)))","v":0},{"$f":"IF(ISERROR(FIND(BN$3,'CFR - XML import'!$A45)),0,VALUE(MID('CFR - XML import'!$A45,SEARCH(\">\",'CFR - XML import'!$A45,1)+1,SEARCH(\"/\",'CFR - XML import'!$A45,1)-SEARCH(\">\",'CFR - XML import'!$A45,1)-2)))","v":0},{"$f":"IF(ISERROR(FIND(BO$3,'CFR - XML import'!$A45)),0,VALUE(MID('CFR - XML import'!$A45,SEARCH(\">\",'CFR - XML import'!$A45,1)+1,SEARCH(\"/\",'CFR - XML import'!$A45,1)-SEARCH(\">\",'CFR - XML import'!$A45,1)-2)))","v":0},{"$f":"IF(ISERROR(FIND(BP$3,'CFR - XML import'!$A45)),0,VALUE(MID('CFR - XML import'!$A45,SEARCH(\">\",'CFR - XML import'!$A45,1)+1,SEARCH(\"/\",'CFR - XML import'!$A45,1)-SEARCH(\">\",'CFR - XML import'!$A45,1)-2)))","v":0},{"$f":"IF(ISERROR(FIND(BQ$3,'CFR - XML import'!$A45)),0,VALUE(MID('CFR - XML import'!$A45,SEARCH(\">\",'CFR - XML import'!$A45,1)+1,SEARCH(\"/\",'CFR - XML import'!$A45,1)-SEARCH(\">\",'CFR - XML import'!$A45,1)-2)))","v":0},{"$f":"IF(ISERROR(FIND(BR$3,'CFR - XML import'!$A45)),0,VALUE(MID('CFR - XML import'!$A45,SEARCH(\">\",'CFR - XML import'!$A45,1)+1,SEARCH(\"/\",'CFR - XML import'!$A45,1)-SEARCH(\">\",'CFR - XML import'!$A45,1)-2)))","v":0},{"$f":"IF(ISERROR(FIND(BS$3,'CFR - XML import'!$A45)),0,VALUE(MID('CFR - XML import'!$A45,SEARCH(\">\",'CFR - XML import'!$A45,1)+1,SEARCH(\"/\",'CFR - XML import'!$A45,1)-SEARCH(\">\",'CFR - XML import'!$A45,1)-2)))","v":0},{"$f":"IF(ISERROR(FIND(BT$3,'CFR - XML import'!$A45)),0,VALUE(MID('CFR - XML import'!$A45,SEARCH(\">\",'CFR - XML import'!$A45,1)+1,SEARCH(\"/\",'CFR - XML import'!$A45,1)-SEARCH(\">\",'CFR - XML import'!$A45,1)-2)))","v":0},{"$f":"IF(ISERROR(FIND(BU$3,'CFR - XML import'!$A45)),0,VALUE(MID('CFR - XML import'!$A45,SEARCH(\">\",'CFR - XML import'!$A45,1)+1,SEARCH(\"/\",'CFR - XML import'!$A45,1)-SEARCH(\">\",'CFR - XML import'!$A45,1)-2)))","v":0},{"$f":"IF(ISERROR(FIND(BV$3,'CFR - XML import'!$A45)),0,VALUE(MID('CFR - XML import'!$A45,SEARCH(\">\",'CFR - XML import'!$A45,1)+1,SEARCH(\"/\",'CFR - XML import'!$A45,1)-SEARCH(\">\",'CFR - XML import'!$A45,1)-2)))","v":0},{"$f":"IF(ISERROR(FIND(BW$3,'CFR - XML import'!$A45)),0,VALUE(MID('CFR - XML import'!$A45,SEARCH(\">\",'CFR - XML import'!$A45,1)+1,SEARCH(\"/\",'CFR - XML import'!$A45,1)-SEARCH(\">\",'CFR - XML import'!$A45,1)-2)))","v":0},{"$f":"IF(ISERROR(FIND(BX$3,'CFR - XML import'!$A45)),0,VALUE(MID('CFR - XML import'!$A45,SEARCH(\">\",'CFR - XML import'!$A45,1)+1,SEARCH(\"/\",'CFR - XML import'!$A45,1)-SEARCH(\">\",'CFR - XML import'!$A45,1)-2)))","v":0},{"$f":"IF(ISERROR(FIND(BY$3,'CFR - XML import'!$A45)),0,VALUE(MID('CFR - XML import'!$A45,SEARCH(\">\",'CFR - XML import'!$A45,1)+1,SEARCH(\"/\",'CFR - XML import'!$A45,1)-SEARCH(\">\",'CFR - XML import'!$A45,1)-2)))","v":0},{"$f":"IF(ISERROR(FIND(BZ$3,'CFR - XML import'!$A45)),0,VALUE(MID('CFR - XML import'!$A45,SEARCH(\">\",'CFR - XML import'!$A45,1)+1,SEARCH(\"/\",'CFR - XML import'!$A45,1)-SEARCH(\">\",'CFR - XML import'!$A45,1)-2)))","v":0},null,null,null,null,null,null,{"$f":"IF(ISERROR(IF(MID('CFR - XML import'!$A45,LEN($CF$4)+1,LEN('CFR - XML import'!$A45)-(2*LEN($CF$4)+1))=\"RMMS\",1,IF(MID('CFR - XML import'!$A45,LEN(\"    <InputSystem>\")+1,LEN('CFR - XML import'!$A45)-(LEN(\"    <InputSystem>\")+LEN($CF$4)+1))=\"SIMS\",2,0))),0,IF(MID('CFR - XML import'!$A45,LEN($CF$4)+1,LEN('CFR - XML import'!$A45)-(2*LEN($CF$4)+1))=\"RMMS\",1,IF(MID('CFR - XML import'!$A45,LEN(\"    <InputSystem>\")+1,LEN('CFR - XML import'!$A45)-(LEN(\"    <InputSystem>\")+LEN($CF$4)+1))=\"SIMS\",2,0)))","v":0},{"$f":"IF(ISERROR(FIND(CH$3,'CFR - XML import'!$A45)),0,MID('CFR - XML import'!$A45,SEARCH(\">\",'CFR - XML import'!$A45,1)+1,SEARCH(\"/\",'CFR - XML import'!$A45,1)-SEARCH(\">\",'CFR - XML import'!$A45,1)-2))","v":0},{"$f":"IF(ISERROR(FIND(CI$3,'CFR - XML import'!$A45)),0,MID('CFR - XML import'!$A45,SEARCH(\">\",'CFR - XML import'!$A45,1)+1,SEARCH(\"/\",'CFR - XML import'!$A45,1)-SEARCH(\">\",'CFR - XML import'!$A45,1)-2))","v":0},{"$f":"IF(ISERROR(FIND(CJ$3,'CFR - XML import'!$A45)),0,MID('CFR - XML import'!$A45,SEARCH(\">\",'CFR - XML import'!$A45,1)+1,SEARCH(\"/\",'CFR - XML import'!$A45,1)-SEARCH(\">\",'CFR - XML import'!$A45,1)-2))","v":0},{"$f":"IF(ISERROR(FIND(CK$3,'CFR - XML import'!$A45)),0,MID('CFR - XML import'!$A45,SEARCH(\">\",'CFR - XML import'!$A45,1)+1,SEARCH(\"/\",'CFR - XML import'!$A45,1)-SEARCH(\">\",'CFR - XML import'!$A45,1)-2))","v":0},{"$f":"IF(ISERROR(FIND(CL$3,'CFR - XML import'!$A45)),0,MID('CFR - XML import'!$A45,SEARCH(\">\",'CFR - XML import'!$A45,1)+1,SEARCH(\"/\",'CFR - XML import'!$A45,1)-SEARCH(\">\",'CFR - XML import'!$A45,1)-2))","v":0}]
[{"$f":"IF(AND('CFR - XML import'!A46<>\"\",LEFT('CFR - XML import'!A46,1)<>\"<\",LEFT('CFR - XML import'!A46,3)<>\"  <\",LEFT('CFR - XML import'!A46,5)<>\"    <\",LEFT('CFR - XML import'!A46,7)<>\"      <\",LEFT('CFR - XML import'!A46,9)<>\"        <\",$B$1=\"SIMS\"),'CFR - XML import'!A46,IF(AND(LEFT('CFR - XML import'!A46,9)=\"<Details>\",$B$1=\"RM\"),'CFR - XML import'!A46,\"\"))","v":""},{"$f":"IF(ISERROR(FIND(B$3,'CFR - XML import'!$A46)),0,VALUE(MID('CFR - XML import'!$A46,SEARCH(\">\",'CFR - XML import'!$A46,1)+1,SEARCH(\"/\",'CFR - XML import'!$A46,1)-SEARCH(\">\",'CFR - XML import'!$A46,1)-2)))","v":0},null,{"$f":"IF(ISERROR(FIND(D$3,'CFR - XML import'!$A46)),0,MID('CFR - XML import'!$A46,SEARCH(\">\",'CFR - XML import'!$A46,1)+1,SEARCH(\"/\",'CFR - XML import'!$A46,1)-SEARCH(\">\",'CFR - XML import'!$A46,1)-2))","v":0},{"$f":"IF(ISERROR(FIND(E$3,'CFR - XML import'!$A46)),0,MID('CFR - XML import'!$A46,SEARCH(\">\",'CFR - XML import'!$A46,1)+1,SEARCH(\"/\",'CFR - XML import'!$A46,1)-SEARCH(\">\",'CFR - XML import'!$A46,1)-2))","v":0},{"$f":"IF($B$1=\"SIMS\",IF(ISERROR(FIND(F$3,'CFR - XML import'!$A46)),0,VALUE(MID('CFR - XML import'!$A46,15,10))),IF(ISERROR(FIND(F$3,'CFR - XML import'!$A46)),0,VALUE(MID('CFR - XML import'!$A46,11,10))))","v":"00:00:00"},{"$f":"IF(ISERROR(FIND(G$3,'CFR - XML import'!$A46)),0,VALUE(MID('CFR - XML import'!$A46,SEARCH(\">\",'CFR - XML import'!$A46,1)+1,SEARCH(\"/\",'CFR - XML import'!$A46,1)-SEARCH(\">\",'CFR - XML import'!$A46,1)-2)))","v":0},{"$f":"IF(ISERROR(FIND(H$3,'CFR - XML import'!$A46)),0,VALUE(MID('CFR - XML import'!$A46,SEARCH(\">\",'CFR - XML import'!$A46,1)+1,SEARCH(\"/\",'CFR - XML import'!$A46,1)-SEARCH(\">\",'CFR - XML import'!$A46,1)-2)))","v":0},{"$f":"IF(ISERROR(FIND(I$3,'CFR - XML import'!$A46)),0,VALUE(MID('CFR - XML import'!$A46,SEARCH(\">\",'CFR - XML import'!$A46,1)+1,SEARCH(\"/\",'CFR - XML import'!$A46,1)-SEARCH(\">\",'CFR - XML import'!$A46,1)-2)))","v":0},{"$f":"IF(ISERROR(FIND(J$3,'CFR - XML import'!$A46)),0,VALUE(MID('CFR - XML import'!$A46,SEARCH(\">\",'CFR - XML import'!$A46,1)+1,SEARCH(\"/\",'CFR - XML import'!$A46,1)-SEARCH(\">\",'CFR - XML import'!$A46,1)-2)))","v":0},{"$f":"IF(ISERROR(FIND(K$3,'CFR - XML import'!$A46)),0,VALUE(MID('CFR - XML import'!$A46,SEARCH(\">\",'CFR - XML import'!$A46,1)+1,SEARCH(\"/\",'CFR - XML import'!$A46,1)-SEARCH(\">\",'CFR - XML import'!$A46,1)-2)))","v":0},{"$f":"IF(ISERROR(FIND(L$3,'CFR - XML import'!$A46)),0,VALUE(MID('CFR - XML import'!$A46,SEARCH(\">\",'CFR - XML import'!$A46,1)+1,SEARCH(\"/\",'CFR - XML import'!$A46,1)-SEARCH(\">\",'CFR - XML import'!$A46,1)-2)))","v":0},{"$f":"IF(ISERROR(FIND(M$3,'CFR - XML import'!$A46)),0,VALUE(MID('CFR - XML import'!$A46,SEARCH(\">\",'CFR - XML import'!$A46,1)+1,SEARCH(\"/\",'CFR - XML import'!$A46,1)-SEARCH(\">\",'CFR - XML import'!$A46,1)-2)))","v":0},{"$f":"IF(ISERROR(FIND(N$3,'CFR - XML import'!$A46)),0,VALUE(MID('CFR - XML import'!$A46,SEARCH(\">\",'CFR - XML import'!$A46,1)+1,SEARCH(\"/\",'CFR - XML import'!$A46,1)-SEARCH(\">\",'CFR - XML import'!$A46,1)-2)))","v":0},{"$f":"IF(ISERROR(FIND(O$3,'CFR - XML import'!$A46)),0,VALUE(MID('CFR - XML import'!$A46,SEARCH(\">\",'CFR - XML import'!$A46,1)+1,SEARCH(\"/\",'CFR - XML import'!$A46,1)-SEARCH(\">\",'CFR - XML import'!$A46,1)-2)))","v":0},{"$f":"IF(ISERROR(FIND(P$3,'CFR - XML import'!$A46)),0,VALUE(MID('CFR - XML import'!$A46,SEARCH(\">\",'CFR - XML import'!$A46,1)+1,SEARCH(\"/\",'CFR - XML import'!$A46,1)-SEARCH(\">\",'CFR - XML import'!$A46,1)-2)))","v":0},{"$f":"IF(ISERROR(FIND(Q$3,'CFR - XML import'!$A46)),0,VALUE(MID('CFR - XML import'!$A46,SEARCH(\">\",'CFR - XML import'!$A46,1)+1,SEARCH(\"/\",'CFR - XML import'!$A46,1)-SEARCH(\">\",'CFR - XML import'!$A46,1)-2)))","v":0},{"$f":"IF(ISERROR(FIND(R$3,'CFR - XML import'!$A46)),0,VALUE(MID('CFR - XML import'!$A46,SEARCH(\">\",'CFR - XML import'!$A46,1)+1,SEARCH(\"/\",'CFR - XML import'!$A46,1)-SEARCH(\">\",'CFR - XML import'!$A46,1)-2)))","v":0},{"$f":"IF(ISERROR(FIND(S$3,'CFR - XML import'!$A46)),0,VALUE(MID('CFR - XML import'!$A46,SEARCH(\">\",'CFR - XML import'!$A46,1)+1,SEARCH(\"/\",'CFR - XML import'!$A46,1)-SEARCH(\">\",'CFR - XML import'!$A46,1)-2)))","v":0},{"$f":"IF(ISERROR(FIND(T$3,'CFR - XML import'!$A46)),0,VALUE(MID('CFR - XML import'!$A46,SEARCH(\">\",'CFR - XML import'!$A46,1)+1,SEARCH(\"/\",'CFR - XML import'!$A46,1)-SEARCH(\">\",'CFR - XML import'!$A46,1)-2)))","v":0},{"$f":"IF(ISERROR(FIND(U$3,'CFR - XML import'!$A46)),0,VALUE(MID('CFR - XML import'!$A46,SEARCH(\">\",'CFR - XML import'!$A46,1)+1,SEARCH(\"/\",'CFR - XML import'!$A46,1)-SEARCH(\">\",'CFR - XML import'!$A46,1)-2)))","v":0},{"$f":"IF(ISERROR(FIND(V$3,'CFR - XML import'!$A46)),0,VALUE(MID('CFR - XML import'!$A46,SEARCH(\">\",'CFR - XML import'!$A46,1)+1,SEARCH(\"/\",'CFR - XML import'!$A46,1)-SEARCH(\">\",'CFR - XML import'!$A46,1)-2)))","v":0},{"$f":"IF(ISERROR(FIND(W$3,'CFR - XML import'!$A46)),0,VALUE(MID('CFR - XML import'!$A46,SEARCH(\">\",'CFR - XML import'!$A46,1)+1,SEARCH(\"/\",'CFR - XML import'!$A46,1)-SEARCH(\">\",'CFR - XML import'!$A46,1)-2)))","v":0},null,{"$f":"IF(ISERROR(FIND(Y$3,'CFR - XML import'!$A46)),0,VALUE(MID('CFR - XML import'!$A46,SEARCH(\">\",'CFR - XML import'!$A46,1)+1,SEARCH(\"/\",'CFR - XML import'!$A46,1)-SEARCH(\">\",'CFR - XML import'!$A46,1)-2)))","v":0},{"$f":"IF(ISERROR(FIND(Z$3,'CFR - XML import'!$A46)),0,VALUE(MID('CFR - XML import'!$A46,SEARCH(\">\",'CFR - XML import'!$A46,1)+1,SEARCH(\"/\",'CFR - XML import'!$A46,1)-SEARCH(\">\",'CFR - XML import'!$A46,1)-2)))","v":0},{"$f":"IF(ISERROR(FIND(AA$3,'CFR - XML import'!$A46)),0,VALUE(MID('CFR - XML import'!$A46,SEARCH(\">\",'CFR - XML import'!$A46,1)+1,SEARCH(\"/\",'CFR - XML import'!$A46,1)-SEARCH(\">\",'CFR - XML import'!$A46,1)-2)))","v":0},{"$f":"IF(ISERROR(FIND(AB$3,'CFR - XML import'!$A46)),0,VALUE(MID('CFR - XML import'!$A46,SEARCH(\">\",'CFR - XML import'!$A46,1)+1,SEARCH(\"/\",'CFR - XML import'!$A46,1)-SEARCH(\">\",'CFR - XML import'!$A46,1)-2)))","v":0},{"$f":"IF(ISERROR(FIND(AC$3,'CFR - XML import'!$A46)),0,VALUE(MID('CFR - XML import'!$A46,SEARCH(\">\",'CFR - XML import'!$A46,1)+1,SEARCH(\"/\",'CFR - XML import'!$A46,1)-SEARCH(\">\",'CFR - XML import'!$A46,1)-2)))","v":0},{"$f":"IF(ISERROR(FIND(AD$3,'CFR - XML import'!$A46)),0,VALUE(MID('CFR - XML import'!$A46,SEARCH(\">\",'CFR - XML import'!$A46,1)+1,SEARCH(\"/\",'CFR - XML import'!$A46,1)-SEARCH(\">\",'CFR - XML import'!$A46,1)-2)))","v":0},{"$f":"IF(ISERROR(FIND(AE$3,'CFR - XML import'!$A46)),0,VALUE(MID('CFR - XML import'!$A46,SEARCH(\">\",'CFR - XML import'!$A46,1)+1,SEARCH(\"/\",'CFR - XML import'!$A46,1)-SEARCH(\">\",'CFR - XML import'!$A46,1)-2)))","v":0},{"$f":"IF(ISERROR(FIND(AF$3,'CFR - XML import'!$A46)),0,VALUE(MID('CFR - XML import'!$A46,SEARCH(\">\",'CFR - XML import'!$A46,1)+1,SEARCH(\"/\",'CFR - XML import'!$A46,1)-SEARCH(\">\",'CFR - XML import'!$A46,1)-2)))","v":0},{"$f":"IF(ISERROR(FIND(AG$3,'CFR - XML import'!$A46)),0,VALUE(MID('CFR - XML import'!$A46,SEARCH(\">\",'CFR - XML import'!$A46,1)+1,SEARCH(\"/\",'CFR - XML import'!$A46,1)-SEARCH(\">\",'CFR - XML import'!$A46,1)-2)))","v":0},{"$f":"IF(ISERROR(FIND(AH$3,'CFR - XML import'!$A46)),0,VALUE(MID('CFR - XML import'!$A46,SEARCH(\">\",'CFR - XML import'!$A46,1)+1,SEARCH(\"/\",'CFR - XML import'!$A46,1)-SEARCH(\">\",'CFR - XML import'!$A46,1)-2)))","v":0},{"$f":"IF(ISERROR(FIND(AI$3,'CFR - XML import'!$A46)),0,VALUE(MID('CFR - XML import'!$A46,SEARCH(\">\",'CFR - XML import'!$A46,1)+1,SEARCH(\"/\",'CFR - XML import'!$A46,1)-SEARCH(\">\",'CFR - XML import'!$A46,1)-2)))","v":0},{"$f":"IF(ISERROR(FIND(AJ$3,'CFR - XML import'!$A46)),0,VALUE(MID('CFR - XML import'!$A46,SEARCH(\">\",'CFR - XML import'!$A46,1)+1,SEARCH(\"/\",'CFR - XML import'!$A46,1)-SEARCH(\">\",'CFR - XML import'!$A46,1)-2)))","v":0},{"$f":"IF(ISERROR(FIND(AK$3,'CFR - XML import'!$A46)),0,VALUE(MID('CFR - XML import'!$A46,SEARCH(\">\",'CFR - XML import'!$A46,1)+1,SEARCH(\"/\",'CFR - XML import'!$A46,1)-SEARCH(\">\",'CFR - XML import'!$A46,1)-2)))","v":0},{"$f":"IF(ISERROR(FIND(AL$3,'CFR - XML import'!$A46)),0,VALUE(MID('CFR - XML import'!$A46,SEARCH(\">\",'CFR - XML import'!$A46,1)+1,SEARCH(\"/\",'CFR - XML import'!$A46,1)-SEARCH(\">\",'CFR - XML import'!$A46,1)-2)))","v":0},{"$f":"IF(ISERROR(FIND(AM$3,'CFR - XML import'!$A46)),0,VALUE(MID('CFR - XML import'!$A46,SEARCH(\">\",'CFR - XML import'!$A46,1)+1,SEARCH(\"/\",'CFR - XML import'!$A46,1)-SEARCH(\">\",'CFR - XML import'!$A46,1)-2)))","v":0},{"$f":"IF(ISERROR(FIND(AN$3,'CFR - XML import'!$A46)),0,VALUE(MID('CFR - XML import'!$A46,SEARCH(\">\",'CFR - XML import'!$A46,1)+1,SEARCH(\"/\",'CFR - XML import'!$A46,1)-SEARCH(\">\",'CFR - XML import'!$A46,1)-2)))","v":0},{"$f":"IF(ISERROR(FIND(AO$3,'CFR - XML import'!$A46)),0,VALUE(MID('CFR - XML import'!$A46,SEARCH(\">\",'CFR - XML import'!$A46,1)+1,SEARCH(\"/\",'CFR - XML import'!$A46,1)-SEARCH(\">\",'CFR - XML import'!$A46,1)-2)))","v":0},{"$f":"IF(ISERROR(FIND(AP$3,'CFR - XML import'!$A46)),0,VALUE(MID('CFR - XML import'!$A46,SEARCH(\">\",'CFR - XML import'!$A46,1)+1,SEARCH(\"/\",'CFR - XML import'!$A46,1)-SEARCH(\">\",'CFR - XML import'!$A46,1)-2)))","v":0},{"$f":"IF(ISERROR(FIND(AQ$3,'CFR - XML import'!$A46)),0,VALUE(MID('CFR - XML import'!$A46,SEARCH(\">\",'CFR - XML import'!$A46,1)+1,SEARCH(\"/\",'CFR - XML import'!$A46,1)-SEARCH(\">\",'CFR - XML import'!$A46,1)-2)))","v":0},{"$f":"IF(ISERROR(FIND(AR$3,'CFR - XML import'!$A46)),0,VALUE(MID('CFR - XML import'!$A46,SEARCH(\">\",'CFR - XML import'!$A46,1)+1,SEARCH(\"/\",'CFR - XML import'!$A46,1)-SEARCH(\">\",'CFR - XML import'!$A46,1)-2)))","v":0},{"$f":"IF(ISERROR(FIND(AS$3,'CFR - XML import'!$A46)),0,VALUE(MID('CFR - XML import'!$A46,SEARCH(\">\",'CFR - XML import'!$A46,1)+1,SEARCH(\"/\",'CFR - XML import'!$A46,1)-SEARCH(\">\",'CFR - XML import'!$A46,1)-2)))","v":0},{"$f":"IF(ISERROR(FIND(AT$3,'CFR - XML import'!$A46)),0,VALUE(MID('CFR - XML import'!$A46,SEARCH(\">\",'CFR - XML import'!$A46,1)+1,SEARCH(\"/\",'CFR - XML import'!$A46,1)-SEARCH(\">\",'CFR - XML import'!$A46,1)-2)))","v":0},{"$f":"IF(ISERROR(FIND(AU$3,'CFR - XML import'!$A46)),0,VALUE(MID('CFR - XML import'!$A46,SEARCH(\">\",'CFR - XML import'!$A46,1)+1,SEARCH(\"/\",'CFR - XML import'!$A46,1)-SEARCH(\">\",'CFR - XML import'!$A46,1)-2)))","v":0},{"$f":"IF(ISERROR(FIND(AV$3,'CFR - XML import'!$A46)),0,VALUE(MID('CFR - XML import'!$A46,SEARCH(\">\",'CFR - XML import'!$A46,1)+1,SEARCH(\"/\",'CFR - XML import'!$A46,1)-SEARCH(\">\",'CFR - XML import'!$A46,1)-2)))","v":0},{"$f":"IF(ISERROR(FIND(AW$3,'CFR - XML import'!$A46)),0,VALUE(MID('CFR - XML import'!$A46,SEARCH(\">\",'CFR - XML import'!$A46,1)+1,SEARCH(\"/\",'CFR - XML import'!$A46,1)-SEARCH(\">\",'CFR - XML import'!$A46,1)-2)))","v":0},{"$f":"IF(ISERROR(FIND(AX$3,'CFR - XML import'!$A46)),0,VALUE(MID('CFR - XML import'!$A46,SEARCH(\">\",'CFR - XML import'!$A46,1)+1,SEARCH(\"/\",'CFR - XML import'!$A46,1)-SEARCH(\">\",'CFR - XML import'!$A46,1)-2)))","v":0},{"$f":"IF(ISERROR(FIND(AY$3,'CFR - XML import'!$A46)),0,VALUE(MID('CFR - XML import'!$A46,SEARCH(\">\",'CFR - XML import'!$A46,1)+1,SEARCH(\"/\",'CFR - XML import'!$A46,1)-SEARCH(\">\",'CFR - XML import'!$A46,1)-2)))","v":0},{"$f":"IF(ISERROR(FIND(AZ$3,'CFR - XML import'!$A46)),0,VALUE(MID('CFR - XML import'!$A46,SEARCH(\">\",'CFR - XML import'!$A46,1)+1,SEARCH(\"/\",'CFR - XML import'!$A46,1)-SEARCH(\">\",'CFR - XML import'!$A46,1)-2)))","v":0},{"$f":"IF(ISERROR(FIND(BA$3,'CFR - XML import'!$A46)),0,VALUE(MID('CFR - XML import'!$A46,SEARCH(\">\",'CFR - XML import'!$A46,1)+1,SEARCH(\"/\",'CFR - XML import'!$A46,1)-SEARCH(\">\",'CFR - XML import'!$A46,1)-2)))","v":0},{"$f":"IF(ISERROR(FIND(BB$3,'CFR - XML import'!$A46)),0,VALUE(MID('CFR - XML import'!$A46,SEARCH(\">\",'CFR - XML import'!$A46,1)+1,SEARCH(\"/\",'CFR - XML import'!$A46,1)-SEARCH(\">\",'CFR - XML import'!$A46,1)-2)))","v":0},{"$f":"IF(ISERROR(FIND(BC$3,'CFR - XML import'!$A46)),0,VALUE(MID('CFR - XML import'!$A46,SEARCH(\">\",'CFR - XML import'!$A46,1)+1,SEARCH(\"/\",'CFR - XML import'!$A46,1)-SEARCH(\">\",'CFR - XML import'!$A46,1)-2)))","v":0},{"$f":"IF(ISERROR(FIND(BD$3,'CFR - XML import'!$A46)),0,VALUE(MID('CFR - XML import'!$A46,SEARCH(\">\",'CFR - XML import'!$A46,1)+1,SEARCH(\"/\",'CFR - XML import'!$A46,1)-SEARCH(\">\",'CFR - XML import'!$A46,1)-2)))","v":0},{"$f":"IF(ISERROR(FIND(BE$3,'CFR - XML import'!$A46)),0,VALUE(MID('CFR - XML import'!$A46,SEARCH(\">\",'CFR - XML import'!$A46,1)+1,SEARCH(\"/\",'CFR - XML import'!$A46,1)-SEARCH(\">\",'CFR - XML import'!$A46,1)-2)))","v":0},{"$f":"IF(ISERROR(FIND(BF$3,'CFR - XML import'!$A46)),0,VALUE(MID('CFR - XML import'!$A46,SEARCH(\">\",'CFR - XML import'!$A46,1)+1,SEARCH(\"/\",'CFR - XML import'!$A46,1)-SEARCH(\">\",'CFR - XML import'!$A46,1)-2)))","v":0},{"$f":"IF(ISERROR(FIND(BG$3,'CFR - XML import'!$A46)),0,VALUE(MID('CFR - XML import'!$A46,SEARCH(\">\",'CFR - XML import'!$A46,1)+1,SEARCH(\"/\",'CFR - XML import'!$A46,1)-SEARCH(\">\",'CFR - XML import'!$A46,1)-2)))","v":0},{"$f":"IF(ISERROR(FIND(BH$3,'CFR - XML import'!$A46)),0,VALUE(MID('CFR - XML import'!$A46,SEARCH(\">\",'CFR - XML import'!$A46,1)+1,SEARCH(\"/\",'CFR - XML import'!$A46,1)-SEARCH(\">\",'CFR - XML import'!$A46,1)-2)))","v":0},{"$f":"IF(ISERROR(FIND(BI$3,'CFR - XML import'!$A46)),0,VALUE(MID('CFR - XML import'!$A46,SEARCH(\">\",'CFR - XML import'!$A46,1)+1,SEARCH(\"/\",'CFR - XML import'!$A46,1)-SEARCH(\">\",'CFR - XML import'!$A46,1)-2)))","v":0},{"$f":"IF(ISERROR(FIND(BJ$3,'CFR - XML import'!$A46)),0,VALUE(MID('CFR - XML import'!$A46,SEARCH(\">\",'CFR - XML import'!$A46,1)+1,SEARCH(\"/\",'CFR - XML import'!$A46,1)-SEARCH(\">\",'CFR - XML import'!$A46,1)-2)))","v":0},{"$f":"IF(ISERROR(FIND(BK$3,'CFR - XML import'!$A46)),0,VALUE(MID('CFR - XML import'!$A46,SEARCH(\">\",'CFR - XML import'!$A46,1)+1,SEARCH(\"/\",'CFR - XML import'!$A46,1)-SEARCH(\">\",'CFR - XML import'!$A46,1)-2)))","v":0},{"$f":"IF(ISERROR(FIND(BL$3,'CFR - XML import'!$A46)),0,VALUE(MID('CFR - XML import'!$A46,SEARCH(\">\",'CFR - XML import'!$A46,1)+1,SEARCH(\"/\",'CFR - XML import'!$A46,1)-SEARCH(\">\",'CFR - XML import'!$A46,1)-2)))","v":0},{"$f":"IF(ISERROR(FIND(BM$3,'CFR - XML import'!$A46)),0,VALUE(MID('CFR - XML import'!$A46,SEARCH(\">\",'CFR - XML import'!$A46,1)+1,SEARCH(\"/\",'CFR - XML import'!$A46,1)-SEARCH(\">\",'CFR - XML import'!$A46,1)-2)))","v":0},{"$f":"IF(ISERROR(FIND(BN$3,'CFR - XML import'!$A46)),0,VALUE(MID('CFR - XML import'!$A46,SEARCH(\">\",'CFR - XML import'!$A46,1)+1,SEARCH(\"/\",'CFR - XML import'!$A46,1)-SEARCH(\">\",'CFR - XML import'!$A46,1)-2)))","v":0},{"$f":"IF(ISERROR(FIND(BO$3,'CFR - XML import'!$A46)),0,VALUE(MID('CFR - XML import'!$A46,SEARCH(\">\",'CFR - XML import'!$A46,1)+1,SEARCH(\"/\",'CFR - XML import'!$A46,1)-SEARCH(\">\",'CFR - XML import'!$A46,1)-2)))","v":0},{"$f":"IF(ISERROR(FIND(BP$3,'CFR - XML import'!$A46)),0,VALUE(MID('CFR - XML import'!$A46,SEARCH(\">\",'CFR - XML import'!$A46,1)+1,SEARCH(\"/\",'CFR - XML import'!$A46,1)-SEARCH(\">\",'CFR - XML import'!$A46,1)-2)))","v":0},{"$f":"IF(ISERROR(FIND(BQ$3,'CFR - XML import'!$A46)),0,VALUE(MID('CFR - XML import'!$A46,SEARCH(\">\",'CFR - XML import'!$A46,1)+1,SEARCH(\"/\",'CFR - XML import'!$A46,1)-SEARCH(\">\",'CFR - XML import'!$A46,1)-2)))","v":0},{"$f":"IF(ISERROR(FIND(BR$3,'CFR - XML import'!$A46)),0,VALUE(MID('CFR - XML import'!$A46,SEARCH(\">\",'CFR - XML import'!$A46,1)+1,SEARCH(\"/\",'CFR - XML import'!$A46,1)-SEARCH(\">\",'CFR - XML import'!$A46,1)-2)))","v":0},{"$f":"IF(ISERROR(FIND(BS$3,'CFR - XML import'!$A46)),0,VALUE(MID('CFR - XML import'!$A46,SEARCH(\">\",'CFR - XML import'!$A46,1)+1,SEARCH(\"/\",'CFR - XML import'!$A46,1)-SEARCH(\">\",'CFR - XML import'!$A46,1)-2)))","v":0},{"$f":"IF(ISERROR(FIND(BT$3,'CFR - XML import'!$A46)),0,VALUE(MID('CFR - XML import'!$A46,SEARCH(\">\",'CFR - XML import'!$A46,1)+1,SEARCH(\"/\",'CFR - XML import'!$A46,1)-SEARCH(\">\",'CFR - XML import'!$A46,1)-2)))","v":0},{"$f":"IF(ISERROR(FIND(BU$3,'CFR - XML import'!$A46)),0,VALUE(MID('CFR - XML import'!$A46,SEARCH(\">\",'CFR - XML import'!$A46,1)+1,SEARCH(\"/\",'CFR - XML import'!$A46,1)-SEARCH(\">\",'CFR - XML import'!$A46,1)-2)))","v":0},{"$f":"IF(ISERROR(FIND(BV$3,'CFR - XML import'!$A46)),0,VALUE(MID('CFR - XML import'!$A46,SEARCH(\">\",'CFR - XML import'!$A46,1)+1,SEARCH(\"/\",'CFR - XML import'!$A46,1)-SEARCH(\">\",'CFR - XML import'!$A46,1)-2)))","v":0},{"$f":"IF(ISERROR(FIND(BW$3,'CFR - XML import'!$A46)),0,VALUE(MID('CFR - XML import'!$A46,SEARCH(\">\",'CFR - XML import'!$A46,1)+1,SEARCH(\"/\",'CFR - XML import'!$A46,1)-SEARCH(\">\",'CFR - XML import'!$A46,1)-2)))","v":0},{"$f":"IF(ISERROR(FIND(BX$3,'CFR - XML import'!$A46)),0,VALUE(MID('CFR - XML import'!$A46,SEARCH(\">\",'CFR - XML import'!$A46,1)+1,SEARCH(\"/\",'CFR - XML import'!$A46,1)-SEARCH(\">\",'CFR - XML import'!$A46,1)-2)))","v":0},{"$f":"IF(ISERROR(FIND(BY$3,'CFR - XML import'!$A46)),0,VALUE(MID('CFR - XML import'!$A46,SEARCH(\">\",'CFR - XML import'!$A46,1)+1,SEARCH(\"/\",'CFR - XML import'!$A46,1)-SEARCH(\">\",'CFR - XML import'!$A46,1)-2)))","v":0},{"$f":"IF(ISERROR(FIND(BZ$3,'CFR - XML import'!$A46)),0,VALUE(MID('CFR - XML import'!$A46,SEARCH(\">\",'CFR - XML import'!$A46,1)+1,SEARCH(\"/\",'CFR - XML import'!$A46,1)-SEARCH(\">\",'CFR - XML import'!$A46,1)-2)))","v":0},null,null,null,null,null,null,{"$f":"IF(ISERROR(IF(MID('CFR - XML import'!$A46,LEN($CF$4)+1,LEN('CFR - XML import'!$A46)-(2*LEN($CF$4)+1))=\"RMMS\",1,IF(MID('CFR - XML import'!$A46,LEN(\"    <InputSystem>\")+1,LEN('CFR - XML import'!$A46)-(LEN(\"    <InputSystem>\")+LEN($CF$4)+1))=\"SIMS\",2,0))),0,IF(MID('CFR - XML import'!$A46,LEN($CF$4)+1,LEN('CFR - XML import'!$A46)-(2*LEN($CF$4)+1))=\"RMMS\",1,IF(MID('CFR - XML import'!$A46,LEN(\"    <InputSystem>\")+1,LEN('CFR - XML import'!$A46)-(LEN(\"    <InputSystem>\")+LEN($CF$4)+1))=\"SIMS\",2,0)))","v":0},{"$f":"IF(ISERROR(FIND(CH$3,'CFR - XML import'!$A46)),0,MID('CFR - XML import'!$A46,SEARCH(\">\",'CFR - XML import'!$A46,1)+1,SEARCH(\"/\",'CFR - XML import'!$A46,1)-SEARCH(\">\",'CFR - XML import'!$A46,1)-2))","v":0},{"$f":"IF(ISERROR(FIND(CI$3,'CFR - XML import'!$A46)),0,MID('CFR - XML import'!$A46,SEARCH(\">\",'CFR - XML import'!$A46,1)+1,SEARCH(\"/\",'CFR - XML import'!$A46,1)-SEARCH(\">\",'CFR - XML import'!$A46,1)-2))","v":0},{"$f":"IF(ISERROR(FIND(CJ$3,'CFR - XML import'!$A46)),0,MID('CFR - XML import'!$A46,SEARCH(\">\",'CFR - XML import'!$A46,1)+1,SEARCH(\"/\",'CFR - XML import'!$A46,1)-SEARCH(\">\",'CFR - XML import'!$A46,1)-2))","v":0},{"$f":"IF(ISERROR(FIND(CK$3,'CFR - XML import'!$A46)),0,MID('CFR - XML import'!$A46,SEARCH(\">\",'CFR - XML import'!$A46,1)+1,SEARCH(\"/\",'CFR - XML import'!$A46,1)-SEARCH(\">\",'CFR - XML import'!$A46,1)-2))","v":0},{"$f":"IF(ISERROR(FIND(CL$3,'CFR - XML import'!$A46)),0,MID('CFR - XML import'!$A46,SEARCH(\">\",'CFR - XML import'!$A46,1)+1,SEARCH(\"/\",'CFR - XML import'!$A46,1)-SEARCH(\">\",'CFR - XML import'!$A46,1)-2))","v":0}]
[{"$f":"IF(AND('CFR - XML import'!A47<>\"\",LEFT('CFR - XML import'!A47,1)<>\"<\",LEFT('CFR - XML import'!A47,3)<>\"  <\",LEFT('CFR - XML import'!A47,5)<>\"    <\",LEFT('CFR - XML import'!A47,7)<>\"      <\",LEFT('CFR - XML import'!A47,9)<>\"        <\",$B$1=\"SIMS\"),'CFR - XML import'!A47,IF(AND(LEFT('CFR - XML import'!A47,9)=\"<Details>\",$B$1=\"RM\"),'CFR - XML import'!A47,\"\"))","v":""},{"$f":"IF(ISERROR(FIND(B$3,'CFR - XML import'!$A47)),0,VALUE(MID('CFR - XML import'!$A47,SEARCH(\">\",'CFR - XML import'!$A47,1)+1,SEARCH(\"/\",'CFR - XML import'!$A47,1)-SEARCH(\">\",'CFR - XML import'!$A47,1)-2)))","v":0},null,{"$f":"IF(ISERROR(FIND(D$3,'CFR - XML import'!$A47)),0,MID('CFR - XML import'!$A47,SEARCH(\">\",'CFR - XML import'!$A47,1)+1,SEARCH(\"/\",'CFR - XML import'!$A47,1)-SEARCH(\">\",'CFR - XML import'!$A47,1)-2))","v":0},{"$f":"IF(ISERROR(FIND(E$3,'CFR - XML import'!$A47)),0,MID('CFR - XML import'!$A47,SEARCH(\">\",'CFR - XML import'!$A47,1)+1,SEARCH(\"/\",'CFR - XML import'!$A47,1)-SEARCH(\">\",'CFR - XML import'!$A47,1)-2))","v":0},{"$f":"IF($B$1=\"SIMS\",IF(ISERROR(FIND(F$3,'CFR - XML import'!$A47)),0,VALUE(MID('CFR - XML import'!$A47,15,10))),IF(ISERROR(FIND(F$3,'CFR - XML import'!$A47)),0,VALUE(MID('CFR - XML import'!$A47,11,10))))","v":"00:00:00"},{"$f":"IF(ISERROR(FIND(G$3,'CFR - XML import'!$A47)),0,VALUE(MID('CFR - XML import'!$A47,SEARCH(\">\",'CFR - XML import'!$A47,1)+1,SEARCH(\"/\",'CFR - XML import'!$A47,1)-SEARCH(\">\",'CFR - XML import'!$A47,1)-2)))","v":0},{"$f":"IF(ISERROR(FIND(H$3,'CFR - XML import'!$A47)),0,VALUE(MID('CFR - XML import'!$A47,SEARCH(\">\",'CFR - XML import'!$A47,1)+1,SEARCH(\"/\",'CFR - XML import'!$A47,1)-SEARCH(\">\",'CFR - XML import'!$A47,1)-2)))","v":0},{"$f":"IF(ISERROR(FIND(I$3,'CFR - XML import'!$A47)),0,VALUE(MID('CFR - XML import'!$A47,SEARCH(\">\",'CFR - XML import'!$A47,1)+1,SEARCH(\"/\",'CFR - XML import'!$A47,1)-SEARCH(\">\",'CFR - XML import'!$A47,1)-2)))","v":0},{"$f":"IF(ISERROR(FIND(J$3,'CFR - XML import'!$A47)),0,VALUE(MID('CFR - XML import'!$A47,SEARCH(\">\",'CFR - XML import'!$A47,1)+1,SEARCH(\"/\",'CFR - XML import'!$A47,1)-SEARCH(\">\",'CFR - XML import'!$A47,1)-2)))","v":0},{"$f":"IF(ISERROR(FIND(K$3,'CFR - XML import'!$A47)),0,VALUE(MID('CFR - XML import'!$A47,SEARCH(\">\",'CFR - XML import'!$A47,1)+1,SEARCH(\"/\",'CFR - XML import'!$A47,1)-SEARCH(\">\",'CFR - XML import'!$A47,1)-2)))","v":0},{"$f":"IF(ISERROR(FIND(L$3,'CFR - XML import'!$A47)),0,VALUE(MID('CFR - XML import'!$A47,SEARCH(\">\",'CFR - XML import'!$A47,1)+1,SEARCH(\"/\",'CFR - XML import'!$A47,1)-SEARCH(\">\",'CFR - XML import'!$A47,1)-2)))","v":0},{"$f":"IF(ISERROR(FIND(M$3,'CFR - XML import'!$A47)),0,VALUE(MID('CFR - XML import'!$A47,SEARCH(\">\",'CFR - XML import'!$A47,1)+1,SEARCH(\"/\",'CFR - XML import'!$A47,1)-SEARCH(\">\",'CFR - XML import'!$A47,1)-2)))","v":0},{"$f":"IF(ISERROR(FIND(N$3,'CFR - XML import'!$A47)),0,VALUE(MID('CFR - XML import'!$A47,SEARCH(\">\",'CFR - XML import'!$A47,1)+1,SEARCH(\"/\",'CFR - XML import'!$A47,1)-SEARCH(\">\",'CFR - XML import'!$A47,1)-2)))","v":0},{"$f":"IF(ISERROR(FIND(O$3,'CFR - XML import'!$A47)),0,VALUE(MID('CFR - XML import'!$A47,SEARCH(\">\",'CFR - XML import'!$A47,1)+1,SEARCH(\"/\",'CFR - XML import'!$A47,1)-SEARCH(\">\",'CFR - XML import'!$A47,1)-2)))","v":0},{"$f":"IF(ISERROR(FIND(P$3,'CFR - XML import'!$A47)),0,VALUE(MID('CFR - XML import'!$A47,SEARCH(\">\",'CFR - XML import'!$A47,1)+1,SEARCH(\"/\",'CFR - XML import'!$A47,1)-SEARCH(\">\",'CFR - XML import'!$A47,1)-2)))","v":0},{"$f":"IF(ISERROR(FIND(Q$3,'CFR - XML import'!$A47)),0,VALUE(MID('CFR - XML import'!$A47,SEARCH(\">\",'CFR - XML import'!$A47,1)+1,SEARCH(\"/\",'CFR - XML import'!$A47,1)-SEARCH(\">\",'CFR - XML import'!$A47,1)-2)))","v":0},{"$f":"IF(ISERROR(FIND(R$3,'CFR - XML import'!$A47)),0,VALUE(MID('CFR - XML import'!$A47,SEARCH(\">\",'CFR - XML import'!$A47,1)+1,SEARCH(\"/\",'CFR - XML import'!$A47,1)-SEARCH(\">\",'CFR - XML import'!$A47,1)-2)))","v":0},{"$f":"IF(ISERROR(FIND(S$3,'CFR - XML import'!$A47)),0,VALUE(MID('CFR - XML import'!$A47,SEARCH(\">\",'CFR - XML import'!$A47,1)+1,SEARCH(\"/\",'CFR - XML import'!$A47,1)-SEARCH(\">\",'CFR - XML import'!$A47,1)-2)))","v":0},{"$f":"IF(ISERROR(FIND(T$3,'CFR - XML import'!$A47)),0,VALUE(MID('CFR - XML import'!$A47,SEARCH(\">\",'CFR - XML import'!$A47,1)+1,SEARCH(\"/\",'CFR - XML import'!$A47,1)-SEARCH(\">\",'CFR - XML import'!$A47,1)-2)))","v":0},{"$f":"IF(ISERROR(FIND(U$3,'CFR - XML import'!$A47)),0,VALUE(MID('CFR - XML import'!$A47,SEARCH(\">\",'CFR - XML import'!$A47,1)+1,SEARCH(\"/\",'CFR - XML import'!$A47,1)-SEARCH(\">\",'CFR - XML import'!$A47,1)-2)))","v":0},{"$f":"IF(ISERROR(FIND(V$3,'CFR - XML import'!$A47)),0,VALUE(MID('CFR - XML import'!$A47,SEARCH(\">\",'CFR - XML import'!$A47,1)+1,SEARCH(\"/\",'CFR - XML import'!$A47,1)-SEARCH(\">\",'CFR - XML import'!$A47,1)-2)))","v":0},{"$f":"IF(ISERROR(FIND(W$3,'CFR - XML import'!$A47)),0,VALUE(MID('CFR - XML import'!$A47,SEARCH(\">\",'CFR - XML import'!$A47,1)+1,SEARCH(\"/\",'CFR - XML import'!$A47,1)-SEARCH(\">\",'CFR - XML import'!$A47,1)-2)))","v":0},null,{"$f":"IF(ISERROR(FIND(Y$3,'CFR - XML import'!$A47)),0,VALUE(MID('CFR - XML import'!$A47,SEARCH(\">\",'CFR - XML import'!$A47,1)+1,SEARCH(\"/\",'CFR - XML import'!$A47,1)-SEARCH(\">\",'CFR - XML import'!$A47,1)-2)))","v":0},{"$f":"IF(ISERROR(FIND(Z$3,'CFR - XML import'!$A47)),0,VALUE(MID('CFR - XML import'!$A47,SEARCH(\">\",'CFR - XML import'!$A47,1)+1,SEARCH(\"/\",'CFR - XML import'!$A47,1)-SEARCH(\">\",'CFR - XML import'!$A47,1)-2)))","v":0},{"$f":"IF(ISERROR(FIND(AA$3,'CFR - XML import'!$A47)),0,VALUE(MID('CFR - XML import'!$A47,SEARCH(\">\",'CFR - XML import'!$A47,1)+1,SEARCH(\"/\",'CFR - XML import'!$A47,1)-SEARCH(\">\",'CFR - XML import'!$A47,1)-2)))","v":0},{"$f":"IF(ISERROR(FIND(AB$3,'CFR - XML import'!$A47)),0,VALUE(MID('CFR - XML import'!$A47,SEARCH(\">\",'CFR - XML import'!$A47,1)+1,SEARCH(\"/\",'CFR - XML import'!$A47,1)-SEARCH(\">\",'CFR - XML import'!$A47,1)-2)))","v":0},{"$f":"IF(ISERROR(FIND(AC$3,'CFR - XML import'!$A47)),0,VALUE(MID('CFR - XML import'!$A47,SEARCH(\">\",'CFR - XML import'!$A47,1)+1,SEARCH(\"/\",'CFR - XML import'!$A47,1)-SEARCH(\">\",'CFR - XML import'!$A47,1)-2)))","v":0},{"$f":"IF(ISERROR(FIND(AD$3,'CFR - XML import'!$A47)),0,VALUE(MID('CFR - XML import'!$A47,SEARCH(\">\",'CFR - XML import'!$A47,1)+1,SEARCH(\"/\",'CFR - XML import'!$A47,1)-SEARCH(\">\",'CFR - XML import'!$A47,1)-2)))","v":0},{"$f":"IF(ISERROR(FIND(AE$3,'CFR - XML import'!$A47)),0,VALUE(MID('CFR - XML import'!$A47,SEARCH(\">\",'CFR - XML import'!$A47,1)+1,SEARCH(\"/\",'CFR - XML import'!$A47,1)-SEARCH(\">\",'CFR - XML import'!$A47,1)-2)))","v":0},{"$f":"IF(ISERROR(FIND(AF$3,'CFR - XML import'!$A47)),0,VALUE(MID('CFR - XML import'!$A47,SEARCH(\">\",'CFR - XML import'!$A47,1)+1,SEARCH(\"/\",'CFR - XML import'!$A47,1)-SEARCH(\">\",'CFR - XML import'!$A47,1)-2)))","v":0},{"$f":"IF(ISERROR(FIND(AG$3,'CFR - XML import'!$A47)),0,VALUE(MID('CFR - XML import'!$A47,SEARCH(\">\",'CFR - XML import'!$A47,1)+1,SEARCH(\"/\",'CFR - XML import'!$A47,1)-SEARCH(\">\",'CFR - XML import'!$A47,1)-2)))","v":0},{"$f":"IF(ISERROR(FIND(AH$3,'CFR - XML import'!$A47)),0,VALUE(MID('CFR - XML import'!$A47,SEARCH(\">\",'CFR - XML import'!$A47,1)+1,SEARCH(\"/\",'CFR - XML import'!$A47,1)-SEARCH(\">\",'CFR - XML import'!$A47,1)-2)))","v":0},{"$f":"IF(ISERROR(FIND(AI$3,'CFR - XML import'!$A47)),0,VALUE(MID('CFR - XML import'!$A47,SEARCH(\">\",'CFR - XML import'!$A47,1)+1,SEARCH(\"/\",'CFR - XML import'!$A47,1)-SEARCH(\">\",'CFR - XML import'!$A47,1)-2)))","v":0},{"$f":"IF(ISERROR(FIND(AJ$3,'CFR - XML import'!$A47)),0,VALUE(MID('CFR - XML import'!$A47,SEARCH(\">\",'CFR - XML import'!$A47,1)+1,SEARCH(\"/\",'CFR - XML import'!$A47,1)-SEARCH(\">\",'CFR - XML import'!$A47,1)-2)))","v":0},{"$f":"IF(ISERROR(FIND(AK$3,'CFR - XML import'!$A47)),0,VALUE(MID('CFR - XML import'!$A47,SEARCH(\">\",'CFR - XML import'!$A47,1)+1,SEARCH(\"/\",'CFR - XML import'!$A47,1)-SEARCH(\">\",'CFR - XML import'!$A47,1)-2)))","v":0},{"$f":"IF(ISERROR(FIND(AL$3,'CFR - XML import'!$A47)),0,VALUE(MID('CFR - XML import'!$A47,SEARCH(\">\",'CFR - XML import'!$A47,1)+1,SEARCH(\"/\",'CFR - XML import'!$A47,1)-SEARCH(\">\",'CFR - XML import'!$A47,1)-2)))","v":0},{"$f":"IF(ISERROR(FIND(AM$3,'CFR - XML import'!$A47)),0,VALUE(MID('CFR - XML import'!$A47,SEARCH(\">\",'CFR - XML import'!$A47,1)+1,SEARCH(\"/\",'CFR - XML import'!$A47,1)-SEARCH(\">\",'CFR - XML import'!$A47,1)-2)))","v":0},{"$f":"IF(ISERROR(FIND(AN$3,'CFR - XML import'!$A47)),0,VALUE(MID('CFR - XML import'!$A47,SEARCH(\">\",'CFR - XML import'!$A47,1)+1,SEARCH(\"/\",'CFR - XML import'!$A47,1)-SEARCH(\">\",'CFR - XML import'!$A47,1)-2)))","v":0},{"$f":"IF(ISERROR(FIND(AO$3,'CFR - XML import'!$A47)),0,VALUE(MID('CFR - XML import'!$A47,SEARCH(\">\",'CFR - XML import'!$A47,1)+1,SEARCH(\"/\",'CFR - XML import'!$A47,1)-SEARCH(\">\",'CFR - XML import'!$A47,1)-2)))","v":0},{"$f":"IF(ISERROR(FIND(AP$3,'CFR - XML import'!$A47)),0,VALUE(MID('CFR - XML import'!$A47,SEARCH(\">\",'CFR - XML import'!$A47,1)+1,SEARCH(\"/\",'CFR - XML import'!$A47,1)-SEARCH(\">\",'CFR - XML import'!$A47,1)-2)))","v":0},{"$f":"IF(ISERROR(FIND(AQ$3,'CFR - XML import'!$A47)),0,VALUE(MID('CFR - XML import'!$A47,SEARCH(\">\",'CFR - XML import'!$A47,1)+1,SEARCH(\"/\",'CFR - XML import'!$A47,1)-SEARCH(\">\",'CFR - XML import'!$A47,1)-2)))","v":0},{"$f":"IF(ISERROR(FIND(AR$3,'CFR - XML import'!$A47)),0,VALUE(MID('CFR - XML import'!$A47,SEARCH(\">\",'CFR - XML import'!$A47,1)+1,SEARCH(\"/\",'CFR - XML import'!$A47,1)-SEARCH(\">\",'CFR - XML import'!$A47,1)-2)))","v":0},{"$f":"IF(ISERROR(FIND(AS$3,'CFR - XML import'!$A47)),0,VALUE(MID('CFR - XML import'!$A47,SEARCH(\">\",'CFR - XML import'!$A47,1)+1,SEARCH(\"/\",'CFR - XML import'!$A47,1)-SEARCH(\">\",'CFR - XML import'!$A47,1)-2)))","v":0},{"$f":"IF(ISERROR(FIND(AT$3,'CFR - XML import'!$A47)),0,VALUE(MID('CFR - XML import'!$A47,SEARCH(\">\",'CFR - XML import'!$A47,1)+1,SEARCH(\"/\",'CFR - XML import'!$A47,1)-SEARCH(\">\",'CFR - XML import'!$A47,1)-2)))","v":0},{"$f":"IF(ISERROR(FIND(AU$3,'CFR - XML import'!$A47)),0,VALUE(MID('CFR - XML import'!$A47,SEARCH(\">\",'CFR - XML import'!$A47,1)+1,SEARCH(\"/\",'CFR - XML import'!$A47,1)-SEARCH(\">\",'CFR - XML import'!$A47,1)-2)))","v":0},{"$f":"IF(ISERROR(FIND(AV$3,'CFR - XML import'!$A47)),0,VALUE(MID('CFR - XML import'!$A47,SEARCH(\">\",'CFR - XML import'!$A47,1)+1,SEARCH(\"/\",'CFR - XML import'!$A47,1)-SEARCH(\">\",'CFR - XML import'!$A47,1)-2)))","v":0},{"$f":"IF(ISERROR(FIND(AW$3,'CFR - XML import'!$A47)),0,VALUE(MID('CFR - XML import'!$A47,SEARCH(\">\",'CFR - XML import'!$A47,1)+1,SEARCH(\"/\",'CFR - XML import'!$A47,1)-SEARCH(\">\",'CFR - XML import'!$A47,1)-2)))","v":0},{"$f":"IF(ISERROR(FIND(AX$3,'CFR - XML import'!$A47)),0,VALUE(MID('CFR - XML import'!$A47,SEARCH(\">\",'CFR - XML import'!$A47,1)+1,SEARCH(\"/\",'CFR - XML import'!$A47,1)-SEARCH(\">\",'CFR - XML import'!$A47,1)-2)))","v":0},{"$f":"IF(ISERROR(FIND(AY$3,'CFR - XML import'!$A47)),0,VALUE(MID('CFR - XML import'!$A47,SEARCH(\">\",'CFR - XML import'!$A47,1)+1,SEARCH(\"/\",'CFR - XML import'!$A47,1)-SEARCH(\">\",'CFR - XML import'!$A47,1)-2)))","v":0},{"$f":"IF(ISERROR(FIND(AZ$3,'CFR - XML import'!$A47)),0,VALUE(MID('CFR - XML import'!$A47,SEARCH(\">\",'CFR - XML import'!$A47,1)+1,SEARCH(\"/\",'CFR - XML import'!$A47,1)-SEARCH(\">\",'CFR - XML import'!$A47,1)-2)))","v":0},{"$f":"IF(ISERROR(FIND(BA$3,'CFR - XML import'!$A47)),0,VALUE(MID('CFR - XML import'!$A47,SEARCH(\">\",'CFR - XML import'!$A47,1)+1,SEARCH(\"/\",'CFR - XML import'!$A47,1)-SEARCH(\">\",'CFR - XML import'!$A47,1)-2)))","v":0},{"$f":"IF(ISERROR(FIND(BB$3,'CFR - XML import'!$A47)),0,VALUE(MID('CFR - XML import'!$A47,SEARCH(\">\",'CFR - XML import'!$A47,1)+1,SEARCH(\"/\",'CFR - XML import'!$A47,1)-SEARCH(\">\",'CFR - XML import'!$A47,1)-2)))","v":0},{"$f":"IF(ISERROR(FIND(BC$3,'CFR - XML import'!$A47)),0,VALUE(MID('CFR - XML import'!$A47,SEARCH(\">\",'CFR - XML import'!$A47,1)+1,SEARCH(\"/\",'CFR - XML import'!$A47,1)-SEARCH(\">\",'CFR - XML import'!$A47,1)-2)))","v":0},{"$f":"IF(ISERROR(FIND(BD$3,'CFR - XML import'!$A47)),0,VALUE(MID('CFR - XML import'!$A47,SEARCH(\">\",'CFR - XML import'!$A47,1)+1,SEARCH(\"/\",'CFR - XML import'!$A47,1)-SEARCH(\">\",'CFR - XML import'!$A47,1)-2)))","v":0},{"$f":"IF(ISERROR(FIND(BE$3,'CFR - XML import'!$A47)),0,VALUE(MID('CFR - XML import'!$A47,SEARCH(\">\",'CFR - XML import'!$A47,1)+1,SEARCH(\"/\",'CFR - XML import'!$A47,1)-SEARCH(\">\",'CFR - XML import'!$A47,1)-2)))","v":0},{"$f":"IF(ISERROR(FIND(BF$3,'CFR - XML import'!$A47)),0,VALUE(MID('CFR - XML import'!$A47,SEARCH(\">\",'CFR - XML import'!$A47,1)+1,SEARCH(\"/\",'CFR - XML import'!$A47,1)-SEARCH(\">\",'CFR - XML import'!$A47,1)-2)))","v":0},{"$f":"IF(ISERROR(FIND(BG$3,'CFR - XML import'!$A47)),0,VALUE(MID('CFR - XML import'!$A47,SEARCH(\">\",'CFR - XML import'!$A47,1)+1,SEARCH(\"/\",'CFR - XML import'!$A47,1)-SEARCH(\">\",'CFR - XML import'!$A47,1)-2)))","v":0},{"$f":"IF(ISERROR(FIND(BH$3,'CFR - XML import'!$A47)),0,VALUE(MID('CFR - XML import'!$A47,SEARCH(\">\",'CFR - XML import'!$A47,1)+1,SEARCH(\"/\",'CFR - XML import'!$A47,1)-SEARCH(\">\",'CFR - XML import'!$A47,1)-2)))","v":0},{"$f":"IF(ISERROR(FIND(BI$3,'CFR - XML import'!$A47)),0,VALUE(MID('CFR - XML import'!$A47,SEARCH(\">\",'CFR - XML import'!$A47,1)+1,SEARCH(\"/\",'CFR - XML import'!$A47,1)-SEARCH(\">\",'CFR - XML import'!$A47,1)-2)))","v":0},{"$f":"IF(ISERROR(FIND(BJ$3,'CFR - XML import'!$A47)),0,VALUE(MID('CFR - XML import'!$A47,SEARCH(\">\",'CFR - XML import'!$A47,1)+1,SEARCH(\"/\",'CFR - XML import'!$A47,1)-SEARCH(\">\",'CFR - XML import'!$A47,1)-2)))","v":0},{"$f":"IF(ISERROR(FIND(BK$3,'CFR - XML import'!$A47)),0,VALUE(MID('CFR - XML import'!$A47,SEARCH(\">\",'CFR - XML import'!$A47,1)+1,SEARCH(\"/\",'CFR - XML import'!$A47,1)-SEARCH(\">\",'CFR - XML import'!$A47,1)-2)))","v":0},{"$f":"IF(ISERROR(FIND(BL$3,'CFR - XML import'!$A47)),0,VALUE(MID('CFR - XML import'!$A47,SEARCH(\">\",'CFR - XML import'!$A47,1)+1,SEARCH(\"/\",'CFR - XML import'!$A47,1)-SEARCH(\">\",'CFR - XML import'!$A47,1)-2)))","v":0},{"$f":"IF(ISERROR(FIND(BM$3,'CFR - XML import'!$A47)),0,VALUE(MID('CFR - XML import'!$A47,SEARCH(\">\",'CFR - XML import'!$A47,1)+1,SEARCH(\"/\",'CFR - XML import'!$A47,1)-SEARCH(\">\",'CFR - XML import'!$A47,1)-2)))","v":0},{"$f":"IF(ISERROR(FIND(BN$3,'CFR - XML import'!$A47)),0,VALUE(MID('CFR - XML import'!$A47,SEARCH(\">\",'CFR - XML import'!$A47,1)+1,SEARCH(\"/\",'CFR - XML import'!$A47,1)-SEARCH(\">\",'CFR - XML import'!$A47,1)-2)))","v":0},{"$f":"IF(ISERROR(FIND(BO$3,'CFR - XML import'!$A47)),0,VALUE(MID('CFR - XML import'!$A47,SEARCH(\">\",'CFR - XML import'!$A47,1)+1,SEARCH(\"/\",'CFR - XML import'!$A47,1)-SEARCH(\">\",'CFR - XML import'!$A47,1)-2)))","v":0},{"$f":"IF(ISERROR(FIND(BP$3,'CFR - XML import'!$A47)),0,VALUE(MID('CFR - XML import'!$A47,SEARCH(\">\",'CFR - XML import'!$A47,1)+1,SEARCH(\"/\",'CFR - XML import'!$A47,1)-SEARCH(\">\",'CFR - XML import'!$A47,1)-2)))","v":0},{"$f":"IF(ISERROR(FIND(BQ$3,'CFR - XML import'!$A47)),0,VALUE(MID('CFR - XML import'!$A47,SEARCH(\">\",'CFR - XML import'!$A47,1)+1,SEARCH(\"/\",'CFR - XML import'!$A47,1)-SEARCH(\">\",'CFR - XML import'!$A47,1)-2)))","v":0},{"$f":"IF(ISERROR(FIND(BR$3,'CFR - XML import'!$A47)),0,VALUE(MID('CFR - XML import'!$A47,SEARCH(\">\",'CFR - XML import'!$A47,1)+1,SEARCH(\"/\",'CFR - XML import'!$A47,1)-SEARCH(\">\",'CFR - XML import'!$A47,1)-2)))","v":0},{"$f":"IF(ISERROR(FIND(BS$3,'CFR - XML import'!$A47)),0,VALUE(MID('CFR - XML import'!$A47,SEARCH(\">\",'CFR - XML import'!$A47,1)+1,SEARCH(\"/\",'CFR - XML import'!$A47,1)-SEARCH(\">\",'CFR - XML import'!$A47,1)-2)))","v":0},{"$f":"IF(ISERROR(FIND(BT$3,'CFR - XML import'!$A47)),0,VALUE(MID('CFR - XML import'!$A47,SEARCH(\">\",'CFR - XML import'!$A47,1)+1,SEARCH(\"/\",'CFR - XML import'!$A47,1)-SEARCH(\">\",'CFR - XML import'!$A47,1)-2)))","v":0},{"$f":"IF(ISERROR(FIND(BU$3,'CFR - XML import'!$A47)),0,VALUE(MID('CFR - XML import'!$A47,SEARCH(\">\",'CFR - XML import'!$A47,1)+1,SEARCH(\"/\",'CFR - XML import'!$A47,1)-SEARCH(\">\",'CFR - XML import'!$A47,1)-2)))","v":0},{"$f":"IF(ISERROR(FIND(BV$3,'CFR - XML import'!$A47)),0,VALUE(MID('CFR - XML import'!$A47,SEARCH(\">\",'CFR - XML import'!$A47,1)+1,SEARCH(\"/\",'CFR - XML import'!$A47,1)-SEARCH(\">\",'CFR - XML import'!$A47,1)-2)))","v":0},{"$f":"IF(ISERROR(FIND(BW$3,'CFR - XML import'!$A47)),0,VALUE(MID('CFR - XML import'!$A47,SEARCH(\">\",'CFR - XML import'!$A47,1)+1,SEARCH(\"/\",'CFR - XML import'!$A47,1)-SEARCH(\">\",'CFR - XML import'!$A47,1)-2)))","v":0},{"$f":"IF(ISERROR(FIND(BX$3,'CFR - XML import'!$A47)),0,VALUE(MID('CFR - XML import'!$A47,SEARCH(\">\",'CFR - XML import'!$A47,1)+1,SEARCH(\"/\",'CFR - XML import'!$A47,1)-SEARCH(\">\",'CFR - XML import'!$A47,1)-2)))","v":0},{"$f":"IF(ISERROR(FIND(BY$3,'CFR - XML import'!$A47)),0,VALUE(MID('CFR - XML import'!$A47,SEARCH(\">\",'CFR - XML import'!$A47,1)+1,SEARCH(\"/\",'CFR - XML import'!$A47,1)-SEARCH(\">\",'CFR - XML import'!$A47,1)-2)))","v":0},{"$f":"IF(ISERROR(FIND(BZ$3,'CFR - XML import'!$A47)),0,VALUE(MID('CFR - XML import'!$A47,SEARCH(\">\",'CFR - XML import'!$A47,1)+1,SEARCH(\"/\",'CFR - XML import'!$A47,1)-SEARCH(\">\",'CFR - XML import'!$A47,1)-2)))","v":0},null,null,null,null,null,null,{"$f":"IF(ISERROR(IF(MID('CFR - XML import'!$A47,LEN($CF$4)+1,LEN('CFR - XML import'!$A47)-(2*LEN($CF$4)+1))=\"RMMS\",1,IF(MID('CFR - XML import'!$A47,LEN(\"    <InputSystem>\")+1,LEN('CFR - XML import'!$A47)-(LEN(\"    <InputSystem>\")+LEN($CF$4)+1))=\"SIMS\",2,0))),0,IF(MID('CFR - XML import'!$A47,LEN($CF$4)+1,LEN('CFR - XML import'!$A47)-(2*LEN($CF$4)+1))=\"RMMS\",1,IF(MID('CFR - XML import'!$A47,LEN(\"    <InputSystem>\")+1,LEN('CFR - XML import'!$A47)-(LEN(\"    <InputSystem>\")+LEN($CF$4)+1))=\"SIMS\",2,0)))","v":0},{"$f":"IF(ISERROR(FIND(CH$3,'CFR - XML import'!$A47)),0,MID('CFR - XML import'!$A47,SEARCH(\">\",'CFR - XML import'!$A47,1)+1,SEARCH(\"/\",'CFR - XML import'!$A47,1)-SEARCH(\">\",'CFR - XML import'!$A47,1)-2))","v":0},{"$f":"IF(ISERROR(FIND(CI$3,'CFR - XML import'!$A47)),0,MID('CFR - XML import'!$A47,SEARCH(\">\",'CFR - XML import'!$A47,1)+1,SEARCH(\"/\",'CFR - XML import'!$A47,1)-SEARCH(\">\",'CFR - XML import'!$A47,1)-2))","v":0},{"$f":"IF(ISERROR(FIND(CJ$3,'CFR - XML import'!$A47)),0,MID('CFR - XML import'!$A47,SEARCH(\">\",'CFR - XML import'!$A47,1)+1,SEARCH(\"/\",'CFR - XML import'!$A47,1)-SEARCH(\">\",'CFR - XML import'!$A47,1)-2))","v":0},{"$f":"IF(ISERROR(FIND(CK$3,'CFR - XML import'!$A47)),0,MID('CFR - XML import'!$A47,SEARCH(\">\",'CFR - XML import'!$A47,1)+1,SEARCH(\"/\",'CFR - XML import'!$A47,1)-SEARCH(\">\",'CFR - XML import'!$A47,1)-2))","v":0},{"$f":"IF(ISERROR(FIND(CL$3,'CFR - XML import'!$A47)),0,MID('CFR - XML import'!$A47,SEARCH(\">\",'CFR - XML import'!$A47,1)+1,SEARCH(\"/\",'CFR - XML import'!$A47,1)-SEARCH(\">\",'CFR - XML import'!$A47,1)-2))","v":0}]
[{"$f":"IF(AND('CFR - XML import'!A48<>\"\",LEFT('CFR - XML import'!A48,1)<>\"<\",LEFT('CFR - XML import'!A48,3)<>\"  <\",LEFT('CFR - XML import'!A48,5)<>\"    <\",LEFT('CFR - XML import'!A48,7)<>\"      <\",LEFT('CFR - XML import'!A48,9)<>\"        <\",$B$1=\"SIMS\"),'CFR - XML import'!A48,IF(AND(LEFT('CFR - XML import'!A48,9)=\"<Details>\",$B$1=\"RM\"),'CFR - XML import'!A48,\"\"))","v":""},{"$f":"IF(ISERROR(FIND(B$3,'CFR - XML import'!$A48)),0,VALUE(MID('CFR - XML import'!$A48,SEARCH(\">\",'CFR - XML import'!$A48,1)+1,SEARCH(\"/\",'CFR - XML import'!$A48,1)-SEARCH(\">\",'CFR - XML import'!$A48,1)-2)))","v":0},null,{"$f":"IF(ISERROR(FIND(D$3,'CFR - XML import'!$A48)),0,MID('CFR - XML import'!$A48,SEARCH(\">\",'CFR - XML import'!$A48,1)+1,SEARCH(\"/\",'CFR - XML import'!$A48,1)-SEARCH(\">\",'CFR - XML import'!$A48,1)-2))","v":0},{"$f":"IF(ISERROR(FIND(E$3,'CFR - XML import'!$A48)),0,MID('CFR - XML import'!$A48,SEARCH(\">\",'CFR - XML import'!$A48,1)+1,SEARCH(\"/\",'CFR - XML import'!$A48,1)-SEARCH(\">\",'CFR - XML import'!$A48,1)-2))","v":0},{"$f":"IF($B$1=\"SIMS\",IF(ISERROR(FIND(F$3,'CFR - XML import'!$A48)),0,VALUE(MID('CFR - XML import'!$A48,15,10))),IF(ISERROR(FIND(F$3,'CFR - XML import'!$A48)),0,VALUE(MID('CFR - XML import'!$A48,11,10))))","v":"00:00:00"},{"$f":"IF(ISERROR(FIND(G$3,'CFR - XML import'!$A48)),0,VALUE(MID('CFR - XML import'!$A48,SEARCH(\">\",'CFR - XML import'!$A48,1)+1,SEARCH(\"/\",'CFR - XML import'!$A48,1)-SEARCH(\">\",'CFR - XML import'!$A48,1)-2)))","v":0},{"$f":"IF(ISERROR(FIND(H$3,'CFR - XML import'!$A48)),0,VALUE(MID('CFR - XML import'!$A48,SEARCH(\">\",'CFR - XML import'!$A48,1)+1,SEARCH(\"/\",'CFR - XML import'!$A48,1)-SEARCH(\">\",'CFR - XML import'!$A48,1)-2)))","v":0},{"$f":"IF(ISERROR(FIND(I$3,'CFR - XML import'!$A48)),0,VALUE(MID('CFR - XML import'!$A48,SEARCH(\">\",'CFR - XML import'!$A48,1)+1,SEARCH(\"/\",'CFR - XML import'!$A48,1)-SEARCH(\">\",'CFR - XML import'!$A48,1)-2)))","v":0},{"$f":"IF(ISERROR(FIND(J$3,'CFR - XML import'!$A48)),0,VALUE(MID('CFR - XML import'!$A48,SEARCH(\">\",'CFR - XML import'!$A48,1)+1,SEARCH(\"/\",'CFR - XML import'!$A48,1)-SEARCH(\">\",'CFR - XML import'!$A48,1)-2)))","v":0},{"$f":"IF(ISERROR(FIND(K$3,'CFR - XML import'!$A48)),0,VALUE(MID('CFR - XML import'!$A48,SEARCH(\">\",'CFR - XML import'!$A48,1)+1,SEARCH(\"/\",'CFR - XML import'!$A48,1)-SEARCH(\">\",'CFR - XML import'!$A48,1)-2)))","v":0},{"$f":"IF(ISERROR(FIND(L$3,'CFR - XML import'!$A48)),0,VALUE(MID('CFR - XML import'!$A48,SEARCH(\">\",'CFR - XML import'!$A48,1)+1,SEARCH(\"/\",'CFR - XML import'!$A48,1)-SEARCH(\">\",'CFR - XML import'!$A48,1)-2)))","v":0},{"$f":"IF(ISERROR(FIND(M$3,'CFR - XML import'!$A48)),0,VALUE(MID('CFR - XML import'!$A48,SEARCH(\">\",'CFR - XML import'!$A48,1)+1,SEARCH(\"/\",'CFR - XML import'!$A48,1)-SEARCH(\">\",'CFR - XML import'!$A48,1)-2)))","v":0},{"$f":"IF(ISERROR(FIND(N$3,'CFR - XML import'!$A48)),0,VALUE(MID('CFR - XML import'!$A48,SEARCH(\">\",'CFR - XML import'!$A48,1)+1,SEARCH(\"/\",'CFR - XML import'!$A48,1)-SEARCH(\">\",'CFR - XML import'!$A48,1)-2)))","v":0},{"$f":"IF(ISERROR(FIND(O$3,'CFR - XML import'!$A48)),0,VALUE(MID('CFR - XML import'!$A48,SEARCH(\">\",'CFR - XML import'!$A48,1)+1,SEARCH(\"/\",'CFR - XML import'!$A48,1)-SEARCH(\">\",'CFR - XML import'!$A48,1)-2)))","v":0},{"$f":"IF(ISERROR(FIND(P$3,'CFR - XML import'!$A48)),0,VALUE(MID('CFR - XML import'!$A48,SEARCH(\">\",'CFR - XML import'!$A48,1)+1,SEARCH(\"/\",'CFR - XML import'!$A48,1)-SEARCH(\">\",'CFR - XML import'!$A48,1)-2)))","v":0},{"$f":"IF(ISERROR(FIND(Q$3,'CFR - XML import'!$A48)),0,VALUE(MID('CFR - XML import'!$A48,SEARCH(\">\",'CFR - XML import'!$A48,1)+1,SEARCH(\"/\",'CFR - XML import'!$A48,1)-SEARCH(\">\",'CFR - XML import'!$A48,1)-2)))","v":0},{"$f":"IF(ISERROR(FIND(R$3,'CFR - XML import'!$A48)),0,VALUE(MID('CFR - XML import'!$A48,SEARCH(\">\",'CFR - XML import'!$A48,1)+1,SEARCH(\"/\",'CFR - XML import'!$A48,1)-SEARCH(\">\",'CFR - XML import'!$A48,1)-2)))","v":0},{"$f":"IF(ISERROR(FIND(S$3,'CFR - XML import'!$A48)),0,VALUE(MID('CFR - XML import'!$A48,SEARCH(\">\",'CFR - XML import'!$A48,1)+1,SEARCH(\"/\",'CFR - XML import'!$A48,1)-SEARCH(\">\",'CFR - XML import'!$A48,1)-2)))","v":0},{"$f":"IF(ISERROR(FIND(T$3,'CFR - XML import'!$A48)),0,VALUE(MID('CFR - XML import'!$A48,SEARCH(\">\",'CFR - XML import'!$A48,1)+1,SEARCH(\"/\",'CFR - XML import'!$A48,1)-SEARCH(\">\",'CFR - XML import'!$A48,1)-2)))","v":0},{"$f":"IF(ISERROR(FIND(U$3,'CFR - XML import'!$A48)),0,VALUE(MID('CFR - XML import'!$A48,SEARCH(\">\",'CFR - XML import'!$A48,1)+1,SEARCH(\"/\",'CFR - XML import'!$A48,1)-SEARCH(\">\",'CFR - XML import'!$A48,1)-2)))","v":0},{"$f":"IF(ISERROR(FIND(V$3,'CFR - XML import'!$A48)),0,VALUE(MID('CFR - XML import'!$A48,SEARCH(\">\",'CFR - XML import'!$A48,1)+1,SEARCH(\"/\",'CFR - XML import'!$A48,1)-SEARCH(\">\",'CFR - XML import'!$A48,1)-2)))","v":0},{"$f":"IF(ISERROR(FIND(W$3,'CFR - XML import'!$A48)),0,VALUE(MID('CFR - XML import'!$A48,SEARCH(\">\",'CFR - XML import'!$A48,1)+1,SEARCH(\"/\",'CFR - XML import'!$A48,1)-SEARCH(\">\",'CFR - XML import'!$A48,1)-2)))","v":0},null,{"$f":"IF(ISERROR(FIND(Y$3,'CFR - XML import'!$A48)),0,VALUE(MID('CFR - XML import'!$A48,SEARCH(\">\",'CFR - XML import'!$A48,1)+1,SEARCH(\"/\",'CFR - XML import'!$A48,1)-SEARCH(\">\",'CFR - XML import'!$A48,1)-2)))","v":0},{"$f":"IF(ISERROR(FIND(Z$3,'CFR - XML import'!$A48)),0,VALUE(MID('CFR - XML import'!$A48,SEARCH(\">\",'CFR - XML import'!$A48,1)+1,SEARCH(\"/\",'CFR - XML import'!$A48,1)-SEARCH(\">\",'CFR - XML import'!$A48,1)-2)))","v":0},{"$f":"IF(ISERROR(FIND(AA$3,'CFR - XML import'!$A48)),0,VALUE(MID('CFR - XML import'!$A48,SEARCH(\">\",'CFR - XML import'!$A48,1)+1,SEARCH(\"/\",'CFR - XML import'!$A48,1)-SEARCH(\">\",'CFR - XML import'!$A48,1)-2)))","v":0},{"$f":"IF(ISERROR(FIND(AB$3,'CFR - XML import'!$A48)),0,VALUE(MID('CFR - XML import'!$A48,SEARCH(\">\",'CFR - XML import'!$A48,1)+1,SEARCH(\"/\",'CFR - XML import'!$A48,1)-SEARCH(\">\",'CFR - XML import'!$A48,1)-2)))","v":0},{"$f":"IF(ISERROR(FIND(AC$3,'CFR - XML import'!$A48)),0,VALUE(MID('CFR - XML import'!$A48,SEARCH(\">\",'CFR - XML import'!$A48,1)+1,SEARCH(\"/\",'CFR - XML import'!$A48,1)-SEARCH(\">\",'CFR - XML import'!$A48,1)-2)))","v":0},{"$f":"IF(ISERROR(FIND(AD$3,'CFR - XML import'!$A48)),0,VALUE(MID('CFR - XML import'!$A48,SEARCH(\">\",'CFR - XML import'!$A48,1)+1,SEARCH(\"/\",'CFR - XML import'!$A48,1)-SEARCH(\">\",'CFR - XML import'!$A48,1)-2)))","v":0},{"$f":"IF(ISERROR(FIND(AE$3,'CFR - XML import'!$A48)),0,VALUE(MID('CFR - XML import'!$A48,SEARCH(\">\",'CFR - XML import'!$A48,1)+1,SEARCH(\"/\",'CFR - XML import'!$A48,1)-SEARCH(\">\",'CFR - XML import'!$A48,1)-2)))","v":0},{"$f":"IF(ISERROR(FIND(AF$3,'CFR - XML import'!$A48)),0,VALUE(MID('CFR - XML import'!$A48,SEARCH(\">\",'CFR - XML import'!$A48,1)+1,SEARCH(\"/\",'CFR - XML import'!$A48,1)-SEARCH(\">\",'CFR - XML import'!$A48,1)-2)))","v":0},{"$f":"IF(ISERROR(FIND(AG$3,'CFR - XML import'!$A48)),0,VALUE(MID('CFR - XML import'!$A48,SEARCH(\">\",'CFR - XML import'!$A48,1)+1,SEARCH(\"/\",'CFR - XML import'!$A48,1)-SEARCH(\">\",'CFR - XML import'!$A48,1)-2)))","v":0},{"$f":"IF(ISERROR(FIND(AH$3,'CFR - XML import'!$A48)),0,VALUE(MID('CFR - XML import'!$A48,SEARCH(\">\",'CFR - XML import'!$A48,1)+1,SEARCH(\"/\",'CFR - XML import'!$A48,1)-SEARCH(\">\",'CFR - XML import'!$A48,1)-2)))","v":0},{"$f":"IF(ISERROR(FIND(AI$3,'CFR - XML import'!$A48)),0,VALUE(MID('CFR - XML import'!$A48,SEARCH(\">\",'CFR - XML import'!$A48,1)+1,SEARCH(\"/\",'CFR - XML import'!$A48,1)-SEARCH(\">\",'CFR - XML import'!$A48,1)-2)))","v":0},{"$f":"IF(ISERROR(FIND(AJ$3,'CFR - XML import'!$A48)),0,VALUE(MID('CFR - XML import'!$A48,SEARCH(\">\",'CFR - XML import'!$A48,1)+1,SEARCH(\"/\",'CFR - XML import'!$A48,1)-SEARCH(\">\",'CFR - XML import'!$A48,1)-2)))","v":0},{"$f":"IF(ISERROR(FIND(AK$3,'CFR - XML import'!$A48)),0,VALUE(MID('CFR - XML import'!$A48,SEARCH(\">\",'CFR - XML import'!$A48,1)+1,SEARCH(\"/\",'CFR - XML import'!$A48,1)-SEARCH(\">\",'CFR - XML import'!$A48,1)-2)))","v":0},{"$f":"IF(ISERROR(FIND(AL$3,'CFR - XML import'!$A48)),0,VALUE(MID('CFR - XML import'!$A48,SEARCH(\">\",'CFR - XML import'!$A48,1)+1,SEARCH(\"/\",'CFR - XML import'!$A48,1)-SEARCH(\">\",'CFR - XML import'!$A48,1)-2)))","v":0},{"$f":"IF(ISERROR(FIND(AM$3,'CFR - XML import'!$A48)),0,VALUE(MID('CFR - XML import'!$A48,SEARCH(\">\",'CFR - XML import'!$A48,1)+1,SEARCH(\"/\",'CFR - XML import'!$A48,1)-SEARCH(\">\",'CFR - XML import'!$A48,1)-2)))","v":0},{"$f":"IF(ISERROR(FIND(AN$3,'CFR - XML import'!$A48)),0,VALUE(MID('CFR - XML import'!$A48,SEARCH(\">\",'CFR - XML import'!$A48,1)+1,SEARCH(\"/\",'CFR - XML import'!$A48,1)-SEARCH(\">\",'CFR - XML import'!$A48,1)-2)))","v":0},{"$f":"IF(ISERROR(FIND(AO$3,'CFR - XML import'!$A48)),0,VALUE(MID('CFR - XML import'!$A48,SEARCH(\">\",'CFR - XML import'!$A48,1)+1,SEARCH(\"/\",'CFR - XML import'!$A48,1)-SEARCH(\">\",'CFR - XML import'!$A48,1)-2)))","v":0},{"$f":"IF(ISERROR(FIND(AP$3,'CFR - XML import'!$A48)),0,VALUE(MID('CFR - XML import'!$A48,SEARCH(\">\",'CFR - XML import'!$A48,1)+1,SEARCH(\"/\",'CFR - XML import'!$A48,1)-SEARCH(\">\",'CFR - XML import'!$A48,1)-2)))","v":0},{"$f":"IF(ISERROR(FIND(AQ$3,'CFR - XML import'!$A48)),0,VALUE(MID('CFR - XML import'!$A48,SEARCH(\">\",'CFR - XML import'!$A48,1)+1,SEARCH(\"/\",'CFR - XML import'!$A48,1)-SEARCH(\">\",'CFR - XML import'!$A48,1)-2)))","v":0},{"$f":"IF(ISERROR(FIND(AR$3,'CFR - XML import'!$A48)),0,VALUE(MID('CFR - XML import'!$A48,SEARCH(\">\",'CFR - XML import'!$A48,1)+1,SEARCH(\"/\",'CFR - XML import'!$A48,1)-SEARCH(\">\",'CFR - XML import'!$A48,1)-2)))","v":0},{"$f":"IF(ISERROR(FIND(AS$3,'CFR - XML import'!$A48)),0,VALUE(MID('CFR - XML import'!$A48,SEARCH(\">\",'CFR - XML import'!$A48,1)+1,SEARCH(\"/\",'CFR - XML import'!$A48,1)-SEARCH(\">\",'CFR - XML import'!$A48,1)-2)))","v":0},{"$f":"IF(ISERROR(FIND(AT$3,'CFR - XML import'!$A48)),0,VALUE(MID('CFR - XML import'!$A48,SEARCH(\">\",'CFR - XML import'!$A48,1)+1,SEARCH(\"/\",'CFR - XML import'!$A48,1)-SEARCH(\">\",'CFR - XML import'!$A48,1)-2)))","v":0},{"$f":"IF(ISERROR(FIND(AU$3,'CFR - XML import'!$A48)),0,VALUE(MID('CFR - XML import'!$A48,SEARCH(\">\",'CFR - XML import'!$A48,1)+1,SEARCH(\"/\",'CFR - XML import'!$A48,1)-SEARCH(\">\",'CFR - XML import'!$A48,1)-2)))","v":0},{"$f":"IF(ISERROR(FIND(AV$3,'CFR - XML import'!$A48)),0,VALUE(MID('CFR - XML import'!$A48,SEARCH(\">\",'CFR - XML import'!$A48,1)+1,SEARCH(\"/\",'CFR - XML import'!$A48,1)-SEARCH(\">\",'CFR - XML import'!$A48,1)-2)))","v":0},{"$f":"IF(ISERROR(FIND(AW$3,'CFR - XML import'!$A48)),0,VALUE(MID('CFR - XML import'!$A48,SEARCH(\">\",'CFR - XML import'!$A48,1)+1,SEARCH(\"/\",'CFR - XML import'!$A48,1)-SEARCH(\">\",'CFR - XML import'!$A48,1)-2)))","v":0},{"$f":"IF(ISERROR(FIND(AX$3,'CFR - XML import'!$A48)),0,VALUE(MID('CFR - XML import'!$A48,SEARCH(\">\",'CFR - XML import'!$A48,1)+1,SEARCH(\"/\",'CFR - XML import'!$A48,1)-SEARCH(\">\",'CFR - XML import'!$A48,1)-2)))","v":0},{"$f":"IF(ISERROR(FIND(AY$3,'CFR - XML import'!$A48)),0,VALUE(MID('CFR - XML import'!$A48,SEARCH(\">\",'CFR - XML import'!$A48,1)+1,SEARCH(\"/\",'CFR - XML import'!$A48,1)-SEARCH(\">\",'CFR - XML import'!$A48,1)-2)))","v":0},{"$f":"IF(ISERROR(FIND(AZ$3,'CFR - XML import'!$A48)),0,VALUE(MID('CFR - XML import'!$A48,SEARCH(\">\",'CFR - XML import'!$A48,1)+1,SEARCH(\"/\",'CFR - XML import'!$A48,1)-SEARCH(\">\",'CFR - XML import'!$A48,1)-2)))","v":0},{"$f":"IF(ISERROR(FIND(BA$3,'CFR - XML import'!$A48)),0,VALUE(MID('CFR - XML import'!$A48,SEARCH(\">\",'CFR - XML import'!$A48,1)+1,SEARCH(\"/\",'CFR - XML import'!$A48,1)-SEARCH(\">\",'CFR - XML import'!$A48,1)-2)))","v":0},{"$f":"IF(ISERROR(FIND(BB$3,'CFR - XML import'!$A48)),0,VALUE(MID('CFR - XML import'!$A48,SEARCH(\">\",'CFR - XML import'!$A48,1)+1,SEARCH(\"/\",'CFR - XML import'!$A48,1)-SEARCH(\">\",'CFR - XML import'!$A48,1)-2)))","v":0},{"$f":"IF(ISERROR(FIND(BC$3,'CFR - XML import'!$A48)),0,VALUE(MID('CFR - XML import'!$A48,SEARCH(\">\",'CFR - XML import'!$A48,1)+1,SEARCH(\"/\",'CFR - XML import'!$A48,1)-SEARCH(\">\",'CFR - XML import'!$A48,1)-2)))","v":0},{"$f":"IF(ISERROR(FIND(BD$3,'CFR - XML import'!$A48)),0,VALUE(MID('CFR - XML import'!$A48,SEARCH(\">\",'CFR - XML import'!$A48,1)+1,SEARCH(\"/\",'CFR - XML import'!$A48,1)-SEARCH(\">\",'CFR - XML import'!$A48,1)-2)))","v":0},{"$f":"IF(ISERROR(FIND(BE$3,'CFR - XML import'!$A48)),0,VALUE(MID('CFR - XML import'!$A48,SEARCH(\">\",'CFR - XML import'!$A48,1)+1,SEARCH(\"/\",'CFR - XML import'!$A48,1)-SEARCH(\">\",'CFR - XML import'!$A48,1)-2)))","v":0},{"$f":"IF(ISERROR(FIND(BF$3,'CFR - XML import'!$A48)),0,VALUE(MID('CFR - XML import'!$A48,SEARCH(\">\",'CFR - XML import'!$A48,1)+1,SEARCH(\"/\",'CFR - XML import'!$A48,1)-SEARCH(\">\",'CFR - XML import'!$A48,1)-2)))","v":0},{"$f":"IF(ISERROR(FIND(BG$3,'CFR - XML import'!$A48)),0,VALUE(MID('CFR - XML import'!$A48,SEARCH(\">\",'CFR - XML import'!$A48,1)+1,SEARCH(\"/\",'CFR - XML import'!$A48,1)-SEARCH(\">\",'CFR - XML import'!$A48,1)-2)))","v":0},{"$f":"IF(ISERROR(FIND(BH$3,'CFR - XML import'!$A48)),0,VALUE(MID('CFR - XML import'!$A48,SEARCH(\">\",'CFR - XML import'!$A48,1)+1,SEARCH(\"/\",'CFR - XML import'!$A48,1)-SEARCH(\">\",'CFR - XML import'!$A48,1)-2)))","v":0},{"$f":"IF(ISERROR(FIND(BI$3,'CFR - XML import'!$A48)),0,VALUE(MID('CFR - XML import'!$A48,SEARCH(\">\",'CFR - XML import'!$A48,1)+1,SEARCH(\"/\",'CFR - XML import'!$A48,1)-SEARCH(\">\",'CFR - XML import'!$A48,1)-2)))","v":0},{"$f":"IF(ISERROR(FIND(BJ$3,'CFR - XML import'!$A48)),0,VALUE(MID('CFR - XML import'!$A48,SEARCH(\">\",'CFR - XML import'!$A48,1)+1,SEARCH(\"/\",'CFR - XML import'!$A48,1)-SEARCH(\">\",'CFR - XML import'!$A48,1)-2)))","v":0},{"$f":"IF(ISERROR(FIND(BK$3,'CFR - XML import'!$A48)),0,VALUE(MID('CFR - XML import'!$A48,SEARCH(\">\",'CFR - XML import'!$A48,1)+1,SEARCH(\"/\",'CFR - XML import'!$A48,1)-SEARCH(\">\",'CFR - XML import'!$A48,1)-2)))","v":0},{"$f":"IF(ISERROR(FIND(BL$3,'CFR - XML import'!$A48)),0,VALUE(MID('CFR - XML import'!$A48,SEARCH(\">\",'CFR - XML import'!$A48,1)+1,SEARCH(\"/\",'CFR - XML import'!$A48,1)-SEARCH(\">\",'CFR - XML import'!$A48,1)-2)))","v":0},{"$f":"IF(ISERROR(FIND(BM$3,'CFR - XML import'!$A48)),0,VALUE(MID('CFR - XML import'!$A48,SEARCH(\">\",'CFR - XML import'!$A48,1)+1,SEARCH(\"/\",'CFR - XML import'!$A48,1)-SEARCH(\">\",'CFR - XML import'!$A48,1)-2)))","v":0},{"$f":"IF(ISERROR(FIND(BN$3,'CFR - XML import'!$A48)),0,VALUE(MID('CFR - XML import'!$A48,SEARCH(\">\",'CFR - XML import'!$A48,1)+1,SEARCH(\"/\",'CFR - XML import'!$A48,1)-SEARCH(\">\",'CFR - XML import'!$A48,1)-2)))","v":0},{"$f":"IF(ISERROR(FIND(BO$3,'CFR - XML import'!$A48)),0,VALUE(MID('CFR - XML import'!$A48,SEARCH(\">\",'CFR - XML import'!$A48,1)+1,SEARCH(\"/\",'CFR - XML import'!$A48,1)-SEARCH(\">\",'CFR - XML import'!$A48,1)-2)))","v":0},{"$f":"IF(ISERROR(FIND(BP$3,'CFR - XML import'!$A48)),0,VALUE(MID('CFR - XML import'!$A48,SEARCH(\">\",'CFR - XML import'!$A48,1)+1,SEARCH(\"/\",'CFR - XML import'!$A48,1)-SEARCH(\">\",'CFR - XML import'!$A48,1)-2)))","v":0},{"$f":"IF(ISERROR(FIND(BQ$3,'CFR - XML import'!$A48)),0,VALUE(MID('CFR - XML import'!$A48,SEARCH(\">\",'CFR - XML import'!$A48,1)+1,SEARCH(\"/\",'CFR - XML import'!$A48,1)-SEARCH(\">\",'CFR - XML import'!$A48,1)-2)))","v":0},{"$f":"IF(ISERROR(FIND(BR$3,'CFR - XML import'!$A48)),0,VALUE(MID('CFR - XML import'!$A48,SEARCH(\">\",'CFR - XML import'!$A48,1)+1,SEARCH(\"/\",'CFR - XML import'!$A48,1)-SEARCH(\">\",'CFR - XML import'!$A48,1)-2)))","v":0},{"$f":"IF(ISERROR(FIND(BS$3,'CFR - XML import'!$A48)),0,VALUE(MID('CFR - XML import'!$A48,SEARCH(\">\",'CFR - XML import'!$A48,1)+1,SEARCH(\"/\",'CFR - XML import'!$A48,1)-SEARCH(\">\",'CFR - XML import'!$A48,1)-2)))","v":0},{"$f":"IF(ISERROR(FIND(BT$3,'CFR - XML import'!$A48)),0,VALUE(MID('CFR - XML import'!$A48,SEARCH(\">\",'CFR - XML import'!$A48,1)+1,SEARCH(\"/\",'CFR - XML import'!$A48,1)-SEARCH(\">\",'CFR - XML import'!$A48,1)-2)))","v":0},{"$f":"IF(ISERROR(FIND(BU$3,'CFR - XML import'!$A48)),0,VALUE(MID('CFR - XML import'!$A48,SEARCH(\">\",'CFR - XML import'!$A48,1)+1,SEARCH(\"/\",'CFR - XML import'!$A48,1)-SEARCH(\">\",'CFR - XML import'!$A48,1)-2)))","v":0},{"$f":"IF(ISERROR(FIND(BV$3,'CFR - XML import'!$A48)),0,VALUE(MID('CFR - XML import'!$A48,SEARCH(\">\",'CFR - XML import'!$A48,1)+1,SEARCH(\"/\",'CFR - XML import'!$A48,1)-SEARCH(\">\",'CFR - XML import'!$A48,1)-2)))","v":0},{"$f":"IF(ISERROR(FIND(BW$3,'CFR - XML import'!$A48)),0,VALUE(MID('CFR - XML import'!$A48,SEARCH(\">\",'CFR - XML import'!$A48,1)+1,SEARCH(\"/\",'CFR - XML import'!$A48,1)-SEARCH(\">\",'CFR - XML import'!$A48,1)-2)))","v":0},{"$f":"IF(ISERROR(FIND(BX$3,'CFR - XML import'!$A48)),0,VALUE(MID('CFR - XML import'!$A48,SEARCH(\">\",'CFR - XML import'!$A48,1)+1,SEARCH(\"/\",'CFR - XML import'!$A48,1)-SEARCH(\">\",'CFR - XML import'!$A48,1)-2)))","v":0},{"$f":"IF(ISERROR(FIND(BY$3,'CFR - XML import'!$A48)),0,VALUE(MID('CFR - XML import'!$A48,SEARCH(\">\",'CFR - XML import'!$A48,1)+1,SEARCH(\"/\",'CFR - XML import'!$A48,1)-SEARCH(\">\",'CFR - XML import'!$A48,1)-2)))","v":0},{"$f":"IF(ISERROR(FIND(BZ$3,'CFR - XML import'!$A48)),0,VALUE(MID('CFR - XML import'!$A48,SEARCH(\">\",'CFR - XML import'!$A48,1)+1,SEARCH(\"/\",'CFR - XML import'!$A48,1)-SEARCH(\">\",'CFR - XML import'!$A48,1)-2)))","v":0},null,null,null,null,null,null,{"$f":"IF(ISERROR(IF(MID('CFR - XML import'!$A48,LEN($CF$4)+1,LEN('CFR - XML import'!$A48)-(2*LEN($CF$4)+1))=\"RMMS\",1,IF(MID('CFR - XML import'!$A48,LEN(\"    <InputSystem>\")+1,LEN('CFR - XML import'!$A48)-(LEN(\"    <InputSystem>\")+LEN($CF$4)+1))=\"SIMS\",2,0))),0,IF(MID('CFR - XML import'!$A48,LEN($CF$4)+1,LEN('CFR - XML import'!$A48)-(2*LEN($CF$4)+1))=\"RMMS\",1,IF(MID('CFR - XML import'!$A48,LEN(\"    <InputSystem>\")+1,LEN('CFR - XML import'!$A48)-(LEN(\"    <InputSystem>\")+LEN($CF$4)+1))=\"SIMS\",2,0)))","v":0},{"$f":"IF(ISERROR(FIND(CH$3,'CFR - XML import'!$A48)),0,MID('CFR - XML import'!$A48,SEARCH(\">\",'CFR - XML import'!$A48,1)+1,SEARCH(\"/\",'CFR - XML import'!$A48,1)-SEARCH(\">\",'CFR - XML import'!$A48,1)-2))","v":0},{"$f":"IF(ISERROR(FIND(CI$3,'CFR - XML import'!$A48)),0,MID('CFR - XML import'!$A48,SEARCH(\">\",'CFR - XML import'!$A48,1)+1,SEARCH(\"/\",'CFR - XML import'!$A48,1)-SEARCH(\">\",'CFR - XML import'!$A48,1)-2))","v":0},{"$f":"IF(ISERROR(FIND(CJ$3,'CFR - XML import'!$A48)),0,MID('CFR - XML import'!$A48,SEARCH(\">\",'CFR - XML import'!$A48,1)+1,SEARCH(\"/\",'CFR - XML import'!$A48,1)-SEARCH(\">\",'CFR - XML import'!$A48,1)-2))","v":0},{"$f":"IF(ISERROR(FIND(CK$3,'CFR - XML import'!$A48)),0,MID('CFR - XML import'!$A48,SEARCH(\">\",'CFR - XML import'!$A48,1)+1,SEARCH(\"/\",'CFR - XML import'!$A48,1)-SEARCH(\">\",'CFR - XML import'!$A48,1)-2))","v":0},{"$f":"IF(ISERROR(FIND(CL$3,'CFR - XML import'!$A48)),0,MID('CFR - XML import'!$A48,SEARCH(\">\",'CFR - XML import'!$A48,1)+1,SEARCH(\"/\",'CFR - XML import'!$A48,1)-SEARCH(\">\",'CFR - XML import'!$A48,1)-2))","v":0}]
[{"$f":"IF(AND('CFR - XML import'!A49<>\"\",LEFT('CFR - XML import'!A49,1)<>\"<\",LEFT('CFR - XML import'!A49,3)<>\"  <\",LEFT('CFR - XML import'!A49,5)<>\"    <\",LEFT('CFR - XML import'!A49,7)<>\"      <\",LEFT('CFR - XML import'!A49,9)<>\"        <\",$B$1=\"SIMS\"),'CFR - XML import'!A49,IF(AND(LEFT('CFR - XML import'!A49,9)=\"<Details>\",$B$1=\"RM\"),'CFR - XML import'!A49,\"\"))","v":""},{"$f":"IF(ISERROR(FIND(B$3,'CFR - XML import'!$A49)),0,VALUE(MID('CFR - XML import'!$A49,SEARCH(\">\",'CFR - XML import'!$A49,1)+1,SEARCH(\"/\",'CFR - XML import'!$A49,1)-SEARCH(\">\",'CFR - XML import'!$A49,1)-2)))","v":0},null,{"$f":"IF(ISERROR(FIND(D$3,'CFR - XML import'!$A49)),0,MID('CFR - XML import'!$A49,SEARCH(\">\",'CFR - XML import'!$A49,1)+1,SEARCH(\"/\",'CFR - XML import'!$A49,1)-SEARCH(\">\",'CFR - XML import'!$A49,1)-2))","v":0},{"$f":"IF(ISERROR(FIND(E$3,'CFR - XML import'!$A49)),0,MID('CFR - XML import'!$A49,SEARCH(\">\",'CFR - XML import'!$A49,1)+1,SEARCH(\"/\",'CFR - XML import'!$A49,1)-SEARCH(\">\",'CFR - XML import'!$A49,1)-2))","v":0},{"$f":"IF($B$1=\"SIMS\",IF(ISERROR(FIND(F$3,'CFR - XML import'!$A49)),0,VALUE(MID('CFR - XML import'!$A49,15,10))),IF(ISERROR(FIND(F$3,'CFR - XML import'!$A49)),0,VALUE(MID('CFR - XML import'!$A49,11,10))))","v":"00:00:00"},{"$f":"IF(ISERROR(FIND(G$3,'CFR - XML import'!$A49)),0,VALUE(MID('CFR - XML import'!$A49,SEARCH(\">\",'CFR - XML import'!$A49,1)+1,SEARCH(\"/\",'CFR - XML import'!$A49,1)-SEARCH(\">\",'CFR - XML import'!$A49,1)-2)))","v":0},{"$f":"IF(ISERROR(FIND(H$3,'CFR - XML import'!$A49)),0,VALUE(MID('CFR - XML import'!$A49,SEARCH(\">\",'CFR - XML import'!$A49,1)+1,SEARCH(\"/\",'CFR - XML import'!$A49,1)-SEARCH(\">\",'CFR - XML import'!$A49,1)-2)))","v":0},{"$f":"IF(ISERROR(FIND(I$3,'CFR - XML import'!$A49)),0,VALUE(MID('CFR - XML import'!$A49,SEARCH(\">\",'CFR - XML import'!$A49,1)+1,SEARCH(\"/\",'CFR - XML import'!$A49,1)-SEARCH(\">\",'CFR - XML import'!$A49,1)-2)))","v":0},{"$f":"IF(ISERROR(FIND(J$3,'CFR - XML import'!$A49)),0,VALUE(MID('CFR - XML import'!$A49,SEARCH(\">\",'CFR - XML import'!$A49,1)+1,SEARCH(\"/\",'CFR - XML import'!$A49,1)-SEARCH(\">\",'CFR - XML import'!$A49,1)-2)))","v":0},{"$f":"IF(ISERROR(FIND(K$3,'CFR - XML import'!$A49)),0,VALUE(MID('CFR - XML import'!$A49,SEARCH(\">\",'CFR - XML import'!$A49,1)+1,SEARCH(\"/\",'CFR - XML import'!$A49,1)-SEARCH(\">\",'CFR - XML import'!$A49,1)-2)))","v":0},{"$f":"IF(ISERROR(FIND(L$3,'CFR - XML import'!$A49)),0,VALUE(MID('CFR - XML import'!$A49,SEARCH(\">\",'CFR - XML import'!$A49,1)+1,SEARCH(\"/\",'CFR - XML import'!$A49,1)-SEARCH(\">\",'CFR - XML import'!$A49,1)-2)))","v":0},{"$f":"IF(ISERROR(FIND(M$3,'CFR - XML import'!$A49)),0,VALUE(MID('CFR - XML import'!$A49,SEARCH(\">\",'CFR - XML import'!$A49,1)+1,SEARCH(\"/\",'CFR - XML import'!$A49,1)-SEARCH(\">\",'CFR - XML import'!$A49,1)-2)))","v":0},{"$f":"IF(ISERROR(FIND(N$3,'CFR - XML import'!$A49)),0,VALUE(MID('CFR - XML import'!$A49,SEARCH(\">\",'CFR - XML import'!$A49,1)+1,SEARCH(\"/\",'CFR - XML import'!$A49,1)-SEARCH(\">\",'CFR - XML import'!$A49,1)-2)))","v":0},{"$f":"IF(ISERROR(FIND(O$3,'CFR - XML import'!$A49)),0,VALUE(MID('CFR - XML import'!$A49,SEARCH(\">\",'CFR - XML import'!$A49,1)+1,SEARCH(\"/\",'CFR - XML import'!$A49,1)-SEARCH(\">\",'CFR - XML import'!$A49,1)-2)))","v":0},{"$f":"IF(ISERROR(FIND(P$3,'CFR - XML import'!$A49)),0,VALUE(MID('CFR - XML import'!$A49,SEARCH(\">\",'CFR - XML import'!$A49,1)+1,SEARCH(\"/\",'CFR - XML import'!$A49,1)-SEARCH(\">\",'CFR - XML import'!$A49,1)-2)))","v":0},{"$f":"IF(ISERROR(FIND(Q$3,'CFR - XML import'!$A49)),0,VALUE(MID('CFR - XML import'!$A49,SEARCH(\">\",'CFR - XML import'!$A49,1)+1,SEARCH(\"/\",'CFR - XML import'!$A49,1)-SEARCH(\">\",'CFR - XML import'!$A49,1)-2)))","v":0},{"$f":"IF(ISERROR(FIND(R$3,'CFR - XML import'!$A49)),0,VALUE(MID('CFR - XML import'!$A49,SEARCH(\">\",'CFR - XML import'!$A49,1)+1,SEARCH(\"/\",'CFR - XML import'!$A49,1)-SEARCH(\">\",'CFR - XML import'!$A49,1)-2)))","v":0},{"$f":"IF(ISERROR(FIND(S$3,'CFR - XML import'!$A49)),0,VALUE(MID('CFR - XML import'!$A49,SEARCH(\">\",'CFR - XML import'!$A49,1)+1,SEARCH(\"/\",'CFR - XML import'!$A49,1)-SEARCH(\">\",'CFR - XML import'!$A49,1)-2)))","v":0},{"$f":"IF(ISERROR(FIND(T$3,'CFR - XML import'!$A49)),0,VALUE(MID('CFR - XML import'!$A49,SEARCH(\">\",'CFR - XML import'!$A49,1)+1,SEARCH(\"/\",'CFR - XML import'!$A49,1)-SEARCH(\">\",'CFR - XML import'!$A49,1)-2)))","v":0},{"$f":"IF(ISERROR(FIND(U$3,'CFR - XML import'!$A49)),0,VALUE(MID('CFR - XML import'!$A49,SEARCH(\">\",'CFR - XML import'!$A49,1)+1,SEARCH(\"/\",'CFR - XML import'!$A49,1)-SEARCH(\">\",'CFR - XML import'!$A49,1)-2)))","v":0},{"$f":"IF(ISERROR(FIND(V$3,'CFR - XML import'!$A49)),0,VALUE(MID('CFR - XML import'!$A49,SEARCH(\">\",'CFR - XML import'!$A49,1)+1,SEARCH(\"/\",'CFR - XML import'!$A49,1)-SEARCH(\">\",'CFR - XML import'!$A49,1)-2)))","v":0},{"$f":"IF(ISERROR(FIND(W$3,'CFR - XML import'!$A49)),0,VALUE(MID('CFR - XML import'!$A49,SEARCH(\">\",'CFR - XML import'!$A49,1)+1,SEARCH(\"/\",'CFR - XML import'!$A49,1)-SEARCH(\">\",'CFR - XML import'!$A49,1)-2)))","v":0},null,{"$f":"IF(ISERROR(FIND(Y$3,'CFR - XML import'!$A49)),0,VALUE(MID('CFR - XML import'!$A49,SEARCH(\">\",'CFR - XML import'!$A49,1)+1,SEARCH(\"/\",'CFR - XML import'!$A49,1)-SEARCH(\">\",'CFR - XML import'!$A49,1)-2)))","v":0},{"$f":"IF(ISERROR(FIND(Z$3,'CFR - XML import'!$A49)),0,VALUE(MID('CFR - XML import'!$A49,SEARCH(\">\",'CFR - XML import'!$A49,1)+1,SEARCH(\"/\",'CFR - XML import'!$A49,1)-SEARCH(\">\",'CFR - XML import'!$A49,1)-2)))","v":0},{"$f":"IF(ISERROR(FIND(AA$3,'CFR - XML import'!$A49)),0,VALUE(MID('CFR - XML import'!$A49,SEARCH(\">\",'CFR - XML import'!$A49,1)+1,SEARCH(\"/\",'CFR - XML import'!$A49,1)-SEARCH(\">\",'CFR - XML import'!$A49,1)-2)))","v":0},{"$f":"IF(ISERROR(FIND(AB$3,'CFR - XML import'!$A49)),0,VALUE(MID('CFR - XML import'!$A49,SEARCH(\">\",'CFR - XML import'!$A49,1)+1,SEARCH(\"/\",'CFR - XML import'!$A49,1)-SEARCH(\">\",'CFR - XML import'!$A49,1)-2)))","v":0},{"$f":"IF(ISERROR(FIND(AC$3,'CFR - XML import'!$A49)),0,VALUE(MID('CFR - XML import'!$A49,SEARCH(\">\",'CFR - XML import'!$A49,1)+1,SEARCH(\"/\",'CFR - XML import'!$A49,1)-SEARCH(\">\",'CFR - XML import'!$A49,1)-2)))","v":0},{"$f":"IF(ISERROR(FIND(AD$3,'CFR - XML import'!$A49)),0,VALUE(MID('CFR - XML import'!$A49,SEARCH(\">\",'CFR - XML import'!$A49,1)+1,SEARCH(\"/\",'CFR - XML import'!$A49,1)-SEARCH(\">\",'CFR - XML import'!$A49,1)-2)))","v":0},{"$f":"IF(ISERROR(FIND(AE$3,'CFR - XML import'!$A49)),0,VALUE(MID('CFR - XML import'!$A49,SEARCH(\">\",'CFR - XML import'!$A49,1)+1,SEARCH(\"/\",'CFR - XML import'!$A49,1)-SEARCH(\">\",'CFR - XML import'!$A49,1)-2)))","v":0},{"$f":"IF(ISERROR(FIND(AF$3,'CFR - XML import'!$A49)),0,VALUE(MID('CFR - XML import'!$A49,SEARCH(\">\",'CFR - XML import'!$A49,1)+1,SEARCH(\"/\",'CFR - XML import'!$A49,1)-SEARCH(\">\",'CFR - XML import'!$A49,1)-2)))","v":0},{"$f":"IF(ISERROR(FIND(AG$3,'CFR - XML import'!$A49)),0,VALUE(MID('CFR - XML import'!$A49,SEARCH(\">\",'CFR - XML import'!$A49,1)+1,SEARCH(\"/\",'CFR - XML import'!$A49,1)-SEARCH(\">\",'CFR - XML import'!$A49,1)-2)))","v":0},{"$f":"IF(ISERROR(FIND(AH$3,'CFR - XML import'!$A49)),0,VALUE(MID('CFR - XML import'!$A49,SEARCH(\">\",'CFR - XML import'!$A49,1)+1,SEARCH(\"/\",'CFR - XML import'!$A49,1)-SEARCH(\">\",'CFR - XML import'!$A49,1)-2)))","v":0},{"$f":"IF(ISERROR(FIND(AI$3,'CFR - XML import'!$A49)),0,VALUE(MID('CFR - XML import'!$A49,SEARCH(\">\",'CFR - XML import'!$A49,1)+1,SEARCH(\"/\",'CFR - XML import'!$A49,1)-SEARCH(\">\",'CFR - XML import'!$A49,1)-2)))","v":0},{"$f":"IF(ISERROR(FIND(AJ$3,'CFR - XML import'!$A49)),0,VALUE(MID('CFR - XML import'!$A49,SEARCH(\">\",'CFR - XML import'!$A49,1)+1,SEARCH(\"/\",'CFR - XML import'!$A49,1)-SEARCH(\">\",'CFR - XML import'!$A49,1)-2)))","v":0},{"$f":"IF(ISERROR(FIND(AK$3,'CFR - XML import'!$A49)),0,VALUE(MID('CFR - XML import'!$A49,SEARCH(\">\",'CFR - XML import'!$A49,1)+1,SEARCH(\"/\",'CFR - XML import'!$A49,1)-SEARCH(\">\",'CFR - XML import'!$A49,1)-2)))","v":0},{"$f":"IF(ISERROR(FIND(AL$3,'CFR - XML import'!$A49)),0,VALUE(MID('CFR - XML import'!$A49,SEARCH(\">\",'CFR - XML import'!$A49,1)+1,SEARCH(\"/\",'CFR - XML import'!$A49,1)-SEARCH(\">\",'CFR - XML import'!$A49,1)-2)))","v":0},{"$f":"IF(ISERROR(FIND(AM$3,'CFR - XML import'!$A49)),0,VALUE(MID('CFR - XML import'!$A49,SEARCH(\">\",'CFR - XML import'!$A49,1)+1,SEARCH(\"/\",'CFR - XML import'!$A49,1)-SEARCH(\">\",'CFR - XML import'!$A49,1)-2)))","v":0},{"$f":"IF(ISERROR(FIND(AN$3,'CFR - XML import'!$A49)),0,VALUE(MID('CFR - XML import'!$A49,SEARCH(\">\",'CFR - XML import'!$A49,1)+1,SEARCH(\"/\",'CFR - XML import'!$A49,1)-SEARCH(\">\",'CFR - XML import'!$A49,1)-2)))","v":0},{"$f":"IF(ISERROR(FIND(AO$3,'CFR - XML import'!$A49)),0,VALUE(MID('CFR - XML import'!$A49,SEARCH(\">\",'CFR - XML import'!$A49,1)+1,SEARCH(\"/\",'CFR - XML import'!$A49,1)-SEARCH(\">\",'CFR - XML import'!$A49,1)-2)))","v":0},{"$f":"IF(ISERROR(FIND(AP$3,'CFR - XML import'!$A49)),0,VALUE(MID('CFR - XML import'!$A49,SEARCH(\">\",'CFR - XML import'!$A49,1)+1,SEARCH(\"/\",'CFR - XML import'!$A49,1)-SEARCH(\">\",'CFR - XML import'!$A49,1)-2)))","v":0},{"$f":"IF(ISERROR(FIND(AQ$3,'CFR - XML import'!$A49)),0,VALUE(MID('CFR - XML import'!$A49,SEARCH(\">\",'CFR - XML import'!$A49,1)+1,SEARCH(\"/\",'CFR - XML import'!$A49,1)-SEARCH(\">\",'CFR - XML import'!$A49,1)-2)))","v":0},{"$f":"IF(ISERROR(FIND(AR$3,'CFR - XML import'!$A49)),0,VALUE(MID('CFR - XML import'!$A49,SEARCH(\">\",'CFR - XML import'!$A49,1)+1,SEARCH(\"/\",'CFR - XML import'!$A49,1)-SEARCH(\">\",'CFR - XML import'!$A49,1)-2)))","v":0},{"$f":"IF(ISERROR(FIND(AS$3,'CFR - XML import'!$A49)),0,VALUE(MID('CFR - XML import'!$A49,SEARCH(\">\",'CFR - XML import'!$A49,1)+1,SEARCH(\"/\",'CFR - XML import'!$A49,1)-SEARCH(\">\",'CFR - XML import'!$A49,1)-2)))","v":0},{"$f":"IF(ISERROR(FIND(AT$3,'CFR - XML import'!$A49)),0,VALUE(MID('CFR - XML import'!$A49,SEARCH(\">\",'CFR - XML import'!$A49,1)+1,SEARCH(\"/\",'CFR - XML import'!$A49,1)-SEARCH(\">\",'CFR - XML import'!$A49,1)-2)))","v":0},{"$f":"IF(ISERROR(FIND(AU$3,'CFR - XML import'!$A49)),0,VALUE(MID('CFR - XML import'!$A49,SEARCH(\">\",'CFR - XML import'!$A49,1)+1,SEARCH(\"/\",'CFR - XML import'!$A49,1)-SEARCH(\">\",'CFR - XML import'!$A49,1)-2)))","v":0},{"$f":"IF(ISERROR(FIND(AV$3,'CFR - XML import'!$A49)),0,VALUE(MID('CFR - XML import'!$A49,SEARCH(\">\",'CFR - XML import'!$A49,1)+1,SEARCH(\"/\",'CFR - XML import'!$A49,1)-SEARCH(\">\",'CFR - XML import'!$A49,1)-2)))","v":0},{"$f":"IF(ISERROR(FIND(AW$3,'CFR - XML import'!$A49)),0,VALUE(MID('CFR - XML import'!$A49,SEARCH(\">\",'CFR - XML import'!$A49,1)+1,SEARCH(\"/\",'CFR - XML import'!$A49,1)-SEARCH(\">\",'CFR - XML import'!$A49,1)-2)))","v":0},{"$f":"IF(ISERROR(FIND(AX$3,'CFR - XML import'!$A49)),0,VALUE(MID('CFR - XML import'!$A49,SEARCH(\">\",'CFR - XML import'!$A49,1)+1,SEARCH(\"/\",'CFR - XML import'!$A49,1)-SEARCH(\">\",'CFR - XML import'!$A49,1)-2)))","v":0},{"$f":"IF(ISERROR(FIND(AY$3,'CFR - XML import'!$A49)),0,VALUE(MID('CFR - XML import'!$A49,SEARCH(\">\",'CFR - XML import'!$A49,1)+1,SEARCH(\"/\",'CFR - XML import'!$A49,1)-SEARCH(\">\",'CFR - XML import'!$A49,1)-2)))","v":0},{"$f":"IF(ISERROR(FIND(AZ$3,'CFR - XML import'!$A49)),0,VALUE(MID('CFR - XML import'!$A49,SEARCH(\">\",'CFR - XML import'!$A49,1)+1,SEARCH(\"/\",'CFR - XML import'!$A49,1)-SEARCH(\">\",'CFR - XML import'!$A49,1)-2)))","v":0},{"$f":"IF(ISERROR(FIND(BA$3,'CFR - XML import'!$A49)),0,VALUE(MID('CFR - XML import'!$A49,SEARCH(\">\",'CFR - XML import'!$A49,1)+1,SEARCH(\"/\",'CFR - XML import'!$A49,1)-SEARCH(\">\",'CFR - XML import'!$A49,1)-2)))","v":0},{"$f":"IF(ISERROR(FIND(BB$3,'CFR - XML import'!$A49)),0,VALUE(MID('CFR - XML import'!$A49,SEARCH(\">\",'CFR - XML import'!$A49,1)+1,SEARCH(\"/\",'CFR - XML import'!$A49,1)-SEARCH(\">\",'CFR - XML import'!$A49,1)-2)))","v":0},{"$f":"IF(ISERROR(FIND(BC$3,'CFR - XML import'!$A49)),0,VALUE(MID('CFR - XML import'!$A49,SEARCH(\">\",'CFR - XML import'!$A49,1)+1,SEARCH(\"/\",'CFR - XML import'!$A49,1)-SEARCH(\">\",'CFR - XML import'!$A49,1)-2)))","v":0},{"$f":"IF(ISERROR(FIND(BD$3,'CFR - XML import'!$A49)),0,VALUE(MID('CFR - XML import'!$A49,SEARCH(\">\",'CFR - XML import'!$A49,1)+1,SEARCH(\"/\",'CFR - XML import'!$A49,1)-SEARCH(\">\",'CFR - XML import'!$A49,1)-2)))","v":0},{"$f":"IF(ISERROR(FIND(BE$3,'CFR - XML import'!$A49)),0,VALUE(MID('CFR - XML import'!$A49,SEARCH(\">\",'CFR - XML import'!$A49,1)+1,SEARCH(\"/\",'CFR - XML import'!$A49,1)-SEARCH(\">\",'CFR - XML import'!$A49,1)-2)))","v":0},{"$f":"IF(ISERROR(FIND(BF$3,'CFR - XML import'!$A49)),0,VALUE(MID('CFR - XML import'!$A49,SEARCH(\">\",'CFR - XML import'!$A49,1)+1,SEARCH(\"/\",'CFR - XML import'!$A49,1)-SEARCH(\">\",'CFR - XML import'!$A49,1)-2)))","v":0},{"$f":"IF(ISERROR(FIND(BG$3,'CFR - XML import'!$A49)),0,VALUE(MID('CFR - XML import'!$A49,SEARCH(\">\",'CFR - XML import'!$A49,1)+1,SEARCH(\"/\",'CFR - XML import'!$A49,1)-SEARCH(\">\",'CFR - XML import'!$A49,1)-2)))","v":0},{"$f":"IF(ISERROR(FIND(BH$3,'CFR - XML import'!$A49)),0,VALUE(MID('CFR - XML import'!$A49,SEARCH(\">\",'CFR - XML import'!$A49,1)+1,SEARCH(\"/\",'CFR - XML import'!$A49,1)-SEARCH(\">\",'CFR - XML import'!$A49,1)-2)))","v":0},{"$f":"IF(ISERROR(FIND(BI$3,'CFR - XML import'!$A49)),0,VALUE(MID('CFR - XML import'!$A49,SEARCH(\">\",'CFR - XML import'!$A49,1)+1,SEARCH(\"/\",'CFR - XML import'!$A49,1)-SEARCH(\">\",'CFR - XML import'!$A49,1)-2)))","v":0},{"$f":"IF(ISERROR(FIND(BJ$3,'CFR - XML import'!$A49)),0,VALUE(MID('CFR - XML import'!$A49,SEARCH(\">\",'CFR - XML import'!$A49,1)+1,SEARCH(\"/\",'CFR - XML import'!$A49,1)-SEARCH(\">\",'CFR - XML import'!$A49,1)-2)))","v":0},{"$f":"IF(ISERROR(FIND(BK$3,'CFR - XML import'!$A49)),0,VALUE(MID('CFR - XML import'!$A49,SEARCH(\">\",'CFR - XML import'!$A49,1)+1,SEARCH(\"/\",'CFR - XML import'!$A49,1)-SEARCH(\">\",'CFR - XML import'!$A49,1)-2)))","v":0},{"$f":"IF(ISERROR(FIND(BL$3,'CFR - XML import'!$A49)),0,VALUE(MID('CFR - XML import'!$A49,SEARCH(\">\",'CFR - XML import'!$A49,1)+1,SEARCH(\"/\",'CFR - XML import'!$A49,1)-SEARCH(\">\",'CFR - XML import'!$A49,1)-2)))","v":0},{"$f":"IF(ISERROR(FIND(BM$3,'CFR - XML import'!$A49)),0,VALUE(MID('CFR - XML import'!$A49,SEARCH(\">\",'CFR - XML import'!$A49,1)+1,SEARCH(\"/\",'CFR - XML import'!$A49,1)-SEARCH(\">\",'CFR - XML import'!$A49,1)-2)))","v":0},{"$f":"IF(ISERROR(FIND(BN$3,'CFR - XML import'!$A49)),0,VALUE(MID('CFR - XML import'!$A49,SEARCH(\">\",'CFR - XML import'!$A49,1)+1,SEARCH(\"/\",'CFR - XML import'!$A49,1)-SEARCH(\">\",'CFR - XML import'!$A49,1)-2)))","v":0},{"$f":"IF(ISERROR(FIND(BO$3,'CFR - XML import'!$A49)),0,VALUE(MID('CFR - XML import'!$A49,SEARCH(\">\",'CFR - XML import'!$A49,1)+1,SEARCH(\"/\",'CFR - XML import'!$A49,1)-SEARCH(\">\",'CFR - XML import'!$A49,1)-2)))","v":0},{"$f":"IF(ISERROR(FIND(BP$3,'CFR - XML import'!$A49)),0,VALUE(MID('CFR - XML import'!$A49,SEARCH(\">\",'CFR - XML import'!$A49,1)+1,SEARCH(\"/\",'CFR - XML import'!$A49,1)-SEARCH(\">\",'CFR - XML import'!$A49,1)-2)))","v":0},{"$f":"IF(ISERROR(FIND(BQ$3,'CFR - XML import'!$A49)),0,VALUE(MID('CFR - XML import'!$A49,SEARCH(\">\",'CFR - XML import'!$A49,1)+1,SEARCH(\"/\",'CFR - XML import'!$A49,1)-SEARCH(\">\",'CFR - XML import'!$A49,1)-2)))","v":0},{"$f":"IF(ISERROR(FIND(BR$3,'CFR - XML import'!$A49)),0,VALUE(MID('CFR - XML import'!$A49,SEARCH(\">\",'CFR - XML import'!$A49,1)+1,SEARCH(\"/\",'CFR - XML import'!$A49,1)-SEARCH(\">\",'CFR - XML import'!$A49,1)-2)))","v":0},{"$f":"IF(ISERROR(FIND(BS$3,'CFR - XML import'!$A49)),0,VALUE(MID('CFR - XML import'!$A49,SEARCH(\">\",'CFR - XML import'!$A49,1)+1,SEARCH(\"/\",'CFR - XML import'!$A49,1)-SEARCH(\">\",'CFR - XML import'!$A49,1)-2)))","v":0},{"$f":"IF(ISERROR(FIND(BT$3,'CFR - XML import'!$A49)),0,VALUE(MID('CFR - XML import'!$A49,SEARCH(\">\",'CFR - XML import'!$A49,1)+1,SEARCH(\"/\",'CFR - XML import'!$A49,1)-SEARCH(\">\",'CFR - XML import'!$A49,1)-2)))","v":0},{"$f":"IF(ISERROR(FIND(BU$3,'CFR - XML import'!$A49)),0,VALUE(MID('CFR - XML import'!$A49,SEARCH(\">\",'CFR - XML import'!$A49,1)+1,SEARCH(\"/\",'CFR - XML import'!$A49,1)-SEARCH(\">\",'CFR - XML import'!$A49,1)-2)))","v":0},{"$f":"IF(ISERROR(FIND(BV$3,'CFR - XML import'!$A49)),0,VALUE(MID('CFR - XML import'!$A49,SEARCH(\">\",'CFR - XML import'!$A49,1)+1,SEARCH(\"/\",'CFR - XML import'!$A49,1)-SEARCH(\">\",'CFR - XML import'!$A49,1)-2)))","v":0},{"$f":"IF(ISERROR(FIND(BW$3,'CFR - XML import'!$A49)),0,VALUE(MID('CFR - XML import'!$A49,SEARCH(\">\",'CFR - XML import'!$A49,1)+1,SEARCH(\"/\",'CFR - XML import'!$A49,1)-SEARCH(\">\",'CFR - XML import'!$A49,1)-2)))","v":0},{"$f":"IF(ISERROR(FIND(BX$3,'CFR - XML import'!$A49)),0,VALUE(MID('CFR - XML import'!$A49,SEARCH(\">\",'CFR - XML import'!$A49,1)+1,SEARCH(\"/\",'CFR - XML import'!$A49,1)-SEARCH(\">\",'CFR - XML import'!$A49,1)-2)))","v":0},{"$f":"IF(ISERROR(FIND(BY$3,'CFR - XML import'!$A49)),0,VALUE(MID('CFR - XML import'!$A49,SEARCH(\">\",'CFR - XML import'!$A49,1)+1,SEARCH(\"/\",'CFR - XML import'!$A49,1)-SEARCH(\">\",'CFR - XML import'!$A49,1)-2)))","v":0},{"$f":"IF(ISERROR(FIND(BZ$3,'CFR - XML import'!$A49)),0,VALUE(MID('CFR - XML import'!$A49,SEARCH(\">\",'CFR - XML import'!$A49,1)+1,SEARCH(\"/\",'CFR - XML import'!$A49,1)-SEARCH(\">\",'CFR - XML import'!$A49,1)-2)))","v":0},null,null,null,null,null,null,{"$f":"IF(ISERROR(IF(MID('CFR - XML import'!$A49,LEN($CF$4)+1,LEN('CFR - XML import'!$A49)-(2*LEN($CF$4)+1))=\"RMMS\",1,IF(MID('CFR - XML import'!$A49,LEN(\"    <InputSystem>\")+1,LEN('CFR - XML import'!$A49)-(LEN(\"    <InputSystem>\")+LEN($CF$4)+1))=\"SIMS\",2,0))),0,IF(MID('CFR - XML import'!$A49,LEN($CF$4)+1,LEN('CFR - XML import'!$A49)-(2*LEN($CF$4)+1))=\"RMMS\",1,IF(MID('CFR - XML import'!$A49,LEN(\"    <InputSystem>\")+1,LEN('CFR - XML import'!$A49)-(LEN(\"    <InputSystem>\")+LEN($CF$4)+1))=\"SIMS\",2,0)))","v":0},{"$f":"IF(ISERROR(FIND(CH$3,'CFR - XML import'!$A49)),0,MID('CFR - XML import'!$A49,SEARCH(\">\",'CFR - XML import'!$A49,1)+1,SEARCH(\"/\",'CFR - XML import'!$A49,1)-SEARCH(\">\",'CFR - XML import'!$A49,1)-2))","v":0},{"$f":"IF(ISERROR(FIND(CI$3,'CFR - XML import'!$A49)),0,MID('CFR - XML import'!$A49,SEARCH(\">\",'CFR - XML import'!$A49,1)+1,SEARCH(\"/\",'CFR - XML import'!$A49,1)-SEARCH(\">\",'CFR - XML import'!$A49,1)-2))","v":0},{"$f":"IF(ISERROR(FIND(CJ$3,'CFR - XML import'!$A49)),0,MID('CFR - XML import'!$A49,SEARCH(\">\",'CFR - XML import'!$A49,1)+1,SEARCH(\"/\",'CFR - XML import'!$A49,1)-SEARCH(\">\",'CFR - XML import'!$A49,1)-2))","v":0},{"$f":"IF(ISERROR(FIND(CK$3,'CFR - XML import'!$A49)),0,MID('CFR - XML import'!$A49,SEARCH(\">\",'CFR - XML import'!$A49,1)+1,SEARCH(\"/\",'CFR - XML import'!$A49,1)-SEARCH(\">\",'CFR - XML import'!$A49,1)-2))","v":0},{"$f":"IF(ISERROR(FIND(CL$3,'CFR - XML import'!$A49)),0,MID('CFR - XML import'!$A49,SEARCH(\">\",'CFR - XML import'!$A49,1)+1,SEARCH(\"/\",'CFR - XML import'!$A49,1)-SEARCH(\">\",'CFR - XML import'!$A49,1)-2))","v":0}]
[{"$f":"IF(AND('CFR - XML import'!A50<>\"\",LEFT('CFR - XML import'!A50,1)<>\"<\",LEFT('CFR - XML import'!A50,3)<>\"  <\",LEFT('CFR - XML import'!A50,5)<>\"    <\",LEFT('CFR - XML import'!A50,7)<>\"      <\",LEFT('CFR - XML import'!A50,9)<>\"        <\",$B$1=\"SIMS\"),'CFR - XML import'!A50,IF(AND(LEFT('CFR - XML import'!A50,9)=\"<Details>\",$B$1=\"RM\"),'CFR - XML import'!A50,\"\"))","v":""},{"$f":"IF(ISERROR(FIND(B$3,'CFR - XML import'!$A50)),0,VALUE(MID('CFR - XML import'!$A50,SEARCH(\">\",'CFR - XML import'!$A50,1)+1,SEARCH(\"/\",'CFR - XML import'!$A50,1)-SEARCH(\">\",'CFR - XML import'!$A50,1)-2)))","v":0},null,{"$f":"IF(ISERROR(FIND(D$3,'CFR - XML import'!$A50)),0,MID('CFR - XML import'!$A50,SEARCH(\">\",'CFR - XML import'!$A50,1)+1,SEARCH(\"/\",'CFR - XML import'!$A50,1)-SEARCH(\">\",'CFR - XML import'!$A50,1)-2))","v":0},{"$f":"IF(ISERROR(FIND(E$3,'CFR - XML import'!$A50)),0,MID('CFR - XML import'!$A50,SEARCH(\">\",'CFR - XML import'!$A50,1)+1,SEARCH(\"/\",'CFR - XML import'!$A50,1)-SEARCH(\">\",'CFR - XML import'!$A50,1)-2))","v":0},{"$f":"IF($B$1=\"SIMS\",IF(ISERROR(FIND(F$3,'CFR - XML import'!$A50)),0,VALUE(MID('CFR - XML import'!$A50,15,10))),IF(ISERROR(FIND(F$3,'CFR - XML import'!$A50)),0,VALUE(MID('CFR - XML import'!$A50,11,10))))","v":"00:00:00"},{"$f":"IF(ISERROR(FIND(G$3,'CFR - XML import'!$A50)),0,VALUE(MID('CFR - XML import'!$A50,SEARCH(\">\",'CFR - XML import'!$A50,1)+1,SEARCH(\"/\",'CFR - XML import'!$A50,1)-SEARCH(\">\",'CFR - XML import'!$A50,1)-2)))","v":0},{"$f":"IF(ISERROR(FIND(H$3,'CFR - XML import'!$A50)),0,VALUE(MID('CFR - XML import'!$A50,SEARCH(\">\",'CFR - XML import'!$A50,1)+1,SEARCH(\"/\",'CFR - XML import'!$A50,1)-SEARCH(\">\",'CFR - XML import'!$A50,1)-2)))","v":0},{"$f":"IF(ISERROR(FIND(I$3,'CFR - XML import'!$A50)),0,VALUE(MID('CFR - XML import'!$A50,SEARCH(\">\",'CFR - XML import'!$A50,1)+1,SEARCH(\"/\",'CFR - XML import'!$A50,1)-SEARCH(\">\",'CFR - XML import'!$A50,1)-2)))","v":0},{"$f":"IF(ISERROR(FIND(J$3,'CFR - XML import'!$A50)),0,VALUE(MID('CFR - XML import'!$A50,SEARCH(\">\",'CFR - XML import'!$A50,1)+1,SEARCH(\"/\",'CFR - XML import'!$A50,1)-SEARCH(\">\",'CFR - XML import'!$A50,1)-2)))","v":0},{"$f":"IF(ISERROR(FIND(K$3,'CFR - XML import'!$A50)),0,VALUE(MID('CFR - XML import'!$A50,SEARCH(\">\",'CFR - XML import'!$A50,1)+1,SEARCH(\"/\",'CFR - XML import'!$A50,1)-SEARCH(\">\",'CFR - XML import'!$A50,1)-2)))","v":0},{"$f":"IF(ISERROR(FIND(L$3,'CFR - XML import'!$A50)),0,VALUE(MID('CFR - XML import'!$A50,SEARCH(\">\",'CFR - XML import'!$A50,1)+1,SEARCH(\"/\",'CFR - XML import'!$A50,1)-SEARCH(\">\",'CFR - XML import'!$A50,1)-2)))","v":0},{"$f":"IF(ISERROR(FIND(M$3,'CFR - XML import'!$A50)),0,VALUE(MID('CFR - XML import'!$A50,SEARCH(\">\",'CFR - XML import'!$A50,1)+1,SEARCH(\"/\",'CFR - XML import'!$A50,1)-SEARCH(\">\",'CFR - XML import'!$A50,1)-2)))","v":0},{"$f":"IF(ISERROR(FIND(N$3,'CFR - XML import'!$A50)),0,VALUE(MID('CFR - XML import'!$A50,SEARCH(\">\",'CFR - XML import'!$A50,1)+1,SEARCH(\"/\",'CFR - XML import'!$A50,1)-SEARCH(\">\",'CFR - XML import'!$A50,1)-2)))","v":0},{"$f":"IF(ISERROR(FIND(O$3,'CFR - XML import'!$A50)),0,VALUE(MID('CFR - XML import'!$A50,SEARCH(\">\",'CFR - XML import'!$A50,1)+1,SEARCH(\"/\",'CFR - XML import'!$A50,1)-SEARCH(\">\",'CFR - XML import'!$A50,1)-2)))","v":0},{"$f":"IF(ISERROR(FIND(P$3,'CFR - XML import'!$A50)),0,VALUE(MID('CFR - XML import'!$A50,SEARCH(\">\",'CFR - XML import'!$A50,1)+1,SEARCH(\"/\",'CFR - XML import'!$A50,1)-SEARCH(\">\",'CFR - XML import'!$A50,1)-2)))","v":0},{"$f":"IF(ISERROR(FIND(Q$3,'CFR - XML import'!$A50)),0,VALUE(MID('CFR - XML import'!$A50,SEARCH(\">\",'CFR - XML import'!$A50,1)+1,SEARCH(\"/\",'CFR - XML import'!$A50,1)-SEARCH(\">\",'CFR - XML import'!$A50,1)-2)))","v":0},{"$f":"IF(ISERROR(FIND(R$3,'CFR - XML import'!$A50)),0,VALUE(MID('CFR - XML import'!$A50,SEARCH(\">\",'CFR - XML import'!$A50,1)+1,SEARCH(\"/\",'CFR - XML import'!$A50,1)-SEARCH(\">\",'CFR - XML import'!$A50,1)-2)))","v":0},{"$f":"IF(ISERROR(FIND(S$3,'CFR - XML import'!$A50)),0,VALUE(MID('CFR - XML import'!$A50,SEARCH(\">\",'CFR - XML import'!$A50,1)+1,SEARCH(\"/\",'CFR - XML import'!$A50,1)-SEARCH(\">\",'CFR - XML import'!$A50,1)-2)))","v":0},{"$f":"IF(ISERROR(FIND(T$3,'CFR - XML import'!$A50)),0,VALUE(MID('CFR - XML import'!$A50,SEARCH(\">\",'CFR - XML import'!$A50,1)+1,SEARCH(\"/\",'CFR - XML import'!$A50,1)-SEARCH(\">\",'CFR - XML import'!$A50,1)-2)))","v":0},{"$f":"IF(ISERROR(FIND(U$3,'CFR - XML import'!$A50)),0,VALUE(MID('CFR - XML import'!$A50,SEARCH(\">\",'CFR - XML import'!$A50,1)+1,SEARCH(\"/\",'CFR - XML import'!$A50,1)-SEARCH(\">\",'CFR - XML import'!$A50,1)-2)))","v":0},{"$f":"IF(ISERROR(FIND(V$3,'CFR - XML import'!$A50)),0,VALUE(MID('CFR - XML import'!$A50,SEARCH(\">\",'CFR - XML import'!$A50,1)+1,SEARCH(\"/\",'CFR - XML import'!$A50,1)-SEARCH(\">\",'CFR - XML import'!$A50,1)-2)))","v":0},{"$f":"IF(ISERROR(FIND(W$3,'CFR - XML import'!$A50)),0,VALUE(MID('CFR - XML import'!$A50,SEARCH(\">\",'CFR - XML import'!$A50,1)+1,SEARCH(\"/\",'CFR - XML import'!$A50,1)-SEARCH(\">\",'CFR - XML import'!$A50,1)-2)))","v":0},null,{"$f":"IF(ISERROR(FIND(Y$3,'CFR - XML import'!$A50)),0,VALUE(MID('CFR - XML import'!$A50,SEARCH(\">\",'CFR - XML import'!$A50,1)+1,SEARCH(\"/\",'CFR - XML import'!$A50,1)-SEARCH(\">\",'CFR - XML import'!$A50,1)-2)))","v":0},{"$f":"IF(ISERROR(FIND(Z$3,'CFR - XML import'!$A50)),0,VALUE(MID('CFR - XML import'!$A50,SEARCH(\">\",'CFR - XML import'!$A50,1)+1,SEARCH(\"/\",'CFR - XML import'!$A50,1)-SEARCH(\">\",'CFR - XML import'!$A50,1)-2)))","v":0},{"$f":"IF(ISERROR(FIND(AA$3,'CFR - XML import'!$A50)),0,VALUE(MID('CFR - XML import'!$A50,SEARCH(\">\",'CFR - XML import'!$A50,1)+1,SEARCH(\"/\",'CFR - XML import'!$A50,1)-SEARCH(\">\",'CFR - XML import'!$A50,1)-2)))","v":0},{"$f":"IF(ISERROR(FIND(AB$3,'CFR - XML import'!$A50)),0,VALUE(MID('CFR - XML import'!$A50,SEARCH(\">\",'CFR - XML import'!$A50,1)+1,SEARCH(\"/\",'CFR - XML import'!$A50,1)-SEARCH(\">\",'CFR - XML import'!$A50,1)-2)))","v":0},{"$f":"IF(ISERROR(FIND(AC$3,'CFR - XML import'!$A50)),0,VALUE(MID('CFR - XML import'!$A50,SEARCH(\">\",'CFR - XML import'!$A50,1)+1,SEARCH(\"/\",'CFR - XML import'!$A50,1)-SEARCH(\">\",'CFR - XML import'!$A50,1)-2)))","v":0},{"$f":"IF(ISERROR(FIND(AD$3,'CFR - XML import'!$A50)),0,VALUE(MID('CFR - XML import'!$A50,SEARCH(\">\",'CFR - XML import'!$A50,1)+1,SEARCH(\"/\",'CFR - XML import'!$A50,1)-SEARCH(\">\",'CFR - XML import'!$A50,1)-2)))","v":0},{"$f":"IF(ISERROR(FIND(AE$3,'CFR - XML import'!$A50)),0,VALUE(MID('CFR - XML import'!$A50,SEARCH(\">\",'CFR - XML import'!$A50,1)+1,SEARCH(\"/\",'CFR - XML import'!$A50,1)-SEARCH(\">\",'CFR - XML import'!$A50,1)-2)))","v":0},{"$f":"IF(ISERROR(FIND(AF$3,'CFR - XML import'!$A50)),0,VALUE(MID('CFR - XML import'!$A50,SEARCH(\">\",'CFR - XML import'!$A50,1)+1,SEARCH(\"/\",'CFR - XML import'!$A50,1)-SEARCH(\">\",'CFR - XML import'!$A50,1)-2)))","v":0},{"$f":"IF(ISERROR(FIND(AG$3,'CFR - XML import'!$A50)),0,VALUE(MID('CFR - XML import'!$A50,SEARCH(\">\",'CFR - XML import'!$A50,1)+1,SEARCH(\"/\",'CFR - XML import'!$A50,1)-SEARCH(\">\",'CFR - XML import'!$A50,1)-2)))","v":0},{"$f":"IF(ISERROR(FIND(AH$3,'CFR - XML import'!$A50)),0,VALUE(MID('CFR - XML import'!$A50,SEARCH(\">\",'CFR - XML import'!$A50,1)+1,SEARCH(\"/\",'CFR - XML import'!$A50,1)-SEARCH(\">\",'CFR - XML import'!$A50,1)-2)))","v":0},{"$f":"IF(ISERROR(FIND(AI$3,'CFR - XML import'!$A50)),0,VALUE(MID('CFR - XML import'!$A50,SEARCH(\">\",'CFR - XML import'!$A50,1)+1,SEARCH(\"/\",'CFR - XML import'!$A50,1)-SEARCH(\">\",'CFR - XML import'!$A50,1)-2)))","v":0},{"$f":"IF(ISERROR(FIND(AJ$3,'CFR - XML import'!$A50)),0,VALUE(MID('CFR - XML import'!$A50,SEARCH(\">\",'CFR - XML import'!$A50,1)+1,SEARCH(\"/\",'CFR - XML import'!$A50,1)-SEARCH(\">\",'CFR - XML import'!$A50,1)-2)))","v":0},{"$f":"IF(ISERROR(FIND(AK$3,'CFR - XML import'!$A50)),0,VALUE(MID('CFR - XML import'!$A50,SEARCH(\">\",'CFR - XML import'!$A50,1)+1,SEARCH(\"/\",'CFR - XML import'!$A50,1)-SEARCH(\">\",'CFR - XML import'!$A50,1)-2)))","v":0},{"$f":"IF(ISERROR(FIND(AL$3,'CFR - XML import'!$A50)),0,VALUE(MID('CFR - XML import'!$A50,SEARCH(\">\",'CFR - XML import'!$A50,1)+1,SEARCH(\"/\",'CFR - XML import'!$A50,1)-SEARCH(\">\",'CFR - XML import'!$A50,1)-2)))","v":0},{"$f":"IF(ISERROR(FIND(AM$3,'CFR - XML import'!$A50)),0,VALUE(MID('CFR - XML import'!$A50,SEARCH(\">\",'CFR - XML import'!$A50,1)+1,SEARCH(\"/\",'CFR - XML import'!$A50,1)-SEARCH(\">\",'CFR - XML import'!$A50,1)-2)))","v":0},{"$f":"IF(ISERROR(FIND(AN$3,'CFR - XML import'!$A50)),0,VALUE(MID('CFR - XML import'!$A50,SEARCH(\">\",'CFR - XML import'!$A50,1)+1,SEARCH(\"/\",'CFR - XML import'!$A50,1)-SEARCH(\">\",'CFR - XML import'!$A50,1)-2)))","v":0},{"$f":"IF(ISERROR(FIND(AO$3,'CFR - XML import'!$A50)),0,VALUE(MID('CFR - XML import'!$A50,SEARCH(\">\",'CFR - XML import'!$A50,1)+1,SEARCH(\"/\",'CFR - XML import'!$A50,1)-SEARCH(\">\",'CFR - XML import'!$A50,1)-2)))","v":0},{"$f":"IF(ISERROR(FIND(AP$3,'CFR - XML import'!$A50)),0,VALUE(MID('CFR - XML import'!$A50,SEARCH(\">\",'CFR - XML import'!$A50,1)+1,SEARCH(\"/\",'CFR - XML import'!$A50,1)-SEARCH(\">\",'CFR - XML import'!$A50,1)-2)))","v":0},{"$f":"IF(ISERROR(FIND(AQ$3,'CFR - XML import'!$A50)),0,VALUE(MID('CFR - XML import'!$A50,SEARCH(\">\",'CFR - XML import'!$A50,1)+1,SEARCH(\"/\",'CFR - XML import'!$A50,1)-SEARCH(\">\",'CFR - XML import'!$A50,1)-2)))","v":0},{"$f":"IF(ISERROR(FIND(AR$3,'CFR - XML import'!$A50)),0,VALUE(MID('CFR - XML import'!$A50,SEARCH(\">\",'CFR - XML import'!$A50,1)+1,SEARCH(\"/\",'CFR - XML import'!$A50,1)-SEARCH(\">\",'CFR - XML import'!$A50,1)-2)))","v":0},{"$f":"IF(ISERROR(FIND(AS$3,'CFR - XML import'!$A50)),0,VALUE(MID('CFR - XML import'!$A50,SEARCH(\">\",'CFR - XML import'!$A50,1)+1,SEARCH(\"/\",'CFR - XML import'!$A50,1)-SEARCH(\">\",'CFR - XML import'!$A50,1)-2)))","v":0},{"$f":"IF(ISERROR(FIND(AT$3,'CFR - XML import'!$A50)),0,VALUE(MID('CFR - XML import'!$A50,SEARCH(\">\",'CFR - XML import'!$A50,1)+1,SEARCH(\"/\",'CFR - XML import'!$A50,1)-SEARCH(\">\",'CFR - XML import'!$A50,1)-2)))","v":0},{"$f":"IF(ISERROR(FIND(AU$3,'CFR - XML import'!$A50)),0,VALUE(MID('CFR - XML import'!$A50,SEARCH(\">\",'CFR - XML import'!$A50,1)+1,SEARCH(\"/\",'CFR - XML import'!$A50,1)-SEARCH(\">\",'CFR - XML import'!$A50,1)-2)))","v":0},{"$f":"IF(ISERROR(FIND(AV$3,'CFR - XML import'!$A50)),0,VALUE(MID('CFR - XML import'!$A50,SEARCH(\">\",'CFR - XML import'!$A50,1)+1,SEARCH(\"/\",'CFR - XML import'!$A50,1)-SEARCH(\">\",'CFR - XML import'!$A50,1)-2)))","v":0},{"$f":"IF(ISERROR(FIND(AW$3,'CFR - XML import'!$A50)),0,VALUE(MID('CFR - XML import'!$A50,SEARCH(\">\",'CFR - XML import'!$A50,1)+1,SEARCH(\"/\",'CFR - XML import'!$A50,1)-SEARCH(\">\",'CFR - XML import'!$A50,1)-2)))","v":0},{"$f":"IF(ISERROR(FIND(AX$3,'CFR - XML import'!$A50)),0,VALUE(MID('CFR - XML import'!$A50,SEARCH(\">\",'CFR - XML import'!$A50,1)+1,SEARCH(\"/\",'CFR - XML import'!$A50,1)-SEARCH(\">\",'CFR - XML import'!$A50,1)-2)))","v":0},{"$f":"IF(ISERROR(FIND(AY$3,'CFR - XML import'!$A50)),0,VALUE(MID('CFR - XML import'!$A50,SEARCH(\">\",'CFR - XML import'!$A50,1)+1,SEARCH(\"/\",'CFR - XML import'!$A50,1)-SEARCH(\">\",'CFR - XML import'!$A50,1)-2)))","v":0},{"$f":"IF(ISERROR(FIND(AZ$3,'CFR - XML import'!$A50)),0,VALUE(MID('CFR - XML import'!$A50,SEARCH(\">\",'CFR - XML import'!$A50,1)+1,SEARCH(\"/\",'CFR - XML import'!$A50,1)-SEARCH(\">\",'CFR - XML import'!$A50,1)-2)))","v":0},{"$f":"IF(ISERROR(FIND(BA$3,'CFR - XML import'!$A50)),0,VALUE(MID('CFR - XML import'!$A50,SEARCH(\">\",'CFR - XML import'!$A50,1)+1,SEARCH(\"/\",'CFR - XML import'!$A50,1)-SEARCH(\">\",'CFR - XML import'!$A50,1)-2)))","v":0},{"$f":"IF(ISERROR(FIND(BB$3,'CFR - XML import'!$A50)),0,VALUE(MID('CFR - XML import'!$A50,SEARCH(\">\",'CFR - XML import'!$A50,1)+1,SEARCH(\"/\",'CFR - XML import'!$A50,1)-SEARCH(\">\",'CFR - XML import'!$A50,1)-2)))","v":0},{"$f":"IF(ISERROR(FIND(BC$3,'CFR - XML import'!$A50)),0,VALUE(MID('CFR - XML import'!$A50,SEARCH(\">\",'CFR - XML import'!$A50,1)+1,SEARCH(\"/\",'CFR - XML import'!$A50,1)-SEARCH(\">\",'CFR - XML import'!$A50,1)-2)))","v":0},{"$f":"IF(ISERROR(FIND(BD$3,'CFR - XML import'!$A50)),0,VALUE(MID('CFR - XML import'!$A50,SEARCH(\">\",'CFR - XML import'!$A50,1)+1,SEARCH(\"/\",'CFR - XML import'!$A50,1)-SEARCH(\">\",'CFR - XML import'!$A50,1)-2)))","v":0},{"$f":"IF(ISERROR(FIND(BE$3,'CFR - XML import'!$A50)),0,VALUE(MID('CFR - XML import'!$A50,SEARCH(\">\",'CFR - XML import'!$A50,1)+1,SEARCH(\"/\",'CFR - XML import'!$A50,1)-SEARCH(\">\",'CFR - XML import'!$A50,1)-2)))","v":0},{"$f":"IF(ISERROR(FIND(BF$3,'CFR - XML import'!$A50)),0,VALUE(MID('CFR - XML import'!$A50,SEARCH(\">\",'CFR - XML import'!$A50,1)+1,SEARCH(\"/\",'CFR - XML import'!$A50,1)-SEARCH(\">\",'CFR - XML import'!$A50,1)-2)))","v":0},{"$f":"IF(ISERROR(FIND(BG$3,'CFR - XML import'!$A50)),0,VALUE(MID('CFR - XML import'!$A50,SEARCH(\">\",'CFR - XML import'!$A50,1)+1,SEARCH(\"/\",'CFR - XML import'!$A50,1)-SEARCH(\">\",'CFR - XML import'!$A50,1)-2)))","v":0},{"$f":"IF(ISERROR(FIND(BH$3,'CFR - XML import'!$A50)),0,VALUE(MID('CFR - XML import'!$A50,SEARCH(\">\",'CFR - XML import'!$A50,1)+1,SEARCH(\"/\",'CFR - XML import'!$A50,1)-SEARCH(\">\",'CFR - XML import'!$A50,1)-2)))","v":0},{"$f":"IF(ISERROR(FIND(BI$3,'CFR - XML import'!$A50)),0,VALUE(MID('CFR - XML import'!$A50,SEARCH(\">\",'CFR - XML import'!$A50,1)+1,SEARCH(\"/\",'CFR - XML import'!$A50,1)-SEARCH(\">\",'CFR - XML import'!$A50,1)-2)))","v":0},{"$f":"IF(ISERROR(FIND(BJ$3,'CFR - XML import'!$A50)),0,VALUE(MID('CFR - XML import'!$A50,SEARCH(\">\",'CFR - XML import'!$A50,1)+1,SEARCH(\"/\",'CFR - XML import'!$A50,1)-SEARCH(\">\",'CFR - XML import'!$A50,1)-2)))","v":0},{"$f":"IF(ISERROR(FIND(BK$3,'CFR - XML import'!$A50)),0,VALUE(MID('CFR - XML import'!$A50,SEARCH(\">\",'CFR - XML import'!$A50,1)+1,SEARCH(\"/\",'CFR - XML import'!$A50,1)-SEARCH(\">\",'CFR - XML import'!$A50,1)-2)))","v":0},{"$f":"IF(ISERROR(FIND(BL$3,'CFR - XML import'!$A50)),0,VALUE(MID('CFR - XML import'!$A50,SEARCH(\">\",'CFR - XML import'!$A50,1)+1,SEARCH(\"/\",'CFR - XML import'!$A50,1)-SEARCH(\">\",'CFR - XML import'!$A50,1)-2)))","v":0},{"$f":"IF(ISERROR(FIND(BM$3,'CFR - XML import'!$A50)),0,VALUE(MID('CFR - XML import'!$A50,SEARCH(\">\",'CFR - XML import'!$A50,1)+1,SEARCH(\"/\",'CFR - XML import'!$A50,1)-SEARCH(\">\",'CFR - XML import'!$A50,1)-2)))","v":0},{"$f":"IF(ISERROR(FIND(BN$3,'CFR - XML import'!$A50)),0,VALUE(MID('CFR - XML import'!$A50,SEARCH(\">\",'CFR - XML import'!$A50,1)+1,SEARCH(\"/\",'CFR - XML import'!$A50,1)-SEARCH(\">\",'CFR - XML import'!$A50,1)-2)))","v":0},{"$f":"IF(ISERROR(FIND(BO$3,'CFR - XML import'!$A50)),0,VALUE(MID('CFR - XML import'!$A50,SEARCH(\">\",'CFR - XML import'!$A50,1)+1,SEARCH(\"/\",'CFR - XML import'!$A50,1)-SEARCH(\">\",'CFR - XML import'!$A50,1)-2)))","v":0},{"$f":"IF(ISERROR(FIND(BP$3,'CFR - XML import'!$A50)),0,VALUE(MID('CFR - XML import'!$A50,SEARCH(\">\",'CFR - XML import'!$A50,1)+1,SEARCH(\"/\",'CFR - XML import'!$A50,1)-SEARCH(\">\",'CFR - XML import'!$A50,1)-2)))","v":0},{"$f":"IF(ISERROR(FIND(BQ$3,'CFR - XML import'!$A50)),0,VALUE(MID('CFR - XML import'!$A50,SEARCH(\">\",'CFR - XML import'!$A50,1)+1,SEARCH(\"/\",'CFR - XML import'!$A50,1)-SEARCH(\">\",'CFR - XML import'!$A50,1)-2)))","v":0},{"$f":"IF(ISERROR(FIND(BR$3,'CFR - XML import'!$A50)),0,VALUE(MID('CFR - XML import'!$A50,SEARCH(\">\",'CFR - XML import'!$A50,1)+1,SEARCH(\"/\",'CFR - XML import'!$A50,1)-SEARCH(\">\",'CFR - XML import'!$A50,1)-2)))","v":0},{"$f":"IF(ISERROR(FIND(BS$3,'CFR - XML import'!$A50)),0,VALUE(MID('CFR - XML import'!$A50,SEARCH(\">\",'CFR - XML import'!$A50,1)+1,SEARCH(\"/\",'CFR - XML import'!$A50,1)-SEARCH(\">\",'CFR - XML import'!$A50,1)-2)))","v":0},{"$f":"IF(ISERROR(FIND(BT$3,'CFR - XML import'!$A50)),0,VALUE(MID('CFR - XML import'!$A50,SEARCH(\">\",'CFR - XML import'!$A50,1)+1,SEARCH(\"/\",'CFR - XML import'!$A50,1)-SEARCH(\">\",'CFR - XML import'!$A50,1)-2)))","v":0},{"$f":"IF(ISERROR(FIND(BU$3,'CFR - XML import'!$A50)),0,VALUE(MID('CFR - XML import'!$A50,SEARCH(\">\",'CFR - XML import'!$A50,1)+1,SEARCH(\"/\",'CFR - XML import'!$A50,1)-SEARCH(\">\",'CFR - XML import'!$A50,1)-2)))","v":0},{"$f":"IF(ISERROR(FIND(BV$3,'CFR - XML import'!$A50)),0,VALUE(MID('CFR - XML import'!$A50,SEARCH(\">\",'CFR - XML import'!$A50,1)+1,SEARCH(\"/\",'CFR - XML import'!$A50,1)-SEARCH(\">\",'CFR - XML import'!$A50,1)-2)))","v":0},{"$f":"IF(ISERROR(FIND(BW$3,'CFR - XML import'!$A50)),0,VALUE(MID('CFR - XML import'!$A50,SEARCH(\">\",'CFR - XML import'!$A50,1)+1,SEARCH(\"/\",'CFR - XML import'!$A50,1)-SEARCH(\">\",'CFR - XML import'!$A50,1)-2)))","v":0},{"$f":"IF(ISERROR(FIND(BX$3,'CFR - XML import'!$A50)),0,VALUE(MID('CFR - XML import'!$A50,SEARCH(\">\",'CFR - XML import'!$A50,1)+1,SEARCH(\"/\",'CFR - XML import'!$A50,1)-SEARCH(\">\",'CFR - XML import'!$A50,1)-2)))","v":0},{"$f":"IF(ISERROR(FIND(BY$3,'CFR - XML import'!$A50)),0,VALUE(MID('CFR - XML import'!$A50,SEARCH(\">\",'CFR - XML import'!$A50,1)+1,SEARCH(\"/\",'CFR - XML import'!$A50,1)-SEARCH(\">\",'CFR - XML import'!$A50,1)-2)))","v":0},{"$f":"IF(ISERROR(FIND(BZ$3,'CFR - XML import'!$A50)),0,VALUE(MID('CFR - XML import'!$A50,SEARCH(\">\",'CFR - XML import'!$A50,1)+1,SEARCH(\"/\",'CFR - XML import'!$A50,1)-SEARCH(\">\",'CFR - XML import'!$A50,1)-2)))","v":0},null,null,null,null,null,null,{"$f":"IF(ISERROR(IF(MID('CFR - XML import'!$A50,LEN($CF$4)+1,LEN('CFR - XML import'!$A50)-(2*LEN($CF$4)+1))=\"RMMS\",1,IF(MID('CFR - XML import'!$A50,LEN(\"    <InputSystem>\")+1,LEN('CFR - XML import'!$A50)-(LEN(\"    <InputSystem>\")+LEN($CF$4)+1))=\"SIMS\",2,0))),0,IF(MID('CFR - XML import'!$A50,LEN($CF$4)+1,LEN('CFR - XML import'!$A50)-(2*LEN($CF$4)+1))=\"RMMS\",1,IF(MID('CFR - XML import'!$A50,LEN(\"    <InputSystem>\")+1,LEN('CFR - XML import'!$A50)-(LEN(\"    <InputSystem>\")+LEN($CF$4)+1))=\"SIMS\",2,0)))","v":0},{"$f":"IF(ISERROR(FIND(CH$3,'CFR - XML import'!$A50)),0,MID('CFR - XML import'!$A50,SEARCH(\">\",'CFR - XML import'!$A50,1)+1,SEARCH(\"/\",'CFR - XML import'!$A50,1)-SEARCH(\">\",'CFR - XML import'!$A50,1)-2))","v":0},{"$f":"IF(ISERROR(FIND(CI$3,'CFR - XML import'!$A50)),0,MID('CFR - XML import'!$A50,SEARCH(\">\",'CFR - XML import'!$A50,1)+1,SEARCH(\"/\",'CFR - XML import'!$A50,1)-SEARCH(\">\",'CFR - XML import'!$A50,1)-2))","v":0},{"$f":"IF(ISERROR(FIND(CJ$3,'CFR - XML import'!$A50)),0,MID('CFR - XML import'!$A50,SEARCH(\">\",'CFR - XML import'!$A50,1)+1,SEARCH(\"/\",'CFR - XML import'!$A50,1)-SEARCH(\">\",'CFR - XML import'!$A50,1)-2))","v":0},{"$f":"IF(ISERROR(FIND(CK$3,'CFR - XML import'!$A50)),0,MID('CFR - XML import'!$A50,SEARCH(\">\",'CFR - XML import'!$A50,1)+1,SEARCH(\"/\",'CFR - XML import'!$A50,1)-SEARCH(\">\",'CFR - XML import'!$A50,1)-2))","v":0},{"$f":"IF(ISERROR(FIND(CL$3,'CFR - XML import'!$A50)),0,MID('CFR - XML import'!$A50,SEARCH(\">\",'CFR - XML import'!$A50,1)+1,SEARCH(\"/\",'CFR - XML import'!$A50,1)-SEARCH(\">\",'CFR - XML import'!$A50,1)-2))","v":0}]
[{"$f":"IF(AND('CFR - XML import'!A51<>\"\",LEFT('CFR - XML import'!A51,1)<>\"<\",LEFT('CFR - XML import'!A51,3)<>\"  <\",LEFT('CFR - XML import'!A51,5)<>\"    <\",LEFT('CFR - XML import'!A51,7)<>\"      <\",LEFT('CFR - XML import'!A51,9)<>\"        <\",$B$1=\"SIMS\"),'CFR - XML import'!A51,IF(AND(LEFT('CFR - XML import'!A51,9)=\"<Details>\",$B$1=\"RM\"),'CFR - XML import'!A51,\"\"))","v":""},{"$f":"IF(ISERROR(FIND(B$3,'CFR - XML import'!$A51)),0,VALUE(MID('CFR - XML import'!$A51,SEARCH(\">\",'CFR - XML import'!$A51,1)+1,SEARCH(\"/\",'CFR - XML import'!$A51,1)-SEARCH(\">\",'CFR - XML import'!$A51,1)-2)))","v":0},null,{"$f":"IF(ISERROR(FIND(D$3,'CFR - XML import'!$A51)),0,MID('CFR - XML import'!$A51,SEARCH(\">\",'CFR - XML import'!$A51,1)+1,SEARCH(\"/\",'CFR - XML import'!$A51,1)-SEARCH(\">\",'CFR - XML import'!$A51,1)-2))","v":0},{"$f":"IF(ISERROR(FIND(E$3,'CFR - XML import'!$A51)),0,MID('CFR - XML import'!$A51,SEARCH(\">\",'CFR - XML import'!$A51,1)+1,SEARCH(\"/\",'CFR - XML import'!$A51,1)-SEARCH(\">\",'CFR - XML import'!$A51,1)-2))","v":0},{"$f":"IF($B$1=\"SIMS\",IF(ISERROR(FIND(F$3,'CFR - XML import'!$A51)),0,VALUE(MID('CFR - XML import'!$A51,15,10))),IF(ISERROR(FIND(F$3,'CFR - XML import'!$A51)),0,VALUE(MID('CFR - XML import'!$A51,11,10))))","v":"00:00:00"},{"$f":"IF(ISERROR(FIND(G$3,'CFR - XML import'!$A51)),0,VALUE(MID('CFR - XML import'!$A51,SEARCH(\">\",'CFR - XML import'!$A51,1)+1,SEARCH(\"/\",'CFR - XML import'!$A51,1)-SEARCH(\">\",'CFR - XML import'!$A51,1)-2)))","v":0},{"$f":"IF(ISERROR(FIND(H$3,'CFR - XML import'!$A51)),0,VALUE(MID('CFR - XML import'!$A51,SEARCH(\">\",'CFR - XML import'!$A51,1)+1,SEARCH(\"/\",'CFR - XML import'!$A51,1)-SEARCH(\">\",'CFR - XML import'!$A51,1)-2)))","v":0},{"$f":"IF(ISERROR(FIND(I$3,'CFR - XML import'!$A51)),0,VALUE(MID('CFR - XML import'!$A51,SEARCH(\">\",'CFR - XML import'!$A51,1)+1,SEARCH(\"/\",'CFR - XML import'!$A51,1)-SEARCH(\">\",'CFR - XML import'!$A51,1)-2)))","v":0},{"$f":"IF(ISERROR(FIND(J$3,'CFR - XML import'!$A51)),0,VALUE(MID('CFR - XML import'!$A51,SEARCH(\">\",'CFR - XML import'!$A51,1)+1,SEARCH(\"/\",'CFR - XML import'!$A51,1)-SEARCH(\">\",'CFR - XML import'!$A51,1)-2)))","v":0},{"$f":"IF(ISERROR(FIND(K$3,'CFR - XML import'!$A51)),0,VALUE(MID('CFR - XML import'!$A51,SEARCH(\">\",'CFR - XML import'!$A51,1)+1,SEARCH(\"/\",'CFR - XML import'!$A51,1)-SEARCH(\">\",'CFR - XML import'!$A51,1)-2)))","v":0},{"$f":"IF(ISERROR(FIND(L$3,'CFR - XML import'!$A51)),0,VALUE(MID('CFR - XML import'!$A51,SEARCH(\">\",'CFR - XML import'!$A51,1)+1,SEARCH(\"/\",'CFR - XML import'!$A51,1)-SEARCH(\">\",'CFR - XML import'!$A51,1)-2)))","v":0},{"$f":"IF(ISERROR(FIND(M$3,'CFR - XML import'!$A51)),0,VALUE(MID('CFR - XML import'!$A51,SEARCH(\">\",'CFR - XML import'!$A51,1)+1,SEARCH(\"/\",'CFR - XML import'!$A51,1)-SEARCH(\">\",'CFR - XML import'!$A51,1)-2)))","v":0},{"$f":"IF(ISERROR(FIND(N$3,'CFR - XML import'!$A51)),0,VALUE(MID('CFR - XML import'!$A51,SEARCH(\">\",'CFR - XML import'!$A51,1)+1,SEARCH(\"/\",'CFR - XML import'!$A51,1)-SEARCH(\">\",'CFR - XML import'!$A51,1)-2)))","v":0},{"$f":"IF(ISERROR(FIND(O$3,'CFR - XML import'!$A51)),0,VALUE(MID('CFR - XML import'!$A51,SEARCH(\">\",'CFR - XML import'!$A51,1)+1,SEARCH(\"/\",'CFR - XML import'!$A51,1)-SEARCH(\">\",'CFR - XML import'!$A51,1)-2)))","v":0},{"$f":"IF(ISERROR(FIND(P$3,'CFR - XML import'!$A51)),0,VALUE(MID('CFR - XML import'!$A51,SEARCH(\">\",'CFR - XML import'!$A51,1)+1,SEARCH(\"/\",'CFR - XML import'!$A51,1)-SEARCH(\">\",'CFR - XML import'!$A51,1)-2)))","v":0},{"$f":"IF(ISERROR(FIND(Q$3,'CFR - XML import'!$A51)),0,VALUE(MID('CFR - XML import'!$A51,SEARCH(\">\",'CFR - XML import'!$A51,1)+1,SEARCH(\"/\",'CFR - XML import'!$A51,1)-SEARCH(\">\",'CFR - XML import'!$A51,1)-2)))","v":0},{"$f":"IF(ISERROR(FIND(R$3,'CFR - XML import'!$A51)),0,VALUE(MID('CFR - XML import'!$A51,SEARCH(\">\",'CFR - XML import'!$A51,1)+1,SEARCH(\"/\",'CFR - XML import'!$A51,1)-SEARCH(\">\",'CFR - XML import'!$A51,1)-2)))","v":0},{"$f":"IF(ISERROR(FIND(S$3,'CFR - XML import'!$A51)),0,VALUE(MID('CFR - XML import'!$A51,SEARCH(\">\",'CFR - XML import'!$A51,1)+1,SEARCH(\"/\",'CFR - XML import'!$A51,1)-SEARCH(\">\",'CFR - XML import'!$A51,1)-2)))","v":0},{"$f":"IF(ISERROR(FIND(T$3,'CFR - XML import'!$A51)),0,VALUE(MID('CFR - XML import'!$A51,SEARCH(\">\",'CFR - XML import'!$A51,1)+1,SEARCH(\"/\",'CFR - XML import'!$A51,1)-SEARCH(\">\",'CFR - XML import'!$A51,1)-2)))","v":0},{"$f":"IF(ISERROR(FIND(U$3,'CFR - XML import'!$A51)),0,VALUE(MID('CFR - XML import'!$A51,SEARCH(\">\",'CFR - XML import'!$A51,1)+1,SEARCH(\"/\",'CFR - XML import'!$A51,1)-SEARCH(\">\",'CFR - XML import'!$A51,1)-2)))","v":0},{"$f":"IF(ISERROR(FIND(V$3,'CFR - XML import'!$A51)),0,VALUE(MID('CFR - XML import'!$A51,SEARCH(\">\",'CFR - XML import'!$A51,1)+1,SEARCH(\"/\",'CFR - XML import'!$A51,1)-SEARCH(\">\",'CFR - XML import'!$A51,1)-2)))","v":0},{"$f":"IF(ISERROR(FIND(W$3,'CFR - XML import'!$A51)),0,VALUE(MID('CFR - XML import'!$A51,SEARCH(\">\",'CFR - XML import'!$A51,1)+1,SEARCH(\"/\",'CFR - XML import'!$A51,1)-SEARCH(\">\",'CFR - XML import'!$A51,1)-2)))","v":0},null,{"$f":"IF(ISERROR(FIND(Y$3,'CFR - XML import'!$A51)),0,VALUE(MID('CFR - XML import'!$A51,SEARCH(\">\",'CFR - XML import'!$A51,1)+1,SEARCH(\"/\",'CFR - XML import'!$A51,1)-SEARCH(\">\",'CFR - XML import'!$A51,1)-2)))","v":0},{"$f":"IF(ISERROR(FIND(Z$3,'CFR - XML import'!$A51)),0,VALUE(MID('CFR - XML import'!$A51,SEARCH(\">\",'CFR - XML import'!$A51,1)+1,SEARCH(\"/\",'CFR - XML import'!$A51,1)-SEARCH(\">\",'CFR - XML import'!$A51,1)-2)))","v":0},{"$f":"IF(ISERROR(FIND(AA$3,'CFR - XML import'!$A51)),0,VALUE(MID('CFR - XML import'!$A51,SEARCH(\">\",'CFR - XML import'!$A51,1)+1,SEARCH(\"/\",'CFR - XML import'!$A51,1)-SEARCH(\">\",'CFR - XML import'!$A51,1)-2)))","v":0},{"$f":"IF(ISERROR(FIND(AB$3,'CFR - XML import'!$A51)),0,VALUE(MID('CFR - XML import'!$A51,SEARCH(\">\",'CFR - XML import'!$A51,1)+1,SEARCH(\"/\",'CFR - XML import'!$A51,1)-SEARCH(\">\",'CFR - XML import'!$A51,1)-2)))","v":0},{"$f":"IF(ISERROR(FIND(AC$3,'CFR - XML import'!$A51)),0,VALUE(MID('CFR - XML import'!$A51,SEARCH(\">\",'CFR - XML import'!$A51,1)+1,SEARCH(\"/\",'CFR - XML import'!$A51,1)-SEARCH(\">\",'CFR - XML import'!$A51,1)-2)))","v":0},{"$f":"IF(ISERROR(FIND(AD$3,'CFR - XML import'!$A51)),0,VALUE(MID('CFR - XML import'!$A51,SEARCH(\">\",'CFR - XML import'!$A51,1)+1,SEARCH(\"/\",'CFR - XML import'!$A51,1)-SEARCH(\">\",'CFR - XML import'!$A51,1)-2)))","v":0},{"$f":"IF(ISERROR(FIND(AE$3,'CFR - XML import'!$A51)),0,VALUE(MID('CFR - XML import'!$A51,SEARCH(\">\",'CFR - XML import'!$A51,1)+1,SEARCH(\"/\",'CFR - XML import'!$A51,1)-SEARCH(\">\",'CFR - XML import'!$A51,1)-2)))","v":0},{"$f":"IF(ISERROR(FIND(AF$3,'CFR - XML import'!$A51)),0,VALUE(MID('CFR - XML import'!$A51,SEARCH(\">\",'CFR - XML import'!$A51,1)+1,SEARCH(\"/\",'CFR - XML import'!$A51,1)-SEARCH(\">\",'CFR - XML import'!$A51,1)-2)))","v":0},{"$f":"IF(ISERROR(FIND(AG$3,'CFR - XML import'!$A51)),0,VALUE(MID('CFR - XML import'!$A51,SEARCH(\">\",'CFR - XML import'!$A51,1)+1,SEARCH(\"/\",'CFR - XML import'!$A51,1)-SEARCH(\">\",'CFR - XML import'!$A51,1)-2)))","v":0},{"$f":"IF(ISERROR(FIND(AH$3,'CFR - XML import'!$A51)),0,VALUE(MID('CFR - XML import'!$A51,SEARCH(\">\",'CFR - XML import'!$A51,1)+1,SEARCH(\"/\",'CFR - XML import'!$A51,1)-SEARCH(\">\",'CFR - XML import'!$A51,1)-2)))","v":0},{"$f":"IF(ISERROR(FIND(AI$3,'CFR - XML import'!$A51)),0,VALUE(MID('CFR - XML import'!$A51,SEARCH(\">\",'CFR - XML import'!$A51,1)+1,SEARCH(\"/\",'CFR - XML import'!$A51,1)-SEARCH(\">\",'CFR - XML import'!$A51,1)-2)))","v":0},{"$f":"IF(ISERROR(FIND(AJ$3,'CFR - XML import'!$A51)),0,VALUE(MID('CFR - XML import'!$A51,SEARCH(\">\",'CFR - XML import'!$A51,1)+1,SEARCH(\"/\",'CFR - XML import'!$A51,1)-SEARCH(\">\",'CFR - XML import'!$A51,1)-2)))","v":0},{"$f":"IF(ISERROR(FIND(AK$3,'CFR - XML import'!$A51)),0,VALUE(MID('CFR - XML import'!$A51,SEARCH(\">\",'CFR - XML import'!$A51,1)+1,SEARCH(\"/\",'CFR - XML import'!$A51,1)-SEARCH(\">\",'CFR - XML import'!$A51,1)-2)))","v":0},{"$f":"IF(ISERROR(FIND(AL$3,'CFR - XML import'!$A51)),0,VALUE(MID('CFR - XML import'!$A51,SEARCH(\">\",'CFR - XML import'!$A51,1)+1,SEARCH(\"/\",'CFR - XML import'!$A51,1)-SEARCH(\">\",'CFR - XML import'!$A51,1)-2)))","v":0},{"$f":"IF(ISERROR(FIND(AM$3,'CFR - XML import'!$A51)),0,VALUE(MID('CFR - XML import'!$A51,SEARCH(\">\",'CFR - XML import'!$A51,1)+1,SEARCH(\"/\",'CFR - XML import'!$A51,1)-SEARCH(\">\",'CFR - XML import'!$A51,1)-2)))","v":0},{"$f":"IF(ISERROR(FIND(AN$3,'CFR - XML import'!$A51)),0,VALUE(MID('CFR - XML import'!$A51,SEARCH(\">\",'CFR - XML import'!$A51,1)+1,SEARCH(\"/\",'CFR - XML import'!$A51,1)-SEARCH(\">\",'CFR - XML import'!$A51,1)-2)))","v":0},{"$f":"IF(ISERROR(FIND(AO$3,'CFR - XML import'!$A51)),0,VALUE(MID('CFR - XML import'!$A51,SEARCH(\">\",'CFR - XML import'!$A51,1)+1,SEARCH(\"/\",'CFR - XML import'!$A51,1)-SEARCH(\">\",'CFR - XML import'!$A51,1)-2)))","v":0},{"$f":"IF(ISERROR(FIND(AP$3,'CFR - XML import'!$A51)),0,VALUE(MID('CFR - XML import'!$A51,SEARCH(\">\",'CFR - XML import'!$A51,1)+1,SEARCH(\"/\",'CFR - XML import'!$A51,1)-SEARCH(\">\",'CFR - XML import'!$A51,1)-2)))","v":0},{"$f":"IF(ISERROR(FIND(AQ$3,'CFR - XML import'!$A51)),0,VALUE(MID('CFR - XML import'!$A51,SEARCH(\">\",'CFR - XML import'!$A51,1)+1,SEARCH(\"/\",'CFR - XML import'!$A51,1)-SEARCH(\">\",'CFR - XML import'!$A51,1)-2)))","v":0},{"$f":"IF(ISERROR(FIND(AR$3,'CFR - XML import'!$A51)),0,VALUE(MID('CFR - XML import'!$A51,SEARCH(\">\",'CFR - XML import'!$A51,1)+1,SEARCH(\"/\",'CFR - XML import'!$A51,1)-SEARCH(\">\",'CFR - XML import'!$A51,1)-2)))","v":0},{"$f":"IF(ISERROR(FIND(AS$3,'CFR - XML import'!$A51)),0,VALUE(MID('CFR - XML import'!$A51,SEARCH(\">\",'CFR - XML import'!$A51,1)+1,SEARCH(\"/\",'CFR - XML import'!$A51,1)-SEARCH(\">\",'CFR - XML import'!$A51,1)-2)))","v":0},{"$f":"IF(ISERROR(FIND(AT$3,'CFR - XML import'!$A51)),0,VALUE(MID('CFR - XML import'!$A51,SEARCH(\">\",'CFR - XML import'!$A51,1)+1,SEARCH(\"/\",'CFR - XML import'!$A51,1)-SEARCH(\">\",'CFR - XML import'!$A51,1)-2)))","v":0},{"$f":"IF(ISERROR(FIND(AU$3,'CFR - XML import'!$A51)),0,VALUE(MID('CFR - XML import'!$A51,SEARCH(\">\",'CFR - XML import'!$A51,1)+1,SEARCH(\"/\",'CFR - XML import'!$A51,1)-SEARCH(\">\",'CFR - XML import'!$A51,1)-2)))","v":0},{"$f":"IF(ISERROR(FIND(AV$3,'CFR - XML import'!$A51)),0,VALUE(MID('CFR - XML import'!$A51,SEARCH(\">\",'CFR - XML import'!$A51,1)+1,SEARCH(\"/\",'CFR - XML import'!$A51,1)-SEARCH(\">\",'CFR - XML import'!$A51,1)-2)))","v":0},{"$f":"IF(ISERROR(FIND(AW$3,'CFR - XML import'!$A51)),0,VALUE(MID('CFR - XML import'!$A51,SEARCH(\">\",'CFR - XML import'!$A51,1)+1,SEARCH(\"/\",'CFR - XML import'!$A51,1)-SEARCH(\">\",'CFR - XML import'!$A51,1)-2)))","v":0},{"$f":"IF(ISERROR(FIND(AX$3,'CFR - XML import'!$A51)),0,VALUE(MID('CFR - XML import'!$A51,SEARCH(\">\",'CFR - XML import'!$A51,1)+1,SEARCH(\"/\",'CFR - XML import'!$A51,1)-SEARCH(\">\",'CFR - XML import'!$A51,1)-2)))","v":0},{"$f":"IF(ISERROR(FIND(AY$3,'CFR - XML import'!$A51)),0,VALUE(MID('CFR - XML import'!$A51,SEARCH(\">\",'CFR - XML import'!$A51,1)+1,SEARCH(\"/\",'CFR - XML import'!$A51,1)-SEARCH(\">\",'CFR - XML import'!$A51,1)-2)))","v":0},{"$f":"IF(ISERROR(FIND(AZ$3,'CFR - XML import'!$A51)),0,VALUE(MID('CFR - XML import'!$A51,SEARCH(\">\",'CFR - XML import'!$A51,1)+1,SEARCH(\"/\",'CFR - XML import'!$A51,1)-SEARCH(\">\",'CFR - XML import'!$A51,1)-2)))","v":0},{"$f":"IF(ISERROR(FIND(BA$3,'CFR - XML import'!$A51)),0,VALUE(MID('CFR - XML import'!$A51,SEARCH(\">\",'CFR - XML import'!$A51,1)+1,SEARCH(\"/\",'CFR - XML import'!$A51,1)-SEARCH(\">\",'CFR - XML import'!$A51,1)-2)))","v":0},{"$f":"IF(ISERROR(FIND(BB$3,'CFR - XML import'!$A51)),0,VALUE(MID('CFR - XML import'!$A51,SEARCH(\">\",'CFR - XML import'!$A51,1)+1,SEARCH(\"/\",'CFR - XML import'!$A51,1)-SEARCH(\">\",'CFR - XML import'!$A51,1)-2)))","v":0},{"$f":"IF(ISERROR(FIND(BC$3,'CFR - XML import'!$A51)),0,VALUE(MID('CFR - XML import'!$A51,SEARCH(\">\",'CFR - XML import'!$A51,1)+1,SEARCH(\"/\",'CFR - XML import'!$A51,1)-SEARCH(\">\",'CFR - XML import'!$A51,1)-2)))","v":0},{"$f":"IF(ISERROR(FIND(BD$3,'CFR - XML import'!$A51)),0,VALUE(MID('CFR - XML import'!$A51,SEARCH(\">\",'CFR - XML import'!$A51,1)+1,SEARCH(\"/\",'CFR - XML import'!$A51,1)-SEARCH(\">\",'CFR - XML import'!$A51,1)-2)))","v":0},{"$f":"IF(ISERROR(FIND(BE$3,'CFR - XML import'!$A51)),0,VALUE(MID('CFR - XML import'!$A51,SEARCH(\">\",'CFR - XML import'!$A51,1)+1,SEARCH(\"/\",'CFR - XML import'!$A51,1)-SEARCH(\">\",'CFR - XML import'!$A51,1)-2)))","v":0},{"$f":"IF(ISERROR(FIND(BF$3,'CFR - XML import'!$A51)),0,VALUE(MID('CFR - XML import'!$A51,SEARCH(\">\",'CFR - XML import'!$A51,1)+1,SEARCH(\"/\",'CFR - XML import'!$A51,1)-SEARCH(\">\",'CFR - XML import'!$A51,1)-2)))","v":0},{"$f":"IF(ISERROR(FIND(BG$3,'CFR - XML import'!$A51)),0,VALUE(MID('CFR - XML import'!$A51,SEARCH(\">\",'CFR - XML import'!$A51,1)+1,SEARCH(\"/\",'CFR - XML import'!$A51,1)-SEARCH(\">\",'CFR - XML import'!$A51,1)-2)))","v":0},{"$f":"IF(ISERROR(FIND(BH$3,'CFR - XML import'!$A51)),0,VALUE(MID('CFR - XML import'!$A51,SEARCH(\">\",'CFR - XML import'!$A51,1)+1,SEARCH(\"/\",'CFR - XML import'!$A51,1)-SEARCH(\">\",'CFR - XML import'!$A51,1)-2)))","v":0},{"$f":"IF(ISERROR(FIND(BI$3,'CFR - XML import'!$A51)),0,VALUE(MID('CFR - XML import'!$A51,SEARCH(\">\",'CFR - XML import'!$A51,1)+1,SEARCH(\"/\",'CFR - XML import'!$A51,1)-SEARCH(\">\",'CFR - XML import'!$A51,1)-2)))","v":0},{"$f":"IF(ISERROR(FIND(BJ$3,'CFR - XML import'!$A51)),0,VALUE(MID('CFR - XML import'!$A51,SEARCH(\">\",'CFR - XML import'!$A51,1)+1,SEARCH(\"/\",'CFR - XML import'!$A51,1)-SEARCH(\">\",'CFR - XML import'!$A51,1)-2)))","v":0},{"$f":"IF(ISERROR(FIND(BK$3,'CFR - XML import'!$A51)),0,VALUE(MID('CFR - XML import'!$A51,SEARCH(\">\",'CFR - XML import'!$A51,1)+1,SEARCH(\"/\",'CFR - XML import'!$A51,1)-SEARCH(\">\",'CFR - XML import'!$A51,1)-2)))","v":0},{"$f":"IF(ISERROR(FIND(BL$3,'CFR - XML import'!$A51)),0,VALUE(MID('CFR - XML import'!$A51,SEARCH(\">\",'CFR - XML import'!$A51,1)+1,SEARCH(\"/\",'CFR - XML import'!$A51,1)-SEARCH(\">\",'CFR - XML import'!$A51,1)-2)))","v":0},{"$f":"IF(ISERROR(FIND(BM$3,'CFR - XML import'!$A51)),0,VALUE(MID('CFR - XML import'!$A51,SEARCH(\">\",'CFR - XML import'!$A51,1)+1,SEARCH(\"/\",'CFR - XML import'!$A51,1)-SEARCH(\">\",'CFR - XML import'!$A51,1)-2)))","v":0},{"$f":"IF(ISERROR(FIND(BN$3,'CFR - XML import'!$A51)),0,VALUE(MID('CFR - XML import'!$A51,SEARCH(\">\",'CFR - XML import'!$A51,1)+1,SEARCH(\"/\",'CFR - XML import'!$A51,1)-SEARCH(\">\",'CFR - XML import'!$A51,1)-2)))","v":0},{"$f":"IF(ISERROR(FIND(BO$3,'CFR - XML import'!$A51)),0,VALUE(MID('CFR - XML import'!$A51,SEARCH(\">\",'CFR - XML import'!$A51,1)+1,SEARCH(\"/\",'CFR - XML import'!$A51,1)-SEARCH(\">\",'CFR - XML import'!$A51,1)-2)))","v":0},{"$f":"IF(ISERROR(FIND(BP$3,'CFR - XML import'!$A51)),0,VALUE(MID('CFR - XML import'!$A51,SEARCH(\">\",'CFR - XML import'!$A51,1)+1,SEARCH(\"/\",'CFR - XML import'!$A51,1)-SEARCH(\">\",'CFR - XML import'!$A51,1)-2)))","v":0},{"$f":"IF(ISERROR(FIND(BQ$3,'CFR - XML import'!$A51)),0,VALUE(MID('CFR - XML import'!$A51,SEARCH(\">\",'CFR - XML import'!$A51,1)+1,SEARCH(\"/\",'CFR - XML import'!$A51,1)-SEARCH(\">\",'CFR - XML import'!$A51,1)-2)))","v":0},{"$f":"IF(ISERROR(FIND(BR$3,'CFR - XML import'!$A51)),0,VALUE(MID('CFR - XML import'!$A51,SEARCH(\">\",'CFR - XML import'!$A51,1)+1,SEARCH(\"/\",'CFR - XML import'!$A51,1)-SEARCH(\">\",'CFR - XML import'!$A51,1)-2)))","v":0},{"$f":"IF(ISERROR(FIND(BS$3,'CFR - XML import'!$A51)),0,VALUE(MID('CFR - XML import'!$A51,SEARCH(\">\",'CFR - XML import'!$A51,1)+1,SEARCH(\"/\",'CFR - XML import'!$A51,1)-SEARCH(\">\",'CFR - XML import'!$A51,1)-2)))","v":0},{"$f":"IF(ISERROR(FIND(BT$3,'CFR - XML import'!$A51)),0,VALUE(MID('CFR - XML import'!$A51,SEARCH(\">\",'CFR - XML import'!$A51,1)+1,SEARCH(\"/\",'CFR - XML import'!$A51,1)-SEARCH(\">\",'CFR - XML import'!$A51,1)-2)))","v":0},{"$f":"IF(ISERROR(FIND(BU$3,'CFR - XML import'!$A51)),0,VALUE(MID('CFR - XML import'!$A51,SEARCH(\">\",'CFR - XML import'!$A51,1)+1,SEARCH(\"/\",'CFR - XML import'!$A51,1)-SEARCH(\">\",'CFR - XML import'!$A51,1)-2)))","v":0},{"$f":"IF(ISERROR(FIND(BV$3,'CFR - XML import'!$A51)),0,VALUE(MID('CFR - XML import'!$A51,SEARCH(\">\",'CFR - XML import'!$A51,1)+1,SEARCH(\"/\",'CFR - XML import'!$A51,1)-SEARCH(\">\",'CFR - XML import'!$A51,1)-2)))","v":0},{"$f":"IF(ISERROR(FIND(BW$3,'CFR - XML import'!$A51)),0,VALUE(MID('CFR - XML import'!$A51,SEARCH(\">\",'CFR - XML import'!$A51,1)+1,SEARCH(\"/\",'CFR - XML import'!$A51,1)-SEARCH(\">\",'CFR - XML import'!$A51,1)-2)))","v":0},{"$f":"IF(ISERROR(FIND(BX$3,'CFR - XML import'!$A51)),0,VALUE(MID('CFR - XML import'!$A51,SEARCH(\">\",'CFR - XML import'!$A51,1)+1,SEARCH(\"/\",'CFR - XML import'!$A51,1)-SEARCH(\">\",'CFR - XML import'!$A51,1)-2)))","v":0},{"$f":"IF(ISERROR(FIND(BY$3,'CFR - XML import'!$A51)),0,VALUE(MID('CFR - XML import'!$A51,SEARCH(\">\",'CFR - XML import'!$A51,1)+1,SEARCH(\"/\",'CFR - XML import'!$A51,1)-SEARCH(\">\",'CFR - XML import'!$A51,1)-2)))","v":0},{"$f":"IF(ISERROR(FIND(BZ$3,'CFR - XML import'!$A51)),0,VALUE(MID('CFR - XML import'!$A51,SEARCH(\">\",'CFR - XML import'!$A51,1)+1,SEARCH(\"/\",'CFR - XML import'!$A51,1)-SEARCH(\">\",'CFR - XML import'!$A51,1)-2)))","v":0},null,null,null,null,null,null,{"$f":"IF(ISERROR(IF(MID('CFR - XML import'!$A51,LEN($CF$4)+1,LEN('CFR - XML import'!$A51)-(2*LEN($CF$4)+1))=\"RMMS\",1,IF(MID('CFR - XML import'!$A51,LEN(\"    <InputSystem>\")+1,LEN('CFR - XML import'!$A51)-(LEN(\"    <InputSystem>\")+LEN($CF$4)+1))=\"SIMS\",2,0))),0,IF(MID('CFR - XML import'!$A51,LEN($CF$4)+1,LEN('CFR - XML import'!$A51)-(2*LEN($CF$4)+1))=\"RMMS\",1,IF(MID('CFR - XML import'!$A51,LEN(\"    <InputSystem>\")+1,LEN('CFR - XML import'!$A51)-(LEN(\"    <InputSystem>\")+LEN($CF$4)+1))=\"SIMS\",2,0)))","v":0},{"$f":"IF(ISERROR(FIND(CH$3,'CFR - XML import'!$A51)),0,MID('CFR - XML import'!$A51,SEARCH(\">\",'CFR - XML import'!$A51,1)+1,SEARCH(\"/\",'CFR - XML import'!$A51,1)-SEARCH(\">\",'CFR - XML import'!$A51,1)-2))","v":0},{"$f":"IF(ISERROR(FIND(CI$3,'CFR - XML import'!$A51)),0,MID('CFR - XML import'!$A51,SEARCH(\">\",'CFR - XML import'!$A51,1)+1,SEARCH(\"/\",'CFR - XML import'!$A51,1)-SEARCH(\">\",'CFR - XML import'!$A51,1)-2))","v":0},{"$f":"IF(ISERROR(FIND(CJ$3,'CFR - XML import'!$A51)),0,MID('CFR - XML import'!$A51,SEARCH(\">\",'CFR - XML import'!$A51,1)+1,SEARCH(\"/\",'CFR - XML import'!$A51,1)-SEARCH(\">\",'CFR - XML import'!$A51,1)-2))","v":0},{"$f":"IF(ISERROR(FIND(CK$3,'CFR - XML import'!$A51)),0,MID('CFR - XML import'!$A51,SEARCH(\">\",'CFR - XML import'!$A51,1)+1,SEARCH(\"/\",'CFR - XML import'!$A51,1)-SEARCH(\">\",'CFR - XML import'!$A51,1)-2))","v":0},{"$f":"IF(ISERROR(FIND(CL$3,'CFR - XML import'!$A51)),0,MID('CFR - XML import'!$A51,SEARCH(\">\",'CFR - XML import'!$A51,1)+1,SEARCH(\"/\",'CFR - XML import'!$A51,1)-SEARCH(\">\",'CFR - XML import'!$A51,1)-2))","v":0}]
[{"$f":"IF(AND('CFR - XML import'!A52<>\"\",LEFT('CFR - XML import'!A52,1)<>\"<\",LEFT('CFR - XML import'!A52,3)<>\"  <\",LEFT('CFR - XML import'!A52,5)<>\"    <\",LEFT('CFR - XML import'!A52,7)<>\"      <\",LEFT('CFR - XML import'!A52,9)<>\"        <\",$B$1=\"SIMS\"),'CFR - XML import'!A52,IF(AND(LEFT('CFR - XML import'!A52,9)=\"<Details>\",$B$1=\"RM\"),'CFR - XML import'!A52,\"\"))","v":""},{"$f":"IF(ISERROR(FIND(B$3,'CFR - XML import'!$A52)),0,VALUE(MID('CFR - XML import'!$A52,SEARCH(\">\",'CFR - XML import'!$A52,1)+1,SEARCH(\"/\",'CFR - XML import'!$A52,1)-SEARCH(\">\",'CFR - XML import'!$A52,1)-2)))","v":0},null,{"$f":"IF(ISERROR(FIND(D$3,'CFR - XML import'!$A52)),0,MID('CFR - XML import'!$A52,SEARCH(\">\",'CFR - XML import'!$A52,1)+1,SEARCH(\"/\",'CFR - XML import'!$A52,1)-SEARCH(\">\",'CFR - XML import'!$A52,1)-2))","v":0},{"$f":"IF(ISERROR(FIND(E$3,'CFR - XML import'!$A52)),0,MID('CFR - XML import'!$A52,SEARCH(\">\",'CFR - XML import'!$A52,1)+1,SEARCH(\"/\",'CFR - XML import'!$A52,1)-SEARCH(\">\",'CFR - XML import'!$A52,1)-2))","v":0},{"$f":"IF($B$1=\"SIMS\",IF(ISERROR(FIND(F$3,'CFR - XML import'!$A52)),0,VALUE(MID('CFR - XML import'!$A52,15,10))),IF(ISERROR(FIND(F$3,'CFR - XML import'!$A52)),0,VALUE(MID('CFR - XML import'!$A52,11,10))))","v":"00:00:00"},{"$f":"IF(ISERROR(FIND(G$3,'CFR - XML import'!$A52)),0,VALUE(MID('CFR - XML import'!$A52,SEARCH(\">\",'CFR - XML import'!$A52,1)+1,SEARCH(\"/\",'CFR - XML import'!$A52,1)-SEARCH(\">\",'CFR - XML import'!$A52,1)-2)))","v":0},{"$f":"IF(ISERROR(FIND(H$3,'CFR - XML import'!$A52)),0,VALUE(MID('CFR - XML import'!$A52,SEARCH(\">\",'CFR - XML import'!$A52,1)+1,SEARCH(\"/\",'CFR - XML import'!$A52,1)-SEARCH(\">\",'CFR - XML import'!$A52,1)-2)))","v":0},{"$f":"IF(ISERROR(FIND(I$3,'CFR - XML import'!$A52)),0,VALUE(MID('CFR - XML import'!$A52,SEARCH(\">\",'CFR - XML import'!$A52,1)+1,SEARCH(\"/\",'CFR - XML import'!$A52,1)-SEARCH(\">\",'CFR - XML import'!$A52,1)-2)))","v":0},{"$f":"IF(ISERROR(FIND(J$3,'CFR - XML import'!$A52)),0,VALUE(MID('CFR - XML import'!$A52,SEARCH(\">\",'CFR - XML import'!$A52,1)+1,SEARCH(\"/\",'CFR - XML import'!$A52,1)-SEARCH(\">\",'CFR - XML import'!$A52,1)-2)))","v":0},{"$f":"IF(ISERROR(FIND(K$3,'CFR - XML import'!$A52)),0,VALUE(MID('CFR - XML import'!$A52,SEARCH(\">\",'CFR - XML import'!$A52,1)+1,SEARCH(\"/\",'CFR - XML import'!$A52,1)-SEARCH(\">\",'CFR - XML import'!$A52,1)-2)))","v":0},{"$f":"IF(ISERROR(FIND(L$3,'CFR - XML import'!$A52)),0,VALUE(MID('CFR - XML import'!$A52,SEARCH(\">\",'CFR - XML import'!$A52,1)+1,SEARCH(\"/\",'CFR - XML import'!$A52,1)-SEARCH(\">\",'CFR - XML import'!$A52,1)-2)))","v":0},{"$f":"IF(ISERROR(FIND(M$3,'CFR - XML import'!$A52)),0,VALUE(MID('CFR - XML import'!$A52,SEARCH(\">\",'CFR - XML import'!$A52,1)+1,SEARCH(\"/\",'CFR - XML import'!$A52,1)-SEARCH(\">\",'CFR - XML import'!$A52,1)-2)))","v":0},{"$f":"IF(ISERROR(FIND(N$3,'CFR - XML import'!$A52)),0,VALUE(MID('CFR - XML import'!$A52,SEARCH(\">\",'CFR - XML import'!$A52,1)+1,SEARCH(\"/\",'CFR - XML import'!$A52,1)-SEARCH(\">\",'CFR - XML import'!$A52,1)-2)))","v":0},{"$f":"IF(ISERROR(FIND(O$3,'CFR - XML import'!$A52)),0,VALUE(MID('CFR - XML import'!$A52,SEARCH(\">\",'CFR - XML import'!$A52,1)+1,SEARCH(\"/\",'CFR - XML import'!$A52,1)-SEARCH(\">\",'CFR - XML import'!$A52,1)-2)))","v":0},{"$f":"IF(ISERROR(FIND(P$3,'CFR - XML import'!$A52)),0,VALUE(MID('CFR - XML import'!$A52,SEARCH(\">\",'CFR - XML import'!$A52,1)+1,SEARCH(\"/\",'CFR - XML import'!$A52,1)-SEARCH(\">\",'CFR - XML import'!$A52,1)-2)))","v":0},{"$f":"IF(ISERROR(FIND(Q$3,'CFR - XML import'!$A52)),0,VALUE(MID('CFR - XML import'!$A52,SEARCH(\">\",'CFR - XML import'!$A52,1)+1,SEARCH(\"/\",'CFR - XML import'!$A52,1)-SEARCH(\">\",'CFR - XML import'!$A52,1)-2)))","v":0},{"$f":"IF(ISERROR(FIND(R$3,'CFR - XML import'!$A52)),0,VALUE(MID('CFR - XML import'!$A52,SEARCH(\">\",'CFR - XML import'!$A52,1)+1,SEARCH(\"/\",'CFR - XML import'!$A52,1)-SEARCH(\">\",'CFR - XML import'!$A52,1)-2)))","v":0},{"$f":"IF(ISERROR(FIND(S$3,'CFR - XML import'!$A52)),0,VALUE(MID('CFR - XML import'!$A52,SEARCH(\">\",'CFR - XML import'!$A52,1)+1,SEARCH(\"/\",'CFR - XML import'!$A52,1)-SEARCH(\">\",'CFR - XML import'!$A52,1)-2)))","v":0},{"$f":"IF(ISERROR(FIND(T$3,'CFR - XML import'!$A52)),0,VALUE(MID('CFR - XML import'!$A52,SEARCH(\">\",'CFR - XML import'!$A52,1)+1,SEARCH(\"/\",'CFR - XML import'!$A52,1)-SEARCH(\">\",'CFR - XML import'!$A52,1)-2)))","v":0},{"$f":"IF(ISERROR(FIND(U$3,'CFR - XML import'!$A52)),0,VALUE(MID('CFR - XML import'!$A52,SEARCH(\">\",'CFR - XML import'!$A52,1)+1,SEARCH(\"/\",'CFR - XML import'!$A52,1)-SEARCH(\">\",'CFR - XML import'!$A52,1)-2)))","v":0},{"$f":"IF(ISERROR(FIND(V$3,'CFR - XML import'!$A52)),0,VALUE(MID('CFR - XML import'!$A52,SEARCH(\">\",'CFR - XML import'!$A52,1)+1,SEARCH(\"/\",'CFR - XML import'!$A52,1)-SEARCH(\">\",'CFR - XML import'!$A52,1)-2)))","v":0},{"$f":"IF(ISERROR(FIND(W$3,'CFR - XML import'!$A52)),0,VALUE(MID('CFR - XML import'!$A52,SEARCH(\">\",'CFR - XML import'!$A52,1)+1,SEARCH(\"/\",'CFR - XML import'!$A52,1)-SEARCH(\">\",'CFR - XML import'!$A52,1)-2)))","v":0},null,{"$f":"IF(ISERROR(FIND(Y$3,'CFR - XML import'!$A52)),0,VALUE(MID('CFR - XML import'!$A52,SEARCH(\">\",'CFR - XML import'!$A52,1)+1,SEARCH(\"/\",'CFR - XML import'!$A52,1)-SEARCH(\">\",'CFR - XML import'!$A52,1)-2)))","v":0},{"$f":"IF(ISERROR(FIND(Z$3,'CFR - XML import'!$A52)),0,VALUE(MID('CFR - XML import'!$A52,SEARCH(\">\",'CFR - XML import'!$A52,1)+1,SEARCH(\"/\",'CFR - XML import'!$A52,1)-SEARCH(\">\",'CFR - XML import'!$A52,1)-2)))","v":0},{"$f":"IF(ISERROR(FIND(AA$3,'CFR - XML import'!$A52)),0,VALUE(MID('CFR - XML import'!$A52,SEARCH(\">\",'CFR - XML import'!$A52,1)+1,SEARCH(\"/\",'CFR - XML import'!$A52,1)-SEARCH(\">\",'CFR - XML import'!$A52,1)-2)))","v":0},{"$f":"IF(ISERROR(FIND(AB$3,'CFR - XML import'!$A52)),0,VALUE(MID('CFR - XML import'!$A52,SEARCH(\">\",'CFR - XML import'!$A52,1)+1,SEARCH(\"/\",'CFR - XML import'!$A52,1)-SEARCH(\">\",'CFR - XML import'!$A52,1)-2)))","v":0},{"$f":"IF(ISERROR(FIND(AC$3,'CFR - XML import'!$A52)),0,VALUE(MID('CFR - XML import'!$A52,SEARCH(\">\",'CFR - XML import'!$A52,1)+1,SEARCH(\"/\",'CFR - XML import'!$A52,1)-SEARCH(\">\",'CFR - XML import'!$A52,1)-2)))","v":0},{"$f":"IF(ISERROR(FIND(AD$3,'CFR - XML import'!$A52)),0,VALUE(MID('CFR - XML import'!$A52,SEARCH(\">\",'CFR - XML import'!$A52,1)+1,SEARCH(\"/\",'CFR - XML import'!$A52,1)-SEARCH(\">\",'CFR - XML import'!$A52,1)-2)))","v":0},{"$f":"IF(ISERROR(FIND(AE$3,'CFR - XML import'!$A52)),0,VALUE(MID('CFR - XML import'!$A52,SEARCH(\">\",'CFR - XML import'!$A52,1)+1,SEARCH(\"/\",'CFR - XML import'!$A52,1)-SEARCH(\">\",'CFR - XML import'!$A52,1)-2)))","v":0},{"$f":"IF(ISERROR(FIND(AF$3,'CFR - XML import'!$A52)),0,VALUE(MID('CFR - XML import'!$A52,SEARCH(\">\",'CFR - XML import'!$A52,1)+1,SEARCH(\"/\",'CFR - XML import'!$A52,1)-SEARCH(\">\",'CFR - XML import'!$A52,1)-2)))","v":0},{"$f":"IF(ISERROR(FIND(AG$3,'CFR - XML import'!$A52)),0,VALUE(MID('CFR - XML import'!$A52,SEARCH(\">\",'CFR - XML import'!$A52,1)+1,SEARCH(\"/\",'CFR - XML import'!$A52,1)-SEARCH(\">\",'CFR - XML import'!$A52,1)-2)))","v":0},{"$f":"IF(ISERROR(FIND(AH$3,'CFR - XML import'!$A52)),0,VALUE(MID('CFR - XML import'!$A52,SEARCH(\">\",'CFR - XML import'!$A52,1)+1,SEARCH(\"/\",'CFR - XML import'!$A52,1)-SEARCH(\">\",'CFR - XML import'!$A52,1)-2)))","v":0},{"$f":"IF(ISERROR(FIND(AI$3,'CFR - XML import'!$A52)),0,VALUE(MID('CFR - XML import'!$A52,SEARCH(\">\",'CFR - XML import'!$A52,1)+1,SEARCH(\"/\",'CFR - XML import'!$A52,1)-SEARCH(\">\",'CFR - XML import'!$A52,1)-2)))","v":0},{"$f":"IF(ISERROR(FIND(AJ$3,'CFR - XML import'!$A52)),0,VALUE(MID('CFR - XML import'!$A52,SEARCH(\">\",'CFR - XML import'!$A52,1)+1,SEARCH(\"/\",'CFR - XML import'!$A52,1)-SEARCH(\">\",'CFR - XML import'!$A52,1)-2)))","v":0},{"$f":"IF(ISERROR(FIND(AK$3,'CFR - XML import'!$A52)),0,VALUE(MID('CFR - XML import'!$A52,SEARCH(\">\",'CFR - XML import'!$A52,1)+1,SEARCH(\"/\",'CFR - XML import'!$A52,1)-SEARCH(\">\",'CFR - XML import'!$A52,1)-2)))","v":0},{"$f":"IF(ISERROR(FIND(AL$3,'CFR - XML import'!$A52)),0,VALUE(MID('CFR - XML import'!$A52,SEARCH(\">\",'CFR - XML import'!$A52,1)+1,SEARCH(\"/\",'CFR - XML import'!$A52,1)-SEARCH(\">\",'CFR - XML import'!$A52,1)-2)))","v":0},{"$f":"IF(ISERROR(FIND(AM$3,'CFR - XML import'!$A52)),0,VALUE(MID('CFR - XML import'!$A52,SEARCH(\">\",'CFR - XML import'!$A52,1)+1,SEARCH(\"/\",'CFR - XML import'!$A52,1)-SEARCH(\">\",'CFR - XML import'!$A52,1)-2)))","v":0},{"$f":"IF(ISERROR(FIND(AN$3,'CFR - XML import'!$A52)),0,VALUE(MID('CFR - XML import'!$A52,SEARCH(\">\",'CFR - XML import'!$A52,1)+1,SEARCH(\"/\",'CFR - XML import'!$A52,1)-SEARCH(\">\",'CFR - XML import'!$A52,1)-2)))","v":0},{"$f":"IF(ISERROR(FIND(AO$3,'CFR - XML import'!$A52)),0,VALUE(MID('CFR - XML import'!$A52,SEARCH(\">\",'CFR - XML import'!$A52,1)+1,SEARCH(\"/\",'CFR - XML import'!$A52,1)-SEARCH(\">\",'CFR - XML import'!$A52,1)-2)))","v":0},{"$f":"IF(ISERROR(FIND(AP$3,'CFR - XML import'!$A52)),0,VALUE(MID('CFR - XML import'!$A52,SEARCH(\">\",'CFR - XML import'!$A52,1)+1,SEARCH(\"/\",'CFR - XML import'!$A52,1)-SEARCH(\">\",'CFR - XML import'!$A52,1)-2)))","v":0},{"$f":"IF(ISERROR(FIND(AQ$3,'CFR - XML import'!$A52)),0,VALUE(MID('CFR - XML import'!$A52,SEARCH(\">\",'CFR - XML import'!$A52,1)+1,SEARCH(\"/\",'CFR - XML import'!$A52,1)-SEARCH(\">\",'CFR - XML import'!$A52,1)-2)))","v":0},{"$f":"IF(ISERROR(FIND(AR$3,'CFR - XML import'!$A52)),0,VALUE(MID('CFR - XML import'!$A52,SEARCH(\">\",'CFR - XML import'!$A52,1)+1,SEARCH(\"/\",'CFR - XML import'!$A52,1)-SEARCH(\">\",'CFR - XML import'!$A52,1)-2)))","v":0},{"$f":"IF(ISERROR(FIND(AS$3,'CFR - XML import'!$A52)),0,VALUE(MID('CFR - XML import'!$A52,SEARCH(\">\",'CFR - XML import'!$A52,1)+1,SEARCH(\"/\",'CFR - XML import'!$A52,1)-SEARCH(\">\",'CFR - XML import'!$A52,1)-2)))","v":0},{"$f":"IF(ISERROR(FIND(AT$3,'CFR - XML import'!$A52)),0,VALUE(MID('CFR - XML import'!$A52,SEARCH(\">\",'CFR - XML import'!$A52,1)+1,SEARCH(\"/\",'CFR - XML import'!$A52,1)-SEARCH(\">\",'CFR - XML import'!$A52,1)-2)))","v":0},{"$f":"IF(ISERROR(FIND(AU$3,'CFR - XML import'!$A52)),0,VALUE(MID('CFR - XML import'!$A52,SEARCH(\">\",'CFR - XML import'!$A52,1)+1,SEARCH(\"/\",'CFR - XML import'!$A52,1)-SEARCH(\">\",'CFR - XML import'!$A52,1)-2)))","v":0},{"$f":"IF(ISERROR(FIND(AV$3,'CFR - XML import'!$A52)),0,VALUE(MID('CFR - XML import'!$A52,SEARCH(\">\",'CFR - XML import'!$A52,1)+1,SEARCH(\"/\",'CFR - XML import'!$A52,1)-SEARCH(\">\",'CFR - XML import'!$A52,1)-2)))","v":0},{"$f":"IF(ISERROR(FIND(AW$3,'CFR - XML import'!$A52)),0,VALUE(MID('CFR - XML import'!$A52,SEARCH(\">\",'CFR - XML import'!$A52,1)+1,SEARCH(\"/\",'CFR - XML import'!$A52,1)-SEARCH(\">\",'CFR - XML import'!$A52,1)-2)))","v":0},{"$f":"IF(ISERROR(FIND(AX$3,'CFR - XML import'!$A52)),0,VALUE(MID('CFR - XML import'!$A52,SEARCH(\">\",'CFR - XML import'!$A52,1)+1,SEARCH(\"/\",'CFR - XML import'!$A52,1)-SEARCH(\">\",'CFR - XML import'!$A52,1)-2)))","v":0},{"$f":"IF(ISERROR(FIND(AY$3,'CFR - XML import'!$A52)),0,VALUE(MID('CFR - XML import'!$A52,SEARCH(\">\",'CFR - XML import'!$A52,1)+1,SEARCH(\"/\",'CFR - XML import'!$A52,1)-SEARCH(\">\",'CFR - XML import'!$A52,1)-2)))","v":0},{"$f":"IF(ISERROR(FIND(AZ$3,'CFR - XML import'!$A52)),0,VALUE(MID('CFR - XML import'!$A52,SEARCH(\">\",'CFR - XML import'!$A52,1)+1,SEARCH(\"/\",'CFR - XML import'!$A52,1)-SEARCH(\">\",'CFR - XML import'!$A52,1)-2)))","v":0},{"$f":"IF(ISERROR(FIND(BA$3,'CFR - XML import'!$A52)),0,VALUE(MID('CFR - XML import'!$A52,SEARCH(\">\",'CFR - XML import'!$A52,1)+1,SEARCH(\"/\",'CFR - XML import'!$A52,1)-SEARCH(\">\",'CFR - XML import'!$A52,1)-2)))","v":0},{"$f":"IF(ISERROR(FIND(BB$3,'CFR - XML import'!$A52)),0,VALUE(MID('CFR - XML import'!$A52,SEARCH(\">\",'CFR - XML import'!$A52,1)+1,SEARCH(\"/\",'CFR - XML import'!$A52,1)-SEARCH(\">\",'CFR - XML import'!$A52,1)-2)))","v":0},{"$f":"IF(ISERROR(FIND(BC$3,'CFR - XML import'!$A52)),0,VALUE(MID('CFR - XML import'!$A52,SEARCH(\">\",'CFR - XML import'!$A52,1)+1,SEARCH(\"/\",'CFR - XML import'!$A52,1)-SEARCH(\">\",'CFR - XML import'!$A52,1)-2)))","v":0},{"$f":"IF(ISERROR(FIND(BD$3,'CFR - XML import'!$A52)),0,VALUE(MID('CFR - XML import'!$A52,SEARCH(\">\",'CFR - XML import'!$A52,1)+1,SEARCH(\"/\",'CFR - XML import'!$A52,1)-SEARCH(\">\",'CFR - XML import'!$A52,1)-2)))","v":0},{"$f":"IF(ISERROR(FIND(BE$3,'CFR - XML import'!$A52)),0,VALUE(MID('CFR - XML import'!$A52,SEARCH(\">\",'CFR - XML import'!$A52,1)+1,SEARCH(\"/\",'CFR - XML import'!$A52,1)-SEARCH(\">\",'CFR - XML import'!$A52,1)-2)))","v":0},{"$f":"IF(ISERROR(FIND(BF$3,'CFR - XML import'!$A52)),0,VALUE(MID('CFR - XML import'!$A52,SEARCH(\">\",'CFR - XML import'!$A52,1)+1,SEARCH(\"/\",'CFR - XML import'!$A52,1)-SEARCH(\">\",'CFR - XML import'!$A52,1)-2)))","v":0},{"$f":"IF(ISERROR(FIND(BG$3,'CFR - XML import'!$A52)),0,VALUE(MID('CFR - XML import'!$A52,SEARCH(\">\",'CFR - XML import'!$A52,1)+1,SEARCH(\"/\",'CFR - XML import'!$A52,1)-SEARCH(\">\",'CFR - XML import'!$A52,1)-2)))","v":0},{"$f":"IF(ISERROR(FIND(BH$3,'CFR - XML import'!$A52)),0,VALUE(MID('CFR - XML import'!$A52,SEARCH(\">\",'CFR - XML import'!$A52,1)+1,SEARCH(\"/\",'CFR - XML import'!$A52,1)-SEARCH(\">\",'CFR - XML import'!$A52,1)-2)))","v":0},{"$f":"IF(ISERROR(FIND(BI$3,'CFR - XML import'!$A52)),0,VALUE(MID('CFR - XML import'!$A52,SEARCH(\">\",'CFR - XML import'!$A52,1)+1,SEARCH(\"/\",'CFR - XML import'!$A52,1)-SEARCH(\">\",'CFR - XML import'!$A52,1)-2)))","v":0},{"$f":"IF(ISERROR(FIND(BJ$3,'CFR - XML import'!$A52)),0,VALUE(MID('CFR - XML import'!$A52,SEARCH(\">\",'CFR - XML import'!$A52,1)+1,SEARCH(\"/\",'CFR - XML import'!$A52,1)-SEARCH(\">\",'CFR - XML import'!$A52,1)-2)))","v":0},{"$f":"IF(ISERROR(FIND(BK$3,'CFR - XML import'!$A52)),0,VALUE(MID('CFR - XML import'!$A52,SEARCH(\">\",'CFR - XML import'!$A52,1)+1,SEARCH(\"/\",'CFR - XML import'!$A52,1)-SEARCH(\">\",'CFR - XML import'!$A52,1)-2)))","v":0},{"$f":"IF(ISERROR(FIND(BL$3,'CFR - XML import'!$A52)),0,VALUE(MID('CFR - XML import'!$A52,SEARCH(\">\",'CFR - XML import'!$A52,1)+1,SEARCH(\"/\",'CFR - XML import'!$A52,1)-SEARCH(\">\",'CFR - XML import'!$A52,1)-2)))","v":0},{"$f":"IF(ISERROR(FIND(BM$3,'CFR - XML import'!$A52)),0,VALUE(MID('CFR - XML import'!$A52,SEARCH(\">\",'CFR - XML import'!$A52,1)+1,SEARCH(\"/\",'CFR - XML import'!$A52,1)-SEARCH(\">\",'CFR - XML import'!$A52,1)-2)))","v":0},{"$f":"IF(ISERROR(FIND(BN$3,'CFR - XML import'!$A52)),0,VALUE(MID('CFR - XML import'!$A52,SEARCH(\">\",'CFR - XML import'!$A52,1)+1,SEARCH(\"/\",'CFR - XML import'!$A52,1)-SEARCH(\">\",'CFR - XML import'!$A52,1)-2)))","v":0},{"$f":"IF(ISERROR(FIND(BO$3,'CFR - XML import'!$A52)),0,VALUE(MID('CFR - XML import'!$A52,SEARCH(\">\",'CFR - XML import'!$A52,1)+1,SEARCH(\"/\",'CFR - XML import'!$A52,1)-SEARCH(\">\",'CFR - XML import'!$A52,1)-2)))","v":0},{"$f":"IF(ISERROR(FIND(BP$3,'CFR - XML import'!$A52)),0,VALUE(MID('CFR - XML import'!$A52,SEARCH(\">\",'CFR - XML import'!$A52,1)+1,SEARCH(\"/\",'CFR - XML import'!$A52,1)-SEARCH(\">\",'CFR - XML import'!$A52,1)-2)))","v":0},{"$f":"IF(ISERROR(FIND(BQ$3,'CFR - XML import'!$A52)),0,VALUE(MID('CFR - XML import'!$A52,SEARCH(\">\",'CFR - XML import'!$A52,1)+1,SEARCH(\"/\",'CFR - XML import'!$A52,1)-SEARCH(\">\",'CFR - XML import'!$A52,1)-2)))","v":0},{"$f":"IF(ISERROR(FIND(BR$3,'CFR - XML import'!$A52)),0,VALUE(MID('CFR - XML import'!$A52,SEARCH(\">\",'CFR - XML import'!$A52,1)+1,SEARCH(\"/\",'CFR - XML import'!$A52,1)-SEARCH(\">\",'CFR - XML import'!$A52,1)-2)))","v":0},{"$f":"IF(ISERROR(FIND(BS$3,'CFR - XML import'!$A52)),0,VALUE(MID('CFR - XML import'!$A52,SEARCH(\">\",'CFR - XML import'!$A52,1)+1,SEARCH(\"/\",'CFR - XML import'!$A52,1)-SEARCH(\">\",'CFR - XML import'!$A52,1)-2)))","v":0},{"$f":"IF(ISERROR(FIND(BT$3,'CFR - XML import'!$A52)),0,VALUE(MID('CFR - XML import'!$A52,SEARCH(\">\",'CFR - XML import'!$A52,1)+1,SEARCH(\"/\",'CFR - XML import'!$A52,1)-SEARCH(\">\",'CFR - XML import'!$A52,1)-2)))","v":0},{"$f":"IF(ISERROR(FIND(BU$3,'CFR - XML import'!$A52)),0,VALUE(MID('CFR - XML import'!$A52,SEARCH(\">\",'CFR - XML import'!$A52,1)+1,SEARCH(\"/\",'CFR - XML import'!$A52,1)-SEARCH(\">\",'CFR - XML import'!$A52,1)-2)))","v":0},{"$f":"IF(ISERROR(FIND(BV$3,'CFR - XML import'!$A52)),0,VALUE(MID('CFR - XML import'!$A52,SEARCH(\">\",'CFR - XML import'!$A52,1)+1,SEARCH(\"/\",'CFR - XML import'!$A52,1)-SEARCH(\">\",'CFR - XML import'!$A52,1)-2)))","v":0},{"$f":"IF(ISERROR(FIND(BW$3,'CFR - XML import'!$A52)),0,VALUE(MID('CFR - XML import'!$A52,SEARCH(\">\",'CFR - XML import'!$A52,1)+1,SEARCH(\"/\",'CFR - XML import'!$A52,1)-SEARCH(\">\",'CFR - XML import'!$A52,1)-2)))","v":0},{"$f":"IF(ISERROR(FIND(BX$3,'CFR - XML import'!$A52)),0,VALUE(MID('CFR - XML import'!$A52,SEARCH(\">\",'CFR - XML import'!$A52,1)+1,SEARCH(\"/\",'CFR - XML import'!$A52,1)-SEARCH(\">\",'CFR - XML import'!$A52,1)-2)))","v":0},{"$f":"IF(ISERROR(FIND(BY$3,'CFR - XML import'!$A52)),0,VALUE(MID('CFR - XML import'!$A52,SEARCH(\">\",'CFR - XML import'!$A52,1)+1,SEARCH(\"/\",'CFR - XML import'!$A52,1)-SEARCH(\">\",'CFR - XML import'!$A52,1)-2)))","v":0},{"$f":"IF(ISERROR(FIND(BZ$3,'CFR - XML import'!$A52)),0,VALUE(MID('CFR - XML import'!$A52,SEARCH(\">\",'CFR - XML import'!$A52,1)+1,SEARCH(\"/\",'CFR - XML import'!$A52,1)-SEARCH(\">\",'CFR - XML import'!$A52,1)-2)))","v":0},null,null,null,null,null,null,{"$f":"IF(ISERROR(IF(MID('CFR - XML import'!$A52,LEN($CF$4)+1,LEN('CFR - XML import'!$A52)-(2*LEN($CF$4)+1))=\"RMMS\",1,IF(MID('CFR - XML import'!$A52,LEN(\"    <InputSystem>\")+1,LEN('CFR - XML import'!$A52)-(LEN(\"    <InputSystem>\")+LEN($CF$4)+1))=\"SIMS\",2,0))),0,IF(MID('CFR - XML import'!$A52,LEN($CF$4)+1,LEN('CFR - XML import'!$A52)-(2*LEN($CF$4)+1))=\"RMMS\",1,IF(MID('CFR - XML import'!$A52,LEN(\"    <InputSystem>\")+1,LEN('CFR - XML import'!$A52)-(LEN(\"    <InputSystem>\")+LEN($CF$4)+1))=\"SIMS\",2,0)))","v":0},{"$f":"IF(ISERROR(FIND(CH$3,'CFR - XML import'!$A52)),0,MID('CFR - XML import'!$A52,SEARCH(\">\",'CFR - XML import'!$A52,1)+1,SEARCH(\"/\",'CFR - XML import'!$A52,1)-SEARCH(\">\",'CFR - XML import'!$A52,1)-2))","v":0},{"$f":"IF(ISERROR(FIND(CI$3,'CFR - XML import'!$A52)),0,MID('CFR - XML import'!$A52,SEARCH(\">\",'CFR - XML import'!$A52,1)+1,SEARCH(\"/\",'CFR - XML import'!$A52,1)-SEARCH(\">\",'CFR - XML import'!$A52,1)-2))","v":0},{"$f":"IF(ISERROR(FIND(CJ$3,'CFR - XML import'!$A52)),0,MID('CFR - XML import'!$A52,SEARCH(\">\",'CFR - XML import'!$A52,1)+1,SEARCH(\"/\",'CFR - XML import'!$A52,1)-SEARCH(\">\",'CFR - XML import'!$A52,1)-2))","v":0},{"$f":"IF(ISERROR(FIND(CK$3,'CFR - XML import'!$A52)),0,MID('CFR - XML import'!$A52,SEARCH(\">\",'CFR - XML import'!$A52,1)+1,SEARCH(\"/\",'CFR - XML import'!$A52,1)-SEARCH(\">\",'CFR - XML import'!$A52,1)-2))","v":0},{"$f":"IF(ISERROR(FIND(CL$3,'CFR - XML import'!$A52)),0,MID('CFR - XML import'!$A52,SEARCH(\">\",'CFR - XML import'!$A52,1)+1,SEARCH(\"/\",'CFR - XML import'!$A52,1)-SEARCH(\">\",'CFR - XML import'!$A52,1)-2))","v":0}]
[{"$f":"IF(AND('CFR - XML import'!A53<>\"\",LEFT('CFR - XML import'!A53,1)<>\"<\",LEFT('CFR - XML import'!A53,3)<>\"  <\",LEFT('CFR - XML import'!A53,5)<>\"    <\",LEFT('CFR - XML import'!A53,7)<>\"      <\",LEFT('CFR - XML import'!A53,9)<>\"        <\",$B$1=\"SIMS\"),'CFR - XML import'!A53,IF(AND(LEFT('CFR - XML import'!A53,9)=\"<Details>\",$B$1=\"RM\"),'CFR - XML import'!A53,\"\"))","v":""},{"$f":"IF(ISERROR(FIND(B$3,'CFR - XML import'!$A53)),0,VALUE(MID('CFR - XML import'!$A53,SEARCH(\">\",'CFR - XML import'!$A53,1)+1,SEARCH(\"/\",'CFR - XML import'!$A53,1)-SEARCH(\">\",'CFR - XML import'!$A53,1)-2)))","v":0},null,{"$f":"IF(ISERROR(FIND(D$3,'CFR - XML import'!$A53)),0,MID('CFR - XML import'!$A53,SEARCH(\">\",'CFR - XML import'!$A53,1)+1,SEARCH(\"/\",'CFR - XML import'!$A53,1)-SEARCH(\">\",'CFR - XML import'!$A53,1)-2))","v":0},{"$f":"IF(ISERROR(FIND(E$3,'CFR - XML import'!$A53)),0,MID('CFR - XML import'!$A53,SEARCH(\">\",'CFR - XML import'!$A53,1)+1,SEARCH(\"/\",'CFR - XML import'!$A53,1)-SEARCH(\">\",'CFR - XML import'!$A53,1)-2))","v":0},{"$f":"IF($B$1=\"SIMS\",IF(ISERROR(FIND(F$3,'CFR - XML import'!$A53)),0,VALUE(MID('CFR - XML import'!$A53,15,10))),IF(ISERROR(FIND(F$3,'CFR - XML import'!$A53)),0,VALUE(MID('CFR - XML import'!$A53,11,10))))","v":"00:00:00"},{"$f":"IF(ISERROR(FIND(G$3,'CFR - XML import'!$A53)),0,VALUE(MID('CFR - XML import'!$A53,SEARCH(\">\",'CFR - XML import'!$A53,1)+1,SEARCH(\"/\",'CFR - XML import'!$A53,1)-SEARCH(\">\",'CFR - XML import'!$A53,1)-2)))","v":0},{"$f":"IF(ISERROR(FIND(H$3,'CFR - XML import'!$A53)),0,VALUE(MID('CFR - XML import'!$A53,SEARCH(\">\",'CFR - XML import'!$A53,1)+1,SEARCH(\"/\",'CFR - XML import'!$A53,1)-SEARCH(\">\",'CFR - XML import'!$A53,1)-2)))","v":0},{"$f":"IF(ISERROR(FIND(I$3,'CFR - XML import'!$A53)),0,VALUE(MID('CFR - XML import'!$A53,SEARCH(\">\",'CFR - XML import'!$A53,1)+1,SEARCH(\"/\",'CFR - XML import'!$A53,1)-SEARCH(\">\",'CFR - XML import'!$A53,1)-2)))","v":0},{"$f":"IF(ISERROR(FIND(J$3,'CFR - XML import'!$A53)),0,VALUE(MID('CFR - XML import'!$A53,SEARCH(\">\",'CFR - XML import'!$A53,1)+1,SEARCH(\"/\",'CFR - XML import'!$A53,1)-SEARCH(\">\",'CFR - XML import'!$A53,1)-2)))","v":0},{"$f":"IF(ISERROR(FIND(K$3,'CFR - XML import'!$A53)),0,VALUE(MID('CFR - XML import'!$A53,SEARCH(\">\",'CFR - XML import'!$A53,1)+1,SEARCH(\"/\",'CFR - XML import'!$A53,1)-SEARCH(\">\",'CFR - XML import'!$A53,1)-2)))","v":0},{"$f":"IF(ISERROR(FIND(L$3,'CFR - XML import'!$A53)),0,VALUE(MID('CFR - XML import'!$A53,SEARCH(\">\",'CFR - XML import'!$A53,1)+1,SEARCH(\"/\",'CFR - XML import'!$A53,1)-SEARCH(\">\",'CFR - XML import'!$A53,1)-2)))","v":0},{"$f":"IF(ISERROR(FIND(M$3,'CFR - XML import'!$A53)),0,VALUE(MID('CFR - XML import'!$A53,SEARCH(\">\",'CFR - XML import'!$A53,1)+1,SEARCH(\"/\",'CFR - XML import'!$A53,1)-SEARCH(\">\",'CFR - XML import'!$A53,1)-2)))","v":0},{"$f":"IF(ISERROR(FIND(N$3,'CFR - XML import'!$A53)),0,VALUE(MID('CFR - XML import'!$A53,SEARCH(\">\",'CFR - XML import'!$A53,1)+1,SEARCH(\"/\",'CFR - XML import'!$A53,1)-SEARCH(\">\",'CFR - XML import'!$A53,1)-2)))","v":0},{"$f":"IF(ISERROR(FIND(O$3,'CFR - XML import'!$A53)),0,VALUE(MID('CFR - XML import'!$A53,SEARCH(\">\",'CFR - XML import'!$A53,1)+1,SEARCH(\"/\",'CFR - XML import'!$A53,1)-SEARCH(\">\",'CFR - XML import'!$A53,1)-2)))","v":0},{"$f":"IF(ISERROR(FIND(P$3,'CFR - XML import'!$A53)),0,VALUE(MID('CFR - XML import'!$A53,SEARCH(\">\",'CFR - XML import'!$A53,1)+1,SEARCH(\"/\",'CFR - XML import'!$A53,1)-SEARCH(\">\",'CFR - XML import'!$A53,1)-2)))","v":0},{"$f":"IF(ISERROR(FIND(Q$3,'CFR - XML import'!$A53)),0,VALUE(MID('CFR - XML import'!$A53,SEARCH(\">\",'CFR - XML import'!$A53,1)+1,SEARCH(\"/\",'CFR - XML import'!$A53,1)-SEARCH(\">\",'CFR - XML import'!$A53,1)-2)))","v":0},{"$f":"IF(ISERROR(FIND(R$3,'CFR - XML import'!$A53)),0,VALUE(MID('CFR - XML import'!$A53,SEARCH(\">\",'CFR - XML import'!$A53,1)+1,SEARCH(\"/\",'CFR - XML import'!$A53,1)-SEARCH(\">\",'CFR - XML import'!$A53,1)-2)))","v":0},{"$f":"IF(ISERROR(FIND(S$3,'CFR - XML import'!$A53)),0,VALUE(MID('CFR - XML import'!$A53,SEARCH(\">\",'CFR - XML import'!$A53,1)+1,SEARCH(\"/\",'CFR - XML import'!$A53,1)-SEARCH(\">\",'CFR - XML import'!$A53,1)-2)))","v":0},{"$f":"IF(ISERROR(FIND(T$3,'CFR - XML import'!$A53)),0,VALUE(MID('CFR - XML import'!$A53,SEARCH(\">\",'CFR - XML import'!$A53,1)+1,SEARCH(\"/\",'CFR - XML import'!$A53,1)-SEARCH(\">\",'CFR - XML import'!$A53,1)-2)))","v":0},{"$f":"IF(ISERROR(FIND(U$3,'CFR - XML import'!$A53)),0,VALUE(MID('CFR - XML import'!$A53,SEARCH(\">\",'CFR - XML import'!$A53,1)+1,SEARCH(\"/\",'CFR - XML import'!$A53,1)-SEARCH(\">\",'CFR - XML import'!$A53,1)-2)))","v":0},{"$f":"IF(ISERROR(FIND(V$3,'CFR - XML import'!$A53)),0,VALUE(MID('CFR - XML import'!$A53,SEARCH(\">\",'CFR - XML import'!$A53,1)+1,SEARCH(\"/\",'CFR - XML import'!$A53,1)-SEARCH(\">\",'CFR - XML import'!$A53,1)-2)))","v":0},{"$f":"IF(ISERROR(FIND(W$3,'CFR - XML import'!$A53)),0,VALUE(MID('CFR - XML import'!$A53,SEARCH(\">\",'CFR - XML import'!$A53,1)+1,SEARCH(\"/\",'CFR - XML import'!$A53,1)-SEARCH(\">\",'CFR - XML import'!$A53,1)-2)))","v":0},null,{"$f":"IF(ISERROR(FIND(Y$3,'CFR - XML import'!$A53)),0,VALUE(MID('CFR - XML import'!$A53,SEARCH(\">\",'CFR - XML import'!$A53,1)+1,SEARCH(\"/\",'CFR - XML import'!$A53,1)-SEARCH(\">\",'CFR - XML import'!$A53,1)-2)))","v":0},{"$f":"IF(ISERROR(FIND(Z$3,'CFR - XML import'!$A53)),0,VALUE(MID('CFR - XML import'!$A53,SEARCH(\">\",'CFR - XML import'!$A53,1)+1,SEARCH(\"/\",'CFR - XML import'!$A53,1)-SEARCH(\">\",'CFR - XML import'!$A53,1)-2)))","v":0},{"$f":"IF(ISERROR(FIND(AA$3,'CFR - XML import'!$A53)),0,VALUE(MID('CFR - XML import'!$A53,SEARCH(\">\",'CFR - XML import'!$A53,1)+1,SEARCH(\"/\",'CFR - XML import'!$A53,1)-SEARCH(\">\",'CFR - XML import'!$A53,1)-2)))","v":0},{"$f":"IF(ISERROR(FIND(AB$3,'CFR - XML import'!$A53)),0,VALUE(MID('CFR - XML import'!$A53,SEARCH(\">\",'CFR - XML import'!$A53,1)+1,SEARCH(\"/\",'CFR - XML import'!$A53,1)-SEARCH(\">\",'CFR - XML import'!$A53,1)-2)))","v":0},{"$f":"IF(ISERROR(FIND(AC$3,'CFR - XML import'!$A53)),0,VALUE(MID('CFR - XML import'!$A53,SEARCH(\">\",'CFR - XML import'!$A53,1)+1,SEARCH(\"/\",'CFR - XML import'!$A53,1)-SEARCH(\">\",'CFR - XML import'!$A53,1)-2)))","v":0},{"$f":"IF(ISERROR(FIND(AD$3,'CFR - XML import'!$A53)),0,VALUE(MID('CFR - XML import'!$A53,SEARCH(\">\",'CFR - XML import'!$A53,1)+1,SEARCH(\"/\",'CFR - XML import'!$A53,1)-SEARCH(\">\",'CFR - XML import'!$A53,1)-2)))","v":0},{"$f":"IF(ISERROR(FIND(AE$3,'CFR - XML import'!$A53)),0,VALUE(MID('CFR - XML import'!$A53,SEARCH(\">\",'CFR - XML import'!$A53,1)+1,SEARCH(\"/\",'CFR - XML import'!$A53,1)-SEARCH(\">\",'CFR - XML import'!$A53,1)-2)))","v":0},{"$f":"IF(ISERROR(FIND(AF$3,'CFR - XML import'!$A53)),0,VALUE(MID('CFR - XML import'!$A53,SEARCH(\">\",'CFR - XML import'!$A53,1)+1,SEARCH(\"/\",'CFR - XML import'!$A53,1)-SEARCH(\">\",'CFR - XML import'!$A53,1)-2)))","v":0},{"$f":"IF(ISERROR(FIND(AG$3,'CFR - XML import'!$A53)),0,VALUE(MID('CFR - XML import'!$A53,SEARCH(\">\",'CFR - XML import'!$A53,1)+1,SEARCH(\"/\",'CFR - XML import'!$A53,1)-SEARCH(\">\",'CFR - XML import'!$A53,1)-2)))","v":0},{"$f":"IF(ISERROR(FIND(AH$3,'CFR - XML import'!$A53)),0,VALUE(MID('CFR - XML import'!$A53,SEARCH(\">\",'CFR - XML import'!$A53,1)+1,SEARCH(\"/\",'CFR - XML import'!$A53,1)-SEARCH(\">\",'CFR - XML import'!$A53,1)-2)))","v":0},{"$f":"IF(ISERROR(FIND(AI$3,'CFR - XML import'!$A53)),0,VALUE(MID('CFR - XML import'!$A53,SEARCH(\">\",'CFR - XML import'!$A53,1)+1,SEARCH(\"/\",'CFR - XML import'!$A53,1)-SEARCH(\">\",'CFR - XML import'!$A53,1)-2)))","v":0},{"$f":"IF(ISERROR(FIND(AJ$3,'CFR - XML import'!$A53)),0,VALUE(MID('CFR - XML import'!$A53,SEARCH(\">\",'CFR - XML import'!$A53,1)+1,SEARCH(\"/\",'CFR - XML import'!$A53,1)-SEARCH(\">\",'CFR - XML import'!$A53,1)-2)))","v":0},{"$f":"IF(ISERROR(FIND(AK$3,'CFR - XML import'!$A53)),0,VALUE(MID('CFR - XML import'!$A53,SEARCH(\">\",'CFR - XML import'!$A53,1)+1,SEARCH(\"/\",'CFR - XML import'!$A53,1)-SEARCH(\">\",'CFR - XML import'!$A53,1)-2)))","v":0},{"$f":"IF(ISERROR(FIND(AL$3,'CFR - XML import'!$A53)),0,VALUE(MID('CFR - XML import'!$A53,SEARCH(\">\",'CFR - XML import'!$A53,1)+1,SEARCH(\"/\",'CFR - XML import'!$A53,1)-SEARCH(\">\",'CFR - XML import'!$A53,1)-2)))","v":0},{"$f":"IF(ISERROR(FIND(AM$3,'CFR - XML import'!$A53)),0,VALUE(MID('CFR - XML import'!$A53,SEARCH(\">\",'CFR - XML import'!$A53,1)+1,SEARCH(\"/\",'CFR - XML import'!$A53,1)-SEARCH(\">\",'CFR - XML import'!$A53,1)-2)))","v":0},{"$f":"IF(ISERROR(FIND(AN$3,'CFR - XML import'!$A53)),0,VALUE(MID('CFR - XML import'!$A53,SEARCH(\">\",'CFR - XML import'!$A53,1)+1,SEARCH(\"/\",'CFR - XML import'!$A53,1)-SEARCH(\">\",'CFR - XML import'!$A53,1)-2)))","v":0},{"$f":"IF(ISERROR(FIND(AO$3,'CFR - XML import'!$A53)),0,VALUE(MID('CFR - XML import'!$A53,SEARCH(\">\",'CFR - XML import'!$A53,1)+1,SEARCH(\"/\",'CFR - XML import'!$A53,1)-SEARCH(\">\",'CFR - XML import'!$A53,1)-2)))","v":0},{"$f":"IF(ISERROR(FIND(AP$3,'CFR - XML import'!$A53)),0,VALUE(MID('CFR - XML import'!$A53,SEARCH(\">\",'CFR - XML import'!$A53,1)+1,SEARCH(\"/\",'CFR - XML import'!$A53,1)-SEARCH(\">\",'CFR - XML import'!$A53,1)-2)))","v":0},{"$f":"IF(ISERROR(FIND(AQ$3,'CFR - XML import'!$A53)),0,VALUE(MID('CFR - XML import'!$A53,SEARCH(\">\",'CFR - XML import'!$A53,1)+1,SEARCH(\"/\",'CFR - XML import'!$A53,1)-SEARCH(\">\",'CFR - XML import'!$A53,1)-2)))","v":0},{"$f":"IF(ISERROR(FIND(AR$3,'CFR - XML import'!$A53)),0,VALUE(MID('CFR - XML import'!$A53,SEARCH(\">\",'CFR - XML import'!$A53,1)+1,SEARCH(\"/\",'CFR - XML import'!$A53,1)-SEARCH(\">\",'CFR - XML import'!$A53,1)-2)))","v":0},{"$f":"IF(ISERROR(FIND(AS$3,'CFR - XML import'!$A53)),0,VALUE(MID('CFR - XML import'!$A53,SEARCH(\">\",'CFR - XML import'!$A53,1)+1,SEARCH(\"/\",'CFR - XML import'!$A53,1)-SEARCH(\">\",'CFR - XML import'!$A53,1)-2)))","v":0},{"$f":"IF(ISERROR(FIND(AT$3,'CFR - XML import'!$A53)),0,VALUE(MID('CFR - XML import'!$A53,SEARCH(\">\",'CFR - XML import'!$A53,1)+1,SEARCH(\"/\",'CFR - XML import'!$A53,1)-SEARCH(\">\",'CFR - XML import'!$A53,1)-2)))","v":0},{"$f":"IF(ISERROR(FIND(AU$3,'CFR - XML import'!$A53)),0,VALUE(MID('CFR - XML import'!$A53,SEARCH(\">\",'CFR - XML import'!$A53,1)+1,SEARCH(\"/\",'CFR - XML import'!$A53,1)-SEARCH(\">\",'CFR - XML import'!$A53,1)-2)))","v":0},{"$f":"IF(ISERROR(FIND(AV$3,'CFR - XML import'!$A53)),0,VALUE(MID('CFR - XML import'!$A53,SEARCH(\">\",'CFR - XML import'!$A53,1)+1,SEARCH(\"/\",'CFR - XML import'!$A53,1)-SEARCH(\">\",'CFR - XML import'!$A53,1)-2)))","v":0},{"$f":"IF(ISERROR(FIND(AW$3,'CFR - XML import'!$A53)),0,VALUE(MID('CFR - XML import'!$A53,SEARCH(\">\",'CFR - XML import'!$A53,1)+1,SEARCH(\"/\",'CFR - XML import'!$A53,1)-SEARCH(\">\",'CFR - XML import'!$A53,1)-2)))","v":0},{"$f":"IF(ISERROR(FIND(AX$3,'CFR - XML import'!$A53)),0,VALUE(MID('CFR - XML import'!$A53,SEARCH(\">\",'CFR - XML import'!$A53,1)+1,SEARCH(\"/\",'CFR - XML import'!$A53,1)-SEARCH(\">\",'CFR - XML import'!$A53,1)-2)))","v":0},{"$f":"IF(ISERROR(FIND(AY$3,'CFR - XML import'!$A53)),0,VALUE(MID('CFR - XML import'!$A53,SEARCH(\">\",'CFR - XML import'!$A53,1)+1,SEARCH(\"/\",'CFR - XML import'!$A53,1)-SEARCH(\">\",'CFR - XML import'!$A53,1)-2)))","v":0},{"$f":"IF(ISERROR(FIND(AZ$3,'CFR - XML import'!$A53)),0,VALUE(MID('CFR - XML import'!$A53,SEARCH(\">\",'CFR - XML import'!$A53,1)+1,SEARCH(\"/\",'CFR - XML import'!$A53,1)-SEARCH(\">\",'CFR - XML import'!$A53,1)-2)))","v":0},{"$f":"IF(ISERROR(FIND(BA$3,'CFR - XML import'!$A53)),0,VALUE(MID('CFR - XML import'!$A53,SEARCH(\">\",'CFR - XML import'!$A53,1)+1,SEARCH(\"/\",'CFR - XML import'!$A53,1)-SEARCH(\">\",'CFR - XML import'!$A53,1)-2)))","v":0},{"$f":"IF(ISERROR(FIND(BB$3,'CFR - XML import'!$A53)),0,VALUE(MID('CFR - XML import'!$A53,SEARCH(\">\",'CFR - XML import'!$A53,1)+1,SEARCH(\"/\",'CFR - XML import'!$A53,1)-SEARCH(\">\",'CFR - XML import'!$A53,1)-2)))","v":0},{"$f":"IF(ISERROR(FIND(BC$3,'CFR - XML import'!$A53)),0,VALUE(MID('CFR - XML import'!$A53,SEARCH(\">\",'CFR - XML import'!$A53,1)+1,SEARCH(\"/\",'CFR - XML import'!$A53,1)-SEARCH(\">\",'CFR - XML import'!$A53,1)-2)))","v":0},{"$f":"IF(ISERROR(FIND(BD$3,'CFR - XML import'!$A53)),0,VALUE(MID('CFR - XML import'!$A53,SEARCH(\">\",'CFR - XML import'!$A53,1)+1,SEARCH(\"/\",'CFR - XML import'!$A53,1)-SEARCH(\">\",'CFR - XML import'!$A53,1)-2)))","v":0},{"$f":"IF(ISERROR(FIND(BE$3,'CFR - XML import'!$A53)),0,VALUE(MID('CFR - XML import'!$A53,SEARCH(\">\",'CFR - XML import'!$A53,1)+1,SEARCH(\"/\",'CFR - XML import'!$A53,1)-SEARCH(\">\",'CFR - XML import'!$A53,1)-2)))","v":0},{"$f":"IF(ISERROR(FIND(BF$3,'CFR - XML import'!$A53)),0,VALUE(MID('CFR - XML import'!$A53,SEARCH(\">\",'CFR - XML import'!$A53,1)+1,SEARCH(\"/\",'CFR - XML import'!$A53,1)-SEARCH(\">\",'CFR - XML import'!$A53,1)-2)))","v":0},{"$f":"IF(ISERROR(FIND(BG$3,'CFR - XML import'!$A53)),0,VALUE(MID('CFR - XML import'!$A53,SEARCH(\">\",'CFR - XML import'!$A53,1)+1,SEARCH(\"/\",'CFR - XML import'!$A53,1)-SEARCH(\">\",'CFR - XML import'!$A53,1)-2)))","v":0},{"$f":"IF(ISERROR(FIND(BH$3,'CFR - XML import'!$A53)),0,VALUE(MID('CFR - XML import'!$A53,SEARCH(\">\",'CFR - XML import'!$A53,1)+1,SEARCH(\"/\",'CFR - XML import'!$A53,1)-SEARCH(\">\",'CFR - XML import'!$A53,1)-2)))","v":0},{"$f":"IF(ISERROR(FIND(BI$3,'CFR - XML import'!$A53)),0,VALUE(MID('CFR - XML import'!$A53,SEARCH(\">\",'CFR - XML import'!$A53,1)+1,SEARCH(\"/\",'CFR - XML import'!$A53,1)-SEARCH(\">\",'CFR - XML import'!$A53,1)-2)))","v":0},{"$f":"IF(ISERROR(FIND(BJ$3,'CFR - XML import'!$A53)),0,VALUE(MID('CFR - XML import'!$A53,SEARCH(\">\",'CFR - XML import'!$A53,1)+1,SEARCH(\"/\",'CFR - XML import'!$A53,1)-SEARCH(\">\",'CFR - XML import'!$A53,1)-2)))","v":0},{"$f":"IF(ISERROR(FIND(BK$3,'CFR - XML import'!$A53)),0,VALUE(MID('CFR - XML import'!$A53,SEARCH(\">\",'CFR - XML import'!$A53,1)+1,SEARCH(\"/\",'CFR - XML import'!$A53,1)-SEARCH(\">\",'CFR - XML import'!$A53,1)-2)))","v":0},{"$f":"IF(ISERROR(FIND(BL$3,'CFR - XML import'!$A53)),0,VALUE(MID('CFR - XML import'!$A53,SEARCH(\">\",'CFR - XML import'!$A53,1)+1,SEARCH(\"/\",'CFR - XML import'!$A53,1)-SEARCH(\">\",'CFR - XML import'!$A53,1)-2)))","v":0},{"$f":"IF(ISERROR(FIND(BM$3,'CFR - XML import'!$A53)),0,VALUE(MID('CFR - XML import'!$A53,SEARCH(\">\",'CFR - XML import'!$A53,1)+1,SEARCH(\"/\",'CFR - XML import'!$A53,1)-SEARCH(\">\",'CFR - XML import'!$A53,1)-2)))","v":0},{"$f":"IF(ISERROR(FIND(BN$3,'CFR - XML import'!$A53)),0,VALUE(MID('CFR - XML import'!$A53,SEARCH(\">\",'CFR - XML import'!$A53,1)+1,SEARCH(\"/\",'CFR - XML import'!$A53,1)-SEARCH(\">\",'CFR - XML import'!$A53,1)-2)))","v":0},{"$f":"IF(ISERROR(FIND(BO$3,'CFR - XML import'!$A53)),0,VALUE(MID('CFR - XML import'!$A53,SEARCH(\">\",'CFR - XML import'!$A53,1)+1,SEARCH(\"/\",'CFR - XML import'!$A53,1)-SEARCH(\">\",'CFR - XML import'!$A53,1)-2)))","v":0},{"$f":"IF(ISERROR(FIND(BP$3,'CFR - XML import'!$A53)),0,VALUE(MID('CFR - XML import'!$A53,SEARCH(\">\",'CFR - XML import'!$A53,1)+1,SEARCH(\"/\",'CFR - XML import'!$A53,1)-SEARCH(\">\",'CFR - XML import'!$A53,1)-2)))","v":0},{"$f":"IF(ISERROR(FIND(BQ$3,'CFR - XML import'!$A53)),0,VALUE(MID('CFR - XML import'!$A53,SEARCH(\">\",'CFR - XML import'!$A53,1)+1,SEARCH(\"/\",'CFR - XML import'!$A53,1)-SEARCH(\">\",'CFR - XML import'!$A53,1)-2)))","v":0},{"$f":"IF(ISERROR(FIND(BR$3,'CFR - XML import'!$A53)),0,VALUE(MID('CFR - XML import'!$A53,SEARCH(\">\",'CFR - XML import'!$A53,1)+1,SEARCH(\"/\",'CFR - XML import'!$A53,1)-SEARCH(\">\",'CFR - XML import'!$A53,1)-2)))","v":0},{"$f":"IF(ISERROR(FIND(BS$3,'CFR - XML import'!$A53)),0,VALUE(MID('CFR - XML import'!$A53,SEARCH(\">\",'CFR - XML import'!$A53,1)+1,SEARCH(\"/\",'CFR - XML import'!$A53,1)-SEARCH(\">\",'CFR - XML import'!$A53,1)-2)))","v":0},{"$f":"IF(ISERROR(FIND(BT$3,'CFR - XML import'!$A53)),0,VALUE(MID('CFR - XML import'!$A53,SEARCH(\">\",'CFR - XML import'!$A53,1)+1,SEARCH(\"/\",'CFR - XML import'!$A53,1)-SEARCH(\">\",'CFR - XML import'!$A53,1)-2)))","v":0},{"$f":"IF(ISERROR(FIND(BU$3,'CFR - XML import'!$A53)),0,VALUE(MID('CFR - XML import'!$A53,SEARCH(\">\",'CFR - XML import'!$A53,1)+1,SEARCH(\"/\",'CFR - XML import'!$A53,1)-SEARCH(\">\",'CFR - XML import'!$A53,1)-2)))","v":0},{"$f":"IF(ISERROR(FIND(BV$3,'CFR - XML import'!$A53)),0,VALUE(MID('CFR - XML import'!$A53,SEARCH(\">\",'CFR - XML import'!$A53,1)+1,SEARCH(\"/\",'CFR - XML import'!$A53,1)-SEARCH(\">\",'CFR - XML import'!$A53,1)-2)))","v":0},{"$f":"IF(ISERROR(FIND(BW$3,'CFR - XML import'!$A53)),0,VALUE(MID('CFR - XML import'!$A53,SEARCH(\">\",'CFR - XML import'!$A53,1)+1,SEARCH(\"/\",'CFR - XML import'!$A53,1)-SEARCH(\">\",'CFR - XML import'!$A53,1)-2)))","v":0},{"$f":"IF(ISERROR(FIND(BX$3,'CFR - XML import'!$A53)),0,VALUE(MID('CFR - XML import'!$A53,SEARCH(\">\",'CFR - XML import'!$A53,1)+1,SEARCH(\"/\",'CFR - XML import'!$A53,1)-SEARCH(\">\",'CFR - XML import'!$A53,1)-2)))","v":0},{"$f":"IF(ISERROR(FIND(BY$3,'CFR - XML import'!$A53)),0,VALUE(MID('CFR - XML import'!$A53,SEARCH(\">\",'CFR - XML import'!$A53,1)+1,SEARCH(\"/\",'CFR - XML import'!$A53,1)-SEARCH(\">\",'CFR - XML import'!$A53,1)-2)))","v":0},{"$f":"IF(ISERROR(FIND(BZ$3,'CFR - XML import'!$A53)),0,VALUE(MID('CFR - XML import'!$A53,SEARCH(\">\",'CFR - XML import'!$A53,1)+1,SEARCH(\"/\",'CFR - XML import'!$A53,1)-SEARCH(\">\",'CFR - XML import'!$A53,1)-2)))","v":0},null,null,null,null,null,null,{"$f":"IF(ISERROR(IF(MID('CFR - XML import'!$A53,LEN($CF$4)+1,LEN('CFR - XML import'!$A53)-(2*LEN($CF$4)+1))=\"RMMS\",1,IF(MID('CFR - XML import'!$A53,LEN(\"    <InputSystem>\")+1,LEN('CFR - XML import'!$A53)-(LEN(\"    <InputSystem>\")+LEN($CF$4)+1))=\"SIMS\",2,0))),0,IF(MID('CFR - XML import'!$A53,LEN($CF$4)+1,LEN('CFR - XML import'!$A53)-(2*LEN($CF$4)+1))=\"RMMS\",1,IF(MID('CFR - XML import'!$A53,LEN(\"    <InputSystem>\")+1,LEN('CFR - XML import'!$A53)-(LEN(\"    <InputSystem>\")+LEN($CF$4)+1))=\"SIMS\",2,0)))","v":0},{"$f":"IF(ISERROR(FIND(CH$3,'CFR - XML import'!$A53)),0,MID('CFR - XML import'!$A53,SEARCH(\">\",'CFR - XML import'!$A53,1)+1,SEARCH(\"/\",'CFR - XML import'!$A53,1)-SEARCH(\">\",'CFR - XML import'!$A53,1)-2))","v":0},{"$f":"IF(ISERROR(FIND(CI$3,'CFR - XML import'!$A53)),0,MID('CFR - XML import'!$A53,SEARCH(\">\",'CFR - XML import'!$A53,1)+1,SEARCH(\"/\",'CFR - XML import'!$A53,1)-SEARCH(\">\",'CFR - XML import'!$A53,1)-2))","v":0},{"$f":"IF(ISERROR(FIND(CJ$3,'CFR - XML import'!$A53)),0,MID('CFR - XML import'!$A53,SEARCH(\">\",'CFR - XML import'!$A53,1)+1,SEARCH(\"/\",'CFR - XML import'!$A53,1)-SEARCH(\">\",'CFR - XML import'!$A53,1)-2))","v":0},{"$f":"IF(ISERROR(FIND(CK$3,'CFR - XML import'!$A53)),0,MID('CFR - XML import'!$A53,SEARCH(\">\",'CFR - XML import'!$A53,1)+1,SEARCH(\"/\",'CFR - XML import'!$A53,1)-SEARCH(\">\",'CFR - XML import'!$A53,1)-2))","v":0},{"$f":"IF(ISERROR(FIND(CL$3,'CFR - XML import'!$A53)),0,MID('CFR - XML import'!$A53,SEARCH(\">\",'CFR - XML import'!$A53,1)+1,SEARCH(\"/\",'CFR - XML import'!$A53,1)-SEARCH(\">\",'CFR - XML import'!$A53,1)-2))","v":0}]
[{"$f":"IF(AND('CFR - XML import'!A54<>\"\",LEFT('CFR - XML import'!A54,1)<>\"<\",LEFT('CFR - XML import'!A54,3)<>\"  <\",LEFT('CFR - XML import'!A54,5)<>\"    <\",LEFT('CFR - XML import'!A54,7)<>\"      <\",LEFT('CFR - XML import'!A54,9)<>\"        <\",$B$1=\"SIMS\"),'CFR - XML import'!A54,IF(AND(LEFT('CFR - XML import'!A54,9)=\"<Details>\",$B$1=\"RM\"),'CFR - XML import'!A54,\"\"))","v":""},{"$f":"IF(ISERROR(FIND(B$3,'CFR - XML import'!$A54)),0,VALUE(MID('CFR - XML import'!$A54,SEARCH(\">\",'CFR - XML import'!$A54,1)+1,SEARCH(\"/\",'CFR - XML import'!$A54,1)-SEARCH(\">\",'CFR - XML import'!$A54,1)-2)))","v":0},null,{"$f":"IF(ISERROR(FIND(D$3,'CFR - XML import'!$A54)),0,MID('CFR - XML import'!$A54,SEARCH(\">\",'CFR - XML import'!$A54,1)+1,SEARCH(\"/\",'CFR - XML import'!$A54,1)-SEARCH(\">\",'CFR - XML import'!$A54,1)-2))","v":0},{"$f":"IF(ISERROR(FIND(E$3,'CFR - XML import'!$A54)),0,MID('CFR - XML import'!$A54,SEARCH(\">\",'CFR - XML import'!$A54,1)+1,SEARCH(\"/\",'CFR - XML import'!$A54,1)-SEARCH(\">\",'CFR - XML import'!$A54,1)-2))","v":0},{"$f":"IF($B$1=\"SIMS\",IF(ISERROR(FIND(F$3,'CFR - XML import'!$A54)),0,VALUE(MID('CFR - XML import'!$A54,15,10))),IF(ISERROR(FIND(F$3,'CFR - XML import'!$A54)),0,VALUE(MID('CFR - XML import'!$A54,11,10))))","v":"00:00:00"},{"$f":"IF(ISERROR(FIND(G$3,'CFR - XML import'!$A54)),0,VALUE(MID('CFR - XML import'!$A54,SEARCH(\">\",'CFR - XML import'!$A54,1)+1,SEARCH(\"/\",'CFR - XML import'!$A54,1)-SEARCH(\">\",'CFR - XML import'!$A54,1)-2)))","v":0},{"$f":"IF(ISERROR(FIND(H$3,'CFR - XML import'!$A54)),0,VALUE(MID('CFR - XML import'!$A54,SEARCH(\">\",'CFR - XML import'!$A54,1)+1,SEARCH(\"/\",'CFR - XML import'!$A54,1)-SEARCH(\">\",'CFR - XML import'!$A54,1)-2)))","v":0},{"$f":"IF(ISERROR(FIND(I$3,'CFR - XML import'!$A54)),0,VALUE(MID('CFR - XML import'!$A54,SEARCH(\">\",'CFR - XML import'!$A54,1)+1,SEARCH(\"/\",'CFR - XML import'!$A54,1)-SEARCH(\">\",'CFR - XML import'!$A54,1)-2)))","v":0},{"$f":"IF(ISERROR(FIND(J$3,'CFR - XML import'!$A54)),0,VALUE(MID('CFR - XML import'!$A54,SEARCH(\">\",'CFR - XML import'!$A54,1)+1,SEARCH(\"/\",'CFR - XML import'!$A54,1)-SEARCH(\">\",'CFR - XML import'!$A54,1)-2)))","v":0},{"$f":"IF(ISERROR(FIND(K$3,'CFR - XML import'!$A54)),0,VALUE(MID('CFR - XML import'!$A54,SEARCH(\">\",'CFR - XML import'!$A54,1)+1,SEARCH(\"/\",'CFR - XML import'!$A54,1)-SEARCH(\">\",'CFR - XML import'!$A54,1)-2)))","v":0},{"$f":"IF(ISERROR(FIND(L$3,'CFR - XML import'!$A54)),0,VALUE(MID('CFR - XML import'!$A54,SEARCH(\">\",'CFR - XML import'!$A54,1)+1,SEARCH(\"/\",'CFR - XML import'!$A54,1)-SEARCH(\">\",'CFR - XML import'!$A54,1)-2)))","v":0},{"$f":"IF(ISERROR(FIND(M$3,'CFR - XML import'!$A54)),0,VALUE(MID('CFR - XML import'!$A54,SEARCH(\">\",'CFR - XML import'!$A54,1)+1,SEARCH(\"/\",'CFR - XML import'!$A54,1)-SEARCH(\">\",'CFR - XML import'!$A54,1)-2)))","v":0},{"$f":"IF(ISERROR(FIND(N$3,'CFR - XML import'!$A54)),0,VALUE(MID('CFR - XML import'!$A54,SEARCH(\">\",'CFR - XML import'!$A54,1)+1,SEARCH(\"/\",'CFR - XML import'!$A54,1)-SEARCH(\">\",'CFR - XML import'!$A54,1)-2)))","v":0},{"$f":"IF(ISERROR(FIND(O$3,'CFR - XML import'!$A54)),0,VALUE(MID('CFR - XML import'!$A54,SEARCH(\">\",'CFR - XML import'!$A54,1)+1,SEARCH(\"/\",'CFR - XML import'!$A54,1)-SEARCH(\">\",'CFR - XML import'!$A54,1)-2)))","v":0},{"$f":"IF(ISERROR(FIND(P$3,'CFR - XML import'!$A54)),0,VALUE(MID('CFR - XML import'!$A54,SEARCH(\">\",'CFR - XML import'!$A54,1)+1,SEARCH(\"/\",'CFR - XML import'!$A54,1)-SEARCH(\">\",'CFR - XML import'!$A54,1)-2)))","v":0},{"$f":"IF(ISERROR(FIND(Q$3,'CFR - XML import'!$A54)),0,VALUE(MID('CFR - XML import'!$A54,SEARCH(\">\",'CFR - XML import'!$A54,1)+1,SEARCH(\"/\",'CFR - XML import'!$A54,1)-SEARCH(\">\",'CFR - XML import'!$A54,1)-2)))","v":0},{"$f":"IF(ISERROR(FIND(R$3,'CFR - XML import'!$A54)),0,VALUE(MID('CFR - XML import'!$A54,SEARCH(\">\",'CFR - XML import'!$A54,1)+1,SEARCH(\"/\",'CFR - XML import'!$A54,1)-SEARCH(\">\",'CFR - XML import'!$A54,1)-2)))","v":0},{"$f":"IF(ISERROR(FIND(S$3,'CFR - XML import'!$A54)),0,VALUE(MID('CFR - XML import'!$A54,SEARCH(\">\",'CFR - XML import'!$A54,1)+1,SEARCH(\"/\",'CFR - XML import'!$A54,1)-SEARCH(\">\",'CFR - XML import'!$A54,1)-2)))","v":0},{"$f":"IF(ISERROR(FIND(T$3,'CFR - XML import'!$A54)),0,VALUE(MID('CFR - XML import'!$A54,SEARCH(\">\",'CFR - XML import'!$A54,1)+1,SEARCH(\"/\",'CFR - XML import'!$A54,1)-SEARCH(\">\",'CFR - XML import'!$A54,1)-2)))","v":0},{"$f":"IF(ISERROR(FIND(U$3,'CFR - XML import'!$A54)),0,VALUE(MID('CFR - XML import'!$A54,SEARCH(\">\",'CFR - XML import'!$A54,1)+1,SEARCH(\"/\",'CFR - XML import'!$A54,1)-SEARCH(\">\",'CFR - XML import'!$A54,1)-2)))","v":0},{"$f":"IF(ISERROR(FIND(V$3,'CFR - XML import'!$A54)),0,VALUE(MID('CFR - XML import'!$A54,SEARCH(\">\",'CFR - XML import'!$A54,1)+1,SEARCH(\"/\",'CFR - XML import'!$A54,1)-SEARCH(\">\",'CFR - XML import'!$A54,1)-2)))","v":0},{"$f":"IF(ISERROR(FIND(W$3,'CFR - XML import'!$A54)),0,VALUE(MID('CFR - XML import'!$A54,SEARCH(\">\",'CFR - XML import'!$A54,1)+1,SEARCH(\"/\",'CFR - XML import'!$A54,1)-SEARCH(\">\",'CFR - XML import'!$A54,1)-2)))","v":0},null,{"$f":"IF(ISERROR(FIND(Y$3,'CFR - XML import'!$A54)),0,VALUE(MID('CFR - XML import'!$A54,SEARCH(\">\",'CFR - XML import'!$A54,1)+1,SEARCH(\"/\",'CFR - XML import'!$A54,1)-SEARCH(\">\",'CFR - XML import'!$A54,1)-2)))","v":0},{"$f":"IF(ISERROR(FIND(Z$3,'CFR - XML import'!$A54)),0,VALUE(MID('CFR - XML import'!$A54,SEARCH(\">\",'CFR - XML import'!$A54,1)+1,SEARCH(\"/\",'CFR - XML import'!$A54,1)-SEARCH(\">\",'CFR - XML import'!$A54,1)-2)))","v":0},{"$f":"IF(ISERROR(FIND(AA$3,'CFR - XML import'!$A54)),0,VALUE(MID('CFR - XML import'!$A54,SEARCH(\">\",'CFR - XML import'!$A54,1)+1,SEARCH(\"/\",'CFR - XML import'!$A54,1)-SEARCH(\">\",'CFR - XML import'!$A54,1)-2)))","v":0},{"$f":"IF(ISERROR(FIND(AB$3,'CFR - XML import'!$A54)),0,VALUE(MID('CFR - XML import'!$A54,SEARCH(\">\",'CFR - XML import'!$A54,1)+1,SEARCH(\"/\",'CFR - XML import'!$A54,1)-SEARCH(\">\",'CFR - XML import'!$A54,1)-2)))","v":0},{"$f":"IF(ISERROR(FIND(AC$3,'CFR - XML import'!$A54)),0,VALUE(MID('CFR - XML import'!$A54,SEARCH(\">\",'CFR - XML import'!$A54,1)+1,SEARCH(\"/\",'CFR - XML import'!$A54,1)-SEARCH(\">\",'CFR - XML import'!$A54,1)-2)))","v":0},{"$f":"IF(ISERROR(FIND(AD$3,'CFR - XML import'!$A54)),0,VALUE(MID('CFR - XML import'!$A54,SEARCH(\">\",'CFR - XML import'!$A54,1)+1,SEARCH(\"/\",'CFR - XML import'!$A54,1)-SEARCH(\">\",'CFR - XML import'!$A54,1)-2)))","v":0},{"$f":"IF(ISERROR(FIND(AE$3,'CFR - XML import'!$A54)),0,VALUE(MID('CFR - XML import'!$A54,SEARCH(\">\",'CFR - XML import'!$A54,1)+1,SEARCH(\"/\",'CFR - XML import'!$A54,1)-SEARCH(\">\",'CFR - XML import'!$A54,1)-2)))","v":0},{"$f":"IF(ISERROR(FIND(AF$3,'CFR - XML import'!$A54)),0,VALUE(MID('CFR - XML import'!$A54,SEARCH(\">\",'CFR - XML import'!$A54,1)+1,SEARCH(\"/\",'CFR - XML import'!$A54,1)-SEARCH(\">\",'CFR - XML import'!$A54,1)-2)))","v":0},{"$f":"IF(ISERROR(FIND(AG$3,'CFR - XML import'!$A54)),0,VALUE(MID('CFR - XML import'!$A54,SEARCH(\">\",'CFR - XML import'!$A54,1)+1,SEARCH(\"/\",'CFR - XML import'!$A54,1)-SEARCH(\">\",'CFR - XML import'!$A54,1)-2)))","v":0},{"$f":"IF(ISERROR(FIND(AH$3,'CFR - XML import'!$A54)),0,VALUE(MID('CFR - XML import'!$A54,SEARCH(\">\",'CFR - XML import'!$A54,1)+1,SEARCH(\"/\",'CFR - XML import'!$A54,1)-SEARCH(\">\",'CFR - XML import'!$A54,1)-2)))","v":0},{"$f":"IF(ISERROR(FIND(AI$3,'CFR - XML import'!$A54)),0,VALUE(MID('CFR - XML import'!$A54,SEARCH(\">\",'CFR - XML import'!$A54,1)+1,SEARCH(\"/\",'CFR - XML import'!$A54,1)-SEARCH(\">\",'CFR - XML import'!$A54,1)-2)))","v":0},{"$f":"IF(ISERROR(FIND(AJ$3,'CFR - XML import'!$A54)),0,VALUE(MID('CFR - XML import'!$A54,SEARCH(\">\",'CFR - XML import'!$A54,1)+1,SEARCH(\"/\",'CFR - XML import'!$A54,1)-SEARCH(\">\",'CFR - XML import'!$A54,1)-2)))","v":0},{"$f":"IF(ISERROR(FIND(AK$3,'CFR - XML import'!$A54)),0,VALUE(MID('CFR - XML import'!$A54,SEARCH(\">\",'CFR - XML import'!$A54,1)+1,SEARCH(\"/\",'CFR - XML import'!$A54,1)-SEARCH(\">\",'CFR - XML import'!$A54,1)-2)))","v":0},{"$f":"IF(ISERROR(FIND(AL$3,'CFR - XML import'!$A54)),0,VALUE(MID('CFR - XML import'!$A54,SEARCH(\">\",'CFR - XML import'!$A54,1)+1,SEARCH(\"/\",'CFR - XML import'!$A54,1)-SEARCH(\">\",'CFR - XML import'!$A54,1)-2)))","v":0},{"$f":"IF(ISERROR(FIND(AM$3,'CFR - XML import'!$A54)),0,VALUE(MID('CFR - XML import'!$A54,SEARCH(\">\",'CFR - XML import'!$A54,1)+1,SEARCH(\"/\",'CFR - XML import'!$A54,1)-SEARCH(\">\",'CFR - XML import'!$A54,1)-2)))","v":0},{"$f":"IF(ISERROR(FIND(AN$3,'CFR - XML import'!$A54)),0,VALUE(MID('CFR - XML import'!$A54,SEARCH(\">\",'CFR - XML import'!$A54,1)+1,SEARCH(\"/\",'CFR - XML import'!$A54,1)-SEARCH(\">\",'CFR - XML import'!$A54,1)-2)))","v":0},{"$f":"IF(ISERROR(FIND(AO$3,'CFR - XML import'!$A54)),0,VALUE(MID('CFR - XML import'!$A54,SEARCH(\">\",'CFR - XML import'!$A54,1)+1,SEARCH(\"/\",'CFR - XML import'!$A54,1)-SEARCH(\">\",'CFR - XML import'!$A54,1)-2)))","v":0},{"$f":"IF(ISERROR(FIND(AP$3,'CFR - XML import'!$A54)),0,VALUE(MID('CFR - XML import'!$A54,SEARCH(\">\",'CFR - XML import'!$A54,1)+1,SEARCH(\"/\",'CFR - XML import'!$A54,1)-SEARCH(\">\",'CFR - XML import'!$A54,1)-2)))","v":0},{"$f":"IF(ISERROR(FIND(AQ$3,'CFR - XML import'!$A54)),0,VALUE(MID('CFR - XML import'!$A54,SEARCH(\">\",'CFR - XML import'!$A54,1)+1,SEARCH(\"/\",'CFR - XML import'!$A54,1)-SEARCH(\">\",'CFR - XML import'!$A54,1)-2)))","v":0},{"$f":"IF(ISERROR(FIND(AR$3,'CFR - XML import'!$A54)),0,VALUE(MID('CFR - XML import'!$A54,SEARCH(\">\",'CFR - XML import'!$A54,1)+1,SEARCH(\"/\",'CFR - XML import'!$A54,1)-SEARCH(\">\",'CFR - XML import'!$A54,1)-2)))","v":0},{"$f":"IF(ISERROR(FIND(AS$3,'CFR - XML import'!$A54)),0,VALUE(MID('CFR - XML import'!$A54,SEARCH(\">\",'CFR - XML import'!$A54,1)+1,SEARCH(\"/\",'CFR - XML import'!$A54,1)-SEARCH(\">\",'CFR - XML import'!$A54,1)-2)))","v":0},{"$f":"IF(ISERROR(FIND(AT$3,'CFR - XML import'!$A54)),0,VALUE(MID('CFR - XML import'!$A54,SEARCH(\">\",'CFR - XML import'!$A54,1)+1,SEARCH(\"/\",'CFR - XML import'!$A54,1)-SEARCH(\">\",'CFR - XML import'!$A54,1)-2)))","v":0},{"$f":"IF(ISERROR(FIND(AU$3,'CFR - XML import'!$A54)),0,VALUE(MID('CFR - XML import'!$A54,SEARCH(\">\",'CFR - XML import'!$A54,1)+1,SEARCH(\"/\",'CFR - XML import'!$A54,1)-SEARCH(\">\",'CFR - XML import'!$A54,1)-2)))","v":0},{"$f":"IF(ISERROR(FIND(AV$3,'CFR - XML import'!$A54)),0,VALUE(MID('CFR - XML import'!$A54,SEARCH(\">\",'CFR - XML import'!$A54,1)+1,SEARCH(\"/\",'CFR - XML import'!$A54,1)-SEARCH(\">\",'CFR - XML import'!$A54,1)-2)))","v":0},{"$f":"IF(ISERROR(FIND(AW$3,'CFR - XML import'!$A54)),0,VALUE(MID('CFR - XML import'!$A54,SEARCH(\">\",'CFR - XML import'!$A54,1)+1,SEARCH(\"/\",'CFR - XML import'!$A54,1)-SEARCH(\">\",'CFR - XML import'!$A54,1)-2)))","v":0},{"$f":"IF(ISERROR(FIND(AX$3,'CFR - XML import'!$A54)),0,VALUE(MID('CFR - XML import'!$A54,SEARCH(\">\",'CFR - XML import'!$A54,1)+1,SEARCH(\"/\",'CFR - XML import'!$A54,1)-SEARCH(\">\",'CFR - XML import'!$A54,1)-2)))","v":0},{"$f":"IF(ISERROR(FIND(AY$3,'CFR - XML import'!$A54)),0,VALUE(MID('CFR - XML import'!$A54,SEARCH(\">\",'CFR - XML import'!$A54,1)+1,SEARCH(\"/\",'CFR - XML import'!$A54,1)-SEARCH(\">\",'CFR - XML import'!$A54,1)-2)))","v":0},{"$f":"IF(ISERROR(FIND(AZ$3,'CFR - XML import'!$A54)),0,VALUE(MID('CFR - XML import'!$A54,SEARCH(\">\",'CFR - XML import'!$A54,1)+1,SEARCH(\"/\",'CFR - XML import'!$A54,1)-SEARCH(\">\",'CFR - XML import'!$A54,1)-2)))","v":0},{"$f":"IF(ISERROR(FIND(BA$3,'CFR - XML import'!$A54)),0,VALUE(MID('CFR - XML import'!$A54,SEARCH(\">\",'CFR - XML import'!$A54,1)+1,SEARCH(\"/\",'CFR - XML import'!$A54,1)-SEARCH(\">\",'CFR - XML import'!$A54,1)-2)))","v":0},{"$f":"IF(ISERROR(FIND(BB$3,'CFR - XML import'!$A54)),0,VALUE(MID('CFR - XML import'!$A54,SEARCH(\">\",'CFR - XML import'!$A54,1)+1,SEARCH(\"/\",'CFR - XML import'!$A54,1)-SEARCH(\">\",'CFR - XML import'!$A54,1)-2)))","v":0},{"$f":"IF(ISERROR(FIND(BC$3,'CFR - XML import'!$A54)),0,VALUE(MID('CFR - XML import'!$A54,SEARCH(\">\",'CFR - XML import'!$A54,1)+1,SEARCH(\"/\",'CFR - XML import'!$A54,1)-SEARCH(\">\",'CFR - XML import'!$A54,1)-2)))","v":0},{"$f":"IF(ISERROR(FIND(BD$3,'CFR - XML import'!$A54)),0,VALUE(MID('CFR - XML import'!$A54,SEARCH(\">\",'CFR - XML import'!$A54,1)+1,SEARCH(\"/\",'CFR - XML import'!$A54,1)-SEARCH(\">\",'CFR - XML import'!$A54,1)-2)))","v":0},{"$f":"IF(ISERROR(FIND(BE$3,'CFR - XML import'!$A54)),0,VALUE(MID('CFR - XML import'!$A54,SEARCH(\">\",'CFR - XML import'!$A54,1)+1,SEARCH(\"/\",'CFR - XML import'!$A54,1)-SEARCH(\">\",'CFR - XML import'!$A54,1)-2)))","v":0},{"$f":"IF(ISERROR(FIND(BF$3,'CFR - XML import'!$A54)),0,VALUE(MID('CFR - XML import'!$A54,SEARCH(\">\",'CFR - XML import'!$A54,1)+1,SEARCH(\"/\",'CFR - XML import'!$A54,1)-SEARCH(\">\",'CFR - XML import'!$A54,1)-2)))","v":0},{"$f":"IF(ISERROR(FIND(BG$3,'CFR - XML import'!$A54)),0,VALUE(MID('CFR - XML import'!$A54,SEARCH(\">\",'CFR - XML import'!$A54,1)+1,SEARCH(\"/\",'CFR - XML import'!$A54,1)-SEARCH(\">\",'CFR - XML import'!$A54,1)-2)))","v":0},{"$f":"IF(ISERROR(FIND(BH$3,'CFR - XML import'!$A54)),0,VALUE(MID('CFR - XML import'!$A54,SEARCH(\">\",'CFR - XML import'!$A54,1)+1,SEARCH(\"/\",'CFR - XML import'!$A54,1)-SEARCH(\">\",'CFR - XML import'!$A54,1)-2)))","v":0},{"$f":"IF(ISERROR(FIND(BI$3,'CFR - XML import'!$A54)),0,VALUE(MID('CFR - XML import'!$A54,SEARCH(\">\",'CFR - XML import'!$A54,1)+1,SEARCH(\"/\",'CFR - XML import'!$A54,1)-SEARCH(\">\",'CFR - XML import'!$A54,1)-2)))","v":0},{"$f":"IF(ISERROR(FIND(BJ$3,'CFR - XML import'!$A54)),0,VALUE(MID('CFR - XML import'!$A54,SEARCH(\">\",'CFR - XML import'!$A54,1)+1,SEARCH(\"/\",'CFR - XML import'!$A54,1)-SEARCH(\">\",'CFR - XML import'!$A54,1)-2)))","v":0},{"$f":"IF(ISERROR(FIND(BK$3,'CFR - XML import'!$A54)),0,VALUE(MID('CFR - XML import'!$A54,SEARCH(\">\",'CFR - XML import'!$A54,1)+1,SEARCH(\"/\",'CFR - XML import'!$A54,1)-SEARCH(\">\",'CFR - XML import'!$A54,1)-2)))","v":0},{"$f":"IF(ISERROR(FIND(BL$3,'CFR - XML import'!$A54)),0,VALUE(MID('CFR - XML import'!$A54,SEARCH(\">\",'CFR - XML import'!$A54,1)+1,SEARCH(\"/\",'CFR - XML import'!$A54,1)-SEARCH(\">\",'CFR - XML import'!$A54,1)-2)))","v":0},{"$f":"IF(ISERROR(FIND(BM$3,'CFR - XML import'!$A54)),0,VALUE(MID('CFR - XML import'!$A54,SEARCH(\">\",'CFR - XML import'!$A54,1)+1,SEARCH(\"/\",'CFR - XML import'!$A54,1)-SEARCH(\">\",'CFR - XML import'!$A54,1)-2)))","v":0},{"$f":"IF(ISERROR(FIND(BN$3,'CFR - XML import'!$A54)),0,VALUE(MID('CFR - XML import'!$A54,SEARCH(\">\",'CFR - XML import'!$A54,1)+1,SEARCH(\"/\",'CFR - XML import'!$A54,1)-SEARCH(\">\",'CFR - XML import'!$A54,1)-2)))","v":0},{"$f":"IF(ISERROR(FIND(BO$3,'CFR - XML import'!$A54)),0,VALUE(MID('CFR - XML import'!$A54,SEARCH(\">\",'CFR - XML import'!$A54,1)+1,SEARCH(\"/\",'CFR - XML import'!$A54,1)-SEARCH(\">\",'CFR - XML import'!$A54,1)-2)))","v":0},{"$f":"IF(ISERROR(FIND(BP$3,'CFR - XML import'!$A54)),0,VALUE(MID('CFR - XML import'!$A54,SEARCH(\">\",'CFR - XML import'!$A54,1)+1,SEARCH(\"/\",'CFR - XML import'!$A54,1)-SEARCH(\">\",'CFR - XML import'!$A54,1)-2)))","v":0},{"$f":"IF(ISERROR(FIND(BQ$3,'CFR - XML import'!$A54)),0,VALUE(MID('CFR - XML import'!$A54,SEARCH(\">\",'CFR - XML import'!$A54,1)+1,SEARCH(\"/\",'CFR - XML import'!$A54,1)-SEARCH(\">\",'CFR - XML import'!$A54,1)-2)))","v":0},{"$f":"IF(ISERROR(FIND(BR$3,'CFR - XML import'!$A54)),0,VALUE(MID('CFR - XML import'!$A54,SEARCH(\">\",'CFR - XML import'!$A54,1)+1,SEARCH(\"/\",'CFR - XML import'!$A54,1)-SEARCH(\">\",'CFR - XML import'!$A54,1)-2)))","v":0},{"$f":"IF(ISERROR(FIND(BS$3,'CFR - XML import'!$A54)),0,VALUE(MID('CFR - XML import'!$A54,SEARCH(\">\",'CFR - XML import'!$A54,1)+1,SEARCH(\"/\",'CFR - XML import'!$A54,1)-SEARCH(\">\",'CFR - XML import'!$A54,1)-2)))","v":0},{"$f":"IF(ISERROR(FIND(BT$3,'CFR - XML import'!$A54)),0,VALUE(MID('CFR - XML import'!$A54,SEARCH(\">\",'CFR - XML import'!$A54,1)+1,SEARCH(\"/\",'CFR - XML import'!$A54,1)-SEARCH(\">\",'CFR - XML import'!$A54,1)-2)))","v":0},{"$f":"IF(ISERROR(FIND(BU$3,'CFR - XML import'!$A54)),0,VALUE(MID('CFR - XML import'!$A54,SEARCH(\">\",'CFR - XML import'!$A54,1)+1,SEARCH(\"/\",'CFR - XML import'!$A54,1)-SEARCH(\">\",'CFR - XML import'!$A54,1)-2)))","v":0},{"$f":"IF(ISERROR(FIND(BV$3,'CFR - XML import'!$A54)),0,VALUE(MID('CFR - XML import'!$A54,SEARCH(\">\",'CFR - XML import'!$A54,1)+1,SEARCH(\"/\",'CFR - XML import'!$A54,1)-SEARCH(\">\",'CFR - XML import'!$A54,1)-2)))","v":0},{"$f":"IF(ISERROR(FIND(BW$3,'CFR - XML import'!$A54)),0,VALUE(MID('CFR - XML import'!$A54,SEARCH(\">\",'CFR - XML import'!$A54,1)+1,SEARCH(\"/\",'CFR - XML import'!$A54,1)-SEARCH(\">\",'CFR - XML import'!$A54,1)-2)))","v":0},{"$f":"IF(ISERROR(FIND(BX$3,'CFR - XML import'!$A54)),0,VALUE(MID('CFR - XML import'!$A54,SEARCH(\">\",'CFR - XML import'!$A54,1)+1,SEARCH(\"/\",'CFR - XML import'!$A54,1)-SEARCH(\">\",'CFR - XML import'!$A54,1)-2)))","v":0},{"$f":"IF(ISERROR(FIND(BY$3,'CFR - XML import'!$A54)),0,VALUE(MID('CFR - XML import'!$A54,SEARCH(\">\",'CFR - XML import'!$A54,1)+1,SEARCH(\"/\",'CFR - XML import'!$A54,1)-SEARCH(\">\",'CFR - XML import'!$A54,1)-2)))","v":0},{"$f":"IF(ISERROR(FIND(BZ$3,'CFR - XML import'!$A54)),0,VALUE(MID('CFR - XML import'!$A54,SEARCH(\">\",'CFR - XML import'!$A54,1)+1,SEARCH(\"/\",'CFR - XML import'!$A54,1)-SEARCH(\">\",'CFR - XML import'!$A54,1)-2)))","v":0},null,null,null,null,null,null,{"$f":"IF(ISERROR(IF(MID('CFR - XML import'!$A54,LEN($CF$4)+1,LEN('CFR - XML import'!$A54)-(2*LEN($CF$4)+1))=\"RMMS\",1,IF(MID('CFR - XML import'!$A54,LEN(\"    <InputSystem>\")+1,LEN('CFR - XML import'!$A54)-(LEN(\"    <InputSystem>\")+LEN($CF$4)+1))=\"SIMS\",2,0))),0,IF(MID('CFR - XML import'!$A54,LEN($CF$4)+1,LEN('CFR - XML import'!$A54)-(2*LEN($CF$4)+1))=\"RMMS\",1,IF(MID('CFR - XML import'!$A54,LEN(\"    <InputSystem>\")+1,LEN('CFR - XML import'!$A54)-(LEN(\"    <InputSystem>\")+LEN($CF$4)+1))=\"SIMS\",2,0)))","v":0},{"$f":"IF(ISERROR(FIND(CH$3,'CFR - XML import'!$A54)),0,MID('CFR - XML import'!$A54,SEARCH(\">\",'CFR - XML import'!$A54,1)+1,SEARCH(\"/\",'CFR - XML import'!$A54,1)-SEARCH(\">\",'CFR - XML import'!$A54,1)-2))","v":0},{"$f":"IF(ISERROR(FIND(CI$3,'CFR - XML import'!$A54)),0,MID('CFR - XML import'!$A54,SEARCH(\">\",'CFR - XML import'!$A54,1)+1,SEARCH(\"/\",'CFR - XML import'!$A54,1)-SEARCH(\">\",'CFR - XML import'!$A54,1)-2))","v":0},{"$f":"IF(ISERROR(FIND(CJ$3,'CFR - XML import'!$A54)),0,MID('CFR - XML import'!$A54,SEARCH(\">\",'CFR - XML import'!$A54,1)+1,SEARCH(\"/\",'CFR - XML import'!$A54,1)-SEARCH(\">\",'CFR - XML import'!$A54,1)-2))","v":0},{"$f":"IF(ISERROR(FIND(CK$3,'CFR - XML import'!$A54)),0,MID('CFR - XML import'!$A54,SEARCH(\">\",'CFR - XML import'!$A54,1)+1,SEARCH(\"/\",'CFR - XML import'!$A54,1)-SEARCH(\">\",'CFR - XML import'!$A54,1)-2))","v":0},{"$f":"IF(ISERROR(FIND(CL$3,'CFR - XML import'!$A54)),0,MID('CFR - XML import'!$A54,SEARCH(\">\",'CFR - XML import'!$A54,1)+1,SEARCH(\"/\",'CFR - XML import'!$A54,1)-SEARCH(\">\",'CFR - XML import'!$A54,1)-2))","v":0}]
[{"$f":"IF(AND('CFR - XML import'!A55<>\"\",LEFT('CFR - XML import'!A55,1)<>\"<\",LEFT('CFR - XML import'!A55,3)<>\"  <\",LEFT('CFR - XML import'!A55,5)<>\"    <\",LEFT('CFR - XML import'!A55,7)<>\"      <\",LEFT('CFR - XML import'!A55,9)<>\"        <\",$B$1=\"SIMS\"),'CFR - XML import'!A55,IF(AND(LEFT('CFR - XML import'!A55,9)=\"<Details>\",$B$1=\"RM\"),'CFR - XML import'!A55,\"\"))","v":""},{"$f":"IF(ISERROR(FIND(B$3,'CFR - XML import'!$A55)),0,VALUE(MID('CFR - XML import'!$A55,SEARCH(\">\",'CFR - XML import'!$A55,1)+1,SEARCH(\"/\",'CFR - XML import'!$A55,1)-SEARCH(\">\",'CFR - XML import'!$A55,1)-2)))","v":0},null,{"$f":"IF(ISERROR(FIND(D$3,'CFR - XML import'!$A55)),0,MID('CFR - XML import'!$A55,SEARCH(\">\",'CFR - XML import'!$A55,1)+1,SEARCH(\"/\",'CFR - XML import'!$A55,1)-SEARCH(\">\",'CFR - XML import'!$A55,1)-2))","v":0},{"$f":"IF(ISERROR(FIND(E$3,'CFR - XML import'!$A55)),0,MID('CFR - XML import'!$A55,SEARCH(\">\",'CFR - XML import'!$A55,1)+1,SEARCH(\"/\",'CFR - XML import'!$A55,1)-SEARCH(\">\",'CFR - XML import'!$A55,1)-2))","v":0},{"$f":"IF($B$1=\"SIMS\",IF(ISERROR(FIND(F$3,'CFR - XML import'!$A55)),0,VALUE(MID('CFR - XML import'!$A55,15,10))),IF(ISERROR(FIND(F$3,'CFR - XML import'!$A55)),0,VALUE(MID('CFR - XML import'!$A55,11,10))))","v":"00:00:00"},{"$f":"IF(ISERROR(FIND(G$3,'CFR - XML import'!$A55)),0,VALUE(MID('CFR - XML import'!$A55,SEARCH(\">\",'CFR - XML import'!$A55,1)+1,SEARCH(\"/\",'CFR - XML import'!$A55,1)-SEARCH(\">\",'CFR - XML import'!$A55,1)-2)))","v":0},{"$f":"IF(ISERROR(FIND(H$3,'CFR - XML import'!$A55)),0,VALUE(MID('CFR - XML import'!$A55,SEARCH(\">\",'CFR - XML import'!$A55,1)+1,SEARCH(\"/\",'CFR - XML import'!$A55,1)-SEARCH(\">\",'CFR - XML import'!$A55,1)-2)))","v":0},{"$f":"IF(ISERROR(FIND(I$3,'CFR - XML import'!$A55)),0,VALUE(MID('CFR - XML import'!$A55,SEARCH(\">\",'CFR - XML import'!$A55,1)+1,SEARCH(\"/\",'CFR - XML import'!$A55,1)-SEARCH(\">\",'CFR - XML import'!$A55,1)-2)))","v":0},{"$f":"IF(ISERROR(FIND(J$3,'CFR - XML import'!$A55)),0,VALUE(MID('CFR - XML import'!$A55,SEARCH(\">\",'CFR - XML import'!$A55,1)+1,SEARCH(\"/\",'CFR - XML import'!$A55,1)-SEARCH(\">\",'CFR - XML import'!$A55,1)-2)))","v":0},{"$f":"IF(ISERROR(FIND(K$3,'CFR - XML import'!$A55)),0,VALUE(MID('CFR - XML import'!$A55,SEARCH(\">\",'CFR - XML import'!$A55,1)+1,SEARCH(\"/\",'CFR - XML import'!$A55,1)-SEARCH(\">\",'CFR - XML import'!$A55,1)-2)))","v":0},{"$f":"IF(ISERROR(FIND(L$3,'CFR - XML import'!$A55)),0,VALUE(MID('CFR - XML import'!$A55,SEARCH(\">\",'CFR - XML import'!$A55,1)+1,SEARCH(\"/\",'CFR - XML import'!$A55,1)-SEARCH(\">\",'CFR - XML import'!$A55,1)-2)))","v":0},{"$f":"IF(ISERROR(FIND(M$3,'CFR - XML import'!$A55)),0,VALUE(MID('CFR - XML import'!$A55,SEARCH(\">\",'CFR - XML import'!$A55,1)+1,SEARCH(\"/\",'CFR - XML import'!$A55,1)-SEARCH(\">\",'CFR - XML import'!$A55,1)-2)))","v":0},{"$f":"IF(ISERROR(FIND(N$3,'CFR - XML import'!$A55)),0,VALUE(MID('CFR - XML import'!$A55,SEARCH(\">\",'CFR - XML import'!$A55,1)+1,SEARCH(\"/\",'CFR - XML import'!$A55,1)-SEARCH(\">\",'CFR - XML import'!$A55,1)-2)))","v":0},{"$f":"IF(ISERROR(FIND(O$3,'CFR - XML import'!$A55)),0,VALUE(MID('CFR - XML import'!$A55,SEARCH(\">\",'CFR - XML import'!$A55,1)+1,SEARCH(\"/\",'CFR - XML import'!$A55,1)-SEARCH(\">\",'CFR - XML import'!$A55,1)-2)))","v":0},{"$f":"IF(ISERROR(FIND(P$3,'CFR - XML import'!$A55)),0,VALUE(MID('CFR - XML import'!$A55,SEARCH(\">\",'CFR - XML import'!$A55,1)+1,SEARCH(\"/\",'CFR - XML import'!$A55,1)-SEARCH(\">\",'CFR - XML import'!$A55,1)-2)))","v":0},{"$f":"IF(ISERROR(FIND(Q$3,'CFR - XML import'!$A55)),0,VALUE(MID('CFR - XML import'!$A55,SEARCH(\">\",'CFR - XML import'!$A55,1)+1,SEARCH(\"/\",'CFR - XML import'!$A55,1)-SEARCH(\">\",'CFR - XML import'!$A55,1)-2)))","v":0},{"$f":"IF(ISERROR(FIND(R$3,'CFR - XML import'!$A55)),0,VALUE(MID('CFR - XML import'!$A55,SEARCH(\">\",'CFR - XML import'!$A55,1)+1,SEARCH(\"/\",'CFR - XML import'!$A55,1)-SEARCH(\">\",'CFR - XML import'!$A55,1)-2)))","v":0},{"$f":"IF(ISERROR(FIND(S$3,'CFR - XML import'!$A55)),0,VALUE(MID('CFR - XML import'!$A55,SEARCH(\">\",'CFR - XML import'!$A55,1)+1,SEARCH(\"/\",'CFR - XML import'!$A55,1)-SEARCH(\">\",'CFR - XML import'!$A55,1)-2)))","v":0},{"$f":"IF(ISERROR(FIND(T$3,'CFR - XML import'!$A55)),0,VALUE(MID('CFR - XML import'!$A55,SEARCH(\">\",'CFR - XML import'!$A55,1)+1,SEARCH(\"/\",'CFR - XML import'!$A55,1)-SEARCH(\">\",'CFR - XML import'!$A55,1)-2)))","v":0},{"$f":"IF(ISERROR(FIND(U$3,'CFR - XML import'!$A55)),0,VALUE(MID('CFR - XML import'!$A55,SEARCH(\">\",'CFR - XML import'!$A55,1)+1,SEARCH(\"/\",'CFR - XML import'!$A55,1)-SEARCH(\">\",'CFR - XML import'!$A55,1)-2)))","v":0},{"$f":"IF(ISERROR(FIND(V$3,'CFR - XML import'!$A55)),0,VALUE(MID('CFR - XML import'!$A55,SEARCH(\">\",'CFR - XML import'!$A55,1)+1,SEARCH(\"/\",'CFR - XML import'!$A55,1)-SEARCH(\">\",'CFR - XML import'!$A55,1)-2)))","v":0},{"$f":"IF(ISERROR(FIND(W$3,'CFR - XML import'!$A55)),0,VALUE(MID('CFR - XML import'!$A55,SEARCH(\">\",'CFR - XML import'!$A55,1)+1,SEARCH(\"/\",'CFR - XML import'!$A55,1)-SEARCH(\">\",'CFR - XML import'!$A55,1)-2)))","v":0},null,{"$f":"IF(ISERROR(FIND(Y$3,'CFR - XML import'!$A55)),0,VALUE(MID('CFR - XML import'!$A55,SEARCH(\">\",'CFR - XML import'!$A55,1)+1,SEARCH(\"/\",'CFR - XML import'!$A55,1)-SEARCH(\">\",'CFR - XML import'!$A55,1)-2)))","v":0},{"$f":"IF(ISERROR(FIND(Z$3,'CFR - XML import'!$A55)),0,VALUE(MID('CFR - XML import'!$A55,SEARCH(\">\",'CFR - XML import'!$A55,1)+1,SEARCH(\"/\",'CFR - XML import'!$A55,1)-SEARCH(\">\",'CFR - XML import'!$A55,1)-2)))","v":0},{"$f":"IF(ISERROR(FIND(AA$3,'CFR - XML import'!$A55)),0,VALUE(MID('CFR - XML import'!$A55,SEARCH(\">\",'CFR - XML import'!$A55,1)+1,SEARCH(\"/\",'CFR - XML import'!$A55,1)-SEARCH(\">\",'CFR - XML import'!$A55,1)-2)))","v":0},{"$f":"IF(ISERROR(FIND(AB$3,'CFR - XML import'!$A55)),0,VALUE(MID('CFR - XML import'!$A55,SEARCH(\">\",'CFR - XML import'!$A55,1)+1,SEARCH(\"/\",'CFR - XML import'!$A55,1)-SEARCH(\">\",'CFR - XML import'!$A55,1)-2)))","v":0},{"$f":"IF(ISERROR(FIND(AC$3,'CFR - XML import'!$A55)),0,VALUE(MID('CFR - XML import'!$A55,SEARCH(\">\",'CFR - XML import'!$A55,1)+1,SEARCH(\"/\",'CFR - XML import'!$A55,1)-SEARCH(\">\",'CFR - XML import'!$A55,1)-2)))","v":0},{"$f":"IF(ISERROR(FIND(AD$3,'CFR - XML import'!$A55)),0,VALUE(MID('CFR - XML import'!$A55,SEARCH(\">\",'CFR - XML import'!$A55,1)+1,SEARCH(\"/\",'CFR - XML import'!$A55,1)-SEARCH(\">\",'CFR - XML import'!$A55,1)-2)))","v":0},{"$f":"IF(ISERROR(FIND(AE$3,'CFR - XML import'!$A55)),0,VALUE(MID('CFR - XML import'!$A55,SEARCH(\">\",'CFR - XML import'!$A55,1)+1,SEARCH(\"/\",'CFR - XML import'!$A55,1)-SEARCH(\">\",'CFR - XML import'!$A55,1)-2)))","v":0},{"$f":"IF(ISERROR(FIND(AF$3,'CFR - XML import'!$A55)),0,VALUE(MID('CFR - XML import'!$A55,SEARCH(\">\",'CFR - XML import'!$A55,1)+1,SEARCH(\"/\",'CFR - XML import'!$A55,1)-SEARCH(\">\",'CFR - XML import'!$A55,1)-2)))","v":0},{"$f":"IF(ISERROR(FIND(AG$3,'CFR - XML import'!$A55)),0,VALUE(MID('CFR - XML import'!$A55,SEARCH(\">\",'CFR - XML import'!$A55,1)+1,SEARCH(\"/\",'CFR - XML import'!$A55,1)-SEARCH(\">\",'CFR - XML import'!$A55,1)-2)))","v":0},{"$f":"IF(ISERROR(FIND(AH$3,'CFR - XML import'!$A55)),0,VALUE(MID('CFR - XML import'!$A55,SEARCH(\">\",'CFR - XML import'!$A55,1)+1,SEARCH(\"/\",'CFR - XML import'!$A55,1)-SEARCH(\">\",'CFR - XML import'!$A55,1)-2)))","v":0},{"$f":"IF(ISERROR(FIND(AI$3,'CFR - XML import'!$A55)),0,VALUE(MID('CFR - XML import'!$A55,SEARCH(\">\",'CFR - XML import'!$A55,1)+1,SEARCH(\"/\",'CFR - XML import'!$A55,1)-SEARCH(\">\",'CFR - XML import'!$A55,1)-2)))","v":0},{"$f":"IF(ISERROR(FIND(AJ$3,'CFR - XML import'!$A55)),0,VALUE(MID('CFR - XML import'!$A55,SEARCH(\">\",'CFR - XML import'!$A55,1)+1,SEARCH(\"/\",'CFR - XML import'!$A55,1)-SEARCH(\">\",'CFR - XML import'!$A55,1)-2)))","v":0},{"$f":"IF(ISERROR(FIND(AK$3,'CFR - XML import'!$A55)),0,VALUE(MID('CFR - XML import'!$A55,SEARCH(\">\",'CFR - XML import'!$A55,1)+1,SEARCH(\"/\",'CFR - XML import'!$A55,1)-SEARCH(\">\",'CFR - XML import'!$A55,1)-2)))","v":0},{"$f":"IF(ISERROR(FIND(AL$3,'CFR - XML import'!$A55)),0,VALUE(MID('CFR - XML import'!$A55,SEARCH(\">\",'CFR - XML import'!$A55,1)+1,SEARCH(\"/\",'CFR - XML import'!$A55,1)-SEARCH(\">\",'CFR - XML import'!$A55,1)-2)))","v":0},{"$f":"IF(ISERROR(FIND(AM$3,'CFR - XML import'!$A55)),0,VALUE(MID('CFR - XML import'!$A55,SEARCH(\">\",'CFR - XML import'!$A55,1)+1,SEARCH(\"/\",'CFR - XML import'!$A55,1)-SEARCH(\">\",'CFR - XML import'!$A55,1)-2)))","v":0},{"$f":"IF(ISERROR(FIND(AN$3,'CFR - XML import'!$A55)),0,VALUE(MID('CFR - XML import'!$A55,SEARCH(\">\",'CFR - XML import'!$A55,1)+1,SEARCH(\"/\",'CFR - XML import'!$A55,1)-SEARCH(\">\",'CFR - XML import'!$A55,1)-2)))","v":0},{"$f":"IF(ISERROR(FIND(AO$3,'CFR - XML import'!$A55)),0,VALUE(MID('CFR - XML import'!$A55,SEARCH(\">\",'CFR - XML import'!$A55,1)+1,SEARCH(\"/\",'CFR - XML import'!$A55,1)-SEARCH(\">\",'CFR - XML import'!$A55,1)-2)))","v":0},{"$f":"IF(ISERROR(FIND(AP$3,'CFR - XML import'!$A55)),0,VALUE(MID('CFR - XML import'!$A55,SEARCH(\">\",'CFR - XML import'!$A55,1)+1,SEARCH(\"/\",'CFR - XML import'!$A55,1)-SEARCH(\">\",'CFR - XML import'!$A55,1)-2)))","v":0},{"$f":"IF(ISERROR(FIND(AQ$3,'CFR - XML import'!$A55)),0,VALUE(MID('CFR - XML import'!$A55,SEARCH(\">\",'CFR - XML import'!$A55,1)+1,SEARCH(\"/\",'CFR - XML import'!$A55,1)-SEARCH(\">\",'CFR - XML import'!$A55,1)-2)))","v":0},{"$f":"IF(ISERROR(FIND(AR$3,'CFR - XML import'!$A55)),0,VALUE(MID('CFR - XML import'!$A55,SEARCH(\">\",'CFR - XML import'!$A55,1)+1,SEARCH(\"/\",'CFR - XML import'!$A55,1)-SEARCH(\">\",'CFR - XML import'!$A55,1)-2)))","v":0},{"$f":"IF(ISERROR(FIND(AS$3,'CFR - XML import'!$A55)),0,VALUE(MID('CFR - XML import'!$A55,SEARCH(\">\",'CFR - XML import'!$A55,1)+1,SEARCH(\"/\",'CFR - XML import'!$A55,1)-SEARCH(\">\",'CFR - XML import'!$A55,1)-2)))","v":0},{"$f":"IF(ISERROR(FIND(AT$3,'CFR - XML import'!$A55)),0,VALUE(MID('CFR - XML import'!$A55,SEARCH(\">\",'CFR - XML import'!$A55,1)+1,SEARCH(\"/\",'CFR - XML import'!$A55,1)-SEARCH(\">\",'CFR - XML import'!$A55,1)-2)))","v":0},{"$f":"IF(ISERROR(FIND(AU$3,'CFR - XML import'!$A55)),0,VALUE(MID('CFR - XML import'!$A55,SEARCH(\">\",'CFR - XML import'!$A55,1)+1,SEARCH(\"/\",'CFR - XML import'!$A55,1)-SEARCH(\">\",'CFR - XML import'!$A55,1)-2)))","v":0},{"$f":"IF(ISERROR(FIND(AV$3,'CFR - XML import'!$A55)),0,VALUE(MID('CFR - XML import'!$A55,SEARCH(\">\",'CFR - XML import'!$A55,1)+1,SEARCH(\"/\",'CFR - XML import'!$A55,1)-SEARCH(\">\",'CFR - XML import'!$A55,1)-2)))","v":0},{"$f":"IF(ISERROR(FIND(AW$3,'CFR - XML import'!$A55)),0,VALUE(MID('CFR - XML import'!$A55,SEARCH(\">\",'CFR - XML import'!$A55,1)+1,SEARCH(\"/\",'CFR - XML import'!$A55,1)-SEARCH(\">\",'CFR - XML import'!$A55,1)-2)))","v":0},{"$f":"IF(ISERROR(FIND(AX$3,'CFR - XML import'!$A55)),0,VALUE(MID('CFR - XML import'!$A55,SEARCH(\">\",'CFR - XML import'!$A55,1)+1,SEARCH(\"/\",'CFR - XML import'!$A55,1)-SEARCH(\">\",'CFR - XML import'!$A55,1)-2)))","v":0},{"$f":"IF(ISERROR(FIND(AY$3,'CFR - XML import'!$A55)),0,VALUE(MID('CFR - XML import'!$A55,SEARCH(\">\",'CFR - XML import'!$A55,1)+1,SEARCH(\"/\",'CFR - XML import'!$A55,1)-SEARCH(\">\",'CFR - XML import'!$A55,1)-2)))","v":0},{"$f":"IF(ISERROR(FIND(AZ$3,'CFR - XML import'!$A55)),0,VALUE(MID('CFR - XML import'!$A55,SEARCH(\">\",'CFR - XML import'!$A55,1)+1,SEARCH(\"/\",'CFR - XML import'!$A55,1)-SEARCH(\">\",'CFR - XML import'!$A55,1)-2)))","v":0},{"$f":"IF(ISERROR(FIND(BA$3,'CFR - XML import'!$A55)),0,VALUE(MID('CFR - XML import'!$A55,SEARCH(\">\",'CFR - XML import'!$A55,1)+1,SEARCH(\"/\",'CFR - XML import'!$A55,1)-SEARCH(\">\",'CFR - XML import'!$A55,1)-2)))","v":0},{"$f":"IF(ISERROR(FIND(BB$3,'CFR - XML import'!$A55)),0,VALUE(MID('CFR - XML import'!$A55,SEARCH(\">\",'CFR - XML import'!$A55,1)+1,SEARCH(\"/\",'CFR - XML import'!$A55,1)-SEARCH(\">\",'CFR - XML import'!$A55,1)-2)))","v":0},{"$f":"IF(ISERROR(FIND(BC$3,'CFR - XML import'!$A55)),0,VALUE(MID('CFR - XML import'!$A55,SEARCH(\">\",'CFR - XML import'!$A55,1)+1,SEARCH(\"/\",'CFR - XML import'!$A55,1)-SEARCH(\">\",'CFR - XML import'!$A55,1)-2)))","v":0},{"$f":"IF(ISERROR(FIND(BD$3,'CFR - XML import'!$A55)),0,VALUE(MID('CFR - XML import'!$A55,SEARCH(\">\",'CFR - XML import'!$A55,1)+1,SEARCH(\"/\",'CFR - XML import'!$A55,1)-SEARCH(\">\",'CFR - XML import'!$A55,1)-2)))","v":0},{"$f":"IF(ISERROR(FIND(BE$3,'CFR - XML import'!$A55)),0,VALUE(MID('CFR - XML import'!$A55,SEARCH(\">\",'CFR - XML import'!$A55,1)+1,SEARCH(\"/\",'CFR - XML import'!$A55,1)-SEARCH(\">\",'CFR - XML import'!$A55,1)-2)))","v":0},{"$f":"IF(ISERROR(FIND(BF$3,'CFR - XML import'!$A55)),0,VALUE(MID('CFR - XML import'!$A55,SEARCH(\">\",'CFR - XML import'!$A55,1)+1,SEARCH(\"/\",'CFR - XML import'!$A55,1)-SEARCH(\">\",'CFR - XML import'!$A55,1)-2)))","v":0},{"$f":"IF(ISERROR(FIND(BG$3,'CFR - XML import'!$A55)),0,VALUE(MID('CFR - XML import'!$A55,SEARCH(\">\",'CFR - XML import'!$A55,1)+1,SEARCH(\"/\",'CFR - XML import'!$A55,1)-SEARCH(\">\",'CFR - XML import'!$A55,1)-2)))","v":0},{"$f":"IF(ISERROR(FIND(BH$3,'CFR - XML import'!$A55)),0,VALUE(MID('CFR - XML import'!$A55,SEARCH(\">\",'CFR - XML import'!$A55,1)+1,SEARCH(\"/\",'CFR - XML import'!$A55,1)-SEARCH(\">\",'CFR - XML import'!$A55,1)-2)))","v":0},{"$f":"IF(ISERROR(FIND(BI$3,'CFR - XML import'!$A55)),0,VALUE(MID('CFR - XML import'!$A55,SEARCH(\">\",'CFR - XML import'!$A55,1)+1,SEARCH(\"/\",'CFR - XML import'!$A55,1)-SEARCH(\">\",'CFR - XML import'!$A55,1)-2)))","v":0},{"$f":"IF(ISERROR(FIND(BJ$3,'CFR - XML import'!$A55)),0,VALUE(MID('CFR - XML import'!$A55,SEARCH(\">\",'CFR - XML import'!$A55,1)+1,SEARCH(\"/\",'CFR - XML import'!$A55,1)-SEARCH(\">\",'CFR - XML import'!$A55,1)-2)))","v":0},{"$f":"IF(ISERROR(FIND(BK$3,'CFR - XML import'!$A55)),0,VALUE(MID('CFR - XML import'!$A55,SEARCH(\">\",'CFR - XML import'!$A55,1)+1,SEARCH(\"/\",'CFR - XML import'!$A55,1)-SEARCH(\">\",'CFR - XML import'!$A55,1)-2)))","v":0},{"$f":"IF(ISERROR(FIND(BL$3,'CFR - XML import'!$A55)),0,VALUE(MID('CFR - XML import'!$A55,SEARCH(\">\",'CFR - XML import'!$A55,1)+1,SEARCH(\"/\",'CFR - XML import'!$A55,1)-SEARCH(\">\",'CFR - XML import'!$A55,1)-2)))","v":0},{"$f":"IF(ISERROR(FIND(BM$3,'CFR - XML import'!$A55)),0,VALUE(MID('CFR - XML import'!$A55,SEARCH(\">\",'CFR - XML import'!$A55,1)+1,SEARCH(\"/\",'CFR - XML import'!$A55,1)-SEARCH(\">\",'CFR - XML import'!$A55,1)-2)))","v":0},{"$f":"IF(ISERROR(FIND(BN$3,'CFR - XML import'!$A55)),0,VALUE(MID('CFR - XML import'!$A55,SEARCH(\">\",'CFR - XML import'!$A55,1)+1,SEARCH(\"/\",'CFR - XML import'!$A55,1)-SEARCH(\">\",'CFR - XML import'!$A55,1)-2)))","v":0},{"$f":"IF(ISERROR(FIND(BO$3,'CFR - XML import'!$A55)),0,VALUE(MID('CFR - XML import'!$A55,SEARCH(\">\",'CFR - XML import'!$A55,1)+1,SEARCH(\"/\",'CFR - XML import'!$A55,1)-SEARCH(\">\",'CFR - XML import'!$A55,1)-2)))","v":0},{"$f":"IF(ISERROR(FIND(BP$3,'CFR - XML import'!$A55)),0,VALUE(MID('CFR - XML import'!$A55,SEARCH(\">\",'CFR - XML import'!$A55,1)+1,SEARCH(\"/\",'CFR - XML import'!$A55,1)-SEARCH(\">\",'CFR - XML import'!$A55,1)-2)))","v":0},{"$f":"IF(ISERROR(FIND(BQ$3,'CFR - XML import'!$A55)),0,VALUE(MID('CFR - XML import'!$A55,SEARCH(\">\",'CFR - XML import'!$A55,1)+1,SEARCH(\"/\",'CFR - XML import'!$A55,1)-SEARCH(\">\",'CFR - XML import'!$A55,1)-2)))","v":0},{"$f":"IF(ISERROR(FIND(BR$3,'CFR - XML import'!$A55)),0,VALUE(MID('CFR - XML import'!$A55,SEARCH(\">\",'CFR - XML import'!$A55,1)+1,SEARCH(\"/\",'CFR - XML import'!$A55,1)-SEARCH(\">\",'CFR - XML import'!$A55,1)-2)))","v":0},{"$f":"IF(ISERROR(FIND(BS$3,'CFR - XML import'!$A55)),0,VALUE(MID('CFR - XML import'!$A55,SEARCH(\">\",'CFR - XML import'!$A55,1)+1,SEARCH(\"/\",'CFR - XML import'!$A55,1)-SEARCH(\">\",'CFR - XML import'!$A55,1)-2)))","v":0},{"$f":"IF(ISERROR(FIND(BT$3,'CFR - XML import'!$A55)),0,VALUE(MID('CFR - XML import'!$A55,SEARCH(\">\",'CFR - XML import'!$A55,1)+1,SEARCH(\"/\",'CFR - XML import'!$A55,1)-SEARCH(\">\",'CFR - XML import'!$A55,1)-2)))","v":0},{"$f":"IF(ISERROR(FIND(BU$3,'CFR - XML import'!$A55)),0,VALUE(MID('CFR - XML import'!$A55,SEARCH(\">\",'CFR - XML import'!$A55,1)+1,SEARCH(\"/\",'CFR - XML import'!$A55,1)-SEARCH(\">\",'CFR - XML import'!$A55,1)-2)))","v":0},{"$f":"IF(ISERROR(FIND(BV$3,'CFR - XML import'!$A55)),0,VALUE(MID('CFR - XML import'!$A55,SEARCH(\">\",'CFR - XML import'!$A55,1)+1,SEARCH(\"/\",'CFR - XML import'!$A55,1)-SEARCH(\">\",'CFR - XML import'!$A55,1)-2)))","v":0},{"$f":"IF(ISERROR(FIND(BW$3,'CFR - XML import'!$A55)),0,VALUE(MID('CFR - XML import'!$A55,SEARCH(\">\",'CFR - XML import'!$A55,1)+1,SEARCH(\"/\",'CFR - XML import'!$A55,1)-SEARCH(\">\",'CFR - XML import'!$A55,1)-2)))","v":0},{"$f":"IF(ISERROR(FIND(BX$3,'CFR - XML import'!$A55)),0,VALUE(MID('CFR - XML import'!$A55,SEARCH(\">\",'CFR - XML import'!$A55,1)+1,SEARCH(\"/\",'CFR - XML import'!$A55,1)-SEARCH(\">\",'CFR - XML import'!$A55,1)-2)))","v":0},{"$f":"IF(ISERROR(FIND(BY$3,'CFR - XML import'!$A55)),0,VALUE(MID('CFR - XML import'!$A55,SEARCH(\">\",'CFR - XML import'!$A55,1)+1,SEARCH(\"/\",'CFR - XML import'!$A55,1)-SEARCH(\">\",'CFR - XML import'!$A55,1)-2)))","v":0},{"$f":"IF(ISERROR(FIND(BZ$3,'CFR - XML import'!$A55)),0,VALUE(MID('CFR - XML import'!$A55,SEARCH(\">\",'CFR - XML import'!$A55,1)+1,SEARCH(\"/\",'CFR - XML import'!$A55,1)-SEARCH(\">\",'CFR - XML import'!$A55,1)-2)))","v":0},null,null,null,null,null,null,{"$f":"IF(ISERROR(IF(MID('CFR - XML import'!$A55,LEN($CF$4)+1,LEN('CFR - XML import'!$A55)-(2*LEN($CF$4)+1))=\"RMMS\",1,IF(MID('CFR - XML import'!$A55,LEN(\"    <InputSystem>\")+1,LEN('CFR - XML import'!$A55)-(LEN(\"    <InputSystem>\")+LEN($CF$4)+1))=\"SIMS\",2,0))),0,IF(MID('CFR - XML import'!$A55,LEN($CF$4)+1,LEN('CFR - XML import'!$A55)-(2*LEN($CF$4)+1))=\"RMMS\",1,IF(MID('CFR - XML import'!$A55,LEN(\"    <InputSystem>\")+1,LEN('CFR - XML import'!$A55)-(LEN(\"    <InputSystem>\")+LEN($CF$4)+1))=\"SIMS\",2,0)))","v":0},{"$f":"IF(ISERROR(FIND(CH$3,'CFR - XML import'!$A55)),0,MID('CFR - XML import'!$A55,SEARCH(\">\",'CFR - XML import'!$A55,1)+1,SEARCH(\"/\",'CFR - XML import'!$A55,1)-SEARCH(\">\",'CFR - XML import'!$A55,1)-2))","v":0},{"$f":"IF(ISERROR(FIND(CI$3,'CFR - XML import'!$A55)),0,MID('CFR - XML import'!$A55,SEARCH(\">\",'CFR - XML import'!$A55,1)+1,SEARCH(\"/\",'CFR - XML import'!$A55,1)-SEARCH(\">\",'CFR - XML import'!$A55,1)-2))","v":0},{"$f":"IF(ISERROR(FIND(CJ$3,'CFR - XML import'!$A55)),0,MID('CFR - XML import'!$A55,SEARCH(\">\",'CFR - XML import'!$A55,1)+1,SEARCH(\"/\",'CFR - XML import'!$A55,1)-SEARCH(\">\",'CFR - XML import'!$A55,1)-2))","v":0},{"$f":"IF(ISERROR(FIND(CK$3,'CFR - XML import'!$A55)),0,MID('CFR - XML import'!$A55,SEARCH(\">\",'CFR - XML import'!$A55,1)+1,SEARCH(\"/\",'CFR - XML import'!$A55,1)-SEARCH(\">\",'CFR - XML import'!$A55,1)-2))","v":0},{"$f":"IF(ISERROR(FIND(CL$3,'CFR - XML import'!$A55)),0,MID('CFR - XML import'!$A55,SEARCH(\">\",'CFR - XML import'!$A55,1)+1,SEARCH(\"/\",'CFR - XML import'!$A55,1)-SEARCH(\">\",'CFR - XML import'!$A55,1)-2))","v":0}]
[{"$f":"IF(AND('CFR - XML import'!A56<>\"\",LEFT('CFR - XML import'!A56,1)<>\"<\",LEFT('CFR - XML import'!A56,3)<>\"  <\",LEFT('CFR - XML import'!A56,5)<>\"    <\",LEFT('CFR - XML import'!A56,7)<>\"      <\",LEFT('CFR - XML import'!A56,9)<>\"        <\",$B$1=\"SIMS\"),'CFR - XML import'!A56,IF(AND(LEFT('CFR - XML import'!A56,9)=\"<Details>\",$B$1=\"RM\"),'CFR - XML import'!A56,\"\"))","v":""},{"$f":"IF(ISERROR(FIND(B$3,'CFR - XML import'!$A56)),0,VALUE(MID('CFR - XML import'!$A56,SEARCH(\">\",'CFR - XML import'!$A56,1)+1,SEARCH(\"/\",'CFR - XML import'!$A56,1)-SEARCH(\">\",'CFR - XML import'!$A56,1)-2)))","v":0},null,{"$f":"IF(ISERROR(FIND(D$3,'CFR - XML import'!$A56)),0,MID('CFR - XML import'!$A56,SEARCH(\">\",'CFR - XML import'!$A56,1)+1,SEARCH(\"/\",'CFR - XML import'!$A56,1)-SEARCH(\">\",'CFR - XML import'!$A56,1)-2))","v":0},{"$f":"IF(ISERROR(FIND(E$3,'CFR - XML import'!$A56)),0,MID('CFR - XML import'!$A56,SEARCH(\">\",'CFR - XML import'!$A56,1)+1,SEARCH(\"/\",'CFR - XML import'!$A56,1)-SEARCH(\">\",'CFR - XML import'!$A56,1)-2))","v":0},{"$f":"IF($B$1=\"SIMS\",IF(ISERROR(FIND(F$3,'CFR - XML import'!$A56)),0,VALUE(MID('CFR - XML import'!$A56,15,10))),IF(ISERROR(FIND(F$3,'CFR - XML import'!$A56)),0,VALUE(MID('CFR - XML import'!$A56,11,10))))","v":"00:00:00"},{"$f":"IF(ISERROR(FIND(G$3,'CFR - XML import'!$A56)),0,VALUE(MID('CFR - XML import'!$A56,SEARCH(\">\",'CFR - XML import'!$A56,1)+1,SEARCH(\"/\",'CFR - XML import'!$A56,1)-SEARCH(\">\",'CFR - XML import'!$A56,1)-2)))","v":0},{"$f":"IF(ISERROR(FIND(H$3,'CFR - XML import'!$A56)),0,VALUE(MID('CFR - XML import'!$A56,SEARCH(\">\",'CFR - XML import'!$A56,1)+1,SEARCH(\"/\",'CFR - XML import'!$A56,1)-SEARCH(\">\",'CFR - XML import'!$A56,1)-2)))","v":0},{"$f":"IF(ISERROR(FIND(I$3,'CFR - XML import'!$A56)),0,VALUE(MID('CFR - XML import'!$A56,SEARCH(\">\",'CFR - XML import'!$A56,1)+1,SEARCH(\"/\",'CFR - XML import'!$A56,1)-SEARCH(\">\",'CFR - XML import'!$A56,1)-2)))","v":0},{"$f":"IF(ISERROR(FIND(J$3,'CFR - XML import'!$A56)),0,VALUE(MID('CFR - XML import'!$A56,SEARCH(\">\",'CFR - XML import'!$A56,1)+1,SEARCH(\"/\",'CFR - XML import'!$A56,1)-SEARCH(\">\",'CFR - XML import'!$A56,1)-2)))","v":0},{"$f":"IF(ISERROR(FIND(K$3,'CFR - XML import'!$A56)),0,VALUE(MID('CFR - XML import'!$A56,SEARCH(\">\",'CFR - XML import'!$A56,1)+1,SEARCH(\"/\",'CFR - XML import'!$A56,1)-SEARCH(\">\",'CFR - XML import'!$A56,1)-2)))","v":0},{"$f":"IF(ISERROR(FIND(L$3,'CFR - XML import'!$A56)),0,VALUE(MID('CFR - XML import'!$A56,SEARCH(\">\",'CFR - XML import'!$A56,1)+1,SEARCH(\"/\",'CFR - XML import'!$A56,1)-SEARCH(\">\",'CFR - XML import'!$A56,1)-2)))","v":0},{"$f":"IF(ISERROR(FIND(M$3,'CFR - XML import'!$A56)),0,VALUE(MID('CFR - XML import'!$A56,SEARCH(\">\",'CFR - XML import'!$A56,1)+1,SEARCH(\"/\",'CFR - XML import'!$A56,1)-SEARCH(\">\",'CFR - XML import'!$A56,1)-2)))","v":0},{"$f":"IF(ISERROR(FIND(N$3,'CFR - XML import'!$A56)),0,VALUE(MID('CFR - XML import'!$A56,SEARCH(\">\",'CFR - XML import'!$A56,1)+1,SEARCH(\"/\",'CFR - XML import'!$A56,1)-SEARCH(\">\",'CFR - XML import'!$A56,1)-2)))","v":0},{"$f":"IF(ISERROR(FIND(O$3,'CFR - XML import'!$A56)),0,VALUE(MID('CFR - XML import'!$A56,SEARCH(\">\",'CFR - XML import'!$A56,1)+1,SEARCH(\"/\",'CFR - XML import'!$A56,1)-SEARCH(\">\",'CFR - XML import'!$A56,1)-2)))","v":0},{"$f":"IF(ISERROR(FIND(P$3,'CFR - XML import'!$A56)),0,VALUE(MID('CFR - XML import'!$A56,SEARCH(\">\",'CFR - XML import'!$A56,1)+1,SEARCH(\"/\",'CFR - XML import'!$A56,1)-SEARCH(\">\",'CFR - XML import'!$A56,1)-2)))","v":0},{"$f":"IF(ISERROR(FIND(Q$3,'CFR - XML import'!$A56)),0,VALUE(MID('CFR - XML import'!$A56,SEARCH(\">\",'CFR - XML import'!$A56,1)+1,SEARCH(\"/\",'CFR - XML import'!$A56,1)-SEARCH(\">\",'CFR - XML import'!$A56,1)-2)))","v":0},{"$f":"IF(ISERROR(FIND(R$3,'CFR - XML import'!$A56)),0,VALUE(MID('CFR - XML import'!$A56,SEARCH(\">\",'CFR - XML import'!$A56,1)+1,SEARCH(\"/\",'CFR - XML import'!$A56,1)-SEARCH(\">\",'CFR - XML import'!$A56,1)-2)))","v":0},{"$f":"IF(ISERROR(FIND(S$3,'CFR - XML import'!$A56)),0,VALUE(MID('CFR - XML import'!$A56,SEARCH(\">\",'CFR - XML import'!$A56,1)+1,SEARCH(\"/\",'CFR - XML import'!$A56,1)-SEARCH(\">\",'CFR - XML import'!$A56,1)-2)))","v":0},{"$f":"IF(ISERROR(FIND(T$3,'CFR - XML import'!$A56)),0,VALUE(MID('CFR - XML import'!$A56,SEARCH(\">\",'CFR - XML import'!$A56,1)+1,SEARCH(\"/\",'CFR - XML import'!$A56,1)-SEARCH(\">\",'CFR - XML import'!$A56,1)-2)))","v":0},{"$f":"IF(ISERROR(FIND(U$3,'CFR - XML import'!$A56)),0,VALUE(MID('CFR - XML import'!$A56,SEARCH(\">\",'CFR - XML import'!$A56,1)+1,SEARCH(\"/\",'CFR - XML import'!$A56,1)-SEARCH(\">\",'CFR - XML import'!$A56,1)-2)))","v":0},{"$f":"IF(ISERROR(FIND(V$3,'CFR - XML import'!$A56)),0,VALUE(MID('CFR - XML import'!$A56,SEARCH(\">\",'CFR - XML import'!$A56,1)+1,SEARCH(\"/\",'CFR - XML import'!$A56,1)-SEARCH(\">\",'CFR - XML import'!$A56,1)-2)))","v":0},{"$f":"IF(ISERROR(FIND(W$3,'CFR - XML import'!$A56)),0,VALUE(MID('CFR - XML import'!$A56,SEARCH(\">\",'CFR - XML import'!$A56,1)+1,SEARCH(\"/\",'CFR - XML import'!$A56,1)-SEARCH(\">\",'CFR - XML import'!$A56,1)-2)))","v":0},null,{"$f":"IF(ISERROR(FIND(Y$3,'CFR - XML import'!$A56)),0,VALUE(MID('CFR - XML import'!$A56,SEARCH(\">\",'CFR - XML import'!$A56,1)+1,SEARCH(\"/\",'CFR - XML import'!$A56,1)-SEARCH(\">\",'CFR - XML import'!$A56,1)-2)))","v":0},{"$f":"IF(ISERROR(FIND(Z$3,'CFR - XML import'!$A56)),0,VALUE(MID('CFR - XML import'!$A56,SEARCH(\">\",'CFR - XML import'!$A56,1)+1,SEARCH(\"/\",'CFR - XML import'!$A56,1)-SEARCH(\">\",'CFR - XML import'!$A56,1)-2)))","v":0},{"$f":"IF(ISERROR(FIND(AA$3,'CFR - XML import'!$A56)),0,VALUE(MID('CFR - XML import'!$A56,SEARCH(\">\",'CFR - XML import'!$A56,1)+1,SEARCH(\"/\",'CFR - XML import'!$A56,1)-SEARCH(\">\",'CFR - XML import'!$A56,1)-2)))","v":0},{"$f":"IF(ISERROR(FIND(AB$3,'CFR - XML import'!$A56)),0,VALUE(MID('CFR - XML import'!$A56,SEARCH(\">\",'CFR - XML import'!$A56,1)+1,SEARCH(\"/\",'CFR - XML import'!$A56,1)-SEARCH(\">\",'CFR - XML import'!$A56,1)-2)))","v":0},{"$f":"IF(ISERROR(FIND(AC$3,'CFR - XML import'!$A56)),0,VALUE(MID('CFR - XML import'!$A56,SEARCH(\">\",'CFR - XML import'!$A56,1)+1,SEARCH(\"/\",'CFR - XML import'!$A56,1)-SEARCH(\">\",'CFR - XML import'!$A56,1)-2)))","v":0},{"$f":"IF(ISERROR(FIND(AD$3,'CFR - XML import'!$A56)),0,VALUE(MID('CFR - XML import'!$A56,SEARCH(\">\",'CFR - XML import'!$A56,1)+1,SEARCH(\"/\",'CFR - XML import'!$A56,1)-SEARCH(\">\",'CFR - XML import'!$A56,1)-2)))","v":0},{"$f":"IF(ISERROR(FIND(AE$3,'CFR - XML import'!$A56)),0,VALUE(MID('CFR - XML import'!$A56,SEARCH(\">\",'CFR - XML import'!$A56,1)+1,SEARCH(\"/\",'CFR - XML import'!$A56,1)-SEARCH(\">\",'CFR - XML import'!$A56,1)-2)))","v":0},{"$f":"IF(ISERROR(FIND(AF$3,'CFR - XML import'!$A56)),0,VALUE(MID('CFR - XML import'!$A56,SEARCH(\">\",'CFR - XML import'!$A56,1)+1,SEARCH(\"/\",'CFR - XML import'!$A56,1)-SEARCH(\">\",'CFR - XML import'!$A56,1)-2)))","v":0},{"$f":"IF(ISERROR(FIND(AG$3,'CFR - XML import'!$A56)),0,VALUE(MID('CFR - XML import'!$A56,SEARCH(\">\",'CFR - XML import'!$A56,1)+1,SEARCH(\"/\",'CFR - XML import'!$A56,1)-SEARCH(\">\",'CFR - XML import'!$A56,1)-2)))","v":0},{"$f":"IF(ISERROR(FIND(AH$3,'CFR - XML import'!$A56)),0,VALUE(MID('CFR - XML import'!$A56,SEARCH(\">\",'CFR - XML import'!$A56,1)+1,SEARCH(\"/\",'CFR - XML import'!$A56,1)-SEARCH(\">\",'CFR - XML import'!$A56,1)-2)))","v":0},{"$f":"IF(ISERROR(FIND(AI$3,'CFR - XML import'!$A56)),0,VALUE(MID('CFR - XML import'!$A56,SEARCH(\">\",'CFR - XML import'!$A56,1)+1,SEARCH(\"/\",'CFR - XML import'!$A56,1)-SEARCH(\">\",'CFR - XML import'!$A56,1)-2)))","v":0},{"$f":"IF(ISERROR(FIND(AJ$3,'CFR - XML import'!$A56)),0,VALUE(MID('CFR - XML import'!$A56,SEARCH(\">\",'CFR - XML import'!$A56,1)+1,SEARCH(\"/\",'CFR - XML import'!$A56,1)-SEARCH(\">\",'CFR - XML import'!$A56,1)-2)))","v":0},{"$f":"IF(ISERROR(FIND(AK$3,'CFR - XML import'!$A56)),0,VALUE(MID('CFR - XML import'!$A56,SEARCH(\">\",'CFR - XML import'!$A56,1)+1,SEARCH(\"/\",'CFR - XML import'!$A56,1)-SEARCH(\">\",'CFR - XML import'!$A56,1)-2)))","v":0},{"$f":"IF(ISERROR(FIND(AL$3,'CFR - XML import'!$A56)),0,VALUE(MID('CFR - XML import'!$A56,SEARCH(\">\",'CFR - XML import'!$A56,1)+1,SEARCH(\"/\",'CFR - XML import'!$A56,1)-SEARCH(\">\",'CFR - XML import'!$A56,1)-2)))","v":0},{"$f":"IF(ISERROR(FIND(AM$3,'CFR - XML import'!$A56)),0,VALUE(MID('CFR - XML import'!$A56,SEARCH(\">\",'CFR - XML import'!$A56,1)+1,SEARCH(\"/\",'CFR - XML import'!$A56,1)-SEARCH(\">\",'CFR - XML import'!$A56,1)-2)))","v":0},{"$f":"IF(ISERROR(FIND(AN$3,'CFR - XML import'!$A56)),0,VALUE(MID('CFR - XML import'!$A56,SEARCH(\">\",'CFR - XML import'!$A56,1)+1,SEARCH(\"/\",'CFR - XML import'!$A56,1)-SEARCH(\">\",'CFR - XML import'!$A56,1)-2)))","v":0},{"$f":"IF(ISERROR(FIND(AO$3,'CFR - XML import'!$A56)),0,VALUE(MID('CFR - XML import'!$A56,SEARCH(\">\",'CFR - XML import'!$A56,1)+1,SEARCH(\"/\",'CFR - XML import'!$A56,1)-SEARCH(\">\",'CFR - XML import'!$A56,1)-2)))","v":0},{"$f":"IF(ISERROR(FIND(AP$3,'CFR - XML import'!$A56)),0,VALUE(MID('CFR - XML import'!$A56,SEARCH(\">\",'CFR - XML import'!$A56,1)+1,SEARCH(\"/\",'CFR - XML import'!$A56,1)-SEARCH(\">\",'CFR - XML import'!$A56,1)-2)))","v":0},{"$f":"IF(ISERROR(FIND(AQ$3,'CFR - XML import'!$A56)),0,VALUE(MID('CFR - XML import'!$A56,SEARCH(\">\",'CFR - XML import'!$A56,1)+1,SEARCH(\"/\",'CFR - XML import'!$A56,1)-SEARCH(\">\",'CFR - XML import'!$A56,1)-2)))","v":0},{"$f":"IF(ISERROR(FIND(AR$3,'CFR - XML import'!$A56)),0,VALUE(MID('CFR - XML import'!$A56,SEARCH(\">\",'CFR - XML import'!$A56,1)+1,SEARCH(\"/\",'CFR - XML import'!$A56,1)-SEARCH(\">\",'CFR - XML import'!$A56,1)-2)))","v":0},{"$f":"IF(ISERROR(FIND(AS$3,'CFR - XML import'!$A56)),0,VALUE(MID('CFR - XML import'!$A56,SEARCH(\">\",'CFR - XML import'!$A56,1)+1,SEARCH(\"/\",'CFR - XML import'!$A56,1)-SEARCH(\">\",'CFR - XML import'!$A56,1)-2)))","v":0},{"$f":"IF(ISERROR(FIND(AT$3,'CFR - XML import'!$A56)),0,VALUE(MID('CFR - XML import'!$A56,SEARCH(\">\",'CFR - XML import'!$A56,1)+1,SEARCH(\"/\",'CFR - XML import'!$A56,1)-SEARCH(\">\",'CFR - XML import'!$A56,1)-2)))","v":0},{"$f":"IF(ISERROR(FIND(AU$3,'CFR - XML import'!$A56)),0,VALUE(MID('CFR - XML import'!$A56,SEARCH(\">\",'CFR - XML import'!$A56,1)+1,SEARCH(\"/\",'CFR - XML import'!$A56,1)-SEARCH(\">\",'CFR - XML import'!$A56,1)-2)))","v":0},{"$f":"IF(ISERROR(FIND(AV$3,'CFR - XML import'!$A56)),0,VALUE(MID('CFR - XML import'!$A56,SEARCH(\">\",'CFR - XML import'!$A56,1)+1,SEARCH(\"/\",'CFR - XML import'!$A56,1)-SEARCH(\">\",'CFR - XML import'!$A56,1)-2)))","v":0},{"$f":"IF(ISERROR(FIND(AW$3,'CFR - XML import'!$A56)),0,VALUE(MID('CFR - XML import'!$A56,SEARCH(\">\",'CFR - XML import'!$A56,1)+1,SEARCH(\"/\",'CFR - XML import'!$A56,1)-SEARCH(\">\",'CFR - XML import'!$A56,1)-2)))","v":0},{"$f":"IF(ISERROR(FIND(AX$3,'CFR - XML import'!$A56)),0,VALUE(MID('CFR - XML import'!$A56,SEARCH(\">\",'CFR - XML import'!$A56,1)+1,SEARCH(\"/\",'CFR - XML import'!$A56,1)-SEARCH(\">\",'CFR - XML import'!$A56,1)-2)))","v":0},{"$f":"IF(ISERROR(FIND(AY$3,'CFR - XML import'!$A56)),0,VALUE(MID('CFR - XML import'!$A56,SEARCH(\">\",'CFR - XML import'!$A56,1)+1,SEARCH(\"/\",'CFR - XML import'!$A56,1)-SEARCH(\">\",'CFR - XML import'!$A56,1)-2)))","v":0},{"$f":"IF(ISERROR(FIND(AZ$3,'CFR - XML import'!$A56)),0,VALUE(MID('CFR - XML import'!$A56,SEARCH(\">\",'CFR - XML import'!$A56,1)+1,SEARCH(\"/\",'CFR - XML import'!$A56,1)-SEARCH(\">\",'CFR - XML import'!$A56,1)-2)))","v":0},{"$f":"IF(ISERROR(FIND(BA$3,'CFR - XML import'!$A56)),0,VALUE(MID('CFR - XML import'!$A56,SEARCH(\">\",'CFR - XML import'!$A56,1)+1,SEARCH(\"/\",'CFR - XML import'!$A56,1)-SEARCH(\">\",'CFR - XML import'!$A56,1)-2)))","v":0},{"$f":"IF(ISERROR(FIND(BB$3,'CFR - XML import'!$A56)),0,VALUE(MID('CFR - XML import'!$A56,SEARCH(\">\",'CFR - XML import'!$A56,1)+1,SEARCH(\"/\",'CFR - XML import'!$A56,1)-SEARCH(\">\",'CFR - XML import'!$A56,1)-2)))","v":0},{"$f":"IF(ISERROR(FIND(BC$3,'CFR - XML import'!$A56)),0,VALUE(MID('CFR - XML import'!$A56,SEARCH(\">\",'CFR - XML import'!$A56,1)+1,SEARCH(\"/\",'CFR - XML import'!$A56,1)-SEARCH(\">\",'CFR - XML import'!$A56,1)-2)))","v":0},{"$f":"IF(ISERROR(FIND(BD$3,'CFR - XML import'!$A56)),0,VALUE(MID('CFR - XML import'!$A56,SEARCH(\">\",'CFR - XML import'!$A56,1)+1,SEARCH(\"/\",'CFR - XML import'!$A56,1)-SEARCH(\">\",'CFR - XML import'!$A56,1)-2)))","v":0},{"$f":"IF(ISERROR(FIND(BE$3,'CFR - XML import'!$A56)),0,VALUE(MID('CFR - XML import'!$A56,SEARCH(\">\",'CFR - XML import'!$A56,1)+1,SEARCH(\"/\",'CFR - XML import'!$A56,1)-SEARCH(\">\",'CFR - XML import'!$A56,1)-2)))","v":0},{"$f":"IF(ISERROR(FIND(BF$3,'CFR - XML import'!$A56)),0,VALUE(MID('CFR - XML import'!$A56,SEARCH(\">\",'CFR - XML import'!$A56,1)+1,SEARCH(\"/\",'CFR - XML import'!$A56,1)-SEARCH(\">\",'CFR - XML import'!$A56,1)-2)))","v":0},{"$f":"IF(ISERROR(FIND(BG$3,'CFR - XML import'!$A56)),0,VALUE(MID('CFR - XML import'!$A56,SEARCH(\">\",'CFR - XML import'!$A56,1)+1,SEARCH(\"/\",'CFR - XML import'!$A56,1)-SEARCH(\">\",'CFR - XML import'!$A56,1)-2)))","v":0},{"$f":"IF(ISERROR(FIND(BH$3,'CFR - XML import'!$A56)),0,VALUE(MID('CFR - XML import'!$A56,SEARCH(\">\",'CFR - XML import'!$A56,1)+1,SEARCH(\"/\",'CFR - XML import'!$A56,1)-SEARCH(\">\",'CFR - XML import'!$A56,1)-2)))","v":0},{"$f":"IF(ISERROR(FIND(BI$3,'CFR - XML import'!$A56)),0,VALUE(MID('CFR - XML import'!$A56,SEARCH(\">\",'CFR - XML import'!$A56,1)+1,SEARCH(\"/\",'CFR - XML import'!$A56,1)-SEARCH(\">\",'CFR - XML import'!$A56,1)-2)))","v":0},{"$f":"IF(ISERROR(FIND(BJ$3,'CFR - XML import'!$A56)),0,VALUE(MID('CFR - XML import'!$A56,SEARCH(\">\",'CFR - XML import'!$A56,1)+1,SEARCH(\"/\",'CFR - XML import'!$A56,1)-SEARCH(\">\",'CFR - XML import'!$A56,1)-2)))","v":0},{"$f":"IF(ISERROR(FIND(BK$3,'CFR - XML import'!$A56)),0,VALUE(MID('CFR - XML import'!$A56,SEARCH(\">\",'CFR - XML import'!$A56,1)+1,SEARCH(\"/\",'CFR - XML import'!$A56,1)-SEARCH(\">\",'CFR - XML import'!$A56,1)-2)))","v":0},{"$f":"IF(ISERROR(FIND(BL$3,'CFR - XML import'!$A56)),0,VALUE(MID('CFR - XML import'!$A56,SEARCH(\">\",'CFR - XML import'!$A56,1)+1,SEARCH(\"/\",'CFR - XML import'!$A56,1)-SEARCH(\">\",'CFR - XML import'!$A56,1)-2)))","v":0},{"$f":"IF(ISERROR(FIND(BM$3,'CFR - XML import'!$A56)),0,VALUE(MID('CFR - XML import'!$A56,SEARCH(\">\",'CFR - XML import'!$A56,1)+1,SEARCH(\"/\",'CFR - XML import'!$A56,1)-SEARCH(\">\",'CFR - XML import'!$A56,1)-2)))","v":0},{"$f":"IF(ISERROR(FIND(BN$3,'CFR - XML import'!$A56)),0,VALUE(MID('CFR - XML import'!$A56,SEARCH(\">\",'CFR - XML import'!$A56,1)+1,SEARCH(\"/\",'CFR - XML import'!$A56,1)-SEARCH(\">\",'CFR - XML import'!$A56,1)-2)))","v":0},{"$f":"IF(ISERROR(FIND(BO$3,'CFR - XML import'!$A56)),0,VALUE(MID('CFR - XML import'!$A56,SEARCH(\">\",'CFR - XML import'!$A56,1)+1,SEARCH(\"/\",'CFR - XML import'!$A56,1)-SEARCH(\">\",'CFR - XML import'!$A56,1)-2)))","v":0},{"$f":"IF(ISERROR(FIND(BP$3,'CFR - XML import'!$A56)),0,VALUE(MID('CFR - XML import'!$A56,SEARCH(\">\",'CFR - XML import'!$A56,1)+1,SEARCH(\"/\",'CFR - XML import'!$A56,1)-SEARCH(\">\",'CFR - XML import'!$A56,1)-2)))","v":0},{"$f":"IF(ISERROR(FIND(BQ$3,'CFR - XML import'!$A56)),0,VALUE(MID('CFR - XML import'!$A56,SEARCH(\">\",'CFR - XML import'!$A56,1)+1,SEARCH(\"/\",'CFR - XML import'!$A56,1)-SEARCH(\">\",'CFR - XML import'!$A56,1)-2)))","v":0},{"$f":"IF(ISERROR(FIND(BR$3,'CFR - XML import'!$A56)),0,VALUE(MID('CFR - XML import'!$A56,SEARCH(\">\",'CFR - XML import'!$A56,1)+1,SEARCH(\"/\",'CFR - XML import'!$A56,1)-SEARCH(\">\",'CFR - XML import'!$A56,1)-2)))","v":0},{"$f":"IF(ISERROR(FIND(BS$3,'CFR - XML import'!$A56)),0,VALUE(MID('CFR - XML import'!$A56,SEARCH(\">\",'CFR - XML import'!$A56,1)+1,SEARCH(\"/\",'CFR - XML import'!$A56,1)-SEARCH(\">\",'CFR - XML import'!$A56,1)-2)))","v":0},{"$f":"IF(ISERROR(FIND(BT$3,'CFR - XML import'!$A56)),0,VALUE(MID('CFR - XML import'!$A56,SEARCH(\">\",'CFR - XML import'!$A56,1)+1,SEARCH(\"/\",'CFR - XML import'!$A56,1)-SEARCH(\">\",'CFR - XML import'!$A56,1)-2)))","v":0},{"$f":"IF(ISERROR(FIND(BU$3,'CFR - XML import'!$A56)),0,VALUE(MID('CFR - XML import'!$A56,SEARCH(\">\",'CFR - XML import'!$A56,1)+1,SEARCH(\"/\",'CFR - XML import'!$A56,1)-SEARCH(\">\",'CFR - XML import'!$A56,1)-2)))","v":0},{"$f":"IF(ISERROR(FIND(BV$3,'CFR - XML import'!$A56)),0,VALUE(MID('CFR - XML import'!$A56,SEARCH(\">\",'CFR - XML import'!$A56,1)+1,SEARCH(\"/\",'CFR - XML import'!$A56,1)-SEARCH(\">\",'CFR - XML import'!$A56,1)-2)))","v":0},{"$f":"IF(ISERROR(FIND(BW$3,'CFR - XML import'!$A56)),0,VALUE(MID('CFR - XML import'!$A56,SEARCH(\">\",'CFR - XML import'!$A56,1)+1,SEARCH(\"/\",'CFR - XML import'!$A56,1)-SEARCH(\">\",'CFR - XML import'!$A56,1)-2)))","v":0},{"$f":"IF(ISERROR(FIND(BX$3,'CFR - XML import'!$A56)),0,VALUE(MID('CFR - XML import'!$A56,SEARCH(\">\",'CFR - XML import'!$A56,1)+1,SEARCH(\"/\",'CFR - XML import'!$A56,1)-SEARCH(\">\",'CFR - XML import'!$A56,1)-2)))","v":0},{"$f":"IF(ISERROR(FIND(BY$3,'CFR - XML import'!$A56)),0,VALUE(MID('CFR - XML import'!$A56,SEARCH(\">\",'CFR - XML import'!$A56,1)+1,SEARCH(\"/\",'CFR - XML import'!$A56,1)-SEARCH(\">\",'CFR - XML import'!$A56,1)-2)))","v":0},{"$f":"IF(ISERROR(FIND(BZ$3,'CFR - XML import'!$A56)),0,VALUE(MID('CFR - XML import'!$A56,SEARCH(\">\",'CFR - XML import'!$A56,1)+1,SEARCH(\"/\",'CFR - XML import'!$A56,1)-SEARCH(\">\",'CFR - XML import'!$A56,1)-2)))","v":0},null,null,null,null,null,null,{"$f":"IF(ISERROR(IF(MID('CFR - XML import'!$A56,LEN($CF$4)+1,LEN('CFR - XML import'!$A56)-(2*LEN($CF$4)+1))=\"RMMS\",1,IF(MID('CFR - XML import'!$A56,LEN(\"    <InputSystem>\")+1,LEN('CFR - XML import'!$A56)-(LEN(\"    <InputSystem>\")+LEN($CF$4)+1))=\"SIMS\",2,0))),0,IF(MID('CFR - XML import'!$A56,LEN($CF$4)+1,LEN('CFR - XML import'!$A56)-(2*LEN($CF$4)+1))=\"RMMS\",1,IF(MID('CFR - XML import'!$A56,LEN(\"    <InputSystem>\")+1,LEN('CFR - XML import'!$A56)-(LEN(\"    <InputSystem>\")+LEN($CF$4)+1))=\"SIMS\",2,0)))","v":0},{"$f":"IF(ISERROR(FIND(CH$3,'CFR - XML import'!$A56)),0,MID('CFR - XML import'!$A56,SEARCH(\">\",'CFR - XML import'!$A56,1)+1,SEARCH(\"/\",'CFR - XML import'!$A56,1)-SEARCH(\">\",'CFR - XML import'!$A56,1)-2))","v":0},{"$f":"IF(ISERROR(FIND(CI$3,'CFR - XML import'!$A56)),0,MID('CFR - XML import'!$A56,SEARCH(\">\",'CFR - XML import'!$A56,1)+1,SEARCH(\"/\",'CFR - XML import'!$A56,1)-SEARCH(\">\",'CFR - XML import'!$A56,1)-2))","v":0},{"$f":"IF(ISERROR(FIND(CJ$3,'CFR - XML import'!$A56)),0,MID('CFR - XML import'!$A56,SEARCH(\">\",'CFR - XML import'!$A56,1)+1,SEARCH(\"/\",'CFR - XML import'!$A56,1)-SEARCH(\">\",'CFR - XML import'!$A56,1)-2))","v":0},{"$f":"IF(ISERROR(FIND(CK$3,'CFR - XML import'!$A56)),0,MID('CFR - XML import'!$A56,SEARCH(\">\",'CFR - XML import'!$A56,1)+1,SEARCH(\"/\",'CFR - XML import'!$A56,1)-SEARCH(\">\",'CFR - XML import'!$A56,1)-2))","v":0},{"$f":"IF(ISERROR(FIND(CL$3,'CFR - XML import'!$A56)),0,MID('CFR - XML import'!$A56,SEARCH(\">\",'CFR - XML import'!$A56,1)+1,SEARCH(\"/\",'CFR - XML import'!$A56,1)-SEARCH(\">\",'CFR - XML import'!$A56,1)-2))","v":0}]
[{"$f":"IF(AND('CFR - XML import'!A57<>\"\",LEFT('CFR - XML import'!A57,1)<>\"<\",LEFT('CFR - XML import'!A57,3)<>\"  <\",LEFT('CFR - XML import'!A57,5)<>\"    <\",LEFT('CFR - XML import'!A57,7)<>\"      <\",LEFT('CFR - XML import'!A57,9)<>\"        <\",$B$1=\"SIMS\"),'CFR - XML import'!A57,IF(AND(LEFT('CFR - XML import'!A57,9)=\"<Details>\",$B$1=\"RM\"),'CFR - XML import'!A57,\"\"))","v":""},{"$f":"IF(ISERROR(FIND(B$3,'CFR - XML import'!$A57)),0,VALUE(MID('CFR - XML import'!$A57,SEARCH(\">\",'CFR - XML import'!$A57,1)+1,SEARCH(\"/\",'CFR - XML import'!$A57,1)-SEARCH(\">\",'CFR - XML import'!$A57,1)-2)))","v":0},null,{"$f":"IF(ISERROR(FIND(D$3,'CFR - XML import'!$A57)),0,MID('CFR - XML import'!$A57,SEARCH(\">\",'CFR - XML import'!$A57,1)+1,SEARCH(\"/\",'CFR - XML import'!$A57,1)-SEARCH(\">\",'CFR - XML import'!$A57,1)-2))","v":0},{"$f":"IF(ISERROR(FIND(E$3,'CFR - XML import'!$A57)),0,MID('CFR - XML import'!$A57,SEARCH(\">\",'CFR - XML import'!$A57,1)+1,SEARCH(\"/\",'CFR - XML import'!$A57,1)-SEARCH(\">\",'CFR - XML import'!$A57,1)-2))","v":0},{"$f":"IF($B$1=\"SIMS\",IF(ISERROR(FIND(F$3,'CFR - XML import'!$A57)),0,VALUE(MID('CFR - XML import'!$A57,15,10))),IF(ISERROR(FIND(F$3,'CFR - XML import'!$A57)),0,VALUE(MID('CFR - XML import'!$A57,11,10))))","v":"00:00:00"},{"$f":"IF(ISERROR(FIND(G$3,'CFR - XML import'!$A57)),0,VALUE(MID('CFR - XML import'!$A57,SEARCH(\">\",'CFR - XML import'!$A57,1)+1,SEARCH(\"/\",'CFR - XML import'!$A57,1)-SEARCH(\">\",'CFR - XML import'!$A57,1)-2)))","v":0},{"$f":"IF(ISERROR(FIND(H$3,'CFR - XML import'!$A57)),0,VALUE(MID('CFR - XML import'!$A57,SEARCH(\">\",'CFR - XML import'!$A57,1)+1,SEARCH(\"/\",'CFR - XML import'!$A57,1)-SEARCH(\">\",'CFR - XML import'!$A57,1)-2)))","v":0},{"$f":"IF(ISERROR(FIND(I$3,'CFR - XML import'!$A57)),0,VALUE(MID('CFR - XML import'!$A57,SEARCH(\">\",'CFR - XML import'!$A57,1)+1,SEARCH(\"/\",'CFR - XML import'!$A57,1)-SEARCH(\">\",'CFR - XML import'!$A57,1)-2)))","v":0},{"$f":"IF(ISERROR(FIND(J$3,'CFR - XML import'!$A57)),0,VALUE(MID('CFR - XML import'!$A57,SEARCH(\">\",'CFR - XML import'!$A57,1)+1,SEARCH(\"/\",'CFR - XML import'!$A57,1)-SEARCH(\">\",'CFR - XML import'!$A57,1)-2)))","v":0},{"$f":"IF(ISERROR(FIND(K$3,'CFR - XML import'!$A57)),0,VALUE(MID('CFR - XML import'!$A57,SEARCH(\">\",'CFR - XML import'!$A57,1)+1,SEARCH(\"/\",'CFR - XML import'!$A57,1)-SEARCH(\">\",'CFR - XML import'!$A57,1)-2)))","v":0},{"$f":"IF(ISERROR(FIND(L$3,'CFR - XML import'!$A57)),0,VALUE(MID('CFR - XML import'!$A57,SEARCH(\">\",'CFR - XML import'!$A57,1)+1,SEARCH(\"/\",'CFR - XML import'!$A57,1)-SEARCH(\">\",'CFR - XML import'!$A57,1)-2)))","v":0},{"$f":"IF(ISERROR(FIND(M$3,'CFR - XML import'!$A57)),0,VALUE(MID('CFR - XML import'!$A57,SEARCH(\">\",'CFR - XML import'!$A57,1)+1,SEARCH(\"/\",'CFR - XML import'!$A57,1)-SEARCH(\">\",'CFR - XML import'!$A57,1)-2)))","v":0},{"$f":"IF(ISERROR(FIND(N$3,'CFR - XML import'!$A57)),0,VALUE(MID('CFR - XML import'!$A57,SEARCH(\">\",'CFR - XML import'!$A57,1)+1,SEARCH(\"/\",'CFR - XML import'!$A57,1)-SEARCH(\">\",'CFR - XML import'!$A57,1)-2)))","v":0},{"$f":"IF(ISERROR(FIND(O$3,'CFR - XML import'!$A57)),0,VALUE(MID('CFR - XML import'!$A57,SEARCH(\">\",'CFR - XML import'!$A57,1)+1,SEARCH(\"/\",'CFR - XML import'!$A57,1)-SEARCH(\">\",'CFR - XML import'!$A57,1)-2)))","v":0},{"$f":"IF(ISERROR(FIND(P$3,'CFR - XML import'!$A57)),0,VALUE(MID('CFR - XML import'!$A57,SEARCH(\">\",'CFR - XML import'!$A57,1)+1,SEARCH(\"/\",'CFR - XML import'!$A57,1)-SEARCH(\">\",'CFR - XML import'!$A57,1)-2)))","v":0},{"$f":"IF(ISERROR(FIND(Q$3,'CFR - XML import'!$A57)),0,VALUE(MID('CFR - XML import'!$A57,SEARCH(\">\",'CFR - XML import'!$A57,1)+1,SEARCH(\"/\",'CFR - XML import'!$A57,1)-SEARCH(\">\",'CFR - XML import'!$A57,1)-2)))","v":0},{"$f":"IF(ISERROR(FIND(R$3,'CFR - XML import'!$A57)),0,VALUE(MID('CFR - XML import'!$A57,SEARCH(\">\",'CFR - XML import'!$A57,1)+1,SEARCH(\"/\",'CFR - XML import'!$A57,1)-SEARCH(\">\",'CFR - XML import'!$A57,1)-2)))","v":0},{"$f":"IF(ISERROR(FIND(S$3,'CFR - XML import'!$A57)),0,VALUE(MID('CFR - XML import'!$A57,SEARCH(\">\",'CFR - XML import'!$A57,1)+1,SEARCH(\"/\",'CFR - XML import'!$A57,1)-SEARCH(\">\",'CFR - XML import'!$A57,1)-2)))","v":0},{"$f":"IF(ISERROR(FIND(T$3,'CFR - XML import'!$A57)),0,VALUE(MID('CFR - XML import'!$A57,SEARCH(\">\",'CFR - XML import'!$A57,1)+1,SEARCH(\"/\",'CFR - XML import'!$A57,1)-SEARCH(\">\",'CFR - XML import'!$A57,1)-2)))","v":0},{"$f":"IF(ISERROR(FIND(U$3,'CFR - XML import'!$A57)),0,VALUE(MID('CFR - XML import'!$A57,SEARCH(\">\",'CFR - XML import'!$A57,1)+1,SEARCH(\"/\",'CFR - XML import'!$A57,1)-SEARCH(\">\",'CFR - XML import'!$A57,1)-2)))","v":0},{"$f":"IF(ISERROR(FIND(V$3,'CFR - XML import'!$A57)),0,VALUE(MID('CFR - XML import'!$A57,SEARCH(\">\",'CFR - XML import'!$A57,1)+1,SEARCH(\"/\",'CFR - XML import'!$A57,1)-SEARCH(\">\",'CFR - XML import'!$A57,1)-2)))","v":0},{"$f":"IF(ISERROR(FIND(W$3,'CFR - XML import'!$A57)),0,VALUE(MID('CFR - XML import'!$A57,SEARCH(\">\",'CFR - XML import'!$A57,1)+1,SEARCH(\"/\",'CFR - XML import'!$A57,1)-SEARCH(\">\",'CFR - XML import'!$A57,1)-2)))","v":0},null,{"$f":"IF(ISERROR(FIND(Y$3,'CFR - XML import'!$A57)),0,VALUE(MID('CFR - XML import'!$A57,SEARCH(\">\",'CFR - XML import'!$A57,1)+1,SEARCH(\"/\",'CFR - XML import'!$A57,1)-SEARCH(\">\",'CFR - XML import'!$A57,1)-2)))","v":0},{"$f":"IF(ISERROR(FIND(Z$3,'CFR - XML import'!$A57)),0,VALUE(MID('CFR - XML import'!$A57,SEARCH(\">\",'CFR - XML import'!$A57,1)+1,SEARCH(\"/\",'CFR - XML import'!$A57,1)-SEARCH(\">\",'CFR - XML import'!$A57,1)-2)))","v":0},{"$f":"IF(ISERROR(FIND(AA$3,'CFR - XML import'!$A57)),0,VALUE(MID('CFR - XML import'!$A57,SEARCH(\">\",'CFR - XML import'!$A57,1)+1,SEARCH(\"/\",'CFR - XML import'!$A57,1)-SEARCH(\">\",'CFR - XML import'!$A57,1)-2)))","v":0},{"$f":"IF(ISERROR(FIND(AB$3,'CFR - XML import'!$A57)),0,VALUE(MID('CFR - XML import'!$A57,SEARCH(\">\",'CFR - XML import'!$A57,1)+1,SEARCH(\"/\",'CFR - XML import'!$A57,1)-SEARCH(\">\",'CFR - XML import'!$A57,1)-2)))","v":0},{"$f":"IF(ISERROR(FIND(AC$3,'CFR - XML import'!$A57)),0,VALUE(MID('CFR - XML import'!$A57,SEARCH(\">\",'CFR - XML import'!$A57,1)+1,SEARCH(\"/\",'CFR - XML import'!$A57,1)-SEARCH(\">\",'CFR - XML import'!$A57,1)-2)))","v":0},{"$f":"IF(ISERROR(FIND(AD$3,'CFR - XML import'!$A57)),0,VALUE(MID('CFR - XML import'!$A57,SEARCH(\">\",'CFR - XML import'!$A57,1)+1,SEARCH(\"/\",'CFR - XML import'!$A57,1)-SEARCH(\">\",'CFR - XML import'!$A57,1)-2)))","v":0},{"$f":"IF(ISERROR(FIND(AE$3,'CFR - XML import'!$A57)),0,VALUE(MID('CFR - XML import'!$A57,SEARCH(\">\",'CFR - XML import'!$A57,1)+1,SEARCH(\"/\",'CFR - XML import'!$A57,1)-SEARCH(\">\",'CFR - XML import'!$A57,1)-2)))","v":0},{"$f":"IF(ISERROR(FIND(AF$3,'CFR - XML import'!$A57)),0,VALUE(MID('CFR - XML import'!$A57,SEARCH(\">\",'CFR - XML import'!$A57,1)+1,SEARCH(\"/\",'CFR - XML import'!$A57,1)-SEARCH(\">\",'CFR - XML import'!$A57,1)-2)))","v":0},{"$f":"IF(ISERROR(FIND(AG$3,'CFR - XML import'!$A57)),0,VALUE(MID('CFR - XML import'!$A57,SEARCH(\">\",'CFR - XML import'!$A57,1)+1,SEARCH(\"/\",'CFR - XML import'!$A57,1)-SEARCH(\">\",'CFR - XML import'!$A57,1)-2)))","v":0},{"$f":"IF(ISERROR(FIND(AH$3,'CFR - XML import'!$A57)),0,VALUE(MID('CFR - XML import'!$A57,SEARCH(\">\",'CFR - XML import'!$A57,1)+1,SEARCH(\"/\",'CFR - XML import'!$A57,1)-SEARCH(\">\",'CFR - XML import'!$A57,1)-2)))","v":0},{"$f":"IF(ISERROR(FIND(AI$3,'CFR - XML import'!$A57)),0,VALUE(MID('CFR - XML import'!$A57,SEARCH(\">\",'CFR - XML import'!$A57,1)+1,SEARCH(\"/\",'CFR - XML import'!$A57,1)-SEARCH(\">\",'CFR - XML import'!$A57,1)-2)))","v":0},{"$f":"IF(ISERROR(FIND(AJ$3,'CFR - XML import'!$A57)),0,VALUE(MID('CFR - XML import'!$A57,SEARCH(\">\",'CFR - XML import'!$A57,1)+1,SEARCH(\"/\",'CFR - XML import'!$A57,1)-SEARCH(\">\",'CFR - XML import'!$A57,1)-2)))","v":0},{"$f":"IF(ISERROR(FIND(AK$3,'CFR - XML import'!$A57)),0,VALUE(MID('CFR - XML import'!$A57,SEARCH(\">\",'CFR - XML import'!$A57,1)+1,SEARCH(\"/\",'CFR - XML import'!$A57,1)-SEARCH(\">\",'CFR - XML import'!$A57,1)-2)))","v":0},{"$f":"IF(ISERROR(FIND(AL$3,'CFR - XML import'!$A57)),0,VALUE(MID('CFR - XML import'!$A57,SEARCH(\">\",'CFR - XML import'!$A57,1)+1,SEARCH(\"/\",'CFR - XML import'!$A57,1)-SEARCH(\">\",'CFR - XML import'!$A57,1)-2)))","v":0},{"$f":"IF(ISERROR(FIND(AM$3,'CFR - XML import'!$A57)),0,VALUE(MID('CFR - XML import'!$A57,SEARCH(\">\",'CFR - XML import'!$A57,1)+1,SEARCH(\"/\",'CFR - XML import'!$A57,1)-SEARCH(\">\",'CFR - XML import'!$A57,1)-2)))","v":0},{"$f":"IF(ISERROR(FIND(AN$3,'CFR - XML import'!$A57)),0,VALUE(MID('CFR - XML import'!$A57,SEARCH(\">\",'CFR - XML import'!$A57,1)+1,SEARCH(\"/\",'CFR - XML import'!$A57,1)-SEARCH(\">\",'CFR - XML import'!$A57,1)-2)))","v":0},{"$f":"IF(ISERROR(FIND(AO$3,'CFR - XML import'!$A57)),0,VALUE(MID('CFR - XML import'!$A57,SEARCH(\">\",'CFR - XML import'!$A57,1)+1,SEARCH(\"/\",'CFR - XML import'!$A57,1)-SEARCH(\">\",'CFR - XML import'!$A57,1)-2)))","v":0},{"$f":"IF(ISERROR(FIND(AP$3,'CFR - XML import'!$A57)),0,VALUE(MID('CFR - XML import'!$A57,SEARCH(\">\",'CFR - XML import'!$A57,1)+1,SEARCH(\"/\",'CFR - XML import'!$A57,1)-SEARCH(\">\",'CFR - XML import'!$A57,1)-2)))","v":0},{"$f":"IF(ISERROR(FIND(AQ$3,'CFR - XML import'!$A57)),0,VALUE(MID('CFR - XML import'!$A57,SEARCH(\">\",'CFR - XML import'!$A57,1)+1,SEARCH(\"/\",'CFR - XML import'!$A57,1)-SEARCH(\">\",'CFR - XML import'!$A57,1)-2)))","v":0},{"$f":"IF(ISERROR(FIND(AR$3,'CFR - XML import'!$A57)),0,VALUE(MID('CFR - XML import'!$A57,SEARCH(\">\",'CFR - XML import'!$A57,1)+1,SEARCH(\"/\",'CFR - XML import'!$A57,1)-SEARCH(\">\",'CFR - XML import'!$A57,1)-2)))","v":0},{"$f":"IF(ISERROR(FIND(AS$3,'CFR - XML import'!$A57)),0,VALUE(MID('CFR - XML import'!$A57,SEARCH(\">\",'CFR - XML import'!$A57,1)+1,SEARCH(\"/\",'CFR - XML import'!$A57,1)-SEARCH(\">\",'CFR - XML import'!$A57,1)-2)))","v":0},{"$f":"IF(ISERROR(FIND(AT$3,'CFR - XML import'!$A57)),0,VALUE(MID('CFR - XML import'!$A57,SEARCH(\">\",'CFR - XML import'!$A57,1)+1,SEARCH(\"/\",'CFR - XML import'!$A57,1)-SEARCH(\">\",'CFR - XML import'!$A57,1)-2)))","v":0},{"$f":"IF(ISERROR(FIND(AU$3,'CFR - XML import'!$A57)),0,VALUE(MID('CFR - XML import'!$A57,SEARCH(\">\",'CFR - XML import'!$A57,1)+1,SEARCH(\"/\",'CFR - XML import'!$A57,1)-SEARCH(\">\",'CFR - XML import'!$A57,1)-2)))","v":0},{"$f":"IF(ISERROR(FIND(AV$3,'CFR - XML import'!$A57)),0,VALUE(MID('CFR - XML import'!$A57,SEARCH(\">\",'CFR - XML import'!$A57,1)+1,SEARCH(\"/\",'CFR - XML import'!$A57,1)-SEARCH(\">\",'CFR - XML import'!$A57,1)-2)))","v":0},{"$f":"IF(ISERROR(FIND(AW$3,'CFR - XML import'!$A57)),0,VALUE(MID('CFR - XML import'!$A57,SEARCH(\">\",'CFR - XML import'!$A57,1)+1,SEARCH(\"/\",'CFR - XML import'!$A57,1)-SEARCH(\">\",'CFR - XML import'!$A57,1)-2)))","v":0},{"$f":"IF(ISERROR(FIND(AX$3,'CFR - XML import'!$A57)),0,VALUE(MID('CFR - XML import'!$A57,SEARCH(\">\",'CFR - XML import'!$A57,1)+1,SEARCH(\"/\",'CFR - XML import'!$A57,1)-SEARCH(\">\",'CFR - XML import'!$A57,1)-2)))","v":0},{"$f":"IF(ISERROR(FIND(AY$3,'CFR - XML import'!$A57)),0,VALUE(MID('CFR - XML import'!$A57,SEARCH(\">\",'CFR - XML import'!$A57,1)+1,SEARCH(\"/\",'CFR - XML import'!$A57,1)-SEARCH(\">\",'CFR - XML import'!$A57,1)-2)))","v":0},{"$f":"IF(ISERROR(FIND(AZ$3,'CFR - XML import'!$A57)),0,VALUE(MID('CFR - XML import'!$A57,SEARCH(\">\",'CFR - XML import'!$A57,1)+1,SEARCH(\"/\",'CFR - XML import'!$A57,1)-SEARCH(\">\",'CFR - XML import'!$A57,1)-2)))","v":0},{"$f":"IF(ISERROR(FIND(BA$3,'CFR - XML import'!$A57)),0,VALUE(MID('CFR - XML import'!$A57,SEARCH(\">\",'CFR - XML import'!$A57,1)+1,SEARCH(\"/\",'CFR - XML import'!$A57,1)-SEARCH(\">\",'CFR - XML import'!$A57,1)-2)))","v":0},{"$f":"IF(ISERROR(FIND(BB$3,'CFR - XML import'!$A57)),0,VALUE(MID('CFR - XML import'!$A57,SEARCH(\">\",'CFR - XML import'!$A57,1)+1,SEARCH(\"/\",'CFR - XML import'!$A57,1)-SEARCH(\">\",'CFR - XML import'!$A57,1)-2)))","v":0},{"$f":"IF(ISERROR(FIND(BC$3,'CFR - XML import'!$A57)),0,VALUE(MID('CFR - XML import'!$A57,SEARCH(\">\",'CFR - XML import'!$A57,1)+1,SEARCH(\"/\",'CFR - XML import'!$A57,1)-SEARCH(\">\",'CFR - XML import'!$A57,1)-2)))","v":0},{"$f":"IF(ISERROR(FIND(BD$3,'CFR - XML import'!$A57)),0,VALUE(MID('CFR - XML import'!$A57,SEARCH(\">\",'CFR - XML import'!$A57,1)+1,SEARCH(\"/\",'CFR - XML import'!$A57,1)-SEARCH(\">\",'CFR - XML import'!$A57,1)-2)))","v":0},{"$f":"IF(ISERROR(FIND(BE$3,'CFR - XML import'!$A57)),0,VALUE(MID('CFR - XML import'!$A57,SEARCH(\">\",'CFR - XML import'!$A57,1)+1,SEARCH(\"/\",'CFR - XML import'!$A57,1)-SEARCH(\">\",'CFR - XML import'!$A57,1)-2)))","v":0},{"$f":"IF(ISERROR(FIND(BF$3,'CFR - XML import'!$A57)),0,VALUE(MID('CFR - XML import'!$A57,SEARCH(\">\",'CFR - XML import'!$A57,1)+1,SEARCH(\"/\",'CFR - XML import'!$A57,1)-SEARCH(\">\",'CFR - XML import'!$A57,1)-2)))","v":0},{"$f":"IF(ISERROR(FIND(BG$3,'CFR - XML import'!$A57)),0,VALUE(MID('CFR - XML import'!$A57,SEARCH(\">\",'CFR - XML import'!$A57,1)+1,SEARCH(\"/\",'CFR - XML import'!$A57,1)-SEARCH(\">\",'CFR - XML import'!$A57,1)-2)))","v":0},{"$f":"IF(ISERROR(FIND(BH$3,'CFR - XML import'!$A57)),0,VALUE(MID('CFR - XML import'!$A57,SEARCH(\">\",'CFR - XML import'!$A57,1)+1,SEARCH(\"/\",'CFR - XML import'!$A57,1)-SEARCH(\">\",'CFR - XML import'!$A57,1)-2)))","v":0},{"$f":"IF(ISERROR(FIND(BI$3,'CFR - XML import'!$A57)),0,VALUE(MID('CFR - XML import'!$A57,SEARCH(\">\",'CFR - XML import'!$A57,1)+1,SEARCH(\"/\",'CFR - XML import'!$A57,1)-SEARCH(\">\",'CFR - XML import'!$A57,1)-2)))","v":0},{"$f":"IF(ISERROR(FIND(BJ$3,'CFR - XML import'!$A57)),0,VALUE(MID('CFR - XML import'!$A57,SEARCH(\">\",'CFR - XML import'!$A57,1)+1,SEARCH(\"/\",'CFR - XML import'!$A57,1)-SEARCH(\">\",'CFR - XML import'!$A57,1)-2)))","v":0},{"$f":"IF(ISERROR(FIND(BK$3,'CFR - XML import'!$A57)),0,VALUE(MID('CFR - XML import'!$A57,SEARCH(\">\",'CFR - XML import'!$A57,1)+1,SEARCH(\"/\",'CFR - XML import'!$A57,1)-SEARCH(\">\",'CFR - XML import'!$A57,1)-2)))","v":0},{"$f":"IF(ISERROR(FIND(BL$3,'CFR - XML import'!$A57)),0,VALUE(MID('CFR - XML import'!$A57,SEARCH(\">\",'CFR - XML import'!$A57,1)+1,SEARCH(\"/\",'CFR - XML import'!$A57,1)-SEARCH(\">\",'CFR - XML import'!$A57,1)-2)))","v":0},{"$f":"IF(ISERROR(FIND(BM$3,'CFR - XML import'!$A57)),0,VALUE(MID('CFR - XML import'!$A57,SEARCH(\">\",'CFR - XML import'!$A57,1)+1,SEARCH(\"/\",'CFR - XML import'!$A57,1)-SEARCH(\">\",'CFR - XML import'!$A57,1)-2)))","v":0},{"$f":"IF(ISERROR(FIND(BN$3,'CFR - XML import'!$A57)),0,VALUE(MID('CFR - XML import'!$A57,SEARCH(\">\",'CFR - XML import'!$A57,1)+1,SEARCH(\"/\",'CFR - XML import'!$A57,1)-SEARCH(\">\",'CFR - XML import'!$A57,1)-2)))","v":0},{"$f":"IF(ISERROR(FIND(BO$3,'CFR - XML import'!$A57)),0,VALUE(MID('CFR - XML import'!$A57,SEARCH(\">\",'CFR - XML import'!$A57,1)+1,SEARCH(\"/\",'CFR - XML import'!$A57,1)-SEARCH(\">\",'CFR - XML import'!$A57,1)-2)))","v":0},{"$f":"IF(ISERROR(FIND(BP$3,'CFR - XML import'!$A57)),0,VALUE(MID('CFR - XML import'!$A57,SEARCH(\">\",'CFR - XML import'!$A57,1)+1,SEARCH(\"/\",'CFR - XML import'!$A57,1)-SEARCH(\">\",'CFR - XML import'!$A57,1)-2)))","v":0},{"$f":"IF(ISERROR(FIND(BQ$3,'CFR - XML import'!$A57)),0,VALUE(MID('CFR - XML import'!$A57,SEARCH(\">\",'CFR - XML import'!$A57,1)+1,SEARCH(\"/\",'CFR - XML import'!$A57,1)-SEARCH(\">\",'CFR - XML import'!$A57,1)-2)))","v":0},{"$f":"IF(ISERROR(FIND(BR$3,'CFR - XML import'!$A57)),0,VALUE(MID('CFR - XML import'!$A57,SEARCH(\">\",'CFR - XML import'!$A57,1)+1,SEARCH(\"/\",'CFR - XML import'!$A57,1)-SEARCH(\">\",'CFR - XML import'!$A57,1)-2)))","v":0},{"$f":"IF(ISERROR(FIND(BS$3,'CFR - XML import'!$A57)),0,VALUE(MID('CFR - XML import'!$A57,SEARCH(\">\",'CFR - XML import'!$A57,1)+1,SEARCH(\"/\",'CFR - XML import'!$A57,1)-SEARCH(\">\",'CFR - XML import'!$A57,1)-2)))","v":0},{"$f":"IF(ISERROR(FIND(BT$3,'CFR - XML import'!$A57)),0,VALUE(MID('CFR - XML import'!$A57,SEARCH(\">\",'CFR - XML import'!$A57,1)+1,SEARCH(\"/\",'CFR - XML import'!$A57,1)-SEARCH(\">\",'CFR - XML import'!$A57,1)-2)))","v":0},{"$f":"IF(ISERROR(FIND(BU$3,'CFR - XML import'!$A57)),0,VALUE(MID('CFR - XML import'!$A57,SEARCH(\">\",'CFR - XML import'!$A57,1)+1,SEARCH(\"/\",'CFR - XML import'!$A57,1)-SEARCH(\">\",'CFR - XML import'!$A57,1)-2)))","v":0},{"$f":"IF(ISERROR(FIND(BV$3,'CFR - XML import'!$A57)),0,VALUE(MID('CFR - XML import'!$A57,SEARCH(\">\",'CFR - XML import'!$A57,1)+1,SEARCH(\"/\",'CFR - XML import'!$A57,1)-SEARCH(\">\",'CFR - XML import'!$A57,1)-2)))","v":0},{"$f":"IF(ISERROR(FIND(BW$3,'CFR - XML import'!$A57)),0,VALUE(MID('CFR - XML import'!$A57,SEARCH(\">\",'CFR - XML import'!$A57,1)+1,SEARCH(\"/\",'CFR - XML import'!$A57,1)-SEARCH(\">\",'CFR - XML import'!$A57,1)-2)))","v":0},{"$f":"IF(ISERROR(FIND(BX$3,'CFR - XML import'!$A57)),0,VALUE(MID('CFR - XML import'!$A57,SEARCH(\">\",'CFR - XML import'!$A57,1)+1,SEARCH(\"/\",'CFR - XML import'!$A57,1)-SEARCH(\">\",'CFR - XML import'!$A57,1)-2)))","v":0},{"$f":"IF(ISERROR(FIND(BY$3,'CFR - XML import'!$A57)),0,VALUE(MID('CFR - XML import'!$A57,SEARCH(\">\",'CFR - XML import'!$A57,1)+1,SEARCH(\"/\",'CFR - XML import'!$A57,1)-SEARCH(\">\",'CFR - XML import'!$A57,1)-2)))","v":0},{"$f":"IF(ISERROR(FIND(BZ$3,'CFR - XML import'!$A57)),0,VALUE(MID('CFR - XML import'!$A57,SEARCH(\">\",'CFR - XML import'!$A57,1)+1,SEARCH(\"/\",'CFR - XML import'!$A57,1)-SEARCH(\">\",'CFR - XML import'!$A57,1)-2)))","v":0},null,null,null,null,null,null,{"$f":"IF(ISERROR(IF(MID('CFR - XML import'!$A57,LEN($CF$4)+1,LEN('CFR - XML import'!$A57)-(2*LEN($CF$4)+1))=\"RMMS\",1,IF(MID('CFR - XML import'!$A57,LEN(\"    <InputSystem>\")+1,LEN('CFR - XML import'!$A57)-(LEN(\"    <InputSystem>\")+LEN($CF$4)+1))=\"SIMS\",2,0))),0,IF(MID('CFR - XML import'!$A57,LEN($CF$4)+1,LEN('CFR - XML import'!$A57)-(2*LEN($CF$4)+1))=\"RMMS\",1,IF(MID('CFR - XML import'!$A57,LEN(\"    <InputSystem>\")+1,LEN('CFR - XML import'!$A57)-(LEN(\"    <InputSystem>\")+LEN($CF$4)+1))=\"SIMS\",2,0)))","v":0},{"$f":"IF(ISERROR(FIND(CH$3,'CFR - XML import'!$A57)),0,MID('CFR - XML import'!$A57,SEARCH(\">\",'CFR - XML import'!$A57,1)+1,SEARCH(\"/\",'CFR - XML import'!$A57,1)-SEARCH(\">\",'CFR - XML import'!$A57,1)-2))","v":0},{"$f":"IF(ISERROR(FIND(CI$3,'CFR - XML import'!$A57)),0,MID('CFR - XML import'!$A57,SEARCH(\">\",'CFR - XML import'!$A57,1)+1,SEARCH(\"/\",'CFR - XML import'!$A57,1)-SEARCH(\">\",'CFR - XML import'!$A57,1)-2))","v":0},{"$f":"IF(ISERROR(FIND(CJ$3,'CFR - XML import'!$A57)),0,MID('CFR - XML import'!$A57,SEARCH(\">\",'CFR - XML import'!$A57,1)+1,SEARCH(\"/\",'CFR - XML import'!$A57,1)-SEARCH(\">\",'CFR - XML import'!$A57,1)-2))","v":0},{"$f":"IF(ISERROR(FIND(CK$3,'CFR - XML import'!$A57)),0,MID('CFR - XML import'!$A57,SEARCH(\">\",'CFR - XML import'!$A57,1)+1,SEARCH(\"/\",'CFR - XML import'!$A57,1)-SEARCH(\">\",'CFR - XML import'!$A57,1)-2))","v":0},{"$f":"IF(ISERROR(FIND(CL$3,'CFR - XML import'!$A57)),0,MID('CFR - XML import'!$A57,SEARCH(\">\",'CFR - XML import'!$A57,1)+1,SEARCH(\"/\",'CFR - XML import'!$A57,1)-SEARCH(\">\",'CFR - XML import'!$A57,1)-2))","v":0}]
[{"$f":"IF(AND('CFR - XML import'!A58<>\"\",LEFT('CFR - XML import'!A58,1)<>\"<\",LEFT('CFR - XML import'!A58,3)<>\"  <\",LEFT('CFR - XML import'!A58,5)<>\"    <\",LEFT('CFR - XML import'!A58,7)<>\"      <\",LEFT('CFR - XML import'!A58,9)<>\"        <\",$B$1=\"SIMS\"),'CFR - XML import'!A58,IF(AND(LEFT('CFR - XML import'!A58,9)=\"<Details>\",$B$1=\"RM\"),'CFR - XML import'!A58,\"\"))","v":""},{"$f":"IF(ISERROR(FIND(B$3,'CFR - XML import'!$A58)),0,VALUE(MID('CFR - XML import'!$A58,SEARCH(\">\",'CFR - XML import'!$A58,1)+1,SEARCH(\"/\",'CFR - XML import'!$A58,1)-SEARCH(\">\",'CFR - XML import'!$A58,1)-2)))","v":0},null,{"$f":"IF(ISERROR(FIND(D$3,'CFR - XML import'!$A58)),0,MID('CFR - XML import'!$A58,SEARCH(\">\",'CFR - XML import'!$A58,1)+1,SEARCH(\"/\",'CFR - XML import'!$A58,1)-SEARCH(\">\",'CFR - XML import'!$A58,1)-2))","v":0},{"$f":"IF(ISERROR(FIND(E$3,'CFR - XML import'!$A58)),0,MID('CFR - XML import'!$A58,SEARCH(\">\",'CFR - XML import'!$A58,1)+1,SEARCH(\"/\",'CFR - XML import'!$A58,1)-SEARCH(\">\",'CFR - XML import'!$A58,1)-2))","v":0},{"$f":"IF($B$1=\"SIMS\",IF(ISERROR(FIND(F$3,'CFR - XML import'!$A58)),0,VALUE(MID('CFR - XML import'!$A58,15,10))),IF(ISERROR(FIND(F$3,'CFR - XML import'!$A58)),0,VALUE(MID('CFR - XML import'!$A58,11,10))))","v":"00:00:00"},{"$f":"IF(ISERROR(FIND(G$3,'CFR - XML import'!$A58)),0,VALUE(MID('CFR - XML import'!$A58,SEARCH(\">\",'CFR - XML import'!$A58,1)+1,SEARCH(\"/\",'CFR - XML import'!$A58,1)-SEARCH(\">\",'CFR - XML import'!$A58,1)-2)))","v":0},{"$f":"IF(ISERROR(FIND(H$3,'CFR - XML import'!$A58)),0,VALUE(MID('CFR - XML import'!$A58,SEARCH(\">\",'CFR - XML import'!$A58,1)+1,SEARCH(\"/\",'CFR - XML import'!$A58,1)-SEARCH(\">\",'CFR - XML import'!$A58,1)-2)))","v":0},{"$f":"IF(ISERROR(FIND(I$3,'CFR - XML import'!$A58)),0,VALUE(MID('CFR - XML import'!$A58,SEARCH(\">\",'CFR - XML import'!$A58,1)+1,SEARCH(\"/\",'CFR - XML import'!$A58,1)-SEARCH(\">\",'CFR - XML import'!$A58,1)-2)))","v":0},{"$f":"IF(ISERROR(FIND(J$3,'CFR - XML import'!$A58)),0,VALUE(MID('CFR - XML import'!$A58,SEARCH(\">\",'CFR - XML import'!$A58,1)+1,SEARCH(\"/\",'CFR - XML import'!$A58,1)-SEARCH(\">\",'CFR - XML import'!$A58,1)-2)))","v":0},{"$f":"IF(ISERROR(FIND(K$3,'CFR - XML import'!$A58)),0,VALUE(MID('CFR - XML import'!$A58,SEARCH(\">\",'CFR - XML import'!$A58,1)+1,SEARCH(\"/\",'CFR - XML import'!$A58,1)-SEARCH(\">\",'CFR - XML import'!$A58,1)-2)))","v":0},{"$f":"IF(ISERROR(FIND(L$3,'CFR - XML import'!$A58)),0,VALUE(MID('CFR - XML import'!$A58,SEARCH(\">\",'CFR - XML import'!$A58,1)+1,SEARCH(\"/\",'CFR - XML import'!$A58,1)-SEARCH(\">\",'CFR - XML import'!$A58,1)-2)))","v":0},{"$f":"IF(ISERROR(FIND(M$3,'CFR - XML import'!$A58)),0,VALUE(MID('CFR - XML import'!$A58,SEARCH(\">\",'CFR - XML import'!$A58,1)+1,SEARCH(\"/\",'CFR - XML import'!$A58,1)-SEARCH(\">\",'CFR - XML import'!$A58,1)-2)))","v":0},{"$f":"IF(ISERROR(FIND(N$3,'CFR - XML import'!$A58)),0,VALUE(MID('CFR - XML import'!$A58,SEARCH(\">\",'CFR - XML import'!$A58,1)+1,SEARCH(\"/\",'CFR - XML import'!$A58,1)-SEARCH(\">\",'CFR - XML import'!$A58,1)-2)))","v":0},{"$f":"IF(ISERROR(FIND(O$3,'CFR - XML import'!$A58)),0,VALUE(MID('CFR - XML import'!$A58,SEARCH(\">\",'CFR - XML import'!$A58,1)+1,SEARCH(\"/\",'CFR - XML import'!$A58,1)-SEARCH(\">\",'CFR - XML import'!$A58,1)-2)))","v":0},{"$f":"IF(ISERROR(FIND(P$3,'CFR - XML import'!$A58)),0,VALUE(MID('CFR - XML import'!$A58,SEARCH(\">\",'CFR - XML import'!$A58,1)+1,SEARCH(\"/\",'CFR - XML import'!$A58,1)-SEARCH(\">\",'CFR - XML import'!$A58,1)-2)))","v":0},{"$f":"IF(ISERROR(FIND(Q$3,'CFR - XML import'!$A58)),0,VALUE(MID('CFR - XML import'!$A58,SEARCH(\">\",'CFR - XML import'!$A58,1)+1,SEARCH(\"/\",'CFR - XML import'!$A58,1)-SEARCH(\">\",'CFR - XML import'!$A58,1)-2)))","v":0},{"$f":"IF(ISERROR(FIND(R$3,'CFR - XML import'!$A58)),0,VALUE(MID('CFR - XML import'!$A58,SEARCH(\">\",'CFR - XML import'!$A58,1)+1,SEARCH(\"/\",'CFR - XML import'!$A58,1)-SEARCH(\">\",'CFR - XML import'!$A58,1)-2)))","v":0},{"$f":"IF(ISERROR(FIND(S$3,'CFR - XML import'!$A58)),0,VALUE(MID('CFR - XML import'!$A58,SEARCH(\">\",'CFR - XML import'!$A58,1)+1,SEARCH(\"/\",'CFR - XML import'!$A58,1)-SEARCH(\">\",'CFR - XML import'!$A58,1)-2)))","v":0},{"$f":"IF(ISERROR(FIND(T$3,'CFR - XML import'!$A58)),0,VALUE(MID('CFR - XML import'!$A58,SEARCH(\">\",'CFR - XML import'!$A58,1)+1,SEARCH(\"/\",'CFR - XML import'!$A58,1)-SEARCH(\">\",'CFR - XML import'!$A58,1)-2)))","v":0},{"$f":"IF(ISERROR(FIND(U$3,'CFR - XML import'!$A58)),0,VALUE(MID('CFR - XML import'!$A58,SEARCH(\">\",'CFR - XML import'!$A58,1)+1,SEARCH(\"/\",'CFR - XML import'!$A58,1)-SEARCH(\">\",'CFR - XML import'!$A58,1)-2)))","v":0},{"$f":"IF(ISERROR(FIND(V$3,'CFR - XML import'!$A58)),0,VALUE(MID('CFR - XML import'!$A58,SEARCH(\">\",'CFR - XML import'!$A58,1)+1,SEARCH(\"/\",'CFR - XML import'!$A58,1)-SEARCH(\">\",'CFR - XML import'!$A58,1)-2)))","v":0},{"$f":"IF(ISERROR(FIND(W$3,'CFR - XML import'!$A58)),0,VALUE(MID('CFR - XML import'!$A58,SEARCH(\">\",'CFR - XML import'!$A58,1)+1,SEARCH(\"/\",'CFR - XML import'!$A58,1)-SEARCH(\">\",'CFR - XML import'!$A58,1)-2)))","v":0},null,{"$f":"IF(ISERROR(FIND(Y$3,'CFR - XML import'!$A58)),0,VALUE(MID('CFR - XML import'!$A58,SEARCH(\">\",'CFR - XML import'!$A58,1)+1,SEARCH(\"/\",'CFR - XML import'!$A58,1)-SEARCH(\">\",'CFR - XML import'!$A58,1)-2)))","v":0},{"$f":"IF(ISERROR(FIND(Z$3,'CFR - XML import'!$A58)),0,VALUE(MID('CFR - XML import'!$A58,SEARCH(\">\",'CFR - XML import'!$A58,1)+1,SEARCH(\"/\",'CFR - XML import'!$A58,1)-SEARCH(\">\",'CFR - XML import'!$A58,1)-2)))","v":0},{"$f":"IF(ISERROR(FIND(AA$3,'CFR - XML import'!$A58)),0,VALUE(MID('CFR - XML import'!$A58,SEARCH(\">\",'CFR - XML import'!$A58,1)+1,SEARCH(\"/\",'CFR - XML import'!$A58,1)-SEARCH(\">\",'CFR - XML import'!$A58,1)-2)))","v":0},{"$f":"IF(ISERROR(FIND(AB$3,'CFR - XML import'!$A58)),0,VALUE(MID('CFR - XML import'!$A58,SEARCH(\">\",'CFR - XML import'!$A58,1)+1,SEARCH(\"/\",'CFR - XML import'!$A58,1)-SEARCH(\">\",'CFR - XML import'!$A58,1)-2)))","v":0},{"$f":"IF(ISERROR(FIND(AC$3,'CFR - XML import'!$A58)),0,VALUE(MID('CFR - XML import'!$A58,SEARCH(\">\",'CFR - XML import'!$A58,1)+1,SEARCH(\"/\",'CFR - XML import'!$A58,1)-SEARCH(\">\",'CFR - XML import'!$A58,1)-2)))","v":0},{"$f":"IF(ISERROR(FIND(AD$3,'CFR - XML import'!$A58)),0,VALUE(MID('CFR - XML import'!$A58,SEARCH(\">\",'CFR - XML import'!$A58,1)+1,SEARCH(\"/\",'CFR - XML import'!$A58,1)-SEARCH(\">\",'CFR - XML import'!$A58,1)-2)))","v":0},{"$f":"IF(ISERROR(FIND(AE$3,'CFR - XML import'!$A58)),0,VALUE(MID('CFR - XML import'!$A58,SEARCH(\">\",'CFR - XML import'!$A58,1)+1,SEARCH(\"/\",'CFR - XML import'!$A58,1)-SEARCH(\">\",'CFR - XML import'!$A58,1)-2)))","v":0},{"$f":"IF(ISERROR(FIND(AF$3,'CFR - XML import'!$A58)),0,VALUE(MID('CFR - XML import'!$A58,SEARCH(\">\",'CFR - XML import'!$A58,1)+1,SEARCH(\"/\",'CFR - XML import'!$A58,1)-SEARCH(\">\",'CFR - XML import'!$A58,1)-2)))","v":0},{"$f":"IF(ISERROR(FIND(AG$3,'CFR - XML import'!$A58)),0,VALUE(MID('CFR - XML import'!$A58,SEARCH(\">\",'CFR - XML import'!$A58,1)+1,SEARCH(\"/\",'CFR - XML import'!$A58,1)-SEARCH(\">\",'CFR - XML import'!$A58,1)-2)))","v":0},{"$f":"IF(ISERROR(FIND(AH$3,'CFR - XML import'!$A58)),0,VALUE(MID('CFR - XML import'!$A58,SEARCH(\">\",'CFR - XML import'!$A58,1)+1,SEARCH(\"/\",'CFR - XML import'!$A58,1)-SEARCH(\">\",'CFR - XML import'!$A58,1)-2)))","v":0},{"$f":"IF(ISERROR(FIND(AI$3,'CFR - XML import'!$A58)),0,VALUE(MID('CFR - XML import'!$A58,SEARCH(\">\",'CFR - XML import'!$A58,1)+1,SEARCH(\"/\",'CFR - XML import'!$A58,1)-SEARCH(\">\",'CFR - XML import'!$A58,1)-2)))","v":0},{"$f":"IF(ISERROR(FIND(AJ$3,'CFR - XML import'!$A58)),0,VALUE(MID('CFR - XML import'!$A58,SEARCH(\">\",'CFR - XML import'!$A58,1)+1,SEARCH(\"/\",'CFR - XML import'!$A58,1)-SEARCH(\">\",'CFR - XML import'!$A58,1)-2)))","v":0},{"$f":"IF(ISERROR(FIND(AK$3,'CFR - XML import'!$A58)),0,VALUE(MID('CFR - XML import'!$A58,SEARCH(\">\",'CFR - XML import'!$A58,1)+1,SEARCH(\"/\",'CFR - XML import'!$A58,1)-SEARCH(\">\",'CFR - XML import'!$A58,1)-2)))","v":0},{"$f":"IF(ISERROR(FIND(AL$3,'CFR - XML import'!$A58)),0,VALUE(MID('CFR - XML import'!$A58,SEARCH(\">\",'CFR - XML import'!$A58,1)+1,SEARCH(\"/\",'CFR - XML import'!$A58,1)-SEARCH(\">\",'CFR - XML import'!$A58,1)-2)))","v":0},{"$f":"IF(ISERROR(FIND(AM$3,'CFR - XML import'!$A58)),0,VALUE(MID('CFR - XML import'!$A58,SEARCH(\">\",'CFR - XML import'!$A58,1)+1,SEARCH(\"/\",'CFR - XML import'!$A58,1)-SEARCH(\">\",'CFR - XML import'!$A58,1)-2)))","v":0},{"$f":"IF(ISERROR(FIND(AN$3,'CFR - XML import'!$A58)),0,VALUE(MID('CFR - XML import'!$A58,SEARCH(\">\",'CFR - XML import'!$A58,1)+1,SEARCH(\"/\",'CFR - XML import'!$A58,1)-SEARCH(\">\",'CFR - XML import'!$A58,1)-2)))","v":0},{"$f":"IF(ISERROR(FIND(AO$3,'CFR - XML import'!$A58)),0,VALUE(MID('CFR - XML import'!$A58,SEARCH(\">\",'CFR - XML import'!$A58,1)+1,SEARCH(\"/\",'CFR - XML import'!$A58,1)-SEARCH(\">\",'CFR - XML import'!$A58,1)-2)))","v":0},{"$f":"IF(ISERROR(FIND(AP$3,'CFR - XML import'!$A58)),0,VALUE(MID('CFR - XML import'!$A58,SEARCH(\">\",'CFR - XML import'!$A58,1)+1,SEARCH(\"/\",'CFR - XML import'!$A58,1)-SEARCH(\">\",'CFR - XML import'!$A58,1)-2)))","v":0},{"$f":"IF(ISERROR(FIND(AQ$3,'CFR - XML import'!$A58)),0,VALUE(MID('CFR - XML import'!$A58,SEARCH(\">\",'CFR - XML import'!$A58,1)+1,SEARCH(\"/\",'CFR - XML import'!$A58,1)-SEARCH(\">\",'CFR - XML import'!$A58,1)-2)))","v":0},{"$f":"IF(ISERROR(FIND(AR$3,'CFR - XML import'!$A58)),0,VALUE(MID('CFR - XML import'!$A58,SEARCH(\">\",'CFR - XML import'!$A58,1)+1,SEARCH(\"/\",'CFR - XML import'!$A58,1)-SEARCH(\">\",'CFR - XML import'!$A58,1)-2)))","v":0},{"$f":"IF(ISERROR(FIND(AS$3,'CFR - XML import'!$A58)),0,VALUE(MID('CFR - XML import'!$A58,SEARCH(\">\",'CFR - XML import'!$A58,1)+1,SEARCH(\"/\",'CFR - XML import'!$A58,1)-SEARCH(\">\",'CFR - XML import'!$A58,1)-2)))","v":0},{"$f":"IF(ISERROR(FIND(AT$3,'CFR - XML import'!$A58)),0,VALUE(MID('CFR - XML import'!$A58,SEARCH(\">\",'CFR - XML import'!$A58,1)+1,SEARCH(\"/\",'CFR - XML import'!$A58,1)-SEARCH(\">\",'CFR - XML import'!$A58,1)-2)))","v":0},{"$f":"IF(ISERROR(FIND(AU$3,'CFR - XML import'!$A58)),0,VALUE(MID('CFR - XML import'!$A58,SEARCH(\">\",'CFR - XML import'!$A58,1)+1,SEARCH(\"/\",'CFR - XML import'!$A58,1)-SEARCH(\">\",'CFR - XML import'!$A58,1)-2)))","v":0},{"$f":"IF(ISERROR(FIND(AV$3,'CFR - XML import'!$A58)),0,VALUE(MID('CFR - XML import'!$A58,SEARCH(\">\",'CFR - XML import'!$A58,1)+1,SEARCH(\"/\",'CFR - XML import'!$A58,1)-SEARCH(\">\",'CFR - XML import'!$A58,1)-2)))","v":0},{"$f":"IF(ISERROR(FIND(AW$3,'CFR - XML import'!$A58)),0,VALUE(MID('CFR - XML import'!$A58,SEARCH(\">\",'CFR - XML import'!$A58,1)+1,SEARCH(\"/\",'CFR - XML import'!$A58,1)-SEARCH(\">\",'CFR - XML import'!$A58,1)-2)))","v":0},{"$f":"IF(ISERROR(FIND(AX$3,'CFR - XML import'!$A58)),0,VALUE(MID('CFR - XML import'!$A58,SEARCH(\">\",'CFR - XML import'!$A58,1)+1,SEARCH(\"/\",'CFR - XML import'!$A58,1)-SEARCH(\">\",'CFR - XML import'!$A58,1)-2)))","v":0},{"$f":"IF(ISERROR(FIND(AY$3,'CFR - XML import'!$A58)),0,VALUE(MID('CFR - XML import'!$A58,SEARCH(\">\",'CFR - XML import'!$A58,1)+1,SEARCH(\"/\",'CFR - XML import'!$A58,1)-SEARCH(\">\",'CFR - XML import'!$A58,1)-2)))","v":0},{"$f":"IF(ISERROR(FIND(AZ$3,'CFR - XML import'!$A58)),0,VALUE(MID('CFR - XML import'!$A58,SEARCH(\">\",'CFR - XML import'!$A58,1)+1,SEARCH(\"/\",'CFR - XML import'!$A58,1)-SEARCH(\">\",'CFR - XML import'!$A58,1)-2)))","v":0},{"$f":"IF(ISERROR(FIND(BA$3,'CFR - XML import'!$A58)),0,VALUE(MID('CFR - XML import'!$A58,SEARCH(\">\",'CFR - XML import'!$A58,1)+1,SEARCH(\"/\",'CFR - XML import'!$A58,1)-SEARCH(\">\",'CFR - XML import'!$A58,1)-2)))","v":0},{"$f":"IF(ISERROR(FIND(BB$3,'CFR - XML import'!$A58)),0,VALUE(MID('CFR - XML import'!$A58,SEARCH(\">\",'CFR - XML import'!$A58,1)+1,SEARCH(\"/\",'CFR - XML import'!$A58,1)-SEARCH(\">\",'CFR - XML import'!$A58,1)-2)))","v":0},{"$f":"IF(ISERROR(FIND(BC$3,'CFR - XML import'!$A58)),0,VALUE(MID('CFR - XML import'!$A58,SEARCH(\">\",'CFR - XML import'!$A58,1)+1,SEARCH(\"/\",'CFR - XML import'!$A58,1)-SEARCH(\">\",'CFR - XML import'!$A58,1)-2)))","v":0},{"$f":"IF(ISERROR(FIND(BD$3,'CFR - XML import'!$A58)),0,VALUE(MID('CFR - XML import'!$A58,SEARCH(\">\",'CFR - XML import'!$A58,1)+1,SEARCH(\"/\",'CFR - XML import'!$A58,1)-SEARCH(\">\",'CFR - XML import'!$A58,1)-2)))","v":0},{"$f":"IF(ISERROR(FIND(BE$3,'CFR - XML import'!$A58)),0,VALUE(MID('CFR - XML import'!$A58,SEARCH(\">\",'CFR - XML import'!$A58,1)+1,SEARCH(\"/\",'CFR - XML import'!$A58,1)-SEARCH(\">\",'CFR - XML import'!$A58,1)-2)))","v":0},{"$f":"IF(ISERROR(FIND(BF$3,'CFR - XML import'!$A58)),0,VALUE(MID('CFR - XML import'!$A58,SEARCH(\">\",'CFR - XML import'!$A58,1)+1,SEARCH(\"/\",'CFR - XML import'!$A58,1)-SEARCH(\">\",'CFR - XML import'!$A58,1)-2)))","v":0},{"$f":"IF(ISERROR(FIND(BG$3,'CFR - XML import'!$A58)),0,VALUE(MID('CFR - XML import'!$A58,SEARCH(\">\",'CFR - XML import'!$A58,1)+1,SEARCH(\"/\",'CFR - XML import'!$A58,1)-SEARCH(\">\",'CFR - XML import'!$A58,1)-2)))","v":0},{"$f":"IF(ISERROR(FIND(BH$3,'CFR - XML import'!$A58)),0,VALUE(MID('CFR - XML import'!$A58,SEARCH(\">\",'CFR - XML import'!$A58,1)+1,SEARCH(\"/\",'CFR - XML import'!$A58,1)-SEARCH(\">\",'CFR - XML import'!$A58,1)-2)))","v":0},{"$f":"IF(ISERROR(FIND(BI$3,'CFR - XML import'!$A58)),0,VALUE(MID('CFR - XML import'!$A58,SEARCH(\">\",'CFR - XML import'!$A58,1)+1,SEARCH(\"/\",'CFR - XML import'!$A58,1)-SEARCH(\">\",'CFR - XML import'!$A58,1)-2)))","v":0},{"$f":"IF(ISERROR(FIND(BJ$3,'CFR - XML import'!$A58)),0,VALUE(MID('CFR - XML import'!$A58,SEARCH(\">\",'CFR - XML import'!$A58,1)+1,SEARCH(\"/\",'CFR - XML import'!$A58,1)-SEARCH(\">\",'CFR - XML import'!$A58,1)-2)))","v":0},{"$f":"IF(ISERROR(FIND(BK$3,'CFR - XML import'!$A58)),0,VALUE(MID('CFR - XML import'!$A58,SEARCH(\">\",'CFR - XML import'!$A58,1)+1,SEARCH(\"/\",'CFR - XML import'!$A58,1)-SEARCH(\">\",'CFR - XML import'!$A58,1)-2)))","v":0},{"$f":"IF(ISERROR(FIND(BL$3,'CFR - XML import'!$A58)),0,VALUE(MID('CFR - XML import'!$A58,SEARCH(\">\",'CFR - XML import'!$A58,1)+1,SEARCH(\"/\",'CFR - XML import'!$A58,1)-SEARCH(\">\",'CFR - XML import'!$A58,1)-2)))","v":0},{"$f":"IF(ISERROR(FIND(BM$3,'CFR - XML import'!$A58)),0,VALUE(MID('CFR - XML import'!$A58,SEARCH(\">\",'CFR - XML import'!$A58,1)+1,SEARCH(\"/\",'CFR - XML import'!$A58,1)-SEARCH(\">\",'CFR - XML import'!$A58,1)-2)))","v":0},{"$f":"IF(ISERROR(FIND(BN$3,'CFR - XML import'!$A58)),0,VALUE(MID('CFR - XML import'!$A58,SEARCH(\">\",'CFR - XML import'!$A58,1)+1,SEARCH(\"/\",'CFR - XML import'!$A58,1)-SEARCH(\">\",'CFR - XML import'!$A58,1)-2)))","v":0},{"$f":"IF(ISERROR(FIND(BO$3,'CFR - XML import'!$A58)),0,VALUE(MID('CFR - XML import'!$A58,SEARCH(\">\",'CFR - XML import'!$A58,1)+1,SEARCH(\"/\",'CFR - XML import'!$A58,1)-SEARCH(\">\",'CFR - XML import'!$A58,1)-2)))","v":0},{"$f":"IF(ISERROR(FIND(BP$3,'CFR - XML import'!$A58)),0,VALUE(MID('CFR - XML import'!$A58,SEARCH(\">\",'CFR - XML import'!$A58,1)+1,SEARCH(\"/\",'CFR - XML import'!$A58,1)-SEARCH(\">\",'CFR - XML import'!$A58,1)-2)))","v":0},{"$f":"IF(ISERROR(FIND(BQ$3,'CFR - XML import'!$A58)),0,VALUE(MID('CFR - XML import'!$A58,SEARCH(\">\",'CFR - XML import'!$A58,1)+1,SEARCH(\"/\",'CFR - XML import'!$A58,1)-SEARCH(\">\",'CFR - XML import'!$A58,1)-2)))","v":0},{"$f":"IF(ISERROR(FIND(BR$3,'CFR - XML import'!$A58)),0,VALUE(MID('CFR - XML import'!$A58,SEARCH(\">\",'CFR - XML import'!$A58,1)+1,SEARCH(\"/\",'CFR - XML import'!$A58,1)-SEARCH(\">\",'CFR - XML import'!$A58,1)-2)))","v":0},{"$f":"IF(ISERROR(FIND(BS$3,'CFR - XML import'!$A58)),0,VALUE(MID('CFR - XML import'!$A58,SEARCH(\">\",'CFR - XML import'!$A58,1)+1,SEARCH(\"/\",'CFR - XML import'!$A58,1)-SEARCH(\">\",'CFR - XML import'!$A58,1)-2)))","v":0},{"$f":"IF(ISERROR(FIND(BT$3,'CFR - XML import'!$A58)),0,VALUE(MID('CFR - XML import'!$A58,SEARCH(\">\",'CFR - XML import'!$A58,1)+1,SEARCH(\"/\",'CFR - XML import'!$A58,1)-SEARCH(\">\",'CFR - XML import'!$A58,1)-2)))","v":0},{"$f":"IF(ISERROR(FIND(BU$3,'CFR - XML import'!$A58)),0,VALUE(MID('CFR - XML import'!$A58,SEARCH(\">\",'CFR - XML import'!$A58,1)+1,SEARCH(\"/\",'CFR - XML import'!$A58,1)-SEARCH(\">\",'CFR - XML import'!$A58,1)-2)))","v":0},{"$f":"IF(ISERROR(FIND(BV$3,'CFR - XML import'!$A58)),0,VALUE(MID('CFR - XML import'!$A58,SEARCH(\">\",'CFR - XML import'!$A58,1)+1,SEARCH(\"/\",'CFR - XML import'!$A58,1)-SEARCH(\">\",'CFR - XML import'!$A58,1)-2)))","v":0},{"$f":"IF(ISERROR(FIND(BW$3,'CFR - XML import'!$A58)),0,VALUE(MID('CFR - XML import'!$A58,SEARCH(\">\",'CFR - XML import'!$A58,1)+1,SEARCH(\"/\",'CFR - XML import'!$A58,1)-SEARCH(\">\",'CFR - XML import'!$A58,1)-2)))","v":0},{"$f":"IF(ISERROR(FIND(BX$3,'CFR - XML import'!$A58)),0,VALUE(MID('CFR - XML import'!$A58,SEARCH(\">\",'CFR - XML import'!$A58,1)+1,SEARCH(\"/\",'CFR - XML import'!$A58,1)-SEARCH(\">\",'CFR - XML import'!$A58,1)-2)))","v":0},{"$f":"IF(ISERROR(FIND(BY$3,'CFR - XML import'!$A58)),0,VALUE(MID('CFR - XML import'!$A58,SEARCH(\">\",'CFR - XML import'!$A58,1)+1,SEARCH(\"/\",'CFR - XML import'!$A58,1)-SEARCH(\">\",'CFR - XML import'!$A58,1)-2)))","v":0},{"$f":"IF(ISERROR(FIND(BZ$3,'CFR - XML import'!$A58)),0,VALUE(MID('CFR - XML import'!$A58,SEARCH(\">\",'CFR - XML import'!$A58,1)+1,SEARCH(\"/\",'CFR - XML import'!$A58,1)-SEARCH(\">\",'CFR - XML import'!$A58,1)-2)))","v":0},null,null,null,null,null,null,{"$f":"IF(ISERROR(IF(MID('CFR - XML import'!$A58,LEN($CF$4)+1,LEN('CFR - XML import'!$A58)-(2*LEN($CF$4)+1))=\"RMMS\",1,IF(MID('CFR - XML import'!$A58,LEN(\"    <InputSystem>\")+1,LEN('CFR - XML import'!$A58)-(LEN(\"    <InputSystem>\")+LEN($CF$4)+1))=\"SIMS\",2,0))),0,IF(MID('CFR - XML import'!$A58,LEN($CF$4)+1,LEN('CFR - XML import'!$A58)-(2*LEN($CF$4)+1))=\"RMMS\",1,IF(MID('CFR - XML import'!$A58,LEN(\"    <InputSystem>\")+1,LEN('CFR - XML import'!$A58)-(LEN(\"    <InputSystem>\")+LEN($CF$4)+1))=\"SIMS\",2,0)))","v":0},{"$f":"IF(ISERROR(FIND(CH$3,'CFR - XML import'!$A58)),0,MID('CFR - XML import'!$A58,SEARCH(\">\",'CFR - XML import'!$A58,1)+1,SEARCH(\"/\",'CFR - XML import'!$A58,1)-SEARCH(\">\",'CFR - XML import'!$A58,1)-2))","v":0},{"$f":"IF(ISERROR(FIND(CI$3,'CFR - XML import'!$A58)),0,MID('CFR - XML import'!$A58,SEARCH(\">\",'CFR - XML import'!$A58,1)+1,SEARCH(\"/\",'CFR - XML import'!$A58,1)-SEARCH(\">\",'CFR - XML import'!$A58,1)-2))","v":0},{"$f":"IF(ISERROR(FIND(CJ$3,'CFR - XML import'!$A58)),0,MID('CFR - XML import'!$A58,SEARCH(\">\",'CFR - XML import'!$A58,1)+1,SEARCH(\"/\",'CFR - XML import'!$A58,1)-SEARCH(\">\",'CFR - XML import'!$A58,1)-2))","v":0},{"$f":"IF(ISERROR(FIND(CK$3,'CFR - XML import'!$A58)),0,MID('CFR - XML import'!$A58,SEARCH(\">\",'CFR - XML import'!$A58,1)+1,SEARCH(\"/\",'CFR - XML import'!$A58,1)-SEARCH(\">\",'CFR - XML import'!$A58,1)-2))","v":0},{"$f":"IF(ISERROR(FIND(CL$3,'CFR - XML import'!$A58)),0,MID('CFR - XML import'!$A58,SEARCH(\">\",'CFR - XML import'!$A58,1)+1,SEARCH(\"/\",'CFR - XML import'!$A58,1)-SEARCH(\">\",'CFR - XML import'!$A58,1)-2))","v":0}]
[{"$f":"IF(AND('CFR - XML import'!A59<>\"\",LEFT('CFR - XML import'!A59,1)<>\"<\",LEFT('CFR - XML import'!A59,3)<>\"  <\",LEFT('CFR - XML import'!A59,5)<>\"    <\",LEFT('CFR - XML import'!A59,7)<>\"      <\",LEFT('CFR - XML import'!A59,9)<>\"        <\",$B$1=\"SIMS\"),'CFR - XML import'!A59,IF(AND(LEFT('CFR - XML import'!A59,9)=\"<Details>\",$B$1=\"RM\"),'CFR - XML import'!A59,\"\"))","v":""},{"$f":"IF(ISERROR(FIND(B$3,'CFR - XML import'!$A59)),0,VALUE(MID('CFR - XML import'!$A59,SEARCH(\">\",'CFR - XML import'!$A59,1)+1,SEARCH(\"/\",'CFR - XML import'!$A59,1)-SEARCH(\">\",'CFR - XML import'!$A59,1)-2)))","v":0},null,{"$f":"IF(ISERROR(FIND(D$3,'CFR - XML import'!$A59)),0,MID('CFR - XML import'!$A59,SEARCH(\">\",'CFR - XML import'!$A59,1)+1,SEARCH(\"/\",'CFR - XML import'!$A59,1)-SEARCH(\">\",'CFR - XML import'!$A59,1)-2))","v":0},{"$f":"IF(ISERROR(FIND(E$3,'CFR - XML import'!$A59)),0,MID('CFR - XML import'!$A59,SEARCH(\">\",'CFR - XML import'!$A59,1)+1,SEARCH(\"/\",'CFR - XML import'!$A59,1)-SEARCH(\">\",'CFR - XML import'!$A59,1)-2))","v":0},{"$f":"IF($B$1=\"SIMS\",IF(ISERROR(FIND(F$3,'CFR - XML import'!$A59)),0,VALUE(MID('CFR - XML import'!$A59,15,10))),IF(ISERROR(FIND(F$3,'CFR - XML import'!$A59)),0,VALUE(MID('CFR - XML import'!$A59,11,10))))","v":"00:00:00"},{"$f":"IF(ISERROR(FIND(G$3,'CFR - XML import'!$A59)),0,VALUE(MID('CFR - XML import'!$A59,SEARCH(\">\",'CFR - XML import'!$A59,1)+1,SEARCH(\"/\",'CFR - XML import'!$A59,1)-SEARCH(\">\",'CFR - XML import'!$A59,1)-2)))","v":0},{"$f":"IF(ISERROR(FIND(H$3,'CFR - XML import'!$A59)),0,VALUE(MID('CFR - XML import'!$A59,SEARCH(\">\",'CFR - XML import'!$A59,1)+1,SEARCH(\"/\",'CFR - XML import'!$A59,1)-SEARCH(\">\",'CFR - XML import'!$A59,1)-2)))","v":0},{"$f":"IF(ISERROR(FIND(I$3,'CFR - XML import'!$A59)),0,VALUE(MID('CFR - XML import'!$A59,SEARCH(\">\",'CFR - XML import'!$A59,1)+1,SEARCH(\"/\",'CFR - XML import'!$A59,1)-SEARCH(\">\",'CFR - XML import'!$A59,1)-2)))","v":0},{"$f":"IF(ISERROR(FIND(J$3,'CFR - XML import'!$A59)),0,VALUE(MID('CFR - XML import'!$A59,SEARCH(\">\",'CFR - XML import'!$A59,1)+1,SEARCH(\"/\",'CFR - XML import'!$A59,1)-SEARCH(\">\",'CFR - XML import'!$A59,1)-2)))","v":0},{"$f":"IF(ISERROR(FIND(K$3,'CFR - XML import'!$A59)),0,VALUE(MID('CFR - XML import'!$A59,SEARCH(\">\",'CFR - XML import'!$A59,1)+1,SEARCH(\"/\",'CFR - XML import'!$A59,1)-SEARCH(\">\",'CFR - XML import'!$A59,1)-2)))","v":0},{"$f":"IF(ISERROR(FIND(L$3,'CFR - XML import'!$A59)),0,VALUE(MID('CFR - XML import'!$A59,SEARCH(\">\",'CFR - XML import'!$A59,1)+1,SEARCH(\"/\",'CFR - XML import'!$A59,1)-SEARCH(\">\",'CFR - XML import'!$A59,1)-2)))","v":0},{"$f":"IF(ISERROR(FIND(M$3,'CFR - XML import'!$A59)),0,VALUE(MID('CFR - XML import'!$A59,SEARCH(\">\",'CFR - XML import'!$A59,1)+1,SEARCH(\"/\",'CFR - XML import'!$A59,1)-SEARCH(\">\",'CFR - XML import'!$A59,1)-2)))","v":0},{"$f":"IF(ISERROR(FIND(N$3,'CFR - XML import'!$A59)),0,VALUE(MID('CFR - XML import'!$A59,SEARCH(\">\",'CFR - XML import'!$A59,1)+1,SEARCH(\"/\",'CFR - XML import'!$A59,1)-SEARCH(\">\",'CFR - XML import'!$A59,1)-2)))","v":0},{"$f":"IF(ISERROR(FIND(O$3,'CFR - XML import'!$A59)),0,VALUE(MID('CFR - XML import'!$A59,SEARCH(\">\",'CFR - XML import'!$A59,1)+1,SEARCH(\"/\",'CFR - XML import'!$A59,1)-SEARCH(\">\",'CFR - XML import'!$A59,1)-2)))","v":0},{"$f":"IF(ISERROR(FIND(P$3,'CFR - XML import'!$A59)),0,VALUE(MID('CFR - XML import'!$A59,SEARCH(\">\",'CFR - XML import'!$A59,1)+1,SEARCH(\"/\",'CFR - XML import'!$A59,1)-SEARCH(\">\",'CFR - XML import'!$A59,1)-2)))","v":0},{"$f":"IF(ISERROR(FIND(Q$3,'CFR - XML import'!$A59)),0,VALUE(MID('CFR - XML import'!$A59,SEARCH(\">\",'CFR - XML import'!$A59,1)+1,SEARCH(\"/\",'CFR - XML import'!$A59,1)-SEARCH(\">\",'CFR - XML import'!$A59,1)-2)))","v":0},{"$f":"IF(ISERROR(FIND(R$3,'CFR - XML import'!$A59)),0,VALUE(MID('CFR - XML import'!$A59,SEARCH(\">\",'CFR - XML import'!$A59,1)+1,SEARCH(\"/\",'CFR - XML import'!$A59,1)-SEARCH(\">\",'CFR - XML import'!$A59,1)-2)))","v":0},{"$f":"IF(ISERROR(FIND(S$3,'CFR - XML import'!$A59)),0,VALUE(MID('CFR - XML import'!$A59,SEARCH(\">\",'CFR - XML import'!$A59,1)+1,SEARCH(\"/\",'CFR - XML import'!$A59,1)-SEARCH(\">\",'CFR - XML import'!$A59,1)-2)))","v":0},{"$f":"IF(ISERROR(FIND(T$3,'CFR - XML import'!$A59)),0,VALUE(MID('CFR - XML import'!$A59,SEARCH(\">\",'CFR - XML import'!$A59,1)+1,SEARCH(\"/\",'CFR - XML import'!$A59,1)-SEARCH(\">\",'CFR - XML import'!$A59,1)-2)))","v":0},{"$f":"IF(ISERROR(FIND(U$3,'CFR - XML import'!$A59)),0,VALUE(MID('CFR - XML import'!$A59,SEARCH(\">\",'CFR - XML import'!$A59,1)+1,SEARCH(\"/\",'CFR - XML import'!$A59,1)-SEARCH(\">\",'CFR - XML import'!$A59,1)-2)))","v":0},{"$f":"IF(ISERROR(FIND(V$3,'CFR - XML import'!$A59)),0,VALUE(MID('CFR - XML import'!$A59,SEARCH(\">\",'CFR - XML import'!$A59,1)+1,SEARCH(\"/\",'CFR - XML import'!$A59,1)-SEARCH(\">\",'CFR - XML import'!$A59,1)-2)))","v":0},{"$f":"IF(ISERROR(FIND(W$3,'CFR - XML import'!$A59)),0,VALUE(MID('CFR - XML import'!$A59,SEARCH(\">\",'CFR - XML import'!$A59,1)+1,SEARCH(\"/\",'CFR - XML import'!$A59,1)-SEARCH(\">\",'CFR - XML import'!$A59,1)-2)))","v":0},null,{"$f":"IF(ISERROR(FIND(Y$3,'CFR - XML import'!$A59)),0,VALUE(MID('CFR - XML import'!$A59,SEARCH(\">\",'CFR - XML import'!$A59,1)+1,SEARCH(\"/\",'CFR - XML import'!$A59,1)-SEARCH(\">\",'CFR - XML import'!$A59,1)-2)))","v":0},{"$f":"IF(ISERROR(FIND(Z$3,'CFR - XML import'!$A59)),0,VALUE(MID('CFR - XML import'!$A59,SEARCH(\">\",'CFR - XML import'!$A59,1)+1,SEARCH(\"/\",'CFR - XML import'!$A59,1)-SEARCH(\">\",'CFR - XML import'!$A59,1)-2)))","v":0},{"$f":"IF(ISERROR(FIND(AA$3,'CFR - XML import'!$A59)),0,VALUE(MID('CFR - XML import'!$A59,SEARCH(\">\",'CFR - XML import'!$A59,1)+1,SEARCH(\"/\",'CFR - XML import'!$A59,1)-SEARCH(\">\",'CFR - XML import'!$A59,1)-2)))","v":0},{"$f":"IF(ISERROR(FIND(AB$3,'CFR - XML import'!$A59)),0,VALUE(MID('CFR - XML import'!$A59,SEARCH(\">\",'CFR - XML import'!$A59,1)+1,SEARCH(\"/\",'CFR - XML import'!$A59,1)-SEARCH(\">\",'CFR - XML import'!$A59,1)-2)))","v":0},{"$f":"IF(ISERROR(FIND(AC$3,'CFR - XML import'!$A59)),0,VALUE(MID('CFR - XML import'!$A59,SEARCH(\">\",'CFR - XML import'!$A59,1)+1,SEARCH(\"/\",'CFR - XML import'!$A59,1)-SEARCH(\">\",'CFR - XML import'!$A59,1)-2)))","v":0},{"$f":"IF(ISERROR(FIND(AD$3,'CFR - XML import'!$A59)),0,VALUE(MID('CFR - XML import'!$A59,SEARCH(\">\",'CFR - XML import'!$A59,1)+1,SEARCH(\"/\",'CFR - XML import'!$A59,1)-SEARCH(\">\",'CFR - XML import'!$A59,1)-2)))","v":0},{"$f":"IF(ISERROR(FIND(AE$3,'CFR - XML import'!$A59)),0,VALUE(MID('CFR - XML import'!$A59,SEARCH(\">\",'CFR - XML import'!$A59,1)+1,SEARCH(\"/\",'CFR - XML import'!$A59,1)-SEARCH(\">\",'CFR - XML import'!$A59,1)-2)))","v":0},{"$f":"IF(ISERROR(FIND(AF$3,'CFR - XML import'!$A59)),0,VALUE(MID('CFR - XML import'!$A59,SEARCH(\">\",'CFR - XML import'!$A59,1)+1,SEARCH(\"/\",'CFR - XML import'!$A59,1)-SEARCH(\">\",'CFR - XML import'!$A59,1)-2)))","v":0},{"$f":"IF(ISERROR(FIND(AG$3,'CFR - XML import'!$A59)),0,VALUE(MID('CFR - XML import'!$A59,SEARCH(\">\",'CFR - XML import'!$A59,1)+1,SEARCH(\"/\",'CFR - XML import'!$A59,1)-SEARCH(\">\",'CFR - XML import'!$A59,1)-2)))","v":0},{"$f":"IF(ISERROR(FIND(AH$3,'CFR - XML import'!$A59)),0,VALUE(MID('CFR - XML import'!$A59,SEARCH(\">\",'CFR - XML import'!$A59,1)+1,SEARCH(\"/\",'CFR - XML import'!$A59,1)-SEARCH(\">\",'CFR - XML import'!$A59,1)-2)))","v":0},{"$f":"IF(ISERROR(FIND(AI$3,'CFR - XML import'!$A59)),0,VALUE(MID('CFR - XML import'!$A59,SEARCH(\">\",'CFR - XML import'!$A59,1)+1,SEARCH(\"/\",'CFR - XML import'!$A59,1)-SEARCH(\">\",'CFR - XML import'!$A59,1)-2)))","v":0},{"$f":"IF(ISERROR(FIND(AJ$3,'CFR - XML import'!$A59)),0,VALUE(MID('CFR - XML import'!$A59,SEARCH(\">\",'CFR - XML import'!$A59,1)+1,SEARCH(\"/\",'CFR - XML import'!$A59,1)-SEARCH(\">\",'CFR - XML import'!$A59,1)-2)))","v":0},{"$f":"IF(ISERROR(FIND(AK$3,'CFR - XML import'!$A59)),0,VALUE(MID('CFR - XML import'!$A59,SEARCH(\">\",'CFR - XML import'!$A59,1)+1,SEARCH(\"/\",'CFR - XML import'!$A59,1)-SEARCH(\">\",'CFR - XML import'!$A59,1)-2)))","v":0},{"$f":"IF(ISERROR(FIND(AL$3,'CFR - XML import'!$A59)),0,VALUE(MID('CFR - XML import'!$A59,SEARCH(\">\",'CFR - XML import'!$A59,1)+1,SEARCH(\"/\",'CFR - XML import'!$A59,1)-SEARCH(\">\",'CFR - XML import'!$A59,1)-2)))","v":0},{"$f":"IF(ISERROR(FIND(AM$3,'CFR - XML import'!$A59)),0,VALUE(MID('CFR - XML import'!$A59,SEARCH(\">\",'CFR - XML import'!$A59,1)+1,SEARCH(\"/\",'CFR - XML import'!$A59,1)-SEARCH(\">\",'CFR - XML import'!$A59,1)-2)))","v":0},{"$f":"IF(ISERROR(FIND(AN$3,'CFR - XML import'!$A59)),0,VALUE(MID('CFR - XML import'!$A59,SEARCH(\">\",'CFR - XML import'!$A59,1)+1,SEARCH(\"/\",'CFR - XML import'!$A59,1)-SEARCH(\">\",'CFR - XML import'!$A59,1)-2)))","v":0},{"$f":"IF(ISERROR(FIND(AO$3,'CFR - XML import'!$A59)),0,VALUE(MID('CFR - XML import'!$A59,SEARCH(\">\",'CFR - XML import'!$A59,1)+1,SEARCH(\"/\",'CFR - XML import'!$A59,1)-SEARCH(\">\",'CFR - XML import'!$A59,1)-2)))","v":0},{"$f":"IF(ISERROR(FIND(AP$3,'CFR - XML import'!$A59)),0,VALUE(MID('CFR - XML import'!$A59,SEARCH(\">\",'CFR - XML import'!$A59,1)+1,SEARCH(\"/\",'CFR - XML import'!$A59,1)-SEARCH(\">\",'CFR - XML import'!$A59,1)-2)))","v":0},{"$f":"IF(ISERROR(FIND(AQ$3,'CFR - XML import'!$A59)),0,VALUE(MID('CFR - XML import'!$A59,SEARCH(\">\",'CFR - XML import'!$A59,1)+1,SEARCH(\"/\",'CFR - XML import'!$A59,1)-SEARCH(\">\",'CFR - XML import'!$A59,1)-2)))","v":0},{"$f":"IF(ISERROR(FIND(AR$3,'CFR - XML import'!$A59)),0,VALUE(MID('CFR - XML import'!$A59,SEARCH(\">\",'CFR - XML import'!$A59,1)+1,SEARCH(\"/\",'CFR - XML import'!$A59,1)-SEARCH(\">\",'CFR - XML import'!$A59,1)-2)))","v":0},{"$f":"IF(ISERROR(FIND(AS$3,'CFR - XML import'!$A59)),0,VALUE(MID('CFR - XML import'!$A59,SEARCH(\">\",'CFR - XML import'!$A59,1)+1,SEARCH(\"/\",'CFR - XML import'!$A59,1)-SEARCH(\">\",'CFR - XML import'!$A59,1)-2)))","v":0},{"$f":"IF(ISERROR(FIND(AT$3,'CFR - XML import'!$A59)),0,VALUE(MID('CFR - XML import'!$A59,SEARCH(\">\",'CFR - XML import'!$A59,1)+1,SEARCH(\"/\",'CFR - XML import'!$A59,1)-SEARCH(\">\",'CFR - XML import'!$A59,1)-2)))","v":0},{"$f":"IF(ISERROR(FIND(AU$3,'CFR - XML import'!$A59)),0,VALUE(MID('CFR - XML import'!$A59,SEARCH(\">\",'CFR - XML import'!$A59,1)+1,SEARCH(\"/\",'CFR - XML import'!$A59,1)-SEARCH(\">\",'CFR - XML import'!$A59,1)-2)))","v":0},{"$f":"IF(ISERROR(FIND(AV$3,'CFR - XML import'!$A59)),0,VALUE(MID('CFR - XML import'!$A59,SEARCH(\">\",'CFR - XML import'!$A59,1)+1,SEARCH(\"/\",'CFR - XML import'!$A59,1)-SEARCH(\">\",'CFR - XML import'!$A59,1)-2)))","v":0},{"$f":"IF(ISERROR(FIND(AW$3,'CFR - XML import'!$A59)),0,VALUE(MID('CFR - XML import'!$A59,SEARCH(\">\",'CFR - XML import'!$A59,1)+1,SEARCH(\"/\",'CFR - XML import'!$A59,1)-SEARCH(\">\",'CFR - XML import'!$A59,1)-2)))","v":0},{"$f":"IF(ISERROR(FIND(AX$3,'CFR - XML import'!$A59)),0,VALUE(MID('CFR - XML import'!$A59,SEARCH(\">\",'CFR - XML import'!$A59,1)+1,SEARCH(\"/\",'CFR - XML import'!$A59,1)-SEARCH(\">\",'CFR - XML import'!$A59,1)-2)))","v":0},{"$f":"IF(ISERROR(FIND(AY$3,'CFR - XML import'!$A59)),0,VALUE(MID('CFR - XML import'!$A59,SEARCH(\">\",'CFR - XML import'!$A59,1)+1,SEARCH(\"/\",'CFR - XML import'!$A59,1)-SEARCH(\">\",'CFR - XML import'!$A59,1)-2)))","v":0},{"$f":"IF(ISERROR(FIND(AZ$3,'CFR - XML import'!$A59)),0,VALUE(MID('CFR - XML import'!$A59,SEARCH(\">\",'CFR - XML import'!$A59,1)+1,SEARCH(\"/\",'CFR - XML import'!$A59,1)-SEARCH(\">\",'CFR - XML import'!$A59,1)-2)))","v":0},{"$f":"IF(ISERROR(FIND(BA$3,'CFR - XML import'!$A59)),0,VALUE(MID('CFR - XML import'!$A59,SEARCH(\">\",'CFR - XML import'!$A59,1)+1,SEARCH(\"/\",'CFR - XML import'!$A59,1)-SEARCH(\">\",'CFR - XML import'!$A59,1)-2)))","v":0},{"$f":"IF(ISERROR(FIND(BB$3,'CFR - XML import'!$A59)),0,VALUE(MID('CFR - XML import'!$A59,SEARCH(\">\",'CFR - XML import'!$A59,1)+1,SEARCH(\"/\",'CFR - XML import'!$A59,1)-SEARCH(\">\",'CFR - XML import'!$A59,1)-2)))","v":0},{"$f":"IF(ISERROR(FIND(BC$3,'CFR - XML import'!$A59)),0,VALUE(MID('CFR - XML import'!$A59,SEARCH(\">\",'CFR - XML import'!$A59,1)+1,SEARCH(\"/\",'CFR - XML import'!$A59,1)-SEARCH(\">\",'CFR - XML import'!$A59,1)-2)))","v":0},{"$f":"IF(ISERROR(FIND(BD$3,'CFR - XML import'!$A59)),0,VALUE(MID('CFR - XML import'!$A59,SEARCH(\">\",'CFR - XML import'!$A59,1)+1,SEARCH(\"/\",'CFR - XML import'!$A59,1)-SEARCH(\">\",'CFR - XML import'!$A59,1)-2)))","v":0},{"$f":"IF(ISERROR(FIND(BE$3,'CFR - XML import'!$A59)),0,VALUE(MID('CFR - XML import'!$A59,SEARCH(\">\",'CFR - XML import'!$A59,1)+1,SEARCH(\"/\",'CFR - XML import'!$A59,1)-SEARCH(\">\",'CFR - XML import'!$A59,1)-2)))","v":0},{"$f":"IF(ISERROR(FIND(BF$3,'CFR - XML import'!$A59)),0,VALUE(MID('CFR - XML import'!$A59,SEARCH(\">\",'CFR - XML import'!$A59,1)+1,SEARCH(\"/\",'CFR - XML import'!$A59,1)-SEARCH(\">\",'CFR - XML import'!$A59,1)-2)))","v":0},{"$f":"IF(ISERROR(FIND(BG$3,'CFR - XML import'!$A59)),0,VALUE(MID('CFR - XML import'!$A59,SEARCH(\">\",'CFR - XML import'!$A59,1)+1,SEARCH(\"/\",'CFR - XML import'!$A59,1)-SEARCH(\">\",'CFR - XML import'!$A59,1)-2)))","v":0},{"$f":"IF(ISERROR(FIND(BH$3,'CFR - XML import'!$A59)),0,VALUE(MID('CFR - XML import'!$A59,SEARCH(\">\",'CFR - XML import'!$A59,1)+1,SEARCH(\"/\",'CFR - XML import'!$A59,1)-SEARCH(\">\",'CFR - XML import'!$A59,1)-2)))","v":0},{"$f":"IF(ISERROR(FIND(BI$3,'CFR - XML import'!$A59)),0,VALUE(MID('CFR - XML import'!$A59,SEARCH(\">\",'CFR - XML import'!$A59,1)+1,SEARCH(\"/\",'CFR - XML import'!$A59,1)-SEARCH(\">\",'CFR - XML import'!$A59,1)-2)))","v":0},{"$f":"IF(ISERROR(FIND(BJ$3,'CFR - XML import'!$A59)),0,VALUE(MID('CFR - XML import'!$A59,SEARCH(\">\",'CFR - XML import'!$A59,1)+1,SEARCH(\"/\",'CFR - XML import'!$A59,1)-SEARCH(\">\",'CFR - XML import'!$A59,1)-2)))","v":0},{"$f":"IF(ISERROR(FIND(BK$3,'CFR - XML import'!$A59)),0,VALUE(MID('CFR - XML import'!$A59,SEARCH(\">\",'CFR - XML import'!$A59,1)+1,SEARCH(\"/\",'CFR - XML import'!$A59,1)-SEARCH(\">\",'CFR - XML import'!$A59,1)-2)))","v":0},{"$f":"IF(ISERROR(FIND(BL$3,'CFR - XML import'!$A59)),0,VALUE(MID('CFR - XML import'!$A59,SEARCH(\">\",'CFR - XML import'!$A59,1)+1,SEARCH(\"/\",'CFR - XML import'!$A59,1)-SEARCH(\">\",'CFR - XML import'!$A59,1)-2)))","v":0},{"$f":"IF(ISERROR(FIND(BM$3,'CFR - XML import'!$A59)),0,VALUE(MID('CFR - XML import'!$A59,SEARCH(\">\",'CFR - XML import'!$A59,1)+1,SEARCH(\"/\",'CFR - XML import'!$A59,1)-SEARCH(\">\",'CFR - XML import'!$A59,1)-2)))","v":0},{"$f":"IF(ISERROR(FIND(BN$3,'CFR - XML import'!$A59)),0,VALUE(MID('CFR - XML import'!$A59,SEARCH(\">\",'CFR - XML import'!$A59,1)+1,SEARCH(\"/\",'CFR - XML import'!$A59,1)-SEARCH(\">\",'CFR - XML import'!$A59,1)-2)))","v":0},{"$f":"IF(ISERROR(FIND(BO$3,'CFR - XML import'!$A59)),0,VALUE(MID('CFR - XML import'!$A59,SEARCH(\">\",'CFR - XML import'!$A59,1)+1,SEARCH(\"/\",'CFR - XML import'!$A59,1)-SEARCH(\">\",'CFR - XML import'!$A59,1)-2)))","v":0},{"$f":"IF(ISERROR(FIND(BP$3,'CFR - XML import'!$A59)),0,VALUE(MID('CFR - XML import'!$A59,SEARCH(\">\",'CFR - XML import'!$A59,1)+1,SEARCH(\"/\",'CFR - XML import'!$A59,1)-SEARCH(\">\",'CFR - XML import'!$A59,1)-2)))","v":0},{"$f":"IF(ISERROR(FIND(BQ$3,'CFR - XML import'!$A59)),0,VALUE(MID('CFR - XML import'!$A59,SEARCH(\">\",'CFR - XML import'!$A59,1)+1,SEARCH(\"/\",'CFR - XML import'!$A59,1)-SEARCH(\">\",'CFR - XML import'!$A59,1)-2)))","v":0},{"$f":"IF(ISERROR(FIND(BR$3,'CFR - XML import'!$A59)),0,VALUE(MID('CFR - XML import'!$A59,SEARCH(\">\",'CFR - XML import'!$A59,1)+1,SEARCH(\"/\",'CFR - XML import'!$A59,1)-SEARCH(\">\",'CFR - XML import'!$A59,1)-2)))","v":0},{"$f":"IF(ISERROR(FIND(BS$3,'CFR - XML import'!$A59)),0,VALUE(MID('CFR - XML import'!$A59,SEARCH(\">\",'CFR - XML import'!$A59,1)+1,SEARCH(\"/\",'CFR - XML import'!$A59,1)-SEARCH(\">\",'CFR - XML import'!$A59,1)-2)))","v":0},{"$f":"IF(ISERROR(FIND(BT$3,'CFR - XML import'!$A59)),0,VALUE(MID('CFR - XML import'!$A59,SEARCH(\">\",'CFR - XML import'!$A59,1)+1,SEARCH(\"/\",'CFR - XML import'!$A59,1)-SEARCH(\">\",'CFR - XML import'!$A59,1)-2)))","v":0},{"$f":"IF(ISERROR(FIND(BU$3,'CFR - XML import'!$A59)),0,VALUE(MID('CFR - XML import'!$A59,SEARCH(\">\",'CFR - XML import'!$A59,1)+1,SEARCH(\"/\",'CFR - XML import'!$A59,1)-SEARCH(\">\",'CFR - XML import'!$A59,1)-2)))","v":0},{"$f":"IF(ISERROR(FIND(BV$3,'CFR - XML import'!$A59)),0,VALUE(MID('CFR - XML import'!$A59,SEARCH(\">\",'CFR - XML import'!$A59,1)+1,SEARCH(\"/\",'CFR - XML import'!$A59,1)-SEARCH(\">\",'CFR - XML import'!$A59,1)-2)))","v":0},{"$f":"IF(ISERROR(FIND(BW$3,'CFR - XML import'!$A59)),0,VALUE(MID('CFR - XML import'!$A59,SEARCH(\">\",'CFR - XML import'!$A59,1)+1,SEARCH(\"/\",'CFR - XML import'!$A59,1)-SEARCH(\">\",'CFR - XML import'!$A59,1)-2)))","v":0},{"$f":"IF(ISERROR(FIND(BX$3,'CFR - XML import'!$A59)),0,VALUE(MID('CFR - XML import'!$A59,SEARCH(\">\",'CFR - XML import'!$A59,1)+1,SEARCH(\"/\",'CFR - XML import'!$A59,1)-SEARCH(\">\",'CFR - XML import'!$A59,1)-2)))","v":0},{"$f":"IF(ISERROR(FIND(BY$3,'CFR - XML import'!$A59)),0,VALUE(MID('CFR - XML import'!$A59,SEARCH(\">\",'CFR - XML import'!$A59,1)+1,SEARCH(\"/\",'CFR - XML import'!$A59,1)-SEARCH(\">\",'CFR - XML import'!$A59,1)-2)))","v":0},{"$f":"IF(ISERROR(FIND(BZ$3,'CFR - XML import'!$A59)),0,VALUE(MID('CFR - XML import'!$A59,SEARCH(\">\",'CFR - XML import'!$A59,1)+1,SEARCH(\"/\",'CFR - XML import'!$A59,1)-SEARCH(\">\",'CFR - XML import'!$A59,1)-2)))","v":0},null,null,null,null,null,null,{"$f":"IF(ISERROR(IF(MID('CFR - XML import'!$A59,LEN($CF$4)+1,LEN('CFR - XML import'!$A59)-(2*LEN($CF$4)+1))=\"RMMS\",1,IF(MID('CFR - XML import'!$A59,LEN(\"    <InputSystem>\")+1,LEN('CFR - XML import'!$A59)-(LEN(\"    <InputSystem>\")+LEN($CF$4)+1))=\"SIMS\",2,0))),0,IF(MID('CFR - XML import'!$A59,LEN($CF$4)+1,LEN('CFR - XML import'!$A59)-(2*LEN($CF$4)+1))=\"RMMS\",1,IF(MID('CFR - XML import'!$A59,LEN(\"    <InputSystem>\")+1,LEN('CFR - XML import'!$A59)-(LEN(\"    <InputSystem>\")+LEN($CF$4)+1))=\"SIMS\",2,0)))","v":0},{"$f":"IF(ISERROR(FIND(CH$3,'CFR - XML import'!$A59)),0,MID('CFR - XML import'!$A59,SEARCH(\">\",'CFR - XML import'!$A59,1)+1,SEARCH(\"/\",'CFR - XML import'!$A59,1)-SEARCH(\">\",'CFR - XML import'!$A59,1)-2))","v":0},{"$f":"IF(ISERROR(FIND(CI$3,'CFR - XML import'!$A59)),0,MID('CFR - XML import'!$A59,SEARCH(\">\",'CFR - XML import'!$A59,1)+1,SEARCH(\"/\",'CFR - XML import'!$A59,1)-SEARCH(\">\",'CFR - XML import'!$A59,1)-2))","v":0},{"$f":"IF(ISERROR(FIND(CJ$3,'CFR - XML import'!$A59)),0,MID('CFR - XML import'!$A59,SEARCH(\">\",'CFR - XML import'!$A59,1)+1,SEARCH(\"/\",'CFR - XML import'!$A59,1)-SEARCH(\">\",'CFR - XML import'!$A59,1)-2))","v":0},{"$f":"IF(ISERROR(FIND(CK$3,'CFR - XML import'!$A59)),0,MID('CFR - XML import'!$A59,SEARCH(\">\",'CFR - XML import'!$A59,1)+1,SEARCH(\"/\",'CFR - XML import'!$A59,1)-SEARCH(\">\",'CFR - XML import'!$A59,1)-2))","v":0},{"$f":"IF(ISERROR(FIND(CL$3,'CFR - XML import'!$A59)),0,MID('CFR - XML import'!$A59,SEARCH(\">\",'CFR - XML import'!$A59,1)+1,SEARCH(\"/\",'CFR - XML import'!$A59,1)-SEARCH(\">\",'CFR - XML import'!$A59,1)-2))","v":0}]
[{"$f":"IF(AND('CFR - XML import'!A60<>\"\",LEFT('CFR - XML import'!A60,1)<>\"<\",LEFT('CFR - XML import'!A60,3)<>\"  <\",LEFT('CFR - XML import'!A60,5)<>\"    <\",LEFT('CFR - XML import'!A60,7)<>\"      <\",LEFT('CFR - XML import'!A60,9)<>\"        <\",$B$1=\"SIMS\"),'CFR - XML import'!A60,IF(AND(LEFT('CFR - XML import'!A60,9)=\"<Details>\",$B$1=\"RM\"),'CFR - XML import'!A60,\"\"))","v":""},{"$f":"IF(ISERROR(FIND(B$3,'CFR - XML import'!$A60)),0,VALUE(MID('CFR - XML import'!$A60,SEARCH(\">\",'CFR - XML import'!$A60,1)+1,SEARCH(\"/\",'CFR - XML import'!$A60,1)-SEARCH(\">\",'CFR - XML import'!$A60,1)-2)))","v":0},null,{"$f":"IF(ISERROR(FIND(D$3,'CFR - XML import'!$A60)),0,MID('CFR - XML import'!$A60,SEARCH(\">\",'CFR - XML import'!$A60,1)+1,SEARCH(\"/\",'CFR - XML import'!$A60,1)-SEARCH(\">\",'CFR - XML import'!$A60,1)-2))","v":0},{"$f":"IF(ISERROR(FIND(E$3,'CFR - XML import'!$A60)),0,MID('CFR - XML import'!$A60,SEARCH(\">\",'CFR - XML import'!$A60,1)+1,SEARCH(\"/\",'CFR - XML import'!$A60,1)-SEARCH(\">\",'CFR - XML import'!$A60,1)-2))","v":0},{"$f":"IF($B$1=\"SIMS\",IF(ISERROR(FIND(F$3,'CFR - XML import'!$A60)),0,VALUE(MID('CFR - XML import'!$A60,15,10))),IF(ISERROR(FIND(F$3,'CFR - XML import'!$A60)),0,VALUE(MID('CFR - XML import'!$A60,11,10))))","v":"00:00:00"},{"$f":"IF(ISERROR(FIND(G$3,'CFR - XML import'!$A60)),0,VALUE(MID('CFR - XML import'!$A60,SEARCH(\">\",'CFR - XML import'!$A60,1)+1,SEARCH(\"/\",'CFR - XML import'!$A60,1)-SEARCH(\">\",'CFR - XML import'!$A60,1)-2)))","v":0},{"$f":"IF(ISERROR(FIND(H$3,'CFR - XML import'!$A60)),0,VALUE(MID('CFR - XML import'!$A60,SEARCH(\">\",'CFR - XML import'!$A60,1)+1,SEARCH(\"/\",'CFR - XML import'!$A60,1)-SEARCH(\">\",'CFR - XML import'!$A60,1)-2)))","v":0},{"$f":"IF(ISERROR(FIND(I$3,'CFR - XML import'!$A60)),0,VALUE(MID('CFR - XML import'!$A60,SEARCH(\">\",'CFR - XML import'!$A60,1)+1,SEARCH(\"/\",'CFR - XML import'!$A60,1)-SEARCH(\">\",'CFR - XML import'!$A60,1)-2)))","v":0},{"$f":"IF(ISERROR(FIND(J$3,'CFR - XML import'!$A60)),0,VALUE(MID('CFR - XML import'!$A60,SEARCH(\">\",'CFR - XML import'!$A60,1)+1,SEARCH(\"/\",'CFR - XML import'!$A60,1)-SEARCH(\">\",'CFR - XML import'!$A60,1)-2)))","v":0},{"$f":"IF(ISERROR(FIND(K$3,'CFR - XML import'!$A60)),0,VALUE(MID('CFR - XML import'!$A60,SEARCH(\">\",'CFR - XML import'!$A60,1)+1,SEARCH(\"/\",'CFR - XML import'!$A60,1)-SEARCH(\">\",'CFR - XML import'!$A60,1)-2)))","v":0},{"$f":"IF(ISERROR(FIND(L$3,'CFR - XML import'!$A60)),0,VALUE(MID('CFR - XML import'!$A60,SEARCH(\">\",'CFR - XML import'!$A60,1)+1,SEARCH(\"/\",'CFR - XML import'!$A60,1)-SEARCH(\">\",'CFR - XML import'!$A60,1)-2)))","v":0},{"$f":"IF(ISERROR(FIND(M$3,'CFR - XML import'!$A60)),0,VALUE(MID('CFR - XML import'!$A60,SEARCH(\">\",'CFR - XML import'!$A60,1)+1,SEARCH(\"/\",'CFR - XML import'!$A60,1)-SEARCH(\">\",'CFR - XML import'!$A60,1)-2)))","v":0},{"$f":"IF(ISERROR(FIND(N$3,'CFR - XML import'!$A60)),0,VALUE(MID('CFR - XML import'!$A60,SEARCH(\">\",'CFR - XML import'!$A60,1)+1,SEARCH(\"/\",'CFR - XML import'!$A60,1)-SEARCH(\">\",'CFR - XML import'!$A60,1)-2)))","v":0},{"$f":"IF(ISERROR(FIND(O$3,'CFR - XML import'!$A60)),0,VALUE(MID('CFR - XML import'!$A60,SEARCH(\">\",'CFR - XML import'!$A60,1)+1,SEARCH(\"/\",'CFR - XML import'!$A60,1)-SEARCH(\">\",'CFR - XML import'!$A60,1)-2)))","v":0},{"$f":"IF(ISERROR(FIND(P$3,'CFR - XML import'!$A60)),0,VALUE(MID('CFR - XML import'!$A60,SEARCH(\">\",'CFR - XML import'!$A60,1)+1,SEARCH(\"/\",'CFR - XML import'!$A60,1)-SEARCH(\">\",'CFR - XML import'!$A60,1)-2)))","v":0},{"$f":"IF(ISERROR(FIND(Q$3,'CFR - XML import'!$A60)),0,VALUE(MID('CFR - XML import'!$A60,SEARCH(\">\",'CFR - XML import'!$A60,1)+1,SEARCH(\"/\",'CFR - XML import'!$A60,1)-SEARCH(\">\",'CFR - XML import'!$A60,1)-2)))","v":0},{"$f":"IF(ISERROR(FIND(R$3,'CFR - XML import'!$A60)),0,VALUE(MID('CFR - XML import'!$A60,SEARCH(\">\",'CFR - XML import'!$A60,1)+1,SEARCH(\"/\",'CFR - XML import'!$A60,1)-SEARCH(\">\",'CFR - XML import'!$A60,1)-2)))","v":0},{"$f":"IF(ISERROR(FIND(S$3,'CFR - XML import'!$A60)),0,VALUE(MID('CFR - XML import'!$A60,SEARCH(\">\",'CFR - XML import'!$A60,1)+1,SEARCH(\"/\",'CFR - XML import'!$A60,1)-SEARCH(\">\",'CFR - XML import'!$A60,1)-2)))","v":0},{"$f":"IF(ISERROR(FIND(T$3,'CFR - XML import'!$A60)),0,VALUE(MID('CFR - XML import'!$A60,SEARCH(\">\",'CFR - XML import'!$A60,1)+1,SEARCH(\"/\",'CFR - XML import'!$A60,1)-SEARCH(\">\",'CFR - XML import'!$A60,1)-2)))","v":0},{"$f":"IF(ISERROR(FIND(U$3,'CFR - XML import'!$A60)),0,VALUE(MID('CFR - XML import'!$A60,SEARCH(\">\",'CFR - XML import'!$A60,1)+1,SEARCH(\"/\",'CFR - XML import'!$A60,1)-SEARCH(\">\",'CFR - XML import'!$A60,1)-2)))","v":0},{"$f":"IF(ISERROR(FIND(V$3,'CFR - XML import'!$A60)),0,VALUE(MID('CFR - XML import'!$A60,SEARCH(\">\",'CFR - XML import'!$A60,1)+1,SEARCH(\"/\",'CFR - XML import'!$A60,1)-SEARCH(\">\",'CFR - XML import'!$A60,1)-2)))","v":0},{"$f":"IF(ISERROR(FIND(W$3,'CFR - XML import'!$A60)),0,VALUE(MID('CFR - XML import'!$A60,SEARCH(\">\",'CFR - XML import'!$A60,1)+1,SEARCH(\"/\",'CFR - XML import'!$A60,1)-SEARCH(\">\",'CFR - XML import'!$A60,1)-2)))","v":0},null,{"$f":"IF(ISERROR(FIND(Y$3,'CFR - XML import'!$A60)),0,VALUE(MID('CFR - XML import'!$A60,SEARCH(\">\",'CFR - XML import'!$A60,1)+1,SEARCH(\"/\",'CFR - XML import'!$A60,1)-SEARCH(\">\",'CFR - XML import'!$A60,1)-2)))","v":0},{"$f":"IF(ISERROR(FIND(Z$3,'CFR - XML import'!$A60)),0,VALUE(MID('CFR - XML import'!$A60,SEARCH(\">\",'CFR - XML import'!$A60,1)+1,SEARCH(\"/\",'CFR - XML import'!$A60,1)-SEARCH(\">\",'CFR - XML import'!$A60,1)-2)))","v":0},{"$f":"IF(ISERROR(FIND(AA$3,'CFR - XML import'!$A60)),0,VALUE(MID('CFR - XML import'!$A60,SEARCH(\">\",'CFR - XML import'!$A60,1)+1,SEARCH(\"/\",'CFR - XML import'!$A60,1)-SEARCH(\">\",'CFR - XML import'!$A60,1)-2)))","v":0},{"$f":"IF(ISERROR(FIND(AB$3,'CFR - XML import'!$A60)),0,VALUE(MID('CFR - XML import'!$A60,SEARCH(\">\",'CFR - XML import'!$A60,1)+1,SEARCH(\"/\",'CFR - XML import'!$A60,1)-SEARCH(\">\",'CFR - XML import'!$A60,1)-2)))","v":0},{"$f":"IF(ISERROR(FIND(AC$3,'CFR - XML import'!$A60)),0,VALUE(MID('CFR - XML import'!$A60,SEARCH(\">\",'CFR - XML import'!$A60,1)+1,SEARCH(\"/\",'CFR - XML import'!$A60,1)-SEARCH(\">\",'CFR - XML import'!$A60,1)-2)))","v":0},{"$f":"IF(ISERROR(FIND(AD$3,'CFR - XML import'!$A60)),0,VALUE(MID('CFR - XML import'!$A60,SEARCH(\">\",'CFR - XML import'!$A60,1)+1,SEARCH(\"/\",'CFR - XML import'!$A60,1)-SEARCH(\">\",'CFR - XML import'!$A60,1)-2)))","v":0},{"$f":"IF(ISERROR(FIND(AE$3,'CFR - XML import'!$A60)),0,VALUE(MID('CFR - XML import'!$A60,SEARCH(\">\",'CFR - XML import'!$A60,1)+1,SEARCH(\"/\",'CFR - XML import'!$A60,1)-SEARCH(\">\",'CFR - XML import'!$A60,1)-2)))","v":0},{"$f":"IF(ISERROR(FIND(AF$3,'CFR - XML import'!$A60)),0,VALUE(MID('CFR - XML import'!$A60,SEARCH(\">\",'CFR - XML import'!$A60,1)+1,SEARCH(\"/\",'CFR - XML import'!$A60,1)-SEARCH(\">\",'CFR - XML import'!$A60,1)-2)))","v":0},{"$f":"IF(ISERROR(FIND(AG$3,'CFR - XML import'!$A60)),0,VALUE(MID('CFR - XML import'!$A60,SEARCH(\">\",'CFR - XML import'!$A60,1)+1,SEARCH(\"/\",'CFR - XML import'!$A60,1)-SEARCH(\">\",'CFR - XML import'!$A60,1)-2)))","v":0},{"$f":"IF(ISERROR(FIND(AH$3,'CFR - XML import'!$A60)),0,VALUE(MID('CFR - XML import'!$A60,SEARCH(\">\",'CFR - XML import'!$A60,1)+1,SEARCH(\"/\",'CFR - XML import'!$A60,1)-SEARCH(\">\",'CFR - XML import'!$A60,1)-2)))","v":0},{"$f":"IF(ISERROR(FIND(AI$3,'CFR - XML import'!$A60)),0,VALUE(MID('CFR - XML import'!$A60,SEARCH(\">\",'CFR - XML import'!$A60,1)+1,SEARCH(\"/\",'CFR - XML import'!$A60,1)-SEARCH(\">\",'CFR - XML import'!$A60,1)-2)))","v":0},{"$f":"IF(ISERROR(FIND(AJ$3,'CFR - XML import'!$A60)),0,VALUE(MID('CFR - XML import'!$A60,SEARCH(\">\",'CFR - XML import'!$A60,1)+1,SEARCH(\"/\",'CFR - XML import'!$A60,1)-SEARCH(\">\",'CFR - XML import'!$A60,1)-2)))","v":0},{"$f":"IF(ISERROR(FIND(AK$3,'CFR - XML import'!$A60)),0,VALUE(MID('CFR - XML import'!$A60,SEARCH(\">\",'CFR - XML import'!$A60,1)+1,SEARCH(\"/\",'CFR - XML import'!$A60,1)-SEARCH(\">\",'CFR - XML import'!$A60,1)-2)))","v":0},{"$f":"IF(ISERROR(FIND(AL$3,'CFR - XML import'!$A60)),0,VALUE(MID('CFR - XML import'!$A60,SEARCH(\">\",'CFR - XML import'!$A60,1)+1,SEARCH(\"/\",'CFR - XML import'!$A60,1)-SEARCH(\">\",'CFR - XML import'!$A60,1)-2)))","v":0},{"$f":"IF(ISERROR(FIND(AM$3,'CFR - XML import'!$A60)),0,VALUE(MID('CFR - XML import'!$A60,SEARCH(\">\",'CFR - XML import'!$A60,1)+1,SEARCH(\"/\",'CFR - XML import'!$A60,1)-SEARCH(\">\",'CFR - XML import'!$A60,1)-2)))","v":0},{"$f":"IF(ISERROR(FIND(AN$3,'CFR - XML import'!$A60)),0,VALUE(MID('CFR - XML import'!$A60,SEARCH(\">\",'CFR - XML import'!$A60,1)+1,SEARCH(\"/\",'CFR - XML import'!$A60,1)-SEARCH(\">\",'CFR - XML import'!$A60,1)-2)))","v":0},{"$f":"IF(ISERROR(FIND(AO$3,'CFR - XML import'!$A60)),0,VALUE(MID('CFR - XML import'!$A60,SEARCH(\">\",'CFR - XML import'!$A60,1)+1,SEARCH(\"/\",'CFR - XML import'!$A60,1)-SEARCH(\">\",'CFR - XML import'!$A60,1)-2)))","v":0},{"$f":"IF(ISERROR(FIND(AP$3,'CFR - XML import'!$A60)),0,VALUE(MID('CFR - XML import'!$A60,SEARCH(\">\",'CFR - XML import'!$A60,1)+1,SEARCH(\"/\",'CFR - XML import'!$A60,1)-SEARCH(\">\",'CFR - XML import'!$A60,1)-2)))","v":0},{"$f":"IF(ISERROR(FIND(AQ$3,'CFR - XML import'!$A60)),0,VALUE(MID('CFR - XML import'!$A60,SEARCH(\">\",'CFR - XML import'!$A60,1)+1,SEARCH(\"/\",'CFR - XML import'!$A60,1)-SEARCH(\">\",'CFR - XML import'!$A60,1)-2)))","v":0},{"$f":"IF(ISERROR(FIND(AR$3,'CFR - XML import'!$A60)),0,VALUE(MID('CFR - XML import'!$A60,SEARCH(\">\",'CFR - XML import'!$A60,1)+1,SEARCH(\"/\",'CFR - XML import'!$A60,1)-SEARCH(\">\",'CFR - XML import'!$A60,1)-2)))","v":0},{"$f":"IF(ISERROR(FIND(AS$3,'CFR - XML import'!$A60)),0,VALUE(MID('CFR - XML import'!$A60,SEARCH(\">\",'CFR - XML import'!$A60,1)+1,SEARCH(\"/\",'CFR - XML import'!$A60,1)-SEARCH(\">\",'CFR - XML import'!$A60,1)-2)))","v":0},{"$f":"IF(ISERROR(FIND(AT$3,'CFR - XML import'!$A60)),0,VALUE(MID('CFR - XML import'!$A60,SEARCH(\">\",'CFR - XML import'!$A60,1)+1,SEARCH(\"/\",'CFR - XML import'!$A60,1)-SEARCH(\">\",'CFR - XML import'!$A60,1)-2)))","v":0},{"$f":"IF(ISERROR(FIND(AU$3,'CFR - XML import'!$A60)),0,VALUE(MID('CFR - XML import'!$A60,SEARCH(\">\",'CFR - XML import'!$A60,1)+1,SEARCH(\"/\",'CFR - XML import'!$A60,1)-SEARCH(\">\",'CFR - XML import'!$A60,1)-2)))","v":0},{"$f":"IF(ISERROR(FIND(AV$3,'CFR - XML import'!$A60)),0,VALUE(MID('CFR - XML import'!$A60,SEARCH(\">\",'CFR - XML import'!$A60,1)+1,SEARCH(\"/\",'CFR - XML import'!$A60,1)-SEARCH(\">\",'CFR - XML import'!$A60,1)-2)))","v":0},{"$f":"IF(ISERROR(FIND(AW$3,'CFR - XML import'!$A60)),0,VALUE(MID('CFR - XML import'!$A60,SEARCH(\">\",'CFR - XML import'!$A60,1)+1,SEARCH(\"/\",'CFR - XML import'!$A60,1)-SEARCH(\">\",'CFR - XML import'!$A60,1)-2)))","v":0},{"$f":"IF(ISERROR(FIND(AX$3,'CFR - XML import'!$A60)),0,VALUE(MID('CFR - XML import'!$A60,SEARCH(\">\",'CFR - XML import'!$A60,1)+1,SEARCH(\"/\",'CFR - XML import'!$A60,1)-SEARCH(\">\",'CFR - XML import'!$A60,1)-2)))","v":0},{"$f":"IF(ISERROR(FIND(AY$3,'CFR - XML import'!$A60)),0,VALUE(MID('CFR - XML import'!$A60,SEARCH(\">\",'CFR - XML import'!$A60,1)+1,SEARCH(\"/\",'CFR - XML import'!$A60,1)-SEARCH(\">\",'CFR - XML import'!$A60,1)-2)))","v":0},{"$f":"IF(ISERROR(FIND(AZ$3,'CFR - XML import'!$A60)),0,VALUE(MID('CFR - XML import'!$A60,SEARCH(\">\",'CFR - XML import'!$A60,1)+1,SEARCH(\"/\",'CFR - XML import'!$A60,1)-SEARCH(\">\",'CFR - XML import'!$A60,1)-2)))","v":0},{"$f":"IF(ISERROR(FIND(BA$3,'CFR - XML import'!$A60)),0,VALUE(MID('CFR - XML import'!$A60,SEARCH(\">\",'CFR - XML import'!$A60,1)+1,SEARCH(\"/\",'CFR - XML import'!$A60,1)-SEARCH(\">\",'CFR - XML import'!$A60,1)-2)))","v":0},{"$f":"IF(ISERROR(FIND(BB$3,'CFR - XML import'!$A60)),0,VALUE(MID('CFR - XML import'!$A60,SEARCH(\">\",'CFR - XML import'!$A60,1)+1,SEARCH(\"/\",'CFR - XML import'!$A60,1)-SEARCH(\">\",'CFR - XML import'!$A60,1)-2)))","v":0},{"$f":"IF(ISERROR(FIND(BC$3,'CFR - XML import'!$A60)),0,VALUE(MID('CFR - XML import'!$A60,SEARCH(\">\",'CFR - XML import'!$A60,1)+1,SEARCH(\"/\",'CFR - XML import'!$A60,1)-SEARCH(\">\",'CFR - XML import'!$A60,1)-2)))","v":0},{"$f":"IF(ISERROR(FIND(BD$3,'CFR - XML import'!$A60)),0,VALUE(MID('CFR - XML import'!$A60,SEARCH(\">\",'CFR - XML import'!$A60,1)+1,SEARCH(\"/\",'CFR - XML import'!$A60,1)-SEARCH(\">\",'CFR - XML import'!$A60,1)-2)))","v":0},{"$f":"IF(ISERROR(FIND(BE$3,'CFR - XML import'!$A60)),0,VALUE(MID('CFR - XML import'!$A60,SEARCH(\">\",'CFR - XML import'!$A60,1)+1,SEARCH(\"/\",'CFR - XML import'!$A60,1)-SEARCH(\">\",'CFR - XML import'!$A60,1)-2)))","v":0},{"$f":"IF(ISERROR(FIND(BF$3,'CFR - XML import'!$A60)),0,VALUE(MID('CFR - XML import'!$A60,SEARCH(\">\",'CFR - XML import'!$A60,1)+1,SEARCH(\"/\",'CFR - XML import'!$A60,1)-SEARCH(\">\",'CFR - XML import'!$A60,1)-2)))","v":0},{"$f":"IF(ISERROR(FIND(BG$3,'CFR - XML import'!$A60)),0,VALUE(MID('CFR - XML import'!$A60,SEARCH(\">\",'CFR - XML import'!$A60,1)+1,SEARCH(\"/\",'CFR - XML import'!$A60,1)-SEARCH(\">\",'CFR - XML import'!$A60,1)-2)))","v":0},{"$f":"IF(ISERROR(FIND(BH$3,'CFR - XML import'!$A60)),0,VALUE(MID('CFR - XML import'!$A60,SEARCH(\">\",'CFR - XML import'!$A60,1)+1,SEARCH(\"/\",'CFR - XML import'!$A60,1)-SEARCH(\">\",'CFR - XML import'!$A60,1)-2)))","v":0},{"$f":"IF(ISERROR(FIND(BI$3,'CFR - XML import'!$A60)),0,VALUE(MID('CFR - XML import'!$A60,SEARCH(\">\",'CFR - XML import'!$A60,1)+1,SEARCH(\"/\",'CFR - XML import'!$A60,1)-SEARCH(\">\",'CFR - XML import'!$A60,1)-2)))","v":0},{"$f":"IF(ISERROR(FIND(BJ$3,'CFR - XML import'!$A60)),0,VALUE(MID('CFR - XML import'!$A60,SEARCH(\">\",'CFR - XML import'!$A60,1)+1,SEARCH(\"/\",'CFR - XML import'!$A60,1)-SEARCH(\">\",'CFR - XML import'!$A60,1)-2)))","v":0},{"$f":"IF(ISERROR(FIND(BK$3,'CFR - XML import'!$A60)),0,VALUE(MID('CFR - XML import'!$A60,SEARCH(\">\",'CFR - XML import'!$A60,1)+1,SEARCH(\"/\",'CFR - XML import'!$A60,1)-SEARCH(\">\",'CFR - XML import'!$A60,1)-2)))","v":0},{"$f":"IF(ISERROR(FIND(BL$3,'CFR - XML import'!$A60)),0,VALUE(MID('CFR - XML import'!$A60,SEARCH(\">\",'CFR - XML import'!$A60,1)+1,SEARCH(\"/\",'CFR - XML import'!$A60,1)-SEARCH(\">\",'CFR - XML import'!$A60,1)-2)))","v":0},{"$f":"IF(ISERROR(FIND(BM$3,'CFR - XML import'!$A60)),0,VALUE(MID('CFR - XML import'!$A60,SEARCH(\">\",'CFR - XML import'!$A60,1)+1,SEARCH(\"/\",'CFR - XML import'!$A60,1)-SEARCH(\">\",'CFR - XML import'!$A60,1)-2)))","v":0},{"$f":"IF(ISERROR(FIND(BN$3,'CFR - XML import'!$A60)),0,VALUE(MID('CFR - XML import'!$A60,SEARCH(\">\",'CFR - XML import'!$A60,1)+1,SEARCH(\"/\",'CFR - XML import'!$A60,1)-SEARCH(\">\",'CFR - XML import'!$A60,1)-2)))","v":0},{"$f":"IF(ISERROR(FIND(BO$3,'CFR - XML import'!$A60)),0,VALUE(MID('CFR - XML import'!$A60,SEARCH(\">\",'CFR - XML import'!$A60,1)+1,SEARCH(\"/\",'CFR - XML import'!$A60,1)-SEARCH(\">\",'CFR - XML import'!$A60,1)-2)))","v":0},{"$f":"IF(ISERROR(FIND(BP$3,'CFR - XML import'!$A60)),0,VALUE(MID('CFR - XML import'!$A60,SEARCH(\">\",'CFR - XML import'!$A60,1)+1,SEARCH(\"/\",'CFR - XML import'!$A60,1)-SEARCH(\">\",'CFR - XML import'!$A60,1)-2)))","v":0},{"$f":"IF(ISERROR(FIND(BQ$3,'CFR - XML import'!$A60)),0,VALUE(MID('CFR - XML import'!$A60,SEARCH(\">\",'CFR - XML import'!$A60,1)+1,SEARCH(\"/\",'CFR - XML import'!$A60,1)-SEARCH(\">\",'CFR - XML import'!$A60,1)-2)))","v":0},{"$f":"IF(ISERROR(FIND(BR$3,'CFR - XML import'!$A60)),0,VALUE(MID('CFR - XML import'!$A60,SEARCH(\">\",'CFR - XML import'!$A60,1)+1,SEARCH(\"/\",'CFR - XML import'!$A60,1)-SEARCH(\">\",'CFR - XML import'!$A60,1)-2)))","v":0},{"$f":"IF(ISERROR(FIND(BS$3,'CFR - XML import'!$A60)),0,VALUE(MID('CFR - XML import'!$A60,SEARCH(\">\",'CFR - XML import'!$A60,1)+1,SEARCH(\"/\",'CFR - XML import'!$A60,1)-SEARCH(\">\",'CFR - XML import'!$A60,1)-2)))","v":0},{"$f":"IF(ISERROR(FIND(BT$3,'CFR - XML import'!$A60)),0,VALUE(MID('CFR - XML import'!$A60,SEARCH(\">\",'CFR - XML import'!$A60,1)+1,SEARCH(\"/\",'CFR - XML import'!$A60,1)-SEARCH(\">\",'CFR - XML import'!$A60,1)-2)))","v":0},{"$f":"IF(ISERROR(FIND(BU$3,'CFR - XML import'!$A60)),0,VALUE(MID('CFR - XML import'!$A60,SEARCH(\">\",'CFR - XML import'!$A60,1)+1,SEARCH(\"/\",'CFR - XML import'!$A60,1)-SEARCH(\">\",'CFR - XML import'!$A60,1)-2)))","v":0},{"$f":"IF(ISERROR(FIND(BV$3,'CFR - XML import'!$A60)),0,VALUE(MID('CFR - XML import'!$A60,SEARCH(\">\",'CFR - XML import'!$A60,1)+1,SEARCH(\"/\",'CFR - XML import'!$A60,1)-SEARCH(\">\",'CFR - XML import'!$A60,1)-2)))","v":0},{"$f":"IF(ISERROR(FIND(BW$3,'CFR - XML import'!$A60)),0,VALUE(MID('CFR - XML import'!$A60,SEARCH(\">\",'CFR - XML import'!$A60,1)+1,SEARCH(\"/\",'CFR - XML import'!$A60,1)-SEARCH(\">\",'CFR - XML import'!$A60,1)-2)))","v":0},{"$f":"IF(ISERROR(FIND(BX$3,'CFR - XML import'!$A60)),0,VALUE(MID('CFR - XML import'!$A60,SEARCH(\">\",'CFR - XML import'!$A60,1)+1,SEARCH(\"/\",'CFR - XML import'!$A60,1)-SEARCH(\">\",'CFR - XML import'!$A60,1)-2)))","v":0},{"$f":"IF(ISERROR(FIND(BY$3,'CFR - XML import'!$A60)),0,VALUE(MID('CFR - XML import'!$A60,SEARCH(\">\",'CFR - XML import'!$A60,1)+1,SEARCH(\"/\",'CFR - XML import'!$A60,1)-SEARCH(\">\",'CFR - XML import'!$A60,1)-2)))","v":0},{"$f":"IF(ISERROR(FIND(BZ$3,'CFR - XML import'!$A60)),0,VALUE(MID('CFR - XML import'!$A60,SEARCH(\">\",'CFR - XML import'!$A60,1)+1,SEARCH(\"/\",'CFR - XML import'!$A60,1)-SEARCH(\">\",'CFR - XML import'!$A60,1)-2)))","v":0},null,null,null,null,null,null,{"$f":"IF(ISERROR(IF(MID('CFR - XML import'!$A60,LEN($CF$4)+1,LEN('CFR - XML import'!$A60)-(2*LEN($CF$4)+1))=\"RMMS\",1,IF(MID('CFR - XML import'!$A60,LEN(\"    <InputSystem>\")+1,LEN('CFR - XML import'!$A60)-(LEN(\"    <InputSystem>\")+LEN($CF$4)+1))=\"SIMS\",2,0))),0,IF(MID('CFR - XML import'!$A60,LEN($CF$4)+1,LEN('CFR - XML import'!$A60)-(2*LEN($CF$4)+1))=\"RMMS\",1,IF(MID('CFR - XML import'!$A60,LEN(\"    <InputSystem>\")+1,LEN('CFR - XML import'!$A60)-(LEN(\"    <InputSystem>\")+LEN($CF$4)+1))=\"SIMS\",2,0)))","v":0},{"$f":"IF(ISERROR(FIND(CH$3,'CFR - XML import'!$A60)),0,MID('CFR - XML import'!$A60,SEARCH(\">\",'CFR - XML import'!$A60,1)+1,SEARCH(\"/\",'CFR - XML import'!$A60,1)-SEARCH(\">\",'CFR - XML import'!$A60,1)-2))","v":0},{"$f":"IF(ISERROR(FIND(CI$3,'CFR - XML import'!$A60)),0,MID('CFR - XML import'!$A60,SEARCH(\">\",'CFR - XML import'!$A60,1)+1,SEARCH(\"/\",'CFR - XML import'!$A60,1)-SEARCH(\">\",'CFR - XML import'!$A60,1)-2))","v":0},{"$f":"IF(ISERROR(FIND(CJ$3,'CFR - XML import'!$A60)),0,MID('CFR - XML import'!$A60,SEARCH(\">\",'CFR - XML import'!$A60,1)+1,SEARCH(\"/\",'CFR - XML import'!$A60,1)-SEARCH(\">\",'CFR - XML import'!$A60,1)-2))","v":0},{"$f":"IF(ISERROR(FIND(CK$3,'CFR - XML import'!$A60)),0,MID('CFR - XML import'!$A60,SEARCH(\">\",'CFR - XML import'!$A60,1)+1,SEARCH(\"/\",'CFR - XML import'!$A60,1)-SEARCH(\">\",'CFR - XML import'!$A60,1)-2))","v":0},{"$f":"IF(ISERROR(FIND(CL$3,'CFR - XML import'!$A60)),0,MID('CFR - XML import'!$A60,SEARCH(\">\",'CFR - XML import'!$A60,1)+1,SEARCH(\"/\",'CFR - XML import'!$A60,1)-SEARCH(\">\",'CFR - XML import'!$A60,1)-2))","v":0}]
[{"$f":"IF(AND('CFR - XML import'!A61<>\"\",LEFT('CFR - XML import'!A61,1)<>\"<\",LEFT('CFR - XML import'!A61,3)<>\"  <\",LEFT('CFR - XML import'!A61,5)<>\"    <\",LEFT('CFR - XML import'!A61,7)<>\"      <\",LEFT('CFR - XML import'!A61,9)<>\"        <\",$B$1=\"SIMS\"),'CFR - XML import'!A61,IF(AND(LEFT('CFR - XML import'!A61,9)=\"<Details>\",$B$1=\"RM\"),'CFR - XML import'!A61,\"\"))","v":""},{"$f":"IF(ISERROR(FIND(B$3,'CFR - XML import'!$A61)),0,VALUE(MID('CFR - XML import'!$A61,SEARCH(\">\",'CFR - XML import'!$A61,1)+1,SEARCH(\"/\",'CFR - XML import'!$A61,1)-SEARCH(\">\",'CFR - XML import'!$A61,1)-2)))","v":0},null,{"$f":"IF(ISERROR(FIND(D$3,'CFR - XML import'!$A61)),0,MID('CFR - XML import'!$A61,SEARCH(\">\",'CFR - XML import'!$A61,1)+1,SEARCH(\"/\",'CFR - XML import'!$A61,1)-SEARCH(\">\",'CFR - XML import'!$A61,1)-2))","v":0},{"$f":"IF(ISERROR(FIND(E$3,'CFR - XML import'!$A61)),0,MID('CFR - XML import'!$A61,SEARCH(\">\",'CFR - XML import'!$A61,1)+1,SEARCH(\"/\",'CFR - XML import'!$A61,1)-SEARCH(\">\",'CFR - XML import'!$A61,1)-2))","v":0},{"$f":"IF($B$1=\"SIMS\",IF(ISERROR(FIND(F$3,'CFR - XML import'!$A61)),0,VALUE(MID('CFR - XML import'!$A61,15,10))),IF(ISERROR(FIND(F$3,'CFR - XML import'!$A61)),0,VALUE(MID('CFR - XML import'!$A61,11,10))))","v":"00:00:00"},{"$f":"IF(ISERROR(FIND(G$3,'CFR - XML import'!$A61)),0,VALUE(MID('CFR - XML import'!$A61,SEARCH(\">\",'CFR - XML import'!$A61,1)+1,SEARCH(\"/\",'CFR - XML import'!$A61,1)-SEARCH(\">\",'CFR - XML import'!$A61,1)-2)))","v":0},{"$f":"IF(ISERROR(FIND(H$3,'CFR - XML import'!$A61)),0,VALUE(MID('CFR - XML import'!$A61,SEARCH(\">\",'CFR - XML import'!$A61,1)+1,SEARCH(\"/\",'CFR - XML import'!$A61,1)-SEARCH(\">\",'CFR - XML import'!$A61,1)-2)))","v":0},{"$f":"IF(ISERROR(FIND(I$3,'CFR - XML import'!$A61)),0,VALUE(MID('CFR - XML import'!$A61,SEARCH(\">\",'CFR - XML import'!$A61,1)+1,SEARCH(\"/\",'CFR - XML import'!$A61,1)-SEARCH(\">\",'CFR - XML import'!$A61,1)-2)))","v":0},{"$f":"IF(ISERROR(FIND(J$3,'CFR - XML import'!$A61)),0,VALUE(MID('CFR - XML import'!$A61,SEARCH(\">\",'CFR - XML import'!$A61,1)+1,SEARCH(\"/\",'CFR - XML import'!$A61,1)-SEARCH(\">\",'CFR - XML import'!$A61,1)-2)))","v":0},{"$f":"IF(ISERROR(FIND(K$3,'CFR - XML import'!$A61)),0,VALUE(MID('CFR - XML import'!$A61,SEARCH(\">\",'CFR - XML import'!$A61,1)+1,SEARCH(\"/\",'CFR - XML import'!$A61,1)-SEARCH(\">\",'CFR - XML import'!$A61,1)-2)))","v":0},{"$f":"IF(ISERROR(FIND(L$3,'CFR - XML import'!$A61)),0,VALUE(MID('CFR - XML import'!$A61,SEARCH(\">\",'CFR - XML import'!$A61,1)+1,SEARCH(\"/\",'CFR - XML import'!$A61,1)-SEARCH(\">\",'CFR - XML import'!$A61,1)-2)))","v":0},{"$f":"IF(ISERROR(FIND(M$3,'CFR - XML import'!$A61)),0,VALUE(MID('CFR - XML import'!$A61,SEARCH(\">\",'CFR - XML import'!$A61,1)+1,SEARCH(\"/\",'CFR - XML import'!$A61,1)-SEARCH(\">\",'CFR - XML import'!$A61,1)-2)))","v":0},{"$f":"IF(ISERROR(FIND(N$3,'CFR - XML import'!$A61)),0,VALUE(MID('CFR - XML import'!$A61,SEARCH(\">\",'CFR - XML import'!$A61,1)+1,SEARCH(\"/\",'CFR - XML import'!$A61,1)-SEARCH(\">\",'CFR - XML import'!$A61,1)-2)))","v":0},{"$f":"IF(ISERROR(FIND(O$3,'CFR - XML import'!$A61)),0,VALUE(MID('CFR - XML import'!$A61,SEARCH(\">\",'CFR - XML import'!$A61,1)+1,SEARCH(\"/\",'CFR - XML import'!$A61,1)-SEARCH(\">\",'CFR - XML import'!$A61,1)-2)))","v":0},{"$f":"IF(ISERROR(FIND(P$3,'CFR - XML import'!$A61)),0,VALUE(MID('CFR - XML import'!$A61,SEARCH(\">\",'CFR - XML import'!$A61,1)+1,SEARCH(\"/\",'CFR - XML import'!$A61,1)-SEARCH(\">\",'CFR - XML import'!$A61,1)-2)))","v":0},{"$f":"IF(ISERROR(FIND(Q$3,'CFR - XML import'!$A61)),0,VALUE(MID('CFR - XML import'!$A61,SEARCH(\">\",'CFR - XML import'!$A61,1)+1,SEARCH(\"/\",'CFR - XML import'!$A61,1)-SEARCH(\">\",'CFR - XML import'!$A61,1)-2)))","v":0},{"$f":"IF(ISERROR(FIND(R$3,'CFR - XML import'!$A61)),0,VALUE(MID('CFR - XML import'!$A61,SEARCH(\">\",'CFR - XML import'!$A61,1)+1,SEARCH(\"/\",'CFR - XML import'!$A61,1)-SEARCH(\">\",'CFR - XML import'!$A61,1)-2)))","v":0},{"$f":"IF(ISERROR(FIND(S$3,'CFR - XML import'!$A61)),0,VALUE(MID('CFR - XML import'!$A61,SEARCH(\">\",'CFR - XML import'!$A61,1)+1,SEARCH(\"/\",'CFR - XML import'!$A61,1)-SEARCH(\">\",'CFR - XML import'!$A61,1)-2)))","v":0},{"$f":"IF(ISERROR(FIND(T$3,'CFR - XML import'!$A61)),0,VALUE(MID('CFR - XML import'!$A61,SEARCH(\">\",'CFR - XML import'!$A61,1)+1,SEARCH(\"/\",'CFR - XML import'!$A61,1)-SEARCH(\">\",'CFR - XML import'!$A61,1)-2)))","v":0},{"$f":"IF(ISERROR(FIND(U$3,'CFR - XML import'!$A61)),0,VALUE(MID('CFR - XML import'!$A61,SEARCH(\">\",'CFR - XML import'!$A61,1)+1,SEARCH(\"/\",'CFR - XML import'!$A61,1)-SEARCH(\">\",'CFR - XML import'!$A61,1)-2)))","v":0},{"$f":"IF(ISERROR(FIND(V$3,'CFR - XML import'!$A61)),0,VALUE(MID('CFR - XML import'!$A61,SEARCH(\">\",'CFR - XML import'!$A61,1)+1,SEARCH(\"/\",'CFR - XML import'!$A61,1)-SEARCH(\">\",'CFR - XML import'!$A61,1)-2)))","v":0},{"$f":"IF(ISERROR(FIND(W$3,'CFR - XML import'!$A61)),0,VALUE(MID('CFR - XML import'!$A61,SEARCH(\">\",'CFR - XML import'!$A61,1)+1,SEARCH(\"/\",'CFR - XML import'!$A61,1)-SEARCH(\">\",'CFR - XML import'!$A61,1)-2)))","v":0},null,{"$f":"IF(ISERROR(FIND(Y$3,'CFR - XML import'!$A61)),0,VALUE(MID('CFR - XML import'!$A61,SEARCH(\">\",'CFR - XML import'!$A61,1)+1,SEARCH(\"/\",'CFR - XML import'!$A61,1)-SEARCH(\">\",'CFR - XML import'!$A61,1)-2)))","v":0},{"$f":"IF(ISERROR(FIND(Z$3,'CFR - XML import'!$A61)),0,VALUE(MID('CFR - XML import'!$A61,SEARCH(\">\",'CFR - XML import'!$A61,1)+1,SEARCH(\"/\",'CFR - XML import'!$A61,1)-SEARCH(\">\",'CFR - XML import'!$A61,1)-2)))","v":0},{"$f":"IF(ISERROR(FIND(AA$3,'CFR - XML import'!$A61)),0,VALUE(MID('CFR - XML import'!$A61,SEARCH(\">\",'CFR - XML import'!$A61,1)+1,SEARCH(\"/\",'CFR - XML import'!$A61,1)-SEARCH(\">\",'CFR - XML import'!$A61,1)-2)))","v":0},{"$f":"IF(ISERROR(FIND(AB$3,'CFR - XML import'!$A61)),0,VALUE(MID('CFR - XML import'!$A61,SEARCH(\">\",'CFR - XML import'!$A61,1)+1,SEARCH(\"/\",'CFR - XML import'!$A61,1)-SEARCH(\">\",'CFR - XML import'!$A61,1)-2)))","v":0},{"$f":"IF(ISERROR(FIND(AC$3,'CFR - XML import'!$A61)),0,VALUE(MID('CFR - XML import'!$A61,SEARCH(\">\",'CFR - XML import'!$A61,1)+1,SEARCH(\"/\",'CFR - XML import'!$A61,1)-SEARCH(\">\",'CFR - XML import'!$A61,1)-2)))","v":0},{"$f":"IF(ISERROR(FIND(AD$3,'CFR - XML import'!$A61)),0,VALUE(MID('CFR - XML import'!$A61,SEARCH(\">\",'CFR - XML import'!$A61,1)+1,SEARCH(\"/\",'CFR - XML import'!$A61,1)-SEARCH(\">\",'CFR - XML import'!$A61,1)-2)))","v":0},{"$f":"IF(ISERROR(FIND(AE$3,'CFR - XML import'!$A61)),0,VALUE(MID('CFR - XML import'!$A61,SEARCH(\">\",'CFR - XML import'!$A61,1)+1,SEARCH(\"/\",'CFR - XML import'!$A61,1)-SEARCH(\">\",'CFR - XML import'!$A61,1)-2)))","v":0},{"$f":"IF(ISERROR(FIND(AF$3,'CFR - XML import'!$A61)),0,VALUE(MID('CFR - XML import'!$A61,SEARCH(\">\",'CFR - XML import'!$A61,1)+1,SEARCH(\"/\",'CFR - XML import'!$A61,1)-SEARCH(\">\",'CFR - XML import'!$A61,1)-2)))","v":0},{"$f":"IF(ISERROR(FIND(AG$3,'CFR - XML import'!$A61)),0,VALUE(MID('CFR - XML import'!$A61,SEARCH(\">\",'CFR - XML import'!$A61,1)+1,SEARCH(\"/\",'CFR - XML import'!$A61,1)-SEARCH(\">\",'CFR - XML import'!$A61,1)-2)))","v":0},{"$f":"IF(ISERROR(FIND(AH$3,'CFR - XML import'!$A61)),0,VALUE(MID('CFR - XML import'!$A61,SEARCH(\">\",'CFR - XML import'!$A61,1)+1,SEARCH(\"/\",'CFR - XML import'!$A61,1)-SEARCH(\">\",'CFR - XML import'!$A61,1)-2)))","v":0},{"$f":"IF(ISERROR(FIND(AI$3,'CFR - XML import'!$A61)),0,VALUE(MID('CFR - XML import'!$A61,SEARCH(\">\",'CFR - XML import'!$A61,1)+1,SEARCH(\"/\",'CFR - XML import'!$A61,1)-SEARCH(\">\",'CFR - XML import'!$A61,1)-2)))","v":0},{"$f":"IF(ISERROR(FIND(AJ$3,'CFR - XML import'!$A61)),0,VALUE(MID('CFR - XML import'!$A61,SEARCH(\">\",'CFR - XML import'!$A61,1)+1,SEARCH(\"/\",'CFR - XML import'!$A61,1)-SEARCH(\">\",'CFR - XML import'!$A61,1)-2)))","v":0},{"$f":"IF(ISERROR(FIND(AK$3,'CFR - XML import'!$A61)),0,VALUE(MID('CFR - XML import'!$A61,SEARCH(\">\",'CFR - XML import'!$A61,1)+1,SEARCH(\"/\",'CFR - XML import'!$A61,1)-SEARCH(\">\",'CFR - XML import'!$A61,1)-2)))","v":0},{"$f":"IF(ISERROR(FIND(AL$3,'CFR - XML import'!$A61)),0,VALUE(MID('CFR - XML import'!$A61,SEARCH(\">\",'CFR - XML import'!$A61,1)+1,SEARCH(\"/\",'CFR - XML import'!$A61,1)-SEARCH(\">\",'CFR - XML import'!$A61,1)-2)))","v":0},{"$f":"IF(ISERROR(FIND(AM$3,'CFR - XML import'!$A61)),0,VALUE(MID('CFR - XML import'!$A61,SEARCH(\">\",'CFR - XML import'!$A61,1)+1,SEARCH(\"/\",'CFR - XML import'!$A61,1)-SEARCH(\">\",'CFR - XML import'!$A61,1)-2)))","v":0},{"$f":"IF(ISERROR(FIND(AN$3,'CFR - XML import'!$A61)),0,VALUE(MID('CFR - XML import'!$A61,SEARCH(\">\",'CFR - XML import'!$A61,1)+1,SEARCH(\"/\",'CFR - XML import'!$A61,1)-SEARCH(\">\",'CFR - XML import'!$A61,1)-2)))","v":0},{"$f":"IF(ISERROR(FIND(AO$3,'CFR - XML import'!$A61)),0,VALUE(MID('CFR - XML import'!$A61,SEARCH(\">\",'CFR - XML import'!$A61,1)+1,SEARCH(\"/\",'CFR - XML import'!$A61,1)-SEARCH(\">\",'CFR - XML import'!$A61,1)-2)))","v":0},{"$f":"IF(ISERROR(FIND(AP$3,'CFR - XML import'!$A61)),0,VALUE(MID('CFR - XML import'!$A61,SEARCH(\">\",'CFR - XML import'!$A61,1)+1,SEARCH(\"/\",'CFR - XML import'!$A61,1)-SEARCH(\">\",'CFR - XML import'!$A61,1)-2)))","v":0},{"$f":"IF(ISERROR(FIND(AQ$3,'CFR - XML import'!$A61)),0,VALUE(MID('CFR - XML import'!$A61,SEARCH(\">\",'CFR - XML import'!$A61,1)+1,SEARCH(\"/\",'CFR - XML import'!$A61,1)-SEARCH(\">\",'CFR - XML import'!$A61,1)-2)))","v":0},{"$f":"IF(ISERROR(FIND(AR$3,'CFR - XML import'!$A61)),0,VALUE(MID('CFR - XML import'!$A61,SEARCH(\">\",'CFR - XML import'!$A61,1)+1,SEARCH(\"/\",'CFR - XML import'!$A61,1)-SEARCH(\">\",'CFR - XML import'!$A61,1)-2)))","v":0},{"$f":"IF(ISERROR(FIND(AS$3,'CFR - XML import'!$A61)),0,VALUE(MID('CFR - XML import'!$A61,SEARCH(\">\",'CFR - XML import'!$A61,1)+1,SEARCH(\"/\",'CFR - XML import'!$A61,1)-SEARCH(\">\",'CFR - XML import'!$A61,1)-2)))","v":0},{"$f":"IF(ISERROR(FIND(AT$3,'CFR - XML import'!$A61)),0,VALUE(MID('CFR - XML import'!$A61,SEARCH(\">\",'CFR - XML import'!$A61,1)+1,SEARCH(\"/\",'CFR - XML import'!$A61,1)-SEARCH(\">\",'CFR - XML import'!$A61,1)-2)))","v":0},{"$f":"IF(ISERROR(FIND(AU$3,'CFR - XML import'!$A61)),0,VALUE(MID('CFR - XML import'!$A61,SEARCH(\">\",'CFR - XML import'!$A61,1)+1,SEARCH(\"/\",'CFR - XML import'!$A61,1)-SEARCH(\">\",'CFR - XML import'!$A61,1)-2)))","v":0},{"$f":"IF(ISERROR(FIND(AV$3,'CFR - XML import'!$A61)),0,VALUE(MID('CFR - XML import'!$A61,SEARCH(\">\",'CFR - XML import'!$A61,1)+1,SEARCH(\"/\",'CFR - XML import'!$A61,1)-SEARCH(\">\",'CFR - XML import'!$A61,1)-2)))","v":0},{"$f":"IF(ISERROR(FIND(AW$3,'CFR - XML import'!$A61)),0,VALUE(MID('CFR - XML import'!$A61,SEARCH(\">\",'CFR - XML import'!$A61,1)+1,SEARCH(\"/\",'CFR - XML import'!$A61,1)-SEARCH(\">\",'CFR - XML import'!$A61,1)-2)))","v":0},{"$f":"IF(ISERROR(FIND(AX$3,'CFR - XML import'!$A61)),0,VALUE(MID('CFR - XML import'!$A61,SEARCH(\">\",'CFR - XML import'!$A61,1)+1,SEARCH(\"/\",'CFR - XML import'!$A61,1)-SEARCH(\">\",'CFR - XML import'!$A61,1)-2)))","v":0},{"$f":"IF(ISERROR(FIND(AY$3,'CFR - XML import'!$A61)),0,VALUE(MID('CFR - XML import'!$A61,SEARCH(\">\",'CFR - XML import'!$A61,1)+1,SEARCH(\"/\",'CFR - XML import'!$A61,1)-SEARCH(\">\",'CFR - XML import'!$A61,1)-2)))","v":0},{"$f":"IF(ISERROR(FIND(AZ$3,'CFR - XML import'!$A61)),0,VALUE(MID('CFR - XML import'!$A61,SEARCH(\">\",'CFR - XML import'!$A61,1)+1,SEARCH(\"/\",'CFR - XML import'!$A61,1)-SEARCH(\">\",'CFR - XML import'!$A61,1)-2)))","v":0},{"$f":"IF(ISERROR(FIND(BA$3,'CFR - XML import'!$A61)),0,VALUE(MID('CFR - XML import'!$A61,SEARCH(\">\",'CFR - XML import'!$A61,1)+1,SEARCH(\"/\",'CFR - XML import'!$A61,1)-SEARCH(\">\",'CFR - XML import'!$A61,1)-2)))","v":0},{"$f":"IF(ISERROR(FIND(BB$3,'CFR - XML import'!$A61)),0,VALUE(MID('CFR - XML import'!$A61,SEARCH(\">\",'CFR - XML import'!$A61,1)+1,SEARCH(\"/\",'CFR - XML import'!$A61,1)-SEARCH(\">\",'CFR - XML import'!$A61,1)-2)))","v":0},{"$f":"IF(ISERROR(FIND(BC$3,'CFR - XML import'!$A61)),0,VALUE(MID('CFR - XML import'!$A61,SEARCH(\">\",'CFR - XML import'!$A61,1)+1,SEARCH(\"/\",'CFR - XML import'!$A61,1)-SEARCH(\">\",'CFR - XML import'!$A61,1)-2)))","v":0},{"$f":"IF(ISERROR(FIND(BD$3,'CFR - XML import'!$A61)),0,VALUE(MID('CFR - XML import'!$A61,SEARCH(\">\",'CFR - XML import'!$A61,1)+1,SEARCH(\"/\",'CFR - XML import'!$A61,1)-SEARCH(\">\",'CFR - XML import'!$A61,1)-2)))","v":0},{"$f":"IF(ISERROR(FIND(BE$3,'CFR - XML import'!$A61)),0,VALUE(MID('CFR - XML import'!$A61,SEARCH(\">\",'CFR - XML import'!$A61,1)+1,SEARCH(\"/\",'CFR - XML import'!$A61,1)-SEARCH(\">\",'CFR - XML import'!$A61,1)-2)))","v":0},{"$f":"IF(ISERROR(FIND(BF$3,'CFR - XML import'!$A61)),0,VALUE(MID('CFR - XML import'!$A61,SEARCH(\">\",'CFR - XML import'!$A61,1)+1,SEARCH(\"/\",'CFR - XML import'!$A61,1)-SEARCH(\">\",'CFR - XML import'!$A61,1)-2)))","v":0},{"$f":"IF(ISERROR(FIND(BG$3,'CFR - XML import'!$A61)),0,VALUE(MID('CFR - XML import'!$A61,SEARCH(\">\",'CFR - XML import'!$A61,1)+1,SEARCH(\"/\",'CFR - XML import'!$A61,1)-SEARCH(\">\",'CFR - XML import'!$A61,1)-2)))","v":0},{"$f":"IF(ISERROR(FIND(BH$3,'CFR - XML import'!$A61)),0,VALUE(MID('CFR - XML import'!$A61,SEARCH(\">\",'CFR - XML import'!$A61,1)+1,SEARCH(\"/\",'CFR - XML import'!$A61,1)-SEARCH(\">\",'CFR - XML import'!$A61,1)-2)))","v":0},{"$f":"IF(ISERROR(FIND(BI$3,'CFR - XML import'!$A61)),0,VALUE(MID('CFR - XML import'!$A61,SEARCH(\">\",'CFR - XML import'!$A61,1)+1,SEARCH(\"/\",'CFR - XML import'!$A61,1)-SEARCH(\">\",'CFR - XML import'!$A61,1)-2)))","v":0},{"$f":"IF(ISERROR(FIND(BJ$3,'CFR - XML import'!$A61)),0,VALUE(MID('CFR - XML import'!$A61,SEARCH(\">\",'CFR - XML import'!$A61,1)+1,SEARCH(\"/\",'CFR - XML import'!$A61,1)-SEARCH(\">\",'CFR - XML import'!$A61,1)-2)))","v":0},{"$f":"IF(ISERROR(FIND(BK$3,'CFR - XML import'!$A61)),0,VALUE(MID('CFR - XML import'!$A61,SEARCH(\">\",'CFR - XML import'!$A61,1)+1,SEARCH(\"/\",'CFR - XML import'!$A61,1)-SEARCH(\">\",'CFR - XML import'!$A61,1)-2)))","v":0},{"$f":"IF(ISERROR(FIND(BL$3,'CFR - XML import'!$A61)),0,VALUE(MID('CFR - XML import'!$A61,SEARCH(\">\",'CFR - XML import'!$A61,1)+1,SEARCH(\"/\",'CFR - XML import'!$A61,1)-SEARCH(\">\",'CFR - XML import'!$A61,1)-2)))","v":0},{"$f":"IF(ISERROR(FIND(BM$3,'CFR - XML import'!$A61)),0,VALUE(MID('CFR - XML import'!$A61,SEARCH(\">\",'CFR - XML import'!$A61,1)+1,SEARCH(\"/\",'CFR - XML import'!$A61,1)-SEARCH(\">\",'CFR - XML import'!$A61,1)-2)))","v":0},{"$f":"IF(ISERROR(FIND(BN$3,'CFR - XML import'!$A61)),0,VALUE(MID('CFR - XML import'!$A61,SEARCH(\">\",'CFR - XML import'!$A61,1)+1,SEARCH(\"/\",'CFR - XML import'!$A61,1)-SEARCH(\">\",'CFR - XML import'!$A61,1)-2)))","v":0},{"$f":"IF(ISERROR(FIND(BO$3,'CFR - XML import'!$A61)),0,VALUE(MID('CFR - XML import'!$A61,SEARCH(\">\",'CFR - XML import'!$A61,1)+1,SEARCH(\"/\",'CFR - XML import'!$A61,1)-SEARCH(\">\",'CFR - XML import'!$A61,1)-2)))","v":0},{"$f":"IF(ISERROR(FIND(BP$3,'CFR - XML import'!$A61)),0,VALUE(MID('CFR - XML import'!$A61,SEARCH(\">\",'CFR - XML import'!$A61,1)+1,SEARCH(\"/\",'CFR - XML import'!$A61,1)-SEARCH(\">\",'CFR - XML import'!$A61,1)-2)))","v":0},{"$f":"IF(ISERROR(FIND(BQ$3,'CFR - XML import'!$A61)),0,VALUE(MID('CFR - XML import'!$A61,SEARCH(\">\",'CFR - XML import'!$A61,1)+1,SEARCH(\"/\",'CFR - XML import'!$A61,1)-SEARCH(\">\",'CFR - XML import'!$A61,1)-2)))","v":0},{"$f":"IF(ISERROR(FIND(BR$3,'CFR - XML import'!$A61)),0,VALUE(MID('CFR - XML import'!$A61,SEARCH(\">\",'CFR - XML import'!$A61,1)+1,SEARCH(\"/\",'CFR - XML import'!$A61,1)-SEARCH(\">\",'CFR - XML import'!$A61,1)-2)))","v":0},{"$f":"IF(ISERROR(FIND(BS$3,'CFR - XML import'!$A61)),0,VALUE(MID('CFR - XML import'!$A61,SEARCH(\">\",'CFR - XML import'!$A61,1)+1,SEARCH(\"/\",'CFR - XML import'!$A61,1)-SEARCH(\">\",'CFR - XML import'!$A61,1)-2)))","v":0},{"$f":"IF(ISERROR(FIND(BT$3,'CFR - XML import'!$A61)),0,VALUE(MID('CFR - XML import'!$A61,SEARCH(\">\",'CFR - XML import'!$A61,1)+1,SEARCH(\"/\",'CFR - XML import'!$A61,1)-SEARCH(\">\",'CFR - XML import'!$A61,1)-2)))","v":0},{"$f":"IF(ISERROR(FIND(BU$3,'CFR - XML import'!$A61)),0,VALUE(MID('CFR - XML import'!$A61,SEARCH(\">\",'CFR - XML import'!$A61,1)+1,SEARCH(\"/\",'CFR - XML import'!$A61,1)-SEARCH(\">\",'CFR - XML import'!$A61,1)-2)))","v":0},{"$f":"IF(ISERROR(FIND(BV$3,'CFR - XML import'!$A61)),0,VALUE(MID('CFR - XML import'!$A61,SEARCH(\">\",'CFR - XML import'!$A61,1)+1,SEARCH(\"/\",'CFR - XML import'!$A61,1)-SEARCH(\">\",'CFR - XML import'!$A61,1)-2)))","v":0},{"$f":"IF(ISERROR(FIND(BW$3,'CFR - XML import'!$A61)),0,VALUE(MID('CFR - XML import'!$A61,SEARCH(\">\",'CFR - XML import'!$A61,1)+1,SEARCH(\"/\",'CFR - XML import'!$A61,1)-SEARCH(\">\",'CFR - XML import'!$A61,1)-2)))","v":0},{"$f":"IF(ISERROR(FIND(BX$3,'CFR - XML import'!$A61)),0,VALUE(MID('CFR - XML import'!$A61,SEARCH(\">\",'CFR - XML import'!$A61,1)+1,SEARCH(\"/\",'CFR - XML import'!$A61,1)-SEARCH(\">\",'CFR - XML import'!$A61,1)-2)))","v":0},{"$f":"IF(ISERROR(FIND(BY$3,'CFR - XML import'!$A61)),0,VALUE(MID('CFR - XML import'!$A61,SEARCH(\">\",'CFR - XML import'!$A61,1)+1,SEARCH(\"/\",'CFR - XML import'!$A61,1)-SEARCH(\">\",'CFR - XML import'!$A61,1)-2)))","v":0},{"$f":"IF(ISERROR(FIND(BZ$3,'CFR - XML import'!$A61)),0,VALUE(MID('CFR - XML import'!$A61,SEARCH(\">\",'CFR - XML import'!$A61,1)+1,SEARCH(\"/\",'CFR - XML import'!$A61,1)-SEARCH(\">\",'CFR - XML import'!$A61,1)-2)))","v":0},null,null,null,null,null,null,{"$f":"IF(ISERROR(IF(MID('CFR - XML import'!$A61,LEN($CF$4)+1,LEN('CFR - XML import'!$A61)-(2*LEN($CF$4)+1))=\"RMMS\",1,IF(MID('CFR - XML import'!$A61,LEN(\"    <InputSystem>\")+1,LEN('CFR - XML import'!$A61)-(LEN(\"    <InputSystem>\")+LEN($CF$4)+1))=\"SIMS\",2,0))),0,IF(MID('CFR - XML import'!$A61,LEN($CF$4)+1,LEN('CFR - XML import'!$A61)-(2*LEN($CF$4)+1))=\"RMMS\",1,IF(MID('CFR - XML import'!$A61,LEN(\"    <InputSystem>\")+1,LEN('CFR - XML import'!$A61)-(LEN(\"    <InputSystem>\")+LEN($CF$4)+1))=\"SIMS\",2,0)))","v":0},{"$f":"IF(ISERROR(FIND(CH$3,'CFR - XML import'!$A61)),0,MID('CFR - XML import'!$A61,SEARCH(\">\",'CFR - XML import'!$A61,1)+1,SEARCH(\"/\",'CFR - XML import'!$A61,1)-SEARCH(\">\",'CFR - XML import'!$A61,1)-2))","v":0},{"$f":"IF(ISERROR(FIND(CI$3,'CFR - XML import'!$A61)),0,MID('CFR - XML import'!$A61,SEARCH(\">\",'CFR - XML import'!$A61,1)+1,SEARCH(\"/\",'CFR - XML import'!$A61,1)-SEARCH(\">\",'CFR - XML import'!$A61,1)-2))","v":0},{"$f":"IF(ISERROR(FIND(CJ$3,'CFR - XML import'!$A61)),0,MID('CFR - XML import'!$A61,SEARCH(\">\",'CFR - XML import'!$A61,1)+1,SEARCH(\"/\",'CFR - XML import'!$A61,1)-SEARCH(\">\",'CFR - XML import'!$A61,1)-2))","v":0},{"$f":"IF(ISERROR(FIND(CK$3,'CFR - XML import'!$A61)),0,MID('CFR - XML import'!$A61,SEARCH(\">\",'CFR - XML import'!$A61,1)+1,SEARCH(\"/\",'CFR - XML import'!$A61,1)-SEARCH(\">\",'CFR - XML import'!$A61,1)-2))","v":0},{"$f":"IF(ISERROR(FIND(CL$3,'CFR - XML import'!$A61)),0,MID('CFR - XML import'!$A61,SEARCH(\">\",'CFR - XML import'!$A61,1)+1,SEARCH(\"/\",'CFR - XML import'!$A61,1)-SEARCH(\">\",'CFR - XML import'!$A61,1)-2))","v":0}]
[{"$f":"IF(AND('CFR - XML import'!A62<>\"\",LEFT('CFR - XML import'!A62,1)<>\"<\",LEFT('CFR - XML import'!A62,3)<>\"  <\",LEFT('CFR - XML import'!A62,5)<>\"    <\",LEFT('CFR - XML import'!A62,7)<>\"      <\",LEFT('CFR - XML import'!A62,9)<>\"        <\",$B$1=\"SIMS\"),'CFR - XML import'!A62,IF(AND(LEFT('CFR - XML import'!A62,9)=\"<Details>\",$B$1=\"RM\"),'CFR - XML import'!A62,\"\"))","v":""},{"$f":"IF(ISERROR(FIND(B$3,'CFR - XML import'!$A62)),0,VALUE(MID('CFR - XML import'!$A62,SEARCH(\">\",'CFR - XML import'!$A62,1)+1,SEARCH(\"/\",'CFR - XML import'!$A62,1)-SEARCH(\">\",'CFR - XML import'!$A62,1)-2)))","v":0},null,{"$f":"IF(ISERROR(FIND(D$3,'CFR - XML import'!$A62)),0,MID('CFR - XML import'!$A62,SEARCH(\">\",'CFR - XML import'!$A62,1)+1,SEARCH(\"/\",'CFR - XML import'!$A62,1)-SEARCH(\">\",'CFR - XML import'!$A62,1)-2))","v":0},{"$f":"IF(ISERROR(FIND(E$3,'CFR - XML import'!$A62)),0,MID('CFR - XML import'!$A62,SEARCH(\">\",'CFR - XML import'!$A62,1)+1,SEARCH(\"/\",'CFR - XML import'!$A62,1)-SEARCH(\">\",'CFR - XML import'!$A62,1)-2))","v":0},{"$f":"IF($B$1=\"SIMS\",IF(ISERROR(FIND(F$3,'CFR - XML import'!$A62)),0,VALUE(MID('CFR - XML import'!$A62,15,10))),IF(ISERROR(FIND(F$3,'CFR - XML import'!$A62)),0,VALUE(MID('CFR - XML import'!$A62,11,10))))","v":"00:00:00"},{"$f":"IF(ISERROR(FIND(G$3,'CFR - XML import'!$A62)),0,VALUE(MID('CFR - XML import'!$A62,SEARCH(\">\",'CFR - XML import'!$A62,1)+1,SEARCH(\"/\",'CFR - XML import'!$A62,1)-SEARCH(\">\",'CFR - XML import'!$A62,1)-2)))","v":0},{"$f":"IF(ISERROR(FIND(H$3,'CFR - XML import'!$A62)),0,VALUE(MID('CFR - XML import'!$A62,SEARCH(\">\",'CFR - XML import'!$A62,1)+1,SEARCH(\"/\",'CFR - XML import'!$A62,1)-SEARCH(\">\",'CFR - XML import'!$A62,1)-2)))","v":0},{"$f":"IF(ISERROR(FIND(I$3,'CFR - XML import'!$A62)),0,VALUE(MID('CFR - XML import'!$A62,SEARCH(\">\",'CFR - XML import'!$A62,1)+1,SEARCH(\"/\",'CFR - XML import'!$A62,1)-SEARCH(\">\",'CFR - XML import'!$A62,1)-2)))","v":0},{"$f":"IF(ISERROR(FIND(J$3,'CFR - XML import'!$A62)),0,VALUE(MID('CFR - XML import'!$A62,SEARCH(\">\",'CFR - XML import'!$A62,1)+1,SEARCH(\"/\",'CFR - XML import'!$A62,1)-SEARCH(\">\",'CFR - XML import'!$A62,1)-2)))","v":0},{"$f":"IF(ISERROR(FIND(K$3,'CFR - XML import'!$A62)),0,VALUE(MID('CFR - XML import'!$A62,SEARCH(\">\",'CFR - XML import'!$A62,1)+1,SEARCH(\"/\",'CFR - XML import'!$A62,1)-SEARCH(\">\",'CFR - XML import'!$A62,1)-2)))","v":0},{"$f":"IF(ISERROR(FIND(L$3,'CFR - XML import'!$A62)),0,VALUE(MID('CFR - XML import'!$A62,SEARCH(\">\",'CFR - XML import'!$A62,1)+1,SEARCH(\"/\",'CFR - XML import'!$A62,1)-SEARCH(\">\",'CFR - XML import'!$A62,1)-2)))","v":0},{"$f":"IF(ISERROR(FIND(M$3,'CFR - XML import'!$A62)),0,VALUE(MID('CFR - XML import'!$A62,SEARCH(\">\",'CFR - XML import'!$A62,1)+1,SEARCH(\"/\",'CFR - XML import'!$A62,1)-SEARCH(\">\",'CFR - XML import'!$A62,1)-2)))","v":0},{"$f":"IF(ISERROR(FIND(N$3,'CFR - XML import'!$A62)),0,VALUE(MID('CFR - XML import'!$A62,SEARCH(\">\",'CFR - XML import'!$A62,1)+1,SEARCH(\"/\",'CFR - XML import'!$A62,1)-SEARCH(\">\",'CFR - XML import'!$A62,1)-2)))","v":0},{"$f":"IF(ISERROR(FIND(O$3,'CFR - XML import'!$A62)),0,VALUE(MID('CFR - XML import'!$A62,SEARCH(\">\",'CFR - XML import'!$A62,1)+1,SEARCH(\"/\",'CFR - XML import'!$A62,1)-SEARCH(\">\",'CFR - XML import'!$A62,1)-2)))","v":0},{"$f":"IF(ISERROR(FIND(P$3,'CFR - XML import'!$A62)),0,VALUE(MID('CFR - XML import'!$A62,SEARCH(\">\",'CFR - XML import'!$A62,1)+1,SEARCH(\"/\",'CFR - XML import'!$A62,1)-SEARCH(\">\",'CFR - XML import'!$A62,1)-2)))","v":0},{"$f":"IF(ISERROR(FIND(Q$3,'CFR - XML import'!$A62)),0,VALUE(MID('CFR - XML import'!$A62,SEARCH(\">\",'CFR - XML import'!$A62,1)+1,SEARCH(\"/\",'CFR - XML import'!$A62,1)-SEARCH(\">\",'CFR - XML import'!$A62,1)-2)))","v":0},{"$f":"IF(ISERROR(FIND(R$3,'CFR - XML import'!$A62)),0,VALUE(MID('CFR - XML import'!$A62,SEARCH(\">\",'CFR - XML import'!$A62,1)+1,SEARCH(\"/\",'CFR - XML import'!$A62,1)-SEARCH(\">\",'CFR - XML import'!$A62,1)-2)))","v":0},{"$f":"IF(ISERROR(FIND(S$3,'CFR - XML import'!$A62)),0,VALUE(MID('CFR - XML import'!$A62,SEARCH(\">\",'CFR - XML import'!$A62,1)+1,SEARCH(\"/\",'CFR - XML import'!$A62,1)-SEARCH(\">\",'CFR - XML import'!$A62,1)-2)))","v":0},{"$f":"IF(ISERROR(FIND(T$3,'CFR - XML import'!$A62)),0,VALUE(MID('CFR - XML import'!$A62,SEARCH(\">\",'CFR - XML import'!$A62,1)+1,SEARCH(\"/\",'CFR - XML import'!$A62,1)-SEARCH(\">\",'CFR - XML import'!$A62,1)-2)))","v":0},{"$f":"IF(ISERROR(FIND(U$3,'CFR - XML import'!$A62)),0,VALUE(MID('CFR - XML import'!$A62,SEARCH(\">\",'CFR - XML import'!$A62,1)+1,SEARCH(\"/\",'CFR - XML import'!$A62,1)-SEARCH(\">\",'CFR - XML import'!$A62,1)-2)))","v":0},{"$f":"IF(ISERROR(FIND(V$3,'CFR - XML import'!$A62)),0,VALUE(MID('CFR - XML import'!$A62,SEARCH(\">\",'CFR - XML import'!$A62,1)+1,SEARCH(\"/\",'CFR - XML import'!$A62,1)-SEARCH(\">\",'CFR - XML import'!$A62,1)-2)))","v":0},{"$f":"IF(ISERROR(FIND(W$3,'CFR - XML import'!$A62)),0,VALUE(MID('CFR - XML import'!$A62,SEARCH(\">\",'CFR - XML import'!$A62,1)+1,SEARCH(\"/\",'CFR - XML import'!$A62,1)-SEARCH(\">\",'CFR - XML import'!$A62,1)-2)))","v":0},null,{"$f":"IF(ISERROR(FIND(Y$3,'CFR - XML import'!$A62)),0,VALUE(MID('CFR - XML import'!$A62,SEARCH(\">\",'CFR - XML import'!$A62,1)+1,SEARCH(\"/\",'CFR - XML import'!$A62,1)-SEARCH(\">\",'CFR - XML import'!$A62,1)-2)))","v":0},{"$f":"IF(ISERROR(FIND(Z$3,'CFR - XML import'!$A62)),0,VALUE(MID('CFR - XML import'!$A62,SEARCH(\">\",'CFR - XML import'!$A62,1)+1,SEARCH(\"/\",'CFR - XML import'!$A62,1)-SEARCH(\">\",'CFR - XML import'!$A62,1)-2)))","v":0},{"$f":"IF(ISERROR(FIND(AA$3,'CFR - XML import'!$A62)),0,VALUE(MID('CFR - XML import'!$A62,SEARCH(\">\",'CFR - XML import'!$A62,1)+1,SEARCH(\"/\",'CFR - XML import'!$A62,1)-SEARCH(\">\",'CFR - XML import'!$A62,1)-2)))","v":0},{"$f":"IF(ISERROR(FIND(AB$3,'CFR - XML import'!$A62)),0,VALUE(MID('CFR - XML import'!$A62,SEARCH(\">\",'CFR - XML import'!$A62,1)+1,SEARCH(\"/\",'CFR - XML import'!$A62,1)-SEARCH(\">\",'CFR - XML import'!$A62,1)-2)))","v":0},{"$f":"IF(ISERROR(FIND(AC$3,'CFR - XML import'!$A62)),0,VALUE(MID('CFR - XML import'!$A62,SEARCH(\">\",'CFR - XML import'!$A62,1)+1,SEARCH(\"/\",'CFR - XML import'!$A62,1)-SEARCH(\">\",'CFR - XML import'!$A62,1)-2)))","v":0},{"$f":"IF(ISERROR(FIND(AD$3,'CFR - XML import'!$A62)),0,VALUE(MID('CFR - XML import'!$A62,SEARCH(\">\",'CFR - XML import'!$A62,1)+1,SEARCH(\"/\",'CFR - XML import'!$A62,1)-SEARCH(\">\",'CFR - XML import'!$A62,1)-2)))","v":0},{"$f":"IF(ISERROR(FIND(AE$3,'CFR - XML import'!$A62)),0,VALUE(MID('CFR - XML import'!$A62,SEARCH(\">\",'CFR - XML import'!$A62,1)+1,SEARCH(\"/\",'CFR - XML import'!$A62,1)-SEARCH(\">\",'CFR - XML import'!$A62,1)-2)))","v":0},{"$f":"IF(ISERROR(FIND(AF$3,'CFR - XML import'!$A62)),0,VALUE(MID('CFR - XML import'!$A62,SEARCH(\">\",'CFR - XML import'!$A62,1)+1,SEARCH(\"/\",'CFR - XML import'!$A62,1)-SEARCH(\">\",'CFR - XML import'!$A62,1)-2)))","v":0},{"$f":"IF(ISERROR(FIND(AG$3,'CFR - XML import'!$A62)),0,VALUE(MID('CFR - XML import'!$A62,SEARCH(\">\",'CFR - XML import'!$A62,1)+1,SEARCH(\"/\",'CFR - XML import'!$A62,1)-SEARCH(\">\",'CFR - XML import'!$A62,1)-2)))","v":0},{"$f":"IF(ISERROR(FIND(AH$3,'CFR - XML import'!$A62)),0,VALUE(MID('CFR - XML import'!$A62,SEARCH(\">\",'CFR - XML import'!$A62,1)+1,SEARCH(\"/\",'CFR - XML import'!$A62,1)-SEARCH(\">\",'CFR - XML import'!$A62,1)-2)))","v":0},{"$f":"IF(ISERROR(FIND(AI$3,'CFR - XML import'!$A62)),0,VALUE(MID('CFR - XML import'!$A62,SEARCH(\">\",'CFR - XML import'!$A62,1)+1,SEARCH(\"/\",'CFR - XML import'!$A62,1)-SEARCH(\">\",'CFR - XML import'!$A62,1)-2)))","v":0},{"$f":"IF(ISERROR(FIND(AJ$3,'CFR - XML import'!$A62)),0,VALUE(MID('CFR - XML import'!$A62,SEARCH(\">\",'CFR - XML import'!$A62,1)+1,SEARCH(\"/\",'CFR - XML import'!$A62,1)-SEARCH(\">\",'CFR - XML import'!$A62,1)-2)))","v":0},{"$f":"IF(ISERROR(FIND(AK$3,'CFR - XML import'!$A62)),0,VALUE(MID('CFR - XML import'!$A62,SEARCH(\">\",'CFR - XML import'!$A62,1)+1,SEARCH(\"/\",'CFR - XML import'!$A62,1)-SEARCH(\">\",'CFR - XML import'!$A62,1)-2)))","v":0},{"$f":"IF(ISERROR(FIND(AL$3,'CFR - XML import'!$A62)),0,VALUE(MID('CFR - XML import'!$A62,SEARCH(\">\",'CFR - XML import'!$A62,1)+1,SEARCH(\"/\",'CFR - XML import'!$A62,1)-SEARCH(\">\",'CFR - XML import'!$A62,1)-2)))","v":0},{"$f":"IF(ISERROR(FIND(AM$3,'CFR - XML import'!$A62)),0,VALUE(MID('CFR - XML import'!$A62,SEARCH(\">\",'CFR - XML import'!$A62,1)+1,SEARCH(\"/\",'CFR - XML import'!$A62,1)-SEARCH(\">\",'CFR - XML import'!$A62,1)-2)))","v":0},{"$f":"IF(ISERROR(FIND(AN$3,'CFR - XML import'!$A62)),0,VALUE(MID('CFR - XML import'!$A62,SEARCH(\">\",'CFR - XML import'!$A62,1)+1,SEARCH(\"/\",'CFR - XML import'!$A62,1)-SEARCH(\">\",'CFR - XML import'!$A62,1)-2)))","v":0},{"$f":"IF(ISERROR(FIND(AO$3,'CFR - XML import'!$A62)),0,VALUE(MID('CFR - XML import'!$A62,SEARCH(\">\",'CFR - XML import'!$A62,1)+1,SEARCH(\"/\",'CFR - XML import'!$A62,1)-SEARCH(\">\",'CFR - XML import'!$A62,1)-2)))","v":0},{"$f":"IF(ISERROR(FIND(AP$3,'CFR - XML import'!$A62)),0,VALUE(MID('CFR - XML import'!$A62,SEARCH(\">\",'CFR - XML import'!$A62,1)+1,SEARCH(\"/\",'CFR - XML import'!$A62,1)-SEARCH(\">\",'CFR - XML import'!$A62,1)-2)))","v":0},{"$f":"IF(ISERROR(FIND(AQ$3,'CFR - XML import'!$A62)),0,VALUE(MID('CFR - XML import'!$A62,SEARCH(\">\",'CFR - XML import'!$A62,1)+1,SEARCH(\"/\",'CFR - XML import'!$A62,1)-SEARCH(\">\",'CFR - XML import'!$A62,1)-2)))","v":0},{"$f":"IF(ISERROR(FIND(AR$3,'CFR - XML import'!$A62)),0,VALUE(MID('CFR - XML import'!$A62,SEARCH(\">\",'CFR - XML import'!$A62,1)+1,SEARCH(\"/\",'CFR - XML import'!$A62,1)-SEARCH(\">\",'CFR - XML import'!$A62,1)-2)))","v":0},{"$f":"IF(ISERROR(FIND(AS$3,'CFR - XML import'!$A62)),0,VALUE(MID('CFR - XML import'!$A62,SEARCH(\">\",'CFR - XML import'!$A62,1)+1,SEARCH(\"/\",'CFR - XML import'!$A62,1)-SEARCH(\">\",'CFR - XML import'!$A62,1)-2)))","v":0},{"$f":"IF(ISERROR(FIND(AT$3,'CFR - XML import'!$A62)),0,VALUE(MID('CFR - XML import'!$A62,SEARCH(\">\",'CFR - XML import'!$A62,1)+1,SEARCH(\"/\",'CFR - XML import'!$A62,1)-SEARCH(\">\",'CFR - XML import'!$A62,1)-2)))","v":0},{"$f":"IF(ISERROR(FIND(AU$3,'CFR - XML import'!$A62)),0,VALUE(MID('CFR - XML import'!$A62,SEARCH(\">\",'CFR - XML import'!$A62,1)+1,SEARCH(\"/\",'CFR - XML import'!$A62,1)-SEARCH(\">\",'CFR - XML import'!$A62,1)-2)))","v":0},{"$f":"IF(ISERROR(FIND(AV$3,'CFR - XML import'!$A62)),0,VALUE(MID('CFR - XML import'!$A62,SEARCH(\">\",'CFR - XML import'!$A62,1)+1,SEARCH(\"/\",'CFR - XML import'!$A62,1)-SEARCH(\">\",'CFR - XML import'!$A62,1)-2)))","v":0},{"$f":"IF(ISERROR(FIND(AW$3,'CFR - XML import'!$A62)),0,VALUE(MID('CFR - XML import'!$A62,SEARCH(\">\",'CFR - XML import'!$A62,1)+1,SEARCH(\"/\",'CFR - XML import'!$A62,1)-SEARCH(\">\",'CFR - XML import'!$A62,1)-2)))","v":0},{"$f":"IF(ISERROR(FIND(AX$3,'CFR - XML import'!$A62)),0,VALUE(MID('CFR - XML import'!$A62,SEARCH(\">\",'CFR - XML import'!$A62,1)+1,SEARCH(\"/\",'CFR - XML import'!$A62,1)-SEARCH(\">\",'CFR - XML import'!$A62,1)-2)))","v":0},{"$f":"IF(ISERROR(FIND(AY$3,'CFR - XML import'!$A62)),0,VALUE(MID('CFR - XML import'!$A62,SEARCH(\">\",'CFR - XML import'!$A62,1)+1,SEARCH(\"/\",'CFR - XML import'!$A62,1)-SEARCH(\">\",'CFR - XML import'!$A62,1)-2)))","v":0},{"$f":"IF(ISERROR(FIND(AZ$3,'CFR - XML import'!$A62)),0,VALUE(MID('CFR - XML import'!$A62,SEARCH(\">\",'CFR - XML import'!$A62,1)+1,SEARCH(\"/\",'CFR - XML import'!$A62,1)-SEARCH(\">\",'CFR - XML import'!$A62,1)-2)))","v":0},{"$f":"IF(ISERROR(FIND(BA$3,'CFR - XML import'!$A62)),0,VALUE(MID('CFR - XML import'!$A62,SEARCH(\">\",'CFR - XML import'!$A62,1)+1,SEARCH(\"/\",'CFR - XML import'!$A62,1)-SEARCH(\">\",'CFR - XML import'!$A62,1)-2)))","v":0},{"$f":"IF(ISERROR(FIND(BB$3,'CFR - XML import'!$A62)),0,VALUE(MID('CFR - XML import'!$A62,SEARCH(\">\",'CFR - XML import'!$A62,1)+1,SEARCH(\"/\",'CFR - XML import'!$A62,1)-SEARCH(\">\",'CFR - XML import'!$A62,1)-2)))","v":0},{"$f":"IF(ISERROR(FIND(BC$3,'CFR - XML import'!$A62)),0,VALUE(MID('CFR - XML import'!$A62,SEARCH(\">\",'CFR - XML import'!$A62,1)+1,SEARCH(\"/\",'CFR - XML import'!$A62,1)-SEARCH(\">\",'CFR - XML import'!$A62,1)-2)))","v":0},{"$f":"IF(ISERROR(FIND(BD$3,'CFR - XML import'!$A62)),0,VALUE(MID('CFR - XML import'!$A62,SEARCH(\">\",'CFR - XML import'!$A62,1)+1,SEARCH(\"/\",'CFR - XML import'!$A62,1)-SEARCH(\">\",'CFR - XML import'!$A62,1)-2)))","v":0},{"$f":"IF(ISERROR(FIND(BE$3,'CFR - XML import'!$A62)),0,VALUE(MID('CFR - XML import'!$A62,SEARCH(\">\",'CFR - XML import'!$A62,1)+1,SEARCH(\"/\",'CFR - XML import'!$A62,1)-SEARCH(\">\",'CFR - XML import'!$A62,1)-2)))","v":0},{"$f":"IF(ISERROR(FIND(BF$3,'CFR - XML import'!$A62)),0,VALUE(MID('CFR - XML import'!$A62,SEARCH(\">\",'CFR - XML import'!$A62,1)+1,SEARCH(\"/\",'CFR - XML import'!$A62,1)-SEARCH(\">\",'CFR - XML import'!$A62,1)-2)))","v":0},{"$f":"IF(ISERROR(FIND(BG$3,'CFR - XML import'!$A62)),0,VALUE(MID('CFR - XML import'!$A62,SEARCH(\">\",'CFR - XML import'!$A62,1)+1,SEARCH(\"/\",'CFR - XML import'!$A62,1)-SEARCH(\">\",'CFR - XML import'!$A62,1)-2)))","v":0},{"$f":"IF(ISERROR(FIND(BH$3,'CFR - XML import'!$A62)),0,VALUE(MID('CFR - XML import'!$A62,SEARCH(\">\",'CFR - XML import'!$A62,1)+1,SEARCH(\"/\",'CFR - XML import'!$A62,1)-SEARCH(\">\",'CFR - XML import'!$A62,1)-2)))","v":0},{"$f":"IF(ISERROR(FIND(BI$3,'CFR - XML import'!$A62)),0,VALUE(MID('CFR - XML import'!$A62,SEARCH(\">\",'CFR - XML import'!$A62,1)+1,SEARCH(\"/\",'CFR - XML import'!$A62,1)-SEARCH(\">\",'CFR - XML import'!$A62,1)-2)))","v":0},{"$f":"IF(ISERROR(FIND(BJ$3,'CFR - XML import'!$A62)),0,VALUE(MID('CFR - XML import'!$A62,SEARCH(\">\",'CFR - XML import'!$A62,1)+1,SEARCH(\"/\",'CFR - XML import'!$A62,1)-SEARCH(\">\",'CFR - XML import'!$A62,1)-2)))","v":0},{"$f":"IF(ISERROR(FIND(BK$3,'CFR - XML import'!$A62)),0,VALUE(MID('CFR - XML import'!$A62,SEARCH(\">\",'CFR - XML import'!$A62,1)+1,SEARCH(\"/\",'CFR - XML import'!$A62,1)-SEARCH(\">\",'CFR - XML import'!$A62,1)-2)))","v":0},{"$f":"IF(ISERROR(FIND(BL$3,'CFR - XML import'!$A62)),0,VALUE(MID('CFR - XML import'!$A62,SEARCH(\">\",'CFR - XML import'!$A62,1)+1,SEARCH(\"/\",'CFR - XML import'!$A62,1)-SEARCH(\">\",'CFR - XML import'!$A62,1)-2)))","v":0},{"$f":"IF(ISERROR(FIND(BM$3,'CFR - XML import'!$A62)),0,VALUE(MID('CFR - XML import'!$A62,SEARCH(\">\",'CFR - XML import'!$A62,1)+1,SEARCH(\"/\",'CFR - XML import'!$A62,1)-SEARCH(\">\",'CFR - XML import'!$A62,1)-2)))","v":0},{"$f":"IF(ISERROR(FIND(BN$3,'CFR - XML import'!$A62)),0,VALUE(MID('CFR - XML import'!$A62,SEARCH(\">\",'CFR - XML import'!$A62,1)+1,SEARCH(\"/\",'CFR - XML import'!$A62,1)-SEARCH(\">\",'CFR - XML import'!$A62,1)-2)))","v":0},{"$f":"IF(ISERROR(FIND(BO$3,'CFR - XML import'!$A62)),0,VALUE(MID('CFR - XML import'!$A62,SEARCH(\">\",'CFR - XML import'!$A62,1)+1,SEARCH(\"/\",'CFR - XML import'!$A62,1)-SEARCH(\">\",'CFR - XML import'!$A62,1)-2)))","v":0},{"$f":"IF(ISERROR(FIND(BP$3,'CFR - XML import'!$A62)),0,VALUE(MID('CFR - XML import'!$A62,SEARCH(\">\",'CFR - XML import'!$A62,1)+1,SEARCH(\"/\",'CFR - XML import'!$A62,1)-SEARCH(\">\",'CFR - XML import'!$A62,1)-2)))","v":0},{"$f":"IF(ISERROR(FIND(BQ$3,'CFR - XML import'!$A62)),0,VALUE(MID('CFR - XML import'!$A62,SEARCH(\">\",'CFR - XML import'!$A62,1)+1,SEARCH(\"/\",'CFR - XML import'!$A62,1)-SEARCH(\">\",'CFR - XML import'!$A62,1)-2)))","v":0},{"$f":"IF(ISERROR(FIND(BR$3,'CFR - XML import'!$A62)),0,VALUE(MID('CFR - XML import'!$A62,SEARCH(\">\",'CFR - XML import'!$A62,1)+1,SEARCH(\"/\",'CFR - XML import'!$A62,1)-SEARCH(\">\",'CFR - XML import'!$A62,1)-2)))","v":0},{"$f":"IF(ISERROR(FIND(BS$3,'CFR - XML import'!$A62)),0,VALUE(MID('CFR - XML import'!$A62,SEARCH(\">\",'CFR - XML import'!$A62,1)+1,SEARCH(\"/\",'CFR - XML import'!$A62,1)-SEARCH(\">\",'CFR - XML import'!$A62,1)-2)))","v":0},{"$f":"IF(ISERROR(FIND(BT$3,'CFR - XML import'!$A62)),0,VALUE(MID('CFR - XML import'!$A62,SEARCH(\">\",'CFR - XML import'!$A62,1)+1,SEARCH(\"/\",'CFR - XML import'!$A62,1)-SEARCH(\">\",'CFR - XML import'!$A62,1)-2)))","v":0},{"$f":"IF(ISERROR(FIND(BU$3,'CFR - XML import'!$A62)),0,VALUE(MID('CFR - XML import'!$A62,SEARCH(\">\",'CFR - XML import'!$A62,1)+1,SEARCH(\"/\",'CFR - XML import'!$A62,1)-SEARCH(\">\",'CFR - XML import'!$A62,1)-2)))","v":0},{"$f":"IF(ISERROR(FIND(BV$3,'CFR - XML import'!$A62)),0,VALUE(MID('CFR - XML import'!$A62,SEARCH(\">\",'CFR - XML import'!$A62,1)+1,SEARCH(\"/\",'CFR - XML import'!$A62,1)-SEARCH(\">\",'CFR - XML import'!$A62,1)-2)))","v":0},{"$f":"IF(ISERROR(FIND(BW$3,'CFR - XML import'!$A62)),0,VALUE(MID('CFR - XML import'!$A62,SEARCH(\">\",'CFR - XML import'!$A62,1)+1,SEARCH(\"/\",'CFR - XML import'!$A62,1)-SEARCH(\">\",'CFR - XML import'!$A62,1)-2)))","v":0},{"$f":"IF(ISERROR(FIND(BX$3,'CFR - XML import'!$A62)),0,VALUE(MID('CFR - XML import'!$A62,SEARCH(\">\",'CFR - XML import'!$A62,1)+1,SEARCH(\"/\",'CFR - XML import'!$A62,1)-SEARCH(\">\",'CFR - XML import'!$A62,1)-2)))","v":0},{"$f":"IF(ISERROR(FIND(BY$3,'CFR - XML import'!$A62)),0,VALUE(MID('CFR - XML import'!$A62,SEARCH(\">\",'CFR - XML import'!$A62,1)+1,SEARCH(\"/\",'CFR - XML import'!$A62,1)-SEARCH(\">\",'CFR - XML import'!$A62,1)-2)))","v":0},{"$f":"IF(ISERROR(FIND(BZ$3,'CFR - XML import'!$A62)),0,VALUE(MID('CFR - XML import'!$A62,SEARCH(\">\",'CFR - XML import'!$A62,1)+1,SEARCH(\"/\",'CFR - XML import'!$A62,1)-SEARCH(\">\",'CFR - XML import'!$A62,1)-2)))","v":0},null,null,null,null,null,null,{"$f":"IF(ISERROR(IF(MID('CFR - XML import'!$A62,LEN($CF$4)+1,LEN('CFR - XML import'!$A62)-(2*LEN($CF$4)+1))=\"RMMS\",1,IF(MID('CFR - XML import'!$A62,LEN(\"    <InputSystem>\")+1,LEN('CFR - XML import'!$A62)-(LEN(\"    <InputSystem>\")+LEN($CF$4)+1))=\"SIMS\",2,0))),0,IF(MID('CFR - XML import'!$A62,LEN($CF$4)+1,LEN('CFR - XML import'!$A62)-(2*LEN($CF$4)+1))=\"RMMS\",1,IF(MID('CFR - XML import'!$A62,LEN(\"    <InputSystem>\")+1,LEN('CFR - XML import'!$A62)-(LEN(\"    <InputSystem>\")+LEN($CF$4)+1))=\"SIMS\",2,0)))","v":0},{"$f":"IF(ISERROR(FIND(CH$3,'CFR - XML import'!$A62)),0,MID('CFR - XML import'!$A62,SEARCH(\">\",'CFR - XML import'!$A62,1)+1,SEARCH(\"/\",'CFR - XML import'!$A62,1)-SEARCH(\">\",'CFR - XML import'!$A62,1)-2))","v":0},{"$f":"IF(ISERROR(FIND(CI$3,'CFR - XML import'!$A62)),0,MID('CFR - XML import'!$A62,SEARCH(\">\",'CFR - XML import'!$A62,1)+1,SEARCH(\"/\",'CFR - XML import'!$A62,1)-SEARCH(\">\",'CFR - XML import'!$A62,1)-2))","v":0},{"$f":"IF(ISERROR(FIND(CJ$3,'CFR - XML import'!$A62)),0,MID('CFR - XML import'!$A62,SEARCH(\">\",'CFR - XML import'!$A62,1)+1,SEARCH(\"/\",'CFR - XML import'!$A62,1)-SEARCH(\">\",'CFR - XML import'!$A62,1)-2))","v":0},{"$f":"IF(ISERROR(FIND(CK$3,'CFR - XML import'!$A62)),0,MID('CFR - XML import'!$A62,SEARCH(\">\",'CFR - XML import'!$A62,1)+1,SEARCH(\"/\",'CFR - XML import'!$A62,1)-SEARCH(\">\",'CFR - XML import'!$A62,1)-2))","v":0},{"$f":"IF(ISERROR(FIND(CL$3,'CFR - XML import'!$A62)),0,MID('CFR - XML import'!$A62,SEARCH(\">\",'CFR - XML import'!$A62,1)+1,SEARCH(\"/\",'CFR - XML import'!$A62,1)-SEARCH(\">\",'CFR - XML import'!$A62,1)-2))","v":0}]
[{"$f":"IF(AND('CFR - XML import'!A63<>\"\",LEFT('CFR - XML import'!A63,1)<>\"<\",LEFT('CFR - XML import'!A63,3)<>\"  <\",LEFT('CFR - XML import'!A63,5)<>\"    <\",LEFT('CFR - XML import'!A63,7)<>\"      <\",LEFT('CFR - XML import'!A63,9)<>\"        <\",$B$1=\"SIMS\"),'CFR - XML import'!A63,IF(AND(LEFT('CFR - XML import'!A63,9)=\"<Details>\",$B$1=\"RM\"),'CFR - XML import'!A63,\"\"))","v":""},{"$f":"IF(ISERROR(FIND(B$3,'CFR - XML import'!$A63)),0,VALUE(MID('CFR - XML import'!$A63,SEARCH(\">\",'CFR - XML import'!$A63,1)+1,SEARCH(\"/\",'CFR - XML import'!$A63,1)-SEARCH(\">\",'CFR - XML import'!$A63,1)-2)))","v":0},null,{"$f":"IF(ISERROR(FIND(D$3,'CFR - XML import'!$A63)),0,MID('CFR - XML import'!$A63,SEARCH(\">\",'CFR - XML import'!$A63,1)+1,SEARCH(\"/\",'CFR - XML import'!$A63,1)-SEARCH(\">\",'CFR - XML import'!$A63,1)-2))","v":0},{"$f":"IF(ISERROR(FIND(E$3,'CFR - XML import'!$A63)),0,MID('CFR - XML import'!$A63,SEARCH(\">\",'CFR - XML import'!$A63,1)+1,SEARCH(\"/\",'CFR - XML import'!$A63,1)-SEARCH(\">\",'CFR - XML import'!$A63,1)-2))","v":0},{"$f":"IF($B$1=\"SIMS\",IF(ISERROR(FIND(F$3,'CFR - XML import'!$A63)),0,VALUE(MID('CFR - XML import'!$A63,15,10))),IF(ISERROR(FIND(F$3,'CFR - XML import'!$A63)),0,VALUE(MID('CFR - XML import'!$A63,11,10))))","v":"00:00:00"},{"$f":"IF(ISERROR(FIND(G$3,'CFR - XML import'!$A63)),0,VALUE(MID('CFR - XML import'!$A63,SEARCH(\">\",'CFR - XML import'!$A63,1)+1,SEARCH(\"/\",'CFR - XML import'!$A63,1)-SEARCH(\">\",'CFR - XML import'!$A63,1)-2)))","v":0},{"$f":"IF(ISERROR(FIND(H$3,'CFR - XML import'!$A63)),0,VALUE(MID('CFR - XML import'!$A63,SEARCH(\">\",'CFR - XML import'!$A63,1)+1,SEARCH(\"/\",'CFR - XML import'!$A63,1)-SEARCH(\">\",'CFR - XML import'!$A63,1)-2)))","v":0},{"$f":"IF(ISERROR(FIND(I$3,'CFR - XML import'!$A63)),0,VALUE(MID('CFR - XML import'!$A63,SEARCH(\">\",'CFR - XML import'!$A63,1)+1,SEARCH(\"/\",'CFR - XML import'!$A63,1)-SEARCH(\">\",'CFR - XML import'!$A63,1)-2)))","v":0},{"$f":"IF(ISERROR(FIND(J$3,'CFR - XML import'!$A63)),0,VALUE(MID('CFR - XML import'!$A63,SEARCH(\">\",'CFR - XML import'!$A63,1)+1,SEARCH(\"/\",'CFR - XML import'!$A63,1)-SEARCH(\">\",'CFR - XML import'!$A63,1)-2)))","v":0},{"$f":"IF(ISERROR(FIND(K$3,'CFR - XML import'!$A63)),0,VALUE(MID('CFR - XML import'!$A63,SEARCH(\">\",'CFR - XML import'!$A63,1)+1,SEARCH(\"/\",'CFR - XML import'!$A63,1)-SEARCH(\">\",'CFR - XML import'!$A63,1)-2)))","v":0},{"$f":"IF(ISERROR(FIND(L$3,'CFR - XML import'!$A63)),0,VALUE(MID('CFR - XML import'!$A63,SEARCH(\">\",'CFR - XML import'!$A63,1)+1,SEARCH(\"/\",'CFR - XML import'!$A63,1)-SEARCH(\">\",'CFR - XML import'!$A63,1)-2)))","v":0},{"$f":"IF(ISERROR(FIND(M$3,'CFR - XML import'!$A63)),0,VALUE(MID('CFR - XML import'!$A63,SEARCH(\">\",'CFR - XML import'!$A63,1)+1,SEARCH(\"/\",'CFR - XML import'!$A63,1)-SEARCH(\">\",'CFR - XML import'!$A63,1)-2)))","v":0},{"$f":"IF(ISERROR(FIND(N$3,'CFR - XML import'!$A63)),0,VALUE(MID('CFR - XML import'!$A63,SEARCH(\">\",'CFR - XML import'!$A63,1)+1,SEARCH(\"/\",'CFR - XML import'!$A63,1)-SEARCH(\">\",'CFR - XML import'!$A63,1)-2)))","v":0},{"$f":"IF(ISERROR(FIND(O$3,'CFR - XML import'!$A63)),0,VALUE(MID('CFR - XML import'!$A63,SEARCH(\">\",'CFR - XML import'!$A63,1)+1,SEARCH(\"/\",'CFR - XML import'!$A63,1)-SEARCH(\">\",'CFR - XML import'!$A63,1)-2)))","v":0},{"$f":"IF(ISERROR(FIND(P$3,'CFR - XML import'!$A63)),0,VALUE(MID('CFR - XML import'!$A63,SEARCH(\">\",'CFR - XML import'!$A63,1)+1,SEARCH(\"/\",'CFR - XML import'!$A63,1)-SEARCH(\">\",'CFR - XML import'!$A63,1)-2)))","v":0},{"$f":"IF(ISERROR(FIND(Q$3,'CFR - XML import'!$A63)),0,VALUE(MID('CFR - XML import'!$A63,SEARCH(\">\",'CFR - XML import'!$A63,1)+1,SEARCH(\"/\",'CFR - XML import'!$A63,1)-SEARCH(\">\",'CFR - XML import'!$A63,1)-2)))","v":0},{"$f":"IF(ISERROR(FIND(R$3,'CFR - XML import'!$A63)),0,VALUE(MID('CFR - XML import'!$A63,SEARCH(\">\",'CFR - XML import'!$A63,1)+1,SEARCH(\"/\",'CFR - XML import'!$A63,1)-SEARCH(\">\",'CFR - XML import'!$A63,1)-2)))","v":0},{"$f":"IF(ISERROR(FIND(S$3,'CFR - XML import'!$A63)),0,VALUE(MID('CFR - XML import'!$A63,SEARCH(\">\",'CFR - XML import'!$A63,1)+1,SEARCH(\"/\",'CFR - XML import'!$A63,1)-SEARCH(\">\",'CFR - XML import'!$A63,1)-2)))","v":0},{"$f":"IF(ISERROR(FIND(T$3,'CFR - XML import'!$A63)),0,VALUE(MID('CFR - XML import'!$A63,SEARCH(\">\",'CFR - XML import'!$A63,1)+1,SEARCH(\"/\",'CFR - XML import'!$A63,1)-SEARCH(\">\",'CFR - XML import'!$A63,1)-2)))","v":0},{"$f":"IF(ISERROR(FIND(U$3,'CFR - XML import'!$A63)),0,VALUE(MID('CFR - XML import'!$A63,SEARCH(\">\",'CFR - XML import'!$A63,1)+1,SEARCH(\"/\",'CFR - XML import'!$A63,1)-SEARCH(\">\",'CFR - XML import'!$A63,1)-2)))","v":0},{"$f":"IF(ISERROR(FIND(V$3,'CFR - XML import'!$A63)),0,VALUE(MID('CFR - XML import'!$A63,SEARCH(\">\",'CFR - XML import'!$A63,1)+1,SEARCH(\"/\",'CFR - XML import'!$A63,1)-SEARCH(\">\",'CFR - XML import'!$A63,1)-2)))","v":0},{"$f":"IF(ISERROR(FIND(W$3,'CFR - XML import'!$A63)),0,VALUE(MID('CFR - XML import'!$A63,SEARCH(\">\",'CFR - XML import'!$A63,1)+1,SEARCH(\"/\",'CFR - XML import'!$A63,1)-SEARCH(\">\",'CFR - XML import'!$A63,1)-2)))","v":0},null,{"$f":"IF(ISERROR(FIND(Y$3,'CFR - XML import'!$A63)),0,VALUE(MID('CFR - XML import'!$A63,SEARCH(\">\",'CFR - XML import'!$A63,1)+1,SEARCH(\"/\",'CFR - XML import'!$A63,1)-SEARCH(\">\",'CFR - XML import'!$A63,1)-2)))","v":0},{"$f":"IF(ISERROR(FIND(Z$3,'CFR - XML import'!$A63)),0,VALUE(MID('CFR - XML import'!$A63,SEARCH(\">\",'CFR - XML import'!$A63,1)+1,SEARCH(\"/\",'CFR - XML import'!$A63,1)-SEARCH(\">\",'CFR - XML import'!$A63,1)-2)))","v":0},{"$f":"IF(ISERROR(FIND(AA$3,'CFR - XML import'!$A63)),0,VALUE(MID('CFR - XML import'!$A63,SEARCH(\">\",'CFR - XML import'!$A63,1)+1,SEARCH(\"/\",'CFR - XML import'!$A63,1)-SEARCH(\">\",'CFR - XML import'!$A63,1)-2)))","v":0},{"$f":"IF(ISERROR(FIND(AB$3,'CFR - XML import'!$A63)),0,VALUE(MID('CFR - XML import'!$A63,SEARCH(\">\",'CFR - XML import'!$A63,1)+1,SEARCH(\"/\",'CFR - XML import'!$A63,1)-SEARCH(\">\",'CFR - XML import'!$A63,1)-2)))","v":0},{"$f":"IF(ISERROR(FIND(AC$3,'CFR - XML import'!$A63)),0,VALUE(MID('CFR - XML import'!$A63,SEARCH(\">\",'CFR - XML import'!$A63,1)+1,SEARCH(\"/\",'CFR - XML import'!$A63,1)-SEARCH(\">\",'CFR - XML import'!$A63,1)-2)))","v":0},{"$f":"IF(ISERROR(FIND(AD$3,'CFR - XML import'!$A63)),0,VALUE(MID('CFR - XML import'!$A63,SEARCH(\">\",'CFR - XML import'!$A63,1)+1,SEARCH(\"/\",'CFR - XML import'!$A63,1)-SEARCH(\">\",'CFR - XML import'!$A63,1)-2)))","v":0},{"$f":"IF(ISERROR(FIND(AE$3,'CFR - XML import'!$A63)),0,VALUE(MID('CFR - XML import'!$A63,SEARCH(\">\",'CFR - XML import'!$A63,1)+1,SEARCH(\"/\",'CFR - XML import'!$A63,1)-SEARCH(\">\",'CFR - XML import'!$A63,1)-2)))","v":0},{"$f":"IF(ISERROR(FIND(AF$3,'CFR - XML import'!$A63)),0,VALUE(MID('CFR - XML import'!$A63,SEARCH(\">\",'CFR - XML import'!$A63,1)+1,SEARCH(\"/\",'CFR - XML import'!$A63,1)-SEARCH(\">\",'CFR - XML import'!$A63,1)-2)))","v":0},{"$f":"IF(ISERROR(FIND(AG$3,'CFR - XML import'!$A63)),0,VALUE(MID('CFR - XML import'!$A63,SEARCH(\">\",'CFR - XML import'!$A63,1)+1,SEARCH(\"/\",'CFR - XML import'!$A63,1)-SEARCH(\">\",'CFR - XML import'!$A63,1)-2)))","v":0},{"$f":"IF(ISERROR(FIND(AH$3,'CFR - XML import'!$A63)),0,VALUE(MID('CFR - XML import'!$A63,SEARCH(\">\",'CFR - XML import'!$A63,1)+1,SEARCH(\"/\",'CFR - XML import'!$A63,1)-SEARCH(\">\",'CFR - XML import'!$A63,1)-2)))","v":0},{"$f":"IF(ISERROR(FIND(AI$3,'CFR - XML import'!$A63)),0,VALUE(MID('CFR - XML import'!$A63,SEARCH(\">\",'CFR - XML import'!$A63,1)+1,SEARCH(\"/\",'CFR - XML import'!$A63,1)-SEARCH(\">\",'CFR - XML import'!$A63,1)-2)))","v":0},{"$f":"IF(ISERROR(FIND(AJ$3,'CFR - XML import'!$A63)),0,VALUE(MID('CFR - XML import'!$A63,SEARCH(\">\",'CFR - XML import'!$A63,1)+1,SEARCH(\"/\",'CFR - XML import'!$A63,1)-SEARCH(\">\",'CFR - XML import'!$A63,1)-2)))","v":0},{"$f":"IF(ISERROR(FIND(AK$3,'CFR - XML import'!$A63)),0,VALUE(MID('CFR - XML import'!$A63,SEARCH(\">\",'CFR - XML import'!$A63,1)+1,SEARCH(\"/\",'CFR - XML import'!$A63,1)-SEARCH(\">\",'CFR - XML import'!$A63,1)-2)))","v":0},{"$f":"IF(ISERROR(FIND(AL$3,'CFR - XML import'!$A63)),0,VALUE(MID('CFR - XML import'!$A63,SEARCH(\">\",'CFR - XML import'!$A63,1)+1,SEARCH(\"/\",'CFR - XML import'!$A63,1)-SEARCH(\">\",'CFR - XML import'!$A63,1)-2)))","v":0},{"$f":"IF(ISERROR(FIND(AM$3,'CFR - XML import'!$A63)),0,VALUE(MID('CFR - XML import'!$A63,SEARCH(\">\",'CFR - XML import'!$A63,1)+1,SEARCH(\"/\",'CFR - XML import'!$A63,1)-SEARCH(\">\",'CFR - XML import'!$A63,1)-2)))","v":0},{"$f":"IF(ISERROR(FIND(AN$3,'CFR - XML import'!$A63)),0,VALUE(MID('CFR - XML import'!$A63,SEARCH(\">\",'CFR - XML import'!$A63,1)+1,SEARCH(\"/\",'CFR - XML import'!$A63,1)-SEARCH(\">\",'CFR - XML import'!$A63,1)-2)))","v":0},{"$f":"IF(ISERROR(FIND(AO$3,'CFR - XML import'!$A63)),0,VALUE(MID('CFR - XML import'!$A63,SEARCH(\">\",'CFR - XML import'!$A63,1)+1,SEARCH(\"/\",'CFR - XML import'!$A63,1)-SEARCH(\">\",'CFR - XML import'!$A63,1)-2)))","v":0},{"$f":"IF(ISERROR(FIND(AP$3,'CFR - XML import'!$A63)),0,VALUE(MID('CFR - XML import'!$A63,SEARCH(\">\",'CFR - XML import'!$A63,1)+1,SEARCH(\"/\",'CFR - XML import'!$A63,1)-SEARCH(\">\",'CFR - XML import'!$A63,1)-2)))","v":0},{"$f":"IF(ISERROR(FIND(AQ$3,'CFR - XML import'!$A63)),0,VALUE(MID('CFR - XML import'!$A63,SEARCH(\">\",'CFR - XML import'!$A63,1)+1,SEARCH(\"/\",'CFR - XML import'!$A63,1)-SEARCH(\">\",'CFR - XML import'!$A63,1)-2)))","v":0},{"$f":"IF(ISERROR(FIND(AR$3,'CFR - XML import'!$A63)),0,VALUE(MID('CFR - XML import'!$A63,SEARCH(\">\",'CFR - XML import'!$A63,1)+1,SEARCH(\"/\",'CFR - XML import'!$A63,1)-SEARCH(\">\",'CFR - XML import'!$A63,1)-2)))","v":0},{"$f":"IF(ISERROR(FIND(AS$3,'CFR - XML import'!$A63)),0,VALUE(MID('CFR - XML import'!$A63,SEARCH(\">\",'CFR - XML import'!$A63,1)+1,SEARCH(\"/\",'CFR - XML import'!$A63,1)-SEARCH(\">\",'CFR - XML import'!$A63,1)-2)))","v":0},{"$f":"IF(ISERROR(FIND(AT$3,'CFR - XML import'!$A63)),0,VALUE(MID('CFR - XML import'!$A63,SEARCH(\">\",'CFR - XML import'!$A63,1)+1,SEARCH(\"/\",'CFR - XML import'!$A63,1)-SEARCH(\">\",'CFR - XML import'!$A63,1)-2)))","v":0},{"$f":"IF(ISERROR(FIND(AU$3,'CFR - XML import'!$A63)),0,VALUE(MID('CFR - XML import'!$A63,SEARCH(\">\",'CFR - XML import'!$A63,1)+1,SEARCH(\"/\",'CFR - XML import'!$A63,1)-SEARCH(\">\",'CFR - XML import'!$A63,1)-2)))","v":0},{"$f":"IF(ISERROR(FIND(AV$3,'CFR - XML import'!$A63)),0,VALUE(MID('CFR - XML import'!$A63,SEARCH(\">\",'CFR - XML import'!$A63,1)+1,SEARCH(\"/\",'CFR - XML import'!$A63,1)-SEARCH(\">\",'CFR - XML import'!$A63,1)-2)))","v":0},{"$f":"IF(ISERROR(FIND(AW$3,'CFR - XML import'!$A63)),0,VALUE(MID('CFR - XML import'!$A63,SEARCH(\">\",'CFR - XML import'!$A63,1)+1,SEARCH(\"/\",'CFR - XML import'!$A63,1)-SEARCH(\">\",'CFR - XML import'!$A63,1)-2)))","v":0},{"$f":"IF(ISERROR(FIND(AX$3,'CFR - XML import'!$A63)),0,VALUE(MID('CFR - XML import'!$A63,SEARCH(\">\",'CFR - XML import'!$A63,1)+1,SEARCH(\"/\",'CFR - XML import'!$A63,1)-SEARCH(\">\",'CFR - XML import'!$A63,1)-2)))","v":0},{"$f":"IF(ISERROR(FIND(AY$3,'CFR - XML import'!$A63)),0,VALUE(MID('CFR - XML import'!$A63,SEARCH(\">\",'CFR - XML import'!$A63,1)+1,SEARCH(\"/\",'CFR - XML import'!$A63,1)-SEARCH(\">\",'CFR - XML import'!$A63,1)-2)))","v":0},{"$f":"IF(ISERROR(FIND(AZ$3,'CFR - XML import'!$A63)),0,VALUE(MID('CFR - XML import'!$A63,SEARCH(\">\",'CFR - XML import'!$A63,1)+1,SEARCH(\"/\",'CFR - XML import'!$A63,1)-SEARCH(\">\",'CFR - XML import'!$A63,1)-2)))","v":0},{"$f":"IF(ISERROR(FIND(BA$3,'CFR - XML import'!$A63)),0,VALUE(MID('CFR - XML import'!$A63,SEARCH(\">\",'CFR - XML import'!$A63,1)+1,SEARCH(\"/\",'CFR - XML import'!$A63,1)-SEARCH(\">\",'CFR - XML import'!$A63,1)-2)))","v":0},{"$f":"IF(ISERROR(FIND(BB$3,'CFR - XML import'!$A63)),0,VALUE(MID('CFR - XML import'!$A63,SEARCH(\">\",'CFR - XML import'!$A63,1)+1,SEARCH(\"/\",'CFR - XML import'!$A63,1)-SEARCH(\">\",'CFR - XML import'!$A63,1)-2)))","v":0},{"$f":"IF(ISERROR(FIND(BC$3,'CFR - XML import'!$A63)),0,VALUE(MID('CFR - XML import'!$A63,SEARCH(\">\",'CFR - XML import'!$A63,1)+1,SEARCH(\"/\",'CFR - XML import'!$A63,1)-SEARCH(\">\",'CFR - XML import'!$A63,1)-2)))","v":0},{"$f":"IF(ISERROR(FIND(BD$3,'CFR - XML import'!$A63)),0,VALUE(MID('CFR - XML import'!$A63,SEARCH(\">\",'CFR - XML import'!$A63,1)+1,SEARCH(\"/\",'CFR - XML import'!$A63,1)-SEARCH(\">\",'CFR - XML import'!$A63,1)-2)))","v":0},{"$f":"IF(ISERROR(FIND(BE$3,'CFR - XML import'!$A63)),0,VALUE(MID('CFR - XML import'!$A63,SEARCH(\">\",'CFR - XML import'!$A63,1)+1,SEARCH(\"/\",'CFR - XML import'!$A63,1)-SEARCH(\">\",'CFR - XML import'!$A63,1)-2)))","v":0},{"$f":"IF(ISERROR(FIND(BF$3,'CFR - XML import'!$A63)),0,VALUE(MID('CFR - XML import'!$A63,SEARCH(\">\",'CFR - XML import'!$A63,1)+1,SEARCH(\"/\",'CFR - XML import'!$A63,1)-SEARCH(\">\",'CFR - XML import'!$A63,1)-2)))","v":0},{"$f":"IF(ISERROR(FIND(BG$3,'CFR - XML import'!$A63)),0,VALUE(MID('CFR - XML import'!$A63,SEARCH(\">\",'CFR - XML import'!$A63,1)+1,SEARCH(\"/\",'CFR - XML import'!$A63,1)-SEARCH(\">\",'CFR - XML import'!$A63,1)-2)))","v":0},{"$f":"IF(ISERROR(FIND(BH$3,'CFR - XML import'!$A63)),0,VALUE(MID('CFR - XML import'!$A63,SEARCH(\">\",'CFR - XML import'!$A63,1)+1,SEARCH(\"/\",'CFR - XML import'!$A63,1)-SEARCH(\">\",'CFR - XML import'!$A63,1)-2)))","v":0},{"$f":"IF(ISERROR(FIND(BI$3,'CFR - XML import'!$A63)),0,VALUE(MID('CFR - XML import'!$A63,SEARCH(\">\",'CFR - XML import'!$A63,1)+1,SEARCH(\"/\",'CFR - XML import'!$A63,1)-SEARCH(\">\",'CFR - XML import'!$A63,1)-2)))","v":0},{"$f":"IF(ISERROR(FIND(BJ$3,'CFR - XML import'!$A63)),0,VALUE(MID('CFR - XML import'!$A63,SEARCH(\">\",'CFR - XML import'!$A63,1)+1,SEARCH(\"/\",'CFR - XML import'!$A63,1)-SEARCH(\">\",'CFR - XML import'!$A63,1)-2)))","v":0},{"$f":"IF(ISERROR(FIND(BK$3,'CFR - XML import'!$A63)),0,VALUE(MID('CFR - XML import'!$A63,SEARCH(\">\",'CFR - XML import'!$A63,1)+1,SEARCH(\"/\",'CFR - XML import'!$A63,1)-SEARCH(\">\",'CFR - XML import'!$A63,1)-2)))","v":0},{"$f":"IF(ISERROR(FIND(BL$3,'CFR - XML import'!$A63)),0,VALUE(MID('CFR - XML import'!$A63,SEARCH(\">\",'CFR - XML import'!$A63,1)+1,SEARCH(\"/\",'CFR - XML import'!$A63,1)-SEARCH(\">\",'CFR - XML import'!$A63,1)-2)))","v":0},{"$f":"IF(ISERROR(FIND(BM$3,'CFR - XML import'!$A63)),0,VALUE(MID('CFR - XML import'!$A63,SEARCH(\">\",'CFR - XML import'!$A63,1)+1,SEARCH(\"/\",'CFR - XML import'!$A63,1)-SEARCH(\">\",'CFR - XML import'!$A63,1)-2)))","v":0},{"$f":"IF(ISERROR(FIND(BN$3,'CFR - XML import'!$A63)),0,VALUE(MID('CFR - XML import'!$A63,SEARCH(\">\",'CFR - XML import'!$A63,1)+1,SEARCH(\"/\",'CFR - XML import'!$A63,1)-SEARCH(\">\",'CFR - XML import'!$A63,1)-2)))","v":0},{"$f":"IF(ISERROR(FIND(BO$3,'CFR - XML import'!$A63)),0,VALUE(MID('CFR - XML import'!$A63,SEARCH(\">\",'CFR - XML import'!$A63,1)+1,SEARCH(\"/\",'CFR - XML import'!$A63,1)-SEARCH(\">\",'CFR - XML import'!$A63,1)-2)))","v":0},{"$f":"IF(ISERROR(FIND(BP$3,'CFR - XML import'!$A63)),0,VALUE(MID('CFR - XML import'!$A63,SEARCH(\">\",'CFR - XML import'!$A63,1)+1,SEARCH(\"/\",'CFR - XML import'!$A63,1)-SEARCH(\">\",'CFR - XML import'!$A63,1)-2)))","v":0},{"$f":"IF(ISERROR(FIND(BQ$3,'CFR - XML import'!$A63)),0,VALUE(MID('CFR - XML import'!$A63,SEARCH(\">\",'CFR - XML import'!$A63,1)+1,SEARCH(\"/\",'CFR - XML import'!$A63,1)-SEARCH(\">\",'CFR - XML import'!$A63,1)-2)))","v":0},{"$f":"IF(ISERROR(FIND(BR$3,'CFR - XML import'!$A63)),0,VALUE(MID('CFR - XML import'!$A63,SEARCH(\">\",'CFR - XML import'!$A63,1)+1,SEARCH(\"/\",'CFR - XML import'!$A63,1)-SEARCH(\">\",'CFR - XML import'!$A63,1)-2)))","v":0},{"$f":"IF(ISERROR(FIND(BS$3,'CFR - XML import'!$A63)),0,VALUE(MID('CFR - XML import'!$A63,SEARCH(\">\",'CFR - XML import'!$A63,1)+1,SEARCH(\"/\",'CFR - XML import'!$A63,1)-SEARCH(\">\",'CFR - XML import'!$A63,1)-2)))","v":0},{"$f":"IF(ISERROR(FIND(BT$3,'CFR - XML import'!$A63)),0,VALUE(MID('CFR - XML import'!$A63,SEARCH(\">\",'CFR - XML import'!$A63,1)+1,SEARCH(\"/\",'CFR - XML import'!$A63,1)-SEARCH(\">\",'CFR - XML import'!$A63,1)-2)))","v":0},{"$f":"IF(ISERROR(FIND(BU$3,'CFR - XML import'!$A63)),0,VALUE(MID('CFR - XML import'!$A63,SEARCH(\">\",'CFR - XML import'!$A63,1)+1,SEARCH(\"/\",'CFR - XML import'!$A63,1)-SEARCH(\">\",'CFR - XML import'!$A63,1)-2)))","v":0},{"$f":"IF(ISERROR(FIND(BV$3,'CFR - XML import'!$A63)),0,VALUE(MID('CFR - XML import'!$A63,SEARCH(\">\",'CFR - XML import'!$A63,1)+1,SEARCH(\"/\",'CFR - XML import'!$A63,1)-SEARCH(\">\",'CFR - XML import'!$A63,1)-2)))","v":0},{"$f":"IF(ISERROR(FIND(BW$3,'CFR - XML import'!$A63)),0,VALUE(MID('CFR - XML import'!$A63,SEARCH(\">\",'CFR - XML import'!$A63,1)+1,SEARCH(\"/\",'CFR - XML import'!$A63,1)-SEARCH(\">\",'CFR - XML import'!$A63,1)-2)))","v":0},{"$f":"IF(ISERROR(FIND(BX$3,'CFR - XML import'!$A63)),0,VALUE(MID('CFR - XML import'!$A63,SEARCH(\">\",'CFR - XML import'!$A63,1)+1,SEARCH(\"/\",'CFR - XML import'!$A63,1)-SEARCH(\">\",'CFR - XML import'!$A63,1)-2)))","v":0},{"$f":"IF(ISERROR(FIND(BY$3,'CFR - XML import'!$A63)),0,VALUE(MID('CFR - XML import'!$A63,SEARCH(\">\",'CFR - XML import'!$A63,1)+1,SEARCH(\"/\",'CFR - XML import'!$A63,1)-SEARCH(\">\",'CFR - XML import'!$A63,1)-2)))","v":0},{"$f":"IF(ISERROR(FIND(BZ$3,'CFR - XML import'!$A63)),0,VALUE(MID('CFR - XML import'!$A63,SEARCH(\">\",'CFR - XML import'!$A63,1)+1,SEARCH(\"/\",'CFR - XML import'!$A63,1)-SEARCH(\">\",'CFR - XML import'!$A63,1)-2)))","v":0},null,null,null,null,null,null,{"$f":"IF(ISERROR(IF(MID('CFR - XML import'!$A63,LEN($CF$4)+1,LEN('CFR - XML import'!$A63)-(2*LEN($CF$4)+1))=\"RMMS\",1,IF(MID('CFR - XML import'!$A63,LEN(\"    <InputSystem>\")+1,LEN('CFR - XML import'!$A63)-(LEN(\"    <InputSystem>\")+LEN($CF$4)+1))=\"SIMS\",2,0))),0,IF(MID('CFR - XML import'!$A63,LEN($CF$4)+1,LEN('CFR - XML import'!$A63)-(2*LEN($CF$4)+1))=\"RMMS\",1,IF(MID('CFR - XML import'!$A63,LEN(\"    <InputSystem>\")+1,LEN('CFR - XML import'!$A63)-(LEN(\"    <InputSystem>\")+LEN($CF$4)+1))=\"SIMS\",2,0)))","v":0},{"$f":"IF(ISERROR(FIND(CH$3,'CFR - XML import'!$A63)),0,MID('CFR - XML import'!$A63,SEARCH(\">\",'CFR - XML import'!$A63,1)+1,SEARCH(\"/\",'CFR - XML import'!$A63,1)-SEARCH(\">\",'CFR - XML import'!$A63,1)-2))","v":0},{"$f":"IF(ISERROR(FIND(CI$3,'CFR - XML import'!$A63)),0,MID('CFR - XML import'!$A63,SEARCH(\">\",'CFR - XML import'!$A63,1)+1,SEARCH(\"/\",'CFR - XML import'!$A63,1)-SEARCH(\">\",'CFR - XML import'!$A63,1)-2))","v":0},{"$f":"IF(ISERROR(FIND(CJ$3,'CFR - XML import'!$A63)),0,MID('CFR - XML import'!$A63,SEARCH(\">\",'CFR - XML import'!$A63,1)+1,SEARCH(\"/\",'CFR - XML import'!$A63,1)-SEARCH(\">\",'CFR - XML import'!$A63,1)-2))","v":0},{"$f":"IF(ISERROR(FIND(CK$3,'CFR - XML import'!$A63)),0,MID('CFR - XML import'!$A63,SEARCH(\">\",'CFR - XML import'!$A63,1)+1,SEARCH(\"/\",'CFR - XML import'!$A63,1)-SEARCH(\">\",'CFR - XML import'!$A63,1)-2))","v":0},{"$f":"IF(ISERROR(FIND(CL$3,'CFR - XML import'!$A63)),0,MID('CFR - XML import'!$A63,SEARCH(\">\",'CFR - XML import'!$A63,1)+1,SEARCH(\"/\",'CFR - XML import'!$A63,1)-SEARCH(\">\",'CFR - XML import'!$A63,1)-2))","v":0}]
[{"$f":"IF(AND('CFR - XML import'!A64<>\"\",LEFT('CFR - XML import'!A64,1)<>\"<\",LEFT('CFR - XML import'!A64,3)<>\"  <\",LEFT('CFR - XML import'!A64,5)<>\"    <\",LEFT('CFR - XML import'!A64,7)<>\"      <\",LEFT('CFR - XML import'!A64,9)<>\"        <\",$B$1=\"SIMS\"),'CFR - XML import'!A64,IF(AND(LEFT('CFR - XML import'!A64,9)=\"<Details>\",$B$1=\"RM\"),'CFR - XML import'!A64,\"\"))","v":""},{"$f":"IF(ISERROR(FIND(B$3,'CFR - XML import'!$A64)),0,VALUE(MID('CFR - XML import'!$A64,SEARCH(\">\",'CFR - XML import'!$A64,1)+1,SEARCH(\"/\",'CFR - XML import'!$A64,1)-SEARCH(\">\",'CFR - XML import'!$A64,1)-2)))","v":0},null,{"$f":"IF(ISERROR(FIND(D$3,'CFR - XML import'!$A64)),0,MID('CFR - XML import'!$A64,SEARCH(\">\",'CFR - XML import'!$A64,1)+1,SEARCH(\"/\",'CFR - XML import'!$A64,1)-SEARCH(\">\",'CFR - XML import'!$A64,1)-2))","v":0},{"$f":"IF(ISERROR(FIND(E$3,'CFR - XML import'!$A64)),0,MID('CFR - XML import'!$A64,SEARCH(\">\",'CFR - XML import'!$A64,1)+1,SEARCH(\"/\",'CFR - XML import'!$A64,1)-SEARCH(\">\",'CFR - XML import'!$A64,1)-2))","v":0},{"$f":"IF($B$1=\"SIMS\",IF(ISERROR(FIND(F$3,'CFR - XML import'!$A64)),0,VALUE(MID('CFR - XML import'!$A64,15,10))),IF(ISERROR(FIND(F$3,'CFR - XML import'!$A64)),0,VALUE(MID('CFR - XML import'!$A64,11,10))))","v":"00:00:00"},{"$f":"IF(ISERROR(FIND(G$3,'CFR - XML import'!$A64)),0,VALUE(MID('CFR - XML import'!$A64,SEARCH(\">\",'CFR - XML import'!$A64,1)+1,SEARCH(\"/\",'CFR - XML import'!$A64,1)-SEARCH(\">\",'CFR - XML import'!$A64,1)-2)))","v":0},{"$f":"IF(ISERROR(FIND(H$3,'CFR - XML import'!$A64)),0,VALUE(MID('CFR - XML import'!$A64,SEARCH(\">\",'CFR - XML import'!$A64,1)+1,SEARCH(\"/\",'CFR - XML import'!$A64,1)-SEARCH(\">\",'CFR - XML import'!$A64,1)-2)))","v":0},{"$f":"IF(ISERROR(FIND(I$3,'CFR - XML import'!$A64)),0,VALUE(MID('CFR - XML import'!$A64,SEARCH(\">\",'CFR - XML import'!$A64,1)+1,SEARCH(\"/\",'CFR - XML import'!$A64,1)-SEARCH(\">\",'CFR - XML import'!$A64,1)-2)))","v":0},{"$f":"IF(ISERROR(FIND(J$3,'CFR - XML import'!$A64)),0,VALUE(MID('CFR - XML import'!$A64,SEARCH(\">\",'CFR - XML import'!$A64,1)+1,SEARCH(\"/\",'CFR - XML import'!$A64,1)-SEARCH(\">\",'CFR - XML import'!$A64,1)-2)))","v":0},{"$f":"IF(ISERROR(FIND(K$3,'CFR - XML import'!$A64)),0,VALUE(MID('CFR - XML import'!$A64,SEARCH(\">\",'CFR - XML import'!$A64,1)+1,SEARCH(\"/\",'CFR - XML import'!$A64,1)-SEARCH(\">\",'CFR - XML import'!$A64,1)-2)))","v":0},{"$f":"IF(ISERROR(FIND(L$3,'CFR - XML import'!$A64)),0,VALUE(MID('CFR - XML import'!$A64,SEARCH(\">\",'CFR - XML import'!$A64,1)+1,SEARCH(\"/\",'CFR - XML import'!$A64,1)-SEARCH(\">\",'CFR - XML import'!$A64,1)-2)))","v":0},{"$f":"IF(ISERROR(FIND(M$3,'CFR - XML import'!$A64)),0,VALUE(MID('CFR - XML import'!$A64,SEARCH(\">\",'CFR - XML import'!$A64,1)+1,SEARCH(\"/\",'CFR - XML import'!$A64,1)-SEARCH(\">\",'CFR - XML import'!$A64,1)-2)))","v":0},{"$f":"IF(ISERROR(FIND(N$3,'CFR - XML import'!$A64)),0,VALUE(MID('CFR - XML import'!$A64,SEARCH(\">\",'CFR - XML import'!$A64,1)+1,SEARCH(\"/\",'CFR - XML import'!$A64,1)-SEARCH(\">\",'CFR - XML import'!$A64,1)-2)))","v":0},{"$f":"IF(ISERROR(FIND(O$3,'CFR - XML import'!$A64)),0,VALUE(MID('CFR - XML import'!$A64,SEARCH(\">\",'CFR - XML import'!$A64,1)+1,SEARCH(\"/\",'CFR - XML import'!$A64,1)-SEARCH(\">\",'CFR - XML import'!$A64,1)-2)))","v":0},{"$f":"IF(ISERROR(FIND(P$3,'CFR - XML import'!$A64)),0,VALUE(MID('CFR - XML import'!$A64,SEARCH(\">\",'CFR - XML import'!$A64,1)+1,SEARCH(\"/\",'CFR - XML import'!$A64,1)-SEARCH(\">\",'CFR - XML import'!$A64,1)-2)))","v":0},{"$f":"IF(ISERROR(FIND(Q$3,'CFR - XML import'!$A64)),0,VALUE(MID('CFR - XML import'!$A64,SEARCH(\">\",'CFR - XML import'!$A64,1)+1,SEARCH(\"/\",'CFR - XML import'!$A64,1)-SEARCH(\">\",'CFR - XML import'!$A64,1)-2)))","v":0},{"$f":"IF(ISERROR(FIND(R$3,'CFR - XML import'!$A64)),0,VALUE(MID('CFR - XML import'!$A64,SEARCH(\">\",'CFR - XML import'!$A64,1)+1,SEARCH(\"/\",'CFR - XML import'!$A64,1)-SEARCH(\">\",'CFR - XML import'!$A64,1)-2)))","v":0},{"$f":"IF(ISERROR(FIND(S$3,'CFR - XML import'!$A64)),0,VALUE(MID('CFR - XML import'!$A64,SEARCH(\">\",'CFR - XML import'!$A64,1)+1,SEARCH(\"/\",'CFR - XML import'!$A64,1)-SEARCH(\">\",'CFR - XML import'!$A64,1)-2)))","v":0},{"$f":"IF(ISERROR(FIND(T$3,'CFR - XML import'!$A64)),0,VALUE(MID('CFR - XML import'!$A64,SEARCH(\">\",'CFR - XML import'!$A64,1)+1,SEARCH(\"/\",'CFR - XML import'!$A64,1)-SEARCH(\">\",'CFR - XML import'!$A64,1)-2)))","v":0},{"$f":"IF(ISERROR(FIND(U$3,'CFR - XML import'!$A64)),0,VALUE(MID('CFR - XML import'!$A64,SEARCH(\">\",'CFR - XML import'!$A64,1)+1,SEARCH(\"/\",'CFR - XML import'!$A64,1)-SEARCH(\">\",'CFR - XML import'!$A64,1)-2)))","v":0},{"$f":"IF(ISERROR(FIND(V$3,'CFR - XML import'!$A64)),0,VALUE(MID('CFR - XML import'!$A64,SEARCH(\">\",'CFR - XML import'!$A64,1)+1,SEARCH(\"/\",'CFR - XML import'!$A64,1)-SEARCH(\">\",'CFR - XML import'!$A64,1)-2)))","v":0},{"$f":"IF(ISERROR(FIND(W$3,'CFR - XML import'!$A64)),0,VALUE(MID('CFR - XML import'!$A64,SEARCH(\">\",'CFR - XML import'!$A64,1)+1,SEARCH(\"/\",'CFR - XML import'!$A64,1)-SEARCH(\">\",'CFR - XML import'!$A64,1)-2)))","v":0},null,{"$f":"IF(ISERROR(FIND(Y$3,'CFR - XML import'!$A64)),0,VALUE(MID('CFR - XML import'!$A64,SEARCH(\">\",'CFR - XML import'!$A64,1)+1,SEARCH(\"/\",'CFR - XML import'!$A64,1)-SEARCH(\">\",'CFR - XML import'!$A64,1)-2)))","v":0},{"$f":"IF(ISERROR(FIND(Z$3,'CFR - XML import'!$A64)),0,VALUE(MID('CFR - XML import'!$A64,SEARCH(\">\",'CFR - XML import'!$A64,1)+1,SEARCH(\"/\",'CFR - XML import'!$A64,1)-SEARCH(\">\",'CFR - XML import'!$A64,1)-2)))","v":0},{"$f":"IF(ISERROR(FIND(AA$3,'CFR - XML import'!$A64)),0,VALUE(MID('CFR - XML import'!$A64,SEARCH(\">\",'CFR - XML import'!$A64,1)+1,SEARCH(\"/\",'CFR - XML import'!$A64,1)-SEARCH(\">\",'CFR - XML import'!$A64,1)-2)))","v":0},{"$f":"IF(ISERROR(FIND(AB$3,'CFR - XML import'!$A64)),0,VALUE(MID('CFR - XML import'!$A64,SEARCH(\">\",'CFR - XML import'!$A64,1)+1,SEARCH(\"/\",'CFR - XML import'!$A64,1)-SEARCH(\">\",'CFR - XML import'!$A64,1)-2)))","v":0},{"$f":"IF(ISERROR(FIND(AC$3,'CFR - XML import'!$A64)),0,VALUE(MID('CFR - XML import'!$A64,SEARCH(\">\",'CFR - XML import'!$A64,1)+1,SEARCH(\"/\",'CFR - XML import'!$A64,1)-SEARCH(\">\",'CFR - XML import'!$A64,1)-2)))","v":0},{"$f":"IF(ISERROR(FIND(AD$3,'CFR - XML import'!$A64)),0,VALUE(MID('CFR - XML import'!$A64,SEARCH(\">\",'CFR - XML import'!$A64,1)+1,SEARCH(\"/\",'CFR - XML import'!$A64,1)-SEARCH(\">\",'CFR - XML import'!$A64,1)-2)))","v":0},{"$f":"IF(ISERROR(FIND(AE$3,'CFR - XML import'!$A64)),0,VALUE(MID('CFR - XML import'!$A64,SEARCH(\">\",'CFR - XML import'!$A64,1)+1,SEARCH(\"/\",'CFR - XML import'!$A64,1)-SEARCH(\">\",'CFR - XML import'!$A64,1)-2)))","v":0},{"$f":"IF(ISERROR(FIND(AF$3,'CFR - XML import'!$A64)),0,VALUE(MID('CFR - XML import'!$A64,SEARCH(\">\",'CFR - XML import'!$A64,1)+1,SEARCH(\"/\",'CFR - XML import'!$A64,1)-SEARCH(\">\",'CFR - XML import'!$A64,1)-2)))","v":0},{"$f":"IF(ISERROR(FIND(AG$3,'CFR - XML import'!$A64)),0,VALUE(MID('CFR - XML import'!$A64,SEARCH(\">\",'CFR - XML import'!$A64,1)+1,SEARCH(\"/\",'CFR - XML import'!$A64,1)-SEARCH(\">\",'CFR - XML import'!$A64,1)-2)))","v":0},{"$f":"IF(ISERROR(FIND(AH$3,'CFR - XML import'!$A64)),0,VALUE(MID('CFR - XML import'!$A64,SEARCH(\">\",'CFR - XML import'!$A64,1)+1,SEARCH(\"/\",'CFR - XML import'!$A64,1)-SEARCH(\">\",'CFR - XML import'!$A64,1)-2)))","v":0},{"$f":"IF(ISERROR(FIND(AI$3,'CFR - XML import'!$A64)),0,VALUE(MID('CFR - XML import'!$A64,SEARCH(\">\",'CFR - XML import'!$A64,1)+1,SEARCH(\"/\",'CFR - XML import'!$A64,1)-SEARCH(\">\",'CFR - XML import'!$A64,1)-2)))","v":0},{"$f":"IF(ISERROR(FIND(AJ$3,'CFR - XML import'!$A64)),0,VALUE(MID('CFR - XML import'!$A64,SEARCH(\">\",'CFR - XML import'!$A64,1)+1,SEARCH(\"/\",'CFR - XML import'!$A64,1)-SEARCH(\">\",'CFR - XML import'!$A64,1)-2)))","v":0},{"$f":"IF(ISERROR(FIND(AK$3,'CFR - XML import'!$A64)),0,VALUE(MID('CFR - XML import'!$A64,SEARCH(\">\",'CFR - XML import'!$A64,1)+1,SEARCH(\"/\",'CFR - XML import'!$A64,1)-SEARCH(\">\",'CFR - XML import'!$A64,1)-2)))","v":0},{"$f":"IF(ISERROR(FIND(AL$3,'CFR - XML import'!$A64)),0,VALUE(MID('CFR - XML import'!$A64,SEARCH(\">\",'CFR - XML import'!$A64,1)+1,SEARCH(\"/\",'CFR - XML import'!$A64,1)-SEARCH(\">\",'CFR - XML import'!$A64,1)-2)))","v":0},{"$f":"IF(ISERROR(FIND(AM$3,'CFR - XML import'!$A64)),0,VALUE(MID('CFR - XML import'!$A64,SEARCH(\">\",'CFR - XML import'!$A64,1)+1,SEARCH(\"/\",'CFR - XML import'!$A64,1)-SEARCH(\">\",'CFR - XML import'!$A64,1)-2)))","v":0},{"$f":"IF(ISERROR(FIND(AN$3,'CFR - XML import'!$A64)),0,VALUE(MID('CFR - XML import'!$A64,SEARCH(\">\",'CFR - XML import'!$A64,1)+1,SEARCH(\"/\",'CFR - XML import'!$A64,1)-SEARCH(\">\",'CFR - XML import'!$A64,1)-2)))","v":0},{"$f":"IF(ISERROR(FIND(AO$3,'CFR - XML import'!$A64)),0,VALUE(MID('CFR - XML import'!$A64,SEARCH(\">\",'CFR - XML import'!$A64,1)+1,SEARCH(\"/\",'CFR - XML import'!$A64,1)-SEARCH(\">\",'CFR - XML import'!$A64,1)-2)))","v":0},{"$f":"IF(ISERROR(FIND(AP$3,'CFR - XML import'!$A64)),0,VALUE(MID('CFR - XML import'!$A64,SEARCH(\">\",'CFR - XML import'!$A64,1)+1,SEARCH(\"/\",'CFR - XML import'!$A64,1)-SEARCH(\">\",'CFR - XML import'!$A64,1)-2)))","v":0},{"$f":"IF(ISERROR(FIND(AQ$3,'CFR - XML import'!$A64)),0,VALUE(MID('CFR - XML import'!$A64,SEARCH(\">\",'CFR - XML import'!$A64,1)+1,SEARCH(\"/\",'CFR - XML import'!$A64,1)-SEARCH(\">\",'CFR - XML import'!$A64,1)-2)))","v":0},{"$f":"IF(ISERROR(FIND(AR$3,'CFR - XML import'!$A64)),0,VALUE(MID('CFR - XML import'!$A64,SEARCH(\">\",'CFR - XML import'!$A64,1)+1,SEARCH(\"/\",'CFR - XML import'!$A64,1)-SEARCH(\">\",'CFR - XML import'!$A64,1)-2)))","v":0},{"$f":"IF(ISERROR(FIND(AS$3,'CFR - XML import'!$A64)),0,VALUE(MID('CFR - XML import'!$A64,SEARCH(\">\",'CFR - XML import'!$A64,1)+1,SEARCH(\"/\",'CFR - XML import'!$A64,1)-SEARCH(\">\",'CFR - XML import'!$A64,1)-2)))","v":0},{"$f":"IF(ISERROR(FIND(AT$3,'CFR - XML import'!$A64)),0,VALUE(MID('CFR - XML import'!$A64,SEARCH(\">\",'CFR - XML import'!$A64,1)+1,SEARCH(\"/\",'CFR - XML import'!$A64,1)-SEARCH(\">\",'CFR - XML import'!$A64,1)-2)))","v":0},{"$f":"IF(ISERROR(FIND(AU$3,'CFR - XML import'!$A64)),0,VALUE(MID('CFR - XML import'!$A64,SEARCH(\">\",'CFR - XML import'!$A64,1)+1,SEARCH(\"/\",'CFR - XML import'!$A64,1)-SEARCH(\">\",'CFR - XML import'!$A64,1)-2)))","v":0},{"$f":"IF(ISERROR(FIND(AV$3,'CFR - XML import'!$A64)),0,VALUE(MID('CFR - XML import'!$A64,SEARCH(\">\",'CFR - XML import'!$A64,1)+1,SEARCH(\"/\",'CFR - XML import'!$A64,1)-SEARCH(\">\",'CFR - XML import'!$A64,1)-2)))","v":0},{"$f":"IF(ISERROR(FIND(AW$3,'CFR - XML import'!$A64)),0,VALUE(MID('CFR - XML import'!$A64,SEARCH(\">\",'CFR - XML import'!$A64,1)+1,SEARCH(\"/\",'CFR - XML import'!$A64,1)-SEARCH(\">\",'CFR - XML import'!$A64,1)-2)))","v":0},{"$f":"IF(ISERROR(FIND(AX$3,'CFR - XML import'!$A64)),0,VALUE(MID('CFR - XML import'!$A64,SEARCH(\">\",'CFR - XML import'!$A64,1)+1,SEARCH(\"/\",'CFR - XML import'!$A64,1)-SEARCH(\">\",'CFR - XML import'!$A64,1)-2)))","v":0},{"$f":"IF(ISERROR(FIND(AY$3,'CFR - XML import'!$A64)),0,VALUE(MID('CFR - XML import'!$A64,SEARCH(\">\",'CFR - XML import'!$A64,1)+1,SEARCH(\"/\",'CFR - XML import'!$A64,1)-SEARCH(\">\",'CFR - XML import'!$A64,1)-2)))","v":0},{"$f":"IF(ISERROR(FIND(AZ$3,'CFR - XML import'!$A64)),0,VALUE(MID('CFR - XML import'!$A64,SEARCH(\">\",'CFR - XML import'!$A64,1)+1,SEARCH(\"/\",'CFR - XML import'!$A64,1)-SEARCH(\">\",'CFR - XML import'!$A64,1)-2)))","v":0},{"$f":"IF(ISERROR(FIND(BA$3,'CFR - XML import'!$A64)),0,VALUE(MID('CFR - XML import'!$A64,SEARCH(\">\",'CFR - XML import'!$A64,1)+1,SEARCH(\"/\",'CFR - XML import'!$A64,1)-SEARCH(\">\",'CFR - XML import'!$A64,1)-2)))","v":0},{"$f":"IF(ISERROR(FIND(BB$3,'CFR - XML import'!$A64)),0,VALUE(MID('CFR - XML import'!$A64,SEARCH(\">\",'CFR - XML import'!$A64,1)+1,SEARCH(\"/\",'CFR - XML import'!$A64,1)-SEARCH(\">\",'CFR - XML import'!$A64,1)-2)))","v":0},{"$f":"IF(ISERROR(FIND(BC$3,'CFR - XML import'!$A64)),0,VALUE(MID('CFR - XML import'!$A64,SEARCH(\">\",'CFR - XML import'!$A64,1)+1,SEARCH(\"/\",'CFR - XML import'!$A64,1)-SEARCH(\">\",'CFR - XML import'!$A64,1)-2)))","v":0},{"$f":"IF(ISERROR(FIND(BD$3,'CFR - XML import'!$A64)),0,VALUE(MID('CFR - XML import'!$A64,SEARCH(\">\",'CFR - XML import'!$A64,1)+1,SEARCH(\"/\",'CFR - XML import'!$A64,1)-SEARCH(\">\",'CFR - XML import'!$A64,1)-2)))","v":0},{"$f":"IF(ISERROR(FIND(BE$3,'CFR - XML import'!$A64)),0,VALUE(MID('CFR - XML import'!$A64,SEARCH(\">\",'CFR - XML import'!$A64,1)+1,SEARCH(\"/\",'CFR - XML import'!$A64,1)-SEARCH(\">\",'CFR - XML import'!$A64,1)-2)))","v":0},{"$f":"IF(ISERROR(FIND(BF$3,'CFR - XML import'!$A64)),0,VALUE(MID('CFR - XML import'!$A64,SEARCH(\">\",'CFR - XML import'!$A64,1)+1,SEARCH(\"/\",'CFR - XML import'!$A64,1)-SEARCH(\">\",'CFR - XML import'!$A64,1)-2)))","v":0},{"$f":"IF(ISERROR(FIND(BG$3,'CFR - XML import'!$A64)),0,VALUE(MID('CFR - XML import'!$A64,SEARCH(\">\",'CFR - XML import'!$A64,1)+1,SEARCH(\"/\",'CFR - XML import'!$A64,1)-SEARCH(\">\",'CFR - XML import'!$A64,1)-2)))","v":0},{"$f":"IF(ISERROR(FIND(BH$3,'CFR - XML import'!$A64)),0,VALUE(MID('CFR - XML import'!$A64,SEARCH(\">\",'CFR - XML import'!$A64,1)+1,SEARCH(\"/\",'CFR - XML import'!$A64,1)-SEARCH(\">\",'CFR - XML import'!$A64,1)-2)))","v":0},{"$f":"IF(ISERROR(FIND(BI$3,'CFR - XML import'!$A64)),0,VALUE(MID('CFR - XML import'!$A64,SEARCH(\">\",'CFR - XML import'!$A64,1)+1,SEARCH(\"/\",'CFR - XML import'!$A64,1)-SEARCH(\">\",'CFR - XML import'!$A64,1)-2)))","v":0},{"$f":"IF(ISERROR(FIND(BJ$3,'CFR - XML import'!$A64)),0,VALUE(MID('CFR - XML import'!$A64,SEARCH(\">\",'CFR - XML import'!$A64,1)+1,SEARCH(\"/\",'CFR - XML import'!$A64,1)-SEARCH(\">\",'CFR - XML import'!$A64,1)-2)))","v":0},{"$f":"IF(ISERROR(FIND(BK$3,'CFR - XML import'!$A64)),0,VALUE(MID('CFR - XML import'!$A64,SEARCH(\">\",'CFR - XML import'!$A64,1)+1,SEARCH(\"/\",'CFR - XML import'!$A64,1)-SEARCH(\">\",'CFR - XML import'!$A64,1)-2)))","v":0},{"$f":"IF(ISERROR(FIND(BL$3,'CFR - XML import'!$A64)),0,VALUE(MID('CFR - XML import'!$A64,SEARCH(\">\",'CFR - XML import'!$A64,1)+1,SEARCH(\"/\",'CFR - XML import'!$A64,1)-SEARCH(\">\",'CFR - XML import'!$A64,1)-2)))","v":0},{"$f":"IF(ISERROR(FIND(BM$3,'CFR - XML import'!$A64)),0,VALUE(MID('CFR - XML import'!$A64,SEARCH(\">\",'CFR - XML import'!$A64,1)+1,SEARCH(\"/\",'CFR - XML import'!$A64,1)-SEARCH(\">\",'CFR - XML import'!$A64,1)-2)))","v":0},{"$f":"IF(ISERROR(FIND(BN$3,'CFR - XML import'!$A64)),0,VALUE(MID('CFR - XML import'!$A64,SEARCH(\">\",'CFR - XML import'!$A64,1)+1,SEARCH(\"/\",'CFR - XML import'!$A64,1)-SEARCH(\">\",'CFR - XML import'!$A64,1)-2)))","v":0},{"$f":"IF(ISERROR(FIND(BO$3,'CFR - XML import'!$A64)),0,VALUE(MID('CFR - XML import'!$A64,SEARCH(\">\",'CFR - XML import'!$A64,1)+1,SEARCH(\"/\",'CFR - XML import'!$A64,1)-SEARCH(\">\",'CFR - XML import'!$A64,1)-2)))","v":0},{"$f":"IF(ISERROR(FIND(BP$3,'CFR - XML import'!$A64)),0,VALUE(MID('CFR - XML import'!$A64,SEARCH(\">\",'CFR - XML import'!$A64,1)+1,SEARCH(\"/\",'CFR - XML import'!$A64,1)-SEARCH(\">\",'CFR - XML import'!$A64,1)-2)))","v":0},{"$f":"IF(ISERROR(FIND(BQ$3,'CFR - XML import'!$A64)),0,VALUE(MID('CFR - XML import'!$A64,SEARCH(\">\",'CFR - XML import'!$A64,1)+1,SEARCH(\"/\",'CFR - XML import'!$A64,1)-SEARCH(\">\",'CFR - XML import'!$A64,1)-2)))","v":0},{"$f":"IF(ISERROR(FIND(BR$3,'CFR - XML import'!$A64)),0,VALUE(MID('CFR - XML import'!$A64,SEARCH(\">\",'CFR - XML import'!$A64,1)+1,SEARCH(\"/\",'CFR - XML import'!$A64,1)-SEARCH(\">\",'CFR - XML import'!$A64,1)-2)))","v":0},{"$f":"IF(ISERROR(FIND(BS$3,'CFR - XML import'!$A64)),0,VALUE(MID('CFR - XML import'!$A64,SEARCH(\">\",'CFR - XML import'!$A64,1)+1,SEARCH(\"/\",'CFR - XML import'!$A64,1)-SEARCH(\">\",'CFR - XML import'!$A64,1)-2)))","v":0},{"$f":"IF(ISERROR(FIND(BT$3,'CFR - XML import'!$A64)),0,VALUE(MID('CFR - XML import'!$A64,SEARCH(\">\",'CFR - XML import'!$A64,1)+1,SEARCH(\"/\",'CFR - XML import'!$A64,1)-SEARCH(\">\",'CFR - XML import'!$A64,1)-2)))","v":0},{"$f":"IF(ISERROR(FIND(BU$3,'CFR - XML import'!$A64)),0,VALUE(MID('CFR - XML import'!$A64,SEARCH(\">\",'CFR - XML import'!$A64,1)+1,SEARCH(\"/\",'CFR - XML import'!$A64,1)-SEARCH(\">\",'CFR - XML import'!$A64,1)-2)))","v":0},{"$f":"IF(ISERROR(FIND(BV$3,'CFR - XML import'!$A64)),0,VALUE(MID('CFR - XML import'!$A64,SEARCH(\">\",'CFR - XML import'!$A64,1)+1,SEARCH(\"/\",'CFR - XML import'!$A64,1)-SEARCH(\">\",'CFR - XML import'!$A64,1)-2)))","v":0},{"$f":"IF(ISERROR(FIND(BW$3,'CFR - XML import'!$A64)),0,VALUE(MID('CFR - XML import'!$A64,SEARCH(\">\",'CFR - XML import'!$A64,1)+1,SEARCH(\"/\",'CFR - XML import'!$A64,1)-SEARCH(\">\",'CFR - XML import'!$A64,1)-2)))","v":0},{"$f":"IF(ISERROR(FIND(BX$3,'CFR - XML import'!$A64)),0,VALUE(MID('CFR - XML import'!$A64,SEARCH(\">\",'CFR - XML import'!$A64,1)+1,SEARCH(\"/\",'CFR - XML import'!$A64,1)-SEARCH(\">\",'CFR - XML import'!$A64,1)-2)))","v":0},{"$f":"IF(ISERROR(FIND(BY$3,'CFR - XML import'!$A64)),0,VALUE(MID('CFR - XML import'!$A64,SEARCH(\">\",'CFR - XML import'!$A64,1)+1,SEARCH(\"/\",'CFR - XML import'!$A64,1)-SEARCH(\">\",'CFR - XML import'!$A64,1)-2)))","v":0},{"$f":"IF(ISERROR(FIND(BZ$3,'CFR - XML import'!$A64)),0,VALUE(MID('CFR - XML import'!$A64,SEARCH(\">\",'CFR - XML import'!$A64,1)+1,SEARCH(\"/\",'CFR - XML import'!$A64,1)-SEARCH(\">\",'CFR - XML import'!$A64,1)-2)))","v":0},null,null,null,null,null,null,{"$f":"IF(ISERROR(IF(MID('CFR - XML import'!$A64,LEN($CF$4)+1,LEN('CFR - XML import'!$A64)-(2*LEN($CF$4)+1))=\"RMMS\",1,IF(MID('CFR - XML import'!$A64,LEN(\"    <InputSystem>\")+1,LEN('CFR - XML import'!$A64)-(LEN(\"    <InputSystem>\")+LEN($CF$4)+1))=\"SIMS\",2,0))),0,IF(MID('CFR - XML import'!$A64,LEN($CF$4)+1,LEN('CFR - XML import'!$A64)-(2*LEN($CF$4)+1))=\"RMMS\",1,IF(MID('CFR - XML import'!$A64,LEN(\"    <InputSystem>\")+1,LEN('CFR - XML import'!$A64)-(LEN(\"    <InputSystem>\")+LEN($CF$4)+1))=\"SIMS\",2,0)))","v":0},{"$f":"IF(ISERROR(FIND(CH$3,'CFR - XML import'!$A64)),0,MID('CFR - XML import'!$A64,SEARCH(\">\",'CFR - XML import'!$A64,1)+1,SEARCH(\"/\",'CFR - XML import'!$A64,1)-SEARCH(\">\",'CFR - XML import'!$A64,1)-2))","v":0},{"$f":"IF(ISERROR(FIND(CI$3,'CFR - XML import'!$A64)),0,MID('CFR - XML import'!$A64,SEARCH(\">\",'CFR - XML import'!$A64,1)+1,SEARCH(\"/\",'CFR - XML import'!$A64,1)-SEARCH(\">\",'CFR - XML import'!$A64,1)-2))","v":0},{"$f":"IF(ISERROR(FIND(CJ$3,'CFR - XML import'!$A64)),0,MID('CFR - XML import'!$A64,SEARCH(\">\",'CFR - XML import'!$A64,1)+1,SEARCH(\"/\",'CFR - XML import'!$A64,1)-SEARCH(\">\",'CFR - XML import'!$A64,1)-2))","v":0},{"$f":"IF(ISERROR(FIND(CK$3,'CFR - XML import'!$A64)),0,MID('CFR - XML import'!$A64,SEARCH(\">\",'CFR - XML import'!$A64,1)+1,SEARCH(\"/\",'CFR - XML import'!$A64,1)-SEARCH(\">\",'CFR - XML import'!$A64,1)-2))","v":0},{"$f":"IF(ISERROR(FIND(CL$3,'CFR - XML import'!$A64)),0,MID('CFR - XML import'!$A64,SEARCH(\">\",'CFR - XML import'!$A64,1)+1,SEARCH(\"/\",'CFR - XML import'!$A64,1)-SEARCH(\">\",'CFR - XML import'!$A64,1)-2))","v":0}]
[{"$f":"IF(AND('CFR - XML import'!A65<>\"\",LEFT('CFR - XML import'!A65,1)<>\"<\",LEFT('CFR - XML import'!A65,3)<>\"  <\",LEFT('CFR - XML import'!A65,5)<>\"    <\",LEFT('CFR - XML import'!A65,7)<>\"      <\",LEFT('CFR - XML import'!A65,9)<>\"        <\",$B$1=\"SIMS\"),'CFR - XML import'!A65,IF(AND(LEFT('CFR - XML import'!A65,9)=\"<Details>\",$B$1=\"RM\"),'CFR - XML import'!A65,\"\"))","v":""},{"$f":"IF(ISERROR(FIND(B$3,'CFR - XML import'!$A65)),0,VALUE(MID('CFR - XML import'!$A65,SEARCH(\">\",'CFR - XML import'!$A65,1)+1,SEARCH(\"/\",'CFR - XML import'!$A65,1)-SEARCH(\">\",'CFR - XML import'!$A65,1)-2)))","v":0},null,{"$f":"IF(ISERROR(FIND(D$3,'CFR - XML import'!$A65)),0,MID('CFR - XML import'!$A65,SEARCH(\">\",'CFR - XML import'!$A65,1)+1,SEARCH(\"/\",'CFR - XML import'!$A65,1)-SEARCH(\">\",'CFR - XML import'!$A65,1)-2))","v":0},{"$f":"IF(ISERROR(FIND(E$3,'CFR - XML import'!$A65)),0,MID('CFR - XML import'!$A65,SEARCH(\">\",'CFR - XML import'!$A65,1)+1,SEARCH(\"/\",'CFR - XML import'!$A65,1)-SEARCH(\">\",'CFR - XML import'!$A65,1)-2))","v":0},{"$f":"IF($B$1=\"SIMS\",IF(ISERROR(FIND(F$3,'CFR - XML import'!$A65)),0,VALUE(MID('CFR - XML import'!$A65,15,10))),IF(ISERROR(FIND(F$3,'CFR - XML import'!$A65)),0,VALUE(MID('CFR - XML import'!$A65,11,10))))","v":"00:00:00"},{"$f":"IF(ISERROR(FIND(G$3,'CFR - XML import'!$A65)),0,VALUE(MID('CFR - XML import'!$A65,SEARCH(\">\",'CFR - XML import'!$A65,1)+1,SEARCH(\"/\",'CFR - XML import'!$A65,1)-SEARCH(\">\",'CFR - XML import'!$A65,1)-2)))","v":0},{"$f":"IF(ISERROR(FIND(H$3,'CFR - XML import'!$A65)),0,VALUE(MID('CFR - XML import'!$A65,SEARCH(\">\",'CFR - XML import'!$A65,1)+1,SEARCH(\"/\",'CFR - XML import'!$A65,1)-SEARCH(\">\",'CFR - XML import'!$A65,1)-2)))","v":0},{"$f":"IF(ISERROR(FIND(I$3,'CFR - XML import'!$A65)),0,VALUE(MID('CFR - XML import'!$A65,SEARCH(\">\",'CFR - XML import'!$A65,1)+1,SEARCH(\"/\",'CFR - XML import'!$A65,1)-SEARCH(\">\",'CFR - XML import'!$A65,1)-2)))","v":0},{"$f":"IF(ISERROR(FIND(J$3,'CFR - XML import'!$A65)),0,VALUE(MID('CFR - XML import'!$A65,SEARCH(\">\",'CFR - XML import'!$A65,1)+1,SEARCH(\"/\",'CFR - XML import'!$A65,1)-SEARCH(\">\",'CFR - XML import'!$A65,1)-2)))","v":0},{"$f":"IF(ISERROR(FIND(K$3,'CFR - XML import'!$A65)),0,VALUE(MID('CFR - XML import'!$A65,SEARCH(\">\",'CFR - XML import'!$A65,1)+1,SEARCH(\"/\",'CFR - XML import'!$A65,1)-SEARCH(\">\",'CFR - XML import'!$A65,1)-2)))","v":0},{"$f":"IF(ISERROR(FIND(L$3,'CFR - XML import'!$A65)),0,VALUE(MID('CFR - XML import'!$A65,SEARCH(\">\",'CFR - XML import'!$A65,1)+1,SEARCH(\"/\",'CFR - XML import'!$A65,1)-SEARCH(\">\",'CFR - XML import'!$A65,1)-2)))","v":0},{"$f":"IF(ISERROR(FIND(M$3,'CFR - XML import'!$A65)),0,VALUE(MID('CFR - XML import'!$A65,SEARCH(\">\",'CFR - XML import'!$A65,1)+1,SEARCH(\"/\",'CFR - XML import'!$A65,1)-SEARCH(\">\",'CFR - XML import'!$A65,1)-2)))","v":0},{"$f":"IF(ISERROR(FIND(N$3,'CFR - XML import'!$A65)),0,VALUE(MID('CFR - XML import'!$A65,SEARCH(\">\",'CFR - XML import'!$A65,1)+1,SEARCH(\"/\",'CFR - XML import'!$A65,1)-SEARCH(\">\",'CFR - XML import'!$A65,1)-2)))","v":0},{"$f":"IF(ISERROR(FIND(O$3,'CFR - XML import'!$A65)),0,VALUE(MID('CFR - XML import'!$A65,SEARCH(\">\",'CFR - XML import'!$A65,1)+1,SEARCH(\"/\",'CFR - XML import'!$A65,1)-SEARCH(\">\",'CFR - XML import'!$A65,1)-2)))","v":0},{"$f":"IF(ISERROR(FIND(P$3,'CFR - XML import'!$A65)),0,VALUE(MID('CFR - XML import'!$A65,SEARCH(\">\",'CFR - XML import'!$A65,1)+1,SEARCH(\"/\",'CFR - XML import'!$A65,1)-SEARCH(\">\",'CFR - XML import'!$A65,1)-2)))","v":0},{"$f":"IF(ISERROR(FIND(Q$3,'CFR - XML import'!$A65)),0,VALUE(MID('CFR - XML import'!$A65,SEARCH(\">\",'CFR - XML import'!$A65,1)+1,SEARCH(\"/\",'CFR - XML import'!$A65,1)-SEARCH(\">\",'CFR - XML import'!$A65,1)-2)))","v":0},{"$f":"IF(ISERROR(FIND(R$3,'CFR - XML import'!$A65)),0,VALUE(MID('CFR - XML import'!$A65,SEARCH(\">\",'CFR - XML import'!$A65,1)+1,SEARCH(\"/\",'CFR - XML import'!$A65,1)-SEARCH(\">\",'CFR - XML import'!$A65,1)-2)))","v":0},{"$f":"IF(ISERROR(FIND(S$3,'CFR - XML import'!$A65)),0,VALUE(MID('CFR - XML import'!$A65,SEARCH(\">\",'CFR - XML import'!$A65,1)+1,SEARCH(\"/\",'CFR - XML import'!$A65,1)-SEARCH(\">\",'CFR - XML import'!$A65,1)-2)))","v":0},{"$f":"IF(ISERROR(FIND(T$3,'CFR - XML import'!$A65)),0,VALUE(MID('CFR - XML import'!$A65,SEARCH(\">\",'CFR - XML import'!$A65,1)+1,SEARCH(\"/\",'CFR - XML import'!$A65,1)-SEARCH(\">\",'CFR - XML import'!$A65,1)-2)))","v":0},{"$f":"IF(ISERROR(FIND(U$3,'CFR - XML import'!$A65)),0,VALUE(MID('CFR - XML import'!$A65,SEARCH(\">\",'CFR - XML import'!$A65,1)+1,SEARCH(\"/\",'CFR - XML import'!$A65,1)-SEARCH(\">\",'CFR - XML import'!$A65,1)-2)))","v":0},{"$f":"IF(ISERROR(FIND(V$3,'CFR - XML import'!$A65)),0,VALUE(MID('CFR - XML import'!$A65,SEARCH(\">\",'CFR - XML import'!$A65,1)+1,SEARCH(\"/\",'CFR - XML import'!$A65,1)-SEARCH(\">\",'CFR - XML import'!$A65,1)-2)))","v":0},{"$f":"IF(ISERROR(FIND(W$3,'CFR - XML import'!$A65)),0,VALUE(MID('CFR - XML import'!$A65,SEARCH(\">\",'CFR - XML import'!$A65,1)+1,SEARCH(\"/\",'CFR - XML import'!$A65,1)-SEARCH(\">\",'CFR - XML import'!$A65,1)-2)))","v":0},null,{"$f":"IF(ISERROR(FIND(Y$3,'CFR - XML import'!$A65)),0,VALUE(MID('CFR - XML import'!$A65,SEARCH(\">\",'CFR - XML import'!$A65,1)+1,SEARCH(\"/\",'CFR - XML import'!$A65,1)-SEARCH(\">\",'CFR - XML import'!$A65,1)-2)))","v":0},{"$f":"IF(ISERROR(FIND(Z$3,'CFR - XML import'!$A65)),0,VALUE(MID('CFR - XML import'!$A65,SEARCH(\">\",'CFR - XML import'!$A65,1)+1,SEARCH(\"/\",'CFR - XML import'!$A65,1)-SEARCH(\">\",'CFR - XML import'!$A65,1)-2)))","v":0},{"$f":"IF(ISERROR(FIND(AA$3,'CFR - XML import'!$A65)),0,VALUE(MID('CFR - XML import'!$A65,SEARCH(\">\",'CFR - XML import'!$A65,1)+1,SEARCH(\"/\",'CFR - XML import'!$A65,1)-SEARCH(\">\",'CFR - XML import'!$A65,1)-2)))","v":0},{"$f":"IF(ISERROR(FIND(AB$3,'CFR - XML import'!$A65)),0,VALUE(MID('CFR - XML import'!$A65,SEARCH(\">\",'CFR - XML import'!$A65,1)+1,SEARCH(\"/\",'CFR - XML import'!$A65,1)-SEARCH(\">\",'CFR - XML import'!$A65,1)-2)))","v":0},{"$f":"IF(ISERROR(FIND(AC$3,'CFR - XML import'!$A65)),0,VALUE(MID('CFR - XML import'!$A65,SEARCH(\">\",'CFR - XML import'!$A65,1)+1,SEARCH(\"/\",'CFR - XML import'!$A65,1)-SEARCH(\">\",'CFR - XML import'!$A65,1)-2)))","v":0},{"$f":"IF(ISERROR(FIND(AD$3,'CFR - XML import'!$A65)),0,VALUE(MID('CFR - XML import'!$A65,SEARCH(\">\",'CFR - XML import'!$A65,1)+1,SEARCH(\"/\",'CFR - XML import'!$A65,1)-SEARCH(\">\",'CFR - XML import'!$A65,1)-2)))","v":0},{"$f":"IF(ISERROR(FIND(AE$3,'CFR - XML import'!$A65)),0,VALUE(MID('CFR - XML import'!$A65,SEARCH(\">\",'CFR - XML import'!$A65,1)+1,SEARCH(\"/\",'CFR - XML import'!$A65,1)-SEARCH(\">\",'CFR - XML import'!$A65,1)-2)))","v":0},{"$f":"IF(ISERROR(FIND(AF$3,'CFR - XML import'!$A65)),0,VALUE(MID('CFR - XML import'!$A65,SEARCH(\">\",'CFR - XML import'!$A65,1)+1,SEARCH(\"/\",'CFR - XML import'!$A65,1)-SEARCH(\">\",'CFR - XML import'!$A65,1)-2)))","v":0},{"$f":"IF(ISERROR(FIND(AG$3,'CFR - XML import'!$A65)),0,VALUE(MID('CFR - XML import'!$A65,SEARCH(\">\",'CFR - XML import'!$A65,1)+1,SEARCH(\"/\",'CFR - XML import'!$A65,1)-SEARCH(\">\",'CFR - XML import'!$A65,1)-2)))","v":0},{"$f":"IF(ISERROR(FIND(AH$3,'CFR - XML import'!$A65)),0,VALUE(MID('CFR - XML import'!$A65,SEARCH(\">\",'CFR - XML import'!$A65,1)+1,SEARCH(\"/\",'CFR - XML import'!$A65,1)-SEARCH(\">\",'CFR - XML import'!$A65,1)-2)))","v":0},{"$f":"IF(ISERROR(FIND(AI$3,'CFR - XML import'!$A65)),0,VALUE(MID('CFR - XML import'!$A65,SEARCH(\">\",'CFR - XML import'!$A65,1)+1,SEARCH(\"/\",'CFR - XML import'!$A65,1)-SEARCH(\">\",'CFR - XML import'!$A65,1)-2)))","v":0},{"$f":"IF(ISERROR(FIND(AJ$3,'CFR - XML import'!$A65)),0,VALUE(MID('CFR - XML import'!$A65,SEARCH(\">\",'CFR - XML import'!$A65,1)+1,SEARCH(\"/\",'CFR - XML import'!$A65,1)-SEARCH(\">\",'CFR - XML import'!$A65,1)-2)))","v":0},{"$f":"IF(ISERROR(FIND(AK$3,'CFR - XML import'!$A65)),0,VALUE(MID('CFR - XML import'!$A65,SEARCH(\">\",'CFR - XML import'!$A65,1)+1,SEARCH(\"/\",'CFR - XML import'!$A65,1)-SEARCH(\">\",'CFR - XML import'!$A65,1)-2)))","v":0},{"$f":"IF(ISERROR(FIND(AL$3,'CFR - XML import'!$A65)),0,VALUE(MID('CFR - XML import'!$A65,SEARCH(\">\",'CFR - XML import'!$A65,1)+1,SEARCH(\"/\",'CFR - XML import'!$A65,1)-SEARCH(\">\",'CFR - XML import'!$A65,1)-2)))","v":0},{"$f":"IF(ISERROR(FIND(AM$3,'CFR - XML import'!$A65)),0,VALUE(MID('CFR - XML import'!$A65,SEARCH(\">\",'CFR - XML import'!$A65,1)+1,SEARCH(\"/\",'CFR - XML import'!$A65,1)-SEARCH(\">\",'CFR - XML import'!$A65,1)-2)))","v":0},{"$f":"IF(ISERROR(FIND(AN$3,'CFR - XML import'!$A65)),0,VALUE(MID('CFR - XML import'!$A65,SEARCH(\">\",'CFR - XML import'!$A65,1)+1,SEARCH(\"/\",'CFR - XML import'!$A65,1)-SEARCH(\">\",'CFR - XML import'!$A65,1)-2)))","v":0},{"$f":"IF(ISERROR(FIND(AO$3,'CFR - XML import'!$A65)),0,VALUE(MID('CFR - XML import'!$A65,SEARCH(\">\",'CFR - XML import'!$A65,1)+1,SEARCH(\"/\",'CFR - XML import'!$A65,1)-SEARCH(\">\",'CFR - XML import'!$A65,1)-2)))","v":0},{"$f":"IF(ISERROR(FIND(AP$3,'CFR - XML import'!$A65)),0,VALUE(MID('CFR - XML import'!$A65,SEARCH(\">\",'CFR - XML import'!$A65,1)+1,SEARCH(\"/\",'CFR - XML import'!$A65,1)-SEARCH(\">\",'CFR - XML import'!$A65,1)-2)))","v":0},{"$f":"IF(ISERROR(FIND(AQ$3,'CFR - XML import'!$A65)),0,VALUE(MID('CFR - XML import'!$A65,SEARCH(\">\",'CFR - XML import'!$A65,1)+1,SEARCH(\"/\",'CFR - XML import'!$A65,1)-SEARCH(\">\",'CFR - XML import'!$A65,1)-2)))","v":0},{"$f":"IF(ISERROR(FIND(AR$3,'CFR - XML import'!$A65)),0,VALUE(MID('CFR - XML import'!$A65,SEARCH(\">\",'CFR - XML import'!$A65,1)+1,SEARCH(\"/\",'CFR - XML import'!$A65,1)-SEARCH(\">\",'CFR - XML import'!$A65,1)-2)))","v":0},{"$f":"IF(ISERROR(FIND(AS$3,'CFR - XML import'!$A65)),0,VALUE(MID('CFR - XML import'!$A65,SEARCH(\">\",'CFR - XML import'!$A65,1)+1,SEARCH(\"/\",'CFR - XML import'!$A65,1)-SEARCH(\">\",'CFR - XML import'!$A65,1)-2)))","v":0},{"$f":"IF(ISERROR(FIND(AT$3,'CFR - XML import'!$A65)),0,VALUE(MID('CFR - XML import'!$A65,SEARCH(\">\",'CFR - XML import'!$A65,1)+1,SEARCH(\"/\",'CFR - XML import'!$A65,1)-SEARCH(\">\",'CFR - XML import'!$A65,1)-2)))","v":0},{"$f":"IF(ISERROR(FIND(AU$3,'CFR - XML import'!$A65)),0,VALUE(MID('CFR - XML import'!$A65,SEARCH(\">\",'CFR - XML import'!$A65,1)+1,SEARCH(\"/\",'CFR - XML import'!$A65,1)-SEARCH(\">\",'CFR - XML import'!$A65,1)-2)))","v":0},{"$f":"IF(ISERROR(FIND(AV$3,'CFR - XML import'!$A65)),0,VALUE(MID('CFR - XML import'!$A65,SEARCH(\">\",'CFR - XML import'!$A65,1)+1,SEARCH(\"/\",'CFR - XML import'!$A65,1)-SEARCH(\">\",'CFR - XML import'!$A65,1)-2)))","v":0},{"$f":"IF(ISERROR(FIND(AW$3,'CFR - XML import'!$A65)),0,VALUE(MID('CFR - XML import'!$A65,SEARCH(\">\",'CFR - XML import'!$A65,1)+1,SEARCH(\"/\",'CFR - XML import'!$A65,1)-SEARCH(\">\",'CFR - XML import'!$A65,1)-2)))","v":0},{"$f":"IF(ISERROR(FIND(AX$3,'CFR - XML import'!$A65)),0,VALUE(MID('CFR - XML import'!$A65,SEARCH(\">\",'CFR - XML import'!$A65,1)+1,SEARCH(\"/\",'CFR - XML import'!$A65,1)-SEARCH(\">\",'CFR - XML import'!$A65,1)-2)))","v":0},{"$f":"IF(ISERROR(FIND(AY$3,'CFR - XML import'!$A65)),0,VALUE(MID('CFR - XML import'!$A65,SEARCH(\">\",'CFR - XML import'!$A65,1)+1,SEARCH(\"/\",'CFR - XML import'!$A65,1)-SEARCH(\">\",'CFR - XML import'!$A65,1)-2)))","v":0},{"$f":"IF(ISERROR(FIND(AZ$3,'CFR - XML import'!$A65)),0,VALUE(MID('CFR - XML import'!$A65,SEARCH(\">\",'CFR - XML import'!$A65,1)+1,SEARCH(\"/\",'CFR - XML import'!$A65,1)-SEARCH(\">\",'CFR - XML import'!$A65,1)-2)))","v":0},{"$f":"IF(ISERROR(FIND(BA$3,'CFR - XML import'!$A65)),0,VALUE(MID('CFR - XML import'!$A65,SEARCH(\">\",'CFR - XML import'!$A65,1)+1,SEARCH(\"/\",'CFR - XML import'!$A65,1)-SEARCH(\">\",'CFR - XML import'!$A65,1)-2)))","v":0},{"$f":"IF(ISERROR(FIND(BB$3,'CFR - XML import'!$A65)),0,VALUE(MID('CFR - XML import'!$A65,SEARCH(\">\",'CFR - XML import'!$A65,1)+1,SEARCH(\"/\",'CFR - XML import'!$A65,1)-SEARCH(\">\",'CFR - XML import'!$A65,1)-2)))","v":0},{"$f":"IF(ISERROR(FIND(BC$3,'CFR - XML import'!$A65)),0,VALUE(MID('CFR - XML import'!$A65,SEARCH(\">\",'CFR - XML import'!$A65,1)+1,SEARCH(\"/\",'CFR - XML import'!$A65,1)-SEARCH(\">\",'CFR - XML import'!$A65,1)-2)))","v":0},{"$f":"IF(ISERROR(FIND(BD$3,'CFR - XML import'!$A65)),0,VALUE(MID('CFR - XML import'!$A65,SEARCH(\">\",'CFR - XML import'!$A65,1)+1,SEARCH(\"/\",'CFR - XML import'!$A65,1)-SEARCH(\">\",'CFR - XML import'!$A65,1)-2)))","v":0},{"$f":"IF(ISERROR(FIND(BE$3,'CFR - XML import'!$A65)),0,VALUE(MID('CFR - XML import'!$A65,SEARCH(\">\",'CFR - XML import'!$A65,1)+1,SEARCH(\"/\",'CFR - XML import'!$A65,1)-SEARCH(\">\",'CFR - XML import'!$A65,1)-2)))","v":0},{"$f":"IF(ISERROR(FIND(BF$3,'CFR - XML import'!$A65)),0,VALUE(MID('CFR - XML import'!$A65,SEARCH(\">\",'CFR - XML import'!$A65,1)+1,SEARCH(\"/\",'CFR - XML import'!$A65,1)-SEARCH(\">\",'CFR - XML import'!$A65,1)-2)))","v":0},{"$f":"IF(ISERROR(FIND(BG$3,'CFR - XML import'!$A65)),0,VALUE(MID('CFR - XML import'!$A65,SEARCH(\">\",'CFR - XML import'!$A65,1)+1,SEARCH(\"/\",'CFR - XML import'!$A65,1)-SEARCH(\">\",'CFR - XML import'!$A65,1)-2)))","v":0},{"$f":"IF(ISERROR(FIND(BH$3,'CFR - XML import'!$A65)),0,VALUE(MID('CFR - XML import'!$A65,SEARCH(\">\",'CFR - XML import'!$A65,1)+1,SEARCH(\"/\",'CFR - XML import'!$A65,1)-SEARCH(\">\",'CFR - XML import'!$A65,1)-2)))","v":0},{"$f":"IF(ISERROR(FIND(BI$3,'CFR - XML import'!$A65)),0,VALUE(MID('CFR - XML import'!$A65,SEARCH(\">\",'CFR - XML import'!$A65,1)+1,SEARCH(\"/\",'CFR - XML import'!$A65,1)-SEARCH(\">\",'CFR - XML import'!$A65,1)-2)))","v":0},{"$f":"IF(ISERROR(FIND(BJ$3,'CFR - XML import'!$A65)),0,VALUE(MID('CFR - XML import'!$A65,SEARCH(\">\",'CFR - XML import'!$A65,1)+1,SEARCH(\"/\",'CFR - XML import'!$A65,1)-SEARCH(\">\",'CFR - XML import'!$A65,1)-2)))","v":0},{"$f":"IF(ISERROR(FIND(BK$3,'CFR - XML import'!$A65)),0,VALUE(MID('CFR - XML import'!$A65,SEARCH(\">\",'CFR - XML import'!$A65,1)+1,SEARCH(\"/\",'CFR - XML import'!$A65,1)-SEARCH(\">\",'CFR - XML import'!$A65,1)-2)))","v":0},{"$f":"IF(ISERROR(FIND(BL$3,'CFR - XML import'!$A65)),0,VALUE(MID('CFR - XML import'!$A65,SEARCH(\">\",'CFR - XML import'!$A65,1)+1,SEARCH(\"/\",'CFR - XML import'!$A65,1)-SEARCH(\">\",'CFR - XML import'!$A65,1)-2)))","v":0},{"$f":"IF(ISERROR(FIND(BM$3,'CFR - XML import'!$A65)),0,VALUE(MID('CFR - XML import'!$A65,SEARCH(\">\",'CFR - XML import'!$A65,1)+1,SEARCH(\"/\",'CFR - XML import'!$A65,1)-SEARCH(\">\",'CFR - XML import'!$A65,1)-2)))","v":0},{"$f":"IF(ISERROR(FIND(BN$3,'CFR - XML import'!$A65)),0,VALUE(MID('CFR - XML import'!$A65,SEARCH(\">\",'CFR - XML import'!$A65,1)+1,SEARCH(\"/\",'CFR - XML import'!$A65,1)-SEARCH(\">\",'CFR - XML import'!$A65,1)-2)))","v":0},{"$f":"IF(ISERROR(FIND(BO$3,'CFR - XML import'!$A65)),0,VALUE(MID('CFR - XML import'!$A65,SEARCH(\">\",'CFR - XML import'!$A65,1)+1,SEARCH(\"/\",'CFR - XML import'!$A65,1)-SEARCH(\">\",'CFR - XML import'!$A65,1)-2)))","v":0},{"$f":"IF(ISERROR(FIND(BP$3,'CFR - XML import'!$A65)),0,VALUE(MID('CFR - XML import'!$A65,SEARCH(\">\",'CFR - XML import'!$A65,1)+1,SEARCH(\"/\",'CFR - XML import'!$A65,1)-SEARCH(\">\",'CFR - XML import'!$A65,1)-2)))","v":0},{"$f":"IF(ISERROR(FIND(BQ$3,'CFR - XML import'!$A65)),0,VALUE(MID('CFR - XML import'!$A65,SEARCH(\">\",'CFR - XML import'!$A65,1)+1,SEARCH(\"/\",'CFR - XML import'!$A65,1)-SEARCH(\">\",'CFR - XML import'!$A65,1)-2)))","v":0},{"$f":"IF(ISERROR(FIND(BR$3,'CFR - XML import'!$A65)),0,VALUE(MID('CFR - XML import'!$A65,SEARCH(\">\",'CFR - XML import'!$A65,1)+1,SEARCH(\"/\",'CFR - XML import'!$A65,1)-SEARCH(\">\",'CFR - XML import'!$A65,1)-2)))","v":0},{"$f":"IF(ISERROR(FIND(BS$3,'CFR - XML import'!$A65)),0,VALUE(MID('CFR - XML import'!$A65,SEARCH(\">\",'CFR - XML import'!$A65,1)+1,SEARCH(\"/\",'CFR - XML import'!$A65,1)-SEARCH(\">\",'CFR - XML import'!$A65,1)-2)))","v":0},{"$f":"IF(ISERROR(FIND(BT$3,'CFR - XML import'!$A65)),0,VALUE(MID('CFR - XML import'!$A65,SEARCH(\">\",'CFR - XML import'!$A65,1)+1,SEARCH(\"/\",'CFR - XML import'!$A65,1)-SEARCH(\">\",'CFR - XML import'!$A65,1)-2)))","v":0},{"$f":"IF(ISERROR(FIND(BU$3,'CFR - XML import'!$A65)),0,VALUE(MID('CFR - XML import'!$A65,SEARCH(\">\",'CFR - XML import'!$A65,1)+1,SEARCH(\"/\",'CFR - XML import'!$A65,1)-SEARCH(\">\",'CFR - XML import'!$A65,1)-2)))","v":0},{"$f":"IF(ISERROR(FIND(BV$3,'CFR - XML import'!$A65)),0,VALUE(MID('CFR - XML import'!$A65,SEARCH(\">\",'CFR - XML import'!$A65,1)+1,SEARCH(\"/\",'CFR - XML import'!$A65,1)-SEARCH(\">\",'CFR - XML import'!$A65,1)-2)))","v":0},{"$f":"IF(ISERROR(FIND(BW$3,'CFR - XML import'!$A65)),0,VALUE(MID('CFR - XML import'!$A65,SEARCH(\">\",'CFR - XML import'!$A65,1)+1,SEARCH(\"/\",'CFR - XML import'!$A65,1)-SEARCH(\">\",'CFR - XML import'!$A65,1)-2)))","v":0},{"$f":"IF(ISERROR(FIND(BX$3,'CFR - XML import'!$A65)),0,VALUE(MID('CFR - XML import'!$A65,SEARCH(\">\",'CFR - XML import'!$A65,1)+1,SEARCH(\"/\",'CFR - XML import'!$A65,1)-SEARCH(\">\",'CFR - XML import'!$A65,1)-2)))","v":0},{"$f":"IF(ISERROR(FIND(BY$3,'CFR - XML import'!$A65)),0,VALUE(MID('CFR - XML import'!$A65,SEARCH(\">\",'CFR - XML import'!$A65,1)+1,SEARCH(\"/\",'CFR - XML import'!$A65,1)-SEARCH(\">\",'CFR - XML import'!$A65,1)-2)))","v":0},{"$f":"IF(ISERROR(FIND(BZ$3,'CFR - XML import'!$A65)),0,VALUE(MID('CFR - XML import'!$A65,SEARCH(\">\",'CFR - XML import'!$A65,1)+1,SEARCH(\"/\",'CFR - XML import'!$A65,1)-SEARCH(\">\",'CFR - XML import'!$A65,1)-2)))","v":0},null,null,null,null,null,null,{"$f":"IF(ISERROR(IF(MID('CFR - XML import'!$A65,LEN($CF$4)+1,LEN('CFR - XML import'!$A65)-(2*LEN($CF$4)+1))=\"RMMS\",1,IF(MID('CFR - XML import'!$A65,LEN(\"    <InputSystem>\")+1,LEN('CFR - XML import'!$A65)-(LEN(\"    <InputSystem>\")+LEN($CF$4)+1))=\"SIMS\",2,0))),0,IF(MID('CFR - XML import'!$A65,LEN($CF$4)+1,LEN('CFR - XML import'!$A65)-(2*LEN($CF$4)+1))=\"RMMS\",1,IF(MID('CFR - XML import'!$A65,LEN(\"    <InputSystem>\")+1,LEN('CFR - XML import'!$A65)-(LEN(\"    <InputSystem>\")+LEN($CF$4)+1))=\"SIMS\",2,0)))","v":0},{"$f":"IF(ISERROR(FIND(CH$3,'CFR - XML import'!$A65)),0,MID('CFR - XML import'!$A65,SEARCH(\">\",'CFR - XML import'!$A65,1)+1,SEARCH(\"/\",'CFR - XML import'!$A65,1)-SEARCH(\">\",'CFR - XML import'!$A65,1)-2))","v":0},{"$f":"IF(ISERROR(FIND(CI$3,'CFR - XML import'!$A65)),0,MID('CFR - XML import'!$A65,SEARCH(\">\",'CFR - XML import'!$A65,1)+1,SEARCH(\"/\",'CFR - XML import'!$A65,1)-SEARCH(\">\",'CFR - XML import'!$A65,1)-2))","v":0},{"$f":"IF(ISERROR(FIND(CJ$3,'CFR - XML import'!$A65)),0,MID('CFR - XML import'!$A65,SEARCH(\">\",'CFR - XML import'!$A65,1)+1,SEARCH(\"/\",'CFR - XML import'!$A65,1)-SEARCH(\">\",'CFR - XML import'!$A65,1)-2))","v":0},{"$f":"IF(ISERROR(FIND(CK$3,'CFR - XML import'!$A65)),0,MID('CFR - XML import'!$A65,SEARCH(\">\",'CFR - XML import'!$A65,1)+1,SEARCH(\"/\",'CFR - XML import'!$A65,1)-SEARCH(\">\",'CFR - XML import'!$A65,1)-2))","v":0},{"$f":"IF(ISERROR(FIND(CL$3,'CFR - XML import'!$A65)),0,MID('CFR - XML import'!$A65,SEARCH(\">\",'CFR - XML import'!$A65,1)+1,SEARCH(\"/\",'CFR - XML import'!$A65,1)-SEARCH(\">\",'CFR - XML import'!$A65,1)-2))","v":0}]
[{"$f":"IF(AND('CFR - XML import'!A66<>\"\",LEFT('CFR - XML import'!A66,1)<>\"<\",LEFT('CFR - XML import'!A66,3)<>\"  <\",LEFT('CFR - XML import'!A66,5)<>\"    <\",LEFT('CFR - XML import'!A66,7)<>\"      <\",LEFT('CFR - XML import'!A66,9)<>\"        <\",$B$1=\"SIMS\"),'CFR - XML import'!A66,IF(AND(LEFT('CFR - XML import'!A66,9)=\"<Details>\",$B$1=\"RM\"),'CFR - XML import'!A66,\"\"))","v":""},{"$f":"IF(ISERROR(FIND(B$3,'CFR - XML import'!$A66)),0,VALUE(MID('CFR - XML import'!$A66,SEARCH(\">\",'CFR - XML import'!$A66,1)+1,SEARCH(\"/\",'CFR - XML import'!$A66,1)-SEARCH(\">\",'CFR - XML import'!$A66,1)-2)))","v":0},null,{"$f":"IF(ISERROR(FIND(D$3,'CFR - XML import'!$A66)),0,MID('CFR - XML import'!$A66,SEARCH(\">\",'CFR - XML import'!$A66,1)+1,SEARCH(\"/\",'CFR - XML import'!$A66,1)-SEARCH(\">\",'CFR - XML import'!$A66,1)-2))","v":0},{"$f":"IF(ISERROR(FIND(E$3,'CFR - XML import'!$A66)),0,MID('CFR - XML import'!$A66,SEARCH(\">\",'CFR - XML import'!$A66,1)+1,SEARCH(\"/\",'CFR - XML import'!$A66,1)-SEARCH(\">\",'CFR - XML import'!$A66,1)-2))","v":0},{"$f":"IF($B$1=\"SIMS\",IF(ISERROR(FIND(F$3,'CFR - XML import'!$A66)),0,VALUE(MID('CFR - XML import'!$A66,15,10))),IF(ISERROR(FIND(F$3,'CFR - XML import'!$A66)),0,VALUE(MID('CFR - XML import'!$A66,11,10))))","v":"00:00:00"},{"$f":"IF(ISERROR(FIND(G$3,'CFR - XML import'!$A66)),0,VALUE(MID('CFR - XML import'!$A66,SEARCH(\">\",'CFR - XML import'!$A66,1)+1,SEARCH(\"/\",'CFR - XML import'!$A66,1)-SEARCH(\">\",'CFR - XML import'!$A66,1)-2)))","v":0},{"$f":"IF(ISERROR(FIND(H$3,'CFR - XML import'!$A66)),0,VALUE(MID('CFR - XML import'!$A66,SEARCH(\">\",'CFR - XML import'!$A66,1)+1,SEARCH(\"/\",'CFR - XML import'!$A66,1)-SEARCH(\">\",'CFR - XML import'!$A66,1)-2)))","v":0},{"$f":"IF(ISERROR(FIND(I$3,'CFR - XML import'!$A66)),0,VALUE(MID('CFR - XML import'!$A66,SEARCH(\">\",'CFR - XML import'!$A66,1)+1,SEARCH(\"/\",'CFR - XML import'!$A66,1)-SEARCH(\">\",'CFR - XML import'!$A66,1)-2)))","v":0},{"$f":"IF(ISERROR(FIND(J$3,'CFR - XML import'!$A66)),0,VALUE(MID('CFR - XML import'!$A66,SEARCH(\">\",'CFR - XML import'!$A66,1)+1,SEARCH(\"/\",'CFR - XML import'!$A66,1)-SEARCH(\">\",'CFR - XML import'!$A66,1)-2)))","v":0},{"$f":"IF(ISERROR(FIND(K$3,'CFR - XML import'!$A66)),0,VALUE(MID('CFR - XML import'!$A66,SEARCH(\">\",'CFR - XML import'!$A66,1)+1,SEARCH(\"/\",'CFR - XML import'!$A66,1)-SEARCH(\">\",'CFR - XML import'!$A66,1)-2)))","v":0},{"$f":"IF(ISERROR(FIND(L$3,'CFR - XML import'!$A66)),0,VALUE(MID('CFR - XML import'!$A66,SEARCH(\">\",'CFR - XML import'!$A66,1)+1,SEARCH(\"/\",'CFR - XML import'!$A66,1)-SEARCH(\">\",'CFR - XML import'!$A66,1)-2)))","v":0},{"$f":"IF(ISERROR(FIND(M$3,'CFR - XML import'!$A66)),0,VALUE(MID('CFR - XML import'!$A66,SEARCH(\">\",'CFR - XML import'!$A66,1)+1,SEARCH(\"/\",'CFR - XML import'!$A66,1)-SEARCH(\">\",'CFR - XML import'!$A66,1)-2)))","v":0},{"$f":"IF(ISERROR(FIND(N$3,'CFR - XML import'!$A66)),0,VALUE(MID('CFR - XML import'!$A66,SEARCH(\">\",'CFR - XML import'!$A66,1)+1,SEARCH(\"/\",'CFR - XML import'!$A66,1)-SEARCH(\">\",'CFR - XML import'!$A66,1)-2)))","v":0},{"$f":"IF(ISERROR(FIND(O$3,'CFR - XML import'!$A66)),0,VALUE(MID('CFR - XML import'!$A66,SEARCH(\">\",'CFR - XML import'!$A66,1)+1,SEARCH(\"/\",'CFR - XML import'!$A66,1)-SEARCH(\">\",'CFR - XML import'!$A66,1)-2)))","v":0},{"$f":"IF(ISERROR(FIND(P$3,'CFR - XML import'!$A66)),0,VALUE(MID('CFR - XML import'!$A66,SEARCH(\">\",'CFR - XML import'!$A66,1)+1,SEARCH(\"/\",'CFR - XML import'!$A66,1)-SEARCH(\">\",'CFR - XML import'!$A66,1)-2)))","v":0},{"$f":"IF(ISERROR(FIND(Q$3,'CFR - XML import'!$A66)),0,VALUE(MID('CFR - XML import'!$A66,SEARCH(\">\",'CFR - XML import'!$A66,1)+1,SEARCH(\"/\",'CFR - XML import'!$A66,1)-SEARCH(\">\",'CFR - XML import'!$A66,1)-2)))","v":0},{"$f":"IF(ISERROR(FIND(R$3,'CFR - XML import'!$A66)),0,VALUE(MID('CFR - XML import'!$A66,SEARCH(\">\",'CFR - XML import'!$A66,1)+1,SEARCH(\"/\",'CFR - XML import'!$A66,1)-SEARCH(\">\",'CFR - XML import'!$A66,1)-2)))","v":0},{"$f":"IF(ISERROR(FIND(S$3,'CFR - XML import'!$A66)),0,VALUE(MID('CFR - XML import'!$A66,SEARCH(\">\",'CFR - XML import'!$A66,1)+1,SEARCH(\"/\",'CFR - XML import'!$A66,1)-SEARCH(\">\",'CFR - XML import'!$A66,1)-2)))","v":0},{"$f":"IF(ISERROR(FIND(T$3,'CFR - XML import'!$A66)),0,VALUE(MID('CFR - XML import'!$A66,SEARCH(\">\",'CFR - XML import'!$A66,1)+1,SEARCH(\"/\",'CFR - XML import'!$A66,1)-SEARCH(\">\",'CFR - XML import'!$A66,1)-2)))","v":0},{"$f":"IF(ISERROR(FIND(U$3,'CFR - XML import'!$A66)),0,VALUE(MID('CFR - XML import'!$A66,SEARCH(\">\",'CFR - XML import'!$A66,1)+1,SEARCH(\"/\",'CFR - XML import'!$A66,1)-SEARCH(\">\",'CFR - XML import'!$A66,1)-2)))","v":0},{"$f":"IF(ISERROR(FIND(V$3,'CFR - XML import'!$A66)),0,VALUE(MID('CFR - XML import'!$A66,SEARCH(\">\",'CFR - XML import'!$A66,1)+1,SEARCH(\"/\",'CFR - XML import'!$A66,1)-SEARCH(\">\",'CFR - XML import'!$A66,1)-2)))","v":0},{"$f":"IF(ISERROR(FIND(W$3,'CFR - XML import'!$A66)),0,VALUE(MID('CFR - XML import'!$A66,SEARCH(\">\",'CFR - XML import'!$A66,1)+1,SEARCH(\"/\",'CFR - XML import'!$A66,1)-SEARCH(\">\",'CFR - XML import'!$A66,1)-2)))","v":0},null,{"$f":"IF(ISERROR(FIND(Y$3,'CFR - XML import'!$A66)),0,VALUE(MID('CFR - XML import'!$A66,SEARCH(\">\",'CFR - XML import'!$A66,1)+1,SEARCH(\"/\",'CFR - XML import'!$A66,1)-SEARCH(\">\",'CFR - XML import'!$A66,1)-2)))","v":0},{"$f":"IF(ISERROR(FIND(Z$3,'CFR - XML import'!$A66)),0,VALUE(MID('CFR - XML import'!$A66,SEARCH(\">\",'CFR - XML import'!$A66,1)+1,SEARCH(\"/\",'CFR - XML import'!$A66,1)-SEARCH(\">\",'CFR - XML import'!$A66,1)-2)))","v":0},{"$f":"IF(ISERROR(FIND(AA$3,'CFR - XML import'!$A66)),0,VALUE(MID('CFR - XML import'!$A66,SEARCH(\">\",'CFR - XML import'!$A66,1)+1,SEARCH(\"/\",'CFR - XML import'!$A66,1)-SEARCH(\">\",'CFR - XML import'!$A66,1)-2)))","v":0},{"$f":"IF(ISERROR(FIND(AB$3,'CFR - XML import'!$A66)),0,VALUE(MID('CFR - XML import'!$A66,SEARCH(\">\",'CFR - XML import'!$A66,1)+1,SEARCH(\"/\",'CFR - XML import'!$A66,1)-SEARCH(\">\",'CFR - XML import'!$A66,1)-2)))","v":0},{"$f":"IF(ISERROR(FIND(AC$3,'CFR - XML import'!$A66)),0,VALUE(MID('CFR - XML import'!$A66,SEARCH(\">\",'CFR - XML import'!$A66,1)+1,SEARCH(\"/\",'CFR - XML import'!$A66,1)-SEARCH(\">\",'CFR - XML import'!$A66,1)-2)))","v":0},{"$f":"IF(ISERROR(FIND(AD$3,'CFR - XML import'!$A66)),0,VALUE(MID('CFR - XML import'!$A66,SEARCH(\">\",'CFR - XML import'!$A66,1)+1,SEARCH(\"/\",'CFR - XML import'!$A66,1)-SEARCH(\">\",'CFR - XML import'!$A66,1)-2)))","v":0},{"$f":"IF(ISERROR(FIND(AE$3,'CFR - XML import'!$A66)),0,VALUE(MID('CFR - XML import'!$A66,SEARCH(\">\",'CFR - XML import'!$A66,1)+1,SEARCH(\"/\",'CFR - XML import'!$A66,1)-SEARCH(\">\",'CFR - XML import'!$A66,1)-2)))","v":0},{"$f":"IF(ISERROR(FIND(AF$3,'CFR - XML import'!$A66)),0,VALUE(MID('CFR - XML import'!$A66,SEARCH(\">\",'CFR - XML import'!$A66,1)+1,SEARCH(\"/\",'CFR - XML import'!$A66,1)-SEARCH(\">\",'CFR - XML import'!$A66,1)-2)))","v":0},{"$f":"IF(ISERROR(FIND(AG$3,'CFR - XML import'!$A66)),0,VALUE(MID('CFR - XML import'!$A66,SEARCH(\">\",'CFR - XML import'!$A66,1)+1,SEARCH(\"/\",'CFR - XML import'!$A66,1)-SEARCH(\">\",'CFR - XML import'!$A66,1)-2)))","v":0},{"$f":"IF(ISERROR(FIND(AH$3,'CFR - XML import'!$A66)),0,VALUE(MID('CFR - XML import'!$A66,SEARCH(\">\",'CFR - XML import'!$A66,1)+1,SEARCH(\"/\",'CFR - XML import'!$A66,1)-SEARCH(\">\",'CFR - XML import'!$A66,1)-2)))","v":0},{"$f":"IF(ISERROR(FIND(AI$3,'CFR - XML import'!$A66)),0,VALUE(MID('CFR - XML import'!$A66,SEARCH(\">\",'CFR - XML import'!$A66,1)+1,SEARCH(\"/\",'CFR - XML import'!$A66,1)-SEARCH(\">\",'CFR - XML import'!$A66,1)-2)))","v":0},{"$f":"IF(ISERROR(FIND(AJ$3,'CFR - XML import'!$A66)),0,VALUE(MID('CFR - XML import'!$A66,SEARCH(\">\",'CFR - XML import'!$A66,1)+1,SEARCH(\"/\",'CFR - XML import'!$A66,1)-SEARCH(\">\",'CFR - XML import'!$A66,1)-2)))","v":0},{"$f":"IF(ISERROR(FIND(AK$3,'CFR - XML import'!$A66)),0,VALUE(MID('CFR - XML import'!$A66,SEARCH(\">\",'CFR - XML import'!$A66,1)+1,SEARCH(\"/\",'CFR - XML import'!$A66,1)-SEARCH(\">\",'CFR - XML import'!$A66,1)-2)))","v":0},{"$f":"IF(ISERROR(FIND(AL$3,'CFR - XML import'!$A66)),0,VALUE(MID('CFR - XML import'!$A66,SEARCH(\">\",'CFR - XML import'!$A66,1)+1,SEARCH(\"/\",'CFR - XML import'!$A66,1)-SEARCH(\">\",'CFR - XML import'!$A66,1)-2)))","v":0},{"$f":"IF(ISERROR(FIND(AM$3,'CFR - XML import'!$A66)),0,VALUE(MID('CFR - XML import'!$A66,SEARCH(\">\",'CFR - XML import'!$A66,1)+1,SEARCH(\"/\",'CFR - XML import'!$A66,1)-SEARCH(\">\",'CFR - XML import'!$A66,1)-2)))","v":0},{"$f":"IF(ISERROR(FIND(AN$3,'CFR - XML import'!$A66)),0,VALUE(MID('CFR - XML import'!$A66,SEARCH(\">\",'CFR - XML import'!$A66,1)+1,SEARCH(\"/\",'CFR - XML import'!$A66,1)-SEARCH(\">\",'CFR - XML import'!$A66,1)-2)))","v":0},{"$f":"IF(ISERROR(FIND(AO$3,'CFR - XML import'!$A66)),0,VALUE(MID('CFR - XML import'!$A66,SEARCH(\">\",'CFR - XML import'!$A66,1)+1,SEARCH(\"/\",'CFR - XML import'!$A66,1)-SEARCH(\">\",'CFR - XML import'!$A66,1)-2)))","v":0},{"$f":"IF(ISERROR(FIND(AP$3,'CFR - XML import'!$A66)),0,VALUE(MID('CFR - XML import'!$A66,SEARCH(\">\",'CFR - XML import'!$A66,1)+1,SEARCH(\"/\",'CFR - XML import'!$A66,1)-SEARCH(\">\",'CFR - XML import'!$A66,1)-2)))","v":0},{"$f":"IF(ISERROR(FIND(AQ$3,'CFR - XML import'!$A66)),0,VALUE(MID('CFR - XML import'!$A66,SEARCH(\">\",'CFR - XML import'!$A66,1)+1,SEARCH(\"/\",'CFR - XML import'!$A66,1)-SEARCH(\">\",'CFR - XML import'!$A66,1)-2)))","v":0},{"$f":"IF(ISERROR(FIND(AR$3,'CFR - XML import'!$A66)),0,VALUE(MID('CFR - XML import'!$A66,SEARCH(\">\",'CFR - XML import'!$A66,1)+1,SEARCH(\"/\",'CFR - XML import'!$A66,1)-SEARCH(\">\",'CFR - XML import'!$A66,1)-2)))","v":0},{"$f":"IF(ISERROR(FIND(AS$3,'CFR - XML import'!$A66)),0,VALUE(MID('CFR - XML import'!$A66,SEARCH(\">\",'CFR - XML import'!$A66,1)+1,SEARCH(\"/\",'CFR - XML import'!$A66,1)-SEARCH(\">\",'CFR - XML import'!$A66,1)-2)))","v":0},{"$f":"IF(ISERROR(FIND(AT$3,'CFR - XML import'!$A66)),0,VALUE(MID('CFR - XML import'!$A66,SEARCH(\">\",'CFR - XML import'!$A66,1)+1,SEARCH(\"/\",'CFR - XML import'!$A66,1)-SEARCH(\">\",'CFR - XML import'!$A66,1)-2)))","v":0},{"$f":"IF(ISERROR(FIND(AU$3,'CFR - XML import'!$A66)),0,VALUE(MID('CFR - XML import'!$A66,SEARCH(\">\",'CFR - XML import'!$A66,1)+1,SEARCH(\"/\",'CFR - XML import'!$A66,1)-SEARCH(\">\",'CFR - XML import'!$A66,1)-2)))","v":0},{"$f":"IF(ISERROR(FIND(AV$3,'CFR - XML import'!$A66)),0,VALUE(MID('CFR - XML import'!$A66,SEARCH(\">\",'CFR - XML import'!$A66,1)+1,SEARCH(\"/\",'CFR - XML import'!$A66,1)-SEARCH(\">\",'CFR - XML import'!$A66,1)-2)))","v":0},{"$f":"IF(ISERROR(FIND(AW$3,'CFR - XML import'!$A66)),0,VALUE(MID('CFR - XML import'!$A66,SEARCH(\">\",'CFR - XML import'!$A66,1)+1,SEARCH(\"/\",'CFR - XML import'!$A66,1)-SEARCH(\">\",'CFR - XML import'!$A66,1)-2)))","v":0},{"$f":"IF(ISERROR(FIND(AX$3,'CFR - XML import'!$A66)),0,VALUE(MID('CFR - XML import'!$A66,SEARCH(\">\",'CFR - XML import'!$A66,1)+1,SEARCH(\"/\",'CFR - XML import'!$A66,1)-SEARCH(\">\",'CFR - XML import'!$A66,1)-2)))","v":0},{"$f":"IF(ISERROR(FIND(AY$3,'CFR - XML import'!$A66)),0,VALUE(MID('CFR - XML import'!$A66,SEARCH(\">\",'CFR - XML import'!$A66,1)+1,SEARCH(\"/\",'CFR - XML import'!$A66,1)-SEARCH(\">\",'CFR - XML import'!$A66,1)-2)))","v":0},{"$f":"IF(ISERROR(FIND(AZ$3,'CFR - XML import'!$A66)),0,VALUE(MID('CFR - XML import'!$A66,SEARCH(\">\",'CFR - XML import'!$A66,1)+1,SEARCH(\"/\",'CFR - XML import'!$A66,1)-SEARCH(\">\",'CFR - XML import'!$A66,1)-2)))","v":0},{"$f":"IF(ISERROR(FIND(BA$3,'CFR - XML import'!$A66)),0,VALUE(MID('CFR - XML import'!$A66,SEARCH(\">\",'CFR - XML import'!$A66,1)+1,SEARCH(\"/\",'CFR - XML import'!$A66,1)-SEARCH(\">\",'CFR - XML import'!$A66,1)-2)))","v":0},{"$f":"IF(ISERROR(FIND(BB$3,'CFR - XML import'!$A66)),0,VALUE(MID('CFR - XML import'!$A66,SEARCH(\">\",'CFR - XML import'!$A66,1)+1,SEARCH(\"/\",'CFR - XML import'!$A66,1)-SEARCH(\">\",'CFR - XML import'!$A66,1)-2)))","v":0},{"$f":"IF(ISERROR(FIND(BC$3,'CFR - XML import'!$A66)),0,VALUE(MID('CFR - XML import'!$A66,SEARCH(\">\",'CFR - XML import'!$A66,1)+1,SEARCH(\"/\",'CFR - XML import'!$A66,1)-SEARCH(\">\",'CFR - XML import'!$A66,1)-2)))","v":0},{"$f":"IF(ISERROR(FIND(BD$3,'CFR - XML import'!$A66)),0,VALUE(MID('CFR - XML import'!$A66,SEARCH(\">\",'CFR - XML import'!$A66,1)+1,SEARCH(\"/\",'CFR - XML import'!$A66,1)-SEARCH(\">\",'CFR - XML import'!$A66,1)-2)))","v":0},{"$f":"IF(ISERROR(FIND(BE$3,'CFR - XML import'!$A66)),0,VALUE(MID('CFR - XML import'!$A66,SEARCH(\">\",'CFR - XML import'!$A66,1)+1,SEARCH(\"/\",'CFR - XML import'!$A66,1)-SEARCH(\">\",'CFR - XML import'!$A66,1)-2)))","v":0},{"$f":"IF(ISERROR(FIND(BF$3,'CFR - XML import'!$A66)),0,VALUE(MID('CFR - XML import'!$A66,SEARCH(\">\",'CFR - XML import'!$A66,1)+1,SEARCH(\"/\",'CFR - XML import'!$A66,1)-SEARCH(\">\",'CFR - XML import'!$A66,1)-2)))","v":0},{"$f":"IF(ISERROR(FIND(BG$3,'CFR - XML import'!$A66)),0,VALUE(MID('CFR - XML import'!$A66,SEARCH(\">\",'CFR - XML import'!$A66,1)+1,SEARCH(\"/\",'CFR - XML import'!$A66,1)-SEARCH(\">\",'CFR - XML import'!$A66,1)-2)))","v":0},{"$f":"IF(ISERROR(FIND(BH$3,'CFR - XML import'!$A66)),0,VALUE(MID('CFR - XML import'!$A66,SEARCH(\">\",'CFR - XML import'!$A66,1)+1,SEARCH(\"/\",'CFR - XML import'!$A66,1)-SEARCH(\">\",'CFR - XML import'!$A66,1)-2)))","v":0},{"$f":"IF(ISERROR(FIND(BI$3,'CFR - XML import'!$A66)),0,VALUE(MID('CFR - XML import'!$A66,SEARCH(\">\",'CFR - XML import'!$A66,1)+1,SEARCH(\"/\",'CFR - XML import'!$A66,1)-SEARCH(\">\",'CFR - XML import'!$A66,1)-2)))","v":0},{"$f":"IF(ISERROR(FIND(BJ$3,'CFR - XML import'!$A66)),0,VALUE(MID('CFR - XML import'!$A66,SEARCH(\">\",'CFR - XML import'!$A66,1)+1,SEARCH(\"/\",'CFR - XML import'!$A66,1)-SEARCH(\">\",'CFR - XML import'!$A66,1)-2)))","v":0},{"$f":"IF(ISERROR(FIND(BK$3,'CFR - XML import'!$A66)),0,VALUE(MID('CFR - XML import'!$A66,SEARCH(\">\",'CFR - XML import'!$A66,1)+1,SEARCH(\"/\",'CFR - XML import'!$A66,1)-SEARCH(\">\",'CFR - XML import'!$A66,1)-2)))","v":0},{"$f":"IF(ISERROR(FIND(BL$3,'CFR - XML import'!$A66)),0,VALUE(MID('CFR - XML import'!$A66,SEARCH(\">\",'CFR - XML import'!$A66,1)+1,SEARCH(\"/\",'CFR - XML import'!$A66,1)-SEARCH(\">\",'CFR - XML import'!$A66,1)-2)))","v":0},{"$f":"IF(ISERROR(FIND(BM$3,'CFR - XML import'!$A66)),0,VALUE(MID('CFR - XML import'!$A66,SEARCH(\">\",'CFR - XML import'!$A66,1)+1,SEARCH(\"/\",'CFR - XML import'!$A66,1)-SEARCH(\">\",'CFR - XML import'!$A66,1)-2)))","v":0},{"$f":"IF(ISERROR(FIND(BN$3,'CFR - XML import'!$A66)),0,VALUE(MID('CFR - XML import'!$A66,SEARCH(\">\",'CFR - XML import'!$A66,1)+1,SEARCH(\"/\",'CFR - XML import'!$A66,1)-SEARCH(\">\",'CFR - XML import'!$A66,1)-2)))","v":0},{"$f":"IF(ISERROR(FIND(BO$3,'CFR - XML import'!$A66)),0,VALUE(MID('CFR - XML import'!$A66,SEARCH(\">\",'CFR - XML import'!$A66,1)+1,SEARCH(\"/\",'CFR - XML import'!$A66,1)-SEARCH(\">\",'CFR - XML import'!$A66,1)-2)))","v":0},{"$f":"IF(ISERROR(FIND(BP$3,'CFR - XML import'!$A66)),0,VALUE(MID('CFR - XML import'!$A66,SEARCH(\">\",'CFR - XML import'!$A66,1)+1,SEARCH(\"/\",'CFR - XML import'!$A66,1)-SEARCH(\">\",'CFR - XML import'!$A66,1)-2)))","v":0},{"$f":"IF(ISERROR(FIND(BQ$3,'CFR - XML import'!$A66)),0,VALUE(MID('CFR - XML import'!$A66,SEARCH(\">\",'CFR - XML import'!$A66,1)+1,SEARCH(\"/\",'CFR - XML import'!$A66,1)-SEARCH(\">\",'CFR - XML import'!$A66,1)-2)))","v":0},{"$f":"IF(ISERROR(FIND(BR$3,'CFR - XML import'!$A66)),0,VALUE(MID('CFR - XML import'!$A66,SEARCH(\">\",'CFR - XML import'!$A66,1)+1,SEARCH(\"/\",'CFR - XML import'!$A66,1)-SEARCH(\">\",'CFR - XML import'!$A66,1)-2)))","v":0},{"$f":"IF(ISERROR(FIND(BS$3,'CFR - XML import'!$A66)),0,VALUE(MID('CFR - XML import'!$A66,SEARCH(\">\",'CFR - XML import'!$A66,1)+1,SEARCH(\"/\",'CFR - XML import'!$A66,1)-SEARCH(\">\",'CFR - XML import'!$A66,1)-2)))","v":0},{"$f":"IF(ISERROR(FIND(BT$3,'CFR - XML import'!$A66)),0,VALUE(MID('CFR - XML import'!$A66,SEARCH(\">\",'CFR - XML import'!$A66,1)+1,SEARCH(\"/\",'CFR - XML import'!$A66,1)-SEARCH(\">\",'CFR - XML import'!$A66,1)-2)))","v":0},{"$f":"IF(ISERROR(FIND(BU$3,'CFR - XML import'!$A66)),0,VALUE(MID('CFR - XML import'!$A66,SEARCH(\">\",'CFR - XML import'!$A66,1)+1,SEARCH(\"/\",'CFR - XML import'!$A66,1)-SEARCH(\">\",'CFR - XML import'!$A66,1)-2)))","v":0},{"$f":"IF(ISERROR(FIND(BV$3,'CFR - XML import'!$A66)),0,VALUE(MID('CFR - XML import'!$A66,SEARCH(\">\",'CFR - XML import'!$A66,1)+1,SEARCH(\"/\",'CFR - XML import'!$A66,1)-SEARCH(\">\",'CFR - XML import'!$A66,1)-2)))","v":0},{"$f":"IF(ISERROR(FIND(BW$3,'CFR - XML import'!$A66)),0,VALUE(MID('CFR - XML import'!$A66,SEARCH(\">\",'CFR - XML import'!$A66,1)+1,SEARCH(\"/\",'CFR - XML import'!$A66,1)-SEARCH(\">\",'CFR - XML import'!$A66,1)-2)))","v":0},{"$f":"IF(ISERROR(FIND(BX$3,'CFR - XML import'!$A66)),0,VALUE(MID('CFR - XML import'!$A66,SEARCH(\">\",'CFR - XML import'!$A66,1)+1,SEARCH(\"/\",'CFR - XML import'!$A66,1)-SEARCH(\">\",'CFR - XML import'!$A66,1)-2)))","v":0},{"$f":"IF(ISERROR(FIND(BY$3,'CFR - XML import'!$A66)),0,VALUE(MID('CFR - XML import'!$A66,SEARCH(\">\",'CFR - XML import'!$A66,1)+1,SEARCH(\"/\",'CFR - XML import'!$A66,1)-SEARCH(\">\",'CFR - XML import'!$A66,1)-2)))","v":0},{"$f":"IF(ISERROR(FIND(BZ$3,'CFR - XML import'!$A66)),0,VALUE(MID('CFR - XML import'!$A66,SEARCH(\">\",'CFR - XML import'!$A66,1)+1,SEARCH(\"/\",'CFR - XML import'!$A66,1)-SEARCH(\">\",'CFR - XML import'!$A66,1)-2)))","v":0},null,null,null,null,null,null,{"$f":"IF(ISERROR(IF(MID('CFR - XML import'!$A66,LEN($CF$4)+1,LEN('CFR - XML import'!$A66)-(2*LEN($CF$4)+1))=\"RMMS\",1,IF(MID('CFR - XML import'!$A66,LEN(\"    <InputSystem>\")+1,LEN('CFR - XML import'!$A66)-(LEN(\"    <InputSystem>\")+LEN($CF$4)+1))=\"SIMS\",2,0))),0,IF(MID('CFR - XML import'!$A66,LEN($CF$4)+1,LEN('CFR - XML import'!$A66)-(2*LEN($CF$4)+1))=\"RMMS\",1,IF(MID('CFR - XML import'!$A66,LEN(\"    <InputSystem>\")+1,LEN('CFR - XML import'!$A66)-(LEN(\"    <InputSystem>\")+LEN($CF$4)+1))=\"SIMS\",2,0)))","v":0},{"$f":"IF(ISERROR(FIND(CH$3,'CFR - XML import'!$A66)),0,MID('CFR - XML import'!$A66,SEARCH(\">\",'CFR - XML import'!$A66,1)+1,SEARCH(\"/\",'CFR - XML import'!$A66,1)-SEARCH(\">\",'CFR - XML import'!$A66,1)-2))","v":0},{"$f":"IF(ISERROR(FIND(CI$3,'CFR - XML import'!$A66)),0,MID('CFR - XML import'!$A66,SEARCH(\">\",'CFR - XML import'!$A66,1)+1,SEARCH(\"/\",'CFR - XML import'!$A66,1)-SEARCH(\">\",'CFR - XML import'!$A66,1)-2))","v":0},{"$f":"IF(ISERROR(FIND(CJ$3,'CFR - XML import'!$A66)),0,MID('CFR - XML import'!$A66,SEARCH(\">\",'CFR - XML import'!$A66,1)+1,SEARCH(\"/\",'CFR - XML import'!$A66,1)-SEARCH(\">\",'CFR - XML import'!$A66,1)-2))","v":0},{"$f":"IF(ISERROR(FIND(CK$3,'CFR - XML import'!$A66)),0,MID('CFR - XML import'!$A66,SEARCH(\">\",'CFR - XML import'!$A66,1)+1,SEARCH(\"/\",'CFR - XML import'!$A66,1)-SEARCH(\">\",'CFR - XML import'!$A66,1)-2))","v":0},{"$f":"IF(ISERROR(FIND(CL$3,'CFR - XML import'!$A66)),0,MID('CFR - XML import'!$A66,SEARCH(\">\",'CFR - XML import'!$A66,1)+1,SEARCH(\"/\",'CFR - XML import'!$A66,1)-SEARCH(\">\",'CFR - XML import'!$A66,1)-2))","v":0}]
[{"$f":"IF(AND('CFR - XML import'!A67<>\"\",LEFT('CFR - XML import'!A67,1)<>\"<\",LEFT('CFR - XML import'!A67,3)<>\"  <\",LEFT('CFR - XML import'!A67,5)<>\"    <\",LEFT('CFR - XML import'!A67,7)<>\"      <\",LEFT('CFR - XML import'!A67,9)<>\"        <\",$B$1=\"SIMS\"),'CFR - XML import'!A67,IF(AND(LEFT('CFR - XML import'!A67,9)=\"<Details>\",$B$1=\"RM\"),'CFR - XML import'!A67,\"\"))","v":""},{"$f":"IF(ISERROR(FIND(B$3,'CFR - XML import'!$A67)),0,VALUE(MID('CFR - XML import'!$A67,SEARCH(\">\",'CFR - XML import'!$A67,1)+1,SEARCH(\"/\",'CFR - XML import'!$A67,1)-SEARCH(\">\",'CFR - XML import'!$A67,1)-2)))","v":0},null,{"$f":"IF(ISERROR(FIND(D$3,'CFR - XML import'!$A67)),0,MID('CFR - XML import'!$A67,SEARCH(\">\",'CFR - XML import'!$A67,1)+1,SEARCH(\"/\",'CFR - XML import'!$A67,1)-SEARCH(\">\",'CFR - XML import'!$A67,1)-2))","v":0},{"$f":"IF(ISERROR(FIND(E$3,'CFR - XML import'!$A67)),0,MID('CFR - XML import'!$A67,SEARCH(\">\",'CFR - XML import'!$A67,1)+1,SEARCH(\"/\",'CFR - XML import'!$A67,1)-SEARCH(\">\",'CFR - XML import'!$A67,1)-2))","v":0},{"$f":"IF($B$1=\"SIMS\",IF(ISERROR(FIND(F$3,'CFR - XML import'!$A67)),0,VALUE(MID('CFR - XML import'!$A67,15,10))),IF(ISERROR(FIND(F$3,'CFR - XML import'!$A67)),0,VALUE(MID('CFR - XML import'!$A67,11,10))))","v":"00:00:00"},{"$f":"IF(ISERROR(FIND(G$3,'CFR - XML import'!$A67)),0,VALUE(MID('CFR - XML import'!$A67,SEARCH(\">\",'CFR - XML import'!$A67,1)+1,SEARCH(\"/\",'CFR - XML import'!$A67,1)-SEARCH(\">\",'CFR - XML import'!$A67,1)-2)))","v":0},{"$f":"IF(ISERROR(FIND(H$3,'CFR - XML import'!$A67)),0,VALUE(MID('CFR - XML import'!$A67,SEARCH(\">\",'CFR - XML import'!$A67,1)+1,SEARCH(\"/\",'CFR - XML import'!$A67,1)-SEARCH(\">\",'CFR - XML import'!$A67,1)-2)))","v":0},{"$f":"IF(ISERROR(FIND(I$3,'CFR - XML import'!$A67)),0,VALUE(MID('CFR - XML import'!$A67,SEARCH(\">\",'CFR - XML import'!$A67,1)+1,SEARCH(\"/\",'CFR - XML import'!$A67,1)-SEARCH(\">\",'CFR - XML import'!$A67,1)-2)))","v":0},{"$f":"IF(ISERROR(FIND(J$3,'CFR - XML import'!$A67)),0,VALUE(MID('CFR - XML import'!$A67,SEARCH(\">\",'CFR - XML import'!$A67,1)+1,SEARCH(\"/\",'CFR - XML import'!$A67,1)-SEARCH(\">\",'CFR - XML import'!$A67,1)-2)))","v":0},{"$f":"IF(ISERROR(FIND(K$3,'CFR - XML import'!$A67)),0,VALUE(MID('CFR - XML import'!$A67,SEARCH(\">\",'CFR - XML import'!$A67,1)+1,SEARCH(\"/\",'CFR - XML import'!$A67,1)-SEARCH(\">\",'CFR - XML import'!$A67,1)-2)))","v":0},{"$f":"IF(ISERROR(FIND(L$3,'CFR - XML import'!$A67)),0,VALUE(MID('CFR - XML import'!$A67,SEARCH(\">\",'CFR - XML import'!$A67,1)+1,SEARCH(\"/\",'CFR - XML import'!$A67,1)-SEARCH(\">\",'CFR - XML import'!$A67,1)-2)))","v":0},{"$f":"IF(ISERROR(FIND(M$3,'CFR - XML import'!$A67)),0,VALUE(MID('CFR - XML import'!$A67,SEARCH(\">\",'CFR - XML import'!$A67,1)+1,SEARCH(\"/\",'CFR - XML import'!$A67,1)-SEARCH(\">\",'CFR - XML import'!$A67,1)-2)))","v":0},{"$f":"IF(ISERROR(FIND(N$3,'CFR - XML import'!$A67)),0,VALUE(MID('CFR - XML import'!$A67,SEARCH(\">\",'CFR - XML import'!$A67,1)+1,SEARCH(\"/\",'CFR - XML import'!$A67,1)-SEARCH(\">\",'CFR - XML import'!$A67,1)-2)))","v":0},{"$f":"IF(ISERROR(FIND(O$3,'CFR - XML import'!$A67)),0,VALUE(MID('CFR - XML import'!$A67,SEARCH(\">\",'CFR - XML import'!$A67,1)+1,SEARCH(\"/\",'CFR - XML import'!$A67,1)-SEARCH(\">\",'CFR - XML import'!$A67,1)-2)))","v":0},{"$f":"IF(ISERROR(FIND(P$3,'CFR - XML import'!$A67)),0,VALUE(MID('CFR - XML import'!$A67,SEARCH(\">\",'CFR - XML import'!$A67,1)+1,SEARCH(\"/\",'CFR - XML import'!$A67,1)-SEARCH(\">\",'CFR - XML import'!$A67,1)-2)))","v":0},{"$f":"IF(ISERROR(FIND(Q$3,'CFR - XML import'!$A67)),0,VALUE(MID('CFR - XML import'!$A67,SEARCH(\">\",'CFR - XML import'!$A67,1)+1,SEARCH(\"/\",'CFR - XML import'!$A67,1)-SEARCH(\">\",'CFR - XML import'!$A67,1)-2)))","v":0},{"$f":"IF(ISERROR(FIND(R$3,'CFR - XML import'!$A67)),0,VALUE(MID('CFR - XML import'!$A67,SEARCH(\">\",'CFR - XML import'!$A67,1)+1,SEARCH(\"/\",'CFR - XML import'!$A67,1)-SEARCH(\">\",'CFR - XML import'!$A67,1)-2)))","v":0},{"$f":"IF(ISERROR(FIND(S$3,'CFR - XML import'!$A67)),0,VALUE(MID('CFR - XML import'!$A67,SEARCH(\">\",'CFR - XML import'!$A67,1)+1,SEARCH(\"/\",'CFR - XML import'!$A67,1)-SEARCH(\">\",'CFR - XML import'!$A67,1)-2)))","v":0},{"$f":"IF(ISERROR(FIND(T$3,'CFR - XML import'!$A67)),0,VALUE(MID('CFR - XML import'!$A67,SEARCH(\">\",'CFR - XML import'!$A67,1)+1,SEARCH(\"/\",'CFR - XML import'!$A67,1)-SEARCH(\">\",'CFR - XML import'!$A67,1)-2)))","v":0},{"$f":"IF(ISERROR(FIND(U$3,'CFR - XML import'!$A67)),0,VALUE(MID('CFR - XML import'!$A67,SEARCH(\">\",'CFR - XML import'!$A67,1)+1,SEARCH(\"/\",'CFR - XML import'!$A67,1)-SEARCH(\">\",'CFR - XML import'!$A67,1)-2)))","v":0},{"$f":"IF(ISERROR(FIND(V$3,'CFR - XML import'!$A67)),0,VALUE(MID('CFR - XML import'!$A67,SEARCH(\">\",'CFR - XML import'!$A67,1)+1,SEARCH(\"/\",'CFR - XML import'!$A67,1)-SEARCH(\">\",'CFR - XML import'!$A67,1)-2)))","v":0},{"$f":"IF(ISERROR(FIND(W$3,'CFR - XML import'!$A67)),0,VALUE(MID('CFR - XML import'!$A67,SEARCH(\">\",'CFR - XML import'!$A67,1)+1,SEARCH(\"/\",'CFR - XML import'!$A67,1)-SEARCH(\">\",'CFR - XML import'!$A67,1)-2)))","v":0},null,{"$f":"IF(ISERROR(FIND(Y$3,'CFR - XML import'!$A67)),0,VALUE(MID('CFR - XML import'!$A67,SEARCH(\">\",'CFR - XML import'!$A67,1)+1,SEARCH(\"/\",'CFR - XML import'!$A67,1)-SEARCH(\">\",'CFR - XML import'!$A67,1)-2)))","v":0},{"$f":"IF(ISERROR(FIND(Z$3,'CFR - XML import'!$A67)),0,VALUE(MID('CFR - XML import'!$A67,SEARCH(\">\",'CFR - XML import'!$A67,1)+1,SEARCH(\"/\",'CFR - XML import'!$A67,1)-SEARCH(\">\",'CFR - XML import'!$A67,1)-2)))","v":0},{"$f":"IF(ISERROR(FIND(AA$3,'CFR - XML import'!$A67)),0,VALUE(MID('CFR - XML import'!$A67,SEARCH(\">\",'CFR - XML import'!$A67,1)+1,SEARCH(\"/\",'CFR - XML import'!$A67,1)-SEARCH(\">\",'CFR - XML import'!$A67,1)-2)))","v":0},{"$f":"IF(ISERROR(FIND(AB$3,'CFR - XML import'!$A67)),0,VALUE(MID('CFR - XML import'!$A67,SEARCH(\">\",'CFR - XML import'!$A67,1)+1,SEARCH(\"/\",'CFR - XML import'!$A67,1)-SEARCH(\">\",'CFR - XML import'!$A67,1)-2)))","v":0},{"$f":"IF(ISERROR(FIND(AC$3,'CFR - XML import'!$A67)),0,VALUE(MID('CFR - XML import'!$A67,SEARCH(\">\",'CFR - XML import'!$A67,1)+1,SEARCH(\"/\",'CFR - XML import'!$A67,1)-SEARCH(\">\",'CFR - XML import'!$A67,1)-2)))","v":0},{"$f":"IF(ISERROR(FIND(AD$3,'CFR - XML import'!$A67)),0,VALUE(MID('CFR - XML import'!$A67,SEARCH(\">\",'CFR - XML import'!$A67,1)+1,SEARCH(\"/\",'CFR - XML import'!$A67,1)-SEARCH(\">\",'CFR - XML import'!$A67,1)-2)))","v":0},{"$f":"IF(ISERROR(FIND(AE$3,'CFR - XML import'!$A67)),0,VALUE(MID('CFR - XML import'!$A67,SEARCH(\">\",'CFR - XML import'!$A67,1)+1,SEARCH(\"/\",'CFR - XML import'!$A67,1)-SEARCH(\">\",'CFR - XML import'!$A67,1)-2)))","v":0},{"$f":"IF(ISERROR(FIND(AF$3,'CFR - XML import'!$A67)),0,VALUE(MID('CFR - XML import'!$A67,SEARCH(\">\",'CFR - XML import'!$A67,1)+1,SEARCH(\"/\",'CFR - XML import'!$A67,1)-SEARCH(\">\",'CFR - XML import'!$A67,1)-2)))","v":0},{"$f":"IF(ISERROR(FIND(AG$3,'CFR - XML import'!$A67)),0,VALUE(MID('CFR - XML import'!$A67,SEARCH(\">\",'CFR - XML import'!$A67,1)+1,SEARCH(\"/\",'CFR - XML import'!$A67,1)-SEARCH(\">\",'CFR - XML import'!$A67,1)-2)))","v":0},{"$f":"IF(ISERROR(FIND(AH$3,'CFR - XML import'!$A67)),0,VALUE(MID('CFR - XML import'!$A67,SEARCH(\">\",'CFR - XML import'!$A67,1)+1,SEARCH(\"/\",'CFR - XML import'!$A67,1)-SEARCH(\">\",'CFR - XML import'!$A67,1)-2)))","v":0},{"$f":"IF(ISERROR(FIND(AI$3,'CFR - XML import'!$A67)),0,VALUE(MID('CFR - XML import'!$A67,SEARCH(\">\",'CFR - XML import'!$A67,1)+1,SEARCH(\"/\",'CFR - XML import'!$A67,1)-SEARCH(\">\",'CFR - XML import'!$A67,1)-2)))","v":0},{"$f":"IF(ISERROR(FIND(AJ$3,'CFR - XML import'!$A67)),0,VALUE(MID('CFR - XML import'!$A67,SEARCH(\">\",'CFR - XML import'!$A67,1)+1,SEARCH(\"/\",'CFR - XML import'!$A67,1)-SEARCH(\">\",'CFR - XML import'!$A67,1)-2)))","v":0},{"$f":"IF(ISERROR(FIND(AK$3,'CFR - XML import'!$A67)),0,VALUE(MID('CFR - XML import'!$A67,SEARCH(\">\",'CFR - XML import'!$A67,1)+1,SEARCH(\"/\",'CFR - XML import'!$A67,1)-SEARCH(\">\",'CFR - XML import'!$A67,1)-2)))","v":0},{"$f":"IF(ISERROR(FIND(AL$3,'CFR - XML import'!$A67)),0,VALUE(MID('CFR - XML import'!$A67,SEARCH(\">\",'CFR - XML import'!$A67,1)+1,SEARCH(\"/\",'CFR - XML import'!$A67,1)-SEARCH(\">\",'CFR - XML import'!$A67,1)-2)))","v":0},{"$f":"IF(ISERROR(FIND(AM$3,'CFR - XML import'!$A67)),0,VALUE(MID('CFR - XML import'!$A67,SEARCH(\">\",'CFR - XML import'!$A67,1)+1,SEARCH(\"/\",'CFR - XML import'!$A67,1)-SEARCH(\">\",'CFR - XML import'!$A67,1)-2)))","v":0},{"$f":"IF(ISERROR(FIND(AN$3,'CFR - XML import'!$A67)),0,VALUE(MID('CFR - XML import'!$A67,SEARCH(\">\",'CFR - XML import'!$A67,1)+1,SEARCH(\"/\",'CFR - XML import'!$A67,1)-SEARCH(\">\",'CFR - XML import'!$A67,1)-2)))","v":0},{"$f":"IF(ISERROR(FIND(AO$3,'CFR - XML import'!$A67)),0,VALUE(MID('CFR - XML import'!$A67,SEARCH(\">\",'CFR - XML import'!$A67,1)+1,SEARCH(\"/\",'CFR - XML import'!$A67,1)-SEARCH(\">\",'CFR - XML import'!$A67,1)-2)))","v":0},{"$f":"IF(ISERROR(FIND(AP$3,'CFR - XML import'!$A67)),0,VALUE(MID('CFR - XML import'!$A67,SEARCH(\">\",'CFR - XML import'!$A67,1)+1,SEARCH(\"/\",'CFR - XML import'!$A67,1)-SEARCH(\">\",'CFR - XML import'!$A67,1)-2)))","v":0},{"$f":"IF(ISERROR(FIND(AQ$3,'CFR - XML import'!$A67)),0,VALUE(MID('CFR - XML import'!$A67,SEARCH(\">\",'CFR - XML import'!$A67,1)+1,SEARCH(\"/\",'CFR - XML import'!$A67,1)-SEARCH(\">\",'CFR - XML import'!$A67,1)-2)))","v":0},{"$f":"IF(ISERROR(FIND(AR$3,'CFR - XML import'!$A67)),0,VALUE(MID('CFR - XML import'!$A67,SEARCH(\">\",'CFR - XML import'!$A67,1)+1,SEARCH(\"/\",'CFR - XML import'!$A67,1)-SEARCH(\">\",'CFR - XML import'!$A67,1)-2)))","v":0},{"$f":"IF(ISERROR(FIND(AS$3,'CFR - XML import'!$A67)),0,VALUE(MID('CFR - XML import'!$A67,SEARCH(\">\",'CFR - XML import'!$A67,1)+1,SEARCH(\"/\",'CFR - XML import'!$A67,1)-SEARCH(\">\",'CFR - XML import'!$A67,1)-2)))","v":0},{"$f":"IF(ISERROR(FIND(AT$3,'CFR - XML import'!$A67)),0,VALUE(MID('CFR - XML import'!$A67,SEARCH(\">\",'CFR - XML import'!$A67,1)+1,SEARCH(\"/\",'CFR - XML import'!$A67,1)-SEARCH(\">\",'CFR - XML import'!$A67,1)-2)))","v":0},{"$f":"IF(ISERROR(FIND(AU$3,'CFR - XML import'!$A67)),0,VALUE(MID('CFR - XML import'!$A67,SEARCH(\">\",'CFR - XML import'!$A67,1)+1,SEARCH(\"/\",'CFR - XML import'!$A67,1)-SEARCH(\">\",'CFR - XML import'!$A67,1)-2)))","v":0},{"$f":"IF(ISERROR(FIND(AV$3,'CFR - XML import'!$A67)),0,VALUE(MID('CFR - XML import'!$A67,SEARCH(\">\",'CFR - XML import'!$A67,1)+1,SEARCH(\"/\",'CFR - XML import'!$A67,1)-SEARCH(\">\",'CFR - XML import'!$A67,1)-2)))","v":0},{"$f":"IF(ISERROR(FIND(AW$3,'CFR - XML import'!$A67)),0,VALUE(MID('CFR - XML import'!$A67,SEARCH(\">\",'CFR - XML import'!$A67,1)+1,SEARCH(\"/\",'CFR - XML import'!$A67,1)-SEARCH(\">\",'CFR - XML import'!$A67,1)-2)))","v":0},{"$f":"IF(ISERROR(FIND(AX$3,'CFR - XML import'!$A67)),0,VALUE(MID('CFR - XML import'!$A67,SEARCH(\">\",'CFR - XML import'!$A67,1)+1,SEARCH(\"/\",'CFR - XML import'!$A67,1)-SEARCH(\">\",'CFR - XML import'!$A67,1)-2)))","v":0},{"$f":"IF(ISERROR(FIND(AY$3,'CFR - XML import'!$A67)),0,VALUE(MID('CFR - XML import'!$A67,SEARCH(\">\",'CFR - XML import'!$A67,1)+1,SEARCH(\"/\",'CFR - XML import'!$A67,1)-SEARCH(\">\",'CFR - XML import'!$A67,1)-2)))","v":0},{"$f":"IF(ISERROR(FIND(AZ$3,'CFR - XML import'!$A67)),0,VALUE(MID('CFR - XML import'!$A67,SEARCH(\">\",'CFR - XML import'!$A67,1)+1,SEARCH(\"/\",'CFR - XML import'!$A67,1)-SEARCH(\">\",'CFR - XML import'!$A67,1)-2)))","v":0},{"$f":"IF(ISERROR(FIND(BA$3,'CFR - XML import'!$A67)),0,VALUE(MID('CFR - XML import'!$A67,SEARCH(\">\",'CFR - XML import'!$A67,1)+1,SEARCH(\"/\",'CFR - XML import'!$A67,1)-SEARCH(\">\",'CFR - XML import'!$A67,1)-2)))","v":0},{"$f":"IF(ISERROR(FIND(BB$3,'CFR - XML import'!$A67)),0,VALUE(MID('CFR - XML import'!$A67,SEARCH(\">\",'CFR - XML import'!$A67,1)+1,SEARCH(\"/\",'CFR - XML import'!$A67,1)-SEARCH(\">\",'CFR - XML import'!$A67,1)-2)))","v":0},{"$f":"IF(ISERROR(FIND(BC$3,'CFR - XML import'!$A67)),0,VALUE(MID('CFR - XML import'!$A67,SEARCH(\">\",'CFR - XML import'!$A67,1)+1,SEARCH(\"/\",'CFR - XML import'!$A67,1)-SEARCH(\">\",'CFR - XML import'!$A67,1)-2)))","v":0},{"$f":"IF(ISERROR(FIND(BD$3,'CFR - XML import'!$A67)),0,VALUE(MID('CFR - XML import'!$A67,SEARCH(\">\",'CFR - XML import'!$A67,1)+1,SEARCH(\"/\",'CFR - XML import'!$A67,1)-SEARCH(\">\",'CFR - XML import'!$A67,1)-2)))","v":0},{"$f":"IF(ISERROR(FIND(BE$3,'CFR - XML import'!$A67)),0,VALUE(MID('CFR - XML import'!$A67,SEARCH(\">\",'CFR - XML import'!$A67,1)+1,SEARCH(\"/\",'CFR - XML import'!$A67,1)-SEARCH(\">\",'CFR - XML import'!$A67,1)-2)))","v":0},{"$f":"IF(ISERROR(FIND(BF$3,'CFR - XML import'!$A67)),0,VALUE(MID('CFR - XML import'!$A67,SEARCH(\">\",'CFR - XML import'!$A67,1)+1,SEARCH(\"/\",'CFR - XML import'!$A67,1)-SEARCH(\">\",'CFR - XML import'!$A67,1)-2)))","v":0},{"$f":"IF(ISERROR(FIND(BG$3,'CFR - XML import'!$A67)),0,VALUE(MID('CFR - XML import'!$A67,SEARCH(\">\",'CFR - XML import'!$A67,1)+1,SEARCH(\"/\",'CFR - XML import'!$A67,1)-SEARCH(\">\",'CFR - XML import'!$A67,1)-2)))","v":0},{"$f":"IF(ISERROR(FIND(BH$3,'CFR - XML import'!$A67)),0,VALUE(MID('CFR - XML import'!$A67,SEARCH(\">\",'CFR - XML import'!$A67,1)+1,SEARCH(\"/\",'CFR - XML import'!$A67,1)-SEARCH(\">\",'CFR - XML import'!$A67,1)-2)))","v":0},{"$f":"IF(ISERROR(FIND(BI$3,'CFR - XML import'!$A67)),0,VALUE(MID('CFR - XML import'!$A67,SEARCH(\">\",'CFR - XML import'!$A67,1)+1,SEARCH(\"/\",'CFR - XML import'!$A67,1)-SEARCH(\">\",'CFR - XML import'!$A67,1)-2)))","v":0},{"$f":"IF(ISERROR(FIND(BJ$3,'CFR - XML import'!$A67)),0,VALUE(MID('CFR - XML import'!$A67,SEARCH(\">\",'CFR - XML import'!$A67,1)+1,SEARCH(\"/\",'CFR - XML import'!$A67,1)-SEARCH(\">\",'CFR - XML import'!$A67,1)-2)))","v":0},{"$f":"IF(ISERROR(FIND(BK$3,'CFR - XML import'!$A67)),0,VALUE(MID('CFR - XML import'!$A67,SEARCH(\">\",'CFR - XML import'!$A67,1)+1,SEARCH(\"/\",'CFR - XML import'!$A67,1)-SEARCH(\">\",'CFR - XML import'!$A67,1)-2)))","v":0},{"$f":"IF(ISERROR(FIND(BL$3,'CFR - XML import'!$A67)),0,VALUE(MID('CFR - XML import'!$A67,SEARCH(\">\",'CFR - XML import'!$A67,1)+1,SEARCH(\"/\",'CFR - XML import'!$A67,1)-SEARCH(\">\",'CFR - XML import'!$A67,1)-2)))","v":0},{"$f":"IF(ISERROR(FIND(BM$3,'CFR - XML import'!$A67)),0,VALUE(MID('CFR - XML import'!$A67,SEARCH(\">\",'CFR - XML import'!$A67,1)+1,SEARCH(\"/\",'CFR - XML import'!$A67,1)-SEARCH(\">\",'CFR - XML import'!$A67,1)-2)))","v":0},{"$f":"IF(ISERROR(FIND(BN$3,'CFR - XML import'!$A67)),0,VALUE(MID('CFR - XML import'!$A67,SEARCH(\">\",'CFR - XML import'!$A67,1)+1,SEARCH(\"/\",'CFR - XML import'!$A67,1)-SEARCH(\">\",'CFR - XML import'!$A67,1)-2)))","v":0},{"$f":"IF(ISERROR(FIND(BO$3,'CFR - XML import'!$A67)),0,VALUE(MID('CFR - XML import'!$A67,SEARCH(\">\",'CFR - XML import'!$A67,1)+1,SEARCH(\"/\",'CFR - XML import'!$A67,1)-SEARCH(\">\",'CFR - XML import'!$A67,1)-2)))","v":0},{"$f":"IF(ISERROR(FIND(BP$3,'CFR - XML import'!$A67)),0,VALUE(MID('CFR - XML import'!$A67,SEARCH(\">\",'CFR - XML import'!$A67,1)+1,SEARCH(\"/\",'CFR - XML import'!$A67,1)-SEARCH(\">\",'CFR - XML import'!$A67,1)-2)))","v":0},{"$f":"IF(ISERROR(FIND(BQ$3,'CFR - XML import'!$A67)),0,VALUE(MID('CFR - XML import'!$A67,SEARCH(\">\",'CFR - XML import'!$A67,1)+1,SEARCH(\"/\",'CFR - XML import'!$A67,1)-SEARCH(\">\",'CFR - XML import'!$A67,1)-2)))","v":0},{"$f":"IF(ISERROR(FIND(BR$3,'CFR - XML import'!$A67)),0,VALUE(MID('CFR - XML import'!$A67,SEARCH(\">\",'CFR - XML import'!$A67,1)+1,SEARCH(\"/\",'CFR - XML import'!$A67,1)-SEARCH(\">\",'CFR - XML import'!$A67,1)-2)))","v":0},{"$f":"IF(ISERROR(FIND(BS$3,'CFR - XML import'!$A67)),0,VALUE(MID('CFR - XML import'!$A67,SEARCH(\">\",'CFR - XML import'!$A67,1)+1,SEARCH(\"/\",'CFR - XML import'!$A67,1)-SEARCH(\">\",'CFR - XML import'!$A67,1)-2)))","v":0},{"$f":"IF(ISERROR(FIND(BT$3,'CFR - XML import'!$A67)),0,VALUE(MID('CFR - XML import'!$A67,SEARCH(\">\",'CFR - XML import'!$A67,1)+1,SEARCH(\"/\",'CFR - XML import'!$A67,1)-SEARCH(\">\",'CFR - XML import'!$A67,1)-2)))","v":0},{"$f":"IF(ISERROR(FIND(BU$3,'CFR - XML import'!$A67)),0,VALUE(MID('CFR - XML import'!$A67,SEARCH(\">\",'CFR - XML import'!$A67,1)+1,SEARCH(\"/\",'CFR - XML import'!$A67,1)-SEARCH(\">\",'CFR - XML import'!$A67,1)-2)))","v":0},{"$f":"IF(ISERROR(FIND(BV$3,'CFR - XML import'!$A67)),0,VALUE(MID('CFR - XML import'!$A67,SEARCH(\">\",'CFR - XML import'!$A67,1)+1,SEARCH(\"/\",'CFR - XML import'!$A67,1)-SEARCH(\">\",'CFR - XML import'!$A67,1)-2)))","v":0},{"$f":"IF(ISERROR(FIND(BW$3,'CFR - XML import'!$A67)),0,VALUE(MID('CFR - XML import'!$A67,SEARCH(\">\",'CFR - XML import'!$A67,1)+1,SEARCH(\"/\",'CFR - XML import'!$A67,1)-SEARCH(\">\",'CFR - XML import'!$A67,1)-2)))","v":0},{"$f":"IF(ISERROR(FIND(BX$3,'CFR - XML import'!$A67)),0,VALUE(MID('CFR - XML import'!$A67,SEARCH(\">\",'CFR - XML import'!$A67,1)+1,SEARCH(\"/\",'CFR - XML import'!$A67,1)-SEARCH(\">\",'CFR - XML import'!$A67,1)-2)))","v":0},{"$f":"IF(ISERROR(FIND(BY$3,'CFR - XML import'!$A67)),0,VALUE(MID('CFR - XML import'!$A67,SEARCH(\">\",'CFR - XML import'!$A67,1)+1,SEARCH(\"/\",'CFR - XML import'!$A67,1)-SEARCH(\">\",'CFR - XML import'!$A67,1)-2)))","v":0},{"$f":"IF(ISERROR(FIND(BZ$3,'CFR - XML import'!$A67)),0,VALUE(MID('CFR - XML import'!$A67,SEARCH(\">\",'CFR - XML import'!$A67,1)+1,SEARCH(\"/\",'CFR - XML import'!$A67,1)-SEARCH(\">\",'CFR - XML import'!$A67,1)-2)))","v":0},null,null,null,null,null,null,{"$f":"IF(ISERROR(IF(MID('CFR - XML import'!$A67,LEN($CF$4)+1,LEN('CFR - XML import'!$A67)-(2*LEN($CF$4)+1))=\"RMMS\",1,IF(MID('CFR - XML import'!$A67,LEN(\"    <InputSystem>\")+1,LEN('CFR - XML import'!$A67)-(LEN(\"    <InputSystem>\")+LEN($CF$4)+1))=\"SIMS\",2,0))),0,IF(MID('CFR - XML import'!$A67,LEN($CF$4)+1,LEN('CFR - XML import'!$A67)-(2*LEN($CF$4)+1))=\"RMMS\",1,IF(MID('CFR - XML import'!$A67,LEN(\"    <InputSystem>\")+1,LEN('CFR - XML import'!$A67)-(LEN(\"    <InputSystem>\")+LEN($CF$4)+1))=\"SIMS\",2,0)))","v":0},{"$f":"IF(ISERROR(FIND(CH$3,'CFR - XML import'!$A67)),0,MID('CFR - XML import'!$A67,SEARCH(\">\",'CFR - XML import'!$A67,1)+1,SEARCH(\"/\",'CFR - XML import'!$A67,1)-SEARCH(\">\",'CFR - XML import'!$A67,1)-2))","v":0},{"$f":"IF(ISERROR(FIND(CI$3,'CFR - XML import'!$A67)),0,MID('CFR - XML import'!$A67,SEARCH(\">\",'CFR - XML import'!$A67,1)+1,SEARCH(\"/\",'CFR - XML import'!$A67,1)-SEARCH(\">\",'CFR - XML import'!$A67,1)-2))","v":0},{"$f":"IF(ISERROR(FIND(CJ$3,'CFR - XML import'!$A67)),0,MID('CFR - XML import'!$A67,SEARCH(\">\",'CFR - XML import'!$A67,1)+1,SEARCH(\"/\",'CFR - XML import'!$A67,1)-SEARCH(\">\",'CFR - XML import'!$A67,1)-2))","v":0},{"$f":"IF(ISERROR(FIND(CK$3,'CFR - XML import'!$A67)),0,MID('CFR - XML import'!$A67,SEARCH(\">\",'CFR - XML import'!$A67,1)+1,SEARCH(\"/\",'CFR - XML import'!$A67,1)-SEARCH(\">\",'CFR - XML import'!$A67,1)-2))","v":0},{"$f":"IF(ISERROR(FIND(CL$3,'CFR - XML import'!$A67)),0,MID('CFR - XML import'!$A67,SEARCH(\">\",'CFR - XML import'!$A67,1)+1,SEARCH(\"/\",'CFR - XML import'!$A67,1)-SEARCH(\">\",'CFR - XML import'!$A67,1)-2))","v":0}]
[{"$f":"IF(AND('CFR - XML import'!A68<>\"\",LEFT('CFR - XML import'!A68,1)<>\"<\",LEFT('CFR - XML import'!A68,3)<>\"  <\",LEFT('CFR - XML import'!A68,5)<>\"    <\",LEFT('CFR - XML import'!A68,7)<>\"      <\",LEFT('CFR - XML import'!A68,9)<>\"        <\",$B$1=\"SIMS\"),'CFR - XML import'!A68,IF(AND(LEFT('CFR - XML import'!A68,9)=\"<Details>\",$B$1=\"RM\"),'CFR - XML import'!A68,\"\"))","v":""},{"$f":"IF(ISERROR(FIND(B$3,'CFR - XML import'!$A68)),0,VALUE(MID('CFR - XML import'!$A68,SEARCH(\">\",'CFR - XML import'!$A68,1)+1,SEARCH(\"/\",'CFR - XML import'!$A68,1)-SEARCH(\">\",'CFR - XML import'!$A68,1)-2)))","v":0},null,{"$f":"IF(ISERROR(FIND(D$3,'CFR - XML import'!$A68)),0,MID('CFR - XML import'!$A68,SEARCH(\">\",'CFR - XML import'!$A68,1)+1,SEARCH(\"/\",'CFR - XML import'!$A68,1)-SEARCH(\">\",'CFR - XML import'!$A68,1)-2))","v":0},{"$f":"IF(ISERROR(FIND(E$3,'CFR - XML import'!$A68)),0,MID('CFR - XML import'!$A68,SEARCH(\">\",'CFR - XML import'!$A68,1)+1,SEARCH(\"/\",'CFR - XML import'!$A68,1)-SEARCH(\">\",'CFR - XML import'!$A68,1)-2))","v":0},{"$f":"IF($B$1=\"SIMS\",IF(ISERROR(FIND(F$3,'CFR - XML import'!$A68)),0,VALUE(MID('CFR - XML import'!$A68,15,10))),IF(ISERROR(FIND(F$3,'CFR - XML import'!$A68)),0,VALUE(MID('CFR - XML import'!$A68,11,10))))","v":"00:00:00"},{"$f":"IF(ISERROR(FIND(G$3,'CFR - XML import'!$A68)),0,VALUE(MID('CFR - XML import'!$A68,SEARCH(\">\",'CFR - XML import'!$A68,1)+1,SEARCH(\"/\",'CFR - XML import'!$A68,1)-SEARCH(\">\",'CFR - XML import'!$A68,1)-2)))","v":0},{"$f":"IF(ISERROR(FIND(H$3,'CFR - XML import'!$A68)),0,VALUE(MID('CFR - XML import'!$A68,SEARCH(\">\",'CFR - XML import'!$A68,1)+1,SEARCH(\"/\",'CFR - XML import'!$A68,1)-SEARCH(\">\",'CFR - XML import'!$A68,1)-2)))","v":0},{"$f":"IF(ISERROR(FIND(I$3,'CFR - XML import'!$A68)),0,VALUE(MID('CFR - XML import'!$A68,SEARCH(\">\",'CFR - XML import'!$A68,1)+1,SEARCH(\"/\",'CFR - XML import'!$A68,1)-SEARCH(\">\",'CFR - XML import'!$A68,1)-2)))","v":0},{"$f":"IF(ISERROR(FIND(J$3,'CFR - XML import'!$A68)),0,VALUE(MID('CFR - XML import'!$A68,SEARCH(\">\",'CFR - XML import'!$A68,1)+1,SEARCH(\"/\",'CFR - XML import'!$A68,1)-SEARCH(\">\",'CFR - XML import'!$A68,1)-2)))","v":0},{"$f":"IF(ISERROR(FIND(K$3,'CFR - XML import'!$A68)),0,VALUE(MID('CFR - XML import'!$A68,SEARCH(\">\",'CFR - XML import'!$A68,1)+1,SEARCH(\"/\",'CFR - XML import'!$A68,1)-SEARCH(\">\",'CFR - XML import'!$A68,1)-2)))","v":0},{"$f":"IF(ISERROR(FIND(L$3,'CFR - XML import'!$A68)),0,VALUE(MID('CFR - XML import'!$A68,SEARCH(\">\",'CFR - XML import'!$A68,1)+1,SEARCH(\"/\",'CFR - XML import'!$A68,1)-SEARCH(\">\",'CFR - XML import'!$A68,1)-2)))","v":0},{"$f":"IF(ISERROR(FIND(M$3,'CFR - XML import'!$A68)),0,VALUE(MID('CFR - XML import'!$A68,SEARCH(\">\",'CFR - XML import'!$A68,1)+1,SEARCH(\"/\",'CFR - XML import'!$A68,1)-SEARCH(\">\",'CFR - XML import'!$A68,1)-2)))","v":0},{"$f":"IF(ISERROR(FIND(N$3,'CFR - XML import'!$A68)),0,VALUE(MID('CFR - XML import'!$A68,SEARCH(\">\",'CFR - XML import'!$A68,1)+1,SEARCH(\"/\",'CFR - XML import'!$A68,1)-SEARCH(\">\",'CFR - XML import'!$A68,1)-2)))","v":0},{"$f":"IF(ISERROR(FIND(O$3,'CFR - XML import'!$A68)),0,VALUE(MID('CFR - XML import'!$A68,SEARCH(\">\",'CFR - XML import'!$A68,1)+1,SEARCH(\"/\",'CFR - XML import'!$A68,1)-SEARCH(\">\",'CFR - XML import'!$A68,1)-2)))","v":0},{"$f":"IF(ISERROR(FIND(P$3,'CFR - XML import'!$A68)),0,VALUE(MID('CFR - XML import'!$A68,SEARCH(\">\",'CFR - XML import'!$A68,1)+1,SEARCH(\"/\",'CFR - XML import'!$A68,1)-SEARCH(\">\",'CFR - XML import'!$A68,1)-2)))","v":0},{"$f":"IF(ISERROR(FIND(Q$3,'CFR - XML import'!$A68)),0,VALUE(MID('CFR - XML import'!$A68,SEARCH(\">\",'CFR - XML import'!$A68,1)+1,SEARCH(\"/\",'CFR - XML import'!$A68,1)-SEARCH(\">\",'CFR - XML import'!$A68,1)-2)))","v":0},{"$f":"IF(ISERROR(FIND(R$3,'CFR - XML import'!$A68)),0,VALUE(MID('CFR - XML import'!$A68,SEARCH(\">\",'CFR - XML import'!$A68,1)+1,SEARCH(\"/\",'CFR - XML import'!$A68,1)-SEARCH(\">\",'CFR - XML import'!$A68,1)-2)))","v":0},{"$f":"IF(ISERROR(FIND(S$3,'CFR - XML import'!$A68)),0,VALUE(MID('CFR - XML import'!$A68,SEARCH(\">\",'CFR - XML import'!$A68,1)+1,SEARCH(\"/\",'CFR - XML import'!$A68,1)-SEARCH(\">\",'CFR - XML import'!$A68,1)-2)))","v":0},{"$f":"IF(ISERROR(FIND(T$3,'CFR - XML import'!$A68)),0,VALUE(MID('CFR - XML import'!$A68,SEARCH(\">\",'CFR - XML import'!$A68,1)+1,SEARCH(\"/\",'CFR - XML import'!$A68,1)-SEARCH(\">\",'CFR - XML import'!$A68,1)-2)))","v":0},{"$f":"IF(ISERROR(FIND(U$3,'CFR - XML import'!$A68)),0,VALUE(MID('CFR - XML import'!$A68,SEARCH(\">\",'CFR - XML import'!$A68,1)+1,SEARCH(\"/\",'CFR - XML import'!$A68,1)-SEARCH(\">\",'CFR - XML import'!$A68,1)-2)))","v":0},{"$f":"IF(ISERROR(FIND(V$3,'CFR - XML import'!$A68)),0,VALUE(MID('CFR - XML import'!$A68,SEARCH(\">\",'CFR - XML import'!$A68,1)+1,SEARCH(\"/\",'CFR - XML import'!$A68,1)-SEARCH(\">\",'CFR - XML import'!$A68,1)-2)))","v":0},{"$f":"IF(ISERROR(FIND(W$3,'CFR - XML import'!$A68)),0,VALUE(MID('CFR - XML import'!$A68,SEARCH(\">\",'CFR - XML import'!$A68,1)+1,SEARCH(\"/\",'CFR - XML import'!$A68,1)-SEARCH(\">\",'CFR - XML import'!$A68,1)-2)))","v":0},null,{"$f":"IF(ISERROR(FIND(Y$3,'CFR - XML import'!$A68)),0,VALUE(MID('CFR - XML import'!$A68,SEARCH(\">\",'CFR - XML import'!$A68,1)+1,SEARCH(\"/\",'CFR - XML import'!$A68,1)-SEARCH(\">\",'CFR - XML import'!$A68,1)-2)))","v":0},{"$f":"IF(ISERROR(FIND(Z$3,'CFR - XML import'!$A68)),0,VALUE(MID('CFR - XML import'!$A68,SEARCH(\">\",'CFR - XML import'!$A68,1)+1,SEARCH(\"/\",'CFR - XML import'!$A68,1)-SEARCH(\">\",'CFR - XML import'!$A68,1)-2)))","v":0},{"$f":"IF(ISERROR(FIND(AA$3,'CFR - XML import'!$A68)),0,VALUE(MID('CFR - XML import'!$A68,SEARCH(\">\",'CFR - XML import'!$A68,1)+1,SEARCH(\"/\",'CFR - XML import'!$A68,1)-SEARCH(\">\",'CFR - XML import'!$A68,1)-2)))","v":0},{"$f":"IF(ISERROR(FIND(AB$3,'CFR - XML import'!$A68)),0,VALUE(MID('CFR - XML import'!$A68,SEARCH(\">\",'CFR - XML import'!$A68,1)+1,SEARCH(\"/\",'CFR - XML import'!$A68,1)-SEARCH(\">\",'CFR - XML import'!$A68,1)-2)))","v":0},{"$f":"IF(ISERROR(FIND(AC$3,'CFR - XML import'!$A68)),0,VALUE(MID('CFR - XML import'!$A68,SEARCH(\">\",'CFR - XML import'!$A68,1)+1,SEARCH(\"/\",'CFR - XML import'!$A68,1)-SEARCH(\">\",'CFR - XML import'!$A68,1)-2)))","v":0},{"$f":"IF(ISERROR(FIND(AD$3,'CFR - XML import'!$A68)),0,VALUE(MID('CFR - XML import'!$A68,SEARCH(\">\",'CFR - XML import'!$A68,1)+1,SEARCH(\"/\",'CFR - XML import'!$A68,1)-SEARCH(\">\",'CFR - XML import'!$A68,1)-2)))","v":0},{"$f":"IF(ISERROR(FIND(AE$3,'CFR - XML import'!$A68)),0,VALUE(MID('CFR - XML import'!$A68,SEARCH(\">\",'CFR - XML import'!$A68,1)+1,SEARCH(\"/\",'CFR - XML import'!$A68,1)-SEARCH(\">\",'CFR - XML import'!$A68,1)-2)))","v":0},{"$f":"IF(ISERROR(FIND(AF$3,'CFR - XML import'!$A68)),0,VALUE(MID('CFR - XML import'!$A68,SEARCH(\">\",'CFR - XML import'!$A68,1)+1,SEARCH(\"/\",'CFR - XML import'!$A68,1)-SEARCH(\">\",'CFR - XML import'!$A68,1)-2)))","v":0},{"$f":"IF(ISERROR(FIND(AG$3,'CFR - XML import'!$A68)),0,VALUE(MID('CFR - XML import'!$A68,SEARCH(\">\",'CFR - XML import'!$A68,1)+1,SEARCH(\"/\",'CFR - XML import'!$A68,1)-SEARCH(\">\",'CFR - XML import'!$A68,1)-2)))","v":0},{"$f":"IF(ISERROR(FIND(AH$3,'CFR - XML import'!$A68)),0,VALUE(MID('CFR - XML import'!$A68,SEARCH(\">\",'CFR - XML import'!$A68,1)+1,SEARCH(\"/\",'CFR - XML import'!$A68,1)-SEARCH(\">\",'CFR - XML import'!$A68,1)-2)))","v":0},{"$f":"IF(ISERROR(FIND(AI$3,'CFR - XML import'!$A68)),0,VALUE(MID('CFR - XML import'!$A68,SEARCH(\">\",'CFR - XML import'!$A68,1)+1,SEARCH(\"/\",'CFR - XML import'!$A68,1)-SEARCH(\">\",'CFR - XML import'!$A68,1)-2)))","v":0},{"$f":"IF(ISERROR(FIND(AJ$3,'CFR - XML import'!$A68)),0,VALUE(MID('CFR - XML import'!$A68,SEARCH(\">\",'CFR - XML import'!$A68,1)+1,SEARCH(\"/\",'CFR - XML import'!$A68,1)-SEARCH(\">\",'CFR - XML import'!$A68,1)-2)))","v":0},{"$f":"IF(ISERROR(FIND(AK$3,'CFR - XML import'!$A68)),0,VALUE(MID('CFR - XML import'!$A68,SEARCH(\">\",'CFR - XML import'!$A68,1)+1,SEARCH(\"/\",'CFR - XML import'!$A68,1)-SEARCH(\">\",'CFR - XML import'!$A68,1)-2)))","v":0},{"$f":"IF(ISERROR(FIND(AL$3,'CFR - XML import'!$A68)),0,VALUE(MID('CFR - XML import'!$A68,SEARCH(\">\",'CFR - XML import'!$A68,1)+1,SEARCH(\"/\",'CFR - XML import'!$A68,1)-SEARCH(\">\",'CFR - XML import'!$A68,1)-2)))","v":0},{"$f":"IF(ISERROR(FIND(AM$3,'CFR - XML import'!$A68)),0,VALUE(MID('CFR - XML import'!$A68,SEARCH(\">\",'CFR - XML import'!$A68,1)+1,SEARCH(\"/\",'CFR - XML import'!$A68,1)-SEARCH(\">\",'CFR - XML import'!$A68,1)-2)))","v":0},{"$f":"IF(ISERROR(FIND(AN$3,'CFR - XML import'!$A68)),0,VALUE(MID('CFR - XML import'!$A68,SEARCH(\">\",'CFR - XML import'!$A68,1)+1,SEARCH(\"/\",'CFR - XML import'!$A68,1)-SEARCH(\">\",'CFR - XML import'!$A68,1)-2)))","v":0},{"$f":"IF(ISERROR(FIND(AO$3,'CFR - XML import'!$A68)),0,VALUE(MID('CFR - XML import'!$A68,SEARCH(\">\",'CFR - XML import'!$A68,1)+1,SEARCH(\"/\",'CFR - XML import'!$A68,1)-SEARCH(\">\",'CFR - XML import'!$A68,1)-2)))","v":0},{"$f":"IF(ISERROR(FIND(AP$3,'CFR - XML import'!$A68)),0,VALUE(MID('CFR - XML import'!$A68,SEARCH(\">\",'CFR - XML import'!$A68,1)+1,SEARCH(\"/\",'CFR - XML import'!$A68,1)-SEARCH(\">\",'CFR - XML import'!$A68,1)-2)))","v":0},{"$f":"IF(ISERROR(FIND(AQ$3,'CFR - XML import'!$A68)),0,VALUE(MID('CFR - XML import'!$A68,SEARCH(\">\",'CFR - XML import'!$A68,1)+1,SEARCH(\"/\",'CFR - XML import'!$A68,1)-SEARCH(\">\",'CFR - XML import'!$A68,1)-2)))","v":0},{"$f":"IF(ISERROR(FIND(AR$3,'CFR - XML import'!$A68)),0,VALUE(MID('CFR - XML import'!$A68,SEARCH(\">\",'CFR - XML import'!$A68,1)+1,SEARCH(\"/\",'CFR - XML import'!$A68,1)-SEARCH(\">\",'CFR - XML import'!$A68,1)-2)))","v":0},{"$f":"IF(ISERROR(FIND(AS$3,'CFR - XML import'!$A68)),0,VALUE(MID('CFR - XML import'!$A68,SEARCH(\">\",'CFR - XML import'!$A68,1)+1,SEARCH(\"/\",'CFR - XML import'!$A68,1)-SEARCH(\">\",'CFR - XML import'!$A68,1)-2)))","v":0},{"$f":"IF(ISERROR(FIND(AT$3,'CFR - XML import'!$A68)),0,VALUE(MID('CFR - XML import'!$A68,SEARCH(\">\",'CFR - XML import'!$A68,1)+1,SEARCH(\"/\",'CFR - XML import'!$A68,1)-SEARCH(\">\",'CFR - XML import'!$A68,1)-2)))","v":0},{"$f":"IF(ISERROR(FIND(AU$3,'CFR - XML import'!$A68)),0,VALUE(MID('CFR - XML import'!$A68,SEARCH(\">\",'CFR - XML import'!$A68,1)+1,SEARCH(\"/\",'CFR - XML import'!$A68,1)-SEARCH(\">\",'CFR - XML import'!$A68,1)-2)))","v":0},{"$f":"IF(ISERROR(FIND(AV$3,'CFR - XML import'!$A68)),0,VALUE(MID('CFR - XML import'!$A68,SEARCH(\">\",'CFR - XML import'!$A68,1)+1,SEARCH(\"/\",'CFR - XML import'!$A68,1)-SEARCH(\">\",'CFR - XML import'!$A68,1)-2)))","v":0},{"$f":"IF(ISERROR(FIND(AW$3,'CFR - XML import'!$A68)),0,VALUE(MID('CFR - XML import'!$A68,SEARCH(\">\",'CFR - XML import'!$A68,1)+1,SEARCH(\"/\",'CFR - XML import'!$A68,1)-SEARCH(\">\",'CFR - XML import'!$A68,1)-2)))","v":0},{"$f":"IF(ISERROR(FIND(AX$3,'CFR - XML import'!$A68)),0,VALUE(MID('CFR - XML import'!$A68,SEARCH(\">\",'CFR - XML import'!$A68,1)+1,SEARCH(\"/\",'CFR - XML import'!$A68,1)-SEARCH(\">\",'CFR - XML import'!$A68,1)-2)))","v":0},{"$f":"IF(ISERROR(FIND(AY$3,'CFR - XML import'!$A68)),0,VALUE(MID('CFR - XML import'!$A68,SEARCH(\">\",'CFR - XML import'!$A68,1)+1,SEARCH(\"/\",'CFR - XML import'!$A68,1)-SEARCH(\">\",'CFR - XML import'!$A68,1)-2)))","v":0},{"$f":"IF(ISERROR(FIND(AZ$3,'CFR - XML import'!$A68)),0,VALUE(MID('CFR - XML import'!$A68,SEARCH(\">\",'CFR - XML import'!$A68,1)+1,SEARCH(\"/\",'CFR - XML import'!$A68,1)-SEARCH(\">\",'CFR - XML import'!$A68,1)-2)))","v":0},{"$f":"IF(ISERROR(FIND(BA$3,'CFR - XML import'!$A68)),0,VALUE(MID('CFR - XML import'!$A68,SEARCH(\">\",'CFR - XML import'!$A68,1)+1,SEARCH(\"/\",'CFR - XML import'!$A68,1)-SEARCH(\">\",'CFR - XML import'!$A68,1)-2)))","v":0},{"$f":"IF(ISERROR(FIND(BB$3,'CFR - XML import'!$A68)),0,VALUE(MID('CFR - XML import'!$A68,SEARCH(\">\",'CFR - XML import'!$A68,1)+1,SEARCH(\"/\",'CFR - XML import'!$A68,1)-SEARCH(\">\",'CFR - XML import'!$A68,1)-2)))","v":0},{"$f":"IF(ISERROR(FIND(BC$3,'CFR - XML import'!$A68)),0,VALUE(MID('CFR - XML import'!$A68,SEARCH(\">\",'CFR - XML import'!$A68,1)+1,SEARCH(\"/\",'CFR - XML import'!$A68,1)-SEARCH(\">\",'CFR - XML import'!$A68,1)-2)))","v":0},{"$f":"IF(ISERROR(FIND(BD$3,'CFR - XML import'!$A68)),0,VALUE(MID('CFR - XML import'!$A68,SEARCH(\">\",'CFR - XML import'!$A68,1)+1,SEARCH(\"/\",'CFR - XML import'!$A68,1)-SEARCH(\">\",'CFR - XML import'!$A68,1)-2)))","v":0},{"$f":"IF(ISERROR(FIND(BE$3,'CFR - XML import'!$A68)),0,VALUE(MID('CFR - XML import'!$A68,SEARCH(\">\",'CFR - XML import'!$A68,1)+1,SEARCH(\"/\",'CFR - XML import'!$A68,1)-SEARCH(\">\",'CFR - XML import'!$A68,1)-2)))","v":0},{"$f":"IF(ISERROR(FIND(BF$3,'CFR - XML import'!$A68)),0,VALUE(MID('CFR - XML import'!$A68,SEARCH(\">\",'CFR - XML import'!$A68,1)+1,SEARCH(\"/\",'CFR - XML import'!$A68,1)-SEARCH(\">\",'CFR - XML import'!$A68,1)-2)))","v":0},{"$f":"IF(ISERROR(FIND(BG$3,'CFR - XML import'!$A68)),0,VALUE(MID('CFR - XML import'!$A68,SEARCH(\">\",'CFR - XML import'!$A68,1)+1,SEARCH(\"/\",'CFR - XML import'!$A68,1)-SEARCH(\">\",'CFR - XML import'!$A68,1)-2)))","v":0},{"$f":"IF(ISERROR(FIND(BH$3,'CFR - XML import'!$A68)),0,VALUE(MID('CFR - XML import'!$A68,SEARCH(\">\",'CFR - XML import'!$A68,1)+1,SEARCH(\"/\",'CFR - XML import'!$A68,1)-SEARCH(\">\",'CFR - XML import'!$A68,1)-2)))","v":0},{"$f":"IF(ISERROR(FIND(BI$3,'CFR - XML import'!$A68)),0,VALUE(MID('CFR - XML import'!$A68,SEARCH(\">\",'CFR - XML import'!$A68,1)+1,SEARCH(\"/\",'CFR - XML import'!$A68,1)-SEARCH(\">\",'CFR - XML import'!$A68,1)-2)))","v":0},{"$f":"IF(ISERROR(FIND(BJ$3,'CFR - XML import'!$A68)),0,VALUE(MID('CFR - XML import'!$A68,SEARCH(\">\",'CFR - XML import'!$A68,1)+1,SEARCH(\"/\",'CFR - XML import'!$A68,1)-SEARCH(\">\",'CFR - XML import'!$A68,1)-2)))","v":0},{"$f":"IF(ISERROR(FIND(BK$3,'CFR - XML import'!$A68)),0,VALUE(MID('CFR - XML import'!$A68,SEARCH(\">\",'CFR - XML import'!$A68,1)+1,SEARCH(\"/\",'CFR - XML import'!$A68,1)-SEARCH(\">\",'CFR - XML import'!$A68,1)-2)))","v":0},{"$f":"IF(ISERROR(FIND(BL$3,'CFR - XML import'!$A68)),0,VALUE(MID('CFR - XML import'!$A68,SEARCH(\">\",'CFR - XML import'!$A68,1)+1,SEARCH(\"/\",'CFR - XML import'!$A68,1)-SEARCH(\">\",'CFR - XML import'!$A68,1)-2)))","v":0},{"$f":"IF(ISERROR(FIND(BM$3,'CFR - XML import'!$A68)),0,VALUE(MID('CFR - XML import'!$A68,SEARCH(\">\",'CFR - XML import'!$A68,1)+1,SEARCH(\"/\",'CFR - XML import'!$A68,1)-SEARCH(\">\",'CFR - XML import'!$A68,1)-2)))","v":0},{"$f":"IF(ISERROR(FIND(BN$3,'CFR - XML import'!$A68)),0,VALUE(MID('CFR - XML import'!$A68,SEARCH(\">\",'CFR - XML import'!$A68,1)+1,SEARCH(\"/\",'CFR - XML import'!$A68,1)-SEARCH(\">\",'CFR - XML import'!$A68,1)-2)))","v":0},{"$f":"IF(ISERROR(FIND(BO$3,'CFR - XML import'!$A68)),0,VALUE(MID('CFR - XML import'!$A68,SEARCH(\">\",'CFR - XML import'!$A68,1)+1,SEARCH(\"/\",'CFR - XML import'!$A68,1)-SEARCH(\">\",'CFR - XML import'!$A68,1)-2)))","v":0},{"$f":"IF(ISERROR(FIND(BP$3,'CFR - XML import'!$A68)),0,VALUE(MID('CFR - XML import'!$A68,SEARCH(\">\",'CFR - XML import'!$A68,1)+1,SEARCH(\"/\",'CFR - XML import'!$A68,1)-SEARCH(\">\",'CFR - XML import'!$A68,1)-2)))","v":0},{"$f":"IF(ISERROR(FIND(BQ$3,'CFR - XML import'!$A68)),0,VALUE(MID('CFR - XML import'!$A68,SEARCH(\">\",'CFR - XML import'!$A68,1)+1,SEARCH(\"/\",'CFR - XML import'!$A68,1)-SEARCH(\">\",'CFR - XML import'!$A68,1)-2)))","v":0},{"$f":"IF(ISERROR(FIND(BR$3,'CFR - XML import'!$A68)),0,VALUE(MID('CFR - XML import'!$A68,SEARCH(\">\",'CFR - XML import'!$A68,1)+1,SEARCH(\"/\",'CFR - XML import'!$A68,1)-SEARCH(\">\",'CFR - XML import'!$A68,1)-2)))","v":0},{"$f":"IF(ISERROR(FIND(BS$3,'CFR - XML import'!$A68)),0,VALUE(MID('CFR - XML import'!$A68,SEARCH(\">\",'CFR - XML import'!$A68,1)+1,SEARCH(\"/\",'CFR - XML import'!$A68,1)-SEARCH(\">\",'CFR - XML import'!$A68,1)-2)))","v":0},{"$f":"IF(ISERROR(FIND(BT$3,'CFR - XML import'!$A68)),0,VALUE(MID('CFR - XML import'!$A68,SEARCH(\">\",'CFR - XML import'!$A68,1)+1,SEARCH(\"/\",'CFR - XML import'!$A68,1)-SEARCH(\">\",'CFR - XML import'!$A68,1)-2)))","v":0},{"$f":"IF(ISERROR(FIND(BU$3,'CFR - XML import'!$A68)),0,VALUE(MID('CFR - XML import'!$A68,SEARCH(\">\",'CFR - XML import'!$A68,1)+1,SEARCH(\"/\",'CFR - XML import'!$A68,1)-SEARCH(\">\",'CFR - XML import'!$A68,1)-2)))","v":0},{"$f":"IF(ISERROR(FIND(BV$3,'CFR - XML import'!$A68)),0,VALUE(MID('CFR - XML import'!$A68,SEARCH(\">\",'CFR - XML import'!$A68,1)+1,SEARCH(\"/\",'CFR - XML import'!$A68,1)-SEARCH(\">\",'CFR - XML import'!$A68,1)-2)))","v":0},{"$f":"IF(ISERROR(FIND(BW$3,'CFR - XML import'!$A68)),0,VALUE(MID('CFR - XML import'!$A68,SEARCH(\">\",'CFR - XML import'!$A68,1)+1,SEARCH(\"/\",'CFR - XML import'!$A68,1)-SEARCH(\">\",'CFR - XML import'!$A68,1)-2)))","v":0},{"$f":"IF(ISERROR(FIND(BX$3,'CFR - XML import'!$A68)),0,VALUE(MID('CFR - XML import'!$A68,SEARCH(\">\",'CFR - XML import'!$A68,1)+1,SEARCH(\"/\",'CFR - XML import'!$A68,1)-SEARCH(\">\",'CFR - XML import'!$A68,1)-2)))","v":0},{"$f":"IF(ISERROR(FIND(BY$3,'CFR - XML import'!$A68)),0,VALUE(MID('CFR - XML import'!$A68,SEARCH(\">\",'CFR - XML import'!$A68,1)+1,SEARCH(\"/\",'CFR - XML import'!$A68,1)-SEARCH(\">\",'CFR - XML import'!$A68,1)-2)))","v":0},{"$f":"IF(ISERROR(FIND(BZ$3,'CFR - XML import'!$A68)),0,VALUE(MID('CFR - XML import'!$A68,SEARCH(\">\",'CFR - XML import'!$A68,1)+1,SEARCH(\"/\",'CFR - XML import'!$A68,1)-SEARCH(\">\",'CFR - XML import'!$A68,1)-2)))","v":0},null,null,null,null,null,null,{"$f":"IF(ISERROR(IF(MID('CFR - XML import'!$A68,LEN($CF$4)+1,LEN('CFR - XML import'!$A68)-(2*LEN($CF$4)+1))=\"RMMS\",1,IF(MID('CFR - XML import'!$A68,LEN(\"    <InputSystem>\")+1,LEN('CFR - XML import'!$A68)-(LEN(\"    <InputSystem>\")+LEN($CF$4)+1))=\"SIMS\",2,0))),0,IF(MID('CFR - XML import'!$A68,LEN($CF$4)+1,LEN('CFR - XML import'!$A68)-(2*LEN($CF$4)+1))=\"RMMS\",1,IF(MID('CFR - XML import'!$A68,LEN(\"    <InputSystem>\")+1,LEN('CFR - XML import'!$A68)-(LEN(\"    <InputSystem>\")+LEN($CF$4)+1))=\"SIMS\",2,0)))","v":0},{"$f":"IF(ISERROR(FIND(CH$3,'CFR - XML import'!$A68)),0,MID('CFR - XML import'!$A68,SEARCH(\">\",'CFR - XML import'!$A68,1)+1,SEARCH(\"/\",'CFR - XML import'!$A68,1)-SEARCH(\">\",'CFR - XML import'!$A68,1)-2))","v":0},{"$f":"IF(ISERROR(FIND(CI$3,'CFR - XML import'!$A68)),0,MID('CFR - XML import'!$A68,SEARCH(\">\",'CFR - XML import'!$A68,1)+1,SEARCH(\"/\",'CFR - XML import'!$A68,1)-SEARCH(\">\",'CFR - XML import'!$A68,1)-2))","v":0},{"$f":"IF(ISERROR(FIND(CJ$3,'CFR - XML import'!$A68)),0,MID('CFR - XML import'!$A68,SEARCH(\">\",'CFR - XML import'!$A68,1)+1,SEARCH(\"/\",'CFR - XML import'!$A68,1)-SEARCH(\">\",'CFR - XML import'!$A68,1)-2))","v":0},{"$f":"IF(ISERROR(FIND(CK$3,'CFR - XML import'!$A68)),0,MID('CFR - XML import'!$A68,SEARCH(\">\",'CFR - XML import'!$A68,1)+1,SEARCH(\"/\",'CFR - XML import'!$A68,1)-SEARCH(\">\",'CFR - XML import'!$A68,1)-2))","v":0},{"$f":"IF(ISERROR(FIND(CL$3,'CFR - XML import'!$A68)),0,MID('CFR - XML import'!$A68,SEARCH(\">\",'CFR - XML import'!$A68,1)+1,SEARCH(\"/\",'CFR - XML import'!$A68,1)-SEARCH(\">\",'CFR - XML import'!$A68,1)-2))","v":0}]
[{"$f":"IF(AND('CFR - XML import'!A69<>\"\",LEFT('CFR - XML import'!A69,1)<>\"<\",LEFT('CFR - XML import'!A69,3)<>\"  <\",LEFT('CFR - XML import'!A69,5)<>\"    <\",LEFT('CFR - XML import'!A69,7)<>\"      <\",LEFT('CFR - XML import'!A69,9)<>\"        <\",$B$1=\"SIMS\"),'CFR - XML import'!A69,IF(AND(LEFT('CFR - XML import'!A69,9)=\"<Details>\",$B$1=\"RM\"),'CFR - XML import'!A69,\"\"))","v":""},{"$f":"IF(ISERROR(FIND(B$3,'CFR - XML import'!$A69)),0,VALUE(MID('CFR - XML import'!$A69,SEARCH(\">\",'CFR - XML import'!$A69,1)+1,SEARCH(\"/\",'CFR - XML import'!$A69,1)-SEARCH(\">\",'CFR - XML import'!$A69,1)-2)))","v":0},null,{"$f":"IF(ISERROR(FIND(D$3,'CFR - XML import'!$A69)),0,MID('CFR - XML import'!$A69,SEARCH(\">\",'CFR - XML import'!$A69,1)+1,SEARCH(\"/\",'CFR - XML import'!$A69,1)-SEARCH(\">\",'CFR - XML import'!$A69,1)-2))","v":0},{"$f":"IF(ISERROR(FIND(E$3,'CFR - XML import'!$A69)),0,MID('CFR - XML import'!$A69,SEARCH(\">\",'CFR - XML import'!$A69,1)+1,SEARCH(\"/\",'CFR - XML import'!$A69,1)-SEARCH(\">\",'CFR - XML import'!$A69,1)-2))","v":0},{"$f":"IF($B$1=\"SIMS\",IF(ISERROR(FIND(F$3,'CFR - XML import'!$A69)),0,VALUE(MID('CFR - XML import'!$A69,15,10))),IF(ISERROR(FIND(F$3,'CFR - XML import'!$A69)),0,VALUE(MID('CFR - XML import'!$A69,11,10))))","v":"00:00:00"},{"$f":"IF(ISERROR(FIND(G$3,'CFR - XML import'!$A69)),0,VALUE(MID('CFR - XML import'!$A69,SEARCH(\">\",'CFR - XML import'!$A69,1)+1,SEARCH(\"/\",'CFR - XML import'!$A69,1)-SEARCH(\">\",'CFR - XML import'!$A69,1)-2)))","v":0},{"$f":"IF(ISERROR(FIND(H$3,'CFR - XML import'!$A69)),0,VALUE(MID('CFR - XML import'!$A69,SEARCH(\">\",'CFR - XML import'!$A69,1)+1,SEARCH(\"/\",'CFR - XML import'!$A69,1)-SEARCH(\">\",'CFR - XML import'!$A69,1)-2)))","v":0},{"$f":"IF(ISERROR(FIND(I$3,'CFR - XML import'!$A69)),0,VALUE(MID('CFR - XML import'!$A69,SEARCH(\">\",'CFR - XML import'!$A69,1)+1,SEARCH(\"/\",'CFR - XML import'!$A69,1)-SEARCH(\">\",'CFR - XML import'!$A69,1)-2)))","v":0},{"$f":"IF(ISERROR(FIND(J$3,'CFR - XML import'!$A69)),0,VALUE(MID('CFR - XML import'!$A69,SEARCH(\">\",'CFR - XML import'!$A69,1)+1,SEARCH(\"/\",'CFR - XML import'!$A69,1)-SEARCH(\">\",'CFR - XML import'!$A69,1)-2)))","v":0},{"$f":"IF(ISERROR(FIND(K$3,'CFR - XML import'!$A69)),0,VALUE(MID('CFR - XML import'!$A69,SEARCH(\">\",'CFR - XML import'!$A69,1)+1,SEARCH(\"/\",'CFR - XML import'!$A69,1)-SEARCH(\">\",'CFR - XML import'!$A69,1)-2)))","v":0},{"$f":"IF(ISERROR(FIND(L$3,'CFR - XML import'!$A69)),0,VALUE(MID('CFR - XML import'!$A69,SEARCH(\">\",'CFR - XML import'!$A69,1)+1,SEARCH(\"/\",'CFR - XML import'!$A69,1)-SEARCH(\">\",'CFR - XML import'!$A69,1)-2)))","v":0},{"$f":"IF(ISERROR(FIND(M$3,'CFR - XML import'!$A69)),0,VALUE(MID('CFR - XML import'!$A69,SEARCH(\">\",'CFR - XML import'!$A69,1)+1,SEARCH(\"/\",'CFR - XML import'!$A69,1)-SEARCH(\">\",'CFR - XML import'!$A69,1)-2)))","v":0},{"$f":"IF(ISERROR(FIND(N$3,'CFR - XML import'!$A69)),0,VALUE(MID('CFR - XML import'!$A69,SEARCH(\">\",'CFR - XML import'!$A69,1)+1,SEARCH(\"/\",'CFR - XML import'!$A69,1)-SEARCH(\">\",'CFR - XML import'!$A69,1)-2)))","v":0},{"$f":"IF(ISERROR(FIND(O$3,'CFR - XML import'!$A69)),0,VALUE(MID('CFR - XML import'!$A69,SEARCH(\">\",'CFR - XML import'!$A69,1)+1,SEARCH(\"/\",'CFR - XML import'!$A69,1)-SEARCH(\">\",'CFR - XML import'!$A69,1)-2)))","v":0},{"$f":"IF(ISERROR(FIND(P$3,'CFR - XML import'!$A69)),0,VALUE(MID('CFR - XML import'!$A69,SEARCH(\">\",'CFR - XML import'!$A69,1)+1,SEARCH(\"/\",'CFR - XML import'!$A69,1)-SEARCH(\">\",'CFR - XML import'!$A69,1)-2)))","v":0},{"$f":"IF(ISERROR(FIND(Q$3,'CFR - XML import'!$A69)),0,VALUE(MID('CFR - XML import'!$A69,SEARCH(\">\",'CFR - XML import'!$A69,1)+1,SEARCH(\"/\",'CFR - XML import'!$A69,1)-SEARCH(\">\",'CFR - XML import'!$A69,1)-2)))","v":0},{"$f":"IF(ISERROR(FIND(R$3,'CFR - XML import'!$A69)),0,VALUE(MID('CFR - XML import'!$A69,SEARCH(\">\",'CFR - XML import'!$A69,1)+1,SEARCH(\"/\",'CFR - XML import'!$A69,1)-SEARCH(\">\",'CFR - XML import'!$A69,1)-2)))","v":0},{"$f":"IF(ISERROR(FIND(S$3,'CFR - XML import'!$A69)),0,VALUE(MID('CFR - XML import'!$A69,SEARCH(\">\",'CFR - XML import'!$A69,1)+1,SEARCH(\"/\",'CFR - XML import'!$A69,1)-SEARCH(\">\",'CFR - XML import'!$A69,1)-2)))","v":0},{"$f":"IF(ISERROR(FIND(T$3,'CFR - XML import'!$A69)),0,VALUE(MID('CFR - XML import'!$A69,SEARCH(\">\",'CFR - XML import'!$A69,1)+1,SEARCH(\"/\",'CFR - XML import'!$A69,1)-SEARCH(\">\",'CFR - XML import'!$A69,1)-2)))","v":0},{"$f":"IF(ISERROR(FIND(U$3,'CFR - XML import'!$A69)),0,VALUE(MID('CFR - XML import'!$A69,SEARCH(\">\",'CFR - XML import'!$A69,1)+1,SEARCH(\"/\",'CFR - XML import'!$A69,1)-SEARCH(\">\",'CFR - XML import'!$A69,1)-2)))","v":0},{"$f":"IF(ISERROR(FIND(V$3,'CFR - XML import'!$A69)),0,VALUE(MID('CFR - XML import'!$A69,SEARCH(\">\",'CFR - XML import'!$A69,1)+1,SEARCH(\"/\",'CFR - XML import'!$A69,1)-SEARCH(\">\",'CFR - XML import'!$A69,1)-2)))","v":0},{"$f":"IF(ISERROR(FIND(W$3,'CFR - XML import'!$A69)),0,VALUE(MID('CFR - XML import'!$A69,SEARCH(\">\",'CFR - XML import'!$A69,1)+1,SEARCH(\"/\",'CFR - XML import'!$A69,1)-SEARCH(\">\",'CFR - XML import'!$A69,1)-2)))","v":0},null,{"$f":"IF(ISERROR(FIND(Y$3,'CFR - XML import'!$A69)),0,VALUE(MID('CFR - XML import'!$A69,SEARCH(\">\",'CFR - XML import'!$A69,1)+1,SEARCH(\"/\",'CFR - XML import'!$A69,1)-SEARCH(\">\",'CFR - XML import'!$A69,1)-2)))","v":0},{"$f":"IF(ISERROR(FIND(Z$3,'CFR - XML import'!$A69)),0,VALUE(MID('CFR - XML import'!$A69,SEARCH(\">\",'CFR - XML import'!$A69,1)+1,SEARCH(\"/\",'CFR - XML import'!$A69,1)-SEARCH(\">\",'CFR - XML import'!$A69,1)-2)))","v":0},{"$f":"IF(ISERROR(FIND(AA$3,'CFR - XML import'!$A69)),0,VALUE(MID('CFR - XML import'!$A69,SEARCH(\">\",'CFR - XML import'!$A69,1)+1,SEARCH(\"/\",'CFR - XML import'!$A69,1)-SEARCH(\">\",'CFR - XML import'!$A69,1)-2)))","v":0},{"$f":"IF(ISERROR(FIND(AB$3,'CFR - XML import'!$A69)),0,VALUE(MID('CFR - XML import'!$A69,SEARCH(\">\",'CFR - XML import'!$A69,1)+1,SEARCH(\"/\",'CFR - XML import'!$A69,1)-SEARCH(\">\",'CFR - XML import'!$A69,1)-2)))","v":0},{"$f":"IF(ISERROR(FIND(AC$3,'CFR - XML import'!$A69)),0,VALUE(MID('CFR - XML import'!$A69,SEARCH(\">\",'CFR - XML import'!$A69,1)+1,SEARCH(\"/\",'CFR - XML import'!$A69,1)-SEARCH(\">\",'CFR - XML import'!$A69,1)-2)))","v":0},{"$f":"IF(ISERROR(FIND(AD$3,'CFR - XML import'!$A69)),0,VALUE(MID('CFR - XML import'!$A69,SEARCH(\">\",'CFR - XML import'!$A69,1)+1,SEARCH(\"/\",'CFR - XML import'!$A69,1)-SEARCH(\">\",'CFR - XML import'!$A69,1)-2)))","v":0},{"$f":"IF(ISERROR(FIND(AE$3,'CFR - XML import'!$A69)),0,VALUE(MID('CFR - XML import'!$A69,SEARCH(\">\",'CFR - XML import'!$A69,1)+1,SEARCH(\"/\",'CFR - XML import'!$A69,1)-SEARCH(\">\",'CFR - XML import'!$A69,1)-2)))","v":0},{"$f":"IF(ISERROR(FIND(AF$3,'CFR - XML import'!$A69)),0,VALUE(MID('CFR - XML import'!$A69,SEARCH(\">\",'CFR - XML import'!$A69,1)+1,SEARCH(\"/\",'CFR - XML import'!$A69,1)-SEARCH(\">\",'CFR - XML import'!$A69,1)-2)))","v":0},{"$f":"IF(ISERROR(FIND(AG$3,'CFR - XML import'!$A69)),0,VALUE(MID('CFR - XML import'!$A69,SEARCH(\">\",'CFR - XML import'!$A69,1)+1,SEARCH(\"/\",'CFR - XML import'!$A69,1)-SEARCH(\">\",'CFR - XML import'!$A69,1)-2)))","v":0},{"$f":"IF(ISERROR(FIND(AH$3,'CFR - XML import'!$A69)),0,VALUE(MID('CFR - XML import'!$A69,SEARCH(\">\",'CFR - XML import'!$A69,1)+1,SEARCH(\"/\",'CFR - XML import'!$A69,1)-SEARCH(\">\",'CFR - XML import'!$A69,1)-2)))","v":0},{"$f":"IF(ISERROR(FIND(AI$3,'CFR - XML import'!$A69)),0,VALUE(MID('CFR - XML import'!$A69,SEARCH(\">\",'CFR - XML import'!$A69,1)+1,SEARCH(\"/\",'CFR - XML import'!$A69,1)-SEARCH(\">\",'CFR - XML import'!$A69,1)-2)))","v":0},{"$f":"IF(ISERROR(FIND(AJ$3,'CFR - XML import'!$A69)),0,VALUE(MID('CFR - XML import'!$A69,SEARCH(\">\",'CFR - XML import'!$A69,1)+1,SEARCH(\"/\",'CFR - XML import'!$A69,1)-SEARCH(\">\",'CFR - XML import'!$A69,1)-2)))","v":0},{"$f":"IF(ISERROR(FIND(AK$3,'CFR - XML import'!$A69)),0,VALUE(MID('CFR - XML import'!$A69,SEARCH(\">\",'CFR - XML import'!$A69,1)+1,SEARCH(\"/\",'CFR - XML import'!$A69,1)-SEARCH(\">\",'CFR - XML import'!$A69,1)-2)))","v":0},{"$f":"IF(ISERROR(FIND(AL$3,'CFR - XML import'!$A69)),0,VALUE(MID('CFR - XML import'!$A69,SEARCH(\">\",'CFR - XML import'!$A69,1)+1,SEARCH(\"/\",'CFR - XML import'!$A69,1)-SEARCH(\">\",'CFR - XML import'!$A69,1)-2)))","v":0},{"$f":"IF(ISERROR(FIND(AM$3,'CFR - XML import'!$A69)),0,VALUE(MID('CFR - XML import'!$A69,SEARCH(\">\",'CFR - XML import'!$A69,1)+1,SEARCH(\"/\",'CFR - XML import'!$A69,1)-SEARCH(\">\",'CFR - XML import'!$A69,1)-2)))","v":0},{"$f":"IF(ISERROR(FIND(AN$3,'CFR - XML import'!$A69)),0,VALUE(MID('CFR - XML import'!$A69,SEARCH(\">\",'CFR - XML import'!$A69,1)+1,SEARCH(\"/\",'CFR - XML import'!$A69,1)-SEARCH(\">\",'CFR - XML import'!$A69,1)-2)))","v":0},{"$f":"IF(ISERROR(FIND(AO$3,'CFR - XML import'!$A69)),0,VALUE(MID('CFR - XML import'!$A69,SEARCH(\">\",'CFR - XML import'!$A69,1)+1,SEARCH(\"/\",'CFR - XML import'!$A69,1)-SEARCH(\">\",'CFR - XML import'!$A69,1)-2)))","v":0},{"$f":"IF(ISERROR(FIND(AP$3,'CFR - XML import'!$A69)),0,VALUE(MID('CFR - XML import'!$A69,SEARCH(\">\",'CFR - XML import'!$A69,1)+1,SEARCH(\"/\",'CFR - XML import'!$A69,1)-SEARCH(\">\",'CFR - XML import'!$A69,1)-2)))","v":0},{"$f":"IF(ISERROR(FIND(AQ$3,'CFR - XML import'!$A69)),0,VALUE(MID('CFR - XML import'!$A69,SEARCH(\">\",'CFR - XML import'!$A69,1)+1,SEARCH(\"/\",'CFR - XML import'!$A69,1)-SEARCH(\">\",'CFR - XML import'!$A69,1)-2)))","v":0},{"$f":"IF(ISERROR(FIND(AR$3,'CFR - XML import'!$A69)),0,VALUE(MID('CFR - XML import'!$A69,SEARCH(\">\",'CFR - XML import'!$A69,1)+1,SEARCH(\"/\",'CFR - XML import'!$A69,1)-SEARCH(\">\",'CFR - XML import'!$A69,1)-2)))","v":0},{"$f":"IF(ISERROR(FIND(AS$3,'CFR - XML import'!$A69)),0,VALUE(MID('CFR - XML import'!$A69,SEARCH(\">\",'CFR - XML import'!$A69,1)+1,SEARCH(\"/\",'CFR - XML import'!$A69,1)-SEARCH(\">\",'CFR - XML import'!$A69,1)-2)))","v":0},{"$f":"IF(ISERROR(FIND(AT$3,'CFR - XML import'!$A69)),0,VALUE(MID('CFR - XML import'!$A69,SEARCH(\">\",'CFR - XML import'!$A69,1)+1,SEARCH(\"/\",'CFR - XML import'!$A69,1)-SEARCH(\">\",'CFR - XML import'!$A69,1)-2)))","v":0},{"$f":"IF(ISERROR(FIND(AU$3,'CFR - XML import'!$A69)),0,VALUE(MID('CFR - XML import'!$A69,SEARCH(\">\",'CFR - XML import'!$A69,1)+1,SEARCH(\"/\",'CFR - XML import'!$A69,1)-SEARCH(\">\",'CFR - XML import'!$A69,1)-2)))","v":0},{"$f":"IF(ISERROR(FIND(AV$3,'CFR - XML import'!$A69)),0,VALUE(MID('CFR - XML import'!$A69,SEARCH(\">\",'CFR - XML import'!$A69,1)+1,SEARCH(\"/\",'CFR - XML import'!$A69,1)-SEARCH(\">\",'CFR - XML import'!$A69,1)-2)))","v":0},{"$f":"IF(ISERROR(FIND(AW$3,'CFR - XML import'!$A69)),0,VALUE(MID('CFR - XML import'!$A69,SEARCH(\">\",'CFR - XML import'!$A69,1)+1,SEARCH(\"/\",'CFR - XML import'!$A69,1)-SEARCH(\">\",'CFR - XML import'!$A69,1)-2)))","v":0},{"$f":"IF(ISERROR(FIND(AX$3,'CFR - XML import'!$A69)),0,VALUE(MID('CFR - XML import'!$A69,SEARCH(\">\",'CFR - XML import'!$A69,1)+1,SEARCH(\"/\",'CFR - XML import'!$A69,1)-SEARCH(\">\",'CFR - XML import'!$A69,1)-2)))","v":0},{"$f":"IF(ISERROR(FIND(AY$3,'CFR - XML import'!$A69)),0,VALUE(MID('CFR - XML import'!$A69,SEARCH(\">\",'CFR - XML import'!$A69,1)+1,SEARCH(\"/\",'CFR - XML import'!$A69,1)-SEARCH(\">\",'CFR - XML import'!$A69,1)-2)))","v":0},{"$f":"IF(ISERROR(FIND(AZ$3,'CFR - XML import'!$A69)),0,VALUE(MID('CFR - XML import'!$A69,SEARCH(\">\",'CFR - XML import'!$A69,1)+1,SEARCH(\"/\",'CFR - XML import'!$A69,1)-SEARCH(\">\",'CFR - XML import'!$A69,1)-2)))","v":0},{"$f":"IF(ISERROR(FIND(BA$3,'CFR - XML import'!$A69)),0,VALUE(MID('CFR - XML import'!$A69,SEARCH(\">\",'CFR - XML import'!$A69,1)+1,SEARCH(\"/\",'CFR - XML import'!$A69,1)-SEARCH(\">\",'CFR - XML import'!$A69,1)-2)))","v":0},{"$f":"IF(ISERROR(FIND(BB$3,'CFR - XML import'!$A69)),0,VALUE(MID('CFR - XML import'!$A69,SEARCH(\">\",'CFR - XML import'!$A69,1)+1,SEARCH(\"/\",'CFR - XML import'!$A69,1)-SEARCH(\">\",'CFR - XML import'!$A69,1)-2)))","v":0},{"$f":"IF(ISERROR(FIND(BC$3,'CFR - XML import'!$A69)),0,VALUE(MID('CFR - XML import'!$A69,SEARCH(\">\",'CFR - XML import'!$A69,1)+1,SEARCH(\"/\",'CFR - XML import'!$A69,1)-SEARCH(\">\",'CFR - XML import'!$A69,1)-2)))","v":0},{"$f":"IF(ISERROR(FIND(BD$3,'CFR - XML import'!$A69)),0,VALUE(MID('CFR - XML import'!$A69,SEARCH(\">\",'CFR - XML import'!$A69,1)+1,SEARCH(\"/\",'CFR - XML import'!$A69,1)-SEARCH(\">\",'CFR - XML import'!$A69,1)-2)))","v":0},{"$f":"IF(ISERROR(FIND(BE$3,'CFR - XML import'!$A69)),0,VALUE(MID('CFR - XML import'!$A69,SEARCH(\">\",'CFR - XML import'!$A69,1)+1,SEARCH(\"/\",'CFR - XML import'!$A69,1)-SEARCH(\">\",'CFR - XML import'!$A69,1)-2)))","v":0},{"$f":"IF(ISERROR(FIND(BF$3,'CFR - XML import'!$A69)),0,VALUE(MID('CFR - XML import'!$A69,SEARCH(\">\",'CFR - XML import'!$A69,1)+1,SEARCH(\"/\",'CFR - XML import'!$A69,1)-SEARCH(\">\",'CFR - XML import'!$A69,1)-2)))","v":0},{"$f":"IF(ISERROR(FIND(BG$3,'CFR - XML import'!$A69)),0,VALUE(MID('CFR - XML import'!$A69,SEARCH(\">\",'CFR - XML import'!$A69,1)+1,SEARCH(\"/\",'CFR - XML import'!$A69,1)-SEARCH(\">\",'CFR - XML import'!$A69,1)-2)))","v":0},{"$f":"IF(ISERROR(FIND(BH$3,'CFR - XML import'!$A69)),0,VALUE(MID('CFR - XML import'!$A69,SEARCH(\">\",'CFR - XML import'!$A69,1)+1,SEARCH(\"/\",'CFR - XML import'!$A69,1)-SEARCH(\">\",'CFR - XML import'!$A69,1)-2)))","v":0},{"$f":"IF(ISERROR(FIND(BI$3,'CFR - XML import'!$A69)),0,VALUE(MID('CFR - XML import'!$A69,SEARCH(\">\",'CFR - XML import'!$A69,1)+1,SEARCH(\"/\",'CFR - XML import'!$A69,1)-SEARCH(\">\",'CFR - XML import'!$A69,1)-2)))","v":0},{"$f":"IF(ISERROR(FIND(BJ$3,'CFR - XML import'!$A69)),0,VALUE(MID('CFR - XML import'!$A69,SEARCH(\">\",'CFR - XML import'!$A69,1)+1,SEARCH(\"/\",'CFR - XML import'!$A69,1)-SEARCH(\">\",'CFR - XML import'!$A69,1)-2)))","v":0},{"$f":"IF(ISERROR(FIND(BK$3,'CFR - XML import'!$A69)),0,VALUE(MID('CFR - XML import'!$A69,SEARCH(\">\",'CFR - XML import'!$A69,1)+1,SEARCH(\"/\",'CFR - XML import'!$A69,1)-SEARCH(\">\",'CFR - XML import'!$A69,1)-2)))","v":0},{"$f":"IF(ISERROR(FIND(BL$3,'CFR - XML import'!$A69)),0,VALUE(MID('CFR - XML import'!$A69,SEARCH(\">\",'CFR - XML import'!$A69,1)+1,SEARCH(\"/\",'CFR - XML import'!$A69,1)-SEARCH(\">\",'CFR - XML import'!$A69,1)-2)))","v":0},{"$f":"IF(ISERROR(FIND(BM$3,'CFR - XML import'!$A69)),0,VALUE(MID('CFR - XML import'!$A69,SEARCH(\">\",'CFR - XML import'!$A69,1)+1,SEARCH(\"/\",'CFR - XML import'!$A69,1)-SEARCH(\">\",'CFR - XML import'!$A69,1)-2)))","v":0},{"$f":"IF(ISERROR(FIND(BN$3,'CFR - XML import'!$A69)),0,VALUE(MID('CFR - XML import'!$A69,SEARCH(\">\",'CFR - XML import'!$A69,1)+1,SEARCH(\"/\",'CFR - XML import'!$A69,1)-SEARCH(\">\",'CFR - XML import'!$A69,1)-2)))","v":0},{"$f":"IF(ISERROR(FIND(BO$3,'CFR - XML import'!$A69)),0,VALUE(MID('CFR - XML import'!$A69,SEARCH(\">\",'CFR - XML import'!$A69,1)+1,SEARCH(\"/\",'CFR - XML import'!$A69,1)-SEARCH(\">\",'CFR - XML import'!$A69,1)-2)))","v":0},{"$f":"IF(ISERROR(FIND(BP$3,'CFR - XML import'!$A69)),0,VALUE(MID('CFR - XML import'!$A69,SEARCH(\">\",'CFR - XML import'!$A69,1)+1,SEARCH(\"/\",'CFR - XML import'!$A69,1)-SEARCH(\">\",'CFR - XML import'!$A69,1)-2)))","v":0},{"$f":"IF(ISERROR(FIND(BQ$3,'CFR - XML import'!$A69)),0,VALUE(MID('CFR - XML import'!$A69,SEARCH(\">\",'CFR - XML import'!$A69,1)+1,SEARCH(\"/\",'CFR - XML import'!$A69,1)-SEARCH(\">\",'CFR - XML import'!$A69,1)-2)))","v":0},{"$f":"IF(ISERROR(FIND(BR$3,'CFR - XML import'!$A69)),0,VALUE(MID('CFR - XML import'!$A69,SEARCH(\">\",'CFR - XML import'!$A69,1)+1,SEARCH(\"/\",'CFR - XML import'!$A69,1)-SEARCH(\">\",'CFR - XML import'!$A69,1)-2)))","v":0},{"$f":"IF(ISERROR(FIND(BS$3,'CFR - XML import'!$A69)),0,VALUE(MID('CFR - XML import'!$A69,SEARCH(\">\",'CFR - XML import'!$A69,1)+1,SEARCH(\"/\",'CFR - XML import'!$A69,1)-SEARCH(\">\",'CFR - XML import'!$A69,1)-2)))","v":0},{"$f":"IF(ISERROR(FIND(BT$3,'CFR - XML import'!$A69)),0,VALUE(MID('CFR - XML import'!$A69,SEARCH(\">\",'CFR - XML import'!$A69,1)+1,SEARCH(\"/\",'CFR - XML import'!$A69,1)-SEARCH(\">\",'CFR - XML import'!$A69,1)-2)))","v":0},{"$f":"IF(ISERROR(FIND(BU$3,'CFR - XML import'!$A69)),0,VALUE(MID('CFR - XML import'!$A69,SEARCH(\">\",'CFR - XML import'!$A69,1)+1,SEARCH(\"/\",'CFR - XML import'!$A69,1)-SEARCH(\">\",'CFR - XML import'!$A69,1)-2)))","v":0},{"$f":"IF(ISERROR(FIND(BV$3,'CFR - XML import'!$A69)),0,VALUE(MID('CFR - XML import'!$A69,SEARCH(\">\",'CFR - XML import'!$A69,1)+1,SEARCH(\"/\",'CFR - XML import'!$A69,1)-SEARCH(\">\",'CFR - XML import'!$A69,1)-2)))","v":0},{"$f":"IF(ISERROR(FIND(BW$3,'CFR - XML import'!$A69)),0,VALUE(MID('CFR - XML import'!$A69,SEARCH(\">\",'CFR - XML import'!$A69,1)+1,SEARCH(\"/\",'CFR - XML import'!$A69,1)-SEARCH(\">\",'CFR - XML import'!$A69,1)-2)))","v":0},{"$f":"IF(ISERROR(FIND(BX$3,'CFR - XML import'!$A69)),0,VALUE(MID('CFR - XML import'!$A69,SEARCH(\">\",'CFR - XML import'!$A69,1)+1,SEARCH(\"/\",'CFR - XML import'!$A69,1)-SEARCH(\">\",'CFR - XML import'!$A69,1)-2)))","v":0},{"$f":"IF(ISERROR(FIND(BY$3,'CFR - XML import'!$A69)),0,VALUE(MID('CFR - XML import'!$A69,SEARCH(\">\",'CFR - XML import'!$A69,1)+1,SEARCH(\"/\",'CFR - XML import'!$A69,1)-SEARCH(\">\",'CFR - XML import'!$A69,1)-2)))","v":0},{"$f":"IF(ISERROR(FIND(BZ$3,'CFR - XML import'!$A69)),0,VALUE(MID('CFR - XML import'!$A69,SEARCH(\">\",'CFR - XML import'!$A69,1)+1,SEARCH(\"/\",'CFR - XML import'!$A69,1)-SEARCH(\">\",'CFR - XML import'!$A69,1)-2)))","v":0},null,null,null,null,null,null,{"$f":"IF(ISERROR(IF(MID('CFR - XML import'!$A69,LEN($CF$4)+1,LEN('CFR - XML import'!$A69)-(2*LEN($CF$4)+1))=\"RMMS\",1,IF(MID('CFR - XML import'!$A69,LEN(\"    <InputSystem>\")+1,LEN('CFR - XML import'!$A69)-(LEN(\"    <InputSystem>\")+LEN($CF$4)+1))=\"SIMS\",2,0))),0,IF(MID('CFR - XML import'!$A69,LEN($CF$4)+1,LEN('CFR - XML import'!$A69)-(2*LEN($CF$4)+1))=\"RMMS\",1,IF(MID('CFR - XML import'!$A69,LEN(\"    <InputSystem>\")+1,LEN('CFR - XML import'!$A69)-(LEN(\"    <InputSystem>\")+LEN($CF$4)+1))=\"SIMS\",2,0)))","v":0},{"$f":"IF(ISERROR(FIND(CH$3,'CFR - XML import'!$A69)),0,MID('CFR - XML import'!$A69,SEARCH(\">\",'CFR - XML import'!$A69,1)+1,SEARCH(\"/\",'CFR - XML import'!$A69,1)-SEARCH(\">\",'CFR - XML import'!$A69,1)-2))","v":0},{"$f":"IF(ISERROR(FIND(CI$3,'CFR - XML import'!$A69)),0,MID('CFR - XML import'!$A69,SEARCH(\">\",'CFR - XML import'!$A69,1)+1,SEARCH(\"/\",'CFR - XML import'!$A69,1)-SEARCH(\">\",'CFR - XML import'!$A69,1)-2))","v":0},{"$f":"IF(ISERROR(FIND(CJ$3,'CFR - XML import'!$A69)),0,MID('CFR - XML import'!$A69,SEARCH(\">\",'CFR - XML import'!$A69,1)+1,SEARCH(\"/\",'CFR - XML import'!$A69,1)-SEARCH(\">\",'CFR - XML import'!$A69,1)-2))","v":0},{"$f":"IF(ISERROR(FIND(CK$3,'CFR - XML import'!$A69)),0,MID('CFR - XML import'!$A69,SEARCH(\">\",'CFR - XML import'!$A69,1)+1,SEARCH(\"/\",'CFR - XML import'!$A69,1)-SEARCH(\">\",'CFR - XML import'!$A69,1)-2))","v":0},{"$f":"IF(ISERROR(FIND(CL$3,'CFR - XML import'!$A69)),0,MID('CFR - XML import'!$A69,SEARCH(\">\",'CFR - XML import'!$A69,1)+1,SEARCH(\"/\",'CFR - XML import'!$A69,1)-SEARCH(\">\",'CFR - XML import'!$A69,1)-2))","v":0}]
[{"$f":"IF(AND('CFR - XML import'!A70<>\"\",LEFT('CFR - XML import'!A70,1)<>\"<\",LEFT('CFR - XML import'!A70,3)<>\"  <\",LEFT('CFR - XML import'!A70,5)<>\"    <\",LEFT('CFR - XML import'!A70,7)<>\"      <\",LEFT('CFR - XML import'!A70,9)<>\"        <\",$B$1=\"SIMS\"),'CFR - XML import'!A70,IF(AND(LEFT('CFR - XML import'!A70,9)=\"<Details>\",$B$1=\"RM\"),'CFR - XML import'!A70,\"\"))","v":""},{"$f":"IF(ISERROR(FIND(B$3,'CFR - XML import'!$A70)),0,VALUE(MID('CFR - XML import'!$A70,SEARCH(\">\",'CFR - XML import'!$A70,1)+1,SEARCH(\"/\",'CFR - XML import'!$A70,1)-SEARCH(\">\",'CFR - XML import'!$A70,1)-2)))","v":0},null,{"$f":"IF(ISERROR(FIND(D$3,'CFR - XML import'!$A70)),0,MID('CFR - XML import'!$A70,SEARCH(\">\",'CFR - XML import'!$A70,1)+1,SEARCH(\"/\",'CFR - XML import'!$A70,1)-SEARCH(\">\",'CFR - XML import'!$A70,1)-2))","v":0},{"$f":"IF(ISERROR(FIND(E$3,'CFR - XML import'!$A70)),0,MID('CFR - XML import'!$A70,SEARCH(\">\",'CFR - XML import'!$A70,1)+1,SEARCH(\"/\",'CFR - XML import'!$A70,1)-SEARCH(\">\",'CFR - XML import'!$A70,1)-2))","v":0},{"$f":"IF($B$1=\"SIMS\",IF(ISERROR(FIND(F$3,'CFR - XML import'!$A70)),0,VALUE(MID('CFR - XML import'!$A70,15,10))),IF(ISERROR(FIND(F$3,'CFR - XML import'!$A70)),0,VALUE(MID('CFR - XML import'!$A70,11,10))))","v":"00:00:00"},{"$f":"IF(ISERROR(FIND(G$3,'CFR - XML import'!$A70)),0,VALUE(MID('CFR - XML import'!$A70,SEARCH(\">\",'CFR - XML import'!$A70,1)+1,SEARCH(\"/\",'CFR - XML import'!$A70,1)-SEARCH(\">\",'CFR - XML import'!$A70,1)-2)))","v":0},{"$f":"IF(ISERROR(FIND(H$3,'CFR - XML import'!$A70)),0,VALUE(MID('CFR - XML import'!$A70,SEARCH(\">\",'CFR - XML import'!$A70,1)+1,SEARCH(\"/\",'CFR - XML import'!$A70,1)-SEARCH(\">\",'CFR - XML import'!$A70,1)-2)))","v":0},{"$f":"IF(ISERROR(FIND(I$3,'CFR - XML import'!$A70)),0,VALUE(MID('CFR - XML import'!$A70,SEARCH(\">\",'CFR - XML import'!$A70,1)+1,SEARCH(\"/\",'CFR - XML import'!$A70,1)-SEARCH(\">\",'CFR - XML import'!$A70,1)-2)))","v":0},{"$f":"IF(ISERROR(FIND(J$3,'CFR - XML import'!$A70)),0,VALUE(MID('CFR - XML import'!$A70,SEARCH(\">\",'CFR - XML import'!$A70,1)+1,SEARCH(\"/\",'CFR - XML import'!$A70,1)-SEARCH(\">\",'CFR - XML import'!$A70,1)-2)))","v":0},{"$f":"IF(ISERROR(FIND(K$3,'CFR - XML import'!$A70)),0,VALUE(MID('CFR - XML import'!$A70,SEARCH(\">\",'CFR - XML import'!$A70,1)+1,SEARCH(\"/\",'CFR - XML import'!$A70,1)-SEARCH(\">\",'CFR - XML import'!$A70,1)-2)))","v":0},{"$f":"IF(ISERROR(FIND(L$3,'CFR - XML import'!$A70)),0,VALUE(MID('CFR - XML import'!$A70,SEARCH(\">\",'CFR - XML import'!$A70,1)+1,SEARCH(\"/\",'CFR - XML import'!$A70,1)-SEARCH(\">\",'CFR - XML import'!$A70,1)-2)))","v":0},{"$f":"IF(ISERROR(FIND(M$3,'CFR - XML import'!$A70)),0,VALUE(MID('CFR - XML import'!$A70,SEARCH(\">\",'CFR - XML import'!$A70,1)+1,SEARCH(\"/\",'CFR - XML import'!$A70,1)-SEARCH(\">\",'CFR - XML import'!$A70,1)-2)))","v":0},{"$f":"IF(ISERROR(FIND(N$3,'CFR - XML import'!$A70)),0,VALUE(MID('CFR - XML import'!$A70,SEARCH(\">\",'CFR - XML import'!$A70,1)+1,SEARCH(\"/\",'CFR - XML import'!$A70,1)-SEARCH(\">\",'CFR - XML import'!$A70,1)-2)))","v":0},{"$f":"IF(ISERROR(FIND(O$3,'CFR - XML import'!$A70)),0,VALUE(MID('CFR - XML import'!$A70,SEARCH(\">\",'CFR - XML import'!$A70,1)+1,SEARCH(\"/\",'CFR - XML import'!$A70,1)-SEARCH(\">\",'CFR - XML import'!$A70,1)-2)))","v":0},{"$f":"IF(ISERROR(FIND(P$3,'CFR - XML import'!$A70)),0,VALUE(MID('CFR - XML import'!$A70,SEARCH(\">\",'CFR - XML import'!$A70,1)+1,SEARCH(\"/\",'CFR - XML import'!$A70,1)-SEARCH(\">\",'CFR - XML import'!$A70,1)-2)))","v":0},{"$f":"IF(ISERROR(FIND(Q$3,'CFR - XML import'!$A70)),0,VALUE(MID('CFR - XML import'!$A70,SEARCH(\">\",'CFR - XML import'!$A70,1)+1,SEARCH(\"/\",'CFR - XML import'!$A70,1)-SEARCH(\">\",'CFR - XML import'!$A70,1)-2)))","v":0},{"$f":"IF(ISERROR(FIND(R$3,'CFR - XML import'!$A70)),0,VALUE(MID('CFR - XML import'!$A70,SEARCH(\">\",'CFR - XML import'!$A70,1)+1,SEARCH(\"/\",'CFR - XML import'!$A70,1)-SEARCH(\">\",'CFR - XML import'!$A70,1)-2)))","v":0},{"$f":"IF(ISERROR(FIND(S$3,'CFR - XML import'!$A70)),0,VALUE(MID('CFR - XML import'!$A70,SEARCH(\">\",'CFR - XML import'!$A70,1)+1,SEARCH(\"/\",'CFR - XML import'!$A70,1)-SEARCH(\">\",'CFR - XML import'!$A70,1)-2)))","v":0},{"$f":"IF(ISERROR(FIND(T$3,'CFR - XML import'!$A70)),0,VALUE(MID('CFR - XML import'!$A70,SEARCH(\">\",'CFR - XML import'!$A70,1)+1,SEARCH(\"/\",'CFR - XML import'!$A70,1)-SEARCH(\">\",'CFR - XML import'!$A70,1)-2)))","v":0},{"$f":"IF(ISERROR(FIND(U$3,'CFR - XML import'!$A70)),0,VALUE(MID('CFR - XML import'!$A70,SEARCH(\">\",'CFR - XML import'!$A70,1)+1,SEARCH(\"/\",'CFR - XML import'!$A70,1)-SEARCH(\">\",'CFR - XML import'!$A70,1)-2)))","v":0},{"$f":"IF(ISERROR(FIND(V$3,'CFR - XML import'!$A70)),0,VALUE(MID('CFR - XML import'!$A70,SEARCH(\">\",'CFR - XML import'!$A70,1)+1,SEARCH(\"/\",'CFR - XML import'!$A70,1)-SEARCH(\">\",'CFR - XML import'!$A70,1)-2)))","v":0},{"$f":"IF(ISERROR(FIND(W$3,'CFR - XML import'!$A70)),0,VALUE(MID('CFR - XML import'!$A70,SEARCH(\">\",'CFR - XML import'!$A70,1)+1,SEARCH(\"/\",'CFR - XML import'!$A70,1)-SEARCH(\">\",'CFR - XML import'!$A70,1)-2)))","v":0},null,{"$f":"IF(ISERROR(FIND(Y$3,'CFR - XML import'!$A70)),0,VALUE(MID('CFR - XML import'!$A70,SEARCH(\">\",'CFR - XML import'!$A70,1)+1,SEARCH(\"/\",'CFR - XML import'!$A70,1)-SEARCH(\">\",'CFR - XML import'!$A70,1)-2)))","v":0},{"$f":"IF(ISERROR(FIND(Z$3,'CFR - XML import'!$A70)),0,VALUE(MID('CFR - XML import'!$A70,SEARCH(\">\",'CFR - XML import'!$A70,1)+1,SEARCH(\"/\",'CFR - XML import'!$A70,1)-SEARCH(\">\",'CFR - XML import'!$A70,1)-2)))","v":0},{"$f":"IF(ISERROR(FIND(AA$3,'CFR - XML import'!$A70)),0,VALUE(MID('CFR - XML import'!$A70,SEARCH(\">\",'CFR - XML import'!$A70,1)+1,SEARCH(\"/\",'CFR - XML import'!$A70,1)-SEARCH(\">\",'CFR - XML import'!$A70,1)-2)))","v":0},{"$f":"IF(ISERROR(FIND(AB$3,'CFR - XML import'!$A70)),0,VALUE(MID('CFR - XML import'!$A70,SEARCH(\">\",'CFR - XML import'!$A70,1)+1,SEARCH(\"/\",'CFR - XML import'!$A70,1)-SEARCH(\">\",'CFR - XML import'!$A70,1)-2)))","v":0},{"$f":"IF(ISERROR(FIND(AC$3,'CFR - XML import'!$A70)),0,VALUE(MID('CFR - XML import'!$A70,SEARCH(\">\",'CFR - XML import'!$A70,1)+1,SEARCH(\"/\",'CFR - XML import'!$A70,1)-SEARCH(\">\",'CFR - XML import'!$A70,1)-2)))","v":0},{"$f":"IF(ISERROR(FIND(AD$3,'CFR - XML import'!$A70)),0,VALUE(MID('CFR - XML import'!$A70,SEARCH(\">\",'CFR - XML import'!$A70,1)+1,SEARCH(\"/\",'CFR - XML import'!$A70,1)-SEARCH(\">\",'CFR - XML import'!$A70,1)-2)))","v":0},{"$f":"IF(ISERROR(FIND(AE$3,'CFR - XML import'!$A70)),0,VALUE(MID('CFR - XML import'!$A70,SEARCH(\">\",'CFR - XML import'!$A70,1)+1,SEARCH(\"/\",'CFR - XML import'!$A70,1)-SEARCH(\">\",'CFR - XML import'!$A70,1)-2)))","v":0},{"$f":"IF(ISERROR(FIND(AF$3,'CFR - XML import'!$A70)),0,VALUE(MID('CFR - XML import'!$A70,SEARCH(\">\",'CFR - XML import'!$A70,1)+1,SEARCH(\"/\",'CFR - XML import'!$A70,1)-SEARCH(\">\",'CFR - XML import'!$A70,1)-2)))","v":0},{"$f":"IF(ISERROR(FIND(AG$3,'CFR - XML import'!$A70)),0,VALUE(MID('CFR - XML import'!$A70,SEARCH(\">\",'CFR - XML import'!$A70,1)+1,SEARCH(\"/\",'CFR - XML import'!$A70,1)-SEARCH(\">\",'CFR - XML import'!$A70,1)-2)))","v":0},{"$f":"IF(ISERROR(FIND(AH$3,'CFR - XML import'!$A70)),0,VALUE(MID('CFR - XML import'!$A70,SEARCH(\">\",'CFR - XML import'!$A70,1)+1,SEARCH(\"/\",'CFR - XML import'!$A70,1)-SEARCH(\">\",'CFR - XML import'!$A70,1)-2)))","v":0},{"$f":"IF(ISERROR(FIND(AI$3,'CFR - XML import'!$A70)),0,VALUE(MID('CFR - XML import'!$A70,SEARCH(\">\",'CFR - XML import'!$A70,1)+1,SEARCH(\"/\",'CFR - XML import'!$A70,1)-SEARCH(\">\",'CFR - XML import'!$A70,1)-2)))","v":0},{"$f":"IF(ISERROR(FIND(AJ$3,'CFR - XML import'!$A70)),0,VALUE(MID('CFR - XML import'!$A70,SEARCH(\">\",'CFR - XML import'!$A70,1)+1,SEARCH(\"/\",'CFR - XML import'!$A70,1)-SEARCH(\">\",'CFR - XML import'!$A70,1)-2)))","v":0},{"$f":"IF(ISERROR(FIND(AK$3,'CFR - XML import'!$A70)),0,VALUE(MID('CFR - XML import'!$A70,SEARCH(\">\",'CFR - XML import'!$A70,1)+1,SEARCH(\"/\",'CFR - XML import'!$A70,1)-SEARCH(\">\",'CFR - XML import'!$A70,1)-2)))","v":0},{"$f":"IF(ISERROR(FIND(AL$3,'CFR - XML import'!$A70)),0,VALUE(MID('CFR - XML import'!$A70,SEARCH(\">\",'CFR - XML import'!$A70,1)+1,SEARCH(\"/\",'CFR - XML import'!$A70,1)-SEARCH(\">\",'CFR - XML import'!$A70,1)-2)))","v":0},{"$f":"IF(ISERROR(FIND(AM$3,'CFR - XML import'!$A70)),0,VALUE(MID('CFR - XML import'!$A70,SEARCH(\">\",'CFR - XML import'!$A70,1)+1,SEARCH(\"/\",'CFR - XML import'!$A70,1)-SEARCH(\">\",'CFR - XML import'!$A70,1)-2)))","v":0},{"$f":"IF(ISERROR(FIND(AN$3,'CFR - XML import'!$A70)),0,VALUE(MID('CFR - XML import'!$A70,SEARCH(\">\",'CFR - XML import'!$A70,1)+1,SEARCH(\"/\",'CFR - XML import'!$A70,1)-SEARCH(\">\",'CFR - XML import'!$A70,1)-2)))","v":0},{"$f":"IF(ISERROR(FIND(AO$3,'CFR - XML import'!$A70)),0,VALUE(MID('CFR - XML import'!$A70,SEARCH(\">\",'CFR - XML import'!$A70,1)+1,SEARCH(\"/\",'CFR - XML import'!$A70,1)-SEARCH(\">\",'CFR - XML import'!$A70,1)-2)))","v":0},{"$f":"IF(ISERROR(FIND(AP$3,'CFR - XML import'!$A70)),0,VALUE(MID('CFR - XML import'!$A70,SEARCH(\">\",'CFR - XML import'!$A70,1)+1,SEARCH(\"/\",'CFR - XML import'!$A70,1)-SEARCH(\">\",'CFR - XML import'!$A70,1)-2)))","v":0},{"$f":"IF(ISERROR(FIND(AQ$3,'CFR - XML import'!$A70)),0,VALUE(MID('CFR - XML import'!$A70,SEARCH(\">\",'CFR - XML import'!$A70,1)+1,SEARCH(\"/\",'CFR - XML import'!$A70,1)-SEARCH(\">\",'CFR - XML import'!$A70,1)-2)))","v":0},{"$f":"IF(ISERROR(FIND(AR$3,'CFR - XML import'!$A70)),0,VALUE(MID('CFR - XML import'!$A70,SEARCH(\">\",'CFR - XML import'!$A70,1)+1,SEARCH(\"/\",'CFR - XML import'!$A70,1)-SEARCH(\">\",'CFR - XML import'!$A70,1)-2)))","v":0},{"$f":"IF(ISERROR(FIND(AS$3,'CFR - XML import'!$A70)),0,VALUE(MID('CFR - XML import'!$A70,SEARCH(\">\",'CFR - XML import'!$A70,1)+1,SEARCH(\"/\",'CFR - XML import'!$A70,1)-SEARCH(\">\",'CFR - XML import'!$A70,1)-2)))","v":0},{"$f":"IF(ISERROR(FIND(AT$3,'CFR - XML import'!$A70)),0,VALUE(MID('CFR - XML import'!$A70,SEARCH(\">\",'CFR - XML import'!$A70,1)+1,SEARCH(\"/\",'CFR - XML import'!$A70,1)-SEARCH(\">\",'CFR - XML import'!$A70,1)-2)))","v":0},{"$f":"IF(ISERROR(FIND(AU$3,'CFR - XML import'!$A70)),0,VALUE(MID('CFR - XML import'!$A70,SEARCH(\">\",'CFR - XML import'!$A70,1)+1,SEARCH(\"/\",'CFR - XML import'!$A70,1)-SEARCH(\">\",'CFR - XML import'!$A70,1)-2)))","v":0},{"$f":"IF(ISERROR(FIND(AV$3,'CFR - XML import'!$A70)),0,VALUE(MID('CFR - XML import'!$A70,SEARCH(\">\",'CFR - XML import'!$A70,1)+1,SEARCH(\"/\",'CFR - XML import'!$A70,1)-SEARCH(\">\",'CFR - XML import'!$A70,1)-2)))","v":0},{"$f":"IF(ISERROR(FIND(AW$3,'CFR - XML import'!$A70)),0,VALUE(MID('CFR - XML import'!$A70,SEARCH(\">\",'CFR - XML import'!$A70,1)+1,SEARCH(\"/\",'CFR - XML import'!$A70,1)-SEARCH(\">\",'CFR - XML import'!$A70,1)-2)))","v":0},{"$f":"IF(ISERROR(FIND(AX$3,'CFR - XML import'!$A70)),0,VALUE(MID('CFR - XML import'!$A70,SEARCH(\">\",'CFR - XML import'!$A70,1)+1,SEARCH(\"/\",'CFR - XML import'!$A70,1)-SEARCH(\">\",'CFR - XML import'!$A70,1)-2)))","v":0},{"$f":"IF(ISERROR(FIND(AY$3,'CFR - XML import'!$A70)),0,VALUE(MID('CFR - XML import'!$A70,SEARCH(\">\",'CFR - XML import'!$A70,1)+1,SEARCH(\"/\",'CFR - XML import'!$A70,1)-SEARCH(\">\",'CFR - XML import'!$A70,1)-2)))","v":0},{"$f":"IF(ISERROR(FIND(AZ$3,'CFR - XML import'!$A70)),0,VALUE(MID('CFR - XML import'!$A70,SEARCH(\">\",'CFR - XML import'!$A70,1)+1,SEARCH(\"/\",'CFR - XML import'!$A70,1)-SEARCH(\">\",'CFR - XML import'!$A70,1)-2)))","v":0},{"$f":"IF(ISERROR(FIND(BA$3,'CFR - XML import'!$A70)),0,VALUE(MID('CFR - XML import'!$A70,SEARCH(\">\",'CFR - XML import'!$A70,1)+1,SEARCH(\"/\",'CFR - XML import'!$A70,1)-SEARCH(\">\",'CFR - XML import'!$A70,1)-2)))","v":0},{"$f":"IF(ISERROR(FIND(BB$3,'CFR - XML import'!$A70)),0,VALUE(MID('CFR - XML import'!$A70,SEARCH(\">\",'CFR - XML import'!$A70,1)+1,SEARCH(\"/\",'CFR - XML import'!$A70,1)-SEARCH(\">\",'CFR - XML import'!$A70,1)-2)))","v":0},{"$f":"IF(ISERROR(FIND(BC$3,'CFR - XML import'!$A70)),0,VALUE(MID('CFR - XML import'!$A70,SEARCH(\">\",'CFR - XML import'!$A70,1)+1,SEARCH(\"/\",'CFR - XML import'!$A70,1)-SEARCH(\">\",'CFR - XML import'!$A70,1)-2)))","v":0},{"$f":"IF(ISERROR(FIND(BD$3,'CFR - XML import'!$A70)),0,VALUE(MID('CFR - XML import'!$A70,SEARCH(\">\",'CFR - XML import'!$A70,1)+1,SEARCH(\"/\",'CFR - XML import'!$A70,1)-SEARCH(\">\",'CFR - XML import'!$A70,1)-2)))","v":0},{"$f":"IF(ISERROR(FIND(BE$3,'CFR - XML import'!$A70)),0,VALUE(MID('CFR - XML import'!$A70,SEARCH(\">\",'CFR - XML import'!$A70,1)+1,SEARCH(\"/\",'CFR - XML import'!$A70,1)-SEARCH(\">\",'CFR - XML import'!$A70,1)-2)))","v":0},{"$f":"IF(ISERROR(FIND(BF$3,'CFR - XML import'!$A70)),0,VALUE(MID('CFR - XML import'!$A70,SEARCH(\">\",'CFR - XML import'!$A70,1)+1,SEARCH(\"/\",'CFR - XML import'!$A70,1)-SEARCH(\">\",'CFR - XML import'!$A70,1)-2)))","v":0},{"$f":"IF(ISERROR(FIND(BG$3,'CFR - XML import'!$A70)),0,VALUE(MID('CFR - XML import'!$A70,SEARCH(\">\",'CFR - XML import'!$A70,1)+1,SEARCH(\"/\",'CFR - XML import'!$A70,1)-SEARCH(\">\",'CFR - XML import'!$A70,1)-2)))","v":0},{"$f":"IF(ISERROR(FIND(BH$3,'CFR - XML import'!$A70)),0,VALUE(MID('CFR - XML import'!$A70,SEARCH(\">\",'CFR - XML import'!$A70,1)+1,SEARCH(\"/\",'CFR - XML import'!$A70,1)-SEARCH(\">\",'CFR - XML import'!$A70,1)-2)))","v":0},{"$f":"IF(ISERROR(FIND(BI$3,'CFR - XML import'!$A70)),0,VALUE(MID('CFR - XML import'!$A70,SEARCH(\">\",'CFR - XML import'!$A70,1)+1,SEARCH(\"/\",'CFR - XML import'!$A70,1)-SEARCH(\">\",'CFR - XML import'!$A70,1)-2)))","v":0},{"$f":"IF(ISERROR(FIND(BJ$3,'CFR - XML import'!$A70)),0,VALUE(MID('CFR - XML import'!$A70,SEARCH(\">\",'CFR - XML import'!$A70,1)+1,SEARCH(\"/\",'CFR - XML import'!$A70,1)-SEARCH(\">\",'CFR - XML import'!$A70,1)-2)))","v":0},{"$f":"IF(ISERROR(FIND(BK$3,'CFR - XML import'!$A70)),0,VALUE(MID('CFR - XML import'!$A70,SEARCH(\">\",'CFR - XML import'!$A70,1)+1,SEARCH(\"/\",'CFR - XML import'!$A70,1)-SEARCH(\">\",'CFR - XML import'!$A70,1)-2)))","v":0},{"$f":"IF(ISERROR(FIND(BL$3,'CFR - XML import'!$A70)),0,VALUE(MID('CFR - XML import'!$A70,SEARCH(\">\",'CFR - XML import'!$A70,1)+1,SEARCH(\"/\",'CFR - XML import'!$A70,1)-SEARCH(\">\",'CFR - XML import'!$A70,1)-2)))","v":0},{"$f":"IF(ISERROR(FIND(BM$3,'CFR - XML import'!$A70)),0,VALUE(MID('CFR - XML import'!$A70,SEARCH(\">\",'CFR - XML import'!$A70,1)+1,SEARCH(\"/\",'CFR - XML import'!$A70,1)-SEARCH(\">\",'CFR - XML import'!$A70,1)-2)))","v":0},{"$f":"IF(ISERROR(FIND(BN$3,'CFR - XML import'!$A70)),0,VALUE(MID('CFR - XML import'!$A70,SEARCH(\">\",'CFR - XML import'!$A70,1)+1,SEARCH(\"/\",'CFR - XML import'!$A70,1)-SEARCH(\">\",'CFR - XML import'!$A70,1)-2)))","v":0},{"$f":"IF(ISERROR(FIND(BO$3,'CFR - XML import'!$A70)),0,VALUE(MID('CFR - XML import'!$A70,SEARCH(\">\",'CFR - XML import'!$A70,1)+1,SEARCH(\"/\",'CFR - XML import'!$A70,1)-SEARCH(\">\",'CFR - XML import'!$A70,1)-2)))","v":0},{"$f":"IF(ISERROR(FIND(BP$3,'CFR - XML import'!$A70)),0,VALUE(MID('CFR - XML import'!$A70,SEARCH(\">\",'CFR - XML import'!$A70,1)+1,SEARCH(\"/\",'CFR - XML import'!$A70,1)-SEARCH(\">\",'CFR - XML import'!$A70,1)-2)))","v":0},{"$f":"IF(ISERROR(FIND(BQ$3,'CFR - XML import'!$A70)),0,VALUE(MID('CFR - XML import'!$A70,SEARCH(\">\",'CFR - XML import'!$A70,1)+1,SEARCH(\"/\",'CFR - XML import'!$A70,1)-SEARCH(\">\",'CFR - XML import'!$A70,1)-2)))","v":0},{"$f":"IF(ISERROR(FIND(BR$3,'CFR - XML import'!$A70)),0,VALUE(MID('CFR - XML import'!$A70,SEARCH(\">\",'CFR - XML import'!$A70,1)+1,SEARCH(\"/\",'CFR - XML import'!$A70,1)-SEARCH(\">\",'CFR - XML import'!$A70,1)-2)))","v":0},{"$f":"IF(ISERROR(FIND(BS$3,'CFR - XML import'!$A70)),0,VALUE(MID('CFR - XML import'!$A70,SEARCH(\">\",'CFR - XML import'!$A70,1)+1,SEARCH(\"/\",'CFR - XML import'!$A70,1)-SEARCH(\">\",'CFR - XML import'!$A70,1)-2)))","v":0},{"$f":"IF(ISERROR(FIND(BT$3,'CFR - XML import'!$A70)),0,VALUE(MID('CFR - XML import'!$A70,SEARCH(\">\",'CFR - XML import'!$A70,1)+1,SEARCH(\"/\",'CFR - XML import'!$A70,1)-SEARCH(\">\",'CFR - XML import'!$A70,1)-2)))","v":0},{"$f":"IF(ISERROR(FIND(BU$3,'CFR - XML import'!$A70)),0,VALUE(MID('CFR - XML import'!$A70,SEARCH(\">\",'CFR - XML import'!$A70,1)+1,SEARCH(\"/\",'CFR - XML import'!$A70,1)-SEARCH(\">\",'CFR - XML import'!$A70,1)-2)))","v":0},{"$f":"IF(ISERROR(FIND(BV$3,'CFR - XML import'!$A70)),0,VALUE(MID('CFR - XML import'!$A70,SEARCH(\">\",'CFR - XML import'!$A70,1)+1,SEARCH(\"/\",'CFR - XML import'!$A70,1)-SEARCH(\">\",'CFR - XML import'!$A70,1)-2)))","v":0},{"$f":"IF(ISERROR(FIND(BW$3,'CFR - XML import'!$A70)),0,VALUE(MID('CFR - XML import'!$A70,SEARCH(\">\",'CFR - XML import'!$A70,1)+1,SEARCH(\"/\",'CFR - XML import'!$A70,1)-SEARCH(\">\",'CFR - XML import'!$A70,1)-2)))","v":0},{"$f":"IF(ISERROR(FIND(BX$3,'CFR - XML import'!$A70)),0,VALUE(MID('CFR - XML import'!$A70,SEARCH(\">\",'CFR - XML import'!$A70,1)+1,SEARCH(\"/\",'CFR - XML import'!$A70,1)-SEARCH(\">\",'CFR - XML import'!$A70,1)-2)))","v":0},{"$f":"IF(ISERROR(FIND(BY$3,'CFR - XML import'!$A70)),0,VALUE(MID('CFR - XML import'!$A70,SEARCH(\">\",'CFR - XML import'!$A70,1)+1,SEARCH(\"/\",'CFR - XML import'!$A70,1)-SEARCH(\">\",'CFR - XML import'!$A70,1)-2)))","v":0},{"$f":"IF(ISERROR(FIND(BZ$3,'CFR - XML import'!$A70)),0,VALUE(MID('CFR - XML import'!$A70,SEARCH(\">\",'CFR - XML import'!$A70,1)+1,SEARCH(\"/\",'CFR - XML import'!$A70,1)-SEARCH(\">\",'CFR - XML import'!$A70,1)-2)))","v":0},null,null,null,null,null,null,{"$f":"IF(ISERROR(IF(MID('CFR - XML import'!$A70,LEN($CF$4)+1,LEN('CFR - XML import'!$A70)-(2*LEN($CF$4)+1))=\"RMMS\",1,IF(MID('CFR - XML import'!$A70,LEN(\"    <InputSystem>\")+1,LEN('CFR - XML import'!$A70)-(LEN(\"    <InputSystem>\")+LEN($CF$4)+1))=\"SIMS\",2,0))),0,IF(MID('CFR - XML import'!$A70,LEN($CF$4)+1,LEN('CFR - XML import'!$A70)-(2*LEN($CF$4)+1))=\"RMMS\",1,IF(MID('CFR - XML import'!$A70,LEN(\"    <InputSystem>\")+1,LEN('CFR - XML import'!$A70)-(LEN(\"    <InputSystem>\")+LEN($CF$4)+1))=\"SIMS\",2,0)))","v":0},{"$f":"IF(ISERROR(FIND(CH$3,'CFR - XML import'!$A70)),0,MID('CFR - XML import'!$A70,SEARCH(\">\",'CFR - XML import'!$A70,1)+1,SEARCH(\"/\",'CFR - XML import'!$A70,1)-SEARCH(\">\",'CFR - XML import'!$A70,1)-2))","v":0},{"$f":"IF(ISERROR(FIND(CI$3,'CFR - XML import'!$A70)),0,MID('CFR - XML import'!$A70,SEARCH(\">\",'CFR - XML import'!$A70,1)+1,SEARCH(\"/\",'CFR - XML import'!$A70,1)-SEARCH(\">\",'CFR - XML import'!$A70,1)-2))","v":0},{"$f":"IF(ISERROR(FIND(CJ$3,'CFR - XML import'!$A70)),0,MID('CFR - XML import'!$A70,SEARCH(\">\",'CFR - XML import'!$A70,1)+1,SEARCH(\"/\",'CFR - XML import'!$A70,1)-SEARCH(\">\",'CFR - XML import'!$A70,1)-2))","v":0},{"$f":"IF(ISERROR(FIND(CK$3,'CFR - XML import'!$A70)),0,MID('CFR - XML import'!$A70,SEARCH(\">\",'CFR - XML import'!$A70,1)+1,SEARCH(\"/\",'CFR - XML import'!$A70,1)-SEARCH(\">\",'CFR - XML import'!$A70,1)-2))","v":0},{"$f":"IF(ISERROR(FIND(CL$3,'CFR - XML import'!$A70)),0,MID('CFR - XML import'!$A70,SEARCH(\">\",'CFR - XML import'!$A70,1)+1,SEARCH(\"/\",'CFR - XML import'!$A70,1)-SEARCH(\">\",'CFR - XML import'!$A70,1)-2))","v":0}]
[{"$f":"IF(AND('CFR - XML import'!A71<>\"\",LEFT('CFR - XML import'!A71,1)<>\"<\",LEFT('CFR - XML import'!A71,3)<>\"  <\",LEFT('CFR - XML import'!A71,5)<>\"    <\",LEFT('CFR - XML import'!A71,7)<>\"      <\",LEFT('CFR - XML import'!A71,9)<>\"        <\",$B$1=\"SIMS\"),'CFR - XML import'!A71,IF(AND(LEFT('CFR - XML import'!A71,9)=\"<Details>\",$B$1=\"RM\"),'CFR - XML import'!A71,\"\"))","v":""},{"$f":"IF(ISERROR(FIND(B$3,'CFR - XML import'!$A71)),0,VALUE(MID('CFR - XML import'!$A71,SEARCH(\">\",'CFR - XML import'!$A71,1)+1,SEARCH(\"/\",'CFR - XML import'!$A71,1)-SEARCH(\">\",'CFR - XML import'!$A71,1)-2)))","v":0},null,{"$f":"IF(ISERROR(FIND(D$3,'CFR - XML import'!$A71)),0,MID('CFR - XML import'!$A71,SEARCH(\">\",'CFR - XML import'!$A71,1)+1,SEARCH(\"/\",'CFR - XML import'!$A71,1)-SEARCH(\">\",'CFR - XML import'!$A71,1)-2))","v":0},{"$f":"IF(ISERROR(FIND(E$3,'CFR - XML import'!$A71)),0,MID('CFR - XML import'!$A71,SEARCH(\">\",'CFR - XML import'!$A71,1)+1,SEARCH(\"/\",'CFR - XML import'!$A71,1)-SEARCH(\">\",'CFR - XML import'!$A71,1)-2))","v":0},{"$f":"IF($B$1=\"SIMS\",IF(ISERROR(FIND(F$3,'CFR - XML import'!$A71)),0,VALUE(MID('CFR - XML import'!$A71,15,10))),IF(ISERROR(FIND(F$3,'CFR - XML import'!$A71)),0,VALUE(MID('CFR - XML import'!$A71,11,10))))","v":"00:00:00"},{"$f":"IF(ISERROR(FIND(G$3,'CFR - XML import'!$A71)),0,VALUE(MID('CFR - XML import'!$A71,SEARCH(\">\",'CFR - XML import'!$A71,1)+1,SEARCH(\"/\",'CFR - XML import'!$A71,1)-SEARCH(\">\",'CFR - XML import'!$A71,1)-2)))","v":0},{"$f":"IF(ISERROR(FIND(H$3,'CFR - XML import'!$A71)),0,VALUE(MID('CFR - XML import'!$A71,SEARCH(\">\",'CFR - XML import'!$A71,1)+1,SEARCH(\"/\",'CFR - XML import'!$A71,1)-SEARCH(\">\",'CFR - XML import'!$A71,1)-2)))","v":0},{"$f":"IF(ISERROR(FIND(I$3,'CFR - XML import'!$A71)),0,VALUE(MID('CFR - XML import'!$A71,SEARCH(\">\",'CFR - XML import'!$A71,1)+1,SEARCH(\"/\",'CFR - XML import'!$A71,1)-SEARCH(\">\",'CFR - XML import'!$A71,1)-2)))","v":0},{"$f":"IF(ISERROR(FIND(J$3,'CFR - XML import'!$A71)),0,VALUE(MID('CFR - XML import'!$A71,SEARCH(\">\",'CFR - XML import'!$A71,1)+1,SEARCH(\"/\",'CFR - XML import'!$A71,1)-SEARCH(\">\",'CFR - XML import'!$A71,1)-2)))","v":0},{"$f":"IF(ISERROR(FIND(K$3,'CFR - XML import'!$A71)),0,VALUE(MID('CFR - XML import'!$A71,SEARCH(\">\",'CFR - XML import'!$A71,1)+1,SEARCH(\"/\",'CFR - XML import'!$A71,1)-SEARCH(\">\",'CFR - XML import'!$A71,1)-2)))","v":0},{"$f":"IF(ISERROR(FIND(L$3,'CFR - XML import'!$A71)),0,VALUE(MID('CFR - XML import'!$A71,SEARCH(\">\",'CFR - XML import'!$A71,1)+1,SEARCH(\"/\",'CFR - XML import'!$A71,1)-SEARCH(\">\",'CFR - XML import'!$A71,1)-2)))","v":0},{"$f":"IF(ISERROR(FIND(M$3,'CFR - XML import'!$A71)),0,VALUE(MID('CFR - XML import'!$A71,SEARCH(\">\",'CFR - XML import'!$A71,1)+1,SEARCH(\"/\",'CFR - XML import'!$A71,1)-SEARCH(\">\",'CFR - XML import'!$A71,1)-2)))","v":0},{"$f":"IF(ISERROR(FIND(N$3,'CFR - XML import'!$A71)),0,VALUE(MID('CFR - XML import'!$A71,SEARCH(\">\",'CFR - XML import'!$A71,1)+1,SEARCH(\"/\",'CFR - XML import'!$A71,1)-SEARCH(\">\",'CFR - XML import'!$A71,1)-2)))","v":0},{"$f":"IF(ISERROR(FIND(O$3,'CFR - XML import'!$A71)),0,VALUE(MID('CFR - XML import'!$A71,SEARCH(\">\",'CFR - XML import'!$A71,1)+1,SEARCH(\"/\",'CFR - XML import'!$A71,1)-SEARCH(\">\",'CFR - XML import'!$A71,1)-2)))","v":0},{"$f":"IF(ISERROR(FIND(P$3,'CFR - XML import'!$A71)),0,VALUE(MID('CFR - XML import'!$A71,SEARCH(\">\",'CFR - XML import'!$A71,1)+1,SEARCH(\"/\",'CFR - XML import'!$A71,1)-SEARCH(\">\",'CFR - XML import'!$A71,1)-2)))","v":0},{"$f":"IF(ISERROR(FIND(Q$3,'CFR - XML import'!$A71)),0,VALUE(MID('CFR - XML import'!$A71,SEARCH(\">\",'CFR - XML import'!$A71,1)+1,SEARCH(\"/\",'CFR - XML import'!$A71,1)-SEARCH(\">\",'CFR - XML import'!$A71,1)-2)))","v":0},{"$f":"IF(ISERROR(FIND(R$3,'CFR - XML import'!$A71)),0,VALUE(MID('CFR - XML import'!$A71,SEARCH(\">\",'CFR - XML import'!$A71,1)+1,SEARCH(\"/\",'CFR - XML import'!$A71,1)-SEARCH(\">\",'CFR - XML import'!$A71,1)-2)))","v":0},{"$f":"IF(ISERROR(FIND(S$3,'CFR - XML import'!$A71)),0,VALUE(MID('CFR - XML import'!$A71,SEARCH(\">\",'CFR - XML import'!$A71,1)+1,SEARCH(\"/\",'CFR - XML import'!$A71,1)-SEARCH(\">\",'CFR - XML import'!$A71,1)-2)))","v":0},{"$f":"IF(ISERROR(FIND(T$3,'CFR - XML import'!$A71)),0,VALUE(MID('CFR - XML import'!$A71,SEARCH(\">\",'CFR - XML import'!$A71,1)+1,SEARCH(\"/\",'CFR - XML import'!$A71,1)-SEARCH(\">\",'CFR - XML import'!$A71,1)-2)))","v":0},{"$f":"IF(ISERROR(FIND(U$3,'CFR - XML import'!$A71)),0,VALUE(MID('CFR - XML import'!$A71,SEARCH(\">\",'CFR - XML import'!$A71,1)+1,SEARCH(\"/\",'CFR - XML import'!$A71,1)-SEARCH(\">\",'CFR - XML import'!$A71,1)-2)))","v":0},{"$f":"IF(ISERROR(FIND(V$3,'CFR - XML import'!$A71)),0,VALUE(MID('CFR - XML import'!$A71,SEARCH(\">\",'CFR - XML import'!$A71,1)+1,SEARCH(\"/\",'CFR - XML import'!$A71,1)-SEARCH(\">\",'CFR - XML import'!$A71,1)-2)))","v":0},{"$f":"IF(ISERROR(FIND(W$3,'CFR - XML import'!$A71)),0,VALUE(MID('CFR - XML import'!$A71,SEARCH(\">\",'CFR - XML import'!$A71,1)+1,SEARCH(\"/\",'CFR - XML import'!$A71,1)-SEARCH(\">\",'CFR - XML import'!$A71,1)-2)))","v":0},null,{"$f":"IF(ISERROR(FIND(Y$3,'CFR - XML import'!$A71)),0,VALUE(MID('CFR - XML import'!$A71,SEARCH(\">\",'CFR - XML import'!$A71,1)+1,SEARCH(\"/\",'CFR - XML import'!$A71,1)-SEARCH(\">\",'CFR - XML import'!$A71,1)-2)))","v":0},{"$f":"IF(ISERROR(FIND(Z$3,'CFR - XML import'!$A71)),0,VALUE(MID('CFR - XML import'!$A71,SEARCH(\">\",'CFR - XML import'!$A71,1)+1,SEARCH(\"/\",'CFR - XML import'!$A71,1)-SEARCH(\">\",'CFR - XML import'!$A71,1)-2)))","v":0},{"$f":"IF(ISERROR(FIND(AA$3,'CFR - XML import'!$A71)),0,VALUE(MID('CFR - XML import'!$A71,SEARCH(\">\",'CFR - XML import'!$A71,1)+1,SEARCH(\"/\",'CFR - XML import'!$A71,1)-SEARCH(\">\",'CFR - XML import'!$A71,1)-2)))","v":0},{"$f":"IF(ISERROR(FIND(AB$3,'CFR - XML import'!$A71)),0,VALUE(MID('CFR - XML import'!$A71,SEARCH(\">\",'CFR - XML import'!$A71,1)+1,SEARCH(\"/\",'CFR - XML import'!$A71,1)-SEARCH(\">\",'CFR - XML import'!$A71,1)-2)))","v":0},{"$f":"IF(ISERROR(FIND(AC$3,'CFR - XML import'!$A71)),0,VALUE(MID('CFR - XML import'!$A71,SEARCH(\">\",'CFR - XML import'!$A71,1)+1,SEARCH(\"/\",'CFR - XML import'!$A71,1)-SEARCH(\">\",'CFR - XML import'!$A71,1)-2)))","v":0},{"$f":"IF(ISERROR(FIND(AD$3,'CFR - XML import'!$A71)),0,VALUE(MID('CFR - XML import'!$A71,SEARCH(\">\",'CFR - XML import'!$A71,1)+1,SEARCH(\"/\",'CFR - XML import'!$A71,1)-SEARCH(\">\",'CFR - XML import'!$A71,1)-2)))","v":0},{"$f":"IF(ISERROR(FIND(AE$3,'CFR - XML import'!$A71)),0,VALUE(MID('CFR - XML import'!$A71,SEARCH(\">\",'CFR - XML import'!$A71,1)+1,SEARCH(\"/\",'CFR - XML import'!$A71,1)-SEARCH(\">\",'CFR - XML import'!$A71,1)-2)))","v":0},{"$f":"IF(ISERROR(FIND(AF$3,'CFR - XML import'!$A71)),0,VALUE(MID('CFR - XML import'!$A71,SEARCH(\">\",'CFR - XML import'!$A71,1)+1,SEARCH(\"/\",'CFR - XML import'!$A71,1)-SEARCH(\">\",'CFR - XML import'!$A71,1)-2)))","v":0},{"$f":"IF(ISERROR(FIND(AG$3,'CFR - XML import'!$A71)),0,VALUE(MID('CFR - XML import'!$A71,SEARCH(\">\",'CFR - XML import'!$A71,1)+1,SEARCH(\"/\",'CFR - XML import'!$A71,1)-SEARCH(\">\",'CFR - XML import'!$A71,1)-2)))","v":0},{"$f":"IF(ISERROR(FIND(AH$3,'CFR - XML import'!$A71)),0,VALUE(MID('CFR - XML import'!$A71,SEARCH(\">\",'CFR - XML import'!$A71,1)+1,SEARCH(\"/\",'CFR - XML import'!$A71,1)-SEARCH(\">\",'CFR - XML import'!$A71,1)-2)))","v":0},{"$f":"IF(ISERROR(FIND(AI$3,'CFR - XML import'!$A71)),0,VALUE(MID('CFR - XML import'!$A71,SEARCH(\">\",'CFR - XML import'!$A71,1)+1,SEARCH(\"/\",'CFR - XML import'!$A71,1)-SEARCH(\">\",'CFR - XML import'!$A71,1)-2)))","v":0},{"$f":"IF(ISERROR(FIND(AJ$3,'CFR - XML import'!$A71)),0,VALUE(MID('CFR - XML import'!$A71,SEARCH(\">\",'CFR - XML import'!$A71,1)+1,SEARCH(\"/\",'CFR - XML import'!$A71,1)-SEARCH(\">\",'CFR - XML import'!$A71,1)-2)))","v":0},{"$f":"IF(ISERROR(FIND(AK$3,'CFR - XML import'!$A71)),0,VALUE(MID('CFR - XML import'!$A71,SEARCH(\">\",'CFR - XML import'!$A71,1)+1,SEARCH(\"/\",'CFR - XML import'!$A71,1)-SEARCH(\">\",'CFR - XML import'!$A71,1)-2)))","v":0},{"$f":"IF(ISERROR(FIND(AL$3,'CFR - XML import'!$A71)),0,VALUE(MID('CFR - XML import'!$A71,SEARCH(\">\",'CFR - XML import'!$A71,1)+1,SEARCH(\"/\",'CFR - XML import'!$A71,1)-SEARCH(\">\",'CFR - XML import'!$A71,1)-2)))","v":0},{"$f":"IF(ISERROR(FIND(AM$3,'CFR - XML import'!$A71)),0,VALUE(MID('CFR - XML import'!$A71,SEARCH(\">\",'CFR - XML import'!$A71,1)+1,SEARCH(\"/\",'CFR - XML import'!$A71,1)-SEARCH(\">\",'CFR - XML import'!$A71,1)-2)))","v":0},{"$f":"IF(ISERROR(FIND(AN$3,'CFR - XML import'!$A71)),0,VALUE(MID('CFR - XML import'!$A71,SEARCH(\">\",'CFR - XML import'!$A71,1)+1,SEARCH(\"/\",'CFR - XML import'!$A71,1)-SEARCH(\">\",'CFR - XML import'!$A71,1)-2)))","v":0},{"$f":"IF(ISERROR(FIND(AO$3,'CFR - XML import'!$A71)),0,VALUE(MID('CFR - XML import'!$A71,SEARCH(\">\",'CFR - XML import'!$A71,1)+1,SEARCH(\"/\",'CFR - XML import'!$A71,1)-SEARCH(\">\",'CFR - XML import'!$A71,1)-2)))","v":0},{"$f":"IF(ISERROR(FIND(AP$3,'CFR - XML import'!$A71)),0,VALUE(MID('CFR - XML import'!$A71,SEARCH(\">\",'CFR - XML import'!$A71,1)+1,SEARCH(\"/\",'CFR - XML import'!$A71,1)-SEARCH(\">\",'CFR - XML import'!$A71,1)-2)))","v":0},{"$f":"IF(ISERROR(FIND(AQ$3,'CFR - XML import'!$A71)),0,VALUE(MID('CFR - XML import'!$A71,SEARCH(\">\",'CFR - XML import'!$A71,1)+1,SEARCH(\"/\",'CFR - XML import'!$A71,1)-SEARCH(\">\",'CFR - XML import'!$A71,1)-2)))","v":0},{"$f":"IF(ISERROR(FIND(AR$3,'CFR - XML import'!$A71)),0,VALUE(MID('CFR - XML import'!$A71,SEARCH(\">\",'CFR - XML import'!$A71,1)+1,SEARCH(\"/\",'CFR - XML import'!$A71,1)-SEARCH(\">\",'CFR - XML import'!$A71,1)-2)))","v":0},{"$f":"IF(ISERROR(FIND(AS$3,'CFR - XML import'!$A71)),0,VALUE(MID('CFR - XML import'!$A71,SEARCH(\">\",'CFR - XML import'!$A71,1)+1,SEARCH(\"/\",'CFR - XML import'!$A71,1)-SEARCH(\">\",'CFR - XML import'!$A71,1)-2)))","v":0},{"$f":"IF(ISERROR(FIND(AT$3,'CFR - XML import'!$A71)),0,VALUE(MID('CFR - XML import'!$A71,SEARCH(\">\",'CFR - XML import'!$A71,1)+1,SEARCH(\"/\",'CFR - XML import'!$A71,1)-SEARCH(\">\",'CFR - XML import'!$A71,1)-2)))","v":0},{"$f":"IF(ISERROR(FIND(AU$3,'CFR - XML import'!$A71)),0,VALUE(MID('CFR - XML import'!$A71,SEARCH(\">\",'CFR - XML import'!$A71,1)+1,SEARCH(\"/\",'CFR - XML import'!$A71,1)-SEARCH(\">\",'CFR - XML import'!$A71,1)-2)))","v":0},{"$f":"IF(ISERROR(FIND(AV$3,'CFR - XML import'!$A71)),0,VALUE(MID('CFR - XML import'!$A71,SEARCH(\">\",'CFR - XML import'!$A71,1)+1,SEARCH(\"/\",'CFR - XML import'!$A71,1)-SEARCH(\">\",'CFR - XML import'!$A71,1)-2)))","v":0},{"$f":"IF(ISERROR(FIND(AW$3,'CFR - XML import'!$A71)),0,VALUE(MID('CFR - XML import'!$A71,SEARCH(\">\",'CFR - XML import'!$A71,1)+1,SEARCH(\"/\",'CFR - XML import'!$A71,1)-SEARCH(\">\",'CFR - XML import'!$A71,1)-2)))","v":0},{"$f":"IF(ISERROR(FIND(AX$3,'CFR - XML import'!$A71)),0,VALUE(MID('CFR - XML import'!$A71,SEARCH(\">\",'CFR - XML import'!$A71,1)+1,SEARCH(\"/\",'CFR - XML import'!$A71,1)-SEARCH(\">\",'CFR - XML import'!$A71,1)-2)))","v":0},{"$f":"IF(ISERROR(FIND(AY$3,'CFR - XML import'!$A71)),0,VALUE(MID('CFR - XML import'!$A71,SEARCH(\">\",'CFR - XML import'!$A71,1)+1,SEARCH(\"/\",'CFR - XML import'!$A71,1)-SEARCH(\">\",'CFR - XML import'!$A71,1)-2)))","v":0},{"$f":"IF(ISERROR(FIND(AZ$3,'CFR - XML import'!$A71)),0,VALUE(MID('CFR - XML import'!$A71,SEARCH(\">\",'CFR - XML import'!$A71,1)+1,SEARCH(\"/\",'CFR - XML import'!$A71,1)-SEARCH(\">\",'CFR - XML import'!$A71,1)-2)))","v":0},{"$f":"IF(ISERROR(FIND(BA$3,'CFR - XML import'!$A71)),0,VALUE(MID('CFR - XML import'!$A71,SEARCH(\">\",'CFR - XML import'!$A71,1)+1,SEARCH(\"/\",'CFR - XML import'!$A71,1)-SEARCH(\">\",'CFR - XML import'!$A71,1)-2)))","v":0},{"$f":"IF(ISERROR(FIND(BB$3,'CFR - XML import'!$A71)),0,VALUE(MID('CFR - XML import'!$A71,SEARCH(\">\",'CFR - XML import'!$A71,1)+1,SEARCH(\"/\",'CFR - XML import'!$A71,1)-SEARCH(\">\",'CFR - XML import'!$A71,1)-2)))","v":0},{"$f":"IF(ISERROR(FIND(BC$3,'CFR - XML import'!$A71)),0,VALUE(MID('CFR - XML import'!$A71,SEARCH(\">\",'CFR - XML import'!$A71,1)+1,SEARCH(\"/\",'CFR - XML import'!$A71,1)-SEARCH(\">\",'CFR - XML import'!$A71,1)-2)))","v":0},{"$f":"IF(ISERROR(FIND(BD$3,'CFR - XML import'!$A71)),0,VALUE(MID('CFR - XML import'!$A71,SEARCH(\">\",'CFR - XML import'!$A71,1)+1,SEARCH(\"/\",'CFR - XML import'!$A71,1)-SEARCH(\">\",'CFR - XML import'!$A71,1)-2)))","v":0},{"$f":"IF(ISERROR(FIND(BE$3,'CFR - XML import'!$A71)),0,VALUE(MID('CFR - XML import'!$A71,SEARCH(\">\",'CFR - XML import'!$A71,1)+1,SEARCH(\"/\",'CFR - XML import'!$A71,1)-SEARCH(\">\",'CFR - XML import'!$A71,1)-2)))","v":0},{"$f":"IF(ISERROR(FIND(BF$3,'CFR - XML import'!$A71)),0,VALUE(MID('CFR - XML import'!$A71,SEARCH(\">\",'CFR - XML import'!$A71,1)+1,SEARCH(\"/\",'CFR - XML import'!$A71,1)-SEARCH(\">\",'CFR - XML import'!$A71,1)-2)))","v":0},{"$f":"IF(ISERROR(FIND(BG$3,'CFR - XML import'!$A71)),0,VALUE(MID('CFR - XML import'!$A71,SEARCH(\">\",'CFR - XML import'!$A71,1)+1,SEARCH(\"/\",'CFR - XML import'!$A71,1)-SEARCH(\">\",'CFR - XML import'!$A71,1)-2)))","v":0},{"$f":"IF(ISERROR(FIND(BH$3,'CFR - XML import'!$A71)),0,VALUE(MID('CFR - XML import'!$A71,SEARCH(\">\",'CFR - XML import'!$A71,1)+1,SEARCH(\"/\",'CFR - XML import'!$A71,1)-SEARCH(\">\",'CFR - XML import'!$A71,1)-2)))","v":0},{"$f":"IF(ISERROR(FIND(BI$3,'CFR - XML import'!$A71)),0,VALUE(MID('CFR - XML import'!$A71,SEARCH(\">\",'CFR - XML import'!$A71,1)+1,SEARCH(\"/\",'CFR - XML import'!$A71,1)-SEARCH(\">\",'CFR - XML import'!$A71,1)-2)))","v":0},{"$f":"IF(ISERROR(FIND(BJ$3,'CFR - XML import'!$A71)),0,VALUE(MID('CFR - XML import'!$A71,SEARCH(\">\",'CFR - XML import'!$A71,1)+1,SEARCH(\"/\",'CFR - XML import'!$A71,1)-SEARCH(\">\",'CFR - XML import'!$A71,1)-2)))","v":0},{"$f":"IF(ISERROR(FIND(BK$3,'CFR - XML import'!$A71)),0,VALUE(MID('CFR - XML import'!$A71,SEARCH(\">\",'CFR - XML import'!$A71,1)+1,SEARCH(\"/\",'CFR - XML import'!$A71,1)-SEARCH(\">\",'CFR - XML import'!$A71,1)-2)))","v":0},{"$f":"IF(ISERROR(FIND(BL$3,'CFR - XML import'!$A71)),0,VALUE(MID('CFR - XML import'!$A71,SEARCH(\">\",'CFR - XML import'!$A71,1)+1,SEARCH(\"/\",'CFR - XML import'!$A71,1)-SEARCH(\">\",'CFR - XML import'!$A71,1)-2)))","v":0},{"$f":"IF(ISERROR(FIND(BM$3,'CFR - XML import'!$A71)),0,VALUE(MID('CFR - XML import'!$A71,SEARCH(\">\",'CFR - XML import'!$A71,1)+1,SEARCH(\"/\",'CFR - XML import'!$A71,1)-SEARCH(\">\",'CFR - XML import'!$A71,1)-2)))","v":0},{"$f":"IF(ISERROR(FIND(BN$3,'CFR - XML import'!$A71)),0,VALUE(MID('CFR - XML import'!$A71,SEARCH(\">\",'CFR - XML import'!$A71,1)+1,SEARCH(\"/\",'CFR - XML import'!$A71,1)-SEARCH(\">\",'CFR - XML import'!$A71,1)-2)))","v":0},{"$f":"IF(ISERROR(FIND(BO$3,'CFR - XML import'!$A71)),0,VALUE(MID('CFR - XML import'!$A71,SEARCH(\">\",'CFR - XML import'!$A71,1)+1,SEARCH(\"/\",'CFR - XML import'!$A71,1)-SEARCH(\">\",'CFR - XML import'!$A71,1)-2)))","v":0},{"$f":"IF(ISERROR(FIND(BP$3,'CFR - XML import'!$A71)),0,VALUE(MID('CFR - XML import'!$A71,SEARCH(\">\",'CFR - XML import'!$A71,1)+1,SEARCH(\"/\",'CFR - XML import'!$A71,1)-SEARCH(\">\",'CFR - XML import'!$A71,1)-2)))","v":0},{"$f":"IF(ISERROR(FIND(BQ$3,'CFR - XML import'!$A71)),0,VALUE(MID('CFR - XML import'!$A71,SEARCH(\">\",'CFR - XML import'!$A71,1)+1,SEARCH(\"/\",'CFR - XML import'!$A71,1)-SEARCH(\">\",'CFR - XML import'!$A71,1)-2)))","v":0},{"$f":"IF(ISERROR(FIND(BR$3,'CFR - XML import'!$A71)),0,VALUE(MID('CFR - XML import'!$A71,SEARCH(\">\",'CFR - XML import'!$A71,1)+1,SEARCH(\"/\",'CFR - XML import'!$A71,1)-SEARCH(\">\",'CFR - XML import'!$A71,1)-2)))","v":0},{"$f":"IF(ISERROR(FIND(BS$3,'CFR - XML import'!$A71)),0,VALUE(MID('CFR - XML import'!$A71,SEARCH(\">\",'CFR - XML import'!$A71,1)+1,SEARCH(\"/\",'CFR - XML import'!$A71,1)-SEARCH(\">\",'CFR - XML import'!$A71,1)-2)))","v":0},{"$f":"IF(ISERROR(FIND(BT$3,'CFR - XML import'!$A71)),0,VALUE(MID('CFR - XML import'!$A71,SEARCH(\">\",'CFR - XML import'!$A71,1)+1,SEARCH(\"/\",'CFR - XML import'!$A71,1)-SEARCH(\">\",'CFR - XML import'!$A71,1)-2)))","v":0},{"$f":"IF(ISERROR(FIND(BU$3,'CFR - XML import'!$A71)),0,VALUE(MID('CFR - XML import'!$A71,SEARCH(\">\",'CFR - XML import'!$A71,1)+1,SEARCH(\"/\",'CFR - XML import'!$A71,1)-SEARCH(\">\",'CFR - XML import'!$A71,1)-2)))","v":0},{"$f":"IF(ISERROR(FIND(BV$3,'CFR - XML import'!$A71)),0,VALUE(MID('CFR - XML import'!$A71,SEARCH(\">\",'CFR - XML import'!$A71,1)+1,SEARCH(\"/\",'CFR - XML import'!$A71,1)-SEARCH(\">\",'CFR - XML import'!$A71,1)-2)))","v":0},{"$f":"IF(ISERROR(FIND(BW$3,'CFR - XML import'!$A71)),0,VALUE(MID('CFR - XML import'!$A71,SEARCH(\">\",'CFR - XML import'!$A71,1)+1,SEARCH(\"/\",'CFR - XML import'!$A71,1)-SEARCH(\">\",'CFR - XML import'!$A71,1)-2)))","v":0},{"$f":"IF(ISERROR(FIND(BX$3,'CFR - XML import'!$A71)),0,VALUE(MID('CFR - XML import'!$A71,SEARCH(\">\",'CFR - XML import'!$A71,1)+1,SEARCH(\"/\",'CFR - XML import'!$A71,1)-SEARCH(\">\",'CFR - XML import'!$A71,1)-2)))","v":0},{"$f":"IF(ISERROR(FIND(BY$3,'CFR - XML import'!$A71)),0,VALUE(MID('CFR - XML import'!$A71,SEARCH(\">\",'CFR - XML import'!$A71,1)+1,SEARCH(\"/\",'CFR - XML import'!$A71,1)-SEARCH(\">\",'CFR - XML import'!$A71,1)-2)))","v":0},{"$f":"IF(ISERROR(FIND(BZ$3,'CFR - XML import'!$A71)),0,VALUE(MID('CFR - XML import'!$A71,SEARCH(\">\",'CFR - XML import'!$A71,1)+1,SEARCH(\"/\",'CFR - XML import'!$A71,1)-SEARCH(\">\",'CFR - XML import'!$A71,1)-2)))","v":0},null,null,null,null,null,null,{"$f":"IF(ISERROR(IF(MID('CFR - XML import'!$A71,LEN($CF$4)+1,LEN('CFR - XML import'!$A71)-(2*LEN($CF$4)+1))=\"RMMS\",1,IF(MID('CFR - XML import'!$A71,LEN(\"    <InputSystem>\")+1,LEN('CFR - XML import'!$A71)-(LEN(\"    <InputSystem>\")+LEN($CF$4)+1))=\"SIMS\",2,0))),0,IF(MID('CFR - XML import'!$A71,LEN($CF$4)+1,LEN('CFR - XML import'!$A71)-(2*LEN($CF$4)+1))=\"RMMS\",1,IF(MID('CFR - XML import'!$A71,LEN(\"    <InputSystem>\")+1,LEN('CFR - XML import'!$A71)-(LEN(\"    <InputSystem>\")+LEN($CF$4)+1))=\"SIMS\",2,0)))","v":0},{"$f":"IF(ISERROR(FIND(CH$3,'CFR - XML import'!$A71)),0,MID('CFR - XML import'!$A71,SEARCH(\">\",'CFR - XML import'!$A71,1)+1,SEARCH(\"/\",'CFR - XML import'!$A71,1)-SEARCH(\">\",'CFR - XML import'!$A71,1)-2))","v":0},{"$f":"IF(ISERROR(FIND(CI$3,'CFR - XML import'!$A71)),0,MID('CFR - XML import'!$A71,SEARCH(\">\",'CFR - XML import'!$A71,1)+1,SEARCH(\"/\",'CFR - XML import'!$A71,1)-SEARCH(\">\",'CFR - XML import'!$A71,1)-2))","v":0},{"$f":"IF(ISERROR(FIND(CJ$3,'CFR - XML import'!$A71)),0,MID('CFR - XML import'!$A71,SEARCH(\">\",'CFR - XML import'!$A71,1)+1,SEARCH(\"/\",'CFR - XML import'!$A71,1)-SEARCH(\">\",'CFR - XML import'!$A71,1)-2))","v":0},{"$f":"IF(ISERROR(FIND(CK$3,'CFR - XML import'!$A71)),0,MID('CFR - XML import'!$A71,SEARCH(\">\",'CFR - XML import'!$A71,1)+1,SEARCH(\"/\",'CFR - XML import'!$A71,1)-SEARCH(\">\",'CFR - XML import'!$A71,1)-2))","v":0},{"$f":"IF(ISERROR(FIND(CL$3,'CFR - XML import'!$A71)),0,MID('CFR - XML import'!$A71,SEARCH(\">\",'CFR - XML import'!$A71,1)+1,SEARCH(\"/\",'CFR - XML import'!$A71,1)-SEARCH(\">\",'CFR - XML import'!$A71,1)-2))","v":0}]
[{"$f":"IF(AND('CFR - XML import'!A72<>\"\",LEFT('CFR - XML import'!A72,1)<>\"<\",LEFT('CFR - XML import'!A72,3)<>\"  <\",LEFT('CFR - XML import'!A72,5)<>\"    <\",LEFT('CFR - XML import'!A72,7)<>\"      <\",LEFT('CFR - XML import'!A72,9)<>\"        <\",$B$1=\"SIMS\"),'CFR - XML import'!A72,IF(AND(LEFT('CFR - XML import'!A72,9)=\"<Details>\",$B$1=\"RM\"),'CFR - XML import'!A72,\"\"))","v":""},{"$f":"IF(ISERROR(FIND(B$3,'CFR - XML import'!$A72)),0,VALUE(MID('CFR - XML import'!$A72,SEARCH(\">\",'CFR - XML import'!$A72,1)+1,SEARCH(\"/\",'CFR - XML import'!$A72,1)-SEARCH(\">\",'CFR - XML import'!$A72,1)-2)))","v":0},null,{"$f":"IF(ISERROR(FIND(D$3,'CFR - XML import'!$A72)),0,MID('CFR - XML import'!$A72,SEARCH(\">\",'CFR - XML import'!$A72,1)+1,SEARCH(\"/\",'CFR - XML import'!$A72,1)-SEARCH(\">\",'CFR - XML import'!$A72,1)-2))","v":0},{"$f":"IF(ISERROR(FIND(E$3,'CFR - XML import'!$A72)),0,MID('CFR - XML import'!$A72,SEARCH(\">\",'CFR - XML import'!$A72,1)+1,SEARCH(\"/\",'CFR - XML import'!$A72,1)-SEARCH(\">\",'CFR - XML import'!$A72,1)-2))","v":0},{"$f":"IF($B$1=\"SIMS\",IF(ISERROR(FIND(F$3,'CFR - XML import'!$A72)),0,VALUE(MID('CFR - XML import'!$A72,15,10))),IF(ISERROR(FIND(F$3,'CFR - XML import'!$A72)),0,VALUE(MID('CFR - XML import'!$A72,11,10))))","v":"00:00:00"},{"$f":"IF(ISERROR(FIND(G$3,'CFR - XML import'!$A72)),0,VALUE(MID('CFR - XML import'!$A72,SEARCH(\">\",'CFR - XML import'!$A72,1)+1,SEARCH(\"/\",'CFR - XML import'!$A72,1)-SEARCH(\">\",'CFR - XML import'!$A72,1)-2)))","v":0},{"$f":"IF(ISERROR(FIND(H$3,'CFR - XML import'!$A72)),0,VALUE(MID('CFR - XML import'!$A72,SEARCH(\">\",'CFR - XML import'!$A72,1)+1,SEARCH(\"/\",'CFR - XML import'!$A72,1)-SEARCH(\">\",'CFR - XML import'!$A72,1)-2)))","v":0},{"$f":"IF(ISERROR(FIND(I$3,'CFR - XML import'!$A72)),0,VALUE(MID('CFR - XML import'!$A72,SEARCH(\">\",'CFR - XML import'!$A72,1)+1,SEARCH(\"/\",'CFR - XML import'!$A72,1)-SEARCH(\">\",'CFR - XML import'!$A72,1)-2)))","v":0},{"$f":"IF(ISERROR(FIND(J$3,'CFR - XML import'!$A72)),0,VALUE(MID('CFR - XML import'!$A72,SEARCH(\">\",'CFR - XML import'!$A72,1)+1,SEARCH(\"/\",'CFR - XML import'!$A72,1)-SEARCH(\">\",'CFR - XML import'!$A72,1)-2)))","v":0},{"$f":"IF(ISERROR(FIND(K$3,'CFR - XML import'!$A72)),0,VALUE(MID('CFR - XML import'!$A72,SEARCH(\">\",'CFR - XML import'!$A72,1)+1,SEARCH(\"/\",'CFR - XML import'!$A72,1)-SEARCH(\">\",'CFR - XML import'!$A72,1)-2)))","v":0},{"$f":"IF(ISERROR(FIND(L$3,'CFR - XML import'!$A72)),0,VALUE(MID('CFR - XML import'!$A72,SEARCH(\">\",'CFR - XML import'!$A72,1)+1,SEARCH(\"/\",'CFR - XML import'!$A72,1)-SEARCH(\">\",'CFR - XML import'!$A72,1)-2)))","v":0},{"$f":"IF(ISERROR(FIND(M$3,'CFR - XML import'!$A72)),0,VALUE(MID('CFR - XML import'!$A72,SEARCH(\">\",'CFR - XML import'!$A72,1)+1,SEARCH(\"/\",'CFR - XML import'!$A72,1)-SEARCH(\">\",'CFR - XML import'!$A72,1)-2)))","v":0},{"$f":"IF(ISERROR(FIND(N$3,'CFR - XML import'!$A72)),0,VALUE(MID('CFR - XML import'!$A72,SEARCH(\">\",'CFR - XML import'!$A72,1)+1,SEARCH(\"/\",'CFR - XML import'!$A72,1)-SEARCH(\">\",'CFR - XML import'!$A72,1)-2)))","v":0},{"$f":"IF(ISERROR(FIND(O$3,'CFR - XML import'!$A72)),0,VALUE(MID('CFR - XML import'!$A72,SEARCH(\">\",'CFR - XML import'!$A72,1)+1,SEARCH(\"/\",'CFR - XML import'!$A72,1)-SEARCH(\">\",'CFR - XML import'!$A72,1)-2)))","v":0},{"$f":"IF(ISERROR(FIND(P$3,'CFR - XML import'!$A72)),0,VALUE(MID('CFR - XML import'!$A72,SEARCH(\">\",'CFR - XML import'!$A72,1)+1,SEARCH(\"/\",'CFR - XML import'!$A72,1)-SEARCH(\">\",'CFR - XML import'!$A72,1)-2)))","v":0},{"$f":"IF(ISERROR(FIND(Q$3,'CFR - XML import'!$A72)),0,VALUE(MID('CFR - XML import'!$A72,SEARCH(\">\",'CFR - XML import'!$A72,1)+1,SEARCH(\"/\",'CFR - XML import'!$A72,1)-SEARCH(\">\",'CFR - XML import'!$A72,1)-2)))","v":0},{"$f":"IF(ISERROR(FIND(R$3,'CFR - XML import'!$A72)),0,VALUE(MID('CFR - XML import'!$A72,SEARCH(\">\",'CFR - XML import'!$A72,1)+1,SEARCH(\"/\",'CFR - XML import'!$A72,1)-SEARCH(\">\",'CFR - XML import'!$A72,1)-2)))","v":0},{"$f":"IF(ISERROR(FIND(S$3,'CFR - XML import'!$A72)),0,VALUE(MID('CFR - XML import'!$A72,SEARCH(\">\",'CFR - XML import'!$A72,1)+1,SEARCH(\"/\",'CFR - XML import'!$A72,1)-SEARCH(\">\",'CFR - XML import'!$A72,1)-2)))","v":0},{"$f":"IF(ISERROR(FIND(T$3,'CFR - XML import'!$A72)),0,VALUE(MID('CFR - XML import'!$A72,SEARCH(\">\",'CFR - XML import'!$A72,1)+1,SEARCH(\"/\",'CFR - XML import'!$A72,1)-SEARCH(\">\",'CFR - XML import'!$A72,1)-2)))","v":0},{"$f":"IF(ISERROR(FIND(U$3,'CFR - XML import'!$A72)),0,VALUE(MID('CFR - XML import'!$A72,SEARCH(\">\",'CFR - XML import'!$A72,1)+1,SEARCH(\"/\",'CFR - XML import'!$A72,1)-SEARCH(\">\",'CFR - XML import'!$A72,1)-2)))","v":0},{"$f":"IF(ISERROR(FIND(V$3,'CFR - XML import'!$A72)),0,VALUE(MID('CFR - XML import'!$A72,SEARCH(\">\",'CFR - XML import'!$A72,1)+1,SEARCH(\"/\",'CFR - XML import'!$A72,1)-SEARCH(\">\",'CFR - XML import'!$A72,1)-2)))","v":0},{"$f":"IF(ISERROR(FIND(W$3,'CFR - XML import'!$A72)),0,VALUE(MID('CFR - XML import'!$A72,SEARCH(\">\",'CFR - XML import'!$A72,1)+1,SEARCH(\"/\",'CFR - XML import'!$A72,1)-SEARCH(\">\",'CFR - XML import'!$A72,1)-2)))","v":0},null,{"$f":"IF(ISERROR(FIND(Y$3,'CFR - XML import'!$A72)),0,VALUE(MID('CFR - XML import'!$A72,SEARCH(\">\",'CFR - XML import'!$A72,1)+1,SEARCH(\"/\",'CFR - XML import'!$A72,1)-SEARCH(\">\",'CFR - XML import'!$A72,1)-2)))","v":0},{"$f":"IF(ISERROR(FIND(Z$3,'CFR - XML import'!$A72)),0,VALUE(MID('CFR - XML import'!$A72,SEARCH(\">\",'CFR - XML import'!$A72,1)+1,SEARCH(\"/\",'CFR - XML import'!$A72,1)-SEARCH(\">\",'CFR - XML import'!$A72,1)-2)))","v":0},{"$f":"IF(ISERROR(FIND(AA$3,'CFR - XML import'!$A72)),0,VALUE(MID('CFR - XML import'!$A72,SEARCH(\">\",'CFR - XML import'!$A72,1)+1,SEARCH(\"/\",'CFR - XML import'!$A72,1)-SEARCH(\">\",'CFR - XML import'!$A72,1)-2)))","v":0},{"$f":"IF(ISERROR(FIND(AB$3,'CFR - XML import'!$A72)),0,VALUE(MID('CFR - XML import'!$A72,SEARCH(\">\",'CFR - XML import'!$A72,1)+1,SEARCH(\"/\",'CFR - XML import'!$A72,1)-SEARCH(\">\",'CFR - XML import'!$A72,1)-2)))","v":0},{"$f":"IF(ISERROR(FIND(AC$3,'CFR - XML import'!$A72)),0,VALUE(MID('CFR - XML import'!$A72,SEARCH(\">\",'CFR - XML import'!$A72,1)+1,SEARCH(\"/\",'CFR - XML import'!$A72,1)-SEARCH(\">\",'CFR - XML import'!$A72,1)-2)))","v":0},{"$f":"IF(ISERROR(FIND(AD$3,'CFR - XML import'!$A72)),0,VALUE(MID('CFR - XML import'!$A72,SEARCH(\">\",'CFR - XML import'!$A72,1)+1,SEARCH(\"/\",'CFR - XML import'!$A72,1)-SEARCH(\">\",'CFR - XML import'!$A72,1)-2)))","v":0},{"$f":"IF(ISERROR(FIND(AE$3,'CFR - XML import'!$A72)),0,VALUE(MID('CFR - XML import'!$A72,SEARCH(\">\",'CFR - XML import'!$A72,1)+1,SEARCH(\"/\",'CFR - XML import'!$A72,1)-SEARCH(\">\",'CFR - XML import'!$A72,1)-2)))","v":0},{"$f":"IF(ISERROR(FIND(AF$3,'CFR - XML import'!$A72)),0,VALUE(MID('CFR - XML import'!$A72,SEARCH(\">\",'CFR - XML import'!$A72,1)+1,SEARCH(\"/\",'CFR - XML import'!$A72,1)-SEARCH(\">\",'CFR - XML import'!$A72,1)-2)))","v":0},{"$f":"IF(ISERROR(FIND(AG$3,'CFR - XML import'!$A72)),0,VALUE(MID('CFR - XML import'!$A72,SEARCH(\">\",'CFR - XML import'!$A72,1)+1,SEARCH(\"/\",'CFR - XML import'!$A72,1)-SEARCH(\">\",'CFR - XML import'!$A72,1)-2)))","v":0},{"$f":"IF(ISERROR(FIND(AH$3,'CFR - XML import'!$A72)),0,VALUE(MID('CFR - XML import'!$A72,SEARCH(\">\",'CFR - XML import'!$A72,1)+1,SEARCH(\"/\",'CFR - XML import'!$A72,1)-SEARCH(\">\",'CFR - XML import'!$A72,1)-2)))","v":0},{"$f":"IF(ISERROR(FIND(AI$3,'CFR - XML import'!$A72)),0,VALUE(MID('CFR - XML import'!$A72,SEARCH(\">\",'CFR - XML import'!$A72,1)+1,SEARCH(\"/\",'CFR - XML import'!$A72,1)-SEARCH(\">\",'CFR - XML import'!$A72,1)-2)))","v":0},{"$f":"IF(ISERROR(FIND(AJ$3,'CFR - XML import'!$A72)),0,VALUE(MID('CFR - XML import'!$A72,SEARCH(\">\",'CFR - XML import'!$A72,1)+1,SEARCH(\"/\",'CFR - XML import'!$A72,1)-SEARCH(\">\",'CFR - XML import'!$A72,1)-2)))","v":0},{"$f":"IF(ISERROR(FIND(AK$3,'CFR - XML import'!$A72)),0,VALUE(MID('CFR - XML import'!$A72,SEARCH(\">\",'CFR - XML import'!$A72,1)+1,SEARCH(\"/\",'CFR - XML import'!$A72,1)-SEARCH(\">\",'CFR - XML import'!$A72,1)-2)))","v":0},{"$f":"IF(ISERROR(FIND(AL$3,'CFR - XML import'!$A72)),0,VALUE(MID('CFR - XML import'!$A72,SEARCH(\">\",'CFR - XML import'!$A72,1)+1,SEARCH(\"/\",'CFR - XML import'!$A72,1)-SEARCH(\">\",'CFR - XML import'!$A72,1)-2)))","v":0},{"$f":"IF(ISERROR(FIND(AM$3,'CFR - XML import'!$A72)),0,VALUE(MID('CFR - XML import'!$A72,SEARCH(\">\",'CFR - XML import'!$A72,1)+1,SEARCH(\"/\",'CFR - XML import'!$A72,1)-SEARCH(\">\",'CFR - XML import'!$A72,1)-2)))","v":0},{"$f":"IF(ISERROR(FIND(AN$3,'CFR - XML import'!$A72)),0,VALUE(MID('CFR - XML import'!$A72,SEARCH(\">\",'CFR - XML import'!$A72,1)+1,SEARCH(\"/\",'CFR - XML import'!$A72,1)-SEARCH(\">\",'CFR - XML import'!$A72,1)-2)))","v":0},{"$f":"IF(ISERROR(FIND(AO$3,'CFR - XML import'!$A72)),0,VALUE(MID('CFR - XML import'!$A72,SEARCH(\">\",'CFR - XML import'!$A72,1)+1,SEARCH(\"/\",'CFR - XML import'!$A72,1)-SEARCH(\">\",'CFR - XML import'!$A72,1)-2)))","v":0},{"$f":"IF(ISERROR(FIND(AP$3,'CFR - XML import'!$A72)),0,VALUE(MID('CFR - XML import'!$A72,SEARCH(\">\",'CFR - XML import'!$A72,1)+1,SEARCH(\"/\",'CFR - XML import'!$A72,1)-SEARCH(\">\",'CFR - XML import'!$A72,1)-2)))","v":0},{"$f":"IF(ISERROR(FIND(AQ$3,'CFR - XML import'!$A72)),0,VALUE(MID('CFR - XML import'!$A72,SEARCH(\">\",'CFR - XML import'!$A72,1)+1,SEARCH(\"/\",'CFR - XML import'!$A72,1)-SEARCH(\">\",'CFR - XML import'!$A72,1)-2)))","v":0},{"$f":"IF(ISERROR(FIND(AR$3,'CFR - XML import'!$A72)),0,VALUE(MID('CFR - XML import'!$A72,SEARCH(\">\",'CFR - XML import'!$A72,1)+1,SEARCH(\"/\",'CFR - XML import'!$A72,1)-SEARCH(\">\",'CFR - XML import'!$A72,1)-2)))","v":0},{"$f":"IF(ISERROR(FIND(AS$3,'CFR - XML import'!$A72)),0,VALUE(MID('CFR - XML import'!$A72,SEARCH(\">\",'CFR - XML import'!$A72,1)+1,SEARCH(\"/\",'CFR - XML import'!$A72,1)-SEARCH(\">\",'CFR - XML import'!$A72,1)-2)))","v":0},{"$f":"IF(ISERROR(FIND(AT$3,'CFR - XML import'!$A72)),0,VALUE(MID('CFR - XML import'!$A72,SEARCH(\">\",'CFR - XML import'!$A72,1)+1,SEARCH(\"/\",'CFR - XML import'!$A72,1)-SEARCH(\">\",'CFR - XML import'!$A72,1)-2)))","v":0},{"$f":"IF(ISERROR(FIND(AU$3,'CFR - XML import'!$A72)),0,VALUE(MID('CFR - XML import'!$A72,SEARCH(\">\",'CFR - XML import'!$A72,1)+1,SEARCH(\"/\",'CFR - XML import'!$A72,1)-SEARCH(\">\",'CFR - XML import'!$A72,1)-2)))","v":0},{"$f":"IF(ISERROR(FIND(AV$3,'CFR - XML import'!$A72)),0,VALUE(MID('CFR - XML import'!$A72,SEARCH(\">\",'CFR - XML import'!$A72,1)+1,SEARCH(\"/\",'CFR - XML import'!$A72,1)-SEARCH(\">\",'CFR - XML import'!$A72,1)-2)))","v":0},{"$f":"IF(ISERROR(FIND(AW$3,'CFR - XML import'!$A72)),0,VALUE(MID('CFR - XML import'!$A72,SEARCH(\">\",'CFR - XML import'!$A72,1)+1,SEARCH(\"/\",'CFR - XML import'!$A72,1)-SEARCH(\">\",'CFR - XML import'!$A72,1)-2)))","v":0},{"$f":"IF(ISERROR(FIND(AX$3,'CFR - XML import'!$A72)),0,VALUE(MID('CFR - XML import'!$A72,SEARCH(\">\",'CFR - XML import'!$A72,1)+1,SEARCH(\"/\",'CFR - XML import'!$A72,1)-SEARCH(\">\",'CFR - XML import'!$A72,1)-2)))","v":0},{"$f":"IF(ISERROR(FIND(AY$3,'CFR - XML import'!$A72)),0,VALUE(MID('CFR - XML import'!$A72,SEARCH(\">\",'CFR - XML import'!$A72,1)+1,SEARCH(\"/\",'CFR - XML import'!$A72,1)-SEARCH(\">\",'CFR - XML import'!$A72,1)-2)))","v":0},{"$f":"IF(ISERROR(FIND(AZ$3,'CFR - XML import'!$A72)),0,VALUE(MID('CFR - XML import'!$A72,SEARCH(\">\",'CFR - XML import'!$A72,1)+1,SEARCH(\"/\",'CFR - XML import'!$A72,1)-SEARCH(\">\",'CFR - XML import'!$A72,1)-2)))","v":0},{"$f":"IF(ISERROR(FIND(BA$3,'CFR - XML import'!$A72)),0,VALUE(MID('CFR - XML import'!$A72,SEARCH(\">\",'CFR - XML import'!$A72,1)+1,SEARCH(\"/\",'CFR - XML import'!$A72,1)-SEARCH(\">\",'CFR - XML import'!$A72,1)-2)))","v":0},{"$f":"IF(ISERROR(FIND(BB$3,'CFR - XML import'!$A72)),0,VALUE(MID('CFR - XML import'!$A72,SEARCH(\">\",'CFR - XML import'!$A72,1)+1,SEARCH(\"/\",'CFR - XML import'!$A72,1)-SEARCH(\">\",'CFR - XML import'!$A72,1)-2)))","v":0},{"$f":"IF(ISERROR(FIND(BC$3,'CFR - XML import'!$A72)),0,VALUE(MID('CFR - XML import'!$A72,SEARCH(\">\",'CFR - XML import'!$A72,1)+1,SEARCH(\"/\",'CFR - XML import'!$A72,1)-SEARCH(\">\",'CFR - XML import'!$A72,1)-2)))","v":0},{"$f":"IF(ISERROR(FIND(BD$3,'CFR - XML import'!$A72)),0,VALUE(MID('CFR - XML import'!$A72,SEARCH(\">\",'CFR - XML import'!$A72,1)+1,SEARCH(\"/\",'CFR - XML import'!$A72,1)-SEARCH(\">\",'CFR - XML import'!$A72,1)-2)))","v":0},{"$f":"IF(ISERROR(FIND(BE$3,'CFR - XML import'!$A72)),0,VALUE(MID('CFR - XML import'!$A72,SEARCH(\">\",'CFR - XML import'!$A72,1)+1,SEARCH(\"/\",'CFR - XML import'!$A72,1)-SEARCH(\">\",'CFR - XML import'!$A72,1)-2)))","v":0},{"$f":"IF(ISERROR(FIND(BF$3,'CFR - XML import'!$A72)),0,VALUE(MID('CFR - XML import'!$A72,SEARCH(\">\",'CFR - XML import'!$A72,1)+1,SEARCH(\"/\",'CFR - XML import'!$A72,1)-SEARCH(\">\",'CFR - XML import'!$A72,1)-2)))","v":0},{"$f":"IF(ISERROR(FIND(BG$3,'CFR - XML import'!$A72)),0,VALUE(MID('CFR - XML import'!$A72,SEARCH(\">\",'CFR - XML import'!$A72,1)+1,SEARCH(\"/\",'CFR - XML import'!$A72,1)-SEARCH(\">\",'CFR - XML import'!$A72,1)-2)))","v":0},{"$f":"IF(ISERROR(FIND(BH$3,'CFR - XML import'!$A72)),0,VALUE(MID('CFR - XML import'!$A72,SEARCH(\">\",'CFR - XML import'!$A72,1)+1,SEARCH(\"/\",'CFR - XML import'!$A72,1)-SEARCH(\">\",'CFR - XML import'!$A72,1)-2)))","v":0},{"$f":"IF(ISERROR(FIND(BI$3,'CFR - XML import'!$A72)),0,VALUE(MID('CFR - XML import'!$A72,SEARCH(\">\",'CFR - XML import'!$A72,1)+1,SEARCH(\"/\",'CFR - XML import'!$A72,1)-SEARCH(\">\",'CFR - XML import'!$A72,1)-2)))","v":0},{"$f":"IF(ISERROR(FIND(BJ$3,'CFR - XML import'!$A72)),0,VALUE(MID('CFR - XML import'!$A72,SEARCH(\">\",'CFR - XML import'!$A72,1)+1,SEARCH(\"/\",'CFR - XML import'!$A72,1)-SEARCH(\">\",'CFR - XML import'!$A72,1)-2)))","v":0},{"$f":"IF(ISERROR(FIND(BK$3,'CFR - XML import'!$A72)),0,VALUE(MID('CFR - XML import'!$A72,SEARCH(\">\",'CFR - XML import'!$A72,1)+1,SEARCH(\"/\",'CFR - XML import'!$A72,1)-SEARCH(\">\",'CFR - XML import'!$A72,1)-2)))","v":0},{"$f":"IF(ISERROR(FIND(BL$3,'CFR - XML import'!$A72)),0,VALUE(MID('CFR - XML import'!$A72,SEARCH(\">\",'CFR - XML import'!$A72,1)+1,SEARCH(\"/\",'CFR - XML import'!$A72,1)-SEARCH(\">\",'CFR - XML import'!$A72,1)-2)))","v":0},{"$f":"IF(ISERROR(FIND(BM$3,'CFR - XML import'!$A72)),0,VALUE(MID('CFR - XML import'!$A72,SEARCH(\">\",'CFR - XML import'!$A72,1)+1,SEARCH(\"/\",'CFR - XML import'!$A72,1)-SEARCH(\">\",'CFR - XML import'!$A72,1)-2)))","v":0},{"$f":"IF(ISERROR(FIND(BN$3,'CFR - XML import'!$A72)),0,VALUE(MID('CFR - XML import'!$A72,SEARCH(\">\",'CFR - XML import'!$A72,1)+1,SEARCH(\"/\",'CFR - XML import'!$A72,1)-SEARCH(\">\",'CFR - XML import'!$A72,1)-2)))","v":0},{"$f":"IF(ISERROR(FIND(BO$3,'CFR - XML import'!$A72)),0,VALUE(MID('CFR - XML import'!$A72,SEARCH(\">\",'CFR - XML import'!$A72,1)+1,SEARCH(\"/\",'CFR - XML import'!$A72,1)-SEARCH(\">\",'CFR - XML import'!$A72,1)-2)))","v":0},{"$f":"IF(ISERROR(FIND(BP$3,'CFR - XML import'!$A72)),0,VALUE(MID('CFR - XML import'!$A72,SEARCH(\">\",'CFR - XML import'!$A72,1)+1,SEARCH(\"/\",'CFR - XML import'!$A72,1)-SEARCH(\">\",'CFR - XML import'!$A72,1)-2)))","v":0},{"$f":"IF(ISERROR(FIND(BQ$3,'CFR - XML import'!$A72)),0,VALUE(MID('CFR - XML import'!$A72,SEARCH(\">\",'CFR - XML import'!$A72,1)+1,SEARCH(\"/\",'CFR - XML import'!$A72,1)-SEARCH(\">\",'CFR - XML import'!$A72,1)-2)))","v":0},{"$f":"IF(ISERROR(FIND(BR$3,'CFR - XML import'!$A72)),0,VALUE(MID('CFR - XML import'!$A72,SEARCH(\">\",'CFR - XML import'!$A72,1)+1,SEARCH(\"/\",'CFR - XML import'!$A72,1)-SEARCH(\">\",'CFR - XML import'!$A72,1)-2)))","v":0},{"$f":"IF(ISERROR(FIND(BS$3,'CFR - XML import'!$A72)),0,VALUE(MID('CFR - XML import'!$A72,SEARCH(\">\",'CFR - XML import'!$A72,1)+1,SEARCH(\"/\",'CFR - XML import'!$A72,1)-SEARCH(\">\",'CFR - XML import'!$A72,1)-2)))","v":0},{"$f":"IF(ISERROR(FIND(BT$3,'CFR - XML import'!$A72)),0,VALUE(MID('CFR - XML import'!$A72,SEARCH(\">\",'CFR - XML import'!$A72,1)+1,SEARCH(\"/\",'CFR - XML import'!$A72,1)-SEARCH(\">\",'CFR - XML import'!$A72,1)-2)))","v":0},{"$f":"IF(ISERROR(FIND(BU$3,'CFR - XML import'!$A72)),0,VALUE(MID('CFR - XML import'!$A72,SEARCH(\">\",'CFR - XML import'!$A72,1)+1,SEARCH(\"/\",'CFR - XML import'!$A72,1)-SEARCH(\">\",'CFR - XML import'!$A72,1)-2)))","v":0},{"$f":"IF(ISERROR(FIND(BV$3,'CFR - XML import'!$A72)),0,VALUE(MID('CFR - XML import'!$A72,SEARCH(\">\",'CFR - XML import'!$A72,1)+1,SEARCH(\"/\",'CFR - XML import'!$A72,1)-SEARCH(\">\",'CFR - XML import'!$A72,1)-2)))","v":0},{"$f":"IF(ISERROR(FIND(BW$3,'CFR - XML import'!$A72)),0,VALUE(MID('CFR - XML import'!$A72,SEARCH(\">\",'CFR - XML import'!$A72,1)+1,SEARCH(\"/\",'CFR - XML import'!$A72,1)-SEARCH(\">\",'CFR - XML import'!$A72,1)-2)))","v":0},{"$f":"IF(ISERROR(FIND(BX$3,'CFR - XML import'!$A72)),0,VALUE(MID('CFR - XML import'!$A72,SEARCH(\">\",'CFR - XML import'!$A72,1)+1,SEARCH(\"/\",'CFR - XML import'!$A72,1)-SEARCH(\">\",'CFR - XML import'!$A72,1)-2)))","v":0},{"$f":"IF(ISERROR(FIND(BY$3,'CFR - XML import'!$A72)),0,VALUE(MID('CFR - XML import'!$A72,SEARCH(\">\",'CFR - XML import'!$A72,1)+1,SEARCH(\"/\",'CFR - XML import'!$A72,1)-SEARCH(\">\",'CFR - XML import'!$A72,1)-2)))","v":0},{"$f":"IF(ISERROR(FIND(BZ$3,'CFR - XML import'!$A72)),0,VALUE(MID('CFR - XML import'!$A72,SEARCH(\">\",'CFR - XML import'!$A72,1)+1,SEARCH(\"/\",'CFR - XML import'!$A72,1)-SEARCH(\">\",'CFR - XML import'!$A72,1)-2)))","v":0},null,null,null,null,null,null,{"$f":"IF(ISERROR(IF(MID('CFR - XML import'!$A72,LEN($CF$4)+1,LEN('CFR - XML import'!$A72)-(2*LEN($CF$4)+1))=\"RMMS\",1,IF(MID('CFR - XML import'!$A72,LEN(\"    <InputSystem>\")+1,LEN('CFR - XML import'!$A72)-(LEN(\"    <InputSystem>\")+LEN($CF$4)+1))=\"SIMS\",2,0))),0,IF(MID('CFR - XML import'!$A72,LEN($CF$4)+1,LEN('CFR - XML import'!$A72)-(2*LEN($CF$4)+1))=\"RMMS\",1,IF(MID('CFR - XML import'!$A72,LEN(\"    <InputSystem>\")+1,LEN('CFR - XML import'!$A72)-(LEN(\"    <InputSystem>\")+LEN($CF$4)+1))=\"SIMS\",2,0)))","v":0},{"$f":"IF(ISERROR(FIND(CH$3,'CFR - XML import'!$A72)),0,MID('CFR - XML import'!$A72,SEARCH(\">\",'CFR - XML import'!$A72,1)+1,SEARCH(\"/\",'CFR - XML import'!$A72,1)-SEARCH(\">\",'CFR - XML import'!$A72,1)-2))","v":0},{"$f":"IF(ISERROR(FIND(CI$3,'CFR - XML import'!$A72)),0,MID('CFR - XML import'!$A72,SEARCH(\">\",'CFR - XML import'!$A72,1)+1,SEARCH(\"/\",'CFR - XML import'!$A72,1)-SEARCH(\">\",'CFR - XML import'!$A72,1)-2))","v":0},{"$f":"IF(ISERROR(FIND(CJ$3,'CFR - XML import'!$A72)),0,MID('CFR - XML import'!$A72,SEARCH(\">\",'CFR - XML import'!$A72,1)+1,SEARCH(\"/\",'CFR - XML import'!$A72,1)-SEARCH(\">\",'CFR - XML import'!$A72,1)-2))","v":0},{"$f":"IF(ISERROR(FIND(CK$3,'CFR - XML import'!$A72)),0,MID('CFR - XML import'!$A72,SEARCH(\">\",'CFR - XML import'!$A72,1)+1,SEARCH(\"/\",'CFR - XML import'!$A72,1)-SEARCH(\">\",'CFR - XML import'!$A72,1)-2))","v":0},{"$f":"IF(ISERROR(FIND(CL$3,'CFR - XML import'!$A72)),0,MID('CFR - XML import'!$A72,SEARCH(\">\",'CFR - XML import'!$A72,1)+1,SEARCH(\"/\",'CFR - XML import'!$A72,1)-SEARCH(\">\",'CFR - XML import'!$A72,1)-2))","v":0}]
[{"$f":"IF(AND('CFR - XML import'!A73<>\"\",LEFT('CFR - XML import'!A73,1)<>\"<\",LEFT('CFR - XML import'!A73,3)<>\"  <\",LEFT('CFR - XML import'!A73,5)<>\"    <\",LEFT('CFR - XML import'!A73,7)<>\"      <\",LEFT('CFR - XML import'!A73,9)<>\"        <\",$B$1=\"SIMS\"),'CFR - XML import'!A73,IF(AND(LEFT('CFR - XML import'!A73,9)=\"<Details>\",$B$1=\"RM\"),'CFR - XML import'!A73,\"\"))","v":""},{"$f":"IF(ISERROR(FIND(B$3,'CFR - XML import'!$A73)),0,VALUE(MID('CFR - XML import'!$A73,SEARCH(\">\",'CFR - XML import'!$A73,1)+1,SEARCH(\"/\",'CFR - XML import'!$A73,1)-SEARCH(\">\",'CFR - XML import'!$A73,1)-2)))","v":0},null,{"$f":"IF(ISERROR(FIND(D$3,'CFR - XML import'!$A73)),0,MID('CFR - XML import'!$A73,SEARCH(\">\",'CFR - XML import'!$A73,1)+1,SEARCH(\"/\",'CFR - XML import'!$A73,1)-SEARCH(\">\",'CFR - XML import'!$A73,1)-2))","v":0},{"$f":"IF(ISERROR(FIND(E$3,'CFR - XML import'!$A73)),0,MID('CFR - XML import'!$A73,SEARCH(\">\",'CFR - XML import'!$A73,1)+1,SEARCH(\"/\",'CFR - XML import'!$A73,1)-SEARCH(\">\",'CFR - XML import'!$A73,1)-2))","v":0},{"$f":"IF($B$1=\"SIMS\",IF(ISERROR(FIND(F$3,'CFR - XML import'!$A73)),0,VALUE(MID('CFR - XML import'!$A73,15,10))),IF(ISERROR(FIND(F$3,'CFR - XML import'!$A73)),0,VALUE(MID('CFR - XML import'!$A73,11,10))))","v":"00:00:00"},{"$f":"IF(ISERROR(FIND(G$3,'CFR - XML import'!$A73)),0,VALUE(MID('CFR - XML import'!$A73,SEARCH(\">\",'CFR - XML import'!$A73,1)+1,SEARCH(\"/\",'CFR - XML import'!$A73,1)-SEARCH(\">\",'CFR - XML import'!$A73,1)-2)))","v":0},{"$f":"IF(ISERROR(FIND(H$3,'CFR - XML import'!$A73)),0,VALUE(MID('CFR - XML import'!$A73,SEARCH(\">\",'CFR - XML import'!$A73,1)+1,SEARCH(\"/\",'CFR - XML import'!$A73,1)-SEARCH(\">\",'CFR - XML import'!$A73,1)-2)))","v":0},{"$f":"IF(ISERROR(FIND(I$3,'CFR - XML import'!$A73)),0,VALUE(MID('CFR - XML import'!$A73,SEARCH(\">\",'CFR - XML import'!$A73,1)+1,SEARCH(\"/\",'CFR - XML import'!$A73,1)-SEARCH(\">\",'CFR - XML import'!$A73,1)-2)))","v":0},{"$f":"IF(ISERROR(FIND(J$3,'CFR - XML import'!$A73)),0,VALUE(MID('CFR - XML import'!$A73,SEARCH(\">\",'CFR - XML import'!$A73,1)+1,SEARCH(\"/\",'CFR - XML import'!$A73,1)-SEARCH(\">\",'CFR - XML import'!$A73,1)-2)))","v":0},{"$f":"IF(ISERROR(FIND(K$3,'CFR - XML import'!$A73)),0,VALUE(MID('CFR - XML import'!$A73,SEARCH(\">\",'CFR - XML import'!$A73,1)+1,SEARCH(\"/\",'CFR - XML import'!$A73,1)-SEARCH(\">\",'CFR - XML import'!$A73,1)-2)))","v":0},{"$f":"IF(ISERROR(FIND(L$3,'CFR - XML import'!$A73)),0,VALUE(MID('CFR - XML import'!$A73,SEARCH(\">\",'CFR - XML import'!$A73,1)+1,SEARCH(\"/\",'CFR - XML import'!$A73,1)-SEARCH(\">\",'CFR - XML import'!$A73,1)-2)))","v":0},{"$f":"IF(ISERROR(FIND(M$3,'CFR - XML import'!$A73)),0,VALUE(MID('CFR - XML import'!$A73,SEARCH(\">\",'CFR - XML import'!$A73,1)+1,SEARCH(\"/\",'CFR - XML import'!$A73,1)-SEARCH(\">\",'CFR - XML import'!$A73,1)-2)))","v":0},{"$f":"IF(ISERROR(FIND(N$3,'CFR - XML import'!$A73)),0,VALUE(MID('CFR - XML import'!$A73,SEARCH(\">\",'CFR - XML import'!$A73,1)+1,SEARCH(\"/\",'CFR - XML import'!$A73,1)-SEARCH(\">\",'CFR - XML import'!$A73,1)-2)))","v":0},{"$f":"IF(ISERROR(FIND(O$3,'CFR - XML import'!$A73)),0,VALUE(MID('CFR - XML import'!$A73,SEARCH(\">\",'CFR - XML import'!$A73,1)+1,SEARCH(\"/\",'CFR - XML import'!$A73,1)-SEARCH(\">\",'CFR - XML import'!$A73,1)-2)))","v":0},{"$f":"IF(ISERROR(FIND(P$3,'CFR - XML import'!$A73)),0,VALUE(MID('CFR - XML import'!$A73,SEARCH(\">\",'CFR - XML import'!$A73,1)+1,SEARCH(\"/\",'CFR - XML import'!$A73,1)-SEARCH(\">\",'CFR - XML import'!$A73,1)-2)))","v":0},{"$f":"IF(ISERROR(FIND(Q$3,'CFR - XML import'!$A73)),0,VALUE(MID('CFR - XML import'!$A73,SEARCH(\">\",'CFR - XML import'!$A73,1)+1,SEARCH(\"/\",'CFR - XML import'!$A73,1)-SEARCH(\">\",'CFR - XML import'!$A73,1)-2)))","v":0},{"$f":"IF(ISERROR(FIND(R$3,'CFR - XML import'!$A73)),0,VALUE(MID('CFR - XML import'!$A73,SEARCH(\">\",'CFR - XML import'!$A73,1)+1,SEARCH(\"/\",'CFR - XML import'!$A73,1)-SEARCH(\">\",'CFR - XML import'!$A73,1)-2)))","v":0},{"$f":"IF(ISERROR(FIND(S$3,'CFR - XML import'!$A73)),0,VALUE(MID('CFR - XML import'!$A73,SEARCH(\">\",'CFR - XML import'!$A73,1)+1,SEARCH(\"/\",'CFR - XML import'!$A73,1)-SEARCH(\">\",'CFR - XML import'!$A73,1)-2)))","v":0},{"$f":"IF(ISERROR(FIND(T$3,'CFR - XML import'!$A73)),0,VALUE(MID('CFR - XML import'!$A73,SEARCH(\">\",'CFR - XML import'!$A73,1)+1,SEARCH(\"/\",'CFR - XML import'!$A73,1)-SEARCH(\">\",'CFR - XML import'!$A73,1)-2)))","v":0},{"$f":"IF(ISERROR(FIND(U$3,'CFR - XML import'!$A73)),0,VALUE(MID('CFR - XML import'!$A73,SEARCH(\">\",'CFR - XML import'!$A73,1)+1,SEARCH(\"/\",'CFR - XML import'!$A73,1)-SEARCH(\">\",'CFR - XML import'!$A73,1)-2)))","v":0},{"$f":"IF(ISERROR(FIND(V$3,'CFR - XML import'!$A73)),0,VALUE(MID('CFR - XML import'!$A73,SEARCH(\">\",'CFR - XML import'!$A73,1)+1,SEARCH(\"/\",'CFR - XML import'!$A73,1)-SEARCH(\">\",'CFR - XML import'!$A73,1)-2)))","v":0},{"$f":"IF(ISERROR(FIND(W$3,'CFR - XML import'!$A73)),0,VALUE(MID('CFR - XML import'!$A73,SEARCH(\">\",'CFR - XML import'!$A73,1)+1,SEARCH(\"/\",'CFR - XML import'!$A73,1)-SEARCH(\">\",'CFR - XML import'!$A73,1)-2)))","v":0},null,{"$f":"IF(ISERROR(FIND(Y$3,'CFR - XML import'!$A73)),0,VALUE(MID('CFR - XML import'!$A73,SEARCH(\">\",'CFR - XML import'!$A73,1)+1,SEARCH(\"/\",'CFR - XML import'!$A73,1)-SEARCH(\">\",'CFR - XML import'!$A73,1)-2)))","v":0},{"$f":"IF(ISERROR(FIND(Z$3,'CFR - XML import'!$A73)),0,VALUE(MID('CFR - XML import'!$A73,SEARCH(\">\",'CFR - XML import'!$A73,1)+1,SEARCH(\"/\",'CFR - XML import'!$A73,1)-SEARCH(\">\",'CFR - XML import'!$A73,1)-2)))","v":0},{"$f":"IF(ISERROR(FIND(AA$3,'CFR - XML import'!$A73)),0,VALUE(MID('CFR - XML import'!$A73,SEARCH(\">\",'CFR - XML import'!$A73,1)+1,SEARCH(\"/\",'CFR - XML import'!$A73,1)-SEARCH(\">\",'CFR - XML import'!$A73,1)-2)))","v":0},{"$f":"IF(ISERROR(FIND(AB$3,'CFR - XML import'!$A73)),0,VALUE(MID('CFR - XML import'!$A73,SEARCH(\">\",'CFR - XML import'!$A73,1)+1,SEARCH(\"/\",'CFR - XML import'!$A73,1)-SEARCH(\">\",'CFR - XML import'!$A73,1)-2)))","v":0},{"$f":"IF(ISERROR(FIND(AC$3,'CFR - XML import'!$A73)),0,VALUE(MID('CFR - XML import'!$A73,SEARCH(\">\",'CFR - XML import'!$A73,1)+1,SEARCH(\"/\",'CFR - XML import'!$A73,1)-SEARCH(\">\",'CFR - XML import'!$A73,1)-2)))","v":0},{"$f":"IF(ISERROR(FIND(AD$3,'CFR - XML import'!$A73)),0,VALUE(MID('CFR - XML import'!$A73,SEARCH(\">\",'CFR - XML import'!$A73,1)+1,SEARCH(\"/\",'CFR - XML import'!$A73,1)-SEARCH(\">\",'CFR - XML import'!$A73,1)-2)))","v":0},{"$f":"IF(ISERROR(FIND(AE$3,'CFR - XML import'!$A73)),0,VALUE(MID('CFR - XML import'!$A73,SEARCH(\">\",'CFR - XML import'!$A73,1)+1,SEARCH(\"/\",'CFR - XML import'!$A73,1)-SEARCH(\">\",'CFR - XML import'!$A73,1)-2)))","v":0},{"$f":"IF(ISERROR(FIND(AF$3,'CFR - XML import'!$A73)),0,VALUE(MID('CFR - XML import'!$A73,SEARCH(\">\",'CFR - XML import'!$A73,1)+1,SEARCH(\"/\",'CFR - XML import'!$A73,1)-SEARCH(\">\",'CFR - XML import'!$A73,1)-2)))","v":0},{"$f":"IF(ISERROR(FIND(AG$3,'CFR - XML import'!$A73)),0,VALUE(MID('CFR - XML import'!$A73,SEARCH(\">\",'CFR - XML import'!$A73,1)+1,SEARCH(\"/\",'CFR - XML import'!$A73,1)-SEARCH(\">\",'CFR - XML import'!$A73,1)-2)))","v":0},{"$f":"IF(ISERROR(FIND(AH$3,'CFR - XML import'!$A73)),0,VALUE(MID('CFR - XML import'!$A73,SEARCH(\">\",'CFR - XML import'!$A73,1)+1,SEARCH(\"/\",'CFR - XML import'!$A73,1)-SEARCH(\">\",'CFR - XML import'!$A73,1)-2)))","v":0},{"$f":"IF(ISERROR(FIND(AI$3,'CFR - XML import'!$A73)),0,VALUE(MID('CFR - XML import'!$A73,SEARCH(\">\",'CFR - XML import'!$A73,1)+1,SEARCH(\"/\",'CFR - XML import'!$A73,1)-SEARCH(\">\",'CFR - XML import'!$A73,1)-2)))","v":0},{"$f":"IF(ISERROR(FIND(AJ$3,'CFR - XML import'!$A73)),0,VALUE(MID('CFR - XML import'!$A73,SEARCH(\">\",'CFR - XML import'!$A73,1)+1,SEARCH(\"/\",'CFR - XML import'!$A73,1)-SEARCH(\">\",'CFR - XML import'!$A73,1)-2)))","v":0},{"$f":"IF(ISERROR(FIND(AK$3,'CFR - XML import'!$A73)),0,VALUE(MID('CFR - XML import'!$A73,SEARCH(\">\",'CFR - XML import'!$A73,1)+1,SEARCH(\"/\",'CFR - XML import'!$A73,1)-SEARCH(\">\",'CFR - XML import'!$A73,1)-2)))","v":0},{"$f":"IF(ISERROR(FIND(AL$3,'CFR - XML import'!$A73)),0,VALUE(MID('CFR - XML import'!$A73,SEARCH(\">\",'CFR - XML import'!$A73,1)+1,SEARCH(\"/\",'CFR - XML import'!$A73,1)-SEARCH(\">\",'CFR - XML import'!$A73,1)-2)))","v":0},{"$f":"IF(ISERROR(FIND(AM$3,'CFR - XML import'!$A73)),0,VALUE(MID('CFR - XML import'!$A73,SEARCH(\">\",'CFR - XML import'!$A73,1)+1,SEARCH(\"/\",'CFR - XML import'!$A73,1)-SEARCH(\">\",'CFR - XML import'!$A73,1)-2)))","v":0},{"$f":"IF(ISERROR(FIND(AN$3,'CFR - XML import'!$A73)),0,VALUE(MID('CFR - XML import'!$A73,SEARCH(\">\",'CFR - XML import'!$A73,1)+1,SEARCH(\"/\",'CFR - XML import'!$A73,1)-SEARCH(\">\",'CFR - XML import'!$A73,1)-2)))","v":0},{"$f":"IF(ISERROR(FIND(AO$3,'CFR - XML import'!$A73)),0,VALUE(MID('CFR - XML import'!$A73,SEARCH(\">\",'CFR - XML import'!$A73,1)+1,SEARCH(\"/\",'CFR - XML import'!$A73,1)-SEARCH(\">\",'CFR - XML import'!$A73,1)-2)))","v":0},{"$f":"IF(ISERROR(FIND(AP$3,'CFR - XML import'!$A73)),0,VALUE(MID('CFR - XML import'!$A73,SEARCH(\">\",'CFR - XML import'!$A73,1)+1,SEARCH(\"/\",'CFR - XML import'!$A73,1)-SEARCH(\">\",'CFR - XML import'!$A73,1)-2)))","v":0},{"$f":"IF(ISERROR(FIND(AQ$3,'CFR - XML import'!$A73)),0,VALUE(MID('CFR - XML import'!$A73,SEARCH(\">\",'CFR - XML import'!$A73,1)+1,SEARCH(\"/\",'CFR - XML import'!$A73,1)-SEARCH(\">\",'CFR - XML import'!$A73,1)-2)))","v":0},{"$f":"IF(ISERROR(FIND(AR$3,'CFR - XML import'!$A73)),0,VALUE(MID('CFR - XML import'!$A73,SEARCH(\">\",'CFR - XML import'!$A73,1)+1,SEARCH(\"/\",'CFR - XML import'!$A73,1)-SEARCH(\">\",'CFR - XML import'!$A73,1)-2)))","v":0},{"$f":"IF(ISERROR(FIND(AS$3,'CFR - XML import'!$A73)),0,VALUE(MID('CFR - XML import'!$A73,SEARCH(\">\",'CFR - XML import'!$A73,1)+1,SEARCH(\"/\",'CFR - XML import'!$A73,1)-SEARCH(\">\",'CFR - XML import'!$A73,1)-2)))","v":0},{"$f":"IF(ISERROR(FIND(AT$3,'CFR - XML import'!$A73)),0,VALUE(MID('CFR - XML import'!$A73,SEARCH(\">\",'CFR - XML import'!$A73,1)+1,SEARCH(\"/\",'CFR - XML import'!$A73,1)-SEARCH(\">\",'CFR - XML import'!$A73,1)-2)))","v":0},{"$f":"IF(ISERROR(FIND(AU$3,'CFR - XML import'!$A73)),0,VALUE(MID('CFR - XML import'!$A73,SEARCH(\">\",'CFR - XML import'!$A73,1)+1,SEARCH(\"/\",'CFR - XML import'!$A73,1)-SEARCH(\">\",'CFR - XML import'!$A73,1)-2)))","v":0},{"$f":"IF(ISERROR(FIND(AV$3,'CFR - XML import'!$A73)),0,VALUE(MID('CFR - XML import'!$A73,SEARCH(\">\",'CFR - XML import'!$A73,1)+1,SEARCH(\"/\",'CFR - XML import'!$A73,1)-SEARCH(\">\",'CFR - XML import'!$A73,1)-2)))","v":0},{"$f":"IF(ISERROR(FIND(AW$3,'CFR - XML import'!$A73)),0,VALUE(MID('CFR - XML import'!$A73,SEARCH(\">\",'CFR - XML import'!$A73,1)+1,SEARCH(\"/\",'CFR - XML import'!$A73,1)-SEARCH(\">\",'CFR - XML import'!$A73,1)-2)))","v":0},{"$f":"IF(ISERROR(FIND(AX$3,'CFR - XML import'!$A73)),0,VALUE(MID('CFR - XML import'!$A73,SEARCH(\">\",'CFR - XML import'!$A73,1)+1,SEARCH(\"/\",'CFR - XML import'!$A73,1)-SEARCH(\">\",'CFR - XML import'!$A73,1)-2)))","v":0},{"$f":"IF(ISERROR(FIND(AY$3,'CFR - XML import'!$A73)),0,VALUE(MID('CFR - XML import'!$A73,SEARCH(\">\",'CFR - XML import'!$A73,1)+1,SEARCH(\"/\",'CFR - XML import'!$A73,1)-SEARCH(\">\",'CFR - XML import'!$A73,1)-2)))","v":0},{"$f":"IF(ISERROR(FIND(AZ$3,'CFR - XML import'!$A73)),0,VALUE(MID('CFR - XML import'!$A73,SEARCH(\">\",'CFR - XML import'!$A73,1)+1,SEARCH(\"/\",'CFR - XML import'!$A73,1)-SEARCH(\">\",'CFR - XML import'!$A73,1)-2)))","v":0},{"$f":"IF(ISERROR(FIND(BA$3,'CFR - XML import'!$A73)),0,VALUE(MID('CFR - XML import'!$A73,SEARCH(\">\",'CFR - XML import'!$A73,1)+1,SEARCH(\"/\",'CFR - XML import'!$A73,1)-SEARCH(\">\",'CFR - XML import'!$A73,1)-2)))","v":0},{"$f":"IF(ISERROR(FIND(BB$3,'CFR - XML import'!$A73)),0,VALUE(MID('CFR - XML import'!$A73,SEARCH(\">\",'CFR - XML import'!$A73,1)+1,SEARCH(\"/\",'CFR - XML import'!$A73,1)-SEARCH(\">\",'CFR - XML import'!$A73,1)-2)))","v":0},{"$f":"IF(ISERROR(FIND(BC$3,'CFR - XML import'!$A73)),0,VALUE(MID('CFR - XML import'!$A73,SEARCH(\">\",'CFR - XML import'!$A73,1)+1,SEARCH(\"/\",'CFR - XML import'!$A73,1)-SEARCH(\">\",'CFR - XML import'!$A73,1)-2)))","v":0},{"$f":"IF(ISERROR(FIND(BD$3,'CFR - XML import'!$A73)),0,VALUE(MID('CFR - XML import'!$A73,SEARCH(\">\",'CFR - XML import'!$A73,1)+1,SEARCH(\"/\",'CFR - XML import'!$A73,1)-SEARCH(\">\",'CFR - XML import'!$A73,1)-2)))","v":0},{"$f":"IF(ISERROR(FIND(BE$3,'CFR - XML import'!$A73)),0,VALUE(MID('CFR - XML import'!$A73,SEARCH(\">\",'CFR - XML import'!$A73,1)+1,SEARCH(\"/\",'CFR - XML import'!$A73,1)-SEARCH(\">\",'CFR - XML import'!$A73,1)-2)))","v":0},{"$f":"IF(ISERROR(FIND(BF$3,'CFR - XML import'!$A73)),0,VALUE(MID('CFR - XML import'!$A73,SEARCH(\">\",'CFR - XML import'!$A73,1)+1,SEARCH(\"/\",'CFR - XML import'!$A73,1)-SEARCH(\">\",'CFR - XML import'!$A73,1)-2)))","v":0},{"$f":"IF(ISERROR(FIND(BG$3,'CFR - XML import'!$A73)),0,VALUE(MID('CFR - XML import'!$A73,SEARCH(\">\",'CFR - XML import'!$A73,1)+1,SEARCH(\"/\",'CFR - XML import'!$A73,1)-SEARCH(\">\",'CFR - XML import'!$A73,1)-2)))","v":0},{"$f":"IF(ISERROR(FIND(BH$3,'CFR - XML import'!$A73)),0,VALUE(MID('CFR - XML import'!$A73,SEARCH(\">\",'CFR - XML import'!$A73,1)+1,SEARCH(\"/\",'CFR - XML import'!$A73,1)-SEARCH(\">\",'CFR - XML import'!$A73,1)-2)))","v":0},{"$f":"IF(ISERROR(FIND(BI$3,'CFR - XML import'!$A73)),0,VALUE(MID('CFR - XML import'!$A73,SEARCH(\">\",'CFR - XML import'!$A73,1)+1,SEARCH(\"/\",'CFR - XML import'!$A73,1)-SEARCH(\">\",'CFR - XML import'!$A73,1)-2)))","v":0},{"$f":"IF(ISERROR(FIND(BJ$3,'CFR - XML import'!$A73)),0,VALUE(MID('CFR - XML import'!$A73,SEARCH(\">\",'CFR - XML import'!$A73,1)+1,SEARCH(\"/\",'CFR - XML import'!$A73,1)-SEARCH(\">\",'CFR - XML import'!$A73,1)-2)))","v":0},{"$f":"IF(ISERROR(FIND(BK$3,'CFR - XML import'!$A73)),0,VALUE(MID('CFR - XML import'!$A73,SEARCH(\">\",'CFR - XML import'!$A73,1)+1,SEARCH(\"/\",'CFR - XML import'!$A73,1)-SEARCH(\">\",'CFR - XML import'!$A73,1)-2)))","v":0},{"$f":"IF(ISERROR(FIND(BL$3,'CFR - XML import'!$A73)),0,VALUE(MID('CFR - XML import'!$A73,SEARCH(\">\",'CFR - XML import'!$A73,1)+1,SEARCH(\"/\",'CFR - XML import'!$A73,1)-SEARCH(\">\",'CFR - XML import'!$A73,1)-2)))","v":0},{"$f":"IF(ISERROR(FIND(BM$3,'CFR - XML import'!$A73)),0,VALUE(MID('CFR - XML import'!$A73,SEARCH(\">\",'CFR - XML import'!$A73,1)+1,SEARCH(\"/\",'CFR - XML import'!$A73,1)-SEARCH(\">\",'CFR - XML import'!$A73,1)-2)))","v":0},{"$f":"IF(ISERROR(FIND(BN$3,'CFR - XML import'!$A73)),0,VALUE(MID('CFR - XML import'!$A73,SEARCH(\">\",'CFR - XML import'!$A73,1)+1,SEARCH(\"/\",'CFR - XML import'!$A73,1)-SEARCH(\">\",'CFR - XML import'!$A73,1)-2)))","v":0},{"$f":"IF(ISERROR(FIND(BO$3,'CFR - XML import'!$A73)),0,VALUE(MID('CFR - XML import'!$A73,SEARCH(\">\",'CFR - XML import'!$A73,1)+1,SEARCH(\"/\",'CFR - XML import'!$A73,1)-SEARCH(\">\",'CFR - XML import'!$A73,1)-2)))","v":0},{"$f":"IF(ISERROR(FIND(BP$3,'CFR - XML import'!$A73)),0,VALUE(MID('CFR - XML import'!$A73,SEARCH(\">\",'CFR - XML import'!$A73,1)+1,SEARCH(\"/\",'CFR - XML import'!$A73,1)-SEARCH(\">\",'CFR - XML import'!$A73,1)-2)))","v":0},{"$f":"IF(ISERROR(FIND(BQ$3,'CFR - XML import'!$A73)),0,VALUE(MID('CFR - XML import'!$A73,SEARCH(\">\",'CFR - XML import'!$A73,1)+1,SEARCH(\"/\",'CFR - XML import'!$A73,1)-SEARCH(\">\",'CFR - XML import'!$A73,1)-2)))","v":0},{"$f":"IF(ISERROR(FIND(BR$3,'CFR - XML import'!$A73)),0,VALUE(MID('CFR - XML import'!$A73,SEARCH(\">\",'CFR - XML import'!$A73,1)+1,SEARCH(\"/\",'CFR - XML import'!$A73,1)-SEARCH(\">\",'CFR - XML import'!$A73,1)-2)))","v":0},{"$f":"IF(ISERROR(FIND(BS$3,'CFR - XML import'!$A73)),0,VALUE(MID('CFR - XML import'!$A73,SEARCH(\">\",'CFR - XML import'!$A73,1)+1,SEARCH(\"/\",'CFR - XML import'!$A73,1)-SEARCH(\">\",'CFR - XML import'!$A73,1)-2)))","v":0},{"$f":"IF(ISERROR(FIND(BT$3,'CFR - XML import'!$A73)),0,VALUE(MID('CFR - XML import'!$A73,SEARCH(\">\",'CFR - XML import'!$A73,1)+1,SEARCH(\"/\",'CFR - XML import'!$A73,1)-SEARCH(\">\",'CFR - XML import'!$A73,1)-2)))","v":0},{"$f":"IF(ISERROR(FIND(BU$3,'CFR - XML import'!$A73)),0,VALUE(MID('CFR - XML import'!$A73,SEARCH(\">\",'CFR - XML import'!$A73,1)+1,SEARCH(\"/\",'CFR - XML import'!$A73,1)-SEARCH(\">\",'CFR - XML import'!$A73,1)-2)))","v":0},{"$f":"IF(ISERROR(FIND(BV$3,'CFR - XML import'!$A73)),0,VALUE(MID('CFR - XML import'!$A73,SEARCH(\">\",'CFR - XML import'!$A73,1)+1,SEARCH(\"/\",'CFR - XML import'!$A73,1)-SEARCH(\">\",'CFR - XML import'!$A73,1)-2)))","v":0},{"$f":"IF(ISERROR(FIND(BW$3,'CFR - XML import'!$A73)),0,VALUE(MID('CFR - XML import'!$A73,SEARCH(\">\",'CFR - XML import'!$A73,1)+1,SEARCH(\"/\",'CFR - XML import'!$A73,1)-SEARCH(\">\",'CFR - XML import'!$A73,1)-2)))","v":0},{"$f":"IF(ISERROR(FIND(BX$3,'CFR - XML import'!$A73)),0,VALUE(MID('CFR - XML import'!$A73,SEARCH(\">\",'CFR - XML import'!$A73,1)+1,SEARCH(\"/\",'CFR - XML import'!$A73,1)-SEARCH(\">\",'CFR - XML import'!$A73,1)-2)))","v":0},{"$f":"IF(ISERROR(FIND(BY$3,'CFR - XML import'!$A73)),0,VALUE(MID('CFR - XML import'!$A73,SEARCH(\">\",'CFR - XML import'!$A73,1)+1,SEARCH(\"/\",'CFR - XML import'!$A73,1)-SEARCH(\">\",'CFR - XML import'!$A73,1)-2)))","v":0},{"$f":"IF(ISERROR(FIND(BZ$3,'CFR - XML import'!$A73)),0,VALUE(MID('CFR - XML import'!$A73,SEARCH(\">\",'CFR - XML import'!$A73,1)+1,SEARCH(\"/\",'CFR - XML import'!$A73,1)-SEARCH(\">\",'CFR - XML import'!$A73,1)-2)))","v":0},null,null,null,null,null,null,{"$f":"IF(ISERROR(IF(MID('CFR - XML import'!$A73,LEN($CF$4)+1,LEN('CFR - XML import'!$A73)-(2*LEN($CF$4)+1))=\"RMMS\",1,IF(MID('CFR - XML import'!$A73,LEN(\"    <InputSystem>\")+1,LEN('CFR - XML import'!$A73)-(LEN(\"    <InputSystem>\")+LEN($CF$4)+1))=\"SIMS\",2,0))),0,IF(MID('CFR - XML import'!$A73,LEN($CF$4)+1,LEN('CFR - XML import'!$A73)-(2*LEN($CF$4)+1))=\"RMMS\",1,IF(MID('CFR - XML import'!$A73,LEN(\"    <InputSystem>\")+1,LEN('CFR - XML import'!$A73)-(LEN(\"    <InputSystem>\")+LEN($CF$4)+1))=\"SIMS\",2,0)))","v":0},{"$f":"IF(ISERROR(FIND(CH$3,'CFR - XML import'!$A73)),0,MID('CFR - XML import'!$A73,SEARCH(\">\",'CFR - XML import'!$A73,1)+1,SEARCH(\"/\",'CFR - XML import'!$A73,1)-SEARCH(\">\",'CFR - XML import'!$A73,1)-2))","v":0},{"$f":"IF(ISERROR(FIND(CI$3,'CFR - XML import'!$A73)),0,MID('CFR - XML import'!$A73,SEARCH(\">\",'CFR - XML import'!$A73,1)+1,SEARCH(\"/\",'CFR - XML import'!$A73,1)-SEARCH(\">\",'CFR - XML import'!$A73,1)-2))","v":0},{"$f":"IF(ISERROR(FIND(CJ$3,'CFR - XML import'!$A73)),0,MID('CFR - XML import'!$A73,SEARCH(\">\",'CFR - XML import'!$A73,1)+1,SEARCH(\"/\",'CFR - XML import'!$A73,1)-SEARCH(\">\",'CFR - XML import'!$A73,1)-2))","v":0},{"$f":"IF(ISERROR(FIND(CK$3,'CFR - XML import'!$A73)),0,MID('CFR - XML import'!$A73,SEARCH(\">\",'CFR - XML import'!$A73,1)+1,SEARCH(\"/\",'CFR - XML import'!$A73,1)-SEARCH(\">\",'CFR - XML import'!$A73,1)-2))","v":0},{"$f":"IF(ISERROR(FIND(CL$3,'CFR - XML import'!$A73)),0,MID('CFR - XML import'!$A73,SEARCH(\">\",'CFR - XML import'!$A73,1)+1,SEARCH(\"/\",'CFR - XML import'!$A73,1)-SEARCH(\">\",'CFR - XML import'!$A73,1)-2))","v":0}]
[{"$f":"IF(AND('CFR - XML import'!A74<>\"\",LEFT('CFR - XML import'!A74,1)<>\"<\",LEFT('CFR - XML import'!A74,3)<>\"  <\",LEFT('CFR - XML import'!A74,5)<>\"    <\",LEFT('CFR - XML import'!A74,7)<>\"      <\",LEFT('CFR - XML import'!A74,9)<>\"        <\",$B$1=\"SIMS\"),'CFR - XML import'!A74,IF(AND(LEFT('CFR - XML import'!A74,9)=\"<Details>\",$B$1=\"RM\"),'CFR - XML import'!A74,\"\"))","v":""},{"$f":"IF(ISERROR(FIND(B$3,'CFR - XML import'!$A74)),0,VALUE(MID('CFR - XML import'!$A74,SEARCH(\">\",'CFR - XML import'!$A74,1)+1,SEARCH(\"/\",'CFR - XML import'!$A74,1)-SEARCH(\">\",'CFR - XML import'!$A74,1)-2)))","v":0},null,{"$f":"IF(ISERROR(FIND(D$3,'CFR - XML import'!$A74)),0,MID('CFR - XML import'!$A74,SEARCH(\">\",'CFR - XML import'!$A74,1)+1,SEARCH(\"/\",'CFR - XML import'!$A74,1)-SEARCH(\">\",'CFR - XML import'!$A74,1)-2))","v":0},{"$f":"IF(ISERROR(FIND(E$3,'CFR - XML import'!$A74)),0,MID('CFR - XML import'!$A74,SEARCH(\">\",'CFR - XML import'!$A74,1)+1,SEARCH(\"/\",'CFR - XML import'!$A74,1)-SEARCH(\">\",'CFR - XML import'!$A74,1)-2))","v":0},{"$f":"IF($B$1=\"SIMS\",IF(ISERROR(FIND(F$3,'CFR - XML import'!$A74)),0,VALUE(MID('CFR - XML import'!$A74,15,10))),IF(ISERROR(FIND(F$3,'CFR - XML import'!$A74)),0,VALUE(MID('CFR - XML import'!$A74,11,10))))","v":"00:00:00"},{"$f":"IF(ISERROR(FIND(G$3,'CFR - XML import'!$A74)),0,VALUE(MID('CFR - XML import'!$A74,SEARCH(\">\",'CFR - XML import'!$A74,1)+1,SEARCH(\"/\",'CFR - XML import'!$A74,1)-SEARCH(\">\",'CFR - XML import'!$A74,1)-2)))","v":0},{"$f":"IF(ISERROR(FIND(H$3,'CFR - XML import'!$A74)),0,VALUE(MID('CFR - XML import'!$A74,SEARCH(\">\",'CFR - XML import'!$A74,1)+1,SEARCH(\"/\",'CFR - XML import'!$A74,1)-SEARCH(\">\",'CFR - XML import'!$A74,1)-2)))","v":0},{"$f":"IF(ISERROR(FIND(I$3,'CFR - XML import'!$A74)),0,VALUE(MID('CFR - XML import'!$A74,SEARCH(\">\",'CFR - XML import'!$A74,1)+1,SEARCH(\"/\",'CFR - XML import'!$A74,1)-SEARCH(\">\",'CFR - XML import'!$A74,1)-2)))","v":0},{"$f":"IF(ISERROR(FIND(J$3,'CFR - XML import'!$A74)),0,VALUE(MID('CFR - XML import'!$A74,SEARCH(\">\",'CFR - XML import'!$A74,1)+1,SEARCH(\"/\",'CFR - XML import'!$A74,1)-SEARCH(\">\",'CFR - XML import'!$A74,1)-2)))","v":0},{"$f":"IF(ISERROR(FIND(K$3,'CFR - XML import'!$A74)),0,VALUE(MID('CFR - XML import'!$A74,SEARCH(\">\",'CFR - XML import'!$A74,1)+1,SEARCH(\"/\",'CFR - XML import'!$A74,1)-SEARCH(\">\",'CFR - XML import'!$A74,1)-2)))","v":0},{"$f":"IF(ISERROR(FIND(L$3,'CFR - XML import'!$A74)),0,VALUE(MID('CFR - XML import'!$A74,SEARCH(\">\",'CFR - XML import'!$A74,1)+1,SEARCH(\"/\",'CFR - XML import'!$A74,1)-SEARCH(\">\",'CFR - XML import'!$A74,1)-2)))","v":0},{"$f":"IF(ISERROR(FIND(M$3,'CFR - XML import'!$A74)),0,VALUE(MID('CFR - XML import'!$A74,SEARCH(\">\",'CFR - XML import'!$A74,1)+1,SEARCH(\"/\",'CFR - XML import'!$A74,1)-SEARCH(\">\",'CFR - XML import'!$A74,1)-2)))","v":0},{"$f":"IF(ISERROR(FIND(N$3,'CFR - XML import'!$A74)),0,VALUE(MID('CFR - XML import'!$A74,SEARCH(\">\",'CFR - XML import'!$A74,1)+1,SEARCH(\"/\",'CFR - XML import'!$A74,1)-SEARCH(\">\",'CFR - XML import'!$A74,1)-2)))","v":0},{"$f":"IF(ISERROR(FIND(O$3,'CFR - XML import'!$A74)),0,VALUE(MID('CFR - XML import'!$A74,SEARCH(\">\",'CFR - XML import'!$A74,1)+1,SEARCH(\"/\",'CFR - XML import'!$A74,1)-SEARCH(\">\",'CFR - XML import'!$A74,1)-2)))","v":0},{"$f":"IF(ISERROR(FIND(P$3,'CFR - XML import'!$A74)),0,VALUE(MID('CFR - XML import'!$A74,SEARCH(\">\",'CFR - XML import'!$A74,1)+1,SEARCH(\"/\",'CFR - XML import'!$A74,1)-SEARCH(\">\",'CFR - XML import'!$A74,1)-2)))","v":0},{"$f":"IF(ISERROR(FIND(Q$3,'CFR - XML import'!$A74)),0,VALUE(MID('CFR - XML import'!$A74,SEARCH(\">\",'CFR - XML import'!$A74,1)+1,SEARCH(\"/\",'CFR - XML import'!$A74,1)-SEARCH(\">\",'CFR - XML import'!$A74,1)-2)))","v":0},{"$f":"IF(ISERROR(FIND(R$3,'CFR - XML import'!$A74)),0,VALUE(MID('CFR - XML import'!$A74,SEARCH(\">\",'CFR - XML import'!$A74,1)+1,SEARCH(\"/\",'CFR - XML import'!$A74,1)-SEARCH(\">\",'CFR - XML import'!$A74,1)-2)))","v":0},{"$f":"IF(ISERROR(FIND(S$3,'CFR - XML import'!$A74)),0,VALUE(MID('CFR - XML import'!$A74,SEARCH(\">\",'CFR - XML import'!$A74,1)+1,SEARCH(\"/\",'CFR - XML import'!$A74,1)-SEARCH(\">\",'CFR - XML import'!$A74,1)-2)))","v":0},{"$f":"IF(ISERROR(FIND(T$3,'CFR - XML import'!$A74)),0,VALUE(MID('CFR - XML import'!$A74,SEARCH(\">\",'CFR - XML import'!$A74,1)+1,SEARCH(\"/\",'CFR - XML import'!$A74,1)-SEARCH(\">\",'CFR - XML import'!$A74,1)-2)))","v":0},{"$f":"IF(ISERROR(FIND(U$3,'CFR - XML import'!$A74)),0,VALUE(MID('CFR - XML import'!$A74,SEARCH(\">\",'CFR - XML import'!$A74,1)+1,SEARCH(\"/\",'CFR - XML import'!$A74,1)-SEARCH(\">\",'CFR - XML import'!$A74,1)-2)))","v":0},{"$f":"IF(ISERROR(FIND(V$3,'CFR - XML import'!$A74)),0,VALUE(MID('CFR - XML import'!$A74,SEARCH(\">\",'CFR - XML import'!$A74,1)+1,SEARCH(\"/\",'CFR - XML import'!$A74,1)-SEARCH(\">\",'CFR - XML import'!$A74,1)-2)))","v":0},{"$f":"IF(ISERROR(FIND(W$3,'CFR - XML import'!$A74)),0,VALUE(MID('CFR - XML import'!$A74,SEARCH(\">\",'CFR - XML import'!$A74,1)+1,SEARCH(\"/\",'CFR - XML import'!$A74,1)-SEARCH(\">\",'CFR - XML import'!$A74,1)-2)))","v":0},null,{"$f":"IF(ISERROR(FIND(Y$3,'CFR - XML import'!$A74)),0,VALUE(MID('CFR - XML import'!$A74,SEARCH(\">\",'CFR - XML import'!$A74,1)+1,SEARCH(\"/\",'CFR - XML import'!$A74,1)-SEARCH(\">\",'CFR - XML import'!$A74,1)-2)))","v":0},{"$f":"IF(ISERROR(FIND(Z$3,'CFR - XML import'!$A74)),0,VALUE(MID('CFR - XML import'!$A74,SEARCH(\">\",'CFR - XML import'!$A74,1)+1,SEARCH(\"/\",'CFR - XML import'!$A74,1)-SEARCH(\">\",'CFR - XML import'!$A74,1)-2)))","v":0},{"$f":"IF(ISERROR(FIND(AA$3,'CFR - XML import'!$A74)),0,VALUE(MID('CFR - XML import'!$A74,SEARCH(\">\",'CFR - XML import'!$A74,1)+1,SEARCH(\"/\",'CFR - XML import'!$A74,1)-SEARCH(\">\",'CFR - XML import'!$A74,1)-2)))","v":0},{"$f":"IF(ISERROR(FIND(AB$3,'CFR - XML import'!$A74)),0,VALUE(MID('CFR - XML import'!$A74,SEARCH(\">\",'CFR - XML import'!$A74,1)+1,SEARCH(\"/\",'CFR - XML import'!$A74,1)-SEARCH(\">\",'CFR - XML import'!$A74,1)-2)))","v":0},{"$f":"IF(ISERROR(FIND(AC$3,'CFR - XML import'!$A74)),0,VALUE(MID('CFR - XML import'!$A74,SEARCH(\">\",'CFR - XML import'!$A74,1)+1,SEARCH(\"/\",'CFR - XML import'!$A74,1)-SEARCH(\">\",'CFR - XML import'!$A74,1)-2)))","v":0},{"$f":"IF(ISERROR(FIND(AD$3,'CFR - XML import'!$A74)),0,VALUE(MID('CFR - XML import'!$A74,SEARCH(\">\",'CFR - XML import'!$A74,1)+1,SEARCH(\"/\",'CFR - XML import'!$A74,1)-SEARCH(\">\",'CFR - XML import'!$A74,1)-2)))","v":0},{"$f":"IF(ISERROR(FIND(AE$3,'CFR - XML import'!$A74)),0,VALUE(MID('CFR - XML import'!$A74,SEARCH(\">\",'CFR - XML import'!$A74,1)+1,SEARCH(\"/\",'CFR - XML import'!$A74,1)-SEARCH(\">\",'CFR - XML import'!$A74,1)-2)))","v":0},{"$f":"IF(ISERROR(FIND(AF$3,'CFR - XML import'!$A74)),0,VALUE(MID('CFR - XML import'!$A74,SEARCH(\">\",'CFR - XML import'!$A74,1)+1,SEARCH(\"/\",'CFR - XML import'!$A74,1)-SEARCH(\">\",'CFR - XML import'!$A74,1)-2)))","v":0},{"$f":"IF(ISERROR(FIND(AG$3,'CFR - XML import'!$A74)),0,VALUE(MID('CFR - XML import'!$A74,SEARCH(\">\",'CFR - XML import'!$A74,1)+1,SEARCH(\"/\",'CFR - XML import'!$A74,1)-SEARCH(\">\",'CFR - XML import'!$A74,1)-2)))","v":0},{"$f":"IF(ISERROR(FIND(AH$3,'CFR - XML import'!$A74)),0,VALUE(MID('CFR - XML import'!$A74,SEARCH(\">\",'CFR - XML import'!$A74,1)+1,SEARCH(\"/\",'CFR - XML import'!$A74,1)-SEARCH(\">\",'CFR - XML import'!$A74,1)-2)))","v":0},{"$f":"IF(ISERROR(FIND(AI$3,'CFR - XML import'!$A74)),0,VALUE(MID('CFR - XML import'!$A74,SEARCH(\">\",'CFR - XML import'!$A74,1)+1,SEARCH(\"/\",'CFR - XML import'!$A74,1)-SEARCH(\">\",'CFR - XML import'!$A74,1)-2)))","v":0},{"$f":"IF(ISERROR(FIND(AJ$3,'CFR - XML import'!$A74)),0,VALUE(MID('CFR - XML import'!$A74,SEARCH(\">\",'CFR - XML import'!$A74,1)+1,SEARCH(\"/\",'CFR - XML import'!$A74,1)-SEARCH(\">\",'CFR - XML import'!$A74,1)-2)))","v":0},{"$f":"IF(ISERROR(FIND(AK$3,'CFR - XML import'!$A74)),0,VALUE(MID('CFR - XML import'!$A74,SEARCH(\">\",'CFR - XML import'!$A74,1)+1,SEARCH(\"/\",'CFR - XML import'!$A74,1)-SEARCH(\">\",'CFR - XML import'!$A74,1)-2)))","v":0},{"$f":"IF(ISERROR(FIND(AL$3,'CFR - XML import'!$A74)),0,VALUE(MID('CFR - XML import'!$A74,SEARCH(\">\",'CFR - XML import'!$A74,1)+1,SEARCH(\"/\",'CFR - XML import'!$A74,1)-SEARCH(\">\",'CFR - XML import'!$A74,1)-2)))","v":0},{"$f":"IF(ISERROR(FIND(AM$3,'CFR - XML import'!$A74)),0,VALUE(MID('CFR - XML import'!$A74,SEARCH(\">\",'CFR - XML import'!$A74,1)+1,SEARCH(\"/\",'CFR - XML import'!$A74,1)-SEARCH(\">\",'CFR - XML import'!$A74,1)-2)))","v":0},{"$f":"IF(ISERROR(FIND(AN$3,'CFR - XML import'!$A74)),0,VALUE(MID('CFR - XML import'!$A74,SEARCH(\">\",'CFR - XML import'!$A74,1)+1,SEARCH(\"/\",'CFR - XML import'!$A74,1)-SEARCH(\">\",'CFR - XML import'!$A74,1)-2)))","v":0},{"$f":"IF(ISERROR(FIND(AO$3,'CFR - XML import'!$A74)),0,VALUE(MID('CFR - XML import'!$A74,SEARCH(\">\",'CFR - XML import'!$A74,1)+1,SEARCH(\"/\",'CFR - XML import'!$A74,1)-SEARCH(\">\",'CFR - XML import'!$A74,1)-2)))","v":0},{"$f":"IF(ISERROR(FIND(AP$3,'CFR - XML import'!$A74)),0,VALUE(MID('CFR - XML import'!$A74,SEARCH(\">\",'CFR - XML import'!$A74,1)+1,SEARCH(\"/\",'CFR - XML import'!$A74,1)-SEARCH(\">\",'CFR - XML import'!$A74,1)-2)))","v":0},{"$f":"IF(ISERROR(FIND(AQ$3,'CFR - XML import'!$A74)),0,VALUE(MID('CFR - XML import'!$A74,SEARCH(\">\",'CFR - XML import'!$A74,1)+1,SEARCH(\"/\",'CFR - XML import'!$A74,1)-SEARCH(\">\",'CFR - XML import'!$A74,1)-2)))","v":0},{"$f":"IF(ISERROR(FIND(AR$3,'CFR - XML import'!$A74)),0,VALUE(MID('CFR - XML import'!$A74,SEARCH(\">\",'CFR - XML import'!$A74,1)+1,SEARCH(\"/\",'CFR - XML import'!$A74,1)-SEARCH(\">\",'CFR - XML import'!$A74,1)-2)))","v":0},{"$f":"IF(ISERROR(FIND(AS$3,'CFR - XML import'!$A74)),0,VALUE(MID('CFR - XML import'!$A74,SEARCH(\">\",'CFR - XML import'!$A74,1)+1,SEARCH(\"/\",'CFR - XML import'!$A74,1)-SEARCH(\">\",'CFR - XML import'!$A74,1)-2)))","v":0},{"$f":"IF(ISERROR(FIND(AT$3,'CFR - XML import'!$A74)),0,VALUE(MID('CFR - XML import'!$A74,SEARCH(\">\",'CFR - XML import'!$A74,1)+1,SEARCH(\"/\",'CFR - XML import'!$A74,1)-SEARCH(\">\",'CFR - XML import'!$A74,1)-2)))","v":0},{"$f":"IF(ISERROR(FIND(AU$3,'CFR - XML import'!$A74)),0,VALUE(MID('CFR - XML import'!$A74,SEARCH(\">\",'CFR - XML import'!$A74,1)+1,SEARCH(\"/\",'CFR - XML import'!$A74,1)-SEARCH(\">\",'CFR - XML import'!$A74,1)-2)))","v":0},{"$f":"IF(ISERROR(FIND(AV$3,'CFR - XML import'!$A74)),0,VALUE(MID('CFR - XML import'!$A74,SEARCH(\">\",'CFR - XML import'!$A74,1)+1,SEARCH(\"/\",'CFR - XML import'!$A74,1)-SEARCH(\">\",'CFR - XML import'!$A74,1)-2)))","v":0},{"$f":"IF(ISERROR(FIND(AW$3,'CFR - XML import'!$A74)),0,VALUE(MID('CFR - XML import'!$A74,SEARCH(\">\",'CFR - XML import'!$A74,1)+1,SEARCH(\"/\",'CFR - XML import'!$A74,1)-SEARCH(\">\",'CFR - XML import'!$A74,1)-2)))","v":0},{"$f":"IF(ISERROR(FIND(AX$3,'CFR - XML import'!$A74)),0,VALUE(MID('CFR - XML import'!$A74,SEARCH(\">\",'CFR - XML import'!$A74,1)+1,SEARCH(\"/\",'CFR - XML import'!$A74,1)-SEARCH(\">\",'CFR - XML import'!$A74,1)-2)))","v":0},{"$f":"IF(ISERROR(FIND(AY$3,'CFR - XML import'!$A74)),0,VALUE(MID('CFR - XML import'!$A74,SEARCH(\">\",'CFR - XML import'!$A74,1)+1,SEARCH(\"/\",'CFR - XML import'!$A74,1)-SEARCH(\">\",'CFR - XML import'!$A74,1)-2)))","v":0},{"$f":"IF(ISERROR(FIND(AZ$3,'CFR - XML import'!$A74)),0,VALUE(MID('CFR - XML import'!$A74,SEARCH(\">\",'CFR - XML import'!$A74,1)+1,SEARCH(\"/\",'CFR - XML import'!$A74,1)-SEARCH(\">\",'CFR - XML import'!$A74,1)-2)))","v":0},{"$f":"IF(ISERROR(FIND(BA$3,'CFR - XML import'!$A74)),0,VALUE(MID('CFR - XML import'!$A74,SEARCH(\">\",'CFR - XML import'!$A74,1)+1,SEARCH(\"/\",'CFR - XML import'!$A74,1)-SEARCH(\">\",'CFR - XML import'!$A74,1)-2)))","v":0},{"$f":"IF(ISERROR(FIND(BB$3,'CFR - XML import'!$A74)),0,VALUE(MID('CFR - XML import'!$A74,SEARCH(\">\",'CFR - XML import'!$A74,1)+1,SEARCH(\"/\",'CFR - XML import'!$A74,1)-SEARCH(\">\",'CFR - XML import'!$A74,1)-2)))","v":0},{"$f":"IF(ISERROR(FIND(BC$3,'CFR - XML import'!$A74)),0,VALUE(MID('CFR - XML import'!$A74,SEARCH(\">\",'CFR - XML import'!$A74,1)+1,SEARCH(\"/\",'CFR - XML import'!$A74,1)-SEARCH(\">\",'CFR - XML import'!$A74,1)-2)))","v":0},{"$f":"IF(ISERROR(FIND(BD$3,'CFR - XML import'!$A74)),0,VALUE(MID('CFR - XML import'!$A74,SEARCH(\">\",'CFR - XML import'!$A74,1)+1,SEARCH(\"/\",'CFR - XML import'!$A74,1)-SEARCH(\">\",'CFR - XML import'!$A74,1)-2)))","v":0},{"$f":"IF(ISERROR(FIND(BE$3,'CFR - XML import'!$A74)),0,VALUE(MID('CFR - XML import'!$A74,SEARCH(\">\",'CFR - XML import'!$A74,1)+1,SEARCH(\"/\",'CFR - XML import'!$A74,1)-SEARCH(\">\",'CFR - XML import'!$A74,1)-2)))","v":0},{"$f":"IF(ISERROR(FIND(BF$3,'CFR - XML import'!$A74)),0,VALUE(MID('CFR - XML import'!$A74,SEARCH(\">\",'CFR - XML import'!$A74,1)+1,SEARCH(\"/\",'CFR - XML import'!$A74,1)-SEARCH(\">\",'CFR - XML import'!$A74,1)-2)))","v":0},{"$f":"IF(ISERROR(FIND(BG$3,'CFR - XML import'!$A74)),0,VALUE(MID('CFR - XML import'!$A74,SEARCH(\">\",'CFR - XML import'!$A74,1)+1,SEARCH(\"/\",'CFR - XML import'!$A74,1)-SEARCH(\">\",'CFR - XML import'!$A74,1)-2)))","v":0},{"$f":"IF(ISERROR(FIND(BH$3,'CFR - XML import'!$A74)),0,VALUE(MID('CFR - XML import'!$A74,SEARCH(\">\",'CFR - XML import'!$A74,1)+1,SEARCH(\"/\",'CFR - XML import'!$A74,1)-SEARCH(\">\",'CFR - XML import'!$A74,1)-2)))","v":0},{"$f":"IF(ISERROR(FIND(BI$3,'CFR - XML import'!$A74)),0,VALUE(MID('CFR - XML import'!$A74,SEARCH(\">\",'CFR - XML import'!$A74,1)+1,SEARCH(\"/\",'CFR - XML import'!$A74,1)-SEARCH(\">\",'CFR - XML import'!$A74,1)-2)))","v":0},{"$f":"IF(ISERROR(FIND(BJ$3,'CFR - XML import'!$A74)),0,VALUE(MID('CFR - XML import'!$A74,SEARCH(\">\",'CFR - XML import'!$A74,1)+1,SEARCH(\"/\",'CFR - XML import'!$A74,1)-SEARCH(\">\",'CFR - XML import'!$A74,1)-2)))","v":0},{"$f":"IF(ISERROR(FIND(BK$3,'CFR - XML import'!$A74)),0,VALUE(MID('CFR - XML import'!$A74,SEARCH(\">\",'CFR - XML import'!$A74,1)+1,SEARCH(\"/\",'CFR - XML import'!$A74,1)-SEARCH(\">\",'CFR - XML import'!$A74,1)-2)))","v":0},{"$f":"IF(ISERROR(FIND(BL$3,'CFR - XML import'!$A74)),0,VALUE(MID('CFR - XML import'!$A74,SEARCH(\">\",'CFR - XML import'!$A74,1)+1,SEARCH(\"/\",'CFR - XML import'!$A74,1)-SEARCH(\">\",'CFR - XML import'!$A74,1)-2)))","v":0},{"$f":"IF(ISERROR(FIND(BM$3,'CFR - XML import'!$A74)),0,VALUE(MID('CFR - XML import'!$A74,SEARCH(\">\",'CFR - XML import'!$A74,1)+1,SEARCH(\"/\",'CFR - XML import'!$A74,1)-SEARCH(\">\",'CFR - XML import'!$A74,1)-2)))","v":0},{"$f":"IF(ISERROR(FIND(BN$3,'CFR - XML import'!$A74)),0,VALUE(MID('CFR - XML import'!$A74,SEARCH(\">\",'CFR - XML import'!$A74,1)+1,SEARCH(\"/\",'CFR - XML import'!$A74,1)-SEARCH(\">\",'CFR - XML import'!$A74,1)-2)))","v":0},{"$f":"IF(ISERROR(FIND(BO$3,'CFR - XML import'!$A74)),0,VALUE(MID('CFR - XML import'!$A74,SEARCH(\">\",'CFR - XML import'!$A74,1)+1,SEARCH(\"/\",'CFR - XML import'!$A74,1)-SEARCH(\">\",'CFR - XML import'!$A74,1)-2)))","v":0},{"$f":"IF(ISERROR(FIND(BP$3,'CFR - XML import'!$A74)),0,VALUE(MID('CFR - XML import'!$A74,SEARCH(\">\",'CFR - XML import'!$A74,1)+1,SEARCH(\"/\",'CFR - XML import'!$A74,1)-SEARCH(\">\",'CFR - XML import'!$A74,1)-2)))","v":0},{"$f":"IF(ISERROR(FIND(BQ$3,'CFR - XML import'!$A74)),0,VALUE(MID('CFR - XML import'!$A74,SEARCH(\">\",'CFR - XML import'!$A74,1)+1,SEARCH(\"/\",'CFR - XML import'!$A74,1)-SEARCH(\">\",'CFR - XML import'!$A74,1)-2)))","v":0},{"$f":"IF(ISERROR(FIND(BR$3,'CFR - XML import'!$A74)),0,VALUE(MID('CFR - XML import'!$A74,SEARCH(\">\",'CFR - XML import'!$A74,1)+1,SEARCH(\"/\",'CFR - XML import'!$A74,1)-SEARCH(\">\",'CFR - XML import'!$A74,1)-2)))","v":0},{"$f":"IF(ISERROR(FIND(BS$3,'CFR - XML import'!$A74)),0,VALUE(MID('CFR - XML import'!$A74,SEARCH(\">\",'CFR - XML import'!$A74,1)+1,SEARCH(\"/\",'CFR - XML import'!$A74,1)-SEARCH(\">\",'CFR - XML import'!$A74,1)-2)))","v":0},{"$f":"IF(ISERROR(FIND(BT$3,'CFR - XML import'!$A74)),0,VALUE(MID('CFR - XML import'!$A74,SEARCH(\">\",'CFR - XML import'!$A74,1)+1,SEARCH(\"/\",'CFR - XML import'!$A74,1)-SEARCH(\">\",'CFR - XML import'!$A74,1)-2)))","v":0},{"$f":"IF(ISERROR(FIND(BU$3,'CFR - XML import'!$A74)),0,VALUE(MID('CFR - XML import'!$A74,SEARCH(\">\",'CFR - XML import'!$A74,1)+1,SEARCH(\"/\",'CFR - XML import'!$A74,1)-SEARCH(\">\",'CFR - XML import'!$A74,1)-2)))","v":0},{"$f":"IF(ISERROR(FIND(BV$3,'CFR - XML import'!$A74)),0,VALUE(MID('CFR - XML import'!$A74,SEARCH(\">\",'CFR - XML import'!$A74,1)+1,SEARCH(\"/\",'CFR - XML import'!$A74,1)-SEARCH(\">\",'CFR - XML import'!$A74,1)-2)))","v":0},{"$f":"IF(ISERROR(FIND(BW$3,'CFR - XML import'!$A74)),0,VALUE(MID('CFR - XML import'!$A74,SEARCH(\">\",'CFR - XML import'!$A74,1)+1,SEARCH(\"/\",'CFR - XML import'!$A74,1)-SEARCH(\">\",'CFR - XML import'!$A74,1)-2)))","v":0},{"$f":"IF(ISERROR(FIND(BX$3,'CFR - XML import'!$A74)),0,VALUE(MID('CFR - XML import'!$A74,SEARCH(\">\",'CFR - XML import'!$A74,1)+1,SEARCH(\"/\",'CFR - XML import'!$A74,1)-SEARCH(\">\",'CFR - XML import'!$A74,1)-2)))","v":0},{"$f":"IF(ISERROR(FIND(BY$3,'CFR - XML import'!$A74)),0,VALUE(MID('CFR - XML import'!$A74,SEARCH(\">\",'CFR - XML import'!$A74,1)+1,SEARCH(\"/\",'CFR - XML import'!$A74,1)-SEARCH(\">\",'CFR - XML import'!$A74,1)-2)))","v":0},{"$f":"IF(ISERROR(FIND(BZ$3,'CFR - XML import'!$A74)),0,VALUE(MID('CFR - XML import'!$A74,SEARCH(\">\",'CFR - XML import'!$A74,1)+1,SEARCH(\"/\",'CFR - XML import'!$A74,1)-SEARCH(\">\",'CFR - XML import'!$A74,1)-2)))","v":0},null,null,null,null,null,null,{"$f":"IF(ISERROR(IF(MID('CFR - XML import'!$A74,LEN($CF$4)+1,LEN('CFR - XML import'!$A74)-(2*LEN($CF$4)+1))=\"RMMS\",1,IF(MID('CFR - XML import'!$A74,LEN(\"    <InputSystem>\")+1,LEN('CFR - XML import'!$A74)-(LEN(\"    <InputSystem>\")+LEN($CF$4)+1))=\"SIMS\",2,0))),0,IF(MID('CFR - XML import'!$A74,LEN($CF$4)+1,LEN('CFR - XML import'!$A74)-(2*LEN($CF$4)+1))=\"RMMS\",1,IF(MID('CFR - XML import'!$A74,LEN(\"    <InputSystem>\")+1,LEN('CFR - XML import'!$A74)-(LEN(\"    <InputSystem>\")+LEN($CF$4)+1))=\"SIMS\",2,0)))","v":0},{"$f":"IF(ISERROR(FIND(CH$3,'CFR - XML import'!$A74)),0,MID('CFR - XML import'!$A74,SEARCH(\">\",'CFR - XML import'!$A74,1)+1,SEARCH(\"/\",'CFR - XML import'!$A74,1)-SEARCH(\">\",'CFR - XML import'!$A74,1)-2))","v":0},{"$f":"IF(ISERROR(FIND(CI$3,'CFR - XML import'!$A74)),0,MID('CFR - XML import'!$A74,SEARCH(\">\",'CFR - XML import'!$A74,1)+1,SEARCH(\"/\",'CFR - XML import'!$A74,1)-SEARCH(\">\",'CFR - XML import'!$A74,1)-2))","v":0},{"$f":"IF(ISERROR(FIND(CJ$3,'CFR - XML import'!$A74)),0,MID('CFR - XML import'!$A74,SEARCH(\">\",'CFR - XML import'!$A74,1)+1,SEARCH(\"/\",'CFR - XML import'!$A74,1)-SEARCH(\">\",'CFR - XML import'!$A74,1)-2))","v":0},{"$f":"IF(ISERROR(FIND(CK$3,'CFR - XML import'!$A74)),0,MID('CFR - XML import'!$A74,SEARCH(\">\",'CFR - XML import'!$A74,1)+1,SEARCH(\"/\",'CFR - XML import'!$A74,1)-SEARCH(\">\",'CFR - XML import'!$A74,1)-2))","v":0},{"$f":"IF(ISERROR(FIND(CL$3,'CFR - XML import'!$A74)),0,MID('CFR - XML import'!$A74,SEARCH(\">\",'CFR - XML import'!$A74,1)+1,SEARCH(\"/\",'CFR - XML import'!$A74,1)-SEARCH(\">\",'CFR - XML import'!$A74,1)-2))","v":0}]
[{"$f":"IF(AND('CFR - XML import'!A75<>\"\",LEFT('CFR - XML import'!A75,1)<>\"<\",LEFT('CFR - XML import'!A75,3)<>\"  <\",LEFT('CFR - XML import'!A75,5)<>\"    <\",LEFT('CFR - XML import'!A75,7)<>\"      <\",LEFT('CFR - XML import'!A75,9)<>\"        <\",$B$1=\"SIMS\"),'CFR - XML import'!A75,IF(AND(LEFT('CFR - XML import'!A75,9)=\"<Details>\",$B$1=\"RM\"),'CFR - XML import'!A75,\"\"))","v":""},{"$f":"IF(ISERROR(FIND(B$3,'CFR - XML import'!$A75)),0,VALUE(MID('CFR - XML import'!$A75,SEARCH(\">\",'CFR - XML import'!$A75,1)+1,SEARCH(\"/\",'CFR - XML import'!$A75,1)-SEARCH(\">\",'CFR - XML import'!$A75,1)-2)))","v":0},null,{"$f":"IF(ISERROR(FIND(D$3,'CFR - XML import'!$A75)),0,MID('CFR - XML import'!$A75,SEARCH(\">\",'CFR - XML import'!$A75,1)+1,SEARCH(\"/\",'CFR - XML import'!$A75,1)-SEARCH(\">\",'CFR - XML import'!$A75,1)-2))","v":0},{"$f":"IF(ISERROR(FIND(E$3,'CFR - XML import'!$A75)),0,MID('CFR - XML import'!$A75,SEARCH(\">\",'CFR - XML import'!$A75,1)+1,SEARCH(\"/\",'CFR - XML import'!$A75,1)-SEARCH(\">\",'CFR - XML import'!$A75,1)-2))","v":0},{"$f":"IF($B$1=\"SIMS\",IF(ISERROR(FIND(F$3,'CFR - XML import'!$A75)),0,VALUE(MID('CFR - XML import'!$A75,15,10))),IF(ISERROR(FIND(F$3,'CFR - XML import'!$A75)),0,VALUE(MID('CFR - XML import'!$A75,11,10))))","v":"00:00:00"},{"$f":"IF(ISERROR(FIND(G$3,'CFR - XML import'!$A75)),0,VALUE(MID('CFR - XML import'!$A75,SEARCH(\">\",'CFR - XML import'!$A75,1)+1,SEARCH(\"/\",'CFR - XML import'!$A75,1)-SEARCH(\">\",'CFR - XML import'!$A75,1)-2)))","v":0},{"$f":"IF(ISERROR(FIND(H$3,'CFR - XML import'!$A75)),0,VALUE(MID('CFR - XML import'!$A75,SEARCH(\">\",'CFR - XML import'!$A75,1)+1,SEARCH(\"/\",'CFR - XML import'!$A75,1)-SEARCH(\">\",'CFR - XML import'!$A75,1)-2)))","v":0},{"$f":"IF(ISERROR(FIND(I$3,'CFR - XML import'!$A75)),0,VALUE(MID('CFR - XML import'!$A75,SEARCH(\">\",'CFR - XML import'!$A75,1)+1,SEARCH(\"/\",'CFR - XML import'!$A75,1)-SEARCH(\">\",'CFR - XML import'!$A75,1)-2)))","v":0},{"$f":"IF(ISERROR(FIND(J$3,'CFR - XML import'!$A75)),0,VALUE(MID('CFR - XML import'!$A75,SEARCH(\">\",'CFR - XML import'!$A75,1)+1,SEARCH(\"/\",'CFR - XML import'!$A75,1)-SEARCH(\">\",'CFR - XML import'!$A75,1)-2)))","v":0},{"$f":"IF(ISERROR(FIND(K$3,'CFR - XML import'!$A75)),0,VALUE(MID('CFR - XML import'!$A75,SEARCH(\">\",'CFR - XML import'!$A75,1)+1,SEARCH(\"/\",'CFR - XML import'!$A75,1)-SEARCH(\">\",'CFR - XML import'!$A75,1)-2)))","v":0},{"$f":"IF(ISERROR(FIND(L$3,'CFR - XML import'!$A75)),0,VALUE(MID('CFR - XML import'!$A75,SEARCH(\">\",'CFR - XML import'!$A75,1)+1,SEARCH(\"/\",'CFR - XML import'!$A75,1)-SEARCH(\">\",'CFR - XML import'!$A75,1)-2)))","v":0},{"$f":"IF(ISERROR(FIND(M$3,'CFR - XML import'!$A75)),0,VALUE(MID('CFR - XML import'!$A75,SEARCH(\">\",'CFR - XML import'!$A75,1)+1,SEARCH(\"/\",'CFR - XML import'!$A75,1)-SEARCH(\">\",'CFR - XML import'!$A75,1)-2)))","v":0},{"$f":"IF(ISERROR(FIND(N$3,'CFR - XML import'!$A75)),0,VALUE(MID('CFR - XML import'!$A75,SEARCH(\">\",'CFR - XML import'!$A75,1)+1,SEARCH(\"/\",'CFR - XML import'!$A75,1)-SEARCH(\">\",'CFR - XML import'!$A75,1)-2)))","v":0},{"$f":"IF(ISERROR(FIND(O$3,'CFR - XML import'!$A75)),0,VALUE(MID('CFR - XML import'!$A75,SEARCH(\">\",'CFR - XML import'!$A75,1)+1,SEARCH(\"/\",'CFR - XML import'!$A75,1)-SEARCH(\">\",'CFR - XML import'!$A75,1)-2)))","v":0},{"$f":"IF(ISERROR(FIND(P$3,'CFR - XML import'!$A75)),0,VALUE(MID('CFR - XML import'!$A75,SEARCH(\">\",'CFR - XML import'!$A75,1)+1,SEARCH(\"/\",'CFR - XML import'!$A75,1)-SEARCH(\">\",'CFR - XML import'!$A75,1)-2)))","v":0},{"$f":"IF(ISERROR(FIND(Q$3,'CFR - XML import'!$A75)),0,VALUE(MID('CFR - XML import'!$A75,SEARCH(\">\",'CFR - XML import'!$A75,1)+1,SEARCH(\"/\",'CFR - XML import'!$A75,1)-SEARCH(\">\",'CFR - XML import'!$A75,1)-2)))","v":0},{"$f":"IF(ISERROR(FIND(R$3,'CFR - XML import'!$A75)),0,VALUE(MID('CFR - XML import'!$A75,SEARCH(\">\",'CFR - XML import'!$A75,1)+1,SEARCH(\"/\",'CFR - XML import'!$A75,1)-SEARCH(\">\",'CFR - XML import'!$A75,1)-2)))","v":0},{"$f":"IF(ISERROR(FIND(S$3,'CFR - XML import'!$A75)),0,VALUE(MID('CFR - XML import'!$A75,SEARCH(\">\",'CFR - XML import'!$A75,1)+1,SEARCH(\"/\",'CFR - XML import'!$A75,1)-SEARCH(\">\",'CFR - XML import'!$A75,1)-2)))","v":0},{"$f":"IF(ISERROR(FIND(T$3,'CFR - XML import'!$A75)),0,VALUE(MID('CFR - XML import'!$A75,SEARCH(\">\",'CFR - XML import'!$A75,1)+1,SEARCH(\"/\",'CFR - XML import'!$A75,1)-SEARCH(\">\",'CFR - XML import'!$A75,1)-2)))","v":0},{"$f":"IF(ISERROR(FIND(U$3,'CFR - XML import'!$A75)),0,VALUE(MID('CFR - XML import'!$A75,SEARCH(\">\",'CFR - XML import'!$A75,1)+1,SEARCH(\"/\",'CFR - XML import'!$A75,1)-SEARCH(\">\",'CFR - XML import'!$A75,1)-2)))","v":0},{"$f":"IF(ISERROR(FIND(V$3,'CFR - XML import'!$A75)),0,VALUE(MID('CFR - XML import'!$A75,SEARCH(\">\",'CFR - XML import'!$A75,1)+1,SEARCH(\"/\",'CFR - XML import'!$A75,1)-SEARCH(\">\",'CFR - XML import'!$A75,1)-2)))","v":0},{"$f":"IF(ISERROR(FIND(W$3,'CFR - XML import'!$A75)),0,VALUE(MID('CFR - XML import'!$A75,SEARCH(\">\",'CFR - XML import'!$A75,1)+1,SEARCH(\"/\",'CFR - XML import'!$A75,1)-SEARCH(\">\",'CFR - XML import'!$A75,1)-2)))","v":0},null,{"$f":"IF(ISERROR(FIND(Y$3,'CFR - XML import'!$A75)),0,VALUE(MID('CFR - XML import'!$A75,SEARCH(\">\",'CFR - XML import'!$A75,1)+1,SEARCH(\"/\",'CFR - XML import'!$A75,1)-SEARCH(\">\",'CFR - XML import'!$A75,1)-2)))","v":0},{"$f":"IF(ISERROR(FIND(Z$3,'CFR - XML import'!$A75)),0,VALUE(MID('CFR - XML import'!$A75,SEARCH(\">\",'CFR - XML import'!$A75,1)+1,SEARCH(\"/\",'CFR - XML import'!$A75,1)-SEARCH(\">\",'CFR - XML import'!$A75,1)-2)))","v":0},{"$f":"IF(ISERROR(FIND(AA$3,'CFR - XML import'!$A75)),0,VALUE(MID('CFR - XML import'!$A75,SEARCH(\">\",'CFR - XML import'!$A75,1)+1,SEARCH(\"/\",'CFR - XML import'!$A75,1)-SEARCH(\">\",'CFR - XML import'!$A75,1)-2)))","v":0},{"$f":"IF(ISERROR(FIND(AB$3,'CFR - XML import'!$A75)),0,VALUE(MID('CFR - XML import'!$A75,SEARCH(\">\",'CFR - XML import'!$A75,1)+1,SEARCH(\"/\",'CFR - XML import'!$A75,1)-SEARCH(\">\",'CFR - XML import'!$A75,1)-2)))","v":0},{"$f":"IF(ISERROR(FIND(AC$3,'CFR - XML import'!$A75)),0,VALUE(MID('CFR - XML import'!$A75,SEARCH(\">\",'CFR - XML import'!$A75,1)+1,SEARCH(\"/\",'CFR - XML import'!$A75,1)-SEARCH(\">\",'CFR - XML import'!$A75,1)-2)))","v":0},{"$f":"IF(ISERROR(FIND(AD$3,'CFR - XML import'!$A75)),0,VALUE(MID('CFR - XML import'!$A75,SEARCH(\">\",'CFR - XML import'!$A75,1)+1,SEARCH(\"/\",'CFR - XML import'!$A75,1)-SEARCH(\">\",'CFR - XML import'!$A75,1)-2)))","v":0},{"$f":"IF(ISERROR(FIND(AE$3,'CFR - XML import'!$A75)),0,VALUE(MID('CFR - XML import'!$A75,SEARCH(\">\",'CFR - XML import'!$A75,1)+1,SEARCH(\"/\",'CFR - XML import'!$A75,1)-SEARCH(\">\",'CFR - XML import'!$A75,1)-2)))","v":0},{"$f":"IF(ISERROR(FIND(AF$3,'CFR - XML import'!$A75)),0,VALUE(MID('CFR - XML import'!$A75,SEARCH(\">\",'CFR - XML import'!$A75,1)+1,SEARCH(\"/\",'CFR - XML import'!$A75,1)-SEARCH(\">\",'CFR - XML import'!$A75,1)-2)))","v":0},{"$f":"IF(ISERROR(FIND(AG$3,'CFR - XML import'!$A75)),0,VALUE(MID('CFR - XML import'!$A75,SEARCH(\">\",'CFR - XML import'!$A75,1)+1,SEARCH(\"/\",'CFR - XML import'!$A75,1)-SEARCH(\">\",'CFR - XML import'!$A75,1)-2)))","v":0},{"$f":"IF(ISERROR(FIND(AH$3,'CFR - XML import'!$A75)),0,VALUE(MID('CFR - XML import'!$A75,SEARCH(\">\",'CFR - XML import'!$A75,1)+1,SEARCH(\"/\",'CFR - XML import'!$A75,1)-SEARCH(\">\",'CFR - XML import'!$A75,1)-2)))","v":0},{"$f":"IF(ISERROR(FIND(AI$3,'CFR - XML import'!$A75)),0,VALUE(MID('CFR - XML import'!$A75,SEARCH(\">\",'CFR - XML import'!$A75,1)+1,SEARCH(\"/\",'CFR - XML import'!$A75,1)-SEARCH(\">\",'CFR - XML import'!$A75,1)-2)))","v":0},{"$f":"IF(ISERROR(FIND(AJ$3,'CFR - XML import'!$A75)),0,VALUE(MID('CFR - XML import'!$A75,SEARCH(\">\",'CFR - XML import'!$A75,1)+1,SEARCH(\"/\",'CFR - XML import'!$A75,1)-SEARCH(\">\",'CFR - XML import'!$A75,1)-2)))","v":0},{"$f":"IF(ISERROR(FIND(AK$3,'CFR - XML import'!$A75)),0,VALUE(MID('CFR - XML import'!$A75,SEARCH(\">\",'CFR - XML import'!$A75,1)+1,SEARCH(\"/\",'CFR - XML import'!$A75,1)-SEARCH(\">\",'CFR - XML import'!$A75,1)-2)))","v":0},{"$f":"IF(ISERROR(FIND(AL$3,'CFR - XML import'!$A75)),0,VALUE(MID('CFR - XML import'!$A75,SEARCH(\">\",'CFR - XML import'!$A75,1)+1,SEARCH(\"/\",'CFR - XML import'!$A75,1)-SEARCH(\">\",'CFR - XML import'!$A75,1)-2)))","v":0},{"$f":"IF(ISERROR(FIND(AM$3,'CFR - XML import'!$A75)),0,VALUE(MID('CFR - XML import'!$A75,SEARCH(\">\",'CFR - XML import'!$A75,1)+1,SEARCH(\"/\",'CFR - XML import'!$A75,1)-SEARCH(\">\",'CFR - XML import'!$A75,1)-2)))","v":0},{"$f":"IF(ISERROR(FIND(AN$3,'CFR - XML import'!$A75)),0,VALUE(MID('CFR - XML import'!$A75,SEARCH(\">\",'CFR - XML import'!$A75,1)+1,SEARCH(\"/\",'CFR - XML import'!$A75,1)-SEARCH(\">\",'CFR - XML import'!$A75,1)-2)))","v":0},{"$f":"IF(ISERROR(FIND(AO$3,'CFR - XML import'!$A75)),0,VALUE(MID('CFR - XML import'!$A75,SEARCH(\">\",'CFR - XML import'!$A75,1)+1,SEARCH(\"/\",'CFR - XML import'!$A75,1)-SEARCH(\">\",'CFR - XML import'!$A75,1)-2)))","v":0},{"$f":"IF(ISERROR(FIND(AP$3,'CFR - XML import'!$A75)),0,VALUE(MID('CFR - XML import'!$A75,SEARCH(\">\",'CFR - XML import'!$A75,1)+1,SEARCH(\"/\",'CFR - XML import'!$A75,1)-SEARCH(\">\",'CFR - XML import'!$A75,1)-2)))","v":0},{"$f":"IF(ISERROR(FIND(AQ$3,'CFR - XML import'!$A75)),0,VALUE(MID('CFR - XML import'!$A75,SEARCH(\">\",'CFR - XML import'!$A75,1)+1,SEARCH(\"/\",'CFR - XML import'!$A75,1)-SEARCH(\">\",'CFR - XML import'!$A75,1)-2)))","v":0},{"$f":"IF(ISERROR(FIND(AR$3,'CFR - XML import'!$A75)),0,VALUE(MID('CFR - XML import'!$A75,SEARCH(\">\",'CFR - XML import'!$A75,1)+1,SEARCH(\"/\",'CFR - XML import'!$A75,1)-SEARCH(\">\",'CFR - XML import'!$A75,1)-2)))","v":0},{"$f":"IF(ISERROR(FIND(AS$3,'CFR - XML import'!$A75)),0,VALUE(MID('CFR - XML import'!$A75,SEARCH(\">\",'CFR - XML import'!$A75,1)+1,SEARCH(\"/\",'CFR - XML import'!$A75,1)-SEARCH(\">\",'CFR - XML import'!$A75,1)-2)))","v":0},{"$f":"IF(ISERROR(FIND(AT$3,'CFR - XML import'!$A75)),0,VALUE(MID('CFR - XML import'!$A75,SEARCH(\">\",'CFR - XML import'!$A75,1)+1,SEARCH(\"/\",'CFR - XML import'!$A75,1)-SEARCH(\">\",'CFR - XML import'!$A75,1)-2)))","v":0},{"$f":"IF(ISERROR(FIND(AU$3,'CFR - XML import'!$A75)),0,VALUE(MID('CFR - XML import'!$A75,SEARCH(\">\",'CFR - XML import'!$A75,1)+1,SEARCH(\"/\",'CFR - XML import'!$A75,1)-SEARCH(\">\",'CFR - XML import'!$A75,1)-2)))","v":0},{"$f":"IF(ISERROR(FIND(AV$3,'CFR - XML import'!$A75)),0,VALUE(MID('CFR - XML import'!$A75,SEARCH(\">\",'CFR - XML import'!$A75,1)+1,SEARCH(\"/\",'CFR - XML import'!$A75,1)-SEARCH(\">\",'CFR - XML import'!$A75,1)-2)))","v":0},{"$f":"IF(ISERROR(FIND(AW$3,'CFR - XML import'!$A75)),0,VALUE(MID('CFR - XML import'!$A75,SEARCH(\">\",'CFR - XML import'!$A75,1)+1,SEARCH(\"/\",'CFR - XML import'!$A75,1)-SEARCH(\">\",'CFR - XML import'!$A75,1)-2)))","v":0},{"$f":"IF(ISERROR(FIND(AX$3,'CFR - XML import'!$A75)),0,VALUE(MID('CFR - XML import'!$A75,SEARCH(\">\",'CFR - XML import'!$A75,1)+1,SEARCH(\"/\",'CFR - XML import'!$A75,1)-SEARCH(\">\",'CFR - XML import'!$A75,1)-2)))","v":0},{"$f":"IF(ISERROR(FIND(AY$3,'CFR - XML import'!$A75)),0,VALUE(MID('CFR - XML import'!$A75,SEARCH(\">\",'CFR - XML import'!$A75,1)+1,SEARCH(\"/\",'CFR - XML import'!$A75,1)-SEARCH(\">\",'CFR - XML import'!$A75,1)-2)))","v":0},{"$f":"IF(ISERROR(FIND(AZ$3,'CFR - XML import'!$A75)),0,VALUE(MID('CFR - XML import'!$A75,SEARCH(\">\",'CFR - XML import'!$A75,1)+1,SEARCH(\"/\",'CFR - XML import'!$A75,1)-SEARCH(\">\",'CFR - XML import'!$A75,1)-2)))","v":0},{"$f":"IF(ISERROR(FIND(BA$3,'CFR - XML import'!$A75)),0,VALUE(MID('CFR - XML import'!$A75,SEARCH(\">\",'CFR - XML import'!$A75,1)+1,SEARCH(\"/\",'CFR - XML import'!$A75,1)-SEARCH(\">\",'CFR - XML import'!$A75,1)-2)))","v":0},{"$f":"IF(ISERROR(FIND(BB$3,'CFR - XML import'!$A75)),0,VALUE(MID('CFR - XML import'!$A75,SEARCH(\">\",'CFR - XML import'!$A75,1)+1,SEARCH(\"/\",'CFR - XML import'!$A75,1)-SEARCH(\">\",'CFR - XML import'!$A75,1)-2)))","v":0},{"$f":"IF(ISERROR(FIND(BC$3,'CFR - XML import'!$A75)),0,VALUE(MID('CFR - XML import'!$A75,SEARCH(\">\",'CFR - XML import'!$A75,1)+1,SEARCH(\"/\",'CFR - XML import'!$A75,1)-SEARCH(\">\",'CFR - XML import'!$A75,1)-2)))","v":0},{"$f":"IF(ISERROR(FIND(BD$3,'CFR - XML import'!$A75)),0,VALUE(MID('CFR - XML import'!$A75,SEARCH(\">\",'CFR - XML import'!$A75,1)+1,SEARCH(\"/\",'CFR - XML import'!$A75,1)-SEARCH(\">\",'CFR - XML import'!$A75,1)-2)))","v":0},{"$f":"IF(ISERROR(FIND(BE$3,'CFR - XML import'!$A75)),0,VALUE(MID('CFR - XML import'!$A75,SEARCH(\">\",'CFR - XML import'!$A75,1)+1,SEARCH(\"/\",'CFR - XML import'!$A75,1)-SEARCH(\">\",'CFR - XML import'!$A75,1)-2)))","v":0},{"$f":"IF(ISERROR(FIND(BF$3,'CFR - XML import'!$A75)),0,VALUE(MID('CFR - XML import'!$A75,SEARCH(\">\",'CFR - XML import'!$A75,1)+1,SEARCH(\"/\",'CFR - XML import'!$A75,1)-SEARCH(\">\",'CFR - XML import'!$A75,1)-2)))","v":0},{"$f":"IF(ISERROR(FIND(BG$3,'CFR - XML import'!$A75)),0,VALUE(MID('CFR - XML import'!$A75,SEARCH(\">\",'CFR - XML import'!$A75,1)+1,SEARCH(\"/\",'CFR - XML import'!$A75,1)-SEARCH(\">\",'CFR - XML import'!$A75,1)-2)))","v":0},{"$f":"IF(ISERROR(FIND(BH$3,'CFR - XML import'!$A75)),0,VALUE(MID('CFR - XML import'!$A75,SEARCH(\">\",'CFR - XML import'!$A75,1)+1,SEARCH(\"/\",'CFR - XML import'!$A75,1)-SEARCH(\">\",'CFR - XML import'!$A75,1)-2)))","v":0},{"$f":"IF(ISERROR(FIND(BI$3,'CFR - XML import'!$A75)),0,VALUE(MID('CFR - XML import'!$A75,SEARCH(\">\",'CFR - XML import'!$A75,1)+1,SEARCH(\"/\",'CFR - XML import'!$A75,1)-SEARCH(\">\",'CFR - XML import'!$A75,1)-2)))","v":0},{"$f":"IF(ISERROR(FIND(BJ$3,'CFR - XML import'!$A75)),0,VALUE(MID('CFR - XML import'!$A75,SEARCH(\">\",'CFR - XML import'!$A75,1)+1,SEARCH(\"/\",'CFR - XML import'!$A75,1)-SEARCH(\">\",'CFR - XML import'!$A75,1)-2)))","v":0},{"$f":"IF(ISERROR(FIND(BK$3,'CFR - XML import'!$A75)),0,VALUE(MID('CFR - XML import'!$A75,SEARCH(\">\",'CFR - XML import'!$A75,1)+1,SEARCH(\"/\",'CFR - XML import'!$A75,1)-SEARCH(\">\",'CFR - XML import'!$A75,1)-2)))","v":0},{"$f":"IF(ISERROR(FIND(BL$3,'CFR - XML import'!$A75)),0,VALUE(MID('CFR - XML import'!$A75,SEARCH(\">\",'CFR - XML import'!$A75,1)+1,SEARCH(\"/\",'CFR - XML import'!$A75,1)-SEARCH(\">\",'CFR - XML import'!$A75,1)-2)))","v":0},{"$f":"IF(ISERROR(FIND(BM$3,'CFR - XML import'!$A75)),0,VALUE(MID('CFR - XML import'!$A75,SEARCH(\">\",'CFR - XML import'!$A75,1)+1,SEARCH(\"/\",'CFR - XML import'!$A75,1)-SEARCH(\">\",'CFR - XML import'!$A75,1)-2)))","v":0},{"$f":"IF(ISERROR(FIND(BN$3,'CFR - XML import'!$A75)),0,VALUE(MID('CFR - XML import'!$A75,SEARCH(\">\",'CFR - XML import'!$A75,1)+1,SEARCH(\"/\",'CFR - XML import'!$A75,1)-SEARCH(\">\",'CFR - XML import'!$A75,1)-2)))","v":0},{"$f":"IF(ISERROR(FIND(BO$3,'CFR - XML import'!$A75)),0,VALUE(MID('CFR - XML import'!$A75,SEARCH(\">\",'CFR - XML import'!$A75,1)+1,SEARCH(\"/\",'CFR - XML import'!$A75,1)-SEARCH(\">\",'CFR - XML import'!$A75,1)-2)))","v":0},{"$f":"IF(ISERROR(FIND(BP$3,'CFR - XML import'!$A75)),0,VALUE(MID('CFR - XML import'!$A75,SEARCH(\">\",'CFR - XML import'!$A75,1)+1,SEARCH(\"/\",'CFR - XML import'!$A75,1)-SEARCH(\">\",'CFR - XML import'!$A75,1)-2)))","v":0},{"$f":"IF(ISERROR(FIND(BQ$3,'CFR - XML import'!$A75)),0,VALUE(MID('CFR - XML import'!$A75,SEARCH(\">\",'CFR - XML import'!$A75,1)+1,SEARCH(\"/\",'CFR - XML import'!$A75,1)-SEARCH(\">\",'CFR - XML import'!$A75,1)-2)))","v":0},{"$f":"IF(ISERROR(FIND(BR$3,'CFR - XML import'!$A75)),0,VALUE(MID('CFR - XML import'!$A75,SEARCH(\">\",'CFR - XML import'!$A75,1)+1,SEARCH(\"/\",'CFR - XML import'!$A75,1)-SEARCH(\">\",'CFR - XML import'!$A75,1)-2)))","v":0},{"$f":"IF(ISERROR(FIND(BS$3,'CFR - XML import'!$A75)),0,VALUE(MID('CFR - XML import'!$A75,SEARCH(\">\",'CFR - XML import'!$A75,1)+1,SEARCH(\"/\",'CFR - XML import'!$A75,1)-SEARCH(\">\",'CFR - XML import'!$A75,1)-2)))","v":0},{"$f":"IF(ISERROR(FIND(BT$3,'CFR - XML import'!$A75)),0,VALUE(MID('CFR - XML import'!$A75,SEARCH(\">\",'CFR - XML import'!$A75,1)+1,SEARCH(\"/\",'CFR - XML import'!$A75,1)-SEARCH(\">\",'CFR - XML import'!$A75,1)-2)))","v":0},{"$f":"IF(ISERROR(FIND(BU$3,'CFR - XML import'!$A75)),0,VALUE(MID('CFR - XML import'!$A75,SEARCH(\">\",'CFR - XML import'!$A75,1)+1,SEARCH(\"/\",'CFR - XML import'!$A75,1)-SEARCH(\">\",'CFR - XML import'!$A75,1)-2)))","v":0},{"$f":"IF(ISERROR(FIND(BV$3,'CFR - XML import'!$A75)),0,VALUE(MID('CFR - XML import'!$A75,SEARCH(\">\",'CFR - XML import'!$A75,1)+1,SEARCH(\"/\",'CFR - XML import'!$A75,1)-SEARCH(\">\",'CFR - XML import'!$A75,1)-2)))","v":0},{"$f":"IF(ISERROR(FIND(BW$3,'CFR - XML import'!$A75)),0,VALUE(MID('CFR - XML import'!$A75,SEARCH(\">\",'CFR - XML import'!$A75,1)+1,SEARCH(\"/\",'CFR - XML import'!$A75,1)-SEARCH(\">\",'CFR - XML import'!$A75,1)-2)))","v":0},{"$f":"IF(ISERROR(FIND(BX$3,'CFR - XML import'!$A75)),0,VALUE(MID('CFR - XML import'!$A75,SEARCH(\">\",'CFR - XML import'!$A75,1)+1,SEARCH(\"/\",'CFR - XML import'!$A75,1)-SEARCH(\">\",'CFR - XML import'!$A75,1)-2)))","v":0},{"$f":"IF(ISERROR(FIND(BY$3,'CFR - XML import'!$A75)),0,VALUE(MID('CFR - XML import'!$A75,SEARCH(\">\",'CFR - XML import'!$A75,1)+1,SEARCH(\"/\",'CFR - XML import'!$A75,1)-SEARCH(\">\",'CFR - XML import'!$A75,1)-2)))","v":0},{"$f":"IF(ISERROR(FIND(BZ$3,'CFR - XML import'!$A75)),0,VALUE(MID('CFR - XML import'!$A75,SEARCH(\">\",'CFR - XML import'!$A75,1)+1,SEARCH(\"/\",'CFR - XML import'!$A75,1)-SEARCH(\">\",'CFR - XML import'!$A75,1)-2)))","v":0},null,null,null,null,null,null,{"$f":"IF(ISERROR(IF(MID('CFR - XML import'!$A75,LEN($CF$4)+1,LEN('CFR - XML import'!$A75)-(2*LEN($CF$4)+1))=\"RMMS\",1,IF(MID('CFR - XML import'!$A75,LEN(\"    <InputSystem>\")+1,LEN('CFR - XML import'!$A75)-(LEN(\"    <InputSystem>\")+LEN($CF$4)+1))=\"SIMS\",2,0))),0,IF(MID('CFR - XML import'!$A75,LEN($CF$4)+1,LEN('CFR - XML import'!$A75)-(2*LEN($CF$4)+1))=\"RMMS\",1,IF(MID('CFR - XML import'!$A75,LEN(\"    <InputSystem>\")+1,LEN('CFR - XML import'!$A75)-(LEN(\"    <InputSystem>\")+LEN($CF$4)+1))=\"SIMS\",2,0)))","v":0},{"$f":"IF(ISERROR(FIND(CH$3,'CFR - XML import'!$A75)),0,MID('CFR - XML import'!$A75,SEARCH(\">\",'CFR - XML import'!$A75,1)+1,SEARCH(\"/\",'CFR - XML import'!$A75,1)-SEARCH(\">\",'CFR - XML import'!$A75,1)-2))","v":0},{"$f":"IF(ISERROR(FIND(CI$3,'CFR - XML import'!$A75)),0,MID('CFR - XML import'!$A75,SEARCH(\">\",'CFR - XML import'!$A75,1)+1,SEARCH(\"/\",'CFR - XML import'!$A75,1)-SEARCH(\">\",'CFR - XML import'!$A75,1)-2))","v":0},{"$f":"IF(ISERROR(FIND(CJ$3,'CFR - XML import'!$A75)),0,MID('CFR - XML import'!$A75,SEARCH(\">\",'CFR - XML import'!$A75,1)+1,SEARCH(\"/\",'CFR - XML import'!$A75,1)-SEARCH(\">\",'CFR - XML import'!$A75,1)-2))","v":0},{"$f":"IF(ISERROR(FIND(CK$3,'CFR - XML import'!$A75)),0,MID('CFR - XML import'!$A75,SEARCH(\">\",'CFR - XML import'!$A75,1)+1,SEARCH(\"/\",'CFR - XML import'!$A75,1)-SEARCH(\">\",'CFR - XML import'!$A75,1)-2))","v":0},{"$f":"IF(ISERROR(FIND(CL$3,'CFR - XML import'!$A75)),0,MID('CFR - XML import'!$A75,SEARCH(\">\",'CFR - XML import'!$A75,1)+1,SEARCH(\"/\",'CFR - XML import'!$A75,1)-SEARCH(\">\",'CFR - XML import'!$A75,1)-2))","v":0}]
[{"$f":"IF(AND('CFR - XML import'!A76<>\"\",LEFT('CFR - XML import'!A76,1)<>\"<\",LEFT('CFR - XML import'!A76,3)<>\"  <\",LEFT('CFR - XML import'!A76,5)<>\"    <\",LEFT('CFR - XML import'!A76,7)<>\"      <\",LEFT('CFR - XML import'!A76,9)<>\"        <\",$B$1=\"SIMS\"),'CFR - XML import'!A76,IF(AND(LEFT('CFR - XML import'!A76,9)=\"<Details>\",$B$1=\"RM\"),'CFR - XML import'!A76,\"\"))","v":""},{"$f":"IF(ISERROR(FIND(B$3,'CFR - XML import'!$A76)),0,VALUE(MID('CFR - XML import'!$A76,SEARCH(\">\",'CFR - XML import'!$A76,1)+1,SEARCH(\"/\",'CFR - XML import'!$A76,1)-SEARCH(\">\",'CFR - XML import'!$A76,1)-2)))","v":0},null,{"$f":"IF(ISERROR(FIND(D$3,'CFR - XML import'!$A76)),0,MID('CFR - XML import'!$A76,SEARCH(\">\",'CFR - XML import'!$A76,1)+1,SEARCH(\"/\",'CFR - XML import'!$A76,1)-SEARCH(\">\",'CFR - XML import'!$A76,1)-2))","v":0},{"$f":"IF(ISERROR(FIND(E$3,'CFR - XML import'!$A76)),0,MID('CFR - XML import'!$A76,SEARCH(\">\",'CFR - XML import'!$A76,1)+1,SEARCH(\"/\",'CFR - XML import'!$A76,1)-SEARCH(\">\",'CFR - XML import'!$A76,1)-2))","v":0},{"$f":"IF($B$1=\"SIMS\",IF(ISERROR(FIND(F$3,'CFR - XML import'!$A76)),0,VALUE(MID('CFR - XML import'!$A76,15,10))),IF(ISERROR(FIND(F$3,'CFR - XML import'!$A76)),0,VALUE(MID('CFR - XML import'!$A76,11,10))))","v":"00:00:00"},{"$f":"IF(ISERROR(FIND(G$3,'CFR - XML import'!$A76)),0,VALUE(MID('CFR - XML import'!$A76,SEARCH(\">\",'CFR - XML import'!$A76,1)+1,SEARCH(\"/\",'CFR - XML import'!$A76,1)-SEARCH(\">\",'CFR - XML import'!$A76,1)-2)))","v":0},{"$f":"IF(ISERROR(FIND(H$3,'CFR - XML import'!$A76)),0,VALUE(MID('CFR - XML import'!$A76,SEARCH(\">\",'CFR - XML import'!$A76,1)+1,SEARCH(\"/\",'CFR - XML import'!$A76,1)-SEARCH(\">\",'CFR - XML import'!$A76,1)-2)))","v":0},{"$f":"IF(ISERROR(FIND(I$3,'CFR - XML import'!$A76)),0,VALUE(MID('CFR - XML import'!$A76,SEARCH(\">\",'CFR - XML import'!$A76,1)+1,SEARCH(\"/\",'CFR - XML import'!$A76,1)-SEARCH(\">\",'CFR - XML import'!$A76,1)-2)))","v":0},{"$f":"IF(ISERROR(FIND(J$3,'CFR - XML import'!$A76)),0,VALUE(MID('CFR - XML import'!$A76,SEARCH(\">\",'CFR - XML import'!$A76,1)+1,SEARCH(\"/\",'CFR - XML import'!$A76,1)-SEARCH(\">\",'CFR - XML import'!$A76,1)-2)))","v":0},{"$f":"IF(ISERROR(FIND(K$3,'CFR - XML import'!$A76)),0,VALUE(MID('CFR - XML import'!$A76,SEARCH(\">\",'CFR - XML import'!$A76,1)+1,SEARCH(\"/\",'CFR - XML import'!$A76,1)-SEARCH(\">\",'CFR - XML import'!$A76,1)-2)))","v":0},{"$f":"IF(ISERROR(FIND(L$3,'CFR - XML import'!$A76)),0,VALUE(MID('CFR - XML import'!$A76,SEARCH(\">\",'CFR - XML import'!$A76,1)+1,SEARCH(\"/\",'CFR - XML import'!$A76,1)-SEARCH(\">\",'CFR - XML import'!$A76,1)-2)))","v":0},{"$f":"IF(ISERROR(FIND(M$3,'CFR - XML import'!$A76)),0,VALUE(MID('CFR - XML import'!$A76,SEARCH(\">\",'CFR - XML import'!$A76,1)+1,SEARCH(\"/\",'CFR - XML import'!$A76,1)-SEARCH(\">\",'CFR - XML import'!$A76,1)-2)))","v":0},{"$f":"IF(ISERROR(FIND(N$3,'CFR - XML import'!$A76)),0,VALUE(MID('CFR - XML import'!$A76,SEARCH(\">\",'CFR - XML import'!$A76,1)+1,SEARCH(\"/\",'CFR - XML import'!$A76,1)-SEARCH(\">\",'CFR - XML import'!$A76,1)-2)))","v":0},{"$f":"IF(ISERROR(FIND(O$3,'CFR - XML import'!$A76)),0,VALUE(MID('CFR - XML import'!$A76,SEARCH(\">\",'CFR - XML import'!$A76,1)+1,SEARCH(\"/\",'CFR - XML import'!$A76,1)-SEARCH(\">\",'CFR - XML import'!$A76,1)-2)))","v":0},{"$f":"IF(ISERROR(FIND(P$3,'CFR - XML import'!$A76)),0,VALUE(MID('CFR - XML import'!$A76,SEARCH(\">\",'CFR - XML import'!$A76,1)+1,SEARCH(\"/\",'CFR - XML import'!$A76,1)-SEARCH(\">\",'CFR - XML import'!$A76,1)-2)))","v":0},{"$f":"IF(ISERROR(FIND(Q$3,'CFR - XML import'!$A76)),0,VALUE(MID('CFR - XML import'!$A76,SEARCH(\">\",'CFR - XML import'!$A76,1)+1,SEARCH(\"/\",'CFR - XML import'!$A76,1)-SEARCH(\">\",'CFR - XML import'!$A76,1)-2)))","v":0},{"$f":"IF(ISERROR(FIND(R$3,'CFR - XML import'!$A76)),0,VALUE(MID('CFR - XML import'!$A76,SEARCH(\">\",'CFR - XML import'!$A76,1)+1,SEARCH(\"/\",'CFR - XML import'!$A76,1)-SEARCH(\">\",'CFR - XML import'!$A76,1)-2)))","v":0},{"$f":"IF(ISERROR(FIND(S$3,'CFR - XML import'!$A76)),0,VALUE(MID('CFR - XML import'!$A76,SEARCH(\">\",'CFR - XML import'!$A76,1)+1,SEARCH(\"/\",'CFR - XML import'!$A76,1)-SEARCH(\">\",'CFR - XML import'!$A76,1)-2)))","v":0},{"$f":"IF(ISERROR(FIND(T$3,'CFR - XML import'!$A76)),0,VALUE(MID('CFR - XML import'!$A76,SEARCH(\">\",'CFR - XML import'!$A76,1)+1,SEARCH(\"/\",'CFR - XML import'!$A76,1)-SEARCH(\">\",'CFR - XML import'!$A76,1)-2)))","v":0},{"$f":"IF(ISERROR(FIND(U$3,'CFR - XML import'!$A76)),0,VALUE(MID('CFR - XML import'!$A76,SEARCH(\">\",'CFR - XML import'!$A76,1)+1,SEARCH(\"/\",'CFR - XML import'!$A76,1)-SEARCH(\">\",'CFR - XML import'!$A76,1)-2)))","v":0},{"$f":"IF(ISERROR(FIND(V$3,'CFR - XML import'!$A76)),0,VALUE(MID('CFR - XML import'!$A76,SEARCH(\">\",'CFR - XML import'!$A76,1)+1,SEARCH(\"/\",'CFR - XML import'!$A76,1)-SEARCH(\">\",'CFR - XML import'!$A76,1)-2)))","v":0},{"$f":"IF(ISERROR(FIND(W$3,'CFR - XML import'!$A76)),0,VALUE(MID('CFR - XML import'!$A76,SEARCH(\">\",'CFR - XML import'!$A76,1)+1,SEARCH(\"/\",'CFR - XML import'!$A76,1)-SEARCH(\">\",'CFR - XML import'!$A76,1)-2)))","v":0},null,{"$f":"IF(ISERROR(FIND(Y$3,'CFR - XML import'!$A76)),0,VALUE(MID('CFR - XML import'!$A76,SEARCH(\">\",'CFR - XML import'!$A76,1)+1,SEARCH(\"/\",'CFR - XML import'!$A76,1)-SEARCH(\">\",'CFR - XML import'!$A76,1)-2)))","v":0},{"$f":"IF(ISERROR(FIND(Z$3,'CFR - XML import'!$A76)),0,VALUE(MID('CFR - XML import'!$A76,SEARCH(\">\",'CFR - XML import'!$A76,1)+1,SEARCH(\"/\",'CFR - XML import'!$A76,1)-SEARCH(\">\",'CFR - XML import'!$A76,1)-2)))","v":0},{"$f":"IF(ISERROR(FIND(AA$3,'CFR - XML import'!$A76)),0,VALUE(MID('CFR - XML import'!$A76,SEARCH(\">\",'CFR - XML import'!$A76,1)+1,SEARCH(\"/\",'CFR - XML import'!$A76,1)-SEARCH(\">\",'CFR - XML import'!$A76,1)-2)))","v":0},{"$f":"IF(ISERROR(FIND(AB$3,'CFR - XML import'!$A76)),0,VALUE(MID('CFR - XML import'!$A76,SEARCH(\">\",'CFR - XML import'!$A76,1)+1,SEARCH(\"/\",'CFR - XML import'!$A76,1)-SEARCH(\">\",'CFR - XML import'!$A76,1)-2)))","v":0},{"$f":"IF(ISERROR(FIND(AC$3,'CFR - XML import'!$A76)),0,VALUE(MID('CFR - XML import'!$A76,SEARCH(\">\",'CFR - XML import'!$A76,1)+1,SEARCH(\"/\",'CFR - XML import'!$A76,1)-SEARCH(\">\",'CFR - XML import'!$A76,1)-2)))","v":0},{"$f":"IF(ISERROR(FIND(AD$3,'CFR - XML import'!$A76)),0,VALUE(MID('CFR - XML import'!$A76,SEARCH(\">\",'CFR - XML import'!$A76,1)+1,SEARCH(\"/\",'CFR - XML import'!$A76,1)-SEARCH(\">\",'CFR - XML import'!$A76,1)-2)))","v":0},{"$f":"IF(ISERROR(FIND(AE$3,'CFR - XML import'!$A76)),0,VALUE(MID('CFR - XML import'!$A76,SEARCH(\">\",'CFR - XML import'!$A76,1)+1,SEARCH(\"/\",'CFR - XML import'!$A76,1)-SEARCH(\">\",'CFR - XML import'!$A76,1)-2)))","v":0},{"$f":"IF(ISERROR(FIND(AF$3,'CFR - XML import'!$A76)),0,VALUE(MID('CFR - XML import'!$A76,SEARCH(\">\",'CFR - XML import'!$A76,1)+1,SEARCH(\"/\",'CFR - XML import'!$A76,1)-SEARCH(\">\",'CFR - XML import'!$A76,1)-2)))","v":0},{"$f":"IF(ISERROR(FIND(AG$3,'CFR - XML import'!$A76)),0,VALUE(MID('CFR - XML import'!$A76,SEARCH(\">\",'CFR - XML import'!$A76,1)+1,SEARCH(\"/\",'CFR - XML import'!$A76,1)-SEARCH(\">\",'CFR - XML import'!$A76,1)-2)))","v":0},{"$f":"IF(ISERROR(FIND(AH$3,'CFR - XML import'!$A76)),0,VALUE(MID('CFR - XML import'!$A76,SEARCH(\">\",'CFR - XML import'!$A76,1)+1,SEARCH(\"/\",'CFR - XML import'!$A76,1)-SEARCH(\">\",'CFR - XML import'!$A76,1)-2)))","v":0},{"$f":"IF(ISERROR(FIND(AI$3,'CFR - XML import'!$A76)),0,VALUE(MID('CFR - XML import'!$A76,SEARCH(\">\",'CFR - XML import'!$A76,1)+1,SEARCH(\"/\",'CFR - XML import'!$A76,1)-SEARCH(\">\",'CFR - XML import'!$A76,1)-2)))","v":0},{"$f":"IF(ISERROR(FIND(AJ$3,'CFR - XML import'!$A76)),0,VALUE(MID('CFR - XML import'!$A76,SEARCH(\">\",'CFR - XML import'!$A76,1)+1,SEARCH(\"/\",'CFR - XML import'!$A76,1)-SEARCH(\">\",'CFR - XML import'!$A76,1)-2)))","v":0},{"$f":"IF(ISERROR(FIND(AK$3,'CFR - XML import'!$A76)),0,VALUE(MID('CFR - XML import'!$A76,SEARCH(\">\",'CFR - XML import'!$A76,1)+1,SEARCH(\"/\",'CFR - XML import'!$A76,1)-SEARCH(\">\",'CFR - XML import'!$A76,1)-2)))","v":0},{"$f":"IF(ISERROR(FIND(AL$3,'CFR - XML import'!$A76)),0,VALUE(MID('CFR - XML import'!$A76,SEARCH(\">\",'CFR - XML import'!$A76,1)+1,SEARCH(\"/\",'CFR - XML import'!$A76,1)-SEARCH(\">\",'CFR - XML import'!$A76,1)-2)))","v":0},{"$f":"IF(ISERROR(FIND(AM$3,'CFR - XML import'!$A76)),0,VALUE(MID('CFR - XML import'!$A76,SEARCH(\">\",'CFR - XML import'!$A76,1)+1,SEARCH(\"/\",'CFR - XML import'!$A76,1)-SEARCH(\">\",'CFR - XML import'!$A76,1)-2)))","v":0},{"$f":"IF(ISERROR(FIND(AN$3,'CFR - XML import'!$A76)),0,VALUE(MID('CFR - XML import'!$A76,SEARCH(\">\",'CFR - XML import'!$A76,1)+1,SEARCH(\"/\",'CFR - XML import'!$A76,1)-SEARCH(\">\",'CFR - XML import'!$A76,1)-2)))","v":0},{"$f":"IF(ISERROR(FIND(AO$3,'CFR - XML import'!$A76)),0,VALUE(MID('CFR - XML import'!$A76,SEARCH(\">\",'CFR - XML import'!$A76,1)+1,SEARCH(\"/\",'CFR - XML import'!$A76,1)-SEARCH(\">\",'CFR - XML import'!$A76,1)-2)))","v":0},{"$f":"IF(ISERROR(FIND(AP$3,'CFR - XML import'!$A76)),0,VALUE(MID('CFR - XML import'!$A76,SEARCH(\">\",'CFR - XML import'!$A76,1)+1,SEARCH(\"/\",'CFR - XML import'!$A76,1)-SEARCH(\">\",'CFR - XML import'!$A76,1)-2)))","v":0},{"$f":"IF(ISERROR(FIND(AQ$3,'CFR - XML import'!$A76)),0,VALUE(MID('CFR - XML import'!$A76,SEARCH(\">\",'CFR - XML import'!$A76,1)+1,SEARCH(\"/\",'CFR - XML import'!$A76,1)-SEARCH(\">\",'CFR - XML import'!$A76,1)-2)))","v":0},{"$f":"IF(ISERROR(FIND(AR$3,'CFR - XML import'!$A76)),0,VALUE(MID('CFR - XML import'!$A76,SEARCH(\">\",'CFR - XML import'!$A76,1)+1,SEARCH(\"/\",'CFR - XML import'!$A76,1)-SEARCH(\">\",'CFR - XML import'!$A76,1)-2)))","v":0},{"$f":"IF(ISERROR(FIND(AS$3,'CFR - XML import'!$A76)),0,VALUE(MID('CFR - XML import'!$A76,SEARCH(\">\",'CFR - XML import'!$A76,1)+1,SEARCH(\"/\",'CFR - XML import'!$A76,1)-SEARCH(\">\",'CFR - XML import'!$A76,1)-2)))","v":0},{"$f":"IF(ISERROR(FIND(AT$3,'CFR - XML import'!$A76)),0,VALUE(MID('CFR - XML import'!$A76,SEARCH(\">\",'CFR - XML import'!$A76,1)+1,SEARCH(\"/\",'CFR - XML import'!$A76,1)-SEARCH(\">\",'CFR - XML import'!$A76,1)-2)))","v":0},{"$f":"IF(ISERROR(FIND(AU$3,'CFR - XML import'!$A76)),0,VALUE(MID('CFR - XML import'!$A76,SEARCH(\">\",'CFR - XML import'!$A76,1)+1,SEARCH(\"/\",'CFR - XML import'!$A76,1)-SEARCH(\">\",'CFR - XML import'!$A76,1)-2)))","v":0},{"$f":"IF(ISERROR(FIND(AV$3,'CFR - XML import'!$A76)),0,VALUE(MID('CFR - XML import'!$A76,SEARCH(\">\",'CFR - XML import'!$A76,1)+1,SEARCH(\"/\",'CFR - XML import'!$A76,1)-SEARCH(\">\",'CFR - XML import'!$A76,1)-2)))","v":0},{"$f":"IF(ISERROR(FIND(AW$3,'CFR - XML import'!$A76)),0,VALUE(MID('CFR - XML import'!$A76,SEARCH(\">\",'CFR - XML import'!$A76,1)+1,SEARCH(\"/\",'CFR - XML import'!$A76,1)-SEARCH(\">\",'CFR - XML import'!$A76,1)-2)))","v":0},{"$f":"IF(ISERROR(FIND(AX$3,'CFR - XML import'!$A76)),0,VALUE(MID('CFR - XML import'!$A76,SEARCH(\">\",'CFR - XML import'!$A76,1)+1,SEARCH(\"/\",'CFR - XML import'!$A76,1)-SEARCH(\">\",'CFR - XML import'!$A76,1)-2)))","v":0},{"$f":"IF(ISERROR(FIND(AY$3,'CFR - XML import'!$A76)),0,VALUE(MID('CFR - XML import'!$A76,SEARCH(\">\",'CFR - XML import'!$A76,1)+1,SEARCH(\"/\",'CFR - XML import'!$A76,1)-SEARCH(\">\",'CFR - XML import'!$A76,1)-2)))","v":0},{"$f":"IF(ISERROR(FIND(AZ$3,'CFR - XML import'!$A76)),0,VALUE(MID('CFR - XML import'!$A76,SEARCH(\">\",'CFR - XML import'!$A76,1)+1,SEARCH(\"/\",'CFR - XML import'!$A76,1)-SEARCH(\">\",'CFR - XML import'!$A76,1)-2)))","v":0},{"$f":"IF(ISERROR(FIND(BA$3,'CFR - XML import'!$A76)),0,VALUE(MID('CFR - XML import'!$A76,SEARCH(\">\",'CFR - XML import'!$A76,1)+1,SEARCH(\"/\",'CFR - XML import'!$A76,1)-SEARCH(\">\",'CFR - XML import'!$A76,1)-2)))","v":0},{"$f":"IF(ISERROR(FIND(BB$3,'CFR - XML import'!$A76)),0,VALUE(MID('CFR - XML import'!$A76,SEARCH(\">\",'CFR - XML import'!$A76,1)+1,SEARCH(\"/\",'CFR - XML import'!$A76,1)-SEARCH(\">\",'CFR - XML import'!$A76,1)-2)))","v":0},{"$f":"IF(ISERROR(FIND(BC$3,'CFR - XML import'!$A76)),0,VALUE(MID('CFR - XML import'!$A76,SEARCH(\">\",'CFR - XML import'!$A76,1)+1,SEARCH(\"/\",'CFR - XML import'!$A76,1)-SEARCH(\">\",'CFR - XML import'!$A76,1)-2)))","v":0},{"$f":"IF(ISERROR(FIND(BD$3,'CFR - XML import'!$A76)),0,VALUE(MID('CFR - XML import'!$A76,SEARCH(\">\",'CFR - XML import'!$A76,1)+1,SEARCH(\"/\",'CFR - XML import'!$A76,1)-SEARCH(\">\",'CFR - XML import'!$A76,1)-2)))","v":0},{"$f":"IF(ISERROR(FIND(BE$3,'CFR - XML import'!$A76)),0,VALUE(MID('CFR - XML import'!$A76,SEARCH(\">\",'CFR - XML import'!$A76,1)+1,SEARCH(\"/\",'CFR - XML import'!$A76,1)-SEARCH(\">\",'CFR - XML import'!$A76,1)-2)))","v":0},{"$f":"IF(ISERROR(FIND(BF$3,'CFR - XML import'!$A76)),0,VALUE(MID('CFR - XML import'!$A76,SEARCH(\">\",'CFR - XML import'!$A76,1)+1,SEARCH(\"/\",'CFR - XML import'!$A76,1)-SEARCH(\">\",'CFR - XML import'!$A76,1)-2)))","v":0},{"$f":"IF(ISERROR(FIND(BG$3,'CFR - XML import'!$A76)),0,VALUE(MID('CFR - XML import'!$A76,SEARCH(\">\",'CFR - XML import'!$A76,1)+1,SEARCH(\"/\",'CFR - XML import'!$A76,1)-SEARCH(\">\",'CFR - XML import'!$A76,1)-2)))","v":0},{"$f":"IF(ISERROR(FIND(BH$3,'CFR - XML import'!$A76)),0,VALUE(MID('CFR - XML import'!$A76,SEARCH(\">\",'CFR - XML import'!$A76,1)+1,SEARCH(\"/\",'CFR - XML import'!$A76,1)-SEARCH(\">\",'CFR - XML import'!$A76,1)-2)))","v":0},{"$f":"IF(ISERROR(FIND(BI$3,'CFR - XML import'!$A76)),0,VALUE(MID('CFR - XML import'!$A76,SEARCH(\">\",'CFR - XML import'!$A76,1)+1,SEARCH(\"/\",'CFR - XML import'!$A76,1)-SEARCH(\">\",'CFR - XML import'!$A76,1)-2)))","v":0},{"$f":"IF(ISERROR(FIND(BJ$3,'CFR - XML import'!$A76)),0,VALUE(MID('CFR - XML import'!$A76,SEARCH(\">\",'CFR - XML import'!$A76,1)+1,SEARCH(\"/\",'CFR - XML import'!$A76,1)-SEARCH(\">\",'CFR - XML import'!$A76,1)-2)))","v":0},{"$f":"IF(ISERROR(FIND(BK$3,'CFR - XML import'!$A76)),0,VALUE(MID('CFR - XML import'!$A76,SEARCH(\">\",'CFR - XML import'!$A76,1)+1,SEARCH(\"/\",'CFR - XML import'!$A76,1)-SEARCH(\">\",'CFR - XML import'!$A76,1)-2)))","v":0},{"$f":"IF(ISERROR(FIND(BL$3,'CFR - XML import'!$A76)),0,VALUE(MID('CFR - XML import'!$A76,SEARCH(\">\",'CFR - XML import'!$A76,1)+1,SEARCH(\"/\",'CFR - XML import'!$A76,1)-SEARCH(\">\",'CFR - XML import'!$A76,1)-2)))","v":0},{"$f":"IF(ISERROR(FIND(BM$3,'CFR - XML import'!$A76)),0,VALUE(MID('CFR - XML import'!$A76,SEARCH(\">\",'CFR - XML import'!$A76,1)+1,SEARCH(\"/\",'CFR - XML import'!$A76,1)-SEARCH(\">\",'CFR - XML import'!$A76,1)-2)))","v":0},{"$f":"IF(ISERROR(FIND(BN$3,'CFR - XML import'!$A76)),0,VALUE(MID('CFR - XML import'!$A76,SEARCH(\">\",'CFR - XML import'!$A76,1)+1,SEARCH(\"/\",'CFR - XML import'!$A76,1)-SEARCH(\">\",'CFR - XML import'!$A76,1)-2)))","v":0},{"$f":"IF(ISERROR(FIND(BO$3,'CFR - XML import'!$A76)),0,VALUE(MID('CFR - XML import'!$A76,SEARCH(\">\",'CFR - XML import'!$A76,1)+1,SEARCH(\"/\",'CFR - XML import'!$A76,1)-SEARCH(\">\",'CFR - XML import'!$A76,1)-2)))","v":0},{"$f":"IF(ISERROR(FIND(BP$3,'CFR - XML import'!$A76)),0,VALUE(MID('CFR - XML import'!$A76,SEARCH(\">\",'CFR - XML import'!$A76,1)+1,SEARCH(\"/\",'CFR - XML import'!$A76,1)-SEARCH(\">\",'CFR - XML import'!$A76,1)-2)))","v":0},{"$f":"IF(ISERROR(FIND(BQ$3,'CFR - XML import'!$A76)),0,VALUE(MID('CFR - XML import'!$A76,SEARCH(\">\",'CFR - XML import'!$A76,1)+1,SEARCH(\"/\",'CFR - XML import'!$A76,1)-SEARCH(\">\",'CFR - XML import'!$A76,1)-2)))","v":0},{"$f":"IF(ISERROR(FIND(BR$3,'CFR - XML import'!$A76)),0,VALUE(MID('CFR - XML import'!$A76,SEARCH(\">\",'CFR - XML import'!$A76,1)+1,SEARCH(\"/\",'CFR - XML import'!$A76,1)-SEARCH(\">\",'CFR - XML import'!$A76,1)-2)))","v":0},{"$f":"IF(ISERROR(FIND(BS$3,'CFR - XML import'!$A76)),0,VALUE(MID('CFR - XML import'!$A76,SEARCH(\">\",'CFR - XML import'!$A76,1)+1,SEARCH(\"/\",'CFR - XML import'!$A76,1)-SEARCH(\">\",'CFR - XML import'!$A76,1)-2)))","v":0},{"$f":"IF(ISERROR(FIND(BT$3,'CFR - XML import'!$A76)),0,VALUE(MID('CFR - XML import'!$A76,SEARCH(\">\",'CFR - XML import'!$A76,1)+1,SEARCH(\"/\",'CFR - XML import'!$A76,1)-SEARCH(\">\",'CFR - XML import'!$A76,1)-2)))","v":0},{"$f":"IF(ISERROR(FIND(BU$3,'CFR - XML import'!$A76)),0,VALUE(MID('CFR - XML import'!$A76,SEARCH(\">\",'CFR - XML import'!$A76,1)+1,SEARCH(\"/\",'CFR - XML import'!$A76,1)-SEARCH(\">\",'CFR - XML import'!$A76,1)-2)))","v":0},{"$f":"IF(ISERROR(FIND(BV$3,'CFR - XML import'!$A76)),0,VALUE(MID('CFR - XML import'!$A76,SEARCH(\">\",'CFR - XML import'!$A76,1)+1,SEARCH(\"/\",'CFR - XML import'!$A76,1)-SEARCH(\">\",'CFR - XML import'!$A76,1)-2)))","v":0},{"$f":"IF(ISERROR(FIND(BW$3,'CFR - XML import'!$A76)),0,VALUE(MID('CFR - XML import'!$A76,SEARCH(\">\",'CFR - XML import'!$A76,1)+1,SEARCH(\"/\",'CFR - XML import'!$A76,1)-SEARCH(\">\",'CFR - XML import'!$A76,1)-2)))","v":0},{"$f":"IF(ISERROR(FIND(BX$3,'CFR - XML import'!$A76)),0,VALUE(MID('CFR - XML import'!$A76,SEARCH(\">\",'CFR - XML import'!$A76,1)+1,SEARCH(\"/\",'CFR - XML import'!$A76,1)-SEARCH(\">\",'CFR - XML import'!$A76,1)-2)))","v":0},{"$f":"IF(ISERROR(FIND(BY$3,'CFR - XML import'!$A76)),0,VALUE(MID('CFR - XML import'!$A76,SEARCH(\">\",'CFR - XML import'!$A76,1)+1,SEARCH(\"/\",'CFR - XML import'!$A76,1)-SEARCH(\">\",'CFR - XML import'!$A76,1)-2)))","v":0},{"$f":"IF(ISERROR(FIND(BZ$3,'CFR - XML import'!$A76)),0,VALUE(MID('CFR - XML import'!$A76,SEARCH(\">\",'CFR - XML import'!$A76,1)+1,SEARCH(\"/\",'CFR - XML import'!$A76,1)-SEARCH(\">\",'CFR - XML import'!$A76,1)-2)))","v":0},null,null,null,null,null,null,{"$f":"IF(ISERROR(IF(MID('CFR - XML import'!$A76,LEN($CF$4)+1,LEN('CFR - XML import'!$A76)-(2*LEN($CF$4)+1))=\"RMMS\",1,IF(MID('CFR - XML import'!$A76,LEN(\"    <InputSystem>\")+1,LEN('CFR - XML import'!$A76)-(LEN(\"    <InputSystem>\")+LEN($CF$4)+1))=\"SIMS\",2,0))),0,IF(MID('CFR - XML import'!$A76,LEN($CF$4)+1,LEN('CFR - XML import'!$A76)-(2*LEN($CF$4)+1))=\"RMMS\",1,IF(MID('CFR - XML import'!$A76,LEN(\"    <InputSystem>\")+1,LEN('CFR - XML import'!$A76)-(LEN(\"    <InputSystem>\")+LEN($CF$4)+1))=\"SIMS\",2,0)))","v":0},{"$f":"IF(ISERROR(FIND(CH$3,'CFR - XML import'!$A76)),0,MID('CFR - XML import'!$A76,SEARCH(\">\",'CFR - XML import'!$A76,1)+1,SEARCH(\"/\",'CFR - XML import'!$A76,1)-SEARCH(\">\",'CFR - XML import'!$A76,1)-2))","v":0},{"$f":"IF(ISERROR(FIND(CI$3,'CFR - XML import'!$A76)),0,MID('CFR - XML import'!$A76,SEARCH(\">\",'CFR - XML import'!$A76,1)+1,SEARCH(\"/\",'CFR - XML import'!$A76,1)-SEARCH(\">\",'CFR - XML import'!$A76,1)-2))","v":0},{"$f":"IF(ISERROR(FIND(CJ$3,'CFR - XML import'!$A76)),0,MID('CFR - XML import'!$A76,SEARCH(\">\",'CFR - XML import'!$A76,1)+1,SEARCH(\"/\",'CFR - XML import'!$A76,1)-SEARCH(\">\",'CFR - XML import'!$A76,1)-2))","v":0},{"$f":"IF(ISERROR(FIND(CK$3,'CFR - XML import'!$A76)),0,MID('CFR - XML import'!$A76,SEARCH(\">\",'CFR - XML import'!$A76,1)+1,SEARCH(\"/\",'CFR - XML import'!$A76,1)-SEARCH(\">\",'CFR - XML import'!$A76,1)-2))","v":0},{"$f":"IF(ISERROR(FIND(CL$3,'CFR - XML import'!$A76)),0,MID('CFR - XML import'!$A76,SEARCH(\">\",'CFR - XML import'!$A76,1)+1,SEARCH(\"/\",'CFR - XML import'!$A76,1)-SEARCH(\">\",'CFR - XML import'!$A76,1)-2))","v":0}]
[{"$f":"IF(AND('CFR - XML import'!A77<>\"\",LEFT('CFR - XML import'!A77,1)<>\"<\",LEFT('CFR - XML import'!A77,3)<>\"  <\",LEFT('CFR - XML import'!A77,5)<>\"    <\",LEFT('CFR - XML import'!A77,7)<>\"      <\",LEFT('CFR - XML import'!A77,9)<>\"        <\",$B$1=\"SIMS\"),'CFR - XML import'!A77,IF(AND(LEFT('CFR - XML import'!A77,9)=\"<Details>\",$B$1=\"RM\"),'CFR - XML import'!A77,\"\"))","v":""},{"$f":"IF(ISERROR(FIND(B$3,'CFR - XML import'!$A77)),0,VALUE(MID('CFR - XML import'!$A77,SEARCH(\">\",'CFR - XML import'!$A77,1)+1,SEARCH(\"/\",'CFR - XML import'!$A77,1)-SEARCH(\">\",'CFR - XML import'!$A77,1)-2)))","v":0},null,{"$f":"IF(ISERROR(FIND(D$3,'CFR - XML import'!$A77)),0,MID('CFR - XML import'!$A77,SEARCH(\">\",'CFR - XML import'!$A77,1)+1,SEARCH(\"/\",'CFR - XML import'!$A77,1)-SEARCH(\">\",'CFR - XML import'!$A77,1)-2))","v":0},{"$f":"IF(ISERROR(FIND(E$3,'CFR - XML import'!$A77)),0,MID('CFR - XML import'!$A77,SEARCH(\">\",'CFR - XML import'!$A77,1)+1,SEARCH(\"/\",'CFR - XML import'!$A77,1)-SEARCH(\">\",'CFR - XML import'!$A77,1)-2))","v":0},{"$f":"IF($B$1=\"SIMS\",IF(ISERROR(FIND(F$3,'CFR - XML import'!$A77)),0,VALUE(MID('CFR - XML import'!$A77,15,10))),IF(ISERROR(FIND(F$3,'CFR - XML import'!$A77)),0,VALUE(MID('CFR - XML import'!$A77,11,10))))","v":"00:00:00"},{"$f":"IF(ISERROR(FIND(G$3,'CFR - XML import'!$A77)),0,VALUE(MID('CFR - XML import'!$A77,SEARCH(\">\",'CFR - XML import'!$A77,1)+1,SEARCH(\"/\",'CFR - XML import'!$A77,1)-SEARCH(\">\",'CFR - XML import'!$A77,1)-2)))","v":0},{"$f":"IF(ISERROR(FIND(H$3,'CFR - XML import'!$A77)),0,VALUE(MID('CFR - XML import'!$A77,SEARCH(\">\",'CFR - XML import'!$A77,1)+1,SEARCH(\"/\",'CFR - XML import'!$A77,1)-SEARCH(\">\",'CFR - XML import'!$A77,1)-2)))","v":0},{"$f":"IF(ISERROR(FIND(I$3,'CFR - XML import'!$A77)),0,VALUE(MID('CFR - XML import'!$A77,SEARCH(\">\",'CFR - XML import'!$A77,1)+1,SEARCH(\"/\",'CFR - XML import'!$A77,1)-SEARCH(\">\",'CFR - XML import'!$A77,1)-2)))","v":0},{"$f":"IF(ISERROR(FIND(J$3,'CFR - XML import'!$A77)),0,VALUE(MID('CFR - XML import'!$A77,SEARCH(\">\",'CFR - XML import'!$A77,1)+1,SEARCH(\"/\",'CFR - XML import'!$A77,1)-SEARCH(\">\",'CFR - XML import'!$A77,1)-2)))","v":0},{"$f":"IF(ISERROR(FIND(K$3,'CFR - XML import'!$A77)),0,VALUE(MID('CFR - XML import'!$A77,SEARCH(\">\",'CFR - XML import'!$A77,1)+1,SEARCH(\"/\",'CFR - XML import'!$A77,1)-SEARCH(\">\",'CFR - XML import'!$A77,1)-2)))","v":0},{"$f":"IF(ISERROR(FIND(L$3,'CFR - XML import'!$A77)),0,VALUE(MID('CFR - XML import'!$A77,SEARCH(\">\",'CFR - XML import'!$A77,1)+1,SEARCH(\"/\",'CFR - XML import'!$A77,1)-SEARCH(\">\",'CFR - XML import'!$A77,1)-2)))","v":0},{"$f":"IF(ISERROR(FIND(M$3,'CFR - XML import'!$A77)),0,VALUE(MID('CFR - XML import'!$A77,SEARCH(\">\",'CFR - XML import'!$A77,1)+1,SEARCH(\"/\",'CFR - XML import'!$A77,1)-SEARCH(\">\",'CFR - XML import'!$A77,1)-2)))","v":0},{"$f":"IF(ISERROR(FIND(N$3,'CFR - XML import'!$A77)),0,VALUE(MID('CFR - XML import'!$A77,SEARCH(\">\",'CFR - XML import'!$A77,1)+1,SEARCH(\"/\",'CFR - XML import'!$A77,1)-SEARCH(\">\",'CFR - XML import'!$A77,1)-2)))","v":0},{"$f":"IF(ISERROR(FIND(O$3,'CFR - XML import'!$A77)),0,VALUE(MID('CFR - XML import'!$A77,SEARCH(\">\",'CFR - XML import'!$A77,1)+1,SEARCH(\"/\",'CFR - XML import'!$A77,1)-SEARCH(\">\",'CFR - XML import'!$A77,1)-2)))","v":0},{"$f":"IF(ISERROR(FIND(P$3,'CFR - XML import'!$A77)),0,VALUE(MID('CFR - XML import'!$A77,SEARCH(\">\",'CFR - XML import'!$A77,1)+1,SEARCH(\"/\",'CFR - XML import'!$A77,1)-SEARCH(\">\",'CFR - XML import'!$A77,1)-2)))","v":0},{"$f":"IF(ISERROR(FIND(Q$3,'CFR - XML import'!$A77)),0,VALUE(MID('CFR - XML import'!$A77,SEARCH(\">\",'CFR - XML import'!$A77,1)+1,SEARCH(\"/\",'CFR - XML import'!$A77,1)-SEARCH(\">\",'CFR - XML import'!$A77,1)-2)))","v":0},{"$f":"IF(ISERROR(FIND(R$3,'CFR - XML import'!$A77)),0,VALUE(MID('CFR - XML import'!$A77,SEARCH(\">\",'CFR - XML import'!$A77,1)+1,SEARCH(\"/\",'CFR - XML import'!$A77,1)-SEARCH(\">\",'CFR - XML import'!$A77,1)-2)))","v":0},{"$f":"IF(ISERROR(FIND(S$3,'CFR - XML import'!$A77)),0,VALUE(MID('CFR - XML import'!$A77,SEARCH(\">\",'CFR - XML import'!$A77,1)+1,SEARCH(\"/\",'CFR - XML import'!$A77,1)-SEARCH(\">\",'CFR - XML import'!$A77,1)-2)))","v":0},{"$f":"IF(ISERROR(FIND(T$3,'CFR - XML import'!$A77)),0,VALUE(MID('CFR - XML import'!$A77,SEARCH(\">\",'CFR - XML import'!$A77,1)+1,SEARCH(\"/\",'CFR - XML import'!$A77,1)-SEARCH(\">\",'CFR - XML import'!$A77,1)-2)))","v":0},{"$f":"IF(ISERROR(FIND(U$3,'CFR - XML import'!$A77)),0,VALUE(MID('CFR - XML import'!$A77,SEARCH(\">\",'CFR - XML import'!$A77,1)+1,SEARCH(\"/\",'CFR - XML import'!$A77,1)-SEARCH(\">\",'CFR - XML import'!$A77,1)-2)))","v":0},{"$f":"IF(ISERROR(FIND(V$3,'CFR - XML import'!$A77)),0,VALUE(MID('CFR - XML import'!$A77,SEARCH(\">\",'CFR - XML import'!$A77,1)+1,SEARCH(\"/\",'CFR - XML import'!$A77,1)-SEARCH(\">\",'CFR - XML import'!$A77,1)-2)))","v":0},{"$f":"IF(ISERROR(FIND(W$3,'CFR - XML import'!$A77)),0,VALUE(MID('CFR - XML import'!$A77,SEARCH(\">\",'CFR - XML import'!$A77,1)+1,SEARCH(\"/\",'CFR - XML import'!$A77,1)-SEARCH(\">\",'CFR - XML import'!$A77,1)-2)))","v":0},null,{"$f":"IF(ISERROR(FIND(Y$3,'CFR - XML import'!$A77)),0,VALUE(MID('CFR - XML import'!$A77,SEARCH(\">\",'CFR - XML import'!$A77,1)+1,SEARCH(\"/\",'CFR - XML import'!$A77,1)-SEARCH(\">\",'CFR - XML import'!$A77,1)-2)))","v":0},{"$f":"IF(ISERROR(FIND(Z$3,'CFR - XML import'!$A77)),0,VALUE(MID('CFR - XML import'!$A77,SEARCH(\">\",'CFR - XML import'!$A77,1)+1,SEARCH(\"/\",'CFR - XML import'!$A77,1)-SEARCH(\">\",'CFR - XML import'!$A77,1)-2)))","v":0},{"$f":"IF(ISERROR(FIND(AA$3,'CFR - XML import'!$A77)),0,VALUE(MID('CFR - XML import'!$A77,SEARCH(\">\",'CFR - XML import'!$A77,1)+1,SEARCH(\"/\",'CFR - XML import'!$A77,1)-SEARCH(\">\",'CFR - XML import'!$A77,1)-2)))","v":0},{"$f":"IF(ISERROR(FIND(AB$3,'CFR - XML import'!$A77)),0,VALUE(MID('CFR - XML import'!$A77,SEARCH(\">\",'CFR - XML import'!$A77,1)+1,SEARCH(\"/\",'CFR - XML import'!$A77,1)-SEARCH(\">\",'CFR - XML import'!$A77,1)-2)))","v":0},{"$f":"IF(ISERROR(FIND(AC$3,'CFR - XML import'!$A77)),0,VALUE(MID('CFR - XML import'!$A77,SEARCH(\">\",'CFR - XML import'!$A77,1)+1,SEARCH(\"/\",'CFR - XML import'!$A77,1)-SEARCH(\">\",'CFR - XML import'!$A77,1)-2)))","v":0},{"$f":"IF(ISERROR(FIND(AD$3,'CFR - XML import'!$A77)),0,VALUE(MID('CFR - XML import'!$A77,SEARCH(\">\",'CFR - XML import'!$A77,1)+1,SEARCH(\"/\",'CFR - XML import'!$A77,1)-SEARCH(\">\",'CFR - XML import'!$A77,1)-2)))","v":0},{"$f":"IF(ISERROR(FIND(AE$3,'CFR - XML import'!$A77)),0,VALUE(MID('CFR - XML import'!$A77,SEARCH(\">\",'CFR - XML import'!$A77,1)+1,SEARCH(\"/\",'CFR - XML import'!$A77,1)-SEARCH(\">\",'CFR - XML import'!$A77,1)-2)))","v":0},{"$f":"IF(ISERROR(FIND(AF$3,'CFR - XML import'!$A77)),0,VALUE(MID('CFR - XML import'!$A77,SEARCH(\">\",'CFR - XML import'!$A77,1)+1,SEARCH(\"/\",'CFR - XML import'!$A77,1)-SEARCH(\">\",'CFR - XML import'!$A77,1)-2)))","v":0},{"$f":"IF(ISERROR(FIND(AG$3,'CFR - XML import'!$A77)),0,VALUE(MID('CFR - XML import'!$A77,SEARCH(\">\",'CFR - XML import'!$A77,1)+1,SEARCH(\"/\",'CFR - XML import'!$A77,1)-SEARCH(\">\",'CFR - XML import'!$A77,1)-2)))","v":0},{"$f":"IF(ISERROR(FIND(AH$3,'CFR - XML import'!$A77)),0,VALUE(MID('CFR - XML import'!$A77,SEARCH(\">\",'CFR - XML import'!$A77,1)+1,SEARCH(\"/\",'CFR - XML import'!$A77,1)-SEARCH(\">\",'CFR - XML import'!$A77,1)-2)))","v":0},{"$f":"IF(ISERROR(FIND(AI$3,'CFR - XML import'!$A77)),0,VALUE(MID('CFR - XML import'!$A77,SEARCH(\">\",'CFR - XML import'!$A77,1)+1,SEARCH(\"/\",'CFR - XML import'!$A77,1)-SEARCH(\">\",'CFR - XML import'!$A77,1)-2)))","v":0},{"$f":"IF(ISERROR(FIND(AJ$3,'CFR - XML import'!$A77)),0,VALUE(MID('CFR - XML import'!$A77,SEARCH(\">\",'CFR - XML import'!$A77,1)+1,SEARCH(\"/\",'CFR - XML import'!$A77,1)-SEARCH(\">\",'CFR - XML import'!$A77,1)-2)))","v":0},{"$f":"IF(ISERROR(FIND(AK$3,'CFR - XML import'!$A77)),0,VALUE(MID('CFR - XML import'!$A77,SEARCH(\">\",'CFR - XML import'!$A77,1)+1,SEARCH(\"/\",'CFR - XML import'!$A77,1)-SEARCH(\">\",'CFR - XML import'!$A77,1)-2)))","v":0},{"$f":"IF(ISERROR(FIND(AL$3,'CFR - XML import'!$A77)),0,VALUE(MID('CFR - XML import'!$A77,SEARCH(\">\",'CFR - XML import'!$A77,1)+1,SEARCH(\"/\",'CFR - XML import'!$A77,1)-SEARCH(\">\",'CFR - XML import'!$A77,1)-2)))","v":0},{"$f":"IF(ISERROR(FIND(AM$3,'CFR - XML import'!$A77)),0,VALUE(MID('CFR - XML import'!$A77,SEARCH(\">\",'CFR - XML import'!$A77,1)+1,SEARCH(\"/\",'CFR - XML import'!$A77,1)-SEARCH(\">\",'CFR - XML import'!$A77,1)-2)))","v":0},{"$f":"IF(ISERROR(FIND(AN$3,'CFR - XML import'!$A77)),0,VALUE(MID('CFR - XML import'!$A77,SEARCH(\">\",'CFR - XML import'!$A77,1)+1,SEARCH(\"/\",'CFR - XML import'!$A77,1)-SEARCH(\">\",'CFR - XML import'!$A77,1)-2)))","v":0},{"$f":"IF(ISERROR(FIND(AO$3,'CFR - XML import'!$A77)),0,VALUE(MID('CFR - XML import'!$A77,SEARCH(\">\",'CFR - XML import'!$A77,1)+1,SEARCH(\"/\",'CFR - XML import'!$A77,1)-SEARCH(\">\",'CFR - XML import'!$A77,1)-2)))","v":0},{"$f":"IF(ISERROR(FIND(AP$3,'CFR - XML import'!$A77)),0,VALUE(MID('CFR - XML import'!$A77,SEARCH(\">\",'CFR - XML import'!$A77,1)+1,SEARCH(\"/\",'CFR - XML import'!$A77,1)-SEARCH(\">\",'CFR - XML import'!$A77,1)-2)))","v":0},{"$f":"IF(ISERROR(FIND(AQ$3,'CFR - XML import'!$A77)),0,VALUE(MID('CFR - XML import'!$A77,SEARCH(\">\",'CFR - XML import'!$A77,1)+1,SEARCH(\"/\",'CFR - XML import'!$A77,1)-SEARCH(\">\",'CFR - XML import'!$A77,1)-2)))","v":0},{"$f":"IF(ISERROR(FIND(AR$3,'CFR - XML import'!$A77)),0,VALUE(MID('CFR - XML import'!$A77,SEARCH(\">\",'CFR - XML import'!$A77,1)+1,SEARCH(\"/\",'CFR - XML import'!$A77,1)-SEARCH(\">\",'CFR - XML import'!$A77,1)-2)))","v":0},{"$f":"IF(ISERROR(FIND(AS$3,'CFR - XML import'!$A77)),0,VALUE(MID('CFR - XML import'!$A77,SEARCH(\">\",'CFR - XML import'!$A77,1)+1,SEARCH(\"/\",'CFR - XML import'!$A77,1)-SEARCH(\">\",'CFR - XML import'!$A77,1)-2)))","v":0},{"$f":"IF(ISERROR(FIND(AT$3,'CFR - XML import'!$A77)),0,VALUE(MID('CFR - XML import'!$A77,SEARCH(\">\",'CFR - XML import'!$A77,1)+1,SEARCH(\"/\",'CFR - XML import'!$A77,1)-SEARCH(\">\",'CFR - XML import'!$A77,1)-2)))","v":0},{"$f":"IF(ISERROR(FIND(AU$3,'CFR - XML import'!$A77)),0,VALUE(MID('CFR - XML import'!$A77,SEARCH(\">\",'CFR - XML import'!$A77,1)+1,SEARCH(\"/\",'CFR - XML import'!$A77,1)-SEARCH(\">\",'CFR - XML import'!$A77,1)-2)))","v":0},{"$f":"IF(ISERROR(FIND(AV$3,'CFR - XML import'!$A77)),0,VALUE(MID('CFR - XML import'!$A77,SEARCH(\">\",'CFR - XML import'!$A77,1)+1,SEARCH(\"/\",'CFR - XML import'!$A77,1)-SEARCH(\">\",'CFR - XML import'!$A77,1)-2)))","v":0},{"$f":"IF(ISERROR(FIND(AW$3,'CFR - XML import'!$A77)),0,VALUE(MID('CFR - XML import'!$A77,SEARCH(\">\",'CFR - XML import'!$A77,1)+1,SEARCH(\"/\",'CFR - XML import'!$A77,1)-SEARCH(\">\",'CFR - XML import'!$A77,1)-2)))","v":0},{"$f":"IF(ISERROR(FIND(AX$3,'CFR - XML import'!$A77)),0,VALUE(MID('CFR - XML import'!$A77,SEARCH(\">\",'CFR - XML import'!$A77,1)+1,SEARCH(\"/\",'CFR - XML import'!$A77,1)-SEARCH(\">\",'CFR - XML import'!$A77,1)-2)))","v":0},{"$f":"IF(ISERROR(FIND(AY$3,'CFR - XML import'!$A77)),0,VALUE(MID('CFR - XML import'!$A77,SEARCH(\">\",'CFR - XML import'!$A77,1)+1,SEARCH(\"/\",'CFR - XML import'!$A77,1)-SEARCH(\">\",'CFR - XML import'!$A77,1)-2)))","v":0},{"$f":"IF(ISERROR(FIND(AZ$3,'CFR - XML import'!$A77)),0,VALUE(MID('CFR - XML import'!$A77,SEARCH(\">\",'CFR - XML import'!$A77,1)+1,SEARCH(\"/\",'CFR - XML import'!$A77,1)-SEARCH(\">\",'CFR - XML import'!$A77,1)-2)))","v":0},{"$f":"IF(ISERROR(FIND(BA$3,'CFR - XML import'!$A77)),0,VALUE(MID('CFR - XML import'!$A77,SEARCH(\">\",'CFR - XML import'!$A77,1)+1,SEARCH(\"/\",'CFR - XML import'!$A77,1)-SEARCH(\">\",'CFR - XML import'!$A77,1)-2)))","v":0},{"$f":"IF(ISERROR(FIND(BB$3,'CFR - XML import'!$A77)),0,VALUE(MID('CFR - XML import'!$A77,SEARCH(\">\",'CFR - XML import'!$A77,1)+1,SEARCH(\"/\",'CFR - XML import'!$A77,1)-SEARCH(\">\",'CFR - XML import'!$A77,1)-2)))","v":0},{"$f":"IF(ISERROR(FIND(BC$3,'CFR - XML import'!$A77)),0,VALUE(MID('CFR - XML import'!$A77,SEARCH(\">\",'CFR - XML import'!$A77,1)+1,SEARCH(\"/\",'CFR - XML import'!$A77,1)-SEARCH(\">\",'CFR - XML import'!$A77,1)-2)))","v":0},{"$f":"IF(ISERROR(FIND(BD$3,'CFR - XML import'!$A77)),0,VALUE(MID('CFR - XML import'!$A77,SEARCH(\">\",'CFR - XML import'!$A77,1)+1,SEARCH(\"/\",'CFR - XML import'!$A77,1)-SEARCH(\">\",'CFR - XML import'!$A77,1)-2)))","v":0},{"$f":"IF(ISERROR(FIND(BE$3,'CFR - XML import'!$A77)),0,VALUE(MID('CFR - XML import'!$A77,SEARCH(\">\",'CFR - XML import'!$A77,1)+1,SEARCH(\"/\",'CFR - XML import'!$A77,1)-SEARCH(\">\",'CFR - XML import'!$A77,1)-2)))","v":0},{"$f":"IF(ISERROR(FIND(BF$3,'CFR - XML import'!$A77)),0,VALUE(MID('CFR - XML import'!$A77,SEARCH(\">\",'CFR - XML import'!$A77,1)+1,SEARCH(\"/\",'CFR - XML import'!$A77,1)-SEARCH(\">\",'CFR - XML import'!$A77,1)-2)))","v":0},{"$f":"IF(ISERROR(FIND(BG$3,'CFR - XML import'!$A77)),0,VALUE(MID('CFR - XML import'!$A77,SEARCH(\">\",'CFR - XML import'!$A77,1)+1,SEARCH(\"/\",'CFR - XML import'!$A77,1)-SEARCH(\">\",'CFR - XML import'!$A77,1)-2)))","v":0},{"$f":"IF(ISERROR(FIND(BH$3,'CFR - XML import'!$A77)),0,VALUE(MID('CFR - XML import'!$A77,SEARCH(\">\",'CFR - XML import'!$A77,1)+1,SEARCH(\"/\",'CFR - XML import'!$A77,1)-SEARCH(\">\",'CFR - XML import'!$A77,1)-2)))","v":0},{"$f":"IF(ISERROR(FIND(BI$3,'CFR - XML import'!$A77)),0,VALUE(MID('CFR - XML import'!$A77,SEARCH(\">\",'CFR - XML import'!$A77,1)+1,SEARCH(\"/\",'CFR - XML import'!$A77,1)-SEARCH(\">\",'CFR - XML import'!$A77,1)-2)))","v":0},{"$f":"IF(ISERROR(FIND(BJ$3,'CFR - XML import'!$A77)),0,VALUE(MID('CFR - XML import'!$A77,SEARCH(\">\",'CFR - XML import'!$A77,1)+1,SEARCH(\"/\",'CFR - XML import'!$A77,1)-SEARCH(\">\",'CFR - XML import'!$A77,1)-2)))","v":0},{"$f":"IF(ISERROR(FIND(BK$3,'CFR - XML import'!$A77)),0,VALUE(MID('CFR - XML import'!$A77,SEARCH(\">\",'CFR - XML import'!$A77,1)+1,SEARCH(\"/\",'CFR - XML import'!$A77,1)-SEARCH(\">\",'CFR - XML import'!$A77,1)-2)))","v":0},{"$f":"IF(ISERROR(FIND(BL$3,'CFR - XML import'!$A77)),0,VALUE(MID('CFR - XML import'!$A77,SEARCH(\">\",'CFR - XML import'!$A77,1)+1,SEARCH(\"/\",'CFR - XML import'!$A77,1)-SEARCH(\">\",'CFR - XML import'!$A77,1)-2)))","v":0},{"$f":"IF(ISERROR(FIND(BM$3,'CFR - XML import'!$A77)),0,VALUE(MID('CFR - XML import'!$A77,SEARCH(\">\",'CFR - XML import'!$A77,1)+1,SEARCH(\"/\",'CFR - XML import'!$A77,1)-SEARCH(\">\",'CFR - XML import'!$A77,1)-2)))","v":0},{"$f":"IF(ISERROR(FIND(BN$3,'CFR - XML import'!$A77)),0,VALUE(MID('CFR - XML import'!$A77,SEARCH(\">\",'CFR - XML import'!$A77,1)+1,SEARCH(\"/\",'CFR - XML import'!$A77,1)-SEARCH(\">\",'CFR - XML import'!$A77,1)-2)))","v":0},{"$f":"IF(ISERROR(FIND(BO$3,'CFR - XML import'!$A77)),0,VALUE(MID('CFR - XML import'!$A77,SEARCH(\">\",'CFR - XML import'!$A77,1)+1,SEARCH(\"/\",'CFR - XML import'!$A77,1)-SEARCH(\">\",'CFR - XML import'!$A77,1)-2)))","v":0},{"$f":"IF(ISERROR(FIND(BP$3,'CFR - XML import'!$A77)),0,VALUE(MID('CFR - XML import'!$A77,SEARCH(\">\",'CFR - XML import'!$A77,1)+1,SEARCH(\"/\",'CFR - XML import'!$A77,1)-SEARCH(\">\",'CFR - XML import'!$A77,1)-2)))","v":0},{"$f":"IF(ISERROR(FIND(BQ$3,'CFR - XML import'!$A77)),0,VALUE(MID('CFR - XML import'!$A77,SEARCH(\">\",'CFR - XML import'!$A77,1)+1,SEARCH(\"/\",'CFR - XML import'!$A77,1)-SEARCH(\">\",'CFR - XML import'!$A77,1)-2)))","v":0},{"$f":"IF(ISERROR(FIND(BR$3,'CFR - XML import'!$A77)),0,VALUE(MID('CFR - XML import'!$A77,SEARCH(\">\",'CFR - XML import'!$A77,1)+1,SEARCH(\"/\",'CFR - XML import'!$A77,1)-SEARCH(\">\",'CFR - XML import'!$A77,1)-2)))","v":0},{"$f":"IF(ISERROR(FIND(BS$3,'CFR - XML import'!$A77)),0,VALUE(MID('CFR - XML import'!$A77,SEARCH(\">\",'CFR - XML import'!$A77,1)+1,SEARCH(\"/\",'CFR - XML import'!$A77,1)-SEARCH(\">\",'CFR - XML import'!$A77,1)-2)))","v":0},{"$f":"IF(ISERROR(FIND(BT$3,'CFR - XML import'!$A77)),0,VALUE(MID('CFR - XML import'!$A77,SEARCH(\">\",'CFR - XML import'!$A77,1)+1,SEARCH(\"/\",'CFR - XML import'!$A77,1)-SEARCH(\">\",'CFR - XML import'!$A77,1)-2)))","v":0},{"$f":"IF(ISERROR(FIND(BU$3,'CFR - XML import'!$A77)),0,VALUE(MID('CFR - XML import'!$A77,SEARCH(\">\",'CFR - XML import'!$A77,1)+1,SEARCH(\"/\",'CFR - XML import'!$A77,1)-SEARCH(\">\",'CFR - XML import'!$A77,1)-2)))","v":0},{"$f":"IF(ISERROR(FIND(BV$3,'CFR - XML import'!$A77)),0,VALUE(MID('CFR - XML import'!$A77,SEARCH(\">\",'CFR - XML import'!$A77,1)+1,SEARCH(\"/\",'CFR - XML import'!$A77,1)-SEARCH(\">\",'CFR - XML import'!$A77,1)-2)))","v":0},{"$f":"IF(ISERROR(FIND(BW$3,'CFR - XML import'!$A77)),0,VALUE(MID('CFR - XML import'!$A77,SEARCH(\">\",'CFR - XML import'!$A77,1)+1,SEARCH(\"/\",'CFR - XML import'!$A77,1)-SEARCH(\">\",'CFR - XML import'!$A77,1)-2)))","v":0},{"$f":"IF(ISERROR(FIND(BX$3,'CFR - XML import'!$A77)),0,VALUE(MID('CFR - XML import'!$A77,SEARCH(\">\",'CFR - XML import'!$A77,1)+1,SEARCH(\"/\",'CFR - XML import'!$A77,1)-SEARCH(\">\",'CFR - XML import'!$A77,1)-2)))","v":0},{"$f":"IF(ISERROR(FIND(BY$3,'CFR - XML import'!$A77)),0,VALUE(MID('CFR - XML import'!$A77,SEARCH(\">\",'CFR - XML import'!$A77,1)+1,SEARCH(\"/\",'CFR - XML import'!$A77,1)-SEARCH(\">\",'CFR - XML import'!$A77,1)-2)))","v":0},{"$f":"IF(ISERROR(FIND(BZ$3,'CFR - XML import'!$A77)),0,VALUE(MID('CFR - XML import'!$A77,SEARCH(\">\",'CFR - XML import'!$A77,1)+1,SEARCH(\"/\",'CFR - XML import'!$A77,1)-SEARCH(\">\",'CFR - XML import'!$A77,1)-2)))","v":0},null,null,null,null,null,null,{"$f":"IF(ISERROR(IF(MID('CFR - XML import'!$A77,LEN($CF$4)+1,LEN('CFR - XML import'!$A77)-(2*LEN($CF$4)+1))=\"RMMS\",1,IF(MID('CFR - XML import'!$A77,LEN(\"    <InputSystem>\")+1,LEN('CFR - XML import'!$A77)-(LEN(\"    <InputSystem>\")+LEN($CF$4)+1))=\"SIMS\",2,0))),0,IF(MID('CFR - XML import'!$A77,LEN($CF$4)+1,LEN('CFR - XML import'!$A77)-(2*LEN($CF$4)+1))=\"RMMS\",1,IF(MID('CFR - XML import'!$A77,LEN(\"    <InputSystem>\")+1,LEN('CFR - XML import'!$A77)-(LEN(\"    <InputSystem>\")+LEN($CF$4)+1))=\"SIMS\",2,0)))","v":0},{"$f":"IF(ISERROR(FIND(CH$3,'CFR - XML import'!$A77)),0,MID('CFR - XML import'!$A77,SEARCH(\">\",'CFR - XML import'!$A77,1)+1,SEARCH(\"/\",'CFR - XML import'!$A77,1)-SEARCH(\">\",'CFR - XML import'!$A77,1)-2))","v":0},{"$f":"IF(ISERROR(FIND(CI$3,'CFR - XML import'!$A77)),0,MID('CFR - XML import'!$A77,SEARCH(\">\",'CFR - XML import'!$A77,1)+1,SEARCH(\"/\",'CFR - XML import'!$A77,1)-SEARCH(\">\",'CFR - XML import'!$A77,1)-2))","v":0},{"$f":"IF(ISERROR(FIND(CJ$3,'CFR - XML import'!$A77)),0,MID('CFR - XML import'!$A77,SEARCH(\">\",'CFR - XML import'!$A77,1)+1,SEARCH(\"/\",'CFR - XML import'!$A77,1)-SEARCH(\">\",'CFR - XML import'!$A77,1)-2))","v":0},{"$f":"IF(ISERROR(FIND(CK$3,'CFR - XML import'!$A77)),0,MID('CFR - XML import'!$A77,SEARCH(\">\",'CFR - XML import'!$A77,1)+1,SEARCH(\"/\",'CFR - XML import'!$A77,1)-SEARCH(\">\",'CFR - XML import'!$A77,1)-2))","v":0},{"$f":"IF(ISERROR(FIND(CL$3,'CFR - XML import'!$A77)),0,MID('CFR - XML import'!$A77,SEARCH(\">\",'CFR - XML import'!$A77,1)+1,SEARCH(\"/\",'CFR - XML import'!$A77,1)-SEARCH(\">\",'CFR - XML import'!$A77,1)-2))","v":0}]
[{"$f":"IF(AND('CFR - XML import'!A78<>\"\",LEFT('CFR - XML import'!A78,1)<>\"<\",LEFT('CFR - XML import'!A78,3)<>\"  <\",LEFT('CFR - XML import'!A78,5)<>\"    <\",LEFT('CFR - XML import'!A78,7)<>\"      <\",LEFT('CFR - XML import'!A78,9)<>\"        <\",$B$1=\"SIMS\"),'CFR - XML import'!A78,IF(AND(LEFT('CFR - XML import'!A78,9)=\"<Details>\",$B$1=\"RM\"),'CFR - XML import'!A78,\"\"))","v":""},{"$f":"IF(ISERROR(FIND(B$3,'CFR - XML import'!$A78)),0,VALUE(MID('CFR - XML import'!$A78,SEARCH(\">\",'CFR - XML import'!$A78,1)+1,SEARCH(\"/\",'CFR - XML import'!$A78,1)-SEARCH(\">\",'CFR - XML import'!$A78,1)-2)))","v":0},null,{"$f":"IF(ISERROR(FIND(D$3,'CFR - XML import'!$A78)),0,MID('CFR - XML import'!$A78,SEARCH(\">\",'CFR - XML import'!$A78,1)+1,SEARCH(\"/\",'CFR - XML import'!$A78,1)-SEARCH(\">\",'CFR - XML import'!$A78,1)-2))","v":0},{"$f":"IF(ISERROR(FIND(E$3,'CFR - XML import'!$A78)),0,MID('CFR - XML import'!$A78,SEARCH(\">\",'CFR - XML import'!$A78,1)+1,SEARCH(\"/\",'CFR - XML import'!$A78,1)-SEARCH(\">\",'CFR - XML import'!$A78,1)-2))","v":0},{"$f":"IF($B$1=\"SIMS\",IF(ISERROR(FIND(F$3,'CFR - XML import'!$A78)),0,VALUE(MID('CFR - XML import'!$A78,15,10))),IF(ISERROR(FIND(F$3,'CFR - XML import'!$A78)),0,VALUE(MID('CFR - XML import'!$A78,11,10))))","v":"00:00:00"},{"$f":"IF(ISERROR(FIND(G$3,'CFR - XML import'!$A78)),0,VALUE(MID('CFR - XML import'!$A78,SEARCH(\">\",'CFR - XML import'!$A78,1)+1,SEARCH(\"/\",'CFR - XML import'!$A78,1)-SEARCH(\">\",'CFR - XML import'!$A78,1)-2)))","v":0},{"$f":"IF(ISERROR(FIND(H$3,'CFR - XML import'!$A78)),0,VALUE(MID('CFR - XML import'!$A78,SEARCH(\">\",'CFR - XML import'!$A78,1)+1,SEARCH(\"/\",'CFR - XML import'!$A78,1)-SEARCH(\">\",'CFR - XML import'!$A78,1)-2)))","v":0},{"$f":"IF(ISERROR(FIND(I$3,'CFR - XML import'!$A78)),0,VALUE(MID('CFR - XML import'!$A78,SEARCH(\">\",'CFR - XML import'!$A78,1)+1,SEARCH(\"/\",'CFR - XML import'!$A78,1)-SEARCH(\">\",'CFR - XML import'!$A78,1)-2)))","v":0},{"$f":"IF(ISERROR(FIND(J$3,'CFR - XML import'!$A78)),0,VALUE(MID('CFR - XML import'!$A78,SEARCH(\">\",'CFR - XML import'!$A78,1)+1,SEARCH(\"/\",'CFR - XML import'!$A78,1)-SEARCH(\">\",'CFR - XML import'!$A78,1)-2)))","v":0},{"$f":"IF(ISERROR(FIND(K$3,'CFR - XML import'!$A78)),0,VALUE(MID('CFR - XML import'!$A78,SEARCH(\">\",'CFR - XML import'!$A78,1)+1,SEARCH(\"/\",'CFR - XML import'!$A78,1)-SEARCH(\">\",'CFR - XML import'!$A78,1)-2)))","v":0},{"$f":"IF(ISERROR(FIND(L$3,'CFR - XML import'!$A78)),0,VALUE(MID('CFR - XML import'!$A78,SEARCH(\">\",'CFR - XML import'!$A78,1)+1,SEARCH(\"/\",'CFR - XML import'!$A78,1)-SEARCH(\">\",'CFR - XML import'!$A78,1)-2)))","v":0},{"$f":"IF(ISERROR(FIND(M$3,'CFR - XML import'!$A78)),0,VALUE(MID('CFR - XML import'!$A78,SEARCH(\">\",'CFR - XML import'!$A78,1)+1,SEARCH(\"/\",'CFR - XML import'!$A78,1)-SEARCH(\">\",'CFR - XML import'!$A78,1)-2)))","v":0},{"$f":"IF(ISERROR(FIND(N$3,'CFR - XML import'!$A78)),0,VALUE(MID('CFR - XML import'!$A78,SEARCH(\">\",'CFR - XML import'!$A78,1)+1,SEARCH(\"/\",'CFR - XML import'!$A78,1)-SEARCH(\">\",'CFR - XML import'!$A78,1)-2)))","v":0},{"$f":"IF(ISERROR(FIND(O$3,'CFR - XML import'!$A78)),0,VALUE(MID('CFR - XML import'!$A78,SEARCH(\">\",'CFR - XML import'!$A78,1)+1,SEARCH(\"/\",'CFR - XML import'!$A78,1)-SEARCH(\">\",'CFR - XML import'!$A78,1)-2)))","v":0},{"$f":"IF(ISERROR(FIND(P$3,'CFR - XML import'!$A78)),0,VALUE(MID('CFR - XML import'!$A78,SEARCH(\">\",'CFR - XML import'!$A78,1)+1,SEARCH(\"/\",'CFR - XML import'!$A78,1)-SEARCH(\">\",'CFR - XML import'!$A78,1)-2)))","v":0},{"$f":"IF(ISERROR(FIND(Q$3,'CFR - XML import'!$A78)),0,VALUE(MID('CFR - XML import'!$A78,SEARCH(\">\",'CFR - XML import'!$A78,1)+1,SEARCH(\"/\",'CFR - XML import'!$A78,1)-SEARCH(\">\",'CFR - XML import'!$A78,1)-2)))","v":0},{"$f":"IF(ISERROR(FIND(R$3,'CFR - XML import'!$A78)),0,VALUE(MID('CFR - XML import'!$A78,SEARCH(\">\",'CFR - XML import'!$A78,1)+1,SEARCH(\"/\",'CFR - XML import'!$A78,1)-SEARCH(\">\",'CFR - XML import'!$A78,1)-2)))","v":0},{"$f":"IF(ISERROR(FIND(S$3,'CFR - XML import'!$A78)),0,VALUE(MID('CFR - XML import'!$A78,SEARCH(\">\",'CFR - XML import'!$A78,1)+1,SEARCH(\"/\",'CFR - XML import'!$A78,1)-SEARCH(\">\",'CFR - XML import'!$A78,1)-2)))","v":0},{"$f":"IF(ISERROR(FIND(T$3,'CFR - XML import'!$A78)),0,VALUE(MID('CFR - XML import'!$A78,SEARCH(\">\",'CFR - XML import'!$A78,1)+1,SEARCH(\"/\",'CFR - XML import'!$A78,1)-SEARCH(\">\",'CFR - XML import'!$A78,1)-2)))","v":0},{"$f":"IF(ISERROR(FIND(U$3,'CFR - XML import'!$A78)),0,VALUE(MID('CFR - XML import'!$A78,SEARCH(\">\",'CFR - XML import'!$A78,1)+1,SEARCH(\"/\",'CFR - XML import'!$A78,1)-SEARCH(\">\",'CFR - XML import'!$A78,1)-2)))","v":0},{"$f":"IF(ISERROR(FIND(V$3,'CFR - XML import'!$A78)),0,VALUE(MID('CFR - XML import'!$A78,SEARCH(\">\",'CFR - XML import'!$A78,1)+1,SEARCH(\"/\",'CFR - XML import'!$A78,1)-SEARCH(\">\",'CFR - XML import'!$A78,1)-2)))","v":0},{"$f":"IF(ISERROR(FIND(W$3,'CFR - XML import'!$A78)),0,VALUE(MID('CFR - XML import'!$A78,SEARCH(\">\",'CFR - XML import'!$A78,1)+1,SEARCH(\"/\",'CFR - XML import'!$A78,1)-SEARCH(\">\",'CFR - XML import'!$A78,1)-2)))","v":0},null,{"$f":"IF(ISERROR(FIND(Y$3,'CFR - XML import'!$A78)),0,VALUE(MID('CFR - XML import'!$A78,SEARCH(\">\",'CFR - XML import'!$A78,1)+1,SEARCH(\"/\",'CFR - XML import'!$A78,1)-SEARCH(\">\",'CFR - XML import'!$A78,1)-2)))","v":0},{"$f":"IF(ISERROR(FIND(Z$3,'CFR - XML import'!$A78)),0,VALUE(MID('CFR - XML import'!$A78,SEARCH(\">\",'CFR - XML import'!$A78,1)+1,SEARCH(\"/\",'CFR - XML import'!$A78,1)-SEARCH(\">\",'CFR - XML import'!$A78,1)-2)))","v":0},{"$f":"IF(ISERROR(FIND(AA$3,'CFR - XML import'!$A78)),0,VALUE(MID('CFR - XML import'!$A78,SEARCH(\">\",'CFR - XML import'!$A78,1)+1,SEARCH(\"/\",'CFR - XML import'!$A78,1)-SEARCH(\">\",'CFR - XML import'!$A78,1)-2)))","v":0},{"$f":"IF(ISERROR(FIND(AB$3,'CFR - XML import'!$A78)),0,VALUE(MID('CFR - XML import'!$A78,SEARCH(\">\",'CFR - XML import'!$A78,1)+1,SEARCH(\"/\",'CFR - XML import'!$A78,1)-SEARCH(\">\",'CFR - XML import'!$A78,1)-2)))","v":0},{"$f":"IF(ISERROR(FIND(AC$3,'CFR - XML import'!$A78)),0,VALUE(MID('CFR - XML import'!$A78,SEARCH(\">\",'CFR - XML import'!$A78,1)+1,SEARCH(\"/\",'CFR - XML import'!$A78,1)-SEARCH(\">\",'CFR - XML import'!$A78,1)-2)))","v":0},{"$f":"IF(ISERROR(FIND(AD$3,'CFR - XML import'!$A78)),0,VALUE(MID('CFR - XML import'!$A78,SEARCH(\">\",'CFR - XML import'!$A78,1)+1,SEARCH(\"/\",'CFR - XML import'!$A78,1)-SEARCH(\">\",'CFR - XML import'!$A78,1)-2)))","v":0},{"$f":"IF(ISERROR(FIND(AE$3,'CFR - XML import'!$A78)),0,VALUE(MID('CFR - XML import'!$A78,SEARCH(\">\",'CFR - XML import'!$A78,1)+1,SEARCH(\"/\",'CFR - XML import'!$A78,1)-SEARCH(\">\",'CFR - XML import'!$A78,1)-2)))","v":0},{"$f":"IF(ISERROR(FIND(AF$3,'CFR - XML import'!$A78)),0,VALUE(MID('CFR - XML import'!$A78,SEARCH(\">\",'CFR - XML import'!$A78,1)+1,SEARCH(\"/\",'CFR - XML import'!$A78,1)-SEARCH(\">\",'CFR - XML import'!$A78,1)-2)))","v":0},{"$f":"IF(ISERROR(FIND(AG$3,'CFR - XML import'!$A78)),0,VALUE(MID('CFR - XML import'!$A78,SEARCH(\">\",'CFR - XML import'!$A78,1)+1,SEARCH(\"/\",'CFR - XML import'!$A78,1)-SEARCH(\">\",'CFR - XML import'!$A78,1)-2)))","v":0},{"$f":"IF(ISERROR(FIND(AH$3,'CFR - XML import'!$A78)),0,VALUE(MID('CFR - XML import'!$A78,SEARCH(\">\",'CFR - XML import'!$A78,1)+1,SEARCH(\"/\",'CFR - XML import'!$A78,1)-SEARCH(\">\",'CFR - XML import'!$A78,1)-2)))","v":0},{"$f":"IF(ISERROR(FIND(AI$3,'CFR - XML import'!$A78)),0,VALUE(MID('CFR - XML import'!$A78,SEARCH(\">\",'CFR - XML import'!$A78,1)+1,SEARCH(\"/\",'CFR - XML import'!$A78,1)-SEARCH(\">\",'CFR - XML import'!$A78,1)-2)))","v":0},{"$f":"IF(ISERROR(FIND(AJ$3,'CFR - XML import'!$A78)),0,VALUE(MID('CFR - XML import'!$A78,SEARCH(\">\",'CFR - XML import'!$A78,1)+1,SEARCH(\"/\",'CFR - XML import'!$A78,1)-SEARCH(\">\",'CFR - XML import'!$A78,1)-2)))","v":0},{"$f":"IF(ISERROR(FIND(AK$3,'CFR - XML import'!$A78)),0,VALUE(MID('CFR - XML import'!$A78,SEARCH(\">\",'CFR - XML import'!$A78,1)+1,SEARCH(\"/\",'CFR - XML import'!$A78,1)-SEARCH(\">\",'CFR - XML import'!$A78,1)-2)))","v":0},{"$f":"IF(ISERROR(FIND(AL$3,'CFR - XML import'!$A78)),0,VALUE(MID('CFR - XML import'!$A78,SEARCH(\">\",'CFR - XML import'!$A78,1)+1,SEARCH(\"/\",'CFR - XML import'!$A78,1)-SEARCH(\">\",'CFR - XML import'!$A78,1)-2)))","v":0},{"$f":"IF(ISERROR(FIND(AM$3,'CFR - XML import'!$A78)),0,VALUE(MID('CFR - XML import'!$A78,SEARCH(\">\",'CFR - XML import'!$A78,1)+1,SEARCH(\"/\",'CFR - XML import'!$A78,1)-SEARCH(\">\",'CFR - XML import'!$A78,1)-2)))","v":0},{"$f":"IF(ISERROR(FIND(AN$3,'CFR - XML import'!$A78)),0,VALUE(MID('CFR - XML import'!$A78,SEARCH(\">\",'CFR - XML import'!$A78,1)+1,SEARCH(\"/\",'CFR - XML import'!$A78,1)-SEARCH(\">\",'CFR - XML import'!$A78,1)-2)))","v":0},{"$f":"IF(ISERROR(FIND(AO$3,'CFR - XML import'!$A78)),0,VALUE(MID('CFR - XML import'!$A78,SEARCH(\">\",'CFR - XML import'!$A78,1)+1,SEARCH(\"/\",'CFR - XML import'!$A78,1)-SEARCH(\">\",'CFR - XML import'!$A78,1)-2)))","v":0},{"$f":"IF(ISERROR(FIND(AP$3,'CFR - XML import'!$A78)),0,VALUE(MID('CFR - XML import'!$A78,SEARCH(\">\",'CFR - XML import'!$A78,1)+1,SEARCH(\"/\",'CFR - XML import'!$A78,1)-SEARCH(\">\",'CFR - XML import'!$A78,1)-2)))","v":0},{"$f":"IF(ISERROR(FIND(AQ$3,'CFR - XML import'!$A78)),0,VALUE(MID('CFR - XML import'!$A78,SEARCH(\">\",'CFR - XML import'!$A78,1)+1,SEARCH(\"/\",'CFR - XML import'!$A78,1)-SEARCH(\">\",'CFR - XML import'!$A78,1)-2)))","v":0},{"$f":"IF(ISERROR(FIND(AR$3,'CFR - XML import'!$A78)),0,VALUE(MID('CFR - XML import'!$A78,SEARCH(\">\",'CFR - XML import'!$A78,1)+1,SEARCH(\"/\",'CFR - XML import'!$A78,1)-SEARCH(\">\",'CFR - XML import'!$A78,1)-2)))","v":0},{"$f":"IF(ISERROR(FIND(AS$3,'CFR - XML import'!$A78)),0,VALUE(MID('CFR - XML import'!$A78,SEARCH(\">\",'CFR - XML import'!$A78,1)+1,SEARCH(\"/\",'CFR - XML import'!$A78,1)-SEARCH(\">\",'CFR - XML import'!$A78,1)-2)))","v":0},{"$f":"IF(ISERROR(FIND(AT$3,'CFR - XML import'!$A78)),0,VALUE(MID('CFR - XML import'!$A78,SEARCH(\">\",'CFR - XML import'!$A78,1)+1,SEARCH(\"/\",'CFR - XML import'!$A78,1)-SEARCH(\">\",'CFR - XML import'!$A78,1)-2)))","v":0},{"$f":"IF(ISERROR(FIND(AU$3,'CFR - XML import'!$A78)),0,VALUE(MID('CFR - XML import'!$A78,SEARCH(\">\",'CFR - XML import'!$A78,1)+1,SEARCH(\"/\",'CFR - XML import'!$A78,1)-SEARCH(\">\",'CFR - XML import'!$A78,1)-2)))","v":0},{"$f":"IF(ISERROR(FIND(AV$3,'CFR - XML import'!$A78)),0,VALUE(MID('CFR - XML import'!$A78,SEARCH(\">\",'CFR - XML import'!$A78,1)+1,SEARCH(\"/\",'CFR - XML import'!$A78,1)-SEARCH(\">\",'CFR - XML import'!$A78,1)-2)))","v":0},{"$f":"IF(ISERROR(FIND(AW$3,'CFR - XML import'!$A78)),0,VALUE(MID('CFR - XML import'!$A78,SEARCH(\">\",'CFR - XML import'!$A78,1)+1,SEARCH(\"/\",'CFR - XML import'!$A78,1)-SEARCH(\">\",'CFR - XML import'!$A78,1)-2)))","v":0},{"$f":"IF(ISERROR(FIND(AX$3,'CFR - XML import'!$A78)),0,VALUE(MID('CFR - XML import'!$A78,SEARCH(\">\",'CFR - XML import'!$A78,1)+1,SEARCH(\"/\",'CFR - XML import'!$A78,1)-SEARCH(\">\",'CFR - XML import'!$A78,1)-2)))","v":0},{"$f":"IF(ISERROR(FIND(AY$3,'CFR - XML import'!$A78)),0,VALUE(MID('CFR - XML import'!$A78,SEARCH(\">\",'CFR - XML import'!$A78,1)+1,SEARCH(\"/\",'CFR - XML import'!$A78,1)-SEARCH(\">\",'CFR - XML import'!$A78,1)-2)))","v":0},{"$f":"IF(ISERROR(FIND(AZ$3,'CFR - XML import'!$A78)),0,VALUE(MID('CFR - XML import'!$A78,SEARCH(\">\",'CFR - XML import'!$A78,1)+1,SEARCH(\"/\",'CFR - XML import'!$A78,1)-SEARCH(\">\",'CFR - XML import'!$A78,1)-2)))","v":0},{"$f":"IF(ISERROR(FIND(BA$3,'CFR - XML import'!$A78)),0,VALUE(MID('CFR - XML import'!$A78,SEARCH(\">\",'CFR - XML import'!$A78,1)+1,SEARCH(\"/\",'CFR - XML import'!$A78,1)-SEARCH(\">\",'CFR - XML import'!$A78,1)-2)))","v":0},{"$f":"IF(ISERROR(FIND(BB$3,'CFR - XML import'!$A78)),0,VALUE(MID('CFR - XML import'!$A78,SEARCH(\">\",'CFR - XML import'!$A78,1)+1,SEARCH(\"/\",'CFR - XML import'!$A78,1)-SEARCH(\">\",'CFR - XML import'!$A78,1)-2)))","v":0},{"$f":"IF(ISERROR(FIND(BC$3,'CFR - XML import'!$A78)),0,VALUE(MID('CFR - XML import'!$A78,SEARCH(\">\",'CFR - XML import'!$A78,1)+1,SEARCH(\"/\",'CFR - XML import'!$A78,1)-SEARCH(\">\",'CFR - XML import'!$A78,1)-2)))","v":0},{"$f":"IF(ISERROR(FIND(BD$3,'CFR - XML import'!$A78)),0,VALUE(MID('CFR - XML import'!$A78,SEARCH(\">\",'CFR - XML import'!$A78,1)+1,SEARCH(\"/\",'CFR - XML import'!$A78,1)-SEARCH(\">\",'CFR - XML import'!$A78,1)-2)))","v":0},{"$f":"IF(ISERROR(FIND(BE$3,'CFR - XML import'!$A78)),0,VALUE(MID('CFR - XML import'!$A78,SEARCH(\">\",'CFR - XML import'!$A78,1)+1,SEARCH(\"/\",'CFR - XML import'!$A78,1)-SEARCH(\">\",'CFR - XML import'!$A78,1)-2)))","v":0},{"$f":"IF(ISERROR(FIND(BF$3,'CFR - XML import'!$A78)),0,VALUE(MID('CFR - XML import'!$A78,SEARCH(\">\",'CFR - XML import'!$A78,1)+1,SEARCH(\"/\",'CFR - XML import'!$A78,1)-SEARCH(\">\",'CFR - XML import'!$A78,1)-2)))","v":0},{"$f":"IF(ISERROR(FIND(BG$3,'CFR - XML import'!$A78)),0,VALUE(MID('CFR - XML import'!$A78,SEARCH(\">\",'CFR - XML import'!$A78,1)+1,SEARCH(\"/\",'CFR - XML import'!$A78,1)-SEARCH(\">\",'CFR - XML import'!$A78,1)-2)))","v":0},{"$f":"IF(ISERROR(FIND(BH$3,'CFR - XML import'!$A78)),0,VALUE(MID('CFR - XML import'!$A78,SEARCH(\">\",'CFR - XML import'!$A78,1)+1,SEARCH(\"/\",'CFR - XML import'!$A78,1)-SEARCH(\">\",'CFR - XML import'!$A78,1)-2)))","v":0},{"$f":"IF(ISERROR(FIND(BI$3,'CFR - XML import'!$A78)),0,VALUE(MID('CFR - XML import'!$A78,SEARCH(\">\",'CFR - XML import'!$A78,1)+1,SEARCH(\"/\",'CFR - XML import'!$A78,1)-SEARCH(\">\",'CFR - XML import'!$A78,1)-2)))","v":0},{"$f":"IF(ISERROR(FIND(BJ$3,'CFR - XML import'!$A78)),0,VALUE(MID('CFR - XML import'!$A78,SEARCH(\">\",'CFR - XML import'!$A78,1)+1,SEARCH(\"/\",'CFR - XML import'!$A78,1)-SEARCH(\">\",'CFR - XML import'!$A78,1)-2)))","v":0},{"$f":"IF(ISERROR(FIND(BK$3,'CFR - XML import'!$A78)),0,VALUE(MID('CFR - XML import'!$A78,SEARCH(\">\",'CFR - XML import'!$A78,1)+1,SEARCH(\"/\",'CFR - XML import'!$A78,1)-SEARCH(\">\",'CFR - XML import'!$A78,1)-2)))","v":0},{"$f":"IF(ISERROR(FIND(BL$3,'CFR - XML import'!$A78)),0,VALUE(MID('CFR - XML import'!$A78,SEARCH(\">\",'CFR - XML import'!$A78,1)+1,SEARCH(\"/\",'CFR - XML import'!$A78,1)-SEARCH(\">\",'CFR - XML import'!$A78,1)-2)))","v":0},{"$f":"IF(ISERROR(FIND(BM$3,'CFR - XML import'!$A78)),0,VALUE(MID('CFR - XML import'!$A78,SEARCH(\">\",'CFR - XML import'!$A78,1)+1,SEARCH(\"/\",'CFR - XML import'!$A78,1)-SEARCH(\">\",'CFR - XML import'!$A78,1)-2)))","v":0},{"$f":"IF(ISERROR(FIND(BN$3,'CFR - XML import'!$A78)),0,VALUE(MID('CFR - XML import'!$A78,SEARCH(\">\",'CFR - XML import'!$A78,1)+1,SEARCH(\"/\",'CFR - XML import'!$A78,1)-SEARCH(\">\",'CFR - XML import'!$A78,1)-2)))","v":0},{"$f":"IF(ISERROR(FIND(BO$3,'CFR - XML import'!$A78)),0,VALUE(MID('CFR - XML import'!$A78,SEARCH(\">\",'CFR - XML import'!$A78,1)+1,SEARCH(\"/\",'CFR - XML import'!$A78,1)-SEARCH(\">\",'CFR - XML import'!$A78,1)-2)))","v":0},{"$f":"IF(ISERROR(FIND(BP$3,'CFR - XML import'!$A78)),0,VALUE(MID('CFR - XML import'!$A78,SEARCH(\">\",'CFR - XML import'!$A78,1)+1,SEARCH(\"/\",'CFR - XML import'!$A78,1)-SEARCH(\">\",'CFR - XML import'!$A78,1)-2)))","v":0},{"$f":"IF(ISERROR(FIND(BQ$3,'CFR - XML import'!$A78)),0,VALUE(MID('CFR - XML import'!$A78,SEARCH(\">\",'CFR - XML import'!$A78,1)+1,SEARCH(\"/\",'CFR - XML import'!$A78,1)-SEARCH(\">\",'CFR - XML import'!$A78,1)-2)))","v":0},{"$f":"IF(ISERROR(FIND(BR$3,'CFR - XML import'!$A78)),0,VALUE(MID('CFR - XML import'!$A78,SEARCH(\">\",'CFR - XML import'!$A78,1)+1,SEARCH(\"/\",'CFR - XML import'!$A78,1)-SEARCH(\">\",'CFR - XML import'!$A78,1)-2)))","v":0},{"$f":"IF(ISERROR(FIND(BS$3,'CFR - XML import'!$A78)),0,VALUE(MID('CFR - XML import'!$A78,SEARCH(\">\",'CFR - XML import'!$A78,1)+1,SEARCH(\"/\",'CFR - XML import'!$A78,1)-SEARCH(\">\",'CFR - XML import'!$A78,1)-2)))","v":0},{"$f":"IF(ISERROR(FIND(BT$3,'CFR - XML import'!$A78)),0,VALUE(MID('CFR - XML import'!$A78,SEARCH(\">\",'CFR - XML import'!$A78,1)+1,SEARCH(\"/\",'CFR - XML import'!$A78,1)-SEARCH(\">\",'CFR - XML import'!$A78,1)-2)))","v":0},{"$f":"IF(ISERROR(FIND(BU$3,'CFR - XML import'!$A78)),0,VALUE(MID('CFR - XML import'!$A78,SEARCH(\">\",'CFR - XML import'!$A78,1)+1,SEARCH(\"/\",'CFR - XML import'!$A78,1)-SEARCH(\">\",'CFR - XML import'!$A78,1)-2)))","v":0},{"$f":"IF(ISERROR(FIND(BV$3,'CFR - XML import'!$A78)),0,VALUE(MID('CFR - XML import'!$A78,SEARCH(\">\",'CFR - XML import'!$A78,1)+1,SEARCH(\"/\",'CFR - XML import'!$A78,1)-SEARCH(\">\",'CFR - XML import'!$A78,1)-2)))","v":0},{"$f":"IF(ISERROR(FIND(BW$3,'CFR - XML import'!$A78)),0,VALUE(MID('CFR - XML import'!$A78,SEARCH(\">\",'CFR - XML import'!$A78,1)+1,SEARCH(\"/\",'CFR - XML import'!$A78,1)-SEARCH(\">\",'CFR - XML import'!$A78,1)-2)))","v":0},{"$f":"IF(ISERROR(FIND(BX$3,'CFR - XML import'!$A78)),0,VALUE(MID('CFR - XML import'!$A78,SEARCH(\">\",'CFR - XML import'!$A78,1)+1,SEARCH(\"/\",'CFR - XML import'!$A78,1)-SEARCH(\">\",'CFR - XML import'!$A78,1)-2)))","v":0},{"$f":"IF(ISERROR(FIND(BY$3,'CFR - XML import'!$A78)),0,VALUE(MID('CFR - XML import'!$A78,SEARCH(\">\",'CFR - XML import'!$A78,1)+1,SEARCH(\"/\",'CFR - XML import'!$A78,1)-SEARCH(\">\",'CFR - XML import'!$A78,1)-2)))","v":0},{"$f":"IF(ISERROR(FIND(BZ$3,'CFR - XML import'!$A78)),0,VALUE(MID('CFR - XML import'!$A78,SEARCH(\">\",'CFR - XML import'!$A78,1)+1,SEARCH(\"/\",'CFR - XML import'!$A78,1)-SEARCH(\">\",'CFR - XML import'!$A78,1)-2)))","v":0},null,null,null,null,null,null,{"$f":"IF(ISERROR(IF(MID('CFR - XML import'!$A78,LEN($CF$4)+1,LEN('CFR - XML import'!$A78)-(2*LEN($CF$4)+1))=\"RMMS\",1,IF(MID('CFR - XML import'!$A78,LEN(\"    <InputSystem>\")+1,LEN('CFR - XML import'!$A78)-(LEN(\"    <InputSystem>\")+LEN($CF$4)+1))=\"SIMS\",2,0))),0,IF(MID('CFR - XML import'!$A78,LEN($CF$4)+1,LEN('CFR - XML import'!$A78)-(2*LEN($CF$4)+1))=\"RMMS\",1,IF(MID('CFR - XML import'!$A78,LEN(\"    <InputSystem>\")+1,LEN('CFR - XML import'!$A78)-(LEN(\"    <InputSystem>\")+LEN($CF$4)+1))=\"SIMS\",2,0)))","v":0},{"$f":"IF(ISERROR(FIND(CH$3,'CFR - XML import'!$A78)),0,MID('CFR - XML import'!$A78,SEARCH(\">\",'CFR - XML import'!$A78,1)+1,SEARCH(\"/\",'CFR - XML import'!$A78,1)-SEARCH(\">\",'CFR - XML import'!$A78,1)-2))","v":0},{"$f":"IF(ISERROR(FIND(CI$3,'CFR - XML import'!$A78)),0,MID('CFR - XML import'!$A78,SEARCH(\">\",'CFR - XML import'!$A78,1)+1,SEARCH(\"/\",'CFR - XML import'!$A78,1)-SEARCH(\">\",'CFR - XML import'!$A78,1)-2))","v":0},{"$f":"IF(ISERROR(FIND(CJ$3,'CFR - XML import'!$A78)),0,MID('CFR - XML import'!$A78,SEARCH(\">\",'CFR - XML import'!$A78,1)+1,SEARCH(\"/\",'CFR - XML import'!$A78,1)-SEARCH(\">\",'CFR - XML import'!$A78,1)-2))","v":0},{"$f":"IF(ISERROR(FIND(CK$3,'CFR - XML import'!$A78)),0,MID('CFR - XML import'!$A78,SEARCH(\">\",'CFR - XML import'!$A78,1)+1,SEARCH(\"/\",'CFR - XML import'!$A78,1)-SEARCH(\">\",'CFR - XML import'!$A78,1)-2))","v":0},{"$f":"IF(ISERROR(FIND(CL$3,'CFR - XML import'!$A78)),0,MID('CFR - XML import'!$A78,SEARCH(\">\",'CFR - XML import'!$A78,1)+1,SEARCH(\"/\",'CFR - XML import'!$A78,1)-SEARCH(\">\",'CFR - XML import'!$A78,1)-2))","v":0}]
[{"$f":"IF(AND('CFR - XML import'!A79<>\"\",LEFT('CFR - XML import'!A79,1)<>\"<\",LEFT('CFR - XML import'!A79,3)<>\"  <\",LEFT('CFR - XML import'!A79,5)<>\"    <\",LEFT('CFR - XML import'!A79,7)<>\"      <\",LEFT('CFR - XML import'!A79,9)<>\"        <\",$B$1=\"SIMS\"),'CFR - XML import'!A79,IF(AND(LEFT('CFR - XML import'!A79,9)=\"<Details>\",$B$1=\"RM\"),'CFR - XML import'!A79,\"\"))","v":""},{"$f":"IF(ISERROR(FIND(B$3,'CFR - XML import'!$A79)),0,VALUE(MID('CFR - XML import'!$A79,SEARCH(\">\",'CFR - XML import'!$A79,1)+1,SEARCH(\"/\",'CFR - XML import'!$A79,1)-SEARCH(\">\",'CFR - XML import'!$A79,1)-2)))","v":0},null,{"$f":"IF(ISERROR(FIND(D$3,'CFR - XML import'!$A79)),0,MID('CFR - XML import'!$A79,SEARCH(\">\",'CFR - XML import'!$A79,1)+1,SEARCH(\"/\",'CFR - XML import'!$A79,1)-SEARCH(\">\",'CFR - XML import'!$A79,1)-2))","v":0},{"$f":"IF(ISERROR(FIND(E$3,'CFR - XML import'!$A79)),0,MID('CFR - XML import'!$A79,SEARCH(\">\",'CFR - XML import'!$A79,1)+1,SEARCH(\"/\",'CFR - XML import'!$A79,1)-SEARCH(\">\",'CFR - XML import'!$A79,1)-2))","v":0},{"$f":"IF($B$1=\"SIMS\",IF(ISERROR(FIND(F$3,'CFR - XML import'!$A79)),0,VALUE(MID('CFR - XML import'!$A79,15,10))),IF(ISERROR(FIND(F$3,'CFR - XML import'!$A79)),0,VALUE(MID('CFR - XML import'!$A79,11,10))))","v":"00:00:00"},{"$f":"IF(ISERROR(FIND(G$3,'CFR - XML import'!$A79)),0,VALUE(MID('CFR - XML import'!$A79,SEARCH(\">\",'CFR - XML import'!$A79,1)+1,SEARCH(\"/\",'CFR - XML import'!$A79,1)-SEARCH(\">\",'CFR - XML import'!$A79,1)-2)))","v":0},{"$f":"IF(ISERROR(FIND(H$3,'CFR - XML import'!$A79)),0,VALUE(MID('CFR - XML import'!$A79,SEARCH(\">\",'CFR - XML import'!$A79,1)+1,SEARCH(\"/\",'CFR - XML import'!$A79,1)-SEARCH(\">\",'CFR - XML import'!$A79,1)-2)))","v":0},{"$f":"IF(ISERROR(FIND(I$3,'CFR - XML import'!$A79)),0,VALUE(MID('CFR - XML import'!$A79,SEARCH(\">\",'CFR - XML import'!$A79,1)+1,SEARCH(\"/\",'CFR - XML import'!$A79,1)-SEARCH(\">\",'CFR - XML import'!$A79,1)-2)))","v":0},{"$f":"IF(ISERROR(FIND(J$3,'CFR - XML import'!$A79)),0,VALUE(MID('CFR - XML import'!$A79,SEARCH(\">\",'CFR - XML import'!$A79,1)+1,SEARCH(\"/\",'CFR - XML import'!$A79,1)-SEARCH(\">\",'CFR - XML import'!$A79,1)-2)))","v":0},{"$f":"IF(ISERROR(FIND(K$3,'CFR - XML import'!$A79)),0,VALUE(MID('CFR - XML import'!$A79,SEARCH(\">\",'CFR - XML import'!$A79,1)+1,SEARCH(\"/\",'CFR - XML import'!$A79,1)-SEARCH(\">\",'CFR - XML import'!$A79,1)-2)))","v":0},{"$f":"IF(ISERROR(FIND(L$3,'CFR - XML import'!$A79)),0,VALUE(MID('CFR - XML import'!$A79,SEARCH(\">\",'CFR - XML import'!$A79,1)+1,SEARCH(\"/\",'CFR - XML import'!$A79,1)-SEARCH(\">\",'CFR - XML import'!$A79,1)-2)))","v":0},{"$f":"IF(ISERROR(FIND(M$3,'CFR - XML import'!$A79)),0,VALUE(MID('CFR - XML import'!$A79,SEARCH(\">\",'CFR - XML import'!$A79,1)+1,SEARCH(\"/\",'CFR - XML import'!$A79,1)-SEARCH(\">\",'CFR - XML import'!$A79,1)-2)))","v":0},{"$f":"IF(ISERROR(FIND(N$3,'CFR - XML import'!$A79)),0,VALUE(MID('CFR - XML import'!$A79,SEARCH(\">\",'CFR - XML import'!$A79,1)+1,SEARCH(\"/\",'CFR - XML import'!$A79,1)-SEARCH(\">\",'CFR - XML import'!$A79,1)-2)))","v":0},{"$f":"IF(ISERROR(FIND(O$3,'CFR - XML import'!$A79)),0,VALUE(MID('CFR - XML import'!$A79,SEARCH(\">\",'CFR - XML import'!$A79,1)+1,SEARCH(\"/\",'CFR - XML import'!$A79,1)-SEARCH(\">\",'CFR - XML import'!$A79,1)-2)))","v":0},{"$f":"IF(ISERROR(FIND(P$3,'CFR - XML import'!$A79)),0,VALUE(MID('CFR - XML import'!$A79,SEARCH(\">\",'CFR - XML import'!$A79,1)+1,SEARCH(\"/\",'CFR - XML import'!$A79,1)-SEARCH(\">\",'CFR - XML import'!$A79,1)-2)))","v":0},{"$f":"IF(ISERROR(FIND(Q$3,'CFR - XML import'!$A79)),0,VALUE(MID('CFR - XML import'!$A79,SEARCH(\">\",'CFR - XML import'!$A79,1)+1,SEARCH(\"/\",'CFR - XML import'!$A79,1)-SEARCH(\">\",'CFR - XML import'!$A79,1)-2)))","v":0},{"$f":"IF(ISERROR(FIND(R$3,'CFR - XML import'!$A79)),0,VALUE(MID('CFR - XML import'!$A79,SEARCH(\">\",'CFR - XML import'!$A79,1)+1,SEARCH(\"/\",'CFR - XML import'!$A79,1)-SEARCH(\">\",'CFR - XML import'!$A79,1)-2)))","v":0},{"$f":"IF(ISERROR(FIND(S$3,'CFR - XML import'!$A79)),0,VALUE(MID('CFR - XML import'!$A79,SEARCH(\">\",'CFR - XML import'!$A79,1)+1,SEARCH(\"/\",'CFR - XML import'!$A79,1)-SEARCH(\">\",'CFR - XML import'!$A79,1)-2)))","v":0},{"$f":"IF(ISERROR(FIND(T$3,'CFR - XML import'!$A79)),0,VALUE(MID('CFR - XML import'!$A79,SEARCH(\">\",'CFR - XML import'!$A79,1)+1,SEARCH(\"/\",'CFR - XML import'!$A79,1)-SEARCH(\">\",'CFR - XML import'!$A79,1)-2)))","v":0},{"$f":"IF(ISERROR(FIND(U$3,'CFR - XML import'!$A79)),0,VALUE(MID('CFR - XML import'!$A79,SEARCH(\">\",'CFR - XML import'!$A79,1)+1,SEARCH(\"/\",'CFR - XML import'!$A79,1)-SEARCH(\">\",'CFR - XML import'!$A79,1)-2)))","v":0},{"$f":"IF(ISERROR(FIND(V$3,'CFR - XML import'!$A79)),0,VALUE(MID('CFR - XML import'!$A79,SEARCH(\">\",'CFR - XML import'!$A79,1)+1,SEARCH(\"/\",'CFR - XML import'!$A79,1)-SEARCH(\">\",'CFR - XML import'!$A79,1)-2)))","v":0},{"$f":"IF(ISERROR(FIND(W$3,'CFR - XML import'!$A79)),0,VALUE(MID('CFR - XML import'!$A79,SEARCH(\">\",'CFR - XML import'!$A79,1)+1,SEARCH(\"/\",'CFR - XML import'!$A79,1)-SEARCH(\">\",'CFR - XML import'!$A79,1)-2)))","v":0},null,{"$f":"IF(ISERROR(FIND(Y$3,'CFR - XML import'!$A79)),0,VALUE(MID('CFR - XML import'!$A79,SEARCH(\">\",'CFR - XML import'!$A79,1)+1,SEARCH(\"/\",'CFR - XML import'!$A79,1)-SEARCH(\">\",'CFR - XML import'!$A79,1)-2)))","v":0},{"$f":"IF(ISERROR(FIND(Z$3,'CFR - XML import'!$A79)),0,VALUE(MID('CFR - XML import'!$A79,SEARCH(\">\",'CFR - XML import'!$A79,1)+1,SEARCH(\"/\",'CFR - XML import'!$A79,1)-SEARCH(\">\",'CFR - XML import'!$A79,1)-2)))","v":0},{"$f":"IF(ISERROR(FIND(AA$3,'CFR - XML import'!$A79)),0,VALUE(MID('CFR - XML import'!$A79,SEARCH(\">\",'CFR - XML import'!$A79,1)+1,SEARCH(\"/\",'CFR - XML import'!$A79,1)-SEARCH(\">\",'CFR - XML import'!$A79,1)-2)))","v":0},{"$f":"IF(ISERROR(FIND(AB$3,'CFR - XML import'!$A79)),0,VALUE(MID('CFR - XML import'!$A79,SEARCH(\">\",'CFR - XML import'!$A79,1)+1,SEARCH(\"/\",'CFR - XML import'!$A79,1)-SEARCH(\">\",'CFR - XML import'!$A79,1)-2)))","v":0},{"$f":"IF(ISERROR(FIND(AC$3,'CFR - XML import'!$A79)),0,VALUE(MID('CFR - XML import'!$A79,SEARCH(\">\",'CFR - XML import'!$A79,1)+1,SEARCH(\"/\",'CFR - XML import'!$A79,1)-SEARCH(\">\",'CFR - XML import'!$A79,1)-2)))","v":0},{"$f":"IF(ISERROR(FIND(AD$3,'CFR - XML import'!$A79)),0,VALUE(MID('CFR - XML import'!$A79,SEARCH(\">\",'CFR - XML import'!$A79,1)+1,SEARCH(\"/\",'CFR - XML import'!$A79,1)-SEARCH(\">\",'CFR - XML import'!$A79,1)-2)))","v":0},{"$f":"IF(ISERROR(FIND(AE$3,'CFR - XML import'!$A79)),0,VALUE(MID('CFR - XML import'!$A79,SEARCH(\">\",'CFR - XML import'!$A79,1)+1,SEARCH(\"/\",'CFR - XML import'!$A79,1)-SEARCH(\">\",'CFR - XML import'!$A79,1)-2)))","v":0},{"$f":"IF(ISERROR(FIND(AF$3,'CFR - XML import'!$A79)),0,VALUE(MID('CFR - XML import'!$A79,SEARCH(\">\",'CFR - XML import'!$A79,1)+1,SEARCH(\"/\",'CFR - XML import'!$A79,1)-SEARCH(\">\",'CFR - XML import'!$A79,1)-2)))","v":0},{"$f":"IF(ISERROR(FIND(AG$3,'CFR - XML import'!$A79)),0,VALUE(MID('CFR - XML import'!$A79,SEARCH(\">\",'CFR - XML import'!$A79,1)+1,SEARCH(\"/\",'CFR - XML import'!$A79,1)-SEARCH(\">\",'CFR - XML import'!$A79,1)-2)))","v":0},{"$f":"IF(ISERROR(FIND(AH$3,'CFR - XML import'!$A79)),0,VALUE(MID('CFR - XML import'!$A79,SEARCH(\">\",'CFR - XML import'!$A79,1)+1,SEARCH(\"/\",'CFR - XML import'!$A79,1)-SEARCH(\">\",'CFR - XML import'!$A79,1)-2)))","v":0},{"$f":"IF(ISERROR(FIND(AI$3,'CFR - XML import'!$A79)),0,VALUE(MID('CFR - XML import'!$A79,SEARCH(\">\",'CFR - XML import'!$A79,1)+1,SEARCH(\"/\",'CFR - XML import'!$A79,1)-SEARCH(\">\",'CFR - XML import'!$A79,1)-2)))","v":0},{"$f":"IF(ISERROR(FIND(AJ$3,'CFR - XML import'!$A79)),0,VALUE(MID('CFR - XML import'!$A79,SEARCH(\">\",'CFR - XML import'!$A79,1)+1,SEARCH(\"/\",'CFR - XML import'!$A79,1)-SEARCH(\">\",'CFR - XML import'!$A79,1)-2)))","v":0},{"$f":"IF(ISERROR(FIND(AK$3,'CFR - XML import'!$A79)),0,VALUE(MID('CFR - XML import'!$A79,SEARCH(\">\",'CFR - XML import'!$A79,1)+1,SEARCH(\"/\",'CFR - XML import'!$A79,1)-SEARCH(\">\",'CFR - XML import'!$A79,1)-2)))","v":0},{"$f":"IF(ISERROR(FIND(AL$3,'CFR - XML import'!$A79)),0,VALUE(MID('CFR - XML import'!$A79,SEARCH(\">\",'CFR - XML import'!$A79,1)+1,SEARCH(\"/\",'CFR - XML import'!$A79,1)-SEARCH(\">\",'CFR - XML import'!$A79,1)-2)))","v":0},{"$f":"IF(ISERROR(FIND(AM$3,'CFR - XML import'!$A79)),0,VALUE(MID('CFR - XML import'!$A79,SEARCH(\">\",'CFR - XML import'!$A79,1)+1,SEARCH(\"/\",'CFR - XML import'!$A79,1)-SEARCH(\">\",'CFR - XML import'!$A79,1)-2)))","v":0},{"$f":"IF(ISERROR(FIND(AN$3,'CFR - XML import'!$A79)),0,VALUE(MID('CFR - XML import'!$A79,SEARCH(\">\",'CFR - XML import'!$A79,1)+1,SEARCH(\"/\",'CFR - XML import'!$A79,1)-SEARCH(\">\",'CFR - XML import'!$A79,1)-2)))","v":0},{"$f":"IF(ISERROR(FIND(AO$3,'CFR - XML import'!$A79)),0,VALUE(MID('CFR - XML import'!$A79,SEARCH(\">\",'CFR - XML import'!$A79,1)+1,SEARCH(\"/\",'CFR - XML import'!$A79,1)-SEARCH(\">\",'CFR - XML import'!$A79,1)-2)))","v":0},{"$f":"IF(ISERROR(FIND(AP$3,'CFR - XML import'!$A79)),0,VALUE(MID('CFR - XML import'!$A79,SEARCH(\">\",'CFR - XML import'!$A79,1)+1,SEARCH(\"/\",'CFR - XML import'!$A79,1)-SEARCH(\">\",'CFR - XML import'!$A79,1)-2)))","v":0},{"$f":"IF(ISERROR(FIND(AQ$3,'CFR - XML import'!$A79)),0,VALUE(MID('CFR - XML import'!$A79,SEARCH(\">\",'CFR - XML import'!$A79,1)+1,SEARCH(\"/\",'CFR - XML import'!$A79,1)-SEARCH(\">\",'CFR - XML import'!$A79,1)-2)))","v":0},{"$f":"IF(ISERROR(FIND(AR$3,'CFR - XML import'!$A79)),0,VALUE(MID('CFR - XML import'!$A79,SEARCH(\">\",'CFR - XML import'!$A79,1)+1,SEARCH(\"/\",'CFR - XML import'!$A79,1)-SEARCH(\">\",'CFR - XML import'!$A79,1)-2)))","v":0},{"$f":"IF(ISERROR(FIND(AS$3,'CFR - XML import'!$A79)),0,VALUE(MID('CFR - XML import'!$A79,SEARCH(\">\",'CFR - XML import'!$A79,1)+1,SEARCH(\"/\",'CFR - XML import'!$A79,1)-SEARCH(\">\",'CFR - XML import'!$A79,1)-2)))","v":0},{"$f":"IF(ISERROR(FIND(AT$3,'CFR - XML import'!$A79)),0,VALUE(MID('CFR - XML import'!$A79,SEARCH(\">\",'CFR - XML import'!$A79,1)+1,SEARCH(\"/\",'CFR - XML import'!$A79,1)-SEARCH(\">\",'CFR - XML import'!$A79,1)-2)))","v":0},{"$f":"IF(ISERROR(FIND(AU$3,'CFR - XML import'!$A79)),0,VALUE(MID('CFR - XML import'!$A79,SEARCH(\">\",'CFR - XML import'!$A79,1)+1,SEARCH(\"/\",'CFR - XML import'!$A79,1)-SEARCH(\">\",'CFR - XML import'!$A79,1)-2)))","v":0},{"$f":"IF(ISERROR(FIND(AV$3,'CFR - XML import'!$A79)),0,VALUE(MID('CFR - XML import'!$A79,SEARCH(\">\",'CFR - XML import'!$A79,1)+1,SEARCH(\"/\",'CFR - XML import'!$A79,1)-SEARCH(\">\",'CFR - XML import'!$A79,1)-2)))","v":0},{"$f":"IF(ISERROR(FIND(AW$3,'CFR - XML import'!$A79)),0,VALUE(MID('CFR - XML import'!$A79,SEARCH(\">\",'CFR - XML import'!$A79,1)+1,SEARCH(\"/\",'CFR - XML import'!$A79,1)-SEARCH(\">\",'CFR - XML import'!$A79,1)-2)))","v":0},{"$f":"IF(ISERROR(FIND(AX$3,'CFR - XML import'!$A79)),0,VALUE(MID('CFR - XML import'!$A79,SEARCH(\">\",'CFR - XML import'!$A79,1)+1,SEARCH(\"/\",'CFR - XML import'!$A79,1)-SEARCH(\">\",'CFR - XML import'!$A79,1)-2)))","v":0},{"$f":"IF(ISERROR(FIND(AY$3,'CFR - XML import'!$A79)),0,VALUE(MID('CFR - XML import'!$A79,SEARCH(\">\",'CFR - XML import'!$A79,1)+1,SEARCH(\"/\",'CFR - XML import'!$A79,1)-SEARCH(\">\",'CFR - XML import'!$A79,1)-2)))","v":0},{"$f":"IF(ISERROR(FIND(AZ$3,'CFR - XML import'!$A79)),0,VALUE(MID('CFR - XML import'!$A79,SEARCH(\">\",'CFR - XML import'!$A79,1)+1,SEARCH(\"/\",'CFR - XML import'!$A79,1)-SEARCH(\">\",'CFR - XML import'!$A79,1)-2)))","v":0},{"$f":"IF(ISERROR(FIND(BA$3,'CFR - XML import'!$A79)),0,VALUE(MID('CFR - XML import'!$A79,SEARCH(\">\",'CFR - XML import'!$A79,1)+1,SEARCH(\"/\",'CFR - XML import'!$A79,1)-SEARCH(\">\",'CFR - XML import'!$A79,1)-2)))","v":0},{"$f":"IF(ISERROR(FIND(BB$3,'CFR - XML import'!$A79)),0,VALUE(MID('CFR - XML import'!$A79,SEARCH(\">\",'CFR - XML import'!$A79,1)+1,SEARCH(\"/\",'CFR - XML import'!$A79,1)-SEARCH(\">\",'CFR - XML import'!$A79,1)-2)))","v":0},{"$f":"IF(ISERROR(FIND(BC$3,'CFR - XML import'!$A79)),0,VALUE(MID('CFR - XML import'!$A79,SEARCH(\">\",'CFR - XML import'!$A79,1)+1,SEARCH(\"/\",'CFR - XML import'!$A79,1)-SEARCH(\">\",'CFR - XML import'!$A79,1)-2)))","v":0},{"$f":"IF(ISERROR(FIND(BD$3,'CFR - XML import'!$A79)),0,VALUE(MID('CFR - XML import'!$A79,SEARCH(\">\",'CFR - XML import'!$A79,1)+1,SEARCH(\"/\",'CFR - XML import'!$A79,1)-SEARCH(\">\",'CFR - XML import'!$A79,1)-2)))","v":0},{"$f":"IF(ISERROR(FIND(BE$3,'CFR - XML import'!$A79)),0,VALUE(MID('CFR - XML import'!$A79,SEARCH(\">\",'CFR - XML import'!$A79,1)+1,SEARCH(\"/\",'CFR - XML import'!$A79,1)-SEARCH(\">\",'CFR - XML import'!$A79,1)-2)))","v":0},{"$f":"IF(ISERROR(FIND(BF$3,'CFR - XML import'!$A79)),0,VALUE(MID('CFR - XML import'!$A79,SEARCH(\">\",'CFR - XML import'!$A79,1)+1,SEARCH(\"/\",'CFR - XML import'!$A79,1)-SEARCH(\">\",'CFR - XML import'!$A79,1)-2)))","v":0},{"$f":"IF(ISERROR(FIND(BG$3,'CFR - XML import'!$A79)),0,VALUE(MID('CFR - XML import'!$A79,SEARCH(\">\",'CFR - XML import'!$A79,1)+1,SEARCH(\"/\",'CFR - XML import'!$A79,1)-SEARCH(\">\",'CFR - XML import'!$A79,1)-2)))","v":0},{"$f":"IF(ISERROR(FIND(BH$3,'CFR - XML import'!$A79)),0,VALUE(MID('CFR - XML import'!$A79,SEARCH(\">\",'CFR - XML import'!$A79,1)+1,SEARCH(\"/\",'CFR - XML import'!$A79,1)-SEARCH(\">\",'CFR - XML import'!$A79,1)-2)))","v":0},{"$f":"IF(ISERROR(FIND(BI$3,'CFR - XML import'!$A79)),0,VALUE(MID('CFR - XML import'!$A79,SEARCH(\">\",'CFR - XML import'!$A79,1)+1,SEARCH(\"/\",'CFR - XML import'!$A79,1)-SEARCH(\">\",'CFR - XML import'!$A79,1)-2)))","v":0},{"$f":"IF(ISERROR(FIND(BJ$3,'CFR - XML import'!$A79)),0,VALUE(MID('CFR - XML import'!$A79,SEARCH(\">\",'CFR - XML import'!$A79,1)+1,SEARCH(\"/\",'CFR - XML import'!$A79,1)-SEARCH(\">\",'CFR - XML import'!$A79,1)-2)))","v":0},{"$f":"IF(ISERROR(FIND(BK$3,'CFR - XML import'!$A79)),0,VALUE(MID('CFR - XML import'!$A79,SEARCH(\">\",'CFR - XML import'!$A79,1)+1,SEARCH(\"/\",'CFR - XML import'!$A79,1)-SEARCH(\">\",'CFR - XML import'!$A79,1)-2)))","v":0},{"$f":"IF(ISERROR(FIND(BL$3,'CFR - XML import'!$A79)),0,VALUE(MID('CFR - XML import'!$A79,SEARCH(\">\",'CFR - XML import'!$A79,1)+1,SEARCH(\"/\",'CFR - XML import'!$A79,1)-SEARCH(\">\",'CFR - XML import'!$A79,1)-2)))","v":0},{"$f":"IF(ISERROR(FIND(BM$3,'CFR - XML import'!$A79)),0,VALUE(MID('CFR - XML import'!$A79,SEARCH(\">\",'CFR - XML import'!$A79,1)+1,SEARCH(\"/\",'CFR - XML import'!$A79,1)-SEARCH(\">\",'CFR - XML import'!$A79,1)-2)))","v":0},{"$f":"IF(ISERROR(FIND(BN$3,'CFR - XML import'!$A79)),0,VALUE(MID('CFR - XML import'!$A79,SEARCH(\">\",'CFR - XML import'!$A79,1)+1,SEARCH(\"/\",'CFR - XML import'!$A79,1)-SEARCH(\">\",'CFR - XML import'!$A79,1)-2)))","v":0},{"$f":"IF(ISERROR(FIND(BO$3,'CFR - XML import'!$A79)),0,VALUE(MID('CFR - XML import'!$A79,SEARCH(\">\",'CFR - XML import'!$A79,1)+1,SEARCH(\"/\",'CFR - XML import'!$A79,1)-SEARCH(\">\",'CFR - XML import'!$A79,1)-2)))","v":0},{"$f":"IF(ISERROR(FIND(BP$3,'CFR - XML import'!$A79)),0,VALUE(MID('CFR - XML import'!$A79,SEARCH(\">\",'CFR - XML import'!$A79,1)+1,SEARCH(\"/\",'CFR - XML import'!$A79,1)-SEARCH(\">\",'CFR - XML import'!$A79,1)-2)))","v":0},{"$f":"IF(ISERROR(FIND(BQ$3,'CFR - XML import'!$A79)),0,VALUE(MID('CFR - XML import'!$A79,SEARCH(\">\",'CFR - XML import'!$A79,1)+1,SEARCH(\"/\",'CFR - XML import'!$A79,1)-SEARCH(\">\",'CFR - XML import'!$A79,1)-2)))","v":0},{"$f":"IF(ISERROR(FIND(BR$3,'CFR - XML import'!$A79)),0,VALUE(MID('CFR - XML import'!$A79,SEARCH(\">\",'CFR - XML import'!$A79,1)+1,SEARCH(\"/\",'CFR - XML import'!$A79,1)-SEARCH(\">\",'CFR - XML import'!$A79,1)-2)))","v":0},{"$f":"IF(ISERROR(FIND(BS$3,'CFR - XML import'!$A79)),0,VALUE(MID('CFR - XML import'!$A79,SEARCH(\">\",'CFR - XML import'!$A79,1)+1,SEARCH(\"/\",'CFR - XML import'!$A79,1)-SEARCH(\">\",'CFR - XML import'!$A79,1)-2)))","v":0},{"$f":"IF(ISERROR(FIND(BT$3,'CFR - XML import'!$A79)),0,VALUE(MID('CFR - XML import'!$A79,SEARCH(\">\",'CFR - XML import'!$A79,1)+1,SEARCH(\"/\",'CFR - XML import'!$A79,1)-SEARCH(\">\",'CFR - XML import'!$A79,1)-2)))","v":0},{"$f":"IF(ISERROR(FIND(BU$3,'CFR - XML import'!$A79)),0,VALUE(MID('CFR - XML import'!$A79,SEARCH(\">\",'CFR - XML import'!$A79,1)+1,SEARCH(\"/\",'CFR - XML import'!$A79,1)-SEARCH(\">\",'CFR - XML import'!$A79,1)-2)))","v":0},{"$f":"IF(ISERROR(FIND(BV$3,'CFR - XML import'!$A79)),0,VALUE(MID('CFR - XML import'!$A79,SEARCH(\">\",'CFR - XML import'!$A79,1)+1,SEARCH(\"/\",'CFR - XML import'!$A79,1)-SEARCH(\">\",'CFR - XML import'!$A79,1)-2)))","v":0},{"$f":"IF(ISERROR(FIND(BW$3,'CFR - XML import'!$A79)),0,VALUE(MID('CFR - XML import'!$A79,SEARCH(\">\",'CFR - XML import'!$A79,1)+1,SEARCH(\"/\",'CFR - XML import'!$A79,1)-SEARCH(\">\",'CFR - XML import'!$A79,1)-2)))","v":0},{"$f":"IF(ISERROR(FIND(BX$3,'CFR - XML import'!$A79)),0,VALUE(MID('CFR - XML import'!$A79,SEARCH(\">\",'CFR - XML import'!$A79,1)+1,SEARCH(\"/\",'CFR - XML import'!$A79,1)-SEARCH(\">\",'CFR - XML import'!$A79,1)-2)))","v":0},{"$f":"IF(ISERROR(FIND(BY$3,'CFR - XML import'!$A79)),0,VALUE(MID('CFR - XML import'!$A79,SEARCH(\">\",'CFR - XML import'!$A79,1)+1,SEARCH(\"/\",'CFR - XML import'!$A79,1)-SEARCH(\">\",'CFR - XML import'!$A79,1)-2)))","v":0},{"$f":"IF(ISERROR(FIND(BZ$3,'CFR - XML import'!$A79)),0,VALUE(MID('CFR - XML import'!$A79,SEARCH(\">\",'CFR - XML import'!$A79,1)+1,SEARCH(\"/\",'CFR - XML import'!$A79,1)-SEARCH(\">\",'CFR - XML import'!$A79,1)-2)))","v":0},null,null,null,null,null,null,{"$f":"IF(ISERROR(IF(MID('CFR - XML import'!$A79,LEN($CF$4)+1,LEN('CFR - XML import'!$A79)-(2*LEN($CF$4)+1))=\"RMMS\",1,IF(MID('CFR - XML import'!$A79,LEN(\"    <InputSystem>\")+1,LEN('CFR - XML import'!$A79)-(LEN(\"    <InputSystem>\")+LEN($CF$4)+1))=\"SIMS\",2,0))),0,IF(MID('CFR - XML import'!$A79,LEN($CF$4)+1,LEN('CFR - XML import'!$A79)-(2*LEN($CF$4)+1))=\"RMMS\",1,IF(MID('CFR - XML import'!$A79,LEN(\"    <InputSystem>\")+1,LEN('CFR - XML import'!$A79)-(LEN(\"    <InputSystem>\")+LEN($CF$4)+1))=\"SIMS\",2,0)))","v":0},{"$f":"IF(ISERROR(FIND(CH$3,'CFR - XML import'!$A79)),0,MID('CFR - XML import'!$A79,SEARCH(\">\",'CFR - XML import'!$A79,1)+1,SEARCH(\"/\",'CFR - XML import'!$A79,1)-SEARCH(\">\",'CFR - XML import'!$A79,1)-2))","v":0},{"$f":"IF(ISERROR(FIND(CI$3,'CFR - XML import'!$A79)),0,MID('CFR - XML import'!$A79,SEARCH(\">\",'CFR - XML import'!$A79,1)+1,SEARCH(\"/\",'CFR - XML import'!$A79,1)-SEARCH(\">\",'CFR - XML import'!$A79,1)-2))","v":0},{"$f":"IF(ISERROR(FIND(CJ$3,'CFR - XML import'!$A79)),0,MID('CFR - XML import'!$A79,SEARCH(\">\",'CFR - XML import'!$A79,1)+1,SEARCH(\"/\",'CFR - XML import'!$A79,1)-SEARCH(\">\",'CFR - XML import'!$A79,1)-2))","v":0},{"$f":"IF(ISERROR(FIND(CK$3,'CFR - XML import'!$A79)),0,MID('CFR - XML import'!$A79,SEARCH(\">\",'CFR - XML import'!$A79,1)+1,SEARCH(\"/\",'CFR - XML import'!$A79,1)-SEARCH(\">\",'CFR - XML import'!$A79,1)-2))","v":0},{"$f":"IF(ISERROR(FIND(CL$3,'CFR - XML import'!$A79)),0,MID('CFR - XML import'!$A79,SEARCH(\">\",'CFR - XML import'!$A79,1)+1,SEARCH(\"/\",'CFR - XML import'!$A79,1)-SEARCH(\">\",'CFR - XML import'!$A79,1)-2))","v":0}]
[{"$f":"IF(AND('CFR - XML import'!A80<>\"\",LEFT('CFR - XML import'!A80,1)<>\"<\",LEFT('CFR - XML import'!A80,3)<>\"  <\",LEFT('CFR - XML import'!A80,5)<>\"    <\",LEFT('CFR - XML import'!A80,7)<>\"      <\",LEFT('CFR - XML import'!A80,9)<>\"        <\",$B$1=\"SIMS\"),'CFR - XML import'!A80,IF(AND(LEFT('CFR - XML import'!A80,9)=\"<Details>\",$B$1=\"RM\"),'CFR - XML import'!A80,\"\"))","v":""},{"$f":"IF(ISERROR(FIND(B$3,'CFR - XML import'!$A80)),0,VALUE(MID('CFR - XML import'!$A80,SEARCH(\">\",'CFR - XML import'!$A80,1)+1,SEARCH(\"/\",'CFR - XML import'!$A80,1)-SEARCH(\">\",'CFR - XML import'!$A80,1)-2)))","v":0},null,{"$f":"IF(ISERROR(FIND(D$3,'CFR - XML import'!$A80)),0,MID('CFR - XML import'!$A80,SEARCH(\">\",'CFR - XML import'!$A80,1)+1,SEARCH(\"/\",'CFR - XML import'!$A80,1)-SEARCH(\">\",'CFR - XML import'!$A80,1)-2))","v":0},{"$f":"IF(ISERROR(FIND(E$3,'CFR - XML import'!$A80)),0,MID('CFR - XML import'!$A80,SEARCH(\">\",'CFR - XML import'!$A80,1)+1,SEARCH(\"/\",'CFR - XML import'!$A80,1)-SEARCH(\">\",'CFR - XML import'!$A80,1)-2))","v":0},{"$f":"IF($B$1=\"SIMS\",IF(ISERROR(FIND(F$3,'CFR - XML import'!$A80)),0,VALUE(MID('CFR - XML import'!$A80,15,10))),IF(ISERROR(FIND(F$3,'CFR - XML import'!$A80)),0,VALUE(MID('CFR - XML import'!$A80,11,10))))","v":"00:00:00"},{"$f":"IF(ISERROR(FIND(G$3,'CFR - XML import'!$A80)),0,VALUE(MID('CFR - XML import'!$A80,SEARCH(\">\",'CFR - XML import'!$A80,1)+1,SEARCH(\"/\",'CFR - XML import'!$A80,1)-SEARCH(\">\",'CFR - XML import'!$A80,1)-2)))","v":0},{"$f":"IF(ISERROR(FIND(H$3,'CFR - XML import'!$A80)),0,VALUE(MID('CFR - XML import'!$A80,SEARCH(\">\",'CFR - XML import'!$A80,1)+1,SEARCH(\"/\",'CFR - XML import'!$A80,1)-SEARCH(\">\",'CFR - XML import'!$A80,1)-2)))","v":0},{"$f":"IF(ISERROR(FIND(I$3,'CFR - XML import'!$A80)),0,VALUE(MID('CFR - XML import'!$A80,SEARCH(\">\",'CFR - XML import'!$A80,1)+1,SEARCH(\"/\",'CFR - XML import'!$A80,1)-SEARCH(\">\",'CFR - XML import'!$A80,1)-2)))","v":0},{"$f":"IF(ISERROR(FIND(J$3,'CFR - XML import'!$A80)),0,VALUE(MID('CFR - XML import'!$A80,SEARCH(\">\",'CFR - XML import'!$A80,1)+1,SEARCH(\"/\",'CFR - XML import'!$A80,1)-SEARCH(\">\",'CFR - XML import'!$A80,1)-2)))","v":0},{"$f":"IF(ISERROR(FIND(K$3,'CFR - XML import'!$A80)),0,VALUE(MID('CFR - XML import'!$A80,SEARCH(\">\",'CFR - XML import'!$A80,1)+1,SEARCH(\"/\",'CFR - XML import'!$A80,1)-SEARCH(\">\",'CFR - XML import'!$A80,1)-2)))","v":0},{"$f":"IF(ISERROR(FIND(L$3,'CFR - XML import'!$A80)),0,VALUE(MID('CFR - XML import'!$A80,SEARCH(\">\",'CFR - XML import'!$A80,1)+1,SEARCH(\"/\",'CFR - XML import'!$A80,1)-SEARCH(\">\",'CFR - XML import'!$A80,1)-2)))","v":0},{"$f":"IF(ISERROR(FIND(M$3,'CFR - XML import'!$A80)),0,VALUE(MID('CFR - XML import'!$A80,SEARCH(\">\",'CFR - XML import'!$A80,1)+1,SEARCH(\"/\",'CFR - XML import'!$A80,1)-SEARCH(\">\",'CFR - XML import'!$A80,1)-2)))","v":0},{"$f":"IF(ISERROR(FIND(N$3,'CFR - XML import'!$A80)),0,VALUE(MID('CFR - XML import'!$A80,SEARCH(\">\",'CFR - XML import'!$A80,1)+1,SEARCH(\"/\",'CFR - XML import'!$A80,1)-SEARCH(\">\",'CFR - XML import'!$A80,1)-2)))","v":0},{"$f":"IF(ISERROR(FIND(O$3,'CFR - XML import'!$A80)),0,VALUE(MID('CFR - XML import'!$A80,SEARCH(\">\",'CFR - XML import'!$A80,1)+1,SEARCH(\"/\",'CFR - XML import'!$A80,1)-SEARCH(\">\",'CFR - XML import'!$A80,1)-2)))","v":0},{"$f":"IF(ISERROR(FIND(P$3,'CFR - XML import'!$A80)),0,VALUE(MID('CFR - XML import'!$A80,SEARCH(\">\",'CFR - XML import'!$A80,1)+1,SEARCH(\"/\",'CFR - XML import'!$A80,1)-SEARCH(\">\",'CFR - XML import'!$A80,1)-2)))","v":0},{"$f":"IF(ISERROR(FIND(Q$3,'CFR - XML import'!$A80)),0,VALUE(MID('CFR - XML import'!$A80,SEARCH(\">\",'CFR - XML import'!$A80,1)+1,SEARCH(\"/\",'CFR - XML import'!$A80,1)-SEARCH(\">\",'CFR - XML import'!$A80,1)-2)))","v":0},{"$f":"IF(ISERROR(FIND(R$3,'CFR - XML import'!$A80)),0,VALUE(MID('CFR - XML import'!$A80,SEARCH(\">\",'CFR - XML import'!$A80,1)+1,SEARCH(\"/\",'CFR - XML import'!$A80,1)-SEARCH(\">\",'CFR - XML import'!$A80,1)-2)))","v":0},{"$f":"IF(ISERROR(FIND(S$3,'CFR - XML import'!$A80)),0,VALUE(MID('CFR - XML import'!$A80,SEARCH(\">\",'CFR - XML import'!$A80,1)+1,SEARCH(\"/\",'CFR - XML import'!$A80,1)-SEARCH(\">\",'CFR - XML import'!$A80,1)-2)))","v":0},{"$f":"IF(ISERROR(FIND(T$3,'CFR - XML import'!$A80)),0,VALUE(MID('CFR - XML import'!$A80,SEARCH(\">\",'CFR - XML import'!$A80,1)+1,SEARCH(\"/\",'CFR - XML import'!$A80,1)-SEARCH(\">\",'CFR - XML import'!$A80,1)-2)))","v":0},{"$f":"IF(ISERROR(FIND(U$3,'CFR - XML import'!$A80)),0,VALUE(MID('CFR - XML import'!$A80,SEARCH(\">\",'CFR - XML import'!$A80,1)+1,SEARCH(\"/\",'CFR - XML import'!$A80,1)-SEARCH(\">\",'CFR - XML import'!$A80,1)-2)))","v":0},{"$f":"IF(ISERROR(FIND(V$3,'CFR - XML import'!$A80)),0,VALUE(MID('CFR - XML import'!$A80,SEARCH(\">\",'CFR - XML import'!$A80,1)+1,SEARCH(\"/\",'CFR - XML import'!$A80,1)-SEARCH(\">\",'CFR - XML import'!$A80,1)-2)))","v":0},{"$f":"IF(ISERROR(FIND(W$3,'CFR - XML import'!$A80)),0,VALUE(MID('CFR - XML import'!$A80,SEARCH(\">\",'CFR - XML import'!$A80,1)+1,SEARCH(\"/\",'CFR - XML import'!$A80,1)-SEARCH(\">\",'CFR - XML import'!$A80,1)-2)))","v":0},null,{"$f":"IF(ISERROR(FIND(Y$3,'CFR - XML import'!$A80)),0,VALUE(MID('CFR - XML import'!$A80,SEARCH(\">\",'CFR - XML import'!$A80,1)+1,SEARCH(\"/\",'CFR - XML import'!$A80,1)-SEARCH(\">\",'CFR - XML import'!$A80,1)-2)))","v":0},{"$f":"IF(ISERROR(FIND(Z$3,'CFR - XML import'!$A80)),0,VALUE(MID('CFR - XML import'!$A80,SEARCH(\">\",'CFR - XML import'!$A80,1)+1,SEARCH(\"/\",'CFR - XML import'!$A80,1)-SEARCH(\">\",'CFR - XML import'!$A80,1)-2)))","v":0},{"$f":"IF(ISERROR(FIND(AA$3,'CFR - XML import'!$A80)),0,VALUE(MID('CFR - XML import'!$A80,SEARCH(\">\",'CFR - XML import'!$A80,1)+1,SEARCH(\"/\",'CFR - XML import'!$A80,1)-SEARCH(\">\",'CFR - XML import'!$A80,1)-2)))","v":0},{"$f":"IF(ISERROR(FIND(AB$3,'CFR - XML import'!$A80)),0,VALUE(MID('CFR - XML import'!$A80,SEARCH(\">\",'CFR - XML import'!$A80,1)+1,SEARCH(\"/\",'CFR - XML import'!$A80,1)-SEARCH(\">\",'CFR - XML import'!$A80,1)-2)))","v":0},{"$f":"IF(ISERROR(FIND(AC$3,'CFR - XML import'!$A80)),0,VALUE(MID('CFR - XML import'!$A80,SEARCH(\">\",'CFR - XML import'!$A80,1)+1,SEARCH(\"/\",'CFR - XML import'!$A80,1)-SEARCH(\">\",'CFR - XML import'!$A80,1)-2)))","v":0},{"$f":"IF(ISERROR(FIND(AD$3,'CFR - XML import'!$A80)),0,VALUE(MID('CFR - XML import'!$A80,SEARCH(\">\",'CFR - XML import'!$A80,1)+1,SEARCH(\"/\",'CFR - XML import'!$A80,1)-SEARCH(\">\",'CFR - XML import'!$A80,1)-2)))","v":0},{"$f":"IF(ISERROR(FIND(AE$3,'CFR - XML import'!$A80)),0,VALUE(MID('CFR - XML import'!$A80,SEARCH(\">\",'CFR - XML import'!$A80,1)+1,SEARCH(\"/\",'CFR - XML import'!$A80,1)-SEARCH(\">\",'CFR - XML import'!$A80,1)-2)))","v":0},{"$f":"IF(ISERROR(FIND(AF$3,'CFR - XML import'!$A80)),0,VALUE(MID('CFR - XML import'!$A80,SEARCH(\">\",'CFR - XML import'!$A80,1)+1,SEARCH(\"/\",'CFR - XML import'!$A80,1)-SEARCH(\">\",'CFR - XML import'!$A80,1)-2)))","v":0},{"$f":"IF(ISERROR(FIND(AG$3,'CFR - XML import'!$A80)),0,VALUE(MID('CFR - XML import'!$A80,SEARCH(\">\",'CFR - XML import'!$A80,1)+1,SEARCH(\"/\",'CFR - XML import'!$A80,1)-SEARCH(\">\",'CFR - XML import'!$A80,1)-2)))","v":0},{"$f":"IF(ISERROR(FIND(AH$3,'CFR - XML import'!$A80)),0,VALUE(MID('CFR - XML import'!$A80,SEARCH(\">\",'CFR - XML import'!$A80,1)+1,SEARCH(\"/\",'CFR - XML import'!$A80,1)-SEARCH(\">\",'CFR - XML import'!$A80,1)-2)))","v":0},{"$f":"IF(ISERROR(FIND(AI$3,'CFR - XML import'!$A80)),0,VALUE(MID('CFR - XML import'!$A80,SEARCH(\">\",'CFR - XML import'!$A80,1)+1,SEARCH(\"/\",'CFR - XML import'!$A80,1)-SEARCH(\">\",'CFR - XML import'!$A80,1)-2)))","v":0},{"$f":"IF(ISERROR(FIND(AJ$3,'CFR - XML import'!$A80)),0,VALUE(MID('CFR - XML import'!$A80,SEARCH(\">\",'CFR - XML import'!$A80,1)+1,SEARCH(\"/\",'CFR - XML import'!$A80,1)-SEARCH(\">\",'CFR - XML import'!$A80,1)-2)))","v":0},{"$f":"IF(ISERROR(FIND(AK$3,'CFR - XML import'!$A80)),0,VALUE(MID('CFR - XML import'!$A80,SEARCH(\">\",'CFR - XML import'!$A80,1)+1,SEARCH(\"/\",'CFR - XML import'!$A80,1)-SEARCH(\">\",'CFR - XML import'!$A80,1)-2)))","v":0},{"$f":"IF(ISERROR(FIND(AL$3,'CFR - XML import'!$A80)),0,VALUE(MID('CFR - XML import'!$A80,SEARCH(\">\",'CFR - XML import'!$A80,1)+1,SEARCH(\"/\",'CFR - XML import'!$A80,1)-SEARCH(\">\",'CFR - XML import'!$A80,1)-2)))","v":0},{"$f":"IF(ISERROR(FIND(AM$3,'CFR - XML import'!$A80)),0,VALUE(MID('CFR - XML import'!$A80,SEARCH(\">\",'CFR - XML import'!$A80,1)+1,SEARCH(\"/\",'CFR - XML import'!$A80,1)-SEARCH(\">\",'CFR - XML import'!$A80,1)-2)))","v":0},{"$f":"IF(ISERROR(FIND(AN$3,'CFR - XML import'!$A80)),0,VALUE(MID('CFR - XML import'!$A80,SEARCH(\">\",'CFR - XML import'!$A80,1)+1,SEARCH(\"/\",'CFR - XML import'!$A80,1)-SEARCH(\">\",'CFR - XML import'!$A80,1)-2)))","v":0},{"$f":"IF(ISERROR(FIND(AO$3,'CFR - XML import'!$A80)),0,VALUE(MID('CFR - XML import'!$A80,SEARCH(\">\",'CFR - XML import'!$A80,1)+1,SEARCH(\"/\",'CFR - XML import'!$A80,1)-SEARCH(\">\",'CFR - XML import'!$A80,1)-2)))","v":0},{"$f":"IF(ISERROR(FIND(AP$3,'CFR - XML import'!$A80)),0,VALUE(MID('CFR - XML import'!$A80,SEARCH(\">\",'CFR - XML import'!$A80,1)+1,SEARCH(\"/\",'CFR - XML import'!$A80,1)-SEARCH(\">\",'CFR - XML import'!$A80,1)-2)))","v":0},{"$f":"IF(ISERROR(FIND(AQ$3,'CFR - XML import'!$A80)),0,VALUE(MID('CFR - XML import'!$A80,SEARCH(\">\",'CFR - XML import'!$A80,1)+1,SEARCH(\"/\",'CFR - XML import'!$A80,1)-SEARCH(\">\",'CFR - XML import'!$A80,1)-2)))","v":0},{"$f":"IF(ISERROR(FIND(AR$3,'CFR - XML import'!$A80)),0,VALUE(MID('CFR - XML import'!$A80,SEARCH(\">\",'CFR - XML import'!$A80,1)+1,SEARCH(\"/\",'CFR - XML import'!$A80,1)-SEARCH(\">\",'CFR - XML import'!$A80,1)-2)))","v":0},{"$f":"IF(ISERROR(FIND(AS$3,'CFR - XML import'!$A80)),0,VALUE(MID('CFR - XML import'!$A80,SEARCH(\">\",'CFR - XML import'!$A80,1)+1,SEARCH(\"/\",'CFR - XML import'!$A80,1)-SEARCH(\">\",'CFR - XML import'!$A80,1)-2)))","v":0},{"$f":"IF(ISERROR(FIND(AT$3,'CFR - XML import'!$A80)),0,VALUE(MID('CFR - XML import'!$A80,SEARCH(\">\",'CFR - XML import'!$A80,1)+1,SEARCH(\"/\",'CFR - XML import'!$A80,1)-SEARCH(\">\",'CFR - XML import'!$A80,1)-2)))","v":0},{"$f":"IF(ISERROR(FIND(AU$3,'CFR - XML import'!$A80)),0,VALUE(MID('CFR - XML import'!$A80,SEARCH(\">\",'CFR - XML import'!$A80,1)+1,SEARCH(\"/\",'CFR - XML import'!$A80,1)-SEARCH(\">\",'CFR - XML import'!$A80,1)-2)))","v":0},{"$f":"IF(ISERROR(FIND(AV$3,'CFR - XML import'!$A80)),0,VALUE(MID('CFR - XML import'!$A80,SEARCH(\">\",'CFR - XML import'!$A80,1)+1,SEARCH(\"/\",'CFR - XML import'!$A80,1)-SEARCH(\">\",'CFR - XML import'!$A80,1)-2)))","v":0},{"$f":"IF(ISERROR(FIND(AW$3,'CFR - XML import'!$A80)),0,VALUE(MID('CFR - XML import'!$A80,SEARCH(\">\",'CFR - XML import'!$A80,1)+1,SEARCH(\"/\",'CFR - XML import'!$A80,1)-SEARCH(\">\",'CFR - XML import'!$A80,1)-2)))","v":0},{"$f":"IF(ISERROR(FIND(AX$3,'CFR - XML import'!$A80)),0,VALUE(MID('CFR - XML import'!$A80,SEARCH(\">\",'CFR - XML import'!$A80,1)+1,SEARCH(\"/\",'CFR - XML import'!$A80,1)-SEARCH(\">\",'CFR - XML import'!$A80,1)-2)))","v":0},{"$f":"IF(ISERROR(FIND(AY$3,'CFR - XML import'!$A80)),0,VALUE(MID('CFR - XML import'!$A80,SEARCH(\">\",'CFR - XML import'!$A80,1)+1,SEARCH(\"/\",'CFR - XML import'!$A80,1)-SEARCH(\">\",'CFR - XML import'!$A80,1)-2)))","v":0},{"$f":"IF(ISERROR(FIND(AZ$3,'CFR - XML import'!$A80)),0,VALUE(MID('CFR - XML import'!$A80,SEARCH(\">\",'CFR - XML import'!$A80,1)+1,SEARCH(\"/\",'CFR - XML import'!$A80,1)-SEARCH(\">\",'CFR - XML import'!$A80,1)-2)))","v":0},{"$f":"IF(ISERROR(FIND(BA$3,'CFR - XML import'!$A80)),0,VALUE(MID('CFR - XML import'!$A80,SEARCH(\">\",'CFR - XML import'!$A80,1)+1,SEARCH(\"/\",'CFR - XML import'!$A80,1)-SEARCH(\">\",'CFR - XML import'!$A80,1)-2)))","v":0},{"$f":"IF(ISERROR(FIND(BB$3,'CFR - XML import'!$A80)),0,VALUE(MID('CFR - XML import'!$A80,SEARCH(\">\",'CFR - XML import'!$A80,1)+1,SEARCH(\"/\",'CFR - XML import'!$A80,1)-SEARCH(\">\",'CFR - XML import'!$A80,1)-2)))","v":0},{"$f":"IF(ISERROR(FIND(BC$3,'CFR - XML import'!$A80)),0,VALUE(MID('CFR - XML import'!$A80,SEARCH(\">\",'CFR - XML import'!$A80,1)+1,SEARCH(\"/\",'CFR - XML import'!$A80,1)-SEARCH(\">\",'CFR - XML import'!$A80,1)-2)))","v":0},{"$f":"IF(ISERROR(FIND(BD$3,'CFR - XML import'!$A80)),0,VALUE(MID('CFR - XML import'!$A80,SEARCH(\">\",'CFR - XML import'!$A80,1)+1,SEARCH(\"/\",'CFR - XML import'!$A80,1)-SEARCH(\">\",'CFR - XML import'!$A80,1)-2)))","v":0},{"$f":"IF(ISERROR(FIND(BE$3,'CFR - XML import'!$A80)),0,VALUE(MID('CFR - XML import'!$A80,SEARCH(\">\",'CFR - XML import'!$A80,1)+1,SEARCH(\"/\",'CFR - XML import'!$A80,1)-SEARCH(\">\",'CFR - XML import'!$A80,1)-2)))","v":0},{"$f":"IF(ISERROR(FIND(BF$3,'CFR - XML import'!$A80)),0,VALUE(MID('CFR - XML import'!$A80,SEARCH(\">\",'CFR - XML import'!$A80,1)+1,SEARCH(\"/\",'CFR - XML import'!$A80,1)-SEARCH(\">\",'CFR - XML import'!$A80,1)-2)))","v":0},{"$f":"IF(ISERROR(FIND(BG$3,'CFR - XML import'!$A80)),0,VALUE(MID('CFR - XML import'!$A80,SEARCH(\">\",'CFR - XML import'!$A80,1)+1,SEARCH(\"/\",'CFR - XML import'!$A80,1)-SEARCH(\">\",'CFR - XML import'!$A80,1)-2)))","v":0},{"$f":"IF(ISERROR(FIND(BH$3,'CFR - XML import'!$A80)),0,VALUE(MID('CFR - XML import'!$A80,SEARCH(\">\",'CFR - XML import'!$A80,1)+1,SEARCH(\"/\",'CFR - XML import'!$A80,1)-SEARCH(\">\",'CFR - XML import'!$A80,1)-2)))","v":0},{"$f":"IF(ISERROR(FIND(BI$3,'CFR - XML import'!$A80)),0,VALUE(MID('CFR - XML import'!$A80,SEARCH(\">\",'CFR - XML import'!$A80,1)+1,SEARCH(\"/\",'CFR - XML import'!$A80,1)-SEARCH(\">\",'CFR - XML import'!$A80,1)-2)))","v":0},{"$f":"IF(ISERROR(FIND(BJ$3,'CFR - XML import'!$A80)),0,VALUE(MID('CFR - XML import'!$A80,SEARCH(\">\",'CFR - XML import'!$A80,1)+1,SEARCH(\"/\",'CFR - XML import'!$A80,1)-SEARCH(\">\",'CFR - XML import'!$A80,1)-2)))","v":0},{"$f":"IF(ISERROR(FIND(BK$3,'CFR - XML import'!$A80)),0,VALUE(MID('CFR - XML import'!$A80,SEARCH(\">\",'CFR - XML import'!$A80,1)+1,SEARCH(\"/\",'CFR - XML import'!$A80,1)-SEARCH(\">\",'CFR - XML import'!$A80,1)-2)))","v":0},{"$f":"IF(ISERROR(FIND(BL$3,'CFR - XML import'!$A80)),0,VALUE(MID('CFR - XML import'!$A80,SEARCH(\">\",'CFR - XML import'!$A80,1)+1,SEARCH(\"/\",'CFR - XML import'!$A80,1)-SEARCH(\">\",'CFR - XML import'!$A80,1)-2)))","v":0},{"$f":"IF(ISERROR(FIND(BM$3,'CFR - XML import'!$A80)),0,VALUE(MID('CFR - XML import'!$A80,SEARCH(\">\",'CFR - XML import'!$A80,1)+1,SEARCH(\"/\",'CFR - XML import'!$A80,1)-SEARCH(\">\",'CFR - XML import'!$A80,1)-2)))","v":0},{"$f":"IF(ISERROR(FIND(BN$3,'CFR - XML import'!$A80)),0,VALUE(MID('CFR - XML import'!$A80,SEARCH(\">\",'CFR - XML import'!$A80,1)+1,SEARCH(\"/\",'CFR - XML import'!$A80,1)-SEARCH(\">\",'CFR - XML import'!$A80,1)-2)))","v":0},{"$f":"IF(ISERROR(FIND(BO$3,'CFR - XML import'!$A80)),0,VALUE(MID('CFR - XML import'!$A80,SEARCH(\">\",'CFR - XML import'!$A80,1)+1,SEARCH(\"/\",'CFR - XML import'!$A80,1)-SEARCH(\">\",'CFR - XML import'!$A80,1)-2)))","v":0},{"$f":"IF(ISERROR(FIND(BP$3,'CFR - XML import'!$A80)),0,VALUE(MID('CFR - XML import'!$A80,SEARCH(\">\",'CFR - XML import'!$A80,1)+1,SEARCH(\"/\",'CFR - XML import'!$A80,1)-SEARCH(\">\",'CFR - XML import'!$A80,1)-2)))","v":0},{"$f":"IF(ISERROR(FIND(BQ$3,'CFR - XML import'!$A80)),0,VALUE(MID('CFR - XML import'!$A80,SEARCH(\">\",'CFR - XML import'!$A80,1)+1,SEARCH(\"/\",'CFR - XML import'!$A80,1)-SEARCH(\">\",'CFR - XML import'!$A80,1)-2)))","v":0},{"$f":"IF(ISERROR(FIND(BR$3,'CFR - XML import'!$A80)),0,VALUE(MID('CFR - XML import'!$A80,SEARCH(\">\",'CFR - XML import'!$A80,1)+1,SEARCH(\"/\",'CFR - XML import'!$A80,1)-SEARCH(\">\",'CFR - XML import'!$A80,1)-2)))","v":0},{"$f":"IF(ISERROR(FIND(BS$3,'CFR - XML import'!$A80)),0,VALUE(MID('CFR - XML import'!$A80,SEARCH(\">\",'CFR - XML import'!$A80,1)+1,SEARCH(\"/\",'CFR - XML import'!$A80,1)-SEARCH(\">\",'CFR - XML import'!$A80,1)-2)))","v":0},{"$f":"IF(ISERROR(FIND(BT$3,'CFR - XML import'!$A80)),0,VALUE(MID('CFR - XML import'!$A80,SEARCH(\">\",'CFR - XML import'!$A80,1)+1,SEARCH(\"/\",'CFR - XML import'!$A80,1)-SEARCH(\">\",'CFR - XML import'!$A80,1)-2)))","v":0},{"$f":"IF(ISERROR(FIND(BU$3,'CFR - XML import'!$A80)),0,VALUE(MID('CFR - XML import'!$A80,SEARCH(\">\",'CFR - XML import'!$A80,1)+1,SEARCH(\"/\",'CFR - XML import'!$A80,1)-SEARCH(\">\",'CFR - XML import'!$A80,1)-2)))","v":0},{"$f":"IF(ISERROR(FIND(BV$3,'CFR - XML import'!$A80)),0,VALUE(MID('CFR - XML import'!$A80,SEARCH(\">\",'CFR - XML import'!$A80,1)+1,SEARCH(\"/\",'CFR - XML import'!$A80,1)-SEARCH(\">\",'CFR - XML import'!$A80,1)-2)))","v":0},{"$f":"IF(ISERROR(FIND(BW$3,'CFR - XML import'!$A80)),0,VALUE(MID('CFR - XML import'!$A80,SEARCH(\">\",'CFR - XML import'!$A80,1)+1,SEARCH(\"/\",'CFR - XML import'!$A80,1)-SEARCH(\">\",'CFR - XML import'!$A80,1)-2)))","v":0},{"$f":"IF(ISERROR(FIND(BX$3,'CFR - XML import'!$A80)),0,VALUE(MID('CFR - XML import'!$A80,SEARCH(\">\",'CFR - XML import'!$A80,1)+1,SEARCH(\"/\",'CFR - XML import'!$A80,1)-SEARCH(\">\",'CFR - XML import'!$A80,1)-2)))","v":0},{"$f":"IF(ISERROR(FIND(BY$3,'CFR - XML import'!$A80)),0,VALUE(MID('CFR - XML import'!$A80,SEARCH(\">\",'CFR - XML import'!$A80,1)+1,SEARCH(\"/\",'CFR - XML import'!$A80,1)-SEARCH(\">\",'CFR - XML import'!$A80,1)-2)))","v":0},{"$f":"IF(ISERROR(FIND(BZ$3,'CFR - XML import'!$A80)),0,VALUE(MID('CFR - XML import'!$A80,SEARCH(\">\",'CFR - XML import'!$A80,1)+1,SEARCH(\"/\",'CFR - XML import'!$A80,1)-SEARCH(\">\",'CFR - XML import'!$A80,1)-2)))","v":0},null,null,null,null,null,null,{"$f":"IF(ISERROR(IF(MID('CFR - XML import'!$A80,LEN($CF$4)+1,LEN('CFR - XML import'!$A80)-(2*LEN($CF$4)+1))=\"RMMS\",1,IF(MID('CFR - XML import'!$A80,LEN(\"    <InputSystem>\")+1,LEN('CFR - XML import'!$A80)-(LEN(\"    <InputSystem>\")+LEN($CF$4)+1))=\"SIMS\",2,0))),0,IF(MID('CFR - XML import'!$A80,LEN($CF$4)+1,LEN('CFR - XML import'!$A80)-(2*LEN($CF$4)+1))=\"RMMS\",1,IF(MID('CFR - XML import'!$A80,LEN(\"    <InputSystem>\")+1,LEN('CFR - XML import'!$A80)-(LEN(\"    <InputSystem>\")+LEN($CF$4)+1))=\"SIMS\",2,0)))","v":0},{"$f":"IF(ISERROR(FIND(CH$3,'CFR - XML import'!$A80)),0,MID('CFR - XML import'!$A80,SEARCH(\">\",'CFR - XML import'!$A80,1)+1,SEARCH(\"/\",'CFR - XML import'!$A80,1)-SEARCH(\">\",'CFR - XML import'!$A80,1)-2))","v":0},{"$f":"IF(ISERROR(FIND(CI$3,'CFR - XML import'!$A80)),0,MID('CFR - XML import'!$A80,SEARCH(\">\",'CFR - XML import'!$A80,1)+1,SEARCH(\"/\",'CFR - XML import'!$A80,1)-SEARCH(\">\",'CFR - XML import'!$A80,1)-2))","v":0},{"$f":"IF(ISERROR(FIND(CJ$3,'CFR - XML import'!$A80)),0,MID('CFR - XML import'!$A80,SEARCH(\">\",'CFR - XML import'!$A80,1)+1,SEARCH(\"/\",'CFR - XML import'!$A80,1)-SEARCH(\">\",'CFR - XML import'!$A80,1)-2))","v":0},{"$f":"IF(ISERROR(FIND(CK$3,'CFR - XML import'!$A80)),0,MID('CFR - XML import'!$A80,SEARCH(\">\",'CFR - XML import'!$A80,1)+1,SEARCH(\"/\",'CFR - XML import'!$A80,1)-SEARCH(\">\",'CFR - XML import'!$A80,1)-2))","v":0},{"$f":"IF(ISERROR(FIND(CL$3,'CFR - XML import'!$A80)),0,MID('CFR - XML import'!$A80,SEARCH(\">\",'CFR - XML import'!$A80,1)+1,SEARCH(\"/\",'CFR - XML import'!$A80,1)-SEARCH(\">\",'CFR - XML import'!$A80,1)-2))","v":0}]
[{"$f":"IF(AND('CFR - XML import'!A81<>\"\",LEFT('CFR - XML import'!A81,1)<>\"<\",LEFT('CFR - XML import'!A81,3)<>\"  <\",LEFT('CFR - XML import'!A81,5)<>\"    <\",LEFT('CFR - XML import'!A81,7)<>\"      <\",LEFT('CFR - XML import'!A81,9)<>\"        <\",$B$1=\"SIMS\"),'CFR - XML import'!A81,IF(AND(LEFT('CFR - XML import'!A81,9)=\"<Details>\",$B$1=\"RM\"),'CFR - XML import'!A81,\"\"))","v":""},{"$f":"IF(ISERROR(FIND(B$3,'CFR - XML import'!$A81)),0,VALUE(MID('CFR - XML import'!$A81,SEARCH(\">\",'CFR - XML import'!$A81,1)+1,SEARCH(\"/\",'CFR - XML import'!$A81,1)-SEARCH(\">\",'CFR - XML import'!$A81,1)-2)))","v":0},null,{"$f":"IF(ISERROR(FIND(D$3,'CFR - XML import'!$A81)),0,MID('CFR - XML import'!$A81,SEARCH(\">\",'CFR - XML import'!$A81,1)+1,SEARCH(\"/\",'CFR - XML import'!$A81,1)-SEARCH(\">\",'CFR - XML import'!$A81,1)-2))","v":0},{"$f":"IF(ISERROR(FIND(E$3,'CFR - XML import'!$A81)),0,MID('CFR - XML import'!$A81,SEARCH(\">\",'CFR - XML import'!$A81,1)+1,SEARCH(\"/\",'CFR - XML import'!$A81,1)-SEARCH(\">\",'CFR - XML import'!$A81,1)-2))","v":0},{"$f":"IF($B$1=\"SIMS\",IF(ISERROR(FIND(F$3,'CFR - XML import'!$A81)),0,VALUE(MID('CFR - XML import'!$A81,15,10))),IF(ISERROR(FIND(F$3,'CFR - XML import'!$A81)),0,VALUE(MID('CFR - XML import'!$A81,11,10))))","v":"00:00:00"},{"$f":"IF(ISERROR(FIND(G$3,'CFR - XML import'!$A81)),0,VALUE(MID('CFR - XML import'!$A81,SEARCH(\">\",'CFR - XML import'!$A81,1)+1,SEARCH(\"/\",'CFR - XML import'!$A81,1)-SEARCH(\">\",'CFR - XML import'!$A81,1)-2)))","v":0},{"$f":"IF(ISERROR(FIND(H$3,'CFR - XML import'!$A81)),0,VALUE(MID('CFR - XML import'!$A81,SEARCH(\">\",'CFR - XML import'!$A81,1)+1,SEARCH(\"/\",'CFR - XML import'!$A81,1)-SEARCH(\">\",'CFR - XML import'!$A81,1)-2)))","v":0},{"$f":"IF(ISERROR(FIND(I$3,'CFR - XML import'!$A81)),0,VALUE(MID('CFR - XML import'!$A81,SEARCH(\">\",'CFR - XML import'!$A81,1)+1,SEARCH(\"/\",'CFR - XML import'!$A81,1)-SEARCH(\">\",'CFR - XML import'!$A81,1)-2)))","v":0},{"$f":"IF(ISERROR(FIND(J$3,'CFR - XML import'!$A81)),0,VALUE(MID('CFR - XML import'!$A81,SEARCH(\">\",'CFR - XML import'!$A81,1)+1,SEARCH(\"/\",'CFR - XML import'!$A81,1)-SEARCH(\">\",'CFR - XML import'!$A81,1)-2)))","v":0},{"$f":"IF(ISERROR(FIND(K$3,'CFR - XML import'!$A81)),0,VALUE(MID('CFR - XML import'!$A81,SEARCH(\">\",'CFR - XML import'!$A81,1)+1,SEARCH(\"/\",'CFR - XML import'!$A81,1)-SEARCH(\">\",'CFR - XML import'!$A81,1)-2)))","v":0},{"$f":"IF(ISERROR(FIND(L$3,'CFR - XML import'!$A81)),0,VALUE(MID('CFR - XML import'!$A81,SEARCH(\">\",'CFR - XML import'!$A81,1)+1,SEARCH(\"/\",'CFR - XML import'!$A81,1)-SEARCH(\">\",'CFR - XML import'!$A81,1)-2)))","v":0},{"$f":"IF(ISERROR(FIND(M$3,'CFR - XML import'!$A81)),0,VALUE(MID('CFR - XML import'!$A81,SEARCH(\">\",'CFR - XML import'!$A81,1)+1,SEARCH(\"/\",'CFR - XML import'!$A81,1)-SEARCH(\">\",'CFR - XML import'!$A81,1)-2)))","v":0},{"$f":"IF(ISERROR(FIND(N$3,'CFR - XML import'!$A81)),0,VALUE(MID('CFR - XML import'!$A81,SEARCH(\">\",'CFR - XML import'!$A81,1)+1,SEARCH(\"/\",'CFR - XML import'!$A81,1)-SEARCH(\">\",'CFR - XML import'!$A81,1)-2)))","v":0},{"$f":"IF(ISERROR(FIND(O$3,'CFR - XML import'!$A81)),0,VALUE(MID('CFR - XML import'!$A81,SEARCH(\">\",'CFR - XML import'!$A81,1)+1,SEARCH(\"/\",'CFR - XML import'!$A81,1)-SEARCH(\">\",'CFR - XML import'!$A81,1)-2)))","v":0},{"$f":"IF(ISERROR(FIND(P$3,'CFR - XML import'!$A81)),0,VALUE(MID('CFR - XML import'!$A81,SEARCH(\">\",'CFR - XML import'!$A81,1)+1,SEARCH(\"/\",'CFR - XML import'!$A81,1)-SEARCH(\">\",'CFR - XML import'!$A81,1)-2)))","v":0},{"$f":"IF(ISERROR(FIND(Q$3,'CFR - XML import'!$A81)),0,VALUE(MID('CFR - XML import'!$A81,SEARCH(\">\",'CFR - XML import'!$A81,1)+1,SEARCH(\"/\",'CFR - XML import'!$A81,1)-SEARCH(\">\",'CFR - XML import'!$A81,1)-2)))","v":0},{"$f":"IF(ISERROR(FIND(R$3,'CFR - XML import'!$A81)),0,VALUE(MID('CFR - XML import'!$A81,SEARCH(\">\",'CFR - XML import'!$A81,1)+1,SEARCH(\"/\",'CFR - XML import'!$A81,1)-SEARCH(\">\",'CFR - XML import'!$A81,1)-2)))","v":0},{"$f":"IF(ISERROR(FIND(S$3,'CFR - XML import'!$A81)),0,VALUE(MID('CFR - XML import'!$A81,SEARCH(\">\",'CFR - XML import'!$A81,1)+1,SEARCH(\"/\",'CFR - XML import'!$A81,1)-SEARCH(\">\",'CFR - XML import'!$A81,1)-2)))","v":0},{"$f":"IF(ISERROR(FIND(T$3,'CFR - XML import'!$A81)),0,VALUE(MID('CFR - XML import'!$A81,SEARCH(\">\",'CFR - XML import'!$A81,1)+1,SEARCH(\"/\",'CFR - XML import'!$A81,1)-SEARCH(\">\",'CFR - XML import'!$A81,1)-2)))","v":0},{"$f":"IF(ISERROR(FIND(U$3,'CFR - XML import'!$A81)),0,VALUE(MID('CFR - XML import'!$A81,SEARCH(\">\",'CFR - XML import'!$A81,1)+1,SEARCH(\"/\",'CFR - XML import'!$A81,1)-SEARCH(\">\",'CFR - XML import'!$A81,1)-2)))","v":0},{"$f":"IF(ISERROR(FIND(V$3,'CFR - XML import'!$A81)),0,VALUE(MID('CFR - XML import'!$A81,SEARCH(\">\",'CFR - XML import'!$A81,1)+1,SEARCH(\"/\",'CFR - XML import'!$A81,1)-SEARCH(\">\",'CFR - XML import'!$A81,1)-2)))","v":0},{"$f":"IF(ISERROR(FIND(W$3,'CFR - XML import'!$A81)),0,VALUE(MID('CFR - XML import'!$A81,SEARCH(\">\",'CFR - XML import'!$A81,1)+1,SEARCH(\"/\",'CFR - XML import'!$A81,1)-SEARCH(\">\",'CFR - XML import'!$A81,1)-2)))","v":0},null,{"$f":"IF(ISERROR(FIND(Y$3,'CFR - XML import'!$A81)),0,VALUE(MID('CFR - XML import'!$A81,SEARCH(\">\",'CFR - XML import'!$A81,1)+1,SEARCH(\"/\",'CFR - XML import'!$A81,1)-SEARCH(\">\",'CFR - XML import'!$A81,1)-2)))","v":0},{"$f":"IF(ISERROR(FIND(Z$3,'CFR - XML import'!$A81)),0,VALUE(MID('CFR - XML import'!$A81,SEARCH(\">\",'CFR - XML import'!$A81,1)+1,SEARCH(\"/\",'CFR - XML import'!$A81,1)-SEARCH(\">\",'CFR - XML import'!$A81,1)-2)))","v":0},{"$f":"IF(ISERROR(FIND(AA$3,'CFR - XML import'!$A81)),0,VALUE(MID('CFR - XML import'!$A81,SEARCH(\">\",'CFR - XML import'!$A81,1)+1,SEARCH(\"/\",'CFR - XML import'!$A81,1)-SEARCH(\">\",'CFR - XML import'!$A81,1)-2)))","v":0},{"$f":"IF(ISERROR(FIND(AB$3,'CFR - XML import'!$A81)),0,VALUE(MID('CFR - XML import'!$A81,SEARCH(\">\",'CFR - XML import'!$A81,1)+1,SEARCH(\"/\",'CFR - XML import'!$A81,1)-SEARCH(\">\",'CFR - XML import'!$A81,1)-2)))","v":0},{"$f":"IF(ISERROR(FIND(AC$3,'CFR - XML import'!$A81)),0,VALUE(MID('CFR - XML import'!$A81,SEARCH(\">\",'CFR - XML import'!$A81,1)+1,SEARCH(\"/\",'CFR - XML import'!$A81,1)-SEARCH(\">\",'CFR - XML import'!$A81,1)-2)))","v":0},{"$f":"IF(ISERROR(FIND(AD$3,'CFR - XML import'!$A81)),0,VALUE(MID('CFR - XML import'!$A81,SEARCH(\">\",'CFR - XML import'!$A81,1)+1,SEARCH(\"/\",'CFR - XML import'!$A81,1)-SEARCH(\">\",'CFR - XML import'!$A81,1)-2)))","v":0},{"$f":"IF(ISERROR(FIND(AE$3,'CFR - XML import'!$A81)),0,VALUE(MID('CFR - XML import'!$A81,SEARCH(\">\",'CFR - XML import'!$A81,1)+1,SEARCH(\"/\",'CFR - XML import'!$A81,1)-SEARCH(\">\",'CFR - XML import'!$A81,1)-2)))","v":0},{"$f":"IF(ISERROR(FIND(AF$3,'CFR - XML import'!$A81)),0,VALUE(MID('CFR - XML import'!$A81,SEARCH(\">\",'CFR - XML import'!$A81,1)+1,SEARCH(\"/\",'CFR - XML import'!$A81,1)-SEARCH(\">\",'CFR - XML import'!$A81,1)-2)))","v":0},{"$f":"IF(ISERROR(FIND(AG$3,'CFR - XML import'!$A81)),0,VALUE(MID('CFR - XML import'!$A81,SEARCH(\">\",'CFR - XML import'!$A81,1)+1,SEARCH(\"/\",'CFR - XML import'!$A81,1)-SEARCH(\">\",'CFR - XML import'!$A81,1)-2)))","v":0},{"$f":"IF(ISERROR(FIND(AH$3,'CFR - XML import'!$A81)),0,VALUE(MID('CFR - XML import'!$A81,SEARCH(\">\",'CFR - XML import'!$A81,1)+1,SEARCH(\"/\",'CFR - XML import'!$A81,1)-SEARCH(\">\",'CFR - XML import'!$A81,1)-2)))","v":0},{"$f":"IF(ISERROR(FIND(AI$3,'CFR - XML import'!$A81)),0,VALUE(MID('CFR - XML import'!$A81,SEARCH(\">\",'CFR - XML import'!$A81,1)+1,SEARCH(\"/\",'CFR - XML import'!$A81,1)-SEARCH(\">\",'CFR - XML import'!$A81,1)-2)))","v":0},{"$f":"IF(ISERROR(FIND(AJ$3,'CFR - XML import'!$A81)),0,VALUE(MID('CFR - XML import'!$A81,SEARCH(\">\",'CFR - XML import'!$A81,1)+1,SEARCH(\"/\",'CFR - XML import'!$A81,1)-SEARCH(\">\",'CFR - XML import'!$A81,1)-2)))","v":0},{"$f":"IF(ISERROR(FIND(AK$3,'CFR - XML import'!$A81)),0,VALUE(MID('CFR - XML import'!$A81,SEARCH(\">\",'CFR - XML import'!$A81,1)+1,SEARCH(\"/\",'CFR - XML import'!$A81,1)-SEARCH(\">\",'CFR - XML import'!$A81,1)-2)))","v":0},{"$f":"IF(ISERROR(FIND(AL$3,'CFR - XML import'!$A81)),0,VALUE(MID('CFR - XML import'!$A81,SEARCH(\">\",'CFR - XML import'!$A81,1)+1,SEARCH(\"/\",'CFR - XML import'!$A81,1)-SEARCH(\">\",'CFR - XML import'!$A81,1)-2)))","v":0},{"$f":"IF(ISERROR(FIND(AM$3,'CFR - XML import'!$A81)),0,VALUE(MID('CFR - XML import'!$A81,SEARCH(\">\",'CFR - XML import'!$A81,1)+1,SEARCH(\"/\",'CFR - XML import'!$A81,1)-SEARCH(\">\",'CFR - XML import'!$A81,1)-2)))","v":0},{"$f":"IF(ISERROR(FIND(AN$3,'CFR - XML import'!$A81)),0,VALUE(MID('CFR - XML import'!$A81,SEARCH(\">\",'CFR - XML import'!$A81,1)+1,SEARCH(\"/\",'CFR - XML import'!$A81,1)-SEARCH(\">\",'CFR - XML import'!$A81,1)-2)))","v":0},{"$f":"IF(ISERROR(FIND(AO$3,'CFR - XML import'!$A81)),0,VALUE(MID('CFR - XML import'!$A81,SEARCH(\">\",'CFR - XML import'!$A81,1)+1,SEARCH(\"/\",'CFR - XML import'!$A81,1)-SEARCH(\">\",'CFR - XML import'!$A81,1)-2)))","v":0},{"$f":"IF(ISERROR(FIND(AP$3,'CFR - XML import'!$A81)),0,VALUE(MID('CFR - XML import'!$A81,SEARCH(\">\",'CFR - XML import'!$A81,1)+1,SEARCH(\"/\",'CFR - XML import'!$A81,1)-SEARCH(\">\",'CFR - XML import'!$A81,1)-2)))","v":0},{"$f":"IF(ISERROR(FIND(AQ$3,'CFR - XML import'!$A81)),0,VALUE(MID('CFR - XML import'!$A81,SEARCH(\">\",'CFR - XML import'!$A81,1)+1,SEARCH(\"/\",'CFR - XML import'!$A81,1)-SEARCH(\">\",'CFR - XML import'!$A81,1)-2)))","v":0},{"$f":"IF(ISERROR(FIND(AR$3,'CFR - XML import'!$A81)),0,VALUE(MID('CFR - XML import'!$A81,SEARCH(\">\",'CFR - XML import'!$A81,1)+1,SEARCH(\"/\",'CFR - XML import'!$A81,1)-SEARCH(\">\",'CFR - XML import'!$A81,1)-2)))","v":0},{"$f":"IF(ISERROR(FIND(AS$3,'CFR - XML import'!$A81)),0,VALUE(MID('CFR - XML import'!$A81,SEARCH(\">\",'CFR - XML import'!$A81,1)+1,SEARCH(\"/\",'CFR - XML import'!$A81,1)-SEARCH(\">\",'CFR - XML import'!$A81,1)-2)))","v":0},{"$f":"IF(ISERROR(FIND(AT$3,'CFR - XML import'!$A81)),0,VALUE(MID('CFR - XML import'!$A81,SEARCH(\">\",'CFR - XML import'!$A81,1)+1,SEARCH(\"/\",'CFR - XML import'!$A81,1)-SEARCH(\">\",'CFR - XML import'!$A81,1)-2)))","v":0},{"$f":"IF(ISERROR(FIND(AU$3,'CFR - XML import'!$A81)),0,VALUE(MID('CFR - XML import'!$A81,SEARCH(\">\",'CFR - XML import'!$A81,1)+1,SEARCH(\"/\",'CFR - XML import'!$A81,1)-SEARCH(\">\",'CFR - XML import'!$A81,1)-2)))","v":0},{"$f":"IF(ISERROR(FIND(AV$3,'CFR - XML import'!$A81)),0,VALUE(MID('CFR - XML import'!$A81,SEARCH(\">\",'CFR - XML import'!$A81,1)+1,SEARCH(\"/\",'CFR - XML import'!$A81,1)-SEARCH(\">\",'CFR - XML import'!$A81,1)-2)))","v":0},{"$f":"IF(ISERROR(FIND(AW$3,'CFR - XML import'!$A81)),0,VALUE(MID('CFR - XML import'!$A81,SEARCH(\">\",'CFR - XML import'!$A81,1)+1,SEARCH(\"/\",'CFR - XML import'!$A81,1)-SEARCH(\">\",'CFR - XML import'!$A81,1)-2)))","v":0},{"$f":"IF(ISERROR(FIND(AX$3,'CFR - XML import'!$A81)),0,VALUE(MID('CFR - XML import'!$A81,SEARCH(\">\",'CFR - XML import'!$A81,1)+1,SEARCH(\"/\",'CFR - XML import'!$A81,1)-SEARCH(\">\",'CFR - XML import'!$A81,1)-2)))","v":0},{"$f":"IF(ISERROR(FIND(AY$3,'CFR - XML import'!$A81)),0,VALUE(MID('CFR - XML import'!$A81,SEARCH(\">\",'CFR - XML import'!$A81,1)+1,SEARCH(\"/\",'CFR - XML import'!$A81,1)-SEARCH(\">\",'CFR - XML import'!$A81,1)-2)))","v":0},{"$f":"IF(ISERROR(FIND(AZ$3,'CFR - XML import'!$A81)),0,VALUE(MID('CFR - XML import'!$A81,SEARCH(\">\",'CFR - XML import'!$A81,1)+1,SEARCH(\"/\",'CFR - XML import'!$A81,1)-SEARCH(\">\",'CFR - XML import'!$A81,1)-2)))","v":0},{"$f":"IF(ISERROR(FIND(BA$3,'CFR - XML import'!$A81)),0,VALUE(MID('CFR - XML import'!$A81,SEARCH(\">\",'CFR - XML import'!$A81,1)+1,SEARCH(\"/\",'CFR - XML import'!$A81,1)-SEARCH(\">\",'CFR - XML import'!$A81,1)-2)))","v":0},{"$f":"IF(ISERROR(FIND(BB$3,'CFR - XML import'!$A81)),0,VALUE(MID('CFR - XML import'!$A81,SEARCH(\">\",'CFR - XML import'!$A81,1)+1,SEARCH(\"/\",'CFR - XML import'!$A81,1)-SEARCH(\">\",'CFR - XML import'!$A81,1)-2)))","v":0},{"$f":"IF(ISERROR(FIND(BC$3,'CFR - XML import'!$A81)),0,VALUE(MID('CFR - XML import'!$A81,SEARCH(\">\",'CFR - XML import'!$A81,1)+1,SEARCH(\"/\",'CFR - XML import'!$A81,1)-SEARCH(\">\",'CFR - XML import'!$A81,1)-2)))","v":0},{"$f":"IF(ISERROR(FIND(BD$3,'CFR - XML import'!$A81)),0,VALUE(MID('CFR - XML import'!$A81,SEARCH(\">\",'CFR - XML import'!$A81,1)+1,SEARCH(\"/\",'CFR - XML import'!$A81,1)-SEARCH(\">\",'CFR - XML import'!$A81,1)-2)))","v":0},{"$f":"IF(ISERROR(FIND(BE$3,'CFR - XML import'!$A81)),0,VALUE(MID('CFR - XML import'!$A81,SEARCH(\">\",'CFR - XML import'!$A81,1)+1,SEARCH(\"/\",'CFR - XML import'!$A81,1)-SEARCH(\">\",'CFR - XML import'!$A81,1)-2)))","v":0},{"$f":"IF(ISERROR(FIND(BF$3,'CFR - XML import'!$A81)),0,VALUE(MID('CFR - XML import'!$A81,SEARCH(\">\",'CFR - XML import'!$A81,1)+1,SEARCH(\"/\",'CFR - XML import'!$A81,1)-SEARCH(\">\",'CFR - XML import'!$A81,1)-2)))","v":0},{"$f":"IF(ISERROR(FIND(BG$3,'CFR - XML import'!$A81)),0,VALUE(MID('CFR - XML import'!$A81,SEARCH(\">\",'CFR - XML import'!$A81,1)+1,SEARCH(\"/\",'CFR - XML import'!$A81,1)-SEARCH(\">\",'CFR - XML import'!$A81,1)-2)))","v":0},{"$f":"IF(ISERROR(FIND(BH$3,'CFR - XML import'!$A81)),0,VALUE(MID('CFR - XML import'!$A81,SEARCH(\">\",'CFR - XML import'!$A81,1)+1,SEARCH(\"/\",'CFR - XML import'!$A81,1)-SEARCH(\">\",'CFR - XML import'!$A81,1)-2)))","v":0},{"$f":"IF(ISERROR(FIND(BI$3,'CFR - XML import'!$A81)),0,VALUE(MID('CFR - XML import'!$A81,SEARCH(\">\",'CFR - XML import'!$A81,1)+1,SEARCH(\"/\",'CFR - XML import'!$A81,1)-SEARCH(\">\",'CFR - XML import'!$A81,1)-2)))","v":0},{"$f":"IF(ISERROR(FIND(BJ$3,'CFR - XML import'!$A81)),0,VALUE(MID('CFR - XML import'!$A81,SEARCH(\">\",'CFR - XML import'!$A81,1)+1,SEARCH(\"/\",'CFR - XML import'!$A81,1)-SEARCH(\">\",'CFR - XML import'!$A81,1)-2)))","v":0},{"$f":"IF(ISERROR(FIND(BK$3,'CFR - XML import'!$A81)),0,VALUE(MID('CFR - XML import'!$A81,SEARCH(\">\",'CFR - XML import'!$A81,1)+1,SEARCH(\"/\",'CFR - XML import'!$A81,1)-SEARCH(\">\",'CFR - XML import'!$A81,1)-2)))","v":0},{"$f":"IF(ISERROR(FIND(BL$3,'CFR - XML import'!$A81)),0,VALUE(MID('CFR - XML import'!$A81,SEARCH(\">\",'CFR - XML import'!$A81,1)+1,SEARCH(\"/\",'CFR - XML import'!$A81,1)-SEARCH(\">\",'CFR - XML import'!$A81,1)-2)))","v":0},{"$f":"IF(ISERROR(FIND(BM$3,'CFR - XML import'!$A81)),0,VALUE(MID('CFR - XML import'!$A81,SEARCH(\">\",'CFR - XML import'!$A81,1)+1,SEARCH(\"/\",'CFR - XML import'!$A81,1)-SEARCH(\">\",'CFR - XML import'!$A81,1)-2)))","v":0},{"$f":"IF(ISERROR(FIND(BN$3,'CFR - XML import'!$A81)),0,VALUE(MID('CFR - XML import'!$A81,SEARCH(\">\",'CFR - XML import'!$A81,1)+1,SEARCH(\"/\",'CFR - XML import'!$A81,1)-SEARCH(\">\",'CFR - XML import'!$A81,1)-2)))","v":0},{"$f":"IF(ISERROR(FIND(BO$3,'CFR - XML import'!$A81)),0,VALUE(MID('CFR - XML import'!$A81,SEARCH(\">\",'CFR - XML import'!$A81,1)+1,SEARCH(\"/\",'CFR - XML import'!$A81,1)-SEARCH(\">\",'CFR - XML import'!$A81,1)-2)))","v":0},{"$f":"IF(ISERROR(FIND(BP$3,'CFR - XML import'!$A81)),0,VALUE(MID('CFR - XML import'!$A81,SEARCH(\">\",'CFR - XML import'!$A81,1)+1,SEARCH(\"/\",'CFR - XML import'!$A81,1)-SEARCH(\">\",'CFR - XML import'!$A81,1)-2)))","v":0},{"$f":"IF(ISERROR(FIND(BQ$3,'CFR - XML import'!$A81)),0,VALUE(MID('CFR - XML import'!$A81,SEARCH(\">\",'CFR - XML import'!$A81,1)+1,SEARCH(\"/\",'CFR - XML import'!$A81,1)-SEARCH(\">\",'CFR - XML import'!$A81,1)-2)))","v":0},{"$f":"IF(ISERROR(FIND(BR$3,'CFR - XML import'!$A81)),0,VALUE(MID('CFR - XML import'!$A81,SEARCH(\">\",'CFR - XML import'!$A81,1)+1,SEARCH(\"/\",'CFR - XML import'!$A81,1)-SEARCH(\">\",'CFR - XML import'!$A81,1)-2)))","v":0},{"$f":"IF(ISERROR(FIND(BS$3,'CFR - XML import'!$A81)),0,VALUE(MID('CFR - XML import'!$A81,SEARCH(\">\",'CFR - XML import'!$A81,1)+1,SEARCH(\"/\",'CFR - XML import'!$A81,1)-SEARCH(\">\",'CFR - XML import'!$A81,1)-2)))","v":0},{"$f":"IF(ISERROR(FIND(BT$3,'CFR - XML import'!$A81)),0,VALUE(MID('CFR - XML import'!$A81,SEARCH(\">\",'CFR - XML import'!$A81,1)+1,SEARCH(\"/\",'CFR - XML import'!$A81,1)-SEARCH(\">\",'CFR - XML import'!$A81,1)-2)))","v":0},{"$f":"IF(ISERROR(FIND(BU$3,'CFR - XML import'!$A81)),0,VALUE(MID('CFR - XML import'!$A81,SEARCH(\">\",'CFR - XML import'!$A81,1)+1,SEARCH(\"/\",'CFR - XML import'!$A81,1)-SEARCH(\">\",'CFR - XML import'!$A81,1)-2)))","v":0},{"$f":"IF(ISERROR(FIND(BV$3,'CFR - XML import'!$A81)),0,VALUE(MID('CFR - XML import'!$A81,SEARCH(\">\",'CFR - XML import'!$A81,1)+1,SEARCH(\"/\",'CFR - XML import'!$A81,1)-SEARCH(\">\",'CFR - XML import'!$A81,1)-2)))","v":0},{"$f":"IF(ISERROR(FIND(BW$3,'CFR - XML import'!$A81)),0,VALUE(MID('CFR - XML import'!$A81,SEARCH(\">\",'CFR - XML import'!$A81,1)+1,SEARCH(\"/\",'CFR - XML import'!$A81,1)-SEARCH(\">\",'CFR - XML import'!$A81,1)-2)))","v":0},{"$f":"IF(ISERROR(FIND(BX$3,'CFR - XML import'!$A81)),0,VALUE(MID('CFR - XML import'!$A81,SEARCH(\">\",'CFR - XML import'!$A81,1)+1,SEARCH(\"/\",'CFR - XML import'!$A81,1)-SEARCH(\">\",'CFR - XML import'!$A81,1)-2)))","v":0},{"$f":"IF(ISERROR(FIND(BY$3,'CFR - XML import'!$A81)),0,VALUE(MID('CFR - XML import'!$A81,SEARCH(\">\",'CFR - XML import'!$A81,1)+1,SEARCH(\"/\",'CFR - XML import'!$A81,1)-SEARCH(\">\",'CFR - XML import'!$A81,1)-2)))","v":0},{"$f":"IF(ISERROR(FIND(BZ$3,'CFR - XML import'!$A81)),0,VALUE(MID('CFR - XML import'!$A81,SEARCH(\">\",'CFR - XML import'!$A81,1)+1,SEARCH(\"/\",'CFR - XML import'!$A81,1)-SEARCH(\">\",'CFR - XML import'!$A81,1)-2)))","v":0},null,null,null,null,null,null,{"$f":"IF(ISERROR(IF(MID('CFR - XML import'!$A81,LEN($CF$4)+1,LEN('CFR - XML import'!$A81)-(2*LEN($CF$4)+1))=\"RMMS\",1,IF(MID('CFR - XML import'!$A81,LEN(\"    <InputSystem>\")+1,LEN('CFR - XML import'!$A81)-(LEN(\"    <InputSystem>\")+LEN($CF$4)+1))=\"SIMS\",2,0))),0,IF(MID('CFR - XML import'!$A81,LEN($CF$4)+1,LEN('CFR - XML import'!$A81)-(2*LEN($CF$4)+1))=\"RMMS\",1,IF(MID('CFR - XML import'!$A81,LEN(\"    <InputSystem>\")+1,LEN('CFR - XML import'!$A81)-(LEN(\"    <InputSystem>\")+LEN($CF$4)+1))=\"SIMS\",2,0)))","v":0},{"$f":"IF(ISERROR(FIND(CH$3,'CFR - XML import'!$A81)),0,MID('CFR - XML import'!$A81,SEARCH(\">\",'CFR - XML import'!$A81,1)+1,SEARCH(\"/\",'CFR - XML import'!$A81,1)-SEARCH(\">\",'CFR - XML import'!$A81,1)-2))","v":0},{"$f":"IF(ISERROR(FIND(CI$3,'CFR - XML import'!$A81)),0,MID('CFR - XML import'!$A81,SEARCH(\">\",'CFR - XML import'!$A81,1)+1,SEARCH(\"/\",'CFR - XML import'!$A81,1)-SEARCH(\">\",'CFR - XML import'!$A81,1)-2))","v":0},{"$f":"IF(ISERROR(FIND(CJ$3,'CFR - XML import'!$A81)),0,MID('CFR - XML import'!$A81,SEARCH(\">\",'CFR - XML import'!$A81,1)+1,SEARCH(\"/\",'CFR - XML import'!$A81,1)-SEARCH(\">\",'CFR - XML import'!$A81,1)-2))","v":0},{"$f":"IF(ISERROR(FIND(CK$3,'CFR - XML import'!$A81)),0,MID('CFR - XML import'!$A81,SEARCH(\">\",'CFR - XML import'!$A81,1)+1,SEARCH(\"/\",'CFR - XML import'!$A81,1)-SEARCH(\">\",'CFR - XML import'!$A81,1)-2))","v":0},{"$f":"IF(ISERROR(FIND(CL$3,'CFR - XML import'!$A81)),0,MID('CFR - XML import'!$A81,SEARCH(\">\",'CFR - XML import'!$A81,1)+1,SEARCH(\"/\",'CFR - XML import'!$A81,1)-SEARCH(\">\",'CFR - XML import'!$A81,1)-2))","v":0}]
[{"$f":"IF(AND('CFR - XML import'!A82<>\"\",LEFT('CFR - XML import'!A82,1)<>\"<\",LEFT('CFR - XML import'!A82,3)<>\"  <\",LEFT('CFR - XML import'!A82,5)<>\"    <\",LEFT('CFR - XML import'!A82,7)<>\"      <\",LEFT('CFR - XML import'!A82,9)<>\"        <\",$B$1=\"SIMS\"),'CFR - XML import'!A82,IF(AND(LEFT('CFR - XML import'!A82,9)=\"<Details>\",$B$1=\"RM\"),'CFR - XML import'!A82,\"\"))","v":""},{"$f":"IF(ISERROR(FIND(B$3,'CFR - XML import'!$A82)),0,VALUE(MID('CFR - XML import'!$A82,SEARCH(\">\",'CFR - XML import'!$A82,1)+1,SEARCH(\"/\",'CFR - XML import'!$A82,1)-SEARCH(\">\",'CFR - XML import'!$A82,1)-2)))","v":0},null,{"$f":"IF(ISERROR(FIND(D$3,'CFR - XML import'!$A82)),0,MID('CFR - XML import'!$A82,SEARCH(\">\",'CFR - XML import'!$A82,1)+1,SEARCH(\"/\",'CFR - XML import'!$A82,1)-SEARCH(\">\",'CFR - XML import'!$A82,1)-2))","v":0},{"$f":"IF(ISERROR(FIND(E$3,'CFR - XML import'!$A82)),0,MID('CFR - XML import'!$A82,SEARCH(\">\",'CFR - XML import'!$A82,1)+1,SEARCH(\"/\",'CFR - XML import'!$A82,1)-SEARCH(\">\",'CFR - XML import'!$A82,1)-2))","v":0},{"$f":"IF($B$1=\"SIMS\",IF(ISERROR(FIND(F$3,'CFR - XML import'!$A82)),0,VALUE(MID('CFR - XML import'!$A82,15,10))),IF(ISERROR(FIND(F$3,'CFR - XML import'!$A82)),0,VALUE(MID('CFR - XML import'!$A82,11,10))))","v":"00:00:00"},{"$f":"IF(ISERROR(FIND(G$3,'CFR - XML import'!$A82)),0,VALUE(MID('CFR - XML import'!$A82,SEARCH(\">\",'CFR - XML import'!$A82,1)+1,SEARCH(\"/\",'CFR - XML import'!$A82,1)-SEARCH(\">\",'CFR - XML import'!$A82,1)-2)))","v":0},{"$f":"IF(ISERROR(FIND(H$3,'CFR - XML import'!$A82)),0,VALUE(MID('CFR - XML import'!$A82,SEARCH(\">\",'CFR - XML import'!$A82,1)+1,SEARCH(\"/\",'CFR - XML import'!$A82,1)-SEARCH(\">\",'CFR - XML import'!$A82,1)-2)))","v":0},{"$f":"IF(ISERROR(FIND(I$3,'CFR - XML import'!$A82)),0,VALUE(MID('CFR - XML import'!$A82,SEARCH(\">\",'CFR - XML import'!$A82,1)+1,SEARCH(\"/\",'CFR - XML import'!$A82,1)-SEARCH(\">\",'CFR - XML import'!$A82,1)-2)))","v":0},{"$f":"IF(ISERROR(FIND(J$3,'CFR - XML import'!$A82)),0,VALUE(MID('CFR - XML import'!$A82,SEARCH(\">\",'CFR - XML import'!$A82,1)+1,SEARCH(\"/\",'CFR - XML import'!$A82,1)-SEARCH(\">\",'CFR - XML import'!$A82,1)-2)))","v":0},{"$f":"IF(ISERROR(FIND(K$3,'CFR - XML import'!$A82)),0,VALUE(MID('CFR - XML import'!$A82,SEARCH(\">\",'CFR - XML import'!$A82,1)+1,SEARCH(\"/\",'CFR - XML import'!$A82,1)-SEARCH(\">\",'CFR - XML import'!$A82,1)-2)))","v":0},{"$f":"IF(ISERROR(FIND(L$3,'CFR - XML import'!$A82)),0,VALUE(MID('CFR - XML import'!$A82,SEARCH(\">\",'CFR - XML import'!$A82,1)+1,SEARCH(\"/\",'CFR - XML import'!$A82,1)-SEARCH(\">\",'CFR - XML import'!$A82,1)-2)))","v":0},{"$f":"IF(ISERROR(FIND(M$3,'CFR - XML import'!$A82)),0,VALUE(MID('CFR - XML import'!$A82,SEARCH(\">\",'CFR - XML import'!$A82,1)+1,SEARCH(\"/\",'CFR - XML import'!$A82,1)-SEARCH(\">\",'CFR - XML import'!$A82,1)-2)))","v":0},{"$f":"IF(ISERROR(FIND(N$3,'CFR - XML import'!$A82)),0,VALUE(MID('CFR - XML import'!$A82,SEARCH(\">\",'CFR - XML import'!$A82,1)+1,SEARCH(\"/\",'CFR - XML import'!$A82,1)-SEARCH(\">\",'CFR - XML import'!$A82,1)-2)))","v":0},{"$f":"IF(ISERROR(FIND(O$3,'CFR - XML import'!$A82)),0,VALUE(MID('CFR - XML import'!$A82,SEARCH(\">\",'CFR - XML import'!$A82,1)+1,SEARCH(\"/\",'CFR - XML import'!$A82,1)-SEARCH(\">\",'CFR - XML import'!$A82,1)-2)))","v":0},{"$f":"IF(ISERROR(FIND(P$3,'CFR - XML import'!$A82)),0,VALUE(MID('CFR - XML import'!$A82,SEARCH(\">\",'CFR - XML import'!$A82,1)+1,SEARCH(\"/\",'CFR - XML import'!$A82,1)-SEARCH(\">\",'CFR - XML import'!$A82,1)-2)))","v":0},{"$f":"IF(ISERROR(FIND(Q$3,'CFR - XML import'!$A82)),0,VALUE(MID('CFR - XML import'!$A82,SEARCH(\">\",'CFR - XML import'!$A82,1)+1,SEARCH(\"/\",'CFR - XML import'!$A82,1)-SEARCH(\">\",'CFR - XML import'!$A82,1)-2)))","v":0},{"$f":"IF(ISERROR(FIND(R$3,'CFR - XML import'!$A82)),0,VALUE(MID('CFR - XML import'!$A82,SEARCH(\">\",'CFR - XML import'!$A82,1)+1,SEARCH(\"/\",'CFR - XML import'!$A82,1)-SEARCH(\">\",'CFR - XML import'!$A82,1)-2)))","v":0},{"$f":"IF(ISERROR(FIND(S$3,'CFR - XML import'!$A82)),0,VALUE(MID('CFR - XML import'!$A82,SEARCH(\">\",'CFR - XML import'!$A82,1)+1,SEARCH(\"/\",'CFR - XML import'!$A82,1)-SEARCH(\">\",'CFR - XML import'!$A82,1)-2)))","v":0},{"$f":"IF(ISERROR(FIND(T$3,'CFR - XML import'!$A82)),0,VALUE(MID('CFR - XML import'!$A82,SEARCH(\">\",'CFR - XML import'!$A82,1)+1,SEARCH(\"/\",'CFR - XML import'!$A82,1)-SEARCH(\">\",'CFR - XML import'!$A82,1)-2)))","v":0},{"$f":"IF(ISERROR(FIND(U$3,'CFR - XML import'!$A82)),0,VALUE(MID('CFR - XML import'!$A82,SEARCH(\">\",'CFR - XML import'!$A82,1)+1,SEARCH(\"/\",'CFR - XML import'!$A82,1)-SEARCH(\">\",'CFR - XML import'!$A82,1)-2)))","v":0},{"$f":"IF(ISERROR(FIND(V$3,'CFR - XML import'!$A82)),0,VALUE(MID('CFR - XML import'!$A82,SEARCH(\">\",'CFR - XML import'!$A82,1)+1,SEARCH(\"/\",'CFR - XML import'!$A82,1)-SEARCH(\">\",'CFR - XML import'!$A82,1)-2)))","v":0},{"$f":"IF(ISERROR(FIND(W$3,'CFR - XML import'!$A82)),0,VALUE(MID('CFR - XML import'!$A82,SEARCH(\">\",'CFR - XML import'!$A82,1)+1,SEARCH(\"/\",'CFR - XML import'!$A82,1)-SEARCH(\">\",'CFR - XML import'!$A82,1)-2)))","v":0},null,{"$f":"IF(ISERROR(FIND(Y$3,'CFR - XML import'!$A82)),0,VALUE(MID('CFR - XML import'!$A82,SEARCH(\">\",'CFR - XML import'!$A82,1)+1,SEARCH(\"/\",'CFR - XML import'!$A82,1)-SEARCH(\">\",'CFR - XML import'!$A82,1)-2)))","v":0},{"$f":"IF(ISERROR(FIND(Z$3,'CFR - XML import'!$A82)),0,VALUE(MID('CFR - XML import'!$A82,SEARCH(\">\",'CFR - XML import'!$A82,1)+1,SEARCH(\"/\",'CFR - XML import'!$A82,1)-SEARCH(\">\",'CFR - XML import'!$A82,1)-2)))","v":0},{"$f":"IF(ISERROR(FIND(AA$3,'CFR - XML import'!$A82)),0,VALUE(MID('CFR - XML import'!$A82,SEARCH(\">\",'CFR - XML import'!$A82,1)+1,SEARCH(\"/\",'CFR - XML import'!$A82,1)-SEARCH(\">\",'CFR - XML import'!$A82,1)-2)))","v":0},{"$f":"IF(ISERROR(FIND(AB$3,'CFR - XML import'!$A82)),0,VALUE(MID('CFR - XML import'!$A82,SEARCH(\">\",'CFR - XML import'!$A82,1)+1,SEARCH(\"/\",'CFR - XML import'!$A82,1)-SEARCH(\">\",'CFR - XML import'!$A82,1)-2)))","v":0},{"$f":"IF(ISERROR(FIND(AC$3,'CFR - XML import'!$A82)),0,VALUE(MID('CFR - XML import'!$A82,SEARCH(\">\",'CFR - XML import'!$A82,1)+1,SEARCH(\"/\",'CFR - XML import'!$A82,1)-SEARCH(\">\",'CFR - XML import'!$A82,1)-2)))","v":0},{"$f":"IF(ISERROR(FIND(AD$3,'CFR - XML import'!$A82)),0,VALUE(MID('CFR - XML import'!$A82,SEARCH(\">\",'CFR - XML import'!$A82,1)+1,SEARCH(\"/\",'CFR - XML import'!$A82,1)-SEARCH(\">\",'CFR - XML import'!$A82,1)-2)))","v":0},{"$f":"IF(ISERROR(FIND(AE$3,'CFR - XML import'!$A82)),0,VALUE(MID('CFR - XML import'!$A82,SEARCH(\">\",'CFR - XML import'!$A82,1)+1,SEARCH(\"/\",'CFR - XML import'!$A82,1)-SEARCH(\">\",'CFR - XML import'!$A82,1)-2)))","v":0},{"$f":"IF(ISERROR(FIND(AF$3,'CFR - XML import'!$A82)),0,VALUE(MID('CFR - XML import'!$A82,SEARCH(\">\",'CFR - XML import'!$A82,1)+1,SEARCH(\"/\",'CFR - XML import'!$A82,1)-SEARCH(\">\",'CFR - XML import'!$A82,1)-2)))","v":0},{"$f":"IF(ISERROR(FIND(AG$3,'CFR - XML import'!$A82)),0,VALUE(MID('CFR - XML import'!$A82,SEARCH(\">\",'CFR - XML import'!$A82,1)+1,SEARCH(\"/\",'CFR - XML import'!$A82,1)-SEARCH(\">\",'CFR - XML import'!$A82,1)-2)))","v":0},{"$f":"IF(ISERROR(FIND(AH$3,'CFR - XML import'!$A82)),0,VALUE(MID('CFR - XML import'!$A82,SEARCH(\">\",'CFR - XML import'!$A82,1)+1,SEARCH(\"/\",'CFR - XML import'!$A82,1)-SEARCH(\">\",'CFR - XML import'!$A82,1)-2)))","v":0},{"$f":"IF(ISERROR(FIND(AI$3,'CFR - XML import'!$A82)),0,VALUE(MID('CFR - XML import'!$A82,SEARCH(\">\",'CFR - XML import'!$A82,1)+1,SEARCH(\"/\",'CFR - XML import'!$A82,1)-SEARCH(\">\",'CFR - XML import'!$A82,1)-2)))","v":0},{"$f":"IF(ISERROR(FIND(AJ$3,'CFR - XML import'!$A82)),0,VALUE(MID('CFR - XML import'!$A82,SEARCH(\">\",'CFR - XML import'!$A82,1)+1,SEARCH(\"/\",'CFR - XML import'!$A82,1)-SEARCH(\">\",'CFR - XML import'!$A82,1)-2)))","v":0},{"$f":"IF(ISERROR(FIND(AK$3,'CFR - XML import'!$A82)),0,VALUE(MID('CFR - XML import'!$A82,SEARCH(\">\",'CFR - XML import'!$A82,1)+1,SEARCH(\"/\",'CFR - XML import'!$A82,1)-SEARCH(\">\",'CFR - XML import'!$A82,1)-2)))","v":0},{"$f":"IF(ISERROR(FIND(AL$3,'CFR - XML import'!$A82)),0,VALUE(MID('CFR - XML import'!$A82,SEARCH(\">\",'CFR - XML import'!$A82,1)+1,SEARCH(\"/\",'CFR - XML import'!$A82,1)-SEARCH(\">\",'CFR - XML import'!$A82,1)-2)))","v":0},{"$f":"IF(ISERROR(FIND(AM$3,'CFR - XML import'!$A82)),0,VALUE(MID('CFR - XML import'!$A82,SEARCH(\">\",'CFR - XML import'!$A82,1)+1,SEARCH(\"/\",'CFR - XML import'!$A82,1)-SEARCH(\">\",'CFR - XML import'!$A82,1)-2)))","v":0},{"$f":"IF(ISERROR(FIND(AN$3,'CFR - XML import'!$A82)),0,VALUE(MID('CFR - XML import'!$A82,SEARCH(\">\",'CFR - XML import'!$A82,1)+1,SEARCH(\"/\",'CFR - XML import'!$A82,1)-SEARCH(\">\",'CFR - XML import'!$A82,1)-2)))","v":0},{"$f":"IF(ISERROR(FIND(AO$3,'CFR - XML import'!$A82)),0,VALUE(MID('CFR - XML import'!$A82,SEARCH(\">\",'CFR - XML import'!$A82,1)+1,SEARCH(\"/\",'CFR - XML import'!$A82,1)-SEARCH(\">\",'CFR - XML import'!$A82,1)-2)))","v":0},{"$f":"IF(ISERROR(FIND(AP$3,'CFR - XML import'!$A82)),0,VALUE(MID('CFR - XML import'!$A82,SEARCH(\">\",'CFR - XML import'!$A82,1)+1,SEARCH(\"/\",'CFR - XML import'!$A82,1)-SEARCH(\">\",'CFR - XML import'!$A82,1)-2)))","v":0},{"$f":"IF(ISERROR(FIND(AQ$3,'CFR - XML import'!$A82)),0,VALUE(MID('CFR - XML import'!$A82,SEARCH(\">\",'CFR - XML import'!$A82,1)+1,SEARCH(\"/\",'CFR - XML import'!$A82,1)-SEARCH(\">\",'CFR - XML import'!$A82,1)-2)))","v":0},{"$f":"IF(ISERROR(FIND(AR$3,'CFR - XML import'!$A82)),0,VALUE(MID('CFR - XML import'!$A82,SEARCH(\">\",'CFR - XML import'!$A82,1)+1,SEARCH(\"/\",'CFR - XML import'!$A82,1)-SEARCH(\">\",'CFR - XML import'!$A82,1)-2)))","v":0},{"$f":"IF(ISERROR(FIND(AS$3,'CFR - XML import'!$A82)),0,VALUE(MID('CFR - XML import'!$A82,SEARCH(\">\",'CFR - XML import'!$A82,1)+1,SEARCH(\"/\",'CFR - XML import'!$A82,1)-SEARCH(\">\",'CFR - XML import'!$A82,1)-2)))","v":0},{"$f":"IF(ISERROR(FIND(AT$3,'CFR - XML import'!$A82)),0,VALUE(MID('CFR - XML import'!$A82,SEARCH(\">\",'CFR - XML import'!$A82,1)+1,SEARCH(\"/\",'CFR - XML import'!$A82,1)-SEARCH(\">\",'CFR - XML import'!$A82,1)-2)))","v":0},{"$f":"IF(ISERROR(FIND(AU$3,'CFR - XML import'!$A82)),0,VALUE(MID('CFR - XML import'!$A82,SEARCH(\">\",'CFR - XML import'!$A82,1)+1,SEARCH(\"/\",'CFR - XML import'!$A82,1)-SEARCH(\">\",'CFR - XML import'!$A82,1)-2)))","v":0},{"$f":"IF(ISERROR(FIND(AV$3,'CFR - XML import'!$A82)),0,VALUE(MID('CFR - XML import'!$A82,SEARCH(\">\",'CFR - XML import'!$A82,1)+1,SEARCH(\"/\",'CFR - XML import'!$A82,1)-SEARCH(\">\",'CFR - XML import'!$A82,1)-2)))","v":0},{"$f":"IF(ISERROR(FIND(AW$3,'CFR - XML import'!$A82)),0,VALUE(MID('CFR - XML import'!$A82,SEARCH(\">\",'CFR - XML import'!$A82,1)+1,SEARCH(\"/\",'CFR - XML import'!$A82,1)-SEARCH(\">\",'CFR - XML import'!$A82,1)-2)))","v":0},{"$f":"IF(ISERROR(FIND(AX$3,'CFR - XML import'!$A82)),0,VALUE(MID('CFR - XML import'!$A82,SEARCH(\">\",'CFR - XML import'!$A82,1)+1,SEARCH(\"/\",'CFR - XML import'!$A82,1)-SEARCH(\">\",'CFR - XML import'!$A82,1)-2)))","v":0},{"$f":"IF(ISERROR(FIND(AY$3,'CFR - XML import'!$A82)),0,VALUE(MID('CFR - XML import'!$A82,SEARCH(\">\",'CFR - XML import'!$A82,1)+1,SEARCH(\"/\",'CFR - XML import'!$A82,1)-SEARCH(\">\",'CFR - XML import'!$A82,1)-2)))","v":0},{"$f":"IF(ISERROR(FIND(AZ$3,'CFR - XML import'!$A82)),0,VALUE(MID('CFR - XML import'!$A82,SEARCH(\">\",'CFR - XML import'!$A82,1)+1,SEARCH(\"/\",'CFR - XML import'!$A82,1)-SEARCH(\">\",'CFR - XML import'!$A82,1)-2)))","v":0},{"$f":"IF(ISERROR(FIND(BA$3,'CFR - XML import'!$A82)),0,VALUE(MID('CFR - XML import'!$A82,SEARCH(\">\",'CFR - XML import'!$A82,1)+1,SEARCH(\"/\",'CFR - XML import'!$A82,1)-SEARCH(\">\",'CFR - XML import'!$A82,1)-2)))","v":0},{"$f":"IF(ISERROR(FIND(BB$3,'CFR - XML import'!$A82)),0,VALUE(MID('CFR - XML import'!$A82,SEARCH(\">\",'CFR - XML import'!$A82,1)+1,SEARCH(\"/\",'CFR - XML import'!$A82,1)-SEARCH(\">\",'CFR - XML import'!$A82,1)-2)))","v":0},{"$f":"IF(ISERROR(FIND(BC$3,'CFR - XML import'!$A82)),0,VALUE(MID('CFR - XML import'!$A82,SEARCH(\">\",'CFR - XML import'!$A82,1)+1,SEARCH(\"/\",'CFR - XML import'!$A82,1)-SEARCH(\">\",'CFR - XML import'!$A82,1)-2)))","v":0},{"$f":"IF(ISERROR(FIND(BD$3,'CFR - XML import'!$A82)),0,VALUE(MID('CFR - XML import'!$A82,SEARCH(\">\",'CFR - XML import'!$A82,1)+1,SEARCH(\"/\",'CFR - XML import'!$A82,1)-SEARCH(\">\",'CFR - XML import'!$A82,1)-2)))","v":0},{"$f":"IF(ISERROR(FIND(BE$3,'CFR - XML import'!$A82)),0,VALUE(MID('CFR - XML import'!$A82,SEARCH(\">\",'CFR - XML import'!$A82,1)+1,SEARCH(\"/\",'CFR - XML import'!$A82,1)-SEARCH(\">\",'CFR - XML import'!$A82,1)-2)))","v":0},{"$f":"IF(ISERROR(FIND(BF$3,'CFR - XML import'!$A82)),0,VALUE(MID('CFR - XML import'!$A82,SEARCH(\">\",'CFR - XML import'!$A82,1)+1,SEARCH(\"/\",'CFR - XML import'!$A82,1)-SEARCH(\">\",'CFR - XML import'!$A82,1)-2)))","v":0},{"$f":"IF(ISERROR(FIND(BG$3,'CFR - XML import'!$A82)),0,VALUE(MID('CFR - XML import'!$A82,SEARCH(\">\",'CFR - XML import'!$A82,1)+1,SEARCH(\"/\",'CFR - XML import'!$A82,1)-SEARCH(\">\",'CFR - XML import'!$A82,1)-2)))","v":0},{"$f":"IF(ISERROR(FIND(BH$3,'CFR - XML import'!$A82)),0,VALUE(MID('CFR - XML import'!$A82,SEARCH(\">\",'CFR - XML import'!$A82,1)+1,SEARCH(\"/\",'CFR - XML import'!$A82,1)-SEARCH(\">\",'CFR - XML import'!$A82,1)-2)))","v":0},{"$f":"IF(ISERROR(FIND(BI$3,'CFR - XML import'!$A82)),0,VALUE(MID('CFR - XML import'!$A82,SEARCH(\">\",'CFR - XML import'!$A82,1)+1,SEARCH(\"/\",'CFR - XML import'!$A82,1)-SEARCH(\">\",'CFR - XML import'!$A82,1)-2)))","v":0},{"$f":"IF(ISERROR(FIND(BJ$3,'CFR - XML import'!$A82)),0,VALUE(MID('CFR - XML import'!$A82,SEARCH(\">\",'CFR - XML import'!$A82,1)+1,SEARCH(\"/\",'CFR - XML import'!$A82,1)-SEARCH(\">\",'CFR - XML import'!$A82,1)-2)))","v":0},{"$f":"IF(ISERROR(FIND(BK$3,'CFR - XML import'!$A82)),0,VALUE(MID('CFR - XML import'!$A82,SEARCH(\">\",'CFR - XML import'!$A82,1)+1,SEARCH(\"/\",'CFR - XML import'!$A82,1)-SEARCH(\">\",'CFR - XML import'!$A82,1)-2)))","v":0},{"$f":"IF(ISERROR(FIND(BL$3,'CFR - XML import'!$A82)),0,VALUE(MID('CFR - XML import'!$A82,SEARCH(\">\",'CFR - XML import'!$A82,1)+1,SEARCH(\"/\",'CFR - XML import'!$A82,1)-SEARCH(\">\",'CFR - XML import'!$A82,1)-2)))","v":0},{"$f":"IF(ISERROR(FIND(BM$3,'CFR - XML import'!$A82)),0,VALUE(MID('CFR - XML import'!$A82,SEARCH(\">\",'CFR - XML import'!$A82,1)+1,SEARCH(\"/\",'CFR - XML import'!$A82,1)-SEARCH(\">\",'CFR - XML import'!$A82,1)-2)))","v":0},{"$f":"IF(ISERROR(FIND(BN$3,'CFR - XML import'!$A82)),0,VALUE(MID('CFR - XML import'!$A82,SEARCH(\">\",'CFR - XML import'!$A82,1)+1,SEARCH(\"/\",'CFR - XML import'!$A82,1)-SEARCH(\">\",'CFR - XML import'!$A82,1)-2)))","v":0},{"$f":"IF(ISERROR(FIND(BO$3,'CFR - XML import'!$A82)),0,VALUE(MID('CFR - XML import'!$A82,SEARCH(\">\",'CFR - XML import'!$A82,1)+1,SEARCH(\"/\",'CFR - XML import'!$A82,1)-SEARCH(\">\",'CFR - XML import'!$A82,1)-2)))","v":0},{"$f":"IF(ISERROR(FIND(BP$3,'CFR - XML import'!$A82)),0,VALUE(MID('CFR - XML import'!$A82,SEARCH(\">\",'CFR - XML import'!$A82,1)+1,SEARCH(\"/\",'CFR - XML import'!$A82,1)-SEARCH(\">\",'CFR - XML import'!$A82,1)-2)))","v":0},{"$f":"IF(ISERROR(FIND(BQ$3,'CFR - XML import'!$A82)),0,VALUE(MID('CFR - XML import'!$A82,SEARCH(\">\",'CFR - XML import'!$A82,1)+1,SEARCH(\"/\",'CFR - XML import'!$A82,1)-SEARCH(\">\",'CFR - XML import'!$A82,1)-2)))","v":0},{"$f":"IF(ISERROR(FIND(BR$3,'CFR - XML import'!$A82)),0,VALUE(MID('CFR - XML import'!$A82,SEARCH(\">\",'CFR - XML import'!$A82,1)+1,SEARCH(\"/\",'CFR - XML import'!$A82,1)-SEARCH(\">\",'CFR - XML import'!$A82,1)-2)))","v":0},{"$f":"IF(ISERROR(FIND(BS$3,'CFR - XML import'!$A82)),0,VALUE(MID('CFR - XML import'!$A82,SEARCH(\">\",'CFR - XML import'!$A82,1)+1,SEARCH(\"/\",'CFR - XML import'!$A82,1)-SEARCH(\">\",'CFR - XML import'!$A82,1)-2)))","v":0},{"$f":"IF(ISERROR(FIND(BT$3,'CFR - XML import'!$A82)),0,VALUE(MID('CFR - XML import'!$A82,SEARCH(\">\",'CFR - XML import'!$A82,1)+1,SEARCH(\"/\",'CFR - XML import'!$A82,1)-SEARCH(\">\",'CFR - XML import'!$A82,1)-2)))","v":0},{"$f":"IF(ISERROR(FIND(BU$3,'CFR - XML import'!$A82)),0,VALUE(MID('CFR - XML import'!$A82,SEARCH(\">\",'CFR - XML import'!$A82,1)+1,SEARCH(\"/\",'CFR - XML import'!$A82,1)-SEARCH(\">\",'CFR - XML import'!$A82,1)-2)))","v":0},{"$f":"IF(ISERROR(FIND(BV$3,'CFR - XML import'!$A82)),0,VALUE(MID('CFR - XML import'!$A82,SEARCH(\">\",'CFR - XML import'!$A82,1)+1,SEARCH(\"/\",'CFR - XML import'!$A82,1)-SEARCH(\">\",'CFR - XML import'!$A82,1)-2)))","v":0},{"$f":"IF(ISERROR(FIND(BW$3,'CFR - XML import'!$A82)),0,VALUE(MID('CFR - XML import'!$A82,SEARCH(\">\",'CFR - XML import'!$A82,1)+1,SEARCH(\"/\",'CFR - XML import'!$A82,1)-SEARCH(\">\",'CFR - XML import'!$A82,1)-2)))","v":0},{"$f":"IF(ISERROR(FIND(BX$3,'CFR - XML import'!$A82)),0,VALUE(MID('CFR - XML import'!$A82,SEARCH(\">\",'CFR - XML import'!$A82,1)+1,SEARCH(\"/\",'CFR - XML import'!$A82,1)-SEARCH(\">\",'CFR - XML import'!$A82,1)-2)))","v":0},{"$f":"IF(ISERROR(FIND(BY$3,'CFR - XML import'!$A82)),0,VALUE(MID('CFR - XML import'!$A82,SEARCH(\">\",'CFR - XML import'!$A82,1)+1,SEARCH(\"/\",'CFR - XML import'!$A82,1)-SEARCH(\">\",'CFR - XML import'!$A82,1)-2)))","v":0},{"$f":"IF(ISERROR(FIND(BZ$3,'CFR - XML import'!$A82)),0,VALUE(MID('CFR - XML import'!$A82,SEARCH(\">\",'CFR - XML import'!$A82,1)+1,SEARCH(\"/\",'CFR - XML import'!$A82,1)-SEARCH(\">\",'CFR - XML import'!$A82,1)-2)))","v":0},null,null,null,null,null,null,{"$f":"IF(ISERROR(IF(MID('CFR - XML import'!$A82,LEN($CF$4)+1,LEN('CFR - XML import'!$A82)-(2*LEN($CF$4)+1))=\"RMMS\",1,IF(MID('CFR - XML import'!$A82,LEN(\"    <InputSystem>\")+1,LEN('CFR - XML import'!$A82)-(LEN(\"    <InputSystem>\")+LEN($CF$4)+1))=\"SIMS\",2,0))),0,IF(MID('CFR - XML import'!$A82,LEN($CF$4)+1,LEN('CFR - XML import'!$A82)-(2*LEN($CF$4)+1))=\"RMMS\",1,IF(MID('CFR - XML import'!$A82,LEN(\"    <InputSystem>\")+1,LEN('CFR - XML import'!$A82)-(LEN(\"    <InputSystem>\")+LEN($CF$4)+1))=\"SIMS\",2,0)))","v":0},{"$f":"IF(ISERROR(FIND(CH$3,'CFR - XML import'!$A82)),0,MID('CFR - XML import'!$A82,SEARCH(\">\",'CFR - XML import'!$A82,1)+1,SEARCH(\"/\",'CFR - XML import'!$A82,1)-SEARCH(\">\",'CFR - XML import'!$A82,1)-2))","v":0},{"$f":"IF(ISERROR(FIND(CI$3,'CFR - XML import'!$A82)),0,MID('CFR - XML import'!$A82,SEARCH(\">\",'CFR - XML import'!$A82,1)+1,SEARCH(\"/\",'CFR - XML import'!$A82,1)-SEARCH(\">\",'CFR - XML import'!$A82,1)-2))","v":0},{"$f":"IF(ISERROR(FIND(CJ$3,'CFR - XML import'!$A82)),0,MID('CFR - XML import'!$A82,SEARCH(\">\",'CFR - XML import'!$A82,1)+1,SEARCH(\"/\",'CFR - XML import'!$A82,1)-SEARCH(\">\",'CFR - XML import'!$A82,1)-2))","v":0},{"$f":"IF(ISERROR(FIND(CK$3,'CFR - XML import'!$A82)),0,MID('CFR - XML import'!$A82,SEARCH(\">\",'CFR - XML import'!$A82,1)+1,SEARCH(\"/\",'CFR - XML import'!$A82,1)-SEARCH(\">\",'CFR - XML import'!$A82,1)-2))","v":0},{"$f":"IF(ISERROR(FIND(CL$3,'CFR - XML import'!$A82)),0,MID('CFR - XML import'!$A82,SEARCH(\">\",'CFR - XML import'!$A82,1)+1,SEARCH(\"/\",'CFR - XML import'!$A82,1)-SEARCH(\">\",'CFR - XML import'!$A82,1)-2))","v":0}]
[{"$f":"IF(AND('CFR - XML import'!A83<>\"\",LEFT('CFR - XML import'!A83,1)<>\"<\",LEFT('CFR - XML import'!A83,3)<>\"  <\",LEFT('CFR - XML import'!A83,5)<>\"    <\",LEFT('CFR - XML import'!A83,7)<>\"      <\",LEFT('CFR - XML import'!A83,9)<>\"        <\",$B$1=\"SIMS\"),'CFR - XML import'!A83,IF(AND(LEFT('CFR - XML import'!A83,9)=\"<Details>\",$B$1=\"RM\"),'CFR - XML import'!A83,\"\"))","v":""},{"$f":"IF(ISERROR(FIND(B$3,'CFR - XML import'!$A83)),0,VALUE(MID('CFR - XML import'!$A83,SEARCH(\">\",'CFR - XML import'!$A83,1)+1,SEARCH(\"/\",'CFR - XML import'!$A83,1)-SEARCH(\">\",'CFR - XML import'!$A83,1)-2)))","v":0},null,{"$f":"IF(ISERROR(FIND(D$3,'CFR - XML import'!$A83)),0,MID('CFR - XML import'!$A83,SEARCH(\">\",'CFR - XML import'!$A83,1)+1,SEARCH(\"/\",'CFR - XML import'!$A83,1)-SEARCH(\">\",'CFR - XML import'!$A83,1)-2))","v":0},{"$f":"IF(ISERROR(FIND(E$3,'CFR - XML import'!$A83)),0,MID('CFR - XML import'!$A83,SEARCH(\">\",'CFR - XML import'!$A83,1)+1,SEARCH(\"/\",'CFR - XML import'!$A83,1)-SEARCH(\">\",'CFR - XML import'!$A83,1)-2))","v":0},{"$f":"IF($B$1=\"SIMS\",IF(ISERROR(FIND(F$3,'CFR - XML import'!$A83)),0,VALUE(MID('CFR - XML import'!$A83,15,10))),IF(ISERROR(FIND(F$3,'CFR - XML import'!$A83)),0,VALUE(MID('CFR - XML import'!$A83,11,10))))","v":"00:00:00"},{"$f":"IF(ISERROR(FIND(G$3,'CFR - XML import'!$A83)),0,VALUE(MID('CFR - XML import'!$A83,SEARCH(\">\",'CFR - XML import'!$A83,1)+1,SEARCH(\"/\",'CFR - XML import'!$A83,1)-SEARCH(\">\",'CFR - XML import'!$A83,1)-2)))","v":0},{"$f":"IF(ISERROR(FIND(H$3,'CFR - XML import'!$A83)),0,VALUE(MID('CFR - XML import'!$A83,SEARCH(\">\",'CFR - XML import'!$A83,1)+1,SEARCH(\"/\",'CFR - XML import'!$A83,1)-SEARCH(\">\",'CFR - XML import'!$A83,1)-2)))","v":0},{"$f":"IF(ISERROR(FIND(I$3,'CFR - XML import'!$A83)),0,VALUE(MID('CFR - XML import'!$A83,SEARCH(\">\",'CFR - XML import'!$A83,1)+1,SEARCH(\"/\",'CFR - XML import'!$A83,1)-SEARCH(\">\",'CFR - XML import'!$A83,1)-2)))","v":0},{"$f":"IF(ISERROR(FIND(J$3,'CFR - XML import'!$A83)),0,VALUE(MID('CFR - XML import'!$A83,SEARCH(\">\",'CFR - XML import'!$A83,1)+1,SEARCH(\"/\",'CFR - XML import'!$A83,1)-SEARCH(\">\",'CFR - XML import'!$A83,1)-2)))","v":0},{"$f":"IF(ISERROR(FIND(K$3,'CFR - XML import'!$A83)),0,VALUE(MID('CFR - XML import'!$A83,SEARCH(\">\",'CFR - XML import'!$A83,1)+1,SEARCH(\"/\",'CFR - XML import'!$A83,1)-SEARCH(\">\",'CFR - XML import'!$A83,1)-2)))","v":0},{"$f":"IF(ISERROR(FIND(L$3,'CFR - XML import'!$A83)),0,VALUE(MID('CFR - XML import'!$A83,SEARCH(\">\",'CFR - XML import'!$A83,1)+1,SEARCH(\"/\",'CFR - XML import'!$A83,1)-SEARCH(\">\",'CFR - XML import'!$A83,1)-2)))","v":0},{"$f":"IF(ISERROR(FIND(M$3,'CFR - XML import'!$A83)),0,VALUE(MID('CFR - XML import'!$A83,SEARCH(\">\",'CFR - XML import'!$A83,1)+1,SEARCH(\"/\",'CFR - XML import'!$A83,1)-SEARCH(\">\",'CFR - XML import'!$A83,1)-2)))","v":0},{"$f":"IF(ISERROR(FIND(N$3,'CFR - XML import'!$A83)),0,VALUE(MID('CFR - XML import'!$A83,SEARCH(\">\",'CFR - XML import'!$A83,1)+1,SEARCH(\"/\",'CFR - XML import'!$A83,1)-SEARCH(\">\",'CFR - XML import'!$A83,1)-2)))","v":0},{"$f":"IF(ISERROR(FIND(O$3,'CFR - XML import'!$A83)),0,VALUE(MID('CFR - XML import'!$A83,SEARCH(\">\",'CFR - XML import'!$A83,1)+1,SEARCH(\"/\",'CFR - XML import'!$A83,1)-SEARCH(\">\",'CFR - XML import'!$A83,1)-2)))","v":0},{"$f":"IF(ISERROR(FIND(P$3,'CFR - XML import'!$A83)),0,VALUE(MID('CFR - XML import'!$A83,SEARCH(\">\",'CFR - XML import'!$A83,1)+1,SEARCH(\"/\",'CFR - XML import'!$A83,1)-SEARCH(\">\",'CFR - XML import'!$A83,1)-2)))","v":0},{"$f":"IF(ISERROR(FIND(Q$3,'CFR - XML import'!$A83)),0,VALUE(MID('CFR - XML import'!$A83,SEARCH(\">\",'CFR - XML import'!$A83,1)+1,SEARCH(\"/\",'CFR - XML import'!$A83,1)-SEARCH(\">\",'CFR - XML import'!$A83,1)-2)))","v":0},{"$f":"IF(ISERROR(FIND(R$3,'CFR - XML import'!$A83)),0,VALUE(MID('CFR - XML import'!$A83,SEARCH(\">\",'CFR - XML import'!$A83,1)+1,SEARCH(\"/\",'CFR - XML import'!$A83,1)-SEARCH(\">\",'CFR - XML import'!$A83,1)-2)))","v":0},{"$f":"IF(ISERROR(FIND(S$3,'CFR - XML import'!$A83)),0,VALUE(MID('CFR - XML import'!$A83,SEARCH(\">\",'CFR - XML import'!$A83,1)+1,SEARCH(\"/\",'CFR - XML import'!$A83,1)-SEARCH(\">\",'CFR - XML import'!$A83,1)-2)))","v":0},{"$f":"IF(ISERROR(FIND(T$3,'CFR - XML import'!$A83)),0,VALUE(MID('CFR - XML import'!$A83,SEARCH(\">\",'CFR - XML import'!$A83,1)+1,SEARCH(\"/\",'CFR - XML import'!$A83,1)-SEARCH(\">\",'CFR - XML import'!$A83,1)-2)))","v":0},{"$f":"IF(ISERROR(FIND(U$3,'CFR - XML import'!$A83)),0,VALUE(MID('CFR - XML import'!$A83,SEARCH(\">\",'CFR - XML import'!$A83,1)+1,SEARCH(\"/\",'CFR - XML import'!$A83,1)-SEARCH(\">\",'CFR - XML import'!$A83,1)-2)))","v":0},{"$f":"IF(ISERROR(FIND(V$3,'CFR - XML import'!$A83)),0,VALUE(MID('CFR - XML import'!$A83,SEARCH(\">\",'CFR - XML import'!$A83,1)+1,SEARCH(\"/\",'CFR - XML import'!$A83,1)-SEARCH(\">\",'CFR - XML import'!$A83,1)-2)))","v":0},{"$f":"IF(ISERROR(FIND(W$3,'CFR - XML import'!$A83)),0,VALUE(MID('CFR - XML import'!$A83,SEARCH(\">\",'CFR - XML import'!$A83,1)+1,SEARCH(\"/\",'CFR - XML import'!$A83,1)-SEARCH(\">\",'CFR - XML import'!$A83,1)-2)))","v":0},null,{"$f":"IF(ISERROR(FIND(Y$3,'CFR - XML import'!$A83)),0,VALUE(MID('CFR - XML import'!$A83,SEARCH(\">\",'CFR - XML import'!$A83,1)+1,SEARCH(\"/\",'CFR - XML import'!$A83,1)-SEARCH(\">\",'CFR - XML import'!$A83,1)-2)))","v":0},{"$f":"IF(ISERROR(FIND(Z$3,'CFR - XML import'!$A83)),0,VALUE(MID('CFR - XML import'!$A83,SEARCH(\">\",'CFR - XML import'!$A83,1)+1,SEARCH(\"/\",'CFR - XML import'!$A83,1)-SEARCH(\">\",'CFR - XML import'!$A83,1)-2)))","v":0},{"$f":"IF(ISERROR(FIND(AA$3,'CFR - XML import'!$A83)),0,VALUE(MID('CFR - XML import'!$A83,SEARCH(\">\",'CFR - XML import'!$A83,1)+1,SEARCH(\"/\",'CFR - XML import'!$A83,1)-SEARCH(\">\",'CFR - XML import'!$A83,1)-2)))","v":0},{"$f":"IF(ISERROR(FIND(AB$3,'CFR - XML import'!$A83)),0,VALUE(MID('CFR - XML import'!$A83,SEARCH(\">\",'CFR - XML import'!$A83,1)+1,SEARCH(\"/\",'CFR - XML import'!$A83,1)-SEARCH(\">\",'CFR - XML import'!$A83,1)-2)))","v":0},{"$f":"IF(ISERROR(FIND(AC$3,'CFR - XML import'!$A83)),0,VALUE(MID('CFR - XML import'!$A83,SEARCH(\">\",'CFR - XML import'!$A83,1)+1,SEARCH(\"/\",'CFR - XML import'!$A83,1)-SEARCH(\">\",'CFR - XML import'!$A83,1)-2)))","v":0},{"$f":"IF(ISERROR(FIND(AD$3,'CFR - XML import'!$A83)),0,VALUE(MID('CFR - XML import'!$A83,SEARCH(\">\",'CFR - XML import'!$A83,1)+1,SEARCH(\"/\",'CFR - XML import'!$A83,1)-SEARCH(\">\",'CFR - XML import'!$A83,1)-2)))","v":0},{"$f":"IF(ISERROR(FIND(AE$3,'CFR - XML import'!$A83)),0,VALUE(MID('CFR - XML import'!$A83,SEARCH(\">\",'CFR - XML import'!$A83,1)+1,SEARCH(\"/\",'CFR - XML import'!$A83,1)-SEARCH(\">\",'CFR - XML import'!$A83,1)-2)))","v":0},{"$f":"IF(ISERROR(FIND(AF$3,'CFR - XML import'!$A83)),0,VALUE(MID('CFR - XML import'!$A83,SEARCH(\">\",'CFR - XML import'!$A83,1)+1,SEARCH(\"/\",'CFR - XML import'!$A83,1)-SEARCH(\">\",'CFR - XML import'!$A83,1)-2)))","v":0},{"$f":"IF(ISERROR(FIND(AG$3,'CFR - XML import'!$A83)),0,VALUE(MID('CFR - XML import'!$A83,SEARCH(\">\",'CFR - XML import'!$A83,1)+1,SEARCH(\"/\",'CFR - XML import'!$A83,1)-SEARCH(\">\",'CFR - XML import'!$A83,1)-2)))","v":0},{"$f":"IF(ISERROR(FIND(AH$3,'CFR - XML import'!$A83)),0,VALUE(MID('CFR - XML import'!$A83,SEARCH(\">\",'CFR - XML import'!$A83,1)+1,SEARCH(\"/\",'CFR - XML import'!$A83,1)-SEARCH(\">\",'CFR - XML import'!$A83,1)-2)))","v":0},{"$f":"IF(ISERROR(FIND(AI$3,'CFR - XML import'!$A83)),0,VALUE(MID('CFR - XML import'!$A83,SEARCH(\">\",'CFR - XML import'!$A83,1)+1,SEARCH(\"/\",'CFR - XML import'!$A83,1)-SEARCH(\">\",'CFR - XML import'!$A83,1)-2)))","v":0},{"$f":"IF(ISERROR(FIND(AJ$3,'CFR - XML import'!$A83)),0,VALUE(MID('CFR - XML import'!$A83,SEARCH(\">\",'CFR - XML import'!$A83,1)+1,SEARCH(\"/\",'CFR - XML import'!$A83,1)-SEARCH(\">\",'CFR - XML import'!$A83,1)-2)))","v":0},{"$f":"IF(ISERROR(FIND(AK$3,'CFR - XML import'!$A83)),0,VALUE(MID('CFR - XML import'!$A83,SEARCH(\">\",'CFR - XML import'!$A83,1)+1,SEARCH(\"/\",'CFR - XML import'!$A83,1)-SEARCH(\">\",'CFR - XML import'!$A83,1)-2)))","v":0},{"$f":"IF(ISERROR(FIND(AL$3,'CFR - XML import'!$A83)),0,VALUE(MID('CFR - XML import'!$A83,SEARCH(\">\",'CFR - XML import'!$A83,1)+1,SEARCH(\"/\",'CFR - XML import'!$A83,1)-SEARCH(\">\",'CFR - XML import'!$A83,1)-2)))","v":0},{"$f":"IF(ISERROR(FIND(AM$3,'CFR - XML import'!$A83)),0,VALUE(MID('CFR - XML import'!$A83,SEARCH(\">\",'CFR - XML import'!$A83,1)+1,SEARCH(\"/\",'CFR - XML import'!$A83,1)-SEARCH(\">\",'CFR - XML import'!$A83,1)-2)))","v":0},{"$f":"IF(ISERROR(FIND(AN$3,'CFR - XML import'!$A83)),0,VALUE(MID('CFR - XML import'!$A83,SEARCH(\">\",'CFR - XML import'!$A83,1)+1,SEARCH(\"/\",'CFR - XML import'!$A83,1)-SEARCH(\">\",'CFR - XML import'!$A83,1)-2)))","v":0},{"$f":"IF(ISERROR(FIND(AO$3,'CFR - XML import'!$A83)),0,VALUE(MID('CFR - XML import'!$A83,SEARCH(\">\",'CFR - XML import'!$A83,1)+1,SEARCH(\"/\",'CFR - XML import'!$A83,1)-SEARCH(\">\",'CFR - XML import'!$A83,1)-2)))","v":0},{"$f":"IF(ISERROR(FIND(AP$3,'CFR - XML import'!$A83)),0,VALUE(MID('CFR - XML import'!$A83,SEARCH(\">\",'CFR - XML import'!$A83,1)+1,SEARCH(\"/\",'CFR - XML import'!$A83,1)-SEARCH(\">\",'CFR - XML import'!$A83,1)-2)))","v":0},{"$f":"IF(ISERROR(FIND(AQ$3,'CFR - XML import'!$A83)),0,VALUE(MID('CFR - XML import'!$A83,SEARCH(\">\",'CFR - XML import'!$A83,1)+1,SEARCH(\"/\",'CFR - XML import'!$A83,1)-SEARCH(\">\",'CFR - XML import'!$A83,1)-2)))","v":0},{"$f":"IF(ISERROR(FIND(AR$3,'CFR - XML import'!$A83)),0,VALUE(MID('CFR - XML import'!$A83,SEARCH(\">\",'CFR - XML import'!$A83,1)+1,SEARCH(\"/\",'CFR - XML import'!$A83,1)-SEARCH(\">\",'CFR - XML import'!$A83,1)-2)))","v":0},{"$f":"IF(ISERROR(FIND(AS$3,'CFR - XML import'!$A83)),0,VALUE(MID('CFR - XML import'!$A83,SEARCH(\">\",'CFR - XML import'!$A83,1)+1,SEARCH(\"/\",'CFR - XML import'!$A83,1)-SEARCH(\">\",'CFR - XML import'!$A83,1)-2)))","v":0},{"$f":"IF(ISERROR(FIND(AT$3,'CFR - XML import'!$A83)),0,VALUE(MID('CFR - XML import'!$A83,SEARCH(\">\",'CFR - XML import'!$A83,1)+1,SEARCH(\"/\",'CFR - XML import'!$A83,1)-SEARCH(\">\",'CFR - XML import'!$A83,1)-2)))","v":0},{"$f":"IF(ISERROR(FIND(AU$3,'CFR - XML import'!$A83)),0,VALUE(MID('CFR - XML import'!$A83,SEARCH(\">\",'CFR - XML import'!$A83,1)+1,SEARCH(\"/\",'CFR - XML import'!$A83,1)-SEARCH(\">\",'CFR - XML import'!$A83,1)-2)))","v":0},{"$f":"IF(ISERROR(FIND(AV$3,'CFR - XML import'!$A83)),0,VALUE(MID('CFR - XML import'!$A83,SEARCH(\">\",'CFR - XML import'!$A83,1)+1,SEARCH(\"/\",'CFR - XML import'!$A83,1)-SEARCH(\">\",'CFR - XML import'!$A83,1)-2)))","v":0},{"$f":"IF(ISERROR(FIND(AW$3,'CFR - XML import'!$A83)),0,VALUE(MID('CFR - XML import'!$A83,SEARCH(\">\",'CFR - XML import'!$A83,1)+1,SEARCH(\"/\",'CFR - XML import'!$A83,1)-SEARCH(\">\",'CFR - XML import'!$A83,1)-2)))","v":0},{"$f":"IF(ISERROR(FIND(AX$3,'CFR - XML import'!$A83)),0,VALUE(MID('CFR - XML import'!$A83,SEARCH(\">\",'CFR - XML import'!$A83,1)+1,SEARCH(\"/\",'CFR - XML import'!$A83,1)-SEARCH(\">\",'CFR - XML import'!$A83,1)-2)))","v":0},{"$f":"IF(ISERROR(FIND(AY$3,'CFR - XML import'!$A83)),0,VALUE(MID('CFR - XML import'!$A83,SEARCH(\">\",'CFR - XML import'!$A83,1)+1,SEARCH(\"/\",'CFR - XML import'!$A83,1)-SEARCH(\">\",'CFR - XML import'!$A83,1)-2)))","v":0},{"$f":"IF(ISERROR(FIND(AZ$3,'CFR - XML import'!$A83)),0,VALUE(MID('CFR - XML import'!$A83,SEARCH(\">\",'CFR - XML import'!$A83,1)+1,SEARCH(\"/\",'CFR - XML import'!$A83,1)-SEARCH(\">\",'CFR - XML import'!$A83,1)-2)))","v":0},{"$f":"IF(ISERROR(FIND(BA$3,'CFR - XML import'!$A83)),0,VALUE(MID('CFR - XML import'!$A83,SEARCH(\">\",'CFR - XML import'!$A83,1)+1,SEARCH(\"/\",'CFR - XML import'!$A83,1)-SEARCH(\">\",'CFR - XML import'!$A83,1)-2)))","v":0},{"$f":"IF(ISERROR(FIND(BB$3,'CFR - XML import'!$A83)),0,VALUE(MID('CFR - XML import'!$A83,SEARCH(\">\",'CFR - XML import'!$A83,1)+1,SEARCH(\"/\",'CFR - XML import'!$A83,1)-SEARCH(\">\",'CFR - XML import'!$A83,1)-2)))","v":0},{"$f":"IF(ISERROR(FIND(BC$3,'CFR - XML import'!$A83)),0,VALUE(MID('CFR - XML import'!$A83,SEARCH(\">\",'CFR - XML import'!$A83,1)+1,SEARCH(\"/\",'CFR - XML import'!$A83,1)-SEARCH(\">\",'CFR - XML import'!$A83,1)-2)))","v":0},{"$f":"IF(ISERROR(FIND(BD$3,'CFR - XML import'!$A83)),0,VALUE(MID('CFR - XML import'!$A83,SEARCH(\">\",'CFR - XML import'!$A83,1)+1,SEARCH(\"/\",'CFR - XML import'!$A83,1)-SEARCH(\">\",'CFR - XML import'!$A83,1)-2)))","v":0},{"$f":"IF(ISERROR(FIND(BE$3,'CFR - XML import'!$A83)),0,VALUE(MID('CFR - XML import'!$A83,SEARCH(\">\",'CFR - XML import'!$A83,1)+1,SEARCH(\"/\",'CFR - XML import'!$A83,1)-SEARCH(\">\",'CFR - XML import'!$A83,1)-2)))","v":0},{"$f":"IF(ISERROR(FIND(BF$3,'CFR - XML import'!$A83)),0,VALUE(MID('CFR - XML import'!$A83,SEARCH(\">\",'CFR - XML import'!$A83,1)+1,SEARCH(\"/\",'CFR - XML import'!$A83,1)-SEARCH(\">\",'CFR - XML import'!$A83,1)-2)))","v":0},{"$f":"IF(ISERROR(FIND(BG$3,'CFR - XML import'!$A83)),0,VALUE(MID('CFR - XML import'!$A83,SEARCH(\">\",'CFR - XML import'!$A83,1)+1,SEARCH(\"/\",'CFR - XML import'!$A83,1)-SEARCH(\">\",'CFR - XML import'!$A83,1)-2)))","v":0},{"$f":"IF(ISERROR(FIND(BH$3,'CFR - XML import'!$A83)),0,VALUE(MID('CFR - XML import'!$A83,SEARCH(\">\",'CFR - XML import'!$A83,1)+1,SEARCH(\"/\",'CFR - XML import'!$A83,1)-SEARCH(\">\",'CFR - XML import'!$A83,1)-2)))","v":0},{"$f":"IF(ISERROR(FIND(BI$3,'CFR - XML import'!$A83)),0,VALUE(MID('CFR - XML import'!$A83,SEARCH(\">\",'CFR - XML import'!$A83,1)+1,SEARCH(\"/\",'CFR - XML import'!$A83,1)-SEARCH(\">\",'CFR - XML import'!$A83,1)-2)))","v":0},{"$f":"IF(ISERROR(FIND(BJ$3,'CFR - XML import'!$A83)),0,VALUE(MID('CFR - XML import'!$A83,SEARCH(\">\",'CFR - XML import'!$A83,1)+1,SEARCH(\"/\",'CFR - XML import'!$A83,1)-SEARCH(\">\",'CFR - XML import'!$A83,1)-2)))","v":0},{"$f":"IF(ISERROR(FIND(BK$3,'CFR - XML import'!$A83)),0,VALUE(MID('CFR - XML import'!$A83,SEARCH(\">\",'CFR - XML import'!$A83,1)+1,SEARCH(\"/\",'CFR - XML import'!$A83,1)-SEARCH(\">\",'CFR - XML import'!$A83,1)-2)))","v":0},{"$f":"IF(ISERROR(FIND(BL$3,'CFR - XML import'!$A83)),0,VALUE(MID('CFR - XML import'!$A83,SEARCH(\">\",'CFR - XML import'!$A83,1)+1,SEARCH(\"/\",'CFR - XML import'!$A83,1)-SEARCH(\">\",'CFR - XML import'!$A83,1)-2)))","v":0},{"$f":"IF(ISERROR(FIND(BM$3,'CFR - XML import'!$A83)),0,VALUE(MID('CFR - XML import'!$A83,SEARCH(\">\",'CFR - XML import'!$A83,1)+1,SEARCH(\"/\",'CFR - XML import'!$A83,1)-SEARCH(\">\",'CFR - XML import'!$A83,1)-2)))","v":0},{"$f":"IF(ISERROR(FIND(BN$3,'CFR - XML import'!$A83)),0,VALUE(MID('CFR - XML import'!$A83,SEARCH(\">\",'CFR - XML import'!$A83,1)+1,SEARCH(\"/\",'CFR - XML import'!$A83,1)-SEARCH(\">\",'CFR - XML import'!$A83,1)-2)))","v":0},{"$f":"IF(ISERROR(FIND(BO$3,'CFR - XML import'!$A83)),0,VALUE(MID('CFR - XML import'!$A83,SEARCH(\">\",'CFR - XML import'!$A83,1)+1,SEARCH(\"/\",'CFR - XML import'!$A83,1)-SEARCH(\">\",'CFR - XML import'!$A83,1)-2)))","v":0},{"$f":"IF(ISERROR(FIND(BP$3,'CFR - XML import'!$A83)),0,VALUE(MID('CFR - XML import'!$A83,SEARCH(\">\",'CFR - XML import'!$A83,1)+1,SEARCH(\"/\",'CFR - XML import'!$A83,1)-SEARCH(\">\",'CFR - XML import'!$A83,1)-2)))","v":0},{"$f":"IF(ISERROR(FIND(BQ$3,'CFR - XML import'!$A83)),0,VALUE(MID('CFR - XML import'!$A83,SEARCH(\">\",'CFR - XML import'!$A83,1)+1,SEARCH(\"/\",'CFR - XML import'!$A83,1)-SEARCH(\">\",'CFR - XML import'!$A83,1)-2)))","v":0},{"$f":"IF(ISERROR(FIND(BR$3,'CFR - XML import'!$A83)),0,VALUE(MID('CFR - XML import'!$A83,SEARCH(\">\",'CFR - XML import'!$A83,1)+1,SEARCH(\"/\",'CFR - XML import'!$A83,1)-SEARCH(\">\",'CFR - XML import'!$A83,1)-2)))","v":0},{"$f":"IF(ISERROR(FIND(BS$3,'CFR - XML import'!$A83)),0,VALUE(MID('CFR - XML import'!$A83,SEARCH(\">\",'CFR - XML import'!$A83,1)+1,SEARCH(\"/\",'CFR - XML import'!$A83,1)-SEARCH(\">\",'CFR - XML import'!$A83,1)-2)))","v":0},{"$f":"IF(ISERROR(FIND(BT$3,'CFR - XML import'!$A83)),0,VALUE(MID('CFR - XML import'!$A83,SEARCH(\">\",'CFR - XML import'!$A83,1)+1,SEARCH(\"/\",'CFR - XML import'!$A83,1)-SEARCH(\">\",'CFR - XML import'!$A83,1)-2)))","v":0},{"$f":"IF(ISERROR(FIND(BU$3,'CFR - XML import'!$A83)),0,VALUE(MID('CFR - XML import'!$A83,SEARCH(\">\",'CFR - XML import'!$A83,1)+1,SEARCH(\"/\",'CFR - XML import'!$A83,1)-SEARCH(\">\",'CFR - XML import'!$A83,1)-2)))","v":0},{"$f":"IF(ISERROR(FIND(BV$3,'CFR - XML import'!$A83)),0,VALUE(MID('CFR - XML import'!$A83,SEARCH(\">\",'CFR - XML import'!$A83,1)+1,SEARCH(\"/\",'CFR - XML import'!$A83,1)-SEARCH(\">\",'CFR - XML import'!$A83,1)-2)))","v":0},{"$f":"IF(ISERROR(FIND(BW$3,'CFR - XML import'!$A83)),0,VALUE(MID('CFR - XML import'!$A83,SEARCH(\">\",'CFR - XML import'!$A83,1)+1,SEARCH(\"/\",'CFR - XML import'!$A83,1)-SEARCH(\">\",'CFR - XML import'!$A83,1)-2)))","v":0},{"$f":"IF(ISERROR(FIND(BX$3,'CFR - XML import'!$A83)),0,VALUE(MID('CFR - XML import'!$A83,SEARCH(\">\",'CFR - XML import'!$A83,1)+1,SEARCH(\"/\",'CFR - XML import'!$A83,1)-SEARCH(\">\",'CFR - XML import'!$A83,1)-2)))","v":0},{"$f":"IF(ISERROR(FIND(BY$3,'CFR - XML import'!$A83)),0,VALUE(MID('CFR - XML import'!$A83,SEARCH(\">\",'CFR - XML import'!$A83,1)+1,SEARCH(\"/\",'CFR - XML import'!$A83,1)-SEARCH(\">\",'CFR - XML import'!$A83,1)-2)))","v":0},{"$f":"IF(ISERROR(FIND(BZ$3,'CFR - XML import'!$A83)),0,VALUE(MID('CFR - XML import'!$A83,SEARCH(\">\",'CFR - XML import'!$A83,1)+1,SEARCH(\"/\",'CFR - XML import'!$A83,1)-SEARCH(\">\",'CFR - XML import'!$A83,1)-2)))","v":0},null,null,null,null,null,null,{"$f":"IF(ISERROR(IF(MID('CFR - XML import'!$A83,LEN($CF$4)+1,LEN('CFR - XML import'!$A83)-(2*LEN($CF$4)+1))=\"RMMS\",1,IF(MID('CFR - XML import'!$A83,LEN(\"    <InputSystem>\")+1,LEN('CFR - XML import'!$A83)-(LEN(\"    <InputSystem>\")+LEN($CF$4)+1))=\"SIMS\",2,0))),0,IF(MID('CFR - XML import'!$A83,LEN($CF$4)+1,LEN('CFR - XML import'!$A83)-(2*LEN($CF$4)+1))=\"RMMS\",1,IF(MID('CFR - XML import'!$A83,LEN(\"    <InputSystem>\")+1,LEN('CFR - XML import'!$A83)-(LEN(\"    <InputSystem>\")+LEN($CF$4)+1))=\"SIMS\",2,0)))","v":0},{"$f":"IF(ISERROR(FIND(CH$3,'CFR - XML import'!$A83)),0,MID('CFR - XML import'!$A83,SEARCH(\">\",'CFR - XML import'!$A83,1)+1,SEARCH(\"/\",'CFR - XML import'!$A83,1)-SEARCH(\">\",'CFR - XML import'!$A83,1)-2))","v":0},{"$f":"IF(ISERROR(FIND(CI$3,'CFR - XML import'!$A83)),0,MID('CFR - XML import'!$A83,SEARCH(\">\",'CFR - XML import'!$A83,1)+1,SEARCH(\"/\",'CFR - XML import'!$A83,1)-SEARCH(\">\",'CFR - XML import'!$A83,1)-2))","v":0},{"$f":"IF(ISERROR(FIND(CJ$3,'CFR - XML import'!$A83)),0,MID('CFR - XML import'!$A83,SEARCH(\">\",'CFR - XML import'!$A83,1)+1,SEARCH(\"/\",'CFR - XML import'!$A83,1)-SEARCH(\">\",'CFR - XML import'!$A83,1)-2))","v":0},{"$f":"IF(ISERROR(FIND(CK$3,'CFR - XML import'!$A83)),0,MID('CFR - XML import'!$A83,SEARCH(\">\",'CFR - XML import'!$A83,1)+1,SEARCH(\"/\",'CFR - XML import'!$A83,1)-SEARCH(\">\",'CFR - XML import'!$A83,1)-2))","v":0},{"$f":"IF(ISERROR(FIND(CL$3,'CFR - XML import'!$A83)),0,MID('CFR - XML import'!$A83,SEARCH(\">\",'CFR - XML import'!$A83,1)+1,SEARCH(\"/\",'CFR - XML import'!$A83,1)-SEARCH(\">\",'CFR - XML import'!$A83,1)-2))","v":0}]
[{"$f":"IF(AND('CFR - XML import'!A84<>\"\",LEFT('CFR - XML import'!A84,1)<>\"<\",LEFT('CFR - XML import'!A84,3)<>\"  <\",LEFT('CFR - XML import'!A84,5)<>\"    <\",LEFT('CFR - XML import'!A84,7)<>\"      <\",LEFT('CFR - XML import'!A84,9)<>\"        <\",$B$1=\"SIMS\"),'CFR - XML import'!A84,IF(AND(LEFT('CFR - XML import'!A84,9)=\"<Details>\",$B$1=\"RM\"),'CFR - XML import'!A84,\"\"))","v":""},{"$f":"IF(ISERROR(FIND(B$3,'CFR - XML import'!$A84)),0,VALUE(MID('CFR - XML import'!$A84,SEARCH(\">\",'CFR - XML import'!$A84,1)+1,SEARCH(\"/\",'CFR - XML import'!$A84,1)-SEARCH(\">\",'CFR - XML import'!$A84,1)-2)))","v":0},null,{"$f":"IF(ISERROR(FIND(D$3,'CFR - XML import'!$A84)),0,MID('CFR - XML import'!$A84,SEARCH(\">\",'CFR - XML import'!$A84,1)+1,SEARCH(\"/\",'CFR - XML import'!$A84,1)-SEARCH(\">\",'CFR - XML import'!$A84,1)-2))","v":0},{"$f":"IF(ISERROR(FIND(E$3,'CFR - XML import'!$A84)),0,MID('CFR - XML import'!$A84,SEARCH(\">\",'CFR - XML import'!$A84,1)+1,SEARCH(\"/\",'CFR - XML import'!$A84,1)-SEARCH(\">\",'CFR - XML import'!$A84,1)-2))","v":0},{"$f":"IF($B$1=\"SIMS\",IF(ISERROR(FIND(F$3,'CFR - XML import'!$A84)),0,VALUE(MID('CFR - XML import'!$A84,15,10))),IF(ISERROR(FIND(F$3,'CFR - XML import'!$A84)),0,VALUE(MID('CFR - XML import'!$A84,11,10))))","v":"00:00:00"},{"$f":"IF(ISERROR(FIND(G$3,'CFR - XML import'!$A84)),0,VALUE(MID('CFR - XML import'!$A84,SEARCH(\">\",'CFR - XML import'!$A84,1)+1,SEARCH(\"/\",'CFR - XML import'!$A84,1)-SEARCH(\">\",'CFR - XML import'!$A84,1)-2)))","v":0},{"$f":"IF(ISERROR(FIND(H$3,'CFR - XML import'!$A84)),0,VALUE(MID('CFR - XML import'!$A84,SEARCH(\">\",'CFR - XML import'!$A84,1)+1,SEARCH(\"/\",'CFR - XML import'!$A84,1)-SEARCH(\">\",'CFR - XML import'!$A84,1)-2)))","v":0},{"$f":"IF(ISERROR(FIND(I$3,'CFR - XML import'!$A84)),0,VALUE(MID('CFR - XML import'!$A84,SEARCH(\">\",'CFR - XML import'!$A84,1)+1,SEARCH(\"/\",'CFR - XML import'!$A84,1)-SEARCH(\">\",'CFR - XML import'!$A84,1)-2)))","v":0},{"$f":"IF(ISERROR(FIND(J$3,'CFR - XML import'!$A84)),0,VALUE(MID('CFR - XML import'!$A84,SEARCH(\">\",'CFR - XML import'!$A84,1)+1,SEARCH(\"/\",'CFR - XML import'!$A84,1)-SEARCH(\">\",'CFR - XML import'!$A84,1)-2)))","v":0},{"$f":"IF(ISERROR(FIND(K$3,'CFR - XML import'!$A84)),0,VALUE(MID('CFR - XML import'!$A84,SEARCH(\">\",'CFR - XML import'!$A84,1)+1,SEARCH(\"/\",'CFR - XML import'!$A84,1)-SEARCH(\">\",'CFR - XML import'!$A84,1)-2)))","v":0},{"$f":"IF(ISERROR(FIND(L$3,'CFR - XML import'!$A84)),0,VALUE(MID('CFR - XML import'!$A84,SEARCH(\">\",'CFR - XML import'!$A84,1)+1,SEARCH(\"/\",'CFR - XML import'!$A84,1)-SEARCH(\">\",'CFR - XML import'!$A84,1)-2)))","v":0},{"$f":"IF(ISERROR(FIND(M$3,'CFR - XML import'!$A84)),0,VALUE(MID('CFR - XML import'!$A84,SEARCH(\">\",'CFR - XML import'!$A84,1)+1,SEARCH(\"/\",'CFR - XML import'!$A84,1)-SEARCH(\">\",'CFR - XML import'!$A84,1)-2)))","v":0},{"$f":"IF(ISERROR(FIND(N$3,'CFR - XML import'!$A84)),0,VALUE(MID('CFR - XML import'!$A84,SEARCH(\">\",'CFR - XML import'!$A84,1)+1,SEARCH(\"/\",'CFR - XML import'!$A84,1)-SEARCH(\">\",'CFR - XML import'!$A84,1)-2)))","v":0},{"$f":"IF(ISERROR(FIND(O$3,'CFR - XML import'!$A84)),0,VALUE(MID('CFR - XML import'!$A84,SEARCH(\">\",'CFR - XML import'!$A84,1)+1,SEARCH(\"/\",'CFR - XML import'!$A84,1)-SEARCH(\">\",'CFR - XML import'!$A84,1)-2)))","v":0},{"$f":"IF(ISERROR(FIND(P$3,'CFR - XML import'!$A84)),0,VALUE(MID('CFR - XML import'!$A84,SEARCH(\">\",'CFR - XML import'!$A84,1)+1,SEARCH(\"/\",'CFR - XML import'!$A84,1)-SEARCH(\">\",'CFR - XML import'!$A84,1)-2)))","v":0},{"$f":"IF(ISERROR(FIND(Q$3,'CFR - XML import'!$A84)),0,VALUE(MID('CFR - XML import'!$A84,SEARCH(\">\",'CFR - XML import'!$A84,1)+1,SEARCH(\"/\",'CFR - XML import'!$A84,1)-SEARCH(\">\",'CFR - XML import'!$A84,1)-2)))","v":0},{"$f":"IF(ISERROR(FIND(R$3,'CFR - XML import'!$A84)),0,VALUE(MID('CFR - XML import'!$A84,SEARCH(\">\",'CFR - XML import'!$A84,1)+1,SEARCH(\"/\",'CFR - XML import'!$A84,1)-SEARCH(\">\",'CFR - XML import'!$A84,1)-2)))","v":0},{"$f":"IF(ISERROR(FIND(S$3,'CFR - XML import'!$A84)),0,VALUE(MID('CFR - XML import'!$A84,SEARCH(\">\",'CFR - XML import'!$A84,1)+1,SEARCH(\"/\",'CFR - XML import'!$A84,1)-SEARCH(\">\",'CFR - XML import'!$A84,1)-2)))","v":0},{"$f":"IF(ISERROR(FIND(T$3,'CFR - XML import'!$A84)),0,VALUE(MID('CFR - XML import'!$A84,SEARCH(\">\",'CFR - XML import'!$A84,1)+1,SEARCH(\"/\",'CFR - XML import'!$A84,1)-SEARCH(\">\",'CFR - XML import'!$A84,1)-2)))","v":0},{"$f":"IF(ISERROR(FIND(U$3,'CFR - XML import'!$A84)),0,VALUE(MID('CFR - XML import'!$A84,SEARCH(\">\",'CFR - XML import'!$A84,1)+1,SEARCH(\"/\",'CFR - XML import'!$A84,1)-SEARCH(\">\",'CFR - XML import'!$A84,1)-2)))","v":0},{"$f":"IF(ISERROR(FIND(V$3,'CFR - XML import'!$A84)),0,VALUE(MID('CFR - XML import'!$A84,SEARCH(\">\",'CFR - XML import'!$A84,1)+1,SEARCH(\"/\",'CFR - XML import'!$A84,1)-SEARCH(\">\",'CFR - XML import'!$A84,1)-2)))","v":0},{"$f":"IF(ISERROR(FIND(W$3,'CFR - XML import'!$A84)),0,VALUE(MID('CFR - XML import'!$A84,SEARCH(\">\",'CFR - XML import'!$A84,1)+1,SEARCH(\"/\",'CFR - XML import'!$A84,1)-SEARCH(\">\",'CFR - XML import'!$A84,1)-2)))","v":0},null,{"$f":"IF(ISERROR(FIND(Y$3,'CFR - XML import'!$A84)),0,VALUE(MID('CFR - XML import'!$A84,SEARCH(\">\",'CFR - XML import'!$A84,1)+1,SEARCH(\"/\",'CFR - XML import'!$A84,1)-SEARCH(\">\",'CFR - XML import'!$A84,1)-2)))","v":0},{"$f":"IF(ISERROR(FIND(Z$3,'CFR - XML import'!$A84)),0,VALUE(MID('CFR - XML import'!$A84,SEARCH(\">\",'CFR - XML import'!$A84,1)+1,SEARCH(\"/\",'CFR - XML import'!$A84,1)-SEARCH(\">\",'CFR - XML import'!$A84,1)-2)))","v":0},{"$f":"IF(ISERROR(FIND(AA$3,'CFR - XML import'!$A84)),0,VALUE(MID('CFR - XML import'!$A84,SEARCH(\">\",'CFR - XML import'!$A84,1)+1,SEARCH(\"/\",'CFR - XML import'!$A84,1)-SEARCH(\">\",'CFR - XML import'!$A84,1)-2)))","v":0},{"$f":"IF(ISERROR(FIND(AB$3,'CFR - XML import'!$A84)),0,VALUE(MID('CFR - XML import'!$A84,SEARCH(\">\",'CFR - XML import'!$A84,1)+1,SEARCH(\"/\",'CFR - XML import'!$A84,1)-SEARCH(\">\",'CFR - XML import'!$A84,1)-2)))","v":0},{"$f":"IF(ISERROR(FIND(AC$3,'CFR - XML import'!$A84)),0,VALUE(MID('CFR - XML import'!$A84,SEARCH(\">\",'CFR - XML import'!$A84,1)+1,SEARCH(\"/\",'CFR - XML import'!$A84,1)-SEARCH(\">\",'CFR - XML import'!$A84,1)-2)))","v":0},{"$f":"IF(ISERROR(FIND(AD$3,'CFR - XML import'!$A84)),0,VALUE(MID('CFR - XML import'!$A84,SEARCH(\">\",'CFR - XML import'!$A84,1)+1,SEARCH(\"/\",'CFR - XML import'!$A84,1)-SEARCH(\">\",'CFR - XML import'!$A84,1)-2)))","v":0},{"$f":"IF(ISERROR(FIND(AE$3,'CFR - XML import'!$A84)),0,VALUE(MID('CFR - XML import'!$A84,SEARCH(\">\",'CFR - XML import'!$A84,1)+1,SEARCH(\"/\",'CFR - XML import'!$A84,1)-SEARCH(\">\",'CFR - XML import'!$A84,1)-2)))","v":0},{"$f":"IF(ISERROR(FIND(AF$3,'CFR - XML import'!$A84)),0,VALUE(MID('CFR - XML import'!$A84,SEARCH(\">\",'CFR - XML import'!$A84,1)+1,SEARCH(\"/\",'CFR - XML import'!$A84,1)-SEARCH(\">\",'CFR - XML import'!$A84,1)-2)))","v":0},{"$f":"IF(ISERROR(FIND(AG$3,'CFR - XML import'!$A84)),0,VALUE(MID('CFR - XML import'!$A84,SEARCH(\">\",'CFR - XML import'!$A84,1)+1,SEARCH(\"/\",'CFR - XML import'!$A84,1)-SEARCH(\">\",'CFR - XML import'!$A84,1)-2)))","v":0},{"$f":"IF(ISERROR(FIND(AH$3,'CFR - XML import'!$A84)),0,VALUE(MID('CFR - XML import'!$A84,SEARCH(\">\",'CFR - XML import'!$A84,1)+1,SEARCH(\"/\",'CFR - XML import'!$A84,1)-SEARCH(\">\",'CFR - XML import'!$A84,1)-2)))","v":0},{"$f":"IF(ISERROR(FIND(AI$3,'CFR - XML import'!$A84)),0,VALUE(MID('CFR - XML import'!$A84,SEARCH(\">\",'CFR - XML import'!$A84,1)+1,SEARCH(\"/\",'CFR - XML import'!$A84,1)-SEARCH(\">\",'CFR - XML import'!$A84,1)-2)))","v":0},{"$f":"IF(ISERROR(FIND(AJ$3,'CFR - XML import'!$A84)),0,VALUE(MID('CFR - XML import'!$A84,SEARCH(\">\",'CFR - XML import'!$A84,1)+1,SEARCH(\"/\",'CFR - XML import'!$A84,1)-SEARCH(\">\",'CFR - XML import'!$A84,1)-2)))","v":0},{"$f":"IF(ISERROR(FIND(AK$3,'CFR - XML import'!$A84)),0,VALUE(MID('CFR - XML import'!$A84,SEARCH(\">\",'CFR - XML import'!$A84,1)+1,SEARCH(\"/\",'CFR - XML import'!$A84,1)-SEARCH(\">\",'CFR - XML import'!$A84,1)-2)))","v":0},{"$f":"IF(ISERROR(FIND(AL$3,'CFR - XML import'!$A84)),0,VALUE(MID('CFR - XML import'!$A84,SEARCH(\">\",'CFR - XML import'!$A84,1)+1,SEARCH(\"/\",'CFR - XML import'!$A84,1)-SEARCH(\">\",'CFR - XML import'!$A84,1)-2)))","v":0},{"$f":"IF(ISERROR(FIND(AM$3,'CFR - XML import'!$A84)),0,VALUE(MID('CFR - XML import'!$A84,SEARCH(\">\",'CFR - XML import'!$A84,1)+1,SEARCH(\"/\",'CFR - XML import'!$A84,1)-SEARCH(\">\",'CFR - XML import'!$A84,1)-2)))","v":0},{"$f":"IF(ISERROR(FIND(AN$3,'CFR - XML import'!$A84)),0,VALUE(MID('CFR - XML import'!$A84,SEARCH(\">\",'CFR - XML import'!$A84,1)+1,SEARCH(\"/\",'CFR - XML import'!$A84,1)-SEARCH(\">\",'CFR - XML import'!$A84,1)-2)))","v":0},{"$f":"IF(ISERROR(FIND(AO$3,'CFR - XML import'!$A84)),0,VALUE(MID('CFR - XML import'!$A84,SEARCH(\">\",'CFR - XML import'!$A84,1)+1,SEARCH(\"/\",'CFR - XML import'!$A84,1)-SEARCH(\">\",'CFR - XML import'!$A84,1)-2)))","v":0},{"$f":"IF(ISERROR(FIND(AP$3,'CFR - XML import'!$A84)),0,VALUE(MID('CFR - XML import'!$A84,SEARCH(\">\",'CFR - XML import'!$A84,1)+1,SEARCH(\"/\",'CFR - XML import'!$A84,1)-SEARCH(\">\",'CFR - XML import'!$A84,1)-2)))","v":0},{"$f":"IF(ISERROR(FIND(AQ$3,'CFR - XML import'!$A84)),0,VALUE(MID('CFR - XML import'!$A84,SEARCH(\">\",'CFR - XML import'!$A84,1)+1,SEARCH(\"/\",'CFR - XML import'!$A84,1)-SEARCH(\">\",'CFR - XML import'!$A84,1)-2)))","v":0},{"$f":"IF(ISERROR(FIND(AR$3,'CFR - XML import'!$A84)),0,VALUE(MID('CFR - XML import'!$A84,SEARCH(\">\",'CFR - XML import'!$A84,1)+1,SEARCH(\"/\",'CFR - XML import'!$A84,1)-SEARCH(\">\",'CFR - XML import'!$A84,1)-2)))","v":0},{"$f":"IF(ISERROR(FIND(AS$3,'CFR - XML import'!$A84)),0,VALUE(MID('CFR - XML import'!$A84,SEARCH(\">\",'CFR - XML import'!$A84,1)+1,SEARCH(\"/\",'CFR - XML import'!$A84,1)-SEARCH(\">\",'CFR - XML import'!$A84,1)-2)))","v":0},{"$f":"IF(ISERROR(FIND(AT$3,'CFR - XML import'!$A84)),0,VALUE(MID('CFR - XML import'!$A84,SEARCH(\">\",'CFR - XML import'!$A84,1)+1,SEARCH(\"/\",'CFR - XML import'!$A84,1)-SEARCH(\">\",'CFR - XML import'!$A84,1)-2)))","v":0},{"$f":"IF(ISERROR(FIND(AU$3,'CFR - XML import'!$A84)),0,VALUE(MID('CFR - XML import'!$A84,SEARCH(\">\",'CFR - XML import'!$A84,1)+1,SEARCH(\"/\",'CFR - XML import'!$A84,1)-SEARCH(\">\",'CFR - XML import'!$A84,1)-2)))","v":0},{"$f":"IF(ISERROR(FIND(AV$3,'CFR - XML import'!$A84)),0,VALUE(MID('CFR - XML import'!$A84,SEARCH(\">\",'CFR - XML import'!$A84,1)+1,SEARCH(\"/\",'CFR - XML import'!$A84,1)-SEARCH(\">\",'CFR - XML import'!$A84,1)-2)))","v":0},{"$f":"IF(ISERROR(FIND(AW$3,'CFR - XML import'!$A84)),0,VALUE(MID('CFR - XML import'!$A84,SEARCH(\">\",'CFR - XML import'!$A84,1)+1,SEARCH(\"/\",'CFR - XML import'!$A84,1)-SEARCH(\">\",'CFR - XML import'!$A84,1)-2)))","v":0},{"$f":"IF(ISERROR(FIND(AX$3,'CFR - XML import'!$A84)),0,VALUE(MID('CFR - XML import'!$A84,SEARCH(\">\",'CFR - XML import'!$A84,1)+1,SEARCH(\"/\",'CFR - XML import'!$A84,1)-SEARCH(\">\",'CFR - XML import'!$A84,1)-2)))","v":0},{"$f":"IF(ISERROR(FIND(AY$3,'CFR - XML import'!$A84)),0,VALUE(MID('CFR - XML import'!$A84,SEARCH(\">\",'CFR - XML import'!$A84,1)+1,SEARCH(\"/\",'CFR - XML import'!$A84,1)-SEARCH(\">\",'CFR - XML import'!$A84,1)-2)))","v":0},{"$f":"IF(ISERROR(FIND(AZ$3,'CFR - XML import'!$A84)),0,VALUE(MID('CFR - XML import'!$A84,SEARCH(\">\",'CFR - XML import'!$A84,1)+1,SEARCH(\"/\",'CFR - XML import'!$A84,1)-SEARCH(\">\",'CFR - XML import'!$A84,1)-2)))","v":0},{"$f":"IF(ISERROR(FIND(BA$3,'CFR - XML import'!$A84)),0,VALUE(MID('CFR - XML import'!$A84,SEARCH(\">\",'CFR - XML import'!$A84,1)+1,SEARCH(\"/\",'CFR - XML import'!$A84,1)-SEARCH(\">\",'CFR - XML import'!$A84,1)-2)))","v":0},{"$f":"IF(ISERROR(FIND(BB$3,'CFR - XML import'!$A84)),0,VALUE(MID('CFR - XML import'!$A84,SEARCH(\">\",'CFR - XML import'!$A84,1)+1,SEARCH(\"/\",'CFR - XML import'!$A84,1)-SEARCH(\">\",'CFR - XML import'!$A84,1)-2)))","v":0},{"$f":"IF(ISERROR(FIND(BC$3,'CFR - XML import'!$A84)),0,VALUE(MID('CFR - XML import'!$A84,SEARCH(\">\",'CFR - XML import'!$A84,1)+1,SEARCH(\"/\",'CFR - XML import'!$A84,1)-SEARCH(\">\",'CFR - XML import'!$A84,1)-2)))","v":0},{"$f":"IF(ISERROR(FIND(BD$3,'CFR - XML import'!$A84)),0,VALUE(MID('CFR - XML import'!$A84,SEARCH(\">\",'CFR - XML import'!$A84,1)+1,SEARCH(\"/\",'CFR - XML import'!$A84,1)-SEARCH(\">\",'CFR - XML import'!$A84,1)-2)))","v":0},{"$f":"IF(ISERROR(FIND(BE$3,'CFR - XML import'!$A84)),0,VALUE(MID('CFR - XML import'!$A84,SEARCH(\">\",'CFR - XML import'!$A84,1)+1,SEARCH(\"/\",'CFR - XML import'!$A84,1)-SEARCH(\">\",'CFR - XML import'!$A84,1)-2)))","v":0},{"$f":"IF(ISERROR(FIND(BF$3,'CFR - XML import'!$A84)),0,VALUE(MID('CFR - XML import'!$A84,SEARCH(\">\",'CFR - XML import'!$A84,1)+1,SEARCH(\"/\",'CFR - XML import'!$A84,1)-SEARCH(\">\",'CFR - XML import'!$A84,1)-2)))","v":0},{"$f":"IF(ISERROR(FIND(BG$3,'CFR - XML import'!$A84)),0,VALUE(MID('CFR - XML import'!$A84,SEARCH(\">\",'CFR - XML import'!$A84,1)+1,SEARCH(\"/\",'CFR - XML import'!$A84,1)-SEARCH(\">\",'CFR - XML import'!$A84,1)-2)))","v":0},{"$f":"IF(ISERROR(FIND(BH$3,'CFR - XML import'!$A84)),0,VALUE(MID('CFR - XML import'!$A84,SEARCH(\">\",'CFR - XML import'!$A84,1)+1,SEARCH(\"/\",'CFR - XML import'!$A84,1)-SEARCH(\">\",'CFR - XML import'!$A84,1)-2)))","v":0},{"$f":"IF(ISERROR(FIND(BI$3,'CFR - XML import'!$A84)),0,VALUE(MID('CFR - XML import'!$A84,SEARCH(\">\",'CFR - XML import'!$A84,1)+1,SEARCH(\"/\",'CFR - XML import'!$A84,1)-SEARCH(\">\",'CFR - XML import'!$A84,1)-2)))","v":0},{"$f":"IF(ISERROR(FIND(BJ$3,'CFR - XML import'!$A84)),0,VALUE(MID('CFR - XML import'!$A84,SEARCH(\">\",'CFR - XML import'!$A84,1)+1,SEARCH(\"/\",'CFR - XML import'!$A84,1)-SEARCH(\">\",'CFR - XML import'!$A84,1)-2)))","v":0},{"$f":"IF(ISERROR(FIND(BK$3,'CFR - XML import'!$A84)),0,VALUE(MID('CFR - XML import'!$A84,SEARCH(\">\",'CFR - XML import'!$A84,1)+1,SEARCH(\"/\",'CFR - XML import'!$A84,1)-SEARCH(\">\",'CFR - XML import'!$A84,1)-2)))","v":0},{"$f":"IF(ISERROR(FIND(BL$3,'CFR - XML import'!$A84)),0,VALUE(MID('CFR - XML import'!$A84,SEARCH(\">\",'CFR - XML import'!$A84,1)+1,SEARCH(\"/\",'CFR - XML import'!$A84,1)-SEARCH(\">\",'CFR - XML import'!$A84,1)-2)))","v":0},{"$f":"IF(ISERROR(FIND(BM$3,'CFR - XML import'!$A84)),0,VALUE(MID('CFR - XML import'!$A84,SEARCH(\">\",'CFR - XML import'!$A84,1)+1,SEARCH(\"/\",'CFR - XML import'!$A84,1)-SEARCH(\">\",'CFR - XML import'!$A84,1)-2)))","v":0},{"$f":"IF(ISERROR(FIND(BN$3,'CFR - XML import'!$A84)),0,VALUE(MID('CFR - XML import'!$A84,SEARCH(\">\",'CFR - XML import'!$A84,1)+1,SEARCH(\"/\",'CFR - XML import'!$A84,1)-SEARCH(\">\",'CFR - XML import'!$A84,1)-2)))","v":0},{"$f":"IF(ISERROR(FIND(BO$3,'CFR - XML import'!$A84)),0,VALUE(MID('CFR - XML import'!$A84,SEARCH(\">\",'CFR - XML import'!$A84,1)+1,SEARCH(\"/\",'CFR - XML import'!$A84,1)-SEARCH(\">\",'CFR - XML import'!$A84,1)-2)))","v":0},{"$f":"IF(ISERROR(FIND(BP$3,'CFR - XML import'!$A84)),0,VALUE(MID('CFR - XML import'!$A84,SEARCH(\">\",'CFR - XML import'!$A84,1)+1,SEARCH(\"/\",'CFR - XML import'!$A84,1)-SEARCH(\">\",'CFR - XML import'!$A84,1)-2)))","v":0},{"$f":"IF(ISERROR(FIND(BQ$3,'CFR - XML import'!$A84)),0,VALUE(MID('CFR - XML import'!$A84,SEARCH(\">\",'CFR - XML import'!$A84,1)+1,SEARCH(\"/\",'CFR - XML import'!$A84,1)-SEARCH(\">\",'CFR - XML import'!$A84,1)-2)))","v":0},{"$f":"IF(ISERROR(FIND(BR$3,'CFR - XML import'!$A84)),0,VALUE(MID('CFR - XML import'!$A84,SEARCH(\">\",'CFR - XML import'!$A84,1)+1,SEARCH(\"/\",'CFR - XML import'!$A84,1)-SEARCH(\">\",'CFR - XML import'!$A84,1)-2)))","v":0},{"$f":"IF(ISERROR(FIND(BS$3,'CFR - XML import'!$A84)),0,VALUE(MID('CFR - XML import'!$A84,SEARCH(\">\",'CFR - XML import'!$A84,1)+1,SEARCH(\"/\",'CFR - XML import'!$A84,1)-SEARCH(\">\",'CFR - XML import'!$A84,1)-2)))","v":0},{"$f":"IF(ISERROR(FIND(BT$3,'CFR - XML import'!$A84)),0,VALUE(MID('CFR - XML import'!$A84,SEARCH(\">\",'CFR - XML import'!$A84,1)+1,SEARCH(\"/\",'CFR - XML import'!$A84,1)-SEARCH(\">\",'CFR - XML import'!$A84,1)-2)))","v":0},{"$f":"IF(ISERROR(FIND(BU$3,'CFR - XML import'!$A84)),0,VALUE(MID('CFR - XML import'!$A84,SEARCH(\">\",'CFR - XML import'!$A84,1)+1,SEARCH(\"/\",'CFR - XML import'!$A84,1)-SEARCH(\">\",'CFR - XML import'!$A84,1)-2)))","v":0},{"$f":"IF(ISERROR(FIND(BV$3,'CFR - XML import'!$A84)),0,VALUE(MID('CFR - XML import'!$A84,SEARCH(\">\",'CFR - XML import'!$A84,1)+1,SEARCH(\"/\",'CFR - XML import'!$A84,1)-SEARCH(\">\",'CFR - XML import'!$A84,1)-2)))","v":0},{"$f":"IF(ISERROR(FIND(BW$3,'CFR - XML import'!$A84)),0,VALUE(MID('CFR - XML import'!$A84,SEARCH(\">\",'CFR - XML import'!$A84,1)+1,SEARCH(\"/\",'CFR - XML import'!$A84,1)-SEARCH(\">\",'CFR - XML import'!$A84,1)-2)))","v":0},{"$f":"IF(ISERROR(FIND(BX$3,'CFR - XML import'!$A84)),0,VALUE(MID('CFR - XML import'!$A84,SEARCH(\">\",'CFR - XML import'!$A84,1)+1,SEARCH(\"/\",'CFR - XML import'!$A84,1)-SEARCH(\">\",'CFR - XML import'!$A84,1)-2)))","v":0},{"$f":"IF(ISERROR(FIND(BY$3,'CFR - XML import'!$A84)),0,VALUE(MID('CFR - XML import'!$A84,SEARCH(\">\",'CFR - XML import'!$A84,1)+1,SEARCH(\"/\",'CFR - XML import'!$A84,1)-SEARCH(\">\",'CFR - XML import'!$A84,1)-2)))","v":0},{"$f":"IF(ISERROR(FIND(BZ$3,'CFR - XML import'!$A84)),0,VALUE(MID('CFR - XML import'!$A84,SEARCH(\">\",'CFR - XML import'!$A84,1)+1,SEARCH(\"/\",'CFR - XML import'!$A84,1)-SEARCH(\">\",'CFR - XML import'!$A84,1)-2)))","v":0},null,null,null,null,null,null,{"$f":"IF(ISERROR(IF(MID('CFR - XML import'!$A84,LEN($CF$4)+1,LEN('CFR - XML import'!$A84)-(2*LEN($CF$4)+1))=\"RMMS\",1,IF(MID('CFR - XML import'!$A84,LEN(\"    <InputSystem>\")+1,LEN('CFR - XML import'!$A84)-(LEN(\"    <InputSystem>\")+LEN($CF$4)+1))=\"SIMS\",2,0))),0,IF(MID('CFR - XML import'!$A84,LEN($CF$4)+1,LEN('CFR - XML import'!$A84)-(2*LEN($CF$4)+1))=\"RMMS\",1,IF(MID('CFR - XML import'!$A84,LEN(\"    <InputSystem>\")+1,LEN('CFR - XML import'!$A84)-(LEN(\"    <InputSystem>\")+LEN($CF$4)+1))=\"SIMS\",2,0)))","v":0},{"$f":"IF(ISERROR(FIND(CH$3,'CFR - XML import'!$A84)),0,MID('CFR - XML import'!$A84,SEARCH(\">\",'CFR - XML import'!$A84,1)+1,SEARCH(\"/\",'CFR - XML import'!$A84,1)-SEARCH(\">\",'CFR - XML import'!$A84,1)-2))","v":0},{"$f":"IF(ISERROR(FIND(CI$3,'CFR - XML import'!$A84)),0,MID('CFR - XML import'!$A84,SEARCH(\">\",'CFR - XML import'!$A84,1)+1,SEARCH(\"/\",'CFR - XML import'!$A84,1)-SEARCH(\">\",'CFR - XML import'!$A84,1)-2))","v":0},{"$f":"IF(ISERROR(FIND(CJ$3,'CFR - XML import'!$A84)),0,MID('CFR - XML import'!$A84,SEARCH(\">\",'CFR - XML import'!$A84,1)+1,SEARCH(\"/\",'CFR - XML import'!$A84,1)-SEARCH(\">\",'CFR - XML import'!$A84,1)-2))","v":0},{"$f":"IF(ISERROR(FIND(CK$3,'CFR - XML import'!$A84)),0,MID('CFR - XML import'!$A84,SEARCH(\">\",'CFR - XML import'!$A84,1)+1,SEARCH(\"/\",'CFR - XML import'!$A84,1)-SEARCH(\">\",'CFR - XML import'!$A84,1)-2))","v":0},{"$f":"IF(ISERROR(FIND(CL$3,'CFR - XML import'!$A84)),0,MID('CFR - XML import'!$A84,SEARCH(\">\",'CFR - XML import'!$A84,1)+1,SEARCH(\"/\",'CFR - XML import'!$A84,1)-SEARCH(\">\",'CFR - XML import'!$A84,1)-2))","v":0}]
[{"$f":"IF(AND('CFR - XML import'!A85<>\"\",LEFT('CFR - XML import'!A85,1)<>\"<\",LEFT('CFR - XML import'!A85,3)<>\"  <\",LEFT('CFR - XML import'!A85,5)<>\"    <\",LEFT('CFR - XML import'!A85,7)<>\"      <\",LEFT('CFR - XML import'!A85,9)<>\"        <\",$B$1=\"SIMS\"),'CFR - XML import'!A85,IF(AND(LEFT('CFR - XML import'!A85,9)=\"<Details>\",$B$1=\"RM\"),'CFR - XML import'!A85,\"\"))","v":""},{"$f":"IF(ISERROR(FIND(B$3,'CFR - XML import'!$A85)),0,VALUE(MID('CFR - XML import'!$A85,SEARCH(\">\",'CFR - XML import'!$A85,1)+1,SEARCH(\"/\",'CFR - XML import'!$A85,1)-SEARCH(\">\",'CFR - XML import'!$A85,1)-2)))","v":0},null,{"$f":"IF(ISERROR(FIND(D$3,'CFR - XML import'!$A85)),0,MID('CFR - XML import'!$A85,SEARCH(\">\",'CFR - XML import'!$A85,1)+1,SEARCH(\"/\",'CFR - XML import'!$A85,1)-SEARCH(\">\",'CFR - XML import'!$A85,1)-2))","v":0},{"$f":"IF(ISERROR(FIND(E$3,'CFR - XML import'!$A85)),0,MID('CFR - XML import'!$A85,SEARCH(\">\",'CFR - XML import'!$A85,1)+1,SEARCH(\"/\",'CFR - XML import'!$A85,1)-SEARCH(\">\",'CFR - XML import'!$A85,1)-2))","v":0},{"$f":"IF($B$1=\"SIMS\",IF(ISERROR(FIND(F$3,'CFR - XML import'!$A85)),0,VALUE(MID('CFR - XML import'!$A85,15,10))),IF(ISERROR(FIND(F$3,'CFR - XML import'!$A85)),0,VALUE(MID('CFR - XML import'!$A85,11,10))))","v":"00:00:00"},{"$f":"IF(ISERROR(FIND(G$3,'CFR - XML import'!$A85)),0,VALUE(MID('CFR - XML import'!$A85,SEARCH(\">\",'CFR - XML import'!$A85,1)+1,SEARCH(\"/\",'CFR - XML import'!$A85,1)-SEARCH(\">\",'CFR - XML import'!$A85,1)-2)))","v":0},{"$f":"IF(ISERROR(FIND(H$3,'CFR - XML import'!$A85)),0,VALUE(MID('CFR - XML import'!$A85,SEARCH(\">\",'CFR - XML import'!$A85,1)+1,SEARCH(\"/\",'CFR - XML import'!$A85,1)-SEARCH(\">\",'CFR - XML import'!$A85,1)-2)))","v":0},{"$f":"IF(ISERROR(FIND(I$3,'CFR - XML import'!$A85)),0,VALUE(MID('CFR - XML import'!$A85,SEARCH(\">\",'CFR - XML import'!$A85,1)+1,SEARCH(\"/\",'CFR - XML import'!$A85,1)-SEARCH(\">\",'CFR - XML import'!$A85,1)-2)))","v":0},{"$f":"IF(ISERROR(FIND(J$3,'CFR - XML import'!$A85)),0,VALUE(MID('CFR - XML import'!$A85,SEARCH(\">\",'CFR - XML import'!$A85,1)+1,SEARCH(\"/\",'CFR - XML import'!$A85,1)-SEARCH(\">\",'CFR - XML import'!$A85,1)-2)))","v":0},{"$f":"IF(ISERROR(FIND(K$3,'CFR - XML import'!$A85)),0,VALUE(MID('CFR - XML import'!$A85,SEARCH(\">\",'CFR - XML import'!$A85,1)+1,SEARCH(\"/\",'CFR - XML import'!$A85,1)-SEARCH(\">\",'CFR - XML import'!$A85,1)-2)))","v":0},{"$f":"IF(ISERROR(FIND(L$3,'CFR - XML import'!$A85)),0,VALUE(MID('CFR - XML import'!$A85,SEARCH(\">\",'CFR - XML import'!$A85,1)+1,SEARCH(\"/\",'CFR - XML import'!$A85,1)-SEARCH(\">\",'CFR - XML import'!$A85,1)-2)))","v":0},{"$f":"IF(ISERROR(FIND(M$3,'CFR - XML import'!$A85)),0,VALUE(MID('CFR - XML import'!$A85,SEARCH(\">\",'CFR - XML import'!$A85,1)+1,SEARCH(\"/\",'CFR - XML import'!$A85,1)-SEARCH(\">\",'CFR - XML import'!$A85,1)-2)))","v":0},{"$f":"IF(ISERROR(FIND(N$3,'CFR - XML import'!$A85)),0,VALUE(MID('CFR - XML import'!$A85,SEARCH(\">\",'CFR - XML import'!$A85,1)+1,SEARCH(\"/\",'CFR - XML import'!$A85,1)-SEARCH(\">\",'CFR - XML import'!$A85,1)-2)))","v":0},{"$f":"IF(ISERROR(FIND(O$3,'CFR - XML import'!$A85)),0,VALUE(MID('CFR - XML import'!$A85,SEARCH(\">\",'CFR - XML import'!$A85,1)+1,SEARCH(\"/\",'CFR - XML import'!$A85,1)-SEARCH(\">\",'CFR - XML import'!$A85,1)-2)))","v":0},{"$f":"IF(ISERROR(FIND(P$3,'CFR - XML import'!$A85)),0,VALUE(MID('CFR - XML import'!$A85,SEARCH(\">\",'CFR - XML import'!$A85,1)+1,SEARCH(\"/\",'CFR - XML import'!$A85,1)-SEARCH(\">\",'CFR - XML import'!$A85,1)-2)))","v":0},{"$f":"IF(ISERROR(FIND(Q$3,'CFR - XML import'!$A85)),0,VALUE(MID('CFR - XML import'!$A85,SEARCH(\">\",'CFR - XML import'!$A85,1)+1,SEARCH(\"/\",'CFR - XML import'!$A85,1)-SEARCH(\">\",'CFR - XML import'!$A85,1)-2)))","v":0},{"$f":"IF(ISERROR(FIND(R$3,'CFR - XML import'!$A85)),0,VALUE(MID('CFR - XML import'!$A85,SEARCH(\">\",'CFR - XML import'!$A85,1)+1,SEARCH(\"/\",'CFR - XML import'!$A85,1)-SEARCH(\">\",'CFR - XML import'!$A85,1)-2)))","v":0},{"$f":"IF(ISERROR(FIND(S$3,'CFR - XML import'!$A85)),0,VALUE(MID('CFR - XML import'!$A85,SEARCH(\">\",'CFR - XML import'!$A85,1)+1,SEARCH(\"/\",'CFR - XML import'!$A85,1)-SEARCH(\">\",'CFR - XML import'!$A85,1)-2)))","v":0},{"$f":"IF(ISERROR(FIND(T$3,'CFR - XML import'!$A85)),0,VALUE(MID('CFR - XML import'!$A85,SEARCH(\">\",'CFR - XML import'!$A85,1)+1,SEARCH(\"/\",'CFR - XML import'!$A85,1)-SEARCH(\">\",'CFR - XML import'!$A85,1)-2)))","v":0},{"$f":"IF(ISERROR(FIND(U$3,'CFR - XML import'!$A85)),0,VALUE(MID('CFR - XML import'!$A85,SEARCH(\">\",'CFR - XML import'!$A85,1)+1,SEARCH(\"/\",'CFR - XML import'!$A85,1)-SEARCH(\">\",'CFR - XML import'!$A85,1)-2)))","v":0},{"$f":"IF(ISERROR(FIND(V$3,'CFR - XML import'!$A85)),0,VALUE(MID('CFR - XML import'!$A85,SEARCH(\">\",'CFR - XML import'!$A85,1)+1,SEARCH(\"/\",'CFR - XML import'!$A85,1)-SEARCH(\">\",'CFR - XML import'!$A85,1)-2)))","v":0},{"$f":"IF(ISERROR(FIND(W$3,'CFR - XML import'!$A85)),0,VALUE(MID('CFR - XML import'!$A85,SEARCH(\">\",'CFR - XML import'!$A85,1)+1,SEARCH(\"/\",'CFR - XML import'!$A85,1)-SEARCH(\">\",'CFR - XML import'!$A85,1)-2)))","v":0},null,{"$f":"IF(ISERROR(FIND(Y$3,'CFR - XML import'!$A85)),0,VALUE(MID('CFR - XML import'!$A85,SEARCH(\">\",'CFR - XML import'!$A85,1)+1,SEARCH(\"/\",'CFR - XML import'!$A85,1)-SEARCH(\">\",'CFR - XML import'!$A85,1)-2)))","v":0},{"$f":"IF(ISERROR(FIND(Z$3,'CFR - XML import'!$A85)),0,VALUE(MID('CFR - XML import'!$A85,SEARCH(\">\",'CFR - XML import'!$A85,1)+1,SEARCH(\"/\",'CFR - XML import'!$A85,1)-SEARCH(\">\",'CFR - XML import'!$A85,1)-2)))","v":0},{"$f":"IF(ISERROR(FIND(AA$3,'CFR - XML import'!$A85)),0,VALUE(MID('CFR - XML import'!$A85,SEARCH(\">\",'CFR - XML import'!$A85,1)+1,SEARCH(\"/\",'CFR - XML import'!$A85,1)-SEARCH(\">\",'CFR - XML import'!$A85,1)-2)))","v":0},{"$f":"IF(ISERROR(FIND(AB$3,'CFR - XML import'!$A85)),0,VALUE(MID('CFR - XML import'!$A85,SEARCH(\">\",'CFR - XML import'!$A85,1)+1,SEARCH(\"/\",'CFR - XML import'!$A85,1)-SEARCH(\">\",'CFR - XML import'!$A85,1)-2)))","v":0},{"$f":"IF(ISERROR(FIND(AC$3,'CFR - XML import'!$A85)),0,VALUE(MID('CFR - XML import'!$A85,SEARCH(\">\",'CFR - XML import'!$A85,1)+1,SEARCH(\"/\",'CFR - XML import'!$A85,1)-SEARCH(\">\",'CFR - XML import'!$A85,1)-2)))","v":0},{"$f":"IF(ISERROR(FIND(AD$3,'CFR - XML import'!$A85)),0,VALUE(MID('CFR - XML import'!$A85,SEARCH(\">\",'CFR - XML import'!$A85,1)+1,SEARCH(\"/\",'CFR - XML import'!$A85,1)-SEARCH(\">\",'CFR - XML import'!$A85,1)-2)))","v":0},{"$f":"IF(ISERROR(FIND(AE$3,'CFR - XML import'!$A85)),0,VALUE(MID('CFR - XML import'!$A85,SEARCH(\">\",'CFR - XML import'!$A85,1)+1,SEARCH(\"/\",'CFR - XML import'!$A85,1)-SEARCH(\">\",'CFR - XML import'!$A85,1)-2)))","v":0},{"$f":"IF(ISERROR(FIND(AF$3,'CFR - XML import'!$A85)),0,VALUE(MID('CFR - XML import'!$A85,SEARCH(\">\",'CFR - XML import'!$A85,1)+1,SEARCH(\"/\",'CFR - XML import'!$A85,1)-SEARCH(\">\",'CFR - XML import'!$A85,1)-2)))","v":0},{"$f":"IF(ISERROR(FIND(AG$3,'CFR - XML import'!$A85)),0,VALUE(MID('CFR - XML import'!$A85,SEARCH(\">\",'CFR - XML import'!$A85,1)+1,SEARCH(\"/\",'CFR - XML import'!$A85,1)-SEARCH(\">\",'CFR - XML import'!$A85,1)-2)))","v":0},{"$f":"IF(ISERROR(FIND(AH$3,'CFR - XML import'!$A85)),0,VALUE(MID('CFR - XML import'!$A85,SEARCH(\">\",'CFR - XML import'!$A85,1)+1,SEARCH(\"/\",'CFR - XML import'!$A85,1)-SEARCH(\">\",'CFR - XML import'!$A85,1)-2)))","v":0},{"$f":"IF(ISERROR(FIND(AI$3,'CFR - XML import'!$A85)),0,VALUE(MID('CFR - XML import'!$A85,SEARCH(\">\",'CFR - XML import'!$A85,1)+1,SEARCH(\"/\",'CFR - XML import'!$A85,1)-SEARCH(\">\",'CFR - XML import'!$A85,1)-2)))","v":0},{"$f":"IF(ISERROR(FIND(AJ$3,'CFR - XML import'!$A85)),0,VALUE(MID('CFR - XML import'!$A85,SEARCH(\">\",'CFR - XML import'!$A85,1)+1,SEARCH(\"/\",'CFR - XML import'!$A85,1)-SEARCH(\">\",'CFR - XML import'!$A85,1)-2)))","v":0},{"$f":"IF(ISERROR(FIND(AK$3,'CFR - XML import'!$A85)),0,VALUE(MID('CFR - XML import'!$A85,SEARCH(\">\",'CFR - XML import'!$A85,1)+1,SEARCH(\"/\",'CFR - XML import'!$A85,1)-SEARCH(\">\",'CFR - XML import'!$A85,1)-2)))","v":0},{"$f":"IF(ISERROR(FIND(AL$3,'CFR - XML import'!$A85)),0,VALUE(MID('CFR - XML import'!$A85,SEARCH(\">\",'CFR - XML import'!$A85,1)+1,SEARCH(\"/\",'CFR - XML import'!$A85,1)-SEARCH(\">\",'CFR - XML import'!$A85,1)-2)))","v":0},{"$f":"IF(ISERROR(FIND(AM$3,'CFR - XML import'!$A85)),0,VALUE(MID('CFR - XML import'!$A85,SEARCH(\">\",'CFR - XML import'!$A85,1)+1,SEARCH(\"/\",'CFR - XML import'!$A85,1)-SEARCH(\">\",'CFR - XML import'!$A85,1)-2)))","v":0},{"$f":"IF(ISERROR(FIND(AN$3,'CFR - XML import'!$A85)),0,VALUE(MID('CFR - XML import'!$A85,SEARCH(\">\",'CFR - XML import'!$A85,1)+1,SEARCH(\"/\",'CFR - XML import'!$A85,1)-SEARCH(\">\",'CFR - XML import'!$A85,1)-2)))","v":0},{"$f":"IF(ISERROR(FIND(AO$3,'CFR - XML import'!$A85)),0,VALUE(MID('CFR - XML import'!$A85,SEARCH(\">\",'CFR - XML import'!$A85,1)+1,SEARCH(\"/\",'CFR - XML import'!$A85,1)-SEARCH(\">\",'CFR - XML import'!$A85,1)-2)))","v":0},{"$f":"IF(ISERROR(FIND(AP$3,'CFR - XML import'!$A85)),0,VALUE(MID('CFR - XML import'!$A85,SEARCH(\">\",'CFR - XML import'!$A85,1)+1,SEARCH(\"/\",'CFR - XML import'!$A85,1)-SEARCH(\">\",'CFR - XML import'!$A85,1)-2)))","v":0},{"$f":"IF(ISERROR(FIND(AQ$3,'CFR - XML import'!$A85)),0,VALUE(MID('CFR - XML import'!$A85,SEARCH(\">\",'CFR - XML import'!$A85,1)+1,SEARCH(\"/\",'CFR - XML import'!$A85,1)-SEARCH(\">\",'CFR - XML import'!$A85,1)-2)))","v":0},{"$f":"IF(ISERROR(FIND(AR$3,'CFR - XML import'!$A85)),0,VALUE(MID('CFR - XML import'!$A85,SEARCH(\">\",'CFR - XML import'!$A85,1)+1,SEARCH(\"/\",'CFR - XML import'!$A85,1)-SEARCH(\">\",'CFR - XML import'!$A85,1)-2)))","v":0},{"$f":"IF(ISERROR(FIND(AS$3,'CFR - XML import'!$A85)),0,VALUE(MID('CFR - XML import'!$A85,SEARCH(\">\",'CFR - XML import'!$A85,1)+1,SEARCH(\"/\",'CFR - XML import'!$A85,1)-SEARCH(\">\",'CFR - XML import'!$A85,1)-2)))","v":0},{"$f":"IF(ISERROR(FIND(AT$3,'CFR - XML import'!$A85)),0,VALUE(MID('CFR - XML import'!$A85,SEARCH(\">\",'CFR - XML import'!$A85,1)+1,SEARCH(\"/\",'CFR - XML import'!$A85,1)-SEARCH(\">\",'CFR - XML import'!$A85,1)-2)))","v":0},{"$f":"IF(ISERROR(FIND(AU$3,'CFR - XML import'!$A85)),0,VALUE(MID('CFR - XML import'!$A85,SEARCH(\">\",'CFR - XML import'!$A85,1)+1,SEARCH(\"/\",'CFR - XML import'!$A85,1)-SEARCH(\">\",'CFR - XML import'!$A85,1)-2)))","v":0},{"$f":"IF(ISERROR(FIND(AV$3,'CFR - XML import'!$A85)),0,VALUE(MID('CFR - XML import'!$A85,SEARCH(\">\",'CFR - XML import'!$A85,1)+1,SEARCH(\"/\",'CFR - XML import'!$A85,1)-SEARCH(\">\",'CFR - XML import'!$A85,1)-2)))","v":0},{"$f":"IF(ISERROR(FIND(AW$3,'CFR - XML import'!$A85)),0,VALUE(MID('CFR - XML import'!$A85,SEARCH(\">\",'CFR - XML import'!$A85,1)+1,SEARCH(\"/\",'CFR - XML import'!$A85,1)-SEARCH(\">\",'CFR - XML import'!$A85,1)-2)))","v":0},{"$f":"IF(ISERROR(FIND(AX$3,'CFR - XML import'!$A85)),0,VALUE(MID('CFR - XML import'!$A85,SEARCH(\">\",'CFR - XML import'!$A85,1)+1,SEARCH(\"/\",'CFR - XML import'!$A85,1)-SEARCH(\">\",'CFR - XML import'!$A85,1)-2)))","v":0},{"$f":"IF(ISERROR(FIND(AY$3,'CFR - XML import'!$A85)),0,VALUE(MID('CFR - XML import'!$A85,SEARCH(\">\",'CFR - XML import'!$A85,1)+1,SEARCH(\"/\",'CFR - XML import'!$A85,1)-SEARCH(\">\",'CFR - XML import'!$A85,1)-2)))","v":0},{"$f":"IF(ISERROR(FIND(AZ$3,'CFR - XML import'!$A85)),0,VALUE(MID('CFR - XML import'!$A85,SEARCH(\">\",'CFR - XML import'!$A85,1)+1,SEARCH(\"/\",'CFR - XML import'!$A85,1)-SEARCH(\">\",'CFR - XML import'!$A85,1)-2)))","v":0},{"$f":"IF(ISERROR(FIND(BA$3,'CFR - XML import'!$A85)),0,VALUE(MID('CFR - XML import'!$A85,SEARCH(\">\",'CFR - XML import'!$A85,1)+1,SEARCH(\"/\",'CFR - XML import'!$A85,1)-SEARCH(\">\",'CFR - XML import'!$A85,1)-2)))","v":0},{"$f":"IF(ISERROR(FIND(BB$3,'CFR - XML import'!$A85)),0,VALUE(MID('CFR - XML import'!$A85,SEARCH(\">\",'CFR - XML import'!$A85,1)+1,SEARCH(\"/\",'CFR - XML import'!$A85,1)-SEARCH(\">\",'CFR - XML import'!$A85,1)-2)))","v":0},{"$f":"IF(ISERROR(FIND(BC$3,'CFR - XML import'!$A85)),0,VALUE(MID('CFR - XML import'!$A85,SEARCH(\">\",'CFR - XML import'!$A85,1)+1,SEARCH(\"/\",'CFR - XML import'!$A85,1)-SEARCH(\">\",'CFR - XML import'!$A85,1)-2)))","v":0},{"$f":"IF(ISERROR(FIND(BD$3,'CFR - XML import'!$A85)),0,VALUE(MID('CFR - XML import'!$A85,SEARCH(\">\",'CFR - XML import'!$A85,1)+1,SEARCH(\"/\",'CFR - XML import'!$A85,1)-SEARCH(\">\",'CFR - XML import'!$A85,1)-2)))","v":0},{"$f":"IF(ISERROR(FIND(BE$3,'CFR - XML import'!$A85)),0,VALUE(MID('CFR - XML import'!$A85,SEARCH(\">\",'CFR - XML import'!$A85,1)+1,SEARCH(\"/\",'CFR - XML import'!$A85,1)-SEARCH(\">\",'CFR - XML import'!$A85,1)-2)))","v":0},{"$f":"IF(ISERROR(FIND(BF$3,'CFR - XML import'!$A85)),0,VALUE(MID('CFR - XML import'!$A85,SEARCH(\">\",'CFR - XML import'!$A85,1)+1,SEARCH(\"/\",'CFR - XML import'!$A85,1)-SEARCH(\">\",'CFR - XML import'!$A85,1)-2)))","v":0},{"$f":"IF(ISERROR(FIND(BG$3,'CFR - XML import'!$A85)),0,VALUE(MID('CFR - XML import'!$A85,SEARCH(\">\",'CFR - XML import'!$A85,1)+1,SEARCH(\"/\",'CFR - XML import'!$A85,1)-SEARCH(\">\",'CFR - XML import'!$A85,1)-2)))","v":0},{"$f":"IF(ISERROR(FIND(BH$3,'CFR - XML import'!$A85)),0,VALUE(MID('CFR - XML import'!$A85,SEARCH(\">\",'CFR - XML import'!$A85,1)+1,SEARCH(\"/\",'CFR - XML import'!$A85,1)-SEARCH(\">\",'CFR - XML import'!$A85,1)-2)))","v":0},{"$f":"IF(ISERROR(FIND(BI$3,'CFR - XML import'!$A85)),0,VALUE(MID('CFR - XML import'!$A85,SEARCH(\">\",'CFR - XML import'!$A85,1)+1,SEARCH(\"/\",'CFR - XML import'!$A85,1)-SEARCH(\">\",'CFR - XML import'!$A85,1)-2)))","v":0},{"$f":"IF(ISERROR(FIND(BJ$3,'CFR - XML import'!$A85)),0,VALUE(MID('CFR - XML import'!$A85,SEARCH(\">\",'CFR - XML import'!$A85,1)+1,SEARCH(\"/\",'CFR - XML import'!$A85,1)-SEARCH(\">\",'CFR - XML import'!$A85,1)-2)))","v":0},{"$f":"IF(ISERROR(FIND(BK$3,'CFR - XML import'!$A85)),0,VALUE(MID('CFR - XML import'!$A85,SEARCH(\">\",'CFR - XML import'!$A85,1)+1,SEARCH(\"/\",'CFR - XML import'!$A85,1)-SEARCH(\">\",'CFR - XML import'!$A85,1)-2)))","v":0},{"$f":"IF(ISERROR(FIND(BL$3,'CFR - XML import'!$A85)),0,VALUE(MID('CFR - XML import'!$A85,SEARCH(\">\",'CFR - XML import'!$A85,1)+1,SEARCH(\"/\",'CFR - XML import'!$A85,1)-SEARCH(\">\",'CFR - XML import'!$A85,1)-2)))","v":0},{"$f":"IF(ISERROR(FIND(BM$3,'CFR - XML import'!$A85)),0,VALUE(MID('CFR - XML import'!$A85,SEARCH(\">\",'CFR - XML import'!$A85,1)+1,SEARCH(\"/\",'CFR - XML import'!$A85,1)-SEARCH(\">\",'CFR - XML import'!$A85,1)-2)))","v":0},{"$f":"IF(ISERROR(FIND(BN$3,'CFR - XML import'!$A85)),0,VALUE(MID('CFR - XML import'!$A85,SEARCH(\">\",'CFR - XML import'!$A85,1)+1,SEARCH(\"/\",'CFR - XML import'!$A85,1)-SEARCH(\">\",'CFR - XML import'!$A85,1)-2)))","v":0},{"$f":"IF(ISERROR(FIND(BO$3,'CFR - XML import'!$A85)),0,VALUE(MID('CFR - XML import'!$A85,SEARCH(\">\",'CFR - XML import'!$A85,1)+1,SEARCH(\"/\",'CFR - XML import'!$A85,1)-SEARCH(\">\",'CFR - XML import'!$A85,1)-2)))","v":0},{"$f":"IF(ISERROR(FIND(BP$3,'CFR - XML import'!$A85)),0,VALUE(MID('CFR - XML import'!$A85,SEARCH(\">\",'CFR - XML import'!$A85,1)+1,SEARCH(\"/\",'CFR - XML import'!$A85,1)-SEARCH(\">\",'CFR - XML import'!$A85,1)-2)))","v":0},{"$f":"IF(ISERROR(FIND(BQ$3,'CFR - XML import'!$A85)),0,VALUE(MID('CFR - XML import'!$A85,SEARCH(\">\",'CFR - XML import'!$A85,1)+1,SEARCH(\"/\",'CFR - XML import'!$A85,1)-SEARCH(\">\",'CFR - XML import'!$A85,1)-2)))","v":0},{"$f":"IF(ISERROR(FIND(BR$3,'CFR - XML import'!$A85)),0,VALUE(MID('CFR - XML import'!$A85,SEARCH(\">\",'CFR - XML import'!$A85,1)+1,SEARCH(\"/\",'CFR - XML import'!$A85,1)-SEARCH(\">\",'CFR - XML import'!$A85,1)-2)))","v":0},{"$f":"IF(ISERROR(FIND(BS$3,'CFR - XML import'!$A85)),0,VALUE(MID('CFR - XML import'!$A85,SEARCH(\">\",'CFR - XML import'!$A85,1)+1,SEARCH(\"/\",'CFR - XML import'!$A85,1)-SEARCH(\">\",'CFR - XML import'!$A85,1)-2)))","v":0},{"$f":"IF(ISERROR(FIND(BT$3,'CFR - XML import'!$A85)),0,VALUE(MID('CFR - XML import'!$A85,SEARCH(\">\",'CFR - XML import'!$A85,1)+1,SEARCH(\"/\",'CFR - XML import'!$A85,1)-SEARCH(\">\",'CFR - XML import'!$A85,1)-2)))","v":0},{"$f":"IF(ISERROR(FIND(BU$3,'CFR - XML import'!$A85)),0,VALUE(MID('CFR - XML import'!$A85,SEARCH(\">\",'CFR - XML import'!$A85,1)+1,SEARCH(\"/\",'CFR - XML import'!$A85,1)-SEARCH(\">\",'CFR - XML import'!$A85,1)-2)))","v":0},{"$f":"IF(ISERROR(FIND(BV$3,'CFR - XML import'!$A85)),0,VALUE(MID('CFR - XML import'!$A85,SEARCH(\">\",'CFR - XML import'!$A85,1)+1,SEARCH(\"/\",'CFR - XML import'!$A85,1)-SEARCH(\">\",'CFR - XML import'!$A85,1)-2)))","v":0},{"$f":"IF(ISERROR(FIND(BW$3,'CFR - XML import'!$A85)),0,VALUE(MID('CFR - XML import'!$A85,SEARCH(\">\",'CFR - XML import'!$A85,1)+1,SEARCH(\"/\",'CFR - XML import'!$A85,1)-SEARCH(\">\",'CFR - XML import'!$A85,1)-2)))","v":0},{"$f":"IF(ISERROR(FIND(BX$3,'CFR - XML import'!$A85)),0,VALUE(MID('CFR - XML import'!$A85,SEARCH(\">\",'CFR - XML import'!$A85,1)+1,SEARCH(\"/\",'CFR - XML import'!$A85,1)-SEARCH(\">\",'CFR - XML import'!$A85,1)-2)))","v":0},{"$f":"IF(ISERROR(FIND(BY$3,'CFR - XML import'!$A85)),0,VALUE(MID('CFR - XML import'!$A85,SEARCH(\">\",'CFR - XML import'!$A85,1)+1,SEARCH(\"/\",'CFR - XML import'!$A85,1)-SEARCH(\">\",'CFR - XML import'!$A85,1)-2)))","v":0},{"$f":"IF(ISERROR(FIND(BZ$3,'CFR - XML import'!$A85)),0,VALUE(MID('CFR - XML import'!$A85,SEARCH(\">\",'CFR - XML import'!$A85,1)+1,SEARCH(\"/\",'CFR - XML import'!$A85,1)-SEARCH(\">\",'CFR - XML import'!$A85,1)-2)))","v":0},null,null,null,null,null,null,{"$f":"IF(ISERROR(IF(MID('CFR - XML import'!$A85,LEN($CF$4)+1,LEN('CFR - XML import'!$A85)-(2*LEN($CF$4)+1))=\"RMMS\",1,IF(MID('CFR - XML import'!$A85,LEN(\"    <InputSystem>\")+1,LEN('CFR - XML import'!$A85)-(LEN(\"    <InputSystem>\")+LEN($CF$4)+1))=\"SIMS\",2,0))),0,IF(MID('CFR - XML import'!$A85,LEN($CF$4)+1,LEN('CFR - XML import'!$A85)-(2*LEN($CF$4)+1))=\"RMMS\",1,IF(MID('CFR - XML import'!$A85,LEN(\"    <InputSystem>\")+1,LEN('CFR - XML import'!$A85)-(LEN(\"    <InputSystem>\")+LEN($CF$4)+1))=\"SIMS\",2,0)))","v":0},{"$f":"IF(ISERROR(FIND(CH$3,'CFR - XML import'!$A85)),0,MID('CFR - XML import'!$A85,SEARCH(\">\",'CFR - XML import'!$A85,1)+1,SEARCH(\"/\",'CFR - XML import'!$A85,1)-SEARCH(\">\",'CFR - XML import'!$A85,1)-2))","v":0},{"$f":"IF(ISERROR(FIND(CI$3,'CFR - XML import'!$A85)),0,MID('CFR - XML import'!$A85,SEARCH(\">\",'CFR - XML import'!$A85,1)+1,SEARCH(\"/\",'CFR - XML import'!$A85,1)-SEARCH(\">\",'CFR - XML import'!$A85,1)-2))","v":0},{"$f":"IF(ISERROR(FIND(CJ$3,'CFR - XML import'!$A85)),0,MID('CFR - XML import'!$A85,SEARCH(\">\",'CFR - XML import'!$A85,1)+1,SEARCH(\"/\",'CFR - XML import'!$A85,1)-SEARCH(\">\",'CFR - XML import'!$A85,1)-2))","v":0},{"$f":"IF(ISERROR(FIND(CK$3,'CFR - XML import'!$A85)),0,MID('CFR - XML import'!$A85,SEARCH(\">\",'CFR - XML import'!$A85,1)+1,SEARCH(\"/\",'CFR - XML import'!$A85,1)-SEARCH(\">\",'CFR - XML import'!$A85,1)-2))","v":0},{"$f":"IF(ISERROR(FIND(CL$3,'CFR - XML import'!$A85)),0,MID('CFR - XML import'!$A85,SEARCH(\">\",'CFR - XML import'!$A85,1)+1,SEARCH(\"/\",'CFR - XML import'!$A85,1)-SEARCH(\">\",'CFR - XML import'!$A85,1)-2))","v":0}]
[{"$f":"IF(AND('CFR - XML import'!A86<>\"\",LEFT('CFR - XML import'!A86,1)<>\"<\",LEFT('CFR - XML import'!A86,3)<>\"  <\",LEFT('CFR - XML import'!A86,5)<>\"    <\",LEFT('CFR - XML import'!A86,7)<>\"      <\",LEFT('CFR - XML import'!A86,9)<>\"        <\",$B$1=\"SIMS\"),'CFR - XML import'!A86,IF(AND(LEFT('CFR - XML import'!A86,9)=\"<Details>\",$B$1=\"RM\"),'CFR - XML import'!A86,\"\"))","v":""},{"$f":"IF(ISERROR(FIND(B$3,'CFR - XML import'!$A86)),0,VALUE(MID('CFR - XML import'!$A86,SEARCH(\">\",'CFR - XML import'!$A86,1)+1,SEARCH(\"/\",'CFR - XML import'!$A86,1)-SEARCH(\">\",'CFR - XML import'!$A86,1)-2)))","v":0},null,{"$f":"IF(ISERROR(FIND(D$3,'CFR - XML import'!$A86)),0,MID('CFR - XML import'!$A86,SEARCH(\">\",'CFR - XML import'!$A86,1)+1,SEARCH(\"/\",'CFR - XML import'!$A86,1)-SEARCH(\">\",'CFR - XML import'!$A86,1)-2))","v":0},{"$f":"IF(ISERROR(FIND(E$3,'CFR - XML import'!$A86)),0,MID('CFR - XML import'!$A86,SEARCH(\">\",'CFR - XML import'!$A86,1)+1,SEARCH(\"/\",'CFR - XML import'!$A86,1)-SEARCH(\">\",'CFR - XML import'!$A86,1)-2))","v":0},{"$f":"IF($B$1=\"SIMS\",IF(ISERROR(FIND(F$3,'CFR - XML import'!$A86)),0,VALUE(MID('CFR - XML import'!$A86,15,10))),IF(ISERROR(FIND(F$3,'CFR - XML import'!$A86)),0,VALUE(MID('CFR - XML import'!$A86,11,10))))","v":"00:00:00"},{"$f":"IF(ISERROR(FIND(G$3,'CFR - XML import'!$A86)),0,VALUE(MID('CFR - XML import'!$A86,SEARCH(\">\",'CFR - XML import'!$A86,1)+1,SEARCH(\"/\",'CFR - XML import'!$A86,1)-SEARCH(\">\",'CFR - XML import'!$A86,1)-2)))","v":0},{"$f":"IF(ISERROR(FIND(H$3,'CFR - XML import'!$A86)),0,VALUE(MID('CFR - XML import'!$A86,SEARCH(\">\",'CFR - XML import'!$A86,1)+1,SEARCH(\"/\",'CFR - XML import'!$A86,1)-SEARCH(\">\",'CFR - XML import'!$A86,1)-2)))","v":0},{"$f":"IF(ISERROR(FIND(I$3,'CFR - XML import'!$A86)),0,VALUE(MID('CFR - XML import'!$A86,SEARCH(\">\",'CFR - XML import'!$A86,1)+1,SEARCH(\"/\",'CFR - XML import'!$A86,1)-SEARCH(\">\",'CFR - XML import'!$A86,1)-2)))","v":0},{"$f":"IF(ISERROR(FIND(J$3,'CFR - XML import'!$A86)),0,VALUE(MID('CFR - XML import'!$A86,SEARCH(\">\",'CFR - XML import'!$A86,1)+1,SEARCH(\"/\",'CFR - XML import'!$A86,1)-SEARCH(\">\",'CFR - XML import'!$A86,1)-2)))","v":0},{"$f":"IF(ISERROR(FIND(K$3,'CFR - XML import'!$A86)),0,VALUE(MID('CFR - XML import'!$A86,SEARCH(\">\",'CFR - XML import'!$A86,1)+1,SEARCH(\"/\",'CFR - XML import'!$A86,1)-SEARCH(\">\",'CFR - XML import'!$A86,1)-2)))","v":0},{"$f":"IF(ISERROR(FIND(L$3,'CFR - XML import'!$A86)),0,VALUE(MID('CFR - XML import'!$A86,SEARCH(\">\",'CFR - XML import'!$A86,1)+1,SEARCH(\"/\",'CFR - XML import'!$A86,1)-SEARCH(\">\",'CFR - XML import'!$A86,1)-2)))","v":0},{"$f":"IF(ISERROR(FIND(M$3,'CFR - XML import'!$A86)),0,VALUE(MID('CFR - XML import'!$A86,SEARCH(\">\",'CFR - XML import'!$A86,1)+1,SEARCH(\"/\",'CFR - XML import'!$A86,1)-SEARCH(\">\",'CFR - XML import'!$A86,1)-2)))","v":0},{"$f":"IF(ISERROR(FIND(N$3,'CFR - XML import'!$A86)),0,VALUE(MID('CFR - XML import'!$A86,SEARCH(\">\",'CFR - XML import'!$A86,1)+1,SEARCH(\"/\",'CFR - XML import'!$A86,1)-SEARCH(\">\",'CFR - XML import'!$A86,1)-2)))","v":0},{"$f":"IF(ISERROR(FIND(O$3,'CFR - XML import'!$A86)),0,VALUE(MID('CFR - XML import'!$A86,SEARCH(\">\",'CFR - XML import'!$A86,1)+1,SEARCH(\"/\",'CFR - XML import'!$A86,1)-SEARCH(\">\",'CFR - XML import'!$A86,1)-2)))","v":0},{"$f":"IF(ISERROR(FIND(P$3,'CFR - XML import'!$A86)),0,VALUE(MID('CFR - XML import'!$A86,SEARCH(\">\",'CFR - XML import'!$A86,1)+1,SEARCH(\"/\",'CFR - XML import'!$A86,1)-SEARCH(\">\",'CFR - XML import'!$A86,1)-2)))","v":0},{"$f":"IF(ISERROR(FIND(Q$3,'CFR - XML import'!$A86)),0,VALUE(MID('CFR - XML import'!$A86,SEARCH(\">\",'CFR - XML import'!$A86,1)+1,SEARCH(\"/\",'CFR - XML import'!$A86,1)-SEARCH(\">\",'CFR - XML import'!$A86,1)-2)))","v":0},{"$f":"IF(ISERROR(FIND(R$3,'CFR - XML import'!$A86)),0,VALUE(MID('CFR - XML import'!$A86,SEARCH(\">\",'CFR - XML import'!$A86,1)+1,SEARCH(\"/\",'CFR - XML import'!$A86,1)-SEARCH(\">\",'CFR - XML import'!$A86,1)-2)))","v":0},{"$f":"IF(ISERROR(FIND(S$3,'CFR - XML import'!$A86)),0,VALUE(MID('CFR - XML import'!$A86,SEARCH(\">\",'CFR - XML import'!$A86,1)+1,SEARCH(\"/\",'CFR - XML import'!$A86,1)-SEARCH(\">\",'CFR - XML import'!$A86,1)-2)))","v":0},{"$f":"IF(ISERROR(FIND(T$3,'CFR - XML import'!$A86)),0,VALUE(MID('CFR - XML import'!$A86,SEARCH(\">\",'CFR - XML import'!$A86,1)+1,SEARCH(\"/\",'CFR - XML import'!$A86,1)-SEARCH(\">\",'CFR - XML import'!$A86,1)-2)))","v":0},{"$f":"IF(ISERROR(FIND(U$3,'CFR - XML import'!$A86)),0,VALUE(MID('CFR - XML import'!$A86,SEARCH(\">\",'CFR - XML import'!$A86,1)+1,SEARCH(\"/\",'CFR - XML import'!$A86,1)-SEARCH(\">\",'CFR - XML import'!$A86,1)-2)))","v":0},{"$f":"IF(ISERROR(FIND(V$3,'CFR - XML import'!$A86)),0,VALUE(MID('CFR - XML import'!$A86,SEARCH(\">\",'CFR - XML import'!$A86,1)+1,SEARCH(\"/\",'CFR - XML import'!$A86,1)-SEARCH(\">\",'CFR - XML import'!$A86,1)-2)))","v":0},{"$f":"IF(ISERROR(FIND(W$3,'CFR - XML import'!$A86)),0,VALUE(MID('CFR - XML import'!$A86,SEARCH(\">\",'CFR - XML import'!$A86,1)+1,SEARCH(\"/\",'CFR - XML import'!$A86,1)-SEARCH(\">\",'CFR - XML import'!$A86,1)-2)))","v":0},null,{"$f":"IF(ISERROR(FIND(Y$3,'CFR - XML import'!$A86)),0,VALUE(MID('CFR - XML import'!$A86,SEARCH(\">\",'CFR - XML import'!$A86,1)+1,SEARCH(\"/\",'CFR - XML import'!$A86,1)-SEARCH(\">\",'CFR - XML import'!$A86,1)-2)))","v":0},{"$f":"IF(ISERROR(FIND(Z$3,'CFR - XML import'!$A86)),0,VALUE(MID('CFR - XML import'!$A86,SEARCH(\">\",'CFR - XML import'!$A86,1)+1,SEARCH(\"/\",'CFR - XML import'!$A86,1)-SEARCH(\">\",'CFR - XML import'!$A86,1)-2)))","v":0},{"$f":"IF(ISERROR(FIND(AA$3,'CFR - XML import'!$A86)),0,VALUE(MID('CFR - XML import'!$A86,SEARCH(\">\",'CFR - XML import'!$A86,1)+1,SEARCH(\"/\",'CFR - XML import'!$A86,1)-SEARCH(\">\",'CFR - XML import'!$A86,1)-2)))","v":0},{"$f":"IF(ISERROR(FIND(AB$3,'CFR - XML import'!$A86)),0,VALUE(MID('CFR - XML import'!$A86,SEARCH(\">\",'CFR - XML import'!$A86,1)+1,SEARCH(\"/\",'CFR - XML import'!$A86,1)-SEARCH(\">\",'CFR - XML import'!$A86,1)-2)))","v":0},{"$f":"IF(ISERROR(FIND(AC$3,'CFR - XML import'!$A86)),0,VALUE(MID('CFR - XML import'!$A86,SEARCH(\">\",'CFR - XML import'!$A86,1)+1,SEARCH(\"/\",'CFR - XML import'!$A86,1)-SEARCH(\">\",'CFR - XML import'!$A86,1)-2)))","v":0},{"$f":"IF(ISERROR(FIND(AD$3,'CFR - XML import'!$A86)),0,VALUE(MID('CFR - XML import'!$A86,SEARCH(\">\",'CFR - XML import'!$A86,1)+1,SEARCH(\"/\",'CFR - XML import'!$A86,1)-SEARCH(\">\",'CFR - XML import'!$A86,1)-2)))","v":0},{"$f":"IF(ISERROR(FIND(AE$3,'CFR - XML import'!$A86)),0,VALUE(MID('CFR - XML import'!$A86,SEARCH(\">\",'CFR - XML import'!$A86,1)+1,SEARCH(\"/\",'CFR - XML import'!$A86,1)-SEARCH(\">\",'CFR - XML import'!$A86,1)-2)))","v":0},{"$f":"IF(ISERROR(FIND(AF$3,'CFR - XML import'!$A86)),0,VALUE(MID('CFR - XML import'!$A86,SEARCH(\">\",'CFR - XML import'!$A86,1)+1,SEARCH(\"/\",'CFR - XML import'!$A86,1)-SEARCH(\">\",'CFR - XML import'!$A86,1)-2)))","v":0},{"$f":"IF(ISERROR(FIND(AG$3,'CFR - XML import'!$A86)),0,VALUE(MID('CFR - XML import'!$A86,SEARCH(\">\",'CFR - XML import'!$A86,1)+1,SEARCH(\"/\",'CFR - XML import'!$A86,1)-SEARCH(\">\",'CFR - XML import'!$A86,1)-2)))","v":0},{"$f":"IF(ISERROR(FIND(AH$3,'CFR - XML import'!$A86)),0,VALUE(MID('CFR - XML import'!$A86,SEARCH(\">\",'CFR - XML import'!$A86,1)+1,SEARCH(\"/\",'CFR - XML import'!$A86,1)-SEARCH(\">\",'CFR - XML import'!$A86,1)-2)))","v":0},{"$f":"IF(ISERROR(FIND(AI$3,'CFR - XML import'!$A86)),0,VALUE(MID('CFR - XML import'!$A86,SEARCH(\">\",'CFR - XML import'!$A86,1)+1,SEARCH(\"/\",'CFR - XML import'!$A86,1)-SEARCH(\">\",'CFR - XML import'!$A86,1)-2)))","v":0},{"$f":"IF(ISERROR(FIND(AJ$3,'CFR - XML import'!$A86)),0,VALUE(MID('CFR - XML import'!$A86,SEARCH(\">\",'CFR - XML import'!$A86,1)+1,SEARCH(\"/\",'CFR - XML import'!$A86,1)-SEARCH(\">\",'CFR - XML import'!$A86,1)-2)))","v":0},{"$f":"IF(ISERROR(FIND(AK$3,'CFR - XML import'!$A86)),0,VALUE(MID('CFR - XML import'!$A86,SEARCH(\">\",'CFR - XML import'!$A86,1)+1,SEARCH(\"/\",'CFR - XML import'!$A86,1)-SEARCH(\">\",'CFR - XML import'!$A86,1)-2)))","v":0},{"$f":"IF(ISERROR(FIND(AL$3,'CFR - XML import'!$A86)),0,VALUE(MID('CFR - XML import'!$A86,SEARCH(\">\",'CFR - XML import'!$A86,1)+1,SEARCH(\"/\",'CFR - XML import'!$A86,1)-SEARCH(\">\",'CFR - XML import'!$A86,1)-2)))","v":0},{"$f":"IF(ISERROR(FIND(AM$3,'CFR - XML import'!$A86)),0,VALUE(MID('CFR - XML import'!$A86,SEARCH(\">\",'CFR - XML import'!$A86,1)+1,SEARCH(\"/\",'CFR - XML import'!$A86,1)-SEARCH(\">\",'CFR - XML import'!$A86,1)-2)))","v":0},{"$f":"IF(ISERROR(FIND(AN$3,'CFR - XML import'!$A86)),0,VALUE(MID('CFR - XML import'!$A86,SEARCH(\">\",'CFR - XML import'!$A86,1)+1,SEARCH(\"/\",'CFR - XML import'!$A86,1)-SEARCH(\">\",'CFR - XML import'!$A86,1)-2)))","v":0},{"$f":"IF(ISERROR(FIND(AO$3,'CFR - XML import'!$A86)),0,VALUE(MID('CFR - XML import'!$A86,SEARCH(\">\",'CFR - XML import'!$A86,1)+1,SEARCH(\"/\",'CFR - XML import'!$A86,1)-SEARCH(\">\",'CFR - XML import'!$A86,1)-2)))","v":0},{"$f":"IF(ISERROR(FIND(AP$3,'CFR - XML import'!$A86)),0,VALUE(MID('CFR - XML import'!$A86,SEARCH(\">\",'CFR - XML import'!$A86,1)+1,SEARCH(\"/\",'CFR - XML import'!$A86,1)-SEARCH(\">\",'CFR - XML import'!$A86,1)-2)))","v":0},{"$f":"IF(ISERROR(FIND(AQ$3,'CFR - XML import'!$A86)),0,VALUE(MID('CFR - XML import'!$A86,SEARCH(\">\",'CFR - XML import'!$A86,1)+1,SEARCH(\"/\",'CFR - XML import'!$A86,1)-SEARCH(\">\",'CFR - XML import'!$A86,1)-2)))","v":0},{"$f":"IF(ISERROR(FIND(AR$3,'CFR - XML import'!$A86)),0,VALUE(MID('CFR - XML import'!$A86,SEARCH(\">\",'CFR - XML import'!$A86,1)+1,SEARCH(\"/\",'CFR - XML import'!$A86,1)-SEARCH(\">\",'CFR - XML import'!$A86,1)-2)))","v":0},{"$f":"IF(ISERROR(FIND(AS$3,'CFR - XML import'!$A86)),0,VALUE(MID('CFR - XML import'!$A86,SEARCH(\">\",'CFR - XML import'!$A86,1)+1,SEARCH(\"/\",'CFR - XML import'!$A86,1)-SEARCH(\">\",'CFR - XML import'!$A86,1)-2)))","v":0},{"$f":"IF(ISERROR(FIND(AT$3,'CFR - XML import'!$A86)),0,VALUE(MID('CFR - XML import'!$A86,SEARCH(\">\",'CFR - XML import'!$A86,1)+1,SEARCH(\"/\",'CFR - XML import'!$A86,1)-SEARCH(\">\",'CFR - XML import'!$A86,1)-2)))","v":0},{"$f":"IF(ISERROR(FIND(AU$3,'CFR - XML import'!$A86)),0,VALUE(MID('CFR - XML import'!$A86,SEARCH(\">\",'CFR - XML import'!$A86,1)+1,SEARCH(\"/\",'CFR - XML import'!$A86,1)-SEARCH(\">\",'CFR - XML import'!$A86,1)-2)))","v":0},{"$f":"IF(ISERROR(FIND(AV$3,'CFR - XML import'!$A86)),0,VALUE(MID('CFR - XML import'!$A86,SEARCH(\">\",'CFR - XML import'!$A86,1)+1,SEARCH(\"/\",'CFR - XML import'!$A86,1)-SEARCH(\">\",'CFR - XML import'!$A86,1)-2)))","v":0},{"$f":"IF(ISERROR(FIND(AW$3,'CFR - XML import'!$A86)),0,VALUE(MID('CFR - XML import'!$A86,SEARCH(\">\",'CFR - XML import'!$A86,1)+1,SEARCH(\"/\",'CFR - XML import'!$A86,1)-SEARCH(\">\",'CFR - XML import'!$A86,1)-2)))","v":0},{"$f":"IF(ISERROR(FIND(AX$3,'CFR - XML import'!$A86)),0,VALUE(MID('CFR - XML import'!$A86,SEARCH(\">\",'CFR - XML import'!$A86,1)+1,SEARCH(\"/\",'CFR - XML import'!$A86,1)-SEARCH(\">\",'CFR - XML import'!$A86,1)-2)))","v":0},{"$f":"IF(ISERROR(FIND(AY$3,'CFR - XML import'!$A86)),0,VALUE(MID('CFR - XML import'!$A86,SEARCH(\">\",'CFR - XML import'!$A86,1)+1,SEARCH(\"/\",'CFR - XML import'!$A86,1)-SEARCH(\">\",'CFR - XML import'!$A86,1)-2)))","v":0},{"$f":"IF(ISERROR(FIND(AZ$3,'CFR - XML import'!$A86)),0,VALUE(MID('CFR - XML import'!$A86,SEARCH(\">\",'CFR - XML import'!$A86,1)+1,SEARCH(\"/\",'CFR - XML import'!$A86,1)-SEARCH(\">\",'CFR - XML import'!$A86,1)-2)))","v":0},{"$f":"IF(ISERROR(FIND(BA$3,'CFR - XML import'!$A86)),0,VALUE(MID('CFR - XML import'!$A86,SEARCH(\">\",'CFR - XML import'!$A86,1)+1,SEARCH(\"/\",'CFR - XML import'!$A86,1)-SEARCH(\">\",'CFR - XML import'!$A86,1)-2)))","v":0},{"$f":"IF(ISERROR(FIND(BB$3,'CFR - XML import'!$A86)),0,VALUE(MID('CFR - XML import'!$A86,SEARCH(\">\",'CFR - XML import'!$A86,1)+1,SEARCH(\"/\",'CFR - XML import'!$A86,1)-SEARCH(\">\",'CFR - XML import'!$A86,1)-2)))","v":0},{"$f":"IF(ISERROR(FIND(BC$3,'CFR - XML import'!$A86)),0,VALUE(MID('CFR - XML import'!$A86,SEARCH(\">\",'CFR - XML import'!$A86,1)+1,SEARCH(\"/\",'CFR - XML import'!$A86,1)-SEARCH(\">\",'CFR - XML import'!$A86,1)-2)))","v":0},{"$f":"IF(ISERROR(FIND(BD$3,'CFR - XML import'!$A86)),0,VALUE(MID('CFR - XML import'!$A86,SEARCH(\">\",'CFR - XML import'!$A86,1)+1,SEARCH(\"/\",'CFR - XML import'!$A86,1)-SEARCH(\">\",'CFR - XML import'!$A86,1)-2)))","v":0},{"$f":"IF(ISERROR(FIND(BE$3,'CFR - XML import'!$A86)),0,VALUE(MID('CFR - XML import'!$A86,SEARCH(\">\",'CFR - XML import'!$A86,1)+1,SEARCH(\"/\",'CFR - XML import'!$A86,1)-SEARCH(\">\",'CFR - XML import'!$A86,1)-2)))","v":0},{"$f":"IF(ISERROR(FIND(BF$3,'CFR - XML import'!$A86)),0,VALUE(MID('CFR - XML import'!$A86,SEARCH(\">\",'CFR - XML import'!$A86,1)+1,SEARCH(\"/\",'CFR - XML import'!$A86,1)-SEARCH(\">\",'CFR - XML import'!$A86,1)-2)))","v":0},{"$f":"IF(ISERROR(FIND(BG$3,'CFR - XML import'!$A86)),0,VALUE(MID('CFR - XML import'!$A86,SEARCH(\">\",'CFR - XML import'!$A86,1)+1,SEARCH(\"/\",'CFR - XML import'!$A86,1)-SEARCH(\">\",'CFR - XML import'!$A86,1)-2)))","v":0},{"$f":"IF(ISERROR(FIND(BH$3,'CFR - XML import'!$A86)),0,VALUE(MID('CFR - XML import'!$A86,SEARCH(\">\",'CFR - XML import'!$A86,1)+1,SEARCH(\"/\",'CFR - XML import'!$A86,1)-SEARCH(\">\",'CFR - XML import'!$A86,1)-2)))","v":0},{"$f":"IF(ISERROR(FIND(BI$3,'CFR - XML import'!$A86)),0,VALUE(MID('CFR - XML import'!$A86,SEARCH(\">\",'CFR - XML import'!$A86,1)+1,SEARCH(\"/\",'CFR - XML import'!$A86,1)-SEARCH(\">\",'CFR - XML import'!$A86,1)-2)))","v":0},{"$f":"IF(ISERROR(FIND(BJ$3,'CFR - XML import'!$A86)),0,VALUE(MID('CFR - XML import'!$A86,SEARCH(\">\",'CFR - XML import'!$A86,1)+1,SEARCH(\"/\",'CFR - XML import'!$A86,1)-SEARCH(\">\",'CFR - XML import'!$A86,1)-2)))","v":0},{"$f":"IF(ISERROR(FIND(BK$3,'CFR - XML import'!$A86)),0,VALUE(MID('CFR - XML import'!$A86,SEARCH(\">\",'CFR - XML import'!$A86,1)+1,SEARCH(\"/\",'CFR - XML import'!$A86,1)-SEARCH(\">\",'CFR - XML import'!$A86,1)-2)))","v":0},{"$f":"IF(ISERROR(FIND(BL$3,'CFR - XML import'!$A86)),0,VALUE(MID('CFR - XML import'!$A86,SEARCH(\">\",'CFR - XML import'!$A86,1)+1,SEARCH(\"/\",'CFR - XML import'!$A86,1)-SEARCH(\">\",'CFR - XML import'!$A86,1)-2)))","v":0},{"$f":"IF(ISERROR(FIND(BM$3,'CFR - XML import'!$A86)),0,VALUE(MID('CFR - XML import'!$A86,SEARCH(\">\",'CFR - XML import'!$A86,1)+1,SEARCH(\"/\",'CFR - XML import'!$A86,1)-SEARCH(\">\",'CFR - XML import'!$A86,1)-2)))","v":0},{"$f":"IF(ISERROR(FIND(BN$3,'CFR - XML import'!$A86)),0,VALUE(MID('CFR - XML import'!$A86,SEARCH(\">\",'CFR - XML import'!$A86,1)+1,SEARCH(\"/\",'CFR - XML import'!$A86,1)-SEARCH(\">\",'CFR - XML import'!$A86,1)-2)))","v":0},{"$f":"IF(ISERROR(FIND(BO$3,'CFR - XML import'!$A86)),0,VALUE(MID('CFR - XML import'!$A86,SEARCH(\">\",'CFR - XML import'!$A86,1)+1,SEARCH(\"/\",'CFR - XML import'!$A86,1)-SEARCH(\">\",'CFR - XML import'!$A86,1)-2)))","v":0},{"$f":"IF(ISERROR(FIND(BP$3,'CFR - XML import'!$A86)),0,VALUE(MID('CFR - XML import'!$A86,SEARCH(\">\",'CFR - XML import'!$A86,1)+1,SEARCH(\"/\",'CFR - XML import'!$A86,1)-SEARCH(\">\",'CFR - XML import'!$A86,1)-2)))","v":0},{"$f":"IF(ISERROR(FIND(BQ$3,'CFR - XML import'!$A86)),0,VALUE(MID('CFR - XML import'!$A86,SEARCH(\">\",'CFR - XML import'!$A86,1)+1,SEARCH(\"/\",'CFR - XML import'!$A86,1)-SEARCH(\">\",'CFR - XML import'!$A86,1)-2)))","v":0},{"$f":"IF(ISERROR(FIND(BR$3,'CFR - XML import'!$A86)),0,VALUE(MID('CFR - XML import'!$A86,SEARCH(\">\",'CFR - XML import'!$A86,1)+1,SEARCH(\"/\",'CFR - XML import'!$A86,1)-SEARCH(\">\",'CFR - XML import'!$A86,1)-2)))","v":0},{"$f":"IF(ISERROR(FIND(BS$3,'CFR - XML import'!$A86)),0,VALUE(MID('CFR - XML import'!$A86,SEARCH(\">\",'CFR - XML import'!$A86,1)+1,SEARCH(\"/\",'CFR - XML import'!$A86,1)-SEARCH(\">\",'CFR - XML import'!$A86,1)-2)))","v":0},{"$f":"IF(ISERROR(FIND(BT$3,'CFR - XML import'!$A86)),0,VALUE(MID('CFR - XML import'!$A86,SEARCH(\">\",'CFR - XML import'!$A86,1)+1,SEARCH(\"/\",'CFR - XML import'!$A86,1)-SEARCH(\">\",'CFR - XML import'!$A86,1)-2)))","v":0},{"$f":"IF(ISERROR(FIND(BU$3,'CFR - XML import'!$A86)),0,VALUE(MID('CFR - XML import'!$A86,SEARCH(\">\",'CFR - XML import'!$A86,1)+1,SEARCH(\"/\",'CFR - XML import'!$A86,1)-SEARCH(\">\",'CFR - XML import'!$A86,1)-2)))","v":0},{"$f":"IF(ISERROR(FIND(BV$3,'CFR - XML import'!$A86)),0,VALUE(MID('CFR - XML import'!$A86,SEARCH(\">\",'CFR - XML import'!$A86,1)+1,SEARCH(\"/\",'CFR - XML import'!$A86,1)-SEARCH(\">\",'CFR - XML import'!$A86,1)-2)))","v":0},{"$f":"IF(ISERROR(FIND(BW$3,'CFR - XML import'!$A86)),0,VALUE(MID('CFR - XML import'!$A86,SEARCH(\">\",'CFR - XML import'!$A86,1)+1,SEARCH(\"/\",'CFR - XML import'!$A86,1)-SEARCH(\">\",'CFR - XML import'!$A86,1)-2)))","v":0},{"$f":"IF(ISERROR(FIND(BX$3,'CFR - XML import'!$A86)),0,VALUE(MID('CFR - XML import'!$A86,SEARCH(\">\",'CFR - XML import'!$A86,1)+1,SEARCH(\"/\",'CFR - XML import'!$A86,1)-SEARCH(\">\",'CFR - XML import'!$A86,1)-2)))","v":0},{"$f":"IF(ISERROR(FIND(BY$3,'CFR - XML import'!$A86)),0,VALUE(MID('CFR - XML import'!$A86,SEARCH(\">\",'CFR - XML import'!$A86,1)+1,SEARCH(\"/\",'CFR - XML import'!$A86,1)-SEARCH(\">\",'CFR - XML import'!$A86,1)-2)))","v":0},{"$f":"IF(ISERROR(FIND(BZ$3,'CFR - XML import'!$A86)),0,VALUE(MID('CFR - XML import'!$A86,SEARCH(\">\",'CFR - XML import'!$A86,1)+1,SEARCH(\"/\",'CFR - XML import'!$A86,1)-SEARCH(\">\",'CFR - XML import'!$A86,1)-2)))","v":0},null,null,null,null,null,null,{"$f":"IF(ISERROR(IF(MID('CFR - XML import'!$A86,LEN($CF$4)+1,LEN('CFR - XML import'!$A86)-(2*LEN($CF$4)+1))=\"RMMS\",1,IF(MID('CFR - XML import'!$A86,LEN(\"    <InputSystem>\")+1,LEN('CFR - XML import'!$A86)-(LEN(\"    <InputSystem>\")+LEN($CF$4)+1))=\"SIMS\",2,0))),0,IF(MID('CFR - XML import'!$A86,LEN($CF$4)+1,LEN('CFR - XML import'!$A86)-(2*LEN($CF$4)+1))=\"RMMS\",1,IF(MID('CFR - XML import'!$A86,LEN(\"    <InputSystem>\")+1,LEN('CFR - XML import'!$A86)-(LEN(\"    <InputSystem>\")+LEN($CF$4)+1))=\"SIMS\",2,0)))","v":0},{"$f":"IF(ISERROR(FIND(CH$3,'CFR - XML import'!$A86)),0,MID('CFR - XML import'!$A86,SEARCH(\">\",'CFR - XML import'!$A86,1)+1,SEARCH(\"/\",'CFR - XML import'!$A86,1)-SEARCH(\">\",'CFR - XML import'!$A86,1)-2))","v":0},{"$f":"IF(ISERROR(FIND(CI$3,'CFR - XML import'!$A86)),0,MID('CFR - XML import'!$A86,SEARCH(\">\",'CFR - XML import'!$A86,1)+1,SEARCH(\"/\",'CFR - XML import'!$A86,1)-SEARCH(\">\",'CFR - XML import'!$A86,1)-2))","v":0},{"$f":"IF(ISERROR(FIND(CJ$3,'CFR - XML import'!$A86)),0,MID('CFR - XML import'!$A86,SEARCH(\">\",'CFR - XML import'!$A86,1)+1,SEARCH(\"/\",'CFR - XML import'!$A86,1)-SEARCH(\">\",'CFR - XML import'!$A86,1)-2))","v":0},{"$f":"IF(ISERROR(FIND(CK$3,'CFR - XML import'!$A86)),0,MID('CFR - XML import'!$A86,SEARCH(\">\",'CFR - XML import'!$A86,1)+1,SEARCH(\"/\",'CFR - XML import'!$A86,1)-SEARCH(\">\",'CFR - XML import'!$A86,1)-2))","v":0},{"$f":"IF(ISERROR(FIND(CL$3,'CFR - XML import'!$A86)),0,MID('CFR - XML import'!$A86,SEARCH(\">\",'CFR - XML import'!$A86,1)+1,SEARCH(\"/\",'CFR - XML import'!$A86,1)-SEARCH(\">\",'CFR - XML import'!$A86,1)-2))","v":0}]
[{"$f":"IF(AND('CFR - XML import'!A87<>\"\",LEFT('CFR - XML import'!A87,1)<>\"<\",LEFT('CFR - XML import'!A87,3)<>\"  <\",LEFT('CFR - XML import'!A87,5)<>\"    <\",LEFT('CFR - XML import'!A87,7)<>\"      <\",LEFT('CFR - XML import'!A87,9)<>\"        <\",$B$1=\"SIMS\"),'CFR - XML import'!A87,IF(AND(LEFT('CFR - XML import'!A87,9)=\"<Details>\",$B$1=\"RM\"),'CFR - XML import'!A87,\"\"))","v":""},{"$f":"IF(ISERROR(FIND(B$3,'CFR - XML import'!$A87)),0,VALUE(MID('CFR - XML import'!$A87,SEARCH(\">\",'CFR - XML import'!$A87,1)+1,SEARCH(\"/\",'CFR - XML import'!$A87,1)-SEARCH(\">\",'CFR - XML import'!$A87,1)-2)))","v":0},null,{"$f":"IF(ISERROR(FIND(D$3,'CFR - XML import'!$A87)),0,MID('CFR - XML import'!$A87,SEARCH(\">\",'CFR - XML import'!$A87,1)+1,SEARCH(\"/\",'CFR - XML import'!$A87,1)-SEARCH(\">\",'CFR - XML import'!$A87,1)-2))","v":0},{"$f":"IF(ISERROR(FIND(E$3,'CFR - XML import'!$A87)),0,MID('CFR - XML import'!$A87,SEARCH(\">\",'CFR - XML import'!$A87,1)+1,SEARCH(\"/\",'CFR - XML import'!$A87,1)-SEARCH(\">\",'CFR - XML import'!$A87,1)-2))","v":0},{"$f":"IF($B$1=\"SIMS\",IF(ISERROR(FIND(F$3,'CFR - XML import'!$A87)),0,VALUE(MID('CFR - XML import'!$A87,15,10))),IF(ISERROR(FIND(F$3,'CFR - XML import'!$A87)),0,VALUE(MID('CFR - XML import'!$A87,11,10))))","v":"00:00:00"},{"$f":"IF(ISERROR(FIND(G$3,'CFR - XML import'!$A87)),0,VALUE(MID('CFR - XML import'!$A87,SEARCH(\">\",'CFR - XML import'!$A87,1)+1,SEARCH(\"/\",'CFR - XML import'!$A87,1)-SEARCH(\">\",'CFR - XML import'!$A87,1)-2)))","v":0},{"$f":"IF(ISERROR(FIND(H$3,'CFR - XML import'!$A87)),0,VALUE(MID('CFR - XML import'!$A87,SEARCH(\">\",'CFR - XML import'!$A87,1)+1,SEARCH(\"/\",'CFR - XML import'!$A87,1)-SEARCH(\">\",'CFR - XML import'!$A87,1)-2)))","v":0},{"$f":"IF(ISERROR(FIND(I$3,'CFR - XML import'!$A87)),0,VALUE(MID('CFR - XML import'!$A87,SEARCH(\">\",'CFR - XML import'!$A87,1)+1,SEARCH(\"/\",'CFR - XML import'!$A87,1)-SEARCH(\">\",'CFR - XML import'!$A87,1)-2)))","v":0},{"$f":"IF(ISERROR(FIND(J$3,'CFR - XML import'!$A87)),0,VALUE(MID('CFR - XML import'!$A87,SEARCH(\">\",'CFR - XML import'!$A87,1)+1,SEARCH(\"/\",'CFR - XML import'!$A87,1)-SEARCH(\">\",'CFR - XML import'!$A87,1)-2)))","v":0},{"$f":"IF(ISERROR(FIND(K$3,'CFR - XML import'!$A87)),0,VALUE(MID('CFR - XML import'!$A87,SEARCH(\">\",'CFR - XML import'!$A87,1)+1,SEARCH(\"/\",'CFR - XML import'!$A87,1)-SEARCH(\">\",'CFR - XML import'!$A87,1)-2)))","v":0},{"$f":"IF(ISERROR(FIND(L$3,'CFR - XML import'!$A87)),0,VALUE(MID('CFR - XML import'!$A87,SEARCH(\">\",'CFR - XML import'!$A87,1)+1,SEARCH(\"/\",'CFR - XML import'!$A87,1)-SEARCH(\">\",'CFR - XML import'!$A87,1)-2)))","v":0},{"$f":"IF(ISERROR(FIND(M$3,'CFR - XML import'!$A87)),0,VALUE(MID('CFR - XML import'!$A87,SEARCH(\">\",'CFR - XML import'!$A87,1)+1,SEARCH(\"/\",'CFR - XML import'!$A87,1)-SEARCH(\">\",'CFR - XML import'!$A87,1)-2)))","v":0},{"$f":"IF(ISERROR(FIND(N$3,'CFR - XML import'!$A87)),0,VALUE(MID('CFR - XML import'!$A87,SEARCH(\">\",'CFR - XML import'!$A87,1)+1,SEARCH(\"/\",'CFR - XML import'!$A87,1)-SEARCH(\">\",'CFR - XML import'!$A87,1)-2)))","v":0},{"$f":"IF(ISERROR(FIND(O$3,'CFR - XML import'!$A87)),0,VALUE(MID('CFR - XML import'!$A87,SEARCH(\">\",'CFR - XML import'!$A87,1)+1,SEARCH(\"/\",'CFR - XML import'!$A87,1)-SEARCH(\">\",'CFR - XML import'!$A87,1)-2)))","v":0},{"$f":"IF(ISERROR(FIND(P$3,'CFR - XML import'!$A87)),0,VALUE(MID('CFR - XML import'!$A87,SEARCH(\">\",'CFR - XML import'!$A87,1)+1,SEARCH(\"/\",'CFR - XML import'!$A87,1)-SEARCH(\">\",'CFR - XML import'!$A87,1)-2)))","v":0},{"$f":"IF(ISERROR(FIND(Q$3,'CFR - XML import'!$A87)),0,VALUE(MID('CFR - XML import'!$A87,SEARCH(\">\",'CFR - XML import'!$A87,1)+1,SEARCH(\"/\",'CFR - XML import'!$A87,1)-SEARCH(\">\",'CFR - XML import'!$A87,1)-2)))","v":0},{"$f":"IF(ISERROR(FIND(R$3,'CFR - XML import'!$A87)),0,VALUE(MID('CFR - XML import'!$A87,SEARCH(\">\",'CFR - XML import'!$A87,1)+1,SEARCH(\"/\",'CFR - XML import'!$A87,1)-SEARCH(\">\",'CFR - XML import'!$A87,1)-2)))","v":0},{"$f":"IF(ISERROR(FIND(S$3,'CFR - XML import'!$A87)),0,VALUE(MID('CFR - XML import'!$A87,SEARCH(\">\",'CFR - XML import'!$A87,1)+1,SEARCH(\"/\",'CFR - XML import'!$A87,1)-SEARCH(\">\",'CFR - XML import'!$A87,1)-2)))","v":0},{"$f":"IF(ISERROR(FIND(T$3,'CFR - XML import'!$A87)),0,VALUE(MID('CFR - XML import'!$A87,SEARCH(\">\",'CFR - XML import'!$A87,1)+1,SEARCH(\"/\",'CFR - XML import'!$A87,1)-SEARCH(\">\",'CFR - XML import'!$A87,1)-2)))","v":0},{"$f":"IF(ISERROR(FIND(U$3,'CFR - XML import'!$A87)),0,VALUE(MID('CFR - XML import'!$A87,SEARCH(\">\",'CFR - XML import'!$A87,1)+1,SEARCH(\"/\",'CFR - XML import'!$A87,1)-SEARCH(\">\",'CFR - XML import'!$A87,1)-2)))","v":0},{"$f":"IF(ISERROR(FIND(V$3,'CFR - XML import'!$A87)),0,VALUE(MID('CFR - XML import'!$A87,SEARCH(\">\",'CFR - XML import'!$A87,1)+1,SEARCH(\"/\",'CFR - XML import'!$A87,1)-SEARCH(\">\",'CFR - XML import'!$A87,1)-2)))","v":0},{"$f":"IF(ISERROR(FIND(W$3,'CFR - XML import'!$A87)),0,VALUE(MID('CFR - XML import'!$A87,SEARCH(\">\",'CFR - XML import'!$A87,1)+1,SEARCH(\"/\",'CFR - XML import'!$A87,1)-SEARCH(\">\",'CFR - XML import'!$A87,1)-2)))","v":0},null,{"$f":"IF(ISERROR(FIND(Y$3,'CFR - XML import'!$A87)),0,VALUE(MID('CFR - XML import'!$A87,SEARCH(\">\",'CFR - XML import'!$A87,1)+1,SEARCH(\"/\",'CFR - XML import'!$A87,1)-SEARCH(\">\",'CFR - XML import'!$A87,1)-2)))","v":0},{"$f":"IF(ISERROR(FIND(Z$3,'CFR - XML import'!$A87)),0,VALUE(MID('CFR - XML import'!$A87,SEARCH(\">\",'CFR - XML import'!$A87,1)+1,SEARCH(\"/\",'CFR - XML import'!$A87,1)-SEARCH(\">\",'CFR - XML import'!$A87,1)-2)))","v":0},{"$f":"IF(ISERROR(FIND(AA$3,'CFR - XML import'!$A87)),0,VALUE(MID('CFR - XML import'!$A87,SEARCH(\">\",'CFR - XML import'!$A87,1)+1,SEARCH(\"/\",'CFR - XML import'!$A87,1)-SEARCH(\">\",'CFR - XML import'!$A87,1)-2)))","v":0},{"$f":"IF(ISERROR(FIND(AB$3,'CFR - XML import'!$A87)),0,VALUE(MID('CFR - XML import'!$A87,SEARCH(\">\",'CFR - XML import'!$A87,1)+1,SEARCH(\"/\",'CFR - XML import'!$A87,1)-SEARCH(\">\",'CFR - XML import'!$A87,1)-2)))","v":0},{"$f":"IF(ISERROR(FIND(AC$3,'CFR - XML import'!$A87)),0,VALUE(MID('CFR - XML import'!$A87,SEARCH(\">\",'CFR - XML import'!$A87,1)+1,SEARCH(\"/\",'CFR - XML import'!$A87,1)-SEARCH(\">\",'CFR - XML import'!$A87,1)-2)))","v":0},{"$f":"IF(ISERROR(FIND(AD$3,'CFR - XML import'!$A87)),0,VALUE(MID('CFR - XML import'!$A87,SEARCH(\">\",'CFR - XML import'!$A87,1)+1,SEARCH(\"/\",'CFR - XML import'!$A87,1)-SEARCH(\">\",'CFR - XML import'!$A87,1)-2)))","v":0},{"$f":"IF(ISERROR(FIND(AE$3,'CFR - XML import'!$A87)),0,VALUE(MID('CFR - XML import'!$A87,SEARCH(\">\",'CFR - XML import'!$A87,1)+1,SEARCH(\"/\",'CFR - XML import'!$A87,1)-SEARCH(\">\",'CFR - XML import'!$A87,1)-2)))","v":0},{"$f":"IF(ISERROR(FIND(AF$3,'CFR - XML import'!$A87)),0,VALUE(MID('CFR - XML import'!$A87,SEARCH(\">\",'CFR - XML import'!$A87,1)+1,SEARCH(\"/\",'CFR - XML import'!$A87,1)-SEARCH(\">\",'CFR - XML import'!$A87,1)-2)))","v":0},{"$f":"IF(ISERROR(FIND(AG$3,'CFR - XML import'!$A87)),0,VALUE(MID('CFR - XML import'!$A87,SEARCH(\">\",'CFR - XML import'!$A87,1)+1,SEARCH(\"/\",'CFR - XML import'!$A87,1)-SEARCH(\">\",'CFR - XML import'!$A87,1)-2)))","v":0},{"$f":"IF(ISERROR(FIND(AH$3,'CFR - XML import'!$A87)),0,VALUE(MID('CFR - XML import'!$A87,SEARCH(\">\",'CFR - XML import'!$A87,1)+1,SEARCH(\"/\",'CFR - XML import'!$A87,1)-SEARCH(\">\",'CFR - XML import'!$A87,1)-2)))","v":0},{"$f":"IF(ISERROR(FIND(AI$3,'CFR - XML import'!$A87)),0,VALUE(MID('CFR - XML import'!$A87,SEARCH(\">\",'CFR - XML import'!$A87,1)+1,SEARCH(\"/\",'CFR - XML import'!$A87,1)-SEARCH(\">\",'CFR - XML import'!$A87,1)-2)))","v":0},{"$f":"IF(ISERROR(FIND(AJ$3,'CFR - XML import'!$A87)),0,VALUE(MID('CFR - XML import'!$A87,SEARCH(\">\",'CFR - XML import'!$A87,1)+1,SEARCH(\"/\",'CFR - XML import'!$A87,1)-SEARCH(\">\",'CFR - XML import'!$A87,1)-2)))","v":0},{"$f":"IF(ISERROR(FIND(AK$3,'CFR - XML import'!$A87)),0,VALUE(MID('CFR - XML import'!$A87,SEARCH(\">\",'CFR - XML import'!$A87,1)+1,SEARCH(\"/\",'CFR - XML import'!$A87,1)-SEARCH(\">\",'CFR - XML import'!$A87,1)-2)))","v":0},{"$f":"IF(ISERROR(FIND(AL$3,'CFR - XML import'!$A87)),0,VALUE(MID('CFR - XML import'!$A87,SEARCH(\">\",'CFR - XML import'!$A87,1)+1,SEARCH(\"/\",'CFR - XML import'!$A87,1)-SEARCH(\">\",'CFR - XML import'!$A87,1)-2)))","v":0},{"$f":"IF(ISERROR(FIND(AM$3,'CFR - XML import'!$A87)),0,VALUE(MID('CFR - XML import'!$A87,SEARCH(\">\",'CFR - XML import'!$A87,1)+1,SEARCH(\"/\",'CFR - XML import'!$A87,1)-SEARCH(\">\",'CFR - XML import'!$A87,1)-2)))","v":0},{"$f":"IF(ISERROR(FIND(AN$3,'CFR - XML import'!$A87)),0,VALUE(MID('CFR - XML import'!$A87,SEARCH(\">\",'CFR - XML import'!$A87,1)+1,SEARCH(\"/\",'CFR - XML import'!$A87,1)-SEARCH(\">\",'CFR - XML import'!$A87,1)-2)))","v":0},{"$f":"IF(ISERROR(FIND(AO$3,'CFR - XML import'!$A87)),0,VALUE(MID('CFR - XML import'!$A87,SEARCH(\">\",'CFR - XML import'!$A87,1)+1,SEARCH(\"/\",'CFR - XML import'!$A87,1)-SEARCH(\">\",'CFR - XML import'!$A87,1)-2)))","v":0},{"$f":"IF(ISERROR(FIND(AP$3,'CFR - XML import'!$A87)),0,VALUE(MID('CFR - XML import'!$A87,SEARCH(\">\",'CFR - XML import'!$A87,1)+1,SEARCH(\"/\",'CFR - XML import'!$A87,1)-SEARCH(\">\",'CFR - XML import'!$A87,1)-2)))","v":0},{"$f":"IF(ISERROR(FIND(AQ$3,'CFR - XML import'!$A87)),0,VALUE(MID('CFR - XML import'!$A87,SEARCH(\">\",'CFR - XML import'!$A87,1)+1,SEARCH(\"/\",'CFR - XML import'!$A87,1)-SEARCH(\">\",'CFR - XML import'!$A87,1)-2)))","v":0},{"$f":"IF(ISERROR(FIND(AR$3,'CFR - XML import'!$A87)),0,VALUE(MID('CFR - XML import'!$A87,SEARCH(\">\",'CFR - XML import'!$A87,1)+1,SEARCH(\"/\",'CFR - XML import'!$A87,1)-SEARCH(\">\",'CFR - XML import'!$A87,1)-2)))","v":0},{"$f":"IF(ISERROR(FIND(AS$3,'CFR - XML import'!$A87)),0,VALUE(MID('CFR - XML import'!$A87,SEARCH(\">\",'CFR - XML import'!$A87,1)+1,SEARCH(\"/\",'CFR - XML import'!$A87,1)-SEARCH(\">\",'CFR - XML import'!$A87,1)-2)))","v":0},{"$f":"IF(ISERROR(FIND(AT$3,'CFR - XML import'!$A87)),0,VALUE(MID('CFR - XML import'!$A87,SEARCH(\">\",'CFR - XML import'!$A87,1)+1,SEARCH(\"/\",'CFR - XML import'!$A87,1)-SEARCH(\">\",'CFR - XML import'!$A87,1)-2)))","v":0},{"$f":"IF(ISERROR(FIND(AU$3,'CFR - XML import'!$A87)),0,VALUE(MID('CFR - XML import'!$A87,SEARCH(\">\",'CFR - XML import'!$A87,1)+1,SEARCH(\"/\",'CFR - XML import'!$A87,1)-SEARCH(\">\",'CFR - XML import'!$A87,1)-2)))","v":0},{"$f":"IF(ISERROR(FIND(AV$3,'CFR - XML import'!$A87)),0,VALUE(MID('CFR - XML import'!$A87,SEARCH(\">\",'CFR - XML import'!$A87,1)+1,SEARCH(\"/\",'CFR - XML import'!$A87,1)-SEARCH(\">\",'CFR - XML import'!$A87,1)-2)))","v":0},{"$f":"IF(ISERROR(FIND(AW$3,'CFR - XML import'!$A87)),0,VALUE(MID('CFR - XML import'!$A87,SEARCH(\">\",'CFR - XML import'!$A87,1)+1,SEARCH(\"/\",'CFR - XML import'!$A87,1)-SEARCH(\">\",'CFR - XML import'!$A87,1)-2)))","v":0},{"$f":"IF(ISERROR(FIND(AX$3,'CFR - XML import'!$A87)),0,VALUE(MID('CFR - XML import'!$A87,SEARCH(\">\",'CFR - XML import'!$A87,1)+1,SEARCH(\"/\",'CFR - XML import'!$A87,1)-SEARCH(\">\",'CFR - XML import'!$A87,1)-2)))","v":0},{"$f":"IF(ISERROR(FIND(AY$3,'CFR - XML import'!$A87)),0,VALUE(MID('CFR - XML import'!$A87,SEARCH(\">\",'CFR - XML import'!$A87,1)+1,SEARCH(\"/\",'CFR - XML import'!$A87,1)-SEARCH(\">\",'CFR - XML import'!$A87,1)-2)))","v":0},{"$f":"IF(ISERROR(FIND(AZ$3,'CFR - XML import'!$A87)),0,VALUE(MID('CFR - XML import'!$A87,SEARCH(\">\",'CFR - XML import'!$A87,1)+1,SEARCH(\"/\",'CFR - XML import'!$A87,1)-SEARCH(\">\",'CFR - XML import'!$A87,1)-2)))","v":0},{"$f":"IF(ISERROR(FIND(BA$3,'CFR - XML import'!$A87)),0,VALUE(MID('CFR - XML import'!$A87,SEARCH(\">\",'CFR - XML import'!$A87,1)+1,SEARCH(\"/\",'CFR - XML import'!$A87,1)-SEARCH(\">\",'CFR - XML import'!$A87,1)-2)))","v":0},{"$f":"IF(ISERROR(FIND(BB$3,'CFR - XML import'!$A87)),0,VALUE(MID('CFR - XML import'!$A87,SEARCH(\">\",'CFR - XML import'!$A87,1)+1,SEARCH(\"/\",'CFR - XML import'!$A87,1)-SEARCH(\">\",'CFR - XML import'!$A87,1)-2)))","v":0},{"$f":"IF(ISERROR(FIND(BC$3,'CFR - XML import'!$A87)),0,VALUE(MID('CFR - XML import'!$A87,SEARCH(\">\",'CFR - XML import'!$A87,1)+1,SEARCH(\"/\",'CFR - XML import'!$A87,1)-SEARCH(\">\",'CFR - XML import'!$A87,1)-2)))","v":0},{"$f":"IF(ISERROR(FIND(BD$3,'CFR - XML import'!$A87)),0,VALUE(MID('CFR - XML import'!$A87,SEARCH(\">\",'CFR - XML import'!$A87,1)+1,SEARCH(\"/\",'CFR - XML import'!$A87,1)-SEARCH(\">\",'CFR - XML import'!$A87,1)-2)))","v":0},{"$f":"IF(ISERROR(FIND(BE$3,'CFR - XML import'!$A87)),0,VALUE(MID('CFR - XML import'!$A87,SEARCH(\">\",'CFR - XML import'!$A87,1)+1,SEARCH(\"/\",'CFR - XML import'!$A87,1)-SEARCH(\">\",'CFR - XML import'!$A87,1)-2)))","v":0},{"$f":"IF(ISERROR(FIND(BF$3,'CFR - XML import'!$A87)),0,VALUE(MID('CFR - XML import'!$A87,SEARCH(\">\",'CFR - XML import'!$A87,1)+1,SEARCH(\"/\",'CFR - XML import'!$A87,1)-SEARCH(\">\",'CFR - XML import'!$A87,1)-2)))","v":0},{"$f":"IF(ISERROR(FIND(BG$3,'CFR - XML import'!$A87)),0,VALUE(MID('CFR - XML import'!$A87,SEARCH(\">\",'CFR - XML import'!$A87,1)+1,SEARCH(\"/\",'CFR - XML import'!$A87,1)-SEARCH(\">\",'CFR - XML import'!$A87,1)-2)))","v":0},{"$f":"IF(ISERROR(FIND(BH$3,'CFR - XML import'!$A87)),0,VALUE(MID('CFR - XML import'!$A87,SEARCH(\">\",'CFR - XML import'!$A87,1)+1,SEARCH(\"/\",'CFR - XML import'!$A87,1)-SEARCH(\">\",'CFR - XML import'!$A87,1)-2)))","v":0},{"$f":"IF(ISERROR(FIND(BI$3,'CFR - XML import'!$A87)),0,VALUE(MID('CFR - XML import'!$A87,SEARCH(\">\",'CFR - XML import'!$A87,1)+1,SEARCH(\"/\",'CFR - XML import'!$A87,1)-SEARCH(\">\",'CFR - XML import'!$A87,1)-2)))","v":0},{"$f":"IF(ISERROR(FIND(BJ$3,'CFR - XML import'!$A87)),0,VALUE(MID('CFR - XML import'!$A87,SEARCH(\">\",'CFR - XML import'!$A87,1)+1,SEARCH(\"/\",'CFR - XML import'!$A87,1)-SEARCH(\">\",'CFR - XML import'!$A87,1)-2)))","v":0},{"$f":"IF(ISERROR(FIND(BK$3,'CFR - XML import'!$A87)),0,VALUE(MID('CFR - XML import'!$A87,SEARCH(\">\",'CFR - XML import'!$A87,1)+1,SEARCH(\"/\",'CFR - XML import'!$A87,1)-SEARCH(\">\",'CFR - XML import'!$A87,1)-2)))","v":0},{"$f":"IF(ISERROR(FIND(BL$3,'CFR - XML import'!$A87)),0,VALUE(MID('CFR - XML import'!$A87,SEARCH(\">\",'CFR - XML import'!$A87,1)+1,SEARCH(\"/\",'CFR - XML import'!$A87,1)-SEARCH(\">\",'CFR - XML import'!$A87,1)-2)))","v":0},{"$f":"IF(ISERROR(FIND(BM$3,'CFR - XML import'!$A87)),0,VALUE(MID('CFR - XML import'!$A87,SEARCH(\">\",'CFR - XML import'!$A87,1)+1,SEARCH(\"/\",'CFR - XML import'!$A87,1)-SEARCH(\">\",'CFR - XML import'!$A87,1)-2)))","v":0},{"$f":"IF(ISERROR(FIND(BN$3,'CFR - XML import'!$A87)),0,VALUE(MID('CFR - XML import'!$A87,SEARCH(\">\",'CFR - XML import'!$A87,1)+1,SEARCH(\"/\",'CFR - XML import'!$A87,1)-SEARCH(\">\",'CFR - XML import'!$A87,1)-2)))","v":0},{"$f":"IF(ISERROR(FIND(BO$3,'CFR - XML import'!$A87)),0,VALUE(MID('CFR - XML import'!$A87,SEARCH(\">\",'CFR - XML import'!$A87,1)+1,SEARCH(\"/\",'CFR - XML import'!$A87,1)-SEARCH(\">\",'CFR - XML import'!$A87,1)-2)))","v":0},{"$f":"IF(ISERROR(FIND(BP$3,'CFR - XML import'!$A87)),0,VALUE(MID('CFR - XML import'!$A87,SEARCH(\">\",'CFR - XML import'!$A87,1)+1,SEARCH(\"/\",'CFR - XML import'!$A87,1)-SEARCH(\">\",'CFR - XML import'!$A87,1)-2)))","v":0},{"$f":"IF(ISERROR(FIND(BQ$3,'CFR - XML import'!$A87)),0,VALUE(MID('CFR - XML import'!$A87,SEARCH(\">\",'CFR - XML import'!$A87,1)+1,SEARCH(\"/\",'CFR - XML import'!$A87,1)-SEARCH(\">\",'CFR - XML import'!$A87,1)-2)))","v":0},{"$f":"IF(ISERROR(FIND(BR$3,'CFR - XML import'!$A87)),0,VALUE(MID('CFR - XML import'!$A87,SEARCH(\">\",'CFR - XML import'!$A87,1)+1,SEARCH(\"/\",'CFR - XML import'!$A87,1)-SEARCH(\">\",'CFR - XML import'!$A87,1)-2)))","v":0},{"$f":"IF(ISERROR(FIND(BS$3,'CFR - XML import'!$A87)),0,VALUE(MID('CFR - XML import'!$A87,SEARCH(\">\",'CFR - XML import'!$A87,1)+1,SEARCH(\"/\",'CFR - XML import'!$A87,1)-SEARCH(\">\",'CFR - XML import'!$A87,1)-2)))","v":0},{"$f":"IF(ISERROR(FIND(BT$3,'CFR - XML import'!$A87)),0,VALUE(MID('CFR - XML import'!$A87,SEARCH(\">\",'CFR - XML import'!$A87,1)+1,SEARCH(\"/\",'CFR - XML import'!$A87,1)-SEARCH(\">\",'CFR - XML import'!$A87,1)-2)))","v":0},{"$f":"IF(ISERROR(FIND(BU$3,'CFR - XML import'!$A87)),0,VALUE(MID('CFR - XML import'!$A87,SEARCH(\">\",'CFR - XML import'!$A87,1)+1,SEARCH(\"/\",'CFR - XML import'!$A87,1)-SEARCH(\">\",'CFR - XML import'!$A87,1)-2)))","v":0},{"$f":"IF(ISERROR(FIND(BV$3,'CFR - XML import'!$A87)),0,VALUE(MID('CFR - XML import'!$A87,SEARCH(\">\",'CFR - XML import'!$A87,1)+1,SEARCH(\"/\",'CFR - XML import'!$A87,1)-SEARCH(\">\",'CFR - XML import'!$A87,1)-2)))","v":0},{"$f":"IF(ISERROR(FIND(BW$3,'CFR - XML import'!$A87)),0,VALUE(MID('CFR - XML import'!$A87,SEARCH(\">\",'CFR - XML import'!$A87,1)+1,SEARCH(\"/\",'CFR - XML import'!$A87,1)-SEARCH(\">\",'CFR - XML import'!$A87,1)-2)))","v":0},{"$f":"IF(ISERROR(FIND(BX$3,'CFR - XML import'!$A87)),0,VALUE(MID('CFR - XML import'!$A87,SEARCH(\">\",'CFR - XML import'!$A87,1)+1,SEARCH(\"/\",'CFR - XML import'!$A87,1)-SEARCH(\">\",'CFR - XML import'!$A87,1)-2)))","v":0},{"$f":"IF(ISERROR(FIND(BY$3,'CFR - XML import'!$A87)),0,VALUE(MID('CFR - XML import'!$A87,SEARCH(\">\",'CFR - XML import'!$A87,1)+1,SEARCH(\"/\",'CFR - XML import'!$A87,1)-SEARCH(\">\",'CFR - XML import'!$A87,1)-2)))","v":0},{"$f":"IF(ISERROR(FIND(BZ$3,'CFR - XML import'!$A87)),0,VALUE(MID('CFR - XML import'!$A87,SEARCH(\">\",'CFR - XML import'!$A87,1)+1,SEARCH(\"/\",'CFR - XML import'!$A87,1)-SEARCH(\">\",'CFR - XML import'!$A87,1)-2)))","v":0},null,null,null,null,null,null,{"$f":"IF(ISERROR(IF(MID('CFR - XML import'!$A87,LEN($CF$4)+1,LEN('CFR - XML import'!$A87)-(2*LEN($CF$4)+1))=\"RMMS\",1,IF(MID('CFR - XML import'!$A87,LEN(\"    <InputSystem>\")+1,LEN('CFR - XML import'!$A87)-(LEN(\"    <InputSystem>\")+LEN($CF$4)+1))=\"SIMS\",2,0))),0,IF(MID('CFR - XML import'!$A87,LEN($CF$4)+1,LEN('CFR - XML import'!$A87)-(2*LEN($CF$4)+1))=\"RMMS\",1,IF(MID('CFR - XML import'!$A87,LEN(\"    <InputSystem>\")+1,LEN('CFR - XML import'!$A87)-(LEN(\"    <InputSystem>\")+LEN($CF$4)+1))=\"SIMS\",2,0)))","v":0},{"$f":"IF(ISERROR(FIND(CH$3,'CFR - XML import'!$A87)),0,MID('CFR - XML import'!$A87,SEARCH(\">\",'CFR - XML import'!$A87,1)+1,SEARCH(\"/\",'CFR - XML import'!$A87,1)-SEARCH(\">\",'CFR - XML import'!$A87,1)-2))","v":0},{"$f":"IF(ISERROR(FIND(CI$3,'CFR - XML import'!$A87)),0,MID('CFR - XML import'!$A87,SEARCH(\">\",'CFR - XML import'!$A87,1)+1,SEARCH(\"/\",'CFR - XML import'!$A87,1)-SEARCH(\">\",'CFR - XML import'!$A87,1)-2))","v":0},{"$f":"IF(ISERROR(FIND(CJ$3,'CFR - XML import'!$A87)),0,MID('CFR - XML import'!$A87,SEARCH(\">\",'CFR - XML import'!$A87,1)+1,SEARCH(\"/\",'CFR - XML import'!$A87,1)-SEARCH(\">\",'CFR - XML import'!$A87,1)-2))","v":0},{"$f":"IF(ISERROR(FIND(CK$3,'CFR - XML import'!$A87)),0,MID('CFR - XML import'!$A87,SEARCH(\">\",'CFR - XML import'!$A87,1)+1,SEARCH(\"/\",'CFR - XML import'!$A87,1)-SEARCH(\">\",'CFR - XML import'!$A87,1)-2))","v":0},{"$f":"IF(ISERROR(FIND(CL$3,'CFR - XML import'!$A87)),0,MID('CFR - XML import'!$A87,SEARCH(\">\",'CFR - XML import'!$A87,1)+1,SEARCH(\"/\",'CFR - XML import'!$A87,1)-SEARCH(\">\",'CFR - XML import'!$A87,1)-2))","v":0}]
[{"$f":"IF(AND('CFR - XML import'!A88<>\"\",LEFT('CFR - XML import'!A88,1)<>\"<\",LEFT('CFR - XML import'!A88,3)<>\"  <\",LEFT('CFR - XML import'!A88,5)<>\"    <\",LEFT('CFR - XML import'!A88,7)<>\"      <\",LEFT('CFR - XML import'!A88,9)<>\"        <\",$B$1=\"SIMS\"),'CFR - XML import'!A88,IF(AND(LEFT('CFR - XML import'!A88,9)=\"<Details>\",$B$1=\"RM\"),'CFR - XML import'!A88,\"\"))","v":""},{"$f":"IF(ISERROR(FIND(B$3,'CFR - XML import'!$A88)),0,VALUE(MID('CFR - XML import'!$A88,SEARCH(\">\",'CFR - XML import'!$A88,1)+1,SEARCH(\"/\",'CFR - XML import'!$A88,1)-SEARCH(\">\",'CFR - XML import'!$A88,1)-2)))","v":0},null,{"$f":"IF(ISERROR(FIND(D$3,'CFR - XML import'!$A88)),0,MID('CFR - XML import'!$A88,SEARCH(\">\",'CFR - XML import'!$A88,1)+1,SEARCH(\"/\",'CFR - XML import'!$A88,1)-SEARCH(\">\",'CFR - XML import'!$A88,1)-2))","v":0},{"$f":"IF(ISERROR(FIND(E$3,'CFR - XML import'!$A88)),0,MID('CFR - XML import'!$A88,SEARCH(\">\",'CFR - XML import'!$A88,1)+1,SEARCH(\"/\",'CFR - XML import'!$A88,1)-SEARCH(\">\",'CFR - XML import'!$A88,1)-2))","v":0},{"$f":"IF($B$1=\"SIMS\",IF(ISERROR(FIND(F$3,'CFR - XML import'!$A88)),0,VALUE(MID('CFR - XML import'!$A88,15,10))),IF(ISERROR(FIND(F$3,'CFR - XML import'!$A88)),0,VALUE(MID('CFR - XML import'!$A88,11,10))))","v":"00:00:00"},{"$f":"IF(ISERROR(FIND(G$3,'CFR - XML import'!$A88)),0,VALUE(MID('CFR - XML import'!$A88,SEARCH(\">\",'CFR - XML import'!$A88,1)+1,SEARCH(\"/\",'CFR - XML import'!$A88,1)-SEARCH(\">\",'CFR - XML import'!$A88,1)-2)))","v":0},{"$f":"IF(ISERROR(FIND(H$3,'CFR - XML import'!$A88)),0,VALUE(MID('CFR - XML import'!$A88,SEARCH(\">\",'CFR - XML import'!$A88,1)+1,SEARCH(\"/\",'CFR - XML import'!$A88,1)-SEARCH(\">\",'CFR - XML import'!$A88,1)-2)))","v":0},{"$f":"IF(ISERROR(FIND(I$3,'CFR - XML import'!$A88)),0,VALUE(MID('CFR - XML import'!$A88,SEARCH(\">\",'CFR - XML import'!$A88,1)+1,SEARCH(\"/\",'CFR - XML import'!$A88,1)-SEARCH(\">\",'CFR - XML import'!$A88,1)-2)))","v":0},{"$f":"IF(ISERROR(FIND(J$3,'CFR - XML import'!$A88)),0,VALUE(MID('CFR - XML import'!$A88,SEARCH(\">\",'CFR - XML import'!$A88,1)+1,SEARCH(\"/\",'CFR - XML import'!$A88,1)-SEARCH(\">\",'CFR - XML import'!$A88,1)-2)))","v":0},{"$f":"IF(ISERROR(FIND(K$3,'CFR - XML import'!$A88)),0,VALUE(MID('CFR - XML import'!$A88,SEARCH(\">\",'CFR - XML import'!$A88,1)+1,SEARCH(\"/\",'CFR - XML import'!$A88,1)-SEARCH(\">\",'CFR - XML import'!$A88,1)-2)))","v":0},{"$f":"IF(ISERROR(FIND(L$3,'CFR - XML import'!$A88)),0,VALUE(MID('CFR - XML import'!$A88,SEARCH(\">\",'CFR - XML import'!$A88,1)+1,SEARCH(\"/\",'CFR - XML import'!$A88,1)-SEARCH(\">\",'CFR - XML import'!$A88,1)-2)))","v":0},{"$f":"IF(ISERROR(FIND(M$3,'CFR - XML import'!$A88)),0,VALUE(MID('CFR - XML import'!$A88,SEARCH(\">\",'CFR - XML import'!$A88,1)+1,SEARCH(\"/\",'CFR - XML import'!$A88,1)-SEARCH(\">\",'CFR - XML import'!$A88,1)-2)))","v":0},{"$f":"IF(ISERROR(FIND(N$3,'CFR - XML import'!$A88)),0,VALUE(MID('CFR - XML import'!$A88,SEARCH(\">\",'CFR - XML import'!$A88,1)+1,SEARCH(\"/\",'CFR - XML import'!$A88,1)-SEARCH(\">\",'CFR - XML import'!$A88,1)-2)))","v":0},{"$f":"IF(ISERROR(FIND(O$3,'CFR - XML import'!$A88)),0,VALUE(MID('CFR - XML import'!$A88,SEARCH(\">\",'CFR - XML import'!$A88,1)+1,SEARCH(\"/\",'CFR - XML import'!$A88,1)-SEARCH(\">\",'CFR - XML import'!$A88,1)-2)))","v":0},{"$f":"IF(ISERROR(FIND(P$3,'CFR - XML import'!$A88)),0,VALUE(MID('CFR - XML import'!$A88,SEARCH(\">\",'CFR - XML import'!$A88,1)+1,SEARCH(\"/\",'CFR - XML import'!$A88,1)-SEARCH(\">\",'CFR - XML import'!$A88,1)-2)))","v":0},{"$f":"IF(ISERROR(FIND(Q$3,'CFR - XML import'!$A88)),0,VALUE(MID('CFR - XML import'!$A88,SEARCH(\">\",'CFR - XML import'!$A88,1)+1,SEARCH(\"/\",'CFR - XML import'!$A88,1)-SEARCH(\">\",'CFR - XML import'!$A88,1)-2)))","v":0},{"$f":"IF(ISERROR(FIND(R$3,'CFR - XML import'!$A88)),0,VALUE(MID('CFR - XML import'!$A88,SEARCH(\">\",'CFR - XML import'!$A88,1)+1,SEARCH(\"/\",'CFR - XML import'!$A88,1)-SEARCH(\">\",'CFR - XML import'!$A88,1)-2)))","v":0},{"$f":"IF(ISERROR(FIND(S$3,'CFR - XML import'!$A88)),0,VALUE(MID('CFR - XML import'!$A88,SEARCH(\">\",'CFR - XML import'!$A88,1)+1,SEARCH(\"/\",'CFR - XML import'!$A88,1)-SEARCH(\">\",'CFR - XML import'!$A88,1)-2)))","v":0},{"$f":"IF(ISERROR(FIND(T$3,'CFR - XML import'!$A88)),0,VALUE(MID('CFR - XML import'!$A88,SEARCH(\">\",'CFR - XML import'!$A88,1)+1,SEARCH(\"/\",'CFR - XML import'!$A88,1)-SEARCH(\">\",'CFR - XML import'!$A88,1)-2)))","v":0},{"$f":"IF(ISERROR(FIND(U$3,'CFR - XML import'!$A88)),0,VALUE(MID('CFR - XML import'!$A88,SEARCH(\">\",'CFR - XML import'!$A88,1)+1,SEARCH(\"/\",'CFR - XML import'!$A88,1)-SEARCH(\">\",'CFR - XML import'!$A88,1)-2)))","v":0},{"$f":"IF(ISERROR(FIND(V$3,'CFR - XML import'!$A88)),0,VALUE(MID('CFR - XML import'!$A88,SEARCH(\">\",'CFR - XML import'!$A88,1)+1,SEARCH(\"/\",'CFR - XML import'!$A88,1)-SEARCH(\">\",'CFR - XML import'!$A88,1)-2)))","v":0},{"$f":"IF(ISERROR(FIND(W$3,'CFR - XML import'!$A88)),0,VALUE(MID('CFR - XML import'!$A88,SEARCH(\">\",'CFR - XML import'!$A88,1)+1,SEARCH(\"/\",'CFR - XML import'!$A88,1)-SEARCH(\">\",'CFR - XML import'!$A88,1)-2)))","v":0},null,{"$f":"IF(ISERROR(FIND(Y$3,'CFR - XML import'!$A88)),0,VALUE(MID('CFR - XML import'!$A88,SEARCH(\">\",'CFR - XML import'!$A88,1)+1,SEARCH(\"/\",'CFR - XML import'!$A88,1)-SEARCH(\">\",'CFR - XML import'!$A88,1)-2)))","v":0},{"$f":"IF(ISERROR(FIND(Z$3,'CFR - XML import'!$A88)),0,VALUE(MID('CFR - XML import'!$A88,SEARCH(\">\",'CFR - XML import'!$A88,1)+1,SEARCH(\"/\",'CFR - XML import'!$A88,1)-SEARCH(\">\",'CFR - XML import'!$A88,1)-2)))","v":0},{"$f":"IF(ISERROR(FIND(AA$3,'CFR - XML import'!$A88)),0,VALUE(MID('CFR - XML import'!$A88,SEARCH(\">\",'CFR - XML import'!$A88,1)+1,SEARCH(\"/\",'CFR - XML import'!$A88,1)-SEARCH(\">\",'CFR - XML import'!$A88,1)-2)))","v":0},{"$f":"IF(ISERROR(FIND(AB$3,'CFR - XML import'!$A88)),0,VALUE(MID('CFR - XML import'!$A88,SEARCH(\">\",'CFR - XML import'!$A88,1)+1,SEARCH(\"/\",'CFR - XML import'!$A88,1)-SEARCH(\">\",'CFR - XML import'!$A88,1)-2)))","v":0},{"$f":"IF(ISERROR(FIND(AC$3,'CFR - XML import'!$A88)),0,VALUE(MID('CFR - XML import'!$A88,SEARCH(\">\",'CFR - XML import'!$A88,1)+1,SEARCH(\"/\",'CFR - XML import'!$A88,1)-SEARCH(\">\",'CFR - XML import'!$A88,1)-2)))","v":0},{"$f":"IF(ISERROR(FIND(AD$3,'CFR - XML import'!$A88)),0,VALUE(MID('CFR - XML import'!$A88,SEARCH(\">\",'CFR - XML import'!$A88,1)+1,SEARCH(\"/\",'CFR - XML import'!$A88,1)-SEARCH(\">\",'CFR - XML import'!$A88,1)-2)))","v":0},{"$f":"IF(ISERROR(FIND(AE$3,'CFR - XML import'!$A88)),0,VALUE(MID('CFR - XML import'!$A88,SEARCH(\">\",'CFR - XML import'!$A88,1)+1,SEARCH(\"/\",'CFR - XML import'!$A88,1)-SEARCH(\">\",'CFR - XML import'!$A88,1)-2)))","v":0},{"$f":"IF(ISERROR(FIND(AF$3,'CFR - XML import'!$A88)),0,VALUE(MID('CFR - XML import'!$A88,SEARCH(\">\",'CFR - XML import'!$A88,1)+1,SEARCH(\"/\",'CFR - XML import'!$A88,1)-SEARCH(\">\",'CFR - XML import'!$A88,1)-2)))","v":0},{"$f":"IF(ISERROR(FIND(AG$3,'CFR - XML import'!$A88)),0,VALUE(MID('CFR - XML import'!$A88,SEARCH(\">\",'CFR - XML import'!$A88,1)+1,SEARCH(\"/\",'CFR - XML import'!$A88,1)-SEARCH(\">\",'CFR - XML import'!$A88,1)-2)))","v":0},{"$f":"IF(ISERROR(FIND(AH$3,'CFR - XML import'!$A88)),0,VALUE(MID('CFR - XML import'!$A88,SEARCH(\">\",'CFR - XML import'!$A88,1)+1,SEARCH(\"/\",'CFR - XML import'!$A88,1)-SEARCH(\">\",'CFR - XML import'!$A88,1)-2)))","v":0},{"$f":"IF(ISERROR(FIND(AI$3,'CFR - XML import'!$A88)),0,VALUE(MID('CFR - XML import'!$A88,SEARCH(\">\",'CFR - XML import'!$A88,1)+1,SEARCH(\"/\",'CFR - XML import'!$A88,1)-SEARCH(\">\",'CFR - XML import'!$A88,1)-2)))","v":0},{"$f":"IF(ISERROR(FIND(AJ$3,'CFR - XML import'!$A88)),0,VALUE(MID('CFR - XML import'!$A88,SEARCH(\">\",'CFR - XML import'!$A88,1)+1,SEARCH(\"/\",'CFR - XML import'!$A88,1)-SEARCH(\">\",'CFR - XML import'!$A88,1)-2)))","v":0},{"$f":"IF(ISERROR(FIND(AK$3,'CFR - XML import'!$A88)),0,VALUE(MID('CFR - XML import'!$A88,SEARCH(\">\",'CFR - XML import'!$A88,1)+1,SEARCH(\"/\",'CFR - XML import'!$A88,1)-SEARCH(\">\",'CFR - XML import'!$A88,1)-2)))","v":0},{"$f":"IF(ISERROR(FIND(AL$3,'CFR - XML import'!$A88)),0,VALUE(MID('CFR - XML import'!$A88,SEARCH(\">\",'CFR - XML import'!$A88,1)+1,SEARCH(\"/\",'CFR - XML import'!$A88,1)-SEARCH(\">\",'CFR - XML import'!$A88,1)-2)))","v":0},{"$f":"IF(ISERROR(FIND(AM$3,'CFR - XML import'!$A88)),0,VALUE(MID('CFR - XML import'!$A88,SEARCH(\">\",'CFR - XML import'!$A88,1)+1,SEARCH(\"/\",'CFR - XML import'!$A88,1)-SEARCH(\">\",'CFR - XML import'!$A88,1)-2)))","v":0},{"$f":"IF(ISERROR(FIND(AN$3,'CFR - XML import'!$A88)),0,VALUE(MID('CFR - XML import'!$A88,SEARCH(\">\",'CFR - XML import'!$A88,1)+1,SEARCH(\"/\",'CFR - XML import'!$A88,1)-SEARCH(\">\",'CFR - XML import'!$A88,1)-2)))","v":0},{"$f":"IF(ISERROR(FIND(AO$3,'CFR - XML import'!$A88)),0,VALUE(MID('CFR - XML import'!$A88,SEARCH(\">\",'CFR - XML import'!$A88,1)+1,SEARCH(\"/\",'CFR - XML import'!$A88,1)-SEARCH(\">\",'CFR - XML import'!$A88,1)-2)))","v":0},{"$f":"IF(ISERROR(FIND(AP$3,'CFR - XML import'!$A88)),0,VALUE(MID('CFR - XML import'!$A88,SEARCH(\">\",'CFR - XML import'!$A88,1)+1,SEARCH(\"/\",'CFR - XML import'!$A88,1)-SEARCH(\">\",'CFR - XML import'!$A88,1)-2)))","v":0},{"$f":"IF(ISERROR(FIND(AQ$3,'CFR - XML import'!$A88)),0,VALUE(MID('CFR - XML import'!$A88,SEARCH(\">\",'CFR - XML import'!$A88,1)+1,SEARCH(\"/\",'CFR - XML import'!$A88,1)-SEARCH(\">\",'CFR - XML import'!$A88,1)-2)))","v":0},{"$f":"IF(ISERROR(FIND(AR$3,'CFR - XML import'!$A88)),0,VALUE(MID('CFR - XML import'!$A88,SEARCH(\">\",'CFR - XML import'!$A88,1)+1,SEARCH(\"/\",'CFR - XML import'!$A88,1)-SEARCH(\">\",'CFR - XML import'!$A88,1)-2)))","v":0},{"$f":"IF(ISERROR(FIND(AS$3,'CFR - XML import'!$A88)),0,VALUE(MID('CFR - XML import'!$A88,SEARCH(\">\",'CFR - XML import'!$A88,1)+1,SEARCH(\"/\",'CFR - XML import'!$A88,1)-SEARCH(\">\",'CFR - XML import'!$A88,1)-2)))","v":0},{"$f":"IF(ISERROR(FIND(AT$3,'CFR - XML import'!$A88)),0,VALUE(MID('CFR - XML import'!$A88,SEARCH(\">\",'CFR - XML import'!$A88,1)+1,SEARCH(\"/\",'CFR - XML import'!$A88,1)-SEARCH(\">\",'CFR - XML import'!$A88,1)-2)))","v":0},{"$f":"IF(ISERROR(FIND(AU$3,'CFR - XML import'!$A88)),0,VALUE(MID('CFR - XML import'!$A88,SEARCH(\">\",'CFR - XML import'!$A88,1)+1,SEARCH(\"/\",'CFR - XML import'!$A88,1)-SEARCH(\">\",'CFR - XML import'!$A88,1)-2)))","v":0},{"$f":"IF(ISERROR(FIND(AV$3,'CFR - XML import'!$A88)),0,VALUE(MID('CFR - XML import'!$A88,SEARCH(\">\",'CFR - XML import'!$A88,1)+1,SEARCH(\"/\",'CFR - XML import'!$A88,1)-SEARCH(\">\",'CFR - XML import'!$A88,1)-2)))","v":0},{"$f":"IF(ISERROR(FIND(AW$3,'CFR - XML import'!$A88)),0,VALUE(MID('CFR - XML import'!$A88,SEARCH(\">\",'CFR - XML import'!$A88,1)+1,SEARCH(\"/\",'CFR - XML import'!$A88,1)-SEARCH(\">\",'CFR - XML import'!$A88,1)-2)))","v":0},{"$f":"IF(ISERROR(FIND(AX$3,'CFR - XML import'!$A88)),0,VALUE(MID('CFR - XML import'!$A88,SEARCH(\">\",'CFR - XML import'!$A88,1)+1,SEARCH(\"/\",'CFR - XML import'!$A88,1)-SEARCH(\">\",'CFR - XML import'!$A88,1)-2)))","v":0},{"$f":"IF(ISERROR(FIND(AY$3,'CFR - XML import'!$A88)),0,VALUE(MID('CFR - XML import'!$A88,SEARCH(\">\",'CFR - XML import'!$A88,1)+1,SEARCH(\"/\",'CFR - XML import'!$A88,1)-SEARCH(\">\",'CFR - XML import'!$A88,1)-2)))","v":0},{"$f":"IF(ISERROR(FIND(AZ$3,'CFR - XML import'!$A88)),0,VALUE(MID('CFR - XML import'!$A88,SEARCH(\">\",'CFR - XML import'!$A88,1)+1,SEARCH(\"/\",'CFR - XML import'!$A88,1)-SEARCH(\">\",'CFR - XML import'!$A88,1)-2)))","v":0},{"$f":"IF(ISERROR(FIND(BA$3,'CFR - XML import'!$A88)),0,VALUE(MID('CFR - XML import'!$A88,SEARCH(\">\",'CFR - XML import'!$A88,1)+1,SEARCH(\"/\",'CFR - XML import'!$A88,1)-SEARCH(\">\",'CFR - XML import'!$A88,1)-2)))","v":0},{"$f":"IF(ISERROR(FIND(BB$3,'CFR - XML import'!$A88)),0,VALUE(MID('CFR - XML import'!$A88,SEARCH(\">\",'CFR - XML import'!$A88,1)+1,SEARCH(\"/\",'CFR - XML import'!$A88,1)-SEARCH(\">\",'CFR - XML import'!$A88,1)-2)))","v":0},{"$f":"IF(ISERROR(FIND(BC$3,'CFR - XML import'!$A88)),0,VALUE(MID('CFR - XML import'!$A88,SEARCH(\">\",'CFR - XML import'!$A88,1)+1,SEARCH(\"/\",'CFR - XML import'!$A88,1)-SEARCH(\">\",'CFR - XML import'!$A88,1)-2)))","v":0},{"$f":"IF(ISERROR(FIND(BD$3,'CFR - XML import'!$A88)),0,VALUE(MID('CFR - XML import'!$A88,SEARCH(\">\",'CFR - XML import'!$A88,1)+1,SEARCH(\"/\",'CFR - XML import'!$A88,1)-SEARCH(\">\",'CFR - XML import'!$A88,1)-2)))","v":0},{"$f":"IF(ISERROR(FIND(BE$3,'CFR - XML import'!$A88)),0,VALUE(MID('CFR - XML import'!$A88,SEARCH(\">\",'CFR - XML import'!$A88,1)+1,SEARCH(\"/\",'CFR - XML import'!$A88,1)-SEARCH(\">\",'CFR - XML import'!$A88,1)-2)))","v":0},{"$f":"IF(ISERROR(FIND(BF$3,'CFR - XML import'!$A88)),0,VALUE(MID('CFR - XML import'!$A88,SEARCH(\">\",'CFR - XML import'!$A88,1)+1,SEARCH(\"/\",'CFR - XML import'!$A88,1)-SEARCH(\">\",'CFR - XML import'!$A88,1)-2)))","v":0},{"$f":"IF(ISERROR(FIND(BG$3,'CFR - XML import'!$A88)),0,VALUE(MID('CFR - XML import'!$A88,SEARCH(\">\",'CFR - XML import'!$A88,1)+1,SEARCH(\"/\",'CFR - XML import'!$A88,1)-SEARCH(\">\",'CFR - XML import'!$A88,1)-2)))","v":0},{"$f":"IF(ISERROR(FIND(BH$3,'CFR - XML import'!$A88)),0,VALUE(MID('CFR - XML import'!$A88,SEARCH(\">\",'CFR - XML import'!$A88,1)+1,SEARCH(\"/\",'CFR - XML import'!$A88,1)-SEARCH(\">\",'CFR - XML import'!$A88,1)-2)))","v":0},{"$f":"IF(ISERROR(FIND(BI$3,'CFR - XML import'!$A88)),0,VALUE(MID('CFR - XML import'!$A88,SEARCH(\">\",'CFR - XML import'!$A88,1)+1,SEARCH(\"/\",'CFR - XML import'!$A88,1)-SEARCH(\">\",'CFR - XML import'!$A88,1)-2)))","v":0},{"$f":"IF(ISERROR(FIND(BJ$3,'CFR - XML import'!$A88)),0,VALUE(MID('CFR - XML import'!$A88,SEARCH(\">\",'CFR - XML import'!$A88,1)+1,SEARCH(\"/\",'CFR - XML import'!$A88,1)-SEARCH(\">\",'CFR - XML import'!$A88,1)-2)))","v":0},{"$f":"IF(ISERROR(FIND(BK$3,'CFR - XML import'!$A88)),0,VALUE(MID('CFR - XML import'!$A88,SEARCH(\">\",'CFR - XML import'!$A88,1)+1,SEARCH(\"/\",'CFR - XML import'!$A88,1)-SEARCH(\">\",'CFR - XML import'!$A88,1)-2)))","v":0},{"$f":"IF(ISERROR(FIND(BL$3,'CFR - XML import'!$A88)),0,VALUE(MID('CFR - XML import'!$A88,SEARCH(\">\",'CFR - XML import'!$A88,1)+1,SEARCH(\"/\",'CFR - XML import'!$A88,1)-SEARCH(\">\",'CFR - XML import'!$A88,1)-2)))","v":0},{"$f":"IF(ISERROR(FIND(BM$3,'CFR - XML import'!$A88)),0,VALUE(MID('CFR - XML import'!$A88,SEARCH(\">\",'CFR - XML import'!$A88,1)+1,SEARCH(\"/\",'CFR - XML import'!$A88,1)-SEARCH(\">\",'CFR - XML import'!$A88,1)-2)))","v":0},{"$f":"IF(ISERROR(FIND(BN$3,'CFR - XML import'!$A88)),0,VALUE(MID('CFR - XML import'!$A88,SEARCH(\">\",'CFR - XML import'!$A88,1)+1,SEARCH(\"/\",'CFR - XML import'!$A88,1)-SEARCH(\">\",'CFR - XML import'!$A88,1)-2)))","v":0},{"$f":"IF(ISERROR(FIND(BO$3,'CFR - XML import'!$A88)),0,VALUE(MID('CFR - XML import'!$A88,SEARCH(\">\",'CFR - XML import'!$A88,1)+1,SEARCH(\"/\",'CFR - XML import'!$A88,1)-SEARCH(\">\",'CFR - XML import'!$A88,1)-2)))","v":0},{"$f":"IF(ISERROR(FIND(BP$3,'CFR - XML import'!$A88)),0,VALUE(MID('CFR - XML import'!$A88,SEARCH(\">\",'CFR - XML import'!$A88,1)+1,SEARCH(\"/\",'CFR - XML import'!$A88,1)-SEARCH(\">\",'CFR - XML import'!$A88,1)-2)))","v":0},{"$f":"IF(ISERROR(FIND(BQ$3,'CFR - XML import'!$A88)),0,VALUE(MID('CFR - XML import'!$A88,SEARCH(\">\",'CFR - XML import'!$A88,1)+1,SEARCH(\"/\",'CFR - XML import'!$A88,1)-SEARCH(\">\",'CFR - XML import'!$A88,1)-2)))","v":0},{"$f":"IF(ISERROR(FIND(BR$3,'CFR - XML import'!$A88)),0,VALUE(MID('CFR - XML import'!$A88,SEARCH(\">\",'CFR - XML import'!$A88,1)+1,SEARCH(\"/\",'CFR - XML import'!$A88,1)-SEARCH(\">\",'CFR - XML import'!$A88,1)-2)))","v":0},{"$f":"IF(ISERROR(FIND(BS$3,'CFR - XML import'!$A88)),0,VALUE(MID('CFR - XML import'!$A88,SEARCH(\">\",'CFR - XML import'!$A88,1)+1,SEARCH(\"/\",'CFR - XML import'!$A88,1)-SEARCH(\">\",'CFR - XML import'!$A88,1)-2)))","v":0},{"$f":"IF(ISERROR(FIND(BT$3,'CFR - XML import'!$A88)),0,VALUE(MID('CFR - XML import'!$A88,SEARCH(\">\",'CFR - XML import'!$A88,1)+1,SEARCH(\"/\",'CFR - XML import'!$A88,1)-SEARCH(\">\",'CFR - XML import'!$A88,1)-2)))","v":0},{"$f":"IF(ISERROR(FIND(BU$3,'CFR - XML import'!$A88)),0,VALUE(MID('CFR - XML import'!$A88,SEARCH(\">\",'CFR - XML import'!$A88,1)+1,SEARCH(\"/\",'CFR - XML import'!$A88,1)-SEARCH(\">\",'CFR - XML import'!$A88,1)-2)))","v":0},{"$f":"IF(ISERROR(FIND(BV$3,'CFR - XML import'!$A88)),0,VALUE(MID('CFR - XML import'!$A88,SEARCH(\">\",'CFR - XML import'!$A88,1)+1,SEARCH(\"/\",'CFR - XML import'!$A88,1)-SEARCH(\">\",'CFR - XML import'!$A88,1)-2)))","v":0},{"$f":"IF(ISERROR(FIND(BW$3,'CFR - XML import'!$A88)),0,VALUE(MID('CFR - XML import'!$A88,SEARCH(\">\",'CFR - XML import'!$A88,1)+1,SEARCH(\"/\",'CFR - XML import'!$A88,1)-SEARCH(\">\",'CFR - XML import'!$A88,1)-2)))","v":0},{"$f":"IF(ISERROR(FIND(BX$3,'CFR - XML import'!$A88)),0,VALUE(MID('CFR - XML import'!$A88,SEARCH(\">\",'CFR - XML import'!$A88,1)+1,SEARCH(\"/\",'CFR - XML import'!$A88,1)-SEARCH(\">\",'CFR - XML import'!$A88,1)-2)))","v":0},{"$f":"IF(ISERROR(FIND(BY$3,'CFR - XML import'!$A88)),0,VALUE(MID('CFR - XML import'!$A88,SEARCH(\">\",'CFR - XML import'!$A88,1)+1,SEARCH(\"/\",'CFR - XML import'!$A88,1)-SEARCH(\">\",'CFR - XML import'!$A88,1)-2)))","v":0},{"$f":"IF(ISERROR(FIND(BZ$3,'CFR - XML import'!$A88)),0,VALUE(MID('CFR - XML import'!$A88,SEARCH(\">\",'CFR - XML import'!$A88,1)+1,SEARCH(\"/\",'CFR - XML import'!$A88,1)-SEARCH(\">\",'CFR - XML import'!$A88,1)-2)))","v":0},null,null,null,null,null,null,{"$f":"IF(ISERROR(IF(MID('CFR - XML import'!$A88,LEN($CF$4)+1,LEN('CFR - XML import'!$A88)-(2*LEN($CF$4)+1))=\"RMMS\",1,IF(MID('CFR - XML import'!$A88,LEN(\"    <InputSystem>\")+1,LEN('CFR - XML import'!$A88)-(LEN(\"    <InputSystem>\")+LEN($CF$4)+1))=\"SIMS\",2,0))),0,IF(MID('CFR - XML import'!$A88,LEN($CF$4)+1,LEN('CFR - XML import'!$A88)-(2*LEN($CF$4)+1))=\"RMMS\",1,IF(MID('CFR - XML import'!$A88,LEN(\"    <InputSystem>\")+1,LEN('CFR - XML import'!$A88)-(LEN(\"    <InputSystem>\")+LEN($CF$4)+1))=\"SIMS\",2,0)))","v":0},{"$f":"IF(ISERROR(FIND(CH$3,'CFR - XML import'!$A88)),0,MID('CFR - XML import'!$A88,SEARCH(\">\",'CFR - XML import'!$A88,1)+1,SEARCH(\"/\",'CFR - XML import'!$A88,1)-SEARCH(\">\",'CFR - XML import'!$A88,1)-2))","v":0},{"$f":"IF(ISERROR(FIND(CI$3,'CFR - XML import'!$A88)),0,MID('CFR - XML import'!$A88,SEARCH(\">\",'CFR - XML import'!$A88,1)+1,SEARCH(\"/\",'CFR - XML import'!$A88,1)-SEARCH(\">\",'CFR - XML import'!$A88,1)-2))","v":0},{"$f":"IF(ISERROR(FIND(CJ$3,'CFR - XML import'!$A88)),0,MID('CFR - XML import'!$A88,SEARCH(\">\",'CFR - XML import'!$A88,1)+1,SEARCH(\"/\",'CFR - XML import'!$A88,1)-SEARCH(\">\",'CFR - XML import'!$A88,1)-2))","v":0},{"$f":"IF(ISERROR(FIND(CK$3,'CFR - XML import'!$A88)),0,MID('CFR - XML import'!$A88,SEARCH(\">\",'CFR - XML import'!$A88,1)+1,SEARCH(\"/\",'CFR - XML import'!$A88,1)-SEARCH(\">\",'CFR - XML import'!$A88,1)-2))","v":0},{"$f":"IF(ISERROR(FIND(CL$3,'CFR - XML import'!$A88)),0,MID('CFR - XML import'!$A88,SEARCH(\">\",'CFR - XML import'!$A88,1)+1,SEARCH(\"/\",'CFR - XML import'!$A88,1)-SEARCH(\">\",'CFR - XML import'!$A88,1)-2))","v":0}]
[{"$f":"IF(AND('CFR - XML import'!A89<>\"\",LEFT('CFR - XML import'!A89,1)<>\"<\",LEFT('CFR - XML import'!A89,3)<>\"  <\",LEFT('CFR - XML import'!A89,5)<>\"    <\",LEFT('CFR - XML import'!A89,7)<>\"      <\",LEFT('CFR - XML import'!A89,9)<>\"        <\",$B$1=\"SIMS\"),'CFR - XML import'!A89,IF(AND(LEFT('CFR - XML import'!A89,9)=\"<Details>\",$B$1=\"RM\"),'CFR - XML import'!A89,\"\"))","v":""},{"$f":"IF(ISERROR(FIND(B$3,'CFR - XML import'!$A89)),0,VALUE(MID('CFR - XML import'!$A89,SEARCH(\">\",'CFR - XML import'!$A89,1)+1,SEARCH(\"/\",'CFR - XML import'!$A89,1)-SEARCH(\">\",'CFR - XML import'!$A89,1)-2)))","v":0},null,{"$f":"IF(ISERROR(FIND(D$3,'CFR - XML import'!$A89)),0,MID('CFR - XML import'!$A89,SEARCH(\">\",'CFR - XML import'!$A89,1)+1,SEARCH(\"/\",'CFR - XML import'!$A89,1)-SEARCH(\">\",'CFR - XML import'!$A89,1)-2))","v":0},{"$f":"IF(ISERROR(FIND(E$3,'CFR - XML import'!$A89)),0,MID('CFR - XML import'!$A89,SEARCH(\">\",'CFR - XML import'!$A89,1)+1,SEARCH(\"/\",'CFR - XML import'!$A89,1)-SEARCH(\">\",'CFR - XML import'!$A89,1)-2))","v":0},{"$f":"IF($B$1=\"SIMS\",IF(ISERROR(FIND(F$3,'CFR - XML import'!$A89)),0,VALUE(MID('CFR - XML import'!$A89,15,10))),IF(ISERROR(FIND(F$3,'CFR - XML import'!$A89)),0,VALUE(MID('CFR - XML import'!$A89,11,10))))","v":"00:00:00"},{"$f":"IF(ISERROR(FIND(G$3,'CFR - XML import'!$A89)),0,VALUE(MID('CFR - XML import'!$A89,SEARCH(\">\",'CFR - XML import'!$A89,1)+1,SEARCH(\"/\",'CFR - XML import'!$A89,1)-SEARCH(\">\",'CFR - XML import'!$A89,1)-2)))","v":0},{"$f":"IF(ISERROR(FIND(H$3,'CFR - XML import'!$A89)),0,VALUE(MID('CFR - XML import'!$A89,SEARCH(\">\",'CFR - XML import'!$A89,1)+1,SEARCH(\"/\",'CFR - XML import'!$A89,1)-SEARCH(\">\",'CFR - XML import'!$A89,1)-2)))","v":0},{"$f":"IF(ISERROR(FIND(I$3,'CFR - XML import'!$A89)),0,VALUE(MID('CFR - XML import'!$A89,SEARCH(\">\",'CFR - XML import'!$A89,1)+1,SEARCH(\"/\",'CFR - XML import'!$A89,1)-SEARCH(\">\",'CFR - XML import'!$A89,1)-2)))","v":0},{"$f":"IF(ISERROR(FIND(J$3,'CFR - XML import'!$A89)),0,VALUE(MID('CFR - XML import'!$A89,SEARCH(\">\",'CFR - XML import'!$A89,1)+1,SEARCH(\"/\",'CFR - XML import'!$A89,1)-SEARCH(\">\",'CFR - XML import'!$A89,1)-2)))","v":0},{"$f":"IF(ISERROR(FIND(K$3,'CFR - XML import'!$A89)),0,VALUE(MID('CFR - XML import'!$A89,SEARCH(\">\",'CFR - XML import'!$A89,1)+1,SEARCH(\"/\",'CFR - XML import'!$A89,1)-SEARCH(\">\",'CFR - XML import'!$A89,1)-2)))","v":0},{"$f":"IF(ISERROR(FIND(L$3,'CFR - XML import'!$A89)),0,VALUE(MID('CFR - XML import'!$A89,SEARCH(\">\",'CFR - XML import'!$A89,1)+1,SEARCH(\"/\",'CFR - XML import'!$A89,1)-SEARCH(\">\",'CFR - XML import'!$A89,1)-2)))","v":0},{"$f":"IF(ISERROR(FIND(M$3,'CFR - XML import'!$A89)),0,VALUE(MID('CFR - XML import'!$A89,SEARCH(\">\",'CFR - XML import'!$A89,1)+1,SEARCH(\"/\",'CFR - XML import'!$A89,1)-SEARCH(\">\",'CFR - XML import'!$A89,1)-2)))","v":0},{"$f":"IF(ISERROR(FIND(N$3,'CFR - XML import'!$A89)),0,VALUE(MID('CFR - XML import'!$A89,SEARCH(\">\",'CFR - XML import'!$A89,1)+1,SEARCH(\"/\",'CFR - XML import'!$A89,1)-SEARCH(\">\",'CFR - XML import'!$A89,1)-2)))","v":0},{"$f":"IF(ISERROR(FIND(O$3,'CFR - XML import'!$A89)),0,VALUE(MID('CFR - XML import'!$A89,SEARCH(\">\",'CFR - XML import'!$A89,1)+1,SEARCH(\"/\",'CFR - XML import'!$A89,1)-SEARCH(\">\",'CFR - XML import'!$A89,1)-2)))","v":0},{"$f":"IF(ISERROR(FIND(P$3,'CFR - XML import'!$A89)),0,VALUE(MID('CFR - XML import'!$A89,SEARCH(\">\",'CFR - XML import'!$A89,1)+1,SEARCH(\"/\",'CFR - XML import'!$A89,1)-SEARCH(\">\",'CFR - XML import'!$A89,1)-2)))","v":0},{"$f":"IF(ISERROR(FIND(Q$3,'CFR - XML import'!$A89)),0,VALUE(MID('CFR - XML import'!$A89,SEARCH(\">\",'CFR - XML import'!$A89,1)+1,SEARCH(\"/\",'CFR - XML import'!$A89,1)-SEARCH(\">\",'CFR - XML import'!$A89,1)-2)))","v":0},{"$f":"IF(ISERROR(FIND(R$3,'CFR - XML import'!$A89)),0,VALUE(MID('CFR - XML import'!$A89,SEARCH(\">\",'CFR - XML import'!$A89,1)+1,SEARCH(\"/\",'CFR - XML import'!$A89,1)-SEARCH(\">\",'CFR - XML import'!$A89,1)-2)))","v":0},{"$f":"IF(ISERROR(FIND(S$3,'CFR - XML import'!$A89)),0,VALUE(MID('CFR - XML import'!$A89,SEARCH(\">\",'CFR - XML import'!$A89,1)+1,SEARCH(\"/\",'CFR - XML import'!$A89,1)-SEARCH(\">\",'CFR - XML import'!$A89,1)-2)))","v":0},{"$f":"IF(ISERROR(FIND(T$3,'CFR - XML import'!$A89)),0,VALUE(MID('CFR - XML import'!$A89,SEARCH(\">\",'CFR - XML import'!$A89,1)+1,SEARCH(\"/\",'CFR - XML import'!$A89,1)-SEARCH(\">\",'CFR - XML import'!$A89,1)-2)))","v":0},{"$f":"IF(ISERROR(FIND(U$3,'CFR - XML import'!$A89)),0,VALUE(MID('CFR - XML import'!$A89,SEARCH(\">\",'CFR - XML import'!$A89,1)+1,SEARCH(\"/\",'CFR - XML import'!$A89,1)-SEARCH(\">\",'CFR - XML import'!$A89,1)-2)))","v":0},{"$f":"IF(ISERROR(FIND(V$3,'CFR - XML import'!$A89)),0,VALUE(MID('CFR - XML import'!$A89,SEARCH(\">\",'CFR - XML import'!$A89,1)+1,SEARCH(\"/\",'CFR - XML import'!$A89,1)-SEARCH(\">\",'CFR - XML import'!$A89,1)-2)))","v":0},{"$f":"IF(ISERROR(FIND(W$3,'CFR - XML import'!$A89)),0,VALUE(MID('CFR - XML import'!$A89,SEARCH(\">\",'CFR - XML import'!$A89,1)+1,SEARCH(\"/\",'CFR - XML import'!$A89,1)-SEARCH(\">\",'CFR - XML import'!$A89,1)-2)))","v":0},null,{"$f":"IF(ISERROR(FIND(Y$3,'CFR - XML import'!$A89)),0,VALUE(MID('CFR - XML import'!$A89,SEARCH(\">\",'CFR - XML import'!$A89,1)+1,SEARCH(\"/\",'CFR - XML import'!$A89,1)-SEARCH(\">\",'CFR - XML import'!$A89,1)-2)))","v":0},{"$f":"IF(ISERROR(FIND(Z$3,'CFR - XML import'!$A89)),0,VALUE(MID('CFR - XML import'!$A89,SEARCH(\">\",'CFR - XML import'!$A89,1)+1,SEARCH(\"/\",'CFR - XML import'!$A89,1)-SEARCH(\">\",'CFR - XML import'!$A89,1)-2)))","v":0},{"$f":"IF(ISERROR(FIND(AA$3,'CFR - XML import'!$A89)),0,VALUE(MID('CFR - XML import'!$A89,SEARCH(\">\",'CFR - XML import'!$A89,1)+1,SEARCH(\"/\",'CFR - XML import'!$A89,1)-SEARCH(\">\",'CFR - XML import'!$A89,1)-2)))","v":0},{"$f":"IF(ISERROR(FIND(AB$3,'CFR - XML import'!$A89)),0,VALUE(MID('CFR - XML import'!$A89,SEARCH(\">\",'CFR - XML import'!$A89,1)+1,SEARCH(\"/\",'CFR - XML import'!$A89,1)-SEARCH(\">\",'CFR - XML import'!$A89,1)-2)))","v":0},{"$f":"IF(ISERROR(FIND(AC$3,'CFR - XML import'!$A89)),0,VALUE(MID('CFR - XML import'!$A89,SEARCH(\">\",'CFR - XML import'!$A89,1)+1,SEARCH(\"/\",'CFR - XML import'!$A89,1)-SEARCH(\">\",'CFR - XML import'!$A89,1)-2)))","v":0},{"$f":"IF(ISERROR(FIND(AD$3,'CFR - XML import'!$A89)),0,VALUE(MID('CFR - XML import'!$A89,SEARCH(\">\",'CFR - XML import'!$A89,1)+1,SEARCH(\"/\",'CFR - XML import'!$A89,1)-SEARCH(\">\",'CFR - XML import'!$A89,1)-2)))","v":0},{"$f":"IF(ISERROR(FIND(AE$3,'CFR - XML import'!$A89)),0,VALUE(MID('CFR - XML import'!$A89,SEARCH(\">\",'CFR - XML import'!$A89,1)+1,SEARCH(\"/\",'CFR - XML import'!$A89,1)-SEARCH(\">\",'CFR - XML import'!$A89,1)-2)))","v":0},{"$f":"IF(ISERROR(FIND(AF$3,'CFR - XML import'!$A89)),0,VALUE(MID('CFR - XML import'!$A89,SEARCH(\">\",'CFR - XML import'!$A89,1)+1,SEARCH(\"/\",'CFR - XML import'!$A89,1)-SEARCH(\">\",'CFR - XML import'!$A89,1)-2)))","v":0},{"$f":"IF(ISERROR(FIND(AG$3,'CFR - XML import'!$A89)),0,VALUE(MID('CFR - XML import'!$A89,SEARCH(\">\",'CFR - XML import'!$A89,1)+1,SEARCH(\"/\",'CFR - XML import'!$A89,1)-SEARCH(\">\",'CFR - XML import'!$A89,1)-2)))","v":0},{"$f":"IF(ISERROR(FIND(AH$3,'CFR - XML import'!$A89)),0,VALUE(MID('CFR - XML import'!$A89,SEARCH(\">\",'CFR - XML import'!$A89,1)+1,SEARCH(\"/\",'CFR - XML import'!$A89,1)-SEARCH(\">\",'CFR - XML import'!$A89,1)-2)))","v":0},{"$f":"IF(ISERROR(FIND(AI$3,'CFR - XML import'!$A89)),0,VALUE(MID('CFR - XML import'!$A89,SEARCH(\">\",'CFR - XML import'!$A89,1)+1,SEARCH(\"/\",'CFR - XML import'!$A89,1)-SEARCH(\">\",'CFR - XML import'!$A89,1)-2)))","v":0},{"$f":"IF(ISERROR(FIND(AJ$3,'CFR - XML import'!$A89)),0,VALUE(MID('CFR - XML import'!$A89,SEARCH(\">\",'CFR - XML import'!$A89,1)+1,SEARCH(\"/\",'CFR - XML import'!$A89,1)-SEARCH(\">\",'CFR - XML import'!$A89,1)-2)))","v":0},{"$f":"IF(ISERROR(FIND(AK$3,'CFR - XML import'!$A89)),0,VALUE(MID('CFR - XML import'!$A89,SEARCH(\">\",'CFR - XML import'!$A89,1)+1,SEARCH(\"/\",'CFR - XML import'!$A89,1)-SEARCH(\">\",'CFR - XML import'!$A89,1)-2)))","v":0},{"$f":"IF(ISERROR(FIND(AL$3,'CFR - XML import'!$A89)),0,VALUE(MID('CFR - XML import'!$A89,SEARCH(\">\",'CFR - XML import'!$A89,1)+1,SEARCH(\"/\",'CFR - XML import'!$A89,1)-SEARCH(\">\",'CFR - XML import'!$A89,1)-2)))","v":0},{"$f":"IF(ISERROR(FIND(AM$3,'CFR - XML import'!$A89)),0,VALUE(MID('CFR - XML import'!$A89,SEARCH(\">\",'CFR - XML import'!$A89,1)+1,SEARCH(\"/\",'CFR - XML import'!$A89,1)-SEARCH(\">\",'CFR - XML import'!$A89,1)-2)))","v":0},{"$f":"IF(ISERROR(FIND(AN$3,'CFR - XML import'!$A89)),0,VALUE(MID('CFR - XML import'!$A89,SEARCH(\">\",'CFR - XML import'!$A89,1)+1,SEARCH(\"/\",'CFR - XML import'!$A89,1)-SEARCH(\">\",'CFR - XML import'!$A89,1)-2)))","v":0},{"$f":"IF(ISERROR(FIND(AO$3,'CFR - XML import'!$A89)),0,VALUE(MID('CFR - XML import'!$A89,SEARCH(\">\",'CFR - XML import'!$A89,1)+1,SEARCH(\"/\",'CFR - XML import'!$A89,1)-SEARCH(\">\",'CFR - XML import'!$A89,1)-2)))","v":0},{"$f":"IF(ISERROR(FIND(AP$3,'CFR - XML import'!$A89)),0,VALUE(MID('CFR - XML import'!$A89,SEARCH(\">\",'CFR - XML import'!$A89,1)+1,SEARCH(\"/\",'CFR - XML import'!$A89,1)-SEARCH(\">\",'CFR - XML import'!$A89,1)-2)))","v":0},{"$f":"IF(ISERROR(FIND(AQ$3,'CFR - XML import'!$A89)),0,VALUE(MID('CFR - XML import'!$A89,SEARCH(\">\",'CFR - XML import'!$A89,1)+1,SEARCH(\"/\",'CFR - XML import'!$A89,1)-SEARCH(\">\",'CFR - XML import'!$A89,1)-2)))","v":0},{"$f":"IF(ISERROR(FIND(AR$3,'CFR - XML import'!$A89)),0,VALUE(MID('CFR - XML import'!$A89,SEARCH(\">\",'CFR - XML import'!$A89,1)+1,SEARCH(\"/\",'CFR - XML import'!$A89,1)-SEARCH(\">\",'CFR - XML import'!$A89,1)-2)))","v":0},{"$f":"IF(ISERROR(FIND(AS$3,'CFR - XML import'!$A89)),0,VALUE(MID('CFR - XML import'!$A89,SEARCH(\">\",'CFR - XML import'!$A89,1)+1,SEARCH(\"/\",'CFR - XML import'!$A89,1)-SEARCH(\">\",'CFR - XML import'!$A89,1)-2)))","v":0},{"$f":"IF(ISERROR(FIND(AT$3,'CFR - XML import'!$A89)),0,VALUE(MID('CFR - XML import'!$A89,SEARCH(\">\",'CFR - XML import'!$A89,1)+1,SEARCH(\"/\",'CFR - XML import'!$A89,1)-SEARCH(\">\",'CFR - XML import'!$A89,1)-2)))","v":0},{"$f":"IF(ISERROR(FIND(AU$3,'CFR - XML import'!$A89)),0,VALUE(MID('CFR - XML import'!$A89,SEARCH(\">\",'CFR - XML import'!$A89,1)+1,SEARCH(\"/\",'CFR - XML import'!$A89,1)-SEARCH(\">\",'CFR - XML import'!$A89,1)-2)))","v":0},{"$f":"IF(ISERROR(FIND(AV$3,'CFR - XML import'!$A89)),0,VALUE(MID('CFR - XML import'!$A89,SEARCH(\">\",'CFR - XML import'!$A89,1)+1,SEARCH(\"/\",'CFR - XML import'!$A89,1)-SEARCH(\">\",'CFR - XML import'!$A89,1)-2)))","v":0},{"$f":"IF(ISERROR(FIND(AW$3,'CFR - XML import'!$A89)),0,VALUE(MID('CFR - XML import'!$A89,SEARCH(\">\",'CFR - XML import'!$A89,1)+1,SEARCH(\"/\",'CFR - XML import'!$A89,1)-SEARCH(\">\",'CFR - XML import'!$A89,1)-2)))","v":0},{"$f":"IF(ISERROR(FIND(AX$3,'CFR - XML import'!$A89)),0,VALUE(MID('CFR - XML import'!$A89,SEARCH(\">\",'CFR - XML import'!$A89,1)+1,SEARCH(\"/\",'CFR - XML import'!$A89,1)-SEARCH(\">\",'CFR - XML import'!$A89,1)-2)))","v":0},{"$f":"IF(ISERROR(FIND(AY$3,'CFR - XML import'!$A89)),0,VALUE(MID('CFR - XML import'!$A89,SEARCH(\">\",'CFR - XML import'!$A89,1)+1,SEARCH(\"/\",'CFR - XML import'!$A89,1)-SEARCH(\">\",'CFR - XML import'!$A89,1)-2)))","v":0},{"$f":"IF(ISERROR(FIND(AZ$3,'CFR - XML import'!$A89)),0,VALUE(MID('CFR - XML import'!$A89,SEARCH(\">\",'CFR - XML import'!$A89,1)+1,SEARCH(\"/\",'CFR - XML import'!$A89,1)-SEARCH(\">\",'CFR - XML import'!$A89,1)-2)))","v":0},{"$f":"IF(ISERROR(FIND(BA$3,'CFR - XML import'!$A89)),0,VALUE(MID('CFR - XML import'!$A89,SEARCH(\">\",'CFR - XML import'!$A89,1)+1,SEARCH(\"/\",'CFR - XML import'!$A89,1)-SEARCH(\">\",'CFR - XML import'!$A89,1)-2)))","v":0},{"$f":"IF(ISERROR(FIND(BB$3,'CFR - XML import'!$A89)),0,VALUE(MID('CFR - XML import'!$A89,SEARCH(\">\",'CFR - XML import'!$A89,1)+1,SEARCH(\"/\",'CFR - XML import'!$A89,1)-SEARCH(\">\",'CFR - XML import'!$A89,1)-2)))","v":0},{"$f":"IF(ISERROR(FIND(BC$3,'CFR - XML import'!$A89)),0,VALUE(MID('CFR - XML import'!$A89,SEARCH(\">\",'CFR - XML import'!$A89,1)+1,SEARCH(\"/\",'CFR - XML import'!$A89,1)-SEARCH(\">\",'CFR - XML import'!$A89,1)-2)))","v":0},{"$f":"IF(ISERROR(FIND(BD$3,'CFR - XML import'!$A89)),0,VALUE(MID('CFR - XML import'!$A89,SEARCH(\">\",'CFR - XML import'!$A89,1)+1,SEARCH(\"/\",'CFR - XML import'!$A89,1)-SEARCH(\">\",'CFR - XML import'!$A89,1)-2)))","v":0},{"$f":"IF(ISERROR(FIND(BE$3,'CFR - XML import'!$A89)),0,VALUE(MID('CFR - XML import'!$A89,SEARCH(\">\",'CFR - XML import'!$A89,1)+1,SEARCH(\"/\",'CFR - XML import'!$A89,1)-SEARCH(\">\",'CFR - XML import'!$A89,1)-2)))","v":0},{"$f":"IF(ISERROR(FIND(BF$3,'CFR - XML import'!$A89)),0,VALUE(MID('CFR - XML import'!$A89,SEARCH(\">\",'CFR - XML import'!$A89,1)+1,SEARCH(\"/\",'CFR - XML import'!$A89,1)-SEARCH(\">\",'CFR - XML import'!$A89,1)-2)))","v":0},{"$f":"IF(ISERROR(FIND(BG$3,'CFR - XML import'!$A89)),0,VALUE(MID('CFR - XML import'!$A89,SEARCH(\">\",'CFR - XML import'!$A89,1)+1,SEARCH(\"/\",'CFR - XML import'!$A89,1)-SEARCH(\">\",'CFR - XML import'!$A89,1)-2)))","v":0},{"$f":"IF(ISERROR(FIND(BH$3,'CFR - XML import'!$A89)),0,VALUE(MID('CFR - XML import'!$A89,SEARCH(\">\",'CFR - XML import'!$A89,1)+1,SEARCH(\"/\",'CFR - XML import'!$A89,1)-SEARCH(\">\",'CFR - XML import'!$A89,1)-2)))","v":0},{"$f":"IF(ISERROR(FIND(BI$3,'CFR - XML import'!$A89)),0,VALUE(MID('CFR - XML import'!$A89,SEARCH(\">\",'CFR - XML import'!$A89,1)+1,SEARCH(\"/\",'CFR - XML import'!$A89,1)-SEARCH(\">\",'CFR - XML import'!$A89,1)-2)))","v":0},{"$f":"IF(ISERROR(FIND(BJ$3,'CFR - XML import'!$A89)),0,VALUE(MID('CFR - XML import'!$A89,SEARCH(\">\",'CFR - XML import'!$A89,1)+1,SEARCH(\"/\",'CFR - XML import'!$A89,1)-SEARCH(\">\",'CFR - XML import'!$A89,1)-2)))","v":0},{"$f":"IF(ISERROR(FIND(BK$3,'CFR - XML import'!$A89)),0,VALUE(MID('CFR - XML import'!$A89,SEARCH(\">\",'CFR - XML import'!$A89,1)+1,SEARCH(\"/\",'CFR - XML import'!$A89,1)-SEARCH(\">\",'CFR - XML import'!$A89,1)-2)))","v":0},{"$f":"IF(ISERROR(FIND(BL$3,'CFR - XML import'!$A89)),0,VALUE(MID('CFR - XML import'!$A89,SEARCH(\">\",'CFR - XML import'!$A89,1)+1,SEARCH(\"/\",'CFR - XML import'!$A89,1)-SEARCH(\">\",'CFR - XML import'!$A89,1)-2)))","v":0},{"$f":"IF(ISERROR(FIND(BM$3,'CFR - XML import'!$A89)),0,VALUE(MID('CFR - XML import'!$A89,SEARCH(\">\",'CFR - XML import'!$A89,1)+1,SEARCH(\"/\",'CFR - XML import'!$A89,1)-SEARCH(\">\",'CFR - XML import'!$A89,1)-2)))","v":0},{"$f":"IF(ISERROR(FIND(BN$3,'CFR - XML import'!$A89)),0,VALUE(MID('CFR - XML import'!$A89,SEARCH(\">\",'CFR - XML import'!$A89,1)+1,SEARCH(\"/\",'CFR - XML import'!$A89,1)-SEARCH(\">\",'CFR - XML import'!$A89,1)-2)))","v":0},{"$f":"IF(ISERROR(FIND(BO$3,'CFR - XML import'!$A89)),0,VALUE(MID('CFR - XML import'!$A89,SEARCH(\">\",'CFR - XML import'!$A89,1)+1,SEARCH(\"/\",'CFR - XML import'!$A89,1)-SEARCH(\">\",'CFR - XML import'!$A89,1)-2)))","v":0},{"$f":"IF(ISERROR(FIND(BP$3,'CFR - XML import'!$A89)),0,VALUE(MID('CFR - XML import'!$A89,SEARCH(\">\",'CFR - XML import'!$A89,1)+1,SEARCH(\"/\",'CFR - XML import'!$A89,1)-SEARCH(\">\",'CFR - XML import'!$A89,1)-2)))","v":0},{"$f":"IF(ISERROR(FIND(BQ$3,'CFR - XML import'!$A89)),0,VALUE(MID('CFR - XML import'!$A89,SEARCH(\">\",'CFR - XML import'!$A89,1)+1,SEARCH(\"/\",'CFR - XML import'!$A89,1)-SEARCH(\">\",'CFR - XML import'!$A89,1)-2)))","v":0},{"$f":"IF(ISERROR(FIND(BR$3,'CFR - XML import'!$A89)),0,VALUE(MID('CFR - XML import'!$A89,SEARCH(\">\",'CFR - XML import'!$A89,1)+1,SEARCH(\"/\",'CFR - XML import'!$A89,1)-SEARCH(\">\",'CFR - XML import'!$A89,1)-2)))","v":0},{"$f":"IF(ISERROR(FIND(BS$3,'CFR - XML import'!$A89)),0,VALUE(MID('CFR - XML import'!$A89,SEARCH(\">\",'CFR - XML import'!$A89,1)+1,SEARCH(\"/\",'CFR - XML import'!$A89,1)-SEARCH(\">\",'CFR - XML import'!$A89,1)-2)))","v":0},{"$f":"IF(ISERROR(FIND(BT$3,'CFR - XML import'!$A89)),0,VALUE(MID('CFR - XML import'!$A89,SEARCH(\">\",'CFR - XML import'!$A89,1)+1,SEARCH(\"/\",'CFR - XML import'!$A89,1)-SEARCH(\">\",'CFR - XML import'!$A89,1)-2)))","v":0},{"$f":"IF(ISERROR(FIND(BU$3,'CFR - XML import'!$A89)),0,VALUE(MID('CFR - XML import'!$A89,SEARCH(\">\",'CFR - XML import'!$A89,1)+1,SEARCH(\"/\",'CFR - XML import'!$A89,1)-SEARCH(\">\",'CFR - XML import'!$A89,1)-2)))","v":0},{"$f":"IF(ISERROR(FIND(BV$3,'CFR - XML import'!$A89)),0,VALUE(MID('CFR - XML import'!$A89,SEARCH(\">\",'CFR - XML import'!$A89,1)+1,SEARCH(\"/\",'CFR - XML import'!$A89,1)-SEARCH(\">\",'CFR - XML import'!$A89,1)-2)))","v":0},{"$f":"IF(ISERROR(FIND(BW$3,'CFR - XML import'!$A89)),0,VALUE(MID('CFR - XML import'!$A89,SEARCH(\">\",'CFR - XML import'!$A89,1)+1,SEARCH(\"/\",'CFR - XML import'!$A89,1)-SEARCH(\">\",'CFR - XML import'!$A89,1)-2)))","v":0},{"$f":"IF(ISERROR(FIND(BX$3,'CFR - XML import'!$A89)),0,VALUE(MID('CFR - XML import'!$A89,SEARCH(\">\",'CFR - XML import'!$A89,1)+1,SEARCH(\"/\",'CFR - XML import'!$A89,1)-SEARCH(\">\",'CFR - XML import'!$A89,1)-2)))","v":0},{"$f":"IF(ISERROR(FIND(BY$3,'CFR - XML import'!$A89)),0,VALUE(MID('CFR - XML import'!$A89,SEARCH(\">\",'CFR - XML import'!$A89,1)+1,SEARCH(\"/\",'CFR - XML import'!$A89,1)-SEARCH(\">\",'CFR - XML import'!$A89,1)-2)))","v":0},{"$f":"IF(ISERROR(FIND(BZ$3,'CFR - XML import'!$A89)),0,VALUE(MID('CFR - XML import'!$A89,SEARCH(\">\",'CFR - XML import'!$A89,1)+1,SEARCH(\"/\",'CFR - XML import'!$A89,1)-SEARCH(\">\",'CFR - XML import'!$A89,1)-2)))","v":0},null,null,null,null,null,null,{"$f":"IF(ISERROR(IF(MID('CFR - XML import'!$A89,LEN($CF$4)+1,LEN('CFR - XML import'!$A89)-(2*LEN($CF$4)+1))=\"RMMS\",1,IF(MID('CFR - XML import'!$A89,LEN(\"    <InputSystem>\")+1,LEN('CFR - XML import'!$A89)-(LEN(\"    <InputSystem>\")+LEN($CF$4)+1))=\"SIMS\",2,0))),0,IF(MID('CFR - XML import'!$A89,LEN($CF$4)+1,LEN('CFR - XML import'!$A89)-(2*LEN($CF$4)+1))=\"RMMS\",1,IF(MID('CFR - XML import'!$A89,LEN(\"    <InputSystem>\")+1,LEN('CFR - XML import'!$A89)-(LEN(\"    <InputSystem>\")+LEN($CF$4)+1))=\"SIMS\",2,0)))","v":0},{"$f":"IF(ISERROR(FIND(CH$3,'CFR - XML import'!$A89)),0,MID('CFR - XML import'!$A89,SEARCH(\">\",'CFR - XML import'!$A89,1)+1,SEARCH(\"/\",'CFR - XML import'!$A89,1)-SEARCH(\">\",'CFR - XML import'!$A89,1)-2))","v":0},{"$f":"IF(ISERROR(FIND(CI$3,'CFR - XML import'!$A89)),0,MID('CFR - XML import'!$A89,SEARCH(\">\",'CFR - XML import'!$A89,1)+1,SEARCH(\"/\",'CFR - XML import'!$A89,1)-SEARCH(\">\",'CFR - XML import'!$A89,1)-2))","v":0},{"$f":"IF(ISERROR(FIND(CJ$3,'CFR - XML import'!$A89)),0,MID('CFR - XML import'!$A89,SEARCH(\">\",'CFR - XML import'!$A89,1)+1,SEARCH(\"/\",'CFR - XML import'!$A89,1)-SEARCH(\">\",'CFR - XML import'!$A89,1)-2))","v":0},{"$f":"IF(ISERROR(FIND(CK$3,'CFR - XML import'!$A89)),0,MID('CFR - XML import'!$A89,SEARCH(\">\",'CFR - XML import'!$A89,1)+1,SEARCH(\"/\",'CFR - XML import'!$A89,1)-SEARCH(\">\",'CFR - XML import'!$A89,1)-2))","v":0},{"$f":"IF(ISERROR(FIND(CL$3,'CFR - XML import'!$A89)),0,MID('CFR - XML import'!$A89,SEARCH(\">\",'CFR - XML import'!$A89,1)+1,SEARCH(\"/\",'CFR - XML import'!$A89,1)-SEARCH(\">\",'CFR - XML import'!$A89,1)-2))","v":0}]
[{"$f":"IF(AND('CFR - XML import'!A90<>\"\",LEFT('CFR - XML import'!A90,1)<>\"<\",LEFT('CFR - XML import'!A90,3)<>\"  <\",LEFT('CFR - XML import'!A90,5)<>\"    <\",LEFT('CFR - XML import'!A90,7)<>\"      <\",LEFT('CFR - XML import'!A90,9)<>\"        <\",$B$1=\"SIMS\"),'CFR - XML import'!A90,IF(AND(LEFT('CFR - XML import'!A90,9)=\"<Details>\",$B$1=\"RM\"),'CFR - XML import'!A90,\"\"))","v":""},{"$f":"IF(ISERROR(FIND(B$3,'CFR - XML import'!$A90)),0,VALUE(MID('CFR - XML import'!$A90,SEARCH(\">\",'CFR - XML import'!$A90,1)+1,SEARCH(\"/\",'CFR - XML import'!$A90,1)-SEARCH(\">\",'CFR - XML import'!$A90,1)-2)))","v":0},null,{"$f":"IF(ISERROR(FIND(D$3,'CFR - XML import'!$A90)),0,MID('CFR - XML import'!$A90,SEARCH(\">\",'CFR - XML import'!$A90,1)+1,SEARCH(\"/\",'CFR - XML import'!$A90,1)-SEARCH(\">\",'CFR - XML import'!$A90,1)-2))","v":0},{"$f":"IF(ISERROR(FIND(E$3,'CFR - XML import'!$A90)),0,MID('CFR - XML import'!$A90,SEARCH(\">\",'CFR - XML import'!$A90,1)+1,SEARCH(\"/\",'CFR - XML import'!$A90,1)-SEARCH(\">\",'CFR - XML import'!$A90,1)-2))","v":0},{"$f":"IF($B$1=\"SIMS\",IF(ISERROR(FIND(F$3,'CFR - XML import'!$A90)),0,VALUE(MID('CFR - XML import'!$A90,15,10))),IF(ISERROR(FIND(F$3,'CFR - XML import'!$A90)),0,VALUE(MID('CFR - XML import'!$A90,11,10))))","v":"00:00:00"},{"$f":"IF(ISERROR(FIND(G$3,'CFR - XML import'!$A90)),0,VALUE(MID('CFR - XML import'!$A90,SEARCH(\">\",'CFR - XML import'!$A90,1)+1,SEARCH(\"/\",'CFR - XML import'!$A90,1)-SEARCH(\">\",'CFR - XML import'!$A90,1)-2)))","v":0},{"$f":"IF(ISERROR(FIND(H$3,'CFR - XML import'!$A90)),0,VALUE(MID('CFR - XML import'!$A90,SEARCH(\">\",'CFR - XML import'!$A90,1)+1,SEARCH(\"/\",'CFR - XML import'!$A90,1)-SEARCH(\">\",'CFR - XML import'!$A90,1)-2)))","v":0},{"$f":"IF(ISERROR(FIND(I$3,'CFR - XML import'!$A90)),0,VALUE(MID('CFR - XML import'!$A90,SEARCH(\">\",'CFR - XML import'!$A90,1)+1,SEARCH(\"/\",'CFR - XML import'!$A90,1)-SEARCH(\">\",'CFR - XML import'!$A90,1)-2)))","v":0},{"$f":"IF(ISERROR(FIND(J$3,'CFR - XML import'!$A90)),0,VALUE(MID('CFR - XML import'!$A90,SEARCH(\">\",'CFR - XML import'!$A90,1)+1,SEARCH(\"/\",'CFR - XML import'!$A90,1)-SEARCH(\">\",'CFR - XML import'!$A90,1)-2)))","v":0},{"$f":"IF(ISERROR(FIND(K$3,'CFR - XML import'!$A90)),0,VALUE(MID('CFR - XML import'!$A90,SEARCH(\">\",'CFR - XML import'!$A90,1)+1,SEARCH(\"/\",'CFR - XML import'!$A90,1)-SEARCH(\">\",'CFR - XML import'!$A90,1)-2)))","v":0},{"$f":"IF(ISERROR(FIND(L$3,'CFR - XML import'!$A90)),0,VALUE(MID('CFR - XML import'!$A90,SEARCH(\">\",'CFR - XML import'!$A90,1)+1,SEARCH(\"/\",'CFR - XML import'!$A90,1)-SEARCH(\">\",'CFR - XML import'!$A90,1)-2)))","v":0},{"$f":"IF(ISERROR(FIND(M$3,'CFR - XML import'!$A90)),0,VALUE(MID('CFR - XML import'!$A90,SEARCH(\">\",'CFR - XML import'!$A90,1)+1,SEARCH(\"/\",'CFR - XML import'!$A90,1)-SEARCH(\">\",'CFR - XML import'!$A90,1)-2)))","v":0},{"$f":"IF(ISERROR(FIND(N$3,'CFR - XML import'!$A90)),0,VALUE(MID('CFR - XML import'!$A90,SEARCH(\">\",'CFR - XML import'!$A90,1)+1,SEARCH(\"/\",'CFR - XML import'!$A90,1)-SEARCH(\">\",'CFR - XML import'!$A90,1)-2)))","v":0},{"$f":"IF(ISERROR(FIND(O$3,'CFR - XML import'!$A90)),0,VALUE(MID('CFR - XML import'!$A90,SEARCH(\">\",'CFR - XML import'!$A90,1)+1,SEARCH(\"/\",'CFR - XML import'!$A90,1)-SEARCH(\">\",'CFR - XML import'!$A90,1)-2)))","v":0},{"$f":"IF(ISERROR(FIND(P$3,'CFR - XML import'!$A90)),0,VALUE(MID('CFR - XML import'!$A90,SEARCH(\">\",'CFR - XML import'!$A90,1)+1,SEARCH(\"/\",'CFR - XML import'!$A90,1)-SEARCH(\">\",'CFR - XML import'!$A90,1)-2)))","v":0},{"$f":"IF(ISERROR(FIND(Q$3,'CFR - XML import'!$A90)),0,VALUE(MID('CFR - XML import'!$A90,SEARCH(\">\",'CFR - XML import'!$A90,1)+1,SEARCH(\"/\",'CFR - XML import'!$A90,1)-SEARCH(\">\",'CFR - XML import'!$A90,1)-2)))","v":0},{"$f":"IF(ISERROR(FIND(R$3,'CFR - XML import'!$A90)),0,VALUE(MID('CFR - XML import'!$A90,SEARCH(\">\",'CFR - XML import'!$A90,1)+1,SEARCH(\"/\",'CFR - XML import'!$A90,1)-SEARCH(\">\",'CFR - XML import'!$A90,1)-2)))","v":0},{"$f":"IF(ISERROR(FIND(S$3,'CFR - XML import'!$A90)),0,VALUE(MID('CFR - XML import'!$A90,SEARCH(\">\",'CFR - XML import'!$A90,1)+1,SEARCH(\"/\",'CFR - XML import'!$A90,1)-SEARCH(\">\",'CFR - XML import'!$A90,1)-2)))","v":0},{"$f":"IF(ISERROR(FIND(T$3,'CFR - XML import'!$A90)),0,VALUE(MID('CFR - XML import'!$A90,SEARCH(\">\",'CFR - XML import'!$A90,1)+1,SEARCH(\"/\",'CFR - XML import'!$A90,1)-SEARCH(\">\",'CFR - XML import'!$A90,1)-2)))","v":0},{"$f":"IF(ISERROR(FIND(U$3,'CFR - XML import'!$A90)),0,VALUE(MID('CFR - XML import'!$A90,SEARCH(\">\",'CFR - XML import'!$A90,1)+1,SEARCH(\"/\",'CFR - XML import'!$A90,1)-SEARCH(\">\",'CFR - XML import'!$A90,1)-2)))","v":0},{"$f":"IF(ISERROR(FIND(V$3,'CFR - XML import'!$A90)),0,VALUE(MID('CFR - XML import'!$A90,SEARCH(\">\",'CFR - XML import'!$A90,1)+1,SEARCH(\"/\",'CFR - XML import'!$A90,1)-SEARCH(\">\",'CFR - XML import'!$A90,1)-2)))","v":0},{"$f":"IF(ISERROR(FIND(W$3,'CFR - XML import'!$A90)),0,VALUE(MID('CFR - XML import'!$A90,SEARCH(\">\",'CFR - XML import'!$A90,1)+1,SEARCH(\"/\",'CFR - XML import'!$A90,1)-SEARCH(\">\",'CFR - XML import'!$A90,1)-2)))","v":0},null,{"$f":"IF(ISERROR(FIND(Y$3,'CFR - XML import'!$A90)),0,VALUE(MID('CFR - XML import'!$A90,SEARCH(\">\",'CFR - XML import'!$A90,1)+1,SEARCH(\"/\",'CFR - XML import'!$A90,1)-SEARCH(\">\",'CFR - XML import'!$A90,1)-2)))","v":0},{"$f":"IF(ISERROR(FIND(Z$3,'CFR - XML import'!$A90)),0,VALUE(MID('CFR - XML import'!$A90,SEARCH(\">\",'CFR - XML import'!$A90,1)+1,SEARCH(\"/\",'CFR - XML import'!$A90,1)-SEARCH(\">\",'CFR - XML import'!$A90,1)-2)))","v":0},{"$f":"IF(ISERROR(FIND(AA$3,'CFR - XML import'!$A90)),0,VALUE(MID('CFR - XML import'!$A90,SEARCH(\">\",'CFR - XML import'!$A90,1)+1,SEARCH(\"/\",'CFR - XML import'!$A90,1)-SEARCH(\">\",'CFR - XML import'!$A90,1)-2)))","v":0},{"$f":"IF(ISERROR(FIND(AB$3,'CFR - XML import'!$A90)),0,VALUE(MID('CFR - XML import'!$A90,SEARCH(\">\",'CFR - XML import'!$A90,1)+1,SEARCH(\"/\",'CFR - XML import'!$A90,1)-SEARCH(\">\",'CFR - XML import'!$A90,1)-2)))","v":0},{"$f":"IF(ISERROR(FIND(AC$3,'CFR - XML import'!$A90)),0,VALUE(MID('CFR - XML import'!$A90,SEARCH(\">\",'CFR - XML import'!$A90,1)+1,SEARCH(\"/\",'CFR - XML import'!$A90,1)-SEARCH(\">\",'CFR - XML import'!$A90,1)-2)))","v":0},{"$f":"IF(ISERROR(FIND(AD$3,'CFR - XML import'!$A90)),0,VALUE(MID('CFR - XML import'!$A90,SEARCH(\">\",'CFR - XML import'!$A90,1)+1,SEARCH(\"/\",'CFR - XML import'!$A90,1)-SEARCH(\">\",'CFR - XML import'!$A90,1)-2)))","v":0},{"$f":"IF(ISERROR(FIND(AE$3,'CFR - XML import'!$A90)),0,VALUE(MID('CFR - XML import'!$A90,SEARCH(\">\",'CFR - XML import'!$A90,1)+1,SEARCH(\"/\",'CFR - XML import'!$A90,1)-SEARCH(\">\",'CFR - XML import'!$A90,1)-2)))","v":0},{"$f":"IF(ISERROR(FIND(AF$3,'CFR - XML import'!$A90)),0,VALUE(MID('CFR - XML import'!$A90,SEARCH(\">\",'CFR - XML import'!$A90,1)+1,SEARCH(\"/\",'CFR - XML import'!$A90,1)-SEARCH(\">\",'CFR - XML import'!$A90,1)-2)))","v":0},{"$f":"IF(ISERROR(FIND(AG$3,'CFR - XML import'!$A90)),0,VALUE(MID('CFR - XML import'!$A90,SEARCH(\">\",'CFR - XML import'!$A90,1)+1,SEARCH(\"/\",'CFR - XML import'!$A90,1)-SEARCH(\">\",'CFR - XML import'!$A90,1)-2)))","v":0},{"$f":"IF(ISERROR(FIND(AH$3,'CFR - XML import'!$A90)),0,VALUE(MID('CFR - XML import'!$A90,SEARCH(\">\",'CFR - XML import'!$A90,1)+1,SEARCH(\"/\",'CFR - XML import'!$A90,1)-SEARCH(\">\",'CFR - XML import'!$A90,1)-2)))","v":0},{"$f":"IF(ISERROR(FIND(AI$3,'CFR - XML import'!$A90)),0,VALUE(MID('CFR - XML import'!$A90,SEARCH(\">\",'CFR - XML import'!$A90,1)+1,SEARCH(\"/\",'CFR - XML import'!$A90,1)-SEARCH(\">\",'CFR - XML import'!$A90,1)-2)))","v":0},{"$f":"IF(ISERROR(FIND(AJ$3,'CFR - XML import'!$A90)),0,VALUE(MID('CFR - XML import'!$A90,SEARCH(\">\",'CFR - XML import'!$A90,1)+1,SEARCH(\"/\",'CFR - XML import'!$A90,1)-SEARCH(\">\",'CFR - XML import'!$A90,1)-2)))","v":0},{"$f":"IF(ISERROR(FIND(AK$3,'CFR - XML import'!$A90)),0,VALUE(MID('CFR - XML import'!$A90,SEARCH(\">\",'CFR - XML import'!$A90,1)+1,SEARCH(\"/\",'CFR - XML import'!$A90,1)-SEARCH(\">\",'CFR - XML import'!$A90,1)-2)))","v":0},{"$f":"IF(ISERROR(FIND(AL$3,'CFR - XML import'!$A90)),0,VALUE(MID('CFR - XML import'!$A90,SEARCH(\">\",'CFR - XML import'!$A90,1)+1,SEARCH(\"/\",'CFR - XML import'!$A90,1)-SEARCH(\">\",'CFR - XML import'!$A90,1)-2)))","v":0},{"$f":"IF(ISERROR(FIND(AM$3,'CFR - XML import'!$A90)),0,VALUE(MID('CFR - XML import'!$A90,SEARCH(\">\",'CFR - XML import'!$A90,1)+1,SEARCH(\"/\",'CFR - XML import'!$A90,1)-SEARCH(\">\",'CFR - XML import'!$A90,1)-2)))","v":0},{"$f":"IF(ISERROR(FIND(AN$3,'CFR - XML import'!$A90)),0,VALUE(MID('CFR - XML import'!$A90,SEARCH(\">\",'CFR - XML import'!$A90,1)+1,SEARCH(\"/\",'CFR - XML import'!$A90,1)-SEARCH(\">\",'CFR - XML import'!$A90,1)-2)))","v":0},{"$f":"IF(ISERROR(FIND(AO$3,'CFR - XML import'!$A90)),0,VALUE(MID('CFR - XML import'!$A90,SEARCH(\">\",'CFR - XML import'!$A90,1)+1,SEARCH(\"/\",'CFR - XML import'!$A90,1)-SEARCH(\">\",'CFR - XML import'!$A90,1)-2)))","v":0},{"$f":"IF(ISERROR(FIND(AP$3,'CFR - XML import'!$A90)),0,VALUE(MID('CFR - XML import'!$A90,SEARCH(\">\",'CFR - XML import'!$A90,1)+1,SEARCH(\"/\",'CFR - XML import'!$A90,1)-SEARCH(\">\",'CFR - XML import'!$A90,1)-2)))","v":0},{"$f":"IF(ISERROR(FIND(AQ$3,'CFR - XML import'!$A90)),0,VALUE(MID('CFR - XML import'!$A90,SEARCH(\">\",'CFR - XML import'!$A90,1)+1,SEARCH(\"/\",'CFR - XML import'!$A90,1)-SEARCH(\">\",'CFR - XML import'!$A90,1)-2)))","v":0},{"$f":"IF(ISERROR(FIND(AR$3,'CFR - XML import'!$A90)),0,VALUE(MID('CFR - XML import'!$A90,SEARCH(\">\",'CFR - XML import'!$A90,1)+1,SEARCH(\"/\",'CFR - XML import'!$A90,1)-SEARCH(\">\",'CFR - XML import'!$A90,1)-2)))","v":0},{"$f":"IF(ISERROR(FIND(AS$3,'CFR - XML import'!$A90)),0,VALUE(MID('CFR - XML import'!$A90,SEARCH(\">\",'CFR - XML import'!$A90,1)+1,SEARCH(\"/\",'CFR - XML import'!$A90,1)-SEARCH(\">\",'CFR - XML import'!$A90,1)-2)))","v":0},{"$f":"IF(ISERROR(FIND(AT$3,'CFR - XML import'!$A90)),0,VALUE(MID('CFR - XML import'!$A90,SEARCH(\">\",'CFR - XML import'!$A90,1)+1,SEARCH(\"/\",'CFR - XML import'!$A90,1)-SEARCH(\">\",'CFR - XML import'!$A90,1)-2)))","v":0},{"$f":"IF(ISERROR(FIND(AU$3,'CFR - XML import'!$A90)),0,VALUE(MID('CFR - XML import'!$A90,SEARCH(\">\",'CFR - XML import'!$A90,1)+1,SEARCH(\"/\",'CFR - XML import'!$A90,1)-SEARCH(\">\",'CFR - XML import'!$A90,1)-2)))","v":0},{"$f":"IF(ISERROR(FIND(AV$3,'CFR - XML import'!$A90)),0,VALUE(MID('CFR - XML import'!$A90,SEARCH(\">\",'CFR - XML import'!$A90,1)+1,SEARCH(\"/\",'CFR - XML import'!$A90,1)-SEARCH(\">\",'CFR - XML import'!$A90,1)-2)))","v":0},{"$f":"IF(ISERROR(FIND(AW$3,'CFR - XML import'!$A90)),0,VALUE(MID('CFR - XML import'!$A90,SEARCH(\">\",'CFR - XML import'!$A90,1)+1,SEARCH(\"/\",'CFR - XML import'!$A90,1)-SEARCH(\">\",'CFR - XML import'!$A90,1)-2)))","v":0},{"$f":"IF(ISERROR(FIND(AX$3,'CFR - XML import'!$A90)),0,VALUE(MID('CFR - XML import'!$A90,SEARCH(\">\",'CFR - XML import'!$A90,1)+1,SEARCH(\"/\",'CFR - XML import'!$A90,1)-SEARCH(\">\",'CFR - XML import'!$A90,1)-2)))","v":0},{"$f":"IF(ISERROR(FIND(AY$3,'CFR - XML import'!$A90)),0,VALUE(MID('CFR - XML import'!$A90,SEARCH(\">\",'CFR - XML import'!$A90,1)+1,SEARCH(\"/\",'CFR - XML import'!$A90,1)-SEARCH(\">\",'CFR - XML import'!$A90,1)-2)))","v":0},{"$f":"IF(ISERROR(FIND(AZ$3,'CFR - XML import'!$A90)),0,VALUE(MID('CFR - XML import'!$A90,SEARCH(\">\",'CFR - XML import'!$A90,1)+1,SEARCH(\"/\",'CFR - XML import'!$A90,1)-SEARCH(\">\",'CFR - XML import'!$A90,1)-2)))","v":0},{"$f":"IF(ISERROR(FIND(BA$3,'CFR - XML import'!$A90)),0,VALUE(MID('CFR - XML import'!$A90,SEARCH(\">\",'CFR - XML import'!$A90,1)+1,SEARCH(\"/\",'CFR - XML import'!$A90,1)-SEARCH(\">\",'CFR - XML import'!$A90,1)-2)))","v":0},{"$f":"IF(ISERROR(FIND(BB$3,'CFR - XML import'!$A90)),0,VALUE(MID('CFR - XML import'!$A90,SEARCH(\">\",'CFR - XML import'!$A90,1)+1,SEARCH(\"/\",'CFR - XML import'!$A90,1)-SEARCH(\">\",'CFR - XML import'!$A90,1)-2)))","v":0},{"$f":"IF(ISERROR(FIND(BC$3,'CFR - XML import'!$A90)),0,VALUE(MID('CFR - XML import'!$A90,SEARCH(\">\",'CFR - XML import'!$A90,1)+1,SEARCH(\"/\",'CFR - XML import'!$A90,1)-SEARCH(\">\",'CFR - XML import'!$A90,1)-2)))","v":0},{"$f":"IF(ISERROR(FIND(BD$3,'CFR - XML import'!$A90)),0,VALUE(MID('CFR - XML import'!$A90,SEARCH(\">\",'CFR - XML import'!$A90,1)+1,SEARCH(\"/\",'CFR - XML import'!$A90,1)-SEARCH(\">\",'CFR - XML import'!$A90,1)-2)))","v":0},{"$f":"IF(ISERROR(FIND(BE$3,'CFR - XML import'!$A90)),0,VALUE(MID('CFR - XML import'!$A90,SEARCH(\">\",'CFR - XML import'!$A90,1)+1,SEARCH(\"/\",'CFR - XML import'!$A90,1)-SEARCH(\">\",'CFR - XML import'!$A90,1)-2)))","v":0},{"$f":"IF(ISERROR(FIND(BF$3,'CFR - XML import'!$A90)),0,VALUE(MID('CFR - XML import'!$A90,SEARCH(\">\",'CFR - XML import'!$A90,1)+1,SEARCH(\"/\",'CFR - XML import'!$A90,1)-SEARCH(\">\",'CFR - XML import'!$A90,1)-2)))","v":0},{"$f":"IF(ISERROR(FIND(BG$3,'CFR - XML import'!$A90)),0,VALUE(MID('CFR - XML import'!$A90,SEARCH(\">\",'CFR - XML import'!$A90,1)+1,SEARCH(\"/\",'CFR - XML import'!$A90,1)-SEARCH(\">\",'CFR - XML import'!$A90,1)-2)))","v":0},{"$f":"IF(ISERROR(FIND(BH$3,'CFR - XML import'!$A90)),0,VALUE(MID('CFR - XML import'!$A90,SEARCH(\">\",'CFR - XML import'!$A90,1)+1,SEARCH(\"/\",'CFR - XML import'!$A90,1)-SEARCH(\">\",'CFR - XML import'!$A90,1)-2)))","v":0},{"$f":"IF(ISERROR(FIND(BI$3,'CFR - XML import'!$A90)),0,VALUE(MID('CFR - XML import'!$A90,SEARCH(\">\",'CFR - XML import'!$A90,1)+1,SEARCH(\"/\",'CFR - XML import'!$A90,1)-SEARCH(\">\",'CFR - XML import'!$A90,1)-2)))","v":0},{"$f":"IF(ISERROR(FIND(BJ$3,'CFR - XML import'!$A90)),0,VALUE(MID('CFR - XML import'!$A90,SEARCH(\">\",'CFR - XML import'!$A90,1)+1,SEARCH(\"/\",'CFR - XML import'!$A90,1)-SEARCH(\">\",'CFR - XML import'!$A90,1)-2)))","v":0},{"$f":"IF(ISERROR(FIND(BK$3,'CFR - XML import'!$A90)),0,VALUE(MID('CFR - XML import'!$A90,SEARCH(\">\",'CFR - XML import'!$A90,1)+1,SEARCH(\"/\",'CFR - XML import'!$A90,1)-SEARCH(\">\",'CFR - XML import'!$A90,1)-2)))","v":0},{"$f":"IF(ISERROR(FIND(BL$3,'CFR - XML import'!$A90)),0,VALUE(MID('CFR - XML import'!$A90,SEARCH(\">\",'CFR - XML import'!$A90,1)+1,SEARCH(\"/\",'CFR - XML import'!$A90,1)-SEARCH(\">\",'CFR - XML import'!$A90,1)-2)))","v":0},{"$f":"IF(ISERROR(FIND(BM$3,'CFR - XML import'!$A90)),0,VALUE(MID('CFR - XML import'!$A90,SEARCH(\">\",'CFR - XML import'!$A90,1)+1,SEARCH(\"/\",'CFR - XML import'!$A90,1)-SEARCH(\">\",'CFR - XML import'!$A90,1)-2)))","v":0},{"$f":"IF(ISERROR(FIND(BN$3,'CFR - XML import'!$A90)),0,VALUE(MID('CFR - XML import'!$A90,SEARCH(\">\",'CFR - XML import'!$A90,1)+1,SEARCH(\"/\",'CFR - XML import'!$A90,1)-SEARCH(\">\",'CFR - XML import'!$A90,1)-2)))","v":0},{"$f":"IF(ISERROR(FIND(BO$3,'CFR - XML import'!$A90)),0,VALUE(MID('CFR - XML import'!$A90,SEARCH(\">\",'CFR - XML import'!$A90,1)+1,SEARCH(\"/\",'CFR - XML import'!$A90,1)-SEARCH(\">\",'CFR - XML import'!$A90,1)-2)))","v":0},{"$f":"IF(ISERROR(FIND(BP$3,'CFR - XML import'!$A90)),0,VALUE(MID('CFR - XML import'!$A90,SEARCH(\">\",'CFR - XML import'!$A90,1)+1,SEARCH(\"/\",'CFR - XML import'!$A90,1)-SEARCH(\">\",'CFR - XML import'!$A90,1)-2)))","v":0},{"$f":"IF(ISERROR(FIND(BQ$3,'CFR - XML import'!$A90)),0,VALUE(MID('CFR - XML import'!$A90,SEARCH(\">\",'CFR - XML import'!$A90,1)+1,SEARCH(\"/\",'CFR - XML import'!$A90,1)-SEARCH(\">\",'CFR - XML import'!$A90,1)-2)))","v":0},{"$f":"IF(ISERROR(FIND(BR$3,'CFR - XML import'!$A90)),0,VALUE(MID('CFR - XML import'!$A90,SEARCH(\">\",'CFR - XML import'!$A90,1)+1,SEARCH(\"/\",'CFR - XML import'!$A90,1)-SEARCH(\">\",'CFR - XML import'!$A90,1)-2)))","v":0},{"$f":"IF(ISERROR(FIND(BS$3,'CFR - XML import'!$A90)),0,VALUE(MID('CFR - XML import'!$A90,SEARCH(\">\",'CFR - XML import'!$A90,1)+1,SEARCH(\"/\",'CFR - XML import'!$A90,1)-SEARCH(\">\",'CFR - XML import'!$A90,1)-2)))","v":0},{"$f":"IF(ISERROR(FIND(BT$3,'CFR - XML import'!$A90)),0,VALUE(MID('CFR - XML import'!$A90,SEARCH(\">\",'CFR - XML import'!$A90,1)+1,SEARCH(\"/\",'CFR - XML import'!$A90,1)-SEARCH(\">\",'CFR - XML import'!$A90,1)-2)))","v":0},{"$f":"IF(ISERROR(FIND(BU$3,'CFR - XML import'!$A90)),0,VALUE(MID('CFR - XML import'!$A90,SEARCH(\">\",'CFR - XML import'!$A90,1)+1,SEARCH(\"/\",'CFR - XML import'!$A90,1)-SEARCH(\">\",'CFR - XML import'!$A90,1)-2)))","v":0},{"$f":"IF(ISERROR(FIND(BV$3,'CFR - XML import'!$A90)),0,VALUE(MID('CFR - XML import'!$A90,SEARCH(\">\",'CFR - XML import'!$A90,1)+1,SEARCH(\"/\",'CFR - XML import'!$A90,1)-SEARCH(\">\",'CFR - XML import'!$A90,1)-2)))","v":0},{"$f":"IF(ISERROR(FIND(BW$3,'CFR - XML import'!$A90)),0,VALUE(MID('CFR - XML import'!$A90,SEARCH(\">\",'CFR - XML import'!$A90,1)+1,SEARCH(\"/\",'CFR - XML import'!$A90,1)-SEARCH(\">\",'CFR - XML import'!$A90,1)-2)))","v":0},{"$f":"IF(ISERROR(FIND(BX$3,'CFR - XML import'!$A90)),0,VALUE(MID('CFR - XML import'!$A90,SEARCH(\">\",'CFR - XML import'!$A90,1)+1,SEARCH(\"/\",'CFR - XML import'!$A90,1)-SEARCH(\">\",'CFR - XML import'!$A90,1)-2)))","v":0},{"$f":"IF(ISERROR(FIND(BY$3,'CFR - XML import'!$A90)),0,VALUE(MID('CFR - XML import'!$A90,SEARCH(\">\",'CFR - XML import'!$A90,1)+1,SEARCH(\"/\",'CFR - XML import'!$A90,1)-SEARCH(\">\",'CFR - XML import'!$A90,1)-2)))","v":0},{"$f":"IF(ISERROR(FIND(BZ$3,'CFR - XML import'!$A90)),0,VALUE(MID('CFR - XML import'!$A90,SEARCH(\">\",'CFR - XML import'!$A90,1)+1,SEARCH(\"/\",'CFR - XML import'!$A90,1)-SEARCH(\">\",'CFR - XML import'!$A90,1)-2)))","v":0},null,null,null,null,null,null,{"$f":"IF(ISERROR(IF(MID('CFR - XML import'!$A90,LEN($CF$4)+1,LEN('CFR - XML import'!$A90)-(2*LEN($CF$4)+1))=\"RMMS\",1,IF(MID('CFR - XML import'!$A90,LEN(\"    <InputSystem>\")+1,LEN('CFR - XML import'!$A90)-(LEN(\"    <InputSystem>\")+LEN($CF$4)+1))=\"SIMS\",2,0))),0,IF(MID('CFR - XML import'!$A90,LEN($CF$4)+1,LEN('CFR - XML import'!$A90)-(2*LEN($CF$4)+1))=\"RMMS\",1,IF(MID('CFR - XML import'!$A90,LEN(\"    <InputSystem>\")+1,LEN('CFR - XML import'!$A90)-(LEN(\"    <InputSystem>\")+LEN($CF$4)+1))=\"SIMS\",2,0)))","v":0},{"$f":"IF(ISERROR(FIND(CH$3,'CFR - XML import'!$A90)),0,MID('CFR - XML import'!$A90,SEARCH(\">\",'CFR - XML import'!$A90,1)+1,SEARCH(\"/\",'CFR - XML import'!$A90,1)-SEARCH(\">\",'CFR - XML import'!$A90,1)-2))","v":0},{"$f":"IF(ISERROR(FIND(CI$3,'CFR - XML import'!$A90)),0,MID('CFR - XML import'!$A90,SEARCH(\">\",'CFR - XML import'!$A90,1)+1,SEARCH(\"/\",'CFR - XML import'!$A90,1)-SEARCH(\">\",'CFR - XML import'!$A90,1)-2))","v":0},{"$f":"IF(ISERROR(FIND(CJ$3,'CFR - XML import'!$A90)),0,MID('CFR - XML import'!$A90,SEARCH(\">\",'CFR - XML import'!$A90,1)+1,SEARCH(\"/\",'CFR - XML import'!$A90,1)-SEARCH(\">\",'CFR - XML import'!$A90,1)-2))","v":0},{"$f":"IF(ISERROR(FIND(CK$3,'CFR - XML import'!$A90)),0,MID('CFR - XML import'!$A90,SEARCH(\">\",'CFR - XML import'!$A90,1)+1,SEARCH(\"/\",'CFR - XML import'!$A90,1)-SEARCH(\">\",'CFR - XML import'!$A90,1)-2))","v":0},{"$f":"IF(ISERROR(FIND(CL$3,'CFR - XML import'!$A90)),0,MID('CFR - XML import'!$A90,SEARCH(\">\",'CFR - XML import'!$A90,1)+1,SEARCH(\"/\",'CFR - XML import'!$A90,1)-SEARCH(\">\",'CFR - XML import'!$A90,1)-2))","v":0}]
[{"$f":"IF(AND('CFR - XML import'!A91<>\"\",LEFT('CFR - XML import'!A91,1)<>\"<\",LEFT('CFR - XML import'!A91,3)<>\"  <\",LEFT('CFR - XML import'!A91,5)<>\"    <\",LEFT('CFR - XML import'!A91,7)<>\"      <\",LEFT('CFR - XML import'!A91,9)<>\"        <\",$B$1=\"SIMS\"),'CFR - XML import'!A91,IF(AND(LEFT('CFR - XML import'!A91,9)=\"<Details>\",$B$1=\"RM\"),'CFR - XML import'!A91,\"\"))","v":""},{"$f":"IF(ISERROR(FIND(B$3,'CFR - XML import'!$A91)),0,VALUE(MID('CFR - XML import'!$A91,SEARCH(\">\",'CFR - XML import'!$A91,1)+1,SEARCH(\"/\",'CFR - XML import'!$A91,1)-SEARCH(\">\",'CFR - XML import'!$A91,1)-2)))","v":0},null,{"$f":"IF(ISERROR(FIND(D$3,'CFR - XML import'!$A91)),0,MID('CFR - XML import'!$A91,SEARCH(\">\",'CFR - XML import'!$A91,1)+1,SEARCH(\"/\",'CFR - XML import'!$A91,1)-SEARCH(\">\",'CFR - XML import'!$A91,1)-2))","v":0},{"$f":"IF(ISERROR(FIND(E$3,'CFR - XML import'!$A91)),0,MID('CFR - XML import'!$A91,SEARCH(\">\",'CFR - XML import'!$A91,1)+1,SEARCH(\"/\",'CFR - XML import'!$A91,1)-SEARCH(\">\",'CFR - XML import'!$A91,1)-2))","v":0},{"$f":"IF($B$1=\"SIMS\",IF(ISERROR(FIND(F$3,'CFR - XML import'!$A91)),0,VALUE(MID('CFR - XML import'!$A91,15,10))),IF(ISERROR(FIND(F$3,'CFR - XML import'!$A91)),0,VALUE(MID('CFR - XML import'!$A91,11,10))))","v":"00:00:00"},{"$f":"IF(ISERROR(FIND(G$3,'CFR - XML import'!$A91)),0,VALUE(MID('CFR - XML import'!$A91,SEARCH(\">\",'CFR - XML import'!$A91,1)+1,SEARCH(\"/\",'CFR - XML import'!$A91,1)-SEARCH(\">\",'CFR - XML import'!$A91,1)-2)))","v":0},{"$f":"IF(ISERROR(FIND(H$3,'CFR - XML import'!$A91)),0,VALUE(MID('CFR - XML import'!$A91,SEARCH(\">\",'CFR - XML import'!$A91,1)+1,SEARCH(\"/\",'CFR - XML import'!$A91,1)-SEARCH(\">\",'CFR - XML import'!$A91,1)-2)))","v":0},{"$f":"IF(ISERROR(FIND(I$3,'CFR - XML import'!$A91)),0,VALUE(MID('CFR - XML import'!$A91,SEARCH(\">\",'CFR - XML import'!$A91,1)+1,SEARCH(\"/\",'CFR - XML import'!$A91,1)-SEARCH(\">\",'CFR - XML import'!$A91,1)-2)))","v":0},{"$f":"IF(ISERROR(FIND(J$3,'CFR - XML import'!$A91)),0,VALUE(MID('CFR - XML import'!$A91,SEARCH(\">\",'CFR - XML import'!$A91,1)+1,SEARCH(\"/\",'CFR - XML import'!$A91,1)-SEARCH(\">\",'CFR - XML import'!$A91,1)-2)))","v":0},{"$f":"IF(ISERROR(FIND(K$3,'CFR - XML import'!$A91)),0,VALUE(MID('CFR - XML import'!$A91,SEARCH(\">\",'CFR - XML import'!$A91,1)+1,SEARCH(\"/\",'CFR - XML import'!$A91,1)-SEARCH(\">\",'CFR - XML import'!$A91,1)-2)))","v":0},{"$f":"IF(ISERROR(FIND(L$3,'CFR - XML import'!$A91)),0,VALUE(MID('CFR - XML import'!$A91,SEARCH(\">\",'CFR - XML import'!$A91,1)+1,SEARCH(\"/\",'CFR - XML import'!$A91,1)-SEARCH(\">\",'CFR - XML import'!$A91,1)-2)))","v":0},{"$f":"IF(ISERROR(FIND(M$3,'CFR - XML import'!$A91)),0,VALUE(MID('CFR - XML import'!$A91,SEARCH(\">\",'CFR - XML import'!$A91,1)+1,SEARCH(\"/\",'CFR - XML import'!$A91,1)-SEARCH(\">\",'CFR - XML import'!$A91,1)-2)))","v":0},{"$f":"IF(ISERROR(FIND(N$3,'CFR - XML import'!$A91)),0,VALUE(MID('CFR - XML import'!$A91,SEARCH(\">\",'CFR - XML import'!$A91,1)+1,SEARCH(\"/\",'CFR - XML import'!$A91,1)-SEARCH(\">\",'CFR - XML import'!$A91,1)-2)))","v":0},{"$f":"IF(ISERROR(FIND(O$3,'CFR - XML import'!$A91)),0,VALUE(MID('CFR - XML import'!$A91,SEARCH(\">\",'CFR - XML import'!$A91,1)+1,SEARCH(\"/\",'CFR - XML import'!$A91,1)-SEARCH(\">\",'CFR - XML import'!$A91,1)-2)))","v":0},{"$f":"IF(ISERROR(FIND(P$3,'CFR - XML import'!$A91)),0,VALUE(MID('CFR - XML import'!$A91,SEARCH(\">\",'CFR - XML import'!$A91,1)+1,SEARCH(\"/\",'CFR - XML import'!$A91,1)-SEARCH(\">\",'CFR - XML import'!$A91,1)-2)))","v":0},{"$f":"IF(ISERROR(FIND(Q$3,'CFR - XML import'!$A91)),0,VALUE(MID('CFR - XML import'!$A91,SEARCH(\">\",'CFR - XML import'!$A91,1)+1,SEARCH(\"/\",'CFR - XML import'!$A91,1)-SEARCH(\">\",'CFR - XML import'!$A91,1)-2)))","v":0},{"$f":"IF(ISERROR(FIND(R$3,'CFR - XML import'!$A91)),0,VALUE(MID('CFR - XML import'!$A91,SEARCH(\">\",'CFR - XML import'!$A91,1)+1,SEARCH(\"/\",'CFR - XML import'!$A91,1)-SEARCH(\">\",'CFR - XML import'!$A91,1)-2)))","v":0},{"$f":"IF(ISERROR(FIND(S$3,'CFR - XML import'!$A91)),0,VALUE(MID('CFR - XML import'!$A91,SEARCH(\">\",'CFR - XML import'!$A91,1)+1,SEARCH(\"/\",'CFR - XML import'!$A91,1)-SEARCH(\">\",'CFR - XML import'!$A91,1)-2)))","v":0},{"$f":"IF(ISERROR(FIND(T$3,'CFR - XML import'!$A91)),0,VALUE(MID('CFR - XML import'!$A91,SEARCH(\">\",'CFR - XML import'!$A91,1)+1,SEARCH(\"/\",'CFR - XML import'!$A91,1)-SEARCH(\">\",'CFR - XML import'!$A91,1)-2)))","v":0},{"$f":"IF(ISERROR(FIND(U$3,'CFR - XML import'!$A91)),0,VALUE(MID('CFR - XML import'!$A91,SEARCH(\">\",'CFR - XML import'!$A91,1)+1,SEARCH(\"/\",'CFR - XML import'!$A91,1)-SEARCH(\">\",'CFR - XML import'!$A91,1)-2)))","v":0},{"$f":"IF(ISERROR(FIND(V$3,'CFR - XML import'!$A91)),0,VALUE(MID('CFR - XML import'!$A91,SEARCH(\">\",'CFR - XML import'!$A91,1)+1,SEARCH(\"/\",'CFR - XML import'!$A91,1)-SEARCH(\">\",'CFR - XML import'!$A91,1)-2)))","v":0},{"$f":"IF(ISERROR(FIND(W$3,'CFR - XML import'!$A91)),0,VALUE(MID('CFR - XML import'!$A91,SEARCH(\">\",'CFR - XML import'!$A91,1)+1,SEARCH(\"/\",'CFR - XML import'!$A91,1)-SEARCH(\">\",'CFR - XML import'!$A91,1)-2)))","v":0},null,{"$f":"IF(ISERROR(FIND(Y$3,'CFR - XML import'!$A91)),0,VALUE(MID('CFR - XML import'!$A91,SEARCH(\">\",'CFR - XML import'!$A91,1)+1,SEARCH(\"/\",'CFR - XML import'!$A91,1)-SEARCH(\">\",'CFR - XML import'!$A91,1)-2)))","v":0},{"$f":"IF(ISERROR(FIND(Z$3,'CFR - XML import'!$A91)),0,VALUE(MID('CFR - XML import'!$A91,SEARCH(\">\",'CFR - XML import'!$A91,1)+1,SEARCH(\"/\",'CFR - XML import'!$A91,1)-SEARCH(\">\",'CFR - XML import'!$A91,1)-2)))","v":0},{"$f":"IF(ISERROR(FIND(AA$3,'CFR - XML import'!$A91)),0,VALUE(MID('CFR - XML import'!$A91,SEARCH(\">\",'CFR - XML import'!$A91,1)+1,SEARCH(\"/\",'CFR - XML import'!$A91,1)-SEARCH(\">\",'CFR - XML import'!$A91,1)-2)))","v":0},{"$f":"IF(ISERROR(FIND(AB$3,'CFR - XML import'!$A91)),0,VALUE(MID('CFR - XML import'!$A91,SEARCH(\">\",'CFR - XML import'!$A91,1)+1,SEARCH(\"/\",'CFR - XML import'!$A91,1)-SEARCH(\">\",'CFR - XML import'!$A91,1)-2)))","v":0},{"$f":"IF(ISERROR(FIND(AC$3,'CFR - XML import'!$A91)),0,VALUE(MID('CFR - XML import'!$A91,SEARCH(\">\",'CFR - XML import'!$A91,1)+1,SEARCH(\"/\",'CFR - XML import'!$A91,1)-SEARCH(\">\",'CFR - XML import'!$A91,1)-2)))","v":0},{"$f":"IF(ISERROR(FIND(AD$3,'CFR - XML import'!$A91)),0,VALUE(MID('CFR - XML import'!$A91,SEARCH(\">\",'CFR - XML import'!$A91,1)+1,SEARCH(\"/\",'CFR - XML import'!$A91,1)-SEARCH(\">\",'CFR - XML import'!$A91,1)-2)))","v":0},{"$f":"IF(ISERROR(FIND(AE$3,'CFR - XML import'!$A91)),0,VALUE(MID('CFR - XML import'!$A91,SEARCH(\">\",'CFR - XML import'!$A91,1)+1,SEARCH(\"/\",'CFR - XML import'!$A91,1)-SEARCH(\">\",'CFR - XML import'!$A91,1)-2)))","v":0},{"$f":"IF(ISERROR(FIND(AF$3,'CFR - XML import'!$A91)),0,VALUE(MID('CFR - XML import'!$A91,SEARCH(\">\",'CFR - XML import'!$A91,1)+1,SEARCH(\"/\",'CFR - XML import'!$A91,1)-SEARCH(\">\",'CFR - XML import'!$A91,1)-2)))","v":0},{"$f":"IF(ISERROR(FIND(AG$3,'CFR - XML import'!$A91)),0,VALUE(MID('CFR - XML import'!$A91,SEARCH(\">\",'CFR - XML import'!$A91,1)+1,SEARCH(\"/\",'CFR - XML import'!$A91,1)-SEARCH(\">\",'CFR - XML import'!$A91,1)-2)))","v":0},{"$f":"IF(ISERROR(FIND(AH$3,'CFR - XML import'!$A91)),0,VALUE(MID('CFR - XML import'!$A91,SEARCH(\">\",'CFR - XML import'!$A91,1)+1,SEARCH(\"/\",'CFR - XML import'!$A91,1)-SEARCH(\">\",'CFR - XML import'!$A91,1)-2)))","v":0},{"$f":"IF(ISERROR(FIND(AI$3,'CFR - XML import'!$A91)),0,VALUE(MID('CFR - XML import'!$A91,SEARCH(\">\",'CFR - XML import'!$A91,1)+1,SEARCH(\"/\",'CFR - XML import'!$A91,1)-SEARCH(\">\",'CFR - XML import'!$A91,1)-2)))","v":0},{"$f":"IF(ISERROR(FIND(AJ$3,'CFR - XML import'!$A91)),0,VALUE(MID('CFR - XML import'!$A91,SEARCH(\">\",'CFR - XML import'!$A91,1)+1,SEARCH(\"/\",'CFR - XML import'!$A91,1)-SEARCH(\">\",'CFR - XML import'!$A91,1)-2)))","v":0},{"$f":"IF(ISERROR(FIND(AK$3,'CFR - XML import'!$A91)),0,VALUE(MID('CFR - XML import'!$A91,SEARCH(\">\",'CFR - XML import'!$A91,1)+1,SEARCH(\"/\",'CFR - XML import'!$A91,1)-SEARCH(\">\",'CFR - XML import'!$A91,1)-2)))","v":0},{"$f":"IF(ISERROR(FIND(AL$3,'CFR - XML import'!$A91)),0,VALUE(MID('CFR - XML import'!$A91,SEARCH(\">\",'CFR - XML import'!$A91,1)+1,SEARCH(\"/\",'CFR - XML import'!$A91,1)-SEARCH(\">\",'CFR - XML import'!$A91,1)-2)))","v":0},{"$f":"IF(ISERROR(FIND(AM$3,'CFR - XML import'!$A91)),0,VALUE(MID('CFR - XML import'!$A91,SEARCH(\">\",'CFR - XML import'!$A91,1)+1,SEARCH(\"/\",'CFR - XML import'!$A91,1)-SEARCH(\">\",'CFR - XML import'!$A91,1)-2)))","v":0},{"$f":"IF(ISERROR(FIND(AN$3,'CFR - XML import'!$A91)),0,VALUE(MID('CFR - XML import'!$A91,SEARCH(\">\",'CFR - XML import'!$A91,1)+1,SEARCH(\"/\",'CFR - XML import'!$A91,1)-SEARCH(\">\",'CFR - XML import'!$A91,1)-2)))","v":0},{"$f":"IF(ISERROR(FIND(AO$3,'CFR - XML import'!$A91)),0,VALUE(MID('CFR - XML import'!$A91,SEARCH(\">\",'CFR - XML import'!$A91,1)+1,SEARCH(\"/\",'CFR - XML import'!$A91,1)-SEARCH(\">\",'CFR - XML import'!$A91,1)-2)))","v":0},{"$f":"IF(ISERROR(FIND(AP$3,'CFR - XML import'!$A91)),0,VALUE(MID('CFR - XML import'!$A91,SEARCH(\">\",'CFR - XML import'!$A91,1)+1,SEARCH(\"/\",'CFR - XML import'!$A91,1)-SEARCH(\">\",'CFR - XML import'!$A91,1)-2)))","v":0},{"$f":"IF(ISERROR(FIND(AQ$3,'CFR - XML import'!$A91)),0,VALUE(MID('CFR - XML import'!$A91,SEARCH(\">\",'CFR - XML import'!$A91,1)+1,SEARCH(\"/\",'CFR - XML import'!$A91,1)-SEARCH(\">\",'CFR - XML import'!$A91,1)-2)))","v":0},{"$f":"IF(ISERROR(FIND(AR$3,'CFR - XML import'!$A91)),0,VALUE(MID('CFR - XML import'!$A91,SEARCH(\">\",'CFR - XML import'!$A91,1)+1,SEARCH(\"/\",'CFR - XML import'!$A91,1)-SEARCH(\">\",'CFR - XML import'!$A91,1)-2)))","v":0},{"$f":"IF(ISERROR(FIND(AS$3,'CFR - XML import'!$A91)),0,VALUE(MID('CFR - XML import'!$A91,SEARCH(\">\",'CFR - XML import'!$A91,1)+1,SEARCH(\"/\",'CFR - XML import'!$A91,1)-SEARCH(\">\",'CFR - XML import'!$A91,1)-2)))","v":0},{"$f":"IF(ISERROR(FIND(AT$3,'CFR - XML import'!$A91)),0,VALUE(MID('CFR - XML import'!$A91,SEARCH(\">\",'CFR - XML import'!$A91,1)+1,SEARCH(\"/\",'CFR - XML import'!$A91,1)-SEARCH(\">\",'CFR - XML import'!$A91,1)-2)))","v":0},{"$f":"IF(ISERROR(FIND(AU$3,'CFR - XML import'!$A91)),0,VALUE(MID('CFR - XML import'!$A91,SEARCH(\">\",'CFR - XML import'!$A91,1)+1,SEARCH(\"/\",'CFR - XML import'!$A91,1)-SEARCH(\">\",'CFR - XML import'!$A91,1)-2)))","v":0},{"$f":"IF(ISERROR(FIND(AV$3,'CFR - XML import'!$A91)),0,VALUE(MID('CFR - XML import'!$A91,SEARCH(\">\",'CFR - XML import'!$A91,1)+1,SEARCH(\"/\",'CFR - XML import'!$A91,1)-SEARCH(\">\",'CFR - XML import'!$A91,1)-2)))","v":0},{"$f":"IF(ISERROR(FIND(AW$3,'CFR - XML import'!$A91)),0,VALUE(MID('CFR - XML import'!$A91,SEARCH(\">\",'CFR - XML import'!$A91,1)+1,SEARCH(\"/\",'CFR - XML import'!$A91,1)-SEARCH(\">\",'CFR - XML import'!$A91,1)-2)))","v":0},{"$f":"IF(ISERROR(FIND(AX$3,'CFR - XML import'!$A91)),0,VALUE(MID('CFR - XML import'!$A91,SEARCH(\">\",'CFR - XML import'!$A91,1)+1,SEARCH(\"/\",'CFR - XML import'!$A91,1)-SEARCH(\">\",'CFR - XML import'!$A91,1)-2)))","v":0},{"$f":"IF(ISERROR(FIND(AY$3,'CFR - XML import'!$A91)),0,VALUE(MID('CFR - XML import'!$A91,SEARCH(\">\",'CFR - XML import'!$A91,1)+1,SEARCH(\"/\",'CFR - XML import'!$A91,1)-SEARCH(\">\",'CFR - XML import'!$A91,1)-2)))","v":0},{"$f":"IF(ISERROR(FIND(AZ$3,'CFR - XML import'!$A91)),0,VALUE(MID('CFR - XML import'!$A91,SEARCH(\">\",'CFR - XML import'!$A91,1)+1,SEARCH(\"/\",'CFR - XML import'!$A91,1)-SEARCH(\">\",'CFR - XML import'!$A91,1)-2)))","v":0},{"$f":"IF(ISERROR(FIND(BA$3,'CFR - XML import'!$A91)),0,VALUE(MID('CFR - XML import'!$A91,SEARCH(\">\",'CFR - XML import'!$A91,1)+1,SEARCH(\"/\",'CFR - XML import'!$A91,1)-SEARCH(\">\",'CFR - XML import'!$A91,1)-2)))","v":0},{"$f":"IF(ISERROR(FIND(BB$3,'CFR - XML import'!$A91)),0,VALUE(MID('CFR - XML import'!$A91,SEARCH(\">\",'CFR - XML import'!$A91,1)+1,SEARCH(\"/\",'CFR - XML import'!$A91,1)-SEARCH(\">\",'CFR - XML import'!$A91,1)-2)))","v":0},{"$f":"IF(ISERROR(FIND(BC$3,'CFR - XML import'!$A91)),0,VALUE(MID('CFR - XML import'!$A91,SEARCH(\">\",'CFR - XML import'!$A91,1)+1,SEARCH(\"/\",'CFR - XML import'!$A91,1)-SEARCH(\">\",'CFR - XML import'!$A91,1)-2)))","v":0},{"$f":"IF(ISERROR(FIND(BD$3,'CFR - XML import'!$A91)),0,VALUE(MID('CFR - XML import'!$A91,SEARCH(\">\",'CFR - XML import'!$A91,1)+1,SEARCH(\"/\",'CFR - XML import'!$A91,1)-SEARCH(\">\",'CFR - XML import'!$A91,1)-2)))","v":0},{"$f":"IF(ISERROR(FIND(BE$3,'CFR - XML import'!$A91)),0,VALUE(MID('CFR - XML import'!$A91,SEARCH(\">\",'CFR - XML import'!$A91,1)+1,SEARCH(\"/\",'CFR - XML import'!$A91,1)-SEARCH(\">\",'CFR - XML import'!$A91,1)-2)))","v":0},{"$f":"IF(ISERROR(FIND(BF$3,'CFR - XML import'!$A91)),0,VALUE(MID('CFR - XML import'!$A91,SEARCH(\">\",'CFR - XML import'!$A91,1)+1,SEARCH(\"/\",'CFR - XML import'!$A91,1)-SEARCH(\">\",'CFR - XML import'!$A91,1)-2)))","v":0},{"$f":"IF(ISERROR(FIND(BG$3,'CFR - XML import'!$A91)),0,VALUE(MID('CFR - XML import'!$A91,SEARCH(\">\",'CFR - XML import'!$A91,1)+1,SEARCH(\"/\",'CFR - XML import'!$A91,1)-SEARCH(\">\",'CFR - XML import'!$A91,1)-2)))","v":0},{"$f":"IF(ISERROR(FIND(BH$3,'CFR - XML import'!$A91)),0,VALUE(MID('CFR - XML import'!$A91,SEARCH(\">\",'CFR - XML import'!$A91,1)+1,SEARCH(\"/\",'CFR - XML import'!$A91,1)-SEARCH(\">\",'CFR - XML import'!$A91,1)-2)))","v":0},{"$f":"IF(ISERROR(FIND(BI$3,'CFR - XML import'!$A91)),0,VALUE(MID('CFR - XML import'!$A91,SEARCH(\">\",'CFR - XML import'!$A91,1)+1,SEARCH(\"/\",'CFR - XML import'!$A91,1)-SEARCH(\">\",'CFR - XML import'!$A91,1)-2)))","v":0},{"$f":"IF(ISERROR(FIND(BJ$3,'CFR - XML import'!$A91)),0,VALUE(MID('CFR - XML import'!$A91,SEARCH(\">\",'CFR - XML import'!$A91,1)+1,SEARCH(\"/\",'CFR - XML import'!$A91,1)-SEARCH(\">\",'CFR - XML import'!$A91,1)-2)))","v":0},{"$f":"IF(ISERROR(FIND(BK$3,'CFR - XML import'!$A91)),0,VALUE(MID('CFR - XML import'!$A91,SEARCH(\">\",'CFR - XML import'!$A91,1)+1,SEARCH(\"/\",'CFR - XML import'!$A91,1)-SEARCH(\">\",'CFR - XML import'!$A91,1)-2)))","v":0},{"$f":"IF(ISERROR(FIND(BL$3,'CFR - XML import'!$A91)),0,VALUE(MID('CFR - XML import'!$A91,SEARCH(\">\",'CFR - XML import'!$A91,1)+1,SEARCH(\"/\",'CFR - XML import'!$A91,1)-SEARCH(\">\",'CFR - XML import'!$A91,1)-2)))","v":0},{"$f":"IF(ISERROR(FIND(BM$3,'CFR - XML import'!$A91)),0,VALUE(MID('CFR - XML import'!$A91,SEARCH(\">\",'CFR - XML import'!$A91,1)+1,SEARCH(\"/\",'CFR - XML import'!$A91,1)-SEARCH(\">\",'CFR - XML import'!$A91,1)-2)))","v":0},{"$f":"IF(ISERROR(FIND(BN$3,'CFR - XML import'!$A91)),0,VALUE(MID('CFR - XML import'!$A91,SEARCH(\">\",'CFR - XML import'!$A91,1)+1,SEARCH(\"/\",'CFR - XML import'!$A91,1)-SEARCH(\">\",'CFR - XML import'!$A91,1)-2)))","v":0},{"$f":"IF(ISERROR(FIND(BO$3,'CFR - XML import'!$A91)),0,VALUE(MID('CFR - XML import'!$A91,SEARCH(\">\",'CFR - XML import'!$A91,1)+1,SEARCH(\"/\",'CFR - XML import'!$A91,1)-SEARCH(\">\",'CFR - XML import'!$A91,1)-2)))","v":0},{"$f":"IF(ISERROR(FIND(BP$3,'CFR - XML import'!$A91)),0,VALUE(MID('CFR - XML import'!$A91,SEARCH(\">\",'CFR - XML import'!$A91,1)+1,SEARCH(\"/\",'CFR - XML import'!$A91,1)-SEARCH(\">\",'CFR - XML import'!$A91,1)-2)))","v":0},{"$f":"IF(ISERROR(FIND(BQ$3,'CFR - XML import'!$A91)),0,VALUE(MID('CFR - XML import'!$A91,SEARCH(\">\",'CFR - XML import'!$A91,1)+1,SEARCH(\"/\",'CFR - XML import'!$A91,1)-SEARCH(\">\",'CFR - XML import'!$A91,1)-2)))","v":0},{"$f":"IF(ISERROR(FIND(BR$3,'CFR - XML import'!$A91)),0,VALUE(MID('CFR - XML import'!$A91,SEARCH(\">\",'CFR - XML import'!$A91,1)+1,SEARCH(\"/\",'CFR - XML import'!$A91,1)-SEARCH(\">\",'CFR - XML import'!$A91,1)-2)))","v":0},{"$f":"IF(ISERROR(FIND(BS$3,'CFR - XML import'!$A91)),0,VALUE(MID('CFR - XML import'!$A91,SEARCH(\">\",'CFR - XML import'!$A91,1)+1,SEARCH(\"/\",'CFR - XML import'!$A91,1)-SEARCH(\">\",'CFR - XML import'!$A91,1)-2)))","v":0},{"$f":"IF(ISERROR(FIND(BT$3,'CFR - XML import'!$A91)),0,VALUE(MID('CFR - XML import'!$A91,SEARCH(\">\",'CFR - XML import'!$A91,1)+1,SEARCH(\"/\",'CFR - XML import'!$A91,1)-SEARCH(\">\",'CFR - XML import'!$A91,1)-2)))","v":0},{"$f":"IF(ISERROR(FIND(BU$3,'CFR - XML import'!$A91)),0,VALUE(MID('CFR - XML import'!$A91,SEARCH(\">\",'CFR - XML import'!$A91,1)+1,SEARCH(\"/\",'CFR - XML import'!$A91,1)-SEARCH(\">\",'CFR - XML import'!$A91,1)-2)))","v":0},{"$f":"IF(ISERROR(FIND(BV$3,'CFR - XML import'!$A91)),0,VALUE(MID('CFR - XML import'!$A91,SEARCH(\">\",'CFR - XML import'!$A91,1)+1,SEARCH(\"/\",'CFR - XML import'!$A91,1)-SEARCH(\">\",'CFR - XML import'!$A91,1)-2)))","v":0},{"$f":"IF(ISERROR(FIND(BW$3,'CFR - XML import'!$A91)),0,VALUE(MID('CFR - XML import'!$A91,SEARCH(\">\",'CFR - XML import'!$A91,1)+1,SEARCH(\"/\",'CFR - XML import'!$A91,1)-SEARCH(\">\",'CFR - XML import'!$A91,1)-2)))","v":0},{"$f":"IF(ISERROR(FIND(BX$3,'CFR - XML import'!$A91)),0,VALUE(MID('CFR - XML import'!$A91,SEARCH(\">\",'CFR - XML import'!$A91,1)+1,SEARCH(\"/\",'CFR - XML import'!$A91,1)-SEARCH(\">\",'CFR - XML import'!$A91,1)-2)))","v":0},{"$f":"IF(ISERROR(FIND(BY$3,'CFR - XML import'!$A91)),0,VALUE(MID('CFR - XML import'!$A91,SEARCH(\">\",'CFR - XML import'!$A91,1)+1,SEARCH(\"/\",'CFR - XML import'!$A91,1)-SEARCH(\">\",'CFR - XML import'!$A91,1)-2)))","v":0},{"$f":"IF(ISERROR(FIND(BZ$3,'CFR - XML import'!$A91)),0,VALUE(MID('CFR - XML import'!$A91,SEARCH(\">\",'CFR - XML import'!$A91,1)+1,SEARCH(\"/\",'CFR - XML import'!$A91,1)-SEARCH(\">\",'CFR - XML import'!$A91,1)-2)))","v":0},null,null,null,null,null,null,{"$f":"IF(ISERROR(IF(MID('CFR - XML import'!$A91,LEN($CF$4)+1,LEN('CFR - XML import'!$A91)-(2*LEN($CF$4)+1))=\"RMMS\",1,IF(MID('CFR - XML import'!$A91,LEN(\"    <InputSystem>\")+1,LEN('CFR - XML import'!$A91)-(LEN(\"    <InputSystem>\")+LEN($CF$4)+1))=\"SIMS\",2,0))),0,IF(MID('CFR - XML import'!$A91,LEN($CF$4)+1,LEN('CFR - XML import'!$A91)-(2*LEN($CF$4)+1))=\"RMMS\",1,IF(MID('CFR - XML import'!$A91,LEN(\"    <InputSystem>\")+1,LEN('CFR - XML import'!$A91)-(LEN(\"    <InputSystem>\")+LEN($CF$4)+1))=\"SIMS\",2,0)))","v":0},{"$f":"IF(ISERROR(FIND(CH$3,'CFR - XML import'!$A91)),0,MID('CFR - XML import'!$A91,SEARCH(\">\",'CFR - XML import'!$A91,1)+1,SEARCH(\"/\",'CFR - XML import'!$A91,1)-SEARCH(\">\",'CFR - XML import'!$A91,1)-2))","v":0},{"$f":"IF(ISERROR(FIND(CI$3,'CFR - XML import'!$A91)),0,MID('CFR - XML import'!$A91,SEARCH(\">\",'CFR - XML import'!$A91,1)+1,SEARCH(\"/\",'CFR - XML import'!$A91,1)-SEARCH(\">\",'CFR - XML import'!$A91,1)-2))","v":0},{"$f":"IF(ISERROR(FIND(CJ$3,'CFR - XML import'!$A91)),0,MID('CFR - XML import'!$A91,SEARCH(\">\",'CFR - XML import'!$A91,1)+1,SEARCH(\"/\",'CFR - XML import'!$A91,1)-SEARCH(\">\",'CFR - XML import'!$A91,1)-2))","v":0},{"$f":"IF(ISERROR(FIND(CK$3,'CFR - XML import'!$A91)),0,MID('CFR - XML import'!$A91,SEARCH(\">\",'CFR - XML import'!$A91,1)+1,SEARCH(\"/\",'CFR - XML import'!$A91,1)-SEARCH(\">\",'CFR - XML import'!$A91,1)-2))","v":0},{"$f":"IF(ISERROR(FIND(CL$3,'CFR - XML import'!$A91)),0,MID('CFR - XML import'!$A91,SEARCH(\">\",'CFR - XML import'!$A91,1)+1,SEARCH(\"/\",'CFR - XML import'!$A91,1)-SEARCH(\">\",'CFR - XML import'!$A91,1)-2))","v":0}]
[{"$f":"IF(AND('CFR - XML import'!A92<>\"\",LEFT('CFR - XML import'!A92,1)<>\"<\",LEFT('CFR - XML import'!A92,3)<>\"  <\",LEFT('CFR - XML import'!A92,5)<>\"    <\",LEFT('CFR - XML import'!A92,7)<>\"      <\",LEFT('CFR - XML import'!A92,9)<>\"        <\",$B$1=\"SIMS\"),'CFR - XML import'!A92,IF(AND(LEFT('CFR - XML import'!A92,9)=\"<Details>\",$B$1=\"RM\"),'CFR - XML import'!A92,\"\"))","v":""},{"$f":"IF(ISERROR(FIND(B$3,'CFR - XML import'!$A92)),0,VALUE(MID('CFR - XML import'!$A92,SEARCH(\">\",'CFR - XML import'!$A92,1)+1,SEARCH(\"/\",'CFR - XML import'!$A92,1)-SEARCH(\">\",'CFR - XML import'!$A92,1)-2)))","v":0},null,{"$f":"IF(ISERROR(FIND(D$3,'CFR - XML import'!$A92)),0,MID('CFR - XML import'!$A92,SEARCH(\">\",'CFR - XML import'!$A92,1)+1,SEARCH(\"/\",'CFR - XML import'!$A92,1)-SEARCH(\">\",'CFR - XML import'!$A92,1)-2))","v":0},{"$f":"IF(ISERROR(FIND(E$3,'CFR - XML import'!$A92)),0,MID('CFR - XML import'!$A92,SEARCH(\">\",'CFR - XML import'!$A92,1)+1,SEARCH(\"/\",'CFR - XML import'!$A92,1)-SEARCH(\">\",'CFR - XML import'!$A92,1)-2))","v":0},{"$f":"IF($B$1=\"SIMS\",IF(ISERROR(FIND(F$3,'CFR - XML import'!$A92)),0,VALUE(MID('CFR - XML import'!$A92,15,10))),IF(ISERROR(FIND(F$3,'CFR - XML import'!$A92)),0,VALUE(MID('CFR - XML import'!$A92,11,10))))","v":"00:00:00"},{"$f":"IF(ISERROR(FIND(G$3,'CFR - XML import'!$A92)),0,VALUE(MID('CFR - XML import'!$A92,SEARCH(\">\",'CFR - XML import'!$A92,1)+1,SEARCH(\"/\",'CFR - XML import'!$A92,1)-SEARCH(\">\",'CFR - XML import'!$A92,1)-2)))","v":0},{"$f":"IF(ISERROR(FIND(H$3,'CFR - XML import'!$A92)),0,VALUE(MID('CFR - XML import'!$A92,SEARCH(\">\",'CFR - XML import'!$A92,1)+1,SEARCH(\"/\",'CFR - XML import'!$A92,1)-SEARCH(\">\",'CFR - XML import'!$A92,1)-2)))","v":0},{"$f":"IF(ISERROR(FIND(I$3,'CFR - XML import'!$A92)),0,VALUE(MID('CFR - XML import'!$A92,SEARCH(\">\",'CFR - XML import'!$A92,1)+1,SEARCH(\"/\",'CFR - XML import'!$A92,1)-SEARCH(\">\",'CFR - XML import'!$A92,1)-2)))","v":0},{"$f":"IF(ISERROR(FIND(J$3,'CFR - XML import'!$A92)),0,VALUE(MID('CFR - XML import'!$A92,SEARCH(\">\",'CFR - XML import'!$A92,1)+1,SEARCH(\"/\",'CFR - XML import'!$A92,1)-SEARCH(\">\",'CFR - XML import'!$A92,1)-2)))","v":0},{"$f":"IF(ISERROR(FIND(K$3,'CFR - XML import'!$A92)),0,VALUE(MID('CFR - XML import'!$A92,SEARCH(\">\",'CFR - XML import'!$A92,1)+1,SEARCH(\"/\",'CFR - XML import'!$A92,1)-SEARCH(\">\",'CFR - XML import'!$A92,1)-2)))","v":0},{"$f":"IF(ISERROR(FIND(L$3,'CFR - XML import'!$A92)),0,VALUE(MID('CFR - XML import'!$A92,SEARCH(\">\",'CFR - XML import'!$A92,1)+1,SEARCH(\"/\",'CFR - XML import'!$A92,1)-SEARCH(\">\",'CFR - XML import'!$A92,1)-2)))","v":0},{"$f":"IF(ISERROR(FIND(M$3,'CFR - XML import'!$A92)),0,VALUE(MID('CFR - XML import'!$A92,SEARCH(\">\",'CFR - XML import'!$A92,1)+1,SEARCH(\"/\",'CFR - XML import'!$A92,1)-SEARCH(\">\",'CFR - XML import'!$A92,1)-2)))","v":0},{"$f":"IF(ISERROR(FIND(N$3,'CFR - XML import'!$A92)),0,VALUE(MID('CFR - XML import'!$A92,SEARCH(\">\",'CFR - XML import'!$A92,1)+1,SEARCH(\"/\",'CFR - XML import'!$A92,1)-SEARCH(\">\",'CFR - XML import'!$A92,1)-2)))","v":0},{"$f":"IF(ISERROR(FIND(O$3,'CFR - XML import'!$A92)),0,VALUE(MID('CFR - XML import'!$A92,SEARCH(\">\",'CFR - XML import'!$A92,1)+1,SEARCH(\"/\",'CFR - XML import'!$A92,1)-SEARCH(\">\",'CFR - XML import'!$A92,1)-2)))","v":0},{"$f":"IF(ISERROR(FIND(P$3,'CFR - XML import'!$A92)),0,VALUE(MID('CFR - XML import'!$A92,SEARCH(\">\",'CFR - XML import'!$A92,1)+1,SEARCH(\"/\",'CFR - XML import'!$A92,1)-SEARCH(\">\",'CFR - XML import'!$A92,1)-2)))","v":0},{"$f":"IF(ISERROR(FIND(Q$3,'CFR - XML import'!$A92)),0,VALUE(MID('CFR - XML import'!$A92,SEARCH(\">\",'CFR - XML import'!$A92,1)+1,SEARCH(\"/\",'CFR - XML import'!$A92,1)-SEARCH(\">\",'CFR - XML import'!$A92,1)-2)))","v":0},{"$f":"IF(ISERROR(FIND(R$3,'CFR - XML import'!$A92)),0,VALUE(MID('CFR - XML import'!$A92,SEARCH(\">\",'CFR - XML import'!$A92,1)+1,SEARCH(\"/\",'CFR - XML import'!$A92,1)-SEARCH(\">\",'CFR - XML import'!$A92,1)-2)))","v":0},{"$f":"IF(ISERROR(FIND(S$3,'CFR - XML import'!$A92)),0,VALUE(MID('CFR - XML import'!$A92,SEARCH(\">\",'CFR - XML import'!$A92,1)+1,SEARCH(\"/\",'CFR - XML import'!$A92,1)-SEARCH(\">\",'CFR - XML import'!$A92,1)-2)))","v":0},{"$f":"IF(ISERROR(FIND(T$3,'CFR - XML import'!$A92)),0,VALUE(MID('CFR - XML import'!$A92,SEARCH(\">\",'CFR - XML import'!$A92,1)+1,SEARCH(\"/\",'CFR - XML import'!$A92,1)-SEARCH(\">\",'CFR - XML import'!$A92,1)-2)))","v":0},{"$f":"IF(ISERROR(FIND(U$3,'CFR - XML import'!$A92)),0,VALUE(MID('CFR - XML import'!$A92,SEARCH(\">\",'CFR - XML import'!$A92,1)+1,SEARCH(\"/\",'CFR - XML import'!$A92,1)-SEARCH(\">\",'CFR - XML import'!$A92,1)-2)))","v":0},{"$f":"IF(ISERROR(FIND(V$3,'CFR - XML import'!$A92)),0,VALUE(MID('CFR - XML import'!$A92,SEARCH(\">\",'CFR - XML import'!$A92,1)+1,SEARCH(\"/\",'CFR - XML import'!$A92,1)-SEARCH(\">\",'CFR - XML import'!$A92,1)-2)))","v":0},{"$f":"IF(ISERROR(FIND(W$3,'CFR - XML import'!$A92)),0,VALUE(MID('CFR - XML import'!$A92,SEARCH(\">\",'CFR - XML import'!$A92,1)+1,SEARCH(\"/\",'CFR - XML import'!$A92,1)-SEARCH(\">\",'CFR - XML import'!$A92,1)-2)))","v":0},null,{"$f":"IF(ISERROR(FIND(Y$3,'CFR - XML import'!$A92)),0,VALUE(MID('CFR - XML import'!$A92,SEARCH(\">\",'CFR - XML import'!$A92,1)+1,SEARCH(\"/\",'CFR - XML import'!$A92,1)-SEARCH(\">\",'CFR - XML import'!$A92,1)-2)))","v":0},{"$f":"IF(ISERROR(FIND(Z$3,'CFR - XML import'!$A92)),0,VALUE(MID('CFR - XML import'!$A92,SEARCH(\">\",'CFR - XML import'!$A92,1)+1,SEARCH(\"/\",'CFR - XML import'!$A92,1)-SEARCH(\">\",'CFR - XML import'!$A92,1)-2)))","v":0},{"$f":"IF(ISERROR(FIND(AA$3,'CFR - XML import'!$A92)),0,VALUE(MID('CFR - XML import'!$A92,SEARCH(\">\",'CFR - XML import'!$A92,1)+1,SEARCH(\"/\",'CFR - XML import'!$A92,1)-SEARCH(\">\",'CFR - XML import'!$A92,1)-2)))","v":0},{"$f":"IF(ISERROR(FIND(AB$3,'CFR - XML import'!$A92)),0,VALUE(MID('CFR - XML import'!$A92,SEARCH(\">\",'CFR - XML import'!$A92,1)+1,SEARCH(\"/\",'CFR - XML import'!$A92,1)-SEARCH(\">\",'CFR - XML import'!$A92,1)-2)))","v":0},{"$f":"IF(ISERROR(FIND(AC$3,'CFR - XML import'!$A92)),0,VALUE(MID('CFR - XML import'!$A92,SEARCH(\">\",'CFR - XML import'!$A92,1)+1,SEARCH(\"/\",'CFR - XML import'!$A92,1)-SEARCH(\">\",'CFR - XML import'!$A92,1)-2)))","v":0},{"$f":"IF(ISERROR(FIND(AD$3,'CFR - XML import'!$A92)),0,VALUE(MID('CFR - XML import'!$A92,SEARCH(\">\",'CFR - XML import'!$A92,1)+1,SEARCH(\"/\",'CFR - XML import'!$A92,1)-SEARCH(\">\",'CFR - XML import'!$A92,1)-2)))","v":0},{"$f":"IF(ISERROR(FIND(AE$3,'CFR - XML import'!$A92)),0,VALUE(MID('CFR - XML import'!$A92,SEARCH(\">\",'CFR - XML import'!$A92,1)+1,SEARCH(\"/\",'CFR - XML import'!$A92,1)-SEARCH(\">\",'CFR - XML import'!$A92,1)-2)))","v":0},{"$f":"IF(ISERROR(FIND(AF$3,'CFR - XML import'!$A92)),0,VALUE(MID('CFR - XML import'!$A92,SEARCH(\">\",'CFR - XML import'!$A92,1)+1,SEARCH(\"/\",'CFR - XML import'!$A92,1)-SEARCH(\">\",'CFR - XML import'!$A92,1)-2)))","v":0},{"$f":"IF(ISERROR(FIND(AG$3,'CFR - XML import'!$A92)),0,VALUE(MID('CFR - XML import'!$A92,SEARCH(\">\",'CFR - XML import'!$A92,1)+1,SEARCH(\"/\",'CFR - XML import'!$A92,1)-SEARCH(\">\",'CFR - XML import'!$A92,1)-2)))","v":0},{"$f":"IF(ISERROR(FIND(AH$3,'CFR - XML import'!$A92)),0,VALUE(MID('CFR - XML import'!$A92,SEARCH(\">\",'CFR - XML import'!$A92,1)+1,SEARCH(\"/\",'CFR - XML import'!$A92,1)-SEARCH(\">\",'CFR - XML import'!$A92,1)-2)))","v":0},{"$f":"IF(ISERROR(FIND(AI$3,'CFR - XML import'!$A92)),0,VALUE(MID('CFR - XML import'!$A92,SEARCH(\">\",'CFR - XML import'!$A92,1)+1,SEARCH(\"/\",'CFR - XML import'!$A92,1)-SEARCH(\">\",'CFR - XML import'!$A92,1)-2)))","v":0},{"$f":"IF(ISERROR(FIND(AJ$3,'CFR - XML import'!$A92)),0,VALUE(MID('CFR - XML import'!$A92,SEARCH(\">\",'CFR - XML import'!$A92,1)+1,SEARCH(\"/\",'CFR - XML import'!$A92,1)-SEARCH(\">\",'CFR - XML import'!$A92,1)-2)))","v":0},{"$f":"IF(ISERROR(FIND(AK$3,'CFR - XML import'!$A92)),0,VALUE(MID('CFR - XML import'!$A92,SEARCH(\">\",'CFR - XML import'!$A92,1)+1,SEARCH(\"/\",'CFR - XML import'!$A92,1)-SEARCH(\">\",'CFR - XML import'!$A92,1)-2)))","v":0},{"$f":"IF(ISERROR(FIND(AL$3,'CFR - XML import'!$A92)),0,VALUE(MID('CFR - XML import'!$A92,SEARCH(\">\",'CFR - XML import'!$A92,1)+1,SEARCH(\"/\",'CFR - XML import'!$A92,1)-SEARCH(\">\",'CFR - XML import'!$A92,1)-2)))","v":0},{"$f":"IF(ISERROR(FIND(AM$3,'CFR - XML import'!$A92)),0,VALUE(MID('CFR - XML import'!$A92,SEARCH(\">\",'CFR - XML import'!$A92,1)+1,SEARCH(\"/\",'CFR - XML import'!$A92,1)-SEARCH(\">\",'CFR - XML import'!$A92,1)-2)))","v":0},{"$f":"IF(ISERROR(FIND(AN$3,'CFR - XML import'!$A92)),0,VALUE(MID('CFR - XML import'!$A92,SEARCH(\">\",'CFR - XML import'!$A92,1)+1,SEARCH(\"/\",'CFR - XML import'!$A92,1)-SEARCH(\">\",'CFR - XML import'!$A92,1)-2)))","v":0},{"$f":"IF(ISERROR(FIND(AO$3,'CFR - XML import'!$A92)),0,VALUE(MID('CFR - XML import'!$A92,SEARCH(\">\",'CFR - XML import'!$A92,1)+1,SEARCH(\"/\",'CFR - XML import'!$A92,1)-SEARCH(\">\",'CFR - XML import'!$A92,1)-2)))","v":0},{"$f":"IF(ISERROR(FIND(AP$3,'CFR - XML import'!$A92)),0,VALUE(MID('CFR - XML import'!$A92,SEARCH(\">\",'CFR - XML import'!$A92,1)+1,SEARCH(\"/\",'CFR - XML import'!$A92,1)-SEARCH(\">\",'CFR - XML import'!$A92,1)-2)))","v":0},{"$f":"IF(ISERROR(FIND(AQ$3,'CFR - XML import'!$A92)),0,VALUE(MID('CFR - XML import'!$A92,SEARCH(\">\",'CFR - XML import'!$A92,1)+1,SEARCH(\"/\",'CFR - XML import'!$A92,1)-SEARCH(\">\",'CFR - XML import'!$A92,1)-2)))","v":0},{"$f":"IF(ISERROR(FIND(AR$3,'CFR - XML import'!$A92)),0,VALUE(MID('CFR - XML import'!$A92,SEARCH(\">\",'CFR - XML import'!$A92,1)+1,SEARCH(\"/\",'CFR - XML import'!$A92,1)-SEARCH(\">\",'CFR - XML import'!$A92,1)-2)))","v":0},{"$f":"IF(ISERROR(FIND(AS$3,'CFR - XML import'!$A92)),0,VALUE(MID('CFR - XML import'!$A92,SEARCH(\">\",'CFR - XML import'!$A92,1)+1,SEARCH(\"/\",'CFR - XML import'!$A92,1)-SEARCH(\">\",'CFR - XML import'!$A92,1)-2)))","v":0},{"$f":"IF(ISERROR(FIND(AT$3,'CFR - XML import'!$A92)),0,VALUE(MID('CFR - XML import'!$A92,SEARCH(\">\",'CFR - XML import'!$A92,1)+1,SEARCH(\"/\",'CFR - XML import'!$A92,1)-SEARCH(\">\",'CFR - XML import'!$A92,1)-2)))","v":0},{"$f":"IF(ISERROR(FIND(AU$3,'CFR - XML import'!$A92)),0,VALUE(MID('CFR - XML import'!$A92,SEARCH(\">\",'CFR - XML import'!$A92,1)+1,SEARCH(\"/\",'CFR - XML import'!$A92,1)-SEARCH(\">\",'CFR - XML import'!$A92,1)-2)))","v":0},{"$f":"IF(ISERROR(FIND(AV$3,'CFR - XML import'!$A92)),0,VALUE(MID('CFR - XML import'!$A92,SEARCH(\">\",'CFR - XML import'!$A92,1)+1,SEARCH(\"/\",'CFR - XML import'!$A92,1)-SEARCH(\">\",'CFR - XML import'!$A92,1)-2)))","v":0},{"$f":"IF(ISERROR(FIND(AW$3,'CFR - XML import'!$A92)),0,VALUE(MID('CFR - XML import'!$A92,SEARCH(\">\",'CFR - XML import'!$A92,1)+1,SEARCH(\"/\",'CFR - XML import'!$A92,1)-SEARCH(\">\",'CFR - XML import'!$A92,1)-2)))","v":0},{"$f":"IF(ISERROR(FIND(AX$3,'CFR - XML import'!$A92)),0,VALUE(MID('CFR - XML import'!$A92,SEARCH(\">\",'CFR - XML import'!$A92,1)+1,SEARCH(\"/\",'CFR - XML import'!$A92,1)-SEARCH(\">\",'CFR - XML import'!$A92,1)-2)))","v":0},{"$f":"IF(ISERROR(FIND(AY$3,'CFR - XML import'!$A92)),0,VALUE(MID('CFR - XML import'!$A92,SEARCH(\">\",'CFR - XML import'!$A92,1)+1,SEARCH(\"/\",'CFR - XML import'!$A92,1)-SEARCH(\">\",'CFR - XML import'!$A92,1)-2)))","v":0},{"$f":"IF(ISERROR(FIND(AZ$3,'CFR - XML import'!$A92)),0,VALUE(MID('CFR - XML import'!$A92,SEARCH(\">\",'CFR - XML import'!$A92,1)+1,SEARCH(\"/\",'CFR - XML import'!$A92,1)-SEARCH(\">\",'CFR - XML import'!$A92,1)-2)))","v":0},{"$f":"IF(ISERROR(FIND(BA$3,'CFR - XML import'!$A92)),0,VALUE(MID('CFR - XML import'!$A92,SEARCH(\">\",'CFR - XML import'!$A92,1)+1,SEARCH(\"/\",'CFR - XML import'!$A92,1)-SEARCH(\">\",'CFR - XML import'!$A92,1)-2)))","v":0},{"$f":"IF(ISERROR(FIND(BB$3,'CFR - XML import'!$A92)),0,VALUE(MID('CFR - XML import'!$A92,SEARCH(\">\",'CFR - XML import'!$A92,1)+1,SEARCH(\"/\",'CFR - XML import'!$A92,1)-SEARCH(\">\",'CFR - XML import'!$A92,1)-2)))","v":0},{"$f":"IF(ISERROR(FIND(BC$3,'CFR - XML import'!$A92)),0,VALUE(MID('CFR - XML import'!$A92,SEARCH(\">\",'CFR - XML import'!$A92,1)+1,SEARCH(\"/\",'CFR - XML import'!$A92,1)-SEARCH(\">\",'CFR - XML import'!$A92,1)-2)))","v":0},{"$f":"IF(ISERROR(FIND(BD$3,'CFR - XML import'!$A92)),0,VALUE(MID('CFR - XML import'!$A92,SEARCH(\">\",'CFR - XML import'!$A92,1)+1,SEARCH(\"/\",'CFR - XML import'!$A92,1)-SEARCH(\">\",'CFR - XML import'!$A92,1)-2)))","v":0},{"$f":"IF(ISERROR(FIND(BE$3,'CFR - XML import'!$A92)),0,VALUE(MID('CFR - XML import'!$A92,SEARCH(\">\",'CFR - XML import'!$A92,1)+1,SEARCH(\"/\",'CFR - XML import'!$A92,1)-SEARCH(\">\",'CFR - XML import'!$A92,1)-2)))","v":0},{"$f":"IF(ISERROR(FIND(BF$3,'CFR - XML import'!$A92)),0,VALUE(MID('CFR - XML import'!$A92,SEARCH(\">\",'CFR - XML import'!$A92,1)+1,SEARCH(\"/\",'CFR - XML import'!$A92,1)-SEARCH(\">\",'CFR - XML import'!$A92,1)-2)))","v":0},{"$f":"IF(ISERROR(FIND(BG$3,'CFR - XML import'!$A92)),0,VALUE(MID('CFR - XML import'!$A92,SEARCH(\">\",'CFR - XML import'!$A92,1)+1,SEARCH(\"/\",'CFR - XML import'!$A92,1)-SEARCH(\">\",'CFR - XML import'!$A92,1)-2)))","v":0},{"$f":"IF(ISERROR(FIND(BH$3,'CFR - XML import'!$A92)),0,VALUE(MID('CFR - XML import'!$A92,SEARCH(\">\",'CFR - XML import'!$A92,1)+1,SEARCH(\"/\",'CFR - XML import'!$A92,1)-SEARCH(\">\",'CFR - XML import'!$A92,1)-2)))","v":0},{"$f":"IF(ISERROR(FIND(BI$3,'CFR - XML import'!$A92)),0,VALUE(MID('CFR - XML import'!$A92,SEARCH(\">\",'CFR - XML import'!$A92,1)+1,SEARCH(\"/\",'CFR - XML import'!$A92,1)-SEARCH(\">\",'CFR - XML import'!$A92,1)-2)))","v":0},{"$f":"IF(ISERROR(FIND(BJ$3,'CFR - XML import'!$A92)),0,VALUE(MID('CFR - XML import'!$A92,SEARCH(\">\",'CFR - XML import'!$A92,1)+1,SEARCH(\"/\",'CFR - XML import'!$A92,1)-SEARCH(\">\",'CFR - XML import'!$A92,1)-2)))","v":0},{"$f":"IF(ISERROR(FIND(BK$3,'CFR - XML import'!$A92)),0,VALUE(MID('CFR - XML import'!$A92,SEARCH(\">\",'CFR - XML import'!$A92,1)+1,SEARCH(\"/\",'CFR - XML import'!$A92,1)-SEARCH(\">\",'CFR - XML import'!$A92,1)-2)))","v":0},{"$f":"IF(ISERROR(FIND(BL$3,'CFR - XML import'!$A92)),0,VALUE(MID('CFR - XML import'!$A92,SEARCH(\">\",'CFR - XML import'!$A92,1)+1,SEARCH(\"/\",'CFR - XML import'!$A92,1)-SEARCH(\">\",'CFR - XML import'!$A92,1)-2)))","v":0},{"$f":"IF(ISERROR(FIND(BM$3,'CFR - XML import'!$A92)),0,VALUE(MID('CFR - XML import'!$A92,SEARCH(\">\",'CFR - XML import'!$A92,1)+1,SEARCH(\"/\",'CFR - XML import'!$A92,1)-SEARCH(\">\",'CFR - XML import'!$A92,1)-2)))","v":0},{"$f":"IF(ISERROR(FIND(BN$3,'CFR - XML import'!$A92)),0,VALUE(MID('CFR - XML import'!$A92,SEARCH(\">\",'CFR - XML import'!$A92,1)+1,SEARCH(\"/\",'CFR - XML import'!$A92,1)-SEARCH(\">\",'CFR - XML import'!$A92,1)-2)))","v":0},{"$f":"IF(ISERROR(FIND(BO$3,'CFR - XML import'!$A92)),0,VALUE(MID('CFR - XML import'!$A92,SEARCH(\">\",'CFR - XML import'!$A92,1)+1,SEARCH(\"/\",'CFR - XML import'!$A92,1)-SEARCH(\">\",'CFR - XML import'!$A92,1)-2)))","v":0},{"$f":"IF(ISERROR(FIND(BP$3,'CFR - XML import'!$A92)),0,VALUE(MID('CFR - XML import'!$A92,SEARCH(\">\",'CFR - XML import'!$A92,1)+1,SEARCH(\"/\",'CFR - XML import'!$A92,1)-SEARCH(\">\",'CFR - XML import'!$A92,1)-2)))","v":0},{"$f":"IF(ISERROR(FIND(BQ$3,'CFR - XML import'!$A92)),0,VALUE(MID('CFR - XML import'!$A92,SEARCH(\">\",'CFR - XML import'!$A92,1)+1,SEARCH(\"/\",'CFR - XML import'!$A92,1)-SEARCH(\">\",'CFR - XML import'!$A92,1)-2)))","v":0},{"$f":"IF(ISERROR(FIND(BR$3,'CFR - XML import'!$A92)),0,VALUE(MID('CFR - XML import'!$A92,SEARCH(\">\",'CFR - XML import'!$A92,1)+1,SEARCH(\"/\",'CFR - XML import'!$A92,1)-SEARCH(\">\",'CFR - XML import'!$A92,1)-2)))","v":0},{"$f":"IF(ISERROR(FIND(BS$3,'CFR - XML import'!$A92)),0,VALUE(MID('CFR - XML import'!$A92,SEARCH(\">\",'CFR - XML import'!$A92,1)+1,SEARCH(\"/\",'CFR - XML import'!$A92,1)-SEARCH(\">\",'CFR - XML import'!$A92,1)-2)))","v":0},{"$f":"IF(ISERROR(FIND(BT$3,'CFR - XML import'!$A92)),0,VALUE(MID('CFR - XML import'!$A92,SEARCH(\">\",'CFR - XML import'!$A92,1)+1,SEARCH(\"/\",'CFR - XML import'!$A92,1)-SEARCH(\">\",'CFR - XML import'!$A92,1)-2)))","v":0},{"$f":"IF(ISERROR(FIND(BU$3,'CFR - XML import'!$A92)),0,VALUE(MID('CFR - XML import'!$A92,SEARCH(\">\",'CFR - XML import'!$A92,1)+1,SEARCH(\"/\",'CFR - XML import'!$A92,1)-SEARCH(\">\",'CFR - XML import'!$A92,1)-2)))","v":0},{"$f":"IF(ISERROR(FIND(BV$3,'CFR - XML import'!$A92)),0,VALUE(MID('CFR - XML import'!$A92,SEARCH(\">\",'CFR - XML import'!$A92,1)+1,SEARCH(\"/\",'CFR - XML import'!$A92,1)-SEARCH(\">\",'CFR - XML import'!$A92,1)-2)))","v":0},{"$f":"IF(ISERROR(FIND(BW$3,'CFR - XML import'!$A92)),0,VALUE(MID('CFR - XML import'!$A92,SEARCH(\">\",'CFR - XML import'!$A92,1)+1,SEARCH(\"/\",'CFR - XML import'!$A92,1)-SEARCH(\">\",'CFR - XML import'!$A92,1)-2)))","v":0},{"$f":"IF(ISERROR(FIND(BX$3,'CFR - XML import'!$A92)),0,VALUE(MID('CFR - XML import'!$A92,SEARCH(\">\",'CFR - XML import'!$A92,1)+1,SEARCH(\"/\",'CFR - XML import'!$A92,1)-SEARCH(\">\",'CFR - XML import'!$A92,1)-2)))","v":0},{"$f":"IF(ISERROR(FIND(BY$3,'CFR - XML import'!$A92)),0,VALUE(MID('CFR - XML import'!$A92,SEARCH(\">\",'CFR - XML import'!$A92,1)+1,SEARCH(\"/\",'CFR - XML import'!$A92,1)-SEARCH(\">\",'CFR - XML import'!$A92,1)-2)))","v":0},{"$f":"IF(ISERROR(FIND(BZ$3,'CFR - XML import'!$A92)),0,VALUE(MID('CFR - XML import'!$A92,SEARCH(\">\",'CFR - XML import'!$A92,1)+1,SEARCH(\"/\",'CFR - XML import'!$A92,1)-SEARCH(\">\",'CFR - XML import'!$A92,1)-2)))","v":0},null,null,null,null,null,null,{"$f":"IF(ISERROR(IF(MID('CFR - XML import'!$A92,LEN($CF$4)+1,LEN('CFR - XML import'!$A92)-(2*LEN($CF$4)+1))=\"RMMS\",1,IF(MID('CFR - XML import'!$A92,LEN(\"    <InputSystem>\")+1,LEN('CFR - XML import'!$A92)-(LEN(\"    <InputSystem>\")+LEN($CF$4)+1))=\"SIMS\",2,0))),0,IF(MID('CFR - XML import'!$A92,LEN($CF$4)+1,LEN('CFR - XML import'!$A92)-(2*LEN($CF$4)+1))=\"RMMS\",1,IF(MID('CFR - XML import'!$A92,LEN(\"    <InputSystem>\")+1,LEN('CFR - XML import'!$A92)-(LEN(\"    <InputSystem>\")+LEN($CF$4)+1))=\"SIMS\",2,0)))","v":0},{"$f":"IF(ISERROR(FIND(CH$3,'CFR - XML import'!$A92)),0,MID('CFR - XML import'!$A92,SEARCH(\">\",'CFR - XML import'!$A92,1)+1,SEARCH(\"/\",'CFR - XML import'!$A92,1)-SEARCH(\">\",'CFR - XML import'!$A92,1)-2))","v":0},{"$f":"IF(ISERROR(FIND(CI$3,'CFR - XML import'!$A92)),0,MID('CFR - XML import'!$A92,SEARCH(\">\",'CFR - XML import'!$A92,1)+1,SEARCH(\"/\",'CFR - XML import'!$A92,1)-SEARCH(\">\",'CFR - XML import'!$A92,1)-2))","v":0},{"$f":"IF(ISERROR(FIND(CJ$3,'CFR - XML import'!$A92)),0,MID('CFR - XML import'!$A92,SEARCH(\">\",'CFR - XML import'!$A92,1)+1,SEARCH(\"/\",'CFR - XML import'!$A92,1)-SEARCH(\">\",'CFR - XML import'!$A92,1)-2))","v":0},{"$f":"IF(ISERROR(FIND(CK$3,'CFR - XML import'!$A92)),0,MID('CFR - XML import'!$A92,SEARCH(\">\",'CFR - XML import'!$A92,1)+1,SEARCH(\"/\",'CFR - XML import'!$A92,1)-SEARCH(\">\",'CFR - XML import'!$A92,1)-2))","v":0},{"$f":"IF(ISERROR(FIND(CL$3,'CFR - XML import'!$A92)),0,MID('CFR - XML import'!$A92,SEARCH(\">\",'CFR - XML import'!$A92,1)+1,SEARCH(\"/\",'CFR - XML import'!$A92,1)-SEARCH(\">\",'CFR - XML import'!$A92,1)-2))","v":0}]
[{"$f":"IF(AND('CFR - XML import'!A93<>\"\",LEFT('CFR - XML import'!A93,1)<>\"<\",LEFT('CFR - XML import'!A93,3)<>\"  <\",LEFT('CFR - XML import'!A93,5)<>\"    <\",LEFT('CFR - XML import'!A93,7)<>\"      <\",LEFT('CFR - XML import'!A93,9)<>\"        <\",$B$1=\"SIMS\"),'CFR - XML import'!A93,IF(AND(LEFT('CFR - XML import'!A93,9)=\"<Details>\",$B$1=\"RM\"),'CFR - XML import'!A93,\"\"))","v":""},{"$f":"IF(ISERROR(FIND(B$3,'CFR - XML import'!$A93)),0,VALUE(MID('CFR - XML import'!$A93,SEARCH(\">\",'CFR - XML import'!$A93,1)+1,SEARCH(\"/\",'CFR - XML import'!$A93,1)-SEARCH(\">\",'CFR - XML import'!$A93,1)-2)))","v":0},null,{"$f":"IF(ISERROR(FIND(D$3,'CFR - XML import'!$A93)),0,MID('CFR - XML import'!$A93,SEARCH(\">\",'CFR - XML import'!$A93,1)+1,SEARCH(\"/\",'CFR - XML import'!$A93,1)-SEARCH(\">\",'CFR - XML import'!$A93,1)-2))","v":0},{"$f":"IF(ISERROR(FIND(E$3,'CFR - XML import'!$A93)),0,MID('CFR - XML import'!$A93,SEARCH(\">\",'CFR - XML import'!$A93,1)+1,SEARCH(\"/\",'CFR - XML import'!$A93,1)-SEARCH(\">\",'CFR - XML import'!$A93,1)-2))","v":0},{"$f":"IF($B$1=\"SIMS\",IF(ISERROR(FIND(F$3,'CFR - XML import'!$A93)),0,VALUE(MID('CFR - XML import'!$A93,15,10))),IF(ISERROR(FIND(F$3,'CFR - XML import'!$A93)),0,VALUE(MID('CFR - XML import'!$A93,11,10))))","v":"00:00:00"},{"$f":"IF(ISERROR(FIND(G$3,'CFR - XML import'!$A93)),0,VALUE(MID('CFR - XML import'!$A93,SEARCH(\">\",'CFR - XML import'!$A93,1)+1,SEARCH(\"/\",'CFR - XML import'!$A93,1)-SEARCH(\">\",'CFR - XML import'!$A93,1)-2)))","v":0},{"$f":"IF(ISERROR(FIND(H$3,'CFR - XML import'!$A93)),0,VALUE(MID('CFR - XML import'!$A93,SEARCH(\">\",'CFR - XML import'!$A93,1)+1,SEARCH(\"/\",'CFR - XML import'!$A93,1)-SEARCH(\">\",'CFR - XML import'!$A93,1)-2)))","v":0},{"$f":"IF(ISERROR(FIND(I$3,'CFR - XML import'!$A93)),0,VALUE(MID('CFR - XML import'!$A93,SEARCH(\">\",'CFR - XML import'!$A93,1)+1,SEARCH(\"/\",'CFR - XML import'!$A93,1)-SEARCH(\">\",'CFR - XML import'!$A93,1)-2)))","v":0},{"$f":"IF(ISERROR(FIND(J$3,'CFR - XML import'!$A93)),0,VALUE(MID('CFR - XML import'!$A93,SEARCH(\">\",'CFR - XML import'!$A93,1)+1,SEARCH(\"/\",'CFR - XML import'!$A93,1)-SEARCH(\">\",'CFR - XML import'!$A93,1)-2)))","v":0},{"$f":"IF(ISERROR(FIND(K$3,'CFR - XML import'!$A93)),0,VALUE(MID('CFR - XML import'!$A93,SEARCH(\">\",'CFR - XML import'!$A93,1)+1,SEARCH(\"/\",'CFR - XML import'!$A93,1)-SEARCH(\">\",'CFR - XML import'!$A93,1)-2)))","v":0},{"$f":"IF(ISERROR(FIND(L$3,'CFR - XML import'!$A93)),0,VALUE(MID('CFR - XML import'!$A93,SEARCH(\">\",'CFR - XML import'!$A93,1)+1,SEARCH(\"/\",'CFR - XML import'!$A93,1)-SEARCH(\">\",'CFR - XML import'!$A93,1)-2)))","v":0},{"$f":"IF(ISERROR(FIND(M$3,'CFR - XML import'!$A93)),0,VALUE(MID('CFR - XML import'!$A93,SEARCH(\">\",'CFR - XML import'!$A93,1)+1,SEARCH(\"/\",'CFR - XML import'!$A93,1)-SEARCH(\">\",'CFR - XML import'!$A93,1)-2)))","v":0},{"$f":"IF(ISERROR(FIND(N$3,'CFR - XML import'!$A93)),0,VALUE(MID('CFR - XML import'!$A93,SEARCH(\">\",'CFR - XML import'!$A93,1)+1,SEARCH(\"/\",'CFR - XML import'!$A93,1)-SEARCH(\">\",'CFR - XML import'!$A93,1)-2)))","v":0},{"$f":"IF(ISERROR(FIND(O$3,'CFR - XML import'!$A93)),0,VALUE(MID('CFR - XML import'!$A93,SEARCH(\">\",'CFR - XML import'!$A93,1)+1,SEARCH(\"/\",'CFR - XML import'!$A93,1)-SEARCH(\">\",'CFR - XML import'!$A93,1)-2)))","v":0},{"$f":"IF(ISERROR(FIND(P$3,'CFR - XML import'!$A93)),0,VALUE(MID('CFR - XML import'!$A93,SEARCH(\">\",'CFR - XML import'!$A93,1)+1,SEARCH(\"/\",'CFR - XML import'!$A93,1)-SEARCH(\">\",'CFR - XML import'!$A93,1)-2)))","v":0},{"$f":"IF(ISERROR(FIND(Q$3,'CFR - XML import'!$A93)),0,VALUE(MID('CFR - XML import'!$A93,SEARCH(\">\",'CFR - XML import'!$A93,1)+1,SEARCH(\"/\",'CFR - XML import'!$A93,1)-SEARCH(\">\",'CFR - XML import'!$A93,1)-2)))","v":0},{"$f":"IF(ISERROR(FIND(R$3,'CFR - XML import'!$A93)),0,VALUE(MID('CFR - XML import'!$A93,SEARCH(\">\",'CFR - XML import'!$A93,1)+1,SEARCH(\"/\",'CFR - XML import'!$A93,1)-SEARCH(\">\",'CFR - XML import'!$A93,1)-2)))","v":0},{"$f":"IF(ISERROR(FIND(S$3,'CFR - XML import'!$A93)),0,VALUE(MID('CFR - XML import'!$A93,SEARCH(\">\",'CFR - XML import'!$A93,1)+1,SEARCH(\"/\",'CFR - XML import'!$A93,1)-SEARCH(\">\",'CFR - XML import'!$A93,1)-2)))","v":0},{"$f":"IF(ISERROR(FIND(T$3,'CFR - XML import'!$A93)),0,VALUE(MID('CFR - XML import'!$A93,SEARCH(\">\",'CFR - XML import'!$A93,1)+1,SEARCH(\"/\",'CFR - XML import'!$A93,1)-SEARCH(\">\",'CFR - XML import'!$A93,1)-2)))","v":0},{"$f":"IF(ISERROR(FIND(U$3,'CFR - XML import'!$A93)),0,VALUE(MID('CFR - XML import'!$A93,SEARCH(\">\",'CFR - XML import'!$A93,1)+1,SEARCH(\"/\",'CFR - XML import'!$A93,1)-SEARCH(\">\",'CFR - XML import'!$A93,1)-2)))","v":0},{"$f":"IF(ISERROR(FIND(V$3,'CFR - XML import'!$A93)),0,VALUE(MID('CFR - XML import'!$A93,SEARCH(\">\",'CFR - XML import'!$A93,1)+1,SEARCH(\"/\",'CFR - XML import'!$A93,1)-SEARCH(\">\",'CFR - XML import'!$A93,1)-2)))","v":0},{"$f":"IF(ISERROR(FIND(W$3,'CFR - XML import'!$A93)),0,VALUE(MID('CFR - XML import'!$A93,SEARCH(\">\",'CFR - XML import'!$A93,1)+1,SEARCH(\"/\",'CFR - XML import'!$A93,1)-SEARCH(\">\",'CFR - XML import'!$A93,1)-2)))","v":0},null,{"$f":"IF(ISERROR(FIND(Y$3,'CFR - XML import'!$A93)),0,VALUE(MID('CFR - XML import'!$A93,SEARCH(\">\",'CFR - XML import'!$A93,1)+1,SEARCH(\"/\",'CFR - XML import'!$A93,1)-SEARCH(\">\",'CFR - XML import'!$A93,1)-2)))","v":0},{"$f":"IF(ISERROR(FIND(Z$3,'CFR - XML import'!$A93)),0,VALUE(MID('CFR - XML import'!$A93,SEARCH(\">\",'CFR - XML import'!$A93,1)+1,SEARCH(\"/\",'CFR - XML import'!$A93,1)-SEARCH(\">\",'CFR - XML import'!$A93,1)-2)))","v":0},{"$f":"IF(ISERROR(FIND(AA$3,'CFR - XML import'!$A93)),0,VALUE(MID('CFR - XML import'!$A93,SEARCH(\">\",'CFR - XML import'!$A93,1)+1,SEARCH(\"/\",'CFR - XML import'!$A93,1)-SEARCH(\">\",'CFR - XML import'!$A93,1)-2)))","v":0},{"$f":"IF(ISERROR(FIND(AB$3,'CFR - XML import'!$A93)),0,VALUE(MID('CFR - XML import'!$A93,SEARCH(\">\",'CFR - XML import'!$A93,1)+1,SEARCH(\"/\",'CFR - XML import'!$A93,1)-SEARCH(\">\",'CFR - XML import'!$A93,1)-2)))","v":0},{"$f":"IF(ISERROR(FIND(AC$3,'CFR - XML import'!$A93)),0,VALUE(MID('CFR - XML import'!$A93,SEARCH(\">\",'CFR - XML import'!$A93,1)+1,SEARCH(\"/\",'CFR - XML import'!$A93,1)-SEARCH(\">\",'CFR - XML import'!$A93,1)-2)))","v":0},{"$f":"IF(ISERROR(FIND(AD$3,'CFR - XML import'!$A93)),0,VALUE(MID('CFR - XML import'!$A93,SEARCH(\">\",'CFR - XML import'!$A93,1)+1,SEARCH(\"/\",'CFR - XML import'!$A93,1)-SEARCH(\">\",'CFR - XML import'!$A93,1)-2)))","v":0},{"$f":"IF(ISERROR(FIND(AE$3,'CFR - XML import'!$A93)),0,VALUE(MID('CFR - XML import'!$A93,SEARCH(\">\",'CFR - XML import'!$A93,1)+1,SEARCH(\"/\",'CFR - XML import'!$A93,1)-SEARCH(\">\",'CFR - XML import'!$A93,1)-2)))","v":0},{"$f":"IF(ISERROR(FIND(AF$3,'CFR - XML import'!$A93)),0,VALUE(MID('CFR - XML import'!$A93,SEARCH(\">\",'CFR - XML import'!$A93,1)+1,SEARCH(\"/\",'CFR - XML import'!$A93,1)-SEARCH(\">\",'CFR - XML import'!$A93,1)-2)))","v":0},{"$f":"IF(ISERROR(FIND(AG$3,'CFR - XML import'!$A93)),0,VALUE(MID('CFR - XML import'!$A93,SEARCH(\">\",'CFR - XML import'!$A93,1)+1,SEARCH(\"/\",'CFR - XML import'!$A93,1)-SEARCH(\">\",'CFR - XML import'!$A93,1)-2)))","v":0},{"$f":"IF(ISERROR(FIND(AH$3,'CFR - XML import'!$A93)),0,VALUE(MID('CFR - XML import'!$A93,SEARCH(\">\",'CFR - XML import'!$A93,1)+1,SEARCH(\"/\",'CFR - XML import'!$A93,1)-SEARCH(\">\",'CFR - XML import'!$A93,1)-2)))","v":0},{"$f":"IF(ISERROR(FIND(AI$3,'CFR - XML import'!$A93)),0,VALUE(MID('CFR - XML import'!$A93,SEARCH(\">\",'CFR - XML import'!$A93,1)+1,SEARCH(\"/\",'CFR - XML import'!$A93,1)-SEARCH(\">\",'CFR - XML import'!$A93,1)-2)))","v":0},{"$f":"IF(ISERROR(FIND(AJ$3,'CFR - XML import'!$A93)),0,VALUE(MID('CFR - XML import'!$A93,SEARCH(\">\",'CFR - XML import'!$A93,1)+1,SEARCH(\"/\",'CFR - XML import'!$A93,1)-SEARCH(\">\",'CFR - XML import'!$A93,1)-2)))","v":0},{"$f":"IF(ISERROR(FIND(AK$3,'CFR - XML import'!$A93)),0,VALUE(MID('CFR - XML import'!$A93,SEARCH(\">\",'CFR - XML import'!$A93,1)+1,SEARCH(\"/\",'CFR - XML import'!$A93,1)-SEARCH(\">\",'CFR - XML import'!$A93,1)-2)))","v":0},{"$f":"IF(ISERROR(FIND(AL$3,'CFR - XML import'!$A93)),0,VALUE(MID('CFR - XML import'!$A93,SEARCH(\">\",'CFR - XML import'!$A93,1)+1,SEARCH(\"/\",'CFR - XML import'!$A93,1)-SEARCH(\">\",'CFR - XML import'!$A93,1)-2)))","v":0},{"$f":"IF(ISERROR(FIND(AM$3,'CFR - XML import'!$A93)),0,VALUE(MID('CFR - XML import'!$A93,SEARCH(\">\",'CFR - XML import'!$A93,1)+1,SEARCH(\"/\",'CFR - XML import'!$A93,1)-SEARCH(\">\",'CFR - XML import'!$A93,1)-2)))","v":0},{"$f":"IF(ISERROR(FIND(AN$3,'CFR - XML import'!$A93)),0,VALUE(MID('CFR - XML import'!$A93,SEARCH(\">\",'CFR - XML import'!$A93,1)+1,SEARCH(\"/\",'CFR - XML import'!$A93,1)-SEARCH(\">\",'CFR - XML import'!$A93,1)-2)))","v":0},{"$f":"IF(ISERROR(FIND(AO$3,'CFR - XML import'!$A93)),0,VALUE(MID('CFR - XML import'!$A93,SEARCH(\">\",'CFR - XML import'!$A93,1)+1,SEARCH(\"/\",'CFR - XML import'!$A93,1)-SEARCH(\">\",'CFR - XML import'!$A93,1)-2)))","v":0},{"$f":"IF(ISERROR(FIND(AP$3,'CFR - XML import'!$A93)),0,VALUE(MID('CFR - XML import'!$A93,SEARCH(\">\",'CFR - XML import'!$A93,1)+1,SEARCH(\"/\",'CFR - XML import'!$A93,1)-SEARCH(\">\",'CFR - XML import'!$A93,1)-2)))","v":0},{"$f":"IF(ISERROR(FIND(AQ$3,'CFR - XML import'!$A93)),0,VALUE(MID('CFR - XML import'!$A93,SEARCH(\">\",'CFR - XML import'!$A93,1)+1,SEARCH(\"/\",'CFR - XML import'!$A93,1)-SEARCH(\">\",'CFR - XML import'!$A93,1)-2)))","v":0},{"$f":"IF(ISERROR(FIND(AR$3,'CFR - XML import'!$A93)),0,VALUE(MID('CFR - XML import'!$A93,SEARCH(\">\",'CFR - XML import'!$A93,1)+1,SEARCH(\"/\",'CFR - XML import'!$A93,1)-SEARCH(\">\",'CFR - XML import'!$A93,1)-2)))","v":0},{"$f":"IF(ISERROR(FIND(AS$3,'CFR - XML import'!$A93)),0,VALUE(MID('CFR - XML import'!$A93,SEARCH(\">\",'CFR - XML import'!$A93,1)+1,SEARCH(\"/\",'CFR - XML import'!$A93,1)-SEARCH(\">\",'CFR - XML import'!$A93,1)-2)))","v":0},{"$f":"IF(ISERROR(FIND(AT$3,'CFR - XML import'!$A93)),0,VALUE(MID('CFR - XML import'!$A93,SEARCH(\">\",'CFR - XML import'!$A93,1)+1,SEARCH(\"/\",'CFR - XML import'!$A93,1)-SEARCH(\">\",'CFR - XML import'!$A93,1)-2)))","v":0},{"$f":"IF(ISERROR(FIND(AU$3,'CFR - XML import'!$A93)),0,VALUE(MID('CFR - XML import'!$A93,SEARCH(\">\",'CFR - XML import'!$A93,1)+1,SEARCH(\"/\",'CFR - XML import'!$A93,1)-SEARCH(\">\",'CFR - XML import'!$A93,1)-2)))","v":0},{"$f":"IF(ISERROR(FIND(AV$3,'CFR - XML import'!$A93)),0,VALUE(MID('CFR - XML import'!$A93,SEARCH(\">\",'CFR - XML import'!$A93,1)+1,SEARCH(\"/\",'CFR - XML import'!$A93,1)-SEARCH(\">\",'CFR - XML import'!$A93,1)-2)))","v":0},{"$f":"IF(ISERROR(FIND(AW$3,'CFR - XML import'!$A93)),0,VALUE(MID('CFR - XML import'!$A93,SEARCH(\">\",'CFR - XML import'!$A93,1)+1,SEARCH(\"/\",'CFR - XML import'!$A93,1)-SEARCH(\">\",'CFR - XML import'!$A93,1)-2)))","v":0},{"$f":"IF(ISERROR(FIND(AX$3,'CFR - XML import'!$A93)),0,VALUE(MID('CFR - XML import'!$A93,SEARCH(\">\",'CFR - XML import'!$A93,1)+1,SEARCH(\"/\",'CFR - XML import'!$A93,1)-SEARCH(\">\",'CFR - XML import'!$A93,1)-2)))","v":0},{"$f":"IF(ISERROR(FIND(AY$3,'CFR - XML import'!$A93)),0,VALUE(MID('CFR - XML import'!$A93,SEARCH(\">\",'CFR - XML import'!$A93,1)+1,SEARCH(\"/\",'CFR - XML import'!$A93,1)-SEARCH(\">\",'CFR - XML import'!$A93,1)-2)))","v":0},{"$f":"IF(ISERROR(FIND(AZ$3,'CFR - XML import'!$A93)),0,VALUE(MID('CFR - XML import'!$A93,SEARCH(\">\",'CFR - XML import'!$A93,1)+1,SEARCH(\"/\",'CFR - XML import'!$A93,1)-SEARCH(\">\",'CFR - XML import'!$A93,1)-2)))","v":0},{"$f":"IF(ISERROR(FIND(BA$3,'CFR - XML import'!$A93)),0,VALUE(MID('CFR - XML import'!$A93,SEARCH(\">\",'CFR - XML import'!$A93,1)+1,SEARCH(\"/\",'CFR - XML import'!$A93,1)-SEARCH(\">\",'CFR - XML import'!$A93,1)-2)))","v":0},{"$f":"IF(ISERROR(FIND(BB$3,'CFR - XML import'!$A93)),0,VALUE(MID('CFR - XML import'!$A93,SEARCH(\">\",'CFR - XML import'!$A93,1)+1,SEARCH(\"/\",'CFR - XML import'!$A93,1)-SEARCH(\">\",'CFR - XML import'!$A93,1)-2)))","v":0},{"$f":"IF(ISERROR(FIND(BC$3,'CFR - XML import'!$A93)),0,VALUE(MID('CFR - XML import'!$A93,SEARCH(\">\",'CFR - XML import'!$A93,1)+1,SEARCH(\"/\",'CFR - XML import'!$A93,1)-SEARCH(\">\",'CFR - XML import'!$A93,1)-2)))","v":0},{"$f":"IF(ISERROR(FIND(BD$3,'CFR - XML import'!$A93)),0,VALUE(MID('CFR - XML import'!$A93,SEARCH(\">\",'CFR - XML import'!$A93,1)+1,SEARCH(\"/\",'CFR - XML import'!$A93,1)-SEARCH(\">\",'CFR - XML import'!$A93,1)-2)))","v":0},{"$f":"IF(ISERROR(FIND(BE$3,'CFR - XML import'!$A93)),0,VALUE(MID('CFR - XML import'!$A93,SEARCH(\">\",'CFR - XML import'!$A93,1)+1,SEARCH(\"/\",'CFR - XML import'!$A93,1)-SEARCH(\">\",'CFR - XML import'!$A93,1)-2)))","v":0},{"$f":"IF(ISERROR(FIND(BF$3,'CFR - XML import'!$A93)),0,VALUE(MID('CFR - XML import'!$A93,SEARCH(\">\",'CFR - XML import'!$A93,1)+1,SEARCH(\"/\",'CFR - XML import'!$A93,1)-SEARCH(\">\",'CFR - XML import'!$A93,1)-2)))","v":0},{"$f":"IF(ISERROR(FIND(BG$3,'CFR - XML import'!$A93)),0,VALUE(MID('CFR - XML import'!$A93,SEARCH(\">\",'CFR - XML import'!$A93,1)+1,SEARCH(\"/\",'CFR - XML import'!$A93,1)-SEARCH(\">\",'CFR - XML import'!$A93,1)-2)))","v":0},{"$f":"IF(ISERROR(FIND(BH$3,'CFR - XML import'!$A93)),0,VALUE(MID('CFR - XML import'!$A93,SEARCH(\">\",'CFR - XML import'!$A93,1)+1,SEARCH(\"/\",'CFR - XML import'!$A93,1)-SEARCH(\">\",'CFR - XML import'!$A93,1)-2)))","v":0},{"$f":"IF(ISERROR(FIND(BI$3,'CFR - XML import'!$A93)),0,VALUE(MID('CFR - XML import'!$A93,SEARCH(\">\",'CFR - XML import'!$A93,1)+1,SEARCH(\"/\",'CFR - XML import'!$A93,1)-SEARCH(\">\",'CFR - XML import'!$A93,1)-2)))","v":0},{"$f":"IF(ISERROR(FIND(BJ$3,'CFR - XML import'!$A93)),0,VALUE(MID('CFR - XML import'!$A93,SEARCH(\">\",'CFR - XML import'!$A93,1)+1,SEARCH(\"/\",'CFR - XML import'!$A93,1)-SEARCH(\">\",'CFR - XML import'!$A93,1)-2)))","v":0},{"$f":"IF(ISERROR(FIND(BK$3,'CFR - XML import'!$A93)),0,VALUE(MID('CFR - XML import'!$A93,SEARCH(\">\",'CFR - XML import'!$A93,1)+1,SEARCH(\"/\",'CFR - XML import'!$A93,1)-SEARCH(\">\",'CFR - XML import'!$A93,1)-2)))","v":0},{"$f":"IF(ISERROR(FIND(BL$3,'CFR - XML import'!$A93)),0,VALUE(MID('CFR - XML import'!$A93,SEARCH(\">\",'CFR - XML import'!$A93,1)+1,SEARCH(\"/\",'CFR - XML import'!$A93,1)-SEARCH(\">\",'CFR - XML import'!$A93,1)-2)))","v":0},{"$f":"IF(ISERROR(FIND(BM$3,'CFR - XML import'!$A93)),0,VALUE(MID('CFR - XML import'!$A93,SEARCH(\">\",'CFR - XML import'!$A93,1)+1,SEARCH(\"/\",'CFR - XML import'!$A93,1)-SEARCH(\">\",'CFR - XML import'!$A93,1)-2)))","v":0},{"$f":"IF(ISERROR(FIND(BN$3,'CFR - XML import'!$A93)),0,VALUE(MID('CFR - XML import'!$A93,SEARCH(\">\",'CFR - XML import'!$A93,1)+1,SEARCH(\"/\",'CFR - XML import'!$A93,1)-SEARCH(\">\",'CFR - XML import'!$A93,1)-2)))","v":0},{"$f":"IF(ISERROR(FIND(BO$3,'CFR - XML import'!$A93)),0,VALUE(MID('CFR - XML import'!$A93,SEARCH(\">\",'CFR - XML import'!$A93,1)+1,SEARCH(\"/\",'CFR - XML import'!$A93,1)-SEARCH(\">\",'CFR - XML import'!$A93,1)-2)))","v":0},{"$f":"IF(ISERROR(FIND(BP$3,'CFR - XML import'!$A93)),0,VALUE(MID('CFR - XML import'!$A93,SEARCH(\">\",'CFR - XML import'!$A93,1)+1,SEARCH(\"/\",'CFR - XML import'!$A93,1)-SEARCH(\">\",'CFR - XML import'!$A93,1)-2)))","v":0},{"$f":"IF(ISERROR(FIND(BQ$3,'CFR - XML import'!$A93)),0,VALUE(MID('CFR - XML import'!$A93,SEARCH(\">\",'CFR - XML import'!$A93,1)+1,SEARCH(\"/\",'CFR - XML import'!$A93,1)-SEARCH(\">\",'CFR - XML import'!$A93,1)-2)))","v":0},{"$f":"IF(ISERROR(FIND(BR$3,'CFR - XML import'!$A93)),0,VALUE(MID('CFR - XML import'!$A93,SEARCH(\">\",'CFR - XML import'!$A93,1)+1,SEARCH(\"/\",'CFR - XML import'!$A93,1)-SEARCH(\">\",'CFR - XML import'!$A93,1)-2)))","v":0},{"$f":"IF(ISERROR(FIND(BS$3,'CFR - XML import'!$A93)),0,VALUE(MID('CFR - XML import'!$A93,SEARCH(\">\",'CFR - XML import'!$A93,1)+1,SEARCH(\"/\",'CFR - XML import'!$A93,1)-SEARCH(\">\",'CFR - XML import'!$A93,1)-2)))","v":0},{"$f":"IF(ISERROR(FIND(BT$3,'CFR - XML import'!$A93)),0,VALUE(MID('CFR - XML import'!$A93,SEARCH(\">\",'CFR - XML import'!$A93,1)+1,SEARCH(\"/\",'CFR - XML import'!$A93,1)-SEARCH(\">\",'CFR - XML import'!$A93,1)-2)))","v":0},{"$f":"IF(ISERROR(FIND(BU$3,'CFR - XML import'!$A93)),0,VALUE(MID('CFR - XML import'!$A93,SEARCH(\">\",'CFR - XML import'!$A93,1)+1,SEARCH(\"/\",'CFR - XML import'!$A93,1)-SEARCH(\">\",'CFR - XML import'!$A93,1)-2)))","v":0},{"$f":"IF(ISERROR(FIND(BV$3,'CFR - XML import'!$A93)),0,VALUE(MID('CFR - XML import'!$A93,SEARCH(\">\",'CFR - XML import'!$A93,1)+1,SEARCH(\"/\",'CFR - XML import'!$A93,1)-SEARCH(\">\",'CFR - XML import'!$A93,1)-2)))","v":0},{"$f":"IF(ISERROR(FIND(BW$3,'CFR - XML import'!$A93)),0,VALUE(MID('CFR - XML import'!$A93,SEARCH(\">\",'CFR - XML import'!$A93,1)+1,SEARCH(\"/\",'CFR - XML import'!$A93,1)-SEARCH(\">\",'CFR - XML import'!$A93,1)-2)))","v":0},{"$f":"IF(ISERROR(FIND(BX$3,'CFR - XML import'!$A93)),0,VALUE(MID('CFR - XML import'!$A93,SEARCH(\">\",'CFR - XML import'!$A93,1)+1,SEARCH(\"/\",'CFR - XML import'!$A93,1)-SEARCH(\">\",'CFR - XML import'!$A93,1)-2)))","v":0},{"$f":"IF(ISERROR(FIND(BY$3,'CFR - XML import'!$A93)),0,VALUE(MID('CFR - XML import'!$A93,SEARCH(\">\",'CFR - XML import'!$A93,1)+1,SEARCH(\"/\",'CFR - XML import'!$A93,1)-SEARCH(\">\",'CFR - XML import'!$A93,1)-2)))","v":0},{"$f":"IF(ISERROR(FIND(BZ$3,'CFR - XML import'!$A93)),0,VALUE(MID('CFR - XML import'!$A93,SEARCH(\">\",'CFR - XML import'!$A93,1)+1,SEARCH(\"/\",'CFR - XML import'!$A93,1)-SEARCH(\">\",'CFR - XML import'!$A93,1)-2)))","v":0},null,null,null,null,null,null,{"$f":"IF(ISERROR(IF(MID('CFR - XML import'!$A93,LEN($CF$4)+1,LEN('CFR - XML import'!$A93)-(2*LEN($CF$4)+1))=\"RMMS\",1,IF(MID('CFR - XML import'!$A93,LEN(\"    <InputSystem>\")+1,LEN('CFR - XML import'!$A93)-(LEN(\"    <InputSystem>\")+LEN($CF$4)+1))=\"SIMS\",2,0))),0,IF(MID('CFR - XML import'!$A93,LEN($CF$4)+1,LEN('CFR - XML import'!$A93)-(2*LEN($CF$4)+1))=\"RMMS\",1,IF(MID('CFR - XML import'!$A93,LEN(\"    <InputSystem>\")+1,LEN('CFR - XML import'!$A93)-(LEN(\"    <InputSystem>\")+LEN($CF$4)+1))=\"SIMS\",2,0)))","v":0},{"$f":"IF(ISERROR(FIND(CH$3,'CFR - XML import'!$A93)),0,MID('CFR - XML import'!$A93,SEARCH(\">\",'CFR - XML import'!$A93,1)+1,SEARCH(\"/\",'CFR - XML import'!$A93,1)-SEARCH(\">\",'CFR - XML import'!$A93,1)-2))","v":0},{"$f":"IF(ISERROR(FIND(CI$3,'CFR - XML import'!$A93)),0,MID('CFR - XML import'!$A93,SEARCH(\">\",'CFR - XML import'!$A93,1)+1,SEARCH(\"/\",'CFR - XML import'!$A93,1)-SEARCH(\">\",'CFR - XML import'!$A93,1)-2))","v":0},{"$f":"IF(ISERROR(FIND(CJ$3,'CFR - XML import'!$A93)),0,MID('CFR - XML import'!$A93,SEARCH(\">\",'CFR - XML import'!$A93,1)+1,SEARCH(\"/\",'CFR - XML import'!$A93,1)-SEARCH(\">\",'CFR - XML import'!$A93,1)-2))","v":0},{"$f":"IF(ISERROR(FIND(CK$3,'CFR - XML import'!$A93)),0,MID('CFR - XML import'!$A93,SEARCH(\">\",'CFR - XML import'!$A93,1)+1,SEARCH(\"/\",'CFR - XML import'!$A93,1)-SEARCH(\">\",'CFR - XML import'!$A93,1)-2))","v":0},{"$f":"IF(ISERROR(FIND(CL$3,'CFR - XML import'!$A93)),0,MID('CFR - XML import'!$A93,SEARCH(\">\",'CFR - XML import'!$A93,1)+1,SEARCH(\"/\",'CFR - XML import'!$A93,1)-SEARCH(\">\",'CFR - XML import'!$A93,1)-2))","v":0}]
[{"$f":"IF(AND('CFR - XML import'!A94<>\"\",LEFT('CFR - XML import'!A94,1)<>\"<\",LEFT('CFR - XML import'!A94,3)<>\"  <\",LEFT('CFR - XML import'!A94,5)<>\"    <\",LEFT('CFR - XML import'!A94,7)<>\"      <\",LEFT('CFR - XML import'!A94,9)<>\"        <\",$B$1=\"SIMS\"),'CFR - XML import'!A94,IF(AND(LEFT('CFR - XML import'!A94,9)=\"<Details>\",$B$1=\"RM\"),'CFR - XML import'!A94,\"\"))","v":""},{"$f":"IF(ISERROR(FIND(B$3,'CFR - XML import'!$A94)),0,VALUE(MID('CFR - XML import'!$A94,SEARCH(\">\",'CFR - XML import'!$A94,1)+1,SEARCH(\"/\",'CFR - XML import'!$A94,1)-SEARCH(\">\",'CFR - XML import'!$A94,1)-2)))","v":0},null,{"$f":"IF(ISERROR(FIND(D$3,'CFR - XML import'!$A94)),0,MID('CFR - XML import'!$A94,SEARCH(\">\",'CFR - XML import'!$A94,1)+1,SEARCH(\"/\",'CFR - XML import'!$A94,1)-SEARCH(\">\",'CFR - XML import'!$A94,1)-2))","v":0},{"$f":"IF(ISERROR(FIND(E$3,'CFR - XML import'!$A94)),0,MID('CFR - XML import'!$A94,SEARCH(\">\",'CFR - XML import'!$A94,1)+1,SEARCH(\"/\",'CFR - XML import'!$A94,1)-SEARCH(\">\",'CFR - XML import'!$A94,1)-2))","v":0},{"$f":"IF($B$1=\"SIMS\",IF(ISERROR(FIND(F$3,'CFR - XML import'!$A94)),0,VALUE(MID('CFR - XML import'!$A94,15,10))),IF(ISERROR(FIND(F$3,'CFR - XML import'!$A94)),0,VALUE(MID('CFR - XML import'!$A94,11,10))))","v":"00:00:00"},{"$f":"IF(ISERROR(FIND(G$3,'CFR - XML import'!$A94)),0,VALUE(MID('CFR - XML import'!$A94,SEARCH(\">\",'CFR - XML import'!$A94,1)+1,SEARCH(\"/\",'CFR - XML import'!$A94,1)-SEARCH(\">\",'CFR - XML import'!$A94,1)-2)))","v":0},{"$f":"IF(ISERROR(FIND(H$3,'CFR - XML import'!$A94)),0,VALUE(MID('CFR - XML import'!$A94,SEARCH(\">\",'CFR - XML import'!$A94,1)+1,SEARCH(\"/\",'CFR - XML import'!$A94,1)-SEARCH(\">\",'CFR - XML import'!$A94,1)-2)))","v":0},{"$f":"IF(ISERROR(FIND(I$3,'CFR - XML import'!$A94)),0,VALUE(MID('CFR - XML import'!$A94,SEARCH(\">\",'CFR - XML import'!$A94,1)+1,SEARCH(\"/\",'CFR - XML import'!$A94,1)-SEARCH(\">\",'CFR - XML import'!$A94,1)-2)))","v":0},{"$f":"IF(ISERROR(FIND(J$3,'CFR - XML import'!$A94)),0,VALUE(MID('CFR - XML import'!$A94,SEARCH(\">\",'CFR - XML import'!$A94,1)+1,SEARCH(\"/\",'CFR - XML import'!$A94,1)-SEARCH(\">\",'CFR - XML import'!$A94,1)-2)))","v":0},{"$f":"IF(ISERROR(FIND(K$3,'CFR - XML import'!$A94)),0,VALUE(MID('CFR - XML import'!$A94,SEARCH(\">\",'CFR - XML import'!$A94,1)+1,SEARCH(\"/\",'CFR - XML import'!$A94,1)-SEARCH(\">\",'CFR - XML import'!$A94,1)-2)))","v":0},{"$f":"IF(ISERROR(FIND(L$3,'CFR - XML import'!$A94)),0,VALUE(MID('CFR - XML import'!$A94,SEARCH(\">\",'CFR - XML import'!$A94,1)+1,SEARCH(\"/\",'CFR - XML import'!$A94,1)-SEARCH(\">\",'CFR - XML import'!$A94,1)-2)))","v":0},{"$f":"IF(ISERROR(FIND(M$3,'CFR - XML import'!$A94)),0,VALUE(MID('CFR - XML import'!$A94,SEARCH(\">\",'CFR - XML import'!$A94,1)+1,SEARCH(\"/\",'CFR - XML import'!$A94,1)-SEARCH(\">\",'CFR - XML import'!$A94,1)-2)))","v":0},{"$f":"IF(ISERROR(FIND(N$3,'CFR - XML import'!$A94)),0,VALUE(MID('CFR - XML import'!$A94,SEARCH(\">\",'CFR - XML import'!$A94,1)+1,SEARCH(\"/\",'CFR - XML import'!$A94,1)-SEARCH(\">\",'CFR - XML import'!$A94,1)-2)))","v":0},{"$f":"IF(ISERROR(FIND(O$3,'CFR - XML import'!$A94)),0,VALUE(MID('CFR - XML import'!$A94,SEARCH(\">\",'CFR - XML import'!$A94,1)+1,SEARCH(\"/\",'CFR - XML import'!$A94,1)-SEARCH(\">\",'CFR - XML import'!$A94,1)-2)))","v":0},{"$f":"IF(ISERROR(FIND(P$3,'CFR - XML import'!$A94)),0,VALUE(MID('CFR - XML import'!$A94,SEARCH(\">\",'CFR - XML import'!$A94,1)+1,SEARCH(\"/\",'CFR - XML import'!$A94,1)-SEARCH(\">\",'CFR - XML import'!$A94,1)-2)))","v":0},{"$f":"IF(ISERROR(FIND(Q$3,'CFR - XML import'!$A94)),0,VALUE(MID('CFR - XML import'!$A94,SEARCH(\">\",'CFR - XML import'!$A94,1)+1,SEARCH(\"/\",'CFR - XML import'!$A94,1)-SEARCH(\">\",'CFR - XML import'!$A94,1)-2)))","v":0},{"$f":"IF(ISERROR(FIND(R$3,'CFR - XML import'!$A94)),0,VALUE(MID('CFR - XML import'!$A94,SEARCH(\">\",'CFR - XML import'!$A94,1)+1,SEARCH(\"/\",'CFR - XML import'!$A94,1)-SEARCH(\">\",'CFR - XML import'!$A94,1)-2)))","v":0},{"$f":"IF(ISERROR(FIND(S$3,'CFR - XML import'!$A94)),0,VALUE(MID('CFR - XML import'!$A94,SEARCH(\">\",'CFR - XML import'!$A94,1)+1,SEARCH(\"/\",'CFR - XML import'!$A94,1)-SEARCH(\">\",'CFR - XML import'!$A94,1)-2)))","v":0},{"$f":"IF(ISERROR(FIND(T$3,'CFR - XML import'!$A94)),0,VALUE(MID('CFR - XML import'!$A94,SEARCH(\">\",'CFR - XML import'!$A94,1)+1,SEARCH(\"/\",'CFR - XML import'!$A94,1)-SEARCH(\">\",'CFR - XML import'!$A94,1)-2)))","v":0},{"$f":"IF(ISERROR(FIND(U$3,'CFR - XML import'!$A94)),0,VALUE(MID('CFR - XML import'!$A94,SEARCH(\">\",'CFR - XML import'!$A94,1)+1,SEARCH(\"/\",'CFR - XML import'!$A94,1)-SEARCH(\">\",'CFR - XML import'!$A94,1)-2)))","v":0},{"$f":"IF(ISERROR(FIND(V$3,'CFR - XML import'!$A94)),0,VALUE(MID('CFR - XML import'!$A94,SEARCH(\">\",'CFR - XML import'!$A94,1)+1,SEARCH(\"/\",'CFR - XML import'!$A94,1)-SEARCH(\">\",'CFR - XML import'!$A94,1)-2)))","v":0},{"$f":"IF(ISERROR(FIND(W$3,'CFR - XML import'!$A94)),0,VALUE(MID('CFR - XML import'!$A94,SEARCH(\">\",'CFR - XML import'!$A94,1)+1,SEARCH(\"/\",'CFR - XML import'!$A94,1)-SEARCH(\">\",'CFR - XML import'!$A94,1)-2)))","v":0},null,{"$f":"IF(ISERROR(FIND(Y$3,'CFR - XML import'!$A94)),0,VALUE(MID('CFR - XML import'!$A94,SEARCH(\">\",'CFR - XML import'!$A94,1)+1,SEARCH(\"/\",'CFR - XML import'!$A94,1)-SEARCH(\">\",'CFR - XML import'!$A94,1)-2)))","v":0},{"$f":"IF(ISERROR(FIND(Z$3,'CFR - XML import'!$A94)),0,VALUE(MID('CFR - XML import'!$A94,SEARCH(\">\",'CFR - XML import'!$A94,1)+1,SEARCH(\"/\",'CFR - XML import'!$A94,1)-SEARCH(\">\",'CFR - XML import'!$A94,1)-2)))","v":0},{"$f":"IF(ISERROR(FIND(AA$3,'CFR - XML import'!$A94)),0,VALUE(MID('CFR - XML import'!$A94,SEARCH(\">\",'CFR - XML import'!$A94,1)+1,SEARCH(\"/\",'CFR - XML import'!$A94,1)-SEARCH(\">\",'CFR - XML import'!$A94,1)-2)))","v":0},{"$f":"IF(ISERROR(FIND(AB$3,'CFR - XML import'!$A94)),0,VALUE(MID('CFR - XML import'!$A94,SEARCH(\">\",'CFR - XML import'!$A94,1)+1,SEARCH(\"/\",'CFR - XML import'!$A94,1)-SEARCH(\">\",'CFR - XML import'!$A94,1)-2)))","v":0},{"$f":"IF(ISERROR(FIND(AC$3,'CFR - XML import'!$A94)),0,VALUE(MID('CFR - XML import'!$A94,SEARCH(\">\",'CFR - XML import'!$A94,1)+1,SEARCH(\"/\",'CFR - XML import'!$A94,1)-SEARCH(\">\",'CFR - XML import'!$A94,1)-2)))","v":0},{"$f":"IF(ISERROR(FIND(AD$3,'CFR - XML import'!$A94)),0,VALUE(MID('CFR - XML import'!$A94,SEARCH(\">\",'CFR - XML import'!$A94,1)+1,SEARCH(\"/\",'CFR - XML import'!$A94,1)-SEARCH(\">\",'CFR - XML import'!$A94,1)-2)))","v":0},{"$f":"IF(ISERROR(FIND(AE$3,'CFR - XML import'!$A94)),0,VALUE(MID('CFR - XML import'!$A94,SEARCH(\">\",'CFR - XML import'!$A94,1)+1,SEARCH(\"/\",'CFR - XML import'!$A94,1)-SEARCH(\">\",'CFR - XML import'!$A94,1)-2)))","v":0},{"$f":"IF(ISERROR(FIND(AF$3,'CFR - XML import'!$A94)),0,VALUE(MID('CFR - XML import'!$A94,SEARCH(\">\",'CFR - XML import'!$A94,1)+1,SEARCH(\"/\",'CFR - XML import'!$A94,1)-SEARCH(\">\",'CFR - XML import'!$A94,1)-2)))","v":0},{"$f":"IF(ISERROR(FIND(AG$3,'CFR - XML import'!$A94)),0,VALUE(MID('CFR - XML import'!$A94,SEARCH(\">\",'CFR - XML import'!$A94,1)+1,SEARCH(\"/\",'CFR - XML import'!$A94,1)-SEARCH(\">\",'CFR - XML import'!$A94,1)-2)))","v":0},{"$f":"IF(ISERROR(FIND(AH$3,'CFR - XML import'!$A94)),0,VALUE(MID('CFR - XML import'!$A94,SEARCH(\">\",'CFR - XML import'!$A94,1)+1,SEARCH(\"/\",'CFR - XML import'!$A94,1)-SEARCH(\">\",'CFR - XML import'!$A94,1)-2)))","v":0},{"$f":"IF(ISERROR(FIND(AI$3,'CFR - XML import'!$A94)),0,VALUE(MID('CFR - XML import'!$A94,SEARCH(\">\",'CFR - XML import'!$A94,1)+1,SEARCH(\"/\",'CFR - XML import'!$A94,1)-SEARCH(\">\",'CFR - XML import'!$A94,1)-2)))","v":0},{"$f":"IF(ISERROR(FIND(AJ$3,'CFR - XML import'!$A94)),0,VALUE(MID('CFR - XML import'!$A94,SEARCH(\">\",'CFR - XML import'!$A94,1)+1,SEARCH(\"/\",'CFR - XML import'!$A94,1)-SEARCH(\">\",'CFR - XML import'!$A94,1)-2)))","v":0},{"$f":"IF(ISERROR(FIND(AK$3,'CFR - XML import'!$A94)),0,VALUE(MID('CFR - XML import'!$A94,SEARCH(\">\",'CFR - XML import'!$A94,1)+1,SEARCH(\"/\",'CFR - XML import'!$A94,1)-SEARCH(\">\",'CFR - XML import'!$A94,1)-2)))","v":0},{"$f":"IF(ISERROR(FIND(AL$3,'CFR - XML import'!$A94)),0,VALUE(MID('CFR - XML import'!$A94,SEARCH(\">\",'CFR - XML import'!$A94,1)+1,SEARCH(\"/\",'CFR - XML import'!$A94,1)-SEARCH(\">\",'CFR - XML import'!$A94,1)-2)))","v":0},{"$f":"IF(ISERROR(FIND(AM$3,'CFR - XML import'!$A94)),0,VALUE(MID('CFR - XML import'!$A94,SEARCH(\">\",'CFR - XML import'!$A94,1)+1,SEARCH(\"/\",'CFR - XML import'!$A94,1)-SEARCH(\">\",'CFR - XML import'!$A94,1)-2)))","v":0},{"$f":"IF(ISERROR(FIND(AN$3,'CFR - XML import'!$A94)),0,VALUE(MID('CFR - XML import'!$A94,SEARCH(\">\",'CFR - XML import'!$A94,1)+1,SEARCH(\"/\",'CFR - XML import'!$A94,1)-SEARCH(\">\",'CFR - XML import'!$A94,1)-2)))","v":0},{"$f":"IF(ISERROR(FIND(AO$3,'CFR - XML import'!$A94)),0,VALUE(MID('CFR - XML import'!$A94,SEARCH(\">\",'CFR - XML import'!$A94,1)+1,SEARCH(\"/\",'CFR - XML import'!$A94,1)-SEARCH(\">\",'CFR - XML import'!$A94,1)-2)))","v":0},{"$f":"IF(ISERROR(FIND(AP$3,'CFR - XML import'!$A94)),0,VALUE(MID('CFR - XML import'!$A94,SEARCH(\">\",'CFR - XML import'!$A94,1)+1,SEARCH(\"/\",'CFR - XML import'!$A94,1)-SEARCH(\">\",'CFR - XML import'!$A94,1)-2)))","v":0},{"$f":"IF(ISERROR(FIND(AQ$3,'CFR - XML import'!$A94)),0,VALUE(MID('CFR - XML import'!$A94,SEARCH(\">\",'CFR - XML import'!$A94,1)+1,SEARCH(\"/\",'CFR - XML import'!$A94,1)-SEARCH(\">\",'CFR - XML import'!$A94,1)-2)))","v":0},{"$f":"IF(ISERROR(FIND(AR$3,'CFR - XML import'!$A94)),0,VALUE(MID('CFR - XML import'!$A94,SEARCH(\">\",'CFR - XML import'!$A94,1)+1,SEARCH(\"/\",'CFR - XML import'!$A94,1)-SEARCH(\">\",'CFR - XML import'!$A94,1)-2)))","v":0},{"$f":"IF(ISERROR(FIND(AS$3,'CFR - XML import'!$A94)),0,VALUE(MID('CFR - XML import'!$A94,SEARCH(\">\",'CFR - XML import'!$A94,1)+1,SEARCH(\"/\",'CFR - XML import'!$A94,1)-SEARCH(\">\",'CFR - XML import'!$A94,1)-2)))","v":0},{"$f":"IF(ISERROR(FIND(AT$3,'CFR - XML import'!$A94)),0,VALUE(MID('CFR - XML import'!$A94,SEARCH(\">\",'CFR - XML import'!$A94,1)+1,SEARCH(\"/\",'CFR - XML import'!$A94,1)-SEARCH(\">\",'CFR - XML import'!$A94,1)-2)))","v":0},{"$f":"IF(ISERROR(FIND(AU$3,'CFR - XML import'!$A94)),0,VALUE(MID('CFR - XML import'!$A94,SEARCH(\">\",'CFR - XML import'!$A94,1)+1,SEARCH(\"/\",'CFR - XML import'!$A94,1)-SEARCH(\">\",'CFR - XML import'!$A94,1)-2)))","v":0},{"$f":"IF(ISERROR(FIND(AV$3,'CFR - XML import'!$A94)),0,VALUE(MID('CFR - XML import'!$A94,SEARCH(\">\",'CFR - XML import'!$A94,1)+1,SEARCH(\"/\",'CFR - XML import'!$A94,1)-SEARCH(\">\",'CFR - XML import'!$A94,1)-2)))","v":0},{"$f":"IF(ISERROR(FIND(AW$3,'CFR - XML import'!$A94)),0,VALUE(MID('CFR - XML import'!$A94,SEARCH(\">\",'CFR - XML import'!$A94,1)+1,SEARCH(\"/\",'CFR - XML import'!$A94,1)-SEARCH(\">\",'CFR - XML import'!$A94,1)-2)))","v":0},{"$f":"IF(ISERROR(FIND(AX$3,'CFR - XML import'!$A94)),0,VALUE(MID('CFR - XML import'!$A94,SEARCH(\">\",'CFR - XML import'!$A94,1)+1,SEARCH(\"/\",'CFR - XML import'!$A94,1)-SEARCH(\">\",'CFR - XML import'!$A94,1)-2)))","v":0},{"$f":"IF(ISERROR(FIND(AY$3,'CFR - XML import'!$A94)),0,VALUE(MID('CFR - XML import'!$A94,SEARCH(\">\",'CFR - XML import'!$A94,1)+1,SEARCH(\"/\",'CFR - XML import'!$A94,1)-SEARCH(\">\",'CFR - XML import'!$A94,1)-2)))","v":0},{"$f":"IF(ISERROR(FIND(AZ$3,'CFR - XML import'!$A94)),0,VALUE(MID('CFR - XML import'!$A94,SEARCH(\">\",'CFR - XML import'!$A94,1)+1,SEARCH(\"/\",'CFR - XML import'!$A94,1)-SEARCH(\">\",'CFR - XML import'!$A94,1)-2)))","v":0},{"$f":"IF(ISERROR(FIND(BA$3,'CFR - XML import'!$A94)),0,VALUE(MID('CFR - XML import'!$A94,SEARCH(\">\",'CFR - XML import'!$A94,1)+1,SEARCH(\"/\",'CFR - XML import'!$A94,1)-SEARCH(\">\",'CFR - XML import'!$A94,1)-2)))","v":0},{"$f":"IF(ISERROR(FIND(BB$3,'CFR - XML import'!$A94)),0,VALUE(MID('CFR - XML import'!$A94,SEARCH(\">\",'CFR - XML import'!$A94,1)+1,SEARCH(\"/\",'CFR - XML import'!$A94,1)-SEARCH(\">\",'CFR - XML import'!$A94,1)-2)))","v":0},{"$f":"IF(ISERROR(FIND(BC$3,'CFR - XML import'!$A94)),0,VALUE(MID('CFR - XML import'!$A94,SEARCH(\">\",'CFR - XML import'!$A94,1)+1,SEARCH(\"/\",'CFR - XML import'!$A94,1)-SEARCH(\">\",'CFR - XML import'!$A94,1)-2)))","v":0},{"$f":"IF(ISERROR(FIND(BD$3,'CFR - XML import'!$A94)),0,VALUE(MID('CFR - XML import'!$A94,SEARCH(\">\",'CFR - XML import'!$A94,1)+1,SEARCH(\"/\",'CFR - XML import'!$A94,1)-SEARCH(\">\",'CFR - XML import'!$A94,1)-2)))","v":0},{"$f":"IF(ISERROR(FIND(BE$3,'CFR - XML import'!$A94)),0,VALUE(MID('CFR - XML import'!$A94,SEARCH(\">\",'CFR - XML import'!$A94,1)+1,SEARCH(\"/\",'CFR - XML import'!$A94,1)-SEARCH(\">\",'CFR - XML import'!$A94,1)-2)))","v":0},{"$f":"IF(ISERROR(FIND(BF$3,'CFR - XML import'!$A94)),0,VALUE(MID('CFR - XML import'!$A94,SEARCH(\">\",'CFR - XML import'!$A94,1)+1,SEARCH(\"/\",'CFR - XML import'!$A94,1)-SEARCH(\">\",'CFR - XML import'!$A94,1)-2)))","v":0},{"$f":"IF(ISERROR(FIND(BG$3,'CFR - XML import'!$A94)),0,VALUE(MID('CFR - XML import'!$A94,SEARCH(\">\",'CFR - XML import'!$A94,1)+1,SEARCH(\"/\",'CFR - XML import'!$A94,1)-SEARCH(\">\",'CFR - XML import'!$A94,1)-2)))","v":0},{"$f":"IF(ISERROR(FIND(BH$3,'CFR - XML import'!$A94)),0,VALUE(MID('CFR - XML import'!$A94,SEARCH(\">\",'CFR - XML import'!$A94,1)+1,SEARCH(\"/\",'CFR - XML import'!$A94,1)-SEARCH(\">\",'CFR - XML import'!$A94,1)-2)))","v":0},{"$f":"IF(ISERROR(FIND(BI$3,'CFR - XML import'!$A94)),0,VALUE(MID('CFR - XML import'!$A94,SEARCH(\">\",'CFR - XML import'!$A94,1)+1,SEARCH(\"/\",'CFR - XML import'!$A94,1)-SEARCH(\">\",'CFR - XML import'!$A94,1)-2)))","v":0},{"$f":"IF(ISERROR(FIND(BJ$3,'CFR - XML import'!$A94)),0,VALUE(MID('CFR - XML import'!$A94,SEARCH(\">\",'CFR - XML import'!$A94,1)+1,SEARCH(\"/\",'CFR - XML import'!$A94,1)-SEARCH(\">\",'CFR - XML import'!$A94,1)-2)))","v":0},{"$f":"IF(ISERROR(FIND(BK$3,'CFR - XML import'!$A94)),0,VALUE(MID('CFR - XML import'!$A94,SEARCH(\">\",'CFR - XML import'!$A94,1)+1,SEARCH(\"/\",'CFR - XML import'!$A94,1)-SEARCH(\">\",'CFR - XML import'!$A94,1)-2)))","v":0},{"$f":"IF(ISERROR(FIND(BL$3,'CFR - XML import'!$A94)),0,VALUE(MID('CFR - XML import'!$A94,SEARCH(\">\",'CFR - XML import'!$A94,1)+1,SEARCH(\"/\",'CFR - XML import'!$A94,1)-SEARCH(\">\",'CFR - XML import'!$A94,1)-2)))","v":0},{"$f":"IF(ISERROR(FIND(BM$3,'CFR - XML import'!$A94)),0,VALUE(MID('CFR - XML import'!$A94,SEARCH(\">\",'CFR - XML import'!$A94,1)+1,SEARCH(\"/\",'CFR - XML import'!$A94,1)-SEARCH(\">\",'CFR - XML import'!$A94,1)-2)))","v":0},{"$f":"IF(ISERROR(FIND(BN$3,'CFR - XML import'!$A94)),0,VALUE(MID('CFR - XML import'!$A94,SEARCH(\">\",'CFR - XML import'!$A94,1)+1,SEARCH(\"/\",'CFR - XML import'!$A94,1)-SEARCH(\">\",'CFR - XML import'!$A94,1)-2)))","v":0},{"$f":"IF(ISERROR(FIND(BO$3,'CFR - XML import'!$A94)),0,VALUE(MID('CFR - XML import'!$A94,SEARCH(\">\",'CFR - XML import'!$A94,1)+1,SEARCH(\"/\",'CFR - XML import'!$A94,1)-SEARCH(\">\",'CFR - XML import'!$A94,1)-2)))","v":0},{"$f":"IF(ISERROR(FIND(BP$3,'CFR - XML import'!$A94)),0,VALUE(MID('CFR - XML import'!$A94,SEARCH(\">\",'CFR - XML import'!$A94,1)+1,SEARCH(\"/\",'CFR - XML import'!$A94,1)-SEARCH(\">\",'CFR - XML import'!$A94,1)-2)))","v":0},{"$f":"IF(ISERROR(FIND(BQ$3,'CFR - XML import'!$A94)),0,VALUE(MID('CFR - XML import'!$A94,SEARCH(\">\",'CFR - XML import'!$A94,1)+1,SEARCH(\"/\",'CFR - XML import'!$A94,1)-SEARCH(\">\",'CFR - XML import'!$A94,1)-2)))","v":0},{"$f":"IF(ISERROR(FIND(BR$3,'CFR - XML import'!$A94)),0,VALUE(MID('CFR - XML import'!$A94,SEARCH(\">\",'CFR - XML import'!$A94,1)+1,SEARCH(\"/\",'CFR - XML import'!$A94,1)-SEARCH(\">\",'CFR - XML import'!$A94,1)-2)))","v":0},{"$f":"IF(ISERROR(FIND(BS$3,'CFR - XML import'!$A94)),0,VALUE(MID('CFR - XML import'!$A94,SEARCH(\">\",'CFR - XML import'!$A94,1)+1,SEARCH(\"/\",'CFR - XML import'!$A94,1)-SEARCH(\">\",'CFR - XML import'!$A94,1)-2)))","v":0},{"$f":"IF(ISERROR(FIND(BT$3,'CFR - XML import'!$A94)),0,VALUE(MID('CFR - XML import'!$A94,SEARCH(\">\",'CFR - XML import'!$A94,1)+1,SEARCH(\"/\",'CFR - XML import'!$A94,1)-SEARCH(\">\",'CFR - XML import'!$A94,1)-2)))","v":0},{"$f":"IF(ISERROR(FIND(BU$3,'CFR - XML import'!$A94)),0,VALUE(MID('CFR - XML import'!$A94,SEARCH(\">\",'CFR - XML import'!$A94,1)+1,SEARCH(\"/\",'CFR - XML import'!$A94,1)-SEARCH(\">\",'CFR - XML import'!$A94,1)-2)))","v":0},{"$f":"IF(ISERROR(FIND(BV$3,'CFR - XML import'!$A94)),0,VALUE(MID('CFR - XML import'!$A94,SEARCH(\">\",'CFR - XML import'!$A94,1)+1,SEARCH(\"/\",'CFR - XML import'!$A94,1)-SEARCH(\">\",'CFR - XML import'!$A94,1)-2)))","v":0},{"$f":"IF(ISERROR(FIND(BW$3,'CFR - XML import'!$A94)),0,VALUE(MID('CFR - XML import'!$A94,SEARCH(\">\",'CFR - XML import'!$A94,1)+1,SEARCH(\"/\",'CFR - XML import'!$A94,1)-SEARCH(\">\",'CFR - XML import'!$A94,1)-2)))","v":0},{"$f":"IF(ISERROR(FIND(BX$3,'CFR - XML import'!$A94)),0,VALUE(MID('CFR - XML import'!$A94,SEARCH(\">\",'CFR - XML import'!$A94,1)+1,SEARCH(\"/\",'CFR - XML import'!$A94,1)-SEARCH(\">\",'CFR - XML import'!$A94,1)-2)))","v":0},{"$f":"IF(ISERROR(FIND(BY$3,'CFR - XML import'!$A94)),0,VALUE(MID('CFR - XML import'!$A94,SEARCH(\">\",'CFR - XML import'!$A94,1)+1,SEARCH(\"/\",'CFR - XML import'!$A94,1)-SEARCH(\">\",'CFR - XML import'!$A94,1)-2)))","v":0},{"$f":"IF(ISERROR(FIND(BZ$3,'CFR - XML import'!$A94)),0,VALUE(MID('CFR - XML import'!$A94,SEARCH(\">\",'CFR - XML import'!$A94,1)+1,SEARCH(\"/\",'CFR - XML import'!$A94,1)-SEARCH(\">\",'CFR - XML import'!$A94,1)-2)))","v":0},null,null,null,null,null,null,{"$f":"IF(ISERROR(IF(MID('CFR - XML import'!$A94,LEN($CF$4)+1,LEN('CFR - XML import'!$A94)-(2*LEN($CF$4)+1))=\"RMMS\",1,IF(MID('CFR - XML import'!$A94,LEN(\"    <InputSystem>\")+1,LEN('CFR - XML import'!$A94)-(LEN(\"    <InputSystem>\")+LEN($CF$4)+1))=\"SIMS\",2,0))),0,IF(MID('CFR - XML import'!$A94,LEN($CF$4)+1,LEN('CFR - XML import'!$A94)-(2*LEN($CF$4)+1))=\"RMMS\",1,IF(MID('CFR - XML import'!$A94,LEN(\"    <InputSystem>\")+1,LEN('CFR - XML import'!$A94)-(LEN(\"    <InputSystem>\")+LEN($CF$4)+1))=\"SIMS\",2,0)))","v":0},{"$f":"IF(ISERROR(FIND(CH$3,'CFR - XML import'!$A94)),0,MID('CFR - XML import'!$A94,SEARCH(\">\",'CFR - XML import'!$A94,1)+1,SEARCH(\"/\",'CFR - XML import'!$A94,1)-SEARCH(\">\",'CFR - XML import'!$A94,1)-2))","v":0},{"$f":"IF(ISERROR(FIND(CI$3,'CFR - XML import'!$A94)),0,MID('CFR - XML import'!$A94,SEARCH(\">\",'CFR - XML import'!$A94,1)+1,SEARCH(\"/\",'CFR - XML import'!$A94,1)-SEARCH(\">\",'CFR - XML import'!$A94,1)-2))","v":0},{"$f":"IF(ISERROR(FIND(CJ$3,'CFR - XML import'!$A94)),0,MID('CFR - XML import'!$A94,SEARCH(\">\",'CFR - XML import'!$A94,1)+1,SEARCH(\"/\",'CFR - XML import'!$A94,1)-SEARCH(\">\",'CFR - XML import'!$A94,1)-2))","v":0},{"$f":"IF(ISERROR(FIND(CK$3,'CFR - XML import'!$A94)),0,MID('CFR - XML import'!$A94,SEARCH(\">\",'CFR - XML import'!$A94,1)+1,SEARCH(\"/\",'CFR - XML import'!$A94,1)-SEARCH(\">\",'CFR - XML import'!$A94,1)-2))","v":0},{"$f":"IF(ISERROR(FIND(CL$3,'CFR - XML import'!$A94)),0,MID('CFR - XML import'!$A94,SEARCH(\">\",'CFR - XML import'!$A94,1)+1,SEARCH(\"/\",'CFR - XML import'!$A94,1)-SEARCH(\">\",'CFR - XML import'!$A94,1)-2))","v":0}]
[{"$f":"IF(AND('CFR - XML import'!A95<>\"\",LEFT('CFR - XML import'!A95,1)<>\"<\",LEFT('CFR - XML import'!A95,3)<>\"  <\",LEFT('CFR - XML import'!A95,5)<>\"    <\",LEFT('CFR - XML import'!A95,7)<>\"      <\",LEFT('CFR - XML import'!A95,9)<>\"        <\",$B$1=\"SIMS\"),'CFR - XML import'!A95,IF(AND(LEFT('CFR - XML import'!A95,9)=\"<Details>\",$B$1=\"RM\"),'CFR - XML import'!A95,\"\"))","v":""},{"$f":"IF(ISERROR(FIND(B$3,'CFR - XML import'!$A95)),0,VALUE(MID('CFR - XML import'!$A95,SEARCH(\">\",'CFR - XML import'!$A95,1)+1,SEARCH(\"/\",'CFR - XML import'!$A95,1)-SEARCH(\">\",'CFR - XML import'!$A95,1)-2)))","v":0},null,{"$f":"IF(ISERROR(FIND(D$3,'CFR - XML import'!$A95)),0,MID('CFR - XML import'!$A95,SEARCH(\">\",'CFR - XML import'!$A95,1)+1,SEARCH(\"/\",'CFR - XML import'!$A95,1)-SEARCH(\">\",'CFR - XML import'!$A95,1)-2))","v":0},{"$f":"IF(ISERROR(FIND(E$3,'CFR - XML import'!$A95)),0,MID('CFR - XML import'!$A95,SEARCH(\">\",'CFR - XML import'!$A95,1)+1,SEARCH(\"/\",'CFR - XML import'!$A95,1)-SEARCH(\">\",'CFR - XML import'!$A95,1)-2))","v":0},{"$f":"IF($B$1=\"SIMS\",IF(ISERROR(FIND(F$3,'CFR - XML import'!$A95)),0,VALUE(MID('CFR - XML import'!$A95,15,10))),IF(ISERROR(FIND(F$3,'CFR - XML import'!$A95)),0,VALUE(MID('CFR - XML import'!$A95,11,10))))","v":"00:00:00"},{"$f":"IF(ISERROR(FIND(G$3,'CFR - XML import'!$A95)),0,VALUE(MID('CFR - XML import'!$A95,SEARCH(\">\",'CFR - XML import'!$A95,1)+1,SEARCH(\"/\",'CFR - XML import'!$A95,1)-SEARCH(\">\",'CFR - XML import'!$A95,1)-2)))","v":0},{"$f":"IF(ISERROR(FIND(H$3,'CFR - XML import'!$A95)),0,VALUE(MID('CFR - XML import'!$A95,SEARCH(\">\",'CFR - XML import'!$A95,1)+1,SEARCH(\"/\",'CFR - XML import'!$A95,1)-SEARCH(\">\",'CFR - XML import'!$A95,1)-2)))","v":0},{"$f":"IF(ISERROR(FIND(I$3,'CFR - XML import'!$A95)),0,VALUE(MID('CFR - XML import'!$A95,SEARCH(\">\",'CFR - XML import'!$A95,1)+1,SEARCH(\"/\",'CFR - XML import'!$A95,1)-SEARCH(\">\",'CFR - XML import'!$A95,1)-2)))","v":0},{"$f":"IF(ISERROR(FIND(J$3,'CFR - XML import'!$A95)),0,VALUE(MID('CFR - XML import'!$A95,SEARCH(\">\",'CFR - XML import'!$A95,1)+1,SEARCH(\"/\",'CFR - XML import'!$A95,1)-SEARCH(\">\",'CFR - XML import'!$A95,1)-2)))","v":0},{"$f":"IF(ISERROR(FIND(K$3,'CFR - XML import'!$A95)),0,VALUE(MID('CFR - XML import'!$A95,SEARCH(\">\",'CFR - XML import'!$A95,1)+1,SEARCH(\"/\",'CFR - XML import'!$A95,1)-SEARCH(\">\",'CFR - XML import'!$A95,1)-2)))","v":0},{"$f":"IF(ISERROR(FIND(L$3,'CFR - XML import'!$A95)),0,VALUE(MID('CFR - XML import'!$A95,SEARCH(\">\",'CFR - XML import'!$A95,1)+1,SEARCH(\"/\",'CFR - XML import'!$A95,1)-SEARCH(\">\",'CFR - XML import'!$A95,1)-2)))","v":0},{"$f":"IF(ISERROR(FIND(M$3,'CFR - XML import'!$A95)),0,VALUE(MID('CFR - XML import'!$A95,SEARCH(\">\",'CFR - XML import'!$A95,1)+1,SEARCH(\"/\",'CFR - XML import'!$A95,1)-SEARCH(\">\",'CFR - XML import'!$A95,1)-2)))","v":0},{"$f":"IF(ISERROR(FIND(N$3,'CFR - XML import'!$A95)),0,VALUE(MID('CFR - XML import'!$A95,SEARCH(\">\",'CFR - XML import'!$A95,1)+1,SEARCH(\"/\",'CFR - XML import'!$A95,1)-SEARCH(\">\",'CFR - XML import'!$A95,1)-2)))","v":0},{"$f":"IF(ISERROR(FIND(O$3,'CFR - XML import'!$A95)),0,VALUE(MID('CFR - XML import'!$A95,SEARCH(\">\",'CFR - XML import'!$A95,1)+1,SEARCH(\"/\",'CFR - XML import'!$A95,1)-SEARCH(\">\",'CFR - XML import'!$A95,1)-2)))","v":0},{"$f":"IF(ISERROR(FIND(P$3,'CFR - XML import'!$A95)),0,VALUE(MID('CFR - XML import'!$A95,SEARCH(\">\",'CFR - XML import'!$A95,1)+1,SEARCH(\"/\",'CFR - XML import'!$A95,1)-SEARCH(\">\",'CFR - XML import'!$A95,1)-2)))","v":0},{"$f":"IF(ISERROR(FIND(Q$3,'CFR - XML import'!$A95)),0,VALUE(MID('CFR - XML import'!$A95,SEARCH(\">\",'CFR - XML import'!$A95,1)+1,SEARCH(\"/\",'CFR - XML import'!$A95,1)-SEARCH(\">\",'CFR - XML import'!$A95,1)-2)))","v":0},{"$f":"IF(ISERROR(FIND(R$3,'CFR - XML import'!$A95)),0,VALUE(MID('CFR - XML import'!$A95,SEARCH(\">\",'CFR - XML import'!$A95,1)+1,SEARCH(\"/\",'CFR - XML import'!$A95,1)-SEARCH(\">\",'CFR - XML import'!$A95,1)-2)))","v":0},{"$f":"IF(ISERROR(FIND(S$3,'CFR - XML import'!$A95)),0,VALUE(MID('CFR - XML import'!$A95,SEARCH(\">\",'CFR - XML import'!$A95,1)+1,SEARCH(\"/\",'CFR - XML import'!$A95,1)-SEARCH(\">\",'CFR - XML import'!$A95,1)-2)))","v":0},{"$f":"IF(ISERROR(FIND(T$3,'CFR - XML import'!$A95)),0,VALUE(MID('CFR - XML import'!$A95,SEARCH(\">\",'CFR - XML import'!$A95,1)+1,SEARCH(\"/\",'CFR - XML import'!$A95,1)-SEARCH(\">\",'CFR - XML import'!$A95,1)-2)))","v":0},{"$f":"IF(ISERROR(FIND(U$3,'CFR - XML import'!$A95)),0,VALUE(MID('CFR - XML import'!$A95,SEARCH(\">\",'CFR - XML import'!$A95,1)+1,SEARCH(\"/\",'CFR - XML import'!$A95,1)-SEARCH(\">\",'CFR - XML import'!$A95,1)-2)))","v":0},{"$f":"IF(ISERROR(FIND(V$3,'CFR - XML import'!$A95)),0,VALUE(MID('CFR - XML import'!$A95,SEARCH(\">\",'CFR - XML import'!$A95,1)+1,SEARCH(\"/\",'CFR - XML import'!$A95,1)-SEARCH(\">\",'CFR - XML import'!$A95,1)-2)))","v":0},{"$f":"IF(ISERROR(FIND(W$3,'CFR - XML import'!$A95)),0,VALUE(MID('CFR - XML import'!$A95,SEARCH(\">\",'CFR - XML import'!$A95,1)+1,SEARCH(\"/\",'CFR - XML import'!$A95,1)-SEARCH(\">\",'CFR - XML import'!$A95,1)-2)))","v":0},null,{"$f":"IF(ISERROR(FIND(Y$3,'CFR - XML import'!$A95)),0,VALUE(MID('CFR - XML import'!$A95,SEARCH(\">\",'CFR - XML import'!$A95,1)+1,SEARCH(\"/\",'CFR - XML import'!$A95,1)-SEARCH(\">\",'CFR - XML import'!$A95,1)-2)))","v":0},{"$f":"IF(ISERROR(FIND(Z$3,'CFR - XML import'!$A95)),0,VALUE(MID('CFR - XML import'!$A95,SEARCH(\">\",'CFR - XML import'!$A95,1)+1,SEARCH(\"/\",'CFR - XML import'!$A95,1)-SEARCH(\">\",'CFR - XML import'!$A95,1)-2)))","v":0},{"$f":"IF(ISERROR(FIND(AA$3,'CFR - XML import'!$A95)),0,VALUE(MID('CFR - XML import'!$A95,SEARCH(\">\",'CFR - XML import'!$A95,1)+1,SEARCH(\"/\",'CFR - XML import'!$A95,1)-SEARCH(\">\",'CFR - XML import'!$A95,1)-2)))","v":0},{"$f":"IF(ISERROR(FIND(AB$3,'CFR - XML import'!$A95)),0,VALUE(MID('CFR - XML import'!$A95,SEARCH(\">\",'CFR - XML import'!$A95,1)+1,SEARCH(\"/\",'CFR - XML import'!$A95,1)-SEARCH(\">\",'CFR - XML import'!$A95,1)-2)))","v":0},{"$f":"IF(ISERROR(FIND(AC$3,'CFR - XML import'!$A95)),0,VALUE(MID('CFR - XML import'!$A95,SEARCH(\">\",'CFR - XML import'!$A95,1)+1,SEARCH(\"/\",'CFR - XML import'!$A95,1)-SEARCH(\">\",'CFR - XML import'!$A95,1)-2)))","v":0},{"$f":"IF(ISERROR(FIND(AD$3,'CFR - XML import'!$A95)),0,VALUE(MID('CFR - XML import'!$A95,SEARCH(\">\",'CFR - XML import'!$A95,1)+1,SEARCH(\"/\",'CFR - XML import'!$A95,1)-SEARCH(\">\",'CFR - XML import'!$A95,1)-2)))","v":0},{"$f":"IF(ISERROR(FIND(AE$3,'CFR - XML import'!$A95)),0,VALUE(MID('CFR - XML import'!$A95,SEARCH(\">\",'CFR - XML import'!$A95,1)+1,SEARCH(\"/\",'CFR - XML import'!$A95,1)-SEARCH(\">\",'CFR - XML import'!$A95,1)-2)))","v":0},{"$f":"IF(ISERROR(FIND(AF$3,'CFR - XML import'!$A95)),0,VALUE(MID('CFR - XML import'!$A95,SEARCH(\">\",'CFR - XML import'!$A95,1)+1,SEARCH(\"/\",'CFR - XML import'!$A95,1)-SEARCH(\">\",'CFR - XML import'!$A95,1)-2)))","v":0},{"$f":"IF(ISERROR(FIND(AG$3,'CFR - XML import'!$A95)),0,VALUE(MID('CFR - XML import'!$A95,SEARCH(\">\",'CFR - XML import'!$A95,1)+1,SEARCH(\"/\",'CFR - XML import'!$A95,1)-SEARCH(\">\",'CFR - XML import'!$A95,1)-2)))","v":0},{"$f":"IF(ISERROR(FIND(AH$3,'CFR - XML import'!$A95)),0,VALUE(MID('CFR - XML import'!$A95,SEARCH(\">\",'CFR - XML import'!$A95,1)+1,SEARCH(\"/\",'CFR - XML import'!$A95,1)-SEARCH(\">\",'CFR - XML import'!$A95,1)-2)))","v":0},{"$f":"IF(ISERROR(FIND(AI$3,'CFR - XML import'!$A95)),0,VALUE(MID('CFR - XML import'!$A95,SEARCH(\">\",'CFR - XML import'!$A95,1)+1,SEARCH(\"/\",'CFR - XML import'!$A95,1)-SEARCH(\">\",'CFR - XML import'!$A95,1)-2)))","v":0},{"$f":"IF(ISERROR(FIND(AJ$3,'CFR - XML import'!$A95)),0,VALUE(MID('CFR - XML import'!$A95,SEARCH(\">\",'CFR - XML import'!$A95,1)+1,SEARCH(\"/\",'CFR - XML import'!$A95,1)-SEARCH(\">\",'CFR - XML import'!$A95,1)-2)))","v":0},{"$f":"IF(ISERROR(FIND(AK$3,'CFR - XML import'!$A95)),0,VALUE(MID('CFR - XML import'!$A95,SEARCH(\">\",'CFR - XML import'!$A95,1)+1,SEARCH(\"/\",'CFR - XML import'!$A95,1)-SEARCH(\">\",'CFR - XML import'!$A95,1)-2)))","v":0},{"$f":"IF(ISERROR(FIND(AL$3,'CFR - XML import'!$A95)),0,VALUE(MID('CFR - XML import'!$A95,SEARCH(\">\",'CFR - XML import'!$A95,1)+1,SEARCH(\"/\",'CFR - XML import'!$A95,1)-SEARCH(\">\",'CFR - XML import'!$A95,1)-2)))","v":0},{"$f":"IF(ISERROR(FIND(AM$3,'CFR - XML import'!$A95)),0,VALUE(MID('CFR - XML import'!$A95,SEARCH(\">\",'CFR - XML import'!$A95,1)+1,SEARCH(\"/\",'CFR - XML import'!$A95,1)-SEARCH(\">\",'CFR - XML import'!$A95,1)-2)))","v":0},{"$f":"IF(ISERROR(FIND(AN$3,'CFR - XML import'!$A95)),0,VALUE(MID('CFR - XML import'!$A95,SEARCH(\">\",'CFR - XML import'!$A95,1)+1,SEARCH(\"/\",'CFR - XML import'!$A95,1)-SEARCH(\">\",'CFR - XML import'!$A95,1)-2)))","v":0},{"$f":"IF(ISERROR(FIND(AO$3,'CFR - XML import'!$A95)),0,VALUE(MID('CFR - XML import'!$A95,SEARCH(\">\",'CFR - XML import'!$A95,1)+1,SEARCH(\"/\",'CFR - XML import'!$A95,1)-SEARCH(\">\",'CFR - XML import'!$A95,1)-2)))","v":0},{"$f":"IF(ISERROR(FIND(AP$3,'CFR - XML import'!$A95)),0,VALUE(MID('CFR - XML import'!$A95,SEARCH(\">\",'CFR - XML import'!$A95,1)+1,SEARCH(\"/\",'CFR - XML import'!$A95,1)-SEARCH(\">\",'CFR - XML import'!$A95,1)-2)))","v":0},{"$f":"IF(ISERROR(FIND(AQ$3,'CFR - XML import'!$A95)),0,VALUE(MID('CFR - XML import'!$A95,SEARCH(\">\",'CFR - XML import'!$A95,1)+1,SEARCH(\"/\",'CFR - XML import'!$A95,1)-SEARCH(\">\",'CFR - XML import'!$A95,1)-2)))","v":0},{"$f":"IF(ISERROR(FIND(AR$3,'CFR - XML import'!$A95)),0,VALUE(MID('CFR - XML import'!$A95,SEARCH(\">\",'CFR - XML import'!$A95,1)+1,SEARCH(\"/\",'CFR - XML import'!$A95,1)-SEARCH(\">\",'CFR - XML import'!$A95,1)-2)))","v":0},{"$f":"IF(ISERROR(FIND(AS$3,'CFR - XML import'!$A95)),0,VALUE(MID('CFR - XML import'!$A95,SEARCH(\">\",'CFR - XML import'!$A95,1)+1,SEARCH(\"/\",'CFR - XML import'!$A95,1)-SEARCH(\">\",'CFR - XML import'!$A95,1)-2)))","v":0},{"$f":"IF(ISERROR(FIND(AT$3,'CFR - XML import'!$A95)),0,VALUE(MID('CFR - XML import'!$A95,SEARCH(\">\",'CFR - XML import'!$A95,1)+1,SEARCH(\"/\",'CFR - XML import'!$A95,1)-SEARCH(\">\",'CFR - XML import'!$A95,1)-2)))","v":0},{"$f":"IF(ISERROR(FIND(AU$3,'CFR - XML import'!$A95)),0,VALUE(MID('CFR - XML import'!$A95,SEARCH(\">\",'CFR - XML import'!$A95,1)+1,SEARCH(\"/\",'CFR - XML import'!$A95,1)-SEARCH(\">\",'CFR - XML import'!$A95,1)-2)))","v":0},{"$f":"IF(ISERROR(FIND(AV$3,'CFR - XML import'!$A95)),0,VALUE(MID('CFR - XML import'!$A95,SEARCH(\">\",'CFR - XML import'!$A95,1)+1,SEARCH(\"/\",'CFR - XML import'!$A95,1)-SEARCH(\">\",'CFR - XML import'!$A95,1)-2)))","v":0},{"$f":"IF(ISERROR(FIND(AW$3,'CFR - XML import'!$A95)),0,VALUE(MID('CFR - XML import'!$A95,SEARCH(\">\",'CFR - XML import'!$A95,1)+1,SEARCH(\"/\",'CFR - XML import'!$A95,1)-SEARCH(\">\",'CFR - XML import'!$A95,1)-2)))","v":0},{"$f":"IF(ISERROR(FIND(AX$3,'CFR - XML import'!$A95)),0,VALUE(MID('CFR - XML import'!$A95,SEARCH(\">\",'CFR - XML import'!$A95,1)+1,SEARCH(\"/\",'CFR - XML import'!$A95,1)-SEARCH(\">\",'CFR - XML import'!$A95,1)-2)))","v":0},{"$f":"IF(ISERROR(FIND(AY$3,'CFR - XML import'!$A95)),0,VALUE(MID('CFR - XML import'!$A95,SEARCH(\">\",'CFR - XML import'!$A95,1)+1,SEARCH(\"/\",'CFR - XML import'!$A95,1)-SEARCH(\">\",'CFR - XML import'!$A95,1)-2)))","v":0},{"$f":"IF(ISERROR(FIND(AZ$3,'CFR - XML import'!$A95)),0,VALUE(MID('CFR - XML import'!$A95,SEARCH(\">\",'CFR - XML import'!$A95,1)+1,SEARCH(\"/\",'CFR - XML import'!$A95,1)-SEARCH(\">\",'CFR - XML import'!$A95,1)-2)))","v":0},{"$f":"IF(ISERROR(FIND(BA$3,'CFR - XML import'!$A95)),0,VALUE(MID('CFR - XML import'!$A95,SEARCH(\">\",'CFR - XML import'!$A95,1)+1,SEARCH(\"/\",'CFR - XML import'!$A95,1)-SEARCH(\">\",'CFR - XML import'!$A95,1)-2)))","v":0},{"$f":"IF(ISERROR(FIND(BB$3,'CFR - XML import'!$A95)),0,VALUE(MID('CFR - XML import'!$A95,SEARCH(\">\",'CFR - XML import'!$A95,1)+1,SEARCH(\"/\",'CFR - XML import'!$A95,1)-SEARCH(\">\",'CFR - XML import'!$A95,1)-2)))","v":0},{"$f":"IF(ISERROR(FIND(BC$3,'CFR - XML import'!$A95)),0,VALUE(MID('CFR - XML import'!$A95,SEARCH(\">\",'CFR - XML import'!$A95,1)+1,SEARCH(\"/\",'CFR - XML import'!$A95,1)-SEARCH(\">\",'CFR - XML import'!$A95,1)-2)))","v":0},{"$f":"IF(ISERROR(FIND(BD$3,'CFR - XML import'!$A95)),0,VALUE(MID('CFR - XML import'!$A95,SEARCH(\">\",'CFR - XML import'!$A95,1)+1,SEARCH(\"/\",'CFR - XML import'!$A95,1)-SEARCH(\">\",'CFR - XML import'!$A95,1)-2)))","v":0},{"$f":"IF(ISERROR(FIND(BE$3,'CFR - XML import'!$A95)),0,VALUE(MID('CFR - XML import'!$A95,SEARCH(\">\",'CFR - XML import'!$A95,1)+1,SEARCH(\"/\",'CFR - XML import'!$A95,1)-SEARCH(\">\",'CFR - XML import'!$A95,1)-2)))","v":0},{"$f":"IF(ISERROR(FIND(BF$3,'CFR - XML import'!$A95)),0,VALUE(MID('CFR - XML import'!$A95,SEARCH(\">\",'CFR - XML import'!$A95,1)+1,SEARCH(\"/\",'CFR - XML import'!$A95,1)-SEARCH(\">\",'CFR - XML import'!$A95,1)-2)))","v":0},{"$f":"IF(ISERROR(FIND(BG$3,'CFR - XML import'!$A95)),0,VALUE(MID('CFR - XML import'!$A95,SEARCH(\">\",'CFR - XML import'!$A95,1)+1,SEARCH(\"/\",'CFR - XML import'!$A95,1)-SEARCH(\">\",'CFR - XML import'!$A95,1)-2)))","v":0},{"$f":"IF(ISERROR(FIND(BH$3,'CFR - XML import'!$A95)),0,VALUE(MID('CFR - XML import'!$A95,SEARCH(\">\",'CFR - XML import'!$A95,1)+1,SEARCH(\"/\",'CFR - XML import'!$A95,1)-SEARCH(\">\",'CFR - XML import'!$A95,1)-2)))","v":0},{"$f":"IF(ISERROR(FIND(BI$3,'CFR - XML import'!$A95)),0,VALUE(MID('CFR - XML import'!$A95,SEARCH(\">\",'CFR - XML import'!$A95,1)+1,SEARCH(\"/\",'CFR - XML import'!$A95,1)-SEARCH(\">\",'CFR - XML import'!$A95,1)-2)))","v":0},{"$f":"IF(ISERROR(FIND(BJ$3,'CFR - XML import'!$A95)),0,VALUE(MID('CFR - XML import'!$A95,SEARCH(\">\",'CFR - XML import'!$A95,1)+1,SEARCH(\"/\",'CFR - XML import'!$A95,1)-SEARCH(\">\",'CFR - XML import'!$A95,1)-2)))","v":0},{"$f":"IF(ISERROR(FIND(BK$3,'CFR - XML import'!$A95)),0,VALUE(MID('CFR - XML import'!$A95,SEARCH(\">\",'CFR - XML import'!$A95,1)+1,SEARCH(\"/\",'CFR - XML import'!$A95,1)-SEARCH(\">\",'CFR - XML import'!$A95,1)-2)))","v":0},{"$f":"IF(ISERROR(FIND(BL$3,'CFR - XML import'!$A95)),0,VALUE(MID('CFR - XML import'!$A95,SEARCH(\">\",'CFR - XML import'!$A95,1)+1,SEARCH(\"/\",'CFR - XML import'!$A95,1)-SEARCH(\">\",'CFR - XML import'!$A95,1)-2)))","v":0},{"$f":"IF(ISERROR(FIND(BM$3,'CFR - XML import'!$A95)),0,VALUE(MID('CFR - XML import'!$A95,SEARCH(\">\",'CFR - XML import'!$A95,1)+1,SEARCH(\"/\",'CFR - XML import'!$A95,1)-SEARCH(\">\",'CFR - XML import'!$A95,1)-2)))","v":0},{"$f":"IF(ISERROR(FIND(BN$3,'CFR - XML import'!$A95)),0,VALUE(MID('CFR - XML import'!$A95,SEARCH(\">\",'CFR - XML import'!$A95,1)+1,SEARCH(\"/\",'CFR - XML import'!$A95,1)-SEARCH(\">\",'CFR - XML import'!$A95,1)-2)))","v":0},{"$f":"IF(ISERROR(FIND(BO$3,'CFR - XML import'!$A95)),0,VALUE(MID('CFR - XML import'!$A95,SEARCH(\">\",'CFR - XML import'!$A95,1)+1,SEARCH(\"/\",'CFR - XML import'!$A95,1)-SEARCH(\">\",'CFR - XML import'!$A95,1)-2)))","v":0},{"$f":"IF(ISERROR(FIND(BP$3,'CFR - XML import'!$A95)),0,VALUE(MID('CFR - XML import'!$A95,SEARCH(\">\",'CFR - XML import'!$A95,1)+1,SEARCH(\"/\",'CFR - XML import'!$A95,1)-SEARCH(\">\",'CFR - XML import'!$A95,1)-2)))","v":0},{"$f":"IF(ISERROR(FIND(BQ$3,'CFR - XML import'!$A95)),0,VALUE(MID('CFR - XML import'!$A95,SEARCH(\">\",'CFR - XML import'!$A95,1)+1,SEARCH(\"/\",'CFR - XML import'!$A95,1)-SEARCH(\">\",'CFR - XML import'!$A95,1)-2)))","v":0},{"$f":"IF(ISERROR(FIND(BR$3,'CFR - XML import'!$A95)),0,VALUE(MID('CFR - XML import'!$A95,SEARCH(\">\",'CFR - XML import'!$A95,1)+1,SEARCH(\"/\",'CFR - XML import'!$A95,1)-SEARCH(\">\",'CFR - XML import'!$A95,1)-2)))","v":0},{"$f":"IF(ISERROR(FIND(BS$3,'CFR - XML import'!$A95)),0,VALUE(MID('CFR - XML import'!$A95,SEARCH(\">\",'CFR - XML import'!$A95,1)+1,SEARCH(\"/\",'CFR - XML import'!$A95,1)-SEARCH(\">\",'CFR - XML import'!$A95,1)-2)))","v":0},{"$f":"IF(ISERROR(FIND(BT$3,'CFR - XML import'!$A95)),0,VALUE(MID('CFR - XML import'!$A95,SEARCH(\">\",'CFR - XML import'!$A95,1)+1,SEARCH(\"/\",'CFR - XML import'!$A95,1)-SEARCH(\">\",'CFR - XML import'!$A95,1)-2)))","v":0},{"$f":"IF(ISERROR(FIND(BU$3,'CFR - XML import'!$A95)),0,VALUE(MID('CFR - XML import'!$A95,SEARCH(\">\",'CFR - XML import'!$A95,1)+1,SEARCH(\"/\",'CFR - XML import'!$A95,1)-SEARCH(\">\",'CFR - XML import'!$A95,1)-2)))","v":0},{"$f":"IF(ISERROR(FIND(BV$3,'CFR - XML import'!$A95)),0,VALUE(MID('CFR - XML import'!$A95,SEARCH(\">\",'CFR - XML import'!$A95,1)+1,SEARCH(\"/\",'CFR - XML import'!$A95,1)-SEARCH(\">\",'CFR - XML import'!$A95,1)-2)))","v":0},{"$f":"IF(ISERROR(FIND(BW$3,'CFR - XML import'!$A95)),0,VALUE(MID('CFR - XML import'!$A95,SEARCH(\">\",'CFR - XML import'!$A95,1)+1,SEARCH(\"/\",'CFR - XML import'!$A95,1)-SEARCH(\">\",'CFR - XML import'!$A95,1)-2)))","v":0},{"$f":"IF(ISERROR(FIND(BX$3,'CFR - XML import'!$A95)),0,VALUE(MID('CFR - XML import'!$A95,SEARCH(\">\",'CFR - XML import'!$A95,1)+1,SEARCH(\"/\",'CFR - XML import'!$A95,1)-SEARCH(\">\",'CFR - XML import'!$A95,1)-2)))","v":0},{"$f":"IF(ISERROR(FIND(BY$3,'CFR - XML import'!$A95)),0,VALUE(MID('CFR - XML import'!$A95,SEARCH(\">\",'CFR - XML import'!$A95,1)+1,SEARCH(\"/\",'CFR - XML import'!$A95,1)-SEARCH(\">\",'CFR - XML import'!$A95,1)-2)))","v":0},{"$f":"IF(ISERROR(FIND(BZ$3,'CFR - XML import'!$A95)),0,VALUE(MID('CFR - XML import'!$A95,SEARCH(\">\",'CFR - XML import'!$A95,1)+1,SEARCH(\"/\",'CFR - XML import'!$A95,1)-SEARCH(\">\",'CFR - XML import'!$A95,1)-2)))","v":0},null,null,null,null,null,null,{"$f":"IF(ISERROR(IF(MID('CFR - XML import'!$A95,LEN($CF$4)+1,LEN('CFR - XML import'!$A95)-(2*LEN($CF$4)+1))=\"RMMS\",1,IF(MID('CFR - XML import'!$A95,LEN(\"    <InputSystem>\")+1,LEN('CFR - XML import'!$A95)-(LEN(\"    <InputSystem>\")+LEN($CF$4)+1))=\"SIMS\",2,0))),0,IF(MID('CFR - XML import'!$A95,LEN($CF$4)+1,LEN('CFR - XML import'!$A95)-(2*LEN($CF$4)+1))=\"RMMS\",1,IF(MID('CFR - XML import'!$A95,LEN(\"    <InputSystem>\")+1,LEN('CFR - XML import'!$A95)-(LEN(\"    <InputSystem>\")+LEN($CF$4)+1))=\"SIMS\",2,0)))","v":0},{"$f":"IF(ISERROR(FIND(CH$3,'CFR - XML import'!$A95)),0,MID('CFR - XML import'!$A95,SEARCH(\">\",'CFR - XML import'!$A95,1)+1,SEARCH(\"/\",'CFR - XML import'!$A95,1)-SEARCH(\">\",'CFR - XML import'!$A95,1)-2))","v":0},{"$f":"IF(ISERROR(FIND(CI$3,'CFR - XML import'!$A95)),0,MID('CFR - XML import'!$A95,SEARCH(\">\",'CFR - XML import'!$A95,1)+1,SEARCH(\"/\",'CFR - XML import'!$A95,1)-SEARCH(\">\",'CFR - XML import'!$A95,1)-2))","v":0},{"$f":"IF(ISERROR(FIND(CJ$3,'CFR - XML import'!$A95)),0,MID('CFR - XML import'!$A95,SEARCH(\">\",'CFR - XML import'!$A95,1)+1,SEARCH(\"/\",'CFR - XML import'!$A95,1)-SEARCH(\">\",'CFR - XML import'!$A95,1)-2))","v":0},{"$f":"IF(ISERROR(FIND(CK$3,'CFR - XML import'!$A95)),0,MID('CFR - XML import'!$A95,SEARCH(\">\",'CFR - XML import'!$A95,1)+1,SEARCH(\"/\",'CFR - XML import'!$A95,1)-SEARCH(\">\",'CFR - XML import'!$A95,1)-2))","v":0},{"$f":"IF(ISERROR(FIND(CL$3,'CFR - XML import'!$A95)),0,MID('CFR - XML import'!$A95,SEARCH(\">\",'CFR - XML import'!$A95,1)+1,SEARCH(\"/\",'CFR - XML import'!$A95,1)-SEARCH(\">\",'CFR - XML import'!$A95,1)-2))","v":0}]
[{"$f":"IF(AND('CFR - XML import'!A96<>\"\",LEFT('CFR - XML import'!A96,1)<>\"<\",LEFT('CFR - XML import'!A96,3)<>\"  <\",LEFT('CFR - XML import'!A96,5)<>\"    <\",LEFT('CFR - XML import'!A96,7)<>\"      <\",LEFT('CFR - XML import'!A96,9)<>\"        <\",$B$1=\"SIMS\"),'CFR - XML import'!A96,IF(AND(LEFT('CFR - XML import'!A96,9)=\"<Details>\",$B$1=\"RM\"),'CFR - XML import'!A96,\"\"))","v":""},{"$f":"IF(ISERROR(FIND(B$3,'CFR - XML import'!$A96)),0,VALUE(MID('CFR - XML import'!$A96,SEARCH(\">\",'CFR - XML import'!$A96,1)+1,SEARCH(\"/\",'CFR - XML import'!$A96,1)-SEARCH(\">\",'CFR - XML import'!$A96,1)-2)))","v":0},null,{"$f":"IF(ISERROR(FIND(D$3,'CFR - XML import'!$A96)),0,MID('CFR - XML import'!$A96,SEARCH(\">\",'CFR - XML import'!$A96,1)+1,SEARCH(\"/\",'CFR - XML import'!$A96,1)-SEARCH(\">\",'CFR - XML import'!$A96,1)-2))","v":0},{"$f":"IF(ISERROR(FIND(E$3,'CFR - XML import'!$A96)),0,MID('CFR - XML import'!$A96,SEARCH(\">\",'CFR - XML import'!$A96,1)+1,SEARCH(\"/\",'CFR - XML import'!$A96,1)-SEARCH(\">\",'CFR - XML import'!$A96,1)-2))","v":0},{"$f":"IF($B$1=\"SIMS\",IF(ISERROR(FIND(F$3,'CFR - XML import'!$A96)),0,VALUE(MID('CFR - XML import'!$A96,15,10))),IF(ISERROR(FIND(F$3,'CFR - XML import'!$A96)),0,VALUE(MID('CFR - XML import'!$A96,11,10))))","v":"00:00:00"},{"$f":"IF(ISERROR(FIND(G$3,'CFR - XML import'!$A96)),0,VALUE(MID('CFR - XML import'!$A96,SEARCH(\">\",'CFR - XML import'!$A96,1)+1,SEARCH(\"/\",'CFR - XML import'!$A96,1)-SEARCH(\">\",'CFR - XML import'!$A96,1)-2)))","v":0},{"$f":"IF(ISERROR(FIND(H$3,'CFR - XML import'!$A96)),0,VALUE(MID('CFR - XML import'!$A96,SEARCH(\">\",'CFR - XML import'!$A96,1)+1,SEARCH(\"/\",'CFR - XML import'!$A96,1)-SEARCH(\">\",'CFR - XML import'!$A96,1)-2)))","v":0},{"$f":"IF(ISERROR(FIND(I$3,'CFR - XML import'!$A96)),0,VALUE(MID('CFR - XML import'!$A96,SEARCH(\">\",'CFR - XML import'!$A96,1)+1,SEARCH(\"/\",'CFR - XML import'!$A96,1)-SEARCH(\">\",'CFR - XML import'!$A96,1)-2)))","v":0},{"$f":"IF(ISERROR(FIND(J$3,'CFR - XML import'!$A96)),0,VALUE(MID('CFR - XML import'!$A96,SEARCH(\">\",'CFR - XML import'!$A96,1)+1,SEARCH(\"/\",'CFR - XML import'!$A96,1)-SEARCH(\">\",'CFR - XML import'!$A96,1)-2)))","v":0},{"$f":"IF(ISERROR(FIND(K$3,'CFR - XML import'!$A96)),0,VALUE(MID('CFR - XML import'!$A96,SEARCH(\">\",'CFR - XML import'!$A96,1)+1,SEARCH(\"/\",'CFR - XML import'!$A96,1)-SEARCH(\">\",'CFR - XML import'!$A96,1)-2)))","v":0},{"$f":"IF(ISERROR(FIND(L$3,'CFR - XML import'!$A96)),0,VALUE(MID('CFR - XML import'!$A96,SEARCH(\">\",'CFR - XML import'!$A96,1)+1,SEARCH(\"/\",'CFR - XML import'!$A96,1)-SEARCH(\">\",'CFR - XML import'!$A96,1)-2)))","v":0},{"$f":"IF(ISERROR(FIND(M$3,'CFR - XML import'!$A96)),0,VALUE(MID('CFR - XML import'!$A96,SEARCH(\">\",'CFR - XML import'!$A96,1)+1,SEARCH(\"/\",'CFR - XML import'!$A96,1)-SEARCH(\">\",'CFR - XML import'!$A96,1)-2)))","v":0},{"$f":"IF(ISERROR(FIND(N$3,'CFR - XML import'!$A96)),0,VALUE(MID('CFR - XML import'!$A96,SEARCH(\">\",'CFR - XML import'!$A96,1)+1,SEARCH(\"/\",'CFR - XML import'!$A96,1)-SEARCH(\">\",'CFR - XML import'!$A96,1)-2)))","v":0},{"$f":"IF(ISERROR(FIND(O$3,'CFR - XML import'!$A96)),0,VALUE(MID('CFR - XML import'!$A96,SEARCH(\">\",'CFR - XML import'!$A96,1)+1,SEARCH(\"/\",'CFR - XML import'!$A96,1)-SEARCH(\">\",'CFR - XML import'!$A96,1)-2)))","v":0},{"$f":"IF(ISERROR(FIND(P$3,'CFR - XML import'!$A96)),0,VALUE(MID('CFR - XML import'!$A96,SEARCH(\">\",'CFR - XML import'!$A96,1)+1,SEARCH(\"/\",'CFR - XML import'!$A96,1)-SEARCH(\">\",'CFR - XML import'!$A96,1)-2)))","v":0},{"$f":"IF(ISERROR(FIND(Q$3,'CFR - XML import'!$A96)),0,VALUE(MID('CFR - XML import'!$A96,SEARCH(\">\",'CFR - XML import'!$A96,1)+1,SEARCH(\"/\",'CFR - XML import'!$A96,1)-SEARCH(\">\",'CFR - XML import'!$A96,1)-2)))","v":0},{"$f":"IF(ISERROR(FIND(R$3,'CFR - XML import'!$A96)),0,VALUE(MID('CFR - XML import'!$A96,SEARCH(\">\",'CFR - XML import'!$A96,1)+1,SEARCH(\"/\",'CFR - XML import'!$A96,1)-SEARCH(\">\",'CFR - XML import'!$A96,1)-2)))","v":0},{"$f":"IF(ISERROR(FIND(S$3,'CFR - XML import'!$A96)),0,VALUE(MID('CFR - XML import'!$A96,SEARCH(\">\",'CFR - XML import'!$A96,1)+1,SEARCH(\"/\",'CFR - XML import'!$A96,1)-SEARCH(\">\",'CFR - XML import'!$A96,1)-2)))","v":0},{"$f":"IF(ISERROR(FIND(T$3,'CFR - XML import'!$A96)),0,VALUE(MID('CFR - XML import'!$A96,SEARCH(\">\",'CFR - XML import'!$A96,1)+1,SEARCH(\"/\",'CFR - XML import'!$A96,1)-SEARCH(\">\",'CFR - XML import'!$A96,1)-2)))","v":0},{"$f":"IF(ISERROR(FIND(U$3,'CFR - XML import'!$A96)),0,VALUE(MID('CFR - XML import'!$A96,SEARCH(\">\",'CFR - XML import'!$A96,1)+1,SEARCH(\"/\",'CFR - XML import'!$A96,1)-SEARCH(\">\",'CFR - XML import'!$A96,1)-2)))","v":0},{"$f":"IF(ISERROR(FIND(V$3,'CFR - XML import'!$A96)),0,VALUE(MID('CFR - XML import'!$A96,SEARCH(\">\",'CFR - XML import'!$A96,1)+1,SEARCH(\"/\",'CFR - XML import'!$A96,1)-SEARCH(\">\",'CFR - XML import'!$A96,1)-2)))","v":0},{"$f":"IF(ISERROR(FIND(W$3,'CFR - XML import'!$A96)),0,VALUE(MID('CFR - XML import'!$A96,SEARCH(\">\",'CFR - XML import'!$A96,1)+1,SEARCH(\"/\",'CFR - XML import'!$A96,1)-SEARCH(\">\",'CFR - XML import'!$A96,1)-2)))","v":0},null,{"$f":"IF(ISERROR(FIND(Y$3,'CFR - XML import'!$A96)),0,VALUE(MID('CFR - XML import'!$A96,SEARCH(\">\",'CFR - XML import'!$A96,1)+1,SEARCH(\"/\",'CFR - XML import'!$A96,1)-SEARCH(\">\",'CFR - XML import'!$A96,1)-2)))","v":0},{"$f":"IF(ISERROR(FIND(Z$3,'CFR - XML import'!$A96)),0,VALUE(MID('CFR - XML import'!$A96,SEARCH(\">\",'CFR - XML import'!$A96,1)+1,SEARCH(\"/\",'CFR - XML import'!$A96,1)-SEARCH(\">\",'CFR - XML import'!$A96,1)-2)))","v":0},{"$f":"IF(ISERROR(FIND(AA$3,'CFR - XML import'!$A96)),0,VALUE(MID('CFR - XML import'!$A96,SEARCH(\">\",'CFR - XML import'!$A96,1)+1,SEARCH(\"/\",'CFR - XML import'!$A96,1)-SEARCH(\">\",'CFR - XML import'!$A96,1)-2)))","v":0},{"$f":"IF(ISERROR(FIND(AB$3,'CFR - XML import'!$A96)),0,VALUE(MID('CFR - XML import'!$A96,SEARCH(\">\",'CFR - XML import'!$A96,1)+1,SEARCH(\"/\",'CFR - XML import'!$A96,1)-SEARCH(\">\",'CFR - XML import'!$A96,1)-2)))","v":0},{"$f":"IF(ISERROR(FIND(AC$3,'CFR - XML import'!$A96)),0,VALUE(MID('CFR - XML import'!$A96,SEARCH(\">\",'CFR - XML import'!$A96,1)+1,SEARCH(\"/\",'CFR - XML import'!$A96,1)-SEARCH(\">\",'CFR - XML import'!$A96,1)-2)))","v":0},{"$f":"IF(ISERROR(FIND(AD$3,'CFR - XML import'!$A96)),0,VALUE(MID('CFR - XML import'!$A96,SEARCH(\">\",'CFR - XML import'!$A96,1)+1,SEARCH(\"/\",'CFR - XML import'!$A96,1)-SEARCH(\">\",'CFR - XML import'!$A96,1)-2)))","v":0},{"$f":"IF(ISERROR(FIND(AE$3,'CFR - XML import'!$A96)),0,VALUE(MID('CFR - XML import'!$A96,SEARCH(\">\",'CFR - XML import'!$A96,1)+1,SEARCH(\"/\",'CFR - XML import'!$A96,1)-SEARCH(\">\",'CFR - XML import'!$A96,1)-2)))","v":0},{"$f":"IF(ISERROR(FIND(AF$3,'CFR - XML import'!$A96)),0,VALUE(MID('CFR - XML import'!$A96,SEARCH(\">\",'CFR - XML import'!$A96,1)+1,SEARCH(\"/\",'CFR - XML import'!$A96,1)-SEARCH(\">\",'CFR - XML import'!$A96,1)-2)))","v":0},{"$f":"IF(ISERROR(FIND(AG$3,'CFR - XML import'!$A96)),0,VALUE(MID('CFR - XML import'!$A96,SEARCH(\">\",'CFR - XML import'!$A96,1)+1,SEARCH(\"/\",'CFR - XML import'!$A96,1)-SEARCH(\">\",'CFR - XML import'!$A96,1)-2)))","v":0},{"$f":"IF(ISERROR(FIND(AH$3,'CFR - XML import'!$A96)),0,VALUE(MID('CFR - XML import'!$A96,SEARCH(\">\",'CFR - XML import'!$A96,1)+1,SEARCH(\"/\",'CFR - XML import'!$A96,1)-SEARCH(\">\",'CFR - XML import'!$A96,1)-2)))","v":0},{"$f":"IF(ISERROR(FIND(AI$3,'CFR - XML import'!$A96)),0,VALUE(MID('CFR - XML import'!$A96,SEARCH(\">\",'CFR - XML import'!$A96,1)+1,SEARCH(\"/\",'CFR - XML import'!$A96,1)-SEARCH(\">\",'CFR - XML import'!$A96,1)-2)))","v":0},{"$f":"IF(ISERROR(FIND(AJ$3,'CFR - XML import'!$A96)),0,VALUE(MID('CFR - XML import'!$A96,SEARCH(\">\",'CFR - XML import'!$A96,1)+1,SEARCH(\"/\",'CFR - XML import'!$A96,1)-SEARCH(\">\",'CFR - XML import'!$A96,1)-2)))","v":0},{"$f":"IF(ISERROR(FIND(AK$3,'CFR - XML import'!$A96)),0,VALUE(MID('CFR - XML import'!$A96,SEARCH(\">\",'CFR - XML import'!$A96,1)+1,SEARCH(\"/\",'CFR - XML import'!$A96,1)-SEARCH(\">\",'CFR - XML import'!$A96,1)-2)))","v":0},{"$f":"IF(ISERROR(FIND(AL$3,'CFR - XML import'!$A96)),0,VALUE(MID('CFR - XML import'!$A96,SEARCH(\">\",'CFR - XML import'!$A96,1)+1,SEARCH(\"/\",'CFR - XML import'!$A96,1)-SEARCH(\">\",'CFR - XML import'!$A96,1)-2)))","v":0},{"$f":"IF(ISERROR(FIND(AM$3,'CFR - XML import'!$A96)),0,VALUE(MID('CFR - XML import'!$A96,SEARCH(\">\",'CFR - XML import'!$A96,1)+1,SEARCH(\"/\",'CFR - XML import'!$A96,1)-SEARCH(\">\",'CFR - XML import'!$A96,1)-2)))","v":0},{"$f":"IF(ISERROR(FIND(AN$3,'CFR - XML import'!$A96)),0,VALUE(MID('CFR - XML import'!$A96,SEARCH(\">\",'CFR - XML import'!$A96,1)+1,SEARCH(\"/\",'CFR - XML import'!$A96,1)-SEARCH(\">\",'CFR - XML import'!$A96,1)-2)))","v":0},{"$f":"IF(ISERROR(FIND(AO$3,'CFR - XML import'!$A96)),0,VALUE(MID('CFR - XML import'!$A96,SEARCH(\">\",'CFR - XML import'!$A96,1)+1,SEARCH(\"/\",'CFR - XML import'!$A96,1)-SEARCH(\">\",'CFR - XML import'!$A96,1)-2)))","v":0},{"$f":"IF(ISERROR(FIND(AP$3,'CFR - XML import'!$A96)),0,VALUE(MID('CFR - XML import'!$A96,SEARCH(\">\",'CFR - XML import'!$A96,1)+1,SEARCH(\"/\",'CFR - XML import'!$A96,1)-SEARCH(\">\",'CFR - XML import'!$A96,1)-2)))","v":0},{"$f":"IF(ISERROR(FIND(AQ$3,'CFR - XML import'!$A96)),0,VALUE(MID('CFR - XML import'!$A96,SEARCH(\">\",'CFR - XML import'!$A96,1)+1,SEARCH(\"/\",'CFR - XML import'!$A96,1)-SEARCH(\">\",'CFR - XML import'!$A96,1)-2)))","v":0},{"$f":"IF(ISERROR(FIND(AR$3,'CFR - XML import'!$A96)),0,VALUE(MID('CFR - XML import'!$A96,SEARCH(\">\",'CFR - XML import'!$A96,1)+1,SEARCH(\"/\",'CFR - XML import'!$A96,1)-SEARCH(\">\",'CFR - XML import'!$A96,1)-2)))","v":0},{"$f":"IF(ISERROR(FIND(AS$3,'CFR - XML import'!$A96)),0,VALUE(MID('CFR - XML import'!$A96,SEARCH(\">\",'CFR - XML import'!$A96,1)+1,SEARCH(\"/\",'CFR - XML import'!$A96,1)-SEARCH(\">\",'CFR - XML import'!$A96,1)-2)))","v":0},{"$f":"IF(ISERROR(FIND(AT$3,'CFR - XML import'!$A96)),0,VALUE(MID('CFR - XML import'!$A96,SEARCH(\">\",'CFR - XML import'!$A96,1)+1,SEARCH(\"/\",'CFR - XML import'!$A96,1)-SEARCH(\">\",'CFR - XML import'!$A96,1)-2)))","v":0},{"$f":"IF(ISERROR(FIND(AU$3,'CFR - XML import'!$A96)),0,VALUE(MID('CFR - XML import'!$A96,SEARCH(\">\",'CFR - XML import'!$A96,1)+1,SEARCH(\"/\",'CFR - XML import'!$A96,1)-SEARCH(\">\",'CFR - XML import'!$A96,1)-2)))","v":0},{"$f":"IF(ISERROR(FIND(AV$3,'CFR - XML import'!$A96)),0,VALUE(MID('CFR - XML import'!$A96,SEARCH(\">\",'CFR - XML import'!$A96,1)+1,SEARCH(\"/\",'CFR - XML import'!$A96,1)-SEARCH(\">\",'CFR - XML import'!$A96,1)-2)))","v":0},{"$f":"IF(ISERROR(FIND(AW$3,'CFR - XML import'!$A96)),0,VALUE(MID('CFR - XML import'!$A96,SEARCH(\">\",'CFR - XML import'!$A96,1)+1,SEARCH(\"/\",'CFR - XML import'!$A96,1)-SEARCH(\">\",'CFR - XML import'!$A96,1)-2)))","v":0},{"$f":"IF(ISERROR(FIND(AX$3,'CFR - XML import'!$A96)),0,VALUE(MID('CFR - XML import'!$A96,SEARCH(\">\",'CFR - XML import'!$A96,1)+1,SEARCH(\"/\",'CFR - XML import'!$A96,1)-SEARCH(\">\",'CFR - XML import'!$A96,1)-2)))","v":0},{"$f":"IF(ISERROR(FIND(AY$3,'CFR - XML import'!$A96)),0,VALUE(MID('CFR - XML import'!$A96,SEARCH(\">\",'CFR - XML import'!$A96,1)+1,SEARCH(\"/\",'CFR - XML import'!$A96,1)-SEARCH(\">\",'CFR - XML import'!$A96,1)-2)))","v":0},{"$f":"IF(ISERROR(FIND(AZ$3,'CFR - XML import'!$A96)),0,VALUE(MID('CFR - XML import'!$A96,SEARCH(\">\",'CFR - XML import'!$A96,1)+1,SEARCH(\"/\",'CFR - XML import'!$A96,1)-SEARCH(\">\",'CFR - XML import'!$A96,1)-2)))","v":0},{"$f":"IF(ISERROR(FIND(BA$3,'CFR - XML import'!$A96)),0,VALUE(MID('CFR - XML import'!$A96,SEARCH(\">\",'CFR - XML import'!$A96,1)+1,SEARCH(\"/\",'CFR - XML import'!$A96,1)-SEARCH(\">\",'CFR - XML import'!$A96,1)-2)))","v":0},{"$f":"IF(ISERROR(FIND(BB$3,'CFR - XML import'!$A96)),0,VALUE(MID('CFR - XML import'!$A96,SEARCH(\">\",'CFR - XML import'!$A96,1)+1,SEARCH(\"/\",'CFR - XML import'!$A96,1)-SEARCH(\">\",'CFR - XML import'!$A96,1)-2)))","v":0},{"$f":"IF(ISERROR(FIND(BC$3,'CFR - XML import'!$A96)),0,VALUE(MID('CFR - XML import'!$A96,SEARCH(\">\",'CFR - XML import'!$A96,1)+1,SEARCH(\"/\",'CFR - XML import'!$A96,1)-SEARCH(\">\",'CFR - XML import'!$A96,1)-2)))","v":0},{"$f":"IF(ISERROR(FIND(BD$3,'CFR - XML import'!$A96)),0,VALUE(MID('CFR - XML import'!$A96,SEARCH(\">\",'CFR - XML import'!$A96,1)+1,SEARCH(\"/\",'CFR - XML import'!$A96,1)-SEARCH(\">\",'CFR - XML import'!$A96,1)-2)))","v":0},{"$f":"IF(ISERROR(FIND(BE$3,'CFR - XML import'!$A96)),0,VALUE(MID('CFR - XML import'!$A96,SEARCH(\">\",'CFR - XML import'!$A96,1)+1,SEARCH(\"/\",'CFR - XML import'!$A96,1)-SEARCH(\">\",'CFR - XML import'!$A96,1)-2)))","v":0},{"$f":"IF(ISERROR(FIND(BF$3,'CFR - XML import'!$A96)),0,VALUE(MID('CFR - XML import'!$A96,SEARCH(\">\",'CFR - XML import'!$A96,1)+1,SEARCH(\"/\",'CFR - XML import'!$A96,1)-SEARCH(\">\",'CFR - XML import'!$A96,1)-2)))","v":0},{"$f":"IF(ISERROR(FIND(BG$3,'CFR - XML import'!$A96)),0,VALUE(MID('CFR - XML import'!$A96,SEARCH(\">\",'CFR - XML import'!$A96,1)+1,SEARCH(\"/\",'CFR - XML import'!$A96,1)-SEARCH(\">\",'CFR - XML import'!$A96,1)-2)))","v":0},{"$f":"IF(ISERROR(FIND(BH$3,'CFR - XML import'!$A96)),0,VALUE(MID('CFR - XML import'!$A96,SEARCH(\">\",'CFR - XML import'!$A96,1)+1,SEARCH(\"/\",'CFR - XML import'!$A96,1)-SEARCH(\">\",'CFR - XML import'!$A96,1)-2)))","v":0},{"$f":"IF(ISERROR(FIND(BI$3,'CFR - XML import'!$A96)),0,VALUE(MID('CFR - XML import'!$A96,SEARCH(\">\",'CFR - XML import'!$A96,1)+1,SEARCH(\"/\",'CFR - XML import'!$A96,1)-SEARCH(\">\",'CFR - XML import'!$A96,1)-2)))","v":0},{"$f":"IF(ISERROR(FIND(BJ$3,'CFR - XML import'!$A96)),0,VALUE(MID('CFR - XML import'!$A96,SEARCH(\">\",'CFR - XML import'!$A96,1)+1,SEARCH(\"/\",'CFR - XML import'!$A96,1)-SEARCH(\">\",'CFR - XML import'!$A96,1)-2)))","v":0},{"$f":"IF(ISERROR(FIND(BK$3,'CFR - XML import'!$A96)),0,VALUE(MID('CFR - XML import'!$A96,SEARCH(\">\",'CFR - XML import'!$A96,1)+1,SEARCH(\"/\",'CFR - XML import'!$A96,1)-SEARCH(\">\",'CFR - XML import'!$A96,1)-2)))","v":0},{"$f":"IF(ISERROR(FIND(BL$3,'CFR - XML import'!$A96)),0,VALUE(MID('CFR - XML import'!$A96,SEARCH(\">\",'CFR - XML import'!$A96,1)+1,SEARCH(\"/\",'CFR - XML import'!$A96,1)-SEARCH(\">\",'CFR - XML import'!$A96,1)-2)))","v":0},{"$f":"IF(ISERROR(FIND(BM$3,'CFR - XML import'!$A96)),0,VALUE(MID('CFR - XML import'!$A96,SEARCH(\">\",'CFR - XML import'!$A96,1)+1,SEARCH(\"/\",'CFR - XML import'!$A96,1)-SEARCH(\">\",'CFR - XML import'!$A96,1)-2)))","v":0},{"$f":"IF(ISERROR(FIND(BN$3,'CFR - XML import'!$A96)),0,VALUE(MID('CFR - XML import'!$A96,SEARCH(\">\",'CFR - XML import'!$A96,1)+1,SEARCH(\"/\",'CFR - XML import'!$A96,1)-SEARCH(\">\",'CFR - XML import'!$A96,1)-2)))","v":0},{"$f":"IF(ISERROR(FIND(BO$3,'CFR - XML import'!$A96)),0,VALUE(MID('CFR - XML import'!$A96,SEARCH(\">\",'CFR - XML import'!$A96,1)+1,SEARCH(\"/\",'CFR - XML import'!$A96,1)-SEARCH(\">\",'CFR - XML import'!$A96,1)-2)))","v":0},{"$f":"IF(ISERROR(FIND(BP$3,'CFR - XML import'!$A96)),0,VALUE(MID('CFR - XML import'!$A96,SEARCH(\">\",'CFR - XML import'!$A96,1)+1,SEARCH(\"/\",'CFR - XML import'!$A96,1)-SEARCH(\">\",'CFR - XML import'!$A96,1)-2)))","v":0},{"$f":"IF(ISERROR(FIND(BQ$3,'CFR - XML import'!$A96)),0,VALUE(MID('CFR - XML import'!$A96,SEARCH(\">\",'CFR - XML import'!$A96,1)+1,SEARCH(\"/\",'CFR - XML import'!$A96,1)-SEARCH(\">\",'CFR - XML import'!$A96,1)-2)))","v":0},{"$f":"IF(ISERROR(FIND(BR$3,'CFR - XML import'!$A96)),0,VALUE(MID('CFR - XML import'!$A96,SEARCH(\">\",'CFR - XML import'!$A96,1)+1,SEARCH(\"/\",'CFR - XML import'!$A96,1)-SEARCH(\">\",'CFR - XML import'!$A96,1)-2)))","v":0},{"$f":"IF(ISERROR(FIND(BS$3,'CFR - XML import'!$A96)),0,VALUE(MID('CFR - XML import'!$A96,SEARCH(\">\",'CFR - XML import'!$A96,1)+1,SEARCH(\"/\",'CFR - XML import'!$A96,1)-SEARCH(\">\",'CFR - XML import'!$A96,1)-2)))","v":0},{"$f":"IF(ISERROR(FIND(BT$3,'CFR - XML import'!$A96)),0,VALUE(MID('CFR - XML import'!$A96,SEARCH(\">\",'CFR - XML import'!$A96,1)+1,SEARCH(\"/\",'CFR - XML import'!$A96,1)-SEARCH(\">\",'CFR - XML import'!$A96,1)-2)))","v":0},{"$f":"IF(ISERROR(FIND(BU$3,'CFR - XML import'!$A96)),0,VALUE(MID('CFR - XML import'!$A96,SEARCH(\">\",'CFR - XML import'!$A96,1)+1,SEARCH(\"/\",'CFR - XML import'!$A96,1)-SEARCH(\">\",'CFR - XML import'!$A96,1)-2)))","v":0},{"$f":"IF(ISERROR(FIND(BV$3,'CFR - XML import'!$A96)),0,VALUE(MID('CFR - XML import'!$A96,SEARCH(\">\",'CFR - XML import'!$A96,1)+1,SEARCH(\"/\",'CFR - XML import'!$A96,1)-SEARCH(\">\",'CFR - XML import'!$A96,1)-2)))","v":0},{"$f":"IF(ISERROR(FIND(BW$3,'CFR - XML import'!$A96)),0,VALUE(MID('CFR - XML import'!$A96,SEARCH(\">\",'CFR - XML import'!$A96,1)+1,SEARCH(\"/\",'CFR - XML import'!$A96,1)-SEARCH(\">\",'CFR - XML import'!$A96,1)-2)))","v":0},{"$f":"IF(ISERROR(FIND(BX$3,'CFR - XML import'!$A96)),0,VALUE(MID('CFR - XML import'!$A96,SEARCH(\">\",'CFR - XML import'!$A96,1)+1,SEARCH(\"/\",'CFR - XML import'!$A96,1)-SEARCH(\">\",'CFR - XML import'!$A96,1)-2)))","v":0},{"$f":"IF(ISERROR(FIND(BY$3,'CFR - XML import'!$A96)),0,VALUE(MID('CFR - XML import'!$A96,SEARCH(\">\",'CFR - XML import'!$A96,1)+1,SEARCH(\"/\",'CFR - XML import'!$A96,1)-SEARCH(\">\",'CFR - XML import'!$A96,1)-2)))","v":0},{"$f":"IF(ISERROR(FIND(BZ$3,'CFR - XML import'!$A96)),0,VALUE(MID('CFR - XML import'!$A96,SEARCH(\">\",'CFR - XML import'!$A96,1)+1,SEARCH(\"/\",'CFR - XML import'!$A96,1)-SEARCH(\">\",'CFR - XML import'!$A96,1)-2)))","v":0},null,null,null,null,null,null,{"$f":"IF(ISERROR(IF(MID('CFR - XML import'!$A96,LEN($CF$4)+1,LEN('CFR - XML import'!$A96)-(2*LEN($CF$4)+1))=\"RMMS\",1,IF(MID('CFR - XML import'!$A96,LEN(\"    <InputSystem>\")+1,LEN('CFR - XML import'!$A96)-(LEN(\"    <InputSystem>\")+LEN($CF$4)+1))=\"SIMS\",2,0))),0,IF(MID('CFR - XML import'!$A96,LEN($CF$4)+1,LEN('CFR - XML import'!$A96)-(2*LEN($CF$4)+1))=\"RMMS\",1,IF(MID('CFR - XML import'!$A96,LEN(\"    <InputSystem>\")+1,LEN('CFR - XML import'!$A96)-(LEN(\"    <InputSystem>\")+LEN($CF$4)+1))=\"SIMS\",2,0)))","v":0},{"$f":"IF(ISERROR(FIND(CH$3,'CFR - XML import'!$A96)),0,MID('CFR - XML import'!$A96,SEARCH(\">\",'CFR - XML import'!$A96,1)+1,SEARCH(\"/\",'CFR - XML import'!$A96,1)-SEARCH(\">\",'CFR - XML import'!$A96,1)-2))","v":0},{"$f":"IF(ISERROR(FIND(CI$3,'CFR - XML import'!$A96)),0,MID('CFR - XML import'!$A96,SEARCH(\">\",'CFR - XML import'!$A96,1)+1,SEARCH(\"/\",'CFR - XML import'!$A96,1)-SEARCH(\">\",'CFR - XML import'!$A96,1)-2))","v":0},{"$f":"IF(ISERROR(FIND(CJ$3,'CFR - XML import'!$A96)),0,MID('CFR - XML import'!$A96,SEARCH(\">\",'CFR - XML import'!$A96,1)+1,SEARCH(\"/\",'CFR - XML import'!$A96,1)-SEARCH(\">\",'CFR - XML import'!$A96,1)-2))","v":0},{"$f":"IF(ISERROR(FIND(CK$3,'CFR - XML import'!$A96)),0,MID('CFR - XML import'!$A96,SEARCH(\">\",'CFR - XML import'!$A96,1)+1,SEARCH(\"/\",'CFR - XML import'!$A96,1)-SEARCH(\">\",'CFR - XML import'!$A96,1)-2))","v":0},{"$f":"IF(ISERROR(FIND(CL$3,'CFR - XML import'!$A96)),0,MID('CFR - XML import'!$A96,SEARCH(\">\",'CFR - XML import'!$A96,1)+1,SEARCH(\"/\",'CFR - XML import'!$A96,1)-SEARCH(\">\",'CFR - XML import'!$A96,1)-2))","v":0}]
[{"$f":"IF(AND('CFR - XML import'!A97<>\"\",LEFT('CFR - XML import'!A97,1)<>\"<\",LEFT('CFR - XML import'!A97,3)<>\"  <\",LEFT('CFR - XML import'!A97,5)<>\"    <\",LEFT('CFR - XML import'!A97,7)<>\"      <\",LEFT('CFR - XML import'!A97,9)<>\"        <\",$B$1=\"SIMS\"),'CFR - XML import'!A97,IF(AND(LEFT('CFR - XML import'!A97,9)=\"<Details>\",$B$1=\"RM\"),'CFR - XML import'!A97,\"\"))","v":""},{"$f":"IF(ISERROR(FIND(B$3,'CFR - XML import'!$A97)),0,VALUE(MID('CFR - XML import'!$A97,SEARCH(\">\",'CFR - XML import'!$A97,1)+1,SEARCH(\"/\",'CFR - XML import'!$A97,1)-SEARCH(\">\",'CFR - XML import'!$A97,1)-2)))","v":0},null,{"$f":"IF(ISERROR(FIND(D$3,'CFR - XML import'!$A97)),0,MID('CFR - XML import'!$A97,SEARCH(\">\",'CFR - XML import'!$A97,1)+1,SEARCH(\"/\",'CFR - XML import'!$A97,1)-SEARCH(\">\",'CFR - XML import'!$A97,1)-2))","v":0},{"$f":"IF(ISERROR(FIND(E$3,'CFR - XML import'!$A97)),0,MID('CFR - XML import'!$A97,SEARCH(\">\",'CFR - XML import'!$A97,1)+1,SEARCH(\"/\",'CFR - XML import'!$A97,1)-SEARCH(\">\",'CFR - XML import'!$A97,1)-2))","v":0},{"$f":"IF($B$1=\"SIMS\",IF(ISERROR(FIND(F$3,'CFR - XML import'!$A97)),0,VALUE(MID('CFR - XML import'!$A97,15,10))),IF(ISERROR(FIND(F$3,'CFR - XML import'!$A97)),0,VALUE(MID('CFR - XML import'!$A97,11,10))))","v":"00:00:00"},{"$f":"IF(ISERROR(FIND(G$3,'CFR - XML import'!$A97)),0,VALUE(MID('CFR - XML import'!$A97,SEARCH(\">\",'CFR - XML import'!$A97,1)+1,SEARCH(\"/\",'CFR - XML import'!$A97,1)-SEARCH(\">\",'CFR - XML import'!$A97,1)-2)))","v":0},{"$f":"IF(ISERROR(FIND(H$3,'CFR - XML import'!$A97)),0,VALUE(MID('CFR - XML import'!$A97,SEARCH(\">\",'CFR - XML import'!$A97,1)+1,SEARCH(\"/\",'CFR - XML import'!$A97,1)-SEARCH(\">\",'CFR - XML import'!$A97,1)-2)))","v":0},{"$f":"IF(ISERROR(FIND(I$3,'CFR - XML import'!$A97)),0,VALUE(MID('CFR - XML import'!$A97,SEARCH(\">\",'CFR - XML import'!$A97,1)+1,SEARCH(\"/\",'CFR - XML import'!$A97,1)-SEARCH(\">\",'CFR - XML import'!$A97,1)-2)))","v":0},{"$f":"IF(ISERROR(FIND(J$3,'CFR - XML import'!$A97)),0,VALUE(MID('CFR - XML import'!$A97,SEARCH(\">\",'CFR - XML import'!$A97,1)+1,SEARCH(\"/\",'CFR - XML import'!$A97,1)-SEARCH(\">\",'CFR - XML import'!$A97,1)-2)))","v":0},{"$f":"IF(ISERROR(FIND(K$3,'CFR - XML import'!$A97)),0,VALUE(MID('CFR - XML import'!$A97,SEARCH(\">\",'CFR - XML import'!$A97,1)+1,SEARCH(\"/\",'CFR - XML import'!$A97,1)-SEARCH(\">\",'CFR - XML import'!$A97,1)-2)))","v":0},{"$f":"IF(ISERROR(FIND(L$3,'CFR - XML import'!$A97)),0,VALUE(MID('CFR - XML import'!$A97,SEARCH(\">\",'CFR - XML import'!$A97,1)+1,SEARCH(\"/\",'CFR - XML import'!$A97,1)-SEARCH(\">\",'CFR - XML import'!$A97,1)-2)))","v":0},{"$f":"IF(ISERROR(FIND(M$3,'CFR - XML import'!$A97)),0,VALUE(MID('CFR - XML import'!$A97,SEARCH(\">\",'CFR - XML import'!$A97,1)+1,SEARCH(\"/\",'CFR - XML import'!$A97,1)-SEARCH(\">\",'CFR - XML import'!$A97,1)-2)))","v":0},{"$f":"IF(ISERROR(FIND(N$3,'CFR - XML import'!$A97)),0,VALUE(MID('CFR - XML import'!$A97,SEARCH(\">\",'CFR - XML import'!$A97,1)+1,SEARCH(\"/\",'CFR - XML import'!$A97,1)-SEARCH(\">\",'CFR - XML import'!$A97,1)-2)))","v":0},{"$f":"IF(ISERROR(FIND(O$3,'CFR - XML import'!$A97)),0,VALUE(MID('CFR - XML import'!$A97,SEARCH(\">\",'CFR - XML import'!$A97,1)+1,SEARCH(\"/\",'CFR - XML import'!$A97,1)-SEARCH(\">\",'CFR - XML import'!$A97,1)-2)))","v":0},{"$f":"IF(ISERROR(FIND(P$3,'CFR - XML import'!$A97)),0,VALUE(MID('CFR - XML import'!$A97,SEARCH(\">\",'CFR - XML import'!$A97,1)+1,SEARCH(\"/\",'CFR - XML import'!$A97,1)-SEARCH(\">\",'CFR - XML import'!$A97,1)-2)))","v":0},{"$f":"IF(ISERROR(FIND(Q$3,'CFR - XML import'!$A97)),0,VALUE(MID('CFR - XML import'!$A97,SEARCH(\">\",'CFR - XML import'!$A97,1)+1,SEARCH(\"/\",'CFR - XML import'!$A97,1)-SEARCH(\">\",'CFR - XML import'!$A97,1)-2)))","v":0},{"$f":"IF(ISERROR(FIND(R$3,'CFR - XML import'!$A97)),0,VALUE(MID('CFR - XML import'!$A97,SEARCH(\">\",'CFR - XML import'!$A97,1)+1,SEARCH(\"/\",'CFR - XML import'!$A97,1)-SEARCH(\">\",'CFR - XML import'!$A97,1)-2)))","v":0},{"$f":"IF(ISERROR(FIND(S$3,'CFR - XML import'!$A97)),0,VALUE(MID('CFR - XML import'!$A97,SEARCH(\">\",'CFR - XML import'!$A97,1)+1,SEARCH(\"/\",'CFR - XML import'!$A97,1)-SEARCH(\">\",'CFR - XML import'!$A97,1)-2)))","v":0},{"$f":"IF(ISERROR(FIND(T$3,'CFR - XML import'!$A97)),0,VALUE(MID('CFR - XML import'!$A97,SEARCH(\">\",'CFR - XML import'!$A97,1)+1,SEARCH(\"/\",'CFR - XML import'!$A97,1)-SEARCH(\">\",'CFR - XML import'!$A97,1)-2)))","v":0},{"$f":"IF(ISERROR(FIND(U$3,'CFR - XML import'!$A97)),0,VALUE(MID('CFR - XML import'!$A97,SEARCH(\">\",'CFR - XML import'!$A97,1)+1,SEARCH(\"/\",'CFR - XML import'!$A97,1)-SEARCH(\">\",'CFR - XML import'!$A97,1)-2)))","v":0},{"$f":"IF(ISERROR(FIND(V$3,'CFR - XML import'!$A97)),0,VALUE(MID('CFR - XML import'!$A97,SEARCH(\">\",'CFR - XML import'!$A97,1)+1,SEARCH(\"/\",'CFR - XML import'!$A97,1)-SEARCH(\">\",'CFR - XML import'!$A97,1)-2)))","v":0},{"$f":"IF(ISERROR(FIND(W$3,'CFR - XML import'!$A97)),0,VALUE(MID('CFR - XML import'!$A97,SEARCH(\">\",'CFR - XML import'!$A97,1)+1,SEARCH(\"/\",'CFR - XML import'!$A97,1)-SEARCH(\">\",'CFR - XML import'!$A97,1)-2)))","v":0},null,{"$f":"IF(ISERROR(FIND(Y$3,'CFR - XML import'!$A97)),0,VALUE(MID('CFR - XML import'!$A97,SEARCH(\">\",'CFR - XML import'!$A97,1)+1,SEARCH(\"/\",'CFR - XML import'!$A97,1)-SEARCH(\">\",'CFR - XML import'!$A97,1)-2)))","v":0},{"$f":"IF(ISERROR(FIND(Z$3,'CFR - XML import'!$A97)),0,VALUE(MID('CFR - XML import'!$A97,SEARCH(\">\",'CFR - XML import'!$A97,1)+1,SEARCH(\"/\",'CFR - XML import'!$A97,1)-SEARCH(\">\",'CFR - XML import'!$A97,1)-2)))","v":0},{"$f":"IF(ISERROR(FIND(AA$3,'CFR - XML import'!$A97)),0,VALUE(MID('CFR - XML import'!$A97,SEARCH(\">\",'CFR - XML import'!$A97,1)+1,SEARCH(\"/\",'CFR - XML import'!$A97,1)-SEARCH(\">\",'CFR - XML import'!$A97,1)-2)))","v":0},{"$f":"IF(ISERROR(FIND(AB$3,'CFR - XML import'!$A97)),0,VALUE(MID('CFR - XML import'!$A97,SEARCH(\">\",'CFR - XML import'!$A97,1)+1,SEARCH(\"/\",'CFR - XML import'!$A97,1)-SEARCH(\">\",'CFR - XML import'!$A97,1)-2)))","v":0},{"$f":"IF(ISERROR(FIND(AC$3,'CFR - XML import'!$A97)),0,VALUE(MID('CFR - XML import'!$A97,SEARCH(\">\",'CFR - XML import'!$A97,1)+1,SEARCH(\"/\",'CFR - XML import'!$A97,1)-SEARCH(\">\",'CFR - XML import'!$A97,1)-2)))","v":0},{"$f":"IF(ISERROR(FIND(AD$3,'CFR - XML import'!$A97)),0,VALUE(MID('CFR - XML import'!$A97,SEARCH(\">\",'CFR - XML import'!$A97,1)+1,SEARCH(\"/\",'CFR - XML import'!$A97,1)-SEARCH(\">\",'CFR - XML import'!$A97,1)-2)))","v":0},{"$f":"IF(ISERROR(FIND(AE$3,'CFR - XML import'!$A97)),0,VALUE(MID('CFR - XML import'!$A97,SEARCH(\">\",'CFR - XML import'!$A97,1)+1,SEARCH(\"/\",'CFR - XML import'!$A97,1)-SEARCH(\">\",'CFR - XML import'!$A97,1)-2)))","v":0},{"$f":"IF(ISERROR(FIND(AF$3,'CFR - XML import'!$A97)),0,VALUE(MID('CFR - XML import'!$A97,SEARCH(\">\",'CFR - XML import'!$A97,1)+1,SEARCH(\"/\",'CFR - XML import'!$A97,1)-SEARCH(\">\",'CFR - XML import'!$A97,1)-2)))","v":0},{"$f":"IF(ISERROR(FIND(AG$3,'CFR - XML import'!$A97)),0,VALUE(MID('CFR - XML import'!$A97,SEARCH(\">\",'CFR - XML import'!$A97,1)+1,SEARCH(\"/\",'CFR - XML import'!$A97,1)-SEARCH(\">\",'CFR - XML import'!$A97,1)-2)))","v":0},{"$f":"IF(ISERROR(FIND(AH$3,'CFR - XML import'!$A97)),0,VALUE(MID('CFR - XML import'!$A97,SEARCH(\">\",'CFR - XML import'!$A97,1)+1,SEARCH(\"/\",'CFR - XML import'!$A97,1)-SEARCH(\">\",'CFR - XML import'!$A97,1)-2)))","v":0},{"$f":"IF(ISERROR(FIND(AI$3,'CFR - XML import'!$A97)),0,VALUE(MID('CFR - XML import'!$A97,SEARCH(\">\",'CFR - XML import'!$A97,1)+1,SEARCH(\"/\",'CFR - XML import'!$A97,1)-SEARCH(\">\",'CFR - XML import'!$A97,1)-2)))","v":0},{"$f":"IF(ISERROR(FIND(AJ$3,'CFR - XML import'!$A97)),0,VALUE(MID('CFR - XML import'!$A97,SEARCH(\">\",'CFR - XML import'!$A97,1)+1,SEARCH(\"/\",'CFR - XML import'!$A97,1)-SEARCH(\">\",'CFR - XML import'!$A97,1)-2)))","v":0},{"$f":"IF(ISERROR(FIND(AK$3,'CFR - XML import'!$A97)),0,VALUE(MID('CFR - XML import'!$A97,SEARCH(\">\",'CFR - XML import'!$A97,1)+1,SEARCH(\"/\",'CFR - XML import'!$A97,1)-SEARCH(\">\",'CFR - XML import'!$A97,1)-2)))","v":0},{"$f":"IF(ISERROR(FIND(AL$3,'CFR - XML import'!$A97)),0,VALUE(MID('CFR - XML import'!$A97,SEARCH(\">\",'CFR - XML import'!$A97,1)+1,SEARCH(\"/\",'CFR - XML import'!$A97,1)-SEARCH(\">\",'CFR - XML import'!$A97,1)-2)))","v":0},{"$f":"IF(ISERROR(FIND(AM$3,'CFR - XML import'!$A97)),0,VALUE(MID('CFR - XML import'!$A97,SEARCH(\">\",'CFR - XML import'!$A97,1)+1,SEARCH(\"/\",'CFR - XML import'!$A97,1)-SEARCH(\">\",'CFR - XML import'!$A97,1)-2)))","v":0},{"$f":"IF(ISERROR(FIND(AN$3,'CFR - XML import'!$A97)),0,VALUE(MID('CFR - XML import'!$A97,SEARCH(\">\",'CFR - XML import'!$A97,1)+1,SEARCH(\"/\",'CFR - XML import'!$A97,1)-SEARCH(\">\",'CFR - XML import'!$A97,1)-2)))","v":0},{"$f":"IF(ISERROR(FIND(AO$3,'CFR - XML import'!$A97)),0,VALUE(MID('CFR - XML import'!$A97,SEARCH(\">\",'CFR - XML import'!$A97,1)+1,SEARCH(\"/\",'CFR - XML import'!$A97,1)-SEARCH(\">\",'CFR - XML import'!$A97,1)-2)))","v":0},{"$f":"IF(ISERROR(FIND(AP$3,'CFR - XML import'!$A97)),0,VALUE(MID('CFR - XML import'!$A97,SEARCH(\">\",'CFR - XML import'!$A97,1)+1,SEARCH(\"/\",'CFR - XML import'!$A97,1)-SEARCH(\">\",'CFR - XML import'!$A97,1)-2)))","v":0},{"$f":"IF(ISERROR(FIND(AQ$3,'CFR - XML import'!$A97)),0,VALUE(MID('CFR - XML import'!$A97,SEARCH(\">\",'CFR - XML import'!$A97,1)+1,SEARCH(\"/\",'CFR - XML import'!$A97,1)-SEARCH(\">\",'CFR - XML import'!$A97,1)-2)))","v":0},{"$f":"IF(ISERROR(FIND(AR$3,'CFR - XML import'!$A97)),0,VALUE(MID('CFR - XML import'!$A97,SEARCH(\">\",'CFR - XML import'!$A97,1)+1,SEARCH(\"/\",'CFR - XML import'!$A97,1)-SEARCH(\">\",'CFR - XML import'!$A97,1)-2)))","v":0},{"$f":"IF(ISERROR(FIND(AS$3,'CFR - XML import'!$A97)),0,VALUE(MID('CFR - XML import'!$A97,SEARCH(\">\",'CFR - XML import'!$A97,1)+1,SEARCH(\"/\",'CFR - XML import'!$A97,1)-SEARCH(\">\",'CFR - XML import'!$A97,1)-2)))","v":0},{"$f":"IF(ISERROR(FIND(AT$3,'CFR - XML import'!$A97)),0,VALUE(MID('CFR - XML import'!$A97,SEARCH(\">\",'CFR - XML import'!$A97,1)+1,SEARCH(\"/\",'CFR - XML import'!$A97,1)-SEARCH(\">\",'CFR - XML import'!$A97,1)-2)))","v":0},{"$f":"IF(ISERROR(FIND(AU$3,'CFR - XML import'!$A97)),0,VALUE(MID('CFR - XML import'!$A97,SEARCH(\">\",'CFR - XML import'!$A97,1)+1,SEARCH(\"/\",'CFR - XML import'!$A97,1)-SEARCH(\">\",'CFR - XML import'!$A97,1)-2)))","v":0},{"$f":"IF(ISERROR(FIND(AV$3,'CFR - XML import'!$A97)),0,VALUE(MID('CFR - XML import'!$A97,SEARCH(\">\",'CFR - XML import'!$A97,1)+1,SEARCH(\"/\",'CFR - XML import'!$A97,1)-SEARCH(\">\",'CFR - XML import'!$A97,1)-2)))","v":0},{"$f":"IF(ISERROR(FIND(AW$3,'CFR - XML import'!$A97)),0,VALUE(MID('CFR - XML import'!$A97,SEARCH(\">\",'CFR - XML import'!$A97,1)+1,SEARCH(\"/\",'CFR - XML import'!$A97,1)-SEARCH(\">\",'CFR - XML import'!$A97,1)-2)))","v":0},{"$f":"IF(ISERROR(FIND(AX$3,'CFR - XML import'!$A97)),0,VALUE(MID('CFR - XML import'!$A97,SEARCH(\">\",'CFR - XML import'!$A97,1)+1,SEARCH(\"/\",'CFR - XML import'!$A97,1)-SEARCH(\">\",'CFR - XML import'!$A97,1)-2)))","v":0},{"$f":"IF(ISERROR(FIND(AY$3,'CFR - XML import'!$A97)),0,VALUE(MID('CFR - XML import'!$A97,SEARCH(\">\",'CFR - XML import'!$A97,1)+1,SEARCH(\"/\",'CFR - XML import'!$A97,1)-SEARCH(\">\",'CFR - XML import'!$A97,1)-2)))","v":0},{"$f":"IF(ISERROR(FIND(AZ$3,'CFR - XML import'!$A97)),0,VALUE(MID('CFR - XML import'!$A97,SEARCH(\">\",'CFR - XML import'!$A97,1)+1,SEARCH(\"/\",'CFR - XML import'!$A97,1)-SEARCH(\">\",'CFR - XML import'!$A97,1)-2)))","v":0},{"$f":"IF(ISERROR(FIND(BA$3,'CFR - XML import'!$A97)),0,VALUE(MID('CFR - XML import'!$A97,SEARCH(\">\",'CFR - XML import'!$A97,1)+1,SEARCH(\"/\",'CFR - XML import'!$A97,1)-SEARCH(\">\",'CFR - XML import'!$A97,1)-2)))","v":0},{"$f":"IF(ISERROR(FIND(BB$3,'CFR - XML import'!$A97)),0,VALUE(MID('CFR - XML import'!$A97,SEARCH(\">\",'CFR - XML import'!$A97,1)+1,SEARCH(\"/\",'CFR - XML import'!$A97,1)-SEARCH(\">\",'CFR - XML import'!$A97,1)-2)))","v":0},{"$f":"IF(ISERROR(FIND(BC$3,'CFR - XML import'!$A97)),0,VALUE(MID('CFR - XML import'!$A97,SEARCH(\">\",'CFR - XML import'!$A97,1)+1,SEARCH(\"/\",'CFR - XML import'!$A97,1)-SEARCH(\">\",'CFR - XML import'!$A97,1)-2)))","v":0},{"$f":"IF(ISERROR(FIND(BD$3,'CFR - XML import'!$A97)),0,VALUE(MID('CFR - XML import'!$A97,SEARCH(\">\",'CFR - XML import'!$A97,1)+1,SEARCH(\"/\",'CFR - XML import'!$A97,1)-SEARCH(\">\",'CFR - XML import'!$A97,1)-2)))","v":0},{"$f":"IF(ISERROR(FIND(BE$3,'CFR - XML import'!$A97)),0,VALUE(MID('CFR - XML import'!$A97,SEARCH(\">\",'CFR - XML import'!$A97,1)+1,SEARCH(\"/\",'CFR - XML import'!$A97,1)-SEARCH(\">\",'CFR - XML import'!$A97,1)-2)))","v":0},{"$f":"IF(ISERROR(FIND(BF$3,'CFR - XML import'!$A97)),0,VALUE(MID('CFR - XML import'!$A97,SEARCH(\">\",'CFR - XML import'!$A97,1)+1,SEARCH(\"/\",'CFR - XML import'!$A97,1)-SEARCH(\">\",'CFR - XML import'!$A97,1)-2)))","v":0},{"$f":"IF(ISERROR(FIND(BG$3,'CFR - XML import'!$A97)),0,VALUE(MID('CFR - XML import'!$A97,SEARCH(\">\",'CFR - XML import'!$A97,1)+1,SEARCH(\"/\",'CFR - XML import'!$A97,1)-SEARCH(\">\",'CFR - XML import'!$A97,1)-2)))","v":0},{"$f":"IF(ISERROR(FIND(BH$3,'CFR - XML import'!$A97)),0,VALUE(MID('CFR - XML import'!$A97,SEARCH(\">\",'CFR - XML import'!$A97,1)+1,SEARCH(\"/\",'CFR - XML import'!$A97,1)-SEARCH(\">\",'CFR - XML import'!$A97,1)-2)))","v":0},{"$f":"IF(ISERROR(FIND(BI$3,'CFR - XML import'!$A97)),0,VALUE(MID('CFR - XML import'!$A97,SEARCH(\">\",'CFR - XML import'!$A97,1)+1,SEARCH(\"/\",'CFR - XML import'!$A97,1)-SEARCH(\">\",'CFR - XML import'!$A97,1)-2)))","v":0},{"$f":"IF(ISERROR(FIND(BJ$3,'CFR - XML import'!$A97)),0,VALUE(MID('CFR - XML import'!$A97,SEARCH(\">\",'CFR - XML import'!$A97,1)+1,SEARCH(\"/\",'CFR - XML import'!$A97,1)-SEARCH(\">\",'CFR - XML import'!$A97,1)-2)))","v":0},{"$f":"IF(ISERROR(FIND(BK$3,'CFR - XML import'!$A97)),0,VALUE(MID('CFR - XML import'!$A97,SEARCH(\">\",'CFR - XML import'!$A97,1)+1,SEARCH(\"/\",'CFR - XML import'!$A97,1)-SEARCH(\">\",'CFR - XML import'!$A97,1)-2)))","v":0},{"$f":"IF(ISERROR(FIND(BL$3,'CFR - XML import'!$A97)),0,VALUE(MID('CFR - XML import'!$A97,SEARCH(\">\",'CFR - XML import'!$A97,1)+1,SEARCH(\"/\",'CFR - XML import'!$A97,1)-SEARCH(\">\",'CFR - XML import'!$A97,1)-2)))","v":0},{"$f":"IF(ISERROR(FIND(BM$3,'CFR - XML import'!$A97)),0,VALUE(MID('CFR - XML import'!$A97,SEARCH(\">\",'CFR - XML import'!$A97,1)+1,SEARCH(\"/\",'CFR - XML import'!$A97,1)-SEARCH(\">\",'CFR - XML import'!$A97,1)-2)))","v":0},{"$f":"IF(ISERROR(FIND(BN$3,'CFR - XML import'!$A97)),0,VALUE(MID('CFR - XML import'!$A97,SEARCH(\">\",'CFR - XML import'!$A97,1)+1,SEARCH(\"/\",'CFR - XML import'!$A97,1)-SEARCH(\">\",'CFR - XML import'!$A97,1)-2)))","v":0},{"$f":"IF(ISERROR(FIND(BO$3,'CFR - XML import'!$A97)),0,VALUE(MID('CFR - XML import'!$A97,SEARCH(\">\",'CFR - XML import'!$A97,1)+1,SEARCH(\"/\",'CFR - XML import'!$A97,1)-SEARCH(\">\",'CFR - XML import'!$A97,1)-2)))","v":0},{"$f":"IF(ISERROR(FIND(BP$3,'CFR - XML import'!$A97)),0,VALUE(MID('CFR - XML import'!$A97,SEARCH(\">\",'CFR - XML import'!$A97,1)+1,SEARCH(\"/\",'CFR - XML import'!$A97,1)-SEARCH(\">\",'CFR - XML import'!$A97,1)-2)))","v":0},{"$f":"IF(ISERROR(FIND(BQ$3,'CFR - XML import'!$A97)),0,VALUE(MID('CFR - XML import'!$A97,SEARCH(\">\",'CFR - XML import'!$A97,1)+1,SEARCH(\"/\",'CFR - XML import'!$A97,1)-SEARCH(\">\",'CFR - XML import'!$A97,1)-2)))","v":0},{"$f":"IF(ISERROR(FIND(BR$3,'CFR - XML import'!$A97)),0,VALUE(MID('CFR - XML import'!$A97,SEARCH(\">\",'CFR - XML import'!$A97,1)+1,SEARCH(\"/\",'CFR - XML import'!$A97,1)-SEARCH(\">\",'CFR - XML import'!$A97,1)-2)))","v":0},{"$f":"IF(ISERROR(FIND(BS$3,'CFR - XML import'!$A97)),0,VALUE(MID('CFR - XML import'!$A97,SEARCH(\">\",'CFR - XML import'!$A97,1)+1,SEARCH(\"/\",'CFR - XML import'!$A97,1)-SEARCH(\">\",'CFR - XML import'!$A97,1)-2)))","v":0},{"$f":"IF(ISERROR(FIND(BT$3,'CFR - XML import'!$A97)),0,VALUE(MID('CFR - XML import'!$A97,SEARCH(\">\",'CFR - XML import'!$A97,1)+1,SEARCH(\"/\",'CFR - XML import'!$A97,1)-SEARCH(\">\",'CFR - XML import'!$A97,1)-2)))","v":0},{"$f":"IF(ISERROR(FIND(BU$3,'CFR - XML import'!$A97)),0,VALUE(MID('CFR - XML import'!$A97,SEARCH(\">\",'CFR - XML import'!$A97,1)+1,SEARCH(\"/\",'CFR - XML import'!$A97,1)-SEARCH(\">\",'CFR - XML import'!$A97,1)-2)))","v":0},{"$f":"IF(ISERROR(FIND(BV$3,'CFR - XML import'!$A97)),0,VALUE(MID('CFR - XML import'!$A97,SEARCH(\">\",'CFR - XML import'!$A97,1)+1,SEARCH(\"/\",'CFR - XML import'!$A97,1)-SEARCH(\">\",'CFR - XML import'!$A97,1)-2)))","v":0},{"$f":"IF(ISERROR(FIND(BW$3,'CFR - XML import'!$A97)),0,VALUE(MID('CFR - XML import'!$A97,SEARCH(\">\",'CFR - XML import'!$A97,1)+1,SEARCH(\"/\",'CFR - XML import'!$A97,1)-SEARCH(\">\",'CFR - XML import'!$A97,1)-2)))","v":0},{"$f":"IF(ISERROR(FIND(BX$3,'CFR - XML import'!$A97)),0,VALUE(MID('CFR - XML import'!$A97,SEARCH(\">\",'CFR - XML import'!$A97,1)+1,SEARCH(\"/\",'CFR - XML import'!$A97,1)-SEARCH(\">\",'CFR - XML import'!$A97,1)-2)))","v":0},{"$f":"IF(ISERROR(FIND(BY$3,'CFR - XML import'!$A97)),0,VALUE(MID('CFR - XML import'!$A97,SEARCH(\">\",'CFR - XML import'!$A97,1)+1,SEARCH(\"/\",'CFR - XML import'!$A97,1)-SEARCH(\">\",'CFR - XML import'!$A97,1)-2)))","v":0},{"$f":"IF(ISERROR(FIND(BZ$3,'CFR - XML import'!$A97)),0,VALUE(MID('CFR - XML import'!$A97,SEARCH(\">\",'CFR - XML import'!$A97,1)+1,SEARCH(\"/\",'CFR - XML import'!$A97,1)-SEARCH(\">\",'CFR - XML import'!$A97,1)-2)))","v":0},null,null,null,null,null,null,{"$f":"IF(ISERROR(IF(MID('CFR - XML import'!$A97,LEN($CF$4)+1,LEN('CFR - XML import'!$A97)-(2*LEN($CF$4)+1))=\"RMMS\",1,IF(MID('CFR - XML import'!$A97,LEN(\"    <InputSystem>\")+1,LEN('CFR - XML import'!$A97)-(LEN(\"    <InputSystem>\")+LEN($CF$4)+1))=\"SIMS\",2,0))),0,IF(MID('CFR - XML import'!$A97,LEN($CF$4)+1,LEN('CFR - XML import'!$A97)-(2*LEN($CF$4)+1))=\"RMMS\",1,IF(MID('CFR - XML import'!$A97,LEN(\"    <InputSystem>\")+1,LEN('CFR - XML import'!$A97)-(LEN(\"    <InputSystem>\")+LEN($CF$4)+1))=\"SIMS\",2,0)))","v":0},{"$f":"IF(ISERROR(FIND(CH$3,'CFR - XML import'!$A97)),0,MID('CFR - XML import'!$A97,SEARCH(\">\",'CFR - XML import'!$A97,1)+1,SEARCH(\"/\",'CFR - XML import'!$A97,1)-SEARCH(\">\",'CFR - XML import'!$A97,1)-2))","v":0},{"$f":"IF(ISERROR(FIND(CI$3,'CFR - XML import'!$A97)),0,MID('CFR - XML import'!$A97,SEARCH(\">\",'CFR - XML import'!$A97,1)+1,SEARCH(\"/\",'CFR - XML import'!$A97,1)-SEARCH(\">\",'CFR - XML import'!$A97,1)-2))","v":0},{"$f":"IF(ISERROR(FIND(CJ$3,'CFR - XML import'!$A97)),0,MID('CFR - XML import'!$A97,SEARCH(\">\",'CFR - XML import'!$A97,1)+1,SEARCH(\"/\",'CFR - XML import'!$A97,1)-SEARCH(\">\",'CFR - XML import'!$A97,1)-2))","v":0},{"$f":"IF(ISERROR(FIND(CK$3,'CFR - XML import'!$A97)),0,MID('CFR - XML import'!$A97,SEARCH(\">\",'CFR - XML import'!$A97,1)+1,SEARCH(\"/\",'CFR - XML import'!$A97,1)-SEARCH(\">\",'CFR - XML import'!$A97,1)-2))","v":0},{"$f":"IF(ISERROR(FIND(CL$3,'CFR - XML import'!$A97)),0,MID('CFR - XML import'!$A97,SEARCH(\">\",'CFR - XML import'!$A97,1)+1,SEARCH(\"/\",'CFR - XML import'!$A97,1)-SEARCH(\">\",'CFR - XML import'!$A97,1)-2))","v":0}]
[{"$f":"IF(AND('CFR - XML import'!A98<>\"\",LEFT('CFR - XML import'!A98,1)<>\"<\",LEFT('CFR - XML import'!A98,3)<>\"  <\",LEFT('CFR - XML import'!A98,5)<>\"    <\",LEFT('CFR - XML import'!A98,7)<>\"      <\",LEFT('CFR - XML import'!A98,9)<>\"        <\",$B$1=\"SIMS\"),'CFR - XML import'!A98,IF(AND(LEFT('CFR - XML import'!A98,9)=\"<Details>\",$B$1=\"RM\"),'CFR - XML import'!A98,\"\"))","v":""},{"$f":"IF(ISERROR(FIND(B$3,'CFR - XML import'!$A98)),0,VALUE(MID('CFR - XML import'!$A98,SEARCH(\">\",'CFR - XML import'!$A98,1)+1,SEARCH(\"/\",'CFR - XML import'!$A98,1)-SEARCH(\">\",'CFR - XML import'!$A98,1)-2)))","v":0},null,{"$f":"IF(ISERROR(FIND(D$3,'CFR - XML import'!$A98)),0,MID('CFR - XML import'!$A98,SEARCH(\">\",'CFR - XML import'!$A98,1)+1,SEARCH(\"/\",'CFR - XML import'!$A98,1)-SEARCH(\">\",'CFR - XML import'!$A98,1)-2))","v":0},{"$f":"IF(ISERROR(FIND(E$3,'CFR - XML import'!$A98)),0,MID('CFR - XML import'!$A98,SEARCH(\">\",'CFR - XML import'!$A98,1)+1,SEARCH(\"/\",'CFR - XML import'!$A98,1)-SEARCH(\">\",'CFR - XML import'!$A98,1)-2))","v":0},{"$f":"IF($B$1=\"SIMS\",IF(ISERROR(FIND(F$3,'CFR - XML import'!$A98)),0,VALUE(MID('CFR - XML import'!$A98,15,10))),IF(ISERROR(FIND(F$3,'CFR - XML import'!$A98)),0,VALUE(MID('CFR - XML import'!$A98,11,10))))","v":"00:00:00"},{"$f":"IF(ISERROR(FIND(G$3,'CFR - XML import'!$A98)),0,VALUE(MID('CFR - XML import'!$A98,SEARCH(\">\",'CFR - XML import'!$A98,1)+1,SEARCH(\"/\",'CFR - XML import'!$A98,1)-SEARCH(\">\",'CFR - XML import'!$A98,1)-2)))","v":0},{"$f":"IF(ISERROR(FIND(H$3,'CFR - XML import'!$A98)),0,VALUE(MID('CFR - XML import'!$A98,SEARCH(\">\",'CFR - XML import'!$A98,1)+1,SEARCH(\"/\",'CFR - XML import'!$A98,1)-SEARCH(\">\",'CFR - XML import'!$A98,1)-2)))","v":0},{"$f":"IF(ISERROR(FIND(I$3,'CFR - XML import'!$A98)),0,VALUE(MID('CFR - XML import'!$A98,SEARCH(\">\",'CFR - XML import'!$A98,1)+1,SEARCH(\"/\",'CFR - XML import'!$A98,1)-SEARCH(\">\",'CFR - XML import'!$A98,1)-2)))","v":0},{"$f":"IF(ISERROR(FIND(J$3,'CFR - XML import'!$A98)),0,VALUE(MID('CFR - XML import'!$A98,SEARCH(\">\",'CFR - XML import'!$A98,1)+1,SEARCH(\"/\",'CFR - XML import'!$A98,1)-SEARCH(\">\",'CFR - XML import'!$A98,1)-2)))","v":0},{"$f":"IF(ISERROR(FIND(K$3,'CFR - XML import'!$A98)),0,VALUE(MID('CFR - XML import'!$A98,SEARCH(\">\",'CFR - XML import'!$A98,1)+1,SEARCH(\"/\",'CFR - XML import'!$A98,1)-SEARCH(\">\",'CFR - XML import'!$A98,1)-2)))","v":0},{"$f":"IF(ISERROR(FIND(L$3,'CFR - XML import'!$A98)),0,VALUE(MID('CFR - XML import'!$A98,SEARCH(\">\",'CFR - XML import'!$A98,1)+1,SEARCH(\"/\",'CFR - XML import'!$A98,1)-SEARCH(\">\",'CFR - XML import'!$A98,1)-2)))","v":0},{"$f":"IF(ISERROR(FIND(M$3,'CFR - XML import'!$A98)),0,VALUE(MID('CFR - XML import'!$A98,SEARCH(\">\",'CFR - XML import'!$A98,1)+1,SEARCH(\"/\",'CFR - XML import'!$A98,1)-SEARCH(\">\",'CFR - XML import'!$A98,1)-2)))","v":0},{"$f":"IF(ISERROR(FIND(N$3,'CFR - XML import'!$A98)),0,VALUE(MID('CFR - XML import'!$A98,SEARCH(\">\",'CFR - XML import'!$A98,1)+1,SEARCH(\"/\",'CFR - XML import'!$A98,1)-SEARCH(\">\",'CFR - XML import'!$A98,1)-2)))","v":0},{"$f":"IF(ISERROR(FIND(O$3,'CFR - XML import'!$A98)),0,VALUE(MID('CFR - XML import'!$A98,SEARCH(\">\",'CFR - XML import'!$A98,1)+1,SEARCH(\"/\",'CFR - XML import'!$A98,1)-SEARCH(\">\",'CFR - XML import'!$A98,1)-2)))","v":0},{"$f":"IF(ISERROR(FIND(P$3,'CFR - XML import'!$A98)),0,VALUE(MID('CFR - XML import'!$A98,SEARCH(\">\",'CFR - XML import'!$A98,1)+1,SEARCH(\"/\",'CFR - XML import'!$A98,1)-SEARCH(\">\",'CFR - XML import'!$A98,1)-2)))","v":0},{"$f":"IF(ISERROR(FIND(Q$3,'CFR - XML import'!$A98)),0,VALUE(MID('CFR - XML import'!$A98,SEARCH(\">\",'CFR - XML import'!$A98,1)+1,SEARCH(\"/\",'CFR - XML import'!$A98,1)-SEARCH(\">\",'CFR - XML import'!$A98,1)-2)))","v":0},{"$f":"IF(ISERROR(FIND(R$3,'CFR - XML import'!$A98)),0,VALUE(MID('CFR - XML import'!$A98,SEARCH(\">\",'CFR - XML import'!$A98,1)+1,SEARCH(\"/\",'CFR - XML import'!$A98,1)-SEARCH(\">\",'CFR - XML import'!$A98,1)-2)))","v":0},{"$f":"IF(ISERROR(FIND(S$3,'CFR - XML import'!$A98)),0,VALUE(MID('CFR - XML import'!$A98,SEARCH(\">\",'CFR - XML import'!$A98,1)+1,SEARCH(\"/\",'CFR - XML import'!$A98,1)-SEARCH(\">\",'CFR - XML import'!$A98,1)-2)))","v":0},{"$f":"IF(ISERROR(FIND(T$3,'CFR - XML import'!$A98)),0,VALUE(MID('CFR - XML import'!$A98,SEARCH(\">\",'CFR - XML import'!$A98,1)+1,SEARCH(\"/\",'CFR - XML import'!$A98,1)-SEARCH(\">\",'CFR - XML import'!$A98,1)-2)))","v":0},{"$f":"IF(ISERROR(FIND(U$3,'CFR - XML import'!$A98)),0,VALUE(MID('CFR - XML import'!$A98,SEARCH(\">\",'CFR - XML import'!$A98,1)+1,SEARCH(\"/\",'CFR - XML import'!$A98,1)-SEARCH(\">\",'CFR - XML import'!$A98,1)-2)))","v":0},{"$f":"IF(ISERROR(FIND(V$3,'CFR - XML import'!$A98)),0,VALUE(MID('CFR - XML import'!$A98,SEARCH(\">\",'CFR - XML import'!$A98,1)+1,SEARCH(\"/\",'CFR - XML import'!$A98,1)-SEARCH(\">\",'CFR - XML import'!$A98,1)-2)))","v":0},{"$f":"IF(ISERROR(FIND(W$3,'CFR - XML import'!$A98)),0,VALUE(MID('CFR - XML import'!$A98,SEARCH(\">\",'CFR - XML import'!$A98,1)+1,SEARCH(\"/\",'CFR - XML import'!$A98,1)-SEARCH(\">\",'CFR - XML import'!$A98,1)-2)))","v":0},null,{"$f":"IF(ISERROR(FIND(Y$3,'CFR - XML import'!$A98)),0,VALUE(MID('CFR - XML import'!$A98,SEARCH(\">\",'CFR - XML import'!$A98,1)+1,SEARCH(\"/\",'CFR - XML import'!$A98,1)-SEARCH(\">\",'CFR - XML import'!$A98,1)-2)))","v":0},{"$f":"IF(ISERROR(FIND(Z$3,'CFR - XML import'!$A98)),0,VALUE(MID('CFR - XML import'!$A98,SEARCH(\">\",'CFR - XML import'!$A98,1)+1,SEARCH(\"/\",'CFR - XML import'!$A98,1)-SEARCH(\">\",'CFR - XML import'!$A98,1)-2)))","v":0},{"$f":"IF(ISERROR(FIND(AA$3,'CFR - XML import'!$A98)),0,VALUE(MID('CFR - XML import'!$A98,SEARCH(\">\",'CFR - XML import'!$A98,1)+1,SEARCH(\"/\",'CFR - XML import'!$A98,1)-SEARCH(\">\",'CFR - XML import'!$A98,1)-2)))","v":0},{"$f":"IF(ISERROR(FIND(AB$3,'CFR - XML import'!$A98)),0,VALUE(MID('CFR - XML import'!$A98,SEARCH(\">\",'CFR - XML import'!$A98,1)+1,SEARCH(\"/\",'CFR - XML import'!$A98,1)-SEARCH(\">\",'CFR - XML import'!$A98,1)-2)))","v":0},{"$f":"IF(ISERROR(FIND(AC$3,'CFR - XML import'!$A98)),0,VALUE(MID('CFR - XML import'!$A98,SEARCH(\">\",'CFR - XML import'!$A98,1)+1,SEARCH(\"/\",'CFR - XML import'!$A98,1)-SEARCH(\">\",'CFR - XML import'!$A98,1)-2)))","v":0},{"$f":"IF(ISERROR(FIND(AD$3,'CFR - XML import'!$A98)),0,VALUE(MID('CFR - XML import'!$A98,SEARCH(\">\",'CFR - XML import'!$A98,1)+1,SEARCH(\"/\",'CFR - XML import'!$A98,1)-SEARCH(\">\",'CFR - XML import'!$A98,1)-2)))","v":0},{"$f":"IF(ISERROR(FIND(AE$3,'CFR - XML import'!$A98)),0,VALUE(MID('CFR - XML import'!$A98,SEARCH(\">\",'CFR - XML import'!$A98,1)+1,SEARCH(\"/\",'CFR - XML import'!$A98,1)-SEARCH(\">\",'CFR - XML import'!$A98,1)-2)))","v":0},{"$f":"IF(ISERROR(FIND(AF$3,'CFR - XML import'!$A98)),0,VALUE(MID('CFR - XML import'!$A98,SEARCH(\">\",'CFR - XML import'!$A98,1)+1,SEARCH(\"/\",'CFR - XML import'!$A98,1)-SEARCH(\">\",'CFR - XML import'!$A98,1)-2)))","v":0},{"$f":"IF(ISERROR(FIND(AG$3,'CFR - XML import'!$A98)),0,VALUE(MID('CFR - XML import'!$A98,SEARCH(\">\",'CFR - XML import'!$A98,1)+1,SEARCH(\"/\",'CFR - XML import'!$A98,1)-SEARCH(\">\",'CFR - XML import'!$A98,1)-2)))","v":0},{"$f":"IF(ISERROR(FIND(AH$3,'CFR - XML import'!$A98)),0,VALUE(MID('CFR - XML import'!$A98,SEARCH(\">\",'CFR - XML import'!$A98,1)+1,SEARCH(\"/\",'CFR - XML import'!$A98,1)-SEARCH(\">\",'CFR - XML import'!$A98,1)-2)))","v":0},{"$f":"IF(ISERROR(FIND(AI$3,'CFR - XML import'!$A98)),0,VALUE(MID('CFR - XML import'!$A98,SEARCH(\">\",'CFR - XML import'!$A98,1)+1,SEARCH(\"/\",'CFR - XML import'!$A98,1)-SEARCH(\">\",'CFR - XML import'!$A98,1)-2)))","v":0},{"$f":"IF(ISERROR(FIND(AJ$3,'CFR - XML import'!$A98)),0,VALUE(MID('CFR - XML import'!$A98,SEARCH(\">\",'CFR - XML import'!$A98,1)+1,SEARCH(\"/\",'CFR - XML import'!$A98,1)-SEARCH(\">\",'CFR - XML import'!$A98,1)-2)))","v":0},{"$f":"IF(ISERROR(FIND(AK$3,'CFR - XML import'!$A98)),0,VALUE(MID('CFR - XML import'!$A98,SEARCH(\">\",'CFR - XML import'!$A98,1)+1,SEARCH(\"/\",'CFR - XML import'!$A98,1)-SEARCH(\">\",'CFR - XML import'!$A98,1)-2)))","v":0},{"$f":"IF(ISERROR(FIND(AL$3,'CFR - XML import'!$A98)),0,VALUE(MID('CFR - XML import'!$A98,SEARCH(\">\",'CFR - XML import'!$A98,1)+1,SEARCH(\"/\",'CFR - XML import'!$A98,1)-SEARCH(\">\",'CFR - XML import'!$A98,1)-2)))","v":0},{"$f":"IF(ISERROR(FIND(AM$3,'CFR - XML import'!$A98)),0,VALUE(MID('CFR - XML import'!$A98,SEARCH(\">\",'CFR - XML import'!$A98,1)+1,SEARCH(\"/\",'CFR - XML import'!$A98,1)-SEARCH(\">\",'CFR - XML import'!$A98,1)-2)))","v":0},{"$f":"IF(ISERROR(FIND(AN$3,'CFR - XML import'!$A98)),0,VALUE(MID('CFR - XML import'!$A98,SEARCH(\">\",'CFR - XML import'!$A98,1)+1,SEARCH(\"/\",'CFR - XML import'!$A98,1)-SEARCH(\">\",'CFR - XML import'!$A98,1)-2)))","v":0},{"$f":"IF(ISERROR(FIND(AO$3,'CFR - XML import'!$A98)),0,VALUE(MID('CFR - XML import'!$A98,SEARCH(\">\",'CFR - XML import'!$A98,1)+1,SEARCH(\"/\",'CFR - XML import'!$A98,1)-SEARCH(\">\",'CFR - XML import'!$A98,1)-2)))","v":0},{"$f":"IF(ISERROR(FIND(AP$3,'CFR - XML import'!$A98)),0,VALUE(MID('CFR - XML import'!$A98,SEARCH(\">\",'CFR - XML import'!$A98,1)+1,SEARCH(\"/\",'CFR - XML import'!$A98,1)-SEARCH(\">\",'CFR - XML import'!$A98,1)-2)))","v":0},{"$f":"IF(ISERROR(FIND(AQ$3,'CFR - XML import'!$A98)),0,VALUE(MID('CFR - XML import'!$A98,SEARCH(\">\",'CFR - XML import'!$A98,1)+1,SEARCH(\"/\",'CFR - XML import'!$A98,1)-SEARCH(\">\",'CFR - XML import'!$A98,1)-2)))","v":0},{"$f":"IF(ISERROR(FIND(AR$3,'CFR - XML import'!$A98)),0,VALUE(MID('CFR - XML import'!$A98,SEARCH(\">\",'CFR - XML import'!$A98,1)+1,SEARCH(\"/\",'CFR - XML import'!$A98,1)-SEARCH(\">\",'CFR - XML import'!$A98,1)-2)))","v":0},{"$f":"IF(ISERROR(FIND(AS$3,'CFR - XML import'!$A98)),0,VALUE(MID('CFR - XML import'!$A98,SEARCH(\">\",'CFR - XML import'!$A98,1)+1,SEARCH(\"/\",'CFR - XML import'!$A98,1)-SEARCH(\">\",'CFR - XML import'!$A98,1)-2)))","v":0},{"$f":"IF(ISERROR(FIND(AT$3,'CFR - XML import'!$A98)),0,VALUE(MID('CFR - XML import'!$A98,SEARCH(\">\",'CFR - XML import'!$A98,1)+1,SEARCH(\"/\",'CFR - XML import'!$A98,1)-SEARCH(\">\",'CFR - XML import'!$A98,1)-2)))","v":0},{"$f":"IF(ISERROR(FIND(AU$3,'CFR - XML import'!$A98)),0,VALUE(MID('CFR - XML import'!$A98,SEARCH(\">\",'CFR - XML import'!$A98,1)+1,SEARCH(\"/\",'CFR - XML import'!$A98,1)-SEARCH(\">\",'CFR - XML import'!$A98,1)-2)))","v":0},{"$f":"IF(ISERROR(FIND(AV$3,'CFR - XML import'!$A98)),0,VALUE(MID('CFR - XML import'!$A98,SEARCH(\">\",'CFR - XML import'!$A98,1)+1,SEARCH(\"/\",'CFR - XML import'!$A98,1)-SEARCH(\">\",'CFR - XML import'!$A98,1)-2)))","v":0},{"$f":"IF(ISERROR(FIND(AW$3,'CFR - XML import'!$A98)),0,VALUE(MID('CFR - XML import'!$A98,SEARCH(\">\",'CFR - XML import'!$A98,1)+1,SEARCH(\"/\",'CFR - XML import'!$A98,1)-SEARCH(\">\",'CFR - XML import'!$A98,1)-2)))","v":0},{"$f":"IF(ISERROR(FIND(AX$3,'CFR - XML import'!$A98)),0,VALUE(MID('CFR - XML import'!$A98,SEARCH(\">\",'CFR - XML import'!$A98,1)+1,SEARCH(\"/\",'CFR - XML import'!$A98,1)-SEARCH(\">\",'CFR - XML import'!$A98,1)-2)))","v":0},{"$f":"IF(ISERROR(FIND(AY$3,'CFR - XML import'!$A98)),0,VALUE(MID('CFR - XML import'!$A98,SEARCH(\">\",'CFR - XML import'!$A98,1)+1,SEARCH(\"/\",'CFR - XML import'!$A98,1)-SEARCH(\">\",'CFR - XML import'!$A98,1)-2)))","v":0},{"$f":"IF(ISERROR(FIND(AZ$3,'CFR - XML import'!$A98)),0,VALUE(MID('CFR - XML import'!$A98,SEARCH(\">\",'CFR - XML import'!$A98,1)+1,SEARCH(\"/\",'CFR - XML import'!$A98,1)-SEARCH(\">\",'CFR - XML import'!$A98,1)-2)))","v":0},{"$f":"IF(ISERROR(FIND(BA$3,'CFR - XML import'!$A98)),0,VALUE(MID('CFR - XML import'!$A98,SEARCH(\">\",'CFR - XML import'!$A98,1)+1,SEARCH(\"/\",'CFR - XML import'!$A98,1)-SEARCH(\">\",'CFR - XML import'!$A98,1)-2)))","v":0},{"$f":"IF(ISERROR(FIND(BB$3,'CFR - XML import'!$A98)),0,VALUE(MID('CFR - XML import'!$A98,SEARCH(\">\",'CFR - XML import'!$A98,1)+1,SEARCH(\"/\",'CFR - XML import'!$A98,1)-SEARCH(\">\",'CFR - XML import'!$A98,1)-2)))","v":0},{"$f":"IF(ISERROR(FIND(BC$3,'CFR - XML import'!$A98)),0,VALUE(MID('CFR - XML import'!$A98,SEARCH(\">\",'CFR - XML import'!$A98,1)+1,SEARCH(\"/\",'CFR - XML import'!$A98,1)-SEARCH(\">\",'CFR - XML import'!$A98,1)-2)))","v":0},{"$f":"IF(ISERROR(FIND(BD$3,'CFR - XML import'!$A98)),0,VALUE(MID('CFR - XML import'!$A98,SEARCH(\">\",'CFR - XML import'!$A98,1)+1,SEARCH(\"/\",'CFR - XML import'!$A98,1)-SEARCH(\">\",'CFR - XML import'!$A98,1)-2)))","v":0},{"$f":"IF(ISERROR(FIND(BE$3,'CFR - XML import'!$A98)),0,VALUE(MID('CFR - XML import'!$A98,SEARCH(\">\",'CFR - XML import'!$A98,1)+1,SEARCH(\"/\",'CFR - XML import'!$A98,1)-SEARCH(\">\",'CFR - XML import'!$A98,1)-2)))","v":0},{"$f":"IF(ISERROR(FIND(BF$3,'CFR - XML import'!$A98)),0,VALUE(MID('CFR - XML import'!$A98,SEARCH(\">\",'CFR - XML import'!$A98,1)+1,SEARCH(\"/\",'CFR - XML import'!$A98,1)-SEARCH(\">\",'CFR - XML import'!$A98,1)-2)))","v":0},{"$f":"IF(ISERROR(FIND(BG$3,'CFR - XML import'!$A98)),0,VALUE(MID('CFR - XML import'!$A98,SEARCH(\">\",'CFR - XML import'!$A98,1)+1,SEARCH(\"/\",'CFR - XML import'!$A98,1)-SEARCH(\">\",'CFR - XML import'!$A98,1)-2)))","v":0},{"$f":"IF(ISERROR(FIND(BH$3,'CFR - XML import'!$A98)),0,VALUE(MID('CFR - XML import'!$A98,SEARCH(\">\",'CFR - XML import'!$A98,1)+1,SEARCH(\"/\",'CFR - XML import'!$A98,1)-SEARCH(\">\",'CFR - XML import'!$A98,1)-2)))","v":0},{"$f":"IF(ISERROR(FIND(BI$3,'CFR - XML import'!$A98)),0,VALUE(MID('CFR - XML import'!$A98,SEARCH(\">\",'CFR - XML import'!$A98,1)+1,SEARCH(\"/\",'CFR - XML import'!$A98,1)-SEARCH(\">\",'CFR - XML import'!$A98,1)-2)))","v":0},{"$f":"IF(ISERROR(FIND(BJ$3,'CFR - XML import'!$A98)),0,VALUE(MID('CFR - XML import'!$A98,SEARCH(\">\",'CFR - XML import'!$A98,1)+1,SEARCH(\"/\",'CFR - XML import'!$A98,1)-SEARCH(\">\",'CFR - XML import'!$A98,1)-2)))","v":0},{"$f":"IF(ISERROR(FIND(BK$3,'CFR - XML import'!$A98)),0,VALUE(MID('CFR - XML import'!$A98,SEARCH(\">\",'CFR - XML import'!$A98,1)+1,SEARCH(\"/\",'CFR - XML import'!$A98,1)-SEARCH(\">\",'CFR - XML import'!$A98,1)-2)))","v":0},{"$f":"IF(ISERROR(FIND(BL$3,'CFR - XML import'!$A98)),0,VALUE(MID('CFR - XML import'!$A98,SEARCH(\">\",'CFR - XML import'!$A98,1)+1,SEARCH(\"/\",'CFR - XML import'!$A98,1)-SEARCH(\">\",'CFR - XML import'!$A98,1)-2)))","v":0},{"$f":"IF(ISERROR(FIND(BM$3,'CFR - XML import'!$A98)),0,VALUE(MID('CFR - XML import'!$A98,SEARCH(\">\",'CFR - XML import'!$A98,1)+1,SEARCH(\"/\",'CFR - XML import'!$A98,1)-SEARCH(\">\",'CFR - XML import'!$A98,1)-2)))","v":0},{"$f":"IF(ISERROR(FIND(BN$3,'CFR - XML import'!$A98)),0,VALUE(MID('CFR - XML import'!$A98,SEARCH(\">\",'CFR - XML import'!$A98,1)+1,SEARCH(\"/\",'CFR - XML import'!$A98,1)-SEARCH(\">\",'CFR - XML import'!$A98,1)-2)))","v":0},{"$f":"IF(ISERROR(FIND(BO$3,'CFR - XML import'!$A98)),0,VALUE(MID('CFR - XML import'!$A98,SEARCH(\">\",'CFR - XML import'!$A98,1)+1,SEARCH(\"/\",'CFR - XML import'!$A98,1)-SEARCH(\">\",'CFR - XML import'!$A98,1)-2)))","v":0},{"$f":"IF(ISERROR(FIND(BP$3,'CFR - XML import'!$A98)),0,VALUE(MID('CFR - XML import'!$A98,SEARCH(\">\",'CFR - XML import'!$A98,1)+1,SEARCH(\"/\",'CFR - XML import'!$A98,1)-SEARCH(\">\",'CFR - XML import'!$A98,1)-2)))","v":0},{"$f":"IF(ISERROR(FIND(BQ$3,'CFR - XML import'!$A98)),0,VALUE(MID('CFR - XML import'!$A98,SEARCH(\">\",'CFR - XML import'!$A98,1)+1,SEARCH(\"/\",'CFR - XML import'!$A98,1)-SEARCH(\">\",'CFR - XML import'!$A98,1)-2)))","v":0},{"$f":"IF(ISERROR(FIND(BR$3,'CFR - XML import'!$A98)),0,VALUE(MID('CFR - XML import'!$A98,SEARCH(\">\",'CFR - XML import'!$A98,1)+1,SEARCH(\"/\",'CFR - XML import'!$A98,1)-SEARCH(\">\",'CFR - XML import'!$A98,1)-2)))","v":0},{"$f":"IF(ISERROR(FIND(BS$3,'CFR - XML import'!$A98)),0,VALUE(MID('CFR - XML import'!$A98,SEARCH(\">\",'CFR - XML import'!$A98,1)+1,SEARCH(\"/\",'CFR - XML import'!$A98,1)-SEARCH(\">\",'CFR - XML import'!$A98,1)-2)))","v":0},{"$f":"IF(ISERROR(FIND(BT$3,'CFR - XML import'!$A98)),0,VALUE(MID('CFR - XML import'!$A98,SEARCH(\">\",'CFR - XML import'!$A98,1)+1,SEARCH(\"/\",'CFR - XML import'!$A98,1)-SEARCH(\">\",'CFR - XML import'!$A98,1)-2)))","v":0},{"$f":"IF(ISERROR(FIND(BU$3,'CFR - XML import'!$A98)),0,VALUE(MID('CFR - XML import'!$A98,SEARCH(\">\",'CFR - XML import'!$A98,1)+1,SEARCH(\"/\",'CFR - XML import'!$A98,1)-SEARCH(\">\",'CFR - XML import'!$A98,1)-2)))","v":0},{"$f":"IF(ISERROR(FIND(BV$3,'CFR - XML import'!$A98)),0,VALUE(MID('CFR - XML import'!$A98,SEARCH(\">\",'CFR - XML import'!$A98,1)+1,SEARCH(\"/\",'CFR - XML import'!$A98,1)-SEARCH(\">\",'CFR - XML import'!$A98,1)-2)))","v":0},{"$f":"IF(ISERROR(FIND(BW$3,'CFR - XML import'!$A98)),0,VALUE(MID('CFR - XML import'!$A98,SEARCH(\">\",'CFR - XML import'!$A98,1)+1,SEARCH(\"/\",'CFR - XML import'!$A98,1)-SEARCH(\">\",'CFR - XML import'!$A98,1)-2)))","v":0},{"$f":"IF(ISERROR(FIND(BX$3,'CFR - XML import'!$A98)),0,VALUE(MID('CFR - XML import'!$A98,SEARCH(\">\",'CFR - XML import'!$A98,1)+1,SEARCH(\"/\",'CFR - XML import'!$A98,1)-SEARCH(\">\",'CFR - XML import'!$A98,1)-2)))","v":0},{"$f":"IF(ISERROR(FIND(BY$3,'CFR - XML import'!$A98)),0,VALUE(MID('CFR - XML import'!$A98,SEARCH(\">\",'CFR - XML import'!$A98,1)+1,SEARCH(\"/\",'CFR - XML import'!$A98,1)-SEARCH(\">\",'CFR - XML import'!$A98,1)-2)))","v":0},{"$f":"IF(ISERROR(FIND(BZ$3,'CFR - XML import'!$A98)),0,VALUE(MID('CFR - XML import'!$A98,SEARCH(\">\",'CFR - XML import'!$A98,1)+1,SEARCH(\"/\",'CFR - XML import'!$A98,1)-SEARCH(\">\",'CFR - XML import'!$A98,1)-2)))","v":0},null,null,null,null,null,null,{"$f":"IF(ISERROR(IF(MID('CFR - XML import'!$A98,LEN($CF$4)+1,LEN('CFR - XML import'!$A98)-(2*LEN($CF$4)+1))=\"RMMS\",1,IF(MID('CFR - XML import'!$A98,LEN(\"    <InputSystem>\")+1,LEN('CFR - XML import'!$A98)-(LEN(\"    <InputSystem>\")+LEN($CF$4)+1))=\"SIMS\",2,0))),0,IF(MID('CFR - XML import'!$A98,LEN($CF$4)+1,LEN('CFR - XML import'!$A98)-(2*LEN($CF$4)+1))=\"RMMS\",1,IF(MID('CFR - XML import'!$A98,LEN(\"    <InputSystem>\")+1,LEN('CFR - XML import'!$A98)-(LEN(\"    <InputSystem>\")+LEN($CF$4)+1))=\"SIMS\",2,0)))","v":0},{"$f":"IF(ISERROR(FIND(CH$3,'CFR - XML import'!$A98)),0,MID('CFR - XML import'!$A98,SEARCH(\">\",'CFR - XML import'!$A98,1)+1,SEARCH(\"/\",'CFR - XML import'!$A98,1)-SEARCH(\">\",'CFR - XML import'!$A98,1)-2))","v":0},{"$f":"IF(ISERROR(FIND(CI$3,'CFR - XML import'!$A98)),0,MID('CFR - XML import'!$A98,SEARCH(\">\",'CFR - XML import'!$A98,1)+1,SEARCH(\"/\",'CFR - XML import'!$A98,1)-SEARCH(\">\",'CFR - XML import'!$A98,1)-2))","v":0},{"$f":"IF(ISERROR(FIND(CJ$3,'CFR - XML import'!$A98)),0,MID('CFR - XML import'!$A98,SEARCH(\">\",'CFR - XML import'!$A98,1)+1,SEARCH(\"/\",'CFR - XML import'!$A98,1)-SEARCH(\">\",'CFR - XML import'!$A98,1)-2))","v":0},{"$f":"IF(ISERROR(FIND(CK$3,'CFR - XML import'!$A98)),0,MID('CFR - XML import'!$A98,SEARCH(\">\",'CFR - XML import'!$A98,1)+1,SEARCH(\"/\",'CFR - XML import'!$A98,1)-SEARCH(\">\",'CFR - XML import'!$A98,1)-2))","v":0},{"$f":"IF(ISERROR(FIND(CL$3,'CFR - XML import'!$A98)),0,MID('CFR - XML import'!$A98,SEARCH(\">\",'CFR - XML import'!$A98,1)+1,SEARCH(\"/\",'CFR - XML import'!$A98,1)-SEARCH(\">\",'CFR - XML import'!$A98,1)-2))","v":0}]
[{"$f":"IF(AND('CFR - XML import'!A99<>\"\",LEFT('CFR - XML import'!A99,1)<>\"<\",LEFT('CFR - XML import'!A99,3)<>\"  <\",LEFT('CFR - XML import'!A99,5)<>\"    <\",LEFT('CFR - XML import'!A99,7)<>\"      <\",LEFT('CFR - XML import'!A99,9)<>\"        <\",$B$1=\"SIMS\"),'CFR - XML import'!A99,IF(AND(LEFT('CFR - XML import'!A99,9)=\"<Details>\",$B$1=\"RM\"),'CFR - XML import'!A99,\"\"))","v":""},{"$f":"IF(ISERROR(FIND(B$3,'CFR - XML import'!$A99)),0,VALUE(MID('CFR - XML import'!$A99,SEARCH(\">\",'CFR - XML import'!$A99,1)+1,SEARCH(\"/\",'CFR - XML import'!$A99,1)-SEARCH(\">\",'CFR - XML import'!$A99,1)-2)))","v":0},null,{"$f":"IF(ISERROR(FIND(D$3,'CFR - XML import'!$A99)),0,MID('CFR - XML import'!$A99,SEARCH(\">\",'CFR - XML import'!$A99,1)+1,SEARCH(\"/\",'CFR - XML import'!$A99,1)-SEARCH(\">\",'CFR - XML import'!$A99,1)-2))","v":0},{"$f":"IF(ISERROR(FIND(E$3,'CFR - XML import'!$A99)),0,MID('CFR - XML import'!$A99,SEARCH(\">\",'CFR - XML import'!$A99,1)+1,SEARCH(\"/\",'CFR - XML import'!$A99,1)-SEARCH(\">\",'CFR - XML import'!$A99,1)-2))","v":0},{"$f":"IF($B$1=\"SIMS\",IF(ISERROR(FIND(F$3,'CFR - XML import'!$A99)),0,VALUE(MID('CFR - XML import'!$A99,15,10))),IF(ISERROR(FIND(F$3,'CFR - XML import'!$A99)),0,VALUE(MID('CFR - XML import'!$A99,11,10))))","v":"00:00:00"},{"$f":"IF(ISERROR(FIND(G$3,'CFR - XML import'!$A99)),0,VALUE(MID('CFR - XML import'!$A99,SEARCH(\">\",'CFR - XML import'!$A99,1)+1,SEARCH(\"/\",'CFR - XML import'!$A99,1)-SEARCH(\">\",'CFR - XML import'!$A99,1)-2)))","v":0},{"$f":"IF(ISERROR(FIND(H$3,'CFR - XML import'!$A99)),0,VALUE(MID('CFR - XML import'!$A99,SEARCH(\">\",'CFR - XML import'!$A99,1)+1,SEARCH(\"/\",'CFR - XML import'!$A99,1)-SEARCH(\">\",'CFR - XML import'!$A99,1)-2)))","v":0},{"$f":"IF(ISERROR(FIND(I$3,'CFR - XML import'!$A99)),0,VALUE(MID('CFR - XML import'!$A99,SEARCH(\">\",'CFR - XML import'!$A99,1)+1,SEARCH(\"/\",'CFR - XML import'!$A99,1)-SEARCH(\">\",'CFR - XML import'!$A99,1)-2)))","v":0},{"$f":"IF(ISERROR(FIND(J$3,'CFR - XML import'!$A99)),0,VALUE(MID('CFR - XML import'!$A99,SEARCH(\">\",'CFR - XML import'!$A99,1)+1,SEARCH(\"/\",'CFR - XML import'!$A99,1)-SEARCH(\">\",'CFR - XML import'!$A99,1)-2)))","v":0},{"$f":"IF(ISERROR(FIND(K$3,'CFR - XML import'!$A99)),0,VALUE(MID('CFR - XML import'!$A99,SEARCH(\">\",'CFR - XML import'!$A99,1)+1,SEARCH(\"/\",'CFR - XML import'!$A99,1)-SEARCH(\">\",'CFR - XML import'!$A99,1)-2)))","v":0},{"$f":"IF(ISERROR(FIND(L$3,'CFR - XML import'!$A99)),0,VALUE(MID('CFR - XML import'!$A99,SEARCH(\">\",'CFR - XML import'!$A99,1)+1,SEARCH(\"/\",'CFR - XML import'!$A99,1)-SEARCH(\">\",'CFR - XML import'!$A99,1)-2)))","v":0},{"$f":"IF(ISERROR(FIND(M$3,'CFR - XML import'!$A99)),0,VALUE(MID('CFR - XML import'!$A99,SEARCH(\">\",'CFR - XML import'!$A99,1)+1,SEARCH(\"/\",'CFR - XML import'!$A99,1)-SEARCH(\">\",'CFR - XML import'!$A99,1)-2)))","v":0},{"$f":"IF(ISERROR(FIND(N$3,'CFR - XML import'!$A99)),0,VALUE(MID('CFR - XML import'!$A99,SEARCH(\">\",'CFR - XML import'!$A99,1)+1,SEARCH(\"/\",'CFR - XML import'!$A99,1)-SEARCH(\">\",'CFR - XML import'!$A99,1)-2)))","v":0},{"$f":"IF(ISERROR(FIND(O$3,'CFR - XML import'!$A99)),0,VALUE(MID('CFR - XML import'!$A99,SEARCH(\">\",'CFR - XML import'!$A99,1)+1,SEARCH(\"/\",'CFR - XML import'!$A99,1)-SEARCH(\">\",'CFR - XML import'!$A99,1)-2)))","v":0},{"$f":"IF(ISERROR(FIND(P$3,'CFR - XML import'!$A99)),0,VALUE(MID('CFR - XML import'!$A99,SEARCH(\">\",'CFR - XML import'!$A99,1)+1,SEARCH(\"/\",'CFR - XML import'!$A99,1)-SEARCH(\">\",'CFR - XML import'!$A99,1)-2)))","v":0},{"$f":"IF(ISERROR(FIND(Q$3,'CFR - XML import'!$A99)),0,VALUE(MID('CFR - XML import'!$A99,SEARCH(\">\",'CFR - XML import'!$A99,1)+1,SEARCH(\"/\",'CFR - XML import'!$A99,1)-SEARCH(\">\",'CFR - XML import'!$A99,1)-2)))","v":0},{"$f":"IF(ISERROR(FIND(R$3,'CFR - XML import'!$A99)),0,VALUE(MID('CFR - XML import'!$A99,SEARCH(\">\",'CFR - XML import'!$A99,1)+1,SEARCH(\"/\",'CFR - XML import'!$A99,1)-SEARCH(\">\",'CFR - XML import'!$A99,1)-2)))","v":0},{"$f":"IF(ISERROR(FIND(S$3,'CFR - XML import'!$A99)),0,VALUE(MID('CFR - XML import'!$A99,SEARCH(\">\",'CFR - XML import'!$A99,1)+1,SEARCH(\"/\",'CFR - XML import'!$A99,1)-SEARCH(\">\",'CFR - XML import'!$A99,1)-2)))","v":0},{"$f":"IF(ISERROR(FIND(T$3,'CFR - XML import'!$A99)),0,VALUE(MID('CFR - XML import'!$A99,SEARCH(\">\",'CFR - XML import'!$A99,1)+1,SEARCH(\"/\",'CFR - XML import'!$A99,1)-SEARCH(\">\",'CFR - XML import'!$A99,1)-2)))","v":0},{"$f":"IF(ISERROR(FIND(U$3,'CFR - XML import'!$A99)),0,VALUE(MID('CFR - XML import'!$A99,SEARCH(\">\",'CFR - XML import'!$A99,1)+1,SEARCH(\"/\",'CFR - XML import'!$A99,1)-SEARCH(\">\",'CFR - XML import'!$A99,1)-2)))","v":0},{"$f":"IF(ISERROR(FIND(V$3,'CFR - XML import'!$A99)),0,VALUE(MID('CFR - XML import'!$A99,SEARCH(\">\",'CFR - XML import'!$A99,1)+1,SEARCH(\"/\",'CFR - XML import'!$A99,1)-SEARCH(\">\",'CFR - XML import'!$A99,1)-2)))","v":0},{"$f":"IF(ISERROR(FIND(W$3,'CFR - XML import'!$A99)),0,VALUE(MID('CFR - XML import'!$A99,SEARCH(\">\",'CFR - XML import'!$A99,1)+1,SEARCH(\"/\",'CFR - XML import'!$A99,1)-SEARCH(\">\",'CFR - XML import'!$A99,1)-2)))","v":0},null,{"$f":"IF(ISERROR(FIND(Y$3,'CFR - XML import'!$A99)),0,VALUE(MID('CFR - XML import'!$A99,SEARCH(\">\",'CFR - XML import'!$A99,1)+1,SEARCH(\"/\",'CFR - XML import'!$A99,1)-SEARCH(\">\",'CFR - XML import'!$A99,1)-2)))","v":0},{"$f":"IF(ISERROR(FIND(Z$3,'CFR - XML import'!$A99)),0,VALUE(MID('CFR - XML import'!$A99,SEARCH(\">\",'CFR - XML import'!$A99,1)+1,SEARCH(\"/\",'CFR - XML import'!$A99,1)-SEARCH(\">\",'CFR - XML import'!$A99,1)-2)))","v":0},{"$f":"IF(ISERROR(FIND(AA$3,'CFR - XML import'!$A99)),0,VALUE(MID('CFR - XML import'!$A99,SEARCH(\">\",'CFR - XML import'!$A99,1)+1,SEARCH(\"/\",'CFR - XML import'!$A99,1)-SEARCH(\">\",'CFR - XML import'!$A99,1)-2)))","v":0},{"$f":"IF(ISERROR(FIND(AB$3,'CFR - XML import'!$A99)),0,VALUE(MID('CFR - XML import'!$A99,SEARCH(\">\",'CFR - XML import'!$A99,1)+1,SEARCH(\"/\",'CFR - XML import'!$A99,1)-SEARCH(\">\",'CFR - XML import'!$A99,1)-2)))","v":0},{"$f":"IF(ISERROR(FIND(AC$3,'CFR - XML import'!$A99)),0,VALUE(MID('CFR - XML import'!$A99,SEARCH(\">\",'CFR - XML import'!$A99,1)+1,SEARCH(\"/\",'CFR - XML import'!$A99,1)-SEARCH(\">\",'CFR - XML import'!$A99,1)-2)))","v":0},{"$f":"IF(ISERROR(FIND(AD$3,'CFR - XML import'!$A99)),0,VALUE(MID('CFR - XML import'!$A99,SEARCH(\">\",'CFR - XML import'!$A99,1)+1,SEARCH(\"/\",'CFR - XML import'!$A99,1)-SEARCH(\">\",'CFR - XML import'!$A99,1)-2)))","v":0},{"$f":"IF(ISERROR(FIND(AE$3,'CFR - XML import'!$A99)),0,VALUE(MID('CFR - XML import'!$A99,SEARCH(\">\",'CFR - XML import'!$A99,1)+1,SEARCH(\"/\",'CFR - XML import'!$A99,1)-SEARCH(\">\",'CFR - XML import'!$A99,1)-2)))","v":0},{"$f":"IF(ISERROR(FIND(AF$3,'CFR - XML import'!$A99)),0,VALUE(MID('CFR - XML import'!$A99,SEARCH(\">\",'CFR - XML import'!$A99,1)+1,SEARCH(\"/\",'CFR - XML import'!$A99,1)-SEARCH(\">\",'CFR - XML import'!$A99,1)-2)))","v":0},{"$f":"IF(ISERROR(FIND(AG$3,'CFR - XML import'!$A99)),0,VALUE(MID('CFR - XML import'!$A99,SEARCH(\">\",'CFR - XML import'!$A99,1)+1,SEARCH(\"/\",'CFR - XML import'!$A99,1)-SEARCH(\">\",'CFR - XML import'!$A99,1)-2)))","v":0},{"$f":"IF(ISERROR(FIND(AH$3,'CFR - XML import'!$A99)),0,VALUE(MID('CFR - XML import'!$A99,SEARCH(\">\",'CFR - XML import'!$A99,1)+1,SEARCH(\"/\",'CFR - XML import'!$A99,1)-SEARCH(\">\",'CFR - XML import'!$A99,1)-2)))","v":0},{"$f":"IF(ISERROR(FIND(AI$3,'CFR - XML import'!$A99)),0,VALUE(MID('CFR - XML import'!$A99,SEARCH(\">\",'CFR - XML import'!$A99,1)+1,SEARCH(\"/\",'CFR - XML import'!$A99,1)-SEARCH(\">\",'CFR - XML import'!$A99,1)-2)))","v":0},{"$f":"IF(ISERROR(FIND(AJ$3,'CFR - XML import'!$A99)),0,VALUE(MID('CFR - XML import'!$A99,SEARCH(\">\",'CFR - XML import'!$A99,1)+1,SEARCH(\"/\",'CFR - XML import'!$A99,1)-SEARCH(\">\",'CFR - XML import'!$A99,1)-2)))","v":0},{"$f":"IF(ISERROR(FIND(AK$3,'CFR - XML import'!$A99)),0,VALUE(MID('CFR - XML import'!$A99,SEARCH(\">\",'CFR - XML import'!$A99,1)+1,SEARCH(\"/\",'CFR - XML import'!$A99,1)-SEARCH(\">\",'CFR - XML import'!$A99,1)-2)))","v":0},{"$f":"IF(ISERROR(FIND(AL$3,'CFR - XML import'!$A99)),0,VALUE(MID('CFR - XML import'!$A99,SEARCH(\">\",'CFR - XML import'!$A99,1)+1,SEARCH(\"/\",'CFR - XML import'!$A99,1)-SEARCH(\">\",'CFR - XML import'!$A99,1)-2)))","v":0},{"$f":"IF(ISERROR(FIND(AM$3,'CFR - XML import'!$A99)),0,VALUE(MID('CFR - XML import'!$A99,SEARCH(\">\",'CFR - XML import'!$A99,1)+1,SEARCH(\"/\",'CFR - XML import'!$A99,1)-SEARCH(\">\",'CFR - XML import'!$A99,1)-2)))","v":0},{"$f":"IF(ISERROR(FIND(AN$3,'CFR - XML import'!$A99)),0,VALUE(MID('CFR - XML import'!$A99,SEARCH(\">\",'CFR - XML import'!$A99,1)+1,SEARCH(\"/\",'CFR - XML import'!$A99,1)-SEARCH(\">\",'CFR - XML import'!$A99,1)-2)))","v":0},{"$f":"IF(ISERROR(FIND(AO$3,'CFR - XML import'!$A99)),0,VALUE(MID('CFR - XML import'!$A99,SEARCH(\">\",'CFR - XML import'!$A99,1)+1,SEARCH(\"/\",'CFR - XML import'!$A99,1)-SEARCH(\">\",'CFR - XML import'!$A99,1)-2)))","v":0},{"$f":"IF(ISERROR(FIND(AP$3,'CFR - XML import'!$A99)),0,VALUE(MID('CFR - XML import'!$A99,SEARCH(\">\",'CFR - XML import'!$A99,1)+1,SEARCH(\"/\",'CFR - XML import'!$A99,1)-SEARCH(\">\",'CFR - XML import'!$A99,1)-2)))","v":0},{"$f":"IF(ISERROR(FIND(AQ$3,'CFR - XML import'!$A99)),0,VALUE(MID('CFR - XML import'!$A99,SEARCH(\">\",'CFR - XML import'!$A99,1)+1,SEARCH(\"/\",'CFR - XML import'!$A99,1)-SEARCH(\">\",'CFR - XML import'!$A99,1)-2)))","v":0},{"$f":"IF(ISERROR(FIND(AR$3,'CFR - XML import'!$A99)),0,VALUE(MID('CFR - XML import'!$A99,SEARCH(\">\",'CFR - XML import'!$A99,1)+1,SEARCH(\"/\",'CFR - XML import'!$A99,1)-SEARCH(\">\",'CFR - XML import'!$A99,1)-2)))","v":0},{"$f":"IF(ISERROR(FIND(AS$3,'CFR - XML import'!$A99)),0,VALUE(MID('CFR - XML import'!$A99,SEARCH(\">\",'CFR - XML import'!$A99,1)+1,SEARCH(\"/\",'CFR - XML import'!$A99,1)-SEARCH(\">\",'CFR - XML import'!$A99,1)-2)))","v":0},{"$f":"IF(ISERROR(FIND(AT$3,'CFR - XML import'!$A99)),0,VALUE(MID('CFR - XML import'!$A99,SEARCH(\">\",'CFR - XML import'!$A99,1)+1,SEARCH(\"/\",'CFR - XML import'!$A99,1)-SEARCH(\">\",'CFR - XML import'!$A99,1)-2)))","v":0},{"$f":"IF(ISERROR(FIND(AU$3,'CFR - XML import'!$A99)),0,VALUE(MID('CFR - XML import'!$A99,SEARCH(\">\",'CFR - XML import'!$A99,1)+1,SEARCH(\"/\",'CFR - XML import'!$A99,1)-SEARCH(\">\",'CFR - XML import'!$A99,1)-2)))","v":0},{"$f":"IF(ISERROR(FIND(AV$3,'CFR - XML import'!$A99)),0,VALUE(MID('CFR - XML import'!$A99,SEARCH(\">\",'CFR - XML import'!$A99,1)+1,SEARCH(\"/\",'CFR - XML import'!$A99,1)-SEARCH(\">\",'CFR - XML import'!$A99,1)-2)))","v":0},{"$f":"IF(ISERROR(FIND(AW$3,'CFR - XML import'!$A99)),0,VALUE(MID('CFR - XML import'!$A99,SEARCH(\">\",'CFR - XML import'!$A99,1)+1,SEARCH(\"/\",'CFR - XML import'!$A99,1)-SEARCH(\">\",'CFR - XML import'!$A99,1)-2)))","v":0},{"$f":"IF(ISERROR(FIND(AX$3,'CFR - XML import'!$A99)),0,VALUE(MID('CFR - XML import'!$A99,SEARCH(\">\",'CFR - XML import'!$A99,1)+1,SEARCH(\"/\",'CFR - XML import'!$A99,1)-SEARCH(\">\",'CFR - XML import'!$A99,1)-2)))","v":0},{"$f":"IF(ISERROR(FIND(AY$3,'CFR - XML import'!$A99)),0,VALUE(MID('CFR - XML import'!$A99,SEARCH(\">\",'CFR - XML import'!$A99,1)+1,SEARCH(\"/\",'CFR - XML import'!$A99,1)-SEARCH(\">\",'CFR - XML import'!$A99,1)-2)))","v":0},{"$f":"IF(ISERROR(FIND(AZ$3,'CFR - XML import'!$A99)),0,VALUE(MID('CFR - XML import'!$A99,SEARCH(\">\",'CFR - XML import'!$A99,1)+1,SEARCH(\"/\",'CFR - XML import'!$A99,1)-SEARCH(\">\",'CFR - XML import'!$A99,1)-2)))","v":0},{"$f":"IF(ISERROR(FIND(BA$3,'CFR - XML import'!$A99)),0,VALUE(MID('CFR - XML import'!$A99,SEARCH(\">\",'CFR - XML import'!$A99,1)+1,SEARCH(\"/\",'CFR - XML import'!$A99,1)-SEARCH(\">\",'CFR - XML import'!$A99,1)-2)))","v":0},{"$f":"IF(ISERROR(FIND(BB$3,'CFR - XML import'!$A99)),0,VALUE(MID('CFR - XML import'!$A99,SEARCH(\">\",'CFR - XML import'!$A99,1)+1,SEARCH(\"/\",'CFR - XML import'!$A99,1)-SEARCH(\">\",'CFR - XML import'!$A99,1)-2)))","v":0},{"$f":"IF(ISERROR(FIND(BC$3,'CFR - XML import'!$A99)),0,VALUE(MID('CFR - XML import'!$A99,SEARCH(\">\",'CFR - XML import'!$A99,1)+1,SEARCH(\"/\",'CFR - XML import'!$A99,1)-SEARCH(\">\",'CFR - XML import'!$A99,1)-2)))","v":0},{"$f":"IF(ISERROR(FIND(BD$3,'CFR - XML import'!$A99)),0,VALUE(MID('CFR - XML import'!$A99,SEARCH(\">\",'CFR - XML import'!$A99,1)+1,SEARCH(\"/\",'CFR - XML import'!$A99,1)-SEARCH(\">\",'CFR - XML import'!$A99,1)-2)))","v":0},{"$f":"IF(ISERROR(FIND(BE$3,'CFR - XML import'!$A99)),0,VALUE(MID('CFR - XML import'!$A99,SEARCH(\">\",'CFR - XML import'!$A99,1)+1,SEARCH(\"/\",'CFR - XML import'!$A99,1)-SEARCH(\">\",'CFR - XML import'!$A99,1)-2)))","v":0},{"$f":"IF(ISERROR(FIND(BF$3,'CFR - XML import'!$A99)),0,VALUE(MID('CFR - XML import'!$A99,SEARCH(\">\",'CFR - XML import'!$A99,1)+1,SEARCH(\"/\",'CFR - XML import'!$A99,1)-SEARCH(\">\",'CFR - XML import'!$A99,1)-2)))","v":0},{"$f":"IF(ISERROR(FIND(BG$3,'CFR - XML import'!$A99)),0,VALUE(MID('CFR - XML import'!$A99,SEARCH(\">\",'CFR - XML import'!$A99,1)+1,SEARCH(\"/\",'CFR - XML import'!$A99,1)-SEARCH(\">\",'CFR - XML import'!$A99,1)-2)))","v":0},{"$f":"IF(ISERROR(FIND(BH$3,'CFR - XML import'!$A99)),0,VALUE(MID('CFR - XML import'!$A99,SEARCH(\">\",'CFR - XML import'!$A99,1)+1,SEARCH(\"/\",'CFR - XML import'!$A99,1)-SEARCH(\">\",'CFR - XML import'!$A99,1)-2)))","v":0},{"$f":"IF(ISERROR(FIND(BI$3,'CFR - XML import'!$A99)),0,VALUE(MID('CFR - XML import'!$A99,SEARCH(\">\",'CFR - XML import'!$A99,1)+1,SEARCH(\"/\",'CFR - XML import'!$A99,1)-SEARCH(\">\",'CFR - XML import'!$A99,1)-2)))","v":0},{"$f":"IF(ISERROR(FIND(BJ$3,'CFR - XML import'!$A99)),0,VALUE(MID('CFR - XML import'!$A99,SEARCH(\">\",'CFR - XML import'!$A99,1)+1,SEARCH(\"/\",'CFR - XML import'!$A99,1)-SEARCH(\">\",'CFR - XML import'!$A99,1)-2)))","v":0},{"$f":"IF(ISERROR(FIND(BK$3,'CFR - XML import'!$A99)),0,VALUE(MID('CFR - XML import'!$A99,SEARCH(\">\",'CFR - XML import'!$A99,1)+1,SEARCH(\"/\",'CFR - XML import'!$A99,1)-SEARCH(\">\",'CFR - XML import'!$A99,1)-2)))","v":0},{"$f":"IF(ISERROR(FIND(BL$3,'CFR - XML import'!$A99)),0,VALUE(MID('CFR - XML import'!$A99,SEARCH(\">\",'CFR - XML import'!$A99,1)+1,SEARCH(\"/\",'CFR - XML import'!$A99,1)-SEARCH(\">\",'CFR - XML import'!$A99,1)-2)))","v":0},{"$f":"IF(ISERROR(FIND(BM$3,'CFR - XML import'!$A99)),0,VALUE(MID('CFR - XML import'!$A99,SEARCH(\">\",'CFR - XML import'!$A99,1)+1,SEARCH(\"/\",'CFR - XML import'!$A99,1)-SEARCH(\">\",'CFR - XML import'!$A99,1)-2)))","v":0},{"$f":"IF(ISERROR(FIND(BN$3,'CFR - XML import'!$A99)),0,VALUE(MID('CFR - XML import'!$A99,SEARCH(\">\",'CFR - XML import'!$A99,1)+1,SEARCH(\"/\",'CFR - XML import'!$A99,1)-SEARCH(\">\",'CFR - XML import'!$A99,1)-2)))","v":0},{"$f":"IF(ISERROR(FIND(BO$3,'CFR - XML import'!$A99)),0,VALUE(MID('CFR - XML import'!$A99,SEARCH(\">\",'CFR - XML import'!$A99,1)+1,SEARCH(\"/\",'CFR - XML import'!$A99,1)-SEARCH(\">\",'CFR - XML import'!$A99,1)-2)))","v":0},{"$f":"IF(ISERROR(FIND(BP$3,'CFR - XML import'!$A99)),0,VALUE(MID('CFR - XML import'!$A99,SEARCH(\">\",'CFR - XML import'!$A99,1)+1,SEARCH(\"/\",'CFR - XML import'!$A99,1)-SEARCH(\">\",'CFR - XML import'!$A99,1)-2)))","v":0},{"$f":"IF(ISERROR(FIND(BQ$3,'CFR - XML import'!$A99)),0,VALUE(MID('CFR - XML import'!$A99,SEARCH(\">\",'CFR - XML import'!$A99,1)+1,SEARCH(\"/\",'CFR - XML import'!$A99,1)-SEARCH(\">\",'CFR - XML import'!$A99,1)-2)))","v":0},{"$f":"IF(ISERROR(FIND(BR$3,'CFR - XML import'!$A99)),0,VALUE(MID('CFR - XML import'!$A99,SEARCH(\">\",'CFR - XML import'!$A99,1)+1,SEARCH(\"/\",'CFR - XML import'!$A99,1)-SEARCH(\">\",'CFR - XML import'!$A99,1)-2)))","v":0},{"$f":"IF(ISERROR(FIND(BS$3,'CFR - XML import'!$A99)),0,VALUE(MID('CFR - XML import'!$A99,SEARCH(\">\",'CFR - XML import'!$A99,1)+1,SEARCH(\"/\",'CFR - XML import'!$A99,1)-SEARCH(\">\",'CFR - XML import'!$A99,1)-2)))","v":0},{"$f":"IF(ISERROR(FIND(BT$3,'CFR - XML import'!$A99)),0,VALUE(MID('CFR - XML import'!$A99,SEARCH(\">\",'CFR - XML import'!$A99,1)+1,SEARCH(\"/\",'CFR - XML import'!$A99,1)-SEARCH(\">\",'CFR - XML import'!$A99,1)-2)))","v":0},{"$f":"IF(ISERROR(FIND(BU$3,'CFR - XML import'!$A99)),0,VALUE(MID('CFR - XML import'!$A99,SEARCH(\">\",'CFR - XML import'!$A99,1)+1,SEARCH(\"/\",'CFR - XML import'!$A99,1)-SEARCH(\">\",'CFR - XML import'!$A99,1)-2)))","v":0},{"$f":"IF(ISERROR(FIND(BV$3,'CFR - XML import'!$A99)),0,VALUE(MID('CFR - XML import'!$A99,SEARCH(\">\",'CFR - XML import'!$A99,1)+1,SEARCH(\"/\",'CFR - XML import'!$A99,1)-SEARCH(\">\",'CFR - XML import'!$A99,1)-2)))","v":0},{"$f":"IF(ISERROR(FIND(BW$3,'CFR - XML import'!$A99)),0,VALUE(MID('CFR - XML import'!$A99,SEARCH(\">\",'CFR - XML import'!$A99,1)+1,SEARCH(\"/\",'CFR - XML import'!$A99,1)-SEARCH(\">\",'CFR - XML import'!$A99,1)-2)))","v":0},{"$f":"IF(ISERROR(FIND(BX$3,'CFR - XML import'!$A99)),0,VALUE(MID('CFR - XML import'!$A99,SEARCH(\">\",'CFR - XML import'!$A99,1)+1,SEARCH(\"/\",'CFR - XML import'!$A99,1)-SEARCH(\">\",'CFR - XML import'!$A99,1)-2)))","v":0},{"$f":"IF(ISERROR(FIND(BY$3,'CFR - XML import'!$A99)),0,VALUE(MID('CFR - XML import'!$A99,SEARCH(\">\",'CFR - XML import'!$A99,1)+1,SEARCH(\"/\",'CFR - XML import'!$A99,1)-SEARCH(\">\",'CFR - XML import'!$A99,1)-2)))","v":0},{"$f":"IF(ISERROR(FIND(BZ$3,'CFR - XML import'!$A99)),0,VALUE(MID('CFR - XML import'!$A99,SEARCH(\">\",'CFR - XML import'!$A99,1)+1,SEARCH(\"/\",'CFR - XML import'!$A99,1)-SEARCH(\">\",'CFR - XML import'!$A99,1)-2)))","v":0},null,null,null,null,null,null,{"$f":"IF(ISERROR(IF(MID('CFR - XML import'!$A99,LEN($CF$4)+1,LEN('CFR - XML import'!$A99)-(2*LEN($CF$4)+1))=\"RMMS\",1,IF(MID('CFR - XML import'!$A99,LEN(\"    <InputSystem>\")+1,LEN('CFR - XML import'!$A99)-(LEN(\"    <InputSystem>\")+LEN($CF$4)+1))=\"SIMS\",2,0))),0,IF(MID('CFR - XML import'!$A99,LEN($CF$4)+1,LEN('CFR - XML import'!$A99)-(2*LEN($CF$4)+1))=\"RMMS\",1,IF(MID('CFR - XML import'!$A99,LEN(\"    <InputSystem>\")+1,LEN('CFR - XML import'!$A99)-(LEN(\"    <InputSystem>\")+LEN($CF$4)+1))=\"SIMS\",2,0)))","v":0},{"$f":"IF(ISERROR(FIND(CH$3,'CFR - XML import'!$A99)),0,MID('CFR - XML import'!$A99,SEARCH(\">\",'CFR - XML import'!$A99,1)+1,SEARCH(\"/\",'CFR - XML import'!$A99,1)-SEARCH(\">\",'CFR - XML import'!$A99,1)-2))","v":0},{"$f":"IF(ISERROR(FIND(CI$3,'CFR - XML import'!$A99)),0,MID('CFR - XML import'!$A99,SEARCH(\">\",'CFR - XML import'!$A99,1)+1,SEARCH(\"/\",'CFR - XML import'!$A99,1)-SEARCH(\">\",'CFR - XML import'!$A99,1)-2))","v":0},{"$f":"IF(ISERROR(FIND(CJ$3,'CFR - XML import'!$A99)),0,MID('CFR - XML import'!$A99,SEARCH(\">\",'CFR - XML import'!$A99,1)+1,SEARCH(\"/\",'CFR - XML import'!$A99,1)-SEARCH(\">\",'CFR - XML import'!$A99,1)-2))","v":0},{"$f":"IF(ISERROR(FIND(CK$3,'CFR - XML import'!$A99)),0,MID('CFR - XML import'!$A99,SEARCH(\">\",'CFR - XML import'!$A99,1)+1,SEARCH(\"/\",'CFR - XML import'!$A99,1)-SEARCH(\">\",'CFR - XML import'!$A99,1)-2))","v":0},{"$f":"IF(ISERROR(FIND(CL$3,'CFR - XML import'!$A99)),0,MID('CFR - XML import'!$A99,SEARCH(\">\",'CFR - XML import'!$A99,1)+1,SEARCH(\"/\",'CFR - XML import'!$A99,1)-SEARCH(\">\",'CFR - XML import'!$A99,1)-2))","v":0}]
[{"$f":"IF(AND('CFR - XML import'!A100<>\"\",LEFT('CFR - XML import'!A100,1)<>\"<\",LEFT('CFR - XML import'!A100,3)<>\"  <\",LEFT('CFR - XML import'!A100,5)<>\"    <\",LEFT('CFR - XML import'!A100,7)<>\"      <\",LEFT('CFR - XML import'!A100,9)<>\"        <\",$B$1=\"SIMS\"),'CFR - XML import'!A100,IF(AND(LEFT('CFR - XML import'!A100,9)=\"<Details>\",$B$1=\"RM\"),'CFR - XML import'!A100,\"\"))","v":""},{"$f":"IF(ISERROR(FIND(B$3,'CFR - XML import'!$A100)),0,VALUE(MID('CFR - XML import'!$A100,SEARCH(\">\",'CFR - XML import'!$A100,1)+1,SEARCH(\"/\",'CFR - XML import'!$A100,1)-SEARCH(\">\",'CFR - XML import'!$A100,1)-2)))","v":0},null,{"$f":"IF(ISERROR(FIND(D$3,'CFR - XML import'!$A100)),0,MID('CFR - XML import'!$A100,SEARCH(\">\",'CFR - XML import'!$A100,1)+1,SEARCH(\"/\",'CFR - XML import'!$A100,1)-SEARCH(\">\",'CFR - XML import'!$A100,1)-2))","v":0},{"$f":"IF(ISERROR(FIND(E$3,'CFR - XML import'!$A100)),0,MID('CFR - XML import'!$A100,SEARCH(\">\",'CFR - XML import'!$A100,1)+1,SEARCH(\"/\",'CFR - XML import'!$A100,1)-SEARCH(\">\",'CFR - XML import'!$A100,1)-2))","v":0},{"$f":"IF($B$1=\"SIMS\",IF(ISERROR(FIND(F$3,'CFR - XML import'!$A100)),0,VALUE(MID('CFR - XML import'!$A100,15,10))),IF(ISERROR(FIND(F$3,'CFR - XML import'!$A100)),0,VALUE(MID('CFR - XML import'!$A100,11,10))))","v":"00:00:00"},{"$f":"IF(ISERROR(FIND(G$3,'CFR - XML import'!$A100)),0,VALUE(MID('CFR - XML import'!$A100,SEARCH(\">\",'CFR - XML import'!$A100,1)+1,SEARCH(\"/\",'CFR - XML import'!$A100,1)-SEARCH(\">\",'CFR - XML import'!$A100,1)-2)))","v":0},{"$f":"IF(ISERROR(FIND(H$3,'CFR - XML import'!$A100)),0,VALUE(MID('CFR - XML import'!$A100,SEARCH(\">\",'CFR - XML import'!$A100,1)+1,SEARCH(\"/\",'CFR - XML import'!$A100,1)-SEARCH(\">\",'CFR - XML import'!$A100,1)-2)))","v":0},{"$f":"IF(ISERROR(FIND(I$3,'CFR - XML import'!$A100)),0,VALUE(MID('CFR - XML import'!$A100,SEARCH(\">\",'CFR - XML import'!$A100,1)+1,SEARCH(\"/\",'CFR - XML import'!$A100,1)-SEARCH(\">\",'CFR - XML import'!$A100,1)-2)))","v":0},{"$f":"IF(ISERROR(FIND(J$3,'CFR - XML import'!$A100)),0,VALUE(MID('CFR - XML import'!$A100,SEARCH(\">\",'CFR - XML import'!$A100,1)+1,SEARCH(\"/\",'CFR - XML import'!$A100,1)-SEARCH(\">\",'CFR - XML import'!$A100,1)-2)))","v":0},{"$f":"IF(ISERROR(FIND(K$3,'CFR - XML import'!$A100)),0,VALUE(MID('CFR - XML import'!$A100,SEARCH(\">\",'CFR - XML import'!$A100,1)+1,SEARCH(\"/\",'CFR - XML import'!$A100,1)-SEARCH(\">\",'CFR - XML import'!$A100,1)-2)))","v":0},{"$f":"IF(ISERROR(FIND(L$3,'CFR - XML import'!$A100)),0,VALUE(MID('CFR - XML import'!$A100,SEARCH(\">\",'CFR - XML import'!$A100,1)+1,SEARCH(\"/\",'CFR - XML import'!$A100,1)-SEARCH(\">\",'CFR - XML import'!$A100,1)-2)))","v":0},{"$f":"IF(ISERROR(FIND(M$3,'CFR - XML import'!$A100)),0,VALUE(MID('CFR - XML import'!$A100,SEARCH(\">\",'CFR - XML import'!$A100,1)+1,SEARCH(\"/\",'CFR - XML import'!$A100,1)-SEARCH(\">\",'CFR - XML import'!$A100,1)-2)))","v":0},{"$f":"IF(ISERROR(FIND(N$3,'CFR - XML import'!$A100)),0,VALUE(MID('CFR - XML import'!$A100,SEARCH(\">\",'CFR - XML import'!$A100,1)+1,SEARCH(\"/\",'CFR - XML import'!$A100,1)-SEARCH(\">\",'CFR - XML import'!$A100,1)-2)))","v":0},{"$f":"IF(ISERROR(FIND(O$3,'CFR - XML import'!$A100)),0,VALUE(MID('CFR - XML import'!$A100,SEARCH(\">\",'CFR - XML import'!$A100,1)+1,SEARCH(\"/\",'CFR - XML import'!$A100,1)-SEARCH(\">\",'CFR - XML import'!$A100,1)-2)))","v":0},{"$f":"IF(ISERROR(FIND(P$3,'CFR - XML import'!$A100)),0,VALUE(MID('CFR - XML import'!$A100,SEARCH(\">\",'CFR - XML import'!$A100,1)+1,SEARCH(\"/\",'CFR - XML import'!$A100,1)-SEARCH(\">\",'CFR - XML import'!$A100,1)-2)))","v":0},{"$f":"IF(ISERROR(FIND(Q$3,'CFR - XML import'!$A100)),0,VALUE(MID('CFR - XML import'!$A100,SEARCH(\">\",'CFR - XML import'!$A100,1)+1,SEARCH(\"/\",'CFR - XML import'!$A100,1)-SEARCH(\">\",'CFR - XML import'!$A100,1)-2)))","v":0},{"$f":"IF(ISERROR(FIND(R$3,'CFR - XML import'!$A100)),0,VALUE(MID('CFR - XML import'!$A100,SEARCH(\">\",'CFR - XML import'!$A100,1)+1,SEARCH(\"/\",'CFR - XML import'!$A100,1)-SEARCH(\">\",'CFR - XML import'!$A100,1)-2)))","v":0},{"$f":"IF(ISERROR(FIND(S$3,'CFR - XML import'!$A100)),0,VALUE(MID('CFR - XML import'!$A100,SEARCH(\">\",'CFR - XML import'!$A100,1)+1,SEARCH(\"/\",'CFR - XML import'!$A100,1)-SEARCH(\">\",'CFR - XML import'!$A100,1)-2)))","v":0},{"$f":"IF(ISERROR(FIND(T$3,'CFR - XML import'!$A100)),0,VALUE(MID('CFR - XML import'!$A100,SEARCH(\">\",'CFR - XML import'!$A100,1)+1,SEARCH(\"/\",'CFR - XML import'!$A100,1)-SEARCH(\">\",'CFR - XML import'!$A100,1)-2)))","v":0},{"$f":"IF(ISERROR(FIND(U$3,'CFR - XML import'!$A100)),0,VALUE(MID('CFR - XML import'!$A100,SEARCH(\">\",'CFR - XML import'!$A100,1)+1,SEARCH(\"/\",'CFR - XML import'!$A100,1)-SEARCH(\">\",'CFR - XML import'!$A100,1)-2)))","v":0},{"$f":"IF(ISERROR(FIND(V$3,'CFR - XML import'!$A100)),0,VALUE(MID('CFR - XML import'!$A100,SEARCH(\">\",'CFR - XML import'!$A100,1)+1,SEARCH(\"/\",'CFR - XML import'!$A100,1)-SEARCH(\">\",'CFR - XML import'!$A100,1)-2)))","v":0},{"$f":"IF(ISERROR(FIND(W$3,'CFR - XML import'!$A100)),0,VALUE(MID('CFR - XML import'!$A100,SEARCH(\">\",'CFR - XML import'!$A100,1)+1,SEARCH(\"/\",'CFR - XML import'!$A100,1)-SEARCH(\">\",'CFR - XML import'!$A100,1)-2)))","v":0},null,{"$f":"IF(ISERROR(FIND(Y$3,'CFR - XML import'!$A100)),0,VALUE(MID('CFR - XML import'!$A100,SEARCH(\">\",'CFR - XML import'!$A100,1)+1,SEARCH(\"/\",'CFR - XML import'!$A100,1)-SEARCH(\">\",'CFR - XML import'!$A100,1)-2)))","v":0},{"$f":"IF(ISERROR(FIND(Z$3,'CFR - XML import'!$A100)),0,VALUE(MID('CFR - XML import'!$A100,SEARCH(\">\",'CFR - XML import'!$A100,1)+1,SEARCH(\"/\",'CFR - XML import'!$A100,1)-SEARCH(\">\",'CFR - XML import'!$A100,1)-2)))","v":0},{"$f":"IF(ISERROR(FIND(AA$3,'CFR - XML import'!$A100)),0,VALUE(MID('CFR - XML import'!$A100,SEARCH(\">\",'CFR - XML import'!$A100,1)+1,SEARCH(\"/\",'CFR - XML import'!$A100,1)-SEARCH(\">\",'CFR - XML import'!$A100,1)-2)))","v":0},{"$f":"IF(ISERROR(FIND(AB$3,'CFR - XML import'!$A100)),0,VALUE(MID('CFR - XML import'!$A100,SEARCH(\">\",'CFR - XML import'!$A100,1)+1,SEARCH(\"/\",'CFR - XML import'!$A100,1)-SEARCH(\">\",'CFR - XML import'!$A100,1)-2)))","v":0},{"$f":"IF(ISERROR(FIND(AC$3,'CFR - XML import'!$A100)),0,VALUE(MID('CFR - XML import'!$A100,SEARCH(\">\",'CFR - XML import'!$A100,1)+1,SEARCH(\"/\",'CFR - XML import'!$A100,1)-SEARCH(\">\",'CFR - XML import'!$A100,1)-2)))","v":0},{"$f":"IF(ISERROR(FIND(AD$3,'CFR - XML import'!$A100)),0,VALUE(MID('CFR - XML import'!$A100,SEARCH(\">\",'CFR - XML import'!$A100,1)+1,SEARCH(\"/\",'CFR - XML import'!$A100,1)-SEARCH(\">\",'CFR - XML import'!$A100,1)-2)))","v":0},{"$f":"IF(ISERROR(FIND(AE$3,'CFR - XML import'!$A100)),0,VALUE(MID('CFR - XML import'!$A100,SEARCH(\">\",'CFR - XML import'!$A100,1)+1,SEARCH(\"/\",'CFR - XML import'!$A100,1)-SEARCH(\">\",'CFR - XML import'!$A100,1)-2)))","v":0},{"$f":"IF(ISERROR(FIND(AF$3,'CFR - XML import'!$A100)),0,VALUE(MID('CFR - XML import'!$A100,SEARCH(\">\",'CFR - XML import'!$A100,1)+1,SEARCH(\"/\",'CFR - XML import'!$A100,1)-SEARCH(\">\",'CFR - XML import'!$A100,1)-2)))","v":0},{"$f":"IF(ISERROR(FIND(AG$3,'CFR - XML import'!$A100)),0,VALUE(MID('CFR - XML import'!$A100,SEARCH(\">\",'CFR - XML import'!$A100,1)+1,SEARCH(\"/\",'CFR - XML import'!$A100,1)-SEARCH(\">\",'CFR - XML import'!$A100,1)-2)))","v":0},{"$f":"IF(ISERROR(FIND(AH$3,'CFR - XML import'!$A100)),0,VALUE(MID('CFR - XML import'!$A100,SEARCH(\">\",'CFR - XML import'!$A100,1)+1,SEARCH(\"/\",'CFR - XML import'!$A100,1)-SEARCH(\">\",'CFR - XML import'!$A100,1)-2)))","v":0},{"$f":"IF(ISERROR(FIND(AI$3,'CFR - XML import'!$A100)),0,VALUE(MID('CFR - XML import'!$A100,SEARCH(\">\",'CFR - XML import'!$A100,1)+1,SEARCH(\"/\",'CFR - XML import'!$A100,1)-SEARCH(\">\",'CFR - XML import'!$A100,1)-2)))","v":0},{"$f":"IF(ISERROR(FIND(AJ$3,'CFR - XML import'!$A100)),0,VALUE(MID('CFR - XML import'!$A100,SEARCH(\">\",'CFR - XML import'!$A100,1)+1,SEARCH(\"/\",'CFR - XML import'!$A100,1)-SEARCH(\">\",'CFR - XML import'!$A100,1)-2)))","v":0},{"$f":"IF(ISERROR(FIND(AK$3,'CFR - XML import'!$A100)),0,VALUE(MID('CFR - XML import'!$A100,SEARCH(\">\",'CFR - XML import'!$A100,1)+1,SEARCH(\"/\",'CFR - XML import'!$A100,1)-SEARCH(\">\",'CFR - XML import'!$A100,1)-2)))","v":0},{"$f":"IF(ISERROR(FIND(AL$3,'CFR - XML import'!$A100)),0,VALUE(MID('CFR - XML import'!$A100,SEARCH(\">\",'CFR - XML import'!$A100,1)+1,SEARCH(\"/\",'CFR - XML import'!$A100,1)-SEARCH(\">\",'CFR - XML import'!$A100,1)-2)))","v":0},{"$f":"IF(ISERROR(FIND(AM$3,'CFR - XML import'!$A100)),0,VALUE(MID('CFR - XML import'!$A100,SEARCH(\">\",'CFR - XML import'!$A100,1)+1,SEARCH(\"/\",'CFR - XML import'!$A100,1)-SEARCH(\">\",'CFR - XML import'!$A100,1)-2)))","v":0},{"$f":"IF(ISERROR(FIND(AN$3,'CFR - XML import'!$A100)),0,VALUE(MID('CFR - XML import'!$A100,SEARCH(\">\",'CFR - XML import'!$A100,1)+1,SEARCH(\"/\",'CFR - XML import'!$A100,1)-SEARCH(\">\",'CFR - XML import'!$A100,1)-2)))","v":0},{"$f":"IF(ISERROR(FIND(AO$3,'CFR - XML import'!$A100)),0,VALUE(MID('CFR - XML import'!$A100,SEARCH(\">\",'CFR - XML import'!$A100,1)+1,SEARCH(\"/\",'CFR - XML import'!$A100,1)-SEARCH(\">\",'CFR - XML import'!$A100,1)-2)))","v":0},{"$f":"IF(ISERROR(FIND(AP$3,'CFR - XML import'!$A100)),0,VALUE(MID('CFR - XML import'!$A100,SEARCH(\">\",'CFR - XML import'!$A100,1)+1,SEARCH(\"/\",'CFR - XML import'!$A100,1)-SEARCH(\">\",'CFR - XML import'!$A100,1)-2)))","v":0},{"$f":"IF(ISERROR(FIND(AQ$3,'CFR - XML import'!$A100)),0,VALUE(MID('CFR - XML import'!$A100,SEARCH(\">\",'CFR - XML import'!$A100,1)+1,SEARCH(\"/\",'CFR - XML import'!$A100,1)-SEARCH(\">\",'CFR - XML import'!$A100,1)-2)))","v":0},{"$f":"IF(ISERROR(FIND(AR$3,'CFR - XML import'!$A100)),0,VALUE(MID('CFR - XML import'!$A100,SEARCH(\">\",'CFR - XML import'!$A100,1)+1,SEARCH(\"/\",'CFR - XML import'!$A100,1)-SEARCH(\">\",'CFR - XML import'!$A100,1)-2)))","v":0},{"$f":"IF(ISERROR(FIND(AS$3,'CFR - XML import'!$A100)),0,VALUE(MID('CFR - XML import'!$A100,SEARCH(\">\",'CFR - XML import'!$A100,1)+1,SEARCH(\"/\",'CFR - XML import'!$A100,1)-SEARCH(\">\",'CFR - XML import'!$A100,1)-2)))","v":0},{"$f":"IF(ISERROR(FIND(AT$3,'CFR - XML import'!$A100)),0,VALUE(MID('CFR - XML import'!$A100,SEARCH(\">\",'CFR - XML import'!$A100,1)+1,SEARCH(\"/\",'CFR - XML import'!$A100,1)-SEARCH(\">\",'CFR - XML import'!$A100,1)-2)))","v":0},{"$f":"IF(ISERROR(FIND(AU$3,'CFR - XML import'!$A100)),0,VALUE(MID('CFR - XML import'!$A100,SEARCH(\">\",'CFR - XML import'!$A100,1)+1,SEARCH(\"/\",'CFR - XML import'!$A100,1)-SEARCH(\">\",'CFR - XML import'!$A100,1)-2)))","v":0},{"$f":"IF(ISERROR(FIND(AV$3,'CFR - XML import'!$A100)),0,VALUE(MID('CFR - XML import'!$A100,SEARCH(\">\",'CFR - XML import'!$A100,1)+1,SEARCH(\"/\",'CFR - XML import'!$A100,1)-SEARCH(\">\",'CFR - XML import'!$A100,1)-2)))","v":0},{"$f":"IF(ISERROR(FIND(AW$3,'CFR - XML import'!$A100)),0,VALUE(MID('CFR - XML import'!$A100,SEARCH(\">\",'CFR - XML import'!$A100,1)+1,SEARCH(\"/\",'CFR - XML import'!$A100,1)-SEARCH(\">\",'CFR - XML import'!$A100,1)-2)))","v":0},{"$f":"IF(ISERROR(FIND(AX$3,'CFR - XML import'!$A100)),0,VALUE(MID('CFR - XML import'!$A100,SEARCH(\">\",'CFR - XML import'!$A100,1)+1,SEARCH(\"/\",'CFR - XML import'!$A100,1)-SEARCH(\">\",'CFR - XML import'!$A100,1)-2)))","v":0},{"$f":"IF(ISERROR(FIND(AY$3,'CFR - XML import'!$A100)),0,VALUE(MID('CFR - XML import'!$A100,SEARCH(\">\",'CFR - XML import'!$A100,1)+1,SEARCH(\"/\",'CFR - XML import'!$A100,1)-SEARCH(\">\",'CFR - XML import'!$A100,1)-2)))","v":0},{"$f":"IF(ISERROR(FIND(AZ$3,'CFR - XML import'!$A100)),0,VALUE(MID('CFR - XML import'!$A100,SEARCH(\">\",'CFR - XML import'!$A100,1)+1,SEARCH(\"/\",'CFR - XML import'!$A100,1)-SEARCH(\">\",'CFR - XML import'!$A100,1)-2)))","v":0},{"$f":"IF(ISERROR(FIND(BA$3,'CFR - XML import'!$A100)),0,VALUE(MID('CFR - XML import'!$A100,SEARCH(\">\",'CFR - XML import'!$A100,1)+1,SEARCH(\"/\",'CFR - XML import'!$A100,1)-SEARCH(\">\",'CFR - XML import'!$A100,1)-2)))","v":0},{"$f":"IF(ISERROR(FIND(BB$3,'CFR - XML import'!$A100)),0,VALUE(MID('CFR - XML import'!$A100,SEARCH(\">\",'CFR - XML import'!$A100,1)+1,SEARCH(\"/\",'CFR - XML import'!$A100,1)-SEARCH(\">\",'CFR - XML import'!$A100,1)-2)))","v":0},{"$f":"IF(ISERROR(FIND(BC$3,'CFR - XML import'!$A100)),0,VALUE(MID('CFR - XML import'!$A100,SEARCH(\">\",'CFR - XML import'!$A100,1)+1,SEARCH(\"/\",'CFR - XML import'!$A100,1)-SEARCH(\">\",'CFR - XML import'!$A100,1)-2)))","v":0},{"$f":"IF(ISERROR(FIND(BD$3,'CFR - XML import'!$A100)),0,VALUE(MID('CFR - XML import'!$A100,SEARCH(\">\",'CFR - XML import'!$A100,1)+1,SEARCH(\"/\",'CFR - XML import'!$A100,1)-SEARCH(\">\",'CFR - XML import'!$A100,1)-2)))","v":0},{"$f":"IF(ISERROR(FIND(BE$3,'CFR - XML import'!$A100)),0,VALUE(MID('CFR - XML import'!$A100,SEARCH(\">\",'CFR - XML import'!$A100,1)+1,SEARCH(\"/\",'CFR - XML import'!$A100,1)-SEARCH(\">\",'CFR - XML import'!$A100,1)-2)))","v":0},{"$f":"IF(ISERROR(FIND(BF$3,'CFR - XML import'!$A100)),0,VALUE(MID('CFR - XML import'!$A100,SEARCH(\">\",'CFR - XML import'!$A100,1)+1,SEARCH(\"/\",'CFR - XML import'!$A100,1)-SEARCH(\">\",'CFR - XML import'!$A100,1)-2)))","v":0},{"$f":"IF(ISERROR(FIND(BG$3,'CFR - XML import'!$A100)),0,VALUE(MID('CFR - XML import'!$A100,SEARCH(\">\",'CFR - XML import'!$A100,1)+1,SEARCH(\"/\",'CFR - XML import'!$A100,1)-SEARCH(\">\",'CFR - XML import'!$A100,1)-2)))","v":0},{"$f":"IF(ISERROR(FIND(BH$3,'CFR - XML import'!$A100)),0,VALUE(MID('CFR - XML import'!$A100,SEARCH(\">\",'CFR - XML import'!$A100,1)+1,SEARCH(\"/\",'CFR - XML import'!$A100,1)-SEARCH(\">\",'CFR - XML import'!$A100,1)-2)))","v":0},{"$f":"IF(ISERROR(FIND(BI$3,'CFR - XML import'!$A100)),0,VALUE(MID('CFR - XML import'!$A100,SEARCH(\">\",'CFR - XML import'!$A100,1)+1,SEARCH(\"/\",'CFR - XML import'!$A100,1)-SEARCH(\">\",'CFR - XML import'!$A100,1)-2)))","v":0},{"$f":"IF(ISERROR(FIND(BJ$3,'CFR - XML import'!$A100)),0,VALUE(MID('CFR - XML import'!$A100,SEARCH(\">\",'CFR - XML import'!$A100,1)+1,SEARCH(\"/\",'CFR - XML import'!$A100,1)-SEARCH(\">\",'CFR - XML import'!$A100,1)-2)))","v":0},{"$f":"IF(ISERROR(FIND(BK$3,'CFR - XML import'!$A100)),0,VALUE(MID('CFR - XML import'!$A100,SEARCH(\">\",'CFR - XML import'!$A100,1)+1,SEARCH(\"/\",'CFR - XML import'!$A100,1)-SEARCH(\">\",'CFR - XML import'!$A100,1)-2)))","v":0},{"$f":"IF(ISERROR(FIND(BL$3,'CFR - XML import'!$A100)),0,VALUE(MID('CFR - XML import'!$A100,SEARCH(\">\",'CFR - XML import'!$A100,1)+1,SEARCH(\"/\",'CFR - XML import'!$A100,1)-SEARCH(\">\",'CFR - XML import'!$A100,1)-2)))","v":0},{"$f":"IF(ISERROR(FIND(BM$3,'CFR - XML import'!$A100)),0,VALUE(MID('CFR - XML import'!$A100,SEARCH(\">\",'CFR - XML import'!$A100,1)+1,SEARCH(\"/\",'CFR - XML import'!$A100,1)-SEARCH(\">\",'CFR - XML import'!$A100,1)-2)))","v":0},{"$f":"IF(ISERROR(FIND(BN$3,'CFR - XML import'!$A100)),0,VALUE(MID('CFR - XML import'!$A100,SEARCH(\">\",'CFR - XML import'!$A100,1)+1,SEARCH(\"/\",'CFR - XML import'!$A100,1)-SEARCH(\">\",'CFR - XML import'!$A100,1)-2)))","v":0},{"$f":"IF(ISERROR(FIND(BO$3,'CFR - XML import'!$A100)),0,VALUE(MID('CFR - XML import'!$A100,SEARCH(\">\",'CFR - XML import'!$A100,1)+1,SEARCH(\"/\",'CFR - XML import'!$A100,1)-SEARCH(\">\",'CFR - XML import'!$A100,1)-2)))","v":0},{"$f":"IF(ISERROR(FIND(BP$3,'CFR - XML import'!$A100)),0,VALUE(MID('CFR - XML import'!$A100,SEARCH(\">\",'CFR - XML import'!$A100,1)+1,SEARCH(\"/\",'CFR - XML import'!$A100,1)-SEARCH(\">\",'CFR - XML import'!$A100,1)-2)))","v":0},{"$f":"IF(ISERROR(FIND(BQ$3,'CFR - XML import'!$A100)),0,VALUE(MID('CFR - XML import'!$A100,SEARCH(\">\",'CFR - XML import'!$A100,1)+1,SEARCH(\"/\",'CFR - XML import'!$A100,1)-SEARCH(\">\",'CFR - XML import'!$A100,1)-2)))","v":0},{"$f":"IF(ISERROR(FIND(BR$3,'CFR - XML import'!$A100)),0,VALUE(MID('CFR - XML import'!$A100,SEARCH(\">\",'CFR - XML import'!$A100,1)+1,SEARCH(\"/\",'CFR - XML import'!$A100,1)-SEARCH(\">\",'CFR - XML import'!$A100,1)-2)))","v":0},{"$f":"IF(ISERROR(FIND(BS$3,'CFR - XML import'!$A100)),0,VALUE(MID('CFR - XML import'!$A100,SEARCH(\">\",'CFR - XML import'!$A100,1)+1,SEARCH(\"/\",'CFR - XML import'!$A100,1)-SEARCH(\">\",'CFR - XML import'!$A100,1)-2)))","v":0},{"$f":"IF(ISERROR(FIND(BT$3,'CFR - XML import'!$A100)),0,VALUE(MID('CFR - XML import'!$A100,SEARCH(\">\",'CFR - XML import'!$A100,1)+1,SEARCH(\"/\",'CFR - XML import'!$A100,1)-SEARCH(\">\",'CFR - XML import'!$A100,1)-2)))","v":0},{"$f":"IF(ISERROR(FIND(BU$3,'CFR - XML import'!$A100)),0,VALUE(MID('CFR - XML import'!$A100,SEARCH(\">\",'CFR - XML import'!$A100,1)+1,SEARCH(\"/\",'CFR - XML import'!$A100,1)-SEARCH(\">\",'CFR - XML import'!$A100,1)-2)))","v":0},{"$f":"IF(ISERROR(FIND(BV$3,'CFR - XML import'!$A100)),0,VALUE(MID('CFR - XML import'!$A100,SEARCH(\">\",'CFR - XML import'!$A100,1)+1,SEARCH(\"/\",'CFR - XML import'!$A100,1)-SEARCH(\">\",'CFR - XML import'!$A100,1)-2)))","v":0},{"$f":"IF(ISERROR(FIND(BW$3,'CFR - XML import'!$A100)),0,VALUE(MID('CFR - XML import'!$A100,SEARCH(\">\",'CFR - XML import'!$A100,1)+1,SEARCH(\"/\",'CFR - XML import'!$A100,1)-SEARCH(\">\",'CFR - XML import'!$A100,1)-2)))","v":0},{"$f":"IF(ISERROR(FIND(BX$3,'CFR - XML import'!$A100)),0,VALUE(MID('CFR - XML import'!$A100,SEARCH(\">\",'CFR - XML import'!$A100,1)+1,SEARCH(\"/\",'CFR - XML import'!$A100,1)-SEARCH(\">\",'CFR - XML import'!$A100,1)-2)))","v":0},{"$f":"IF(ISERROR(FIND(BY$3,'CFR - XML import'!$A100)),0,VALUE(MID('CFR - XML import'!$A100,SEARCH(\">\",'CFR - XML import'!$A100,1)+1,SEARCH(\"/\",'CFR - XML import'!$A100,1)-SEARCH(\">\",'CFR - XML import'!$A100,1)-2)))","v":0},{"$f":"IF(ISERROR(FIND(BZ$3,'CFR - XML import'!$A100)),0,VALUE(MID('CFR - XML import'!$A100,SEARCH(\">\",'CFR - XML import'!$A100,1)+1,SEARCH(\"/\",'CFR - XML import'!$A100,1)-SEARCH(\">\",'CFR - XML import'!$A100,1)-2)))","v":0},null,null,null,null,null,null,{"$f":"IF(ISERROR(IF(MID('CFR - XML import'!$A100,LEN($CF$4)+1,LEN('CFR - XML import'!$A100)-(2*LEN($CF$4)+1))=\"RMMS\",1,IF(MID('CFR - XML import'!$A100,LEN(\"    <InputSystem>\")+1,LEN('CFR - XML import'!$A100)-(LEN(\"    <InputSystem>\")+LEN($CF$4)+1))=\"SIMS\",2,0))),0,IF(MID('CFR - XML import'!$A100,LEN($CF$4)+1,LEN('CFR - XML import'!$A100)-(2*LEN($CF$4)+1))=\"RMMS\",1,IF(MID('CFR - XML import'!$A100,LEN(\"    <InputSystem>\")+1,LEN('CFR - XML import'!$A100)-(LEN(\"    <InputSystem>\")+LEN($CF$4)+1))=\"SIMS\",2,0)))","v":0},{"$f":"IF(ISERROR(FIND(CH$3,'CFR - XML import'!$A100)),0,MID('CFR - XML import'!$A100,SEARCH(\">\",'CFR - XML import'!$A100,1)+1,SEARCH(\"/\",'CFR - XML import'!$A100,1)-SEARCH(\">\",'CFR - XML import'!$A100,1)-2))","v":0},{"$f":"IF(ISERROR(FIND(CI$3,'CFR - XML import'!$A100)),0,MID('CFR - XML import'!$A100,SEARCH(\">\",'CFR - XML import'!$A100,1)+1,SEARCH(\"/\",'CFR - XML import'!$A100,1)-SEARCH(\">\",'CFR - XML import'!$A100,1)-2))","v":0},{"$f":"IF(ISERROR(FIND(CJ$3,'CFR - XML import'!$A100)),0,MID('CFR - XML import'!$A100,SEARCH(\">\",'CFR - XML import'!$A100,1)+1,SEARCH(\"/\",'CFR - XML import'!$A100,1)-SEARCH(\">\",'CFR - XML import'!$A100,1)-2))","v":0},{"$f":"IF(ISERROR(FIND(CK$3,'CFR - XML import'!$A100)),0,MID('CFR - XML import'!$A100,SEARCH(\">\",'CFR - XML import'!$A100,1)+1,SEARCH(\"/\",'CFR - XML import'!$A100,1)-SEARCH(\">\",'CFR - XML import'!$A100,1)-2))","v":0},{"$f":"IF(ISERROR(FIND(CL$3,'CFR - XML import'!$A100)),0,MID('CFR - XML import'!$A100,SEARCH(\">\",'CFR - XML import'!$A100,1)+1,SEARCH(\"/\",'CFR - XML import'!$A100,1)-SEARCH(\">\",'CFR - XML import'!$A100,1)-2))","v":0}]
[{"$f":"IF(AND('CFR - XML import'!A101<>\"\",LEFT('CFR - XML import'!A101,1)<>\"<\",LEFT('CFR - XML import'!A101,3)<>\"  <\",LEFT('CFR - XML import'!A101,5)<>\"    <\",LEFT('CFR - XML import'!A101,7)<>\"      <\",LEFT('CFR - XML import'!A101,9)<>\"        <\",$B$1=\"SIMS\"),'CFR - XML import'!A101,IF(AND(LEFT('CFR - XML import'!A101,9)=\"<Details>\",$B$1=\"RM\"),'CFR - XML import'!A101,\"\"))","v":""},{"$f":"IF(ISERROR(FIND(B$3,'CFR - XML import'!$A101)),0,VALUE(MID('CFR - XML import'!$A101,SEARCH(\">\",'CFR - XML import'!$A101,1)+1,SEARCH(\"/\",'CFR - XML import'!$A101,1)-SEARCH(\">\",'CFR - XML import'!$A101,1)-2)))","v":0},null,{"$f":"IF(ISERROR(FIND(D$3,'CFR - XML import'!$A101)),0,MID('CFR - XML import'!$A101,SEARCH(\">\",'CFR - XML import'!$A101,1)+1,SEARCH(\"/\",'CFR - XML import'!$A101,1)-SEARCH(\">\",'CFR - XML import'!$A101,1)-2))","v":0},{"$f":"IF(ISERROR(FIND(E$3,'CFR - XML import'!$A101)),0,MID('CFR - XML import'!$A101,SEARCH(\">\",'CFR - XML import'!$A101,1)+1,SEARCH(\"/\",'CFR - XML import'!$A101,1)-SEARCH(\">\",'CFR - XML import'!$A101,1)-2))","v":0},{"$f":"IF($B$1=\"SIMS\",IF(ISERROR(FIND(F$3,'CFR - XML import'!$A101)),0,VALUE(MID('CFR - XML import'!$A101,15,10))),IF(ISERROR(FIND(F$3,'CFR - XML import'!$A101)),0,VALUE(MID('CFR - XML import'!$A101,11,10))))","v":"00:00:00"},{"$f":"IF(ISERROR(FIND(G$3,'CFR - XML import'!$A101)),0,VALUE(MID('CFR - XML import'!$A101,SEARCH(\">\",'CFR - XML import'!$A101,1)+1,SEARCH(\"/\",'CFR - XML import'!$A101,1)-SEARCH(\">\",'CFR - XML import'!$A101,1)-2)))","v":0},{"$f":"IF(ISERROR(FIND(H$3,'CFR - XML import'!$A101)),0,VALUE(MID('CFR - XML import'!$A101,SEARCH(\">\",'CFR - XML import'!$A101,1)+1,SEARCH(\"/\",'CFR - XML import'!$A101,1)-SEARCH(\">\",'CFR - XML import'!$A101,1)-2)))","v":0},{"$f":"IF(ISERROR(FIND(I$3,'CFR - XML import'!$A101)),0,VALUE(MID('CFR - XML import'!$A101,SEARCH(\">\",'CFR - XML import'!$A101,1)+1,SEARCH(\"/\",'CFR - XML import'!$A101,1)-SEARCH(\">\",'CFR - XML import'!$A101,1)-2)))","v":0},{"$f":"IF(ISERROR(FIND(J$3,'CFR - XML import'!$A101)),0,VALUE(MID('CFR - XML import'!$A101,SEARCH(\">\",'CFR - XML import'!$A101,1)+1,SEARCH(\"/\",'CFR - XML import'!$A101,1)-SEARCH(\">\",'CFR - XML import'!$A101,1)-2)))","v":0},{"$f":"IF(ISERROR(FIND(K$3,'CFR - XML import'!$A101)),0,VALUE(MID('CFR - XML import'!$A101,SEARCH(\">\",'CFR - XML import'!$A101,1)+1,SEARCH(\"/\",'CFR - XML import'!$A101,1)-SEARCH(\">\",'CFR - XML import'!$A101,1)-2)))","v":0},{"$f":"IF(ISERROR(FIND(L$3,'CFR - XML import'!$A101)),0,VALUE(MID('CFR - XML import'!$A101,SEARCH(\">\",'CFR - XML import'!$A101,1)+1,SEARCH(\"/\",'CFR - XML import'!$A101,1)-SEARCH(\">\",'CFR - XML import'!$A101,1)-2)))","v":0},{"$f":"IF(ISERROR(FIND(M$3,'CFR - XML import'!$A101)),0,VALUE(MID('CFR - XML import'!$A101,SEARCH(\">\",'CFR - XML import'!$A101,1)+1,SEARCH(\"/\",'CFR - XML import'!$A101,1)-SEARCH(\">\",'CFR - XML import'!$A101,1)-2)))","v":0},{"$f":"IF(ISERROR(FIND(N$3,'CFR - XML import'!$A101)),0,VALUE(MID('CFR - XML import'!$A101,SEARCH(\">\",'CFR - XML import'!$A101,1)+1,SEARCH(\"/\",'CFR - XML import'!$A101,1)-SEARCH(\">\",'CFR - XML import'!$A101,1)-2)))","v":0},{"$f":"IF(ISERROR(FIND(O$3,'CFR - XML import'!$A101)),0,VALUE(MID('CFR - XML import'!$A101,SEARCH(\">\",'CFR - XML import'!$A101,1)+1,SEARCH(\"/\",'CFR - XML import'!$A101,1)-SEARCH(\">\",'CFR - XML import'!$A101,1)-2)))","v":0},{"$f":"IF(ISERROR(FIND(P$3,'CFR - XML import'!$A101)),0,VALUE(MID('CFR - XML import'!$A101,SEARCH(\">\",'CFR - XML import'!$A101,1)+1,SEARCH(\"/\",'CFR - XML import'!$A101,1)-SEARCH(\">\",'CFR - XML import'!$A101,1)-2)))","v":0},{"$f":"IF(ISERROR(FIND(Q$3,'CFR - XML import'!$A101)),0,VALUE(MID('CFR - XML import'!$A101,SEARCH(\">\",'CFR - XML import'!$A101,1)+1,SEARCH(\"/\",'CFR - XML import'!$A101,1)-SEARCH(\">\",'CFR - XML import'!$A101,1)-2)))","v":0},{"$f":"IF(ISERROR(FIND(R$3,'CFR - XML import'!$A101)),0,VALUE(MID('CFR - XML import'!$A101,SEARCH(\">\",'CFR - XML import'!$A101,1)+1,SEARCH(\"/\",'CFR - XML import'!$A101,1)-SEARCH(\">\",'CFR - XML import'!$A101,1)-2)))","v":0},{"$f":"IF(ISERROR(FIND(S$3,'CFR - XML import'!$A101)),0,VALUE(MID('CFR - XML import'!$A101,SEARCH(\">\",'CFR - XML import'!$A101,1)+1,SEARCH(\"/\",'CFR - XML import'!$A101,1)-SEARCH(\">\",'CFR - XML import'!$A101,1)-2)))","v":0},{"$f":"IF(ISERROR(FIND(T$3,'CFR - XML import'!$A101)),0,VALUE(MID('CFR - XML import'!$A101,SEARCH(\">\",'CFR - XML import'!$A101,1)+1,SEARCH(\"/\",'CFR - XML import'!$A101,1)-SEARCH(\">\",'CFR - XML import'!$A101,1)-2)))","v":0},{"$f":"IF(ISERROR(FIND(U$3,'CFR - XML import'!$A101)),0,VALUE(MID('CFR - XML import'!$A101,SEARCH(\">\",'CFR - XML import'!$A101,1)+1,SEARCH(\"/\",'CFR - XML import'!$A101,1)-SEARCH(\">\",'CFR - XML import'!$A101,1)-2)))","v":0},{"$f":"IF(ISERROR(FIND(V$3,'CFR - XML import'!$A101)),0,VALUE(MID('CFR - XML import'!$A101,SEARCH(\">\",'CFR - XML import'!$A101,1)+1,SEARCH(\"/\",'CFR - XML import'!$A101,1)-SEARCH(\">\",'CFR - XML import'!$A101,1)-2)))","v":0},{"$f":"IF(ISERROR(FIND(W$3,'CFR - XML import'!$A101)),0,VALUE(MID('CFR - XML import'!$A101,SEARCH(\">\",'CFR - XML import'!$A101,1)+1,SEARCH(\"/\",'CFR - XML import'!$A101,1)-SEARCH(\">\",'CFR - XML import'!$A101,1)-2)))","v":0},null,{"$f":"IF(ISERROR(FIND(Y$3,'CFR - XML import'!$A101)),0,VALUE(MID('CFR - XML import'!$A101,SEARCH(\">\",'CFR - XML import'!$A101,1)+1,SEARCH(\"/\",'CFR - XML import'!$A101,1)-SEARCH(\">\",'CFR - XML import'!$A101,1)-2)))","v":0},{"$f":"IF(ISERROR(FIND(Z$3,'CFR - XML import'!$A101)),0,VALUE(MID('CFR - XML import'!$A101,SEARCH(\">\",'CFR - XML import'!$A101,1)+1,SEARCH(\"/\",'CFR - XML import'!$A101,1)-SEARCH(\">\",'CFR - XML import'!$A101,1)-2)))","v":0},{"$f":"IF(ISERROR(FIND(AA$3,'CFR - XML import'!$A101)),0,VALUE(MID('CFR - XML import'!$A101,SEARCH(\">\",'CFR - XML import'!$A101,1)+1,SEARCH(\"/\",'CFR - XML import'!$A101,1)-SEARCH(\">\",'CFR - XML import'!$A101,1)-2)))","v":0},{"$f":"IF(ISERROR(FIND(AB$3,'CFR - XML import'!$A101)),0,VALUE(MID('CFR - XML import'!$A101,SEARCH(\">\",'CFR - XML import'!$A101,1)+1,SEARCH(\"/\",'CFR - XML import'!$A101,1)-SEARCH(\">\",'CFR - XML import'!$A101,1)-2)))","v":0},{"$f":"IF(ISERROR(FIND(AC$3,'CFR - XML import'!$A101)),0,VALUE(MID('CFR - XML import'!$A101,SEARCH(\">\",'CFR - XML import'!$A101,1)+1,SEARCH(\"/\",'CFR - XML import'!$A101,1)-SEARCH(\">\",'CFR - XML import'!$A101,1)-2)))","v":0},{"$f":"IF(ISERROR(FIND(AD$3,'CFR - XML import'!$A101)),0,VALUE(MID('CFR - XML import'!$A101,SEARCH(\">\",'CFR - XML import'!$A101,1)+1,SEARCH(\"/\",'CFR - XML import'!$A101,1)-SEARCH(\">\",'CFR - XML import'!$A101,1)-2)))","v":0},{"$f":"IF(ISERROR(FIND(AE$3,'CFR - XML import'!$A101)),0,VALUE(MID('CFR - XML import'!$A101,SEARCH(\">\",'CFR - XML import'!$A101,1)+1,SEARCH(\"/\",'CFR - XML import'!$A101,1)-SEARCH(\">\",'CFR - XML import'!$A101,1)-2)))","v":0},{"$f":"IF(ISERROR(FIND(AF$3,'CFR - XML import'!$A101)),0,VALUE(MID('CFR - XML import'!$A101,SEARCH(\">\",'CFR - XML import'!$A101,1)+1,SEARCH(\"/\",'CFR - XML import'!$A101,1)-SEARCH(\">\",'CFR - XML import'!$A101,1)-2)))","v":0},{"$f":"IF(ISERROR(FIND(AG$3,'CFR - XML import'!$A101)),0,VALUE(MID('CFR - XML import'!$A101,SEARCH(\">\",'CFR - XML import'!$A101,1)+1,SEARCH(\"/\",'CFR - XML import'!$A101,1)-SEARCH(\">\",'CFR - XML import'!$A101,1)-2)))","v":0},{"$f":"IF(ISERROR(FIND(AH$3,'CFR - XML import'!$A101)),0,VALUE(MID('CFR - XML import'!$A101,SEARCH(\">\",'CFR - XML import'!$A101,1)+1,SEARCH(\"/\",'CFR - XML import'!$A101,1)-SEARCH(\">\",'CFR - XML import'!$A101,1)-2)))","v":0},{"$f":"IF(ISERROR(FIND(AI$3,'CFR - XML import'!$A101)),0,VALUE(MID('CFR - XML import'!$A101,SEARCH(\">\",'CFR - XML import'!$A101,1)+1,SEARCH(\"/\",'CFR - XML import'!$A101,1)-SEARCH(\">\",'CFR - XML import'!$A101,1)-2)))","v":0},{"$f":"IF(ISERROR(FIND(AJ$3,'CFR - XML import'!$A101)),0,VALUE(MID('CFR - XML import'!$A101,SEARCH(\">\",'CFR - XML import'!$A101,1)+1,SEARCH(\"/\",'CFR - XML import'!$A101,1)-SEARCH(\">\",'CFR - XML import'!$A101,1)-2)))","v":0},{"$f":"IF(ISERROR(FIND(AK$3,'CFR - XML import'!$A101)),0,VALUE(MID('CFR - XML import'!$A101,SEARCH(\">\",'CFR - XML import'!$A101,1)+1,SEARCH(\"/\",'CFR - XML import'!$A101,1)-SEARCH(\">\",'CFR - XML import'!$A101,1)-2)))","v":0},{"$f":"IF(ISERROR(FIND(AL$3,'CFR - XML import'!$A101)),0,VALUE(MID('CFR - XML import'!$A101,SEARCH(\">\",'CFR - XML import'!$A101,1)+1,SEARCH(\"/\",'CFR - XML import'!$A101,1)-SEARCH(\">\",'CFR - XML import'!$A101,1)-2)))","v":0},{"$f":"IF(ISERROR(FIND(AM$3,'CFR - XML import'!$A101)),0,VALUE(MID('CFR - XML import'!$A101,SEARCH(\">\",'CFR - XML import'!$A101,1)+1,SEARCH(\"/\",'CFR - XML import'!$A101,1)-SEARCH(\">\",'CFR - XML import'!$A101,1)-2)))","v":0},{"$f":"IF(ISERROR(FIND(AN$3,'CFR - XML import'!$A101)),0,VALUE(MID('CFR - XML import'!$A101,SEARCH(\">\",'CFR - XML import'!$A101,1)+1,SEARCH(\"/\",'CFR - XML import'!$A101,1)-SEARCH(\">\",'CFR - XML import'!$A101,1)-2)))","v":0},{"$f":"IF(ISERROR(FIND(AO$3,'CFR - XML import'!$A101)),0,VALUE(MID('CFR - XML import'!$A101,SEARCH(\">\",'CFR - XML import'!$A101,1)+1,SEARCH(\"/\",'CFR - XML import'!$A101,1)-SEARCH(\">\",'CFR - XML import'!$A101,1)-2)))","v":0},{"$f":"IF(ISERROR(FIND(AP$3,'CFR - XML import'!$A101)),0,VALUE(MID('CFR - XML import'!$A101,SEARCH(\">\",'CFR - XML import'!$A101,1)+1,SEARCH(\"/\",'CFR - XML import'!$A101,1)-SEARCH(\">\",'CFR - XML import'!$A101,1)-2)))","v":0},{"$f":"IF(ISERROR(FIND(AQ$3,'CFR - XML import'!$A101)),0,VALUE(MID('CFR - XML import'!$A101,SEARCH(\">\",'CFR - XML import'!$A101,1)+1,SEARCH(\"/\",'CFR - XML import'!$A101,1)-SEARCH(\">\",'CFR - XML import'!$A101,1)-2)))","v":0},{"$f":"IF(ISERROR(FIND(AR$3,'CFR - XML import'!$A101)),0,VALUE(MID('CFR - XML import'!$A101,SEARCH(\">\",'CFR - XML import'!$A101,1)+1,SEARCH(\"/\",'CFR - XML import'!$A101,1)-SEARCH(\">\",'CFR - XML import'!$A101,1)-2)))","v":0},{"$f":"IF(ISERROR(FIND(AS$3,'CFR - XML import'!$A101)),0,VALUE(MID('CFR - XML import'!$A101,SEARCH(\">\",'CFR - XML import'!$A101,1)+1,SEARCH(\"/\",'CFR - XML import'!$A101,1)-SEARCH(\">\",'CFR - XML import'!$A101,1)-2)))","v":0},{"$f":"IF(ISERROR(FIND(AT$3,'CFR - XML import'!$A101)),0,VALUE(MID('CFR - XML import'!$A101,SEARCH(\">\",'CFR - XML import'!$A101,1)+1,SEARCH(\"/\",'CFR - XML import'!$A101,1)-SEARCH(\">\",'CFR - XML import'!$A101,1)-2)))","v":0},{"$f":"IF(ISERROR(FIND(AU$3,'CFR - XML import'!$A101)),0,VALUE(MID('CFR - XML import'!$A101,SEARCH(\">\",'CFR - XML import'!$A101,1)+1,SEARCH(\"/\",'CFR - XML import'!$A101,1)-SEARCH(\">\",'CFR - XML import'!$A101,1)-2)))","v":0},{"$f":"IF(ISERROR(FIND(AV$3,'CFR - XML import'!$A101)),0,VALUE(MID('CFR - XML import'!$A101,SEARCH(\">\",'CFR - XML import'!$A101,1)+1,SEARCH(\"/\",'CFR - XML import'!$A101,1)-SEARCH(\">\",'CFR - XML import'!$A101,1)-2)))","v":0},{"$f":"IF(ISERROR(FIND(AW$3,'CFR - XML import'!$A101)),0,VALUE(MID('CFR - XML import'!$A101,SEARCH(\">\",'CFR - XML import'!$A101,1)+1,SEARCH(\"/\",'CFR - XML import'!$A101,1)-SEARCH(\">\",'CFR - XML import'!$A101,1)-2)))","v":0},{"$f":"IF(ISERROR(FIND(AX$3,'CFR - XML import'!$A101)),0,VALUE(MID('CFR - XML import'!$A101,SEARCH(\">\",'CFR - XML import'!$A101,1)+1,SEARCH(\"/\",'CFR - XML import'!$A101,1)-SEARCH(\">\",'CFR - XML import'!$A101,1)-2)))","v":0},{"$f":"IF(ISERROR(FIND(AY$3,'CFR - XML import'!$A101)),0,VALUE(MID('CFR - XML import'!$A101,SEARCH(\">\",'CFR - XML import'!$A101,1)+1,SEARCH(\"/\",'CFR - XML import'!$A101,1)-SEARCH(\">\",'CFR - XML import'!$A101,1)-2)))","v":0},{"$f":"IF(ISERROR(FIND(AZ$3,'CFR - XML import'!$A101)),0,VALUE(MID('CFR - XML import'!$A101,SEARCH(\">\",'CFR - XML import'!$A101,1)+1,SEARCH(\"/\",'CFR - XML import'!$A101,1)-SEARCH(\">\",'CFR - XML import'!$A101,1)-2)))","v":0},{"$f":"IF(ISERROR(FIND(BA$3,'CFR - XML import'!$A101)),0,VALUE(MID('CFR - XML import'!$A101,SEARCH(\">\",'CFR - XML import'!$A101,1)+1,SEARCH(\"/\",'CFR - XML import'!$A101,1)-SEARCH(\">\",'CFR - XML import'!$A101,1)-2)))","v":0},{"$f":"IF(ISERROR(FIND(BB$3,'CFR - XML import'!$A101)),0,VALUE(MID('CFR - XML import'!$A101,SEARCH(\">\",'CFR - XML import'!$A101,1)+1,SEARCH(\"/\",'CFR - XML import'!$A101,1)-SEARCH(\">\",'CFR - XML import'!$A101,1)-2)))","v":0},{"$f":"IF(ISERROR(FIND(BC$3,'CFR - XML import'!$A101)),0,VALUE(MID('CFR - XML import'!$A101,SEARCH(\">\",'CFR - XML import'!$A101,1)+1,SEARCH(\"/\",'CFR - XML import'!$A101,1)-SEARCH(\">\",'CFR - XML import'!$A101,1)-2)))","v":0},{"$f":"IF(ISERROR(FIND(BD$3,'CFR - XML import'!$A101)),0,VALUE(MID('CFR - XML import'!$A101,SEARCH(\">\",'CFR - XML import'!$A101,1)+1,SEARCH(\"/\",'CFR - XML import'!$A101,1)-SEARCH(\">\",'CFR - XML import'!$A101,1)-2)))","v":0},{"$f":"IF(ISERROR(FIND(BE$3,'CFR - XML import'!$A101)),0,VALUE(MID('CFR - XML import'!$A101,SEARCH(\">\",'CFR - XML import'!$A101,1)+1,SEARCH(\"/\",'CFR - XML import'!$A101,1)-SEARCH(\">\",'CFR - XML import'!$A101,1)-2)))","v":0},{"$f":"IF(ISERROR(FIND(BF$3,'CFR - XML import'!$A101)),0,VALUE(MID('CFR - XML import'!$A101,SEARCH(\">\",'CFR - XML import'!$A101,1)+1,SEARCH(\"/\",'CFR - XML import'!$A101,1)-SEARCH(\">\",'CFR - XML import'!$A101,1)-2)))","v":0},{"$f":"IF(ISERROR(FIND(BG$3,'CFR - XML import'!$A101)),0,VALUE(MID('CFR - XML import'!$A101,SEARCH(\">\",'CFR - XML import'!$A101,1)+1,SEARCH(\"/\",'CFR - XML import'!$A101,1)-SEARCH(\">\",'CFR - XML import'!$A101,1)-2)))","v":0},{"$f":"IF(ISERROR(FIND(BH$3,'CFR - XML import'!$A101)),0,VALUE(MID('CFR - XML import'!$A101,SEARCH(\">\",'CFR - XML import'!$A101,1)+1,SEARCH(\"/\",'CFR - XML import'!$A101,1)-SEARCH(\">\",'CFR - XML import'!$A101,1)-2)))","v":0},{"$f":"IF(ISERROR(FIND(BI$3,'CFR - XML import'!$A101)),0,VALUE(MID('CFR - XML import'!$A101,SEARCH(\">\",'CFR - XML import'!$A101,1)+1,SEARCH(\"/\",'CFR - XML import'!$A101,1)-SEARCH(\">\",'CFR - XML import'!$A101,1)-2)))","v":0},{"$f":"IF(ISERROR(FIND(BJ$3,'CFR - XML import'!$A101)),0,VALUE(MID('CFR - XML import'!$A101,SEARCH(\">\",'CFR - XML import'!$A101,1)+1,SEARCH(\"/\",'CFR - XML import'!$A101,1)-SEARCH(\">\",'CFR - XML import'!$A101,1)-2)))","v":0},{"$f":"IF(ISERROR(FIND(BK$3,'CFR - XML import'!$A101)),0,VALUE(MID('CFR - XML import'!$A101,SEARCH(\">\",'CFR - XML import'!$A101,1)+1,SEARCH(\"/\",'CFR - XML import'!$A101,1)-SEARCH(\">\",'CFR - XML import'!$A101,1)-2)))","v":0},{"$f":"IF(ISERROR(FIND(BL$3,'CFR - XML import'!$A101)),0,VALUE(MID('CFR - XML import'!$A101,SEARCH(\">\",'CFR - XML import'!$A101,1)+1,SEARCH(\"/\",'CFR - XML import'!$A101,1)-SEARCH(\">\",'CFR - XML import'!$A101,1)-2)))","v":0},{"$f":"IF(ISERROR(FIND(BM$3,'CFR - XML import'!$A101)),0,VALUE(MID('CFR - XML import'!$A101,SEARCH(\">\",'CFR - XML import'!$A101,1)+1,SEARCH(\"/\",'CFR - XML import'!$A101,1)-SEARCH(\">\",'CFR - XML import'!$A101,1)-2)))","v":0},{"$f":"IF(ISERROR(FIND(BN$3,'CFR - XML import'!$A101)),0,VALUE(MID('CFR - XML import'!$A101,SEARCH(\">\",'CFR - XML import'!$A101,1)+1,SEARCH(\"/\",'CFR - XML import'!$A101,1)-SEARCH(\">\",'CFR - XML import'!$A101,1)-2)))","v":0},{"$f":"IF(ISERROR(FIND(BO$3,'CFR - XML import'!$A101)),0,VALUE(MID('CFR - XML import'!$A101,SEARCH(\">\",'CFR - XML import'!$A101,1)+1,SEARCH(\"/\",'CFR - XML import'!$A101,1)-SEARCH(\">\",'CFR - XML import'!$A101,1)-2)))","v":0},{"$f":"IF(ISERROR(FIND(BP$3,'CFR - XML import'!$A101)),0,VALUE(MID('CFR - XML import'!$A101,SEARCH(\">\",'CFR - XML import'!$A101,1)+1,SEARCH(\"/\",'CFR - XML import'!$A101,1)-SEARCH(\">\",'CFR - XML import'!$A101,1)-2)))","v":0},{"$f":"IF(ISERROR(FIND(BQ$3,'CFR - XML import'!$A101)),0,VALUE(MID('CFR - XML import'!$A101,SEARCH(\">\",'CFR - XML import'!$A101,1)+1,SEARCH(\"/\",'CFR - XML import'!$A101,1)-SEARCH(\">\",'CFR - XML import'!$A101,1)-2)))","v":0},{"$f":"IF(ISERROR(FIND(BR$3,'CFR - XML import'!$A101)),0,VALUE(MID('CFR - XML import'!$A101,SEARCH(\">\",'CFR - XML import'!$A101,1)+1,SEARCH(\"/\",'CFR - XML import'!$A101,1)-SEARCH(\">\",'CFR - XML import'!$A101,1)-2)))","v":0},{"$f":"IF(ISERROR(FIND(BS$3,'CFR - XML import'!$A101)),0,VALUE(MID('CFR - XML import'!$A101,SEARCH(\">\",'CFR - XML import'!$A101,1)+1,SEARCH(\"/\",'CFR - XML import'!$A101,1)-SEARCH(\">\",'CFR - XML import'!$A101,1)-2)))","v":0},{"$f":"IF(ISERROR(FIND(BT$3,'CFR - XML import'!$A101)),0,VALUE(MID('CFR - XML import'!$A101,SEARCH(\">\",'CFR - XML import'!$A101,1)+1,SEARCH(\"/\",'CFR - XML import'!$A101,1)-SEARCH(\">\",'CFR - XML import'!$A101,1)-2)))","v":0},{"$f":"IF(ISERROR(FIND(BU$3,'CFR - XML import'!$A101)),0,VALUE(MID('CFR - XML import'!$A101,SEARCH(\">\",'CFR - XML import'!$A101,1)+1,SEARCH(\"/\",'CFR - XML import'!$A101,1)-SEARCH(\">\",'CFR - XML import'!$A101,1)-2)))","v":0},{"$f":"IF(ISERROR(FIND(BV$3,'CFR - XML import'!$A101)),0,VALUE(MID('CFR - XML import'!$A101,SEARCH(\">\",'CFR - XML import'!$A101,1)+1,SEARCH(\"/\",'CFR - XML import'!$A101,1)-SEARCH(\">\",'CFR - XML import'!$A101,1)-2)))","v":0},{"$f":"IF(ISERROR(FIND(BW$3,'CFR - XML import'!$A101)),0,VALUE(MID('CFR - XML import'!$A101,SEARCH(\">\",'CFR - XML import'!$A101,1)+1,SEARCH(\"/\",'CFR - XML import'!$A101,1)-SEARCH(\">\",'CFR - XML import'!$A101,1)-2)))","v":0},{"$f":"IF(ISERROR(FIND(BX$3,'CFR - XML import'!$A101)),0,VALUE(MID('CFR - XML import'!$A101,SEARCH(\">\",'CFR - XML import'!$A101,1)+1,SEARCH(\"/\",'CFR - XML import'!$A101,1)-SEARCH(\">\",'CFR - XML import'!$A101,1)-2)))","v":0},{"$f":"IF(ISERROR(FIND(BY$3,'CFR - XML import'!$A101)),0,VALUE(MID('CFR - XML import'!$A101,SEARCH(\">\",'CFR - XML import'!$A101,1)+1,SEARCH(\"/\",'CFR - XML import'!$A101,1)-SEARCH(\">\",'CFR - XML import'!$A101,1)-2)))","v":0},{"$f":"IF(ISERROR(FIND(BZ$3,'CFR - XML import'!$A101)),0,VALUE(MID('CFR - XML import'!$A101,SEARCH(\">\",'CFR - XML import'!$A101,1)+1,SEARCH(\"/\",'CFR - XML import'!$A101,1)-SEARCH(\">\",'CFR - XML import'!$A101,1)-2)))","v":0},null,null,null,null,null,null,{"$f":"IF(ISERROR(IF(MID('CFR - XML import'!$A101,LEN($CF$4)+1,LEN('CFR - XML import'!$A101)-(2*LEN($CF$4)+1))=\"RMMS\",1,IF(MID('CFR - XML import'!$A101,LEN(\"    <InputSystem>\")+1,LEN('CFR - XML import'!$A101)-(LEN(\"    <InputSystem>\")+LEN($CF$4)+1))=\"SIMS\",2,0))),0,IF(MID('CFR - XML import'!$A101,LEN($CF$4)+1,LEN('CFR - XML import'!$A101)-(2*LEN($CF$4)+1))=\"RMMS\",1,IF(MID('CFR - XML import'!$A101,LEN(\"    <InputSystem>\")+1,LEN('CFR - XML import'!$A101)-(LEN(\"    <InputSystem>\")+LEN($CF$4)+1))=\"SIMS\",2,0)))","v":0},{"$f":"IF(ISERROR(FIND(CH$3,'CFR - XML import'!$A101)),0,MID('CFR - XML import'!$A101,SEARCH(\">\",'CFR - XML import'!$A101,1)+1,SEARCH(\"/\",'CFR - XML import'!$A101,1)-SEARCH(\">\",'CFR - XML import'!$A101,1)-2))","v":0},{"$f":"IF(ISERROR(FIND(CI$3,'CFR - XML import'!$A101)),0,MID('CFR - XML import'!$A101,SEARCH(\">\",'CFR - XML import'!$A101,1)+1,SEARCH(\"/\",'CFR - XML import'!$A101,1)-SEARCH(\">\",'CFR - XML import'!$A101,1)-2))","v":0},{"$f":"IF(ISERROR(FIND(CJ$3,'CFR - XML import'!$A101)),0,MID('CFR - XML import'!$A101,SEARCH(\">\",'CFR - XML import'!$A101,1)+1,SEARCH(\"/\",'CFR - XML import'!$A101,1)-SEARCH(\">\",'CFR - XML import'!$A101,1)-2))","v":0},{"$f":"IF(ISERROR(FIND(CK$3,'CFR - XML import'!$A101)),0,MID('CFR - XML import'!$A101,SEARCH(\">\",'CFR - XML import'!$A101,1)+1,SEARCH(\"/\",'CFR - XML import'!$A101,1)-SEARCH(\">\",'CFR - XML import'!$A101,1)-2))","v":0},{"$f":"IF(ISERROR(FIND(CL$3,'CFR - XML import'!$A101)),0,MID('CFR - XML import'!$A101,SEARCH(\">\",'CFR - XML import'!$A101,1)+1,SEARCH(\"/\",'CFR - XML import'!$A101,1)-SEARCH(\">\",'CFR - XML import'!$A101,1)-2))","v":0}]
[{"$f":"IF(AND('CFR - XML import'!A102<>\"\",LEFT('CFR - XML import'!A102,1)<>\"<\",LEFT('CFR - XML import'!A102,3)<>\"  <\",LEFT('CFR - XML import'!A102,5)<>\"    <\",LEFT('CFR - XML import'!A102,7)<>\"      <\",LEFT('CFR - XML import'!A102,9)<>\"        <\",$B$1=\"SIMS\"),'CFR - XML import'!A102,IF(AND(LEFT('CFR - XML import'!A102,9)=\"<Details>\",$B$1=\"RM\"),'CFR - XML import'!A102,\"\"))","v":""},{"$f":"IF(ISERROR(FIND(B$3,'CFR - XML import'!$A102)),0,VALUE(MID('CFR - XML import'!$A102,SEARCH(\">\",'CFR - XML import'!$A102,1)+1,SEARCH(\"/\",'CFR - XML import'!$A102,1)-SEARCH(\">\",'CFR - XML import'!$A102,1)-2)))","v":0},null,{"$f":"IF(ISERROR(FIND(D$3,'CFR - XML import'!$A102)),0,MID('CFR - XML import'!$A102,SEARCH(\">\",'CFR - XML import'!$A102,1)+1,SEARCH(\"/\",'CFR - XML import'!$A102,1)-SEARCH(\">\",'CFR - XML import'!$A102,1)-2))","v":0},{"$f":"IF(ISERROR(FIND(E$3,'CFR - XML import'!$A102)),0,MID('CFR - XML import'!$A102,SEARCH(\">\",'CFR - XML import'!$A102,1)+1,SEARCH(\"/\",'CFR - XML import'!$A102,1)-SEARCH(\">\",'CFR - XML import'!$A102,1)-2))","v":0},{"$f":"IF($B$1=\"SIMS\",IF(ISERROR(FIND(F$3,'CFR - XML import'!$A102)),0,VALUE(MID('CFR - XML import'!$A102,15,10))),IF(ISERROR(FIND(F$3,'CFR - XML import'!$A102)),0,VALUE(MID('CFR - XML import'!$A102,11,10))))","v":"00:00:00"},{"$f":"IF(ISERROR(FIND(G$3,'CFR - XML import'!$A102)),0,VALUE(MID('CFR - XML import'!$A102,SEARCH(\">\",'CFR - XML import'!$A102,1)+1,SEARCH(\"/\",'CFR - XML import'!$A102,1)-SEARCH(\">\",'CFR - XML import'!$A102,1)-2)))","v":0},{"$f":"IF(ISERROR(FIND(H$3,'CFR - XML import'!$A102)),0,VALUE(MID('CFR - XML import'!$A102,SEARCH(\">\",'CFR - XML import'!$A102,1)+1,SEARCH(\"/\",'CFR - XML import'!$A102,1)-SEARCH(\">\",'CFR - XML import'!$A102,1)-2)))","v":0},{"$f":"IF(ISERROR(FIND(I$3,'CFR - XML import'!$A102)),0,VALUE(MID('CFR - XML import'!$A102,SEARCH(\">\",'CFR - XML import'!$A102,1)+1,SEARCH(\"/\",'CFR - XML import'!$A102,1)-SEARCH(\">\",'CFR - XML import'!$A102,1)-2)))","v":0},{"$f":"IF(ISERROR(FIND(J$3,'CFR - XML import'!$A102)),0,VALUE(MID('CFR - XML import'!$A102,SEARCH(\">\",'CFR - XML import'!$A102,1)+1,SEARCH(\"/\",'CFR - XML import'!$A102,1)-SEARCH(\">\",'CFR - XML import'!$A102,1)-2)))","v":0},{"$f":"IF(ISERROR(FIND(K$3,'CFR - XML import'!$A102)),0,VALUE(MID('CFR - XML import'!$A102,SEARCH(\">\",'CFR - XML import'!$A102,1)+1,SEARCH(\"/\",'CFR - XML import'!$A102,1)-SEARCH(\">\",'CFR - XML import'!$A102,1)-2)))","v":0},{"$f":"IF(ISERROR(FIND(L$3,'CFR - XML import'!$A102)),0,VALUE(MID('CFR - XML import'!$A102,SEARCH(\">\",'CFR - XML import'!$A102,1)+1,SEARCH(\"/\",'CFR - XML import'!$A102,1)-SEARCH(\">\",'CFR - XML import'!$A102,1)-2)))","v":0},{"$f":"IF(ISERROR(FIND(M$3,'CFR - XML import'!$A102)),0,VALUE(MID('CFR - XML import'!$A102,SEARCH(\">\",'CFR - XML import'!$A102,1)+1,SEARCH(\"/\",'CFR - XML import'!$A102,1)-SEARCH(\">\",'CFR - XML import'!$A102,1)-2)))","v":0},{"$f":"IF(ISERROR(FIND(N$3,'CFR - XML import'!$A102)),0,VALUE(MID('CFR - XML import'!$A102,SEARCH(\">\",'CFR - XML import'!$A102,1)+1,SEARCH(\"/\",'CFR - XML import'!$A102,1)-SEARCH(\">\",'CFR - XML import'!$A102,1)-2)))","v":0},{"$f":"IF(ISERROR(FIND(O$3,'CFR - XML import'!$A102)),0,VALUE(MID('CFR - XML import'!$A102,SEARCH(\">\",'CFR - XML import'!$A102,1)+1,SEARCH(\"/\",'CFR - XML import'!$A102,1)-SEARCH(\">\",'CFR - XML import'!$A102,1)-2)))","v":0},{"$f":"IF(ISERROR(FIND(P$3,'CFR - XML import'!$A102)),0,VALUE(MID('CFR - XML import'!$A102,SEARCH(\">\",'CFR - XML import'!$A102,1)+1,SEARCH(\"/\",'CFR - XML import'!$A102,1)-SEARCH(\">\",'CFR - XML import'!$A102,1)-2)))","v":0},{"$f":"IF(ISERROR(FIND(Q$3,'CFR - XML import'!$A102)),0,VALUE(MID('CFR - XML import'!$A102,SEARCH(\">\",'CFR - XML import'!$A102,1)+1,SEARCH(\"/\",'CFR - XML import'!$A102,1)-SEARCH(\">\",'CFR - XML import'!$A102,1)-2)))","v":0},{"$f":"IF(ISERROR(FIND(R$3,'CFR - XML import'!$A102)),0,VALUE(MID('CFR - XML import'!$A102,SEARCH(\">\",'CFR - XML import'!$A102,1)+1,SEARCH(\"/\",'CFR - XML import'!$A102,1)-SEARCH(\">\",'CFR - XML import'!$A102,1)-2)))","v":0},{"$f":"IF(ISERROR(FIND(S$3,'CFR - XML import'!$A102)),0,VALUE(MID('CFR - XML import'!$A102,SEARCH(\">\",'CFR - XML import'!$A102,1)+1,SEARCH(\"/\",'CFR - XML import'!$A102,1)-SEARCH(\">\",'CFR - XML import'!$A102,1)-2)))","v":0},{"$f":"IF(ISERROR(FIND(T$3,'CFR - XML import'!$A102)),0,VALUE(MID('CFR - XML import'!$A102,SEARCH(\">\",'CFR - XML import'!$A102,1)+1,SEARCH(\"/\",'CFR - XML import'!$A102,1)-SEARCH(\">\",'CFR - XML import'!$A102,1)-2)))","v":0},{"$f":"IF(ISERROR(FIND(U$3,'CFR - XML import'!$A102)),0,VALUE(MID('CFR - XML import'!$A102,SEARCH(\">\",'CFR - XML import'!$A102,1)+1,SEARCH(\"/\",'CFR - XML import'!$A102,1)-SEARCH(\">\",'CFR - XML import'!$A102,1)-2)))","v":0},{"$f":"IF(ISERROR(FIND(V$3,'CFR - XML import'!$A102)),0,VALUE(MID('CFR - XML import'!$A102,SEARCH(\">\",'CFR - XML import'!$A102,1)+1,SEARCH(\"/\",'CFR - XML import'!$A102,1)-SEARCH(\">\",'CFR - XML import'!$A102,1)-2)))","v":0},{"$f":"IF(ISERROR(FIND(W$3,'CFR - XML import'!$A102)),0,VALUE(MID('CFR - XML import'!$A102,SEARCH(\">\",'CFR - XML import'!$A102,1)+1,SEARCH(\"/\",'CFR - XML import'!$A102,1)-SEARCH(\">\",'CFR - XML import'!$A102,1)-2)))","v":0},null,{"$f":"IF(ISERROR(FIND(Y$3,'CFR - XML import'!$A102)),0,VALUE(MID('CFR - XML import'!$A102,SEARCH(\">\",'CFR - XML import'!$A102,1)+1,SEARCH(\"/\",'CFR - XML import'!$A102,1)-SEARCH(\">\",'CFR - XML import'!$A102,1)-2)))","v":0},{"$f":"IF(ISERROR(FIND(Z$3,'CFR - XML import'!$A102)),0,VALUE(MID('CFR - XML import'!$A102,SEARCH(\">\",'CFR - XML import'!$A102,1)+1,SEARCH(\"/\",'CFR - XML import'!$A102,1)-SEARCH(\">\",'CFR - XML import'!$A102,1)-2)))","v":0},{"$f":"IF(ISERROR(FIND(AA$3,'CFR - XML import'!$A102)),0,VALUE(MID('CFR - XML import'!$A102,SEARCH(\">\",'CFR - XML import'!$A102,1)+1,SEARCH(\"/\",'CFR - XML import'!$A102,1)-SEARCH(\">\",'CFR - XML import'!$A102,1)-2)))","v":0},{"$f":"IF(ISERROR(FIND(AB$3,'CFR - XML import'!$A102)),0,VALUE(MID('CFR - XML import'!$A102,SEARCH(\">\",'CFR - XML import'!$A102,1)+1,SEARCH(\"/\",'CFR - XML import'!$A102,1)-SEARCH(\">\",'CFR - XML import'!$A102,1)-2)))","v":0},{"$f":"IF(ISERROR(FIND(AC$3,'CFR - XML import'!$A102)),0,VALUE(MID('CFR - XML import'!$A102,SEARCH(\">\",'CFR - XML import'!$A102,1)+1,SEARCH(\"/\",'CFR - XML import'!$A102,1)-SEARCH(\">\",'CFR - XML import'!$A102,1)-2)))","v":0},{"$f":"IF(ISERROR(FIND(AD$3,'CFR - XML import'!$A102)),0,VALUE(MID('CFR - XML import'!$A102,SEARCH(\">\",'CFR - XML import'!$A102,1)+1,SEARCH(\"/\",'CFR - XML import'!$A102,1)-SEARCH(\">\",'CFR - XML import'!$A102,1)-2)))","v":0},{"$f":"IF(ISERROR(FIND(AE$3,'CFR - XML import'!$A102)),0,VALUE(MID('CFR - XML import'!$A102,SEARCH(\">\",'CFR - XML import'!$A102,1)+1,SEARCH(\"/\",'CFR - XML import'!$A102,1)-SEARCH(\">\",'CFR - XML import'!$A102,1)-2)))","v":0},{"$f":"IF(ISERROR(FIND(AF$3,'CFR - XML import'!$A102)),0,VALUE(MID('CFR - XML import'!$A102,SEARCH(\">\",'CFR - XML import'!$A102,1)+1,SEARCH(\"/\",'CFR - XML import'!$A102,1)-SEARCH(\">\",'CFR - XML import'!$A102,1)-2)))","v":0},{"$f":"IF(ISERROR(FIND(AG$3,'CFR - XML import'!$A102)),0,VALUE(MID('CFR - XML import'!$A102,SEARCH(\">\",'CFR - XML import'!$A102,1)+1,SEARCH(\"/\",'CFR - XML import'!$A102,1)-SEARCH(\">\",'CFR - XML import'!$A102,1)-2)))","v":0},{"$f":"IF(ISERROR(FIND(AH$3,'CFR - XML import'!$A102)),0,VALUE(MID('CFR - XML import'!$A102,SEARCH(\">\",'CFR - XML import'!$A102,1)+1,SEARCH(\"/\",'CFR - XML import'!$A102,1)-SEARCH(\">\",'CFR - XML import'!$A102,1)-2)))","v":0},{"$f":"IF(ISERROR(FIND(AI$3,'CFR - XML import'!$A102)),0,VALUE(MID('CFR - XML import'!$A102,SEARCH(\">\",'CFR - XML import'!$A102,1)+1,SEARCH(\"/\",'CFR - XML import'!$A102,1)-SEARCH(\">\",'CFR - XML import'!$A102,1)-2)))","v":0},{"$f":"IF(ISERROR(FIND(AJ$3,'CFR - XML import'!$A102)),0,VALUE(MID('CFR - XML import'!$A102,SEARCH(\">\",'CFR - XML import'!$A102,1)+1,SEARCH(\"/\",'CFR - XML import'!$A102,1)-SEARCH(\">\",'CFR - XML import'!$A102,1)-2)))","v":0},{"$f":"IF(ISERROR(FIND(AK$3,'CFR - XML import'!$A102)),0,VALUE(MID('CFR - XML import'!$A102,SEARCH(\">\",'CFR - XML import'!$A102,1)+1,SEARCH(\"/\",'CFR - XML import'!$A102,1)-SEARCH(\">\",'CFR - XML import'!$A102,1)-2)))","v":0},{"$f":"IF(ISERROR(FIND(AL$3,'CFR - XML import'!$A102)),0,VALUE(MID('CFR - XML import'!$A102,SEARCH(\">\",'CFR - XML import'!$A102,1)+1,SEARCH(\"/\",'CFR - XML import'!$A102,1)-SEARCH(\">\",'CFR - XML import'!$A102,1)-2)))","v":0},{"$f":"IF(ISERROR(FIND(AM$3,'CFR - XML import'!$A102)),0,VALUE(MID('CFR - XML import'!$A102,SEARCH(\">\",'CFR - XML import'!$A102,1)+1,SEARCH(\"/\",'CFR - XML import'!$A102,1)-SEARCH(\">\",'CFR - XML import'!$A102,1)-2)))","v":0},{"$f":"IF(ISERROR(FIND(AN$3,'CFR - XML import'!$A102)),0,VALUE(MID('CFR - XML import'!$A102,SEARCH(\">\",'CFR - XML import'!$A102,1)+1,SEARCH(\"/\",'CFR - XML import'!$A102,1)-SEARCH(\">\",'CFR - XML import'!$A102,1)-2)))","v":0},{"$f":"IF(ISERROR(FIND(AO$3,'CFR - XML import'!$A102)),0,VALUE(MID('CFR - XML import'!$A102,SEARCH(\">\",'CFR - XML import'!$A102,1)+1,SEARCH(\"/\",'CFR - XML import'!$A102,1)-SEARCH(\">\",'CFR - XML import'!$A102,1)-2)))","v":0},{"$f":"IF(ISERROR(FIND(AP$3,'CFR - XML import'!$A102)),0,VALUE(MID('CFR - XML import'!$A102,SEARCH(\">\",'CFR - XML import'!$A102,1)+1,SEARCH(\"/\",'CFR - XML import'!$A102,1)-SEARCH(\">\",'CFR - XML import'!$A102,1)-2)))","v":0},{"$f":"IF(ISERROR(FIND(AQ$3,'CFR - XML import'!$A102)),0,VALUE(MID('CFR - XML import'!$A102,SEARCH(\">\",'CFR - XML import'!$A102,1)+1,SEARCH(\"/\",'CFR - XML import'!$A102,1)-SEARCH(\">\",'CFR - XML import'!$A102,1)-2)))","v":0},{"$f":"IF(ISERROR(FIND(AR$3,'CFR - XML import'!$A102)),0,VALUE(MID('CFR - XML import'!$A102,SEARCH(\">\",'CFR - XML import'!$A102,1)+1,SEARCH(\"/\",'CFR - XML import'!$A102,1)-SEARCH(\">\",'CFR - XML import'!$A102,1)-2)))","v":0},{"$f":"IF(ISERROR(FIND(AS$3,'CFR - XML import'!$A102)),0,VALUE(MID('CFR - XML import'!$A102,SEARCH(\">\",'CFR - XML import'!$A102,1)+1,SEARCH(\"/\",'CFR - XML import'!$A102,1)-SEARCH(\">\",'CFR - XML import'!$A102,1)-2)))","v":0},{"$f":"IF(ISERROR(FIND(AT$3,'CFR - XML import'!$A102)),0,VALUE(MID('CFR - XML import'!$A102,SEARCH(\">\",'CFR - XML import'!$A102,1)+1,SEARCH(\"/\",'CFR - XML import'!$A102,1)-SEARCH(\">\",'CFR - XML import'!$A102,1)-2)))","v":0},{"$f":"IF(ISERROR(FIND(AU$3,'CFR - XML import'!$A102)),0,VALUE(MID('CFR - XML import'!$A102,SEARCH(\">\",'CFR - XML import'!$A102,1)+1,SEARCH(\"/\",'CFR - XML import'!$A102,1)-SEARCH(\">\",'CFR - XML import'!$A102,1)-2)))","v":0},{"$f":"IF(ISERROR(FIND(AV$3,'CFR - XML import'!$A102)),0,VALUE(MID('CFR - XML import'!$A102,SEARCH(\">\",'CFR - XML import'!$A102,1)+1,SEARCH(\"/\",'CFR - XML import'!$A102,1)-SEARCH(\">\",'CFR - XML import'!$A102,1)-2)))","v":0},{"$f":"IF(ISERROR(FIND(AW$3,'CFR - XML import'!$A102)),0,VALUE(MID('CFR - XML import'!$A102,SEARCH(\">\",'CFR - XML import'!$A102,1)+1,SEARCH(\"/\",'CFR - XML import'!$A102,1)-SEARCH(\">\",'CFR - XML import'!$A102,1)-2)))","v":0},{"$f":"IF(ISERROR(FIND(AX$3,'CFR - XML import'!$A102)),0,VALUE(MID('CFR - XML import'!$A102,SEARCH(\">\",'CFR - XML import'!$A102,1)+1,SEARCH(\"/\",'CFR - XML import'!$A102,1)-SEARCH(\">\",'CFR - XML import'!$A102,1)-2)))","v":0},{"$f":"IF(ISERROR(FIND(AY$3,'CFR - XML import'!$A102)),0,VALUE(MID('CFR - XML import'!$A102,SEARCH(\">\",'CFR - XML import'!$A102,1)+1,SEARCH(\"/\",'CFR - XML import'!$A102,1)-SEARCH(\">\",'CFR - XML import'!$A102,1)-2)))","v":0},{"$f":"IF(ISERROR(FIND(AZ$3,'CFR - XML import'!$A102)),0,VALUE(MID('CFR - XML import'!$A102,SEARCH(\">\",'CFR - XML import'!$A102,1)+1,SEARCH(\"/\",'CFR - XML import'!$A102,1)-SEARCH(\">\",'CFR - XML import'!$A102,1)-2)))","v":0},{"$f":"IF(ISERROR(FIND(BA$3,'CFR - XML import'!$A102)),0,VALUE(MID('CFR - XML import'!$A102,SEARCH(\">\",'CFR - XML import'!$A102,1)+1,SEARCH(\"/\",'CFR - XML import'!$A102,1)-SEARCH(\">\",'CFR - XML import'!$A102,1)-2)))","v":0},{"$f":"IF(ISERROR(FIND(BB$3,'CFR - XML import'!$A102)),0,VALUE(MID('CFR - XML import'!$A102,SEARCH(\">\",'CFR - XML import'!$A102,1)+1,SEARCH(\"/\",'CFR - XML import'!$A102,1)-SEARCH(\">\",'CFR - XML import'!$A102,1)-2)))","v":0},{"$f":"IF(ISERROR(FIND(BC$3,'CFR - XML import'!$A102)),0,VALUE(MID('CFR - XML import'!$A102,SEARCH(\">\",'CFR - XML import'!$A102,1)+1,SEARCH(\"/\",'CFR - XML import'!$A102,1)-SEARCH(\">\",'CFR - XML import'!$A102,1)-2)))","v":0},{"$f":"IF(ISERROR(FIND(BD$3,'CFR - XML import'!$A102)),0,VALUE(MID('CFR - XML import'!$A102,SEARCH(\">\",'CFR - XML import'!$A102,1)+1,SEARCH(\"/\",'CFR - XML import'!$A102,1)-SEARCH(\">\",'CFR - XML import'!$A102,1)-2)))","v":0},{"$f":"IF(ISERROR(FIND(BE$3,'CFR - XML import'!$A102)),0,VALUE(MID('CFR - XML import'!$A102,SEARCH(\">\",'CFR - XML import'!$A102,1)+1,SEARCH(\"/\",'CFR - XML import'!$A102,1)-SEARCH(\">\",'CFR - XML import'!$A102,1)-2)))","v":0},{"$f":"IF(ISERROR(FIND(BF$3,'CFR - XML import'!$A102)),0,VALUE(MID('CFR - XML import'!$A102,SEARCH(\">\",'CFR - XML import'!$A102,1)+1,SEARCH(\"/\",'CFR - XML import'!$A102,1)-SEARCH(\">\",'CFR - XML import'!$A102,1)-2)))","v":0},{"$f":"IF(ISERROR(FIND(BG$3,'CFR - XML import'!$A102)),0,VALUE(MID('CFR - XML import'!$A102,SEARCH(\">\",'CFR - XML import'!$A102,1)+1,SEARCH(\"/\",'CFR - XML import'!$A102,1)-SEARCH(\">\",'CFR - XML import'!$A102,1)-2)))","v":0},{"$f":"IF(ISERROR(FIND(BH$3,'CFR - XML import'!$A102)),0,VALUE(MID('CFR - XML import'!$A102,SEARCH(\">\",'CFR - XML import'!$A102,1)+1,SEARCH(\"/\",'CFR - XML import'!$A102,1)-SEARCH(\">\",'CFR - XML import'!$A102,1)-2)))","v":0},{"$f":"IF(ISERROR(FIND(BI$3,'CFR - XML import'!$A102)),0,VALUE(MID('CFR - XML import'!$A102,SEARCH(\">\",'CFR - XML import'!$A102,1)+1,SEARCH(\"/\",'CFR - XML import'!$A102,1)-SEARCH(\">\",'CFR - XML import'!$A102,1)-2)))","v":0},{"$f":"IF(ISERROR(FIND(BJ$3,'CFR - XML import'!$A102)),0,VALUE(MID('CFR - XML import'!$A102,SEARCH(\">\",'CFR - XML import'!$A102,1)+1,SEARCH(\"/\",'CFR - XML import'!$A102,1)-SEARCH(\">\",'CFR - XML import'!$A102,1)-2)))","v":0},{"$f":"IF(ISERROR(FIND(BK$3,'CFR - XML import'!$A102)),0,VALUE(MID('CFR - XML import'!$A102,SEARCH(\">\",'CFR - XML import'!$A102,1)+1,SEARCH(\"/\",'CFR - XML import'!$A102,1)-SEARCH(\">\",'CFR - XML import'!$A102,1)-2)))","v":0},{"$f":"IF(ISERROR(FIND(BL$3,'CFR - XML import'!$A102)),0,VALUE(MID('CFR - XML import'!$A102,SEARCH(\">\",'CFR - XML import'!$A102,1)+1,SEARCH(\"/\",'CFR - XML import'!$A102,1)-SEARCH(\">\",'CFR - XML import'!$A102,1)-2)))","v":0},{"$f":"IF(ISERROR(FIND(BM$3,'CFR - XML import'!$A102)),0,VALUE(MID('CFR - XML import'!$A102,SEARCH(\">\",'CFR - XML import'!$A102,1)+1,SEARCH(\"/\",'CFR - XML import'!$A102,1)-SEARCH(\">\",'CFR - XML import'!$A102,1)-2)))","v":0},{"$f":"IF(ISERROR(FIND(BN$3,'CFR - XML import'!$A102)),0,VALUE(MID('CFR - XML import'!$A102,SEARCH(\">\",'CFR - XML import'!$A102,1)+1,SEARCH(\"/\",'CFR - XML import'!$A102,1)-SEARCH(\">\",'CFR - XML import'!$A102,1)-2)))","v":0},{"$f":"IF(ISERROR(FIND(BO$3,'CFR - XML import'!$A102)),0,VALUE(MID('CFR - XML import'!$A102,SEARCH(\">\",'CFR - XML import'!$A102,1)+1,SEARCH(\"/\",'CFR - XML import'!$A102,1)-SEARCH(\">\",'CFR - XML import'!$A102,1)-2)))","v":0},{"$f":"IF(ISERROR(FIND(BP$3,'CFR - XML import'!$A102)),0,VALUE(MID('CFR - XML import'!$A102,SEARCH(\">\",'CFR - XML import'!$A102,1)+1,SEARCH(\"/\",'CFR - XML import'!$A102,1)-SEARCH(\">\",'CFR - XML import'!$A102,1)-2)))","v":0},{"$f":"IF(ISERROR(FIND(BQ$3,'CFR - XML import'!$A102)),0,VALUE(MID('CFR - XML import'!$A102,SEARCH(\">\",'CFR - XML import'!$A102,1)+1,SEARCH(\"/\",'CFR - XML import'!$A102,1)-SEARCH(\">\",'CFR - XML import'!$A102,1)-2)))","v":0},{"$f":"IF(ISERROR(FIND(BR$3,'CFR - XML import'!$A102)),0,VALUE(MID('CFR - XML import'!$A102,SEARCH(\">\",'CFR - XML import'!$A102,1)+1,SEARCH(\"/\",'CFR - XML import'!$A102,1)-SEARCH(\">\",'CFR - XML import'!$A102,1)-2)))","v":0},{"$f":"IF(ISERROR(FIND(BS$3,'CFR - XML import'!$A102)),0,VALUE(MID('CFR - XML import'!$A102,SEARCH(\">\",'CFR - XML import'!$A102,1)+1,SEARCH(\"/\",'CFR - XML import'!$A102,1)-SEARCH(\">\",'CFR - XML import'!$A102,1)-2)))","v":0},{"$f":"IF(ISERROR(FIND(BT$3,'CFR - XML import'!$A102)),0,VALUE(MID('CFR - XML import'!$A102,SEARCH(\">\",'CFR - XML import'!$A102,1)+1,SEARCH(\"/\",'CFR - XML import'!$A102,1)-SEARCH(\">\",'CFR - XML import'!$A102,1)-2)))","v":0},{"$f":"IF(ISERROR(FIND(BU$3,'CFR - XML import'!$A102)),0,VALUE(MID('CFR - XML import'!$A102,SEARCH(\">\",'CFR - XML import'!$A102,1)+1,SEARCH(\"/\",'CFR - XML import'!$A102,1)-SEARCH(\">\",'CFR - XML import'!$A102,1)-2)))","v":0},{"$f":"IF(ISERROR(FIND(BV$3,'CFR - XML import'!$A102)),0,VALUE(MID('CFR - XML import'!$A102,SEARCH(\">\",'CFR - XML import'!$A102,1)+1,SEARCH(\"/\",'CFR - XML import'!$A102,1)-SEARCH(\">\",'CFR - XML import'!$A102,1)-2)))","v":0},{"$f":"IF(ISERROR(FIND(BW$3,'CFR - XML import'!$A102)),0,VALUE(MID('CFR - XML import'!$A102,SEARCH(\">\",'CFR - XML import'!$A102,1)+1,SEARCH(\"/\",'CFR - XML import'!$A102,1)-SEARCH(\">\",'CFR - XML import'!$A102,1)-2)))","v":0},{"$f":"IF(ISERROR(FIND(BX$3,'CFR - XML import'!$A102)),0,VALUE(MID('CFR - XML import'!$A102,SEARCH(\">\",'CFR - XML import'!$A102,1)+1,SEARCH(\"/\",'CFR - XML import'!$A102,1)-SEARCH(\">\",'CFR - XML import'!$A102,1)-2)))","v":0},{"$f":"IF(ISERROR(FIND(BY$3,'CFR - XML import'!$A102)),0,VALUE(MID('CFR - XML import'!$A102,SEARCH(\">\",'CFR - XML import'!$A102,1)+1,SEARCH(\"/\",'CFR - XML import'!$A102,1)-SEARCH(\">\",'CFR - XML import'!$A102,1)-2)))","v":0},{"$f":"IF(ISERROR(FIND(BZ$3,'CFR - XML import'!$A102)),0,VALUE(MID('CFR - XML import'!$A102,SEARCH(\">\",'CFR - XML import'!$A102,1)+1,SEARCH(\"/\",'CFR - XML import'!$A102,1)-SEARCH(\">\",'CFR - XML import'!$A102,1)-2)))","v":0},null,null,null,null,null,null,{"$f":"IF(ISERROR(IF(MID('CFR - XML import'!$A102,LEN($CF$4)+1,LEN('CFR - XML import'!$A102)-(2*LEN($CF$4)+1))=\"RMMS\",1,IF(MID('CFR - XML import'!$A102,LEN(\"    <InputSystem>\")+1,LEN('CFR - XML import'!$A102)-(LEN(\"    <InputSystem>\")+LEN($CF$4)+1))=\"SIMS\",2,0))),0,IF(MID('CFR - XML import'!$A102,LEN($CF$4)+1,LEN('CFR - XML import'!$A102)-(2*LEN($CF$4)+1))=\"RMMS\",1,IF(MID('CFR - XML import'!$A102,LEN(\"    <InputSystem>\")+1,LEN('CFR - XML import'!$A102)-(LEN(\"    <InputSystem>\")+LEN($CF$4)+1))=\"SIMS\",2,0)))","v":0},{"$f":"IF(ISERROR(FIND(CH$3,'CFR - XML import'!$A102)),0,MID('CFR - XML import'!$A102,SEARCH(\">\",'CFR - XML import'!$A102,1)+1,SEARCH(\"/\",'CFR - XML import'!$A102,1)-SEARCH(\">\",'CFR - XML import'!$A102,1)-2))","v":0},{"$f":"IF(ISERROR(FIND(CI$3,'CFR - XML import'!$A102)),0,MID('CFR - XML import'!$A102,SEARCH(\">\",'CFR - XML import'!$A102,1)+1,SEARCH(\"/\",'CFR - XML import'!$A102,1)-SEARCH(\">\",'CFR - XML import'!$A102,1)-2))","v":0},{"$f":"IF(ISERROR(FIND(CJ$3,'CFR - XML import'!$A102)),0,MID('CFR - XML import'!$A102,SEARCH(\">\",'CFR - XML import'!$A102,1)+1,SEARCH(\"/\",'CFR - XML import'!$A102,1)-SEARCH(\">\",'CFR - XML import'!$A102,1)-2))","v":0},{"$f":"IF(ISERROR(FIND(CK$3,'CFR - XML import'!$A102)),0,MID('CFR - XML import'!$A102,SEARCH(\">\",'CFR - XML import'!$A102,1)+1,SEARCH(\"/\",'CFR - XML import'!$A102,1)-SEARCH(\">\",'CFR - XML import'!$A102,1)-2))","v":0},{"$f":"IF(ISERROR(FIND(CL$3,'CFR - XML import'!$A102)),0,MID('CFR - XML import'!$A102,SEARCH(\">\",'CFR - XML import'!$A102,1)+1,SEARCH(\"/\",'CFR - XML import'!$A102,1)-SEARCH(\">\",'CFR - XML import'!$A102,1)-2))","v":0}]
[{"$f":"IF(AND('CFR - XML import'!A103<>\"\",LEFT('CFR - XML import'!A103,1)<>\"<\",LEFT('CFR - XML import'!A103,3)<>\"  <\",LEFT('CFR - XML import'!A103,5)<>\"    <\",LEFT('CFR - XML import'!A103,7)<>\"      <\",LEFT('CFR - XML import'!A103,9)<>\"        <\",$B$1=\"SIMS\"),'CFR - XML import'!A103,IF(AND(LEFT('CFR - XML import'!A103,9)=\"<Details>\",$B$1=\"RM\"),'CFR - XML import'!A103,\"\"))","v":""},{"$f":"IF(ISERROR(FIND(B$3,'CFR - XML import'!$A103)),0,VALUE(MID('CFR - XML import'!$A103,SEARCH(\">\",'CFR - XML import'!$A103,1)+1,SEARCH(\"/\",'CFR - XML import'!$A103,1)-SEARCH(\">\",'CFR - XML import'!$A103,1)-2)))","v":0},null,{"$f":"IF(ISERROR(FIND(D$3,'CFR - XML import'!$A103)),0,MID('CFR - XML import'!$A103,SEARCH(\">\",'CFR - XML import'!$A103,1)+1,SEARCH(\"/\",'CFR - XML import'!$A103,1)-SEARCH(\">\",'CFR - XML import'!$A103,1)-2))","v":0},{"$f":"IF(ISERROR(FIND(E$3,'CFR - XML import'!$A103)),0,MID('CFR - XML import'!$A103,SEARCH(\">\",'CFR - XML import'!$A103,1)+1,SEARCH(\"/\",'CFR - XML import'!$A103,1)-SEARCH(\">\",'CFR - XML import'!$A103,1)-2))","v":0},{"$f":"IF($B$1=\"SIMS\",IF(ISERROR(FIND(F$3,'CFR - XML import'!$A103)),0,VALUE(MID('CFR - XML import'!$A103,15,10))),IF(ISERROR(FIND(F$3,'CFR - XML import'!$A103)),0,VALUE(MID('CFR - XML import'!$A103,11,10))))","v":"00:00:00"},{"$f":"IF(ISERROR(FIND(G$3,'CFR - XML import'!$A103)),0,VALUE(MID('CFR - XML import'!$A103,SEARCH(\">\",'CFR - XML import'!$A103,1)+1,SEARCH(\"/\",'CFR - XML import'!$A103,1)-SEARCH(\">\",'CFR - XML import'!$A103,1)-2)))","v":0},{"$f":"IF(ISERROR(FIND(H$3,'CFR - XML import'!$A103)),0,VALUE(MID('CFR - XML import'!$A103,SEARCH(\">\",'CFR - XML import'!$A103,1)+1,SEARCH(\"/\",'CFR - XML import'!$A103,1)-SEARCH(\">\",'CFR - XML import'!$A103,1)-2)))","v":0},{"$f":"IF(ISERROR(FIND(I$3,'CFR - XML import'!$A103)),0,VALUE(MID('CFR - XML import'!$A103,SEARCH(\">\",'CFR - XML import'!$A103,1)+1,SEARCH(\"/\",'CFR - XML import'!$A103,1)-SEARCH(\">\",'CFR - XML import'!$A103,1)-2)))","v":0},{"$f":"IF(ISERROR(FIND(J$3,'CFR - XML import'!$A103)),0,VALUE(MID('CFR - XML import'!$A103,SEARCH(\">\",'CFR - XML import'!$A103,1)+1,SEARCH(\"/\",'CFR - XML import'!$A103,1)-SEARCH(\">\",'CFR - XML import'!$A103,1)-2)))","v":0},{"$f":"IF(ISERROR(FIND(K$3,'CFR - XML import'!$A103)),0,VALUE(MID('CFR - XML import'!$A103,SEARCH(\">\",'CFR - XML import'!$A103,1)+1,SEARCH(\"/\",'CFR - XML import'!$A103,1)-SEARCH(\">\",'CFR - XML import'!$A103,1)-2)))","v":0},{"$f":"IF(ISERROR(FIND(L$3,'CFR - XML import'!$A103)),0,VALUE(MID('CFR - XML import'!$A103,SEARCH(\">\",'CFR - XML import'!$A103,1)+1,SEARCH(\"/\",'CFR - XML import'!$A103,1)-SEARCH(\">\",'CFR - XML import'!$A103,1)-2)))","v":0},{"$f":"IF(ISERROR(FIND(M$3,'CFR - XML import'!$A103)),0,VALUE(MID('CFR - XML import'!$A103,SEARCH(\">\",'CFR - XML import'!$A103,1)+1,SEARCH(\"/\",'CFR - XML import'!$A103,1)-SEARCH(\">\",'CFR - XML import'!$A103,1)-2)))","v":0},{"$f":"IF(ISERROR(FIND(N$3,'CFR - XML import'!$A103)),0,VALUE(MID('CFR - XML import'!$A103,SEARCH(\">\",'CFR - XML import'!$A103,1)+1,SEARCH(\"/\",'CFR - XML import'!$A103,1)-SEARCH(\">\",'CFR - XML import'!$A103,1)-2)))","v":0},{"$f":"IF(ISERROR(FIND(O$3,'CFR - XML import'!$A103)),0,VALUE(MID('CFR - XML import'!$A103,SEARCH(\">\",'CFR - XML import'!$A103,1)+1,SEARCH(\"/\",'CFR - XML import'!$A103,1)-SEARCH(\">\",'CFR - XML import'!$A103,1)-2)))","v":0},{"$f":"IF(ISERROR(FIND(P$3,'CFR - XML import'!$A103)),0,VALUE(MID('CFR - XML import'!$A103,SEARCH(\">\",'CFR - XML import'!$A103,1)+1,SEARCH(\"/\",'CFR - XML import'!$A103,1)-SEARCH(\">\",'CFR - XML import'!$A103,1)-2)))","v":0},{"$f":"IF(ISERROR(FIND(Q$3,'CFR - XML import'!$A103)),0,VALUE(MID('CFR - XML import'!$A103,SEARCH(\">\",'CFR - XML import'!$A103,1)+1,SEARCH(\"/\",'CFR - XML import'!$A103,1)-SEARCH(\">\",'CFR - XML import'!$A103,1)-2)))","v":0},{"$f":"IF(ISERROR(FIND(R$3,'CFR - XML import'!$A103)),0,VALUE(MID('CFR - XML import'!$A103,SEARCH(\">\",'CFR - XML import'!$A103,1)+1,SEARCH(\"/\",'CFR - XML import'!$A103,1)-SEARCH(\">\",'CFR - XML import'!$A103,1)-2)))","v":0},{"$f":"IF(ISERROR(FIND(S$3,'CFR - XML import'!$A103)),0,VALUE(MID('CFR - XML import'!$A103,SEARCH(\">\",'CFR - XML import'!$A103,1)+1,SEARCH(\"/\",'CFR - XML import'!$A103,1)-SEARCH(\">\",'CFR - XML import'!$A103,1)-2)))","v":0},{"$f":"IF(ISERROR(FIND(T$3,'CFR - XML import'!$A103)),0,VALUE(MID('CFR - XML import'!$A103,SEARCH(\">\",'CFR - XML import'!$A103,1)+1,SEARCH(\"/\",'CFR - XML import'!$A103,1)-SEARCH(\">\",'CFR - XML import'!$A103,1)-2)))","v":0},{"$f":"IF(ISERROR(FIND(U$3,'CFR - XML import'!$A103)),0,VALUE(MID('CFR - XML import'!$A103,SEARCH(\">\",'CFR - XML import'!$A103,1)+1,SEARCH(\"/\",'CFR - XML import'!$A103,1)-SEARCH(\">\",'CFR - XML import'!$A103,1)-2)))","v":0},{"$f":"IF(ISERROR(FIND(V$3,'CFR - XML import'!$A103)),0,VALUE(MID('CFR - XML import'!$A103,SEARCH(\">\",'CFR - XML import'!$A103,1)+1,SEARCH(\"/\",'CFR - XML import'!$A103,1)-SEARCH(\">\",'CFR - XML import'!$A103,1)-2)))","v":0},{"$f":"IF(ISERROR(FIND(W$3,'CFR - XML import'!$A103)),0,VALUE(MID('CFR - XML import'!$A103,SEARCH(\">\",'CFR - XML import'!$A103,1)+1,SEARCH(\"/\",'CFR - XML import'!$A103,1)-SEARCH(\">\",'CFR - XML import'!$A103,1)-2)))","v":0},null,{"$f":"IF(ISERROR(FIND(Y$3,'CFR - XML import'!$A103)),0,VALUE(MID('CFR - XML import'!$A103,SEARCH(\">\",'CFR - XML import'!$A103,1)+1,SEARCH(\"/\",'CFR - XML import'!$A103,1)-SEARCH(\">\",'CFR - XML import'!$A103,1)-2)))","v":0},{"$f":"IF(ISERROR(FIND(Z$3,'CFR - XML import'!$A103)),0,VALUE(MID('CFR - XML import'!$A103,SEARCH(\">\",'CFR - XML import'!$A103,1)+1,SEARCH(\"/\",'CFR - XML import'!$A103,1)-SEARCH(\">\",'CFR - XML import'!$A103,1)-2)))","v":0},{"$f":"IF(ISERROR(FIND(AA$3,'CFR - XML import'!$A103)),0,VALUE(MID('CFR - XML import'!$A103,SEARCH(\">\",'CFR - XML import'!$A103,1)+1,SEARCH(\"/\",'CFR - XML import'!$A103,1)-SEARCH(\">\",'CFR - XML import'!$A103,1)-2)))","v":0},{"$f":"IF(ISERROR(FIND(AB$3,'CFR - XML import'!$A103)),0,VALUE(MID('CFR - XML import'!$A103,SEARCH(\">\",'CFR - XML import'!$A103,1)+1,SEARCH(\"/\",'CFR - XML import'!$A103,1)-SEARCH(\">\",'CFR - XML import'!$A103,1)-2)))","v":0},{"$f":"IF(ISERROR(FIND(AC$3,'CFR - XML import'!$A103)),0,VALUE(MID('CFR - XML import'!$A103,SEARCH(\">\",'CFR - XML import'!$A103,1)+1,SEARCH(\"/\",'CFR - XML import'!$A103,1)-SEARCH(\">\",'CFR - XML import'!$A103,1)-2)))","v":0},{"$f":"IF(ISERROR(FIND(AD$3,'CFR - XML import'!$A103)),0,VALUE(MID('CFR - XML import'!$A103,SEARCH(\">\",'CFR - XML import'!$A103,1)+1,SEARCH(\"/\",'CFR - XML import'!$A103,1)-SEARCH(\">\",'CFR - XML import'!$A103,1)-2)))","v":0},{"$f":"IF(ISERROR(FIND(AE$3,'CFR - XML import'!$A103)),0,VALUE(MID('CFR - XML import'!$A103,SEARCH(\">\",'CFR - XML import'!$A103,1)+1,SEARCH(\"/\",'CFR - XML import'!$A103,1)-SEARCH(\">\",'CFR - XML import'!$A103,1)-2)))","v":0},{"$f":"IF(ISERROR(FIND(AF$3,'CFR - XML import'!$A103)),0,VALUE(MID('CFR - XML import'!$A103,SEARCH(\">\",'CFR - XML import'!$A103,1)+1,SEARCH(\"/\",'CFR - XML import'!$A103,1)-SEARCH(\">\",'CFR - XML import'!$A103,1)-2)))","v":0},{"$f":"IF(ISERROR(FIND(AG$3,'CFR - XML import'!$A103)),0,VALUE(MID('CFR - XML import'!$A103,SEARCH(\">\",'CFR - XML import'!$A103,1)+1,SEARCH(\"/\",'CFR - XML import'!$A103,1)-SEARCH(\">\",'CFR - XML import'!$A103,1)-2)))","v":0},{"$f":"IF(ISERROR(FIND(AH$3,'CFR - XML import'!$A103)),0,VALUE(MID('CFR - XML import'!$A103,SEARCH(\">\",'CFR - XML import'!$A103,1)+1,SEARCH(\"/\",'CFR - XML import'!$A103,1)-SEARCH(\">\",'CFR - XML import'!$A103,1)-2)))","v":0},{"$f":"IF(ISERROR(FIND(AI$3,'CFR - XML import'!$A103)),0,VALUE(MID('CFR - XML import'!$A103,SEARCH(\">\",'CFR - XML import'!$A103,1)+1,SEARCH(\"/\",'CFR - XML import'!$A103,1)-SEARCH(\">\",'CFR - XML import'!$A103,1)-2)))","v":0},{"$f":"IF(ISERROR(FIND(AJ$3,'CFR - XML import'!$A103)),0,VALUE(MID('CFR - XML import'!$A103,SEARCH(\">\",'CFR - XML import'!$A103,1)+1,SEARCH(\"/\",'CFR - XML import'!$A103,1)-SEARCH(\">\",'CFR - XML import'!$A103,1)-2)))","v":0},{"$f":"IF(ISERROR(FIND(AK$3,'CFR - XML import'!$A103)),0,VALUE(MID('CFR - XML import'!$A103,SEARCH(\">\",'CFR - XML import'!$A103,1)+1,SEARCH(\"/\",'CFR - XML import'!$A103,1)-SEARCH(\">\",'CFR - XML import'!$A103,1)-2)))","v":0},{"$f":"IF(ISERROR(FIND(AL$3,'CFR - XML import'!$A103)),0,VALUE(MID('CFR - XML import'!$A103,SEARCH(\">\",'CFR - XML import'!$A103,1)+1,SEARCH(\"/\",'CFR - XML import'!$A103,1)-SEARCH(\">\",'CFR - XML import'!$A103,1)-2)))","v":0},{"$f":"IF(ISERROR(FIND(AM$3,'CFR - XML import'!$A103)),0,VALUE(MID('CFR - XML import'!$A103,SEARCH(\">\",'CFR - XML import'!$A103,1)+1,SEARCH(\"/\",'CFR - XML import'!$A103,1)-SEARCH(\">\",'CFR - XML import'!$A103,1)-2)))","v":0},{"$f":"IF(ISERROR(FIND(AN$3,'CFR - XML import'!$A103)),0,VALUE(MID('CFR - XML import'!$A103,SEARCH(\">\",'CFR - XML import'!$A103,1)+1,SEARCH(\"/\",'CFR - XML import'!$A103,1)-SEARCH(\">\",'CFR - XML import'!$A103,1)-2)))","v":0},{"$f":"IF(ISERROR(FIND(AO$3,'CFR - XML import'!$A103)),0,VALUE(MID('CFR - XML import'!$A103,SEARCH(\">\",'CFR - XML import'!$A103,1)+1,SEARCH(\"/\",'CFR - XML import'!$A103,1)-SEARCH(\">\",'CFR - XML import'!$A103,1)-2)))","v":0},{"$f":"IF(ISERROR(FIND(AP$3,'CFR - XML import'!$A103)),0,VALUE(MID('CFR - XML import'!$A103,SEARCH(\">\",'CFR - XML import'!$A103,1)+1,SEARCH(\"/\",'CFR - XML import'!$A103,1)-SEARCH(\">\",'CFR - XML import'!$A103,1)-2)))","v":0},{"$f":"IF(ISERROR(FIND(AQ$3,'CFR - XML import'!$A103)),0,VALUE(MID('CFR - XML import'!$A103,SEARCH(\">\",'CFR - XML import'!$A103,1)+1,SEARCH(\"/\",'CFR - XML import'!$A103,1)-SEARCH(\">\",'CFR - XML import'!$A103,1)-2)))","v":0},{"$f":"IF(ISERROR(FIND(AR$3,'CFR - XML import'!$A103)),0,VALUE(MID('CFR - XML import'!$A103,SEARCH(\">\",'CFR - XML import'!$A103,1)+1,SEARCH(\"/\",'CFR - XML import'!$A103,1)-SEARCH(\">\",'CFR - XML import'!$A103,1)-2)))","v":0},{"$f":"IF(ISERROR(FIND(AS$3,'CFR - XML import'!$A103)),0,VALUE(MID('CFR - XML import'!$A103,SEARCH(\">\",'CFR - XML import'!$A103,1)+1,SEARCH(\"/\",'CFR - XML import'!$A103,1)-SEARCH(\">\",'CFR - XML import'!$A103,1)-2)))","v":0},{"$f":"IF(ISERROR(FIND(AT$3,'CFR - XML import'!$A103)),0,VALUE(MID('CFR - XML import'!$A103,SEARCH(\">\",'CFR - XML import'!$A103,1)+1,SEARCH(\"/\",'CFR - XML import'!$A103,1)-SEARCH(\">\",'CFR - XML import'!$A103,1)-2)))","v":0},{"$f":"IF(ISERROR(FIND(AU$3,'CFR - XML import'!$A103)),0,VALUE(MID('CFR - XML import'!$A103,SEARCH(\">\",'CFR - XML import'!$A103,1)+1,SEARCH(\"/\",'CFR - XML import'!$A103,1)-SEARCH(\">\",'CFR - XML import'!$A103,1)-2)))","v":0},{"$f":"IF(ISERROR(FIND(AV$3,'CFR - XML import'!$A103)),0,VALUE(MID('CFR - XML import'!$A103,SEARCH(\">\",'CFR - XML import'!$A103,1)+1,SEARCH(\"/\",'CFR - XML import'!$A103,1)-SEARCH(\">\",'CFR - XML import'!$A103,1)-2)))","v":0},{"$f":"IF(ISERROR(FIND(AW$3,'CFR - XML import'!$A103)),0,VALUE(MID('CFR - XML import'!$A103,SEARCH(\">\",'CFR - XML import'!$A103,1)+1,SEARCH(\"/\",'CFR - XML import'!$A103,1)-SEARCH(\">\",'CFR - XML import'!$A103,1)-2)))","v":0},{"$f":"IF(ISERROR(FIND(AX$3,'CFR - XML import'!$A103)),0,VALUE(MID('CFR - XML import'!$A103,SEARCH(\">\",'CFR - XML import'!$A103,1)+1,SEARCH(\"/\",'CFR - XML import'!$A103,1)-SEARCH(\">\",'CFR - XML import'!$A103,1)-2)))","v":0},{"$f":"IF(ISERROR(FIND(AY$3,'CFR - XML import'!$A103)),0,VALUE(MID('CFR - XML import'!$A103,SEARCH(\">\",'CFR - XML import'!$A103,1)+1,SEARCH(\"/\",'CFR - XML import'!$A103,1)-SEARCH(\">\",'CFR - XML import'!$A103,1)-2)))","v":0},{"$f":"IF(ISERROR(FIND(AZ$3,'CFR - XML import'!$A103)),0,VALUE(MID('CFR - XML import'!$A103,SEARCH(\">\",'CFR - XML import'!$A103,1)+1,SEARCH(\"/\",'CFR - XML import'!$A103,1)-SEARCH(\">\",'CFR - XML import'!$A103,1)-2)))","v":0},{"$f":"IF(ISERROR(FIND(BA$3,'CFR - XML import'!$A103)),0,VALUE(MID('CFR - XML import'!$A103,SEARCH(\">\",'CFR - XML import'!$A103,1)+1,SEARCH(\"/\",'CFR - XML import'!$A103,1)-SEARCH(\">\",'CFR - XML import'!$A103,1)-2)))","v":0},{"$f":"IF(ISERROR(FIND(BB$3,'CFR - XML import'!$A103)),0,VALUE(MID('CFR - XML import'!$A103,SEARCH(\">\",'CFR - XML import'!$A103,1)+1,SEARCH(\"/\",'CFR - XML import'!$A103,1)-SEARCH(\">\",'CFR - XML import'!$A103,1)-2)))","v":0},{"$f":"IF(ISERROR(FIND(BC$3,'CFR - XML import'!$A103)),0,VALUE(MID('CFR - XML import'!$A103,SEARCH(\">\",'CFR - XML import'!$A103,1)+1,SEARCH(\"/\",'CFR - XML import'!$A103,1)-SEARCH(\">\",'CFR - XML import'!$A103,1)-2)))","v":0},{"$f":"IF(ISERROR(FIND(BD$3,'CFR - XML import'!$A103)),0,VALUE(MID('CFR - XML import'!$A103,SEARCH(\">\",'CFR - XML import'!$A103,1)+1,SEARCH(\"/\",'CFR - XML import'!$A103,1)-SEARCH(\">\",'CFR - XML import'!$A103,1)-2)))","v":0},{"$f":"IF(ISERROR(FIND(BE$3,'CFR - XML import'!$A103)),0,VALUE(MID('CFR - XML import'!$A103,SEARCH(\">\",'CFR - XML import'!$A103,1)+1,SEARCH(\"/\",'CFR - XML import'!$A103,1)-SEARCH(\">\",'CFR - XML import'!$A103,1)-2)))","v":0},{"$f":"IF(ISERROR(FIND(BF$3,'CFR - XML import'!$A103)),0,VALUE(MID('CFR - XML import'!$A103,SEARCH(\">\",'CFR - XML import'!$A103,1)+1,SEARCH(\"/\",'CFR - XML import'!$A103,1)-SEARCH(\">\",'CFR - XML import'!$A103,1)-2)))","v":0},{"$f":"IF(ISERROR(FIND(BG$3,'CFR - XML import'!$A103)),0,VALUE(MID('CFR - XML import'!$A103,SEARCH(\">\",'CFR - XML import'!$A103,1)+1,SEARCH(\"/\",'CFR - XML import'!$A103,1)-SEARCH(\">\",'CFR - XML import'!$A103,1)-2)))","v":0},{"$f":"IF(ISERROR(FIND(BH$3,'CFR - XML import'!$A103)),0,VALUE(MID('CFR - XML import'!$A103,SEARCH(\">\",'CFR - XML import'!$A103,1)+1,SEARCH(\"/\",'CFR - XML import'!$A103,1)-SEARCH(\">\",'CFR - XML import'!$A103,1)-2)))","v":0},{"$f":"IF(ISERROR(FIND(BI$3,'CFR - XML import'!$A103)),0,VALUE(MID('CFR - XML import'!$A103,SEARCH(\">\",'CFR - XML import'!$A103,1)+1,SEARCH(\"/\",'CFR - XML import'!$A103,1)-SEARCH(\">\",'CFR - XML import'!$A103,1)-2)))","v":0},{"$f":"IF(ISERROR(FIND(BJ$3,'CFR - XML import'!$A103)),0,VALUE(MID('CFR - XML import'!$A103,SEARCH(\">\",'CFR - XML import'!$A103,1)+1,SEARCH(\"/\",'CFR - XML import'!$A103,1)-SEARCH(\">\",'CFR - XML import'!$A103,1)-2)))","v":0},{"$f":"IF(ISERROR(FIND(BK$3,'CFR - XML import'!$A103)),0,VALUE(MID('CFR - XML import'!$A103,SEARCH(\">\",'CFR - XML import'!$A103,1)+1,SEARCH(\"/\",'CFR - XML import'!$A103,1)-SEARCH(\">\",'CFR - XML import'!$A103,1)-2)))","v":0},{"$f":"IF(ISERROR(FIND(BL$3,'CFR - XML import'!$A103)),0,VALUE(MID('CFR - XML import'!$A103,SEARCH(\">\",'CFR - XML import'!$A103,1)+1,SEARCH(\"/\",'CFR - XML import'!$A103,1)-SEARCH(\">\",'CFR - XML import'!$A103,1)-2)))","v":0},{"$f":"IF(ISERROR(FIND(BM$3,'CFR - XML import'!$A103)),0,VALUE(MID('CFR - XML import'!$A103,SEARCH(\">\",'CFR - XML import'!$A103,1)+1,SEARCH(\"/\",'CFR - XML import'!$A103,1)-SEARCH(\">\",'CFR - XML import'!$A103,1)-2)))","v":0},{"$f":"IF(ISERROR(FIND(BN$3,'CFR - XML import'!$A103)),0,VALUE(MID('CFR - XML import'!$A103,SEARCH(\">\",'CFR - XML import'!$A103,1)+1,SEARCH(\"/\",'CFR - XML import'!$A103,1)-SEARCH(\">\",'CFR - XML import'!$A103,1)-2)))","v":0},{"$f":"IF(ISERROR(FIND(BO$3,'CFR - XML import'!$A103)),0,VALUE(MID('CFR - XML import'!$A103,SEARCH(\">\",'CFR - XML import'!$A103,1)+1,SEARCH(\"/\",'CFR - XML import'!$A103,1)-SEARCH(\">\",'CFR - XML import'!$A103,1)-2)))","v":0},{"$f":"IF(ISERROR(FIND(BP$3,'CFR - XML import'!$A103)),0,VALUE(MID('CFR - XML import'!$A103,SEARCH(\">\",'CFR - XML import'!$A103,1)+1,SEARCH(\"/\",'CFR - XML import'!$A103,1)-SEARCH(\">\",'CFR - XML import'!$A103,1)-2)))","v":0},{"$f":"IF(ISERROR(FIND(BQ$3,'CFR - XML import'!$A103)),0,VALUE(MID('CFR - XML import'!$A103,SEARCH(\">\",'CFR - XML import'!$A103,1)+1,SEARCH(\"/\",'CFR - XML import'!$A103,1)-SEARCH(\">\",'CFR - XML import'!$A103,1)-2)))","v":0},{"$f":"IF(ISERROR(FIND(BR$3,'CFR - XML import'!$A103)),0,VALUE(MID('CFR - XML import'!$A103,SEARCH(\">\",'CFR - XML import'!$A103,1)+1,SEARCH(\"/\",'CFR - XML import'!$A103,1)-SEARCH(\">\",'CFR - XML import'!$A103,1)-2)))","v":0},{"$f":"IF(ISERROR(FIND(BS$3,'CFR - XML import'!$A103)),0,VALUE(MID('CFR - XML import'!$A103,SEARCH(\">\",'CFR - XML import'!$A103,1)+1,SEARCH(\"/\",'CFR - XML import'!$A103,1)-SEARCH(\">\",'CFR - XML import'!$A103,1)-2)))","v":0},{"$f":"IF(ISERROR(FIND(BT$3,'CFR - XML import'!$A103)),0,VALUE(MID('CFR - XML import'!$A103,SEARCH(\">\",'CFR - XML import'!$A103,1)+1,SEARCH(\"/\",'CFR - XML import'!$A103,1)-SEARCH(\">\",'CFR - XML import'!$A103,1)-2)))","v":0},{"$f":"IF(ISERROR(FIND(BU$3,'CFR - XML import'!$A103)),0,VALUE(MID('CFR - XML import'!$A103,SEARCH(\">\",'CFR - XML import'!$A103,1)+1,SEARCH(\"/\",'CFR - XML import'!$A103,1)-SEARCH(\">\",'CFR - XML import'!$A103,1)-2)))","v":0},{"$f":"IF(ISERROR(FIND(BV$3,'CFR - XML import'!$A103)),0,VALUE(MID('CFR - XML import'!$A103,SEARCH(\">\",'CFR - XML import'!$A103,1)+1,SEARCH(\"/\",'CFR - XML import'!$A103,1)-SEARCH(\">\",'CFR - XML import'!$A103,1)-2)))","v":0},{"$f":"IF(ISERROR(FIND(BW$3,'CFR - XML import'!$A103)),0,VALUE(MID('CFR - XML import'!$A103,SEARCH(\">\",'CFR - XML import'!$A103,1)+1,SEARCH(\"/\",'CFR - XML import'!$A103,1)-SEARCH(\">\",'CFR - XML import'!$A103,1)-2)))","v":0},{"$f":"IF(ISERROR(FIND(BX$3,'CFR - XML import'!$A103)),0,VALUE(MID('CFR - XML import'!$A103,SEARCH(\">\",'CFR - XML import'!$A103,1)+1,SEARCH(\"/\",'CFR - XML import'!$A103,1)-SEARCH(\">\",'CFR - XML import'!$A103,1)-2)))","v":0},{"$f":"IF(ISERROR(FIND(BY$3,'CFR - XML import'!$A103)),0,VALUE(MID('CFR - XML import'!$A103,SEARCH(\">\",'CFR - XML import'!$A103,1)+1,SEARCH(\"/\",'CFR - XML import'!$A103,1)-SEARCH(\">\",'CFR - XML import'!$A103,1)-2)))","v":0},{"$f":"IF(ISERROR(FIND(BZ$3,'CFR - XML import'!$A103)),0,VALUE(MID('CFR - XML import'!$A103,SEARCH(\">\",'CFR - XML import'!$A103,1)+1,SEARCH(\"/\",'CFR - XML import'!$A103,1)-SEARCH(\">\",'CFR - XML import'!$A103,1)-2)))","v":0},null,null,null,null,null,null,{"$f":"IF(ISERROR(IF(MID('CFR - XML import'!$A103,LEN($CF$4)+1,LEN('CFR - XML import'!$A103)-(2*LEN($CF$4)+1))=\"RMMS\",1,IF(MID('CFR - XML import'!$A103,LEN(\"    <InputSystem>\")+1,LEN('CFR - XML import'!$A103)-(LEN(\"    <InputSystem>\")+LEN($CF$4)+1))=\"SIMS\",2,0))),0,IF(MID('CFR - XML import'!$A103,LEN($CF$4)+1,LEN('CFR - XML import'!$A103)-(2*LEN($CF$4)+1))=\"RMMS\",1,IF(MID('CFR - XML import'!$A103,LEN(\"    <InputSystem>\")+1,LEN('CFR - XML import'!$A103)-(LEN(\"    <InputSystem>\")+LEN($CF$4)+1))=\"SIMS\",2,0)))","v":0},{"$f":"IF(ISERROR(FIND(CH$3,'CFR - XML import'!$A103)),0,MID('CFR - XML import'!$A103,SEARCH(\">\",'CFR - XML import'!$A103,1)+1,SEARCH(\"/\",'CFR - XML import'!$A103,1)-SEARCH(\">\",'CFR - XML import'!$A103,1)-2))","v":0},{"$f":"IF(ISERROR(FIND(CI$3,'CFR - XML import'!$A103)),0,MID('CFR - XML import'!$A103,SEARCH(\">\",'CFR - XML import'!$A103,1)+1,SEARCH(\"/\",'CFR - XML import'!$A103,1)-SEARCH(\">\",'CFR - XML import'!$A103,1)-2))","v":0},{"$f":"IF(ISERROR(FIND(CJ$3,'CFR - XML import'!$A103)),0,MID('CFR - XML import'!$A103,SEARCH(\">\",'CFR - XML import'!$A103,1)+1,SEARCH(\"/\",'CFR - XML import'!$A103,1)-SEARCH(\">\",'CFR - XML import'!$A103,1)-2))","v":0},{"$f":"IF(ISERROR(FIND(CK$3,'CFR - XML import'!$A103)),0,MID('CFR - XML import'!$A103,SEARCH(\">\",'CFR - XML import'!$A103,1)+1,SEARCH(\"/\",'CFR - XML import'!$A103,1)-SEARCH(\">\",'CFR - XML import'!$A103,1)-2))","v":0},{"$f":"IF(ISERROR(FIND(CL$3,'CFR - XML import'!$A103)),0,MID('CFR - XML import'!$A103,SEARCH(\">\",'CFR - XML import'!$A103,1)+1,SEARCH(\"/\",'CFR - XML import'!$A103,1)-SEARCH(\">\",'CFR - XML import'!$A103,1)-2))","v":0}]
[{"$f":"IF(AND('CFR - XML import'!A104<>\"\",LEFT('CFR - XML import'!A104,1)<>\"<\",LEFT('CFR - XML import'!A104,3)<>\"  <\",LEFT('CFR - XML import'!A104,5)<>\"    <\",LEFT('CFR - XML import'!A104,7)<>\"      <\",LEFT('CFR - XML import'!A104,9)<>\"        <\",$B$1=\"SIMS\"),'CFR - XML import'!A104,IF(AND(LEFT('CFR - XML import'!A104,9)=\"<Details>\",$B$1=\"RM\"),'CFR - XML import'!A104,\"\"))","v":""},{"$f":"IF(ISERROR(FIND(B$3,'CFR - XML import'!$A104)),0,VALUE(MID('CFR - XML import'!$A104,SEARCH(\">\",'CFR - XML import'!$A104,1)+1,SEARCH(\"/\",'CFR - XML import'!$A104,1)-SEARCH(\">\",'CFR - XML import'!$A104,1)-2)))","v":0},null,{"$f":"IF(ISERROR(FIND(D$3,'CFR - XML import'!$A104)),0,MID('CFR - XML import'!$A104,SEARCH(\">\",'CFR - XML import'!$A104,1)+1,SEARCH(\"/\",'CFR - XML import'!$A104,1)-SEARCH(\">\",'CFR - XML import'!$A104,1)-2))","v":0},{"$f":"IF(ISERROR(FIND(E$3,'CFR - XML import'!$A104)),0,MID('CFR - XML import'!$A104,SEARCH(\">\",'CFR - XML import'!$A104,1)+1,SEARCH(\"/\",'CFR - XML import'!$A104,1)-SEARCH(\">\",'CFR - XML import'!$A104,1)-2))","v":0},{"$f":"IF($B$1=\"SIMS\",IF(ISERROR(FIND(F$3,'CFR - XML import'!$A104)),0,VALUE(MID('CFR - XML import'!$A104,15,10))),IF(ISERROR(FIND(F$3,'CFR - XML import'!$A104)),0,VALUE(MID('CFR - XML import'!$A104,11,10))))","v":"00:00:00"},{"$f":"IF(ISERROR(FIND(G$3,'CFR - XML import'!$A104)),0,VALUE(MID('CFR - XML import'!$A104,SEARCH(\">\",'CFR - XML import'!$A104,1)+1,SEARCH(\"/\",'CFR - XML import'!$A104,1)-SEARCH(\">\",'CFR - XML import'!$A104,1)-2)))","v":0},{"$f":"IF(ISERROR(FIND(H$3,'CFR - XML import'!$A104)),0,VALUE(MID('CFR - XML import'!$A104,SEARCH(\">\",'CFR - XML import'!$A104,1)+1,SEARCH(\"/\",'CFR - XML import'!$A104,1)-SEARCH(\">\",'CFR - XML import'!$A104,1)-2)))","v":0},{"$f":"IF(ISERROR(FIND(I$3,'CFR - XML import'!$A104)),0,VALUE(MID('CFR - XML import'!$A104,SEARCH(\">\",'CFR - XML import'!$A104,1)+1,SEARCH(\"/\",'CFR - XML import'!$A104,1)-SEARCH(\">\",'CFR - XML import'!$A104,1)-2)))","v":0},{"$f":"IF(ISERROR(FIND(J$3,'CFR - XML import'!$A104)),0,VALUE(MID('CFR - XML import'!$A104,SEARCH(\">\",'CFR - XML import'!$A104,1)+1,SEARCH(\"/\",'CFR - XML import'!$A104,1)-SEARCH(\">\",'CFR - XML import'!$A104,1)-2)))","v":0},{"$f":"IF(ISERROR(FIND(K$3,'CFR - XML import'!$A104)),0,VALUE(MID('CFR - XML import'!$A104,SEARCH(\">\",'CFR - XML import'!$A104,1)+1,SEARCH(\"/\",'CFR - XML import'!$A104,1)-SEARCH(\">\",'CFR - XML import'!$A104,1)-2)))","v":0},{"$f":"IF(ISERROR(FIND(L$3,'CFR - XML import'!$A104)),0,VALUE(MID('CFR - XML import'!$A104,SEARCH(\">\",'CFR - XML import'!$A104,1)+1,SEARCH(\"/\",'CFR - XML import'!$A104,1)-SEARCH(\">\",'CFR - XML import'!$A104,1)-2)))","v":0},{"$f":"IF(ISERROR(FIND(M$3,'CFR - XML import'!$A104)),0,VALUE(MID('CFR - XML import'!$A104,SEARCH(\">\",'CFR - XML import'!$A104,1)+1,SEARCH(\"/\",'CFR - XML import'!$A104,1)-SEARCH(\">\",'CFR - XML import'!$A104,1)-2)))","v":0},{"$f":"IF(ISERROR(FIND(N$3,'CFR - XML import'!$A104)),0,VALUE(MID('CFR - XML import'!$A104,SEARCH(\">\",'CFR - XML import'!$A104,1)+1,SEARCH(\"/\",'CFR - XML import'!$A104,1)-SEARCH(\">\",'CFR - XML import'!$A104,1)-2)))","v":0},{"$f":"IF(ISERROR(FIND(O$3,'CFR - XML import'!$A104)),0,VALUE(MID('CFR - XML import'!$A104,SEARCH(\">\",'CFR - XML import'!$A104,1)+1,SEARCH(\"/\",'CFR - XML import'!$A104,1)-SEARCH(\">\",'CFR - XML import'!$A104,1)-2)))","v":0},{"$f":"IF(ISERROR(FIND(P$3,'CFR - XML import'!$A104)),0,VALUE(MID('CFR - XML import'!$A104,SEARCH(\">\",'CFR - XML import'!$A104,1)+1,SEARCH(\"/\",'CFR - XML import'!$A104,1)-SEARCH(\">\",'CFR - XML import'!$A104,1)-2)))","v":0},{"$f":"IF(ISERROR(FIND(Q$3,'CFR - XML import'!$A104)),0,VALUE(MID('CFR - XML import'!$A104,SEARCH(\">\",'CFR - XML import'!$A104,1)+1,SEARCH(\"/\",'CFR - XML import'!$A104,1)-SEARCH(\">\",'CFR - XML import'!$A104,1)-2)))","v":0},{"$f":"IF(ISERROR(FIND(R$3,'CFR - XML import'!$A104)),0,VALUE(MID('CFR - XML import'!$A104,SEARCH(\">\",'CFR - XML import'!$A104,1)+1,SEARCH(\"/\",'CFR - XML import'!$A104,1)-SEARCH(\">\",'CFR - XML import'!$A104,1)-2)))","v":0},{"$f":"IF(ISERROR(FIND(S$3,'CFR - XML import'!$A104)),0,VALUE(MID('CFR - XML import'!$A104,SEARCH(\">\",'CFR - XML import'!$A104,1)+1,SEARCH(\"/\",'CFR - XML import'!$A104,1)-SEARCH(\">\",'CFR - XML import'!$A104,1)-2)))","v":0},{"$f":"IF(ISERROR(FIND(T$3,'CFR - XML import'!$A104)),0,VALUE(MID('CFR - XML import'!$A104,SEARCH(\">\",'CFR - XML import'!$A104,1)+1,SEARCH(\"/\",'CFR - XML import'!$A104,1)-SEARCH(\">\",'CFR - XML import'!$A104,1)-2)))","v":0},{"$f":"IF(ISERROR(FIND(U$3,'CFR - XML import'!$A104)),0,VALUE(MID('CFR - XML import'!$A104,SEARCH(\">\",'CFR - XML import'!$A104,1)+1,SEARCH(\"/\",'CFR - XML import'!$A104,1)-SEARCH(\">\",'CFR - XML import'!$A104,1)-2)))","v":0},{"$f":"IF(ISERROR(FIND(V$3,'CFR - XML import'!$A104)),0,VALUE(MID('CFR - XML import'!$A104,SEARCH(\">\",'CFR - XML import'!$A104,1)+1,SEARCH(\"/\",'CFR - XML import'!$A104,1)-SEARCH(\">\",'CFR - XML import'!$A104,1)-2)))","v":0},{"$f":"IF(ISERROR(FIND(W$3,'CFR - XML import'!$A104)),0,VALUE(MID('CFR - XML import'!$A104,SEARCH(\">\",'CFR - XML import'!$A104,1)+1,SEARCH(\"/\",'CFR - XML import'!$A104,1)-SEARCH(\">\",'CFR - XML import'!$A104,1)-2)))","v":0},null,{"$f":"IF(ISERROR(FIND(Y$3,'CFR - XML import'!$A104)),0,VALUE(MID('CFR - XML import'!$A104,SEARCH(\">\",'CFR - XML import'!$A104,1)+1,SEARCH(\"/\",'CFR - XML import'!$A104,1)-SEARCH(\">\",'CFR - XML import'!$A104,1)-2)))","v":0},{"$f":"IF(ISERROR(FIND(Z$3,'CFR - XML import'!$A104)),0,VALUE(MID('CFR - XML import'!$A104,SEARCH(\">\",'CFR - XML import'!$A104,1)+1,SEARCH(\"/\",'CFR - XML import'!$A104,1)-SEARCH(\">\",'CFR - XML import'!$A104,1)-2)))","v":0},{"$f":"IF(ISERROR(FIND(AA$3,'CFR - XML import'!$A104)),0,VALUE(MID('CFR - XML import'!$A104,SEARCH(\">\",'CFR - XML import'!$A104,1)+1,SEARCH(\"/\",'CFR - XML import'!$A104,1)-SEARCH(\">\",'CFR - XML import'!$A104,1)-2)))","v":0},{"$f":"IF(ISERROR(FIND(AB$3,'CFR - XML import'!$A104)),0,VALUE(MID('CFR - XML import'!$A104,SEARCH(\">\",'CFR - XML import'!$A104,1)+1,SEARCH(\"/\",'CFR - XML import'!$A104,1)-SEARCH(\">\",'CFR - XML import'!$A104,1)-2)))","v":0},{"$f":"IF(ISERROR(FIND(AC$3,'CFR - XML import'!$A104)),0,VALUE(MID('CFR - XML import'!$A104,SEARCH(\">\",'CFR - XML import'!$A104,1)+1,SEARCH(\"/\",'CFR - XML import'!$A104,1)-SEARCH(\">\",'CFR - XML import'!$A104,1)-2)))","v":0},{"$f":"IF(ISERROR(FIND(AD$3,'CFR - XML import'!$A104)),0,VALUE(MID('CFR - XML import'!$A104,SEARCH(\">\",'CFR - XML import'!$A104,1)+1,SEARCH(\"/\",'CFR - XML import'!$A104,1)-SEARCH(\">\",'CFR - XML import'!$A104,1)-2)))","v":0},{"$f":"IF(ISERROR(FIND(AE$3,'CFR - XML import'!$A104)),0,VALUE(MID('CFR - XML import'!$A104,SEARCH(\">\",'CFR - XML import'!$A104,1)+1,SEARCH(\"/\",'CFR - XML import'!$A104,1)-SEARCH(\">\",'CFR - XML import'!$A104,1)-2)))","v":0},{"$f":"IF(ISERROR(FIND(AF$3,'CFR - XML import'!$A104)),0,VALUE(MID('CFR - XML import'!$A104,SEARCH(\">\",'CFR - XML import'!$A104,1)+1,SEARCH(\"/\",'CFR - XML import'!$A104,1)-SEARCH(\">\",'CFR - XML import'!$A104,1)-2)))","v":0},{"$f":"IF(ISERROR(FIND(AG$3,'CFR - XML import'!$A104)),0,VALUE(MID('CFR - XML import'!$A104,SEARCH(\">\",'CFR - XML import'!$A104,1)+1,SEARCH(\"/\",'CFR - XML import'!$A104,1)-SEARCH(\">\",'CFR - XML import'!$A104,1)-2)))","v":0},{"$f":"IF(ISERROR(FIND(AH$3,'CFR - XML import'!$A104)),0,VALUE(MID('CFR - XML import'!$A104,SEARCH(\">\",'CFR - XML import'!$A104,1)+1,SEARCH(\"/\",'CFR - XML import'!$A104,1)-SEARCH(\">\",'CFR - XML import'!$A104,1)-2)))","v":0},{"$f":"IF(ISERROR(FIND(AI$3,'CFR - XML import'!$A104)),0,VALUE(MID('CFR - XML import'!$A104,SEARCH(\">\",'CFR - XML import'!$A104,1)+1,SEARCH(\"/\",'CFR - XML import'!$A104,1)-SEARCH(\">\",'CFR - XML import'!$A104,1)-2)))","v":0},{"$f":"IF(ISERROR(FIND(AJ$3,'CFR - XML import'!$A104)),0,VALUE(MID('CFR - XML import'!$A104,SEARCH(\">\",'CFR - XML import'!$A104,1)+1,SEARCH(\"/\",'CFR - XML import'!$A104,1)-SEARCH(\">\",'CFR - XML import'!$A104,1)-2)))","v":0},{"$f":"IF(ISERROR(FIND(AK$3,'CFR - XML import'!$A104)),0,VALUE(MID('CFR - XML import'!$A104,SEARCH(\">\",'CFR - XML import'!$A104,1)+1,SEARCH(\"/\",'CFR - XML import'!$A104,1)-SEARCH(\">\",'CFR - XML import'!$A104,1)-2)))","v":0},{"$f":"IF(ISERROR(FIND(AL$3,'CFR - XML import'!$A104)),0,VALUE(MID('CFR - XML import'!$A104,SEARCH(\">\",'CFR - XML import'!$A104,1)+1,SEARCH(\"/\",'CFR - XML import'!$A104,1)-SEARCH(\">\",'CFR - XML import'!$A104,1)-2)))","v":0},{"$f":"IF(ISERROR(FIND(AM$3,'CFR - XML import'!$A104)),0,VALUE(MID('CFR - XML import'!$A104,SEARCH(\">\",'CFR - XML import'!$A104,1)+1,SEARCH(\"/\",'CFR - XML import'!$A104,1)-SEARCH(\">\",'CFR - XML import'!$A104,1)-2)))","v":0},{"$f":"IF(ISERROR(FIND(AN$3,'CFR - XML import'!$A104)),0,VALUE(MID('CFR - XML import'!$A104,SEARCH(\">\",'CFR - XML import'!$A104,1)+1,SEARCH(\"/\",'CFR - XML import'!$A104,1)-SEARCH(\">\",'CFR - XML import'!$A104,1)-2)))","v":0},{"$f":"IF(ISERROR(FIND(AO$3,'CFR - XML import'!$A104)),0,VALUE(MID('CFR - XML import'!$A104,SEARCH(\">\",'CFR - XML import'!$A104,1)+1,SEARCH(\"/\",'CFR - XML import'!$A104,1)-SEARCH(\">\",'CFR - XML import'!$A104,1)-2)))","v":0},{"$f":"IF(ISERROR(FIND(AP$3,'CFR - XML import'!$A104)),0,VALUE(MID('CFR - XML import'!$A104,SEARCH(\">\",'CFR - XML import'!$A104,1)+1,SEARCH(\"/\",'CFR - XML import'!$A104,1)-SEARCH(\">\",'CFR - XML import'!$A104,1)-2)))","v":0},{"$f":"IF(ISERROR(FIND(AQ$3,'CFR - XML import'!$A104)),0,VALUE(MID('CFR - XML import'!$A104,SEARCH(\">\",'CFR - XML import'!$A104,1)+1,SEARCH(\"/\",'CFR - XML import'!$A104,1)-SEARCH(\">\",'CFR - XML import'!$A104,1)-2)))","v":0},{"$f":"IF(ISERROR(FIND(AR$3,'CFR - XML import'!$A104)),0,VALUE(MID('CFR - XML import'!$A104,SEARCH(\">\",'CFR - XML import'!$A104,1)+1,SEARCH(\"/\",'CFR - XML import'!$A104,1)-SEARCH(\">\",'CFR - XML import'!$A104,1)-2)))","v":0},{"$f":"IF(ISERROR(FIND(AS$3,'CFR - XML import'!$A104)),0,VALUE(MID('CFR - XML import'!$A104,SEARCH(\">\",'CFR - XML import'!$A104,1)+1,SEARCH(\"/\",'CFR - XML import'!$A104,1)-SEARCH(\">\",'CFR - XML import'!$A104,1)-2)))","v":0},{"$f":"IF(ISERROR(FIND(AT$3,'CFR - XML import'!$A104)),0,VALUE(MID('CFR - XML import'!$A104,SEARCH(\">\",'CFR - XML import'!$A104,1)+1,SEARCH(\"/\",'CFR - XML import'!$A104,1)-SEARCH(\">\",'CFR - XML import'!$A104,1)-2)))","v":0},{"$f":"IF(ISERROR(FIND(AU$3,'CFR - XML import'!$A104)),0,VALUE(MID('CFR - XML import'!$A104,SEARCH(\">\",'CFR - XML import'!$A104,1)+1,SEARCH(\"/\",'CFR - XML import'!$A104,1)-SEARCH(\">\",'CFR - XML import'!$A104,1)-2)))","v":0},{"$f":"IF(ISERROR(FIND(AV$3,'CFR - XML import'!$A104)),0,VALUE(MID('CFR - XML import'!$A104,SEARCH(\">\",'CFR - XML import'!$A104,1)+1,SEARCH(\"/\",'CFR - XML import'!$A104,1)-SEARCH(\">\",'CFR - XML import'!$A104,1)-2)))","v":0},{"$f":"IF(ISERROR(FIND(AW$3,'CFR - XML import'!$A104)),0,VALUE(MID('CFR - XML import'!$A104,SEARCH(\">\",'CFR - XML import'!$A104,1)+1,SEARCH(\"/\",'CFR - XML import'!$A104,1)-SEARCH(\">\",'CFR - XML import'!$A104,1)-2)))","v":0},{"$f":"IF(ISERROR(FIND(AX$3,'CFR - XML import'!$A104)),0,VALUE(MID('CFR - XML import'!$A104,SEARCH(\">\",'CFR - XML import'!$A104,1)+1,SEARCH(\"/\",'CFR - XML import'!$A104,1)-SEARCH(\">\",'CFR - XML import'!$A104,1)-2)))","v":0},{"$f":"IF(ISERROR(FIND(AY$3,'CFR - XML import'!$A104)),0,VALUE(MID('CFR - XML import'!$A104,SEARCH(\">\",'CFR - XML import'!$A104,1)+1,SEARCH(\"/\",'CFR - XML import'!$A104,1)-SEARCH(\">\",'CFR - XML import'!$A104,1)-2)))","v":0},{"$f":"IF(ISERROR(FIND(AZ$3,'CFR - XML import'!$A104)),0,VALUE(MID('CFR - XML import'!$A104,SEARCH(\">\",'CFR - XML import'!$A104,1)+1,SEARCH(\"/\",'CFR - XML import'!$A104,1)-SEARCH(\">\",'CFR - XML import'!$A104,1)-2)))","v":0},{"$f":"IF(ISERROR(FIND(BA$3,'CFR - XML import'!$A104)),0,VALUE(MID('CFR - XML import'!$A104,SEARCH(\">\",'CFR - XML import'!$A104,1)+1,SEARCH(\"/\",'CFR - XML import'!$A104,1)-SEARCH(\">\",'CFR - XML import'!$A104,1)-2)))","v":0},{"$f":"IF(ISERROR(FIND(BB$3,'CFR - XML import'!$A104)),0,VALUE(MID('CFR - XML import'!$A104,SEARCH(\">\",'CFR - XML import'!$A104,1)+1,SEARCH(\"/\",'CFR - XML import'!$A104,1)-SEARCH(\">\",'CFR - XML import'!$A104,1)-2)))","v":0},{"$f":"IF(ISERROR(FIND(BC$3,'CFR - XML import'!$A104)),0,VALUE(MID('CFR - XML import'!$A104,SEARCH(\">\",'CFR - XML import'!$A104,1)+1,SEARCH(\"/\",'CFR - XML import'!$A104,1)-SEARCH(\">\",'CFR - XML import'!$A104,1)-2)))","v":0},{"$f":"IF(ISERROR(FIND(BD$3,'CFR - XML import'!$A104)),0,VALUE(MID('CFR - XML import'!$A104,SEARCH(\">\",'CFR - XML import'!$A104,1)+1,SEARCH(\"/\",'CFR - XML import'!$A104,1)-SEARCH(\">\",'CFR - XML import'!$A104,1)-2)))","v":0},{"$f":"IF(ISERROR(FIND(BE$3,'CFR - XML import'!$A104)),0,VALUE(MID('CFR - XML import'!$A104,SEARCH(\">\",'CFR - XML import'!$A104,1)+1,SEARCH(\"/\",'CFR - XML import'!$A104,1)-SEARCH(\">\",'CFR - XML import'!$A104,1)-2)))","v":0},{"$f":"IF(ISERROR(FIND(BF$3,'CFR - XML import'!$A104)),0,VALUE(MID('CFR - XML import'!$A104,SEARCH(\">\",'CFR - XML import'!$A104,1)+1,SEARCH(\"/\",'CFR - XML import'!$A104,1)-SEARCH(\">\",'CFR - XML import'!$A104,1)-2)))","v":0},{"$f":"IF(ISERROR(FIND(BG$3,'CFR - XML import'!$A104)),0,VALUE(MID('CFR - XML import'!$A104,SEARCH(\">\",'CFR - XML import'!$A104,1)+1,SEARCH(\"/\",'CFR - XML import'!$A104,1)-SEARCH(\">\",'CFR - XML import'!$A104,1)-2)))","v":0},{"$f":"IF(ISERROR(FIND(BH$3,'CFR - XML import'!$A104)),0,VALUE(MID('CFR - XML import'!$A104,SEARCH(\">\",'CFR - XML import'!$A104,1)+1,SEARCH(\"/\",'CFR - XML import'!$A104,1)-SEARCH(\">\",'CFR - XML import'!$A104,1)-2)))","v":0},{"$f":"IF(ISERROR(FIND(BI$3,'CFR - XML import'!$A104)),0,VALUE(MID('CFR - XML import'!$A104,SEARCH(\">\",'CFR - XML import'!$A104,1)+1,SEARCH(\"/\",'CFR - XML import'!$A104,1)-SEARCH(\">\",'CFR - XML import'!$A104,1)-2)))","v":0},{"$f":"IF(ISERROR(FIND(BJ$3,'CFR - XML import'!$A104)),0,VALUE(MID('CFR - XML import'!$A104,SEARCH(\">\",'CFR - XML import'!$A104,1)+1,SEARCH(\"/\",'CFR - XML import'!$A104,1)-SEARCH(\">\",'CFR - XML import'!$A104,1)-2)))","v":0},{"$f":"IF(ISERROR(FIND(BK$3,'CFR - XML import'!$A104)),0,VALUE(MID('CFR - XML import'!$A104,SEARCH(\">\",'CFR - XML import'!$A104,1)+1,SEARCH(\"/\",'CFR - XML import'!$A104,1)-SEARCH(\">\",'CFR - XML import'!$A104,1)-2)))","v":0},{"$f":"IF(ISERROR(FIND(BL$3,'CFR - XML import'!$A104)),0,VALUE(MID('CFR - XML import'!$A104,SEARCH(\">\",'CFR - XML import'!$A104,1)+1,SEARCH(\"/\",'CFR - XML import'!$A104,1)-SEARCH(\">\",'CFR - XML import'!$A104,1)-2)))","v":0},{"$f":"IF(ISERROR(FIND(BM$3,'CFR - XML import'!$A104)),0,VALUE(MID('CFR - XML import'!$A104,SEARCH(\">\",'CFR - XML import'!$A104,1)+1,SEARCH(\"/\",'CFR - XML import'!$A104,1)-SEARCH(\">\",'CFR - XML import'!$A104,1)-2)))","v":0},{"$f":"IF(ISERROR(FIND(BN$3,'CFR - XML import'!$A104)),0,VALUE(MID('CFR - XML import'!$A104,SEARCH(\">\",'CFR - XML import'!$A104,1)+1,SEARCH(\"/\",'CFR - XML import'!$A104,1)-SEARCH(\">\",'CFR - XML import'!$A104,1)-2)))","v":0},{"$f":"IF(ISERROR(FIND(BO$3,'CFR - XML import'!$A104)),0,VALUE(MID('CFR - XML import'!$A104,SEARCH(\">\",'CFR - XML import'!$A104,1)+1,SEARCH(\"/\",'CFR - XML import'!$A104,1)-SEARCH(\">\",'CFR - XML import'!$A104,1)-2)))","v":0},{"$f":"IF(ISERROR(FIND(BP$3,'CFR - XML import'!$A104)),0,VALUE(MID('CFR - XML import'!$A104,SEARCH(\">\",'CFR - XML import'!$A104,1)+1,SEARCH(\"/\",'CFR - XML import'!$A104,1)-SEARCH(\">\",'CFR - XML import'!$A104,1)-2)))","v":0},{"$f":"IF(ISERROR(FIND(BQ$3,'CFR - XML import'!$A104)),0,VALUE(MID('CFR - XML import'!$A104,SEARCH(\">\",'CFR - XML import'!$A104,1)+1,SEARCH(\"/\",'CFR - XML import'!$A104,1)-SEARCH(\">\",'CFR - XML import'!$A104,1)-2)))","v":0},{"$f":"IF(ISERROR(FIND(BR$3,'CFR - XML import'!$A104)),0,VALUE(MID('CFR - XML import'!$A104,SEARCH(\">\",'CFR - XML import'!$A104,1)+1,SEARCH(\"/\",'CFR - XML import'!$A104,1)-SEARCH(\">\",'CFR - XML import'!$A104,1)-2)))","v":0},{"$f":"IF(ISERROR(FIND(BS$3,'CFR - XML import'!$A104)),0,VALUE(MID('CFR - XML import'!$A104,SEARCH(\">\",'CFR - XML import'!$A104,1)+1,SEARCH(\"/\",'CFR - XML import'!$A104,1)-SEARCH(\">\",'CFR - XML import'!$A104,1)-2)))","v":0},{"$f":"IF(ISERROR(FIND(BT$3,'CFR - XML import'!$A104)),0,VALUE(MID('CFR - XML import'!$A104,SEARCH(\">\",'CFR - XML import'!$A104,1)+1,SEARCH(\"/\",'CFR - XML import'!$A104,1)-SEARCH(\">\",'CFR - XML import'!$A104,1)-2)))","v":0},{"$f":"IF(ISERROR(FIND(BU$3,'CFR - XML import'!$A104)),0,VALUE(MID('CFR - XML import'!$A104,SEARCH(\">\",'CFR - XML import'!$A104,1)+1,SEARCH(\"/\",'CFR - XML import'!$A104,1)-SEARCH(\">\",'CFR - XML import'!$A104,1)-2)))","v":0},{"$f":"IF(ISERROR(FIND(BV$3,'CFR - XML import'!$A104)),0,VALUE(MID('CFR - XML import'!$A104,SEARCH(\">\",'CFR - XML import'!$A104,1)+1,SEARCH(\"/\",'CFR - XML import'!$A104,1)-SEARCH(\">\",'CFR - XML import'!$A104,1)-2)))","v":0},{"$f":"IF(ISERROR(FIND(BW$3,'CFR - XML import'!$A104)),0,VALUE(MID('CFR - XML import'!$A104,SEARCH(\">\",'CFR - XML import'!$A104,1)+1,SEARCH(\"/\",'CFR - XML import'!$A104,1)-SEARCH(\">\",'CFR - XML import'!$A104,1)-2)))","v":0},{"$f":"IF(ISERROR(FIND(BX$3,'CFR - XML import'!$A104)),0,VALUE(MID('CFR - XML import'!$A104,SEARCH(\">\",'CFR - XML import'!$A104,1)+1,SEARCH(\"/\",'CFR - XML import'!$A104,1)-SEARCH(\">\",'CFR - XML import'!$A104,1)-2)))","v":0},{"$f":"IF(ISERROR(FIND(BY$3,'CFR - XML import'!$A104)),0,VALUE(MID('CFR - XML import'!$A104,SEARCH(\">\",'CFR - XML import'!$A104,1)+1,SEARCH(\"/\",'CFR - XML import'!$A104,1)-SEARCH(\">\",'CFR - XML import'!$A104,1)-2)))","v":0},{"$f":"IF(ISERROR(FIND(BZ$3,'CFR - XML import'!$A104)),0,VALUE(MID('CFR - XML import'!$A104,SEARCH(\">\",'CFR - XML import'!$A104,1)+1,SEARCH(\"/\",'CFR - XML import'!$A104,1)-SEARCH(\">\",'CFR - XML import'!$A104,1)-2)))","v":0},null,null,null,null,null,null,{"$f":"IF(ISERROR(IF(MID('CFR - XML import'!$A104,LEN($CF$4)+1,LEN('CFR - XML import'!$A104)-(2*LEN($CF$4)+1))=\"RMMS\",1,IF(MID('CFR - XML import'!$A104,LEN(\"    <InputSystem>\")+1,LEN('CFR - XML import'!$A104)-(LEN(\"    <InputSystem>\")+LEN($CF$4)+1))=\"SIMS\",2,0))),0,IF(MID('CFR - XML import'!$A104,LEN($CF$4)+1,LEN('CFR - XML import'!$A104)-(2*LEN($CF$4)+1))=\"RMMS\",1,IF(MID('CFR - XML import'!$A104,LEN(\"    <InputSystem>\")+1,LEN('CFR - XML import'!$A104)-(LEN(\"    <InputSystem>\")+LEN($CF$4)+1))=\"SIMS\",2,0)))","v":0},{"$f":"IF(ISERROR(FIND(CH$3,'CFR - XML import'!$A104)),0,MID('CFR - XML import'!$A104,SEARCH(\">\",'CFR - XML import'!$A104,1)+1,SEARCH(\"/\",'CFR - XML import'!$A104,1)-SEARCH(\">\",'CFR - XML import'!$A104,1)-2))","v":0},{"$f":"IF(ISERROR(FIND(CI$3,'CFR - XML import'!$A104)),0,MID('CFR - XML import'!$A104,SEARCH(\">\",'CFR - XML import'!$A104,1)+1,SEARCH(\"/\",'CFR - XML import'!$A104,1)-SEARCH(\">\",'CFR - XML import'!$A104,1)-2))","v":0},{"$f":"IF(ISERROR(FIND(CJ$3,'CFR - XML import'!$A104)),0,MID('CFR - XML import'!$A104,SEARCH(\">\",'CFR - XML import'!$A104,1)+1,SEARCH(\"/\",'CFR - XML import'!$A104,1)-SEARCH(\">\",'CFR - XML import'!$A104,1)-2))","v":0},{"$f":"IF(ISERROR(FIND(CK$3,'CFR - XML import'!$A104)),0,MID('CFR - XML import'!$A104,SEARCH(\">\",'CFR - XML import'!$A104,1)+1,SEARCH(\"/\",'CFR - XML import'!$A104,1)-SEARCH(\">\",'CFR - XML import'!$A104,1)-2))","v":0},{"$f":"IF(ISERROR(FIND(CL$3,'CFR - XML import'!$A104)),0,MID('CFR - XML import'!$A104,SEARCH(\">\",'CFR - XML import'!$A104,1)+1,SEARCH(\"/\",'CFR - XML import'!$A104,1)-SEARCH(\">\",'CFR - XML import'!$A104,1)-2))","v":0}]
[{"$f":"IF(AND('CFR - XML import'!A105<>\"\",LEFT('CFR - XML import'!A105,1)<>\"<\",LEFT('CFR - XML import'!A105,3)<>\"  <\",LEFT('CFR - XML import'!A105,5)<>\"    <\",LEFT('CFR - XML import'!A105,7)<>\"      <\",LEFT('CFR - XML import'!A105,9)<>\"        <\",$B$1=\"SIMS\"),'CFR - XML import'!A105,IF(AND(LEFT('CFR - XML import'!A105,9)=\"<Details>\",$B$1=\"RM\"),'CFR - XML import'!A105,\"\"))","v":""},{"$f":"IF(ISERROR(FIND(B$3,'CFR - XML import'!$A105)),0,VALUE(MID('CFR - XML import'!$A105,SEARCH(\">\",'CFR - XML import'!$A105,1)+1,SEARCH(\"/\",'CFR - XML import'!$A105,1)-SEARCH(\">\",'CFR - XML import'!$A105,1)-2)))","v":0},null,{"$f":"IF(ISERROR(FIND(D$3,'CFR - XML import'!$A105)),0,MID('CFR - XML import'!$A105,SEARCH(\">\",'CFR - XML import'!$A105,1)+1,SEARCH(\"/\",'CFR - XML import'!$A105,1)-SEARCH(\">\",'CFR - XML import'!$A105,1)-2))","v":0},{"$f":"IF(ISERROR(FIND(E$3,'CFR - XML import'!$A105)),0,MID('CFR - XML import'!$A105,SEARCH(\">\",'CFR - XML import'!$A105,1)+1,SEARCH(\"/\",'CFR - XML import'!$A105,1)-SEARCH(\">\",'CFR - XML import'!$A105,1)-2))","v":0},{"$f":"IF($B$1=\"SIMS\",IF(ISERROR(FIND(F$3,'CFR - XML import'!$A105)),0,VALUE(MID('CFR - XML import'!$A105,15,10))),IF(ISERROR(FIND(F$3,'CFR - XML import'!$A105)),0,VALUE(MID('CFR - XML import'!$A105,11,10))))","v":"00:00:00"},{"$f":"IF(ISERROR(FIND(G$3,'CFR - XML import'!$A105)),0,VALUE(MID('CFR - XML import'!$A105,SEARCH(\">\",'CFR - XML import'!$A105,1)+1,SEARCH(\"/\",'CFR - XML import'!$A105,1)-SEARCH(\">\",'CFR - XML import'!$A105,1)-2)))","v":0},{"$f":"IF(ISERROR(FIND(H$3,'CFR - XML import'!$A105)),0,VALUE(MID('CFR - XML import'!$A105,SEARCH(\">\",'CFR - XML import'!$A105,1)+1,SEARCH(\"/\",'CFR - XML import'!$A105,1)-SEARCH(\">\",'CFR - XML import'!$A105,1)-2)))","v":0},{"$f":"IF(ISERROR(FIND(I$3,'CFR - XML import'!$A105)),0,VALUE(MID('CFR - XML import'!$A105,SEARCH(\">\",'CFR - XML import'!$A105,1)+1,SEARCH(\"/\",'CFR - XML import'!$A105,1)-SEARCH(\">\",'CFR - XML import'!$A105,1)-2)))","v":0},{"$f":"IF(ISERROR(FIND(J$3,'CFR - XML import'!$A105)),0,VALUE(MID('CFR - XML import'!$A105,SEARCH(\">\",'CFR - XML import'!$A105,1)+1,SEARCH(\"/\",'CFR - XML import'!$A105,1)-SEARCH(\">\",'CFR - XML import'!$A105,1)-2)))","v":0},{"$f":"IF(ISERROR(FIND(K$3,'CFR - XML import'!$A105)),0,VALUE(MID('CFR - XML import'!$A105,SEARCH(\">\",'CFR - XML import'!$A105,1)+1,SEARCH(\"/\",'CFR - XML import'!$A105,1)-SEARCH(\">\",'CFR - XML import'!$A105,1)-2)))","v":0},{"$f":"IF(ISERROR(FIND(L$3,'CFR - XML import'!$A105)),0,VALUE(MID('CFR - XML import'!$A105,SEARCH(\">\",'CFR - XML import'!$A105,1)+1,SEARCH(\"/\",'CFR - XML import'!$A105,1)-SEARCH(\">\",'CFR - XML import'!$A105,1)-2)))","v":0},{"$f":"IF(ISERROR(FIND(M$3,'CFR - XML import'!$A105)),0,VALUE(MID('CFR - XML import'!$A105,SEARCH(\">\",'CFR - XML import'!$A105,1)+1,SEARCH(\"/\",'CFR - XML import'!$A105,1)-SEARCH(\">\",'CFR - XML import'!$A105,1)-2)))","v":0},{"$f":"IF(ISERROR(FIND(N$3,'CFR - XML import'!$A105)),0,VALUE(MID('CFR - XML import'!$A105,SEARCH(\">\",'CFR - XML import'!$A105,1)+1,SEARCH(\"/\",'CFR - XML import'!$A105,1)-SEARCH(\">\",'CFR - XML import'!$A105,1)-2)))","v":0},{"$f":"IF(ISERROR(FIND(O$3,'CFR - XML import'!$A105)),0,VALUE(MID('CFR - XML import'!$A105,SEARCH(\">\",'CFR - XML import'!$A105,1)+1,SEARCH(\"/\",'CFR - XML import'!$A105,1)-SEARCH(\">\",'CFR - XML import'!$A105,1)-2)))","v":0},{"$f":"IF(ISERROR(FIND(P$3,'CFR - XML import'!$A105)),0,VALUE(MID('CFR - XML import'!$A105,SEARCH(\">\",'CFR - XML import'!$A105,1)+1,SEARCH(\"/\",'CFR - XML import'!$A105,1)-SEARCH(\">\",'CFR - XML import'!$A105,1)-2)))","v":0},{"$f":"IF(ISERROR(FIND(Q$3,'CFR - XML import'!$A105)),0,VALUE(MID('CFR - XML import'!$A105,SEARCH(\">\",'CFR - XML import'!$A105,1)+1,SEARCH(\"/\",'CFR - XML import'!$A105,1)-SEARCH(\">\",'CFR - XML import'!$A105,1)-2)))","v":0},{"$f":"IF(ISERROR(FIND(R$3,'CFR - XML import'!$A105)),0,VALUE(MID('CFR - XML import'!$A105,SEARCH(\">\",'CFR - XML import'!$A105,1)+1,SEARCH(\"/\",'CFR - XML import'!$A105,1)-SEARCH(\">\",'CFR - XML import'!$A105,1)-2)))","v":0},{"$f":"IF(ISERROR(FIND(S$3,'CFR - XML import'!$A105)),0,VALUE(MID('CFR - XML import'!$A105,SEARCH(\">\",'CFR - XML import'!$A105,1)+1,SEARCH(\"/\",'CFR - XML import'!$A105,1)-SEARCH(\">\",'CFR - XML import'!$A105,1)-2)))","v":0},{"$f":"IF(ISERROR(FIND(T$3,'CFR - XML import'!$A105)),0,VALUE(MID('CFR - XML import'!$A105,SEARCH(\">\",'CFR - XML import'!$A105,1)+1,SEARCH(\"/\",'CFR - XML import'!$A105,1)-SEARCH(\">\",'CFR - XML import'!$A105,1)-2)))","v":0},{"$f":"IF(ISERROR(FIND(U$3,'CFR - XML import'!$A105)),0,VALUE(MID('CFR - XML import'!$A105,SEARCH(\">\",'CFR - XML import'!$A105,1)+1,SEARCH(\"/\",'CFR - XML import'!$A105,1)-SEARCH(\">\",'CFR - XML import'!$A105,1)-2)))","v":0},{"$f":"IF(ISERROR(FIND(V$3,'CFR - XML import'!$A105)),0,VALUE(MID('CFR - XML import'!$A105,SEARCH(\">\",'CFR - XML import'!$A105,1)+1,SEARCH(\"/\",'CFR - XML import'!$A105,1)-SEARCH(\">\",'CFR - XML import'!$A105,1)-2)))","v":0},{"$f":"IF(ISERROR(FIND(W$3,'CFR - XML import'!$A105)),0,VALUE(MID('CFR - XML import'!$A105,SEARCH(\">\",'CFR - XML import'!$A105,1)+1,SEARCH(\"/\",'CFR - XML import'!$A105,1)-SEARCH(\">\",'CFR - XML import'!$A105,1)-2)))","v":0},null,{"$f":"IF(ISERROR(FIND(Y$3,'CFR - XML import'!$A105)),0,VALUE(MID('CFR - XML import'!$A105,SEARCH(\">\",'CFR - XML import'!$A105,1)+1,SEARCH(\"/\",'CFR - XML import'!$A105,1)-SEARCH(\">\",'CFR - XML import'!$A105,1)-2)))","v":0},{"$f":"IF(ISERROR(FIND(Z$3,'CFR - XML import'!$A105)),0,VALUE(MID('CFR - XML import'!$A105,SEARCH(\">\",'CFR - XML import'!$A105,1)+1,SEARCH(\"/\",'CFR - XML import'!$A105,1)-SEARCH(\">\",'CFR - XML import'!$A105,1)-2)))","v":0},{"$f":"IF(ISERROR(FIND(AA$3,'CFR - XML import'!$A105)),0,VALUE(MID('CFR - XML import'!$A105,SEARCH(\">\",'CFR - XML import'!$A105,1)+1,SEARCH(\"/\",'CFR - XML import'!$A105,1)-SEARCH(\">\",'CFR - XML import'!$A105,1)-2)))","v":0},{"$f":"IF(ISERROR(FIND(AB$3,'CFR - XML import'!$A105)),0,VALUE(MID('CFR - XML import'!$A105,SEARCH(\">\",'CFR - XML import'!$A105,1)+1,SEARCH(\"/\",'CFR - XML import'!$A105,1)-SEARCH(\">\",'CFR - XML import'!$A105,1)-2)))","v":0},{"$f":"IF(ISERROR(FIND(AC$3,'CFR - XML import'!$A105)),0,VALUE(MID('CFR - XML import'!$A105,SEARCH(\">\",'CFR - XML import'!$A105,1)+1,SEARCH(\"/\",'CFR - XML import'!$A105,1)-SEARCH(\">\",'CFR - XML import'!$A105,1)-2)))","v":0},{"$f":"IF(ISERROR(FIND(AD$3,'CFR - XML import'!$A105)),0,VALUE(MID('CFR - XML import'!$A105,SEARCH(\">\",'CFR - XML import'!$A105,1)+1,SEARCH(\"/\",'CFR - XML import'!$A105,1)-SEARCH(\">\",'CFR - XML import'!$A105,1)-2)))","v":0},{"$f":"IF(ISERROR(FIND(AE$3,'CFR - XML import'!$A105)),0,VALUE(MID('CFR - XML import'!$A105,SEARCH(\">\",'CFR - XML import'!$A105,1)+1,SEARCH(\"/\",'CFR - XML import'!$A105,1)-SEARCH(\">\",'CFR - XML import'!$A105,1)-2)))","v":0},{"$f":"IF(ISERROR(FIND(AF$3,'CFR - XML import'!$A105)),0,VALUE(MID('CFR - XML import'!$A105,SEARCH(\">\",'CFR - XML import'!$A105,1)+1,SEARCH(\"/\",'CFR - XML import'!$A105,1)-SEARCH(\">\",'CFR - XML import'!$A105,1)-2)))","v":0},{"$f":"IF(ISERROR(FIND(AG$3,'CFR - XML import'!$A105)),0,VALUE(MID('CFR - XML import'!$A105,SEARCH(\">\",'CFR - XML import'!$A105,1)+1,SEARCH(\"/\",'CFR - XML import'!$A105,1)-SEARCH(\">\",'CFR - XML import'!$A105,1)-2)))","v":0},{"$f":"IF(ISERROR(FIND(AH$3,'CFR - XML import'!$A105)),0,VALUE(MID('CFR - XML import'!$A105,SEARCH(\">\",'CFR - XML import'!$A105,1)+1,SEARCH(\"/\",'CFR - XML import'!$A105,1)-SEARCH(\">\",'CFR - XML import'!$A105,1)-2)))","v":0},{"$f":"IF(ISERROR(FIND(AI$3,'CFR - XML import'!$A105)),0,VALUE(MID('CFR - XML import'!$A105,SEARCH(\">\",'CFR - XML import'!$A105,1)+1,SEARCH(\"/\",'CFR - XML import'!$A105,1)-SEARCH(\">\",'CFR - XML import'!$A105,1)-2)))","v":0},{"$f":"IF(ISERROR(FIND(AJ$3,'CFR - XML import'!$A105)),0,VALUE(MID('CFR - XML import'!$A105,SEARCH(\">\",'CFR - XML import'!$A105,1)+1,SEARCH(\"/\",'CFR - XML import'!$A105,1)-SEARCH(\">\",'CFR - XML import'!$A105,1)-2)))","v":0},{"$f":"IF(ISERROR(FIND(AK$3,'CFR - XML import'!$A105)),0,VALUE(MID('CFR - XML import'!$A105,SEARCH(\">\",'CFR - XML import'!$A105,1)+1,SEARCH(\"/\",'CFR - XML import'!$A105,1)-SEARCH(\">\",'CFR - XML import'!$A105,1)-2)))","v":0},{"$f":"IF(ISERROR(FIND(AL$3,'CFR - XML import'!$A105)),0,VALUE(MID('CFR - XML import'!$A105,SEARCH(\">\",'CFR - XML import'!$A105,1)+1,SEARCH(\"/\",'CFR - XML import'!$A105,1)-SEARCH(\">\",'CFR - XML import'!$A105,1)-2)))","v":0},{"$f":"IF(ISERROR(FIND(AM$3,'CFR - XML import'!$A105)),0,VALUE(MID('CFR - XML import'!$A105,SEARCH(\">\",'CFR - XML import'!$A105,1)+1,SEARCH(\"/\",'CFR - XML import'!$A105,1)-SEARCH(\">\",'CFR - XML import'!$A105,1)-2)))","v":0},{"$f":"IF(ISERROR(FIND(AN$3,'CFR - XML import'!$A105)),0,VALUE(MID('CFR - XML import'!$A105,SEARCH(\">\",'CFR - XML import'!$A105,1)+1,SEARCH(\"/\",'CFR - XML import'!$A105,1)-SEARCH(\">\",'CFR - XML import'!$A105,1)-2)))","v":0},{"$f":"IF(ISERROR(FIND(AO$3,'CFR - XML import'!$A105)),0,VALUE(MID('CFR - XML import'!$A105,SEARCH(\">\",'CFR - XML import'!$A105,1)+1,SEARCH(\"/\",'CFR - XML import'!$A105,1)-SEARCH(\">\",'CFR - XML import'!$A105,1)-2)))","v":0},{"$f":"IF(ISERROR(FIND(AP$3,'CFR - XML import'!$A105)),0,VALUE(MID('CFR - XML import'!$A105,SEARCH(\">\",'CFR - XML import'!$A105,1)+1,SEARCH(\"/\",'CFR - XML import'!$A105,1)-SEARCH(\">\",'CFR - XML import'!$A105,1)-2)))","v":0},{"$f":"IF(ISERROR(FIND(AQ$3,'CFR - XML import'!$A105)),0,VALUE(MID('CFR - XML import'!$A105,SEARCH(\">\",'CFR - XML import'!$A105,1)+1,SEARCH(\"/\",'CFR - XML import'!$A105,1)-SEARCH(\">\",'CFR - XML import'!$A105,1)-2)))","v":0},{"$f":"IF(ISERROR(FIND(AR$3,'CFR - XML import'!$A105)),0,VALUE(MID('CFR - XML import'!$A105,SEARCH(\">\",'CFR - XML import'!$A105,1)+1,SEARCH(\"/\",'CFR - XML import'!$A105,1)-SEARCH(\">\",'CFR - XML import'!$A105,1)-2)))","v":0},{"$f":"IF(ISERROR(FIND(AS$3,'CFR - XML import'!$A105)),0,VALUE(MID('CFR - XML import'!$A105,SEARCH(\">\",'CFR - XML import'!$A105,1)+1,SEARCH(\"/\",'CFR - XML import'!$A105,1)-SEARCH(\">\",'CFR - XML import'!$A105,1)-2)))","v":0},{"$f":"IF(ISERROR(FIND(AT$3,'CFR - XML import'!$A105)),0,VALUE(MID('CFR - XML import'!$A105,SEARCH(\">\",'CFR - XML import'!$A105,1)+1,SEARCH(\"/\",'CFR - XML import'!$A105,1)-SEARCH(\">\",'CFR - XML import'!$A105,1)-2)))","v":0},{"$f":"IF(ISERROR(FIND(AU$3,'CFR - XML import'!$A105)),0,VALUE(MID('CFR - XML import'!$A105,SEARCH(\">\",'CFR - XML import'!$A105,1)+1,SEARCH(\"/\",'CFR - XML import'!$A105,1)-SEARCH(\">\",'CFR - XML import'!$A105,1)-2)))","v":0},{"$f":"IF(ISERROR(FIND(AV$3,'CFR - XML import'!$A105)),0,VALUE(MID('CFR - XML import'!$A105,SEARCH(\">\",'CFR - XML import'!$A105,1)+1,SEARCH(\"/\",'CFR - XML import'!$A105,1)-SEARCH(\">\",'CFR - XML import'!$A105,1)-2)))","v":0},{"$f":"IF(ISERROR(FIND(AW$3,'CFR - XML import'!$A105)),0,VALUE(MID('CFR - XML import'!$A105,SEARCH(\">\",'CFR - XML import'!$A105,1)+1,SEARCH(\"/\",'CFR - XML import'!$A105,1)-SEARCH(\">\",'CFR - XML import'!$A105,1)-2)))","v":0},{"$f":"IF(ISERROR(FIND(AX$3,'CFR - XML import'!$A105)),0,VALUE(MID('CFR - XML import'!$A105,SEARCH(\">\",'CFR - XML import'!$A105,1)+1,SEARCH(\"/\",'CFR - XML import'!$A105,1)-SEARCH(\">\",'CFR - XML import'!$A105,1)-2)))","v":0},{"$f":"IF(ISERROR(FIND(AY$3,'CFR - XML import'!$A105)),0,VALUE(MID('CFR - XML import'!$A105,SEARCH(\">\",'CFR - XML import'!$A105,1)+1,SEARCH(\"/\",'CFR - XML import'!$A105,1)-SEARCH(\">\",'CFR - XML import'!$A105,1)-2)))","v":0},{"$f":"IF(ISERROR(FIND(AZ$3,'CFR - XML import'!$A105)),0,VALUE(MID('CFR - XML import'!$A105,SEARCH(\">\",'CFR - XML import'!$A105,1)+1,SEARCH(\"/\",'CFR - XML import'!$A105,1)-SEARCH(\">\",'CFR - XML import'!$A105,1)-2)))","v":0},{"$f":"IF(ISERROR(FIND(BA$3,'CFR - XML import'!$A105)),0,VALUE(MID('CFR - XML import'!$A105,SEARCH(\">\",'CFR - XML import'!$A105,1)+1,SEARCH(\"/\",'CFR - XML import'!$A105,1)-SEARCH(\">\",'CFR - XML import'!$A105,1)-2)))","v":0},{"$f":"IF(ISERROR(FIND(BB$3,'CFR - XML import'!$A105)),0,VALUE(MID('CFR - XML import'!$A105,SEARCH(\">\",'CFR - XML import'!$A105,1)+1,SEARCH(\"/\",'CFR - XML import'!$A105,1)-SEARCH(\">\",'CFR - XML import'!$A105,1)-2)))","v":0},{"$f":"IF(ISERROR(FIND(BC$3,'CFR - XML import'!$A105)),0,VALUE(MID('CFR - XML import'!$A105,SEARCH(\">\",'CFR - XML import'!$A105,1)+1,SEARCH(\"/\",'CFR - XML import'!$A105,1)-SEARCH(\">\",'CFR - XML import'!$A105,1)-2)))","v":0},{"$f":"IF(ISERROR(FIND(BD$3,'CFR - XML import'!$A105)),0,VALUE(MID('CFR - XML import'!$A105,SEARCH(\">\",'CFR - XML import'!$A105,1)+1,SEARCH(\"/\",'CFR - XML import'!$A105,1)-SEARCH(\">\",'CFR - XML import'!$A105,1)-2)))","v":0},{"$f":"IF(ISERROR(FIND(BE$3,'CFR - XML import'!$A105)),0,VALUE(MID('CFR - XML import'!$A105,SEARCH(\">\",'CFR - XML import'!$A105,1)+1,SEARCH(\"/\",'CFR - XML import'!$A105,1)-SEARCH(\">\",'CFR - XML import'!$A105,1)-2)))","v":0},{"$f":"IF(ISERROR(FIND(BF$3,'CFR - XML import'!$A105)),0,VALUE(MID('CFR - XML import'!$A105,SEARCH(\">\",'CFR - XML import'!$A105,1)+1,SEARCH(\"/\",'CFR - XML import'!$A105,1)-SEARCH(\">\",'CFR - XML import'!$A105,1)-2)))","v":0},{"$f":"IF(ISERROR(FIND(BG$3,'CFR - XML import'!$A105)),0,VALUE(MID('CFR - XML import'!$A105,SEARCH(\">\",'CFR - XML import'!$A105,1)+1,SEARCH(\"/\",'CFR - XML import'!$A105,1)-SEARCH(\">\",'CFR - XML import'!$A105,1)-2)))","v":0},{"$f":"IF(ISERROR(FIND(BH$3,'CFR - XML import'!$A105)),0,VALUE(MID('CFR - XML import'!$A105,SEARCH(\">\",'CFR - XML import'!$A105,1)+1,SEARCH(\"/\",'CFR - XML import'!$A105,1)-SEARCH(\">\",'CFR - XML import'!$A105,1)-2)))","v":0},{"$f":"IF(ISERROR(FIND(BI$3,'CFR - XML import'!$A105)),0,VALUE(MID('CFR - XML import'!$A105,SEARCH(\">\",'CFR - XML import'!$A105,1)+1,SEARCH(\"/\",'CFR - XML import'!$A105,1)-SEARCH(\">\",'CFR - XML import'!$A105,1)-2)))","v":0},{"$f":"IF(ISERROR(FIND(BJ$3,'CFR - XML import'!$A105)),0,VALUE(MID('CFR - XML import'!$A105,SEARCH(\">\",'CFR - XML import'!$A105,1)+1,SEARCH(\"/\",'CFR - XML import'!$A105,1)-SEARCH(\">\",'CFR - XML import'!$A105,1)-2)))","v":0},{"$f":"IF(ISERROR(FIND(BK$3,'CFR - XML import'!$A105)),0,VALUE(MID('CFR - XML import'!$A105,SEARCH(\">\",'CFR - XML import'!$A105,1)+1,SEARCH(\"/\",'CFR - XML import'!$A105,1)-SEARCH(\">\",'CFR - XML import'!$A105,1)-2)))","v":0},{"$f":"IF(ISERROR(FIND(BL$3,'CFR - XML import'!$A105)),0,VALUE(MID('CFR - XML import'!$A105,SEARCH(\">\",'CFR - XML import'!$A105,1)+1,SEARCH(\"/\",'CFR - XML import'!$A105,1)-SEARCH(\">\",'CFR - XML import'!$A105,1)-2)))","v":0},{"$f":"IF(ISERROR(FIND(BM$3,'CFR - XML import'!$A105)),0,VALUE(MID('CFR - XML import'!$A105,SEARCH(\">\",'CFR - XML import'!$A105,1)+1,SEARCH(\"/\",'CFR - XML import'!$A105,1)-SEARCH(\">\",'CFR - XML import'!$A105,1)-2)))","v":0},{"$f":"IF(ISERROR(FIND(BN$3,'CFR - XML import'!$A105)),0,VALUE(MID('CFR - XML import'!$A105,SEARCH(\">\",'CFR - XML import'!$A105,1)+1,SEARCH(\"/\",'CFR - XML import'!$A105,1)-SEARCH(\">\",'CFR - XML import'!$A105,1)-2)))","v":0},{"$f":"IF(ISERROR(FIND(BO$3,'CFR - XML import'!$A105)),0,VALUE(MID('CFR - XML import'!$A105,SEARCH(\">\",'CFR - XML import'!$A105,1)+1,SEARCH(\"/\",'CFR - XML import'!$A105,1)-SEARCH(\">\",'CFR - XML import'!$A105,1)-2)))","v":0},{"$f":"IF(ISERROR(FIND(BP$3,'CFR - XML import'!$A105)),0,VALUE(MID('CFR - XML import'!$A105,SEARCH(\">\",'CFR - XML import'!$A105,1)+1,SEARCH(\"/\",'CFR - XML import'!$A105,1)-SEARCH(\">\",'CFR - XML import'!$A105,1)-2)))","v":0},{"$f":"IF(ISERROR(FIND(BQ$3,'CFR - XML import'!$A105)),0,VALUE(MID('CFR - XML import'!$A105,SEARCH(\">\",'CFR - XML import'!$A105,1)+1,SEARCH(\"/\",'CFR - XML import'!$A105,1)-SEARCH(\">\",'CFR - XML import'!$A105,1)-2)))","v":0},{"$f":"IF(ISERROR(FIND(BR$3,'CFR - XML import'!$A105)),0,VALUE(MID('CFR - XML import'!$A105,SEARCH(\">\",'CFR - XML import'!$A105,1)+1,SEARCH(\"/\",'CFR - XML import'!$A105,1)-SEARCH(\">\",'CFR - XML import'!$A105,1)-2)))","v":0},{"$f":"IF(ISERROR(FIND(BS$3,'CFR - XML import'!$A105)),0,VALUE(MID('CFR - XML import'!$A105,SEARCH(\">\",'CFR - XML import'!$A105,1)+1,SEARCH(\"/\",'CFR - XML import'!$A105,1)-SEARCH(\">\",'CFR - XML import'!$A105,1)-2)))","v":0},{"$f":"IF(ISERROR(FIND(BT$3,'CFR - XML import'!$A105)),0,VALUE(MID('CFR - XML import'!$A105,SEARCH(\">\",'CFR - XML import'!$A105,1)+1,SEARCH(\"/\",'CFR - XML import'!$A105,1)-SEARCH(\">\",'CFR - XML import'!$A105,1)-2)))","v":0},{"$f":"IF(ISERROR(FIND(BU$3,'CFR - XML import'!$A105)),0,VALUE(MID('CFR - XML import'!$A105,SEARCH(\">\",'CFR - XML import'!$A105,1)+1,SEARCH(\"/\",'CFR - XML import'!$A105,1)-SEARCH(\">\",'CFR - XML import'!$A105,1)-2)))","v":0},{"$f":"IF(ISERROR(FIND(BV$3,'CFR - XML import'!$A105)),0,VALUE(MID('CFR - XML import'!$A105,SEARCH(\">\",'CFR - XML import'!$A105,1)+1,SEARCH(\"/\",'CFR - XML import'!$A105,1)-SEARCH(\">\",'CFR - XML import'!$A105,1)-2)))","v":0},{"$f":"IF(ISERROR(FIND(BW$3,'CFR - XML import'!$A105)),0,VALUE(MID('CFR - XML import'!$A105,SEARCH(\">\",'CFR - XML import'!$A105,1)+1,SEARCH(\"/\",'CFR - XML import'!$A105,1)-SEARCH(\">\",'CFR - XML import'!$A105,1)-2)))","v":0},{"$f":"IF(ISERROR(FIND(BX$3,'CFR - XML import'!$A105)),0,VALUE(MID('CFR - XML import'!$A105,SEARCH(\">\",'CFR - XML import'!$A105,1)+1,SEARCH(\"/\",'CFR - XML import'!$A105,1)-SEARCH(\">\",'CFR - XML import'!$A105,1)-2)))","v":0},{"$f":"IF(ISERROR(FIND(BY$3,'CFR - XML import'!$A105)),0,VALUE(MID('CFR - XML import'!$A105,SEARCH(\">\",'CFR - XML import'!$A105,1)+1,SEARCH(\"/\",'CFR - XML import'!$A105,1)-SEARCH(\">\",'CFR - XML import'!$A105,1)-2)))","v":0},{"$f":"IF(ISERROR(FIND(BZ$3,'CFR - XML import'!$A105)),0,VALUE(MID('CFR - XML import'!$A105,SEARCH(\">\",'CFR - XML import'!$A105,1)+1,SEARCH(\"/\",'CFR - XML import'!$A105,1)-SEARCH(\">\",'CFR - XML import'!$A105,1)-2)))","v":0},null,null,null,null,null,null,{"$f":"IF(ISERROR(IF(MID('CFR - XML import'!$A105,LEN($CF$4)+1,LEN('CFR - XML import'!$A105)-(2*LEN($CF$4)+1))=\"RMMS\",1,IF(MID('CFR - XML import'!$A105,LEN(\"    <InputSystem>\")+1,LEN('CFR - XML import'!$A105)-(LEN(\"    <InputSystem>\")+LEN($CF$4)+1))=\"SIMS\",2,0))),0,IF(MID('CFR - XML import'!$A105,LEN($CF$4)+1,LEN('CFR - XML import'!$A105)-(2*LEN($CF$4)+1))=\"RMMS\",1,IF(MID('CFR - XML import'!$A105,LEN(\"    <InputSystem>\")+1,LEN('CFR - XML import'!$A105)-(LEN(\"    <InputSystem>\")+LEN($CF$4)+1))=\"SIMS\",2,0)))","v":0},{"$f":"IF(ISERROR(FIND(CH$3,'CFR - XML import'!$A105)),0,MID('CFR - XML import'!$A105,SEARCH(\">\",'CFR - XML import'!$A105,1)+1,SEARCH(\"/\",'CFR - XML import'!$A105,1)-SEARCH(\">\",'CFR - XML import'!$A105,1)-2))","v":0},{"$f":"IF(ISERROR(FIND(CI$3,'CFR - XML import'!$A105)),0,MID('CFR - XML import'!$A105,SEARCH(\">\",'CFR - XML import'!$A105,1)+1,SEARCH(\"/\",'CFR - XML import'!$A105,1)-SEARCH(\">\",'CFR - XML import'!$A105,1)-2))","v":0},{"$f":"IF(ISERROR(FIND(CJ$3,'CFR - XML import'!$A105)),0,MID('CFR - XML import'!$A105,SEARCH(\">\",'CFR - XML import'!$A105,1)+1,SEARCH(\"/\",'CFR - XML import'!$A105,1)-SEARCH(\">\",'CFR - XML import'!$A105,1)-2))","v":0},{"$f":"IF(ISERROR(FIND(CK$3,'CFR - XML import'!$A105)),0,MID('CFR - XML import'!$A105,SEARCH(\">\",'CFR - XML import'!$A105,1)+1,SEARCH(\"/\",'CFR - XML import'!$A105,1)-SEARCH(\">\",'CFR - XML import'!$A105,1)-2))","v":0},{"$f":"IF(ISERROR(FIND(CL$3,'CFR - XML import'!$A105)),0,MID('CFR - XML import'!$A105,SEARCH(\">\",'CFR - XML import'!$A105,1)+1,SEARCH(\"/\",'CFR - XML import'!$A105,1)-SEARCH(\">\",'CFR - XML import'!$A105,1)-2))","v":0}]
[{"$f":"IF(AND('CFR - XML import'!A106<>\"\",LEFT('CFR - XML import'!A106,1)<>\"<\",LEFT('CFR - XML import'!A106,3)<>\"  <\",LEFT('CFR - XML import'!A106,5)<>\"    <\",LEFT('CFR - XML import'!A106,7)<>\"      <\",LEFT('CFR - XML import'!A106,9)<>\"        <\",$B$1=\"SIMS\"),'CFR - XML import'!A106,IF(AND(LEFT('CFR - XML import'!A106,9)=\"<Details>\",$B$1=\"RM\"),'CFR - XML import'!A106,\"\"))","v":""},{"$f":"IF(ISERROR(FIND(B$3,'CFR - XML import'!$A106)),0,VALUE(MID('CFR - XML import'!$A106,SEARCH(\">\",'CFR - XML import'!$A106,1)+1,SEARCH(\"/\",'CFR - XML import'!$A106,1)-SEARCH(\">\",'CFR - XML import'!$A106,1)-2)))","v":0},null,{"$f":"IF(ISERROR(FIND(D$3,'CFR - XML import'!$A106)),0,MID('CFR - XML import'!$A106,SEARCH(\">\",'CFR - XML import'!$A106,1)+1,SEARCH(\"/\",'CFR - XML import'!$A106,1)-SEARCH(\">\",'CFR - XML import'!$A106,1)-2))","v":0},{"$f":"IF(ISERROR(FIND(E$3,'CFR - XML import'!$A106)),0,MID('CFR - XML import'!$A106,SEARCH(\">\",'CFR - XML import'!$A106,1)+1,SEARCH(\"/\",'CFR - XML import'!$A106,1)-SEARCH(\">\",'CFR - XML import'!$A106,1)-2))","v":0},{"$f":"IF($B$1=\"SIMS\",IF(ISERROR(FIND(F$3,'CFR - XML import'!$A106)),0,VALUE(MID('CFR - XML import'!$A106,15,10))),IF(ISERROR(FIND(F$3,'CFR - XML import'!$A106)),0,VALUE(MID('CFR - XML import'!$A106,11,10))))","v":"00:00:00"},{"$f":"IF(ISERROR(FIND(G$3,'CFR - XML import'!$A106)),0,VALUE(MID('CFR - XML import'!$A106,SEARCH(\">\",'CFR - XML import'!$A106,1)+1,SEARCH(\"/\",'CFR - XML import'!$A106,1)-SEARCH(\">\",'CFR - XML import'!$A106,1)-2)))","v":0},{"$f":"IF(ISERROR(FIND(H$3,'CFR - XML import'!$A106)),0,VALUE(MID('CFR - XML import'!$A106,SEARCH(\">\",'CFR - XML import'!$A106,1)+1,SEARCH(\"/\",'CFR - XML import'!$A106,1)-SEARCH(\">\",'CFR - XML import'!$A106,1)-2)))","v":0},{"$f":"IF(ISERROR(FIND(I$3,'CFR - XML import'!$A106)),0,VALUE(MID('CFR - XML import'!$A106,SEARCH(\">\",'CFR - XML import'!$A106,1)+1,SEARCH(\"/\",'CFR - XML import'!$A106,1)-SEARCH(\">\",'CFR - XML import'!$A106,1)-2)))","v":0},{"$f":"IF(ISERROR(FIND(J$3,'CFR - XML import'!$A106)),0,VALUE(MID('CFR - XML import'!$A106,SEARCH(\">\",'CFR - XML import'!$A106,1)+1,SEARCH(\"/\",'CFR - XML import'!$A106,1)-SEARCH(\">\",'CFR - XML import'!$A106,1)-2)))","v":0},{"$f":"IF(ISERROR(FIND(K$3,'CFR - XML import'!$A106)),0,VALUE(MID('CFR - XML import'!$A106,SEARCH(\">\",'CFR - XML import'!$A106,1)+1,SEARCH(\"/\",'CFR - XML import'!$A106,1)-SEARCH(\">\",'CFR - XML import'!$A106,1)-2)))","v":0},{"$f":"IF(ISERROR(FIND(L$3,'CFR - XML import'!$A106)),0,VALUE(MID('CFR - XML import'!$A106,SEARCH(\">\",'CFR - XML import'!$A106,1)+1,SEARCH(\"/\",'CFR - XML import'!$A106,1)-SEARCH(\">\",'CFR - XML import'!$A106,1)-2)))","v":0},{"$f":"IF(ISERROR(FIND(M$3,'CFR - XML import'!$A106)),0,VALUE(MID('CFR - XML import'!$A106,SEARCH(\">\",'CFR - XML import'!$A106,1)+1,SEARCH(\"/\",'CFR - XML import'!$A106,1)-SEARCH(\">\",'CFR - XML import'!$A106,1)-2)))","v":0},{"$f":"IF(ISERROR(FIND(N$3,'CFR - XML import'!$A106)),0,VALUE(MID('CFR - XML import'!$A106,SEARCH(\">\",'CFR - XML import'!$A106,1)+1,SEARCH(\"/\",'CFR - XML import'!$A106,1)-SEARCH(\">\",'CFR - XML import'!$A106,1)-2)))","v":0},{"$f":"IF(ISERROR(FIND(O$3,'CFR - XML import'!$A106)),0,VALUE(MID('CFR - XML import'!$A106,SEARCH(\">\",'CFR - XML import'!$A106,1)+1,SEARCH(\"/\",'CFR - XML import'!$A106,1)-SEARCH(\">\",'CFR - XML import'!$A106,1)-2)))","v":0},{"$f":"IF(ISERROR(FIND(P$3,'CFR - XML import'!$A106)),0,VALUE(MID('CFR - XML import'!$A106,SEARCH(\">\",'CFR - XML import'!$A106,1)+1,SEARCH(\"/\",'CFR - XML import'!$A106,1)-SEARCH(\">\",'CFR - XML import'!$A106,1)-2)))","v":0},{"$f":"IF(ISERROR(FIND(Q$3,'CFR - XML import'!$A106)),0,VALUE(MID('CFR - XML import'!$A106,SEARCH(\">\",'CFR - XML import'!$A106,1)+1,SEARCH(\"/\",'CFR - XML import'!$A106,1)-SEARCH(\">\",'CFR - XML import'!$A106,1)-2)))","v":0},{"$f":"IF(ISERROR(FIND(R$3,'CFR - XML import'!$A106)),0,VALUE(MID('CFR - XML import'!$A106,SEARCH(\">\",'CFR - XML import'!$A106,1)+1,SEARCH(\"/\",'CFR - XML import'!$A106,1)-SEARCH(\">\",'CFR - XML import'!$A106,1)-2)))","v":0},{"$f":"IF(ISERROR(FIND(S$3,'CFR - XML import'!$A106)),0,VALUE(MID('CFR - XML import'!$A106,SEARCH(\">\",'CFR - XML import'!$A106,1)+1,SEARCH(\"/\",'CFR - XML import'!$A106,1)-SEARCH(\">\",'CFR - XML import'!$A106,1)-2)))","v":0},{"$f":"IF(ISERROR(FIND(T$3,'CFR - XML import'!$A106)),0,VALUE(MID('CFR - XML import'!$A106,SEARCH(\">\",'CFR - XML import'!$A106,1)+1,SEARCH(\"/\",'CFR - XML import'!$A106,1)-SEARCH(\">\",'CFR - XML import'!$A106,1)-2)))","v":0},{"$f":"IF(ISERROR(FIND(U$3,'CFR - XML import'!$A106)),0,VALUE(MID('CFR - XML import'!$A106,SEARCH(\">\",'CFR - XML import'!$A106,1)+1,SEARCH(\"/\",'CFR - XML import'!$A106,1)-SEARCH(\">\",'CFR - XML import'!$A106,1)-2)))","v":0},{"$f":"IF(ISERROR(FIND(V$3,'CFR - XML import'!$A106)),0,VALUE(MID('CFR - XML import'!$A106,SEARCH(\">\",'CFR - XML import'!$A106,1)+1,SEARCH(\"/\",'CFR - XML import'!$A106,1)-SEARCH(\">\",'CFR - XML import'!$A106,1)-2)))","v":0},{"$f":"IF(ISERROR(FIND(W$3,'CFR - XML import'!$A106)),0,VALUE(MID('CFR - XML import'!$A106,SEARCH(\">\",'CFR - XML import'!$A106,1)+1,SEARCH(\"/\",'CFR - XML import'!$A106,1)-SEARCH(\">\",'CFR - XML import'!$A106,1)-2)))","v":0},null,{"$f":"IF(ISERROR(FIND(Y$3,'CFR - XML import'!$A106)),0,VALUE(MID('CFR - XML import'!$A106,SEARCH(\">\",'CFR - XML import'!$A106,1)+1,SEARCH(\"/\",'CFR - XML import'!$A106,1)-SEARCH(\">\",'CFR - XML import'!$A106,1)-2)))","v":0},{"$f":"IF(ISERROR(FIND(Z$3,'CFR - XML import'!$A106)),0,VALUE(MID('CFR - XML import'!$A106,SEARCH(\">\",'CFR - XML import'!$A106,1)+1,SEARCH(\"/\",'CFR - XML import'!$A106,1)-SEARCH(\">\",'CFR - XML import'!$A106,1)-2)))","v":0},{"$f":"IF(ISERROR(FIND(AA$3,'CFR - XML import'!$A106)),0,VALUE(MID('CFR - XML import'!$A106,SEARCH(\">\",'CFR - XML import'!$A106,1)+1,SEARCH(\"/\",'CFR - XML import'!$A106,1)-SEARCH(\">\",'CFR - XML import'!$A106,1)-2)))","v":0},{"$f":"IF(ISERROR(FIND(AB$3,'CFR - XML import'!$A106)),0,VALUE(MID('CFR - XML import'!$A106,SEARCH(\">\",'CFR - XML import'!$A106,1)+1,SEARCH(\"/\",'CFR - XML import'!$A106,1)-SEARCH(\">\",'CFR - XML import'!$A106,1)-2)))","v":0},{"$f":"IF(ISERROR(FIND(AC$3,'CFR - XML import'!$A106)),0,VALUE(MID('CFR - XML import'!$A106,SEARCH(\">\",'CFR - XML import'!$A106,1)+1,SEARCH(\"/\",'CFR - XML import'!$A106,1)-SEARCH(\">\",'CFR - XML import'!$A106,1)-2)))","v":0},{"$f":"IF(ISERROR(FIND(AD$3,'CFR - XML import'!$A106)),0,VALUE(MID('CFR - XML import'!$A106,SEARCH(\">\",'CFR - XML import'!$A106,1)+1,SEARCH(\"/\",'CFR - XML import'!$A106,1)-SEARCH(\">\",'CFR - XML import'!$A106,1)-2)))","v":0},{"$f":"IF(ISERROR(FIND(AE$3,'CFR - XML import'!$A106)),0,VALUE(MID('CFR - XML import'!$A106,SEARCH(\">\",'CFR - XML import'!$A106,1)+1,SEARCH(\"/\",'CFR - XML import'!$A106,1)-SEARCH(\">\",'CFR - XML import'!$A106,1)-2)))","v":0},{"$f":"IF(ISERROR(FIND(AF$3,'CFR - XML import'!$A106)),0,VALUE(MID('CFR - XML import'!$A106,SEARCH(\">\",'CFR - XML import'!$A106,1)+1,SEARCH(\"/\",'CFR - XML import'!$A106,1)-SEARCH(\">\",'CFR - XML import'!$A106,1)-2)))","v":0},{"$f":"IF(ISERROR(FIND(AG$3,'CFR - XML import'!$A106)),0,VALUE(MID('CFR - XML import'!$A106,SEARCH(\">\",'CFR - XML import'!$A106,1)+1,SEARCH(\"/\",'CFR - XML import'!$A106,1)-SEARCH(\">\",'CFR - XML import'!$A106,1)-2)))","v":0},{"$f":"IF(ISERROR(FIND(AH$3,'CFR - XML import'!$A106)),0,VALUE(MID('CFR - XML import'!$A106,SEARCH(\">\",'CFR - XML import'!$A106,1)+1,SEARCH(\"/\",'CFR - XML import'!$A106,1)-SEARCH(\">\",'CFR - XML import'!$A106,1)-2)))","v":0},{"$f":"IF(ISERROR(FIND(AI$3,'CFR - XML import'!$A106)),0,VALUE(MID('CFR - XML import'!$A106,SEARCH(\">\",'CFR - XML import'!$A106,1)+1,SEARCH(\"/\",'CFR - XML import'!$A106,1)-SEARCH(\">\",'CFR - XML import'!$A106,1)-2)))","v":0},{"$f":"IF(ISERROR(FIND(AJ$3,'CFR - XML import'!$A106)),0,VALUE(MID('CFR - XML import'!$A106,SEARCH(\">\",'CFR - XML import'!$A106,1)+1,SEARCH(\"/\",'CFR - XML import'!$A106,1)-SEARCH(\">\",'CFR - XML import'!$A106,1)-2)))","v":0},{"$f":"IF(ISERROR(FIND(AK$3,'CFR - XML import'!$A106)),0,VALUE(MID('CFR - XML import'!$A106,SEARCH(\">\",'CFR - XML import'!$A106,1)+1,SEARCH(\"/\",'CFR - XML import'!$A106,1)-SEARCH(\">\",'CFR - XML import'!$A106,1)-2)))","v":0},{"$f":"IF(ISERROR(FIND(AL$3,'CFR - XML import'!$A106)),0,VALUE(MID('CFR - XML import'!$A106,SEARCH(\">\",'CFR - XML import'!$A106,1)+1,SEARCH(\"/\",'CFR - XML import'!$A106,1)-SEARCH(\">\",'CFR - XML import'!$A106,1)-2)))","v":0},{"$f":"IF(ISERROR(FIND(AM$3,'CFR - XML import'!$A106)),0,VALUE(MID('CFR - XML import'!$A106,SEARCH(\">\",'CFR - XML import'!$A106,1)+1,SEARCH(\"/\",'CFR - XML import'!$A106,1)-SEARCH(\">\",'CFR - XML import'!$A106,1)-2)))","v":0},{"$f":"IF(ISERROR(FIND(AN$3,'CFR - XML import'!$A106)),0,VALUE(MID('CFR - XML import'!$A106,SEARCH(\">\",'CFR - XML import'!$A106,1)+1,SEARCH(\"/\",'CFR - XML import'!$A106,1)-SEARCH(\">\",'CFR - XML import'!$A106,1)-2)))","v":0},{"$f":"IF(ISERROR(FIND(AO$3,'CFR - XML import'!$A106)),0,VALUE(MID('CFR - XML import'!$A106,SEARCH(\">\",'CFR - XML import'!$A106,1)+1,SEARCH(\"/\",'CFR - XML import'!$A106,1)-SEARCH(\">\",'CFR - XML import'!$A106,1)-2)))","v":0},{"$f":"IF(ISERROR(FIND(AP$3,'CFR - XML import'!$A106)),0,VALUE(MID('CFR - XML import'!$A106,SEARCH(\">\",'CFR - XML import'!$A106,1)+1,SEARCH(\"/\",'CFR - XML import'!$A106,1)-SEARCH(\">\",'CFR - XML import'!$A106,1)-2)))","v":0},{"$f":"IF(ISERROR(FIND(AQ$3,'CFR - XML import'!$A106)),0,VALUE(MID('CFR - XML import'!$A106,SEARCH(\">\",'CFR - XML import'!$A106,1)+1,SEARCH(\"/\",'CFR - XML import'!$A106,1)-SEARCH(\">\",'CFR - XML import'!$A106,1)-2)))","v":0},{"$f":"IF(ISERROR(FIND(AR$3,'CFR - XML import'!$A106)),0,VALUE(MID('CFR - XML import'!$A106,SEARCH(\">\",'CFR - XML import'!$A106,1)+1,SEARCH(\"/\",'CFR - XML import'!$A106,1)-SEARCH(\">\",'CFR - XML import'!$A106,1)-2)))","v":0},{"$f":"IF(ISERROR(FIND(AS$3,'CFR - XML import'!$A106)),0,VALUE(MID('CFR - XML import'!$A106,SEARCH(\">\",'CFR - XML import'!$A106,1)+1,SEARCH(\"/\",'CFR - XML import'!$A106,1)-SEARCH(\">\",'CFR - XML import'!$A106,1)-2)))","v":0},{"$f":"IF(ISERROR(FIND(AT$3,'CFR - XML import'!$A106)),0,VALUE(MID('CFR - XML import'!$A106,SEARCH(\">\",'CFR - XML import'!$A106,1)+1,SEARCH(\"/\",'CFR - XML import'!$A106,1)-SEARCH(\">\",'CFR - XML import'!$A106,1)-2)))","v":0},{"$f":"IF(ISERROR(FIND(AU$3,'CFR - XML import'!$A106)),0,VALUE(MID('CFR - XML import'!$A106,SEARCH(\">\",'CFR - XML import'!$A106,1)+1,SEARCH(\"/\",'CFR - XML import'!$A106,1)-SEARCH(\">\",'CFR - XML import'!$A106,1)-2)))","v":0},{"$f":"IF(ISERROR(FIND(AV$3,'CFR - XML import'!$A106)),0,VALUE(MID('CFR - XML import'!$A106,SEARCH(\">\",'CFR - XML import'!$A106,1)+1,SEARCH(\"/\",'CFR - XML import'!$A106,1)-SEARCH(\">\",'CFR - XML import'!$A106,1)-2)))","v":0},{"$f":"IF(ISERROR(FIND(AW$3,'CFR - XML import'!$A106)),0,VALUE(MID('CFR - XML import'!$A106,SEARCH(\">\",'CFR - XML import'!$A106,1)+1,SEARCH(\"/\",'CFR - XML import'!$A106,1)-SEARCH(\">\",'CFR - XML import'!$A106,1)-2)))","v":0},{"$f":"IF(ISERROR(FIND(AX$3,'CFR - XML import'!$A106)),0,VALUE(MID('CFR - XML import'!$A106,SEARCH(\">\",'CFR - XML import'!$A106,1)+1,SEARCH(\"/\",'CFR - XML import'!$A106,1)-SEARCH(\">\",'CFR - XML import'!$A106,1)-2)))","v":0},{"$f":"IF(ISERROR(FIND(AY$3,'CFR - XML import'!$A106)),0,VALUE(MID('CFR - XML import'!$A106,SEARCH(\">\",'CFR - XML import'!$A106,1)+1,SEARCH(\"/\",'CFR - XML import'!$A106,1)-SEARCH(\">\",'CFR - XML import'!$A106,1)-2)))","v":0},{"$f":"IF(ISERROR(FIND(AZ$3,'CFR - XML import'!$A106)),0,VALUE(MID('CFR - XML import'!$A106,SEARCH(\">\",'CFR - XML import'!$A106,1)+1,SEARCH(\"/\",'CFR - XML import'!$A106,1)-SEARCH(\">\",'CFR - XML import'!$A106,1)-2)))","v":0},{"$f":"IF(ISERROR(FIND(BA$3,'CFR - XML import'!$A106)),0,VALUE(MID('CFR - XML import'!$A106,SEARCH(\">\",'CFR - XML import'!$A106,1)+1,SEARCH(\"/\",'CFR - XML import'!$A106,1)-SEARCH(\">\",'CFR - XML import'!$A106,1)-2)))","v":0},{"$f":"IF(ISERROR(FIND(BB$3,'CFR - XML import'!$A106)),0,VALUE(MID('CFR - XML import'!$A106,SEARCH(\">\",'CFR - XML import'!$A106,1)+1,SEARCH(\"/\",'CFR - XML import'!$A106,1)-SEARCH(\">\",'CFR - XML import'!$A106,1)-2)))","v":0},{"$f":"IF(ISERROR(FIND(BC$3,'CFR - XML import'!$A106)),0,VALUE(MID('CFR - XML import'!$A106,SEARCH(\">\",'CFR - XML import'!$A106,1)+1,SEARCH(\"/\",'CFR - XML import'!$A106,1)-SEARCH(\">\",'CFR - XML import'!$A106,1)-2)))","v":0},{"$f":"IF(ISERROR(FIND(BD$3,'CFR - XML import'!$A106)),0,VALUE(MID('CFR - XML import'!$A106,SEARCH(\">\",'CFR - XML import'!$A106,1)+1,SEARCH(\"/\",'CFR - XML import'!$A106,1)-SEARCH(\">\",'CFR - XML import'!$A106,1)-2)))","v":0},{"$f":"IF(ISERROR(FIND(BE$3,'CFR - XML import'!$A106)),0,VALUE(MID('CFR - XML import'!$A106,SEARCH(\">\",'CFR - XML import'!$A106,1)+1,SEARCH(\"/\",'CFR - XML import'!$A106,1)-SEARCH(\">\",'CFR - XML import'!$A106,1)-2)))","v":0},{"$f":"IF(ISERROR(FIND(BF$3,'CFR - XML import'!$A106)),0,VALUE(MID('CFR - XML import'!$A106,SEARCH(\">\",'CFR - XML import'!$A106,1)+1,SEARCH(\"/\",'CFR - XML import'!$A106,1)-SEARCH(\">\",'CFR - XML import'!$A106,1)-2)))","v":0},{"$f":"IF(ISERROR(FIND(BG$3,'CFR - XML import'!$A106)),0,VALUE(MID('CFR - XML import'!$A106,SEARCH(\">\",'CFR - XML import'!$A106,1)+1,SEARCH(\"/\",'CFR - XML import'!$A106,1)-SEARCH(\">\",'CFR - XML import'!$A106,1)-2)))","v":0},{"$f":"IF(ISERROR(FIND(BH$3,'CFR - XML import'!$A106)),0,VALUE(MID('CFR - XML import'!$A106,SEARCH(\">\",'CFR - XML import'!$A106,1)+1,SEARCH(\"/\",'CFR - XML import'!$A106,1)-SEARCH(\">\",'CFR - XML import'!$A106,1)-2)))","v":0},{"$f":"IF(ISERROR(FIND(BI$3,'CFR - XML import'!$A106)),0,VALUE(MID('CFR - XML import'!$A106,SEARCH(\">\",'CFR - XML import'!$A106,1)+1,SEARCH(\"/\",'CFR - XML import'!$A106,1)-SEARCH(\">\",'CFR - XML import'!$A106,1)-2)))","v":0},{"$f":"IF(ISERROR(FIND(BJ$3,'CFR - XML import'!$A106)),0,VALUE(MID('CFR - XML import'!$A106,SEARCH(\">\",'CFR - XML import'!$A106,1)+1,SEARCH(\"/\",'CFR - XML import'!$A106,1)-SEARCH(\">\",'CFR - XML import'!$A106,1)-2)))","v":0},{"$f":"IF(ISERROR(FIND(BK$3,'CFR - XML import'!$A106)),0,VALUE(MID('CFR - XML import'!$A106,SEARCH(\">\",'CFR - XML import'!$A106,1)+1,SEARCH(\"/\",'CFR - XML import'!$A106,1)-SEARCH(\">\",'CFR - XML import'!$A106,1)-2)))","v":0},{"$f":"IF(ISERROR(FIND(BL$3,'CFR - XML import'!$A106)),0,VALUE(MID('CFR - XML import'!$A106,SEARCH(\">\",'CFR - XML import'!$A106,1)+1,SEARCH(\"/\",'CFR - XML import'!$A106,1)-SEARCH(\">\",'CFR - XML import'!$A106,1)-2)))","v":0},{"$f":"IF(ISERROR(FIND(BM$3,'CFR - XML import'!$A106)),0,VALUE(MID('CFR - XML import'!$A106,SEARCH(\">\",'CFR - XML import'!$A106,1)+1,SEARCH(\"/\",'CFR - XML import'!$A106,1)-SEARCH(\">\",'CFR - XML import'!$A106,1)-2)))","v":0},{"$f":"IF(ISERROR(FIND(BN$3,'CFR - XML import'!$A106)),0,VALUE(MID('CFR - XML import'!$A106,SEARCH(\">\",'CFR - XML import'!$A106,1)+1,SEARCH(\"/\",'CFR - XML import'!$A106,1)-SEARCH(\">\",'CFR - XML import'!$A106,1)-2)))","v":0},{"$f":"IF(ISERROR(FIND(BO$3,'CFR - XML import'!$A106)),0,VALUE(MID('CFR - XML import'!$A106,SEARCH(\">\",'CFR - XML import'!$A106,1)+1,SEARCH(\"/\",'CFR - XML import'!$A106,1)-SEARCH(\">\",'CFR - XML import'!$A106,1)-2)))","v":0},{"$f":"IF(ISERROR(FIND(BP$3,'CFR - XML import'!$A106)),0,VALUE(MID('CFR - XML import'!$A106,SEARCH(\">\",'CFR - XML import'!$A106,1)+1,SEARCH(\"/\",'CFR - XML import'!$A106,1)-SEARCH(\">\",'CFR - XML import'!$A106,1)-2)))","v":0},{"$f":"IF(ISERROR(FIND(BQ$3,'CFR - XML import'!$A106)),0,VALUE(MID('CFR - XML import'!$A106,SEARCH(\">\",'CFR - XML import'!$A106,1)+1,SEARCH(\"/\",'CFR - XML import'!$A106,1)-SEARCH(\">\",'CFR - XML import'!$A106,1)-2)))","v":0},{"$f":"IF(ISERROR(FIND(BR$3,'CFR - XML import'!$A106)),0,VALUE(MID('CFR - XML import'!$A106,SEARCH(\">\",'CFR - XML import'!$A106,1)+1,SEARCH(\"/\",'CFR - XML import'!$A106,1)-SEARCH(\">\",'CFR - XML import'!$A106,1)-2)))","v":0},{"$f":"IF(ISERROR(FIND(BS$3,'CFR - XML import'!$A106)),0,VALUE(MID('CFR - XML import'!$A106,SEARCH(\">\",'CFR - XML import'!$A106,1)+1,SEARCH(\"/\",'CFR - XML import'!$A106,1)-SEARCH(\">\",'CFR - XML import'!$A106,1)-2)))","v":0},{"$f":"IF(ISERROR(FIND(BT$3,'CFR - XML import'!$A106)),0,VALUE(MID('CFR - XML import'!$A106,SEARCH(\">\",'CFR - XML import'!$A106,1)+1,SEARCH(\"/\",'CFR - XML import'!$A106,1)-SEARCH(\">\",'CFR - XML import'!$A106,1)-2)))","v":0},{"$f":"IF(ISERROR(FIND(BU$3,'CFR - XML import'!$A106)),0,VALUE(MID('CFR - XML import'!$A106,SEARCH(\">\",'CFR - XML import'!$A106,1)+1,SEARCH(\"/\",'CFR - XML import'!$A106,1)-SEARCH(\">\",'CFR - XML import'!$A106,1)-2)))","v":0},{"$f":"IF(ISERROR(FIND(BV$3,'CFR - XML import'!$A106)),0,VALUE(MID('CFR - XML import'!$A106,SEARCH(\">\",'CFR - XML import'!$A106,1)+1,SEARCH(\"/\",'CFR - XML import'!$A106,1)-SEARCH(\">\",'CFR - XML import'!$A106,1)-2)))","v":0},{"$f":"IF(ISERROR(FIND(BW$3,'CFR - XML import'!$A106)),0,VALUE(MID('CFR - XML import'!$A106,SEARCH(\">\",'CFR - XML import'!$A106,1)+1,SEARCH(\"/\",'CFR - XML import'!$A106,1)-SEARCH(\">\",'CFR - XML import'!$A106,1)-2)))","v":0},{"$f":"IF(ISERROR(FIND(BX$3,'CFR - XML import'!$A106)),0,VALUE(MID('CFR - XML import'!$A106,SEARCH(\">\",'CFR - XML import'!$A106,1)+1,SEARCH(\"/\",'CFR - XML import'!$A106,1)-SEARCH(\">\",'CFR - XML import'!$A106,1)-2)))","v":0},{"$f":"IF(ISERROR(FIND(BY$3,'CFR - XML import'!$A106)),0,VALUE(MID('CFR - XML import'!$A106,SEARCH(\">\",'CFR - XML import'!$A106,1)+1,SEARCH(\"/\",'CFR - XML import'!$A106,1)-SEARCH(\">\",'CFR - XML import'!$A106,1)-2)))","v":0},{"$f":"IF(ISERROR(FIND(BZ$3,'CFR - XML import'!$A106)),0,VALUE(MID('CFR - XML import'!$A106,SEARCH(\">\",'CFR - XML import'!$A106,1)+1,SEARCH(\"/\",'CFR - XML import'!$A106,1)-SEARCH(\">\",'CFR - XML import'!$A106,1)-2)))","v":0},null,null,null,null,null,null,{"$f":"IF(ISERROR(IF(MID('CFR - XML import'!$A106,LEN($CF$4)+1,LEN('CFR - XML import'!$A106)-(2*LEN($CF$4)+1))=\"RMMS\",1,IF(MID('CFR - XML import'!$A106,LEN(\"    <InputSystem>\")+1,LEN('CFR - XML import'!$A106)-(LEN(\"    <InputSystem>\")+LEN($CF$4)+1))=\"SIMS\",2,0))),0,IF(MID('CFR - XML import'!$A106,LEN($CF$4)+1,LEN('CFR - XML import'!$A106)-(2*LEN($CF$4)+1))=\"RMMS\",1,IF(MID('CFR - XML import'!$A106,LEN(\"    <InputSystem>\")+1,LEN('CFR - XML import'!$A106)-(LEN(\"    <InputSystem>\")+LEN($CF$4)+1))=\"SIMS\",2,0)))","v":0},{"$f":"IF(ISERROR(FIND(CH$3,'CFR - XML import'!$A106)),0,MID('CFR - XML import'!$A106,SEARCH(\">\",'CFR - XML import'!$A106,1)+1,SEARCH(\"/\",'CFR - XML import'!$A106,1)-SEARCH(\">\",'CFR - XML import'!$A106,1)-2))","v":0},{"$f":"IF(ISERROR(FIND(CI$3,'CFR - XML import'!$A106)),0,MID('CFR - XML import'!$A106,SEARCH(\">\",'CFR - XML import'!$A106,1)+1,SEARCH(\"/\",'CFR - XML import'!$A106,1)-SEARCH(\">\",'CFR - XML import'!$A106,1)-2))","v":0},{"$f":"IF(ISERROR(FIND(CJ$3,'CFR - XML import'!$A106)),0,MID('CFR - XML import'!$A106,SEARCH(\">\",'CFR - XML import'!$A106,1)+1,SEARCH(\"/\",'CFR - XML import'!$A106,1)-SEARCH(\">\",'CFR - XML import'!$A106,1)-2))","v":0},{"$f":"IF(ISERROR(FIND(CK$3,'CFR - XML import'!$A106)),0,MID('CFR - XML import'!$A106,SEARCH(\">\",'CFR - XML import'!$A106,1)+1,SEARCH(\"/\",'CFR - XML import'!$A106,1)-SEARCH(\">\",'CFR - XML import'!$A106,1)-2))","v":0},{"$f":"IF(ISERROR(FIND(CL$3,'CFR - XML import'!$A106)),0,MID('CFR - XML import'!$A106,SEARCH(\">\",'CFR - XML import'!$A106,1)+1,SEARCH(\"/\",'CFR - XML import'!$A106,1)-SEARCH(\">\",'CFR - XML import'!$A106,1)-2))","v":0}]
[{"$f":"IF(AND('CFR - XML import'!A107<>\"\",LEFT('CFR - XML import'!A107,1)<>\"<\",LEFT('CFR - XML import'!A107,3)<>\"  <\",LEFT('CFR - XML import'!A107,5)<>\"    <\",LEFT('CFR - XML import'!A107,7)<>\"      <\",LEFT('CFR - XML import'!A107,9)<>\"        <\",$B$1=\"SIMS\"),'CFR - XML import'!A107,IF(AND(LEFT('CFR - XML import'!A107,9)=\"<Details>\",$B$1=\"RM\"),'CFR - XML import'!A107,\"\"))","v":""},{"$f":"IF(ISERROR(FIND(B$3,'CFR - XML import'!$A107)),0,VALUE(MID('CFR - XML import'!$A107,SEARCH(\">\",'CFR - XML import'!$A107,1)+1,SEARCH(\"/\",'CFR - XML import'!$A107,1)-SEARCH(\">\",'CFR - XML import'!$A107,1)-2)))","v":0},null,{"$f":"IF(ISERROR(FIND(D$3,'CFR - XML import'!$A107)),0,MID('CFR - XML import'!$A107,SEARCH(\">\",'CFR - XML import'!$A107,1)+1,SEARCH(\"/\",'CFR - XML import'!$A107,1)-SEARCH(\">\",'CFR - XML import'!$A107,1)-2))","v":0},{"$f":"IF(ISERROR(FIND(E$3,'CFR - XML import'!$A107)),0,MID('CFR - XML import'!$A107,SEARCH(\">\",'CFR - XML import'!$A107,1)+1,SEARCH(\"/\",'CFR - XML import'!$A107,1)-SEARCH(\">\",'CFR - XML import'!$A107,1)-2))","v":0},{"$f":"IF($B$1=\"SIMS\",IF(ISERROR(FIND(F$3,'CFR - XML import'!$A107)),0,VALUE(MID('CFR - XML import'!$A107,15,10))),IF(ISERROR(FIND(F$3,'CFR - XML import'!$A107)),0,VALUE(MID('CFR - XML import'!$A107,11,10))))","v":"00:00:00"},{"$f":"IF(ISERROR(FIND(G$3,'CFR - XML import'!$A107)),0,VALUE(MID('CFR - XML import'!$A107,SEARCH(\">\",'CFR - XML import'!$A107,1)+1,SEARCH(\"/\",'CFR - XML import'!$A107,1)-SEARCH(\">\",'CFR - XML import'!$A107,1)-2)))","v":0},{"$f":"IF(ISERROR(FIND(H$3,'CFR - XML import'!$A107)),0,VALUE(MID('CFR - XML import'!$A107,SEARCH(\">\",'CFR - XML import'!$A107,1)+1,SEARCH(\"/\",'CFR - XML import'!$A107,1)-SEARCH(\">\",'CFR - XML import'!$A107,1)-2)))","v":0},{"$f":"IF(ISERROR(FIND(I$3,'CFR - XML import'!$A107)),0,VALUE(MID('CFR - XML import'!$A107,SEARCH(\">\",'CFR - XML import'!$A107,1)+1,SEARCH(\"/\",'CFR - XML import'!$A107,1)-SEARCH(\">\",'CFR - XML import'!$A107,1)-2)))","v":0},{"$f":"IF(ISERROR(FIND(J$3,'CFR - XML import'!$A107)),0,VALUE(MID('CFR - XML import'!$A107,SEARCH(\">\",'CFR - XML import'!$A107,1)+1,SEARCH(\"/\",'CFR - XML import'!$A107,1)-SEARCH(\">\",'CFR - XML import'!$A107,1)-2)))","v":0},{"$f":"IF(ISERROR(FIND(K$3,'CFR - XML import'!$A107)),0,VALUE(MID('CFR - XML import'!$A107,SEARCH(\">\",'CFR - XML import'!$A107,1)+1,SEARCH(\"/\",'CFR - XML import'!$A107,1)-SEARCH(\">\",'CFR - XML import'!$A107,1)-2)))","v":0},{"$f":"IF(ISERROR(FIND(L$3,'CFR - XML import'!$A107)),0,VALUE(MID('CFR - XML import'!$A107,SEARCH(\">\",'CFR - XML import'!$A107,1)+1,SEARCH(\"/\",'CFR - XML import'!$A107,1)-SEARCH(\">\",'CFR - XML import'!$A107,1)-2)))","v":0},{"$f":"IF(ISERROR(FIND(M$3,'CFR - XML import'!$A107)),0,VALUE(MID('CFR - XML import'!$A107,SEARCH(\">\",'CFR - XML import'!$A107,1)+1,SEARCH(\"/\",'CFR - XML import'!$A107,1)-SEARCH(\">\",'CFR - XML import'!$A107,1)-2)))","v":0},{"$f":"IF(ISERROR(FIND(N$3,'CFR - XML import'!$A107)),0,VALUE(MID('CFR - XML import'!$A107,SEARCH(\">\",'CFR - XML import'!$A107,1)+1,SEARCH(\"/\",'CFR - XML import'!$A107,1)-SEARCH(\">\",'CFR - XML import'!$A107,1)-2)))","v":0},{"$f":"IF(ISERROR(FIND(O$3,'CFR - XML import'!$A107)),0,VALUE(MID('CFR - XML import'!$A107,SEARCH(\">\",'CFR - XML import'!$A107,1)+1,SEARCH(\"/\",'CFR - XML import'!$A107,1)-SEARCH(\">\",'CFR - XML import'!$A107,1)-2)))","v":0},{"$f":"IF(ISERROR(FIND(P$3,'CFR - XML import'!$A107)),0,VALUE(MID('CFR - XML import'!$A107,SEARCH(\">\",'CFR - XML import'!$A107,1)+1,SEARCH(\"/\",'CFR - XML import'!$A107,1)-SEARCH(\">\",'CFR - XML import'!$A107,1)-2)))","v":0},{"$f":"IF(ISERROR(FIND(Q$3,'CFR - XML import'!$A107)),0,VALUE(MID('CFR - XML import'!$A107,SEARCH(\">\",'CFR - XML import'!$A107,1)+1,SEARCH(\"/\",'CFR - XML import'!$A107,1)-SEARCH(\">\",'CFR - XML import'!$A107,1)-2)))","v":0},{"$f":"IF(ISERROR(FIND(R$3,'CFR - XML import'!$A107)),0,VALUE(MID('CFR - XML import'!$A107,SEARCH(\">\",'CFR - XML import'!$A107,1)+1,SEARCH(\"/\",'CFR - XML import'!$A107,1)-SEARCH(\">\",'CFR - XML import'!$A107,1)-2)))","v":0},{"$f":"IF(ISERROR(FIND(S$3,'CFR - XML import'!$A107)),0,VALUE(MID('CFR - XML import'!$A107,SEARCH(\">\",'CFR - XML import'!$A107,1)+1,SEARCH(\"/\",'CFR - XML import'!$A107,1)-SEARCH(\">\",'CFR - XML import'!$A107,1)-2)))","v":0},{"$f":"IF(ISERROR(FIND(T$3,'CFR - XML import'!$A107)),0,VALUE(MID('CFR - XML import'!$A107,SEARCH(\">\",'CFR - XML import'!$A107,1)+1,SEARCH(\"/\",'CFR - XML import'!$A107,1)-SEARCH(\">\",'CFR - XML import'!$A107,1)-2)))","v":0},{"$f":"IF(ISERROR(FIND(U$3,'CFR - XML import'!$A107)),0,VALUE(MID('CFR - XML import'!$A107,SEARCH(\">\",'CFR - XML import'!$A107,1)+1,SEARCH(\"/\",'CFR - XML import'!$A107,1)-SEARCH(\">\",'CFR - XML import'!$A107,1)-2)))","v":0},{"$f":"IF(ISERROR(FIND(V$3,'CFR - XML import'!$A107)),0,VALUE(MID('CFR - XML import'!$A107,SEARCH(\">\",'CFR - XML import'!$A107,1)+1,SEARCH(\"/\",'CFR - XML import'!$A107,1)-SEARCH(\">\",'CFR - XML import'!$A107,1)-2)))","v":0},{"$f":"IF(ISERROR(FIND(W$3,'CFR - XML import'!$A107)),0,VALUE(MID('CFR - XML import'!$A107,SEARCH(\">\",'CFR - XML import'!$A107,1)+1,SEARCH(\"/\",'CFR - XML import'!$A107,1)-SEARCH(\">\",'CFR - XML import'!$A107,1)-2)))","v":0},null,{"$f":"IF(ISERROR(FIND(Y$3,'CFR - XML import'!$A107)),0,VALUE(MID('CFR - XML import'!$A107,SEARCH(\">\",'CFR - XML import'!$A107,1)+1,SEARCH(\"/\",'CFR - XML import'!$A107,1)-SEARCH(\">\",'CFR - XML import'!$A107,1)-2)))","v":0},{"$f":"IF(ISERROR(FIND(Z$3,'CFR - XML import'!$A107)),0,VALUE(MID('CFR - XML import'!$A107,SEARCH(\">\",'CFR - XML import'!$A107,1)+1,SEARCH(\"/\",'CFR - XML import'!$A107,1)-SEARCH(\">\",'CFR - XML import'!$A107,1)-2)))","v":0},{"$f":"IF(ISERROR(FIND(AA$3,'CFR - XML import'!$A107)),0,VALUE(MID('CFR - XML import'!$A107,SEARCH(\">\",'CFR - XML import'!$A107,1)+1,SEARCH(\"/\",'CFR - XML import'!$A107,1)-SEARCH(\">\",'CFR - XML import'!$A107,1)-2)))","v":0},{"$f":"IF(ISERROR(FIND(AB$3,'CFR - XML import'!$A107)),0,VALUE(MID('CFR - XML import'!$A107,SEARCH(\">\",'CFR - XML import'!$A107,1)+1,SEARCH(\"/\",'CFR - XML import'!$A107,1)-SEARCH(\">\",'CFR - XML import'!$A107,1)-2)))","v":0},{"$f":"IF(ISERROR(FIND(AC$3,'CFR - XML import'!$A107)),0,VALUE(MID('CFR - XML import'!$A107,SEARCH(\">\",'CFR - XML import'!$A107,1)+1,SEARCH(\"/\",'CFR - XML import'!$A107,1)-SEARCH(\">\",'CFR - XML import'!$A107,1)-2)))","v":0},{"$f":"IF(ISERROR(FIND(AD$3,'CFR - XML import'!$A107)),0,VALUE(MID('CFR - XML import'!$A107,SEARCH(\">\",'CFR - XML import'!$A107,1)+1,SEARCH(\"/\",'CFR - XML import'!$A107,1)-SEARCH(\">\",'CFR - XML import'!$A107,1)-2)))","v":0},{"$f":"IF(ISERROR(FIND(AE$3,'CFR - XML import'!$A107)),0,VALUE(MID('CFR - XML import'!$A107,SEARCH(\">\",'CFR - XML import'!$A107,1)+1,SEARCH(\"/\",'CFR - XML import'!$A107,1)-SEARCH(\">\",'CFR - XML import'!$A107,1)-2)))","v":0},{"$f":"IF(ISERROR(FIND(AF$3,'CFR - XML import'!$A107)),0,VALUE(MID('CFR - XML import'!$A107,SEARCH(\">\",'CFR - XML import'!$A107,1)+1,SEARCH(\"/\",'CFR - XML import'!$A107,1)-SEARCH(\">\",'CFR - XML import'!$A107,1)-2)))","v":0},{"$f":"IF(ISERROR(FIND(AG$3,'CFR - XML import'!$A107)),0,VALUE(MID('CFR - XML import'!$A107,SEARCH(\">\",'CFR - XML import'!$A107,1)+1,SEARCH(\"/\",'CFR - XML import'!$A107,1)-SEARCH(\">\",'CFR - XML import'!$A107,1)-2)))","v":0},{"$f":"IF(ISERROR(FIND(AH$3,'CFR - XML import'!$A107)),0,VALUE(MID('CFR - XML import'!$A107,SEARCH(\">\",'CFR - XML import'!$A107,1)+1,SEARCH(\"/\",'CFR - XML import'!$A107,1)-SEARCH(\">\",'CFR - XML import'!$A107,1)-2)))","v":0},{"$f":"IF(ISERROR(FIND(AI$3,'CFR - XML import'!$A107)),0,VALUE(MID('CFR - XML import'!$A107,SEARCH(\">\",'CFR - XML import'!$A107,1)+1,SEARCH(\"/\",'CFR - XML import'!$A107,1)-SEARCH(\">\",'CFR - XML import'!$A107,1)-2)))","v":0},{"$f":"IF(ISERROR(FIND(AJ$3,'CFR - XML import'!$A107)),0,VALUE(MID('CFR - XML import'!$A107,SEARCH(\">\",'CFR - XML import'!$A107,1)+1,SEARCH(\"/\",'CFR - XML import'!$A107,1)-SEARCH(\">\",'CFR - XML import'!$A107,1)-2)))","v":0},{"$f":"IF(ISERROR(FIND(AK$3,'CFR - XML import'!$A107)),0,VALUE(MID('CFR - XML import'!$A107,SEARCH(\">\",'CFR - XML import'!$A107,1)+1,SEARCH(\"/\",'CFR - XML import'!$A107,1)-SEARCH(\">\",'CFR - XML import'!$A107,1)-2)))","v":0},{"$f":"IF(ISERROR(FIND(AL$3,'CFR - XML import'!$A107)),0,VALUE(MID('CFR - XML import'!$A107,SEARCH(\">\",'CFR - XML import'!$A107,1)+1,SEARCH(\"/\",'CFR - XML import'!$A107,1)-SEARCH(\">\",'CFR - XML import'!$A107,1)-2)))","v":0},{"$f":"IF(ISERROR(FIND(AM$3,'CFR - XML import'!$A107)),0,VALUE(MID('CFR - XML import'!$A107,SEARCH(\">\",'CFR - XML import'!$A107,1)+1,SEARCH(\"/\",'CFR - XML import'!$A107,1)-SEARCH(\">\",'CFR - XML import'!$A107,1)-2)))","v":0},{"$f":"IF(ISERROR(FIND(AN$3,'CFR - XML import'!$A107)),0,VALUE(MID('CFR - XML import'!$A107,SEARCH(\">\",'CFR - XML import'!$A107,1)+1,SEARCH(\"/\",'CFR - XML import'!$A107,1)-SEARCH(\">\",'CFR - XML import'!$A107,1)-2)))","v":0},{"$f":"IF(ISERROR(FIND(AO$3,'CFR - XML import'!$A107)),0,VALUE(MID('CFR - XML import'!$A107,SEARCH(\">\",'CFR - XML import'!$A107,1)+1,SEARCH(\"/\",'CFR - XML import'!$A107,1)-SEARCH(\">\",'CFR - XML import'!$A107,1)-2)))","v":0},{"$f":"IF(ISERROR(FIND(AP$3,'CFR - XML import'!$A107)),0,VALUE(MID('CFR - XML import'!$A107,SEARCH(\">\",'CFR - XML import'!$A107,1)+1,SEARCH(\"/\",'CFR - XML import'!$A107,1)-SEARCH(\">\",'CFR - XML import'!$A107,1)-2)))","v":0},{"$f":"IF(ISERROR(FIND(AQ$3,'CFR - XML import'!$A107)),0,VALUE(MID('CFR - XML import'!$A107,SEARCH(\">\",'CFR - XML import'!$A107,1)+1,SEARCH(\"/\",'CFR - XML import'!$A107,1)-SEARCH(\">\",'CFR - XML import'!$A107,1)-2)))","v":0},{"$f":"IF(ISERROR(FIND(AR$3,'CFR - XML import'!$A107)),0,VALUE(MID('CFR - XML import'!$A107,SEARCH(\">\",'CFR - XML import'!$A107,1)+1,SEARCH(\"/\",'CFR - XML import'!$A107,1)-SEARCH(\">\",'CFR - XML import'!$A107,1)-2)))","v":0},{"$f":"IF(ISERROR(FIND(AS$3,'CFR - XML import'!$A107)),0,VALUE(MID('CFR - XML import'!$A107,SEARCH(\">\",'CFR - XML import'!$A107,1)+1,SEARCH(\"/\",'CFR - XML import'!$A107,1)-SEARCH(\">\",'CFR - XML import'!$A107,1)-2)))","v":0},{"$f":"IF(ISERROR(FIND(AT$3,'CFR - XML import'!$A107)),0,VALUE(MID('CFR - XML import'!$A107,SEARCH(\">\",'CFR - XML import'!$A107,1)+1,SEARCH(\"/\",'CFR - XML import'!$A107,1)-SEARCH(\">\",'CFR - XML import'!$A107,1)-2)))","v":0},{"$f":"IF(ISERROR(FIND(AU$3,'CFR - XML import'!$A107)),0,VALUE(MID('CFR - XML import'!$A107,SEARCH(\">\",'CFR - XML import'!$A107,1)+1,SEARCH(\"/\",'CFR - XML import'!$A107,1)-SEARCH(\">\",'CFR - XML import'!$A107,1)-2)))","v":0},{"$f":"IF(ISERROR(FIND(AV$3,'CFR - XML import'!$A107)),0,VALUE(MID('CFR - XML import'!$A107,SEARCH(\">\",'CFR - XML import'!$A107,1)+1,SEARCH(\"/\",'CFR - XML import'!$A107,1)-SEARCH(\">\",'CFR - XML import'!$A107,1)-2)))","v":0},{"$f":"IF(ISERROR(FIND(AW$3,'CFR - XML import'!$A107)),0,VALUE(MID('CFR - XML import'!$A107,SEARCH(\">\",'CFR - XML import'!$A107,1)+1,SEARCH(\"/\",'CFR - XML import'!$A107,1)-SEARCH(\">\",'CFR - XML import'!$A107,1)-2)))","v":0},{"$f":"IF(ISERROR(FIND(AX$3,'CFR - XML import'!$A107)),0,VALUE(MID('CFR - XML import'!$A107,SEARCH(\">\",'CFR - XML import'!$A107,1)+1,SEARCH(\"/\",'CFR - XML import'!$A107,1)-SEARCH(\">\",'CFR - XML import'!$A107,1)-2)))","v":0},{"$f":"IF(ISERROR(FIND(AY$3,'CFR - XML import'!$A107)),0,VALUE(MID('CFR - XML import'!$A107,SEARCH(\">\",'CFR - XML import'!$A107,1)+1,SEARCH(\"/\",'CFR - XML import'!$A107,1)-SEARCH(\">\",'CFR - XML import'!$A107,1)-2)))","v":0},{"$f":"IF(ISERROR(FIND(AZ$3,'CFR - XML import'!$A107)),0,VALUE(MID('CFR - XML import'!$A107,SEARCH(\">\",'CFR - XML import'!$A107,1)+1,SEARCH(\"/\",'CFR - XML import'!$A107,1)-SEARCH(\">\",'CFR - XML import'!$A107,1)-2)))","v":0},{"$f":"IF(ISERROR(FIND(BA$3,'CFR - XML import'!$A107)),0,VALUE(MID('CFR - XML import'!$A107,SEARCH(\">\",'CFR - XML import'!$A107,1)+1,SEARCH(\"/\",'CFR - XML import'!$A107,1)-SEARCH(\">\",'CFR - XML import'!$A107,1)-2)))","v":0},{"$f":"IF(ISERROR(FIND(BB$3,'CFR - XML import'!$A107)),0,VALUE(MID('CFR - XML import'!$A107,SEARCH(\">\",'CFR - XML import'!$A107,1)+1,SEARCH(\"/\",'CFR - XML import'!$A107,1)-SEARCH(\">\",'CFR - XML import'!$A107,1)-2)))","v":0},{"$f":"IF(ISERROR(FIND(BC$3,'CFR - XML import'!$A107)),0,VALUE(MID('CFR - XML import'!$A107,SEARCH(\">\",'CFR - XML import'!$A107,1)+1,SEARCH(\"/\",'CFR - XML import'!$A107,1)-SEARCH(\">\",'CFR - XML import'!$A107,1)-2)))","v":0},{"$f":"IF(ISERROR(FIND(BD$3,'CFR - XML import'!$A107)),0,VALUE(MID('CFR - XML import'!$A107,SEARCH(\">\",'CFR - XML import'!$A107,1)+1,SEARCH(\"/\",'CFR - XML import'!$A107,1)-SEARCH(\">\",'CFR - XML import'!$A107,1)-2)))","v":0},{"$f":"IF(ISERROR(FIND(BE$3,'CFR - XML import'!$A107)),0,VALUE(MID('CFR - XML import'!$A107,SEARCH(\">\",'CFR - XML import'!$A107,1)+1,SEARCH(\"/\",'CFR - XML import'!$A107,1)-SEARCH(\">\",'CFR - XML import'!$A107,1)-2)))","v":0},{"$f":"IF(ISERROR(FIND(BF$3,'CFR - XML import'!$A107)),0,VALUE(MID('CFR - XML import'!$A107,SEARCH(\">\",'CFR - XML import'!$A107,1)+1,SEARCH(\"/\",'CFR - XML import'!$A107,1)-SEARCH(\">\",'CFR - XML import'!$A107,1)-2)))","v":0},{"$f":"IF(ISERROR(FIND(BG$3,'CFR - XML import'!$A107)),0,VALUE(MID('CFR - XML import'!$A107,SEARCH(\">\",'CFR - XML import'!$A107,1)+1,SEARCH(\"/\",'CFR - XML import'!$A107,1)-SEARCH(\">\",'CFR - XML import'!$A107,1)-2)))","v":0},{"$f":"IF(ISERROR(FIND(BH$3,'CFR - XML import'!$A107)),0,VALUE(MID('CFR - XML import'!$A107,SEARCH(\">\",'CFR - XML import'!$A107,1)+1,SEARCH(\"/\",'CFR - XML import'!$A107,1)-SEARCH(\">\",'CFR - XML import'!$A107,1)-2)))","v":0},{"$f":"IF(ISERROR(FIND(BI$3,'CFR - XML import'!$A107)),0,VALUE(MID('CFR - XML import'!$A107,SEARCH(\">\",'CFR - XML import'!$A107,1)+1,SEARCH(\"/\",'CFR - XML import'!$A107,1)-SEARCH(\">\",'CFR - XML import'!$A107,1)-2)))","v":0},{"$f":"IF(ISERROR(FIND(BJ$3,'CFR - XML import'!$A107)),0,VALUE(MID('CFR - XML import'!$A107,SEARCH(\">\",'CFR - XML import'!$A107,1)+1,SEARCH(\"/\",'CFR - XML import'!$A107,1)-SEARCH(\">\",'CFR - XML import'!$A107,1)-2)))","v":0},{"$f":"IF(ISERROR(FIND(BK$3,'CFR - XML import'!$A107)),0,VALUE(MID('CFR - XML import'!$A107,SEARCH(\">\",'CFR - XML import'!$A107,1)+1,SEARCH(\"/\",'CFR - XML import'!$A107,1)-SEARCH(\">\",'CFR - XML import'!$A107,1)-2)))","v":0},{"$f":"IF(ISERROR(FIND(BL$3,'CFR - XML import'!$A107)),0,VALUE(MID('CFR - XML import'!$A107,SEARCH(\">\",'CFR - XML import'!$A107,1)+1,SEARCH(\"/\",'CFR - XML import'!$A107,1)-SEARCH(\">\",'CFR - XML import'!$A107,1)-2)))","v":0},{"$f":"IF(ISERROR(FIND(BM$3,'CFR - XML import'!$A107)),0,VALUE(MID('CFR - XML import'!$A107,SEARCH(\">\",'CFR - XML import'!$A107,1)+1,SEARCH(\"/\",'CFR - XML import'!$A107,1)-SEARCH(\">\",'CFR - XML import'!$A107,1)-2)))","v":0},{"$f":"IF(ISERROR(FIND(BN$3,'CFR - XML import'!$A107)),0,VALUE(MID('CFR - XML import'!$A107,SEARCH(\">\",'CFR - XML import'!$A107,1)+1,SEARCH(\"/\",'CFR - XML import'!$A107,1)-SEARCH(\">\",'CFR - XML import'!$A107,1)-2)))","v":0},{"$f":"IF(ISERROR(FIND(BO$3,'CFR - XML import'!$A107)),0,VALUE(MID('CFR - XML import'!$A107,SEARCH(\">\",'CFR - XML import'!$A107,1)+1,SEARCH(\"/\",'CFR - XML import'!$A107,1)-SEARCH(\">\",'CFR - XML import'!$A107,1)-2)))","v":0},{"$f":"IF(ISERROR(FIND(BP$3,'CFR - XML import'!$A107)),0,VALUE(MID('CFR - XML import'!$A107,SEARCH(\">\",'CFR - XML import'!$A107,1)+1,SEARCH(\"/\",'CFR - XML import'!$A107,1)-SEARCH(\">\",'CFR - XML import'!$A107,1)-2)))","v":0},{"$f":"IF(ISERROR(FIND(BQ$3,'CFR - XML import'!$A107)),0,VALUE(MID('CFR - XML import'!$A107,SEARCH(\">\",'CFR - XML import'!$A107,1)+1,SEARCH(\"/\",'CFR - XML import'!$A107,1)-SEARCH(\">\",'CFR - XML import'!$A107,1)-2)))","v":0},{"$f":"IF(ISERROR(FIND(BR$3,'CFR - XML import'!$A107)),0,VALUE(MID('CFR - XML import'!$A107,SEARCH(\">\",'CFR - XML import'!$A107,1)+1,SEARCH(\"/\",'CFR - XML import'!$A107,1)-SEARCH(\">\",'CFR - XML import'!$A107,1)-2)))","v":0},{"$f":"IF(ISERROR(FIND(BS$3,'CFR - XML import'!$A107)),0,VALUE(MID('CFR - XML import'!$A107,SEARCH(\">\",'CFR - XML import'!$A107,1)+1,SEARCH(\"/\",'CFR - XML import'!$A107,1)-SEARCH(\">\",'CFR - XML import'!$A107,1)-2)))","v":0},{"$f":"IF(ISERROR(FIND(BT$3,'CFR - XML import'!$A107)),0,VALUE(MID('CFR - XML import'!$A107,SEARCH(\">\",'CFR - XML import'!$A107,1)+1,SEARCH(\"/\",'CFR - XML import'!$A107,1)-SEARCH(\">\",'CFR - XML import'!$A107,1)-2)))","v":0},{"$f":"IF(ISERROR(FIND(BU$3,'CFR - XML import'!$A107)),0,VALUE(MID('CFR - XML import'!$A107,SEARCH(\">\",'CFR - XML import'!$A107,1)+1,SEARCH(\"/\",'CFR - XML import'!$A107,1)-SEARCH(\">\",'CFR - XML import'!$A107,1)-2)))","v":0},{"$f":"IF(ISERROR(FIND(BV$3,'CFR - XML import'!$A107)),0,VALUE(MID('CFR - XML import'!$A107,SEARCH(\">\",'CFR - XML import'!$A107,1)+1,SEARCH(\"/\",'CFR - XML import'!$A107,1)-SEARCH(\">\",'CFR - XML import'!$A107,1)-2)))","v":0},{"$f":"IF(ISERROR(FIND(BW$3,'CFR - XML import'!$A107)),0,VALUE(MID('CFR - XML import'!$A107,SEARCH(\">\",'CFR - XML import'!$A107,1)+1,SEARCH(\"/\",'CFR - XML import'!$A107,1)-SEARCH(\">\",'CFR - XML import'!$A107,1)-2)))","v":0},{"$f":"IF(ISERROR(FIND(BX$3,'CFR - XML import'!$A107)),0,VALUE(MID('CFR - XML import'!$A107,SEARCH(\">\",'CFR - XML import'!$A107,1)+1,SEARCH(\"/\",'CFR - XML import'!$A107,1)-SEARCH(\">\",'CFR - XML import'!$A107,1)-2)))","v":0},{"$f":"IF(ISERROR(FIND(BY$3,'CFR - XML import'!$A107)),0,VALUE(MID('CFR - XML import'!$A107,SEARCH(\">\",'CFR - XML import'!$A107,1)+1,SEARCH(\"/\",'CFR - XML import'!$A107,1)-SEARCH(\">\",'CFR - XML import'!$A107,1)-2)))","v":0},{"$f":"IF(ISERROR(FIND(BZ$3,'CFR - XML import'!$A107)),0,VALUE(MID('CFR - XML import'!$A107,SEARCH(\">\",'CFR - XML import'!$A107,1)+1,SEARCH(\"/\",'CFR - XML import'!$A107,1)-SEARCH(\">\",'CFR - XML import'!$A107,1)-2)))","v":0},null,null,null,null,null,null,{"$f":"IF(ISERROR(IF(MID('CFR - XML import'!$A107,LEN($CF$4)+1,LEN('CFR - XML import'!$A107)-(2*LEN($CF$4)+1))=\"RMMS\",1,IF(MID('CFR - XML import'!$A107,LEN(\"    <InputSystem>\")+1,LEN('CFR - XML import'!$A107)-(LEN(\"    <InputSystem>\")+LEN($CF$4)+1))=\"SIMS\",2,0))),0,IF(MID('CFR - XML import'!$A107,LEN($CF$4)+1,LEN('CFR - XML import'!$A107)-(2*LEN($CF$4)+1))=\"RMMS\",1,IF(MID('CFR - XML import'!$A107,LEN(\"    <InputSystem>\")+1,LEN('CFR - XML import'!$A107)-(LEN(\"    <InputSystem>\")+LEN($CF$4)+1))=\"SIMS\",2,0)))","v":0},{"$f":"IF(ISERROR(FIND(CH$3,'CFR - XML import'!$A107)),0,MID('CFR - XML import'!$A107,SEARCH(\">\",'CFR - XML import'!$A107,1)+1,SEARCH(\"/\",'CFR - XML import'!$A107,1)-SEARCH(\">\",'CFR - XML import'!$A107,1)-2))","v":0},{"$f":"IF(ISERROR(FIND(CI$3,'CFR - XML import'!$A107)),0,MID('CFR - XML import'!$A107,SEARCH(\">\",'CFR - XML import'!$A107,1)+1,SEARCH(\"/\",'CFR - XML import'!$A107,1)-SEARCH(\">\",'CFR - XML import'!$A107,1)-2))","v":0},{"$f":"IF(ISERROR(FIND(CJ$3,'CFR - XML import'!$A107)),0,MID('CFR - XML import'!$A107,SEARCH(\">\",'CFR - XML import'!$A107,1)+1,SEARCH(\"/\",'CFR - XML import'!$A107,1)-SEARCH(\">\",'CFR - XML import'!$A107,1)-2))","v":0},{"$f":"IF(ISERROR(FIND(CK$3,'CFR - XML import'!$A107)),0,MID('CFR - XML import'!$A107,SEARCH(\">\",'CFR - XML import'!$A107,1)+1,SEARCH(\"/\",'CFR - XML import'!$A107,1)-SEARCH(\">\",'CFR - XML import'!$A107,1)-2))","v":0},{"$f":"IF(ISERROR(FIND(CL$3,'CFR - XML import'!$A107)),0,MID('CFR - XML import'!$A107,SEARCH(\">\",'CFR - XML import'!$A107,1)+1,SEARCH(\"/\",'CFR - XML import'!$A107,1)-SEARCH(\">\",'CFR - XML import'!$A107,1)-2))","v":0}]
[{"$f":"IF(AND('CFR - XML import'!A108<>\"\",LEFT('CFR - XML import'!A108,1)<>\"<\",LEFT('CFR - XML import'!A108,3)<>\"  <\",LEFT('CFR - XML import'!A108,5)<>\"    <\",LEFT('CFR - XML import'!A108,7)<>\"      <\",LEFT('CFR - XML import'!A108,9)<>\"        <\",$B$1=\"SIMS\"),'CFR - XML import'!A108,IF(AND(LEFT('CFR - XML import'!A108,9)=\"<Details>\",$B$1=\"RM\"),'CFR - XML import'!A108,\"\"))","v":""},{"$f":"IF(ISERROR(FIND(B$3,'CFR - XML import'!$A108)),0,VALUE(MID('CFR - XML import'!$A108,SEARCH(\">\",'CFR - XML import'!$A108,1)+1,SEARCH(\"/\",'CFR - XML import'!$A108,1)-SEARCH(\">\",'CFR - XML import'!$A108,1)-2)))","v":0},null,{"$f":"IF(ISERROR(FIND(D$3,'CFR - XML import'!$A108)),0,MID('CFR - XML import'!$A108,SEARCH(\">\",'CFR - XML import'!$A108,1)+1,SEARCH(\"/\",'CFR - XML import'!$A108,1)-SEARCH(\">\",'CFR - XML import'!$A108,1)-2))","v":0},{"$f":"IF(ISERROR(FIND(E$3,'CFR - XML import'!$A108)),0,MID('CFR - XML import'!$A108,SEARCH(\">\",'CFR - XML import'!$A108,1)+1,SEARCH(\"/\",'CFR - XML import'!$A108,1)-SEARCH(\">\",'CFR - XML import'!$A108,1)-2))","v":0},{"$f":"IF($B$1=\"SIMS\",IF(ISERROR(FIND(F$3,'CFR - XML import'!$A108)),0,VALUE(MID('CFR - XML import'!$A108,15,10))),IF(ISERROR(FIND(F$3,'CFR - XML import'!$A108)),0,VALUE(MID('CFR - XML import'!$A108,11,10))))","v":"00:00:00"},{"$f":"IF(ISERROR(FIND(G$3,'CFR - XML import'!$A108)),0,VALUE(MID('CFR - XML import'!$A108,SEARCH(\">\",'CFR - XML import'!$A108,1)+1,SEARCH(\"/\",'CFR - XML import'!$A108,1)-SEARCH(\">\",'CFR - XML import'!$A108,1)-2)))","v":0},{"$f":"IF(ISERROR(FIND(H$3,'CFR - XML import'!$A108)),0,VALUE(MID('CFR - XML import'!$A108,SEARCH(\">\",'CFR - XML import'!$A108,1)+1,SEARCH(\"/\",'CFR - XML import'!$A108,1)-SEARCH(\">\",'CFR - XML import'!$A108,1)-2)))","v":0},{"$f":"IF(ISERROR(FIND(I$3,'CFR - XML import'!$A108)),0,VALUE(MID('CFR - XML import'!$A108,SEARCH(\">\",'CFR - XML import'!$A108,1)+1,SEARCH(\"/\",'CFR - XML import'!$A108,1)-SEARCH(\">\",'CFR - XML import'!$A108,1)-2)))","v":0},{"$f":"IF(ISERROR(FIND(J$3,'CFR - XML import'!$A108)),0,VALUE(MID('CFR - XML import'!$A108,SEARCH(\">\",'CFR - XML import'!$A108,1)+1,SEARCH(\"/\",'CFR - XML import'!$A108,1)-SEARCH(\">\",'CFR - XML import'!$A108,1)-2)))","v":0},{"$f":"IF(ISERROR(FIND(K$3,'CFR - XML import'!$A108)),0,VALUE(MID('CFR - XML import'!$A108,SEARCH(\">\",'CFR - XML import'!$A108,1)+1,SEARCH(\"/\",'CFR - XML import'!$A108,1)-SEARCH(\">\",'CFR - XML import'!$A108,1)-2)))","v":0},{"$f":"IF(ISERROR(FIND(L$3,'CFR - XML import'!$A108)),0,VALUE(MID('CFR - XML import'!$A108,SEARCH(\">\",'CFR - XML import'!$A108,1)+1,SEARCH(\"/\",'CFR - XML import'!$A108,1)-SEARCH(\">\",'CFR - XML import'!$A108,1)-2)))","v":0},{"$f":"IF(ISERROR(FIND(M$3,'CFR - XML import'!$A108)),0,VALUE(MID('CFR - XML import'!$A108,SEARCH(\">\",'CFR - XML import'!$A108,1)+1,SEARCH(\"/\",'CFR - XML import'!$A108,1)-SEARCH(\">\",'CFR - XML import'!$A108,1)-2)))","v":0},{"$f":"IF(ISERROR(FIND(N$3,'CFR - XML import'!$A108)),0,VALUE(MID('CFR - XML import'!$A108,SEARCH(\">\",'CFR - XML import'!$A108,1)+1,SEARCH(\"/\",'CFR - XML import'!$A108,1)-SEARCH(\">\",'CFR - XML import'!$A108,1)-2)))","v":0},{"$f":"IF(ISERROR(FIND(O$3,'CFR - XML import'!$A108)),0,VALUE(MID('CFR - XML import'!$A108,SEARCH(\">\",'CFR - XML import'!$A108,1)+1,SEARCH(\"/\",'CFR - XML import'!$A108,1)-SEARCH(\">\",'CFR - XML import'!$A108,1)-2)))","v":0},{"$f":"IF(ISERROR(FIND(P$3,'CFR - XML import'!$A108)),0,VALUE(MID('CFR - XML import'!$A108,SEARCH(\">\",'CFR - XML import'!$A108,1)+1,SEARCH(\"/\",'CFR - XML import'!$A108,1)-SEARCH(\">\",'CFR - XML import'!$A108,1)-2)))","v":0},{"$f":"IF(ISERROR(FIND(Q$3,'CFR - XML import'!$A108)),0,VALUE(MID('CFR - XML import'!$A108,SEARCH(\">\",'CFR - XML import'!$A108,1)+1,SEARCH(\"/\",'CFR - XML import'!$A108,1)-SEARCH(\">\",'CFR - XML import'!$A108,1)-2)))","v":0},{"$f":"IF(ISERROR(FIND(R$3,'CFR - XML import'!$A108)),0,VALUE(MID('CFR - XML import'!$A108,SEARCH(\">\",'CFR - XML import'!$A108,1)+1,SEARCH(\"/\",'CFR - XML import'!$A108,1)-SEARCH(\">\",'CFR - XML import'!$A108,1)-2)))","v":0},{"$f":"IF(ISERROR(FIND(S$3,'CFR - XML import'!$A108)),0,VALUE(MID('CFR - XML import'!$A108,SEARCH(\">\",'CFR - XML import'!$A108,1)+1,SEARCH(\"/\",'CFR - XML import'!$A108,1)-SEARCH(\">\",'CFR - XML import'!$A108,1)-2)))","v":0},{"$f":"IF(ISERROR(FIND(T$3,'CFR - XML import'!$A108)),0,VALUE(MID('CFR - XML import'!$A108,SEARCH(\">\",'CFR - XML import'!$A108,1)+1,SEARCH(\"/\",'CFR - XML import'!$A108,1)-SEARCH(\">\",'CFR - XML import'!$A108,1)-2)))","v":0},{"$f":"IF(ISERROR(FIND(U$3,'CFR - XML import'!$A108)),0,VALUE(MID('CFR - XML import'!$A108,SEARCH(\">\",'CFR - XML import'!$A108,1)+1,SEARCH(\"/\",'CFR - XML import'!$A108,1)-SEARCH(\">\",'CFR - XML import'!$A108,1)-2)))","v":0},{"$f":"IF(ISERROR(FIND(V$3,'CFR - XML import'!$A108)),0,VALUE(MID('CFR - XML import'!$A108,SEARCH(\">\",'CFR - XML import'!$A108,1)+1,SEARCH(\"/\",'CFR - XML import'!$A108,1)-SEARCH(\">\",'CFR - XML import'!$A108,1)-2)))","v":0},{"$f":"IF(ISERROR(FIND(W$3,'CFR - XML import'!$A108)),0,VALUE(MID('CFR - XML import'!$A108,SEARCH(\">\",'CFR - XML import'!$A108,1)+1,SEARCH(\"/\",'CFR - XML import'!$A108,1)-SEARCH(\">\",'CFR - XML import'!$A108,1)-2)))","v":0},null,{"$f":"IF(ISERROR(FIND(Y$3,'CFR - XML import'!$A108)),0,VALUE(MID('CFR - XML import'!$A108,SEARCH(\">\",'CFR - XML import'!$A108,1)+1,SEARCH(\"/\",'CFR - XML import'!$A108,1)-SEARCH(\">\",'CFR - XML import'!$A108,1)-2)))","v":0},{"$f":"IF(ISERROR(FIND(Z$3,'CFR - XML import'!$A108)),0,VALUE(MID('CFR - XML import'!$A108,SEARCH(\">\",'CFR - XML import'!$A108,1)+1,SEARCH(\"/\",'CFR - XML import'!$A108,1)-SEARCH(\">\",'CFR - XML import'!$A108,1)-2)))","v":0},{"$f":"IF(ISERROR(FIND(AA$3,'CFR - XML import'!$A108)),0,VALUE(MID('CFR - XML import'!$A108,SEARCH(\">\",'CFR - XML import'!$A108,1)+1,SEARCH(\"/\",'CFR - XML import'!$A108,1)-SEARCH(\">\",'CFR - XML import'!$A108,1)-2)))","v":0},{"$f":"IF(ISERROR(FIND(AB$3,'CFR - XML import'!$A108)),0,VALUE(MID('CFR - XML import'!$A108,SEARCH(\">\",'CFR - XML import'!$A108,1)+1,SEARCH(\"/\",'CFR - XML import'!$A108,1)-SEARCH(\">\",'CFR - XML import'!$A108,1)-2)))","v":0},{"$f":"IF(ISERROR(FIND(AC$3,'CFR - XML import'!$A108)),0,VALUE(MID('CFR - XML import'!$A108,SEARCH(\">\",'CFR - XML import'!$A108,1)+1,SEARCH(\"/\",'CFR - XML import'!$A108,1)-SEARCH(\">\",'CFR - XML import'!$A108,1)-2)))","v":0},{"$f":"IF(ISERROR(FIND(AD$3,'CFR - XML import'!$A108)),0,VALUE(MID('CFR - XML import'!$A108,SEARCH(\">\",'CFR - XML import'!$A108,1)+1,SEARCH(\"/\",'CFR - XML import'!$A108,1)-SEARCH(\">\",'CFR - XML import'!$A108,1)-2)))","v":0},{"$f":"IF(ISERROR(FIND(AE$3,'CFR - XML import'!$A108)),0,VALUE(MID('CFR - XML import'!$A108,SEARCH(\">\",'CFR - XML import'!$A108,1)+1,SEARCH(\"/\",'CFR - XML import'!$A108,1)-SEARCH(\">\",'CFR - XML import'!$A108,1)-2)))","v":0},{"$f":"IF(ISERROR(FIND(AF$3,'CFR - XML import'!$A108)),0,VALUE(MID('CFR - XML import'!$A108,SEARCH(\">\",'CFR - XML import'!$A108,1)+1,SEARCH(\"/\",'CFR - XML import'!$A108,1)-SEARCH(\">\",'CFR - XML import'!$A108,1)-2)))","v":0},{"$f":"IF(ISERROR(FIND(AG$3,'CFR - XML import'!$A108)),0,VALUE(MID('CFR - XML import'!$A108,SEARCH(\">\",'CFR - XML import'!$A108,1)+1,SEARCH(\"/\",'CFR - XML import'!$A108,1)-SEARCH(\">\",'CFR - XML import'!$A108,1)-2)))","v":0},{"$f":"IF(ISERROR(FIND(AH$3,'CFR - XML import'!$A108)),0,VALUE(MID('CFR - XML import'!$A108,SEARCH(\">\",'CFR - XML import'!$A108,1)+1,SEARCH(\"/\",'CFR - XML import'!$A108,1)-SEARCH(\">\",'CFR - XML import'!$A108,1)-2)))","v":0},{"$f":"IF(ISERROR(FIND(AI$3,'CFR - XML import'!$A108)),0,VALUE(MID('CFR - XML import'!$A108,SEARCH(\">\",'CFR - XML import'!$A108,1)+1,SEARCH(\"/\",'CFR - XML import'!$A108,1)-SEARCH(\">\",'CFR - XML import'!$A108,1)-2)))","v":0},{"$f":"IF(ISERROR(FIND(AJ$3,'CFR - XML import'!$A108)),0,VALUE(MID('CFR - XML import'!$A108,SEARCH(\">\",'CFR - XML import'!$A108,1)+1,SEARCH(\"/\",'CFR - XML import'!$A108,1)-SEARCH(\">\",'CFR - XML import'!$A108,1)-2)))","v":0},{"$f":"IF(ISERROR(FIND(AK$3,'CFR - XML import'!$A108)),0,VALUE(MID('CFR - XML import'!$A108,SEARCH(\">\",'CFR - XML import'!$A108,1)+1,SEARCH(\"/\",'CFR - XML import'!$A108,1)-SEARCH(\">\",'CFR - XML import'!$A108,1)-2)))","v":0},{"$f":"IF(ISERROR(FIND(AL$3,'CFR - XML import'!$A108)),0,VALUE(MID('CFR - XML import'!$A108,SEARCH(\">\",'CFR - XML import'!$A108,1)+1,SEARCH(\"/\",'CFR - XML import'!$A108,1)-SEARCH(\">\",'CFR - XML import'!$A108,1)-2)))","v":0},{"$f":"IF(ISERROR(FIND(AM$3,'CFR - XML import'!$A108)),0,VALUE(MID('CFR - XML import'!$A108,SEARCH(\">\",'CFR - XML import'!$A108,1)+1,SEARCH(\"/\",'CFR - XML import'!$A108,1)-SEARCH(\">\",'CFR - XML import'!$A108,1)-2)))","v":0},{"$f":"IF(ISERROR(FIND(AN$3,'CFR - XML import'!$A108)),0,VALUE(MID('CFR - XML import'!$A108,SEARCH(\">\",'CFR - XML import'!$A108,1)+1,SEARCH(\"/\",'CFR - XML import'!$A108,1)-SEARCH(\">\",'CFR - XML import'!$A108,1)-2)))","v":0},{"$f":"IF(ISERROR(FIND(AO$3,'CFR - XML import'!$A108)),0,VALUE(MID('CFR - XML import'!$A108,SEARCH(\">\",'CFR - XML import'!$A108,1)+1,SEARCH(\"/\",'CFR - XML import'!$A108,1)-SEARCH(\">\",'CFR - XML import'!$A108,1)-2)))","v":0},{"$f":"IF(ISERROR(FIND(AP$3,'CFR - XML import'!$A108)),0,VALUE(MID('CFR - XML import'!$A108,SEARCH(\">\",'CFR - XML import'!$A108,1)+1,SEARCH(\"/\",'CFR - XML import'!$A108,1)-SEARCH(\">\",'CFR - XML import'!$A108,1)-2)))","v":0},{"$f":"IF(ISERROR(FIND(AQ$3,'CFR - XML import'!$A108)),0,VALUE(MID('CFR - XML import'!$A108,SEARCH(\">\",'CFR - XML import'!$A108,1)+1,SEARCH(\"/\",'CFR - XML import'!$A108,1)-SEARCH(\">\",'CFR - XML import'!$A108,1)-2)))","v":0},{"$f":"IF(ISERROR(FIND(AR$3,'CFR - XML import'!$A108)),0,VALUE(MID('CFR - XML import'!$A108,SEARCH(\">\",'CFR - XML import'!$A108,1)+1,SEARCH(\"/\",'CFR - XML import'!$A108,1)-SEARCH(\">\",'CFR - XML import'!$A108,1)-2)))","v":0},{"$f":"IF(ISERROR(FIND(AS$3,'CFR - XML import'!$A108)),0,VALUE(MID('CFR - XML import'!$A108,SEARCH(\">\",'CFR - XML import'!$A108,1)+1,SEARCH(\"/\",'CFR - XML import'!$A108,1)-SEARCH(\">\",'CFR - XML import'!$A108,1)-2)))","v":0},{"$f":"IF(ISERROR(FIND(AT$3,'CFR - XML import'!$A108)),0,VALUE(MID('CFR - XML import'!$A108,SEARCH(\">\",'CFR - XML import'!$A108,1)+1,SEARCH(\"/\",'CFR - XML import'!$A108,1)-SEARCH(\">\",'CFR - XML import'!$A108,1)-2)))","v":0},{"$f":"IF(ISERROR(FIND(AU$3,'CFR - XML import'!$A108)),0,VALUE(MID('CFR - XML import'!$A108,SEARCH(\">\",'CFR - XML import'!$A108,1)+1,SEARCH(\"/\",'CFR - XML import'!$A108,1)-SEARCH(\">\",'CFR - XML import'!$A108,1)-2)))","v":0},{"$f":"IF(ISERROR(FIND(AV$3,'CFR - XML import'!$A108)),0,VALUE(MID('CFR - XML import'!$A108,SEARCH(\">\",'CFR - XML import'!$A108,1)+1,SEARCH(\"/\",'CFR - XML import'!$A108,1)-SEARCH(\">\",'CFR - XML import'!$A108,1)-2)))","v":0},{"$f":"IF(ISERROR(FIND(AW$3,'CFR - XML import'!$A108)),0,VALUE(MID('CFR - XML import'!$A108,SEARCH(\">\",'CFR - XML import'!$A108,1)+1,SEARCH(\"/\",'CFR - XML import'!$A108,1)-SEARCH(\">\",'CFR - XML import'!$A108,1)-2)))","v":0},{"$f":"IF(ISERROR(FIND(AX$3,'CFR - XML import'!$A108)),0,VALUE(MID('CFR - XML import'!$A108,SEARCH(\">\",'CFR - XML import'!$A108,1)+1,SEARCH(\"/\",'CFR - XML import'!$A108,1)-SEARCH(\">\",'CFR - XML import'!$A108,1)-2)))","v":0},{"$f":"IF(ISERROR(FIND(AY$3,'CFR - XML import'!$A108)),0,VALUE(MID('CFR - XML import'!$A108,SEARCH(\">\",'CFR - XML import'!$A108,1)+1,SEARCH(\"/\",'CFR - XML import'!$A108,1)-SEARCH(\">\",'CFR - XML import'!$A108,1)-2)))","v":0},{"$f":"IF(ISERROR(FIND(AZ$3,'CFR - XML import'!$A108)),0,VALUE(MID('CFR - XML import'!$A108,SEARCH(\">\",'CFR - XML import'!$A108,1)+1,SEARCH(\"/\",'CFR - XML import'!$A108,1)-SEARCH(\">\",'CFR - XML import'!$A108,1)-2)))","v":0},{"$f":"IF(ISERROR(FIND(BA$3,'CFR - XML import'!$A108)),0,VALUE(MID('CFR - XML import'!$A108,SEARCH(\">\",'CFR - XML import'!$A108,1)+1,SEARCH(\"/\",'CFR - XML import'!$A108,1)-SEARCH(\">\",'CFR - XML import'!$A108,1)-2)))","v":0},{"$f":"IF(ISERROR(FIND(BB$3,'CFR - XML import'!$A108)),0,VALUE(MID('CFR - XML import'!$A108,SEARCH(\">\",'CFR - XML import'!$A108,1)+1,SEARCH(\"/\",'CFR - XML import'!$A108,1)-SEARCH(\">\",'CFR - XML import'!$A108,1)-2)))","v":0},{"$f":"IF(ISERROR(FIND(BC$3,'CFR - XML import'!$A108)),0,VALUE(MID('CFR - XML import'!$A108,SEARCH(\">\",'CFR - XML import'!$A108,1)+1,SEARCH(\"/\",'CFR - XML import'!$A108,1)-SEARCH(\">\",'CFR - XML import'!$A108,1)-2)))","v":0},{"$f":"IF(ISERROR(FIND(BD$3,'CFR - XML import'!$A108)),0,VALUE(MID('CFR - XML import'!$A108,SEARCH(\">\",'CFR - XML import'!$A108,1)+1,SEARCH(\"/\",'CFR - XML import'!$A108,1)-SEARCH(\">\",'CFR - XML import'!$A108,1)-2)))","v":0},{"$f":"IF(ISERROR(FIND(BE$3,'CFR - XML import'!$A108)),0,VALUE(MID('CFR - XML import'!$A108,SEARCH(\">\",'CFR - XML import'!$A108,1)+1,SEARCH(\"/\",'CFR - XML import'!$A108,1)-SEARCH(\">\",'CFR - XML import'!$A108,1)-2)))","v":0},{"$f":"IF(ISERROR(FIND(BF$3,'CFR - XML import'!$A108)),0,VALUE(MID('CFR - XML import'!$A108,SEARCH(\">\",'CFR - XML import'!$A108,1)+1,SEARCH(\"/\",'CFR - XML import'!$A108,1)-SEARCH(\">\",'CFR - XML import'!$A108,1)-2)))","v":0},{"$f":"IF(ISERROR(FIND(BG$3,'CFR - XML import'!$A108)),0,VALUE(MID('CFR - XML import'!$A108,SEARCH(\">\",'CFR - XML import'!$A108,1)+1,SEARCH(\"/\",'CFR - XML import'!$A108,1)-SEARCH(\">\",'CFR - XML import'!$A108,1)-2)))","v":0},{"$f":"IF(ISERROR(FIND(BH$3,'CFR - XML import'!$A108)),0,VALUE(MID('CFR - XML import'!$A108,SEARCH(\">\",'CFR - XML import'!$A108,1)+1,SEARCH(\"/\",'CFR - XML import'!$A108,1)-SEARCH(\">\",'CFR - XML import'!$A108,1)-2)))","v":0},{"$f":"IF(ISERROR(FIND(BI$3,'CFR - XML import'!$A108)),0,VALUE(MID('CFR - XML import'!$A108,SEARCH(\">\",'CFR - XML import'!$A108,1)+1,SEARCH(\"/\",'CFR - XML import'!$A108,1)-SEARCH(\">\",'CFR - XML import'!$A108,1)-2)))","v":0},{"$f":"IF(ISERROR(FIND(BJ$3,'CFR - XML import'!$A108)),0,VALUE(MID('CFR - XML import'!$A108,SEARCH(\">\",'CFR - XML import'!$A108,1)+1,SEARCH(\"/\",'CFR - XML import'!$A108,1)-SEARCH(\">\",'CFR - XML import'!$A108,1)-2)))","v":0},{"$f":"IF(ISERROR(FIND(BK$3,'CFR - XML import'!$A108)),0,VALUE(MID('CFR - XML import'!$A108,SEARCH(\">\",'CFR - XML import'!$A108,1)+1,SEARCH(\"/\",'CFR - XML import'!$A108,1)-SEARCH(\">\",'CFR - XML import'!$A108,1)-2)))","v":0},{"$f":"IF(ISERROR(FIND(BL$3,'CFR - XML import'!$A108)),0,VALUE(MID('CFR - XML import'!$A108,SEARCH(\">\",'CFR - XML import'!$A108,1)+1,SEARCH(\"/\",'CFR - XML import'!$A108,1)-SEARCH(\">\",'CFR - XML import'!$A108,1)-2)))","v":0},{"$f":"IF(ISERROR(FIND(BM$3,'CFR - XML import'!$A108)),0,VALUE(MID('CFR - XML import'!$A108,SEARCH(\">\",'CFR - XML import'!$A108,1)+1,SEARCH(\"/\",'CFR - XML import'!$A108,1)-SEARCH(\">\",'CFR - XML import'!$A108,1)-2)))","v":0},{"$f":"IF(ISERROR(FIND(BN$3,'CFR - XML import'!$A108)),0,VALUE(MID('CFR - XML import'!$A108,SEARCH(\">\",'CFR - XML import'!$A108,1)+1,SEARCH(\"/\",'CFR - XML import'!$A108,1)-SEARCH(\">\",'CFR - XML import'!$A108,1)-2)))","v":0},{"$f":"IF(ISERROR(FIND(BO$3,'CFR - XML import'!$A108)),0,VALUE(MID('CFR - XML import'!$A108,SEARCH(\">\",'CFR - XML import'!$A108,1)+1,SEARCH(\"/\",'CFR - XML import'!$A108,1)-SEARCH(\">\",'CFR - XML import'!$A108,1)-2)))","v":0},{"$f":"IF(ISERROR(FIND(BP$3,'CFR - XML import'!$A108)),0,VALUE(MID('CFR - XML import'!$A108,SEARCH(\">\",'CFR - XML import'!$A108,1)+1,SEARCH(\"/\",'CFR - XML import'!$A108,1)-SEARCH(\">\",'CFR - XML import'!$A108,1)-2)))","v":0},{"$f":"IF(ISERROR(FIND(BQ$3,'CFR - XML import'!$A108)),0,VALUE(MID('CFR - XML import'!$A108,SEARCH(\">\",'CFR - XML import'!$A108,1)+1,SEARCH(\"/\",'CFR - XML import'!$A108,1)-SEARCH(\">\",'CFR - XML import'!$A108,1)-2)))","v":0},{"$f":"IF(ISERROR(FIND(BR$3,'CFR - XML import'!$A108)),0,VALUE(MID('CFR - XML import'!$A108,SEARCH(\">\",'CFR - XML import'!$A108,1)+1,SEARCH(\"/\",'CFR - XML import'!$A108,1)-SEARCH(\">\",'CFR - XML import'!$A108,1)-2)))","v":0},{"$f":"IF(ISERROR(FIND(BS$3,'CFR - XML import'!$A108)),0,VALUE(MID('CFR - XML import'!$A108,SEARCH(\">\",'CFR - XML import'!$A108,1)+1,SEARCH(\"/\",'CFR - XML import'!$A108,1)-SEARCH(\">\",'CFR - XML import'!$A108,1)-2)))","v":0},{"$f":"IF(ISERROR(FIND(BT$3,'CFR - XML import'!$A108)),0,VALUE(MID('CFR - XML import'!$A108,SEARCH(\">\",'CFR - XML import'!$A108,1)+1,SEARCH(\"/\",'CFR - XML import'!$A108,1)-SEARCH(\">\",'CFR - XML import'!$A108,1)-2)))","v":0},{"$f":"IF(ISERROR(FIND(BU$3,'CFR - XML import'!$A108)),0,VALUE(MID('CFR - XML import'!$A108,SEARCH(\">\",'CFR - XML import'!$A108,1)+1,SEARCH(\"/\",'CFR - XML import'!$A108,1)-SEARCH(\">\",'CFR - XML import'!$A108,1)-2)))","v":0},{"$f":"IF(ISERROR(FIND(BV$3,'CFR - XML import'!$A108)),0,VALUE(MID('CFR - XML import'!$A108,SEARCH(\">\",'CFR - XML import'!$A108,1)+1,SEARCH(\"/\",'CFR - XML import'!$A108,1)-SEARCH(\">\",'CFR - XML import'!$A108,1)-2)))","v":0},{"$f":"IF(ISERROR(FIND(BW$3,'CFR - XML import'!$A108)),0,VALUE(MID('CFR - XML import'!$A108,SEARCH(\">\",'CFR - XML import'!$A108,1)+1,SEARCH(\"/\",'CFR - XML import'!$A108,1)-SEARCH(\">\",'CFR - XML import'!$A108,1)-2)))","v":0},{"$f":"IF(ISERROR(FIND(BX$3,'CFR - XML import'!$A108)),0,VALUE(MID('CFR - XML import'!$A108,SEARCH(\">\",'CFR - XML import'!$A108,1)+1,SEARCH(\"/\",'CFR - XML import'!$A108,1)-SEARCH(\">\",'CFR - XML import'!$A108,1)-2)))","v":0},{"$f":"IF(ISERROR(FIND(BY$3,'CFR - XML import'!$A108)),0,VALUE(MID('CFR - XML import'!$A108,SEARCH(\">\",'CFR - XML import'!$A108,1)+1,SEARCH(\"/\",'CFR - XML import'!$A108,1)-SEARCH(\">\",'CFR - XML import'!$A108,1)-2)))","v":0},{"$f":"IF(ISERROR(FIND(BZ$3,'CFR - XML import'!$A108)),0,VALUE(MID('CFR - XML import'!$A108,SEARCH(\">\",'CFR - XML import'!$A108,1)+1,SEARCH(\"/\",'CFR - XML import'!$A108,1)-SEARCH(\">\",'CFR - XML import'!$A108,1)-2)))","v":0},null,null,null,null,null,null,{"$f":"IF(ISERROR(IF(MID('CFR - XML import'!$A108,LEN($CF$4)+1,LEN('CFR - XML import'!$A108)-(2*LEN($CF$4)+1))=\"RMMS\",1,IF(MID('CFR - XML import'!$A108,LEN(\"    <InputSystem>\")+1,LEN('CFR - XML import'!$A108)-(LEN(\"    <InputSystem>\")+LEN($CF$4)+1))=\"SIMS\",2,0))),0,IF(MID('CFR - XML import'!$A108,LEN($CF$4)+1,LEN('CFR - XML import'!$A108)-(2*LEN($CF$4)+1))=\"RMMS\",1,IF(MID('CFR - XML import'!$A108,LEN(\"    <InputSystem>\")+1,LEN('CFR - XML import'!$A108)-(LEN(\"    <InputSystem>\")+LEN($CF$4)+1))=\"SIMS\",2,0)))","v":0},{"$f":"IF(ISERROR(FIND(CH$3,'CFR - XML import'!$A108)),0,MID('CFR - XML import'!$A108,SEARCH(\">\",'CFR - XML import'!$A108,1)+1,SEARCH(\"/\",'CFR - XML import'!$A108,1)-SEARCH(\">\",'CFR - XML import'!$A108,1)-2))","v":0},{"$f":"IF(ISERROR(FIND(CI$3,'CFR - XML import'!$A108)),0,MID('CFR - XML import'!$A108,SEARCH(\">\",'CFR - XML import'!$A108,1)+1,SEARCH(\"/\",'CFR - XML import'!$A108,1)-SEARCH(\">\",'CFR - XML import'!$A108,1)-2))","v":0},{"$f":"IF(ISERROR(FIND(CJ$3,'CFR - XML import'!$A108)),0,MID('CFR - XML import'!$A108,SEARCH(\">\",'CFR - XML import'!$A108,1)+1,SEARCH(\"/\",'CFR - XML import'!$A108,1)-SEARCH(\">\",'CFR - XML import'!$A108,1)-2))","v":0},{"$f":"IF(ISERROR(FIND(CK$3,'CFR - XML import'!$A108)),0,MID('CFR - XML import'!$A108,SEARCH(\">\",'CFR - XML import'!$A108,1)+1,SEARCH(\"/\",'CFR - XML import'!$A108,1)-SEARCH(\">\",'CFR - XML import'!$A108,1)-2))","v":0},{"$f":"IF(ISERROR(FIND(CL$3,'CFR - XML import'!$A108)),0,MID('CFR - XML import'!$A108,SEARCH(\">\",'CFR - XML import'!$A108,1)+1,SEARCH(\"/\",'CFR - XML import'!$A108,1)-SEARCH(\">\",'CFR - XML import'!$A108,1)-2))","v":0}]
[{"$f":"IF(AND('CFR - XML import'!A109<>\"\",LEFT('CFR - XML import'!A109,1)<>\"<\",LEFT('CFR - XML import'!A109,3)<>\"  <\",LEFT('CFR - XML import'!A109,5)<>\"    <\",LEFT('CFR - XML import'!A109,7)<>\"      <\",LEFT('CFR - XML import'!A109,9)<>\"        <\",$B$1=\"SIMS\"),'CFR - XML import'!A109,IF(AND(LEFT('CFR - XML import'!A109,9)=\"<Details>\",$B$1=\"RM\"),'CFR - XML import'!A109,\"\"))","v":""},{"$f":"IF(ISERROR(FIND(B$3,'CFR - XML import'!$A109)),0,VALUE(MID('CFR - XML import'!$A109,SEARCH(\">\",'CFR - XML import'!$A109,1)+1,SEARCH(\"/\",'CFR - XML import'!$A109,1)-SEARCH(\">\",'CFR - XML import'!$A109,1)-2)))","v":0},null,{"$f":"IF(ISERROR(FIND(D$3,'CFR - XML import'!$A109)),0,MID('CFR - XML import'!$A109,SEARCH(\">\",'CFR - XML import'!$A109,1)+1,SEARCH(\"/\",'CFR - XML import'!$A109,1)-SEARCH(\">\",'CFR - XML import'!$A109,1)-2))","v":0},{"$f":"IF(ISERROR(FIND(E$3,'CFR - XML import'!$A109)),0,MID('CFR - XML import'!$A109,SEARCH(\">\",'CFR - XML import'!$A109,1)+1,SEARCH(\"/\",'CFR - XML import'!$A109,1)-SEARCH(\">\",'CFR - XML import'!$A109,1)-2))","v":0},{"$f":"IF($B$1=\"SIMS\",IF(ISERROR(FIND(F$3,'CFR - XML import'!$A109)),0,VALUE(MID('CFR - XML import'!$A109,15,10))),IF(ISERROR(FIND(F$3,'CFR - XML import'!$A109)),0,VALUE(MID('CFR - XML import'!$A109,11,10))))","v":"00:00:00"},{"$f":"IF(ISERROR(FIND(G$3,'CFR - XML import'!$A109)),0,VALUE(MID('CFR - XML import'!$A109,SEARCH(\">\",'CFR - XML import'!$A109,1)+1,SEARCH(\"/\",'CFR - XML import'!$A109,1)-SEARCH(\">\",'CFR - XML import'!$A109,1)-2)))","v":0},{"$f":"IF(ISERROR(FIND(H$3,'CFR - XML import'!$A109)),0,VALUE(MID('CFR - XML import'!$A109,SEARCH(\">\",'CFR - XML import'!$A109,1)+1,SEARCH(\"/\",'CFR - XML import'!$A109,1)-SEARCH(\">\",'CFR - XML import'!$A109,1)-2)))","v":0},{"$f":"IF(ISERROR(FIND(I$3,'CFR - XML import'!$A109)),0,VALUE(MID('CFR - XML import'!$A109,SEARCH(\">\",'CFR - XML import'!$A109,1)+1,SEARCH(\"/\",'CFR - XML import'!$A109,1)-SEARCH(\">\",'CFR - XML import'!$A109,1)-2)))","v":0},{"$f":"IF(ISERROR(FIND(J$3,'CFR - XML import'!$A109)),0,VALUE(MID('CFR - XML import'!$A109,SEARCH(\">\",'CFR - XML import'!$A109,1)+1,SEARCH(\"/\",'CFR - XML import'!$A109,1)-SEARCH(\">\",'CFR - XML import'!$A109,1)-2)))","v":0},{"$f":"IF(ISERROR(FIND(K$3,'CFR - XML import'!$A109)),0,VALUE(MID('CFR - XML import'!$A109,SEARCH(\">\",'CFR - XML import'!$A109,1)+1,SEARCH(\"/\",'CFR - XML import'!$A109,1)-SEARCH(\">\",'CFR - XML import'!$A109,1)-2)))","v":0},{"$f":"IF(ISERROR(FIND(L$3,'CFR - XML import'!$A109)),0,VALUE(MID('CFR - XML import'!$A109,SEARCH(\">\",'CFR - XML import'!$A109,1)+1,SEARCH(\"/\",'CFR - XML import'!$A109,1)-SEARCH(\">\",'CFR - XML import'!$A109,1)-2)))","v":0},{"$f":"IF(ISERROR(FIND(M$3,'CFR - XML import'!$A109)),0,VALUE(MID('CFR - XML import'!$A109,SEARCH(\">\",'CFR - XML import'!$A109,1)+1,SEARCH(\"/\",'CFR - XML import'!$A109,1)-SEARCH(\">\",'CFR - XML import'!$A109,1)-2)))","v":0},{"$f":"IF(ISERROR(FIND(N$3,'CFR - XML import'!$A109)),0,VALUE(MID('CFR - XML import'!$A109,SEARCH(\">\",'CFR - XML import'!$A109,1)+1,SEARCH(\"/\",'CFR - XML import'!$A109,1)-SEARCH(\">\",'CFR - XML import'!$A109,1)-2)))","v":0},{"$f":"IF(ISERROR(FIND(O$3,'CFR - XML import'!$A109)),0,VALUE(MID('CFR - XML import'!$A109,SEARCH(\">\",'CFR - XML import'!$A109,1)+1,SEARCH(\"/\",'CFR - XML import'!$A109,1)-SEARCH(\">\",'CFR - XML import'!$A109,1)-2)))","v":0},{"$f":"IF(ISERROR(FIND(P$3,'CFR - XML import'!$A109)),0,VALUE(MID('CFR - XML import'!$A109,SEARCH(\">\",'CFR - XML import'!$A109,1)+1,SEARCH(\"/\",'CFR - XML import'!$A109,1)-SEARCH(\">\",'CFR - XML import'!$A109,1)-2)))","v":0},{"$f":"IF(ISERROR(FIND(Q$3,'CFR - XML import'!$A109)),0,VALUE(MID('CFR - XML import'!$A109,SEARCH(\">\",'CFR - XML import'!$A109,1)+1,SEARCH(\"/\",'CFR - XML import'!$A109,1)-SEARCH(\">\",'CFR - XML import'!$A109,1)-2)))","v":0},{"$f":"IF(ISERROR(FIND(R$3,'CFR - XML import'!$A109)),0,VALUE(MID('CFR - XML import'!$A109,SEARCH(\">\",'CFR - XML import'!$A109,1)+1,SEARCH(\"/\",'CFR - XML import'!$A109,1)-SEARCH(\">\",'CFR - XML import'!$A109,1)-2)))","v":0},{"$f":"IF(ISERROR(FIND(S$3,'CFR - XML import'!$A109)),0,VALUE(MID('CFR - XML import'!$A109,SEARCH(\">\",'CFR - XML import'!$A109,1)+1,SEARCH(\"/\",'CFR - XML import'!$A109,1)-SEARCH(\">\",'CFR - XML import'!$A109,1)-2)))","v":0},{"$f":"IF(ISERROR(FIND(T$3,'CFR - XML import'!$A109)),0,VALUE(MID('CFR - XML import'!$A109,SEARCH(\">\",'CFR - XML import'!$A109,1)+1,SEARCH(\"/\",'CFR - XML import'!$A109,1)-SEARCH(\">\",'CFR - XML import'!$A109,1)-2)))","v":0},{"$f":"IF(ISERROR(FIND(U$3,'CFR - XML import'!$A109)),0,VALUE(MID('CFR - XML import'!$A109,SEARCH(\">\",'CFR - XML import'!$A109,1)+1,SEARCH(\"/\",'CFR - XML import'!$A109,1)-SEARCH(\">\",'CFR - XML import'!$A109,1)-2)))","v":0},{"$f":"IF(ISERROR(FIND(V$3,'CFR - XML import'!$A109)),0,VALUE(MID('CFR - XML import'!$A109,SEARCH(\">\",'CFR - XML import'!$A109,1)+1,SEARCH(\"/\",'CFR - XML import'!$A109,1)-SEARCH(\">\",'CFR - XML import'!$A109,1)-2)))","v":0},{"$f":"IF(ISERROR(FIND(W$3,'CFR - XML import'!$A109)),0,VALUE(MID('CFR - XML import'!$A109,SEARCH(\">\",'CFR - XML import'!$A109,1)+1,SEARCH(\"/\",'CFR - XML import'!$A109,1)-SEARCH(\">\",'CFR - XML import'!$A109,1)-2)))","v":0},null,{"$f":"IF(ISERROR(FIND(Y$3,'CFR - XML import'!$A109)),0,VALUE(MID('CFR - XML import'!$A109,SEARCH(\">\",'CFR - XML import'!$A109,1)+1,SEARCH(\"/\",'CFR - XML import'!$A109,1)-SEARCH(\">\",'CFR - XML import'!$A109,1)-2)))","v":0},{"$f":"IF(ISERROR(FIND(Z$3,'CFR - XML import'!$A109)),0,VALUE(MID('CFR - XML import'!$A109,SEARCH(\">\",'CFR - XML import'!$A109,1)+1,SEARCH(\"/\",'CFR - XML import'!$A109,1)-SEARCH(\">\",'CFR - XML import'!$A109,1)-2)))","v":0},{"$f":"IF(ISERROR(FIND(AA$3,'CFR - XML import'!$A109)),0,VALUE(MID('CFR - XML import'!$A109,SEARCH(\">\",'CFR - XML import'!$A109,1)+1,SEARCH(\"/\",'CFR - XML import'!$A109,1)-SEARCH(\">\",'CFR - XML import'!$A109,1)-2)))","v":0},{"$f":"IF(ISERROR(FIND(AB$3,'CFR - XML import'!$A109)),0,VALUE(MID('CFR - XML import'!$A109,SEARCH(\">\",'CFR - XML import'!$A109,1)+1,SEARCH(\"/\",'CFR - XML import'!$A109,1)-SEARCH(\">\",'CFR - XML import'!$A109,1)-2)))","v":0},{"$f":"IF(ISERROR(FIND(AC$3,'CFR - XML import'!$A109)),0,VALUE(MID('CFR - XML import'!$A109,SEARCH(\">\",'CFR - XML import'!$A109,1)+1,SEARCH(\"/\",'CFR - XML import'!$A109,1)-SEARCH(\">\",'CFR - XML import'!$A109,1)-2)))","v":0},{"$f":"IF(ISERROR(FIND(AD$3,'CFR - XML import'!$A109)),0,VALUE(MID('CFR - XML import'!$A109,SEARCH(\">\",'CFR - XML import'!$A109,1)+1,SEARCH(\"/\",'CFR - XML import'!$A109,1)-SEARCH(\">\",'CFR - XML import'!$A109,1)-2)))","v":0},{"$f":"IF(ISERROR(FIND(AE$3,'CFR - XML import'!$A109)),0,VALUE(MID('CFR - XML import'!$A109,SEARCH(\">\",'CFR - XML import'!$A109,1)+1,SEARCH(\"/\",'CFR - XML import'!$A109,1)-SEARCH(\">\",'CFR - XML import'!$A109,1)-2)))","v":0},{"$f":"IF(ISERROR(FIND(AF$3,'CFR - XML import'!$A109)),0,VALUE(MID('CFR - XML import'!$A109,SEARCH(\">\",'CFR - XML import'!$A109,1)+1,SEARCH(\"/\",'CFR - XML import'!$A109,1)-SEARCH(\">\",'CFR - XML import'!$A109,1)-2)))","v":0},{"$f":"IF(ISERROR(FIND(AG$3,'CFR - XML import'!$A109)),0,VALUE(MID('CFR - XML import'!$A109,SEARCH(\">\",'CFR - XML import'!$A109,1)+1,SEARCH(\"/\",'CFR - XML import'!$A109,1)-SEARCH(\">\",'CFR - XML import'!$A109,1)-2)))","v":0},{"$f":"IF(ISERROR(FIND(AH$3,'CFR - XML import'!$A109)),0,VALUE(MID('CFR - XML import'!$A109,SEARCH(\">\",'CFR - XML import'!$A109,1)+1,SEARCH(\"/\",'CFR - XML import'!$A109,1)-SEARCH(\">\",'CFR - XML import'!$A109,1)-2)))","v":0},{"$f":"IF(ISERROR(FIND(AI$3,'CFR - XML import'!$A109)),0,VALUE(MID('CFR - XML import'!$A109,SEARCH(\">\",'CFR - XML import'!$A109,1)+1,SEARCH(\"/\",'CFR - XML import'!$A109,1)-SEARCH(\">\",'CFR - XML import'!$A109,1)-2)))","v":0},{"$f":"IF(ISERROR(FIND(AJ$3,'CFR - XML import'!$A109)),0,VALUE(MID('CFR - XML import'!$A109,SEARCH(\">\",'CFR - XML import'!$A109,1)+1,SEARCH(\"/\",'CFR - XML import'!$A109,1)-SEARCH(\">\",'CFR - XML import'!$A109,1)-2)))","v":0},{"$f":"IF(ISERROR(FIND(AK$3,'CFR - XML import'!$A109)),0,VALUE(MID('CFR - XML import'!$A109,SEARCH(\">\",'CFR - XML import'!$A109,1)+1,SEARCH(\"/\",'CFR - XML import'!$A109,1)-SEARCH(\">\",'CFR - XML import'!$A109,1)-2)))","v":0},{"$f":"IF(ISERROR(FIND(AL$3,'CFR - XML import'!$A109)),0,VALUE(MID('CFR - XML import'!$A109,SEARCH(\">\",'CFR - XML import'!$A109,1)+1,SEARCH(\"/\",'CFR - XML import'!$A109,1)-SEARCH(\">\",'CFR - XML import'!$A109,1)-2)))","v":0},{"$f":"IF(ISERROR(FIND(AM$3,'CFR - XML import'!$A109)),0,VALUE(MID('CFR - XML import'!$A109,SEARCH(\">\",'CFR - XML import'!$A109,1)+1,SEARCH(\"/\",'CFR - XML import'!$A109,1)-SEARCH(\">\",'CFR - XML import'!$A109,1)-2)))","v":0},{"$f":"IF(ISERROR(FIND(AN$3,'CFR - XML import'!$A109)),0,VALUE(MID('CFR - XML import'!$A109,SEARCH(\">\",'CFR - XML import'!$A109,1)+1,SEARCH(\"/\",'CFR - XML import'!$A109,1)-SEARCH(\">\",'CFR - XML import'!$A109,1)-2)))","v":0},{"$f":"IF(ISERROR(FIND(AO$3,'CFR - XML import'!$A109)),0,VALUE(MID('CFR - XML import'!$A109,SEARCH(\">\",'CFR - XML import'!$A109,1)+1,SEARCH(\"/\",'CFR - XML import'!$A109,1)-SEARCH(\">\",'CFR - XML import'!$A109,1)-2)))","v":0},{"$f":"IF(ISERROR(FIND(AP$3,'CFR - XML import'!$A109)),0,VALUE(MID('CFR - XML import'!$A109,SEARCH(\">\",'CFR - XML import'!$A109,1)+1,SEARCH(\"/\",'CFR - XML import'!$A109,1)-SEARCH(\">\",'CFR - XML import'!$A109,1)-2)))","v":0},{"$f":"IF(ISERROR(FIND(AQ$3,'CFR - XML import'!$A109)),0,VALUE(MID('CFR - XML import'!$A109,SEARCH(\">\",'CFR - XML import'!$A109,1)+1,SEARCH(\"/\",'CFR - XML import'!$A109,1)-SEARCH(\">\",'CFR - XML import'!$A109,1)-2)))","v":0},{"$f":"IF(ISERROR(FIND(AR$3,'CFR - XML import'!$A109)),0,VALUE(MID('CFR - XML import'!$A109,SEARCH(\">\",'CFR - XML import'!$A109,1)+1,SEARCH(\"/\",'CFR - XML import'!$A109,1)-SEARCH(\">\",'CFR - XML import'!$A109,1)-2)))","v":0},{"$f":"IF(ISERROR(FIND(AS$3,'CFR - XML import'!$A109)),0,VALUE(MID('CFR - XML import'!$A109,SEARCH(\">\",'CFR - XML import'!$A109,1)+1,SEARCH(\"/\",'CFR - XML import'!$A109,1)-SEARCH(\">\",'CFR - XML import'!$A109,1)-2)))","v":0},{"$f":"IF(ISERROR(FIND(AT$3,'CFR - XML import'!$A109)),0,VALUE(MID('CFR - XML import'!$A109,SEARCH(\">\",'CFR - XML import'!$A109,1)+1,SEARCH(\"/\",'CFR - XML import'!$A109,1)-SEARCH(\">\",'CFR - XML import'!$A109,1)-2)))","v":0},{"$f":"IF(ISERROR(FIND(AU$3,'CFR - XML import'!$A109)),0,VALUE(MID('CFR - XML import'!$A109,SEARCH(\">\",'CFR - XML import'!$A109,1)+1,SEARCH(\"/\",'CFR - XML import'!$A109,1)-SEARCH(\">\",'CFR - XML import'!$A109,1)-2)))","v":0},{"$f":"IF(ISERROR(FIND(AV$3,'CFR - XML import'!$A109)),0,VALUE(MID('CFR - XML import'!$A109,SEARCH(\">\",'CFR - XML import'!$A109,1)+1,SEARCH(\"/\",'CFR - XML import'!$A109,1)-SEARCH(\">\",'CFR - XML import'!$A109,1)-2)))","v":0},{"$f":"IF(ISERROR(FIND(AW$3,'CFR - XML import'!$A109)),0,VALUE(MID('CFR - XML import'!$A109,SEARCH(\">\",'CFR - XML import'!$A109,1)+1,SEARCH(\"/\",'CFR - XML import'!$A109,1)-SEARCH(\">\",'CFR - XML import'!$A109,1)-2)))","v":0},{"$f":"IF(ISERROR(FIND(AX$3,'CFR - XML import'!$A109)),0,VALUE(MID('CFR - XML import'!$A109,SEARCH(\">\",'CFR - XML import'!$A109,1)+1,SEARCH(\"/\",'CFR - XML import'!$A109,1)-SEARCH(\">\",'CFR - XML import'!$A109,1)-2)))","v":0},{"$f":"IF(ISERROR(FIND(AY$3,'CFR - XML import'!$A109)),0,VALUE(MID('CFR - XML import'!$A109,SEARCH(\">\",'CFR - XML import'!$A109,1)+1,SEARCH(\"/\",'CFR - XML import'!$A109,1)-SEARCH(\">\",'CFR - XML import'!$A109,1)-2)))","v":0},{"$f":"IF(ISERROR(FIND(AZ$3,'CFR - XML import'!$A109)),0,VALUE(MID('CFR - XML import'!$A109,SEARCH(\">\",'CFR - XML import'!$A109,1)+1,SEARCH(\"/\",'CFR - XML import'!$A109,1)-SEARCH(\">\",'CFR - XML import'!$A109,1)-2)))","v":0},{"$f":"IF(ISERROR(FIND(BA$3,'CFR - XML import'!$A109)),0,VALUE(MID('CFR - XML import'!$A109,SEARCH(\">\",'CFR - XML import'!$A109,1)+1,SEARCH(\"/\",'CFR - XML import'!$A109,1)-SEARCH(\">\",'CFR - XML import'!$A109,1)-2)))","v":0},{"$f":"IF(ISERROR(FIND(BB$3,'CFR - XML import'!$A109)),0,VALUE(MID('CFR - XML import'!$A109,SEARCH(\">\",'CFR - XML import'!$A109,1)+1,SEARCH(\"/\",'CFR - XML import'!$A109,1)-SEARCH(\">\",'CFR - XML import'!$A109,1)-2)))","v":0},{"$f":"IF(ISERROR(FIND(BC$3,'CFR - XML import'!$A109)),0,VALUE(MID('CFR - XML import'!$A109,SEARCH(\">\",'CFR - XML import'!$A109,1)+1,SEARCH(\"/\",'CFR - XML import'!$A109,1)-SEARCH(\">\",'CFR - XML import'!$A109,1)-2)))","v":0},{"$f":"IF(ISERROR(FIND(BD$3,'CFR - XML import'!$A109)),0,VALUE(MID('CFR - XML import'!$A109,SEARCH(\">\",'CFR - XML import'!$A109,1)+1,SEARCH(\"/\",'CFR - XML import'!$A109,1)-SEARCH(\">\",'CFR - XML import'!$A109,1)-2)))","v":0},{"$f":"IF(ISERROR(FIND(BE$3,'CFR - XML import'!$A109)),0,VALUE(MID('CFR - XML import'!$A109,SEARCH(\">\",'CFR - XML import'!$A109,1)+1,SEARCH(\"/\",'CFR - XML import'!$A109,1)-SEARCH(\">\",'CFR - XML import'!$A109,1)-2)))","v":0},{"$f":"IF(ISERROR(FIND(BF$3,'CFR - XML import'!$A109)),0,VALUE(MID('CFR - XML import'!$A109,SEARCH(\">\",'CFR - XML import'!$A109,1)+1,SEARCH(\"/\",'CFR - XML import'!$A109,1)-SEARCH(\">\",'CFR - XML import'!$A109,1)-2)))","v":0},{"$f":"IF(ISERROR(FIND(BG$3,'CFR - XML import'!$A109)),0,VALUE(MID('CFR - XML import'!$A109,SEARCH(\">\",'CFR - XML import'!$A109,1)+1,SEARCH(\"/\",'CFR - XML import'!$A109,1)-SEARCH(\">\",'CFR - XML import'!$A109,1)-2)))","v":0},{"$f":"IF(ISERROR(FIND(BH$3,'CFR - XML import'!$A109)),0,VALUE(MID('CFR - XML import'!$A109,SEARCH(\">\",'CFR - XML import'!$A109,1)+1,SEARCH(\"/\",'CFR - XML import'!$A109,1)-SEARCH(\">\",'CFR - XML import'!$A109,1)-2)))","v":0},{"$f":"IF(ISERROR(FIND(BI$3,'CFR - XML import'!$A109)),0,VALUE(MID('CFR - XML import'!$A109,SEARCH(\">\",'CFR - XML import'!$A109,1)+1,SEARCH(\"/\",'CFR - XML import'!$A109,1)-SEARCH(\">\",'CFR - XML import'!$A109,1)-2)))","v":0},{"$f":"IF(ISERROR(FIND(BJ$3,'CFR - XML import'!$A109)),0,VALUE(MID('CFR - XML import'!$A109,SEARCH(\">\",'CFR - XML import'!$A109,1)+1,SEARCH(\"/\",'CFR - XML import'!$A109,1)-SEARCH(\">\",'CFR - XML import'!$A109,1)-2)))","v":0},{"$f":"IF(ISERROR(FIND(BK$3,'CFR - XML import'!$A109)),0,VALUE(MID('CFR - XML import'!$A109,SEARCH(\">\",'CFR - XML import'!$A109,1)+1,SEARCH(\"/\",'CFR - XML import'!$A109,1)-SEARCH(\">\",'CFR - XML import'!$A109,1)-2)))","v":0},{"$f":"IF(ISERROR(FIND(BL$3,'CFR - XML import'!$A109)),0,VALUE(MID('CFR - XML import'!$A109,SEARCH(\">\",'CFR - XML import'!$A109,1)+1,SEARCH(\"/\",'CFR - XML import'!$A109,1)-SEARCH(\">\",'CFR - XML import'!$A109,1)-2)))","v":0},{"$f":"IF(ISERROR(FIND(BM$3,'CFR - XML import'!$A109)),0,VALUE(MID('CFR - XML import'!$A109,SEARCH(\">\",'CFR - XML import'!$A109,1)+1,SEARCH(\"/\",'CFR - XML import'!$A109,1)-SEARCH(\">\",'CFR - XML import'!$A109,1)-2)))","v":0},{"$f":"IF(ISERROR(FIND(BN$3,'CFR - XML import'!$A109)),0,VALUE(MID('CFR - XML import'!$A109,SEARCH(\">\",'CFR - XML import'!$A109,1)+1,SEARCH(\"/\",'CFR - XML import'!$A109,1)-SEARCH(\">\",'CFR - XML import'!$A109,1)-2)))","v":0},{"$f":"IF(ISERROR(FIND(BO$3,'CFR - XML import'!$A109)),0,VALUE(MID('CFR - XML import'!$A109,SEARCH(\">\",'CFR - XML import'!$A109,1)+1,SEARCH(\"/\",'CFR - XML import'!$A109,1)-SEARCH(\">\",'CFR - XML import'!$A109,1)-2)))","v":0},{"$f":"IF(ISERROR(FIND(BP$3,'CFR - XML import'!$A109)),0,VALUE(MID('CFR - XML import'!$A109,SEARCH(\">\",'CFR - XML import'!$A109,1)+1,SEARCH(\"/\",'CFR - XML import'!$A109,1)-SEARCH(\">\",'CFR - XML import'!$A109,1)-2)))","v":0},{"$f":"IF(ISERROR(FIND(BQ$3,'CFR - XML import'!$A109)),0,VALUE(MID('CFR - XML import'!$A109,SEARCH(\">\",'CFR - XML import'!$A109,1)+1,SEARCH(\"/\",'CFR - XML import'!$A109,1)-SEARCH(\">\",'CFR - XML import'!$A109,1)-2)))","v":0},{"$f":"IF(ISERROR(FIND(BR$3,'CFR - XML import'!$A109)),0,VALUE(MID('CFR - XML import'!$A109,SEARCH(\">\",'CFR - XML import'!$A109,1)+1,SEARCH(\"/\",'CFR - XML import'!$A109,1)-SEARCH(\">\",'CFR - XML import'!$A109,1)-2)))","v":0},{"$f":"IF(ISERROR(FIND(BS$3,'CFR - XML import'!$A109)),0,VALUE(MID('CFR - XML import'!$A109,SEARCH(\">\",'CFR - XML import'!$A109,1)+1,SEARCH(\"/\",'CFR - XML import'!$A109,1)-SEARCH(\">\",'CFR - XML import'!$A109,1)-2)))","v":0},{"$f":"IF(ISERROR(FIND(BT$3,'CFR - XML import'!$A109)),0,VALUE(MID('CFR - XML import'!$A109,SEARCH(\">\",'CFR - XML import'!$A109,1)+1,SEARCH(\"/\",'CFR - XML import'!$A109,1)-SEARCH(\">\",'CFR - XML import'!$A109,1)-2)))","v":0},{"$f":"IF(ISERROR(FIND(BU$3,'CFR - XML import'!$A109)),0,VALUE(MID('CFR - XML import'!$A109,SEARCH(\">\",'CFR - XML import'!$A109,1)+1,SEARCH(\"/\",'CFR - XML import'!$A109,1)-SEARCH(\">\",'CFR - XML import'!$A109,1)-2)))","v":0},{"$f":"IF(ISERROR(FIND(BV$3,'CFR - XML import'!$A109)),0,VALUE(MID('CFR - XML import'!$A109,SEARCH(\">\",'CFR - XML import'!$A109,1)+1,SEARCH(\"/\",'CFR - XML import'!$A109,1)-SEARCH(\">\",'CFR - XML import'!$A109,1)-2)))","v":0},{"$f":"IF(ISERROR(FIND(BW$3,'CFR - XML import'!$A109)),0,VALUE(MID('CFR - XML import'!$A109,SEARCH(\">\",'CFR - XML import'!$A109,1)+1,SEARCH(\"/\",'CFR - XML import'!$A109,1)-SEARCH(\">\",'CFR - XML import'!$A109,1)-2)))","v":0},{"$f":"IF(ISERROR(FIND(BX$3,'CFR - XML import'!$A109)),0,VALUE(MID('CFR - XML import'!$A109,SEARCH(\">\",'CFR - XML import'!$A109,1)+1,SEARCH(\"/\",'CFR - XML import'!$A109,1)-SEARCH(\">\",'CFR - XML import'!$A109,1)-2)))","v":0},{"$f":"IF(ISERROR(FIND(BY$3,'CFR - XML import'!$A109)),0,VALUE(MID('CFR - XML import'!$A109,SEARCH(\">\",'CFR - XML import'!$A109,1)+1,SEARCH(\"/\",'CFR - XML import'!$A109,1)-SEARCH(\">\",'CFR - XML import'!$A109,1)-2)))","v":0},{"$f":"IF(ISERROR(FIND(BZ$3,'CFR - XML import'!$A109)),0,VALUE(MID('CFR - XML import'!$A109,SEARCH(\">\",'CFR - XML import'!$A109,1)+1,SEARCH(\"/\",'CFR - XML import'!$A109,1)-SEARCH(\">\",'CFR - XML import'!$A109,1)-2)))","v":0},null,null,null,null,null,null,{"$f":"IF(ISERROR(IF(MID('CFR - XML import'!$A109,LEN($CF$4)+1,LEN('CFR - XML import'!$A109)-(2*LEN($CF$4)+1))=\"RMMS\",1,IF(MID('CFR - XML import'!$A109,LEN(\"    <InputSystem>\")+1,LEN('CFR - XML import'!$A109)-(LEN(\"    <InputSystem>\")+LEN($CF$4)+1))=\"SIMS\",2,0))),0,IF(MID('CFR - XML import'!$A109,LEN($CF$4)+1,LEN('CFR - XML import'!$A109)-(2*LEN($CF$4)+1))=\"RMMS\",1,IF(MID('CFR - XML import'!$A109,LEN(\"    <InputSystem>\")+1,LEN('CFR - XML import'!$A109)-(LEN(\"    <InputSystem>\")+LEN($CF$4)+1))=\"SIMS\",2,0)))","v":0},{"$f":"IF(ISERROR(FIND(CH$3,'CFR - XML import'!$A109)),0,MID('CFR - XML import'!$A109,SEARCH(\">\",'CFR - XML import'!$A109,1)+1,SEARCH(\"/\",'CFR - XML import'!$A109,1)-SEARCH(\">\",'CFR - XML import'!$A109,1)-2))","v":0},{"$f":"IF(ISERROR(FIND(CI$3,'CFR - XML import'!$A109)),0,MID('CFR - XML import'!$A109,SEARCH(\">\",'CFR - XML import'!$A109,1)+1,SEARCH(\"/\",'CFR - XML import'!$A109,1)-SEARCH(\">\",'CFR - XML import'!$A109,1)-2))","v":0},{"$f":"IF(ISERROR(FIND(CJ$3,'CFR - XML import'!$A109)),0,MID('CFR - XML import'!$A109,SEARCH(\">\",'CFR - XML import'!$A109,1)+1,SEARCH(\"/\",'CFR - XML import'!$A109,1)-SEARCH(\">\",'CFR - XML import'!$A109,1)-2))","v":0},{"$f":"IF(ISERROR(FIND(CK$3,'CFR - XML import'!$A109)),0,MID('CFR - XML import'!$A109,SEARCH(\">\",'CFR - XML import'!$A109,1)+1,SEARCH(\"/\",'CFR - XML import'!$A109,1)-SEARCH(\">\",'CFR - XML import'!$A109,1)-2))","v":0},{"$f":"IF(ISERROR(FIND(CL$3,'CFR - XML import'!$A109)),0,MID('CFR - XML import'!$A109,SEARCH(\">\",'CFR - XML import'!$A109,1)+1,SEARCH(\"/\",'CFR - XML import'!$A109,1)-SEARCH(\">\",'CFR - XML import'!$A109,1)-2))","v":0}]
[{"$f":"IF(AND('CFR - XML import'!A110<>\"\",LEFT('CFR - XML import'!A110,1)<>\"<\",LEFT('CFR - XML import'!A110,3)<>\"  <\",LEFT('CFR - XML import'!A110,5)<>\"    <\",LEFT('CFR - XML import'!A110,7)<>\"      <\",LEFT('CFR - XML import'!A110,9)<>\"        <\",$B$1=\"SIMS\"),'CFR - XML import'!A110,IF(AND(LEFT('CFR - XML import'!A110,9)=\"<Details>\",$B$1=\"RM\"),'CFR - XML import'!A110,\"\"))","v":""},{"$f":"IF(ISERROR(FIND(B$3,'CFR - XML import'!$A110)),0,VALUE(MID('CFR - XML import'!$A110,SEARCH(\">\",'CFR - XML import'!$A110,1)+1,SEARCH(\"/\",'CFR - XML import'!$A110,1)-SEARCH(\">\",'CFR - XML import'!$A110,1)-2)))","v":0},null,{"$f":"IF(ISERROR(FIND(D$3,'CFR - XML import'!$A110)),0,MID('CFR - XML import'!$A110,SEARCH(\">\",'CFR - XML import'!$A110,1)+1,SEARCH(\"/\",'CFR - XML import'!$A110,1)-SEARCH(\">\",'CFR - XML import'!$A110,1)-2))","v":0},{"$f":"IF(ISERROR(FIND(E$3,'CFR - XML import'!$A110)),0,MID('CFR - XML import'!$A110,SEARCH(\">\",'CFR - XML import'!$A110,1)+1,SEARCH(\"/\",'CFR - XML import'!$A110,1)-SEARCH(\">\",'CFR - XML import'!$A110,1)-2))","v":0},{"$f":"IF($B$1=\"SIMS\",IF(ISERROR(FIND(F$3,'CFR - XML import'!$A110)),0,VALUE(MID('CFR - XML import'!$A110,15,10))),IF(ISERROR(FIND(F$3,'CFR - XML import'!$A110)),0,VALUE(MID('CFR - XML import'!$A110,11,10))))","v":"00:00:00"},{"$f":"IF(ISERROR(FIND(G$3,'CFR - XML import'!$A110)),0,VALUE(MID('CFR - XML import'!$A110,SEARCH(\">\",'CFR - XML import'!$A110,1)+1,SEARCH(\"/\",'CFR - XML import'!$A110,1)-SEARCH(\">\",'CFR - XML import'!$A110,1)-2)))","v":0},{"$f":"IF(ISERROR(FIND(H$3,'CFR - XML import'!$A110)),0,VALUE(MID('CFR - XML import'!$A110,SEARCH(\">\",'CFR - XML import'!$A110,1)+1,SEARCH(\"/\",'CFR - XML import'!$A110,1)-SEARCH(\">\",'CFR - XML import'!$A110,1)-2)))","v":0},{"$f":"IF(ISERROR(FIND(I$3,'CFR - XML import'!$A110)),0,VALUE(MID('CFR - XML import'!$A110,SEARCH(\">\",'CFR - XML import'!$A110,1)+1,SEARCH(\"/\",'CFR - XML import'!$A110,1)-SEARCH(\">\",'CFR - XML import'!$A110,1)-2)))","v":0},{"$f":"IF(ISERROR(FIND(J$3,'CFR - XML import'!$A110)),0,VALUE(MID('CFR - XML import'!$A110,SEARCH(\">\",'CFR - XML import'!$A110,1)+1,SEARCH(\"/\",'CFR - XML import'!$A110,1)-SEARCH(\">\",'CFR - XML import'!$A110,1)-2)))","v":0},{"$f":"IF(ISERROR(FIND(K$3,'CFR - XML import'!$A110)),0,VALUE(MID('CFR - XML import'!$A110,SEARCH(\">\",'CFR - XML import'!$A110,1)+1,SEARCH(\"/\",'CFR - XML import'!$A110,1)-SEARCH(\">\",'CFR - XML import'!$A110,1)-2)))","v":0},{"$f":"IF(ISERROR(FIND(L$3,'CFR - XML import'!$A110)),0,VALUE(MID('CFR - XML import'!$A110,SEARCH(\">\",'CFR - XML import'!$A110,1)+1,SEARCH(\"/\",'CFR - XML import'!$A110,1)-SEARCH(\">\",'CFR - XML import'!$A110,1)-2)))","v":0},{"$f":"IF(ISERROR(FIND(M$3,'CFR - XML import'!$A110)),0,VALUE(MID('CFR - XML import'!$A110,SEARCH(\">\",'CFR - XML import'!$A110,1)+1,SEARCH(\"/\",'CFR - XML import'!$A110,1)-SEARCH(\">\",'CFR - XML import'!$A110,1)-2)))","v":0},{"$f":"IF(ISERROR(FIND(N$3,'CFR - XML import'!$A110)),0,VALUE(MID('CFR - XML import'!$A110,SEARCH(\">\",'CFR - XML import'!$A110,1)+1,SEARCH(\"/\",'CFR - XML import'!$A110,1)-SEARCH(\">\",'CFR - XML import'!$A110,1)-2)))","v":0},{"$f":"IF(ISERROR(FIND(O$3,'CFR - XML import'!$A110)),0,VALUE(MID('CFR - XML import'!$A110,SEARCH(\">\",'CFR - XML import'!$A110,1)+1,SEARCH(\"/\",'CFR - XML import'!$A110,1)-SEARCH(\">\",'CFR - XML import'!$A110,1)-2)))","v":0},{"$f":"IF(ISERROR(FIND(P$3,'CFR - XML import'!$A110)),0,VALUE(MID('CFR - XML import'!$A110,SEARCH(\">\",'CFR - XML import'!$A110,1)+1,SEARCH(\"/\",'CFR - XML import'!$A110,1)-SEARCH(\">\",'CFR - XML import'!$A110,1)-2)))","v":0},{"$f":"IF(ISERROR(FIND(Q$3,'CFR - XML import'!$A110)),0,VALUE(MID('CFR - XML import'!$A110,SEARCH(\">\",'CFR - XML import'!$A110,1)+1,SEARCH(\"/\",'CFR - XML import'!$A110,1)-SEARCH(\">\",'CFR - XML import'!$A110,1)-2)))","v":0},{"$f":"IF(ISERROR(FIND(R$3,'CFR - XML import'!$A110)),0,VALUE(MID('CFR - XML import'!$A110,SEARCH(\">\",'CFR - XML import'!$A110,1)+1,SEARCH(\"/\",'CFR - XML import'!$A110,1)-SEARCH(\">\",'CFR - XML import'!$A110,1)-2)))","v":0},{"$f":"IF(ISERROR(FIND(S$3,'CFR - XML import'!$A110)),0,VALUE(MID('CFR - XML import'!$A110,SEARCH(\">\",'CFR - XML import'!$A110,1)+1,SEARCH(\"/\",'CFR - XML import'!$A110,1)-SEARCH(\">\",'CFR - XML import'!$A110,1)-2)))","v":0},{"$f":"IF(ISERROR(FIND(T$3,'CFR - XML import'!$A110)),0,VALUE(MID('CFR - XML import'!$A110,SEARCH(\">\",'CFR - XML import'!$A110,1)+1,SEARCH(\"/\",'CFR - XML import'!$A110,1)-SEARCH(\">\",'CFR - XML import'!$A110,1)-2)))","v":0},{"$f":"IF(ISERROR(FIND(U$3,'CFR - XML import'!$A110)),0,VALUE(MID('CFR - XML import'!$A110,SEARCH(\">\",'CFR - XML import'!$A110,1)+1,SEARCH(\"/\",'CFR - XML import'!$A110,1)-SEARCH(\">\",'CFR - XML import'!$A110,1)-2)))","v":0},{"$f":"IF(ISERROR(FIND(V$3,'CFR - XML import'!$A110)),0,VALUE(MID('CFR - XML import'!$A110,SEARCH(\">\",'CFR - XML import'!$A110,1)+1,SEARCH(\"/\",'CFR - XML import'!$A110,1)-SEARCH(\">\",'CFR - XML import'!$A110,1)-2)))","v":0},{"$f":"IF(ISERROR(FIND(W$3,'CFR - XML import'!$A110)),0,VALUE(MID('CFR - XML import'!$A110,SEARCH(\">\",'CFR - XML import'!$A110,1)+1,SEARCH(\"/\",'CFR - XML import'!$A110,1)-SEARCH(\">\",'CFR - XML import'!$A110,1)-2)))","v":0},null,{"$f":"IF(ISERROR(FIND(Y$3,'CFR - XML import'!$A110)),0,VALUE(MID('CFR - XML import'!$A110,SEARCH(\">\",'CFR - XML import'!$A110,1)+1,SEARCH(\"/\",'CFR - XML import'!$A110,1)-SEARCH(\">\",'CFR - XML import'!$A110,1)-2)))","v":0},{"$f":"IF(ISERROR(FIND(Z$3,'CFR - XML import'!$A110)),0,VALUE(MID('CFR - XML import'!$A110,SEARCH(\">\",'CFR - XML import'!$A110,1)+1,SEARCH(\"/\",'CFR - XML import'!$A110,1)-SEARCH(\">\",'CFR - XML import'!$A110,1)-2)))","v":0},{"$f":"IF(ISERROR(FIND(AA$3,'CFR - XML import'!$A110)),0,VALUE(MID('CFR - XML import'!$A110,SEARCH(\">\",'CFR - XML import'!$A110,1)+1,SEARCH(\"/\",'CFR - XML import'!$A110,1)-SEARCH(\">\",'CFR - XML import'!$A110,1)-2)))","v":0},{"$f":"IF(ISERROR(FIND(AB$3,'CFR - XML import'!$A110)),0,VALUE(MID('CFR - XML import'!$A110,SEARCH(\">\",'CFR - XML import'!$A110,1)+1,SEARCH(\"/\",'CFR - XML import'!$A110,1)-SEARCH(\">\",'CFR - XML import'!$A110,1)-2)))","v":0},{"$f":"IF(ISERROR(FIND(AC$3,'CFR - XML import'!$A110)),0,VALUE(MID('CFR - XML import'!$A110,SEARCH(\">\",'CFR - XML import'!$A110,1)+1,SEARCH(\"/\",'CFR - XML import'!$A110,1)-SEARCH(\">\",'CFR - XML import'!$A110,1)-2)))","v":0},{"$f":"IF(ISERROR(FIND(AD$3,'CFR - XML import'!$A110)),0,VALUE(MID('CFR - XML import'!$A110,SEARCH(\">\",'CFR - XML import'!$A110,1)+1,SEARCH(\"/\",'CFR - XML import'!$A110,1)-SEARCH(\">\",'CFR - XML import'!$A110,1)-2)))","v":0},{"$f":"IF(ISERROR(FIND(AE$3,'CFR - XML import'!$A110)),0,VALUE(MID('CFR - XML import'!$A110,SEARCH(\">\",'CFR - XML import'!$A110,1)+1,SEARCH(\"/\",'CFR - XML import'!$A110,1)-SEARCH(\">\",'CFR - XML import'!$A110,1)-2)))","v":0},{"$f":"IF(ISERROR(FIND(AF$3,'CFR - XML import'!$A110)),0,VALUE(MID('CFR - XML import'!$A110,SEARCH(\">\",'CFR - XML import'!$A110,1)+1,SEARCH(\"/\",'CFR - XML import'!$A110,1)-SEARCH(\">\",'CFR - XML import'!$A110,1)-2)))","v":0},{"$f":"IF(ISERROR(FIND(AG$3,'CFR - XML import'!$A110)),0,VALUE(MID('CFR - XML import'!$A110,SEARCH(\">\",'CFR - XML import'!$A110,1)+1,SEARCH(\"/\",'CFR - XML import'!$A110,1)-SEARCH(\">\",'CFR - XML import'!$A110,1)-2)))","v":0},{"$f":"IF(ISERROR(FIND(AH$3,'CFR - XML import'!$A110)),0,VALUE(MID('CFR - XML import'!$A110,SEARCH(\">\",'CFR - XML import'!$A110,1)+1,SEARCH(\"/\",'CFR - XML import'!$A110,1)-SEARCH(\">\",'CFR - XML import'!$A110,1)-2)))","v":0},{"$f":"IF(ISERROR(FIND(AI$3,'CFR - XML import'!$A110)),0,VALUE(MID('CFR - XML import'!$A110,SEARCH(\">\",'CFR - XML import'!$A110,1)+1,SEARCH(\"/\",'CFR - XML import'!$A110,1)-SEARCH(\">\",'CFR - XML import'!$A110,1)-2)))","v":0},{"$f":"IF(ISERROR(FIND(AJ$3,'CFR - XML import'!$A110)),0,VALUE(MID('CFR - XML import'!$A110,SEARCH(\">\",'CFR - XML import'!$A110,1)+1,SEARCH(\"/\",'CFR - XML import'!$A110,1)-SEARCH(\">\",'CFR - XML import'!$A110,1)-2)))","v":0},{"$f":"IF(ISERROR(FIND(AK$3,'CFR - XML import'!$A110)),0,VALUE(MID('CFR - XML import'!$A110,SEARCH(\">\",'CFR - XML import'!$A110,1)+1,SEARCH(\"/\",'CFR - XML import'!$A110,1)-SEARCH(\">\",'CFR - XML import'!$A110,1)-2)))","v":0},{"$f":"IF(ISERROR(FIND(AL$3,'CFR - XML import'!$A110)),0,VALUE(MID('CFR - XML import'!$A110,SEARCH(\">\",'CFR - XML import'!$A110,1)+1,SEARCH(\"/\",'CFR - XML import'!$A110,1)-SEARCH(\">\",'CFR - XML import'!$A110,1)-2)))","v":0},{"$f":"IF(ISERROR(FIND(AM$3,'CFR - XML import'!$A110)),0,VALUE(MID('CFR - XML import'!$A110,SEARCH(\">\",'CFR - XML import'!$A110,1)+1,SEARCH(\"/\",'CFR - XML import'!$A110,1)-SEARCH(\">\",'CFR - XML import'!$A110,1)-2)))","v":0},{"$f":"IF(ISERROR(FIND(AN$3,'CFR - XML import'!$A110)),0,VALUE(MID('CFR - XML import'!$A110,SEARCH(\">\",'CFR - XML import'!$A110,1)+1,SEARCH(\"/\",'CFR - XML import'!$A110,1)-SEARCH(\">\",'CFR - XML import'!$A110,1)-2)))","v":0},{"$f":"IF(ISERROR(FIND(AO$3,'CFR - XML import'!$A110)),0,VALUE(MID('CFR - XML import'!$A110,SEARCH(\">\",'CFR - XML import'!$A110,1)+1,SEARCH(\"/\",'CFR - XML import'!$A110,1)-SEARCH(\">\",'CFR - XML import'!$A110,1)-2)))","v":0},{"$f":"IF(ISERROR(FIND(AP$3,'CFR - XML import'!$A110)),0,VALUE(MID('CFR - XML import'!$A110,SEARCH(\">\",'CFR - XML import'!$A110,1)+1,SEARCH(\"/\",'CFR - XML import'!$A110,1)-SEARCH(\">\",'CFR - XML import'!$A110,1)-2)))","v":0},{"$f":"IF(ISERROR(FIND(AQ$3,'CFR - XML import'!$A110)),0,VALUE(MID('CFR - XML import'!$A110,SEARCH(\">\",'CFR - XML import'!$A110,1)+1,SEARCH(\"/\",'CFR - XML import'!$A110,1)-SEARCH(\">\",'CFR - XML import'!$A110,1)-2)))","v":0},{"$f":"IF(ISERROR(FIND(AR$3,'CFR - XML import'!$A110)),0,VALUE(MID('CFR - XML import'!$A110,SEARCH(\">\",'CFR - XML import'!$A110,1)+1,SEARCH(\"/\",'CFR - XML import'!$A110,1)-SEARCH(\">\",'CFR - XML import'!$A110,1)-2)))","v":0},{"$f":"IF(ISERROR(FIND(AS$3,'CFR - XML import'!$A110)),0,VALUE(MID('CFR - XML import'!$A110,SEARCH(\">\",'CFR - XML import'!$A110,1)+1,SEARCH(\"/\",'CFR - XML import'!$A110,1)-SEARCH(\">\",'CFR - XML import'!$A110,1)-2)))","v":0},{"$f":"IF(ISERROR(FIND(AT$3,'CFR - XML import'!$A110)),0,VALUE(MID('CFR - XML import'!$A110,SEARCH(\">\",'CFR - XML import'!$A110,1)+1,SEARCH(\"/\",'CFR - XML import'!$A110,1)-SEARCH(\">\",'CFR - XML import'!$A110,1)-2)))","v":0},{"$f":"IF(ISERROR(FIND(AU$3,'CFR - XML import'!$A110)),0,VALUE(MID('CFR - XML import'!$A110,SEARCH(\">\",'CFR - XML import'!$A110,1)+1,SEARCH(\"/\",'CFR - XML import'!$A110,1)-SEARCH(\">\",'CFR - XML import'!$A110,1)-2)))","v":0},{"$f":"IF(ISERROR(FIND(AV$3,'CFR - XML import'!$A110)),0,VALUE(MID('CFR - XML import'!$A110,SEARCH(\">\",'CFR - XML import'!$A110,1)+1,SEARCH(\"/\",'CFR - XML import'!$A110,1)-SEARCH(\">\",'CFR - XML import'!$A110,1)-2)))","v":0},{"$f":"IF(ISERROR(FIND(AW$3,'CFR - XML import'!$A110)),0,VALUE(MID('CFR - XML import'!$A110,SEARCH(\">\",'CFR - XML import'!$A110,1)+1,SEARCH(\"/\",'CFR - XML import'!$A110,1)-SEARCH(\">\",'CFR - XML import'!$A110,1)-2)))","v":0},{"$f":"IF(ISERROR(FIND(AX$3,'CFR - XML import'!$A110)),0,VALUE(MID('CFR - XML import'!$A110,SEARCH(\">\",'CFR - XML import'!$A110,1)+1,SEARCH(\"/\",'CFR - XML import'!$A110,1)-SEARCH(\">\",'CFR - XML import'!$A110,1)-2)))","v":0},{"$f":"IF(ISERROR(FIND(AY$3,'CFR - XML import'!$A110)),0,VALUE(MID('CFR - XML import'!$A110,SEARCH(\">\",'CFR - XML import'!$A110,1)+1,SEARCH(\"/\",'CFR - XML import'!$A110,1)-SEARCH(\">\",'CFR - XML import'!$A110,1)-2)))","v":0},{"$f":"IF(ISERROR(FIND(AZ$3,'CFR - XML import'!$A110)),0,VALUE(MID('CFR - XML import'!$A110,SEARCH(\">\",'CFR - XML import'!$A110,1)+1,SEARCH(\"/\",'CFR - XML import'!$A110,1)-SEARCH(\">\",'CFR - XML import'!$A110,1)-2)))","v":0},{"$f":"IF(ISERROR(FIND(BA$3,'CFR - XML import'!$A110)),0,VALUE(MID('CFR - XML import'!$A110,SEARCH(\">\",'CFR - XML import'!$A110,1)+1,SEARCH(\"/\",'CFR - XML import'!$A110,1)-SEARCH(\">\",'CFR - XML import'!$A110,1)-2)))","v":0},{"$f":"IF(ISERROR(FIND(BB$3,'CFR - XML import'!$A110)),0,VALUE(MID('CFR - XML import'!$A110,SEARCH(\">\",'CFR - XML import'!$A110,1)+1,SEARCH(\"/\",'CFR - XML import'!$A110,1)-SEARCH(\">\",'CFR - XML import'!$A110,1)-2)))","v":0},{"$f":"IF(ISERROR(FIND(BC$3,'CFR - XML import'!$A110)),0,VALUE(MID('CFR - XML import'!$A110,SEARCH(\">\",'CFR - XML import'!$A110,1)+1,SEARCH(\"/\",'CFR - XML import'!$A110,1)-SEARCH(\">\",'CFR - XML import'!$A110,1)-2)))","v":0},{"$f":"IF(ISERROR(FIND(BD$3,'CFR - XML import'!$A110)),0,VALUE(MID('CFR - XML import'!$A110,SEARCH(\">\",'CFR - XML import'!$A110,1)+1,SEARCH(\"/\",'CFR - XML import'!$A110,1)-SEARCH(\">\",'CFR - XML import'!$A110,1)-2)))","v":0},{"$f":"IF(ISERROR(FIND(BE$3,'CFR - XML import'!$A110)),0,VALUE(MID('CFR - XML import'!$A110,SEARCH(\">\",'CFR - XML import'!$A110,1)+1,SEARCH(\"/\",'CFR - XML import'!$A110,1)-SEARCH(\">\",'CFR - XML import'!$A110,1)-2)))","v":0},{"$f":"IF(ISERROR(FIND(BF$3,'CFR - XML import'!$A110)),0,VALUE(MID('CFR - XML import'!$A110,SEARCH(\">\",'CFR - XML import'!$A110,1)+1,SEARCH(\"/\",'CFR - XML import'!$A110,1)-SEARCH(\">\",'CFR - XML import'!$A110,1)-2)))","v":0},{"$f":"IF(ISERROR(FIND(BG$3,'CFR - XML import'!$A110)),0,VALUE(MID('CFR - XML import'!$A110,SEARCH(\">\",'CFR - XML import'!$A110,1)+1,SEARCH(\"/\",'CFR - XML import'!$A110,1)-SEARCH(\">\",'CFR - XML import'!$A110,1)-2)))","v":0},{"$f":"IF(ISERROR(FIND(BH$3,'CFR - XML import'!$A110)),0,VALUE(MID('CFR - XML import'!$A110,SEARCH(\">\",'CFR - XML import'!$A110,1)+1,SEARCH(\"/\",'CFR - XML import'!$A110,1)-SEARCH(\">\",'CFR - XML import'!$A110,1)-2)))","v":0},{"$f":"IF(ISERROR(FIND(BI$3,'CFR - XML import'!$A110)),0,VALUE(MID('CFR - XML import'!$A110,SEARCH(\">\",'CFR - XML import'!$A110,1)+1,SEARCH(\"/\",'CFR - XML import'!$A110,1)-SEARCH(\">\",'CFR - XML import'!$A110,1)-2)))","v":0},{"$f":"IF(ISERROR(FIND(BJ$3,'CFR - XML import'!$A110)),0,VALUE(MID('CFR - XML import'!$A110,SEARCH(\">\",'CFR - XML import'!$A110,1)+1,SEARCH(\"/\",'CFR - XML import'!$A110,1)-SEARCH(\">\",'CFR - XML import'!$A110,1)-2)))","v":0},{"$f":"IF(ISERROR(FIND(BK$3,'CFR - XML import'!$A110)),0,VALUE(MID('CFR - XML import'!$A110,SEARCH(\">\",'CFR - XML import'!$A110,1)+1,SEARCH(\"/\",'CFR - XML import'!$A110,1)-SEARCH(\">\",'CFR - XML import'!$A110,1)-2)))","v":0},{"$f":"IF(ISERROR(FIND(BL$3,'CFR - XML import'!$A110)),0,VALUE(MID('CFR - XML import'!$A110,SEARCH(\">\",'CFR - XML import'!$A110,1)+1,SEARCH(\"/\",'CFR - XML import'!$A110,1)-SEARCH(\">\",'CFR - XML import'!$A110,1)-2)))","v":0},{"$f":"IF(ISERROR(FIND(BM$3,'CFR - XML import'!$A110)),0,VALUE(MID('CFR - XML import'!$A110,SEARCH(\">\",'CFR - XML import'!$A110,1)+1,SEARCH(\"/\",'CFR - XML import'!$A110,1)-SEARCH(\">\",'CFR - XML import'!$A110,1)-2)))","v":0},{"$f":"IF(ISERROR(FIND(BN$3,'CFR - XML import'!$A110)),0,VALUE(MID('CFR - XML import'!$A110,SEARCH(\">\",'CFR - XML import'!$A110,1)+1,SEARCH(\"/\",'CFR - XML import'!$A110,1)-SEARCH(\">\",'CFR - XML import'!$A110,1)-2)))","v":0},{"$f":"IF(ISERROR(FIND(BO$3,'CFR - XML import'!$A110)),0,VALUE(MID('CFR - XML import'!$A110,SEARCH(\">\",'CFR - XML import'!$A110,1)+1,SEARCH(\"/\",'CFR - XML import'!$A110,1)-SEARCH(\">\",'CFR - XML import'!$A110,1)-2)))","v":0},{"$f":"IF(ISERROR(FIND(BP$3,'CFR - XML import'!$A110)),0,VALUE(MID('CFR - XML import'!$A110,SEARCH(\">\",'CFR - XML import'!$A110,1)+1,SEARCH(\"/\",'CFR - XML import'!$A110,1)-SEARCH(\">\",'CFR - XML import'!$A110,1)-2)))","v":0},{"$f":"IF(ISERROR(FIND(BQ$3,'CFR - XML import'!$A110)),0,VALUE(MID('CFR - XML import'!$A110,SEARCH(\">\",'CFR - XML import'!$A110,1)+1,SEARCH(\"/\",'CFR - XML import'!$A110,1)-SEARCH(\">\",'CFR - XML import'!$A110,1)-2)))","v":0},{"$f":"IF(ISERROR(FIND(BR$3,'CFR - XML import'!$A110)),0,VALUE(MID('CFR - XML import'!$A110,SEARCH(\">\",'CFR - XML import'!$A110,1)+1,SEARCH(\"/\",'CFR - XML import'!$A110,1)-SEARCH(\">\",'CFR - XML import'!$A110,1)-2)))","v":0},{"$f":"IF(ISERROR(FIND(BS$3,'CFR - XML import'!$A110)),0,VALUE(MID('CFR - XML import'!$A110,SEARCH(\">\",'CFR - XML import'!$A110,1)+1,SEARCH(\"/\",'CFR - XML import'!$A110,1)-SEARCH(\">\",'CFR - XML import'!$A110,1)-2)))","v":0},{"$f":"IF(ISERROR(FIND(BT$3,'CFR - XML import'!$A110)),0,VALUE(MID('CFR - XML import'!$A110,SEARCH(\">\",'CFR - XML import'!$A110,1)+1,SEARCH(\"/\",'CFR - XML import'!$A110,1)-SEARCH(\">\",'CFR - XML import'!$A110,1)-2)))","v":0},{"$f":"IF(ISERROR(FIND(BU$3,'CFR - XML import'!$A110)),0,VALUE(MID('CFR - XML import'!$A110,SEARCH(\">\",'CFR - XML import'!$A110,1)+1,SEARCH(\"/\",'CFR - XML import'!$A110,1)-SEARCH(\">\",'CFR - XML import'!$A110,1)-2)))","v":0},{"$f":"IF(ISERROR(FIND(BV$3,'CFR - XML import'!$A110)),0,VALUE(MID('CFR - XML import'!$A110,SEARCH(\">\",'CFR - XML import'!$A110,1)+1,SEARCH(\"/\",'CFR - XML import'!$A110,1)-SEARCH(\">\",'CFR - XML import'!$A110,1)-2)))","v":0},{"$f":"IF(ISERROR(FIND(BW$3,'CFR - XML import'!$A110)),0,VALUE(MID('CFR - XML import'!$A110,SEARCH(\">\",'CFR - XML import'!$A110,1)+1,SEARCH(\"/\",'CFR - XML import'!$A110,1)-SEARCH(\">\",'CFR - XML import'!$A110,1)-2)))","v":0},{"$f":"IF(ISERROR(FIND(BX$3,'CFR - XML import'!$A110)),0,VALUE(MID('CFR - XML import'!$A110,SEARCH(\">\",'CFR - XML import'!$A110,1)+1,SEARCH(\"/\",'CFR - XML import'!$A110,1)-SEARCH(\">\",'CFR - XML import'!$A110,1)-2)))","v":0},{"$f":"IF(ISERROR(FIND(BY$3,'CFR - XML import'!$A110)),0,VALUE(MID('CFR - XML import'!$A110,SEARCH(\">\",'CFR - XML import'!$A110,1)+1,SEARCH(\"/\",'CFR - XML import'!$A110,1)-SEARCH(\">\",'CFR - XML import'!$A110,1)-2)))","v":0},{"$f":"IF(ISERROR(FIND(BZ$3,'CFR - XML import'!$A110)),0,VALUE(MID('CFR - XML import'!$A110,SEARCH(\">\",'CFR - XML import'!$A110,1)+1,SEARCH(\"/\",'CFR - XML import'!$A110,1)-SEARCH(\">\",'CFR - XML import'!$A110,1)-2)))","v":0},null,null,null,null,null,null,{"$f":"IF(ISERROR(IF(MID('CFR - XML import'!$A110,LEN($CF$4)+1,LEN('CFR - XML import'!$A110)-(2*LEN($CF$4)+1))=\"RMMS\",1,IF(MID('CFR - XML import'!$A110,LEN(\"    <InputSystem>\")+1,LEN('CFR - XML import'!$A110)-(LEN(\"    <InputSystem>\")+LEN($CF$4)+1))=\"SIMS\",2,0))),0,IF(MID('CFR - XML import'!$A110,LEN($CF$4)+1,LEN('CFR - XML import'!$A110)-(2*LEN($CF$4)+1))=\"RMMS\",1,IF(MID('CFR - XML import'!$A110,LEN(\"    <InputSystem>\")+1,LEN('CFR - XML import'!$A110)-(LEN(\"    <InputSystem>\")+LEN($CF$4)+1))=\"SIMS\",2,0)))","v":0},{"$f":"IF(ISERROR(FIND(CH$3,'CFR - XML import'!$A110)),0,MID('CFR - XML import'!$A110,SEARCH(\">\",'CFR - XML import'!$A110,1)+1,SEARCH(\"/\",'CFR - XML import'!$A110,1)-SEARCH(\">\",'CFR - XML import'!$A110,1)-2))","v":0},{"$f":"IF(ISERROR(FIND(CI$3,'CFR - XML import'!$A110)),0,MID('CFR - XML import'!$A110,SEARCH(\">\",'CFR - XML import'!$A110,1)+1,SEARCH(\"/\",'CFR - XML import'!$A110,1)-SEARCH(\">\",'CFR - XML import'!$A110,1)-2))","v":0},{"$f":"IF(ISERROR(FIND(CJ$3,'CFR - XML import'!$A110)),0,MID('CFR - XML import'!$A110,SEARCH(\">\",'CFR - XML import'!$A110,1)+1,SEARCH(\"/\",'CFR - XML import'!$A110,1)-SEARCH(\">\",'CFR - XML import'!$A110,1)-2))","v":0},{"$f":"IF(ISERROR(FIND(CK$3,'CFR - XML import'!$A110)),0,MID('CFR - XML import'!$A110,SEARCH(\">\",'CFR - XML import'!$A110,1)+1,SEARCH(\"/\",'CFR - XML import'!$A110,1)-SEARCH(\">\",'CFR - XML import'!$A110,1)-2))","v":0},{"$f":"IF(ISERROR(FIND(CL$3,'CFR - XML import'!$A110)),0,MID('CFR - XML import'!$A110,SEARCH(\">\",'CFR - XML import'!$A110,1)+1,SEARCH(\"/\",'CFR - XML import'!$A110,1)-SEARCH(\">\",'CFR - XML import'!$A110,1)-2))","v":0}]
[{"$f":"IF(AND('CFR - XML import'!A111<>\"\",LEFT('CFR - XML import'!A111,1)<>\"<\",LEFT('CFR - XML import'!A111,3)<>\"  <\",LEFT('CFR - XML import'!A111,5)<>\"    <\",LEFT('CFR - XML import'!A111,7)<>\"      <\",LEFT('CFR - XML import'!A111,9)<>\"        <\",$B$1=\"SIMS\"),'CFR - XML import'!A111,IF(AND(LEFT('CFR - XML import'!A111,9)=\"<Details>\",$B$1=\"RM\"),'CFR - XML import'!A111,\"\"))","v":""},{"$f":"IF(ISERROR(FIND(B$3,'CFR - XML import'!$A111)),0,VALUE(MID('CFR - XML import'!$A111,SEARCH(\">\",'CFR - XML import'!$A111,1)+1,SEARCH(\"/\",'CFR - XML import'!$A111,1)-SEARCH(\">\",'CFR - XML import'!$A111,1)-2)))","v":0},null,{"$f":"IF(ISERROR(FIND(D$3,'CFR - XML import'!$A111)),0,MID('CFR - XML import'!$A111,SEARCH(\">\",'CFR - XML import'!$A111,1)+1,SEARCH(\"/\",'CFR - XML import'!$A111,1)-SEARCH(\">\",'CFR - XML import'!$A111,1)-2))","v":0},{"$f":"IF(ISERROR(FIND(E$3,'CFR - XML import'!$A111)),0,MID('CFR - XML import'!$A111,SEARCH(\">\",'CFR - XML import'!$A111,1)+1,SEARCH(\"/\",'CFR - XML import'!$A111,1)-SEARCH(\">\",'CFR - XML import'!$A111,1)-2))","v":0},{"$f":"IF($B$1=\"SIMS\",IF(ISERROR(FIND(F$3,'CFR - XML import'!$A111)),0,VALUE(MID('CFR - XML import'!$A111,15,10))),IF(ISERROR(FIND(F$3,'CFR - XML import'!$A111)),0,VALUE(MID('CFR - XML import'!$A111,11,10))))","v":"00:00:00"},{"$f":"IF(ISERROR(FIND(G$3,'CFR - XML import'!$A111)),0,VALUE(MID('CFR - XML import'!$A111,SEARCH(\">\",'CFR - XML import'!$A111,1)+1,SEARCH(\"/\",'CFR - XML import'!$A111,1)-SEARCH(\">\",'CFR - XML import'!$A111,1)-2)))","v":0},{"$f":"IF(ISERROR(FIND(H$3,'CFR - XML import'!$A111)),0,VALUE(MID('CFR - XML import'!$A111,SEARCH(\">\",'CFR - XML import'!$A111,1)+1,SEARCH(\"/\",'CFR - XML import'!$A111,1)-SEARCH(\">\",'CFR - XML import'!$A111,1)-2)))","v":0},{"$f":"IF(ISERROR(FIND(I$3,'CFR - XML import'!$A111)),0,VALUE(MID('CFR - XML import'!$A111,SEARCH(\">\",'CFR - XML import'!$A111,1)+1,SEARCH(\"/\",'CFR - XML import'!$A111,1)-SEARCH(\">\",'CFR - XML import'!$A111,1)-2)))","v":0},{"$f":"IF(ISERROR(FIND(J$3,'CFR - XML import'!$A111)),0,VALUE(MID('CFR - XML import'!$A111,SEARCH(\">\",'CFR - XML import'!$A111,1)+1,SEARCH(\"/\",'CFR - XML import'!$A111,1)-SEARCH(\">\",'CFR - XML import'!$A111,1)-2)))","v":0},{"$f":"IF(ISERROR(FIND(K$3,'CFR - XML import'!$A111)),0,VALUE(MID('CFR - XML import'!$A111,SEARCH(\">\",'CFR - XML import'!$A111,1)+1,SEARCH(\"/\",'CFR - XML import'!$A111,1)-SEARCH(\">\",'CFR - XML import'!$A111,1)-2)))","v":0},{"$f":"IF(ISERROR(FIND(L$3,'CFR - XML import'!$A111)),0,VALUE(MID('CFR - XML import'!$A111,SEARCH(\">\",'CFR - XML import'!$A111,1)+1,SEARCH(\"/\",'CFR - XML import'!$A111,1)-SEARCH(\">\",'CFR - XML import'!$A111,1)-2)))","v":0},{"$f":"IF(ISERROR(FIND(M$3,'CFR - XML import'!$A111)),0,VALUE(MID('CFR - XML import'!$A111,SEARCH(\">\",'CFR - XML import'!$A111,1)+1,SEARCH(\"/\",'CFR - XML import'!$A111,1)-SEARCH(\">\",'CFR - XML import'!$A111,1)-2)))","v":0},{"$f":"IF(ISERROR(FIND(N$3,'CFR - XML import'!$A111)),0,VALUE(MID('CFR - XML import'!$A111,SEARCH(\">\",'CFR - XML import'!$A111,1)+1,SEARCH(\"/\",'CFR - XML import'!$A111,1)-SEARCH(\">\",'CFR - XML import'!$A111,1)-2)))","v":0},{"$f":"IF(ISERROR(FIND(O$3,'CFR - XML import'!$A111)),0,VALUE(MID('CFR - XML import'!$A111,SEARCH(\">\",'CFR - XML import'!$A111,1)+1,SEARCH(\"/\",'CFR - XML import'!$A111,1)-SEARCH(\">\",'CFR - XML import'!$A111,1)-2)))","v":0},{"$f":"IF(ISERROR(FIND(P$3,'CFR - XML import'!$A111)),0,VALUE(MID('CFR - XML import'!$A111,SEARCH(\">\",'CFR - XML import'!$A111,1)+1,SEARCH(\"/\",'CFR - XML import'!$A111,1)-SEARCH(\">\",'CFR - XML import'!$A111,1)-2)))","v":0},{"$f":"IF(ISERROR(FIND(Q$3,'CFR - XML import'!$A111)),0,VALUE(MID('CFR - XML import'!$A111,SEARCH(\">\",'CFR - XML import'!$A111,1)+1,SEARCH(\"/\",'CFR - XML import'!$A111,1)-SEARCH(\">\",'CFR - XML import'!$A111,1)-2)))","v":0},{"$f":"IF(ISERROR(FIND(R$3,'CFR - XML import'!$A111)),0,VALUE(MID('CFR - XML import'!$A111,SEARCH(\">\",'CFR - XML import'!$A111,1)+1,SEARCH(\"/\",'CFR - XML import'!$A111,1)-SEARCH(\">\",'CFR - XML import'!$A111,1)-2)))","v":0},{"$f":"IF(ISERROR(FIND(S$3,'CFR - XML import'!$A111)),0,VALUE(MID('CFR - XML import'!$A111,SEARCH(\">\",'CFR - XML import'!$A111,1)+1,SEARCH(\"/\",'CFR - XML import'!$A111,1)-SEARCH(\">\",'CFR - XML import'!$A111,1)-2)))","v":0},{"$f":"IF(ISERROR(FIND(T$3,'CFR - XML import'!$A111)),0,VALUE(MID('CFR - XML import'!$A111,SEARCH(\">\",'CFR - XML import'!$A111,1)+1,SEARCH(\"/\",'CFR - XML import'!$A111,1)-SEARCH(\">\",'CFR - XML import'!$A111,1)-2)))","v":0},{"$f":"IF(ISERROR(FIND(U$3,'CFR - XML import'!$A111)),0,VALUE(MID('CFR - XML import'!$A111,SEARCH(\">\",'CFR - XML import'!$A111,1)+1,SEARCH(\"/\",'CFR - XML import'!$A111,1)-SEARCH(\">\",'CFR - XML import'!$A111,1)-2)))","v":0},{"$f":"IF(ISERROR(FIND(V$3,'CFR - XML import'!$A111)),0,VALUE(MID('CFR - XML import'!$A111,SEARCH(\">\",'CFR - XML import'!$A111,1)+1,SEARCH(\"/\",'CFR - XML import'!$A111,1)-SEARCH(\">\",'CFR - XML import'!$A111,1)-2)))","v":0},{"$f":"IF(ISERROR(FIND(W$3,'CFR - XML import'!$A111)),0,VALUE(MID('CFR - XML import'!$A111,SEARCH(\">\",'CFR - XML import'!$A111,1)+1,SEARCH(\"/\",'CFR - XML import'!$A111,1)-SEARCH(\">\",'CFR - XML import'!$A111,1)-2)))","v":0},null,{"$f":"IF(ISERROR(FIND(Y$3,'CFR - XML import'!$A111)),0,VALUE(MID('CFR - XML import'!$A111,SEARCH(\">\",'CFR - XML import'!$A111,1)+1,SEARCH(\"/\",'CFR - XML import'!$A111,1)-SEARCH(\">\",'CFR - XML import'!$A111,1)-2)))","v":0},{"$f":"IF(ISERROR(FIND(Z$3,'CFR - XML import'!$A111)),0,VALUE(MID('CFR - XML import'!$A111,SEARCH(\">\",'CFR - XML import'!$A111,1)+1,SEARCH(\"/\",'CFR - XML import'!$A111,1)-SEARCH(\">\",'CFR - XML import'!$A111,1)-2)))","v":0},{"$f":"IF(ISERROR(FIND(AA$3,'CFR - XML import'!$A111)),0,VALUE(MID('CFR - XML import'!$A111,SEARCH(\">\",'CFR - XML import'!$A111,1)+1,SEARCH(\"/\",'CFR - XML import'!$A111,1)-SEARCH(\">\",'CFR - XML import'!$A111,1)-2)))","v":0},{"$f":"IF(ISERROR(FIND(AB$3,'CFR - XML import'!$A111)),0,VALUE(MID('CFR - XML import'!$A111,SEARCH(\">\",'CFR - XML import'!$A111,1)+1,SEARCH(\"/\",'CFR - XML import'!$A111,1)-SEARCH(\">\",'CFR - XML import'!$A111,1)-2)))","v":0},{"$f":"IF(ISERROR(FIND(AC$3,'CFR - XML import'!$A111)),0,VALUE(MID('CFR - XML import'!$A111,SEARCH(\">\",'CFR - XML import'!$A111,1)+1,SEARCH(\"/\",'CFR - XML import'!$A111,1)-SEARCH(\">\",'CFR - XML import'!$A111,1)-2)))","v":0},{"$f":"IF(ISERROR(FIND(AD$3,'CFR - XML import'!$A111)),0,VALUE(MID('CFR - XML import'!$A111,SEARCH(\">\",'CFR - XML import'!$A111,1)+1,SEARCH(\"/\",'CFR - XML import'!$A111,1)-SEARCH(\">\",'CFR - XML import'!$A111,1)-2)))","v":0},{"$f":"IF(ISERROR(FIND(AE$3,'CFR - XML import'!$A111)),0,VALUE(MID('CFR - XML import'!$A111,SEARCH(\">\",'CFR - XML import'!$A111,1)+1,SEARCH(\"/\",'CFR - XML import'!$A111,1)-SEARCH(\">\",'CFR - XML import'!$A111,1)-2)))","v":0},{"$f":"IF(ISERROR(FIND(AF$3,'CFR - XML import'!$A111)),0,VALUE(MID('CFR - XML import'!$A111,SEARCH(\">\",'CFR - XML import'!$A111,1)+1,SEARCH(\"/\",'CFR - XML import'!$A111,1)-SEARCH(\">\",'CFR - XML import'!$A111,1)-2)))","v":0},{"$f":"IF(ISERROR(FIND(AG$3,'CFR - XML import'!$A111)),0,VALUE(MID('CFR - XML import'!$A111,SEARCH(\">\",'CFR - XML import'!$A111,1)+1,SEARCH(\"/\",'CFR - XML import'!$A111,1)-SEARCH(\">\",'CFR - XML import'!$A111,1)-2)))","v":0},{"$f":"IF(ISERROR(FIND(AH$3,'CFR - XML import'!$A111)),0,VALUE(MID('CFR - XML import'!$A111,SEARCH(\">\",'CFR - XML import'!$A111,1)+1,SEARCH(\"/\",'CFR - XML import'!$A111,1)-SEARCH(\">\",'CFR - XML import'!$A111,1)-2)))","v":0},{"$f":"IF(ISERROR(FIND(AI$3,'CFR - XML import'!$A111)),0,VALUE(MID('CFR - XML import'!$A111,SEARCH(\">\",'CFR - XML import'!$A111,1)+1,SEARCH(\"/\",'CFR - XML import'!$A111,1)-SEARCH(\">\",'CFR - XML import'!$A111,1)-2)))","v":0},{"$f":"IF(ISERROR(FIND(AJ$3,'CFR - XML import'!$A111)),0,VALUE(MID('CFR - XML import'!$A111,SEARCH(\">\",'CFR - XML import'!$A111,1)+1,SEARCH(\"/\",'CFR - XML import'!$A111,1)-SEARCH(\">\",'CFR - XML import'!$A111,1)-2)))","v":0},{"$f":"IF(ISERROR(FIND(AK$3,'CFR - XML import'!$A111)),0,VALUE(MID('CFR - XML import'!$A111,SEARCH(\">\",'CFR - XML import'!$A111,1)+1,SEARCH(\"/\",'CFR - XML import'!$A111,1)-SEARCH(\">\",'CFR - XML import'!$A111,1)-2)))","v":0},{"$f":"IF(ISERROR(FIND(AL$3,'CFR - XML import'!$A111)),0,VALUE(MID('CFR - XML import'!$A111,SEARCH(\">\",'CFR - XML import'!$A111,1)+1,SEARCH(\"/\",'CFR - XML import'!$A111,1)-SEARCH(\">\",'CFR - XML import'!$A111,1)-2)))","v":0},{"$f":"IF(ISERROR(FIND(AM$3,'CFR - XML import'!$A111)),0,VALUE(MID('CFR - XML import'!$A111,SEARCH(\">\",'CFR - XML import'!$A111,1)+1,SEARCH(\"/\",'CFR - XML import'!$A111,1)-SEARCH(\">\",'CFR - XML import'!$A111,1)-2)))","v":0},{"$f":"IF(ISERROR(FIND(AN$3,'CFR - XML import'!$A111)),0,VALUE(MID('CFR - XML import'!$A111,SEARCH(\">\",'CFR - XML import'!$A111,1)+1,SEARCH(\"/\",'CFR - XML import'!$A111,1)-SEARCH(\">\",'CFR - XML import'!$A111,1)-2)))","v":0},{"$f":"IF(ISERROR(FIND(AO$3,'CFR - XML import'!$A111)),0,VALUE(MID('CFR - XML import'!$A111,SEARCH(\">\",'CFR - XML import'!$A111,1)+1,SEARCH(\"/\",'CFR - XML import'!$A111,1)-SEARCH(\">\",'CFR - XML import'!$A111,1)-2)))","v":0},{"$f":"IF(ISERROR(FIND(AP$3,'CFR - XML import'!$A111)),0,VALUE(MID('CFR - XML import'!$A111,SEARCH(\">\",'CFR - XML import'!$A111,1)+1,SEARCH(\"/\",'CFR - XML import'!$A111,1)-SEARCH(\">\",'CFR - XML import'!$A111,1)-2)))","v":0},{"$f":"IF(ISERROR(FIND(AQ$3,'CFR - XML import'!$A111)),0,VALUE(MID('CFR - XML import'!$A111,SEARCH(\">\",'CFR - XML import'!$A111,1)+1,SEARCH(\"/\",'CFR - XML import'!$A111,1)-SEARCH(\">\",'CFR - XML import'!$A111,1)-2)))","v":0},{"$f":"IF(ISERROR(FIND(AR$3,'CFR - XML import'!$A111)),0,VALUE(MID('CFR - XML import'!$A111,SEARCH(\">\",'CFR - XML import'!$A111,1)+1,SEARCH(\"/\",'CFR - XML import'!$A111,1)-SEARCH(\">\",'CFR - XML import'!$A111,1)-2)))","v":0},{"$f":"IF(ISERROR(FIND(AS$3,'CFR - XML import'!$A111)),0,VALUE(MID('CFR - XML import'!$A111,SEARCH(\">\",'CFR - XML import'!$A111,1)+1,SEARCH(\"/\",'CFR - XML import'!$A111,1)-SEARCH(\">\",'CFR - XML import'!$A111,1)-2)))","v":0},{"$f":"IF(ISERROR(FIND(AT$3,'CFR - XML import'!$A111)),0,VALUE(MID('CFR - XML import'!$A111,SEARCH(\">\",'CFR - XML import'!$A111,1)+1,SEARCH(\"/\",'CFR - XML import'!$A111,1)-SEARCH(\">\",'CFR - XML import'!$A111,1)-2)))","v":0},{"$f":"IF(ISERROR(FIND(AU$3,'CFR - XML import'!$A111)),0,VALUE(MID('CFR - XML import'!$A111,SEARCH(\">\",'CFR - XML import'!$A111,1)+1,SEARCH(\"/\",'CFR - XML import'!$A111,1)-SEARCH(\">\",'CFR - XML import'!$A111,1)-2)))","v":0},{"$f":"IF(ISERROR(FIND(AV$3,'CFR - XML import'!$A111)),0,VALUE(MID('CFR - XML import'!$A111,SEARCH(\">\",'CFR - XML import'!$A111,1)+1,SEARCH(\"/\",'CFR - XML import'!$A111,1)-SEARCH(\">\",'CFR - XML import'!$A111,1)-2)))","v":0},{"$f":"IF(ISERROR(FIND(AW$3,'CFR - XML import'!$A111)),0,VALUE(MID('CFR - XML import'!$A111,SEARCH(\">\",'CFR - XML import'!$A111,1)+1,SEARCH(\"/\",'CFR - XML import'!$A111,1)-SEARCH(\">\",'CFR - XML import'!$A111,1)-2)))","v":0},{"$f":"IF(ISERROR(FIND(AX$3,'CFR - XML import'!$A111)),0,VALUE(MID('CFR - XML import'!$A111,SEARCH(\">\",'CFR - XML import'!$A111,1)+1,SEARCH(\"/\",'CFR - XML import'!$A111,1)-SEARCH(\">\",'CFR - XML import'!$A111,1)-2)))","v":0},{"$f":"IF(ISERROR(FIND(AY$3,'CFR - XML import'!$A111)),0,VALUE(MID('CFR - XML import'!$A111,SEARCH(\">\",'CFR - XML import'!$A111,1)+1,SEARCH(\"/\",'CFR - XML import'!$A111,1)-SEARCH(\">\",'CFR - XML import'!$A111,1)-2)))","v":0},{"$f":"IF(ISERROR(FIND(AZ$3,'CFR - XML import'!$A111)),0,VALUE(MID('CFR - XML import'!$A111,SEARCH(\">\",'CFR - XML import'!$A111,1)+1,SEARCH(\"/\",'CFR - XML import'!$A111,1)-SEARCH(\">\",'CFR - XML import'!$A111,1)-2)))","v":0},{"$f":"IF(ISERROR(FIND(BA$3,'CFR - XML import'!$A111)),0,VALUE(MID('CFR - XML import'!$A111,SEARCH(\">\",'CFR - XML import'!$A111,1)+1,SEARCH(\"/\",'CFR - XML import'!$A111,1)-SEARCH(\">\",'CFR - XML import'!$A111,1)-2)))","v":0},{"$f":"IF(ISERROR(FIND(BB$3,'CFR - XML import'!$A111)),0,VALUE(MID('CFR - XML import'!$A111,SEARCH(\">\",'CFR - XML import'!$A111,1)+1,SEARCH(\"/\",'CFR - XML import'!$A111,1)-SEARCH(\">\",'CFR - XML import'!$A111,1)-2)))","v":0},{"$f":"IF(ISERROR(FIND(BC$3,'CFR - XML import'!$A111)),0,VALUE(MID('CFR - XML import'!$A111,SEARCH(\">\",'CFR - XML import'!$A111,1)+1,SEARCH(\"/\",'CFR - XML import'!$A111,1)-SEARCH(\">\",'CFR - XML import'!$A111,1)-2)))","v":0},{"$f":"IF(ISERROR(FIND(BD$3,'CFR - XML import'!$A111)),0,VALUE(MID('CFR - XML import'!$A111,SEARCH(\">\",'CFR - XML import'!$A111,1)+1,SEARCH(\"/\",'CFR - XML import'!$A111,1)-SEARCH(\">\",'CFR - XML import'!$A111,1)-2)))","v":0},{"$f":"IF(ISERROR(FIND(BE$3,'CFR - XML import'!$A111)),0,VALUE(MID('CFR - XML import'!$A111,SEARCH(\">\",'CFR - XML import'!$A111,1)+1,SEARCH(\"/\",'CFR - XML import'!$A111,1)-SEARCH(\">\",'CFR - XML import'!$A111,1)-2)))","v":0},{"$f":"IF(ISERROR(FIND(BF$3,'CFR - XML import'!$A111)),0,VALUE(MID('CFR - XML import'!$A111,SEARCH(\">\",'CFR - XML import'!$A111,1)+1,SEARCH(\"/\",'CFR - XML import'!$A111,1)-SEARCH(\">\",'CFR - XML import'!$A111,1)-2)))","v":0},{"$f":"IF(ISERROR(FIND(BG$3,'CFR - XML import'!$A111)),0,VALUE(MID('CFR - XML import'!$A111,SEARCH(\">\",'CFR - XML import'!$A111,1)+1,SEARCH(\"/\",'CFR - XML import'!$A111,1)-SEARCH(\">\",'CFR - XML import'!$A111,1)-2)))","v":0},{"$f":"IF(ISERROR(FIND(BH$3,'CFR - XML import'!$A111)),0,VALUE(MID('CFR - XML import'!$A111,SEARCH(\">\",'CFR - XML import'!$A111,1)+1,SEARCH(\"/\",'CFR - XML import'!$A111,1)-SEARCH(\">\",'CFR - XML import'!$A111,1)-2)))","v":0},{"$f":"IF(ISERROR(FIND(BI$3,'CFR - XML import'!$A111)),0,VALUE(MID('CFR - XML import'!$A111,SEARCH(\">\",'CFR - XML import'!$A111,1)+1,SEARCH(\"/\",'CFR - XML import'!$A111,1)-SEARCH(\">\",'CFR - XML import'!$A111,1)-2)))","v":0},{"$f":"IF(ISERROR(FIND(BJ$3,'CFR - XML import'!$A111)),0,VALUE(MID('CFR - XML import'!$A111,SEARCH(\">\",'CFR - XML import'!$A111,1)+1,SEARCH(\"/\",'CFR - XML import'!$A111,1)-SEARCH(\">\",'CFR - XML import'!$A111,1)-2)))","v":0},{"$f":"IF(ISERROR(FIND(BK$3,'CFR - XML import'!$A111)),0,VALUE(MID('CFR - XML import'!$A111,SEARCH(\">\",'CFR - XML import'!$A111,1)+1,SEARCH(\"/\",'CFR - XML import'!$A111,1)-SEARCH(\">\",'CFR - XML import'!$A111,1)-2)))","v":0},{"$f":"IF(ISERROR(FIND(BL$3,'CFR - XML import'!$A111)),0,VALUE(MID('CFR - XML import'!$A111,SEARCH(\">\",'CFR - XML import'!$A111,1)+1,SEARCH(\"/\",'CFR - XML import'!$A111,1)-SEARCH(\">\",'CFR - XML import'!$A111,1)-2)))","v":0},{"$f":"IF(ISERROR(FIND(BM$3,'CFR - XML import'!$A111)),0,VALUE(MID('CFR - XML import'!$A111,SEARCH(\">\",'CFR - XML import'!$A111,1)+1,SEARCH(\"/\",'CFR - XML import'!$A111,1)-SEARCH(\">\",'CFR - XML import'!$A111,1)-2)))","v":0},{"$f":"IF(ISERROR(FIND(BN$3,'CFR - XML import'!$A111)),0,VALUE(MID('CFR - XML import'!$A111,SEARCH(\">\",'CFR - XML import'!$A111,1)+1,SEARCH(\"/\",'CFR - XML import'!$A111,1)-SEARCH(\">\",'CFR - XML import'!$A111,1)-2)))","v":0},{"$f":"IF(ISERROR(FIND(BO$3,'CFR - XML import'!$A111)),0,VALUE(MID('CFR - XML import'!$A111,SEARCH(\">\",'CFR - XML import'!$A111,1)+1,SEARCH(\"/\",'CFR - XML import'!$A111,1)-SEARCH(\">\",'CFR - XML import'!$A111,1)-2)))","v":0},{"$f":"IF(ISERROR(FIND(BP$3,'CFR - XML import'!$A111)),0,VALUE(MID('CFR - XML import'!$A111,SEARCH(\">\",'CFR - XML import'!$A111,1)+1,SEARCH(\"/\",'CFR - XML import'!$A111,1)-SEARCH(\">\",'CFR - XML import'!$A111,1)-2)))","v":0},{"$f":"IF(ISERROR(FIND(BQ$3,'CFR - XML import'!$A111)),0,VALUE(MID('CFR - XML import'!$A111,SEARCH(\">\",'CFR - XML import'!$A111,1)+1,SEARCH(\"/\",'CFR - XML import'!$A111,1)-SEARCH(\">\",'CFR - XML import'!$A111,1)-2)))","v":0},{"$f":"IF(ISERROR(FIND(BR$3,'CFR - XML import'!$A111)),0,VALUE(MID('CFR - XML import'!$A111,SEARCH(\">\",'CFR - XML import'!$A111,1)+1,SEARCH(\"/\",'CFR - XML import'!$A111,1)-SEARCH(\">\",'CFR - XML import'!$A111,1)-2)))","v":0},{"$f":"IF(ISERROR(FIND(BS$3,'CFR - XML import'!$A111)),0,VALUE(MID('CFR - XML import'!$A111,SEARCH(\">\",'CFR - XML import'!$A111,1)+1,SEARCH(\"/\",'CFR - XML import'!$A111,1)-SEARCH(\">\",'CFR - XML import'!$A111,1)-2)))","v":0},{"$f":"IF(ISERROR(FIND(BT$3,'CFR - XML import'!$A111)),0,VALUE(MID('CFR - XML import'!$A111,SEARCH(\">\",'CFR - XML import'!$A111,1)+1,SEARCH(\"/\",'CFR - XML import'!$A111,1)-SEARCH(\">\",'CFR - XML import'!$A111,1)-2)))","v":0},{"$f":"IF(ISERROR(FIND(BU$3,'CFR - XML import'!$A111)),0,VALUE(MID('CFR - XML import'!$A111,SEARCH(\">\",'CFR - XML import'!$A111,1)+1,SEARCH(\"/\",'CFR - XML import'!$A111,1)-SEARCH(\">\",'CFR - XML import'!$A111,1)-2)))","v":0},{"$f":"IF(ISERROR(FIND(BV$3,'CFR - XML import'!$A111)),0,VALUE(MID('CFR - XML import'!$A111,SEARCH(\">\",'CFR - XML import'!$A111,1)+1,SEARCH(\"/\",'CFR - XML import'!$A111,1)-SEARCH(\">\",'CFR - XML import'!$A111,1)-2)))","v":0},{"$f":"IF(ISERROR(FIND(BW$3,'CFR - XML import'!$A111)),0,VALUE(MID('CFR - XML import'!$A111,SEARCH(\">\",'CFR - XML import'!$A111,1)+1,SEARCH(\"/\",'CFR - XML import'!$A111,1)-SEARCH(\">\",'CFR - XML import'!$A111,1)-2)))","v":0},{"$f":"IF(ISERROR(FIND(BX$3,'CFR - XML import'!$A111)),0,VALUE(MID('CFR - XML import'!$A111,SEARCH(\">\",'CFR - XML import'!$A111,1)+1,SEARCH(\"/\",'CFR - XML import'!$A111,1)-SEARCH(\">\",'CFR - XML import'!$A111,1)-2)))","v":0},{"$f":"IF(ISERROR(FIND(BY$3,'CFR - XML import'!$A111)),0,VALUE(MID('CFR - XML import'!$A111,SEARCH(\">\",'CFR - XML import'!$A111,1)+1,SEARCH(\"/\",'CFR - XML import'!$A111,1)-SEARCH(\">\",'CFR - XML import'!$A111,1)-2)))","v":0},{"$f":"IF(ISERROR(FIND(BZ$3,'CFR - XML import'!$A111)),0,VALUE(MID('CFR - XML import'!$A111,SEARCH(\">\",'CFR - XML import'!$A111,1)+1,SEARCH(\"/\",'CFR - XML import'!$A111,1)-SEARCH(\">\",'CFR - XML import'!$A111,1)-2)))","v":0},null,null,null,null,null,null,{"$f":"IF(ISERROR(IF(MID('CFR - XML import'!$A111,LEN($CF$4)+1,LEN('CFR - XML import'!$A111)-(2*LEN($CF$4)+1))=\"RMMS\",1,IF(MID('CFR - XML import'!$A111,LEN(\"    <InputSystem>\")+1,LEN('CFR - XML import'!$A111)-(LEN(\"    <InputSystem>\")+LEN($CF$4)+1))=\"SIMS\",2,0))),0,IF(MID('CFR - XML import'!$A111,LEN($CF$4)+1,LEN('CFR - XML import'!$A111)-(2*LEN($CF$4)+1))=\"RMMS\",1,IF(MID('CFR - XML import'!$A111,LEN(\"    <InputSystem>\")+1,LEN('CFR - XML import'!$A111)-(LEN(\"    <InputSystem>\")+LEN($CF$4)+1))=\"SIMS\",2,0)))","v":0},{"$f":"IF(ISERROR(FIND(CH$3,'CFR - XML import'!$A111)),0,MID('CFR - XML import'!$A111,SEARCH(\">\",'CFR - XML import'!$A111,1)+1,SEARCH(\"/\",'CFR - XML import'!$A111,1)-SEARCH(\">\",'CFR - XML import'!$A111,1)-2))","v":0},{"$f":"IF(ISERROR(FIND(CI$3,'CFR - XML import'!$A111)),0,MID('CFR - XML import'!$A111,SEARCH(\">\",'CFR - XML import'!$A111,1)+1,SEARCH(\"/\",'CFR - XML import'!$A111,1)-SEARCH(\">\",'CFR - XML import'!$A111,1)-2))","v":0},{"$f":"IF(ISERROR(FIND(CJ$3,'CFR - XML import'!$A111)),0,MID('CFR - XML import'!$A111,SEARCH(\">\",'CFR - XML import'!$A111,1)+1,SEARCH(\"/\",'CFR - XML import'!$A111,1)-SEARCH(\">\",'CFR - XML import'!$A111,1)-2))","v":0},{"$f":"IF(ISERROR(FIND(CK$3,'CFR - XML import'!$A111)),0,MID('CFR - XML import'!$A111,SEARCH(\">\",'CFR - XML import'!$A111,1)+1,SEARCH(\"/\",'CFR - XML import'!$A111,1)-SEARCH(\">\",'CFR - XML import'!$A111,1)-2))","v":0},{"$f":"IF(ISERROR(FIND(CL$3,'CFR - XML import'!$A111)),0,MID('CFR - XML import'!$A111,SEARCH(\">\",'CFR - XML import'!$A111,1)+1,SEARCH(\"/\",'CFR - XML import'!$A111,1)-SEARCH(\">\",'CFR - XML import'!$A111,1)-2))","v":0}]
[{"$f":"IF(AND('CFR - XML import'!A112<>\"\",LEFT('CFR - XML import'!A112,1)<>\"<\",LEFT('CFR - XML import'!A112,3)<>\"  <\",LEFT('CFR - XML import'!A112,5)<>\"    <\",LEFT('CFR - XML import'!A112,7)<>\"      <\",LEFT('CFR - XML import'!A112,9)<>\"        <\",$B$1=\"SIMS\"),'CFR - XML import'!A112,IF(AND(LEFT('CFR - XML import'!A112,9)=\"<Details>\",$B$1=\"RM\"),'CFR - XML import'!A112,\"\"))","v":""},{"$f":"IF(ISERROR(FIND(B$3,'CFR - XML import'!$A112)),0,VALUE(MID('CFR - XML import'!$A112,SEARCH(\">\",'CFR - XML import'!$A112,1)+1,SEARCH(\"/\",'CFR - XML import'!$A112,1)-SEARCH(\">\",'CFR - XML import'!$A112,1)-2)))","v":0},null,{"$f":"IF(ISERROR(FIND(D$3,'CFR - XML import'!$A112)),0,MID('CFR - XML import'!$A112,SEARCH(\">\",'CFR - XML import'!$A112,1)+1,SEARCH(\"/\",'CFR - XML import'!$A112,1)-SEARCH(\">\",'CFR - XML import'!$A112,1)-2))","v":0},{"$f":"IF(ISERROR(FIND(E$3,'CFR - XML import'!$A112)),0,MID('CFR - XML import'!$A112,SEARCH(\">\",'CFR - XML import'!$A112,1)+1,SEARCH(\"/\",'CFR - XML import'!$A112,1)-SEARCH(\">\",'CFR - XML import'!$A112,1)-2))","v":0},{"$f":"IF($B$1=\"SIMS\",IF(ISERROR(FIND(F$3,'CFR - XML import'!$A112)),0,VALUE(MID('CFR - XML import'!$A112,15,10))),IF(ISERROR(FIND(F$3,'CFR - XML import'!$A112)),0,VALUE(MID('CFR - XML import'!$A112,11,10))))","v":"00:00:00"},{"$f":"IF(ISERROR(FIND(G$3,'CFR - XML import'!$A112)),0,VALUE(MID('CFR - XML import'!$A112,SEARCH(\">\",'CFR - XML import'!$A112,1)+1,SEARCH(\"/\",'CFR - XML import'!$A112,1)-SEARCH(\">\",'CFR - XML import'!$A112,1)-2)))","v":0},{"$f":"IF(ISERROR(FIND(H$3,'CFR - XML import'!$A112)),0,VALUE(MID('CFR - XML import'!$A112,SEARCH(\">\",'CFR - XML import'!$A112,1)+1,SEARCH(\"/\",'CFR - XML import'!$A112,1)-SEARCH(\">\",'CFR - XML import'!$A112,1)-2)))","v":0},{"$f":"IF(ISERROR(FIND(I$3,'CFR - XML import'!$A112)),0,VALUE(MID('CFR - XML import'!$A112,SEARCH(\">\",'CFR - XML import'!$A112,1)+1,SEARCH(\"/\",'CFR - XML import'!$A112,1)-SEARCH(\">\",'CFR - XML import'!$A112,1)-2)))","v":0},{"$f":"IF(ISERROR(FIND(J$3,'CFR - XML import'!$A112)),0,VALUE(MID('CFR - XML import'!$A112,SEARCH(\">\",'CFR - XML import'!$A112,1)+1,SEARCH(\"/\",'CFR - XML import'!$A112,1)-SEARCH(\">\",'CFR - XML import'!$A112,1)-2)))","v":0},{"$f":"IF(ISERROR(FIND(K$3,'CFR - XML import'!$A112)),0,VALUE(MID('CFR - XML import'!$A112,SEARCH(\">\",'CFR - XML import'!$A112,1)+1,SEARCH(\"/\",'CFR - XML import'!$A112,1)-SEARCH(\">\",'CFR - XML import'!$A112,1)-2)))","v":0},{"$f":"IF(ISERROR(FIND(L$3,'CFR - XML import'!$A112)),0,VALUE(MID('CFR - XML import'!$A112,SEARCH(\">\",'CFR - XML import'!$A112,1)+1,SEARCH(\"/\",'CFR - XML import'!$A112,1)-SEARCH(\">\",'CFR - XML import'!$A112,1)-2)))","v":0},{"$f":"IF(ISERROR(FIND(M$3,'CFR - XML import'!$A112)),0,VALUE(MID('CFR - XML import'!$A112,SEARCH(\">\",'CFR - XML import'!$A112,1)+1,SEARCH(\"/\",'CFR - XML import'!$A112,1)-SEARCH(\">\",'CFR - XML import'!$A112,1)-2)))","v":0},{"$f":"IF(ISERROR(FIND(N$3,'CFR - XML import'!$A112)),0,VALUE(MID('CFR - XML import'!$A112,SEARCH(\">\",'CFR - XML import'!$A112,1)+1,SEARCH(\"/\",'CFR - XML import'!$A112,1)-SEARCH(\">\",'CFR - XML import'!$A112,1)-2)))","v":0},{"$f":"IF(ISERROR(FIND(O$3,'CFR - XML import'!$A112)),0,VALUE(MID('CFR - XML import'!$A112,SEARCH(\">\",'CFR - XML import'!$A112,1)+1,SEARCH(\"/\",'CFR - XML import'!$A112,1)-SEARCH(\">\",'CFR - XML import'!$A112,1)-2)))","v":0},{"$f":"IF(ISERROR(FIND(P$3,'CFR - XML import'!$A112)),0,VALUE(MID('CFR - XML import'!$A112,SEARCH(\">\",'CFR - XML import'!$A112,1)+1,SEARCH(\"/\",'CFR - XML import'!$A112,1)-SEARCH(\">\",'CFR - XML import'!$A112,1)-2)))","v":0},{"$f":"IF(ISERROR(FIND(Q$3,'CFR - XML import'!$A112)),0,VALUE(MID('CFR - XML import'!$A112,SEARCH(\">\",'CFR - XML import'!$A112,1)+1,SEARCH(\"/\",'CFR - XML import'!$A112,1)-SEARCH(\">\",'CFR - XML import'!$A112,1)-2)))","v":0},{"$f":"IF(ISERROR(FIND(R$3,'CFR - XML import'!$A112)),0,VALUE(MID('CFR - XML import'!$A112,SEARCH(\">\",'CFR - XML import'!$A112,1)+1,SEARCH(\"/\",'CFR - XML import'!$A112,1)-SEARCH(\">\",'CFR - XML import'!$A112,1)-2)))","v":0},{"$f":"IF(ISERROR(FIND(S$3,'CFR - XML import'!$A112)),0,VALUE(MID('CFR - XML import'!$A112,SEARCH(\">\",'CFR - XML import'!$A112,1)+1,SEARCH(\"/\",'CFR - XML import'!$A112,1)-SEARCH(\">\",'CFR - XML import'!$A112,1)-2)))","v":0},{"$f":"IF(ISERROR(FIND(T$3,'CFR - XML import'!$A112)),0,VALUE(MID('CFR - XML import'!$A112,SEARCH(\">\",'CFR - XML import'!$A112,1)+1,SEARCH(\"/\",'CFR - XML import'!$A112,1)-SEARCH(\">\",'CFR - XML import'!$A112,1)-2)))","v":0},{"$f":"IF(ISERROR(FIND(U$3,'CFR - XML import'!$A112)),0,VALUE(MID('CFR - XML import'!$A112,SEARCH(\">\",'CFR - XML import'!$A112,1)+1,SEARCH(\"/\",'CFR - XML import'!$A112,1)-SEARCH(\">\",'CFR - XML import'!$A112,1)-2)))","v":0},{"$f":"IF(ISERROR(FIND(V$3,'CFR - XML import'!$A112)),0,VALUE(MID('CFR - XML import'!$A112,SEARCH(\">\",'CFR - XML import'!$A112,1)+1,SEARCH(\"/\",'CFR - XML import'!$A112,1)-SEARCH(\">\",'CFR - XML import'!$A112,1)-2)))","v":0},{"$f":"IF(ISERROR(FIND(W$3,'CFR - XML import'!$A112)),0,VALUE(MID('CFR - XML import'!$A112,SEARCH(\">\",'CFR - XML import'!$A112,1)+1,SEARCH(\"/\",'CFR - XML import'!$A112,1)-SEARCH(\">\",'CFR - XML import'!$A112,1)-2)))","v":0},null,{"$f":"IF(ISERROR(FIND(Y$3,'CFR - XML import'!$A112)),0,VALUE(MID('CFR - XML import'!$A112,SEARCH(\">\",'CFR - XML import'!$A112,1)+1,SEARCH(\"/\",'CFR - XML import'!$A112,1)-SEARCH(\">\",'CFR - XML import'!$A112,1)-2)))","v":0},{"$f":"IF(ISERROR(FIND(Z$3,'CFR - XML import'!$A112)),0,VALUE(MID('CFR - XML import'!$A112,SEARCH(\">\",'CFR - XML import'!$A112,1)+1,SEARCH(\"/\",'CFR - XML import'!$A112,1)-SEARCH(\">\",'CFR - XML import'!$A112,1)-2)))","v":0},{"$f":"IF(ISERROR(FIND(AA$3,'CFR - XML import'!$A112)),0,VALUE(MID('CFR - XML import'!$A112,SEARCH(\">\",'CFR - XML import'!$A112,1)+1,SEARCH(\"/\",'CFR - XML import'!$A112,1)-SEARCH(\">\",'CFR - XML import'!$A112,1)-2)))","v":0},{"$f":"IF(ISERROR(FIND(AB$3,'CFR - XML import'!$A112)),0,VALUE(MID('CFR - XML import'!$A112,SEARCH(\">\",'CFR - XML import'!$A112,1)+1,SEARCH(\"/\",'CFR - XML import'!$A112,1)-SEARCH(\">\",'CFR - XML import'!$A112,1)-2)))","v":0},{"$f":"IF(ISERROR(FIND(AC$3,'CFR - XML import'!$A112)),0,VALUE(MID('CFR - XML import'!$A112,SEARCH(\">\",'CFR - XML import'!$A112,1)+1,SEARCH(\"/\",'CFR - XML import'!$A112,1)-SEARCH(\">\",'CFR - XML import'!$A112,1)-2)))","v":0},{"$f":"IF(ISERROR(FIND(AD$3,'CFR - XML import'!$A112)),0,VALUE(MID('CFR - XML import'!$A112,SEARCH(\">\",'CFR - XML import'!$A112,1)+1,SEARCH(\"/\",'CFR - XML import'!$A112,1)-SEARCH(\">\",'CFR - XML import'!$A112,1)-2)))","v":0},{"$f":"IF(ISERROR(FIND(AE$3,'CFR - XML import'!$A112)),0,VALUE(MID('CFR - XML import'!$A112,SEARCH(\">\",'CFR - XML import'!$A112,1)+1,SEARCH(\"/\",'CFR - XML import'!$A112,1)-SEARCH(\">\",'CFR - XML import'!$A112,1)-2)))","v":0},{"$f":"IF(ISERROR(FIND(AF$3,'CFR - XML import'!$A112)),0,VALUE(MID('CFR - XML import'!$A112,SEARCH(\">\",'CFR - XML import'!$A112,1)+1,SEARCH(\"/\",'CFR - XML import'!$A112,1)-SEARCH(\">\",'CFR - XML import'!$A112,1)-2)))","v":0},{"$f":"IF(ISERROR(FIND(AG$3,'CFR - XML import'!$A112)),0,VALUE(MID('CFR - XML import'!$A112,SEARCH(\">\",'CFR - XML import'!$A112,1)+1,SEARCH(\"/\",'CFR - XML import'!$A112,1)-SEARCH(\">\",'CFR - XML import'!$A112,1)-2)))","v":0},{"$f":"IF(ISERROR(FIND(AH$3,'CFR - XML import'!$A112)),0,VALUE(MID('CFR - XML import'!$A112,SEARCH(\">\",'CFR - XML import'!$A112,1)+1,SEARCH(\"/\",'CFR - XML import'!$A112,1)-SEARCH(\">\",'CFR - XML import'!$A112,1)-2)))","v":0},{"$f":"IF(ISERROR(FIND(AI$3,'CFR - XML import'!$A112)),0,VALUE(MID('CFR - XML import'!$A112,SEARCH(\">\",'CFR - XML import'!$A112,1)+1,SEARCH(\"/\",'CFR - XML import'!$A112,1)-SEARCH(\">\",'CFR - XML import'!$A112,1)-2)))","v":0},{"$f":"IF(ISERROR(FIND(AJ$3,'CFR - XML import'!$A112)),0,VALUE(MID('CFR - XML import'!$A112,SEARCH(\">\",'CFR - XML import'!$A112,1)+1,SEARCH(\"/\",'CFR - XML import'!$A112,1)-SEARCH(\">\",'CFR - XML import'!$A112,1)-2)))","v":0},{"$f":"IF(ISERROR(FIND(AK$3,'CFR - XML import'!$A112)),0,VALUE(MID('CFR - XML import'!$A112,SEARCH(\">\",'CFR - XML import'!$A112,1)+1,SEARCH(\"/\",'CFR - XML import'!$A112,1)-SEARCH(\">\",'CFR - XML import'!$A112,1)-2)))","v":0},{"$f":"IF(ISERROR(FIND(AL$3,'CFR - XML import'!$A112)),0,VALUE(MID('CFR - XML import'!$A112,SEARCH(\">\",'CFR - XML import'!$A112,1)+1,SEARCH(\"/\",'CFR - XML import'!$A112,1)-SEARCH(\">\",'CFR - XML import'!$A112,1)-2)))","v":0},{"$f":"IF(ISERROR(FIND(AM$3,'CFR - XML import'!$A112)),0,VALUE(MID('CFR - XML import'!$A112,SEARCH(\">\",'CFR - XML import'!$A112,1)+1,SEARCH(\"/\",'CFR - XML import'!$A112,1)-SEARCH(\">\",'CFR - XML import'!$A112,1)-2)))","v":0},{"$f":"IF(ISERROR(FIND(AN$3,'CFR - XML import'!$A112)),0,VALUE(MID('CFR - XML import'!$A112,SEARCH(\">\",'CFR - XML import'!$A112,1)+1,SEARCH(\"/\",'CFR - XML import'!$A112,1)-SEARCH(\">\",'CFR - XML import'!$A112,1)-2)))","v":0},{"$f":"IF(ISERROR(FIND(AO$3,'CFR - XML import'!$A112)),0,VALUE(MID('CFR - XML import'!$A112,SEARCH(\">\",'CFR - XML import'!$A112,1)+1,SEARCH(\"/\",'CFR - XML import'!$A112,1)-SEARCH(\">\",'CFR - XML import'!$A112,1)-2)))","v":0},{"$f":"IF(ISERROR(FIND(AP$3,'CFR - XML import'!$A112)),0,VALUE(MID('CFR - XML import'!$A112,SEARCH(\">\",'CFR - XML import'!$A112,1)+1,SEARCH(\"/\",'CFR - XML import'!$A112,1)-SEARCH(\">\",'CFR - XML import'!$A112,1)-2)))","v":0},{"$f":"IF(ISERROR(FIND(AQ$3,'CFR - XML import'!$A112)),0,VALUE(MID('CFR - XML import'!$A112,SEARCH(\">\",'CFR - XML import'!$A112,1)+1,SEARCH(\"/\",'CFR - XML import'!$A112,1)-SEARCH(\">\",'CFR - XML import'!$A112,1)-2)))","v":0},{"$f":"IF(ISERROR(FIND(AR$3,'CFR - XML import'!$A112)),0,VALUE(MID('CFR - XML import'!$A112,SEARCH(\">\",'CFR - XML import'!$A112,1)+1,SEARCH(\"/\",'CFR - XML import'!$A112,1)-SEARCH(\">\",'CFR - XML import'!$A112,1)-2)))","v":0},{"$f":"IF(ISERROR(FIND(AS$3,'CFR - XML import'!$A112)),0,VALUE(MID('CFR - XML import'!$A112,SEARCH(\">\",'CFR - XML import'!$A112,1)+1,SEARCH(\"/\",'CFR - XML import'!$A112,1)-SEARCH(\">\",'CFR - XML import'!$A112,1)-2)))","v":0},{"$f":"IF(ISERROR(FIND(AT$3,'CFR - XML import'!$A112)),0,VALUE(MID('CFR - XML import'!$A112,SEARCH(\">\",'CFR - XML import'!$A112,1)+1,SEARCH(\"/\",'CFR - XML import'!$A112,1)-SEARCH(\">\",'CFR - XML import'!$A112,1)-2)))","v":0},{"$f":"IF(ISERROR(FIND(AU$3,'CFR - XML import'!$A112)),0,VALUE(MID('CFR - XML import'!$A112,SEARCH(\">\",'CFR - XML import'!$A112,1)+1,SEARCH(\"/\",'CFR - XML import'!$A112,1)-SEARCH(\">\",'CFR - XML import'!$A112,1)-2)))","v":0},{"$f":"IF(ISERROR(FIND(AV$3,'CFR - XML import'!$A112)),0,VALUE(MID('CFR - XML import'!$A112,SEARCH(\">\",'CFR - XML import'!$A112,1)+1,SEARCH(\"/\",'CFR - XML import'!$A112,1)-SEARCH(\">\",'CFR - XML import'!$A112,1)-2)))","v":0},{"$f":"IF(ISERROR(FIND(AW$3,'CFR - XML import'!$A112)),0,VALUE(MID('CFR - XML import'!$A112,SEARCH(\">\",'CFR - XML import'!$A112,1)+1,SEARCH(\"/\",'CFR - XML import'!$A112,1)-SEARCH(\">\",'CFR - XML import'!$A112,1)-2)))","v":0},{"$f":"IF(ISERROR(FIND(AX$3,'CFR - XML import'!$A112)),0,VALUE(MID('CFR - XML import'!$A112,SEARCH(\">\",'CFR - XML import'!$A112,1)+1,SEARCH(\"/\",'CFR - XML import'!$A112,1)-SEARCH(\">\",'CFR - XML import'!$A112,1)-2)))","v":0},{"$f":"IF(ISERROR(FIND(AY$3,'CFR - XML import'!$A112)),0,VALUE(MID('CFR - XML import'!$A112,SEARCH(\">\",'CFR - XML import'!$A112,1)+1,SEARCH(\"/\",'CFR - XML import'!$A112,1)-SEARCH(\">\",'CFR - XML import'!$A112,1)-2)))","v":0},{"$f":"IF(ISERROR(FIND(AZ$3,'CFR - XML import'!$A112)),0,VALUE(MID('CFR - XML import'!$A112,SEARCH(\">\",'CFR - XML import'!$A112,1)+1,SEARCH(\"/\",'CFR - XML import'!$A112,1)-SEARCH(\">\",'CFR - XML import'!$A112,1)-2)))","v":0},{"$f":"IF(ISERROR(FIND(BA$3,'CFR - XML import'!$A112)),0,VALUE(MID('CFR - XML import'!$A112,SEARCH(\">\",'CFR - XML import'!$A112,1)+1,SEARCH(\"/\",'CFR - XML import'!$A112,1)-SEARCH(\">\",'CFR - XML import'!$A112,1)-2)))","v":0},{"$f":"IF(ISERROR(FIND(BB$3,'CFR - XML import'!$A112)),0,VALUE(MID('CFR - XML import'!$A112,SEARCH(\">\",'CFR - XML import'!$A112,1)+1,SEARCH(\"/\",'CFR - XML import'!$A112,1)-SEARCH(\">\",'CFR - XML import'!$A112,1)-2)))","v":0},{"$f":"IF(ISERROR(FIND(BC$3,'CFR - XML import'!$A112)),0,VALUE(MID('CFR - XML import'!$A112,SEARCH(\">\",'CFR - XML import'!$A112,1)+1,SEARCH(\"/\",'CFR - XML import'!$A112,1)-SEARCH(\">\",'CFR - XML import'!$A112,1)-2)))","v":0},{"$f":"IF(ISERROR(FIND(BD$3,'CFR - XML import'!$A112)),0,VALUE(MID('CFR - XML import'!$A112,SEARCH(\">\",'CFR - XML import'!$A112,1)+1,SEARCH(\"/\",'CFR - XML import'!$A112,1)-SEARCH(\">\",'CFR - XML import'!$A112,1)-2)))","v":0},{"$f":"IF(ISERROR(FIND(BE$3,'CFR - XML import'!$A112)),0,VALUE(MID('CFR - XML import'!$A112,SEARCH(\">\",'CFR - XML import'!$A112,1)+1,SEARCH(\"/\",'CFR - XML import'!$A112,1)-SEARCH(\">\",'CFR - XML import'!$A112,1)-2)))","v":0},{"$f":"IF(ISERROR(FIND(BF$3,'CFR - XML import'!$A112)),0,VALUE(MID('CFR - XML import'!$A112,SEARCH(\">\",'CFR - XML import'!$A112,1)+1,SEARCH(\"/\",'CFR - XML import'!$A112,1)-SEARCH(\">\",'CFR - XML import'!$A112,1)-2)))","v":0},{"$f":"IF(ISERROR(FIND(BG$3,'CFR - XML import'!$A112)),0,VALUE(MID('CFR - XML import'!$A112,SEARCH(\">\",'CFR - XML import'!$A112,1)+1,SEARCH(\"/\",'CFR - XML import'!$A112,1)-SEARCH(\">\",'CFR - XML import'!$A112,1)-2)))","v":0},{"$f":"IF(ISERROR(FIND(BH$3,'CFR - XML import'!$A112)),0,VALUE(MID('CFR - XML import'!$A112,SEARCH(\">\",'CFR - XML import'!$A112,1)+1,SEARCH(\"/\",'CFR - XML import'!$A112,1)-SEARCH(\">\",'CFR - XML import'!$A112,1)-2)))","v":0},{"$f":"IF(ISERROR(FIND(BI$3,'CFR - XML import'!$A112)),0,VALUE(MID('CFR - XML import'!$A112,SEARCH(\">\",'CFR - XML import'!$A112,1)+1,SEARCH(\"/\",'CFR - XML import'!$A112,1)-SEARCH(\">\",'CFR - XML import'!$A112,1)-2)))","v":0},{"$f":"IF(ISERROR(FIND(BJ$3,'CFR - XML import'!$A112)),0,VALUE(MID('CFR - XML import'!$A112,SEARCH(\">\",'CFR - XML import'!$A112,1)+1,SEARCH(\"/\",'CFR - XML import'!$A112,1)-SEARCH(\">\",'CFR - XML import'!$A112,1)-2)))","v":0},{"$f":"IF(ISERROR(FIND(BK$3,'CFR - XML import'!$A112)),0,VALUE(MID('CFR - XML import'!$A112,SEARCH(\">\",'CFR - XML import'!$A112,1)+1,SEARCH(\"/\",'CFR - XML import'!$A112,1)-SEARCH(\">\",'CFR - XML import'!$A112,1)-2)))","v":0},{"$f":"IF(ISERROR(FIND(BL$3,'CFR - XML import'!$A112)),0,VALUE(MID('CFR - XML import'!$A112,SEARCH(\">\",'CFR - XML import'!$A112,1)+1,SEARCH(\"/\",'CFR - XML import'!$A112,1)-SEARCH(\">\",'CFR - XML import'!$A112,1)-2)))","v":0},{"$f":"IF(ISERROR(FIND(BM$3,'CFR - XML import'!$A112)),0,VALUE(MID('CFR - XML import'!$A112,SEARCH(\">\",'CFR - XML import'!$A112,1)+1,SEARCH(\"/\",'CFR - XML import'!$A112,1)-SEARCH(\">\",'CFR - XML import'!$A112,1)-2)))","v":0},{"$f":"IF(ISERROR(FIND(BN$3,'CFR - XML import'!$A112)),0,VALUE(MID('CFR - XML import'!$A112,SEARCH(\">\",'CFR - XML import'!$A112,1)+1,SEARCH(\"/\",'CFR - XML import'!$A112,1)-SEARCH(\">\",'CFR - XML import'!$A112,1)-2)))","v":0},{"$f":"IF(ISERROR(FIND(BO$3,'CFR - XML import'!$A112)),0,VALUE(MID('CFR - XML import'!$A112,SEARCH(\">\",'CFR - XML import'!$A112,1)+1,SEARCH(\"/\",'CFR - XML import'!$A112,1)-SEARCH(\">\",'CFR - XML import'!$A112,1)-2)))","v":0},{"$f":"IF(ISERROR(FIND(BP$3,'CFR - XML import'!$A112)),0,VALUE(MID('CFR - XML import'!$A112,SEARCH(\">\",'CFR - XML import'!$A112,1)+1,SEARCH(\"/\",'CFR - XML import'!$A112,1)-SEARCH(\">\",'CFR - XML import'!$A112,1)-2)))","v":0},{"$f":"IF(ISERROR(FIND(BQ$3,'CFR - XML import'!$A112)),0,VALUE(MID('CFR - XML import'!$A112,SEARCH(\">\",'CFR - XML import'!$A112,1)+1,SEARCH(\"/\",'CFR - XML import'!$A112,1)-SEARCH(\">\",'CFR - XML import'!$A112,1)-2)))","v":0},{"$f":"IF(ISERROR(FIND(BR$3,'CFR - XML import'!$A112)),0,VALUE(MID('CFR - XML import'!$A112,SEARCH(\">\",'CFR - XML import'!$A112,1)+1,SEARCH(\"/\",'CFR - XML import'!$A112,1)-SEARCH(\">\",'CFR - XML import'!$A112,1)-2)))","v":0},{"$f":"IF(ISERROR(FIND(BS$3,'CFR - XML import'!$A112)),0,VALUE(MID('CFR - XML import'!$A112,SEARCH(\">\",'CFR - XML import'!$A112,1)+1,SEARCH(\"/\",'CFR - XML import'!$A112,1)-SEARCH(\">\",'CFR - XML import'!$A112,1)-2)))","v":0},{"$f":"IF(ISERROR(FIND(BT$3,'CFR - XML import'!$A112)),0,VALUE(MID('CFR - XML import'!$A112,SEARCH(\">\",'CFR - XML import'!$A112,1)+1,SEARCH(\"/\",'CFR - XML import'!$A112,1)-SEARCH(\">\",'CFR - XML import'!$A112,1)-2)))","v":0},{"$f":"IF(ISERROR(FIND(BU$3,'CFR - XML import'!$A112)),0,VALUE(MID('CFR - XML import'!$A112,SEARCH(\">\",'CFR - XML import'!$A112,1)+1,SEARCH(\"/\",'CFR - XML import'!$A112,1)-SEARCH(\">\",'CFR - XML import'!$A112,1)-2)))","v":0},{"$f":"IF(ISERROR(FIND(BV$3,'CFR - XML import'!$A112)),0,VALUE(MID('CFR - XML import'!$A112,SEARCH(\">\",'CFR - XML import'!$A112,1)+1,SEARCH(\"/\",'CFR - XML import'!$A112,1)-SEARCH(\">\",'CFR - XML import'!$A112,1)-2)))","v":0},{"$f":"IF(ISERROR(FIND(BW$3,'CFR - XML import'!$A112)),0,VALUE(MID('CFR - XML import'!$A112,SEARCH(\">\",'CFR - XML import'!$A112,1)+1,SEARCH(\"/\",'CFR - XML import'!$A112,1)-SEARCH(\">\",'CFR - XML import'!$A112,1)-2)))","v":0},{"$f":"IF(ISERROR(FIND(BX$3,'CFR - XML import'!$A112)),0,VALUE(MID('CFR - XML import'!$A112,SEARCH(\">\",'CFR - XML import'!$A112,1)+1,SEARCH(\"/\",'CFR - XML import'!$A112,1)-SEARCH(\">\",'CFR - XML import'!$A112,1)-2)))","v":0},{"$f":"IF(ISERROR(FIND(BY$3,'CFR - XML import'!$A112)),0,VALUE(MID('CFR - XML import'!$A112,SEARCH(\">\",'CFR - XML import'!$A112,1)+1,SEARCH(\"/\",'CFR - XML import'!$A112,1)-SEARCH(\">\",'CFR - XML import'!$A112,1)-2)))","v":0},{"$f":"IF(ISERROR(FIND(BZ$3,'CFR - XML import'!$A112)),0,VALUE(MID('CFR - XML import'!$A112,SEARCH(\">\",'CFR - XML import'!$A112,1)+1,SEARCH(\"/\",'CFR - XML import'!$A112,1)-SEARCH(\">\",'CFR - XML import'!$A112,1)-2)))","v":0},null,null,null,null,null,null,{"$f":"IF(ISERROR(IF(MID('CFR - XML import'!$A112,LEN($CF$4)+1,LEN('CFR - XML import'!$A112)-(2*LEN($CF$4)+1))=\"RMMS\",1,IF(MID('CFR - XML import'!$A112,LEN(\"    <InputSystem>\")+1,LEN('CFR - XML import'!$A112)-(LEN(\"    <InputSystem>\")+LEN($CF$4)+1))=\"SIMS\",2,0))),0,IF(MID('CFR - XML import'!$A112,LEN($CF$4)+1,LEN('CFR - XML import'!$A112)-(2*LEN($CF$4)+1))=\"RMMS\",1,IF(MID('CFR - XML import'!$A112,LEN(\"    <InputSystem>\")+1,LEN('CFR - XML import'!$A112)-(LEN(\"    <InputSystem>\")+LEN($CF$4)+1))=\"SIMS\",2,0)))","v":0},{"$f":"IF(ISERROR(FIND(CH$3,'CFR - XML import'!$A112)),0,MID('CFR - XML import'!$A112,SEARCH(\">\",'CFR - XML import'!$A112,1)+1,SEARCH(\"/\",'CFR - XML import'!$A112,1)-SEARCH(\">\",'CFR - XML import'!$A112,1)-2))","v":0},{"$f":"IF(ISERROR(FIND(CI$3,'CFR - XML import'!$A112)),0,MID('CFR - XML import'!$A112,SEARCH(\">\",'CFR - XML import'!$A112,1)+1,SEARCH(\"/\",'CFR - XML import'!$A112,1)-SEARCH(\">\",'CFR - XML import'!$A112,1)-2))","v":0},{"$f":"IF(ISERROR(FIND(CJ$3,'CFR - XML import'!$A112)),0,MID('CFR - XML import'!$A112,SEARCH(\">\",'CFR - XML import'!$A112,1)+1,SEARCH(\"/\",'CFR - XML import'!$A112,1)-SEARCH(\">\",'CFR - XML import'!$A112,1)-2))","v":0},{"$f":"IF(ISERROR(FIND(CK$3,'CFR - XML import'!$A112)),0,MID('CFR - XML import'!$A112,SEARCH(\">\",'CFR - XML import'!$A112,1)+1,SEARCH(\"/\",'CFR - XML import'!$A112,1)-SEARCH(\">\",'CFR - XML import'!$A112,1)-2))","v":0},{"$f":"IF(ISERROR(FIND(CL$3,'CFR - XML import'!$A112)),0,MID('CFR - XML import'!$A112,SEARCH(\">\",'CFR - XML import'!$A112,1)+1,SEARCH(\"/\",'CFR - XML import'!$A112,1)-SEARCH(\">\",'CFR - XML import'!$A112,1)-2))","v":0}]
[{"$f":"IF(AND('CFR - XML import'!A113<>\"\",LEFT('CFR - XML import'!A113,1)<>\"<\",LEFT('CFR - XML import'!A113,3)<>\"  <\",LEFT('CFR - XML import'!A113,5)<>\"    <\",LEFT('CFR - XML import'!A113,7)<>\"      <\",LEFT('CFR - XML import'!A113,9)<>\"        <\",$B$1=\"SIMS\"),'CFR - XML import'!A113,IF(AND(LEFT('CFR - XML import'!A113,9)=\"<Details>\",$B$1=\"RM\"),'CFR - XML import'!A113,\"\"))","v":""},{"$f":"IF(ISERROR(FIND(B$3,'CFR - XML import'!$A113)),0,VALUE(MID('CFR - XML import'!$A113,SEARCH(\">\",'CFR - XML import'!$A113,1)+1,SEARCH(\"/\",'CFR - XML import'!$A113,1)-SEARCH(\">\",'CFR - XML import'!$A113,1)-2)))","v":0},null,{"$f":"IF(ISERROR(FIND(D$3,'CFR - XML import'!$A113)),0,MID('CFR - XML import'!$A113,SEARCH(\">\",'CFR - XML import'!$A113,1)+1,SEARCH(\"/\",'CFR - XML import'!$A113,1)-SEARCH(\">\",'CFR - XML import'!$A113,1)-2))","v":0},{"$f":"IF(ISERROR(FIND(E$3,'CFR - XML import'!$A113)),0,MID('CFR - XML import'!$A113,SEARCH(\">\",'CFR - XML import'!$A113,1)+1,SEARCH(\"/\",'CFR - XML import'!$A113,1)-SEARCH(\">\",'CFR - XML import'!$A113,1)-2))","v":0},{"$f":"IF($B$1=\"SIMS\",IF(ISERROR(FIND(F$3,'CFR - XML import'!$A113)),0,VALUE(MID('CFR - XML import'!$A113,15,10))),IF(ISERROR(FIND(F$3,'CFR - XML import'!$A113)),0,VALUE(MID('CFR - XML import'!$A113,11,10))))","v":"00:00:00"},{"$f":"IF(ISERROR(FIND(G$3,'CFR - XML import'!$A113)),0,VALUE(MID('CFR - XML import'!$A113,SEARCH(\">\",'CFR - XML import'!$A113,1)+1,SEARCH(\"/\",'CFR - XML import'!$A113,1)-SEARCH(\">\",'CFR - XML import'!$A113,1)-2)))","v":0},{"$f":"IF(ISERROR(FIND(H$3,'CFR - XML import'!$A113)),0,VALUE(MID('CFR - XML import'!$A113,SEARCH(\">\",'CFR - XML import'!$A113,1)+1,SEARCH(\"/\",'CFR - XML import'!$A113,1)-SEARCH(\">\",'CFR - XML import'!$A113,1)-2)))","v":0},{"$f":"IF(ISERROR(FIND(I$3,'CFR - XML import'!$A113)),0,VALUE(MID('CFR - XML import'!$A113,SEARCH(\">\",'CFR - XML import'!$A113,1)+1,SEARCH(\"/\",'CFR - XML import'!$A113,1)-SEARCH(\">\",'CFR - XML import'!$A113,1)-2)))","v":0},{"$f":"IF(ISERROR(FIND(J$3,'CFR - XML import'!$A113)),0,VALUE(MID('CFR - XML import'!$A113,SEARCH(\">\",'CFR - XML import'!$A113,1)+1,SEARCH(\"/\",'CFR - XML import'!$A113,1)-SEARCH(\">\",'CFR - XML import'!$A113,1)-2)))","v":0},{"$f":"IF(ISERROR(FIND(K$3,'CFR - XML import'!$A113)),0,VALUE(MID('CFR - XML import'!$A113,SEARCH(\">\",'CFR - XML import'!$A113,1)+1,SEARCH(\"/\",'CFR - XML import'!$A113,1)-SEARCH(\">\",'CFR - XML import'!$A113,1)-2)))","v":0},{"$f":"IF(ISERROR(FIND(L$3,'CFR - XML import'!$A113)),0,VALUE(MID('CFR - XML import'!$A113,SEARCH(\">\",'CFR - XML import'!$A113,1)+1,SEARCH(\"/\",'CFR - XML import'!$A113,1)-SEARCH(\">\",'CFR - XML import'!$A113,1)-2)))","v":0},{"$f":"IF(ISERROR(FIND(M$3,'CFR - XML import'!$A113)),0,VALUE(MID('CFR - XML import'!$A113,SEARCH(\">\",'CFR - XML import'!$A113,1)+1,SEARCH(\"/\",'CFR - XML import'!$A113,1)-SEARCH(\">\",'CFR - XML import'!$A113,1)-2)))","v":0},{"$f":"IF(ISERROR(FIND(N$3,'CFR - XML import'!$A113)),0,VALUE(MID('CFR - XML import'!$A113,SEARCH(\">\",'CFR - XML import'!$A113,1)+1,SEARCH(\"/\",'CFR - XML import'!$A113,1)-SEARCH(\">\",'CFR - XML import'!$A113,1)-2)))","v":0},{"$f":"IF(ISERROR(FIND(O$3,'CFR - XML import'!$A113)),0,VALUE(MID('CFR - XML import'!$A113,SEARCH(\">\",'CFR - XML import'!$A113,1)+1,SEARCH(\"/\",'CFR - XML import'!$A113,1)-SEARCH(\">\",'CFR - XML import'!$A113,1)-2)))","v":0},{"$f":"IF(ISERROR(FIND(P$3,'CFR - XML import'!$A113)),0,VALUE(MID('CFR - XML import'!$A113,SEARCH(\">\",'CFR - XML import'!$A113,1)+1,SEARCH(\"/\",'CFR - XML import'!$A113,1)-SEARCH(\">\",'CFR - XML import'!$A113,1)-2)))","v":0},{"$f":"IF(ISERROR(FIND(Q$3,'CFR - XML import'!$A113)),0,VALUE(MID('CFR - XML import'!$A113,SEARCH(\">\",'CFR - XML import'!$A113,1)+1,SEARCH(\"/\",'CFR - XML import'!$A113,1)-SEARCH(\">\",'CFR - XML import'!$A113,1)-2)))","v":0},{"$f":"IF(ISERROR(FIND(R$3,'CFR - XML import'!$A113)),0,VALUE(MID('CFR - XML import'!$A113,SEARCH(\">\",'CFR - XML import'!$A113,1)+1,SEARCH(\"/\",'CFR - XML import'!$A113,1)-SEARCH(\">\",'CFR - XML import'!$A113,1)-2)))","v":0},{"$f":"IF(ISERROR(FIND(S$3,'CFR - XML import'!$A113)),0,VALUE(MID('CFR - XML import'!$A113,SEARCH(\">\",'CFR - XML import'!$A113,1)+1,SEARCH(\"/\",'CFR - XML import'!$A113,1)-SEARCH(\">\",'CFR - XML import'!$A113,1)-2)))","v":0},{"$f":"IF(ISERROR(FIND(T$3,'CFR - XML import'!$A113)),0,VALUE(MID('CFR - XML import'!$A113,SEARCH(\">\",'CFR - XML import'!$A113,1)+1,SEARCH(\"/\",'CFR - XML import'!$A113,1)-SEARCH(\">\",'CFR - XML import'!$A113,1)-2)))","v":0},{"$f":"IF(ISERROR(FIND(U$3,'CFR - XML import'!$A113)),0,VALUE(MID('CFR - XML import'!$A113,SEARCH(\">\",'CFR - XML import'!$A113,1)+1,SEARCH(\"/\",'CFR - XML import'!$A113,1)-SEARCH(\">\",'CFR - XML import'!$A113,1)-2)))","v":0},{"$f":"IF(ISERROR(FIND(V$3,'CFR - XML import'!$A113)),0,VALUE(MID('CFR - XML import'!$A113,SEARCH(\">\",'CFR - XML import'!$A113,1)+1,SEARCH(\"/\",'CFR - XML import'!$A113,1)-SEARCH(\">\",'CFR - XML import'!$A113,1)-2)))","v":0},{"$f":"IF(ISERROR(FIND(W$3,'CFR - XML import'!$A113)),0,VALUE(MID('CFR - XML import'!$A113,SEARCH(\">\",'CFR - XML import'!$A113,1)+1,SEARCH(\"/\",'CFR - XML import'!$A113,1)-SEARCH(\">\",'CFR - XML import'!$A113,1)-2)))","v":0},null,{"$f":"IF(ISERROR(FIND(Y$3,'CFR - XML import'!$A113)),0,VALUE(MID('CFR - XML import'!$A113,SEARCH(\">\",'CFR - XML import'!$A113,1)+1,SEARCH(\"/\",'CFR - XML import'!$A113,1)-SEARCH(\">\",'CFR - XML import'!$A113,1)-2)))","v":0},{"$f":"IF(ISERROR(FIND(Z$3,'CFR - XML import'!$A113)),0,VALUE(MID('CFR - XML import'!$A113,SEARCH(\">\",'CFR - XML import'!$A113,1)+1,SEARCH(\"/\",'CFR - XML import'!$A113,1)-SEARCH(\">\",'CFR - XML import'!$A113,1)-2)))","v":0},{"$f":"IF(ISERROR(FIND(AA$3,'CFR - XML import'!$A113)),0,VALUE(MID('CFR - XML import'!$A113,SEARCH(\">\",'CFR - XML import'!$A113,1)+1,SEARCH(\"/\",'CFR - XML import'!$A113,1)-SEARCH(\">\",'CFR - XML import'!$A113,1)-2)))","v":0},{"$f":"IF(ISERROR(FIND(AB$3,'CFR - XML import'!$A113)),0,VALUE(MID('CFR - XML import'!$A113,SEARCH(\">\",'CFR - XML import'!$A113,1)+1,SEARCH(\"/\",'CFR - XML import'!$A113,1)-SEARCH(\">\",'CFR - XML import'!$A113,1)-2)))","v":0},{"$f":"IF(ISERROR(FIND(AC$3,'CFR - XML import'!$A113)),0,VALUE(MID('CFR - XML import'!$A113,SEARCH(\">\",'CFR - XML import'!$A113,1)+1,SEARCH(\"/\",'CFR - XML import'!$A113,1)-SEARCH(\">\",'CFR - XML import'!$A113,1)-2)))","v":0},{"$f":"IF(ISERROR(FIND(AD$3,'CFR - XML import'!$A113)),0,VALUE(MID('CFR - XML import'!$A113,SEARCH(\">\",'CFR - XML import'!$A113,1)+1,SEARCH(\"/\",'CFR - XML import'!$A113,1)-SEARCH(\">\",'CFR - XML import'!$A113,1)-2)))","v":0},{"$f":"IF(ISERROR(FIND(AE$3,'CFR - XML import'!$A113)),0,VALUE(MID('CFR - XML import'!$A113,SEARCH(\">\",'CFR - XML import'!$A113,1)+1,SEARCH(\"/\",'CFR - XML import'!$A113,1)-SEARCH(\">\",'CFR - XML import'!$A113,1)-2)))","v":0},{"$f":"IF(ISERROR(FIND(AF$3,'CFR - XML import'!$A113)),0,VALUE(MID('CFR - XML import'!$A113,SEARCH(\">\",'CFR - XML import'!$A113,1)+1,SEARCH(\"/\",'CFR - XML import'!$A113,1)-SEARCH(\">\",'CFR - XML import'!$A113,1)-2)))","v":0},{"$f":"IF(ISERROR(FIND(AG$3,'CFR - XML import'!$A113)),0,VALUE(MID('CFR - XML import'!$A113,SEARCH(\">\",'CFR - XML import'!$A113,1)+1,SEARCH(\"/\",'CFR - XML import'!$A113,1)-SEARCH(\">\",'CFR - XML import'!$A113,1)-2)))","v":0},{"$f":"IF(ISERROR(FIND(AH$3,'CFR - XML import'!$A113)),0,VALUE(MID('CFR - XML import'!$A113,SEARCH(\">\",'CFR - XML import'!$A113,1)+1,SEARCH(\"/\",'CFR - XML import'!$A113,1)-SEARCH(\">\",'CFR - XML import'!$A113,1)-2)))","v":0},{"$f":"IF(ISERROR(FIND(AI$3,'CFR - XML import'!$A113)),0,VALUE(MID('CFR - XML import'!$A113,SEARCH(\">\",'CFR - XML import'!$A113,1)+1,SEARCH(\"/\",'CFR - XML import'!$A113,1)-SEARCH(\">\",'CFR - XML import'!$A113,1)-2)))","v":0},{"$f":"IF(ISERROR(FIND(AJ$3,'CFR - XML import'!$A113)),0,VALUE(MID('CFR - XML import'!$A113,SEARCH(\">\",'CFR - XML import'!$A113,1)+1,SEARCH(\"/\",'CFR - XML import'!$A113,1)-SEARCH(\">\",'CFR - XML import'!$A113,1)-2)))","v":0},{"$f":"IF(ISERROR(FIND(AK$3,'CFR - XML import'!$A113)),0,VALUE(MID('CFR - XML import'!$A113,SEARCH(\">\",'CFR - XML import'!$A113,1)+1,SEARCH(\"/\",'CFR - XML import'!$A113,1)-SEARCH(\">\",'CFR - XML import'!$A113,1)-2)))","v":0},{"$f":"IF(ISERROR(FIND(AL$3,'CFR - XML import'!$A113)),0,VALUE(MID('CFR - XML import'!$A113,SEARCH(\">\",'CFR - XML import'!$A113,1)+1,SEARCH(\"/\",'CFR - XML import'!$A113,1)-SEARCH(\">\",'CFR - XML import'!$A113,1)-2)))","v":0},{"$f":"IF(ISERROR(FIND(AM$3,'CFR - XML import'!$A113)),0,VALUE(MID('CFR - XML import'!$A113,SEARCH(\">\",'CFR - XML import'!$A113,1)+1,SEARCH(\"/\",'CFR - XML import'!$A113,1)-SEARCH(\">\",'CFR - XML import'!$A113,1)-2)))","v":0},{"$f":"IF(ISERROR(FIND(AN$3,'CFR - XML import'!$A113)),0,VALUE(MID('CFR - XML import'!$A113,SEARCH(\">\",'CFR - XML import'!$A113,1)+1,SEARCH(\"/\",'CFR - XML import'!$A113,1)-SEARCH(\">\",'CFR - XML import'!$A113,1)-2)))","v":0},{"$f":"IF(ISERROR(FIND(AO$3,'CFR - XML import'!$A113)),0,VALUE(MID('CFR - XML import'!$A113,SEARCH(\">\",'CFR - XML import'!$A113,1)+1,SEARCH(\"/\",'CFR - XML import'!$A113,1)-SEARCH(\">\",'CFR - XML import'!$A113,1)-2)))","v":0},{"$f":"IF(ISERROR(FIND(AP$3,'CFR - XML import'!$A113)),0,VALUE(MID('CFR - XML import'!$A113,SEARCH(\">\",'CFR - XML import'!$A113,1)+1,SEARCH(\"/\",'CFR - XML import'!$A113,1)-SEARCH(\">\",'CFR - XML import'!$A113,1)-2)))","v":0},{"$f":"IF(ISERROR(FIND(AQ$3,'CFR - XML import'!$A113)),0,VALUE(MID('CFR - XML import'!$A113,SEARCH(\">\",'CFR - XML import'!$A113,1)+1,SEARCH(\"/\",'CFR - XML import'!$A113,1)-SEARCH(\">\",'CFR - XML import'!$A113,1)-2)))","v":0},{"$f":"IF(ISERROR(FIND(AR$3,'CFR - XML import'!$A113)),0,VALUE(MID('CFR - XML import'!$A113,SEARCH(\">\",'CFR - XML import'!$A113,1)+1,SEARCH(\"/\",'CFR - XML import'!$A113,1)-SEARCH(\">\",'CFR - XML import'!$A113,1)-2)))","v":0},{"$f":"IF(ISERROR(FIND(AS$3,'CFR - XML import'!$A113)),0,VALUE(MID('CFR - XML import'!$A113,SEARCH(\">\",'CFR - XML import'!$A113,1)+1,SEARCH(\"/\",'CFR - XML import'!$A113,1)-SEARCH(\">\",'CFR - XML import'!$A113,1)-2)))","v":0},{"$f":"IF(ISERROR(FIND(AT$3,'CFR - XML import'!$A113)),0,VALUE(MID('CFR - XML import'!$A113,SEARCH(\">\",'CFR - XML import'!$A113,1)+1,SEARCH(\"/\",'CFR - XML import'!$A113,1)-SEARCH(\">\",'CFR - XML import'!$A113,1)-2)))","v":0},{"$f":"IF(ISERROR(FIND(AU$3,'CFR - XML import'!$A113)),0,VALUE(MID('CFR - XML import'!$A113,SEARCH(\">\",'CFR - XML import'!$A113,1)+1,SEARCH(\"/\",'CFR - XML import'!$A113,1)-SEARCH(\">\",'CFR - XML import'!$A113,1)-2)))","v":0},{"$f":"IF(ISERROR(FIND(AV$3,'CFR - XML import'!$A113)),0,VALUE(MID('CFR - XML import'!$A113,SEARCH(\">\",'CFR - XML import'!$A113,1)+1,SEARCH(\"/\",'CFR - XML import'!$A113,1)-SEARCH(\">\",'CFR - XML import'!$A113,1)-2)))","v":0},{"$f":"IF(ISERROR(FIND(AW$3,'CFR - XML import'!$A113)),0,VALUE(MID('CFR - XML import'!$A113,SEARCH(\">\",'CFR - XML import'!$A113,1)+1,SEARCH(\"/\",'CFR - XML import'!$A113,1)-SEARCH(\">\",'CFR - XML import'!$A113,1)-2)))","v":0},{"$f":"IF(ISERROR(FIND(AX$3,'CFR - XML import'!$A113)),0,VALUE(MID('CFR - XML import'!$A113,SEARCH(\">\",'CFR - XML import'!$A113,1)+1,SEARCH(\"/\",'CFR - XML import'!$A113,1)-SEARCH(\">\",'CFR - XML import'!$A113,1)-2)))","v":0},{"$f":"IF(ISERROR(FIND(AY$3,'CFR - XML import'!$A113)),0,VALUE(MID('CFR - XML import'!$A113,SEARCH(\">\",'CFR - XML import'!$A113,1)+1,SEARCH(\"/\",'CFR - XML import'!$A113,1)-SEARCH(\">\",'CFR - XML import'!$A113,1)-2)))","v":0},{"$f":"IF(ISERROR(FIND(AZ$3,'CFR - XML import'!$A113)),0,VALUE(MID('CFR - XML import'!$A113,SEARCH(\">\",'CFR - XML import'!$A113,1)+1,SEARCH(\"/\",'CFR - XML import'!$A113,1)-SEARCH(\">\",'CFR - XML import'!$A113,1)-2)))","v":0},{"$f":"IF(ISERROR(FIND(BA$3,'CFR - XML import'!$A113)),0,VALUE(MID('CFR - XML import'!$A113,SEARCH(\">\",'CFR - XML import'!$A113,1)+1,SEARCH(\"/\",'CFR - XML import'!$A113,1)-SEARCH(\">\",'CFR - XML import'!$A113,1)-2)))","v":0},{"$f":"IF(ISERROR(FIND(BB$3,'CFR - XML import'!$A113)),0,VALUE(MID('CFR - XML import'!$A113,SEARCH(\">\",'CFR - XML import'!$A113,1)+1,SEARCH(\"/\",'CFR - XML import'!$A113,1)-SEARCH(\">\",'CFR - XML import'!$A113,1)-2)))","v":0},{"$f":"IF(ISERROR(FIND(BC$3,'CFR - XML import'!$A113)),0,VALUE(MID('CFR - XML import'!$A113,SEARCH(\">\",'CFR - XML import'!$A113,1)+1,SEARCH(\"/\",'CFR - XML import'!$A113,1)-SEARCH(\">\",'CFR - XML import'!$A113,1)-2)))","v":0},{"$f":"IF(ISERROR(FIND(BD$3,'CFR - XML import'!$A113)),0,VALUE(MID('CFR - XML import'!$A113,SEARCH(\">\",'CFR - XML import'!$A113,1)+1,SEARCH(\"/\",'CFR - XML import'!$A113,1)-SEARCH(\">\",'CFR - XML import'!$A113,1)-2)))","v":0},{"$f":"IF(ISERROR(FIND(BE$3,'CFR - XML import'!$A113)),0,VALUE(MID('CFR - XML import'!$A113,SEARCH(\">\",'CFR - XML import'!$A113,1)+1,SEARCH(\"/\",'CFR - XML import'!$A113,1)-SEARCH(\">\",'CFR - XML import'!$A113,1)-2)))","v":0},{"$f":"IF(ISERROR(FIND(BF$3,'CFR - XML import'!$A113)),0,VALUE(MID('CFR - XML import'!$A113,SEARCH(\">\",'CFR - XML import'!$A113,1)+1,SEARCH(\"/\",'CFR - XML import'!$A113,1)-SEARCH(\">\",'CFR - XML import'!$A113,1)-2)))","v":0},{"$f":"IF(ISERROR(FIND(BG$3,'CFR - XML import'!$A113)),0,VALUE(MID('CFR - XML import'!$A113,SEARCH(\">\",'CFR - XML import'!$A113,1)+1,SEARCH(\"/\",'CFR - XML import'!$A113,1)-SEARCH(\">\",'CFR - XML import'!$A113,1)-2)))","v":0},{"$f":"IF(ISERROR(FIND(BH$3,'CFR - XML import'!$A113)),0,VALUE(MID('CFR - XML import'!$A113,SEARCH(\">\",'CFR - XML import'!$A113,1)+1,SEARCH(\"/\",'CFR - XML import'!$A113,1)-SEARCH(\">\",'CFR - XML import'!$A113,1)-2)))","v":0},{"$f":"IF(ISERROR(FIND(BI$3,'CFR - XML import'!$A113)),0,VALUE(MID('CFR - XML import'!$A113,SEARCH(\">\",'CFR - XML import'!$A113,1)+1,SEARCH(\"/\",'CFR - XML import'!$A113,1)-SEARCH(\">\",'CFR - XML import'!$A113,1)-2)))","v":0},{"$f":"IF(ISERROR(FIND(BJ$3,'CFR - XML import'!$A113)),0,VALUE(MID('CFR - XML import'!$A113,SEARCH(\">\",'CFR - XML import'!$A113,1)+1,SEARCH(\"/\",'CFR - XML import'!$A113,1)-SEARCH(\">\",'CFR - XML import'!$A113,1)-2)))","v":0},{"$f":"IF(ISERROR(FIND(BK$3,'CFR - XML import'!$A113)),0,VALUE(MID('CFR - XML import'!$A113,SEARCH(\">\",'CFR - XML import'!$A113,1)+1,SEARCH(\"/\",'CFR - XML import'!$A113,1)-SEARCH(\">\",'CFR - XML import'!$A113,1)-2)))","v":0},{"$f":"IF(ISERROR(FIND(BL$3,'CFR - XML import'!$A113)),0,VALUE(MID('CFR - XML import'!$A113,SEARCH(\">\",'CFR - XML import'!$A113,1)+1,SEARCH(\"/\",'CFR - XML import'!$A113,1)-SEARCH(\">\",'CFR - XML import'!$A113,1)-2)))","v":0},{"$f":"IF(ISERROR(FIND(BM$3,'CFR - XML import'!$A113)),0,VALUE(MID('CFR - XML import'!$A113,SEARCH(\">\",'CFR - XML import'!$A113,1)+1,SEARCH(\"/\",'CFR - XML import'!$A113,1)-SEARCH(\">\",'CFR - XML import'!$A113,1)-2)))","v":0},{"$f":"IF(ISERROR(FIND(BN$3,'CFR - XML import'!$A113)),0,VALUE(MID('CFR - XML import'!$A113,SEARCH(\">\",'CFR - XML import'!$A113,1)+1,SEARCH(\"/\",'CFR - XML import'!$A113,1)-SEARCH(\">\",'CFR - XML import'!$A113,1)-2)))","v":0},{"$f":"IF(ISERROR(FIND(BO$3,'CFR - XML import'!$A113)),0,VALUE(MID('CFR - XML import'!$A113,SEARCH(\">\",'CFR - XML import'!$A113,1)+1,SEARCH(\"/\",'CFR - XML import'!$A113,1)-SEARCH(\">\",'CFR - XML import'!$A113,1)-2)))","v":0},{"$f":"IF(ISERROR(FIND(BP$3,'CFR - XML import'!$A113)),0,VALUE(MID('CFR - XML import'!$A113,SEARCH(\">\",'CFR - XML import'!$A113,1)+1,SEARCH(\"/\",'CFR - XML import'!$A113,1)-SEARCH(\">\",'CFR - XML import'!$A113,1)-2)))","v":0},{"$f":"IF(ISERROR(FIND(BQ$3,'CFR - XML import'!$A113)),0,VALUE(MID('CFR - XML import'!$A113,SEARCH(\">\",'CFR - XML import'!$A113,1)+1,SEARCH(\"/\",'CFR - XML import'!$A113,1)-SEARCH(\">\",'CFR - XML import'!$A113,1)-2)))","v":0},{"$f":"IF(ISERROR(FIND(BR$3,'CFR - XML import'!$A113)),0,VALUE(MID('CFR - XML import'!$A113,SEARCH(\">\",'CFR - XML import'!$A113,1)+1,SEARCH(\"/\",'CFR - XML import'!$A113,1)-SEARCH(\">\",'CFR - XML import'!$A113,1)-2)))","v":0},{"$f":"IF(ISERROR(FIND(BS$3,'CFR - XML import'!$A113)),0,VALUE(MID('CFR - XML import'!$A113,SEARCH(\">\",'CFR - XML import'!$A113,1)+1,SEARCH(\"/\",'CFR - XML import'!$A113,1)-SEARCH(\">\",'CFR - XML import'!$A113,1)-2)))","v":0},{"$f":"IF(ISERROR(FIND(BT$3,'CFR - XML import'!$A113)),0,VALUE(MID('CFR - XML import'!$A113,SEARCH(\">\",'CFR - XML import'!$A113,1)+1,SEARCH(\"/\",'CFR - XML import'!$A113,1)-SEARCH(\">\",'CFR - XML import'!$A113,1)-2)))","v":0},{"$f":"IF(ISERROR(FIND(BU$3,'CFR - XML import'!$A113)),0,VALUE(MID('CFR - XML import'!$A113,SEARCH(\">\",'CFR - XML import'!$A113,1)+1,SEARCH(\"/\",'CFR - XML import'!$A113,1)-SEARCH(\">\",'CFR - XML import'!$A113,1)-2)))","v":0},{"$f":"IF(ISERROR(FIND(BV$3,'CFR - XML import'!$A113)),0,VALUE(MID('CFR - XML import'!$A113,SEARCH(\">\",'CFR - XML import'!$A113,1)+1,SEARCH(\"/\",'CFR - XML import'!$A113,1)-SEARCH(\">\",'CFR - XML import'!$A113,1)-2)))","v":0},{"$f":"IF(ISERROR(FIND(BW$3,'CFR - XML import'!$A113)),0,VALUE(MID('CFR - XML import'!$A113,SEARCH(\">\",'CFR - XML import'!$A113,1)+1,SEARCH(\"/\",'CFR - XML import'!$A113,1)-SEARCH(\">\",'CFR - XML import'!$A113,1)-2)))","v":0},{"$f":"IF(ISERROR(FIND(BX$3,'CFR - XML import'!$A113)),0,VALUE(MID('CFR - XML import'!$A113,SEARCH(\">\",'CFR - XML import'!$A113,1)+1,SEARCH(\"/\",'CFR - XML import'!$A113,1)-SEARCH(\">\",'CFR - XML import'!$A113,1)-2)))","v":0},{"$f":"IF(ISERROR(FIND(BY$3,'CFR - XML import'!$A113)),0,VALUE(MID('CFR - XML import'!$A113,SEARCH(\">\",'CFR - XML import'!$A113,1)+1,SEARCH(\"/\",'CFR - XML import'!$A113,1)-SEARCH(\">\",'CFR - XML import'!$A113,1)-2)))","v":0},{"$f":"IF(ISERROR(FIND(BZ$3,'CFR - XML import'!$A113)),0,VALUE(MID('CFR - XML import'!$A113,SEARCH(\">\",'CFR - XML import'!$A113,1)+1,SEARCH(\"/\",'CFR - XML import'!$A113,1)-SEARCH(\">\",'CFR - XML import'!$A113,1)-2)))","v":0},null,null,null,null,null,null,{"$f":"IF(ISERROR(IF(MID('CFR - XML import'!$A113,LEN($CF$4)+1,LEN('CFR - XML import'!$A113)-(2*LEN($CF$4)+1))=\"RMMS\",1,IF(MID('CFR - XML import'!$A113,LEN(\"    <InputSystem>\")+1,LEN('CFR - XML import'!$A113)-(LEN(\"    <InputSystem>\")+LEN($CF$4)+1))=\"SIMS\",2,0))),0,IF(MID('CFR - XML import'!$A113,LEN($CF$4)+1,LEN('CFR - XML import'!$A113)-(2*LEN($CF$4)+1))=\"RMMS\",1,IF(MID('CFR - XML import'!$A113,LEN(\"    <InputSystem>\")+1,LEN('CFR - XML import'!$A113)-(LEN(\"    <InputSystem>\")+LEN($CF$4)+1))=\"SIMS\",2,0)))","v":0},{"$f":"IF(ISERROR(FIND(CH$3,'CFR - XML import'!$A113)),0,MID('CFR - XML import'!$A113,SEARCH(\">\",'CFR - XML import'!$A113,1)+1,SEARCH(\"/\",'CFR - XML import'!$A113,1)-SEARCH(\">\",'CFR - XML import'!$A113,1)-2))","v":0},{"$f":"IF(ISERROR(FIND(CI$3,'CFR - XML import'!$A113)),0,MID('CFR - XML import'!$A113,SEARCH(\">\",'CFR - XML import'!$A113,1)+1,SEARCH(\"/\",'CFR - XML import'!$A113,1)-SEARCH(\">\",'CFR - XML import'!$A113,1)-2))","v":0},{"$f":"IF(ISERROR(FIND(CJ$3,'CFR - XML import'!$A113)),0,MID('CFR - XML import'!$A113,SEARCH(\">\",'CFR - XML import'!$A113,1)+1,SEARCH(\"/\",'CFR - XML import'!$A113,1)-SEARCH(\">\",'CFR - XML import'!$A113,1)-2))","v":0},{"$f":"IF(ISERROR(FIND(CK$3,'CFR - XML import'!$A113)),0,MID('CFR - XML import'!$A113,SEARCH(\">\",'CFR - XML import'!$A113,1)+1,SEARCH(\"/\",'CFR - XML import'!$A113,1)-SEARCH(\">\",'CFR - XML import'!$A113,1)-2))","v":0},{"$f":"IF(ISERROR(FIND(CL$3,'CFR - XML import'!$A113)),0,MID('CFR - XML import'!$A113,SEARCH(\">\",'CFR - XML import'!$A113,1)+1,SEARCH(\"/\",'CFR - XML import'!$A113,1)-SEARCH(\">\",'CFR - XML import'!$A113,1)-2))","v":0}]
[{"$f":"IF(AND('CFR - XML import'!A114<>\"\",LEFT('CFR - XML import'!A114,1)<>\"<\",LEFT('CFR - XML import'!A114,3)<>\"  <\",LEFT('CFR - XML import'!A114,5)<>\"    <\",LEFT('CFR - XML import'!A114,7)<>\"      <\",LEFT('CFR - XML import'!A114,9)<>\"        <\",$B$1=\"SIMS\"),'CFR - XML import'!A114,IF(AND(LEFT('CFR - XML import'!A114,9)=\"<Details>\",$B$1=\"RM\"),'CFR - XML import'!A114,\"\"))","v":""},{"$f":"IF(ISERROR(FIND(B$3,'CFR - XML import'!$A114)),0,VALUE(MID('CFR - XML import'!$A114,SEARCH(\">\",'CFR - XML import'!$A114,1)+1,SEARCH(\"/\",'CFR - XML import'!$A114,1)-SEARCH(\">\",'CFR - XML import'!$A114,1)-2)))","v":0},null,{"$f":"IF(ISERROR(FIND(D$3,'CFR - XML import'!$A114)),0,MID('CFR - XML import'!$A114,SEARCH(\">\",'CFR - XML import'!$A114,1)+1,SEARCH(\"/\",'CFR - XML import'!$A114,1)-SEARCH(\">\",'CFR - XML import'!$A114,1)-2))","v":0},{"$f":"IF(ISERROR(FIND(E$3,'CFR - XML import'!$A114)),0,MID('CFR - XML import'!$A114,SEARCH(\">\",'CFR - XML import'!$A114,1)+1,SEARCH(\"/\",'CFR - XML import'!$A114,1)-SEARCH(\">\",'CFR - XML import'!$A114,1)-2))","v":0},{"$f":"IF($B$1=\"SIMS\",IF(ISERROR(FIND(F$3,'CFR - XML import'!$A114)),0,VALUE(MID('CFR - XML import'!$A114,15,10))),IF(ISERROR(FIND(F$3,'CFR - XML import'!$A114)),0,VALUE(MID('CFR - XML import'!$A114,11,10))))","v":"00:00:00"},{"$f":"IF(ISERROR(FIND(G$3,'CFR - XML import'!$A114)),0,VALUE(MID('CFR - XML import'!$A114,SEARCH(\">\",'CFR - XML import'!$A114,1)+1,SEARCH(\"/\",'CFR - XML import'!$A114,1)-SEARCH(\">\",'CFR - XML import'!$A114,1)-2)))","v":0},{"$f":"IF(ISERROR(FIND(H$3,'CFR - XML import'!$A114)),0,VALUE(MID('CFR - XML import'!$A114,SEARCH(\">\",'CFR - XML import'!$A114,1)+1,SEARCH(\"/\",'CFR - XML import'!$A114,1)-SEARCH(\">\",'CFR - XML import'!$A114,1)-2)))","v":0},{"$f":"IF(ISERROR(FIND(I$3,'CFR - XML import'!$A114)),0,VALUE(MID('CFR - XML import'!$A114,SEARCH(\">\",'CFR - XML import'!$A114,1)+1,SEARCH(\"/\",'CFR - XML import'!$A114,1)-SEARCH(\">\",'CFR - XML import'!$A114,1)-2)))","v":0},{"$f":"IF(ISERROR(FIND(J$3,'CFR - XML import'!$A114)),0,VALUE(MID('CFR - XML import'!$A114,SEARCH(\">\",'CFR - XML import'!$A114,1)+1,SEARCH(\"/\",'CFR - XML import'!$A114,1)-SEARCH(\">\",'CFR - XML import'!$A114,1)-2)))","v":0},{"$f":"IF(ISERROR(FIND(K$3,'CFR - XML import'!$A114)),0,VALUE(MID('CFR - XML import'!$A114,SEARCH(\">\",'CFR - XML import'!$A114,1)+1,SEARCH(\"/\",'CFR - XML import'!$A114,1)-SEARCH(\">\",'CFR - XML import'!$A114,1)-2)))","v":0},{"$f":"IF(ISERROR(FIND(L$3,'CFR - XML import'!$A114)),0,VALUE(MID('CFR - XML import'!$A114,SEARCH(\">\",'CFR - XML import'!$A114,1)+1,SEARCH(\"/\",'CFR - XML import'!$A114,1)-SEARCH(\">\",'CFR - XML import'!$A114,1)-2)))","v":0},{"$f":"IF(ISERROR(FIND(M$3,'CFR - XML import'!$A114)),0,VALUE(MID('CFR - XML import'!$A114,SEARCH(\">\",'CFR - XML import'!$A114,1)+1,SEARCH(\"/\",'CFR - XML import'!$A114,1)-SEARCH(\">\",'CFR - XML import'!$A114,1)-2)))","v":0},{"$f":"IF(ISERROR(FIND(N$3,'CFR - XML import'!$A114)),0,VALUE(MID('CFR - XML import'!$A114,SEARCH(\">\",'CFR - XML import'!$A114,1)+1,SEARCH(\"/\",'CFR - XML import'!$A114,1)-SEARCH(\">\",'CFR - XML import'!$A114,1)-2)))","v":0},{"$f":"IF(ISERROR(FIND(O$3,'CFR - XML import'!$A114)),0,VALUE(MID('CFR - XML import'!$A114,SEARCH(\">\",'CFR - XML import'!$A114,1)+1,SEARCH(\"/\",'CFR - XML import'!$A114,1)-SEARCH(\">\",'CFR - XML import'!$A114,1)-2)))","v":0},{"$f":"IF(ISERROR(FIND(P$3,'CFR - XML import'!$A114)),0,VALUE(MID('CFR - XML import'!$A114,SEARCH(\">\",'CFR - XML import'!$A114,1)+1,SEARCH(\"/\",'CFR - XML import'!$A114,1)-SEARCH(\">\",'CFR - XML import'!$A114,1)-2)))","v":0},{"$f":"IF(ISERROR(FIND(Q$3,'CFR - XML import'!$A114)),0,VALUE(MID('CFR - XML import'!$A114,SEARCH(\">\",'CFR - XML import'!$A114,1)+1,SEARCH(\"/\",'CFR - XML import'!$A114,1)-SEARCH(\">\",'CFR - XML import'!$A114,1)-2)))","v":0},{"$f":"IF(ISERROR(FIND(R$3,'CFR - XML import'!$A114)),0,VALUE(MID('CFR - XML import'!$A114,SEARCH(\">\",'CFR - XML import'!$A114,1)+1,SEARCH(\"/\",'CFR - XML import'!$A114,1)-SEARCH(\">\",'CFR - XML import'!$A114,1)-2)))","v":0},{"$f":"IF(ISERROR(FIND(S$3,'CFR - XML import'!$A114)),0,VALUE(MID('CFR - XML import'!$A114,SEARCH(\">\",'CFR - XML import'!$A114,1)+1,SEARCH(\"/\",'CFR - XML import'!$A114,1)-SEARCH(\">\",'CFR - XML import'!$A114,1)-2)))","v":0},{"$f":"IF(ISERROR(FIND(T$3,'CFR - XML import'!$A114)),0,VALUE(MID('CFR - XML import'!$A114,SEARCH(\">\",'CFR - XML import'!$A114,1)+1,SEARCH(\"/\",'CFR - XML import'!$A114,1)-SEARCH(\">\",'CFR - XML import'!$A114,1)-2)))","v":0},{"$f":"IF(ISERROR(FIND(U$3,'CFR - XML import'!$A114)),0,VALUE(MID('CFR - XML import'!$A114,SEARCH(\">\",'CFR - XML import'!$A114,1)+1,SEARCH(\"/\",'CFR - XML import'!$A114,1)-SEARCH(\">\",'CFR - XML import'!$A114,1)-2)))","v":0},{"$f":"IF(ISERROR(FIND(V$3,'CFR - XML import'!$A114)),0,VALUE(MID('CFR - XML import'!$A114,SEARCH(\">\",'CFR - XML import'!$A114,1)+1,SEARCH(\"/\",'CFR - XML import'!$A114,1)-SEARCH(\">\",'CFR - XML import'!$A114,1)-2)))","v":0},{"$f":"IF(ISERROR(FIND(W$3,'CFR - XML import'!$A114)),0,VALUE(MID('CFR - XML import'!$A114,SEARCH(\">\",'CFR - XML import'!$A114,1)+1,SEARCH(\"/\",'CFR - XML import'!$A114,1)-SEARCH(\">\",'CFR - XML import'!$A114,1)-2)))","v":0},null,{"$f":"IF(ISERROR(FIND(Y$3,'CFR - XML import'!$A114)),0,VALUE(MID('CFR - XML import'!$A114,SEARCH(\">\",'CFR - XML import'!$A114,1)+1,SEARCH(\"/\",'CFR - XML import'!$A114,1)-SEARCH(\">\",'CFR - XML import'!$A114,1)-2)))","v":0},{"$f":"IF(ISERROR(FIND(Z$3,'CFR - XML import'!$A114)),0,VALUE(MID('CFR - XML import'!$A114,SEARCH(\">\",'CFR - XML import'!$A114,1)+1,SEARCH(\"/\",'CFR - XML import'!$A114,1)-SEARCH(\">\",'CFR - XML import'!$A114,1)-2)))","v":0},{"$f":"IF(ISERROR(FIND(AA$3,'CFR - XML import'!$A114)),0,VALUE(MID('CFR - XML import'!$A114,SEARCH(\">\",'CFR - XML import'!$A114,1)+1,SEARCH(\"/\",'CFR - XML import'!$A114,1)-SEARCH(\">\",'CFR - XML import'!$A114,1)-2)))","v":0},{"$f":"IF(ISERROR(FIND(AB$3,'CFR - XML import'!$A114)),0,VALUE(MID('CFR - XML import'!$A114,SEARCH(\">\",'CFR - XML import'!$A114,1)+1,SEARCH(\"/\",'CFR - XML import'!$A114,1)-SEARCH(\">\",'CFR - XML import'!$A114,1)-2)))","v":0},{"$f":"IF(ISERROR(FIND(AC$3,'CFR - XML import'!$A114)),0,VALUE(MID('CFR - XML import'!$A114,SEARCH(\">\",'CFR - XML import'!$A114,1)+1,SEARCH(\"/\",'CFR - XML import'!$A114,1)-SEARCH(\">\",'CFR - XML import'!$A114,1)-2)))","v":0},{"$f":"IF(ISERROR(FIND(AD$3,'CFR - XML import'!$A114)),0,VALUE(MID('CFR - XML import'!$A114,SEARCH(\">\",'CFR - XML import'!$A114,1)+1,SEARCH(\"/\",'CFR - XML import'!$A114,1)-SEARCH(\">\",'CFR - XML import'!$A114,1)-2)))","v":0},{"$f":"IF(ISERROR(FIND(AE$3,'CFR - XML import'!$A114)),0,VALUE(MID('CFR - XML import'!$A114,SEARCH(\">\",'CFR - XML import'!$A114,1)+1,SEARCH(\"/\",'CFR - XML import'!$A114,1)-SEARCH(\">\",'CFR - XML import'!$A114,1)-2)))","v":0},{"$f":"IF(ISERROR(FIND(AF$3,'CFR - XML import'!$A114)),0,VALUE(MID('CFR - XML import'!$A114,SEARCH(\">\",'CFR - XML import'!$A114,1)+1,SEARCH(\"/\",'CFR - XML import'!$A114,1)-SEARCH(\">\",'CFR - XML import'!$A114,1)-2)))","v":0},{"$f":"IF(ISERROR(FIND(AG$3,'CFR - XML import'!$A114)),0,VALUE(MID('CFR - XML import'!$A114,SEARCH(\">\",'CFR - XML import'!$A114,1)+1,SEARCH(\"/\",'CFR - XML import'!$A114,1)-SEARCH(\">\",'CFR - XML import'!$A114,1)-2)))","v":0},{"$f":"IF(ISERROR(FIND(AH$3,'CFR - XML import'!$A114)),0,VALUE(MID('CFR - XML import'!$A114,SEARCH(\">\",'CFR - XML import'!$A114,1)+1,SEARCH(\"/\",'CFR - XML import'!$A114,1)-SEARCH(\">\",'CFR - XML import'!$A114,1)-2)))","v":0},{"$f":"IF(ISERROR(FIND(AI$3,'CFR - XML import'!$A114)),0,VALUE(MID('CFR - XML import'!$A114,SEARCH(\">\",'CFR - XML import'!$A114,1)+1,SEARCH(\"/\",'CFR - XML import'!$A114,1)-SEARCH(\">\",'CFR - XML import'!$A114,1)-2)))","v":0},{"$f":"IF(ISERROR(FIND(AJ$3,'CFR - XML import'!$A114)),0,VALUE(MID('CFR - XML import'!$A114,SEARCH(\">\",'CFR - XML import'!$A114,1)+1,SEARCH(\"/\",'CFR - XML import'!$A114,1)-SEARCH(\">\",'CFR - XML import'!$A114,1)-2)))","v":0},{"$f":"IF(ISERROR(FIND(AK$3,'CFR - XML import'!$A114)),0,VALUE(MID('CFR - XML import'!$A114,SEARCH(\">\",'CFR - XML import'!$A114,1)+1,SEARCH(\"/\",'CFR - XML import'!$A114,1)-SEARCH(\">\",'CFR - XML import'!$A114,1)-2)))","v":0},{"$f":"IF(ISERROR(FIND(AL$3,'CFR - XML import'!$A114)),0,VALUE(MID('CFR - XML import'!$A114,SEARCH(\">\",'CFR - XML import'!$A114,1)+1,SEARCH(\"/\",'CFR - XML import'!$A114,1)-SEARCH(\">\",'CFR - XML import'!$A114,1)-2)))","v":0},{"$f":"IF(ISERROR(FIND(AM$3,'CFR - XML import'!$A114)),0,VALUE(MID('CFR - XML import'!$A114,SEARCH(\">\",'CFR - XML import'!$A114,1)+1,SEARCH(\"/\",'CFR - XML import'!$A114,1)-SEARCH(\">\",'CFR - XML import'!$A114,1)-2)))","v":0},{"$f":"IF(ISERROR(FIND(AN$3,'CFR - XML import'!$A114)),0,VALUE(MID('CFR - XML import'!$A114,SEARCH(\">\",'CFR - XML import'!$A114,1)+1,SEARCH(\"/\",'CFR - XML import'!$A114,1)-SEARCH(\">\",'CFR - XML import'!$A114,1)-2)))","v":0},{"$f":"IF(ISERROR(FIND(AO$3,'CFR - XML import'!$A114)),0,VALUE(MID('CFR - XML import'!$A114,SEARCH(\">\",'CFR - XML import'!$A114,1)+1,SEARCH(\"/\",'CFR - XML import'!$A114,1)-SEARCH(\">\",'CFR - XML import'!$A114,1)-2)))","v":0},{"$f":"IF(ISERROR(FIND(AP$3,'CFR - XML import'!$A114)),0,VALUE(MID('CFR - XML import'!$A114,SEARCH(\">\",'CFR - XML import'!$A114,1)+1,SEARCH(\"/\",'CFR - XML import'!$A114,1)-SEARCH(\">\",'CFR - XML import'!$A114,1)-2)))","v":0},{"$f":"IF(ISERROR(FIND(AQ$3,'CFR - XML import'!$A114)),0,VALUE(MID('CFR - XML import'!$A114,SEARCH(\">\",'CFR - XML import'!$A114,1)+1,SEARCH(\"/\",'CFR - XML import'!$A114,1)-SEARCH(\">\",'CFR - XML import'!$A114,1)-2)))","v":0},{"$f":"IF(ISERROR(FIND(AR$3,'CFR - XML import'!$A114)),0,VALUE(MID('CFR - XML import'!$A114,SEARCH(\">\",'CFR - XML import'!$A114,1)+1,SEARCH(\"/\",'CFR - XML import'!$A114,1)-SEARCH(\">\",'CFR - XML import'!$A114,1)-2)))","v":0},{"$f":"IF(ISERROR(FIND(AS$3,'CFR - XML import'!$A114)),0,VALUE(MID('CFR - XML import'!$A114,SEARCH(\">\",'CFR - XML import'!$A114,1)+1,SEARCH(\"/\",'CFR - XML import'!$A114,1)-SEARCH(\">\",'CFR - XML import'!$A114,1)-2)))","v":0},{"$f":"IF(ISERROR(FIND(AT$3,'CFR - XML import'!$A114)),0,VALUE(MID('CFR - XML import'!$A114,SEARCH(\">\",'CFR - XML import'!$A114,1)+1,SEARCH(\"/\",'CFR - XML import'!$A114,1)-SEARCH(\">\",'CFR - XML import'!$A114,1)-2)))","v":0},{"$f":"IF(ISERROR(FIND(AU$3,'CFR - XML import'!$A114)),0,VALUE(MID('CFR - XML import'!$A114,SEARCH(\">\",'CFR - XML import'!$A114,1)+1,SEARCH(\"/\",'CFR - XML import'!$A114,1)-SEARCH(\">\",'CFR - XML import'!$A114,1)-2)))","v":0},{"$f":"IF(ISERROR(FIND(AV$3,'CFR - XML import'!$A114)),0,VALUE(MID('CFR - XML import'!$A114,SEARCH(\">\",'CFR - XML import'!$A114,1)+1,SEARCH(\"/\",'CFR - XML import'!$A114,1)-SEARCH(\">\",'CFR - XML import'!$A114,1)-2)))","v":0},{"$f":"IF(ISERROR(FIND(AW$3,'CFR - XML import'!$A114)),0,VALUE(MID('CFR - XML import'!$A114,SEARCH(\">\",'CFR - XML import'!$A114,1)+1,SEARCH(\"/\",'CFR - XML import'!$A114,1)-SEARCH(\">\",'CFR - XML import'!$A114,1)-2)))","v":0},{"$f":"IF(ISERROR(FIND(AX$3,'CFR - XML import'!$A114)),0,VALUE(MID('CFR - XML import'!$A114,SEARCH(\">\",'CFR - XML import'!$A114,1)+1,SEARCH(\"/\",'CFR - XML import'!$A114,1)-SEARCH(\">\",'CFR - XML import'!$A114,1)-2)))","v":0},{"$f":"IF(ISERROR(FIND(AY$3,'CFR - XML import'!$A114)),0,VALUE(MID('CFR - XML import'!$A114,SEARCH(\">\",'CFR - XML import'!$A114,1)+1,SEARCH(\"/\",'CFR - XML import'!$A114,1)-SEARCH(\">\",'CFR - XML import'!$A114,1)-2)))","v":0},{"$f":"IF(ISERROR(FIND(AZ$3,'CFR - XML import'!$A114)),0,VALUE(MID('CFR - XML import'!$A114,SEARCH(\">\",'CFR - XML import'!$A114,1)+1,SEARCH(\"/\",'CFR - XML import'!$A114,1)-SEARCH(\">\",'CFR - XML import'!$A114,1)-2)))","v":0},{"$f":"IF(ISERROR(FIND(BA$3,'CFR - XML import'!$A114)),0,VALUE(MID('CFR - XML import'!$A114,SEARCH(\">\",'CFR - XML import'!$A114,1)+1,SEARCH(\"/\",'CFR - XML import'!$A114,1)-SEARCH(\">\",'CFR - XML import'!$A114,1)-2)))","v":0},{"$f":"IF(ISERROR(FIND(BB$3,'CFR - XML import'!$A114)),0,VALUE(MID('CFR - XML import'!$A114,SEARCH(\">\",'CFR - XML import'!$A114,1)+1,SEARCH(\"/\",'CFR - XML import'!$A114,1)-SEARCH(\">\",'CFR - XML import'!$A114,1)-2)))","v":0},{"$f":"IF(ISERROR(FIND(BC$3,'CFR - XML import'!$A114)),0,VALUE(MID('CFR - XML import'!$A114,SEARCH(\">\",'CFR - XML import'!$A114,1)+1,SEARCH(\"/\",'CFR - XML import'!$A114,1)-SEARCH(\">\",'CFR - XML import'!$A114,1)-2)))","v":0},{"$f":"IF(ISERROR(FIND(BD$3,'CFR - XML import'!$A114)),0,VALUE(MID('CFR - XML import'!$A114,SEARCH(\">\",'CFR - XML import'!$A114,1)+1,SEARCH(\"/\",'CFR - XML import'!$A114,1)-SEARCH(\">\",'CFR - XML import'!$A114,1)-2)))","v":0},{"$f":"IF(ISERROR(FIND(BE$3,'CFR - XML import'!$A114)),0,VALUE(MID('CFR - XML import'!$A114,SEARCH(\">\",'CFR - XML import'!$A114,1)+1,SEARCH(\"/\",'CFR - XML import'!$A114,1)-SEARCH(\">\",'CFR - XML import'!$A114,1)-2)))","v":0},{"$f":"IF(ISERROR(FIND(BF$3,'CFR - XML import'!$A114)),0,VALUE(MID('CFR - XML import'!$A114,SEARCH(\">\",'CFR - XML import'!$A114,1)+1,SEARCH(\"/\",'CFR - XML import'!$A114,1)-SEARCH(\">\",'CFR - XML import'!$A114,1)-2)))","v":0},{"$f":"IF(ISERROR(FIND(BG$3,'CFR - XML import'!$A114)),0,VALUE(MID('CFR - XML import'!$A114,SEARCH(\">\",'CFR - XML import'!$A114,1)+1,SEARCH(\"/\",'CFR - XML import'!$A114,1)-SEARCH(\">\",'CFR - XML import'!$A114,1)-2)))","v":0},{"$f":"IF(ISERROR(FIND(BH$3,'CFR - XML import'!$A114)),0,VALUE(MID('CFR - XML import'!$A114,SEARCH(\">\",'CFR - XML import'!$A114,1)+1,SEARCH(\"/\",'CFR - XML import'!$A114,1)-SEARCH(\">\",'CFR - XML import'!$A114,1)-2)))","v":0},{"$f":"IF(ISERROR(FIND(BI$3,'CFR - XML import'!$A114)),0,VALUE(MID('CFR - XML import'!$A114,SEARCH(\">\",'CFR - XML import'!$A114,1)+1,SEARCH(\"/\",'CFR - XML import'!$A114,1)-SEARCH(\">\",'CFR - XML import'!$A114,1)-2)))","v":0},{"$f":"IF(ISERROR(FIND(BJ$3,'CFR - XML import'!$A114)),0,VALUE(MID('CFR - XML import'!$A114,SEARCH(\">\",'CFR - XML import'!$A114,1)+1,SEARCH(\"/\",'CFR - XML import'!$A114,1)-SEARCH(\">\",'CFR - XML import'!$A114,1)-2)))","v":0},{"$f":"IF(ISERROR(FIND(BK$3,'CFR - XML import'!$A114)),0,VALUE(MID('CFR - XML import'!$A114,SEARCH(\">\",'CFR - XML import'!$A114,1)+1,SEARCH(\"/\",'CFR - XML import'!$A114,1)-SEARCH(\">\",'CFR - XML import'!$A114,1)-2)))","v":0},{"$f":"IF(ISERROR(FIND(BL$3,'CFR - XML import'!$A114)),0,VALUE(MID('CFR - XML import'!$A114,SEARCH(\">\",'CFR - XML import'!$A114,1)+1,SEARCH(\"/\",'CFR - XML import'!$A114,1)-SEARCH(\">\",'CFR - XML import'!$A114,1)-2)))","v":0},{"$f":"IF(ISERROR(FIND(BM$3,'CFR - XML import'!$A114)),0,VALUE(MID('CFR - XML import'!$A114,SEARCH(\">\",'CFR - XML import'!$A114,1)+1,SEARCH(\"/\",'CFR - XML import'!$A114,1)-SEARCH(\">\",'CFR - XML import'!$A114,1)-2)))","v":0},{"$f":"IF(ISERROR(FIND(BN$3,'CFR - XML import'!$A114)),0,VALUE(MID('CFR - XML import'!$A114,SEARCH(\">\",'CFR - XML import'!$A114,1)+1,SEARCH(\"/\",'CFR - XML import'!$A114,1)-SEARCH(\">\",'CFR - XML import'!$A114,1)-2)))","v":0},{"$f":"IF(ISERROR(FIND(BO$3,'CFR - XML import'!$A114)),0,VALUE(MID('CFR - XML import'!$A114,SEARCH(\">\",'CFR - XML import'!$A114,1)+1,SEARCH(\"/\",'CFR - XML import'!$A114,1)-SEARCH(\">\",'CFR - XML import'!$A114,1)-2)))","v":0},{"$f":"IF(ISERROR(FIND(BP$3,'CFR - XML import'!$A114)),0,VALUE(MID('CFR - XML import'!$A114,SEARCH(\">\",'CFR - XML import'!$A114,1)+1,SEARCH(\"/\",'CFR - XML import'!$A114,1)-SEARCH(\">\",'CFR - XML import'!$A114,1)-2)))","v":0},{"$f":"IF(ISERROR(FIND(BQ$3,'CFR - XML import'!$A114)),0,VALUE(MID('CFR - XML import'!$A114,SEARCH(\">\",'CFR - XML import'!$A114,1)+1,SEARCH(\"/\",'CFR - XML import'!$A114,1)-SEARCH(\">\",'CFR - XML import'!$A114,1)-2)))","v":0},{"$f":"IF(ISERROR(FIND(BR$3,'CFR - XML import'!$A114)),0,VALUE(MID('CFR - XML import'!$A114,SEARCH(\">\",'CFR - XML import'!$A114,1)+1,SEARCH(\"/\",'CFR - XML import'!$A114,1)-SEARCH(\">\",'CFR - XML import'!$A114,1)-2)))","v":0},{"$f":"IF(ISERROR(FIND(BS$3,'CFR - XML import'!$A114)),0,VALUE(MID('CFR - XML import'!$A114,SEARCH(\">\",'CFR - XML import'!$A114,1)+1,SEARCH(\"/\",'CFR - XML import'!$A114,1)-SEARCH(\">\",'CFR - XML import'!$A114,1)-2)))","v":0},{"$f":"IF(ISERROR(FIND(BT$3,'CFR - XML import'!$A114)),0,VALUE(MID('CFR - XML import'!$A114,SEARCH(\">\",'CFR - XML import'!$A114,1)+1,SEARCH(\"/\",'CFR - XML import'!$A114,1)-SEARCH(\">\",'CFR - XML import'!$A114,1)-2)))","v":0},{"$f":"IF(ISERROR(FIND(BU$3,'CFR - XML import'!$A114)),0,VALUE(MID('CFR - XML import'!$A114,SEARCH(\">\",'CFR - XML import'!$A114,1)+1,SEARCH(\"/\",'CFR - XML import'!$A114,1)-SEARCH(\">\",'CFR - XML import'!$A114,1)-2)))","v":0},{"$f":"IF(ISERROR(FIND(BV$3,'CFR - XML import'!$A114)),0,VALUE(MID('CFR - XML import'!$A114,SEARCH(\">\",'CFR - XML import'!$A114,1)+1,SEARCH(\"/\",'CFR - XML import'!$A114,1)-SEARCH(\">\",'CFR - XML import'!$A114,1)-2)))","v":0},{"$f":"IF(ISERROR(FIND(BW$3,'CFR - XML import'!$A114)),0,VALUE(MID('CFR - XML import'!$A114,SEARCH(\">\",'CFR - XML import'!$A114,1)+1,SEARCH(\"/\",'CFR - XML import'!$A114,1)-SEARCH(\">\",'CFR - XML import'!$A114,1)-2)))","v":0},{"$f":"IF(ISERROR(FIND(BX$3,'CFR - XML import'!$A114)),0,VALUE(MID('CFR - XML import'!$A114,SEARCH(\">\",'CFR - XML import'!$A114,1)+1,SEARCH(\"/\",'CFR - XML import'!$A114,1)-SEARCH(\">\",'CFR - XML import'!$A114,1)-2)))","v":0},{"$f":"IF(ISERROR(FIND(BY$3,'CFR - XML import'!$A114)),0,VALUE(MID('CFR - XML import'!$A114,SEARCH(\">\",'CFR - XML import'!$A114,1)+1,SEARCH(\"/\",'CFR - XML import'!$A114,1)-SEARCH(\">\",'CFR - XML import'!$A114,1)-2)))","v":0},{"$f":"IF(ISERROR(FIND(BZ$3,'CFR - XML import'!$A114)),0,VALUE(MID('CFR - XML import'!$A114,SEARCH(\">\",'CFR - XML import'!$A114,1)+1,SEARCH(\"/\",'CFR - XML import'!$A114,1)-SEARCH(\">\",'CFR - XML import'!$A114,1)-2)))","v":0},null,null,null,null,null,null,{"$f":"IF(ISERROR(IF(MID('CFR - XML import'!$A114,LEN($CF$4)+1,LEN('CFR - XML import'!$A114)-(2*LEN($CF$4)+1))=\"RMMS\",1,IF(MID('CFR - XML import'!$A114,LEN(\"    <InputSystem>\")+1,LEN('CFR - XML import'!$A114)-(LEN(\"    <InputSystem>\")+LEN($CF$4)+1))=\"SIMS\",2,0))),0,IF(MID('CFR - XML import'!$A114,LEN($CF$4)+1,LEN('CFR - XML import'!$A114)-(2*LEN($CF$4)+1))=\"RMMS\",1,IF(MID('CFR - XML import'!$A114,LEN(\"    <InputSystem>\")+1,LEN('CFR - XML import'!$A114)-(LEN(\"    <InputSystem>\")+LEN($CF$4)+1))=\"SIMS\",2,0)))","v":0},{"$f":"IF(ISERROR(FIND(CH$3,'CFR - XML import'!$A114)),0,MID('CFR - XML import'!$A114,SEARCH(\">\",'CFR - XML import'!$A114,1)+1,SEARCH(\"/\",'CFR - XML import'!$A114,1)-SEARCH(\">\",'CFR - XML import'!$A114,1)-2))","v":0},{"$f":"IF(ISERROR(FIND(CI$3,'CFR - XML import'!$A114)),0,MID('CFR - XML import'!$A114,SEARCH(\">\",'CFR - XML import'!$A114,1)+1,SEARCH(\"/\",'CFR - XML import'!$A114,1)-SEARCH(\">\",'CFR - XML import'!$A114,1)-2))","v":0},{"$f":"IF(ISERROR(FIND(CJ$3,'CFR - XML import'!$A114)),0,MID('CFR - XML import'!$A114,SEARCH(\">\",'CFR - XML import'!$A114,1)+1,SEARCH(\"/\",'CFR - XML import'!$A114,1)-SEARCH(\">\",'CFR - XML import'!$A114,1)-2))","v":0},{"$f":"IF(ISERROR(FIND(CK$3,'CFR - XML import'!$A114)),0,MID('CFR - XML import'!$A114,SEARCH(\">\",'CFR - XML import'!$A114,1)+1,SEARCH(\"/\",'CFR - XML import'!$A114,1)-SEARCH(\">\",'CFR - XML import'!$A114,1)-2))","v":0},{"$f":"IF(ISERROR(FIND(CL$3,'CFR - XML import'!$A114)),0,MID('CFR - XML import'!$A114,SEARCH(\">\",'CFR - XML import'!$A114,1)+1,SEARCH(\"/\",'CFR - XML import'!$A114,1)-SEARCH(\">\",'CFR - XML import'!$A114,1)-2))","v":0}]
[{"$f":"IF(AND('CFR - XML import'!A115<>\"\",LEFT('CFR - XML import'!A115,1)<>\"<\",LEFT('CFR - XML import'!A115,3)<>\"  <\",LEFT('CFR - XML import'!A115,5)<>\"    <\",LEFT('CFR - XML import'!A115,7)<>\"      <\",LEFT('CFR - XML import'!A115,9)<>\"        <\",$B$1=\"SIMS\"),'CFR - XML import'!A115,IF(AND(LEFT('CFR - XML import'!A115,9)=\"<Details>\",$B$1=\"RM\"),'CFR - XML import'!A115,\"\"))","v":""},{"$f":"IF(ISERROR(FIND(B$3,'CFR - XML import'!$A115)),0,VALUE(MID('CFR - XML import'!$A115,SEARCH(\">\",'CFR - XML import'!$A115,1)+1,SEARCH(\"/\",'CFR - XML import'!$A115,1)-SEARCH(\">\",'CFR - XML import'!$A115,1)-2)))","v":0},null,{"$f":"IF(ISERROR(FIND(D$3,'CFR - XML import'!$A115)),0,MID('CFR - XML import'!$A115,SEARCH(\">\",'CFR - XML import'!$A115,1)+1,SEARCH(\"/\",'CFR - XML import'!$A115,1)-SEARCH(\">\",'CFR - XML import'!$A115,1)-2))","v":0},{"$f":"IF(ISERROR(FIND(E$3,'CFR - XML import'!$A115)),0,MID('CFR - XML import'!$A115,SEARCH(\">\",'CFR - XML import'!$A115,1)+1,SEARCH(\"/\",'CFR - XML import'!$A115,1)-SEARCH(\">\",'CFR - XML import'!$A115,1)-2))","v":0},{"$f":"IF($B$1=\"SIMS\",IF(ISERROR(FIND(F$3,'CFR - XML import'!$A115)),0,VALUE(MID('CFR - XML import'!$A115,15,10))),IF(ISERROR(FIND(F$3,'CFR - XML import'!$A115)),0,VALUE(MID('CFR - XML import'!$A115,11,10))))","v":"00:00:00"},{"$f":"IF(ISERROR(FIND(G$3,'CFR - XML import'!$A115)),0,VALUE(MID('CFR - XML import'!$A115,SEARCH(\">\",'CFR - XML import'!$A115,1)+1,SEARCH(\"/\",'CFR - XML import'!$A115,1)-SEARCH(\">\",'CFR - XML import'!$A115,1)-2)))","v":0},{"$f":"IF(ISERROR(FIND(H$3,'CFR - XML import'!$A115)),0,VALUE(MID('CFR - XML import'!$A115,SEARCH(\">\",'CFR - XML import'!$A115,1)+1,SEARCH(\"/\",'CFR - XML import'!$A115,1)-SEARCH(\">\",'CFR - XML import'!$A115,1)-2)))","v":0},{"$f":"IF(ISERROR(FIND(I$3,'CFR - XML import'!$A115)),0,VALUE(MID('CFR - XML import'!$A115,SEARCH(\">\",'CFR - XML import'!$A115,1)+1,SEARCH(\"/\",'CFR - XML import'!$A115,1)-SEARCH(\">\",'CFR - XML import'!$A115,1)-2)))","v":0},{"$f":"IF(ISERROR(FIND(J$3,'CFR - XML import'!$A115)),0,VALUE(MID('CFR - XML import'!$A115,SEARCH(\">\",'CFR - XML import'!$A115,1)+1,SEARCH(\"/\",'CFR - XML import'!$A115,1)-SEARCH(\">\",'CFR - XML import'!$A115,1)-2)))","v":0},{"$f":"IF(ISERROR(FIND(K$3,'CFR - XML import'!$A115)),0,VALUE(MID('CFR - XML import'!$A115,SEARCH(\">\",'CFR - XML import'!$A115,1)+1,SEARCH(\"/\",'CFR - XML import'!$A115,1)-SEARCH(\">\",'CFR - XML import'!$A115,1)-2)))","v":0},{"$f":"IF(ISERROR(FIND(L$3,'CFR - XML import'!$A115)),0,VALUE(MID('CFR - XML import'!$A115,SEARCH(\">\",'CFR - XML import'!$A115,1)+1,SEARCH(\"/\",'CFR - XML import'!$A115,1)-SEARCH(\">\",'CFR - XML import'!$A115,1)-2)))","v":0},{"$f":"IF(ISERROR(FIND(M$3,'CFR - XML import'!$A115)),0,VALUE(MID('CFR - XML import'!$A115,SEARCH(\">\",'CFR - XML import'!$A115,1)+1,SEARCH(\"/\",'CFR - XML import'!$A115,1)-SEARCH(\">\",'CFR - XML import'!$A115,1)-2)))","v":0},{"$f":"IF(ISERROR(FIND(N$3,'CFR - XML import'!$A115)),0,VALUE(MID('CFR - XML import'!$A115,SEARCH(\">\",'CFR - XML import'!$A115,1)+1,SEARCH(\"/\",'CFR - XML import'!$A115,1)-SEARCH(\">\",'CFR - XML import'!$A115,1)-2)))","v":0},{"$f":"IF(ISERROR(FIND(O$3,'CFR - XML import'!$A115)),0,VALUE(MID('CFR - XML import'!$A115,SEARCH(\">\",'CFR - XML import'!$A115,1)+1,SEARCH(\"/\",'CFR - XML import'!$A115,1)-SEARCH(\">\",'CFR - XML import'!$A115,1)-2)))","v":0},{"$f":"IF(ISERROR(FIND(P$3,'CFR - XML import'!$A115)),0,VALUE(MID('CFR - XML import'!$A115,SEARCH(\">\",'CFR - XML import'!$A115,1)+1,SEARCH(\"/\",'CFR - XML import'!$A115,1)-SEARCH(\">\",'CFR - XML import'!$A115,1)-2)))","v":0},{"$f":"IF(ISERROR(FIND(Q$3,'CFR - XML import'!$A115)),0,VALUE(MID('CFR - XML import'!$A115,SEARCH(\">\",'CFR - XML import'!$A115,1)+1,SEARCH(\"/\",'CFR - XML import'!$A115,1)-SEARCH(\">\",'CFR - XML import'!$A115,1)-2)))","v":0},{"$f":"IF(ISERROR(FIND(R$3,'CFR - XML import'!$A115)),0,VALUE(MID('CFR - XML import'!$A115,SEARCH(\">\",'CFR - XML import'!$A115,1)+1,SEARCH(\"/\",'CFR - XML import'!$A115,1)-SEARCH(\">\",'CFR - XML import'!$A115,1)-2)))","v":0},{"$f":"IF(ISERROR(FIND(S$3,'CFR - XML import'!$A115)),0,VALUE(MID('CFR - XML import'!$A115,SEARCH(\">\",'CFR - XML import'!$A115,1)+1,SEARCH(\"/\",'CFR - XML import'!$A115,1)-SEARCH(\">\",'CFR - XML import'!$A115,1)-2)))","v":0},{"$f":"IF(ISERROR(FIND(T$3,'CFR - XML import'!$A115)),0,VALUE(MID('CFR - XML import'!$A115,SEARCH(\">\",'CFR - XML import'!$A115,1)+1,SEARCH(\"/\",'CFR - XML import'!$A115,1)-SEARCH(\">\",'CFR - XML import'!$A115,1)-2)))","v":0},{"$f":"IF(ISERROR(FIND(U$3,'CFR - XML import'!$A115)),0,VALUE(MID('CFR - XML import'!$A115,SEARCH(\">\",'CFR - XML import'!$A115,1)+1,SEARCH(\"/\",'CFR - XML import'!$A115,1)-SEARCH(\">\",'CFR - XML import'!$A115,1)-2)))","v":0},{"$f":"IF(ISERROR(FIND(V$3,'CFR - XML import'!$A115)),0,VALUE(MID('CFR - XML import'!$A115,SEARCH(\">\",'CFR - XML import'!$A115,1)+1,SEARCH(\"/\",'CFR - XML import'!$A115,1)-SEARCH(\">\",'CFR - XML import'!$A115,1)-2)))","v":0},{"$f":"IF(ISERROR(FIND(W$3,'CFR - XML import'!$A115)),0,VALUE(MID('CFR - XML import'!$A115,SEARCH(\">\",'CFR - XML import'!$A115,1)+1,SEARCH(\"/\",'CFR - XML import'!$A115,1)-SEARCH(\">\",'CFR - XML import'!$A115,1)-2)))","v":0},null,{"$f":"IF(ISERROR(FIND(Y$3,'CFR - XML import'!$A115)),0,VALUE(MID('CFR - XML import'!$A115,SEARCH(\">\",'CFR - XML import'!$A115,1)+1,SEARCH(\"/\",'CFR - XML import'!$A115,1)-SEARCH(\">\",'CFR - XML import'!$A115,1)-2)))","v":0},{"$f":"IF(ISERROR(FIND(Z$3,'CFR - XML import'!$A115)),0,VALUE(MID('CFR - XML import'!$A115,SEARCH(\">\",'CFR - XML import'!$A115,1)+1,SEARCH(\"/\",'CFR - XML import'!$A115,1)-SEARCH(\">\",'CFR - XML import'!$A115,1)-2)))","v":0},{"$f":"IF(ISERROR(FIND(AA$3,'CFR - XML import'!$A115)),0,VALUE(MID('CFR - XML import'!$A115,SEARCH(\">\",'CFR - XML import'!$A115,1)+1,SEARCH(\"/\",'CFR - XML import'!$A115,1)-SEARCH(\">\",'CFR - XML import'!$A115,1)-2)))","v":0},{"$f":"IF(ISERROR(FIND(AB$3,'CFR - XML import'!$A115)),0,VALUE(MID('CFR - XML import'!$A115,SEARCH(\">\",'CFR - XML import'!$A115,1)+1,SEARCH(\"/\",'CFR - XML import'!$A115,1)-SEARCH(\">\",'CFR - XML import'!$A115,1)-2)))","v":0},{"$f":"IF(ISERROR(FIND(AC$3,'CFR - XML import'!$A115)),0,VALUE(MID('CFR - XML import'!$A115,SEARCH(\">\",'CFR - XML import'!$A115,1)+1,SEARCH(\"/\",'CFR - XML import'!$A115,1)-SEARCH(\">\",'CFR - XML import'!$A115,1)-2)))","v":0},{"$f":"IF(ISERROR(FIND(AD$3,'CFR - XML import'!$A115)),0,VALUE(MID('CFR - XML import'!$A115,SEARCH(\">\",'CFR - XML import'!$A115,1)+1,SEARCH(\"/\",'CFR - XML import'!$A115,1)-SEARCH(\">\",'CFR - XML import'!$A115,1)-2)))","v":0},{"$f":"IF(ISERROR(FIND(AE$3,'CFR - XML import'!$A115)),0,VALUE(MID('CFR - XML import'!$A115,SEARCH(\">\",'CFR - XML import'!$A115,1)+1,SEARCH(\"/\",'CFR - XML import'!$A115,1)-SEARCH(\">\",'CFR - XML import'!$A115,1)-2)))","v":0},{"$f":"IF(ISERROR(FIND(AF$3,'CFR - XML import'!$A115)),0,VALUE(MID('CFR - XML import'!$A115,SEARCH(\">\",'CFR - XML import'!$A115,1)+1,SEARCH(\"/\",'CFR - XML import'!$A115,1)-SEARCH(\">\",'CFR - XML import'!$A115,1)-2)))","v":0},{"$f":"IF(ISERROR(FIND(AG$3,'CFR - XML import'!$A115)),0,VALUE(MID('CFR - XML import'!$A115,SEARCH(\">\",'CFR - XML import'!$A115,1)+1,SEARCH(\"/\",'CFR - XML import'!$A115,1)-SEARCH(\">\",'CFR - XML import'!$A115,1)-2)))","v":0},{"$f":"IF(ISERROR(FIND(AH$3,'CFR - XML import'!$A115)),0,VALUE(MID('CFR - XML import'!$A115,SEARCH(\">\",'CFR - XML import'!$A115,1)+1,SEARCH(\"/\",'CFR - XML import'!$A115,1)-SEARCH(\">\",'CFR - XML import'!$A115,1)-2)))","v":0},{"$f":"IF(ISERROR(FIND(AI$3,'CFR - XML import'!$A115)),0,VALUE(MID('CFR - XML import'!$A115,SEARCH(\">\",'CFR - XML import'!$A115,1)+1,SEARCH(\"/\",'CFR - XML import'!$A115,1)-SEARCH(\">\",'CFR - XML import'!$A115,1)-2)))","v":0},{"$f":"IF(ISERROR(FIND(AJ$3,'CFR - XML import'!$A115)),0,VALUE(MID('CFR - XML import'!$A115,SEARCH(\">\",'CFR - XML import'!$A115,1)+1,SEARCH(\"/\",'CFR - XML import'!$A115,1)-SEARCH(\">\",'CFR - XML import'!$A115,1)-2)))","v":0},{"$f":"IF(ISERROR(FIND(AK$3,'CFR - XML import'!$A115)),0,VALUE(MID('CFR - XML import'!$A115,SEARCH(\">\",'CFR - XML import'!$A115,1)+1,SEARCH(\"/\",'CFR - XML import'!$A115,1)-SEARCH(\">\",'CFR - XML import'!$A115,1)-2)))","v":0},{"$f":"IF(ISERROR(FIND(AL$3,'CFR - XML import'!$A115)),0,VALUE(MID('CFR - XML import'!$A115,SEARCH(\">\",'CFR - XML import'!$A115,1)+1,SEARCH(\"/\",'CFR - XML import'!$A115,1)-SEARCH(\">\",'CFR - XML import'!$A115,1)-2)))","v":0},{"$f":"IF(ISERROR(FIND(AM$3,'CFR - XML import'!$A115)),0,VALUE(MID('CFR - XML import'!$A115,SEARCH(\">\",'CFR - XML import'!$A115,1)+1,SEARCH(\"/\",'CFR - XML import'!$A115,1)-SEARCH(\">\",'CFR - XML import'!$A115,1)-2)))","v":0},{"$f":"IF(ISERROR(FIND(AN$3,'CFR - XML import'!$A115)),0,VALUE(MID('CFR - XML import'!$A115,SEARCH(\">\",'CFR - XML import'!$A115,1)+1,SEARCH(\"/\",'CFR - XML import'!$A115,1)-SEARCH(\">\",'CFR - XML import'!$A115,1)-2)))","v":0},{"$f":"IF(ISERROR(FIND(AO$3,'CFR - XML import'!$A115)),0,VALUE(MID('CFR - XML import'!$A115,SEARCH(\">\",'CFR - XML import'!$A115,1)+1,SEARCH(\"/\",'CFR - XML import'!$A115,1)-SEARCH(\">\",'CFR - XML import'!$A115,1)-2)))","v":0},{"$f":"IF(ISERROR(FIND(AP$3,'CFR - XML import'!$A115)),0,VALUE(MID('CFR - XML import'!$A115,SEARCH(\">\",'CFR - XML import'!$A115,1)+1,SEARCH(\"/\",'CFR - XML import'!$A115,1)-SEARCH(\">\",'CFR - XML import'!$A115,1)-2)))","v":0},{"$f":"IF(ISERROR(FIND(AQ$3,'CFR - XML import'!$A115)),0,VALUE(MID('CFR - XML import'!$A115,SEARCH(\">\",'CFR - XML import'!$A115,1)+1,SEARCH(\"/\",'CFR - XML import'!$A115,1)-SEARCH(\">\",'CFR - XML import'!$A115,1)-2)))","v":0},{"$f":"IF(ISERROR(FIND(AR$3,'CFR - XML import'!$A115)),0,VALUE(MID('CFR - XML import'!$A115,SEARCH(\">\",'CFR - XML import'!$A115,1)+1,SEARCH(\"/\",'CFR - XML import'!$A115,1)-SEARCH(\">\",'CFR - XML import'!$A115,1)-2)))","v":0},{"$f":"IF(ISERROR(FIND(AS$3,'CFR - XML import'!$A115)),0,VALUE(MID('CFR - XML import'!$A115,SEARCH(\">\",'CFR - XML import'!$A115,1)+1,SEARCH(\"/\",'CFR - XML import'!$A115,1)-SEARCH(\">\",'CFR - XML import'!$A115,1)-2)))","v":0},{"$f":"IF(ISERROR(FIND(AT$3,'CFR - XML import'!$A115)),0,VALUE(MID('CFR - XML import'!$A115,SEARCH(\">\",'CFR - XML import'!$A115,1)+1,SEARCH(\"/\",'CFR - XML import'!$A115,1)-SEARCH(\">\",'CFR - XML import'!$A115,1)-2)))","v":0},{"$f":"IF(ISERROR(FIND(AU$3,'CFR - XML import'!$A115)),0,VALUE(MID('CFR - XML import'!$A115,SEARCH(\">\",'CFR - XML import'!$A115,1)+1,SEARCH(\"/\",'CFR - XML import'!$A115,1)-SEARCH(\">\",'CFR - XML import'!$A115,1)-2)))","v":0},{"$f":"IF(ISERROR(FIND(AV$3,'CFR - XML import'!$A115)),0,VALUE(MID('CFR - XML import'!$A115,SEARCH(\">\",'CFR - XML import'!$A115,1)+1,SEARCH(\"/\",'CFR - XML import'!$A115,1)-SEARCH(\">\",'CFR - XML import'!$A115,1)-2)))","v":0},{"$f":"IF(ISERROR(FIND(AW$3,'CFR - XML import'!$A115)),0,VALUE(MID('CFR - XML import'!$A115,SEARCH(\">\",'CFR - XML import'!$A115,1)+1,SEARCH(\"/\",'CFR - XML import'!$A115,1)-SEARCH(\">\",'CFR - XML import'!$A115,1)-2)))","v":0},{"$f":"IF(ISERROR(FIND(AX$3,'CFR - XML import'!$A115)),0,VALUE(MID('CFR - XML import'!$A115,SEARCH(\">\",'CFR - XML import'!$A115,1)+1,SEARCH(\"/\",'CFR - XML import'!$A115,1)-SEARCH(\">\",'CFR - XML import'!$A115,1)-2)))","v":0},{"$f":"IF(ISERROR(FIND(AY$3,'CFR - XML import'!$A115)),0,VALUE(MID('CFR - XML import'!$A115,SEARCH(\">\",'CFR - XML import'!$A115,1)+1,SEARCH(\"/\",'CFR - XML import'!$A115,1)-SEARCH(\">\",'CFR - XML import'!$A115,1)-2)))","v":0},{"$f":"IF(ISERROR(FIND(AZ$3,'CFR - XML import'!$A115)),0,VALUE(MID('CFR - XML import'!$A115,SEARCH(\">\",'CFR - XML import'!$A115,1)+1,SEARCH(\"/\",'CFR - XML import'!$A115,1)-SEARCH(\">\",'CFR - XML import'!$A115,1)-2)))","v":0},{"$f":"IF(ISERROR(FIND(BA$3,'CFR - XML import'!$A115)),0,VALUE(MID('CFR - XML import'!$A115,SEARCH(\">\",'CFR - XML import'!$A115,1)+1,SEARCH(\"/\",'CFR - XML import'!$A115,1)-SEARCH(\">\",'CFR - XML import'!$A115,1)-2)))","v":0},{"$f":"IF(ISERROR(FIND(BB$3,'CFR - XML import'!$A115)),0,VALUE(MID('CFR - XML import'!$A115,SEARCH(\">\",'CFR - XML import'!$A115,1)+1,SEARCH(\"/\",'CFR - XML import'!$A115,1)-SEARCH(\">\",'CFR - XML import'!$A115,1)-2)))","v":0},{"$f":"IF(ISERROR(FIND(BC$3,'CFR - XML import'!$A115)),0,VALUE(MID('CFR - XML import'!$A115,SEARCH(\">\",'CFR - XML import'!$A115,1)+1,SEARCH(\"/\",'CFR - XML import'!$A115,1)-SEARCH(\">\",'CFR - XML import'!$A115,1)-2)))","v":0},{"$f":"IF(ISERROR(FIND(BD$3,'CFR - XML import'!$A115)),0,VALUE(MID('CFR - XML import'!$A115,SEARCH(\">\",'CFR - XML import'!$A115,1)+1,SEARCH(\"/\",'CFR - XML import'!$A115,1)-SEARCH(\">\",'CFR - XML import'!$A115,1)-2)))","v":0},{"$f":"IF(ISERROR(FIND(BE$3,'CFR - XML import'!$A115)),0,VALUE(MID('CFR - XML import'!$A115,SEARCH(\">\",'CFR - XML import'!$A115,1)+1,SEARCH(\"/\",'CFR - XML import'!$A115,1)-SEARCH(\">\",'CFR - XML import'!$A115,1)-2)))","v":0},{"$f":"IF(ISERROR(FIND(BF$3,'CFR - XML import'!$A115)),0,VALUE(MID('CFR - XML import'!$A115,SEARCH(\">\",'CFR - XML import'!$A115,1)+1,SEARCH(\"/\",'CFR - XML import'!$A115,1)-SEARCH(\">\",'CFR - XML import'!$A115,1)-2)))","v":0},{"$f":"IF(ISERROR(FIND(BG$3,'CFR - XML import'!$A115)),0,VALUE(MID('CFR - XML import'!$A115,SEARCH(\">\",'CFR - XML import'!$A115,1)+1,SEARCH(\"/\",'CFR - XML import'!$A115,1)-SEARCH(\">\",'CFR - XML import'!$A115,1)-2)))","v":0},{"$f":"IF(ISERROR(FIND(BH$3,'CFR - XML import'!$A115)),0,VALUE(MID('CFR - XML import'!$A115,SEARCH(\">\",'CFR - XML import'!$A115,1)+1,SEARCH(\"/\",'CFR - XML import'!$A115,1)-SEARCH(\">\",'CFR - XML import'!$A115,1)-2)))","v":0},{"$f":"IF(ISERROR(FIND(BI$3,'CFR - XML import'!$A115)),0,VALUE(MID('CFR - XML import'!$A115,SEARCH(\">\",'CFR - XML import'!$A115,1)+1,SEARCH(\"/\",'CFR - XML import'!$A115,1)-SEARCH(\">\",'CFR - XML import'!$A115,1)-2)))","v":0},{"$f":"IF(ISERROR(FIND(BJ$3,'CFR - XML import'!$A115)),0,VALUE(MID('CFR - XML import'!$A115,SEARCH(\">\",'CFR - XML import'!$A115,1)+1,SEARCH(\"/\",'CFR - XML import'!$A115,1)-SEARCH(\">\",'CFR - XML import'!$A115,1)-2)))","v":0},{"$f":"IF(ISERROR(FIND(BK$3,'CFR - XML import'!$A115)),0,VALUE(MID('CFR - XML import'!$A115,SEARCH(\">\",'CFR - XML import'!$A115,1)+1,SEARCH(\"/\",'CFR - XML import'!$A115,1)-SEARCH(\">\",'CFR - XML import'!$A115,1)-2)))","v":0},{"$f":"IF(ISERROR(FIND(BL$3,'CFR - XML import'!$A115)),0,VALUE(MID('CFR - XML import'!$A115,SEARCH(\">\",'CFR - XML import'!$A115,1)+1,SEARCH(\"/\",'CFR - XML import'!$A115,1)-SEARCH(\">\",'CFR - XML import'!$A115,1)-2)))","v":0},{"$f":"IF(ISERROR(FIND(BM$3,'CFR - XML import'!$A115)),0,VALUE(MID('CFR - XML import'!$A115,SEARCH(\">\",'CFR - XML import'!$A115,1)+1,SEARCH(\"/\",'CFR - XML import'!$A115,1)-SEARCH(\">\",'CFR - XML import'!$A115,1)-2)))","v":0},{"$f":"IF(ISERROR(FIND(BN$3,'CFR - XML import'!$A115)),0,VALUE(MID('CFR - XML import'!$A115,SEARCH(\">\",'CFR - XML import'!$A115,1)+1,SEARCH(\"/\",'CFR - XML import'!$A115,1)-SEARCH(\">\",'CFR - XML import'!$A115,1)-2)))","v":0},{"$f":"IF(ISERROR(FIND(BO$3,'CFR - XML import'!$A115)),0,VALUE(MID('CFR - XML import'!$A115,SEARCH(\">\",'CFR - XML import'!$A115,1)+1,SEARCH(\"/\",'CFR - XML import'!$A115,1)-SEARCH(\">\",'CFR - XML import'!$A115,1)-2)))","v":0},{"$f":"IF(ISERROR(FIND(BP$3,'CFR - XML import'!$A115)),0,VALUE(MID('CFR - XML import'!$A115,SEARCH(\">\",'CFR - XML import'!$A115,1)+1,SEARCH(\"/\",'CFR - XML import'!$A115,1)-SEARCH(\">\",'CFR - XML import'!$A115,1)-2)))","v":0},{"$f":"IF(ISERROR(FIND(BQ$3,'CFR - XML import'!$A115)),0,VALUE(MID('CFR - XML import'!$A115,SEARCH(\">\",'CFR - XML import'!$A115,1)+1,SEARCH(\"/\",'CFR - XML import'!$A115,1)-SEARCH(\">\",'CFR - XML import'!$A115,1)-2)))","v":0},{"$f":"IF(ISERROR(FIND(BR$3,'CFR - XML import'!$A115)),0,VALUE(MID('CFR - XML import'!$A115,SEARCH(\">\",'CFR - XML import'!$A115,1)+1,SEARCH(\"/\",'CFR - XML import'!$A115,1)-SEARCH(\">\",'CFR - XML import'!$A115,1)-2)))","v":0},{"$f":"IF(ISERROR(FIND(BS$3,'CFR - XML import'!$A115)),0,VALUE(MID('CFR - XML import'!$A115,SEARCH(\">\",'CFR - XML import'!$A115,1)+1,SEARCH(\"/\",'CFR - XML import'!$A115,1)-SEARCH(\">\",'CFR - XML import'!$A115,1)-2)))","v":0},{"$f":"IF(ISERROR(FIND(BT$3,'CFR - XML import'!$A115)),0,VALUE(MID('CFR - XML import'!$A115,SEARCH(\">\",'CFR - XML import'!$A115,1)+1,SEARCH(\"/\",'CFR - XML import'!$A115,1)-SEARCH(\">\",'CFR - XML import'!$A115,1)-2)))","v":0},{"$f":"IF(ISERROR(FIND(BU$3,'CFR - XML import'!$A115)),0,VALUE(MID('CFR - XML import'!$A115,SEARCH(\">\",'CFR - XML import'!$A115,1)+1,SEARCH(\"/\",'CFR - XML import'!$A115,1)-SEARCH(\">\",'CFR - XML import'!$A115,1)-2)))","v":0},{"$f":"IF(ISERROR(FIND(BV$3,'CFR - XML import'!$A115)),0,VALUE(MID('CFR - XML import'!$A115,SEARCH(\">\",'CFR - XML import'!$A115,1)+1,SEARCH(\"/\",'CFR - XML import'!$A115,1)-SEARCH(\">\",'CFR - XML import'!$A115,1)-2)))","v":0},{"$f":"IF(ISERROR(FIND(BW$3,'CFR - XML import'!$A115)),0,VALUE(MID('CFR - XML import'!$A115,SEARCH(\">\",'CFR - XML import'!$A115,1)+1,SEARCH(\"/\",'CFR - XML import'!$A115,1)-SEARCH(\">\",'CFR - XML import'!$A115,1)-2)))","v":0},{"$f":"IF(ISERROR(FIND(BX$3,'CFR - XML import'!$A115)),0,VALUE(MID('CFR - XML import'!$A115,SEARCH(\">\",'CFR - XML import'!$A115,1)+1,SEARCH(\"/\",'CFR - XML import'!$A115,1)-SEARCH(\">\",'CFR - XML import'!$A115,1)-2)))","v":0},{"$f":"IF(ISERROR(FIND(BY$3,'CFR - XML import'!$A115)),0,VALUE(MID('CFR - XML import'!$A115,SEARCH(\">\",'CFR - XML import'!$A115,1)+1,SEARCH(\"/\",'CFR - XML import'!$A115,1)-SEARCH(\">\",'CFR - XML import'!$A115,1)-2)))","v":0},{"$f":"IF(ISERROR(FIND(BZ$3,'CFR - XML import'!$A115)),0,VALUE(MID('CFR - XML import'!$A115,SEARCH(\">\",'CFR - XML import'!$A115,1)+1,SEARCH(\"/\",'CFR - XML import'!$A115,1)-SEARCH(\">\",'CFR - XML import'!$A115,1)-2)))","v":0},null,null,null,null,null,null,{"$f":"IF(ISERROR(IF(MID('CFR - XML import'!$A115,LEN($CF$4)+1,LEN('CFR - XML import'!$A115)-(2*LEN($CF$4)+1))=\"RMMS\",1,IF(MID('CFR - XML import'!$A115,LEN(\"    <InputSystem>\")+1,LEN('CFR - XML import'!$A115)-(LEN(\"    <InputSystem>\")+LEN($CF$4)+1))=\"SIMS\",2,0))),0,IF(MID('CFR - XML import'!$A115,LEN($CF$4)+1,LEN('CFR - XML import'!$A115)-(2*LEN($CF$4)+1))=\"RMMS\",1,IF(MID('CFR - XML import'!$A115,LEN(\"    <InputSystem>\")+1,LEN('CFR - XML import'!$A115)-(LEN(\"    <InputSystem>\")+LEN($CF$4)+1))=\"SIMS\",2,0)))","v":0},{"$f":"IF(ISERROR(FIND(CH$3,'CFR - XML import'!$A115)),0,MID('CFR - XML import'!$A115,SEARCH(\">\",'CFR - XML import'!$A115,1)+1,SEARCH(\"/\",'CFR - XML import'!$A115,1)-SEARCH(\">\",'CFR - XML import'!$A115,1)-2))","v":0},{"$f":"IF(ISERROR(FIND(CI$3,'CFR - XML import'!$A115)),0,MID('CFR - XML import'!$A115,SEARCH(\">\",'CFR - XML import'!$A115,1)+1,SEARCH(\"/\",'CFR - XML import'!$A115,1)-SEARCH(\">\",'CFR - XML import'!$A115,1)-2))","v":0},{"$f":"IF(ISERROR(FIND(CJ$3,'CFR - XML import'!$A115)),0,MID('CFR - XML import'!$A115,SEARCH(\">\",'CFR - XML import'!$A115,1)+1,SEARCH(\"/\",'CFR - XML import'!$A115,1)-SEARCH(\">\",'CFR - XML import'!$A115,1)-2))","v":0},{"$f":"IF(ISERROR(FIND(CK$3,'CFR - XML import'!$A115)),0,MID('CFR - XML import'!$A115,SEARCH(\">\",'CFR - XML import'!$A115,1)+1,SEARCH(\"/\",'CFR - XML import'!$A115,1)-SEARCH(\">\",'CFR - XML import'!$A115,1)-2))","v":0},{"$f":"IF(ISERROR(FIND(CL$3,'CFR - XML import'!$A115)),0,MID('CFR - XML import'!$A115,SEARCH(\">\",'CFR - XML import'!$A115,1)+1,SEARCH(\"/\",'CFR - XML import'!$A115,1)-SEARCH(\">\",'CFR - XML import'!$A115,1)-2))","v":0}]
[{"$f":"IF(AND('CFR - XML import'!A116<>\"\",LEFT('CFR - XML import'!A116,1)<>\"<\",LEFT('CFR - XML import'!A116,3)<>\"  <\",LEFT('CFR - XML import'!A116,5)<>\"    <\",LEFT('CFR - XML import'!A116,7)<>\"      <\",LEFT('CFR - XML import'!A116,9)<>\"        <\",$B$1=\"SIMS\"),'CFR - XML import'!A116,IF(AND(LEFT('CFR - XML import'!A116,9)=\"<Details>\",$B$1=\"RM\"),'CFR - XML import'!A116,\"\"))","v":""},{"$f":"IF(ISERROR(FIND(B$3,'CFR - XML import'!$A116)),0,VALUE(MID('CFR - XML import'!$A116,SEARCH(\">\",'CFR - XML import'!$A116,1)+1,SEARCH(\"/\",'CFR - XML import'!$A116,1)-SEARCH(\">\",'CFR - XML import'!$A116,1)-2)))","v":0},null,{"$f":"IF(ISERROR(FIND(D$3,'CFR - XML import'!$A116)),0,MID('CFR - XML import'!$A116,SEARCH(\">\",'CFR - XML import'!$A116,1)+1,SEARCH(\"/\",'CFR - XML import'!$A116,1)-SEARCH(\">\",'CFR - XML import'!$A116,1)-2))","v":0},{"$f":"IF(ISERROR(FIND(E$3,'CFR - XML import'!$A116)),0,MID('CFR - XML import'!$A116,SEARCH(\">\",'CFR - XML import'!$A116,1)+1,SEARCH(\"/\",'CFR - XML import'!$A116,1)-SEARCH(\">\",'CFR - XML import'!$A116,1)-2))","v":0},{"$f":"IF($B$1=\"SIMS\",IF(ISERROR(FIND(F$3,'CFR - XML import'!$A116)),0,VALUE(MID('CFR - XML import'!$A116,15,10))),IF(ISERROR(FIND(F$3,'CFR - XML import'!$A116)),0,VALUE(MID('CFR - XML import'!$A116,11,10))))","v":"00:00:00"},{"$f":"IF(ISERROR(FIND(G$3,'CFR - XML import'!$A116)),0,VALUE(MID('CFR - XML import'!$A116,SEARCH(\">\",'CFR - XML import'!$A116,1)+1,SEARCH(\"/\",'CFR - XML import'!$A116,1)-SEARCH(\">\",'CFR - XML import'!$A116,1)-2)))","v":0},{"$f":"IF(ISERROR(FIND(H$3,'CFR - XML import'!$A116)),0,VALUE(MID('CFR - XML import'!$A116,SEARCH(\">\",'CFR - XML import'!$A116,1)+1,SEARCH(\"/\",'CFR - XML import'!$A116,1)-SEARCH(\">\",'CFR - XML import'!$A116,1)-2)))","v":0},{"$f":"IF(ISERROR(FIND(I$3,'CFR - XML import'!$A116)),0,VALUE(MID('CFR - XML import'!$A116,SEARCH(\">\",'CFR - XML import'!$A116,1)+1,SEARCH(\"/\",'CFR - XML import'!$A116,1)-SEARCH(\">\",'CFR - XML import'!$A116,1)-2)))","v":0},{"$f":"IF(ISERROR(FIND(J$3,'CFR - XML import'!$A116)),0,VALUE(MID('CFR - XML import'!$A116,SEARCH(\">\",'CFR - XML import'!$A116,1)+1,SEARCH(\"/\",'CFR - XML import'!$A116,1)-SEARCH(\">\",'CFR - XML import'!$A116,1)-2)))","v":0},{"$f":"IF(ISERROR(FIND(K$3,'CFR - XML import'!$A116)),0,VALUE(MID('CFR - XML import'!$A116,SEARCH(\">\",'CFR - XML import'!$A116,1)+1,SEARCH(\"/\",'CFR - XML import'!$A116,1)-SEARCH(\">\",'CFR - XML import'!$A116,1)-2)))","v":0},{"$f":"IF(ISERROR(FIND(L$3,'CFR - XML import'!$A116)),0,VALUE(MID('CFR - XML import'!$A116,SEARCH(\">\",'CFR - XML import'!$A116,1)+1,SEARCH(\"/\",'CFR - XML import'!$A116,1)-SEARCH(\">\",'CFR - XML import'!$A116,1)-2)))","v":0},{"$f":"IF(ISERROR(FIND(M$3,'CFR - XML import'!$A116)),0,VALUE(MID('CFR - XML import'!$A116,SEARCH(\">\",'CFR - XML import'!$A116,1)+1,SEARCH(\"/\",'CFR - XML import'!$A116,1)-SEARCH(\">\",'CFR - XML import'!$A116,1)-2)))","v":0},{"$f":"IF(ISERROR(FIND(N$3,'CFR - XML import'!$A116)),0,VALUE(MID('CFR - XML import'!$A116,SEARCH(\">\",'CFR - XML import'!$A116,1)+1,SEARCH(\"/\",'CFR - XML import'!$A116,1)-SEARCH(\">\",'CFR - XML import'!$A116,1)-2)))","v":0},{"$f":"IF(ISERROR(FIND(O$3,'CFR - XML import'!$A116)),0,VALUE(MID('CFR - XML import'!$A116,SEARCH(\">\",'CFR - XML import'!$A116,1)+1,SEARCH(\"/\",'CFR - XML import'!$A116,1)-SEARCH(\">\",'CFR - XML import'!$A116,1)-2)))","v":0},{"$f":"IF(ISERROR(FIND(P$3,'CFR - XML import'!$A116)),0,VALUE(MID('CFR - XML import'!$A116,SEARCH(\">\",'CFR - XML import'!$A116,1)+1,SEARCH(\"/\",'CFR - XML import'!$A116,1)-SEARCH(\">\",'CFR - XML import'!$A116,1)-2)))","v":0},{"$f":"IF(ISERROR(FIND(Q$3,'CFR - XML import'!$A116)),0,VALUE(MID('CFR - XML import'!$A116,SEARCH(\">\",'CFR - XML import'!$A116,1)+1,SEARCH(\"/\",'CFR - XML import'!$A116,1)-SEARCH(\">\",'CFR - XML import'!$A116,1)-2)))","v":0},{"$f":"IF(ISERROR(FIND(R$3,'CFR - XML import'!$A116)),0,VALUE(MID('CFR - XML import'!$A116,SEARCH(\">\",'CFR - XML import'!$A116,1)+1,SEARCH(\"/\",'CFR - XML import'!$A116,1)-SEARCH(\">\",'CFR - XML import'!$A116,1)-2)))","v":0},{"$f":"IF(ISERROR(FIND(S$3,'CFR - XML import'!$A116)),0,VALUE(MID('CFR - XML import'!$A116,SEARCH(\">\",'CFR - XML import'!$A116,1)+1,SEARCH(\"/\",'CFR - XML import'!$A116,1)-SEARCH(\">\",'CFR - XML import'!$A116,1)-2)))","v":0},{"$f":"IF(ISERROR(FIND(T$3,'CFR - XML import'!$A116)),0,VALUE(MID('CFR - XML import'!$A116,SEARCH(\">\",'CFR - XML import'!$A116,1)+1,SEARCH(\"/\",'CFR - XML import'!$A116,1)-SEARCH(\">\",'CFR - XML import'!$A116,1)-2)))","v":0},{"$f":"IF(ISERROR(FIND(U$3,'CFR - XML import'!$A116)),0,VALUE(MID('CFR - XML import'!$A116,SEARCH(\">\",'CFR - XML import'!$A116,1)+1,SEARCH(\"/\",'CFR - XML import'!$A116,1)-SEARCH(\">\",'CFR - XML import'!$A116,1)-2)))","v":0},{"$f":"IF(ISERROR(FIND(V$3,'CFR - XML import'!$A116)),0,VALUE(MID('CFR - XML import'!$A116,SEARCH(\">\",'CFR - XML import'!$A116,1)+1,SEARCH(\"/\",'CFR - XML import'!$A116,1)-SEARCH(\">\",'CFR - XML import'!$A116,1)-2)))","v":0},{"$f":"IF(ISERROR(FIND(W$3,'CFR - XML import'!$A116)),0,VALUE(MID('CFR - XML import'!$A116,SEARCH(\">\",'CFR - XML import'!$A116,1)+1,SEARCH(\"/\",'CFR - XML import'!$A116,1)-SEARCH(\">\",'CFR - XML import'!$A116,1)-2)))","v":0},null,{"$f":"IF(ISERROR(FIND(Y$3,'CFR - XML import'!$A116)),0,VALUE(MID('CFR - XML import'!$A116,SEARCH(\">\",'CFR - XML import'!$A116,1)+1,SEARCH(\"/\",'CFR - XML import'!$A116,1)-SEARCH(\">\",'CFR - XML import'!$A116,1)-2)))","v":0},{"$f":"IF(ISERROR(FIND(Z$3,'CFR - XML import'!$A116)),0,VALUE(MID('CFR - XML import'!$A116,SEARCH(\">\",'CFR - XML import'!$A116,1)+1,SEARCH(\"/\",'CFR - XML import'!$A116,1)-SEARCH(\">\",'CFR - XML import'!$A116,1)-2)))","v":0},{"$f":"IF(ISERROR(FIND(AA$3,'CFR - XML import'!$A116)),0,VALUE(MID('CFR - XML import'!$A116,SEARCH(\">\",'CFR - XML import'!$A116,1)+1,SEARCH(\"/\",'CFR - XML import'!$A116,1)-SEARCH(\">\",'CFR - XML import'!$A116,1)-2)))","v":0},{"$f":"IF(ISERROR(FIND(AB$3,'CFR - XML import'!$A116)),0,VALUE(MID('CFR - XML import'!$A116,SEARCH(\">\",'CFR - XML import'!$A116,1)+1,SEARCH(\"/\",'CFR - XML import'!$A116,1)-SEARCH(\">\",'CFR - XML import'!$A116,1)-2)))","v":0},{"$f":"IF(ISERROR(FIND(AC$3,'CFR - XML import'!$A116)),0,VALUE(MID('CFR - XML import'!$A116,SEARCH(\">\",'CFR - XML import'!$A116,1)+1,SEARCH(\"/\",'CFR - XML import'!$A116,1)-SEARCH(\">\",'CFR - XML import'!$A116,1)-2)))","v":0},{"$f":"IF(ISERROR(FIND(AD$3,'CFR - XML import'!$A116)),0,VALUE(MID('CFR - XML import'!$A116,SEARCH(\">\",'CFR - XML import'!$A116,1)+1,SEARCH(\"/\",'CFR - XML import'!$A116,1)-SEARCH(\">\",'CFR - XML import'!$A116,1)-2)))","v":0},{"$f":"IF(ISERROR(FIND(AE$3,'CFR - XML import'!$A116)),0,VALUE(MID('CFR - XML import'!$A116,SEARCH(\">\",'CFR - XML import'!$A116,1)+1,SEARCH(\"/\",'CFR - XML import'!$A116,1)-SEARCH(\">\",'CFR - XML import'!$A116,1)-2)))","v":0},{"$f":"IF(ISERROR(FIND(AF$3,'CFR - XML import'!$A116)),0,VALUE(MID('CFR - XML import'!$A116,SEARCH(\">\",'CFR - XML import'!$A116,1)+1,SEARCH(\"/\",'CFR - XML import'!$A116,1)-SEARCH(\">\",'CFR - XML import'!$A116,1)-2)))","v":0},{"$f":"IF(ISERROR(FIND(AG$3,'CFR - XML import'!$A116)),0,VALUE(MID('CFR - XML import'!$A116,SEARCH(\">\",'CFR - XML import'!$A116,1)+1,SEARCH(\"/\",'CFR - XML import'!$A116,1)-SEARCH(\">\",'CFR - XML import'!$A116,1)-2)))","v":0},{"$f":"IF(ISERROR(FIND(AH$3,'CFR - XML import'!$A116)),0,VALUE(MID('CFR - XML import'!$A116,SEARCH(\">\",'CFR - XML import'!$A116,1)+1,SEARCH(\"/\",'CFR - XML import'!$A116,1)-SEARCH(\">\",'CFR - XML import'!$A116,1)-2)))","v":0},{"$f":"IF(ISERROR(FIND(AI$3,'CFR - XML import'!$A116)),0,VALUE(MID('CFR - XML import'!$A116,SEARCH(\">\",'CFR - XML import'!$A116,1)+1,SEARCH(\"/\",'CFR - XML import'!$A116,1)-SEARCH(\">\",'CFR - XML import'!$A116,1)-2)))","v":0},{"$f":"IF(ISERROR(FIND(AJ$3,'CFR - XML import'!$A116)),0,VALUE(MID('CFR - XML import'!$A116,SEARCH(\">\",'CFR - XML import'!$A116,1)+1,SEARCH(\"/\",'CFR - XML import'!$A116,1)-SEARCH(\">\",'CFR - XML import'!$A116,1)-2)))","v":0},{"$f":"IF(ISERROR(FIND(AK$3,'CFR - XML import'!$A116)),0,VALUE(MID('CFR - XML import'!$A116,SEARCH(\">\",'CFR - XML import'!$A116,1)+1,SEARCH(\"/\",'CFR - XML import'!$A116,1)-SEARCH(\">\",'CFR - XML import'!$A116,1)-2)))","v":0},{"$f":"IF(ISERROR(FIND(AL$3,'CFR - XML import'!$A116)),0,VALUE(MID('CFR - XML import'!$A116,SEARCH(\">\",'CFR - XML import'!$A116,1)+1,SEARCH(\"/\",'CFR - XML import'!$A116,1)-SEARCH(\">\",'CFR - XML import'!$A116,1)-2)))","v":0},{"$f":"IF(ISERROR(FIND(AM$3,'CFR - XML import'!$A116)),0,VALUE(MID('CFR - XML import'!$A116,SEARCH(\">\",'CFR - XML import'!$A116,1)+1,SEARCH(\"/\",'CFR - XML import'!$A116,1)-SEARCH(\">\",'CFR - XML import'!$A116,1)-2)))","v":0},{"$f":"IF(ISERROR(FIND(AN$3,'CFR - XML import'!$A116)),0,VALUE(MID('CFR - XML import'!$A116,SEARCH(\">\",'CFR - XML import'!$A116,1)+1,SEARCH(\"/\",'CFR - XML import'!$A116,1)-SEARCH(\">\",'CFR - XML import'!$A116,1)-2)))","v":0},{"$f":"IF(ISERROR(FIND(AO$3,'CFR - XML import'!$A116)),0,VALUE(MID('CFR - XML import'!$A116,SEARCH(\">\",'CFR - XML import'!$A116,1)+1,SEARCH(\"/\",'CFR - XML import'!$A116,1)-SEARCH(\">\",'CFR - XML import'!$A116,1)-2)))","v":0},{"$f":"IF(ISERROR(FIND(AP$3,'CFR - XML import'!$A116)),0,VALUE(MID('CFR - XML import'!$A116,SEARCH(\">\",'CFR - XML import'!$A116,1)+1,SEARCH(\"/\",'CFR - XML import'!$A116,1)-SEARCH(\">\",'CFR - XML import'!$A116,1)-2)))","v":0},{"$f":"IF(ISERROR(FIND(AQ$3,'CFR - XML import'!$A116)),0,VALUE(MID('CFR - XML import'!$A116,SEARCH(\">\",'CFR - XML import'!$A116,1)+1,SEARCH(\"/\",'CFR - XML import'!$A116,1)-SEARCH(\">\",'CFR - XML import'!$A116,1)-2)))","v":0},{"$f":"IF(ISERROR(FIND(AR$3,'CFR - XML import'!$A116)),0,VALUE(MID('CFR - XML import'!$A116,SEARCH(\">\",'CFR - XML import'!$A116,1)+1,SEARCH(\"/\",'CFR - XML import'!$A116,1)-SEARCH(\">\",'CFR - XML import'!$A116,1)-2)))","v":0},{"$f":"IF(ISERROR(FIND(AS$3,'CFR - XML import'!$A116)),0,VALUE(MID('CFR - XML import'!$A116,SEARCH(\">\",'CFR - XML import'!$A116,1)+1,SEARCH(\"/\",'CFR - XML import'!$A116,1)-SEARCH(\">\",'CFR - XML import'!$A116,1)-2)))","v":0},{"$f":"IF(ISERROR(FIND(AT$3,'CFR - XML import'!$A116)),0,VALUE(MID('CFR - XML import'!$A116,SEARCH(\">\",'CFR - XML import'!$A116,1)+1,SEARCH(\"/\",'CFR - XML import'!$A116,1)-SEARCH(\">\",'CFR - XML import'!$A116,1)-2)))","v":0},{"$f":"IF(ISERROR(FIND(AU$3,'CFR - XML import'!$A116)),0,VALUE(MID('CFR - XML import'!$A116,SEARCH(\">\",'CFR - XML import'!$A116,1)+1,SEARCH(\"/\",'CFR - XML import'!$A116,1)-SEARCH(\">\",'CFR - XML import'!$A116,1)-2)))","v":0},{"$f":"IF(ISERROR(FIND(AV$3,'CFR - XML import'!$A116)),0,VALUE(MID('CFR - XML import'!$A116,SEARCH(\">\",'CFR - XML import'!$A116,1)+1,SEARCH(\"/\",'CFR - XML import'!$A116,1)-SEARCH(\">\",'CFR - XML import'!$A116,1)-2)))","v":0},{"$f":"IF(ISERROR(FIND(AW$3,'CFR - XML import'!$A116)),0,VALUE(MID('CFR - XML import'!$A116,SEARCH(\">\",'CFR - XML import'!$A116,1)+1,SEARCH(\"/\",'CFR - XML import'!$A116,1)-SEARCH(\">\",'CFR - XML import'!$A116,1)-2)))","v":0},{"$f":"IF(ISERROR(FIND(AX$3,'CFR - XML import'!$A116)),0,VALUE(MID('CFR - XML import'!$A116,SEARCH(\">\",'CFR - XML import'!$A116,1)+1,SEARCH(\"/\",'CFR - XML import'!$A116,1)-SEARCH(\">\",'CFR - XML import'!$A116,1)-2)))","v":0},{"$f":"IF(ISERROR(FIND(AY$3,'CFR - XML import'!$A116)),0,VALUE(MID('CFR - XML import'!$A116,SEARCH(\">\",'CFR - XML import'!$A116,1)+1,SEARCH(\"/\",'CFR - XML import'!$A116,1)-SEARCH(\">\",'CFR - XML import'!$A116,1)-2)))","v":0},{"$f":"IF(ISERROR(FIND(AZ$3,'CFR - XML import'!$A116)),0,VALUE(MID('CFR - XML import'!$A116,SEARCH(\">\",'CFR - XML import'!$A116,1)+1,SEARCH(\"/\",'CFR - XML import'!$A116,1)-SEARCH(\">\",'CFR - XML import'!$A116,1)-2)))","v":0},{"$f":"IF(ISERROR(FIND(BA$3,'CFR - XML import'!$A116)),0,VALUE(MID('CFR - XML import'!$A116,SEARCH(\">\",'CFR - XML import'!$A116,1)+1,SEARCH(\"/\",'CFR - XML import'!$A116,1)-SEARCH(\">\",'CFR - XML import'!$A116,1)-2)))","v":0},{"$f":"IF(ISERROR(FIND(BB$3,'CFR - XML import'!$A116)),0,VALUE(MID('CFR - XML import'!$A116,SEARCH(\">\",'CFR - XML import'!$A116,1)+1,SEARCH(\"/\",'CFR - XML import'!$A116,1)-SEARCH(\">\",'CFR - XML import'!$A116,1)-2)))","v":0},{"$f":"IF(ISERROR(FIND(BC$3,'CFR - XML import'!$A116)),0,VALUE(MID('CFR - XML import'!$A116,SEARCH(\">\",'CFR - XML import'!$A116,1)+1,SEARCH(\"/\",'CFR - XML import'!$A116,1)-SEARCH(\">\",'CFR - XML import'!$A116,1)-2)))","v":0},{"$f":"IF(ISERROR(FIND(BD$3,'CFR - XML import'!$A116)),0,VALUE(MID('CFR - XML import'!$A116,SEARCH(\">\",'CFR - XML import'!$A116,1)+1,SEARCH(\"/\",'CFR - XML import'!$A116,1)-SEARCH(\">\",'CFR - XML import'!$A116,1)-2)))","v":0},{"$f":"IF(ISERROR(FIND(BE$3,'CFR - XML import'!$A116)),0,VALUE(MID('CFR - XML import'!$A116,SEARCH(\">\",'CFR - XML import'!$A116,1)+1,SEARCH(\"/\",'CFR - XML import'!$A116,1)-SEARCH(\">\",'CFR - XML import'!$A116,1)-2)))","v":0},{"$f":"IF(ISERROR(FIND(BF$3,'CFR - XML import'!$A116)),0,VALUE(MID('CFR - XML import'!$A116,SEARCH(\">\",'CFR - XML import'!$A116,1)+1,SEARCH(\"/\",'CFR - XML import'!$A116,1)-SEARCH(\">\",'CFR - XML import'!$A116,1)-2)))","v":0},{"$f":"IF(ISERROR(FIND(BG$3,'CFR - XML import'!$A116)),0,VALUE(MID('CFR - XML import'!$A116,SEARCH(\">\",'CFR - XML import'!$A116,1)+1,SEARCH(\"/\",'CFR - XML import'!$A116,1)-SEARCH(\">\",'CFR - XML import'!$A116,1)-2)))","v":0},{"$f":"IF(ISERROR(FIND(BH$3,'CFR - XML import'!$A116)),0,VALUE(MID('CFR - XML import'!$A116,SEARCH(\">\",'CFR - XML import'!$A116,1)+1,SEARCH(\"/\",'CFR - XML import'!$A116,1)-SEARCH(\">\",'CFR - XML import'!$A116,1)-2)))","v":0},{"$f":"IF(ISERROR(FIND(BI$3,'CFR - XML import'!$A116)),0,VALUE(MID('CFR - XML import'!$A116,SEARCH(\">\",'CFR - XML import'!$A116,1)+1,SEARCH(\"/\",'CFR - XML import'!$A116,1)-SEARCH(\">\",'CFR - XML import'!$A116,1)-2)))","v":0},{"$f":"IF(ISERROR(FIND(BJ$3,'CFR - XML import'!$A116)),0,VALUE(MID('CFR - XML import'!$A116,SEARCH(\">\",'CFR - XML import'!$A116,1)+1,SEARCH(\"/\",'CFR - XML import'!$A116,1)-SEARCH(\">\",'CFR - XML import'!$A116,1)-2)))","v":0},{"$f":"IF(ISERROR(FIND(BK$3,'CFR - XML import'!$A116)),0,VALUE(MID('CFR - XML import'!$A116,SEARCH(\">\",'CFR - XML import'!$A116,1)+1,SEARCH(\"/\",'CFR - XML import'!$A116,1)-SEARCH(\">\",'CFR - XML import'!$A116,1)-2)))","v":0},{"$f":"IF(ISERROR(FIND(BL$3,'CFR - XML import'!$A116)),0,VALUE(MID('CFR - XML import'!$A116,SEARCH(\">\",'CFR - XML import'!$A116,1)+1,SEARCH(\"/\",'CFR - XML import'!$A116,1)-SEARCH(\">\",'CFR - XML import'!$A116,1)-2)))","v":0},{"$f":"IF(ISERROR(FIND(BM$3,'CFR - XML import'!$A116)),0,VALUE(MID('CFR - XML import'!$A116,SEARCH(\">\",'CFR - XML import'!$A116,1)+1,SEARCH(\"/\",'CFR - XML import'!$A116,1)-SEARCH(\">\",'CFR - XML import'!$A116,1)-2)))","v":0},{"$f":"IF(ISERROR(FIND(BN$3,'CFR - XML import'!$A116)),0,VALUE(MID('CFR - XML import'!$A116,SEARCH(\">\",'CFR - XML import'!$A116,1)+1,SEARCH(\"/\",'CFR - XML import'!$A116,1)-SEARCH(\">\",'CFR - XML import'!$A116,1)-2)))","v":0},{"$f":"IF(ISERROR(FIND(BO$3,'CFR - XML import'!$A116)),0,VALUE(MID('CFR - XML import'!$A116,SEARCH(\">\",'CFR - XML import'!$A116,1)+1,SEARCH(\"/\",'CFR - XML import'!$A116,1)-SEARCH(\">\",'CFR - XML import'!$A116,1)-2)))","v":0},{"$f":"IF(ISERROR(FIND(BP$3,'CFR - XML import'!$A116)),0,VALUE(MID('CFR - XML import'!$A116,SEARCH(\">\",'CFR - XML import'!$A116,1)+1,SEARCH(\"/\",'CFR - XML import'!$A116,1)-SEARCH(\">\",'CFR - XML import'!$A116,1)-2)))","v":0},{"$f":"IF(ISERROR(FIND(BQ$3,'CFR - XML import'!$A116)),0,VALUE(MID('CFR - XML import'!$A116,SEARCH(\">\",'CFR - XML import'!$A116,1)+1,SEARCH(\"/\",'CFR - XML import'!$A116,1)-SEARCH(\">\",'CFR - XML import'!$A116,1)-2)))","v":0},{"$f":"IF(ISERROR(FIND(BR$3,'CFR - XML import'!$A116)),0,VALUE(MID('CFR - XML import'!$A116,SEARCH(\">\",'CFR - XML import'!$A116,1)+1,SEARCH(\"/\",'CFR - XML import'!$A116,1)-SEARCH(\">\",'CFR - XML import'!$A116,1)-2)))","v":0},{"$f":"IF(ISERROR(FIND(BS$3,'CFR - XML import'!$A116)),0,VALUE(MID('CFR - XML import'!$A116,SEARCH(\">\",'CFR - XML import'!$A116,1)+1,SEARCH(\"/\",'CFR - XML import'!$A116,1)-SEARCH(\">\",'CFR - XML import'!$A116,1)-2)))","v":0},{"$f":"IF(ISERROR(FIND(BT$3,'CFR - XML import'!$A116)),0,VALUE(MID('CFR - XML import'!$A116,SEARCH(\">\",'CFR - XML import'!$A116,1)+1,SEARCH(\"/\",'CFR - XML import'!$A116,1)-SEARCH(\">\",'CFR - XML import'!$A116,1)-2)))","v":0},{"$f":"IF(ISERROR(FIND(BU$3,'CFR - XML import'!$A116)),0,VALUE(MID('CFR - XML import'!$A116,SEARCH(\">\",'CFR - XML import'!$A116,1)+1,SEARCH(\"/\",'CFR - XML import'!$A116,1)-SEARCH(\">\",'CFR - XML import'!$A116,1)-2)))","v":0},{"$f":"IF(ISERROR(FIND(BV$3,'CFR - XML import'!$A116)),0,VALUE(MID('CFR - XML import'!$A116,SEARCH(\">\",'CFR - XML import'!$A116,1)+1,SEARCH(\"/\",'CFR - XML import'!$A116,1)-SEARCH(\">\",'CFR - XML import'!$A116,1)-2)))","v":0},{"$f":"IF(ISERROR(FIND(BW$3,'CFR - XML import'!$A116)),0,VALUE(MID('CFR - XML import'!$A116,SEARCH(\">\",'CFR - XML import'!$A116,1)+1,SEARCH(\"/\",'CFR - XML import'!$A116,1)-SEARCH(\">\",'CFR - XML import'!$A116,1)-2)))","v":0},{"$f":"IF(ISERROR(FIND(BX$3,'CFR - XML import'!$A116)),0,VALUE(MID('CFR - XML import'!$A116,SEARCH(\">\",'CFR - XML import'!$A116,1)+1,SEARCH(\"/\",'CFR - XML import'!$A116,1)-SEARCH(\">\",'CFR - XML import'!$A116,1)-2)))","v":0},{"$f":"IF(ISERROR(FIND(BY$3,'CFR - XML import'!$A116)),0,VALUE(MID('CFR - XML import'!$A116,SEARCH(\">\",'CFR - XML import'!$A116,1)+1,SEARCH(\"/\",'CFR - XML import'!$A116,1)-SEARCH(\">\",'CFR - XML import'!$A116,1)-2)))","v":0},{"$f":"IF(ISERROR(FIND(BZ$3,'CFR - XML import'!$A116)),0,VALUE(MID('CFR - XML import'!$A116,SEARCH(\">\",'CFR - XML import'!$A116,1)+1,SEARCH(\"/\",'CFR - XML import'!$A116,1)-SEARCH(\">\",'CFR - XML import'!$A116,1)-2)))","v":0},null,null,null,null,null,null,{"$f":"IF(ISERROR(IF(MID('CFR - XML import'!$A116,LEN($CF$4)+1,LEN('CFR - XML import'!$A116)-(2*LEN($CF$4)+1))=\"RMMS\",1,IF(MID('CFR - XML import'!$A116,LEN(\"    <InputSystem>\")+1,LEN('CFR - XML import'!$A116)-(LEN(\"    <InputSystem>\")+LEN($CF$4)+1))=\"SIMS\",2,0))),0,IF(MID('CFR - XML import'!$A116,LEN($CF$4)+1,LEN('CFR - XML import'!$A116)-(2*LEN($CF$4)+1))=\"RMMS\",1,IF(MID('CFR - XML import'!$A116,LEN(\"    <InputSystem>\")+1,LEN('CFR - XML import'!$A116)-(LEN(\"    <InputSystem>\")+LEN($CF$4)+1))=\"SIMS\",2,0)))","v":0},{"$f":"IF(ISERROR(FIND(CH$3,'CFR - XML import'!$A116)),0,MID('CFR - XML import'!$A116,SEARCH(\">\",'CFR - XML import'!$A116,1)+1,SEARCH(\"/\",'CFR - XML import'!$A116,1)-SEARCH(\">\",'CFR - XML import'!$A116,1)-2))","v":0},{"$f":"IF(ISERROR(FIND(CI$3,'CFR - XML import'!$A116)),0,MID('CFR - XML import'!$A116,SEARCH(\">\",'CFR - XML import'!$A116,1)+1,SEARCH(\"/\",'CFR - XML import'!$A116,1)-SEARCH(\">\",'CFR - XML import'!$A116,1)-2))","v":0},{"$f":"IF(ISERROR(FIND(CJ$3,'CFR - XML import'!$A116)),0,MID('CFR - XML import'!$A116,SEARCH(\">\",'CFR - XML import'!$A116,1)+1,SEARCH(\"/\",'CFR - XML import'!$A116,1)-SEARCH(\">\",'CFR - XML import'!$A116,1)-2))","v":0},{"$f":"IF(ISERROR(FIND(CK$3,'CFR - XML import'!$A116)),0,MID('CFR - XML import'!$A116,SEARCH(\">\",'CFR - XML import'!$A116,1)+1,SEARCH(\"/\",'CFR - XML import'!$A116,1)-SEARCH(\">\",'CFR - XML import'!$A116,1)-2))","v":0},{"$f":"IF(ISERROR(FIND(CL$3,'CFR - XML import'!$A116)),0,MID('CFR - XML import'!$A116,SEARCH(\">\",'CFR - XML import'!$A116,1)+1,SEARCH(\"/\",'CFR - XML import'!$A116,1)-SEARCH(\">\",'CFR - XML import'!$A116,1)-2))","v":0}]
[{"$f":"IF(AND('CFR - XML import'!A117<>\"\",LEFT('CFR - XML import'!A117,1)<>\"<\",LEFT('CFR - XML import'!A117,3)<>\"  <\",LEFT('CFR - XML import'!A117,5)<>\"    <\",LEFT('CFR - XML import'!A117,7)<>\"      <\",LEFT('CFR - XML import'!A117,9)<>\"        <\",$B$1=\"SIMS\"),'CFR - XML import'!A117,IF(AND(LEFT('CFR - XML import'!A117,9)=\"<Details>\",$B$1=\"RM\"),'CFR - XML import'!A117,\"\"))","v":""},{"$f":"IF(ISERROR(FIND(B$3,'CFR - XML import'!$A117)),0,VALUE(MID('CFR - XML import'!$A117,SEARCH(\">\",'CFR - XML import'!$A117,1)+1,SEARCH(\"/\",'CFR - XML import'!$A117,1)-SEARCH(\">\",'CFR - XML import'!$A117,1)-2)))","v":0},null,{"$f":"IF(ISERROR(FIND(D$3,'CFR - XML import'!$A117)),0,MID('CFR - XML import'!$A117,SEARCH(\">\",'CFR - XML import'!$A117,1)+1,SEARCH(\"/\",'CFR - XML import'!$A117,1)-SEARCH(\">\",'CFR - XML import'!$A117,1)-2))","v":0},{"$f":"IF(ISERROR(FIND(E$3,'CFR - XML import'!$A117)),0,MID('CFR - XML import'!$A117,SEARCH(\">\",'CFR - XML import'!$A117,1)+1,SEARCH(\"/\",'CFR - XML import'!$A117,1)-SEARCH(\">\",'CFR - XML import'!$A117,1)-2))","v":0},{"$f":"IF($B$1=\"SIMS\",IF(ISERROR(FIND(F$3,'CFR - XML import'!$A117)),0,VALUE(MID('CFR - XML import'!$A117,15,10))),IF(ISERROR(FIND(F$3,'CFR - XML import'!$A117)),0,VALUE(MID('CFR - XML import'!$A117,11,10))))","v":"00:00:00"},{"$f":"IF(ISERROR(FIND(G$3,'CFR - XML import'!$A117)),0,VALUE(MID('CFR - XML import'!$A117,SEARCH(\">\",'CFR - XML import'!$A117,1)+1,SEARCH(\"/\",'CFR - XML import'!$A117,1)-SEARCH(\">\",'CFR - XML import'!$A117,1)-2)))","v":0},{"$f":"IF(ISERROR(FIND(H$3,'CFR - XML import'!$A117)),0,VALUE(MID('CFR - XML import'!$A117,SEARCH(\">\",'CFR - XML import'!$A117,1)+1,SEARCH(\"/\",'CFR - XML import'!$A117,1)-SEARCH(\">\",'CFR - XML import'!$A117,1)-2)))","v":0},{"$f":"IF(ISERROR(FIND(I$3,'CFR - XML import'!$A117)),0,VALUE(MID('CFR - XML import'!$A117,SEARCH(\">\",'CFR - XML import'!$A117,1)+1,SEARCH(\"/\",'CFR - XML import'!$A117,1)-SEARCH(\">\",'CFR - XML import'!$A117,1)-2)))","v":0},{"$f":"IF(ISERROR(FIND(J$3,'CFR - XML import'!$A117)),0,VALUE(MID('CFR - XML import'!$A117,SEARCH(\">\",'CFR - XML import'!$A117,1)+1,SEARCH(\"/\",'CFR - XML import'!$A117,1)-SEARCH(\">\",'CFR - XML import'!$A117,1)-2)))","v":0},{"$f":"IF(ISERROR(FIND(K$3,'CFR - XML import'!$A117)),0,VALUE(MID('CFR - XML import'!$A117,SEARCH(\">\",'CFR - XML import'!$A117,1)+1,SEARCH(\"/\",'CFR - XML import'!$A117,1)-SEARCH(\">\",'CFR - XML import'!$A117,1)-2)))","v":0},{"$f":"IF(ISERROR(FIND(L$3,'CFR - XML import'!$A117)),0,VALUE(MID('CFR - XML import'!$A117,SEARCH(\">\",'CFR - XML import'!$A117,1)+1,SEARCH(\"/\",'CFR - XML import'!$A117,1)-SEARCH(\">\",'CFR - XML import'!$A117,1)-2)))","v":0},{"$f":"IF(ISERROR(FIND(M$3,'CFR - XML import'!$A117)),0,VALUE(MID('CFR - XML import'!$A117,SEARCH(\">\",'CFR - XML import'!$A117,1)+1,SEARCH(\"/\",'CFR - XML import'!$A117,1)-SEARCH(\">\",'CFR - XML import'!$A117,1)-2)))","v":0},{"$f":"IF(ISERROR(FIND(N$3,'CFR - XML import'!$A117)),0,VALUE(MID('CFR - XML import'!$A117,SEARCH(\">\",'CFR - XML import'!$A117,1)+1,SEARCH(\"/\",'CFR - XML import'!$A117,1)-SEARCH(\">\",'CFR - XML import'!$A117,1)-2)))","v":0},{"$f":"IF(ISERROR(FIND(O$3,'CFR - XML import'!$A117)),0,VALUE(MID('CFR - XML import'!$A117,SEARCH(\">\",'CFR - XML import'!$A117,1)+1,SEARCH(\"/\",'CFR - XML import'!$A117,1)-SEARCH(\">\",'CFR - XML import'!$A117,1)-2)))","v":0},{"$f":"IF(ISERROR(FIND(P$3,'CFR - XML import'!$A117)),0,VALUE(MID('CFR - XML import'!$A117,SEARCH(\">\",'CFR - XML import'!$A117,1)+1,SEARCH(\"/\",'CFR - XML import'!$A117,1)-SEARCH(\">\",'CFR - XML import'!$A117,1)-2)))","v":0},{"$f":"IF(ISERROR(FIND(Q$3,'CFR - XML import'!$A117)),0,VALUE(MID('CFR - XML import'!$A117,SEARCH(\">\",'CFR - XML import'!$A117,1)+1,SEARCH(\"/\",'CFR - XML import'!$A117,1)-SEARCH(\">\",'CFR - XML import'!$A117,1)-2)))","v":0},{"$f":"IF(ISERROR(FIND(R$3,'CFR - XML import'!$A117)),0,VALUE(MID('CFR - XML import'!$A117,SEARCH(\">\",'CFR - XML import'!$A117,1)+1,SEARCH(\"/\",'CFR - XML import'!$A117,1)-SEARCH(\">\",'CFR - XML import'!$A117,1)-2)))","v":0},{"$f":"IF(ISERROR(FIND(S$3,'CFR - XML import'!$A117)),0,VALUE(MID('CFR - XML import'!$A117,SEARCH(\">\",'CFR - XML import'!$A117,1)+1,SEARCH(\"/\",'CFR - XML import'!$A117,1)-SEARCH(\">\",'CFR - XML import'!$A117,1)-2)))","v":0},{"$f":"IF(ISERROR(FIND(T$3,'CFR - XML import'!$A117)),0,VALUE(MID('CFR - XML import'!$A117,SEARCH(\">\",'CFR - XML import'!$A117,1)+1,SEARCH(\"/\",'CFR - XML import'!$A117,1)-SEARCH(\">\",'CFR - XML import'!$A117,1)-2)))","v":0},{"$f":"IF(ISERROR(FIND(U$3,'CFR - XML import'!$A117)),0,VALUE(MID('CFR - XML import'!$A117,SEARCH(\">\",'CFR - XML import'!$A117,1)+1,SEARCH(\"/\",'CFR - XML import'!$A117,1)-SEARCH(\">\",'CFR - XML import'!$A117,1)-2)))","v":0},{"$f":"IF(ISERROR(FIND(V$3,'CFR - XML import'!$A117)),0,VALUE(MID('CFR - XML import'!$A117,SEARCH(\">\",'CFR - XML import'!$A117,1)+1,SEARCH(\"/\",'CFR - XML import'!$A117,1)-SEARCH(\">\",'CFR - XML import'!$A117,1)-2)))","v":0},{"$f":"IF(ISERROR(FIND(W$3,'CFR - XML import'!$A117)),0,VALUE(MID('CFR - XML import'!$A117,SEARCH(\">\",'CFR - XML import'!$A117,1)+1,SEARCH(\"/\",'CFR - XML import'!$A117,1)-SEARCH(\">\",'CFR - XML import'!$A117,1)-2)))","v":0},null,{"$f":"IF(ISERROR(FIND(Y$3,'CFR - XML import'!$A117)),0,VALUE(MID('CFR - XML import'!$A117,SEARCH(\">\",'CFR - XML import'!$A117,1)+1,SEARCH(\"/\",'CFR - XML import'!$A117,1)-SEARCH(\">\",'CFR - XML import'!$A117,1)-2)))","v":0},{"$f":"IF(ISERROR(FIND(Z$3,'CFR - XML import'!$A117)),0,VALUE(MID('CFR - XML import'!$A117,SEARCH(\">\",'CFR - XML import'!$A117,1)+1,SEARCH(\"/\",'CFR - XML import'!$A117,1)-SEARCH(\">\",'CFR - XML import'!$A117,1)-2)))","v":0},{"$f":"IF(ISERROR(FIND(AA$3,'CFR - XML import'!$A117)),0,VALUE(MID('CFR - XML import'!$A117,SEARCH(\">\",'CFR - XML import'!$A117,1)+1,SEARCH(\"/\",'CFR - XML import'!$A117,1)-SEARCH(\">\",'CFR - XML import'!$A117,1)-2)))","v":0},{"$f":"IF(ISERROR(FIND(AB$3,'CFR - XML import'!$A117)),0,VALUE(MID('CFR - XML import'!$A117,SEARCH(\">\",'CFR - XML import'!$A117,1)+1,SEARCH(\"/\",'CFR - XML import'!$A117,1)-SEARCH(\">\",'CFR - XML import'!$A117,1)-2)))","v":0},{"$f":"IF(ISERROR(FIND(AC$3,'CFR - XML import'!$A117)),0,VALUE(MID('CFR - XML import'!$A117,SEARCH(\">\",'CFR - XML import'!$A117,1)+1,SEARCH(\"/\",'CFR - XML import'!$A117,1)-SEARCH(\">\",'CFR - XML import'!$A117,1)-2)))","v":0},{"$f":"IF(ISERROR(FIND(AD$3,'CFR - XML import'!$A117)),0,VALUE(MID('CFR - XML import'!$A117,SEARCH(\">\",'CFR - XML import'!$A117,1)+1,SEARCH(\"/\",'CFR - XML import'!$A117,1)-SEARCH(\">\",'CFR - XML import'!$A117,1)-2)))","v":0},{"$f":"IF(ISERROR(FIND(AE$3,'CFR - XML import'!$A117)),0,VALUE(MID('CFR - XML import'!$A117,SEARCH(\">\",'CFR - XML import'!$A117,1)+1,SEARCH(\"/\",'CFR - XML import'!$A117,1)-SEARCH(\">\",'CFR - XML import'!$A117,1)-2)))","v":0},{"$f":"IF(ISERROR(FIND(AF$3,'CFR - XML import'!$A117)),0,VALUE(MID('CFR - XML import'!$A117,SEARCH(\">\",'CFR - XML import'!$A117,1)+1,SEARCH(\"/\",'CFR - XML import'!$A117,1)-SEARCH(\">\",'CFR - XML import'!$A117,1)-2)))","v":0},{"$f":"IF(ISERROR(FIND(AG$3,'CFR - XML import'!$A117)),0,VALUE(MID('CFR - XML import'!$A117,SEARCH(\">\",'CFR - XML import'!$A117,1)+1,SEARCH(\"/\",'CFR - XML import'!$A117,1)-SEARCH(\">\",'CFR - XML import'!$A117,1)-2)))","v":0},{"$f":"IF(ISERROR(FIND(AH$3,'CFR - XML import'!$A117)),0,VALUE(MID('CFR - XML import'!$A117,SEARCH(\">\",'CFR - XML import'!$A117,1)+1,SEARCH(\"/\",'CFR - XML import'!$A117,1)-SEARCH(\">\",'CFR - XML import'!$A117,1)-2)))","v":0},{"$f":"IF(ISERROR(FIND(AI$3,'CFR - XML import'!$A117)),0,VALUE(MID('CFR - XML import'!$A117,SEARCH(\">\",'CFR - XML import'!$A117,1)+1,SEARCH(\"/\",'CFR - XML import'!$A117,1)-SEARCH(\">\",'CFR - XML import'!$A117,1)-2)))","v":0},{"$f":"IF(ISERROR(FIND(AJ$3,'CFR - XML import'!$A117)),0,VALUE(MID('CFR - XML import'!$A117,SEARCH(\">\",'CFR - XML import'!$A117,1)+1,SEARCH(\"/\",'CFR - XML import'!$A117,1)-SEARCH(\">\",'CFR - XML import'!$A117,1)-2)))","v":0},{"$f":"IF(ISERROR(FIND(AK$3,'CFR - XML import'!$A117)),0,VALUE(MID('CFR - XML import'!$A117,SEARCH(\">\",'CFR - XML import'!$A117,1)+1,SEARCH(\"/\",'CFR - XML import'!$A117,1)-SEARCH(\">\",'CFR - XML import'!$A117,1)-2)))","v":0},{"$f":"IF(ISERROR(FIND(AL$3,'CFR - XML import'!$A117)),0,VALUE(MID('CFR - XML import'!$A117,SEARCH(\">\",'CFR - XML import'!$A117,1)+1,SEARCH(\"/\",'CFR - XML import'!$A117,1)-SEARCH(\">\",'CFR - XML import'!$A117,1)-2)))","v":0},{"$f":"IF(ISERROR(FIND(AM$3,'CFR - XML import'!$A117)),0,VALUE(MID('CFR - XML import'!$A117,SEARCH(\">\",'CFR - XML import'!$A117,1)+1,SEARCH(\"/\",'CFR - XML import'!$A117,1)-SEARCH(\">\",'CFR - XML import'!$A117,1)-2)))","v":0},{"$f":"IF(ISERROR(FIND(AN$3,'CFR - XML import'!$A117)),0,VALUE(MID('CFR - XML import'!$A117,SEARCH(\">\",'CFR - XML import'!$A117,1)+1,SEARCH(\"/\",'CFR - XML import'!$A117,1)-SEARCH(\">\",'CFR - XML import'!$A117,1)-2)))","v":0},{"$f":"IF(ISERROR(FIND(AO$3,'CFR - XML import'!$A117)),0,VALUE(MID('CFR - XML import'!$A117,SEARCH(\">\",'CFR - XML import'!$A117,1)+1,SEARCH(\"/\",'CFR - XML import'!$A117,1)-SEARCH(\">\",'CFR - XML import'!$A117,1)-2)))","v":0},{"$f":"IF(ISERROR(FIND(AP$3,'CFR - XML import'!$A117)),0,VALUE(MID('CFR - XML import'!$A117,SEARCH(\">\",'CFR - XML import'!$A117,1)+1,SEARCH(\"/\",'CFR - XML import'!$A117,1)-SEARCH(\">\",'CFR - XML import'!$A117,1)-2)))","v":0},{"$f":"IF(ISERROR(FIND(AQ$3,'CFR - XML import'!$A117)),0,VALUE(MID('CFR - XML import'!$A117,SEARCH(\">\",'CFR - XML import'!$A117,1)+1,SEARCH(\"/\",'CFR - XML import'!$A117,1)-SEARCH(\">\",'CFR - XML import'!$A117,1)-2)))","v":0},{"$f":"IF(ISERROR(FIND(AR$3,'CFR - XML import'!$A117)),0,VALUE(MID('CFR - XML import'!$A117,SEARCH(\">\",'CFR - XML import'!$A117,1)+1,SEARCH(\"/\",'CFR - XML import'!$A117,1)-SEARCH(\">\",'CFR - XML import'!$A117,1)-2)))","v":0},{"$f":"IF(ISERROR(FIND(AS$3,'CFR - XML import'!$A117)),0,VALUE(MID('CFR - XML import'!$A117,SEARCH(\">\",'CFR - XML import'!$A117,1)+1,SEARCH(\"/\",'CFR - XML import'!$A117,1)-SEARCH(\">\",'CFR - XML import'!$A117,1)-2)))","v":0},{"$f":"IF(ISERROR(FIND(AT$3,'CFR - XML import'!$A117)),0,VALUE(MID('CFR - XML import'!$A117,SEARCH(\">\",'CFR - XML import'!$A117,1)+1,SEARCH(\"/\",'CFR - XML import'!$A117,1)-SEARCH(\">\",'CFR - XML import'!$A117,1)-2)))","v":0},{"$f":"IF(ISERROR(FIND(AU$3,'CFR - XML import'!$A117)),0,VALUE(MID('CFR - XML import'!$A117,SEARCH(\">\",'CFR - XML import'!$A117,1)+1,SEARCH(\"/\",'CFR - XML import'!$A117,1)-SEARCH(\">\",'CFR - XML import'!$A117,1)-2)))","v":0},{"$f":"IF(ISERROR(FIND(AV$3,'CFR - XML import'!$A117)),0,VALUE(MID('CFR - XML import'!$A117,SEARCH(\">\",'CFR - XML import'!$A117,1)+1,SEARCH(\"/\",'CFR - XML import'!$A117,1)-SEARCH(\">\",'CFR - XML import'!$A117,1)-2)))","v":0},{"$f":"IF(ISERROR(FIND(AW$3,'CFR - XML import'!$A117)),0,VALUE(MID('CFR - XML import'!$A117,SEARCH(\">\",'CFR - XML import'!$A117,1)+1,SEARCH(\"/\",'CFR - XML import'!$A117,1)-SEARCH(\">\",'CFR - XML import'!$A117,1)-2)))","v":0},{"$f":"IF(ISERROR(FIND(AX$3,'CFR - XML import'!$A117)),0,VALUE(MID('CFR - XML import'!$A117,SEARCH(\">\",'CFR - XML import'!$A117,1)+1,SEARCH(\"/\",'CFR - XML import'!$A117,1)-SEARCH(\">\",'CFR - XML import'!$A117,1)-2)))","v":0},{"$f":"IF(ISERROR(FIND(AY$3,'CFR - XML import'!$A117)),0,VALUE(MID('CFR - XML import'!$A117,SEARCH(\">\",'CFR - XML import'!$A117,1)+1,SEARCH(\"/\",'CFR - XML import'!$A117,1)-SEARCH(\">\",'CFR - XML import'!$A117,1)-2)))","v":0},{"$f":"IF(ISERROR(FIND(AZ$3,'CFR - XML import'!$A117)),0,VALUE(MID('CFR - XML import'!$A117,SEARCH(\">\",'CFR - XML import'!$A117,1)+1,SEARCH(\"/\",'CFR - XML import'!$A117,1)-SEARCH(\">\",'CFR - XML import'!$A117,1)-2)))","v":0},{"$f":"IF(ISERROR(FIND(BA$3,'CFR - XML import'!$A117)),0,VALUE(MID('CFR - XML import'!$A117,SEARCH(\">\",'CFR - XML import'!$A117,1)+1,SEARCH(\"/\",'CFR - XML import'!$A117,1)-SEARCH(\">\",'CFR - XML import'!$A117,1)-2)))","v":0},{"$f":"IF(ISERROR(FIND(BB$3,'CFR - XML import'!$A117)),0,VALUE(MID('CFR - XML import'!$A117,SEARCH(\">\",'CFR - XML import'!$A117,1)+1,SEARCH(\"/\",'CFR - XML import'!$A117,1)-SEARCH(\">\",'CFR - XML import'!$A117,1)-2)))","v":0},{"$f":"IF(ISERROR(FIND(BC$3,'CFR - XML import'!$A117)),0,VALUE(MID('CFR - XML import'!$A117,SEARCH(\">\",'CFR - XML import'!$A117,1)+1,SEARCH(\"/\",'CFR - XML import'!$A117,1)-SEARCH(\">\",'CFR - XML import'!$A117,1)-2)))","v":0},{"$f":"IF(ISERROR(FIND(BD$3,'CFR - XML import'!$A117)),0,VALUE(MID('CFR - XML import'!$A117,SEARCH(\">\",'CFR - XML import'!$A117,1)+1,SEARCH(\"/\",'CFR - XML import'!$A117,1)-SEARCH(\">\",'CFR - XML import'!$A117,1)-2)))","v":0},{"$f":"IF(ISERROR(FIND(BE$3,'CFR - XML import'!$A117)),0,VALUE(MID('CFR - XML import'!$A117,SEARCH(\">\",'CFR - XML import'!$A117,1)+1,SEARCH(\"/\",'CFR - XML import'!$A117,1)-SEARCH(\">\",'CFR - XML import'!$A117,1)-2)))","v":0},{"$f":"IF(ISERROR(FIND(BF$3,'CFR - XML import'!$A117)),0,VALUE(MID('CFR - XML import'!$A117,SEARCH(\">\",'CFR - XML import'!$A117,1)+1,SEARCH(\"/\",'CFR - XML import'!$A117,1)-SEARCH(\">\",'CFR - XML import'!$A117,1)-2)))","v":0},{"$f":"IF(ISERROR(FIND(BG$3,'CFR - XML import'!$A117)),0,VALUE(MID('CFR - XML import'!$A117,SEARCH(\">\",'CFR - XML import'!$A117,1)+1,SEARCH(\"/\",'CFR - XML import'!$A117,1)-SEARCH(\">\",'CFR - XML import'!$A117,1)-2)))","v":0},{"$f":"IF(ISERROR(FIND(BH$3,'CFR - XML import'!$A117)),0,VALUE(MID('CFR - XML import'!$A117,SEARCH(\">\",'CFR - XML import'!$A117,1)+1,SEARCH(\"/\",'CFR - XML import'!$A117,1)-SEARCH(\">\",'CFR - XML import'!$A117,1)-2)))","v":0},{"$f":"IF(ISERROR(FIND(BI$3,'CFR - XML import'!$A117)),0,VALUE(MID('CFR - XML import'!$A117,SEARCH(\">\",'CFR - XML import'!$A117,1)+1,SEARCH(\"/\",'CFR - XML import'!$A117,1)-SEARCH(\">\",'CFR - XML import'!$A117,1)-2)))","v":0},{"$f":"IF(ISERROR(FIND(BJ$3,'CFR - XML import'!$A117)),0,VALUE(MID('CFR - XML import'!$A117,SEARCH(\">\",'CFR - XML import'!$A117,1)+1,SEARCH(\"/\",'CFR - XML import'!$A117,1)-SEARCH(\">\",'CFR - XML import'!$A117,1)-2)))","v":0},{"$f":"IF(ISERROR(FIND(BK$3,'CFR - XML import'!$A117)),0,VALUE(MID('CFR - XML import'!$A117,SEARCH(\">\",'CFR - XML import'!$A117,1)+1,SEARCH(\"/\",'CFR - XML import'!$A117,1)-SEARCH(\">\",'CFR - XML import'!$A117,1)-2)))","v":0},{"$f":"IF(ISERROR(FIND(BL$3,'CFR - XML import'!$A117)),0,VALUE(MID('CFR - XML import'!$A117,SEARCH(\">\",'CFR - XML import'!$A117,1)+1,SEARCH(\"/\",'CFR - XML import'!$A117,1)-SEARCH(\">\",'CFR - XML import'!$A117,1)-2)))","v":0},{"$f":"IF(ISERROR(FIND(BM$3,'CFR - XML import'!$A117)),0,VALUE(MID('CFR - XML import'!$A117,SEARCH(\">\",'CFR - XML import'!$A117,1)+1,SEARCH(\"/\",'CFR - XML import'!$A117,1)-SEARCH(\">\",'CFR - XML import'!$A117,1)-2)))","v":0},{"$f":"IF(ISERROR(FIND(BN$3,'CFR - XML import'!$A117)),0,VALUE(MID('CFR - XML import'!$A117,SEARCH(\">\",'CFR - XML import'!$A117,1)+1,SEARCH(\"/\",'CFR - XML import'!$A117,1)-SEARCH(\">\",'CFR - XML import'!$A117,1)-2)))","v":0},{"$f":"IF(ISERROR(FIND(BO$3,'CFR - XML import'!$A117)),0,VALUE(MID('CFR - XML import'!$A117,SEARCH(\">\",'CFR - XML import'!$A117,1)+1,SEARCH(\"/\",'CFR - XML import'!$A117,1)-SEARCH(\">\",'CFR - XML import'!$A117,1)-2)))","v":0},{"$f":"IF(ISERROR(FIND(BP$3,'CFR - XML import'!$A117)),0,VALUE(MID('CFR - XML import'!$A117,SEARCH(\">\",'CFR - XML import'!$A117,1)+1,SEARCH(\"/\",'CFR - XML import'!$A117,1)-SEARCH(\">\",'CFR - XML import'!$A117,1)-2)))","v":0},{"$f":"IF(ISERROR(FIND(BQ$3,'CFR - XML import'!$A117)),0,VALUE(MID('CFR - XML import'!$A117,SEARCH(\">\",'CFR - XML import'!$A117,1)+1,SEARCH(\"/\",'CFR - XML import'!$A117,1)-SEARCH(\">\",'CFR - XML import'!$A117,1)-2)))","v":0},{"$f":"IF(ISERROR(FIND(BR$3,'CFR - XML import'!$A117)),0,VALUE(MID('CFR - XML import'!$A117,SEARCH(\">\",'CFR - XML import'!$A117,1)+1,SEARCH(\"/\",'CFR - XML import'!$A117,1)-SEARCH(\">\",'CFR - XML import'!$A117,1)-2)))","v":0},{"$f":"IF(ISERROR(FIND(BS$3,'CFR - XML import'!$A117)),0,VALUE(MID('CFR - XML import'!$A117,SEARCH(\">\",'CFR - XML import'!$A117,1)+1,SEARCH(\"/\",'CFR - XML import'!$A117,1)-SEARCH(\">\",'CFR - XML import'!$A117,1)-2)))","v":0},{"$f":"IF(ISERROR(FIND(BT$3,'CFR - XML import'!$A117)),0,VALUE(MID('CFR - XML import'!$A117,SEARCH(\">\",'CFR - XML import'!$A117,1)+1,SEARCH(\"/\",'CFR - XML import'!$A117,1)-SEARCH(\">\",'CFR - XML import'!$A117,1)-2)))","v":0},{"$f":"IF(ISERROR(FIND(BU$3,'CFR - XML import'!$A117)),0,VALUE(MID('CFR - XML import'!$A117,SEARCH(\">\",'CFR - XML import'!$A117,1)+1,SEARCH(\"/\",'CFR - XML import'!$A117,1)-SEARCH(\">\",'CFR - XML import'!$A117,1)-2)))","v":0},{"$f":"IF(ISERROR(FIND(BV$3,'CFR - XML import'!$A117)),0,VALUE(MID('CFR - XML import'!$A117,SEARCH(\">\",'CFR - XML import'!$A117,1)+1,SEARCH(\"/\",'CFR - XML import'!$A117,1)-SEARCH(\">\",'CFR - XML import'!$A117,1)-2)))","v":0},{"$f":"IF(ISERROR(FIND(BW$3,'CFR - XML import'!$A117)),0,VALUE(MID('CFR - XML import'!$A117,SEARCH(\">\",'CFR - XML import'!$A117,1)+1,SEARCH(\"/\",'CFR - XML import'!$A117,1)-SEARCH(\">\",'CFR - XML import'!$A117,1)-2)))","v":0},{"$f":"IF(ISERROR(FIND(BX$3,'CFR - XML import'!$A117)),0,VALUE(MID('CFR - XML import'!$A117,SEARCH(\">\",'CFR - XML import'!$A117,1)+1,SEARCH(\"/\",'CFR - XML import'!$A117,1)-SEARCH(\">\",'CFR - XML import'!$A117,1)-2)))","v":0},{"$f":"IF(ISERROR(FIND(BY$3,'CFR - XML import'!$A117)),0,VALUE(MID('CFR - XML import'!$A117,SEARCH(\">\",'CFR - XML import'!$A117,1)+1,SEARCH(\"/\",'CFR - XML import'!$A117,1)-SEARCH(\">\",'CFR - XML import'!$A117,1)-2)))","v":0},{"$f":"IF(ISERROR(FIND(BZ$3,'CFR - XML import'!$A117)),0,VALUE(MID('CFR - XML import'!$A117,SEARCH(\">\",'CFR - XML import'!$A117,1)+1,SEARCH(\"/\",'CFR - XML import'!$A117,1)-SEARCH(\">\",'CFR - XML import'!$A117,1)-2)))","v":0},null,null,null,null,null,null,{"$f":"IF(ISERROR(IF(MID('CFR - XML import'!$A117,LEN($CF$4)+1,LEN('CFR - XML import'!$A117)-(2*LEN($CF$4)+1))=\"RMMS\",1,IF(MID('CFR - XML import'!$A117,LEN(\"    <InputSystem>\")+1,LEN('CFR - XML import'!$A117)-(LEN(\"    <InputSystem>\")+LEN($CF$4)+1))=\"SIMS\",2,0))),0,IF(MID('CFR - XML import'!$A117,LEN($CF$4)+1,LEN('CFR - XML import'!$A117)-(2*LEN($CF$4)+1))=\"RMMS\",1,IF(MID('CFR - XML import'!$A117,LEN(\"    <InputSystem>\")+1,LEN('CFR - XML import'!$A117)-(LEN(\"    <InputSystem>\")+LEN($CF$4)+1))=\"SIMS\",2,0)))","v":0},{"$f":"IF(ISERROR(FIND(CH$3,'CFR - XML import'!$A117)),0,MID('CFR - XML import'!$A117,SEARCH(\">\",'CFR - XML import'!$A117,1)+1,SEARCH(\"/\",'CFR - XML import'!$A117,1)-SEARCH(\">\",'CFR - XML import'!$A117,1)-2))","v":0},{"$f":"IF(ISERROR(FIND(CI$3,'CFR - XML import'!$A117)),0,MID('CFR - XML import'!$A117,SEARCH(\">\",'CFR - XML import'!$A117,1)+1,SEARCH(\"/\",'CFR - XML import'!$A117,1)-SEARCH(\">\",'CFR - XML import'!$A117,1)-2))","v":0},{"$f":"IF(ISERROR(FIND(CJ$3,'CFR - XML import'!$A117)),0,MID('CFR - XML import'!$A117,SEARCH(\">\",'CFR - XML import'!$A117,1)+1,SEARCH(\"/\",'CFR - XML import'!$A117,1)-SEARCH(\">\",'CFR - XML import'!$A117,1)-2))","v":0},{"$f":"IF(ISERROR(FIND(CK$3,'CFR - XML import'!$A117)),0,MID('CFR - XML import'!$A117,SEARCH(\">\",'CFR - XML import'!$A117,1)+1,SEARCH(\"/\",'CFR - XML import'!$A117,1)-SEARCH(\">\",'CFR - XML import'!$A117,1)-2))","v":0},{"$f":"IF(ISERROR(FIND(CL$3,'CFR - XML import'!$A117)),0,MID('CFR - XML import'!$A117,SEARCH(\">\",'CFR - XML import'!$A117,1)+1,SEARCH(\"/\",'CFR - XML import'!$A117,1)-SEARCH(\">\",'CFR - XML import'!$A117,1)-2))","v":0}]
[{"$f":"IF(AND('CFR - XML import'!A118<>\"\",LEFT('CFR - XML import'!A118,1)<>\"<\",LEFT('CFR - XML import'!A118,3)<>\"  <\",LEFT('CFR - XML import'!A118,5)<>\"    <\",LEFT('CFR - XML import'!A118,7)<>\"      <\",LEFT('CFR - XML import'!A118,9)<>\"        <\",$B$1=\"SIMS\"),'CFR - XML import'!A118,IF(AND(LEFT('CFR - XML import'!A118,9)=\"<Details>\",$B$1=\"RM\"),'CFR - XML import'!A118,\"\"))","v":""},{"$f":"IF(ISERROR(FIND(B$3,'CFR - XML import'!$A118)),0,VALUE(MID('CFR - XML import'!$A118,SEARCH(\">\",'CFR - XML import'!$A118,1)+1,SEARCH(\"/\",'CFR - XML import'!$A118,1)-SEARCH(\">\",'CFR - XML import'!$A118,1)-2)))","v":0},null,{"$f":"IF(ISERROR(FIND(D$3,'CFR - XML import'!$A118)),0,MID('CFR - XML import'!$A118,SEARCH(\">\",'CFR - XML import'!$A118,1)+1,SEARCH(\"/\",'CFR - XML import'!$A118,1)-SEARCH(\">\",'CFR - XML import'!$A118,1)-2))","v":0},{"$f":"IF(ISERROR(FIND(E$3,'CFR - XML import'!$A118)),0,MID('CFR - XML import'!$A118,SEARCH(\">\",'CFR - XML import'!$A118,1)+1,SEARCH(\"/\",'CFR - XML import'!$A118,1)-SEARCH(\">\",'CFR - XML import'!$A118,1)-2))","v":0},{"$f":"IF($B$1=\"SIMS\",IF(ISERROR(FIND(F$3,'CFR - XML import'!$A118)),0,VALUE(MID('CFR - XML import'!$A118,15,10))),IF(ISERROR(FIND(F$3,'CFR - XML import'!$A118)),0,VALUE(MID('CFR - XML import'!$A118,11,10))))","v":"00:00:00"},{"$f":"IF(ISERROR(FIND(G$3,'CFR - XML import'!$A118)),0,VALUE(MID('CFR - XML import'!$A118,SEARCH(\">\",'CFR - XML import'!$A118,1)+1,SEARCH(\"/\",'CFR - XML import'!$A118,1)-SEARCH(\">\",'CFR - XML import'!$A118,1)-2)))","v":0},{"$f":"IF(ISERROR(FIND(H$3,'CFR - XML import'!$A118)),0,VALUE(MID('CFR - XML import'!$A118,SEARCH(\">\",'CFR - XML import'!$A118,1)+1,SEARCH(\"/\",'CFR - XML import'!$A118,1)-SEARCH(\">\",'CFR - XML import'!$A118,1)-2)))","v":0},{"$f":"IF(ISERROR(FIND(I$3,'CFR - XML import'!$A118)),0,VALUE(MID('CFR - XML import'!$A118,SEARCH(\">\",'CFR - XML import'!$A118,1)+1,SEARCH(\"/\",'CFR - XML import'!$A118,1)-SEARCH(\">\",'CFR - XML import'!$A118,1)-2)))","v":0},{"$f":"IF(ISERROR(FIND(J$3,'CFR - XML import'!$A118)),0,VALUE(MID('CFR - XML import'!$A118,SEARCH(\">\",'CFR - XML import'!$A118,1)+1,SEARCH(\"/\",'CFR - XML import'!$A118,1)-SEARCH(\">\",'CFR - XML import'!$A118,1)-2)))","v":0},{"$f":"IF(ISERROR(FIND(K$3,'CFR - XML import'!$A118)),0,VALUE(MID('CFR - XML import'!$A118,SEARCH(\">\",'CFR - XML import'!$A118,1)+1,SEARCH(\"/\",'CFR - XML import'!$A118,1)-SEARCH(\">\",'CFR - XML import'!$A118,1)-2)))","v":0},{"$f":"IF(ISERROR(FIND(L$3,'CFR - XML import'!$A118)),0,VALUE(MID('CFR - XML import'!$A118,SEARCH(\">\",'CFR - XML import'!$A118,1)+1,SEARCH(\"/\",'CFR - XML import'!$A118,1)-SEARCH(\">\",'CFR - XML import'!$A118,1)-2)))","v":0},{"$f":"IF(ISERROR(FIND(M$3,'CFR - XML import'!$A118)),0,VALUE(MID('CFR - XML import'!$A118,SEARCH(\">\",'CFR - XML import'!$A118,1)+1,SEARCH(\"/\",'CFR - XML import'!$A118,1)-SEARCH(\">\",'CFR - XML import'!$A118,1)-2)))","v":0},{"$f":"IF(ISERROR(FIND(N$3,'CFR - XML import'!$A118)),0,VALUE(MID('CFR - XML import'!$A118,SEARCH(\">\",'CFR - XML import'!$A118,1)+1,SEARCH(\"/\",'CFR - XML import'!$A118,1)-SEARCH(\">\",'CFR - XML import'!$A118,1)-2)))","v":0},{"$f":"IF(ISERROR(FIND(O$3,'CFR - XML import'!$A118)),0,VALUE(MID('CFR - XML import'!$A118,SEARCH(\">\",'CFR - XML import'!$A118,1)+1,SEARCH(\"/\",'CFR - XML import'!$A118,1)-SEARCH(\">\",'CFR - XML import'!$A118,1)-2)))","v":0},{"$f":"IF(ISERROR(FIND(P$3,'CFR - XML import'!$A118)),0,VALUE(MID('CFR - XML import'!$A118,SEARCH(\">\",'CFR - XML import'!$A118,1)+1,SEARCH(\"/\",'CFR - XML import'!$A118,1)-SEARCH(\">\",'CFR - XML import'!$A118,1)-2)))","v":0},{"$f":"IF(ISERROR(FIND(Q$3,'CFR - XML import'!$A118)),0,VALUE(MID('CFR - XML import'!$A118,SEARCH(\">\",'CFR - XML import'!$A118,1)+1,SEARCH(\"/\",'CFR - XML import'!$A118,1)-SEARCH(\">\",'CFR - XML import'!$A118,1)-2)))","v":0},{"$f":"IF(ISERROR(FIND(R$3,'CFR - XML import'!$A118)),0,VALUE(MID('CFR - XML import'!$A118,SEARCH(\">\",'CFR - XML import'!$A118,1)+1,SEARCH(\"/\",'CFR - XML import'!$A118,1)-SEARCH(\">\",'CFR - XML import'!$A118,1)-2)))","v":0},{"$f":"IF(ISERROR(FIND(S$3,'CFR - XML import'!$A118)),0,VALUE(MID('CFR - XML import'!$A118,SEARCH(\">\",'CFR - XML import'!$A118,1)+1,SEARCH(\"/\",'CFR - XML import'!$A118,1)-SEARCH(\">\",'CFR - XML import'!$A118,1)-2)))","v":0},{"$f":"IF(ISERROR(FIND(T$3,'CFR - XML import'!$A118)),0,VALUE(MID('CFR - XML import'!$A118,SEARCH(\">\",'CFR - XML import'!$A118,1)+1,SEARCH(\"/\",'CFR - XML import'!$A118,1)-SEARCH(\">\",'CFR - XML import'!$A118,1)-2)))","v":0},{"$f":"IF(ISERROR(FIND(U$3,'CFR - XML import'!$A118)),0,VALUE(MID('CFR - XML import'!$A118,SEARCH(\">\",'CFR - XML import'!$A118,1)+1,SEARCH(\"/\",'CFR - XML import'!$A118,1)-SEARCH(\">\",'CFR - XML import'!$A118,1)-2)))","v":0},{"$f":"IF(ISERROR(FIND(V$3,'CFR - XML import'!$A118)),0,VALUE(MID('CFR - XML import'!$A118,SEARCH(\">\",'CFR - XML import'!$A118,1)+1,SEARCH(\"/\",'CFR - XML import'!$A118,1)-SEARCH(\">\",'CFR - XML import'!$A118,1)-2)))","v":0},{"$f":"IF(ISERROR(FIND(W$3,'CFR - XML import'!$A118)),0,VALUE(MID('CFR - XML import'!$A118,SEARCH(\">\",'CFR - XML import'!$A118,1)+1,SEARCH(\"/\",'CFR - XML import'!$A118,1)-SEARCH(\">\",'CFR - XML import'!$A118,1)-2)))","v":0},null,{"$f":"IF(ISERROR(FIND(Y$3,'CFR - XML import'!$A118)),0,VALUE(MID('CFR - XML import'!$A118,SEARCH(\">\",'CFR - XML import'!$A118,1)+1,SEARCH(\"/\",'CFR - XML import'!$A118,1)-SEARCH(\">\",'CFR - XML import'!$A118,1)-2)))","v":0},{"$f":"IF(ISERROR(FIND(Z$3,'CFR - XML import'!$A118)),0,VALUE(MID('CFR - XML import'!$A118,SEARCH(\">\",'CFR - XML import'!$A118,1)+1,SEARCH(\"/\",'CFR - XML import'!$A118,1)-SEARCH(\">\",'CFR - XML import'!$A118,1)-2)))","v":0},{"$f":"IF(ISERROR(FIND(AA$3,'CFR - XML import'!$A118)),0,VALUE(MID('CFR - XML import'!$A118,SEARCH(\">\",'CFR - XML import'!$A118,1)+1,SEARCH(\"/\",'CFR - XML import'!$A118,1)-SEARCH(\">\",'CFR - XML import'!$A118,1)-2)))","v":0},{"$f":"IF(ISERROR(FIND(AB$3,'CFR - XML import'!$A118)),0,VALUE(MID('CFR - XML import'!$A118,SEARCH(\">\",'CFR - XML import'!$A118,1)+1,SEARCH(\"/\",'CFR - XML import'!$A118,1)-SEARCH(\">\",'CFR - XML import'!$A118,1)-2)))","v":0},{"$f":"IF(ISERROR(FIND(AC$3,'CFR - XML import'!$A118)),0,VALUE(MID('CFR - XML import'!$A118,SEARCH(\">\",'CFR - XML import'!$A118,1)+1,SEARCH(\"/\",'CFR - XML import'!$A118,1)-SEARCH(\">\",'CFR - XML import'!$A118,1)-2)))","v":0},{"$f":"IF(ISERROR(FIND(AD$3,'CFR - XML import'!$A118)),0,VALUE(MID('CFR - XML import'!$A118,SEARCH(\">\",'CFR - XML import'!$A118,1)+1,SEARCH(\"/\",'CFR - XML import'!$A118,1)-SEARCH(\">\",'CFR - XML import'!$A118,1)-2)))","v":0},{"$f":"IF(ISERROR(FIND(AE$3,'CFR - XML import'!$A118)),0,VALUE(MID('CFR - XML import'!$A118,SEARCH(\">\",'CFR - XML import'!$A118,1)+1,SEARCH(\"/\",'CFR - XML import'!$A118,1)-SEARCH(\">\",'CFR - XML import'!$A118,1)-2)))","v":0},{"$f":"IF(ISERROR(FIND(AF$3,'CFR - XML import'!$A118)),0,VALUE(MID('CFR - XML import'!$A118,SEARCH(\">\",'CFR - XML import'!$A118,1)+1,SEARCH(\"/\",'CFR - XML import'!$A118,1)-SEARCH(\">\",'CFR - XML import'!$A118,1)-2)))","v":0},{"$f":"IF(ISERROR(FIND(AG$3,'CFR - XML import'!$A118)),0,VALUE(MID('CFR - XML import'!$A118,SEARCH(\">\",'CFR - XML import'!$A118,1)+1,SEARCH(\"/\",'CFR - XML import'!$A118,1)-SEARCH(\">\",'CFR - XML import'!$A118,1)-2)))","v":0},{"$f":"IF(ISERROR(FIND(AH$3,'CFR - XML import'!$A118)),0,VALUE(MID('CFR - XML import'!$A118,SEARCH(\">\",'CFR - XML import'!$A118,1)+1,SEARCH(\"/\",'CFR - XML import'!$A118,1)-SEARCH(\">\",'CFR - XML import'!$A118,1)-2)))","v":0},{"$f":"IF(ISERROR(FIND(AI$3,'CFR - XML import'!$A118)),0,VALUE(MID('CFR - XML import'!$A118,SEARCH(\">\",'CFR - XML import'!$A118,1)+1,SEARCH(\"/\",'CFR - XML import'!$A118,1)-SEARCH(\">\",'CFR - XML import'!$A118,1)-2)))","v":0},{"$f":"IF(ISERROR(FIND(AJ$3,'CFR - XML import'!$A118)),0,VALUE(MID('CFR - XML import'!$A118,SEARCH(\">\",'CFR - XML import'!$A118,1)+1,SEARCH(\"/\",'CFR - XML import'!$A118,1)-SEARCH(\">\",'CFR - XML import'!$A118,1)-2)))","v":0},{"$f":"IF(ISERROR(FIND(AK$3,'CFR - XML import'!$A118)),0,VALUE(MID('CFR - XML import'!$A118,SEARCH(\">\",'CFR - XML import'!$A118,1)+1,SEARCH(\"/\",'CFR - XML import'!$A118,1)-SEARCH(\">\",'CFR - XML import'!$A118,1)-2)))","v":0},{"$f":"IF(ISERROR(FIND(AL$3,'CFR - XML import'!$A118)),0,VALUE(MID('CFR - XML import'!$A118,SEARCH(\">\",'CFR - XML import'!$A118,1)+1,SEARCH(\"/\",'CFR - XML import'!$A118,1)-SEARCH(\">\",'CFR - XML import'!$A118,1)-2)))","v":0},{"$f":"IF(ISERROR(FIND(AM$3,'CFR - XML import'!$A118)),0,VALUE(MID('CFR - XML import'!$A118,SEARCH(\">\",'CFR - XML import'!$A118,1)+1,SEARCH(\"/\",'CFR - XML import'!$A118,1)-SEARCH(\">\",'CFR - XML import'!$A118,1)-2)))","v":0},{"$f":"IF(ISERROR(FIND(AN$3,'CFR - XML import'!$A118)),0,VALUE(MID('CFR - XML import'!$A118,SEARCH(\">\",'CFR - XML import'!$A118,1)+1,SEARCH(\"/\",'CFR - XML import'!$A118,1)-SEARCH(\">\",'CFR - XML import'!$A118,1)-2)))","v":0},{"$f":"IF(ISERROR(FIND(AO$3,'CFR - XML import'!$A118)),0,VALUE(MID('CFR - XML import'!$A118,SEARCH(\">\",'CFR - XML import'!$A118,1)+1,SEARCH(\"/\",'CFR - XML import'!$A118,1)-SEARCH(\">\",'CFR - XML import'!$A118,1)-2)))","v":0},{"$f":"IF(ISERROR(FIND(AP$3,'CFR - XML import'!$A118)),0,VALUE(MID('CFR - XML import'!$A118,SEARCH(\">\",'CFR - XML import'!$A118,1)+1,SEARCH(\"/\",'CFR - XML import'!$A118,1)-SEARCH(\">\",'CFR - XML import'!$A118,1)-2)))","v":0},{"$f":"IF(ISERROR(FIND(AQ$3,'CFR - XML import'!$A118)),0,VALUE(MID('CFR - XML import'!$A118,SEARCH(\">\",'CFR - XML import'!$A118,1)+1,SEARCH(\"/\",'CFR - XML import'!$A118,1)-SEARCH(\">\",'CFR - XML import'!$A118,1)-2)))","v":0},{"$f":"IF(ISERROR(FIND(AR$3,'CFR - XML import'!$A118)),0,VALUE(MID('CFR - XML import'!$A118,SEARCH(\">\",'CFR - XML import'!$A118,1)+1,SEARCH(\"/\",'CFR - XML import'!$A118,1)-SEARCH(\">\",'CFR - XML import'!$A118,1)-2)))","v":0},{"$f":"IF(ISERROR(FIND(AS$3,'CFR - XML import'!$A118)),0,VALUE(MID('CFR - XML import'!$A118,SEARCH(\">\",'CFR - XML import'!$A118,1)+1,SEARCH(\"/\",'CFR - XML import'!$A118,1)-SEARCH(\">\",'CFR - XML import'!$A118,1)-2)))","v":0},{"$f":"IF(ISERROR(FIND(AT$3,'CFR - XML import'!$A118)),0,VALUE(MID('CFR - XML import'!$A118,SEARCH(\">\",'CFR - XML import'!$A118,1)+1,SEARCH(\"/\",'CFR - XML import'!$A118,1)-SEARCH(\">\",'CFR - XML import'!$A118,1)-2)))","v":0},{"$f":"IF(ISERROR(FIND(AU$3,'CFR - XML import'!$A118)),0,VALUE(MID('CFR - XML import'!$A118,SEARCH(\">\",'CFR - XML import'!$A118,1)+1,SEARCH(\"/\",'CFR - XML import'!$A118,1)-SEARCH(\">\",'CFR - XML import'!$A118,1)-2)))","v":0},{"$f":"IF(ISERROR(FIND(AV$3,'CFR - XML import'!$A118)),0,VALUE(MID('CFR - XML import'!$A118,SEARCH(\">\",'CFR - XML import'!$A118,1)+1,SEARCH(\"/\",'CFR - XML import'!$A118,1)-SEARCH(\">\",'CFR - XML import'!$A118,1)-2)))","v":0},{"$f":"IF(ISERROR(FIND(AW$3,'CFR - XML import'!$A118)),0,VALUE(MID('CFR - XML import'!$A118,SEARCH(\">\",'CFR - XML import'!$A118,1)+1,SEARCH(\"/\",'CFR - XML import'!$A118,1)-SEARCH(\">\",'CFR - XML import'!$A118,1)-2)))","v":0},{"$f":"IF(ISERROR(FIND(AX$3,'CFR - XML import'!$A118)),0,VALUE(MID('CFR - XML import'!$A118,SEARCH(\">\",'CFR - XML import'!$A118,1)+1,SEARCH(\"/\",'CFR - XML import'!$A118,1)-SEARCH(\">\",'CFR - XML import'!$A118,1)-2)))","v":0},{"$f":"IF(ISERROR(FIND(AY$3,'CFR - XML import'!$A118)),0,VALUE(MID('CFR - XML import'!$A118,SEARCH(\">\",'CFR - XML import'!$A118,1)+1,SEARCH(\"/\",'CFR - XML import'!$A118,1)-SEARCH(\">\",'CFR - XML import'!$A118,1)-2)))","v":0},{"$f":"IF(ISERROR(FIND(AZ$3,'CFR - XML import'!$A118)),0,VALUE(MID('CFR - XML import'!$A118,SEARCH(\">\",'CFR - XML import'!$A118,1)+1,SEARCH(\"/\",'CFR - XML import'!$A118,1)-SEARCH(\">\",'CFR - XML import'!$A118,1)-2)))","v":0},{"$f":"IF(ISERROR(FIND(BA$3,'CFR - XML import'!$A118)),0,VALUE(MID('CFR - XML import'!$A118,SEARCH(\">\",'CFR - XML import'!$A118,1)+1,SEARCH(\"/\",'CFR - XML import'!$A118,1)-SEARCH(\">\",'CFR - XML import'!$A118,1)-2)))","v":0},{"$f":"IF(ISERROR(FIND(BB$3,'CFR - XML import'!$A118)),0,VALUE(MID('CFR - XML import'!$A118,SEARCH(\">\",'CFR - XML import'!$A118,1)+1,SEARCH(\"/\",'CFR - XML import'!$A118,1)-SEARCH(\">\",'CFR - XML import'!$A118,1)-2)))","v":0},{"$f":"IF(ISERROR(FIND(BC$3,'CFR - XML import'!$A118)),0,VALUE(MID('CFR - XML import'!$A118,SEARCH(\">\",'CFR - XML import'!$A118,1)+1,SEARCH(\"/\",'CFR - XML import'!$A118,1)-SEARCH(\">\",'CFR - XML import'!$A118,1)-2)))","v":0},{"$f":"IF(ISERROR(FIND(BD$3,'CFR - XML import'!$A118)),0,VALUE(MID('CFR - XML import'!$A118,SEARCH(\">\",'CFR - XML import'!$A118,1)+1,SEARCH(\"/\",'CFR - XML import'!$A118,1)-SEARCH(\">\",'CFR - XML import'!$A118,1)-2)))","v":0},{"$f":"IF(ISERROR(FIND(BE$3,'CFR - XML import'!$A118)),0,VALUE(MID('CFR - XML import'!$A118,SEARCH(\">\",'CFR - XML import'!$A118,1)+1,SEARCH(\"/\",'CFR - XML import'!$A118,1)-SEARCH(\">\",'CFR - XML import'!$A118,1)-2)))","v":0},{"$f":"IF(ISERROR(FIND(BF$3,'CFR - XML import'!$A118)),0,VALUE(MID('CFR - XML import'!$A118,SEARCH(\">\",'CFR - XML import'!$A118,1)+1,SEARCH(\"/\",'CFR - XML import'!$A118,1)-SEARCH(\">\",'CFR - XML import'!$A118,1)-2)))","v":0},{"$f":"IF(ISERROR(FIND(BG$3,'CFR - XML import'!$A118)),0,VALUE(MID('CFR - XML import'!$A118,SEARCH(\">\",'CFR - XML import'!$A118,1)+1,SEARCH(\"/\",'CFR - XML import'!$A118,1)-SEARCH(\">\",'CFR - XML import'!$A118,1)-2)))","v":0},{"$f":"IF(ISERROR(FIND(BH$3,'CFR - XML import'!$A118)),0,VALUE(MID('CFR - XML import'!$A118,SEARCH(\">\",'CFR - XML import'!$A118,1)+1,SEARCH(\"/\",'CFR - XML import'!$A118,1)-SEARCH(\">\",'CFR - XML import'!$A118,1)-2)))","v":0},{"$f":"IF(ISERROR(FIND(BI$3,'CFR - XML import'!$A118)),0,VALUE(MID('CFR - XML import'!$A118,SEARCH(\">\",'CFR - XML import'!$A118,1)+1,SEARCH(\"/\",'CFR - XML import'!$A118,1)-SEARCH(\">\",'CFR - XML import'!$A118,1)-2)))","v":0},{"$f":"IF(ISERROR(FIND(BJ$3,'CFR - XML import'!$A118)),0,VALUE(MID('CFR - XML import'!$A118,SEARCH(\">\",'CFR - XML import'!$A118,1)+1,SEARCH(\"/\",'CFR - XML import'!$A118,1)-SEARCH(\">\",'CFR - XML import'!$A118,1)-2)))","v":0},{"$f":"IF(ISERROR(FIND(BK$3,'CFR - XML import'!$A118)),0,VALUE(MID('CFR - XML import'!$A118,SEARCH(\">\",'CFR - XML import'!$A118,1)+1,SEARCH(\"/\",'CFR - XML import'!$A118,1)-SEARCH(\">\",'CFR - XML import'!$A118,1)-2)))","v":0},{"$f":"IF(ISERROR(FIND(BL$3,'CFR - XML import'!$A118)),0,VALUE(MID('CFR - XML import'!$A118,SEARCH(\">\",'CFR - XML import'!$A118,1)+1,SEARCH(\"/\",'CFR - XML import'!$A118,1)-SEARCH(\">\",'CFR - XML import'!$A118,1)-2)))","v":0},{"$f":"IF(ISERROR(FIND(BM$3,'CFR - XML import'!$A118)),0,VALUE(MID('CFR - XML import'!$A118,SEARCH(\">\",'CFR - XML import'!$A118,1)+1,SEARCH(\"/\",'CFR - XML import'!$A118,1)-SEARCH(\">\",'CFR - XML import'!$A118,1)-2)))","v":0},{"$f":"IF(ISERROR(FIND(BN$3,'CFR - XML import'!$A118)),0,VALUE(MID('CFR - XML import'!$A118,SEARCH(\">\",'CFR - XML import'!$A118,1)+1,SEARCH(\"/\",'CFR - XML import'!$A118,1)-SEARCH(\">\",'CFR - XML import'!$A118,1)-2)))","v":0},{"$f":"IF(ISERROR(FIND(BO$3,'CFR - XML import'!$A118)),0,VALUE(MID('CFR - XML import'!$A118,SEARCH(\">\",'CFR - XML import'!$A118,1)+1,SEARCH(\"/\",'CFR - XML import'!$A118,1)-SEARCH(\">\",'CFR - XML import'!$A118,1)-2)))","v":0},{"$f":"IF(ISERROR(FIND(BP$3,'CFR - XML import'!$A118)),0,VALUE(MID('CFR - XML import'!$A118,SEARCH(\">\",'CFR - XML import'!$A118,1)+1,SEARCH(\"/\",'CFR - XML import'!$A118,1)-SEARCH(\">\",'CFR - XML import'!$A118,1)-2)))","v":0},{"$f":"IF(ISERROR(FIND(BQ$3,'CFR - XML import'!$A118)),0,VALUE(MID('CFR - XML import'!$A118,SEARCH(\">\",'CFR - XML import'!$A118,1)+1,SEARCH(\"/\",'CFR - XML import'!$A118,1)-SEARCH(\">\",'CFR - XML import'!$A118,1)-2)))","v":0},{"$f":"IF(ISERROR(FIND(BR$3,'CFR - XML import'!$A118)),0,VALUE(MID('CFR - XML import'!$A118,SEARCH(\">\",'CFR - XML import'!$A118,1)+1,SEARCH(\"/\",'CFR - XML import'!$A118,1)-SEARCH(\">\",'CFR - XML import'!$A118,1)-2)))","v":0},{"$f":"IF(ISERROR(FIND(BS$3,'CFR - XML import'!$A118)),0,VALUE(MID('CFR - XML import'!$A118,SEARCH(\">\",'CFR - XML import'!$A118,1)+1,SEARCH(\"/\",'CFR - XML import'!$A118,1)-SEARCH(\">\",'CFR - XML import'!$A118,1)-2)))","v":0},{"$f":"IF(ISERROR(FIND(BT$3,'CFR - XML import'!$A118)),0,VALUE(MID('CFR - XML import'!$A118,SEARCH(\">\",'CFR - XML import'!$A118,1)+1,SEARCH(\"/\",'CFR - XML import'!$A118,1)-SEARCH(\">\",'CFR - XML import'!$A118,1)-2)))","v":0},{"$f":"IF(ISERROR(FIND(BU$3,'CFR - XML import'!$A118)),0,VALUE(MID('CFR - XML import'!$A118,SEARCH(\">\",'CFR - XML import'!$A118,1)+1,SEARCH(\"/\",'CFR - XML import'!$A118,1)-SEARCH(\">\",'CFR - XML import'!$A118,1)-2)))","v":0},{"$f":"IF(ISERROR(FIND(BV$3,'CFR - XML import'!$A118)),0,VALUE(MID('CFR - XML import'!$A118,SEARCH(\">\",'CFR - XML import'!$A118,1)+1,SEARCH(\"/\",'CFR - XML import'!$A118,1)-SEARCH(\">\",'CFR - XML import'!$A118,1)-2)))","v":0},{"$f":"IF(ISERROR(FIND(BW$3,'CFR - XML import'!$A118)),0,VALUE(MID('CFR - XML import'!$A118,SEARCH(\">\",'CFR - XML import'!$A118,1)+1,SEARCH(\"/\",'CFR - XML import'!$A118,1)-SEARCH(\">\",'CFR - XML import'!$A118,1)-2)))","v":0},{"$f":"IF(ISERROR(FIND(BX$3,'CFR - XML import'!$A118)),0,VALUE(MID('CFR - XML import'!$A118,SEARCH(\">\",'CFR - XML import'!$A118,1)+1,SEARCH(\"/\",'CFR - XML import'!$A118,1)-SEARCH(\">\",'CFR - XML import'!$A118,1)-2)))","v":0},{"$f":"IF(ISERROR(FIND(BY$3,'CFR - XML import'!$A118)),0,VALUE(MID('CFR - XML import'!$A118,SEARCH(\">\",'CFR - XML import'!$A118,1)+1,SEARCH(\"/\",'CFR - XML import'!$A118,1)-SEARCH(\">\",'CFR - XML import'!$A118,1)-2)))","v":0},{"$f":"IF(ISERROR(FIND(BZ$3,'CFR - XML import'!$A118)),0,VALUE(MID('CFR - XML import'!$A118,SEARCH(\">\",'CFR - XML import'!$A118,1)+1,SEARCH(\"/\",'CFR - XML import'!$A118,1)-SEARCH(\">\",'CFR - XML import'!$A118,1)-2)))","v":0},null,null,null,null,null,null,{"$f":"IF(ISERROR(IF(MID('CFR - XML import'!$A118,LEN($CF$4)+1,LEN('CFR - XML import'!$A118)-(2*LEN($CF$4)+1))=\"RMMS\",1,IF(MID('CFR - XML import'!$A118,LEN(\"    <InputSystem>\")+1,LEN('CFR - XML import'!$A118)-(LEN(\"    <InputSystem>\")+LEN($CF$4)+1))=\"SIMS\",2,0))),0,IF(MID('CFR - XML import'!$A118,LEN($CF$4)+1,LEN('CFR - XML import'!$A118)-(2*LEN($CF$4)+1))=\"RMMS\",1,IF(MID('CFR - XML import'!$A118,LEN(\"    <InputSystem>\")+1,LEN('CFR - XML import'!$A118)-(LEN(\"    <InputSystem>\")+LEN($CF$4)+1))=\"SIMS\",2,0)))","v":0},{"$f":"IF(ISERROR(FIND(CH$3,'CFR - XML import'!$A118)),0,MID('CFR - XML import'!$A118,SEARCH(\">\",'CFR - XML import'!$A118,1)+1,SEARCH(\"/\",'CFR - XML import'!$A118,1)-SEARCH(\">\",'CFR - XML import'!$A118,1)-2))","v":0},{"$f":"IF(ISERROR(FIND(CI$3,'CFR - XML import'!$A118)),0,MID('CFR - XML import'!$A118,SEARCH(\">\",'CFR - XML import'!$A118,1)+1,SEARCH(\"/\",'CFR - XML import'!$A118,1)-SEARCH(\">\",'CFR - XML import'!$A118,1)-2))","v":0},{"$f":"IF(ISERROR(FIND(CJ$3,'CFR - XML import'!$A118)),0,MID('CFR - XML import'!$A118,SEARCH(\">\",'CFR - XML import'!$A118,1)+1,SEARCH(\"/\",'CFR - XML import'!$A118,1)-SEARCH(\">\",'CFR - XML import'!$A118,1)-2))","v":0},{"$f":"IF(ISERROR(FIND(CK$3,'CFR - XML import'!$A118)),0,MID('CFR - XML import'!$A118,SEARCH(\">\",'CFR - XML import'!$A118,1)+1,SEARCH(\"/\",'CFR - XML import'!$A118,1)-SEARCH(\">\",'CFR - XML import'!$A118,1)-2))","v":0},{"$f":"IF(ISERROR(FIND(CL$3,'CFR - XML import'!$A118)),0,MID('CFR - XML import'!$A118,SEARCH(\">\",'CFR - XML import'!$A118,1)+1,SEARCH(\"/\",'CFR - XML import'!$A118,1)-SEARCH(\">\",'CFR - XML import'!$A118,1)-2))","v":0}]
[{"$f":"IF(AND('CFR - XML import'!A119<>\"\",LEFT('CFR - XML import'!A119,1)<>\"<\",LEFT('CFR - XML import'!A119,3)<>\"  <\",LEFT('CFR - XML import'!A119,5)<>\"    <\",LEFT('CFR - XML import'!A119,7)<>\"      <\",LEFT('CFR - XML import'!A119,9)<>\"        <\",$B$1=\"SIMS\"),'CFR - XML import'!A119,IF(AND(LEFT('CFR - XML import'!A119,9)=\"<Details>\",$B$1=\"RM\"),'CFR - XML import'!A119,\"\"))","v":""},{"$f":"IF(ISERROR(FIND(B$3,'CFR - XML import'!$A119)),0,VALUE(MID('CFR - XML import'!$A119,SEARCH(\">\",'CFR - XML import'!$A119,1)+1,SEARCH(\"/\",'CFR - XML import'!$A119,1)-SEARCH(\">\",'CFR - XML import'!$A119,1)-2)))","v":0},null,{"$f":"IF(ISERROR(FIND(D$3,'CFR - XML import'!$A119)),0,MID('CFR - XML import'!$A119,SEARCH(\">\",'CFR - XML import'!$A119,1)+1,SEARCH(\"/\",'CFR - XML import'!$A119,1)-SEARCH(\">\",'CFR - XML import'!$A119,1)-2))","v":0},{"$f":"IF(ISERROR(FIND(E$3,'CFR - XML import'!$A119)),0,MID('CFR - XML import'!$A119,SEARCH(\">\",'CFR - XML import'!$A119,1)+1,SEARCH(\"/\",'CFR - XML import'!$A119,1)-SEARCH(\">\",'CFR - XML import'!$A119,1)-2))","v":0},{"$f":"IF($B$1=\"SIMS\",IF(ISERROR(FIND(F$3,'CFR - XML import'!$A119)),0,VALUE(MID('CFR - XML import'!$A119,15,10))),IF(ISERROR(FIND(F$3,'CFR - XML import'!$A119)),0,VALUE(MID('CFR - XML import'!$A119,11,10))))","v":"00:00:00"},{"$f":"IF(ISERROR(FIND(G$3,'CFR - XML import'!$A119)),0,VALUE(MID('CFR - XML import'!$A119,SEARCH(\">\",'CFR - XML import'!$A119,1)+1,SEARCH(\"/\",'CFR - XML import'!$A119,1)-SEARCH(\">\",'CFR - XML import'!$A119,1)-2)))","v":0},{"$f":"IF(ISERROR(FIND(H$3,'CFR - XML import'!$A119)),0,VALUE(MID('CFR - XML import'!$A119,SEARCH(\">\",'CFR - XML import'!$A119,1)+1,SEARCH(\"/\",'CFR - XML import'!$A119,1)-SEARCH(\">\",'CFR - XML import'!$A119,1)-2)))","v":0},{"$f":"IF(ISERROR(FIND(I$3,'CFR - XML import'!$A119)),0,VALUE(MID('CFR - XML import'!$A119,SEARCH(\">\",'CFR - XML import'!$A119,1)+1,SEARCH(\"/\",'CFR - XML import'!$A119,1)-SEARCH(\">\",'CFR - XML import'!$A119,1)-2)))","v":0},{"$f":"IF(ISERROR(FIND(J$3,'CFR - XML import'!$A119)),0,VALUE(MID('CFR - XML import'!$A119,SEARCH(\">\",'CFR - XML import'!$A119,1)+1,SEARCH(\"/\",'CFR - XML import'!$A119,1)-SEARCH(\">\",'CFR - XML import'!$A119,1)-2)))","v":0},{"$f":"IF(ISERROR(FIND(K$3,'CFR - XML import'!$A119)),0,VALUE(MID('CFR - XML import'!$A119,SEARCH(\">\",'CFR - XML import'!$A119,1)+1,SEARCH(\"/\",'CFR - XML import'!$A119,1)-SEARCH(\">\",'CFR - XML import'!$A119,1)-2)))","v":0},{"$f":"IF(ISERROR(FIND(L$3,'CFR - XML import'!$A119)),0,VALUE(MID('CFR - XML import'!$A119,SEARCH(\">\",'CFR - XML import'!$A119,1)+1,SEARCH(\"/\",'CFR - XML import'!$A119,1)-SEARCH(\">\",'CFR - XML import'!$A119,1)-2)))","v":0},{"$f":"IF(ISERROR(FIND(M$3,'CFR - XML import'!$A119)),0,VALUE(MID('CFR - XML import'!$A119,SEARCH(\">\",'CFR - XML import'!$A119,1)+1,SEARCH(\"/\",'CFR - XML import'!$A119,1)-SEARCH(\">\",'CFR - XML import'!$A119,1)-2)))","v":0},{"$f":"IF(ISERROR(FIND(N$3,'CFR - XML import'!$A119)),0,VALUE(MID('CFR - XML import'!$A119,SEARCH(\">\",'CFR - XML import'!$A119,1)+1,SEARCH(\"/\",'CFR - XML import'!$A119,1)-SEARCH(\">\",'CFR - XML import'!$A119,1)-2)))","v":0},{"$f":"IF(ISERROR(FIND(O$3,'CFR - XML import'!$A119)),0,VALUE(MID('CFR - XML import'!$A119,SEARCH(\">\",'CFR - XML import'!$A119,1)+1,SEARCH(\"/\",'CFR - XML import'!$A119,1)-SEARCH(\">\",'CFR - XML import'!$A119,1)-2)))","v":0},{"$f":"IF(ISERROR(FIND(P$3,'CFR - XML import'!$A119)),0,VALUE(MID('CFR - XML import'!$A119,SEARCH(\">\",'CFR - XML import'!$A119,1)+1,SEARCH(\"/\",'CFR - XML import'!$A119,1)-SEARCH(\">\",'CFR - XML import'!$A119,1)-2)))","v":0},{"$f":"IF(ISERROR(FIND(Q$3,'CFR - XML import'!$A119)),0,VALUE(MID('CFR - XML import'!$A119,SEARCH(\">\",'CFR - XML import'!$A119,1)+1,SEARCH(\"/\",'CFR - XML import'!$A119,1)-SEARCH(\">\",'CFR - XML import'!$A119,1)-2)))","v":0},{"$f":"IF(ISERROR(FIND(R$3,'CFR - XML import'!$A119)),0,VALUE(MID('CFR - XML import'!$A119,SEARCH(\">\",'CFR - XML import'!$A119,1)+1,SEARCH(\"/\",'CFR - XML import'!$A119,1)-SEARCH(\">\",'CFR - XML import'!$A119,1)-2)))","v":0},{"$f":"IF(ISERROR(FIND(S$3,'CFR - XML import'!$A119)),0,VALUE(MID('CFR - XML import'!$A119,SEARCH(\">\",'CFR - XML import'!$A119,1)+1,SEARCH(\"/\",'CFR - XML import'!$A119,1)-SEARCH(\">\",'CFR - XML import'!$A119,1)-2)))","v":0},{"$f":"IF(ISERROR(FIND(T$3,'CFR - XML import'!$A119)),0,VALUE(MID('CFR - XML import'!$A119,SEARCH(\">\",'CFR - XML import'!$A119,1)+1,SEARCH(\"/\",'CFR - XML import'!$A119,1)-SEARCH(\">\",'CFR - XML import'!$A119,1)-2)))","v":0},{"$f":"IF(ISERROR(FIND(U$3,'CFR - XML import'!$A119)),0,VALUE(MID('CFR - XML import'!$A119,SEARCH(\">\",'CFR - XML import'!$A119,1)+1,SEARCH(\"/\",'CFR - XML import'!$A119,1)-SEARCH(\">\",'CFR - XML import'!$A119,1)-2)))","v":0},{"$f":"IF(ISERROR(FIND(V$3,'CFR - XML import'!$A119)),0,VALUE(MID('CFR - XML import'!$A119,SEARCH(\">\",'CFR - XML import'!$A119,1)+1,SEARCH(\"/\",'CFR - XML import'!$A119,1)-SEARCH(\">\",'CFR - XML import'!$A119,1)-2)))","v":0},{"$f":"IF(ISERROR(FIND(W$3,'CFR - XML import'!$A119)),0,VALUE(MID('CFR - XML import'!$A119,SEARCH(\">\",'CFR - XML import'!$A119,1)+1,SEARCH(\"/\",'CFR - XML import'!$A119,1)-SEARCH(\">\",'CFR - XML import'!$A119,1)-2)))","v":0},null,{"$f":"IF(ISERROR(FIND(Y$3,'CFR - XML import'!$A119)),0,VALUE(MID('CFR - XML import'!$A119,SEARCH(\">\",'CFR - XML import'!$A119,1)+1,SEARCH(\"/\",'CFR - XML import'!$A119,1)-SEARCH(\">\",'CFR - XML import'!$A119,1)-2)))","v":0},{"$f":"IF(ISERROR(FIND(Z$3,'CFR - XML import'!$A119)),0,VALUE(MID('CFR - XML import'!$A119,SEARCH(\">\",'CFR - XML import'!$A119,1)+1,SEARCH(\"/\",'CFR - XML import'!$A119,1)-SEARCH(\">\",'CFR - XML import'!$A119,1)-2)))","v":0},{"$f":"IF(ISERROR(FIND(AA$3,'CFR - XML import'!$A119)),0,VALUE(MID('CFR - XML import'!$A119,SEARCH(\">\",'CFR - XML import'!$A119,1)+1,SEARCH(\"/\",'CFR - XML import'!$A119,1)-SEARCH(\">\",'CFR - XML import'!$A119,1)-2)))","v":0},{"$f":"IF(ISERROR(FIND(AB$3,'CFR - XML import'!$A119)),0,VALUE(MID('CFR - XML import'!$A119,SEARCH(\">\",'CFR - XML import'!$A119,1)+1,SEARCH(\"/\",'CFR - XML import'!$A119,1)-SEARCH(\">\",'CFR - XML import'!$A119,1)-2)))","v":0},{"$f":"IF(ISERROR(FIND(AC$3,'CFR - XML import'!$A119)),0,VALUE(MID('CFR - XML import'!$A119,SEARCH(\">\",'CFR - XML import'!$A119,1)+1,SEARCH(\"/\",'CFR - XML import'!$A119,1)-SEARCH(\">\",'CFR - XML import'!$A119,1)-2)))","v":0},{"$f":"IF(ISERROR(FIND(AD$3,'CFR - XML import'!$A119)),0,VALUE(MID('CFR - XML import'!$A119,SEARCH(\">\",'CFR - XML import'!$A119,1)+1,SEARCH(\"/\",'CFR - XML import'!$A119,1)-SEARCH(\">\",'CFR - XML import'!$A119,1)-2)))","v":0},{"$f":"IF(ISERROR(FIND(AE$3,'CFR - XML import'!$A119)),0,VALUE(MID('CFR - XML import'!$A119,SEARCH(\">\",'CFR - XML import'!$A119,1)+1,SEARCH(\"/\",'CFR - XML import'!$A119,1)-SEARCH(\">\",'CFR - XML import'!$A119,1)-2)))","v":0},{"$f":"IF(ISERROR(FIND(AF$3,'CFR - XML import'!$A119)),0,VALUE(MID('CFR - XML import'!$A119,SEARCH(\">\",'CFR - XML import'!$A119,1)+1,SEARCH(\"/\",'CFR - XML import'!$A119,1)-SEARCH(\">\",'CFR - XML import'!$A119,1)-2)))","v":0},{"$f":"IF(ISERROR(FIND(AG$3,'CFR - XML import'!$A119)),0,VALUE(MID('CFR - XML import'!$A119,SEARCH(\">\",'CFR - XML import'!$A119,1)+1,SEARCH(\"/\",'CFR - XML import'!$A119,1)-SEARCH(\">\",'CFR - XML import'!$A119,1)-2)))","v":0},{"$f":"IF(ISERROR(FIND(AH$3,'CFR - XML import'!$A119)),0,VALUE(MID('CFR - XML import'!$A119,SEARCH(\">\",'CFR - XML import'!$A119,1)+1,SEARCH(\"/\",'CFR - XML import'!$A119,1)-SEARCH(\">\",'CFR - XML import'!$A119,1)-2)))","v":0},{"$f":"IF(ISERROR(FIND(AI$3,'CFR - XML import'!$A119)),0,VALUE(MID('CFR - XML import'!$A119,SEARCH(\">\",'CFR - XML import'!$A119,1)+1,SEARCH(\"/\",'CFR - XML import'!$A119,1)-SEARCH(\">\",'CFR - XML import'!$A119,1)-2)))","v":0},{"$f":"IF(ISERROR(FIND(AJ$3,'CFR - XML import'!$A119)),0,VALUE(MID('CFR - XML import'!$A119,SEARCH(\">\",'CFR - XML import'!$A119,1)+1,SEARCH(\"/\",'CFR - XML import'!$A119,1)-SEARCH(\">\",'CFR - XML import'!$A119,1)-2)))","v":0},{"$f":"IF(ISERROR(FIND(AK$3,'CFR - XML import'!$A119)),0,VALUE(MID('CFR - XML import'!$A119,SEARCH(\">\",'CFR - XML import'!$A119,1)+1,SEARCH(\"/\",'CFR - XML import'!$A119,1)-SEARCH(\">\",'CFR - XML import'!$A119,1)-2)))","v":0},{"$f":"IF(ISERROR(FIND(AL$3,'CFR - XML import'!$A119)),0,VALUE(MID('CFR - XML import'!$A119,SEARCH(\">\",'CFR - XML import'!$A119,1)+1,SEARCH(\"/\",'CFR - XML import'!$A119,1)-SEARCH(\">\",'CFR - XML import'!$A119,1)-2)))","v":0},{"$f":"IF(ISERROR(FIND(AM$3,'CFR - XML import'!$A119)),0,VALUE(MID('CFR - XML import'!$A119,SEARCH(\">\",'CFR - XML import'!$A119,1)+1,SEARCH(\"/\",'CFR - XML import'!$A119,1)-SEARCH(\">\",'CFR - XML import'!$A119,1)-2)))","v":0},{"$f":"IF(ISERROR(FIND(AN$3,'CFR - XML import'!$A119)),0,VALUE(MID('CFR - XML import'!$A119,SEARCH(\">\",'CFR - XML import'!$A119,1)+1,SEARCH(\"/\",'CFR - XML import'!$A119,1)-SEARCH(\">\",'CFR - XML import'!$A119,1)-2)))","v":0},{"$f":"IF(ISERROR(FIND(AO$3,'CFR - XML import'!$A119)),0,VALUE(MID('CFR - XML import'!$A119,SEARCH(\">\",'CFR - XML import'!$A119,1)+1,SEARCH(\"/\",'CFR - XML import'!$A119,1)-SEARCH(\">\",'CFR - XML import'!$A119,1)-2)))","v":0},{"$f":"IF(ISERROR(FIND(AP$3,'CFR - XML import'!$A119)),0,VALUE(MID('CFR - XML import'!$A119,SEARCH(\">\",'CFR - XML import'!$A119,1)+1,SEARCH(\"/\",'CFR - XML import'!$A119,1)-SEARCH(\">\",'CFR - XML import'!$A119,1)-2)))","v":0},{"$f":"IF(ISERROR(FIND(AQ$3,'CFR - XML import'!$A119)),0,VALUE(MID('CFR - XML import'!$A119,SEARCH(\">\",'CFR - XML import'!$A119,1)+1,SEARCH(\"/\",'CFR - XML import'!$A119,1)-SEARCH(\">\",'CFR - XML import'!$A119,1)-2)))","v":0},{"$f":"IF(ISERROR(FIND(AR$3,'CFR - XML import'!$A119)),0,VALUE(MID('CFR - XML import'!$A119,SEARCH(\">\",'CFR - XML import'!$A119,1)+1,SEARCH(\"/\",'CFR - XML import'!$A119,1)-SEARCH(\">\",'CFR - XML import'!$A119,1)-2)))","v":0},{"$f":"IF(ISERROR(FIND(AS$3,'CFR - XML import'!$A119)),0,VALUE(MID('CFR - XML import'!$A119,SEARCH(\">\",'CFR - XML import'!$A119,1)+1,SEARCH(\"/\",'CFR - XML import'!$A119,1)-SEARCH(\">\",'CFR - XML import'!$A119,1)-2)))","v":0},{"$f":"IF(ISERROR(FIND(AT$3,'CFR - XML import'!$A119)),0,VALUE(MID('CFR - XML import'!$A119,SEARCH(\">\",'CFR - XML import'!$A119,1)+1,SEARCH(\"/\",'CFR - XML import'!$A119,1)-SEARCH(\">\",'CFR - XML import'!$A119,1)-2)))","v":0},{"$f":"IF(ISERROR(FIND(AU$3,'CFR - XML import'!$A119)),0,VALUE(MID('CFR - XML import'!$A119,SEARCH(\">\",'CFR - XML import'!$A119,1)+1,SEARCH(\"/\",'CFR - XML import'!$A119,1)-SEARCH(\">\",'CFR - XML import'!$A119,1)-2)))","v":0},{"$f":"IF(ISERROR(FIND(AV$3,'CFR - XML import'!$A119)),0,VALUE(MID('CFR - XML import'!$A119,SEARCH(\">\",'CFR - XML import'!$A119,1)+1,SEARCH(\"/\",'CFR - XML import'!$A119,1)-SEARCH(\">\",'CFR - XML import'!$A119,1)-2)))","v":0},{"$f":"IF(ISERROR(FIND(AW$3,'CFR - XML import'!$A119)),0,VALUE(MID('CFR - XML import'!$A119,SEARCH(\">\",'CFR - XML import'!$A119,1)+1,SEARCH(\"/\",'CFR - XML import'!$A119,1)-SEARCH(\">\",'CFR - XML import'!$A119,1)-2)))","v":0},{"$f":"IF(ISERROR(FIND(AX$3,'CFR - XML import'!$A119)),0,VALUE(MID('CFR - XML import'!$A119,SEARCH(\">\",'CFR - XML import'!$A119,1)+1,SEARCH(\"/\",'CFR - XML import'!$A119,1)-SEARCH(\">\",'CFR - XML import'!$A119,1)-2)))","v":0},{"$f":"IF(ISERROR(FIND(AY$3,'CFR - XML import'!$A119)),0,VALUE(MID('CFR - XML import'!$A119,SEARCH(\">\",'CFR - XML import'!$A119,1)+1,SEARCH(\"/\",'CFR - XML import'!$A119,1)-SEARCH(\">\",'CFR - XML import'!$A119,1)-2)))","v":0},{"$f":"IF(ISERROR(FIND(AZ$3,'CFR - XML import'!$A119)),0,VALUE(MID('CFR - XML import'!$A119,SEARCH(\">\",'CFR - XML import'!$A119,1)+1,SEARCH(\"/\",'CFR - XML import'!$A119,1)-SEARCH(\">\",'CFR - XML import'!$A119,1)-2)))","v":0},{"$f":"IF(ISERROR(FIND(BA$3,'CFR - XML import'!$A119)),0,VALUE(MID('CFR - XML import'!$A119,SEARCH(\">\",'CFR - XML import'!$A119,1)+1,SEARCH(\"/\",'CFR - XML import'!$A119,1)-SEARCH(\">\",'CFR - XML import'!$A119,1)-2)))","v":0},{"$f":"IF(ISERROR(FIND(BB$3,'CFR - XML import'!$A119)),0,VALUE(MID('CFR - XML import'!$A119,SEARCH(\">\",'CFR - XML import'!$A119,1)+1,SEARCH(\"/\",'CFR - XML import'!$A119,1)-SEARCH(\">\",'CFR - XML import'!$A119,1)-2)))","v":0},{"$f":"IF(ISERROR(FIND(BC$3,'CFR - XML import'!$A119)),0,VALUE(MID('CFR - XML import'!$A119,SEARCH(\">\",'CFR - XML import'!$A119,1)+1,SEARCH(\"/\",'CFR - XML import'!$A119,1)-SEARCH(\">\",'CFR - XML import'!$A119,1)-2)))","v":0},{"$f":"IF(ISERROR(FIND(BD$3,'CFR - XML import'!$A119)),0,VALUE(MID('CFR - XML import'!$A119,SEARCH(\">\",'CFR - XML import'!$A119,1)+1,SEARCH(\"/\",'CFR - XML import'!$A119,1)-SEARCH(\">\",'CFR - XML import'!$A119,1)-2)))","v":0},{"$f":"IF(ISERROR(FIND(BE$3,'CFR - XML import'!$A119)),0,VALUE(MID('CFR - XML import'!$A119,SEARCH(\">\",'CFR - XML import'!$A119,1)+1,SEARCH(\"/\",'CFR - XML import'!$A119,1)-SEARCH(\">\",'CFR - XML import'!$A119,1)-2)))","v":0},{"$f":"IF(ISERROR(FIND(BF$3,'CFR - XML import'!$A119)),0,VALUE(MID('CFR - XML import'!$A119,SEARCH(\">\",'CFR - XML import'!$A119,1)+1,SEARCH(\"/\",'CFR - XML import'!$A119,1)-SEARCH(\">\",'CFR - XML import'!$A119,1)-2)))","v":0},{"$f":"IF(ISERROR(FIND(BG$3,'CFR - XML import'!$A119)),0,VALUE(MID('CFR - XML import'!$A119,SEARCH(\">\",'CFR - XML import'!$A119,1)+1,SEARCH(\"/\",'CFR - XML import'!$A119,1)-SEARCH(\">\",'CFR - XML import'!$A119,1)-2)))","v":0},{"$f":"IF(ISERROR(FIND(BH$3,'CFR - XML import'!$A119)),0,VALUE(MID('CFR - XML import'!$A119,SEARCH(\">\",'CFR - XML import'!$A119,1)+1,SEARCH(\"/\",'CFR - XML import'!$A119,1)-SEARCH(\">\",'CFR - XML import'!$A119,1)-2)))","v":0},{"$f":"IF(ISERROR(FIND(BI$3,'CFR - XML import'!$A119)),0,VALUE(MID('CFR - XML import'!$A119,SEARCH(\">\",'CFR - XML import'!$A119,1)+1,SEARCH(\"/\",'CFR - XML import'!$A119,1)-SEARCH(\">\",'CFR - XML import'!$A119,1)-2)))","v":0},{"$f":"IF(ISERROR(FIND(BJ$3,'CFR - XML import'!$A119)),0,VALUE(MID('CFR - XML import'!$A119,SEARCH(\">\",'CFR - XML import'!$A119,1)+1,SEARCH(\"/\",'CFR - XML import'!$A119,1)-SEARCH(\">\",'CFR - XML import'!$A119,1)-2)))","v":0},{"$f":"IF(ISERROR(FIND(BK$3,'CFR - XML import'!$A119)),0,VALUE(MID('CFR - XML import'!$A119,SEARCH(\">\",'CFR - XML import'!$A119,1)+1,SEARCH(\"/\",'CFR - XML import'!$A119,1)-SEARCH(\">\",'CFR - XML import'!$A119,1)-2)))","v":0},{"$f":"IF(ISERROR(FIND(BL$3,'CFR - XML import'!$A119)),0,VALUE(MID('CFR - XML import'!$A119,SEARCH(\">\",'CFR - XML import'!$A119,1)+1,SEARCH(\"/\",'CFR - XML import'!$A119,1)-SEARCH(\">\",'CFR - XML import'!$A119,1)-2)))","v":0},{"$f":"IF(ISERROR(FIND(BM$3,'CFR - XML import'!$A119)),0,VALUE(MID('CFR - XML import'!$A119,SEARCH(\">\",'CFR - XML import'!$A119,1)+1,SEARCH(\"/\",'CFR - XML import'!$A119,1)-SEARCH(\">\",'CFR - XML import'!$A119,1)-2)))","v":0},{"$f":"IF(ISERROR(FIND(BN$3,'CFR - XML import'!$A119)),0,VALUE(MID('CFR - XML import'!$A119,SEARCH(\">\",'CFR - XML import'!$A119,1)+1,SEARCH(\"/\",'CFR - XML import'!$A119,1)-SEARCH(\">\",'CFR - XML import'!$A119,1)-2)))","v":0},{"$f":"IF(ISERROR(FIND(BO$3,'CFR - XML import'!$A119)),0,VALUE(MID('CFR - XML import'!$A119,SEARCH(\">\",'CFR - XML import'!$A119,1)+1,SEARCH(\"/\",'CFR - XML import'!$A119,1)-SEARCH(\">\",'CFR - XML import'!$A119,1)-2)))","v":0},{"$f":"IF(ISERROR(FIND(BP$3,'CFR - XML import'!$A119)),0,VALUE(MID('CFR - XML import'!$A119,SEARCH(\">\",'CFR - XML import'!$A119,1)+1,SEARCH(\"/\",'CFR - XML import'!$A119,1)-SEARCH(\">\",'CFR - XML import'!$A119,1)-2)))","v":0},{"$f":"IF(ISERROR(FIND(BQ$3,'CFR - XML import'!$A119)),0,VALUE(MID('CFR - XML import'!$A119,SEARCH(\">\",'CFR - XML import'!$A119,1)+1,SEARCH(\"/\",'CFR - XML import'!$A119,1)-SEARCH(\">\",'CFR - XML import'!$A119,1)-2)))","v":0},{"$f":"IF(ISERROR(FIND(BR$3,'CFR - XML import'!$A119)),0,VALUE(MID('CFR - XML import'!$A119,SEARCH(\">\",'CFR - XML import'!$A119,1)+1,SEARCH(\"/\",'CFR - XML import'!$A119,1)-SEARCH(\">\",'CFR - XML import'!$A119,1)-2)))","v":0},{"$f":"IF(ISERROR(FIND(BS$3,'CFR - XML import'!$A119)),0,VALUE(MID('CFR - XML import'!$A119,SEARCH(\">\",'CFR - XML import'!$A119,1)+1,SEARCH(\"/\",'CFR - XML import'!$A119,1)-SEARCH(\">\",'CFR - XML import'!$A119,1)-2)))","v":0},{"$f":"IF(ISERROR(FIND(BT$3,'CFR - XML import'!$A119)),0,VALUE(MID('CFR - XML import'!$A119,SEARCH(\">\",'CFR - XML import'!$A119,1)+1,SEARCH(\"/\",'CFR - XML import'!$A119,1)-SEARCH(\">\",'CFR - XML import'!$A119,1)-2)))","v":0},{"$f":"IF(ISERROR(FIND(BU$3,'CFR - XML import'!$A119)),0,VALUE(MID('CFR - XML import'!$A119,SEARCH(\">\",'CFR - XML import'!$A119,1)+1,SEARCH(\"/\",'CFR - XML import'!$A119,1)-SEARCH(\">\",'CFR - XML import'!$A119,1)-2)))","v":0},{"$f":"IF(ISERROR(FIND(BV$3,'CFR - XML import'!$A119)),0,VALUE(MID('CFR - XML import'!$A119,SEARCH(\">\",'CFR - XML import'!$A119,1)+1,SEARCH(\"/\",'CFR - XML import'!$A119,1)-SEARCH(\">\",'CFR - XML import'!$A119,1)-2)))","v":0},{"$f":"IF(ISERROR(FIND(BW$3,'CFR - XML import'!$A119)),0,VALUE(MID('CFR - XML import'!$A119,SEARCH(\">\",'CFR - XML import'!$A119,1)+1,SEARCH(\"/\",'CFR - XML import'!$A119,1)-SEARCH(\">\",'CFR - XML import'!$A119,1)-2)))","v":0},{"$f":"IF(ISERROR(FIND(BX$3,'CFR - XML import'!$A119)),0,VALUE(MID('CFR - XML import'!$A119,SEARCH(\">\",'CFR - XML import'!$A119,1)+1,SEARCH(\"/\",'CFR - XML import'!$A119,1)-SEARCH(\">\",'CFR - XML import'!$A119,1)-2)))","v":0},{"$f":"IF(ISERROR(FIND(BY$3,'CFR - XML import'!$A119)),0,VALUE(MID('CFR - XML import'!$A119,SEARCH(\">\",'CFR - XML import'!$A119,1)+1,SEARCH(\"/\",'CFR - XML import'!$A119,1)-SEARCH(\">\",'CFR - XML import'!$A119,1)-2)))","v":0},{"$f":"IF(ISERROR(FIND(BZ$3,'CFR - XML import'!$A119)),0,VALUE(MID('CFR - XML import'!$A119,SEARCH(\">\",'CFR - XML import'!$A119,1)+1,SEARCH(\"/\",'CFR - XML import'!$A119,1)-SEARCH(\">\",'CFR - XML import'!$A119,1)-2)))","v":0},null,null,null,null,null,null,{"$f":"IF(ISERROR(IF(MID('CFR - XML import'!$A119,LEN($CF$4)+1,LEN('CFR - XML import'!$A119)-(2*LEN($CF$4)+1))=\"RMMS\",1,IF(MID('CFR - XML import'!$A119,LEN(\"    <InputSystem>\")+1,LEN('CFR - XML import'!$A119)-(LEN(\"    <InputSystem>\")+LEN($CF$4)+1))=\"SIMS\",2,0))),0,IF(MID('CFR - XML import'!$A119,LEN($CF$4)+1,LEN('CFR - XML import'!$A119)-(2*LEN($CF$4)+1))=\"RMMS\",1,IF(MID('CFR - XML import'!$A119,LEN(\"    <InputSystem>\")+1,LEN('CFR - XML import'!$A119)-(LEN(\"    <InputSystem>\")+LEN($CF$4)+1))=\"SIMS\",2,0)))","v":0},{"$f":"IF(ISERROR(FIND(CH$3,'CFR - XML import'!$A119)),0,MID('CFR - XML import'!$A119,SEARCH(\">\",'CFR - XML import'!$A119,1)+1,SEARCH(\"/\",'CFR - XML import'!$A119,1)-SEARCH(\">\",'CFR - XML import'!$A119,1)-2))","v":0},{"$f":"IF(ISERROR(FIND(CI$3,'CFR - XML import'!$A119)),0,MID('CFR - XML import'!$A119,SEARCH(\">\",'CFR - XML import'!$A119,1)+1,SEARCH(\"/\",'CFR - XML import'!$A119,1)-SEARCH(\">\",'CFR - XML import'!$A119,1)-2))","v":0},{"$f":"IF(ISERROR(FIND(CJ$3,'CFR - XML import'!$A119)),0,MID('CFR - XML import'!$A119,SEARCH(\">\",'CFR - XML import'!$A119,1)+1,SEARCH(\"/\",'CFR - XML import'!$A119,1)-SEARCH(\">\",'CFR - XML import'!$A119,1)-2))","v":0},{"$f":"IF(ISERROR(FIND(CK$3,'CFR - XML import'!$A119)),0,MID('CFR - XML import'!$A119,SEARCH(\">\",'CFR - XML import'!$A119,1)+1,SEARCH(\"/\",'CFR - XML import'!$A119,1)-SEARCH(\">\",'CFR - XML import'!$A119,1)-2))","v":0},{"$f":"IF(ISERROR(FIND(CL$3,'CFR - XML import'!$A119)),0,MID('CFR - XML import'!$A119,SEARCH(\">\",'CFR - XML import'!$A119,1)+1,SEARCH(\"/\",'CFR - XML import'!$A119,1)-SEARCH(\">\",'CFR - XML import'!$A119,1)-2))","v":0}]
[{"$f":"IF(AND('CFR - XML import'!A120<>\"\",LEFT('CFR - XML import'!A120,1)<>\"<\",LEFT('CFR - XML import'!A120,3)<>\"  <\",LEFT('CFR - XML import'!A120,5)<>\"    <\",LEFT('CFR - XML import'!A120,7)<>\"      <\",LEFT('CFR - XML import'!A120,9)<>\"        <\",$B$1=\"SIMS\"),'CFR - XML import'!A120,IF(AND(LEFT('CFR - XML import'!A120,9)=\"<Details>\",$B$1=\"RM\"),'CFR - XML import'!A120,\"\"))","v":""},{"$f":"IF(ISERROR(FIND(B$3,'CFR - XML import'!$A120)),0,VALUE(MID('CFR - XML import'!$A120,SEARCH(\">\",'CFR - XML import'!$A120,1)+1,SEARCH(\"/\",'CFR - XML import'!$A120,1)-SEARCH(\">\",'CFR - XML import'!$A120,1)-2)))","v":0},null,{"$f":"IF(ISERROR(FIND(D$3,'CFR - XML import'!$A120)),0,MID('CFR - XML import'!$A120,SEARCH(\">\",'CFR - XML import'!$A120,1)+1,SEARCH(\"/\",'CFR - XML import'!$A120,1)-SEARCH(\">\",'CFR - XML import'!$A120,1)-2))","v":0},{"$f":"IF(ISERROR(FIND(E$3,'CFR - XML import'!$A120)),0,MID('CFR - XML import'!$A120,SEARCH(\">\",'CFR - XML import'!$A120,1)+1,SEARCH(\"/\",'CFR - XML import'!$A120,1)-SEARCH(\">\",'CFR - XML import'!$A120,1)-2))","v":0},{"$f":"IF($B$1=\"SIMS\",IF(ISERROR(FIND(F$3,'CFR - XML import'!$A120)),0,VALUE(MID('CFR - XML import'!$A120,15,10))),IF(ISERROR(FIND(F$3,'CFR - XML import'!$A120)),0,VALUE(MID('CFR - XML import'!$A120,11,10))))","v":"00:00:00"},{"$f":"IF(ISERROR(FIND(G$3,'CFR - XML import'!$A120)),0,VALUE(MID('CFR - XML import'!$A120,SEARCH(\">\",'CFR - XML import'!$A120,1)+1,SEARCH(\"/\",'CFR - XML import'!$A120,1)-SEARCH(\">\",'CFR - XML import'!$A120,1)-2)))","v":0},{"$f":"IF(ISERROR(FIND(H$3,'CFR - XML import'!$A120)),0,VALUE(MID('CFR - XML import'!$A120,SEARCH(\">\",'CFR - XML import'!$A120,1)+1,SEARCH(\"/\",'CFR - XML import'!$A120,1)-SEARCH(\">\",'CFR - XML import'!$A120,1)-2)))","v":0},{"$f":"IF(ISERROR(FIND(I$3,'CFR - XML import'!$A120)),0,VALUE(MID('CFR - XML import'!$A120,SEARCH(\">\",'CFR - XML import'!$A120,1)+1,SEARCH(\"/\",'CFR - XML import'!$A120,1)-SEARCH(\">\",'CFR - XML import'!$A120,1)-2)))","v":0},{"$f":"IF(ISERROR(FIND(J$3,'CFR - XML import'!$A120)),0,VALUE(MID('CFR - XML import'!$A120,SEARCH(\">\",'CFR - XML import'!$A120,1)+1,SEARCH(\"/\",'CFR - XML import'!$A120,1)-SEARCH(\">\",'CFR - XML import'!$A120,1)-2)))","v":0},{"$f":"IF(ISERROR(FIND(K$3,'CFR - XML import'!$A120)),0,VALUE(MID('CFR - XML import'!$A120,SEARCH(\">\",'CFR - XML import'!$A120,1)+1,SEARCH(\"/\",'CFR - XML import'!$A120,1)-SEARCH(\">\",'CFR - XML import'!$A120,1)-2)))","v":0},{"$f":"IF(ISERROR(FIND(L$3,'CFR - XML import'!$A120)),0,VALUE(MID('CFR - XML import'!$A120,SEARCH(\">\",'CFR - XML import'!$A120,1)+1,SEARCH(\"/\",'CFR - XML import'!$A120,1)-SEARCH(\">\",'CFR - XML import'!$A120,1)-2)))","v":0},{"$f":"IF(ISERROR(FIND(M$3,'CFR - XML import'!$A120)),0,VALUE(MID('CFR - XML import'!$A120,SEARCH(\">\",'CFR - XML import'!$A120,1)+1,SEARCH(\"/\",'CFR - XML import'!$A120,1)-SEARCH(\">\",'CFR - XML import'!$A120,1)-2)))","v":0},{"$f":"IF(ISERROR(FIND(N$3,'CFR - XML import'!$A120)),0,VALUE(MID('CFR - XML import'!$A120,SEARCH(\">\",'CFR - XML import'!$A120,1)+1,SEARCH(\"/\",'CFR - XML import'!$A120,1)-SEARCH(\">\",'CFR - XML import'!$A120,1)-2)))","v":0},{"$f":"IF(ISERROR(FIND(O$3,'CFR - XML import'!$A120)),0,VALUE(MID('CFR - XML import'!$A120,SEARCH(\">\",'CFR - XML import'!$A120,1)+1,SEARCH(\"/\",'CFR - XML import'!$A120,1)-SEARCH(\">\",'CFR - XML import'!$A120,1)-2)))","v":0},{"$f":"IF(ISERROR(FIND(P$3,'CFR - XML import'!$A120)),0,VALUE(MID('CFR - XML import'!$A120,SEARCH(\">\",'CFR - XML import'!$A120,1)+1,SEARCH(\"/\",'CFR - XML import'!$A120,1)-SEARCH(\">\",'CFR - XML import'!$A120,1)-2)))","v":0},{"$f":"IF(ISERROR(FIND(Q$3,'CFR - XML import'!$A120)),0,VALUE(MID('CFR - XML import'!$A120,SEARCH(\">\",'CFR - XML import'!$A120,1)+1,SEARCH(\"/\",'CFR - XML import'!$A120,1)-SEARCH(\">\",'CFR - XML import'!$A120,1)-2)))","v":0},{"$f":"IF(ISERROR(FIND(R$3,'CFR - XML import'!$A120)),0,VALUE(MID('CFR - XML import'!$A120,SEARCH(\">\",'CFR - XML import'!$A120,1)+1,SEARCH(\"/\",'CFR - XML import'!$A120,1)-SEARCH(\">\",'CFR - XML import'!$A120,1)-2)))","v":0},{"$f":"IF(ISERROR(FIND(S$3,'CFR - XML import'!$A120)),0,VALUE(MID('CFR - XML import'!$A120,SEARCH(\">\",'CFR - XML import'!$A120,1)+1,SEARCH(\"/\",'CFR - XML import'!$A120,1)-SEARCH(\">\",'CFR - XML import'!$A120,1)-2)))","v":0},{"$f":"IF(ISERROR(FIND(T$3,'CFR - XML import'!$A120)),0,VALUE(MID('CFR - XML import'!$A120,SEARCH(\">\",'CFR - XML import'!$A120,1)+1,SEARCH(\"/\",'CFR - XML import'!$A120,1)-SEARCH(\">\",'CFR - XML import'!$A120,1)-2)))","v":0},{"$f":"IF(ISERROR(FIND(U$3,'CFR - XML import'!$A120)),0,VALUE(MID('CFR - XML import'!$A120,SEARCH(\">\",'CFR - XML import'!$A120,1)+1,SEARCH(\"/\",'CFR - XML import'!$A120,1)-SEARCH(\">\",'CFR - XML import'!$A120,1)-2)))","v":0},{"$f":"IF(ISERROR(FIND(V$3,'CFR - XML import'!$A120)),0,VALUE(MID('CFR - XML import'!$A120,SEARCH(\">\",'CFR - XML import'!$A120,1)+1,SEARCH(\"/\",'CFR - XML import'!$A120,1)-SEARCH(\">\",'CFR - XML import'!$A120,1)-2)))","v":0},{"$f":"IF(ISERROR(FIND(W$3,'CFR - XML import'!$A120)),0,VALUE(MID('CFR - XML import'!$A120,SEARCH(\">\",'CFR - XML import'!$A120,1)+1,SEARCH(\"/\",'CFR - XML import'!$A120,1)-SEARCH(\">\",'CFR - XML import'!$A120,1)-2)))","v":0},null,{"$f":"IF(ISERROR(FIND(Y$3,'CFR - XML import'!$A120)),0,VALUE(MID('CFR - XML import'!$A120,SEARCH(\">\",'CFR - XML import'!$A120,1)+1,SEARCH(\"/\",'CFR - XML import'!$A120,1)-SEARCH(\">\",'CFR - XML import'!$A120,1)-2)))","v":0},{"$f":"IF(ISERROR(FIND(Z$3,'CFR - XML import'!$A120)),0,VALUE(MID('CFR - XML import'!$A120,SEARCH(\">\",'CFR - XML import'!$A120,1)+1,SEARCH(\"/\",'CFR - XML import'!$A120,1)-SEARCH(\">\",'CFR - XML import'!$A120,1)-2)))","v":0},{"$f":"IF(ISERROR(FIND(AA$3,'CFR - XML import'!$A120)),0,VALUE(MID('CFR - XML import'!$A120,SEARCH(\">\",'CFR - XML import'!$A120,1)+1,SEARCH(\"/\",'CFR - XML import'!$A120,1)-SEARCH(\">\",'CFR - XML import'!$A120,1)-2)))","v":0},{"$f":"IF(ISERROR(FIND(AB$3,'CFR - XML import'!$A120)),0,VALUE(MID('CFR - XML import'!$A120,SEARCH(\">\",'CFR - XML import'!$A120,1)+1,SEARCH(\"/\",'CFR - XML import'!$A120,1)-SEARCH(\">\",'CFR - XML import'!$A120,1)-2)))","v":0},{"$f":"IF(ISERROR(FIND(AC$3,'CFR - XML import'!$A120)),0,VALUE(MID('CFR - XML import'!$A120,SEARCH(\">\",'CFR - XML import'!$A120,1)+1,SEARCH(\"/\",'CFR - XML import'!$A120,1)-SEARCH(\">\",'CFR - XML import'!$A120,1)-2)))","v":0},{"$f":"IF(ISERROR(FIND(AD$3,'CFR - XML import'!$A120)),0,VALUE(MID('CFR - XML import'!$A120,SEARCH(\">\",'CFR - XML import'!$A120,1)+1,SEARCH(\"/\",'CFR - XML import'!$A120,1)-SEARCH(\">\",'CFR - XML import'!$A120,1)-2)))","v":0},{"$f":"IF(ISERROR(FIND(AE$3,'CFR - XML import'!$A120)),0,VALUE(MID('CFR - XML import'!$A120,SEARCH(\">\",'CFR - XML import'!$A120,1)+1,SEARCH(\"/\",'CFR - XML import'!$A120,1)-SEARCH(\">\",'CFR - XML import'!$A120,1)-2)))","v":0},{"$f":"IF(ISERROR(FIND(AF$3,'CFR - XML import'!$A120)),0,VALUE(MID('CFR - XML import'!$A120,SEARCH(\">\",'CFR - XML import'!$A120,1)+1,SEARCH(\"/\",'CFR - XML import'!$A120,1)-SEARCH(\">\",'CFR - XML import'!$A120,1)-2)))","v":0},{"$f":"IF(ISERROR(FIND(AG$3,'CFR - XML import'!$A120)),0,VALUE(MID('CFR - XML import'!$A120,SEARCH(\">\",'CFR - XML import'!$A120,1)+1,SEARCH(\"/\",'CFR - XML import'!$A120,1)-SEARCH(\">\",'CFR - XML import'!$A120,1)-2)))","v":0},{"$f":"IF(ISERROR(FIND(AH$3,'CFR - XML import'!$A120)),0,VALUE(MID('CFR - XML import'!$A120,SEARCH(\">\",'CFR - XML import'!$A120,1)+1,SEARCH(\"/\",'CFR - XML import'!$A120,1)-SEARCH(\">\",'CFR - XML import'!$A120,1)-2)))","v":0},{"$f":"IF(ISERROR(FIND(AI$3,'CFR - XML import'!$A120)),0,VALUE(MID('CFR - XML import'!$A120,SEARCH(\">\",'CFR - XML import'!$A120,1)+1,SEARCH(\"/\",'CFR - XML import'!$A120,1)-SEARCH(\">\",'CFR - XML import'!$A120,1)-2)))","v":0},{"$f":"IF(ISERROR(FIND(AJ$3,'CFR - XML import'!$A120)),0,VALUE(MID('CFR - XML import'!$A120,SEARCH(\">\",'CFR - XML import'!$A120,1)+1,SEARCH(\"/\",'CFR - XML import'!$A120,1)-SEARCH(\">\",'CFR - XML import'!$A120,1)-2)))","v":0},{"$f":"IF(ISERROR(FIND(AK$3,'CFR - XML import'!$A120)),0,VALUE(MID('CFR - XML import'!$A120,SEARCH(\">\",'CFR - XML import'!$A120,1)+1,SEARCH(\"/\",'CFR - XML import'!$A120,1)-SEARCH(\">\",'CFR - XML import'!$A120,1)-2)))","v":0},{"$f":"IF(ISERROR(FIND(AL$3,'CFR - XML import'!$A120)),0,VALUE(MID('CFR - XML import'!$A120,SEARCH(\">\",'CFR - XML import'!$A120,1)+1,SEARCH(\"/\",'CFR - XML import'!$A120,1)-SEARCH(\">\",'CFR - XML import'!$A120,1)-2)))","v":0},{"$f":"IF(ISERROR(FIND(AM$3,'CFR - XML import'!$A120)),0,VALUE(MID('CFR - XML import'!$A120,SEARCH(\">\",'CFR - XML import'!$A120,1)+1,SEARCH(\"/\",'CFR - XML import'!$A120,1)-SEARCH(\">\",'CFR - XML import'!$A120,1)-2)))","v":0},{"$f":"IF(ISERROR(FIND(AN$3,'CFR - XML import'!$A120)),0,VALUE(MID('CFR - XML import'!$A120,SEARCH(\">\",'CFR - XML import'!$A120,1)+1,SEARCH(\"/\",'CFR - XML import'!$A120,1)-SEARCH(\">\",'CFR - XML import'!$A120,1)-2)))","v":0},{"$f":"IF(ISERROR(FIND(AO$3,'CFR - XML import'!$A120)),0,VALUE(MID('CFR - XML import'!$A120,SEARCH(\">\",'CFR - XML import'!$A120,1)+1,SEARCH(\"/\",'CFR - XML import'!$A120,1)-SEARCH(\">\",'CFR - XML import'!$A120,1)-2)))","v":0},{"$f":"IF(ISERROR(FIND(AP$3,'CFR - XML import'!$A120)),0,VALUE(MID('CFR - XML import'!$A120,SEARCH(\">\",'CFR - XML import'!$A120,1)+1,SEARCH(\"/\",'CFR - XML import'!$A120,1)-SEARCH(\">\",'CFR - XML import'!$A120,1)-2)))","v":0},{"$f":"IF(ISERROR(FIND(AQ$3,'CFR - XML import'!$A120)),0,VALUE(MID('CFR - XML import'!$A120,SEARCH(\">\",'CFR - XML import'!$A120,1)+1,SEARCH(\"/\",'CFR - XML import'!$A120,1)-SEARCH(\">\",'CFR - XML import'!$A120,1)-2)))","v":0},{"$f":"IF(ISERROR(FIND(AR$3,'CFR - XML import'!$A120)),0,VALUE(MID('CFR - XML import'!$A120,SEARCH(\">\",'CFR - XML import'!$A120,1)+1,SEARCH(\"/\",'CFR - XML import'!$A120,1)-SEARCH(\">\",'CFR - XML import'!$A120,1)-2)))","v":0},{"$f":"IF(ISERROR(FIND(AS$3,'CFR - XML import'!$A120)),0,VALUE(MID('CFR - XML import'!$A120,SEARCH(\">\",'CFR - XML import'!$A120,1)+1,SEARCH(\"/\",'CFR - XML import'!$A120,1)-SEARCH(\">\",'CFR - XML import'!$A120,1)-2)))","v":0},{"$f":"IF(ISERROR(FIND(AT$3,'CFR - XML import'!$A120)),0,VALUE(MID('CFR - XML import'!$A120,SEARCH(\">\",'CFR - XML import'!$A120,1)+1,SEARCH(\"/\",'CFR - XML import'!$A120,1)-SEARCH(\">\",'CFR - XML import'!$A120,1)-2)))","v":0},{"$f":"IF(ISERROR(FIND(AU$3,'CFR - XML import'!$A120)),0,VALUE(MID('CFR - XML import'!$A120,SEARCH(\">\",'CFR - XML import'!$A120,1)+1,SEARCH(\"/\",'CFR - XML import'!$A120,1)-SEARCH(\">\",'CFR - XML import'!$A120,1)-2)))","v":0},{"$f":"IF(ISERROR(FIND(AV$3,'CFR - XML import'!$A120)),0,VALUE(MID('CFR - XML import'!$A120,SEARCH(\">\",'CFR - XML import'!$A120,1)+1,SEARCH(\"/\",'CFR - XML import'!$A120,1)-SEARCH(\">\",'CFR - XML import'!$A120,1)-2)))","v":0},{"$f":"IF(ISERROR(FIND(AW$3,'CFR - XML import'!$A120)),0,VALUE(MID('CFR - XML import'!$A120,SEARCH(\">\",'CFR - XML import'!$A120,1)+1,SEARCH(\"/\",'CFR - XML import'!$A120,1)-SEARCH(\">\",'CFR - XML import'!$A120,1)-2)))","v":0},{"$f":"IF(ISERROR(FIND(AX$3,'CFR - XML import'!$A120)),0,VALUE(MID('CFR - XML import'!$A120,SEARCH(\">\",'CFR - XML import'!$A120,1)+1,SEARCH(\"/\",'CFR - XML import'!$A120,1)-SEARCH(\">\",'CFR - XML import'!$A120,1)-2)))","v":0},{"$f":"IF(ISERROR(FIND(AY$3,'CFR - XML import'!$A120)),0,VALUE(MID('CFR - XML import'!$A120,SEARCH(\">\",'CFR - XML import'!$A120,1)+1,SEARCH(\"/\",'CFR - XML import'!$A120,1)-SEARCH(\">\",'CFR - XML import'!$A120,1)-2)))","v":0},{"$f":"IF(ISERROR(FIND(AZ$3,'CFR - XML import'!$A120)),0,VALUE(MID('CFR - XML import'!$A120,SEARCH(\">\",'CFR - XML import'!$A120,1)+1,SEARCH(\"/\",'CFR - XML import'!$A120,1)-SEARCH(\">\",'CFR - XML import'!$A120,1)-2)))","v":0},{"$f":"IF(ISERROR(FIND(BA$3,'CFR - XML import'!$A120)),0,VALUE(MID('CFR - XML import'!$A120,SEARCH(\">\",'CFR - XML import'!$A120,1)+1,SEARCH(\"/\",'CFR - XML import'!$A120,1)-SEARCH(\">\",'CFR - XML import'!$A120,1)-2)))","v":0},{"$f":"IF(ISERROR(FIND(BB$3,'CFR - XML import'!$A120)),0,VALUE(MID('CFR - XML import'!$A120,SEARCH(\">\",'CFR - XML import'!$A120,1)+1,SEARCH(\"/\",'CFR - XML import'!$A120,1)-SEARCH(\">\",'CFR - XML import'!$A120,1)-2)))","v":0},{"$f":"IF(ISERROR(FIND(BC$3,'CFR - XML import'!$A120)),0,VALUE(MID('CFR - XML import'!$A120,SEARCH(\">\",'CFR - XML import'!$A120,1)+1,SEARCH(\"/\",'CFR - XML import'!$A120,1)-SEARCH(\">\",'CFR - XML import'!$A120,1)-2)))","v":0},{"$f":"IF(ISERROR(FIND(BD$3,'CFR - XML import'!$A120)),0,VALUE(MID('CFR - XML import'!$A120,SEARCH(\">\",'CFR - XML import'!$A120,1)+1,SEARCH(\"/\",'CFR - XML import'!$A120,1)-SEARCH(\">\",'CFR - XML import'!$A120,1)-2)))","v":0},{"$f":"IF(ISERROR(FIND(BE$3,'CFR - XML import'!$A120)),0,VALUE(MID('CFR - XML import'!$A120,SEARCH(\">\",'CFR - XML import'!$A120,1)+1,SEARCH(\"/\",'CFR - XML import'!$A120,1)-SEARCH(\">\",'CFR - XML import'!$A120,1)-2)))","v":0},{"$f":"IF(ISERROR(FIND(BF$3,'CFR - XML import'!$A120)),0,VALUE(MID('CFR - XML import'!$A120,SEARCH(\">\",'CFR - XML import'!$A120,1)+1,SEARCH(\"/\",'CFR - XML import'!$A120,1)-SEARCH(\">\",'CFR - XML import'!$A120,1)-2)))","v":0},{"$f":"IF(ISERROR(FIND(BG$3,'CFR - XML import'!$A120)),0,VALUE(MID('CFR - XML import'!$A120,SEARCH(\">\",'CFR - XML import'!$A120,1)+1,SEARCH(\"/\",'CFR - XML import'!$A120,1)-SEARCH(\">\",'CFR - XML import'!$A120,1)-2)))","v":0},{"$f":"IF(ISERROR(FIND(BH$3,'CFR - XML import'!$A120)),0,VALUE(MID('CFR - XML import'!$A120,SEARCH(\">\",'CFR - XML import'!$A120,1)+1,SEARCH(\"/\",'CFR - XML import'!$A120,1)-SEARCH(\">\",'CFR - XML import'!$A120,1)-2)))","v":0},{"$f":"IF(ISERROR(FIND(BI$3,'CFR - XML import'!$A120)),0,VALUE(MID('CFR - XML import'!$A120,SEARCH(\">\",'CFR - XML import'!$A120,1)+1,SEARCH(\"/\",'CFR - XML import'!$A120,1)-SEARCH(\">\",'CFR - XML import'!$A120,1)-2)))","v":0},{"$f":"IF(ISERROR(FIND(BJ$3,'CFR - XML import'!$A120)),0,VALUE(MID('CFR - XML import'!$A120,SEARCH(\">\",'CFR - XML import'!$A120,1)+1,SEARCH(\"/\",'CFR - XML import'!$A120,1)-SEARCH(\">\",'CFR - XML import'!$A120,1)-2)))","v":0},{"$f":"IF(ISERROR(FIND(BK$3,'CFR - XML import'!$A120)),0,VALUE(MID('CFR - XML import'!$A120,SEARCH(\">\",'CFR - XML import'!$A120,1)+1,SEARCH(\"/\",'CFR - XML import'!$A120,1)-SEARCH(\">\",'CFR - XML import'!$A120,1)-2)))","v":0},{"$f":"IF(ISERROR(FIND(BL$3,'CFR - XML import'!$A120)),0,VALUE(MID('CFR - XML import'!$A120,SEARCH(\">\",'CFR - XML import'!$A120,1)+1,SEARCH(\"/\",'CFR - XML import'!$A120,1)-SEARCH(\">\",'CFR - XML import'!$A120,1)-2)))","v":0},{"$f":"IF(ISERROR(FIND(BM$3,'CFR - XML import'!$A120)),0,VALUE(MID('CFR - XML import'!$A120,SEARCH(\">\",'CFR - XML import'!$A120,1)+1,SEARCH(\"/\",'CFR - XML import'!$A120,1)-SEARCH(\">\",'CFR - XML import'!$A120,1)-2)))","v":0},{"$f":"IF(ISERROR(FIND(BN$3,'CFR - XML import'!$A120)),0,VALUE(MID('CFR - XML import'!$A120,SEARCH(\">\",'CFR - XML import'!$A120,1)+1,SEARCH(\"/\",'CFR - XML import'!$A120,1)-SEARCH(\">\",'CFR - XML import'!$A120,1)-2)))","v":0},{"$f":"IF(ISERROR(FIND(BO$3,'CFR - XML import'!$A120)),0,VALUE(MID('CFR - XML import'!$A120,SEARCH(\">\",'CFR - XML import'!$A120,1)+1,SEARCH(\"/\",'CFR - XML import'!$A120,1)-SEARCH(\">\",'CFR - XML import'!$A120,1)-2)))","v":0},{"$f":"IF(ISERROR(FIND(BP$3,'CFR - XML import'!$A120)),0,VALUE(MID('CFR - XML import'!$A120,SEARCH(\">\",'CFR - XML import'!$A120,1)+1,SEARCH(\"/\",'CFR - XML import'!$A120,1)-SEARCH(\">\",'CFR - XML import'!$A120,1)-2)))","v":0},{"$f":"IF(ISERROR(FIND(BQ$3,'CFR - XML import'!$A120)),0,VALUE(MID('CFR - XML import'!$A120,SEARCH(\">\",'CFR - XML import'!$A120,1)+1,SEARCH(\"/\",'CFR - XML import'!$A120,1)-SEARCH(\">\",'CFR - XML import'!$A120,1)-2)))","v":0},{"$f":"IF(ISERROR(FIND(BR$3,'CFR - XML import'!$A120)),0,VALUE(MID('CFR - XML import'!$A120,SEARCH(\">\",'CFR - XML import'!$A120,1)+1,SEARCH(\"/\",'CFR - XML import'!$A120,1)-SEARCH(\">\",'CFR - XML import'!$A120,1)-2)))","v":0},{"$f":"IF(ISERROR(FIND(BS$3,'CFR - XML import'!$A120)),0,VALUE(MID('CFR - XML import'!$A120,SEARCH(\">\",'CFR - XML import'!$A120,1)+1,SEARCH(\"/\",'CFR - XML import'!$A120,1)-SEARCH(\">\",'CFR - XML import'!$A120,1)-2)))","v":0},{"$f":"IF(ISERROR(FIND(BT$3,'CFR - XML import'!$A120)),0,VALUE(MID('CFR - XML import'!$A120,SEARCH(\">\",'CFR - XML import'!$A120,1)+1,SEARCH(\"/\",'CFR - XML import'!$A120,1)-SEARCH(\">\",'CFR - XML import'!$A120,1)-2)))","v":0},{"$f":"IF(ISERROR(FIND(BU$3,'CFR - XML import'!$A120)),0,VALUE(MID('CFR - XML import'!$A120,SEARCH(\">\",'CFR - XML import'!$A120,1)+1,SEARCH(\"/\",'CFR - XML import'!$A120,1)-SEARCH(\">\",'CFR - XML import'!$A120,1)-2)))","v":0},{"$f":"IF(ISERROR(FIND(BV$3,'CFR - XML import'!$A120)),0,VALUE(MID('CFR - XML import'!$A120,SEARCH(\">\",'CFR - XML import'!$A120,1)+1,SEARCH(\"/\",'CFR - XML import'!$A120,1)-SEARCH(\">\",'CFR - XML import'!$A120,1)-2)))","v":0},{"$f":"IF(ISERROR(FIND(BW$3,'CFR - XML import'!$A120)),0,VALUE(MID('CFR - XML import'!$A120,SEARCH(\">\",'CFR - XML import'!$A120,1)+1,SEARCH(\"/\",'CFR - XML import'!$A120,1)-SEARCH(\">\",'CFR - XML import'!$A120,1)-2)))","v":0},{"$f":"IF(ISERROR(FIND(BX$3,'CFR - XML import'!$A120)),0,VALUE(MID('CFR - XML import'!$A120,SEARCH(\">\",'CFR - XML import'!$A120,1)+1,SEARCH(\"/\",'CFR - XML import'!$A120,1)-SEARCH(\">\",'CFR - XML import'!$A120,1)-2)))","v":0},{"$f":"IF(ISERROR(FIND(BY$3,'CFR - XML import'!$A120)),0,VALUE(MID('CFR - XML import'!$A120,SEARCH(\">\",'CFR - XML import'!$A120,1)+1,SEARCH(\"/\",'CFR - XML import'!$A120,1)-SEARCH(\">\",'CFR - XML import'!$A120,1)-2)))","v":0},{"$f":"IF(ISERROR(FIND(BZ$3,'CFR - XML import'!$A120)),0,VALUE(MID('CFR - XML import'!$A120,SEARCH(\">\",'CFR - XML import'!$A120,1)+1,SEARCH(\"/\",'CFR - XML import'!$A120,1)-SEARCH(\">\",'CFR - XML import'!$A120,1)-2)))","v":0},null,null,null,null,null,null,{"$f":"IF(ISERROR(IF(MID('CFR - XML import'!$A120,LEN($CF$4)+1,LEN('CFR - XML import'!$A120)-(2*LEN($CF$4)+1))=\"RMMS\",1,IF(MID('CFR - XML import'!$A120,LEN(\"    <InputSystem>\")+1,LEN('CFR - XML import'!$A120)-(LEN(\"    <InputSystem>\")+LEN($CF$4)+1))=\"SIMS\",2,0))),0,IF(MID('CFR - XML import'!$A120,LEN($CF$4)+1,LEN('CFR - XML import'!$A120)-(2*LEN($CF$4)+1))=\"RMMS\",1,IF(MID('CFR - XML import'!$A120,LEN(\"    <InputSystem>\")+1,LEN('CFR - XML import'!$A120)-(LEN(\"    <InputSystem>\")+LEN($CF$4)+1))=\"SIMS\",2,0)))","v":0},{"$f":"IF(ISERROR(FIND(CH$3,'CFR - XML import'!$A120)),0,MID('CFR - XML import'!$A120,SEARCH(\">\",'CFR - XML import'!$A120,1)+1,SEARCH(\"/\",'CFR - XML import'!$A120,1)-SEARCH(\">\",'CFR - XML import'!$A120,1)-2))","v":0},{"$f":"IF(ISERROR(FIND(CI$3,'CFR - XML import'!$A120)),0,MID('CFR - XML import'!$A120,SEARCH(\">\",'CFR - XML import'!$A120,1)+1,SEARCH(\"/\",'CFR - XML import'!$A120,1)-SEARCH(\">\",'CFR - XML import'!$A120,1)-2))","v":0},{"$f":"IF(ISERROR(FIND(CJ$3,'CFR - XML import'!$A120)),0,MID('CFR - XML import'!$A120,SEARCH(\">\",'CFR - XML import'!$A120,1)+1,SEARCH(\"/\",'CFR - XML import'!$A120,1)-SEARCH(\">\",'CFR - XML import'!$A120,1)-2))","v":0},{"$f":"IF(ISERROR(FIND(CK$3,'CFR - XML import'!$A120)),0,MID('CFR - XML import'!$A120,SEARCH(\">\",'CFR - XML import'!$A120,1)+1,SEARCH(\"/\",'CFR - XML import'!$A120,1)-SEARCH(\">\",'CFR - XML import'!$A120,1)-2))","v":0},{"$f":"IF(ISERROR(FIND(CL$3,'CFR - XML import'!$A120)),0,MID('CFR - XML import'!$A120,SEARCH(\">\",'CFR - XML import'!$A120,1)+1,SEARCH(\"/\",'CFR - XML import'!$A120,1)-SEARCH(\">\",'CFR - XML import'!$A120,1)-2))","v":0}]
[{"$f":"IF(AND('CFR - XML import'!A121<>\"\",LEFT('CFR - XML import'!A121,1)<>\"<\",LEFT('CFR - XML import'!A121,3)<>\"  <\",LEFT('CFR - XML import'!A121,5)<>\"    <\",LEFT('CFR - XML import'!A121,7)<>\"      <\",LEFT('CFR - XML import'!A121,9)<>\"        <\",$B$1=\"SIMS\"),'CFR - XML import'!A121,IF(AND(LEFT('CFR - XML import'!A121,9)=\"<Details>\",$B$1=\"RM\"),'CFR - XML import'!A121,\"\"))","v":""},{"$f":"IF(ISERROR(FIND(B$3,'CFR - XML import'!$A121)),0,VALUE(MID('CFR - XML import'!$A121,SEARCH(\">\",'CFR - XML import'!$A121,1)+1,SEARCH(\"/\",'CFR - XML import'!$A121,1)-SEARCH(\">\",'CFR - XML import'!$A121,1)-2)))","v":0},null,{"$f":"IF(ISERROR(FIND(D$3,'CFR - XML import'!$A121)),0,MID('CFR - XML import'!$A121,SEARCH(\">\",'CFR - XML import'!$A121,1)+1,SEARCH(\"/\",'CFR - XML import'!$A121,1)-SEARCH(\">\",'CFR - XML import'!$A121,1)-2))","v":0},{"$f":"IF(ISERROR(FIND(E$3,'CFR - XML import'!$A121)),0,MID('CFR - XML import'!$A121,SEARCH(\">\",'CFR - XML import'!$A121,1)+1,SEARCH(\"/\",'CFR - XML import'!$A121,1)-SEARCH(\">\",'CFR - XML import'!$A121,1)-2))","v":0},{"$f":"IF($B$1=\"SIMS\",IF(ISERROR(FIND(F$3,'CFR - XML import'!$A121)),0,VALUE(MID('CFR - XML import'!$A121,15,10))),IF(ISERROR(FIND(F$3,'CFR - XML import'!$A121)),0,VALUE(MID('CFR - XML import'!$A121,11,10))))","v":"00:00:00"},{"$f":"IF(ISERROR(FIND(G$3,'CFR - XML import'!$A121)),0,VALUE(MID('CFR - XML import'!$A121,SEARCH(\">\",'CFR - XML import'!$A121,1)+1,SEARCH(\"/\",'CFR - XML import'!$A121,1)-SEARCH(\">\",'CFR - XML import'!$A121,1)-2)))","v":0},{"$f":"IF(ISERROR(FIND(H$3,'CFR - XML import'!$A121)),0,VALUE(MID('CFR - XML import'!$A121,SEARCH(\">\",'CFR - XML import'!$A121,1)+1,SEARCH(\"/\",'CFR - XML import'!$A121,1)-SEARCH(\">\",'CFR - XML import'!$A121,1)-2)))","v":0},{"$f":"IF(ISERROR(FIND(I$3,'CFR - XML import'!$A121)),0,VALUE(MID('CFR - XML import'!$A121,SEARCH(\">\",'CFR - XML import'!$A121,1)+1,SEARCH(\"/\",'CFR - XML import'!$A121,1)-SEARCH(\">\",'CFR - XML import'!$A121,1)-2)))","v":0},{"$f":"IF(ISERROR(FIND(J$3,'CFR - XML import'!$A121)),0,VALUE(MID('CFR - XML import'!$A121,SEARCH(\">\",'CFR - XML import'!$A121,1)+1,SEARCH(\"/\",'CFR - XML import'!$A121,1)-SEARCH(\">\",'CFR - XML import'!$A121,1)-2)))","v":0},{"$f":"IF(ISERROR(FIND(K$3,'CFR - XML import'!$A121)),0,VALUE(MID('CFR - XML import'!$A121,SEARCH(\">\",'CFR - XML import'!$A121,1)+1,SEARCH(\"/\",'CFR - XML import'!$A121,1)-SEARCH(\">\",'CFR - XML import'!$A121,1)-2)))","v":0},{"$f":"IF(ISERROR(FIND(L$3,'CFR - XML import'!$A121)),0,VALUE(MID('CFR - XML import'!$A121,SEARCH(\">\",'CFR - XML import'!$A121,1)+1,SEARCH(\"/\",'CFR - XML import'!$A121,1)-SEARCH(\">\",'CFR - XML import'!$A121,1)-2)))","v":0},{"$f":"IF(ISERROR(FIND(M$3,'CFR - XML import'!$A121)),0,VALUE(MID('CFR - XML import'!$A121,SEARCH(\">\",'CFR - XML import'!$A121,1)+1,SEARCH(\"/\",'CFR - XML import'!$A121,1)-SEARCH(\">\",'CFR - XML import'!$A121,1)-2)))","v":0},{"$f":"IF(ISERROR(FIND(N$3,'CFR - XML import'!$A121)),0,VALUE(MID('CFR - XML import'!$A121,SEARCH(\">\",'CFR - XML import'!$A121,1)+1,SEARCH(\"/\",'CFR - XML import'!$A121,1)-SEARCH(\">\",'CFR - XML import'!$A121,1)-2)))","v":0},{"$f":"IF(ISERROR(FIND(O$3,'CFR - XML import'!$A121)),0,VALUE(MID('CFR - XML import'!$A121,SEARCH(\">\",'CFR - XML import'!$A121,1)+1,SEARCH(\"/\",'CFR - XML import'!$A121,1)-SEARCH(\">\",'CFR - XML import'!$A121,1)-2)))","v":0},{"$f":"IF(ISERROR(FIND(P$3,'CFR - XML import'!$A121)),0,VALUE(MID('CFR - XML import'!$A121,SEARCH(\">\",'CFR - XML import'!$A121,1)+1,SEARCH(\"/\",'CFR - XML import'!$A121,1)-SEARCH(\">\",'CFR - XML import'!$A121,1)-2)))","v":0},{"$f":"IF(ISERROR(FIND(Q$3,'CFR - XML import'!$A121)),0,VALUE(MID('CFR - XML import'!$A121,SEARCH(\">\",'CFR - XML import'!$A121,1)+1,SEARCH(\"/\",'CFR - XML import'!$A121,1)-SEARCH(\">\",'CFR - XML import'!$A121,1)-2)))","v":0},{"$f":"IF(ISERROR(FIND(R$3,'CFR - XML import'!$A121)),0,VALUE(MID('CFR - XML import'!$A121,SEARCH(\">\",'CFR - XML import'!$A121,1)+1,SEARCH(\"/\",'CFR - XML import'!$A121,1)-SEARCH(\">\",'CFR - XML import'!$A121,1)-2)))","v":0},{"$f":"IF(ISERROR(FIND(S$3,'CFR - XML import'!$A121)),0,VALUE(MID('CFR - XML import'!$A121,SEARCH(\">\",'CFR - XML import'!$A121,1)+1,SEARCH(\"/\",'CFR - XML import'!$A121,1)-SEARCH(\">\",'CFR - XML import'!$A121,1)-2)))","v":0},{"$f":"IF(ISERROR(FIND(T$3,'CFR - XML import'!$A121)),0,VALUE(MID('CFR - XML import'!$A121,SEARCH(\">\",'CFR - XML import'!$A121,1)+1,SEARCH(\"/\",'CFR - XML import'!$A121,1)-SEARCH(\">\",'CFR - XML import'!$A121,1)-2)))","v":0},{"$f":"IF(ISERROR(FIND(U$3,'CFR - XML import'!$A121)),0,VALUE(MID('CFR - XML import'!$A121,SEARCH(\">\",'CFR - XML import'!$A121,1)+1,SEARCH(\"/\",'CFR - XML import'!$A121,1)-SEARCH(\">\",'CFR - XML import'!$A121,1)-2)))","v":0},{"$f":"IF(ISERROR(FIND(V$3,'CFR - XML import'!$A121)),0,VALUE(MID('CFR - XML import'!$A121,SEARCH(\">\",'CFR - XML import'!$A121,1)+1,SEARCH(\"/\",'CFR - XML import'!$A121,1)-SEARCH(\">\",'CFR - XML import'!$A121,1)-2)))","v":0},{"$f":"IF(ISERROR(FIND(W$3,'CFR - XML import'!$A121)),0,VALUE(MID('CFR - XML import'!$A121,SEARCH(\">\",'CFR - XML import'!$A121,1)+1,SEARCH(\"/\",'CFR - XML import'!$A121,1)-SEARCH(\">\",'CFR - XML import'!$A121,1)-2)))","v":0},null,{"$f":"IF(ISERROR(FIND(Y$3,'CFR - XML import'!$A121)),0,VALUE(MID('CFR - XML import'!$A121,SEARCH(\">\",'CFR - XML import'!$A121,1)+1,SEARCH(\"/\",'CFR - XML import'!$A121,1)-SEARCH(\">\",'CFR - XML import'!$A121,1)-2)))","v":0},{"$f":"IF(ISERROR(FIND(Z$3,'CFR - XML import'!$A121)),0,VALUE(MID('CFR - XML import'!$A121,SEARCH(\">\",'CFR - XML import'!$A121,1)+1,SEARCH(\"/\",'CFR - XML import'!$A121,1)-SEARCH(\">\",'CFR - XML import'!$A121,1)-2)))","v":0},{"$f":"IF(ISERROR(FIND(AA$3,'CFR - XML import'!$A121)),0,VALUE(MID('CFR - XML import'!$A121,SEARCH(\">\",'CFR - XML import'!$A121,1)+1,SEARCH(\"/\",'CFR - XML import'!$A121,1)-SEARCH(\">\",'CFR - XML import'!$A121,1)-2)))","v":0},{"$f":"IF(ISERROR(FIND(AB$3,'CFR - XML import'!$A121)),0,VALUE(MID('CFR - XML import'!$A121,SEARCH(\">\",'CFR - XML import'!$A121,1)+1,SEARCH(\"/\",'CFR - XML import'!$A121,1)-SEARCH(\">\",'CFR - XML import'!$A121,1)-2)))","v":0},{"$f":"IF(ISERROR(FIND(AC$3,'CFR - XML import'!$A121)),0,VALUE(MID('CFR - XML import'!$A121,SEARCH(\">\",'CFR - XML import'!$A121,1)+1,SEARCH(\"/\",'CFR - XML import'!$A121,1)-SEARCH(\">\",'CFR - XML import'!$A121,1)-2)))","v":0},{"$f":"IF(ISERROR(FIND(AD$3,'CFR - XML import'!$A121)),0,VALUE(MID('CFR - XML import'!$A121,SEARCH(\">\",'CFR - XML import'!$A121,1)+1,SEARCH(\"/\",'CFR - XML import'!$A121,1)-SEARCH(\">\",'CFR - XML import'!$A121,1)-2)))","v":0},{"$f":"IF(ISERROR(FIND(AE$3,'CFR - XML import'!$A121)),0,VALUE(MID('CFR - XML import'!$A121,SEARCH(\">\",'CFR - XML import'!$A121,1)+1,SEARCH(\"/\",'CFR - XML import'!$A121,1)-SEARCH(\">\",'CFR - XML import'!$A121,1)-2)))","v":0},{"$f":"IF(ISERROR(FIND(AF$3,'CFR - XML import'!$A121)),0,VALUE(MID('CFR - XML import'!$A121,SEARCH(\">\",'CFR - XML import'!$A121,1)+1,SEARCH(\"/\",'CFR - XML import'!$A121,1)-SEARCH(\">\",'CFR - XML import'!$A121,1)-2)))","v":0},{"$f":"IF(ISERROR(FIND(AG$3,'CFR - XML import'!$A121)),0,VALUE(MID('CFR - XML import'!$A121,SEARCH(\">\",'CFR - XML import'!$A121,1)+1,SEARCH(\"/\",'CFR - XML import'!$A121,1)-SEARCH(\">\",'CFR - XML import'!$A121,1)-2)))","v":0},{"$f":"IF(ISERROR(FIND(AH$3,'CFR - XML import'!$A121)),0,VALUE(MID('CFR - XML import'!$A121,SEARCH(\">\",'CFR - XML import'!$A121,1)+1,SEARCH(\"/\",'CFR - XML import'!$A121,1)-SEARCH(\">\",'CFR - XML import'!$A121,1)-2)))","v":0},{"$f":"IF(ISERROR(FIND(AI$3,'CFR - XML import'!$A121)),0,VALUE(MID('CFR - XML import'!$A121,SEARCH(\">\",'CFR - XML import'!$A121,1)+1,SEARCH(\"/\",'CFR - XML import'!$A121,1)-SEARCH(\">\",'CFR - XML import'!$A121,1)-2)))","v":0},{"$f":"IF(ISERROR(FIND(AJ$3,'CFR - XML import'!$A121)),0,VALUE(MID('CFR - XML import'!$A121,SEARCH(\">\",'CFR - XML import'!$A121,1)+1,SEARCH(\"/\",'CFR - XML import'!$A121,1)-SEARCH(\">\",'CFR - XML import'!$A121,1)-2)))","v":0},{"$f":"IF(ISERROR(FIND(AK$3,'CFR - XML import'!$A121)),0,VALUE(MID('CFR - XML import'!$A121,SEARCH(\">\",'CFR - XML import'!$A121,1)+1,SEARCH(\"/\",'CFR - XML import'!$A121,1)-SEARCH(\">\",'CFR - XML import'!$A121,1)-2)))","v":0},{"$f":"IF(ISERROR(FIND(AL$3,'CFR - XML import'!$A121)),0,VALUE(MID('CFR - XML import'!$A121,SEARCH(\">\",'CFR - XML import'!$A121,1)+1,SEARCH(\"/\",'CFR - XML import'!$A121,1)-SEARCH(\">\",'CFR - XML import'!$A121,1)-2)))","v":0},{"$f":"IF(ISERROR(FIND(AM$3,'CFR - XML import'!$A121)),0,VALUE(MID('CFR - XML import'!$A121,SEARCH(\">\",'CFR - XML import'!$A121,1)+1,SEARCH(\"/\",'CFR - XML import'!$A121,1)-SEARCH(\">\",'CFR - XML import'!$A121,1)-2)))","v":0},{"$f":"IF(ISERROR(FIND(AN$3,'CFR - XML import'!$A121)),0,VALUE(MID('CFR - XML import'!$A121,SEARCH(\">\",'CFR - XML import'!$A121,1)+1,SEARCH(\"/\",'CFR - XML import'!$A121,1)-SEARCH(\">\",'CFR - XML import'!$A121,1)-2)))","v":0},{"$f":"IF(ISERROR(FIND(AO$3,'CFR - XML import'!$A121)),0,VALUE(MID('CFR - XML import'!$A121,SEARCH(\">\",'CFR - XML import'!$A121,1)+1,SEARCH(\"/\",'CFR - XML import'!$A121,1)-SEARCH(\">\",'CFR - XML import'!$A121,1)-2)))","v":0},{"$f":"IF(ISERROR(FIND(AP$3,'CFR - XML import'!$A121)),0,VALUE(MID('CFR - XML import'!$A121,SEARCH(\">\",'CFR - XML import'!$A121,1)+1,SEARCH(\"/\",'CFR - XML import'!$A121,1)-SEARCH(\">\",'CFR - XML import'!$A121,1)-2)))","v":0},{"$f":"IF(ISERROR(FIND(AQ$3,'CFR - XML import'!$A121)),0,VALUE(MID('CFR - XML import'!$A121,SEARCH(\">\",'CFR - XML import'!$A121,1)+1,SEARCH(\"/\",'CFR - XML import'!$A121,1)-SEARCH(\">\",'CFR - XML import'!$A121,1)-2)))","v":0},{"$f":"IF(ISERROR(FIND(AR$3,'CFR - XML import'!$A121)),0,VALUE(MID('CFR - XML import'!$A121,SEARCH(\">\",'CFR - XML import'!$A121,1)+1,SEARCH(\"/\",'CFR - XML import'!$A121,1)-SEARCH(\">\",'CFR - XML import'!$A121,1)-2)))","v":0},{"$f":"IF(ISERROR(FIND(AS$3,'CFR - XML import'!$A121)),0,VALUE(MID('CFR - XML import'!$A121,SEARCH(\">\",'CFR - XML import'!$A121,1)+1,SEARCH(\"/\",'CFR - XML import'!$A121,1)-SEARCH(\">\",'CFR - XML import'!$A121,1)-2)))","v":0},{"$f":"IF(ISERROR(FIND(AT$3,'CFR - XML import'!$A121)),0,VALUE(MID('CFR - XML import'!$A121,SEARCH(\">\",'CFR - XML import'!$A121,1)+1,SEARCH(\"/\",'CFR - XML import'!$A121,1)-SEARCH(\">\",'CFR - XML import'!$A121,1)-2)))","v":0},{"$f":"IF(ISERROR(FIND(AU$3,'CFR - XML import'!$A121)),0,VALUE(MID('CFR - XML import'!$A121,SEARCH(\">\",'CFR - XML import'!$A121,1)+1,SEARCH(\"/\",'CFR - XML import'!$A121,1)-SEARCH(\">\",'CFR - XML import'!$A121,1)-2)))","v":0},{"$f":"IF(ISERROR(FIND(AV$3,'CFR - XML import'!$A121)),0,VALUE(MID('CFR - XML import'!$A121,SEARCH(\">\",'CFR - XML import'!$A121,1)+1,SEARCH(\"/\",'CFR - XML import'!$A121,1)-SEARCH(\">\",'CFR - XML import'!$A121,1)-2)))","v":0},{"$f":"IF(ISERROR(FIND(AW$3,'CFR - XML import'!$A121)),0,VALUE(MID('CFR - XML import'!$A121,SEARCH(\">\",'CFR - XML import'!$A121,1)+1,SEARCH(\"/\",'CFR - XML import'!$A121,1)-SEARCH(\">\",'CFR - XML import'!$A121,1)-2)))","v":0},{"$f":"IF(ISERROR(FIND(AX$3,'CFR - XML import'!$A121)),0,VALUE(MID('CFR - XML import'!$A121,SEARCH(\">\",'CFR - XML import'!$A121,1)+1,SEARCH(\"/\",'CFR - XML import'!$A121,1)-SEARCH(\">\",'CFR - XML import'!$A121,1)-2)))","v":0},{"$f":"IF(ISERROR(FIND(AY$3,'CFR - XML import'!$A121)),0,VALUE(MID('CFR - XML import'!$A121,SEARCH(\">\",'CFR - XML import'!$A121,1)+1,SEARCH(\"/\",'CFR - XML import'!$A121,1)-SEARCH(\">\",'CFR - XML import'!$A121,1)-2)))","v":0},{"$f":"IF(ISERROR(FIND(AZ$3,'CFR - XML import'!$A121)),0,VALUE(MID('CFR - XML import'!$A121,SEARCH(\">\",'CFR - XML import'!$A121,1)+1,SEARCH(\"/\",'CFR - XML import'!$A121,1)-SEARCH(\">\",'CFR - XML import'!$A121,1)-2)))","v":0},{"$f":"IF(ISERROR(FIND(BA$3,'CFR - XML import'!$A121)),0,VALUE(MID('CFR - XML import'!$A121,SEARCH(\">\",'CFR - XML import'!$A121,1)+1,SEARCH(\"/\",'CFR - XML import'!$A121,1)-SEARCH(\">\",'CFR - XML import'!$A121,1)-2)))","v":0},{"$f":"IF(ISERROR(FIND(BB$3,'CFR - XML import'!$A121)),0,VALUE(MID('CFR - XML import'!$A121,SEARCH(\">\",'CFR - XML import'!$A121,1)+1,SEARCH(\"/\",'CFR - XML import'!$A121,1)-SEARCH(\">\",'CFR - XML import'!$A121,1)-2)))","v":0},{"$f":"IF(ISERROR(FIND(BC$3,'CFR - XML import'!$A121)),0,VALUE(MID('CFR - XML import'!$A121,SEARCH(\">\",'CFR - XML import'!$A121,1)+1,SEARCH(\"/\",'CFR - XML import'!$A121,1)-SEARCH(\">\",'CFR - XML import'!$A121,1)-2)))","v":0},{"$f":"IF(ISERROR(FIND(BD$3,'CFR - XML import'!$A121)),0,VALUE(MID('CFR - XML import'!$A121,SEARCH(\">\",'CFR - XML import'!$A121,1)+1,SEARCH(\"/\",'CFR - XML import'!$A121,1)-SEARCH(\">\",'CFR - XML import'!$A121,1)-2)))","v":0},{"$f":"IF(ISERROR(FIND(BE$3,'CFR - XML import'!$A121)),0,VALUE(MID('CFR - XML import'!$A121,SEARCH(\">\",'CFR - XML import'!$A121,1)+1,SEARCH(\"/\",'CFR - XML import'!$A121,1)-SEARCH(\">\",'CFR - XML import'!$A121,1)-2)))","v":0},{"$f":"IF(ISERROR(FIND(BF$3,'CFR - XML import'!$A121)),0,VALUE(MID('CFR - XML import'!$A121,SEARCH(\">\",'CFR - XML import'!$A121,1)+1,SEARCH(\"/\",'CFR - XML import'!$A121,1)-SEARCH(\">\",'CFR - XML import'!$A121,1)-2)))","v":0},{"$f":"IF(ISERROR(FIND(BG$3,'CFR - XML import'!$A121)),0,VALUE(MID('CFR - XML import'!$A121,SEARCH(\">\",'CFR - XML import'!$A121,1)+1,SEARCH(\"/\",'CFR - XML import'!$A121,1)-SEARCH(\">\",'CFR - XML import'!$A121,1)-2)))","v":0},{"$f":"IF(ISERROR(FIND(BH$3,'CFR - XML import'!$A121)),0,VALUE(MID('CFR - XML import'!$A121,SEARCH(\">\",'CFR - XML import'!$A121,1)+1,SEARCH(\"/\",'CFR - XML import'!$A121,1)-SEARCH(\">\",'CFR - XML import'!$A121,1)-2)))","v":0},{"$f":"IF(ISERROR(FIND(BI$3,'CFR - XML import'!$A121)),0,VALUE(MID('CFR - XML import'!$A121,SEARCH(\">\",'CFR - XML import'!$A121,1)+1,SEARCH(\"/\",'CFR - XML import'!$A121,1)-SEARCH(\">\",'CFR - XML import'!$A121,1)-2)))","v":0},{"$f":"IF(ISERROR(FIND(BJ$3,'CFR - XML import'!$A121)),0,VALUE(MID('CFR - XML import'!$A121,SEARCH(\">\",'CFR - XML import'!$A121,1)+1,SEARCH(\"/\",'CFR - XML import'!$A121,1)-SEARCH(\">\",'CFR - XML import'!$A121,1)-2)))","v":0},{"$f":"IF(ISERROR(FIND(BK$3,'CFR - XML import'!$A121)),0,VALUE(MID('CFR - XML import'!$A121,SEARCH(\">\",'CFR - XML import'!$A121,1)+1,SEARCH(\"/\",'CFR - XML import'!$A121,1)-SEARCH(\">\",'CFR - XML import'!$A121,1)-2)))","v":0},{"$f":"IF(ISERROR(FIND(BL$3,'CFR - XML import'!$A121)),0,VALUE(MID('CFR - XML import'!$A121,SEARCH(\">\",'CFR - XML import'!$A121,1)+1,SEARCH(\"/\",'CFR - XML import'!$A121,1)-SEARCH(\">\",'CFR - XML import'!$A121,1)-2)))","v":0},{"$f":"IF(ISERROR(FIND(BM$3,'CFR - XML import'!$A121)),0,VALUE(MID('CFR - XML import'!$A121,SEARCH(\">\",'CFR - XML import'!$A121,1)+1,SEARCH(\"/\",'CFR - XML import'!$A121,1)-SEARCH(\">\",'CFR - XML import'!$A121,1)-2)))","v":0},{"$f":"IF(ISERROR(FIND(BN$3,'CFR - XML import'!$A121)),0,VALUE(MID('CFR - XML import'!$A121,SEARCH(\">\",'CFR - XML import'!$A121,1)+1,SEARCH(\"/\",'CFR - XML import'!$A121,1)-SEARCH(\">\",'CFR - XML import'!$A121,1)-2)))","v":0},{"$f":"IF(ISERROR(FIND(BO$3,'CFR - XML import'!$A121)),0,VALUE(MID('CFR - XML import'!$A121,SEARCH(\">\",'CFR - XML import'!$A121,1)+1,SEARCH(\"/\",'CFR - XML import'!$A121,1)-SEARCH(\">\",'CFR - XML import'!$A121,1)-2)))","v":0},{"$f":"IF(ISERROR(FIND(BP$3,'CFR - XML import'!$A121)),0,VALUE(MID('CFR - XML import'!$A121,SEARCH(\">\",'CFR - XML import'!$A121,1)+1,SEARCH(\"/\",'CFR - XML import'!$A121,1)-SEARCH(\">\",'CFR - XML import'!$A121,1)-2)))","v":0},{"$f":"IF(ISERROR(FIND(BQ$3,'CFR - XML import'!$A121)),0,VALUE(MID('CFR - XML import'!$A121,SEARCH(\">\",'CFR - XML import'!$A121,1)+1,SEARCH(\"/\",'CFR - XML import'!$A121,1)-SEARCH(\">\",'CFR - XML import'!$A121,1)-2)))","v":0},{"$f":"IF(ISERROR(FIND(BR$3,'CFR - XML import'!$A121)),0,VALUE(MID('CFR - XML import'!$A121,SEARCH(\">\",'CFR - XML import'!$A121,1)+1,SEARCH(\"/\",'CFR - XML import'!$A121,1)-SEARCH(\">\",'CFR - XML import'!$A121,1)-2)))","v":0},{"$f":"IF(ISERROR(FIND(BS$3,'CFR - XML import'!$A121)),0,VALUE(MID('CFR - XML import'!$A121,SEARCH(\">\",'CFR - XML import'!$A121,1)+1,SEARCH(\"/\",'CFR - XML import'!$A121,1)-SEARCH(\">\",'CFR - XML import'!$A121,1)-2)))","v":0},{"$f":"IF(ISERROR(FIND(BT$3,'CFR - XML import'!$A121)),0,VALUE(MID('CFR - XML import'!$A121,SEARCH(\">\",'CFR - XML import'!$A121,1)+1,SEARCH(\"/\",'CFR - XML import'!$A121,1)-SEARCH(\">\",'CFR - XML import'!$A121,1)-2)))","v":0},{"$f":"IF(ISERROR(FIND(BU$3,'CFR - XML import'!$A121)),0,VALUE(MID('CFR - XML import'!$A121,SEARCH(\">\",'CFR - XML import'!$A121,1)+1,SEARCH(\"/\",'CFR - XML import'!$A121,1)-SEARCH(\">\",'CFR - XML import'!$A121,1)-2)))","v":0},{"$f":"IF(ISERROR(FIND(BV$3,'CFR - XML import'!$A121)),0,VALUE(MID('CFR - XML import'!$A121,SEARCH(\">\",'CFR - XML import'!$A121,1)+1,SEARCH(\"/\",'CFR - XML import'!$A121,1)-SEARCH(\">\",'CFR - XML import'!$A121,1)-2)))","v":0},{"$f":"IF(ISERROR(FIND(BW$3,'CFR - XML import'!$A121)),0,VALUE(MID('CFR - XML import'!$A121,SEARCH(\">\",'CFR - XML import'!$A121,1)+1,SEARCH(\"/\",'CFR - XML import'!$A121,1)-SEARCH(\">\",'CFR - XML import'!$A121,1)-2)))","v":0},{"$f":"IF(ISERROR(FIND(BX$3,'CFR - XML import'!$A121)),0,VALUE(MID('CFR - XML import'!$A121,SEARCH(\">\",'CFR - XML import'!$A121,1)+1,SEARCH(\"/\",'CFR - XML import'!$A121,1)-SEARCH(\">\",'CFR - XML import'!$A121,1)-2)))","v":0},{"$f":"IF(ISERROR(FIND(BY$3,'CFR - XML import'!$A121)),0,VALUE(MID('CFR - XML import'!$A121,SEARCH(\">\",'CFR - XML import'!$A121,1)+1,SEARCH(\"/\",'CFR - XML import'!$A121,1)-SEARCH(\">\",'CFR - XML import'!$A121,1)-2)))","v":0},{"$f":"IF(ISERROR(FIND(BZ$3,'CFR - XML import'!$A121)),0,VALUE(MID('CFR - XML import'!$A121,SEARCH(\">\",'CFR - XML import'!$A121,1)+1,SEARCH(\"/\",'CFR - XML import'!$A121,1)-SEARCH(\">\",'CFR - XML import'!$A121,1)-2)))","v":0},null,null,null,null,null,null,{"$f":"IF(ISERROR(IF(MID('CFR - XML import'!$A121,LEN($CF$4)+1,LEN('CFR - XML import'!$A121)-(2*LEN($CF$4)+1))=\"RMMS\",1,IF(MID('CFR - XML import'!$A121,LEN(\"    <InputSystem>\")+1,LEN('CFR - XML import'!$A121)-(LEN(\"    <InputSystem>\")+LEN($CF$4)+1))=\"SIMS\",2,0))),0,IF(MID('CFR - XML import'!$A121,LEN($CF$4)+1,LEN('CFR - XML import'!$A121)-(2*LEN($CF$4)+1))=\"RMMS\",1,IF(MID('CFR - XML import'!$A121,LEN(\"    <InputSystem>\")+1,LEN('CFR - XML import'!$A121)-(LEN(\"    <InputSystem>\")+LEN($CF$4)+1))=\"SIMS\",2,0)))","v":0},{"$f":"IF(ISERROR(FIND(CH$3,'CFR - XML import'!$A121)),0,MID('CFR - XML import'!$A121,SEARCH(\">\",'CFR - XML import'!$A121,1)+1,SEARCH(\"/\",'CFR - XML import'!$A121,1)-SEARCH(\">\",'CFR - XML import'!$A121,1)-2))","v":0},{"$f":"IF(ISERROR(FIND(CI$3,'CFR - XML import'!$A121)),0,MID('CFR - XML import'!$A121,SEARCH(\">\",'CFR - XML import'!$A121,1)+1,SEARCH(\"/\",'CFR - XML import'!$A121,1)-SEARCH(\">\",'CFR - XML import'!$A121,1)-2))","v":0},{"$f":"IF(ISERROR(FIND(CJ$3,'CFR - XML import'!$A121)),0,MID('CFR - XML import'!$A121,SEARCH(\">\",'CFR - XML import'!$A121,1)+1,SEARCH(\"/\",'CFR - XML import'!$A121,1)-SEARCH(\">\",'CFR - XML import'!$A121,1)-2))","v":0},{"$f":"IF(ISERROR(FIND(CK$3,'CFR - XML import'!$A121)),0,MID('CFR - XML import'!$A121,SEARCH(\">\",'CFR - XML import'!$A121,1)+1,SEARCH(\"/\",'CFR - XML import'!$A121,1)-SEARCH(\">\",'CFR - XML import'!$A121,1)-2))","v":0},{"$f":"IF(ISERROR(FIND(CL$3,'CFR - XML import'!$A121)),0,MID('CFR - XML import'!$A121,SEARCH(\">\",'CFR - XML import'!$A121,1)+1,SEARCH(\"/\",'CFR - XML import'!$A121,1)-SEARCH(\">\",'CFR - XML import'!$A121,1)-2))","v":0}]
[{"$f":"IF(AND('CFR - XML import'!A122<>\"\",LEFT('CFR - XML import'!A122,1)<>\"<\",LEFT('CFR - XML import'!A122,3)<>\"  <\",LEFT('CFR - XML import'!A122,5)<>\"    <\",LEFT('CFR - XML import'!A122,7)<>\"      <\",LEFT('CFR - XML import'!A122,9)<>\"        <\",$B$1=\"SIMS\"),'CFR - XML import'!A122,IF(AND(LEFT('CFR - XML import'!A122,9)=\"<Details>\",$B$1=\"RM\"),'CFR - XML import'!A122,\"\"))","v":""},{"$f":"IF(ISERROR(FIND(B$3,'CFR - XML import'!$A122)),0,VALUE(MID('CFR - XML import'!$A122,SEARCH(\">\",'CFR - XML import'!$A122,1)+1,SEARCH(\"/\",'CFR - XML import'!$A122,1)-SEARCH(\">\",'CFR - XML import'!$A122,1)-2)))","v":0},null,{"$f":"IF(ISERROR(FIND(D$3,'CFR - XML import'!$A122)),0,MID('CFR - XML import'!$A122,SEARCH(\">\",'CFR - XML import'!$A122,1)+1,SEARCH(\"/\",'CFR - XML import'!$A122,1)-SEARCH(\">\",'CFR - XML import'!$A122,1)-2))","v":0},{"$f":"IF(ISERROR(FIND(E$3,'CFR - XML import'!$A122)),0,MID('CFR - XML import'!$A122,SEARCH(\">\",'CFR - XML import'!$A122,1)+1,SEARCH(\"/\",'CFR - XML import'!$A122,1)-SEARCH(\">\",'CFR - XML import'!$A122,1)-2))","v":0},{"$f":"IF($B$1=\"SIMS\",IF(ISERROR(FIND(F$3,'CFR - XML import'!$A122)),0,VALUE(MID('CFR - XML import'!$A122,15,10))),IF(ISERROR(FIND(F$3,'CFR - XML import'!$A122)),0,VALUE(MID('CFR - XML import'!$A122,11,10))))","v":"00:00:00"},{"$f":"IF(ISERROR(FIND(G$3,'CFR - XML import'!$A122)),0,VALUE(MID('CFR - XML import'!$A122,SEARCH(\">\",'CFR - XML import'!$A122,1)+1,SEARCH(\"/\",'CFR - XML import'!$A122,1)-SEARCH(\">\",'CFR - XML import'!$A122,1)-2)))","v":0},{"$f":"IF(ISERROR(FIND(H$3,'CFR - XML import'!$A122)),0,VALUE(MID('CFR - XML import'!$A122,SEARCH(\">\",'CFR - XML import'!$A122,1)+1,SEARCH(\"/\",'CFR - XML import'!$A122,1)-SEARCH(\">\",'CFR - XML import'!$A122,1)-2)))","v":0},{"$f":"IF(ISERROR(FIND(I$3,'CFR - XML import'!$A122)),0,VALUE(MID('CFR - XML import'!$A122,SEARCH(\">\",'CFR - XML import'!$A122,1)+1,SEARCH(\"/\",'CFR - XML import'!$A122,1)-SEARCH(\">\",'CFR - XML import'!$A122,1)-2)))","v":0},{"$f":"IF(ISERROR(FIND(J$3,'CFR - XML import'!$A122)),0,VALUE(MID('CFR - XML import'!$A122,SEARCH(\">\",'CFR - XML import'!$A122,1)+1,SEARCH(\"/\",'CFR - XML import'!$A122,1)-SEARCH(\">\",'CFR - XML import'!$A122,1)-2)))","v":0},{"$f":"IF(ISERROR(FIND(K$3,'CFR - XML import'!$A122)),0,VALUE(MID('CFR - XML import'!$A122,SEARCH(\">\",'CFR - XML import'!$A122,1)+1,SEARCH(\"/\",'CFR - XML import'!$A122,1)-SEARCH(\">\",'CFR - XML import'!$A122,1)-2)))","v":0},{"$f":"IF(ISERROR(FIND(L$3,'CFR - XML import'!$A122)),0,VALUE(MID('CFR - XML import'!$A122,SEARCH(\">\",'CFR - XML import'!$A122,1)+1,SEARCH(\"/\",'CFR - XML import'!$A122,1)-SEARCH(\">\",'CFR - XML import'!$A122,1)-2)))","v":0},{"$f":"IF(ISERROR(FIND(M$3,'CFR - XML import'!$A122)),0,VALUE(MID('CFR - XML import'!$A122,SEARCH(\">\",'CFR - XML import'!$A122,1)+1,SEARCH(\"/\",'CFR - XML import'!$A122,1)-SEARCH(\">\",'CFR - XML import'!$A122,1)-2)))","v":0},{"$f":"IF(ISERROR(FIND(N$3,'CFR - XML import'!$A122)),0,VALUE(MID('CFR - XML import'!$A122,SEARCH(\">\",'CFR - XML import'!$A122,1)+1,SEARCH(\"/\",'CFR - XML import'!$A122,1)-SEARCH(\">\",'CFR - XML import'!$A122,1)-2)))","v":0},{"$f":"IF(ISERROR(FIND(O$3,'CFR - XML import'!$A122)),0,VALUE(MID('CFR - XML import'!$A122,SEARCH(\">\",'CFR - XML import'!$A122,1)+1,SEARCH(\"/\",'CFR - XML import'!$A122,1)-SEARCH(\">\",'CFR - XML import'!$A122,1)-2)))","v":0},{"$f":"IF(ISERROR(FIND(P$3,'CFR - XML import'!$A122)),0,VALUE(MID('CFR - XML import'!$A122,SEARCH(\">\",'CFR - XML import'!$A122,1)+1,SEARCH(\"/\",'CFR - XML import'!$A122,1)-SEARCH(\">\",'CFR - XML import'!$A122,1)-2)))","v":0},{"$f":"IF(ISERROR(FIND(Q$3,'CFR - XML import'!$A122)),0,VALUE(MID('CFR - XML import'!$A122,SEARCH(\">\",'CFR - XML import'!$A122,1)+1,SEARCH(\"/\",'CFR - XML import'!$A122,1)-SEARCH(\">\",'CFR - XML import'!$A122,1)-2)))","v":0},{"$f":"IF(ISERROR(FIND(R$3,'CFR - XML import'!$A122)),0,VALUE(MID('CFR - XML import'!$A122,SEARCH(\">\",'CFR - XML import'!$A122,1)+1,SEARCH(\"/\",'CFR - XML import'!$A122,1)-SEARCH(\">\",'CFR - XML import'!$A122,1)-2)))","v":0},{"$f":"IF(ISERROR(FIND(S$3,'CFR - XML import'!$A122)),0,VALUE(MID('CFR - XML import'!$A122,SEARCH(\">\",'CFR - XML import'!$A122,1)+1,SEARCH(\"/\",'CFR - XML import'!$A122,1)-SEARCH(\">\",'CFR - XML import'!$A122,1)-2)))","v":0},{"$f":"IF(ISERROR(FIND(T$3,'CFR - XML import'!$A122)),0,VALUE(MID('CFR - XML import'!$A122,SEARCH(\">\",'CFR - XML import'!$A122,1)+1,SEARCH(\"/\",'CFR - XML import'!$A122,1)-SEARCH(\">\",'CFR - XML import'!$A122,1)-2)))","v":0},{"$f":"IF(ISERROR(FIND(U$3,'CFR - XML import'!$A122)),0,VALUE(MID('CFR - XML import'!$A122,SEARCH(\">\",'CFR - XML import'!$A122,1)+1,SEARCH(\"/\",'CFR - XML import'!$A122,1)-SEARCH(\">\",'CFR - XML import'!$A122,1)-2)))","v":0},{"$f":"IF(ISERROR(FIND(V$3,'CFR - XML import'!$A122)),0,VALUE(MID('CFR - XML import'!$A122,SEARCH(\">\",'CFR - XML import'!$A122,1)+1,SEARCH(\"/\",'CFR - XML import'!$A122,1)-SEARCH(\">\",'CFR - XML import'!$A122,1)-2)))","v":0},{"$f":"IF(ISERROR(FIND(W$3,'CFR - XML import'!$A122)),0,VALUE(MID('CFR - XML import'!$A122,SEARCH(\">\",'CFR - XML import'!$A122,1)+1,SEARCH(\"/\",'CFR - XML import'!$A122,1)-SEARCH(\">\",'CFR - XML import'!$A122,1)-2)))","v":0},null,{"$f":"IF(ISERROR(FIND(Y$3,'CFR - XML import'!$A122)),0,VALUE(MID('CFR - XML import'!$A122,SEARCH(\">\",'CFR - XML import'!$A122,1)+1,SEARCH(\"/\",'CFR - XML import'!$A122,1)-SEARCH(\">\",'CFR - XML import'!$A122,1)-2)))","v":0},{"$f":"IF(ISERROR(FIND(Z$3,'CFR - XML import'!$A122)),0,VALUE(MID('CFR - XML import'!$A122,SEARCH(\">\",'CFR - XML import'!$A122,1)+1,SEARCH(\"/\",'CFR - XML import'!$A122,1)-SEARCH(\">\",'CFR - XML import'!$A122,1)-2)))","v":0},{"$f":"IF(ISERROR(FIND(AA$3,'CFR - XML import'!$A122)),0,VALUE(MID('CFR - XML import'!$A122,SEARCH(\">\",'CFR - XML import'!$A122,1)+1,SEARCH(\"/\",'CFR - XML import'!$A122,1)-SEARCH(\">\",'CFR - XML import'!$A122,1)-2)))","v":0},{"$f":"IF(ISERROR(FIND(AB$3,'CFR - XML import'!$A122)),0,VALUE(MID('CFR - XML import'!$A122,SEARCH(\">\",'CFR - XML import'!$A122,1)+1,SEARCH(\"/\",'CFR - XML import'!$A122,1)-SEARCH(\">\",'CFR - XML import'!$A122,1)-2)))","v":0},{"$f":"IF(ISERROR(FIND(AC$3,'CFR - XML import'!$A122)),0,VALUE(MID('CFR - XML import'!$A122,SEARCH(\">\",'CFR - XML import'!$A122,1)+1,SEARCH(\"/\",'CFR - XML import'!$A122,1)-SEARCH(\">\",'CFR - XML import'!$A122,1)-2)))","v":0},{"$f":"IF(ISERROR(FIND(AD$3,'CFR - XML import'!$A122)),0,VALUE(MID('CFR - XML import'!$A122,SEARCH(\">\",'CFR - XML import'!$A122,1)+1,SEARCH(\"/\",'CFR - XML import'!$A122,1)-SEARCH(\">\",'CFR - XML import'!$A122,1)-2)))","v":0},{"$f":"IF(ISERROR(FIND(AE$3,'CFR - XML import'!$A122)),0,VALUE(MID('CFR - XML import'!$A122,SEARCH(\">\",'CFR - XML import'!$A122,1)+1,SEARCH(\"/\",'CFR - XML import'!$A122,1)-SEARCH(\">\",'CFR - XML import'!$A122,1)-2)))","v":0},{"$f":"IF(ISERROR(FIND(AF$3,'CFR - XML import'!$A122)),0,VALUE(MID('CFR - XML import'!$A122,SEARCH(\">\",'CFR - XML import'!$A122,1)+1,SEARCH(\"/\",'CFR - XML import'!$A122,1)-SEARCH(\">\",'CFR - XML import'!$A122,1)-2)))","v":0},{"$f":"IF(ISERROR(FIND(AG$3,'CFR - XML import'!$A122)),0,VALUE(MID('CFR - XML import'!$A122,SEARCH(\">\",'CFR - XML import'!$A122,1)+1,SEARCH(\"/\",'CFR - XML import'!$A122,1)-SEARCH(\">\",'CFR - XML import'!$A122,1)-2)))","v":0},{"$f":"IF(ISERROR(FIND(AH$3,'CFR - XML import'!$A122)),0,VALUE(MID('CFR - XML import'!$A122,SEARCH(\">\",'CFR - XML import'!$A122,1)+1,SEARCH(\"/\",'CFR - XML import'!$A122,1)-SEARCH(\">\",'CFR - XML import'!$A122,1)-2)))","v":0},{"$f":"IF(ISERROR(FIND(AI$3,'CFR - XML import'!$A122)),0,VALUE(MID('CFR - XML import'!$A122,SEARCH(\">\",'CFR - XML import'!$A122,1)+1,SEARCH(\"/\",'CFR - XML import'!$A122,1)-SEARCH(\">\",'CFR - XML import'!$A122,1)-2)))","v":0},{"$f":"IF(ISERROR(FIND(AJ$3,'CFR - XML import'!$A122)),0,VALUE(MID('CFR - XML import'!$A122,SEARCH(\">\",'CFR - XML import'!$A122,1)+1,SEARCH(\"/\",'CFR - XML import'!$A122,1)-SEARCH(\">\",'CFR - XML import'!$A122,1)-2)))","v":0},{"$f":"IF(ISERROR(FIND(AK$3,'CFR - XML import'!$A122)),0,VALUE(MID('CFR - XML import'!$A122,SEARCH(\">\",'CFR - XML import'!$A122,1)+1,SEARCH(\"/\",'CFR - XML import'!$A122,1)-SEARCH(\">\",'CFR - XML import'!$A122,1)-2)))","v":0},{"$f":"IF(ISERROR(FIND(AL$3,'CFR - XML import'!$A122)),0,VALUE(MID('CFR - XML import'!$A122,SEARCH(\">\",'CFR - XML import'!$A122,1)+1,SEARCH(\"/\",'CFR - XML import'!$A122,1)-SEARCH(\">\",'CFR - XML import'!$A122,1)-2)))","v":0},{"$f":"IF(ISERROR(FIND(AM$3,'CFR - XML import'!$A122)),0,VALUE(MID('CFR - XML import'!$A122,SEARCH(\">\",'CFR - XML import'!$A122,1)+1,SEARCH(\"/\",'CFR - XML import'!$A122,1)-SEARCH(\">\",'CFR - XML import'!$A122,1)-2)))","v":0},{"$f":"IF(ISERROR(FIND(AN$3,'CFR - XML import'!$A122)),0,VALUE(MID('CFR - XML import'!$A122,SEARCH(\">\",'CFR - XML import'!$A122,1)+1,SEARCH(\"/\",'CFR - XML import'!$A122,1)-SEARCH(\">\",'CFR - XML import'!$A122,1)-2)))","v":0},{"$f":"IF(ISERROR(FIND(AO$3,'CFR - XML import'!$A122)),0,VALUE(MID('CFR - XML import'!$A122,SEARCH(\">\",'CFR - XML import'!$A122,1)+1,SEARCH(\"/\",'CFR - XML import'!$A122,1)-SEARCH(\">\",'CFR - XML import'!$A122,1)-2)))","v":0},{"$f":"IF(ISERROR(FIND(AP$3,'CFR - XML import'!$A122)),0,VALUE(MID('CFR - XML import'!$A122,SEARCH(\">\",'CFR - XML import'!$A122,1)+1,SEARCH(\"/\",'CFR - XML import'!$A122,1)-SEARCH(\">\",'CFR - XML import'!$A122,1)-2)))","v":0},{"$f":"IF(ISERROR(FIND(AQ$3,'CFR - XML import'!$A122)),0,VALUE(MID('CFR - XML import'!$A122,SEARCH(\">\",'CFR - XML import'!$A122,1)+1,SEARCH(\"/\",'CFR - XML import'!$A122,1)-SEARCH(\">\",'CFR - XML import'!$A122,1)-2)))","v":0},{"$f":"IF(ISERROR(FIND(AR$3,'CFR - XML import'!$A122)),0,VALUE(MID('CFR - XML import'!$A122,SEARCH(\">\",'CFR - XML import'!$A122,1)+1,SEARCH(\"/\",'CFR - XML import'!$A122,1)-SEARCH(\">\",'CFR - XML import'!$A122,1)-2)))","v":0},{"$f":"IF(ISERROR(FIND(AS$3,'CFR - XML import'!$A122)),0,VALUE(MID('CFR - XML import'!$A122,SEARCH(\">\",'CFR - XML import'!$A122,1)+1,SEARCH(\"/\",'CFR - XML import'!$A122,1)-SEARCH(\">\",'CFR - XML import'!$A122,1)-2)))","v":0},{"$f":"IF(ISERROR(FIND(AT$3,'CFR - XML import'!$A122)),0,VALUE(MID('CFR - XML import'!$A122,SEARCH(\">\",'CFR - XML import'!$A122,1)+1,SEARCH(\"/\",'CFR - XML import'!$A122,1)-SEARCH(\">\",'CFR - XML import'!$A122,1)-2)))","v":0},{"$f":"IF(ISERROR(FIND(AU$3,'CFR - XML import'!$A122)),0,VALUE(MID('CFR - XML import'!$A122,SEARCH(\">\",'CFR - XML import'!$A122,1)+1,SEARCH(\"/\",'CFR - XML import'!$A122,1)-SEARCH(\">\",'CFR - XML import'!$A122,1)-2)))","v":0},{"$f":"IF(ISERROR(FIND(AV$3,'CFR - XML import'!$A122)),0,VALUE(MID('CFR - XML import'!$A122,SEARCH(\">\",'CFR - XML import'!$A122,1)+1,SEARCH(\"/\",'CFR - XML import'!$A122,1)-SEARCH(\">\",'CFR - XML import'!$A122,1)-2)))","v":0},{"$f":"IF(ISERROR(FIND(AW$3,'CFR - XML import'!$A122)),0,VALUE(MID('CFR - XML import'!$A122,SEARCH(\">\",'CFR - XML import'!$A122,1)+1,SEARCH(\"/\",'CFR - XML import'!$A122,1)-SEARCH(\">\",'CFR - XML import'!$A122,1)-2)))","v":0},{"$f":"IF(ISERROR(FIND(AX$3,'CFR - XML import'!$A122)),0,VALUE(MID('CFR - XML import'!$A122,SEARCH(\">\",'CFR - XML import'!$A122,1)+1,SEARCH(\"/\",'CFR - XML import'!$A122,1)-SEARCH(\">\",'CFR - XML import'!$A122,1)-2)))","v":0},{"$f":"IF(ISERROR(FIND(AY$3,'CFR - XML import'!$A122)),0,VALUE(MID('CFR - XML import'!$A122,SEARCH(\">\",'CFR - XML import'!$A122,1)+1,SEARCH(\"/\",'CFR - XML import'!$A122,1)-SEARCH(\">\",'CFR - XML import'!$A122,1)-2)))","v":0},{"$f":"IF(ISERROR(FIND(AZ$3,'CFR - XML import'!$A122)),0,VALUE(MID('CFR - XML import'!$A122,SEARCH(\">\",'CFR - XML import'!$A122,1)+1,SEARCH(\"/\",'CFR - XML import'!$A122,1)-SEARCH(\">\",'CFR - XML import'!$A122,1)-2)))","v":0},{"$f":"IF(ISERROR(FIND(BA$3,'CFR - XML import'!$A122)),0,VALUE(MID('CFR - XML import'!$A122,SEARCH(\">\",'CFR - XML import'!$A122,1)+1,SEARCH(\"/\",'CFR - XML import'!$A122,1)-SEARCH(\">\",'CFR - XML import'!$A122,1)-2)))","v":0},{"$f":"IF(ISERROR(FIND(BB$3,'CFR - XML import'!$A122)),0,VALUE(MID('CFR - XML import'!$A122,SEARCH(\">\",'CFR - XML import'!$A122,1)+1,SEARCH(\"/\",'CFR - XML import'!$A122,1)-SEARCH(\">\",'CFR - XML import'!$A122,1)-2)))","v":0},{"$f":"IF(ISERROR(FIND(BC$3,'CFR - XML import'!$A122)),0,VALUE(MID('CFR - XML import'!$A122,SEARCH(\">\",'CFR - XML import'!$A122,1)+1,SEARCH(\"/\",'CFR - XML import'!$A122,1)-SEARCH(\">\",'CFR - XML import'!$A122,1)-2)))","v":0},{"$f":"IF(ISERROR(FIND(BD$3,'CFR - XML import'!$A122)),0,VALUE(MID('CFR - XML import'!$A122,SEARCH(\">\",'CFR - XML import'!$A122,1)+1,SEARCH(\"/\",'CFR - XML import'!$A122,1)-SEARCH(\">\",'CFR - XML import'!$A122,1)-2)))","v":0},{"$f":"IF(ISERROR(FIND(BE$3,'CFR - XML import'!$A122)),0,VALUE(MID('CFR - XML import'!$A122,SEARCH(\">\",'CFR - XML import'!$A122,1)+1,SEARCH(\"/\",'CFR - XML import'!$A122,1)-SEARCH(\">\",'CFR - XML import'!$A122,1)-2)))","v":0},{"$f":"IF(ISERROR(FIND(BF$3,'CFR - XML import'!$A122)),0,VALUE(MID('CFR - XML import'!$A122,SEARCH(\">\",'CFR - XML import'!$A122,1)+1,SEARCH(\"/\",'CFR - XML import'!$A122,1)-SEARCH(\">\",'CFR - XML import'!$A122,1)-2)))","v":0},{"$f":"IF(ISERROR(FIND(BG$3,'CFR - XML import'!$A122)),0,VALUE(MID('CFR - XML import'!$A122,SEARCH(\">\",'CFR - XML import'!$A122,1)+1,SEARCH(\"/\",'CFR - XML import'!$A122,1)-SEARCH(\">\",'CFR - XML import'!$A122,1)-2)))","v":0},{"$f":"IF(ISERROR(FIND(BH$3,'CFR - XML import'!$A122)),0,VALUE(MID('CFR - XML import'!$A122,SEARCH(\">\",'CFR - XML import'!$A122,1)+1,SEARCH(\"/\",'CFR - XML import'!$A122,1)-SEARCH(\">\",'CFR - XML import'!$A122,1)-2)))","v":0},{"$f":"IF(ISERROR(FIND(BI$3,'CFR - XML import'!$A122)),0,VALUE(MID('CFR - XML import'!$A122,SEARCH(\">\",'CFR - XML import'!$A122,1)+1,SEARCH(\"/\",'CFR - XML import'!$A122,1)-SEARCH(\">\",'CFR - XML import'!$A122,1)-2)))","v":0},{"$f":"IF(ISERROR(FIND(BJ$3,'CFR - XML import'!$A122)),0,VALUE(MID('CFR - XML import'!$A122,SEARCH(\">\",'CFR - XML import'!$A122,1)+1,SEARCH(\"/\",'CFR - XML import'!$A122,1)-SEARCH(\">\",'CFR - XML import'!$A122,1)-2)))","v":0},{"$f":"IF(ISERROR(FIND(BK$3,'CFR - XML import'!$A122)),0,VALUE(MID('CFR - XML import'!$A122,SEARCH(\">\",'CFR - XML import'!$A122,1)+1,SEARCH(\"/\",'CFR - XML import'!$A122,1)-SEARCH(\">\",'CFR - XML import'!$A122,1)-2)))","v":0},{"$f":"IF(ISERROR(FIND(BL$3,'CFR - XML import'!$A122)),0,VALUE(MID('CFR - XML import'!$A122,SEARCH(\">\",'CFR - XML import'!$A122,1)+1,SEARCH(\"/\",'CFR - XML import'!$A122,1)-SEARCH(\">\",'CFR - XML import'!$A122,1)-2)))","v":0},{"$f":"IF(ISERROR(FIND(BM$3,'CFR - XML import'!$A122)),0,VALUE(MID('CFR - XML import'!$A122,SEARCH(\">\",'CFR - XML import'!$A122,1)+1,SEARCH(\"/\",'CFR - XML import'!$A122,1)-SEARCH(\">\",'CFR - XML import'!$A122,1)-2)))","v":0},{"$f":"IF(ISERROR(FIND(BN$3,'CFR - XML import'!$A122)),0,VALUE(MID('CFR - XML import'!$A122,SEARCH(\">\",'CFR - XML import'!$A122,1)+1,SEARCH(\"/\",'CFR - XML import'!$A122,1)-SEARCH(\">\",'CFR - XML import'!$A122,1)-2)))","v":0},{"$f":"IF(ISERROR(FIND(BO$3,'CFR - XML import'!$A122)),0,VALUE(MID('CFR - XML import'!$A122,SEARCH(\">\",'CFR - XML import'!$A122,1)+1,SEARCH(\"/\",'CFR - XML import'!$A122,1)-SEARCH(\">\",'CFR - XML import'!$A122,1)-2)))","v":0},{"$f":"IF(ISERROR(FIND(BP$3,'CFR - XML import'!$A122)),0,VALUE(MID('CFR - XML import'!$A122,SEARCH(\">\",'CFR - XML import'!$A122,1)+1,SEARCH(\"/\",'CFR - XML import'!$A122,1)-SEARCH(\">\",'CFR - XML import'!$A122,1)-2)))","v":0},{"$f":"IF(ISERROR(FIND(BQ$3,'CFR - XML import'!$A122)),0,VALUE(MID('CFR - XML import'!$A122,SEARCH(\">\",'CFR - XML import'!$A122,1)+1,SEARCH(\"/\",'CFR - XML import'!$A122,1)-SEARCH(\">\",'CFR - XML import'!$A122,1)-2)))","v":0},{"$f":"IF(ISERROR(FIND(BR$3,'CFR - XML import'!$A122)),0,VALUE(MID('CFR - XML import'!$A122,SEARCH(\">\",'CFR - XML import'!$A122,1)+1,SEARCH(\"/\",'CFR - XML import'!$A122,1)-SEARCH(\">\",'CFR - XML import'!$A122,1)-2)))","v":0},{"$f":"IF(ISERROR(FIND(BS$3,'CFR - XML import'!$A122)),0,VALUE(MID('CFR - XML import'!$A122,SEARCH(\">\",'CFR - XML import'!$A122,1)+1,SEARCH(\"/\",'CFR - XML import'!$A122,1)-SEARCH(\">\",'CFR - XML import'!$A122,1)-2)))","v":0},{"$f":"IF(ISERROR(FIND(BT$3,'CFR - XML import'!$A122)),0,VALUE(MID('CFR - XML import'!$A122,SEARCH(\">\",'CFR - XML import'!$A122,1)+1,SEARCH(\"/\",'CFR - XML import'!$A122,1)-SEARCH(\">\",'CFR - XML import'!$A122,1)-2)))","v":0},{"$f":"IF(ISERROR(FIND(BU$3,'CFR - XML import'!$A122)),0,VALUE(MID('CFR - XML import'!$A122,SEARCH(\">\",'CFR - XML import'!$A122,1)+1,SEARCH(\"/\",'CFR - XML import'!$A122,1)-SEARCH(\">\",'CFR - XML import'!$A122,1)-2)))","v":0},{"$f":"IF(ISERROR(FIND(BV$3,'CFR - XML import'!$A122)),0,VALUE(MID('CFR - XML import'!$A122,SEARCH(\">\",'CFR - XML import'!$A122,1)+1,SEARCH(\"/\",'CFR - XML import'!$A122,1)-SEARCH(\">\",'CFR - XML import'!$A122,1)-2)))","v":0},{"$f":"IF(ISERROR(FIND(BW$3,'CFR - XML import'!$A122)),0,VALUE(MID('CFR - XML import'!$A122,SEARCH(\">\",'CFR - XML import'!$A122,1)+1,SEARCH(\"/\",'CFR - XML import'!$A122,1)-SEARCH(\">\",'CFR - XML import'!$A122,1)-2)))","v":0},{"$f":"IF(ISERROR(FIND(BX$3,'CFR - XML import'!$A122)),0,VALUE(MID('CFR - XML import'!$A122,SEARCH(\">\",'CFR - XML import'!$A122,1)+1,SEARCH(\"/\",'CFR - XML import'!$A122,1)-SEARCH(\">\",'CFR - XML import'!$A122,1)-2)))","v":0},{"$f":"IF(ISERROR(FIND(BY$3,'CFR - XML import'!$A122)),0,VALUE(MID('CFR - XML import'!$A122,SEARCH(\">\",'CFR - XML import'!$A122,1)+1,SEARCH(\"/\",'CFR - XML import'!$A122,1)-SEARCH(\">\",'CFR - XML import'!$A122,1)-2)))","v":0},{"$f":"IF(ISERROR(FIND(BZ$3,'CFR - XML import'!$A122)),0,VALUE(MID('CFR - XML import'!$A122,SEARCH(\">\",'CFR - XML import'!$A122,1)+1,SEARCH(\"/\",'CFR - XML import'!$A122,1)-SEARCH(\">\",'CFR - XML import'!$A122,1)-2)))","v":0},null,null,null,null,null,null,{"$f":"IF(ISERROR(IF(MID('CFR - XML import'!$A122,LEN($CF$4)+1,LEN('CFR - XML import'!$A122)-(2*LEN($CF$4)+1))=\"RMMS\",1,IF(MID('CFR - XML import'!$A122,LEN(\"    <InputSystem>\")+1,LEN('CFR - XML import'!$A122)-(LEN(\"    <InputSystem>\")+LEN($CF$4)+1))=\"SIMS\",2,0))),0,IF(MID('CFR - XML import'!$A122,LEN($CF$4)+1,LEN('CFR - XML import'!$A122)-(2*LEN($CF$4)+1))=\"RMMS\",1,IF(MID('CFR - XML import'!$A122,LEN(\"    <InputSystem>\")+1,LEN('CFR - XML import'!$A122)-(LEN(\"    <InputSystem>\")+LEN($CF$4)+1))=\"SIMS\",2,0)))","v":0},{"$f":"IF(ISERROR(FIND(CH$3,'CFR - XML import'!$A122)),0,MID('CFR - XML import'!$A122,SEARCH(\">\",'CFR - XML import'!$A122,1)+1,SEARCH(\"/\",'CFR - XML import'!$A122,1)-SEARCH(\">\",'CFR - XML import'!$A122,1)-2))","v":0},{"$f":"IF(ISERROR(FIND(CI$3,'CFR - XML import'!$A122)),0,MID('CFR - XML import'!$A122,SEARCH(\">\",'CFR - XML import'!$A122,1)+1,SEARCH(\"/\",'CFR - XML import'!$A122,1)-SEARCH(\">\",'CFR - XML import'!$A122,1)-2))","v":0},{"$f":"IF(ISERROR(FIND(CJ$3,'CFR - XML import'!$A122)),0,MID('CFR - XML import'!$A122,SEARCH(\">\",'CFR - XML import'!$A122,1)+1,SEARCH(\"/\",'CFR - XML import'!$A122,1)-SEARCH(\">\",'CFR - XML import'!$A122,1)-2))","v":0},{"$f":"IF(ISERROR(FIND(CK$3,'CFR - XML import'!$A122)),0,MID('CFR - XML import'!$A122,SEARCH(\">\",'CFR - XML import'!$A122,1)+1,SEARCH(\"/\",'CFR - XML import'!$A122,1)-SEARCH(\">\",'CFR - XML import'!$A122,1)-2))","v":0},{"$f":"IF(ISERROR(FIND(CL$3,'CFR - XML import'!$A122)),0,MID('CFR - XML import'!$A122,SEARCH(\">\",'CFR - XML import'!$A122,1)+1,SEARCH(\"/\",'CFR - XML import'!$A122,1)-SEARCH(\">\",'CFR - XML import'!$A122,1)-2))","v":0}]
[{"$f":"IF(AND('CFR - XML import'!A123<>\"\",LEFT('CFR - XML import'!A123,1)<>\"<\",LEFT('CFR - XML import'!A123,3)<>\"  <\",LEFT('CFR - XML import'!A123,5)<>\"    <\",LEFT('CFR - XML import'!A123,7)<>\"      <\",LEFT('CFR - XML import'!A123,9)<>\"        <\",$B$1=\"SIMS\"),'CFR - XML import'!A123,IF(AND(LEFT('CFR - XML import'!A123,9)=\"<Details>\",$B$1=\"RM\"),'CFR - XML import'!A123,\"\"))","v":""},{"$f":"IF(ISERROR(FIND(B$3,'CFR - XML import'!$A123)),0,VALUE(MID('CFR - XML import'!$A123,SEARCH(\">\",'CFR - XML import'!$A123,1)+1,SEARCH(\"/\",'CFR - XML import'!$A123,1)-SEARCH(\">\",'CFR - XML import'!$A123,1)-2)))","v":0},null,{"$f":"IF(ISERROR(FIND(D$3,'CFR - XML import'!$A123)),0,MID('CFR - XML import'!$A123,SEARCH(\">\",'CFR - XML import'!$A123,1)+1,SEARCH(\"/\",'CFR - XML import'!$A123,1)-SEARCH(\">\",'CFR - XML import'!$A123,1)-2))","v":0},{"$f":"IF(ISERROR(FIND(E$3,'CFR - XML import'!$A123)),0,MID('CFR - XML import'!$A123,SEARCH(\">\",'CFR - XML import'!$A123,1)+1,SEARCH(\"/\",'CFR - XML import'!$A123,1)-SEARCH(\">\",'CFR - XML import'!$A123,1)-2))","v":0},{"$f":"IF($B$1=\"SIMS\",IF(ISERROR(FIND(F$3,'CFR - XML import'!$A123)),0,VALUE(MID('CFR - XML import'!$A123,15,10))),IF(ISERROR(FIND(F$3,'CFR - XML import'!$A123)),0,VALUE(MID('CFR - XML import'!$A123,11,10))))","v":"00:00:00"},{"$f":"IF(ISERROR(FIND(G$3,'CFR - XML import'!$A123)),0,VALUE(MID('CFR - XML import'!$A123,SEARCH(\">\",'CFR - XML import'!$A123,1)+1,SEARCH(\"/\",'CFR - XML import'!$A123,1)-SEARCH(\">\",'CFR - XML import'!$A123,1)-2)))","v":0},{"$f":"IF(ISERROR(FIND(H$3,'CFR - XML import'!$A123)),0,VALUE(MID('CFR - XML import'!$A123,SEARCH(\">\",'CFR - XML import'!$A123,1)+1,SEARCH(\"/\",'CFR - XML import'!$A123,1)-SEARCH(\">\",'CFR - XML import'!$A123,1)-2)))","v":0},{"$f":"IF(ISERROR(FIND(I$3,'CFR - XML import'!$A123)),0,VALUE(MID('CFR - XML import'!$A123,SEARCH(\">\",'CFR - XML import'!$A123,1)+1,SEARCH(\"/\",'CFR - XML import'!$A123,1)-SEARCH(\">\",'CFR - XML import'!$A123,1)-2)))","v":0},{"$f":"IF(ISERROR(FIND(J$3,'CFR - XML import'!$A123)),0,VALUE(MID('CFR - XML import'!$A123,SEARCH(\">\",'CFR - XML import'!$A123,1)+1,SEARCH(\"/\",'CFR - XML import'!$A123,1)-SEARCH(\">\",'CFR - XML import'!$A123,1)-2)))","v":0},{"$f":"IF(ISERROR(FIND(K$3,'CFR - XML import'!$A123)),0,VALUE(MID('CFR - XML import'!$A123,SEARCH(\">\",'CFR - XML import'!$A123,1)+1,SEARCH(\"/\",'CFR - XML import'!$A123,1)-SEARCH(\">\",'CFR - XML import'!$A123,1)-2)))","v":0},{"$f":"IF(ISERROR(FIND(L$3,'CFR - XML import'!$A123)),0,VALUE(MID('CFR - XML import'!$A123,SEARCH(\">\",'CFR - XML import'!$A123,1)+1,SEARCH(\"/\",'CFR - XML import'!$A123,1)-SEARCH(\">\",'CFR - XML import'!$A123,1)-2)))","v":0},{"$f":"IF(ISERROR(FIND(M$3,'CFR - XML import'!$A123)),0,VALUE(MID('CFR - XML import'!$A123,SEARCH(\">\",'CFR - XML import'!$A123,1)+1,SEARCH(\"/\",'CFR - XML import'!$A123,1)-SEARCH(\">\",'CFR - XML import'!$A123,1)-2)))","v":0},{"$f":"IF(ISERROR(FIND(N$3,'CFR - XML import'!$A123)),0,VALUE(MID('CFR - XML import'!$A123,SEARCH(\">\",'CFR - XML import'!$A123,1)+1,SEARCH(\"/\",'CFR - XML import'!$A123,1)-SEARCH(\">\",'CFR - XML import'!$A123,1)-2)))","v":0},{"$f":"IF(ISERROR(FIND(O$3,'CFR - XML import'!$A123)),0,VALUE(MID('CFR - XML import'!$A123,SEARCH(\">\",'CFR - XML import'!$A123,1)+1,SEARCH(\"/\",'CFR - XML import'!$A123,1)-SEARCH(\">\",'CFR - XML import'!$A123,1)-2)))","v":0},{"$f":"IF(ISERROR(FIND(P$3,'CFR - XML import'!$A123)),0,VALUE(MID('CFR - XML import'!$A123,SEARCH(\">\",'CFR - XML import'!$A123,1)+1,SEARCH(\"/\",'CFR - XML import'!$A123,1)-SEARCH(\">\",'CFR - XML import'!$A123,1)-2)))","v":0},{"$f":"IF(ISERROR(FIND(Q$3,'CFR - XML import'!$A123)),0,VALUE(MID('CFR - XML import'!$A123,SEARCH(\">\",'CFR - XML import'!$A123,1)+1,SEARCH(\"/\",'CFR - XML import'!$A123,1)-SEARCH(\">\",'CFR - XML import'!$A123,1)-2)))","v":0},{"$f":"IF(ISERROR(FIND(R$3,'CFR - XML import'!$A123)),0,VALUE(MID('CFR - XML import'!$A123,SEARCH(\">\",'CFR - XML import'!$A123,1)+1,SEARCH(\"/\",'CFR - XML import'!$A123,1)-SEARCH(\">\",'CFR - XML import'!$A123,1)-2)))","v":0},{"$f":"IF(ISERROR(FIND(S$3,'CFR - XML import'!$A123)),0,VALUE(MID('CFR - XML import'!$A123,SEARCH(\">\",'CFR - XML import'!$A123,1)+1,SEARCH(\"/\",'CFR - XML import'!$A123,1)-SEARCH(\">\",'CFR - XML import'!$A123,1)-2)))","v":0},{"$f":"IF(ISERROR(FIND(T$3,'CFR - XML import'!$A123)),0,VALUE(MID('CFR - XML import'!$A123,SEARCH(\">\",'CFR - XML import'!$A123,1)+1,SEARCH(\"/\",'CFR - XML import'!$A123,1)-SEARCH(\">\",'CFR - XML import'!$A123,1)-2)))","v":0},{"$f":"IF(ISERROR(FIND(U$3,'CFR - XML import'!$A123)),0,VALUE(MID('CFR - XML import'!$A123,SEARCH(\">\",'CFR - XML import'!$A123,1)+1,SEARCH(\"/\",'CFR - XML import'!$A123,1)-SEARCH(\">\",'CFR - XML import'!$A123,1)-2)))","v":0},{"$f":"IF(ISERROR(FIND(V$3,'CFR - XML import'!$A123)),0,VALUE(MID('CFR - XML import'!$A123,SEARCH(\">\",'CFR - XML import'!$A123,1)+1,SEARCH(\"/\",'CFR - XML import'!$A123,1)-SEARCH(\">\",'CFR - XML import'!$A123,1)-2)))","v":0},{"$f":"IF(ISERROR(FIND(W$3,'CFR - XML import'!$A123)),0,VALUE(MID('CFR - XML import'!$A123,SEARCH(\">\",'CFR - XML import'!$A123,1)+1,SEARCH(\"/\",'CFR - XML import'!$A123,1)-SEARCH(\">\",'CFR - XML import'!$A123,1)-2)))","v":0},null,{"$f":"IF(ISERROR(FIND(Y$3,'CFR - XML import'!$A123)),0,VALUE(MID('CFR - XML import'!$A123,SEARCH(\">\",'CFR - XML import'!$A123,1)+1,SEARCH(\"/\",'CFR - XML import'!$A123,1)-SEARCH(\">\",'CFR - XML import'!$A123,1)-2)))","v":0},{"$f":"IF(ISERROR(FIND(Z$3,'CFR - XML import'!$A123)),0,VALUE(MID('CFR - XML import'!$A123,SEARCH(\">\",'CFR - XML import'!$A123,1)+1,SEARCH(\"/\",'CFR - XML import'!$A123,1)-SEARCH(\">\",'CFR - XML import'!$A123,1)-2)))","v":0},{"$f":"IF(ISERROR(FIND(AA$3,'CFR - XML import'!$A123)),0,VALUE(MID('CFR - XML import'!$A123,SEARCH(\">\",'CFR - XML import'!$A123,1)+1,SEARCH(\"/\",'CFR - XML import'!$A123,1)-SEARCH(\">\",'CFR - XML import'!$A123,1)-2)))","v":0},{"$f":"IF(ISERROR(FIND(AB$3,'CFR - XML import'!$A123)),0,VALUE(MID('CFR - XML import'!$A123,SEARCH(\">\",'CFR - XML import'!$A123,1)+1,SEARCH(\"/\",'CFR - XML import'!$A123,1)-SEARCH(\">\",'CFR - XML import'!$A123,1)-2)))","v":0},{"$f":"IF(ISERROR(FIND(AC$3,'CFR - XML import'!$A123)),0,VALUE(MID('CFR - XML import'!$A123,SEARCH(\">\",'CFR - XML import'!$A123,1)+1,SEARCH(\"/\",'CFR - XML import'!$A123,1)-SEARCH(\">\",'CFR - XML import'!$A123,1)-2)))","v":0},{"$f":"IF(ISERROR(FIND(AD$3,'CFR - XML import'!$A123)),0,VALUE(MID('CFR - XML import'!$A123,SEARCH(\">\",'CFR - XML import'!$A123,1)+1,SEARCH(\"/\",'CFR - XML import'!$A123,1)-SEARCH(\">\",'CFR - XML import'!$A123,1)-2)))","v":0},{"$f":"IF(ISERROR(FIND(AE$3,'CFR - XML import'!$A123)),0,VALUE(MID('CFR - XML import'!$A123,SEARCH(\">\",'CFR - XML import'!$A123,1)+1,SEARCH(\"/\",'CFR - XML import'!$A123,1)-SEARCH(\">\",'CFR - XML import'!$A123,1)-2)))","v":0},{"$f":"IF(ISERROR(FIND(AF$3,'CFR - XML import'!$A123)),0,VALUE(MID('CFR - XML import'!$A123,SEARCH(\">\",'CFR - XML import'!$A123,1)+1,SEARCH(\"/\",'CFR - XML import'!$A123,1)-SEARCH(\">\",'CFR - XML import'!$A123,1)-2)))","v":0},{"$f":"IF(ISERROR(FIND(AG$3,'CFR - XML import'!$A123)),0,VALUE(MID('CFR - XML import'!$A123,SEARCH(\">\",'CFR - XML import'!$A123,1)+1,SEARCH(\"/\",'CFR - XML import'!$A123,1)-SEARCH(\">\",'CFR - XML import'!$A123,1)-2)))","v":0},{"$f":"IF(ISERROR(FIND(AH$3,'CFR - XML import'!$A123)),0,VALUE(MID('CFR - XML import'!$A123,SEARCH(\">\",'CFR - XML import'!$A123,1)+1,SEARCH(\"/\",'CFR - XML import'!$A123,1)-SEARCH(\">\",'CFR - XML import'!$A123,1)-2)))","v":0},{"$f":"IF(ISERROR(FIND(AI$3,'CFR - XML import'!$A123)),0,VALUE(MID('CFR - XML import'!$A123,SEARCH(\">\",'CFR - XML import'!$A123,1)+1,SEARCH(\"/\",'CFR - XML import'!$A123,1)-SEARCH(\">\",'CFR - XML import'!$A123,1)-2)))","v":0},{"$f":"IF(ISERROR(FIND(AJ$3,'CFR - XML import'!$A123)),0,VALUE(MID('CFR - XML import'!$A123,SEARCH(\">\",'CFR - XML import'!$A123,1)+1,SEARCH(\"/\",'CFR - XML import'!$A123,1)-SEARCH(\">\",'CFR - XML import'!$A123,1)-2)))","v":0},{"$f":"IF(ISERROR(FIND(AK$3,'CFR - XML import'!$A123)),0,VALUE(MID('CFR - XML import'!$A123,SEARCH(\">\",'CFR - XML import'!$A123,1)+1,SEARCH(\"/\",'CFR - XML import'!$A123,1)-SEARCH(\">\",'CFR - XML import'!$A123,1)-2)))","v":0},{"$f":"IF(ISERROR(FIND(AL$3,'CFR - XML import'!$A123)),0,VALUE(MID('CFR - XML import'!$A123,SEARCH(\">\",'CFR - XML import'!$A123,1)+1,SEARCH(\"/\",'CFR - XML import'!$A123,1)-SEARCH(\">\",'CFR - XML import'!$A123,1)-2)))","v":0},{"$f":"IF(ISERROR(FIND(AM$3,'CFR - XML import'!$A123)),0,VALUE(MID('CFR - XML import'!$A123,SEARCH(\">\",'CFR - XML import'!$A123,1)+1,SEARCH(\"/\",'CFR - XML import'!$A123,1)-SEARCH(\">\",'CFR - XML import'!$A123,1)-2)))","v":0},{"$f":"IF(ISERROR(FIND(AN$3,'CFR - XML import'!$A123)),0,VALUE(MID('CFR - XML import'!$A123,SEARCH(\">\",'CFR - XML import'!$A123,1)+1,SEARCH(\"/\",'CFR - XML import'!$A123,1)-SEARCH(\">\",'CFR - XML import'!$A123,1)-2)))","v":0},{"$f":"IF(ISERROR(FIND(AO$3,'CFR - XML import'!$A123)),0,VALUE(MID('CFR - XML import'!$A123,SEARCH(\">\",'CFR - XML import'!$A123,1)+1,SEARCH(\"/\",'CFR - XML import'!$A123,1)-SEARCH(\">\",'CFR - XML import'!$A123,1)-2)))","v":0},{"$f":"IF(ISERROR(FIND(AP$3,'CFR - XML import'!$A123)),0,VALUE(MID('CFR - XML import'!$A123,SEARCH(\">\",'CFR - XML import'!$A123,1)+1,SEARCH(\"/\",'CFR - XML import'!$A123,1)-SEARCH(\">\",'CFR - XML import'!$A123,1)-2)))","v":0},{"$f":"IF(ISERROR(FIND(AQ$3,'CFR - XML import'!$A123)),0,VALUE(MID('CFR - XML import'!$A123,SEARCH(\">\",'CFR - XML import'!$A123,1)+1,SEARCH(\"/\",'CFR - XML import'!$A123,1)-SEARCH(\">\",'CFR - XML import'!$A123,1)-2)))","v":0},{"$f":"IF(ISERROR(FIND(AR$3,'CFR - XML import'!$A123)),0,VALUE(MID('CFR - XML import'!$A123,SEARCH(\">\",'CFR - XML import'!$A123,1)+1,SEARCH(\"/\",'CFR - XML import'!$A123,1)-SEARCH(\">\",'CFR - XML import'!$A123,1)-2)))","v":0},{"$f":"IF(ISERROR(FIND(AS$3,'CFR - XML import'!$A123)),0,VALUE(MID('CFR - XML import'!$A123,SEARCH(\">\",'CFR - XML import'!$A123,1)+1,SEARCH(\"/\",'CFR - XML import'!$A123,1)-SEARCH(\">\",'CFR - XML import'!$A123,1)-2)))","v":0},{"$f":"IF(ISERROR(FIND(AT$3,'CFR - XML import'!$A123)),0,VALUE(MID('CFR - XML import'!$A123,SEARCH(\">\",'CFR - XML import'!$A123,1)+1,SEARCH(\"/\",'CFR - XML import'!$A123,1)-SEARCH(\">\",'CFR - XML import'!$A123,1)-2)))","v":0},{"$f":"IF(ISERROR(FIND(AU$3,'CFR - XML import'!$A123)),0,VALUE(MID('CFR - XML import'!$A123,SEARCH(\">\",'CFR - XML import'!$A123,1)+1,SEARCH(\"/\",'CFR - XML import'!$A123,1)-SEARCH(\">\",'CFR - XML import'!$A123,1)-2)))","v":0},{"$f":"IF(ISERROR(FIND(AV$3,'CFR - XML import'!$A123)),0,VALUE(MID('CFR - XML import'!$A123,SEARCH(\">\",'CFR - XML import'!$A123,1)+1,SEARCH(\"/\",'CFR - XML import'!$A123,1)-SEARCH(\">\",'CFR - XML import'!$A123,1)-2)))","v":0},{"$f":"IF(ISERROR(FIND(AW$3,'CFR - XML import'!$A123)),0,VALUE(MID('CFR - XML import'!$A123,SEARCH(\">\",'CFR - XML import'!$A123,1)+1,SEARCH(\"/\",'CFR - XML import'!$A123,1)-SEARCH(\">\",'CFR - XML import'!$A123,1)-2)))","v":0},{"$f":"IF(ISERROR(FIND(AX$3,'CFR - XML import'!$A123)),0,VALUE(MID('CFR - XML import'!$A123,SEARCH(\">\",'CFR - XML import'!$A123,1)+1,SEARCH(\"/\",'CFR - XML import'!$A123,1)-SEARCH(\">\",'CFR - XML import'!$A123,1)-2)))","v":0},{"$f":"IF(ISERROR(FIND(AY$3,'CFR - XML import'!$A123)),0,VALUE(MID('CFR - XML import'!$A123,SEARCH(\">\",'CFR - XML import'!$A123,1)+1,SEARCH(\"/\",'CFR - XML import'!$A123,1)-SEARCH(\">\",'CFR - XML import'!$A123,1)-2)))","v":0},{"$f":"IF(ISERROR(FIND(AZ$3,'CFR - XML import'!$A123)),0,VALUE(MID('CFR - XML import'!$A123,SEARCH(\">\",'CFR - XML import'!$A123,1)+1,SEARCH(\"/\",'CFR - XML import'!$A123,1)-SEARCH(\">\",'CFR - XML import'!$A123,1)-2)))","v":0},{"$f":"IF(ISERROR(FIND(BA$3,'CFR - XML import'!$A123)),0,VALUE(MID('CFR - XML import'!$A123,SEARCH(\">\",'CFR - XML import'!$A123,1)+1,SEARCH(\"/\",'CFR - XML import'!$A123,1)-SEARCH(\">\",'CFR - XML import'!$A123,1)-2)))","v":0},{"$f":"IF(ISERROR(FIND(BB$3,'CFR - XML import'!$A123)),0,VALUE(MID('CFR - XML import'!$A123,SEARCH(\">\",'CFR - XML import'!$A123,1)+1,SEARCH(\"/\",'CFR - XML import'!$A123,1)-SEARCH(\">\",'CFR - XML import'!$A123,1)-2)))","v":0},{"$f":"IF(ISERROR(FIND(BC$3,'CFR - XML import'!$A123)),0,VALUE(MID('CFR - XML import'!$A123,SEARCH(\">\",'CFR - XML import'!$A123,1)+1,SEARCH(\"/\",'CFR - XML import'!$A123,1)-SEARCH(\">\",'CFR - XML import'!$A123,1)-2)))","v":0},{"$f":"IF(ISERROR(FIND(BD$3,'CFR - XML import'!$A123)),0,VALUE(MID('CFR - XML import'!$A123,SEARCH(\">\",'CFR - XML import'!$A123,1)+1,SEARCH(\"/\",'CFR - XML import'!$A123,1)-SEARCH(\">\",'CFR - XML import'!$A123,1)-2)))","v":0},{"$f":"IF(ISERROR(FIND(BE$3,'CFR - XML import'!$A123)),0,VALUE(MID('CFR - XML import'!$A123,SEARCH(\">\",'CFR - XML import'!$A123,1)+1,SEARCH(\"/\",'CFR - XML import'!$A123,1)-SEARCH(\">\",'CFR - XML import'!$A123,1)-2)))","v":0},{"$f":"IF(ISERROR(FIND(BF$3,'CFR - XML import'!$A123)),0,VALUE(MID('CFR - XML import'!$A123,SEARCH(\">\",'CFR - XML import'!$A123,1)+1,SEARCH(\"/\",'CFR - XML import'!$A123,1)-SEARCH(\">\",'CFR - XML import'!$A123,1)-2)))","v":0},{"$f":"IF(ISERROR(FIND(BG$3,'CFR - XML import'!$A123)),0,VALUE(MID('CFR - XML import'!$A123,SEARCH(\">\",'CFR - XML import'!$A123,1)+1,SEARCH(\"/\",'CFR - XML import'!$A123,1)-SEARCH(\">\",'CFR - XML import'!$A123,1)-2)))","v":0},{"$f":"IF(ISERROR(FIND(BH$3,'CFR - XML import'!$A123)),0,VALUE(MID('CFR - XML import'!$A123,SEARCH(\">\",'CFR - XML import'!$A123,1)+1,SEARCH(\"/\",'CFR - XML import'!$A123,1)-SEARCH(\">\",'CFR - XML import'!$A123,1)-2)))","v":0},{"$f":"IF(ISERROR(FIND(BI$3,'CFR - XML import'!$A123)),0,VALUE(MID('CFR - XML import'!$A123,SEARCH(\">\",'CFR - XML import'!$A123,1)+1,SEARCH(\"/\",'CFR - XML import'!$A123,1)-SEARCH(\">\",'CFR - XML import'!$A123,1)-2)))","v":0},{"$f":"IF(ISERROR(FIND(BJ$3,'CFR - XML import'!$A123)),0,VALUE(MID('CFR - XML import'!$A123,SEARCH(\">\",'CFR - XML import'!$A123,1)+1,SEARCH(\"/\",'CFR - XML import'!$A123,1)-SEARCH(\">\",'CFR - XML import'!$A123,1)-2)))","v":0},{"$f":"IF(ISERROR(FIND(BK$3,'CFR - XML import'!$A123)),0,VALUE(MID('CFR - XML import'!$A123,SEARCH(\">\",'CFR - XML import'!$A123,1)+1,SEARCH(\"/\",'CFR - XML import'!$A123,1)-SEARCH(\">\",'CFR - XML import'!$A123,1)-2)))","v":0},{"$f":"IF(ISERROR(FIND(BL$3,'CFR - XML import'!$A123)),0,VALUE(MID('CFR - XML import'!$A123,SEARCH(\">\",'CFR - XML import'!$A123,1)+1,SEARCH(\"/\",'CFR - XML import'!$A123,1)-SEARCH(\">\",'CFR - XML import'!$A123,1)-2)))","v":0},{"$f":"IF(ISERROR(FIND(BM$3,'CFR - XML import'!$A123)),0,VALUE(MID('CFR - XML import'!$A123,SEARCH(\">\",'CFR - XML import'!$A123,1)+1,SEARCH(\"/\",'CFR - XML import'!$A123,1)-SEARCH(\">\",'CFR - XML import'!$A123,1)-2)))","v":0},{"$f":"IF(ISERROR(FIND(BN$3,'CFR - XML import'!$A123)),0,VALUE(MID('CFR - XML import'!$A123,SEARCH(\">\",'CFR - XML import'!$A123,1)+1,SEARCH(\"/\",'CFR - XML import'!$A123,1)-SEARCH(\">\",'CFR - XML import'!$A123,1)-2)))","v":0},{"$f":"IF(ISERROR(FIND(BO$3,'CFR - XML import'!$A123)),0,VALUE(MID('CFR - XML import'!$A123,SEARCH(\">\",'CFR - XML import'!$A123,1)+1,SEARCH(\"/\",'CFR - XML import'!$A123,1)-SEARCH(\">\",'CFR - XML import'!$A123,1)-2)))","v":0},{"$f":"IF(ISERROR(FIND(BP$3,'CFR - XML import'!$A123)),0,VALUE(MID('CFR - XML import'!$A123,SEARCH(\">\",'CFR - XML import'!$A123,1)+1,SEARCH(\"/\",'CFR - XML import'!$A123,1)-SEARCH(\">\",'CFR - XML import'!$A123,1)-2)))","v":0},{"$f":"IF(ISERROR(FIND(BQ$3,'CFR - XML import'!$A123)),0,VALUE(MID('CFR - XML import'!$A123,SEARCH(\">\",'CFR - XML import'!$A123,1)+1,SEARCH(\"/\",'CFR - XML import'!$A123,1)-SEARCH(\">\",'CFR - XML import'!$A123,1)-2)))","v":0},{"$f":"IF(ISERROR(FIND(BR$3,'CFR - XML import'!$A123)),0,VALUE(MID('CFR - XML import'!$A123,SEARCH(\">\",'CFR - XML import'!$A123,1)+1,SEARCH(\"/\",'CFR - XML import'!$A123,1)-SEARCH(\">\",'CFR - XML import'!$A123,1)-2)))","v":0},{"$f":"IF(ISERROR(FIND(BS$3,'CFR - XML import'!$A123)),0,VALUE(MID('CFR - XML import'!$A123,SEARCH(\">\",'CFR - XML import'!$A123,1)+1,SEARCH(\"/\",'CFR - XML import'!$A123,1)-SEARCH(\">\",'CFR - XML import'!$A123,1)-2)))","v":0},{"$f":"IF(ISERROR(FIND(BT$3,'CFR - XML import'!$A123)),0,VALUE(MID('CFR - XML import'!$A123,SEARCH(\">\",'CFR - XML import'!$A123,1)+1,SEARCH(\"/\",'CFR - XML import'!$A123,1)-SEARCH(\">\",'CFR - XML import'!$A123,1)-2)))","v":0},{"$f":"IF(ISERROR(FIND(BU$3,'CFR - XML import'!$A123)),0,VALUE(MID('CFR - XML import'!$A123,SEARCH(\">\",'CFR - XML import'!$A123,1)+1,SEARCH(\"/\",'CFR - XML import'!$A123,1)-SEARCH(\">\",'CFR - XML import'!$A123,1)-2)))","v":0},{"$f":"IF(ISERROR(FIND(BV$3,'CFR - XML import'!$A123)),0,VALUE(MID('CFR - XML import'!$A123,SEARCH(\">\",'CFR - XML import'!$A123,1)+1,SEARCH(\"/\",'CFR - XML import'!$A123,1)-SEARCH(\">\",'CFR - XML import'!$A123,1)-2)))","v":0},{"$f":"IF(ISERROR(FIND(BW$3,'CFR - XML import'!$A123)),0,VALUE(MID('CFR - XML import'!$A123,SEARCH(\">\",'CFR - XML import'!$A123,1)+1,SEARCH(\"/\",'CFR - XML import'!$A123,1)-SEARCH(\">\",'CFR - XML import'!$A123,1)-2)))","v":0},{"$f":"IF(ISERROR(FIND(BX$3,'CFR - XML import'!$A123)),0,VALUE(MID('CFR - XML import'!$A123,SEARCH(\">\",'CFR - XML import'!$A123,1)+1,SEARCH(\"/\",'CFR - XML import'!$A123,1)-SEARCH(\">\",'CFR - XML import'!$A123,1)-2)))","v":0},{"$f":"IF(ISERROR(FIND(BY$3,'CFR - XML import'!$A123)),0,VALUE(MID('CFR - XML import'!$A123,SEARCH(\">\",'CFR - XML import'!$A123,1)+1,SEARCH(\"/\",'CFR - XML import'!$A123,1)-SEARCH(\">\",'CFR - XML import'!$A123,1)-2)))","v":0},{"$f":"IF(ISERROR(FIND(BZ$3,'CFR - XML import'!$A123)),0,VALUE(MID('CFR - XML import'!$A123,SEARCH(\">\",'CFR - XML import'!$A123,1)+1,SEARCH(\"/\",'CFR - XML import'!$A123,1)-SEARCH(\">\",'CFR - XML import'!$A123,1)-2)))","v":0},null,null,null,null,null,null,{"$f":"IF(ISERROR(IF(MID('CFR - XML import'!$A123,LEN($CF$4)+1,LEN('CFR - XML import'!$A123)-(2*LEN($CF$4)+1))=\"RMMS\",1,IF(MID('CFR - XML import'!$A123,LEN(\"    <InputSystem>\")+1,LEN('CFR - XML import'!$A123)-(LEN(\"    <InputSystem>\")+LEN($CF$4)+1))=\"SIMS\",2,0))),0,IF(MID('CFR - XML import'!$A123,LEN($CF$4)+1,LEN('CFR - XML import'!$A123)-(2*LEN($CF$4)+1))=\"RMMS\",1,IF(MID('CFR - XML import'!$A123,LEN(\"    <InputSystem>\")+1,LEN('CFR - XML import'!$A123)-(LEN(\"    <InputSystem>\")+LEN($CF$4)+1))=\"SIMS\",2,0)))","v":0},{"$f":"IF(ISERROR(FIND(CH$3,'CFR - XML import'!$A123)),0,MID('CFR - XML import'!$A123,SEARCH(\">\",'CFR - XML import'!$A123,1)+1,SEARCH(\"/\",'CFR - XML import'!$A123,1)-SEARCH(\">\",'CFR - XML import'!$A123,1)-2))","v":0},{"$f":"IF(ISERROR(FIND(CI$3,'CFR - XML import'!$A123)),0,MID('CFR - XML import'!$A123,SEARCH(\">\",'CFR - XML import'!$A123,1)+1,SEARCH(\"/\",'CFR - XML import'!$A123,1)-SEARCH(\">\",'CFR - XML import'!$A123,1)-2))","v":0},{"$f":"IF(ISERROR(FIND(CJ$3,'CFR - XML import'!$A123)),0,MID('CFR - XML import'!$A123,SEARCH(\">\",'CFR - XML import'!$A123,1)+1,SEARCH(\"/\",'CFR - XML import'!$A123,1)-SEARCH(\">\",'CFR - XML import'!$A123,1)-2))","v":0},{"$f":"IF(ISERROR(FIND(CK$3,'CFR - XML import'!$A123)),0,MID('CFR - XML import'!$A123,SEARCH(\">\",'CFR - XML import'!$A123,1)+1,SEARCH(\"/\",'CFR - XML import'!$A123,1)-SEARCH(\">\",'CFR - XML import'!$A123,1)-2))","v":0},{"$f":"IF(ISERROR(FIND(CL$3,'CFR - XML import'!$A123)),0,MID('CFR - XML import'!$A123,SEARCH(\">\",'CFR - XML import'!$A123,1)+1,SEARCH(\"/\",'CFR - XML import'!$A123,1)-SEARCH(\">\",'CFR - XML import'!$A123,1)-2))","v":0}]
[{"$f":"IF(AND('CFR - XML import'!A124<>\"\",LEFT('CFR - XML import'!A124,1)<>\"<\",LEFT('CFR - XML import'!A124,3)<>\"  <\",LEFT('CFR - XML import'!A124,5)<>\"    <\",LEFT('CFR - XML import'!A124,7)<>\"      <\",LEFT('CFR - XML import'!A124,9)<>\"        <\",$B$1=\"SIMS\"),'CFR - XML import'!A124,IF(AND(LEFT('CFR - XML import'!A124,9)=\"<Details>\",$B$1=\"RM\"),'CFR - XML import'!A124,\"\"))","v":""},{"$f":"IF(ISERROR(FIND(B$3,'CFR - XML import'!$A124)),0,VALUE(MID('CFR - XML import'!$A124,SEARCH(\">\",'CFR - XML import'!$A124,1)+1,SEARCH(\"/\",'CFR - XML import'!$A124,1)-SEARCH(\">\",'CFR - XML import'!$A124,1)-2)))","v":0},null,{"$f":"IF(ISERROR(FIND(D$3,'CFR - XML import'!$A124)),0,MID('CFR - XML import'!$A124,SEARCH(\">\",'CFR - XML import'!$A124,1)+1,SEARCH(\"/\",'CFR - XML import'!$A124,1)-SEARCH(\">\",'CFR - XML import'!$A124,1)-2))","v":0},{"$f":"IF(ISERROR(FIND(E$3,'CFR - XML import'!$A124)),0,MID('CFR - XML import'!$A124,SEARCH(\">\",'CFR - XML import'!$A124,1)+1,SEARCH(\"/\",'CFR - XML import'!$A124,1)-SEARCH(\">\",'CFR - XML import'!$A124,1)-2))","v":0},{"$f":"IF($B$1=\"SIMS\",IF(ISERROR(FIND(F$3,'CFR - XML import'!$A124)),0,VALUE(MID('CFR - XML import'!$A124,15,10))),IF(ISERROR(FIND(F$3,'CFR - XML import'!$A124)),0,VALUE(MID('CFR - XML import'!$A124,11,10))))","v":"00:00:00"},{"$f":"IF(ISERROR(FIND(G$3,'CFR - XML import'!$A124)),0,VALUE(MID('CFR - XML import'!$A124,SEARCH(\">\",'CFR - XML import'!$A124,1)+1,SEARCH(\"/\",'CFR - XML import'!$A124,1)-SEARCH(\">\",'CFR - XML import'!$A124,1)-2)))","v":0},{"$f":"IF(ISERROR(FIND(H$3,'CFR - XML import'!$A124)),0,VALUE(MID('CFR - XML import'!$A124,SEARCH(\">\",'CFR - XML import'!$A124,1)+1,SEARCH(\"/\",'CFR - XML import'!$A124,1)-SEARCH(\">\",'CFR - XML import'!$A124,1)-2)))","v":0},{"$f":"IF(ISERROR(FIND(I$3,'CFR - XML import'!$A124)),0,VALUE(MID('CFR - XML import'!$A124,SEARCH(\">\",'CFR - XML import'!$A124,1)+1,SEARCH(\"/\",'CFR - XML import'!$A124,1)-SEARCH(\">\",'CFR - XML import'!$A124,1)-2)))","v":0},{"$f":"IF(ISERROR(FIND(J$3,'CFR - XML import'!$A124)),0,VALUE(MID('CFR - XML import'!$A124,SEARCH(\">\",'CFR - XML import'!$A124,1)+1,SEARCH(\"/\",'CFR - XML import'!$A124,1)-SEARCH(\">\",'CFR - XML import'!$A124,1)-2)))","v":0},{"$f":"IF(ISERROR(FIND(K$3,'CFR - XML import'!$A124)),0,VALUE(MID('CFR - XML import'!$A124,SEARCH(\">\",'CFR - XML import'!$A124,1)+1,SEARCH(\"/\",'CFR - XML import'!$A124,1)-SEARCH(\">\",'CFR - XML import'!$A124,1)-2)))","v":0},{"$f":"IF(ISERROR(FIND(L$3,'CFR - XML import'!$A124)),0,VALUE(MID('CFR - XML import'!$A124,SEARCH(\">\",'CFR - XML import'!$A124,1)+1,SEARCH(\"/\",'CFR - XML import'!$A124,1)-SEARCH(\">\",'CFR - XML import'!$A124,1)-2)))","v":0},{"$f":"IF(ISERROR(FIND(M$3,'CFR - XML import'!$A124)),0,VALUE(MID('CFR - XML import'!$A124,SEARCH(\">\",'CFR - XML import'!$A124,1)+1,SEARCH(\"/\",'CFR - XML import'!$A124,1)-SEARCH(\">\",'CFR - XML import'!$A124,1)-2)))","v":0},{"$f":"IF(ISERROR(FIND(N$3,'CFR - XML import'!$A124)),0,VALUE(MID('CFR - XML import'!$A124,SEARCH(\">\",'CFR - XML import'!$A124,1)+1,SEARCH(\"/\",'CFR - XML import'!$A124,1)-SEARCH(\">\",'CFR - XML import'!$A124,1)-2)))","v":0},{"$f":"IF(ISERROR(FIND(O$3,'CFR - XML import'!$A124)),0,VALUE(MID('CFR - XML import'!$A124,SEARCH(\">\",'CFR - XML import'!$A124,1)+1,SEARCH(\"/\",'CFR - XML import'!$A124,1)-SEARCH(\">\",'CFR - XML import'!$A124,1)-2)))","v":0},{"$f":"IF(ISERROR(FIND(P$3,'CFR - XML import'!$A124)),0,VALUE(MID('CFR - XML import'!$A124,SEARCH(\">\",'CFR - XML import'!$A124,1)+1,SEARCH(\"/\",'CFR - XML import'!$A124,1)-SEARCH(\">\",'CFR - XML import'!$A124,1)-2)))","v":0},{"$f":"IF(ISERROR(FIND(Q$3,'CFR - XML import'!$A124)),0,VALUE(MID('CFR - XML import'!$A124,SEARCH(\">\",'CFR - XML import'!$A124,1)+1,SEARCH(\"/\",'CFR - XML import'!$A124,1)-SEARCH(\">\",'CFR - XML import'!$A124,1)-2)))","v":0},{"$f":"IF(ISERROR(FIND(R$3,'CFR - XML import'!$A124)),0,VALUE(MID('CFR - XML import'!$A124,SEARCH(\">\",'CFR - XML import'!$A124,1)+1,SEARCH(\"/\",'CFR - XML import'!$A124,1)-SEARCH(\">\",'CFR - XML import'!$A124,1)-2)))","v":0},{"$f":"IF(ISERROR(FIND(S$3,'CFR - XML import'!$A124)),0,VALUE(MID('CFR - XML import'!$A124,SEARCH(\">\",'CFR - XML import'!$A124,1)+1,SEARCH(\"/\",'CFR - XML import'!$A124,1)-SEARCH(\">\",'CFR - XML import'!$A124,1)-2)))","v":0},{"$f":"IF(ISERROR(FIND(T$3,'CFR - XML import'!$A124)),0,VALUE(MID('CFR - XML import'!$A124,SEARCH(\">\",'CFR - XML import'!$A124,1)+1,SEARCH(\"/\",'CFR - XML import'!$A124,1)-SEARCH(\">\",'CFR - XML import'!$A124,1)-2)))","v":0},{"$f":"IF(ISERROR(FIND(U$3,'CFR - XML import'!$A124)),0,VALUE(MID('CFR - XML import'!$A124,SEARCH(\">\",'CFR - XML import'!$A124,1)+1,SEARCH(\"/\",'CFR - XML import'!$A124,1)-SEARCH(\">\",'CFR - XML import'!$A124,1)-2)))","v":0},{"$f":"IF(ISERROR(FIND(V$3,'CFR - XML import'!$A124)),0,VALUE(MID('CFR - XML import'!$A124,SEARCH(\">\",'CFR - XML import'!$A124,1)+1,SEARCH(\"/\",'CFR - XML import'!$A124,1)-SEARCH(\">\",'CFR - XML import'!$A124,1)-2)))","v":0},{"$f":"IF(ISERROR(FIND(W$3,'CFR - XML import'!$A124)),0,VALUE(MID('CFR - XML import'!$A124,SEARCH(\">\",'CFR - XML import'!$A124,1)+1,SEARCH(\"/\",'CFR - XML import'!$A124,1)-SEARCH(\">\",'CFR - XML import'!$A124,1)-2)))","v":0},null,{"$f":"IF(ISERROR(FIND(Y$3,'CFR - XML import'!$A124)),0,VALUE(MID('CFR - XML import'!$A124,SEARCH(\">\",'CFR - XML import'!$A124,1)+1,SEARCH(\"/\",'CFR - XML import'!$A124,1)-SEARCH(\">\",'CFR - XML import'!$A124,1)-2)))","v":0},{"$f":"IF(ISERROR(FIND(Z$3,'CFR - XML import'!$A124)),0,VALUE(MID('CFR - XML import'!$A124,SEARCH(\">\",'CFR - XML import'!$A124,1)+1,SEARCH(\"/\",'CFR - XML import'!$A124,1)-SEARCH(\">\",'CFR - XML import'!$A124,1)-2)))","v":0},{"$f":"IF(ISERROR(FIND(AA$3,'CFR - XML import'!$A124)),0,VALUE(MID('CFR - XML import'!$A124,SEARCH(\">\",'CFR - XML import'!$A124,1)+1,SEARCH(\"/\",'CFR - XML import'!$A124,1)-SEARCH(\">\",'CFR - XML import'!$A124,1)-2)))","v":0},{"$f":"IF(ISERROR(FIND(AB$3,'CFR - XML import'!$A124)),0,VALUE(MID('CFR - XML import'!$A124,SEARCH(\">\",'CFR - XML import'!$A124,1)+1,SEARCH(\"/\",'CFR - XML import'!$A124,1)-SEARCH(\">\",'CFR - XML import'!$A124,1)-2)))","v":0},{"$f":"IF(ISERROR(FIND(AC$3,'CFR - XML import'!$A124)),0,VALUE(MID('CFR - XML import'!$A124,SEARCH(\">\",'CFR - XML import'!$A124,1)+1,SEARCH(\"/\",'CFR - XML import'!$A124,1)-SEARCH(\">\",'CFR - XML import'!$A124,1)-2)))","v":0},{"$f":"IF(ISERROR(FIND(AD$3,'CFR - XML import'!$A124)),0,VALUE(MID('CFR - XML import'!$A124,SEARCH(\">\",'CFR - XML import'!$A124,1)+1,SEARCH(\"/\",'CFR - XML import'!$A124,1)-SEARCH(\">\",'CFR - XML import'!$A124,1)-2)))","v":0},{"$f":"IF(ISERROR(FIND(AE$3,'CFR - XML import'!$A124)),0,VALUE(MID('CFR - XML import'!$A124,SEARCH(\">\",'CFR - XML import'!$A124,1)+1,SEARCH(\"/\",'CFR - XML import'!$A124,1)-SEARCH(\">\",'CFR - XML import'!$A124,1)-2)))","v":0},{"$f":"IF(ISERROR(FIND(AF$3,'CFR - XML import'!$A124)),0,VALUE(MID('CFR - XML import'!$A124,SEARCH(\">\",'CFR - XML import'!$A124,1)+1,SEARCH(\"/\",'CFR - XML import'!$A124,1)-SEARCH(\">\",'CFR - XML import'!$A124,1)-2)))","v":0},{"$f":"IF(ISERROR(FIND(AG$3,'CFR - XML import'!$A124)),0,VALUE(MID('CFR - XML import'!$A124,SEARCH(\">\",'CFR - XML import'!$A124,1)+1,SEARCH(\"/\",'CFR - XML import'!$A124,1)-SEARCH(\">\",'CFR - XML import'!$A124,1)-2)))","v":0},{"$f":"IF(ISERROR(FIND(AH$3,'CFR - XML import'!$A124)),0,VALUE(MID('CFR - XML import'!$A124,SEARCH(\">\",'CFR - XML import'!$A124,1)+1,SEARCH(\"/\",'CFR - XML import'!$A124,1)-SEARCH(\">\",'CFR - XML import'!$A124,1)-2)))","v":0},{"$f":"IF(ISERROR(FIND(AI$3,'CFR - XML import'!$A124)),0,VALUE(MID('CFR - XML import'!$A124,SEARCH(\">\",'CFR - XML import'!$A124,1)+1,SEARCH(\"/\",'CFR - XML import'!$A124,1)-SEARCH(\">\",'CFR - XML import'!$A124,1)-2)))","v":0},{"$f":"IF(ISERROR(FIND(AJ$3,'CFR - XML import'!$A124)),0,VALUE(MID('CFR - XML import'!$A124,SEARCH(\">\",'CFR - XML import'!$A124,1)+1,SEARCH(\"/\",'CFR - XML import'!$A124,1)-SEARCH(\">\",'CFR - XML import'!$A124,1)-2)))","v":0},{"$f":"IF(ISERROR(FIND(AK$3,'CFR - XML import'!$A124)),0,VALUE(MID('CFR - XML import'!$A124,SEARCH(\">\",'CFR - XML import'!$A124,1)+1,SEARCH(\"/\",'CFR - XML import'!$A124,1)-SEARCH(\">\",'CFR - XML import'!$A124,1)-2)))","v":0},{"$f":"IF(ISERROR(FIND(AL$3,'CFR - XML import'!$A124)),0,VALUE(MID('CFR - XML import'!$A124,SEARCH(\">\",'CFR - XML import'!$A124,1)+1,SEARCH(\"/\",'CFR - XML import'!$A124,1)-SEARCH(\">\",'CFR - XML import'!$A124,1)-2)))","v":0},{"$f":"IF(ISERROR(FIND(AM$3,'CFR - XML import'!$A124)),0,VALUE(MID('CFR - XML import'!$A124,SEARCH(\">\",'CFR - XML import'!$A124,1)+1,SEARCH(\"/\",'CFR - XML import'!$A124,1)-SEARCH(\">\",'CFR - XML import'!$A124,1)-2)))","v":0},{"$f":"IF(ISERROR(FIND(AN$3,'CFR - XML import'!$A124)),0,VALUE(MID('CFR - XML import'!$A124,SEARCH(\">\",'CFR - XML import'!$A124,1)+1,SEARCH(\"/\",'CFR - XML import'!$A124,1)-SEARCH(\">\",'CFR - XML import'!$A124,1)-2)))","v":0},{"$f":"IF(ISERROR(FIND(AO$3,'CFR - XML import'!$A124)),0,VALUE(MID('CFR - XML import'!$A124,SEARCH(\">\",'CFR - XML import'!$A124,1)+1,SEARCH(\"/\",'CFR - XML import'!$A124,1)-SEARCH(\">\",'CFR - XML import'!$A124,1)-2)))","v":0},{"$f":"IF(ISERROR(FIND(AP$3,'CFR - XML import'!$A124)),0,VALUE(MID('CFR - XML import'!$A124,SEARCH(\">\",'CFR - XML import'!$A124,1)+1,SEARCH(\"/\",'CFR - XML import'!$A124,1)-SEARCH(\">\",'CFR - XML import'!$A124,1)-2)))","v":0},{"$f":"IF(ISERROR(FIND(AQ$3,'CFR - XML import'!$A124)),0,VALUE(MID('CFR - XML import'!$A124,SEARCH(\">\",'CFR - XML import'!$A124,1)+1,SEARCH(\"/\",'CFR - XML import'!$A124,1)-SEARCH(\">\",'CFR - XML import'!$A124,1)-2)))","v":0},{"$f":"IF(ISERROR(FIND(AR$3,'CFR - XML import'!$A124)),0,VALUE(MID('CFR - XML import'!$A124,SEARCH(\">\",'CFR - XML import'!$A124,1)+1,SEARCH(\"/\",'CFR - XML import'!$A124,1)-SEARCH(\">\",'CFR - XML import'!$A124,1)-2)))","v":0},{"$f":"IF(ISERROR(FIND(AS$3,'CFR - XML import'!$A124)),0,VALUE(MID('CFR - XML import'!$A124,SEARCH(\">\",'CFR - XML import'!$A124,1)+1,SEARCH(\"/\",'CFR - XML import'!$A124,1)-SEARCH(\">\",'CFR - XML import'!$A124,1)-2)))","v":0},{"$f":"IF(ISERROR(FIND(AT$3,'CFR - XML import'!$A124)),0,VALUE(MID('CFR - XML import'!$A124,SEARCH(\">\",'CFR - XML import'!$A124,1)+1,SEARCH(\"/\",'CFR - XML import'!$A124,1)-SEARCH(\">\",'CFR - XML import'!$A124,1)-2)))","v":0},{"$f":"IF(ISERROR(FIND(AU$3,'CFR - XML import'!$A124)),0,VALUE(MID('CFR - XML import'!$A124,SEARCH(\">\",'CFR - XML import'!$A124,1)+1,SEARCH(\"/\",'CFR - XML import'!$A124,1)-SEARCH(\">\",'CFR - XML import'!$A124,1)-2)))","v":0},{"$f":"IF(ISERROR(FIND(AV$3,'CFR - XML import'!$A124)),0,VALUE(MID('CFR - XML import'!$A124,SEARCH(\">\",'CFR - XML import'!$A124,1)+1,SEARCH(\"/\",'CFR - XML import'!$A124,1)-SEARCH(\">\",'CFR - XML import'!$A124,1)-2)))","v":0},{"$f":"IF(ISERROR(FIND(AW$3,'CFR - XML import'!$A124)),0,VALUE(MID('CFR - XML import'!$A124,SEARCH(\">\",'CFR - XML import'!$A124,1)+1,SEARCH(\"/\",'CFR - XML import'!$A124,1)-SEARCH(\">\",'CFR - XML import'!$A124,1)-2)))","v":0},{"$f":"IF(ISERROR(FIND(AX$3,'CFR - XML import'!$A124)),0,VALUE(MID('CFR - XML import'!$A124,SEARCH(\">\",'CFR - XML import'!$A124,1)+1,SEARCH(\"/\",'CFR - XML import'!$A124,1)-SEARCH(\">\",'CFR - XML import'!$A124,1)-2)))","v":0},{"$f":"IF(ISERROR(FIND(AY$3,'CFR - XML import'!$A124)),0,VALUE(MID('CFR - XML import'!$A124,SEARCH(\">\",'CFR - XML import'!$A124,1)+1,SEARCH(\"/\",'CFR - XML import'!$A124,1)-SEARCH(\">\",'CFR - XML import'!$A124,1)-2)))","v":0},{"$f":"IF(ISERROR(FIND(AZ$3,'CFR - XML import'!$A124)),0,VALUE(MID('CFR - XML import'!$A124,SEARCH(\">\",'CFR - XML import'!$A124,1)+1,SEARCH(\"/\",'CFR - XML import'!$A124,1)-SEARCH(\">\",'CFR - XML import'!$A124,1)-2)))","v":0},{"$f":"IF(ISERROR(FIND(BA$3,'CFR - XML import'!$A124)),0,VALUE(MID('CFR - XML import'!$A124,SEARCH(\">\",'CFR - XML import'!$A124,1)+1,SEARCH(\"/\",'CFR - XML import'!$A124,1)-SEARCH(\">\",'CFR - XML import'!$A124,1)-2)))","v":0},{"$f":"IF(ISERROR(FIND(BB$3,'CFR - XML import'!$A124)),0,VALUE(MID('CFR - XML import'!$A124,SEARCH(\">\",'CFR - XML import'!$A124,1)+1,SEARCH(\"/\",'CFR - XML import'!$A124,1)-SEARCH(\">\",'CFR - XML import'!$A124,1)-2)))","v":0},{"$f":"IF(ISERROR(FIND(BC$3,'CFR - XML import'!$A124)),0,VALUE(MID('CFR - XML import'!$A124,SEARCH(\">\",'CFR - XML import'!$A124,1)+1,SEARCH(\"/\",'CFR - XML import'!$A124,1)-SEARCH(\">\",'CFR - XML import'!$A124,1)-2)))","v":0},{"$f":"IF(ISERROR(FIND(BD$3,'CFR - XML import'!$A124)),0,VALUE(MID('CFR - XML import'!$A124,SEARCH(\">\",'CFR - XML import'!$A124,1)+1,SEARCH(\"/\",'CFR - XML import'!$A124,1)-SEARCH(\">\",'CFR - XML import'!$A124,1)-2)))","v":0},{"$f":"IF(ISERROR(FIND(BE$3,'CFR - XML import'!$A124)),0,VALUE(MID('CFR - XML import'!$A124,SEARCH(\">\",'CFR - XML import'!$A124,1)+1,SEARCH(\"/\",'CFR - XML import'!$A124,1)-SEARCH(\">\",'CFR - XML import'!$A124,1)-2)))","v":0},{"$f":"IF(ISERROR(FIND(BF$3,'CFR - XML import'!$A124)),0,VALUE(MID('CFR - XML import'!$A124,SEARCH(\">\",'CFR - XML import'!$A124,1)+1,SEARCH(\"/\",'CFR - XML import'!$A124,1)-SEARCH(\">\",'CFR - XML import'!$A124,1)-2)))","v":0},{"$f":"IF(ISERROR(FIND(BG$3,'CFR - XML import'!$A124)),0,VALUE(MID('CFR - XML import'!$A124,SEARCH(\">\",'CFR - XML import'!$A124,1)+1,SEARCH(\"/\",'CFR - XML import'!$A124,1)-SEARCH(\">\",'CFR - XML import'!$A124,1)-2)))","v":0},{"$f":"IF(ISERROR(FIND(BH$3,'CFR - XML import'!$A124)),0,VALUE(MID('CFR - XML import'!$A124,SEARCH(\">\",'CFR - XML import'!$A124,1)+1,SEARCH(\"/\",'CFR - XML import'!$A124,1)-SEARCH(\">\",'CFR - XML import'!$A124,1)-2)))","v":0},{"$f":"IF(ISERROR(FIND(BI$3,'CFR - XML import'!$A124)),0,VALUE(MID('CFR - XML import'!$A124,SEARCH(\">\",'CFR - XML import'!$A124,1)+1,SEARCH(\"/\",'CFR - XML import'!$A124,1)-SEARCH(\">\",'CFR - XML import'!$A124,1)-2)))","v":0},{"$f":"IF(ISERROR(FIND(BJ$3,'CFR - XML import'!$A124)),0,VALUE(MID('CFR - XML import'!$A124,SEARCH(\">\",'CFR - XML import'!$A124,1)+1,SEARCH(\"/\",'CFR - XML import'!$A124,1)-SEARCH(\">\",'CFR - XML import'!$A124,1)-2)))","v":0},{"$f":"IF(ISERROR(FIND(BK$3,'CFR - XML import'!$A124)),0,VALUE(MID('CFR - XML import'!$A124,SEARCH(\">\",'CFR - XML import'!$A124,1)+1,SEARCH(\"/\",'CFR - XML import'!$A124,1)-SEARCH(\">\",'CFR - XML import'!$A124,1)-2)))","v":0},{"$f":"IF(ISERROR(FIND(BL$3,'CFR - XML import'!$A124)),0,VALUE(MID('CFR - XML import'!$A124,SEARCH(\">\",'CFR - XML import'!$A124,1)+1,SEARCH(\"/\",'CFR - XML import'!$A124,1)-SEARCH(\">\",'CFR - XML import'!$A124,1)-2)))","v":0},{"$f":"IF(ISERROR(FIND(BM$3,'CFR - XML import'!$A124)),0,VALUE(MID('CFR - XML import'!$A124,SEARCH(\">\",'CFR - XML import'!$A124,1)+1,SEARCH(\"/\",'CFR - XML import'!$A124,1)-SEARCH(\">\",'CFR - XML import'!$A124,1)-2)))","v":0},{"$f":"IF(ISERROR(FIND(BN$3,'CFR - XML import'!$A124)),0,VALUE(MID('CFR - XML import'!$A124,SEARCH(\">\",'CFR - XML import'!$A124,1)+1,SEARCH(\"/\",'CFR - XML import'!$A124,1)-SEARCH(\">\",'CFR - XML import'!$A124,1)-2)))","v":0},{"$f":"IF(ISERROR(FIND(BO$3,'CFR - XML import'!$A124)),0,VALUE(MID('CFR - XML import'!$A124,SEARCH(\">\",'CFR - XML import'!$A124,1)+1,SEARCH(\"/\",'CFR - XML import'!$A124,1)-SEARCH(\">\",'CFR - XML import'!$A124,1)-2)))","v":0},{"$f":"IF(ISERROR(FIND(BP$3,'CFR - XML import'!$A124)),0,VALUE(MID('CFR - XML import'!$A124,SEARCH(\">\",'CFR - XML import'!$A124,1)+1,SEARCH(\"/\",'CFR - XML import'!$A124,1)-SEARCH(\">\",'CFR - XML import'!$A124,1)-2)))","v":0},{"$f":"IF(ISERROR(FIND(BQ$3,'CFR - XML import'!$A124)),0,VALUE(MID('CFR - XML import'!$A124,SEARCH(\">\",'CFR - XML import'!$A124,1)+1,SEARCH(\"/\",'CFR - XML import'!$A124,1)-SEARCH(\">\",'CFR - XML import'!$A124,1)-2)))","v":0},{"$f":"IF(ISERROR(FIND(BR$3,'CFR - XML import'!$A124)),0,VALUE(MID('CFR - XML import'!$A124,SEARCH(\">\",'CFR - XML import'!$A124,1)+1,SEARCH(\"/\",'CFR - XML import'!$A124,1)-SEARCH(\">\",'CFR - XML import'!$A124,1)-2)))","v":0},{"$f":"IF(ISERROR(FIND(BS$3,'CFR - XML import'!$A124)),0,VALUE(MID('CFR - XML import'!$A124,SEARCH(\">\",'CFR - XML import'!$A124,1)+1,SEARCH(\"/\",'CFR - XML import'!$A124,1)-SEARCH(\">\",'CFR - XML import'!$A124,1)-2)))","v":0},{"$f":"IF(ISERROR(FIND(BT$3,'CFR - XML import'!$A124)),0,VALUE(MID('CFR - XML import'!$A124,SEARCH(\">\",'CFR - XML import'!$A124,1)+1,SEARCH(\"/\",'CFR - XML import'!$A124,1)-SEARCH(\">\",'CFR - XML import'!$A124,1)-2)))","v":0},{"$f":"IF(ISERROR(FIND(BU$3,'CFR - XML import'!$A124)),0,VALUE(MID('CFR - XML import'!$A124,SEARCH(\">\",'CFR - XML import'!$A124,1)+1,SEARCH(\"/\",'CFR - XML import'!$A124,1)-SEARCH(\">\",'CFR - XML import'!$A124,1)-2)))","v":0},{"$f":"IF(ISERROR(FIND(BV$3,'CFR - XML import'!$A124)),0,VALUE(MID('CFR - XML import'!$A124,SEARCH(\">\",'CFR - XML import'!$A124,1)+1,SEARCH(\"/\",'CFR - XML import'!$A124,1)-SEARCH(\">\",'CFR - XML import'!$A124,1)-2)))","v":0},{"$f":"IF(ISERROR(FIND(BW$3,'CFR - XML import'!$A124)),0,VALUE(MID('CFR - XML import'!$A124,SEARCH(\">\",'CFR - XML import'!$A124,1)+1,SEARCH(\"/\",'CFR - XML import'!$A124,1)-SEARCH(\">\",'CFR - XML import'!$A124,1)-2)))","v":0},{"$f":"IF(ISERROR(FIND(BX$3,'CFR - XML import'!$A124)),0,VALUE(MID('CFR - XML import'!$A124,SEARCH(\">\",'CFR - XML import'!$A124,1)+1,SEARCH(\"/\",'CFR - XML import'!$A124,1)-SEARCH(\">\",'CFR - XML import'!$A124,1)-2)))","v":0},{"$f":"IF(ISERROR(FIND(BY$3,'CFR - XML import'!$A124)),0,VALUE(MID('CFR - XML import'!$A124,SEARCH(\">\",'CFR - XML import'!$A124,1)+1,SEARCH(\"/\",'CFR - XML import'!$A124,1)-SEARCH(\">\",'CFR - XML import'!$A124,1)-2)))","v":0},{"$f":"IF(ISERROR(FIND(BZ$3,'CFR - XML import'!$A124)),0,VALUE(MID('CFR - XML import'!$A124,SEARCH(\">\",'CFR - XML import'!$A124,1)+1,SEARCH(\"/\",'CFR - XML import'!$A124,1)-SEARCH(\">\",'CFR - XML import'!$A124,1)-2)))","v":0},null,null,null,null,null,null,{"$f":"IF(ISERROR(IF(MID('CFR - XML import'!$A124,LEN($CF$4)+1,LEN('CFR - XML import'!$A124)-(2*LEN($CF$4)+1))=\"RMMS\",1,IF(MID('CFR - XML import'!$A124,LEN(\"    <InputSystem>\")+1,LEN('CFR - XML import'!$A124)-(LEN(\"    <InputSystem>\")+LEN($CF$4)+1))=\"SIMS\",2,0))),0,IF(MID('CFR - XML import'!$A124,LEN($CF$4)+1,LEN('CFR - XML import'!$A124)-(2*LEN($CF$4)+1))=\"RMMS\",1,IF(MID('CFR - XML import'!$A124,LEN(\"    <InputSystem>\")+1,LEN('CFR - XML import'!$A124)-(LEN(\"    <InputSystem>\")+LEN($CF$4)+1))=\"SIMS\",2,0)))","v":0},{"$f":"IF(ISERROR(FIND(CH$3,'CFR - XML import'!$A124)),0,MID('CFR - XML import'!$A124,SEARCH(\">\",'CFR - XML import'!$A124,1)+1,SEARCH(\"/\",'CFR - XML import'!$A124,1)-SEARCH(\">\",'CFR - XML import'!$A124,1)-2))","v":0},{"$f":"IF(ISERROR(FIND(CI$3,'CFR - XML import'!$A124)),0,MID('CFR - XML import'!$A124,SEARCH(\">\",'CFR - XML import'!$A124,1)+1,SEARCH(\"/\",'CFR - XML import'!$A124,1)-SEARCH(\">\",'CFR - XML import'!$A124,1)-2))","v":0},{"$f":"IF(ISERROR(FIND(CJ$3,'CFR - XML import'!$A124)),0,MID('CFR - XML import'!$A124,SEARCH(\">\",'CFR - XML import'!$A124,1)+1,SEARCH(\"/\",'CFR - XML import'!$A124,1)-SEARCH(\">\",'CFR - XML import'!$A124,1)-2))","v":0},{"$f":"IF(ISERROR(FIND(CK$3,'CFR - XML import'!$A124)),0,MID('CFR - XML import'!$A124,SEARCH(\">\",'CFR - XML import'!$A124,1)+1,SEARCH(\"/\",'CFR - XML import'!$A124,1)-SEARCH(\">\",'CFR - XML import'!$A124,1)-2))","v":0},{"$f":"IF(ISERROR(FIND(CL$3,'CFR - XML import'!$A124)),0,MID('CFR - XML import'!$A124,SEARCH(\">\",'CFR - XML import'!$A124,1)+1,SEARCH(\"/\",'CFR - XML import'!$A124,1)-SEARCH(\">\",'CFR - XML import'!$A124,1)-2))","v":0}]
[{"$f":"IF(AND('CFR - XML import'!A125<>\"\",LEFT('CFR - XML import'!A125,1)<>\"<\",LEFT('CFR - XML import'!A125,3)<>\"  <\",LEFT('CFR - XML import'!A125,5)<>\"    <\",LEFT('CFR - XML import'!A125,7)<>\"      <\",LEFT('CFR - XML import'!A125,9)<>\"        <\",$B$1=\"SIMS\"),'CFR - XML import'!A125,IF(AND(LEFT('CFR - XML import'!A125,9)=\"<Details>\",$B$1=\"RM\"),'CFR - XML import'!A125,\"\"))","v":""},{"$f":"IF(ISERROR(FIND(B$3,'CFR - XML import'!$A125)),0,VALUE(MID('CFR - XML import'!$A125,SEARCH(\">\",'CFR - XML import'!$A125,1)+1,SEARCH(\"/\",'CFR - XML import'!$A125,1)-SEARCH(\">\",'CFR - XML import'!$A125,1)-2)))","v":0},null,{"$f":"IF(ISERROR(FIND(D$3,'CFR - XML import'!$A125)),0,MID('CFR - XML import'!$A125,SEARCH(\">\",'CFR - XML import'!$A125,1)+1,SEARCH(\"/\",'CFR - XML import'!$A125,1)-SEARCH(\">\",'CFR - XML import'!$A125,1)-2))","v":0},{"$f":"IF(ISERROR(FIND(E$3,'CFR - XML import'!$A125)),0,MID('CFR - XML import'!$A125,SEARCH(\">\",'CFR - XML import'!$A125,1)+1,SEARCH(\"/\",'CFR - XML import'!$A125,1)-SEARCH(\">\",'CFR - XML import'!$A125,1)-2))","v":0},{"$f":"IF($B$1=\"SIMS\",IF(ISERROR(FIND(F$3,'CFR - XML import'!$A125)),0,VALUE(MID('CFR - XML import'!$A125,15,10))),IF(ISERROR(FIND(F$3,'CFR - XML import'!$A125)),0,VALUE(MID('CFR - XML import'!$A125,11,10))))","v":"00:00:00"},{"$f":"IF(ISERROR(FIND(G$3,'CFR - XML import'!$A125)),0,VALUE(MID('CFR - XML import'!$A125,SEARCH(\">\",'CFR - XML import'!$A125,1)+1,SEARCH(\"/\",'CFR - XML import'!$A125,1)-SEARCH(\">\",'CFR - XML import'!$A125,1)-2)))","v":0},{"$f":"IF(ISERROR(FIND(H$3,'CFR - XML import'!$A125)),0,VALUE(MID('CFR - XML import'!$A125,SEARCH(\">\",'CFR - XML import'!$A125,1)+1,SEARCH(\"/\",'CFR - XML import'!$A125,1)-SEARCH(\">\",'CFR - XML import'!$A125,1)-2)))","v":0},{"$f":"IF(ISERROR(FIND(I$3,'CFR - XML import'!$A125)),0,VALUE(MID('CFR - XML import'!$A125,SEARCH(\">\",'CFR - XML import'!$A125,1)+1,SEARCH(\"/\",'CFR - XML import'!$A125,1)-SEARCH(\">\",'CFR - XML import'!$A125,1)-2)))","v":0},{"$f":"IF(ISERROR(FIND(J$3,'CFR - XML import'!$A125)),0,VALUE(MID('CFR - XML import'!$A125,SEARCH(\">\",'CFR - XML import'!$A125,1)+1,SEARCH(\"/\",'CFR - XML import'!$A125,1)-SEARCH(\">\",'CFR - XML import'!$A125,1)-2)))","v":0},{"$f":"IF(ISERROR(FIND(K$3,'CFR - XML import'!$A125)),0,VALUE(MID('CFR - XML import'!$A125,SEARCH(\">\",'CFR - XML import'!$A125,1)+1,SEARCH(\"/\",'CFR - XML import'!$A125,1)-SEARCH(\">\",'CFR - XML import'!$A125,1)-2)))","v":0},{"$f":"IF(ISERROR(FIND(L$3,'CFR - XML import'!$A125)),0,VALUE(MID('CFR - XML import'!$A125,SEARCH(\">\",'CFR - XML import'!$A125,1)+1,SEARCH(\"/\",'CFR - XML import'!$A125,1)-SEARCH(\">\",'CFR - XML import'!$A125,1)-2)))","v":0},{"$f":"IF(ISERROR(FIND(M$3,'CFR - XML import'!$A125)),0,VALUE(MID('CFR - XML import'!$A125,SEARCH(\">\",'CFR - XML import'!$A125,1)+1,SEARCH(\"/\",'CFR - XML import'!$A125,1)-SEARCH(\">\",'CFR - XML import'!$A125,1)-2)))","v":0},{"$f":"IF(ISERROR(FIND(N$3,'CFR - XML import'!$A125)),0,VALUE(MID('CFR - XML import'!$A125,SEARCH(\">\",'CFR - XML import'!$A125,1)+1,SEARCH(\"/\",'CFR - XML import'!$A125,1)-SEARCH(\">\",'CFR - XML import'!$A125,1)-2)))","v":0},{"$f":"IF(ISERROR(FIND(O$3,'CFR - XML import'!$A125)),0,VALUE(MID('CFR - XML import'!$A125,SEARCH(\">\",'CFR - XML import'!$A125,1)+1,SEARCH(\"/\",'CFR - XML import'!$A125,1)-SEARCH(\">\",'CFR - XML import'!$A125,1)-2)))","v":0},{"$f":"IF(ISERROR(FIND(P$3,'CFR - XML import'!$A125)),0,VALUE(MID('CFR - XML import'!$A125,SEARCH(\">\",'CFR - XML import'!$A125,1)+1,SEARCH(\"/\",'CFR - XML import'!$A125,1)-SEARCH(\">\",'CFR - XML import'!$A125,1)-2)))","v":0},{"$f":"IF(ISERROR(FIND(Q$3,'CFR - XML import'!$A125)),0,VALUE(MID('CFR - XML import'!$A125,SEARCH(\">\",'CFR - XML import'!$A125,1)+1,SEARCH(\"/\",'CFR - XML import'!$A125,1)-SEARCH(\">\",'CFR - XML import'!$A125,1)-2)))","v":0},{"$f":"IF(ISERROR(FIND(R$3,'CFR - XML import'!$A125)),0,VALUE(MID('CFR - XML import'!$A125,SEARCH(\">\",'CFR - XML import'!$A125,1)+1,SEARCH(\"/\",'CFR - XML import'!$A125,1)-SEARCH(\">\",'CFR - XML import'!$A125,1)-2)))","v":0},{"$f":"IF(ISERROR(FIND(S$3,'CFR - XML import'!$A125)),0,VALUE(MID('CFR - XML import'!$A125,SEARCH(\">\",'CFR - XML import'!$A125,1)+1,SEARCH(\"/\",'CFR - XML import'!$A125,1)-SEARCH(\">\",'CFR - XML import'!$A125,1)-2)))","v":0},{"$f":"IF(ISERROR(FIND(T$3,'CFR - XML import'!$A125)),0,VALUE(MID('CFR - XML import'!$A125,SEARCH(\">\",'CFR - XML import'!$A125,1)+1,SEARCH(\"/\",'CFR - XML import'!$A125,1)-SEARCH(\">\",'CFR - XML import'!$A125,1)-2)))","v":0},{"$f":"IF(ISERROR(FIND(U$3,'CFR - XML import'!$A125)),0,VALUE(MID('CFR - XML import'!$A125,SEARCH(\">\",'CFR - XML import'!$A125,1)+1,SEARCH(\"/\",'CFR - XML import'!$A125,1)-SEARCH(\">\",'CFR - XML import'!$A125,1)-2)))","v":0},{"$f":"IF(ISERROR(FIND(V$3,'CFR - XML import'!$A125)),0,VALUE(MID('CFR - XML import'!$A125,SEARCH(\">\",'CFR - XML import'!$A125,1)+1,SEARCH(\"/\",'CFR - XML import'!$A125,1)-SEARCH(\">\",'CFR - XML import'!$A125,1)-2)))","v":0},{"$f":"IF(ISERROR(FIND(W$3,'CFR - XML import'!$A125)),0,VALUE(MID('CFR - XML import'!$A125,SEARCH(\">\",'CFR - XML import'!$A125,1)+1,SEARCH(\"/\",'CFR - XML import'!$A125,1)-SEARCH(\">\",'CFR - XML import'!$A125,1)-2)))","v":0},null,{"$f":"IF(ISERROR(FIND(Y$3,'CFR - XML import'!$A125)),0,VALUE(MID('CFR - XML import'!$A125,SEARCH(\">\",'CFR - XML import'!$A125,1)+1,SEARCH(\"/\",'CFR - XML import'!$A125,1)-SEARCH(\">\",'CFR - XML import'!$A125,1)-2)))","v":0},{"$f":"IF(ISERROR(FIND(Z$3,'CFR - XML import'!$A125)),0,VALUE(MID('CFR - XML import'!$A125,SEARCH(\">\",'CFR - XML import'!$A125,1)+1,SEARCH(\"/\",'CFR - XML import'!$A125,1)-SEARCH(\">\",'CFR - XML import'!$A125,1)-2)))","v":0},{"$f":"IF(ISERROR(FIND(AA$3,'CFR - XML import'!$A125)),0,VALUE(MID('CFR - XML import'!$A125,SEARCH(\">\",'CFR - XML import'!$A125,1)+1,SEARCH(\"/\",'CFR - XML import'!$A125,1)-SEARCH(\">\",'CFR - XML import'!$A125,1)-2)))","v":0},{"$f":"IF(ISERROR(FIND(AB$3,'CFR - XML import'!$A125)),0,VALUE(MID('CFR - XML import'!$A125,SEARCH(\">\",'CFR - XML import'!$A125,1)+1,SEARCH(\"/\",'CFR - XML import'!$A125,1)-SEARCH(\">\",'CFR - XML import'!$A125,1)-2)))","v":0},{"$f":"IF(ISERROR(FIND(AC$3,'CFR - XML import'!$A125)),0,VALUE(MID('CFR - XML import'!$A125,SEARCH(\">\",'CFR - XML import'!$A125,1)+1,SEARCH(\"/\",'CFR - XML import'!$A125,1)-SEARCH(\">\",'CFR - XML import'!$A125,1)-2)))","v":0},{"$f":"IF(ISERROR(FIND(AD$3,'CFR - XML import'!$A125)),0,VALUE(MID('CFR - XML import'!$A125,SEARCH(\">\",'CFR - XML import'!$A125,1)+1,SEARCH(\"/\",'CFR - XML import'!$A125,1)-SEARCH(\">\",'CFR - XML import'!$A125,1)-2)))","v":0},{"$f":"IF(ISERROR(FIND(AE$3,'CFR - XML import'!$A125)),0,VALUE(MID('CFR - XML import'!$A125,SEARCH(\">\",'CFR - XML import'!$A125,1)+1,SEARCH(\"/\",'CFR - XML import'!$A125,1)-SEARCH(\">\",'CFR - XML import'!$A125,1)-2)))","v":0},{"$f":"IF(ISERROR(FIND(AF$3,'CFR - XML import'!$A125)),0,VALUE(MID('CFR - XML import'!$A125,SEARCH(\">\",'CFR - XML import'!$A125,1)+1,SEARCH(\"/\",'CFR - XML import'!$A125,1)-SEARCH(\">\",'CFR - XML import'!$A125,1)-2)))","v":0},{"$f":"IF(ISERROR(FIND(AG$3,'CFR - XML import'!$A125)),0,VALUE(MID('CFR - XML import'!$A125,SEARCH(\">\",'CFR - XML import'!$A125,1)+1,SEARCH(\"/\",'CFR - XML import'!$A125,1)-SEARCH(\">\",'CFR - XML import'!$A125,1)-2)))","v":0},{"$f":"IF(ISERROR(FIND(AH$3,'CFR - XML import'!$A125)),0,VALUE(MID('CFR - XML import'!$A125,SEARCH(\">\",'CFR - XML import'!$A125,1)+1,SEARCH(\"/\",'CFR - XML import'!$A125,1)-SEARCH(\">\",'CFR - XML import'!$A125,1)-2)))","v":0},{"$f":"IF(ISERROR(FIND(AI$3,'CFR - XML import'!$A125)),0,VALUE(MID('CFR - XML import'!$A125,SEARCH(\">\",'CFR - XML import'!$A125,1)+1,SEARCH(\"/\",'CFR - XML import'!$A125,1)-SEARCH(\">\",'CFR - XML import'!$A125,1)-2)))","v":0},{"$f":"IF(ISERROR(FIND(AJ$3,'CFR - XML import'!$A125)),0,VALUE(MID('CFR - XML import'!$A125,SEARCH(\">\",'CFR - XML import'!$A125,1)+1,SEARCH(\"/\",'CFR - XML import'!$A125,1)-SEARCH(\">\",'CFR - XML import'!$A125,1)-2)))","v":0},{"$f":"IF(ISERROR(FIND(AK$3,'CFR - XML import'!$A125)),0,VALUE(MID('CFR - XML import'!$A125,SEARCH(\">\",'CFR - XML import'!$A125,1)+1,SEARCH(\"/\",'CFR - XML import'!$A125,1)-SEARCH(\">\",'CFR - XML import'!$A125,1)-2)))","v":0},{"$f":"IF(ISERROR(FIND(AL$3,'CFR - XML import'!$A125)),0,VALUE(MID('CFR - XML import'!$A125,SEARCH(\">\",'CFR - XML import'!$A125,1)+1,SEARCH(\"/\",'CFR - XML import'!$A125,1)-SEARCH(\">\",'CFR - XML import'!$A125,1)-2)))","v":0},{"$f":"IF(ISERROR(FIND(AM$3,'CFR - XML import'!$A125)),0,VALUE(MID('CFR - XML import'!$A125,SEARCH(\">\",'CFR - XML import'!$A125,1)+1,SEARCH(\"/\",'CFR - XML import'!$A125,1)-SEARCH(\">\",'CFR - XML import'!$A125,1)-2)))","v":0},{"$f":"IF(ISERROR(FIND(AN$3,'CFR - XML import'!$A125)),0,VALUE(MID('CFR - XML import'!$A125,SEARCH(\">\",'CFR - XML import'!$A125,1)+1,SEARCH(\"/\",'CFR - XML import'!$A125,1)-SEARCH(\">\",'CFR - XML import'!$A125,1)-2)))","v":0},{"$f":"IF(ISERROR(FIND(AO$3,'CFR - XML import'!$A125)),0,VALUE(MID('CFR - XML import'!$A125,SEARCH(\">\",'CFR - XML import'!$A125,1)+1,SEARCH(\"/\",'CFR - XML import'!$A125,1)-SEARCH(\">\",'CFR - XML import'!$A125,1)-2)))","v":0},{"$f":"IF(ISERROR(FIND(AP$3,'CFR - XML import'!$A125)),0,VALUE(MID('CFR - XML import'!$A125,SEARCH(\">\",'CFR - XML import'!$A125,1)+1,SEARCH(\"/\",'CFR - XML import'!$A125,1)-SEARCH(\">\",'CFR - XML import'!$A125,1)-2)))","v":0},{"$f":"IF(ISERROR(FIND(AQ$3,'CFR - XML import'!$A125)),0,VALUE(MID('CFR - XML import'!$A125,SEARCH(\">\",'CFR - XML import'!$A125,1)+1,SEARCH(\"/\",'CFR - XML import'!$A125,1)-SEARCH(\">\",'CFR - XML import'!$A125,1)-2)))","v":0},{"$f":"IF(ISERROR(FIND(AR$3,'CFR - XML import'!$A125)),0,VALUE(MID('CFR - XML import'!$A125,SEARCH(\">\",'CFR - XML import'!$A125,1)+1,SEARCH(\"/\",'CFR - XML import'!$A125,1)-SEARCH(\">\",'CFR - XML import'!$A125,1)-2)))","v":0},{"$f":"IF(ISERROR(FIND(AS$3,'CFR - XML import'!$A125)),0,VALUE(MID('CFR - XML import'!$A125,SEARCH(\">\",'CFR - XML import'!$A125,1)+1,SEARCH(\"/\",'CFR - XML import'!$A125,1)-SEARCH(\">\",'CFR - XML import'!$A125,1)-2)))","v":0},{"$f":"IF(ISERROR(FIND(AT$3,'CFR - XML import'!$A125)),0,VALUE(MID('CFR - XML import'!$A125,SEARCH(\">\",'CFR - XML import'!$A125,1)+1,SEARCH(\"/\",'CFR - XML import'!$A125,1)-SEARCH(\">\",'CFR - XML import'!$A125,1)-2)))","v":0},{"$f":"IF(ISERROR(FIND(AU$3,'CFR - XML import'!$A125)),0,VALUE(MID('CFR - XML import'!$A125,SEARCH(\">\",'CFR - XML import'!$A125,1)+1,SEARCH(\"/\",'CFR - XML import'!$A125,1)-SEARCH(\">\",'CFR - XML import'!$A125,1)-2)))","v":0},{"$f":"IF(ISERROR(FIND(AV$3,'CFR - XML import'!$A125)),0,VALUE(MID('CFR - XML import'!$A125,SEARCH(\">\",'CFR - XML import'!$A125,1)+1,SEARCH(\"/\",'CFR - XML import'!$A125,1)-SEARCH(\">\",'CFR - XML import'!$A125,1)-2)))","v":0},{"$f":"IF(ISERROR(FIND(AW$3,'CFR - XML import'!$A125)),0,VALUE(MID('CFR - XML import'!$A125,SEARCH(\">\",'CFR - XML import'!$A125,1)+1,SEARCH(\"/\",'CFR - XML import'!$A125,1)-SEARCH(\">\",'CFR - XML import'!$A125,1)-2)))","v":0},{"$f":"IF(ISERROR(FIND(AX$3,'CFR - XML import'!$A125)),0,VALUE(MID('CFR - XML import'!$A125,SEARCH(\">\",'CFR - XML import'!$A125,1)+1,SEARCH(\"/\",'CFR - XML import'!$A125,1)-SEARCH(\">\",'CFR - XML import'!$A125,1)-2)))","v":0},{"$f":"IF(ISERROR(FIND(AY$3,'CFR - XML import'!$A125)),0,VALUE(MID('CFR - XML import'!$A125,SEARCH(\">\",'CFR - XML import'!$A125,1)+1,SEARCH(\"/\",'CFR - XML import'!$A125,1)-SEARCH(\">\",'CFR - XML import'!$A125,1)-2)))","v":0},{"$f":"IF(ISERROR(FIND(AZ$3,'CFR - XML import'!$A125)),0,VALUE(MID('CFR - XML import'!$A125,SEARCH(\">\",'CFR - XML import'!$A125,1)+1,SEARCH(\"/\",'CFR - XML import'!$A125,1)-SEARCH(\">\",'CFR - XML import'!$A125,1)-2)))","v":0},{"$f":"IF(ISERROR(FIND(BA$3,'CFR - XML import'!$A125)),0,VALUE(MID('CFR - XML import'!$A125,SEARCH(\">\",'CFR - XML import'!$A125,1)+1,SEARCH(\"/\",'CFR - XML import'!$A125,1)-SEARCH(\">\",'CFR - XML import'!$A125,1)-2)))","v":0},{"$f":"IF(ISERROR(FIND(BB$3,'CFR - XML import'!$A125)),0,VALUE(MID('CFR - XML import'!$A125,SEARCH(\">\",'CFR - XML import'!$A125,1)+1,SEARCH(\"/\",'CFR - XML import'!$A125,1)-SEARCH(\">\",'CFR - XML import'!$A125,1)-2)))","v":0},{"$f":"IF(ISERROR(FIND(BC$3,'CFR - XML import'!$A125)),0,VALUE(MID('CFR - XML import'!$A125,SEARCH(\">\",'CFR - XML import'!$A125,1)+1,SEARCH(\"/\",'CFR - XML import'!$A125,1)-SEARCH(\">\",'CFR - XML import'!$A125,1)-2)))","v":0},{"$f":"IF(ISERROR(FIND(BD$3,'CFR - XML import'!$A125)),0,VALUE(MID('CFR - XML import'!$A125,SEARCH(\">\",'CFR - XML import'!$A125,1)+1,SEARCH(\"/\",'CFR - XML import'!$A125,1)-SEARCH(\">\",'CFR - XML import'!$A125,1)-2)))","v":0},{"$f":"IF(ISERROR(FIND(BE$3,'CFR - XML import'!$A125)),0,VALUE(MID('CFR - XML import'!$A125,SEARCH(\">\",'CFR - XML import'!$A125,1)+1,SEARCH(\"/\",'CFR - XML import'!$A125,1)-SEARCH(\">\",'CFR - XML import'!$A125,1)-2)))","v":0},{"$f":"IF(ISERROR(FIND(BF$3,'CFR - XML import'!$A125)),0,VALUE(MID('CFR - XML import'!$A125,SEARCH(\">\",'CFR - XML import'!$A125,1)+1,SEARCH(\"/\",'CFR - XML import'!$A125,1)-SEARCH(\">\",'CFR - XML import'!$A125,1)-2)))","v":0},{"$f":"IF(ISERROR(FIND(BG$3,'CFR - XML import'!$A125)),0,VALUE(MID('CFR - XML import'!$A125,SEARCH(\">\",'CFR - XML import'!$A125,1)+1,SEARCH(\"/\",'CFR - XML import'!$A125,1)-SEARCH(\">\",'CFR - XML import'!$A125,1)-2)))","v":0},{"$f":"IF(ISERROR(FIND(BH$3,'CFR - XML import'!$A125)),0,VALUE(MID('CFR - XML import'!$A125,SEARCH(\">\",'CFR - XML import'!$A125,1)+1,SEARCH(\"/\",'CFR - XML import'!$A125,1)-SEARCH(\">\",'CFR - XML import'!$A125,1)-2)))","v":0},{"$f":"IF(ISERROR(FIND(BI$3,'CFR - XML import'!$A125)),0,VALUE(MID('CFR - XML import'!$A125,SEARCH(\">\",'CFR - XML import'!$A125,1)+1,SEARCH(\"/\",'CFR - XML import'!$A125,1)-SEARCH(\">\",'CFR - XML import'!$A125,1)-2)))","v":0},{"$f":"IF(ISERROR(FIND(BJ$3,'CFR - XML import'!$A125)),0,VALUE(MID('CFR - XML import'!$A125,SEARCH(\">\",'CFR - XML import'!$A125,1)+1,SEARCH(\"/\",'CFR - XML import'!$A125,1)-SEARCH(\">\",'CFR - XML import'!$A125,1)-2)))","v":0},{"$f":"IF(ISERROR(FIND(BK$3,'CFR - XML import'!$A125)),0,VALUE(MID('CFR - XML import'!$A125,SEARCH(\">\",'CFR - XML import'!$A125,1)+1,SEARCH(\"/\",'CFR - XML import'!$A125,1)-SEARCH(\">\",'CFR - XML import'!$A125,1)-2)))","v":0},{"$f":"IF(ISERROR(FIND(BL$3,'CFR - XML import'!$A125)),0,VALUE(MID('CFR - XML import'!$A125,SEARCH(\">\",'CFR - XML import'!$A125,1)+1,SEARCH(\"/\",'CFR - XML import'!$A125,1)-SEARCH(\">\",'CFR - XML import'!$A125,1)-2)))","v":0},{"$f":"IF(ISERROR(FIND(BM$3,'CFR - XML import'!$A125)),0,VALUE(MID('CFR - XML import'!$A125,SEARCH(\">\",'CFR - XML import'!$A125,1)+1,SEARCH(\"/\",'CFR - XML import'!$A125,1)-SEARCH(\">\",'CFR - XML import'!$A125,1)-2)))","v":0},{"$f":"IF(ISERROR(FIND(BN$3,'CFR - XML import'!$A125)),0,VALUE(MID('CFR - XML import'!$A125,SEARCH(\">\",'CFR - XML import'!$A125,1)+1,SEARCH(\"/\",'CFR - XML import'!$A125,1)-SEARCH(\">\",'CFR - XML import'!$A125,1)-2)))","v":0},{"$f":"IF(ISERROR(FIND(BO$3,'CFR - XML import'!$A125)),0,VALUE(MID('CFR - XML import'!$A125,SEARCH(\">\",'CFR - XML import'!$A125,1)+1,SEARCH(\"/\",'CFR - XML import'!$A125,1)-SEARCH(\">\",'CFR - XML import'!$A125,1)-2)))","v":0},{"$f":"IF(ISERROR(FIND(BP$3,'CFR - XML import'!$A125)),0,VALUE(MID('CFR - XML import'!$A125,SEARCH(\">\",'CFR - XML import'!$A125,1)+1,SEARCH(\"/\",'CFR - XML import'!$A125,1)-SEARCH(\">\",'CFR - XML import'!$A125,1)-2)))","v":0},{"$f":"IF(ISERROR(FIND(BQ$3,'CFR - XML import'!$A125)),0,VALUE(MID('CFR - XML import'!$A125,SEARCH(\">\",'CFR - XML import'!$A125,1)+1,SEARCH(\"/\",'CFR - XML import'!$A125,1)-SEARCH(\">\",'CFR - XML import'!$A125,1)-2)))","v":0},{"$f":"IF(ISERROR(FIND(BR$3,'CFR - XML import'!$A125)),0,VALUE(MID('CFR - XML import'!$A125,SEARCH(\">\",'CFR - XML import'!$A125,1)+1,SEARCH(\"/\",'CFR - XML import'!$A125,1)-SEARCH(\">\",'CFR - XML import'!$A125,1)-2)))","v":0},{"$f":"IF(ISERROR(FIND(BS$3,'CFR - XML import'!$A125)),0,VALUE(MID('CFR - XML import'!$A125,SEARCH(\">\",'CFR - XML import'!$A125,1)+1,SEARCH(\"/\",'CFR - XML import'!$A125,1)-SEARCH(\">\",'CFR - XML import'!$A125,1)-2)))","v":0},{"$f":"IF(ISERROR(FIND(BT$3,'CFR - XML import'!$A125)),0,VALUE(MID('CFR - XML import'!$A125,SEARCH(\">\",'CFR - XML import'!$A125,1)+1,SEARCH(\"/\",'CFR - XML import'!$A125,1)-SEARCH(\">\",'CFR - XML import'!$A125,1)-2)))","v":0},{"$f":"IF(ISERROR(FIND(BU$3,'CFR - XML import'!$A125)),0,VALUE(MID('CFR - XML import'!$A125,SEARCH(\">\",'CFR - XML import'!$A125,1)+1,SEARCH(\"/\",'CFR - XML import'!$A125,1)-SEARCH(\">\",'CFR - XML import'!$A125,1)-2)))","v":0},{"$f":"IF(ISERROR(FIND(BV$3,'CFR - XML import'!$A125)),0,VALUE(MID('CFR - XML import'!$A125,SEARCH(\">\",'CFR - XML import'!$A125,1)+1,SEARCH(\"/\",'CFR - XML import'!$A125,1)-SEARCH(\">\",'CFR - XML import'!$A125,1)-2)))","v":0},{"$f":"IF(ISERROR(FIND(BW$3,'CFR - XML import'!$A125)),0,VALUE(MID('CFR - XML import'!$A125,SEARCH(\">\",'CFR - XML import'!$A125,1)+1,SEARCH(\"/\",'CFR - XML import'!$A125,1)-SEARCH(\">\",'CFR - XML import'!$A125,1)-2)))","v":0},{"$f":"IF(ISERROR(FIND(BX$3,'CFR - XML import'!$A125)),0,VALUE(MID('CFR - XML import'!$A125,SEARCH(\">\",'CFR - XML import'!$A125,1)+1,SEARCH(\"/\",'CFR - XML import'!$A125,1)-SEARCH(\">\",'CFR - XML import'!$A125,1)-2)))","v":0},{"$f":"IF(ISERROR(FIND(BY$3,'CFR - XML import'!$A125)),0,VALUE(MID('CFR - XML import'!$A125,SEARCH(\">\",'CFR - XML import'!$A125,1)+1,SEARCH(\"/\",'CFR - XML import'!$A125,1)-SEARCH(\">\",'CFR - XML import'!$A125,1)-2)))","v":0},{"$f":"IF(ISERROR(FIND(BZ$3,'CFR - XML import'!$A125)),0,VALUE(MID('CFR - XML import'!$A125,SEARCH(\">\",'CFR - XML import'!$A125,1)+1,SEARCH(\"/\",'CFR - XML import'!$A125,1)-SEARCH(\">\",'CFR - XML import'!$A125,1)-2)))","v":0},null,null,null,null,null,null,{"$f":"IF(ISERROR(IF(MID('CFR - XML import'!$A125,LEN($CF$4)+1,LEN('CFR - XML import'!$A125)-(2*LEN($CF$4)+1))=\"RMMS\",1,IF(MID('CFR - XML import'!$A125,LEN(\"    <InputSystem>\")+1,LEN('CFR - XML import'!$A125)-(LEN(\"    <InputSystem>\")+LEN($CF$4)+1))=\"SIMS\",2,0))),0,IF(MID('CFR - XML import'!$A125,LEN($CF$4)+1,LEN('CFR - XML import'!$A125)-(2*LEN($CF$4)+1))=\"RMMS\",1,IF(MID('CFR - XML import'!$A125,LEN(\"    <InputSystem>\")+1,LEN('CFR - XML import'!$A125)-(LEN(\"    <InputSystem>\")+LEN($CF$4)+1))=\"SIMS\",2,0)))","v":0},{"$f":"IF(ISERROR(FIND(CH$3,'CFR - XML import'!$A125)),0,MID('CFR - XML import'!$A125,SEARCH(\">\",'CFR - XML import'!$A125,1)+1,SEARCH(\"/\",'CFR - XML import'!$A125,1)-SEARCH(\">\",'CFR - XML import'!$A125,1)-2))","v":0},{"$f":"IF(ISERROR(FIND(CI$3,'CFR - XML import'!$A125)),0,MID('CFR - XML import'!$A125,SEARCH(\">\",'CFR - XML import'!$A125,1)+1,SEARCH(\"/\",'CFR - XML import'!$A125,1)-SEARCH(\">\",'CFR - XML import'!$A125,1)-2))","v":0},{"$f":"IF(ISERROR(FIND(CJ$3,'CFR - XML import'!$A125)),0,MID('CFR - XML import'!$A125,SEARCH(\">\",'CFR - XML import'!$A125,1)+1,SEARCH(\"/\",'CFR - XML import'!$A125,1)-SEARCH(\">\",'CFR - XML import'!$A125,1)-2))","v":0},{"$f":"IF(ISERROR(FIND(CK$3,'CFR - XML import'!$A125)),0,MID('CFR - XML import'!$A125,SEARCH(\">\",'CFR - XML import'!$A125,1)+1,SEARCH(\"/\",'CFR - XML import'!$A125,1)-SEARCH(\">\",'CFR - XML import'!$A125,1)-2))","v":0},{"$f":"IF(ISERROR(FIND(CL$3,'CFR - XML import'!$A125)),0,MID('CFR - XML import'!$A125,SEARCH(\">\",'CFR - XML import'!$A125,1)+1,SEARCH(\"/\",'CFR - XML import'!$A125,1)-SEARCH(\">\",'CFR - XML import'!$A125,1)-2))","v":0}]
[{"$f":"IF(AND('CFR - XML import'!A126<>\"\",LEFT('CFR - XML import'!A126,1)<>\"<\",LEFT('CFR - XML import'!A126,3)<>\"  <\",LEFT('CFR - XML import'!A126,5)<>\"    <\",LEFT('CFR - XML import'!A126,7)<>\"      <\",LEFT('CFR - XML import'!A126,9)<>\"        <\",$B$1=\"SIMS\"),'CFR - XML import'!A126,IF(AND(LEFT('CFR - XML import'!A126,9)=\"<Details>\",$B$1=\"RM\"),'CFR - XML import'!A126,\"\"))","v":""},{"$f":"IF(ISERROR(FIND(B$3,'CFR - XML import'!$A126)),0,VALUE(MID('CFR - XML import'!$A126,SEARCH(\">\",'CFR - XML import'!$A126,1)+1,SEARCH(\"/\",'CFR - XML import'!$A126,1)-SEARCH(\">\",'CFR - XML import'!$A126,1)-2)))","v":0},null,{"$f":"IF(ISERROR(FIND(D$3,'CFR - XML import'!$A126)),0,MID('CFR - XML import'!$A126,SEARCH(\">\",'CFR - XML import'!$A126,1)+1,SEARCH(\"/\",'CFR - XML import'!$A126,1)-SEARCH(\">\",'CFR - XML import'!$A126,1)-2))","v":0},{"$f":"IF(ISERROR(FIND(E$3,'CFR - XML import'!$A126)),0,MID('CFR - XML import'!$A126,SEARCH(\">\",'CFR - XML import'!$A126,1)+1,SEARCH(\"/\",'CFR - XML import'!$A126,1)-SEARCH(\">\",'CFR - XML import'!$A126,1)-2))","v":0},{"$f":"IF($B$1=\"SIMS\",IF(ISERROR(FIND(F$3,'CFR - XML import'!$A126)),0,VALUE(MID('CFR - XML import'!$A126,15,10))),IF(ISERROR(FIND(F$3,'CFR - XML import'!$A126)),0,VALUE(MID('CFR - XML import'!$A126,11,10))))","v":"00:00:00"},{"$f":"IF(ISERROR(FIND(G$3,'CFR - XML import'!$A126)),0,VALUE(MID('CFR - XML import'!$A126,SEARCH(\">\",'CFR - XML import'!$A126,1)+1,SEARCH(\"/\",'CFR - XML import'!$A126,1)-SEARCH(\">\",'CFR - XML import'!$A126,1)-2)))","v":0},{"$f":"IF(ISERROR(FIND(H$3,'CFR - XML import'!$A126)),0,VALUE(MID('CFR - XML import'!$A126,SEARCH(\">\",'CFR - XML import'!$A126,1)+1,SEARCH(\"/\",'CFR - XML import'!$A126,1)-SEARCH(\">\",'CFR - XML import'!$A126,1)-2)))","v":0},{"$f":"IF(ISERROR(FIND(I$3,'CFR - XML import'!$A126)),0,VALUE(MID('CFR - XML import'!$A126,SEARCH(\">\",'CFR - XML import'!$A126,1)+1,SEARCH(\"/\",'CFR - XML import'!$A126,1)-SEARCH(\">\",'CFR - XML import'!$A126,1)-2)))","v":0},{"$f":"IF(ISERROR(FIND(J$3,'CFR - XML import'!$A126)),0,VALUE(MID('CFR - XML import'!$A126,SEARCH(\">\",'CFR - XML import'!$A126,1)+1,SEARCH(\"/\",'CFR - XML import'!$A126,1)-SEARCH(\">\",'CFR - XML import'!$A126,1)-2)))","v":0},{"$f":"IF(ISERROR(FIND(K$3,'CFR - XML import'!$A126)),0,VALUE(MID('CFR - XML import'!$A126,SEARCH(\">\",'CFR - XML import'!$A126,1)+1,SEARCH(\"/\",'CFR - XML import'!$A126,1)-SEARCH(\">\",'CFR - XML import'!$A126,1)-2)))","v":0},{"$f":"IF(ISERROR(FIND(L$3,'CFR - XML import'!$A126)),0,VALUE(MID('CFR - XML import'!$A126,SEARCH(\">\",'CFR - XML import'!$A126,1)+1,SEARCH(\"/\",'CFR - XML import'!$A126,1)-SEARCH(\">\",'CFR - XML import'!$A126,1)-2)))","v":0},{"$f":"IF(ISERROR(FIND(M$3,'CFR - XML import'!$A126)),0,VALUE(MID('CFR - XML import'!$A126,SEARCH(\">\",'CFR - XML import'!$A126,1)+1,SEARCH(\"/\",'CFR - XML import'!$A126,1)-SEARCH(\">\",'CFR - XML import'!$A126,1)-2)))","v":0},{"$f":"IF(ISERROR(FIND(N$3,'CFR - XML import'!$A126)),0,VALUE(MID('CFR - XML import'!$A126,SEARCH(\">\",'CFR - XML import'!$A126,1)+1,SEARCH(\"/\",'CFR - XML import'!$A126,1)-SEARCH(\">\",'CFR - XML import'!$A126,1)-2)))","v":0},{"$f":"IF(ISERROR(FIND(O$3,'CFR - XML import'!$A126)),0,VALUE(MID('CFR - XML import'!$A126,SEARCH(\">\",'CFR - XML import'!$A126,1)+1,SEARCH(\"/\",'CFR - XML import'!$A126,1)-SEARCH(\">\",'CFR - XML import'!$A126,1)-2)))","v":0},{"$f":"IF(ISERROR(FIND(P$3,'CFR - XML import'!$A126)),0,VALUE(MID('CFR - XML import'!$A126,SEARCH(\">\",'CFR - XML import'!$A126,1)+1,SEARCH(\"/\",'CFR - XML import'!$A126,1)-SEARCH(\">\",'CFR - XML import'!$A126,1)-2)))","v":0},{"$f":"IF(ISERROR(FIND(Q$3,'CFR - XML import'!$A126)),0,VALUE(MID('CFR - XML import'!$A126,SEARCH(\">\",'CFR - XML import'!$A126,1)+1,SEARCH(\"/\",'CFR - XML import'!$A126,1)-SEARCH(\">\",'CFR - XML import'!$A126,1)-2)))","v":0},{"$f":"IF(ISERROR(FIND(R$3,'CFR - XML import'!$A126)),0,VALUE(MID('CFR - XML import'!$A126,SEARCH(\">\",'CFR - XML import'!$A126,1)+1,SEARCH(\"/\",'CFR - XML import'!$A126,1)-SEARCH(\">\",'CFR - XML import'!$A126,1)-2)))","v":0},{"$f":"IF(ISERROR(FIND(S$3,'CFR - XML import'!$A126)),0,VALUE(MID('CFR - XML import'!$A126,SEARCH(\">\",'CFR - XML import'!$A126,1)+1,SEARCH(\"/\",'CFR - XML import'!$A126,1)-SEARCH(\">\",'CFR - XML import'!$A126,1)-2)))","v":0},{"$f":"IF(ISERROR(FIND(T$3,'CFR - XML import'!$A126)),0,VALUE(MID('CFR - XML import'!$A126,SEARCH(\">\",'CFR - XML import'!$A126,1)+1,SEARCH(\"/\",'CFR - XML import'!$A126,1)-SEARCH(\">\",'CFR - XML import'!$A126,1)-2)))","v":0},{"$f":"IF(ISERROR(FIND(U$3,'CFR - XML import'!$A126)),0,VALUE(MID('CFR - XML import'!$A126,SEARCH(\">\",'CFR - XML import'!$A126,1)+1,SEARCH(\"/\",'CFR - XML import'!$A126,1)-SEARCH(\">\",'CFR - XML import'!$A126,1)-2)))","v":0},{"$f":"IF(ISERROR(FIND(V$3,'CFR - XML import'!$A126)),0,VALUE(MID('CFR - XML import'!$A126,SEARCH(\">\",'CFR - XML import'!$A126,1)+1,SEARCH(\"/\",'CFR - XML import'!$A126,1)-SEARCH(\">\",'CFR - XML import'!$A126,1)-2)))","v":0},{"$f":"IF(ISERROR(FIND(W$3,'CFR - XML import'!$A126)),0,VALUE(MID('CFR - XML import'!$A126,SEARCH(\">\",'CFR - XML import'!$A126,1)+1,SEARCH(\"/\",'CFR - XML import'!$A126,1)-SEARCH(\">\",'CFR - XML import'!$A126,1)-2)))","v":0},null,{"$f":"IF(ISERROR(FIND(Y$3,'CFR - XML import'!$A126)),0,VALUE(MID('CFR - XML import'!$A126,SEARCH(\">\",'CFR - XML import'!$A126,1)+1,SEARCH(\"/\",'CFR - XML import'!$A126,1)-SEARCH(\">\",'CFR - XML import'!$A126,1)-2)))","v":0},{"$f":"IF(ISERROR(FIND(Z$3,'CFR - XML import'!$A126)),0,VALUE(MID('CFR - XML import'!$A126,SEARCH(\">\",'CFR - XML import'!$A126,1)+1,SEARCH(\"/\",'CFR - XML import'!$A126,1)-SEARCH(\">\",'CFR - XML import'!$A126,1)-2)))","v":0},{"$f":"IF(ISERROR(FIND(AA$3,'CFR - XML import'!$A126)),0,VALUE(MID('CFR - XML import'!$A126,SEARCH(\">\",'CFR - XML import'!$A126,1)+1,SEARCH(\"/\",'CFR - XML import'!$A126,1)-SEARCH(\">\",'CFR - XML import'!$A126,1)-2)))","v":0},{"$f":"IF(ISERROR(FIND(AB$3,'CFR - XML import'!$A126)),0,VALUE(MID('CFR - XML import'!$A126,SEARCH(\">\",'CFR - XML import'!$A126,1)+1,SEARCH(\"/\",'CFR - XML import'!$A126,1)-SEARCH(\">\",'CFR - XML import'!$A126,1)-2)))","v":0},{"$f":"IF(ISERROR(FIND(AC$3,'CFR - XML import'!$A126)),0,VALUE(MID('CFR - XML import'!$A126,SEARCH(\">\",'CFR - XML import'!$A126,1)+1,SEARCH(\"/\",'CFR - XML import'!$A126,1)-SEARCH(\">\",'CFR - XML import'!$A126,1)-2)))","v":0},{"$f":"IF(ISERROR(FIND(AD$3,'CFR - XML import'!$A126)),0,VALUE(MID('CFR - XML import'!$A126,SEARCH(\">\",'CFR - XML import'!$A126,1)+1,SEARCH(\"/\",'CFR - XML import'!$A126,1)-SEARCH(\">\",'CFR - XML import'!$A126,1)-2)))","v":0},{"$f":"IF(ISERROR(FIND(AE$3,'CFR - XML import'!$A126)),0,VALUE(MID('CFR - XML import'!$A126,SEARCH(\">\",'CFR - XML import'!$A126,1)+1,SEARCH(\"/\",'CFR - XML import'!$A126,1)-SEARCH(\">\",'CFR - XML import'!$A126,1)-2)))","v":0},{"$f":"IF(ISERROR(FIND(AF$3,'CFR - XML import'!$A126)),0,VALUE(MID('CFR - XML import'!$A126,SEARCH(\">\",'CFR - XML import'!$A126,1)+1,SEARCH(\"/\",'CFR - XML import'!$A126,1)-SEARCH(\">\",'CFR - XML import'!$A126,1)-2)))","v":0},{"$f":"IF(ISERROR(FIND(AG$3,'CFR - XML import'!$A126)),0,VALUE(MID('CFR - XML import'!$A126,SEARCH(\">\",'CFR - XML import'!$A126,1)+1,SEARCH(\"/\",'CFR - XML import'!$A126,1)-SEARCH(\">\",'CFR - XML import'!$A126,1)-2)))","v":0},{"$f":"IF(ISERROR(FIND(AH$3,'CFR - XML import'!$A126)),0,VALUE(MID('CFR - XML import'!$A126,SEARCH(\">\",'CFR - XML import'!$A126,1)+1,SEARCH(\"/\",'CFR - XML import'!$A126,1)-SEARCH(\">\",'CFR - XML import'!$A126,1)-2)))","v":0},{"$f":"IF(ISERROR(FIND(AI$3,'CFR - XML import'!$A126)),0,VALUE(MID('CFR - XML import'!$A126,SEARCH(\">\",'CFR - XML import'!$A126,1)+1,SEARCH(\"/\",'CFR - XML import'!$A126,1)-SEARCH(\">\",'CFR - XML import'!$A126,1)-2)))","v":0},{"$f":"IF(ISERROR(FIND(AJ$3,'CFR - XML import'!$A126)),0,VALUE(MID('CFR - XML import'!$A126,SEARCH(\">\",'CFR - XML import'!$A126,1)+1,SEARCH(\"/\",'CFR - XML import'!$A126,1)-SEARCH(\">\",'CFR - XML import'!$A126,1)-2)))","v":0},{"$f":"IF(ISERROR(FIND(AK$3,'CFR - XML import'!$A126)),0,VALUE(MID('CFR - XML import'!$A126,SEARCH(\">\",'CFR - XML import'!$A126,1)+1,SEARCH(\"/\",'CFR - XML import'!$A126,1)-SEARCH(\">\",'CFR - XML import'!$A126,1)-2)))","v":0},{"$f":"IF(ISERROR(FIND(AL$3,'CFR - XML import'!$A126)),0,VALUE(MID('CFR - XML import'!$A126,SEARCH(\">\",'CFR - XML import'!$A126,1)+1,SEARCH(\"/\",'CFR - XML import'!$A126,1)-SEARCH(\">\",'CFR - XML import'!$A126,1)-2)))","v":0},{"$f":"IF(ISERROR(FIND(AM$3,'CFR - XML import'!$A126)),0,VALUE(MID('CFR - XML import'!$A126,SEARCH(\">\",'CFR - XML import'!$A126,1)+1,SEARCH(\"/\",'CFR - XML import'!$A126,1)-SEARCH(\">\",'CFR - XML import'!$A126,1)-2)))","v":0},{"$f":"IF(ISERROR(FIND(AN$3,'CFR - XML import'!$A126)),0,VALUE(MID('CFR - XML import'!$A126,SEARCH(\">\",'CFR - XML import'!$A126,1)+1,SEARCH(\"/\",'CFR - XML import'!$A126,1)-SEARCH(\">\",'CFR - XML import'!$A126,1)-2)))","v":0},{"$f":"IF(ISERROR(FIND(AO$3,'CFR - XML import'!$A126)),0,VALUE(MID('CFR - XML import'!$A126,SEARCH(\">\",'CFR - XML import'!$A126,1)+1,SEARCH(\"/\",'CFR - XML import'!$A126,1)-SEARCH(\">\",'CFR - XML import'!$A126,1)-2)))","v":0},{"$f":"IF(ISERROR(FIND(AP$3,'CFR - XML import'!$A126)),0,VALUE(MID('CFR - XML import'!$A126,SEARCH(\">\",'CFR - XML import'!$A126,1)+1,SEARCH(\"/\",'CFR - XML import'!$A126,1)-SEARCH(\">\",'CFR - XML import'!$A126,1)-2)))","v":0},{"$f":"IF(ISERROR(FIND(AQ$3,'CFR - XML import'!$A126)),0,VALUE(MID('CFR - XML import'!$A126,SEARCH(\">\",'CFR - XML import'!$A126,1)+1,SEARCH(\"/\",'CFR - XML import'!$A126,1)-SEARCH(\">\",'CFR - XML import'!$A126,1)-2)))","v":0},{"$f":"IF(ISERROR(FIND(AR$3,'CFR - XML import'!$A126)),0,VALUE(MID('CFR - XML import'!$A126,SEARCH(\">\",'CFR - XML import'!$A126,1)+1,SEARCH(\"/\",'CFR - XML import'!$A126,1)-SEARCH(\">\",'CFR - XML import'!$A126,1)-2)))","v":0},{"$f":"IF(ISERROR(FIND(AS$3,'CFR - XML import'!$A126)),0,VALUE(MID('CFR - XML import'!$A126,SEARCH(\">\",'CFR - XML import'!$A126,1)+1,SEARCH(\"/\",'CFR - XML import'!$A126,1)-SEARCH(\">\",'CFR - XML import'!$A126,1)-2)))","v":0},{"$f":"IF(ISERROR(FIND(AT$3,'CFR - XML import'!$A126)),0,VALUE(MID('CFR - XML import'!$A126,SEARCH(\">\",'CFR - XML import'!$A126,1)+1,SEARCH(\"/\",'CFR - XML import'!$A126,1)-SEARCH(\">\",'CFR - XML import'!$A126,1)-2)))","v":0},{"$f":"IF(ISERROR(FIND(AU$3,'CFR - XML import'!$A126)),0,VALUE(MID('CFR - XML import'!$A126,SEARCH(\">\",'CFR - XML import'!$A126,1)+1,SEARCH(\"/\",'CFR - XML import'!$A126,1)-SEARCH(\">\",'CFR - XML import'!$A126,1)-2)))","v":0},{"$f":"IF(ISERROR(FIND(AV$3,'CFR - XML import'!$A126)),0,VALUE(MID('CFR - XML import'!$A126,SEARCH(\">\",'CFR - XML import'!$A126,1)+1,SEARCH(\"/\",'CFR - XML import'!$A126,1)-SEARCH(\">\",'CFR - XML import'!$A126,1)-2)))","v":0},{"$f":"IF(ISERROR(FIND(AW$3,'CFR - XML import'!$A126)),0,VALUE(MID('CFR - XML import'!$A126,SEARCH(\">\",'CFR - XML import'!$A126,1)+1,SEARCH(\"/\",'CFR - XML import'!$A126,1)-SEARCH(\">\",'CFR - XML import'!$A126,1)-2)))","v":0},{"$f":"IF(ISERROR(FIND(AX$3,'CFR - XML import'!$A126)),0,VALUE(MID('CFR - XML import'!$A126,SEARCH(\">\",'CFR - XML import'!$A126,1)+1,SEARCH(\"/\",'CFR - XML import'!$A126,1)-SEARCH(\">\",'CFR - XML import'!$A126,1)-2)))","v":0},{"$f":"IF(ISERROR(FIND(AY$3,'CFR - XML import'!$A126)),0,VALUE(MID('CFR - XML import'!$A126,SEARCH(\">\",'CFR - XML import'!$A126,1)+1,SEARCH(\"/\",'CFR - XML import'!$A126,1)-SEARCH(\">\",'CFR - XML import'!$A126,1)-2)))","v":0},{"$f":"IF(ISERROR(FIND(AZ$3,'CFR - XML import'!$A126)),0,VALUE(MID('CFR - XML import'!$A126,SEARCH(\">\",'CFR - XML import'!$A126,1)+1,SEARCH(\"/\",'CFR - XML import'!$A126,1)-SEARCH(\">\",'CFR - XML import'!$A126,1)-2)))","v":0},{"$f":"IF(ISERROR(FIND(BA$3,'CFR - XML import'!$A126)),0,VALUE(MID('CFR - XML import'!$A126,SEARCH(\">\",'CFR - XML import'!$A126,1)+1,SEARCH(\"/\",'CFR - XML import'!$A126,1)-SEARCH(\">\",'CFR - XML import'!$A126,1)-2)))","v":0},{"$f":"IF(ISERROR(FIND(BB$3,'CFR - XML import'!$A126)),0,VALUE(MID('CFR - XML import'!$A126,SEARCH(\">\",'CFR - XML import'!$A126,1)+1,SEARCH(\"/\",'CFR - XML import'!$A126,1)-SEARCH(\">\",'CFR - XML import'!$A126,1)-2)))","v":0},{"$f":"IF(ISERROR(FIND(BC$3,'CFR - XML import'!$A126)),0,VALUE(MID('CFR - XML import'!$A126,SEARCH(\">\",'CFR - XML import'!$A126,1)+1,SEARCH(\"/\",'CFR - XML import'!$A126,1)-SEARCH(\">\",'CFR - XML import'!$A126,1)-2)))","v":0},{"$f":"IF(ISERROR(FIND(BD$3,'CFR - XML import'!$A126)),0,VALUE(MID('CFR - XML import'!$A126,SEARCH(\">\",'CFR - XML import'!$A126,1)+1,SEARCH(\"/\",'CFR - XML import'!$A126,1)-SEARCH(\">\",'CFR - XML import'!$A126,1)-2)))","v":0},{"$f":"IF(ISERROR(FIND(BE$3,'CFR - XML import'!$A126)),0,VALUE(MID('CFR - XML import'!$A126,SEARCH(\">\",'CFR - XML import'!$A126,1)+1,SEARCH(\"/\",'CFR - XML import'!$A126,1)-SEARCH(\">\",'CFR - XML import'!$A126,1)-2)))","v":0},{"$f":"IF(ISERROR(FIND(BF$3,'CFR - XML import'!$A126)),0,VALUE(MID('CFR - XML import'!$A126,SEARCH(\">\",'CFR - XML import'!$A126,1)+1,SEARCH(\"/\",'CFR - XML import'!$A126,1)-SEARCH(\">\",'CFR - XML import'!$A126,1)-2)))","v":0},{"$f":"IF(ISERROR(FIND(BG$3,'CFR - XML import'!$A126)),0,VALUE(MID('CFR - XML import'!$A126,SEARCH(\">\",'CFR - XML import'!$A126,1)+1,SEARCH(\"/\",'CFR - XML import'!$A126,1)-SEARCH(\">\",'CFR - XML import'!$A126,1)-2)))","v":0},{"$f":"IF(ISERROR(FIND(BH$3,'CFR - XML import'!$A126)),0,VALUE(MID('CFR - XML import'!$A126,SEARCH(\">\",'CFR - XML import'!$A126,1)+1,SEARCH(\"/\",'CFR - XML import'!$A126,1)-SEARCH(\">\",'CFR - XML import'!$A126,1)-2)))","v":0},{"$f":"IF(ISERROR(FIND(BI$3,'CFR - XML import'!$A126)),0,VALUE(MID('CFR - XML import'!$A126,SEARCH(\">\",'CFR - XML import'!$A126,1)+1,SEARCH(\"/\",'CFR - XML import'!$A126,1)-SEARCH(\">\",'CFR - XML import'!$A126,1)-2)))","v":0},{"$f":"IF(ISERROR(FIND(BJ$3,'CFR - XML import'!$A126)),0,VALUE(MID('CFR - XML import'!$A126,SEARCH(\">\",'CFR - XML import'!$A126,1)+1,SEARCH(\"/\",'CFR - XML import'!$A126,1)-SEARCH(\">\",'CFR - XML import'!$A126,1)-2)))","v":0},{"$f":"IF(ISERROR(FIND(BK$3,'CFR - XML import'!$A126)),0,VALUE(MID('CFR - XML import'!$A126,SEARCH(\">\",'CFR - XML import'!$A126,1)+1,SEARCH(\"/\",'CFR - XML import'!$A126,1)-SEARCH(\">\",'CFR - XML import'!$A126,1)-2)))","v":0},{"$f":"IF(ISERROR(FIND(BL$3,'CFR - XML import'!$A126)),0,VALUE(MID('CFR - XML import'!$A126,SEARCH(\">\",'CFR - XML import'!$A126,1)+1,SEARCH(\"/\",'CFR - XML import'!$A126,1)-SEARCH(\">\",'CFR - XML import'!$A126,1)-2)))","v":0},{"$f":"IF(ISERROR(FIND(BM$3,'CFR - XML import'!$A126)),0,VALUE(MID('CFR - XML import'!$A126,SEARCH(\">\",'CFR - XML import'!$A126,1)+1,SEARCH(\"/\",'CFR - XML import'!$A126,1)-SEARCH(\">\",'CFR - XML import'!$A126,1)-2)))","v":0},{"$f":"IF(ISERROR(FIND(BN$3,'CFR - XML import'!$A126)),0,VALUE(MID('CFR - XML import'!$A126,SEARCH(\">\",'CFR - XML import'!$A126,1)+1,SEARCH(\"/\",'CFR - XML import'!$A126,1)-SEARCH(\">\",'CFR - XML import'!$A126,1)-2)))","v":0},{"$f":"IF(ISERROR(FIND(BO$3,'CFR - XML import'!$A126)),0,VALUE(MID('CFR - XML import'!$A126,SEARCH(\">\",'CFR - XML import'!$A126,1)+1,SEARCH(\"/\",'CFR - XML import'!$A126,1)-SEARCH(\">\",'CFR - XML import'!$A126,1)-2)))","v":0},{"$f":"IF(ISERROR(FIND(BP$3,'CFR - XML import'!$A126)),0,VALUE(MID('CFR - XML import'!$A126,SEARCH(\">\",'CFR - XML import'!$A126,1)+1,SEARCH(\"/\",'CFR - XML import'!$A126,1)-SEARCH(\">\",'CFR - XML import'!$A126,1)-2)))","v":0},{"$f":"IF(ISERROR(FIND(BQ$3,'CFR - XML import'!$A126)),0,VALUE(MID('CFR - XML import'!$A126,SEARCH(\">\",'CFR - XML import'!$A126,1)+1,SEARCH(\"/\",'CFR - XML import'!$A126,1)-SEARCH(\">\",'CFR - XML import'!$A126,1)-2)))","v":0},{"$f":"IF(ISERROR(FIND(BR$3,'CFR - XML import'!$A126)),0,VALUE(MID('CFR - XML import'!$A126,SEARCH(\">\",'CFR - XML import'!$A126,1)+1,SEARCH(\"/\",'CFR - XML import'!$A126,1)-SEARCH(\">\",'CFR - XML import'!$A126,1)-2)))","v":0},{"$f":"IF(ISERROR(FIND(BS$3,'CFR - XML import'!$A126)),0,VALUE(MID('CFR - XML import'!$A126,SEARCH(\">\",'CFR - XML import'!$A126,1)+1,SEARCH(\"/\",'CFR - XML import'!$A126,1)-SEARCH(\">\",'CFR - XML import'!$A126,1)-2)))","v":0},{"$f":"IF(ISERROR(FIND(BT$3,'CFR - XML import'!$A126)),0,VALUE(MID('CFR - XML import'!$A126,SEARCH(\">\",'CFR - XML import'!$A126,1)+1,SEARCH(\"/\",'CFR - XML import'!$A126,1)-SEARCH(\">\",'CFR - XML import'!$A126,1)-2)))","v":0},{"$f":"IF(ISERROR(FIND(BU$3,'CFR - XML import'!$A126)),0,VALUE(MID('CFR - XML import'!$A126,SEARCH(\">\",'CFR - XML import'!$A126,1)+1,SEARCH(\"/\",'CFR - XML import'!$A126,1)-SEARCH(\">\",'CFR - XML import'!$A126,1)-2)))","v":0},{"$f":"IF(ISERROR(FIND(BV$3,'CFR - XML import'!$A126)),0,VALUE(MID('CFR - XML import'!$A126,SEARCH(\">\",'CFR - XML import'!$A126,1)+1,SEARCH(\"/\",'CFR - XML import'!$A126,1)-SEARCH(\">\",'CFR - XML import'!$A126,1)-2)))","v":0},{"$f":"IF(ISERROR(FIND(BW$3,'CFR - XML import'!$A126)),0,VALUE(MID('CFR - XML import'!$A126,SEARCH(\">\",'CFR - XML import'!$A126,1)+1,SEARCH(\"/\",'CFR - XML import'!$A126,1)-SEARCH(\">\",'CFR - XML import'!$A126,1)-2)))","v":0},{"$f":"IF(ISERROR(FIND(BX$3,'CFR - XML import'!$A126)),0,VALUE(MID('CFR - XML import'!$A126,SEARCH(\">\",'CFR - XML import'!$A126,1)+1,SEARCH(\"/\",'CFR - XML import'!$A126,1)-SEARCH(\">\",'CFR - XML import'!$A126,1)-2)))","v":0},{"$f":"IF(ISERROR(FIND(BY$3,'CFR - XML import'!$A126)),0,VALUE(MID('CFR - XML import'!$A126,SEARCH(\">\",'CFR - XML import'!$A126,1)+1,SEARCH(\"/\",'CFR - XML import'!$A126,1)-SEARCH(\">\",'CFR - XML import'!$A126,1)-2)))","v":0},{"$f":"IF(ISERROR(FIND(BZ$3,'CFR - XML import'!$A126)),0,VALUE(MID('CFR - XML import'!$A126,SEARCH(\">\",'CFR - XML import'!$A126,1)+1,SEARCH(\"/\",'CFR - XML import'!$A126,1)-SEARCH(\">\",'CFR - XML import'!$A126,1)-2)))","v":0},null,null,null,null,null,null,{"$f":"IF(ISERROR(IF(MID('CFR - XML import'!$A126,LEN($CF$4)+1,LEN('CFR - XML import'!$A126)-(2*LEN($CF$4)+1))=\"RMMS\",1,IF(MID('CFR - XML import'!$A126,LEN(\"    <InputSystem>\")+1,LEN('CFR - XML import'!$A126)-(LEN(\"    <InputSystem>\")+LEN($CF$4)+1))=\"SIMS\",2,0))),0,IF(MID('CFR - XML import'!$A126,LEN($CF$4)+1,LEN('CFR - XML import'!$A126)-(2*LEN($CF$4)+1))=\"RMMS\",1,IF(MID('CFR - XML import'!$A126,LEN(\"    <InputSystem>\")+1,LEN('CFR - XML import'!$A126)-(LEN(\"    <InputSystem>\")+LEN($CF$4)+1))=\"SIMS\",2,0)))","v":0},{"$f":"IF(ISERROR(FIND(CH$3,'CFR - XML import'!$A126)),0,MID('CFR - XML import'!$A126,SEARCH(\">\",'CFR - XML import'!$A126,1)+1,SEARCH(\"/\",'CFR - XML import'!$A126,1)-SEARCH(\">\",'CFR - XML import'!$A126,1)-2))","v":0},{"$f":"IF(ISERROR(FIND(CI$3,'CFR - XML import'!$A126)),0,MID('CFR - XML import'!$A126,SEARCH(\">\",'CFR - XML import'!$A126,1)+1,SEARCH(\"/\",'CFR - XML import'!$A126,1)-SEARCH(\">\",'CFR - XML import'!$A126,1)-2))","v":0},{"$f":"IF(ISERROR(FIND(CJ$3,'CFR - XML import'!$A126)),0,MID('CFR - XML import'!$A126,SEARCH(\">\",'CFR - XML import'!$A126,1)+1,SEARCH(\"/\",'CFR - XML import'!$A126,1)-SEARCH(\">\",'CFR - XML import'!$A126,1)-2))","v":0},{"$f":"IF(ISERROR(FIND(CK$3,'CFR - XML import'!$A126)),0,MID('CFR - XML import'!$A126,SEARCH(\">\",'CFR - XML import'!$A126,1)+1,SEARCH(\"/\",'CFR - XML import'!$A126,1)-SEARCH(\">\",'CFR - XML import'!$A126,1)-2))","v":0},{"$f":"IF(ISERROR(FIND(CL$3,'CFR - XML import'!$A126)),0,MID('CFR - XML import'!$A126,SEARCH(\">\",'CFR - XML import'!$A126,1)+1,SEARCH(\"/\",'CFR - XML import'!$A126,1)-SEARCH(\">\",'CFR - XML import'!$A126,1)-2))","v":0}]
[{"$f":"IF(AND('CFR - XML import'!A127<>\"\",LEFT('CFR - XML import'!A127,1)<>\"<\",LEFT('CFR - XML import'!A127,3)<>\"  <\",LEFT('CFR - XML import'!A127,5)<>\"    <\",LEFT('CFR - XML import'!A127,7)<>\"      <\",LEFT('CFR - XML import'!A127,9)<>\"        <\",$B$1=\"SIMS\"),'CFR - XML import'!A127,IF(AND(LEFT('CFR - XML import'!A127,9)=\"<Details>\",$B$1=\"RM\"),'CFR - XML import'!A127,\"\"))","v":""},{"$f":"IF(ISERROR(FIND(B$3,'CFR - XML import'!$A127)),0,VALUE(MID('CFR - XML import'!$A127,SEARCH(\">\",'CFR - XML import'!$A127,1)+1,SEARCH(\"/\",'CFR - XML import'!$A127,1)-SEARCH(\">\",'CFR - XML import'!$A127,1)-2)))","v":0},null,{"$f":"IF(ISERROR(FIND(D$3,'CFR - XML import'!$A127)),0,MID('CFR - XML import'!$A127,SEARCH(\">\",'CFR - XML import'!$A127,1)+1,SEARCH(\"/\",'CFR - XML import'!$A127,1)-SEARCH(\">\",'CFR - XML import'!$A127,1)-2))","v":0},{"$f":"IF(ISERROR(FIND(E$3,'CFR - XML import'!$A127)),0,MID('CFR - XML import'!$A127,SEARCH(\">\",'CFR - XML import'!$A127,1)+1,SEARCH(\"/\",'CFR - XML import'!$A127,1)-SEARCH(\">\",'CFR - XML import'!$A127,1)-2))","v":0},{"$f":"IF($B$1=\"SIMS\",IF(ISERROR(FIND(F$3,'CFR - XML import'!$A127)),0,VALUE(MID('CFR - XML import'!$A127,15,10))),IF(ISERROR(FIND(F$3,'CFR - XML import'!$A127)),0,VALUE(MID('CFR - XML import'!$A127,11,10))))","v":"00:00:00"},{"$f":"IF(ISERROR(FIND(G$3,'CFR - XML import'!$A127)),0,VALUE(MID('CFR - XML import'!$A127,SEARCH(\">\",'CFR - XML import'!$A127,1)+1,SEARCH(\"/\",'CFR - XML import'!$A127,1)-SEARCH(\">\",'CFR - XML import'!$A127,1)-2)))","v":0},{"$f":"IF(ISERROR(FIND(H$3,'CFR - XML import'!$A127)),0,VALUE(MID('CFR - XML import'!$A127,SEARCH(\">\",'CFR - XML import'!$A127,1)+1,SEARCH(\"/\",'CFR - XML import'!$A127,1)-SEARCH(\">\",'CFR - XML import'!$A127,1)-2)))","v":0},{"$f":"IF(ISERROR(FIND(I$3,'CFR - XML import'!$A127)),0,VALUE(MID('CFR - XML import'!$A127,SEARCH(\">\",'CFR - XML import'!$A127,1)+1,SEARCH(\"/\",'CFR - XML import'!$A127,1)-SEARCH(\">\",'CFR - XML import'!$A127,1)-2)))","v":0},{"$f":"IF(ISERROR(FIND(J$3,'CFR - XML import'!$A127)),0,VALUE(MID('CFR - XML import'!$A127,SEARCH(\">\",'CFR - XML import'!$A127,1)+1,SEARCH(\"/\",'CFR - XML import'!$A127,1)-SEARCH(\">\",'CFR - XML import'!$A127,1)-2)))","v":0},{"$f":"IF(ISERROR(FIND(K$3,'CFR - XML import'!$A127)),0,VALUE(MID('CFR - XML import'!$A127,SEARCH(\">\",'CFR - XML import'!$A127,1)+1,SEARCH(\"/\",'CFR - XML import'!$A127,1)-SEARCH(\">\",'CFR - XML import'!$A127,1)-2)))","v":0},{"$f":"IF(ISERROR(FIND(L$3,'CFR - XML import'!$A127)),0,VALUE(MID('CFR - XML import'!$A127,SEARCH(\">\",'CFR - XML import'!$A127,1)+1,SEARCH(\"/\",'CFR - XML import'!$A127,1)-SEARCH(\">\",'CFR - XML import'!$A127,1)-2)))","v":0},{"$f":"IF(ISERROR(FIND(M$3,'CFR - XML import'!$A127)),0,VALUE(MID('CFR - XML import'!$A127,SEARCH(\">\",'CFR - XML import'!$A127,1)+1,SEARCH(\"/\",'CFR - XML import'!$A127,1)-SEARCH(\">\",'CFR - XML import'!$A127,1)-2)))","v":0},{"$f":"IF(ISERROR(FIND(N$3,'CFR - XML import'!$A127)),0,VALUE(MID('CFR - XML import'!$A127,SEARCH(\">\",'CFR - XML import'!$A127,1)+1,SEARCH(\"/\",'CFR - XML import'!$A127,1)-SEARCH(\">\",'CFR - XML import'!$A127,1)-2)))","v":0},{"$f":"IF(ISERROR(FIND(O$3,'CFR - XML import'!$A127)),0,VALUE(MID('CFR - XML import'!$A127,SEARCH(\">\",'CFR - XML import'!$A127,1)+1,SEARCH(\"/\",'CFR - XML import'!$A127,1)-SEARCH(\">\",'CFR - XML import'!$A127,1)-2)))","v":0},{"$f":"IF(ISERROR(FIND(P$3,'CFR - XML import'!$A127)),0,VALUE(MID('CFR - XML import'!$A127,SEARCH(\">\",'CFR - XML import'!$A127,1)+1,SEARCH(\"/\",'CFR - XML import'!$A127,1)-SEARCH(\">\",'CFR - XML import'!$A127,1)-2)))","v":0},{"$f":"IF(ISERROR(FIND(Q$3,'CFR - XML import'!$A127)),0,VALUE(MID('CFR - XML import'!$A127,SEARCH(\">\",'CFR - XML import'!$A127,1)+1,SEARCH(\"/\",'CFR - XML import'!$A127,1)-SEARCH(\">\",'CFR - XML import'!$A127,1)-2)))","v":0},{"$f":"IF(ISERROR(FIND(R$3,'CFR - XML import'!$A127)),0,VALUE(MID('CFR - XML import'!$A127,SEARCH(\">\",'CFR - XML import'!$A127,1)+1,SEARCH(\"/\",'CFR - XML import'!$A127,1)-SEARCH(\">\",'CFR - XML import'!$A127,1)-2)))","v":0},{"$f":"IF(ISERROR(FIND(S$3,'CFR - XML import'!$A127)),0,VALUE(MID('CFR - XML import'!$A127,SEARCH(\">\",'CFR - XML import'!$A127,1)+1,SEARCH(\"/\",'CFR - XML import'!$A127,1)-SEARCH(\">\",'CFR - XML import'!$A127,1)-2)))","v":0},{"$f":"IF(ISERROR(FIND(T$3,'CFR - XML import'!$A127)),0,VALUE(MID('CFR - XML import'!$A127,SEARCH(\">\",'CFR - XML import'!$A127,1)+1,SEARCH(\"/\",'CFR - XML import'!$A127,1)-SEARCH(\">\",'CFR - XML import'!$A127,1)-2)))","v":0},{"$f":"IF(ISERROR(FIND(U$3,'CFR - XML import'!$A127)),0,VALUE(MID('CFR - XML import'!$A127,SEARCH(\">\",'CFR - XML import'!$A127,1)+1,SEARCH(\"/\",'CFR - XML import'!$A127,1)-SEARCH(\">\",'CFR - XML import'!$A127,1)-2)))","v":0},{"$f":"IF(ISERROR(FIND(V$3,'CFR - XML import'!$A127)),0,VALUE(MID('CFR - XML import'!$A127,SEARCH(\">\",'CFR - XML import'!$A127,1)+1,SEARCH(\"/\",'CFR - XML import'!$A127,1)-SEARCH(\">\",'CFR - XML import'!$A127,1)-2)))","v":0},{"$f":"IF(ISERROR(FIND(W$3,'CFR - XML import'!$A127)),0,VALUE(MID('CFR - XML import'!$A127,SEARCH(\">\",'CFR - XML import'!$A127,1)+1,SEARCH(\"/\",'CFR - XML import'!$A127,1)-SEARCH(\">\",'CFR - XML import'!$A127,1)-2)))","v":0},null,{"$f":"IF(ISERROR(FIND(Y$3,'CFR - XML import'!$A127)),0,VALUE(MID('CFR - XML import'!$A127,SEARCH(\">\",'CFR - XML import'!$A127,1)+1,SEARCH(\"/\",'CFR - XML import'!$A127,1)-SEARCH(\">\",'CFR - XML import'!$A127,1)-2)))","v":0},{"$f":"IF(ISERROR(FIND(Z$3,'CFR - XML import'!$A127)),0,VALUE(MID('CFR - XML import'!$A127,SEARCH(\">\",'CFR - XML import'!$A127,1)+1,SEARCH(\"/\",'CFR - XML import'!$A127,1)-SEARCH(\">\",'CFR - XML import'!$A127,1)-2)))","v":0},{"$f":"IF(ISERROR(FIND(AA$3,'CFR - XML import'!$A127)),0,VALUE(MID('CFR - XML import'!$A127,SEARCH(\">\",'CFR - XML import'!$A127,1)+1,SEARCH(\"/\",'CFR - XML import'!$A127,1)-SEARCH(\">\",'CFR - XML import'!$A127,1)-2)))","v":0},{"$f":"IF(ISERROR(FIND(AB$3,'CFR - XML import'!$A127)),0,VALUE(MID('CFR - XML import'!$A127,SEARCH(\">\",'CFR - XML import'!$A127,1)+1,SEARCH(\"/\",'CFR - XML import'!$A127,1)-SEARCH(\">\",'CFR - XML import'!$A127,1)-2)))","v":0},{"$f":"IF(ISERROR(FIND(AC$3,'CFR - XML import'!$A127)),0,VALUE(MID('CFR - XML import'!$A127,SEARCH(\">\",'CFR - XML import'!$A127,1)+1,SEARCH(\"/\",'CFR - XML import'!$A127,1)-SEARCH(\">\",'CFR - XML import'!$A127,1)-2)))","v":0},{"$f":"IF(ISERROR(FIND(AD$3,'CFR - XML import'!$A127)),0,VALUE(MID('CFR - XML import'!$A127,SEARCH(\">\",'CFR - XML import'!$A127,1)+1,SEARCH(\"/\",'CFR - XML import'!$A127,1)-SEARCH(\">\",'CFR - XML import'!$A127,1)-2)))","v":0},{"$f":"IF(ISERROR(FIND(AE$3,'CFR - XML import'!$A127)),0,VALUE(MID('CFR - XML import'!$A127,SEARCH(\">\",'CFR - XML import'!$A127,1)+1,SEARCH(\"/\",'CFR - XML import'!$A127,1)-SEARCH(\">\",'CFR - XML import'!$A127,1)-2)))","v":0},{"$f":"IF(ISERROR(FIND(AF$3,'CFR - XML import'!$A127)),0,VALUE(MID('CFR - XML import'!$A127,SEARCH(\">\",'CFR - XML import'!$A127,1)+1,SEARCH(\"/\",'CFR - XML import'!$A127,1)-SEARCH(\">\",'CFR - XML import'!$A127,1)-2)))","v":0},{"$f":"IF(ISERROR(FIND(AG$3,'CFR - XML import'!$A127)),0,VALUE(MID('CFR - XML import'!$A127,SEARCH(\">\",'CFR - XML import'!$A127,1)+1,SEARCH(\"/\",'CFR - XML import'!$A127,1)-SEARCH(\">\",'CFR - XML import'!$A127,1)-2)))","v":0},{"$f":"IF(ISERROR(FIND(AH$3,'CFR - XML import'!$A127)),0,VALUE(MID('CFR - XML import'!$A127,SEARCH(\">\",'CFR - XML import'!$A127,1)+1,SEARCH(\"/\",'CFR - XML import'!$A127,1)-SEARCH(\">\",'CFR - XML import'!$A127,1)-2)))","v":0},{"$f":"IF(ISERROR(FIND(AI$3,'CFR - XML import'!$A127)),0,VALUE(MID('CFR - XML import'!$A127,SEARCH(\">\",'CFR - XML import'!$A127,1)+1,SEARCH(\"/\",'CFR - XML import'!$A127,1)-SEARCH(\">\",'CFR - XML import'!$A127,1)-2)))","v":0},{"$f":"IF(ISERROR(FIND(AJ$3,'CFR - XML import'!$A127)),0,VALUE(MID('CFR - XML import'!$A127,SEARCH(\">\",'CFR - XML import'!$A127,1)+1,SEARCH(\"/\",'CFR - XML import'!$A127,1)-SEARCH(\">\",'CFR - XML import'!$A127,1)-2)))","v":0},{"$f":"IF(ISERROR(FIND(AK$3,'CFR - XML import'!$A127)),0,VALUE(MID('CFR - XML import'!$A127,SEARCH(\">\",'CFR - XML import'!$A127,1)+1,SEARCH(\"/\",'CFR - XML import'!$A127,1)-SEARCH(\">\",'CFR - XML import'!$A127,1)-2)))","v":0},{"$f":"IF(ISERROR(FIND(AL$3,'CFR - XML import'!$A127)),0,VALUE(MID('CFR - XML import'!$A127,SEARCH(\">\",'CFR - XML import'!$A127,1)+1,SEARCH(\"/\",'CFR - XML import'!$A127,1)-SEARCH(\">\",'CFR - XML import'!$A127,1)-2)))","v":0},{"$f":"IF(ISERROR(FIND(AM$3,'CFR - XML import'!$A127)),0,VALUE(MID('CFR - XML import'!$A127,SEARCH(\">\",'CFR - XML import'!$A127,1)+1,SEARCH(\"/\",'CFR - XML import'!$A127,1)-SEARCH(\">\",'CFR - XML import'!$A127,1)-2)))","v":0},{"$f":"IF(ISERROR(FIND(AN$3,'CFR - XML import'!$A127)),0,VALUE(MID('CFR - XML import'!$A127,SEARCH(\">\",'CFR - XML import'!$A127,1)+1,SEARCH(\"/\",'CFR - XML import'!$A127,1)-SEARCH(\">\",'CFR - XML import'!$A127,1)-2)))","v":0},{"$f":"IF(ISERROR(FIND(AO$3,'CFR - XML import'!$A127)),0,VALUE(MID('CFR - XML import'!$A127,SEARCH(\">\",'CFR - XML import'!$A127,1)+1,SEARCH(\"/\",'CFR - XML import'!$A127,1)-SEARCH(\">\",'CFR - XML import'!$A127,1)-2)))","v":0},{"$f":"IF(ISERROR(FIND(AP$3,'CFR - XML import'!$A127)),0,VALUE(MID('CFR - XML import'!$A127,SEARCH(\">\",'CFR - XML import'!$A127,1)+1,SEARCH(\"/\",'CFR - XML import'!$A127,1)-SEARCH(\">\",'CFR - XML import'!$A127,1)-2)))","v":0},{"$f":"IF(ISERROR(FIND(AQ$3,'CFR - XML import'!$A127)),0,VALUE(MID('CFR - XML import'!$A127,SEARCH(\">\",'CFR - XML import'!$A127,1)+1,SEARCH(\"/\",'CFR - XML import'!$A127,1)-SEARCH(\">\",'CFR - XML import'!$A127,1)-2)))","v":0},{"$f":"IF(ISERROR(FIND(AR$3,'CFR - XML import'!$A127)),0,VALUE(MID('CFR - XML import'!$A127,SEARCH(\">\",'CFR - XML import'!$A127,1)+1,SEARCH(\"/\",'CFR - XML import'!$A127,1)-SEARCH(\">\",'CFR - XML import'!$A127,1)-2)))","v":0},{"$f":"IF(ISERROR(FIND(AS$3,'CFR - XML import'!$A127)),0,VALUE(MID('CFR - XML import'!$A127,SEARCH(\">\",'CFR - XML import'!$A127,1)+1,SEARCH(\"/\",'CFR - XML import'!$A127,1)-SEARCH(\">\",'CFR - XML import'!$A127,1)-2)))","v":0},{"$f":"IF(ISERROR(FIND(AT$3,'CFR - XML import'!$A127)),0,VALUE(MID('CFR - XML import'!$A127,SEARCH(\">\",'CFR - XML import'!$A127,1)+1,SEARCH(\"/\",'CFR - XML import'!$A127,1)-SEARCH(\">\",'CFR - XML import'!$A127,1)-2)))","v":0},{"$f":"IF(ISERROR(FIND(AU$3,'CFR - XML import'!$A127)),0,VALUE(MID('CFR - XML import'!$A127,SEARCH(\">\",'CFR - XML import'!$A127,1)+1,SEARCH(\"/\",'CFR - XML import'!$A127,1)-SEARCH(\">\",'CFR - XML import'!$A127,1)-2)))","v":0},{"$f":"IF(ISERROR(FIND(AV$3,'CFR - XML import'!$A127)),0,VALUE(MID('CFR - XML import'!$A127,SEARCH(\">\",'CFR - XML import'!$A127,1)+1,SEARCH(\"/\",'CFR - XML import'!$A127,1)-SEARCH(\">\",'CFR - XML import'!$A127,1)-2)))","v":0},{"$f":"IF(ISERROR(FIND(AW$3,'CFR - XML import'!$A127)),0,VALUE(MID('CFR - XML import'!$A127,SEARCH(\">\",'CFR - XML import'!$A127,1)+1,SEARCH(\"/\",'CFR - XML import'!$A127,1)-SEARCH(\">\",'CFR - XML import'!$A127,1)-2)))","v":0},{"$f":"IF(ISERROR(FIND(AX$3,'CFR - XML import'!$A127)),0,VALUE(MID('CFR - XML import'!$A127,SEARCH(\">\",'CFR - XML import'!$A127,1)+1,SEARCH(\"/\",'CFR - XML import'!$A127,1)-SEARCH(\">\",'CFR - XML import'!$A127,1)-2)))","v":0},{"$f":"IF(ISERROR(FIND(AY$3,'CFR - XML import'!$A127)),0,VALUE(MID('CFR - XML import'!$A127,SEARCH(\">\",'CFR - XML import'!$A127,1)+1,SEARCH(\"/\",'CFR - XML import'!$A127,1)-SEARCH(\">\",'CFR - XML import'!$A127,1)-2)))","v":0},{"$f":"IF(ISERROR(FIND(AZ$3,'CFR - XML import'!$A127)),0,VALUE(MID('CFR - XML import'!$A127,SEARCH(\">\",'CFR - XML import'!$A127,1)+1,SEARCH(\"/\",'CFR - XML import'!$A127,1)-SEARCH(\">\",'CFR - XML import'!$A127,1)-2)))","v":0},{"$f":"IF(ISERROR(FIND(BA$3,'CFR - XML import'!$A127)),0,VALUE(MID('CFR - XML import'!$A127,SEARCH(\">\",'CFR - XML import'!$A127,1)+1,SEARCH(\"/\",'CFR - XML import'!$A127,1)-SEARCH(\">\",'CFR - XML import'!$A127,1)-2)))","v":0},{"$f":"IF(ISERROR(FIND(BB$3,'CFR - XML import'!$A127)),0,VALUE(MID('CFR - XML import'!$A127,SEARCH(\">\",'CFR - XML import'!$A127,1)+1,SEARCH(\"/\",'CFR - XML import'!$A127,1)-SEARCH(\">\",'CFR - XML import'!$A127,1)-2)))","v":0},{"$f":"IF(ISERROR(FIND(BC$3,'CFR - XML import'!$A127)),0,VALUE(MID('CFR - XML import'!$A127,SEARCH(\">\",'CFR - XML import'!$A127,1)+1,SEARCH(\"/\",'CFR - XML import'!$A127,1)-SEARCH(\">\",'CFR - XML import'!$A127,1)-2)))","v":0},{"$f":"IF(ISERROR(FIND(BD$3,'CFR - XML import'!$A127)),0,VALUE(MID('CFR - XML import'!$A127,SEARCH(\">\",'CFR - XML import'!$A127,1)+1,SEARCH(\"/\",'CFR - XML import'!$A127,1)-SEARCH(\">\",'CFR - XML import'!$A127,1)-2)))","v":0},{"$f":"IF(ISERROR(FIND(BE$3,'CFR - XML import'!$A127)),0,VALUE(MID('CFR - XML import'!$A127,SEARCH(\">\",'CFR - XML import'!$A127,1)+1,SEARCH(\"/\",'CFR - XML import'!$A127,1)-SEARCH(\">\",'CFR - XML import'!$A127,1)-2)))","v":0},{"$f":"IF(ISERROR(FIND(BF$3,'CFR - XML import'!$A127)),0,VALUE(MID('CFR - XML import'!$A127,SEARCH(\">\",'CFR - XML import'!$A127,1)+1,SEARCH(\"/\",'CFR - XML import'!$A127,1)-SEARCH(\">\",'CFR - XML import'!$A127,1)-2)))","v":0},{"$f":"IF(ISERROR(FIND(BG$3,'CFR - XML import'!$A127)),0,VALUE(MID('CFR - XML import'!$A127,SEARCH(\">\",'CFR - XML import'!$A127,1)+1,SEARCH(\"/\",'CFR - XML import'!$A127,1)-SEARCH(\">\",'CFR - XML import'!$A127,1)-2)))","v":0},{"$f":"IF(ISERROR(FIND(BH$3,'CFR - XML import'!$A127)),0,VALUE(MID('CFR - XML import'!$A127,SEARCH(\">\",'CFR - XML import'!$A127,1)+1,SEARCH(\"/\",'CFR - XML import'!$A127,1)-SEARCH(\">\",'CFR - XML import'!$A127,1)-2)))","v":0},{"$f":"IF(ISERROR(FIND(BI$3,'CFR - XML import'!$A127)),0,VALUE(MID('CFR - XML import'!$A127,SEARCH(\">\",'CFR - XML import'!$A127,1)+1,SEARCH(\"/\",'CFR - XML import'!$A127,1)-SEARCH(\">\",'CFR - XML import'!$A127,1)-2)))","v":0},{"$f":"IF(ISERROR(FIND(BJ$3,'CFR - XML import'!$A127)),0,VALUE(MID('CFR - XML import'!$A127,SEARCH(\">\",'CFR - XML import'!$A127,1)+1,SEARCH(\"/\",'CFR - XML import'!$A127,1)-SEARCH(\">\",'CFR - XML import'!$A127,1)-2)))","v":0},{"$f":"IF(ISERROR(FIND(BK$3,'CFR - XML import'!$A127)),0,VALUE(MID('CFR - XML import'!$A127,SEARCH(\">\",'CFR - XML import'!$A127,1)+1,SEARCH(\"/\",'CFR - XML import'!$A127,1)-SEARCH(\">\",'CFR - XML import'!$A127,1)-2)))","v":0},{"$f":"IF(ISERROR(FIND(BL$3,'CFR - XML import'!$A127)),0,VALUE(MID('CFR - XML import'!$A127,SEARCH(\">\",'CFR - XML import'!$A127,1)+1,SEARCH(\"/\",'CFR - XML import'!$A127,1)-SEARCH(\">\",'CFR - XML import'!$A127,1)-2)))","v":0},{"$f":"IF(ISERROR(FIND(BM$3,'CFR - XML import'!$A127)),0,VALUE(MID('CFR - XML import'!$A127,SEARCH(\">\",'CFR - XML import'!$A127,1)+1,SEARCH(\"/\",'CFR - XML import'!$A127,1)-SEARCH(\">\",'CFR - XML import'!$A127,1)-2)))","v":0},{"$f":"IF(ISERROR(FIND(BN$3,'CFR - XML import'!$A127)),0,VALUE(MID('CFR - XML import'!$A127,SEARCH(\">\",'CFR - XML import'!$A127,1)+1,SEARCH(\"/\",'CFR - XML import'!$A127,1)-SEARCH(\">\",'CFR - XML import'!$A127,1)-2)))","v":0},{"$f":"IF(ISERROR(FIND(BO$3,'CFR - XML import'!$A127)),0,VALUE(MID('CFR - XML import'!$A127,SEARCH(\">\",'CFR - XML import'!$A127,1)+1,SEARCH(\"/\",'CFR - XML import'!$A127,1)-SEARCH(\">\",'CFR - XML import'!$A127,1)-2)))","v":0},{"$f":"IF(ISERROR(FIND(BP$3,'CFR - XML import'!$A127)),0,VALUE(MID('CFR - XML import'!$A127,SEARCH(\">\",'CFR - XML import'!$A127,1)+1,SEARCH(\"/\",'CFR - XML import'!$A127,1)-SEARCH(\">\",'CFR - XML import'!$A127,1)-2)))","v":0},{"$f":"IF(ISERROR(FIND(BQ$3,'CFR - XML import'!$A127)),0,VALUE(MID('CFR - XML import'!$A127,SEARCH(\">\",'CFR - XML import'!$A127,1)+1,SEARCH(\"/\",'CFR - XML import'!$A127,1)-SEARCH(\">\",'CFR - XML import'!$A127,1)-2)))","v":0},{"$f":"IF(ISERROR(FIND(BR$3,'CFR - XML import'!$A127)),0,VALUE(MID('CFR - XML import'!$A127,SEARCH(\">\",'CFR - XML import'!$A127,1)+1,SEARCH(\"/\",'CFR - XML import'!$A127,1)-SEARCH(\">\",'CFR - XML import'!$A127,1)-2)))","v":0},{"$f":"IF(ISERROR(FIND(BS$3,'CFR - XML import'!$A127)),0,VALUE(MID('CFR - XML import'!$A127,SEARCH(\">\",'CFR - XML import'!$A127,1)+1,SEARCH(\"/\",'CFR - XML import'!$A127,1)-SEARCH(\">\",'CFR - XML import'!$A127,1)-2)))","v":0},{"$f":"IF(ISERROR(FIND(BT$3,'CFR - XML import'!$A127)),0,VALUE(MID('CFR - XML import'!$A127,SEARCH(\">\",'CFR - XML import'!$A127,1)+1,SEARCH(\"/\",'CFR - XML import'!$A127,1)-SEARCH(\">\",'CFR - XML import'!$A127,1)-2)))","v":0},{"$f":"IF(ISERROR(FIND(BU$3,'CFR - XML import'!$A127)),0,VALUE(MID('CFR - XML import'!$A127,SEARCH(\">\",'CFR - XML import'!$A127,1)+1,SEARCH(\"/\",'CFR - XML import'!$A127,1)-SEARCH(\">\",'CFR - XML import'!$A127,1)-2)))","v":0},{"$f":"IF(ISERROR(FIND(BV$3,'CFR - XML import'!$A127)),0,VALUE(MID('CFR - XML import'!$A127,SEARCH(\">\",'CFR - XML import'!$A127,1)+1,SEARCH(\"/\",'CFR - XML import'!$A127,1)-SEARCH(\">\",'CFR - XML import'!$A127,1)-2)))","v":0},{"$f":"IF(ISERROR(FIND(BW$3,'CFR - XML import'!$A127)),0,VALUE(MID('CFR - XML import'!$A127,SEARCH(\">\",'CFR - XML import'!$A127,1)+1,SEARCH(\"/\",'CFR - XML import'!$A127,1)-SEARCH(\">\",'CFR - XML import'!$A127,1)-2)))","v":0},{"$f":"IF(ISERROR(FIND(BX$3,'CFR - XML import'!$A127)),0,VALUE(MID('CFR - XML import'!$A127,SEARCH(\">\",'CFR - XML import'!$A127,1)+1,SEARCH(\"/\",'CFR - XML import'!$A127,1)-SEARCH(\">\",'CFR - XML import'!$A127,1)-2)))","v":0},{"$f":"IF(ISERROR(FIND(BY$3,'CFR - XML import'!$A127)),0,VALUE(MID('CFR - XML import'!$A127,SEARCH(\">\",'CFR - XML import'!$A127,1)+1,SEARCH(\"/\",'CFR - XML import'!$A127,1)-SEARCH(\">\",'CFR - XML import'!$A127,1)-2)))","v":0},{"$f":"IF(ISERROR(FIND(BZ$3,'CFR - XML import'!$A127)),0,VALUE(MID('CFR - XML import'!$A127,SEARCH(\">\",'CFR - XML import'!$A127,1)+1,SEARCH(\"/\",'CFR - XML import'!$A127,1)-SEARCH(\">\",'CFR - XML import'!$A127,1)-2)))","v":0},null,null,null,null,null,null,{"$f":"IF(ISERROR(IF(MID('CFR - XML import'!$A127,LEN($CF$4)+1,LEN('CFR - XML import'!$A127)-(2*LEN($CF$4)+1))=\"RMMS\",1,IF(MID('CFR - XML import'!$A127,LEN(\"    <InputSystem>\")+1,LEN('CFR - XML import'!$A127)-(LEN(\"    <InputSystem>\")+LEN($CF$4)+1))=\"SIMS\",2,0))),0,IF(MID('CFR - XML import'!$A127,LEN($CF$4)+1,LEN('CFR - XML import'!$A127)-(2*LEN($CF$4)+1))=\"RMMS\",1,IF(MID('CFR - XML import'!$A127,LEN(\"    <InputSystem>\")+1,LEN('CFR - XML import'!$A127)-(LEN(\"    <InputSystem>\")+LEN($CF$4)+1))=\"SIMS\",2,0)))","v":0},{"$f":"IF(ISERROR(FIND(CH$3,'CFR - XML import'!$A127)),0,MID('CFR - XML import'!$A127,SEARCH(\">\",'CFR - XML import'!$A127,1)+1,SEARCH(\"/\",'CFR - XML import'!$A127,1)-SEARCH(\">\",'CFR - XML import'!$A127,1)-2))","v":0},{"$f":"IF(ISERROR(FIND(CI$3,'CFR - XML import'!$A127)),0,MID('CFR - XML import'!$A127,SEARCH(\">\",'CFR - XML import'!$A127,1)+1,SEARCH(\"/\",'CFR - XML import'!$A127,1)-SEARCH(\">\",'CFR - XML import'!$A127,1)-2))","v":0},{"$f":"IF(ISERROR(FIND(CJ$3,'CFR - XML import'!$A127)),0,MID('CFR - XML import'!$A127,SEARCH(\">\",'CFR - XML import'!$A127,1)+1,SEARCH(\"/\",'CFR - XML import'!$A127,1)-SEARCH(\">\",'CFR - XML import'!$A127,1)-2))","v":0},{"$f":"IF(ISERROR(FIND(CK$3,'CFR - XML import'!$A127)),0,MID('CFR - XML import'!$A127,SEARCH(\">\",'CFR - XML import'!$A127,1)+1,SEARCH(\"/\",'CFR - XML import'!$A127,1)-SEARCH(\">\",'CFR - XML import'!$A127,1)-2))","v":0},{"$f":"IF(ISERROR(FIND(CL$3,'CFR - XML import'!$A127)),0,MID('CFR - XML import'!$A127,SEARCH(\">\",'CFR - XML import'!$A127,1)+1,SEARCH(\"/\",'CFR - XML import'!$A127,1)-SEARCH(\">\",'CFR - XML import'!$A127,1)-2))","v":0}]
[{"$f":"IF(AND('CFR - XML import'!A128<>\"\",LEFT('CFR - XML import'!A128,1)<>\"<\",LEFT('CFR - XML import'!A128,3)<>\"  <\",LEFT('CFR - XML import'!A128,5)<>\"    <\",LEFT('CFR - XML import'!A128,7)<>\"      <\",LEFT('CFR - XML import'!A128,9)<>\"        <\",$B$1=\"SIMS\"),'CFR - XML import'!A128,IF(AND(LEFT('CFR - XML import'!A128,9)=\"<Details>\",$B$1=\"RM\"),'CFR - XML import'!A128,\"\"))","v":""},{"$f":"IF(ISERROR(FIND(B$3,'CFR - XML import'!$A128)),0,VALUE(MID('CFR - XML import'!$A128,SEARCH(\">\",'CFR - XML import'!$A128,1)+1,SEARCH(\"/\",'CFR - XML import'!$A128,1)-SEARCH(\">\",'CFR - XML import'!$A128,1)-2)))","v":0},null,{"$f":"IF(ISERROR(FIND(D$3,'CFR - XML import'!$A128)),0,MID('CFR - XML import'!$A128,SEARCH(\">\",'CFR - XML import'!$A128,1)+1,SEARCH(\"/\",'CFR - XML import'!$A128,1)-SEARCH(\">\",'CFR - XML import'!$A128,1)-2))","v":0},{"$f":"IF(ISERROR(FIND(E$3,'CFR - XML import'!$A128)),0,MID('CFR - XML import'!$A128,SEARCH(\">\",'CFR - XML import'!$A128,1)+1,SEARCH(\"/\",'CFR - XML import'!$A128,1)-SEARCH(\">\",'CFR - XML import'!$A128,1)-2))","v":0},{"$f":"IF($B$1=\"SIMS\",IF(ISERROR(FIND(F$3,'CFR - XML import'!$A128)),0,VALUE(MID('CFR - XML import'!$A128,15,10))),IF(ISERROR(FIND(F$3,'CFR - XML import'!$A128)),0,VALUE(MID('CFR - XML import'!$A128,11,10))))","v":"00:00:00"},{"$f":"IF(ISERROR(FIND(G$3,'CFR - XML import'!$A128)),0,VALUE(MID('CFR - XML import'!$A128,SEARCH(\">\",'CFR - XML import'!$A128,1)+1,SEARCH(\"/\",'CFR - XML import'!$A128,1)-SEARCH(\">\",'CFR - XML import'!$A128,1)-2)))","v":0},{"$f":"IF(ISERROR(FIND(H$3,'CFR - XML import'!$A128)),0,VALUE(MID('CFR - XML import'!$A128,SEARCH(\">\",'CFR - XML import'!$A128,1)+1,SEARCH(\"/\",'CFR - XML import'!$A128,1)-SEARCH(\">\",'CFR - XML import'!$A128,1)-2)))","v":0},{"$f":"IF(ISERROR(FIND(I$3,'CFR - XML import'!$A128)),0,VALUE(MID('CFR - XML import'!$A128,SEARCH(\">\",'CFR - XML import'!$A128,1)+1,SEARCH(\"/\",'CFR - XML import'!$A128,1)-SEARCH(\">\",'CFR - XML import'!$A128,1)-2)))","v":0},{"$f":"IF(ISERROR(FIND(J$3,'CFR - XML import'!$A128)),0,VALUE(MID('CFR - XML import'!$A128,SEARCH(\">\",'CFR - XML import'!$A128,1)+1,SEARCH(\"/\",'CFR - XML import'!$A128,1)-SEARCH(\">\",'CFR - XML import'!$A128,1)-2)))","v":0},{"$f":"IF(ISERROR(FIND(K$3,'CFR - XML import'!$A128)),0,VALUE(MID('CFR - XML import'!$A128,SEARCH(\">\",'CFR - XML import'!$A128,1)+1,SEARCH(\"/\",'CFR - XML import'!$A128,1)-SEARCH(\">\",'CFR - XML import'!$A128,1)-2)))","v":0},{"$f":"IF(ISERROR(FIND(L$3,'CFR - XML import'!$A128)),0,VALUE(MID('CFR - XML import'!$A128,SEARCH(\">\",'CFR - XML import'!$A128,1)+1,SEARCH(\"/\",'CFR - XML import'!$A128,1)-SEARCH(\">\",'CFR - XML import'!$A128,1)-2)))","v":0},{"$f":"IF(ISERROR(FIND(M$3,'CFR - XML import'!$A128)),0,VALUE(MID('CFR - XML import'!$A128,SEARCH(\">\",'CFR - XML import'!$A128,1)+1,SEARCH(\"/\",'CFR - XML import'!$A128,1)-SEARCH(\">\",'CFR - XML import'!$A128,1)-2)))","v":0},{"$f":"IF(ISERROR(FIND(N$3,'CFR - XML import'!$A128)),0,VALUE(MID('CFR - XML import'!$A128,SEARCH(\">\",'CFR - XML import'!$A128,1)+1,SEARCH(\"/\",'CFR - XML import'!$A128,1)-SEARCH(\">\",'CFR - XML import'!$A128,1)-2)))","v":0},{"$f":"IF(ISERROR(FIND(O$3,'CFR - XML import'!$A128)),0,VALUE(MID('CFR - XML import'!$A128,SEARCH(\">\",'CFR - XML import'!$A128,1)+1,SEARCH(\"/\",'CFR - XML import'!$A128,1)-SEARCH(\">\",'CFR - XML import'!$A128,1)-2)))","v":0},{"$f":"IF(ISERROR(FIND(P$3,'CFR - XML import'!$A128)),0,VALUE(MID('CFR - XML import'!$A128,SEARCH(\">\",'CFR - XML import'!$A128,1)+1,SEARCH(\"/\",'CFR - XML import'!$A128,1)-SEARCH(\">\",'CFR - XML import'!$A128,1)-2)))","v":0},{"$f":"IF(ISERROR(FIND(Q$3,'CFR - XML import'!$A128)),0,VALUE(MID('CFR - XML import'!$A128,SEARCH(\">\",'CFR - XML import'!$A128,1)+1,SEARCH(\"/\",'CFR - XML import'!$A128,1)-SEARCH(\">\",'CFR - XML import'!$A128,1)-2)))","v":0},{"$f":"IF(ISERROR(FIND(R$3,'CFR - XML import'!$A128)),0,VALUE(MID('CFR - XML import'!$A128,SEARCH(\">\",'CFR - XML import'!$A128,1)+1,SEARCH(\"/\",'CFR - XML import'!$A128,1)-SEARCH(\">\",'CFR - XML import'!$A128,1)-2)))","v":0},{"$f":"IF(ISERROR(FIND(S$3,'CFR - XML import'!$A128)),0,VALUE(MID('CFR - XML import'!$A128,SEARCH(\">\",'CFR - XML import'!$A128,1)+1,SEARCH(\"/\",'CFR - XML import'!$A128,1)-SEARCH(\">\",'CFR - XML import'!$A128,1)-2)))","v":0},{"$f":"IF(ISERROR(FIND(T$3,'CFR - XML import'!$A128)),0,VALUE(MID('CFR - XML import'!$A128,SEARCH(\">\",'CFR - XML import'!$A128,1)+1,SEARCH(\"/\",'CFR - XML import'!$A128,1)-SEARCH(\">\",'CFR - XML import'!$A128,1)-2)))","v":0},{"$f":"IF(ISERROR(FIND(U$3,'CFR - XML import'!$A128)),0,VALUE(MID('CFR - XML import'!$A128,SEARCH(\">\",'CFR - XML import'!$A128,1)+1,SEARCH(\"/\",'CFR - XML import'!$A128,1)-SEARCH(\">\",'CFR - XML import'!$A128,1)-2)))","v":0},{"$f":"IF(ISERROR(FIND(V$3,'CFR - XML import'!$A128)),0,VALUE(MID('CFR - XML import'!$A128,SEARCH(\">\",'CFR - XML import'!$A128,1)+1,SEARCH(\"/\",'CFR - XML import'!$A128,1)-SEARCH(\">\",'CFR - XML import'!$A128,1)-2)))","v":0},{"$f":"IF(ISERROR(FIND(W$3,'CFR - XML import'!$A128)),0,VALUE(MID('CFR - XML import'!$A128,SEARCH(\">\",'CFR - XML import'!$A128,1)+1,SEARCH(\"/\",'CFR - XML import'!$A128,1)-SEARCH(\">\",'CFR - XML import'!$A128,1)-2)))","v":0},null,{"$f":"IF(ISERROR(FIND(Y$3,'CFR - XML import'!$A128)),0,VALUE(MID('CFR - XML import'!$A128,SEARCH(\">\",'CFR - XML import'!$A128,1)+1,SEARCH(\"/\",'CFR - XML import'!$A128,1)-SEARCH(\">\",'CFR - XML import'!$A128,1)-2)))","v":0},{"$f":"IF(ISERROR(FIND(Z$3,'CFR - XML import'!$A128)),0,VALUE(MID('CFR - XML import'!$A128,SEARCH(\">\",'CFR - XML import'!$A128,1)+1,SEARCH(\"/\",'CFR - XML import'!$A128,1)-SEARCH(\">\",'CFR - XML import'!$A128,1)-2)))","v":0},{"$f":"IF(ISERROR(FIND(AA$3,'CFR - XML import'!$A128)),0,VALUE(MID('CFR - XML import'!$A128,SEARCH(\">\",'CFR - XML import'!$A128,1)+1,SEARCH(\"/\",'CFR - XML import'!$A128,1)-SEARCH(\">\",'CFR - XML import'!$A128,1)-2)))","v":0},{"$f":"IF(ISERROR(FIND(AB$3,'CFR - XML import'!$A128)),0,VALUE(MID('CFR - XML import'!$A128,SEARCH(\">\",'CFR - XML import'!$A128,1)+1,SEARCH(\"/\",'CFR - XML import'!$A128,1)-SEARCH(\">\",'CFR - XML import'!$A128,1)-2)))","v":0},{"$f":"IF(ISERROR(FIND(AC$3,'CFR - XML import'!$A128)),0,VALUE(MID('CFR - XML import'!$A128,SEARCH(\">\",'CFR - XML import'!$A128,1)+1,SEARCH(\"/\",'CFR - XML import'!$A128,1)-SEARCH(\">\",'CFR - XML import'!$A128,1)-2)))","v":0},{"$f":"IF(ISERROR(FIND(AD$3,'CFR - XML import'!$A128)),0,VALUE(MID('CFR - XML import'!$A128,SEARCH(\">\",'CFR - XML import'!$A128,1)+1,SEARCH(\"/\",'CFR - XML import'!$A128,1)-SEARCH(\">\",'CFR - XML import'!$A128,1)-2)))","v":0},{"$f":"IF(ISERROR(FIND(AE$3,'CFR - XML import'!$A128)),0,VALUE(MID('CFR - XML import'!$A128,SEARCH(\">\",'CFR - XML import'!$A128,1)+1,SEARCH(\"/\",'CFR - XML import'!$A128,1)-SEARCH(\">\",'CFR - XML import'!$A128,1)-2)))","v":0},{"$f":"IF(ISERROR(FIND(AF$3,'CFR - XML import'!$A128)),0,VALUE(MID('CFR - XML import'!$A128,SEARCH(\">\",'CFR - XML import'!$A128,1)+1,SEARCH(\"/\",'CFR - XML import'!$A128,1)-SEARCH(\">\",'CFR - XML import'!$A128,1)-2)))","v":0},{"$f":"IF(ISERROR(FIND(AG$3,'CFR - XML import'!$A128)),0,VALUE(MID('CFR - XML import'!$A128,SEARCH(\">\",'CFR - XML import'!$A128,1)+1,SEARCH(\"/\",'CFR - XML import'!$A128,1)-SEARCH(\">\",'CFR - XML import'!$A128,1)-2)))","v":0},{"$f":"IF(ISERROR(FIND(AH$3,'CFR - XML import'!$A128)),0,VALUE(MID('CFR - XML import'!$A128,SEARCH(\">\",'CFR - XML import'!$A128,1)+1,SEARCH(\"/\",'CFR - XML import'!$A128,1)-SEARCH(\">\",'CFR - XML import'!$A128,1)-2)))","v":0},{"$f":"IF(ISERROR(FIND(AI$3,'CFR - XML import'!$A128)),0,VALUE(MID('CFR - XML import'!$A128,SEARCH(\">\",'CFR - XML import'!$A128,1)+1,SEARCH(\"/\",'CFR - XML import'!$A128,1)-SEARCH(\">\",'CFR - XML import'!$A128,1)-2)))","v":0},{"$f":"IF(ISERROR(FIND(AJ$3,'CFR - XML import'!$A128)),0,VALUE(MID('CFR - XML import'!$A128,SEARCH(\">\",'CFR - XML import'!$A128,1)+1,SEARCH(\"/\",'CFR - XML import'!$A128,1)-SEARCH(\">\",'CFR - XML import'!$A128,1)-2)))","v":0},{"$f":"IF(ISERROR(FIND(AK$3,'CFR - XML import'!$A128)),0,VALUE(MID('CFR - XML import'!$A128,SEARCH(\">\",'CFR - XML import'!$A128,1)+1,SEARCH(\"/\",'CFR - XML import'!$A128,1)-SEARCH(\">\",'CFR - XML import'!$A128,1)-2)))","v":0},{"$f":"IF(ISERROR(FIND(AL$3,'CFR - XML import'!$A128)),0,VALUE(MID('CFR - XML import'!$A128,SEARCH(\">\",'CFR - XML import'!$A128,1)+1,SEARCH(\"/\",'CFR - XML import'!$A128,1)-SEARCH(\">\",'CFR - XML import'!$A128,1)-2)))","v":0},{"$f":"IF(ISERROR(FIND(AM$3,'CFR - XML import'!$A128)),0,VALUE(MID('CFR - XML import'!$A128,SEARCH(\">\",'CFR - XML import'!$A128,1)+1,SEARCH(\"/\",'CFR - XML import'!$A128,1)-SEARCH(\">\",'CFR - XML import'!$A128,1)-2)))","v":0},{"$f":"IF(ISERROR(FIND(AN$3,'CFR - XML import'!$A128)),0,VALUE(MID('CFR - XML import'!$A128,SEARCH(\">\",'CFR - XML import'!$A128,1)+1,SEARCH(\"/\",'CFR - XML import'!$A128,1)-SEARCH(\">\",'CFR - XML import'!$A128,1)-2)))","v":0},{"$f":"IF(ISERROR(FIND(AO$3,'CFR - XML import'!$A128)),0,VALUE(MID('CFR - XML import'!$A128,SEARCH(\">\",'CFR - XML import'!$A128,1)+1,SEARCH(\"/\",'CFR - XML import'!$A128,1)-SEARCH(\">\",'CFR - XML import'!$A128,1)-2)))","v":0},{"$f":"IF(ISERROR(FIND(AP$3,'CFR - XML import'!$A128)),0,VALUE(MID('CFR - XML import'!$A128,SEARCH(\">\",'CFR - XML import'!$A128,1)+1,SEARCH(\"/\",'CFR - XML import'!$A128,1)-SEARCH(\">\",'CFR - XML import'!$A128,1)-2)))","v":0},{"$f":"IF(ISERROR(FIND(AQ$3,'CFR - XML import'!$A128)),0,VALUE(MID('CFR - XML import'!$A128,SEARCH(\">\",'CFR - XML import'!$A128,1)+1,SEARCH(\"/\",'CFR - XML import'!$A128,1)-SEARCH(\">\",'CFR - XML import'!$A128,1)-2)))","v":0},{"$f":"IF(ISERROR(FIND(AR$3,'CFR - XML import'!$A128)),0,VALUE(MID('CFR - XML import'!$A128,SEARCH(\">\",'CFR - XML import'!$A128,1)+1,SEARCH(\"/\",'CFR - XML import'!$A128,1)-SEARCH(\">\",'CFR - XML import'!$A128,1)-2)))","v":0},{"$f":"IF(ISERROR(FIND(AS$3,'CFR - XML import'!$A128)),0,VALUE(MID('CFR - XML import'!$A128,SEARCH(\">\",'CFR - XML import'!$A128,1)+1,SEARCH(\"/\",'CFR - XML import'!$A128,1)-SEARCH(\">\",'CFR - XML import'!$A128,1)-2)))","v":0},{"$f":"IF(ISERROR(FIND(AT$3,'CFR - XML import'!$A128)),0,VALUE(MID('CFR - XML import'!$A128,SEARCH(\">\",'CFR - XML import'!$A128,1)+1,SEARCH(\"/\",'CFR - XML import'!$A128,1)-SEARCH(\">\",'CFR - XML import'!$A128,1)-2)))","v":0},{"$f":"IF(ISERROR(FIND(AU$3,'CFR - XML import'!$A128)),0,VALUE(MID('CFR - XML import'!$A128,SEARCH(\">\",'CFR - XML import'!$A128,1)+1,SEARCH(\"/\",'CFR - XML import'!$A128,1)-SEARCH(\">\",'CFR - XML import'!$A128,1)-2)))","v":0},{"$f":"IF(ISERROR(FIND(AV$3,'CFR - XML import'!$A128)),0,VALUE(MID('CFR - XML import'!$A128,SEARCH(\">\",'CFR - XML import'!$A128,1)+1,SEARCH(\"/\",'CFR - XML import'!$A128,1)-SEARCH(\">\",'CFR - XML import'!$A128,1)-2)))","v":0},{"$f":"IF(ISERROR(FIND(AW$3,'CFR - XML import'!$A128)),0,VALUE(MID('CFR - XML import'!$A128,SEARCH(\">\",'CFR - XML import'!$A128,1)+1,SEARCH(\"/\",'CFR - XML import'!$A128,1)-SEARCH(\">\",'CFR - XML import'!$A128,1)-2)))","v":0},{"$f":"IF(ISERROR(FIND(AX$3,'CFR - XML import'!$A128)),0,VALUE(MID('CFR - XML import'!$A128,SEARCH(\">\",'CFR - XML import'!$A128,1)+1,SEARCH(\"/\",'CFR - XML import'!$A128,1)-SEARCH(\">\",'CFR - XML import'!$A128,1)-2)))","v":0},{"$f":"IF(ISERROR(FIND(AY$3,'CFR - XML import'!$A128)),0,VALUE(MID('CFR - XML import'!$A128,SEARCH(\">\",'CFR - XML import'!$A128,1)+1,SEARCH(\"/\",'CFR - XML import'!$A128,1)-SEARCH(\">\",'CFR - XML import'!$A128,1)-2)))","v":0},{"$f":"IF(ISERROR(FIND(AZ$3,'CFR - XML import'!$A128)),0,VALUE(MID('CFR - XML import'!$A128,SEARCH(\">\",'CFR - XML import'!$A128,1)+1,SEARCH(\"/\",'CFR - XML import'!$A128,1)-SEARCH(\">\",'CFR - XML import'!$A128,1)-2)))","v":0},{"$f":"IF(ISERROR(FIND(BA$3,'CFR - XML import'!$A128)),0,VALUE(MID('CFR - XML import'!$A128,SEARCH(\">\",'CFR - XML import'!$A128,1)+1,SEARCH(\"/\",'CFR - XML import'!$A128,1)-SEARCH(\">\",'CFR - XML import'!$A128,1)-2)))","v":0},{"$f":"IF(ISERROR(FIND(BB$3,'CFR - XML import'!$A128)),0,VALUE(MID('CFR - XML import'!$A128,SEARCH(\">\",'CFR - XML import'!$A128,1)+1,SEARCH(\"/\",'CFR - XML import'!$A128,1)-SEARCH(\">\",'CFR - XML import'!$A128,1)-2)))","v":0},{"$f":"IF(ISERROR(FIND(BC$3,'CFR - XML import'!$A128)),0,VALUE(MID('CFR - XML import'!$A128,SEARCH(\">\",'CFR - XML import'!$A128,1)+1,SEARCH(\"/\",'CFR - XML import'!$A128,1)-SEARCH(\">\",'CFR - XML import'!$A128,1)-2)))","v":0},{"$f":"IF(ISERROR(FIND(BD$3,'CFR - XML import'!$A128)),0,VALUE(MID('CFR - XML import'!$A128,SEARCH(\">\",'CFR - XML import'!$A128,1)+1,SEARCH(\"/\",'CFR - XML import'!$A128,1)-SEARCH(\">\",'CFR - XML import'!$A128,1)-2)))","v":0},{"$f":"IF(ISERROR(FIND(BE$3,'CFR - XML import'!$A128)),0,VALUE(MID('CFR - XML import'!$A128,SEARCH(\">\",'CFR - XML import'!$A128,1)+1,SEARCH(\"/\",'CFR - XML import'!$A128,1)-SEARCH(\">\",'CFR - XML import'!$A128,1)-2)))","v":0},{"$f":"IF(ISERROR(FIND(BF$3,'CFR - XML import'!$A128)),0,VALUE(MID('CFR - XML import'!$A128,SEARCH(\">\",'CFR - XML import'!$A128,1)+1,SEARCH(\"/\",'CFR - XML import'!$A128,1)-SEARCH(\">\",'CFR - XML import'!$A128,1)-2)))","v":0},{"$f":"IF(ISERROR(FIND(BG$3,'CFR - XML import'!$A128)),0,VALUE(MID('CFR - XML import'!$A128,SEARCH(\">\",'CFR - XML import'!$A128,1)+1,SEARCH(\"/\",'CFR - XML import'!$A128,1)-SEARCH(\">\",'CFR - XML import'!$A128,1)-2)))","v":0},{"$f":"IF(ISERROR(FIND(BH$3,'CFR - XML import'!$A128)),0,VALUE(MID('CFR - XML import'!$A128,SEARCH(\">\",'CFR - XML import'!$A128,1)+1,SEARCH(\"/\",'CFR - XML import'!$A128,1)-SEARCH(\">\",'CFR - XML import'!$A128,1)-2)))","v":0},{"$f":"IF(ISERROR(FIND(BI$3,'CFR - XML import'!$A128)),0,VALUE(MID('CFR - XML import'!$A128,SEARCH(\">\",'CFR - XML import'!$A128,1)+1,SEARCH(\"/\",'CFR - XML import'!$A128,1)-SEARCH(\">\",'CFR - XML import'!$A128,1)-2)))","v":0},{"$f":"IF(ISERROR(FIND(BJ$3,'CFR - XML import'!$A128)),0,VALUE(MID('CFR - XML import'!$A128,SEARCH(\">\",'CFR - XML import'!$A128,1)+1,SEARCH(\"/\",'CFR - XML import'!$A128,1)-SEARCH(\">\",'CFR - XML import'!$A128,1)-2)))","v":0},{"$f":"IF(ISERROR(FIND(BK$3,'CFR - XML import'!$A128)),0,VALUE(MID('CFR - XML import'!$A128,SEARCH(\">\",'CFR - XML import'!$A128,1)+1,SEARCH(\"/\",'CFR - XML import'!$A128,1)-SEARCH(\">\",'CFR - XML import'!$A128,1)-2)))","v":0},{"$f":"IF(ISERROR(FIND(BL$3,'CFR - XML import'!$A128)),0,VALUE(MID('CFR - XML import'!$A128,SEARCH(\">\",'CFR - XML import'!$A128,1)+1,SEARCH(\"/\",'CFR - XML import'!$A128,1)-SEARCH(\">\",'CFR - XML import'!$A128,1)-2)))","v":0},{"$f":"IF(ISERROR(FIND(BM$3,'CFR - XML import'!$A128)),0,VALUE(MID('CFR - XML import'!$A128,SEARCH(\">\",'CFR - XML import'!$A128,1)+1,SEARCH(\"/\",'CFR - XML import'!$A128,1)-SEARCH(\">\",'CFR - XML import'!$A128,1)-2)))","v":0},{"$f":"IF(ISERROR(FIND(BN$3,'CFR - XML import'!$A128)),0,VALUE(MID('CFR - XML import'!$A128,SEARCH(\">\",'CFR - XML import'!$A128,1)+1,SEARCH(\"/\",'CFR - XML import'!$A128,1)-SEARCH(\">\",'CFR - XML import'!$A128,1)-2)))","v":0},{"$f":"IF(ISERROR(FIND(BO$3,'CFR - XML import'!$A128)),0,VALUE(MID('CFR - XML import'!$A128,SEARCH(\">\",'CFR - XML import'!$A128,1)+1,SEARCH(\"/\",'CFR - XML import'!$A128,1)-SEARCH(\">\",'CFR - XML import'!$A128,1)-2)))","v":0},{"$f":"IF(ISERROR(FIND(BP$3,'CFR - XML import'!$A128)),0,VALUE(MID('CFR - XML import'!$A128,SEARCH(\">\",'CFR - XML import'!$A128,1)+1,SEARCH(\"/\",'CFR - XML import'!$A128,1)-SEARCH(\">\",'CFR - XML import'!$A128,1)-2)))","v":0},{"$f":"IF(ISERROR(FIND(BQ$3,'CFR - XML import'!$A128)),0,VALUE(MID('CFR - XML import'!$A128,SEARCH(\">\",'CFR - XML import'!$A128,1)+1,SEARCH(\"/\",'CFR - XML import'!$A128,1)-SEARCH(\">\",'CFR - XML import'!$A128,1)-2)))","v":0},{"$f":"IF(ISERROR(FIND(BR$3,'CFR - XML import'!$A128)),0,VALUE(MID('CFR - XML import'!$A128,SEARCH(\">\",'CFR - XML import'!$A128,1)+1,SEARCH(\"/\",'CFR - XML import'!$A128,1)-SEARCH(\">\",'CFR - XML import'!$A128,1)-2)))","v":0},{"$f":"IF(ISERROR(FIND(BS$3,'CFR - XML import'!$A128)),0,VALUE(MID('CFR - XML import'!$A128,SEARCH(\">\",'CFR - XML import'!$A128,1)+1,SEARCH(\"/\",'CFR - XML import'!$A128,1)-SEARCH(\">\",'CFR - XML import'!$A128,1)-2)))","v":0},{"$f":"IF(ISERROR(FIND(BT$3,'CFR - XML import'!$A128)),0,VALUE(MID('CFR - XML import'!$A128,SEARCH(\">\",'CFR - XML import'!$A128,1)+1,SEARCH(\"/\",'CFR - XML import'!$A128,1)-SEARCH(\">\",'CFR - XML import'!$A128,1)-2)))","v":0},{"$f":"IF(ISERROR(FIND(BU$3,'CFR - XML import'!$A128)),0,VALUE(MID('CFR - XML import'!$A128,SEARCH(\">\",'CFR - XML import'!$A128,1)+1,SEARCH(\"/\",'CFR - XML import'!$A128,1)-SEARCH(\">\",'CFR - XML import'!$A128,1)-2)))","v":0},{"$f":"IF(ISERROR(FIND(BV$3,'CFR - XML import'!$A128)),0,VALUE(MID('CFR - XML import'!$A128,SEARCH(\">\",'CFR - XML import'!$A128,1)+1,SEARCH(\"/\",'CFR - XML import'!$A128,1)-SEARCH(\">\",'CFR - XML import'!$A128,1)-2)))","v":0},{"$f":"IF(ISERROR(FIND(BW$3,'CFR - XML import'!$A128)),0,VALUE(MID('CFR - XML import'!$A128,SEARCH(\">\",'CFR - XML import'!$A128,1)+1,SEARCH(\"/\",'CFR - XML import'!$A128,1)-SEARCH(\">\",'CFR - XML import'!$A128,1)-2)))","v":0},{"$f":"IF(ISERROR(FIND(BX$3,'CFR - XML import'!$A128)),0,VALUE(MID('CFR - XML import'!$A128,SEARCH(\">\",'CFR - XML import'!$A128,1)+1,SEARCH(\"/\",'CFR - XML import'!$A128,1)-SEARCH(\">\",'CFR - XML import'!$A128,1)-2)))","v":0},{"$f":"IF(ISERROR(FIND(BY$3,'CFR - XML import'!$A128)),0,VALUE(MID('CFR - XML import'!$A128,SEARCH(\">\",'CFR - XML import'!$A128,1)+1,SEARCH(\"/\",'CFR - XML import'!$A128,1)-SEARCH(\">\",'CFR - XML import'!$A128,1)-2)))","v":0},{"$f":"IF(ISERROR(FIND(BZ$3,'CFR - XML import'!$A128)),0,VALUE(MID('CFR - XML import'!$A128,SEARCH(\">\",'CFR - XML import'!$A128,1)+1,SEARCH(\"/\",'CFR - XML import'!$A128,1)-SEARCH(\">\",'CFR - XML import'!$A128,1)-2)))","v":0},null,null,null,null,null,null,{"$f":"IF(ISERROR(IF(MID('CFR - XML import'!$A128,LEN($CF$4)+1,LEN('CFR - XML import'!$A128)-(2*LEN($CF$4)+1))=\"RMMS\",1,IF(MID('CFR - XML import'!$A128,LEN(\"    <InputSystem>\")+1,LEN('CFR - XML import'!$A128)-(LEN(\"    <InputSystem>\")+LEN($CF$4)+1))=\"SIMS\",2,0))),0,IF(MID('CFR - XML import'!$A128,LEN($CF$4)+1,LEN('CFR - XML import'!$A128)-(2*LEN($CF$4)+1))=\"RMMS\",1,IF(MID('CFR - XML import'!$A128,LEN(\"    <InputSystem>\")+1,LEN('CFR - XML import'!$A128)-(LEN(\"    <InputSystem>\")+LEN($CF$4)+1))=\"SIMS\",2,0)))","v":0},{"$f":"IF(ISERROR(FIND(CH$3,'CFR - XML import'!$A128)),0,MID('CFR - XML import'!$A128,SEARCH(\">\",'CFR - XML import'!$A128,1)+1,SEARCH(\"/\",'CFR - XML import'!$A128,1)-SEARCH(\">\",'CFR - XML import'!$A128,1)-2))","v":0},{"$f":"IF(ISERROR(FIND(CI$3,'CFR - XML import'!$A128)),0,MID('CFR - XML import'!$A128,SEARCH(\">\",'CFR - XML import'!$A128,1)+1,SEARCH(\"/\",'CFR - XML import'!$A128,1)-SEARCH(\">\",'CFR - XML import'!$A128,1)-2))","v":0},{"$f":"IF(ISERROR(FIND(CJ$3,'CFR - XML import'!$A128)),0,MID('CFR - XML import'!$A128,SEARCH(\">\",'CFR - XML import'!$A128,1)+1,SEARCH(\"/\",'CFR - XML import'!$A128,1)-SEARCH(\">\",'CFR - XML import'!$A128,1)-2))","v":0},{"$f":"IF(ISERROR(FIND(CK$3,'CFR - XML import'!$A128)),0,MID('CFR - XML import'!$A128,SEARCH(\">\",'CFR - XML import'!$A128,1)+1,SEARCH(\"/\",'CFR - XML import'!$A128,1)-SEARCH(\">\",'CFR - XML import'!$A128,1)-2))","v":0},{"$f":"IF(ISERROR(FIND(CL$3,'CFR - XML import'!$A128)),0,MID('CFR - XML import'!$A128,SEARCH(\">\",'CFR - XML import'!$A128,1)+1,SEARCH(\"/\",'CFR - XML import'!$A128,1)-SEARCH(\">\",'CFR - XML import'!$A128,1)-2))","v":0}]
[{"$f":"IF(AND('CFR - XML import'!A129<>\"\",LEFT('CFR - XML import'!A129,1)<>\"<\",LEFT('CFR - XML import'!A129,3)<>\"  <\",LEFT('CFR - XML import'!A129,5)<>\"    <\",LEFT('CFR - XML import'!A129,7)<>\"      <\",LEFT('CFR - XML import'!A129,9)<>\"        <\",$B$1=\"SIMS\"),'CFR - XML import'!A129,IF(AND(LEFT('CFR - XML import'!A129,9)=\"<Details>\",$B$1=\"RM\"),'CFR - XML import'!A129,\"\"))","v":""},{"$f":"IF(ISERROR(FIND(B$3,'CFR - XML import'!$A129)),0,VALUE(MID('CFR - XML import'!$A129,SEARCH(\">\",'CFR - XML import'!$A129,1)+1,SEARCH(\"/\",'CFR - XML import'!$A129,1)-SEARCH(\">\",'CFR - XML import'!$A129,1)-2)))","v":0},null,{"$f":"IF(ISERROR(FIND(D$3,'CFR - XML import'!$A129)),0,MID('CFR - XML import'!$A129,SEARCH(\">\",'CFR - XML import'!$A129,1)+1,SEARCH(\"/\",'CFR - XML import'!$A129,1)-SEARCH(\">\",'CFR - XML import'!$A129,1)-2))","v":0},{"$f":"IF(ISERROR(FIND(E$3,'CFR - XML import'!$A129)),0,MID('CFR - XML import'!$A129,SEARCH(\">\",'CFR - XML import'!$A129,1)+1,SEARCH(\"/\",'CFR - XML import'!$A129,1)-SEARCH(\">\",'CFR - XML import'!$A129,1)-2))","v":0},{"$f":"IF($B$1=\"SIMS\",IF(ISERROR(FIND(F$3,'CFR - XML import'!$A129)),0,VALUE(MID('CFR - XML import'!$A129,15,10))),IF(ISERROR(FIND(F$3,'CFR - XML import'!$A129)),0,VALUE(MID('CFR - XML import'!$A129,11,10))))","v":"00:00:00"},{"$f":"IF(ISERROR(FIND(G$3,'CFR - XML import'!$A129)),0,VALUE(MID('CFR - XML import'!$A129,SEARCH(\">\",'CFR - XML import'!$A129,1)+1,SEARCH(\"/\",'CFR - XML import'!$A129,1)-SEARCH(\">\",'CFR - XML import'!$A129,1)-2)))","v":0},{"$f":"IF(ISERROR(FIND(H$3,'CFR - XML import'!$A129)),0,VALUE(MID('CFR - XML import'!$A129,SEARCH(\">\",'CFR - XML import'!$A129,1)+1,SEARCH(\"/\",'CFR - XML import'!$A129,1)-SEARCH(\">\",'CFR - XML import'!$A129,1)-2)))","v":0},{"$f":"IF(ISERROR(FIND(I$3,'CFR - XML import'!$A129)),0,VALUE(MID('CFR - XML import'!$A129,SEARCH(\">\",'CFR - XML import'!$A129,1)+1,SEARCH(\"/\",'CFR - XML import'!$A129,1)-SEARCH(\">\",'CFR - XML import'!$A129,1)-2)))","v":0},{"$f":"IF(ISERROR(FIND(J$3,'CFR - XML import'!$A129)),0,VALUE(MID('CFR - XML import'!$A129,SEARCH(\">\",'CFR - XML import'!$A129,1)+1,SEARCH(\"/\",'CFR - XML import'!$A129,1)-SEARCH(\">\",'CFR - XML import'!$A129,1)-2)))","v":0},{"$f":"IF(ISERROR(FIND(K$3,'CFR - XML import'!$A129)),0,VALUE(MID('CFR - XML import'!$A129,SEARCH(\">\",'CFR - XML import'!$A129,1)+1,SEARCH(\"/\",'CFR - XML import'!$A129,1)-SEARCH(\">\",'CFR - XML import'!$A129,1)-2)))","v":0},{"$f":"IF(ISERROR(FIND(L$3,'CFR - XML import'!$A129)),0,VALUE(MID('CFR - XML import'!$A129,SEARCH(\">\",'CFR - XML import'!$A129,1)+1,SEARCH(\"/\",'CFR - XML import'!$A129,1)-SEARCH(\">\",'CFR - XML import'!$A129,1)-2)))","v":0},{"$f":"IF(ISERROR(FIND(M$3,'CFR - XML import'!$A129)),0,VALUE(MID('CFR - XML import'!$A129,SEARCH(\">\",'CFR - XML import'!$A129,1)+1,SEARCH(\"/\",'CFR - XML import'!$A129,1)-SEARCH(\">\",'CFR - XML import'!$A129,1)-2)))","v":0},{"$f":"IF(ISERROR(FIND(N$3,'CFR - XML import'!$A129)),0,VALUE(MID('CFR - XML import'!$A129,SEARCH(\">\",'CFR - XML import'!$A129,1)+1,SEARCH(\"/\",'CFR - XML import'!$A129,1)-SEARCH(\">\",'CFR - XML import'!$A129,1)-2)))","v":0},{"$f":"IF(ISERROR(FIND(O$3,'CFR - XML import'!$A129)),0,VALUE(MID('CFR - XML import'!$A129,SEARCH(\">\",'CFR - XML import'!$A129,1)+1,SEARCH(\"/\",'CFR - XML import'!$A129,1)-SEARCH(\">\",'CFR - XML import'!$A129,1)-2)))","v":0},{"$f":"IF(ISERROR(FIND(P$3,'CFR - XML import'!$A129)),0,VALUE(MID('CFR - XML import'!$A129,SEARCH(\">\",'CFR - XML import'!$A129,1)+1,SEARCH(\"/\",'CFR - XML import'!$A129,1)-SEARCH(\">\",'CFR - XML import'!$A129,1)-2)))","v":0},{"$f":"IF(ISERROR(FIND(Q$3,'CFR - XML import'!$A129)),0,VALUE(MID('CFR - XML import'!$A129,SEARCH(\">\",'CFR - XML import'!$A129,1)+1,SEARCH(\"/\",'CFR - XML import'!$A129,1)-SEARCH(\">\",'CFR - XML import'!$A129,1)-2)))","v":0},{"$f":"IF(ISERROR(FIND(R$3,'CFR - XML import'!$A129)),0,VALUE(MID('CFR - XML import'!$A129,SEARCH(\">\",'CFR - XML import'!$A129,1)+1,SEARCH(\"/\",'CFR - XML import'!$A129,1)-SEARCH(\">\",'CFR - XML import'!$A129,1)-2)))","v":0},{"$f":"IF(ISERROR(FIND(S$3,'CFR - XML import'!$A129)),0,VALUE(MID('CFR - XML import'!$A129,SEARCH(\">\",'CFR - XML import'!$A129,1)+1,SEARCH(\"/\",'CFR - XML import'!$A129,1)-SEARCH(\">\",'CFR - XML import'!$A129,1)-2)))","v":0},{"$f":"IF(ISERROR(FIND(T$3,'CFR - XML import'!$A129)),0,VALUE(MID('CFR - XML import'!$A129,SEARCH(\">\",'CFR - XML import'!$A129,1)+1,SEARCH(\"/\",'CFR - XML import'!$A129,1)-SEARCH(\">\",'CFR - XML import'!$A129,1)-2)))","v":0},{"$f":"IF(ISERROR(FIND(U$3,'CFR - XML import'!$A129)),0,VALUE(MID('CFR - XML import'!$A129,SEARCH(\">\",'CFR - XML import'!$A129,1)+1,SEARCH(\"/\",'CFR - XML import'!$A129,1)-SEARCH(\">\",'CFR - XML import'!$A129,1)-2)))","v":0},{"$f":"IF(ISERROR(FIND(V$3,'CFR - XML import'!$A129)),0,VALUE(MID('CFR - XML import'!$A129,SEARCH(\">\",'CFR - XML import'!$A129,1)+1,SEARCH(\"/\",'CFR - XML import'!$A129,1)-SEARCH(\">\",'CFR - XML import'!$A129,1)-2)))","v":0},{"$f":"IF(ISERROR(FIND(W$3,'CFR - XML import'!$A129)),0,VALUE(MID('CFR - XML import'!$A129,SEARCH(\">\",'CFR - XML import'!$A129,1)+1,SEARCH(\"/\",'CFR - XML import'!$A129,1)-SEARCH(\">\",'CFR - XML import'!$A129,1)-2)))","v":0},null,{"$f":"IF(ISERROR(FIND(Y$3,'CFR - XML import'!$A129)),0,VALUE(MID('CFR - XML import'!$A129,SEARCH(\">\",'CFR - XML import'!$A129,1)+1,SEARCH(\"/\",'CFR - XML import'!$A129,1)-SEARCH(\">\",'CFR - XML import'!$A129,1)-2)))","v":0},{"$f":"IF(ISERROR(FIND(Z$3,'CFR - XML import'!$A129)),0,VALUE(MID('CFR - XML import'!$A129,SEARCH(\">\",'CFR - XML import'!$A129,1)+1,SEARCH(\"/\",'CFR - XML import'!$A129,1)-SEARCH(\">\",'CFR - XML import'!$A129,1)-2)))","v":0},{"$f":"IF(ISERROR(FIND(AA$3,'CFR - XML import'!$A129)),0,VALUE(MID('CFR - XML import'!$A129,SEARCH(\">\",'CFR - XML import'!$A129,1)+1,SEARCH(\"/\",'CFR - XML import'!$A129,1)-SEARCH(\">\",'CFR - XML import'!$A129,1)-2)))","v":0},{"$f":"IF(ISERROR(FIND(AB$3,'CFR - XML import'!$A129)),0,VALUE(MID('CFR - XML import'!$A129,SEARCH(\">\",'CFR - XML import'!$A129,1)+1,SEARCH(\"/\",'CFR - XML import'!$A129,1)-SEARCH(\">\",'CFR - XML import'!$A129,1)-2)))","v":0},{"$f":"IF(ISERROR(FIND(AC$3,'CFR - XML import'!$A129)),0,VALUE(MID('CFR - XML import'!$A129,SEARCH(\">\",'CFR - XML import'!$A129,1)+1,SEARCH(\"/\",'CFR - XML import'!$A129,1)-SEARCH(\">\",'CFR - XML import'!$A129,1)-2)))","v":0},{"$f":"IF(ISERROR(FIND(AD$3,'CFR - XML import'!$A129)),0,VALUE(MID('CFR - XML import'!$A129,SEARCH(\">\",'CFR - XML import'!$A129,1)+1,SEARCH(\"/\",'CFR - XML import'!$A129,1)-SEARCH(\">\",'CFR - XML import'!$A129,1)-2)))","v":0},{"$f":"IF(ISERROR(FIND(AE$3,'CFR - XML import'!$A129)),0,VALUE(MID('CFR - XML import'!$A129,SEARCH(\">\",'CFR - XML import'!$A129,1)+1,SEARCH(\"/\",'CFR - XML import'!$A129,1)-SEARCH(\">\",'CFR - XML import'!$A129,1)-2)))","v":0},{"$f":"IF(ISERROR(FIND(AF$3,'CFR - XML import'!$A129)),0,VALUE(MID('CFR - XML import'!$A129,SEARCH(\">\",'CFR - XML import'!$A129,1)+1,SEARCH(\"/\",'CFR - XML import'!$A129,1)-SEARCH(\">\",'CFR - XML import'!$A129,1)-2)))","v":0},{"$f":"IF(ISERROR(FIND(AG$3,'CFR - XML import'!$A129)),0,VALUE(MID('CFR - XML import'!$A129,SEARCH(\">\",'CFR - XML import'!$A129,1)+1,SEARCH(\"/\",'CFR - XML import'!$A129,1)-SEARCH(\">\",'CFR - XML import'!$A129,1)-2)))","v":0},{"$f":"IF(ISERROR(FIND(AH$3,'CFR - XML import'!$A129)),0,VALUE(MID('CFR - XML import'!$A129,SEARCH(\">\",'CFR - XML import'!$A129,1)+1,SEARCH(\"/\",'CFR - XML import'!$A129,1)-SEARCH(\">\",'CFR - XML import'!$A129,1)-2)))","v":0},{"$f":"IF(ISERROR(FIND(AI$3,'CFR - XML import'!$A129)),0,VALUE(MID('CFR - XML import'!$A129,SEARCH(\">\",'CFR - XML import'!$A129,1)+1,SEARCH(\"/\",'CFR - XML import'!$A129,1)-SEARCH(\">\",'CFR - XML import'!$A129,1)-2)))","v":0},{"$f":"IF(ISERROR(FIND(AJ$3,'CFR - XML import'!$A129)),0,VALUE(MID('CFR - XML import'!$A129,SEARCH(\">\",'CFR - XML import'!$A129,1)+1,SEARCH(\"/\",'CFR - XML import'!$A129,1)-SEARCH(\">\",'CFR - XML import'!$A129,1)-2)))","v":0},{"$f":"IF(ISERROR(FIND(AK$3,'CFR - XML import'!$A129)),0,VALUE(MID('CFR - XML import'!$A129,SEARCH(\">\",'CFR - XML import'!$A129,1)+1,SEARCH(\"/\",'CFR - XML import'!$A129,1)-SEARCH(\">\",'CFR - XML import'!$A129,1)-2)))","v":0},{"$f":"IF(ISERROR(FIND(AL$3,'CFR - XML import'!$A129)),0,VALUE(MID('CFR - XML import'!$A129,SEARCH(\">\",'CFR - XML import'!$A129,1)+1,SEARCH(\"/\",'CFR - XML import'!$A129,1)-SEARCH(\">\",'CFR - XML import'!$A129,1)-2)))","v":0},{"$f":"IF(ISERROR(FIND(AM$3,'CFR - XML import'!$A129)),0,VALUE(MID('CFR - XML import'!$A129,SEARCH(\">\",'CFR - XML import'!$A129,1)+1,SEARCH(\"/\",'CFR - XML import'!$A129,1)-SEARCH(\">\",'CFR - XML import'!$A129,1)-2)))","v":0},{"$f":"IF(ISERROR(FIND(AN$3,'CFR - XML import'!$A129)),0,VALUE(MID('CFR - XML import'!$A129,SEARCH(\">\",'CFR - XML import'!$A129,1)+1,SEARCH(\"/\",'CFR - XML import'!$A129,1)-SEARCH(\">\",'CFR - XML import'!$A129,1)-2)))","v":0},{"$f":"IF(ISERROR(FIND(AO$3,'CFR - XML import'!$A129)),0,VALUE(MID('CFR - XML import'!$A129,SEARCH(\">\",'CFR - XML import'!$A129,1)+1,SEARCH(\"/\",'CFR - XML import'!$A129,1)-SEARCH(\">\",'CFR - XML import'!$A129,1)-2)))","v":0},{"$f":"IF(ISERROR(FIND(AP$3,'CFR - XML import'!$A129)),0,VALUE(MID('CFR - XML import'!$A129,SEARCH(\">\",'CFR - XML import'!$A129,1)+1,SEARCH(\"/\",'CFR - XML import'!$A129,1)-SEARCH(\">\",'CFR - XML import'!$A129,1)-2)))","v":0},{"$f":"IF(ISERROR(FIND(AQ$3,'CFR - XML import'!$A129)),0,VALUE(MID('CFR - XML import'!$A129,SEARCH(\">\",'CFR - XML import'!$A129,1)+1,SEARCH(\"/\",'CFR - XML import'!$A129,1)-SEARCH(\">\",'CFR - XML import'!$A129,1)-2)))","v":0},{"$f":"IF(ISERROR(FIND(AR$3,'CFR - XML import'!$A129)),0,VALUE(MID('CFR - XML import'!$A129,SEARCH(\">\",'CFR - XML import'!$A129,1)+1,SEARCH(\"/\",'CFR - XML import'!$A129,1)-SEARCH(\">\",'CFR - XML import'!$A129,1)-2)))","v":0},{"$f":"IF(ISERROR(FIND(AS$3,'CFR - XML import'!$A129)),0,VALUE(MID('CFR - XML import'!$A129,SEARCH(\">\",'CFR - XML import'!$A129,1)+1,SEARCH(\"/\",'CFR - XML import'!$A129,1)-SEARCH(\">\",'CFR - XML import'!$A129,1)-2)))","v":0},{"$f":"IF(ISERROR(FIND(AT$3,'CFR - XML import'!$A129)),0,VALUE(MID('CFR - XML import'!$A129,SEARCH(\">\",'CFR - XML import'!$A129,1)+1,SEARCH(\"/\",'CFR - XML import'!$A129,1)-SEARCH(\">\",'CFR - XML import'!$A129,1)-2)))","v":0},{"$f":"IF(ISERROR(FIND(AU$3,'CFR - XML import'!$A129)),0,VALUE(MID('CFR - XML import'!$A129,SEARCH(\">\",'CFR - XML import'!$A129,1)+1,SEARCH(\"/\",'CFR - XML import'!$A129,1)-SEARCH(\">\",'CFR - XML import'!$A129,1)-2)))","v":0},{"$f":"IF(ISERROR(FIND(AV$3,'CFR - XML import'!$A129)),0,VALUE(MID('CFR - XML import'!$A129,SEARCH(\">\",'CFR - XML import'!$A129,1)+1,SEARCH(\"/\",'CFR - XML import'!$A129,1)-SEARCH(\">\",'CFR - XML import'!$A129,1)-2)))","v":0},{"$f":"IF(ISERROR(FIND(AW$3,'CFR - XML import'!$A129)),0,VALUE(MID('CFR - XML import'!$A129,SEARCH(\">\",'CFR - XML import'!$A129,1)+1,SEARCH(\"/\",'CFR - XML import'!$A129,1)-SEARCH(\">\",'CFR - XML import'!$A129,1)-2)))","v":0},{"$f":"IF(ISERROR(FIND(AX$3,'CFR - XML import'!$A129)),0,VALUE(MID('CFR - XML import'!$A129,SEARCH(\">\",'CFR - XML import'!$A129,1)+1,SEARCH(\"/\",'CFR - XML import'!$A129,1)-SEARCH(\">\",'CFR - XML import'!$A129,1)-2)))","v":0},{"$f":"IF(ISERROR(FIND(AY$3,'CFR - XML import'!$A129)),0,VALUE(MID('CFR - XML import'!$A129,SEARCH(\">\",'CFR - XML import'!$A129,1)+1,SEARCH(\"/\",'CFR - XML import'!$A129,1)-SEARCH(\">\",'CFR - XML import'!$A129,1)-2)))","v":0},{"$f":"IF(ISERROR(FIND(AZ$3,'CFR - XML import'!$A129)),0,VALUE(MID('CFR - XML import'!$A129,SEARCH(\">\",'CFR - XML import'!$A129,1)+1,SEARCH(\"/\",'CFR - XML import'!$A129,1)-SEARCH(\">\",'CFR - XML import'!$A129,1)-2)))","v":0},{"$f":"IF(ISERROR(FIND(BA$3,'CFR - XML import'!$A129)),0,VALUE(MID('CFR - XML import'!$A129,SEARCH(\">\",'CFR - XML import'!$A129,1)+1,SEARCH(\"/\",'CFR - XML import'!$A129,1)-SEARCH(\">\",'CFR - XML import'!$A129,1)-2)))","v":0},{"$f":"IF(ISERROR(FIND(BB$3,'CFR - XML import'!$A129)),0,VALUE(MID('CFR - XML import'!$A129,SEARCH(\">\",'CFR - XML import'!$A129,1)+1,SEARCH(\"/\",'CFR - XML import'!$A129,1)-SEARCH(\">\",'CFR - XML import'!$A129,1)-2)))","v":0},{"$f":"IF(ISERROR(FIND(BC$3,'CFR - XML import'!$A129)),0,VALUE(MID('CFR - XML import'!$A129,SEARCH(\">\",'CFR - XML import'!$A129,1)+1,SEARCH(\"/\",'CFR - XML import'!$A129,1)-SEARCH(\">\",'CFR - XML import'!$A129,1)-2)))","v":0},{"$f":"IF(ISERROR(FIND(BD$3,'CFR - XML import'!$A129)),0,VALUE(MID('CFR - XML import'!$A129,SEARCH(\">\",'CFR - XML import'!$A129,1)+1,SEARCH(\"/\",'CFR - XML import'!$A129,1)-SEARCH(\">\",'CFR - XML import'!$A129,1)-2)))","v":0},{"$f":"IF(ISERROR(FIND(BE$3,'CFR - XML import'!$A129)),0,VALUE(MID('CFR - XML import'!$A129,SEARCH(\">\",'CFR - XML import'!$A129,1)+1,SEARCH(\"/\",'CFR - XML import'!$A129,1)-SEARCH(\">\",'CFR - XML import'!$A129,1)-2)))","v":0},{"$f":"IF(ISERROR(FIND(BF$3,'CFR - XML import'!$A129)),0,VALUE(MID('CFR - XML import'!$A129,SEARCH(\">\",'CFR - XML import'!$A129,1)+1,SEARCH(\"/\",'CFR - XML import'!$A129,1)-SEARCH(\">\",'CFR - XML import'!$A129,1)-2)))","v":0},{"$f":"IF(ISERROR(FIND(BG$3,'CFR - XML import'!$A129)),0,VALUE(MID('CFR - XML import'!$A129,SEARCH(\">\",'CFR - XML import'!$A129,1)+1,SEARCH(\"/\",'CFR - XML import'!$A129,1)-SEARCH(\">\",'CFR - XML import'!$A129,1)-2)))","v":0},{"$f":"IF(ISERROR(FIND(BH$3,'CFR - XML import'!$A129)),0,VALUE(MID('CFR - XML import'!$A129,SEARCH(\">\",'CFR - XML import'!$A129,1)+1,SEARCH(\"/\",'CFR - XML import'!$A129,1)-SEARCH(\">\",'CFR - XML import'!$A129,1)-2)))","v":0},{"$f":"IF(ISERROR(FIND(BI$3,'CFR - XML import'!$A129)),0,VALUE(MID('CFR - XML import'!$A129,SEARCH(\">\",'CFR - XML import'!$A129,1)+1,SEARCH(\"/\",'CFR - XML import'!$A129,1)-SEARCH(\">\",'CFR - XML import'!$A129,1)-2)))","v":0},{"$f":"IF(ISERROR(FIND(BJ$3,'CFR - XML import'!$A129)),0,VALUE(MID('CFR - XML import'!$A129,SEARCH(\">\",'CFR - XML import'!$A129,1)+1,SEARCH(\"/\",'CFR - XML import'!$A129,1)-SEARCH(\">\",'CFR - XML import'!$A129,1)-2)))","v":0},{"$f":"IF(ISERROR(FIND(BK$3,'CFR - XML import'!$A129)),0,VALUE(MID('CFR - XML import'!$A129,SEARCH(\">\",'CFR - XML import'!$A129,1)+1,SEARCH(\"/\",'CFR - XML import'!$A129,1)-SEARCH(\">\",'CFR - XML import'!$A129,1)-2)))","v":0},{"$f":"IF(ISERROR(FIND(BL$3,'CFR - XML import'!$A129)),0,VALUE(MID('CFR - XML import'!$A129,SEARCH(\">\",'CFR - XML import'!$A129,1)+1,SEARCH(\"/\",'CFR - XML import'!$A129,1)-SEARCH(\">\",'CFR - XML import'!$A129,1)-2)))","v":0},{"$f":"IF(ISERROR(FIND(BM$3,'CFR - XML import'!$A129)),0,VALUE(MID('CFR - XML import'!$A129,SEARCH(\">\",'CFR - XML import'!$A129,1)+1,SEARCH(\"/\",'CFR - XML import'!$A129,1)-SEARCH(\">\",'CFR - XML import'!$A129,1)-2)))","v":0},{"$f":"IF(ISERROR(FIND(BN$3,'CFR - XML import'!$A129)),0,VALUE(MID('CFR - XML import'!$A129,SEARCH(\">\",'CFR - XML import'!$A129,1)+1,SEARCH(\"/\",'CFR - XML import'!$A129,1)-SEARCH(\">\",'CFR - XML import'!$A129,1)-2)))","v":0},{"$f":"IF(ISERROR(FIND(BO$3,'CFR - XML import'!$A129)),0,VALUE(MID('CFR - XML import'!$A129,SEARCH(\">\",'CFR - XML import'!$A129,1)+1,SEARCH(\"/\",'CFR - XML import'!$A129,1)-SEARCH(\">\",'CFR - XML import'!$A129,1)-2)))","v":0},{"$f":"IF(ISERROR(FIND(BP$3,'CFR - XML import'!$A129)),0,VALUE(MID('CFR - XML import'!$A129,SEARCH(\">\",'CFR - XML import'!$A129,1)+1,SEARCH(\"/\",'CFR - XML import'!$A129,1)-SEARCH(\">\",'CFR - XML import'!$A129,1)-2)))","v":0},{"$f":"IF(ISERROR(FIND(BQ$3,'CFR - XML import'!$A129)),0,VALUE(MID('CFR - XML import'!$A129,SEARCH(\">\",'CFR - XML import'!$A129,1)+1,SEARCH(\"/\",'CFR - XML import'!$A129,1)-SEARCH(\">\",'CFR - XML import'!$A129,1)-2)))","v":0},{"$f":"IF(ISERROR(FIND(BR$3,'CFR - XML import'!$A129)),0,VALUE(MID('CFR - XML import'!$A129,SEARCH(\">\",'CFR - XML import'!$A129,1)+1,SEARCH(\"/\",'CFR - XML import'!$A129,1)-SEARCH(\">\",'CFR - XML import'!$A129,1)-2)))","v":0},{"$f":"IF(ISERROR(FIND(BS$3,'CFR - XML import'!$A129)),0,VALUE(MID('CFR - XML import'!$A129,SEARCH(\">\",'CFR - XML import'!$A129,1)+1,SEARCH(\"/\",'CFR - XML import'!$A129,1)-SEARCH(\">\",'CFR - XML import'!$A129,1)-2)))","v":0},{"$f":"IF(ISERROR(FIND(BT$3,'CFR - XML import'!$A129)),0,VALUE(MID('CFR - XML import'!$A129,SEARCH(\">\",'CFR - XML import'!$A129,1)+1,SEARCH(\"/\",'CFR - XML import'!$A129,1)-SEARCH(\">\",'CFR - XML import'!$A129,1)-2)))","v":0},{"$f":"IF(ISERROR(FIND(BU$3,'CFR - XML import'!$A129)),0,VALUE(MID('CFR - XML import'!$A129,SEARCH(\">\",'CFR - XML import'!$A129,1)+1,SEARCH(\"/\",'CFR - XML import'!$A129,1)-SEARCH(\">\",'CFR - XML import'!$A129,1)-2)))","v":0},{"$f":"IF(ISERROR(FIND(BV$3,'CFR - XML import'!$A129)),0,VALUE(MID('CFR - XML import'!$A129,SEARCH(\">\",'CFR - XML import'!$A129,1)+1,SEARCH(\"/\",'CFR - XML import'!$A129,1)-SEARCH(\">\",'CFR - XML import'!$A129,1)-2)))","v":0},{"$f":"IF(ISERROR(FIND(BW$3,'CFR - XML import'!$A129)),0,VALUE(MID('CFR - XML import'!$A129,SEARCH(\">\",'CFR - XML import'!$A129,1)+1,SEARCH(\"/\",'CFR - XML import'!$A129,1)-SEARCH(\">\",'CFR - XML import'!$A129,1)-2)))","v":0},{"$f":"IF(ISERROR(FIND(BX$3,'CFR - XML import'!$A129)),0,VALUE(MID('CFR - XML import'!$A129,SEARCH(\">\",'CFR - XML import'!$A129,1)+1,SEARCH(\"/\",'CFR - XML import'!$A129,1)-SEARCH(\">\",'CFR - XML import'!$A129,1)-2)))","v":0},{"$f":"IF(ISERROR(FIND(BY$3,'CFR - XML import'!$A129)),0,VALUE(MID('CFR - XML import'!$A129,SEARCH(\">\",'CFR - XML import'!$A129,1)+1,SEARCH(\"/\",'CFR - XML import'!$A129,1)-SEARCH(\">\",'CFR - XML import'!$A129,1)-2)))","v":0},{"$f":"IF(ISERROR(FIND(BZ$3,'CFR - XML import'!$A129)),0,VALUE(MID('CFR - XML import'!$A129,SEARCH(\">\",'CFR - XML import'!$A129,1)+1,SEARCH(\"/\",'CFR - XML import'!$A129,1)-SEARCH(\">\",'CFR - XML import'!$A129,1)-2)))","v":0},null,null,null,null,null,null,{"$f":"IF(ISERROR(IF(MID('CFR - XML import'!$A129,LEN($CF$4)+1,LEN('CFR - XML import'!$A129)-(2*LEN($CF$4)+1))=\"RMMS\",1,IF(MID('CFR - XML import'!$A129,LEN(\"    <InputSystem>\")+1,LEN('CFR - XML import'!$A129)-(LEN(\"    <InputSystem>\")+LEN($CF$4)+1))=\"SIMS\",2,0))),0,IF(MID('CFR - XML import'!$A129,LEN($CF$4)+1,LEN('CFR - XML import'!$A129)-(2*LEN($CF$4)+1))=\"RMMS\",1,IF(MID('CFR - XML import'!$A129,LEN(\"    <InputSystem>\")+1,LEN('CFR - XML import'!$A129)-(LEN(\"    <InputSystem>\")+LEN($CF$4)+1))=\"SIMS\",2,0)))","v":0},{"$f":"IF(ISERROR(FIND(CH$3,'CFR - XML import'!$A129)),0,MID('CFR - XML import'!$A129,SEARCH(\">\",'CFR - XML import'!$A129,1)+1,SEARCH(\"/\",'CFR - XML import'!$A129,1)-SEARCH(\">\",'CFR - XML import'!$A129,1)-2))","v":0},{"$f":"IF(ISERROR(FIND(CI$3,'CFR - XML import'!$A129)),0,MID('CFR - XML import'!$A129,SEARCH(\">\",'CFR - XML import'!$A129,1)+1,SEARCH(\"/\",'CFR - XML import'!$A129,1)-SEARCH(\">\",'CFR - XML import'!$A129,1)-2))","v":0},{"$f":"IF(ISERROR(FIND(CJ$3,'CFR - XML import'!$A129)),0,MID('CFR - XML import'!$A129,SEARCH(\">\",'CFR - XML import'!$A129,1)+1,SEARCH(\"/\",'CFR - XML import'!$A129,1)-SEARCH(\">\",'CFR - XML import'!$A129,1)-2))","v":0},{"$f":"IF(ISERROR(FIND(CK$3,'CFR - XML import'!$A129)),0,MID('CFR - XML import'!$A129,SEARCH(\">\",'CFR - XML import'!$A129,1)+1,SEARCH(\"/\",'CFR - XML import'!$A129,1)-SEARCH(\">\",'CFR - XML import'!$A129,1)-2))","v":0},{"$f":"IF(ISERROR(FIND(CL$3,'CFR - XML import'!$A129)),0,MID('CFR - XML import'!$A129,SEARCH(\">\",'CFR - XML import'!$A129,1)+1,SEARCH(\"/\",'CFR - XML import'!$A129,1)-SEARCH(\">\",'CFR - XML import'!$A129,1)-2))","v":0}]
[{"$f":"IF(AND('CFR - XML import'!A130<>\"\",LEFT('CFR - XML import'!A130,1)<>\"<\",LEFT('CFR - XML import'!A130,3)<>\"  <\",LEFT('CFR - XML import'!A130,5)<>\"    <\",LEFT('CFR - XML import'!A130,7)<>\"      <\",LEFT('CFR - XML import'!A130,9)<>\"        <\",$B$1=\"SIMS\"),'CFR - XML import'!A130,IF(AND(LEFT('CFR - XML import'!A130,9)=\"<Details>\",$B$1=\"RM\"),'CFR - XML import'!A130,\"\"))","v":""},{"$f":"IF(ISERROR(FIND(B$3,'CFR - XML import'!$A130)),0,VALUE(MID('CFR - XML import'!$A130,SEARCH(\">\",'CFR - XML import'!$A130,1)+1,SEARCH(\"/\",'CFR - XML import'!$A130,1)-SEARCH(\">\",'CFR - XML import'!$A130,1)-2)))","v":0},null,{"$f":"IF(ISERROR(FIND(D$3,'CFR - XML import'!$A130)),0,MID('CFR - XML import'!$A130,SEARCH(\">\",'CFR - XML import'!$A130,1)+1,SEARCH(\"/\",'CFR - XML import'!$A130,1)-SEARCH(\">\",'CFR - XML import'!$A130,1)-2))","v":0},{"$f":"IF(ISERROR(FIND(E$3,'CFR - XML import'!$A130)),0,MID('CFR - XML import'!$A130,SEARCH(\">\",'CFR - XML import'!$A130,1)+1,SEARCH(\"/\",'CFR - XML import'!$A130,1)-SEARCH(\">\",'CFR - XML import'!$A130,1)-2))","v":0},{"$f":"IF($B$1=\"SIMS\",IF(ISERROR(FIND(F$3,'CFR - XML import'!$A130)),0,VALUE(MID('CFR - XML import'!$A130,15,10))),IF(ISERROR(FIND(F$3,'CFR - XML import'!$A130)),0,VALUE(MID('CFR - XML import'!$A130,11,10))))","v":"00:00:00"},{"$f":"IF(ISERROR(FIND(G$3,'CFR - XML import'!$A130)),0,VALUE(MID('CFR - XML import'!$A130,SEARCH(\">\",'CFR - XML import'!$A130,1)+1,SEARCH(\"/\",'CFR - XML import'!$A130,1)-SEARCH(\">\",'CFR - XML import'!$A130,1)-2)))","v":0},{"$f":"IF(ISERROR(FIND(H$3,'CFR - XML import'!$A130)),0,VALUE(MID('CFR - XML import'!$A130,SEARCH(\">\",'CFR - XML import'!$A130,1)+1,SEARCH(\"/\",'CFR - XML import'!$A130,1)-SEARCH(\">\",'CFR - XML import'!$A130,1)-2)))","v":0},{"$f":"IF(ISERROR(FIND(I$3,'CFR - XML import'!$A130)),0,VALUE(MID('CFR - XML import'!$A130,SEARCH(\">\",'CFR - XML import'!$A130,1)+1,SEARCH(\"/\",'CFR - XML import'!$A130,1)-SEARCH(\">\",'CFR - XML import'!$A130,1)-2)))","v":0},{"$f":"IF(ISERROR(FIND(J$3,'CFR - XML import'!$A130)),0,VALUE(MID('CFR - XML import'!$A130,SEARCH(\">\",'CFR - XML import'!$A130,1)+1,SEARCH(\"/\",'CFR - XML import'!$A130,1)-SEARCH(\">\",'CFR - XML import'!$A130,1)-2)))","v":0},{"$f":"IF(ISERROR(FIND(K$3,'CFR - XML import'!$A130)),0,VALUE(MID('CFR - XML import'!$A130,SEARCH(\">\",'CFR - XML import'!$A130,1)+1,SEARCH(\"/\",'CFR - XML import'!$A130,1)-SEARCH(\">\",'CFR - XML import'!$A130,1)-2)))","v":0},{"$f":"IF(ISERROR(FIND(L$3,'CFR - XML import'!$A130)),0,VALUE(MID('CFR - XML import'!$A130,SEARCH(\">\",'CFR - XML import'!$A130,1)+1,SEARCH(\"/\",'CFR - XML import'!$A130,1)-SEARCH(\">\",'CFR - XML import'!$A130,1)-2)))","v":0},{"$f":"IF(ISERROR(FIND(M$3,'CFR - XML import'!$A130)),0,VALUE(MID('CFR - XML import'!$A130,SEARCH(\">\",'CFR - XML import'!$A130,1)+1,SEARCH(\"/\",'CFR - XML import'!$A130,1)-SEARCH(\">\",'CFR - XML import'!$A130,1)-2)))","v":0},{"$f":"IF(ISERROR(FIND(N$3,'CFR - XML import'!$A130)),0,VALUE(MID('CFR - XML import'!$A130,SEARCH(\">\",'CFR - XML import'!$A130,1)+1,SEARCH(\"/\",'CFR - XML import'!$A130,1)-SEARCH(\">\",'CFR - XML import'!$A130,1)-2)))","v":0},{"$f":"IF(ISERROR(FIND(O$3,'CFR - XML import'!$A130)),0,VALUE(MID('CFR - XML import'!$A130,SEARCH(\">\",'CFR - XML import'!$A130,1)+1,SEARCH(\"/\",'CFR - XML import'!$A130,1)-SEARCH(\">\",'CFR - XML import'!$A130,1)-2)))","v":0},{"$f":"IF(ISERROR(FIND(P$3,'CFR - XML import'!$A130)),0,VALUE(MID('CFR - XML import'!$A130,SEARCH(\">\",'CFR - XML import'!$A130,1)+1,SEARCH(\"/\",'CFR - XML import'!$A130,1)-SEARCH(\">\",'CFR - XML import'!$A130,1)-2)))","v":0},{"$f":"IF(ISERROR(FIND(Q$3,'CFR - XML import'!$A130)),0,VALUE(MID('CFR - XML import'!$A130,SEARCH(\">\",'CFR - XML import'!$A130,1)+1,SEARCH(\"/\",'CFR - XML import'!$A130,1)-SEARCH(\">\",'CFR - XML import'!$A130,1)-2)))","v":0},{"$f":"IF(ISERROR(FIND(R$3,'CFR - XML import'!$A130)),0,VALUE(MID('CFR - XML import'!$A130,SEARCH(\">\",'CFR - XML import'!$A130,1)+1,SEARCH(\"/\",'CFR - XML import'!$A130,1)-SEARCH(\">\",'CFR - XML import'!$A130,1)-2)))","v":0},{"$f":"IF(ISERROR(FIND(S$3,'CFR - XML import'!$A130)),0,VALUE(MID('CFR - XML import'!$A130,SEARCH(\">\",'CFR - XML import'!$A130,1)+1,SEARCH(\"/\",'CFR - XML import'!$A130,1)-SEARCH(\">\",'CFR - XML import'!$A130,1)-2)))","v":0},{"$f":"IF(ISERROR(FIND(T$3,'CFR - XML import'!$A130)),0,VALUE(MID('CFR - XML import'!$A130,SEARCH(\">\",'CFR - XML import'!$A130,1)+1,SEARCH(\"/\",'CFR - XML import'!$A130,1)-SEARCH(\">\",'CFR - XML import'!$A130,1)-2)))","v":0},{"$f":"IF(ISERROR(FIND(U$3,'CFR - XML import'!$A130)),0,VALUE(MID('CFR - XML import'!$A130,SEARCH(\">\",'CFR - XML import'!$A130,1)+1,SEARCH(\"/\",'CFR - XML import'!$A130,1)-SEARCH(\">\",'CFR - XML import'!$A130,1)-2)))","v":0},{"$f":"IF(ISERROR(FIND(V$3,'CFR - XML import'!$A130)),0,VALUE(MID('CFR - XML import'!$A130,SEARCH(\">\",'CFR - XML import'!$A130,1)+1,SEARCH(\"/\",'CFR - XML import'!$A130,1)-SEARCH(\">\",'CFR - XML import'!$A130,1)-2)))","v":0},{"$f":"IF(ISERROR(FIND(W$3,'CFR - XML import'!$A130)),0,VALUE(MID('CFR - XML import'!$A130,SEARCH(\">\",'CFR - XML import'!$A130,1)+1,SEARCH(\"/\",'CFR - XML import'!$A130,1)-SEARCH(\">\",'CFR - XML import'!$A130,1)-2)))","v":0},null,{"$f":"IF(ISERROR(FIND(Y$3,'CFR - XML import'!$A130)),0,VALUE(MID('CFR - XML import'!$A130,SEARCH(\">\",'CFR - XML import'!$A130,1)+1,SEARCH(\"/\",'CFR - XML import'!$A130,1)-SEARCH(\">\",'CFR - XML import'!$A130,1)-2)))","v":0},{"$f":"IF(ISERROR(FIND(Z$3,'CFR - XML import'!$A130)),0,VALUE(MID('CFR - XML import'!$A130,SEARCH(\">\",'CFR - XML import'!$A130,1)+1,SEARCH(\"/\",'CFR - XML import'!$A130,1)-SEARCH(\">\",'CFR - XML import'!$A130,1)-2)))","v":0},{"$f":"IF(ISERROR(FIND(AA$3,'CFR - XML import'!$A130)),0,VALUE(MID('CFR - XML import'!$A130,SEARCH(\">\",'CFR - XML import'!$A130,1)+1,SEARCH(\"/\",'CFR - XML import'!$A130,1)-SEARCH(\">\",'CFR - XML import'!$A130,1)-2)))","v":0},{"$f":"IF(ISERROR(FIND(AB$3,'CFR - XML import'!$A130)),0,VALUE(MID('CFR - XML import'!$A130,SEARCH(\">\",'CFR - XML import'!$A130,1)+1,SEARCH(\"/\",'CFR - XML import'!$A130,1)-SEARCH(\">\",'CFR - XML import'!$A130,1)-2)))","v":0},{"$f":"IF(ISERROR(FIND(AC$3,'CFR - XML import'!$A130)),0,VALUE(MID('CFR - XML import'!$A130,SEARCH(\">\",'CFR - XML import'!$A130,1)+1,SEARCH(\"/\",'CFR - XML import'!$A130,1)-SEARCH(\">\",'CFR - XML import'!$A130,1)-2)))","v":0},{"$f":"IF(ISERROR(FIND(AD$3,'CFR - XML import'!$A130)),0,VALUE(MID('CFR - XML import'!$A130,SEARCH(\">\",'CFR - XML import'!$A130,1)+1,SEARCH(\"/\",'CFR - XML import'!$A130,1)-SEARCH(\">\",'CFR - XML import'!$A130,1)-2)))","v":0},{"$f":"IF(ISERROR(FIND(AE$3,'CFR - XML import'!$A130)),0,VALUE(MID('CFR - XML import'!$A130,SEARCH(\">\",'CFR - XML import'!$A130,1)+1,SEARCH(\"/\",'CFR - XML import'!$A130,1)-SEARCH(\">\",'CFR - XML import'!$A130,1)-2)))","v":0},{"$f":"IF(ISERROR(FIND(AF$3,'CFR - XML import'!$A130)),0,VALUE(MID('CFR - XML import'!$A130,SEARCH(\">\",'CFR - XML import'!$A130,1)+1,SEARCH(\"/\",'CFR - XML import'!$A130,1)-SEARCH(\">\",'CFR - XML import'!$A130,1)-2)))","v":0},{"$f":"IF(ISERROR(FIND(AG$3,'CFR - XML import'!$A130)),0,VALUE(MID('CFR - XML import'!$A130,SEARCH(\">\",'CFR - XML import'!$A130,1)+1,SEARCH(\"/\",'CFR - XML import'!$A130,1)-SEARCH(\">\",'CFR - XML import'!$A130,1)-2)))","v":0},{"$f":"IF(ISERROR(FIND(AH$3,'CFR - XML import'!$A130)),0,VALUE(MID('CFR - XML import'!$A130,SEARCH(\">\",'CFR - XML import'!$A130,1)+1,SEARCH(\"/\",'CFR - XML import'!$A130,1)-SEARCH(\">\",'CFR - XML import'!$A130,1)-2)))","v":0},{"$f":"IF(ISERROR(FIND(AI$3,'CFR - XML import'!$A130)),0,VALUE(MID('CFR - XML import'!$A130,SEARCH(\">\",'CFR - XML import'!$A130,1)+1,SEARCH(\"/\",'CFR - XML import'!$A130,1)-SEARCH(\">\",'CFR - XML import'!$A130,1)-2)))","v":0},{"$f":"IF(ISERROR(FIND(AJ$3,'CFR - XML import'!$A130)),0,VALUE(MID('CFR - XML import'!$A130,SEARCH(\">\",'CFR - XML import'!$A130,1)+1,SEARCH(\"/\",'CFR - XML import'!$A130,1)-SEARCH(\">\",'CFR - XML import'!$A130,1)-2)))","v":0},{"$f":"IF(ISERROR(FIND(AK$3,'CFR - XML import'!$A130)),0,VALUE(MID('CFR - XML import'!$A130,SEARCH(\">\",'CFR - XML import'!$A130,1)+1,SEARCH(\"/\",'CFR - XML import'!$A130,1)-SEARCH(\">\",'CFR - XML import'!$A130,1)-2)))","v":0},{"$f":"IF(ISERROR(FIND(AL$3,'CFR - XML import'!$A130)),0,VALUE(MID('CFR - XML import'!$A130,SEARCH(\">\",'CFR - XML import'!$A130,1)+1,SEARCH(\"/\",'CFR - XML import'!$A130,1)-SEARCH(\">\",'CFR - XML import'!$A130,1)-2)))","v":0},{"$f":"IF(ISERROR(FIND(AM$3,'CFR - XML import'!$A130)),0,VALUE(MID('CFR - XML import'!$A130,SEARCH(\">\",'CFR - XML import'!$A130,1)+1,SEARCH(\"/\",'CFR - XML import'!$A130,1)-SEARCH(\">\",'CFR - XML import'!$A130,1)-2)))","v":0},{"$f":"IF(ISERROR(FIND(AN$3,'CFR - XML import'!$A130)),0,VALUE(MID('CFR - XML import'!$A130,SEARCH(\">\",'CFR - XML import'!$A130,1)+1,SEARCH(\"/\",'CFR - XML import'!$A130,1)-SEARCH(\">\",'CFR - XML import'!$A130,1)-2)))","v":0},{"$f":"IF(ISERROR(FIND(AO$3,'CFR - XML import'!$A130)),0,VALUE(MID('CFR - XML import'!$A130,SEARCH(\">\",'CFR - XML import'!$A130,1)+1,SEARCH(\"/\",'CFR - XML import'!$A130,1)-SEARCH(\">\",'CFR - XML import'!$A130,1)-2)))","v":0},{"$f":"IF(ISERROR(FIND(AP$3,'CFR - XML import'!$A130)),0,VALUE(MID('CFR - XML import'!$A130,SEARCH(\">\",'CFR - XML import'!$A130,1)+1,SEARCH(\"/\",'CFR - XML import'!$A130,1)-SEARCH(\">\",'CFR - XML import'!$A130,1)-2)))","v":0},{"$f":"IF(ISERROR(FIND(AQ$3,'CFR - XML import'!$A130)),0,VALUE(MID('CFR - XML import'!$A130,SEARCH(\">\",'CFR - XML import'!$A130,1)+1,SEARCH(\"/\",'CFR - XML import'!$A130,1)-SEARCH(\">\",'CFR - XML import'!$A130,1)-2)))","v":0},{"$f":"IF(ISERROR(FIND(AR$3,'CFR - XML import'!$A130)),0,VALUE(MID('CFR - XML import'!$A130,SEARCH(\">\",'CFR - XML import'!$A130,1)+1,SEARCH(\"/\",'CFR - XML import'!$A130,1)-SEARCH(\">\",'CFR - XML import'!$A130,1)-2)))","v":0},{"$f":"IF(ISERROR(FIND(AS$3,'CFR - XML import'!$A130)),0,VALUE(MID('CFR - XML import'!$A130,SEARCH(\">\",'CFR - XML import'!$A130,1)+1,SEARCH(\"/\",'CFR - XML import'!$A130,1)-SEARCH(\">\",'CFR - XML import'!$A130,1)-2)))","v":0},{"$f":"IF(ISERROR(FIND(AT$3,'CFR - XML import'!$A130)),0,VALUE(MID('CFR - XML import'!$A130,SEARCH(\">\",'CFR - XML import'!$A130,1)+1,SEARCH(\"/\",'CFR - XML import'!$A130,1)-SEARCH(\">\",'CFR - XML import'!$A130,1)-2)))","v":0},{"$f":"IF(ISERROR(FIND(AU$3,'CFR - XML import'!$A130)),0,VALUE(MID('CFR - XML import'!$A130,SEARCH(\">\",'CFR - XML import'!$A130,1)+1,SEARCH(\"/\",'CFR - XML import'!$A130,1)-SEARCH(\">\",'CFR - XML import'!$A130,1)-2)))","v":0},{"$f":"IF(ISERROR(FIND(AV$3,'CFR - XML import'!$A130)),0,VALUE(MID('CFR - XML import'!$A130,SEARCH(\">\",'CFR - XML import'!$A130,1)+1,SEARCH(\"/\",'CFR - XML import'!$A130,1)-SEARCH(\">\",'CFR - XML import'!$A130,1)-2)))","v":0},{"$f":"IF(ISERROR(FIND(AW$3,'CFR - XML import'!$A130)),0,VALUE(MID('CFR - XML import'!$A130,SEARCH(\">\",'CFR - XML import'!$A130,1)+1,SEARCH(\"/\",'CFR - XML import'!$A130,1)-SEARCH(\">\",'CFR - XML import'!$A130,1)-2)))","v":0},{"$f":"IF(ISERROR(FIND(AX$3,'CFR - XML import'!$A130)),0,VALUE(MID('CFR - XML import'!$A130,SEARCH(\">\",'CFR - XML import'!$A130,1)+1,SEARCH(\"/\",'CFR - XML import'!$A130,1)-SEARCH(\">\",'CFR - XML import'!$A130,1)-2)))","v":0},{"$f":"IF(ISERROR(FIND(AY$3,'CFR - XML import'!$A130)),0,VALUE(MID('CFR - XML import'!$A130,SEARCH(\">\",'CFR - XML import'!$A130,1)+1,SEARCH(\"/\",'CFR - XML import'!$A130,1)-SEARCH(\">\",'CFR - XML import'!$A130,1)-2)))","v":0},{"$f":"IF(ISERROR(FIND(AZ$3,'CFR - XML import'!$A130)),0,VALUE(MID('CFR - XML import'!$A130,SEARCH(\">\",'CFR - XML import'!$A130,1)+1,SEARCH(\"/\",'CFR - XML import'!$A130,1)-SEARCH(\">\",'CFR - XML import'!$A130,1)-2)))","v":0},{"$f":"IF(ISERROR(FIND(BA$3,'CFR - XML import'!$A130)),0,VALUE(MID('CFR - XML import'!$A130,SEARCH(\">\",'CFR - XML import'!$A130,1)+1,SEARCH(\"/\",'CFR - XML import'!$A130,1)-SEARCH(\">\",'CFR - XML import'!$A130,1)-2)))","v":0},{"$f":"IF(ISERROR(FIND(BB$3,'CFR - XML import'!$A130)),0,VALUE(MID('CFR - XML import'!$A130,SEARCH(\">\",'CFR - XML import'!$A130,1)+1,SEARCH(\"/\",'CFR - XML import'!$A130,1)-SEARCH(\">\",'CFR - XML import'!$A130,1)-2)))","v":0},{"$f":"IF(ISERROR(FIND(BC$3,'CFR - XML import'!$A130)),0,VALUE(MID('CFR - XML import'!$A130,SEARCH(\">\",'CFR - XML import'!$A130,1)+1,SEARCH(\"/\",'CFR - XML import'!$A130,1)-SEARCH(\">\",'CFR - XML import'!$A130,1)-2)))","v":0},{"$f":"IF(ISERROR(FIND(BD$3,'CFR - XML import'!$A130)),0,VALUE(MID('CFR - XML import'!$A130,SEARCH(\">\",'CFR - XML import'!$A130,1)+1,SEARCH(\"/\",'CFR - XML import'!$A130,1)-SEARCH(\">\",'CFR - XML import'!$A130,1)-2)))","v":0},{"$f":"IF(ISERROR(FIND(BE$3,'CFR - XML import'!$A130)),0,VALUE(MID('CFR - XML import'!$A130,SEARCH(\">\",'CFR - XML import'!$A130,1)+1,SEARCH(\"/\",'CFR - XML import'!$A130,1)-SEARCH(\">\",'CFR - XML import'!$A130,1)-2)))","v":0},{"$f":"IF(ISERROR(FIND(BF$3,'CFR - XML import'!$A130)),0,VALUE(MID('CFR - XML import'!$A130,SEARCH(\">\",'CFR - XML import'!$A130,1)+1,SEARCH(\"/\",'CFR - XML import'!$A130,1)-SEARCH(\">\",'CFR - XML import'!$A130,1)-2)))","v":0},{"$f":"IF(ISERROR(FIND(BG$3,'CFR - XML import'!$A130)),0,VALUE(MID('CFR - XML import'!$A130,SEARCH(\">\",'CFR - XML import'!$A130,1)+1,SEARCH(\"/\",'CFR - XML import'!$A130,1)-SEARCH(\">\",'CFR - XML import'!$A130,1)-2)))","v":0},{"$f":"IF(ISERROR(FIND(BH$3,'CFR - XML import'!$A130)),0,VALUE(MID('CFR - XML import'!$A130,SEARCH(\">\",'CFR - XML import'!$A130,1)+1,SEARCH(\"/\",'CFR - XML import'!$A130,1)-SEARCH(\">\",'CFR - XML import'!$A130,1)-2)))","v":0},{"$f":"IF(ISERROR(FIND(BI$3,'CFR - XML import'!$A130)),0,VALUE(MID('CFR - XML import'!$A130,SEARCH(\">\",'CFR - XML import'!$A130,1)+1,SEARCH(\"/\",'CFR - XML import'!$A130,1)-SEARCH(\">\",'CFR - XML import'!$A130,1)-2)))","v":0},{"$f":"IF(ISERROR(FIND(BJ$3,'CFR - XML import'!$A130)),0,VALUE(MID('CFR - XML import'!$A130,SEARCH(\">\",'CFR - XML import'!$A130,1)+1,SEARCH(\"/\",'CFR - XML import'!$A130,1)-SEARCH(\">\",'CFR - XML import'!$A130,1)-2)))","v":0},{"$f":"IF(ISERROR(FIND(BK$3,'CFR - XML import'!$A130)),0,VALUE(MID('CFR - XML import'!$A130,SEARCH(\">\",'CFR - XML import'!$A130,1)+1,SEARCH(\"/\",'CFR - XML import'!$A130,1)-SEARCH(\">\",'CFR - XML import'!$A130,1)-2)))","v":0},{"$f":"IF(ISERROR(FIND(BL$3,'CFR - XML import'!$A130)),0,VALUE(MID('CFR - XML import'!$A130,SEARCH(\">\",'CFR - XML import'!$A130,1)+1,SEARCH(\"/\",'CFR - XML import'!$A130,1)-SEARCH(\">\",'CFR - XML import'!$A130,1)-2)))","v":0},{"$f":"IF(ISERROR(FIND(BM$3,'CFR - XML import'!$A130)),0,VALUE(MID('CFR - XML import'!$A130,SEARCH(\">\",'CFR - XML import'!$A130,1)+1,SEARCH(\"/\",'CFR - XML import'!$A130,1)-SEARCH(\">\",'CFR - XML import'!$A130,1)-2)))","v":0},{"$f":"IF(ISERROR(FIND(BN$3,'CFR - XML import'!$A130)),0,VALUE(MID('CFR - XML import'!$A130,SEARCH(\">\",'CFR - XML import'!$A130,1)+1,SEARCH(\"/\",'CFR - XML import'!$A130,1)-SEARCH(\">\",'CFR - XML import'!$A130,1)-2)))","v":0},{"$f":"IF(ISERROR(FIND(BO$3,'CFR - XML import'!$A130)),0,VALUE(MID('CFR - XML import'!$A130,SEARCH(\">\",'CFR - XML import'!$A130,1)+1,SEARCH(\"/\",'CFR - XML import'!$A130,1)-SEARCH(\">\",'CFR - XML import'!$A130,1)-2)))","v":0},{"$f":"IF(ISERROR(FIND(BP$3,'CFR - XML import'!$A130)),0,VALUE(MID('CFR - XML import'!$A130,SEARCH(\">\",'CFR - XML import'!$A130,1)+1,SEARCH(\"/\",'CFR - XML import'!$A130,1)-SEARCH(\">\",'CFR - XML import'!$A130,1)-2)))","v":0},{"$f":"IF(ISERROR(FIND(BQ$3,'CFR - XML import'!$A130)),0,VALUE(MID('CFR - XML import'!$A130,SEARCH(\">\",'CFR - XML import'!$A130,1)+1,SEARCH(\"/\",'CFR - XML import'!$A130,1)-SEARCH(\">\",'CFR - XML import'!$A130,1)-2)))","v":0},{"$f":"IF(ISERROR(FIND(BR$3,'CFR - XML import'!$A130)),0,VALUE(MID('CFR - XML import'!$A130,SEARCH(\">\",'CFR - XML import'!$A130,1)+1,SEARCH(\"/\",'CFR - XML import'!$A130,1)-SEARCH(\">\",'CFR - XML import'!$A130,1)-2)))","v":0},{"$f":"IF(ISERROR(FIND(BS$3,'CFR - XML import'!$A130)),0,VALUE(MID('CFR - XML import'!$A130,SEARCH(\">\",'CFR - XML import'!$A130,1)+1,SEARCH(\"/\",'CFR - XML import'!$A130,1)-SEARCH(\">\",'CFR - XML import'!$A130,1)-2)))","v":0},{"$f":"IF(ISERROR(FIND(BT$3,'CFR - XML import'!$A130)),0,VALUE(MID('CFR - XML import'!$A130,SEARCH(\">\",'CFR - XML import'!$A130,1)+1,SEARCH(\"/\",'CFR - XML import'!$A130,1)-SEARCH(\">\",'CFR - XML import'!$A130,1)-2)))","v":0},{"$f":"IF(ISERROR(FIND(BU$3,'CFR - XML import'!$A130)),0,VALUE(MID('CFR - XML import'!$A130,SEARCH(\">\",'CFR - XML import'!$A130,1)+1,SEARCH(\"/\",'CFR - XML import'!$A130,1)-SEARCH(\">\",'CFR - XML import'!$A130,1)-2)))","v":0},{"$f":"IF(ISERROR(FIND(BV$3,'CFR - XML import'!$A130)),0,VALUE(MID('CFR - XML import'!$A130,SEARCH(\">\",'CFR - XML import'!$A130,1)+1,SEARCH(\"/\",'CFR - XML import'!$A130,1)-SEARCH(\">\",'CFR - XML import'!$A130,1)-2)))","v":0},{"$f":"IF(ISERROR(FIND(BW$3,'CFR - XML import'!$A130)),0,VALUE(MID('CFR - XML import'!$A130,SEARCH(\">\",'CFR - XML import'!$A130,1)+1,SEARCH(\"/\",'CFR - XML import'!$A130,1)-SEARCH(\">\",'CFR - XML import'!$A130,1)-2)))","v":0},{"$f":"IF(ISERROR(FIND(BX$3,'CFR - XML import'!$A130)),0,VALUE(MID('CFR - XML import'!$A130,SEARCH(\">\",'CFR - XML import'!$A130,1)+1,SEARCH(\"/\",'CFR - XML import'!$A130,1)-SEARCH(\">\",'CFR - XML import'!$A130,1)-2)))","v":0},{"$f":"IF(ISERROR(FIND(BY$3,'CFR - XML import'!$A130)),0,VALUE(MID('CFR - XML import'!$A130,SEARCH(\">\",'CFR - XML import'!$A130,1)+1,SEARCH(\"/\",'CFR - XML import'!$A130,1)-SEARCH(\">\",'CFR - XML import'!$A130,1)-2)))","v":0},{"$f":"IF(ISERROR(FIND(BZ$3,'CFR - XML import'!$A130)),0,VALUE(MID('CFR - XML import'!$A130,SEARCH(\">\",'CFR - XML import'!$A130,1)+1,SEARCH(\"/\",'CFR - XML import'!$A130,1)-SEARCH(\">\",'CFR - XML import'!$A130,1)-2)))","v":0},null,null,null,null,null,null,{"$f":"IF(ISERROR(IF(MID('CFR - XML import'!$A130,LEN($CF$4)+1,LEN('CFR - XML import'!$A130)-(2*LEN($CF$4)+1))=\"RMMS\",1,IF(MID('CFR - XML import'!$A130,LEN(\"    <InputSystem>\")+1,LEN('CFR - XML import'!$A130)-(LEN(\"    <InputSystem>\")+LEN($CF$4)+1))=\"SIMS\",2,0))),0,IF(MID('CFR - XML import'!$A130,LEN($CF$4)+1,LEN('CFR - XML import'!$A130)-(2*LEN($CF$4)+1))=\"RMMS\",1,IF(MID('CFR - XML import'!$A130,LEN(\"    <InputSystem>\")+1,LEN('CFR - XML import'!$A130)-(LEN(\"    <InputSystem>\")+LEN($CF$4)+1))=\"SIMS\",2,0)))","v":0},{"$f":"IF(ISERROR(FIND(CH$3,'CFR - XML import'!$A130)),0,MID('CFR - XML import'!$A130,SEARCH(\">\",'CFR - XML import'!$A130,1)+1,SEARCH(\"/\",'CFR - XML import'!$A130,1)-SEARCH(\">\",'CFR - XML import'!$A130,1)-2))","v":0},{"$f":"IF(ISERROR(FIND(CI$3,'CFR - XML import'!$A130)),0,MID('CFR - XML import'!$A130,SEARCH(\">\",'CFR - XML import'!$A130,1)+1,SEARCH(\"/\",'CFR - XML import'!$A130,1)-SEARCH(\">\",'CFR - XML import'!$A130,1)-2))","v":0},{"$f":"IF(ISERROR(FIND(CJ$3,'CFR - XML import'!$A130)),0,MID('CFR - XML import'!$A130,SEARCH(\">\",'CFR - XML import'!$A130,1)+1,SEARCH(\"/\",'CFR - XML import'!$A130,1)-SEARCH(\">\",'CFR - XML import'!$A130,1)-2))","v":0},{"$f":"IF(ISERROR(FIND(CK$3,'CFR - XML import'!$A130)),0,MID('CFR - XML import'!$A130,SEARCH(\">\",'CFR - XML import'!$A130,1)+1,SEARCH(\"/\",'CFR - XML import'!$A130,1)-SEARCH(\">\",'CFR - XML import'!$A130,1)-2))","v":0},{"$f":"IF(ISERROR(FIND(CL$3,'CFR - XML import'!$A130)),0,MID('CFR - XML import'!$A130,SEARCH(\">\",'CFR - XML import'!$A130,1)+1,SEARCH(\"/\",'CFR - XML import'!$A130,1)-SEARCH(\">\",'CFR - XML import'!$A130,1)-2))","v":0}]
[{"$f":"IF(AND('CFR - XML import'!A131<>\"\",LEFT('CFR - XML import'!A131,1)<>\"<\",LEFT('CFR - XML import'!A131,3)<>\"  <\",LEFT('CFR - XML import'!A131,5)<>\"    <\",LEFT('CFR - XML import'!A131,7)<>\"      <\",LEFT('CFR - XML import'!A131,9)<>\"        <\",$B$1=\"SIMS\"),'CFR - XML import'!A131,IF(AND(LEFT('CFR - XML import'!A131,9)=\"<Details>\",$B$1=\"RM\"),'CFR - XML import'!A131,\"\"))","v":""},{"$f":"IF(ISERROR(FIND(B$3,'CFR - XML import'!$A131)),0,VALUE(MID('CFR - XML import'!$A131,SEARCH(\">\",'CFR - XML import'!$A131,1)+1,SEARCH(\"/\",'CFR - XML import'!$A131,1)-SEARCH(\">\",'CFR - XML import'!$A131,1)-2)))","v":0},null,{"$f":"IF(ISERROR(FIND(D$3,'CFR - XML import'!$A131)),0,MID('CFR - XML import'!$A131,SEARCH(\">\",'CFR - XML import'!$A131,1)+1,SEARCH(\"/\",'CFR - XML import'!$A131,1)-SEARCH(\">\",'CFR - XML import'!$A131,1)-2))","v":0},{"$f":"IF(ISERROR(FIND(E$3,'CFR - XML import'!$A131)),0,MID('CFR - XML import'!$A131,SEARCH(\">\",'CFR - XML import'!$A131,1)+1,SEARCH(\"/\",'CFR - XML import'!$A131,1)-SEARCH(\">\",'CFR - XML import'!$A131,1)-2))","v":0},{"$f":"IF($B$1=\"SIMS\",IF(ISERROR(FIND(F$3,'CFR - XML import'!$A131)),0,VALUE(MID('CFR - XML import'!$A131,15,10))),IF(ISERROR(FIND(F$3,'CFR - XML import'!$A131)),0,VALUE(MID('CFR - XML import'!$A131,11,10))))","v":"00:00:00"},{"$f":"IF(ISERROR(FIND(G$3,'CFR - XML import'!$A131)),0,VALUE(MID('CFR - XML import'!$A131,SEARCH(\">\",'CFR - XML import'!$A131,1)+1,SEARCH(\"/\",'CFR - XML import'!$A131,1)-SEARCH(\">\",'CFR - XML import'!$A131,1)-2)))","v":0},{"$f":"IF(ISERROR(FIND(H$3,'CFR - XML import'!$A131)),0,VALUE(MID('CFR - XML import'!$A131,SEARCH(\">\",'CFR - XML import'!$A131,1)+1,SEARCH(\"/\",'CFR - XML import'!$A131,1)-SEARCH(\">\",'CFR - XML import'!$A131,1)-2)))","v":0},{"$f":"IF(ISERROR(FIND(I$3,'CFR - XML import'!$A131)),0,VALUE(MID('CFR - XML import'!$A131,SEARCH(\">\",'CFR - XML import'!$A131,1)+1,SEARCH(\"/\",'CFR - XML import'!$A131,1)-SEARCH(\">\",'CFR - XML import'!$A131,1)-2)))","v":0},{"$f":"IF(ISERROR(FIND(J$3,'CFR - XML import'!$A131)),0,VALUE(MID('CFR - XML import'!$A131,SEARCH(\">\",'CFR - XML import'!$A131,1)+1,SEARCH(\"/\",'CFR - XML import'!$A131,1)-SEARCH(\">\",'CFR - XML import'!$A131,1)-2)))","v":0},{"$f":"IF(ISERROR(FIND(K$3,'CFR - XML import'!$A131)),0,VALUE(MID('CFR - XML import'!$A131,SEARCH(\">\",'CFR - XML import'!$A131,1)+1,SEARCH(\"/\",'CFR - XML import'!$A131,1)-SEARCH(\">\",'CFR - XML import'!$A131,1)-2)))","v":0},{"$f":"IF(ISERROR(FIND(L$3,'CFR - XML import'!$A131)),0,VALUE(MID('CFR - XML import'!$A131,SEARCH(\">\",'CFR - XML import'!$A131,1)+1,SEARCH(\"/\",'CFR - XML import'!$A131,1)-SEARCH(\">\",'CFR - XML import'!$A131,1)-2)))","v":0},{"$f":"IF(ISERROR(FIND(M$3,'CFR - XML import'!$A131)),0,VALUE(MID('CFR - XML import'!$A131,SEARCH(\">\",'CFR - XML import'!$A131,1)+1,SEARCH(\"/\",'CFR - XML import'!$A131,1)-SEARCH(\">\",'CFR - XML import'!$A131,1)-2)))","v":0},{"$f":"IF(ISERROR(FIND(N$3,'CFR - XML import'!$A131)),0,VALUE(MID('CFR - XML import'!$A131,SEARCH(\">\",'CFR - XML import'!$A131,1)+1,SEARCH(\"/\",'CFR - XML import'!$A131,1)-SEARCH(\">\",'CFR - XML import'!$A131,1)-2)))","v":0},{"$f":"IF(ISERROR(FIND(O$3,'CFR - XML import'!$A131)),0,VALUE(MID('CFR - XML import'!$A131,SEARCH(\">\",'CFR - XML import'!$A131,1)+1,SEARCH(\"/\",'CFR - XML import'!$A131,1)-SEARCH(\">\",'CFR - XML import'!$A131,1)-2)))","v":0},{"$f":"IF(ISERROR(FIND(P$3,'CFR - XML import'!$A131)),0,VALUE(MID('CFR - XML import'!$A131,SEARCH(\">\",'CFR - XML import'!$A131,1)+1,SEARCH(\"/\",'CFR - XML import'!$A131,1)-SEARCH(\">\",'CFR - XML import'!$A131,1)-2)))","v":0},{"$f":"IF(ISERROR(FIND(Q$3,'CFR - XML import'!$A131)),0,VALUE(MID('CFR - XML import'!$A131,SEARCH(\">\",'CFR - XML import'!$A131,1)+1,SEARCH(\"/\",'CFR - XML import'!$A131,1)-SEARCH(\">\",'CFR - XML import'!$A131,1)-2)))","v":0},{"$f":"IF(ISERROR(FIND(R$3,'CFR - XML import'!$A131)),0,VALUE(MID('CFR - XML import'!$A131,SEARCH(\">\",'CFR - XML import'!$A131,1)+1,SEARCH(\"/\",'CFR - XML import'!$A131,1)-SEARCH(\">\",'CFR - XML import'!$A131,1)-2)))","v":0},{"$f":"IF(ISERROR(FIND(S$3,'CFR - XML import'!$A131)),0,VALUE(MID('CFR - XML import'!$A131,SEARCH(\">\",'CFR - XML import'!$A131,1)+1,SEARCH(\"/\",'CFR - XML import'!$A131,1)-SEARCH(\">\",'CFR - XML import'!$A131,1)-2)))","v":0},{"$f":"IF(ISERROR(FIND(T$3,'CFR - XML import'!$A131)),0,VALUE(MID('CFR - XML import'!$A131,SEARCH(\">\",'CFR - XML import'!$A131,1)+1,SEARCH(\"/\",'CFR - XML import'!$A131,1)-SEARCH(\">\",'CFR - XML import'!$A131,1)-2)))","v":0},{"$f":"IF(ISERROR(FIND(U$3,'CFR - XML import'!$A131)),0,VALUE(MID('CFR - XML import'!$A131,SEARCH(\">\",'CFR - XML import'!$A131,1)+1,SEARCH(\"/\",'CFR - XML import'!$A131,1)-SEARCH(\">\",'CFR - XML import'!$A131,1)-2)))","v":0},{"$f":"IF(ISERROR(FIND(V$3,'CFR - XML import'!$A131)),0,VALUE(MID('CFR - XML import'!$A131,SEARCH(\">\",'CFR - XML import'!$A131,1)+1,SEARCH(\"/\",'CFR - XML import'!$A131,1)-SEARCH(\">\",'CFR - XML import'!$A131,1)-2)))","v":0},{"$f":"IF(ISERROR(FIND(W$3,'CFR - XML import'!$A131)),0,VALUE(MID('CFR - XML import'!$A131,SEARCH(\">\",'CFR - XML import'!$A131,1)+1,SEARCH(\"/\",'CFR - XML import'!$A131,1)-SEARCH(\">\",'CFR - XML import'!$A131,1)-2)))","v":0},null,{"$f":"IF(ISERROR(FIND(Y$3,'CFR - XML import'!$A131)),0,VALUE(MID('CFR - XML import'!$A131,SEARCH(\">\",'CFR - XML import'!$A131,1)+1,SEARCH(\"/\",'CFR - XML import'!$A131,1)-SEARCH(\">\",'CFR - XML import'!$A131,1)-2)))","v":0},{"$f":"IF(ISERROR(FIND(Z$3,'CFR - XML import'!$A131)),0,VALUE(MID('CFR - XML import'!$A131,SEARCH(\">\",'CFR - XML import'!$A131,1)+1,SEARCH(\"/\",'CFR - XML import'!$A131,1)-SEARCH(\">\",'CFR - XML import'!$A131,1)-2)))","v":0},{"$f":"IF(ISERROR(FIND(AA$3,'CFR - XML import'!$A131)),0,VALUE(MID('CFR - XML import'!$A131,SEARCH(\">\",'CFR - XML import'!$A131,1)+1,SEARCH(\"/\",'CFR - XML import'!$A131,1)-SEARCH(\">\",'CFR - XML import'!$A131,1)-2)))","v":0},{"$f":"IF(ISERROR(FIND(AB$3,'CFR - XML import'!$A131)),0,VALUE(MID('CFR - XML import'!$A131,SEARCH(\">\",'CFR - XML import'!$A131,1)+1,SEARCH(\"/\",'CFR - XML import'!$A131,1)-SEARCH(\">\",'CFR - XML import'!$A131,1)-2)))","v":0},{"$f":"IF(ISERROR(FIND(AC$3,'CFR - XML import'!$A131)),0,VALUE(MID('CFR - XML import'!$A131,SEARCH(\">\",'CFR - XML import'!$A131,1)+1,SEARCH(\"/\",'CFR - XML import'!$A131,1)-SEARCH(\">\",'CFR - XML import'!$A131,1)-2)))","v":0},{"$f":"IF(ISERROR(FIND(AD$3,'CFR - XML import'!$A131)),0,VALUE(MID('CFR - XML import'!$A131,SEARCH(\">\",'CFR - XML import'!$A131,1)+1,SEARCH(\"/\",'CFR - XML import'!$A131,1)-SEARCH(\">\",'CFR - XML import'!$A131,1)-2)))","v":0},{"$f":"IF(ISERROR(FIND(AE$3,'CFR - XML import'!$A131)),0,VALUE(MID('CFR - XML import'!$A131,SEARCH(\">\",'CFR - XML import'!$A131,1)+1,SEARCH(\"/\",'CFR - XML import'!$A131,1)-SEARCH(\">\",'CFR - XML import'!$A131,1)-2)))","v":0},{"$f":"IF(ISERROR(FIND(AF$3,'CFR - XML import'!$A131)),0,VALUE(MID('CFR - XML import'!$A131,SEARCH(\">\",'CFR - XML import'!$A131,1)+1,SEARCH(\"/\",'CFR - XML import'!$A131,1)-SEARCH(\">\",'CFR - XML import'!$A131,1)-2)))","v":0},{"$f":"IF(ISERROR(FIND(AG$3,'CFR - XML import'!$A131)),0,VALUE(MID('CFR - XML import'!$A131,SEARCH(\">\",'CFR - XML import'!$A131,1)+1,SEARCH(\"/\",'CFR - XML import'!$A131,1)-SEARCH(\">\",'CFR - XML import'!$A131,1)-2)))","v":0},{"$f":"IF(ISERROR(FIND(AH$3,'CFR - XML import'!$A131)),0,VALUE(MID('CFR - XML import'!$A131,SEARCH(\">\",'CFR - XML import'!$A131,1)+1,SEARCH(\"/\",'CFR - XML import'!$A131,1)-SEARCH(\">\",'CFR - XML import'!$A131,1)-2)))","v":0},{"$f":"IF(ISERROR(FIND(AI$3,'CFR - XML import'!$A131)),0,VALUE(MID('CFR - XML import'!$A131,SEARCH(\">\",'CFR - XML import'!$A131,1)+1,SEARCH(\"/\",'CFR - XML import'!$A131,1)-SEARCH(\">\",'CFR - XML import'!$A131,1)-2)))","v":0},{"$f":"IF(ISERROR(FIND(AJ$3,'CFR - XML import'!$A131)),0,VALUE(MID('CFR - XML import'!$A131,SEARCH(\">\",'CFR - XML import'!$A131,1)+1,SEARCH(\"/\",'CFR - XML import'!$A131,1)-SEARCH(\">\",'CFR - XML import'!$A131,1)-2)))","v":0},{"$f":"IF(ISERROR(FIND(AK$3,'CFR - XML import'!$A131)),0,VALUE(MID('CFR - XML import'!$A131,SEARCH(\">\",'CFR - XML import'!$A131,1)+1,SEARCH(\"/\",'CFR - XML import'!$A131,1)-SEARCH(\">\",'CFR - XML import'!$A131,1)-2)))","v":0},{"$f":"IF(ISERROR(FIND(AL$3,'CFR - XML import'!$A131)),0,VALUE(MID('CFR - XML import'!$A131,SEARCH(\">\",'CFR - XML import'!$A131,1)+1,SEARCH(\"/\",'CFR - XML import'!$A131,1)-SEARCH(\">\",'CFR - XML import'!$A131,1)-2)))","v":0},{"$f":"IF(ISERROR(FIND(AM$3,'CFR - XML import'!$A131)),0,VALUE(MID('CFR - XML import'!$A131,SEARCH(\">\",'CFR - XML import'!$A131,1)+1,SEARCH(\"/\",'CFR - XML import'!$A131,1)-SEARCH(\">\",'CFR - XML import'!$A131,1)-2)))","v":0},{"$f":"IF(ISERROR(FIND(AN$3,'CFR - XML import'!$A131)),0,VALUE(MID('CFR - XML import'!$A131,SEARCH(\">\",'CFR - XML import'!$A131,1)+1,SEARCH(\"/\",'CFR - XML import'!$A131,1)-SEARCH(\">\",'CFR - XML import'!$A131,1)-2)))","v":0},{"$f":"IF(ISERROR(FIND(AO$3,'CFR - XML import'!$A131)),0,VALUE(MID('CFR - XML import'!$A131,SEARCH(\">\",'CFR - XML import'!$A131,1)+1,SEARCH(\"/\",'CFR - XML import'!$A131,1)-SEARCH(\">\",'CFR - XML import'!$A131,1)-2)))","v":0},{"$f":"IF(ISERROR(FIND(AP$3,'CFR - XML import'!$A131)),0,VALUE(MID('CFR - XML import'!$A131,SEARCH(\">\",'CFR - XML import'!$A131,1)+1,SEARCH(\"/\",'CFR - XML import'!$A131,1)-SEARCH(\">\",'CFR - XML import'!$A131,1)-2)))","v":0},{"$f":"IF(ISERROR(FIND(AQ$3,'CFR - XML import'!$A131)),0,VALUE(MID('CFR - XML import'!$A131,SEARCH(\">\",'CFR - XML import'!$A131,1)+1,SEARCH(\"/\",'CFR - XML import'!$A131,1)-SEARCH(\">\",'CFR - XML import'!$A131,1)-2)))","v":0},{"$f":"IF(ISERROR(FIND(AR$3,'CFR - XML import'!$A131)),0,VALUE(MID('CFR - XML import'!$A131,SEARCH(\">\",'CFR - XML import'!$A131,1)+1,SEARCH(\"/\",'CFR - XML import'!$A131,1)-SEARCH(\">\",'CFR - XML import'!$A131,1)-2)))","v":0},{"$f":"IF(ISERROR(FIND(AS$3,'CFR - XML import'!$A131)),0,VALUE(MID('CFR - XML import'!$A131,SEARCH(\">\",'CFR - XML import'!$A131,1)+1,SEARCH(\"/\",'CFR - XML import'!$A131,1)-SEARCH(\">\",'CFR - XML import'!$A131,1)-2)))","v":0},{"$f":"IF(ISERROR(FIND(AT$3,'CFR - XML import'!$A131)),0,VALUE(MID('CFR - XML import'!$A131,SEARCH(\">\",'CFR - XML import'!$A131,1)+1,SEARCH(\"/\",'CFR - XML import'!$A131,1)-SEARCH(\">\",'CFR - XML import'!$A131,1)-2)))","v":0},{"$f":"IF(ISERROR(FIND(AU$3,'CFR - XML import'!$A131)),0,VALUE(MID('CFR - XML import'!$A131,SEARCH(\">\",'CFR - XML import'!$A131,1)+1,SEARCH(\"/\",'CFR - XML import'!$A131,1)-SEARCH(\">\",'CFR - XML import'!$A131,1)-2)))","v":0},{"$f":"IF(ISERROR(FIND(AV$3,'CFR - XML import'!$A131)),0,VALUE(MID('CFR - XML import'!$A131,SEARCH(\">\",'CFR - XML import'!$A131,1)+1,SEARCH(\"/\",'CFR - XML import'!$A131,1)-SEARCH(\">\",'CFR - XML import'!$A131,1)-2)))","v":0},{"$f":"IF(ISERROR(FIND(AW$3,'CFR - XML import'!$A131)),0,VALUE(MID('CFR - XML import'!$A131,SEARCH(\">\",'CFR - XML import'!$A131,1)+1,SEARCH(\"/\",'CFR - XML import'!$A131,1)-SEARCH(\">\",'CFR - XML import'!$A131,1)-2)))","v":0},{"$f":"IF(ISERROR(FIND(AX$3,'CFR - XML import'!$A131)),0,VALUE(MID('CFR - XML import'!$A131,SEARCH(\">\",'CFR - XML import'!$A131,1)+1,SEARCH(\"/\",'CFR - XML import'!$A131,1)-SEARCH(\">\",'CFR - XML import'!$A131,1)-2)))","v":0},{"$f":"IF(ISERROR(FIND(AY$3,'CFR - XML import'!$A131)),0,VALUE(MID('CFR - XML import'!$A131,SEARCH(\">\",'CFR - XML import'!$A131,1)+1,SEARCH(\"/\",'CFR - XML import'!$A131,1)-SEARCH(\">\",'CFR - XML import'!$A131,1)-2)))","v":0},{"$f":"IF(ISERROR(FIND(AZ$3,'CFR - XML import'!$A131)),0,VALUE(MID('CFR - XML import'!$A131,SEARCH(\">\",'CFR - XML import'!$A131,1)+1,SEARCH(\"/\",'CFR - XML import'!$A131,1)-SEARCH(\">\",'CFR - XML import'!$A131,1)-2)))","v":0},{"$f":"IF(ISERROR(FIND(BA$3,'CFR - XML import'!$A131)),0,VALUE(MID('CFR - XML import'!$A131,SEARCH(\">\",'CFR - XML import'!$A131,1)+1,SEARCH(\"/\",'CFR - XML import'!$A131,1)-SEARCH(\">\",'CFR - XML import'!$A131,1)-2)))","v":0},{"$f":"IF(ISERROR(FIND(BB$3,'CFR - XML import'!$A131)),0,VALUE(MID('CFR - XML import'!$A131,SEARCH(\">\",'CFR - XML import'!$A131,1)+1,SEARCH(\"/\",'CFR - XML import'!$A131,1)-SEARCH(\">\",'CFR - XML import'!$A131,1)-2)))","v":0},{"$f":"IF(ISERROR(FIND(BC$3,'CFR - XML import'!$A131)),0,VALUE(MID('CFR - XML import'!$A131,SEARCH(\">\",'CFR - XML import'!$A131,1)+1,SEARCH(\"/\",'CFR - XML import'!$A131,1)-SEARCH(\">\",'CFR - XML import'!$A131,1)-2)))","v":0},{"$f":"IF(ISERROR(FIND(BD$3,'CFR - XML import'!$A131)),0,VALUE(MID('CFR - XML import'!$A131,SEARCH(\">\",'CFR - XML import'!$A131,1)+1,SEARCH(\"/\",'CFR - XML import'!$A131,1)-SEARCH(\">\",'CFR - XML import'!$A131,1)-2)))","v":0},{"$f":"IF(ISERROR(FIND(BE$3,'CFR - XML import'!$A131)),0,VALUE(MID('CFR - XML import'!$A131,SEARCH(\">\",'CFR - XML import'!$A131,1)+1,SEARCH(\"/\",'CFR - XML import'!$A131,1)-SEARCH(\">\",'CFR - XML import'!$A131,1)-2)))","v":0},{"$f":"IF(ISERROR(FIND(BF$3,'CFR - XML import'!$A131)),0,VALUE(MID('CFR - XML import'!$A131,SEARCH(\">\",'CFR - XML import'!$A131,1)+1,SEARCH(\"/\",'CFR - XML import'!$A131,1)-SEARCH(\">\",'CFR - XML import'!$A131,1)-2)))","v":0},{"$f":"IF(ISERROR(FIND(BG$3,'CFR - XML import'!$A131)),0,VALUE(MID('CFR - XML import'!$A131,SEARCH(\">\",'CFR - XML import'!$A131,1)+1,SEARCH(\"/\",'CFR - XML import'!$A131,1)-SEARCH(\">\",'CFR - XML import'!$A131,1)-2)))","v":0},{"$f":"IF(ISERROR(FIND(BH$3,'CFR - XML import'!$A131)),0,VALUE(MID('CFR - XML import'!$A131,SEARCH(\">\",'CFR - XML import'!$A131,1)+1,SEARCH(\"/\",'CFR - XML import'!$A131,1)-SEARCH(\">\",'CFR - XML import'!$A131,1)-2)))","v":0},{"$f":"IF(ISERROR(FIND(BI$3,'CFR - XML import'!$A131)),0,VALUE(MID('CFR - XML import'!$A131,SEARCH(\">\",'CFR - XML import'!$A131,1)+1,SEARCH(\"/\",'CFR - XML import'!$A131,1)-SEARCH(\">\",'CFR - XML import'!$A131,1)-2)))","v":0},{"$f":"IF(ISERROR(FIND(BJ$3,'CFR - XML import'!$A131)),0,VALUE(MID('CFR - XML import'!$A131,SEARCH(\">\",'CFR - XML import'!$A131,1)+1,SEARCH(\"/\",'CFR - XML import'!$A131,1)-SEARCH(\">\",'CFR - XML import'!$A131,1)-2)))","v":0},{"$f":"IF(ISERROR(FIND(BK$3,'CFR - XML import'!$A131)),0,VALUE(MID('CFR - XML import'!$A131,SEARCH(\">\",'CFR - XML import'!$A131,1)+1,SEARCH(\"/\",'CFR - XML import'!$A131,1)-SEARCH(\">\",'CFR - XML import'!$A131,1)-2)))","v":0},{"$f":"IF(ISERROR(FIND(BL$3,'CFR - XML import'!$A131)),0,VALUE(MID('CFR - XML import'!$A131,SEARCH(\">\",'CFR - XML import'!$A131,1)+1,SEARCH(\"/\",'CFR - XML import'!$A131,1)-SEARCH(\">\",'CFR - XML import'!$A131,1)-2)))","v":0},{"$f":"IF(ISERROR(FIND(BM$3,'CFR - XML import'!$A131)),0,VALUE(MID('CFR - XML import'!$A131,SEARCH(\">\",'CFR - XML import'!$A131,1)+1,SEARCH(\"/\",'CFR - XML import'!$A131,1)-SEARCH(\">\",'CFR - XML import'!$A131,1)-2)))","v":0},{"$f":"IF(ISERROR(FIND(BN$3,'CFR - XML import'!$A131)),0,VALUE(MID('CFR - XML import'!$A131,SEARCH(\">\",'CFR - XML import'!$A131,1)+1,SEARCH(\"/\",'CFR - XML import'!$A131,1)-SEARCH(\">\",'CFR - XML import'!$A131,1)-2)))","v":0},{"$f":"IF(ISERROR(FIND(BO$3,'CFR - XML import'!$A131)),0,VALUE(MID('CFR - XML import'!$A131,SEARCH(\">\",'CFR - XML import'!$A131,1)+1,SEARCH(\"/\",'CFR - XML import'!$A131,1)-SEARCH(\">\",'CFR - XML import'!$A131,1)-2)))","v":0},{"$f":"IF(ISERROR(FIND(BP$3,'CFR - XML import'!$A131)),0,VALUE(MID('CFR - XML import'!$A131,SEARCH(\">\",'CFR - XML import'!$A131,1)+1,SEARCH(\"/\",'CFR - XML import'!$A131,1)-SEARCH(\">\",'CFR - XML import'!$A131,1)-2)))","v":0},{"$f":"IF(ISERROR(FIND(BQ$3,'CFR - XML import'!$A131)),0,VALUE(MID('CFR - XML import'!$A131,SEARCH(\">\",'CFR - XML import'!$A131,1)+1,SEARCH(\"/\",'CFR - XML import'!$A131,1)-SEARCH(\">\",'CFR - XML import'!$A131,1)-2)))","v":0},{"$f":"IF(ISERROR(FIND(BR$3,'CFR - XML import'!$A131)),0,VALUE(MID('CFR - XML import'!$A131,SEARCH(\">\",'CFR - XML import'!$A131,1)+1,SEARCH(\"/\",'CFR - XML import'!$A131,1)-SEARCH(\">\",'CFR - XML import'!$A131,1)-2)))","v":0},{"$f":"IF(ISERROR(FIND(BS$3,'CFR - XML import'!$A131)),0,VALUE(MID('CFR - XML import'!$A131,SEARCH(\">\",'CFR - XML import'!$A131,1)+1,SEARCH(\"/\",'CFR - XML import'!$A131,1)-SEARCH(\">\",'CFR - XML import'!$A131,1)-2)))","v":0},{"$f":"IF(ISERROR(FIND(BT$3,'CFR - XML import'!$A131)),0,VALUE(MID('CFR - XML import'!$A131,SEARCH(\">\",'CFR - XML import'!$A131,1)+1,SEARCH(\"/\",'CFR - XML import'!$A131,1)-SEARCH(\">\",'CFR - XML import'!$A131,1)-2)))","v":0},{"$f":"IF(ISERROR(FIND(BU$3,'CFR - XML import'!$A131)),0,VALUE(MID('CFR - XML import'!$A131,SEARCH(\">\",'CFR - XML import'!$A131,1)+1,SEARCH(\"/\",'CFR - XML import'!$A131,1)-SEARCH(\">\",'CFR - XML import'!$A131,1)-2)))","v":0},{"$f":"IF(ISERROR(FIND(BV$3,'CFR - XML import'!$A131)),0,VALUE(MID('CFR - XML import'!$A131,SEARCH(\">\",'CFR - XML import'!$A131,1)+1,SEARCH(\"/\",'CFR - XML import'!$A131,1)-SEARCH(\">\",'CFR - XML import'!$A131,1)-2)))","v":0},{"$f":"IF(ISERROR(FIND(BW$3,'CFR - XML import'!$A131)),0,VALUE(MID('CFR - XML import'!$A131,SEARCH(\">\",'CFR - XML import'!$A131,1)+1,SEARCH(\"/\",'CFR - XML import'!$A131,1)-SEARCH(\">\",'CFR - XML import'!$A131,1)-2)))","v":0},{"$f":"IF(ISERROR(FIND(BX$3,'CFR - XML import'!$A131)),0,VALUE(MID('CFR - XML import'!$A131,SEARCH(\">\",'CFR - XML import'!$A131,1)+1,SEARCH(\"/\",'CFR - XML import'!$A131,1)-SEARCH(\">\",'CFR - XML import'!$A131,1)-2)))","v":0},{"$f":"IF(ISERROR(FIND(BY$3,'CFR - XML import'!$A131)),0,VALUE(MID('CFR - XML import'!$A131,SEARCH(\">\",'CFR - XML import'!$A131,1)+1,SEARCH(\"/\",'CFR - XML import'!$A131,1)-SEARCH(\">\",'CFR - XML import'!$A131,1)-2)))","v":0},{"$f":"IF(ISERROR(FIND(BZ$3,'CFR - XML import'!$A131)),0,VALUE(MID('CFR - XML import'!$A131,SEARCH(\">\",'CFR - XML import'!$A131,1)+1,SEARCH(\"/\",'CFR - XML import'!$A131,1)-SEARCH(\">\",'CFR - XML import'!$A131,1)-2)))","v":0},null,null,null,null,null,null,{"$f":"IF(ISERROR(IF(MID('CFR - XML import'!$A131,LEN($CF$4)+1,LEN('CFR - XML import'!$A131)-(2*LEN($CF$4)+1))=\"RMMS\",1,IF(MID('CFR - XML import'!$A131,LEN(\"    <InputSystem>\")+1,LEN('CFR - XML import'!$A131)-(LEN(\"    <InputSystem>\")+LEN($CF$4)+1))=\"SIMS\",2,0))),0,IF(MID('CFR - XML import'!$A131,LEN($CF$4)+1,LEN('CFR - XML import'!$A131)-(2*LEN($CF$4)+1))=\"RMMS\",1,IF(MID('CFR - XML import'!$A131,LEN(\"    <InputSystem>\")+1,LEN('CFR - XML import'!$A131)-(LEN(\"    <InputSystem>\")+LEN($CF$4)+1))=\"SIMS\",2,0)))","v":0},{"$f":"IF(ISERROR(FIND(CH$3,'CFR - XML import'!$A131)),0,MID('CFR - XML import'!$A131,SEARCH(\">\",'CFR - XML import'!$A131,1)+1,SEARCH(\"/\",'CFR - XML import'!$A131,1)-SEARCH(\">\",'CFR - XML import'!$A131,1)-2))","v":0},{"$f":"IF(ISERROR(FIND(CI$3,'CFR - XML import'!$A131)),0,MID('CFR - XML import'!$A131,SEARCH(\">\",'CFR - XML import'!$A131,1)+1,SEARCH(\"/\",'CFR - XML import'!$A131,1)-SEARCH(\">\",'CFR - XML import'!$A131,1)-2))","v":0},{"$f":"IF(ISERROR(FIND(CJ$3,'CFR - XML import'!$A131)),0,MID('CFR - XML import'!$A131,SEARCH(\">\",'CFR - XML import'!$A131,1)+1,SEARCH(\"/\",'CFR - XML import'!$A131,1)-SEARCH(\">\",'CFR - XML import'!$A131,1)-2))","v":0},{"$f":"IF(ISERROR(FIND(CK$3,'CFR - XML import'!$A131)),0,MID('CFR - XML import'!$A131,SEARCH(\">\",'CFR - XML import'!$A131,1)+1,SEARCH(\"/\",'CFR - XML import'!$A131,1)-SEARCH(\">\",'CFR - XML import'!$A131,1)-2))","v":0},{"$f":"IF(ISERROR(FIND(CL$3,'CFR - XML import'!$A131)),0,MID('CFR - XML import'!$A131,SEARCH(\">\",'CFR - XML import'!$A131,1)+1,SEARCH(\"/\",'CFR - XML import'!$A131,1)-SEARCH(\">\",'CFR - XML import'!$A131,1)-2))","v":0}]
[{"$f":"IF(AND('CFR - XML import'!A132<>\"\",LEFT('CFR - XML import'!A132,1)<>\"<\",LEFT('CFR - XML import'!A132,3)<>\"  <\",LEFT('CFR - XML import'!A132,5)<>\"    <\",LEFT('CFR - XML import'!A132,7)<>\"      <\",LEFT('CFR - XML import'!A132,9)<>\"        <\",$B$1=\"SIMS\"),'CFR - XML import'!A132,IF(AND(LEFT('CFR - XML import'!A132,9)=\"<Details>\",$B$1=\"RM\"),'CFR - XML import'!A132,\"\"))","v":""},{"$f":"IF(ISERROR(FIND(B$3,'CFR - XML import'!$A132)),0,VALUE(MID('CFR - XML import'!$A132,SEARCH(\">\",'CFR - XML import'!$A132,1)+1,SEARCH(\"/\",'CFR - XML import'!$A132,1)-SEARCH(\">\",'CFR - XML import'!$A132,1)-2)))","v":0},null,{"$f":"IF(ISERROR(FIND(D$3,'CFR - XML import'!$A132)),0,MID('CFR - XML import'!$A132,SEARCH(\">\",'CFR - XML import'!$A132,1)+1,SEARCH(\"/\",'CFR - XML import'!$A132,1)-SEARCH(\">\",'CFR - XML import'!$A132,1)-2))","v":0},{"$f":"IF(ISERROR(FIND(E$3,'CFR - XML import'!$A132)),0,MID('CFR - XML import'!$A132,SEARCH(\">\",'CFR - XML import'!$A132,1)+1,SEARCH(\"/\",'CFR - XML import'!$A132,1)-SEARCH(\">\",'CFR - XML import'!$A132,1)-2))","v":0},{"$f":"IF($B$1=\"SIMS\",IF(ISERROR(FIND(F$3,'CFR - XML import'!$A132)),0,VALUE(MID('CFR - XML import'!$A132,15,10))),IF(ISERROR(FIND(F$3,'CFR - XML import'!$A132)),0,VALUE(MID('CFR - XML import'!$A132,11,10))))","v":"00:00:00"},{"$f":"IF(ISERROR(FIND(G$3,'CFR - XML import'!$A132)),0,VALUE(MID('CFR - XML import'!$A132,SEARCH(\">\",'CFR - XML import'!$A132,1)+1,SEARCH(\"/\",'CFR - XML import'!$A132,1)-SEARCH(\">\",'CFR - XML import'!$A132,1)-2)))","v":0},{"$f":"IF(ISERROR(FIND(H$3,'CFR - XML import'!$A132)),0,VALUE(MID('CFR - XML import'!$A132,SEARCH(\">\",'CFR - XML import'!$A132,1)+1,SEARCH(\"/\",'CFR - XML import'!$A132,1)-SEARCH(\">\",'CFR - XML import'!$A132,1)-2)))","v":0},{"$f":"IF(ISERROR(FIND(I$3,'CFR - XML import'!$A132)),0,VALUE(MID('CFR - XML import'!$A132,SEARCH(\">\",'CFR - XML import'!$A132,1)+1,SEARCH(\"/\",'CFR - XML import'!$A132,1)-SEARCH(\">\",'CFR - XML import'!$A132,1)-2)))","v":0},{"$f":"IF(ISERROR(FIND(J$3,'CFR - XML import'!$A132)),0,VALUE(MID('CFR - XML import'!$A132,SEARCH(\">\",'CFR - XML import'!$A132,1)+1,SEARCH(\"/\",'CFR - XML import'!$A132,1)-SEARCH(\">\",'CFR - XML import'!$A132,1)-2)))","v":0},{"$f":"IF(ISERROR(FIND(K$3,'CFR - XML import'!$A132)),0,VALUE(MID('CFR - XML import'!$A132,SEARCH(\">\",'CFR - XML import'!$A132,1)+1,SEARCH(\"/\",'CFR - XML import'!$A132,1)-SEARCH(\">\",'CFR - XML import'!$A132,1)-2)))","v":0},{"$f":"IF(ISERROR(FIND(L$3,'CFR - XML import'!$A132)),0,VALUE(MID('CFR - XML import'!$A132,SEARCH(\">\",'CFR - XML import'!$A132,1)+1,SEARCH(\"/\",'CFR - XML import'!$A132,1)-SEARCH(\">\",'CFR - XML import'!$A132,1)-2)))","v":0},{"$f":"IF(ISERROR(FIND(M$3,'CFR - XML import'!$A132)),0,VALUE(MID('CFR - XML import'!$A132,SEARCH(\">\",'CFR - XML import'!$A132,1)+1,SEARCH(\"/\",'CFR - XML import'!$A132,1)-SEARCH(\">\",'CFR - XML import'!$A132,1)-2)))","v":0},{"$f":"IF(ISERROR(FIND(N$3,'CFR - XML import'!$A132)),0,VALUE(MID('CFR - XML import'!$A132,SEARCH(\">\",'CFR - XML import'!$A132,1)+1,SEARCH(\"/\",'CFR - XML import'!$A132,1)-SEARCH(\">\",'CFR - XML import'!$A132,1)-2)))","v":0},{"$f":"IF(ISERROR(FIND(O$3,'CFR - XML import'!$A132)),0,VALUE(MID('CFR - XML import'!$A132,SEARCH(\">\",'CFR - XML import'!$A132,1)+1,SEARCH(\"/\",'CFR - XML import'!$A132,1)-SEARCH(\">\",'CFR - XML import'!$A132,1)-2)))","v":0},{"$f":"IF(ISERROR(FIND(P$3,'CFR - XML import'!$A132)),0,VALUE(MID('CFR - XML import'!$A132,SEARCH(\">\",'CFR - XML import'!$A132,1)+1,SEARCH(\"/\",'CFR - XML import'!$A132,1)-SEARCH(\">\",'CFR - XML import'!$A132,1)-2)))","v":0},{"$f":"IF(ISERROR(FIND(Q$3,'CFR - XML import'!$A132)),0,VALUE(MID('CFR - XML import'!$A132,SEARCH(\">\",'CFR - XML import'!$A132,1)+1,SEARCH(\"/\",'CFR - XML import'!$A132,1)-SEARCH(\">\",'CFR - XML import'!$A132,1)-2)))","v":0},{"$f":"IF(ISERROR(FIND(R$3,'CFR - XML import'!$A132)),0,VALUE(MID('CFR - XML import'!$A132,SEARCH(\">\",'CFR - XML import'!$A132,1)+1,SEARCH(\"/\",'CFR - XML import'!$A132,1)-SEARCH(\">\",'CFR - XML import'!$A132,1)-2)))","v":0},{"$f":"IF(ISERROR(FIND(S$3,'CFR - XML import'!$A132)),0,VALUE(MID('CFR - XML import'!$A132,SEARCH(\">\",'CFR - XML import'!$A132,1)+1,SEARCH(\"/\",'CFR - XML import'!$A132,1)-SEARCH(\">\",'CFR - XML import'!$A132,1)-2)))","v":0},{"$f":"IF(ISERROR(FIND(T$3,'CFR - XML import'!$A132)),0,VALUE(MID('CFR - XML import'!$A132,SEARCH(\">\",'CFR - XML import'!$A132,1)+1,SEARCH(\"/\",'CFR - XML import'!$A132,1)-SEARCH(\">\",'CFR - XML import'!$A132,1)-2)))","v":0},{"$f":"IF(ISERROR(FIND(U$3,'CFR - XML import'!$A132)),0,VALUE(MID('CFR - XML import'!$A132,SEARCH(\">\",'CFR - XML import'!$A132,1)+1,SEARCH(\"/\",'CFR - XML import'!$A132,1)-SEARCH(\">\",'CFR - XML import'!$A132,1)-2)))","v":0},{"$f":"IF(ISERROR(FIND(V$3,'CFR - XML import'!$A132)),0,VALUE(MID('CFR - XML import'!$A132,SEARCH(\">\",'CFR - XML import'!$A132,1)+1,SEARCH(\"/\",'CFR - XML import'!$A132,1)-SEARCH(\">\",'CFR - XML import'!$A132,1)-2)))","v":0},{"$f":"IF(ISERROR(FIND(W$3,'CFR - XML import'!$A132)),0,VALUE(MID('CFR - XML import'!$A132,SEARCH(\">\",'CFR - XML import'!$A132,1)+1,SEARCH(\"/\",'CFR - XML import'!$A132,1)-SEARCH(\">\",'CFR - XML import'!$A132,1)-2)))","v":0},null,{"$f":"IF(ISERROR(FIND(Y$3,'CFR - XML import'!$A132)),0,VALUE(MID('CFR - XML import'!$A132,SEARCH(\">\",'CFR - XML import'!$A132,1)+1,SEARCH(\"/\",'CFR - XML import'!$A132,1)-SEARCH(\">\",'CFR - XML import'!$A132,1)-2)))","v":0},{"$f":"IF(ISERROR(FIND(Z$3,'CFR - XML import'!$A132)),0,VALUE(MID('CFR - XML import'!$A132,SEARCH(\">\",'CFR - XML import'!$A132,1)+1,SEARCH(\"/\",'CFR - XML import'!$A132,1)-SEARCH(\">\",'CFR - XML import'!$A132,1)-2)))","v":0},{"$f":"IF(ISERROR(FIND(AA$3,'CFR - XML import'!$A132)),0,VALUE(MID('CFR - XML import'!$A132,SEARCH(\">\",'CFR - XML import'!$A132,1)+1,SEARCH(\"/\",'CFR - XML import'!$A132,1)-SEARCH(\">\",'CFR - XML import'!$A132,1)-2)))","v":0},{"$f":"IF(ISERROR(FIND(AB$3,'CFR - XML import'!$A132)),0,VALUE(MID('CFR - XML import'!$A132,SEARCH(\">\",'CFR - XML import'!$A132,1)+1,SEARCH(\"/\",'CFR - XML import'!$A132,1)-SEARCH(\">\",'CFR - XML import'!$A132,1)-2)))","v":0},{"$f":"IF(ISERROR(FIND(AC$3,'CFR - XML import'!$A132)),0,VALUE(MID('CFR - XML import'!$A132,SEARCH(\">\",'CFR - XML import'!$A132,1)+1,SEARCH(\"/\",'CFR - XML import'!$A132,1)-SEARCH(\">\",'CFR - XML import'!$A132,1)-2)))","v":0},{"$f":"IF(ISERROR(FIND(AD$3,'CFR - XML import'!$A132)),0,VALUE(MID('CFR - XML import'!$A132,SEARCH(\">\",'CFR - XML import'!$A132,1)+1,SEARCH(\"/\",'CFR - XML import'!$A132,1)-SEARCH(\">\",'CFR - XML import'!$A132,1)-2)))","v":0},{"$f":"IF(ISERROR(FIND(AE$3,'CFR - XML import'!$A132)),0,VALUE(MID('CFR - XML import'!$A132,SEARCH(\">\",'CFR - XML import'!$A132,1)+1,SEARCH(\"/\",'CFR - XML import'!$A132,1)-SEARCH(\">\",'CFR - XML import'!$A132,1)-2)))","v":0},{"$f":"IF(ISERROR(FIND(AF$3,'CFR - XML import'!$A132)),0,VALUE(MID('CFR - XML import'!$A132,SEARCH(\">\",'CFR - XML import'!$A132,1)+1,SEARCH(\"/\",'CFR - XML import'!$A132,1)-SEARCH(\">\",'CFR - XML import'!$A132,1)-2)))","v":0},{"$f":"IF(ISERROR(FIND(AG$3,'CFR - XML import'!$A132)),0,VALUE(MID('CFR - XML import'!$A132,SEARCH(\">\",'CFR - XML import'!$A132,1)+1,SEARCH(\"/\",'CFR - XML import'!$A132,1)-SEARCH(\">\",'CFR - XML import'!$A132,1)-2)))","v":0},{"$f":"IF(ISERROR(FIND(AH$3,'CFR - XML import'!$A132)),0,VALUE(MID('CFR - XML import'!$A132,SEARCH(\">\",'CFR - XML import'!$A132,1)+1,SEARCH(\"/\",'CFR - XML import'!$A132,1)-SEARCH(\">\",'CFR - XML import'!$A132,1)-2)))","v":0},{"$f":"IF(ISERROR(FIND(AI$3,'CFR - XML import'!$A132)),0,VALUE(MID('CFR - XML import'!$A132,SEARCH(\">\",'CFR - XML import'!$A132,1)+1,SEARCH(\"/\",'CFR - XML import'!$A132,1)-SEARCH(\">\",'CFR - XML import'!$A132,1)-2)))","v":0},{"$f":"IF(ISERROR(FIND(AJ$3,'CFR - XML import'!$A132)),0,VALUE(MID('CFR - XML import'!$A132,SEARCH(\">\",'CFR - XML import'!$A132,1)+1,SEARCH(\"/\",'CFR - XML import'!$A132,1)-SEARCH(\">\",'CFR - XML import'!$A132,1)-2)))","v":0},{"$f":"IF(ISERROR(FIND(AK$3,'CFR - XML import'!$A132)),0,VALUE(MID('CFR - XML import'!$A132,SEARCH(\">\",'CFR - XML import'!$A132,1)+1,SEARCH(\"/\",'CFR - XML import'!$A132,1)-SEARCH(\">\",'CFR - XML import'!$A132,1)-2)))","v":0},{"$f":"IF(ISERROR(FIND(AL$3,'CFR - XML import'!$A132)),0,VALUE(MID('CFR - XML import'!$A132,SEARCH(\">\",'CFR - XML import'!$A132,1)+1,SEARCH(\"/\",'CFR - XML import'!$A132,1)-SEARCH(\">\",'CFR - XML import'!$A132,1)-2)))","v":0},{"$f":"IF(ISERROR(FIND(AM$3,'CFR - XML import'!$A132)),0,VALUE(MID('CFR - XML import'!$A132,SEARCH(\">\",'CFR - XML import'!$A132,1)+1,SEARCH(\"/\",'CFR - XML import'!$A132,1)-SEARCH(\">\",'CFR - XML import'!$A132,1)-2)))","v":0},{"$f":"IF(ISERROR(FIND(AN$3,'CFR - XML import'!$A132)),0,VALUE(MID('CFR - XML import'!$A132,SEARCH(\">\",'CFR - XML import'!$A132,1)+1,SEARCH(\"/\",'CFR - XML import'!$A132,1)-SEARCH(\">\",'CFR - XML import'!$A132,1)-2)))","v":0},{"$f":"IF(ISERROR(FIND(AO$3,'CFR - XML import'!$A132)),0,VALUE(MID('CFR - XML import'!$A132,SEARCH(\">\",'CFR - XML import'!$A132,1)+1,SEARCH(\"/\",'CFR - XML import'!$A132,1)-SEARCH(\">\",'CFR - XML import'!$A132,1)-2)))","v":0},{"$f":"IF(ISERROR(FIND(AP$3,'CFR - XML import'!$A132)),0,VALUE(MID('CFR - XML import'!$A132,SEARCH(\">\",'CFR - XML import'!$A132,1)+1,SEARCH(\"/\",'CFR - XML import'!$A132,1)-SEARCH(\">\",'CFR - XML import'!$A132,1)-2)))","v":0},{"$f":"IF(ISERROR(FIND(AQ$3,'CFR - XML import'!$A132)),0,VALUE(MID('CFR - XML import'!$A132,SEARCH(\">\",'CFR - XML import'!$A132,1)+1,SEARCH(\"/\",'CFR - XML import'!$A132,1)-SEARCH(\">\",'CFR - XML import'!$A132,1)-2)))","v":0},{"$f":"IF(ISERROR(FIND(AR$3,'CFR - XML import'!$A132)),0,VALUE(MID('CFR - XML import'!$A132,SEARCH(\">\",'CFR - XML import'!$A132,1)+1,SEARCH(\"/\",'CFR - XML import'!$A132,1)-SEARCH(\">\",'CFR - XML import'!$A132,1)-2)))","v":0},{"$f":"IF(ISERROR(FIND(AS$3,'CFR - XML import'!$A132)),0,VALUE(MID('CFR - XML import'!$A132,SEARCH(\">\",'CFR - XML import'!$A132,1)+1,SEARCH(\"/\",'CFR - XML import'!$A132,1)-SEARCH(\">\",'CFR - XML import'!$A132,1)-2)))","v":0},{"$f":"IF(ISERROR(FIND(AT$3,'CFR - XML import'!$A132)),0,VALUE(MID('CFR - XML import'!$A132,SEARCH(\">\",'CFR - XML import'!$A132,1)+1,SEARCH(\"/\",'CFR - XML import'!$A132,1)-SEARCH(\">\",'CFR - XML import'!$A132,1)-2)))","v":0},{"$f":"IF(ISERROR(FIND(AU$3,'CFR - XML import'!$A132)),0,VALUE(MID('CFR - XML import'!$A132,SEARCH(\">\",'CFR - XML import'!$A132,1)+1,SEARCH(\"/\",'CFR - XML import'!$A132,1)-SEARCH(\">\",'CFR - XML import'!$A132,1)-2)))","v":0},{"$f":"IF(ISERROR(FIND(AV$3,'CFR - XML import'!$A132)),0,VALUE(MID('CFR - XML import'!$A132,SEARCH(\">\",'CFR - XML import'!$A132,1)+1,SEARCH(\"/\",'CFR - XML import'!$A132,1)-SEARCH(\">\",'CFR - XML import'!$A132,1)-2)))","v":0},{"$f":"IF(ISERROR(FIND(AW$3,'CFR - XML import'!$A132)),0,VALUE(MID('CFR - XML import'!$A132,SEARCH(\">\",'CFR - XML import'!$A132,1)+1,SEARCH(\"/\",'CFR - XML import'!$A132,1)-SEARCH(\">\",'CFR - XML import'!$A132,1)-2)))","v":0},{"$f":"IF(ISERROR(FIND(AX$3,'CFR - XML import'!$A132)),0,VALUE(MID('CFR - XML import'!$A132,SEARCH(\">\",'CFR - XML import'!$A132,1)+1,SEARCH(\"/\",'CFR - XML import'!$A132,1)-SEARCH(\">\",'CFR - XML import'!$A132,1)-2)))","v":0},{"$f":"IF(ISERROR(FIND(AY$3,'CFR - XML import'!$A132)),0,VALUE(MID('CFR - XML import'!$A132,SEARCH(\">\",'CFR - XML import'!$A132,1)+1,SEARCH(\"/\",'CFR - XML import'!$A132,1)-SEARCH(\">\",'CFR - XML import'!$A132,1)-2)))","v":0},{"$f":"IF(ISERROR(FIND(AZ$3,'CFR - XML import'!$A132)),0,VALUE(MID('CFR - XML import'!$A132,SEARCH(\">\",'CFR - XML import'!$A132,1)+1,SEARCH(\"/\",'CFR - XML import'!$A132,1)-SEARCH(\">\",'CFR - XML import'!$A132,1)-2)))","v":0},{"$f":"IF(ISERROR(FIND(BA$3,'CFR - XML import'!$A132)),0,VALUE(MID('CFR - XML import'!$A132,SEARCH(\">\",'CFR - XML import'!$A132,1)+1,SEARCH(\"/\",'CFR - XML import'!$A132,1)-SEARCH(\">\",'CFR - XML import'!$A132,1)-2)))","v":0},{"$f":"IF(ISERROR(FIND(BB$3,'CFR - XML import'!$A132)),0,VALUE(MID('CFR - XML import'!$A132,SEARCH(\">\",'CFR - XML import'!$A132,1)+1,SEARCH(\"/\",'CFR - XML import'!$A132,1)-SEARCH(\">\",'CFR - XML import'!$A132,1)-2)))","v":0},{"$f":"IF(ISERROR(FIND(BC$3,'CFR - XML import'!$A132)),0,VALUE(MID('CFR - XML import'!$A132,SEARCH(\">\",'CFR - XML import'!$A132,1)+1,SEARCH(\"/\",'CFR - XML import'!$A132,1)-SEARCH(\">\",'CFR - XML import'!$A132,1)-2)))","v":0},{"$f":"IF(ISERROR(FIND(BD$3,'CFR - XML import'!$A132)),0,VALUE(MID('CFR - XML import'!$A132,SEARCH(\">\",'CFR - XML import'!$A132,1)+1,SEARCH(\"/\",'CFR - XML import'!$A132,1)-SEARCH(\">\",'CFR - XML import'!$A132,1)-2)))","v":0},{"$f":"IF(ISERROR(FIND(BE$3,'CFR - XML import'!$A132)),0,VALUE(MID('CFR - XML import'!$A132,SEARCH(\">\",'CFR - XML import'!$A132,1)+1,SEARCH(\"/\",'CFR - XML import'!$A132,1)-SEARCH(\">\",'CFR - XML import'!$A132,1)-2)))","v":0},{"$f":"IF(ISERROR(FIND(BF$3,'CFR - XML import'!$A132)),0,VALUE(MID('CFR - XML import'!$A132,SEARCH(\">\",'CFR - XML import'!$A132,1)+1,SEARCH(\"/\",'CFR - XML import'!$A132,1)-SEARCH(\">\",'CFR - XML import'!$A132,1)-2)))","v":0},{"$f":"IF(ISERROR(FIND(BG$3,'CFR - XML import'!$A132)),0,VALUE(MID('CFR - XML import'!$A132,SEARCH(\">\",'CFR - XML import'!$A132,1)+1,SEARCH(\"/\",'CFR - XML import'!$A132,1)-SEARCH(\">\",'CFR - XML import'!$A132,1)-2)))","v":0},{"$f":"IF(ISERROR(FIND(BH$3,'CFR - XML import'!$A132)),0,VALUE(MID('CFR - XML import'!$A132,SEARCH(\">\",'CFR - XML import'!$A132,1)+1,SEARCH(\"/\",'CFR - XML import'!$A132,1)-SEARCH(\">\",'CFR - XML import'!$A132,1)-2)))","v":0},{"$f":"IF(ISERROR(FIND(BI$3,'CFR - XML import'!$A132)),0,VALUE(MID('CFR - XML import'!$A132,SEARCH(\">\",'CFR - XML import'!$A132,1)+1,SEARCH(\"/\",'CFR - XML import'!$A132,1)-SEARCH(\">\",'CFR - XML import'!$A132,1)-2)))","v":0},{"$f":"IF(ISERROR(FIND(BJ$3,'CFR - XML import'!$A132)),0,VALUE(MID('CFR - XML import'!$A132,SEARCH(\">\",'CFR - XML import'!$A132,1)+1,SEARCH(\"/\",'CFR - XML import'!$A132,1)-SEARCH(\">\",'CFR - XML import'!$A132,1)-2)))","v":0},{"$f":"IF(ISERROR(FIND(BK$3,'CFR - XML import'!$A132)),0,VALUE(MID('CFR - XML import'!$A132,SEARCH(\">\",'CFR - XML import'!$A132,1)+1,SEARCH(\"/\",'CFR - XML import'!$A132,1)-SEARCH(\">\",'CFR - XML import'!$A132,1)-2)))","v":0},{"$f":"IF(ISERROR(FIND(BL$3,'CFR - XML import'!$A132)),0,VALUE(MID('CFR - XML import'!$A132,SEARCH(\">\",'CFR - XML import'!$A132,1)+1,SEARCH(\"/\",'CFR - XML import'!$A132,1)-SEARCH(\">\",'CFR - XML import'!$A132,1)-2)))","v":0},{"$f":"IF(ISERROR(FIND(BM$3,'CFR - XML import'!$A132)),0,VALUE(MID('CFR - XML import'!$A132,SEARCH(\">\",'CFR - XML import'!$A132,1)+1,SEARCH(\"/\",'CFR - XML import'!$A132,1)-SEARCH(\">\",'CFR - XML import'!$A132,1)-2)))","v":0},{"$f":"IF(ISERROR(FIND(BN$3,'CFR - XML import'!$A132)),0,VALUE(MID('CFR - XML import'!$A132,SEARCH(\">\",'CFR - XML import'!$A132,1)+1,SEARCH(\"/\",'CFR - XML import'!$A132,1)-SEARCH(\">\",'CFR - XML import'!$A132,1)-2)))","v":0},{"$f":"IF(ISERROR(FIND(BO$3,'CFR - XML import'!$A132)),0,VALUE(MID('CFR - XML import'!$A132,SEARCH(\">\",'CFR - XML import'!$A132,1)+1,SEARCH(\"/\",'CFR - XML import'!$A132,1)-SEARCH(\">\",'CFR - XML import'!$A132,1)-2)))","v":0},{"$f":"IF(ISERROR(FIND(BP$3,'CFR - XML import'!$A132)),0,VALUE(MID('CFR - XML import'!$A132,SEARCH(\">\",'CFR - XML import'!$A132,1)+1,SEARCH(\"/\",'CFR - XML import'!$A132,1)-SEARCH(\">\",'CFR - XML import'!$A132,1)-2)))","v":0},{"$f":"IF(ISERROR(FIND(BQ$3,'CFR - XML import'!$A132)),0,VALUE(MID('CFR - XML import'!$A132,SEARCH(\">\",'CFR - XML import'!$A132,1)+1,SEARCH(\"/\",'CFR - XML import'!$A132,1)-SEARCH(\">\",'CFR - XML import'!$A132,1)-2)))","v":0},{"$f":"IF(ISERROR(FIND(BR$3,'CFR - XML import'!$A132)),0,VALUE(MID('CFR - XML import'!$A132,SEARCH(\">\",'CFR - XML import'!$A132,1)+1,SEARCH(\"/\",'CFR - XML import'!$A132,1)-SEARCH(\">\",'CFR - XML import'!$A132,1)-2)))","v":0},{"$f":"IF(ISERROR(FIND(BS$3,'CFR - XML import'!$A132)),0,VALUE(MID('CFR - XML import'!$A132,SEARCH(\">\",'CFR - XML import'!$A132,1)+1,SEARCH(\"/\",'CFR - XML import'!$A132,1)-SEARCH(\">\",'CFR - XML import'!$A132,1)-2)))","v":0},{"$f":"IF(ISERROR(FIND(BT$3,'CFR - XML import'!$A132)),0,VALUE(MID('CFR - XML import'!$A132,SEARCH(\">\",'CFR - XML import'!$A132,1)+1,SEARCH(\"/\",'CFR - XML import'!$A132,1)-SEARCH(\">\",'CFR - XML import'!$A132,1)-2)))","v":0},{"$f":"IF(ISERROR(FIND(BU$3,'CFR - XML import'!$A132)),0,VALUE(MID('CFR - XML import'!$A132,SEARCH(\">\",'CFR - XML import'!$A132,1)+1,SEARCH(\"/\",'CFR - XML import'!$A132,1)-SEARCH(\">\",'CFR - XML import'!$A132,1)-2)))","v":0},{"$f":"IF(ISERROR(FIND(BV$3,'CFR - XML import'!$A132)),0,VALUE(MID('CFR - XML import'!$A132,SEARCH(\">\",'CFR - XML import'!$A132,1)+1,SEARCH(\"/\",'CFR - XML import'!$A132,1)-SEARCH(\">\",'CFR - XML import'!$A132,1)-2)))","v":0},{"$f":"IF(ISERROR(FIND(BW$3,'CFR - XML import'!$A132)),0,VALUE(MID('CFR - XML import'!$A132,SEARCH(\">\",'CFR - XML import'!$A132,1)+1,SEARCH(\"/\",'CFR - XML import'!$A132,1)-SEARCH(\">\",'CFR - XML import'!$A132,1)-2)))","v":0},{"$f":"IF(ISERROR(FIND(BX$3,'CFR - XML import'!$A132)),0,VALUE(MID('CFR - XML import'!$A132,SEARCH(\">\",'CFR - XML import'!$A132,1)+1,SEARCH(\"/\",'CFR - XML import'!$A132,1)-SEARCH(\">\",'CFR - XML import'!$A132,1)-2)))","v":0},{"$f":"IF(ISERROR(FIND(BY$3,'CFR - XML import'!$A132)),0,VALUE(MID('CFR - XML import'!$A132,SEARCH(\">\",'CFR - XML import'!$A132,1)+1,SEARCH(\"/\",'CFR - XML import'!$A132,1)-SEARCH(\">\",'CFR - XML import'!$A132,1)-2)))","v":0},{"$f":"IF(ISERROR(FIND(BZ$3,'CFR - XML import'!$A132)),0,VALUE(MID('CFR - XML import'!$A132,SEARCH(\">\",'CFR - XML import'!$A132,1)+1,SEARCH(\"/\",'CFR - XML import'!$A132,1)-SEARCH(\">\",'CFR - XML import'!$A132,1)-2)))","v":0},null,null,null,null,null,null,{"$f":"IF(ISERROR(IF(MID('CFR - XML import'!$A132,LEN($CF$4)+1,LEN('CFR - XML import'!$A132)-(2*LEN($CF$4)+1))=\"RMMS\",1,IF(MID('CFR - XML import'!$A132,LEN(\"    <InputSystem>\")+1,LEN('CFR - XML import'!$A132)-(LEN(\"    <InputSystem>\")+LEN($CF$4)+1))=\"SIMS\",2,0))),0,IF(MID('CFR - XML import'!$A132,LEN($CF$4)+1,LEN('CFR - XML import'!$A132)-(2*LEN($CF$4)+1))=\"RMMS\",1,IF(MID('CFR - XML import'!$A132,LEN(\"    <InputSystem>\")+1,LEN('CFR - XML import'!$A132)-(LEN(\"    <InputSystem>\")+LEN($CF$4)+1))=\"SIMS\",2,0)))","v":0},{"$f":"IF(ISERROR(FIND(CH$3,'CFR - XML import'!$A132)),0,MID('CFR - XML import'!$A132,SEARCH(\">\",'CFR - XML import'!$A132,1)+1,SEARCH(\"/\",'CFR - XML import'!$A132,1)-SEARCH(\">\",'CFR - XML import'!$A132,1)-2))","v":0},{"$f":"IF(ISERROR(FIND(CI$3,'CFR - XML import'!$A132)),0,MID('CFR - XML import'!$A132,SEARCH(\">\",'CFR - XML import'!$A132,1)+1,SEARCH(\"/\",'CFR - XML import'!$A132,1)-SEARCH(\">\",'CFR - XML import'!$A132,1)-2))","v":0},{"$f":"IF(ISERROR(FIND(CJ$3,'CFR - XML import'!$A132)),0,MID('CFR - XML import'!$A132,SEARCH(\">\",'CFR - XML import'!$A132,1)+1,SEARCH(\"/\",'CFR - XML import'!$A132,1)-SEARCH(\">\",'CFR - XML import'!$A132,1)-2))","v":0},{"$f":"IF(ISERROR(FIND(CK$3,'CFR - XML import'!$A132)),0,MID('CFR - XML import'!$A132,SEARCH(\">\",'CFR - XML import'!$A132,1)+1,SEARCH(\"/\",'CFR - XML import'!$A132,1)-SEARCH(\">\",'CFR - XML import'!$A132,1)-2))","v":0},{"$f":"IF(ISERROR(FIND(CL$3,'CFR - XML import'!$A132)),0,MID('CFR - XML import'!$A132,SEARCH(\">\",'CFR - XML import'!$A132,1)+1,SEARCH(\"/\",'CFR - XML import'!$A132,1)-SEARCH(\">\",'CFR - XML import'!$A132,1)-2))","v":0}]
[{"$f":"IF(AND('CFR - XML import'!A133<>\"\",LEFT('CFR - XML import'!A133,1)<>\"<\",LEFT('CFR - XML import'!A133,3)<>\"  <\",LEFT('CFR - XML import'!A133,5)<>\"    <\",LEFT('CFR - XML import'!A133,7)<>\"      <\",LEFT('CFR - XML import'!A133,9)<>\"        <\",$B$1=\"SIMS\"),'CFR - XML import'!A133,IF(AND(LEFT('CFR - XML import'!A133,9)=\"<Details>\",$B$1=\"RM\"),'CFR - XML import'!A133,\"\"))","v":""},{"$f":"IF(ISERROR(FIND(B$3,'CFR - XML import'!$A133)),0,VALUE(MID('CFR - XML import'!$A133,SEARCH(\">\",'CFR - XML import'!$A133,1)+1,SEARCH(\"/\",'CFR - XML import'!$A133,1)-SEARCH(\">\",'CFR - XML import'!$A133,1)-2)))","v":0},null,{"$f":"IF(ISERROR(FIND(D$3,'CFR - XML import'!$A133)),0,MID('CFR - XML import'!$A133,SEARCH(\">\",'CFR - XML import'!$A133,1)+1,SEARCH(\"/\",'CFR - XML import'!$A133,1)-SEARCH(\">\",'CFR - XML import'!$A133,1)-2))","v":0},{"$f":"IF(ISERROR(FIND(E$3,'CFR - XML import'!$A133)),0,MID('CFR - XML import'!$A133,SEARCH(\">\",'CFR - XML import'!$A133,1)+1,SEARCH(\"/\",'CFR - XML import'!$A133,1)-SEARCH(\">\",'CFR - XML import'!$A133,1)-2))","v":0},{"$f":"IF($B$1=\"SIMS\",IF(ISERROR(FIND(F$3,'CFR - XML import'!$A133)),0,VALUE(MID('CFR - XML import'!$A133,15,10))),IF(ISERROR(FIND(F$3,'CFR - XML import'!$A133)),0,VALUE(MID('CFR - XML import'!$A133,11,10))))","v":"00:00:00"},{"$f":"IF(ISERROR(FIND(G$3,'CFR - XML import'!$A133)),0,VALUE(MID('CFR - XML import'!$A133,SEARCH(\">\",'CFR - XML import'!$A133,1)+1,SEARCH(\"/\",'CFR - XML import'!$A133,1)-SEARCH(\">\",'CFR - XML import'!$A133,1)-2)))","v":0},{"$f":"IF(ISERROR(FIND(H$3,'CFR - XML import'!$A133)),0,VALUE(MID('CFR - XML import'!$A133,SEARCH(\">\",'CFR - XML import'!$A133,1)+1,SEARCH(\"/\",'CFR - XML import'!$A133,1)-SEARCH(\">\",'CFR - XML import'!$A133,1)-2)))","v":0},{"$f":"IF(ISERROR(FIND(I$3,'CFR - XML import'!$A133)),0,VALUE(MID('CFR - XML import'!$A133,SEARCH(\">\",'CFR - XML import'!$A133,1)+1,SEARCH(\"/\",'CFR - XML import'!$A133,1)-SEARCH(\">\",'CFR - XML import'!$A133,1)-2)))","v":0},{"$f":"IF(ISERROR(FIND(J$3,'CFR - XML import'!$A133)),0,VALUE(MID('CFR - XML import'!$A133,SEARCH(\">\",'CFR - XML import'!$A133,1)+1,SEARCH(\"/\",'CFR - XML import'!$A133,1)-SEARCH(\">\",'CFR - XML import'!$A133,1)-2)))","v":0},{"$f":"IF(ISERROR(FIND(K$3,'CFR - XML import'!$A133)),0,VALUE(MID('CFR - XML import'!$A133,SEARCH(\">\",'CFR - XML import'!$A133,1)+1,SEARCH(\"/\",'CFR - XML import'!$A133,1)-SEARCH(\">\",'CFR - XML import'!$A133,1)-2)))","v":0},{"$f":"IF(ISERROR(FIND(L$3,'CFR - XML import'!$A133)),0,VALUE(MID('CFR - XML import'!$A133,SEARCH(\">\",'CFR - XML import'!$A133,1)+1,SEARCH(\"/\",'CFR - XML import'!$A133,1)-SEARCH(\">\",'CFR - XML import'!$A133,1)-2)))","v":0},{"$f":"IF(ISERROR(FIND(M$3,'CFR - XML import'!$A133)),0,VALUE(MID('CFR - XML import'!$A133,SEARCH(\">\",'CFR - XML import'!$A133,1)+1,SEARCH(\"/\",'CFR - XML import'!$A133,1)-SEARCH(\">\",'CFR - XML import'!$A133,1)-2)))","v":0},{"$f":"IF(ISERROR(FIND(N$3,'CFR - XML import'!$A133)),0,VALUE(MID('CFR - XML import'!$A133,SEARCH(\">\",'CFR - XML import'!$A133,1)+1,SEARCH(\"/\",'CFR - XML import'!$A133,1)-SEARCH(\">\",'CFR - XML import'!$A133,1)-2)))","v":0},{"$f":"IF(ISERROR(FIND(O$3,'CFR - XML import'!$A133)),0,VALUE(MID('CFR - XML import'!$A133,SEARCH(\">\",'CFR - XML import'!$A133,1)+1,SEARCH(\"/\",'CFR - XML import'!$A133,1)-SEARCH(\">\",'CFR - XML import'!$A133,1)-2)))","v":0},{"$f":"IF(ISERROR(FIND(P$3,'CFR - XML import'!$A133)),0,VALUE(MID('CFR - XML import'!$A133,SEARCH(\">\",'CFR - XML import'!$A133,1)+1,SEARCH(\"/\",'CFR - XML import'!$A133,1)-SEARCH(\">\",'CFR - XML import'!$A133,1)-2)))","v":0},{"$f":"IF(ISERROR(FIND(Q$3,'CFR - XML import'!$A133)),0,VALUE(MID('CFR - XML import'!$A133,SEARCH(\">\",'CFR - XML import'!$A133,1)+1,SEARCH(\"/\",'CFR - XML import'!$A133,1)-SEARCH(\">\",'CFR - XML import'!$A133,1)-2)))","v":0},{"$f":"IF(ISERROR(FIND(R$3,'CFR - XML import'!$A133)),0,VALUE(MID('CFR - XML import'!$A133,SEARCH(\">\",'CFR - XML import'!$A133,1)+1,SEARCH(\"/\",'CFR - XML import'!$A133,1)-SEARCH(\">\",'CFR - XML import'!$A133,1)-2)))","v":0},{"$f":"IF(ISERROR(FIND(S$3,'CFR - XML import'!$A133)),0,VALUE(MID('CFR - XML import'!$A133,SEARCH(\">\",'CFR - XML import'!$A133,1)+1,SEARCH(\"/\",'CFR - XML import'!$A133,1)-SEARCH(\">\",'CFR - XML import'!$A133,1)-2)))","v":0},{"$f":"IF(ISERROR(FIND(T$3,'CFR - XML import'!$A133)),0,VALUE(MID('CFR - XML import'!$A133,SEARCH(\">\",'CFR - XML import'!$A133,1)+1,SEARCH(\"/\",'CFR - XML import'!$A133,1)-SEARCH(\">\",'CFR - XML import'!$A133,1)-2)))","v":0},{"$f":"IF(ISERROR(FIND(U$3,'CFR - XML import'!$A133)),0,VALUE(MID('CFR - XML import'!$A133,SEARCH(\">\",'CFR - XML import'!$A133,1)+1,SEARCH(\"/\",'CFR - XML import'!$A133,1)-SEARCH(\">\",'CFR - XML import'!$A133,1)-2)))","v":0},{"$f":"IF(ISERROR(FIND(V$3,'CFR - XML import'!$A133)),0,VALUE(MID('CFR - XML import'!$A133,SEARCH(\">\",'CFR - XML import'!$A133,1)+1,SEARCH(\"/\",'CFR - XML import'!$A133,1)-SEARCH(\">\",'CFR - XML import'!$A133,1)-2)))","v":0},{"$f":"IF(ISERROR(FIND(W$3,'CFR - XML import'!$A133)),0,VALUE(MID('CFR - XML import'!$A133,SEARCH(\">\",'CFR - XML import'!$A133,1)+1,SEARCH(\"/\",'CFR - XML import'!$A133,1)-SEARCH(\">\",'CFR - XML import'!$A133,1)-2)))","v":0},null,{"$f":"IF(ISERROR(FIND(Y$3,'CFR - XML import'!$A133)),0,VALUE(MID('CFR - XML import'!$A133,SEARCH(\">\",'CFR - XML import'!$A133,1)+1,SEARCH(\"/\",'CFR - XML import'!$A133,1)-SEARCH(\">\",'CFR - XML import'!$A133,1)-2)))","v":0},{"$f":"IF(ISERROR(FIND(Z$3,'CFR - XML import'!$A133)),0,VALUE(MID('CFR - XML import'!$A133,SEARCH(\">\",'CFR - XML import'!$A133,1)+1,SEARCH(\"/\",'CFR - XML import'!$A133,1)-SEARCH(\">\",'CFR - XML import'!$A133,1)-2)))","v":0},{"$f":"IF(ISERROR(FIND(AA$3,'CFR - XML import'!$A133)),0,VALUE(MID('CFR - XML import'!$A133,SEARCH(\">\",'CFR - XML import'!$A133,1)+1,SEARCH(\"/\",'CFR - XML import'!$A133,1)-SEARCH(\">\",'CFR - XML import'!$A133,1)-2)))","v":0},{"$f":"IF(ISERROR(FIND(AB$3,'CFR - XML import'!$A133)),0,VALUE(MID('CFR - XML import'!$A133,SEARCH(\">\",'CFR - XML import'!$A133,1)+1,SEARCH(\"/\",'CFR - XML import'!$A133,1)-SEARCH(\">\",'CFR - XML import'!$A133,1)-2)))","v":0},{"$f":"IF(ISERROR(FIND(AC$3,'CFR - XML import'!$A133)),0,VALUE(MID('CFR - XML import'!$A133,SEARCH(\">\",'CFR - XML import'!$A133,1)+1,SEARCH(\"/\",'CFR - XML import'!$A133,1)-SEARCH(\">\",'CFR - XML import'!$A133,1)-2)))","v":0},{"$f":"IF(ISERROR(FIND(AD$3,'CFR - XML import'!$A133)),0,VALUE(MID('CFR - XML import'!$A133,SEARCH(\">\",'CFR - XML import'!$A133,1)+1,SEARCH(\"/\",'CFR - XML import'!$A133,1)-SEARCH(\">\",'CFR - XML import'!$A133,1)-2)))","v":0},{"$f":"IF(ISERROR(FIND(AE$3,'CFR - XML import'!$A133)),0,VALUE(MID('CFR - XML import'!$A133,SEARCH(\">\",'CFR - XML import'!$A133,1)+1,SEARCH(\"/\",'CFR - XML import'!$A133,1)-SEARCH(\">\",'CFR - XML import'!$A133,1)-2)))","v":0},{"$f":"IF(ISERROR(FIND(AF$3,'CFR - XML import'!$A133)),0,VALUE(MID('CFR - XML import'!$A133,SEARCH(\">\",'CFR - XML import'!$A133,1)+1,SEARCH(\"/\",'CFR - XML import'!$A133,1)-SEARCH(\">\",'CFR - XML import'!$A133,1)-2)))","v":0},{"$f":"IF(ISERROR(FIND(AG$3,'CFR - XML import'!$A133)),0,VALUE(MID('CFR - XML import'!$A133,SEARCH(\">\",'CFR - XML import'!$A133,1)+1,SEARCH(\"/\",'CFR - XML import'!$A133,1)-SEARCH(\">\",'CFR - XML import'!$A133,1)-2)))","v":0},{"$f":"IF(ISERROR(FIND(AH$3,'CFR - XML import'!$A133)),0,VALUE(MID('CFR - XML import'!$A133,SEARCH(\">\",'CFR - XML import'!$A133,1)+1,SEARCH(\"/\",'CFR - XML import'!$A133,1)-SEARCH(\">\",'CFR - XML import'!$A133,1)-2)))","v":0},{"$f":"IF(ISERROR(FIND(AI$3,'CFR - XML import'!$A133)),0,VALUE(MID('CFR - XML import'!$A133,SEARCH(\">\",'CFR - XML import'!$A133,1)+1,SEARCH(\"/\",'CFR - XML import'!$A133,1)-SEARCH(\">\",'CFR - XML import'!$A133,1)-2)))","v":0},{"$f":"IF(ISERROR(FIND(AJ$3,'CFR - XML import'!$A133)),0,VALUE(MID('CFR - XML import'!$A133,SEARCH(\">\",'CFR - XML import'!$A133,1)+1,SEARCH(\"/\",'CFR - XML import'!$A133,1)-SEARCH(\">\",'CFR - XML import'!$A133,1)-2)))","v":0},{"$f":"IF(ISERROR(FIND(AK$3,'CFR - XML import'!$A133)),0,VALUE(MID('CFR - XML import'!$A133,SEARCH(\">\",'CFR - XML import'!$A133,1)+1,SEARCH(\"/\",'CFR - XML import'!$A133,1)-SEARCH(\">\",'CFR - XML import'!$A133,1)-2)))","v":0},{"$f":"IF(ISERROR(FIND(AL$3,'CFR - XML import'!$A133)),0,VALUE(MID('CFR - XML import'!$A133,SEARCH(\">\",'CFR - XML import'!$A133,1)+1,SEARCH(\"/\",'CFR - XML import'!$A133,1)-SEARCH(\">\",'CFR - XML import'!$A133,1)-2)))","v":0},{"$f":"IF(ISERROR(FIND(AM$3,'CFR - XML import'!$A133)),0,VALUE(MID('CFR - XML import'!$A133,SEARCH(\">\",'CFR - XML import'!$A133,1)+1,SEARCH(\"/\",'CFR - XML import'!$A133,1)-SEARCH(\">\",'CFR - XML import'!$A133,1)-2)))","v":0},{"$f":"IF(ISERROR(FIND(AN$3,'CFR - XML import'!$A133)),0,VALUE(MID('CFR - XML import'!$A133,SEARCH(\">\",'CFR - XML import'!$A133,1)+1,SEARCH(\"/\",'CFR - XML import'!$A133,1)-SEARCH(\">\",'CFR - XML import'!$A133,1)-2)))","v":0},{"$f":"IF(ISERROR(FIND(AO$3,'CFR - XML import'!$A133)),0,VALUE(MID('CFR - XML import'!$A133,SEARCH(\">\",'CFR - XML import'!$A133,1)+1,SEARCH(\"/\",'CFR - XML import'!$A133,1)-SEARCH(\">\",'CFR - XML import'!$A133,1)-2)))","v":0},{"$f":"IF(ISERROR(FIND(AP$3,'CFR - XML import'!$A133)),0,VALUE(MID('CFR - XML import'!$A133,SEARCH(\">\",'CFR - XML import'!$A133,1)+1,SEARCH(\"/\",'CFR - XML import'!$A133,1)-SEARCH(\">\",'CFR - XML import'!$A133,1)-2)))","v":0},{"$f":"IF(ISERROR(FIND(AQ$3,'CFR - XML import'!$A133)),0,VALUE(MID('CFR - XML import'!$A133,SEARCH(\">\",'CFR - XML import'!$A133,1)+1,SEARCH(\"/\",'CFR - XML import'!$A133,1)-SEARCH(\">\",'CFR - XML import'!$A133,1)-2)))","v":0},{"$f":"IF(ISERROR(FIND(AR$3,'CFR - XML import'!$A133)),0,VALUE(MID('CFR - XML import'!$A133,SEARCH(\">\",'CFR - XML import'!$A133,1)+1,SEARCH(\"/\",'CFR - XML import'!$A133,1)-SEARCH(\">\",'CFR - XML import'!$A133,1)-2)))","v":0},{"$f":"IF(ISERROR(FIND(AS$3,'CFR - XML import'!$A133)),0,VALUE(MID('CFR - XML import'!$A133,SEARCH(\">\",'CFR - XML import'!$A133,1)+1,SEARCH(\"/\",'CFR - XML import'!$A133,1)-SEARCH(\">\",'CFR - XML import'!$A133,1)-2)))","v":0},{"$f":"IF(ISERROR(FIND(AT$3,'CFR - XML import'!$A133)),0,VALUE(MID('CFR - XML import'!$A133,SEARCH(\">\",'CFR - XML import'!$A133,1)+1,SEARCH(\"/\",'CFR - XML import'!$A133,1)-SEARCH(\">\",'CFR - XML import'!$A133,1)-2)))","v":0},{"$f":"IF(ISERROR(FIND(AU$3,'CFR - XML import'!$A133)),0,VALUE(MID('CFR - XML import'!$A133,SEARCH(\">\",'CFR - XML import'!$A133,1)+1,SEARCH(\"/\",'CFR - XML import'!$A133,1)-SEARCH(\">\",'CFR - XML import'!$A133,1)-2)))","v":0},{"$f":"IF(ISERROR(FIND(AV$3,'CFR - XML import'!$A133)),0,VALUE(MID('CFR - XML import'!$A133,SEARCH(\">\",'CFR - XML import'!$A133,1)+1,SEARCH(\"/\",'CFR - XML import'!$A133,1)-SEARCH(\">\",'CFR - XML import'!$A133,1)-2)))","v":0},{"$f":"IF(ISERROR(FIND(AW$3,'CFR - XML import'!$A133)),0,VALUE(MID('CFR - XML import'!$A133,SEARCH(\">\",'CFR - XML import'!$A133,1)+1,SEARCH(\"/\",'CFR - XML import'!$A133,1)-SEARCH(\">\",'CFR - XML import'!$A133,1)-2)))","v":0},{"$f":"IF(ISERROR(FIND(AX$3,'CFR - XML import'!$A133)),0,VALUE(MID('CFR - XML import'!$A133,SEARCH(\">\",'CFR - XML import'!$A133,1)+1,SEARCH(\"/\",'CFR - XML import'!$A133,1)-SEARCH(\">\",'CFR - XML import'!$A133,1)-2)))","v":0},{"$f":"IF(ISERROR(FIND(AY$3,'CFR - XML import'!$A133)),0,VALUE(MID('CFR - XML import'!$A133,SEARCH(\">\",'CFR - XML import'!$A133,1)+1,SEARCH(\"/\",'CFR - XML import'!$A133,1)-SEARCH(\">\",'CFR - XML import'!$A133,1)-2)))","v":0},{"$f":"IF(ISERROR(FIND(AZ$3,'CFR - XML import'!$A133)),0,VALUE(MID('CFR - XML import'!$A133,SEARCH(\">\",'CFR - XML import'!$A133,1)+1,SEARCH(\"/\",'CFR - XML import'!$A133,1)-SEARCH(\">\",'CFR - XML import'!$A133,1)-2)))","v":0},{"$f":"IF(ISERROR(FIND(BA$3,'CFR - XML import'!$A133)),0,VALUE(MID('CFR - XML import'!$A133,SEARCH(\">\",'CFR - XML import'!$A133,1)+1,SEARCH(\"/\",'CFR - XML import'!$A133,1)-SEARCH(\">\",'CFR - XML import'!$A133,1)-2)))","v":0},{"$f":"IF(ISERROR(FIND(BB$3,'CFR - XML import'!$A133)),0,VALUE(MID('CFR - XML import'!$A133,SEARCH(\">\",'CFR - XML import'!$A133,1)+1,SEARCH(\"/\",'CFR - XML import'!$A133,1)-SEARCH(\">\",'CFR - XML import'!$A133,1)-2)))","v":0},{"$f":"IF(ISERROR(FIND(BC$3,'CFR - XML import'!$A133)),0,VALUE(MID('CFR - XML import'!$A133,SEARCH(\">\",'CFR - XML import'!$A133,1)+1,SEARCH(\"/\",'CFR - XML import'!$A133,1)-SEARCH(\">\",'CFR - XML import'!$A133,1)-2)))","v":0},{"$f":"IF(ISERROR(FIND(BD$3,'CFR - XML import'!$A133)),0,VALUE(MID('CFR - XML import'!$A133,SEARCH(\">\",'CFR - XML import'!$A133,1)+1,SEARCH(\"/\",'CFR - XML import'!$A133,1)-SEARCH(\">\",'CFR - XML import'!$A133,1)-2)))","v":0},{"$f":"IF(ISERROR(FIND(BE$3,'CFR - XML import'!$A133)),0,VALUE(MID('CFR - XML import'!$A133,SEARCH(\">\",'CFR - XML import'!$A133,1)+1,SEARCH(\"/\",'CFR - XML import'!$A133,1)-SEARCH(\">\",'CFR - XML import'!$A133,1)-2)))","v":0},{"$f":"IF(ISERROR(FIND(BF$3,'CFR - XML import'!$A133)),0,VALUE(MID('CFR - XML import'!$A133,SEARCH(\">\",'CFR - XML import'!$A133,1)+1,SEARCH(\"/\",'CFR - XML import'!$A133,1)-SEARCH(\">\",'CFR - XML import'!$A133,1)-2)))","v":0},{"$f":"IF(ISERROR(FIND(BG$3,'CFR - XML import'!$A133)),0,VALUE(MID('CFR - XML import'!$A133,SEARCH(\">\",'CFR - XML import'!$A133,1)+1,SEARCH(\"/\",'CFR - XML import'!$A133,1)-SEARCH(\">\",'CFR - XML import'!$A133,1)-2)))","v":0},{"$f":"IF(ISERROR(FIND(BH$3,'CFR - XML import'!$A133)),0,VALUE(MID('CFR - XML import'!$A133,SEARCH(\">\",'CFR - XML import'!$A133,1)+1,SEARCH(\"/\",'CFR - XML import'!$A133,1)-SEARCH(\">\",'CFR - XML import'!$A133,1)-2)))","v":0},{"$f":"IF(ISERROR(FIND(BI$3,'CFR - XML import'!$A133)),0,VALUE(MID('CFR - XML import'!$A133,SEARCH(\">\",'CFR - XML import'!$A133,1)+1,SEARCH(\"/\",'CFR - XML import'!$A133,1)-SEARCH(\">\",'CFR - XML import'!$A133,1)-2)))","v":0},{"$f":"IF(ISERROR(FIND(BJ$3,'CFR - XML import'!$A133)),0,VALUE(MID('CFR - XML import'!$A133,SEARCH(\">\",'CFR - XML import'!$A133,1)+1,SEARCH(\"/\",'CFR - XML import'!$A133,1)-SEARCH(\">\",'CFR - XML import'!$A133,1)-2)))","v":0},{"$f":"IF(ISERROR(FIND(BK$3,'CFR - XML import'!$A133)),0,VALUE(MID('CFR - XML import'!$A133,SEARCH(\">\",'CFR - XML import'!$A133,1)+1,SEARCH(\"/\",'CFR - XML import'!$A133,1)-SEARCH(\">\",'CFR - XML import'!$A133,1)-2)))","v":0},{"$f":"IF(ISERROR(FIND(BL$3,'CFR - XML import'!$A133)),0,VALUE(MID('CFR - XML import'!$A133,SEARCH(\">\",'CFR - XML import'!$A133,1)+1,SEARCH(\"/\",'CFR - XML import'!$A133,1)-SEARCH(\">\",'CFR - XML import'!$A133,1)-2)))","v":0},{"$f":"IF(ISERROR(FIND(BM$3,'CFR - XML import'!$A133)),0,VALUE(MID('CFR - XML import'!$A133,SEARCH(\">\",'CFR - XML import'!$A133,1)+1,SEARCH(\"/\",'CFR - XML import'!$A133,1)-SEARCH(\">\",'CFR - XML import'!$A133,1)-2)))","v":0},{"$f":"IF(ISERROR(FIND(BN$3,'CFR - XML import'!$A133)),0,VALUE(MID('CFR - XML import'!$A133,SEARCH(\">\",'CFR - XML import'!$A133,1)+1,SEARCH(\"/\",'CFR - XML import'!$A133,1)-SEARCH(\">\",'CFR - XML import'!$A133,1)-2)))","v":0},{"$f":"IF(ISERROR(FIND(BO$3,'CFR - XML import'!$A133)),0,VALUE(MID('CFR - XML import'!$A133,SEARCH(\">\",'CFR - XML import'!$A133,1)+1,SEARCH(\"/\",'CFR - XML import'!$A133,1)-SEARCH(\">\",'CFR - XML import'!$A133,1)-2)))","v":0},{"$f":"IF(ISERROR(FIND(BP$3,'CFR - XML import'!$A133)),0,VALUE(MID('CFR - XML import'!$A133,SEARCH(\">\",'CFR - XML import'!$A133,1)+1,SEARCH(\"/\",'CFR - XML import'!$A133,1)-SEARCH(\">\",'CFR - XML import'!$A133,1)-2)))","v":0},{"$f":"IF(ISERROR(FIND(BQ$3,'CFR - XML import'!$A133)),0,VALUE(MID('CFR - XML import'!$A133,SEARCH(\">\",'CFR - XML import'!$A133,1)+1,SEARCH(\"/\",'CFR - XML import'!$A133,1)-SEARCH(\">\",'CFR - XML import'!$A133,1)-2)))","v":0},{"$f":"IF(ISERROR(FIND(BR$3,'CFR - XML import'!$A133)),0,VALUE(MID('CFR - XML import'!$A133,SEARCH(\">\",'CFR - XML import'!$A133,1)+1,SEARCH(\"/\",'CFR - XML import'!$A133,1)-SEARCH(\">\",'CFR - XML import'!$A133,1)-2)))","v":0},{"$f":"IF(ISERROR(FIND(BS$3,'CFR - XML import'!$A133)),0,VALUE(MID('CFR - XML import'!$A133,SEARCH(\">\",'CFR - XML import'!$A133,1)+1,SEARCH(\"/\",'CFR - XML import'!$A133,1)-SEARCH(\">\",'CFR - XML import'!$A133,1)-2)))","v":0},{"$f":"IF(ISERROR(FIND(BT$3,'CFR - XML import'!$A133)),0,VALUE(MID('CFR - XML import'!$A133,SEARCH(\">\",'CFR - XML import'!$A133,1)+1,SEARCH(\"/\",'CFR - XML import'!$A133,1)-SEARCH(\">\",'CFR - XML import'!$A133,1)-2)))","v":0},{"$f":"IF(ISERROR(FIND(BU$3,'CFR - XML import'!$A133)),0,VALUE(MID('CFR - XML import'!$A133,SEARCH(\">\",'CFR - XML import'!$A133,1)+1,SEARCH(\"/\",'CFR - XML import'!$A133,1)-SEARCH(\">\",'CFR - XML import'!$A133,1)-2)))","v":0},{"$f":"IF(ISERROR(FIND(BV$3,'CFR - XML import'!$A133)),0,VALUE(MID('CFR - XML import'!$A133,SEARCH(\">\",'CFR - XML import'!$A133,1)+1,SEARCH(\"/\",'CFR - XML import'!$A133,1)-SEARCH(\">\",'CFR - XML import'!$A133,1)-2)))","v":0},{"$f":"IF(ISERROR(FIND(BW$3,'CFR - XML import'!$A133)),0,VALUE(MID('CFR - XML import'!$A133,SEARCH(\">\",'CFR - XML import'!$A133,1)+1,SEARCH(\"/\",'CFR - XML import'!$A133,1)-SEARCH(\">\",'CFR - XML import'!$A133,1)-2)))","v":0},{"$f":"IF(ISERROR(FIND(BX$3,'CFR - XML import'!$A133)),0,VALUE(MID('CFR - XML import'!$A133,SEARCH(\">\",'CFR - XML import'!$A133,1)+1,SEARCH(\"/\",'CFR - XML import'!$A133,1)-SEARCH(\">\",'CFR - XML import'!$A133,1)-2)))","v":0},{"$f":"IF(ISERROR(FIND(BY$3,'CFR - XML import'!$A133)),0,VALUE(MID('CFR - XML import'!$A133,SEARCH(\">\",'CFR - XML import'!$A133,1)+1,SEARCH(\"/\",'CFR - XML import'!$A133,1)-SEARCH(\">\",'CFR - XML import'!$A133,1)-2)))","v":0},{"$f":"IF(ISERROR(FIND(BZ$3,'CFR - XML import'!$A133)),0,VALUE(MID('CFR - XML import'!$A133,SEARCH(\">\",'CFR - XML import'!$A133,1)+1,SEARCH(\"/\",'CFR - XML import'!$A133,1)-SEARCH(\">\",'CFR - XML import'!$A133,1)-2)))","v":0},null,null,null,null,null,null,{"$f":"IF(ISERROR(IF(MID('CFR - XML import'!$A133,LEN($CF$4)+1,LEN('CFR - XML import'!$A133)-(2*LEN($CF$4)+1))=\"RMMS\",1,IF(MID('CFR - XML import'!$A133,LEN(\"    <InputSystem>\")+1,LEN('CFR - XML import'!$A133)-(LEN(\"    <InputSystem>\")+LEN($CF$4)+1))=\"SIMS\",2,0))),0,IF(MID('CFR - XML import'!$A133,LEN($CF$4)+1,LEN('CFR - XML import'!$A133)-(2*LEN($CF$4)+1))=\"RMMS\",1,IF(MID('CFR - XML import'!$A133,LEN(\"    <InputSystem>\")+1,LEN('CFR - XML import'!$A133)-(LEN(\"    <InputSystem>\")+LEN($CF$4)+1))=\"SIMS\",2,0)))","v":0},{"$f":"IF(ISERROR(FIND(CH$3,'CFR - XML import'!$A133)),0,MID('CFR - XML import'!$A133,SEARCH(\">\",'CFR - XML import'!$A133,1)+1,SEARCH(\"/\",'CFR - XML import'!$A133,1)-SEARCH(\">\",'CFR - XML import'!$A133,1)-2))","v":0},{"$f":"IF(ISERROR(FIND(CI$3,'CFR - XML import'!$A133)),0,MID('CFR - XML import'!$A133,SEARCH(\">\",'CFR - XML import'!$A133,1)+1,SEARCH(\"/\",'CFR - XML import'!$A133,1)-SEARCH(\">\",'CFR - XML import'!$A133,1)-2))","v":0},{"$f":"IF(ISERROR(FIND(CJ$3,'CFR - XML import'!$A133)),0,MID('CFR - XML import'!$A133,SEARCH(\">\",'CFR - XML import'!$A133,1)+1,SEARCH(\"/\",'CFR - XML import'!$A133,1)-SEARCH(\">\",'CFR - XML import'!$A133,1)-2))","v":0},{"$f":"IF(ISERROR(FIND(CK$3,'CFR - XML import'!$A133)),0,MID('CFR - XML import'!$A133,SEARCH(\">\",'CFR - XML import'!$A133,1)+1,SEARCH(\"/\",'CFR - XML import'!$A133,1)-SEARCH(\">\",'CFR - XML import'!$A133,1)-2))","v":0},{"$f":"IF(ISERROR(FIND(CL$3,'CFR - XML import'!$A133)),0,MID('CFR - XML import'!$A133,SEARCH(\">\",'CFR - XML import'!$A133,1)+1,SEARCH(\"/\",'CFR - XML import'!$A133,1)-SEARCH(\">\",'CFR - XML import'!$A133,1)-2))","v":0}]
[{"$f":"IF(AND('CFR - XML import'!A134<>\"\",LEFT('CFR - XML import'!A134,1)<>\"<\",LEFT('CFR - XML import'!A134,3)<>\"  <\",LEFT('CFR - XML import'!A134,5)<>\"    <\",LEFT('CFR - XML import'!A134,7)<>\"      <\",LEFT('CFR - XML import'!A134,9)<>\"        <\",$B$1=\"SIMS\"),'CFR - XML import'!A134,IF(AND(LEFT('CFR - XML import'!A134,9)=\"<Details>\",$B$1=\"RM\"),'CFR - XML import'!A134,\"\"))","v":""},{"$f":"IF(ISERROR(FIND(B$3,'CFR - XML import'!$A134)),0,VALUE(MID('CFR - XML import'!$A134,SEARCH(\">\",'CFR - XML import'!$A134,1)+1,SEARCH(\"/\",'CFR - XML import'!$A134,1)-SEARCH(\">\",'CFR - XML import'!$A134,1)-2)))","v":0},null,{"$f":"IF(ISERROR(FIND(D$3,'CFR - XML import'!$A134)),0,MID('CFR - XML import'!$A134,SEARCH(\">\",'CFR - XML import'!$A134,1)+1,SEARCH(\"/\",'CFR - XML import'!$A134,1)-SEARCH(\">\",'CFR - XML import'!$A134,1)-2))","v":0},{"$f":"IF(ISERROR(FIND(E$3,'CFR - XML import'!$A134)),0,MID('CFR - XML import'!$A134,SEARCH(\">\",'CFR - XML import'!$A134,1)+1,SEARCH(\"/\",'CFR - XML import'!$A134,1)-SEARCH(\">\",'CFR - XML import'!$A134,1)-2))","v":0},{"$f":"IF($B$1=\"SIMS\",IF(ISERROR(FIND(F$3,'CFR - XML import'!$A134)),0,VALUE(MID('CFR - XML import'!$A134,15,10))),IF(ISERROR(FIND(F$3,'CFR - XML import'!$A134)),0,VALUE(MID('CFR - XML import'!$A134,11,10))))","v":"00:00:00"},{"$f":"IF(ISERROR(FIND(G$3,'CFR - XML import'!$A134)),0,VALUE(MID('CFR - XML import'!$A134,SEARCH(\">\",'CFR - XML import'!$A134,1)+1,SEARCH(\"/\",'CFR - XML import'!$A134,1)-SEARCH(\">\",'CFR - XML import'!$A134,1)-2)))","v":0},{"$f":"IF(ISERROR(FIND(H$3,'CFR - XML import'!$A134)),0,VALUE(MID('CFR - XML import'!$A134,SEARCH(\">\",'CFR - XML import'!$A134,1)+1,SEARCH(\"/\",'CFR - XML import'!$A134,1)-SEARCH(\">\",'CFR - XML import'!$A134,1)-2)))","v":0},{"$f":"IF(ISERROR(FIND(I$3,'CFR - XML import'!$A134)),0,VALUE(MID('CFR - XML import'!$A134,SEARCH(\">\",'CFR - XML import'!$A134,1)+1,SEARCH(\"/\",'CFR - XML import'!$A134,1)-SEARCH(\">\",'CFR - XML import'!$A134,1)-2)))","v":0},{"$f":"IF(ISERROR(FIND(J$3,'CFR - XML import'!$A134)),0,VALUE(MID('CFR - XML import'!$A134,SEARCH(\">\",'CFR - XML import'!$A134,1)+1,SEARCH(\"/\",'CFR - XML import'!$A134,1)-SEARCH(\">\",'CFR - XML import'!$A134,1)-2)))","v":0},{"$f":"IF(ISERROR(FIND(K$3,'CFR - XML import'!$A134)),0,VALUE(MID('CFR - XML import'!$A134,SEARCH(\">\",'CFR - XML import'!$A134,1)+1,SEARCH(\"/\",'CFR - XML import'!$A134,1)-SEARCH(\">\",'CFR - XML import'!$A134,1)-2)))","v":0},{"$f":"IF(ISERROR(FIND(L$3,'CFR - XML import'!$A134)),0,VALUE(MID('CFR - XML import'!$A134,SEARCH(\">\",'CFR - XML import'!$A134,1)+1,SEARCH(\"/\",'CFR - XML import'!$A134,1)-SEARCH(\">\",'CFR - XML import'!$A134,1)-2)))","v":0},{"$f":"IF(ISERROR(FIND(M$3,'CFR - XML import'!$A134)),0,VALUE(MID('CFR - XML import'!$A134,SEARCH(\">\",'CFR - XML import'!$A134,1)+1,SEARCH(\"/\",'CFR - XML import'!$A134,1)-SEARCH(\">\",'CFR - XML import'!$A134,1)-2)))","v":0},{"$f":"IF(ISERROR(FIND(N$3,'CFR - XML import'!$A134)),0,VALUE(MID('CFR - XML import'!$A134,SEARCH(\">\",'CFR - XML import'!$A134,1)+1,SEARCH(\"/\",'CFR - XML import'!$A134,1)-SEARCH(\">\",'CFR - XML import'!$A134,1)-2)))","v":0},{"$f":"IF(ISERROR(FIND(O$3,'CFR - XML import'!$A134)),0,VALUE(MID('CFR - XML import'!$A134,SEARCH(\">\",'CFR - XML import'!$A134,1)+1,SEARCH(\"/\",'CFR - XML import'!$A134,1)-SEARCH(\">\",'CFR - XML import'!$A134,1)-2)))","v":0},{"$f":"IF(ISERROR(FIND(P$3,'CFR - XML import'!$A134)),0,VALUE(MID('CFR - XML import'!$A134,SEARCH(\">\",'CFR - XML import'!$A134,1)+1,SEARCH(\"/\",'CFR - XML import'!$A134,1)-SEARCH(\">\",'CFR - XML import'!$A134,1)-2)))","v":0},{"$f":"IF(ISERROR(FIND(Q$3,'CFR - XML import'!$A134)),0,VALUE(MID('CFR - XML import'!$A134,SEARCH(\">\",'CFR - XML import'!$A134,1)+1,SEARCH(\"/\",'CFR - XML import'!$A134,1)-SEARCH(\">\",'CFR - XML import'!$A134,1)-2)))","v":0},{"$f":"IF(ISERROR(FIND(R$3,'CFR - XML import'!$A134)),0,VALUE(MID('CFR - XML import'!$A134,SEARCH(\">\",'CFR - XML import'!$A134,1)+1,SEARCH(\"/\",'CFR - XML import'!$A134,1)-SEARCH(\">\",'CFR - XML import'!$A134,1)-2)))","v":0},{"$f":"IF(ISERROR(FIND(S$3,'CFR - XML import'!$A134)),0,VALUE(MID('CFR - XML import'!$A134,SEARCH(\">\",'CFR - XML import'!$A134,1)+1,SEARCH(\"/\",'CFR - XML import'!$A134,1)-SEARCH(\">\",'CFR - XML import'!$A134,1)-2)))","v":0},{"$f":"IF(ISERROR(FIND(T$3,'CFR - XML import'!$A134)),0,VALUE(MID('CFR - XML import'!$A134,SEARCH(\">\",'CFR - XML import'!$A134,1)+1,SEARCH(\"/\",'CFR - XML import'!$A134,1)-SEARCH(\">\",'CFR - XML import'!$A134,1)-2)))","v":0},{"$f":"IF(ISERROR(FIND(U$3,'CFR - XML import'!$A134)),0,VALUE(MID('CFR - XML import'!$A134,SEARCH(\">\",'CFR - XML import'!$A134,1)+1,SEARCH(\"/\",'CFR - XML import'!$A134,1)-SEARCH(\">\",'CFR - XML import'!$A134,1)-2)))","v":0},{"$f":"IF(ISERROR(FIND(V$3,'CFR - XML import'!$A134)),0,VALUE(MID('CFR - XML import'!$A134,SEARCH(\">\",'CFR - XML import'!$A134,1)+1,SEARCH(\"/\",'CFR - XML import'!$A134,1)-SEARCH(\">\",'CFR - XML import'!$A134,1)-2)))","v":0},{"$f":"IF(ISERROR(FIND(W$3,'CFR - XML import'!$A134)),0,VALUE(MID('CFR - XML import'!$A134,SEARCH(\">\",'CFR - XML import'!$A134,1)+1,SEARCH(\"/\",'CFR - XML import'!$A134,1)-SEARCH(\">\",'CFR - XML import'!$A134,1)-2)))","v":0},null,{"$f":"IF(ISERROR(FIND(Y$3,'CFR - XML import'!$A134)),0,VALUE(MID('CFR - XML import'!$A134,SEARCH(\">\",'CFR - XML import'!$A134,1)+1,SEARCH(\"/\",'CFR - XML import'!$A134,1)-SEARCH(\">\",'CFR - XML import'!$A134,1)-2)))","v":0},{"$f":"IF(ISERROR(FIND(Z$3,'CFR - XML import'!$A134)),0,VALUE(MID('CFR - XML import'!$A134,SEARCH(\">\",'CFR - XML import'!$A134,1)+1,SEARCH(\"/\",'CFR - XML import'!$A134,1)-SEARCH(\">\",'CFR - XML import'!$A134,1)-2)))","v":0},{"$f":"IF(ISERROR(FIND(AA$3,'CFR - XML import'!$A134)),0,VALUE(MID('CFR - XML import'!$A134,SEARCH(\">\",'CFR - XML import'!$A134,1)+1,SEARCH(\"/\",'CFR - XML import'!$A134,1)-SEARCH(\">\",'CFR - XML import'!$A134,1)-2)))","v":0},{"$f":"IF(ISERROR(FIND(AB$3,'CFR - XML import'!$A134)),0,VALUE(MID('CFR - XML import'!$A134,SEARCH(\">\",'CFR - XML import'!$A134,1)+1,SEARCH(\"/\",'CFR - XML import'!$A134,1)-SEARCH(\">\",'CFR - XML import'!$A134,1)-2)))","v":0},{"$f":"IF(ISERROR(FIND(AC$3,'CFR - XML import'!$A134)),0,VALUE(MID('CFR - XML import'!$A134,SEARCH(\">\",'CFR - XML import'!$A134,1)+1,SEARCH(\"/\",'CFR - XML import'!$A134,1)-SEARCH(\">\",'CFR - XML import'!$A134,1)-2)))","v":0},{"$f":"IF(ISERROR(FIND(AD$3,'CFR - XML import'!$A134)),0,VALUE(MID('CFR - XML import'!$A134,SEARCH(\">\",'CFR - XML import'!$A134,1)+1,SEARCH(\"/\",'CFR - XML import'!$A134,1)-SEARCH(\">\",'CFR - XML import'!$A134,1)-2)))","v":0},{"$f":"IF(ISERROR(FIND(AE$3,'CFR - XML import'!$A134)),0,VALUE(MID('CFR - XML import'!$A134,SEARCH(\">\",'CFR - XML import'!$A134,1)+1,SEARCH(\"/\",'CFR - XML import'!$A134,1)-SEARCH(\">\",'CFR - XML import'!$A134,1)-2)))","v":0},{"$f":"IF(ISERROR(FIND(AF$3,'CFR - XML import'!$A134)),0,VALUE(MID('CFR - XML import'!$A134,SEARCH(\">\",'CFR - XML import'!$A134,1)+1,SEARCH(\"/\",'CFR - XML import'!$A134,1)-SEARCH(\">\",'CFR - XML import'!$A134,1)-2)))","v":0},{"$f":"IF(ISERROR(FIND(AG$3,'CFR - XML import'!$A134)),0,VALUE(MID('CFR - XML import'!$A134,SEARCH(\">\",'CFR - XML import'!$A134,1)+1,SEARCH(\"/\",'CFR - XML import'!$A134,1)-SEARCH(\">\",'CFR - XML import'!$A134,1)-2)))","v":0},{"$f":"IF(ISERROR(FIND(AH$3,'CFR - XML import'!$A134)),0,VALUE(MID('CFR - XML import'!$A134,SEARCH(\">\",'CFR - XML import'!$A134,1)+1,SEARCH(\"/\",'CFR - XML import'!$A134,1)-SEARCH(\">\",'CFR - XML import'!$A134,1)-2)))","v":0},{"$f":"IF(ISERROR(FIND(AI$3,'CFR - XML import'!$A134)),0,VALUE(MID('CFR - XML import'!$A134,SEARCH(\">\",'CFR - XML import'!$A134,1)+1,SEARCH(\"/\",'CFR - XML import'!$A134,1)-SEARCH(\">\",'CFR - XML import'!$A134,1)-2)))","v":0},{"$f":"IF(ISERROR(FIND(AJ$3,'CFR - XML import'!$A134)),0,VALUE(MID('CFR - XML import'!$A134,SEARCH(\">\",'CFR - XML import'!$A134,1)+1,SEARCH(\"/\",'CFR - XML import'!$A134,1)-SEARCH(\">\",'CFR - XML import'!$A134,1)-2)))","v":0},{"$f":"IF(ISERROR(FIND(AK$3,'CFR - XML import'!$A134)),0,VALUE(MID('CFR - XML import'!$A134,SEARCH(\">\",'CFR - XML import'!$A134,1)+1,SEARCH(\"/\",'CFR - XML import'!$A134,1)-SEARCH(\">\",'CFR - XML import'!$A134,1)-2)))","v":0},{"$f":"IF(ISERROR(FIND(AL$3,'CFR - XML import'!$A134)),0,VALUE(MID('CFR - XML import'!$A134,SEARCH(\">\",'CFR - XML import'!$A134,1)+1,SEARCH(\"/\",'CFR - XML import'!$A134,1)-SEARCH(\">\",'CFR - XML import'!$A134,1)-2)))","v":0},{"$f":"IF(ISERROR(FIND(AM$3,'CFR - XML import'!$A134)),0,VALUE(MID('CFR - XML import'!$A134,SEARCH(\">\",'CFR - XML import'!$A134,1)+1,SEARCH(\"/\",'CFR - XML import'!$A134,1)-SEARCH(\">\",'CFR - XML import'!$A134,1)-2)))","v":0},{"$f":"IF(ISERROR(FIND(AN$3,'CFR - XML import'!$A134)),0,VALUE(MID('CFR - XML import'!$A134,SEARCH(\">\",'CFR - XML import'!$A134,1)+1,SEARCH(\"/\",'CFR - XML import'!$A134,1)-SEARCH(\">\",'CFR - XML import'!$A134,1)-2)))","v":0},{"$f":"IF(ISERROR(FIND(AO$3,'CFR - XML import'!$A134)),0,VALUE(MID('CFR - XML import'!$A134,SEARCH(\">\",'CFR - XML import'!$A134,1)+1,SEARCH(\"/\",'CFR - XML import'!$A134,1)-SEARCH(\">\",'CFR - XML import'!$A134,1)-2)))","v":0},{"$f":"IF(ISERROR(FIND(AP$3,'CFR - XML import'!$A134)),0,VALUE(MID('CFR - XML import'!$A134,SEARCH(\">\",'CFR - XML import'!$A134,1)+1,SEARCH(\"/\",'CFR - XML import'!$A134,1)-SEARCH(\">\",'CFR - XML import'!$A134,1)-2)))","v":0},{"$f":"IF(ISERROR(FIND(AQ$3,'CFR - XML import'!$A134)),0,VALUE(MID('CFR - XML import'!$A134,SEARCH(\">\",'CFR - XML import'!$A134,1)+1,SEARCH(\"/\",'CFR - XML import'!$A134,1)-SEARCH(\">\",'CFR - XML import'!$A134,1)-2)))","v":0},{"$f":"IF(ISERROR(FIND(AR$3,'CFR - XML import'!$A134)),0,VALUE(MID('CFR - XML import'!$A134,SEARCH(\">\",'CFR - XML import'!$A134,1)+1,SEARCH(\"/\",'CFR - XML import'!$A134,1)-SEARCH(\">\",'CFR - XML import'!$A134,1)-2)))","v":0},{"$f":"IF(ISERROR(FIND(AS$3,'CFR - XML import'!$A134)),0,VALUE(MID('CFR - XML import'!$A134,SEARCH(\">\",'CFR - XML import'!$A134,1)+1,SEARCH(\"/\",'CFR - XML import'!$A134,1)-SEARCH(\">\",'CFR - XML import'!$A134,1)-2)))","v":0},{"$f":"IF(ISERROR(FIND(AT$3,'CFR - XML import'!$A134)),0,VALUE(MID('CFR - XML import'!$A134,SEARCH(\">\",'CFR - XML import'!$A134,1)+1,SEARCH(\"/\",'CFR - XML import'!$A134,1)-SEARCH(\">\",'CFR - XML import'!$A134,1)-2)))","v":0},{"$f":"IF(ISERROR(FIND(AU$3,'CFR - XML import'!$A134)),0,VALUE(MID('CFR - XML import'!$A134,SEARCH(\">\",'CFR - XML import'!$A134,1)+1,SEARCH(\"/\",'CFR - XML import'!$A134,1)-SEARCH(\">\",'CFR - XML import'!$A134,1)-2)))","v":0},{"$f":"IF(ISERROR(FIND(AV$3,'CFR - XML import'!$A134)),0,VALUE(MID('CFR - XML import'!$A134,SEARCH(\">\",'CFR - XML import'!$A134,1)+1,SEARCH(\"/\",'CFR - XML import'!$A134,1)-SEARCH(\">\",'CFR - XML import'!$A134,1)-2)))","v":0},{"$f":"IF(ISERROR(FIND(AW$3,'CFR - XML import'!$A134)),0,VALUE(MID('CFR - XML import'!$A134,SEARCH(\">\",'CFR - XML import'!$A134,1)+1,SEARCH(\"/\",'CFR - XML import'!$A134,1)-SEARCH(\">\",'CFR - XML import'!$A134,1)-2)))","v":0},{"$f":"IF(ISERROR(FIND(AX$3,'CFR - XML import'!$A134)),0,VALUE(MID('CFR - XML import'!$A134,SEARCH(\">\",'CFR - XML import'!$A134,1)+1,SEARCH(\"/\",'CFR - XML import'!$A134,1)-SEARCH(\">\",'CFR - XML import'!$A134,1)-2)))","v":0},{"$f":"IF(ISERROR(FIND(AY$3,'CFR - XML import'!$A134)),0,VALUE(MID('CFR - XML import'!$A134,SEARCH(\">\",'CFR - XML import'!$A134,1)+1,SEARCH(\"/\",'CFR - XML import'!$A134,1)-SEARCH(\">\",'CFR - XML import'!$A134,1)-2)))","v":0},{"$f":"IF(ISERROR(FIND(AZ$3,'CFR - XML import'!$A134)),0,VALUE(MID('CFR - XML import'!$A134,SEARCH(\">\",'CFR - XML import'!$A134,1)+1,SEARCH(\"/\",'CFR - XML import'!$A134,1)-SEARCH(\">\",'CFR - XML import'!$A134,1)-2)))","v":0},{"$f":"IF(ISERROR(FIND(BA$3,'CFR - XML import'!$A134)),0,VALUE(MID('CFR - XML import'!$A134,SEARCH(\">\",'CFR - XML import'!$A134,1)+1,SEARCH(\"/\",'CFR - XML import'!$A134,1)-SEARCH(\">\",'CFR - XML import'!$A134,1)-2)))","v":0},{"$f":"IF(ISERROR(FIND(BB$3,'CFR - XML import'!$A134)),0,VALUE(MID('CFR - XML import'!$A134,SEARCH(\">\",'CFR - XML import'!$A134,1)+1,SEARCH(\"/\",'CFR - XML import'!$A134,1)-SEARCH(\">\",'CFR - XML import'!$A134,1)-2)))","v":0},{"$f":"IF(ISERROR(FIND(BC$3,'CFR - XML import'!$A134)),0,VALUE(MID('CFR - XML import'!$A134,SEARCH(\">\",'CFR - XML import'!$A134,1)+1,SEARCH(\"/\",'CFR - XML import'!$A134,1)-SEARCH(\">\",'CFR - XML import'!$A134,1)-2)))","v":0},{"$f":"IF(ISERROR(FIND(BD$3,'CFR - XML import'!$A134)),0,VALUE(MID('CFR - XML import'!$A134,SEARCH(\">\",'CFR - XML import'!$A134,1)+1,SEARCH(\"/\",'CFR - XML import'!$A134,1)-SEARCH(\">\",'CFR - XML import'!$A134,1)-2)))","v":0},{"$f":"IF(ISERROR(FIND(BE$3,'CFR - XML import'!$A134)),0,VALUE(MID('CFR - XML import'!$A134,SEARCH(\">\",'CFR - XML import'!$A134,1)+1,SEARCH(\"/\",'CFR - XML import'!$A134,1)-SEARCH(\">\",'CFR - XML import'!$A134,1)-2)))","v":0},{"$f":"IF(ISERROR(FIND(BF$3,'CFR - XML import'!$A134)),0,VALUE(MID('CFR - XML import'!$A134,SEARCH(\">\",'CFR - XML import'!$A134,1)+1,SEARCH(\"/\",'CFR - XML import'!$A134,1)-SEARCH(\">\",'CFR - XML import'!$A134,1)-2)))","v":0},{"$f":"IF(ISERROR(FIND(BG$3,'CFR - XML import'!$A134)),0,VALUE(MID('CFR - XML import'!$A134,SEARCH(\">\",'CFR - XML import'!$A134,1)+1,SEARCH(\"/\",'CFR - XML import'!$A134,1)-SEARCH(\">\",'CFR - XML import'!$A134,1)-2)))","v":0},{"$f":"IF(ISERROR(FIND(BH$3,'CFR - XML import'!$A134)),0,VALUE(MID('CFR - XML import'!$A134,SEARCH(\">\",'CFR - XML import'!$A134,1)+1,SEARCH(\"/\",'CFR - XML import'!$A134,1)-SEARCH(\">\",'CFR - XML import'!$A134,1)-2)))","v":0},{"$f":"IF(ISERROR(FIND(BI$3,'CFR - XML import'!$A134)),0,VALUE(MID('CFR - XML import'!$A134,SEARCH(\">\",'CFR - XML import'!$A134,1)+1,SEARCH(\"/\",'CFR - XML import'!$A134,1)-SEARCH(\">\",'CFR - XML import'!$A134,1)-2)))","v":0},{"$f":"IF(ISERROR(FIND(BJ$3,'CFR - XML import'!$A134)),0,VALUE(MID('CFR - XML import'!$A134,SEARCH(\">\",'CFR - XML import'!$A134,1)+1,SEARCH(\"/\",'CFR - XML import'!$A134,1)-SEARCH(\">\",'CFR - XML import'!$A134,1)-2)))","v":0},{"$f":"IF(ISERROR(FIND(BK$3,'CFR - XML import'!$A134)),0,VALUE(MID('CFR - XML import'!$A134,SEARCH(\">\",'CFR - XML import'!$A134,1)+1,SEARCH(\"/\",'CFR - XML import'!$A134,1)-SEARCH(\">\",'CFR - XML import'!$A134,1)-2)))","v":0},{"$f":"IF(ISERROR(FIND(BL$3,'CFR - XML import'!$A134)),0,VALUE(MID('CFR - XML import'!$A134,SEARCH(\">\",'CFR - XML import'!$A134,1)+1,SEARCH(\"/\",'CFR - XML import'!$A134,1)-SEARCH(\">\",'CFR - XML import'!$A134,1)-2)))","v":0},{"$f":"IF(ISERROR(FIND(BM$3,'CFR - XML import'!$A134)),0,VALUE(MID('CFR - XML import'!$A134,SEARCH(\">\",'CFR - XML import'!$A134,1)+1,SEARCH(\"/\",'CFR - XML import'!$A134,1)-SEARCH(\">\",'CFR - XML import'!$A134,1)-2)))","v":0},{"$f":"IF(ISERROR(FIND(BN$3,'CFR - XML import'!$A134)),0,VALUE(MID('CFR - XML import'!$A134,SEARCH(\">\",'CFR - XML import'!$A134,1)+1,SEARCH(\"/\",'CFR - XML import'!$A134,1)-SEARCH(\">\",'CFR - XML import'!$A134,1)-2)))","v":0},{"$f":"IF(ISERROR(FIND(BO$3,'CFR - XML import'!$A134)),0,VALUE(MID('CFR - XML import'!$A134,SEARCH(\">\",'CFR - XML import'!$A134,1)+1,SEARCH(\"/\",'CFR - XML import'!$A134,1)-SEARCH(\">\",'CFR - XML import'!$A134,1)-2)))","v":0},{"$f":"IF(ISERROR(FIND(BP$3,'CFR - XML import'!$A134)),0,VALUE(MID('CFR - XML import'!$A134,SEARCH(\">\",'CFR - XML import'!$A134,1)+1,SEARCH(\"/\",'CFR - XML import'!$A134,1)-SEARCH(\">\",'CFR - XML import'!$A134,1)-2)))","v":0},{"$f":"IF(ISERROR(FIND(BQ$3,'CFR - XML import'!$A134)),0,VALUE(MID('CFR - XML import'!$A134,SEARCH(\">\",'CFR - XML import'!$A134,1)+1,SEARCH(\"/\",'CFR - XML import'!$A134,1)-SEARCH(\">\",'CFR - XML import'!$A134,1)-2)))","v":0},{"$f":"IF(ISERROR(FIND(BR$3,'CFR - XML import'!$A134)),0,VALUE(MID('CFR - XML import'!$A134,SEARCH(\">\",'CFR - XML import'!$A134,1)+1,SEARCH(\"/\",'CFR - XML import'!$A134,1)-SEARCH(\">\",'CFR - XML import'!$A134,1)-2)))","v":0},{"$f":"IF(ISERROR(FIND(BS$3,'CFR - XML import'!$A134)),0,VALUE(MID('CFR - XML import'!$A134,SEARCH(\">\",'CFR - XML import'!$A134,1)+1,SEARCH(\"/\",'CFR - XML import'!$A134,1)-SEARCH(\">\",'CFR - XML import'!$A134,1)-2)))","v":0},{"$f":"IF(ISERROR(FIND(BT$3,'CFR - XML import'!$A134)),0,VALUE(MID('CFR - XML import'!$A134,SEARCH(\">\",'CFR - XML import'!$A134,1)+1,SEARCH(\"/\",'CFR - XML import'!$A134,1)-SEARCH(\">\",'CFR - XML import'!$A134,1)-2)))","v":0},{"$f":"IF(ISERROR(FIND(BU$3,'CFR - XML import'!$A134)),0,VALUE(MID('CFR - XML import'!$A134,SEARCH(\">\",'CFR - XML import'!$A134,1)+1,SEARCH(\"/\",'CFR - XML import'!$A134,1)-SEARCH(\">\",'CFR - XML import'!$A134,1)-2)))","v":0},{"$f":"IF(ISERROR(FIND(BV$3,'CFR - XML import'!$A134)),0,VALUE(MID('CFR - XML import'!$A134,SEARCH(\">\",'CFR - XML import'!$A134,1)+1,SEARCH(\"/\",'CFR - XML import'!$A134,1)-SEARCH(\">\",'CFR - XML import'!$A134,1)-2)))","v":0},{"$f":"IF(ISERROR(FIND(BW$3,'CFR - XML import'!$A134)),0,VALUE(MID('CFR - XML import'!$A134,SEARCH(\">\",'CFR - XML import'!$A134,1)+1,SEARCH(\"/\",'CFR - XML import'!$A134,1)-SEARCH(\">\",'CFR - XML import'!$A134,1)-2)))","v":0},{"$f":"IF(ISERROR(FIND(BX$3,'CFR - XML import'!$A134)),0,VALUE(MID('CFR - XML import'!$A134,SEARCH(\">\",'CFR - XML import'!$A134,1)+1,SEARCH(\"/\",'CFR - XML import'!$A134,1)-SEARCH(\">\",'CFR - XML import'!$A134,1)-2)))","v":0},{"$f":"IF(ISERROR(FIND(BY$3,'CFR - XML import'!$A134)),0,VALUE(MID('CFR - XML import'!$A134,SEARCH(\">\",'CFR - XML import'!$A134,1)+1,SEARCH(\"/\",'CFR - XML import'!$A134,1)-SEARCH(\">\",'CFR - XML import'!$A134,1)-2)))","v":0},{"$f":"IF(ISERROR(FIND(BZ$3,'CFR - XML import'!$A134)),0,VALUE(MID('CFR - XML import'!$A134,SEARCH(\">\",'CFR - XML import'!$A134,1)+1,SEARCH(\"/\",'CFR - XML import'!$A134,1)-SEARCH(\">\",'CFR - XML import'!$A134,1)-2)))","v":0},null,null,null,null,null,null,{"$f":"IF(ISERROR(IF(MID('CFR - XML import'!$A134,LEN($CF$4)+1,LEN('CFR - XML import'!$A134)-(2*LEN($CF$4)+1))=\"RMMS\",1,IF(MID('CFR - XML import'!$A134,LEN(\"    <InputSystem>\")+1,LEN('CFR - XML import'!$A134)-(LEN(\"    <InputSystem>\")+LEN($CF$4)+1))=\"SIMS\",2,0))),0,IF(MID('CFR - XML import'!$A134,LEN($CF$4)+1,LEN('CFR - XML import'!$A134)-(2*LEN($CF$4)+1))=\"RMMS\",1,IF(MID('CFR - XML import'!$A134,LEN(\"    <InputSystem>\")+1,LEN('CFR - XML import'!$A134)-(LEN(\"    <InputSystem>\")+LEN($CF$4)+1))=\"SIMS\",2,0)))","v":0},{"$f":"IF(ISERROR(FIND(CH$3,'CFR - XML import'!$A134)),0,MID('CFR - XML import'!$A134,SEARCH(\">\",'CFR - XML import'!$A134,1)+1,SEARCH(\"/\",'CFR - XML import'!$A134,1)-SEARCH(\">\",'CFR - XML import'!$A134,1)-2))","v":0},{"$f":"IF(ISERROR(FIND(CI$3,'CFR - XML import'!$A134)),0,MID('CFR - XML import'!$A134,SEARCH(\">\",'CFR - XML import'!$A134,1)+1,SEARCH(\"/\",'CFR - XML import'!$A134,1)-SEARCH(\">\",'CFR - XML import'!$A134,1)-2))","v":0},{"$f":"IF(ISERROR(FIND(CJ$3,'CFR - XML import'!$A134)),0,MID('CFR - XML import'!$A134,SEARCH(\">\",'CFR - XML import'!$A134,1)+1,SEARCH(\"/\",'CFR - XML import'!$A134,1)-SEARCH(\">\",'CFR - XML import'!$A134,1)-2))","v":0},{"$f":"IF(ISERROR(FIND(CK$3,'CFR - XML import'!$A134)),0,MID('CFR - XML import'!$A134,SEARCH(\">\",'CFR - XML import'!$A134,1)+1,SEARCH(\"/\",'CFR - XML import'!$A134,1)-SEARCH(\">\",'CFR - XML import'!$A134,1)-2))","v":0},{"$f":"IF(ISERROR(FIND(CL$3,'CFR - XML import'!$A134)),0,MID('CFR - XML import'!$A134,SEARCH(\">\",'CFR - XML import'!$A134,1)+1,SEARCH(\"/\",'CFR - XML import'!$A134,1)-SEARCH(\">\",'CFR - XML import'!$A134,1)-2))","v":0}]
[{"$f":"IF(AND('CFR - XML import'!A135<>\"\",LEFT('CFR - XML import'!A135,1)<>\"<\",LEFT('CFR - XML import'!A135,3)<>\"  <\",LEFT('CFR - XML import'!A135,5)<>\"    <\",LEFT('CFR - XML import'!A135,7)<>\"      <\",LEFT('CFR - XML import'!A135,9)<>\"        <\",$B$1=\"SIMS\"),'CFR - XML import'!A135,IF(AND(LEFT('CFR - XML import'!A135,9)=\"<Details>\",$B$1=\"RM\"),'CFR - XML import'!A135,\"\"))","v":""},{"$f":"IF(ISERROR(FIND(B$3,'CFR - XML import'!$A135)),0,VALUE(MID('CFR - XML import'!$A135,SEARCH(\">\",'CFR - XML import'!$A135,1)+1,SEARCH(\"/\",'CFR - XML import'!$A135,1)-SEARCH(\">\",'CFR - XML import'!$A135,1)-2)))","v":0},null,{"$f":"IF(ISERROR(FIND(D$3,'CFR - XML import'!$A135)),0,MID('CFR - XML import'!$A135,SEARCH(\">\",'CFR - XML import'!$A135,1)+1,SEARCH(\"/\",'CFR - XML import'!$A135,1)-SEARCH(\">\",'CFR - XML import'!$A135,1)-2))","v":0},{"$f":"IF(ISERROR(FIND(E$3,'CFR - XML import'!$A135)),0,MID('CFR - XML import'!$A135,SEARCH(\">\",'CFR - XML import'!$A135,1)+1,SEARCH(\"/\",'CFR - XML import'!$A135,1)-SEARCH(\">\",'CFR - XML import'!$A135,1)-2))","v":0},{"$f":"IF($B$1=\"SIMS\",IF(ISERROR(FIND(F$3,'CFR - XML import'!$A135)),0,VALUE(MID('CFR - XML import'!$A135,15,10))),IF(ISERROR(FIND(F$3,'CFR - XML import'!$A135)),0,VALUE(MID('CFR - XML import'!$A135,11,10))))","v":"00:00:00"},{"$f":"IF(ISERROR(FIND(G$3,'CFR - XML import'!$A135)),0,VALUE(MID('CFR - XML import'!$A135,SEARCH(\">\",'CFR - XML import'!$A135,1)+1,SEARCH(\"/\",'CFR - XML import'!$A135,1)-SEARCH(\">\",'CFR - XML import'!$A135,1)-2)))","v":0},{"$f":"IF(ISERROR(FIND(H$3,'CFR - XML import'!$A135)),0,VALUE(MID('CFR - XML import'!$A135,SEARCH(\">\",'CFR - XML import'!$A135,1)+1,SEARCH(\"/\",'CFR - XML import'!$A135,1)-SEARCH(\">\",'CFR - XML import'!$A135,1)-2)))","v":0},{"$f":"IF(ISERROR(FIND(I$3,'CFR - XML import'!$A135)),0,VALUE(MID('CFR - XML import'!$A135,SEARCH(\">\",'CFR - XML import'!$A135,1)+1,SEARCH(\"/\",'CFR - XML import'!$A135,1)-SEARCH(\">\",'CFR - XML import'!$A135,1)-2)))","v":0},{"$f":"IF(ISERROR(FIND(J$3,'CFR - XML import'!$A135)),0,VALUE(MID('CFR - XML import'!$A135,SEARCH(\">\",'CFR - XML import'!$A135,1)+1,SEARCH(\"/\",'CFR - XML import'!$A135,1)-SEARCH(\">\",'CFR - XML import'!$A135,1)-2)))","v":0},{"$f":"IF(ISERROR(FIND(K$3,'CFR - XML import'!$A135)),0,VALUE(MID('CFR - XML import'!$A135,SEARCH(\">\",'CFR - XML import'!$A135,1)+1,SEARCH(\"/\",'CFR - XML import'!$A135,1)-SEARCH(\">\",'CFR - XML import'!$A135,1)-2)))","v":0},{"$f":"IF(ISERROR(FIND(L$3,'CFR - XML import'!$A135)),0,VALUE(MID('CFR - XML import'!$A135,SEARCH(\">\",'CFR - XML import'!$A135,1)+1,SEARCH(\"/\",'CFR - XML import'!$A135,1)-SEARCH(\">\",'CFR - XML import'!$A135,1)-2)))","v":0},{"$f":"IF(ISERROR(FIND(M$3,'CFR - XML import'!$A135)),0,VALUE(MID('CFR - XML import'!$A135,SEARCH(\">\",'CFR - XML import'!$A135,1)+1,SEARCH(\"/\",'CFR - XML import'!$A135,1)-SEARCH(\">\",'CFR - XML import'!$A135,1)-2)))","v":0},{"$f":"IF(ISERROR(FIND(N$3,'CFR - XML import'!$A135)),0,VALUE(MID('CFR - XML import'!$A135,SEARCH(\">\",'CFR - XML import'!$A135,1)+1,SEARCH(\"/\",'CFR - XML import'!$A135,1)-SEARCH(\">\",'CFR - XML import'!$A135,1)-2)))","v":0},{"$f":"IF(ISERROR(FIND(O$3,'CFR - XML import'!$A135)),0,VALUE(MID('CFR - XML import'!$A135,SEARCH(\">\",'CFR - XML import'!$A135,1)+1,SEARCH(\"/\",'CFR - XML import'!$A135,1)-SEARCH(\">\",'CFR - XML import'!$A135,1)-2)))","v":0},{"$f":"IF(ISERROR(FIND(P$3,'CFR - XML import'!$A135)),0,VALUE(MID('CFR - XML import'!$A135,SEARCH(\">\",'CFR - XML import'!$A135,1)+1,SEARCH(\"/\",'CFR - XML import'!$A135,1)-SEARCH(\">\",'CFR - XML import'!$A135,1)-2)))","v":0},{"$f":"IF(ISERROR(FIND(Q$3,'CFR - XML import'!$A135)),0,VALUE(MID('CFR - XML import'!$A135,SEARCH(\">\",'CFR - XML import'!$A135,1)+1,SEARCH(\"/\",'CFR - XML import'!$A135,1)-SEARCH(\">\",'CFR - XML import'!$A135,1)-2)))","v":0},{"$f":"IF(ISERROR(FIND(R$3,'CFR - XML import'!$A135)),0,VALUE(MID('CFR - XML import'!$A135,SEARCH(\">\",'CFR - XML import'!$A135,1)+1,SEARCH(\"/\",'CFR - XML import'!$A135,1)-SEARCH(\">\",'CFR - XML import'!$A135,1)-2)))","v":0},{"$f":"IF(ISERROR(FIND(S$3,'CFR - XML import'!$A135)),0,VALUE(MID('CFR - XML import'!$A135,SEARCH(\">\",'CFR - XML import'!$A135,1)+1,SEARCH(\"/\",'CFR - XML import'!$A135,1)-SEARCH(\">\",'CFR - XML import'!$A135,1)-2)))","v":0},{"$f":"IF(ISERROR(FIND(T$3,'CFR - XML import'!$A135)),0,VALUE(MID('CFR - XML import'!$A135,SEARCH(\">\",'CFR - XML import'!$A135,1)+1,SEARCH(\"/\",'CFR - XML import'!$A135,1)-SEARCH(\">\",'CFR - XML import'!$A135,1)-2)))","v":0},{"$f":"IF(ISERROR(FIND(U$3,'CFR - XML import'!$A135)),0,VALUE(MID('CFR - XML import'!$A135,SEARCH(\">\",'CFR - XML import'!$A135,1)+1,SEARCH(\"/\",'CFR - XML import'!$A135,1)-SEARCH(\">\",'CFR - XML import'!$A135,1)-2)))","v":0},{"$f":"IF(ISERROR(FIND(V$3,'CFR - XML import'!$A135)),0,VALUE(MID('CFR - XML import'!$A135,SEARCH(\">\",'CFR - XML import'!$A135,1)+1,SEARCH(\"/\",'CFR - XML import'!$A135,1)-SEARCH(\">\",'CFR - XML import'!$A135,1)-2)))","v":0},{"$f":"IF(ISERROR(FIND(W$3,'CFR - XML import'!$A135)),0,VALUE(MID('CFR - XML import'!$A135,SEARCH(\">\",'CFR - XML import'!$A135,1)+1,SEARCH(\"/\",'CFR - XML import'!$A135,1)-SEARCH(\">\",'CFR - XML import'!$A135,1)-2)))","v":0},null,{"$f":"IF(ISERROR(FIND(Y$3,'CFR - XML import'!$A135)),0,VALUE(MID('CFR - XML import'!$A135,SEARCH(\">\",'CFR - XML import'!$A135,1)+1,SEARCH(\"/\",'CFR - XML import'!$A135,1)-SEARCH(\">\",'CFR - XML import'!$A135,1)-2)))","v":0},{"$f":"IF(ISERROR(FIND(Z$3,'CFR - XML import'!$A135)),0,VALUE(MID('CFR - XML import'!$A135,SEARCH(\">\",'CFR - XML import'!$A135,1)+1,SEARCH(\"/\",'CFR - XML import'!$A135,1)-SEARCH(\">\",'CFR - XML import'!$A135,1)-2)))","v":0},{"$f":"IF(ISERROR(FIND(AA$3,'CFR - XML import'!$A135)),0,VALUE(MID('CFR - XML import'!$A135,SEARCH(\">\",'CFR - XML import'!$A135,1)+1,SEARCH(\"/\",'CFR - XML import'!$A135,1)-SEARCH(\">\",'CFR - XML import'!$A135,1)-2)))","v":0},{"$f":"IF(ISERROR(FIND(AB$3,'CFR - XML import'!$A135)),0,VALUE(MID('CFR - XML import'!$A135,SEARCH(\">\",'CFR - XML import'!$A135,1)+1,SEARCH(\"/\",'CFR - XML import'!$A135,1)-SEARCH(\">\",'CFR - XML import'!$A135,1)-2)))","v":0},{"$f":"IF(ISERROR(FIND(AC$3,'CFR - XML import'!$A135)),0,VALUE(MID('CFR - XML import'!$A135,SEARCH(\">\",'CFR - XML import'!$A135,1)+1,SEARCH(\"/\",'CFR - XML import'!$A135,1)-SEARCH(\">\",'CFR - XML import'!$A135,1)-2)))","v":0},{"$f":"IF(ISERROR(FIND(AD$3,'CFR - XML import'!$A135)),0,VALUE(MID('CFR - XML import'!$A135,SEARCH(\">\",'CFR - XML import'!$A135,1)+1,SEARCH(\"/\",'CFR - XML import'!$A135,1)-SEARCH(\">\",'CFR - XML import'!$A135,1)-2)))","v":0},{"$f":"IF(ISERROR(FIND(AE$3,'CFR - XML import'!$A135)),0,VALUE(MID('CFR - XML import'!$A135,SEARCH(\">\",'CFR - XML import'!$A135,1)+1,SEARCH(\"/\",'CFR - XML import'!$A135,1)-SEARCH(\">\",'CFR - XML import'!$A135,1)-2)))","v":0},{"$f":"IF(ISERROR(FIND(AF$3,'CFR - XML import'!$A135)),0,VALUE(MID('CFR - XML import'!$A135,SEARCH(\">\",'CFR - XML import'!$A135,1)+1,SEARCH(\"/\",'CFR - XML import'!$A135,1)-SEARCH(\">\",'CFR - XML import'!$A135,1)-2)))","v":0},{"$f":"IF(ISERROR(FIND(AG$3,'CFR - XML import'!$A135)),0,VALUE(MID('CFR - XML import'!$A135,SEARCH(\">\",'CFR - XML import'!$A135,1)+1,SEARCH(\"/\",'CFR - XML import'!$A135,1)-SEARCH(\">\",'CFR - XML import'!$A135,1)-2)))","v":0},{"$f":"IF(ISERROR(FIND(AH$3,'CFR - XML import'!$A135)),0,VALUE(MID('CFR - XML import'!$A135,SEARCH(\">\",'CFR - XML import'!$A135,1)+1,SEARCH(\"/\",'CFR - XML import'!$A135,1)-SEARCH(\">\",'CFR - XML import'!$A135,1)-2)))","v":0},{"$f":"IF(ISERROR(FIND(AI$3,'CFR - XML import'!$A135)),0,VALUE(MID('CFR - XML import'!$A135,SEARCH(\">\",'CFR - XML import'!$A135,1)+1,SEARCH(\"/\",'CFR - XML import'!$A135,1)-SEARCH(\">\",'CFR - XML import'!$A135,1)-2)))","v":0},{"$f":"IF(ISERROR(FIND(AJ$3,'CFR - XML import'!$A135)),0,VALUE(MID('CFR - XML import'!$A135,SEARCH(\">\",'CFR - XML import'!$A135,1)+1,SEARCH(\"/\",'CFR - XML import'!$A135,1)-SEARCH(\">\",'CFR - XML import'!$A135,1)-2)))","v":0},{"$f":"IF(ISERROR(FIND(AK$3,'CFR - XML import'!$A135)),0,VALUE(MID('CFR - XML import'!$A135,SEARCH(\">\",'CFR - XML import'!$A135,1)+1,SEARCH(\"/\",'CFR - XML import'!$A135,1)-SEARCH(\">\",'CFR - XML import'!$A135,1)-2)))","v":0},{"$f":"IF(ISERROR(FIND(AL$3,'CFR - XML import'!$A135)),0,VALUE(MID('CFR - XML import'!$A135,SEARCH(\">\",'CFR - XML import'!$A135,1)+1,SEARCH(\"/\",'CFR - XML import'!$A135,1)-SEARCH(\">\",'CFR - XML import'!$A135,1)-2)))","v":0},{"$f":"IF(ISERROR(FIND(AM$3,'CFR - XML import'!$A135)),0,VALUE(MID('CFR - XML import'!$A135,SEARCH(\">\",'CFR - XML import'!$A135,1)+1,SEARCH(\"/\",'CFR - XML import'!$A135,1)-SEARCH(\">\",'CFR - XML import'!$A135,1)-2)))","v":0},{"$f":"IF(ISERROR(FIND(AN$3,'CFR - XML import'!$A135)),0,VALUE(MID('CFR - XML import'!$A135,SEARCH(\">\",'CFR - XML import'!$A135,1)+1,SEARCH(\"/\",'CFR - XML import'!$A135,1)-SEARCH(\">\",'CFR - XML import'!$A135,1)-2)))","v":0},{"$f":"IF(ISERROR(FIND(AO$3,'CFR - XML import'!$A135)),0,VALUE(MID('CFR - XML import'!$A135,SEARCH(\">\",'CFR - XML import'!$A135,1)+1,SEARCH(\"/\",'CFR - XML import'!$A135,1)-SEARCH(\">\",'CFR - XML import'!$A135,1)-2)))","v":0},{"$f":"IF(ISERROR(FIND(AP$3,'CFR - XML import'!$A135)),0,VALUE(MID('CFR - XML import'!$A135,SEARCH(\">\",'CFR - XML import'!$A135,1)+1,SEARCH(\"/\",'CFR - XML import'!$A135,1)-SEARCH(\">\",'CFR - XML import'!$A135,1)-2)))","v":0},{"$f":"IF(ISERROR(FIND(AQ$3,'CFR - XML import'!$A135)),0,VALUE(MID('CFR - XML import'!$A135,SEARCH(\">\",'CFR - XML import'!$A135,1)+1,SEARCH(\"/\",'CFR - XML import'!$A135,1)-SEARCH(\">\",'CFR - XML import'!$A135,1)-2)))","v":0},{"$f":"IF(ISERROR(FIND(AR$3,'CFR - XML import'!$A135)),0,VALUE(MID('CFR - XML import'!$A135,SEARCH(\">\",'CFR - XML import'!$A135,1)+1,SEARCH(\"/\",'CFR - XML import'!$A135,1)-SEARCH(\">\",'CFR - XML import'!$A135,1)-2)))","v":0},{"$f":"IF(ISERROR(FIND(AS$3,'CFR - XML import'!$A135)),0,VALUE(MID('CFR - XML import'!$A135,SEARCH(\">\",'CFR - XML import'!$A135,1)+1,SEARCH(\"/\",'CFR - XML import'!$A135,1)-SEARCH(\">\",'CFR - XML import'!$A135,1)-2)))","v":0},{"$f":"IF(ISERROR(FIND(AT$3,'CFR - XML import'!$A135)),0,VALUE(MID('CFR - XML import'!$A135,SEARCH(\">\",'CFR - XML import'!$A135,1)+1,SEARCH(\"/\",'CFR - XML import'!$A135,1)-SEARCH(\">\",'CFR - XML import'!$A135,1)-2)))","v":0},{"$f":"IF(ISERROR(FIND(AU$3,'CFR - XML import'!$A135)),0,VALUE(MID('CFR - XML import'!$A135,SEARCH(\">\",'CFR - XML import'!$A135,1)+1,SEARCH(\"/\",'CFR - XML import'!$A135,1)-SEARCH(\">\",'CFR - XML import'!$A135,1)-2)))","v":0},{"$f":"IF(ISERROR(FIND(AV$3,'CFR - XML import'!$A135)),0,VALUE(MID('CFR - XML import'!$A135,SEARCH(\">\",'CFR - XML import'!$A135,1)+1,SEARCH(\"/\",'CFR - XML import'!$A135,1)-SEARCH(\">\",'CFR - XML import'!$A135,1)-2)))","v":0},{"$f":"IF(ISERROR(FIND(AW$3,'CFR - XML import'!$A135)),0,VALUE(MID('CFR - XML import'!$A135,SEARCH(\">\",'CFR - XML import'!$A135,1)+1,SEARCH(\"/\",'CFR - XML import'!$A135,1)-SEARCH(\">\",'CFR - XML import'!$A135,1)-2)))","v":0},{"$f":"IF(ISERROR(FIND(AX$3,'CFR - XML import'!$A135)),0,VALUE(MID('CFR - XML import'!$A135,SEARCH(\">\",'CFR - XML import'!$A135,1)+1,SEARCH(\"/\",'CFR - XML import'!$A135,1)-SEARCH(\">\",'CFR - XML import'!$A135,1)-2)))","v":0},{"$f":"IF(ISERROR(FIND(AY$3,'CFR - XML import'!$A135)),0,VALUE(MID('CFR - XML import'!$A135,SEARCH(\">\",'CFR - XML import'!$A135,1)+1,SEARCH(\"/\",'CFR - XML import'!$A135,1)-SEARCH(\">\",'CFR - XML import'!$A135,1)-2)))","v":0},{"$f":"IF(ISERROR(FIND(AZ$3,'CFR - XML import'!$A135)),0,VALUE(MID('CFR - XML import'!$A135,SEARCH(\">\",'CFR - XML import'!$A135,1)+1,SEARCH(\"/\",'CFR - XML import'!$A135,1)-SEARCH(\">\",'CFR - XML import'!$A135,1)-2)))","v":0},{"$f":"IF(ISERROR(FIND(BA$3,'CFR - XML import'!$A135)),0,VALUE(MID('CFR - XML import'!$A135,SEARCH(\">\",'CFR - XML import'!$A135,1)+1,SEARCH(\"/\",'CFR - XML import'!$A135,1)-SEARCH(\">\",'CFR - XML import'!$A135,1)-2)))","v":0},{"$f":"IF(ISERROR(FIND(BB$3,'CFR - XML import'!$A135)),0,VALUE(MID('CFR - XML import'!$A135,SEARCH(\">\",'CFR - XML import'!$A135,1)+1,SEARCH(\"/\",'CFR - XML import'!$A135,1)-SEARCH(\">\",'CFR - XML import'!$A135,1)-2)))","v":0},{"$f":"IF(ISERROR(FIND(BC$3,'CFR - XML import'!$A135)),0,VALUE(MID('CFR - XML import'!$A135,SEARCH(\">\",'CFR - XML import'!$A135,1)+1,SEARCH(\"/\",'CFR - XML import'!$A135,1)-SEARCH(\">\",'CFR - XML import'!$A135,1)-2)))","v":0},{"$f":"IF(ISERROR(FIND(BD$3,'CFR - XML import'!$A135)),0,VALUE(MID('CFR - XML import'!$A135,SEARCH(\">\",'CFR - XML import'!$A135,1)+1,SEARCH(\"/\",'CFR - XML import'!$A135,1)-SEARCH(\">\",'CFR - XML import'!$A135,1)-2)))","v":0},{"$f":"IF(ISERROR(FIND(BE$3,'CFR - XML import'!$A135)),0,VALUE(MID('CFR - XML import'!$A135,SEARCH(\">\",'CFR - XML import'!$A135,1)+1,SEARCH(\"/\",'CFR - XML import'!$A135,1)-SEARCH(\">\",'CFR - XML import'!$A135,1)-2)))","v":0},{"$f":"IF(ISERROR(FIND(BF$3,'CFR - XML import'!$A135)),0,VALUE(MID('CFR - XML import'!$A135,SEARCH(\">\",'CFR - XML import'!$A135,1)+1,SEARCH(\"/\",'CFR - XML import'!$A135,1)-SEARCH(\">\",'CFR - XML import'!$A135,1)-2)))","v":0},{"$f":"IF(ISERROR(FIND(BG$3,'CFR - XML import'!$A135)),0,VALUE(MID('CFR - XML import'!$A135,SEARCH(\">\",'CFR - XML import'!$A135,1)+1,SEARCH(\"/\",'CFR - XML import'!$A135,1)-SEARCH(\">\",'CFR - XML import'!$A135,1)-2)))","v":0},{"$f":"IF(ISERROR(FIND(BH$3,'CFR - XML import'!$A135)),0,VALUE(MID('CFR - XML import'!$A135,SEARCH(\">\",'CFR - XML import'!$A135,1)+1,SEARCH(\"/\",'CFR - XML import'!$A135,1)-SEARCH(\">\",'CFR - XML import'!$A135,1)-2)))","v":0},{"$f":"IF(ISERROR(FIND(BI$3,'CFR - XML import'!$A135)),0,VALUE(MID('CFR - XML import'!$A135,SEARCH(\">\",'CFR - XML import'!$A135,1)+1,SEARCH(\"/\",'CFR - XML import'!$A135,1)-SEARCH(\">\",'CFR - XML import'!$A135,1)-2)))","v":0},{"$f":"IF(ISERROR(FIND(BJ$3,'CFR - XML import'!$A135)),0,VALUE(MID('CFR - XML import'!$A135,SEARCH(\">\",'CFR - XML import'!$A135,1)+1,SEARCH(\"/\",'CFR - XML import'!$A135,1)-SEARCH(\">\",'CFR - XML import'!$A135,1)-2)))","v":0},{"$f":"IF(ISERROR(FIND(BK$3,'CFR - XML import'!$A135)),0,VALUE(MID('CFR - XML import'!$A135,SEARCH(\">\",'CFR - XML import'!$A135,1)+1,SEARCH(\"/\",'CFR - XML import'!$A135,1)-SEARCH(\">\",'CFR - XML import'!$A135,1)-2)))","v":0},{"$f":"IF(ISERROR(FIND(BL$3,'CFR - XML import'!$A135)),0,VALUE(MID('CFR - XML import'!$A135,SEARCH(\">\",'CFR - XML import'!$A135,1)+1,SEARCH(\"/\",'CFR - XML import'!$A135,1)-SEARCH(\">\",'CFR - XML import'!$A135,1)-2)))","v":0},{"$f":"IF(ISERROR(FIND(BM$3,'CFR - XML import'!$A135)),0,VALUE(MID('CFR - XML import'!$A135,SEARCH(\">\",'CFR - XML import'!$A135,1)+1,SEARCH(\"/\",'CFR - XML import'!$A135,1)-SEARCH(\">\",'CFR - XML import'!$A135,1)-2)))","v":0},{"$f":"IF(ISERROR(FIND(BN$3,'CFR - XML import'!$A135)),0,VALUE(MID('CFR - XML import'!$A135,SEARCH(\">\",'CFR - XML import'!$A135,1)+1,SEARCH(\"/\",'CFR - XML import'!$A135,1)-SEARCH(\">\",'CFR - XML import'!$A135,1)-2)))","v":0},{"$f":"IF(ISERROR(FIND(BO$3,'CFR - XML import'!$A135)),0,VALUE(MID('CFR - XML import'!$A135,SEARCH(\">\",'CFR - XML import'!$A135,1)+1,SEARCH(\"/\",'CFR - XML import'!$A135,1)-SEARCH(\">\",'CFR - XML import'!$A135,1)-2)))","v":0},{"$f":"IF(ISERROR(FIND(BP$3,'CFR - XML import'!$A135)),0,VALUE(MID('CFR - XML import'!$A135,SEARCH(\">\",'CFR - XML import'!$A135,1)+1,SEARCH(\"/\",'CFR - XML import'!$A135,1)-SEARCH(\">\",'CFR - XML import'!$A135,1)-2)))","v":0},{"$f":"IF(ISERROR(FIND(BQ$3,'CFR - XML import'!$A135)),0,VALUE(MID('CFR - XML import'!$A135,SEARCH(\">\",'CFR - XML import'!$A135,1)+1,SEARCH(\"/\",'CFR - XML import'!$A135,1)-SEARCH(\">\",'CFR - XML import'!$A135,1)-2)))","v":0},{"$f":"IF(ISERROR(FIND(BR$3,'CFR - XML import'!$A135)),0,VALUE(MID('CFR - XML import'!$A135,SEARCH(\">\",'CFR - XML import'!$A135,1)+1,SEARCH(\"/\",'CFR - XML import'!$A135,1)-SEARCH(\">\",'CFR - XML import'!$A135,1)-2)))","v":0},{"$f":"IF(ISERROR(FIND(BS$3,'CFR - XML import'!$A135)),0,VALUE(MID('CFR - XML import'!$A135,SEARCH(\">\",'CFR - XML import'!$A135,1)+1,SEARCH(\"/\",'CFR - XML import'!$A135,1)-SEARCH(\">\",'CFR - XML import'!$A135,1)-2)))","v":0},{"$f":"IF(ISERROR(FIND(BT$3,'CFR - XML import'!$A135)),0,VALUE(MID('CFR - XML import'!$A135,SEARCH(\">\",'CFR - XML import'!$A135,1)+1,SEARCH(\"/\",'CFR - XML import'!$A135,1)-SEARCH(\">\",'CFR - XML import'!$A135,1)-2)))","v":0},{"$f":"IF(ISERROR(FIND(BU$3,'CFR - XML import'!$A135)),0,VALUE(MID('CFR - XML import'!$A135,SEARCH(\">\",'CFR - XML import'!$A135,1)+1,SEARCH(\"/\",'CFR - XML import'!$A135,1)-SEARCH(\">\",'CFR - XML import'!$A135,1)-2)))","v":0},{"$f":"IF(ISERROR(FIND(BV$3,'CFR - XML import'!$A135)),0,VALUE(MID('CFR - XML import'!$A135,SEARCH(\">\",'CFR - XML import'!$A135,1)+1,SEARCH(\"/\",'CFR - XML import'!$A135,1)-SEARCH(\">\",'CFR - XML import'!$A135,1)-2)))","v":0},{"$f":"IF(ISERROR(FIND(BW$3,'CFR - XML import'!$A135)),0,VALUE(MID('CFR - XML import'!$A135,SEARCH(\">\",'CFR - XML import'!$A135,1)+1,SEARCH(\"/\",'CFR - XML import'!$A135,1)-SEARCH(\">\",'CFR - XML import'!$A135,1)-2)))","v":0},{"$f":"IF(ISERROR(FIND(BX$3,'CFR - XML import'!$A135)),0,VALUE(MID('CFR - XML import'!$A135,SEARCH(\">\",'CFR - XML import'!$A135,1)+1,SEARCH(\"/\",'CFR - XML import'!$A135,1)-SEARCH(\">\",'CFR - XML import'!$A135,1)-2)))","v":0},{"$f":"IF(ISERROR(FIND(BY$3,'CFR - XML import'!$A135)),0,VALUE(MID('CFR - XML import'!$A135,SEARCH(\">\",'CFR - XML import'!$A135,1)+1,SEARCH(\"/\",'CFR - XML import'!$A135,1)-SEARCH(\">\",'CFR - XML import'!$A135,1)-2)))","v":0},{"$f":"IF(ISERROR(FIND(BZ$3,'CFR - XML import'!$A135)),0,VALUE(MID('CFR - XML import'!$A135,SEARCH(\">\",'CFR - XML import'!$A135,1)+1,SEARCH(\"/\",'CFR - XML import'!$A135,1)-SEARCH(\">\",'CFR - XML import'!$A135,1)-2)))","v":0},null,null,null,null,null,null,{"$f":"IF(ISERROR(IF(MID('CFR - XML import'!$A135,LEN($CF$4)+1,LEN('CFR - XML import'!$A135)-(2*LEN($CF$4)+1))=\"RMMS\",1,IF(MID('CFR - XML import'!$A135,LEN(\"    <InputSystem>\")+1,LEN('CFR - XML import'!$A135)-(LEN(\"    <InputSystem>\")+LEN($CF$4)+1))=\"SIMS\",2,0))),0,IF(MID('CFR - XML import'!$A135,LEN($CF$4)+1,LEN('CFR - XML import'!$A135)-(2*LEN($CF$4)+1))=\"RMMS\",1,IF(MID('CFR - XML import'!$A135,LEN(\"    <InputSystem>\")+1,LEN('CFR - XML import'!$A135)-(LEN(\"    <InputSystem>\")+LEN($CF$4)+1))=\"SIMS\",2,0)))","v":0},{"$f":"IF(ISERROR(FIND(CH$3,'CFR - XML import'!$A135)),0,MID('CFR - XML import'!$A135,SEARCH(\">\",'CFR - XML import'!$A135,1)+1,SEARCH(\"/\",'CFR - XML import'!$A135,1)-SEARCH(\">\",'CFR - XML import'!$A135,1)-2))","v":0},{"$f":"IF(ISERROR(FIND(CI$3,'CFR - XML import'!$A135)),0,MID('CFR - XML import'!$A135,SEARCH(\">\",'CFR - XML import'!$A135,1)+1,SEARCH(\"/\",'CFR - XML import'!$A135,1)-SEARCH(\">\",'CFR - XML import'!$A135,1)-2))","v":0},{"$f":"IF(ISERROR(FIND(CJ$3,'CFR - XML import'!$A135)),0,MID('CFR - XML import'!$A135,SEARCH(\">\",'CFR - XML import'!$A135,1)+1,SEARCH(\"/\",'CFR - XML import'!$A135,1)-SEARCH(\">\",'CFR - XML import'!$A135,1)-2))","v":0},{"$f":"IF(ISERROR(FIND(CK$3,'CFR - XML import'!$A135)),0,MID('CFR - XML import'!$A135,SEARCH(\">\",'CFR - XML import'!$A135,1)+1,SEARCH(\"/\",'CFR - XML import'!$A135,1)-SEARCH(\">\",'CFR - XML import'!$A135,1)-2))","v":0},{"$f":"IF(ISERROR(FIND(CL$3,'CFR - XML import'!$A135)),0,MID('CFR - XML import'!$A135,SEARCH(\">\",'CFR - XML import'!$A135,1)+1,SEARCH(\"/\",'CFR - XML import'!$A135,1)-SEARCH(\">\",'CFR - XML import'!$A135,1)-2))","v":0}]
[{"$f":"IF(AND('CFR - XML import'!A136<>\"\",LEFT('CFR - XML import'!A136,1)<>\"<\",LEFT('CFR - XML import'!A136,3)<>\"  <\",LEFT('CFR - XML import'!A136,5)<>\"    <\",LEFT('CFR - XML import'!A136,7)<>\"      <\",LEFT('CFR - XML import'!A136,9)<>\"        <\",$B$1=\"SIMS\"),'CFR - XML import'!A136,IF(AND(LEFT('CFR - XML import'!A136,9)=\"<Details>\",$B$1=\"RM\"),'CFR - XML import'!A136,\"\"))","v":""},{"$f":"IF(ISERROR(FIND(B$3,'CFR - XML import'!$A136)),0,VALUE(MID('CFR - XML import'!$A136,SEARCH(\">\",'CFR - XML import'!$A136,1)+1,SEARCH(\"/\",'CFR - XML import'!$A136,1)-SEARCH(\">\",'CFR - XML import'!$A136,1)-2)))","v":0},null,{"$f":"IF(ISERROR(FIND(D$3,'CFR - XML import'!$A136)),0,MID('CFR - XML import'!$A136,SEARCH(\">\",'CFR - XML import'!$A136,1)+1,SEARCH(\"/\",'CFR - XML import'!$A136,1)-SEARCH(\">\",'CFR - XML import'!$A136,1)-2))","v":0},{"$f":"IF(ISERROR(FIND(E$3,'CFR - XML import'!$A136)),0,MID('CFR - XML import'!$A136,SEARCH(\">\",'CFR - XML import'!$A136,1)+1,SEARCH(\"/\",'CFR - XML import'!$A136,1)-SEARCH(\">\",'CFR - XML import'!$A136,1)-2))","v":0},{"$f":"IF($B$1=\"SIMS\",IF(ISERROR(FIND(F$3,'CFR - XML import'!$A136)),0,VALUE(MID('CFR - XML import'!$A136,15,10))),IF(ISERROR(FIND(F$3,'CFR - XML import'!$A136)),0,VALUE(MID('CFR - XML import'!$A136,11,10))))","v":"00:00:00"},{"$f":"IF(ISERROR(FIND(G$3,'CFR - XML import'!$A136)),0,VALUE(MID('CFR - XML import'!$A136,SEARCH(\">\",'CFR - XML import'!$A136,1)+1,SEARCH(\"/\",'CFR - XML import'!$A136,1)-SEARCH(\">\",'CFR - XML import'!$A136,1)-2)))","v":0},{"$f":"IF(ISERROR(FIND(H$3,'CFR - XML import'!$A136)),0,VALUE(MID('CFR - XML import'!$A136,SEARCH(\">\",'CFR - XML import'!$A136,1)+1,SEARCH(\"/\",'CFR - XML import'!$A136,1)-SEARCH(\">\",'CFR - XML import'!$A136,1)-2)))","v":0},{"$f":"IF(ISERROR(FIND(I$3,'CFR - XML import'!$A136)),0,VALUE(MID('CFR - XML import'!$A136,SEARCH(\">\",'CFR - XML import'!$A136,1)+1,SEARCH(\"/\",'CFR - XML import'!$A136,1)-SEARCH(\">\",'CFR - XML import'!$A136,1)-2)))","v":0},{"$f":"IF(ISERROR(FIND(J$3,'CFR - XML import'!$A136)),0,VALUE(MID('CFR - XML import'!$A136,SEARCH(\">\",'CFR - XML import'!$A136,1)+1,SEARCH(\"/\",'CFR - XML import'!$A136,1)-SEARCH(\">\",'CFR - XML import'!$A136,1)-2)))","v":0},{"$f":"IF(ISERROR(FIND(K$3,'CFR - XML import'!$A136)),0,VALUE(MID('CFR - XML import'!$A136,SEARCH(\">\",'CFR - XML import'!$A136,1)+1,SEARCH(\"/\",'CFR - XML import'!$A136,1)-SEARCH(\">\",'CFR - XML import'!$A136,1)-2)))","v":0},{"$f":"IF(ISERROR(FIND(L$3,'CFR - XML import'!$A136)),0,VALUE(MID('CFR - XML import'!$A136,SEARCH(\">\",'CFR - XML import'!$A136,1)+1,SEARCH(\"/\",'CFR - XML import'!$A136,1)-SEARCH(\">\",'CFR - XML import'!$A136,1)-2)))","v":0},{"$f":"IF(ISERROR(FIND(M$3,'CFR - XML import'!$A136)),0,VALUE(MID('CFR - XML import'!$A136,SEARCH(\">\",'CFR - XML import'!$A136,1)+1,SEARCH(\"/\",'CFR - XML import'!$A136,1)-SEARCH(\">\",'CFR - XML import'!$A136,1)-2)))","v":0},{"$f":"IF(ISERROR(FIND(N$3,'CFR - XML import'!$A136)),0,VALUE(MID('CFR - XML import'!$A136,SEARCH(\">\",'CFR - XML import'!$A136,1)+1,SEARCH(\"/\",'CFR - XML import'!$A136,1)-SEARCH(\">\",'CFR - XML import'!$A136,1)-2)))","v":0},{"$f":"IF(ISERROR(FIND(O$3,'CFR - XML import'!$A136)),0,VALUE(MID('CFR - XML import'!$A136,SEARCH(\">\",'CFR - XML import'!$A136,1)+1,SEARCH(\"/\",'CFR - XML import'!$A136,1)-SEARCH(\">\",'CFR - XML import'!$A136,1)-2)))","v":0},{"$f":"IF(ISERROR(FIND(P$3,'CFR - XML import'!$A136)),0,VALUE(MID('CFR - XML import'!$A136,SEARCH(\">\",'CFR - XML import'!$A136,1)+1,SEARCH(\"/\",'CFR - XML import'!$A136,1)-SEARCH(\">\",'CFR - XML import'!$A136,1)-2)))","v":0},{"$f":"IF(ISERROR(FIND(Q$3,'CFR - XML import'!$A136)),0,VALUE(MID('CFR - XML import'!$A136,SEARCH(\">\",'CFR - XML import'!$A136,1)+1,SEARCH(\"/\",'CFR - XML import'!$A136,1)-SEARCH(\">\",'CFR - XML import'!$A136,1)-2)))","v":0},{"$f":"IF(ISERROR(FIND(R$3,'CFR - XML import'!$A136)),0,VALUE(MID('CFR - XML import'!$A136,SEARCH(\">\",'CFR - XML import'!$A136,1)+1,SEARCH(\"/\",'CFR - XML import'!$A136,1)-SEARCH(\">\",'CFR - XML import'!$A136,1)-2)))","v":0},{"$f":"IF(ISERROR(FIND(S$3,'CFR - XML import'!$A136)),0,VALUE(MID('CFR - XML import'!$A136,SEARCH(\">\",'CFR - XML import'!$A136,1)+1,SEARCH(\"/\",'CFR - XML import'!$A136,1)-SEARCH(\">\",'CFR - XML import'!$A136,1)-2)))","v":0},{"$f":"IF(ISERROR(FIND(T$3,'CFR - XML import'!$A136)),0,VALUE(MID('CFR - XML import'!$A136,SEARCH(\">\",'CFR - XML import'!$A136,1)+1,SEARCH(\"/\",'CFR - XML import'!$A136,1)-SEARCH(\">\",'CFR - XML import'!$A136,1)-2)))","v":0},{"$f":"IF(ISERROR(FIND(U$3,'CFR - XML import'!$A136)),0,VALUE(MID('CFR - XML import'!$A136,SEARCH(\">\",'CFR - XML import'!$A136,1)+1,SEARCH(\"/\",'CFR - XML import'!$A136,1)-SEARCH(\">\",'CFR - XML import'!$A136,1)-2)))","v":0},{"$f":"IF(ISERROR(FIND(V$3,'CFR - XML import'!$A136)),0,VALUE(MID('CFR - XML import'!$A136,SEARCH(\">\",'CFR - XML import'!$A136,1)+1,SEARCH(\"/\",'CFR - XML import'!$A136,1)-SEARCH(\">\",'CFR - XML import'!$A136,1)-2)))","v":0},{"$f":"IF(ISERROR(FIND(W$3,'CFR - XML import'!$A136)),0,VALUE(MID('CFR - XML import'!$A136,SEARCH(\">\",'CFR - XML import'!$A136,1)+1,SEARCH(\"/\",'CFR - XML import'!$A136,1)-SEARCH(\">\",'CFR - XML import'!$A136,1)-2)))","v":0},null,{"$f":"IF(ISERROR(FIND(Y$3,'CFR - XML import'!$A136)),0,VALUE(MID('CFR - XML import'!$A136,SEARCH(\">\",'CFR - XML import'!$A136,1)+1,SEARCH(\"/\",'CFR - XML import'!$A136,1)-SEARCH(\">\",'CFR - XML import'!$A136,1)-2)))","v":0},{"$f":"IF(ISERROR(FIND(Z$3,'CFR - XML import'!$A136)),0,VALUE(MID('CFR - XML import'!$A136,SEARCH(\">\",'CFR - XML import'!$A136,1)+1,SEARCH(\"/\",'CFR - XML import'!$A136,1)-SEARCH(\">\",'CFR - XML import'!$A136,1)-2)))","v":0},{"$f":"IF(ISERROR(FIND(AA$3,'CFR - XML import'!$A136)),0,VALUE(MID('CFR - XML import'!$A136,SEARCH(\">\",'CFR - XML import'!$A136,1)+1,SEARCH(\"/\",'CFR - XML import'!$A136,1)-SEARCH(\">\",'CFR - XML import'!$A136,1)-2)))","v":0},{"$f":"IF(ISERROR(FIND(AB$3,'CFR - XML import'!$A136)),0,VALUE(MID('CFR - XML import'!$A136,SEARCH(\">\",'CFR - XML import'!$A136,1)+1,SEARCH(\"/\",'CFR - XML import'!$A136,1)-SEARCH(\">\",'CFR - XML import'!$A136,1)-2)))","v":0},{"$f":"IF(ISERROR(FIND(AC$3,'CFR - XML import'!$A136)),0,VALUE(MID('CFR - XML import'!$A136,SEARCH(\">\",'CFR - XML import'!$A136,1)+1,SEARCH(\"/\",'CFR - XML import'!$A136,1)-SEARCH(\">\",'CFR - XML import'!$A136,1)-2)))","v":0},{"$f":"IF(ISERROR(FIND(AD$3,'CFR - XML import'!$A136)),0,VALUE(MID('CFR - XML import'!$A136,SEARCH(\">\",'CFR - XML import'!$A136,1)+1,SEARCH(\"/\",'CFR - XML import'!$A136,1)-SEARCH(\">\",'CFR - XML import'!$A136,1)-2)))","v":0},{"$f":"IF(ISERROR(FIND(AE$3,'CFR - XML import'!$A136)),0,VALUE(MID('CFR - XML import'!$A136,SEARCH(\">\",'CFR - XML import'!$A136,1)+1,SEARCH(\"/\",'CFR - XML import'!$A136,1)-SEARCH(\">\",'CFR - XML import'!$A136,1)-2)))","v":0},{"$f":"IF(ISERROR(FIND(AF$3,'CFR - XML import'!$A136)),0,VALUE(MID('CFR - XML import'!$A136,SEARCH(\">\",'CFR - XML import'!$A136,1)+1,SEARCH(\"/\",'CFR - XML import'!$A136,1)-SEARCH(\">\",'CFR - XML import'!$A136,1)-2)))","v":0},{"$f":"IF(ISERROR(FIND(AG$3,'CFR - XML import'!$A136)),0,VALUE(MID('CFR - XML import'!$A136,SEARCH(\">\",'CFR - XML import'!$A136,1)+1,SEARCH(\"/\",'CFR - XML import'!$A136,1)-SEARCH(\">\",'CFR - XML import'!$A136,1)-2)))","v":0},{"$f":"IF(ISERROR(FIND(AH$3,'CFR - XML import'!$A136)),0,VALUE(MID('CFR - XML import'!$A136,SEARCH(\">\",'CFR - XML import'!$A136,1)+1,SEARCH(\"/\",'CFR - XML import'!$A136,1)-SEARCH(\">\",'CFR - XML import'!$A136,1)-2)))","v":0},{"$f":"IF(ISERROR(FIND(AI$3,'CFR - XML import'!$A136)),0,VALUE(MID('CFR - XML import'!$A136,SEARCH(\">\",'CFR - XML import'!$A136,1)+1,SEARCH(\"/\",'CFR - XML import'!$A136,1)-SEARCH(\">\",'CFR - XML import'!$A136,1)-2)))","v":0},{"$f":"IF(ISERROR(FIND(AJ$3,'CFR - XML import'!$A136)),0,VALUE(MID('CFR - XML import'!$A136,SEARCH(\">\",'CFR - XML import'!$A136,1)+1,SEARCH(\"/\",'CFR - XML import'!$A136,1)-SEARCH(\">\",'CFR - XML import'!$A136,1)-2)))","v":0},{"$f":"IF(ISERROR(FIND(AK$3,'CFR - XML import'!$A136)),0,VALUE(MID('CFR - XML import'!$A136,SEARCH(\">\",'CFR - XML import'!$A136,1)+1,SEARCH(\"/\",'CFR - XML import'!$A136,1)-SEARCH(\">\",'CFR - XML import'!$A136,1)-2)))","v":0},{"$f":"IF(ISERROR(FIND(AL$3,'CFR - XML import'!$A136)),0,VALUE(MID('CFR - XML import'!$A136,SEARCH(\">\",'CFR - XML import'!$A136,1)+1,SEARCH(\"/\",'CFR - XML import'!$A136,1)-SEARCH(\">\",'CFR - XML import'!$A136,1)-2)))","v":0},{"$f":"IF(ISERROR(FIND(AM$3,'CFR - XML import'!$A136)),0,VALUE(MID('CFR - XML import'!$A136,SEARCH(\">\",'CFR - XML import'!$A136,1)+1,SEARCH(\"/\",'CFR - XML import'!$A136,1)-SEARCH(\">\",'CFR - XML import'!$A136,1)-2)))","v":0},{"$f":"IF(ISERROR(FIND(AN$3,'CFR - XML import'!$A136)),0,VALUE(MID('CFR - XML import'!$A136,SEARCH(\">\",'CFR - XML import'!$A136,1)+1,SEARCH(\"/\",'CFR - XML import'!$A136,1)-SEARCH(\">\",'CFR - XML import'!$A136,1)-2)))","v":0},{"$f":"IF(ISERROR(FIND(AO$3,'CFR - XML import'!$A136)),0,VALUE(MID('CFR - XML import'!$A136,SEARCH(\">\",'CFR - XML import'!$A136,1)+1,SEARCH(\"/\",'CFR - XML import'!$A136,1)-SEARCH(\">\",'CFR - XML import'!$A136,1)-2)))","v":0},{"$f":"IF(ISERROR(FIND(AP$3,'CFR - XML import'!$A136)),0,VALUE(MID('CFR - XML import'!$A136,SEARCH(\">\",'CFR - XML import'!$A136,1)+1,SEARCH(\"/\",'CFR - XML import'!$A136,1)-SEARCH(\">\",'CFR - XML import'!$A136,1)-2)))","v":0},{"$f":"IF(ISERROR(FIND(AQ$3,'CFR - XML import'!$A136)),0,VALUE(MID('CFR - XML import'!$A136,SEARCH(\">\",'CFR - XML import'!$A136,1)+1,SEARCH(\"/\",'CFR - XML import'!$A136,1)-SEARCH(\">\",'CFR - XML import'!$A136,1)-2)))","v":0},{"$f":"IF(ISERROR(FIND(AR$3,'CFR - XML import'!$A136)),0,VALUE(MID('CFR - XML import'!$A136,SEARCH(\">\",'CFR - XML import'!$A136,1)+1,SEARCH(\"/\",'CFR - XML import'!$A136,1)-SEARCH(\">\",'CFR - XML import'!$A136,1)-2)))","v":0},{"$f":"IF(ISERROR(FIND(AS$3,'CFR - XML import'!$A136)),0,VALUE(MID('CFR - XML import'!$A136,SEARCH(\">\",'CFR - XML import'!$A136,1)+1,SEARCH(\"/\",'CFR - XML import'!$A136,1)-SEARCH(\">\",'CFR - XML import'!$A136,1)-2)))","v":0},{"$f":"IF(ISERROR(FIND(AT$3,'CFR - XML import'!$A136)),0,VALUE(MID('CFR - XML import'!$A136,SEARCH(\">\",'CFR - XML import'!$A136,1)+1,SEARCH(\"/\",'CFR - XML import'!$A136,1)-SEARCH(\">\",'CFR - XML import'!$A136,1)-2)))","v":0},{"$f":"IF(ISERROR(FIND(AU$3,'CFR - XML import'!$A136)),0,VALUE(MID('CFR - XML import'!$A136,SEARCH(\">\",'CFR - XML import'!$A136,1)+1,SEARCH(\"/\",'CFR - XML import'!$A136,1)-SEARCH(\">\",'CFR - XML import'!$A136,1)-2)))","v":0},{"$f":"IF(ISERROR(FIND(AV$3,'CFR - XML import'!$A136)),0,VALUE(MID('CFR - XML import'!$A136,SEARCH(\">\",'CFR - XML import'!$A136,1)+1,SEARCH(\"/\",'CFR - XML import'!$A136,1)-SEARCH(\">\",'CFR - XML import'!$A136,1)-2)))","v":0},{"$f":"IF(ISERROR(FIND(AW$3,'CFR - XML import'!$A136)),0,VALUE(MID('CFR - XML import'!$A136,SEARCH(\">\",'CFR - XML import'!$A136,1)+1,SEARCH(\"/\",'CFR - XML import'!$A136,1)-SEARCH(\">\",'CFR - XML import'!$A136,1)-2)))","v":0},{"$f":"IF(ISERROR(FIND(AX$3,'CFR - XML import'!$A136)),0,VALUE(MID('CFR - XML import'!$A136,SEARCH(\">\",'CFR - XML import'!$A136,1)+1,SEARCH(\"/\",'CFR - XML import'!$A136,1)-SEARCH(\">\",'CFR - XML import'!$A136,1)-2)))","v":0},{"$f":"IF(ISERROR(FIND(AY$3,'CFR - XML import'!$A136)),0,VALUE(MID('CFR - XML import'!$A136,SEARCH(\">\",'CFR - XML import'!$A136,1)+1,SEARCH(\"/\",'CFR - XML import'!$A136,1)-SEARCH(\">\",'CFR - XML import'!$A136,1)-2)))","v":0},{"$f":"IF(ISERROR(FIND(AZ$3,'CFR - XML import'!$A136)),0,VALUE(MID('CFR - XML import'!$A136,SEARCH(\">\",'CFR - XML import'!$A136,1)+1,SEARCH(\"/\",'CFR - XML import'!$A136,1)-SEARCH(\">\",'CFR - XML import'!$A136,1)-2)))","v":0},{"$f":"IF(ISERROR(FIND(BA$3,'CFR - XML import'!$A136)),0,VALUE(MID('CFR - XML import'!$A136,SEARCH(\">\",'CFR - XML import'!$A136,1)+1,SEARCH(\"/\",'CFR - XML import'!$A136,1)-SEARCH(\">\",'CFR - XML import'!$A136,1)-2)))","v":0},{"$f":"IF(ISERROR(FIND(BB$3,'CFR - XML import'!$A136)),0,VALUE(MID('CFR - XML import'!$A136,SEARCH(\">\",'CFR - XML import'!$A136,1)+1,SEARCH(\"/\",'CFR - XML import'!$A136,1)-SEARCH(\">\",'CFR - XML import'!$A136,1)-2)))","v":0},{"$f":"IF(ISERROR(FIND(BC$3,'CFR - XML import'!$A136)),0,VALUE(MID('CFR - XML import'!$A136,SEARCH(\">\",'CFR - XML import'!$A136,1)+1,SEARCH(\"/\",'CFR - XML import'!$A136,1)-SEARCH(\">\",'CFR - XML import'!$A136,1)-2)))","v":0},{"$f":"IF(ISERROR(FIND(BD$3,'CFR - XML import'!$A136)),0,VALUE(MID('CFR - XML import'!$A136,SEARCH(\">\",'CFR - XML import'!$A136,1)+1,SEARCH(\"/\",'CFR - XML import'!$A136,1)-SEARCH(\">\",'CFR - XML import'!$A136,1)-2)))","v":0},{"$f":"IF(ISERROR(FIND(BE$3,'CFR - XML import'!$A136)),0,VALUE(MID('CFR - XML import'!$A136,SEARCH(\">\",'CFR - XML import'!$A136,1)+1,SEARCH(\"/\",'CFR - XML import'!$A136,1)-SEARCH(\">\",'CFR - XML import'!$A136,1)-2)))","v":0},{"$f":"IF(ISERROR(FIND(BF$3,'CFR - XML import'!$A136)),0,VALUE(MID('CFR - XML import'!$A136,SEARCH(\">\",'CFR - XML import'!$A136,1)+1,SEARCH(\"/\",'CFR - XML import'!$A136,1)-SEARCH(\">\",'CFR - XML import'!$A136,1)-2)))","v":0},{"$f":"IF(ISERROR(FIND(BG$3,'CFR - XML import'!$A136)),0,VALUE(MID('CFR - XML import'!$A136,SEARCH(\">\",'CFR - XML import'!$A136,1)+1,SEARCH(\"/\",'CFR - XML import'!$A136,1)-SEARCH(\">\",'CFR - XML import'!$A136,1)-2)))","v":0},{"$f":"IF(ISERROR(FIND(BH$3,'CFR - XML import'!$A136)),0,VALUE(MID('CFR - XML import'!$A136,SEARCH(\">\",'CFR - XML import'!$A136,1)+1,SEARCH(\"/\",'CFR - XML import'!$A136,1)-SEARCH(\">\",'CFR - XML import'!$A136,1)-2)))","v":0},{"$f":"IF(ISERROR(FIND(BI$3,'CFR - XML import'!$A136)),0,VALUE(MID('CFR - XML import'!$A136,SEARCH(\">\",'CFR - XML import'!$A136,1)+1,SEARCH(\"/\",'CFR - XML import'!$A136,1)-SEARCH(\">\",'CFR - XML import'!$A136,1)-2)))","v":0},{"$f":"IF(ISERROR(FIND(BJ$3,'CFR - XML import'!$A136)),0,VALUE(MID('CFR - XML import'!$A136,SEARCH(\">\",'CFR - XML import'!$A136,1)+1,SEARCH(\"/\",'CFR - XML import'!$A136,1)-SEARCH(\">\",'CFR - XML import'!$A136,1)-2)))","v":0},{"$f":"IF(ISERROR(FIND(BK$3,'CFR - XML import'!$A136)),0,VALUE(MID('CFR - XML import'!$A136,SEARCH(\">\",'CFR - XML import'!$A136,1)+1,SEARCH(\"/\",'CFR - XML import'!$A136,1)-SEARCH(\">\",'CFR - XML import'!$A136,1)-2)))","v":0},{"$f":"IF(ISERROR(FIND(BL$3,'CFR - XML import'!$A136)),0,VALUE(MID('CFR - XML import'!$A136,SEARCH(\">\",'CFR - XML import'!$A136,1)+1,SEARCH(\"/\",'CFR - XML import'!$A136,1)-SEARCH(\">\",'CFR - XML import'!$A136,1)-2)))","v":0},{"$f":"IF(ISERROR(FIND(BM$3,'CFR - XML import'!$A136)),0,VALUE(MID('CFR - XML import'!$A136,SEARCH(\">\",'CFR - XML import'!$A136,1)+1,SEARCH(\"/\",'CFR - XML import'!$A136,1)-SEARCH(\">\",'CFR - XML import'!$A136,1)-2)))","v":0},{"$f":"IF(ISERROR(FIND(BN$3,'CFR - XML import'!$A136)),0,VALUE(MID('CFR - XML import'!$A136,SEARCH(\">\",'CFR - XML import'!$A136,1)+1,SEARCH(\"/\",'CFR - XML import'!$A136,1)-SEARCH(\">\",'CFR - XML import'!$A136,1)-2)))","v":0},{"$f":"IF(ISERROR(FIND(BO$3,'CFR - XML import'!$A136)),0,VALUE(MID('CFR - XML import'!$A136,SEARCH(\">\",'CFR - XML import'!$A136,1)+1,SEARCH(\"/\",'CFR - XML import'!$A136,1)-SEARCH(\">\",'CFR - XML import'!$A136,1)-2)))","v":0},{"$f":"IF(ISERROR(FIND(BP$3,'CFR - XML import'!$A136)),0,VALUE(MID('CFR - XML import'!$A136,SEARCH(\">\",'CFR - XML import'!$A136,1)+1,SEARCH(\"/\",'CFR - XML import'!$A136,1)-SEARCH(\">\",'CFR - XML import'!$A136,1)-2)))","v":0},{"$f":"IF(ISERROR(FIND(BQ$3,'CFR - XML import'!$A136)),0,VALUE(MID('CFR - XML import'!$A136,SEARCH(\">\",'CFR - XML import'!$A136,1)+1,SEARCH(\"/\",'CFR - XML import'!$A136,1)-SEARCH(\">\",'CFR - XML import'!$A136,1)-2)))","v":0},{"$f":"IF(ISERROR(FIND(BR$3,'CFR - XML import'!$A136)),0,VALUE(MID('CFR - XML import'!$A136,SEARCH(\">\",'CFR - XML import'!$A136,1)+1,SEARCH(\"/\",'CFR - XML import'!$A136,1)-SEARCH(\">\",'CFR - XML import'!$A136,1)-2)))","v":0},{"$f":"IF(ISERROR(FIND(BS$3,'CFR - XML import'!$A136)),0,VALUE(MID('CFR - XML import'!$A136,SEARCH(\">\",'CFR - XML import'!$A136,1)+1,SEARCH(\"/\",'CFR - XML import'!$A136,1)-SEARCH(\">\",'CFR - XML import'!$A136,1)-2)))","v":0},{"$f":"IF(ISERROR(FIND(BT$3,'CFR - XML import'!$A136)),0,VALUE(MID('CFR - XML import'!$A136,SEARCH(\">\",'CFR - XML import'!$A136,1)+1,SEARCH(\"/\",'CFR - XML import'!$A136,1)-SEARCH(\">\",'CFR - XML import'!$A136,1)-2)))","v":0},{"$f":"IF(ISERROR(FIND(BU$3,'CFR - XML import'!$A136)),0,VALUE(MID('CFR - XML import'!$A136,SEARCH(\">\",'CFR - XML import'!$A136,1)+1,SEARCH(\"/\",'CFR - XML import'!$A136,1)-SEARCH(\">\",'CFR - XML import'!$A136,1)-2)))","v":0},{"$f":"IF(ISERROR(FIND(BV$3,'CFR - XML import'!$A136)),0,VALUE(MID('CFR - XML import'!$A136,SEARCH(\">\",'CFR - XML import'!$A136,1)+1,SEARCH(\"/\",'CFR - XML import'!$A136,1)-SEARCH(\">\",'CFR - XML import'!$A136,1)-2)))","v":0},{"$f":"IF(ISERROR(FIND(BW$3,'CFR - XML import'!$A136)),0,VALUE(MID('CFR - XML import'!$A136,SEARCH(\">\",'CFR - XML import'!$A136,1)+1,SEARCH(\"/\",'CFR - XML import'!$A136,1)-SEARCH(\">\",'CFR - XML import'!$A136,1)-2)))","v":0},{"$f":"IF(ISERROR(FIND(BX$3,'CFR - XML import'!$A136)),0,VALUE(MID('CFR - XML import'!$A136,SEARCH(\">\",'CFR - XML import'!$A136,1)+1,SEARCH(\"/\",'CFR - XML import'!$A136,1)-SEARCH(\">\",'CFR - XML import'!$A136,1)-2)))","v":0},{"$f":"IF(ISERROR(FIND(BY$3,'CFR - XML import'!$A136)),0,VALUE(MID('CFR - XML import'!$A136,SEARCH(\">\",'CFR - XML import'!$A136,1)+1,SEARCH(\"/\",'CFR - XML import'!$A136,1)-SEARCH(\">\",'CFR - XML import'!$A136,1)-2)))","v":0},{"$f":"IF(ISERROR(FIND(BZ$3,'CFR - XML import'!$A136)),0,VALUE(MID('CFR - XML import'!$A136,SEARCH(\">\",'CFR - XML import'!$A136,1)+1,SEARCH(\"/\",'CFR - XML import'!$A136,1)-SEARCH(\">\",'CFR - XML import'!$A136,1)-2)))","v":0},null,null,null,null,null,null,{"$f":"IF(ISERROR(IF(MID('CFR - XML import'!$A136,LEN($CF$4)+1,LEN('CFR - XML import'!$A136)-(2*LEN($CF$4)+1))=\"RMMS\",1,IF(MID('CFR - XML import'!$A136,LEN(\"    <InputSystem>\")+1,LEN('CFR - XML import'!$A136)-(LEN(\"    <InputSystem>\")+LEN($CF$4)+1))=\"SIMS\",2,0))),0,IF(MID('CFR - XML import'!$A136,LEN($CF$4)+1,LEN('CFR - XML import'!$A136)-(2*LEN($CF$4)+1))=\"RMMS\",1,IF(MID('CFR - XML import'!$A136,LEN(\"    <InputSystem>\")+1,LEN('CFR - XML import'!$A136)-(LEN(\"    <InputSystem>\")+LEN($CF$4)+1))=\"SIMS\",2,0)))","v":0},{"$f":"IF(ISERROR(FIND(CH$3,'CFR - XML import'!$A136)),0,MID('CFR - XML import'!$A136,SEARCH(\">\",'CFR - XML import'!$A136,1)+1,SEARCH(\"/\",'CFR - XML import'!$A136,1)-SEARCH(\">\",'CFR - XML import'!$A136,1)-2))","v":0},{"$f":"IF(ISERROR(FIND(CI$3,'CFR - XML import'!$A136)),0,MID('CFR - XML import'!$A136,SEARCH(\">\",'CFR - XML import'!$A136,1)+1,SEARCH(\"/\",'CFR - XML import'!$A136,1)-SEARCH(\">\",'CFR - XML import'!$A136,1)-2))","v":0},{"$f":"IF(ISERROR(FIND(CJ$3,'CFR - XML import'!$A136)),0,MID('CFR - XML import'!$A136,SEARCH(\">\",'CFR - XML import'!$A136,1)+1,SEARCH(\"/\",'CFR - XML import'!$A136,1)-SEARCH(\">\",'CFR - XML import'!$A136,1)-2))","v":0},{"$f":"IF(ISERROR(FIND(CK$3,'CFR - XML import'!$A136)),0,MID('CFR - XML import'!$A136,SEARCH(\">\",'CFR - XML import'!$A136,1)+1,SEARCH(\"/\",'CFR - XML import'!$A136,1)-SEARCH(\">\",'CFR - XML import'!$A136,1)-2))","v":0},{"$f":"IF(ISERROR(FIND(CL$3,'CFR - XML import'!$A136)),0,MID('CFR - XML import'!$A136,SEARCH(\">\",'CFR - XML import'!$A136,1)+1,SEARCH(\"/\",'CFR - XML import'!$A136,1)-SEARCH(\">\",'CFR - XML import'!$A136,1)-2))","v":0}]
[{"$f":"IF(AND('CFR - XML import'!A137<>\"\",LEFT('CFR - XML import'!A137,1)<>\"<\",LEFT('CFR - XML import'!A137,3)<>\"  <\",LEFT('CFR - XML import'!A137,5)<>\"    <\",LEFT('CFR - XML import'!A137,7)<>\"      <\",LEFT('CFR - XML import'!A137,9)<>\"        <\",$B$1=\"SIMS\"),'CFR - XML import'!A137,IF(AND(LEFT('CFR - XML import'!A137,9)=\"<Details>\",$B$1=\"RM\"),'CFR - XML import'!A137,\"\"))","v":""},{"$f":"IF(ISERROR(FIND(B$3,'CFR - XML import'!$A137)),0,VALUE(MID('CFR - XML import'!$A137,SEARCH(\">\",'CFR - XML import'!$A137,1)+1,SEARCH(\"/\",'CFR - XML import'!$A137,1)-SEARCH(\">\",'CFR - XML import'!$A137,1)-2)))","v":0},null,{"$f":"IF(ISERROR(FIND(D$3,'CFR - XML import'!$A137)),0,MID('CFR - XML import'!$A137,SEARCH(\">\",'CFR - XML import'!$A137,1)+1,SEARCH(\"/\",'CFR - XML import'!$A137,1)-SEARCH(\">\",'CFR - XML import'!$A137,1)-2))","v":0},{"$f":"IF(ISERROR(FIND(E$3,'CFR - XML import'!$A137)),0,MID('CFR - XML import'!$A137,SEARCH(\">\",'CFR - XML import'!$A137,1)+1,SEARCH(\"/\",'CFR - XML import'!$A137,1)-SEARCH(\">\",'CFR - XML import'!$A137,1)-2))","v":0},{"$f":"IF($B$1=\"SIMS\",IF(ISERROR(FIND(F$3,'CFR - XML import'!$A137)),0,VALUE(MID('CFR - XML import'!$A137,15,10))),IF(ISERROR(FIND(F$3,'CFR - XML import'!$A137)),0,VALUE(MID('CFR - XML import'!$A137,11,10))))","v":"00:00:00"},{"$f":"IF(ISERROR(FIND(G$3,'CFR - XML import'!$A137)),0,VALUE(MID('CFR - XML import'!$A137,SEARCH(\">\",'CFR - XML import'!$A137,1)+1,SEARCH(\"/\",'CFR - XML import'!$A137,1)-SEARCH(\">\",'CFR - XML import'!$A137,1)-2)))","v":0},{"$f":"IF(ISERROR(FIND(H$3,'CFR - XML import'!$A137)),0,VALUE(MID('CFR - XML import'!$A137,SEARCH(\">\",'CFR - XML import'!$A137,1)+1,SEARCH(\"/\",'CFR - XML import'!$A137,1)-SEARCH(\">\",'CFR - XML import'!$A137,1)-2)))","v":0},{"$f":"IF(ISERROR(FIND(I$3,'CFR - XML import'!$A137)),0,VALUE(MID('CFR - XML import'!$A137,SEARCH(\">\",'CFR - XML import'!$A137,1)+1,SEARCH(\"/\",'CFR - XML import'!$A137,1)-SEARCH(\">\",'CFR - XML import'!$A137,1)-2)))","v":0},{"$f":"IF(ISERROR(FIND(J$3,'CFR - XML import'!$A137)),0,VALUE(MID('CFR - XML import'!$A137,SEARCH(\">\",'CFR - XML import'!$A137,1)+1,SEARCH(\"/\",'CFR - XML import'!$A137,1)-SEARCH(\">\",'CFR - XML import'!$A137,1)-2)))","v":0},{"$f":"IF(ISERROR(FIND(K$3,'CFR - XML import'!$A137)),0,VALUE(MID('CFR - XML import'!$A137,SEARCH(\">\",'CFR - XML import'!$A137,1)+1,SEARCH(\"/\",'CFR - XML import'!$A137,1)-SEARCH(\">\",'CFR - XML import'!$A137,1)-2)))","v":0},{"$f":"IF(ISERROR(FIND(L$3,'CFR - XML import'!$A137)),0,VALUE(MID('CFR - XML import'!$A137,SEARCH(\">\",'CFR - XML import'!$A137,1)+1,SEARCH(\"/\",'CFR - XML import'!$A137,1)-SEARCH(\">\",'CFR - XML import'!$A137,1)-2)))","v":0},{"$f":"IF(ISERROR(FIND(M$3,'CFR - XML import'!$A137)),0,VALUE(MID('CFR - XML import'!$A137,SEARCH(\">\",'CFR - XML import'!$A137,1)+1,SEARCH(\"/\",'CFR - XML import'!$A137,1)-SEARCH(\">\",'CFR - XML import'!$A137,1)-2)))","v":0},{"$f":"IF(ISERROR(FIND(N$3,'CFR - XML import'!$A137)),0,VALUE(MID('CFR - XML import'!$A137,SEARCH(\">\",'CFR - XML import'!$A137,1)+1,SEARCH(\"/\",'CFR - XML import'!$A137,1)-SEARCH(\">\",'CFR - XML import'!$A137,1)-2)))","v":0},{"$f":"IF(ISERROR(FIND(O$3,'CFR - XML import'!$A137)),0,VALUE(MID('CFR - XML import'!$A137,SEARCH(\">\",'CFR - XML import'!$A137,1)+1,SEARCH(\"/\",'CFR - XML import'!$A137,1)-SEARCH(\">\",'CFR - XML import'!$A137,1)-2)))","v":0},{"$f":"IF(ISERROR(FIND(P$3,'CFR - XML import'!$A137)),0,VALUE(MID('CFR - XML import'!$A137,SEARCH(\">\",'CFR - XML import'!$A137,1)+1,SEARCH(\"/\",'CFR - XML import'!$A137,1)-SEARCH(\">\",'CFR - XML import'!$A137,1)-2)))","v":0},{"$f":"IF(ISERROR(FIND(Q$3,'CFR - XML import'!$A137)),0,VALUE(MID('CFR - XML import'!$A137,SEARCH(\">\",'CFR - XML import'!$A137,1)+1,SEARCH(\"/\",'CFR - XML import'!$A137,1)-SEARCH(\">\",'CFR - XML import'!$A137,1)-2)))","v":0},{"$f":"IF(ISERROR(FIND(R$3,'CFR - XML import'!$A137)),0,VALUE(MID('CFR - XML import'!$A137,SEARCH(\">\",'CFR - XML import'!$A137,1)+1,SEARCH(\"/\",'CFR - XML import'!$A137,1)-SEARCH(\">\",'CFR - XML import'!$A137,1)-2)))","v":0},{"$f":"IF(ISERROR(FIND(S$3,'CFR - XML import'!$A137)),0,VALUE(MID('CFR - XML import'!$A137,SEARCH(\">\",'CFR - XML import'!$A137,1)+1,SEARCH(\"/\",'CFR - XML import'!$A137,1)-SEARCH(\">\",'CFR - XML import'!$A137,1)-2)))","v":0},{"$f":"IF(ISERROR(FIND(T$3,'CFR - XML import'!$A137)),0,VALUE(MID('CFR - XML import'!$A137,SEARCH(\">\",'CFR - XML import'!$A137,1)+1,SEARCH(\"/\",'CFR - XML import'!$A137,1)-SEARCH(\">\",'CFR - XML import'!$A137,1)-2)))","v":0},{"$f":"IF(ISERROR(FIND(U$3,'CFR - XML import'!$A137)),0,VALUE(MID('CFR - XML import'!$A137,SEARCH(\">\",'CFR - XML import'!$A137,1)+1,SEARCH(\"/\",'CFR - XML import'!$A137,1)-SEARCH(\">\",'CFR - XML import'!$A137,1)-2)))","v":0},{"$f":"IF(ISERROR(FIND(V$3,'CFR - XML import'!$A137)),0,VALUE(MID('CFR - XML import'!$A137,SEARCH(\">\",'CFR - XML import'!$A137,1)+1,SEARCH(\"/\",'CFR - XML import'!$A137,1)-SEARCH(\">\",'CFR - XML import'!$A137,1)-2)))","v":0},{"$f":"IF(ISERROR(FIND(W$3,'CFR - XML import'!$A137)),0,VALUE(MID('CFR - XML import'!$A137,SEARCH(\">\",'CFR - XML import'!$A137,1)+1,SEARCH(\"/\",'CFR - XML import'!$A137,1)-SEARCH(\">\",'CFR - XML import'!$A137,1)-2)))","v":0},null,{"$f":"IF(ISERROR(FIND(Y$3,'CFR - XML import'!$A137)),0,VALUE(MID('CFR - XML import'!$A137,SEARCH(\">\",'CFR - XML import'!$A137,1)+1,SEARCH(\"/\",'CFR - XML import'!$A137,1)-SEARCH(\">\",'CFR - XML import'!$A137,1)-2)))","v":0},{"$f":"IF(ISERROR(FIND(Z$3,'CFR - XML import'!$A137)),0,VALUE(MID('CFR - XML import'!$A137,SEARCH(\">\",'CFR - XML import'!$A137,1)+1,SEARCH(\"/\",'CFR - XML import'!$A137,1)-SEARCH(\">\",'CFR - XML import'!$A137,1)-2)))","v":0},{"$f":"IF(ISERROR(FIND(AA$3,'CFR - XML import'!$A137)),0,VALUE(MID('CFR - XML import'!$A137,SEARCH(\">\",'CFR - XML import'!$A137,1)+1,SEARCH(\"/\",'CFR - XML import'!$A137,1)-SEARCH(\">\",'CFR - XML import'!$A137,1)-2)))","v":0},{"$f":"IF(ISERROR(FIND(AB$3,'CFR - XML import'!$A137)),0,VALUE(MID('CFR - XML import'!$A137,SEARCH(\">\",'CFR - XML import'!$A137,1)+1,SEARCH(\"/\",'CFR - XML import'!$A137,1)-SEARCH(\">\",'CFR - XML import'!$A137,1)-2)))","v":0},{"$f":"IF(ISERROR(FIND(AC$3,'CFR - XML import'!$A137)),0,VALUE(MID('CFR - XML import'!$A137,SEARCH(\">\",'CFR - XML import'!$A137,1)+1,SEARCH(\"/\",'CFR - XML import'!$A137,1)-SEARCH(\">\",'CFR - XML import'!$A137,1)-2)))","v":0},{"$f":"IF(ISERROR(FIND(AD$3,'CFR - XML import'!$A137)),0,VALUE(MID('CFR - XML import'!$A137,SEARCH(\">\",'CFR - XML import'!$A137,1)+1,SEARCH(\"/\",'CFR - XML import'!$A137,1)-SEARCH(\">\",'CFR - XML import'!$A137,1)-2)))","v":0},{"$f":"IF(ISERROR(FIND(AE$3,'CFR - XML import'!$A137)),0,VALUE(MID('CFR - XML import'!$A137,SEARCH(\">\",'CFR - XML import'!$A137,1)+1,SEARCH(\"/\",'CFR - XML import'!$A137,1)-SEARCH(\">\",'CFR - XML import'!$A137,1)-2)))","v":0},{"$f":"IF(ISERROR(FIND(AF$3,'CFR - XML import'!$A137)),0,VALUE(MID('CFR - XML import'!$A137,SEARCH(\">\",'CFR - XML import'!$A137,1)+1,SEARCH(\"/\",'CFR - XML import'!$A137,1)-SEARCH(\">\",'CFR - XML import'!$A137,1)-2)))","v":0},{"$f":"IF(ISERROR(FIND(AG$3,'CFR - XML import'!$A137)),0,VALUE(MID('CFR - XML import'!$A137,SEARCH(\">\",'CFR - XML import'!$A137,1)+1,SEARCH(\"/\",'CFR - XML import'!$A137,1)-SEARCH(\">\",'CFR - XML import'!$A137,1)-2)))","v":0},{"$f":"IF(ISERROR(FIND(AH$3,'CFR - XML import'!$A137)),0,VALUE(MID('CFR - XML import'!$A137,SEARCH(\">\",'CFR - XML import'!$A137,1)+1,SEARCH(\"/\",'CFR - XML import'!$A137,1)-SEARCH(\">\",'CFR - XML import'!$A137,1)-2)))","v":0},{"$f":"IF(ISERROR(FIND(AI$3,'CFR - XML import'!$A137)),0,VALUE(MID('CFR - XML import'!$A137,SEARCH(\">\",'CFR - XML import'!$A137,1)+1,SEARCH(\"/\",'CFR - XML import'!$A137,1)-SEARCH(\">\",'CFR - XML import'!$A137,1)-2)))","v":0},{"$f":"IF(ISERROR(FIND(AJ$3,'CFR - XML import'!$A137)),0,VALUE(MID('CFR - XML import'!$A137,SEARCH(\">\",'CFR - XML import'!$A137,1)+1,SEARCH(\"/\",'CFR - XML import'!$A137,1)-SEARCH(\">\",'CFR - XML import'!$A137,1)-2)))","v":0},{"$f":"IF(ISERROR(FIND(AK$3,'CFR - XML import'!$A137)),0,VALUE(MID('CFR - XML import'!$A137,SEARCH(\">\",'CFR - XML import'!$A137,1)+1,SEARCH(\"/\",'CFR - XML import'!$A137,1)-SEARCH(\">\",'CFR - XML import'!$A137,1)-2)))","v":0},{"$f":"IF(ISERROR(FIND(AL$3,'CFR - XML import'!$A137)),0,VALUE(MID('CFR - XML import'!$A137,SEARCH(\">\",'CFR - XML import'!$A137,1)+1,SEARCH(\"/\",'CFR - XML import'!$A137,1)-SEARCH(\">\",'CFR - XML import'!$A137,1)-2)))","v":0},{"$f":"IF(ISERROR(FIND(AM$3,'CFR - XML import'!$A137)),0,VALUE(MID('CFR - XML import'!$A137,SEARCH(\">\",'CFR - XML import'!$A137,1)+1,SEARCH(\"/\",'CFR - XML import'!$A137,1)-SEARCH(\">\",'CFR - XML import'!$A137,1)-2)))","v":0},{"$f":"IF(ISERROR(FIND(AN$3,'CFR - XML import'!$A137)),0,VALUE(MID('CFR - XML import'!$A137,SEARCH(\">\",'CFR - XML import'!$A137,1)+1,SEARCH(\"/\",'CFR - XML import'!$A137,1)-SEARCH(\">\",'CFR - XML import'!$A137,1)-2)))","v":0},{"$f":"IF(ISERROR(FIND(AO$3,'CFR - XML import'!$A137)),0,VALUE(MID('CFR - XML import'!$A137,SEARCH(\">\",'CFR - XML import'!$A137,1)+1,SEARCH(\"/\",'CFR - XML import'!$A137,1)-SEARCH(\">\",'CFR - XML import'!$A137,1)-2)))","v":0},{"$f":"IF(ISERROR(FIND(AP$3,'CFR - XML import'!$A137)),0,VALUE(MID('CFR - XML import'!$A137,SEARCH(\">\",'CFR - XML import'!$A137,1)+1,SEARCH(\"/\",'CFR - XML import'!$A137,1)-SEARCH(\">\",'CFR - XML import'!$A137,1)-2)))","v":0},{"$f":"IF(ISERROR(FIND(AQ$3,'CFR - XML import'!$A137)),0,VALUE(MID('CFR - XML import'!$A137,SEARCH(\">\",'CFR - XML import'!$A137,1)+1,SEARCH(\"/\",'CFR - XML import'!$A137,1)-SEARCH(\">\",'CFR - XML import'!$A137,1)-2)))","v":0},{"$f":"IF(ISERROR(FIND(AR$3,'CFR - XML import'!$A137)),0,VALUE(MID('CFR - XML import'!$A137,SEARCH(\">\",'CFR - XML import'!$A137,1)+1,SEARCH(\"/\",'CFR - XML import'!$A137,1)-SEARCH(\">\",'CFR - XML import'!$A137,1)-2)))","v":0},{"$f":"IF(ISERROR(FIND(AS$3,'CFR - XML import'!$A137)),0,VALUE(MID('CFR - XML import'!$A137,SEARCH(\">\",'CFR - XML import'!$A137,1)+1,SEARCH(\"/\",'CFR - XML import'!$A137,1)-SEARCH(\">\",'CFR - XML import'!$A137,1)-2)))","v":0},{"$f":"IF(ISERROR(FIND(AT$3,'CFR - XML import'!$A137)),0,VALUE(MID('CFR - XML import'!$A137,SEARCH(\">\",'CFR - XML import'!$A137,1)+1,SEARCH(\"/\",'CFR - XML import'!$A137,1)-SEARCH(\">\",'CFR - XML import'!$A137,1)-2)))","v":0},{"$f":"IF(ISERROR(FIND(AU$3,'CFR - XML import'!$A137)),0,VALUE(MID('CFR - XML import'!$A137,SEARCH(\">\",'CFR - XML import'!$A137,1)+1,SEARCH(\"/\",'CFR - XML import'!$A137,1)-SEARCH(\">\",'CFR - XML import'!$A137,1)-2)))","v":0},{"$f":"IF(ISERROR(FIND(AV$3,'CFR - XML import'!$A137)),0,VALUE(MID('CFR - XML import'!$A137,SEARCH(\">\",'CFR - XML import'!$A137,1)+1,SEARCH(\"/\",'CFR - XML import'!$A137,1)-SEARCH(\">\",'CFR - XML import'!$A137,1)-2)))","v":0},{"$f":"IF(ISERROR(FIND(AW$3,'CFR - XML import'!$A137)),0,VALUE(MID('CFR - XML import'!$A137,SEARCH(\">\",'CFR - XML import'!$A137,1)+1,SEARCH(\"/\",'CFR - XML import'!$A137,1)-SEARCH(\">\",'CFR - XML import'!$A137,1)-2)))","v":0},{"$f":"IF(ISERROR(FIND(AX$3,'CFR - XML import'!$A137)),0,VALUE(MID('CFR - XML import'!$A137,SEARCH(\">\",'CFR - XML import'!$A137,1)+1,SEARCH(\"/\",'CFR - XML import'!$A137,1)-SEARCH(\">\",'CFR - XML import'!$A137,1)-2)))","v":0},{"$f":"IF(ISERROR(FIND(AY$3,'CFR - XML import'!$A137)),0,VALUE(MID('CFR - XML import'!$A137,SEARCH(\">\",'CFR - XML import'!$A137,1)+1,SEARCH(\"/\",'CFR - XML import'!$A137,1)-SEARCH(\">\",'CFR - XML import'!$A137,1)-2)))","v":0},{"$f":"IF(ISERROR(FIND(AZ$3,'CFR - XML import'!$A137)),0,VALUE(MID('CFR - XML import'!$A137,SEARCH(\">\",'CFR - XML import'!$A137,1)+1,SEARCH(\"/\",'CFR - XML import'!$A137,1)-SEARCH(\">\",'CFR - XML import'!$A137,1)-2)))","v":0},{"$f":"IF(ISERROR(FIND(BA$3,'CFR - XML import'!$A137)),0,VALUE(MID('CFR - XML import'!$A137,SEARCH(\">\",'CFR - XML import'!$A137,1)+1,SEARCH(\"/\",'CFR - XML import'!$A137,1)-SEARCH(\">\",'CFR - XML import'!$A137,1)-2)))","v":0},{"$f":"IF(ISERROR(FIND(BB$3,'CFR - XML import'!$A137)),0,VALUE(MID('CFR - XML import'!$A137,SEARCH(\">\",'CFR - XML import'!$A137,1)+1,SEARCH(\"/\",'CFR - XML import'!$A137,1)-SEARCH(\">\",'CFR - XML import'!$A137,1)-2)))","v":0},{"$f":"IF(ISERROR(FIND(BC$3,'CFR - XML import'!$A137)),0,VALUE(MID('CFR - XML import'!$A137,SEARCH(\">\",'CFR - XML import'!$A137,1)+1,SEARCH(\"/\",'CFR - XML import'!$A137,1)-SEARCH(\">\",'CFR - XML import'!$A137,1)-2)))","v":0},{"$f":"IF(ISERROR(FIND(BD$3,'CFR - XML import'!$A137)),0,VALUE(MID('CFR - XML import'!$A137,SEARCH(\">\",'CFR - XML import'!$A137,1)+1,SEARCH(\"/\",'CFR - XML import'!$A137,1)-SEARCH(\">\",'CFR - XML import'!$A137,1)-2)))","v":0},{"$f":"IF(ISERROR(FIND(BE$3,'CFR - XML import'!$A137)),0,VALUE(MID('CFR - XML import'!$A137,SEARCH(\">\",'CFR - XML import'!$A137,1)+1,SEARCH(\"/\",'CFR - XML import'!$A137,1)-SEARCH(\">\",'CFR - XML import'!$A137,1)-2)))","v":0},{"$f":"IF(ISERROR(FIND(BF$3,'CFR - XML import'!$A137)),0,VALUE(MID('CFR - XML import'!$A137,SEARCH(\">\",'CFR - XML import'!$A137,1)+1,SEARCH(\"/\",'CFR - XML import'!$A137,1)-SEARCH(\">\",'CFR - XML import'!$A137,1)-2)))","v":0},{"$f":"IF(ISERROR(FIND(BG$3,'CFR - XML import'!$A137)),0,VALUE(MID('CFR - XML import'!$A137,SEARCH(\">\",'CFR - XML import'!$A137,1)+1,SEARCH(\"/\",'CFR - XML import'!$A137,1)-SEARCH(\">\",'CFR - XML import'!$A137,1)-2)))","v":0},{"$f":"IF(ISERROR(FIND(BH$3,'CFR - XML import'!$A137)),0,VALUE(MID('CFR - XML import'!$A137,SEARCH(\">\",'CFR - XML import'!$A137,1)+1,SEARCH(\"/\",'CFR - XML import'!$A137,1)-SEARCH(\">\",'CFR - XML import'!$A137,1)-2)))","v":0},{"$f":"IF(ISERROR(FIND(BI$3,'CFR - XML import'!$A137)),0,VALUE(MID('CFR - XML import'!$A137,SEARCH(\">\",'CFR - XML import'!$A137,1)+1,SEARCH(\"/\",'CFR - XML import'!$A137,1)-SEARCH(\">\",'CFR - XML import'!$A137,1)-2)))","v":0},{"$f":"IF(ISERROR(FIND(BJ$3,'CFR - XML import'!$A137)),0,VALUE(MID('CFR - XML import'!$A137,SEARCH(\">\",'CFR - XML import'!$A137,1)+1,SEARCH(\"/\",'CFR - XML import'!$A137,1)-SEARCH(\">\",'CFR - XML import'!$A137,1)-2)))","v":0},{"$f":"IF(ISERROR(FIND(BK$3,'CFR - XML import'!$A137)),0,VALUE(MID('CFR - XML import'!$A137,SEARCH(\">\",'CFR - XML import'!$A137,1)+1,SEARCH(\"/\",'CFR - XML import'!$A137,1)-SEARCH(\">\",'CFR - XML import'!$A137,1)-2)))","v":0},{"$f":"IF(ISERROR(FIND(BL$3,'CFR - XML import'!$A137)),0,VALUE(MID('CFR - XML import'!$A137,SEARCH(\">\",'CFR - XML import'!$A137,1)+1,SEARCH(\"/\",'CFR - XML import'!$A137,1)-SEARCH(\">\",'CFR - XML import'!$A137,1)-2)))","v":0},{"$f":"IF(ISERROR(FIND(BM$3,'CFR - XML import'!$A137)),0,VALUE(MID('CFR - XML import'!$A137,SEARCH(\">\",'CFR - XML import'!$A137,1)+1,SEARCH(\"/\",'CFR - XML import'!$A137,1)-SEARCH(\">\",'CFR - XML import'!$A137,1)-2)))","v":0},{"$f":"IF(ISERROR(FIND(BN$3,'CFR - XML import'!$A137)),0,VALUE(MID('CFR - XML import'!$A137,SEARCH(\">\",'CFR - XML import'!$A137,1)+1,SEARCH(\"/\",'CFR - XML import'!$A137,1)-SEARCH(\">\",'CFR - XML import'!$A137,1)-2)))","v":0},{"$f":"IF(ISERROR(FIND(BO$3,'CFR - XML import'!$A137)),0,VALUE(MID('CFR - XML import'!$A137,SEARCH(\">\",'CFR - XML import'!$A137,1)+1,SEARCH(\"/\",'CFR - XML import'!$A137,1)-SEARCH(\">\",'CFR - XML import'!$A137,1)-2)))","v":0},{"$f":"IF(ISERROR(FIND(BP$3,'CFR - XML import'!$A137)),0,VALUE(MID('CFR - XML import'!$A137,SEARCH(\">\",'CFR - XML import'!$A137,1)+1,SEARCH(\"/\",'CFR - XML import'!$A137,1)-SEARCH(\">\",'CFR - XML import'!$A137,1)-2)))","v":0},{"$f":"IF(ISERROR(FIND(BQ$3,'CFR - XML import'!$A137)),0,VALUE(MID('CFR - XML import'!$A137,SEARCH(\">\",'CFR - XML import'!$A137,1)+1,SEARCH(\"/\",'CFR - XML import'!$A137,1)-SEARCH(\">\",'CFR - XML import'!$A137,1)-2)))","v":0},{"$f":"IF(ISERROR(FIND(BR$3,'CFR - XML import'!$A137)),0,VALUE(MID('CFR - XML import'!$A137,SEARCH(\">\",'CFR - XML import'!$A137,1)+1,SEARCH(\"/\",'CFR - XML import'!$A137,1)-SEARCH(\">\",'CFR - XML import'!$A137,1)-2)))","v":0},{"$f":"IF(ISERROR(FIND(BS$3,'CFR - XML import'!$A137)),0,VALUE(MID('CFR - XML import'!$A137,SEARCH(\">\",'CFR - XML import'!$A137,1)+1,SEARCH(\"/\",'CFR - XML import'!$A137,1)-SEARCH(\">\",'CFR - XML import'!$A137,1)-2)))","v":0},{"$f":"IF(ISERROR(FIND(BT$3,'CFR - XML import'!$A137)),0,VALUE(MID('CFR - XML import'!$A137,SEARCH(\">\",'CFR - XML import'!$A137,1)+1,SEARCH(\"/\",'CFR - XML import'!$A137,1)-SEARCH(\">\",'CFR - XML import'!$A137,1)-2)))","v":0},{"$f":"IF(ISERROR(FIND(BU$3,'CFR - XML import'!$A137)),0,VALUE(MID('CFR - XML import'!$A137,SEARCH(\">\",'CFR - XML import'!$A137,1)+1,SEARCH(\"/\",'CFR - XML import'!$A137,1)-SEARCH(\">\",'CFR - XML import'!$A137,1)-2)))","v":0},{"$f":"IF(ISERROR(FIND(BV$3,'CFR - XML import'!$A137)),0,VALUE(MID('CFR - XML import'!$A137,SEARCH(\">\",'CFR - XML import'!$A137,1)+1,SEARCH(\"/\",'CFR - XML import'!$A137,1)-SEARCH(\">\",'CFR - XML import'!$A137,1)-2)))","v":0},{"$f":"IF(ISERROR(FIND(BW$3,'CFR - XML import'!$A137)),0,VALUE(MID('CFR - XML import'!$A137,SEARCH(\">\",'CFR - XML import'!$A137,1)+1,SEARCH(\"/\",'CFR - XML import'!$A137,1)-SEARCH(\">\",'CFR - XML import'!$A137,1)-2)))","v":0},{"$f":"IF(ISERROR(FIND(BX$3,'CFR - XML import'!$A137)),0,VALUE(MID('CFR - XML import'!$A137,SEARCH(\">\",'CFR - XML import'!$A137,1)+1,SEARCH(\"/\",'CFR - XML import'!$A137,1)-SEARCH(\">\",'CFR - XML import'!$A137,1)-2)))","v":0},{"$f":"IF(ISERROR(FIND(BY$3,'CFR - XML import'!$A137)),0,VALUE(MID('CFR - XML import'!$A137,SEARCH(\">\",'CFR - XML import'!$A137,1)+1,SEARCH(\"/\",'CFR - XML import'!$A137,1)-SEARCH(\">\",'CFR - XML import'!$A137,1)-2)))","v":0},{"$f":"IF(ISERROR(FIND(BZ$3,'CFR - XML import'!$A137)),0,VALUE(MID('CFR - XML import'!$A137,SEARCH(\">\",'CFR - XML import'!$A137,1)+1,SEARCH(\"/\",'CFR - XML import'!$A137,1)-SEARCH(\">\",'CFR - XML import'!$A137,1)-2)))","v":0},null,null,null,null,null,null,{"$f":"IF(ISERROR(IF(MID('CFR - XML import'!$A137,LEN($CF$4)+1,LEN('CFR - XML import'!$A137)-(2*LEN($CF$4)+1))=\"RMMS\",1,IF(MID('CFR - XML import'!$A137,LEN(\"    <InputSystem>\")+1,LEN('CFR - XML import'!$A137)-(LEN(\"    <InputSystem>\")+LEN($CF$4)+1))=\"SIMS\",2,0))),0,IF(MID('CFR - XML import'!$A137,LEN($CF$4)+1,LEN('CFR - XML import'!$A137)-(2*LEN($CF$4)+1))=\"RMMS\",1,IF(MID('CFR - XML import'!$A137,LEN(\"    <InputSystem>\")+1,LEN('CFR - XML import'!$A137)-(LEN(\"    <InputSystem>\")+LEN($CF$4)+1))=\"SIMS\",2,0)))","v":0},{"$f":"IF(ISERROR(FIND(CH$3,'CFR - XML import'!$A137)),0,MID('CFR - XML import'!$A137,SEARCH(\">\",'CFR - XML import'!$A137,1)+1,SEARCH(\"/\",'CFR - XML import'!$A137,1)-SEARCH(\">\",'CFR - XML import'!$A137,1)-2))","v":0},{"$f":"IF(ISERROR(FIND(CI$3,'CFR - XML import'!$A137)),0,MID('CFR - XML import'!$A137,SEARCH(\">\",'CFR - XML import'!$A137,1)+1,SEARCH(\"/\",'CFR - XML import'!$A137,1)-SEARCH(\">\",'CFR - XML import'!$A137,1)-2))","v":0},{"$f":"IF(ISERROR(FIND(CJ$3,'CFR - XML import'!$A137)),0,MID('CFR - XML import'!$A137,SEARCH(\">\",'CFR - XML import'!$A137,1)+1,SEARCH(\"/\",'CFR - XML import'!$A137,1)-SEARCH(\">\",'CFR - XML import'!$A137,1)-2))","v":0},{"$f":"IF(ISERROR(FIND(CK$3,'CFR - XML import'!$A137)),0,MID('CFR - XML import'!$A137,SEARCH(\">\",'CFR - XML import'!$A137,1)+1,SEARCH(\"/\",'CFR - XML import'!$A137,1)-SEARCH(\">\",'CFR - XML import'!$A137,1)-2))","v":0},{"$f":"IF(ISERROR(FIND(CL$3,'CFR - XML import'!$A137)),0,MID('CFR - XML import'!$A137,SEARCH(\">\",'CFR - XML import'!$A137,1)+1,SEARCH(\"/\",'CFR - XML import'!$A137,1)-SEARCH(\">\",'CFR - XML import'!$A137,1)-2))","v":0}]
[{"$f":"IF(AND('CFR - XML import'!A138<>\"\",LEFT('CFR - XML import'!A138,1)<>\"<\",LEFT('CFR - XML import'!A138,3)<>\"  <\",LEFT('CFR - XML import'!A138,5)<>\"    <\",LEFT('CFR - XML import'!A138,7)<>\"      <\",LEFT('CFR - XML import'!A138,9)<>\"        <\",$B$1=\"SIMS\"),'CFR - XML import'!A138,IF(AND(LEFT('CFR - XML import'!A138,9)=\"<Details>\",$B$1=\"RM\"),'CFR - XML import'!A138,\"\"))","v":""},{"$f":"IF(ISERROR(FIND(B$3,'CFR - XML import'!$A138)),0,VALUE(MID('CFR - XML import'!$A138,SEARCH(\">\",'CFR - XML import'!$A138,1)+1,SEARCH(\"/\",'CFR - XML import'!$A138,1)-SEARCH(\">\",'CFR - XML import'!$A138,1)-2)))","v":0},null,{"$f":"IF(ISERROR(FIND(D$3,'CFR - XML import'!$A138)),0,MID('CFR - XML import'!$A138,SEARCH(\">\",'CFR - XML import'!$A138,1)+1,SEARCH(\"/\",'CFR - XML import'!$A138,1)-SEARCH(\">\",'CFR - XML import'!$A138,1)-2))","v":0},{"$f":"IF(ISERROR(FIND(E$3,'CFR - XML import'!$A138)),0,MID('CFR - XML import'!$A138,SEARCH(\">\",'CFR - XML import'!$A138,1)+1,SEARCH(\"/\",'CFR - XML import'!$A138,1)-SEARCH(\">\",'CFR - XML import'!$A138,1)-2))","v":0},{"$f":"IF($B$1=\"SIMS\",IF(ISERROR(FIND(F$3,'CFR - XML import'!$A138)),0,VALUE(MID('CFR - XML import'!$A138,15,10))),IF(ISERROR(FIND(F$3,'CFR - XML import'!$A138)),0,VALUE(MID('CFR - XML import'!$A138,11,10))))","v":"00:00:00"},{"$f":"IF(ISERROR(FIND(G$3,'CFR - XML import'!$A138)),0,VALUE(MID('CFR - XML import'!$A138,SEARCH(\">\",'CFR - XML import'!$A138,1)+1,SEARCH(\"/\",'CFR - XML import'!$A138,1)-SEARCH(\">\",'CFR - XML import'!$A138,1)-2)))","v":0},{"$f":"IF(ISERROR(FIND(H$3,'CFR - XML import'!$A138)),0,VALUE(MID('CFR - XML import'!$A138,SEARCH(\">\",'CFR - XML import'!$A138,1)+1,SEARCH(\"/\",'CFR - XML import'!$A138,1)-SEARCH(\">\",'CFR - XML import'!$A138,1)-2)))","v":0},{"$f":"IF(ISERROR(FIND(I$3,'CFR - XML import'!$A138)),0,VALUE(MID('CFR - XML import'!$A138,SEARCH(\">\",'CFR - XML import'!$A138,1)+1,SEARCH(\"/\",'CFR - XML import'!$A138,1)-SEARCH(\">\",'CFR - XML import'!$A138,1)-2)))","v":0},{"$f":"IF(ISERROR(FIND(J$3,'CFR - XML import'!$A138)),0,VALUE(MID('CFR - XML import'!$A138,SEARCH(\">\",'CFR - XML import'!$A138,1)+1,SEARCH(\"/\",'CFR - XML import'!$A138,1)-SEARCH(\">\",'CFR - XML import'!$A138,1)-2)))","v":0},{"$f":"IF(ISERROR(FIND(K$3,'CFR - XML import'!$A138)),0,VALUE(MID('CFR - XML import'!$A138,SEARCH(\">\",'CFR - XML import'!$A138,1)+1,SEARCH(\"/\",'CFR - XML import'!$A138,1)-SEARCH(\">\",'CFR - XML import'!$A138,1)-2)))","v":0},{"$f":"IF(ISERROR(FIND(L$3,'CFR - XML import'!$A138)),0,VALUE(MID('CFR - XML import'!$A138,SEARCH(\">\",'CFR - XML import'!$A138,1)+1,SEARCH(\"/\",'CFR - XML import'!$A138,1)-SEARCH(\">\",'CFR - XML import'!$A138,1)-2)))","v":0},{"$f":"IF(ISERROR(FIND(M$3,'CFR - XML import'!$A138)),0,VALUE(MID('CFR - XML import'!$A138,SEARCH(\">\",'CFR - XML import'!$A138,1)+1,SEARCH(\"/\",'CFR - XML import'!$A138,1)-SEARCH(\">\",'CFR - XML import'!$A138,1)-2)))","v":0},{"$f":"IF(ISERROR(FIND(N$3,'CFR - XML import'!$A138)),0,VALUE(MID('CFR - XML import'!$A138,SEARCH(\">\",'CFR - XML import'!$A138,1)+1,SEARCH(\"/\",'CFR - XML import'!$A138,1)-SEARCH(\">\",'CFR - XML import'!$A138,1)-2)))","v":0},{"$f":"IF(ISERROR(FIND(O$3,'CFR - XML import'!$A138)),0,VALUE(MID('CFR - XML import'!$A138,SEARCH(\">\",'CFR - XML import'!$A138,1)+1,SEARCH(\"/\",'CFR - XML import'!$A138,1)-SEARCH(\">\",'CFR - XML import'!$A138,1)-2)))","v":0},{"$f":"IF(ISERROR(FIND(P$3,'CFR - XML import'!$A138)),0,VALUE(MID('CFR - XML import'!$A138,SEARCH(\">\",'CFR - XML import'!$A138,1)+1,SEARCH(\"/\",'CFR - XML import'!$A138,1)-SEARCH(\">\",'CFR - XML import'!$A138,1)-2)))","v":0},{"$f":"IF(ISERROR(FIND(Q$3,'CFR - XML import'!$A138)),0,VALUE(MID('CFR - XML import'!$A138,SEARCH(\">\",'CFR - XML import'!$A138,1)+1,SEARCH(\"/\",'CFR - XML import'!$A138,1)-SEARCH(\">\",'CFR - XML import'!$A138,1)-2)))","v":0},{"$f":"IF(ISERROR(FIND(R$3,'CFR - XML import'!$A138)),0,VALUE(MID('CFR - XML import'!$A138,SEARCH(\">\",'CFR - XML import'!$A138,1)+1,SEARCH(\"/\",'CFR - XML import'!$A138,1)-SEARCH(\">\",'CFR - XML import'!$A138,1)-2)))","v":0},{"$f":"IF(ISERROR(FIND(S$3,'CFR - XML import'!$A138)),0,VALUE(MID('CFR - XML import'!$A138,SEARCH(\">\",'CFR - XML import'!$A138,1)+1,SEARCH(\"/\",'CFR - XML import'!$A138,1)-SEARCH(\">\",'CFR - XML import'!$A138,1)-2)))","v":0},{"$f":"IF(ISERROR(FIND(T$3,'CFR - XML import'!$A138)),0,VALUE(MID('CFR - XML import'!$A138,SEARCH(\">\",'CFR - XML import'!$A138,1)+1,SEARCH(\"/\",'CFR - XML import'!$A138,1)-SEARCH(\">\",'CFR - XML import'!$A138,1)-2)))","v":0},{"$f":"IF(ISERROR(FIND(U$3,'CFR - XML import'!$A138)),0,VALUE(MID('CFR - XML import'!$A138,SEARCH(\">\",'CFR - XML import'!$A138,1)+1,SEARCH(\"/\",'CFR - XML import'!$A138,1)-SEARCH(\">\",'CFR - XML import'!$A138,1)-2)))","v":0},{"$f":"IF(ISERROR(FIND(V$3,'CFR - XML import'!$A138)),0,VALUE(MID('CFR - XML import'!$A138,SEARCH(\">\",'CFR - XML import'!$A138,1)+1,SEARCH(\"/\",'CFR - XML import'!$A138,1)-SEARCH(\">\",'CFR - XML import'!$A138,1)-2)))","v":0},{"$f":"IF(ISERROR(FIND(W$3,'CFR - XML import'!$A138)),0,VALUE(MID('CFR - XML import'!$A138,SEARCH(\">\",'CFR - XML import'!$A138,1)+1,SEARCH(\"/\",'CFR - XML import'!$A138,1)-SEARCH(\">\",'CFR - XML import'!$A138,1)-2)))","v":0},null,{"$f":"IF(ISERROR(FIND(Y$3,'CFR - XML import'!$A138)),0,VALUE(MID('CFR - XML import'!$A138,SEARCH(\">\",'CFR - XML import'!$A138,1)+1,SEARCH(\"/\",'CFR - XML import'!$A138,1)-SEARCH(\">\",'CFR - XML import'!$A138,1)-2)))","v":0},{"$f":"IF(ISERROR(FIND(Z$3,'CFR - XML import'!$A138)),0,VALUE(MID('CFR - XML import'!$A138,SEARCH(\">\",'CFR - XML import'!$A138,1)+1,SEARCH(\"/\",'CFR - XML import'!$A138,1)-SEARCH(\">\",'CFR - XML import'!$A138,1)-2)))","v":0},{"$f":"IF(ISERROR(FIND(AA$3,'CFR - XML import'!$A138)),0,VALUE(MID('CFR - XML import'!$A138,SEARCH(\">\",'CFR - XML import'!$A138,1)+1,SEARCH(\"/\",'CFR - XML import'!$A138,1)-SEARCH(\">\",'CFR - XML import'!$A138,1)-2)))","v":0},{"$f":"IF(ISERROR(FIND(AB$3,'CFR - XML import'!$A138)),0,VALUE(MID('CFR - XML import'!$A138,SEARCH(\">\",'CFR - XML import'!$A138,1)+1,SEARCH(\"/\",'CFR - XML import'!$A138,1)-SEARCH(\">\",'CFR - XML import'!$A138,1)-2)))","v":0},{"$f":"IF(ISERROR(FIND(AC$3,'CFR - XML import'!$A138)),0,VALUE(MID('CFR - XML import'!$A138,SEARCH(\">\",'CFR - XML import'!$A138,1)+1,SEARCH(\"/\",'CFR - XML import'!$A138,1)-SEARCH(\">\",'CFR - XML import'!$A138,1)-2)))","v":0},{"$f":"IF(ISERROR(FIND(AD$3,'CFR - XML import'!$A138)),0,VALUE(MID('CFR - XML import'!$A138,SEARCH(\">\",'CFR - XML import'!$A138,1)+1,SEARCH(\"/\",'CFR - XML import'!$A138,1)-SEARCH(\">\",'CFR - XML import'!$A138,1)-2)))","v":0},{"$f":"IF(ISERROR(FIND(AE$3,'CFR - XML import'!$A138)),0,VALUE(MID('CFR - XML import'!$A138,SEARCH(\">\",'CFR - XML import'!$A138,1)+1,SEARCH(\"/\",'CFR - XML import'!$A138,1)-SEARCH(\">\",'CFR - XML import'!$A138,1)-2)))","v":0},{"$f":"IF(ISERROR(FIND(AF$3,'CFR - XML import'!$A138)),0,VALUE(MID('CFR - XML import'!$A138,SEARCH(\">\",'CFR - XML import'!$A138,1)+1,SEARCH(\"/\",'CFR - XML import'!$A138,1)-SEARCH(\">\",'CFR - XML import'!$A138,1)-2)))","v":0},{"$f":"IF(ISERROR(FIND(AG$3,'CFR - XML import'!$A138)),0,VALUE(MID('CFR - XML import'!$A138,SEARCH(\">\",'CFR - XML import'!$A138,1)+1,SEARCH(\"/\",'CFR - XML import'!$A138,1)-SEARCH(\">\",'CFR - XML import'!$A138,1)-2)))","v":0},{"$f":"IF(ISERROR(FIND(AH$3,'CFR - XML import'!$A138)),0,VALUE(MID('CFR - XML import'!$A138,SEARCH(\">\",'CFR - XML import'!$A138,1)+1,SEARCH(\"/\",'CFR - XML import'!$A138,1)-SEARCH(\">\",'CFR - XML import'!$A138,1)-2)))","v":0},{"$f":"IF(ISERROR(FIND(AI$3,'CFR - XML import'!$A138)),0,VALUE(MID('CFR - XML import'!$A138,SEARCH(\">\",'CFR - XML import'!$A138,1)+1,SEARCH(\"/\",'CFR - XML import'!$A138,1)-SEARCH(\">\",'CFR - XML import'!$A138,1)-2)))","v":0},{"$f":"IF(ISERROR(FIND(AJ$3,'CFR - XML import'!$A138)),0,VALUE(MID('CFR - XML import'!$A138,SEARCH(\">\",'CFR - XML import'!$A138,1)+1,SEARCH(\"/\",'CFR - XML import'!$A138,1)-SEARCH(\">\",'CFR - XML import'!$A138,1)-2)))","v":0},{"$f":"IF(ISERROR(FIND(AK$3,'CFR - XML import'!$A138)),0,VALUE(MID('CFR - XML import'!$A138,SEARCH(\">\",'CFR - XML import'!$A138,1)+1,SEARCH(\"/\",'CFR - XML import'!$A138,1)-SEARCH(\">\",'CFR - XML import'!$A138,1)-2)))","v":0},{"$f":"IF(ISERROR(FIND(AL$3,'CFR - XML import'!$A138)),0,VALUE(MID('CFR - XML import'!$A138,SEARCH(\">\",'CFR - XML import'!$A138,1)+1,SEARCH(\"/\",'CFR - XML import'!$A138,1)-SEARCH(\">\",'CFR - XML import'!$A138,1)-2)))","v":0},{"$f":"IF(ISERROR(FIND(AM$3,'CFR - XML import'!$A138)),0,VALUE(MID('CFR - XML import'!$A138,SEARCH(\">\",'CFR - XML import'!$A138,1)+1,SEARCH(\"/\",'CFR - XML import'!$A138,1)-SEARCH(\">\",'CFR - XML import'!$A138,1)-2)))","v":0},{"$f":"IF(ISERROR(FIND(AN$3,'CFR - XML import'!$A138)),0,VALUE(MID('CFR - XML import'!$A138,SEARCH(\">\",'CFR - XML import'!$A138,1)+1,SEARCH(\"/\",'CFR - XML import'!$A138,1)-SEARCH(\">\",'CFR - XML import'!$A138,1)-2)))","v":0},{"$f":"IF(ISERROR(FIND(AO$3,'CFR - XML import'!$A138)),0,VALUE(MID('CFR - XML import'!$A138,SEARCH(\">\",'CFR - XML import'!$A138,1)+1,SEARCH(\"/\",'CFR - XML import'!$A138,1)-SEARCH(\">\",'CFR - XML import'!$A138,1)-2)))","v":0},{"$f":"IF(ISERROR(FIND(AP$3,'CFR - XML import'!$A138)),0,VALUE(MID('CFR - XML import'!$A138,SEARCH(\">\",'CFR - XML import'!$A138,1)+1,SEARCH(\"/\",'CFR - XML import'!$A138,1)-SEARCH(\">\",'CFR - XML import'!$A138,1)-2)))","v":0},{"$f":"IF(ISERROR(FIND(AQ$3,'CFR - XML import'!$A138)),0,VALUE(MID('CFR - XML import'!$A138,SEARCH(\">\",'CFR - XML import'!$A138,1)+1,SEARCH(\"/\",'CFR - XML import'!$A138,1)-SEARCH(\">\",'CFR - XML import'!$A138,1)-2)))","v":0},{"$f":"IF(ISERROR(FIND(AR$3,'CFR - XML import'!$A138)),0,VALUE(MID('CFR - XML import'!$A138,SEARCH(\">\",'CFR - XML import'!$A138,1)+1,SEARCH(\"/\",'CFR - XML import'!$A138,1)-SEARCH(\">\",'CFR - XML import'!$A138,1)-2)))","v":0},{"$f":"IF(ISERROR(FIND(AS$3,'CFR - XML import'!$A138)),0,VALUE(MID('CFR - XML import'!$A138,SEARCH(\">\",'CFR - XML import'!$A138,1)+1,SEARCH(\"/\",'CFR - XML import'!$A138,1)-SEARCH(\">\",'CFR - XML import'!$A138,1)-2)))","v":0},{"$f":"IF(ISERROR(FIND(AT$3,'CFR - XML import'!$A138)),0,VALUE(MID('CFR - XML import'!$A138,SEARCH(\">\",'CFR - XML import'!$A138,1)+1,SEARCH(\"/\",'CFR - XML import'!$A138,1)-SEARCH(\">\",'CFR - XML import'!$A138,1)-2)))","v":0},{"$f":"IF(ISERROR(FIND(AU$3,'CFR - XML import'!$A138)),0,VALUE(MID('CFR - XML import'!$A138,SEARCH(\">\",'CFR - XML import'!$A138,1)+1,SEARCH(\"/\",'CFR - XML import'!$A138,1)-SEARCH(\">\",'CFR - XML import'!$A138,1)-2)))","v":0},{"$f":"IF(ISERROR(FIND(AV$3,'CFR - XML import'!$A138)),0,VALUE(MID('CFR - XML import'!$A138,SEARCH(\">\",'CFR - XML import'!$A138,1)+1,SEARCH(\"/\",'CFR - XML import'!$A138,1)-SEARCH(\">\",'CFR - XML import'!$A138,1)-2)))","v":0},{"$f":"IF(ISERROR(FIND(AW$3,'CFR - XML import'!$A138)),0,VALUE(MID('CFR - XML import'!$A138,SEARCH(\">\",'CFR - XML import'!$A138,1)+1,SEARCH(\"/\",'CFR - XML import'!$A138,1)-SEARCH(\">\",'CFR - XML import'!$A138,1)-2)))","v":0},{"$f":"IF(ISERROR(FIND(AX$3,'CFR - XML import'!$A138)),0,VALUE(MID('CFR - XML import'!$A138,SEARCH(\">\",'CFR - XML import'!$A138,1)+1,SEARCH(\"/\",'CFR - XML import'!$A138,1)-SEARCH(\">\",'CFR - XML import'!$A138,1)-2)))","v":0},{"$f":"IF(ISERROR(FIND(AY$3,'CFR - XML import'!$A138)),0,VALUE(MID('CFR - XML import'!$A138,SEARCH(\">\",'CFR - XML import'!$A138,1)+1,SEARCH(\"/\",'CFR - XML import'!$A138,1)-SEARCH(\">\",'CFR - XML import'!$A138,1)-2)))","v":0},{"$f":"IF(ISERROR(FIND(AZ$3,'CFR - XML import'!$A138)),0,VALUE(MID('CFR - XML import'!$A138,SEARCH(\">\",'CFR - XML import'!$A138,1)+1,SEARCH(\"/\",'CFR - XML import'!$A138,1)-SEARCH(\">\",'CFR - XML import'!$A138,1)-2)))","v":0},{"$f":"IF(ISERROR(FIND(BA$3,'CFR - XML import'!$A138)),0,VALUE(MID('CFR - XML import'!$A138,SEARCH(\">\",'CFR - XML import'!$A138,1)+1,SEARCH(\"/\",'CFR - XML import'!$A138,1)-SEARCH(\">\",'CFR - XML import'!$A138,1)-2)))","v":0},{"$f":"IF(ISERROR(FIND(BB$3,'CFR - XML import'!$A138)),0,VALUE(MID('CFR - XML import'!$A138,SEARCH(\">\",'CFR - XML import'!$A138,1)+1,SEARCH(\"/\",'CFR - XML import'!$A138,1)-SEARCH(\">\",'CFR - XML import'!$A138,1)-2)))","v":0},{"$f":"IF(ISERROR(FIND(BC$3,'CFR - XML import'!$A138)),0,VALUE(MID('CFR - XML import'!$A138,SEARCH(\">\",'CFR - XML import'!$A138,1)+1,SEARCH(\"/\",'CFR - XML import'!$A138,1)-SEARCH(\">\",'CFR - XML import'!$A138,1)-2)))","v":0},{"$f":"IF(ISERROR(FIND(BD$3,'CFR - XML import'!$A138)),0,VALUE(MID('CFR - XML import'!$A138,SEARCH(\">\",'CFR - XML import'!$A138,1)+1,SEARCH(\"/\",'CFR - XML import'!$A138,1)-SEARCH(\">\",'CFR - XML import'!$A138,1)-2)))","v":0},{"$f":"IF(ISERROR(FIND(BE$3,'CFR - XML import'!$A138)),0,VALUE(MID('CFR - XML import'!$A138,SEARCH(\">\",'CFR - XML import'!$A138,1)+1,SEARCH(\"/\",'CFR - XML import'!$A138,1)-SEARCH(\">\",'CFR - XML import'!$A138,1)-2)))","v":0},{"$f":"IF(ISERROR(FIND(BF$3,'CFR - XML import'!$A138)),0,VALUE(MID('CFR - XML import'!$A138,SEARCH(\">\",'CFR - XML import'!$A138,1)+1,SEARCH(\"/\",'CFR - XML import'!$A138,1)-SEARCH(\">\",'CFR - XML import'!$A138,1)-2)))","v":0},{"$f":"IF(ISERROR(FIND(BG$3,'CFR - XML import'!$A138)),0,VALUE(MID('CFR - XML import'!$A138,SEARCH(\">\",'CFR - XML import'!$A138,1)+1,SEARCH(\"/\",'CFR - XML import'!$A138,1)-SEARCH(\">\",'CFR - XML import'!$A138,1)-2)))","v":0},{"$f":"IF(ISERROR(FIND(BH$3,'CFR - XML import'!$A138)),0,VALUE(MID('CFR - XML import'!$A138,SEARCH(\">\",'CFR - XML import'!$A138,1)+1,SEARCH(\"/\",'CFR - XML import'!$A138,1)-SEARCH(\">\",'CFR - XML import'!$A138,1)-2)))","v":0},{"$f":"IF(ISERROR(FIND(BI$3,'CFR - XML import'!$A138)),0,VALUE(MID('CFR - XML import'!$A138,SEARCH(\">\",'CFR - XML import'!$A138,1)+1,SEARCH(\"/\",'CFR - XML import'!$A138,1)-SEARCH(\">\",'CFR - XML import'!$A138,1)-2)))","v":0},{"$f":"IF(ISERROR(FIND(BJ$3,'CFR - XML import'!$A138)),0,VALUE(MID('CFR - XML import'!$A138,SEARCH(\">\",'CFR - XML import'!$A138,1)+1,SEARCH(\"/\",'CFR - XML import'!$A138,1)-SEARCH(\">\",'CFR - XML import'!$A138,1)-2)))","v":0},{"$f":"IF(ISERROR(FIND(BK$3,'CFR - XML import'!$A138)),0,VALUE(MID('CFR - XML import'!$A138,SEARCH(\">\",'CFR - XML import'!$A138,1)+1,SEARCH(\"/\",'CFR - XML import'!$A138,1)-SEARCH(\">\",'CFR - XML import'!$A138,1)-2)))","v":0},{"$f":"IF(ISERROR(FIND(BL$3,'CFR - XML import'!$A138)),0,VALUE(MID('CFR - XML import'!$A138,SEARCH(\">\",'CFR - XML import'!$A138,1)+1,SEARCH(\"/\",'CFR - XML import'!$A138,1)-SEARCH(\">\",'CFR - XML import'!$A138,1)-2)))","v":0},{"$f":"IF(ISERROR(FIND(BM$3,'CFR - XML import'!$A138)),0,VALUE(MID('CFR - XML import'!$A138,SEARCH(\">\",'CFR - XML import'!$A138,1)+1,SEARCH(\"/\",'CFR - XML import'!$A138,1)-SEARCH(\">\",'CFR - XML import'!$A138,1)-2)))","v":0},{"$f":"IF(ISERROR(FIND(BN$3,'CFR - XML import'!$A138)),0,VALUE(MID('CFR - XML import'!$A138,SEARCH(\">\",'CFR - XML import'!$A138,1)+1,SEARCH(\"/\",'CFR - XML import'!$A138,1)-SEARCH(\">\",'CFR - XML import'!$A138,1)-2)))","v":0},{"$f":"IF(ISERROR(FIND(BO$3,'CFR - XML import'!$A138)),0,VALUE(MID('CFR - XML import'!$A138,SEARCH(\">\",'CFR - XML import'!$A138,1)+1,SEARCH(\"/\",'CFR - XML import'!$A138,1)-SEARCH(\">\",'CFR - XML import'!$A138,1)-2)))","v":0},{"$f":"IF(ISERROR(FIND(BP$3,'CFR - XML import'!$A138)),0,VALUE(MID('CFR - XML import'!$A138,SEARCH(\">\",'CFR - XML import'!$A138,1)+1,SEARCH(\"/\",'CFR - XML import'!$A138,1)-SEARCH(\">\",'CFR - XML import'!$A138,1)-2)))","v":0},{"$f":"IF(ISERROR(FIND(BQ$3,'CFR - XML import'!$A138)),0,VALUE(MID('CFR - XML import'!$A138,SEARCH(\">\",'CFR - XML import'!$A138,1)+1,SEARCH(\"/\",'CFR - XML import'!$A138,1)-SEARCH(\">\",'CFR - XML import'!$A138,1)-2)))","v":0},{"$f":"IF(ISERROR(FIND(BR$3,'CFR - XML import'!$A138)),0,VALUE(MID('CFR - XML import'!$A138,SEARCH(\">\",'CFR - XML import'!$A138,1)+1,SEARCH(\"/\",'CFR - XML import'!$A138,1)-SEARCH(\">\",'CFR - XML import'!$A138,1)-2)))","v":0},{"$f":"IF(ISERROR(FIND(BS$3,'CFR - XML import'!$A138)),0,VALUE(MID('CFR - XML import'!$A138,SEARCH(\">\",'CFR - XML import'!$A138,1)+1,SEARCH(\"/\",'CFR - XML import'!$A138,1)-SEARCH(\">\",'CFR - XML import'!$A138,1)-2)))","v":0},{"$f":"IF(ISERROR(FIND(BT$3,'CFR - XML import'!$A138)),0,VALUE(MID('CFR - XML import'!$A138,SEARCH(\">\",'CFR - XML import'!$A138,1)+1,SEARCH(\"/\",'CFR - XML import'!$A138,1)-SEARCH(\">\",'CFR - XML import'!$A138,1)-2)))","v":0},{"$f":"IF(ISERROR(FIND(BU$3,'CFR - XML import'!$A138)),0,VALUE(MID('CFR - XML import'!$A138,SEARCH(\">\",'CFR - XML import'!$A138,1)+1,SEARCH(\"/\",'CFR - XML import'!$A138,1)-SEARCH(\">\",'CFR - XML import'!$A138,1)-2)))","v":0},{"$f":"IF(ISERROR(FIND(BV$3,'CFR - XML import'!$A138)),0,VALUE(MID('CFR - XML import'!$A138,SEARCH(\">\",'CFR - XML import'!$A138,1)+1,SEARCH(\"/\",'CFR - XML import'!$A138,1)-SEARCH(\">\",'CFR - XML import'!$A138,1)-2)))","v":0},{"$f":"IF(ISERROR(FIND(BW$3,'CFR - XML import'!$A138)),0,VALUE(MID('CFR - XML import'!$A138,SEARCH(\">\",'CFR - XML import'!$A138,1)+1,SEARCH(\"/\",'CFR - XML import'!$A138,1)-SEARCH(\">\",'CFR - XML import'!$A138,1)-2)))","v":0},{"$f":"IF(ISERROR(FIND(BX$3,'CFR - XML import'!$A138)),0,VALUE(MID('CFR - XML import'!$A138,SEARCH(\">\",'CFR - XML import'!$A138,1)+1,SEARCH(\"/\",'CFR - XML import'!$A138,1)-SEARCH(\">\",'CFR - XML import'!$A138,1)-2)))","v":0},{"$f":"IF(ISERROR(FIND(BY$3,'CFR - XML import'!$A138)),0,VALUE(MID('CFR - XML import'!$A138,SEARCH(\">\",'CFR - XML import'!$A138,1)+1,SEARCH(\"/\",'CFR - XML import'!$A138,1)-SEARCH(\">\",'CFR - XML import'!$A138,1)-2)))","v":0},{"$f":"IF(ISERROR(FIND(BZ$3,'CFR - XML import'!$A138)),0,VALUE(MID('CFR - XML import'!$A138,SEARCH(\">\",'CFR - XML import'!$A138,1)+1,SEARCH(\"/\",'CFR - XML import'!$A138,1)-SEARCH(\">\",'CFR - XML import'!$A138,1)-2)))","v":0},null,null,null,null,null,null,{"$f":"IF(ISERROR(IF(MID('CFR - XML import'!$A138,LEN($CF$4)+1,LEN('CFR - XML import'!$A138)-(2*LEN($CF$4)+1))=\"RMMS\",1,IF(MID('CFR - XML import'!$A138,LEN(\"    <InputSystem>\")+1,LEN('CFR - XML import'!$A138)-(LEN(\"    <InputSystem>\")+LEN($CF$4)+1))=\"SIMS\",2,0))),0,IF(MID('CFR - XML import'!$A138,LEN($CF$4)+1,LEN('CFR - XML import'!$A138)-(2*LEN($CF$4)+1))=\"RMMS\",1,IF(MID('CFR - XML import'!$A138,LEN(\"    <InputSystem>\")+1,LEN('CFR - XML import'!$A138)-(LEN(\"    <InputSystem>\")+LEN($CF$4)+1))=\"SIMS\",2,0)))","v":0},{"$f":"IF(ISERROR(FIND(CH$3,'CFR - XML import'!$A138)),0,MID('CFR - XML import'!$A138,SEARCH(\">\",'CFR - XML import'!$A138,1)+1,SEARCH(\"/\",'CFR - XML import'!$A138,1)-SEARCH(\">\",'CFR - XML import'!$A138,1)-2))","v":0},{"$f":"IF(ISERROR(FIND(CI$3,'CFR - XML import'!$A138)),0,MID('CFR - XML import'!$A138,SEARCH(\">\",'CFR - XML import'!$A138,1)+1,SEARCH(\"/\",'CFR - XML import'!$A138,1)-SEARCH(\">\",'CFR - XML import'!$A138,1)-2))","v":0},{"$f":"IF(ISERROR(FIND(CJ$3,'CFR - XML import'!$A138)),0,MID('CFR - XML import'!$A138,SEARCH(\">\",'CFR - XML import'!$A138,1)+1,SEARCH(\"/\",'CFR - XML import'!$A138,1)-SEARCH(\">\",'CFR - XML import'!$A138,1)-2))","v":0},{"$f":"IF(ISERROR(FIND(CK$3,'CFR - XML import'!$A138)),0,MID('CFR - XML import'!$A138,SEARCH(\">\",'CFR - XML import'!$A138,1)+1,SEARCH(\"/\",'CFR - XML import'!$A138,1)-SEARCH(\">\",'CFR - XML import'!$A138,1)-2))","v":0},{"$f":"IF(ISERROR(FIND(CL$3,'CFR - XML import'!$A138)),0,MID('CFR - XML import'!$A138,SEARCH(\">\",'CFR - XML import'!$A138,1)+1,SEARCH(\"/\",'CFR - XML import'!$A138,1)-SEARCH(\">\",'CFR - XML import'!$A138,1)-2))","v":0}]
[{"$f":"IF(AND('CFR - XML import'!A139<>\"\",LEFT('CFR - XML import'!A139,1)<>\"<\",LEFT('CFR - XML import'!A139,3)<>\"  <\",LEFT('CFR - XML import'!A139,5)<>\"    <\",LEFT('CFR - XML import'!A139,7)<>\"      <\",LEFT('CFR - XML import'!A139,9)<>\"        <\",$B$1=\"SIMS\"),'CFR - XML import'!A139,IF(AND(LEFT('CFR - XML import'!A139,9)=\"<Details>\",$B$1=\"RM\"),'CFR - XML import'!A139,\"\"))","v":""},{"$f":"IF(ISERROR(FIND(B$3,'CFR - XML import'!$A139)),0,VALUE(MID('CFR - XML import'!$A139,SEARCH(\">\",'CFR - XML import'!$A139,1)+1,SEARCH(\"/\",'CFR - XML import'!$A139,1)-SEARCH(\">\",'CFR - XML import'!$A139,1)-2)))","v":0},null,{"$f":"IF(ISERROR(FIND(D$3,'CFR - XML import'!$A139)),0,MID('CFR - XML import'!$A139,SEARCH(\">\",'CFR - XML import'!$A139,1)+1,SEARCH(\"/\",'CFR - XML import'!$A139,1)-SEARCH(\">\",'CFR - XML import'!$A139,1)-2))","v":0},{"$f":"IF(ISERROR(FIND(E$3,'CFR - XML import'!$A139)),0,MID('CFR - XML import'!$A139,SEARCH(\">\",'CFR - XML import'!$A139,1)+1,SEARCH(\"/\",'CFR - XML import'!$A139,1)-SEARCH(\">\",'CFR - XML import'!$A139,1)-2))","v":0},{"$f":"IF($B$1=\"SIMS\",IF(ISERROR(FIND(F$3,'CFR - XML import'!$A139)),0,VALUE(MID('CFR - XML import'!$A139,15,10))),IF(ISERROR(FIND(F$3,'CFR - XML import'!$A139)),0,VALUE(MID('CFR - XML import'!$A139,11,10))))","v":"00:00:00"},{"$f":"IF(ISERROR(FIND(G$3,'CFR - XML import'!$A139)),0,VALUE(MID('CFR - XML import'!$A139,SEARCH(\">\",'CFR - XML import'!$A139,1)+1,SEARCH(\"/\",'CFR - XML import'!$A139,1)-SEARCH(\">\",'CFR - XML import'!$A139,1)-2)))","v":0},{"$f":"IF(ISERROR(FIND(H$3,'CFR - XML import'!$A139)),0,VALUE(MID('CFR - XML import'!$A139,SEARCH(\">\",'CFR - XML import'!$A139,1)+1,SEARCH(\"/\",'CFR - XML import'!$A139,1)-SEARCH(\">\",'CFR - XML import'!$A139,1)-2)))","v":0},{"$f":"IF(ISERROR(FIND(I$3,'CFR - XML import'!$A139)),0,VALUE(MID('CFR - XML import'!$A139,SEARCH(\">\",'CFR - XML import'!$A139,1)+1,SEARCH(\"/\",'CFR - XML import'!$A139,1)-SEARCH(\">\",'CFR - XML import'!$A139,1)-2)))","v":0},{"$f":"IF(ISERROR(FIND(J$3,'CFR - XML import'!$A139)),0,VALUE(MID('CFR - XML import'!$A139,SEARCH(\">\",'CFR - XML import'!$A139,1)+1,SEARCH(\"/\",'CFR - XML import'!$A139,1)-SEARCH(\">\",'CFR - XML import'!$A139,1)-2)))","v":0},{"$f":"IF(ISERROR(FIND(K$3,'CFR - XML import'!$A139)),0,VALUE(MID('CFR - XML import'!$A139,SEARCH(\">\",'CFR - XML import'!$A139,1)+1,SEARCH(\"/\",'CFR - XML import'!$A139,1)-SEARCH(\">\",'CFR - XML import'!$A139,1)-2)))","v":0},{"$f":"IF(ISERROR(FIND(L$3,'CFR - XML import'!$A139)),0,VALUE(MID('CFR - XML import'!$A139,SEARCH(\">\",'CFR - XML import'!$A139,1)+1,SEARCH(\"/\",'CFR - XML import'!$A139,1)-SEARCH(\">\",'CFR - XML import'!$A139,1)-2)))","v":0},{"$f":"IF(ISERROR(FIND(M$3,'CFR - XML import'!$A139)),0,VALUE(MID('CFR - XML import'!$A139,SEARCH(\">\",'CFR - XML import'!$A139,1)+1,SEARCH(\"/\",'CFR - XML import'!$A139,1)-SEARCH(\">\",'CFR - XML import'!$A139,1)-2)))","v":0},{"$f":"IF(ISERROR(FIND(N$3,'CFR - XML import'!$A139)),0,VALUE(MID('CFR - XML import'!$A139,SEARCH(\">\",'CFR - XML import'!$A139,1)+1,SEARCH(\"/\",'CFR - XML import'!$A139,1)-SEARCH(\">\",'CFR - XML import'!$A139,1)-2)))","v":0},{"$f":"IF(ISERROR(FIND(O$3,'CFR - XML import'!$A139)),0,VALUE(MID('CFR - XML import'!$A139,SEARCH(\">\",'CFR - XML import'!$A139,1)+1,SEARCH(\"/\",'CFR - XML import'!$A139,1)-SEARCH(\">\",'CFR - XML import'!$A139,1)-2)))","v":0},{"$f":"IF(ISERROR(FIND(P$3,'CFR - XML import'!$A139)),0,VALUE(MID('CFR - XML import'!$A139,SEARCH(\">\",'CFR - XML import'!$A139,1)+1,SEARCH(\"/\",'CFR - XML import'!$A139,1)-SEARCH(\">\",'CFR - XML import'!$A139,1)-2)))","v":0},{"$f":"IF(ISERROR(FIND(Q$3,'CFR - XML import'!$A139)),0,VALUE(MID('CFR - XML import'!$A139,SEARCH(\">\",'CFR - XML import'!$A139,1)+1,SEARCH(\"/\",'CFR - XML import'!$A139,1)-SEARCH(\">\",'CFR - XML import'!$A139,1)-2)))","v":0},{"$f":"IF(ISERROR(FIND(R$3,'CFR - XML import'!$A139)),0,VALUE(MID('CFR - XML import'!$A139,SEARCH(\">\",'CFR - XML import'!$A139,1)+1,SEARCH(\"/\",'CFR - XML import'!$A139,1)-SEARCH(\">\",'CFR - XML import'!$A139,1)-2)))","v":0},{"$f":"IF(ISERROR(FIND(S$3,'CFR - XML import'!$A139)),0,VALUE(MID('CFR - XML import'!$A139,SEARCH(\">\",'CFR - XML import'!$A139,1)+1,SEARCH(\"/\",'CFR - XML import'!$A139,1)-SEARCH(\">\",'CFR - XML import'!$A139,1)-2)))","v":0},{"$f":"IF(ISERROR(FIND(T$3,'CFR - XML import'!$A139)),0,VALUE(MID('CFR - XML import'!$A139,SEARCH(\">\",'CFR - XML import'!$A139,1)+1,SEARCH(\"/\",'CFR - XML import'!$A139,1)-SEARCH(\">\",'CFR - XML import'!$A139,1)-2)))","v":0},{"$f":"IF(ISERROR(FIND(U$3,'CFR - XML import'!$A139)),0,VALUE(MID('CFR - XML import'!$A139,SEARCH(\">\",'CFR - XML import'!$A139,1)+1,SEARCH(\"/\",'CFR - XML import'!$A139,1)-SEARCH(\">\",'CFR - XML import'!$A139,1)-2)))","v":0},{"$f":"IF(ISERROR(FIND(V$3,'CFR - XML import'!$A139)),0,VALUE(MID('CFR - XML import'!$A139,SEARCH(\">\",'CFR - XML import'!$A139,1)+1,SEARCH(\"/\",'CFR - XML import'!$A139,1)-SEARCH(\">\",'CFR - XML import'!$A139,1)-2)))","v":0},{"$f":"IF(ISERROR(FIND(W$3,'CFR - XML import'!$A139)),0,VALUE(MID('CFR - XML import'!$A139,SEARCH(\">\",'CFR - XML import'!$A139,1)+1,SEARCH(\"/\",'CFR - XML import'!$A139,1)-SEARCH(\">\",'CFR - XML import'!$A139,1)-2)))","v":0},null,{"$f":"IF(ISERROR(FIND(Y$3,'CFR - XML import'!$A139)),0,VALUE(MID('CFR - XML import'!$A139,SEARCH(\">\",'CFR - XML import'!$A139,1)+1,SEARCH(\"/\",'CFR - XML import'!$A139,1)-SEARCH(\">\",'CFR - XML import'!$A139,1)-2)))","v":0},{"$f":"IF(ISERROR(FIND(Z$3,'CFR - XML import'!$A139)),0,VALUE(MID('CFR - XML import'!$A139,SEARCH(\">\",'CFR - XML import'!$A139,1)+1,SEARCH(\"/\",'CFR - XML import'!$A139,1)-SEARCH(\">\",'CFR - XML import'!$A139,1)-2)))","v":0},{"$f":"IF(ISERROR(FIND(AA$3,'CFR - XML import'!$A139)),0,VALUE(MID('CFR - XML import'!$A139,SEARCH(\">\",'CFR - XML import'!$A139,1)+1,SEARCH(\"/\",'CFR - XML import'!$A139,1)-SEARCH(\">\",'CFR - XML import'!$A139,1)-2)))","v":0},{"$f":"IF(ISERROR(FIND(AB$3,'CFR - XML import'!$A139)),0,VALUE(MID('CFR - XML import'!$A139,SEARCH(\">\",'CFR - XML import'!$A139,1)+1,SEARCH(\"/\",'CFR - XML import'!$A139,1)-SEARCH(\">\",'CFR - XML import'!$A139,1)-2)))","v":0},{"$f":"IF(ISERROR(FIND(AC$3,'CFR - XML import'!$A139)),0,VALUE(MID('CFR - XML import'!$A139,SEARCH(\">\",'CFR - XML import'!$A139,1)+1,SEARCH(\"/\",'CFR - XML import'!$A139,1)-SEARCH(\">\",'CFR - XML import'!$A139,1)-2)))","v":0},{"$f":"IF(ISERROR(FIND(AD$3,'CFR - XML import'!$A139)),0,VALUE(MID('CFR - XML import'!$A139,SEARCH(\">\",'CFR - XML import'!$A139,1)+1,SEARCH(\"/\",'CFR - XML import'!$A139,1)-SEARCH(\">\",'CFR - XML import'!$A139,1)-2)))","v":0},{"$f":"IF(ISERROR(FIND(AE$3,'CFR - XML import'!$A139)),0,VALUE(MID('CFR - XML import'!$A139,SEARCH(\">\",'CFR - XML import'!$A139,1)+1,SEARCH(\"/\",'CFR - XML import'!$A139,1)-SEARCH(\">\",'CFR - XML import'!$A139,1)-2)))","v":0},{"$f":"IF(ISERROR(FIND(AF$3,'CFR - XML import'!$A139)),0,VALUE(MID('CFR - XML import'!$A139,SEARCH(\">\",'CFR - XML import'!$A139,1)+1,SEARCH(\"/\",'CFR - XML import'!$A139,1)-SEARCH(\">\",'CFR - XML import'!$A139,1)-2)))","v":0},{"$f":"IF(ISERROR(FIND(AG$3,'CFR - XML import'!$A139)),0,VALUE(MID('CFR - XML import'!$A139,SEARCH(\">\",'CFR - XML import'!$A139,1)+1,SEARCH(\"/\",'CFR - XML import'!$A139,1)-SEARCH(\">\",'CFR - XML import'!$A139,1)-2)))","v":0},{"$f":"IF(ISERROR(FIND(AH$3,'CFR - XML import'!$A139)),0,VALUE(MID('CFR - XML import'!$A139,SEARCH(\">\",'CFR - XML import'!$A139,1)+1,SEARCH(\"/\",'CFR - XML import'!$A139,1)-SEARCH(\">\",'CFR - XML import'!$A139,1)-2)))","v":0},{"$f":"IF(ISERROR(FIND(AI$3,'CFR - XML import'!$A139)),0,VALUE(MID('CFR - XML import'!$A139,SEARCH(\">\",'CFR - XML import'!$A139,1)+1,SEARCH(\"/\",'CFR - XML import'!$A139,1)-SEARCH(\">\",'CFR - XML import'!$A139,1)-2)))","v":0},{"$f":"IF(ISERROR(FIND(AJ$3,'CFR - XML import'!$A139)),0,VALUE(MID('CFR - XML import'!$A139,SEARCH(\">\",'CFR - XML import'!$A139,1)+1,SEARCH(\"/\",'CFR - XML import'!$A139,1)-SEARCH(\">\",'CFR - XML import'!$A139,1)-2)))","v":0},{"$f":"IF(ISERROR(FIND(AK$3,'CFR - XML import'!$A139)),0,VALUE(MID('CFR - XML import'!$A139,SEARCH(\">\",'CFR - XML import'!$A139,1)+1,SEARCH(\"/\",'CFR - XML import'!$A139,1)-SEARCH(\">\",'CFR - XML import'!$A139,1)-2)))","v":0},{"$f":"IF(ISERROR(FIND(AL$3,'CFR - XML import'!$A139)),0,VALUE(MID('CFR - XML import'!$A139,SEARCH(\">\",'CFR - XML import'!$A139,1)+1,SEARCH(\"/\",'CFR - XML import'!$A139,1)-SEARCH(\">\",'CFR - XML import'!$A139,1)-2)))","v":0},{"$f":"IF(ISERROR(FIND(AM$3,'CFR - XML import'!$A139)),0,VALUE(MID('CFR - XML import'!$A139,SEARCH(\">\",'CFR - XML import'!$A139,1)+1,SEARCH(\"/\",'CFR - XML import'!$A139,1)-SEARCH(\">\",'CFR - XML import'!$A139,1)-2)))","v":0},{"$f":"IF(ISERROR(FIND(AN$3,'CFR - XML import'!$A139)),0,VALUE(MID('CFR - XML import'!$A139,SEARCH(\">\",'CFR - XML import'!$A139,1)+1,SEARCH(\"/\",'CFR - XML import'!$A139,1)-SEARCH(\">\",'CFR - XML import'!$A139,1)-2)))","v":0},{"$f":"IF(ISERROR(FIND(AO$3,'CFR - XML import'!$A139)),0,VALUE(MID('CFR - XML import'!$A139,SEARCH(\">\",'CFR - XML import'!$A139,1)+1,SEARCH(\"/\",'CFR - XML import'!$A139,1)-SEARCH(\">\",'CFR - XML import'!$A139,1)-2)))","v":0},{"$f":"IF(ISERROR(FIND(AP$3,'CFR - XML import'!$A139)),0,VALUE(MID('CFR - XML import'!$A139,SEARCH(\">\",'CFR - XML import'!$A139,1)+1,SEARCH(\"/\",'CFR - XML import'!$A139,1)-SEARCH(\">\",'CFR - XML import'!$A139,1)-2)))","v":0},{"$f":"IF(ISERROR(FIND(AQ$3,'CFR - XML import'!$A139)),0,VALUE(MID('CFR - XML import'!$A139,SEARCH(\">\",'CFR - XML import'!$A139,1)+1,SEARCH(\"/\",'CFR - XML import'!$A139,1)-SEARCH(\">\",'CFR - XML import'!$A139,1)-2)))","v":0},{"$f":"IF(ISERROR(FIND(AR$3,'CFR - XML import'!$A139)),0,VALUE(MID('CFR - XML import'!$A139,SEARCH(\">\",'CFR - XML import'!$A139,1)+1,SEARCH(\"/\",'CFR - XML import'!$A139,1)-SEARCH(\">\",'CFR - XML import'!$A139,1)-2)))","v":0},{"$f":"IF(ISERROR(FIND(AS$3,'CFR - XML import'!$A139)),0,VALUE(MID('CFR - XML import'!$A139,SEARCH(\">\",'CFR - XML import'!$A139,1)+1,SEARCH(\"/\",'CFR - XML import'!$A139,1)-SEARCH(\">\",'CFR - XML import'!$A139,1)-2)))","v":0},{"$f":"IF(ISERROR(FIND(AT$3,'CFR - XML import'!$A139)),0,VALUE(MID('CFR - XML import'!$A139,SEARCH(\">\",'CFR - XML import'!$A139,1)+1,SEARCH(\"/\",'CFR - XML import'!$A139,1)-SEARCH(\">\",'CFR - XML import'!$A139,1)-2)))","v":0},{"$f":"IF(ISERROR(FIND(AU$3,'CFR - XML import'!$A139)),0,VALUE(MID('CFR - XML import'!$A139,SEARCH(\">\",'CFR - XML import'!$A139,1)+1,SEARCH(\"/\",'CFR - XML import'!$A139,1)-SEARCH(\">\",'CFR - XML import'!$A139,1)-2)))","v":0},{"$f":"IF(ISERROR(FIND(AV$3,'CFR - XML import'!$A139)),0,VALUE(MID('CFR - XML import'!$A139,SEARCH(\">\",'CFR - XML import'!$A139,1)+1,SEARCH(\"/\",'CFR - XML import'!$A139,1)-SEARCH(\">\",'CFR - XML import'!$A139,1)-2)))","v":0},{"$f":"IF(ISERROR(FIND(AW$3,'CFR - XML import'!$A139)),0,VALUE(MID('CFR - XML import'!$A139,SEARCH(\">\",'CFR - XML import'!$A139,1)+1,SEARCH(\"/\",'CFR - XML import'!$A139,1)-SEARCH(\">\",'CFR - XML import'!$A139,1)-2)))","v":0},{"$f":"IF(ISERROR(FIND(AX$3,'CFR - XML import'!$A139)),0,VALUE(MID('CFR - XML import'!$A139,SEARCH(\">\",'CFR - XML import'!$A139,1)+1,SEARCH(\"/\",'CFR - XML import'!$A139,1)-SEARCH(\">\",'CFR - XML import'!$A139,1)-2)))","v":0},{"$f":"IF(ISERROR(FIND(AY$3,'CFR - XML import'!$A139)),0,VALUE(MID('CFR - XML import'!$A139,SEARCH(\">\",'CFR - XML import'!$A139,1)+1,SEARCH(\"/\",'CFR - XML import'!$A139,1)-SEARCH(\">\",'CFR - XML import'!$A139,1)-2)))","v":0},{"$f":"IF(ISERROR(FIND(AZ$3,'CFR - XML import'!$A139)),0,VALUE(MID('CFR - XML import'!$A139,SEARCH(\">\",'CFR - XML import'!$A139,1)+1,SEARCH(\"/\",'CFR - XML import'!$A139,1)-SEARCH(\">\",'CFR - XML import'!$A139,1)-2)))","v":0},{"$f":"IF(ISERROR(FIND(BA$3,'CFR - XML import'!$A139)),0,VALUE(MID('CFR - XML import'!$A139,SEARCH(\">\",'CFR - XML import'!$A139,1)+1,SEARCH(\"/\",'CFR - XML import'!$A139,1)-SEARCH(\">\",'CFR - XML import'!$A139,1)-2)))","v":0},{"$f":"IF(ISERROR(FIND(BB$3,'CFR - XML import'!$A139)),0,VALUE(MID('CFR - XML import'!$A139,SEARCH(\">\",'CFR - XML import'!$A139,1)+1,SEARCH(\"/\",'CFR - XML import'!$A139,1)-SEARCH(\">\",'CFR - XML import'!$A139,1)-2)))","v":0},{"$f":"IF(ISERROR(FIND(BC$3,'CFR - XML import'!$A139)),0,VALUE(MID('CFR - XML import'!$A139,SEARCH(\">\",'CFR - XML import'!$A139,1)+1,SEARCH(\"/\",'CFR - XML import'!$A139,1)-SEARCH(\">\",'CFR - XML import'!$A139,1)-2)))","v":0},{"$f":"IF(ISERROR(FIND(BD$3,'CFR - XML import'!$A139)),0,VALUE(MID('CFR - XML import'!$A139,SEARCH(\">\",'CFR - XML import'!$A139,1)+1,SEARCH(\"/\",'CFR - XML import'!$A139,1)-SEARCH(\">\",'CFR - XML import'!$A139,1)-2)))","v":0},{"$f":"IF(ISERROR(FIND(BE$3,'CFR - XML import'!$A139)),0,VALUE(MID('CFR - XML import'!$A139,SEARCH(\">\",'CFR - XML import'!$A139,1)+1,SEARCH(\"/\",'CFR - XML import'!$A139,1)-SEARCH(\">\",'CFR - XML import'!$A139,1)-2)))","v":0},{"$f":"IF(ISERROR(FIND(BF$3,'CFR - XML import'!$A139)),0,VALUE(MID('CFR - XML import'!$A139,SEARCH(\">\",'CFR - XML import'!$A139,1)+1,SEARCH(\"/\",'CFR - XML import'!$A139,1)-SEARCH(\">\",'CFR - XML import'!$A139,1)-2)))","v":0},{"$f":"IF(ISERROR(FIND(BG$3,'CFR - XML import'!$A139)),0,VALUE(MID('CFR - XML import'!$A139,SEARCH(\">\",'CFR - XML import'!$A139,1)+1,SEARCH(\"/\",'CFR - XML import'!$A139,1)-SEARCH(\">\",'CFR - XML import'!$A139,1)-2)))","v":0},{"$f":"IF(ISERROR(FIND(BH$3,'CFR - XML import'!$A139)),0,VALUE(MID('CFR - XML import'!$A139,SEARCH(\">\",'CFR - XML import'!$A139,1)+1,SEARCH(\"/\",'CFR - XML import'!$A139,1)-SEARCH(\">\",'CFR - XML import'!$A139,1)-2)))","v":0},{"$f":"IF(ISERROR(FIND(BI$3,'CFR - XML import'!$A139)),0,VALUE(MID('CFR - XML import'!$A139,SEARCH(\">\",'CFR - XML import'!$A139,1)+1,SEARCH(\"/\",'CFR - XML import'!$A139,1)-SEARCH(\">\",'CFR - XML import'!$A139,1)-2)))","v":0},{"$f":"IF(ISERROR(FIND(BJ$3,'CFR - XML import'!$A139)),0,VALUE(MID('CFR - XML import'!$A139,SEARCH(\">\",'CFR - XML import'!$A139,1)+1,SEARCH(\"/\",'CFR - XML import'!$A139,1)-SEARCH(\">\",'CFR - XML import'!$A139,1)-2)))","v":0},{"$f":"IF(ISERROR(FIND(BK$3,'CFR - XML import'!$A139)),0,VALUE(MID('CFR - XML import'!$A139,SEARCH(\">\",'CFR - XML import'!$A139,1)+1,SEARCH(\"/\",'CFR - XML import'!$A139,1)-SEARCH(\">\",'CFR - XML import'!$A139,1)-2)))","v":0},{"$f":"IF(ISERROR(FIND(BL$3,'CFR - XML import'!$A139)),0,VALUE(MID('CFR - XML import'!$A139,SEARCH(\">\",'CFR - XML import'!$A139,1)+1,SEARCH(\"/\",'CFR - XML import'!$A139,1)-SEARCH(\">\",'CFR - XML import'!$A139,1)-2)))","v":0},{"$f":"IF(ISERROR(FIND(BM$3,'CFR - XML import'!$A139)),0,VALUE(MID('CFR - XML import'!$A139,SEARCH(\">\",'CFR - XML import'!$A139,1)+1,SEARCH(\"/\",'CFR - XML import'!$A139,1)-SEARCH(\">\",'CFR - XML import'!$A139,1)-2)))","v":0},{"$f":"IF(ISERROR(FIND(BN$3,'CFR - XML import'!$A139)),0,VALUE(MID('CFR - XML import'!$A139,SEARCH(\">\",'CFR - XML import'!$A139,1)+1,SEARCH(\"/\",'CFR - XML import'!$A139,1)-SEARCH(\">\",'CFR - XML import'!$A139,1)-2)))","v":0},{"$f":"IF(ISERROR(FIND(BO$3,'CFR - XML import'!$A139)),0,VALUE(MID('CFR - XML import'!$A139,SEARCH(\">\",'CFR - XML import'!$A139,1)+1,SEARCH(\"/\",'CFR - XML import'!$A139,1)-SEARCH(\">\",'CFR - XML import'!$A139,1)-2)))","v":0},{"$f":"IF(ISERROR(FIND(BP$3,'CFR - XML import'!$A139)),0,VALUE(MID('CFR - XML import'!$A139,SEARCH(\">\",'CFR - XML import'!$A139,1)+1,SEARCH(\"/\",'CFR - XML import'!$A139,1)-SEARCH(\">\",'CFR - XML import'!$A139,1)-2)))","v":0},{"$f":"IF(ISERROR(FIND(BQ$3,'CFR - XML import'!$A139)),0,VALUE(MID('CFR - XML import'!$A139,SEARCH(\">\",'CFR - XML import'!$A139,1)+1,SEARCH(\"/\",'CFR - XML import'!$A139,1)-SEARCH(\">\",'CFR - XML import'!$A139,1)-2)))","v":0},{"$f":"IF(ISERROR(FIND(BR$3,'CFR - XML import'!$A139)),0,VALUE(MID('CFR - XML import'!$A139,SEARCH(\">\",'CFR - XML import'!$A139,1)+1,SEARCH(\"/\",'CFR - XML import'!$A139,1)-SEARCH(\">\",'CFR - XML import'!$A139,1)-2)))","v":0},{"$f":"IF(ISERROR(FIND(BS$3,'CFR - XML import'!$A139)),0,VALUE(MID('CFR - XML import'!$A139,SEARCH(\">\",'CFR - XML import'!$A139,1)+1,SEARCH(\"/\",'CFR - XML import'!$A139,1)-SEARCH(\">\",'CFR - XML import'!$A139,1)-2)))","v":0},{"$f":"IF(ISERROR(FIND(BT$3,'CFR - XML import'!$A139)),0,VALUE(MID('CFR - XML import'!$A139,SEARCH(\">\",'CFR - XML import'!$A139,1)+1,SEARCH(\"/\",'CFR - XML import'!$A139,1)-SEARCH(\">\",'CFR - XML import'!$A139,1)-2)))","v":0},{"$f":"IF(ISERROR(FIND(BU$3,'CFR - XML import'!$A139)),0,VALUE(MID('CFR - XML import'!$A139,SEARCH(\">\",'CFR - XML import'!$A139,1)+1,SEARCH(\"/\",'CFR - XML import'!$A139,1)-SEARCH(\">\",'CFR - XML import'!$A139,1)-2)))","v":0},{"$f":"IF(ISERROR(FIND(BV$3,'CFR - XML import'!$A139)),0,VALUE(MID('CFR - XML import'!$A139,SEARCH(\">\",'CFR - XML import'!$A139,1)+1,SEARCH(\"/\",'CFR - XML import'!$A139,1)-SEARCH(\">\",'CFR - XML import'!$A139,1)-2)))","v":0},{"$f":"IF(ISERROR(FIND(BW$3,'CFR - XML import'!$A139)),0,VALUE(MID('CFR - XML import'!$A139,SEARCH(\">\",'CFR - XML import'!$A139,1)+1,SEARCH(\"/\",'CFR - XML import'!$A139,1)-SEARCH(\">\",'CFR - XML import'!$A139,1)-2)))","v":0},{"$f":"IF(ISERROR(FIND(BX$3,'CFR - XML import'!$A139)),0,VALUE(MID('CFR - XML import'!$A139,SEARCH(\">\",'CFR - XML import'!$A139,1)+1,SEARCH(\"/\",'CFR - XML import'!$A139,1)-SEARCH(\">\",'CFR - XML import'!$A139,1)-2)))","v":0},{"$f":"IF(ISERROR(FIND(BY$3,'CFR - XML import'!$A139)),0,VALUE(MID('CFR - XML import'!$A139,SEARCH(\">\",'CFR - XML import'!$A139,1)+1,SEARCH(\"/\",'CFR - XML import'!$A139,1)-SEARCH(\">\",'CFR - XML import'!$A139,1)-2)))","v":0},{"$f":"IF(ISERROR(FIND(BZ$3,'CFR - XML import'!$A139)),0,VALUE(MID('CFR - XML import'!$A139,SEARCH(\">\",'CFR - XML import'!$A139,1)+1,SEARCH(\"/\",'CFR - XML import'!$A139,1)-SEARCH(\">\",'CFR - XML import'!$A139,1)-2)))","v":0},null,null,null,null,null,null,{"$f":"IF(ISERROR(IF(MID('CFR - XML import'!$A139,LEN($CF$4)+1,LEN('CFR - XML import'!$A139)-(2*LEN($CF$4)+1))=\"RMMS\",1,IF(MID('CFR - XML import'!$A139,LEN(\"    <InputSystem>\")+1,LEN('CFR - XML import'!$A139)-(LEN(\"    <InputSystem>\")+LEN($CF$4)+1))=\"SIMS\",2,0))),0,IF(MID('CFR - XML import'!$A139,LEN($CF$4)+1,LEN('CFR - XML import'!$A139)-(2*LEN($CF$4)+1))=\"RMMS\",1,IF(MID('CFR - XML import'!$A139,LEN(\"    <InputSystem>\")+1,LEN('CFR - XML import'!$A139)-(LEN(\"    <InputSystem>\")+LEN($CF$4)+1))=\"SIMS\",2,0)))","v":0},{"$f":"IF(ISERROR(FIND(CH$3,'CFR - XML import'!$A139)),0,MID('CFR - XML import'!$A139,SEARCH(\">\",'CFR - XML import'!$A139,1)+1,SEARCH(\"/\",'CFR - XML import'!$A139,1)-SEARCH(\">\",'CFR - XML import'!$A139,1)-2))","v":0},{"$f":"IF(ISERROR(FIND(CI$3,'CFR - XML import'!$A139)),0,MID('CFR - XML import'!$A139,SEARCH(\">\",'CFR - XML import'!$A139,1)+1,SEARCH(\"/\",'CFR - XML import'!$A139,1)-SEARCH(\">\",'CFR - XML import'!$A139,1)-2))","v":0},{"$f":"IF(ISERROR(FIND(CJ$3,'CFR - XML import'!$A139)),0,MID('CFR - XML import'!$A139,SEARCH(\">\",'CFR - XML import'!$A139,1)+1,SEARCH(\"/\",'CFR - XML import'!$A139,1)-SEARCH(\">\",'CFR - XML import'!$A139,1)-2))","v":0},{"$f":"IF(ISERROR(FIND(CK$3,'CFR - XML import'!$A139)),0,MID('CFR - XML import'!$A139,SEARCH(\">\",'CFR - XML import'!$A139,1)+1,SEARCH(\"/\",'CFR - XML import'!$A139,1)-SEARCH(\">\",'CFR - XML import'!$A139,1)-2))","v":0},{"$f":"IF(ISERROR(FIND(CL$3,'CFR - XML import'!$A139)),0,MID('CFR - XML import'!$A139,SEARCH(\">\",'CFR - XML import'!$A139,1)+1,SEARCH(\"/\",'CFR - XML import'!$A139,1)-SEARCH(\">\",'CFR - XML import'!$A139,1)-2))","v":0}]
[{"$f":"IF(AND('CFR - XML import'!A140<>\"\",LEFT('CFR - XML import'!A140,1)<>\"<\",LEFT('CFR - XML import'!A140,3)<>\"  <\",LEFT('CFR - XML import'!A140,5)<>\"    <\",LEFT('CFR - XML import'!A140,7)<>\"      <\",LEFT('CFR - XML import'!A140,9)<>\"        <\",$B$1=\"SIMS\"),'CFR - XML import'!A140,IF(AND(LEFT('CFR - XML import'!A140,9)=\"<Details>\",$B$1=\"RM\"),'CFR - XML import'!A140,\"\"))","v":""},{"$f":"IF(ISERROR(FIND(B$3,'CFR - XML import'!$A140)),0,VALUE(MID('CFR - XML import'!$A140,SEARCH(\">\",'CFR - XML import'!$A140,1)+1,SEARCH(\"/\",'CFR - XML import'!$A140,1)-SEARCH(\">\",'CFR - XML import'!$A140,1)-2)))","v":0},null,{"$f":"IF(ISERROR(FIND(D$3,'CFR - XML import'!$A140)),0,MID('CFR - XML import'!$A140,SEARCH(\">\",'CFR - XML import'!$A140,1)+1,SEARCH(\"/\",'CFR - XML import'!$A140,1)-SEARCH(\">\",'CFR - XML import'!$A140,1)-2))","v":0},{"$f":"IF(ISERROR(FIND(E$3,'CFR - XML import'!$A140)),0,MID('CFR - XML import'!$A140,SEARCH(\">\",'CFR - XML import'!$A140,1)+1,SEARCH(\"/\",'CFR - XML import'!$A140,1)-SEARCH(\">\",'CFR - XML import'!$A140,1)-2))","v":0},{"$f":"IF($B$1=\"SIMS\",IF(ISERROR(FIND(F$3,'CFR - XML import'!$A140)),0,VALUE(MID('CFR - XML import'!$A140,15,10))),IF(ISERROR(FIND(F$3,'CFR - XML import'!$A140)),0,VALUE(MID('CFR - XML import'!$A140,11,10))))","v":"00:00:00"},{"$f":"IF(ISERROR(FIND(G$3,'CFR - XML import'!$A140)),0,VALUE(MID('CFR - XML import'!$A140,SEARCH(\">\",'CFR - XML import'!$A140,1)+1,SEARCH(\"/\",'CFR - XML import'!$A140,1)-SEARCH(\">\",'CFR - XML import'!$A140,1)-2)))","v":0},{"$f":"IF(ISERROR(FIND(H$3,'CFR - XML import'!$A140)),0,VALUE(MID('CFR - XML import'!$A140,SEARCH(\">\",'CFR - XML import'!$A140,1)+1,SEARCH(\"/\",'CFR - XML import'!$A140,1)-SEARCH(\">\",'CFR - XML import'!$A140,1)-2)))","v":0},{"$f":"IF(ISERROR(FIND(I$3,'CFR - XML import'!$A140)),0,VALUE(MID('CFR - XML import'!$A140,SEARCH(\">\",'CFR - XML import'!$A140,1)+1,SEARCH(\"/\",'CFR - XML import'!$A140,1)-SEARCH(\">\",'CFR - XML import'!$A140,1)-2)))","v":0},{"$f":"IF(ISERROR(FIND(J$3,'CFR - XML import'!$A140)),0,VALUE(MID('CFR - XML import'!$A140,SEARCH(\">\",'CFR - XML import'!$A140,1)+1,SEARCH(\"/\",'CFR - XML import'!$A140,1)-SEARCH(\">\",'CFR - XML import'!$A140,1)-2)))","v":0},{"$f":"IF(ISERROR(FIND(K$3,'CFR - XML import'!$A140)),0,VALUE(MID('CFR - XML import'!$A140,SEARCH(\">\",'CFR - XML import'!$A140,1)+1,SEARCH(\"/\",'CFR - XML import'!$A140,1)-SEARCH(\">\",'CFR - XML import'!$A140,1)-2)))","v":0},{"$f":"IF(ISERROR(FIND(L$3,'CFR - XML import'!$A140)),0,VALUE(MID('CFR - XML import'!$A140,SEARCH(\">\",'CFR - XML import'!$A140,1)+1,SEARCH(\"/\",'CFR - XML import'!$A140,1)-SEARCH(\">\",'CFR - XML import'!$A140,1)-2)))","v":0},{"$f":"IF(ISERROR(FIND(M$3,'CFR - XML import'!$A140)),0,VALUE(MID('CFR - XML import'!$A140,SEARCH(\">\",'CFR - XML import'!$A140,1)+1,SEARCH(\"/\",'CFR - XML import'!$A140,1)-SEARCH(\">\",'CFR - XML import'!$A140,1)-2)))","v":0},{"$f":"IF(ISERROR(FIND(N$3,'CFR - XML import'!$A140)),0,VALUE(MID('CFR - XML import'!$A140,SEARCH(\">\",'CFR - XML import'!$A140,1)+1,SEARCH(\"/\",'CFR - XML import'!$A140,1)-SEARCH(\">\",'CFR - XML import'!$A140,1)-2)))","v":0},{"$f":"IF(ISERROR(FIND(O$3,'CFR - XML import'!$A140)),0,VALUE(MID('CFR - XML import'!$A140,SEARCH(\">\",'CFR - XML import'!$A140,1)+1,SEARCH(\"/\",'CFR - XML import'!$A140,1)-SEARCH(\">\",'CFR - XML import'!$A140,1)-2)))","v":0},{"$f":"IF(ISERROR(FIND(P$3,'CFR - XML import'!$A140)),0,VALUE(MID('CFR - XML import'!$A140,SEARCH(\">\",'CFR - XML import'!$A140,1)+1,SEARCH(\"/\",'CFR - XML import'!$A140,1)-SEARCH(\">\",'CFR - XML import'!$A140,1)-2)))","v":0},{"$f":"IF(ISERROR(FIND(Q$3,'CFR - XML import'!$A140)),0,VALUE(MID('CFR - XML import'!$A140,SEARCH(\">\",'CFR - XML import'!$A140,1)+1,SEARCH(\"/\",'CFR - XML import'!$A140,1)-SEARCH(\">\",'CFR - XML import'!$A140,1)-2)))","v":0},{"$f":"IF(ISERROR(FIND(R$3,'CFR - XML import'!$A140)),0,VALUE(MID('CFR - XML import'!$A140,SEARCH(\">\",'CFR - XML import'!$A140,1)+1,SEARCH(\"/\",'CFR - XML import'!$A140,1)-SEARCH(\">\",'CFR - XML import'!$A140,1)-2)))","v":0},{"$f":"IF(ISERROR(FIND(S$3,'CFR - XML import'!$A140)),0,VALUE(MID('CFR - XML import'!$A140,SEARCH(\">\",'CFR - XML import'!$A140,1)+1,SEARCH(\"/\",'CFR - XML import'!$A140,1)-SEARCH(\">\",'CFR - XML import'!$A140,1)-2)))","v":0},{"$f":"IF(ISERROR(FIND(T$3,'CFR - XML import'!$A140)),0,VALUE(MID('CFR - XML import'!$A140,SEARCH(\">\",'CFR - XML import'!$A140,1)+1,SEARCH(\"/\",'CFR - XML import'!$A140,1)-SEARCH(\">\",'CFR - XML import'!$A140,1)-2)))","v":0},{"$f":"IF(ISERROR(FIND(U$3,'CFR - XML import'!$A140)),0,VALUE(MID('CFR - XML import'!$A140,SEARCH(\">\",'CFR - XML import'!$A140,1)+1,SEARCH(\"/\",'CFR - XML import'!$A140,1)-SEARCH(\">\",'CFR - XML import'!$A140,1)-2)))","v":0},{"$f":"IF(ISERROR(FIND(V$3,'CFR - XML import'!$A140)),0,VALUE(MID('CFR - XML import'!$A140,SEARCH(\">\",'CFR - XML import'!$A140,1)+1,SEARCH(\"/\",'CFR - XML import'!$A140,1)-SEARCH(\">\",'CFR - XML import'!$A140,1)-2)))","v":0},{"$f":"IF(ISERROR(FIND(W$3,'CFR - XML import'!$A140)),0,VALUE(MID('CFR - XML import'!$A140,SEARCH(\">\",'CFR - XML import'!$A140,1)+1,SEARCH(\"/\",'CFR - XML import'!$A140,1)-SEARCH(\">\",'CFR - XML import'!$A140,1)-2)))","v":0},null,{"$f":"IF(ISERROR(FIND(Y$3,'CFR - XML import'!$A140)),0,VALUE(MID('CFR - XML import'!$A140,SEARCH(\">\",'CFR - XML import'!$A140,1)+1,SEARCH(\"/\",'CFR - XML import'!$A140,1)-SEARCH(\">\",'CFR - XML import'!$A140,1)-2)))","v":0},{"$f":"IF(ISERROR(FIND(Z$3,'CFR - XML import'!$A140)),0,VALUE(MID('CFR - XML import'!$A140,SEARCH(\">\",'CFR - XML import'!$A140,1)+1,SEARCH(\"/\",'CFR - XML import'!$A140,1)-SEARCH(\">\",'CFR - XML import'!$A140,1)-2)))","v":0},{"$f":"IF(ISERROR(FIND(AA$3,'CFR - XML import'!$A140)),0,VALUE(MID('CFR - XML import'!$A140,SEARCH(\">\",'CFR - XML import'!$A140,1)+1,SEARCH(\"/\",'CFR - XML import'!$A140,1)-SEARCH(\">\",'CFR - XML import'!$A140,1)-2)))","v":0},{"$f":"IF(ISERROR(FIND(AB$3,'CFR - XML import'!$A140)),0,VALUE(MID('CFR - XML import'!$A140,SEARCH(\">\",'CFR - XML import'!$A140,1)+1,SEARCH(\"/\",'CFR - XML import'!$A140,1)-SEARCH(\">\",'CFR - XML import'!$A140,1)-2)))","v":0},{"$f":"IF(ISERROR(FIND(AC$3,'CFR - XML import'!$A140)),0,VALUE(MID('CFR - XML import'!$A140,SEARCH(\">\",'CFR - XML import'!$A140,1)+1,SEARCH(\"/\",'CFR - XML import'!$A140,1)-SEARCH(\">\",'CFR - XML import'!$A140,1)-2)))","v":0},{"$f":"IF(ISERROR(FIND(AD$3,'CFR - XML import'!$A140)),0,VALUE(MID('CFR - XML import'!$A140,SEARCH(\">\",'CFR - XML import'!$A140,1)+1,SEARCH(\"/\",'CFR - XML import'!$A140,1)-SEARCH(\">\",'CFR - XML import'!$A140,1)-2)))","v":0},{"$f":"IF(ISERROR(FIND(AE$3,'CFR - XML import'!$A140)),0,VALUE(MID('CFR - XML import'!$A140,SEARCH(\">\",'CFR - XML import'!$A140,1)+1,SEARCH(\"/\",'CFR - XML import'!$A140,1)-SEARCH(\">\",'CFR - XML import'!$A140,1)-2)))","v":0},{"$f":"IF(ISERROR(FIND(AF$3,'CFR - XML import'!$A140)),0,VALUE(MID('CFR - XML import'!$A140,SEARCH(\">\",'CFR - XML import'!$A140,1)+1,SEARCH(\"/\",'CFR - XML import'!$A140,1)-SEARCH(\">\",'CFR - XML import'!$A140,1)-2)))","v":0},{"$f":"IF(ISERROR(FIND(AG$3,'CFR - XML import'!$A140)),0,VALUE(MID('CFR - XML import'!$A140,SEARCH(\">\",'CFR - XML import'!$A140,1)+1,SEARCH(\"/\",'CFR - XML import'!$A140,1)-SEARCH(\">\",'CFR - XML import'!$A140,1)-2)))","v":0},{"$f":"IF(ISERROR(FIND(AH$3,'CFR - XML import'!$A140)),0,VALUE(MID('CFR - XML import'!$A140,SEARCH(\">\",'CFR - XML import'!$A140,1)+1,SEARCH(\"/\",'CFR - XML import'!$A140,1)-SEARCH(\">\",'CFR - XML import'!$A140,1)-2)))","v":0},{"$f":"IF(ISERROR(FIND(AI$3,'CFR - XML import'!$A140)),0,VALUE(MID('CFR - XML import'!$A140,SEARCH(\">\",'CFR - XML import'!$A140,1)+1,SEARCH(\"/\",'CFR - XML import'!$A140,1)-SEARCH(\">\",'CFR - XML import'!$A140,1)-2)))","v":0},{"$f":"IF(ISERROR(FIND(AJ$3,'CFR - XML import'!$A140)),0,VALUE(MID('CFR - XML import'!$A140,SEARCH(\">\",'CFR - XML import'!$A140,1)+1,SEARCH(\"/\",'CFR - XML import'!$A140,1)-SEARCH(\">\",'CFR - XML import'!$A140,1)-2)))","v":0},{"$f":"IF(ISERROR(FIND(AK$3,'CFR - XML import'!$A140)),0,VALUE(MID('CFR - XML import'!$A140,SEARCH(\">\",'CFR - XML import'!$A140,1)+1,SEARCH(\"/\",'CFR - XML import'!$A140,1)-SEARCH(\">\",'CFR - XML import'!$A140,1)-2)))","v":0},{"$f":"IF(ISERROR(FIND(AL$3,'CFR - XML import'!$A140)),0,VALUE(MID('CFR - XML import'!$A140,SEARCH(\">\",'CFR - XML import'!$A140,1)+1,SEARCH(\"/\",'CFR - XML import'!$A140,1)-SEARCH(\">\",'CFR - XML import'!$A140,1)-2)))","v":0},{"$f":"IF(ISERROR(FIND(AM$3,'CFR - XML import'!$A140)),0,VALUE(MID('CFR - XML import'!$A140,SEARCH(\">\",'CFR - XML import'!$A140,1)+1,SEARCH(\"/\",'CFR - XML import'!$A140,1)-SEARCH(\">\",'CFR - XML import'!$A140,1)-2)))","v":0},{"$f":"IF(ISERROR(FIND(AN$3,'CFR - XML import'!$A140)),0,VALUE(MID('CFR - XML import'!$A140,SEARCH(\">\",'CFR - XML import'!$A140,1)+1,SEARCH(\"/\",'CFR - XML import'!$A140,1)-SEARCH(\">\",'CFR - XML import'!$A140,1)-2)))","v":0},{"$f":"IF(ISERROR(FIND(AO$3,'CFR - XML import'!$A140)),0,VALUE(MID('CFR - XML import'!$A140,SEARCH(\">\",'CFR - XML import'!$A140,1)+1,SEARCH(\"/\",'CFR - XML import'!$A140,1)-SEARCH(\">\",'CFR - XML import'!$A140,1)-2)))","v":0},{"$f":"IF(ISERROR(FIND(AP$3,'CFR - XML import'!$A140)),0,VALUE(MID('CFR - XML import'!$A140,SEARCH(\">\",'CFR - XML import'!$A140,1)+1,SEARCH(\"/\",'CFR - XML import'!$A140,1)-SEARCH(\">\",'CFR - XML import'!$A140,1)-2)))","v":0},{"$f":"IF(ISERROR(FIND(AQ$3,'CFR - XML import'!$A140)),0,VALUE(MID('CFR - XML import'!$A140,SEARCH(\">\",'CFR - XML import'!$A140,1)+1,SEARCH(\"/\",'CFR - XML import'!$A140,1)-SEARCH(\">\",'CFR - XML import'!$A140,1)-2)))","v":0},{"$f":"IF(ISERROR(FIND(AR$3,'CFR - XML import'!$A140)),0,VALUE(MID('CFR - XML import'!$A140,SEARCH(\">\",'CFR - XML import'!$A140,1)+1,SEARCH(\"/\",'CFR - XML import'!$A140,1)-SEARCH(\">\",'CFR - XML import'!$A140,1)-2)))","v":0},{"$f":"IF(ISERROR(FIND(AS$3,'CFR - XML import'!$A140)),0,VALUE(MID('CFR - XML import'!$A140,SEARCH(\">\",'CFR - XML import'!$A140,1)+1,SEARCH(\"/\",'CFR - XML import'!$A140,1)-SEARCH(\">\",'CFR - XML import'!$A140,1)-2)))","v":0},{"$f":"IF(ISERROR(FIND(AT$3,'CFR - XML import'!$A140)),0,VALUE(MID('CFR - XML import'!$A140,SEARCH(\">\",'CFR - XML import'!$A140,1)+1,SEARCH(\"/\",'CFR - XML import'!$A140,1)-SEARCH(\">\",'CFR - XML import'!$A140,1)-2)))","v":0},{"$f":"IF(ISERROR(FIND(AU$3,'CFR - XML import'!$A140)),0,VALUE(MID('CFR - XML import'!$A140,SEARCH(\">\",'CFR - XML import'!$A140,1)+1,SEARCH(\"/\",'CFR - XML import'!$A140,1)-SEARCH(\">\",'CFR - XML import'!$A140,1)-2)))","v":0},{"$f":"IF(ISERROR(FIND(AV$3,'CFR - XML import'!$A140)),0,VALUE(MID('CFR - XML import'!$A140,SEARCH(\">\",'CFR - XML import'!$A140,1)+1,SEARCH(\"/\",'CFR - XML import'!$A140,1)-SEARCH(\">\",'CFR - XML import'!$A140,1)-2)))","v":0},{"$f":"IF(ISERROR(FIND(AW$3,'CFR - XML import'!$A140)),0,VALUE(MID('CFR - XML import'!$A140,SEARCH(\">\",'CFR - XML import'!$A140,1)+1,SEARCH(\"/\",'CFR - XML import'!$A140,1)-SEARCH(\">\",'CFR - XML import'!$A140,1)-2)))","v":0},{"$f":"IF(ISERROR(FIND(AX$3,'CFR - XML import'!$A140)),0,VALUE(MID('CFR - XML import'!$A140,SEARCH(\">\",'CFR - XML import'!$A140,1)+1,SEARCH(\"/\",'CFR - XML import'!$A140,1)-SEARCH(\">\",'CFR - XML import'!$A140,1)-2)))","v":0},{"$f":"IF(ISERROR(FIND(AY$3,'CFR - XML import'!$A140)),0,VALUE(MID('CFR - XML import'!$A140,SEARCH(\">\",'CFR - XML import'!$A140,1)+1,SEARCH(\"/\",'CFR - XML import'!$A140,1)-SEARCH(\">\",'CFR - XML import'!$A140,1)-2)))","v":0},{"$f":"IF(ISERROR(FIND(AZ$3,'CFR - XML import'!$A140)),0,VALUE(MID('CFR - XML import'!$A140,SEARCH(\">\",'CFR - XML import'!$A140,1)+1,SEARCH(\"/\",'CFR - XML import'!$A140,1)-SEARCH(\">\",'CFR - XML import'!$A140,1)-2)))","v":0},{"$f":"IF(ISERROR(FIND(BA$3,'CFR - XML import'!$A140)),0,VALUE(MID('CFR - XML import'!$A140,SEARCH(\">\",'CFR - XML import'!$A140,1)+1,SEARCH(\"/\",'CFR - XML import'!$A140,1)-SEARCH(\">\",'CFR - XML import'!$A140,1)-2)))","v":0},{"$f":"IF(ISERROR(FIND(BB$3,'CFR - XML import'!$A140)),0,VALUE(MID('CFR - XML import'!$A140,SEARCH(\">\",'CFR - XML import'!$A140,1)+1,SEARCH(\"/\",'CFR - XML import'!$A140,1)-SEARCH(\">\",'CFR - XML import'!$A140,1)-2)))","v":0},{"$f":"IF(ISERROR(FIND(BC$3,'CFR - XML import'!$A140)),0,VALUE(MID('CFR - XML import'!$A140,SEARCH(\">\",'CFR - XML import'!$A140,1)+1,SEARCH(\"/\",'CFR - XML import'!$A140,1)-SEARCH(\">\",'CFR - XML import'!$A140,1)-2)))","v":0},{"$f":"IF(ISERROR(FIND(BD$3,'CFR - XML import'!$A140)),0,VALUE(MID('CFR - XML import'!$A140,SEARCH(\">\",'CFR - XML import'!$A140,1)+1,SEARCH(\"/\",'CFR - XML import'!$A140,1)-SEARCH(\">\",'CFR - XML import'!$A140,1)-2)))","v":0},{"$f":"IF(ISERROR(FIND(BE$3,'CFR - XML import'!$A140)),0,VALUE(MID('CFR - XML import'!$A140,SEARCH(\">\",'CFR - XML import'!$A140,1)+1,SEARCH(\"/\",'CFR - XML import'!$A140,1)-SEARCH(\">\",'CFR - XML import'!$A140,1)-2)))","v":0},{"$f":"IF(ISERROR(FIND(BF$3,'CFR - XML import'!$A140)),0,VALUE(MID('CFR - XML import'!$A140,SEARCH(\">\",'CFR - XML import'!$A140,1)+1,SEARCH(\"/\",'CFR - XML import'!$A140,1)-SEARCH(\">\",'CFR - XML import'!$A140,1)-2)))","v":0},{"$f":"IF(ISERROR(FIND(BG$3,'CFR - XML import'!$A140)),0,VALUE(MID('CFR - XML import'!$A140,SEARCH(\">\",'CFR - XML import'!$A140,1)+1,SEARCH(\"/\",'CFR - XML import'!$A140,1)-SEARCH(\">\",'CFR - XML import'!$A140,1)-2)))","v":0},{"$f":"IF(ISERROR(FIND(BH$3,'CFR - XML import'!$A140)),0,VALUE(MID('CFR - XML import'!$A140,SEARCH(\">\",'CFR - XML import'!$A140,1)+1,SEARCH(\"/\",'CFR - XML import'!$A140,1)-SEARCH(\">\",'CFR - XML import'!$A140,1)-2)))","v":0},{"$f":"IF(ISERROR(FIND(BI$3,'CFR - XML import'!$A140)),0,VALUE(MID('CFR - XML import'!$A140,SEARCH(\">\",'CFR - XML import'!$A140,1)+1,SEARCH(\"/\",'CFR - XML import'!$A140,1)-SEARCH(\">\",'CFR - XML import'!$A140,1)-2)))","v":0},{"$f":"IF(ISERROR(FIND(BJ$3,'CFR - XML import'!$A140)),0,VALUE(MID('CFR - XML import'!$A140,SEARCH(\">\",'CFR - XML import'!$A140,1)+1,SEARCH(\"/\",'CFR - XML import'!$A140,1)-SEARCH(\">\",'CFR - XML import'!$A140,1)-2)))","v":0},{"$f":"IF(ISERROR(FIND(BK$3,'CFR - XML import'!$A140)),0,VALUE(MID('CFR - XML import'!$A140,SEARCH(\">\",'CFR - XML import'!$A140,1)+1,SEARCH(\"/\",'CFR - XML import'!$A140,1)-SEARCH(\">\",'CFR - XML import'!$A140,1)-2)))","v":0},{"$f":"IF(ISERROR(FIND(BL$3,'CFR - XML import'!$A140)),0,VALUE(MID('CFR - XML import'!$A140,SEARCH(\">\",'CFR - XML import'!$A140,1)+1,SEARCH(\"/\",'CFR - XML import'!$A140,1)-SEARCH(\">\",'CFR - XML import'!$A140,1)-2)))","v":0},{"$f":"IF(ISERROR(FIND(BM$3,'CFR - XML import'!$A140)),0,VALUE(MID('CFR - XML import'!$A140,SEARCH(\">\",'CFR - XML import'!$A140,1)+1,SEARCH(\"/\",'CFR - XML import'!$A140,1)-SEARCH(\">\",'CFR - XML import'!$A140,1)-2)))","v":0},{"$f":"IF(ISERROR(FIND(BN$3,'CFR - XML import'!$A140)),0,VALUE(MID('CFR - XML import'!$A140,SEARCH(\">\",'CFR - XML import'!$A140,1)+1,SEARCH(\"/\",'CFR - XML import'!$A140,1)-SEARCH(\">\",'CFR - XML import'!$A140,1)-2)))","v":0},{"$f":"IF(ISERROR(FIND(BO$3,'CFR - XML import'!$A140)),0,VALUE(MID('CFR - XML import'!$A140,SEARCH(\">\",'CFR - XML import'!$A140,1)+1,SEARCH(\"/\",'CFR - XML import'!$A140,1)-SEARCH(\">\",'CFR - XML import'!$A140,1)-2)))","v":0},{"$f":"IF(ISERROR(FIND(BP$3,'CFR - XML import'!$A140)),0,VALUE(MID('CFR - XML import'!$A140,SEARCH(\">\",'CFR - XML import'!$A140,1)+1,SEARCH(\"/\",'CFR - XML import'!$A140,1)-SEARCH(\">\",'CFR - XML import'!$A140,1)-2)))","v":0},{"$f":"IF(ISERROR(FIND(BQ$3,'CFR - XML import'!$A140)),0,VALUE(MID('CFR - XML import'!$A140,SEARCH(\">\",'CFR - XML import'!$A140,1)+1,SEARCH(\"/\",'CFR - XML import'!$A140,1)-SEARCH(\">\",'CFR - XML import'!$A140,1)-2)))","v":0},{"$f":"IF(ISERROR(FIND(BR$3,'CFR - XML import'!$A140)),0,VALUE(MID('CFR - XML import'!$A140,SEARCH(\">\",'CFR - XML import'!$A140,1)+1,SEARCH(\"/\",'CFR - XML import'!$A140,1)-SEARCH(\">\",'CFR - XML import'!$A140,1)-2)))","v":0},{"$f":"IF(ISERROR(FIND(BS$3,'CFR - XML import'!$A140)),0,VALUE(MID('CFR - XML import'!$A140,SEARCH(\">\",'CFR - XML import'!$A140,1)+1,SEARCH(\"/\",'CFR - XML import'!$A140,1)-SEARCH(\">\",'CFR - XML import'!$A140,1)-2)))","v":0},{"$f":"IF(ISERROR(FIND(BT$3,'CFR - XML import'!$A140)),0,VALUE(MID('CFR - XML import'!$A140,SEARCH(\">\",'CFR - XML import'!$A140,1)+1,SEARCH(\"/\",'CFR - XML import'!$A140,1)-SEARCH(\">\",'CFR - XML import'!$A140,1)-2)))","v":0},{"$f":"IF(ISERROR(FIND(BU$3,'CFR - XML import'!$A140)),0,VALUE(MID('CFR - XML import'!$A140,SEARCH(\">\",'CFR - XML import'!$A140,1)+1,SEARCH(\"/\",'CFR - XML import'!$A140,1)-SEARCH(\">\",'CFR - XML import'!$A140,1)-2)))","v":0},{"$f":"IF(ISERROR(FIND(BV$3,'CFR - XML import'!$A140)),0,VALUE(MID('CFR - XML import'!$A140,SEARCH(\">\",'CFR - XML import'!$A140,1)+1,SEARCH(\"/\",'CFR - XML import'!$A140,1)-SEARCH(\">\",'CFR - XML import'!$A140,1)-2)))","v":0},{"$f":"IF(ISERROR(FIND(BW$3,'CFR - XML import'!$A140)),0,VALUE(MID('CFR - XML import'!$A140,SEARCH(\">\",'CFR - XML import'!$A140,1)+1,SEARCH(\"/\",'CFR - XML import'!$A140,1)-SEARCH(\">\",'CFR - XML import'!$A140,1)-2)))","v":0},{"$f":"IF(ISERROR(FIND(BX$3,'CFR - XML import'!$A140)),0,VALUE(MID('CFR - XML import'!$A140,SEARCH(\">\",'CFR - XML import'!$A140,1)+1,SEARCH(\"/\",'CFR - XML import'!$A140,1)-SEARCH(\">\",'CFR - XML import'!$A140,1)-2)))","v":0},{"$f":"IF(ISERROR(FIND(BY$3,'CFR - XML import'!$A140)),0,VALUE(MID('CFR - XML import'!$A140,SEARCH(\">\",'CFR - XML import'!$A140,1)+1,SEARCH(\"/\",'CFR - XML import'!$A140,1)-SEARCH(\">\",'CFR - XML import'!$A140,1)-2)))","v":0},{"$f":"IF(ISERROR(FIND(BZ$3,'CFR - XML import'!$A140)),0,VALUE(MID('CFR - XML import'!$A140,SEARCH(\">\",'CFR - XML import'!$A140,1)+1,SEARCH(\"/\",'CFR - XML import'!$A140,1)-SEARCH(\">\",'CFR - XML import'!$A140,1)-2)))","v":0},null,null,null,null,null,null,{"$f":"IF(ISERROR(IF(MID('CFR - XML import'!$A140,LEN($CF$4)+1,LEN('CFR - XML import'!$A140)-(2*LEN($CF$4)+1))=\"RMMS\",1,IF(MID('CFR - XML import'!$A140,LEN(\"    <InputSystem>\")+1,LEN('CFR - XML import'!$A140)-(LEN(\"    <InputSystem>\")+LEN($CF$4)+1))=\"SIMS\",2,0))),0,IF(MID('CFR - XML import'!$A140,LEN($CF$4)+1,LEN('CFR - XML import'!$A140)-(2*LEN($CF$4)+1))=\"RMMS\",1,IF(MID('CFR - XML import'!$A140,LEN(\"    <InputSystem>\")+1,LEN('CFR - XML import'!$A140)-(LEN(\"    <InputSystem>\")+LEN($CF$4)+1))=\"SIMS\",2,0)))","v":0},{"$f":"IF(ISERROR(FIND(CH$3,'CFR - XML import'!$A140)),0,MID('CFR - XML import'!$A140,SEARCH(\">\",'CFR - XML import'!$A140,1)+1,SEARCH(\"/\",'CFR - XML import'!$A140,1)-SEARCH(\">\",'CFR - XML import'!$A140,1)-2))","v":0},{"$f":"IF(ISERROR(FIND(CI$3,'CFR - XML import'!$A140)),0,MID('CFR - XML import'!$A140,SEARCH(\">\",'CFR - XML import'!$A140,1)+1,SEARCH(\"/\",'CFR - XML import'!$A140,1)-SEARCH(\">\",'CFR - XML import'!$A140,1)-2))","v":0},{"$f":"IF(ISERROR(FIND(CJ$3,'CFR - XML import'!$A140)),0,MID('CFR - XML import'!$A140,SEARCH(\">\",'CFR - XML import'!$A140,1)+1,SEARCH(\"/\",'CFR - XML import'!$A140,1)-SEARCH(\">\",'CFR - XML import'!$A140,1)-2))","v":0},{"$f":"IF(ISERROR(FIND(CK$3,'CFR - XML import'!$A140)),0,MID('CFR - XML import'!$A140,SEARCH(\">\",'CFR - XML import'!$A140,1)+1,SEARCH(\"/\",'CFR - XML import'!$A140,1)-SEARCH(\">\",'CFR - XML import'!$A140,1)-2))","v":0},{"$f":"IF(ISERROR(FIND(CL$3,'CFR - XML import'!$A140)),0,MID('CFR - XML import'!$A140,SEARCH(\">\",'CFR - XML import'!$A140,1)+1,SEARCH(\"/\",'CFR - XML import'!$A140,1)-SEARCH(\">\",'CFR - XML import'!$A140,1)-2))","v":0}]
[{"$f":"IF(AND('CFR - XML import'!A141<>\"\",LEFT('CFR - XML import'!A141,1)<>\"<\",LEFT('CFR - XML import'!A141,3)<>\"  <\",LEFT('CFR - XML import'!A141,5)<>\"    <\",LEFT('CFR - XML import'!A141,7)<>\"      <\",LEFT('CFR - XML import'!A141,9)<>\"        <\",$B$1=\"SIMS\"),'CFR - XML import'!A141,IF(AND(LEFT('CFR - XML import'!A141,9)=\"<Details>\",$B$1=\"RM\"),'CFR - XML import'!A141,\"\"))","v":""},{"$f":"IF(ISERROR(FIND(B$3,'CFR - XML import'!$A141)),0,VALUE(MID('CFR - XML import'!$A141,SEARCH(\">\",'CFR - XML import'!$A141,1)+1,SEARCH(\"/\",'CFR - XML import'!$A141,1)-SEARCH(\">\",'CFR - XML import'!$A141,1)-2)))","v":0},null,{"$f":"IF(ISERROR(FIND(D$3,'CFR - XML import'!$A141)),0,MID('CFR - XML import'!$A141,SEARCH(\">\",'CFR - XML import'!$A141,1)+1,SEARCH(\"/\",'CFR - XML import'!$A141,1)-SEARCH(\">\",'CFR - XML import'!$A141,1)-2))","v":0},{"$f":"IF(ISERROR(FIND(E$3,'CFR - XML import'!$A141)),0,MID('CFR - XML import'!$A141,SEARCH(\">\",'CFR - XML import'!$A141,1)+1,SEARCH(\"/\",'CFR - XML import'!$A141,1)-SEARCH(\">\",'CFR - XML import'!$A141,1)-2))","v":0},{"$f":"IF($B$1=\"SIMS\",IF(ISERROR(FIND(F$3,'CFR - XML import'!$A141)),0,VALUE(MID('CFR - XML import'!$A141,15,10))),IF(ISERROR(FIND(F$3,'CFR - XML import'!$A141)),0,VALUE(MID('CFR - XML import'!$A141,11,10))))","v":"00:00:00"},{"$f":"IF(ISERROR(FIND(G$3,'CFR - XML import'!$A141)),0,VALUE(MID('CFR - XML import'!$A141,SEARCH(\">\",'CFR - XML import'!$A141,1)+1,SEARCH(\"/\",'CFR - XML import'!$A141,1)-SEARCH(\">\",'CFR - XML import'!$A141,1)-2)))","v":0},{"$f":"IF(ISERROR(FIND(H$3,'CFR - XML import'!$A141)),0,VALUE(MID('CFR - XML import'!$A141,SEARCH(\">\",'CFR - XML import'!$A141,1)+1,SEARCH(\"/\",'CFR - XML import'!$A141,1)-SEARCH(\">\",'CFR - XML import'!$A141,1)-2)))","v":0},{"$f":"IF(ISERROR(FIND(I$3,'CFR - XML import'!$A141)),0,VALUE(MID('CFR - XML import'!$A141,SEARCH(\">\",'CFR - XML import'!$A141,1)+1,SEARCH(\"/\",'CFR - XML import'!$A141,1)-SEARCH(\">\",'CFR - XML import'!$A141,1)-2)))","v":0},{"$f":"IF(ISERROR(FIND(J$3,'CFR - XML import'!$A141)),0,VALUE(MID('CFR - XML import'!$A141,SEARCH(\">\",'CFR - XML import'!$A141,1)+1,SEARCH(\"/\",'CFR - XML import'!$A141,1)-SEARCH(\">\",'CFR - XML import'!$A141,1)-2)))","v":0},{"$f":"IF(ISERROR(FIND(K$3,'CFR - XML import'!$A141)),0,VALUE(MID('CFR - XML import'!$A141,SEARCH(\">\",'CFR - XML import'!$A141,1)+1,SEARCH(\"/\",'CFR - XML import'!$A141,1)-SEARCH(\">\",'CFR - XML import'!$A141,1)-2)))","v":0},{"$f":"IF(ISERROR(FIND(L$3,'CFR - XML import'!$A141)),0,VALUE(MID('CFR - XML import'!$A141,SEARCH(\">\",'CFR - XML import'!$A141,1)+1,SEARCH(\"/\",'CFR - XML import'!$A141,1)-SEARCH(\">\",'CFR - XML import'!$A141,1)-2)))","v":0},{"$f":"IF(ISERROR(FIND(M$3,'CFR - XML import'!$A141)),0,VALUE(MID('CFR - XML import'!$A141,SEARCH(\">\",'CFR - XML import'!$A141,1)+1,SEARCH(\"/\",'CFR - XML import'!$A141,1)-SEARCH(\">\",'CFR - XML import'!$A141,1)-2)))","v":0},{"$f":"IF(ISERROR(FIND(N$3,'CFR - XML import'!$A141)),0,VALUE(MID('CFR - XML import'!$A141,SEARCH(\">\",'CFR - XML import'!$A141,1)+1,SEARCH(\"/\",'CFR - XML import'!$A141,1)-SEARCH(\">\",'CFR - XML import'!$A141,1)-2)))","v":0},{"$f":"IF(ISERROR(FIND(O$3,'CFR - XML import'!$A141)),0,VALUE(MID('CFR - XML import'!$A141,SEARCH(\">\",'CFR - XML import'!$A141,1)+1,SEARCH(\"/\",'CFR - XML import'!$A141,1)-SEARCH(\">\",'CFR - XML import'!$A141,1)-2)))","v":0},{"$f":"IF(ISERROR(FIND(P$3,'CFR - XML import'!$A141)),0,VALUE(MID('CFR - XML import'!$A141,SEARCH(\">\",'CFR - XML import'!$A141,1)+1,SEARCH(\"/\",'CFR - XML import'!$A141,1)-SEARCH(\">\",'CFR - XML import'!$A141,1)-2)))","v":0},{"$f":"IF(ISERROR(FIND(Q$3,'CFR - XML import'!$A141)),0,VALUE(MID('CFR - XML import'!$A141,SEARCH(\">\",'CFR - XML import'!$A141,1)+1,SEARCH(\"/\",'CFR - XML import'!$A141,1)-SEARCH(\">\",'CFR - XML import'!$A141,1)-2)))","v":0},{"$f":"IF(ISERROR(FIND(R$3,'CFR - XML import'!$A141)),0,VALUE(MID('CFR - XML import'!$A141,SEARCH(\">\",'CFR - XML import'!$A141,1)+1,SEARCH(\"/\",'CFR - XML import'!$A141,1)-SEARCH(\">\",'CFR - XML import'!$A141,1)-2)))","v":0},{"$f":"IF(ISERROR(FIND(S$3,'CFR - XML import'!$A141)),0,VALUE(MID('CFR - XML import'!$A141,SEARCH(\">\",'CFR - XML import'!$A141,1)+1,SEARCH(\"/\",'CFR - XML import'!$A141,1)-SEARCH(\">\",'CFR - XML import'!$A141,1)-2)))","v":0},{"$f":"IF(ISERROR(FIND(T$3,'CFR - XML import'!$A141)),0,VALUE(MID('CFR - XML import'!$A141,SEARCH(\">\",'CFR - XML import'!$A141,1)+1,SEARCH(\"/\",'CFR - XML import'!$A141,1)-SEARCH(\">\",'CFR - XML import'!$A141,1)-2)))","v":0},{"$f":"IF(ISERROR(FIND(U$3,'CFR - XML import'!$A141)),0,VALUE(MID('CFR - XML import'!$A141,SEARCH(\">\",'CFR - XML import'!$A141,1)+1,SEARCH(\"/\",'CFR - XML import'!$A141,1)-SEARCH(\">\",'CFR - XML import'!$A141,1)-2)))","v":0},{"$f":"IF(ISERROR(FIND(V$3,'CFR - XML import'!$A141)),0,VALUE(MID('CFR - XML import'!$A141,SEARCH(\">\",'CFR - XML import'!$A141,1)+1,SEARCH(\"/\",'CFR - XML import'!$A141,1)-SEARCH(\">\",'CFR - XML import'!$A141,1)-2)))","v":0},{"$f":"IF(ISERROR(FIND(W$3,'CFR - XML import'!$A141)),0,VALUE(MID('CFR - XML import'!$A141,SEARCH(\">\",'CFR - XML import'!$A141,1)+1,SEARCH(\"/\",'CFR - XML import'!$A141,1)-SEARCH(\">\",'CFR - XML import'!$A141,1)-2)))","v":0},null,{"$f":"IF(ISERROR(FIND(Y$3,'CFR - XML import'!$A141)),0,VALUE(MID('CFR - XML import'!$A141,SEARCH(\">\",'CFR - XML import'!$A141,1)+1,SEARCH(\"/\",'CFR - XML import'!$A141,1)-SEARCH(\">\",'CFR - XML import'!$A141,1)-2)))","v":0},{"$f":"IF(ISERROR(FIND(Z$3,'CFR - XML import'!$A141)),0,VALUE(MID('CFR - XML import'!$A141,SEARCH(\">\",'CFR - XML import'!$A141,1)+1,SEARCH(\"/\",'CFR - XML import'!$A141,1)-SEARCH(\">\",'CFR - XML import'!$A141,1)-2)))","v":0},{"$f":"IF(ISERROR(FIND(AA$3,'CFR - XML import'!$A141)),0,VALUE(MID('CFR - XML import'!$A141,SEARCH(\">\",'CFR - XML import'!$A141,1)+1,SEARCH(\"/\",'CFR - XML import'!$A141,1)-SEARCH(\">\",'CFR - XML import'!$A141,1)-2)))","v":0},{"$f":"IF(ISERROR(FIND(AB$3,'CFR - XML import'!$A141)),0,VALUE(MID('CFR - XML import'!$A141,SEARCH(\">\",'CFR - XML import'!$A141,1)+1,SEARCH(\"/\",'CFR - XML import'!$A141,1)-SEARCH(\">\",'CFR - XML import'!$A141,1)-2)))","v":0},{"$f":"IF(ISERROR(FIND(AC$3,'CFR - XML import'!$A141)),0,VALUE(MID('CFR - XML import'!$A141,SEARCH(\">\",'CFR - XML import'!$A141,1)+1,SEARCH(\"/\",'CFR - XML import'!$A141,1)-SEARCH(\">\",'CFR - XML import'!$A141,1)-2)))","v":0},{"$f":"IF(ISERROR(FIND(AD$3,'CFR - XML import'!$A141)),0,VALUE(MID('CFR - XML import'!$A141,SEARCH(\">\",'CFR - XML import'!$A141,1)+1,SEARCH(\"/\",'CFR - XML import'!$A141,1)-SEARCH(\">\",'CFR - XML import'!$A141,1)-2)))","v":0},{"$f":"IF(ISERROR(FIND(AE$3,'CFR - XML import'!$A141)),0,VALUE(MID('CFR - XML import'!$A141,SEARCH(\">\",'CFR - XML import'!$A141,1)+1,SEARCH(\"/\",'CFR - XML import'!$A141,1)-SEARCH(\">\",'CFR - XML import'!$A141,1)-2)))","v":0},{"$f":"IF(ISERROR(FIND(AF$3,'CFR - XML import'!$A141)),0,VALUE(MID('CFR - XML import'!$A141,SEARCH(\">\",'CFR - XML import'!$A141,1)+1,SEARCH(\"/\",'CFR - XML import'!$A141,1)-SEARCH(\">\",'CFR - XML import'!$A141,1)-2)))","v":0},{"$f":"IF(ISERROR(FIND(AG$3,'CFR - XML import'!$A141)),0,VALUE(MID('CFR - XML import'!$A141,SEARCH(\">\",'CFR - XML import'!$A141,1)+1,SEARCH(\"/\",'CFR - XML import'!$A141,1)-SEARCH(\">\",'CFR - XML import'!$A141,1)-2)))","v":0},{"$f":"IF(ISERROR(FIND(AH$3,'CFR - XML import'!$A141)),0,VALUE(MID('CFR - XML import'!$A141,SEARCH(\">\",'CFR - XML import'!$A141,1)+1,SEARCH(\"/\",'CFR - XML import'!$A141,1)-SEARCH(\">\",'CFR - XML import'!$A141,1)-2)))","v":0},{"$f":"IF(ISERROR(FIND(AI$3,'CFR - XML import'!$A141)),0,VALUE(MID('CFR - XML import'!$A141,SEARCH(\">\",'CFR - XML import'!$A141,1)+1,SEARCH(\"/\",'CFR - XML import'!$A141,1)-SEARCH(\">\",'CFR - XML import'!$A141,1)-2)))","v":0},{"$f":"IF(ISERROR(FIND(AJ$3,'CFR - XML import'!$A141)),0,VALUE(MID('CFR - XML import'!$A141,SEARCH(\">\",'CFR - XML import'!$A141,1)+1,SEARCH(\"/\",'CFR - XML import'!$A141,1)-SEARCH(\">\",'CFR - XML import'!$A141,1)-2)))","v":0},{"$f":"IF(ISERROR(FIND(AK$3,'CFR - XML import'!$A141)),0,VALUE(MID('CFR - XML import'!$A141,SEARCH(\">\",'CFR - XML import'!$A141,1)+1,SEARCH(\"/\",'CFR - XML import'!$A141,1)-SEARCH(\">\",'CFR - XML import'!$A141,1)-2)))","v":0},{"$f":"IF(ISERROR(FIND(AL$3,'CFR - XML import'!$A141)),0,VALUE(MID('CFR - XML import'!$A141,SEARCH(\">\",'CFR - XML import'!$A141,1)+1,SEARCH(\"/\",'CFR - XML import'!$A141,1)-SEARCH(\">\",'CFR - XML import'!$A141,1)-2)))","v":0},{"$f":"IF(ISERROR(FIND(AM$3,'CFR - XML import'!$A141)),0,VALUE(MID('CFR - XML import'!$A141,SEARCH(\">\",'CFR - XML import'!$A141,1)+1,SEARCH(\"/\",'CFR - XML import'!$A141,1)-SEARCH(\">\",'CFR - XML import'!$A141,1)-2)))","v":0},{"$f":"IF(ISERROR(FIND(AN$3,'CFR - XML import'!$A141)),0,VALUE(MID('CFR - XML import'!$A141,SEARCH(\">\",'CFR - XML import'!$A141,1)+1,SEARCH(\"/\",'CFR - XML import'!$A141,1)-SEARCH(\">\",'CFR - XML import'!$A141,1)-2)))","v":0},{"$f":"IF(ISERROR(FIND(AO$3,'CFR - XML import'!$A141)),0,VALUE(MID('CFR - XML import'!$A141,SEARCH(\">\",'CFR - XML import'!$A141,1)+1,SEARCH(\"/\",'CFR - XML import'!$A141,1)-SEARCH(\">\",'CFR - XML import'!$A141,1)-2)))","v":0},{"$f":"IF(ISERROR(FIND(AP$3,'CFR - XML import'!$A141)),0,VALUE(MID('CFR - XML import'!$A141,SEARCH(\">\",'CFR - XML import'!$A141,1)+1,SEARCH(\"/\",'CFR - XML import'!$A141,1)-SEARCH(\">\",'CFR - XML import'!$A141,1)-2)))","v":0},{"$f":"IF(ISERROR(FIND(AQ$3,'CFR - XML import'!$A141)),0,VALUE(MID('CFR - XML import'!$A141,SEARCH(\">\",'CFR - XML import'!$A141,1)+1,SEARCH(\"/\",'CFR - XML import'!$A141,1)-SEARCH(\">\",'CFR - XML import'!$A141,1)-2)))","v":0},{"$f":"IF(ISERROR(FIND(AR$3,'CFR - XML import'!$A141)),0,VALUE(MID('CFR - XML import'!$A141,SEARCH(\">\",'CFR - XML import'!$A141,1)+1,SEARCH(\"/\",'CFR - XML import'!$A141,1)-SEARCH(\">\",'CFR - XML import'!$A141,1)-2)))","v":0},{"$f":"IF(ISERROR(FIND(AS$3,'CFR - XML import'!$A141)),0,VALUE(MID('CFR - XML import'!$A141,SEARCH(\">\",'CFR - XML import'!$A141,1)+1,SEARCH(\"/\",'CFR - XML import'!$A141,1)-SEARCH(\">\",'CFR - XML import'!$A141,1)-2)))","v":0},{"$f":"IF(ISERROR(FIND(AT$3,'CFR - XML import'!$A141)),0,VALUE(MID('CFR - XML import'!$A141,SEARCH(\">\",'CFR - XML import'!$A141,1)+1,SEARCH(\"/\",'CFR - XML import'!$A141,1)-SEARCH(\">\",'CFR - XML import'!$A141,1)-2)))","v":0},{"$f":"IF(ISERROR(FIND(AU$3,'CFR - XML import'!$A141)),0,VALUE(MID('CFR - XML import'!$A141,SEARCH(\">\",'CFR - XML import'!$A141,1)+1,SEARCH(\"/\",'CFR - XML import'!$A141,1)-SEARCH(\">\",'CFR - XML import'!$A141,1)-2)))","v":0},{"$f":"IF(ISERROR(FIND(AV$3,'CFR - XML import'!$A141)),0,VALUE(MID('CFR - XML import'!$A141,SEARCH(\">\",'CFR - XML import'!$A141,1)+1,SEARCH(\"/\",'CFR - XML import'!$A141,1)-SEARCH(\">\",'CFR - XML import'!$A141,1)-2)))","v":0},{"$f":"IF(ISERROR(FIND(AW$3,'CFR - XML import'!$A141)),0,VALUE(MID('CFR - XML import'!$A141,SEARCH(\">\",'CFR - XML import'!$A141,1)+1,SEARCH(\"/\",'CFR - XML import'!$A141,1)-SEARCH(\">\",'CFR - XML import'!$A141,1)-2)))","v":0},{"$f":"IF(ISERROR(FIND(AX$3,'CFR - XML import'!$A141)),0,VALUE(MID('CFR - XML import'!$A141,SEARCH(\">\",'CFR - XML import'!$A141,1)+1,SEARCH(\"/\",'CFR - XML import'!$A141,1)-SEARCH(\">\",'CFR - XML import'!$A141,1)-2)))","v":0},{"$f":"IF(ISERROR(FIND(AY$3,'CFR - XML import'!$A141)),0,VALUE(MID('CFR - XML import'!$A141,SEARCH(\">\",'CFR - XML import'!$A141,1)+1,SEARCH(\"/\",'CFR - XML import'!$A141,1)-SEARCH(\">\",'CFR - XML import'!$A141,1)-2)))","v":0},{"$f":"IF(ISERROR(FIND(AZ$3,'CFR - XML import'!$A141)),0,VALUE(MID('CFR - XML import'!$A141,SEARCH(\">\",'CFR - XML import'!$A141,1)+1,SEARCH(\"/\",'CFR - XML import'!$A141,1)-SEARCH(\">\",'CFR - XML import'!$A141,1)-2)))","v":0},{"$f":"IF(ISERROR(FIND(BA$3,'CFR - XML import'!$A141)),0,VALUE(MID('CFR - XML import'!$A141,SEARCH(\">\",'CFR - XML import'!$A141,1)+1,SEARCH(\"/\",'CFR - XML import'!$A141,1)-SEARCH(\">\",'CFR - XML import'!$A141,1)-2)))","v":0},{"$f":"IF(ISERROR(FIND(BB$3,'CFR - XML import'!$A141)),0,VALUE(MID('CFR - XML import'!$A141,SEARCH(\">\",'CFR - XML import'!$A141,1)+1,SEARCH(\"/\",'CFR - XML import'!$A141,1)-SEARCH(\">\",'CFR - XML import'!$A141,1)-2)))","v":0},{"$f":"IF(ISERROR(FIND(BC$3,'CFR - XML import'!$A141)),0,VALUE(MID('CFR - XML import'!$A141,SEARCH(\">\",'CFR - XML import'!$A141,1)+1,SEARCH(\"/\",'CFR - XML import'!$A141,1)-SEARCH(\">\",'CFR - XML import'!$A141,1)-2)))","v":0},{"$f":"IF(ISERROR(FIND(BD$3,'CFR - XML import'!$A141)),0,VALUE(MID('CFR - XML import'!$A141,SEARCH(\">\",'CFR - XML import'!$A141,1)+1,SEARCH(\"/\",'CFR - XML import'!$A141,1)-SEARCH(\">\",'CFR - XML import'!$A141,1)-2)))","v":0},{"$f":"IF(ISERROR(FIND(BE$3,'CFR - XML import'!$A141)),0,VALUE(MID('CFR - XML import'!$A141,SEARCH(\">\",'CFR - XML import'!$A141,1)+1,SEARCH(\"/\",'CFR - XML import'!$A141,1)-SEARCH(\">\",'CFR - XML import'!$A141,1)-2)))","v":0},{"$f":"IF(ISERROR(FIND(BF$3,'CFR - XML import'!$A141)),0,VALUE(MID('CFR - XML import'!$A141,SEARCH(\">\",'CFR - XML import'!$A141,1)+1,SEARCH(\"/\",'CFR - XML import'!$A141,1)-SEARCH(\">\",'CFR - XML import'!$A141,1)-2)))","v":0},{"$f":"IF(ISERROR(FIND(BG$3,'CFR - XML import'!$A141)),0,VALUE(MID('CFR - XML import'!$A141,SEARCH(\">\",'CFR - XML import'!$A141,1)+1,SEARCH(\"/\",'CFR - XML import'!$A141,1)-SEARCH(\">\",'CFR - XML import'!$A141,1)-2)))","v":0},{"$f":"IF(ISERROR(FIND(BH$3,'CFR - XML import'!$A141)),0,VALUE(MID('CFR - XML import'!$A141,SEARCH(\">\",'CFR - XML import'!$A141,1)+1,SEARCH(\"/\",'CFR - XML import'!$A141,1)-SEARCH(\">\",'CFR - XML import'!$A141,1)-2)))","v":0},{"$f":"IF(ISERROR(FIND(BI$3,'CFR - XML import'!$A141)),0,VALUE(MID('CFR - XML import'!$A141,SEARCH(\">\",'CFR - XML import'!$A141,1)+1,SEARCH(\"/\",'CFR - XML import'!$A141,1)-SEARCH(\">\",'CFR - XML import'!$A141,1)-2)))","v":0},{"$f":"IF(ISERROR(FIND(BJ$3,'CFR - XML import'!$A141)),0,VALUE(MID('CFR - XML import'!$A141,SEARCH(\">\",'CFR - XML import'!$A141,1)+1,SEARCH(\"/\",'CFR - XML import'!$A141,1)-SEARCH(\">\",'CFR - XML import'!$A141,1)-2)))","v":0},{"$f":"IF(ISERROR(FIND(BK$3,'CFR - XML import'!$A141)),0,VALUE(MID('CFR - XML import'!$A141,SEARCH(\">\",'CFR - XML import'!$A141,1)+1,SEARCH(\"/\",'CFR - XML import'!$A141,1)-SEARCH(\">\",'CFR - XML import'!$A141,1)-2)))","v":0},{"$f":"IF(ISERROR(FIND(BL$3,'CFR - XML import'!$A141)),0,VALUE(MID('CFR - XML import'!$A141,SEARCH(\">\",'CFR - XML import'!$A141,1)+1,SEARCH(\"/\",'CFR - XML import'!$A141,1)-SEARCH(\">\",'CFR - XML import'!$A141,1)-2)))","v":0},{"$f":"IF(ISERROR(FIND(BM$3,'CFR - XML import'!$A141)),0,VALUE(MID('CFR - XML import'!$A141,SEARCH(\">\",'CFR - XML import'!$A141,1)+1,SEARCH(\"/\",'CFR - XML import'!$A141,1)-SEARCH(\">\",'CFR - XML import'!$A141,1)-2)))","v":0},{"$f":"IF(ISERROR(FIND(BN$3,'CFR - XML import'!$A141)),0,VALUE(MID('CFR - XML import'!$A141,SEARCH(\">\",'CFR - XML import'!$A141,1)+1,SEARCH(\"/\",'CFR - XML import'!$A141,1)-SEARCH(\">\",'CFR - XML import'!$A141,1)-2)))","v":0},{"$f":"IF(ISERROR(FIND(BO$3,'CFR - XML import'!$A141)),0,VALUE(MID('CFR - XML import'!$A141,SEARCH(\">\",'CFR - XML import'!$A141,1)+1,SEARCH(\"/\",'CFR - XML import'!$A141,1)-SEARCH(\">\",'CFR - XML import'!$A141,1)-2)))","v":0},{"$f":"IF(ISERROR(FIND(BP$3,'CFR - XML import'!$A141)),0,VALUE(MID('CFR - XML import'!$A141,SEARCH(\">\",'CFR - XML import'!$A141,1)+1,SEARCH(\"/\",'CFR - XML import'!$A141,1)-SEARCH(\">\",'CFR - XML import'!$A141,1)-2)))","v":0},{"$f":"IF(ISERROR(FIND(BQ$3,'CFR - XML import'!$A141)),0,VALUE(MID('CFR - XML import'!$A141,SEARCH(\">\",'CFR - XML import'!$A141,1)+1,SEARCH(\"/\",'CFR - XML import'!$A141,1)-SEARCH(\">\",'CFR - XML import'!$A141,1)-2)))","v":0},{"$f":"IF(ISERROR(FIND(BR$3,'CFR - XML import'!$A141)),0,VALUE(MID('CFR - XML import'!$A141,SEARCH(\">\",'CFR - XML import'!$A141,1)+1,SEARCH(\"/\",'CFR - XML import'!$A141,1)-SEARCH(\">\",'CFR - XML import'!$A141,1)-2)))","v":0},{"$f":"IF(ISERROR(FIND(BS$3,'CFR - XML import'!$A141)),0,VALUE(MID('CFR - XML import'!$A141,SEARCH(\">\",'CFR - XML import'!$A141,1)+1,SEARCH(\"/\",'CFR - XML import'!$A141,1)-SEARCH(\">\",'CFR - XML import'!$A141,1)-2)))","v":0},{"$f":"IF(ISERROR(FIND(BT$3,'CFR - XML import'!$A141)),0,VALUE(MID('CFR - XML import'!$A141,SEARCH(\">\",'CFR - XML import'!$A141,1)+1,SEARCH(\"/\",'CFR - XML import'!$A141,1)-SEARCH(\">\",'CFR - XML import'!$A141,1)-2)))","v":0},{"$f":"IF(ISERROR(FIND(BU$3,'CFR - XML import'!$A141)),0,VALUE(MID('CFR - XML import'!$A141,SEARCH(\">\",'CFR - XML import'!$A141,1)+1,SEARCH(\"/\",'CFR - XML import'!$A141,1)-SEARCH(\">\",'CFR - XML import'!$A141,1)-2)))","v":0},{"$f":"IF(ISERROR(FIND(BV$3,'CFR - XML import'!$A141)),0,VALUE(MID('CFR - XML import'!$A141,SEARCH(\">\",'CFR - XML import'!$A141,1)+1,SEARCH(\"/\",'CFR - XML import'!$A141,1)-SEARCH(\">\",'CFR - XML import'!$A141,1)-2)))","v":0},{"$f":"IF(ISERROR(FIND(BW$3,'CFR - XML import'!$A141)),0,VALUE(MID('CFR - XML import'!$A141,SEARCH(\">\",'CFR - XML import'!$A141,1)+1,SEARCH(\"/\",'CFR - XML import'!$A141,1)-SEARCH(\">\",'CFR - XML import'!$A141,1)-2)))","v":0},{"$f":"IF(ISERROR(FIND(BX$3,'CFR - XML import'!$A141)),0,VALUE(MID('CFR - XML import'!$A141,SEARCH(\">\",'CFR - XML import'!$A141,1)+1,SEARCH(\"/\",'CFR - XML import'!$A141,1)-SEARCH(\">\",'CFR - XML import'!$A141,1)-2)))","v":0},{"$f":"IF(ISERROR(FIND(BY$3,'CFR - XML import'!$A141)),0,VALUE(MID('CFR - XML import'!$A141,SEARCH(\">\",'CFR - XML import'!$A141,1)+1,SEARCH(\"/\",'CFR - XML import'!$A141,1)-SEARCH(\">\",'CFR - XML import'!$A141,1)-2)))","v":0},{"$f":"IF(ISERROR(FIND(BZ$3,'CFR - XML import'!$A141)),0,VALUE(MID('CFR - XML import'!$A141,SEARCH(\">\",'CFR - XML import'!$A141,1)+1,SEARCH(\"/\",'CFR - XML import'!$A141,1)-SEARCH(\">\",'CFR - XML import'!$A141,1)-2)))","v":0},null,null,null,null,null,null,{"$f":"IF(ISERROR(IF(MID('CFR - XML import'!$A141,LEN($CF$4)+1,LEN('CFR - XML import'!$A141)-(2*LEN($CF$4)+1))=\"RMMS\",1,IF(MID('CFR - XML import'!$A141,LEN(\"    <InputSystem>\")+1,LEN('CFR - XML import'!$A141)-(LEN(\"    <InputSystem>\")+LEN($CF$4)+1))=\"SIMS\",2,0))),0,IF(MID('CFR - XML import'!$A141,LEN($CF$4)+1,LEN('CFR - XML import'!$A141)-(2*LEN($CF$4)+1))=\"RMMS\",1,IF(MID('CFR - XML import'!$A141,LEN(\"    <InputSystem>\")+1,LEN('CFR - XML import'!$A141)-(LEN(\"    <InputSystem>\")+LEN($CF$4)+1))=\"SIMS\",2,0)))","v":0},{"$f":"IF(ISERROR(FIND(CH$3,'CFR - XML import'!$A141)),0,MID('CFR - XML import'!$A141,SEARCH(\">\",'CFR - XML import'!$A141,1)+1,SEARCH(\"/\",'CFR - XML import'!$A141,1)-SEARCH(\">\",'CFR - XML import'!$A141,1)-2))","v":0},{"$f":"IF(ISERROR(FIND(CI$3,'CFR - XML import'!$A141)),0,MID('CFR - XML import'!$A141,SEARCH(\">\",'CFR - XML import'!$A141,1)+1,SEARCH(\"/\",'CFR - XML import'!$A141,1)-SEARCH(\">\",'CFR - XML import'!$A141,1)-2))","v":0},{"$f":"IF(ISERROR(FIND(CJ$3,'CFR - XML import'!$A141)),0,MID('CFR - XML import'!$A141,SEARCH(\">\",'CFR - XML import'!$A141,1)+1,SEARCH(\"/\",'CFR - XML import'!$A141,1)-SEARCH(\">\",'CFR - XML import'!$A141,1)-2))","v":0},{"$f":"IF(ISERROR(FIND(CK$3,'CFR - XML import'!$A141)),0,MID('CFR - XML import'!$A141,SEARCH(\">\",'CFR - XML import'!$A141,1)+1,SEARCH(\"/\",'CFR - XML import'!$A141,1)-SEARCH(\">\",'CFR - XML import'!$A141,1)-2))","v":0},{"$f":"IF(ISERROR(FIND(CL$3,'CFR - XML import'!$A141)),0,MID('CFR - XML import'!$A141,SEARCH(\">\",'CFR - XML import'!$A141,1)+1,SEARCH(\"/\",'CFR - XML import'!$A141,1)-SEARCH(\">\",'CFR - XML import'!$A141,1)-2))","v":0}]
[{"$f":"IF(AND('CFR - XML import'!A142<>\"\",LEFT('CFR - XML import'!A142,1)<>\"<\",LEFT('CFR - XML import'!A142,3)<>\"  <\",LEFT('CFR - XML import'!A142,5)<>\"    <\",LEFT('CFR - XML import'!A142,7)<>\"      <\",LEFT('CFR - XML import'!A142,9)<>\"        <\",$B$1=\"SIMS\"),'CFR - XML import'!A142,IF(AND(LEFT('CFR - XML import'!A142,9)=\"<Details>\",$B$1=\"RM\"),'CFR - XML import'!A142,\"\"))","v":""},{"$f":"IF(ISERROR(FIND(B$3,'CFR - XML import'!$A142)),0,VALUE(MID('CFR - XML import'!$A142,SEARCH(\">\",'CFR - XML import'!$A142,1)+1,SEARCH(\"/\",'CFR - XML import'!$A142,1)-SEARCH(\">\",'CFR - XML import'!$A142,1)-2)))","v":0},null,{"$f":"IF(ISERROR(FIND(D$3,'CFR - XML import'!$A142)),0,MID('CFR - XML import'!$A142,SEARCH(\">\",'CFR - XML import'!$A142,1)+1,SEARCH(\"/\",'CFR - XML import'!$A142,1)-SEARCH(\">\",'CFR - XML import'!$A142,1)-2))","v":0},{"$f":"IF(ISERROR(FIND(E$3,'CFR - XML import'!$A142)),0,MID('CFR - XML import'!$A142,SEARCH(\">\",'CFR - XML import'!$A142,1)+1,SEARCH(\"/\",'CFR - XML import'!$A142,1)-SEARCH(\">\",'CFR - XML import'!$A142,1)-2))","v":0},{"$f":"IF($B$1=\"SIMS\",IF(ISERROR(FIND(F$3,'CFR - XML import'!$A142)),0,VALUE(MID('CFR - XML import'!$A142,15,10))),IF(ISERROR(FIND(F$3,'CFR - XML import'!$A142)),0,VALUE(MID('CFR - XML import'!$A142,11,10))))","v":"00:00:00"},{"$f":"IF(ISERROR(FIND(G$3,'CFR - XML import'!$A142)),0,VALUE(MID('CFR - XML import'!$A142,SEARCH(\">\",'CFR - XML import'!$A142,1)+1,SEARCH(\"/\",'CFR - XML import'!$A142,1)-SEARCH(\">\",'CFR - XML import'!$A142,1)-2)))","v":0},{"$f":"IF(ISERROR(FIND(H$3,'CFR - XML import'!$A142)),0,VALUE(MID('CFR - XML import'!$A142,SEARCH(\">\",'CFR - XML import'!$A142,1)+1,SEARCH(\"/\",'CFR - XML import'!$A142,1)-SEARCH(\">\",'CFR - XML import'!$A142,1)-2)))","v":0},{"$f":"IF(ISERROR(FIND(I$3,'CFR - XML import'!$A142)),0,VALUE(MID('CFR - XML import'!$A142,SEARCH(\">\",'CFR - XML import'!$A142,1)+1,SEARCH(\"/\",'CFR - XML import'!$A142,1)-SEARCH(\">\",'CFR - XML import'!$A142,1)-2)))","v":0},{"$f":"IF(ISERROR(FIND(J$3,'CFR - XML import'!$A142)),0,VALUE(MID('CFR - XML import'!$A142,SEARCH(\">\",'CFR - XML import'!$A142,1)+1,SEARCH(\"/\",'CFR - XML import'!$A142,1)-SEARCH(\">\",'CFR - XML import'!$A142,1)-2)))","v":0},{"$f":"IF(ISERROR(FIND(K$3,'CFR - XML import'!$A142)),0,VALUE(MID('CFR - XML import'!$A142,SEARCH(\">\",'CFR - XML import'!$A142,1)+1,SEARCH(\"/\",'CFR - XML import'!$A142,1)-SEARCH(\">\",'CFR - XML import'!$A142,1)-2)))","v":0},{"$f":"IF(ISERROR(FIND(L$3,'CFR - XML import'!$A142)),0,VALUE(MID('CFR - XML import'!$A142,SEARCH(\">\",'CFR - XML import'!$A142,1)+1,SEARCH(\"/\",'CFR - XML import'!$A142,1)-SEARCH(\">\",'CFR - XML import'!$A142,1)-2)))","v":0},{"$f":"IF(ISERROR(FIND(M$3,'CFR - XML import'!$A142)),0,VALUE(MID('CFR - XML import'!$A142,SEARCH(\">\",'CFR - XML import'!$A142,1)+1,SEARCH(\"/\",'CFR - XML import'!$A142,1)-SEARCH(\">\",'CFR - XML import'!$A142,1)-2)))","v":0},{"$f":"IF(ISERROR(FIND(N$3,'CFR - XML import'!$A142)),0,VALUE(MID('CFR - XML import'!$A142,SEARCH(\">\",'CFR - XML import'!$A142,1)+1,SEARCH(\"/\",'CFR - XML import'!$A142,1)-SEARCH(\">\",'CFR - XML import'!$A142,1)-2)))","v":0},{"$f":"IF(ISERROR(FIND(O$3,'CFR - XML import'!$A142)),0,VALUE(MID('CFR - XML import'!$A142,SEARCH(\">\",'CFR - XML import'!$A142,1)+1,SEARCH(\"/\",'CFR - XML import'!$A142,1)-SEARCH(\">\",'CFR - XML import'!$A142,1)-2)))","v":0},{"$f":"IF(ISERROR(FIND(P$3,'CFR - XML import'!$A142)),0,VALUE(MID('CFR - XML import'!$A142,SEARCH(\">\",'CFR - XML import'!$A142,1)+1,SEARCH(\"/\",'CFR - XML import'!$A142,1)-SEARCH(\">\",'CFR - XML import'!$A142,1)-2)))","v":0},{"$f":"IF(ISERROR(FIND(Q$3,'CFR - XML import'!$A142)),0,VALUE(MID('CFR - XML import'!$A142,SEARCH(\">\",'CFR - XML import'!$A142,1)+1,SEARCH(\"/\",'CFR - XML import'!$A142,1)-SEARCH(\">\",'CFR - XML import'!$A142,1)-2)))","v":0},{"$f":"IF(ISERROR(FIND(R$3,'CFR - XML import'!$A142)),0,VALUE(MID('CFR - XML import'!$A142,SEARCH(\">\",'CFR - XML import'!$A142,1)+1,SEARCH(\"/\",'CFR - XML import'!$A142,1)-SEARCH(\">\",'CFR - XML import'!$A142,1)-2)))","v":0},{"$f":"IF(ISERROR(FIND(S$3,'CFR - XML import'!$A142)),0,VALUE(MID('CFR - XML import'!$A142,SEARCH(\">\",'CFR - XML import'!$A142,1)+1,SEARCH(\"/\",'CFR - XML import'!$A142,1)-SEARCH(\">\",'CFR - XML import'!$A142,1)-2)))","v":0},{"$f":"IF(ISERROR(FIND(T$3,'CFR - XML import'!$A142)),0,VALUE(MID('CFR - XML import'!$A142,SEARCH(\">\",'CFR - XML import'!$A142,1)+1,SEARCH(\"/\",'CFR - XML import'!$A142,1)-SEARCH(\">\",'CFR - XML import'!$A142,1)-2)))","v":0},{"$f":"IF(ISERROR(FIND(U$3,'CFR - XML import'!$A142)),0,VALUE(MID('CFR - XML import'!$A142,SEARCH(\">\",'CFR - XML import'!$A142,1)+1,SEARCH(\"/\",'CFR - XML import'!$A142,1)-SEARCH(\">\",'CFR - XML import'!$A142,1)-2)))","v":0},{"$f":"IF(ISERROR(FIND(V$3,'CFR - XML import'!$A142)),0,VALUE(MID('CFR - XML import'!$A142,SEARCH(\">\",'CFR - XML import'!$A142,1)+1,SEARCH(\"/\",'CFR - XML import'!$A142,1)-SEARCH(\">\",'CFR - XML import'!$A142,1)-2)))","v":0},{"$f":"IF(ISERROR(FIND(W$3,'CFR - XML import'!$A142)),0,VALUE(MID('CFR - XML import'!$A142,SEARCH(\">\",'CFR - XML import'!$A142,1)+1,SEARCH(\"/\",'CFR - XML import'!$A142,1)-SEARCH(\">\",'CFR - XML import'!$A142,1)-2)))","v":0},null,{"$f":"IF(ISERROR(FIND(Y$3,'CFR - XML import'!$A142)),0,VALUE(MID('CFR - XML import'!$A142,SEARCH(\">\",'CFR - XML import'!$A142,1)+1,SEARCH(\"/\",'CFR - XML import'!$A142,1)-SEARCH(\">\",'CFR - XML import'!$A142,1)-2)))","v":0},{"$f":"IF(ISERROR(FIND(Z$3,'CFR - XML import'!$A142)),0,VALUE(MID('CFR - XML import'!$A142,SEARCH(\">\",'CFR - XML import'!$A142,1)+1,SEARCH(\"/\",'CFR - XML import'!$A142,1)-SEARCH(\">\",'CFR - XML import'!$A142,1)-2)))","v":0},{"$f":"IF(ISERROR(FIND(AA$3,'CFR - XML import'!$A142)),0,VALUE(MID('CFR - XML import'!$A142,SEARCH(\">\",'CFR - XML import'!$A142,1)+1,SEARCH(\"/\",'CFR - XML import'!$A142,1)-SEARCH(\">\",'CFR - XML import'!$A142,1)-2)))","v":0},{"$f":"IF(ISERROR(FIND(AB$3,'CFR - XML import'!$A142)),0,VALUE(MID('CFR - XML import'!$A142,SEARCH(\">\",'CFR - XML import'!$A142,1)+1,SEARCH(\"/\",'CFR - XML import'!$A142,1)-SEARCH(\">\",'CFR - XML import'!$A142,1)-2)))","v":0},{"$f":"IF(ISERROR(FIND(AC$3,'CFR - XML import'!$A142)),0,VALUE(MID('CFR - XML import'!$A142,SEARCH(\">\",'CFR - XML import'!$A142,1)+1,SEARCH(\"/\",'CFR - XML import'!$A142,1)-SEARCH(\">\",'CFR - XML import'!$A142,1)-2)))","v":0},{"$f":"IF(ISERROR(FIND(AD$3,'CFR - XML import'!$A142)),0,VALUE(MID('CFR - XML import'!$A142,SEARCH(\">\",'CFR - XML import'!$A142,1)+1,SEARCH(\"/\",'CFR - XML import'!$A142,1)-SEARCH(\">\",'CFR - XML import'!$A142,1)-2)))","v":0},{"$f":"IF(ISERROR(FIND(AE$3,'CFR - XML import'!$A142)),0,VALUE(MID('CFR - XML import'!$A142,SEARCH(\">\",'CFR - XML import'!$A142,1)+1,SEARCH(\"/\",'CFR - XML import'!$A142,1)-SEARCH(\">\",'CFR - XML import'!$A142,1)-2)))","v":0},{"$f":"IF(ISERROR(FIND(AF$3,'CFR - XML import'!$A142)),0,VALUE(MID('CFR - XML import'!$A142,SEARCH(\">\",'CFR - XML import'!$A142,1)+1,SEARCH(\"/\",'CFR - XML import'!$A142,1)-SEARCH(\">\",'CFR - XML import'!$A142,1)-2)))","v":0},{"$f":"IF(ISERROR(FIND(AG$3,'CFR - XML import'!$A142)),0,VALUE(MID('CFR - XML import'!$A142,SEARCH(\">\",'CFR - XML import'!$A142,1)+1,SEARCH(\"/\",'CFR - XML import'!$A142,1)-SEARCH(\">\",'CFR - XML import'!$A142,1)-2)))","v":0},{"$f":"IF(ISERROR(FIND(AH$3,'CFR - XML import'!$A142)),0,VALUE(MID('CFR - XML import'!$A142,SEARCH(\">\",'CFR - XML import'!$A142,1)+1,SEARCH(\"/\",'CFR - XML import'!$A142,1)-SEARCH(\">\",'CFR - XML import'!$A142,1)-2)))","v":0},{"$f":"IF(ISERROR(FIND(AI$3,'CFR - XML import'!$A142)),0,VALUE(MID('CFR - XML import'!$A142,SEARCH(\">\",'CFR - XML import'!$A142,1)+1,SEARCH(\"/\",'CFR - XML import'!$A142,1)-SEARCH(\">\",'CFR - XML import'!$A142,1)-2)))","v":0},{"$f":"IF(ISERROR(FIND(AJ$3,'CFR - XML import'!$A142)),0,VALUE(MID('CFR - XML import'!$A142,SEARCH(\">\",'CFR - XML import'!$A142,1)+1,SEARCH(\"/\",'CFR - XML import'!$A142,1)-SEARCH(\">\",'CFR - XML import'!$A142,1)-2)))","v":0},{"$f":"IF(ISERROR(FIND(AK$3,'CFR - XML import'!$A142)),0,VALUE(MID('CFR - XML import'!$A142,SEARCH(\">\",'CFR - XML import'!$A142,1)+1,SEARCH(\"/\",'CFR - XML import'!$A142,1)-SEARCH(\">\",'CFR - XML import'!$A142,1)-2)))","v":0},{"$f":"IF(ISERROR(FIND(AL$3,'CFR - XML import'!$A142)),0,VALUE(MID('CFR - XML import'!$A142,SEARCH(\">\",'CFR - XML import'!$A142,1)+1,SEARCH(\"/\",'CFR - XML import'!$A142,1)-SEARCH(\">\",'CFR - XML import'!$A142,1)-2)))","v":0},{"$f":"IF(ISERROR(FIND(AM$3,'CFR - XML import'!$A142)),0,VALUE(MID('CFR - XML import'!$A142,SEARCH(\">\",'CFR - XML import'!$A142,1)+1,SEARCH(\"/\",'CFR - XML import'!$A142,1)-SEARCH(\">\",'CFR - XML import'!$A142,1)-2)))","v":0},{"$f":"IF(ISERROR(FIND(AN$3,'CFR - XML import'!$A142)),0,VALUE(MID('CFR - XML import'!$A142,SEARCH(\">\",'CFR - XML import'!$A142,1)+1,SEARCH(\"/\",'CFR - XML import'!$A142,1)-SEARCH(\">\",'CFR - XML import'!$A142,1)-2)))","v":0},{"$f":"IF(ISERROR(FIND(AO$3,'CFR - XML import'!$A142)),0,VALUE(MID('CFR - XML import'!$A142,SEARCH(\">\",'CFR - XML import'!$A142,1)+1,SEARCH(\"/\",'CFR - XML import'!$A142,1)-SEARCH(\">\",'CFR - XML import'!$A142,1)-2)))","v":0},{"$f":"IF(ISERROR(FIND(AP$3,'CFR - XML import'!$A142)),0,VALUE(MID('CFR - XML import'!$A142,SEARCH(\">\",'CFR - XML import'!$A142,1)+1,SEARCH(\"/\",'CFR - XML import'!$A142,1)-SEARCH(\">\",'CFR - XML import'!$A142,1)-2)))","v":0},{"$f":"IF(ISERROR(FIND(AQ$3,'CFR - XML import'!$A142)),0,VALUE(MID('CFR - XML import'!$A142,SEARCH(\">\",'CFR - XML import'!$A142,1)+1,SEARCH(\"/\",'CFR - XML import'!$A142,1)-SEARCH(\">\",'CFR - XML import'!$A142,1)-2)))","v":0},{"$f":"IF(ISERROR(FIND(AR$3,'CFR - XML import'!$A142)),0,VALUE(MID('CFR - XML import'!$A142,SEARCH(\">\",'CFR - XML import'!$A142,1)+1,SEARCH(\"/\",'CFR - XML import'!$A142,1)-SEARCH(\">\",'CFR - XML import'!$A142,1)-2)))","v":0},{"$f":"IF(ISERROR(FIND(AS$3,'CFR - XML import'!$A142)),0,VALUE(MID('CFR - XML import'!$A142,SEARCH(\">\",'CFR - XML import'!$A142,1)+1,SEARCH(\"/\",'CFR - XML import'!$A142,1)-SEARCH(\">\",'CFR - XML import'!$A142,1)-2)))","v":0},{"$f":"IF(ISERROR(FIND(AT$3,'CFR - XML import'!$A142)),0,VALUE(MID('CFR - XML import'!$A142,SEARCH(\">\",'CFR - XML import'!$A142,1)+1,SEARCH(\"/\",'CFR - XML import'!$A142,1)-SEARCH(\">\",'CFR - XML import'!$A142,1)-2)))","v":0},{"$f":"IF(ISERROR(FIND(AU$3,'CFR - XML import'!$A142)),0,VALUE(MID('CFR - XML import'!$A142,SEARCH(\">\",'CFR - XML import'!$A142,1)+1,SEARCH(\"/\",'CFR - XML import'!$A142,1)-SEARCH(\">\",'CFR - XML import'!$A142,1)-2)))","v":0},{"$f":"IF(ISERROR(FIND(AV$3,'CFR - XML import'!$A142)),0,VALUE(MID('CFR - XML import'!$A142,SEARCH(\">\",'CFR - XML import'!$A142,1)+1,SEARCH(\"/\",'CFR - XML import'!$A142,1)-SEARCH(\">\",'CFR - XML import'!$A142,1)-2)))","v":0},{"$f":"IF(ISERROR(FIND(AW$3,'CFR - XML import'!$A142)),0,VALUE(MID('CFR - XML import'!$A142,SEARCH(\">\",'CFR - XML import'!$A142,1)+1,SEARCH(\"/\",'CFR - XML import'!$A142,1)-SEARCH(\">\",'CFR - XML import'!$A142,1)-2)))","v":0},{"$f":"IF(ISERROR(FIND(AX$3,'CFR - XML import'!$A142)),0,VALUE(MID('CFR - XML import'!$A142,SEARCH(\">\",'CFR - XML import'!$A142,1)+1,SEARCH(\"/\",'CFR - XML import'!$A142,1)-SEARCH(\">\",'CFR - XML import'!$A142,1)-2)))","v":0},{"$f":"IF(ISERROR(FIND(AY$3,'CFR - XML import'!$A142)),0,VALUE(MID('CFR - XML import'!$A142,SEARCH(\">\",'CFR - XML import'!$A142,1)+1,SEARCH(\"/\",'CFR - XML import'!$A142,1)-SEARCH(\">\",'CFR - XML import'!$A142,1)-2)))","v":0},{"$f":"IF(ISERROR(FIND(AZ$3,'CFR - XML import'!$A142)),0,VALUE(MID('CFR - XML import'!$A142,SEARCH(\">\",'CFR - XML import'!$A142,1)+1,SEARCH(\"/\",'CFR - XML import'!$A142,1)-SEARCH(\">\",'CFR - XML import'!$A142,1)-2)))","v":0},{"$f":"IF(ISERROR(FIND(BA$3,'CFR - XML import'!$A142)),0,VALUE(MID('CFR - XML import'!$A142,SEARCH(\">\",'CFR - XML import'!$A142,1)+1,SEARCH(\"/\",'CFR - XML import'!$A142,1)-SEARCH(\">\",'CFR - XML import'!$A142,1)-2)))","v":0},{"$f":"IF(ISERROR(FIND(BB$3,'CFR - XML import'!$A142)),0,VALUE(MID('CFR - XML import'!$A142,SEARCH(\">\",'CFR - XML import'!$A142,1)+1,SEARCH(\"/\",'CFR - XML import'!$A142,1)-SEARCH(\">\",'CFR - XML import'!$A142,1)-2)))","v":0},{"$f":"IF(ISERROR(FIND(BC$3,'CFR - XML import'!$A142)),0,VALUE(MID('CFR - XML import'!$A142,SEARCH(\">\",'CFR - XML import'!$A142,1)+1,SEARCH(\"/\",'CFR - XML import'!$A142,1)-SEARCH(\">\",'CFR - XML import'!$A142,1)-2)))","v":0},{"$f":"IF(ISERROR(FIND(BD$3,'CFR - XML import'!$A142)),0,VALUE(MID('CFR - XML import'!$A142,SEARCH(\">\",'CFR - XML import'!$A142,1)+1,SEARCH(\"/\",'CFR - XML import'!$A142,1)-SEARCH(\">\",'CFR - XML import'!$A142,1)-2)))","v":0},{"$f":"IF(ISERROR(FIND(BE$3,'CFR - XML import'!$A142)),0,VALUE(MID('CFR - XML import'!$A142,SEARCH(\">\",'CFR - XML import'!$A142,1)+1,SEARCH(\"/\",'CFR - XML import'!$A142,1)-SEARCH(\">\",'CFR - XML import'!$A142,1)-2)))","v":0},{"$f":"IF(ISERROR(FIND(BF$3,'CFR - XML import'!$A142)),0,VALUE(MID('CFR - XML import'!$A142,SEARCH(\">\",'CFR - XML import'!$A142,1)+1,SEARCH(\"/\",'CFR - XML import'!$A142,1)-SEARCH(\">\",'CFR - XML import'!$A142,1)-2)))","v":0},{"$f":"IF(ISERROR(FIND(BG$3,'CFR - XML import'!$A142)),0,VALUE(MID('CFR - XML import'!$A142,SEARCH(\">\",'CFR - XML import'!$A142,1)+1,SEARCH(\"/\",'CFR - XML import'!$A142,1)-SEARCH(\">\",'CFR - XML import'!$A142,1)-2)))","v":0},{"$f":"IF(ISERROR(FIND(BH$3,'CFR - XML import'!$A142)),0,VALUE(MID('CFR - XML import'!$A142,SEARCH(\">\",'CFR - XML import'!$A142,1)+1,SEARCH(\"/\",'CFR - XML import'!$A142,1)-SEARCH(\">\",'CFR - XML import'!$A142,1)-2)))","v":0},{"$f":"IF(ISERROR(FIND(BI$3,'CFR - XML import'!$A142)),0,VALUE(MID('CFR - XML import'!$A142,SEARCH(\">\",'CFR - XML import'!$A142,1)+1,SEARCH(\"/\",'CFR - XML import'!$A142,1)-SEARCH(\">\",'CFR - XML import'!$A142,1)-2)))","v":0},{"$f":"IF(ISERROR(FIND(BJ$3,'CFR - XML import'!$A142)),0,VALUE(MID('CFR - XML import'!$A142,SEARCH(\">\",'CFR - XML import'!$A142,1)+1,SEARCH(\"/\",'CFR - XML import'!$A142,1)-SEARCH(\">\",'CFR - XML import'!$A142,1)-2)))","v":0},{"$f":"IF(ISERROR(FIND(BK$3,'CFR - XML import'!$A142)),0,VALUE(MID('CFR - XML import'!$A142,SEARCH(\">\",'CFR - XML import'!$A142,1)+1,SEARCH(\"/\",'CFR - XML import'!$A142,1)-SEARCH(\">\",'CFR - XML import'!$A142,1)-2)))","v":0},{"$f":"IF(ISERROR(FIND(BL$3,'CFR - XML import'!$A142)),0,VALUE(MID('CFR - XML import'!$A142,SEARCH(\">\",'CFR - XML import'!$A142,1)+1,SEARCH(\"/\",'CFR - XML import'!$A142,1)-SEARCH(\">\",'CFR - XML import'!$A142,1)-2)))","v":0},{"$f":"IF(ISERROR(FIND(BM$3,'CFR - XML import'!$A142)),0,VALUE(MID('CFR - XML import'!$A142,SEARCH(\">\",'CFR - XML import'!$A142,1)+1,SEARCH(\"/\",'CFR - XML import'!$A142,1)-SEARCH(\">\",'CFR - XML import'!$A142,1)-2)))","v":0},{"$f":"IF(ISERROR(FIND(BN$3,'CFR - XML import'!$A142)),0,VALUE(MID('CFR - XML import'!$A142,SEARCH(\">\",'CFR - XML import'!$A142,1)+1,SEARCH(\"/\",'CFR - XML import'!$A142,1)-SEARCH(\">\",'CFR - XML import'!$A142,1)-2)))","v":0},{"$f":"IF(ISERROR(FIND(BO$3,'CFR - XML import'!$A142)),0,VALUE(MID('CFR - XML import'!$A142,SEARCH(\">\",'CFR - XML import'!$A142,1)+1,SEARCH(\"/\",'CFR - XML import'!$A142,1)-SEARCH(\">\",'CFR - XML import'!$A142,1)-2)))","v":0},{"$f":"IF(ISERROR(FIND(BP$3,'CFR - XML import'!$A142)),0,VALUE(MID('CFR - XML import'!$A142,SEARCH(\">\",'CFR - XML import'!$A142,1)+1,SEARCH(\"/\",'CFR - XML import'!$A142,1)-SEARCH(\">\",'CFR - XML import'!$A142,1)-2)))","v":0},{"$f":"IF(ISERROR(FIND(BQ$3,'CFR - XML import'!$A142)),0,VALUE(MID('CFR - XML import'!$A142,SEARCH(\">\",'CFR - XML import'!$A142,1)+1,SEARCH(\"/\",'CFR - XML import'!$A142,1)-SEARCH(\">\",'CFR - XML import'!$A142,1)-2)))","v":0},{"$f":"IF(ISERROR(FIND(BR$3,'CFR - XML import'!$A142)),0,VALUE(MID('CFR - XML import'!$A142,SEARCH(\">\",'CFR - XML import'!$A142,1)+1,SEARCH(\"/\",'CFR - XML import'!$A142,1)-SEARCH(\">\",'CFR - XML import'!$A142,1)-2)))","v":0},{"$f":"IF(ISERROR(FIND(BS$3,'CFR - XML import'!$A142)),0,VALUE(MID('CFR - XML import'!$A142,SEARCH(\">\",'CFR - XML import'!$A142,1)+1,SEARCH(\"/\",'CFR - XML import'!$A142,1)-SEARCH(\">\",'CFR - XML import'!$A142,1)-2)))","v":0},{"$f":"IF(ISERROR(FIND(BT$3,'CFR - XML import'!$A142)),0,VALUE(MID('CFR - XML import'!$A142,SEARCH(\">\",'CFR - XML import'!$A142,1)+1,SEARCH(\"/\",'CFR - XML import'!$A142,1)-SEARCH(\">\",'CFR - XML import'!$A142,1)-2)))","v":0},{"$f":"IF(ISERROR(FIND(BU$3,'CFR - XML import'!$A142)),0,VALUE(MID('CFR - XML import'!$A142,SEARCH(\">\",'CFR - XML import'!$A142,1)+1,SEARCH(\"/\",'CFR - XML import'!$A142,1)-SEARCH(\">\",'CFR - XML import'!$A142,1)-2)))","v":0},{"$f":"IF(ISERROR(FIND(BV$3,'CFR - XML import'!$A142)),0,VALUE(MID('CFR - XML import'!$A142,SEARCH(\">\",'CFR - XML import'!$A142,1)+1,SEARCH(\"/\",'CFR - XML import'!$A142,1)-SEARCH(\">\",'CFR - XML import'!$A142,1)-2)))","v":0},{"$f":"IF(ISERROR(FIND(BW$3,'CFR - XML import'!$A142)),0,VALUE(MID('CFR - XML import'!$A142,SEARCH(\">\",'CFR - XML import'!$A142,1)+1,SEARCH(\"/\",'CFR - XML import'!$A142,1)-SEARCH(\">\",'CFR - XML import'!$A142,1)-2)))","v":0},{"$f":"IF(ISERROR(FIND(BX$3,'CFR - XML import'!$A142)),0,VALUE(MID('CFR - XML import'!$A142,SEARCH(\">\",'CFR - XML import'!$A142,1)+1,SEARCH(\"/\",'CFR - XML import'!$A142,1)-SEARCH(\">\",'CFR - XML import'!$A142,1)-2)))","v":0},{"$f":"IF(ISERROR(FIND(BY$3,'CFR - XML import'!$A142)),0,VALUE(MID('CFR - XML import'!$A142,SEARCH(\">\",'CFR - XML import'!$A142,1)+1,SEARCH(\"/\",'CFR - XML import'!$A142,1)-SEARCH(\">\",'CFR - XML import'!$A142,1)-2)))","v":0},{"$f":"IF(ISERROR(FIND(BZ$3,'CFR - XML import'!$A142)),0,VALUE(MID('CFR - XML import'!$A142,SEARCH(\">\",'CFR - XML import'!$A142,1)+1,SEARCH(\"/\",'CFR - XML import'!$A142,1)-SEARCH(\">\",'CFR - XML import'!$A142,1)-2)))","v":0},null,null,null,null,null,null,{"$f":"IF(ISERROR(IF(MID('CFR - XML import'!$A142,LEN($CF$4)+1,LEN('CFR - XML import'!$A142)-(2*LEN($CF$4)+1))=\"RMMS\",1,IF(MID('CFR - XML import'!$A142,LEN(\"    <InputSystem>\")+1,LEN('CFR - XML import'!$A142)-(LEN(\"    <InputSystem>\")+LEN($CF$4)+1))=\"SIMS\",2,0))),0,IF(MID('CFR - XML import'!$A142,LEN($CF$4)+1,LEN('CFR - XML import'!$A142)-(2*LEN($CF$4)+1))=\"RMMS\",1,IF(MID('CFR - XML import'!$A142,LEN(\"    <InputSystem>\")+1,LEN('CFR - XML import'!$A142)-(LEN(\"    <InputSystem>\")+LEN($CF$4)+1))=\"SIMS\",2,0)))","v":0},{"$f":"IF(ISERROR(FIND(CH$3,'CFR - XML import'!$A142)),0,MID('CFR - XML import'!$A142,SEARCH(\">\",'CFR - XML import'!$A142,1)+1,SEARCH(\"/\",'CFR - XML import'!$A142,1)-SEARCH(\">\",'CFR - XML import'!$A142,1)-2))","v":0},{"$f":"IF(ISERROR(FIND(CI$3,'CFR - XML import'!$A142)),0,MID('CFR - XML import'!$A142,SEARCH(\">\",'CFR - XML import'!$A142,1)+1,SEARCH(\"/\",'CFR - XML import'!$A142,1)-SEARCH(\">\",'CFR - XML import'!$A142,1)-2))","v":0},{"$f":"IF(ISERROR(FIND(CJ$3,'CFR - XML import'!$A142)),0,MID('CFR - XML import'!$A142,SEARCH(\">\",'CFR - XML import'!$A142,1)+1,SEARCH(\"/\",'CFR - XML import'!$A142,1)-SEARCH(\">\",'CFR - XML import'!$A142,1)-2))","v":0},{"$f":"IF(ISERROR(FIND(CK$3,'CFR - XML import'!$A142)),0,MID('CFR - XML import'!$A142,SEARCH(\">\",'CFR - XML import'!$A142,1)+1,SEARCH(\"/\",'CFR - XML import'!$A142,1)-SEARCH(\">\",'CFR - XML import'!$A142,1)-2))","v":0},{"$f":"IF(ISERROR(FIND(CL$3,'CFR - XML import'!$A142)),0,MID('CFR - XML import'!$A142,SEARCH(\">\",'CFR - XML import'!$A142,1)+1,SEARCH(\"/\",'CFR - XML import'!$A142,1)-SEARCH(\">\",'CFR - XML import'!$A142,1)-2))","v":0}]
[{"$f":"IF(AND('CFR - XML import'!A143<>\"\",LEFT('CFR - XML import'!A143,1)<>\"<\",LEFT('CFR - XML import'!A143,3)<>\"  <\",LEFT('CFR - XML import'!A143,5)<>\"    <\",LEFT('CFR - XML import'!A143,7)<>\"      <\",LEFT('CFR - XML import'!A143,9)<>\"        <\",$B$1=\"SIMS\"),'CFR - XML import'!A143,IF(AND(LEFT('CFR - XML import'!A143,9)=\"<Details>\",$B$1=\"RM\"),'CFR - XML import'!A143,\"\"))","v":""},{"$f":"IF(ISERROR(FIND(B$3,'CFR - XML import'!$A143)),0,VALUE(MID('CFR - XML import'!$A143,SEARCH(\">\",'CFR - XML import'!$A143,1)+1,SEARCH(\"/\",'CFR - XML import'!$A143,1)-SEARCH(\">\",'CFR - XML import'!$A143,1)-2)))","v":0},null,{"$f":"IF(ISERROR(FIND(D$3,'CFR - XML import'!$A143)),0,MID('CFR - XML import'!$A143,SEARCH(\">\",'CFR - XML import'!$A143,1)+1,SEARCH(\"/\",'CFR - XML import'!$A143,1)-SEARCH(\">\",'CFR - XML import'!$A143,1)-2))","v":0},{"$f":"IF(ISERROR(FIND(E$3,'CFR - XML import'!$A143)),0,MID('CFR - XML import'!$A143,SEARCH(\">\",'CFR - XML import'!$A143,1)+1,SEARCH(\"/\",'CFR - XML import'!$A143,1)-SEARCH(\">\",'CFR - XML import'!$A143,1)-2))","v":0},{"$f":"IF($B$1=\"SIMS\",IF(ISERROR(FIND(F$3,'CFR - XML import'!$A143)),0,VALUE(MID('CFR - XML import'!$A143,15,10))),IF(ISERROR(FIND(F$3,'CFR - XML import'!$A143)),0,VALUE(MID('CFR - XML import'!$A143,11,10))))","v":"00:00:00"},{"$f":"IF(ISERROR(FIND(G$3,'CFR - XML import'!$A143)),0,VALUE(MID('CFR - XML import'!$A143,SEARCH(\">\",'CFR - XML import'!$A143,1)+1,SEARCH(\"/\",'CFR - XML import'!$A143,1)-SEARCH(\">\",'CFR - XML import'!$A143,1)-2)))","v":0},{"$f":"IF(ISERROR(FIND(H$3,'CFR - XML import'!$A143)),0,VALUE(MID('CFR - XML import'!$A143,SEARCH(\">\",'CFR - XML import'!$A143,1)+1,SEARCH(\"/\",'CFR - XML import'!$A143,1)-SEARCH(\">\",'CFR - XML import'!$A143,1)-2)))","v":0},{"$f":"IF(ISERROR(FIND(I$3,'CFR - XML import'!$A143)),0,VALUE(MID('CFR - XML import'!$A143,SEARCH(\">\",'CFR - XML import'!$A143,1)+1,SEARCH(\"/\",'CFR - XML import'!$A143,1)-SEARCH(\">\",'CFR - XML import'!$A143,1)-2)))","v":0},{"$f":"IF(ISERROR(FIND(J$3,'CFR - XML import'!$A143)),0,VALUE(MID('CFR - XML import'!$A143,SEARCH(\">\",'CFR - XML import'!$A143,1)+1,SEARCH(\"/\",'CFR - XML import'!$A143,1)-SEARCH(\">\",'CFR - XML import'!$A143,1)-2)))","v":0},{"$f":"IF(ISERROR(FIND(K$3,'CFR - XML import'!$A143)),0,VALUE(MID('CFR - XML import'!$A143,SEARCH(\">\",'CFR - XML import'!$A143,1)+1,SEARCH(\"/\",'CFR - XML import'!$A143,1)-SEARCH(\">\",'CFR - XML import'!$A143,1)-2)))","v":0},{"$f":"IF(ISERROR(FIND(L$3,'CFR - XML import'!$A143)),0,VALUE(MID('CFR - XML import'!$A143,SEARCH(\">\",'CFR - XML import'!$A143,1)+1,SEARCH(\"/\",'CFR - XML import'!$A143,1)-SEARCH(\">\",'CFR - XML import'!$A143,1)-2)))","v":0},{"$f":"IF(ISERROR(FIND(M$3,'CFR - XML import'!$A143)),0,VALUE(MID('CFR - XML import'!$A143,SEARCH(\">\",'CFR - XML import'!$A143,1)+1,SEARCH(\"/\",'CFR - XML import'!$A143,1)-SEARCH(\">\",'CFR - XML import'!$A143,1)-2)))","v":0},{"$f":"IF(ISERROR(FIND(N$3,'CFR - XML import'!$A143)),0,VALUE(MID('CFR - XML import'!$A143,SEARCH(\">\",'CFR - XML import'!$A143,1)+1,SEARCH(\"/\",'CFR - XML import'!$A143,1)-SEARCH(\">\",'CFR - XML import'!$A143,1)-2)))","v":0},{"$f":"IF(ISERROR(FIND(O$3,'CFR - XML import'!$A143)),0,VALUE(MID('CFR - XML import'!$A143,SEARCH(\">\",'CFR - XML import'!$A143,1)+1,SEARCH(\"/\",'CFR - XML import'!$A143,1)-SEARCH(\">\",'CFR - XML import'!$A143,1)-2)))","v":0},{"$f":"IF(ISERROR(FIND(P$3,'CFR - XML import'!$A143)),0,VALUE(MID('CFR - XML import'!$A143,SEARCH(\">\",'CFR - XML import'!$A143,1)+1,SEARCH(\"/\",'CFR - XML import'!$A143,1)-SEARCH(\">\",'CFR - XML import'!$A143,1)-2)))","v":0},{"$f":"IF(ISERROR(FIND(Q$3,'CFR - XML import'!$A143)),0,VALUE(MID('CFR - XML import'!$A143,SEARCH(\">\",'CFR - XML import'!$A143,1)+1,SEARCH(\"/\",'CFR - XML import'!$A143,1)-SEARCH(\">\",'CFR - XML import'!$A143,1)-2)))","v":0},{"$f":"IF(ISERROR(FIND(R$3,'CFR - XML import'!$A143)),0,VALUE(MID('CFR - XML import'!$A143,SEARCH(\">\",'CFR - XML import'!$A143,1)+1,SEARCH(\"/\",'CFR - XML import'!$A143,1)-SEARCH(\">\",'CFR - XML import'!$A143,1)-2)))","v":0},{"$f":"IF(ISERROR(FIND(S$3,'CFR - XML import'!$A143)),0,VALUE(MID('CFR - XML import'!$A143,SEARCH(\">\",'CFR - XML import'!$A143,1)+1,SEARCH(\"/\",'CFR - XML import'!$A143,1)-SEARCH(\">\",'CFR - XML import'!$A143,1)-2)))","v":0},{"$f":"IF(ISERROR(FIND(T$3,'CFR - XML import'!$A143)),0,VALUE(MID('CFR - XML import'!$A143,SEARCH(\">\",'CFR - XML import'!$A143,1)+1,SEARCH(\"/\",'CFR - XML import'!$A143,1)-SEARCH(\">\",'CFR - XML import'!$A143,1)-2)))","v":0},{"$f":"IF(ISERROR(FIND(U$3,'CFR - XML import'!$A143)),0,VALUE(MID('CFR - XML import'!$A143,SEARCH(\">\",'CFR - XML import'!$A143,1)+1,SEARCH(\"/\",'CFR - XML import'!$A143,1)-SEARCH(\">\",'CFR - XML import'!$A143,1)-2)))","v":0},{"$f":"IF(ISERROR(FIND(V$3,'CFR - XML import'!$A143)),0,VALUE(MID('CFR - XML import'!$A143,SEARCH(\">\",'CFR - XML import'!$A143,1)+1,SEARCH(\"/\",'CFR - XML import'!$A143,1)-SEARCH(\">\",'CFR - XML import'!$A143,1)-2)))","v":0},{"$f":"IF(ISERROR(FIND(W$3,'CFR - XML import'!$A143)),0,VALUE(MID('CFR - XML import'!$A143,SEARCH(\">\",'CFR - XML import'!$A143,1)+1,SEARCH(\"/\",'CFR - XML import'!$A143,1)-SEARCH(\">\",'CFR - XML import'!$A143,1)-2)))","v":0},null,{"$f":"IF(ISERROR(FIND(Y$3,'CFR - XML import'!$A143)),0,VALUE(MID('CFR - XML import'!$A143,SEARCH(\">\",'CFR - XML import'!$A143,1)+1,SEARCH(\"/\",'CFR - XML import'!$A143,1)-SEARCH(\">\",'CFR - XML import'!$A143,1)-2)))","v":0},{"$f":"IF(ISERROR(FIND(Z$3,'CFR - XML import'!$A143)),0,VALUE(MID('CFR - XML import'!$A143,SEARCH(\">\",'CFR - XML import'!$A143,1)+1,SEARCH(\"/\",'CFR - XML import'!$A143,1)-SEARCH(\">\",'CFR - XML import'!$A143,1)-2)))","v":0},{"$f":"IF(ISERROR(FIND(AA$3,'CFR - XML import'!$A143)),0,VALUE(MID('CFR - XML import'!$A143,SEARCH(\">\",'CFR - XML import'!$A143,1)+1,SEARCH(\"/\",'CFR - XML import'!$A143,1)-SEARCH(\">\",'CFR - XML import'!$A143,1)-2)))","v":0},{"$f":"IF(ISERROR(FIND(AB$3,'CFR - XML import'!$A143)),0,VALUE(MID('CFR - XML import'!$A143,SEARCH(\">\",'CFR - XML import'!$A143,1)+1,SEARCH(\"/\",'CFR - XML import'!$A143,1)-SEARCH(\">\",'CFR - XML import'!$A143,1)-2)))","v":0},{"$f":"IF(ISERROR(FIND(AC$3,'CFR - XML import'!$A143)),0,VALUE(MID('CFR - XML import'!$A143,SEARCH(\">\",'CFR - XML import'!$A143,1)+1,SEARCH(\"/\",'CFR - XML import'!$A143,1)-SEARCH(\">\",'CFR - XML import'!$A143,1)-2)))","v":0},{"$f":"IF(ISERROR(FIND(AD$3,'CFR - XML import'!$A143)),0,VALUE(MID('CFR - XML import'!$A143,SEARCH(\">\",'CFR - XML import'!$A143,1)+1,SEARCH(\"/\",'CFR - XML import'!$A143,1)-SEARCH(\">\",'CFR - XML import'!$A143,1)-2)))","v":0},{"$f":"IF(ISERROR(FIND(AE$3,'CFR - XML import'!$A143)),0,VALUE(MID('CFR - XML import'!$A143,SEARCH(\">\",'CFR - XML import'!$A143,1)+1,SEARCH(\"/\",'CFR - XML import'!$A143,1)-SEARCH(\">\",'CFR - XML import'!$A143,1)-2)))","v":0},{"$f":"IF(ISERROR(FIND(AF$3,'CFR - XML import'!$A143)),0,VALUE(MID('CFR - XML import'!$A143,SEARCH(\">\",'CFR - XML import'!$A143,1)+1,SEARCH(\"/\",'CFR - XML import'!$A143,1)-SEARCH(\">\",'CFR - XML import'!$A143,1)-2)))","v":0},{"$f":"IF(ISERROR(FIND(AG$3,'CFR - XML import'!$A143)),0,VALUE(MID('CFR - XML import'!$A143,SEARCH(\">\",'CFR - XML import'!$A143,1)+1,SEARCH(\"/\",'CFR - XML import'!$A143,1)-SEARCH(\">\",'CFR - XML import'!$A143,1)-2)))","v":0},{"$f":"IF(ISERROR(FIND(AH$3,'CFR - XML import'!$A143)),0,VALUE(MID('CFR - XML import'!$A143,SEARCH(\">\",'CFR - XML import'!$A143,1)+1,SEARCH(\"/\",'CFR - XML import'!$A143,1)-SEARCH(\">\",'CFR - XML import'!$A143,1)-2)))","v":0},{"$f":"IF(ISERROR(FIND(AI$3,'CFR - XML import'!$A143)),0,VALUE(MID('CFR - XML import'!$A143,SEARCH(\">\",'CFR - XML import'!$A143,1)+1,SEARCH(\"/\",'CFR - XML import'!$A143,1)-SEARCH(\">\",'CFR - XML import'!$A143,1)-2)))","v":0},{"$f":"IF(ISERROR(FIND(AJ$3,'CFR - XML import'!$A143)),0,VALUE(MID('CFR - XML import'!$A143,SEARCH(\">\",'CFR - XML import'!$A143,1)+1,SEARCH(\"/\",'CFR - XML import'!$A143,1)-SEARCH(\">\",'CFR - XML import'!$A143,1)-2)))","v":0},{"$f":"IF(ISERROR(FIND(AK$3,'CFR - XML import'!$A143)),0,VALUE(MID('CFR - XML import'!$A143,SEARCH(\">\",'CFR - XML import'!$A143,1)+1,SEARCH(\"/\",'CFR - XML import'!$A143,1)-SEARCH(\">\",'CFR - XML import'!$A143,1)-2)))","v":0},{"$f":"IF(ISERROR(FIND(AL$3,'CFR - XML import'!$A143)),0,VALUE(MID('CFR - XML import'!$A143,SEARCH(\">\",'CFR - XML import'!$A143,1)+1,SEARCH(\"/\",'CFR - XML import'!$A143,1)-SEARCH(\">\",'CFR - XML import'!$A143,1)-2)))","v":0},{"$f":"IF(ISERROR(FIND(AM$3,'CFR - XML import'!$A143)),0,VALUE(MID('CFR - XML import'!$A143,SEARCH(\">\",'CFR - XML import'!$A143,1)+1,SEARCH(\"/\",'CFR - XML import'!$A143,1)-SEARCH(\">\",'CFR - XML import'!$A143,1)-2)))","v":0},{"$f":"IF(ISERROR(FIND(AN$3,'CFR - XML import'!$A143)),0,VALUE(MID('CFR - XML import'!$A143,SEARCH(\">\",'CFR - XML import'!$A143,1)+1,SEARCH(\"/\",'CFR - XML import'!$A143,1)-SEARCH(\">\",'CFR - XML import'!$A143,1)-2)))","v":0},{"$f":"IF(ISERROR(FIND(AO$3,'CFR - XML import'!$A143)),0,VALUE(MID('CFR - XML import'!$A143,SEARCH(\">\",'CFR - XML import'!$A143,1)+1,SEARCH(\"/\",'CFR - XML import'!$A143,1)-SEARCH(\">\",'CFR - XML import'!$A143,1)-2)))","v":0},{"$f":"IF(ISERROR(FIND(AP$3,'CFR - XML import'!$A143)),0,VALUE(MID('CFR - XML import'!$A143,SEARCH(\">\",'CFR - XML import'!$A143,1)+1,SEARCH(\"/\",'CFR - XML import'!$A143,1)-SEARCH(\">\",'CFR - XML import'!$A143,1)-2)))","v":0},{"$f":"IF(ISERROR(FIND(AQ$3,'CFR - XML import'!$A143)),0,VALUE(MID('CFR - XML import'!$A143,SEARCH(\">\",'CFR - XML import'!$A143,1)+1,SEARCH(\"/\",'CFR - XML import'!$A143,1)-SEARCH(\">\",'CFR - XML import'!$A143,1)-2)))","v":0},{"$f":"IF(ISERROR(FIND(AR$3,'CFR - XML import'!$A143)),0,VALUE(MID('CFR - XML import'!$A143,SEARCH(\">\",'CFR - XML import'!$A143,1)+1,SEARCH(\"/\",'CFR - XML import'!$A143,1)-SEARCH(\">\",'CFR - XML import'!$A143,1)-2)))","v":0},{"$f":"IF(ISERROR(FIND(AS$3,'CFR - XML import'!$A143)),0,VALUE(MID('CFR - XML import'!$A143,SEARCH(\">\",'CFR - XML import'!$A143,1)+1,SEARCH(\"/\",'CFR - XML import'!$A143,1)-SEARCH(\">\",'CFR - XML import'!$A143,1)-2)))","v":0},{"$f":"IF(ISERROR(FIND(AT$3,'CFR - XML import'!$A143)),0,VALUE(MID('CFR - XML import'!$A143,SEARCH(\">\",'CFR - XML import'!$A143,1)+1,SEARCH(\"/\",'CFR - XML import'!$A143,1)-SEARCH(\">\",'CFR - XML import'!$A143,1)-2)))","v":0},{"$f":"IF(ISERROR(FIND(AU$3,'CFR - XML import'!$A143)),0,VALUE(MID('CFR - XML import'!$A143,SEARCH(\">\",'CFR - XML import'!$A143,1)+1,SEARCH(\"/\",'CFR - XML import'!$A143,1)-SEARCH(\">\",'CFR - XML import'!$A143,1)-2)))","v":0},{"$f":"IF(ISERROR(FIND(AV$3,'CFR - XML import'!$A143)),0,VALUE(MID('CFR - XML import'!$A143,SEARCH(\">\",'CFR - XML import'!$A143,1)+1,SEARCH(\"/\",'CFR - XML import'!$A143,1)-SEARCH(\">\",'CFR - XML import'!$A143,1)-2)))","v":0},{"$f":"IF(ISERROR(FIND(AW$3,'CFR - XML import'!$A143)),0,VALUE(MID('CFR - XML import'!$A143,SEARCH(\">\",'CFR - XML import'!$A143,1)+1,SEARCH(\"/\",'CFR - XML import'!$A143,1)-SEARCH(\">\",'CFR - XML import'!$A143,1)-2)))","v":0},{"$f":"IF(ISERROR(FIND(AX$3,'CFR - XML import'!$A143)),0,VALUE(MID('CFR - XML import'!$A143,SEARCH(\">\",'CFR - XML import'!$A143,1)+1,SEARCH(\"/\",'CFR - XML import'!$A143,1)-SEARCH(\">\",'CFR - XML import'!$A143,1)-2)))","v":0},{"$f":"IF(ISERROR(FIND(AY$3,'CFR - XML import'!$A143)),0,VALUE(MID('CFR - XML import'!$A143,SEARCH(\">\",'CFR - XML import'!$A143,1)+1,SEARCH(\"/\",'CFR - XML import'!$A143,1)-SEARCH(\">\",'CFR - XML import'!$A143,1)-2)))","v":0},{"$f":"IF(ISERROR(FIND(AZ$3,'CFR - XML import'!$A143)),0,VALUE(MID('CFR - XML import'!$A143,SEARCH(\">\",'CFR - XML import'!$A143,1)+1,SEARCH(\"/\",'CFR - XML import'!$A143,1)-SEARCH(\">\",'CFR - XML import'!$A143,1)-2)))","v":0},{"$f":"IF(ISERROR(FIND(BA$3,'CFR - XML import'!$A143)),0,VALUE(MID('CFR - XML import'!$A143,SEARCH(\">\",'CFR - XML import'!$A143,1)+1,SEARCH(\"/\",'CFR - XML import'!$A143,1)-SEARCH(\">\",'CFR - XML import'!$A143,1)-2)))","v":0},{"$f":"IF(ISERROR(FIND(BB$3,'CFR - XML import'!$A143)),0,VALUE(MID('CFR - XML import'!$A143,SEARCH(\">\",'CFR - XML import'!$A143,1)+1,SEARCH(\"/\",'CFR - XML import'!$A143,1)-SEARCH(\">\",'CFR - XML import'!$A143,1)-2)))","v":0},{"$f":"IF(ISERROR(FIND(BC$3,'CFR - XML import'!$A143)),0,VALUE(MID('CFR - XML import'!$A143,SEARCH(\">\",'CFR - XML import'!$A143,1)+1,SEARCH(\"/\",'CFR - XML import'!$A143,1)-SEARCH(\">\",'CFR - XML import'!$A143,1)-2)))","v":0},{"$f":"IF(ISERROR(FIND(BD$3,'CFR - XML import'!$A143)),0,VALUE(MID('CFR - XML import'!$A143,SEARCH(\">\",'CFR - XML import'!$A143,1)+1,SEARCH(\"/\",'CFR - XML import'!$A143,1)-SEARCH(\">\",'CFR - XML import'!$A143,1)-2)))","v":0},{"$f":"IF(ISERROR(FIND(BE$3,'CFR - XML import'!$A143)),0,VALUE(MID('CFR - XML import'!$A143,SEARCH(\">\",'CFR - XML import'!$A143,1)+1,SEARCH(\"/\",'CFR - XML import'!$A143,1)-SEARCH(\">\",'CFR - XML import'!$A143,1)-2)))","v":0},{"$f":"IF(ISERROR(FIND(BF$3,'CFR - XML import'!$A143)),0,VALUE(MID('CFR - XML import'!$A143,SEARCH(\">\",'CFR - XML import'!$A143,1)+1,SEARCH(\"/\",'CFR - XML import'!$A143,1)-SEARCH(\">\",'CFR - XML import'!$A143,1)-2)))","v":0},{"$f":"IF(ISERROR(FIND(BG$3,'CFR - XML import'!$A143)),0,VALUE(MID('CFR - XML import'!$A143,SEARCH(\">\",'CFR - XML import'!$A143,1)+1,SEARCH(\"/\",'CFR - XML import'!$A143,1)-SEARCH(\">\",'CFR - XML import'!$A143,1)-2)))","v":0},{"$f":"IF(ISERROR(FIND(BH$3,'CFR - XML import'!$A143)),0,VALUE(MID('CFR - XML import'!$A143,SEARCH(\">\",'CFR - XML import'!$A143,1)+1,SEARCH(\"/\",'CFR - XML import'!$A143,1)-SEARCH(\">\",'CFR - XML import'!$A143,1)-2)))","v":0},{"$f":"IF(ISERROR(FIND(BI$3,'CFR - XML import'!$A143)),0,VALUE(MID('CFR - XML import'!$A143,SEARCH(\">\",'CFR - XML import'!$A143,1)+1,SEARCH(\"/\",'CFR - XML import'!$A143,1)-SEARCH(\">\",'CFR - XML import'!$A143,1)-2)))","v":0},{"$f":"IF(ISERROR(FIND(BJ$3,'CFR - XML import'!$A143)),0,VALUE(MID('CFR - XML import'!$A143,SEARCH(\">\",'CFR - XML import'!$A143,1)+1,SEARCH(\"/\",'CFR - XML import'!$A143,1)-SEARCH(\">\",'CFR - XML import'!$A143,1)-2)))","v":0},{"$f":"IF(ISERROR(FIND(BK$3,'CFR - XML import'!$A143)),0,VALUE(MID('CFR - XML import'!$A143,SEARCH(\">\",'CFR - XML import'!$A143,1)+1,SEARCH(\"/\",'CFR - XML import'!$A143,1)-SEARCH(\">\",'CFR - XML import'!$A143,1)-2)))","v":0},{"$f":"IF(ISERROR(FIND(BL$3,'CFR - XML import'!$A143)),0,VALUE(MID('CFR - XML import'!$A143,SEARCH(\">\",'CFR - XML import'!$A143,1)+1,SEARCH(\"/\",'CFR - XML import'!$A143,1)-SEARCH(\">\",'CFR - XML import'!$A143,1)-2)))","v":0},{"$f":"IF(ISERROR(FIND(BM$3,'CFR - XML import'!$A143)),0,VALUE(MID('CFR - XML import'!$A143,SEARCH(\">\",'CFR - XML import'!$A143,1)+1,SEARCH(\"/\",'CFR - XML import'!$A143,1)-SEARCH(\">\",'CFR - XML import'!$A143,1)-2)))","v":0},{"$f":"IF(ISERROR(FIND(BN$3,'CFR - XML import'!$A143)),0,VALUE(MID('CFR - XML import'!$A143,SEARCH(\">\",'CFR - XML import'!$A143,1)+1,SEARCH(\"/\",'CFR - XML import'!$A143,1)-SEARCH(\">\",'CFR - XML import'!$A143,1)-2)))","v":0},{"$f":"IF(ISERROR(FIND(BO$3,'CFR - XML import'!$A143)),0,VALUE(MID('CFR - XML import'!$A143,SEARCH(\">\",'CFR - XML import'!$A143,1)+1,SEARCH(\"/\",'CFR - XML import'!$A143,1)-SEARCH(\">\",'CFR - XML import'!$A143,1)-2)))","v":0},{"$f":"IF(ISERROR(FIND(BP$3,'CFR - XML import'!$A143)),0,VALUE(MID('CFR - XML import'!$A143,SEARCH(\">\",'CFR - XML import'!$A143,1)+1,SEARCH(\"/\",'CFR - XML import'!$A143,1)-SEARCH(\">\",'CFR - XML import'!$A143,1)-2)))","v":0},{"$f":"IF(ISERROR(FIND(BQ$3,'CFR - XML import'!$A143)),0,VALUE(MID('CFR - XML import'!$A143,SEARCH(\">\",'CFR - XML import'!$A143,1)+1,SEARCH(\"/\",'CFR - XML import'!$A143,1)-SEARCH(\">\",'CFR - XML import'!$A143,1)-2)))","v":0},{"$f":"IF(ISERROR(FIND(BR$3,'CFR - XML import'!$A143)),0,VALUE(MID('CFR - XML import'!$A143,SEARCH(\">\",'CFR - XML import'!$A143,1)+1,SEARCH(\"/\",'CFR - XML import'!$A143,1)-SEARCH(\">\",'CFR - XML import'!$A143,1)-2)))","v":0},{"$f":"IF(ISERROR(FIND(BS$3,'CFR - XML import'!$A143)),0,VALUE(MID('CFR - XML import'!$A143,SEARCH(\">\",'CFR - XML import'!$A143,1)+1,SEARCH(\"/\",'CFR - XML import'!$A143,1)-SEARCH(\">\",'CFR - XML import'!$A143,1)-2)))","v":0},{"$f":"IF(ISERROR(FIND(BT$3,'CFR - XML import'!$A143)),0,VALUE(MID('CFR - XML import'!$A143,SEARCH(\">\",'CFR - XML import'!$A143,1)+1,SEARCH(\"/\",'CFR - XML import'!$A143,1)-SEARCH(\">\",'CFR - XML import'!$A143,1)-2)))","v":0},{"$f":"IF(ISERROR(FIND(BU$3,'CFR - XML import'!$A143)),0,VALUE(MID('CFR - XML import'!$A143,SEARCH(\">\",'CFR - XML import'!$A143,1)+1,SEARCH(\"/\",'CFR - XML import'!$A143,1)-SEARCH(\">\",'CFR - XML import'!$A143,1)-2)))","v":0},{"$f":"IF(ISERROR(FIND(BV$3,'CFR - XML import'!$A143)),0,VALUE(MID('CFR - XML import'!$A143,SEARCH(\">\",'CFR - XML import'!$A143,1)+1,SEARCH(\"/\",'CFR - XML import'!$A143,1)-SEARCH(\">\",'CFR - XML import'!$A143,1)-2)))","v":0},{"$f":"IF(ISERROR(FIND(BW$3,'CFR - XML import'!$A143)),0,VALUE(MID('CFR - XML import'!$A143,SEARCH(\">\",'CFR - XML import'!$A143,1)+1,SEARCH(\"/\",'CFR - XML import'!$A143,1)-SEARCH(\">\",'CFR - XML import'!$A143,1)-2)))","v":0},{"$f":"IF(ISERROR(FIND(BX$3,'CFR - XML import'!$A143)),0,VALUE(MID('CFR - XML import'!$A143,SEARCH(\">\",'CFR - XML import'!$A143,1)+1,SEARCH(\"/\",'CFR - XML import'!$A143,1)-SEARCH(\">\",'CFR - XML import'!$A143,1)-2)))","v":0},{"$f":"IF(ISERROR(FIND(BY$3,'CFR - XML import'!$A143)),0,VALUE(MID('CFR - XML import'!$A143,SEARCH(\">\",'CFR - XML import'!$A143,1)+1,SEARCH(\"/\",'CFR - XML import'!$A143,1)-SEARCH(\">\",'CFR - XML import'!$A143,1)-2)))","v":0},{"$f":"IF(ISERROR(FIND(BZ$3,'CFR - XML import'!$A143)),0,VALUE(MID('CFR - XML import'!$A143,SEARCH(\">\",'CFR - XML import'!$A143,1)+1,SEARCH(\"/\",'CFR - XML import'!$A143,1)-SEARCH(\">\",'CFR - XML import'!$A143,1)-2)))","v":0},null,null,null,null,null,null,{"$f":"IF(ISERROR(IF(MID('CFR - XML import'!$A143,LEN($CF$4)+1,LEN('CFR - XML import'!$A143)-(2*LEN($CF$4)+1))=\"RMMS\",1,IF(MID('CFR - XML import'!$A143,LEN(\"    <InputSystem>\")+1,LEN('CFR - XML import'!$A143)-(LEN(\"    <InputSystem>\")+LEN($CF$4)+1))=\"SIMS\",2,0))),0,IF(MID('CFR - XML import'!$A143,LEN($CF$4)+1,LEN('CFR - XML import'!$A143)-(2*LEN($CF$4)+1))=\"RMMS\",1,IF(MID('CFR - XML import'!$A143,LEN(\"    <InputSystem>\")+1,LEN('CFR - XML import'!$A143)-(LEN(\"    <InputSystem>\")+LEN($CF$4)+1))=\"SIMS\",2,0)))","v":0},{"$f":"IF(ISERROR(FIND(CH$3,'CFR - XML import'!$A143)),0,MID('CFR - XML import'!$A143,SEARCH(\">\",'CFR - XML import'!$A143,1)+1,SEARCH(\"/\",'CFR - XML import'!$A143,1)-SEARCH(\">\",'CFR - XML import'!$A143,1)-2))","v":0},{"$f":"IF(ISERROR(FIND(CI$3,'CFR - XML import'!$A143)),0,MID('CFR - XML import'!$A143,SEARCH(\">\",'CFR - XML import'!$A143,1)+1,SEARCH(\"/\",'CFR - XML import'!$A143,1)-SEARCH(\">\",'CFR - XML import'!$A143,1)-2))","v":0},{"$f":"IF(ISERROR(FIND(CJ$3,'CFR - XML import'!$A143)),0,MID('CFR - XML import'!$A143,SEARCH(\">\",'CFR - XML import'!$A143,1)+1,SEARCH(\"/\",'CFR - XML import'!$A143,1)-SEARCH(\">\",'CFR - XML import'!$A143,1)-2))","v":0},{"$f":"IF(ISERROR(FIND(CK$3,'CFR - XML import'!$A143)),0,MID('CFR - XML import'!$A143,SEARCH(\">\",'CFR - XML import'!$A143,1)+1,SEARCH(\"/\",'CFR - XML import'!$A143,1)-SEARCH(\">\",'CFR - XML import'!$A143,1)-2))","v":0},{"$f":"IF(ISERROR(FIND(CL$3,'CFR - XML import'!$A143)),0,MID('CFR - XML import'!$A143,SEARCH(\">\",'CFR - XML import'!$A143,1)+1,SEARCH(\"/\",'CFR - XML import'!$A143,1)-SEARCH(\">\",'CFR - XML import'!$A143,1)-2))","v":0}]
[{"$f":"IF(AND('CFR - XML import'!A144<>\"\",LEFT('CFR - XML import'!A144,1)<>\"<\",LEFT('CFR - XML import'!A144,3)<>\"  <\",LEFT('CFR - XML import'!A144,5)<>\"    <\",LEFT('CFR - XML import'!A144,7)<>\"      <\",LEFT('CFR - XML import'!A144,9)<>\"        <\",$B$1=\"SIMS\"),'CFR - XML import'!A144,IF(AND(LEFT('CFR - XML import'!A144,9)=\"<Details>\",$B$1=\"RM\"),'CFR - XML import'!A144,\"\"))","v":""},{"$f":"IF(ISERROR(FIND(B$3,'CFR - XML import'!$A144)),0,VALUE(MID('CFR - XML import'!$A144,SEARCH(\">\",'CFR - XML import'!$A144,1)+1,SEARCH(\"/\",'CFR - XML import'!$A144,1)-SEARCH(\">\",'CFR - XML import'!$A144,1)-2)))","v":0},null,{"$f":"IF(ISERROR(FIND(D$3,'CFR - XML import'!$A144)),0,MID('CFR - XML import'!$A144,SEARCH(\">\",'CFR - XML import'!$A144,1)+1,SEARCH(\"/\",'CFR - XML import'!$A144,1)-SEARCH(\">\",'CFR - XML import'!$A144,1)-2))","v":0},{"$f":"IF(ISERROR(FIND(E$3,'CFR - XML import'!$A144)),0,MID('CFR - XML import'!$A144,SEARCH(\">\",'CFR - XML import'!$A144,1)+1,SEARCH(\"/\",'CFR - XML import'!$A144,1)-SEARCH(\">\",'CFR - XML import'!$A144,1)-2))","v":0},{"$f":"IF($B$1=\"SIMS\",IF(ISERROR(FIND(F$3,'CFR - XML import'!$A144)),0,VALUE(MID('CFR - XML import'!$A144,15,10))),IF(ISERROR(FIND(F$3,'CFR - XML import'!$A144)),0,VALUE(MID('CFR - XML import'!$A144,11,10))))","v":"00:00:00"},{"$f":"IF(ISERROR(FIND(G$3,'CFR - XML import'!$A144)),0,VALUE(MID('CFR - XML import'!$A144,SEARCH(\">\",'CFR - XML import'!$A144,1)+1,SEARCH(\"/\",'CFR - XML import'!$A144,1)-SEARCH(\">\",'CFR - XML import'!$A144,1)-2)))","v":0},{"$f":"IF(ISERROR(FIND(H$3,'CFR - XML import'!$A144)),0,VALUE(MID('CFR - XML import'!$A144,SEARCH(\">\",'CFR - XML import'!$A144,1)+1,SEARCH(\"/\",'CFR - XML import'!$A144,1)-SEARCH(\">\",'CFR - XML import'!$A144,1)-2)))","v":0},{"$f":"IF(ISERROR(FIND(I$3,'CFR - XML import'!$A144)),0,VALUE(MID('CFR - XML import'!$A144,SEARCH(\">\",'CFR - XML import'!$A144,1)+1,SEARCH(\"/\",'CFR - XML import'!$A144,1)-SEARCH(\">\",'CFR - XML import'!$A144,1)-2)))","v":0},{"$f":"IF(ISERROR(FIND(J$3,'CFR - XML import'!$A144)),0,VALUE(MID('CFR - XML import'!$A144,SEARCH(\">\",'CFR - XML import'!$A144,1)+1,SEARCH(\"/\",'CFR - XML import'!$A144,1)-SEARCH(\">\",'CFR - XML import'!$A144,1)-2)))","v":0},{"$f":"IF(ISERROR(FIND(K$3,'CFR - XML import'!$A144)),0,VALUE(MID('CFR - XML import'!$A144,SEARCH(\">\",'CFR - XML import'!$A144,1)+1,SEARCH(\"/\",'CFR - XML import'!$A144,1)-SEARCH(\">\",'CFR - XML import'!$A144,1)-2)))","v":0},{"$f":"IF(ISERROR(FIND(L$3,'CFR - XML import'!$A144)),0,VALUE(MID('CFR - XML import'!$A144,SEARCH(\">\",'CFR - XML import'!$A144,1)+1,SEARCH(\"/\",'CFR - XML import'!$A144,1)-SEARCH(\">\",'CFR - XML import'!$A144,1)-2)))","v":0},{"$f":"IF(ISERROR(FIND(M$3,'CFR - XML import'!$A144)),0,VALUE(MID('CFR - XML import'!$A144,SEARCH(\">\",'CFR - XML import'!$A144,1)+1,SEARCH(\"/\",'CFR - XML import'!$A144,1)-SEARCH(\">\",'CFR - XML import'!$A144,1)-2)))","v":0},{"$f":"IF(ISERROR(FIND(N$3,'CFR - XML import'!$A144)),0,VALUE(MID('CFR - XML import'!$A144,SEARCH(\">\",'CFR - XML import'!$A144,1)+1,SEARCH(\"/\",'CFR - XML import'!$A144,1)-SEARCH(\">\",'CFR - XML import'!$A144,1)-2)))","v":0},{"$f":"IF(ISERROR(FIND(O$3,'CFR - XML import'!$A144)),0,VALUE(MID('CFR - XML import'!$A144,SEARCH(\">\",'CFR - XML import'!$A144,1)+1,SEARCH(\"/\",'CFR - XML import'!$A144,1)-SEARCH(\">\",'CFR - XML import'!$A144,1)-2)))","v":0},{"$f":"IF(ISERROR(FIND(P$3,'CFR - XML import'!$A144)),0,VALUE(MID('CFR - XML import'!$A144,SEARCH(\">\",'CFR - XML import'!$A144,1)+1,SEARCH(\"/\",'CFR - XML import'!$A144,1)-SEARCH(\">\",'CFR - XML import'!$A144,1)-2)))","v":0},{"$f":"IF(ISERROR(FIND(Q$3,'CFR - XML import'!$A144)),0,VALUE(MID('CFR - XML import'!$A144,SEARCH(\">\",'CFR - XML import'!$A144,1)+1,SEARCH(\"/\",'CFR - XML import'!$A144,1)-SEARCH(\">\",'CFR - XML import'!$A144,1)-2)))","v":0},{"$f":"IF(ISERROR(FIND(R$3,'CFR - XML import'!$A144)),0,VALUE(MID('CFR - XML import'!$A144,SEARCH(\">\",'CFR - XML import'!$A144,1)+1,SEARCH(\"/\",'CFR - XML import'!$A144,1)-SEARCH(\">\",'CFR - XML import'!$A144,1)-2)))","v":0},{"$f":"IF(ISERROR(FIND(S$3,'CFR - XML import'!$A144)),0,VALUE(MID('CFR - XML import'!$A144,SEARCH(\">\",'CFR - XML import'!$A144,1)+1,SEARCH(\"/\",'CFR - XML import'!$A144,1)-SEARCH(\">\",'CFR - XML import'!$A144,1)-2)))","v":0},{"$f":"IF(ISERROR(FIND(T$3,'CFR - XML import'!$A144)),0,VALUE(MID('CFR - XML import'!$A144,SEARCH(\">\",'CFR - XML import'!$A144,1)+1,SEARCH(\"/\",'CFR - XML import'!$A144,1)-SEARCH(\">\",'CFR - XML import'!$A144,1)-2)))","v":0},{"$f":"IF(ISERROR(FIND(U$3,'CFR - XML import'!$A144)),0,VALUE(MID('CFR - XML import'!$A144,SEARCH(\">\",'CFR - XML import'!$A144,1)+1,SEARCH(\"/\",'CFR - XML import'!$A144,1)-SEARCH(\">\",'CFR - XML import'!$A144,1)-2)))","v":0},{"$f":"IF(ISERROR(FIND(V$3,'CFR - XML import'!$A144)),0,VALUE(MID('CFR - XML import'!$A144,SEARCH(\">\",'CFR - XML import'!$A144,1)+1,SEARCH(\"/\",'CFR - XML import'!$A144,1)-SEARCH(\">\",'CFR - XML import'!$A144,1)-2)))","v":0},{"$f":"IF(ISERROR(FIND(W$3,'CFR - XML import'!$A144)),0,VALUE(MID('CFR - XML import'!$A144,SEARCH(\">\",'CFR - XML import'!$A144,1)+1,SEARCH(\"/\",'CFR - XML import'!$A144,1)-SEARCH(\">\",'CFR - XML import'!$A144,1)-2)))","v":0},null,{"$f":"IF(ISERROR(FIND(Y$3,'CFR - XML import'!$A144)),0,VALUE(MID('CFR - XML import'!$A144,SEARCH(\">\",'CFR - XML import'!$A144,1)+1,SEARCH(\"/\",'CFR - XML import'!$A144,1)-SEARCH(\">\",'CFR - XML import'!$A144,1)-2)))","v":0},{"$f":"IF(ISERROR(FIND(Z$3,'CFR - XML import'!$A144)),0,VALUE(MID('CFR - XML import'!$A144,SEARCH(\">\",'CFR - XML import'!$A144,1)+1,SEARCH(\"/\",'CFR - XML import'!$A144,1)-SEARCH(\">\",'CFR - XML import'!$A144,1)-2)))","v":0},{"$f":"IF(ISERROR(FIND(AA$3,'CFR - XML import'!$A144)),0,VALUE(MID('CFR - XML import'!$A144,SEARCH(\">\",'CFR - XML import'!$A144,1)+1,SEARCH(\"/\",'CFR - XML import'!$A144,1)-SEARCH(\">\",'CFR - XML import'!$A144,1)-2)))","v":0},{"$f":"IF(ISERROR(FIND(AB$3,'CFR - XML import'!$A144)),0,VALUE(MID('CFR - XML import'!$A144,SEARCH(\">\",'CFR - XML import'!$A144,1)+1,SEARCH(\"/\",'CFR - XML import'!$A144,1)-SEARCH(\">\",'CFR - XML import'!$A144,1)-2)))","v":0},{"$f":"IF(ISERROR(FIND(AC$3,'CFR - XML import'!$A144)),0,VALUE(MID('CFR - XML import'!$A144,SEARCH(\">\",'CFR - XML import'!$A144,1)+1,SEARCH(\"/\",'CFR - XML import'!$A144,1)-SEARCH(\">\",'CFR - XML import'!$A144,1)-2)))","v":0},{"$f":"IF(ISERROR(FIND(AD$3,'CFR - XML import'!$A144)),0,VALUE(MID('CFR - XML import'!$A144,SEARCH(\">\",'CFR - XML import'!$A144,1)+1,SEARCH(\"/\",'CFR - XML import'!$A144,1)-SEARCH(\">\",'CFR - XML import'!$A144,1)-2)))","v":0},{"$f":"IF(ISERROR(FIND(AE$3,'CFR - XML import'!$A144)),0,VALUE(MID('CFR - XML import'!$A144,SEARCH(\">\",'CFR - XML import'!$A144,1)+1,SEARCH(\"/\",'CFR - XML import'!$A144,1)-SEARCH(\">\",'CFR - XML import'!$A144,1)-2)))","v":0},{"$f":"IF(ISERROR(FIND(AF$3,'CFR - XML import'!$A144)),0,VALUE(MID('CFR - XML import'!$A144,SEARCH(\">\",'CFR - XML import'!$A144,1)+1,SEARCH(\"/\",'CFR - XML import'!$A144,1)-SEARCH(\">\",'CFR - XML import'!$A144,1)-2)))","v":0},{"$f":"IF(ISERROR(FIND(AG$3,'CFR - XML import'!$A144)),0,VALUE(MID('CFR - XML import'!$A144,SEARCH(\">\",'CFR - XML import'!$A144,1)+1,SEARCH(\"/\",'CFR - XML import'!$A144,1)-SEARCH(\">\",'CFR - XML import'!$A144,1)-2)))","v":0},{"$f":"IF(ISERROR(FIND(AH$3,'CFR - XML import'!$A144)),0,VALUE(MID('CFR - XML import'!$A144,SEARCH(\">\",'CFR - XML import'!$A144,1)+1,SEARCH(\"/\",'CFR - XML import'!$A144,1)-SEARCH(\">\",'CFR - XML import'!$A144,1)-2)))","v":0},{"$f":"IF(ISERROR(FIND(AI$3,'CFR - XML import'!$A144)),0,VALUE(MID('CFR - XML import'!$A144,SEARCH(\">\",'CFR - XML import'!$A144,1)+1,SEARCH(\"/\",'CFR - XML import'!$A144,1)-SEARCH(\">\",'CFR - XML import'!$A144,1)-2)))","v":0},{"$f":"IF(ISERROR(FIND(AJ$3,'CFR - XML import'!$A144)),0,VALUE(MID('CFR - XML import'!$A144,SEARCH(\">\",'CFR - XML import'!$A144,1)+1,SEARCH(\"/\",'CFR - XML import'!$A144,1)-SEARCH(\">\",'CFR - XML import'!$A144,1)-2)))","v":0},{"$f":"IF(ISERROR(FIND(AK$3,'CFR - XML import'!$A144)),0,VALUE(MID('CFR - XML import'!$A144,SEARCH(\">\",'CFR - XML import'!$A144,1)+1,SEARCH(\"/\",'CFR - XML import'!$A144,1)-SEARCH(\">\",'CFR - XML import'!$A144,1)-2)))","v":0},{"$f":"IF(ISERROR(FIND(AL$3,'CFR - XML import'!$A144)),0,VALUE(MID('CFR - XML import'!$A144,SEARCH(\">\",'CFR - XML import'!$A144,1)+1,SEARCH(\"/\",'CFR - XML import'!$A144,1)-SEARCH(\">\",'CFR - XML import'!$A144,1)-2)))","v":0},{"$f":"IF(ISERROR(FIND(AM$3,'CFR - XML import'!$A144)),0,VALUE(MID('CFR - XML import'!$A144,SEARCH(\">\",'CFR - XML import'!$A144,1)+1,SEARCH(\"/\",'CFR - XML import'!$A144,1)-SEARCH(\">\",'CFR - XML import'!$A144,1)-2)))","v":0},{"$f":"IF(ISERROR(FIND(AN$3,'CFR - XML import'!$A144)),0,VALUE(MID('CFR - XML import'!$A144,SEARCH(\">\",'CFR - XML import'!$A144,1)+1,SEARCH(\"/\",'CFR - XML import'!$A144,1)-SEARCH(\">\",'CFR - XML import'!$A144,1)-2)))","v":0},{"$f":"IF(ISERROR(FIND(AO$3,'CFR - XML import'!$A144)),0,VALUE(MID('CFR - XML import'!$A144,SEARCH(\">\",'CFR - XML import'!$A144,1)+1,SEARCH(\"/\",'CFR - XML import'!$A144,1)-SEARCH(\">\",'CFR - XML import'!$A144,1)-2)))","v":0},{"$f":"IF(ISERROR(FIND(AP$3,'CFR - XML import'!$A144)),0,VALUE(MID('CFR - XML import'!$A144,SEARCH(\">\",'CFR - XML import'!$A144,1)+1,SEARCH(\"/\",'CFR - XML import'!$A144,1)-SEARCH(\">\",'CFR - XML import'!$A144,1)-2)))","v":0},{"$f":"IF(ISERROR(FIND(AQ$3,'CFR - XML import'!$A144)),0,VALUE(MID('CFR - XML import'!$A144,SEARCH(\">\",'CFR - XML import'!$A144,1)+1,SEARCH(\"/\",'CFR - XML import'!$A144,1)-SEARCH(\">\",'CFR - XML import'!$A144,1)-2)))","v":0},{"$f":"IF(ISERROR(FIND(AR$3,'CFR - XML import'!$A144)),0,VALUE(MID('CFR - XML import'!$A144,SEARCH(\">\",'CFR - XML import'!$A144,1)+1,SEARCH(\"/\",'CFR - XML import'!$A144,1)-SEARCH(\">\",'CFR - XML import'!$A144,1)-2)))","v":0},{"$f":"IF(ISERROR(FIND(AS$3,'CFR - XML import'!$A144)),0,VALUE(MID('CFR - XML import'!$A144,SEARCH(\">\",'CFR - XML import'!$A144,1)+1,SEARCH(\"/\",'CFR - XML import'!$A144,1)-SEARCH(\">\",'CFR - XML import'!$A144,1)-2)))","v":0},{"$f":"IF(ISERROR(FIND(AT$3,'CFR - XML import'!$A144)),0,VALUE(MID('CFR - XML import'!$A144,SEARCH(\">\",'CFR - XML import'!$A144,1)+1,SEARCH(\"/\",'CFR - XML import'!$A144,1)-SEARCH(\">\",'CFR - XML import'!$A144,1)-2)))","v":0},{"$f":"IF(ISERROR(FIND(AU$3,'CFR - XML import'!$A144)),0,VALUE(MID('CFR - XML import'!$A144,SEARCH(\">\",'CFR - XML import'!$A144,1)+1,SEARCH(\"/\",'CFR - XML import'!$A144,1)-SEARCH(\">\",'CFR - XML import'!$A144,1)-2)))","v":0},{"$f":"IF(ISERROR(FIND(AV$3,'CFR - XML import'!$A144)),0,VALUE(MID('CFR - XML import'!$A144,SEARCH(\">\",'CFR - XML import'!$A144,1)+1,SEARCH(\"/\",'CFR - XML import'!$A144,1)-SEARCH(\">\",'CFR - XML import'!$A144,1)-2)))","v":0},{"$f":"IF(ISERROR(FIND(AW$3,'CFR - XML import'!$A144)),0,VALUE(MID('CFR - XML import'!$A144,SEARCH(\">\",'CFR - XML import'!$A144,1)+1,SEARCH(\"/\",'CFR - XML import'!$A144,1)-SEARCH(\">\",'CFR - XML import'!$A144,1)-2)))","v":0},{"$f":"IF(ISERROR(FIND(AX$3,'CFR - XML import'!$A144)),0,VALUE(MID('CFR - XML import'!$A144,SEARCH(\">\",'CFR - XML import'!$A144,1)+1,SEARCH(\"/\",'CFR - XML import'!$A144,1)-SEARCH(\">\",'CFR - XML import'!$A144,1)-2)))","v":0},{"$f":"IF(ISERROR(FIND(AY$3,'CFR - XML import'!$A144)),0,VALUE(MID('CFR - XML import'!$A144,SEARCH(\">\",'CFR - XML import'!$A144,1)+1,SEARCH(\"/\",'CFR - XML import'!$A144,1)-SEARCH(\">\",'CFR - XML import'!$A144,1)-2)))","v":0},{"$f":"IF(ISERROR(FIND(AZ$3,'CFR - XML import'!$A144)),0,VALUE(MID('CFR - XML import'!$A144,SEARCH(\">\",'CFR - XML import'!$A144,1)+1,SEARCH(\"/\",'CFR - XML import'!$A144,1)-SEARCH(\">\",'CFR - XML import'!$A144,1)-2)))","v":0},{"$f":"IF(ISERROR(FIND(BA$3,'CFR - XML import'!$A144)),0,VALUE(MID('CFR - XML import'!$A144,SEARCH(\">\",'CFR - XML import'!$A144,1)+1,SEARCH(\"/\",'CFR - XML import'!$A144,1)-SEARCH(\">\",'CFR - XML import'!$A144,1)-2)))","v":0},{"$f":"IF(ISERROR(FIND(BB$3,'CFR - XML import'!$A144)),0,VALUE(MID('CFR - XML import'!$A144,SEARCH(\">\",'CFR - XML import'!$A144,1)+1,SEARCH(\"/\",'CFR - XML import'!$A144,1)-SEARCH(\">\",'CFR - XML import'!$A144,1)-2)))","v":0},{"$f":"IF(ISERROR(FIND(BC$3,'CFR - XML import'!$A144)),0,VALUE(MID('CFR - XML import'!$A144,SEARCH(\">\",'CFR - XML import'!$A144,1)+1,SEARCH(\"/\",'CFR - XML import'!$A144,1)-SEARCH(\">\",'CFR - XML import'!$A144,1)-2)))","v":0},{"$f":"IF(ISERROR(FIND(BD$3,'CFR - XML import'!$A144)),0,VALUE(MID('CFR - XML import'!$A144,SEARCH(\">\",'CFR - XML import'!$A144,1)+1,SEARCH(\"/\",'CFR - XML import'!$A144,1)-SEARCH(\">\",'CFR - XML import'!$A144,1)-2)))","v":0},{"$f":"IF(ISERROR(FIND(BE$3,'CFR - XML import'!$A144)),0,VALUE(MID('CFR - XML import'!$A144,SEARCH(\">\",'CFR - XML import'!$A144,1)+1,SEARCH(\"/\",'CFR - XML import'!$A144,1)-SEARCH(\">\",'CFR - XML import'!$A144,1)-2)))","v":0},{"$f":"IF(ISERROR(FIND(BF$3,'CFR - XML import'!$A144)),0,VALUE(MID('CFR - XML import'!$A144,SEARCH(\">\",'CFR - XML import'!$A144,1)+1,SEARCH(\"/\",'CFR - XML import'!$A144,1)-SEARCH(\">\",'CFR - XML import'!$A144,1)-2)))","v":0},{"$f":"IF(ISERROR(FIND(BG$3,'CFR - XML import'!$A144)),0,VALUE(MID('CFR - XML import'!$A144,SEARCH(\">\",'CFR - XML import'!$A144,1)+1,SEARCH(\"/\",'CFR - XML import'!$A144,1)-SEARCH(\">\",'CFR - XML import'!$A144,1)-2)))","v":0},{"$f":"IF(ISERROR(FIND(BH$3,'CFR - XML import'!$A144)),0,VALUE(MID('CFR - XML import'!$A144,SEARCH(\">\",'CFR - XML import'!$A144,1)+1,SEARCH(\"/\",'CFR - XML import'!$A144,1)-SEARCH(\">\",'CFR - XML import'!$A144,1)-2)))","v":0},{"$f":"IF(ISERROR(FIND(BI$3,'CFR - XML import'!$A144)),0,VALUE(MID('CFR - XML import'!$A144,SEARCH(\">\",'CFR - XML import'!$A144,1)+1,SEARCH(\"/\",'CFR - XML import'!$A144,1)-SEARCH(\">\",'CFR - XML import'!$A144,1)-2)))","v":0},{"$f":"IF(ISERROR(FIND(BJ$3,'CFR - XML import'!$A144)),0,VALUE(MID('CFR - XML import'!$A144,SEARCH(\">\",'CFR - XML import'!$A144,1)+1,SEARCH(\"/\",'CFR - XML import'!$A144,1)-SEARCH(\">\",'CFR - XML import'!$A144,1)-2)))","v":0},{"$f":"IF(ISERROR(FIND(BK$3,'CFR - XML import'!$A144)),0,VALUE(MID('CFR - XML import'!$A144,SEARCH(\">\",'CFR - XML import'!$A144,1)+1,SEARCH(\"/\",'CFR - XML import'!$A144,1)-SEARCH(\">\",'CFR - XML import'!$A144,1)-2)))","v":0},{"$f":"IF(ISERROR(FIND(BL$3,'CFR - XML import'!$A144)),0,VALUE(MID('CFR - XML import'!$A144,SEARCH(\">\",'CFR - XML import'!$A144,1)+1,SEARCH(\"/\",'CFR - XML import'!$A144,1)-SEARCH(\">\",'CFR - XML import'!$A144,1)-2)))","v":0},{"$f":"IF(ISERROR(FIND(BM$3,'CFR - XML import'!$A144)),0,VALUE(MID('CFR - XML import'!$A144,SEARCH(\">\",'CFR - XML import'!$A144,1)+1,SEARCH(\"/\",'CFR - XML import'!$A144,1)-SEARCH(\">\",'CFR - XML import'!$A144,1)-2)))","v":0},{"$f":"IF(ISERROR(FIND(BN$3,'CFR - XML import'!$A144)),0,VALUE(MID('CFR - XML import'!$A144,SEARCH(\">\",'CFR - XML import'!$A144,1)+1,SEARCH(\"/\",'CFR - XML import'!$A144,1)-SEARCH(\">\",'CFR - XML import'!$A144,1)-2)))","v":0},{"$f":"IF(ISERROR(FIND(BO$3,'CFR - XML import'!$A144)),0,VALUE(MID('CFR - XML import'!$A144,SEARCH(\">\",'CFR - XML import'!$A144,1)+1,SEARCH(\"/\",'CFR - XML import'!$A144,1)-SEARCH(\">\",'CFR - XML import'!$A144,1)-2)))","v":0},{"$f":"IF(ISERROR(FIND(BP$3,'CFR - XML import'!$A144)),0,VALUE(MID('CFR - XML import'!$A144,SEARCH(\">\",'CFR - XML import'!$A144,1)+1,SEARCH(\"/\",'CFR - XML import'!$A144,1)-SEARCH(\">\",'CFR - XML import'!$A144,1)-2)))","v":0},{"$f":"IF(ISERROR(FIND(BQ$3,'CFR - XML import'!$A144)),0,VALUE(MID('CFR - XML import'!$A144,SEARCH(\">\",'CFR - XML import'!$A144,1)+1,SEARCH(\"/\",'CFR - XML import'!$A144,1)-SEARCH(\">\",'CFR - XML import'!$A144,1)-2)))","v":0},{"$f":"IF(ISERROR(FIND(BR$3,'CFR - XML import'!$A144)),0,VALUE(MID('CFR - XML import'!$A144,SEARCH(\">\",'CFR - XML import'!$A144,1)+1,SEARCH(\"/\",'CFR - XML import'!$A144,1)-SEARCH(\">\",'CFR - XML import'!$A144,1)-2)))","v":0},{"$f":"IF(ISERROR(FIND(BS$3,'CFR - XML import'!$A144)),0,VALUE(MID('CFR - XML import'!$A144,SEARCH(\">\",'CFR - XML import'!$A144,1)+1,SEARCH(\"/\",'CFR - XML import'!$A144,1)-SEARCH(\">\",'CFR - XML import'!$A144,1)-2)))","v":0},{"$f":"IF(ISERROR(FIND(BT$3,'CFR - XML import'!$A144)),0,VALUE(MID('CFR - XML import'!$A144,SEARCH(\">\",'CFR - XML import'!$A144,1)+1,SEARCH(\"/\",'CFR - XML import'!$A144,1)-SEARCH(\">\",'CFR - XML import'!$A144,1)-2)))","v":0},{"$f":"IF(ISERROR(FIND(BU$3,'CFR - XML import'!$A144)),0,VALUE(MID('CFR - XML import'!$A144,SEARCH(\">\",'CFR - XML import'!$A144,1)+1,SEARCH(\"/\",'CFR - XML import'!$A144,1)-SEARCH(\">\",'CFR - XML import'!$A144,1)-2)))","v":0},{"$f":"IF(ISERROR(FIND(BV$3,'CFR - XML import'!$A144)),0,VALUE(MID('CFR - XML import'!$A144,SEARCH(\">\",'CFR - XML import'!$A144,1)+1,SEARCH(\"/\",'CFR - XML import'!$A144,1)-SEARCH(\">\",'CFR - XML import'!$A144,1)-2)))","v":0},{"$f":"IF(ISERROR(FIND(BW$3,'CFR - XML import'!$A144)),0,VALUE(MID('CFR - XML import'!$A144,SEARCH(\">\",'CFR - XML import'!$A144,1)+1,SEARCH(\"/\",'CFR - XML import'!$A144,1)-SEARCH(\">\",'CFR - XML import'!$A144,1)-2)))","v":0},{"$f":"IF(ISERROR(FIND(BX$3,'CFR - XML import'!$A144)),0,VALUE(MID('CFR - XML import'!$A144,SEARCH(\">\",'CFR - XML import'!$A144,1)+1,SEARCH(\"/\",'CFR - XML import'!$A144,1)-SEARCH(\">\",'CFR - XML import'!$A144,1)-2)))","v":0},{"$f":"IF(ISERROR(FIND(BY$3,'CFR - XML import'!$A144)),0,VALUE(MID('CFR - XML import'!$A144,SEARCH(\">\",'CFR - XML import'!$A144,1)+1,SEARCH(\"/\",'CFR - XML import'!$A144,1)-SEARCH(\">\",'CFR - XML import'!$A144,1)-2)))","v":0},{"$f":"IF(ISERROR(FIND(BZ$3,'CFR - XML import'!$A144)),0,VALUE(MID('CFR - XML import'!$A144,SEARCH(\">\",'CFR - XML import'!$A144,1)+1,SEARCH(\"/\",'CFR - XML import'!$A144,1)-SEARCH(\">\",'CFR - XML import'!$A144,1)-2)))","v":0},null,null,null,null,null,null,{"$f":"IF(ISERROR(IF(MID('CFR - XML import'!$A144,LEN($CF$4)+1,LEN('CFR - XML import'!$A144)-(2*LEN($CF$4)+1))=\"RMMS\",1,IF(MID('CFR - XML import'!$A144,LEN(\"    <InputSystem>\")+1,LEN('CFR - XML import'!$A144)-(LEN(\"    <InputSystem>\")+LEN($CF$4)+1))=\"SIMS\",2,0))),0,IF(MID('CFR - XML import'!$A144,LEN($CF$4)+1,LEN('CFR - XML import'!$A144)-(2*LEN($CF$4)+1))=\"RMMS\",1,IF(MID('CFR - XML import'!$A144,LEN(\"    <InputSystem>\")+1,LEN('CFR - XML import'!$A144)-(LEN(\"    <InputSystem>\")+LEN($CF$4)+1))=\"SIMS\",2,0)))","v":0},{"$f":"IF(ISERROR(FIND(CH$3,'CFR - XML import'!$A144)),0,MID('CFR - XML import'!$A144,SEARCH(\">\",'CFR - XML import'!$A144,1)+1,SEARCH(\"/\",'CFR - XML import'!$A144,1)-SEARCH(\">\",'CFR - XML import'!$A144,1)-2))","v":0},{"$f":"IF(ISERROR(FIND(CI$3,'CFR - XML import'!$A144)),0,MID('CFR - XML import'!$A144,SEARCH(\">\",'CFR - XML import'!$A144,1)+1,SEARCH(\"/\",'CFR - XML import'!$A144,1)-SEARCH(\">\",'CFR - XML import'!$A144,1)-2))","v":0},{"$f":"IF(ISERROR(FIND(CJ$3,'CFR - XML import'!$A144)),0,MID('CFR - XML import'!$A144,SEARCH(\">\",'CFR - XML import'!$A144,1)+1,SEARCH(\"/\",'CFR - XML import'!$A144,1)-SEARCH(\">\",'CFR - XML import'!$A144,1)-2))","v":0},{"$f":"IF(ISERROR(FIND(CK$3,'CFR - XML import'!$A144)),0,MID('CFR - XML import'!$A144,SEARCH(\">\",'CFR - XML import'!$A144,1)+1,SEARCH(\"/\",'CFR - XML import'!$A144,1)-SEARCH(\">\",'CFR - XML import'!$A144,1)-2))","v":0},{"$f":"IF(ISERROR(FIND(CL$3,'CFR - XML import'!$A144)),0,MID('CFR - XML import'!$A144,SEARCH(\">\",'CFR - XML import'!$A144,1)+1,SEARCH(\"/\",'CFR - XML import'!$A144,1)-SEARCH(\">\",'CFR - XML import'!$A144,1)-2))","v":0}]
[{"$f":"IF(AND('CFR - XML import'!A145<>\"\",LEFT('CFR - XML import'!A145,1)<>\"<\",LEFT('CFR - XML import'!A145,3)<>\"  <\",LEFT('CFR - XML import'!A145,5)<>\"    <\",LEFT('CFR - XML import'!A145,7)<>\"      <\",LEFT('CFR - XML import'!A145,9)<>\"        <\",$B$1=\"SIMS\"),'CFR - XML import'!A145,IF(AND(LEFT('CFR - XML import'!A145,9)=\"<Details>\",$B$1=\"RM\"),'CFR - XML import'!A145,\"\"))","v":""},{"$f":"IF(ISERROR(FIND(B$3,'CFR - XML import'!$A145)),0,VALUE(MID('CFR - XML import'!$A145,SEARCH(\">\",'CFR - XML import'!$A145,1)+1,SEARCH(\"/\",'CFR - XML import'!$A145,1)-SEARCH(\">\",'CFR - XML import'!$A145,1)-2)))","v":0},null,{"$f":"IF(ISERROR(FIND(D$3,'CFR - XML import'!$A145)),0,MID('CFR - XML import'!$A145,SEARCH(\">\",'CFR - XML import'!$A145,1)+1,SEARCH(\"/\",'CFR - XML import'!$A145,1)-SEARCH(\">\",'CFR - XML import'!$A145,1)-2))","v":0},{"$f":"IF(ISERROR(FIND(E$3,'CFR - XML import'!$A145)),0,MID('CFR - XML import'!$A145,SEARCH(\">\",'CFR - XML import'!$A145,1)+1,SEARCH(\"/\",'CFR - XML import'!$A145,1)-SEARCH(\">\",'CFR - XML import'!$A145,1)-2))","v":0},{"$f":"IF($B$1=\"SIMS\",IF(ISERROR(FIND(F$3,'CFR - XML import'!$A145)),0,VALUE(MID('CFR - XML import'!$A145,15,10))),IF(ISERROR(FIND(F$3,'CFR - XML import'!$A145)),0,VALUE(MID('CFR - XML import'!$A145,11,10))))","v":"00:00:00"},{"$f":"IF(ISERROR(FIND(G$3,'CFR - XML import'!$A145)),0,VALUE(MID('CFR - XML import'!$A145,SEARCH(\">\",'CFR - XML import'!$A145,1)+1,SEARCH(\"/\",'CFR - XML import'!$A145,1)-SEARCH(\">\",'CFR - XML import'!$A145,1)-2)))","v":0},{"$f":"IF(ISERROR(FIND(H$3,'CFR - XML import'!$A145)),0,VALUE(MID('CFR - XML import'!$A145,SEARCH(\">\",'CFR - XML import'!$A145,1)+1,SEARCH(\"/\",'CFR - XML import'!$A145,1)-SEARCH(\">\",'CFR - XML import'!$A145,1)-2)))","v":0},{"$f":"IF(ISERROR(FIND(I$3,'CFR - XML import'!$A145)),0,VALUE(MID('CFR - XML import'!$A145,SEARCH(\">\",'CFR - XML import'!$A145,1)+1,SEARCH(\"/\",'CFR - XML import'!$A145,1)-SEARCH(\">\",'CFR - XML import'!$A145,1)-2)))","v":0},{"$f":"IF(ISERROR(FIND(J$3,'CFR - XML import'!$A145)),0,VALUE(MID('CFR - XML import'!$A145,SEARCH(\">\",'CFR - XML import'!$A145,1)+1,SEARCH(\"/\",'CFR - XML import'!$A145,1)-SEARCH(\">\",'CFR - XML import'!$A145,1)-2)))","v":0},{"$f":"IF(ISERROR(FIND(K$3,'CFR - XML import'!$A145)),0,VALUE(MID('CFR - XML import'!$A145,SEARCH(\">\",'CFR - XML import'!$A145,1)+1,SEARCH(\"/\",'CFR - XML import'!$A145,1)-SEARCH(\">\",'CFR - XML import'!$A145,1)-2)))","v":0},{"$f":"IF(ISERROR(FIND(L$3,'CFR - XML import'!$A145)),0,VALUE(MID('CFR - XML import'!$A145,SEARCH(\">\",'CFR - XML import'!$A145,1)+1,SEARCH(\"/\",'CFR - XML import'!$A145,1)-SEARCH(\">\",'CFR - XML import'!$A145,1)-2)))","v":0},{"$f":"IF(ISERROR(FIND(M$3,'CFR - XML import'!$A145)),0,VALUE(MID('CFR - XML import'!$A145,SEARCH(\">\",'CFR - XML import'!$A145,1)+1,SEARCH(\"/\",'CFR - XML import'!$A145,1)-SEARCH(\">\",'CFR - XML import'!$A145,1)-2)))","v":0},{"$f":"IF(ISERROR(FIND(N$3,'CFR - XML import'!$A145)),0,VALUE(MID('CFR - XML import'!$A145,SEARCH(\">\",'CFR - XML import'!$A145,1)+1,SEARCH(\"/\",'CFR - XML import'!$A145,1)-SEARCH(\">\",'CFR - XML import'!$A145,1)-2)))","v":0},{"$f":"IF(ISERROR(FIND(O$3,'CFR - XML import'!$A145)),0,VALUE(MID('CFR - XML import'!$A145,SEARCH(\">\",'CFR - XML import'!$A145,1)+1,SEARCH(\"/\",'CFR - XML import'!$A145,1)-SEARCH(\">\",'CFR - XML import'!$A145,1)-2)))","v":0},{"$f":"IF(ISERROR(FIND(P$3,'CFR - XML import'!$A145)),0,VALUE(MID('CFR - XML import'!$A145,SEARCH(\">\",'CFR - XML import'!$A145,1)+1,SEARCH(\"/\",'CFR - XML import'!$A145,1)-SEARCH(\">\",'CFR - XML import'!$A145,1)-2)))","v":0},{"$f":"IF(ISERROR(FIND(Q$3,'CFR - XML import'!$A145)),0,VALUE(MID('CFR - XML import'!$A145,SEARCH(\">\",'CFR - XML import'!$A145,1)+1,SEARCH(\"/\",'CFR - XML import'!$A145,1)-SEARCH(\">\",'CFR - XML import'!$A145,1)-2)))","v":0},{"$f":"IF(ISERROR(FIND(R$3,'CFR - XML import'!$A145)),0,VALUE(MID('CFR - XML import'!$A145,SEARCH(\">\",'CFR - XML import'!$A145,1)+1,SEARCH(\"/\",'CFR - XML import'!$A145,1)-SEARCH(\">\",'CFR - XML import'!$A145,1)-2)))","v":0},{"$f":"IF(ISERROR(FIND(S$3,'CFR - XML import'!$A145)),0,VALUE(MID('CFR - XML import'!$A145,SEARCH(\">\",'CFR - XML import'!$A145,1)+1,SEARCH(\"/\",'CFR - XML import'!$A145,1)-SEARCH(\">\",'CFR - XML import'!$A145,1)-2)))","v":0},{"$f":"IF(ISERROR(FIND(T$3,'CFR - XML import'!$A145)),0,VALUE(MID('CFR - XML import'!$A145,SEARCH(\">\",'CFR - XML import'!$A145,1)+1,SEARCH(\"/\",'CFR - XML import'!$A145,1)-SEARCH(\">\",'CFR - XML import'!$A145,1)-2)))","v":0},{"$f":"IF(ISERROR(FIND(U$3,'CFR - XML import'!$A145)),0,VALUE(MID('CFR - XML import'!$A145,SEARCH(\">\",'CFR - XML import'!$A145,1)+1,SEARCH(\"/\",'CFR - XML import'!$A145,1)-SEARCH(\">\",'CFR - XML import'!$A145,1)-2)))","v":0},{"$f":"IF(ISERROR(FIND(V$3,'CFR - XML import'!$A145)),0,VALUE(MID('CFR - XML import'!$A145,SEARCH(\">\",'CFR - XML import'!$A145,1)+1,SEARCH(\"/\",'CFR - XML import'!$A145,1)-SEARCH(\">\",'CFR - XML import'!$A145,1)-2)))","v":0},{"$f":"IF(ISERROR(FIND(W$3,'CFR - XML import'!$A145)),0,VALUE(MID('CFR - XML import'!$A145,SEARCH(\">\",'CFR - XML import'!$A145,1)+1,SEARCH(\"/\",'CFR - XML import'!$A145,1)-SEARCH(\">\",'CFR - XML import'!$A145,1)-2)))","v":0},null,{"$f":"IF(ISERROR(FIND(Y$3,'CFR - XML import'!$A145)),0,VALUE(MID('CFR - XML import'!$A145,SEARCH(\">\",'CFR - XML import'!$A145,1)+1,SEARCH(\"/\",'CFR - XML import'!$A145,1)-SEARCH(\">\",'CFR - XML import'!$A145,1)-2)))","v":0},{"$f":"IF(ISERROR(FIND(Z$3,'CFR - XML import'!$A145)),0,VALUE(MID('CFR - XML import'!$A145,SEARCH(\">\",'CFR - XML import'!$A145,1)+1,SEARCH(\"/\",'CFR - XML import'!$A145,1)-SEARCH(\">\",'CFR - XML import'!$A145,1)-2)))","v":0},{"$f":"IF(ISERROR(FIND(AA$3,'CFR - XML import'!$A145)),0,VALUE(MID('CFR - XML import'!$A145,SEARCH(\">\",'CFR - XML import'!$A145,1)+1,SEARCH(\"/\",'CFR - XML import'!$A145,1)-SEARCH(\">\",'CFR - XML import'!$A145,1)-2)))","v":0},{"$f":"IF(ISERROR(FIND(AB$3,'CFR - XML import'!$A145)),0,VALUE(MID('CFR - XML import'!$A145,SEARCH(\">\",'CFR - XML import'!$A145,1)+1,SEARCH(\"/\",'CFR - XML import'!$A145,1)-SEARCH(\">\",'CFR - XML import'!$A145,1)-2)))","v":0},{"$f":"IF(ISERROR(FIND(AC$3,'CFR - XML import'!$A145)),0,VALUE(MID('CFR - XML import'!$A145,SEARCH(\">\",'CFR - XML import'!$A145,1)+1,SEARCH(\"/\",'CFR - XML import'!$A145,1)-SEARCH(\">\",'CFR - XML import'!$A145,1)-2)))","v":0},{"$f":"IF(ISERROR(FIND(AD$3,'CFR - XML import'!$A145)),0,VALUE(MID('CFR - XML import'!$A145,SEARCH(\">\",'CFR - XML import'!$A145,1)+1,SEARCH(\"/\",'CFR - XML import'!$A145,1)-SEARCH(\">\",'CFR - XML import'!$A145,1)-2)))","v":0},{"$f":"IF(ISERROR(FIND(AE$3,'CFR - XML import'!$A145)),0,VALUE(MID('CFR - XML import'!$A145,SEARCH(\">\",'CFR - XML import'!$A145,1)+1,SEARCH(\"/\",'CFR - XML import'!$A145,1)-SEARCH(\">\",'CFR - XML import'!$A145,1)-2)))","v":0},{"$f":"IF(ISERROR(FIND(AF$3,'CFR - XML import'!$A145)),0,VALUE(MID('CFR - XML import'!$A145,SEARCH(\">\",'CFR - XML import'!$A145,1)+1,SEARCH(\"/\",'CFR - XML import'!$A145,1)-SEARCH(\">\",'CFR - XML import'!$A145,1)-2)))","v":0},{"$f":"IF(ISERROR(FIND(AG$3,'CFR - XML import'!$A145)),0,VALUE(MID('CFR - XML import'!$A145,SEARCH(\">\",'CFR - XML import'!$A145,1)+1,SEARCH(\"/\",'CFR - XML import'!$A145,1)-SEARCH(\">\",'CFR - XML import'!$A145,1)-2)))","v":0},{"$f":"IF(ISERROR(FIND(AH$3,'CFR - XML import'!$A145)),0,VALUE(MID('CFR - XML import'!$A145,SEARCH(\">\",'CFR - XML import'!$A145,1)+1,SEARCH(\"/\",'CFR - XML import'!$A145,1)-SEARCH(\">\",'CFR - XML import'!$A145,1)-2)))","v":0},{"$f":"IF(ISERROR(FIND(AI$3,'CFR - XML import'!$A145)),0,VALUE(MID('CFR - XML import'!$A145,SEARCH(\">\",'CFR - XML import'!$A145,1)+1,SEARCH(\"/\",'CFR - XML import'!$A145,1)-SEARCH(\">\",'CFR - XML import'!$A145,1)-2)))","v":0},{"$f":"IF(ISERROR(FIND(AJ$3,'CFR - XML import'!$A145)),0,VALUE(MID('CFR - XML import'!$A145,SEARCH(\">\",'CFR - XML import'!$A145,1)+1,SEARCH(\"/\",'CFR - XML import'!$A145,1)-SEARCH(\">\",'CFR - XML import'!$A145,1)-2)))","v":0},{"$f":"IF(ISERROR(FIND(AK$3,'CFR - XML import'!$A145)),0,VALUE(MID('CFR - XML import'!$A145,SEARCH(\">\",'CFR - XML import'!$A145,1)+1,SEARCH(\"/\",'CFR - XML import'!$A145,1)-SEARCH(\">\",'CFR - XML import'!$A145,1)-2)))","v":0},{"$f":"IF(ISERROR(FIND(AL$3,'CFR - XML import'!$A145)),0,VALUE(MID('CFR - XML import'!$A145,SEARCH(\">\",'CFR - XML import'!$A145,1)+1,SEARCH(\"/\",'CFR - XML import'!$A145,1)-SEARCH(\">\",'CFR - XML import'!$A145,1)-2)))","v":0},{"$f":"IF(ISERROR(FIND(AM$3,'CFR - XML import'!$A145)),0,VALUE(MID('CFR - XML import'!$A145,SEARCH(\">\",'CFR - XML import'!$A145,1)+1,SEARCH(\"/\",'CFR - XML import'!$A145,1)-SEARCH(\">\",'CFR - XML import'!$A145,1)-2)))","v":0},{"$f":"IF(ISERROR(FIND(AN$3,'CFR - XML import'!$A145)),0,VALUE(MID('CFR - XML import'!$A145,SEARCH(\">\",'CFR - XML import'!$A145,1)+1,SEARCH(\"/\",'CFR - XML import'!$A145,1)-SEARCH(\">\",'CFR - XML import'!$A145,1)-2)))","v":0},{"$f":"IF(ISERROR(FIND(AO$3,'CFR - XML import'!$A145)),0,VALUE(MID('CFR - XML import'!$A145,SEARCH(\">\",'CFR - XML import'!$A145,1)+1,SEARCH(\"/\",'CFR - XML import'!$A145,1)-SEARCH(\">\",'CFR - XML import'!$A145,1)-2)))","v":0},{"$f":"IF(ISERROR(FIND(AP$3,'CFR - XML import'!$A145)),0,VALUE(MID('CFR - XML import'!$A145,SEARCH(\">\",'CFR - XML import'!$A145,1)+1,SEARCH(\"/\",'CFR - XML import'!$A145,1)-SEARCH(\">\",'CFR - XML import'!$A145,1)-2)))","v":0},{"$f":"IF(ISERROR(FIND(AQ$3,'CFR - XML import'!$A145)),0,VALUE(MID('CFR - XML import'!$A145,SEARCH(\">\",'CFR - XML import'!$A145,1)+1,SEARCH(\"/\",'CFR - XML import'!$A145,1)-SEARCH(\">\",'CFR - XML import'!$A145,1)-2)))","v":0},{"$f":"IF(ISERROR(FIND(AR$3,'CFR - XML import'!$A145)),0,VALUE(MID('CFR - XML import'!$A145,SEARCH(\">\",'CFR - XML import'!$A145,1)+1,SEARCH(\"/\",'CFR - XML import'!$A145,1)-SEARCH(\">\",'CFR - XML import'!$A145,1)-2)))","v":0},{"$f":"IF(ISERROR(FIND(AS$3,'CFR - XML import'!$A145)),0,VALUE(MID('CFR - XML import'!$A145,SEARCH(\">\",'CFR - XML import'!$A145,1)+1,SEARCH(\"/\",'CFR - XML import'!$A145,1)-SEARCH(\">\",'CFR - XML import'!$A145,1)-2)))","v":0},{"$f":"IF(ISERROR(FIND(AT$3,'CFR - XML import'!$A145)),0,VALUE(MID('CFR - XML import'!$A145,SEARCH(\">\",'CFR - XML import'!$A145,1)+1,SEARCH(\"/\",'CFR - XML import'!$A145,1)-SEARCH(\">\",'CFR - XML import'!$A145,1)-2)))","v":0},{"$f":"IF(ISERROR(FIND(AU$3,'CFR - XML import'!$A145)),0,VALUE(MID('CFR - XML import'!$A145,SEARCH(\">\",'CFR - XML import'!$A145,1)+1,SEARCH(\"/\",'CFR - XML import'!$A145,1)-SEARCH(\">\",'CFR - XML import'!$A145,1)-2)))","v":0},{"$f":"IF(ISERROR(FIND(AV$3,'CFR - XML import'!$A145)),0,VALUE(MID('CFR - XML import'!$A145,SEARCH(\">\",'CFR - XML import'!$A145,1)+1,SEARCH(\"/\",'CFR - XML import'!$A145,1)-SEARCH(\">\",'CFR - XML import'!$A145,1)-2)))","v":0},{"$f":"IF(ISERROR(FIND(AW$3,'CFR - XML import'!$A145)),0,VALUE(MID('CFR - XML import'!$A145,SEARCH(\">\",'CFR - XML import'!$A145,1)+1,SEARCH(\"/\",'CFR - XML import'!$A145,1)-SEARCH(\">\",'CFR - XML import'!$A145,1)-2)))","v":0},{"$f":"IF(ISERROR(FIND(AX$3,'CFR - XML import'!$A145)),0,VALUE(MID('CFR - XML import'!$A145,SEARCH(\">\",'CFR - XML import'!$A145,1)+1,SEARCH(\"/\",'CFR - XML import'!$A145,1)-SEARCH(\">\",'CFR - XML import'!$A145,1)-2)))","v":0},{"$f":"IF(ISERROR(FIND(AY$3,'CFR - XML import'!$A145)),0,VALUE(MID('CFR - XML import'!$A145,SEARCH(\">\",'CFR - XML import'!$A145,1)+1,SEARCH(\"/\",'CFR - XML import'!$A145,1)-SEARCH(\">\",'CFR - XML import'!$A145,1)-2)))","v":0},{"$f":"IF(ISERROR(FIND(AZ$3,'CFR - XML import'!$A145)),0,VALUE(MID('CFR - XML import'!$A145,SEARCH(\">\",'CFR - XML import'!$A145,1)+1,SEARCH(\"/\",'CFR - XML import'!$A145,1)-SEARCH(\">\",'CFR - XML import'!$A145,1)-2)))","v":0},{"$f":"IF(ISERROR(FIND(BA$3,'CFR - XML import'!$A145)),0,VALUE(MID('CFR - XML import'!$A145,SEARCH(\">\",'CFR - XML import'!$A145,1)+1,SEARCH(\"/\",'CFR - XML import'!$A145,1)-SEARCH(\">\",'CFR - XML import'!$A145,1)-2)))","v":0},{"$f":"IF(ISERROR(FIND(BB$3,'CFR - XML import'!$A145)),0,VALUE(MID('CFR - XML import'!$A145,SEARCH(\">\",'CFR - XML import'!$A145,1)+1,SEARCH(\"/\",'CFR - XML import'!$A145,1)-SEARCH(\">\",'CFR - XML import'!$A145,1)-2)))","v":0},{"$f":"IF(ISERROR(FIND(BC$3,'CFR - XML import'!$A145)),0,VALUE(MID('CFR - XML import'!$A145,SEARCH(\">\",'CFR - XML import'!$A145,1)+1,SEARCH(\"/\",'CFR - XML import'!$A145,1)-SEARCH(\">\",'CFR - XML import'!$A145,1)-2)))","v":0},{"$f":"IF(ISERROR(FIND(BD$3,'CFR - XML import'!$A145)),0,VALUE(MID('CFR - XML import'!$A145,SEARCH(\">\",'CFR - XML import'!$A145,1)+1,SEARCH(\"/\",'CFR - XML import'!$A145,1)-SEARCH(\">\",'CFR - XML import'!$A145,1)-2)))","v":0},{"$f":"IF(ISERROR(FIND(BE$3,'CFR - XML import'!$A145)),0,VALUE(MID('CFR - XML import'!$A145,SEARCH(\">\",'CFR - XML import'!$A145,1)+1,SEARCH(\"/\",'CFR - XML import'!$A145,1)-SEARCH(\">\",'CFR - XML import'!$A145,1)-2)))","v":0},{"$f":"IF(ISERROR(FIND(BF$3,'CFR - XML import'!$A145)),0,VALUE(MID('CFR - XML import'!$A145,SEARCH(\">\",'CFR - XML import'!$A145,1)+1,SEARCH(\"/\",'CFR - XML import'!$A145,1)-SEARCH(\">\",'CFR - XML import'!$A145,1)-2)))","v":0},{"$f":"IF(ISERROR(FIND(BG$3,'CFR - XML import'!$A145)),0,VALUE(MID('CFR - XML import'!$A145,SEARCH(\">\",'CFR - XML import'!$A145,1)+1,SEARCH(\"/\",'CFR - XML import'!$A145,1)-SEARCH(\">\",'CFR - XML import'!$A145,1)-2)))","v":0},{"$f":"IF(ISERROR(FIND(BH$3,'CFR - XML import'!$A145)),0,VALUE(MID('CFR - XML import'!$A145,SEARCH(\">\",'CFR - XML import'!$A145,1)+1,SEARCH(\"/\",'CFR - XML import'!$A145,1)-SEARCH(\">\",'CFR - XML import'!$A145,1)-2)))","v":0},{"$f":"IF(ISERROR(FIND(BI$3,'CFR - XML import'!$A145)),0,VALUE(MID('CFR - XML import'!$A145,SEARCH(\">\",'CFR - XML import'!$A145,1)+1,SEARCH(\"/\",'CFR - XML import'!$A145,1)-SEARCH(\">\",'CFR - XML import'!$A145,1)-2)))","v":0},{"$f":"IF(ISERROR(FIND(BJ$3,'CFR - XML import'!$A145)),0,VALUE(MID('CFR - XML import'!$A145,SEARCH(\">\",'CFR - XML import'!$A145,1)+1,SEARCH(\"/\",'CFR - XML import'!$A145,1)-SEARCH(\">\",'CFR - XML import'!$A145,1)-2)))","v":0},{"$f":"IF(ISERROR(FIND(BK$3,'CFR - XML import'!$A145)),0,VALUE(MID('CFR - XML import'!$A145,SEARCH(\">\",'CFR - XML import'!$A145,1)+1,SEARCH(\"/\",'CFR - XML import'!$A145,1)-SEARCH(\">\",'CFR - XML import'!$A145,1)-2)))","v":0},{"$f":"IF(ISERROR(FIND(BL$3,'CFR - XML import'!$A145)),0,VALUE(MID('CFR - XML import'!$A145,SEARCH(\">\",'CFR - XML import'!$A145,1)+1,SEARCH(\"/\",'CFR - XML import'!$A145,1)-SEARCH(\">\",'CFR - XML import'!$A145,1)-2)))","v":0},{"$f":"IF(ISERROR(FIND(BM$3,'CFR - XML import'!$A145)),0,VALUE(MID('CFR - XML import'!$A145,SEARCH(\">\",'CFR - XML import'!$A145,1)+1,SEARCH(\"/\",'CFR - XML import'!$A145,1)-SEARCH(\">\",'CFR - XML import'!$A145,1)-2)))","v":0},{"$f":"IF(ISERROR(FIND(BN$3,'CFR - XML import'!$A145)),0,VALUE(MID('CFR - XML import'!$A145,SEARCH(\">\",'CFR - XML import'!$A145,1)+1,SEARCH(\"/\",'CFR - XML import'!$A145,1)-SEARCH(\">\",'CFR - XML import'!$A145,1)-2)))","v":0},{"$f":"IF(ISERROR(FIND(BO$3,'CFR - XML import'!$A145)),0,VALUE(MID('CFR - XML import'!$A145,SEARCH(\">\",'CFR - XML import'!$A145,1)+1,SEARCH(\"/\",'CFR - XML import'!$A145,1)-SEARCH(\">\",'CFR - XML import'!$A145,1)-2)))","v":0},{"$f":"IF(ISERROR(FIND(BP$3,'CFR - XML import'!$A145)),0,VALUE(MID('CFR - XML import'!$A145,SEARCH(\">\",'CFR - XML import'!$A145,1)+1,SEARCH(\"/\",'CFR - XML import'!$A145,1)-SEARCH(\">\",'CFR - XML import'!$A145,1)-2)))","v":0},{"$f":"IF(ISERROR(FIND(BQ$3,'CFR - XML import'!$A145)),0,VALUE(MID('CFR - XML import'!$A145,SEARCH(\">\",'CFR - XML import'!$A145,1)+1,SEARCH(\"/\",'CFR - XML import'!$A145,1)-SEARCH(\">\",'CFR - XML import'!$A145,1)-2)))","v":0},{"$f":"IF(ISERROR(FIND(BR$3,'CFR - XML import'!$A145)),0,VALUE(MID('CFR - XML import'!$A145,SEARCH(\">\",'CFR - XML import'!$A145,1)+1,SEARCH(\"/\",'CFR - XML import'!$A145,1)-SEARCH(\">\",'CFR - XML import'!$A145,1)-2)))","v":0},{"$f":"IF(ISERROR(FIND(BS$3,'CFR - XML import'!$A145)),0,VALUE(MID('CFR - XML import'!$A145,SEARCH(\">\",'CFR - XML import'!$A145,1)+1,SEARCH(\"/\",'CFR - XML import'!$A145,1)-SEARCH(\">\",'CFR - XML import'!$A145,1)-2)))","v":0},{"$f":"IF(ISERROR(FIND(BT$3,'CFR - XML import'!$A145)),0,VALUE(MID('CFR - XML import'!$A145,SEARCH(\">\",'CFR - XML import'!$A145,1)+1,SEARCH(\"/\",'CFR - XML import'!$A145,1)-SEARCH(\">\",'CFR - XML import'!$A145,1)-2)))","v":0},{"$f":"IF(ISERROR(FIND(BU$3,'CFR - XML import'!$A145)),0,VALUE(MID('CFR - XML import'!$A145,SEARCH(\">\",'CFR - XML import'!$A145,1)+1,SEARCH(\"/\",'CFR - XML import'!$A145,1)-SEARCH(\">\",'CFR - XML import'!$A145,1)-2)))","v":0},{"$f":"IF(ISERROR(FIND(BV$3,'CFR - XML import'!$A145)),0,VALUE(MID('CFR - XML import'!$A145,SEARCH(\">\",'CFR - XML import'!$A145,1)+1,SEARCH(\"/\",'CFR - XML import'!$A145,1)-SEARCH(\">\",'CFR - XML import'!$A145,1)-2)))","v":0},{"$f":"IF(ISERROR(FIND(BW$3,'CFR - XML import'!$A145)),0,VALUE(MID('CFR - XML import'!$A145,SEARCH(\">\",'CFR - XML import'!$A145,1)+1,SEARCH(\"/\",'CFR - XML import'!$A145,1)-SEARCH(\">\",'CFR - XML import'!$A145,1)-2)))","v":0},{"$f":"IF(ISERROR(FIND(BX$3,'CFR - XML import'!$A145)),0,VALUE(MID('CFR - XML import'!$A145,SEARCH(\">\",'CFR - XML import'!$A145,1)+1,SEARCH(\"/\",'CFR - XML import'!$A145,1)-SEARCH(\">\",'CFR - XML import'!$A145,1)-2)))","v":0},{"$f":"IF(ISERROR(FIND(BY$3,'CFR - XML import'!$A145)),0,VALUE(MID('CFR - XML import'!$A145,SEARCH(\">\",'CFR - XML import'!$A145,1)+1,SEARCH(\"/\",'CFR - XML import'!$A145,1)-SEARCH(\">\",'CFR - XML import'!$A145,1)-2)))","v":0},{"$f":"IF(ISERROR(FIND(BZ$3,'CFR - XML import'!$A145)),0,VALUE(MID('CFR - XML import'!$A145,SEARCH(\">\",'CFR - XML import'!$A145,1)+1,SEARCH(\"/\",'CFR - XML import'!$A145,1)-SEARCH(\">\",'CFR - XML import'!$A145,1)-2)))","v":0},null,null,null,null,null,null,{"$f":"IF(ISERROR(IF(MID('CFR - XML import'!$A145,LEN($CF$4)+1,LEN('CFR - XML import'!$A145)-(2*LEN($CF$4)+1))=\"RMMS\",1,IF(MID('CFR - XML import'!$A145,LEN(\"    <InputSystem>\")+1,LEN('CFR - XML import'!$A145)-(LEN(\"    <InputSystem>\")+LEN($CF$4)+1))=\"SIMS\",2,0))),0,IF(MID('CFR - XML import'!$A145,LEN($CF$4)+1,LEN('CFR - XML import'!$A145)-(2*LEN($CF$4)+1))=\"RMMS\",1,IF(MID('CFR - XML import'!$A145,LEN(\"    <InputSystem>\")+1,LEN('CFR - XML import'!$A145)-(LEN(\"    <InputSystem>\")+LEN($CF$4)+1))=\"SIMS\",2,0)))","v":0},{"$f":"IF(ISERROR(FIND(CH$3,'CFR - XML import'!$A145)),0,MID('CFR - XML import'!$A145,SEARCH(\">\",'CFR - XML import'!$A145,1)+1,SEARCH(\"/\",'CFR - XML import'!$A145,1)-SEARCH(\">\",'CFR - XML import'!$A145,1)-2))","v":0},{"$f":"IF(ISERROR(FIND(CI$3,'CFR - XML import'!$A145)),0,MID('CFR - XML import'!$A145,SEARCH(\">\",'CFR - XML import'!$A145,1)+1,SEARCH(\"/\",'CFR - XML import'!$A145,1)-SEARCH(\">\",'CFR - XML import'!$A145,1)-2))","v":0},{"$f":"IF(ISERROR(FIND(CJ$3,'CFR - XML import'!$A145)),0,MID('CFR - XML import'!$A145,SEARCH(\">\",'CFR - XML import'!$A145,1)+1,SEARCH(\"/\",'CFR - XML import'!$A145,1)-SEARCH(\">\",'CFR - XML import'!$A145,1)-2))","v":0},{"$f":"IF(ISERROR(FIND(CK$3,'CFR - XML import'!$A145)),0,MID('CFR - XML import'!$A145,SEARCH(\">\",'CFR - XML import'!$A145,1)+1,SEARCH(\"/\",'CFR - XML import'!$A145,1)-SEARCH(\">\",'CFR - XML import'!$A145,1)-2))","v":0},{"$f":"IF(ISERROR(FIND(CL$3,'CFR - XML import'!$A145)),0,MID('CFR - XML import'!$A145,SEARCH(\">\",'CFR - XML import'!$A145,1)+1,SEARCH(\"/\",'CFR - XML import'!$A145,1)-SEARCH(\">\",'CFR - XML import'!$A145,1)-2))","v":0}]
[{"$f":"IF(AND('CFR - XML import'!A146<>\"\",LEFT('CFR - XML import'!A146,1)<>\"<\",LEFT('CFR - XML import'!A146,3)<>\"  <\",LEFT('CFR - XML import'!A146,5)<>\"    <\",LEFT('CFR - XML import'!A146,7)<>\"      <\",LEFT('CFR - XML import'!A146,9)<>\"        <\",$B$1=\"SIMS\"),'CFR - XML import'!A146,IF(AND(LEFT('CFR - XML import'!A146,9)=\"<Details>\",$B$1=\"RM\"),'CFR - XML import'!A146,\"\"))","v":""},{"$f":"IF(ISERROR(FIND(B$3,'CFR - XML import'!$A146)),0,VALUE(MID('CFR - XML import'!$A146,SEARCH(\">\",'CFR - XML import'!$A146,1)+1,SEARCH(\"/\",'CFR - XML import'!$A146,1)-SEARCH(\">\",'CFR - XML import'!$A146,1)-2)))","v":0},null,{"$f":"IF(ISERROR(FIND(D$3,'CFR - XML import'!$A146)),0,MID('CFR - XML import'!$A146,SEARCH(\">\",'CFR - XML import'!$A146,1)+1,SEARCH(\"/\",'CFR - XML import'!$A146,1)-SEARCH(\">\",'CFR - XML import'!$A146,1)-2))","v":0},{"$f":"IF(ISERROR(FIND(E$3,'CFR - XML import'!$A146)),0,MID('CFR - XML import'!$A146,SEARCH(\">\",'CFR - XML import'!$A146,1)+1,SEARCH(\"/\",'CFR - XML import'!$A146,1)-SEARCH(\">\",'CFR - XML import'!$A146,1)-2))","v":0},{"$f":"IF($B$1=\"SIMS\",IF(ISERROR(FIND(F$3,'CFR - XML import'!$A146)),0,VALUE(MID('CFR - XML import'!$A146,15,10))),IF(ISERROR(FIND(F$3,'CFR - XML import'!$A146)),0,VALUE(MID('CFR - XML import'!$A146,11,10))))","v":"00:00:00"},{"$f":"IF(ISERROR(FIND(G$3,'CFR - XML import'!$A146)),0,VALUE(MID('CFR - XML import'!$A146,SEARCH(\">\",'CFR - XML import'!$A146,1)+1,SEARCH(\"/\",'CFR - XML import'!$A146,1)-SEARCH(\">\",'CFR - XML import'!$A146,1)-2)))","v":0},{"$f":"IF(ISERROR(FIND(H$3,'CFR - XML import'!$A146)),0,VALUE(MID('CFR - XML import'!$A146,SEARCH(\">\",'CFR - XML import'!$A146,1)+1,SEARCH(\"/\",'CFR - XML import'!$A146,1)-SEARCH(\">\",'CFR - XML import'!$A146,1)-2)))","v":0},{"$f":"IF(ISERROR(FIND(I$3,'CFR - XML import'!$A146)),0,VALUE(MID('CFR - XML import'!$A146,SEARCH(\">\",'CFR - XML import'!$A146,1)+1,SEARCH(\"/\",'CFR - XML import'!$A146,1)-SEARCH(\">\",'CFR - XML import'!$A146,1)-2)))","v":0},{"$f":"IF(ISERROR(FIND(J$3,'CFR - XML import'!$A146)),0,VALUE(MID('CFR - XML import'!$A146,SEARCH(\">\",'CFR - XML import'!$A146,1)+1,SEARCH(\"/\",'CFR - XML import'!$A146,1)-SEARCH(\">\",'CFR - XML import'!$A146,1)-2)))","v":0},{"$f":"IF(ISERROR(FIND(K$3,'CFR - XML import'!$A146)),0,VALUE(MID('CFR - XML import'!$A146,SEARCH(\">\",'CFR - XML import'!$A146,1)+1,SEARCH(\"/\",'CFR - XML import'!$A146,1)-SEARCH(\">\",'CFR - XML import'!$A146,1)-2)))","v":0},{"$f":"IF(ISERROR(FIND(L$3,'CFR - XML import'!$A146)),0,VALUE(MID('CFR - XML import'!$A146,SEARCH(\">\",'CFR - XML import'!$A146,1)+1,SEARCH(\"/\",'CFR - XML import'!$A146,1)-SEARCH(\">\",'CFR - XML import'!$A146,1)-2)))","v":0},{"$f":"IF(ISERROR(FIND(M$3,'CFR - XML import'!$A146)),0,VALUE(MID('CFR - XML import'!$A146,SEARCH(\">\",'CFR - XML import'!$A146,1)+1,SEARCH(\"/\",'CFR - XML import'!$A146,1)-SEARCH(\">\",'CFR - XML import'!$A146,1)-2)))","v":0},{"$f":"IF(ISERROR(FIND(N$3,'CFR - XML import'!$A146)),0,VALUE(MID('CFR - XML import'!$A146,SEARCH(\">\",'CFR - XML import'!$A146,1)+1,SEARCH(\"/\",'CFR - XML import'!$A146,1)-SEARCH(\">\",'CFR - XML import'!$A146,1)-2)))","v":0},{"$f":"IF(ISERROR(FIND(O$3,'CFR - XML import'!$A146)),0,VALUE(MID('CFR - XML import'!$A146,SEARCH(\">\",'CFR - XML import'!$A146,1)+1,SEARCH(\"/\",'CFR - XML import'!$A146,1)-SEARCH(\">\",'CFR - XML import'!$A146,1)-2)))","v":0},{"$f":"IF(ISERROR(FIND(P$3,'CFR - XML import'!$A146)),0,VALUE(MID('CFR - XML import'!$A146,SEARCH(\">\",'CFR - XML import'!$A146,1)+1,SEARCH(\"/\",'CFR - XML import'!$A146,1)-SEARCH(\">\",'CFR - XML import'!$A146,1)-2)))","v":0},{"$f":"IF(ISERROR(FIND(Q$3,'CFR - XML import'!$A146)),0,VALUE(MID('CFR - XML import'!$A146,SEARCH(\">\",'CFR - XML import'!$A146,1)+1,SEARCH(\"/\",'CFR - XML import'!$A146,1)-SEARCH(\">\",'CFR - XML import'!$A146,1)-2)))","v":0},{"$f":"IF(ISERROR(FIND(R$3,'CFR - XML import'!$A146)),0,VALUE(MID('CFR - XML import'!$A146,SEARCH(\">\",'CFR - XML import'!$A146,1)+1,SEARCH(\"/\",'CFR - XML import'!$A146,1)-SEARCH(\">\",'CFR - XML import'!$A146,1)-2)))","v":0},{"$f":"IF(ISERROR(FIND(S$3,'CFR - XML import'!$A146)),0,VALUE(MID('CFR - XML import'!$A146,SEARCH(\">\",'CFR - XML import'!$A146,1)+1,SEARCH(\"/\",'CFR - XML import'!$A146,1)-SEARCH(\">\",'CFR - XML import'!$A146,1)-2)))","v":0},{"$f":"IF(ISERROR(FIND(T$3,'CFR - XML import'!$A146)),0,VALUE(MID('CFR - XML import'!$A146,SEARCH(\">\",'CFR - XML import'!$A146,1)+1,SEARCH(\"/\",'CFR - XML import'!$A146,1)-SEARCH(\">\",'CFR - XML import'!$A146,1)-2)))","v":0},{"$f":"IF(ISERROR(FIND(U$3,'CFR - XML import'!$A146)),0,VALUE(MID('CFR - XML import'!$A146,SEARCH(\">\",'CFR - XML import'!$A146,1)+1,SEARCH(\"/\",'CFR - XML import'!$A146,1)-SEARCH(\">\",'CFR - XML import'!$A146,1)-2)))","v":0},{"$f":"IF(ISERROR(FIND(V$3,'CFR - XML import'!$A146)),0,VALUE(MID('CFR - XML import'!$A146,SEARCH(\">\",'CFR - XML import'!$A146,1)+1,SEARCH(\"/\",'CFR - XML import'!$A146,1)-SEARCH(\">\",'CFR - XML import'!$A146,1)-2)))","v":0},{"$f":"IF(ISERROR(FIND(W$3,'CFR - XML import'!$A146)),0,VALUE(MID('CFR - XML import'!$A146,SEARCH(\">\",'CFR - XML import'!$A146,1)+1,SEARCH(\"/\",'CFR - XML import'!$A146,1)-SEARCH(\">\",'CFR - XML import'!$A146,1)-2)))","v":0},null,{"$f":"IF(ISERROR(FIND(Y$3,'CFR - XML import'!$A146)),0,VALUE(MID('CFR - XML import'!$A146,SEARCH(\">\",'CFR - XML import'!$A146,1)+1,SEARCH(\"/\",'CFR - XML import'!$A146,1)-SEARCH(\">\",'CFR - XML import'!$A146,1)-2)))","v":0},{"$f":"IF(ISERROR(FIND(Z$3,'CFR - XML import'!$A146)),0,VALUE(MID('CFR - XML import'!$A146,SEARCH(\">\",'CFR - XML import'!$A146,1)+1,SEARCH(\"/\",'CFR - XML import'!$A146,1)-SEARCH(\">\",'CFR - XML import'!$A146,1)-2)))","v":0},{"$f":"IF(ISERROR(FIND(AA$3,'CFR - XML import'!$A146)),0,VALUE(MID('CFR - XML import'!$A146,SEARCH(\">\",'CFR - XML import'!$A146,1)+1,SEARCH(\"/\",'CFR - XML import'!$A146,1)-SEARCH(\">\",'CFR - XML import'!$A146,1)-2)))","v":0},{"$f":"IF(ISERROR(FIND(AB$3,'CFR - XML import'!$A146)),0,VALUE(MID('CFR - XML import'!$A146,SEARCH(\">\",'CFR - XML import'!$A146,1)+1,SEARCH(\"/\",'CFR - XML import'!$A146,1)-SEARCH(\">\",'CFR - XML import'!$A146,1)-2)))","v":0},{"$f":"IF(ISERROR(FIND(AC$3,'CFR - XML import'!$A146)),0,VALUE(MID('CFR - XML import'!$A146,SEARCH(\">\",'CFR - XML import'!$A146,1)+1,SEARCH(\"/\",'CFR - XML import'!$A146,1)-SEARCH(\">\",'CFR - XML import'!$A146,1)-2)))","v":0},{"$f":"IF(ISERROR(FIND(AD$3,'CFR - XML import'!$A146)),0,VALUE(MID('CFR - XML import'!$A146,SEARCH(\">\",'CFR - XML import'!$A146,1)+1,SEARCH(\"/\",'CFR - XML import'!$A146,1)-SEARCH(\">\",'CFR - XML import'!$A146,1)-2)))","v":0},{"$f":"IF(ISERROR(FIND(AE$3,'CFR - XML import'!$A146)),0,VALUE(MID('CFR - XML import'!$A146,SEARCH(\">\",'CFR - XML import'!$A146,1)+1,SEARCH(\"/\",'CFR - XML import'!$A146,1)-SEARCH(\">\",'CFR - XML import'!$A146,1)-2)))","v":0},{"$f":"IF(ISERROR(FIND(AF$3,'CFR - XML import'!$A146)),0,VALUE(MID('CFR - XML import'!$A146,SEARCH(\">\",'CFR - XML import'!$A146,1)+1,SEARCH(\"/\",'CFR - XML import'!$A146,1)-SEARCH(\">\",'CFR - XML import'!$A146,1)-2)))","v":0},{"$f":"IF(ISERROR(FIND(AG$3,'CFR - XML import'!$A146)),0,VALUE(MID('CFR - XML import'!$A146,SEARCH(\">\",'CFR - XML import'!$A146,1)+1,SEARCH(\"/\",'CFR - XML import'!$A146,1)-SEARCH(\">\",'CFR - XML import'!$A146,1)-2)))","v":0},{"$f":"IF(ISERROR(FIND(AH$3,'CFR - XML import'!$A146)),0,VALUE(MID('CFR - XML import'!$A146,SEARCH(\">\",'CFR - XML import'!$A146,1)+1,SEARCH(\"/\",'CFR - XML import'!$A146,1)-SEARCH(\">\",'CFR - XML import'!$A146,1)-2)))","v":0},{"$f":"IF(ISERROR(FIND(AI$3,'CFR - XML import'!$A146)),0,VALUE(MID('CFR - XML import'!$A146,SEARCH(\">\",'CFR - XML import'!$A146,1)+1,SEARCH(\"/\",'CFR - XML import'!$A146,1)-SEARCH(\">\",'CFR - XML import'!$A146,1)-2)))","v":0},{"$f":"IF(ISERROR(FIND(AJ$3,'CFR - XML import'!$A146)),0,VALUE(MID('CFR - XML import'!$A146,SEARCH(\">\",'CFR - XML import'!$A146,1)+1,SEARCH(\"/\",'CFR - XML import'!$A146,1)-SEARCH(\">\",'CFR - XML import'!$A146,1)-2)))","v":0},{"$f":"IF(ISERROR(FIND(AK$3,'CFR - XML import'!$A146)),0,VALUE(MID('CFR - XML import'!$A146,SEARCH(\">\",'CFR - XML import'!$A146,1)+1,SEARCH(\"/\",'CFR - XML import'!$A146,1)-SEARCH(\">\",'CFR - XML import'!$A146,1)-2)))","v":0},{"$f":"IF(ISERROR(FIND(AL$3,'CFR - XML import'!$A146)),0,VALUE(MID('CFR - XML import'!$A146,SEARCH(\">\",'CFR - XML import'!$A146,1)+1,SEARCH(\"/\",'CFR - XML import'!$A146,1)-SEARCH(\">\",'CFR - XML import'!$A146,1)-2)))","v":0},{"$f":"IF(ISERROR(FIND(AM$3,'CFR - XML import'!$A146)),0,VALUE(MID('CFR - XML import'!$A146,SEARCH(\">\",'CFR - XML import'!$A146,1)+1,SEARCH(\"/\",'CFR - XML import'!$A146,1)-SEARCH(\">\",'CFR - XML import'!$A146,1)-2)))","v":0},{"$f":"IF(ISERROR(FIND(AN$3,'CFR - XML import'!$A146)),0,VALUE(MID('CFR - XML import'!$A146,SEARCH(\">\",'CFR - XML import'!$A146,1)+1,SEARCH(\"/\",'CFR - XML import'!$A146,1)-SEARCH(\">\",'CFR - XML import'!$A146,1)-2)))","v":0},{"$f":"IF(ISERROR(FIND(AO$3,'CFR - XML import'!$A146)),0,VALUE(MID('CFR - XML import'!$A146,SEARCH(\">\",'CFR - XML import'!$A146,1)+1,SEARCH(\"/\",'CFR - XML import'!$A146,1)-SEARCH(\">\",'CFR - XML import'!$A146,1)-2)))","v":0},{"$f":"IF(ISERROR(FIND(AP$3,'CFR - XML import'!$A146)),0,VALUE(MID('CFR - XML import'!$A146,SEARCH(\">\",'CFR - XML import'!$A146,1)+1,SEARCH(\"/\",'CFR - XML import'!$A146,1)-SEARCH(\">\",'CFR - XML import'!$A146,1)-2)))","v":0},{"$f":"IF(ISERROR(FIND(AQ$3,'CFR - XML import'!$A146)),0,VALUE(MID('CFR - XML import'!$A146,SEARCH(\">\",'CFR - XML import'!$A146,1)+1,SEARCH(\"/\",'CFR - XML import'!$A146,1)-SEARCH(\">\",'CFR - XML import'!$A146,1)-2)))","v":0},{"$f":"IF(ISERROR(FIND(AR$3,'CFR - XML import'!$A146)),0,VALUE(MID('CFR - XML import'!$A146,SEARCH(\">\",'CFR - XML import'!$A146,1)+1,SEARCH(\"/\",'CFR - XML import'!$A146,1)-SEARCH(\">\",'CFR - XML import'!$A146,1)-2)))","v":0},{"$f":"IF(ISERROR(FIND(AS$3,'CFR - XML import'!$A146)),0,VALUE(MID('CFR - XML import'!$A146,SEARCH(\">\",'CFR - XML import'!$A146,1)+1,SEARCH(\"/\",'CFR - XML import'!$A146,1)-SEARCH(\">\",'CFR - XML import'!$A146,1)-2)))","v":0},{"$f":"IF(ISERROR(FIND(AT$3,'CFR - XML import'!$A146)),0,VALUE(MID('CFR - XML import'!$A146,SEARCH(\">\",'CFR - XML import'!$A146,1)+1,SEARCH(\"/\",'CFR - XML import'!$A146,1)-SEARCH(\">\",'CFR - XML import'!$A146,1)-2)))","v":0},{"$f":"IF(ISERROR(FIND(AU$3,'CFR - XML import'!$A146)),0,VALUE(MID('CFR - XML import'!$A146,SEARCH(\">\",'CFR - XML import'!$A146,1)+1,SEARCH(\"/\",'CFR - XML import'!$A146,1)-SEARCH(\">\",'CFR - XML import'!$A146,1)-2)))","v":0},{"$f":"IF(ISERROR(FIND(AV$3,'CFR - XML import'!$A146)),0,VALUE(MID('CFR - XML import'!$A146,SEARCH(\">\",'CFR - XML import'!$A146,1)+1,SEARCH(\"/\",'CFR - XML import'!$A146,1)-SEARCH(\">\",'CFR - XML import'!$A146,1)-2)))","v":0},{"$f":"IF(ISERROR(FIND(AW$3,'CFR - XML import'!$A146)),0,VALUE(MID('CFR - XML import'!$A146,SEARCH(\">\",'CFR - XML import'!$A146,1)+1,SEARCH(\"/\",'CFR - XML import'!$A146,1)-SEARCH(\">\",'CFR - XML import'!$A146,1)-2)))","v":0},{"$f":"IF(ISERROR(FIND(AX$3,'CFR - XML import'!$A146)),0,VALUE(MID('CFR - XML import'!$A146,SEARCH(\">\",'CFR - XML import'!$A146,1)+1,SEARCH(\"/\",'CFR - XML import'!$A146,1)-SEARCH(\">\",'CFR - XML import'!$A146,1)-2)))","v":0},{"$f":"IF(ISERROR(FIND(AY$3,'CFR - XML import'!$A146)),0,VALUE(MID('CFR - XML import'!$A146,SEARCH(\">\",'CFR - XML import'!$A146,1)+1,SEARCH(\"/\",'CFR - XML import'!$A146,1)-SEARCH(\">\",'CFR - XML import'!$A146,1)-2)))","v":0},{"$f":"IF(ISERROR(FIND(AZ$3,'CFR - XML import'!$A146)),0,VALUE(MID('CFR - XML import'!$A146,SEARCH(\">\",'CFR - XML import'!$A146,1)+1,SEARCH(\"/\",'CFR - XML import'!$A146,1)-SEARCH(\">\",'CFR - XML import'!$A146,1)-2)))","v":0},{"$f":"IF(ISERROR(FIND(BA$3,'CFR - XML import'!$A146)),0,VALUE(MID('CFR - XML import'!$A146,SEARCH(\">\",'CFR - XML import'!$A146,1)+1,SEARCH(\"/\",'CFR - XML import'!$A146,1)-SEARCH(\">\",'CFR - XML import'!$A146,1)-2)))","v":0},{"$f":"IF(ISERROR(FIND(BB$3,'CFR - XML import'!$A146)),0,VALUE(MID('CFR - XML import'!$A146,SEARCH(\">\",'CFR - XML import'!$A146,1)+1,SEARCH(\"/\",'CFR - XML import'!$A146,1)-SEARCH(\">\",'CFR - XML import'!$A146,1)-2)))","v":0},{"$f":"IF(ISERROR(FIND(BC$3,'CFR - XML import'!$A146)),0,VALUE(MID('CFR - XML import'!$A146,SEARCH(\">\",'CFR - XML import'!$A146,1)+1,SEARCH(\"/\",'CFR - XML import'!$A146,1)-SEARCH(\">\",'CFR - XML import'!$A146,1)-2)))","v":0},{"$f":"IF(ISERROR(FIND(BD$3,'CFR - XML import'!$A146)),0,VALUE(MID('CFR - XML import'!$A146,SEARCH(\">\",'CFR - XML import'!$A146,1)+1,SEARCH(\"/\",'CFR - XML import'!$A146,1)-SEARCH(\">\",'CFR - XML import'!$A146,1)-2)))","v":0},{"$f":"IF(ISERROR(FIND(BE$3,'CFR - XML import'!$A146)),0,VALUE(MID('CFR - XML import'!$A146,SEARCH(\">\",'CFR - XML import'!$A146,1)+1,SEARCH(\"/\",'CFR - XML import'!$A146,1)-SEARCH(\">\",'CFR - XML import'!$A146,1)-2)))","v":0},{"$f":"IF(ISERROR(FIND(BF$3,'CFR - XML import'!$A146)),0,VALUE(MID('CFR - XML import'!$A146,SEARCH(\">\",'CFR - XML import'!$A146,1)+1,SEARCH(\"/\",'CFR - XML import'!$A146,1)-SEARCH(\">\",'CFR - XML import'!$A146,1)-2)))","v":0},{"$f":"IF(ISERROR(FIND(BG$3,'CFR - XML import'!$A146)),0,VALUE(MID('CFR - XML import'!$A146,SEARCH(\">\",'CFR - XML import'!$A146,1)+1,SEARCH(\"/\",'CFR - XML import'!$A146,1)-SEARCH(\">\",'CFR - XML import'!$A146,1)-2)))","v":0},{"$f":"IF(ISERROR(FIND(BH$3,'CFR - XML import'!$A146)),0,VALUE(MID('CFR - XML import'!$A146,SEARCH(\">\",'CFR - XML import'!$A146,1)+1,SEARCH(\"/\",'CFR - XML import'!$A146,1)-SEARCH(\">\",'CFR - XML import'!$A146,1)-2)))","v":0},{"$f":"IF(ISERROR(FIND(BI$3,'CFR - XML import'!$A146)),0,VALUE(MID('CFR - XML import'!$A146,SEARCH(\">\",'CFR - XML import'!$A146,1)+1,SEARCH(\"/\",'CFR - XML import'!$A146,1)-SEARCH(\">\",'CFR - XML import'!$A146,1)-2)))","v":0},{"$f":"IF(ISERROR(FIND(BJ$3,'CFR - XML import'!$A146)),0,VALUE(MID('CFR - XML import'!$A146,SEARCH(\">\",'CFR - XML import'!$A146,1)+1,SEARCH(\"/\",'CFR - XML import'!$A146,1)-SEARCH(\">\",'CFR - XML import'!$A146,1)-2)))","v":0},{"$f":"IF(ISERROR(FIND(BK$3,'CFR - XML import'!$A146)),0,VALUE(MID('CFR - XML import'!$A146,SEARCH(\">\",'CFR - XML import'!$A146,1)+1,SEARCH(\"/\",'CFR - XML import'!$A146,1)-SEARCH(\">\",'CFR - XML import'!$A146,1)-2)))","v":0},{"$f":"IF(ISERROR(FIND(BL$3,'CFR - XML import'!$A146)),0,VALUE(MID('CFR - XML import'!$A146,SEARCH(\">\",'CFR - XML import'!$A146,1)+1,SEARCH(\"/\",'CFR - XML import'!$A146,1)-SEARCH(\">\",'CFR - XML import'!$A146,1)-2)))","v":0},{"$f":"IF(ISERROR(FIND(BM$3,'CFR - XML import'!$A146)),0,VALUE(MID('CFR - XML import'!$A146,SEARCH(\">\",'CFR - XML import'!$A146,1)+1,SEARCH(\"/\",'CFR - XML import'!$A146,1)-SEARCH(\">\",'CFR - XML import'!$A146,1)-2)))","v":0},{"$f":"IF(ISERROR(FIND(BN$3,'CFR - XML import'!$A146)),0,VALUE(MID('CFR - XML import'!$A146,SEARCH(\">\",'CFR - XML import'!$A146,1)+1,SEARCH(\"/\",'CFR - XML import'!$A146,1)-SEARCH(\">\",'CFR - XML import'!$A146,1)-2)))","v":0},{"$f":"IF(ISERROR(FIND(BO$3,'CFR - XML import'!$A146)),0,VALUE(MID('CFR - XML import'!$A146,SEARCH(\">\",'CFR - XML import'!$A146,1)+1,SEARCH(\"/\",'CFR - XML import'!$A146,1)-SEARCH(\">\",'CFR - XML import'!$A146,1)-2)))","v":0},{"$f":"IF(ISERROR(FIND(BP$3,'CFR - XML import'!$A146)),0,VALUE(MID('CFR - XML import'!$A146,SEARCH(\">\",'CFR - XML import'!$A146,1)+1,SEARCH(\"/\",'CFR - XML import'!$A146,1)-SEARCH(\">\",'CFR - XML import'!$A146,1)-2)))","v":0},{"$f":"IF(ISERROR(FIND(BQ$3,'CFR - XML import'!$A146)),0,VALUE(MID('CFR - XML import'!$A146,SEARCH(\">\",'CFR - XML import'!$A146,1)+1,SEARCH(\"/\",'CFR - XML import'!$A146,1)-SEARCH(\">\",'CFR - XML import'!$A146,1)-2)))","v":0},{"$f":"IF(ISERROR(FIND(BR$3,'CFR - XML import'!$A146)),0,VALUE(MID('CFR - XML import'!$A146,SEARCH(\">\",'CFR - XML import'!$A146,1)+1,SEARCH(\"/\",'CFR - XML import'!$A146,1)-SEARCH(\">\",'CFR - XML import'!$A146,1)-2)))","v":0},{"$f":"IF(ISERROR(FIND(BS$3,'CFR - XML import'!$A146)),0,VALUE(MID('CFR - XML import'!$A146,SEARCH(\">\",'CFR - XML import'!$A146,1)+1,SEARCH(\"/\",'CFR - XML import'!$A146,1)-SEARCH(\">\",'CFR - XML import'!$A146,1)-2)))","v":0},{"$f":"IF(ISERROR(FIND(BT$3,'CFR - XML import'!$A146)),0,VALUE(MID('CFR - XML import'!$A146,SEARCH(\">\",'CFR - XML import'!$A146,1)+1,SEARCH(\"/\",'CFR - XML import'!$A146,1)-SEARCH(\">\",'CFR - XML import'!$A146,1)-2)))","v":0},{"$f":"IF(ISERROR(FIND(BU$3,'CFR - XML import'!$A146)),0,VALUE(MID('CFR - XML import'!$A146,SEARCH(\">\",'CFR - XML import'!$A146,1)+1,SEARCH(\"/\",'CFR - XML import'!$A146,1)-SEARCH(\">\",'CFR - XML import'!$A146,1)-2)))","v":0},{"$f":"IF(ISERROR(FIND(BV$3,'CFR - XML import'!$A146)),0,VALUE(MID('CFR - XML import'!$A146,SEARCH(\">\",'CFR - XML import'!$A146,1)+1,SEARCH(\"/\",'CFR - XML import'!$A146,1)-SEARCH(\">\",'CFR - XML import'!$A146,1)-2)))","v":0},{"$f":"IF(ISERROR(FIND(BW$3,'CFR - XML import'!$A146)),0,VALUE(MID('CFR - XML import'!$A146,SEARCH(\">\",'CFR - XML import'!$A146,1)+1,SEARCH(\"/\",'CFR - XML import'!$A146,1)-SEARCH(\">\",'CFR - XML import'!$A146,1)-2)))","v":0},{"$f":"IF(ISERROR(FIND(BX$3,'CFR - XML import'!$A146)),0,VALUE(MID('CFR - XML import'!$A146,SEARCH(\">\",'CFR - XML import'!$A146,1)+1,SEARCH(\"/\",'CFR - XML import'!$A146,1)-SEARCH(\">\",'CFR - XML import'!$A146,1)-2)))","v":0},{"$f":"IF(ISERROR(FIND(BY$3,'CFR - XML import'!$A146)),0,VALUE(MID('CFR - XML import'!$A146,SEARCH(\">\",'CFR - XML import'!$A146,1)+1,SEARCH(\"/\",'CFR - XML import'!$A146,1)-SEARCH(\">\",'CFR - XML import'!$A146,1)-2)))","v":0},{"$f":"IF(ISERROR(FIND(BZ$3,'CFR - XML import'!$A146)),0,VALUE(MID('CFR - XML import'!$A146,SEARCH(\">\",'CFR - XML import'!$A146,1)+1,SEARCH(\"/\",'CFR - XML import'!$A146,1)-SEARCH(\">\",'CFR - XML import'!$A146,1)-2)))","v":0},null,null,null,null,null,null,{"$f":"IF(ISERROR(IF(MID('CFR - XML import'!$A146,LEN($CF$4)+1,LEN('CFR - XML import'!$A146)-(2*LEN($CF$4)+1))=\"RMMS\",1,IF(MID('CFR - XML import'!$A146,LEN(\"    <InputSystem>\")+1,LEN('CFR - XML import'!$A146)-(LEN(\"    <InputSystem>\")+LEN($CF$4)+1))=\"SIMS\",2,0))),0,IF(MID('CFR - XML import'!$A146,LEN($CF$4)+1,LEN('CFR - XML import'!$A146)-(2*LEN($CF$4)+1))=\"RMMS\",1,IF(MID('CFR - XML import'!$A146,LEN(\"    <InputSystem>\")+1,LEN('CFR - XML import'!$A146)-(LEN(\"    <InputSystem>\")+LEN($CF$4)+1))=\"SIMS\",2,0)))","v":0},{"$f":"IF(ISERROR(FIND(CH$3,'CFR - XML import'!$A146)),0,MID('CFR - XML import'!$A146,SEARCH(\">\",'CFR - XML import'!$A146,1)+1,SEARCH(\"/\",'CFR - XML import'!$A146,1)-SEARCH(\">\",'CFR - XML import'!$A146,1)-2))","v":0},{"$f":"IF(ISERROR(FIND(CI$3,'CFR - XML import'!$A146)),0,MID('CFR - XML import'!$A146,SEARCH(\">\",'CFR - XML import'!$A146,1)+1,SEARCH(\"/\",'CFR - XML import'!$A146,1)-SEARCH(\">\",'CFR - XML import'!$A146,1)-2))","v":0},{"$f":"IF(ISERROR(FIND(CJ$3,'CFR - XML import'!$A146)),0,MID('CFR - XML import'!$A146,SEARCH(\">\",'CFR - XML import'!$A146,1)+1,SEARCH(\"/\",'CFR - XML import'!$A146,1)-SEARCH(\">\",'CFR - XML import'!$A146,1)-2))","v":0},{"$f":"IF(ISERROR(FIND(CK$3,'CFR - XML import'!$A146)),0,MID('CFR - XML import'!$A146,SEARCH(\">\",'CFR - XML import'!$A146,1)+1,SEARCH(\"/\",'CFR - XML import'!$A146,1)-SEARCH(\">\",'CFR - XML import'!$A146,1)-2))","v":0},{"$f":"IF(ISERROR(FIND(CL$3,'CFR - XML import'!$A146)),0,MID('CFR - XML import'!$A146,SEARCH(\">\",'CFR - XML import'!$A146,1)+1,SEARCH(\"/\",'CFR - XML import'!$A146,1)-SEARCH(\">\",'CFR - XML import'!$A146,1)-2))","v":0}]
[{"$f":"IF(AND('CFR - XML import'!A147<>\"\",LEFT('CFR - XML import'!A147,1)<>\"<\",LEFT('CFR - XML import'!A147,3)<>\"  <\",LEFT('CFR - XML import'!A147,5)<>\"    <\",LEFT('CFR - XML import'!A147,7)<>\"      <\",LEFT('CFR - XML import'!A147,9)<>\"        <\",$B$1=\"SIMS\"),'CFR - XML import'!A147,IF(AND(LEFT('CFR - XML import'!A147,9)=\"<Details>\",$B$1=\"RM\"),'CFR - XML import'!A147,\"\"))","v":""},{"$f":"IF(ISERROR(FIND(B$3,'CFR - XML import'!$A147)),0,VALUE(MID('CFR - XML import'!$A147,SEARCH(\">\",'CFR - XML import'!$A147,1)+1,SEARCH(\"/\",'CFR - XML import'!$A147,1)-SEARCH(\">\",'CFR - XML import'!$A147,1)-2)))","v":0},null,{"$f":"IF(ISERROR(FIND(D$3,'CFR - XML import'!$A147)),0,MID('CFR - XML import'!$A147,SEARCH(\">\",'CFR - XML import'!$A147,1)+1,SEARCH(\"/\",'CFR - XML import'!$A147,1)-SEARCH(\">\",'CFR - XML import'!$A147,1)-2))","v":0},{"$f":"IF(ISERROR(FIND(E$3,'CFR - XML import'!$A147)),0,MID('CFR - XML import'!$A147,SEARCH(\">\",'CFR - XML import'!$A147,1)+1,SEARCH(\"/\",'CFR - XML import'!$A147,1)-SEARCH(\">\",'CFR - XML import'!$A147,1)-2))","v":0},{"$f":"IF($B$1=\"SIMS\",IF(ISERROR(FIND(F$3,'CFR - XML import'!$A147)),0,VALUE(MID('CFR - XML import'!$A147,15,10))),IF(ISERROR(FIND(F$3,'CFR - XML import'!$A147)),0,VALUE(MID('CFR - XML import'!$A147,11,10))))","v":"00:00:00"},{"$f":"IF(ISERROR(FIND(G$3,'CFR - XML import'!$A147)),0,VALUE(MID('CFR - XML import'!$A147,SEARCH(\">\",'CFR - XML import'!$A147,1)+1,SEARCH(\"/\",'CFR - XML import'!$A147,1)-SEARCH(\">\",'CFR - XML import'!$A147,1)-2)))","v":0},{"$f":"IF(ISERROR(FIND(H$3,'CFR - XML import'!$A147)),0,VALUE(MID('CFR - XML import'!$A147,SEARCH(\">\",'CFR - XML import'!$A147,1)+1,SEARCH(\"/\",'CFR - XML import'!$A147,1)-SEARCH(\">\",'CFR - XML import'!$A147,1)-2)))","v":0},{"$f":"IF(ISERROR(FIND(I$3,'CFR - XML import'!$A147)),0,VALUE(MID('CFR - XML import'!$A147,SEARCH(\">\",'CFR - XML import'!$A147,1)+1,SEARCH(\"/\",'CFR - XML import'!$A147,1)-SEARCH(\">\",'CFR - XML import'!$A147,1)-2)))","v":0},{"$f":"IF(ISERROR(FIND(J$3,'CFR - XML import'!$A147)),0,VALUE(MID('CFR - XML import'!$A147,SEARCH(\">\",'CFR - XML import'!$A147,1)+1,SEARCH(\"/\",'CFR - XML import'!$A147,1)-SEARCH(\">\",'CFR - XML import'!$A147,1)-2)))","v":0},{"$f":"IF(ISERROR(FIND(K$3,'CFR - XML import'!$A147)),0,VALUE(MID('CFR - XML import'!$A147,SEARCH(\">\",'CFR - XML import'!$A147,1)+1,SEARCH(\"/\",'CFR - XML import'!$A147,1)-SEARCH(\">\",'CFR - XML import'!$A147,1)-2)))","v":0},{"$f":"IF(ISERROR(FIND(L$3,'CFR - XML import'!$A147)),0,VALUE(MID('CFR - XML import'!$A147,SEARCH(\">\",'CFR - XML import'!$A147,1)+1,SEARCH(\"/\",'CFR - XML import'!$A147,1)-SEARCH(\">\",'CFR - XML import'!$A147,1)-2)))","v":0},{"$f":"IF(ISERROR(FIND(M$3,'CFR - XML import'!$A147)),0,VALUE(MID('CFR - XML import'!$A147,SEARCH(\">\",'CFR - XML import'!$A147,1)+1,SEARCH(\"/\",'CFR - XML import'!$A147,1)-SEARCH(\">\",'CFR - XML import'!$A147,1)-2)))","v":0},{"$f":"IF(ISERROR(FIND(N$3,'CFR - XML import'!$A147)),0,VALUE(MID('CFR - XML import'!$A147,SEARCH(\">\",'CFR - XML import'!$A147,1)+1,SEARCH(\"/\",'CFR - XML import'!$A147,1)-SEARCH(\">\",'CFR - XML import'!$A147,1)-2)))","v":0},{"$f":"IF(ISERROR(FIND(O$3,'CFR - XML import'!$A147)),0,VALUE(MID('CFR - XML import'!$A147,SEARCH(\">\",'CFR - XML import'!$A147,1)+1,SEARCH(\"/\",'CFR - XML import'!$A147,1)-SEARCH(\">\",'CFR - XML import'!$A147,1)-2)))","v":0},{"$f":"IF(ISERROR(FIND(P$3,'CFR - XML import'!$A147)),0,VALUE(MID('CFR - XML import'!$A147,SEARCH(\">\",'CFR - XML import'!$A147,1)+1,SEARCH(\"/\",'CFR - XML import'!$A147,1)-SEARCH(\">\",'CFR - XML import'!$A147,1)-2)))","v":0},{"$f":"IF(ISERROR(FIND(Q$3,'CFR - XML import'!$A147)),0,VALUE(MID('CFR - XML import'!$A147,SEARCH(\">\",'CFR - XML import'!$A147,1)+1,SEARCH(\"/\",'CFR - XML import'!$A147,1)-SEARCH(\">\",'CFR - XML import'!$A147,1)-2)))","v":0},{"$f":"IF(ISERROR(FIND(R$3,'CFR - XML import'!$A147)),0,VALUE(MID('CFR - XML import'!$A147,SEARCH(\">\",'CFR - XML import'!$A147,1)+1,SEARCH(\"/\",'CFR - XML import'!$A147,1)-SEARCH(\">\",'CFR - XML import'!$A147,1)-2)))","v":0},{"$f":"IF(ISERROR(FIND(S$3,'CFR - XML import'!$A147)),0,VALUE(MID('CFR - XML import'!$A147,SEARCH(\">\",'CFR - XML import'!$A147,1)+1,SEARCH(\"/\",'CFR - XML import'!$A147,1)-SEARCH(\">\",'CFR - XML import'!$A147,1)-2)))","v":0},{"$f":"IF(ISERROR(FIND(T$3,'CFR - XML import'!$A147)),0,VALUE(MID('CFR - XML import'!$A147,SEARCH(\">\",'CFR - XML import'!$A147,1)+1,SEARCH(\"/\",'CFR - XML import'!$A147,1)-SEARCH(\">\",'CFR - XML import'!$A147,1)-2)))","v":0},{"$f":"IF(ISERROR(FIND(U$3,'CFR - XML import'!$A147)),0,VALUE(MID('CFR - XML import'!$A147,SEARCH(\">\",'CFR - XML import'!$A147,1)+1,SEARCH(\"/\",'CFR - XML import'!$A147,1)-SEARCH(\">\",'CFR - XML import'!$A147,1)-2)))","v":0},{"$f":"IF(ISERROR(FIND(V$3,'CFR - XML import'!$A147)),0,VALUE(MID('CFR - XML import'!$A147,SEARCH(\">\",'CFR - XML import'!$A147,1)+1,SEARCH(\"/\",'CFR - XML import'!$A147,1)-SEARCH(\">\",'CFR - XML import'!$A147,1)-2)))","v":0},{"$f":"IF(ISERROR(FIND(W$3,'CFR - XML import'!$A147)),0,VALUE(MID('CFR - XML import'!$A147,SEARCH(\">\",'CFR - XML import'!$A147,1)+1,SEARCH(\"/\",'CFR - XML import'!$A147,1)-SEARCH(\">\",'CFR - XML import'!$A147,1)-2)))","v":0},null,{"$f":"IF(ISERROR(FIND(Y$3,'CFR - XML import'!$A147)),0,VALUE(MID('CFR - XML import'!$A147,SEARCH(\">\",'CFR - XML import'!$A147,1)+1,SEARCH(\"/\",'CFR - XML import'!$A147,1)-SEARCH(\">\",'CFR - XML import'!$A147,1)-2)))","v":0},{"$f":"IF(ISERROR(FIND(Z$3,'CFR - XML import'!$A147)),0,VALUE(MID('CFR - XML import'!$A147,SEARCH(\">\",'CFR - XML import'!$A147,1)+1,SEARCH(\"/\",'CFR - XML import'!$A147,1)-SEARCH(\">\",'CFR - XML import'!$A147,1)-2)))","v":0},{"$f":"IF(ISERROR(FIND(AA$3,'CFR - XML import'!$A147)),0,VALUE(MID('CFR - XML import'!$A147,SEARCH(\">\",'CFR - XML import'!$A147,1)+1,SEARCH(\"/\",'CFR - XML import'!$A147,1)-SEARCH(\">\",'CFR - XML import'!$A147,1)-2)))","v":0},{"$f":"IF(ISERROR(FIND(AB$3,'CFR - XML import'!$A147)),0,VALUE(MID('CFR - XML import'!$A147,SEARCH(\">\",'CFR - XML import'!$A147,1)+1,SEARCH(\"/\",'CFR - XML import'!$A147,1)-SEARCH(\">\",'CFR - XML import'!$A147,1)-2)))","v":0},{"$f":"IF(ISERROR(FIND(AC$3,'CFR - XML import'!$A147)),0,VALUE(MID('CFR - XML import'!$A147,SEARCH(\">\",'CFR - XML import'!$A147,1)+1,SEARCH(\"/\",'CFR - XML import'!$A147,1)-SEARCH(\">\",'CFR - XML import'!$A147,1)-2)))","v":0},{"$f":"IF(ISERROR(FIND(AD$3,'CFR - XML import'!$A147)),0,VALUE(MID('CFR - XML import'!$A147,SEARCH(\">\",'CFR - XML import'!$A147,1)+1,SEARCH(\"/\",'CFR - XML import'!$A147,1)-SEARCH(\">\",'CFR - XML import'!$A147,1)-2)))","v":0},{"$f":"IF(ISERROR(FIND(AE$3,'CFR - XML import'!$A147)),0,VALUE(MID('CFR - XML import'!$A147,SEARCH(\">\",'CFR - XML import'!$A147,1)+1,SEARCH(\"/\",'CFR - XML import'!$A147,1)-SEARCH(\">\",'CFR - XML import'!$A147,1)-2)))","v":0},{"$f":"IF(ISERROR(FIND(AF$3,'CFR - XML import'!$A147)),0,VALUE(MID('CFR - XML import'!$A147,SEARCH(\">\",'CFR - XML import'!$A147,1)+1,SEARCH(\"/\",'CFR - XML import'!$A147,1)-SEARCH(\">\",'CFR - XML import'!$A147,1)-2)))","v":0},{"$f":"IF(ISERROR(FIND(AG$3,'CFR - XML import'!$A147)),0,VALUE(MID('CFR - XML import'!$A147,SEARCH(\">\",'CFR - XML import'!$A147,1)+1,SEARCH(\"/\",'CFR - XML import'!$A147,1)-SEARCH(\">\",'CFR - XML import'!$A147,1)-2)))","v":0},{"$f":"IF(ISERROR(FIND(AH$3,'CFR - XML import'!$A147)),0,VALUE(MID('CFR - XML import'!$A147,SEARCH(\">\",'CFR - XML import'!$A147,1)+1,SEARCH(\"/\",'CFR - XML import'!$A147,1)-SEARCH(\">\",'CFR - XML import'!$A147,1)-2)))","v":0},{"$f":"IF(ISERROR(FIND(AI$3,'CFR - XML import'!$A147)),0,VALUE(MID('CFR - XML import'!$A147,SEARCH(\">\",'CFR - XML import'!$A147,1)+1,SEARCH(\"/\",'CFR - XML import'!$A147,1)-SEARCH(\">\",'CFR - XML import'!$A147,1)-2)))","v":0},{"$f":"IF(ISERROR(FIND(AJ$3,'CFR - XML import'!$A147)),0,VALUE(MID('CFR - XML import'!$A147,SEARCH(\">\",'CFR - XML import'!$A147,1)+1,SEARCH(\"/\",'CFR - XML import'!$A147,1)-SEARCH(\">\",'CFR - XML import'!$A147,1)-2)))","v":0},{"$f":"IF(ISERROR(FIND(AK$3,'CFR - XML import'!$A147)),0,VALUE(MID('CFR - XML import'!$A147,SEARCH(\">\",'CFR - XML import'!$A147,1)+1,SEARCH(\"/\",'CFR - XML import'!$A147,1)-SEARCH(\">\",'CFR - XML import'!$A147,1)-2)))","v":0},{"$f":"IF(ISERROR(FIND(AL$3,'CFR - XML import'!$A147)),0,VALUE(MID('CFR - XML import'!$A147,SEARCH(\">\",'CFR - XML import'!$A147,1)+1,SEARCH(\"/\",'CFR - XML import'!$A147,1)-SEARCH(\">\",'CFR - XML import'!$A147,1)-2)))","v":0},{"$f":"IF(ISERROR(FIND(AM$3,'CFR - XML import'!$A147)),0,VALUE(MID('CFR - XML import'!$A147,SEARCH(\">\",'CFR - XML import'!$A147,1)+1,SEARCH(\"/\",'CFR - XML import'!$A147,1)-SEARCH(\">\",'CFR - XML import'!$A147,1)-2)))","v":0},{"$f":"IF(ISERROR(FIND(AN$3,'CFR - XML import'!$A147)),0,VALUE(MID('CFR - XML import'!$A147,SEARCH(\">\",'CFR - XML import'!$A147,1)+1,SEARCH(\"/\",'CFR - XML import'!$A147,1)-SEARCH(\">\",'CFR - XML import'!$A147,1)-2)))","v":0},{"$f":"IF(ISERROR(FIND(AO$3,'CFR - XML import'!$A147)),0,VALUE(MID('CFR - XML import'!$A147,SEARCH(\">\",'CFR - XML import'!$A147,1)+1,SEARCH(\"/\",'CFR - XML import'!$A147,1)-SEARCH(\">\",'CFR - XML import'!$A147,1)-2)))","v":0},{"$f":"IF(ISERROR(FIND(AP$3,'CFR - XML import'!$A147)),0,VALUE(MID('CFR - XML import'!$A147,SEARCH(\">\",'CFR - XML import'!$A147,1)+1,SEARCH(\"/\",'CFR - XML import'!$A147,1)-SEARCH(\">\",'CFR - XML import'!$A147,1)-2)))","v":0},{"$f":"IF(ISERROR(FIND(AQ$3,'CFR - XML import'!$A147)),0,VALUE(MID('CFR - XML import'!$A147,SEARCH(\">\",'CFR - XML import'!$A147,1)+1,SEARCH(\"/\",'CFR - XML import'!$A147,1)-SEARCH(\">\",'CFR - XML import'!$A147,1)-2)))","v":0},{"$f":"IF(ISERROR(FIND(AR$3,'CFR - XML import'!$A147)),0,VALUE(MID('CFR - XML import'!$A147,SEARCH(\">\",'CFR - XML import'!$A147,1)+1,SEARCH(\"/\",'CFR - XML import'!$A147,1)-SEARCH(\">\",'CFR - XML import'!$A147,1)-2)))","v":0},{"$f":"IF(ISERROR(FIND(AS$3,'CFR - XML import'!$A147)),0,VALUE(MID('CFR - XML import'!$A147,SEARCH(\">\",'CFR - XML import'!$A147,1)+1,SEARCH(\"/\",'CFR - XML import'!$A147,1)-SEARCH(\">\",'CFR - XML import'!$A147,1)-2)))","v":0},{"$f":"IF(ISERROR(FIND(AT$3,'CFR - XML import'!$A147)),0,VALUE(MID('CFR - XML import'!$A147,SEARCH(\">\",'CFR - XML import'!$A147,1)+1,SEARCH(\"/\",'CFR - XML import'!$A147,1)-SEARCH(\">\",'CFR - XML import'!$A147,1)-2)))","v":0},{"$f":"IF(ISERROR(FIND(AU$3,'CFR - XML import'!$A147)),0,VALUE(MID('CFR - XML import'!$A147,SEARCH(\">\",'CFR - XML import'!$A147,1)+1,SEARCH(\"/\",'CFR - XML import'!$A147,1)-SEARCH(\">\",'CFR - XML import'!$A147,1)-2)))","v":0},{"$f":"IF(ISERROR(FIND(AV$3,'CFR - XML import'!$A147)),0,VALUE(MID('CFR - XML import'!$A147,SEARCH(\">\",'CFR - XML import'!$A147,1)+1,SEARCH(\"/\",'CFR - XML import'!$A147,1)-SEARCH(\">\",'CFR - XML import'!$A147,1)-2)))","v":0},{"$f":"IF(ISERROR(FIND(AW$3,'CFR - XML import'!$A147)),0,VALUE(MID('CFR - XML import'!$A147,SEARCH(\">\",'CFR - XML import'!$A147,1)+1,SEARCH(\"/\",'CFR - XML import'!$A147,1)-SEARCH(\">\",'CFR - XML import'!$A147,1)-2)))","v":0},{"$f":"IF(ISERROR(FIND(AX$3,'CFR - XML import'!$A147)),0,VALUE(MID('CFR - XML import'!$A147,SEARCH(\">\",'CFR - XML import'!$A147,1)+1,SEARCH(\"/\",'CFR - XML import'!$A147,1)-SEARCH(\">\",'CFR - XML import'!$A147,1)-2)))","v":0},{"$f":"IF(ISERROR(FIND(AY$3,'CFR - XML import'!$A147)),0,VALUE(MID('CFR - XML import'!$A147,SEARCH(\">\",'CFR - XML import'!$A147,1)+1,SEARCH(\"/\",'CFR - XML import'!$A147,1)-SEARCH(\">\",'CFR - XML import'!$A147,1)-2)))","v":0},{"$f":"IF(ISERROR(FIND(AZ$3,'CFR - XML import'!$A147)),0,VALUE(MID('CFR - XML import'!$A147,SEARCH(\">\",'CFR - XML import'!$A147,1)+1,SEARCH(\"/\",'CFR - XML import'!$A147,1)-SEARCH(\">\",'CFR - XML import'!$A147,1)-2)))","v":0},{"$f":"IF(ISERROR(FIND(BA$3,'CFR - XML import'!$A147)),0,VALUE(MID('CFR - XML import'!$A147,SEARCH(\">\",'CFR - XML import'!$A147,1)+1,SEARCH(\"/\",'CFR - XML import'!$A147,1)-SEARCH(\">\",'CFR - XML import'!$A147,1)-2)))","v":0},{"$f":"IF(ISERROR(FIND(BB$3,'CFR - XML import'!$A147)),0,VALUE(MID('CFR - XML import'!$A147,SEARCH(\">\",'CFR - XML import'!$A147,1)+1,SEARCH(\"/\",'CFR - XML import'!$A147,1)-SEARCH(\">\",'CFR - XML import'!$A147,1)-2)))","v":0},{"$f":"IF(ISERROR(FIND(BC$3,'CFR - XML import'!$A147)),0,VALUE(MID('CFR - XML import'!$A147,SEARCH(\">\",'CFR - XML import'!$A147,1)+1,SEARCH(\"/\",'CFR - XML import'!$A147,1)-SEARCH(\">\",'CFR - XML import'!$A147,1)-2)))","v":0},{"$f":"IF(ISERROR(FIND(BD$3,'CFR - XML import'!$A147)),0,VALUE(MID('CFR - XML import'!$A147,SEARCH(\">\",'CFR - XML import'!$A147,1)+1,SEARCH(\"/\",'CFR - XML import'!$A147,1)-SEARCH(\">\",'CFR - XML import'!$A147,1)-2)))","v":0},{"$f":"IF(ISERROR(FIND(BE$3,'CFR - XML import'!$A147)),0,VALUE(MID('CFR - XML import'!$A147,SEARCH(\">\",'CFR - XML import'!$A147,1)+1,SEARCH(\"/\",'CFR - XML import'!$A147,1)-SEARCH(\">\",'CFR - XML import'!$A147,1)-2)))","v":0},{"$f":"IF(ISERROR(FIND(BF$3,'CFR - XML import'!$A147)),0,VALUE(MID('CFR - XML import'!$A147,SEARCH(\">\",'CFR - XML import'!$A147,1)+1,SEARCH(\"/\",'CFR - XML import'!$A147,1)-SEARCH(\">\",'CFR - XML import'!$A147,1)-2)))","v":0},{"$f":"IF(ISERROR(FIND(BG$3,'CFR - XML import'!$A147)),0,VALUE(MID('CFR - XML import'!$A147,SEARCH(\">\",'CFR - XML import'!$A147,1)+1,SEARCH(\"/\",'CFR - XML import'!$A147,1)-SEARCH(\">\",'CFR - XML import'!$A147,1)-2)))","v":0},{"$f":"IF(ISERROR(FIND(BH$3,'CFR - XML import'!$A147)),0,VALUE(MID('CFR - XML import'!$A147,SEARCH(\">\",'CFR - XML import'!$A147,1)+1,SEARCH(\"/\",'CFR - XML import'!$A147,1)-SEARCH(\">\",'CFR - XML import'!$A147,1)-2)))","v":0},{"$f":"IF(ISERROR(FIND(BI$3,'CFR - XML import'!$A147)),0,VALUE(MID('CFR - XML import'!$A147,SEARCH(\">\",'CFR - XML import'!$A147,1)+1,SEARCH(\"/\",'CFR - XML import'!$A147,1)-SEARCH(\">\",'CFR - XML import'!$A147,1)-2)))","v":0},{"$f":"IF(ISERROR(FIND(BJ$3,'CFR - XML import'!$A147)),0,VALUE(MID('CFR - XML import'!$A147,SEARCH(\">\",'CFR - XML import'!$A147,1)+1,SEARCH(\"/\",'CFR - XML import'!$A147,1)-SEARCH(\">\",'CFR - XML import'!$A147,1)-2)))","v":0},{"$f":"IF(ISERROR(FIND(BK$3,'CFR - XML import'!$A147)),0,VALUE(MID('CFR - XML import'!$A147,SEARCH(\">\",'CFR - XML import'!$A147,1)+1,SEARCH(\"/\",'CFR - XML import'!$A147,1)-SEARCH(\">\",'CFR - XML import'!$A147,1)-2)))","v":0},{"$f":"IF(ISERROR(FIND(BL$3,'CFR - XML import'!$A147)),0,VALUE(MID('CFR - XML import'!$A147,SEARCH(\">\",'CFR - XML import'!$A147,1)+1,SEARCH(\"/\",'CFR - XML import'!$A147,1)-SEARCH(\">\",'CFR - XML import'!$A147,1)-2)))","v":0},{"$f":"IF(ISERROR(FIND(BM$3,'CFR - XML import'!$A147)),0,VALUE(MID('CFR - XML import'!$A147,SEARCH(\">\",'CFR - XML import'!$A147,1)+1,SEARCH(\"/\",'CFR - XML import'!$A147,1)-SEARCH(\">\",'CFR - XML import'!$A147,1)-2)))","v":0},{"$f":"IF(ISERROR(FIND(BN$3,'CFR - XML import'!$A147)),0,VALUE(MID('CFR - XML import'!$A147,SEARCH(\">\",'CFR - XML import'!$A147,1)+1,SEARCH(\"/\",'CFR - XML import'!$A147,1)-SEARCH(\">\",'CFR - XML import'!$A147,1)-2)))","v":0},{"$f":"IF(ISERROR(FIND(BO$3,'CFR - XML import'!$A147)),0,VALUE(MID('CFR - XML import'!$A147,SEARCH(\">\",'CFR - XML import'!$A147,1)+1,SEARCH(\"/\",'CFR - XML import'!$A147,1)-SEARCH(\">\",'CFR - XML import'!$A147,1)-2)))","v":0},{"$f":"IF(ISERROR(FIND(BP$3,'CFR - XML import'!$A147)),0,VALUE(MID('CFR - XML import'!$A147,SEARCH(\">\",'CFR - XML import'!$A147,1)+1,SEARCH(\"/\",'CFR - XML import'!$A147,1)-SEARCH(\">\",'CFR - XML import'!$A147,1)-2)))","v":0},{"$f":"IF(ISERROR(FIND(BQ$3,'CFR - XML import'!$A147)),0,VALUE(MID('CFR - XML import'!$A147,SEARCH(\">\",'CFR - XML import'!$A147,1)+1,SEARCH(\"/\",'CFR - XML import'!$A147,1)-SEARCH(\">\",'CFR - XML import'!$A147,1)-2)))","v":0},{"$f":"IF(ISERROR(FIND(BR$3,'CFR - XML import'!$A147)),0,VALUE(MID('CFR - XML import'!$A147,SEARCH(\">\",'CFR - XML import'!$A147,1)+1,SEARCH(\"/\",'CFR - XML import'!$A147,1)-SEARCH(\">\",'CFR - XML import'!$A147,1)-2)))","v":0},{"$f":"IF(ISERROR(FIND(BS$3,'CFR - XML import'!$A147)),0,VALUE(MID('CFR - XML import'!$A147,SEARCH(\">\",'CFR - XML import'!$A147,1)+1,SEARCH(\"/\",'CFR - XML import'!$A147,1)-SEARCH(\">\",'CFR - XML import'!$A147,1)-2)))","v":0},{"$f":"IF(ISERROR(FIND(BT$3,'CFR - XML import'!$A147)),0,VALUE(MID('CFR - XML import'!$A147,SEARCH(\">\",'CFR - XML import'!$A147,1)+1,SEARCH(\"/\",'CFR - XML import'!$A147,1)-SEARCH(\">\",'CFR - XML import'!$A147,1)-2)))","v":0},{"$f":"IF(ISERROR(FIND(BU$3,'CFR - XML import'!$A147)),0,VALUE(MID('CFR - XML import'!$A147,SEARCH(\">\",'CFR - XML import'!$A147,1)+1,SEARCH(\"/\",'CFR - XML import'!$A147,1)-SEARCH(\">\",'CFR - XML import'!$A147,1)-2)))","v":0},{"$f":"IF(ISERROR(FIND(BV$3,'CFR - XML import'!$A147)),0,VALUE(MID('CFR - XML import'!$A147,SEARCH(\">\",'CFR - XML import'!$A147,1)+1,SEARCH(\"/\",'CFR - XML import'!$A147,1)-SEARCH(\">\",'CFR - XML import'!$A147,1)-2)))","v":0},{"$f":"IF(ISERROR(FIND(BW$3,'CFR - XML import'!$A147)),0,VALUE(MID('CFR - XML import'!$A147,SEARCH(\">\",'CFR - XML import'!$A147,1)+1,SEARCH(\"/\",'CFR - XML import'!$A147,1)-SEARCH(\">\",'CFR - XML import'!$A147,1)-2)))","v":0},{"$f":"IF(ISERROR(FIND(BX$3,'CFR - XML import'!$A147)),0,VALUE(MID('CFR - XML import'!$A147,SEARCH(\">\",'CFR - XML import'!$A147,1)+1,SEARCH(\"/\",'CFR - XML import'!$A147,1)-SEARCH(\">\",'CFR - XML import'!$A147,1)-2)))","v":0},{"$f":"IF(ISERROR(FIND(BY$3,'CFR - XML import'!$A147)),0,VALUE(MID('CFR - XML import'!$A147,SEARCH(\">\",'CFR - XML import'!$A147,1)+1,SEARCH(\"/\",'CFR - XML import'!$A147,1)-SEARCH(\">\",'CFR - XML import'!$A147,1)-2)))","v":0},{"$f":"IF(ISERROR(FIND(BZ$3,'CFR - XML import'!$A147)),0,VALUE(MID('CFR - XML import'!$A147,SEARCH(\">\",'CFR - XML import'!$A147,1)+1,SEARCH(\"/\",'CFR - XML import'!$A147,1)-SEARCH(\">\",'CFR - XML import'!$A147,1)-2)))","v":0},null,null,null,null,null,null,{"$f":"IF(ISERROR(IF(MID('CFR - XML import'!$A147,LEN($CF$4)+1,LEN('CFR - XML import'!$A147)-(2*LEN($CF$4)+1))=\"RMMS\",1,IF(MID('CFR - XML import'!$A147,LEN(\"    <InputSystem>\")+1,LEN('CFR - XML import'!$A147)-(LEN(\"    <InputSystem>\")+LEN($CF$4)+1))=\"SIMS\",2,0))),0,IF(MID('CFR - XML import'!$A147,LEN($CF$4)+1,LEN('CFR - XML import'!$A147)-(2*LEN($CF$4)+1))=\"RMMS\",1,IF(MID('CFR - XML import'!$A147,LEN(\"    <InputSystem>\")+1,LEN('CFR - XML import'!$A147)-(LEN(\"    <InputSystem>\")+LEN($CF$4)+1))=\"SIMS\",2,0)))","v":0},{"$f":"IF(ISERROR(FIND(CH$3,'CFR - XML import'!$A147)),0,MID('CFR - XML import'!$A147,SEARCH(\">\",'CFR - XML import'!$A147,1)+1,SEARCH(\"/\",'CFR - XML import'!$A147,1)-SEARCH(\">\",'CFR - XML import'!$A147,1)-2))","v":0},{"$f":"IF(ISERROR(FIND(CI$3,'CFR - XML import'!$A147)),0,MID('CFR - XML import'!$A147,SEARCH(\">\",'CFR - XML import'!$A147,1)+1,SEARCH(\"/\",'CFR - XML import'!$A147,1)-SEARCH(\">\",'CFR - XML import'!$A147,1)-2))","v":0},{"$f":"IF(ISERROR(FIND(CJ$3,'CFR - XML import'!$A147)),0,MID('CFR - XML import'!$A147,SEARCH(\">\",'CFR - XML import'!$A147,1)+1,SEARCH(\"/\",'CFR - XML import'!$A147,1)-SEARCH(\">\",'CFR - XML import'!$A147,1)-2))","v":0},{"$f":"IF(ISERROR(FIND(CK$3,'CFR - XML import'!$A147)),0,MID('CFR - XML import'!$A147,SEARCH(\">\",'CFR - XML import'!$A147,1)+1,SEARCH(\"/\",'CFR - XML import'!$A147,1)-SEARCH(\">\",'CFR - XML import'!$A147,1)-2))","v":0},{"$f":"IF(ISERROR(FIND(CL$3,'CFR - XML import'!$A147)),0,MID('CFR - XML import'!$A147,SEARCH(\">\",'CFR - XML import'!$A147,1)+1,SEARCH(\"/\",'CFR - XML import'!$A147,1)-SEARCH(\">\",'CFR - XML import'!$A147,1)-2))","v":0}]
[{"$f":"IF(AND('CFR - XML import'!A148<>\"\",LEFT('CFR - XML import'!A148,1)<>\"<\",LEFT('CFR - XML import'!A148,3)<>\"  <\",LEFT('CFR - XML import'!A148,5)<>\"    <\",LEFT('CFR - XML import'!A148,7)<>\"      <\",LEFT('CFR - XML import'!A148,9)<>\"        <\",$B$1=\"SIMS\"),'CFR - XML import'!A148,IF(AND(LEFT('CFR - XML import'!A148,9)=\"<Details>\",$B$1=\"RM\"),'CFR - XML import'!A148,\"\"))","v":""},{"$f":"IF(ISERROR(FIND(B$3,'CFR - XML import'!$A148)),0,VALUE(MID('CFR - XML import'!$A148,SEARCH(\">\",'CFR - XML import'!$A148,1)+1,SEARCH(\"/\",'CFR - XML import'!$A148,1)-SEARCH(\">\",'CFR - XML import'!$A148,1)-2)))","v":0},null,{"$f":"IF(ISERROR(FIND(D$3,'CFR - XML import'!$A148)),0,MID('CFR - XML import'!$A148,SEARCH(\">\",'CFR - XML import'!$A148,1)+1,SEARCH(\"/\",'CFR - XML import'!$A148,1)-SEARCH(\">\",'CFR - XML import'!$A148,1)-2))","v":0},{"$f":"IF(ISERROR(FIND(E$3,'CFR - XML import'!$A148)),0,MID('CFR - XML import'!$A148,SEARCH(\">\",'CFR - XML import'!$A148,1)+1,SEARCH(\"/\",'CFR - XML import'!$A148,1)-SEARCH(\">\",'CFR - XML import'!$A148,1)-2))","v":0},{"$f":"IF($B$1=\"SIMS\",IF(ISERROR(FIND(F$3,'CFR - XML import'!$A148)),0,VALUE(MID('CFR - XML import'!$A148,15,10))),IF(ISERROR(FIND(F$3,'CFR - XML import'!$A148)),0,VALUE(MID('CFR - XML import'!$A148,11,10))))","v":"00:00:00"},{"$f":"IF(ISERROR(FIND(G$3,'CFR - XML import'!$A148)),0,VALUE(MID('CFR - XML import'!$A148,SEARCH(\">\",'CFR - XML import'!$A148,1)+1,SEARCH(\"/\",'CFR - XML import'!$A148,1)-SEARCH(\">\",'CFR - XML import'!$A148,1)-2)))","v":0},{"$f":"IF(ISERROR(FIND(H$3,'CFR - XML import'!$A148)),0,VALUE(MID('CFR - XML import'!$A148,SEARCH(\">\",'CFR - XML import'!$A148,1)+1,SEARCH(\"/\",'CFR - XML import'!$A148,1)-SEARCH(\">\",'CFR - XML import'!$A148,1)-2)))","v":0},{"$f":"IF(ISERROR(FIND(I$3,'CFR - XML import'!$A148)),0,VALUE(MID('CFR - XML import'!$A148,SEARCH(\">\",'CFR - XML import'!$A148,1)+1,SEARCH(\"/\",'CFR - XML import'!$A148,1)-SEARCH(\">\",'CFR - XML import'!$A148,1)-2)))","v":0},{"$f":"IF(ISERROR(FIND(J$3,'CFR - XML import'!$A148)),0,VALUE(MID('CFR - XML import'!$A148,SEARCH(\">\",'CFR - XML import'!$A148,1)+1,SEARCH(\"/\",'CFR - XML import'!$A148,1)-SEARCH(\">\",'CFR - XML import'!$A148,1)-2)))","v":0},{"$f":"IF(ISERROR(FIND(K$3,'CFR - XML import'!$A148)),0,VALUE(MID('CFR - XML import'!$A148,SEARCH(\">\",'CFR - XML import'!$A148,1)+1,SEARCH(\"/\",'CFR - XML import'!$A148,1)-SEARCH(\">\",'CFR - XML import'!$A148,1)-2)))","v":0},{"$f":"IF(ISERROR(FIND(L$3,'CFR - XML import'!$A148)),0,VALUE(MID('CFR - XML import'!$A148,SEARCH(\">\",'CFR - XML import'!$A148,1)+1,SEARCH(\"/\",'CFR - XML import'!$A148,1)-SEARCH(\">\",'CFR - XML import'!$A148,1)-2)))","v":0},{"$f":"IF(ISERROR(FIND(M$3,'CFR - XML import'!$A148)),0,VALUE(MID('CFR - XML import'!$A148,SEARCH(\">\",'CFR - XML import'!$A148,1)+1,SEARCH(\"/\",'CFR - XML import'!$A148,1)-SEARCH(\">\",'CFR - XML import'!$A148,1)-2)))","v":0},{"$f":"IF(ISERROR(FIND(N$3,'CFR - XML import'!$A148)),0,VALUE(MID('CFR - XML import'!$A148,SEARCH(\">\",'CFR - XML import'!$A148,1)+1,SEARCH(\"/\",'CFR - XML import'!$A148,1)-SEARCH(\">\",'CFR - XML import'!$A148,1)-2)))","v":0},{"$f":"IF(ISERROR(FIND(O$3,'CFR - XML import'!$A148)),0,VALUE(MID('CFR - XML import'!$A148,SEARCH(\">\",'CFR - XML import'!$A148,1)+1,SEARCH(\"/\",'CFR - XML import'!$A148,1)-SEARCH(\">\",'CFR - XML import'!$A148,1)-2)))","v":0},{"$f":"IF(ISERROR(FIND(P$3,'CFR - XML import'!$A148)),0,VALUE(MID('CFR - XML import'!$A148,SEARCH(\">\",'CFR - XML import'!$A148,1)+1,SEARCH(\"/\",'CFR - XML import'!$A148,1)-SEARCH(\">\",'CFR - XML import'!$A148,1)-2)))","v":0},{"$f":"IF(ISERROR(FIND(Q$3,'CFR - XML import'!$A148)),0,VALUE(MID('CFR - XML import'!$A148,SEARCH(\">\",'CFR - XML import'!$A148,1)+1,SEARCH(\"/\",'CFR - XML import'!$A148,1)-SEARCH(\">\",'CFR - XML import'!$A148,1)-2)))","v":0},{"$f":"IF(ISERROR(FIND(R$3,'CFR - XML import'!$A148)),0,VALUE(MID('CFR - XML import'!$A148,SEARCH(\">\",'CFR - XML import'!$A148,1)+1,SEARCH(\"/\",'CFR - XML import'!$A148,1)-SEARCH(\">\",'CFR - XML import'!$A148,1)-2)))","v":0},{"$f":"IF(ISERROR(FIND(S$3,'CFR - XML import'!$A148)),0,VALUE(MID('CFR - XML import'!$A148,SEARCH(\">\",'CFR - XML import'!$A148,1)+1,SEARCH(\"/\",'CFR - XML import'!$A148,1)-SEARCH(\">\",'CFR - XML import'!$A148,1)-2)))","v":0},{"$f":"IF(ISERROR(FIND(T$3,'CFR - XML import'!$A148)),0,VALUE(MID('CFR - XML import'!$A148,SEARCH(\">\",'CFR - XML import'!$A148,1)+1,SEARCH(\"/\",'CFR - XML import'!$A148,1)-SEARCH(\">\",'CFR - XML import'!$A148,1)-2)))","v":0},{"$f":"IF(ISERROR(FIND(U$3,'CFR - XML import'!$A148)),0,VALUE(MID('CFR - XML import'!$A148,SEARCH(\">\",'CFR - XML import'!$A148,1)+1,SEARCH(\"/\",'CFR - XML import'!$A148,1)-SEARCH(\">\",'CFR - XML import'!$A148,1)-2)))","v":0},{"$f":"IF(ISERROR(FIND(V$3,'CFR - XML import'!$A148)),0,VALUE(MID('CFR - XML import'!$A148,SEARCH(\">\",'CFR - XML import'!$A148,1)+1,SEARCH(\"/\",'CFR - XML import'!$A148,1)-SEARCH(\">\",'CFR - XML import'!$A148,1)-2)))","v":0},{"$f":"IF(ISERROR(FIND(W$3,'CFR - XML import'!$A148)),0,VALUE(MID('CFR - XML import'!$A148,SEARCH(\">\",'CFR - XML import'!$A148,1)+1,SEARCH(\"/\",'CFR - XML import'!$A148,1)-SEARCH(\">\",'CFR - XML import'!$A148,1)-2)))","v":0},null,{"$f":"IF(ISERROR(FIND(Y$3,'CFR - XML import'!$A148)),0,VALUE(MID('CFR - XML import'!$A148,SEARCH(\">\",'CFR - XML import'!$A148,1)+1,SEARCH(\"/\",'CFR - XML import'!$A148,1)-SEARCH(\">\",'CFR - XML import'!$A148,1)-2)))","v":0},{"$f":"IF(ISERROR(FIND(Z$3,'CFR - XML import'!$A148)),0,VALUE(MID('CFR - XML import'!$A148,SEARCH(\">\",'CFR - XML import'!$A148,1)+1,SEARCH(\"/\",'CFR - XML import'!$A148,1)-SEARCH(\">\",'CFR - XML import'!$A148,1)-2)))","v":0},{"$f":"IF(ISERROR(FIND(AA$3,'CFR - XML import'!$A148)),0,VALUE(MID('CFR - XML import'!$A148,SEARCH(\">\",'CFR - XML import'!$A148,1)+1,SEARCH(\"/\",'CFR - XML import'!$A148,1)-SEARCH(\">\",'CFR - XML import'!$A148,1)-2)))","v":0},{"$f":"IF(ISERROR(FIND(AB$3,'CFR - XML import'!$A148)),0,VALUE(MID('CFR - XML import'!$A148,SEARCH(\">\",'CFR - XML import'!$A148,1)+1,SEARCH(\"/\",'CFR - XML import'!$A148,1)-SEARCH(\">\",'CFR - XML import'!$A148,1)-2)))","v":0},{"$f":"IF(ISERROR(FIND(AC$3,'CFR - XML import'!$A148)),0,VALUE(MID('CFR - XML import'!$A148,SEARCH(\">\",'CFR - XML import'!$A148,1)+1,SEARCH(\"/\",'CFR - XML import'!$A148,1)-SEARCH(\">\",'CFR - XML import'!$A148,1)-2)))","v":0},{"$f":"IF(ISERROR(FIND(AD$3,'CFR - XML import'!$A148)),0,VALUE(MID('CFR - XML import'!$A148,SEARCH(\">\",'CFR - XML import'!$A148,1)+1,SEARCH(\"/\",'CFR - XML import'!$A148,1)-SEARCH(\">\",'CFR - XML import'!$A148,1)-2)))","v":0},{"$f":"IF(ISERROR(FIND(AE$3,'CFR - XML import'!$A148)),0,VALUE(MID('CFR - XML import'!$A148,SEARCH(\">\",'CFR - XML import'!$A148,1)+1,SEARCH(\"/\",'CFR - XML import'!$A148,1)-SEARCH(\">\",'CFR - XML import'!$A148,1)-2)))","v":0},{"$f":"IF(ISERROR(FIND(AF$3,'CFR - XML import'!$A148)),0,VALUE(MID('CFR - XML import'!$A148,SEARCH(\">\",'CFR - XML import'!$A148,1)+1,SEARCH(\"/\",'CFR - XML import'!$A148,1)-SEARCH(\">\",'CFR - XML import'!$A148,1)-2)))","v":0},{"$f":"IF(ISERROR(FIND(AG$3,'CFR - XML import'!$A148)),0,VALUE(MID('CFR - XML import'!$A148,SEARCH(\">\",'CFR - XML import'!$A148,1)+1,SEARCH(\"/\",'CFR - XML import'!$A148,1)-SEARCH(\">\",'CFR - XML import'!$A148,1)-2)))","v":0},{"$f":"IF(ISERROR(FIND(AH$3,'CFR - XML import'!$A148)),0,VALUE(MID('CFR - XML import'!$A148,SEARCH(\">\",'CFR - XML import'!$A148,1)+1,SEARCH(\"/\",'CFR - XML import'!$A148,1)-SEARCH(\">\",'CFR - XML import'!$A148,1)-2)))","v":0},{"$f":"IF(ISERROR(FIND(AI$3,'CFR - XML import'!$A148)),0,VALUE(MID('CFR - XML import'!$A148,SEARCH(\">\",'CFR - XML import'!$A148,1)+1,SEARCH(\"/\",'CFR - XML import'!$A148,1)-SEARCH(\">\",'CFR - XML import'!$A148,1)-2)))","v":0},{"$f":"IF(ISERROR(FIND(AJ$3,'CFR - XML import'!$A148)),0,VALUE(MID('CFR - XML import'!$A148,SEARCH(\">\",'CFR - XML import'!$A148,1)+1,SEARCH(\"/\",'CFR - XML import'!$A148,1)-SEARCH(\">\",'CFR - XML import'!$A148,1)-2)))","v":0},{"$f":"IF(ISERROR(FIND(AK$3,'CFR - XML import'!$A148)),0,VALUE(MID('CFR - XML import'!$A148,SEARCH(\">\",'CFR - XML import'!$A148,1)+1,SEARCH(\"/\",'CFR - XML import'!$A148,1)-SEARCH(\">\",'CFR - XML import'!$A148,1)-2)))","v":0},{"$f":"IF(ISERROR(FIND(AL$3,'CFR - XML import'!$A148)),0,VALUE(MID('CFR - XML import'!$A148,SEARCH(\">\",'CFR - XML import'!$A148,1)+1,SEARCH(\"/\",'CFR - XML import'!$A148,1)-SEARCH(\">\",'CFR - XML import'!$A148,1)-2)))","v":0},{"$f":"IF(ISERROR(FIND(AM$3,'CFR - XML import'!$A148)),0,VALUE(MID('CFR - XML import'!$A148,SEARCH(\">\",'CFR - XML import'!$A148,1)+1,SEARCH(\"/\",'CFR - XML import'!$A148,1)-SEARCH(\">\",'CFR - XML import'!$A148,1)-2)))","v":0},{"$f":"IF(ISERROR(FIND(AN$3,'CFR - XML import'!$A148)),0,VALUE(MID('CFR - XML import'!$A148,SEARCH(\">\",'CFR - XML import'!$A148,1)+1,SEARCH(\"/\",'CFR - XML import'!$A148,1)-SEARCH(\">\",'CFR - XML import'!$A148,1)-2)))","v":0},{"$f":"IF(ISERROR(FIND(AO$3,'CFR - XML import'!$A148)),0,VALUE(MID('CFR - XML import'!$A148,SEARCH(\">\",'CFR - XML import'!$A148,1)+1,SEARCH(\"/\",'CFR - XML import'!$A148,1)-SEARCH(\">\",'CFR - XML import'!$A148,1)-2)))","v":0},{"$f":"IF(ISERROR(FIND(AP$3,'CFR - XML import'!$A148)),0,VALUE(MID('CFR - XML import'!$A148,SEARCH(\">\",'CFR - XML import'!$A148,1)+1,SEARCH(\"/\",'CFR - XML import'!$A148,1)-SEARCH(\">\",'CFR - XML import'!$A148,1)-2)))","v":0},{"$f":"IF(ISERROR(FIND(AQ$3,'CFR - XML import'!$A148)),0,VALUE(MID('CFR - XML import'!$A148,SEARCH(\">\",'CFR - XML import'!$A148,1)+1,SEARCH(\"/\",'CFR - XML import'!$A148,1)-SEARCH(\">\",'CFR - XML import'!$A148,1)-2)))","v":0},{"$f":"IF(ISERROR(FIND(AR$3,'CFR - XML import'!$A148)),0,VALUE(MID('CFR - XML import'!$A148,SEARCH(\">\",'CFR - XML import'!$A148,1)+1,SEARCH(\"/\",'CFR - XML import'!$A148,1)-SEARCH(\">\",'CFR - XML import'!$A148,1)-2)))","v":0},{"$f":"IF(ISERROR(FIND(AS$3,'CFR - XML import'!$A148)),0,VALUE(MID('CFR - XML import'!$A148,SEARCH(\">\",'CFR - XML import'!$A148,1)+1,SEARCH(\"/\",'CFR - XML import'!$A148,1)-SEARCH(\">\",'CFR - XML import'!$A148,1)-2)))","v":0},{"$f":"IF(ISERROR(FIND(AT$3,'CFR - XML import'!$A148)),0,VALUE(MID('CFR - XML import'!$A148,SEARCH(\">\",'CFR - XML import'!$A148,1)+1,SEARCH(\"/\",'CFR - XML import'!$A148,1)-SEARCH(\">\",'CFR - XML import'!$A148,1)-2)))","v":0},{"$f":"IF(ISERROR(FIND(AU$3,'CFR - XML import'!$A148)),0,VALUE(MID('CFR - XML import'!$A148,SEARCH(\">\",'CFR - XML import'!$A148,1)+1,SEARCH(\"/\",'CFR - XML import'!$A148,1)-SEARCH(\">\",'CFR - XML import'!$A148,1)-2)))","v":0},{"$f":"IF(ISERROR(FIND(AV$3,'CFR - XML import'!$A148)),0,VALUE(MID('CFR - XML import'!$A148,SEARCH(\">\",'CFR - XML import'!$A148,1)+1,SEARCH(\"/\",'CFR - XML import'!$A148,1)-SEARCH(\">\",'CFR - XML import'!$A148,1)-2)))","v":0},{"$f":"IF(ISERROR(FIND(AW$3,'CFR - XML import'!$A148)),0,VALUE(MID('CFR - XML import'!$A148,SEARCH(\">\",'CFR - XML import'!$A148,1)+1,SEARCH(\"/\",'CFR - XML import'!$A148,1)-SEARCH(\">\",'CFR - XML import'!$A148,1)-2)))","v":0},{"$f":"IF(ISERROR(FIND(AX$3,'CFR - XML import'!$A148)),0,VALUE(MID('CFR - XML import'!$A148,SEARCH(\">\",'CFR - XML import'!$A148,1)+1,SEARCH(\"/\",'CFR - XML import'!$A148,1)-SEARCH(\">\",'CFR - XML import'!$A148,1)-2)))","v":0},{"$f":"IF(ISERROR(FIND(AY$3,'CFR - XML import'!$A148)),0,VALUE(MID('CFR - XML import'!$A148,SEARCH(\">\",'CFR - XML import'!$A148,1)+1,SEARCH(\"/\",'CFR - XML import'!$A148,1)-SEARCH(\">\",'CFR - XML import'!$A148,1)-2)))","v":0},{"$f":"IF(ISERROR(FIND(AZ$3,'CFR - XML import'!$A148)),0,VALUE(MID('CFR - XML import'!$A148,SEARCH(\">\",'CFR - XML import'!$A148,1)+1,SEARCH(\"/\",'CFR - XML import'!$A148,1)-SEARCH(\">\",'CFR - XML import'!$A148,1)-2)))","v":0},{"$f":"IF(ISERROR(FIND(BA$3,'CFR - XML import'!$A148)),0,VALUE(MID('CFR - XML import'!$A148,SEARCH(\">\",'CFR - XML import'!$A148,1)+1,SEARCH(\"/\",'CFR - XML import'!$A148,1)-SEARCH(\">\",'CFR - XML import'!$A148,1)-2)))","v":0},{"$f":"IF(ISERROR(FIND(BB$3,'CFR - XML import'!$A148)),0,VALUE(MID('CFR - XML import'!$A148,SEARCH(\">\",'CFR - XML import'!$A148,1)+1,SEARCH(\"/\",'CFR - XML import'!$A148,1)-SEARCH(\">\",'CFR - XML import'!$A148,1)-2)))","v":0},{"$f":"IF(ISERROR(FIND(BC$3,'CFR - XML import'!$A148)),0,VALUE(MID('CFR - XML import'!$A148,SEARCH(\">\",'CFR - XML import'!$A148,1)+1,SEARCH(\"/\",'CFR - XML import'!$A148,1)-SEARCH(\">\",'CFR - XML import'!$A148,1)-2)))","v":0},{"$f":"IF(ISERROR(FIND(BD$3,'CFR - XML import'!$A148)),0,VALUE(MID('CFR - XML import'!$A148,SEARCH(\">\",'CFR - XML import'!$A148,1)+1,SEARCH(\"/\",'CFR - XML import'!$A148,1)-SEARCH(\">\",'CFR - XML import'!$A148,1)-2)))","v":0},{"$f":"IF(ISERROR(FIND(BE$3,'CFR - XML import'!$A148)),0,VALUE(MID('CFR - XML import'!$A148,SEARCH(\">\",'CFR - XML import'!$A148,1)+1,SEARCH(\"/\",'CFR - XML import'!$A148,1)-SEARCH(\">\",'CFR - XML import'!$A148,1)-2)))","v":0},{"$f":"IF(ISERROR(FIND(BF$3,'CFR - XML import'!$A148)),0,VALUE(MID('CFR - XML import'!$A148,SEARCH(\">\",'CFR - XML import'!$A148,1)+1,SEARCH(\"/\",'CFR - XML import'!$A148,1)-SEARCH(\">\",'CFR - XML import'!$A148,1)-2)))","v":0},{"$f":"IF(ISERROR(FIND(BG$3,'CFR - XML import'!$A148)),0,VALUE(MID('CFR - XML import'!$A148,SEARCH(\">\",'CFR - XML import'!$A148,1)+1,SEARCH(\"/\",'CFR - XML import'!$A148,1)-SEARCH(\">\",'CFR - XML import'!$A148,1)-2)))","v":0},{"$f":"IF(ISERROR(FIND(BH$3,'CFR - XML import'!$A148)),0,VALUE(MID('CFR - XML import'!$A148,SEARCH(\">\",'CFR - XML import'!$A148,1)+1,SEARCH(\"/\",'CFR - XML import'!$A148,1)-SEARCH(\">\",'CFR - XML import'!$A148,1)-2)))","v":0},{"$f":"IF(ISERROR(FIND(BI$3,'CFR - XML import'!$A148)),0,VALUE(MID('CFR - XML import'!$A148,SEARCH(\">\",'CFR - XML import'!$A148,1)+1,SEARCH(\"/\",'CFR - XML import'!$A148,1)-SEARCH(\">\",'CFR - XML import'!$A148,1)-2)))","v":0},{"$f":"IF(ISERROR(FIND(BJ$3,'CFR - XML import'!$A148)),0,VALUE(MID('CFR - XML import'!$A148,SEARCH(\">\",'CFR - XML import'!$A148,1)+1,SEARCH(\"/\",'CFR - XML import'!$A148,1)-SEARCH(\">\",'CFR - XML import'!$A148,1)-2)))","v":0},{"$f":"IF(ISERROR(FIND(BK$3,'CFR - XML import'!$A148)),0,VALUE(MID('CFR - XML import'!$A148,SEARCH(\">\",'CFR - XML import'!$A148,1)+1,SEARCH(\"/\",'CFR - XML import'!$A148,1)-SEARCH(\">\",'CFR - XML import'!$A148,1)-2)))","v":0},{"$f":"IF(ISERROR(FIND(BL$3,'CFR - XML import'!$A148)),0,VALUE(MID('CFR - XML import'!$A148,SEARCH(\">\",'CFR - XML import'!$A148,1)+1,SEARCH(\"/\",'CFR - XML import'!$A148,1)-SEARCH(\">\",'CFR - XML import'!$A148,1)-2)))","v":0},{"$f":"IF(ISERROR(FIND(BM$3,'CFR - XML import'!$A148)),0,VALUE(MID('CFR - XML import'!$A148,SEARCH(\">\",'CFR - XML import'!$A148,1)+1,SEARCH(\"/\",'CFR - XML import'!$A148,1)-SEARCH(\">\",'CFR - XML import'!$A148,1)-2)))","v":0},{"$f":"IF(ISERROR(FIND(BN$3,'CFR - XML import'!$A148)),0,VALUE(MID('CFR - XML import'!$A148,SEARCH(\">\",'CFR - XML import'!$A148,1)+1,SEARCH(\"/\",'CFR - XML import'!$A148,1)-SEARCH(\">\",'CFR - XML import'!$A148,1)-2)))","v":0},{"$f":"IF(ISERROR(FIND(BO$3,'CFR - XML import'!$A148)),0,VALUE(MID('CFR - XML import'!$A148,SEARCH(\">\",'CFR - XML import'!$A148,1)+1,SEARCH(\"/\",'CFR - XML import'!$A148,1)-SEARCH(\">\",'CFR - XML import'!$A148,1)-2)))","v":0},{"$f":"IF(ISERROR(FIND(BP$3,'CFR - XML import'!$A148)),0,VALUE(MID('CFR - XML import'!$A148,SEARCH(\">\",'CFR - XML import'!$A148,1)+1,SEARCH(\"/\",'CFR - XML import'!$A148,1)-SEARCH(\">\",'CFR - XML import'!$A148,1)-2)))","v":0},{"$f":"IF(ISERROR(FIND(BQ$3,'CFR - XML import'!$A148)),0,VALUE(MID('CFR - XML import'!$A148,SEARCH(\">\",'CFR - XML import'!$A148,1)+1,SEARCH(\"/\",'CFR - XML import'!$A148,1)-SEARCH(\">\",'CFR - XML import'!$A148,1)-2)))","v":0},{"$f":"IF(ISERROR(FIND(BR$3,'CFR - XML import'!$A148)),0,VALUE(MID('CFR - XML import'!$A148,SEARCH(\">\",'CFR - XML import'!$A148,1)+1,SEARCH(\"/\",'CFR - XML import'!$A148,1)-SEARCH(\">\",'CFR - XML import'!$A148,1)-2)))","v":0},{"$f":"IF(ISERROR(FIND(BS$3,'CFR - XML import'!$A148)),0,VALUE(MID('CFR - XML import'!$A148,SEARCH(\">\",'CFR - XML import'!$A148,1)+1,SEARCH(\"/\",'CFR - XML import'!$A148,1)-SEARCH(\">\",'CFR - XML import'!$A148,1)-2)))","v":0},{"$f":"IF(ISERROR(FIND(BT$3,'CFR - XML import'!$A148)),0,VALUE(MID('CFR - XML import'!$A148,SEARCH(\">\",'CFR - XML import'!$A148,1)+1,SEARCH(\"/\",'CFR - XML import'!$A148,1)-SEARCH(\">\",'CFR - XML import'!$A148,1)-2)))","v":0},{"$f":"IF(ISERROR(FIND(BU$3,'CFR - XML import'!$A148)),0,VALUE(MID('CFR - XML import'!$A148,SEARCH(\">\",'CFR - XML import'!$A148,1)+1,SEARCH(\"/\",'CFR - XML import'!$A148,1)-SEARCH(\">\",'CFR - XML import'!$A148,1)-2)))","v":0},{"$f":"IF(ISERROR(FIND(BV$3,'CFR - XML import'!$A148)),0,VALUE(MID('CFR - XML import'!$A148,SEARCH(\">\",'CFR - XML import'!$A148,1)+1,SEARCH(\"/\",'CFR - XML import'!$A148,1)-SEARCH(\">\",'CFR - XML import'!$A148,1)-2)))","v":0},{"$f":"IF(ISERROR(FIND(BW$3,'CFR - XML import'!$A148)),0,VALUE(MID('CFR - XML import'!$A148,SEARCH(\">\",'CFR - XML import'!$A148,1)+1,SEARCH(\"/\",'CFR - XML import'!$A148,1)-SEARCH(\">\",'CFR - XML import'!$A148,1)-2)))","v":0},{"$f":"IF(ISERROR(FIND(BX$3,'CFR - XML import'!$A148)),0,VALUE(MID('CFR - XML import'!$A148,SEARCH(\">\",'CFR - XML import'!$A148,1)+1,SEARCH(\"/\",'CFR - XML import'!$A148,1)-SEARCH(\">\",'CFR - XML import'!$A148,1)-2)))","v":0},{"$f":"IF(ISERROR(FIND(BY$3,'CFR - XML import'!$A148)),0,VALUE(MID('CFR - XML import'!$A148,SEARCH(\">\",'CFR - XML import'!$A148,1)+1,SEARCH(\"/\",'CFR - XML import'!$A148,1)-SEARCH(\">\",'CFR - XML import'!$A148,1)-2)))","v":0},{"$f":"IF(ISERROR(FIND(BZ$3,'CFR - XML import'!$A148)),0,VALUE(MID('CFR - XML import'!$A148,SEARCH(\">\",'CFR - XML import'!$A148,1)+1,SEARCH(\"/\",'CFR - XML import'!$A148,1)-SEARCH(\">\",'CFR - XML import'!$A148,1)-2)))","v":0},null,null,null,null,null,null,{"$f":"IF(ISERROR(IF(MID('CFR - XML import'!$A148,LEN($CF$4)+1,LEN('CFR - XML import'!$A148)-(2*LEN($CF$4)+1))=\"RMMS\",1,IF(MID('CFR - XML import'!$A148,LEN(\"    <InputSystem>\")+1,LEN('CFR - XML import'!$A148)-(LEN(\"    <InputSystem>\")+LEN($CF$4)+1))=\"SIMS\",2,0))),0,IF(MID('CFR - XML import'!$A148,LEN($CF$4)+1,LEN('CFR - XML import'!$A148)-(2*LEN($CF$4)+1))=\"RMMS\",1,IF(MID('CFR - XML import'!$A148,LEN(\"    <InputSystem>\")+1,LEN('CFR - XML import'!$A148)-(LEN(\"    <InputSystem>\")+LEN($CF$4)+1))=\"SIMS\",2,0)))","v":0},{"$f":"IF(ISERROR(FIND(CH$3,'CFR - XML import'!$A148)),0,MID('CFR - XML import'!$A148,SEARCH(\">\",'CFR - XML import'!$A148,1)+1,SEARCH(\"/\",'CFR - XML import'!$A148,1)-SEARCH(\">\",'CFR - XML import'!$A148,1)-2))","v":0},{"$f":"IF(ISERROR(FIND(CI$3,'CFR - XML import'!$A148)),0,MID('CFR - XML import'!$A148,SEARCH(\">\",'CFR - XML import'!$A148,1)+1,SEARCH(\"/\",'CFR - XML import'!$A148,1)-SEARCH(\">\",'CFR - XML import'!$A148,1)-2))","v":0},{"$f":"IF(ISERROR(FIND(CJ$3,'CFR - XML import'!$A148)),0,MID('CFR - XML import'!$A148,SEARCH(\">\",'CFR - XML import'!$A148,1)+1,SEARCH(\"/\",'CFR - XML import'!$A148,1)-SEARCH(\">\",'CFR - XML import'!$A148,1)-2))","v":0},{"$f":"IF(ISERROR(FIND(CK$3,'CFR - XML import'!$A148)),0,MID('CFR - XML import'!$A148,SEARCH(\">\",'CFR - XML import'!$A148,1)+1,SEARCH(\"/\",'CFR - XML import'!$A148,1)-SEARCH(\">\",'CFR - XML import'!$A148,1)-2))","v":0},{"$f":"IF(ISERROR(FIND(CL$3,'CFR - XML import'!$A148)),0,MID('CFR - XML import'!$A148,SEARCH(\">\",'CFR - XML import'!$A148,1)+1,SEARCH(\"/\",'CFR - XML import'!$A148,1)-SEARCH(\">\",'CFR - XML import'!$A148,1)-2))","v":0}]
[{"$f":"IF(AND('CFR - XML import'!A149<>\"\",LEFT('CFR - XML import'!A149,1)<>\"<\",LEFT('CFR - XML import'!A149,3)<>\"  <\",LEFT('CFR - XML import'!A149,5)<>\"    <\",LEFT('CFR - XML import'!A149,7)<>\"      <\",LEFT('CFR - XML import'!A149,9)<>\"        <\",$B$1=\"SIMS\"),'CFR - XML import'!A149,IF(AND(LEFT('CFR - XML import'!A149,9)=\"<Details>\",$B$1=\"RM\"),'CFR - XML import'!A149,\"\"))","v":""},{"$f":"IF(ISERROR(FIND(B$3,'CFR - XML import'!$A149)),0,VALUE(MID('CFR - XML import'!$A149,SEARCH(\">\",'CFR - XML import'!$A149,1)+1,SEARCH(\"/\",'CFR - XML import'!$A149,1)-SEARCH(\">\",'CFR - XML import'!$A149,1)-2)))","v":0},null,{"$f":"IF(ISERROR(FIND(D$3,'CFR - XML import'!$A149)),0,MID('CFR - XML import'!$A149,SEARCH(\">\",'CFR - XML import'!$A149,1)+1,SEARCH(\"/\",'CFR - XML import'!$A149,1)-SEARCH(\">\",'CFR - XML import'!$A149,1)-2))","v":0},{"$f":"IF(ISERROR(FIND(E$3,'CFR - XML import'!$A149)),0,MID('CFR - XML import'!$A149,SEARCH(\">\",'CFR - XML import'!$A149,1)+1,SEARCH(\"/\",'CFR - XML import'!$A149,1)-SEARCH(\">\",'CFR - XML import'!$A149,1)-2))","v":0},{"$f":"IF($B$1=\"SIMS\",IF(ISERROR(FIND(F$3,'CFR - XML import'!$A149)),0,VALUE(MID('CFR - XML import'!$A149,15,10))),IF(ISERROR(FIND(F$3,'CFR - XML import'!$A149)),0,VALUE(MID('CFR - XML import'!$A149,11,10))))","v":"00:00:00"},{"$f":"IF(ISERROR(FIND(G$3,'CFR - XML import'!$A149)),0,VALUE(MID('CFR - XML import'!$A149,SEARCH(\">\",'CFR - XML import'!$A149,1)+1,SEARCH(\"/\",'CFR - XML import'!$A149,1)-SEARCH(\">\",'CFR - XML import'!$A149,1)-2)))","v":0},{"$f":"IF(ISERROR(FIND(H$3,'CFR - XML import'!$A149)),0,VALUE(MID('CFR - XML import'!$A149,SEARCH(\">\",'CFR - XML import'!$A149,1)+1,SEARCH(\"/\",'CFR - XML import'!$A149,1)-SEARCH(\">\",'CFR - XML import'!$A149,1)-2)))","v":0},{"$f":"IF(ISERROR(FIND(I$3,'CFR - XML import'!$A149)),0,VALUE(MID('CFR - XML import'!$A149,SEARCH(\">\",'CFR - XML import'!$A149,1)+1,SEARCH(\"/\",'CFR - XML import'!$A149,1)-SEARCH(\">\",'CFR - XML import'!$A149,1)-2)))","v":0},{"$f":"IF(ISERROR(FIND(J$3,'CFR - XML import'!$A149)),0,VALUE(MID('CFR - XML import'!$A149,SEARCH(\">\",'CFR - XML import'!$A149,1)+1,SEARCH(\"/\",'CFR - XML import'!$A149,1)-SEARCH(\">\",'CFR - XML import'!$A149,1)-2)))","v":0},{"$f":"IF(ISERROR(FIND(K$3,'CFR - XML import'!$A149)),0,VALUE(MID('CFR - XML import'!$A149,SEARCH(\">\",'CFR - XML import'!$A149,1)+1,SEARCH(\"/\",'CFR - XML import'!$A149,1)-SEARCH(\">\",'CFR - XML import'!$A149,1)-2)))","v":0},{"$f":"IF(ISERROR(FIND(L$3,'CFR - XML import'!$A149)),0,VALUE(MID('CFR - XML import'!$A149,SEARCH(\">\",'CFR - XML import'!$A149,1)+1,SEARCH(\"/\",'CFR - XML import'!$A149,1)-SEARCH(\">\",'CFR - XML import'!$A149,1)-2)))","v":0},{"$f":"IF(ISERROR(FIND(M$3,'CFR - XML import'!$A149)),0,VALUE(MID('CFR - XML import'!$A149,SEARCH(\">\",'CFR - XML import'!$A149,1)+1,SEARCH(\"/\",'CFR - XML import'!$A149,1)-SEARCH(\">\",'CFR - XML import'!$A149,1)-2)))","v":0},{"$f":"IF(ISERROR(FIND(N$3,'CFR - XML import'!$A149)),0,VALUE(MID('CFR - XML import'!$A149,SEARCH(\">\",'CFR - XML import'!$A149,1)+1,SEARCH(\"/\",'CFR - XML import'!$A149,1)-SEARCH(\">\",'CFR - XML import'!$A149,1)-2)))","v":0},{"$f":"IF(ISERROR(FIND(O$3,'CFR - XML import'!$A149)),0,VALUE(MID('CFR - XML import'!$A149,SEARCH(\">\",'CFR - XML import'!$A149,1)+1,SEARCH(\"/\",'CFR - XML import'!$A149,1)-SEARCH(\">\",'CFR - XML import'!$A149,1)-2)))","v":0},{"$f":"IF(ISERROR(FIND(P$3,'CFR - XML import'!$A149)),0,VALUE(MID('CFR - XML import'!$A149,SEARCH(\">\",'CFR - XML import'!$A149,1)+1,SEARCH(\"/\",'CFR - XML import'!$A149,1)-SEARCH(\">\",'CFR - XML import'!$A149,1)-2)))","v":0},{"$f":"IF(ISERROR(FIND(Q$3,'CFR - XML import'!$A149)),0,VALUE(MID('CFR - XML import'!$A149,SEARCH(\">\",'CFR - XML import'!$A149,1)+1,SEARCH(\"/\",'CFR - XML import'!$A149,1)-SEARCH(\">\",'CFR - XML import'!$A149,1)-2)))","v":0},{"$f":"IF(ISERROR(FIND(R$3,'CFR - XML import'!$A149)),0,VALUE(MID('CFR - XML import'!$A149,SEARCH(\">\",'CFR - XML import'!$A149,1)+1,SEARCH(\"/\",'CFR - XML import'!$A149,1)-SEARCH(\">\",'CFR - XML import'!$A149,1)-2)))","v":0},{"$f":"IF(ISERROR(FIND(S$3,'CFR - XML import'!$A149)),0,VALUE(MID('CFR - XML import'!$A149,SEARCH(\">\",'CFR - XML import'!$A149,1)+1,SEARCH(\"/\",'CFR - XML import'!$A149,1)-SEARCH(\">\",'CFR - XML import'!$A149,1)-2)))","v":0},{"$f":"IF(ISERROR(FIND(T$3,'CFR - XML import'!$A149)),0,VALUE(MID('CFR - XML import'!$A149,SEARCH(\">\",'CFR - XML import'!$A149,1)+1,SEARCH(\"/\",'CFR - XML import'!$A149,1)-SEARCH(\">\",'CFR - XML import'!$A149,1)-2)))","v":0},{"$f":"IF(ISERROR(FIND(U$3,'CFR - XML import'!$A149)),0,VALUE(MID('CFR - XML import'!$A149,SEARCH(\">\",'CFR - XML import'!$A149,1)+1,SEARCH(\"/\",'CFR - XML import'!$A149,1)-SEARCH(\">\",'CFR - XML import'!$A149,1)-2)))","v":0},{"$f":"IF(ISERROR(FIND(V$3,'CFR - XML import'!$A149)),0,VALUE(MID('CFR - XML import'!$A149,SEARCH(\">\",'CFR - XML import'!$A149,1)+1,SEARCH(\"/\",'CFR - XML import'!$A149,1)-SEARCH(\">\",'CFR - XML import'!$A149,1)-2)))","v":0},{"$f":"IF(ISERROR(FIND(W$3,'CFR - XML import'!$A149)),0,VALUE(MID('CFR - XML import'!$A149,SEARCH(\">\",'CFR - XML import'!$A149,1)+1,SEARCH(\"/\",'CFR - XML import'!$A149,1)-SEARCH(\">\",'CFR - XML import'!$A149,1)-2)))","v":0},null,{"$f":"IF(ISERROR(FIND(Y$3,'CFR - XML import'!$A149)),0,VALUE(MID('CFR - XML import'!$A149,SEARCH(\">\",'CFR - XML import'!$A149,1)+1,SEARCH(\"/\",'CFR - XML import'!$A149,1)-SEARCH(\">\",'CFR - XML import'!$A149,1)-2)))","v":0},{"$f":"IF(ISERROR(FIND(Z$3,'CFR - XML import'!$A149)),0,VALUE(MID('CFR - XML import'!$A149,SEARCH(\">\",'CFR - XML import'!$A149,1)+1,SEARCH(\"/\",'CFR - XML import'!$A149,1)-SEARCH(\">\",'CFR - XML import'!$A149,1)-2)))","v":0},{"$f":"IF(ISERROR(FIND(AA$3,'CFR - XML import'!$A149)),0,VALUE(MID('CFR - XML import'!$A149,SEARCH(\">\",'CFR - XML import'!$A149,1)+1,SEARCH(\"/\",'CFR - XML import'!$A149,1)-SEARCH(\">\",'CFR - XML import'!$A149,1)-2)))","v":0},{"$f":"IF(ISERROR(FIND(AB$3,'CFR - XML import'!$A149)),0,VALUE(MID('CFR - XML import'!$A149,SEARCH(\">\",'CFR - XML import'!$A149,1)+1,SEARCH(\"/\",'CFR - XML import'!$A149,1)-SEARCH(\">\",'CFR - XML import'!$A149,1)-2)))","v":0},{"$f":"IF(ISERROR(FIND(AC$3,'CFR - XML import'!$A149)),0,VALUE(MID('CFR - XML import'!$A149,SEARCH(\">\",'CFR - XML import'!$A149,1)+1,SEARCH(\"/\",'CFR - XML import'!$A149,1)-SEARCH(\">\",'CFR - XML import'!$A149,1)-2)))","v":0},{"$f":"IF(ISERROR(FIND(AD$3,'CFR - XML import'!$A149)),0,VALUE(MID('CFR - XML import'!$A149,SEARCH(\">\",'CFR - XML import'!$A149,1)+1,SEARCH(\"/\",'CFR - XML import'!$A149,1)-SEARCH(\">\",'CFR - XML import'!$A149,1)-2)))","v":0},{"$f":"IF(ISERROR(FIND(AE$3,'CFR - XML import'!$A149)),0,VALUE(MID('CFR - XML import'!$A149,SEARCH(\">\",'CFR - XML import'!$A149,1)+1,SEARCH(\"/\",'CFR - XML import'!$A149,1)-SEARCH(\">\",'CFR - XML import'!$A149,1)-2)))","v":0},{"$f":"IF(ISERROR(FIND(AF$3,'CFR - XML import'!$A149)),0,VALUE(MID('CFR - XML import'!$A149,SEARCH(\">\",'CFR - XML import'!$A149,1)+1,SEARCH(\"/\",'CFR - XML import'!$A149,1)-SEARCH(\">\",'CFR - XML import'!$A149,1)-2)))","v":0},{"$f":"IF(ISERROR(FIND(AG$3,'CFR - XML import'!$A149)),0,VALUE(MID('CFR - XML import'!$A149,SEARCH(\">\",'CFR - XML import'!$A149,1)+1,SEARCH(\"/\",'CFR - XML import'!$A149,1)-SEARCH(\">\",'CFR - XML import'!$A149,1)-2)))","v":0},{"$f":"IF(ISERROR(FIND(AH$3,'CFR - XML import'!$A149)),0,VALUE(MID('CFR - XML import'!$A149,SEARCH(\">\",'CFR - XML import'!$A149,1)+1,SEARCH(\"/\",'CFR - XML import'!$A149,1)-SEARCH(\">\",'CFR - XML import'!$A149,1)-2)))","v":0},{"$f":"IF(ISERROR(FIND(AI$3,'CFR - XML import'!$A149)),0,VALUE(MID('CFR - XML import'!$A149,SEARCH(\">\",'CFR - XML import'!$A149,1)+1,SEARCH(\"/\",'CFR - XML import'!$A149,1)-SEARCH(\">\",'CFR - XML import'!$A149,1)-2)))","v":0},{"$f":"IF(ISERROR(FIND(AJ$3,'CFR - XML import'!$A149)),0,VALUE(MID('CFR - XML import'!$A149,SEARCH(\">\",'CFR - XML import'!$A149,1)+1,SEARCH(\"/\",'CFR - XML import'!$A149,1)-SEARCH(\">\",'CFR - XML import'!$A149,1)-2)))","v":0},{"$f":"IF(ISERROR(FIND(AK$3,'CFR - XML import'!$A149)),0,VALUE(MID('CFR - XML import'!$A149,SEARCH(\">\",'CFR - XML import'!$A149,1)+1,SEARCH(\"/\",'CFR - XML import'!$A149,1)-SEARCH(\">\",'CFR - XML import'!$A149,1)-2)))","v":0},{"$f":"IF(ISERROR(FIND(AL$3,'CFR - XML import'!$A149)),0,VALUE(MID('CFR - XML import'!$A149,SEARCH(\">\",'CFR - XML import'!$A149,1)+1,SEARCH(\"/\",'CFR - XML import'!$A149,1)-SEARCH(\">\",'CFR - XML import'!$A149,1)-2)))","v":0},{"$f":"IF(ISERROR(FIND(AM$3,'CFR - XML import'!$A149)),0,VALUE(MID('CFR - XML import'!$A149,SEARCH(\">\",'CFR - XML import'!$A149,1)+1,SEARCH(\"/\",'CFR - XML import'!$A149,1)-SEARCH(\">\",'CFR - XML import'!$A149,1)-2)))","v":0},{"$f":"IF(ISERROR(FIND(AN$3,'CFR - XML import'!$A149)),0,VALUE(MID('CFR - XML import'!$A149,SEARCH(\">\",'CFR - XML import'!$A149,1)+1,SEARCH(\"/\",'CFR - XML import'!$A149,1)-SEARCH(\">\",'CFR - XML import'!$A149,1)-2)))","v":0},{"$f":"IF(ISERROR(FIND(AO$3,'CFR - XML import'!$A149)),0,VALUE(MID('CFR - XML import'!$A149,SEARCH(\">\",'CFR - XML import'!$A149,1)+1,SEARCH(\"/\",'CFR - XML import'!$A149,1)-SEARCH(\">\",'CFR - XML import'!$A149,1)-2)))","v":0},{"$f":"IF(ISERROR(FIND(AP$3,'CFR - XML import'!$A149)),0,VALUE(MID('CFR - XML import'!$A149,SEARCH(\">\",'CFR - XML import'!$A149,1)+1,SEARCH(\"/\",'CFR - XML import'!$A149,1)-SEARCH(\">\",'CFR - XML import'!$A149,1)-2)))","v":0},{"$f":"IF(ISERROR(FIND(AQ$3,'CFR - XML import'!$A149)),0,VALUE(MID('CFR - XML import'!$A149,SEARCH(\">\",'CFR - XML import'!$A149,1)+1,SEARCH(\"/\",'CFR - XML import'!$A149,1)-SEARCH(\">\",'CFR - XML import'!$A149,1)-2)))","v":0},{"$f":"IF(ISERROR(FIND(AR$3,'CFR - XML import'!$A149)),0,VALUE(MID('CFR - XML import'!$A149,SEARCH(\">\",'CFR - XML import'!$A149,1)+1,SEARCH(\"/\",'CFR - XML import'!$A149,1)-SEARCH(\">\",'CFR - XML import'!$A149,1)-2)))","v":0},{"$f":"IF(ISERROR(FIND(AS$3,'CFR - XML import'!$A149)),0,VALUE(MID('CFR - XML import'!$A149,SEARCH(\">\",'CFR - XML import'!$A149,1)+1,SEARCH(\"/\",'CFR - XML import'!$A149,1)-SEARCH(\">\",'CFR - XML import'!$A149,1)-2)))","v":0},{"$f":"IF(ISERROR(FIND(AT$3,'CFR - XML import'!$A149)),0,VALUE(MID('CFR - XML import'!$A149,SEARCH(\">\",'CFR - XML import'!$A149,1)+1,SEARCH(\"/\",'CFR - XML import'!$A149,1)-SEARCH(\">\",'CFR - XML import'!$A149,1)-2)))","v":0},{"$f":"IF(ISERROR(FIND(AU$3,'CFR - XML import'!$A149)),0,VALUE(MID('CFR - XML import'!$A149,SEARCH(\">\",'CFR - XML import'!$A149,1)+1,SEARCH(\"/\",'CFR - XML import'!$A149,1)-SEARCH(\">\",'CFR - XML import'!$A149,1)-2)))","v":0},{"$f":"IF(ISERROR(FIND(AV$3,'CFR - XML import'!$A149)),0,VALUE(MID('CFR - XML import'!$A149,SEARCH(\">\",'CFR - XML import'!$A149,1)+1,SEARCH(\"/\",'CFR - XML import'!$A149,1)-SEARCH(\">\",'CFR - XML import'!$A149,1)-2)))","v":0},{"$f":"IF(ISERROR(FIND(AW$3,'CFR - XML import'!$A149)),0,VALUE(MID('CFR - XML import'!$A149,SEARCH(\">\",'CFR - XML import'!$A149,1)+1,SEARCH(\"/\",'CFR - XML import'!$A149,1)-SEARCH(\">\",'CFR - XML import'!$A149,1)-2)))","v":0},{"$f":"IF(ISERROR(FIND(AX$3,'CFR - XML import'!$A149)),0,VALUE(MID('CFR - XML import'!$A149,SEARCH(\">\",'CFR - XML import'!$A149,1)+1,SEARCH(\"/\",'CFR - XML import'!$A149,1)-SEARCH(\">\",'CFR - XML import'!$A149,1)-2)))","v":0},{"$f":"IF(ISERROR(FIND(AY$3,'CFR - XML import'!$A149)),0,VALUE(MID('CFR - XML import'!$A149,SEARCH(\">\",'CFR - XML import'!$A149,1)+1,SEARCH(\"/\",'CFR - XML import'!$A149,1)-SEARCH(\">\",'CFR - XML import'!$A149,1)-2)))","v":0},{"$f":"IF(ISERROR(FIND(AZ$3,'CFR - XML import'!$A149)),0,VALUE(MID('CFR - XML import'!$A149,SEARCH(\">\",'CFR - XML import'!$A149,1)+1,SEARCH(\"/\",'CFR - XML import'!$A149,1)-SEARCH(\">\",'CFR - XML import'!$A149,1)-2)))","v":0},{"$f":"IF(ISERROR(FIND(BA$3,'CFR - XML import'!$A149)),0,VALUE(MID('CFR - XML import'!$A149,SEARCH(\">\",'CFR - XML import'!$A149,1)+1,SEARCH(\"/\",'CFR - XML import'!$A149,1)-SEARCH(\">\",'CFR - XML import'!$A149,1)-2)))","v":0},{"$f":"IF(ISERROR(FIND(BB$3,'CFR - XML import'!$A149)),0,VALUE(MID('CFR - XML import'!$A149,SEARCH(\">\",'CFR - XML import'!$A149,1)+1,SEARCH(\"/\",'CFR - XML import'!$A149,1)-SEARCH(\">\",'CFR - XML import'!$A149,1)-2)))","v":0},{"$f":"IF(ISERROR(FIND(BC$3,'CFR - XML import'!$A149)),0,VALUE(MID('CFR - XML import'!$A149,SEARCH(\">\",'CFR - XML import'!$A149,1)+1,SEARCH(\"/\",'CFR - XML import'!$A149,1)-SEARCH(\">\",'CFR - XML import'!$A149,1)-2)))","v":0},{"$f":"IF(ISERROR(FIND(BD$3,'CFR - XML import'!$A149)),0,VALUE(MID('CFR - XML import'!$A149,SEARCH(\">\",'CFR - XML import'!$A149,1)+1,SEARCH(\"/\",'CFR - XML import'!$A149,1)-SEARCH(\">\",'CFR - XML import'!$A149,1)-2)))","v":0},{"$f":"IF(ISERROR(FIND(BE$3,'CFR - XML import'!$A149)),0,VALUE(MID('CFR - XML import'!$A149,SEARCH(\">\",'CFR - XML import'!$A149,1)+1,SEARCH(\"/\",'CFR - XML import'!$A149,1)-SEARCH(\">\",'CFR - XML import'!$A149,1)-2)))","v":0},{"$f":"IF(ISERROR(FIND(BF$3,'CFR - XML import'!$A149)),0,VALUE(MID('CFR - XML import'!$A149,SEARCH(\">\",'CFR - XML import'!$A149,1)+1,SEARCH(\"/\",'CFR - XML import'!$A149,1)-SEARCH(\">\",'CFR - XML import'!$A149,1)-2)))","v":0},{"$f":"IF(ISERROR(FIND(BG$3,'CFR - XML import'!$A149)),0,VALUE(MID('CFR - XML import'!$A149,SEARCH(\">\",'CFR - XML import'!$A149,1)+1,SEARCH(\"/\",'CFR - XML import'!$A149,1)-SEARCH(\">\",'CFR - XML import'!$A149,1)-2)))","v":0},{"$f":"IF(ISERROR(FIND(BH$3,'CFR - XML import'!$A149)),0,VALUE(MID('CFR - XML import'!$A149,SEARCH(\">\",'CFR - XML import'!$A149,1)+1,SEARCH(\"/\",'CFR - XML import'!$A149,1)-SEARCH(\">\",'CFR - XML import'!$A149,1)-2)))","v":0},{"$f":"IF(ISERROR(FIND(BI$3,'CFR - XML import'!$A149)),0,VALUE(MID('CFR - XML import'!$A149,SEARCH(\">\",'CFR - XML import'!$A149,1)+1,SEARCH(\"/\",'CFR - XML import'!$A149,1)-SEARCH(\">\",'CFR - XML import'!$A149,1)-2)))","v":0},{"$f":"IF(ISERROR(FIND(BJ$3,'CFR - XML import'!$A149)),0,VALUE(MID('CFR - XML import'!$A149,SEARCH(\">\",'CFR - XML import'!$A149,1)+1,SEARCH(\"/\",'CFR - XML import'!$A149,1)-SEARCH(\">\",'CFR - XML import'!$A149,1)-2)))","v":0},{"$f":"IF(ISERROR(FIND(BK$3,'CFR - XML import'!$A149)),0,VALUE(MID('CFR - XML import'!$A149,SEARCH(\">\",'CFR - XML import'!$A149,1)+1,SEARCH(\"/\",'CFR - XML import'!$A149,1)-SEARCH(\">\",'CFR - XML import'!$A149,1)-2)))","v":0},{"$f":"IF(ISERROR(FIND(BL$3,'CFR - XML import'!$A149)),0,VALUE(MID('CFR - XML import'!$A149,SEARCH(\">\",'CFR - XML import'!$A149,1)+1,SEARCH(\"/\",'CFR - XML import'!$A149,1)-SEARCH(\">\",'CFR - XML import'!$A149,1)-2)))","v":0},{"$f":"IF(ISERROR(FIND(BM$3,'CFR - XML import'!$A149)),0,VALUE(MID('CFR - XML import'!$A149,SEARCH(\">\",'CFR - XML import'!$A149,1)+1,SEARCH(\"/\",'CFR - XML import'!$A149,1)-SEARCH(\">\",'CFR - XML import'!$A149,1)-2)))","v":0},{"$f":"IF(ISERROR(FIND(BN$3,'CFR - XML import'!$A149)),0,VALUE(MID('CFR - XML import'!$A149,SEARCH(\">\",'CFR - XML import'!$A149,1)+1,SEARCH(\"/\",'CFR - XML import'!$A149,1)-SEARCH(\">\",'CFR - XML import'!$A149,1)-2)))","v":0},{"$f":"IF(ISERROR(FIND(BO$3,'CFR - XML import'!$A149)),0,VALUE(MID('CFR - XML import'!$A149,SEARCH(\">\",'CFR - XML import'!$A149,1)+1,SEARCH(\"/\",'CFR - XML import'!$A149,1)-SEARCH(\">\",'CFR - XML import'!$A149,1)-2)))","v":0},{"$f":"IF(ISERROR(FIND(BP$3,'CFR - XML import'!$A149)),0,VALUE(MID('CFR - XML import'!$A149,SEARCH(\">\",'CFR - XML import'!$A149,1)+1,SEARCH(\"/\",'CFR - XML import'!$A149,1)-SEARCH(\">\",'CFR - XML import'!$A149,1)-2)))","v":0},{"$f":"IF(ISERROR(FIND(BQ$3,'CFR - XML import'!$A149)),0,VALUE(MID('CFR - XML import'!$A149,SEARCH(\">\",'CFR - XML import'!$A149,1)+1,SEARCH(\"/\",'CFR - XML import'!$A149,1)-SEARCH(\">\",'CFR - XML import'!$A149,1)-2)))","v":0},{"$f":"IF(ISERROR(FIND(BR$3,'CFR - XML import'!$A149)),0,VALUE(MID('CFR - XML import'!$A149,SEARCH(\">\",'CFR - XML import'!$A149,1)+1,SEARCH(\"/\",'CFR - XML import'!$A149,1)-SEARCH(\">\",'CFR - XML import'!$A149,1)-2)))","v":0},{"$f":"IF(ISERROR(FIND(BS$3,'CFR - XML import'!$A149)),0,VALUE(MID('CFR - XML import'!$A149,SEARCH(\">\",'CFR - XML import'!$A149,1)+1,SEARCH(\"/\",'CFR - XML import'!$A149,1)-SEARCH(\">\",'CFR - XML import'!$A149,1)-2)))","v":0},{"$f":"IF(ISERROR(FIND(BT$3,'CFR - XML import'!$A149)),0,VALUE(MID('CFR - XML import'!$A149,SEARCH(\">\",'CFR - XML import'!$A149,1)+1,SEARCH(\"/\",'CFR - XML import'!$A149,1)-SEARCH(\">\",'CFR - XML import'!$A149,1)-2)))","v":0},{"$f":"IF(ISERROR(FIND(BU$3,'CFR - XML import'!$A149)),0,VALUE(MID('CFR - XML import'!$A149,SEARCH(\">\",'CFR - XML import'!$A149,1)+1,SEARCH(\"/\",'CFR - XML import'!$A149,1)-SEARCH(\">\",'CFR - XML import'!$A149,1)-2)))","v":0},{"$f":"IF(ISERROR(FIND(BV$3,'CFR - XML import'!$A149)),0,VALUE(MID('CFR - XML import'!$A149,SEARCH(\">\",'CFR - XML import'!$A149,1)+1,SEARCH(\"/\",'CFR - XML import'!$A149,1)-SEARCH(\">\",'CFR - XML import'!$A149,1)-2)))","v":0},{"$f":"IF(ISERROR(FIND(BW$3,'CFR - XML import'!$A149)),0,VALUE(MID('CFR - XML import'!$A149,SEARCH(\">\",'CFR - XML import'!$A149,1)+1,SEARCH(\"/\",'CFR - XML import'!$A149,1)-SEARCH(\">\",'CFR - XML import'!$A149,1)-2)))","v":0},{"$f":"IF(ISERROR(FIND(BX$3,'CFR - XML import'!$A149)),0,VALUE(MID('CFR - XML import'!$A149,SEARCH(\">\",'CFR - XML import'!$A149,1)+1,SEARCH(\"/\",'CFR - XML import'!$A149,1)-SEARCH(\">\",'CFR - XML import'!$A149,1)-2)))","v":0},{"$f":"IF(ISERROR(FIND(BY$3,'CFR - XML import'!$A149)),0,VALUE(MID('CFR - XML import'!$A149,SEARCH(\">\",'CFR - XML import'!$A149,1)+1,SEARCH(\"/\",'CFR - XML import'!$A149,1)-SEARCH(\">\",'CFR - XML import'!$A149,1)-2)))","v":0},{"$f":"IF(ISERROR(FIND(BZ$3,'CFR - XML import'!$A149)),0,VALUE(MID('CFR - XML import'!$A149,SEARCH(\">\",'CFR - XML import'!$A149,1)+1,SEARCH(\"/\",'CFR - XML import'!$A149,1)-SEARCH(\">\",'CFR - XML import'!$A149,1)-2)))","v":0},null,null,null,null,null,null,{"$f":"IF(ISERROR(IF(MID('CFR - XML import'!$A149,LEN($CF$4)+1,LEN('CFR - XML import'!$A149)-(2*LEN($CF$4)+1))=\"RMMS\",1,IF(MID('CFR - XML import'!$A149,LEN(\"    <InputSystem>\")+1,LEN('CFR - XML import'!$A149)-(LEN(\"    <InputSystem>\")+LEN($CF$4)+1))=\"SIMS\",2,0))),0,IF(MID('CFR - XML import'!$A149,LEN($CF$4)+1,LEN('CFR - XML import'!$A149)-(2*LEN($CF$4)+1))=\"RMMS\",1,IF(MID('CFR - XML import'!$A149,LEN(\"    <InputSystem>\")+1,LEN('CFR - XML import'!$A149)-(LEN(\"    <InputSystem>\")+LEN($CF$4)+1))=\"SIMS\",2,0)))","v":0},{"$f":"IF(ISERROR(FIND(CH$3,'CFR - XML import'!$A149)),0,MID('CFR - XML import'!$A149,SEARCH(\">\",'CFR - XML import'!$A149,1)+1,SEARCH(\"/\",'CFR - XML import'!$A149,1)-SEARCH(\">\",'CFR - XML import'!$A149,1)-2))","v":0},{"$f":"IF(ISERROR(FIND(CI$3,'CFR - XML import'!$A149)),0,MID('CFR - XML import'!$A149,SEARCH(\">\",'CFR - XML import'!$A149,1)+1,SEARCH(\"/\",'CFR - XML import'!$A149,1)-SEARCH(\">\",'CFR - XML import'!$A149,1)-2))","v":0},{"$f":"IF(ISERROR(FIND(CJ$3,'CFR - XML import'!$A149)),0,MID('CFR - XML import'!$A149,SEARCH(\">\",'CFR - XML import'!$A149,1)+1,SEARCH(\"/\",'CFR - XML import'!$A149,1)-SEARCH(\">\",'CFR - XML import'!$A149,1)-2))","v":0},{"$f":"IF(ISERROR(FIND(CK$3,'CFR - XML import'!$A149)),0,MID('CFR - XML import'!$A149,SEARCH(\">\",'CFR - XML import'!$A149,1)+1,SEARCH(\"/\",'CFR - XML import'!$A149,1)-SEARCH(\">\",'CFR - XML import'!$A149,1)-2))","v":0},{"$f":"IF(ISERROR(FIND(CL$3,'CFR - XML import'!$A149)),0,MID('CFR - XML import'!$A149,SEARCH(\">\",'CFR - XML import'!$A149,1)+1,SEARCH(\"/\",'CFR - XML import'!$A149,1)-SEARCH(\">\",'CFR - XML import'!$A149,1)-2))","v":0}]
[{"$f":"IF(AND('CFR - XML import'!A150<>\"\",LEFT('CFR - XML import'!A150,1)<>\"<\",LEFT('CFR - XML import'!A150,3)<>\"  <\",LEFT('CFR - XML import'!A150,5)<>\"    <\",LEFT('CFR - XML import'!A150,7)<>\"      <\",LEFT('CFR - XML import'!A150,9)<>\"        <\",$B$1=\"SIMS\"),'CFR - XML import'!A150,IF(AND(LEFT('CFR - XML import'!A150,9)=\"<Details>\",$B$1=\"RM\"),'CFR - XML import'!A150,\"\"))","v":""},{"$f":"IF(ISERROR(FIND(B$3,'CFR - XML import'!$A150)),0,VALUE(MID('CFR - XML import'!$A150,SEARCH(\">\",'CFR - XML import'!$A150,1)+1,SEARCH(\"/\",'CFR - XML import'!$A150,1)-SEARCH(\">\",'CFR - XML import'!$A150,1)-2)))","v":0},null,{"$f":"IF(ISERROR(FIND(D$3,'CFR - XML import'!$A150)),0,MID('CFR - XML import'!$A150,SEARCH(\">\",'CFR - XML import'!$A150,1)+1,SEARCH(\"/\",'CFR - XML import'!$A150,1)-SEARCH(\">\",'CFR - XML import'!$A150,1)-2))","v":0},{"$f":"IF(ISERROR(FIND(E$3,'CFR - XML import'!$A150)),0,MID('CFR - XML import'!$A150,SEARCH(\">\",'CFR - XML import'!$A150,1)+1,SEARCH(\"/\",'CFR - XML import'!$A150,1)-SEARCH(\">\",'CFR - XML import'!$A150,1)-2))","v":0},{"$f":"IF($B$1=\"SIMS\",IF(ISERROR(FIND(F$3,'CFR - XML import'!$A150)),0,VALUE(MID('CFR - XML import'!$A150,15,10))),IF(ISERROR(FIND(F$3,'CFR - XML import'!$A150)),0,VALUE(MID('CFR - XML import'!$A150,11,10))))","v":"00:00:00"},{"$f":"IF(ISERROR(FIND(G$3,'CFR - XML import'!$A150)),0,VALUE(MID('CFR - XML import'!$A150,SEARCH(\">\",'CFR - XML import'!$A150,1)+1,SEARCH(\"/\",'CFR - XML import'!$A150,1)-SEARCH(\">\",'CFR - XML import'!$A150,1)-2)))","v":0},{"$f":"IF(ISERROR(FIND(H$3,'CFR - XML import'!$A150)),0,VALUE(MID('CFR - XML import'!$A150,SEARCH(\">\",'CFR - XML import'!$A150,1)+1,SEARCH(\"/\",'CFR - XML import'!$A150,1)-SEARCH(\">\",'CFR - XML import'!$A150,1)-2)))","v":0},{"$f":"IF(ISERROR(FIND(I$3,'CFR - XML import'!$A150)),0,VALUE(MID('CFR - XML import'!$A150,SEARCH(\">\",'CFR - XML import'!$A150,1)+1,SEARCH(\"/\",'CFR - XML import'!$A150,1)-SEARCH(\">\",'CFR - XML import'!$A150,1)-2)))","v":0},{"$f":"IF(ISERROR(FIND(J$3,'CFR - XML import'!$A150)),0,VALUE(MID('CFR - XML import'!$A150,SEARCH(\">\",'CFR - XML import'!$A150,1)+1,SEARCH(\"/\",'CFR - XML import'!$A150,1)-SEARCH(\">\",'CFR - XML import'!$A150,1)-2)))","v":0},{"$f":"IF(ISERROR(FIND(K$3,'CFR - XML import'!$A150)),0,VALUE(MID('CFR - XML import'!$A150,SEARCH(\">\",'CFR - XML import'!$A150,1)+1,SEARCH(\"/\",'CFR - XML import'!$A150,1)-SEARCH(\">\",'CFR - XML import'!$A150,1)-2)))","v":0},{"$f":"IF(ISERROR(FIND(L$3,'CFR - XML import'!$A150)),0,VALUE(MID('CFR - XML import'!$A150,SEARCH(\">\",'CFR - XML import'!$A150,1)+1,SEARCH(\"/\",'CFR - XML import'!$A150,1)-SEARCH(\">\",'CFR - XML import'!$A150,1)-2)))","v":0},{"$f":"IF(ISERROR(FIND(M$3,'CFR - XML import'!$A150)),0,VALUE(MID('CFR - XML import'!$A150,SEARCH(\">\",'CFR - XML import'!$A150,1)+1,SEARCH(\"/\",'CFR - XML import'!$A150,1)-SEARCH(\">\",'CFR - XML import'!$A150,1)-2)))","v":0},{"$f":"IF(ISERROR(FIND(N$3,'CFR - XML import'!$A150)),0,VALUE(MID('CFR - XML import'!$A150,SEARCH(\">\",'CFR - XML import'!$A150,1)+1,SEARCH(\"/\",'CFR - XML import'!$A150,1)-SEARCH(\">\",'CFR - XML import'!$A150,1)-2)))","v":0},{"$f":"IF(ISERROR(FIND(O$3,'CFR - XML import'!$A150)),0,VALUE(MID('CFR - XML import'!$A150,SEARCH(\">\",'CFR - XML import'!$A150,1)+1,SEARCH(\"/\",'CFR - XML import'!$A150,1)-SEARCH(\">\",'CFR - XML import'!$A150,1)-2)))","v":0},{"$f":"IF(ISERROR(FIND(P$3,'CFR - XML import'!$A150)),0,VALUE(MID('CFR - XML import'!$A150,SEARCH(\">\",'CFR - XML import'!$A150,1)+1,SEARCH(\"/\",'CFR - XML import'!$A150,1)-SEARCH(\">\",'CFR - XML import'!$A150,1)-2)))","v":0},{"$f":"IF(ISERROR(FIND(Q$3,'CFR - XML import'!$A150)),0,VALUE(MID('CFR - XML import'!$A150,SEARCH(\">\",'CFR - XML import'!$A150,1)+1,SEARCH(\"/\",'CFR - XML import'!$A150,1)-SEARCH(\">\",'CFR - XML import'!$A150,1)-2)))","v":0},{"$f":"IF(ISERROR(FIND(R$3,'CFR - XML import'!$A150)),0,VALUE(MID('CFR - XML import'!$A150,SEARCH(\">\",'CFR - XML import'!$A150,1)+1,SEARCH(\"/\",'CFR - XML import'!$A150,1)-SEARCH(\">\",'CFR - XML import'!$A150,1)-2)))","v":0},{"$f":"IF(ISERROR(FIND(S$3,'CFR - XML import'!$A150)),0,VALUE(MID('CFR - XML import'!$A150,SEARCH(\">\",'CFR - XML import'!$A150,1)+1,SEARCH(\"/\",'CFR - XML import'!$A150,1)-SEARCH(\">\",'CFR - XML import'!$A150,1)-2)))","v":0},{"$f":"IF(ISERROR(FIND(T$3,'CFR - XML import'!$A150)),0,VALUE(MID('CFR - XML import'!$A150,SEARCH(\">\",'CFR - XML import'!$A150,1)+1,SEARCH(\"/\",'CFR - XML import'!$A150,1)-SEARCH(\">\",'CFR - XML import'!$A150,1)-2)))","v":0},{"$f":"IF(ISERROR(FIND(U$3,'CFR - XML import'!$A150)),0,VALUE(MID('CFR - XML import'!$A150,SEARCH(\">\",'CFR - XML import'!$A150,1)+1,SEARCH(\"/\",'CFR - XML import'!$A150,1)-SEARCH(\">\",'CFR - XML import'!$A150,1)-2)))","v":0},{"$f":"IF(ISERROR(FIND(V$3,'CFR - XML import'!$A150)),0,VALUE(MID('CFR - XML import'!$A150,SEARCH(\">\",'CFR - XML import'!$A150,1)+1,SEARCH(\"/\",'CFR - XML import'!$A150,1)-SEARCH(\">\",'CFR - XML import'!$A150,1)-2)))","v":0},{"$f":"IF(ISERROR(FIND(W$3,'CFR - XML import'!$A150)),0,VALUE(MID('CFR - XML import'!$A150,SEARCH(\">\",'CFR - XML import'!$A150,1)+1,SEARCH(\"/\",'CFR - XML import'!$A150,1)-SEARCH(\">\",'CFR - XML import'!$A150,1)-2)))","v":0},null,{"$f":"IF(ISERROR(FIND(Y$3,'CFR - XML import'!$A150)),0,VALUE(MID('CFR - XML import'!$A150,SEARCH(\">\",'CFR - XML import'!$A150,1)+1,SEARCH(\"/\",'CFR - XML import'!$A150,1)-SEARCH(\">\",'CFR - XML import'!$A150,1)-2)))","v":0},{"$f":"IF(ISERROR(FIND(Z$3,'CFR - XML import'!$A150)),0,VALUE(MID('CFR - XML import'!$A150,SEARCH(\">\",'CFR - XML import'!$A150,1)+1,SEARCH(\"/\",'CFR - XML import'!$A150,1)-SEARCH(\">\",'CFR - XML import'!$A150,1)-2)))","v":0},{"$f":"IF(ISERROR(FIND(AA$3,'CFR - XML import'!$A150)),0,VALUE(MID('CFR - XML import'!$A150,SEARCH(\">\",'CFR - XML import'!$A150,1)+1,SEARCH(\"/\",'CFR - XML import'!$A150,1)-SEARCH(\">\",'CFR - XML import'!$A150,1)-2)))","v":0},{"$f":"IF(ISERROR(FIND(AB$3,'CFR - XML import'!$A150)),0,VALUE(MID('CFR - XML import'!$A150,SEARCH(\">\",'CFR - XML import'!$A150,1)+1,SEARCH(\"/\",'CFR - XML import'!$A150,1)-SEARCH(\">\",'CFR - XML import'!$A150,1)-2)))","v":0},{"$f":"IF(ISERROR(FIND(AC$3,'CFR - XML import'!$A150)),0,VALUE(MID('CFR - XML import'!$A150,SEARCH(\">\",'CFR - XML import'!$A150,1)+1,SEARCH(\"/\",'CFR - XML import'!$A150,1)-SEARCH(\">\",'CFR - XML import'!$A150,1)-2)))","v":0},{"$f":"IF(ISERROR(FIND(AD$3,'CFR - XML import'!$A150)),0,VALUE(MID('CFR - XML import'!$A150,SEARCH(\">\",'CFR - XML import'!$A150,1)+1,SEARCH(\"/\",'CFR - XML import'!$A150,1)-SEARCH(\">\",'CFR - XML import'!$A150,1)-2)))","v":0},{"$f":"IF(ISERROR(FIND(AE$3,'CFR - XML import'!$A150)),0,VALUE(MID('CFR - XML import'!$A150,SEARCH(\">\",'CFR - XML import'!$A150,1)+1,SEARCH(\"/\",'CFR - XML import'!$A150,1)-SEARCH(\">\",'CFR - XML import'!$A150,1)-2)))","v":0},{"$f":"IF(ISERROR(FIND(AF$3,'CFR - XML import'!$A150)),0,VALUE(MID('CFR - XML import'!$A150,SEARCH(\">\",'CFR - XML import'!$A150,1)+1,SEARCH(\"/\",'CFR - XML import'!$A150,1)-SEARCH(\">\",'CFR - XML import'!$A150,1)-2)))","v":0},{"$f":"IF(ISERROR(FIND(AG$3,'CFR - XML import'!$A150)),0,VALUE(MID('CFR - XML import'!$A150,SEARCH(\">\",'CFR - XML import'!$A150,1)+1,SEARCH(\"/\",'CFR - XML import'!$A150,1)-SEARCH(\">\",'CFR - XML import'!$A150,1)-2)))","v":0},{"$f":"IF(ISERROR(FIND(AH$3,'CFR - XML import'!$A150)),0,VALUE(MID('CFR - XML import'!$A150,SEARCH(\">\",'CFR - XML import'!$A150,1)+1,SEARCH(\"/\",'CFR - XML import'!$A150,1)-SEARCH(\">\",'CFR - XML import'!$A150,1)-2)))","v":0},{"$f":"IF(ISERROR(FIND(AI$3,'CFR - XML import'!$A150)),0,VALUE(MID('CFR - XML import'!$A150,SEARCH(\">\",'CFR - XML import'!$A150,1)+1,SEARCH(\"/\",'CFR - XML import'!$A150,1)-SEARCH(\">\",'CFR - XML import'!$A150,1)-2)))","v":0},{"$f":"IF(ISERROR(FIND(AJ$3,'CFR - XML import'!$A150)),0,VALUE(MID('CFR - XML import'!$A150,SEARCH(\">\",'CFR - XML import'!$A150,1)+1,SEARCH(\"/\",'CFR - XML import'!$A150,1)-SEARCH(\">\",'CFR - XML import'!$A150,1)-2)))","v":0},{"$f":"IF(ISERROR(FIND(AK$3,'CFR - XML import'!$A150)),0,VALUE(MID('CFR - XML import'!$A150,SEARCH(\">\",'CFR - XML import'!$A150,1)+1,SEARCH(\"/\",'CFR - XML import'!$A150,1)-SEARCH(\">\",'CFR - XML import'!$A150,1)-2)))","v":0},{"$f":"IF(ISERROR(FIND(AL$3,'CFR - XML import'!$A150)),0,VALUE(MID('CFR - XML import'!$A150,SEARCH(\">\",'CFR - XML import'!$A150,1)+1,SEARCH(\"/\",'CFR - XML import'!$A150,1)-SEARCH(\">\",'CFR - XML import'!$A150,1)-2)))","v":0},{"$f":"IF(ISERROR(FIND(AM$3,'CFR - XML import'!$A150)),0,VALUE(MID('CFR - XML import'!$A150,SEARCH(\">\",'CFR - XML import'!$A150,1)+1,SEARCH(\"/\",'CFR - XML import'!$A150,1)-SEARCH(\">\",'CFR - XML import'!$A150,1)-2)))","v":0},{"$f":"IF(ISERROR(FIND(AN$3,'CFR - XML import'!$A150)),0,VALUE(MID('CFR - XML import'!$A150,SEARCH(\">\",'CFR - XML import'!$A150,1)+1,SEARCH(\"/\",'CFR - XML import'!$A150,1)-SEARCH(\">\",'CFR - XML import'!$A150,1)-2)))","v":0},{"$f":"IF(ISERROR(FIND(AO$3,'CFR - XML import'!$A150)),0,VALUE(MID('CFR - XML import'!$A150,SEARCH(\">\",'CFR - XML import'!$A150,1)+1,SEARCH(\"/\",'CFR - XML import'!$A150,1)-SEARCH(\">\",'CFR - XML import'!$A150,1)-2)))","v":0},{"$f":"IF(ISERROR(FIND(AP$3,'CFR - XML import'!$A150)),0,VALUE(MID('CFR - XML import'!$A150,SEARCH(\">\",'CFR - XML import'!$A150,1)+1,SEARCH(\"/\",'CFR - XML import'!$A150,1)-SEARCH(\">\",'CFR - XML import'!$A150,1)-2)))","v":0},{"$f":"IF(ISERROR(FIND(AQ$3,'CFR - XML import'!$A150)),0,VALUE(MID('CFR - XML import'!$A150,SEARCH(\">\",'CFR - XML import'!$A150,1)+1,SEARCH(\"/\",'CFR - XML import'!$A150,1)-SEARCH(\">\",'CFR - XML import'!$A150,1)-2)))","v":0},{"$f":"IF(ISERROR(FIND(AR$3,'CFR - XML import'!$A150)),0,VALUE(MID('CFR - XML import'!$A150,SEARCH(\">\",'CFR - XML import'!$A150,1)+1,SEARCH(\"/\",'CFR - XML import'!$A150,1)-SEARCH(\">\",'CFR - XML import'!$A150,1)-2)))","v":0},{"$f":"IF(ISERROR(FIND(AS$3,'CFR - XML import'!$A150)),0,VALUE(MID('CFR - XML import'!$A150,SEARCH(\">\",'CFR - XML import'!$A150,1)+1,SEARCH(\"/\",'CFR - XML import'!$A150,1)-SEARCH(\">\",'CFR - XML import'!$A150,1)-2)))","v":0},{"$f":"IF(ISERROR(FIND(AT$3,'CFR - XML import'!$A150)),0,VALUE(MID('CFR - XML import'!$A150,SEARCH(\">\",'CFR - XML import'!$A150,1)+1,SEARCH(\"/\",'CFR - XML import'!$A150,1)-SEARCH(\">\",'CFR - XML import'!$A150,1)-2)))","v":0},{"$f":"IF(ISERROR(FIND(AU$3,'CFR - XML import'!$A150)),0,VALUE(MID('CFR - XML import'!$A150,SEARCH(\">\",'CFR - XML import'!$A150,1)+1,SEARCH(\"/\",'CFR - XML import'!$A150,1)-SEARCH(\">\",'CFR - XML import'!$A150,1)-2)))","v":0},{"$f":"IF(ISERROR(FIND(AV$3,'CFR - XML import'!$A150)),0,VALUE(MID('CFR - XML import'!$A150,SEARCH(\">\",'CFR - XML import'!$A150,1)+1,SEARCH(\"/\",'CFR - XML import'!$A150,1)-SEARCH(\">\",'CFR - XML import'!$A150,1)-2)))","v":0},{"$f":"IF(ISERROR(FIND(AW$3,'CFR - XML import'!$A150)),0,VALUE(MID('CFR - XML import'!$A150,SEARCH(\">\",'CFR - XML import'!$A150,1)+1,SEARCH(\"/\",'CFR - XML import'!$A150,1)-SEARCH(\">\",'CFR - XML import'!$A150,1)-2)))","v":0},{"$f":"IF(ISERROR(FIND(AX$3,'CFR - XML import'!$A150)),0,VALUE(MID('CFR - XML import'!$A150,SEARCH(\">\",'CFR - XML import'!$A150,1)+1,SEARCH(\"/\",'CFR - XML import'!$A150,1)-SEARCH(\">\",'CFR - XML import'!$A150,1)-2)))","v":0},{"$f":"IF(ISERROR(FIND(AY$3,'CFR - XML import'!$A150)),0,VALUE(MID('CFR - XML import'!$A150,SEARCH(\">\",'CFR - XML import'!$A150,1)+1,SEARCH(\"/\",'CFR - XML import'!$A150,1)-SEARCH(\">\",'CFR - XML import'!$A150,1)-2)))","v":0},{"$f":"IF(ISERROR(FIND(AZ$3,'CFR - XML import'!$A150)),0,VALUE(MID('CFR - XML import'!$A150,SEARCH(\">\",'CFR - XML import'!$A150,1)+1,SEARCH(\"/\",'CFR - XML import'!$A150,1)-SEARCH(\">\",'CFR - XML import'!$A150,1)-2)))","v":0},{"$f":"IF(ISERROR(FIND(BA$3,'CFR - XML import'!$A150)),0,VALUE(MID('CFR - XML import'!$A150,SEARCH(\">\",'CFR - XML import'!$A150,1)+1,SEARCH(\"/\",'CFR - XML import'!$A150,1)-SEARCH(\">\",'CFR - XML import'!$A150,1)-2)))","v":0},{"$f":"IF(ISERROR(FIND(BB$3,'CFR - XML import'!$A150)),0,VALUE(MID('CFR - XML import'!$A150,SEARCH(\">\",'CFR - XML import'!$A150,1)+1,SEARCH(\"/\",'CFR - XML import'!$A150,1)-SEARCH(\">\",'CFR - XML import'!$A150,1)-2)))","v":0},{"$f":"IF(ISERROR(FIND(BC$3,'CFR - XML import'!$A150)),0,VALUE(MID('CFR - XML import'!$A150,SEARCH(\">\",'CFR - XML import'!$A150,1)+1,SEARCH(\"/\",'CFR - XML import'!$A150,1)-SEARCH(\">\",'CFR - XML import'!$A150,1)-2)))","v":0},{"$f":"IF(ISERROR(FIND(BD$3,'CFR - XML import'!$A150)),0,VALUE(MID('CFR - XML import'!$A150,SEARCH(\">\",'CFR - XML import'!$A150,1)+1,SEARCH(\"/\",'CFR - XML import'!$A150,1)-SEARCH(\">\",'CFR - XML import'!$A150,1)-2)))","v":0},{"$f":"IF(ISERROR(FIND(BE$3,'CFR - XML import'!$A150)),0,VALUE(MID('CFR - XML import'!$A150,SEARCH(\">\",'CFR - XML import'!$A150,1)+1,SEARCH(\"/\",'CFR - XML import'!$A150,1)-SEARCH(\">\",'CFR - XML import'!$A150,1)-2)))","v":0},{"$f":"IF(ISERROR(FIND(BF$3,'CFR - XML import'!$A150)),0,VALUE(MID('CFR - XML import'!$A150,SEARCH(\">\",'CFR - XML import'!$A150,1)+1,SEARCH(\"/\",'CFR - XML import'!$A150,1)-SEARCH(\">\",'CFR - XML import'!$A150,1)-2)))","v":0},{"$f":"IF(ISERROR(FIND(BG$3,'CFR - XML import'!$A150)),0,VALUE(MID('CFR - XML import'!$A150,SEARCH(\">\",'CFR - XML import'!$A150,1)+1,SEARCH(\"/\",'CFR - XML import'!$A150,1)-SEARCH(\">\",'CFR - XML import'!$A150,1)-2)))","v":0},{"$f":"IF(ISERROR(FIND(BH$3,'CFR - XML import'!$A150)),0,VALUE(MID('CFR - XML import'!$A150,SEARCH(\">\",'CFR - XML import'!$A150,1)+1,SEARCH(\"/\",'CFR - XML import'!$A150,1)-SEARCH(\">\",'CFR - XML import'!$A150,1)-2)))","v":0},{"$f":"IF(ISERROR(FIND(BI$3,'CFR - XML import'!$A150)),0,VALUE(MID('CFR - XML import'!$A150,SEARCH(\">\",'CFR - XML import'!$A150,1)+1,SEARCH(\"/\",'CFR - XML import'!$A150,1)-SEARCH(\">\",'CFR - XML import'!$A150,1)-2)))","v":0},{"$f":"IF(ISERROR(FIND(BJ$3,'CFR - XML import'!$A150)),0,VALUE(MID('CFR - XML import'!$A150,SEARCH(\">\",'CFR - XML import'!$A150,1)+1,SEARCH(\"/\",'CFR - XML import'!$A150,1)-SEARCH(\">\",'CFR - XML import'!$A150,1)-2)))","v":0},{"$f":"IF(ISERROR(FIND(BK$3,'CFR - XML import'!$A150)),0,VALUE(MID('CFR - XML import'!$A150,SEARCH(\">\",'CFR - XML import'!$A150,1)+1,SEARCH(\"/\",'CFR - XML import'!$A150,1)-SEARCH(\">\",'CFR - XML import'!$A150,1)-2)))","v":0},{"$f":"IF(ISERROR(FIND(BL$3,'CFR - XML import'!$A150)),0,VALUE(MID('CFR - XML import'!$A150,SEARCH(\">\",'CFR - XML import'!$A150,1)+1,SEARCH(\"/\",'CFR - XML import'!$A150,1)-SEARCH(\">\",'CFR - XML import'!$A150,1)-2)))","v":0},{"$f":"IF(ISERROR(FIND(BM$3,'CFR - XML import'!$A150)),0,VALUE(MID('CFR - XML import'!$A150,SEARCH(\">\",'CFR - XML import'!$A150,1)+1,SEARCH(\"/\",'CFR - XML import'!$A150,1)-SEARCH(\">\",'CFR - XML import'!$A150,1)-2)))","v":0},{"$f":"IF(ISERROR(FIND(BN$3,'CFR - XML import'!$A150)),0,VALUE(MID('CFR - XML import'!$A150,SEARCH(\">\",'CFR - XML import'!$A150,1)+1,SEARCH(\"/\",'CFR - XML import'!$A150,1)-SEARCH(\">\",'CFR - XML import'!$A150,1)-2)))","v":0},{"$f":"IF(ISERROR(FIND(BO$3,'CFR - XML import'!$A150)),0,VALUE(MID('CFR - XML import'!$A150,SEARCH(\">\",'CFR - XML import'!$A150,1)+1,SEARCH(\"/\",'CFR - XML import'!$A150,1)-SEARCH(\">\",'CFR - XML import'!$A150,1)-2)))","v":0},{"$f":"IF(ISERROR(FIND(BP$3,'CFR - XML import'!$A150)),0,VALUE(MID('CFR - XML import'!$A150,SEARCH(\">\",'CFR - XML import'!$A150,1)+1,SEARCH(\"/\",'CFR - XML import'!$A150,1)-SEARCH(\">\",'CFR - XML import'!$A150,1)-2)))","v":0},{"$f":"IF(ISERROR(FIND(BQ$3,'CFR - XML import'!$A150)),0,VALUE(MID('CFR - XML import'!$A150,SEARCH(\">\",'CFR - XML import'!$A150,1)+1,SEARCH(\"/\",'CFR - XML import'!$A150,1)-SEARCH(\">\",'CFR - XML import'!$A150,1)-2)))","v":0},{"$f":"IF(ISERROR(FIND(BR$3,'CFR - XML import'!$A150)),0,VALUE(MID('CFR - XML import'!$A150,SEARCH(\">\",'CFR - XML import'!$A150,1)+1,SEARCH(\"/\",'CFR - XML import'!$A150,1)-SEARCH(\">\",'CFR - XML import'!$A150,1)-2)))","v":0},{"$f":"IF(ISERROR(FIND(BS$3,'CFR - XML import'!$A150)),0,VALUE(MID('CFR - XML import'!$A150,SEARCH(\">\",'CFR - XML import'!$A150,1)+1,SEARCH(\"/\",'CFR - XML import'!$A150,1)-SEARCH(\">\",'CFR - XML import'!$A150,1)-2)))","v":0},{"$f":"IF(ISERROR(FIND(BT$3,'CFR - XML import'!$A150)),0,VALUE(MID('CFR - XML import'!$A150,SEARCH(\">\",'CFR - XML import'!$A150,1)+1,SEARCH(\"/\",'CFR - XML import'!$A150,1)-SEARCH(\">\",'CFR - XML import'!$A150,1)-2)))","v":0},{"$f":"IF(ISERROR(FIND(BU$3,'CFR - XML import'!$A150)),0,VALUE(MID('CFR - XML import'!$A150,SEARCH(\">\",'CFR - XML import'!$A150,1)+1,SEARCH(\"/\",'CFR - XML import'!$A150,1)-SEARCH(\">\",'CFR - XML import'!$A150,1)-2)))","v":0},{"$f":"IF(ISERROR(FIND(BV$3,'CFR - XML import'!$A150)),0,VALUE(MID('CFR - XML import'!$A150,SEARCH(\">\",'CFR - XML import'!$A150,1)+1,SEARCH(\"/\",'CFR - XML import'!$A150,1)-SEARCH(\">\",'CFR - XML import'!$A150,1)-2)))","v":0},{"$f":"IF(ISERROR(FIND(BW$3,'CFR - XML import'!$A150)),0,VALUE(MID('CFR - XML import'!$A150,SEARCH(\">\",'CFR - XML import'!$A150,1)+1,SEARCH(\"/\",'CFR - XML import'!$A150,1)-SEARCH(\">\",'CFR - XML import'!$A150,1)-2)))","v":0},{"$f":"IF(ISERROR(FIND(BX$3,'CFR - XML import'!$A150)),0,VALUE(MID('CFR - XML import'!$A150,SEARCH(\">\",'CFR - XML import'!$A150,1)+1,SEARCH(\"/\",'CFR - XML import'!$A150,1)-SEARCH(\">\",'CFR - XML import'!$A150,1)-2)))","v":0},{"$f":"IF(ISERROR(FIND(BY$3,'CFR - XML import'!$A150)),0,VALUE(MID('CFR - XML import'!$A150,SEARCH(\">\",'CFR - XML import'!$A150,1)+1,SEARCH(\"/\",'CFR - XML import'!$A150,1)-SEARCH(\">\",'CFR - XML import'!$A150,1)-2)))","v":0},{"$f":"IF(ISERROR(FIND(BZ$3,'CFR - XML import'!$A150)),0,VALUE(MID('CFR - XML import'!$A150,SEARCH(\">\",'CFR - XML import'!$A150,1)+1,SEARCH(\"/\",'CFR - XML import'!$A150,1)-SEARCH(\">\",'CFR - XML import'!$A150,1)-2)))","v":0},null,null,null,null,null,null,{"$f":"IF(ISERROR(IF(MID('CFR - XML import'!$A150,LEN($CF$4)+1,LEN('CFR - XML import'!$A150)-(2*LEN($CF$4)+1))=\"RMMS\",1,IF(MID('CFR - XML import'!$A150,LEN(\"    <InputSystem>\")+1,LEN('CFR - XML import'!$A150)-(LEN(\"    <InputSystem>\")+LEN($CF$4)+1))=\"SIMS\",2,0))),0,IF(MID('CFR - XML import'!$A150,LEN($CF$4)+1,LEN('CFR - XML import'!$A150)-(2*LEN($CF$4)+1))=\"RMMS\",1,IF(MID('CFR - XML import'!$A150,LEN(\"    <InputSystem>\")+1,LEN('CFR - XML import'!$A150)-(LEN(\"    <InputSystem>\")+LEN($CF$4)+1))=\"SIMS\",2,0)))","v":0},{"$f":"IF(ISERROR(FIND(CH$3,'CFR - XML import'!$A150)),0,MID('CFR - XML import'!$A150,SEARCH(\">\",'CFR - XML import'!$A150,1)+1,SEARCH(\"/\",'CFR - XML import'!$A150,1)-SEARCH(\">\",'CFR - XML import'!$A150,1)-2))","v":0},{"$f":"IF(ISERROR(FIND(CI$3,'CFR - XML import'!$A150)),0,MID('CFR - XML import'!$A150,SEARCH(\">\",'CFR - XML import'!$A150,1)+1,SEARCH(\"/\",'CFR - XML import'!$A150,1)-SEARCH(\">\",'CFR - XML import'!$A150,1)-2))","v":0},{"$f":"IF(ISERROR(FIND(CJ$3,'CFR - XML import'!$A150)),0,MID('CFR - XML import'!$A150,SEARCH(\">\",'CFR - XML import'!$A150,1)+1,SEARCH(\"/\",'CFR - XML import'!$A150,1)-SEARCH(\">\",'CFR - XML import'!$A150,1)-2))","v":0},{"$f":"IF(ISERROR(FIND(CK$3,'CFR - XML import'!$A150)),0,MID('CFR - XML import'!$A150,SEARCH(\">\",'CFR - XML import'!$A150,1)+1,SEARCH(\"/\",'CFR - XML import'!$A150,1)-SEARCH(\">\",'CFR - XML import'!$A150,1)-2))","v":0},{"$f":"IF(ISERROR(FIND(CL$3,'CFR - XML import'!$A150)),0,MID('CFR - XML import'!$A150,SEARCH(\">\",'CFR - XML import'!$A150,1)+1,SEARCH(\"/\",'CFR - XML import'!$A150,1)-SEARCH(\">\",'CFR - XML import'!$A150,1)-2))","v":0}]
[{"$f":"IF(AND('CFR - XML import'!A151<>\"\",LEFT('CFR - XML import'!A151,1)<>\"<\",LEFT('CFR - XML import'!A151,3)<>\"  <\",LEFT('CFR - XML import'!A151,5)<>\"    <\",LEFT('CFR - XML import'!A151,7)<>\"      <\",LEFT('CFR - XML import'!A151,9)<>\"        <\",$B$1=\"SIMS\"),'CFR - XML import'!A151,IF(AND(LEFT('CFR - XML import'!A151,9)=\"<Details>\",$B$1=\"RM\"),'CFR - XML import'!A151,\"\"))","v":""},{"$f":"IF(ISERROR(FIND(B$3,'CFR - XML import'!$A151)),0,VALUE(MID('CFR - XML import'!$A151,SEARCH(\">\",'CFR - XML import'!$A151,1)+1,SEARCH(\"/\",'CFR - XML import'!$A151,1)-SEARCH(\">\",'CFR - XML import'!$A151,1)-2)))","v":0},null,{"$f":"IF(ISERROR(FIND(D$3,'CFR - XML import'!$A151)),0,MID('CFR - XML import'!$A151,SEARCH(\">\",'CFR - XML import'!$A151,1)+1,SEARCH(\"/\",'CFR - XML import'!$A151,1)-SEARCH(\">\",'CFR - XML import'!$A151,1)-2))","v":0},{"$f":"IF(ISERROR(FIND(E$3,'CFR - XML import'!$A151)),0,MID('CFR - XML import'!$A151,SEARCH(\">\",'CFR - XML import'!$A151,1)+1,SEARCH(\"/\",'CFR - XML import'!$A151,1)-SEARCH(\">\",'CFR - XML import'!$A151,1)-2))","v":0},{"$f":"IF($B$1=\"SIMS\",IF(ISERROR(FIND(F$3,'CFR - XML import'!$A151)),0,VALUE(MID('CFR - XML import'!$A151,15,10))),IF(ISERROR(FIND(F$3,'CFR - XML import'!$A151)),0,VALUE(MID('CFR - XML import'!$A151,11,10))))","v":"00:00:00"},{"$f":"IF(ISERROR(FIND(G$3,'CFR - XML import'!$A151)),0,VALUE(MID('CFR - XML import'!$A151,SEARCH(\">\",'CFR - XML import'!$A151,1)+1,SEARCH(\"/\",'CFR - XML import'!$A151,1)-SEARCH(\">\",'CFR - XML import'!$A151,1)-2)))","v":0},{"$f":"IF(ISERROR(FIND(H$3,'CFR - XML import'!$A151)),0,VALUE(MID('CFR - XML import'!$A151,SEARCH(\">\",'CFR - XML import'!$A151,1)+1,SEARCH(\"/\",'CFR - XML import'!$A151,1)-SEARCH(\">\",'CFR - XML import'!$A151,1)-2)))","v":0},{"$f":"IF(ISERROR(FIND(I$3,'CFR - XML import'!$A151)),0,VALUE(MID('CFR - XML import'!$A151,SEARCH(\">\",'CFR - XML import'!$A151,1)+1,SEARCH(\"/\",'CFR - XML import'!$A151,1)-SEARCH(\">\",'CFR - XML import'!$A151,1)-2)))","v":0},{"$f":"IF(ISERROR(FIND(J$3,'CFR - XML import'!$A151)),0,VALUE(MID('CFR - XML import'!$A151,SEARCH(\">\",'CFR - XML import'!$A151,1)+1,SEARCH(\"/\",'CFR - XML import'!$A151,1)-SEARCH(\">\",'CFR - XML import'!$A151,1)-2)))","v":0},{"$f":"IF(ISERROR(FIND(K$3,'CFR - XML import'!$A151)),0,VALUE(MID('CFR - XML import'!$A151,SEARCH(\">\",'CFR - XML import'!$A151,1)+1,SEARCH(\"/\",'CFR - XML import'!$A151,1)-SEARCH(\">\",'CFR - XML import'!$A151,1)-2)))","v":0},{"$f":"IF(ISERROR(FIND(L$3,'CFR - XML import'!$A151)),0,VALUE(MID('CFR - XML import'!$A151,SEARCH(\">\",'CFR - XML import'!$A151,1)+1,SEARCH(\"/\",'CFR - XML import'!$A151,1)-SEARCH(\">\",'CFR - XML import'!$A151,1)-2)))","v":0},{"$f":"IF(ISERROR(FIND(M$3,'CFR - XML import'!$A151)),0,VALUE(MID('CFR - XML import'!$A151,SEARCH(\">\",'CFR - XML import'!$A151,1)+1,SEARCH(\"/\",'CFR - XML import'!$A151,1)-SEARCH(\">\",'CFR - XML import'!$A151,1)-2)))","v":0},{"$f":"IF(ISERROR(FIND(N$3,'CFR - XML import'!$A151)),0,VALUE(MID('CFR - XML import'!$A151,SEARCH(\">\",'CFR - XML import'!$A151,1)+1,SEARCH(\"/\",'CFR - XML import'!$A151,1)-SEARCH(\">\",'CFR - XML import'!$A151,1)-2)))","v":0},{"$f":"IF(ISERROR(FIND(O$3,'CFR - XML import'!$A151)),0,VALUE(MID('CFR - XML import'!$A151,SEARCH(\">\",'CFR - XML import'!$A151,1)+1,SEARCH(\"/\",'CFR - XML import'!$A151,1)-SEARCH(\">\",'CFR - XML import'!$A151,1)-2)))","v":0},{"$f":"IF(ISERROR(FIND(P$3,'CFR - XML import'!$A151)),0,VALUE(MID('CFR - XML import'!$A151,SEARCH(\">\",'CFR - XML import'!$A151,1)+1,SEARCH(\"/\",'CFR - XML import'!$A151,1)-SEARCH(\">\",'CFR - XML import'!$A151,1)-2)))","v":0},{"$f":"IF(ISERROR(FIND(Q$3,'CFR - XML import'!$A151)),0,VALUE(MID('CFR - XML import'!$A151,SEARCH(\">\",'CFR - XML import'!$A151,1)+1,SEARCH(\"/\",'CFR - XML import'!$A151,1)-SEARCH(\">\",'CFR - XML import'!$A151,1)-2)))","v":0},{"$f":"IF(ISERROR(FIND(R$3,'CFR - XML import'!$A151)),0,VALUE(MID('CFR - XML import'!$A151,SEARCH(\">\",'CFR - XML import'!$A151,1)+1,SEARCH(\"/\",'CFR - XML import'!$A151,1)-SEARCH(\">\",'CFR - XML import'!$A151,1)-2)))","v":0},{"$f":"IF(ISERROR(FIND(S$3,'CFR - XML import'!$A151)),0,VALUE(MID('CFR - XML import'!$A151,SEARCH(\">\",'CFR - XML import'!$A151,1)+1,SEARCH(\"/\",'CFR - XML import'!$A151,1)-SEARCH(\">\",'CFR - XML import'!$A151,1)-2)))","v":0},{"$f":"IF(ISERROR(FIND(T$3,'CFR - XML import'!$A151)),0,VALUE(MID('CFR - XML import'!$A151,SEARCH(\">\",'CFR - XML import'!$A151,1)+1,SEARCH(\"/\",'CFR - XML import'!$A151,1)-SEARCH(\">\",'CFR - XML import'!$A151,1)-2)))","v":0},{"$f":"IF(ISERROR(FIND(U$3,'CFR - XML import'!$A151)),0,VALUE(MID('CFR - XML import'!$A151,SEARCH(\">\",'CFR - XML import'!$A151,1)+1,SEARCH(\"/\",'CFR - XML import'!$A151,1)-SEARCH(\">\",'CFR - XML import'!$A151,1)-2)))","v":0},{"$f":"IF(ISERROR(FIND(V$3,'CFR - XML import'!$A151)),0,VALUE(MID('CFR - XML import'!$A151,SEARCH(\">\",'CFR - XML import'!$A151,1)+1,SEARCH(\"/\",'CFR - XML import'!$A151,1)-SEARCH(\">\",'CFR - XML import'!$A151,1)-2)))","v":0},{"$f":"IF(ISERROR(FIND(W$3,'CFR - XML import'!$A151)),0,VALUE(MID('CFR - XML import'!$A151,SEARCH(\">\",'CFR - XML import'!$A151,1)+1,SEARCH(\"/\",'CFR - XML import'!$A151,1)-SEARCH(\">\",'CFR - XML import'!$A151,1)-2)))","v":0},null,{"$f":"IF(ISERROR(FIND(Y$3,'CFR - XML import'!$A151)),0,VALUE(MID('CFR - XML import'!$A151,SEARCH(\">\",'CFR - XML import'!$A151,1)+1,SEARCH(\"/\",'CFR - XML import'!$A151,1)-SEARCH(\">\",'CFR - XML import'!$A151,1)-2)))","v":0},{"$f":"IF(ISERROR(FIND(Z$3,'CFR - XML import'!$A151)),0,VALUE(MID('CFR - XML import'!$A151,SEARCH(\">\",'CFR - XML import'!$A151,1)+1,SEARCH(\"/\",'CFR - XML import'!$A151,1)-SEARCH(\">\",'CFR - XML import'!$A151,1)-2)))","v":0},{"$f":"IF(ISERROR(FIND(AA$3,'CFR - XML import'!$A151)),0,VALUE(MID('CFR - XML import'!$A151,SEARCH(\">\",'CFR - XML import'!$A151,1)+1,SEARCH(\"/\",'CFR - XML import'!$A151,1)-SEARCH(\">\",'CFR - XML import'!$A151,1)-2)))","v":0},{"$f":"IF(ISERROR(FIND(AB$3,'CFR - XML import'!$A151)),0,VALUE(MID('CFR - XML import'!$A151,SEARCH(\">\",'CFR - XML import'!$A151,1)+1,SEARCH(\"/\",'CFR - XML import'!$A151,1)-SEARCH(\">\",'CFR - XML import'!$A151,1)-2)))","v":0},{"$f":"IF(ISERROR(FIND(AC$3,'CFR - XML import'!$A151)),0,VALUE(MID('CFR - XML import'!$A151,SEARCH(\">\",'CFR - XML import'!$A151,1)+1,SEARCH(\"/\",'CFR - XML import'!$A151,1)-SEARCH(\">\",'CFR - XML import'!$A151,1)-2)))","v":0},{"$f":"IF(ISERROR(FIND(AD$3,'CFR - XML import'!$A151)),0,VALUE(MID('CFR - XML import'!$A151,SEARCH(\">\",'CFR - XML import'!$A151,1)+1,SEARCH(\"/\",'CFR - XML import'!$A151,1)-SEARCH(\">\",'CFR - XML import'!$A151,1)-2)))","v":0},{"$f":"IF(ISERROR(FIND(AE$3,'CFR - XML import'!$A151)),0,VALUE(MID('CFR - XML import'!$A151,SEARCH(\">\",'CFR - XML import'!$A151,1)+1,SEARCH(\"/\",'CFR - XML import'!$A151,1)-SEARCH(\">\",'CFR - XML import'!$A151,1)-2)))","v":0},{"$f":"IF(ISERROR(FIND(AF$3,'CFR - XML import'!$A151)),0,VALUE(MID('CFR - XML import'!$A151,SEARCH(\">\",'CFR - XML import'!$A151,1)+1,SEARCH(\"/\",'CFR - XML import'!$A151,1)-SEARCH(\">\",'CFR - XML import'!$A151,1)-2)))","v":0},{"$f":"IF(ISERROR(FIND(AG$3,'CFR - XML import'!$A151)),0,VALUE(MID('CFR - XML import'!$A151,SEARCH(\">\",'CFR - XML import'!$A151,1)+1,SEARCH(\"/\",'CFR - XML import'!$A151,1)-SEARCH(\">\",'CFR - XML import'!$A151,1)-2)))","v":0},{"$f":"IF(ISERROR(FIND(AH$3,'CFR - XML import'!$A151)),0,VALUE(MID('CFR - XML import'!$A151,SEARCH(\">\",'CFR - XML import'!$A151,1)+1,SEARCH(\"/\",'CFR - XML import'!$A151,1)-SEARCH(\">\",'CFR - XML import'!$A151,1)-2)))","v":0},{"$f":"IF(ISERROR(FIND(AI$3,'CFR - XML import'!$A151)),0,VALUE(MID('CFR - XML import'!$A151,SEARCH(\">\",'CFR - XML import'!$A151,1)+1,SEARCH(\"/\",'CFR - XML import'!$A151,1)-SEARCH(\">\",'CFR - XML import'!$A151,1)-2)))","v":0},{"$f":"IF(ISERROR(FIND(AJ$3,'CFR - XML import'!$A151)),0,VALUE(MID('CFR - XML import'!$A151,SEARCH(\">\",'CFR - XML import'!$A151,1)+1,SEARCH(\"/\",'CFR - XML import'!$A151,1)-SEARCH(\">\",'CFR - XML import'!$A151,1)-2)))","v":0},{"$f":"IF(ISERROR(FIND(AK$3,'CFR - XML import'!$A151)),0,VALUE(MID('CFR - XML import'!$A151,SEARCH(\">\",'CFR - XML import'!$A151,1)+1,SEARCH(\"/\",'CFR - XML import'!$A151,1)-SEARCH(\">\",'CFR - XML import'!$A151,1)-2)))","v":0},{"$f":"IF(ISERROR(FIND(AL$3,'CFR - XML import'!$A151)),0,VALUE(MID('CFR - XML import'!$A151,SEARCH(\">\",'CFR - XML import'!$A151,1)+1,SEARCH(\"/\",'CFR - XML import'!$A151,1)-SEARCH(\">\",'CFR - XML import'!$A151,1)-2)))","v":0},{"$f":"IF(ISERROR(FIND(AM$3,'CFR - XML import'!$A151)),0,VALUE(MID('CFR - XML import'!$A151,SEARCH(\">\",'CFR - XML import'!$A151,1)+1,SEARCH(\"/\",'CFR - XML import'!$A151,1)-SEARCH(\">\",'CFR - XML import'!$A151,1)-2)))","v":0},{"$f":"IF(ISERROR(FIND(AN$3,'CFR - XML import'!$A151)),0,VALUE(MID('CFR - XML import'!$A151,SEARCH(\">\",'CFR - XML import'!$A151,1)+1,SEARCH(\"/\",'CFR - XML import'!$A151,1)-SEARCH(\">\",'CFR - XML import'!$A151,1)-2)))","v":0},{"$f":"IF(ISERROR(FIND(AO$3,'CFR - XML import'!$A151)),0,VALUE(MID('CFR - XML import'!$A151,SEARCH(\">\",'CFR - XML import'!$A151,1)+1,SEARCH(\"/\",'CFR - XML import'!$A151,1)-SEARCH(\">\",'CFR - XML import'!$A151,1)-2)))","v":0},{"$f":"IF(ISERROR(FIND(AP$3,'CFR - XML import'!$A151)),0,VALUE(MID('CFR - XML import'!$A151,SEARCH(\">\",'CFR - XML import'!$A151,1)+1,SEARCH(\"/\",'CFR - XML import'!$A151,1)-SEARCH(\">\",'CFR - XML import'!$A151,1)-2)))","v":0},{"$f":"IF(ISERROR(FIND(AQ$3,'CFR - XML import'!$A151)),0,VALUE(MID('CFR - XML import'!$A151,SEARCH(\">\",'CFR - XML import'!$A151,1)+1,SEARCH(\"/\",'CFR - XML import'!$A151,1)-SEARCH(\">\",'CFR - XML import'!$A151,1)-2)))","v":0},{"$f":"IF(ISERROR(FIND(AR$3,'CFR - XML import'!$A151)),0,VALUE(MID('CFR - XML import'!$A151,SEARCH(\">\",'CFR - XML import'!$A151,1)+1,SEARCH(\"/\",'CFR - XML import'!$A151,1)-SEARCH(\">\",'CFR - XML import'!$A151,1)-2)))","v":0},{"$f":"IF(ISERROR(FIND(AS$3,'CFR - XML import'!$A151)),0,VALUE(MID('CFR - XML import'!$A151,SEARCH(\">\",'CFR - XML import'!$A151,1)+1,SEARCH(\"/\",'CFR - XML import'!$A151,1)-SEARCH(\">\",'CFR - XML import'!$A151,1)-2)))","v":0},{"$f":"IF(ISERROR(FIND(AT$3,'CFR - XML import'!$A151)),0,VALUE(MID('CFR - XML import'!$A151,SEARCH(\">\",'CFR - XML import'!$A151,1)+1,SEARCH(\"/\",'CFR - XML import'!$A151,1)-SEARCH(\">\",'CFR - XML import'!$A151,1)-2)))","v":0},{"$f":"IF(ISERROR(FIND(AU$3,'CFR - XML import'!$A151)),0,VALUE(MID('CFR - XML import'!$A151,SEARCH(\">\",'CFR - XML import'!$A151,1)+1,SEARCH(\"/\",'CFR - XML import'!$A151,1)-SEARCH(\">\",'CFR - XML import'!$A151,1)-2)))","v":0},{"$f":"IF(ISERROR(FIND(AV$3,'CFR - XML import'!$A151)),0,VALUE(MID('CFR - XML import'!$A151,SEARCH(\">\",'CFR - XML import'!$A151,1)+1,SEARCH(\"/\",'CFR - XML import'!$A151,1)-SEARCH(\">\",'CFR - XML import'!$A151,1)-2)))","v":0},{"$f":"IF(ISERROR(FIND(AW$3,'CFR - XML import'!$A151)),0,VALUE(MID('CFR - XML import'!$A151,SEARCH(\">\",'CFR - XML import'!$A151,1)+1,SEARCH(\"/\",'CFR - XML import'!$A151,1)-SEARCH(\">\",'CFR - XML import'!$A151,1)-2)))","v":0},{"$f":"IF(ISERROR(FIND(AX$3,'CFR - XML import'!$A151)),0,VALUE(MID('CFR - XML import'!$A151,SEARCH(\">\",'CFR - XML import'!$A151,1)+1,SEARCH(\"/\",'CFR - XML import'!$A151,1)-SEARCH(\">\",'CFR - XML import'!$A151,1)-2)))","v":0},{"$f":"IF(ISERROR(FIND(AY$3,'CFR - XML import'!$A151)),0,VALUE(MID('CFR - XML import'!$A151,SEARCH(\">\",'CFR - XML import'!$A151,1)+1,SEARCH(\"/\",'CFR - XML import'!$A151,1)-SEARCH(\">\",'CFR - XML import'!$A151,1)-2)))","v":0},{"$f":"IF(ISERROR(FIND(AZ$3,'CFR - XML import'!$A151)),0,VALUE(MID('CFR - XML import'!$A151,SEARCH(\">\",'CFR - XML import'!$A151,1)+1,SEARCH(\"/\",'CFR - XML import'!$A151,1)-SEARCH(\">\",'CFR - XML import'!$A151,1)-2)))","v":0},{"$f":"IF(ISERROR(FIND(BA$3,'CFR - XML import'!$A151)),0,VALUE(MID('CFR - XML import'!$A151,SEARCH(\">\",'CFR - XML import'!$A151,1)+1,SEARCH(\"/\",'CFR - XML import'!$A151,1)-SEARCH(\">\",'CFR - XML import'!$A151,1)-2)))","v":0},{"$f":"IF(ISERROR(FIND(BB$3,'CFR - XML import'!$A151)),0,VALUE(MID('CFR - XML import'!$A151,SEARCH(\">\",'CFR - XML import'!$A151,1)+1,SEARCH(\"/\",'CFR - XML import'!$A151,1)-SEARCH(\">\",'CFR - XML import'!$A151,1)-2)))","v":0},{"$f":"IF(ISERROR(FIND(BC$3,'CFR - XML import'!$A151)),0,VALUE(MID('CFR - XML import'!$A151,SEARCH(\">\",'CFR - XML import'!$A151,1)+1,SEARCH(\"/\",'CFR - XML import'!$A151,1)-SEARCH(\">\",'CFR - XML import'!$A151,1)-2)))","v":0},{"$f":"IF(ISERROR(FIND(BD$3,'CFR - XML import'!$A151)),0,VALUE(MID('CFR - XML import'!$A151,SEARCH(\">\",'CFR - XML import'!$A151,1)+1,SEARCH(\"/\",'CFR - XML import'!$A151,1)-SEARCH(\">\",'CFR - XML import'!$A151,1)-2)))","v":0},{"$f":"IF(ISERROR(FIND(BE$3,'CFR - XML import'!$A151)),0,VALUE(MID('CFR - XML import'!$A151,SEARCH(\">\",'CFR - XML import'!$A151,1)+1,SEARCH(\"/\",'CFR - XML import'!$A151,1)-SEARCH(\">\",'CFR - XML import'!$A151,1)-2)))","v":0},{"$f":"IF(ISERROR(FIND(BF$3,'CFR - XML import'!$A151)),0,VALUE(MID('CFR - XML import'!$A151,SEARCH(\">\",'CFR - XML import'!$A151,1)+1,SEARCH(\"/\",'CFR - XML import'!$A151,1)-SEARCH(\">\",'CFR - XML import'!$A151,1)-2)))","v":0},{"$f":"IF(ISERROR(FIND(BG$3,'CFR - XML import'!$A151)),0,VALUE(MID('CFR - XML import'!$A151,SEARCH(\">\",'CFR - XML import'!$A151,1)+1,SEARCH(\"/\",'CFR - XML import'!$A151,1)-SEARCH(\">\",'CFR - XML import'!$A151,1)-2)))","v":0},{"$f":"IF(ISERROR(FIND(BH$3,'CFR - XML import'!$A151)),0,VALUE(MID('CFR - XML import'!$A151,SEARCH(\">\",'CFR - XML import'!$A151,1)+1,SEARCH(\"/\",'CFR - XML import'!$A151,1)-SEARCH(\">\",'CFR - XML import'!$A151,1)-2)))","v":0},{"$f":"IF(ISERROR(FIND(BI$3,'CFR - XML import'!$A151)),0,VALUE(MID('CFR - XML import'!$A151,SEARCH(\">\",'CFR - XML import'!$A151,1)+1,SEARCH(\"/\",'CFR - XML import'!$A151,1)-SEARCH(\">\",'CFR - XML import'!$A151,1)-2)))","v":0},{"$f":"IF(ISERROR(FIND(BJ$3,'CFR - XML import'!$A151)),0,VALUE(MID('CFR - XML import'!$A151,SEARCH(\">\",'CFR - XML import'!$A151,1)+1,SEARCH(\"/\",'CFR - XML import'!$A151,1)-SEARCH(\">\",'CFR - XML import'!$A151,1)-2)))","v":0},{"$f":"IF(ISERROR(FIND(BK$3,'CFR - XML import'!$A151)),0,VALUE(MID('CFR - XML import'!$A151,SEARCH(\">\",'CFR - XML import'!$A151,1)+1,SEARCH(\"/\",'CFR - XML import'!$A151,1)-SEARCH(\">\",'CFR - XML import'!$A151,1)-2)))","v":0},{"$f":"IF(ISERROR(FIND(BL$3,'CFR - XML import'!$A151)),0,VALUE(MID('CFR - XML import'!$A151,SEARCH(\">\",'CFR - XML import'!$A151,1)+1,SEARCH(\"/\",'CFR - XML import'!$A151,1)-SEARCH(\">\",'CFR - XML import'!$A151,1)-2)))","v":0},{"$f":"IF(ISERROR(FIND(BM$3,'CFR - XML import'!$A151)),0,VALUE(MID('CFR - XML import'!$A151,SEARCH(\">\",'CFR - XML import'!$A151,1)+1,SEARCH(\"/\",'CFR - XML import'!$A151,1)-SEARCH(\">\",'CFR - XML import'!$A151,1)-2)))","v":0},{"$f":"IF(ISERROR(FIND(BN$3,'CFR - XML import'!$A151)),0,VALUE(MID('CFR - XML import'!$A151,SEARCH(\">\",'CFR - XML import'!$A151,1)+1,SEARCH(\"/\",'CFR - XML import'!$A151,1)-SEARCH(\">\",'CFR - XML import'!$A151,1)-2)))","v":0},{"$f":"IF(ISERROR(FIND(BO$3,'CFR - XML import'!$A151)),0,VALUE(MID('CFR - XML import'!$A151,SEARCH(\">\",'CFR - XML import'!$A151,1)+1,SEARCH(\"/\",'CFR - XML import'!$A151,1)-SEARCH(\">\",'CFR - XML import'!$A151,1)-2)))","v":0},{"$f":"IF(ISERROR(FIND(BP$3,'CFR - XML import'!$A151)),0,VALUE(MID('CFR - XML import'!$A151,SEARCH(\">\",'CFR - XML import'!$A151,1)+1,SEARCH(\"/\",'CFR - XML import'!$A151,1)-SEARCH(\">\",'CFR - XML import'!$A151,1)-2)))","v":0},{"$f":"IF(ISERROR(FIND(BQ$3,'CFR - XML import'!$A151)),0,VALUE(MID('CFR - XML import'!$A151,SEARCH(\">\",'CFR - XML import'!$A151,1)+1,SEARCH(\"/\",'CFR - XML import'!$A151,1)-SEARCH(\">\",'CFR - XML import'!$A151,1)-2)))","v":0},{"$f":"IF(ISERROR(FIND(BR$3,'CFR - XML import'!$A151)),0,VALUE(MID('CFR - XML import'!$A151,SEARCH(\">\",'CFR - XML import'!$A151,1)+1,SEARCH(\"/\",'CFR - XML import'!$A151,1)-SEARCH(\">\",'CFR - XML import'!$A151,1)-2)))","v":0},{"$f":"IF(ISERROR(FIND(BS$3,'CFR - XML import'!$A151)),0,VALUE(MID('CFR - XML import'!$A151,SEARCH(\">\",'CFR - XML import'!$A151,1)+1,SEARCH(\"/\",'CFR - XML import'!$A151,1)-SEARCH(\">\",'CFR - XML import'!$A151,1)-2)))","v":0},{"$f":"IF(ISERROR(FIND(BT$3,'CFR - XML import'!$A151)),0,VALUE(MID('CFR - XML import'!$A151,SEARCH(\">\",'CFR - XML import'!$A151,1)+1,SEARCH(\"/\",'CFR - XML import'!$A151,1)-SEARCH(\">\",'CFR - XML import'!$A151,1)-2)))","v":0},{"$f":"IF(ISERROR(FIND(BU$3,'CFR - XML import'!$A151)),0,VALUE(MID('CFR - XML import'!$A151,SEARCH(\">\",'CFR - XML import'!$A151,1)+1,SEARCH(\"/\",'CFR - XML import'!$A151,1)-SEARCH(\">\",'CFR - XML import'!$A151,1)-2)))","v":0},{"$f":"IF(ISERROR(FIND(BV$3,'CFR - XML import'!$A151)),0,VALUE(MID('CFR - XML import'!$A151,SEARCH(\">\",'CFR - XML import'!$A151,1)+1,SEARCH(\"/\",'CFR - XML import'!$A151,1)-SEARCH(\">\",'CFR - XML import'!$A151,1)-2)))","v":0},{"$f":"IF(ISERROR(FIND(BW$3,'CFR - XML import'!$A151)),0,VALUE(MID('CFR - XML import'!$A151,SEARCH(\">\",'CFR - XML import'!$A151,1)+1,SEARCH(\"/\",'CFR - XML import'!$A151,1)-SEARCH(\">\",'CFR - XML import'!$A151,1)-2)))","v":0},{"$f":"IF(ISERROR(FIND(BX$3,'CFR - XML import'!$A151)),0,VALUE(MID('CFR - XML import'!$A151,SEARCH(\">\",'CFR - XML import'!$A151,1)+1,SEARCH(\"/\",'CFR - XML import'!$A151,1)-SEARCH(\">\",'CFR - XML import'!$A151,1)-2)))","v":0},{"$f":"IF(ISERROR(FIND(BY$3,'CFR - XML import'!$A151)),0,VALUE(MID('CFR - XML import'!$A151,SEARCH(\">\",'CFR - XML import'!$A151,1)+1,SEARCH(\"/\",'CFR - XML import'!$A151,1)-SEARCH(\">\",'CFR - XML import'!$A151,1)-2)))","v":0},{"$f":"IF(ISERROR(FIND(BZ$3,'CFR - XML import'!$A151)),0,VALUE(MID('CFR - XML import'!$A151,SEARCH(\">\",'CFR - XML import'!$A151,1)+1,SEARCH(\"/\",'CFR - XML import'!$A151,1)-SEARCH(\">\",'CFR - XML import'!$A151,1)-2)))","v":0},null,null,null,null,null,null,{"$f":"IF(ISERROR(IF(MID('CFR - XML import'!$A151,LEN($CF$4)+1,LEN('CFR - XML import'!$A151)-(2*LEN($CF$4)+1))=\"RMMS\",1,IF(MID('CFR - XML import'!$A151,LEN(\"    <InputSystem>\")+1,LEN('CFR - XML import'!$A151)-(LEN(\"    <InputSystem>\")+LEN($CF$4)+1))=\"SIMS\",2,0))),0,IF(MID('CFR - XML import'!$A151,LEN($CF$4)+1,LEN('CFR - XML import'!$A151)-(2*LEN($CF$4)+1))=\"RMMS\",1,IF(MID('CFR - XML import'!$A151,LEN(\"    <InputSystem>\")+1,LEN('CFR - XML import'!$A151)-(LEN(\"    <InputSystem>\")+LEN($CF$4)+1))=\"SIMS\",2,0)))","v":0},{"$f":"IF(ISERROR(FIND(CH$3,'CFR - XML import'!$A151)),0,MID('CFR - XML import'!$A151,SEARCH(\">\",'CFR - XML import'!$A151,1)+1,SEARCH(\"/\",'CFR - XML import'!$A151,1)-SEARCH(\">\",'CFR - XML import'!$A151,1)-2))","v":0},{"$f":"IF(ISERROR(FIND(CI$3,'CFR - XML import'!$A151)),0,MID('CFR - XML import'!$A151,SEARCH(\">\",'CFR - XML import'!$A151,1)+1,SEARCH(\"/\",'CFR - XML import'!$A151,1)-SEARCH(\">\",'CFR - XML import'!$A151,1)-2))","v":0},{"$f":"IF(ISERROR(FIND(CJ$3,'CFR - XML import'!$A151)),0,MID('CFR - XML import'!$A151,SEARCH(\">\",'CFR - XML import'!$A151,1)+1,SEARCH(\"/\",'CFR - XML import'!$A151,1)-SEARCH(\">\",'CFR - XML import'!$A151,1)-2))","v":0},{"$f":"IF(ISERROR(FIND(CK$3,'CFR - XML import'!$A151)),0,MID('CFR - XML import'!$A151,SEARCH(\">\",'CFR - XML import'!$A151,1)+1,SEARCH(\"/\",'CFR - XML import'!$A151,1)-SEARCH(\">\",'CFR - XML import'!$A151,1)-2))","v":0},{"$f":"IF(ISERROR(FIND(CL$3,'CFR - XML import'!$A151)),0,MID('CFR - XML import'!$A151,SEARCH(\">\",'CFR - XML import'!$A151,1)+1,SEARCH(\"/\",'CFR - XML import'!$A151,1)-SEARCH(\">\",'CFR - XML import'!$A151,1)-2))","v":0}]
[{"$f":"IF(AND('CFR - XML import'!A152<>\"\",LEFT('CFR - XML import'!A152,1)<>\"<\",LEFT('CFR - XML import'!A152,3)<>\"  <\",LEFT('CFR - XML import'!A152,5)<>\"    <\",LEFT('CFR - XML import'!A152,7)<>\"      <\",LEFT('CFR - XML import'!A152,9)<>\"        <\",$B$1=\"SIMS\"),'CFR - XML import'!A152,IF(AND(LEFT('CFR - XML import'!A152,9)=\"<Details>\",$B$1=\"RM\"),'CFR - XML import'!A152,\"\"))","v":""},{"$f":"IF(ISERROR(FIND(B$3,'CFR - XML import'!$A152)),0,VALUE(MID('CFR - XML import'!$A152,SEARCH(\">\",'CFR - XML import'!$A152,1)+1,SEARCH(\"/\",'CFR - XML import'!$A152,1)-SEARCH(\">\",'CFR - XML import'!$A152,1)-2)))","v":0},null,{"$f":"IF(ISERROR(FIND(D$3,'CFR - XML import'!$A152)),0,MID('CFR - XML import'!$A152,SEARCH(\">\",'CFR - XML import'!$A152,1)+1,SEARCH(\"/\",'CFR - XML import'!$A152,1)-SEARCH(\">\",'CFR - XML import'!$A152,1)-2))","v":0},{"$f":"IF(ISERROR(FIND(E$3,'CFR - XML import'!$A152)),0,MID('CFR - XML import'!$A152,SEARCH(\">\",'CFR - XML import'!$A152,1)+1,SEARCH(\"/\",'CFR - XML import'!$A152,1)-SEARCH(\">\",'CFR - XML import'!$A152,1)-2))","v":0},{"$f":"IF($B$1=\"SIMS\",IF(ISERROR(FIND(F$3,'CFR - XML import'!$A152)),0,VALUE(MID('CFR - XML import'!$A152,15,10))),IF(ISERROR(FIND(F$3,'CFR - XML import'!$A152)),0,VALUE(MID('CFR - XML import'!$A152,11,10))))","v":"00:00:00"},{"$f":"IF(ISERROR(FIND(G$3,'CFR - XML import'!$A152)),0,VALUE(MID('CFR - XML import'!$A152,SEARCH(\">\",'CFR - XML import'!$A152,1)+1,SEARCH(\"/\",'CFR - XML import'!$A152,1)-SEARCH(\">\",'CFR - XML import'!$A152,1)-2)))","v":0},{"$f":"IF(ISERROR(FIND(H$3,'CFR - XML import'!$A152)),0,VALUE(MID('CFR - XML import'!$A152,SEARCH(\">\",'CFR - XML import'!$A152,1)+1,SEARCH(\"/\",'CFR - XML import'!$A152,1)-SEARCH(\">\",'CFR - XML import'!$A152,1)-2)))","v":0},{"$f":"IF(ISERROR(FIND(I$3,'CFR - XML import'!$A152)),0,VALUE(MID('CFR - XML import'!$A152,SEARCH(\">\",'CFR - XML import'!$A152,1)+1,SEARCH(\"/\",'CFR - XML import'!$A152,1)-SEARCH(\">\",'CFR - XML import'!$A152,1)-2)))","v":0},{"$f":"IF(ISERROR(FIND(J$3,'CFR - XML import'!$A152)),0,VALUE(MID('CFR - XML import'!$A152,SEARCH(\">\",'CFR - XML import'!$A152,1)+1,SEARCH(\"/\",'CFR - XML import'!$A152,1)-SEARCH(\">\",'CFR - XML import'!$A152,1)-2)))","v":0},{"$f":"IF(ISERROR(FIND(K$3,'CFR - XML import'!$A152)),0,VALUE(MID('CFR - XML import'!$A152,SEARCH(\">\",'CFR - XML import'!$A152,1)+1,SEARCH(\"/\",'CFR - XML import'!$A152,1)-SEARCH(\">\",'CFR - XML import'!$A152,1)-2)))","v":0},{"$f":"IF(ISERROR(FIND(L$3,'CFR - XML import'!$A152)),0,VALUE(MID('CFR - XML import'!$A152,SEARCH(\">\",'CFR - XML import'!$A152,1)+1,SEARCH(\"/\",'CFR - XML import'!$A152,1)-SEARCH(\">\",'CFR - XML import'!$A152,1)-2)))","v":0},{"$f":"IF(ISERROR(FIND(M$3,'CFR - XML import'!$A152)),0,VALUE(MID('CFR - XML import'!$A152,SEARCH(\">\",'CFR - XML import'!$A152,1)+1,SEARCH(\"/\",'CFR - XML import'!$A152,1)-SEARCH(\">\",'CFR - XML import'!$A152,1)-2)))","v":0},{"$f":"IF(ISERROR(FIND(N$3,'CFR - XML import'!$A152)),0,VALUE(MID('CFR - XML import'!$A152,SEARCH(\">\",'CFR - XML import'!$A152,1)+1,SEARCH(\"/\",'CFR - XML import'!$A152,1)-SEARCH(\">\",'CFR - XML import'!$A152,1)-2)))","v":0},{"$f":"IF(ISERROR(FIND(O$3,'CFR - XML import'!$A152)),0,VALUE(MID('CFR - XML import'!$A152,SEARCH(\">\",'CFR - XML import'!$A152,1)+1,SEARCH(\"/\",'CFR - XML import'!$A152,1)-SEARCH(\">\",'CFR - XML import'!$A152,1)-2)))","v":0},{"$f":"IF(ISERROR(FIND(P$3,'CFR - XML import'!$A152)),0,VALUE(MID('CFR - XML import'!$A152,SEARCH(\">\",'CFR - XML import'!$A152,1)+1,SEARCH(\"/\",'CFR - XML import'!$A152,1)-SEARCH(\">\",'CFR - XML import'!$A152,1)-2)))","v":0},{"$f":"IF(ISERROR(FIND(Q$3,'CFR - XML import'!$A152)),0,VALUE(MID('CFR - XML import'!$A152,SEARCH(\">\",'CFR - XML import'!$A152,1)+1,SEARCH(\"/\",'CFR - XML import'!$A152,1)-SEARCH(\">\",'CFR - XML import'!$A152,1)-2)))","v":0},{"$f":"IF(ISERROR(FIND(R$3,'CFR - XML import'!$A152)),0,VALUE(MID('CFR - XML import'!$A152,SEARCH(\">\",'CFR - XML import'!$A152,1)+1,SEARCH(\"/\",'CFR - XML import'!$A152,1)-SEARCH(\">\",'CFR - XML import'!$A152,1)-2)))","v":0},{"$f":"IF(ISERROR(FIND(S$3,'CFR - XML import'!$A152)),0,VALUE(MID('CFR - XML import'!$A152,SEARCH(\">\",'CFR - XML import'!$A152,1)+1,SEARCH(\"/\",'CFR - XML import'!$A152,1)-SEARCH(\">\",'CFR - XML import'!$A152,1)-2)))","v":0},{"$f":"IF(ISERROR(FIND(T$3,'CFR - XML import'!$A152)),0,VALUE(MID('CFR - XML import'!$A152,SEARCH(\">\",'CFR - XML import'!$A152,1)+1,SEARCH(\"/\",'CFR - XML import'!$A152,1)-SEARCH(\">\",'CFR - XML import'!$A152,1)-2)))","v":0},{"$f":"IF(ISERROR(FIND(U$3,'CFR - XML import'!$A152)),0,VALUE(MID('CFR - XML import'!$A152,SEARCH(\">\",'CFR - XML import'!$A152,1)+1,SEARCH(\"/\",'CFR - XML import'!$A152,1)-SEARCH(\">\",'CFR - XML import'!$A152,1)-2)))","v":0},{"$f":"IF(ISERROR(FIND(V$3,'CFR - XML import'!$A152)),0,VALUE(MID('CFR - XML import'!$A152,SEARCH(\">\",'CFR - XML import'!$A152,1)+1,SEARCH(\"/\",'CFR - XML import'!$A152,1)-SEARCH(\">\",'CFR - XML import'!$A152,1)-2)))","v":0},{"$f":"IF(ISERROR(FIND(W$3,'CFR - XML import'!$A152)),0,VALUE(MID('CFR - XML import'!$A152,SEARCH(\">\",'CFR - XML import'!$A152,1)+1,SEARCH(\"/\",'CFR - XML import'!$A152,1)-SEARCH(\">\",'CFR - XML import'!$A152,1)-2)))","v":0},null,{"$f":"IF(ISERROR(FIND(Y$3,'CFR - XML import'!$A152)),0,VALUE(MID('CFR - XML import'!$A152,SEARCH(\">\",'CFR - XML import'!$A152,1)+1,SEARCH(\"/\",'CFR - XML import'!$A152,1)-SEARCH(\">\",'CFR - XML import'!$A152,1)-2)))","v":0},{"$f":"IF(ISERROR(FIND(Z$3,'CFR - XML import'!$A152)),0,VALUE(MID('CFR - XML import'!$A152,SEARCH(\">\",'CFR - XML import'!$A152,1)+1,SEARCH(\"/\",'CFR - XML import'!$A152,1)-SEARCH(\">\",'CFR - XML import'!$A152,1)-2)))","v":0},{"$f":"IF(ISERROR(FIND(AA$3,'CFR - XML import'!$A152)),0,VALUE(MID('CFR - XML import'!$A152,SEARCH(\">\",'CFR - XML import'!$A152,1)+1,SEARCH(\"/\",'CFR - XML import'!$A152,1)-SEARCH(\">\",'CFR - XML import'!$A152,1)-2)))","v":0},{"$f":"IF(ISERROR(FIND(AB$3,'CFR - XML import'!$A152)),0,VALUE(MID('CFR - XML import'!$A152,SEARCH(\">\",'CFR - XML import'!$A152,1)+1,SEARCH(\"/\",'CFR - XML import'!$A152,1)-SEARCH(\">\",'CFR - XML import'!$A152,1)-2)))","v":0},{"$f":"IF(ISERROR(FIND(AC$3,'CFR - XML import'!$A152)),0,VALUE(MID('CFR - XML import'!$A152,SEARCH(\">\",'CFR - XML import'!$A152,1)+1,SEARCH(\"/\",'CFR - XML import'!$A152,1)-SEARCH(\">\",'CFR - XML import'!$A152,1)-2)))","v":0},{"$f":"IF(ISERROR(FIND(AD$3,'CFR - XML import'!$A152)),0,VALUE(MID('CFR - XML import'!$A152,SEARCH(\">\",'CFR - XML import'!$A152,1)+1,SEARCH(\"/\",'CFR - XML import'!$A152,1)-SEARCH(\">\",'CFR - XML import'!$A152,1)-2)))","v":0},{"$f":"IF(ISERROR(FIND(AE$3,'CFR - XML import'!$A152)),0,VALUE(MID('CFR - XML import'!$A152,SEARCH(\">\",'CFR - XML import'!$A152,1)+1,SEARCH(\"/\",'CFR - XML import'!$A152,1)-SEARCH(\">\",'CFR - XML import'!$A152,1)-2)))","v":0},{"$f":"IF(ISERROR(FIND(AF$3,'CFR - XML import'!$A152)),0,VALUE(MID('CFR - XML import'!$A152,SEARCH(\">\",'CFR - XML import'!$A152,1)+1,SEARCH(\"/\",'CFR - XML import'!$A152,1)-SEARCH(\">\",'CFR - XML import'!$A152,1)-2)))","v":0},{"$f":"IF(ISERROR(FIND(AG$3,'CFR - XML import'!$A152)),0,VALUE(MID('CFR - XML import'!$A152,SEARCH(\">\",'CFR - XML import'!$A152,1)+1,SEARCH(\"/\",'CFR - XML import'!$A152,1)-SEARCH(\">\",'CFR - XML import'!$A152,1)-2)))","v":0},{"$f":"IF(ISERROR(FIND(AH$3,'CFR - XML import'!$A152)),0,VALUE(MID('CFR - XML import'!$A152,SEARCH(\">\",'CFR - XML import'!$A152,1)+1,SEARCH(\"/\",'CFR - XML import'!$A152,1)-SEARCH(\">\",'CFR - XML import'!$A152,1)-2)))","v":0},{"$f":"IF(ISERROR(FIND(AI$3,'CFR - XML import'!$A152)),0,VALUE(MID('CFR - XML import'!$A152,SEARCH(\">\",'CFR - XML import'!$A152,1)+1,SEARCH(\"/\",'CFR - XML import'!$A152,1)-SEARCH(\">\",'CFR - XML import'!$A152,1)-2)))","v":0},{"$f":"IF(ISERROR(FIND(AJ$3,'CFR - XML import'!$A152)),0,VALUE(MID('CFR - XML import'!$A152,SEARCH(\">\",'CFR - XML import'!$A152,1)+1,SEARCH(\"/\",'CFR - XML import'!$A152,1)-SEARCH(\">\",'CFR - XML import'!$A152,1)-2)))","v":0},{"$f":"IF(ISERROR(FIND(AK$3,'CFR - XML import'!$A152)),0,VALUE(MID('CFR - XML import'!$A152,SEARCH(\">\",'CFR - XML import'!$A152,1)+1,SEARCH(\"/\",'CFR - XML import'!$A152,1)-SEARCH(\">\",'CFR - XML import'!$A152,1)-2)))","v":0},{"$f":"IF(ISERROR(FIND(AL$3,'CFR - XML import'!$A152)),0,VALUE(MID('CFR - XML import'!$A152,SEARCH(\">\",'CFR - XML import'!$A152,1)+1,SEARCH(\"/\",'CFR - XML import'!$A152,1)-SEARCH(\">\",'CFR - XML import'!$A152,1)-2)))","v":0},{"$f":"IF(ISERROR(FIND(AM$3,'CFR - XML import'!$A152)),0,VALUE(MID('CFR - XML import'!$A152,SEARCH(\">\",'CFR - XML import'!$A152,1)+1,SEARCH(\"/\",'CFR - XML import'!$A152,1)-SEARCH(\">\",'CFR - XML import'!$A152,1)-2)))","v":0},{"$f":"IF(ISERROR(FIND(AN$3,'CFR - XML import'!$A152)),0,VALUE(MID('CFR - XML import'!$A152,SEARCH(\">\",'CFR - XML import'!$A152,1)+1,SEARCH(\"/\",'CFR - XML import'!$A152,1)-SEARCH(\">\",'CFR - XML import'!$A152,1)-2)))","v":0},{"$f":"IF(ISERROR(FIND(AO$3,'CFR - XML import'!$A152)),0,VALUE(MID('CFR - XML import'!$A152,SEARCH(\">\",'CFR - XML import'!$A152,1)+1,SEARCH(\"/\",'CFR - XML import'!$A152,1)-SEARCH(\">\",'CFR - XML import'!$A152,1)-2)))","v":0},{"$f":"IF(ISERROR(FIND(AP$3,'CFR - XML import'!$A152)),0,VALUE(MID('CFR - XML import'!$A152,SEARCH(\">\",'CFR - XML import'!$A152,1)+1,SEARCH(\"/\",'CFR - XML import'!$A152,1)-SEARCH(\">\",'CFR - XML import'!$A152,1)-2)))","v":0},{"$f":"IF(ISERROR(FIND(AQ$3,'CFR - XML import'!$A152)),0,VALUE(MID('CFR - XML import'!$A152,SEARCH(\">\",'CFR - XML import'!$A152,1)+1,SEARCH(\"/\",'CFR - XML import'!$A152,1)-SEARCH(\">\",'CFR - XML import'!$A152,1)-2)))","v":0},{"$f":"IF(ISERROR(FIND(AR$3,'CFR - XML import'!$A152)),0,VALUE(MID('CFR - XML import'!$A152,SEARCH(\">\",'CFR - XML import'!$A152,1)+1,SEARCH(\"/\",'CFR - XML import'!$A152,1)-SEARCH(\">\",'CFR - XML import'!$A152,1)-2)))","v":0},{"$f":"IF(ISERROR(FIND(AS$3,'CFR - XML import'!$A152)),0,VALUE(MID('CFR - XML import'!$A152,SEARCH(\">\",'CFR - XML import'!$A152,1)+1,SEARCH(\"/\",'CFR - XML import'!$A152,1)-SEARCH(\">\",'CFR - XML import'!$A152,1)-2)))","v":0},{"$f":"IF(ISERROR(FIND(AT$3,'CFR - XML import'!$A152)),0,VALUE(MID('CFR - XML import'!$A152,SEARCH(\">\",'CFR - XML import'!$A152,1)+1,SEARCH(\"/\",'CFR - XML import'!$A152,1)-SEARCH(\">\",'CFR - XML import'!$A152,1)-2)))","v":0},{"$f":"IF(ISERROR(FIND(AU$3,'CFR - XML import'!$A152)),0,VALUE(MID('CFR - XML import'!$A152,SEARCH(\">\",'CFR - XML import'!$A152,1)+1,SEARCH(\"/\",'CFR - XML import'!$A152,1)-SEARCH(\">\",'CFR - XML import'!$A152,1)-2)))","v":0},{"$f":"IF(ISERROR(FIND(AV$3,'CFR - XML import'!$A152)),0,VALUE(MID('CFR - XML import'!$A152,SEARCH(\">\",'CFR - XML import'!$A152,1)+1,SEARCH(\"/\",'CFR - XML import'!$A152,1)-SEARCH(\">\",'CFR - XML import'!$A152,1)-2)))","v":0},{"$f":"IF(ISERROR(FIND(AW$3,'CFR - XML import'!$A152)),0,VALUE(MID('CFR - XML import'!$A152,SEARCH(\">\",'CFR - XML import'!$A152,1)+1,SEARCH(\"/\",'CFR - XML import'!$A152,1)-SEARCH(\">\",'CFR - XML import'!$A152,1)-2)))","v":0},{"$f":"IF(ISERROR(FIND(AX$3,'CFR - XML import'!$A152)),0,VALUE(MID('CFR - XML import'!$A152,SEARCH(\">\",'CFR - XML import'!$A152,1)+1,SEARCH(\"/\",'CFR - XML import'!$A152,1)-SEARCH(\">\",'CFR - XML import'!$A152,1)-2)))","v":0},{"$f":"IF(ISERROR(FIND(AY$3,'CFR - XML import'!$A152)),0,VALUE(MID('CFR - XML import'!$A152,SEARCH(\">\",'CFR - XML import'!$A152,1)+1,SEARCH(\"/\",'CFR - XML import'!$A152,1)-SEARCH(\">\",'CFR - XML import'!$A152,1)-2)))","v":0},{"$f":"IF(ISERROR(FIND(AZ$3,'CFR - XML import'!$A152)),0,VALUE(MID('CFR - XML import'!$A152,SEARCH(\">\",'CFR - XML import'!$A152,1)+1,SEARCH(\"/\",'CFR - XML import'!$A152,1)-SEARCH(\">\",'CFR - XML import'!$A152,1)-2)))","v":0},{"$f":"IF(ISERROR(FIND(BA$3,'CFR - XML import'!$A152)),0,VALUE(MID('CFR - XML import'!$A152,SEARCH(\">\",'CFR - XML import'!$A152,1)+1,SEARCH(\"/\",'CFR - XML import'!$A152,1)-SEARCH(\">\",'CFR - XML import'!$A152,1)-2)))","v":0},{"$f":"IF(ISERROR(FIND(BB$3,'CFR - XML import'!$A152)),0,VALUE(MID('CFR - XML import'!$A152,SEARCH(\">\",'CFR - XML import'!$A152,1)+1,SEARCH(\"/\",'CFR - XML import'!$A152,1)-SEARCH(\">\",'CFR - XML import'!$A152,1)-2)))","v":0},{"$f":"IF(ISERROR(FIND(BC$3,'CFR - XML import'!$A152)),0,VALUE(MID('CFR - XML import'!$A152,SEARCH(\">\",'CFR - XML import'!$A152,1)+1,SEARCH(\"/\",'CFR - XML import'!$A152,1)-SEARCH(\">\",'CFR - XML import'!$A152,1)-2)))","v":0},{"$f":"IF(ISERROR(FIND(BD$3,'CFR - XML import'!$A152)),0,VALUE(MID('CFR - XML import'!$A152,SEARCH(\">\",'CFR - XML import'!$A152,1)+1,SEARCH(\"/\",'CFR - XML import'!$A152,1)-SEARCH(\">\",'CFR - XML import'!$A152,1)-2)))","v":0},{"$f":"IF(ISERROR(FIND(BE$3,'CFR - XML import'!$A152)),0,VALUE(MID('CFR - XML import'!$A152,SEARCH(\">\",'CFR - XML import'!$A152,1)+1,SEARCH(\"/\",'CFR - XML import'!$A152,1)-SEARCH(\">\",'CFR - XML import'!$A152,1)-2)))","v":0},{"$f":"IF(ISERROR(FIND(BF$3,'CFR - XML import'!$A152)),0,VALUE(MID('CFR - XML import'!$A152,SEARCH(\">\",'CFR - XML import'!$A152,1)+1,SEARCH(\"/\",'CFR - XML import'!$A152,1)-SEARCH(\">\",'CFR - XML import'!$A152,1)-2)))","v":0},{"$f":"IF(ISERROR(FIND(BG$3,'CFR - XML import'!$A152)),0,VALUE(MID('CFR - XML import'!$A152,SEARCH(\">\",'CFR - XML import'!$A152,1)+1,SEARCH(\"/\",'CFR - XML import'!$A152,1)-SEARCH(\">\",'CFR - XML import'!$A152,1)-2)))","v":0},{"$f":"IF(ISERROR(FIND(BH$3,'CFR - XML import'!$A152)),0,VALUE(MID('CFR - XML import'!$A152,SEARCH(\">\",'CFR - XML import'!$A152,1)+1,SEARCH(\"/\",'CFR - XML import'!$A152,1)-SEARCH(\">\",'CFR - XML import'!$A152,1)-2)))","v":0},{"$f":"IF(ISERROR(FIND(BI$3,'CFR - XML import'!$A152)),0,VALUE(MID('CFR - XML import'!$A152,SEARCH(\">\",'CFR - XML import'!$A152,1)+1,SEARCH(\"/\",'CFR - XML import'!$A152,1)-SEARCH(\">\",'CFR - XML import'!$A152,1)-2)))","v":0},{"$f":"IF(ISERROR(FIND(BJ$3,'CFR - XML import'!$A152)),0,VALUE(MID('CFR - XML import'!$A152,SEARCH(\">\",'CFR - XML import'!$A152,1)+1,SEARCH(\"/\",'CFR - XML import'!$A152,1)-SEARCH(\">\",'CFR - XML import'!$A152,1)-2)))","v":0},{"$f":"IF(ISERROR(FIND(BK$3,'CFR - XML import'!$A152)),0,VALUE(MID('CFR - XML import'!$A152,SEARCH(\">\",'CFR - XML import'!$A152,1)+1,SEARCH(\"/\",'CFR - XML import'!$A152,1)-SEARCH(\">\",'CFR - XML import'!$A152,1)-2)))","v":0},{"$f":"IF(ISERROR(FIND(BL$3,'CFR - XML import'!$A152)),0,VALUE(MID('CFR - XML import'!$A152,SEARCH(\">\",'CFR - XML import'!$A152,1)+1,SEARCH(\"/\",'CFR - XML import'!$A152,1)-SEARCH(\">\",'CFR - XML import'!$A152,1)-2)))","v":0},{"$f":"IF(ISERROR(FIND(BM$3,'CFR - XML import'!$A152)),0,VALUE(MID('CFR - XML import'!$A152,SEARCH(\">\",'CFR - XML import'!$A152,1)+1,SEARCH(\"/\",'CFR - XML import'!$A152,1)-SEARCH(\">\",'CFR - XML import'!$A152,1)-2)))","v":0},{"$f":"IF(ISERROR(FIND(BN$3,'CFR - XML import'!$A152)),0,VALUE(MID('CFR - XML import'!$A152,SEARCH(\">\",'CFR - XML import'!$A152,1)+1,SEARCH(\"/\",'CFR - XML import'!$A152,1)-SEARCH(\">\",'CFR - XML import'!$A152,1)-2)))","v":0},{"$f":"IF(ISERROR(FIND(BO$3,'CFR - XML import'!$A152)),0,VALUE(MID('CFR - XML import'!$A152,SEARCH(\">\",'CFR - XML import'!$A152,1)+1,SEARCH(\"/\",'CFR - XML import'!$A152,1)-SEARCH(\">\",'CFR - XML import'!$A152,1)-2)))","v":0},{"$f":"IF(ISERROR(FIND(BP$3,'CFR - XML import'!$A152)),0,VALUE(MID('CFR - XML import'!$A152,SEARCH(\">\",'CFR - XML import'!$A152,1)+1,SEARCH(\"/\",'CFR - XML import'!$A152,1)-SEARCH(\">\",'CFR - XML import'!$A152,1)-2)))","v":0},{"$f":"IF(ISERROR(FIND(BQ$3,'CFR - XML import'!$A152)),0,VALUE(MID('CFR - XML import'!$A152,SEARCH(\">\",'CFR - XML import'!$A152,1)+1,SEARCH(\"/\",'CFR - XML import'!$A152,1)-SEARCH(\">\",'CFR - XML import'!$A152,1)-2)))","v":0},{"$f":"IF(ISERROR(FIND(BR$3,'CFR - XML import'!$A152)),0,VALUE(MID('CFR - XML import'!$A152,SEARCH(\">\",'CFR - XML import'!$A152,1)+1,SEARCH(\"/\",'CFR - XML import'!$A152,1)-SEARCH(\">\",'CFR - XML import'!$A152,1)-2)))","v":0},{"$f":"IF(ISERROR(FIND(BS$3,'CFR - XML import'!$A152)),0,VALUE(MID('CFR - XML import'!$A152,SEARCH(\">\",'CFR - XML import'!$A152,1)+1,SEARCH(\"/\",'CFR - XML import'!$A152,1)-SEARCH(\">\",'CFR - XML import'!$A152,1)-2)))","v":0},{"$f":"IF(ISERROR(FIND(BT$3,'CFR - XML import'!$A152)),0,VALUE(MID('CFR - XML import'!$A152,SEARCH(\">\",'CFR - XML import'!$A152,1)+1,SEARCH(\"/\",'CFR - XML import'!$A152,1)-SEARCH(\">\",'CFR - XML import'!$A152,1)-2)))","v":0},{"$f":"IF(ISERROR(FIND(BU$3,'CFR - XML import'!$A152)),0,VALUE(MID('CFR - XML import'!$A152,SEARCH(\">\",'CFR - XML import'!$A152,1)+1,SEARCH(\"/\",'CFR - XML import'!$A152,1)-SEARCH(\">\",'CFR - XML import'!$A152,1)-2)))","v":0},{"$f":"IF(ISERROR(FIND(BV$3,'CFR - XML import'!$A152)),0,VALUE(MID('CFR - XML import'!$A152,SEARCH(\">\",'CFR - XML import'!$A152,1)+1,SEARCH(\"/\",'CFR - XML import'!$A152,1)-SEARCH(\">\",'CFR - XML import'!$A152,1)-2)))","v":0},{"$f":"IF(ISERROR(FIND(BW$3,'CFR - XML import'!$A152)),0,VALUE(MID('CFR - XML import'!$A152,SEARCH(\">\",'CFR - XML import'!$A152,1)+1,SEARCH(\"/\",'CFR - XML import'!$A152,1)-SEARCH(\">\",'CFR - XML import'!$A152,1)-2)))","v":0},{"$f":"IF(ISERROR(FIND(BX$3,'CFR - XML import'!$A152)),0,VALUE(MID('CFR - XML import'!$A152,SEARCH(\">\",'CFR - XML import'!$A152,1)+1,SEARCH(\"/\",'CFR - XML import'!$A152,1)-SEARCH(\">\",'CFR - XML import'!$A152,1)-2)))","v":0},{"$f":"IF(ISERROR(FIND(BY$3,'CFR - XML import'!$A152)),0,VALUE(MID('CFR - XML import'!$A152,SEARCH(\">\",'CFR - XML import'!$A152,1)+1,SEARCH(\"/\",'CFR - XML import'!$A152,1)-SEARCH(\">\",'CFR - XML import'!$A152,1)-2)))","v":0},{"$f":"IF(ISERROR(FIND(BZ$3,'CFR - XML import'!$A152)),0,VALUE(MID('CFR - XML import'!$A152,SEARCH(\">\",'CFR - XML import'!$A152,1)+1,SEARCH(\"/\",'CFR - XML import'!$A152,1)-SEARCH(\">\",'CFR - XML import'!$A152,1)-2)))","v":0},null,null,null,null,null,null,{"$f":"IF(ISERROR(IF(MID('CFR - XML import'!$A152,LEN($CF$4)+1,LEN('CFR - XML import'!$A152)-(2*LEN($CF$4)+1))=\"RMMS\",1,IF(MID('CFR - XML import'!$A152,LEN(\"    <InputSystem>\")+1,LEN('CFR - XML import'!$A152)-(LEN(\"    <InputSystem>\")+LEN($CF$4)+1))=\"SIMS\",2,0))),0,IF(MID('CFR - XML import'!$A152,LEN($CF$4)+1,LEN('CFR - XML import'!$A152)-(2*LEN($CF$4)+1))=\"RMMS\",1,IF(MID('CFR - XML import'!$A152,LEN(\"    <InputSystem>\")+1,LEN('CFR - XML import'!$A152)-(LEN(\"    <InputSystem>\")+LEN($CF$4)+1))=\"SIMS\",2,0)))","v":0},{"$f":"IF(ISERROR(FIND(CH$3,'CFR - XML import'!$A152)),0,MID('CFR - XML import'!$A152,SEARCH(\">\",'CFR - XML import'!$A152,1)+1,SEARCH(\"/\",'CFR - XML import'!$A152,1)-SEARCH(\">\",'CFR - XML import'!$A152,1)-2))","v":0},{"$f":"IF(ISERROR(FIND(CI$3,'CFR - XML import'!$A152)),0,MID('CFR - XML import'!$A152,SEARCH(\">\",'CFR - XML import'!$A152,1)+1,SEARCH(\"/\",'CFR - XML import'!$A152,1)-SEARCH(\">\",'CFR - XML import'!$A152,1)-2))","v":0},{"$f":"IF(ISERROR(FIND(CJ$3,'CFR - XML import'!$A152)),0,MID('CFR - XML import'!$A152,SEARCH(\">\",'CFR - XML import'!$A152,1)+1,SEARCH(\"/\",'CFR - XML import'!$A152,1)-SEARCH(\">\",'CFR - XML import'!$A152,1)-2))","v":0},{"$f":"IF(ISERROR(FIND(CK$3,'CFR - XML import'!$A152)),0,MID('CFR - XML import'!$A152,SEARCH(\">\",'CFR - XML import'!$A152,1)+1,SEARCH(\"/\",'CFR - XML import'!$A152,1)-SEARCH(\">\",'CFR - XML import'!$A152,1)-2))","v":0},{"$f":"IF(ISERROR(FIND(CL$3,'CFR - XML import'!$A152)),0,MID('CFR - XML import'!$A152,SEARCH(\">\",'CFR - XML import'!$A152,1)+1,SEARCH(\"/\",'CFR - XML import'!$A152,1)-SEARCH(\">\",'CFR - XML import'!$A152,1)-2))","v":0}]
[{"$f":"IF(AND('CFR - XML import'!A153<>\"\",LEFT('CFR - XML import'!A153,1)<>\"<\",LEFT('CFR - XML import'!A153,3)<>\"  <\",LEFT('CFR - XML import'!A153,5)<>\"    <\",LEFT('CFR - XML import'!A153,7)<>\"      <\",LEFT('CFR - XML import'!A153,9)<>\"        <\",$B$1=\"SIMS\"),'CFR - XML import'!A153,IF(AND(LEFT('CFR - XML import'!A153,9)=\"<Details>\",$B$1=\"RM\"),'CFR - XML import'!A153,\"\"))","v":""},{"$f":"IF(ISERROR(FIND(B$3,'CFR - XML import'!$A153)),0,VALUE(MID('CFR - XML import'!$A153,SEARCH(\">\",'CFR - XML import'!$A153,1)+1,SEARCH(\"/\",'CFR - XML import'!$A153,1)-SEARCH(\">\",'CFR - XML import'!$A153,1)-2)))","v":0},null,{"$f":"IF(ISERROR(FIND(D$3,'CFR - XML import'!$A153)),0,MID('CFR - XML import'!$A153,SEARCH(\">\",'CFR - XML import'!$A153,1)+1,SEARCH(\"/\",'CFR - XML import'!$A153,1)-SEARCH(\">\",'CFR - XML import'!$A153,1)-2))","v":0},{"$f":"IF(ISERROR(FIND(E$3,'CFR - XML import'!$A153)),0,MID('CFR - XML import'!$A153,SEARCH(\">\",'CFR - XML import'!$A153,1)+1,SEARCH(\"/\",'CFR - XML import'!$A153,1)-SEARCH(\">\",'CFR - XML import'!$A153,1)-2))","v":0},{"$f":"IF($B$1=\"SIMS\",IF(ISERROR(FIND(F$3,'CFR - XML import'!$A153)),0,VALUE(MID('CFR - XML import'!$A153,15,10))),IF(ISERROR(FIND(F$3,'CFR - XML import'!$A153)),0,VALUE(MID('CFR - XML import'!$A153,11,10))))","v":"00:00:00"},{"$f":"IF(ISERROR(FIND(G$3,'CFR - XML import'!$A153)),0,VALUE(MID('CFR - XML import'!$A153,SEARCH(\">\",'CFR - XML import'!$A153,1)+1,SEARCH(\"/\",'CFR - XML import'!$A153,1)-SEARCH(\">\",'CFR - XML import'!$A153,1)-2)))","v":0},{"$f":"IF(ISERROR(FIND(H$3,'CFR - XML import'!$A153)),0,VALUE(MID('CFR - XML import'!$A153,SEARCH(\">\",'CFR - XML import'!$A153,1)+1,SEARCH(\"/\",'CFR - XML import'!$A153,1)-SEARCH(\">\",'CFR - XML import'!$A153,1)-2)))","v":0},{"$f":"IF(ISERROR(FIND(I$3,'CFR - XML import'!$A153)),0,VALUE(MID('CFR - XML import'!$A153,SEARCH(\">\",'CFR - XML import'!$A153,1)+1,SEARCH(\"/\",'CFR - XML import'!$A153,1)-SEARCH(\">\",'CFR - XML import'!$A153,1)-2)))","v":0},{"$f":"IF(ISERROR(FIND(J$3,'CFR - XML import'!$A153)),0,VALUE(MID('CFR - XML import'!$A153,SEARCH(\">\",'CFR - XML import'!$A153,1)+1,SEARCH(\"/\",'CFR - XML import'!$A153,1)-SEARCH(\">\",'CFR - XML import'!$A153,1)-2)))","v":0},{"$f":"IF(ISERROR(FIND(K$3,'CFR - XML import'!$A153)),0,VALUE(MID('CFR - XML import'!$A153,SEARCH(\">\",'CFR - XML import'!$A153,1)+1,SEARCH(\"/\",'CFR - XML import'!$A153,1)-SEARCH(\">\",'CFR - XML import'!$A153,1)-2)))","v":0},{"$f":"IF(ISERROR(FIND(L$3,'CFR - XML import'!$A153)),0,VALUE(MID('CFR - XML import'!$A153,SEARCH(\">\",'CFR - XML import'!$A153,1)+1,SEARCH(\"/\",'CFR - XML import'!$A153,1)-SEARCH(\">\",'CFR - XML import'!$A153,1)-2)))","v":0},{"$f":"IF(ISERROR(FIND(M$3,'CFR - XML import'!$A153)),0,VALUE(MID('CFR - XML import'!$A153,SEARCH(\">\",'CFR - XML import'!$A153,1)+1,SEARCH(\"/\",'CFR - XML import'!$A153,1)-SEARCH(\">\",'CFR - XML import'!$A153,1)-2)))","v":0},{"$f":"IF(ISERROR(FIND(N$3,'CFR - XML import'!$A153)),0,VALUE(MID('CFR - XML import'!$A153,SEARCH(\">\",'CFR - XML import'!$A153,1)+1,SEARCH(\"/\",'CFR - XML import'!$A153,1)-SEARCH(\">\",'CFR - XML import'!$A153,1)-2)))","v":0},{"$f":"IF(ISERROR(FIND(O$3,'CFR - XML import'!$A153)),0,VALUE(MID('CFR - XML import'!$A153,SEARCH(\">\",'CFR - XML import'!$A153,1)+1,SEARCH(\"/\",'CFR - XML import'!$A153,1)-SEARCH(\">\",'CFR - XML import'!$A153,1)-2)))","v":0},{"$f":"IF(ISERROR(FIND(P$3,'CFR - XML import'!$A153)),0,VALUE(MID('CFR - XML import'!$A153,SEARCH(\">\",'CFR - XML import'!$A153,1)+1,SEARCH(\"/\",'CFR - XML import'!$A153,1)-SEARCH(\">\",'CFR - XML import'!$A153,1)-2)))","v":0},{"$f":"IF(ISERROR(FIND(Q$3,'CFR - XML import'!$A153)),0,VALUE(MID('CFR - XML import'!$A153,SEARCH(\">\",'CFR - XML import'!$A153,1)+1,SEARCH(\"/\",'CFR - XML import'!$A153,1)-SEARCH(\">\",'CFR - XML import'!$A153,1)-2)))","v":0},{"$f":"IF(ISERROR(FIND(R$3,'CFR - XML import'!$A153)),0,VALUE(MID('CFR - XML import'!$A153,SEARCH(\">\",'CFR - XML import'!$A153,1)+1,SEARCH(\"/\",'CFR - XML import'!$A153,1)-SEARCH(\">\",'CFR - XML import'!$A153,1)-2)))","v":0},{"$f":"IF(ISERROR(FIND(S$3,'CFR - XML import'!$A153)),0,VALUE(MID('CFR - XML import'!$A153,SEARCH(\">\",'CFR - XML import'!$A153,1)+1,SEARCH(\"/\",'CFR - XML import'!$A153,1)-SEARCH(\">\",'CFR - XML import'!$A153,1)-2)))","v":0},{"$f":"IF(ISERROR(FIND(T$3,'CFR - XML import'!$A153)),0,VALUE(MID('CFR - XML import'!$A153,SEARCH(\">\",'CFR - XML import'!$A153,1)+1,SEARCH(\"/\",'CFR - XML import'!$A153,1)-SEARCH(\">\",'CFR - XML import'!$A153,1)-2)))","v":0},{"$f":"IF(ISERROR(FIND(U$3,'CFR - XML import'!$A153)),0,VALUE(MID('CFR - XML import'!$A153,SEARCH(\">\",'CFR - XML import'!$A153,1)+1,SEARCH(\"/\",'CFR - XML import'!$A153,1)-SEARCH(\">\",'CFR - XML import'!$A153,1)-2)))","v":0},{"$f":"IF(ISERROR(FIND(V$3,'CFR - XML import'!$A153)),0,VALUE(MID('CFR - XML import'!$A153,SEARCH(\">\",'CFR - XML import'!$A153,1)+1,SEARCH(\"/\",'CFR - XML import'!$A153,1)-SEARCH(\">\",'CFR - XML import'!$A153,1)-2)))","v":0},{"$f":"IF(ISERROR(FIND(W$3,'CFR - XML import'!$A153)),0,VALUE(MID('CFR - XML import'!$A153,SEARCH(\">\",'CFR - XML import'!$A153,1)+1,SEARCH(\"/\",'CFR - XML import'!$A153,1)-SEARCH(\">\",'CFR - XML import'!$A153,1)-2)))","v":0},null,{"$f":"IF(ISERROR(FIND(Y$3,'CFR - XML import'!$A153)),0,VALUE(MID('CFR - XML import'!$A153,SEARCH(\">\",'CFR - XML import'!$A153,1)+1,SEARCH(\"/\",'CFR - XML import'!$A153,1)-SEARCH(\">\",'CFR - XML import'!$A153,1)-2)))","v":0},{"$f":"IF(ISERROR(FIND(Z$3,'CFR - XML import'!$A153)),0,VALUE(MID('CFR - XML import'!$A153,SEARCH(\">\",'CFR - XML import'!$A153,1)+1,SEARCH(\"/\",'CFR - XML import'!$A153,1)-SEARCH(\">\",'CFR - XML import'!$A153,1)-2)))","v":0},{"$f":"IF(ISERROR(FIND(AA$3,'CFR - XML import'!$A153)),0,VALUE(MID('CFR - XML import'!$A153,SEARCH(\">\",'CFR - XML import'!$A153,1)+1,SEARCH(\"/\",'CFR - XML import'!$A153,1)-SEARCH(\">\",'CFR - XML import'!$A153,1)-2)))","v":0},{"$f":"IF(ISERROR(FIND(AB$3,'CFR - XML import'!$A153)),0,VALUE(MID('CFR - XML import'!$A153,SEARCH(\">\",'CFR - XML import'!$A153,1)+1,SEARCH(\"/\",'CFR - XML import'!$A153,1)-SEARCH(\">\",'CFR - XML import'!$A153,1)-2)))","v":0},{"$f":"IF(ISERROR(FIND(AC$3,'CFR - XML import'!$A153)),0,VALUE(MID('CFR - XML import'!$A153,SEARCH(\">\",'CFR - XML import'!$A153,1)+1,SEARCH(\"/\",'CFR - XML import'!$A153,1)-SEARCH(\">\",'CFR - XML import'!$A153,1)-2)))","v":0},{"$f":"IF(ISERROR(FIND(AD$3,'CFR - XML import'!$A153)),0,VALUE(MID('CFR - XML import'!$A153,SEARCH(\">\",'CFR - XML import'!$A153,1)+1,SEARCH(\"/\",'CFR - XML import'!$A153,1)-SEARCH(\">\",'CFR - XML import'!$A153,1)-2)))","v":0},{"$f":"IF(ISERROR(FIND(AE$3,'CFR - XML import'!$A153)),0,VALUE(MID('CFR - XML import'!$A153,SEARCH(\">\",'CFR - XML import'!$A153,1)+1,SEARCH(\"/\",'CFR - XML import'!$A153,1)-SEARCH(\">\",'CFR - XML import'!$A153,1)-2)))","v":0},{"$f":"IF(ISERROR(FIND(AF$3,'CFR - XML import'!$A153)),0,VALUE(MID('CFR - XML import'!$A153,SEARCH(\">\",'CFR - XML import'!$A153,1)+1,SEARCH(\"/\",'CFR - XML import'!$A153,1)-SEARCH(\">\",'CFR - XML import'!$A153,1)-2)))","v":0},{"$f":"IF(ISERROR(FIND(AG$3,'CFR - XML import'!$A153)),0,VALUE(MID('CFR - XML import'!$A153,SEARCH(\">\",'CFR - XML import'!$A153,1)+1,SEARCH(\"/\",'CFR - XML import'!$A153,1)-SEARCH(\">\",'CFR - XML import'!$A153,1)-2)))","v":0},{"$f":"IF(ISERROR(FIND(AH$3,'CFR - XML import'!$A153)),0,VALUE(MID('CFR - XML import'!$A153,SEARCH(\">\",'CFR - XML import'!$A153,1)+1,SEARCH(\"/\",'CFR - XML import'!$A153,1)-SEARCH(\">\",'CFR - XML import'!$A153,1)-2)))","v":0},{"$f":"IF(ISERROR(FIND(AI$3,'CFR - XML import'!$A153)),0,VALUE(MID('CFR - XML import'!$A153,SEARCH(\">\",'CFR - XML import'!$A153,1)+1,SEARCH(\"/\",'CFR - XML import'!$A153,1)-SEARCH(\">\",'CFR - XML import'!$A153,1)-2)))","v":0},{"$f":"IF(ISERROR(FIND(AJ$3,'CFR - XML import'!$A153)),0,VALUE(MID('CFR - XML import'!$A153,SEARCH(\">\",'CFR - XML import'!$A153,1)+1,SEARCH(\"/\",'CFR - XML import'!$A153,1)-SEARCH(\">\",'CFR - XML import'!$A153,1)-2)))","v":0},{"$f":"IF(ISERROR(FIND(AK$3,'CFR - XML import'!$A153)),0,VALUE(MID('CFR - XML import'!$A153,SEARCH(\">\",'CFR - XML import'!$A153,1)+1,SEARCH(\"/\",'CFR - XML import'!$A153,1)-SEARCH(\">\",'CFR - XML import'!$A153,1)-2)))","v":0},{"$f":"IF(ISERROR(FIND(AL$3,'CFR - XML import'!$A153)),0,VALUE(MID('CFR - XML import'!$A153,SEARCH(\">\",'CFR - XML import'!$A153,1)+1,SEARCH(\"/\",'CFR - XML import'!$A153,1)-SEARCH(\">\",'CFR - XML import'!$A153,1)-2)))","v":0},{"$f":"IF(ISERROR(FIND(AM$3,'CFR - XML import'!$A153)),0,VALUE(MID('CFR - XML import'!$A153,SEARCH(\">\",'CFR - XML import'!$A153,1)+1,SEARCH(\"/\",'CFR - XML import'!$A153,1)-SEARCH(\">\",'CFR - XML import'!$A153,1)-2)))","v":0},{"$f":"IF(ISERROR(FIND(AN$3,'CFR - XML import'!$A153)),0,VALUE(MID('CFR - XML import'!$A153,SEARCH(\">\",'CFR - XML import'!$A153,1)+1,SEARCH(\"/\",'CFR - XML import'!$A153,1)-SEARCH(\">\",'CFR - XML import'!$A153,1)-2)))","v":0},{"$f":"IF(ISERROR(FIND(AO$3,'CFR - XML import'!$A153)),0,VALUE(MID('CFR - XML import'!$A153,SEARCH(\">\",'CFR - XML import'!$A153,1)+1,SEARCH(\"/\",'CFR - XML import'!$A153,1)-SEARCH(\">\",'CFR - XML import'!$A153,1)-2)))","v":0},{"$f":"IF(ISERROR(FIND(AP$3,'CFR - XML import'!$A153)),0,VALUE(MID('CFR - XML import'!$A153,SEARCH(\">\",'CFR - XML import'!$A153,1)+1,SEARCH(\"/\",'CFR - XML import'!$A153,1)-SEARCH(\">\",'CFR - XML import'!$A153,1)-2)))","v":0},{"$f":"IF(ISERROR(FIND(AQ$3,'CFR - XML import'!$A153)),0,VALUE(MID('CFR - XML import'!$A153,SEARCH(\">\",'CFR - XML import'!$A153,1)+1,SEARCH(\"/\",'CFR - XML import'!$A153,1)-SEARCH(\">\",'CFR - XML import'!$A153,1)-2)))","v":0},{"$f":"IF(ISERROR(FIND(AR$3,'CFR - XML import'!$A153)),0,VALUE(MID('CFR - XML import'!$A153,SEARCH(\">\",'CFR - XML import'!$A153,1)+1,SEARCH(\"/\",'CFR - XML import'!$A153,1)-SEARCH(\">\",'CFR - XML import'!$A153,1)-2)))","v":0},{"$f":"IF(ISERROR(FIND(AS$3,'CFR - XML import'!$A153)),0,VALUE(MID('CFR - XML import'!$A153,SEARCH(\">\",'CFR - XML import'!$A153,1)+1,SEARCH(\"/\",'CFR - XML import'!$A153,1)-SEARCH(\">\",'CFR - XML import'!$A153,1)-2)))","v":0},{"$f":"IF(ISERROR(FIND(AT$3,'CFR - XML import'!$A153)),0,VALUE(MID('CFR - XML import'!$A153,SEARCH(\">\",'CFR - XML import'!$A153,1)+1,SEARCH(\"/\",'CFR - XML import'!$A153,1)-SEARCH(\">\",'CFR - XML import'!$A153,1)-2)))","v":0},{"$f":"IF(ISERROR(FIND(AU$3,'CFR - XML import'!$A153)),0,VALUE(MID('CFR - XML import'!$A153,SEARCH(\">\",'CFR - XML import'!$A153,1)+1,SEARCH(\"/\",'CFR - XML import'!$A153,1)-SEARCH(\">\",'CFR - XML import'!$A153,1)-2)))","v":0},{"$f":"IF(ISERROR(FIND(AV$3,'CFR - XML import'!$A153)),0,VALUE(MID('CFR - XML import'!$A153,SEARCH(\">\",'CFR - XML import'!$A153,1)+1,SEARCH(\"/\",'CFR - XML import'!$A153,1)-SEARCH(\">\",'CFR - XML import'!$A153,1)-2)))","v":0},{"$f":"IF(ISERROR(FIND(AW$3,'CFR - XML import'!$A153)),0,VALUE(MID('CFR - XML import'!$A153,SEARCH(\">\",'CFR - XML import'!$A153,1)+1,SEARCH(\"/\",'CFR - XML import'!$A153,1)-SEARCH(\">\",'CFR - XML import'!$A153,1)-2)))","v":0},{"$f":"IF(ISERROR(FIND(AX$3,'CFR - XML import'!$A153)),0,VALUE(MID('CFR - XML import'!$A153,SEARCH(\">\",'CFR - XML import'!$A153,1)+1,SEARCH(\"/\",'CFR - XML import'!$A153,1)-SEARCH(\">\",'CFR - XML import'!$A153,1)-2)))","v":0},{"$f":"IF(ISERROR(FIND(AY$3,'CFR - XML import'!$A153)),0,VALUE(MID('CFR - XML import'!$A153,SEARCH(\">\",'CFR - XML import'!$A153,1)+1,SEARCH(\"/\",'CFR - XML import'!$A153,1)-SEARCH(\">\",'CFR - XML import'!$A153,1)-2)))","v":0},{"$f":"IF(ISERROR(FIND(AZ$3,'CFR - XML import'!$A153)),0,VALUE(MID('CFR - XML import'!$A153,SEARCH(\">\",'CFR - XML import'!$A153,1)+1,SEARCH(\"/\",'CFR - XML import'!$A153,1)-SEARCH(\">\",'CFR - XML import'!$A153,1)-2)))","v":0},{"$f":"IF(ISERROR(FIND(BA$3,'CFR - XML import'!$A153)),0,VALUE(MID('CFR - XML import'!$A153,SEARCH(\">\",'CFR - XML import'!$A153,1)+1,SEARCH(\"/\",'CFR - XML import'!$A153,1)-SEARCH(\">\",'CFR - XML import'!$A153,1)-2)))","v":0},{"$f":"IF(ISERROR(FIND(BB$3,'CFR - XML import'!$A153)),0,VALUE(MID('CFR - XML import'!$A153,SEARCH(\">\",'CFR - XML import'!$A153,1)+1,SEARCH(\"/\",'CFR - XML import'!$A153,1)-SEARCH(\">\",'CFR - XML import'!$A153,1)-2)))","v":0},{"$f":"IF(ISERROR(FIND(BC$3,'CFR - XML import'!$A153)),0,VALUE(MID('CFR - XML import'!$A153,SEARCH(\">\",'CFR - XML import'!$A153,1)+1,SEARCH(\"/\",'CFR - XML import'!$A153,1)-SEARCH(\">\",'CFR - XML import'!$A153,1)-2)))","v":0},{"$f":"IF(ISERROR(FIND(BD$3,'CFR - XML import'!$A153)),0,VALUE(MID('CFR - XML import'!$A153,SEARCH(\">\",'CFR - XML import'!$A153,1)+1,SEARCH(\"/\",'CFR - XML import'!$A153,1)-SEARCH(\">\",'CFR - XML import'!$A153,1)-2)))","v":0},{"$f":"IF(ISERROR(FIND(BE$3,'CFR - XML import'!$A153)),0,VALUE(MID('CFR - XML import'!$A153,SEARCH(\">\",'CFR - XML import'!$A153,1)+1,SEARCH(\"/\",'CFR - XML import'!$A153,1)-SEARCH(\">\",'CFR - XML import'!$A153,1)-2)))","v":0},{"$f":"IF(ISERROR(FIND(BF$3,'CFR - XML import'!$A153)),0,VALUE(MID('CFR - XML import'!$A153,SEARCH(\">\",'CFR - XML import'!$A153,1)+1,SEARCH(\"/\",'CFR - XML import'!$A153,1)-SEARCH(\">\",'CFR - XML import'!$A153,1)-2)))","v":0},{"$f":"IF(ISERROR(FIND(BG$3,'CFR - XML import'!$A153)),0,VALUE(MID('CFR - XML import'!$A153,SEARCH(\">\",'CFR - XML import'!$A153,1)+1,SEARCH(\"/\",'CFR - XML import'!$A153,1)-SEARCH(\">\",'CFR - XML import'!$A153,1)-2)))","v":0},{"$f":"IF(ISERROR(FIND(BH$3,'CFR - XML import'!$A153)),0,VALUE(MID('CFR - XML import'!$A153,SEARCH(\">\",'CFR - XML import'!$A153,1)+1,SEARCH(\"/\",'CFR - XML import'!$A153,1)-SEARCH(\">\",'CFR - XML import'!$A153,1)-2)))","v":0},{"$f":"IF(ISERROR(FIND(BI$3,'CFR - XML import'!$A153)),0,VALUE(MID('CFR - XML import'!$A153,SEARCH(\">\",'CFR - XML import'!$A153,1)+1,SEARCH(\"/\",'CFR - XML import'!$A153,1)-SEARCH(\">\",'CFR - XML import'!$A153,1)-2)))","v":0},{"$f":"IF(ISERROR(FIND(BJ$3,'CFR - XML import'!$A153)),0,VALUE(MID('CFR - XML import'!$A153,SEARCH(\">\",'CFR - XML import'!$A153,1)+1,SEARCH(\"/\",'CFR - XML import'!$A153,1)-SEARCH(\">\",'CFR - XML import'!$A153,1)-2)))","v":0},{"$f":"IF(ISERROR(FIND(BK$3,'CFR - XML import'!$A153)),0,VALUE(MID('CFR - XML import'!$A153,SEARCH(\">\",'CFR - XML import'!$A153,1)+1,SEARCH(\"/\",'CFR - XML import'!$A153,1)-SEARCH(\">\",'CFR - XML import'!$A153,1)-2)))","v":0},{"$f":"IF(ISERROR(FIND(BL$3,'CFR - XML import'!$A153)),0,VALUE(MID('CFR - XML import'!$A153,SEARCH(\">\",'CFR - XML import'!$A153,1)+1,SEARCH(\"/\",'CFR - XML import'!$A153,1)-SEARCH(\">\",'CFR - XML import'!$A153,1)-2)))","v":0},{"$f":"IF(ISERROR(FIND(BM$3,'CFR - XML import'!$A153)),0,VALUE(MID('CFR - XML import'!$A153,SEARCH(\">\",'CFR - XML import'!$A153,1)+1,SEARCH(\"/\",'CFR - XML import'!$A153,1)-SEARCH(\">\",'CFR - XML import'!$A153,1)-2)))","v":0},{"$f":"IF(ISERROR(FIND(BN$3,'CFR - XML import'!$A153)),0,VALUE(MID('CFR - XML import'!$A153,SEARCH(\">\",'CFR - XML import'!$A153,1)+1,SEARCH(\"/\",'CFR - XML import'!$A153,1)-SEARCH(\">\",'CFR - XML import'!$A153,1)-2)))","v":0},{"$f":"IF(ISERROR(FIND(BO$3,'CFR - XML import'!$A153)),0,VALUE(MID('CFR - XML import'!$A153,SEARCH(\">\",'CFR - XML import'!$A153,1)+1,SEARCH(\"/\",'CFR - XML import'!$A153,1)-SEARCH(\">\",'CFR - XML import'!$A153,1)-2)))","v":0},{"$f":"IF(ISERROR(FIND(BP$3,'CFR - XML import'!$A153)),0,VALUE(MID('CFR - XML import'!$A153,SEARCH(\">\",'CFR - XML import'!$A153,1)+1,SEARCH(\"/\",'CFR - XML import'!$A153,1)-SEARCH(\">\",'CFR - XML import'!$A153,1)-2)))","v":0},{"$f":"IF(ISERROR(FIND(BQ$3,'CFR - XML import'!$A153)),0,VALUE(MID('CFR - XML import'!$A153,SEARCH(\">\",'CFR - XML import'!$A153,1)+1,SEARCH(\"/\",'CFR - XML import'!$A153,1)-SEARCH(\">\",'CFR - XML import'!$A153,1)-2)))","v":0},{"$f":"IF(ISERROR(FIND(BR$3,'CFR - XML import'!$A153)),0,VALUE(MID('CFR - XML import'!$A153,SEARCH(\">\",'CFR - XML import'!$A153,1)+1,SEARCH(\"/\",'CFR - XML import'!$A153,1)-SEARCH(\">\",'CFR - XML import'!$A153,1)-2)))","v":0},{"$f":"IF(ISERROR(FIND(BS$3,'CFR - XML import'!$A153)),0,VALUE(MID('CFR - XML import'!$A153,SEARCH(\">\",'CFR - XML import'!$A153,1)+1,SEARCH(\"/\",'CFR - XML import'!$A153,1)-SEARCH(\">\",'CFR - XML import'!$A153,1)-2)))","v":0},{"$f":"IF(ISERROR(FIND(BT$3,'CFR - XML import'!$A153)),0,VALUE(MID('CFR - XML import'!$A153,SEARCH(\">\",'CFR - XML import'!$A153,1)+1,SEARCH(\"/\",'CFR - XML import'!$A153,1)-SEARCH(\">\",'CFR - XML import'!$A153,1)-2)))","v":0},{"$f":"IF(ISERROR(FIND(BU$3,'CFR - XML import'!$A153)),0,VALUE(MID('CFR - XML import'!$A153,SEARCH(\">\",'CFR - XML import'!$A153,1)+1,SEARCH(\"/\",'CFR - XML import'!$A153,1)-SEARCH(\">\",'CFR - XML import'!$A153,1)-2)))","v":0},{"$f":"IF(ISERROR(FIND(BV$3,'CFR - XML import'!$A153)),0,VALUE(MID('CFR - XML import'!$A153,SEARCH(\">\",'CFR - XML import'!$A153,1)+1,SEARCH(\"/\",'CFR - XML import'!$A153,1)-SEARCH(\">\",'CFR - XML import'!$A153,1)-2)))","v":0},{"$f":"IF(ISERROR(FIND(BW$3,'CFR - XML import'!$A153)),0,VALUE(MID('CFR - XML import'!$A153,SEARCH(\">\",'CFR - XML import'!$A153,1)+1,SEARCH(\"/\",'CFR - XML import'!$A153,1)-SEARCH(\">\",'CFR - XML import'!$A153,1)-2)))","v":0},{"$f":"IF(ISERROR(FIND(BX$3,'CFR - XML import'!$A153)),0,VALUE(MID('CFR - XML import'!$A153,SEARCH(\">\",'CFR - XML import'!$A153,1)+1,SEARCH(\"/\",'CFR - XML import'!$A153,1)-SEARCH(\">\",'CFR - XML import'!$A153,1)-2)))","v":0},{"$f":"IF(ISERROR(FIND(BY$3,'CFR - XML import'!$A153)),0,VALUE(MID('CFR - XML import'!$A153,SEARCH(\">\",'CFR - XML import'!$A153,1)+1,SEARCH(\"/\",'CFR - XML import'!$A153,1)-SEARCH(\">\",'CFR - XML import'!$A153,1)-2)))","v":0},{"$f":"IF(ISERROR(FIND(BZ$3,'CFR - XML import'!$A153)),0,VALUE(MID('CFR - XML import'!$A153,SEARCH(\">\",'CFR - XML import'!$A153,1)+1,SEARCH(\"/\",'CFR - XML import'!$A153,1)-SEARCH(\">\",'CFR - XML import'!$A153,1)-2)))","v":0},null,null,null,null,null,null,{"$f":"IF(ISERROR(IF(MID('CFR - XML import'!$A153,LEN($CF$4)+1,LEN('CFR - XML import'!$A153)-(2*LEN($CF$4)+1))=\"RMMS\",1,IF(MID('CFR - XML import'!$A153,LEN(\"    <InputSystem>\")+1,LEN('CFR - XML import'!$A153)-(LEN(\"    <InputSystem>\")+LEN($CF$4)+1))=\"SIMS\",2,0))),0,IF(MID('CFR - XML import'!$A153,LEN($CF$4)+1,LEN('CFR - XML import'!$A153)-(2*LEN($CF$4)+1))=\"RMMS\",1,IF(MID('CFR - XML import'!$A153,LEN(\"    <InputSystem>\")+1,LEN('CFR - XML import'!$A153)-(LEN(\"    <InputSystem>\")+LEN($CF$4)+1))=\"SIMS\",2,0)))","v":0},{"$f":"IF(ISERROR(FIND(CH$3,'CFR - XML import'!$A153)),0,MID('CFR - XML import'!$A153,SEARCH(\">\",'CFR - XML import'!$A153,1)+1,SEARCH(\"/\",'CFR - XML import'!$A153,1)-SEARCH(\">\",'CFR - XML import'!$A153,1)-2))","v":0},{"$f":"IF(ISERROR(FIND(CI$3,'CFR - XML import'!$A153)),0,MID('CFR - XML import'!$A153,SEARCH(\">\",'CFR - XML import'!$A153,1)+1,SEARCH(\"/\",'CFR - XML import'!$A153,1)-SEARCH(\">\",'CFR - XML import'!$A153,1)-2))","v":0},{"$f":"IF(ISERROR(FIND(CJ$3,'CFR - XML import'!$A153)),0,MID('CFR - XML import'!$A153,SEARCH(\">\",'CFR - XML import'!$A153,1)+1,SEARCH(\"/\",'CFR - XML import'!$A153,1)-SEARCH(\">\",'CFR - XML import'!$A153,1)-2))","v":0},{"$f":"IF(ISERROR(FIND(CK$3,'CFR - XML import'!$A153)),0,MID('CFR - XML import'!$A153,SEARCH(\">\",'CFR - XML import'!$A153,1)+1,SEARCH(\"/\",'CFR - XML import'!$A153,1)-SEARCH(\">\",'CFR - XML import'!$A153,1)-2))","v":0},{"$f":"IF(ISERROR(FIND(CL$3,'CFR - XML import'!$A153)),0,MID('CFR - XML import'!$A153,SEARCH(\">\",'CFR - XML import'!$A153,1)+1,SEARCH(\"/\",'CFR - XML import'!$A153,1)-SEARCH(\">\",'CFR - XML import'!$A153,1)-2))","v":0}]
[{"$f":"IF(AND('CFR - XML import'!A154<>\"\",LEFT('CFR - XML import'!A154,1)<>\"<\",LEFT('CFR - XML import'!A154,3)<>\"  <\",LEFT('CFR - XML import'!A154,5)<>\"    <\",LEFT('CFR - XML import'!A154,7)<>\"      <\",LEFT('CFR - XML import'!A154,9)<>\"        <\",$B$1=\"SIMS\"),'CFR - XML import'!A154,IF(AND(LEFT('CFR - XML import'!A154,9)=\"<Details>\",$B$1=\"RM\"),'CFR - XML import'!A154,\"\"))","v":""},{"$f":"IF(ISERROR(FIND(B$3,'CFR - XML import'!$A154)),0,VALUE(MID('CFR - XML import'!$A154,SEARCH(\">\",'CFR - XML import'!$A154,1)+1,SEARCH(\"/\",'CFR - XML import'!$A154,1)-SEARCH(\">\",'CFR - XML import'!$A154,1)-2)))","v":0},null,{"$f":"IF(ISERROR(FIND(D$3,'CFR - XML import'!$A154)),0,MID('CFR - XML import'!$A154,SEARCH(\">\",'CFR - XML import'!$A154,1)+1,SEARCH(\"/\",'CFR - XML import'!$A154,1)-SEARCH(\">\",'CFR - XML import'!$A154,1)-2))","v":0},{"$f":"IF(ISERROR(FIND(E$3,'CFR - XML import'!$A154)),0,MID('CFR - XML import'!$A154,SEARCH(\">\",'CFR - XML import'!$A154,1)+1,SEARCH(\"/\",'CFR - XML import'!$A154,1)-SEARCH(\">\",'CFR - XML import'!$A154,1)-2))","v":0},{"$f":"IF($B$1=\"SIMS\",IF(ISERROR(FIND(F$3,'CFR - XML import'!$A154)),0,VALUE(MID('CFR - XML import'!$A154,15,10))),IF(ISERROR(FIND(F$3,'CFR - XML import'!$A154)),0,VALUE(MID('CFR - XML import'!$A154,11,10))))","v":"00:00:00"},{"$f":"IF(ISERROR(FIND(G$3,'CFR - XML import'!$A154)),0,VALUE(MID('CFR - XML import'!$A154,SEARCH(\">\",'CFR - XML import'!$A154,1)+1,SEARCH(\"/\",'CFR - XML import'!$A154,1)-SEARCH(\">\",'CFR - XML import'!$A154,1)-2)))","v":0},{"$f":"IF(ISERROR(FIND(H$3,'CFR - XML import'!$A154)),0,VALUE(MID('CFR - XML import'!$A154,SEARCH(\">\",'CFR - XML import'!$A154,1)+1,SEARCH(\"/\",'CFR - XML import'!$A154,1)-SEARCH(\">\",'CFR - XML import'!$A154,1)-2)))","v":0},{"$f":"IF(ISERROR(FIND(I$3,'CFR - XML import'!$A154)),0,VALUE(MID('CFR - XML import'!$A154,SEARCH(\">\",'CFR - XML import'!$A154,1)+1,SEARCH(\"/\",'CFR - XML import'!$A154,1)-SEARCH(\">\",'CFR - XML import'!$A154,1)-2)))","v":0},{"$f":"IF(ISERROR(FIND(J$3,'CFR - XML import'!$A154)),0,VALUE(MID('CFR - XML import'!$A154,SEARCH(\">\",'CFR - XML import'!$A154,1)+1,SEARCH(\"/\",'CFR - XML import'!$A154,1)-SEARCH(\">\",'CFR - XML import'!$A154,1)-2)))","v":0},{"$f":"IF(ISERROR(FIND(K$3,'CFR - XML import'!$A154)),0,VALUE(MID('CFR - XML import'!$A154,SEARCH(\">\",'CFR - XML import'!$A154,1)+1,SEARCH(\"/\",'CFR - XML import'!$A154,1)-SEARCH(\">\",'CFR - XML import'!$A154,1)-2)))","v":0},{"$f":"IF(ISERROR(FIND(L$3,'CFR - XML import'!$A154)),0,VALUE(MID('CFR - XML import'!$A154,SEARCH(\">\",'CFR - XML import'!$A154,1)+1,SEARCH(\"/\",'CFR - XML import'!$A154,1)-SEARCH(\">\",'CFR - XML import'!$A154,1)-2)))","v":0},{"$f":"IF(ISERROR(FIND(M$3,'CFR - XML import'!$A154)),0,VALUE(MID('CFR - XML import'!$A154,SEARCH(\">\",'CFR - XML import'!$A154,1)+1,SEARCH(\"/\",'CFR - XML import'!$A154,1)-SEARCH(\">\",'CFR - XML import'!$A154,1)-2)))","v":0},{"$f":"IF(ISERROR(FIND(N$3,'CFR - XML import'!$A154)),0,VALUE(MID('CFR - XML import'!$A154,SEARCH(\">\",'CFR - XML import'!$A154,1)+1,SEARCH(\"/\",'CFR - XML import'!$A154,1)-SEARCH(\">\",'CFR - XML import'!$A154,1)-2)))","v":0},{"$f":"IF(ISERROR(FIND(O$3,'CFR - XML import'!$A154)),0,VALUE(MID('CFR - XML import'!$A154,SEARCH(\">\",'CFR - XML import'!$A154,1)+1,SEARCH(\"/\",'CFR - XML import'!$A154,1)-SEARCH(\">\",'CFR - XML import'!$A154,1)-2)))","v":0},{"$f":"IF(ISERROR(FIND(P$3,'CFR - XML import'!$A154)),0,VALUE(MID('CFR - XML import'!$A154,SEARCH(\">\",'CFR - XML import'!$A154,1)+1,SEARCH(\"/\",'CFR - XML import'!$A154,1)-SEARCH(\">\",'CFR - XML import'!$A154,1)-2)))","v":0},{"$f":"IF(ISERROR(FIND(Q$3,'CFR - XML import'!$A154)),0,VALUE(MID('CFR - XML import'!$A154,SEARCH(\">\",'CFR - XML import'!$A154,1)+1,SEARCH(\"/\",'CFR - XML import'!$A154,1)-SEARCH(\">\",'CFR - XML import'!$A154,1)-2)))","v":0},{"$f":"IF(ISERROR(FIND(R$3,'CFR - XML import'!$A154)),0,VALUE(MID('CFR - XML import'!$A154,SEARCH(\">\",'CFR - XML import'!$A154,1)+1,SEARCH(\"/\",'CFR - XML import'!$A154,1)-SEARCH(\">\",'CFR - XML import'!$A154,1)-2)))","v":0},{"$f":"IF(ISERROR(FIND(S$3,'CFR - XML import'!$A154)),0,VALUE(MID('CFR - XML import'!$A154,SEARCH(\">\",'CFR - XML import'!$A154,1)+1,SEARCH(\"/\",'CFR - XML import'!$A154,1)-SEARCH(\">\",'CFR - XML import'!$A154,1)-2)))","v":0},{"$f":"IF(ISERROR(FIND(T$3,'CFR - XML import'!$A154)),0,VALUE(MID('CFR - XML import'!$A154,SEARCH(\">\",'CFR - XML import'!$A154,1)+1,SEARCH(\"/\",'CFR - XML import'!$A154,1)-SEARCH(\">\",'CFR - XML import'!$A154,1)-2)))","v":0},{"$f":"IF(ISERROR(FIND(U$3,'CFR - XML import'!$A154)),0,VALUE(MID('CFR - XML import'!$A154,SEARCH(\">\",'CFR - XML import'!$A154,1)+1,SEARCH(\"/\",'CFR - XML import'!$A154,1)-SEARCH(\">\",'CFR - XML import'!$A154,1)-2)))","v":0},{"$f":"IF(ISERROR(FIND(V$3,'CFR - XML import'!$A154)),0,VALUE(MID('CFR - XML import'!$A154,SEARCH(\">\",'CFR - XML import'!$A154,1)+1,SEARCH(\"/\",'CFR - XML import'!$A154,1)-SEARCH(\">\",'CFR - XML import'!$A154,1)-2)))","v":0},{"$f":"IF(ISERROR(FIND(W$3,'CFR - XML import'!$A154)),0,VALUE(MID('CFR - XML import'!$A154,SEARCH(\">\",'CFR - XML import'!$A154,1)+1,SEARCH(\"/\",'CFR - XML import'!$A154,1)-SEARCH(\">\",'CFR - XML import'!$A154,1)-2)))","v":0},null,{"$f":"IF(ISERROR(FIND(Y$3,'CFR - XML import'!$A154)),0,VALUE(MID('CFR - XML import'!$A154,SEARCH(\">\",'CFR - XML import'!$A154,1)+1,SEARCH(\"/\",'CFR - XML import'!$A154,1)-SEARCH(\">\",'CFR - XML import'!$A154,1)-2)))","v":0},{"$f":"IF(ISERROR(FIND(Z$3,'CFR - XML import'!$A154)),0,VALUE(MID('CFR - XML import'!$A154,SEARCH(\">\",'CFR - XML import'!$A154,1)+1,SEARCH(\"/\",'CFR - XML import'!$A154,1)-SEARCH(\">\",'CFR - XML import'!$A154,1)-2)))","v":0},{"$f":"IF(ISERROR(FIND(AA$3,'CFR - XML import'!$A154)),0,VALUE(MID('CFR - XML import'!$A154,SEARCH(\">\",'CFR - XML import'!$A154,1)+1,SEARCH(\"/\",'CFR - XML import'!$A154,1)-SEARCH(\">\",'CFR - XML import'!$A154,1)-2)))","v":0},{"$f":"IF(ISERROR(FIND(AB$3,'CFR - XML import'!$A154)),0,VALUE(MID('CFR - XML import'!$A154,SEARCH(\">\",'CFR - XML import'!$A154,1)+1,SEARCH(\"/\",'CFR - XML import'!$A154,1)-SEARCH(\">\",'CFR - XML import'!$A154,1)-2)))","v":0},{"$f":"IF(ISERROR(FIND(AC$3,'CFR - XML import'!$A154)),0,VALUE(MID('CFR - XML import'!$A154,SEARCH(\">\",'CFR - XML import'!$A154,1)+1,SEARCH(\"/\",'CFR - XML import'!$A154,1)-SEARCH(\">\",'CFR - XML import'!$A154,1)-2)))","v":0},{"$f":"IF(ISERROR(FIND(AD$3,'CFR - XML import'!$A154)),0,VALUE(MID('CFR - XML import'!$A154,SEARCH(\">\",'CFR - XML import'!$A154,1)+1,SEARCH(\"/\",'CFR - XML import'!$A154,1)-SEARCH(\">\",'CFR - XML import'!$A154,1)-2)))","v":0},{"$f":"IF(ISERROR(FIND(AE$3,'CFR - XML import'!$A154)),0,VALUE(MID('CFR - XML import'!$A154,SEARCH(\">\",'CFR - XML import'!$A154,1)+1,SEARCH(\"/\",'CFR - XML import'!$A154,1)-SEARCH(\">\",'CFR - XML import'!$A154,1)-2)))","v":0},{"$f":"IF(ISERROR(FIND(AF$3,'CFR - XML import'!$A154)),0,VALUE(MID('CFR - XML import'!$A154,SEARCH(\">\",'CFR - XML import'!$A154,1)+1,SEARCH(\"/\",'CFR - XML import'!$A154,1)-SEARCH(\">\",'CFR - XML import'!$A154,1)-2)))","v":0},{"$f":"IF(ISERROR(FIND(AG$3,'CFR - XML import'!$A154)),0,VALUE(MID('CFR - XML import'!$A154,SEARCH(\">\",'CFR - XML import'!$A154,1)+1,SEARCH(\"/\",'CFR - XML import'!$A154,1)-SEARCH(\">\",'CFR - XML import'!$A154,1)-2)))","v":0},{"$f":"IF(ISERROR(FIND(AH$3,'CFR - XML import'!$A154)),0,VALUE(MID('CFR - XML import'!$A154,SEARCH(\">\",'CFR - XML import'!$A154,1)+1,SEARCH(\"/\",'CFR - XML import'!$A154,1)-SEARCH(\">\",'CFR - XML import'!$A154,1)-2)))","v":0},{"$f":"IF(ISERROR(FIND(AI$3,'CFR - XML import'!$A154)),0,VALUE(MID('CFR - XML import'!$A154,SEARCH(\">\",'CFR - XML import'!$A154,1)+1,SEARCH(\"/\",'CFR - XML import'!$A154,1)-SEARCH(\">\",'CFR - XML import'!$A154,1)-2)))","v":0},{"$f":"IF(ISERROR(FIND(AJ$3,'CFR - XML import'!$A154)),0,VALUE(MID('CFR - XML import'!$A154,SEARCH(\">\",'CFR - XML import'!$A154,1)+1,SEARCH(\"/\",'CFR - XML import'!$A154,1)-SEARCH(\">\",'CFR - XML import'!$A154,1)-2)))","v":0},{"$f":"IF(ISERROR(FIND(AK$3,'CFR - XML import'!$A154)),0,VALUE(MID('CFR - XML import'!$A154,SEARCH(\">\",'CFR - XML import'!$A154,1)+1,SEARCH(\"/\",'CFR - XML import'!$A154,1)-SEARCH(\">\",'CFR - XML import'!$A154,1)-2)))","v":0},{"$f":"IF(ISERROR(FIND(AL$3,'CFR - XML import'!$A154)),0,VALUE(MID('CFR - XML import'!$A154,SEARCH(\">\",'CFR - XML import'!$A154,1)+1,SEARCH(\"/\",'CFR - XML import'!$A154,1)-SEARCH(\">\",'CFR - XML import'!$A154,1)-2)))","v":0},{"$f":"IF(ISERROR(FIND(AM$3,'CFR - XML import'!$A154)),0,VALUE(MID('CFR - XML import'!$A154,SEARCH(\">\",'CFR - XML import'!$A154,1)+1,SEARCH(\"/\",'CFR - XML import'!$A154,1)-SEARCH(\">\",'CFR - XML import'!$A154,1)-2)))","v":0},{"$f":"IF(ISERROR(FIND(AN$3,'CFR - XML import'!$A154)),0,VALUE(MID('CFR - XML import'!$A154,SEARCH(\">\",'CFR - XML import'!$A154,1)+1,SEARCH(\"/\",'CFR - XML import'!$A154,1)-SEARCH(\">\",'CFR - XML import'!$A154,1)-2)))","v":0},{"$f":"IF(ISERROR(FIND(AO$3,'CFR - XML import'!$A154)),0,VALUE(MID('CFR - XML import'!$A154,SEARCH(\">\",'CFR - XML import'!$A154,1)+1,SEARCH(\"/\",'CFR - XML import'!$A154,1)-SEARCH(\">\",'CFR - XML import'!$A154,1)-2)))","v":0},{"$f":"IF(ISERROR(FIND(AP$3,'CFR - XML import'!$A154)),0,VALUE(MID('CFR - XML import'!$A154,SEARCH(\">\",'CFR - XML import'!$A154,1)+1,SEARCH(\"/\",'CFR - XML import'!$A154,1)-SEARCH(\">\",'CFR - XML import'!$A154,1)-2)))","v":0},{"$f":"IF(ISERROR(FIND(AQ$3,'CFR - XML import'!$A154)),0,VALUE(MID('CFR - XML import'!$A154,SEARCH(\">\",'CFR - XML import'!$A154,1)+1,SEARCH(\"/\",'CFR - XML import'!$A154,1)-SEARCH(\">\",'CFR - XML import'!$A154,1)-2)))","v":0},{"$f":"IF(ISERROR(FIND(AR$3,'CFR - XML import'!$A154)),0,VALUE(MID('CFR - XML import'!$A154,SEARCH(\">\",'CFR - XML import'!$A154,1)+1,SEARCH(\"/\",'CFR - XML import'!$A154,1)-SEARCH(\">\",'CFR - XML import'!$A154,1)-2)))","v":0},{"$f":"IF(ISERROR(FIND(AS$3,'CFR - XML import'!$A154)),0,VALUE(MID('CFR - XML import'!$A154,SEARCH(\">\",'CFR - XML import'!$A154,1)+1,SEARCH(\"/\",'CFR - XML import'!$A154,1)-SEARCH(\">\",'CFR - XML import'!$A154,1)-2)))","v":0},{"$f":"IF(ISERROR(FIND(AT$3,'CFR - XML import'!$A154)),0,VALUE(MID('CFR - XML import'!$A154,SEARCH(\">\",'CFR - XML import'!$A154,1)+1,SEARCH(\"/\",'CFR - XML import'!$A154,1)-SEARCH(\">\",'CFR - XML import'!$A154,1)-2)))","v":0},{"$f":"IF(ISERROR(FIND(AU$3,'CFR - XML import'!$A154)),0,VALUE(MID('CFR - XML import'!$A154,SEARCH(\">\",'CFR - XML import'!$A154,1)+1,SEARCH(\"/\",'CFR - XML import'!$A154,1)-SEARCH(\">\",'CFR - XML import'!$A154,1)-2)))","v":0},{"$f":"IF(ISERROR(FIND(AV$3,'CFR - XML import'!$A154)),0,VALUE(MID('CFR - XML import'!$A154,SEARCH(\">\",'CFR - XML import'!$A154,1)+1,SEARCH(\"/\",'CFR - XML import'!$A154,1)-SEARCH(\">\",'CFR - XML import'!$A154,1)-2)))","v":0},{"$f":"IF(ISERROR(FIND(AW$3,'CFR - XML import'!$A154)),0,VALUE(MID('CFR - XML import'!$A154,SEARCH(\">\",'CFR - XML import'!$A154,1)+1,SEARCH(\"/\",'CFR - XML import'!$A154,1)-SEARCH(\">\",'CFR - XML import'!$A154,1)-2)))","v":0},{"$f":"IF(ISERROR(FIND(AX$3,'CFR - XML import'!$A154)),0,VALUE(MID('CFR - XML import'!$A154,SEARCH(\">\",'CFR - XML import'!$A154,1)+1,SEARCH(\"/\",'CFR - XML import'!$A154,1)-SEARCH(\">\",'CFR - XML import'!$A154,1)-2)))","v":0},{"$f":"IF(ISERROR(FIND(AY$3,'CFR - XML import'!$A154)),0,VALUE(MID('CFR - XML import'!$A154,SEARCH(\">\",'CFR - XML import'!$A154,1)+1,SEARCH(\"/\",'CFR - XML import'!$A154,1)-SEARCH(\">\",'CFR - XML import'!$A154,1)-2)))","v":0},{"$f":"IF(ISERROR(FIND(AZ$3,'CFR - XML import'!$A154)),0,VALUE(MID('CFR - XML import'!$A154,SEARCH(\">\",'CFR - XML import'!$A154,1)+1,SEARCH(\"/\",'CFR - XML import'!$A154,1)-SEARCH(\">\",'CFR - XML import'!$A154,1)-2)))","v":0},{"$f":"IF(ISERROR(FIND(BA$3,'CFR - XML import'!$A154)),0,VALUE(MID('CFR - XML import'!$A154,SEARCH(\">\",'CFR - XML import'!$A154,1)+1,SEARCH(\"/\",'CFR - XML import'!$A154,1)-SEARCH(\">\",'CFR - XML import'!$A154,1)-2)))","v":0},{"$f":"IF(ISERROR(FIND(BB$3,'CFR - XML import'!$A154)),0,VALUE(MID('CFR - XML import'!$A154,SEARCH(\">\",'CFR - XML import'!$A154,1)+1,SEARCH(\"/\",'CFR - XML import'!$A154,1)-SEARCH(\">\",'CFR - XML import'!$A154,1)-2)))","v":0},{"$f":"IF(ISERROR(FIND(BC$3,'CFR - XML import'!$A154)),0,VALUE(MID('CFR - XML import'!$A154,SEARCH(\">\",'CFR - XML import'!$A154,1)+1,SEARCH(\"/\",'CFR - XML import'!$A154,1)-SEARCH(\">\",'CFR - XML import'!$A154,1)-2)))","v":0},{"$f":"IF(ISERROR(FIND(BD$3,'CFR - XML import'!$A154)),0,VALUE(MID('CFR - XML import'!$A154,SEARCH(\">\",'CFR - XML import'!$A154,1)+1,SEARCH(\"/\",'CFR - XML import'!$A154,1)-SEARCH(\">\",'CFR - XML import'!$A154,1)-2)))","v":0},{"$f":"IF(ISERROR(FIND(BE$3,'CFR - XML import'!$A154)),0,VALUE(MID('CFR - XML import'!$A154,SEARCH(\">\",'CFR - XML import'!$A154,1)+1,SEARCH(\"/\",'CFR - XML import'!$A154,1)-SEARCH(\">\",'CFR - XML import'!$A154,1)-2)))","v":0},{"$f":"IF(ISERROR(FIND(BF$3,'CFR - XML import'!$A154)),0,VALUE(MID('CFR - XML import'!$A154,SEARCH(\">\",'CFR - XML import'!$A154,1)+1,SEARCH(\"/\",'CFR - XML import'!$A154,1)-SEARCH(\">\",'CFR - XML import'!$A154,1)-2)))","v":0},{"$f":"IF(ISERROR(FIND(BG$3,'CFR - XML import'!$A154)),0,VALUE(MID('CFR - XML import'!$A154,SEARCH(\">\",'CFR - XML import'!$A154,1)+1,SEARCH(\"/\",'CFR - XML import'!$A154,1)-SEARCH(\">\",'CFR - XML import'!$A154,1)-2)))","v":0},{"$f":"IF(ISERROR(FIND(BH$3,'CFR - XML import'!$A154)),0,VALUE(MID('CFR - XML import'!$A154,SEARCH(\">\",'CFR - XML import'!$A154,1)+1,SEARCH(\"/\",'CFR - XML import'!$A154,1)-SEARCH(\">\",'CFR - XML import'!$A154,1)-2)))","v":0},{"$f":"IF(ISERROR(FIND(BI$3,'CFR - XML import'!$A154)),0,VALUE(MID('CFR - XML import'!$A154,SEARCH(\">\",'CFR - XML import'!$A154,1)+1,SEARCH(\"/\",'CFR - XML import'!$A154,1)-SEARCH(\">\",'CFR - XML import'!$A154,1)-2)))","v":0},{"$f":"IF(ISERROR(FIND(BJ$3,'CFR - XML import'!$A154)),0,VALUE(MID('CFR - XML import'!$A154,SEARCH(\">\",'CFR - XML import'!$A154,1)+1,SEARCH(\"/\",'CFR - XML import'!$A154,1)-SEARCH(\">\",'CFR - XML import'!$A154,1)-2)))","v":0},{"$f":"IF(ISERROR(FIND(BK$3,'CFR - XML import'!$A154)),0,VALUE(MID('CFR - XML import'!$A154,SEARCH(\">\",'CFR - XML import'!$A154,1)+1,SEARCH(\"/\",'CFR - XML import'!$A154,1)-SEARCH(\">\",'CFR - XML import'!$A154,1)-2)))","v":0},{"$f":"IF(ISERROR(FIND(BL$3,'CFR - XML import'!$A154)),0,VALUE(MID('CFR - XML import'!$A154,SEARCH(\">\",'CFR - XML import'!$A154,1)+1,SEARCH(\"/\",'CFR - XML import'!$A154,1)-SEARCH(\">\",'CFR - XML import'!$A154,1)-2)))","v":0},{"$f":"IF(ISERROR(FIND(BM$3,'CFR - XML import'!$A154)),0,VALUE(MID('CFR - XML import'!$A154,SEARCH(\">\",'CFR - XML import'!$A154,1)+1,SEARCH(\"/\",'CFR - XML import'!$A154,1)-SEARCH(\">\",'CFR - XML import'!$A154,1)-2)))","v":0},{"$f":"IF(ISERROR(FIND(BN$3,'CFR - XML import'!$A154)),0,VALUE(MID('CFR - XML import'!$A154,SEARCH(\">\",'CFR - XML import'!$A154,1)+1,SEARCH(\"/\",'CFR - XML import'!$A154,1)-SEARCH(\">\",'CFR - XML import'!$A154,1)-2)))","v":0},{"$f":"IF(ISERROR(FIND(BO$3,'CFR - XML import'!$A154)),0,VALUE(MID('CFR - XML import'!$A154,SEARCH(\">\",'CFR - XML import'!$A154,1)+1,SEARCH(\"/\",'CFR - XML import'!$A154,1)-SEARCH(\">\",'CFR - XML import'!$A154,1)-2)))","v":0},{"$f":"IF(ISERROR(FIND(BP$3,'CFR - XML import'!$A154)),0,VALUE(MID('CFR - XML import'!$A154,SEARCH(\">\",'CFR - XML import'!$A154,1)+1,SEARCH(\"/\",'CFR - XML import'!$A154,1)-SEARCH(\">\",'CFR - XML import'!$A154,1)-2)))","v":0},{"$f":"IF(ISERROR(FIND(BQ$3,'CFR - XML import'!$A154)),0,VALUE(MID('CFR - XML import'!$A154,SEARCH(\">\",'CFR - XML import'!$A154,1)+1,SEARCH(\"/\",'CFR - XML import'!$A154,1)-SEARCH(\">\",'CFR - XML import'!$A154,1)-2)))","v":0},{"$f":"IF(ISERROR(FIND(BR$3,'CFR - XML import'!$A154)),0,VALUE(MID('CFR - XML import'!$A154,SEARCH(\">\",'CFR - XML import'!$A154,1)+1,SEARCH(\"/\",'CFR - XML import'!$A154,1)-SEARCH(\">\",'CFR - XML import'!$A154,1)-2)))","v":0},{"$f":"IF(ISERROR(FIND(BS$3,'CFR - XML import'!$A154)),0,VALUE(MID('CFR - XML import'!$A154,SEARCH(\">\",'CFR - XML import'!$A154,1)+1,SEARCH(\"/\",'CFR - XML import'!$A154,1)-SEARCH(\">\",'CFR - XML import'!$A154,1)-2)))","v":0},{"$f":"IF(ISERROR(FIND(BT$3,'CFR - XML import'!$A154)),0,VALUE(MID('CFR - XML import'!$A154,SEARCH(\">\",'CFR - XML import'!$A154,1)+1,SEARCH(\"/\",'CFR - XML import'!$A154,1)-SEARCH(\">\",'CFR - XML import'!$A154,1)-2)))","v":0},{"$f":"IF(ISERROR(FIND(BU$3,'CFR - XML import'!$A154)),0,VALUE(MID('CFR - XML import'!$A154,SEARCH(\">\",'CFR - XML import'!$A154,1)+1,SEARCH(\"/\",'CFR - XML import'!$A154,1)-SEARCH(\">\",'CFR - XML import'!$A154,1)-2)))","v":0},{"$f":"IF(ISERROR(FIND(BV$3,'CFR - XML import'!$A154)),0,VALUE(MID('CFR - XML import'!$A154,SEARCH(\">\",'CFR - XML import'!$A154,1)+1,SEARCH(\"/\",'CFR - XML import'!$A154,1)-SEARCH(\">\",'CFR - XML import'!$A154,1)-2)))","v":0},{"$f":"IF(ISERROR(FIND(BW$3,'CFR - XML import'!$A154)),0,VALUE(MID('CFR - XML import'!$A154,SEARCH(\">\",'CFR - XML import'!$A154,1)+1,SEARCH(\"/\",'CFR - XML import'!$A154,1)-SEARCH(\">\",'CFR - XML import'!$A154,1)-2)))","v":0},{"$f":"IF(ISERROR(FIND(BX$3,'CFR - XML import'!$A154)),0,VALUE(MID('CFR - XML import'!$A154,SEARCH(\">\",'CFR - XML import'!$A154,1)+1,SEARCH(\"/\",'CFR - XML import'!$A154,1)-SEARCH(\">\",'CFR - XML import'!$A154,1)-2)))","v":0},{"$f":"IF(ISERROR(FIND(BY$3,'CFR - XML import'!$A154)),0,VALUE(MID('CFR - XML import'!$A154,SEARCH(\">\",'CFR - XML import'!$A154,1)+1,SEARCH(\"/\",'CFR - XML import'!$A154,1)-SEARCH(\">\",'CFR - XML import'!$A154,1)-2)))","v":0},{"$f":"IF(ISERROR(FIND(BZ$3,'CFR - XML import'!$A154)),0,VALUE(MID('CFR - XML import'!$A154,SEARCH(\">\",'CFR - XML import'!$A154,1)+1,SEARCH(\"/\",'CFR - XML import'!$A154,1)-SEARCH(\">\",'CFR - XML import'!$A154,1)-2)))","v":0},null,null,null,null,null,null,{"$f":"IF(ISERROR(IF(MID('CFR - XML import'!$A154,LEN($CF$4)+1,LEN('CFR - XML import'!$A154)-(2*LEN($CF$4)+1))=\"RMMS\",1,IF(MID('CFR - XML import'!$A154,LEN(\"    <InputSystem>\")+1,LEN('CFR - XML import'!$A154)-(LEN(\"    <InputSystem>\")+LEN($CF$4)+1))=\"SIMS\",2,0))),0,IF(MID('CFR - XML import'!$A154,LEN($CF$4)+1,LEN('CFR - XML import'!$A154)-(2*LEN($CF$4)+1))=\"RMMS\",1,IF(MID('CFR - XML import'!$A154,LEN(\"    <InputSystem>\")+1,LEN('CFR - XML import'!$A154)-(LEN(\"    <InputSystem>\")+LEN($CF$4)+1))=\"SIMS\",2,0)))","v":0},{"$f":"IF(ISERROR(FIND(CH$3,'CFR - XML import'!$A154)),0,MID('CFR - XML import'!$A154,SEARCH(\">\",'CFR - XML import'!$A154,1)+1,SEARCH(\"/\",'CFR - XML import'!$A154,1)-SEARCH(\">\",'CFR - XML import'!$A154,1)-2))","v":0},{"$f":"IF(ISERROR(FIND(CI$3,'CFR - XML import'!$A154)),0,MID('CFR - XML import'!$A154,SEARCH(\">\",'CFR - XML import'!$A154,1)+1,SEARCH(\"/\",'CFR - XML import'!$A154,1)-SEARCH(\">\",'CFR - XML import'!$A154,1)-2))","v":0},{"$f":"IF(ISERROR(FIND(CJ$3,'CFR - XML import'!$A154)),0,MID('CFR - XML import'!$A154,SEARCH(\">\",'CFR - XML import'!$A154,1)+1,SEARCH(\"/\",'CFR - XML import'!$A154,1)-SEARCH(\">\",'CFR - XML import'!$A154,1)-2))","v":0},{"$f":"IF(ISERROR(FIND(CK$3,'CFR - XML import'!$A154)),0,MID('CFR - XML import'!$A154,SEARCH(\">\",'CFR - XML import'!$A154,1)+1,SEARCH(\"/\",'CFR - XML import'!$A154,1)-SEARCH(\">\",'CFR - XML import'!$A154,1)-2))","v":0},{"$f":"IF(ISERROR(FIND(CL$3,'CFR - XML import'!$A154)),0,MID('CFR - XML import'!$A154,SEARCH(\">\",'CFR - XML import'!$A154,1)+1,SEARCH(\"/\",'CFR - XML import'!$A154,1)-SEARCH(\">\",'CFR - XML import'!$A154,1)-2))","v":0}]
[{"$f":"IF(AND('CFR - XML import'!A155<>\"\",LEFT('CFR - XML import'!A155,1)<>\"<\",LEFT('CFR - XML import'!A155,3)<>\"  <\",LEFT('CFR - XML import'!A155,5)<>\"    <\",LEFT('CFR - XML import'!A155,7)<>\"      <\",LEFT('CFR - XML import'!A155,9)<>\"        <\",$B$1=\"SIMS\"),'CFR - XML import'!A155,IF(AND(LEFT('CFR - XML import'!A155,9)=\"<Details>\",$B$1=\"RM\"),'CFR - XML import'!A155,\"\"))","v":""},{"$f":"IF(ISERROR(FIND(B$3,'CFR - XML import'!$A155)),0,VALUE(MID('CFR - XML import'!$A155,SEARCH(\">\",'CFR - XML import'!$A155,1)+1,SEARCH(\"/\",'CFR - XML import'!$A155,1)-SEARCH(\">\",'CFR - XML import'!$A155,1)-2)))","v":0},null,{"$f":"IF(ISERROR(FIND(D$3,'CFR - XML import'!$A155)),0,MID('CFR - XML import'!$A155,SEARCH(\">\",'CFR - XML import'!$A155,1)+1,SEARCH(\"/\",'CFR - XML import'!$A155,1)-SEARCH(\">\",'CFR - XML import'!$A155,1)-2))","v":0},{"$f":"IF(ISERROR(FIND(E$3,'CFR - XML import'!$A155)),0,MID('CFR - XML import'!$A155,SEARCH(\">\",'CFR - XML import'!$A155,1)+1,SEARCH(\"/\",'CFR - XML import'!$A155,1)-SEARCH(\">\",'CFR - XML import'!$A155,1)-2))","v":0},{"$f":"IF($B$1=\"SIMS\",IF(ISERROR(FIND(F$3,'CFR - XML import'!$A155)),0,VALUE(MID('CFR - XML import'!$A155,15,10))),IF(ISERROR(FIND(F$3,'CFR - XML import'!$A155)),0,VALUE(MID('CFR - XML import'!$A155,11,10))))","v":"00:00:00"},{"$f":"IF(ISERROR(FIND(G$3,'CFR - XML import'!$A155)),0,VALUE(MID('CFR - XML import'!$A155,SEARCH(\">\",'CFR - XML import'!$A155,1)+1,SEARCH(\"/\",'CFR - XML import'!$A155,1)-SEARCH(\">\",'CFR - XML import'!$A155,1)-2)))","v":0},{"$f":"IF(ISERROR(FIND(H$3,'CFR - XML import'!$A155)),0,VALUE(MID('CFR - XML import'!$A155,SEARCH(\">\",'CFR - XML import'!$A155,1)+1,SEARCH(\"/\",'CFR - XML import'!$A155,1)-SEARCH(\">\",'CFR - XML import'!$A155,1)-2)))","v":0},{"$f":"IF(ISERROR(FIND(I$3,'CFR - XML import'!$A155)),0,VALUE(MID('CFR - XML import'!$A155,SEARCH(\">\",'CFR - XML import'!$A155,1)+1,SEARCH(\"/\",'CFR - XML import'!$A155,1)-SEARCH(\">\",'CFR - XML import'!$A155,1)-2)))","v":0},{"$f":"IF(ISERROR(FIND(J$3,'CFR - XML import'!$A155)),0,VALUE(MID('CFR - XML import'!$A155,SEARCH(\">\",'CFR - XML import'!$A155,1)+1,SEARCH(\"/\",'CFR - XML import'!$A155,1)-SEARCH(\">\",'CFR - XML import'!$A155,1)-2)))","v":0},{"$f":"IF(ISERROR(FIND(K$3,'CFR - XML import'!$A155)),0,VALUE(MID('CFR - XML import'!$A155,SEARCH(\">\",'CFR - XML import'!$A155,1)+1,SEARCH(\"/\",'CFR - XML import'!$A155,1)-SEARCH(\">\",'CFR - XML import'!$A155,1)-2)))","v":0},{"$f":"IF(ISERROR(FIND(L$3,'CFR - XML import'!$A155)),0,VALUE(MID('CFR - XML import'!$A155,SEARCH(\">\",'CFR - XML import'!$A155,1)+1,SEARCH(\"/\",'CFR - XML import'!$A155,1)-SEARCH(\">\",'CFR - XML import'!$A155,1)-2)))","v":0},{"$f":"IF(ISERROR(FIND(M$3,'CFR - XML import'!$A155)),0,VALUE(MID('CFR - XML import'!$A155,SEARCH(\">\",'CFR - XML import'!$A155,1)+1,SEARCH(\"/\",'CFR - XML import'!$A155,1)-SEARCH(\">\",'CFR - XML import'!$A155,1)-2)))","v":0},{"$f":"IF(ISERROR(FIND(N$3,'CFR - XML import'!$A155)),0,VALUE(MID('CFR - XML import'!$A155,SEARCH(\">\",'CFR - XML import'!$A155,1)+1,SEARCH(\"/\",'CFR - XML import'!$A155,1)-SEARCH(\">\",'CFR - XML import'!$A155,1)-2)))","v":0},{"$f":"IF(ISERROR(FIND(O$3,'CFR - XML import'!$A155)),0,VALUE(MID('CFR - XML import'!$A155,SEARCH(\">\",'CFR - XML import'!$A155,1)+1,SEARCH(\"/\",'CFR - XML import'!$A155,1)-SEARCH(\">\",'CFR - XML import'!$A155,1)-2)))","v":0},{"$f":"IF(ISERROR(FIND(P$3,'CFR - XML import'!$A155)),0,VALUE(MID('CFR - XML import'!$A155,SEARCH(\">\",'CFR - XML import'!$A155,1)+1,SEARCH(\"/\",'CFR - XML import'!$A155,1)-SEARCH(\">\",'CFR - XML import'!$A155,1)-2)))","v":0},{"$f":"IF(ISERROR(FIND(Q$3,'CFR - XML import'!$A155)),0,VALUE(MID('CFR - XML import'!$A155,SEARCH(\">\",'CFR - XML import'!$A155,1)+1,SEARCH(\"/\",'CFR - XML import'!$A155,1)-SEARCH(\">\",'CFR - XML import'!$A155,1)-2)))","v":0},{"$f":"IF(ISERROR(FIND(R$3,'CFR - XML import'!$A155)),0,VALUE(MID('CFR - XML import'!$A155,SEARCH(\">\",'CFR - XML import'!$A155,1)+1,SEARCH(\"/\",'CFR - XML import'!$A155,1)-SEARCH(\">\",'CFR - XML import'!$A155,1)-2)))","v":0},{"$f":"IF(ISERROR(FIND(S$3,'CFR - XML import'!$A155)),0,VALUE(MID('CFR - XML import'!$A155,SEARCH(\">\",'CFR - XML import'!$A155,1)+1,SEARCH(\"/\",'CFR - XML import'!$A155,1)-SEARCH(\">\",'CFR - XML import'!$A155,1)-2)))","v":0},{"$f":"IF(ISERROR(FIND(T$3,'CFR - XML import'!$A155)),0,VALUE(MID('CFR - XML import'!$A155,SEARCH(\">\",'CFR - XML import'!$A155,1)+1,SEARCH(\"/\",'CFR - XML import'!$A155,1)-SEARCH(\">\",'CFR - XML import'!$A155,1)-2)))","v":0},{"$f":"IF(ISERROR(FIND(U$3,'CFR - XML import'!$A155)),0,VALUE(MID('CFR - XML import'!$A155,SEARCH(\">\",'CFR - XML import'!$A155,1)+1,SEARCH(\"/\",'CFR - XML import'!$A155,1)-SEARCH(\">\",'CFR - XML import'!$A155,1)-2)))","v":0},{"$f":"IF(ISERROR(FIND(V$3,'CFR - XML import'!$A155)),0,VALUE(MID('CFR - XML import'!$A155,SEARCH(\">\",'CFR - XML import'!$A155,1)+1,SEARCH(\"/\",'CFR - XML import'!$A155,1)-SEARCH(\">\",'CFR - XML import'!$A155,1)-2)))","v":0},{"$f":"IF(ISERROR(FIND(W$3,'CFR - XML import'!$A155)),0,VALUE(MID('CFR - XML import'!$A155,SEARCH(\">\",'CFR - XML import'!$A155,1)+1,SEARCH(\"/\",'CFR - XML import'!$A155,1)-SEARCH(\">\",'CFR - XML import'!$A155,1)-2)))","v":0},null,{"$f":"IF(ISERROR(FIND(Y$3,'CFR - XML import'!$A155)),0,VALUE(MID('CFR - XML import'!$A155,SEARCH(\">\",'CFR - XML import'!$A155,1)+1,SEARCH(\"/\",'CFR - XML import'!$A155,1)-SEARCH(\">\",'CFR - XML import'!$A155,1)-2)))","v":0},{"$f":"IF(ISERROR(FIND(Z$3,'CFR - XML import'!$A155)),0,VALUE(MID('CFR - XML import'!$A155,SEARCH(\">\",'CFR - XML import'!$A155,1)+1,SEARCH(\"/\",'CFR - XML import'!$A155,1)-SEARCH(\">\",'CFR - XML import'!$A155,1)-2)))","v":0},{"$f":"IF(ISERROR(FIND(AA$3,'CFR - XML import'!$A155)),0,VALUE(MID('CFR - XML import'!$A155,SEARCH(\">\",'CFR - XML import'!$A155,1)+1,SEARCH(\"/\",'CFR - XML import'!$A155,1)-SEARCH(\">\",'CFR - XML import'!$A155,1)-2)))","v":0},{"$f":"IF(ISERROR(FIND(AB$3,'CFR - XML import'!$A155)),0,VALUE(MID('CFR - XML import'!$A155,SEARCH(\">\",'CFR - XML import'!$A155,1)+1,SEARCH(\"/\",'CFR - XML import'!$A155,1)-SEARCH(\">\",'CFR - XML import'!$A155,1)-2)))","v":0},{"$f":"IF(ISERROR(FIND(AC$3,'CFR - XML import'!$A155)),0,VALUE(MID('CFR - XML import'!$A155,SEARCH(\">\",'CFR - XML import'!$A155,1)+1,SEARCH(\"/\",'CFR - XML import'!$A155,1)-SEARCH(\">\",'CFR - XML import'!$A155,1)-2)))","v":0},{"$f":"IF(ISERROR(FIND(AD$3,'CFR - XML import'!$A155)),0,VALUE(MID('CFR - XML import'!$A155,SEARCH(\">\",'CFR - XML import'!$A155,1)+1,SEARCH(\"/\",'CFR - XML import'!$A155,1)-SEARCH(\">\",'CFR - XML import'!$A155,1)-2)))","v":0},{"$f":"IF(ISERROR(FIND(AE$3,'CFR - XML import'!$A155)),0,VALUE(MID('CFR - XML import'!$A155,SEARCH(\">\",'CFR - XML import'!$A155,1)+1,SEARCH(\"/\",'CFR - XML import'!$A155,1)-SEARCH(\">\",'CFR - XML import'!$A155,1)-2)))","v":0},{"$f":"IF(ISERROR(FIND(AF$3,'CFR - XML import'!$A155)),0,VALUE(MID('CFR - XML import'!$A155,SEARCH(\">\",'CFR - XML import'!$A155,1)+1,SEARCH(\"/\",'CFR - XML import'!$A155,1)-SEARCH(\">\",'CFR - XML import'!$A155,1)-2)))","v":0},{"$f":"IF(ISERROR(FIND(AG$3,'CFR - XML import'!$A155)),0,VALUE(MID('CFR - XML import'!$A155,SEARCH(\">\",'CFR - XML import'!$A155,1)+1,SEARCH(\"/\",'CFR - XML import'!$A155,1)-SEARCH(\">\",'CFR - XML import'!$A155,1)-2)))","v":0},{"$f":"IF(ISERROR(FIND(AH$3,'CFR - XML import'!$A155)),0,VALUE(MID('CFR - XML import'!$A155,SEARCH(\">\",'CFR - XML import'!$A155,1)+1,SEARCH(\"/\",'CFR - XML import'!$A155,1)-SEARCH(\">\",'CFR - XML import'!$A155,1)-2)))","v":0},{"$f":"IF(ISERROR(FIND(AI$3,'CFR - XML import'!$A155)),0,VALUE(MID('CFR - XML import'!$A155,SEARCH(\">\",'CFR - XML import'!$A155,1)+1,SEARCH(\"/\",'CFR - XML import'!$A155,1)-SEARCH(\">\",'CFR - XML import'!$A155,1)-2)))","v":0},{"$f":"IF(ISERROR(FIND(AJ$3,'CFR - XML import'!$A155)),0,VALUE(MID('CFR - XML import'!$A155,SEARCH(\">\",'CFR - XML import'!$A155,1)+1,SEARCH(\"/\",'CFR - XML import'!$A155,1)-SEARCH(\">\",'CFR - XML import'!$A155,1)-2)))","v":0},{"$f":"IF(ISERROR(FIND(AK$3,'CFR - XML import'!$A155)),0,VALUE(MID('CFR - XML import'!$A155,SEARCH(\">\",'CFR - XML import'!$A155,1)+1,SEARCH(\"/\",'CFR - XML import'!$A155,1)-SEARCH(\">\",'CFR - XML import'!$A155,1)-2)))","v":0},{"$f":"IF(ISERROR(FIND(AL$3,'CFR - XML import'!$A155)),0,VALUE(MID('CFR - XML import'!$A155,SEARCH(\">\",'CFR - XML import'!$A155,1)+1,SEARCH(\"/\",'CFR - XML import'!$A155,1)-SEARCH(\">\",'CFR - XML import'!$A155,1)-2)))","v":0},{"$f":"IF(ISERROR(FIND(AM$3,'CFR - XML import'!$A155)),0,VALUE(MID('CFR - XML import'!$A155,SEARCH(\">\",'CFR - XML import'!$A155,1)+1,SEARCH(\"/\",'CFR - XML import'!$A155,1)-SEARCH(\">\",'CFR - XML import'!$A155,1)-2)))","v":0},{"$f":"IF(ISERROR(FIND(AN$3,'CFR - XML import'!$A155)),0,VALUE(MID('CFR - XML import'!$A155,SEARCH(\">\",'CFR - XML import'!$A155,1)+1,SEARCH(\"/\",'CFR - XML import'!$A155,1)-SEARCH(\">\",'CFR - XML import'!$A155,1)-2)))","v":0},{"$f":"IF(ISERROR(FIND(AO$3,'CFR - XML import'!$A155)),0,VALUE(MID('CFR - XML import'!$A155,SEARCH(\">\",'CFR - XML import'!$A155,1)+1,SEARCH(\"/\",'CFR - XML import'!$A155,1)-SEARCH(\">\",'CFR - XML import'!$A155,1)-2)))","v":0},{"$f":"IF(ISERROR(FIND(AP$3,'CFR - XML import'!$A155)),0,VALUE(MID('CFR - XML import'!$A155,SEARCH(\">\",'CFR - XML import'!$A155,1)+1,SEARCH(\"/\",'CFR - XML import'!$A155,1)-SEARCH(\">\",'CFR - XML import'!$A155,1)-2)))","v":0},{"$f":"IF(ISERROR(FIND(AQ$3,'CFR - XML import'!$A155)),0,VALUE(MID('CFR - XML import'!$A155,SEARCH(\">\",'CFR - XML import'!$A155,1)+1,SEARCH(\"/\",'CFR - XML import'!$A155,1)-SEARCH(\">\",'CFR - XML import'!$A155,1)-2)))","v":0},{"$f":"IF(ISERROR(FIND(AR$3,'CFR - XML import'!$A155)),0,VALUE(MID('CFR - XML import'!$A155,SEARCH(\">\",'CFR - XML import'!$A155,1)+1,SEARCH(\"/\",'CFR - XML import'!$A155,1)-SEARCH(\">\",'CFR - XML import'!$A155,1)-2)))","v":0},{"$f":"IF(ISERROR(FIND(AS$3,'CFR - XML import'!$A155)),0,VALUE(MID('CFR - XML import'!$A155,SEARCH(\">\",'CFR - XML import'!$A155,1)+1,SEARCH(\"/\",'CFR - XML import'!$A155,1)-SEARCH(\">\",'CFR - XML import'!$A155,1)-2)))","v":0},{"$f":"IF(ISERROR(FIND(AT$3,'CFR - XML import'!$A155)),0,VALUE(MID('CFR - XML import'!$A155,SEARCH(\">\",'CFR - XML import'!$A155,1)+1,SEARCH(\"/\",'CFR - XML import'!$A155,1)-SEARCH(\">\",'CFR - XML import'!$A155,1)-2)))","v":0},{"$f":"IF(ISERROR(FIND(AU$3,'CFR - XML import'!$A155)),0,VALUE(MID('CFR - XML import'!$A155,SEARCH(\">\",'CFR - XML import'!$A155,1)+1,SEARCH(\"/\",'CFR - XML import'!$A155,1)-SEARCH(\">\",'CFR - XML import'!$A155,1)-2)))","v":0},{"$f":"IF(ISERROR(FIND(AV$3,'CFR - XML import'!$A155)),0,VALUE(MID('CFR - XML import'!$A155,SEARCH(\">\",'CFR - XML import'!$A155,1)+1,SEARCH(\"/\",'CFR - XML import'!$A155,1)-SEARCH(\">\",'CFR - XML import'!$A155,1)-2)))","v":0},{"$f":"IF(ISERROR(FIND(AW$3,'CFR - XML import'!$A155)),0,VALUE(MID('CFR - XML import'!$A155,SEARCH(\">\",'CFR - XML import'!$A155,1)+1,SEARCH(\"/\",'CFR - XML import'!$A155,1)-SEARCH(\">\",'CFR - XML import'!$A155,1)-2)))","v":0},{"$f":"IF(ISERROR(FIND(AX$3,'CFR - XML import'!$A155)),0,VALUE(MID('CFR - XML import'!$A155,SEARCH(\">\",'CFR - XML import'!$A155,1)+1,SEARCH(\"/\",'CFR - XML import'!$A155,1)-SEARCH(\">\",'CFR - XML import'!$A155,1)-2)))","v":0},{"$f":"IF(ISERROR(FIND(AY$3,'CFR - XML import'!$A155)),0,VALUE(MID('CFR - XML import'!$A155,SEARCH(\">\",'CFR - XML import'!$A155,1)+1,SEARCH(\"/\",'CFR - XML import'!$A155,1)-SEARCH(\">\",'CFR - XML import'!$A155,1)-2)))","v":0},{"$f":"IF(ISERROR(FIND(AZ$3,'CFR - XML import'!$A155)),0,VALUE(MID('CFR - XML import'!$A155,SEARCH(\">\",'CFR - XML import'!$A155,1)+1,SEARCH(\"/\",'CFR - XML import'!$A155,1)-SEARCH(\">\",'CFR - XML import'!$A155,1)-2)))","v":0},{"$f":"IF(ISERROR(FIND(BA$3,'CFR - XML import'!$A155)),0,VALUE(MID('CFR - XML import'!$A155,SEARCH(\">\",'CFR - XML import'!$A155,1)+1,SEARCH(\"/\",'CFR - XML import'!$A155,1)-SEARCH(\">\",'CFR - XML import'!$A155,1)-2)))","v":0},{"$f":"IF(ISERROR(FIND(BB$3,'CFR - XML import'!$A155)),0,VALUE(MID('CFR - XML import'!$A155,SEARCH(\">\",'CFR - XML import'!$A155,1)+1,SEARCH(\"/\",'CFR - XML import'!$A155,1)-SEARCH(\">\",'CFR - XML import'!$A155,1)-2)))","v":0},{"$f":"IF(ISERROR(FIND(BC$3,'CFR - XML import'!$A155)),0,VALUE(MID('CFR - XML import'!$A155,SEARCH(\">\",'CFR - XML import'!$A155,1)+1,SEARCH(\"/\",'CFR - XML import'!$A155,1)-SEARCH(\">\",'CFR - XML import'!$A155,1)-2)))","v":0},{"$f":"IF(ISERROR(FIND(BD$3,'CFR - XML import'!$A155)),0,VALUE(MID('CFR - XML import'!$A155,SEARCH(\">\",'CFR - XML import'!$A155,1)+1,SEARCH(\"/\",'CFR - XML import'!$A155,1)-SEARCH(\">\",'CFR - XML import'!$A155,1)-2)))","v":0},{"$f":"IF(ISERROR(FIND(BE$3,'CFR - XML import'!$A155)),0,VALUE(MID('CFR - XML import'!$A155,SEARCH(\">\",'CFR - XML import'!$A155,1)+1,SEARCH(\"/\",'CFR - XML import'!$A155,1)-SEARCH(\">\",'CFR - XML import'!$A155,1)-2)))","v":0},{"$f":"IF(ISERROR(FIND(BF$3,'CFR - XML import'!$A155)),0,VALUE(MID('CFR - XML import'!$A155,SEARCH(\">\",'CFR - XML import'!$A155,1)+1,SEARCH(\"/\",'CFR - XML import'!$A155,1)-SEARCH(\">\",'CFR - XML import'!$A155,1)-2)))","v":0},{"$f":"IF(ISERROR(FIND(BG$3,'CFR - XML import'!$A155)),0,VALUE(MID('CFR - XML import'!$A155,SEARCH(\">\",'CFR - XML import'!$A155,1)+1,SEARCH(\"/\",'CFR - XML import'!$A155,1)-SEARCH(\">\",'CFR - XML import'!$A155,1)-2)))","v":0},{"$f":"IF(ISERROR(FIND(BH$3,'CFR - XML import'!$A155)),0,VALUE(MID('CFR - XML import'!$A155,SEARCH(\">\",'CFR - XML import'!$A155,1)+1,SEARCH(\"/\",'CFR - XML import'!$A155,1)-SEARCH(\">\",'CFR - XML import'!$A155,1)-2)))","v":0},{"$f":"IF(ISERROR(FIND(BI$3,'CFR - XML import'!$A155)),0,VALUE(MID('CFR - XML import'!$A155,SEARCH(\">\",'CFR - XML import'!$A155,1)+1,SEARCH(\"/\",'CFR - XML import'!$A155,1)-SEARCH(\">\",'CFR - XML import'!$A155,1)-2)))","v":0},{"$f":"IF(ISERROR(FIND(BJ$3,'CFR - XML import'!$A155)),0,VALUE(MID('CFR - XML import'!$A155,SEARCH(\">\",'CFR - XML import'!$A155,1)+1,SEARCH(\"/\",'CFR - XML import'!$A155,1)-SEARCH(\">\",'CFR - XML import'!$A155,1)-2)))","v":0},{"$f":"IF(ISERROR(FIND(BK$3,'CFR - XML import'!$A155)),0,VALUE(MID('CFR - XML import'!$A155,SEARCH(\">\",'CFR - XML import'!$A155,1)+1,SEARCH(\"/\",'CFR - XML import'!$A155,1)-SEARCH(\">\",'CFR - XML import'!$A155,1)-2)))","v":0},{"$f":"IF(ISERROR(FIND(BL$3,'CFR - XML import'!$A155)),0,VALUE(MID('CFR - XML import'!$A155,SEARCH(\">\",'CFR - XML import'!$A155,1)+1,SEARCH(\"/\",'CFR - XML import'!$A155,1)-SEARCH(\">\",'CFR - XML import'!$A155,1)-2)))","v":0},{"$f":"IF(ISERROR(FIND(BM$3,'CFR - XML import'!$A155)),0,VALUE(MID('CFR - XML import'!$A155,SEARCH(\">\",'CFR - XML import'!$A155,1)+1,SEARCH(\"/\",'CFR - XML import'!$A155,1)-SEARCH(\">\",'CFR - XML import'!$A155,1)-2)))","v":0},{"$f":"IF(ISERROR(FIND(BN$3,'CFR - XML import'!$A155)),0,VALUE(MID('CFR - XML import'!$A155,SEARCH(\">\",'CFR - XML import'!$A155,1)+1,SEARCH(\"/\",'CFR - XML import'!$A155,1)-SEARCH(\">\",'CFR - XML import'!$A155,1)-2)))","v":0},{"$f":"IF(ISERROR(FIND(BO$3,'CFR - XML import'!$A155)),0,VALUE(MID('CFR - XML import'!$A155,SEARCH(\">\",'CFR - XML import'!$A155,1)+1,SEARCH(\"/\",'CFR - XML import'!$A155,1)-SEARCH(\">\",'CFR - XML import'!$A155,1)-2)))","v":0},{"$f":"IF(ISERROR(FIND(BP$3,'CFR - XML import'!$A155)),0,VALUE(MID('CFR - XML import'!$A155,SEARCH(\">\",'CFR - XML import'!$A155,1)+1,SEARCH(\"/\",'CFR - XML import'!$A155,1)-SEARCH(\">\",'CFR - XML import'!$A155,1)-2)))","v":0},{"$f":"IF(ISERROR(FIND(BQ$3,'CFR - XML import'!$A155)),0,VALUE(MID('CFR - XML import'!$A155,SEARCH(\">\",'CFR - XML import'!$A155,1)+1,SEARCH(\"/\",'CFR - XML import'!$A155,1)-SEARCH(\">\",'CFR - XML import'!$A155,1)-2)))","v":0},{"$f":"IF(ISERROR(FIND(BR$3,'CFR - XML import'!$A155)),0,VALUE(MID('CFR - XML import'!$A155,SEARCH(\">\",'CFR - XML import'!$A155,1)+1,SEARCH(\"/\",'CFR - XML import'!$A155,1)-SEARCH(\">\",'CFR - XML import'!$A155,1)-2)))","v":0},{"$f":"IF(ISERROR(FIND(BS$3,'CFR - XML import'!$A155)),0,VALUE(MID('CFR - XML import'!$A155,SEARCH(\">\",'CFR - XML import'!$A155,1)+1,SEARCH(\"/\",'CFR - XML import'!$A155,1)-SEARCH(\">\",'CFR - XML import'!$A155,1)-2)))","v":0},{"$f":"IF(ISERROR(FIND(BT$3,'CFR - XML import'!$A155)),0,VALUE(MID('CFR - XML import'!$A155,SEARCH(\">\",'CFR - XML import'!$A155,1)+1,SEARCH(\"/\",'CFR - XML import'!$A155,1)-SEARCH(\">\",'CFR - XML import'!$A155,1)-2)))","v":0},{"$f":"IF(ISERROR(FIND(BU$3,'CFR - XML import'!$A155)),0,VALUE(MID('CFR - XML import'!$A155,SEARCH(\">\",'CFR - XML import'!$A155,1)+1,SEARCH(\"/\",'CFR - XML import'!$A155,1)-SEARCH(\">\",'CFR - XML import'!$A155,1)-2)))","v":0},{"$f":"IF(ISERROR(FIND(BV$3,'CFR - XML import'!$A155)),0,VALUE(MID('CFR - XML import'!$A155,SEARCH(\">\",'CFR - XML import'!$A155,1)+1,SEARCH(\"/\",'CFR - XML import'!$A155,1)-SEARCH(\">\",'CFR - XML import'!$A155,1)-2)))","v":0},{"$f":"IF(ISERROR(FIND(BW$3,'CFR - XML import'!$A155)),0,VALUE(MID('CFR - XML import'!$A155,SEARCH(\">\",'CFR - XML import'!$A155,1)+1,SEARCH(\"/\",'CFR - XML import'!$A155,1)-SEARCH(\">\",'CFR - XML import'!$A155,1)-2)))","v":0},{"$f":"IF(ISERROR(FIND(BX$3,'CFR - XML import'!$A155)),0,VALUE(MID('CFR - XML import'!$A155,SEARCH(\">\",'CFR - XML import'!$A155,1)+1,SEARCH(\"/\",'CFR - XML import'!$A155,1)-SEARCH(\">\",'CFR - XML import'!$A155,1)-2)))","v":0},{"$f":"IF(ISERROR(FIND(BY$3,'CFR - XML import'!$A155)),0,VALUE(MID('CFR - XML import'!$A155,SEARCH(\">\",'CFR - XML import'!$A155,1)+1,SEARCH(\"/\",'CFR - XML import'!$A155,1)-SEARCH(\">\",'CFR - XML import'!$A155,1)-2)))","v":0},{"$f":"IF(ISERROR(FIND(BZ$3,'CFR - XML import'!$A155)),0,VALUE(MID('CFR - XML import'!$A155,SEARCH(\">\",'CFR - XML import'!$A155,1)+1,SEARCH(\"/\",'CFR - XML import'!$A155,1)-SEARCH(\">\",'CFR - XML import'!$A155,1)-2)))","v":0},null,null,null,null,null,null,{"$f":"IF(ISERROR(IF(MID('CFR - XML import'!$A155,LEN($CF$4)+1,LEN('CFR - XML import'!$A155)-(2*LEN($CF$4)+1))=\"RMMS\",1,IF(MID('CFR - XML import'!$A155,LEN(\"    <InputSystem>\")+1,LEN('CFR - XML import'!$A155)-(LEN(\"    <InputSystem>\")+LEN($CF$4)+1))=\"SIMS\",2,0))),0,IF(MID('CFR - XML import'!$A155,LEN($CF$4)+1,LEN('CFR - XML import'!$A155)-(2*LEN($CF$4)+1))=\"RMMS\",1,IF(MID('CFR - XML import'!$A155,LEN(\"    <InputSystem>\")+1,LEN('CFR - XML import'!$A155)-(LEN(\"    <InputSystem>\")+LEN($CF$4)+1))=\"SIMS\",2,0)))","v":0},{"$f":"IF(ISERROR(FIND(CH$3,'CFR - XML import'!$A155)),0,MID('CFR - XML import'!$A155,SEARCH(\">\",'CFR - XML import'!$A155,1)+1,SEARCH(\"/\",'CFR - XML import'!$A155,1)-SEARCH(\">\",'CFR - XML import'!$A155,1)-2))","v":0},{"$f":"IF(ISERROR(FIND(CI$3,'CFR - XML import'!$A155)),0,MID('CFR - XML import'!$A155,SEARCH(\">\",'CFR - XML import'!$A155,1)+1,SEARCH(\"/\",'CFR - XML import'!$A155,1)-SEARCH(\">\",'CFR - XML import'!$A155,1)-2))","v":0},{"$f":"IF(ISERROR(FIND(CJ$3,'CFR - XML import'!$A155)),0,MID('CFR - XML import'!$A155,SEARCH(\">\",'CFR - XML import'!$A155,1)+1,SEARCH(\"/\",'CFR - XML import'!$A155,1)-SEARCH(\">\",'CFR - XML import'!$A155,1)-2))","v":0},{"$f":"IF(ISERROR(FIND(CK$3,'CFR - XML import'!$A155)),0,MID('CFR - XML import'!$A155,SEARCH(\">\",'CFR - XML import'!$A155,1)+1,SEARCH(\"/\",'CFR - XML import'!$A155,1)-SEARCH(\">\",'CFR - XML import'!$A155,1)-2))","v":0},{"$f":"IF(ISERROR(FIND(CL$3,'CFR - XML import'!$A155)),0,MID('CFR - XML import'!$A155,SEARCH(\">\",'CFR - XML import'!$A155,1)+1,SEARCH(\"/\",'CFR - XML import'!$A155,1)-SEARCH(\">\",'CFR - XML import'!$A155,1)-2))","v":0}]
[{"$f":"IF(AND('CFR - XML import'!A156<>\"\",LEFT('CFR - XML import'!A156,1)<>\"<\",LEFT('CFR - XML import'!A156,3)<>\"  <\",LEFT('CFR - XML import'!A156,5)<>\"    <\",LEFT('CFR - XML import'!A156,7)<>\"      <\",LEFT('CFR - XML import'!A156,9)<>\"        <\",$B$1=\"SIMS\"),'CFR - XML import'!A156,IF(AND(LEFT('CFR - XML import'!A156,9)=\"<Details>\",$B$1=\"RM\"),'CFR - XML import'!A156,\"\"))","v":""},{"$f":"IF(ISERROR(FIND(B$3,'CFR - XML import'!$A156)),0,VALUE(MID('CFR - XML import'!$A156,SEARCH(\">\",'CFR - XML import'!$A156,1)+1,SEARCH(\"/\",'CFR - XML import'!$A156,1)-SEARCH(\">\",'CFR - XML import'!$A156,1)-2)))","v":0},null,{"$f":"IF(ISERROR(FIND(D$3,'CFR - XML import'!$A156)),0,MID('CFR - XML import'!$A156,SEARCH(\">\",'CFR - XML import'!$A156,1)+1,SEARCH(\"/\",'CFR - XML import'!$A156,1)-SEARCH(\">\",'CFR - XML import'!$A156,1)-2))","v":0},{"$f":"IF(ISERROR(FIND(E$3,'CFR - XML import'!$A156)),0,MID('CFR - XML import'!$A156,SEARCH(\">\",'CFR - XML import'!$A156,1)+1,SEARCH(\"/\",'CFR - XML import'!$A156,1)-SEARCH(\">\",'CFR - XML import'!$A156,1)-2))","v":0},{"$f":"IF($B$1=\"SIMS\",IF(ISERROR(FIND(F$3,'CFR - XML import'!$A156)),0,VALUE(MID('CFR - XML import'!$A156,15,10))),IF(ISERROR(FIND(F$3,'CFR - XML import'!$A156)),0,VALUE(MID('CFR - XML import'!$A156,11,10))))","v":"00:00:00"},{"$f":"IF(ISERROR(FIND(G$3,'CFR - XML import'!$A156)),0,VALUE(MID('CFR - XML import'!$A156,SEARCH(\">\",'CFR - XML import'!$A156,1)+1,SEARCH(\"/\",'CFR - XML import'!$A156,1)-SEARCH(\">\",'CFR - XML import'!$A156,1)-2)))","v":0},{"$f":"IF(ISERROR(FIND(H$3,'CFR - XML import'!$A156)),0,VALUE(MID('CFR - XML import'!$A156,SEARCH(\">\",'CFR - XML import'!$A156,1)+1,SEARCH(\"/\",'CFR - XML import'!$A156,1)-SEARCH(\">\",'CFR - XML import'!$A156,1)-2)))","v":0},{"$f":"IF(ISERROR(FIND(I$3,'CFR - XML import'!$A156)),0,VALUE(MID('CFR - XML import'!$A156,SEARCH(\">\",'CFR - XML import'!$A156,1)+1,SEARCH(\"/\",'CFR - XML import'!$A156,1)-SEARCH(\">\",'CFR - XML import'!$A156,1)-2)))","v":0},{"$f":"IF(ISERROR(FIND(J$3,'CFR - XML import'!$A156)),0,VALUE(MID('CFR - XML import'!$A156,SEARCH(\">\",'CFR - XML import'!$A156,1)+1,SEARCH(\"/\",'CFR - XML import'!$A156,1)-SEARCH(\">\",'CFR - XML import'!$A156,1)-2)))","v":0},{"$f":"IF(ISERROR(FIND(K$3,'CFR - XML import'!$A156)),0,VALUE(MID('CFR - XML import'!$A156,SEARCH(\">\",'CFR - XML import'!$A156,1)+1,SEARCH(\"/\",'CFR - XML import'!$A156,1)-SEARCH(\">\",'CFR - XML import'!$A156,1)-2)))","v":0},{"$f":"IF(ISERROR(FIND(L$3,'CFR - XML import'!$A156)),0,VALUE(MID('CFR - XML import'!$A156,SEARCH(\">\",'CFR - XML import'!$A156,1)+1,SEARCH(\"/\",'CFR - XML import'!$A156,1)-SEARCH(\">\",'CFR - XML import'!$A156,1)-2)))","v":0},{"$f":"IF(ISERROR(FIND(M$3,'CFR - XML import'!$A156)),0,VALUE(MID('CFR - XML import'!$A156,SEARCH(\">\",'CFR - XML import'!$A156,1)+1,SEARCH(\"/\",'CFR - XML import'!$A156,1)-SEARCH(\">\",'CFR - XML import'!$A156,1)-2)))","v":0},{"$f":"IF(ISERROR(FIND(N$3,'CFR - XML import'!$A156)),0,VALUE(MID('CFR - XML import'!$A156,SEARCH(\">\",'CFR - XML import'!$A156,1)+1,SEARCH(\"/\",'CFR - XML import'!$A156,1)-SEARCH(\">\",'CFR - XML import'!$A156,1)-2)))","v":0},{"$f":"IF(ISERROR(FIND(O$3,'CFR - XML import'!$A156)),0,VALUE(MID('CFR - XML import'!$A156,SEARCH(\">\",'CFR - XML import'!$A156,1)+1,SEARCH(\"/\",'CFR - XML import'!$A156,1)-SEARCH(\">\",'CFR - XML import'!$A156,1)-2)))","v":0},{"$f":"IF(ISERROR(FIND(P$3,'CFR - XML import'!$A156)),0,VALUE(MID('CFR - XML import'!$A156,SEARCH(\">\",'CFR - XML import'!$A156,1)+1,SEARCH(\"/\",'CFR - XML import'!$A156,1)-SEARCH(\">\",'CFR - XML import'!$A156,1)-2)))","v":0},{"$f":"IF(ISERROR(FIND(Q$3,'CFR - XML import'!$A156)),0,VALUE(MID('CFR - XML import'!$A156,SEARCH(\">\",'CFR - XML import'!$A156,1)+1,SEARCH(\"/\",'CFR - XML import'!$A156,1)-SEARCH(\">\",'CFR - XML import'!$A156,1)-2)))","v":0},{"$f":"IF(ISERROR(FIND(R$3,'CFR - XML import'!$A156)),0,VALUE(MID('CFR - XML import'!$A156,SEARCH(\">\",'CFR - XML import'!$A156,1)+1,SEARCH(\"/\",'CFR - XML import'!$A156,1)-SEARCH(\">\",'CFR - XML import'!$A156,1)-2)))","v":0},{"$f":"IF(ISERROR(FIND(S$3,'CFR - XML import'!$A156)),0,VALUE(MID('CFR - XML import'!$A156,SEARCH(\">\",'CFR - XML import'!$A156,1)+1,SEARCH(\"/\",'CFR - XML import'!$A156,1)-SEARCH(\">\",'CFR - XML import'!$A156,1)-2)))","v":0},{"$f":"IF(ISERROR(FIND(T$3,'CFR - XML import'!$A156)),0,VALUE(MID('CFR - XML import'!$A156,SEARCH(\">\",'CFR - XML import'!$A156,1)+1,SEARCH(\"/\",'CFR - XML import'!$A156,1)-SEARCH(\">\",'CFR - XML import'!$A156,1)-2)))","v":0},{"$f":"IF(ISERROR(FIND(U$3,'CFR - XML import'!$A156)),0,VALUE(MID('CFR - XML import'!$A156,SEARCH(\">\",'CFR - XML import'!$A156,1)+1,SEARCH(\"/\",'CFR - XML import'!$A156,1)-SEARCH(\">\",'CFR - XML import'!$A156,1)-2)))","v":0},{"$f":"IF(ISERROR(FIND(V$3,'CFR - XML import'!$A156)),0,VALUE(MID('CFR - XML import'!$A156,SEARCH(\">\",'CFR - XML import'!$A156,1)+1,SEARCH(\"/\",'CFR - XML import'!$A156,1)-SEARCH(\">\",'CFR - XML import'!$A156,1)-2)))","v":0},{"$f":"IF(ISERROR(FIND(W$3,'CFR - XML import'!$A156)),0,VALUE(MID('CFR - XML import'!$A156,SEARCH(\">\",'CFR - XML import'!$A156,1)+1,SEARCH(\"/\",'CFR - XML import'!$A156,1)-SEARCH(\">\",'CFR - XML import'!$A156,1)-2)))","v":0},null,{"$f":"IF(ISERROR(FIND(Y$3,'CFR - XML import'!$A156)),0,VALUE(MID('CFR - XML import'!$A156,SEARCH(\">\",'CFR - XML import'!$A156,1)+1,SEARCH(\"/\",'CFR - XML import'!$A156,1)-SEARCH(\">\",'CFR - XML import'!$A156,1)-2)))","v":0},{"$f":"IF(ISERROR(FIND(Z$3,'CFR - XML import'!$A156)),0,VALUE(MID('CFR - XML import'!$A156,SEARCH(\">\",'CFR - XML import'!$A156,1)+1,SEARCH(\"/\",'CFR - XML import'!$A156,1)-SEARCH(\">\",'CFR - XML import'!$A156,1)-2)))","v":0},{"$f":"IF(ISERROR(FIND(AA$3,'CFR - XML import'!$A156)),0,VALUE(MID('CFR - XML import'!$A156,SEARCH(\">\",'CFR - XML import'!$A156,1)+1,SEARCH(\"/\",'CFR - XML import'!$A156,1)-SEARCH(\">\",'CFR - XML import'!$A156,1)-2)))","v":0},{"$f":"IF(ISERROR(FIND(AB$3,'CFR - XML import'!$A156)),0,VALUE(MID('CFR - XML import'!$A156,SEARCH(\">\",'CFR - XML import'!$A156,1)+1,SEARCH(\"/\",'CFR - XML import'!$A156,1)-SEARCH(\">\",'CFR - XML import'!$A156,1)-2)))","v":0},{"$f":"IF(ISERROR(FIND(AC$3,'CFR - XML import'!$A156)),0,VALUE(MID('CFR - XML import'!$A156,SEARCH(\">\",'CFR - XML import'!$A156,1)+1,SEARCH(\"/\",'CFR - XML import'!$A156,1)-SEARCH(\">\",'CFR - XML import'!$A156,1)-2)))","v":0},{"$f":"IF(ISERROR(FIND(AD$3,'CFR - XML import'!$A156)),0,VALUE(MID('CFR - XML import'!$A156,SEARCH(\">\",'CFR - XML import'!$A156,1)+1,SEARCH(\"/\",'CFR - XML import'!$A156,1)-SEARCH(\">\",'CFR - XML import'!$A156,1)-2)))","v":0},{"$f":"IF(ISERROR(FIND(AE$3,'CFR - XML import'!$A156)),0,VALUE(MID('CFR - XML import'!$A156,SEARCH(\">\",'CFR - XML import'!$A156,1)+1,SEARCH(\"/\",'CFR - XML import'!$A156,1)-SEARCH(\">\",'CFR - XML import'!$A156,1)-2)))","v":0},{"$f":"IF(ISERROR(FIND(AF$3,'CFR - XML import'!$A156)),0,VALUE(MID('CFR - XML import'!$A156,SEARCH(\">\",'CFR - XML import'!$A156,1)+1,SEARCH(\"/\",'CFR - XML import'!$A156,1)-SEARCH(\">\",'CFR - XML import'!$A156,1)-2)))","v":0},{"$f":"IF(ISERROR(FIND(AG$3,'CFR - XML import'!$A156)),0,VALUE(MID('CFR - XML import'!$A156,SEARCH(\">\",'CFR - XML import'!$A156,1)+1,SEARCH(\"/\",'CFR - XML import'!$A156,1)-SEARCH(\">\",'CFR - XML import'!$A156,1)-2)))","v":0},{"$f":"IF(ISERROR(FIND(AH$3,'CFR - XML import'!$A156)),0,VALUE(MID('CFR - XML import'!$A156,SEARCH(\">\",'CFR - XML import'!$A156,1)+1,SEARCH(\"/\",'CFR - XML import'!$A156,1)-SEARCH(\">\",'CFR - XML import'!$A156,1)-2)))","v":0},{"$f":"IF(ISERROR(FIND(AI$3,'CFR - XML import'!$A156)),0,VALUE(MID('CFR - XML import'!$A156,SEARCH(\">\",'CFR - XML import'!$A156,1)+1,SEARCH(\"/\",'CFR - XML import'!$A156,1)-SEARCH(\">\",'CFR - XML import'!$A156,1)-2)))","v":0},{"$f":"IF(ISERROR(FIND(AJ$3,'CFR - XML import'!$A156)),0,VALUE(MID('CFR - XML import'!$A156,SEARCH(\">\",'CFR - XML import'!$A156,1)+1,SEARCH(\"/\",'CFR - XML import'!$A156,1)-SEARCH(\">\",'CFR - XML import'!$A156,1)-2)))","v":0},{"$f":"IF(ISERROR(FIND(AK$3,'CFR - XML import'!$A156)),0,VALUE(MID('CFR - XML import'!$A156,SEARCH(\">\",'CFR - XML import'!$A156,1)+1,SEARCH(\"/\",'CFR - XML import'!$A156,1)-SEARCH(\">\",'CFR - XML import'!$A156,1)-2)))","v":0},{"$f":"IF(ISERROR(FIND(AL$3,'CFR - XML import'!$A156)),0,VALUE(MID('CFR - XML import'!$A156,SEARCH(\">\",'CFR - XML import'!$A156,1)+1,SEARCH(\"/\",'CFR - XML import'!$A156,1)-SEARCH(\">\",'CFR - XML import'!$A156,1)-2)))","v":0},{"$f":"IF(ISERROR(FIND(AM$3,'CFR - XML import'!$A156)),0,VALUE(MID('CFR - XML import'!$A156,SEARCH(\">\",'CFR - XML import'!$A156,1)+1,SEARCH(\"/\",'CFR - XML import'!$A156,1)-SEARCH(\">\",'CFR - XML import'!$A156,1)-2)))","v":0},{"$f":"IF(ISERROR(FIND(AN$3,'CFR - XML import'!$A156)),0,VALUE(MID('CFR - XML import'!$A156,SEARCH(\">\",'CFR - XML import'!$A156,1)+1,SEARCH(\"/\",'CFR - XML import'!$A156,1)-SEARCH(\">\",'CFR - XML import'!$A156,1)-2)))","v":0},{"$f":"IF(ISERROR(FIND(AO$3,'CFR - XML import'!$A156)),0,VALUE(MID('CFR - XML import'!$A156,SEARCH(\">\",'CFR - XML import'!$A156,1)+1,SEARCH(\"/\",'CFR - XML import'!$A156,1)-SEARCH(\">\",'CFR - XML import'!$A156,1)-2)))","v":0},{"$f":"IF(ISERROR(FIND(AP$3,'CFR - XML import'!$A156)),0,VALUE(MID('CFR - XML import'!$A156,SEARCH(\">\",'CFR - XML import'!$A156,1)+1,SEARCH(\"/\",'CFR - XML import'!$A156,1)-SEARCH(\">\",'CFR - XML import'!$A156,1)-2)))","v":0},{"$f":"IF(ISERROR(FIND(AQ$3,'CFR - XML import'!$A156)),0,VALUE(MID('CFR - XML import'!$A156,SEARCH(\">\",'CFR - XML import'!$A156,1)+1,SEARCH(\"/\",'CFR - XML import'!$A156,1)-SEARCH(\">\",'CFR - XML import'!$A156,1)-2)))","v":0},{"$f":"IF(ISERROR(FIND(AR$3,'CFR - XML import'!$A156)),0,VALUE(MID('CFR - XML import'!$A156,SEARCH(\">\",'CFR - XML import'!$A156,1)+1,SEARCH(\"/\",'CFR - XML import'!$A156,1)-SEARCH(\">\",'CFR - XML import'!$A156,1)-2)))","v":0},{"$f":"IF(ISERROR(FIND(AS$3,'CFR - XML import'!$A156)),0,VALUE(MID('CFR - XML import'!$A156,SEARCH(\">\",'CFR - XML import'!$A156,1)+1,SEARCH(\"/\",'CFR - XML import'!$A156,1)-SEARCH(\">\",'CFR - XML import'!$A156,1)-2)))","v":0},{"$f":"IF(ISERROR(FIND(AT$3,'CFR - XML import'!$A156)),0,VALUE(MID('CFR - XML import'!$A156,SEARCH(\">\",'CFR - XML import'!$A156,1)+1,SEARCH(\"/\",'CFR - XML import'!$A156,1)-SEARCH(\">\",'CFR - XML import'!$A156,1)-2)))","v":0},{"$f":"IF(ISERROR(FIND(AU$3,'CFR - XML import'!$A156)),0,VALUE(MID('CFR - XML import'!$A156,SEARCH(\">\",'CFR - XML import'!$A156,1)+1,SEARCH(\"/\",'CFR - XML import'!$A156,1)-SEARCH(\">\",'CFR - XML import'!$A156,1)-2)))","v":0},{"$f":"IF(ISERROR(FIND(AV$3,'CFR - XML import'!$A156)),0,VALUE(MID('CFR - XML import'!$A156,SEARCH(\">\",'CFR - XML import'!$A156,1)+1,SEARCH(\"/\",'CFR - XML import'!$A156,1)-SEARCH(\">\",'CFR - XML import'!$A156,1)-2)))","v":0},{"$f":"IF(ISERROR(FIND(AW$3,'CFR - XML import'!$A156)),0,VALUE(MID('CFR - XML import'!$A156,SEARCH(\">\",'CFR - XML import'!$A156,1)+1,SEARCH(\"/\",'CFR - XML import'!$A156,1)-SEARCH(\">\",'CFR - XML import'!$A156,1)-2)))","v":0},{"$f":"IF(ISERROR(FIND(AX$3,'CFR - XML import'!$A156)),0,VALUE(MID('CFR - XML import'!$A156,SEARCH(\">\",'CFR - XML import'!$A156,1)+1,SEARCH(\"/\",'CFR - XML import'!$A156,1)-SEARCH(\">\",'CFR - XML import'!$A156,1)-2)))","v":0},{"$f":"IF(ISERROR(FIND(AY$3,'CFR - XML import'!$A156)),0,VALUE(MID('CFR - XML import'!$A156,SEARCH(\">\",'CFR - XML import'!$A156,1)+1,SEARCH(\"/\",'CFR - XML import'!$A156,1)-SEARCH(\">\",'CFR - XML import'!$A156,1)-2)))","v":0},{"$f":"IF(ISERROR(FIND(AZ$3,'CFR - XML import'!$A156)),0,VALUE(MID('CFR - XML import'!$A156,SEARCH(\">\",'CFR - XML import'!$A156,1)+1,SEARCH(\"/\",'CFR - XML import'!$A156,1)-SEARCH(\">\",'CFR - XML import'!$A156,1)-2)))","v":0},{"$f":"IF(ISERROR(FIND(BA$3,'CFR - XML import'!$A156)),0,VALUE(MID('CFR - XML import'!$A156,SEARCH(\">\",'CFR - XML import'!$A156,1)+1,SEARCH(\"/\",'CFR - XML import'!$A156,1)-SEARCH(\">\",'CFR - XML import'!$A156,1)-2)))","v":0},{"$f":"IF(ISERROR(FIND(BB$3,'CFR - XML import'!$A156)),0,VALUE(MID('CFR - XML import'!$A156,SEARCH(\">\",'CFR - XML import'!$A156,1)+1,SEARCH(\"/\",'CFR - XML import'!$A156,1)-SEARCH(\">\",'CFR - XML import'!$A156,1)-2)))","v":0},{"$f":"IF(ISERROR(FIND(BC$3,'CFR - XML import'!$A156)),0,VALUE(MID('CFR - XML import'!$A156,SEARCH(\">\",'CFR - XML import'!$A156,1)+1,SEARCH(\"/\",'CFR - XML import'!$A156,1)-SEARCH(\">\",'CFR - XML import'!$A156,1)-2)))","v":0},{"$f":"IF(ISERROR(FIND(BD$3,'CFR - XML import'!$A156)),0,VALUE(MID('CFR - XML import'!$A156,SEARCH(\">\",'CFR - XML import'!$A156,1)+1,SEARCH(\"/\",'CFR - XML import'!$A156,1)-SEARCH(\">\",'CFR - XML import'!$A156,1)-2)))","v":0},{"$f":"IF(ISERROR(FIND(BE$3,'CFR - XML import'!$A156)),0,VALUE(MID('CFR - XML import'!$A156,SEARCH(\">\",'CFR - XML import'!$A156,1)+1,SEARCH(\"/\",'CFR - XML import'!$A156,1)-SEARCH(\">\",'CFR - XML import'!$A156,1)-2)))","v":0},{"$f":"IF(ISERROR(FIND(BF$3,'CFR - XML import'!$A156)),0,VALUE(MID('CFR - XML import'!$A156,SEARCH(\">\",'CFR - XML import'!$A156,1)+1,SEARCH(\"/\",'CFR - XML import'!$A156,1)-SEARCH(\">\",'CFR - XML import'!$A156,1)-2)))","v":0},{"$f":"IF(ISERROR(FIND(BG$3,'CFR - XML import'!$A156)),0,VALUE(MID('CFR - XML import'!$A156,SEARCH(\">\",'CFR - XML import'!$A156,1)+1,SEARCH(\"/\",'CFR - XML import'!$A156,1)-SEARCH(\">\",'CFR - XML import'!$A156,1)-2)))","v":0},{"$f":"IF(ISERROR(FIND(BH$3,'CFR - XML import'!$A156)),0,VALUE(MID('CFR - XML import'!$A156,SEARCH(\">\",'CFR - XML import'!$A156,1)+1,SEARCH(\"/\",'CFR - XML import'!$A156,1)-SEARCH(\">\",'CFR - XML import'!$A156,1)-2)))","v":0},{"$f":"IF(ISERROR(FIND(BI$3,'CFR - XML import'!$A156)),0,VALUE(MID('CFR - XML import'!$A156,SEARCH(\">\",'CFR - XML import'!$A156,1)+1,SEARCH(\"/\",'CFR - XML import'!$A156,1)-SEARCH(\">\",'CFR - XML import'!$A156,1)-2)))","v":0},{"$f":"IF(ISERROR(FIND(BJ$3,'CFR - XML import'!$A156)),0,VALUE(MID('CFR - XML import'!$A156,SEARCH(\">\",'CFR - XML import'!$A156,1)+1,SEARCH(\"/\",'CFR - XML import'!$A156,1)-SEARCH(\">\",'CFR - XML import'!$A156,1)-2)))","v":0},{"$f":"IF(ISERROR(FIND(BK$3,'CFR - XML import'!$A156)),0,VALUE(MID('CFR - XML import'!$A156,SEARCH(\">\",'CFR - XML import'!$A156,1)+1,SEARCH(\"/\",'CFR - XML import'!$A156,1)-SEARCH(\">\",'CFR - XML import'!$A156,1)-2)))","v":0},{"$f":"IF(ISERROR(FIND(BL$3,'CFR - XML import'!$A156)),0,VALUE(MID('CFR - XML import'!$A156,SEARCH(\">\",'CFR - XML import'!$A156,1)+1,SEARCH(\"/\",'CFR - XML import'!$A156,1)-SEARCH(\">\",'CFR - XML import'!$A156,1)-2)))","v":0},{"$f":"IF(ISERROR(FIND(BM$3,'CFR - XML import'!$A156)),0,VALUE(MID('CFR - XML import'!$A156,SEARCH(\">\",'CFR - XML import'!$A156,1)+1,SEARCH(\"/\",'CFR - XML import'!$A156,1)-SEARCH(\">\",'CFR - XML import'!$A156,1)-2)))","v":0},{"$f":"IF(ISERROR(FIND(BN$3,'CFR - XML import'!$A156)),0,VALUE(MID('CFR - XML import'!$A156,SEARCH(\">\",'CFR - XML import'!$A156,1)+1,SEARCH(\"/\",'CFR - XML import'!$A156,1)-SEARCH(\">\",'CFR - XML import'!$A156,1)-2)))","v":0},{"$f":"IF(ISERROR(FIND(BO$3,'CFR - XML import'!$A156)),0,VALUE(MID('CFR - XML import'!$A156,SEARCH(\">\",'CFR - XML import'!$A156,1)+1,SEARCH(\"/\",'CFR - XML import'!$A156,1)-SEARCH(\">\",'CFR - XML import'!$A156,1)-2)))","v":0},{"$f":"IF(ISERROR(FIND(BP$3,'CFR - XML import'!$A156)),0,VALUE(MID('CFR - XML import'!$A156,SEARCH(\">\",'CFR - XML import'!$A156,1)+1,SEARCH(\"/\",'CFR - XML import'!$A156,1)-SEARCH(\">\",'CFR - XML import'!$A156,1)-2)))","v":0},{"$f":"IF(ISERROR(FIND(BQ$3,'CFR - XML import'!$A156)),0,VALUE(MID('CFR - XML import'!$A156,SEARCH(\">\",'CFR - XML import'!$A156,1)+1,SEARCH(\"/\",'CFR - XML import'!$A156,1)-SEARCH(\">\",'CFR - XML import'!$A156,1)-2)))","v":0},{"$f":"IF(ISERROR(FIND(BR$3,'CFR - XML import'!$A156)),0,VALUE(MID('CFR - XML import'!$A156,SEARCH(\">\",'CFR - XML import'!$A156,1)+1,SEARCH(\"/\",'CFR - XML import'!$A156,1)-SEARCH(\">\",'CFR - XML import'!$A156,1)-2)))","v":0},{"$f":"IF(ISERROR(FIND(BS$3,'CFR - XML import'!$A156)),0,VALUE(MID('CFR - XML import'!$A156,SEARCH(\">\",'CFR - XML import'!$A156,1)+1,SEARCH(\"/\",'CFR - XML import'!$A156,1)-SEARCH(\">\",'CFR - XML import'!$A156,1)-2)))","v":0},{"$f":"IF(ISERROR(FIND(BT$3,'CFR - XML import'!$A156)),0,VALUE(MID('CFR - XML import'!$A156,SEARCH(\">\",'CFR - XML import'!$A156,1)+1,SEARCH(\"/\",'CFR - XML import'!$A156,1)-SEARCH(\">\",'CFR - XML import'!$A156,1)-2)))","v":0},{"$f":"IF(ISERROR(FIND(BU$3,'CFR - XML import'!$A156)),0,VALUE(MID('CFR - XML import'!$A156,SEARCH(\">\",'CFR - XML import'!$A156,1)+1,SEARCH(\"/\",'CFR - XML import'!$A156,1)-SEARCH(\">\",'CFR - XML import'!$A156,1)-2)))","v":0},{"$f":"IF(ISERROR(FIND(BV$3,'CFR - XML import'!$A156)),0,VALUE(MID('CFR - XML import'!$A156,SEARCH(\">\",'CFR - XML import'!$A156,1)+1,SEARCH(\"/\",'CFR - XML import'!$A156,1)-SEARCH(\">\",'CFR - XML import'!$A156,1)-2)))","v":0},{"$f":"IF(ISERROR(FIND(BW$3,'CFR - XML import'!$A156)),0,VALUE(MID('CFR - XML import'!$A156,SEARCH(\">\",'CFR - XML import'!$A156,1)+1,SEARCH(\"/\",'CFR - XML import'!$A156,1)-SEARCH(\">\",'CFR - XML import'!$A156,1)-2)))","v":0},{"$f":"IF(ISERROR(FIND(BX$3,'CFR - XML import'!$A156)),0,VALUE(MID('CFR - XML import'!$A156,SEARCH(\">\",'CFR - XML import'!$A156,1)+1,SEARCH(\"/\",'CFR - XML import'!$A156,1)-SEARCH(\">\",'CFR - XML import'!$A156,1)-2)))","v":0},{"$f":"IF(ISERROR(FIND(BY$3,'CFR - XML import'!$A156)),0,VALUE(MID('CFR - XML import'!$A156,SEARCH(\">\",'CFR - XML import'!$A156,1)+1,SEARCH(\"/\",'CFR - XML import'!$A156,1)-SEARCH(\">\",'CFR - XML import'!$A156,1)-2)))","v":0},{"$f":"IF(ISERROR(FIND(BZ$3,'CFR - XML import'!$A156)),0,VALUE(MID('CFR - XML import'!$A156,SEARCH(\">\",'CFR - XML import'!$A156,1)+1,SEARCH(\"/\",'CFR - XML import'!$A156,1)-SEARCH(\">\",'CFR - XML import'!$A156,1)-2)))","v":0},null,null,null,null,null,null,{"$f":"IF(ISERROR(IF(MID('CFR - XML import'!$A156,LEN($CF$4)+1,LEN('CFR - XML import'!$A156)-(2*LEN($CF$4)+1))=\"RMMS\",1,IF(MID('CFR - XML import'!$A156,LEN(\"    <InputSystem>\")+1,LEN('CFR - XML import'!$A156)-(LEN(\"    <InputSystem>\")+LEN($CF$4)+1))=\"SIMS\",2,0))),0,IF(MID('CFR - XML import'!$A156,LEN($CF$4)+1,LEN('CFR - XML import'!$A156)-(2*LEN($CF$4)+1))=\"RMMS\",1,IF(MID('CFR - XML import'!$A156,LEN(\"    <InputSystem>\")+1,LEN('CFR - XML import'!$A156)-(LEN(\"    <InputSystem>\")+LEN($CF$4)+1))=\"SIMS\",2,0)))","v":0},{"$f":"IF(ISERROR(FIND(CH$3,'CFR - XML import'!$A156)),0,MID('CFR - XML import'!$A156,SEARCH(\">\",'CFR - XML import'!$A156,1)+1,SEARCH(\"/\",'CFR - XML import'!$A156,1)-SEARCH(\">\",'CFR - XML import'!$A156,1)-2))","v":0},{"$f":"IF(ISERROR(FIND(CI$3,'CFR - XML import'!$A156)),0,MID('CFR - XML import'!$A156,SEARCH(\">\",'CFR - XML import'!$A156,1)+1,SEARCH(\"/\",'CFR - XML import'!$A156,1)-SEARCH(\">\",'CFR - XML import'!$A156,1)-2))","v":0},{"$f":"IF(ISERROR(FIND(CJ$3,'CFR - XML import'!$A156)),0,MID('CFR - XML import'!$A156,SEARCH(\">\",'CFR - XML import'!$A156,1)+1,SEARCH(\"/\",'CFR - XML import'!$A156,1)-SEARCH(\">\",'CFR - XML import'!$A156,1)-2))","v":0},{"$f":"IF(ISERROR(FIND(CK$3,'CFR - XML import'!$A156)),0,MID('CFR - XML import'!$A156,SEARCH(\">\",'CFR - XML import'!$A156,1)+1,SEARCH(\"/\",'CFR - XML import'!$A156,1)-SEARCH(\">\",'CFR - XML import'!$A156,1)-2))","v":0},{"$f":"IF(ISERROR(FIND(CL$3,'CFR - XML import'!$A156)),0,MID('CFR - XML import'!$A156,SEARCH(\">\",'CFR - XML import'!$A156,1)+1,SEARCH(\"/\",'CFR - XML import'!$A156,1)-SEARCH(\">\",'CFR - XML import'!$A156,1)-2))","v":0}]
[{"$f":"IF(AND('CFR - XML import'!A157<>\"\",LEFT('CFR - XML import'!A157,1)<>\"<\",LEFT('CFR - XML import'!A157,3)<>\"  <\",LEFT('CFR - XML import'!A157,5)<>\"    <\",LEFT('CFR - XML import'!A157,7)<>\"      <\",LEFT('CFR - XML import'!A157,9)<>\"        <\",$B$1=\"SIMS\"),'CFR - XML import'!A157,IF(AND(LEFT('CFR - XML import'!A157,9)=\"<Details>\",$B$1=\"RM\"),'CFR - XML import'!A157,\"\"))","v":""},{"$f":"IF(ISERROR(FIND(B$3,'CFR - XML import'!$A157)),0,VALUE(MID('CFR - XML import'!$A157,SEARCH(\">\",'CFR - XML import'!$A157,1)+1,SEARCH(\"/\",'CFR - XML import'!$A157,1)-SEARCH(\">\",'CFR - XML import'!$A157,1)-2)))","v":0},null,{"$f":"IF(ISERROR(FIND(D$3,'CFR - XML import'!$A157)),0,MID('CFR - XML import'!$A157,SEARCH(\">\",'CFR - XML import'!$A157,1)+1,SEARCH(\"/\",'CFR - XML import'!$A157,1)-SEARCH(\">\",'CFR - XML import'!$A157,1)-2))","v":0},{"$f":"IF(ISERROR(FIND(E$3,'CFR - XML import'!$A157)),0,MID('CFR - XML import'!$A157,SEARCH(\">\",'CFR - XML import'!$A157,1)+1,SEARCH(\"/\",'CFR - XML import'!$A157,1)-SEARCH(\">\",'CFR - XML import'!$A157,1)-2))","v":0},{"$f":"IF($B$1=\"SIMS\",IF(ISERROR(FIND(F$3,'CFR - XML import'!$A157)),0,VALUE(MID('CFR - XML import'!$A157,15,10))),IF(ISERROR(FIND(F$3,'CFR - XML import'!$A157)),0,VALUE(MID('CFR - XML import'!$A157,11,10))))","v":"00:00:00"},{"$f":"IF(ISERROR(FIND(G$3,'CFR - XML import'!$A157)),0,VALUE(MID('CFR - XML import'!$A157,SEARCH(\">\",'CFR - XML import'!$A157,1)+1,SEARCH(\"/\",'CFR - XML import'!$A157,1)-SEARCH(\">\",'CFR - XML import'!$A157,1)-2)))","v":0},{"$f":"IF(ISERROR(FIND(H$3,'CFR - XML import'!$A157)),0,VALUE(MID('CFR - XML import'!$A157,SEARCH(\">\",'CFR - XML import'!$A157,1)+1,SEARCH(\"/\",'CFR - XML import'!$A157,1)-SEARCH(\">\",'CFR - XML import'!$A157,1)-2)))","v":0},{"$f":"IF(ISERROR(FIND(I$3,'CFR - XML import'!$A157)),0,VALUE(MID('CFR - XML import'!$A157,SEARCH(\">\",'CFR - XML import'!$A157,1)+1,SEARCH(\"/\",'CFR - XML import'!$A157,1)-SEARCH(\">\",'CFR - XML import'!$A157,1)-2)))","v":0},{"$f":"IF(ISERROR(FIND(J$3,'CFR - XML import'!$A157)),0,VALUE(MID('CFR - XML import'!$A157,SEARCH(\">\",'CFR - XML import'!$A157,1)+1,SEARCH(\"/\",'CFR - XML import'!$A157,1)-SEARCH(\">\",'CFR - XML import'!$A157,1)-2)))","v":0},{"$f":"IF(ISERROR(FIND(K$3,'CFR - XML import'!$A157)),0,VALUE(MID('CFR - XML import'!$A157,SEARCH(\">\",'CFR - XML import'!$A157,1)+1,SEARCH(\"/\",'CFR - XML import'!$A157,1)-SEARCH(\">\",'CFR - XML import'!$A157,1)-2)))","v":0},{"$f":"IF(ISERROR(FIND(L$3,'CFR - XML import'!$A157)),0,VALUE(MID('CFR - XML import'!$A157,SEARCH(\">\",'CFR - XML import'!$A157,1)+1,SEARCH(\"/\",'CFR - XML import'!$A157,1)-SEARCH(\">\",'CFR - XML import'!$A157,1)-2)))","v":0},{"$f":"IF(ISERROR(FIND(M$3,'CFR - XML import'!$A157)),0,VALUE(MID('CFR - XML import'!$A157,SEARCH(\">\",'CFR - XML import'!$A157,1)+1,SEARCH(\"/\",'CFR - XML import'!$A157,1)-SEARCH(\">\",'CFR - XML import'!$A157,1)-2)))","v":0},{"$f":"IF(ISERROR(FIND(N$3,'CFR - XML import'!$A157)),0,VALUE(MID('CFR - XML import'!$A157,SEARCH(\">\",'CFR - XML import'!$A157,1)+1,SEARCH(\"/\",'CFR - XML import'!$A157,1)-SEARCH(\">\",'CFR - XML import'!$A157,1)-2)))","v":0},{"$f":"IF(ISERROR(FIND(O$3,'CFR - XML import'!$A157)),0,VALUE(MID('CFR - XML import'!$A157,SEARCH(\">\",'CFR - XML import'!$A157,1)+1,SEARCH(\"/\",'CFR - XML import'!$A157,1)-SEARCH(\">\",'CFR - XML import'!$A157,1)-2)))","v":0},{"$f":"IF(ISERROR(FIND(P$3,'CFR - XML import'!$A157)),0,VALUE(MID('CFR - XML import'!$A157,SEARCH(\">\",'CFR - XML import'!$A157,1)+1,SEARCH(\"/\",'CFR - XML import'!$A157,1)-SEARCH(\">\",'CFR - XML import'!$A157,1)-2)))","v":0},{"$f":"IF(ISERROR(FIND(Q$3,'CFR - XML import'!$A157)),0,VALUE(MID('CFR - XML import'!$A157,SEARCH(\">\",'CFR - XML import'!$A157,1)+1,SEARCH(\"/\",'CFR - XML import'!$A157,1)-SEARCH(\">\",'CFR - XML import'!$A157,1)-2)))","v":0},{"$f":"IF(ISERROR(FIND(R$3,'CFR - XML import'!$A157)),0,VALUE(MID('CFR - XML import'!$A157,SEARCH(\">\",'CFR - XML import'!$A157,1)+1,SEARCH(\"/\",'CFR - XML import'!$A157,1)-SEARCH(\">\",'CFR - XML import'!$A157,1)-2)))","v":0},{"$f":"IF(ISERROR(FIND(S$3,'CFR - XML import'!$A157)),0,VALUE(MID('CFR - XML import'!$A157,SEARCH(\">\",'CFR - XML import'!$A157,1)+1,SEARCH(\"/\",'CFR - XML import'!$A157,1)-SEARCH(\">\",'CFR - XML import'!$A157,1)-2)))","v":0},{"$f":"IF(ISERROR(FIND(T$3,'CFR - XML import'!$A157)),0,VALUE(MID('CFR - XML import'!$A157,SEARCH(\">\",'CFR - XML import'!$A157,1)+1,SEARCH(\"/\",'CFR - XML import'!$A157,1)-SEARCH(\">\",'CFR - XML import'!$A157,1)-2)))","v":0},{"$f":"IF(ISERROR(FIND(U$3,'CFR - XML import'!$A157)),0,VALUE(MID('CFR - XML import'!$A157,SEARCH(\">\",'CFR - XML import'!$A157,1)+1,SEARCH(\"/\",'CFR - XML import'!$A157,1)-SEARCH(\">\",'CFR - XML import'!$A157,1)-2)))","v":0},{"$f":"IF(ISERROR(FIND(V$3,'CFR - XML import'!$A157)),0,VALUE(MID('CFR - XML import'!$A157,SEARCH(\">\",'CFR - XML import'!$A157,1)+1,SEARCH(\"/\",'CFR - XML import'!$A157,1)-SEARCH(\">\",'CFR - XML import'!$A157,1)-2)))","v":0},{"$f":"IF(ISERROR(FIND(W$3,'CFR - XML import'!$A157)),0,VALUE(MID('CFR - XML import'!$A157,SEARCH(\">\",'CFR - XML import'!$A157,1)+1,SEARCH(\"/\",'CFR - XML import'!$A157,1)-SEARCH(\">\",'CFR - XML import'!$A157,1)-2)))","v":0},null,{"$f":"IF(ISERROR(FIND(Y$3,'CFR - XML import'!$A157)),0,VALUE(MID('CFR - XML import'!$A157,SEARCH(\">\",'CFR - XML import'!$A157,1)+1,SEARCH(\"/\",'CFR - XML import'!$A157,1)-SEARCH(\">\",'CFR - XML import'!$A157,1)-2)))","v":0},{"$f":"IF(ISERROR(FIND(Z$3,'CFR - XML import'!$A157)),0,VALUE(MID('CFR - XML import'!$A157,SEARCH(\">\",'CFR - XML import'!$A157,1)+1,SEARCH(\"/\",'CFR - XML import'!$A157,1)-SEARCH(\">\",'CFR - XML import'!$A157,1)-2)))","v":0},{"$f":"IF(ISERROR(FIND(AA$3,'CFR - XML import'!$A157)),0,VALUE(MID('CFR - XML import'!$A157,SEARCH(\">\",'CFR - XML import'!$A157,1)+1,SEARCH(\"/\",'CFR - XML import'!$A157,1)-SEARCH(\">\",'CFR - XML import'!$A157,1)-2)))","v":0},{"$f":"IF(ISERROR(FIND(AB$3,'CFR - XML import'!$A157)),0,VALUE(MID('CFR - XML import'!$A157,SEARCH(\">\",'CFR - XML import'!$A157,1)+1,SEARCH(\"/\",'CFR - XML import'!$A157,1)-SEARCH(\">\",'CFR - XML import'!$A157,1)-2)))","v":0},{"$f":"IF(ISERROR(FIND(AC$3,'CFR - XML import'!$A157)),0,VALUE(MID('CFR - XML import'!$A157,SEARCH(\">\",'CFR - XML import'!$A157,1)+1,SEARCH(\"/\",'CFR - XML import'!$A157,1)-SEARCH(\">\",'CFR - XML import'!$A157,1)-2)))","v":0},{"$f":"IF(ISERROR(FIND(AD$3,'CFR - XML import'!$A157)),0,VALUE(MID('CFR - XML import'!$A157,SEARCH(\">\",'CFR - XML import'!$A157,1)+1,SEARCH(\"/\",'CFR - XML import'!$A157,1)-SEARCH(\">\",'CFR - XML import'!$A157,1)-2)))","v":0},{"$f":"IF(ISERROR(FIND(AE$3,'CFR - XML import'!$A157)),0,VALUE(MID('CFR - XML import'!$A157,SEARCH(\">\",'CFR - XML import'!$A157,1)+1,SEARCH(\"/\",'CFR - XML import'!$A157,1)-SEARCH(\">\",'CFR - XML import'!$A157,1)-2)))","v":0},{"$f":"IF(ISERROR(FIND(AF$3,'CFR - XML import'!$A157)),0,VALUE(MID('CFR - XML import'!$A157,SEARCH(\">\",'CFR - XML import'!$A157,1)+1,SEARCH(\"/\",'CFR - XML import'!$A157,1)-SEARCH(\">\",'CFR - XML import'!$A157,1)-2)))","v":0},{"$f":"IF(ISERROR(FIND(AG$3,'CFR - XML import'!$A157)),0,VALUE(MID('CFR - XML import'!$A157,SEARCH(\">\",'CFR - XML import'!$A157,1)+1,SEARCH(\"/\",'CFR - XML import'!$A157,1)-SEARCH(\">\",'CFR - XML import'!$A157,1)-2)))","v":0},{"$f":"IF(ISERROR(FIND(AH$3,'CFR - XML import'!$A157)),0,VALUE(MID('CFR - XML import'!$A157,SEARCH(\">\",'CFR - XML import'!$A157,1)+1,SEARCH(\"/\",'CFR - XML import'!$A157,1)-SEARCH(\">\",'CFR - XML import'!$A157,1)-2)))","v":0},{"$f":"IF(ISERROR(FIND(AI$3,'CFR - XML import'!$A157)),0,VALUE(MID('CFR - XML import'!$A157,SEARCH(\">\",'CFR - XML import'!$A157,1)+1,SEARCH(\"/\",'CFR - XML import'!$A157,1)-SEARCH(\">\",'CFR - XML import'!$A157,1)-2)))","v":0},{"$f":"IF(ISERROR(FIND(AJ$3,'CFR - XML import'!$A157)),0,VALUE(MID('CFR - XML import'!$A157,SEARCH(\">\",'CFR - XML import'!$A157,1)+1,SEARCH(\"/\",'CFR - XML import'!$A157,1)-SEARCH(\">\",'CFR - XML import'!$A157,1)-2)))","v":0},{"$f":"IF(ISERROR(FIND(AK$3,'CFR - XML import'!$A157)),0,VALUE(MID('CFR - XML import'!$A157,SEARCH(\">\",'CFR - XML import'!$A157,1)+1,SEARCH(\"/\",'CFR - XML import'!$A157,1)-SEARCH(\">\",'CFR - XML import'!$A157,1)-2)))","v":0},{"$f":"IF(ISERROR(FIND(AL$3,'CFR - XML import'!$A157)),0,VALUE(MID('CFR - XML import'!$A157,SEARCH(\">\",'CFR - XML import'!$A157,1)+1,SEARCH(\"/\",'CFR - XML import'!$A157,1)-SEARCH(\">\",'CFR - XML import'!$A157,1)-2)))","v":0},{"$f":"IF(ISERROR(FIND(AM$3,'CFR - XML import'!$A157)),0,VALUE(MID('CFR - XML import'!$A157,SEARCH(\">\",'CFR - XML import'!$A157,1)+1,SEARCH(\"/\",'CFR - XML import'!$A157,1)-SEARCH(\">\",'CFR - XML import'!$A157,1)-2)))","v":0},{"$f":"IF(ISERROR(FIND(AN$3,'CFR - XML import'!$A157)),0,VALUE(MID('CFR - XML import'!$A157,SEARCH(\">\",'CFR - XML import'!$A157,1)+1,SEARCH(\"/\",'CFR - XML import'!$A157,1)-SEARCH(\">\",'CFR - XML import'!$A157,1)-2)))","v":0},{"$f":"IF(ISERROR(FIND(AO$3,'CFR - XML import'!$A157)),0,VALUE(MID('CFR - XML import'!$A157,SEARCH(\">\",'CFR - XML import'!$A157,1)+1,SEARCH(\"/\",'CFR - XML import'!$A157,1)-SEARCH(\">\",'CFR - XML import'!$A157,1)-2)))","v":0},{"$f":"IF(ISERROR(FIND(AP$3,'CFR - XML import'!$A157)),0,VALUE(MID('CFR - XML import'!$A157,SEARCH(\">\",'CFR - XML import'!$A157,1)+1,SEARCH(\"/\",'CFR - XML import'!$A157,1)-SEARCH(\">\",'CFR - XML import'!$A157,1)-2)))","v":0},{"$f":"IF(ISERROR(FIND(AQ$3,'CFR - XML import'!$A157)),0,VALUE(MID('CFR - XML import'!$A157,SEARCH(\">\",'CFR - XML import'!$A157,1)+1,SEARCH(\"/\",'CFR - XML import'!$A157,1)-SEARCH(\">\",'CFR - XML import'!$A157,1)-2)))","v":0},{"$f":"IF(ISERROR(FIND(AR$3,'CFR - XML import'!$A157)),0,VALUE(MID('CFR - XML import'!$A157,SEARCH(\">\",'CFR - XML import'!$A157,1)+1,SEARCH(\"/\",'CFR - XML import'!$A157,1)-SEARCH(\">\",'CFR - XML import'!$A157,1)-2)))","v":0},{"$f":"IF(ISERROR(FIND(AS$3,'CFR - XML import'!$A157)),0,VALUE(MID('CFR - XML import'!$A157,SEARCH(\">\",'CFR - XML import'!$A157,1)+1,SEARCH(\"/\",'CFR - XML import'!$A157,1)-SEARCH(\">\",'CFR - XML import'!$A157,1)-2)))","v":0},{"$f":"IF(ISERROR(FIND(AT$3,'CFR - XML import'!$A157)),0,VALUE(MID('CFR - XML import'!$A157,SEARCH(\">\",'CFR - XML import'!$A157,1)+1,SEARCH(\"/\",'CFR - XML import'!$A157,1)-SEARCH(\">\",'CFR - XML import'!$A157,1)-2)))","v":0},{"$f":"IF(ISERROR(FIND(AU$3,'CFR - XML import'!$A157)),0,VALUE(MID('CFR - XML import'!$A157,SEARCH(\">\",'CFR - XML import'!$A157,1)+1,SEARCH(\"/\",'CFR - XML import'!$A157,1)-SEARCH(\">\",'CFR - XML import'!$A157,1)-2)))","v":0},{"$f":"IF(ISERROR(FIND(AV$3,'CFR - XML import'!$A157)),0,VALUE(MID('CFR - XML import'!$A157,SEARCH(\">\",'CFR - XML import'!$A157,1)+1,SEARCH(\"/\",'CFR - XML import'!$A157,1)-SEARCH(\">\",'CFR - XML import'!$A157,1)-2)))","v":0},{"$f":"IF(ISERROR(FIND(AW$3,'CFR - XML import'!$A157)),0,VALUE(MID('CFR - XML import'!$A157,SEARCH(\">\",'CFR - XML import'!$A157,1)+1,SEARCH(\"/\",'CFR - XML import'!$A157,1)-SEARCH(\">\",'CFR - XML import'!$A157,1)-2)))","v":0},{"$f":"IF(ISERROR(FIND(AX$3,'CFR - XML import'!$A157)),0,VALUE(MID('CFR - XML import'!$A157,SEARCH(\">\",'CFR - XML import'!$A157,1)+1,SEARCH(\"/\",'CFR - XML import'!$A157,1)-SEARCH(\">\",'CFR - XML import'!$A157,1)-2)))","v":0},{"$f":"IF(ISERROR(FIND(AY$3,'CFR - XML import'!$A157)),0,VALUE(MID('CFR - XML import'!$A157,SEARCH(\">\",'CFR - XML import'!$A157,1)+1,SEARCH(\"/\",'CFR - XML import'!$A157,1)-SEARCH(\">\",'CFR - XML import'!$A157,1)-2)))","v":0},{"$f":"IF(ISERROR(FIND(AZ$3,'CFR - XML import'!$A157)),0,VALUE(MID('CFR - XML import'!$A157,SEARCH(\">\",'CFR - XML import'!$A157,1)+1,SEARCH(\"/\",'CFR - XML import'!$A157,1)-SEARCH(\">\",'CFR - XML import'!$A157,1)-2)))","v":0},{"$f":"IF(ISERROR(FIND(BA$3,'CFR - XML import'!$A157)),0,VALUE(MID('CFR - XML import'!$A157,SEARCH(\">\",'CFR - XML import'!$A157,1)+1,SEARCH(\"/\",'CFR - XML import'!$A157,1)-SEARCH(\">\",'CFR - XML import'!$A157,1)-2)))","v":0},{"$f":"IF(ISERROR(FIND(BB$3,'CFR - XML import'!$A157)),0,VALUE(MID('CFR - XML import'!$A157,SEARCH(\">\",'CFR - XML import'!$A157,1)+1,SEARCH(\"/\",'CFR - XML import'!$A157,1)-SEARCH(\">\",'CFR - XML import'!$A157,1)-2)))","v":0},{"$f":"IF(ISERROR(FIND(BC$3,'CFR - XML import'!$A157)),0,VALUE(MID('CFR - XML import'!$A157,SEARCH(\">\",'CFR - XML import'!$A157,1)+1,SEARCH(\"/\",'CFR - XML import'!$A157,1)-SEARCH(\">\",'CFR - XML import'!$A157,1)-2)))","v":0},{"$f":"IF(ISERROR(FIND(BD$3,'CFR - XML import'!$A157)),0,VALUE(MID('CFR - XML import'!$A157,SEARCH(\">\",'CFR - XML import'!$A157,1)+1,SEARCH(\"/\",'CFR - XML import'!$A157,1)-SEARCH(\">\",'CFR - XML import'!$A157,1)-2)))","v":0},{"$f":"IF(ISERROR(FIND(BE$3,'CFR - XML import'!$A157)),0,VALUE(MID('CFR - XML import'!$A157,SEARCH(\">\",'CFR - XML import'!$A157,1)+1,SEARCH(\"/\",'CFR - XML import'!$A157,1)-SEARCH(\">\",'CFR - XML import'!$A157,1)-2)))","v":0},{"$f":"IF(ISERROR(FIND(BF$3,'CFR - XML import'!$A157)),0,VALUE(MID('CFR - XML import'!$A157,SEARCH(\">\",'CFR - XML import'!$A157,1)+1,SEARCH(\"/\",'CFR - XML import'!$A157,1)-SEARCH(\">\",'CFR - XML import'!$A157,1)-2)))","v":0},{"$f":"IF(ISERROR(FIND(BG$3,'CFR - XML import'!$A157)),0,VALUE(MID('CFR - XML import'!$A157,SEARCH(\">\",'CFR - XML import'!$A157,1)+1,SEARCH(\"/\",'CFR - XML import'!$A157,1)-SEARCH(\">\",'CFR - XML import'!$A157,1)-2)))","v":0},{"$f":"IF(ISERROR(FIND(BH$3,'CFR - XML import'!$A157)),0,VALUE(MID('CFR - XML import'!$A157,SEARCH(\">\",'CFR - XML import'!$A157,1)+1,SEARCH(\"/\",'CFR - XML import'!$A157,1)-SEARCH(\">\",'CFR - XML import'!$A157,1)-2)))","v":0},{"$f":"IF(ISERROR(FIND(BI$3,'CFR - XML import'!$A157)),0,VALUE(MID('CFR - XML import'!$A157,SEARCH(\">\",'CFR - XML import'!$A157,1)+1,SEARCH(\"/\",'CFR - XML import'!$A157,1)-SEARCH(\">\",'CFR - XML import'!$A157,1)-2)))","v":0},{"$f":"IF(ISERROR(FIND(BJ$3,'CFR - XML import'!$A157)),0,VALUE(MID('CFR - XML import'!$A157,SEARCH(\">\",'CFR - XML import'!$A157,1)+1,SEARCH(\"/\",'CFR - XML import'!$A157,1)-SEARCH(\">\",'CFR - XML import'!$A157,1)-2)))","v":0},{"$f":"IF(ISERROR(FIND(BK$3,'CFR - XML import'!$A157)),0,VALUE(MID('CFR - XML import'!$A157,SEARCH(\">\",'CFR - XML import'!$A157,1)+1,SEARCH(\"/\",'CFR - XML import'!$A157,1)-SEARCH(\">\",'CFR - XML import'!$A157,1)-2)))","v":0},{"$f":"IF(ISERROR(FIND(BL$3,'CFR - XML import'!$A157)),0,VALUE(MID('CFR - XML import'!$A157,SEARCH(\">\",'CFR - XML import'!$A157,1)+1,SEARCH(\"/\",'CFR - XML import'!$A157,1)-SEARCH(\">\",'CFR - XML import'!$A157,1)-2)))","v":0},{"$f":"IF(ISERROR(FIND(BM$3,'CFR - XML import'!$A157)),0,VALUE(MID('CFR - XML import'!$A157,SEARCH(\">\",'CFR - XML import'!$A157,1)+1,SEARCH(\"/\",'CFR - XML import'!$A157,1)-SEARCH(\">\",'CFR - XML import'!$A157,1)-2)))","v":0},{"$f":"IF(ISERROR(FIND(BN$3,'CFR - XML import'!$A157)),0,VALUE(MID('CFR - XML import'!$A157,SEARCH(\">\",'CFR - XML import'!$A157,1)+1,SEARCH(\"/\",'CFR - XML import'!$A157,1)-SEARCH(\">\",'CFR - XML import'!$A157,1)-2)))","v":0},{"$f":"IF(ISERROR(FIND(BO$3,'CFR - XML import'!$A157)),0,VALUE(MID('CFR - XML import'!$A157,SEARCH(\">\",'CFR - XML import'!$A157,1)+1,SEARCH(\"/\",'CFR - XML import'!$A157,1)-SEARCH(\">\",'CFR - XML import'!$A157,1)-2)))","v":0},{"$f":"IF(ISERROR(FIND(BP$3,'CFR - XML import'!$A157)),0,VALUE(MID('CFR - XML import'!$A157,SEARCH(\">\",'CFR - XML import'!$A157,1)+1,SEARCH(\"/\",'CFR - XML import'!$A157,1)-SEARCH(\">\",'CFR - XML import'!$A157,1)-2)))","v":0},{"$f":"IF(ISERROR(FIND(BQ$3,'CFR - XML import'!$A157)),0,VALUE(MID('CFR - XML import'!$A157,SEARCH(\">\",'CFR - XML import'!$A157,1)+1,SEARCH(\"/\",'CFR - XML import'!$A157,1)-SEARCH(\">\",'CFR - XML import'!$A157,1)-2)))","v":0},{"$f":"IF(ISERROR(FIND(BR$3,'CFR - XML import'!$A157)),0,VALUE(MID('CFR - XML import'!$A157,SEARCH(\">\",'CFR - XML import'!$A157,1)+1,SEARCH(\"/\",'CFR - XML import'!$A157,1)-SEARCH(\">\",'CFR - XML import'!$A157,1)-2)))","v":0},{"$f":"IF(ISERROR(FIND(BS$3,'CFR - XML import'!$A157)),0,VALUE(MID('CFR - XML import'!$A157,SEARCH(\">\",'CFR - XML import'!$A157,1)+1,SEARCH(\"/\",'CFR - XML import'!$A157,1)-SEARCH(\">\",'CFR - XML import'!$A157,1)-2)))","v":0},{"$f":"IF(ISERROR(FIND(BT$3,'CFR - XML import'!$A157)),0,VALUE(MID('CFR - XML import'!$A157,SEARCH(\">\",'CFR - XML import'!$A157,1)+1,SEARCH(\"/\",'CFR - XML import'!$A157,1)-SEARCH(\">\",'CFR - XML import'!$A157,1)-2)))","v":0},{"$f":"IF(ISERROR(FIND(BU$3,'CFR - XML import'!$A157)),0,VALUE(MID('CFR - XML import'!$A157,SEARCH(\">\",'CFR - XML import'!$A157,1)+1,SEARCH(\"/\",'CFR - XML import'!$A157,1)-SEARCH(\">\",'CFR - XML import'!$A157,1)-2)))","v":0},{"$f":"IF(ISERROR(FIND(BV$3,'CFR - XML import'!$A157)),0,VALUE(MID('CFR - XML import'!$A157,SEARCH(\">\",'CFR - XML import'!$A157,1)+1,SEARCH(\"/\",'CFR - XML import'!$A157,1)-SEARCH(\">\",'CFR - XML import'!$A157,1)-2)))","v":0},{"$f":"IF(ISERROR(FIND(BW$3,'CFR - XML import'!$A157)),0,VALUE(MID('CFR - XML import'!$A157,SEARCH(\">\",'CFR - XML import'!$A157,1)+1,SEARCH(\"/\",'CFR - XML import'!$A157,1)-SEARCH(\">\",'CFR - XML import'!$A157,1)-2)))","v":0},{"$f":"IF(ISERROR(FIND(BX$3,'CFR - XML import'!$A157)),0,VALUE(MID('CFR - XML import'!$A157,SEARCH(\">\",'CFR - XML import'!$A157,1)+1,SEARCH(\"/\",'CFR - XML import'!$A157,1)-SEARCH(\">\",'CFR - XML import'!$A157,1)-2)))","v":0},{"$f":"IF(ISERROR(FIND(BY$3,'CFR - XML import'!$A157)),0,VALUE(MID('CFR - XML import'!$A157,SEARCH(\">\",'CFR - XML import'!$A157,1)+1,SEARCH(\"/\",'CFR - XML import'!$A157,1)-SEARCH(\">\",'CFR - XML import'!$A157,1)-2)))","v":0},{"$f":"IF(ISERROR(FIND(BZ$3,'CFR - XML import'!$A157)),0,VALUE(MID('CFR - XML import'!$A157,SEARCH(\">\",'CFR - XML import'!$A157,1)+1,SEARCH(\"/\",'CFR - XML import'!$A157,1)-SEARCH(\">\",'CFR - XML import'!$A157,1)-2)))","v":0},null,null,null,null,null,null,{"$f":"IF(ISERROR(IF(MID('CFR - XML import'!$A157,LEN($CF$4)+1,LEN('CFR - XML import'!$A157)-(2*LEN($CF$4)+1))=\"RMMS\",1,IF(MID('CFR - XML import'!$A157,LEN(\"    <InputSystem>\")+1,LEN('CFR - XML import'!$A157)-(LEN(\"    <InputSystem>\")+LEN($CF$4)+1))=\"SIMS\",2,0))),0,IF(MID('CFR - XML import'!$A157,LEN($CF$4)+1,LEN('CFR - XML import'!$A157)-(2*LEN($CF$4)+1))=\"RMMS\",1,IF(MID('CFR - XML import'!$A157,LEN(\"    <InputSystem>\")+1,LEN('CFR - XML import'!$A157)-(LEN(\"    <InputSystem>\")+LEN($CF$4)+1))=\"SIMS\",2,0)))","v":0},{"$f":"IF(ISERROR(FIND(CH$3,'CFR - XML import'!$A157)),0,MID('CFR - XML import'!$A157,SEARCH(\">\",'CFR - XML import'!$A157,1)+1,SEARCH(\"/\",'CFR - XML import'!$A157,1)-SEARCH(\">\",'CFR - XML import'!$A157,1)-2))","v":0},{"$f":"IF(ISERROR(FIND(CI$3,'CFR - XML import'!$A157)),0,MID('CFR - XML import'!$A157,SEARCH(\">\",'CFR - XML import'!$A157,1)+1,SEARCH(\"/\",'CFR - XML import'!$A157,1)-SEARCH(\">\",'CFR - XML import'!$A157,1)-2))","v":0},{"$f":"IF(ISERROR(FIND(CJ$3,'CFR - XML import'!$A157)),0,MID('CFR - XML import'!$A157,SEARCH(\">\",'CFR - XML import'!$A157,1)+1,SEARCH(\"/\",'CFR - XML import'!$A157,1)-SEARCH(\">\",'CFR - XML import'!$A157,1)-2))","v":0},{"$f":"IF(ISERROR(FIND(CK$3,'CFR - XML import'!$A157)),0,MID('CFR - XML import'!$A157,SEARCH(\">\",'CFR - XML import'!$A157,1)+1,SEARCH(\"/\",'CFR - XML import'!$A157,1)-SEARCH(\">\",'CFR - XML import'!$A157,1)-2))","v":0},{"$f":"IF(ISERROR(FIND(CL$3,'CFR - XML import'!$A157)),0,MID('CFR - XML import'!$A157,SEARCH(\">\",'CFR - XML import'!$A157,1)+1,SEARCH(\"/\",'CFR - XML import'!$A157,1)-SEARCH(\">\",'CFR - XML import'!$A157,1)-2))","v":0}]
[{"$f":"IF(AND('CFR - XML import'!A158<>\"\",LEFT('CFR - XML import'!A158,1)<>\"<\",LEFT('CFR - XML import'!A158,3)<>\"  <\",LEFT('CFR - XML import'!A158,5)<>\"    <\",LEFT('CFR - XML import'!A158,7)<>\"      <\",LEFT('CFR - XML import'!A158,9)<>\"        <\",$B$1=\"SIMS\"),'CFR - XML import'!A158,IF(AND(LEFT('CFR - XML import'!A158,9)=\"<Details>\",$B$1=\"RM\"),'CFR - XML import'!A158,\"\"))","v":""},{"$f":"IF(ISERROR(FIND(B$3,'CFR - XML import'!$A158)),0,VALUE(MID('CFR - XML import'!$A158,SEARCH(\">\",'CFR - XML import'!$A158,1)+1,SEARCH(\"/\",'CFR - XML import'!$A158,1)-SEARCH(\">\",'CFR - XML import'!$A158,1)-2)))","v":0},null,{"$f":"IF(ISERROR(FIND(D$3,'CFR - XML import'!$A158)),0,MID('CFR - XML import'!$A158,SEARCH(\">\",'CFR - XML import'!$A158,1)+1,SEARCH(\"/\",'CFR - XML import'!$A158,1)-SEARCH(\">\",'CFR - XML import'!$A158,1)-2))","v":0},{"$f":"IF(ISERROR(FIND(E$3,'CFR - XML import'!$A158)),0,MID('CFR - XML import'!$A158,SEARCH(\">\",'CFR - XML import'!$A158,1)+1,SEARCH(\"/\",'CFR - XML import'!$A158,1)-SEARCH(\">\",'CFR - XML import'!$A158,1)-2))","v":0},{"$f":"IF($B$1=\"SIMS\",IF(ISERROR(FIND(F$3,'CFR - XML import'!$A158)),0,VALUE(MID('CFR - XML import'!$A158,15,10))),IF(ISERROR(FIND(F$3,'CFR - XML import'!$A158)),0,VALUE(MID('CFR - XML import'!$A158,11,10))))","v":"00:00:00"},{"$f":"IF(ISERROR(FIND(G$3,'CFR - XML import'!$A158)),0,VALUE(MID('CFR - XML import'!$A158,SEARCH(\">\",'CFR - XML import'!$A158,1)+1,SEARCH(\"/\",'CFR - XML import'!$A158,1)-SEARCH(\">\",'CFR - XML import'!$A158,1)-2)))","v":0},{"$f":"IF(ISERROR(FIND(H$3,'CFR - XML import'!$A158)),0,VALUE(MID('CFR - XML import'!$A158,SEARCH(\">\",'CFR - XML import'!$A158,1)+1,SEARCH(\"/\",'CFR - XML import'!$A158,1)-SEARCH(\">\",'CFR - XML import'!$A158,1)-2)))","v":0},{"$f":"IF(ISERROR(FIND(I$3,'CFR - XML import'!$A158)),0,VALUE(MID('CFR - XML import'!$A158,SEARCH(\">\",'CFR - XML import'!$A158,1)+1,SEARCH(\"/\",'CFR - XML import'!$A158,1)-SEARCH(\">\",'CFR - XML import'!$A158,1)-2)))","v":0},{"$f":"IF(ISERROR(FIND(J$3,'CFR - XML import'!$A158)),0,VALUE(MID('CFR - XML import'!$A158,SEARCH(\">\",'CFR - XML import'!$A158,1)+1,SEARCH(\"/\",'CFR - XML import'!$A158,1)-SEARCH(\">\",'CFR - XML import'!$A158,1)-2)))","v":0},{"$f":"IF(ISERROR(FIND(K$3,'CFR - XML import'!$A158)),0,VALUE(MID('CFR - XML import'!$A158,SEARCH(\">\",'CFR - XML import'!$A158,1)+1,SEARCH(\"/\",'CFR - XML import'!$A158,1)-SEARCH(\">\",'CFR - XML import'!$A158,1)-2)))","v":0},{"$f":"IF(ISERROR(FIND(L$3,'CFR - XML import'!$A158)),0,VALUE(MID('CFR - XML import'!$A158,SEARCH(\">\",'CFR - XML import'!$A158,1)+1,SEARCH(\"/\",'CFR - XML import'!$A158,1)-SEARCH(\">\",'CFR - XML import'!$A158,1)-2)))","v":0},{"$f":"IF(ISERROR(FIND(M$3,'CFR - XML import'!$A158)),0,VALUE(MID('CFR - XML import'!$A158,SEARCH(\">\",'CFR - XML import'!$A158,1)+1,SEARCH(\"/\",'CFR - XML import'!$A158,1)-SEARCH(\">\",'CFR - XML import'!$A158,1)-2)))","v":0},{"$f":"IF(ISERROR(FIND(N$3,'CFR - XML import'!$A158)),0,VALUE(MID('CFR - XML import'!$A158,SEARCH(\">\",'CFR - XML import'!$A158,1)+1,SEARCH(\"/\",'CFR - XML import'!$A158,1)-SEARCH(\">\",'CFR - XML import'!$A158,1)-2)))","v":0},{"$f":"IF(ISERROR(FIND(O$3,'CFR - XML import'!$A158)),0,VALUE(MID('CFR - XML import'!$A158,SEARCH(\">\",'CFR - XML import'!$A158,1)+1,SEARCH(\"/\",'CFR - XML import'!$A158,1)-SEARCH(\">\",'CFR - XML import'!$A158,1)-2)))","v":0},{"$f":"IF(ISERROR(FIND(P$3,'CFR - XML import'!$A158)),0,VALUE(MID('CFR - XML import'!$A158,SEARCH(\">\",'CFR - XML import'!$A158,1)+1,SEARCH(\"/\",'CFR - XML import'!$A158,1)-SEARCH(\">\",'CFR - XML import'!$A158,1)-2)))","v":0},{"$f":"IF(ISERROR(FIND(Q$3,'CFR - XML import'!$A158)),0,VALUE(MID('CFR - XML import'!$A158,SEARCH(\">\",'CFR - XML import'!$A158,1)+1,SEARCH(\"/\",'CFR - XML import'!$A158,1)-SEARCH(\">\",'CFR - XML import'!$A158,1)-2)))","v":0},{"$f":"IF(ISERROR(FIND(R$3,'CFR - XML import'!$A158)),0,VALUE(MID('CFR - XML import'!$A158,SEARCH(\">\",'CFR - XML import'!$A158,1)+1,SEARCH(\"/\",'CFR - XML import'!$A158,1)-SEARCH(\">\",'CFR - XML import'!$A158,1)-2)))","v":0},{"$f":"IF(ISERROR(FIND(S$3,'CFR - XML import'!$A158)),0,VALUE(MID('CFR - XML import'!$A158,SEARCH(\">\",'CFR - XML import'!$A158,1)+1,SEARCH(\"/\",'CFR - XML import'!$A158,1)-SEARCH(\">\",'CFR - XML import'!$A158,1)-2)))","v":0},{"$f":"IF(ISERROR(FIND(T$3,'CFR - XML import'!$A158)),0,VALUE(MID('CFR - XML import'!$A158,SEARCH(\">\",'CFR - XML import'!$A158,1)+1,SEARCH(\"/\",'CFR - XML import'!$A158,1)-SEARCH(\">\",'CFR - XML import'!$A158,1)-2)))","v":0},{"$f":"IF(ISERROR(FIND(U$3,'CFR - XML import'!$A158)),0,VALUE(MID('CFR - XML import'!$A158,SEARCH(\">\",'CFR - XML import'!$A158,1)+1,SEARCH(\"/\",'CFR - XML import'!$A158,1)-SEARCH(\">\",'CFR - XML import'!$A158,1)-2)))","v":0},{"$f":"IF(ISERROR(FIND(V$3,'CFR - XML import'!$A158)),0,VALUE(MID('CFR - XML import'!$A158,SEARCH(\">\",'CFR - XML import'!$A158,1)+1,SEARCH(\"/\",'CFR - XML import'!$A158,1)-SEARCH(\">\",'CFR - XML import'!$A158,1)-2)))","v":0},{"$f":"IF(ISERROR(FIND(W$3,'CFR - XML import'!$A158)),0,VALUE(MID('CFR - XML import'!$A158,SEARCH(\">\",'CFR - XML import'!$A158,1)+1,SEARCH(\"/\",'CFR - XML import'!$A158,1)-SEARCH(\">\",'CFR - XML import'!$A158,1)-2)))","v":0},null,{"$f":"IF(ISERROR(FIND(Y$3,'CFR - XML import'!$A158)),0,VALUE(MID('CFR - XML import'!$A158,SEARCH(\">\",'CFR - XML import'!$A158,1)+1,SEARCH(\"/\",'CFR - XML import'!$A158,1)-SEARCH(\">\",'CFR - XML import'!$A158,1)-2)))","v":0},{"$f":"IF(ISERROR(FIND(Z$3,'CFR - XML import'!$A158)),0,VALUE(MID('CFR - XML import'!$A158,SEARCH(\">\",'CFR - XML import'!$A158,1)+1,SEARCH(\"/\",'CFR - XML import'!$A158,1)-SEARCH(\">\",'CFR - XML import'!$A158,1)-2)))","v":0},{"$f":"IF(ISERROR(FIND(AA$3,'CFR - XML import'!$A158)),0,VALUE(MID('CFR - XML import'!$A158,SEARCH(\">\",'CFR - XML import'!$A158,1)+1,SEARCH(\"/\",'CFR - XML import'!$A158,1)-SEARCH(\">\",'CFR - XML import'!$A158,1)-2)))","v":0},{"$f":"IF(ISERROR(FIND(AB$3,'CFR - XML import'!$A158)),0,VALUE(MID('CFR - XML import'!$A158,SEARCH(\">\",'CFR - XML import'!$A158,1)+1,SEARCH(\"/\",'CFR - XML import'!$A158,1)-SEARCH(\">\",'CFR - XML import'!$A158,1)-2)))","v":0},{"$f":"IF(ISERROR(FIND(AC$3,'CFR - XML import'!$A158)),0,VALUE(MID('CFR - XML import'!$A158,SEARCH(\">\",'CFR - XML import'!$A158,1)+1,SEARCH(\"/\",'CFR - XML import'!$A158,1)-SEARCH(\">\",'CFR - XML import'!$A158,1)-2)))","v":0},{"$f":"IF(ISERROR(FIND(AD$3,'CFR - XML import'!$A158)),0,VALUE(MID('CFR - XML import'!$A158,SEARCH(\">\",'CFR - XML import'!$A158,1)+1,SEARCH(\"/\",'CFR - XML import'!$A158,1)-SEARCH(\">\",'CFR - XML import'!$A158,1)-2)))","v":0},{"$f":"IF(ISERROR(FIND(AE$3,'CFR - XML import'!$A158)),0,VALUE(MID('CFR - XML import'!$A158,SEARCH(\">\",'CFR - XML import'!$A158,1)+1,SEARCH(\"/\",'CFR - XML import'!$A158,1)-SEARCH(\">\",'CFR - XML import'!$A158,1)-2)))","v":0},{"$f":"IF(ISERROR(FIND(AF$3,'CFR - XML import'!$A158)),0,VALUE(MID('CFR - XML import'!$A158,SEARCH(\">\",'CFR - XML import'!$A158,1)+1,SEARCH(\"/\",'CFR - XML import'!$A158,1)-SEARCH(\">\",'CFR - XML import'!$A158,1)-2)))","v":0},{"$f":"IF(ISERROR(FIND(AG$3,'CFR - XML import'!$A158)),0,VALUE(MID('CFR - XML import'!$A158,SEARCH(\">\",'CFR - XML import'!$A158,1)+1,SEARCH(\"/\",'CFR - XML import'!$A158,1)-SEARCH(\">\",'CFR - XML import'!$A158,1)-2)))","v":0},{"$f":"IF(ISERROR(FIND(AH$3,'CFR - XML import'!$A158)),0,VALUE(MID('CFR - XML import'!$A158,SEARCH(\">\",'CFR - XML import'!$A158,1)+1,SEARCH(\"/\",'CFR - XML import'!$A158,1)-SEARCH(\">\",'CFR - XML import'!$A158,1)-2)))","v":0},{"$f":"IF(ISERROR(FIND(AI$3,'CFR - XML import'!$A158)),0,VALUE(MID('CFR - XML import'!$A158,SEARCH(\">\",'CFR - XML import'!$A158,1)+1,SEARCH(\"/\",'CFR - XML import'!$A158,1)-SEARCH(\">\",'CFR - XML import'!$A158,1)-2)))","v":0},{"$f":"IF(ISERROR(FIND(AJ$3,'CFR - XML import'!$A158)),0,VALUE(MID('CFR - XML import'!$A158,SEARCH(\">\",'CFR - XML import'!$A158,1)+1,SEARCH(\"/\",'CFR - XML import'!$A158,1)-SEARCH(\">\",'CFR - XML import'!$A158,1)-2)))","v":0},{"$f":"IF(ISERROR(FIND(AK$3,'CFR - XML import'!$A158)),0,VALUE(MID('CFR - XML import'!$A158,SEARCH(\">\",'CFR - XML import'!$A158,1)+1,SEARCH(\"/\",'CFR - XML import'!$A158,1)-SEARCH(\">\",'CFR - XML import'!$A158,1)-2)))","v":0},{"$f":"IF(ISERROR(FIND(AL$3,'CFR - XML import'!$A158)),0,VALUE(MID('CFR - XML import'!$A158,SEARCH(\">\",'CFR - XML import'!$A158,1)+1,SEARCH(\"/\",'CFR - XML import'!$A158,1)-SEARCH(\">\",'CFR - XML import'!$A158,1)-2)))","v":0},{"$f":"IF(ISERROR(FIND(AM$3,'CFR - XML import'!$A158)),0,VALUE(MID('CFR - XML import'!$A158,SEARCH(\">\",'CFR - XML import'!$A158,1)+1,SEARCH(\"/\",'CFR - XML import'!$A158,1)-SEARCH(\">\",'CFR - XML import'!$A158,1)-2)))","v":0},{"$f":"IF(ISERROR(FIND(AN$3,'CFR - XML import'!$A158)),0,VALUE(MID('CFR - XML import'!$A158,SEARCH(\">\",'CFR - XML import'!$A158,1)+1,SEARCH(\"/\",'CFR - XML import'!$A158,1)-SEARCH(\">\",'CFR - XML import'!$A158,1)-2)))","v":0},{"$f":"IF(ISERROR(FIND(AO$3,'CFR - XML import'!$A158)),0,VALUE(MID('CFR - XML import'!$A158,SEARCH(\">\",'CFR - XML import'!$A158,1)+1,SEARCH(\"/\",'CFR - XML import'!$A158,1)-SEARCH(\">\",'CFR - XML import'!$A158,1)-2)))","v":0},{"$f":"IF(ISERROR(FIND(AP$3,'CFR - XML import'!$A158)),0,VALUE(MID('CFR - XML import'!$A158,SEARCH(\">\",'CFR - XML import'!$A158,1)+1,SEARCH(\"/\",'CFR - XML import'!$A158,1)-SEARCH(\">\",'CFR - XML import'!$A158,1)-2)))","v":0},{"$f":"IF(ISERROR(FIND(AQ$3,'CFR - XML import'!$A158)),0,VALUE(MID('CFR - XML import'!$A158,SEARCH(\">\",'CFR - XML import'!$A158,1)+1,SEARCH(\"/\",'CFR - XML import'!$A158,1)-SEARCH(\">\",'CFR - XML import'!$A158,1)-2)))","v":0},{"$f":"IF(ISERROR(FIND(AR$3,'CFR - XML import'!$A158)),0,VALUE(MID('CFR - XML import'!$A158,SEARCH(\">\",'CFR - XML import'!$A158,1)+1,SEARCH(\"/\",'CFR - XML import'!$A158,1)-SEARCH(\">\",'CFR - XML import'!$A158,1)-2)))","v":0},{"$f":"IF(ISERROR(FIND(AS$3,'CFR - XML import'!$A158)),0,VALUE(MID('CFR - XML import'!$A158,SEARCH(\">\",'CFR - XML import'!$A158,1)+1,SEARCH(\"/\",'CFR - XML import'!$A158,1)-SEARCH(\">\",'CFR - XML import'!$A158,1)-2)))","v":0},{"$f":"IF(ISERROR(FIND(AT$3,'CFR - XML import'!$A158)),0,VALUE(MID('CFR - XML import'!$A158,SEARCH(\">\",'CFR - XML import'!$A158,1)+1,SEARCH(\"/\",'CFR - XML import'!$A158,1)-SEARCH(\">\",'CFR - XML import'!$A158,1)-2)))","v":0},{"$f":"IF(ISERROR(FIND(AU$3,'CFR - XML import'!$A158)),0,VALUE(MID('CFR - XML import'!$A158,SEARCH(\">\",'CFR - XML import'!$A158,1)+1,SEARCH(\"/\",'CFR - XML import'!$A158,1)-SEARCH(\">\",'CFR - XML import'!$A158,1)-2)))","v":0},{"$f":"IF(ISERROR(FIND(AV$3,'CFR - XML import'!$A158)),0,VALUE(MID('CFR - XML import'!$A158,SEARCH(\">\",'CFR - XML import'!$A158,1)+1,SEARCH(\"/\",'CFR - XML import'!$A158,1)-SEARCH(\">\",'CFR - XML import'!$A158,1)-2)))","v":0},{"$f":"IF(ISERROR(FIND(AW$3,'CFR - XML import'!$A158)),0,VALUE(MID('CFR - XML import'!$A158,SEARCH(\">\",'CFR - XML import'!$A158,1)+1,SEARCH(\"/\",'CFR - XML import'!$A158,1)-SEARCH(\">\",'CFR - XML import'!$A158,1)-2)))","v":0},{"$f":"IF(ISERROR(FIND(AX$3,'CFR - XML import'!$A158)),0,VALUE(MID('CFR - XML import'!$A158,SEARCH(\">\",'CFR - XML import'!$A158,1)+1,SEARCH(\"/\",'CFR - XML import'!$A158,1)-SEARCH(\">\",'CFR - XML import'!$A158,1)-2)))","v":0},{"$f":"IF(ISERROR(FIND(AY$3,'CFR - XML import'!$A158)),0,VALUE(MID('CFR - XML import'!$A158,SEARCH(\">\",'CFR - XML import'!$A158,1)+1,SEARCH(\"/\",'CFR - XML import'!$A158,1)-SEARCH(\">\",'CFR - XML import'!$A158,1)-2)))","v":0},{"$f":"IF(ISERROR(FIND(AZ$3,'CFR - XML import'!$A158)),0,VALUE(MID('CFR - XML import'!$A158,SEARCH(\">\",'CFR - XML import'!$A158,1)+1,SEARCH(\"/\",'CFR - XML import'!$A158,1)-SEARCH(\">\",'CFR - XML import'!$A158,1)-2)))","v":0},{"$f":"IF(ISERROR(FIND(BA$3,'CFR - XML import'!$A158)),0,VALUE(MID('CFR - XML import'!$A158,SEARCH(\">\",'CFR - XML import'!$A158,1)+1,SEARCH(\"/\",'CFR - XML import'!$A158,1)-SEARCH(\">\",'CFR - XML import'!$A158,1)-2)))","v":0},{"$f":"IF(ISERROR(FIND(BB$3,'CFR - XML import'!$A158)),0,VALUE(MID('CFR - XML import'!$A158,SEARCH(\">\",'CFR - XML import'!$A158,1)+1,SEARCH(\"/\",'CFR - XML import'!$A158,1)-SEARCH(\">\",'CFR - XML import'!$A158,1)-2)))","v":0},{"$f":"IF(ISERROR(FIND(BC$3,'CFR - XML import'!$A158)),0,VALUE(MID('CFR - XML import'!$A158,SEARCH(\">\",'CFR - XML import'!$A158,1)+1,SEARCH(\"/\",'CFR - XML import'!$A158,1)-SEARCH(\">\",'CFR - XML import'!$A158,1)-2)))","v":0},{"$f":"IF(ISERROR(FIND(BD$3,'CFR - XML import'!$A158)),0,VALUE(MID('CFR - XML import'!$A158,SEARCH(\">\",'CFR - XML import'!$A158,1)+1,SEARCH(\"/\",'CFR - XML import'!$A158,1)-SEARCH(\">\",'CFR - XML import'!$A158,1)-2)))","v":0},{"$f":"IF(ISERROR(FIND(BE$3,'CFR - XML import'!$A158)),0,VALUE(MID('CFR - XML import'!$A158,SEARCH(\">\",'CFR - XML import'!$A158,1)+1,SEARCH(\"/\",'CFR - XML import'!$A158,1)-SEARCH(\">\",'CFR - XML import'!$A158,1)-2)))","v":0},{"$f":"IF(ISERROR(FIND(BF$3,'CFR - XML import'!$A158)),0,VALUE(MID('CFR - XML import'!$A158,SEARCH(\">\",'CFR - XML import'!$A158,1)+1,SEARCH(\"/\",'CFR - XML import'!$A158,1)-SEARCH(\">\",'CFR - XML import'!$A158,1)-2)))","v":0},{"$f":"IF(ISERROR(FIND(BG$3,'CFR - XML import'!$A158)),0,VALUE(MID('CFR - XML import'!$A158,SEARCH(\">\",'CFR - XML import'!$A158,1)+1,SEARCH(\"/\",'CFR - XML import'!$A158,1)-SEARCH(\">\",'CFR - XML import'!$A158,1)-2)))","v":0},{"$f":"IF(ISERROR(FIND(BH$3,'CFR - XML import'!$A158)),0,VALUE(MID('CFR - XML import'!$A158,SEARCH(\">\",'CFR - XML import'!$A158,1)+1,SEARCH(\"/\",'CFR - XML import'!$A158,1)-SEARCH(\">\",'CFR - XML import'!$A158,1)-2)))","v":0},{"$f":"IF(ISERROR(FIND(BI$3,'CFR - XML import'!$A158)),0,VALUE(MID('CFR - XML import'!$A158,SEARCH(\">\",'CFR - XML import'!$A158,1)+1,SEARCH(\"/\",'CFR - XML import'!$A158,1)-SEARCH(\">\",'CFR - XML import'!$A158,1)-2)))","v":0},{"$f":"IF(ISERROR(FIND(BJ$3,'CFR - XML import'!$A158)),0,VALUE(MID('CFR - XML import'!$A158,SEARCH(\">\",'CFR - XML import'!$A158,1)+1,SEARCH(\"/\",'CFR - XML import'!$A158,1)-SEARCH(\">\",'CFR - XML import'!$A158,1)-2)))","v":0},{"$f":"IF(ISERROR(FIND(BK$3,'CFR - XML import'!$A158)),0,VALUE(MID('CFR - XML import'!$A158,SEARCH(\">\",'CFR - XML import'!$A158,1)+1,SEARCH(\"/\",'CFR - XML import'!$A158,1)-SEARCH(\">\",'CFR - XML import'!$A158,1)-2)))","v":0},{"$f":"IF(ISERROR(FIND(BL$3,'CFR - XML import'!$A158)),0,VALUE(MID('CFR - XML import'!$A158,SEARCH(\">\",'CFR - XML import'!$A158,1)+1,SEARCH(\"/\",'CFR - XML import'!$A158,1)-SEARCH(\">\",'CFR - XML import'!$A158,1)-2)))","v":0},{"$f":"IF(ISERROR(FIND(BM$3,'CFR - XML import'!$A158)),0,VALUE(MID('CFR - XML import'!$A158,SEARCH(\">\",'CFR - XML import'!$A158,1)+1,SEARCH(\"/\",'CFR - XML import'!$A158,1)-SEARCH(\">\",'CFR - XML import'!$A158,1)-2)))","v":0},{"$f":"IF(ISERROR(FIND(BN$3,'CFR - XML import'!$A158)),0,VALUE(MID('CFR - XML import'!$A158,SEARCH(\">\",'CFR - XML import'!$A158,1)+1,SEARCH(\"/\",'CFR - XML import'!$A158,1)-SEARCH(\">\",'CFR - XML import'!$A158,1)-2)))","v":0},{"$f":"IF(ISERROR(FIND(BO$3,'CFR - XML import'!$A158)),0,VALUE(MID('CFR - XML import'!$A158,SEARCH(\">\",'CFR - XML import'!$A158,1)+1,SEARCH(\"/\",'CFR - XML import'!$A158,1)-SEARCH(\">\",'CFR - XML import'!$A158,1)-2)))","v":0},{"$f":"IF(ISERROR(FIND(BP$3,'CFR - XML import'!$A158)),0,VALUE(MID('CFR - XML import'!$A158,SEARCH(\">\",'CFR - XML import'!$A158,1)+1,SEARCH(\"/\",'CFR - XML import'!$A158,1)-SEARCH(\">\",'CFR - XML import'!$A158,1)-2)))","v":0},{"$f":"IF(ISERROR(FIND(BQ$3,'CFR - XML import'!$A158)),0,VALUE(MID('CFR - XML import'!$A158,SEARCH(\">\",'CFR - XML import'!$A158,1)+1,SEARCH(\"/\",'CFR - XML import'!$A158,1)-SEARCH(\">\",'CFR - XML import'!$A158,1)-2)))","v":0},{"$f":"IF(ISERROR(FIND(BR$3,'CFR - XML import'!$A158)),0,VALUE(MID('CFR - XML import'!$A158,SEARCH(\">\",'CFR - XML import'!$A158,1)+1,SEARCH(\"/\",'CFR - XML import'!$A158,1)-SEARCH(\">\",'CFR - XML import'!$A158,1)-2)))","v":0},{"$f":"IF(ISERROR(FIND(BS$3,'CFR - XML import'!$A158)),0,VALUE(MID('CFR - XML import'!$A158,SEARCH(\">\",'CFR - XML import'!$A158,1)+1,SEARCH(\"/\",'CFR - XML import'!$A158,1)-SEARCH(\">\",'CFR - XML import'!$A158,1)-2)))","v":0},{"$f":"IF(ISERROR(FIND(BT$3,'CFR - XML import'!$A158)),0,VALUE(MID('CFR - XML import'!$A158,SEARCH(\">\",'CFR - XML import'!$A158,1)+1,SEARCH(\"/\",'CFR - XML import'!$A158,1)-SEARCH(\">\",'CFR - XML import'!$A158,1)-2)))","v":0},{"$f":"IF(ISERROR(FIND(BU$3,'CFR - XML import'!$A158)),0,VALUE(MID('CFR - XML import'!$A158,SEARCH(\">\",'CFR - XML import'!$A158,1)+1,SEARCH(\"/\",'CFR - XML import'!$A158,1)-SEARCH(\">\",'CFR - XML import'!$A158,1)-2)))","v":0},{"$f":"IF(ISERROR(FIND(BV$3,'CFR - XML import'!$A158)),0,VALUE(MID('CFR - XML import'!$A158,SEARCH(\">\",'CFR - XML import'!$A158,1)+1,SEARCH(\"/\",'CFR - XML import'!$A158,1)-SEARCH(\">\",'CFR - XML import'!$A158,1)-2)))","v":0},{"$f":"IF(ISERROR(FIND(BW$3,'CFR - XML import'!$A158)),0,VALUE(MID('CFR - XML import'!$A158,SEARCH(\">\",'CFR - XML import'!$A158,1)+1,SEARCH(\"/\",'CFR - XML import'!$A158,1)-SEARCH(\">\",'CFR - XML import'!$A158,1)-2)))","v":0},{"$f":"IF(ISERROR(FIND(BX$3,'CFR - XML import'!$A158)),0,VALUE(MID('CFR - XML import'!$A158,SEARCH(\">\",'CFR - XML import'!$A158,1)+1,SEARCH(\"/\",'CFR - XML import'!$A158,1)-SEARCH(\">\",'CFR - XML import'!$A158,1)-2)))","v":0},{"$f":"IF(ISERROR(FIND(BY$3,'CFR - XML import'!$A158)),0,VALUE(MID('CFR - XML import'!$A158,SEARCH(\">\",'CFR - XML import'!$A158,1)+1,SEARCH(\"/\",'CFR - XML import'!$A158,1)-SEARCH(\">\",'CFR - XML import'!$A158,1)-2)))","v":0},{"$f":"IF(ISERROR(FIND(BZ$3,'CFR - XML import'!$A158)),0,VALUE(MID('CFR - XML import'!$A158,SEARCH(\">\",'CFR - XML import'!$A158,1)+1,SEARCH(\"/\",'CFR - XML import'!$A158,1)-SEARCH(\">\",'CFR - XML import'!$A158,1)-2)))","v":0},null,null,null,null,null,null,{"$f":"IF(ISERROR(IF(MID('CFR - XML import'!$A158,LEN($CF$4)+1,LEN('CFR - XML import'!$A158)-(2*LEN($CF$4)+1))=\"RMMS\",1,IF(MID('CFR - XML import'!$A158,LEN(\"    <InputSystem>\")+1,LEN('CFR - XML import'!$A158)-(LEN(\"    <InputSystem>\")+LEN($CF$4)+1))=\"SIMS\",2,0))),0,IF(MID('CFR - XML import'!$A158,LEN($CF$4)+1,LEN('CFR - XML import'!$A158)-(2*LEN($CF$4)+1))=\"RMMS\",1,IF(MID('CFR - XML import'!$A158,LEN(\"    <InputSystem>\")+1,LEN('CFR - XML import'!$A158)-(LEN(\"    <InputSystem>\")+LEN($CF$4)+1))=\"SIMS\",2,0)))","v":0},{"$f":"IF(ISERROR(FIND(CH$3,'CFR - XML import'!$A158)),0,MID('CFR - XML import'!$A158,SEARCH(\">\",'CFR - XML import'!$A158,1)+1,SEARCH(\"/\",'CFR - XML import'!$A158,1)-SEARCH(\">\",'CFR - XML import'!$A158,1)-2))","v":0},{"$f":"IF(ISERROR(FIND(CI$3,'CFR - XML import'!$A158)),0,MID('CFR - XML import'!$A158,SEARCH(\">\",'CFR - XML import'!$A158,1)+1,SEARCH(\"/\",'CFR - XML import'!$A158,1)-SEARCH(\">\",'CFR - XML import'!$A158,1)-2))","v":0},{"$f":"IF(ISERROR(FIND(CJ$3,'CFR - XML import'!$A158)),0,MID('CFR - XML import'!$A158,SEARCH(\">\",'CFR - XML import'!$A158,1)+1,SEARCH(\"/\",'CFR - XML import'!$A158,1)-SEARCH(\">\",'CFR - XML import'!$A158,1)-2))","v":0},{"$f":"IF(ISERROR(FIND(CK$3,'CFR - XML import'!$A158)),0,MID('CFR - XML import'!$A158,SEARCH(\">\",'CFR - XML import'!$A158,1)+1,SEARCH(\"/\",'CFR - XML import'!$A158,1)-SEARCH(\">\",'CFR - XML import'!$A158,1)-2))","v":0},{"$f":"IF(ISERROR(FIND(CL$3,'CFR - XML import'!$A158)),0,MID('CFR - XML import'!$A158,SEARCH(\">\",'CFR - XML import'!$A158,1)+1,SEARCH(\"/\",'CFR - XML import'!$A158,1)-SEARCH(\">\",'CFR - XML import'!$A158,1)-2))","v":0}]
[{"$f":"IF(AND('CFR - XML import'!A159<>\"\",LEFT('CFR - XML import'!A159,1)<>\"<\",LEFT('CFR - XML import'!A159,3)<>\"  <\",LEFT('CFR - XML import'!A159,5)<>\"    <\",LEFT('CFR - XML import'!A159,7)<>\"      <\",LEFT('CFR - XML import'!A159,9)<>\"        <\",$B$1=\"SIMS\"),'CFR - XML import'!A159,IF(AND(LEFT('CFR - XML import'!A159,9)=\"<Details>\",$B$1=\"RM\"),'CFR - XML import'!A159,\"\"))","v":""},{"$f":"IF(ISERROR(FIND(B$3,'CFR - XML import'!$A159)),0,VALUE(MID('CFR - XML import'!$A159,SEARCH(\">\",'CFR - XML import'!$A159,1)+1,SEARCH(\"/\",'CFR - XML import'!$A159,1)-SEARCH(\">\",'CFR - XML import'!$A159,1)-2)))","v":0},null,{"$f":"IF(ISERROR(FIND(D$3,'CFR - XML import'!$A159)),0,MID('CFR - XML import'!$A159,SEARCH(\">\",'CFR - XML import'!$A159,1)+1,SEARCH(\"/\",'CFR - XML import'!$A159,1)-SEARCH(\">\",'CFR - XML import'!$A159,1)-2))","v":0},{"$f":"IF(ISERROR(FIND(E$3,'CFR - XML import'!$A159)),0,MID('CFR - XML import'!$A159,SEARCH(\">\",'CFR - XML import'!$A159,1)+1,SEARCH(\"/\",'CFR - XML import'!$A159,1)-SEARCH(\">\",'CFR - XML import'!$A159,1)-2))","v":0},{"$f":"IF($B$1=\"SIMS\",IF(ISERROR(FIND(F$3,'CFR - XML import'!$A159)),0,VALUE(MID('CFR - XML import'!$A159,15,10))),IF(ISERROR(FIND(F$3,'CFR - XML import'!$A159)),0,VALUE(MID('CFR - XML import'!$A159,11,10))))","v":"00:00:00"},{"$f":"IF(ISERROR(FIND(G$3,'CFR - XML import'!$A159)),0,VALUE(MID('CFR - XML import'!$A159,SEARCH(\">\",'CFR - XML import'!$A159,1)+1,SEARCH(\"/\",'CFR - XML import'!$A159,1)-SEARCH(\">\",'CFR - XML import'!$A159,1)-2)))","v":0},{"$f":"IF(ISERROR(FIND(H$3,'CFR - XML import'!$A159)),0,VALUE(MID('CFR - XML import'!$A159,SEARCH(\">\",'CFR - XML import'!$A159,1)+1,SEARCH(\"/\",'CFR - XML import'!$A159,1)-SEARCH(\">\",'CFR - XML import'!$A159,1)-2)))","v":0},{"$f":"IF(ISERROR(FIND(I$3,'CFR - XML import'!$A159)),0,VALUE(MID('CFR - XML import'!$A159,SEARCH(\">\",'CFR - XML import'!$A159,1)+1,SEARCH(\"/\",'CFR - XML import'!$A159,1)-SEARCH(\">\",'CFR - XML import'!$A159,1)-2)))","v":0},{"$f":"IF(ISERROR(FIND(J$3,'CFR - XML import'!$A159)),0,VALUE(MID('CFR - XML import'!$A159,SEARCH(\">\",'CFR - XML import'!$A159,1)+1,SEARCH(\"/\",'CFR - XML import'!$A159,1)-SEARCH(\">\",'CFR - XML import'!$A159,1)-2)))","v":0},{"$f":"IF(ISERROR(FIND(K$3,'CFR - XML import'!$A159)),0,VALUE(MID('CFR - XML import'!$A159,SEARCH(\">\",'CFR - XML import'!$A159,1)+1,SEARCH(\"/\",'CFR - XML import'!$A159,1)-SEARCH(\">\",'CFR - XML import'!$A159,1)-2)))","v":0},{"$f":"IF(ISERROR(FIND(L$3,'CFR - XML import'!$A159)),0,VALUE(MID('CFR - XML import'!$A159,SEARCH(\">\",'CFR - XML import'!$A159,1)+1,SEARCH(\"/\",'CFR - XML import'!$A159,1)-SEARCH(\">\",'CFR - XML import'!$A159,1)-2)))","v":0},{"$f":"IF(ISERROR(FIND(M$3,'CFR - XML import'!$A159)),0,VALUE(MID('CFR - XML import'!$A159,SEARCH(\">\",'CFR - XML import'!$A159,1)+1,SEARCH(\"/\",'CFR - XML import'!$A159,1)-SEARCH(\">\",'CFR - XML import'!$A159,1)-2)))","v":0},{"$f":"IF(ISERROR(FIND(N$3,'CFR - XML import'!$A159)),0,VALUE(MID('CFR - XML import'!$A159,SEARCH(\">\",'CFR - XML import'!$A159,1)+1,SEARCH(\"/\",'CFR - XML import'!$A159,1)-SEARCH(\">\",'CFR - XML import'!$A159,1)-2)))","v":0},{"$f":"IF(ISERROR(FIND(O$3,'CFR - XML import'!$A159)),0,VALUE(MID('CFR - XML import'!$A159,SEARCH(\">\",'CFR - XML import'!$A159,1)+1,SEARCH(\"/\",'CFR - XML import'!$A159,1)-SEARCH(\">\",'CFR - XML import'!$A159,1)-2)))","v":0},{"$f":"IF(ISERROR(FIND(P$3,'CFR - XML import'!$A159)),0,VALUE(MID('CFR - XML import'!$A159,SEARCH(\">\",'CFR - XML import'!$A159,1)+1,SEARCH(\"/\",'CFR - XML import'!$A159,1)-SEARCH(\">\",'CFR - XML import'!$A159,1)-2)))","v":0},{"$f":"IF(ISERROR(FIND(Q$3,'CFR - XML import'!$A159)),0,VALUE(MID('CFR - XML import'!$A159,SEARCH(\">\",'CFR - XML import'!$A159,1)+1,SEARCH(\"/\",'CFR - XML import'!$A159,1)-SEARCH(\">\",'CFR - XML import'!$A159,1)-2)))","v":0},{"$f":"IF(ISERROR(FIND(R$3,'CFR - XML import'!$A159)),0,VALUE(MID('CFR - XML import'!$A159,SEARCH(\">\",'CFR - XML import'!$A159,1)+1,SEARCH(\"/\",'CFR - XML import'!$A159,1)-SEARCH(\">\",'CFR - XML import'!$A159,1)-2)))","v":0},{"$f":"IF(ISERROR(FIND(S$3,'CFR - XML import'!$A159)),0,VALUE(MID('CFR - XML import'!$A159,SEARCH(\">\",'CFR - XML import'!$A159,1)+1,SEARCH(\"/\",'CFR - XML import'!$A159,1)-SEARCH(\">\",'CFR - XML import'!$A159,1)-2)))","v":0},{"$f":"IF(ISERROR(FIND(T$3,'CFR - XML import'!$A159)),0,VALUE(MID('CFR - XML import'!$A159,SEARCH(\">\",'CFR - XML import'!$A159,1)+1,SEARCH(\"/\",'CFR - XML import'!$A159,1)-SEARCH(\">\",'CFR - XML import'!$A159,1)-2)))","v":0},{"$f":"IF(ISERROR(FIND(U$3,'CFR - XML import'!$A159)),0,VALUE(MID('CFR - XML import'!$A159,SEARCH(\">\",'CFR - XML import'!$A159,1)+1,SEARCH(\"/\",'CFR - XML import'!$A159,1)-SEARCH(\">\",'CFR - XML import'!$A159,1)-2)))","v":0},{"$f":"IF(ISERROR(FIND(V$3,'CFR - XML import'!$A159)),0,VALUE(MID('CFR - XML import'!$A159,SEARCH(\">\",'CFR - XML import'!$A159,1)+1,SEARCH(\"/\",'CFR - XML import'!$A159,1)-SEARCH(\">\",'CFR - XML import'!$A159,1)-2)))","v":0},{"$f":"IF(ISERROR(FIND(W$3,'CFR - XML import'!$A159)),0,VALUE(MID('CFR - XML import'!$A159,SEARCH(\">\",'CFR - XML import'!$A159,1)+1,SEARCH(\"/\",'CFR - XML import'!$A159,1)-SEARCH(\">\",'CFR - XML import'!$A159,1)-2)))","v":0},null,{"$f":"IF(ISERROR(FIND(Y$3,'CFR - XML import'!$A159)),0,VALUE(MID('CFR - XML import'!$A159,SEARCH(\">\",'CFR - XML import'!$A159,1)+1,SEARCH(\"/\",'CFR - XML import'!$A159,1)-SEARCH(\">\",'CFR - XML import'!$A159,1)-2)))","v":0},{"$f":"IF(ISERROR(FIND(Z$3,'CFR - XML import'!$A159)),0,VALUE(MID('CFR - XML import'!$A159,SEARCH(\">\",'CFR - XML import'!$A159,1)+1,SEARCH(\"/\",'CFR - XML import'!$A159,1)-SEARCH(\">\",'CFR - XML import'!$A159,1)-2)))","v":0},{"$f":"IF(ISERROR(FIND(AA$3,'CFR - XML import'!$A159)),0,VALUE(MID('CFR - XML import'!$A159,SEARCH(\">\",'CFR - XML import'!$A159,1)+1,SEARCH(\"/\",'CFR - XML import'!$A159,1)-SEARCH(\">\",'CFR - XML import'!$A159,1)-2)))","v":0},{"$f":"IF(ISERROR(FIND(AB$3,'CFR - XML import'!$A159)),0,VALUE(MID('CFR - XML import'!$A159,SEARCH(\">\",'CFR - XML import'!$A159,1)+1,SEARCH(\"/\",'CFR - XML import'!$A159,1)-SEARCH(\">\",'CFR - XML import'!$A159,1)-2)))","v":0},{"$f":"IF(ISERROR(FIND(AC$3,'CFR - XML import'!$A159)),0,VALUE(MID('CFR - XML import'!$A159,SEARCH(\">\",'CFR - XML import'!$A159,1)+1,SEARCH(\"/\",'CFR - XML import'!$A159,1)-SEARCH(\">\",'CFR - XML import'!$A159,1)-2)))","v":0},{"$f":"IF(ISERROR(FIND(AD$3,'CFR - XML import'!$A159)),0,VALUE(MID('CFR - XML import'!$A159,SEARCH(\">\",'CFR - XML import'!$A159,1)+1,SEARCH(\"/\",'CFR - XML import'!$A159,1)-SEARCH(\">\",'CFR - XML import'!$A159,1)-2)))","v":0},{"$f":"IF(ISERROR(FIND(AE$3,'CFR - XML import'!$A159)),0,VALUE(MID('CFR - XML import'!$A159,SEARCH(\">\",'CFR - XML import'!$A159,1)+1,SEARCH(\"/\",'CFR - XML import'!$A159,1)-SEARCH(\">\",'CFR - XML import'!$A159,1)-2)))","v":0},{"$f":"IF(ISERROR(FIND(AF$3,'CFR - XML import'!$A159)),0,VALUE(MID('CFR - XML import'!$A159,SEARCH(\">\",'CFR - XML import'!$A159,1)+1,SEARCH(\"/\",'CFR - XML import'!$A159,1)-SEARCH(\">\",'CFR - XML import'!$A159,1)-2)))","v":0},{"$f":"IF(ISERROR(FIND(AG$3,'CFR - XML import'!$A159)),0,VALUE(MID('CFR - XML import'!$A159,SEARCH(\">\",'CFR - XML import'!$A159,1)+1,SEARCH(\"/\",'CFR - XML import'!$A159,1)-SEARCH(\">\",'CFR - XML import'!$A159,1)-2)))","v":0},{"$f":"IF(ISERROR(FIND(AH$3,'CFR - XML import'!$A159)),0,VALUE(MID('CFR - XML import'!$A159,SEARCH(\">\",'CFR - XML import'!$A159,1)+1,SEARCH(\"/\",'CFR - XML import'!$A159,1)-SEARCH(\">\",'CFR - XML import'!$A159,1)-2)))","v":0},{"$f":"IF(ISERROR(FIND(AI$3,'CFR - XML import'!$A159)),0,VALUE(MID('CFR - XML import'!$A159,SEARCH(\">\",'CFR - XML import'!$A159,1)+1,SEARCH(\"/\",'CFR - XML import'!$A159,1)-SEARCH(\">\",'CFR - XML import'!$A159,1)-2)))","v":0},{"$f":"IF(ISERROR(FIND(AJ$3,'CFR - XML import'!$A159)),0,VALUE(MID('CFR - XML import'!$A159,SEARCH(\">\",'CFR - XML import'!$A159,1)+1,SEARCH(\"/\",'CFR - XML import'!$A159,1)-SEARCH(\">\",'CFR - XML import'!$A159,1)-2)))","v":0},{"$f":"IF(ISERROR(FIND(AK$3,'CFR - XML import'!$A159)),0,VALUE(MID('CFR - XML import'!$A159,SEARCH(\">\",'CFR - XML import'!$A159,1)+1,SEARCH(\"/\",'CFR - XML import'!$A159,1)-SEARCH(\">\",'CFR - XML import'!$A159,1)-2)))","v":0},{"$f":"IF(ISERROR(FIND(AL$3,'CFR - XML import'!$A159)),0,VALUE(MID('CFR - XML import'!$A159,SEARCH(\">\",'CFR - XML import'!$A159,1)+1,SEARCH(\"/\",'CFR - XML import'!$A159,1)-SEARCH(\">\",'CFR - XML import'!$A159,1)-2)))","v":0},{"$f":"IF(ISERROR(FIND(AM$3,'CFR - XML import'!$A159)),0,VALUE(MID('CFR - XML import'!$A159,SEARCH(\">\",'CFR - XML import'!$A159,1)+1,SEARCH(\"/\",'CFR - XML import'!$A159,1)-SEARCH(\">\",'CFR - XML import'!$A159,1)-2)))","v":0},{"$f":"IF(ISERROR(FIND(AN$3,'CFR - XML import'!$A159)),0,VALUE(MID('CFR - XML import'!$A159,SEARCH(\">\",'CFR - XML import'!$A159,1)+1,SEARCH(\"/\",'CFR - XML import'!$A159,1)-SEARCH(\">\",'CFR - XML import'!$A159,1)-2)))","v":0},{"$f":"IF(ISERROR(FIND(AO$3,'CFR - XML import'!$A159)),0,VALUE(MID('CFR - XML import'!$A159,SEARCH(\">\",'CFR - XML import'!$A159,1)+1,SEARCH(\"/\",'CFR - XML import'!$A159,1)-SEARCH(\">\",'CFR - XML import'!$A159,1)-2)))","v":0},{"$f":"IF(ISERROR(FIND(AP$3,'CFR - XML import'!$A159)),0,VALUE(MID('CFR - XML import'!$A159,SEARCH(\">\",'CFR - XML import'!$A159,1)+1,SEARCH(\"/\",'CFR - XML import'!$A159,1)-SEARCH(\">\",'CFR - XML import'!$A159,1)-2)))","v":0},{"$f":"IF(ISERROR(FIND(AQ$3,'CFR - XML import'!$A159)),0,VALUE(MID('CFR - XML import'!$A159,SEARCH(\">\",'CFR - XML import'!$A159,1)+1,SEARCH(\"/\",'CFR - XML import'!$A159,1)-SEARCH(\">\",'CFR - XML import'!$A159,1)-2)))","v":0},{"$f":"IF(ISERROR(FIND(AR$3,'CFR - XML import'!$A159)),0,VALUE(MID('CFR - XML import'!$A159,SEARCH(\">\",'CFR - XML import'!$A159,1)+1,SEARCH(\"/\",'CFR - XML import'!$A159,1)-SEARCH(\">\",'CFR - XML import'!$A159,1)-2)))","v":0},{"$f":"IF(ISERROR(FIND(AS$3,'CFR - XML import'!$A159)),0,VALUE(MID('CFR - XML import'!$A159,SEARCH(\">\",'CFR - XML import'!$A159,1)+1,SEARCH(\"/\",'CFR - XML import'!$A159,1)-SEARCH(\">\",'CFR - XML import'!$A159,1)-2)))","v":0},{"$f":"IF(ISERROR(FIND(AT$3,'CFR - XML import'!$A159)),0,VALUE(MID('CFR - XML import'!$A159,SEARCH(\">\",'CFR - XML import'!$A159,1)+1,SEARCH(\"/\",'CFR - XML import'!$A159,1)-SEARCH(\">\",'CFR - XML import'!$A159,1)-2)))","v":0},{"$f":"IF(ISERROR(FIND(AU$3,'CFR - XML import'!$A159)),0,VALUE(MID('CFR - XML import'!$A159,SEARCH(\">\",'CFR - XML import'!$A159,1)+1,SEARCH(\"/\",'CFR - XML import'!$A159,1)-SEARCH(\">\",'CFR - XML import'!$A159,1)-2)))","v":0},{"$f":"IF(ISERROR(FIND(AV$3,'CFR - XML import'!$A159)),0,VALUE(MID('CFR - XML import'!$A159,SEARCH(\">\",'CFR - XML import'!$A159,1)+1,SEARCH(\"/\",'CFR - XML import'!$A159,1)-SEARCH(\">\",'CFR - XML import'!$A159,1)-2)))","v":0},{"$f":"IF(ISERROR(FIND(AW$3,'CFR - XML import'!$A159)),0,VALUE(MID('CFR - XML import'!$A159,SEARCH(\">\",'CFR - XML import'!$A159,1)+1,SEARCH(\"/\",'CFR - XML import'!$A159,1)-SEARCH(\">\",'CFR - XML import'!$A159,1)-2)))","v":0},{"$f":"IF(ISERROR(FIND(AX$3,'CFR - XML import'!$A159)),0,VALUE(MID('CFR - XML import'!$A159,SEARCH(\">\",'CFR - XML import'!$A159,1)+1,SEARCH(\"/\",'CFR - XML import'!$A159,1)-SEARCH(\">\",'CFR - XML import'!$A159,1)-2)))","v":0},{"$f":"IF(ISERROR(FIND(AY$3,'CFR - XML import'!$A159)),0,VALUE(MID('CFR - XML import'!$A159,SEARCH(\">\",'CFR - XML import'!$A159,1)+1,SEARCH(\"/\",'CFR - XML import'!$A159,1)-SEARCH(\">\",'CFR - XML import'!$A159,1)-2)))","v":0},{"$f":"IF(ISERROR(FIND(AZ$3,'CFR - XML import'!$A159)),0,VALUE(MID('CFR - XML import'!$A159,SEARCH(\">\",'CFR - XML import'!$A159,1)+1,SEARCH(\"/\",'CFR - XML import'!$A159,1)-SEARCH(\">\",'CFR - XML import'!$A159,1)-2)))","v":0},{"$f":"IF(ISERROR(FIND(BA$3,'CFR - XML import'!$A159)),0,VALUE(MID('CFR - XML import'!$A159,SEARCH(\">\",'CFR - XML import'!$A159,1)+1,SEARCH(\"/\",'CFR - XML import'!$A159,1)-SEARCH(\">\",'CFR - XML import'!$A159,1)-2)))","v":0},{"$f":"IF(ISERROR(FIND(BB$3,'CFR - XML import'!$A159)),0,VALUE(MID('CFR - XML import'!$A159,SEARCH(\">\",'CFR - XML import'!$A159,1)+1,SEARCH(\"/\",'CFR - XML import'!$A159,1)-SEARCH(\">\",'CFR - XML import'!$A159,1)-2)))","v":0},{"$f":"IF(ISERROR(FIND(BC$3,'CFR - XML import'!$A159)),0,VALUE(MID('CFR - XML import'!$A159,SEARCH(\">\",'CFR - XML import'!$A159,1)+1,SEARCH(\"/\",'CFR - XML import'!$A159,1)-SEARCH(\">\",'CFR - XML import'!$A159,1)-2)))","v":0},{"$f":"IF(ISERROR(FIND(BD$3,'CFR - XML import'!$A159)),0,VALUE(MID('CFR - XML import'!$A159,SEARCH(\">\",'CFR - XML import'!$A159,1)+1,SEARCH(\"/\",'CFR - XML import'!$A159,1)-SEARCH(\">\",'CFR - XML import'!$A159,1)-2)))","v":0},{"$f":"IF(ISERROR(FIND(BE$3,'CFR - XML import'!$A159)),0,VALUE(MID('CFR - XML import'!$A159,SEARCH(\">\",'CFR - XML import'!$A159,1)+1,SEARCH(\"/\",'CFR - XML import'!$A159,1)-SEARCH(\">\",'CFR - XML import'!$A159,1)-2)))","v":0},{"$f":"IF(ISERROR(FIND(BF$3,'CFR - XML import'!$A159)),0,VALUE(MID('CFR - XML import'!$A159,SEARCH(\">\",'CFR - XML import'!$A159,1)+1,SEARCH(\"/\",'CFR - XML import'!$A159,1)-SEARCH(\">\",'CFR - XML import'!$A159,1)-2)))","v":0},{"$f":"IF(ISERROR(FIND(BG$3,'CFR - XML import'!$A159)),0,VALUE(MID('CFR - XML import'!$A159,SEARCH(\">\",'CFR - XML import'!$A159,1)+1,SEARCH(\"/\",'CFR - XML import'!$A159,1)-SEARCH(\">\",'CFR - XML import'!$A159,1)-2)))","v":0},{"$f":"IF(ISERROR(FIND(BH$3,'CFR - XML import'!$A159)),0,VALUE(MID('CFR - XML import'!$A159,SEARCH(\">\",'CFR - XML import'!$A159,1)+1,SEARCH(\"/\",'CFR - XML import'!$A159,1)-SEARCH(\">\",'CFR - XML import'!$A159,1)-2)))","v":0},{"$f":"IF(ISERROR(FIND(BI$3,'CFR - XML import'!$A159)),0,VALUE(MID('CFR - XML import'!$A159,SEARCH(\">\",'CFR - XML import'!$A159,1)+1,SEARCH(\"/\",'CFR - XML import'!$A159,1)-SEARCH(\">\",'CFR - XML import'!$A159,1)-2)))","v":0},{"$f":"IF(ISERROR(FIND(BJ$3,'CFR - XML import'!$A159)),0,VALUE(MID('CFR - XML import'!$A159,SEARCH(\">\",'CFR - XML import'!$A159,1)+1,SEARCH(\"/\",'CFR - XML import'!$A159,1)-SEARCH(\">\",'CFR - XML import'!$A159,1)-2)))","v":0},{"$f":"IF(ISERROR(FIND(BK$3,'CFR - XML import'!$A159)),0,VALUE(MID('CFR - XML import'!$A159,SEARCH(\">\",'CFR - XML import'!$A159,1)+1,SEARCH(\"/\",'CFR - XML import'!$A159,1)-SEARCH(\">\",'CFR - XML import'!$A159,1)-2)))","v":0},{"$f":"IF(ISERROR(FIND(BL$3,'CFR - XML import'!$A159)),0,VALUE(MID('CFR - XML import'!$A159,SEARCH(\">\",'CFR - XML import'!$A159,1)+1,SEARCH(\"/\",'CFR - XML import'!$A159,1)-SEARCH(\">\",'CFR - XML import'!$A159,1)-2)))","v":0},{"$f":"IF(ISERROR(FIND(BM$3,'CFR - XML import'!$A159)),0,VALUE(MID('CFR - XML import'!$A159,SEARCH(\">\",'CFR - XML import'!$A159,1)+1,SEARCH(\"/\",'CFR - XML import'!$A159,1)-SEARCH(\">\",'CFR - XML import'!$A159,1)-2)))","v":0},{"$f":"IF(ISERROR(FIND(BN$3,'CFR - XML import'!$A159)),0,VALUE(MID('CFR - XML import'!$A159,SEARCH(\">\",'CFR - XML import'!$A159,1)+1,SEARCH(\"/\",'CFR - XML import'!$A159,1)-SEARCH(\">\",'CFR - XML import'!$A159,1)-2)))","v":0},{"$f":"IF(ISERROR(FIND(BO$3,'CFR - XML import'!$A159)),0,VALUE(MID('CFR - XML import'!$A159,SEARCH(\">\",'CFR - XML import'!$A159,1)+1,SEARCH(\"/\",'CFR - XML import'!$A159,1)-SEARCH(\">\",'CFR - XML import'!$A159,1)-2)))","v":0},{"$f":"IF(ISERROR(FIND(BP$3,'CFR - XML import'!$A159)),0,VALUE(MID('CFR - XML import'!$A159,SEARCH(\">\",'CFR - XML import'!$A159,1)+1,SEARCH(\"/\",'CFR - XML import'!$A159,1)-SEARCH(\">\",'CFR - XML import'!$A159,1)-2)))","v":0},{"$f":"IF(ISERROR(FIND(BQ$3,'CFR - XML import'!$A159)),0,VALUE(MID('CFR - XML import'!$A159,SEARCH(\">\",'CFR - XML import'!$A159,1)+1,SEARCH(\"/\",'CFR - XML import'!$A159,1)-SEARCH(\">\",'CFR - XML import'!$A159,1)-2)))","v":0},{"$f":"IF(ISERROR(FIND(BR$3,'CFR - XML import'!$A159)),0,VALUE(MID('CFR - XML import'!$A159,SEARCH(\">\",'CFR - XML import'!$A159,1)+1,SEARCH(\"/\",'CFR - XML import'!$A159,1)-SEARCH(\">\",'CFR - XML import'!$A159,1)-2)))","v":0},{"$f":"IF(ISERROR(FIND(BS$3,'CFR - XML import'!$A159)),0,VALUE(MID('CFR - XML import'!$A159,SEARCH(\">\",'CFR - XML import'!$A159,1)+1,SEARCH(\"/\",'CFR - XML import'!$A159,1)-SEARCH(\">\",'CFR - XML import'!$A159,1)-2)))","v":0},{"$f":"IF(ISERROR(FIND(BT$3,'CFR - XML import'!$A159)),0,VALUE(MID('CFR - XML import'!$A159,SEARCH(\">\",'CFR - XML import'!$A159,1)+1,SEARCH(\"/\",'CFR - XML import'!$A159,1)-SEARCH(\">\",'CFR - XML import'!$A159,1)-2)))","v":0},{"$f":"IF(ISERROR(FIND(BU$3,'CFR - XML import'!$A159)),0,VALUE(MID('CFR - XML import'!$A159,SEARCH(\">\",'CFR - XML import'!$A159,1)+1,SEARCH(\"/\",'CFR - XML import'!$A159,1)-SEARCH(\">\",'CFR - XML import'!$A159,1)-2)))","v":0},{"$f":"IF(ISERROR(FIND(BV$3,'CFR - XML import'!$A159)),0,VALUE(MID('CFR - XML import'!$A159,SEARCH(\">\",'CFR - XML import'!$A159,1)+1,SEARCH(\"/\",'CFR - XML import'!$A159,1)-SEARCH(\">\",'CFR - XML import'!$A159,1)-2)))","v":0},{"$f":"IF(ISERROR(FIND(BW$3,'CFR - XML import'!$A159)),0,VALUE(MID('CFR - XML import'!$A159,SEARCH(\">\",'CFR - XML import'!$A159,1)+1,SEARCH(\"/\",'CFR - XML import'!$A159,1)-SEARCH(\">\",'CFR - XML import'!$A159,1)-2)))","v":0},{"$f":"IF(ISERROR(FIND(BX$3,'CFR - XML import'!$A159)),0,VALUE(MID('CFR - XML import'!$A159,SEARCH(\">\",'CFR - XML import'!$A159,1)+1,SEARCH(\"/\",'CFR - XML import'!$A159,1)-SEARCH(\">\",'CFR - XML import'!$A159,1)-2)))","v":0},{"$f":"IF(ISERROR(FIND(BY$3,'CFR - XML import'!$A159)),0,VALUE(MID('CFR - XML import'!$A159,SEARCH(\">\",'CFR - XML import'!$A159,1)+1,SEARCH(\"/\",'CFR - XML import'!$A159,1)-SEARCH(\">\",'CFR - XML import'!$A159,1)-2)))","v":0},{"$f":"IF(ISERROR(FIND(BZ$3,'CFR - XML import'!$A159)),0,VALUE(MID('CFR - XML import'!$A159,SEARCH(\">\",'CFR - XML import'!$A159,1)+1,SEARCH(\"/\",'CFR - XML import'!$A159,1)-SEARCH(\">\",'CFR - XML import'!$A159,1)-2)))","v":0},null,null,null,null,null,null,{"$f":"IF(ISERROR(IF(MID('CFR - XML import'!$A159,LEN($CF$4)+1,LEN('CFR - XML import'!$A159)-(2*LEN($CF$4)+1))=\"RMMS\",1,IF(MID('CFR - XML import'!$A159,LEN(\"    <InputSystem>\")+1,LEN('CFR - XML import'!$A159)-(LEN(\"    <InputSystem>\")+LEN($CF$4)+1))=\"SIMS\",2,0))),0,IF(MID('CFR - XML import'!$A159,LEN($CF$4)+1,LEN('CFR - XML import'!$A159)-(2*LEN($CF$4)+1))=\"RMMS\",1,IF(MID('CFR - XML import'!$A159,LEN(\"    <InputSystem>\")+1,LEN('CFR - XML import'!$A159)-(LEN(\"    <InputSystem>\")+LEN($CF$4)+1))=\"SIMS\",2,0)))","v":0},{"$f":"IF(ISERROR(FIND(CH$3,'CFR - XML import'!$A159)),0,MID('CFR - XML import'!$A159,SEARCH(\">\",'CFR - XML import'!$A159,1)+1,SEARCH(\"/\",'CFR - XML import'!$A159,1)-SEARCH(\">\",'CFR - XML import'!$A159,1)-2))","v":0},{"$f":"IF(ISERROR(FIND(CI$3,'CFR - XML import'!$A159)),0,MID('CFR - XML import'!$A159,SEARCH(\">\",'CFR - XML import'!$A159,1)+1,SEARCH(\"/\",'CFR - XML import'!$A159,1)-SEARCH(\">\",'CFR - XML import'!$A159,1)-2))","v":0},{"$f":"IF(ISERROR(FIND(CJ$3,'CFR - XML import'!$A159)),0,MID('CFR - XML import'!$A159,SEARCH(\">\",'CFR - XML import'!$A159,1)+1,SEARCH(\"/\",'CFR - XML import'!$A159,1)-SEARCH(\">\",'CFR - XML import'!$A159,1)-2))","v":0},{"$f":"IF(ISERROR(FIND(CK$3,'CFR - XML import'!$A159)),0,MID('CFR - XML import'!$A159,SEARCH(\">\",'CFR - XML import'!$A159,1)+1,SEARCH(\"/\",'CFR - XML import'!$A159,1)-SEARCH(\">\",'CFR - XML import'!$A159,1)-2))","v":0},{"$f":"IF(ISERROR(FIND(CL$3,'CFR - XML import'!$A159)),0,MID('CFR - XML import'!$A159,SEARCH(\">\",'CFR - XML import'!$A159,1)+1,SEARCH(\"/\",'CFR - XML import'!$A159,1)-SEARCH(\">\",'CFR - XML import'!$A159,1)-2))","v":0}]
[{"$f":"IF(AND('CFR - XML import'!A160<>\"\",LEFT('CFR - XML import'!A160,1)<>\"<\",LEFT('CFR - XML import'!A160,3)<>\"  <\",LEFT('CFR - XML import'!A160,5)<>\"    <\",LEFT('CFR - XML import'!A160,7)<>\"      <\",LEFT('CFR - XML import'!A160,9)<>\"        <\",$B$1=\"SIMS\"),'CFR - XML import'!A160,IF(AND(LEFT('CFR - XML import'!A160,9)=\"<Details>\",$B$1=\"RM\"),'CFR - XML import'!A160,\"\"))","v":""},{"$f":"IF(ISERROR(FIND(B$3,'CFR - XML import'!$A160)),0,VALUE(MID('CFR - XML import'!$A160,SEARCH(\">\",'CFR - XML import'!$A160,1)+1,SEARCH(\"/\",'CFR - XML import'!$A160,1)-SEARCH(\">\",'CFR - XML import'!$A160,1)-2)))","v":0},null,{"$f":"IF(ISERROR(FIND(D$3,'CFR - XML import'!$A160)),0,MID('CFR - XML import'!$A160,SEARCH(\">\",'CFR - XML import'!$A160,1)+1,SEARCH(\"/\",'CFR - XML import'!$A160,1)-SEARCH(\">\",'CFR - XML import'!$A160,1)-2))","v":0},{"$f":"IF(ISERROR(FIND(E$3,'CFR - XML import'!$A160)),0,MID('CFR - XML import'!$A160,SEARCH(\">\",'CFR - XML import'!$A160,1)+1,SEARCH(\"/\",'CFR - XML import'!$A160,1)-SEARCH(\">\",'CFR - XML import'!$A160,1)-2))","v":0},{"$f":"IF($B$1=\"SIMS\",IF(ISERROR(FIND(F$3,'CFR - XML import'!$A160)),0,VALUE(MID('CFR - XML import'!$A160,15,10))),IF(ISERROR(FIND(F$3,'CFR - XML import'!$A160)),0,VALUE(MID('CFR - XML import'!$A160,11,10))))","v":"00:00:00"},{"$f":"IF(ISERROR(FIND(G$3,'CFR - XML import'!$A160)),0,VALUE(MID('CFR - XML import'!$A160,SEARCH(\">\",'CFR - XML import'!$A160,1)+1,SEARCH(\"/\",'CFR - XML import'!$A160,1)-SEARCH(\">\",'CFR - XML import'!$A160,1)-2)))","v":0},{"$f":"IF(ISERROR(FIND(H$3,'CFR - XML import'!$A160)),0,VALUE(MID('CFR - XML import'!$A160,SEARCH(\">\",'CFR - XML import'!$A160,1)+1,SEARCH(\"/\",'CFR - XML import'!$A160,1)-SEARCH(\">\",'CFR - XML import'!$A160,1)-2)))","v":0},{"$f":"IF(ISERROR(FIND(I$3,'CFR - XML import'!$A160)),0,VALUE(MID('CFR - XML import'!$A160,SEARCH(\">\",'CFR - XML import'!$A160,1)+1,SEARCH(\"/\",'CFR - XML import'!$A160,1)-SEARCH(\">\",'CFR - XML import'!$A160,1)-2)))","v":0},{"$f":"IF(ISERROR(FIND(J$3,'CFR - XML import'!$A160)),0,VALUE(MID('CFR - XML import'!$A160,SEARCH(\">\",'CFR - XML import'!$A160,1)+1,SEARCH(\"/\",'CFR - XML import'!$A160,1)-SEARCH(\">\",'CFR - XML import'!$A160,1)-2)))","v":0},{"$f":"IF(ISERROR(FIND(K$3,'CFR - XML import'!$A160)),0,VALUE(MID('CFR - XML import'!$A160,SEARCH(\">\",'CFR - XML import'!$A160,1)+1,SEARCH(\"/\",'CFR - XML import'!$A160,1)-SEARCH(\">\",'CFR - XML import'!$A160,1)-2)))","v":0},{"$f":"IF(ISERROR(FIND(L$3,'CFR - XML import'!$A160)),0,VALUE(MID('CFR - XML import'!$A160,SEARCH(\">\",'CFR - XML import'!$A160,1)+1,SEARCH(\"/\",'CFR - XML import'!$A160,1)-SEARCH(\">\",'CFR - XML import'!$A160,1)-2)))","v":0},{"$f":"IF(ISERROR(FIND(M$3,'CFR - XML import'!$A160)),0,VALUE(MID('CFR - XML import'!$A160,SEARCH(\">\",'CFR - XML import'!$A160,1)+1,SEARCH(\"/\",'CFR - XML import'!$A160,1)-SEARCH(\">\",'CFR - XML import'!$A160,1)-2)))","v":0},{"$f":"IF(ISERROR(FIND(N$3,'CFR - XML import'!$A160)),0,VALUE(MID('CFR - XML import'!$A160,SEARCH(\">\",'CFR - XML import'!$A160,1)+1,SEARCH(\"/\",'CFR - XML import'!$A160,1)-SEARCH(\">\",'CFR - XML import'!$A160,1)-2)))","v":0},{"$f":"IF(ISERROR(FIND(O$3,'CFR - XML import'!$A160)),0,VALUE(MID('CFR - XML import'!$A160,SEARCH(\">\",'CFR - XML import'!$A160,1)+1,SEARCH(\"/\",'CFR - XML import'!$A160,1)-SEARCH(\">\",'CFR - XML import'!$A160,1)-2)))","v":0},{"$f":"IF(ISERROR(FIND(P$3,'CFR - XML import'!$A160)),0,VALUE(MID('CFR - XML import'!$A160,SEARCH(\">\",'CFR - XML import'!$A160,1)+1,SEARCH(\"/\",'CFR - XML import'!$A160,1)-SEARCH(\">\",'CFR - XML import'!$A160,1)-2)))","v":0},{"$f":"IF(ISERROR(FIND(Q$3,'CFR - XML import'!$A160)),0,VALUE(MID('CFR - XML import'!$A160,SEARCH(\">\",'CFR - XML import'!$A160,1)+1,SEARCH(\"/\",'CFR - XML import'!$A160,1)-SEARCH(\">\",'CFR - XML import'!$A160,1)-2)))","v":0},{"$f":"IF(ISERROR(FIND(R$3,'CFR - XML import'!$A160)),0,VALUE(MID('CFR - XML import'!$A160,SEARCH(\">\",'CFR - XML import'!$A160,1)+1,SEARCH(\"/\",'CFR - XML import'!$A160,1)-SEARCH(\">\",'CFR - XML import'!$A160,1)-2)))","v":0},{"$f":"IF(ISERROR(FIND(S$3,'CFR - XML import'!$A160)),0,VALUE(MID('CFR - XML import'!$A160,SEARCH(\">\",'CFR - XML import'!$A160,1)+1,SEARCH(\"/\",'CFR - XML import'!$A160,1)-SEARCH(\">\",'CFR - XML import'!$A160,1)-2)))","v":0},{"$f":"IF(ISERROR(FIND(T$3,'CFR - XML import'!$A160)),0,VALUE(MID('CFR - XML import'!$A160,SEARCH(\">\",'CFR - XML import'!$A160,1)+1,SEARCH(\"/\",'CFR - XML import'!$A160,1)-SEARCH(\">\",'CFR - XML import'!$A160,1)-2)))","v":0},{"$f":"IF(ISERROR(FIND(U$3,'CFR - XML import'!$A160)),0,VALUE(MID('CFR - XML import'!$A160,SEARCH(\">\",'CFR - XML import'!$A160,1)+1,SEARCH(\"/\",'CFR - XML import'!$A160,1)-SEARCH(\">\",'CFR - XML import'!$A160,1)-2)))","v":0},{"$f":"IF(ISERROR(FIND(V$3,'CFR - XML import'!$A160)),0,VALUE(MID('CFR - XML import'!$A160,SEARCH(\">\",'CFR - XML import'!$A160,1)+1,SEARCH(\"/\",'CFR - XML import'!$A160,1)-SEARCH(\">\",'CFR - XML import'!$A160,1)-2)))","v":0},{"$f":"IF(ISERROR(FIND(W$3,'CFR - XML import'!$A160)),0,VALUE(MID('CFR - XML import'!$A160,SEARCH(\">\",'CFR - XML import'!$A160,1)+1,SEARCH(\"/\",'CFR - XML import'!$A160,1)-SEARCH(\">\",'CFR - XML import'!$A160,1)-2)))","v":0},null,{"$f":"IF(ISERROR(FIND(Y$3,'CFR - XML import'!$A160)),0,VALUE(MID('CFR - XML import'!$A160,SEARCH(\">\",'CFR - XML import'!$A160,1)+1,SEARCH(\"/\",'CFR - XML import'!$A160,1)-SEARCH(\">\",'CFR - XML import'!$A160,1)-2)))","v":0},{"$f":"IF(ISERROR(FIND(Z$3,'CFR - XML import'!$A160)),0,VALUE(MID('CFR - XML import'!$A160,SEARCH(\">\",'CFR - XML import'!$A160,1)+1,SEARCH(\"/\",'CFR - XML import'!$A160,1)-SEARCH(\">\",'CFR - XML import'!$A160,1)-2)))","v":0},{"$f":"IF(ISERROR(FIND(AA$3,'CFR - XML import'!$A160)),0,VALUE(MID('CFR - XML import'!$A160,SEARCH(\">\",'CFR - XML import'!$A160,1)+1,SEARCH(\"/\",'CFR - XML import'!$A160,1)-SEARCH(\">\",'CFR - XML import'!$A160,1)-2)))","v":0},{"$f":"IF(ISERROR(FIND(AB$3,'CFR - XML import'!$A160)),0,VALUE(MID('CFR - XML import'!$A160,SEARCH(\">\",'CFR - XML import'!$A160,1)+1,SEARCH(\"/\",'CFR - XML import'!$A160,1)-SEARCH(\">\",'CFR - XML import'!$A160,1)-2)))","v":0},{"$f":"IF(ISERROR(FIND(AC$3,'CFR - XML import'!$A160)),0,VALUE(MID('CFR - XML import'!$A160,SEARCH(\">\",'CFR - XML import'!$A160,1)+1,SEARCH(\"/\",'CFR - XML import'!$A160,1)-SEARCH(\">\",'CFR - XML import'!$A160,1)-2)))","v":0},{"$f":"IF(ISERROR(FIND(AD$3,'CFR - XML import'!$A160)),0,VALUE(MID('CFR - XML import'!$A160,SEARCH(\">\",'CFR - XML import'!$A160,1)+1,SEARCH(\"/\",'CFR - XML import'!$A160,1)-SEARCH(\">\",'CFR - XML import'!$A160,1)-2)))","v":0},{"$f":"IF(ISERROR(FIND(AE$3,'CFR - XML import'!$A160)),0,VALUE(MID('CFR - XML import'!$A160,SEARCH(\">\",'CFR - XML import'!$A160,1)+1,SEARCH(\"/\",'CFR - XML import'!$A160,1)-SEARCH(\">\",'CFR - XML import'!$A160,1)-2)))","v":0},{"$f":"IF(ISERROR(FIND(AF$3,'CFR - XML import'!$A160)),0,VALUE(MID('CFR - XML import'!$A160,SEARCH(\">\",'CFR - XML import'!$A160,1)+1,SEARCH(\"/\",'CFR - XML import'!$A160,1)-SEARCH(\">\",'CFR - XML import'!$A160,1)-2)))","v":0},{"$f":"IF(ISERROR(FIND(AG$3,'CFR - XML import'!$A160)),0,VALUE(MID('CFR - XML import'!$A160,SEARCH(\">\",'CFR - XML import'!$A160,1)+1,SEARCH(\"/\",'CFR - XML import'!$A160,1)-SEARCH(\">\",'CFR - XML import'!$A160,1)-2)))","v":0},{"$f":"IF(ISERROR(FIND(AH$3,'CFR - XML import'!$A160)),0,VALUE(MID('CFR - XML import'!$A160,SEARCH(\">\",'CFR - XML import'!$A160,1)+1,SEARCH(\"/\",'CFR - XML import'!$A160,1)-SEARCH(\">\",'CFR - XML import'!$A160,1)-2)))","v":0},{"$f":"IF(ISERROR(FIND(AI$3,'CFR - XML import'!$A160)),0,VALUE(MID('CFR - XML import'!$A160,SEARCH(\">\",'CFR - XML import'!$A160,1)+1,SEARCH(\"/\",'CFR - XML import'!$A160,1)-SEARCH(\">\",'CFR - XML import'!$A160,1)-2)))","v":0},{"$f":"IF(ISERROR(FIND(AJ$3,'CFR - XML import'!$A160)),0,VALUE(MID('CFR - XML import'!$A160,SEARCH(\">\",'CFR - XML import'!$A160,1)+1,SEARCH(\"/\",'CFR - XML import'!$A160,1)-SEARCH(\">\",'CFR - XML import'!$A160,1)-2)))","v":0},{"$f":"IF(ISERROR(FIND(AK$3,'CFR - XML import'!$A160)),0,VALUE(MID('CFR - XML import'!$A160,SEARCH(\">\",'CFR - XML import'!$A160,1)+1,SEARCH(\"/\",'CFR - XML import'!$A160,1)-SEARCH(\">\",'CFR - XML import'!$A160,1)-2)))","v":0},{"$f":"IF(ISERROR(FIND(AL$3,'CFR - XML import'!$A160)),0,VALUE(MID('CFR - XML import'!$A160,SEARCH(\">\",'CFR - XML import'!$A160,1)+1,SEARCH(\"/\",'CFR - XML import'!$A160,1)-SEARCH(\">\",'CFR - XML import'!$A160,1)-2)))","v":0},{"$f":"IF(ISERROR(FIND(AM$3,'CFR - XML import'!$A160)),0,VALUE(MID('CFR - XML import'!$A160,SEARCH(\">\",'CFR - XML import'!$A160,1)+1,SEARCH(\"/\",'CFR - XML import'!$A160,1)-SEARCH(\">\",'CFR - XML import'!$A160,1)-2)))","v":0},{"$f":"IF(ISERROR(FIND(AN$3,'CFR - XML import'!$A160)),0,VALUE(MID('CFR - XML import'!$A160,SEARCH(\">\",'CFR - XML import'!$A160,1)+1,SEARCH(\"/\",'CFR - XML import'!$A160,1)-SEARCH(\">\",'CFR - XML import'!$A160,1)-2)))","v":0},{"$f":"IF(ISERROR(FIND(AO$3,'CFR - XML import'!$A160)),0,VALUE(MID('CFR - XML import'!$A160,SEARCH(\">\",'CFR - XML import'!$A160,1)+1,SEARCH(\"/\",'CFR - XML import'!$A160,1)-SEARCH(\">\",'CFR - XML import'!$A160,1)-2)))","v":0},{"$f":"IF(ISERROR(FIND(AP$3,'CFR - XML import'!$A160)),0,VALUE(MID('CFR - XML import'!$A160,SEARCH(\">\",'CFR - XML import'!$A160,1)+1,SEARCH(\"/\",'CFR - XML import'!$A160,1)-SEARCH(\">\",'CFR - XML import'!$A160,1)-2)))","v":0},{"$f":"IF(ISERROR(FIND(AQ$3,'CFR - XML import'!$A160)),0,VALUE(MID('CFR - XML import'!$A160,SEARCH(\">\",'CFR - XML import'!$A160,1)+1,SEARCH(\"/\",'CFR - XML import'!$A160,1)-SEARCH(\">\",'CFR - XML import'!$A160,1)-2)))","v":0},{"$f":"IF(ISERROR(FIND(AR$3,'CFR - XML import'!$A160)),0,VALUE(MID('CFR - XML import'!$A160,SEARCH(\">\",'CFR - XML import'!$A160,1)+1,SEARCH(\"/\",'CFR - XML import'!$A160,1)-SEARCH(\">\",'CFR - XML import'!$A160,1)-2)))","v":0},{"$f":"IF(ISERROR(FIND(AS$3,'CFR - XML import'!$A160)),0,VALUE(MID('CFR - XML import'!$A160,SEARCH(\">\",'CFR - XML import'!$A160,1)+1,SEARCH(\"/\",'CFR - XML import'!$A160,1)-SEARCH(\">\",'CFR - XML import'!$A160,1)-2)))","v":0},{"$f":"IF(ISERROR(FIND(AT$3,'CFR - XML import'!$A160)),0,VALUE(MID('CFR - XML import'!$A160,SEARCH(\">\",'CFR - XML import'!$A160,1)+1,SEARCH(\"/\",'CFR - XML import'!$A160,1)-SEARCH(\">\",'CFR - XML import'!$A160,1)-2)))","v":0},{"$f":"IF(ISERROR(FIND(AU$3,'CFR - XML import'!$A160)),0,VALUE(MID('CFR - XML import'!$A160,SEARCH(\">\",'CFR - XML import'!$A160,1)+1,SEARCH(\"/\",'CFR - XML import'!$A160,1)-SEARCH(\">\",'CFR - XML import'!$A160,1)-2)))","v":0},{"$f":"IF(ISERROR(FIND(AV$3,'CFR - XML import'!$A160)),0,VALUE(MID('CFR - XML import'!$A160,SEARCH(\">\",'CFR - XML import'!$A160,1)+1,SEARCH(\"/\",'CFR - XML import'!$A160,1)-SEARCH(\">\",'CFR - XML import'!$A160,1)-2)))","v":0},{"$f":"IF(ISERROR(FIND(AW$3,'CFR - XML import'!$A160)),0,VALUE(MID('CFR - XML import'!$A160,SEARCH(\">\",'CFR - XML import'!$A160,1)+1,SEARCH(\"/\",'CFR - XML import'!$A160,1)-SEARCH(\">\",'CFR - XML import'!$A160,1)-2)))","v":0},{"$f":"IF(ISERROR(FIND(AX$3,'CFR - XML import'!$A160)),0,VALUE(MID('CFR - XML import'!$A160,SEARCH(\">\",'CFR - XML import'!$A160,1)+1,SEARCH(\"/\",'CFR - XML import'!$A160,1)-SEARCH(\">\",'CFR - XML import'!$A160,1)-2)))","v":0},{"$f":"IF(ISERROR(FIND(AY$3,'CFR - XML import'!$A160)),0,VALUE(MID('CFR - XML import'!$A160,SEARCH(\">\",'CFR - XML import'!$A160,1)+1,SEARCH(\"/\",'CFR - XML import'!$A160,1)-SEARCH(\">\",'CFR - XML import'!$A160,1)-2)))","v":0},{"$f":"IF(ISERROR(FIND(AZ$3,'CFR - XML import'!$A160)),0,VALUE(MID('CFR - XML import'!$A160,SEARCH(\">\",'CFR - XML import'!$A160,1)+1,SEARCH(\"/\",'CFR - XML import'!$A160,1)-SEARCH(\">\",'CFR - XML import'!$A160,1)-2)))","v":0},{"$f":"IF(ISERROR(FIND(BA$3,'CFR - XML import'!$A160)),0,VALUE(MID('CFR - XML import'!$A160,SEARCH(\">\",'CFR - XML import'!$A160,1)+1,SEARCH(\"/\",'CFR - XML import'!$A160,1)-SEARCH(\">\",'CFR - XML import'!$A160,1)-2)))","v":0},{"$f":"IF(ISERROR(FIND(BB$3,'CFR - XML import'!$A160)),0,VALUE(MID('CFR - XML import'!$A160,SEARCH(\">\",'CFR - XML import'!$A160,1)+1,SEARCH(\"/\",'CFR - XML import'!$A160,1)-SEARCH(\">\",'CFR - XML import'!$A160,1)-2)))","v":0},{"$f":"IF(ISERROR(FIND(BC$3,'CFR - XML import'!$A160)),0,VALUE(MID('CFR - XML import'!$A160,SEARCH(\">\",'CFR - XML import'!$A160,1)+1,SEARCH(\"/\",'CFR - XML import'!$A160,1)-SEARCH(\">\",'CFR - XML import'!$A160,1)-2)))","v":0},{"$f":"IF(ISERROR(FIND(BD$3,'CFR - XML import'!$A160)),0,VALUE(MID('CFR - XML import'!$A160,SEARCH(\">\",'CFR - XML import'!$A160,1)+1,SEARCH(\"/\",'CFR - XML import'!$A160,1)-SEARCH(\">\",'CFR - XML import'!$A160,1)-2)))","v":0},{"$f":"IF(ISERROR(FIND(BE$3,'CFR - XML import'!$A160)),0,VALUE(MID('CFR - XML import'!$A160,SEARCH(\">\",'CFR - XML import'!$A160,1)+1,SEARCH(\"/\",'CFR - XML import'!$A160,1)-SEARCH(\">\",'CFR - XML import'!$A160,1)-2)))","v":0},{"$f":"IF(ISERROR(FIND(BF$3,'CFR - XML import'!$A160)),0,VALUE(MID('CFR - XML import'!$A160,SEARCH(\">\",'CFR - XML import'!$A160,1)+1,SEARCH(\"/\",'CFR - XML import'!$A160,1)-SEARCH(\">\",'CFR - XML import'!$A160,1)-2)))","v":0},{"$f":"IF(ISERROR(FIND(BG$3,'CFR - XML import'!$A160)),0,VALUE(MID('CFR - XML import'!$A160,SEARCH(\">\",'CFR - XML import'!$A160,1)+1,SEARCH(\"/\",'CFR - XML import'!$A160,1)-SEARCH(\">\",'CFR - XML import'!$A160,1)-2)))","v":0},{"$f":"IF(ISERROR(FIND(BH$3,'CFR - XML import'!$A160)),0,VALUE(MID('CFR - XML import'!$A160,SEARCH(\">\",'CFR - XML import'!$A160,1)+1,SEARCH(\"/\",'CFR - XML import'!$A160,1)-SEARCH(\">\",'CFR - XML import'!$A160,1)-2)))","v":0},{"$f":"IF(ISERROR(FIND(BI$3,'CFR - XML import'!$A160)),0,VALUE(MID('CFR - XML import'!$A160,SEARCH(\">\",'CFR - XML import'!$A160,1)+1,SEARCH(\"/\",'CFR - XML import'!$A160,1)-SEARCH(\">\",'CFR - XML import'!$A160,1)-2)))","v":0},{"$f":"IF(ISERROR(FIND(BJ$3,'CFR - XML import'!$A160)),0,VALUE(MID('CFR - XML import'!$A160,SEARCH(\">\",'CFR - XML import'!$A160,1)+1,SEARCH(\"/\",'CFR - XML import'!$A160,1)-SEARCH(\">\",'CFR - XML import'!$A160,1)-2)))","v":0},{"$f":"IF(ISERROR(FIND(BK$3,'CFR - XML import'!$A160)),0,VALUE(MID('CFR - XML import'!$A160,SEARCH(\">\",'CFR - XML import'!$A160,1)+1,SEARCH(\"/\",'CFR - XML import'!$A160,1)-SEARCH(\">\",'CFR - XML import'!$A160,1)-2)))","v":0},{"$f":"IF(ISERROR(FIND(BL$3,'CFR - XML import'!$A160)),0,VALUE(MID('CFR - XML import'!$A160,SEARCH(\">\",'CFR - XML import'!$A160,1)+1,SEARCH(\"/\",'CFR - XML import'!$A160,1)-SEARCH(\">\",'CFR - XML import'!$A160,1)-2)))","v":0},{"$f":"IF(ISERROR(FIND(BM$3,'CFR - XML import'!$A160)),0,VALUE(MID('CFR - XML import'!$A160,SEARCH(\">\",'CFR - XML import'!$A160,1)+1,SEARCH(\"/\",'CFR - XML import'!$A160,1)-SEARCH(\">\",'CFR - XML import'!$A160,1)-2)))","v":0},{"$f":"IF(ISERROR(FIND(BN$3,'CFR - XML import'!$A160)),0,VALUE(MID('CFR - XML import'!$A160,SEARCH(\">\",'CFR - XML import'!$A160,1)+1,SEARCH(\"/\",'CFR - XML import'!$A160,1)-SEARCH(\">\",'CFR - XML import'!$A160,1)-2)))","v":0},{"$f":"IF(ISERROR(FIND(BO$3,'CFR - XML import'!$A160)),0,VALUE(MID('CFR - XML import'!$A160,SEARCH(\">\",'CFR - XML import'!$A160,1)+1,SEARCH(\"/\",'CFR - XML import'!$A160,1)-SEARCH(\">\",'CFR - XML import'!$A160,1)-2)))","v":0},{"$f":"IF(ISERROR(FIND(BP$3,'CFR - XML import'!$A160)),0,VALUE(MID('CFR - XML import'!$A160,SEARCH(\">\",'CFR - XML import'!$A160,1)+1,SEARCH(\"/\",'CFR - XML import'!$A160,1)-SEARCH(\">\",'CFR - XML import'!$A160,1)-2)))","v":0},{"$f":"IF(ISERROR(FIND(BQ$3,'CFR - XML import'!$A160)),0,VALUE(MID('CFR - XML import'!$A160,SEARCH(\">\",'CFR - XML import'!$A160,1)+1,SEARCH(\"/\",'CFR - XML import'!$A160,1)-SEARCH(\">\",'CFR - XML import'!$A160,1)-2)))","v":0},{"$f":"IF(ISERROR(FIND(BR$3,'CFR - XML import'!$A160)),0,VALUE(MID('CFR - XML import'!$A160,SEARCH(\">\",'CFR - XML import'!$A160,1)+1,SEARCH(\"/\",'CFR - XML import'!$A160,1)-SEARCH(\">\",'CFR - XML import'!$A160,1)-2)))","v":0},{"$f":"IF(ISERROR(FIND(BS$3,'CFR - XML import'!$A160)),0,VALUE(MID('CFR - XML import'!$A160,SEARCH(\">\",'CFR - XML import'!$A160,1)+1,SEARCH(\"/\",'CFR - XML import'!$A160,1)-SEARCH(\">\",'CFR - XML import'!$A160,1)-2)))","v":0},{"$f":"IF(ISERROR(FIND(BT$3,'CFR - XML import'!$A160)),0,VALUE(MID('CFR - XML import'!$A160,SEARCH(\">\",'CFR - XML import'!$A160,1)+1,SEARCH(\"/\",'CFR - XML import'!$A160,1)-SEARCH(\">\",'CFR - XML import'!$A160,1)-2)))","v":0},{"$f":"IF(ISERROR(FIND(BU$3,'CFR - XML import'!$A160)),0,VALUE(MID('CFR - XML import'!$A160,SEARCH(\">\",'CFR - XML import'!$A160,1)+1,SEARCH(\"/\",'CFR - XML import'!$A160,1)-SEARCH(\">\",'CFR - XML import'!$A160,1)-2)))","v":0},{"$f":"IF(ISERROR(FIND(BV$3,'CFR - XML import'!$A160)),0,VALUE(MID('CFR - XML import'!$A160,SEARCH(\">\",'CFR - XML import'!$A160,1)+1,SEARCH(\"/\",'CFR - XML import'!$A160,1)-SEARCH(\">\",'CFR - XML import'!$A160,1)-2)))","v":0},{"$f":"IF(ISERROR(FIND(BW$3,'CFR - XML import'!$A160)),0,VALUE(MID('CFR - XML import'!$A160,SEARCH(\">\",'CFR - XML import'!$A160,1)+1,SEARCH(\"/\",'CFR - XML import'!$A160,1)-SEARCH(\">\",'CFR - XML import'!$A160,1)-2)))","v":0},{"$f":"IF(ISERROR(FIND(BX$3,'CFR - XML import'!$A160)),0,VALUE(MID('CFR - XML import'!$A160,SEARCH(\">\",'CFR - XML import'!$A160,1)+1,SEARCH(\"/\",'CFR - XML import'!$A160,1)-SEARCH(\">\",'CFR - XML import'!$A160,1)-2)))","v":0},{"$f":"IF(ISERROR(FIND(BY$3,'CFR - XML import'!$A160)),0,VALUE(MID('CFR - XML import'!$A160,SEARCH(\">\",'CFR - XML import'!$A160,1)+1,SEARCH(\"/\",'CFR - XML import'!$A160,1)-SEARCH(\">\",'CFR - XML import'!$A160,1)-2)))","v":0},{"$f":"IF(ISERROR(FIND(BZ$3,'CFR - XML import'!$A160)),0,VALUE(MID('CFR - XML import'!$A160,SEARCH(\">\",'CFR - XML import'!$A160,1)+1,SEARCH(\"/\",'CFR - XML import'!$A160,1)-SEARCH(\">\",'CFR - XML import'!$A160,1)-2)))","v":0},null,null,null,null,null,null,{"$f":"IF(ISERROR(IF(MID('CFR - XML import'!$A160,LEN($CF$4)+1,LEN('CFR - XML import'!$A160)-(2*LEN($CF$4)+1))=\"RMMS\",1,IF(MID('CFR - XML import'!$A160,LEN(\"    <InputSystem>\")+1,LEN('CFR - XML import'!$A160)-(LEN(\"    <InputSystem>\")+LEN($CF$4)+1))=\"SIMS\",2,0))),0,IF(MID('CFR - XML import'!$A160,LEN($CF$4)+1,LEN('CFR - XML import'!$A160)-(2*LEN($CF$4)+1))=\"RMMS\",1,IF(MID('CFR - XML import'!$A160,LEN(\"    <InputSystem>\")+1,LEN('CFR - XML import'!$A160)-(LEN(\"    <InputSystem>\")+LEN($CF$4)+1))=\"SIMS\",2,0)))","v":0},{"$f":"IF(ISERROR(FIND(CH$3,'CFR - XML import'!$A160)),0,MID('CFR - XML import'!$A160,SEARCH(\">\",'CFR - XML import'!$A160,1)+1,SEARCH(\"/\",'CFR - XML import'!$A160,1)-SEARCH(\">\",'CFR - XML import'!$A160,1)-2))","v":0},{"$f":"IF(ISERROR(FIND(CI$3,'CFR - XML import'!$A160)),0,MID('CFR - XML import'!$A160,SEARCH(\">\",'CFR - XML import'!$A160,1)+1,SEARCH(\"/\",'CFR - XML import'!$A160,1)-SEARCH(\">\",'CFR - XML import'!$A160,1)-2))","v":0},{"$f":"IF(ISERROR(FIND(CJ$3,'CFR - XML import'!$A160)),0,MID('CFR - XML import'!$A160,SEARCH(\">\",'CFR - XML import'!$A160,1)+1,SEARCH(\"/\",'CFR - XML import'!$A160,1)-SEARCH(\">\",'CFR - XML import'!$A160,1)-2))","v":0},{"$f":"IF(ISERROR(FIND(CK$3,'CFR - XML import'!$A160)),0,MID('CFR - XML import'!$A160,SEARCH(\">\",'CFR - XML import'!$A160,1)+1,SEARCH(\"/\",'CFR - XML import'!$A160,1)-SEARCH(\">\",'CFR - XML import'!$A160,1)-2))","v":0},{"$f":"IF(ISERROR(FIND(CL$3,'CFR - XML import'!$A160)),0,MID('CFR - XML import'!$A160,SEARCH(\">\",'CFR - XML import'!$A160,1)+1,SEARCH(\"/\",'CFR - XML import'!$A160,1)-SEARCH(\">\",'CFR - XML import'!$A160,1)-2))","v":0}]
[{"$f":"IF(AND('CFR - XML import'!A161<>\"\",LEFT('CFR - XML import'!A161,1)<>\"<\",LEFT('CFR - XML import'!A161,3)<>\"  <\",LEFT('CFR - XML import'!A161,5)<>\"    <\",LEFT('CFR - XML import'!A161,7)<>\"      <\",LEFT('CFR - XML import'!A161,9)<>\"        <\",$B$1=\"SIMS\"),'CFR - XML import'!A161,IF(AND(LEFT('CFR - XML import'!A161,9)=\"<Details>\",$B$1=\"RM\"),'CFR - XML import'!A161,\"\"))","v":""},{"$f":"IF(ISERROR(FIND(B$3,'CFR - XML import'!$A161)),0,VALUE(MID('CFR - XML import'!$A161,SEARCH(\">\",'CFR - XML import'!$A161,1)+1,SEARCH(\"/\",'CFR - XML import'!$A161,1)-SEARCH(\">\",'CFR - XML import'!$A161,1)-2)))","v":0},null,{"$f":"IF(ISERROR(FIND(D$3,'CFR - XML import'!$A161)),0,MID('CFR - XML import'!$A161,SEARCH(\">\",'CFR - XML import'!$A161,1)+1,SEARCH(\"/\",'CFR - XML import'!$A161,1)-SEARCH(\">\",'CFR - XML import'!$A161,1)-2))","v":0},{"$f":"IF(ISERROR(FIND(E$3,'CFR - XML import'!$A161)),0,MID('CFR - XML import'!$A161,SEARCH(\">\",'CFR - XML import'!$A161,1)+1,SEARCH(\"/\",'CFR - XML import'!$A161,1)-SEARCH(\">\",'CFR - XML import'!$A161,1)-2))","v":0},{"$f":"IF($B$1=\"SIMS\",IF(ISERROR(FIND(F$3,'CFR - XML import'!$A161)),0,VALUE(MID('CFR - XML import'!$A161,15,10))),IF(ISERROR(FIND(F$3,'CFR - XML import'!$A161)),0,VALUE(MID('CFR - XML import'!$A161,11,10))))","v":"00:00:00"},{"$f":"IF(ISERROR(FIND(G$3,'CFR - XML import'!$A161)),0,VALUE(MID('CFR - XML import'!$A161,SEARCH(\">\",'CFR - XML import'!$A161,1)+1,SEARCH(\"/\",'CFR - XML import'!$A161,1)-SEARCH(\">\",'CFR - XML import'!$A161,1)-2)))","v":0},{"$f":"IF(ISERROR(FIND(H$3,'CFR - XML import'!$A161)),0,VALUE(MID('CFR - XML import'!$A161,SEARCH(\">\",'CFR - XML import'!$A161,1)+1,SEARCH(\"/\",'CFR - XML import'!$A161,1)-SEARCH(\">\",'CFR - XML import'!$A161,1)-2)))","v":0},{"$f":"IF(ISERROR(FIND(I$3,'CFR - XML import'!$A161)),0,VALUE(MID('CFR - XML import'!$A161,SEARCH(\">\",'CFR - XML import'!$A161,1)+1,SEARCH(\"/\",'CFR - XML import'!$A161,1)-SEARCH(\">\",'CFR - XML import'!$A161,1)-2)))","v":0},{"$f":"IF(ISERROR(FIND(J$3,'CFR - XML import'!$A161)),0,VALUE(MID('CFR - XML import'!$A161,SEARCH(\">\",'CFR - XML import'!$A161,1)+1,SEARCH(\"/\",'CFR - XML import'!$A161,1)-SEARCH(\">\",'CFR - XML import'!$A161,1)-2)))","v":0},{"$f":"IF(ISERROR(FIND(K$3,'CFR - XML import'!$A161)),0,VALUE(MID('CFR - XML import'!$A161,SEARCH(\">\",'CFR - XML import'!$A161,1)+1,SEARCH(\"/\",'CFR - XML import'!$A161,1)-SEARCH(\">\",'CFR - XML import'!$A161,1)-2)))","v":0},{"$f":"IF(ISERROR(FIND(L$3,'CFR - XML import'!$A161)),0,VALUE(MID('CFR - XML import'!$A161,SEARCH(\">\",'CFR - XML import'!$A161,1)+1,SEARCH(\"/\",'CFR - XML import'!$A161,1)-SEARCH(\">\",'CFR - XML import'!$A161,1)-2)))","v":0},{"$f":"IF(ISERROR(FIND(M$3,'CFR - XML import'!$A161)),0,VALUE(MID('CFR - XML import'!$A161,SEARCH(\">\",'CFR - XML import'!$A161,1)+1,SEARCH(\"/\",'CFR - XML import'!$A161,1)-SEARCH(\">\",'CFR - XML import'!$A161,1)-2)))","v":0},{"$f":"IF(ISERROR(FIND(N$3,'CFR - XML import'!$A161)),0,VALUE(MID('CFR - XML import'!$A161,SEARCH(\">\",'CFR - XML import'!$A161,1)+1,SEARCH(\"/\",'CFR - XML import'!$A161,1)-SEARCH(\">\",'CFR - XML import'!$A161,1)-2)))","v":0},{"$f":"IF(ISERROR(FIND(O$3,'CFR - XML import'!$A161)),0,VALUE(MID('CFR - XML import'!$A161,SEARCH(\">\",'CFR - XML import'!$A161,1)+1,SEARCH(\"/\",'CFR - XML import'!$A161,1)-SEARCH(\">\",'CFR - XML import'!$A161,1)-2)))","v":0},{"$f":"IF(ISERROR(FIND(P$3,'CFR - XML import'!$A161)),0,VALUE(MID('CFR - XML import'!$A161,SEARCH(\">\",'CFR - XML import'!$A161,1)+1,SEARCH(\"/\",'CFR - XML import'!$A161,1)-SEARCH(\">\",'CFR - XML import'!$A161,1)-2)))","v":0},{"$f":"IF(ISERROR(FIND(Q$3,'CFR - XML import'!$A161)),0,VALUE(MID('CFR - XML import'!$A161,SEARCH(\">\",'CFR - XML import'!$A161,1)+1,SEARCH(\"/\",'CFR - XML import'!$A161,1)-SEARCH(\">\",'CFR - XML import'!$A161,1)-2)))","v":0},{"$f":"IF(ISERROR(FIND(R$3,'CFR - XML import'!$A161)),0,VALUE(MID('CFR - XML import'!$A161,SEARCH(\">\",'CFR - XML import'!$A161,1)+1,SEARCH(\"/\",'CFR - XML import'!$A161,1)-SEARCH(\">\",'CFR - XML import'!$A161,1)-2)))","v":0},{"$f":"IF(ISERROR(FIND(S$3,'CFR - XML import'!$A161)),0,VALUE(MID('CFR - XML import'!$A161,SEARCH(\">\",'CFR - XML import'!$A161,1)+1,SEARCH(\"/\",'CFR - XML import'!$A161,1)-SEARCH(\">\",'CFR - XML import'!$A161,1)-2)))","v":0},{"$f":"IF(ISERROR(FIND(T$3,'CFR - XML import'!$A161)),0,VALUE(MID('CFR - XML import'!$A161,SEARCH(\">\",'CFR - XML import'!$A161,1)+1,SEARCH(\"/\",'CFR - XML import'!$A161,1)-SEARCH(\">\",'CFR - XML import'!$A161,1)-2)))","v":0},{"$f":"IF(ISERROR(FIND(U$3,'CFR - XML import'!$A161)),0,VALUE(MID('CFR - XML import'!$A161,SEARCH(\">\",'CFR - XML import'!$A161,1)+1,SEARCH(\"/\",'CFR - XML import'!$A161,1)-SEARCH(\">\",'CFR - XML import'!$A161,1)-2)))","v":0},{"$f":"IF(ISERROR(FIND(V$3,'CFR - XML import'!$A161)),0,VALUE(MID('CFR - XML import'!$A161,SEARCH(\">\",'CFR - XML import'!$A161,1)+1,SEARCH(\"/\",'CFR - XML import'!$A161,1)-SEARCH(\">\",'CFR - XML import'!$A161,1)-2)))","v":0},{"$f":"IF(ISERROR(FIND(W$3,'CFR - XML import'!$A161)),0,VALUE(MID('CFR - XML import'!$A161,SEARCH(\">\",'CFR - XML import'!$A161,1)+1,SEARCH(\"/\",'CFR - XML import'!$A161,1)-SEARCH(\">\",'CFR - XML import'!$A161,1)-2)))","v":0},null,{"$f":"IF(ISERROR(FIND(Y$3,'CFR - XML import'!$A161)),0,VALUE(MID('CFR - XML import'!$A161,SEARCH(\">\",'CFR - XML import'!$A161,1)+1,SEARCH(\"/\",'CFR - XML import'!$A161,1)-SEARCH(\">\",'CFR - XML import'!$A161,1)-2)))","v":0},{"$f":"IF(ISERROR(FIND(Z$3,'CFR - XML import'!$A161)),0,VALUE(MID('CFR - XML import'!$A161,SEARCH(\">\",'CFR - XML import'!$A161,1)+1,SEARCH(\"/\",'CFR - XML import'!$A161,1)-SEARCH(\">\",'CFR - XML import'!$A161,1)-2)))","v":0},{"$f":"IF(ISERROR(FIND(AA$3,'CFR - XML import'!$A161)),0,VALUE(MID('CFR - XML import'!$A161,SEARCH(\">\",'CFR - XML import'!$A161,1)+1,SEARCH(\"/\",'CFR - XML import'!$A161,1)-SEARCH(\">\",'CFR - XML import'!$A161,1)-2)))","v":0},{"$f":"IF(ISERROR(FIND(AB$3,'CFR - XML import'!$A161)),0,VALUE(MID('CFR - XML import'!$A161,SEARCH(\">\",'CFR - XML import'!$A161,1)+1,SEARCH(\"/\",'CFR - XML import'!$A161,1)-SEARCH(\">\",'CFR - XML import'!$A161,1)-2)))","v":0},{"$f":"IF(ISERROR(FIND(AC$3,'CFR - XML import'!$A161)),0,VALUE(MID('CFR - XML import'!$A161,SEARCH(\">\",'CFR - XML import'!$A161,1)+1,SEARCH(\"/\",'CFR - XML import'!$A161,1)-SEARCH(\">\",'CFR - XML import'!$A161,1)-2)))","v":0},{"$f":"IF(ISERROR(FIND(AD$3,'CFR - XML import'!$A161)),0,VALUE(MID('CFR - XML import'!$A161,SEARCH(\">\",'CFR - XML import'!$A161,1)+1,SEARCH(\"/\",'CFR - XML import'!$A161,1)-SEARCH(\">\",'CFR - XML import'!$A161,1)-2)))","v":0},{"$f":"IF(ISERROR(FIND(AE$3,'CFR - XML import'!$A161)),0,VALUE(MID('CFR - XML import'!$A161,SEARCH(\">\",'CFR - XML import'!$A161,1)+1,SEARCH(\"/\",'CFR - XML import'!$A161,1)-SEARCH(\">\",'CFR - XML import'!$A161,1)-2)))","v":0},{"$f":"IF(ISERROR(FIND(AF$3,'CFR - XML import'!$A161)),0,VALUE(MID('CFR - XML import'!$A161,SEARCH(\">\",'CFR - XML import'!$A161,1)+1,SEARCH(\"/\",'CFR - XML import'!$A161,1)-SEARCH(\">\",'CFR - XML import'!$A161,1)-2)))","v":0},{"$f":"IF(ISERROR(FIND(AG$3,'CFR - XML import'!$A161)),0,VALUE(MID('CFR - XML import'!$A161,SEARCH(\">\",'CFR - XML import'!$A161,1)+1,SEARCH(\"/\",'CFR - XML import'!$A161,1)-SEARCH(\">\",'CFR - XML import'!$A161,1)-2)))","v":0},{"$f":"IF(ISERROR(FIND(AH$3,'CFR - XML import'!$A161)),0,VALUE(MID('CFR - XML import'!$A161,SEARCH(\">\",'CFR - XML import'!$A161,1)+1,SEARCH(\"/\",'CFR - XML import'!$A161,1)-SEARCH(\">\",'CFR - XML import'!$A161,1)-2)))","v":0},{"$f":"IF(ISERROR(FIND(AI$3,'CFR - XML import'!$A161)),0,VALUE(MID('CFR - XML import'!$A161,SEARCH(\">\",'CFR - XML import'!$A161,1)+1,SEARCH(\"/\",'CFR - XML import'!$A161,1)-SEARCH(\">\",'CFR - XML import'!$A161,1)-2)))","v":0},{"$f":"IF(ISERROR(FIND(AJ$3,'CFR - XML import'!$A161)),0,VALUE(MID('CFR - XML import'!$A161,SEARCH(\">\",'CFR - XML import'!$A161,1)+1,SEARCH(\"/\",'CFR - XML import'!$A161,1)-SEARCH(\">\",'CFR - XML import'!$A161,1)-2)))","v":0},{"$f":"IF(ISERROR(FIND(AK$3,'CFR - XML import'!$A161)),0,VALUE(MID('CFR - XML import'!$A161,SEARCH(\">\",'CFR - XML import'!$A161,1)+1,SEARCH(\"/\",'CFR - XML import'!$A161,1)-SEARCH(\">\",'CFR - XML import'!$A161,1)-2)))","v":0},{"$f":"IF(ISERROR(FIND(AL$3,'CFR - XML import'!$A161)),0,VALUE(MID('CFR - XML import'!$A161,SEARCH(\">\",'CFR - XML import'!$A161,1)+1,SEARCH(\"/\",'CFR - XML import'!$A161,1)-SEARCH(\">\",'CFR - XML import'!$A161,1)-2)))","v":0},{"$f":"IF(ISERROR(FIND(AM$3,'CFR - XML import'!$A161)),0,VALUE(MID('CFR - XML import'!$A161,SEARCH(\">\",'CFR - XML import'!$A161,1)+1,SEARCH(\"/\",'CFR - XML import'!$A161,1)-SEARCH(\">\",'CFR - XML import'!$A161,1)-2)))","v":0},{"$f":"IF(ISERROR(FIND(AN$3,'CFR - XML import'!$A161)),0,VALUE(MID('CFR - XML import'!$A161,SEARCH(\">\",'CFR - XML import'!$A161,1)+1,SEARCH(\"/\",'CFR - XML import'!$A161,1)-SEARCH(\">\",'CFR - XML import'!$A161,1)-2)))","v":0},{"$f":"IF(ISERROR(FIND(AO$3,'CFR - XML import'!$A161)),0,VALUE(MID('CFR - XML import'!$A161,SEARCH(\">\",'CFR - XML import'!$A161,1)+1,SEARCH(\"/\",'CFR - XML import'!$A161,1)-SEARCH(\">\",'CFR - XML import'!$A161,1)-2)))","v":0},{"$f":"IF(ISERROR(FIND(AP$3,'CFR - XML import'!$A161)),0,VALUE(MID('CFR - XML import'!$A161,SEARCH(\">\",'CFR - XML import'!$A161,1)+1,SEARCH(\"/\",'CFR - XML import'!$A161,1)-SEARCH(\">\",'CFR - XML import'!$A161,1)-2)))","v":0},{"$f":"IF(ISERROR(FIND(AQ$3,'CFR - XML import'!$A161)),0,VALUE(MID('CFR - XML import'!$A161,SEARCH(\">\",'CFR - XML import'!$A161,1)+1,SEARCH(\"/\",'CFR - XML import'!$A161,1)-SEARCH(\">\",'CFR - XML import'!$A161,1)-2)))","v":0},{"$f":"IF(ISERROR(FIND(AR$3,'CFR - XML import'!$A161)),0,VALUE(MID('CFR - XML import'!$A161,SEARCH(\">\",'CFR - XML import'!$A161,1)+1,SEARCH(\"/\",'CFR - XML import'!$A161,1)-SEARCH(\">\",'CFR - XML import'!$A161,1)-2)))","v":0},{"$f":"IF(ISERROR(FIND(AS$3,'CFR - XML import'!$A161)),0,VALUE(MID('CFR - XML import'!$A161,SEARCH(\">\",'CFR - XML import'!$A161,1)+1,SEARCH(\"/\",'CFR - XML import'!$A161,1)-SEARCH(\">\",'CFR - XML import'!$A161,1)-2)))","v":0},{"$f":"IF(ISERROR(FIND(AT$3,'CFR - XML import'!$A161)),0,VALUE(MID('CFR - XML import'!$A161,SEARCH(\">\",'CFR - XML import'!$A161,1)+1,SEARCH(\"/\",'CFR - XML import'!$A161,1)-SEARCH(\">\",'CFR - XML import'!$A161,1)-2)))","v":0},{"$f":"IF(ISERROR(FIND(AU$3,'CFR - XML import'!$A161)),0,VALUE(MID('CFR - XML import'!$A161,SEARCH(\">\",'CFR - XML import'!$A161,1)+1,SEARCH(\"/\",'CFR - XML import'!$A161,1)-SEARCH(\">\",'CFR - XML import'!$A161,1)-2)))","v":0},{"$f":"IF(ISERROR(FIND(AV$3,'CFR - XML import'!$A161)),0,VALUE(MID('CFR - XML import'!$A161,SEARCH(\">\",'CFR - XML import'!$A161,1)+1,SEARCH(\"/\",'CFR - XML import'!$A161,1)-SEARCH(\">\",'CFR - XML import'!$A161,1)-2)))","v":0},{"$f":"IF(ISERROR(FIND(AW$3,'CFR - XML import'!$A161)),0,VALUE(MID('CFR - XML import'!$A161,SEARCH(\">\",'CFR - XML import'!$A161,1)+1,SEARCH(\"/\",'CFR - XML import'!$A161,1)-SEARCH(\">\",'CFR - XML import'!$A161,1)-2)))","v":0},{"$f":"IF(ISERROR(FIND(AX$3,'CFR - XML import'!$A161)),0,VALUE(MID('CFR - XML import'!$A161,SEARCH(\">\",'CFR - XML import'!$A161,1)+1,SEARCH(\"/\",'CFR - XML import'!$A161,1)-SEARCH(\">\",'CFR - XML import'!$A161,1)-2)))","v":0},{"$f":"IF(ISERROR(FIND(AY$3,'CFR - XML import'!$A161)),0,VALUE(MID('CFR - XML import'!$A161,SEARCH(\">\",'CFR - XML import'!$A161,1)+1,SEARCH(\"/\",'CFR - XML import'!$A161,1)-SEARCH(\">\",'CFR - XML import'!$A161,1)-2)))","v":0},{"$f":"IF(ISERROR(FIND(AZ$3,'CFR - XML import'!$A161)),0,VALUE(MID('CFR - XML import'!$A161,SEARCH(\">\",'CFR - XML import'!$A161,1)+1,SEARCH(\"/\",'CFR - XML import'!$A161,1)-SEARCH(\">\",'CFR - XML import'!$A161,1)-2)))","v":0},{"$f":"IF(ISERROR(FIND(BA$3,'CFR - XML import'!$A161)),0,VALUE(MID('CFR - XML import'!$A161,SEARCH(\">\",'CFR - XML import'!$A161,1)+1,SEARCH(\"/\",'CFR - XML import'!$A161,1)-SEARCH(\">\",'CFR - XML import'!$A161,1)-2)))","v":0},{"$f":"IF(ISERROR(FIND(BB$3,'CFR - XML import'!$A161)),0,VALUE(MID('CFR - XML import'!$A161,SEARCH(\">\",'CFR - XML import'!$A161,1)+1,SEARCH(\"/\",'CFR - XML import'!$A161,1)-SEARCH(\">\",'CFR - XML import'!$A161,1)-2)))","v":0},{"$f":"IF(ISERROR(FIND(BC$3,'CFR - XML import'!$A161)),0,VALUE(MID('CFR - XML import'!$A161,SEARCH(\">\",'CFR - XML import'!$A161,1)+1,SEARCH(\"/\",'CFR - XML import'!$A161,1)-SEARCH(\">\",'CFR - XML import'!$A161,1)-2)))","v":0},{"$f":"IF(ISERROR(FIND(BD$3,'CFR - XML import'!$A161)),0,VALUE(MID('CFR - XML import'!$A161,SEARCH(\">\",'CFR - XML import'!$A161,1)+1,SEARCH(\"/\",'CFR - XML import'!$A161,1)-SEARCH(\">\",'CFR - XML import'!$A161,1)-2)))","v":0},{"$f":"IF(ISERROR(FIND(BE$3,'CFR - XML import'!$A161)),0,VALUE(MID('CFR - XML import'!$A161,SEARCH(\">\",'CFR - XML import'!$A161,1)+1,SEARCH(\"/\",'CFR - XML import'!$A161,1)-SEARCH(\">\",'CFR - XML import'!$A161,1)-2)))","v":0},{"$f":"IF(ISERROR(FIND(BF$3,'CFR - XML import'!$A161)),0,VALUE(MID('CFR - XML import'!$A161,SEARCH(\">\",'CFR - XML import'!$A161,1)+1,SEARCH(\"/\",'CFR - XML import'!$A161,1)-SEARCH(\">\",'CFR - XML import'!$A161,1)-2)))","v":0},{"$f":"IF(ISERROR(FIND(BG$3,'CFR - XML import'!$A161)),0,VALUE(MID('CFR - XML import'!$A161,SEARCH(\">\",'CFR - XML import'!$A161,1)+1,SEARCH(\"/\",'CFR - XML import'!$A161,1)-SEARCH(\">\",'CFR - XML import'!$A161,1)-2)))","v":0},{"$f":"IF(ISERROR(FIND(BH$3,'CFR - XML import'!$A161)),0,VALUE(MID('CFR - XML import'!$A161,SEARCH(\">\",'CFR - XML import'!$A161,1)+1,SEARCH(\"/\",'CFR - XML import'!$A161,1)-SEARCH(\">\",'CFR - XML import'!$A161,1)-2)))","v":0},{"$f":"IF(ISERROR(FIND(BI$3,'CFR - XML import'!$A161)),0,VALUE(MID('CFR - XML import'!$A161,SEARCH(\">\",'CFR - XML import'!$A161,1)+1,SEARCH(\"/\",'CFR - XML import'!$A161,1)-SEARCH(\">\",'CFR - XML import'!$A161,1)-2)))","v":0},{"$f":"IF(ISERROR(FIND(BJ$3,'CFR - XML import'!$A161)),0,VALUE(MID('CFR - XML import'!$A161,SEARCH(\">\",'CFR - XML import'!$A161,1)+1,SEARCH(\"/\",'CFR - XML import'!$A161,1)-SEARCH(\">\",'CFR - XML import'!$A161,1)-2)))","v":0},{"$f":"IF(ISERROR(FIND(BK$3,'CFR - XML import'!$A161)),0,VALUE(MID('CFR - XML import'!$A161,SEARCH(\">\",'CFR - XML import'!$A161,1)+1,SEARCH(\"/\",'CFR - XML import'!$A161,1)-SEARCH(\">\",'CFR - XML import'!$A161,1)-2)))","v":0},{"$f":"IF(ISERROR(FIND(BL$3,'CFR - XML import'!$A161)),0,VALUE(MID('CFR - XML import'!$A161,SEARCH(\">\",'CFR - XML import'!$A161,1)+1,SEARCH(\"/\",'CFR - XML import'!$A161,1)-SEARCH(\">\",'CFR - XML import'!$A161,1)-2)))","v":0},{"$f":"IF(ISERROR(FIND(BM$3,'CFR - XML import'!$A161)),0,VALUE(MID('CFR - XML import'!$A161,SEARCH(\">\",'CFR - XML import'!$A161,1)+1,SEARCH(\"/\",'CFR - XML import'!$A161,1)-SEARCH(\">\",'CFR - XML import'!$A161,1)-2)))","v":0},{"$f":"IF(ISERROR(FIND(BN$3,'CFR - XML import'!$A161)),0,VALUE(MID('CFR - XML import'!$A161,SEARCH(\">\",'CFR - XML import'!$A161,1)+1,SEARCH(\"/\",'CFR - XML import'!$A161,1)-SEARCH(\">\",'CFR - XML import'!$A161,1)-2)))","v":0},{"$f":"IF(ISERROR(FIND(BO$3,'CFR - XML import'!$A161)),0,VALUE(MID('CFR - XML import'!$A161,SEARCH(\">\",'CFR - XML import'!$A161,1)+1,SEARCH(\"/\",'CFR - XML import'!$A161,1)-SEARCH(\">\",'CFR - XML import'!$A161,1)-2)))","v":0},{"$f":"IF(ISERROR(FIND(BP$3,'CFR - XML import'!$A161)),0,VALUE(MID('CFR - XML import'!$A161,SEARCH(\">\",'CFR - XML import'!$A161,1)+1,SEARCH(\"/\",'CFR - XML import'!$A161,1)-SEARCH(\">\",'CFR - XML import'!$A161,1)-2)))","v":0},{"$f":"IF(ISERROR(FIND(BQ$3,'CFR - XML import'!$A161)),0,VALUE(MID('CFR - XML import'!$A161,SEARCH(\">\",'CFR - XML import'!$A161,1)+1,SEARCH(\"/\",'CFR - XML import'!$A161,1)-SEARCH(\">\",'CFR - XML import'!$A161,1)-2)))","v":0},{"$f":"IF(ISERROR(FIND(BR$3,'CFR - XML import'!$A161)),0,VALUE(MID('CFR - XML import'!$A161,SEARCH(\">\",'CFR - XML import'!$A161,1)+1,SEARCH(\"/\",'CFR - XML import'!$A161,1)-SEARCH(\">\",'CFR - XML import'!$A161,1)-2)))","v":0},{"$f":"IF(ISERROR(FIND(BS$3,'CFR - XML import'!$A161)),0,VALUE(MID('CFR - XML import'!$A161,SEARCH(\">\",'CFR - XML import'!$A161,1)+1,SEARCH(\"/\",'CFR - XML import'!$A161,1)-SEARCH(\">\",'CFR - XML import'!$A161,1)-2)))","v":0},{"$f":"IF(ISERROR(FIND(BT$3,'CFR - XML import'!$A161)),0,VALUE(MID('CFR - XML import'!$A161,SEARCH(\">\",'CFR - XML import'!$A161,1)+1,SEARCH(\"/\",'CFR - XML import'!$A161,1)-SEARCH(\">\",'CFR - XML import'!$A161,1)-2)))","v":0},{"$f":"IF(ISERROR(FIND(BU$3,'CFR - XML import'!$A161)),0,VALUE(MID('CFR - XML import'!$A161,SEARCH(\">\",'CFR - XML import'!$A161,1)+1,SEARCH(\"/\",'CFR - XML import'!$A161,1)-SEARCH(\">\",'CFR - XML import'!$A161,1)-2)))","v":0},{"$f":"IF(ISERROR(FIND(BV$3,'CFR - XML import'!$A161)),0,VALUE(MID('CFR - XML import'!$A161,SEARCH(\">\",'CFR - XML import'!$A161,1)+1,SEARCH(\"/\",'CFR - XML import'!$A161,1)-SEARCH(\">\",'CFR - XML import'!$A161,1)-2)))","v":0},{"$f":"IF(ISERROR(FIND(BW$3,'CFR - XML import'!$A161)),0,VALUE(MID('CFR - XML import'!$A161,SEARCH(\">\",'CFR - XML import'!$A161,1)+1,SEARCH(\"/\",'CFR - XML import'!$A161,1)-SEARCH(\">\",'CFR - XML import'!$A161,1)-2)))","v":0},{"$f":"IF(ISERROR(FIND(BX$3,'CFR - XML import'!$A161)),0,VALUE(MID('CFR - XML import'!$A161,SEARCH(\">\",'CFR - XML import'!$A161,1)+1,SEARCH(\"/\",'CFR - XML import'!$A161,1)-SEARCH(\">\",'CFR - XML import'!$A161,1)-2)))","v":0},{"$f":"IF(ISERROR(FIND(BY$3,'CFR - XML import'!$A161)),0,VALUE(MID('CFR - XML import'!$A161,SEARCH(\">\",'CFR - XML import'!$A161,1)+1,SEARCH(\"/\",'CFR - XML import'!$A161,1)-SEARCH(\">\",'CFR - XML import'!$A161,1)-2)))","v":0},{"$f":"IF(ISERROR(FIND(BZ$3,'CFR - XML import'!$A161)),0,VALUE(MID('CFR - XML import'!$A161,SEARCH(\">\",'CFR - XML import'!$A161,1)+1,SEARCH(\"/\",'CFR - XML import'!$A161,1)-SEARCH(\">\",'CFR - XML import'!$A161,1)-2)))","v":0},null,null,null,null,null,null,{"$f":"IF(ISERROR(IF(MID('CFR - XML import'!$A161,LEN($CF$4)+1,LEN('CFR - XML import'!$A161)-(2*LEN($CF$4)+1))=\"RMMS\",1,IF(MID('CFR - XML import'!$A161,LEN(\"    <InputSystem>\")+1,LEN('CFR - XML import'!$A161)-(LEN(\"    <InputSystem>\")+LEN($CF$4)+1))=\"SIMS\",2,0))),0,IF(MID('CFR - XML import'!$A161,LEN($CF$4)+1,LEN('CFR - XML import'!$A161)-(2*LEN($CF$4)+1))=\"RMMS\",1,IF(MID('CFR - XML import'!$A161,LEN(\"    <InputSystem>\")+1,LEN('CFR - XML import'!$A161)-(LEN(\"    <InputSystem>\")+LEN($CF$4)+1))=\"SIMS\",2,0)))","v":0},{"$f":"IF(ISERROR(FIND(CH$3,'CFR - XML import'!$A161)),0,MID('CFR - XML import'!$A161,SEARCH(\">\",'CFR - XML import'!$A161,1)+1,SEARCH(\"/\",'CFR - XML import'!$A161,1)-SEARCH(\">\",'CFR - XML import'!$A161,1)-2))","v":0},{"$f":"IF(ISERROR(FIND(CI$3,'CFR - XML import'!$A161)),0,MID('CFR - XML import'!$A161,SEARCH(\">\",'CFR - XML import'!$A161,1)+1,SEARCH(\"/\",'CFR - XML import'!$A161,1)-SEARCH(\">\",'CFR - XML import'!$A161,1)-2))","v":0},{"$f":"IF(ISERROR(FIND(CJ$3,'CFR - XML import'!$A161)),0,MID('CFR - XML import'!$A161,SEARCH(\">\",'CFR - XML import'!$A161,1)+1,SEARCH(\"/\",'CFR - XML import'!$A161,1)-SEARCH(\">\",'CFR - XML import'!$A161,1)-2))","v":0},{"$f":"IF(ISERROR(FIND(CK$3,'CFR - XML import'!$A161)),0,MID('CFR - XML import'!$A161,SEARCH(\">\",'CFR - XML import'!$A161,1)+1,SEARCH(\"/\",'CFR - XML import'!$A161,1)-SEARCH(\">\",'CFR - XML import'!$A161,1)-2))","v":0},{"$f":"IF(ISERROR(FIND(CL$3,'CFR - XML import'!$A161)),0,MID('CFR - XML import'!$A161,SEARCH(\">\",'CFR - XML import'!$A161,1)+1,SEARCH(\"/\",'CFR - XML import'!$A161,1)-SEARCH(\">\",'CFR - XML import'!$A161,1)-2))","v":0}]
[{"$f":"IF(AND('CFR - XML import'!A162<>\"\",LEFT('CFR - XML import'!A162,1)<>\"<\",LEFT('CFR - XML import'!A162,3)<>\"  <\",LEFT('CFR - XML import'!A162,5)<>\"    <\",LEFT('CFR - XML import'!A162,7)<>\"      <\",LEFT('CFR - XML import'!A162,9)<>\"        <\",$B$1=\"SIMS\"),'CFR - XML import'!A162,IF(AND(LEFT('CFR - XML import'!A162,9)=\"<Details>\",$B$1=\"RM\"),'CFR - XML import'!A162,\"\"))","v":""},{"$f":"IF(ISERROR(FIND(B$3,'CFR - XML import'!$A162)),0,VALUE(MID('CFR - XML import'!$A162,SEARCH(\">\",'CFR - XML import'!$A162,1)+1,SEARCH(\"/\",'CFR - XML import'!$A162,1)-SEARCH(\">\",'CFR - XML import'!$A162,1)-2)))","v":0},null,{"$f":"IF(ISERROR(FIND(D$3,'CFR - XML import'!$A162)),0,MID('CFR - XML import'!$A162,SEARCH(\">\",'CFR - XML import'!$A162,1)+1,SEARCH(\"/\",'CFR - XML import'!$A162,1)-SEARCH(\">\",'CFR - XML import'!$A162,1)-2))","v":0},{"$f":"IF(ISERROR(FIND(E$3,'CFR - XML import'!$A162)),0,MID('CFR - XML import'!$A162,SEARCH(\">\",'CFR - XML import'!$A162,1)+1,SEARCH(\"/\",'CFR - XML import'!$A162,1)-SEARCH(\">\",'CFR - XML import'!$A162,1)-2))","v":0},{"$f":"IF($B$1=\"SIMS\",IF(ISERROR(FIND(F$3,'CFR - XML import'!$A162)),0,VALUE(MID('CFR - XML import'!$A162,15,10))),IF(ISERROR(FIND(F$3,'CFR - XML import'!$A162)),0,VALUE(MID('CFR - XML import'!$A162,11,10))))","v":"00:00:00"},{"$f":"IF(ISERROR(FIND(G$3,'CFR - XML import'!$A162)),0,VALUE(MID('CFR - XML import'!$A162,SEARCH(\">\",'CFR - XML import'!$A162,1)+1,SEARCH(\"/\",'CFR - XML import'!$A162,1)-SEARCH(\">\",'CFR - XML import'!$A162,1)-2)))","v":0},{"$f":"IF(ISERROR(FIND(H$3,'CFR - XML import'!$A162)),0,VALUE(MID('CFR - XML import'!$A162,SEARCH(\">\",'CFR - XML import'!$A162,1)+1,SEARCH(\"/\",'CFR - XML import'!$A162,1)-SEARCH(\">\",'CFR - XML import'!$A162,1)-2)))","v":0},{"$f":"IF(ISERROR(FIND(I$3,'CFR - XML import'!$A162)),0,VALUE(MID('CFR - XML import'!$A162,SEARCH(\">\",'CFR - XML import'!$A162,1)+1,SEARCH(\"/\",'CFR - XML import'!$A162,1)-SEARCH(\">\",'CFR - XML import'!$A162,1)-2)))","v":0},{"$f":"IF(ISERROR(FIND(J$3,'CFR - XML import'!$A162)),0,VALUE(MID('CFR - XML import'!$A162,SEARCH(\">\",'CFR - XML import'!$A162,1)+1,SEARCH(\"/\",'CFR - XML import'!$A162,1)-SEARCH(\">\",'CFR - XML import'!$A162,1)-2)))","v":0},{"$f":"IF(ISERROR(FIND(K$3,'CFR - XML import'!$A162)),0,VALUE(MID('CFR - XML import'!$A162,SEARCH(\">\",'CFR - XML import'!$A162,1)+1,SEARCH(\"/\",'CFR - XML import'!$A162,1)-SEARCH(\">\",'CFR - XML import'!$A162,1)-2)))","v":0},{"$f":"IF(ISERROR(FIND(L$3,'CFR - XML import'!$A162)),0,VALUE(MID('CFR - XML import'!$A162,SEARCH(\">\",'CFR - XML import'!$A162,1)+1,SEARCH(\"/\",'CFR - XML import'!$A162,1)-SEARCH(\">\",'CFR - XML import'!$A162,1)-2)))","v":0},{"$f":"IF(ISERROR(FIND(M$3,'CFR - XML import'!$A162)),0,VALUE(MID('CFR - XML import'!$A162,SEARCH(\">\",'CFR - XML import'!$A162,1)+1,SEARCH(\"/\",'CFR - XML import'!$A162,1)-SEARCH(\">\",'CFR - XML import'!$A162,1)-2)))","v":0},{"$f":"IF(ISERROR(FIND(N$3,'CFR - XML import'!$A162)),0,VALUE(MID('CFR - XML import'!$A162,SEARCH(\">\",'CFR - XML import'!$A162,1)+1,SEARCH(\"/\",'CFR - XML import'!$A162,1)-SEARCH(\">\",'CFR - XML import'!$A162,1)-2)))","v":0},{"$f":"IF(ISERROR(FIND(O$3,'CFR - XML import'!$A162)),0,VALUE(MID('CFR - XML import'!$A162,SEARCH(\">\",'CFR - XML import'!$A162,1)+1,SEARCH(\"/\",'CFR - XML import'!$A162,1)-SEARCH(\">\",'CFR - XML import'!$A162,1)-2)))","v":0},{"$f":"IF(ISERROR(FIND(P$3,'CFR - XML import'!$A162)),0,VALUE(MID('CFR - XML import'!$A162,SEARCH(\">\",'CFR - XML import'!$A162,1)+1,SEARCH(\"/\",'CFR - XML import'!$A162,1)-SEARCH(\">\",'CFR - XML import'!$A162,1)-2)))","v":0},{"$f":"IF(ISERROR(FIND(Q$3,'CFR - XML import'!$A162)),0,VALUE(MID('CFR - XML import'!$A162,SEARCH(\">\",'CFR - XML import'!$A162,1)+1,SEARCH(\"/\",'CFR - XML import'!$A162,1)-SEARCH(\">\",'CFR - XML import'!$A162,1)-2)))","v":0},{"$f":"IF(ISERROR(FIND(R$3,'CFR - XML import'!$A162)),0,VALUE(MID('CFR - XML import'!$A162,SEARCH(\">\",'CFR - XML import'!$A162,1)+1,SEARCH(\"/\",'CFR - XML import'!$A162,1)-SEARCH(\">\",'CFR - XML import'!$A162,1)-2)))","v":0},{"$f":"IF(ISERROR(FIND(S$3,'CFR - XML import'!$A162)),0,VALUE(MID('CFR - XML import'!$A162,SEARCH(\">\",'CFR - XML import'!$A162,1)+1,SEARCH(\"/\",'CFR - XML import'!$A162,1)-SEARCH(\">\",'CFR - XML import'!$A162,1)-2)))","v":0},{"$f":"IF(ISERROR(FIND(T$3,'CFR - XML import'!$A162)),0,VALUE(MID('CFR - XML import'!$A162,SEARCH(\">\",'CFR - XML import'!$A162,1)+1,SEARCH(\"/\",'CFR - XML import'!$A162,1)-SEARCH(\">\",'CFR - XML import'!$A162,1)-2)))","v":0},{"$f":"IF(ISERROR(FIND(U$3,'CFR - XML import'!$A162)),0,VALUE(MID('CFR - XML import'!$A162,SEARCH(\">\",'CFR - XML import'!$A162,1)+1,SEARCH(\"/\",'CFR - XML import'!$A162,1)-SEARCH(\">\",'CFR - XML import'!$A162,1)-2)))","v":0},{"$f":"IF(ISERROR(FIND(V$3,'CFR - XML import'!$A162)),0,VALUE(MID('CFR - XML import'!$A162,SEARCH(\">\",'CFR - XML import'!$A162,1)+1,SEARCH(\"/\",'CFR - XML import'!$A162,1)-SEARCH(\">\",'CFR - XML import'!$A162,1)-2)))","v":0},{"$f":"IF(ISERROR(FIND(W$3,'CFR - XML import'!$A162)),0,VALUE(MID('CFR - XML import'!$A162,SEARCH(\">\",'CFR - XML import'!$A162,1)+1,SEARCH(\"/\",'CFR - XML import'!$A162,1)-SEARCH(\">\",'CFR - XML import'!$A162,1)-2)))","v":0},null,{"$f":"IF(ISERROR(FIND(Y$3,'CFR - XML import'!$A162)),0,VALUE(MID('CFR - XML import'!$A162,SEARCH(\">\",'CFR - XML import'!$A162,1)+1,SEARCH(\"/\",'CFR - XML import'!$A162,1)-SEARCH(\">\",'CFR - XML import'!$A162,1)-2)))","v":0},{"$f":"IF(ISERROR(FIND(Z$3,'CFR - XML import'!$A162)),0,VALUE(MID('CFR - XML import'!$A162,SEARCH(\">\",'CFR - XML import'!$A162,1)+1,SEARCH(\"/\",'CFR - XML import'!$A162,1)-SEARCH(\">\",'CFR - XML import'!$A162,1)-2)))","v":0},{"$f":"IF(ISERROR(FIND(AA$3,'CFR - XML import'!$A162)),0,VALUE(MID('CFR - XML import'!$A162,SEARCH(\">\",'CFR - XML import'!$A162,1)+1,SEARCH(\"/\",'CFR - XML import'!$A162,1)-SEARCH(\">\",'CFR - XML import'!$A162,1)-2)))","v":0},{"$f":"IF(ISERROR(FIND(AB$3,'CFR - XML import'!$A162)),0,VALUE(MID('CFR - XML import'!$A162,SEARCH(\">\",'CFR - XML import'!$A162,1)+1,SEARCH(\"/\",'CFR - XML import'!$A162,1)-SEARCH(\">\",'CFR - XML import'!$A162,1)-2)))","v":0},{"$f":"IF(ISERROR(FIND(AC$3,'CFR - XML import'!$A162)),0,VALUE(MID('CFR - XML import'!$A162,SEARCH(\">\",'CFR - XML import'!$A162,1)+1,SEARCH(\"/\",'CFR - XML import'!$A162,1)-SEARCH(\">\",'CFR - XML import'!$A162,1)-2)))","v":0},{"$f":"IF(ISERROR(FIND(AD$3,'CFR - XML import'!$A162)),0,VALUE(MID('CFR - XML import'!$A162,SEARCH(\">\",'CFR - XML import'!$A162,1)+1,SEARCH(\"/\",'CFR - XML import'!$A162,1)-SEARCH(\">\",'CFR - XML import'!$A162,1)-2)))","v":0},{"$f":"IF(ISERROR(FIND(AE$3,'CFR - XML import'!$A162)),0,VALUE(MID('CFR - XML import'!$A162,SEARCH(\">\",'CFR - XML import'!$A162,1)+1,SEARCH(\"/\",'CFR - XML import'!$A162,1)-SEARCH(\">\",'CFR - XML import'!$A162,1)-2)))","v":0},{"$f":"IF(ISERROR(FIND(AF$3,'CFR - XML import'!$A162)),0,VALUE(MID('CFR - XML import'!$A162,SEARCH(\">\",'CFR - XML import'!$A162,1)+1,SEARCH(\"/\",'CFR - XML import'!$A162,1)-SEARCH(\">\",'CFR - XML import'!$A162,1)-2)))","v":0},{"$f":"IF(ISERROR(FIND(AG$3,'CFR - XML import'!$A162)),0,VALUE(MID('CFR - XML import'!$A162,SEARCH(\">\",'CFR - XML import'!$A162,1)+1,SEARCH(\"/\",'CFR - XML import'!$A162,1)-SEARCH(\">\",'CFR - XML import'!$A162,1)-2)))","v":0},{"$f":"IF(ISERROR(FIND(AH$3,'CFR - XML import'!$A162)),0,VALUE(MID('CFR - XML import'!$A162,SEARCH(\">\",'CFR - XML import'!$A162,1)+1,SEARCH(\"/\",'CFR - XML import'!$A162,1)-SEARCH(\">\",'CFR - XML import'!$A162,1)-2)))","v":0},{"$f":"IF(ISERROR(FIND(AI$3,'CFR - XML import'!$A162)),0,VALUE(MID('CFR - XML import'!$A162,SEARCH(\">\",'CFR - XML import'!$A162,1)+1,SEARCH(\"/\",'CFR - XML import'!$A162,1)-SEARCH(\">\",'CFR - XML import'!$A162,1)-2)))","v":0},{"$f":"IF(ISERROR(FIND(AJ$3,'CFR - XML import'!$A162)),0,VALUE(MID('CFR - XML import'!$A162,SEARCH(\">\",'CFR - XML import'!$A162,1)+1,SEARCH(\"/\",'CFR - XML import'!$A162,1)-SEARCH(\">\",'CFR - XML import'!$A162,1)-2)))","v":0},{"$f":"IF(ISERROR(FIND(AK$3,'CFR - XML import'!$A162)),0,VALUE(MID('CFR - XML import'!$A162,SEARCH(\">\",'CFR - XML import'!$A162,1)+1,SEARCH(\"/\",'CFR - XML import'!$A162,1)-SEARCH(\">\",'CFR - XML import'!$A162,1)-2)))","v":0},{"$f":"IF(ISERROR(FIND(AL$3,'CFR - XML import'!$A162)),0,VALUE(MID('CFR - XML import'!$A162,SEARCH(\">\",'CFR - XML import'!$A162,1)+1,SEARCH(\"/\",'CFR - XML import'!$A162,1)-SEARCH(\">\",'CFR - XML import'!$A162,1)-2)))","v":0},{"$f":"IF(ISERROR(FIND(AM$3,'CFR - XML import'!$A162)),0,VALUE(MID('CFR - XML import'!$A162,SEARCH(\">\",'CFR - XML import'!$A162,1)+1,SEARCH(\"/\",'CFR - XML import'!$A162,1)-SEARCH(\">\",'CFR - XML import'!$A162,1)-2)))","v":0},{"$f":"IF(ISERROR(FIND(AN$3,'CFR - XML import'!$A162)),0,VALUE(MID('CFR - XML import'!$A162,SEARCH(\">\",'CFR - XML import'!$A162,1)+1,SEARCH(\"/\",'CFR - XML import'!$A162,1)-SEARCH(\">\",'CFR - XML import'!$A162,1)-2)))","v":0},{"$f":"IF(ISERROR(FIND(AO$3,'CFR - XML import'!$A162)),0,VALUE(MID('CFR - XML import'!$A162,SEARCH(\">\",'CFR - XML import'!$A162,1)+1,SEARCH(\"/\",'CFR - XML import'!$A162,1)-SEARCH(\">\",'CFR - XML import'!$A162,1)-2)))","v":0},{"$f":"IF(ISERROR(FIND(AP$3,'CFR - XML import'!$A162)),0,VALUE(MID('CFR - XML import'!$A162,SEARCH(\">\",'CFR - XML import'!$A162,1)+1,SEARCH(\"/\",'CFR - XML import'!$A162,1)-SEARCH(\">\",'CFR - XML import'!$A162,1)-2)))","v":0},{"$f":"IF(ISERROR(FIND(AQ$3,'CFR - XML import'!$A162)),0,VALUE(MID('CFR - XML import'!$A162,SEARCH(\">\",'CFR - XML import'!$A162,1)+1,SEARCH(\"/\",'CFR - XML import'!$A162,1)-SEARCH(\">\",'CFR - XML import'!$A162,1)-2)))","v":0},{"$f":"IF(ISERROR(FIND(AR$3,'CFR - XML import'!$A162)),0,VALUE(MID('CFR - XML import'!$A162,SEARCH(\">\",'CFR - XML import'!$A162,1)+1,SEARCH(\"/\",'CFR - XML import'!$A162,1)-SEARCH(\">\",'CFR - XML import'!$A162,1)-2)))","v":0},{"$f":"IF(ISERROR(FIND(AS$3,'CFR - XML import'!$A162)),0,VALUE(MID('CFR - XML import'!$A162,SEARCH(\">\",'CFR - XML import'!$A162,1)+1,SEARCH(\"/\",'CFR - XML import'!$A162,1)-SEARCH(\">\",'CFR - XML import'!$A162,1)-2)))","v":0},{"$f":"IF(ISERROR(FIND(AT$3,'CFR - XML import'!$A162)),0,VALUE(MID('CFR - XML import'!$A162,SEARCH(\">\",'CFR - XML import'!$A162,1)+1,SEARCH(\"/\",'CFR - XML import'!$A162,1)-SEARCH(\">\",'CFR - XML import'!$A162,1)-2)))","v":0},{"$f":"IF(ISERROR(FIND(AU$3,'CFR - XML import'!$A162)),0,VALUE(MID('CFR - XML import'!$A162,SEARCH(\">\",'CFR - XML import'!$A162,1)+1,SEARCH(\"/\",'CFR - XML import'!$A162,1)-SEARCH(\">\",'CFR - XML import'!$A162,1)-2)))","v":0},{"$f":"IF(ISERROR(FIND(AV$3,'CFR - XML import'!$A162)),0,VALUE(MID('CFR - XML import'!$A162,SEARCH(\">\",'CFR - XML import'!$A162,1)+1,SEARCH(\"/\",'CFR - XML import'!$A162,1)-SEARCH(\">\",'CFR - XML import'!$A162,1)-2)))","v":0},{"$f":"IF(ISERROR(FIND(AW$3,'CFR - XML import'!$A162)),0,VALUE(MID('CFR - XML import'!$A162,SEARCH(\">\",'CFR - XML import'!$A162,1)+1,SEARCH(\"/\",'CFR - XML import'!$A162,1)-SEARCH(\">\",'CFR - XML import'!$A162,1)-2)))","v":0},{"$f":"IF(ISERROR(FIND(AX$3,'CFR - XML import'!$A162)),0,VALUE(MID('CFR - XML import'!$A162,SEARCH(\">\",'CFR - XML import'!$A162,1)+1,SEARCH(\"/\",'CFR - XML import'!$A162,1)-SEARCH(\">\",'CFR - XML import'!$A162,1)-2)))","v":0},{"$f":"IF(ISERROR(FIND(AY$3,'CFR - XML import'!$A162)),0,VALUE(MID('CFR - XML import'!$A162,SEARCH(\">\",'CFR - XML import'!$A162,1)+1,SEARCH(\"/\",'CFR - XML import'!$A162,1)-SEARCH(\">\",'CFR - XML import'!$A162,1)-2)))","v":0},{"$f":"IF(ISERROR(FIND(AZ$3,'CFR - XML import'!$A162)),0,VALUE(MID('CFR - XML import'!$A162,SEARCH(\">\",'CFR - XML import'!$A162,1)+1,SEARCH(\"/\",'CFR - XML import'!$A162,1)-SEARCH(\">\",'CFR - XML import'!$A162,1)-2)))","v":0},{"$f":"IF(ISERROR(FIND(BA$3,'CFR - XML import'!$A162)),0,VALUE(MID('CFR - XML import'!$A162,SEARCH(\">\",'CFR - XML import'!$A162,1)+1,SEARCH(\"/\",'CFR - XML import'!$A162,1)-SEARCH(\">\",'CFR - XML import'!$A162,1)-2)))","v":0},{"$f":"IF(ISERROR(FIND(BB$3,'CFR - XML import'!$A162)),0,VALUE(MID('CFR - XML import'!$A162,SEARCH(\">\",'CFR - XML import'!$A162,1)+1,SEARCH(\"/\",'CFR - XML import'!$A162,1)-SEARCH(\">\",'CFR - XML import'!$A162,1)-2)))","v":0},{"$f":"IF(ISERROR(FIND(BC$3,'CFR - XML import'!$A162)),0,VALUE(MID('CFR - XML import'!$A162,SEARCH(\">\",'CFR - XML import'!$A162,1)+1,SEARCH(\"/\",'CFR - XML import'!$A162,1)-SEARCH(\">\",'CFR - XML import'!$A162,1)-2)))","v":0},{"$f":"IF(ISERROR(FIND(BD$3,'CFR - XML import'!$A162)),0,VALUE(MID('CFR - XML import'!$A162,SEARCH(\">\",'CFR - XML import'!$A162,1)+1,SEARCH(\"/\",'CFR - XML import'!$A162,1)-SEARCH(\">\",'CFR - XML import'!$A162,1)-2)))","v":0},{"$f":"IF(ISERROR(FIND(BE$3,'CFR - XML import'!$A162)),0,VALUE(MID('CFR - XML import'!$A162,SEARCH(\">\",'CFR - XML import'!$A162,1)+1,SEARCH(\"/\",'CFR - XML import'!$A162,1)-SEARCH(\">\",'CFR - XML import'!$A162,1)-2)))","v":0},{"$f":"IF(ISERROR(FIND(BF$3,'CFR - XML import'!$A162)),0,VALUE(MID('CFR - XML import'!$A162,SEARCH(\">\",'CFR - XML import'!$A162,1)+1,SEARCH(\"/\",'CFR - XML import'!$A162,1)-SEARCH(\">\",'CFR - XML import'!$A162,1)-2)))","v":0},{"$f":"IF(ISERROR(FIND(BG$3,'CFR - XML import'!$A162)),0,VALUE(MID('CFR - XML import'!$A162,SEARCH(\">\",'CFR - XML import'!$A162,1)+1,SEARCH(\"/\",'CFR - XML import'!$A162,1)-SEARCH(\">\",'CFR - XML import'!$A162,1)-2)))","v":0},{"$f":"IF(ISERROR(FIND(BH$3,'CFR - XML import'!$A162)),0,VALUE(MID('CFR - XML import'!$A162,SEARCH(\">\",'CFR - XML import'!$A162,1)+1,SEARCH(\"/\",'CFR - XML import'!$A162,1)-SEARCH(\">\",'CFR - XML import'!$A162,1)-2)))","v":0},{"$f":"IF(ISERROR(FIND(BI$3,'CFR - XML import'!$A162)),0,VALUE(MID('CFR - XML import'!$A162,SEARCH(\">\",'CFR - XML import'!$A162,1)+1,SEARCH(\"/\",'CFR - XML import'!$A162,1)-SEARCH(\">\",'CFR - XML import'!$A162,1)-2)))","v":0},{"$f":"IF(ISERROR(FIND(BJ$3,'CFR - XML import'!$A162)),0,VALUE(MID('CFR - XML import'!$A162,SEARCH(\">\",'CFR - XML import'!$A162,1)+1,SEARCH(\"/\",'CFR - XML import'!$A162,1)-SEARCH(\">\",'CFR - XML import'!$A162,1)-2)))","v":0},{"$f":"IF(ISERROR(FIND(BK$3,'CFR - XML import'!$A162)),0,VALUE(MID('CFR - XML import'!$A162,SEARCH(\">\",'CFR - XML import'!$A162,1)+1,SEARCH(\"/\",'CFR - XML import'!$A162,1)-SEARCH(\">\",'CFR - XML import'!$A162,1)-2)))","v":0},{"$f":"IF(ISERROR(FIND(BL$3,'CFR - XML import'!$A162)),0,VALUE(MID('CFR - XML import'!$A162,SEARCH(\">\",'CFR - XML import'!$A162,1)+1,SEARCH(\"/\",'CFR - XML import'!$A162,1)-SEARCH(\">\",'CFR - XML import'!$A162,1)-2)))","v":0},{"$f":"IF(ISERROR(FIND(BM$3,'CFR - XML import'!$A162)),0,VALUE(MID('CFR - XML import'!$A162,SEARCH(\">\",'CFR - XML import'!$A162,1)+1,SEARCH(\"/\",'CFR - XML import'!$A162,1)-SEARCH(\">\",'CFR - XML import'!$A162,1)-2)))","v":0},{"$f":"IF(ISERROR(FIND(BN$3,'CFR - XML import'!$A162)),0,VALUE(MID('CFR - XML import'!$A162,SEARCH(\">\",'CFR - XML import'!$A162,1)+1,SEARCH(\"/\",'CFR - XML import'!$A162,1)-SEARCH(\">\",'CFR - XML import'!$A162,1)-2)))","v":0},{"$f":"IF(ISERROR(FIND(BO$3,'CFR - XML import'!$A162)),0,VALUE(MID('CFR - XML import'!$A162,SEARCH(\">\",'CFR - XML import'!$A162,1)+1,SEARCH(\"/\",'CFR - XML import'!$A162,1)-SEARCH(\">\",'CFR - XML import'!$A162,1)-2)))","v":0},{"$f":"IF(ISERROR(FIND(BP$3,'CFR - XML import'!$A162)),0,VALUE(MID('CFR - XML import'!$A162,SEARCH(\">\",'CFR - XML import'!$A162,1)+1,SEARCH(\"/\",'CFR - XML import'!$A162,1)-SEARCH(\">\",'CFR - XML import'!$A162,1)-2)))","v":0},{"$f":"IF(ISERROR(FIND(BQ$3,'CFR - XML import'!$A162)),0,VALUE(MID('CFR - XML import'!$A162,SEARCH(\">\",'CFR - XML import'!$A162,1)+1,SEARCH(\"/\",'CFR - XML import'!$A162,1)-SEARCH(\">\",'CFR - XML import'!$A162,1)-2)))","v":0},{"$f":"IF(ISERROR(FIND(BR$3,'CFR - XML import'!$A162)),0,VALUE(MID('CFR - XML import'!$A162,SEARCH(\">\",'CFR - XML import'!$A162,1)+1,SEARCH(\"/\",'CFR - XML import'!$A162,1)-SEARCH(\">\",'CFR - XML import'!$A162,1)-2)))","v":0},{"$f":"IF(ISERROR(FIND(BS$3,'CFR - XML import'!$A162)),0,VALUE(MID('CFR - XML import'!$A162,SEARCH(\">\",'CFR - XML import'!$A162,1)+1,SEARCH(\"/\",'CFR - XML import'!$A162,1)-SEARCH(\">\",'CFR - XML import'!$A162,1)-2)))","v":0},{"$f":"IF(ISERROR(FIND(BT$3,'CFR - XML import'!$A162)),0,VALUE(MID('CFR - XML import'!$A162,SEARCH(\">\",'CFR - XML import'!$A162,1)+1,SEARCH(\"/\",'CFR - XML import'!$A162,1)-SEARCH(\">\",'CFR - XML import'!$A162,1)-2)))","v":0},{"$f":"IF(ISERROR(FIND(BU$3,'CFR - XML import'!$A162)),0,VALUE(MID('CFR - XML import'!$A162,SEARCH(\">\",'CFR - XML import'!$A162,1)+1,SEARCH(\"/\",'CFR - XML import'!$A162,1)-SEARCH(\">\",'CFR - XML import'!$A162,1)-2)))","v":0},{"$f":"IF(ISERROR(FIND(BV$3,'CFR - XML import'!$A162)),0,VALUE(MID('CFR - XML import'!$A162,SEARCH(\">\",'CFR - XML import'!$A162,1)+1,SEARCH(\"/\",'CFR - XML import'!$A162,1)-SEARCH(\">\",'CFR - XML import'!$A162,1)-2)))","v":0},{"$f":"IF(ISERROR(FIND(BW$3,'CFR - XML import'!$A162)),0,VALUE(MID('CFR - XML import'!$A162,SEARCH(\">\",'CFR - XML import'!$A162,1)+1,SEARCH(\"/\",'CFR - XML import'!$A162,1)-SEARCH(\">\",'CFR - XML import'!$A162,1)-2)))","v":0},{"$f":"IF(ISERROR(FIND(BX$3,'CFR - XML import'!$A162)),0,VALUE(MID('CFR - XML import'!$A162,SEARCH(\">\",'CFR - XML import'!$A162,1)+1,SEARCH(\"/\",'CFR - XML import'!$A162,1)-SEARCH(\">\",'CFR - XML import'!$A162,1)-2)))","v":0},{"$f":"IF(ISERROR(FIND(BY$3,'CFR - XML import'!$A162)),0,VALUE(MID('CFR - XML import'!$A162,SEARCH(\">\",'CFR - XML import'!$A162,1)+1,SEARCH(\"/\",'CFR - XML import'!$A162,1)-SEARCH(\">\",'CFR - XML import'!$A162,1)-2)))","v":0},{"$f":"IF(ISERROR(FIND(BZ$3,'CFR - XML import'!$A162)),0,VALUE(MID('CFR - XML import'!$A162,SEARCH(\">\",'CFR - XML import'!$A162,1)+1,SEARCH(\"/\",'CFR - XML import'!$A162,1)-SEARCH(\">\",'CFR - XML import'!$A162,1)-2)))","v":0},null,null,null,null,null,null,{"$f":"IF(ISERROR(IF(MID('CFR - XML import'!$A162,LEN($CF$4)+1,LEN('CFR - XML import'!$A162)-(2*LEN($CF$4)+1))=\"RMMS\",1,IF(MID('CFR - XML import'!$A162,LEN(\"    <InputSystem>\")+1,LEN('CFR - XML import'!$A162)-(LEN(\"    <InputSystem>\")+LEN($CF$4)+1))=\"SIMS\",2,0))),0,IF(MID('CFR - XML import'!$A162,LEN($CF$4)+1,LEN('CFR - XML import'!$A162)-(2*LEN($CF$4)+1))=\"RMMS\",1,IF(MID('CFR - XML import'!$A162,LEN(\"    <InputSystem>\")+1,LEN('CFR - XML import'!$A162)-(LEN(\"    <InputSystem>\")+LEN($CF$4)+1))=\"SIMS\",2,0)))","v":0},{"$f":"IF(ISERROR(FIND(CH$3,'CFR - XML import'!$A162)),0,MID('CFR - XML import'!$A162,SEARCH(\">\",'CFR - XML import'!$A162,1)+1,SEARCH(\"/\",'CFR - XML import'!$A162,1)-SEARCH(\">\",'CFR - XML import'!$A162,1)-2))","v":0},{"$f":"IF(ISERROR(FIND(CI$3,'CFR - XML import'!$A162)),0,MID('CFR - XML import'!$A162,SEARCH(\">\",'CFR - XML import'!$A162,1)+1,SEARCH(\"/\",'CFR - XML import'!$A162,1)-SEARCH(\">\",'CFR - XML import'!$A162,1)-2))","v":0},{"$f":"IF(ISERROR(FIND(CJ$3,'CFR - XML import'!$A162)),0,MID('CFR - XML import'!$A162,SEARCH(\">\",'CFR - XML import'!$A162,1)+1,SEARCH(\"/\",'CFR - XML import'!$A162,1)-SEARCH(\">\",'CFR - XML import'!$A162,1)-2))","v":0},{"$f":"IF(ISERROR(FIND(CK$3,'CFR - XML import'!$A162)),0,MID('CFR - XML import'!$A162,SEARCH(\">\",'CFR - XML import'!$A162,1)+1,SEARCH(\"/\",'CFR - XML import'!$A162,1)-SEARCH(\">\",'CFR - XML import'!$A162,1)-2))","v":0},{"$f":"IF(ISERROR(FIND(CL$3,'CFR - XML import'!$A162)),0,MID('CFR - XML import'!$A162,SEARCH(\">\",'CFR - XML import'!$A162,1)+1,SEARCH(\"/\",'CFR - XML import'!$A162,1)-SEARCH(\">\",'CFR - XML import'!$A162,1)-2))","v":0}]
[{"$f":"IF(AND('CFR - XML import'!A163<>\"\",LEFT('CFR - XML import'!A163,1)<>\"<\",LEFT('CFR - XML import'!A163,3)<>\"  <\",LEFT('CFR - XML import'!A163,5)<>\"    <\",LEFT('CFR - XML import'!A163,7)<>\"      <\",LEFT('CFR - XML import'!A163,9)<>\"        <\",$B$1=\"SIMS\"),'CFR - XML import'!A163,IF(AND(LEFT('CFR - XML import'!A163,9)=\"<Details>\",$B$1=\"RM\"),'CFR - XML import'!A163,\"\"))","v":""},{"$f":"IF(ISERROR(FIND(B$3,'CFR - XML import'!$A163)),0,VALUE(MID('CFR - XML import'!$A163,SEARCH(\">\",'CFR - XML import'!$A163,1)+1,SEARCH(\"/\",'CFR - XML import'!$A163,1)-SEARCH(\">\",'CFR - XML import'!$A163,1)-2)))","v":0},null,{"$f":"IF(ISERROR(FIND(D$3,'CFR - XML import'!$A163)),0,MID('CFR - XML import'!$A163,SEARCH(\">\",'CFR - XML import'!$A163,1)+1,SEARCH(\"/\",'CFR - XML import'!$A163,1)-SEARCH(\">\",'CFR - XML import'!$A163,1)-2))","v":0},{"$f":"IF(ISERROR(FIND(E$3,'CFR - XML import'!$A163)),0,MID('CFR - XML import'!$A163,SEARCH(\">\",'CFR - XML import'!$A163,1)+1,SEARCH(\"/\",'CFR - XML import'!$A163,1)-SEARCH(\">\",'CFR - XML import'!$A163,1)-2))","v":0},{"$f":"IF($B$1=\"SIMS\",IF(ISERROR(FIND(F$3,'CFR - XML import'!$A163)),0,VALUE(MID('CFR - XML import'!$A163,15,10))),IF(ISERROR(FIND(F$3,'CFR - XML import'!$A163)),0,VALUE(MID('CFR - XML import'!$A163,11,10))))","v":"00:00:00"},{"$f":"IF(ISERROR(FIND(G$3,'CFR - XML import'!$A163)),0,VALUE(MID('CFR - XML import'!$A163,SEARCH(\">\",'CFR - XML import'!$A163,1)+1,SEARCH(\"/\",'CFR - XML import'!$A163,1)-SEARCH(\">\",'CFR - XML import'!$A163,1)-2)))","v":0},{"$f":"IF(ISERROR(FIND(H$3,'CFR - XML import'!$A163)),0,VALUE(MID('CFR - XML import'!$A163,SEARCH(\">\",'CFR - XML import'!$A163,1)+1,SEARCH(\"/\",'CFR - XML import'!$A163,1)-SEARCH(\">\",'CFR - XML import'!$A163,1)-2)))","v":0},{"$f":"IF(ISERROR(FIND(I$3,'CFR - XML import'!$A163)),0,VALUE(MID('CFR - XML import'!$A163,SEARCH(\">\",'CFR - XML import'!$A163,1)+1,SEARCH(\"/\",'CFR - XML import'!$A163,1)-SEARCH(\">\",'CFR - XML import'!$A163,1)-2)))","v":0},{"$f":"IF(ISERROR(FIND(J$3,'CFR - XML import'!$A163)),0,VALUE(MID('CFR - XML import'!$A163,SEARCH(\">\",'CFR - XML import'!$A163,1)+1,SEARCH(\"/\",'CFR - XML import'!$A163,1)-SEARCH(\">\",'CFR - XML import'!$A163,1)-2)))","v":0},{"$f":"IF(ISERROR(FIND(K$3,'CFR - XML import'!$A163)),0,VALUE(MID('CFR - XML import'!$A163,SEARCH(\">\",'CFR - XML import'!$A163,1)+1,SEARCH(\"/\",'CFR - XML import'!$A163,1)-SEARCH(\">\",'CFR - XML import'!$A163,1)-2)))","v":0},{"$f":"IF(ISERROR(FIND(L$3,'CFR - XML import'!$A163)),0,VALUE(MID('CFR - XML import'!$A163,SEARCH(\">\",'CFR - XML import'!$A163,1)+1,SEARCH(\"/\",'CFR - XML import'!$A163,1)-SEARCH(\">\",'CFR - XML import'!$A163,1)-2)))","v":0},{"$f":"IF(ISERROR(FIND(M$3,'CFR - XML import'!$A163)),0,VALUE(MID('CFR - XML import'!$A163,SEARCH(\">\",'CFR - XML import'!$A163,1)+1,SEARCH(\"/\",'CFR - XML import'!$A163,1)-SEARCH(\">\",'CFR - XML import'!$A163,1)-2)))","v":0},{"$f":"IF(ISERROR(FIND(N$3,'CFR - XML import'!$A163)),0,VALUE(MID('CFR - XML import'!$A163,SEARCH(\">\",'CFR - XML import'!$A163,1)+1,SEARCH(\"/\",'CFR - XML import'!$A163,1)-SEARCH(\">\",'CFR - XML import'!$A163,1)-2)))","v":0},{"$f":"IF(ISERROR(FIND(O$3,'CFR - XML import'!$A163)),0,VALUE(MID('CFR - XML import'!$A163,SEARCH(\">\",'CFR - XML import'!$A163,1)+1,SEARCH(\"/\",'CFR - XML import'!$A163,1)-SEARCH(\">\",'CFR - XML import'!$A163,1)-2)))","v":0},{"$f":"IF(ISERROR(FIND(P$3,'CFR - XML import'!$A163)),0,VALUE(MID('CFR - XML import'!$A163,SEARCH(\">\",'CFR - XML import'!$A163,1)+1,SEARCH(\"/\",'CFR - XML import'!$A163,1)-SEARCH(\">\",'CFR - XML import'!$A163,1)-2)))","v":0},{"$f":"IF(ISERROR(FIND(Q$3,'CFR - XML import'!$A163)),0,VALUE(MID('CFR - XML import'!$A163,SEARCH(\">\",'CFR - XML import'!$A163,1)+1,SEARCH(\"/\",'CFR - XML import'!$A163,1)-SEARCH(\">\",'CFR - XML import'!$A163,1)-2)))","v":0},{"$f":"IF(ISERROR(FIND(R$3,'CFR - XML import'!$A163)),0,VALUE(MID('CFR - XML import'!$A163,SEARCH(\">\",'CFR - XML import'!$A163,1)+1,SEARCH(\"/\",'CFR - XML import'!$A163,1)-SEARCH(\">\",'CFR - XML import'!$A163,1)-2)))","v":0},{"$f":"IF(ISERROR(FIND(S$3,'CFR - XML import'!$A163)),0,VALUE(MID('CFR - XML import'!$A163,SEARCH(\">\",'CFR - XML import'!$A163,1)+1,SEARCH(\"/\",'CFR - XML import'!$A163,1)-SEARCH(\">\",'CFR - XML import'!$A163,1)-2)))","v":0},{"$f":"IF(ISERROR(FIND(T$3,'CFR - XML import'!$A163)),0,VALUE(MID('CFR - XML import'!$A163,SEARCH(\">\",'CFR - XML import'!$A163,1)+1,SEARCH(\"/\",'CFR - XML import'!$A163,1)-SEARCH(\">\",'CFR - XML import'!$A163,1)-2)))","v":0},{"$f":"IF(ISERROR(FIND(U$3,'CFR - XML import'!$A163)),0,VALUE(MID('CFR - XML import'!$A163,SEARCH(\">\",'CFR - XML import'!$A163,1)+1,SEARCH(\"/\",'CFR - XML import'!$A163,1)-SEARCH(\">\",'CFR - XML import'!$A163,1)-2)))","v":0},{"$f":"IF(ISERROR(FIND(V$3,'CFR - XML import'!$A163)),0,VALUE(MID('CFR - XML import'!$A163,SEARCH(\">\",'CFR - XML import'!$A163,1)+1,SEARCH(\"/\",'CFR - XML import'!$A163,1)-SEARCH(\">\",'CFR - XML import'!$A163,1)-2)))","v":0},{"$f":"IF(ISERROR(FIND(W$3,'CFR - XML import'!$A163)),0,VALUE(MID('CFR - XML import'!$A163,SEARCH(\">\",'CFR - XML import'!$A163,1)+1,SEARCH(\"/\",'CFR - XML import'!$A163,1)-SEARCH(\">\",'CFR - XML import'!$A163,1)-2)))","v":0},null,{"$f":"IF(ISERROR(FIND(Y$3,'CFR - XML import'!$A163)),0,VALUE(MID('CFR - XML import'!$A163,SEARCH(\">\",'CFR - XML import'!$A163,1)+1,SEARCH(\"/\",'CFR - XML import'!$A163,1)-SEARCH(\">\",'CFR - XML import'!$A163,1)-2)))","v":0},{"$f":"IF(ISERROR(FIND(Z$3,'CFR - XML import'!$A163)),0,VALUE(MID('CFR - XML import'!$A163,SEARCH(\">\",'CFR - XML import'!$A163,1)+1,SEARCH(\"/\",'CFR - XML import'!$A163,1)-SEARCH(\">\",'CFR - XML import'!$A163,1)-2)))","v":0},{"$f":"IF(ISERROR(FIND(AA$3,'CFR - XML import'!$A163)),0,VALUE(MID('CFR - XML import'!$A163,SEARCH(\">\",'CFR - XML import'!$A163,1)+1,SEARCH(\"/\",'CFR - XML import'!$A163,1)-SEARCH(\">\",'CFR - XML import'!$A163,1)-2)))","v":0},{"$f":"IF(ISERROR(FIND(AB$3,'CFR - XML import'!$A163)),0,VALUE(MID('CFR - XML import'!$A163,SEARCH(\">\",'CFR - XML import'!$A163,1)+1,SEARCH(\"/\",'CFR - XML import'!$A163,1)-SEARCH(\">\",'CFR - XML import'!$A163,1)-2)))","v":0},{"$f":"IF(ISERROR(FIND(AC$3,'CFR - XML import'!$A163)),0,VALUE(MID('CFR - XML import'!$A163,SEARCH(\">\",'CFR - XML import'!$A163,1)+1,SEARCH(\"/\",'CFR - XML import'!$A163,1)-SEARCH(\">\",'CFR - XML import'!$A163,1)-2)))","v":0},{"$f":"IF(ISERROR(FIND(AD$3,'CFR - XML import'!$A163)),0,VALUE(MID('CFR - XML import'!$A163,SEARCH(\">\",'CFR - XML import'!$A163,1)+1,SEARCH(\"/\",'CFR - XML import'!$A163,1)-SEARCH(\">\",'CFR - XML import'!$A163,1)-2)))","v":0},{"$f":"IF(ISERROR(FIND(AE$3,'CFR - XML import'!$A163)),0,VALUE(MID('CFR - XML import'!$A163,SEARCH(\">\",'CFR - XML import'!$A163,1)+1,SEARCH(\"/\",'CFR - XML import'!$A163,1)-SEARCH(\">\",'CFR - XML import'!$A163,1)-2)))","v":0},{"$f":"IF(ISERROR(FIND(AF$3,'CFR - XML import'!$A163)),0,VALUE(MID('CFR - XML import'!$A163,SEARCH(\">\",'CFR - XML import'!$A163,1)+1,SEARCH(\"/\",'CFR - XML import'!$A163,1)-SEARCH(\">\",'CFR - XML import'!$A163,1)-2)))","v":0},{"$f":"IF(ISERROR(FIND(AG$3,'CFR - XML import'!$A163)),0,VALUE(MID('CFR - XML import'!$A163,SEARCH(\">\",'CFR - XML import'!$A163,1)+1,SEARCH(\"/\",'CFR - XML import'!$A163,1)-SEARCH(\">\",'CFR - XML import'!$A163,1)-2)))","v":0},{"$f":"IF(ISERROR(FIND(AH$3,'CFR - XML import'!$A163)),0,VALUE(MID('CFR - XML import'!$A163,SEARCH(\">\",'CFR - XML import'!$A163,1)+1,SEARCH(\"/\",'CFR - XML import'!$A163,1)-SEARCH(\">\",'CFR - XML import'!$A163,1)-2)))","v":0},{"$f":"IF(ISERROR(FIND(AI$3,'CFR - XML import'!$A163)),0,VALUE(MID('CFR - XML import'!$A163,SEARCH(\">\",'CFR - XML import'!$A163,1)+1,SEARCH(\"/\",'CFR - XML import'!$A163,1)-SEARCH(\">\",'CFR - XML import'!$A163,1)-2)))","v":0},{"$f":"IF(ISERROR(FIND(AJ$3,'CFR - XML import'!$A163)),0,VALUE(MID('CFR - XML import'!$A163,SEARCH(\">\",'CFR - XML import'!$A163,1)+1,SEARCH(\"/\",'CFR - XML import'!$A163,1)-SEARCH(\">\",'CFR - XML import'!$A163,1)-2)))","v":0},{"$f":"IF(ISERROR(FIND(AK$3,'CFR - XML import'!$A163)),0,VALUE(MID('CFR - XML import'!$A163,SEARCH(\">\",'CFR - XML import'!$A163,1)+1,SEARCH(\"/\",'CFR - XML import'!$A163,1)-SEARCH(\">\",'CFR - XML import'!$A163,1)-2)))","v":0},{"$f":"IF(ISERROR(FIND(AL$3,'CFR - XML import'!$A163)),0,VALUE(MID('CFR - XML import'!$A163,SEARCH(\">\",'CFR - XML import'!$A163,1)+1,SEARCH(\"/\",'CFR - XML import'!$A163,1)-SEARCH(\">\",'CFR - XML import'!$A163,1)-2)))","v":0},{"$f":"IF(ISERROR(FIND(AM$3,'CFR - XML import'!$A163)),0,VALUE(MID('CFR - XML import'!$A163,SEARCH(\">\",'CFR - XML import'!$A163,1)+1,SEARCH(\"/\",'CFR - XML import'!$A163,1)-SEARCH(\">\",'CFR - XML import'!$A163,1)-2)))","v":0},{"$f":"IF(ISERROR(FIND(AN$3,'CFR - XML import'!$A163)),0,VALUE(MID('CFR - XML import'!$A163,SEARCH(\">\",'CFR - XML import'!$A163,1)+1,SEARCH(\"/\",'CFR - XML import'!$A163,1)-SEARCH(\">\",'CFR - XML import'!$A163,1)-2)))","v":0},{"$f":"IF(ISERROR(FIND(AO$3,'CFR - XML import'!$A163)),0,VALUE(MID('CFR - XML import'!$A163,SEARCH(\">\",'CFR - XML import'!$A163,1)+1,SEARCH(\"/\",'CFR - XML import'!$A163,1)-SEARCH(\">\",'CFR - XML import'!$A163,1)-2)))","v":0},{"$f":"IF(ISERROR(FIND(AP$3,'CFR - XML import'!$A163)),0,VALUE(MID('CFR - XML import'!$A163,SEARCH(\">\",'CFR - XML import'!$A163,1)+1,SEARCH(\"/\",'CFR - XML import'!$A163,1)-SEARCH(\">\",'CFR - XML import'!$A163,1)-2)))","v":0},{"$f":"IF(ISERROR(FIND(AQ$3,'CFR - XML import'!$A163)),0,VALUE(MID('CFR - XML import'!$A163,SEARCH(\">\",'CFR - XML import'!$A163,1)+1,SEARCH(\"/\",'CFR - XML import'!$A163,1)-SEARCH(\">\",'CFR - XML import'!$A163,1)-2)))","v":0},{"$f":"IF(ISERROR(FIND(AR$3,'CFR - XML import'!$A163)),0,VALUE(MID('CFR - XML import'!$A163,SEARCH(\">\",'CFR - XML import'!$A163,1)+1,SEARCH(\"/\",'CFR - XML import'!$A163,1)-SEARCH(\">\",'CFR - XML import'!$A163,1)-2)))","v":0},{"$f":"IF(ISERROR(FIND(AS$3,'CFR - XML import'!$A163)),0,VALUE(MID('CFR - XML import'!$A163,SEARCH(\">\",'CFR - XML import'!$A163,1)+1,SEARCH(\"/\",'CFR - XML import'!$A163,1)-SEARCH(\">\",'CFR - XML import'!$A163,1)-2)))","v":0},{"$f":"IF(ISERROR(FIND(AT$3,'CFR - XML import'!$A163)),0,VALUE(MID('CFR - XML import'!$A163,SEARCH(\">\",'CFR - XML import'!$A163,1)+1,SEARCH(\"/\",'CFR - XML import'!$A163,1)-SEARCH(\">\",'CFR - XML import'!$A163,1)-2)))","v":0},{"$f":"IF(ISERROR(FIND(AU$3,'CFR - XML import'!$A163)),0,VALUE(MID('CFR - XML import'!$A163,SEARCH(\">\",'CFR - XML import'!$A163,1)+1,SEARCH(\"/\",'CFR - XML import'!$A163,1)-SEARCH(\">\",'CFR - XML import'!$A163,1)-2)))","v":0},{"$f":"IF(ISERROR(FIND(AV$3,'CFR - XML import'!$A163)),0,VALUE(MID('CFR - XML import'!$A163,SEARCH(\">\",'CFR - XML import'!$A163,1)+1,SEARCH(\"/\",'CFR - XML import'!$A163,1)-SEARCH(\">\",'CFR - XML import'!$A163,1)-2)))","v":0},{"$f":"IF(ISERROR(FIND(AW$3,'CFR - XML import'!$A163)),0,VALUE(MID('CFR - XML import'!$A163,SEARCH(\">\",'CFR - XML import'!$A163,1)+1,SEARCH(\"/\",'CFR - XML import'!$A163,1)-SEARCH(\">\",'CFR - XML import'!$A163,1)-2)))","v":0},{"$f":"IF(ISERROR(FIND(AX$3,'CFR - XML import'!$A163)),0,VALUE(MID('CFR - XML import'!$A163,SEARCH(\">\",'CFR - XML import'!$A163,1)+1,SEARCH(\"/\",'CFR - XML import'!$A163,1)-SEARCH(\">\",'CFR - XML import'!$A163,1)-2)))","v":0},{"$f":"IF(ISERROR(FIND(AY$3,'CFR - XML import'!$A163)),0,VALUE(MID('CFR - XML import'!$A163,SEARCH(\">\",'CFR - XML import'!$A163,1)+1,SEARCH(\"/\",'CFR - XML import'!$A163,1)-SEARCH(\">\",'CFR - XML import'!$A163,1)-2)))","v":0},{"$f":"IF(ISERROR(FIND(AZ$3,'CFR - XML import'!$A163)),0,VALUE(MID('CFR - XML import'!$A163,SEARCH(\">\",'CFR - XML import'!$A163,1)+1,SEARCH(\"/\",'CFR - XML import'!$A163,1)-SEARCH(\">\",'CFR - XML import'!$A163,1)-2)))","v":0},{"$f":"IF(ISERROR(FIND(BA$3,'CFR - XML import'!$A163)),0,VALUE(MID('CFR - XML import'!$A163,SEARCH(\">\",'CFR - XML import'!$A163,1)+1,SEARCH(\"/\",'CFR - XML import'!$A163,1)-SEARCH(\">\",'CFR - XML import'!$A163,1)-2)))","v":0},{"$f":"IF(ISERROR(FIND(BB$3,'CFR - XML import'!$A163)),0,VALUE(MID('CFR - XML import'!$A163,SEARCH(\">\",'CFR - XML import'!$A163,1)+1,SEARCH(\"/\",'CFR - XML import'!$A163,1)-SEARCH(\">\",'CFR - XML import'!$A163,1)-2)))","v":0},{"$f":"IF(ISERROR(FIND(BC$3,'CFR - XML import'!$A163)),0,VALUE(MID('CFR - XML import'!$A163,SEARCH(\">\",'CFR - XML import'!$A163,1)+1,SEARCH(\"/\",'CFR - XML import'!$A163,1)-SEARCH(\">\",'CFR - XML import'!$A163,1)-2)))","v":0},{"$f":"IF(ISERROR(FIND(BD$3,'CFR - XML import'!$A163)),0,VALUE(MID('CFR - XML import'!$A163,SEARCH(\">\",'CFR - XML import'!$A163,1)+1,SEARCH(\"/\",'CFR - XML import'!$A163,1)-SEARCH(\">\",'CFR - XML import'!$A163,1)-2)))","v":0},{"$f":"IF(ISERROR(FIND(BE$3,'CFR - XML import'!$A163)),0,VALUE(MID('CFR - XML import'!$A163,SEARCH(\">\",'CFR - XML import'!$A163,1)+1,SEARCH(\"/\",'CFR - XML import'!$A163,1)-SEARCH(\">\",'CFR - XML import'!$A163,1)-2)))","v":0},{"$f":"IF(ISERROR(FIND(BF$3,'CFR - XML import'!$A163)),0,VALUE(MID('CFR - XML import'!$A163,SEARCH(\">\",'CFR - XML import'!$A163,1)+1,SEARCH(\"/\",'CFR - XML import'!$A163,1)-SEARCH(\">\",'CFR - XML import'!$A163,1)-2)))","v":0},{"$f":"IF(ISERROR(FIND(BG$3,'CFR - XML import'!$A163)),0,VALUE(MID('CFR - XML import'!$A163,SEARCH(\">\",'CFR - XML import'!$A163,1)+1,SEARCH(\"/\",'CFR - XML import'!$A163,1)-SEARCH(\">\",'CFR - XML import'!$A163,1)-2)))","v":0},{"$f":"IF(ISERROR(FIND(BH$3,'CFR - XML import'!$A163)),0,VALUE(MID('CFR - XML import'!$A163,SEARCH(\">\",'CFR - XML import'!$A163,1)+1,SEARCH(\"/\",'CFR - XML import'!$A163,1)-SEARCH(\">\",'CFR - XML import'!$A163,1)-2)))","v":0},{"$f":"IF(ISERROR(FIND(BI$3,'CFR - XML import'!$A163)),0,VALUE(MID('CFR - XML import'!$A163,SEARCH(\">\",'CFR - XML import'!$A163,1)+1,SEARCH(\"/\",'CFR - XML import'!$A163,1)-SEARCH(\">\",'CFR - XML import'!$A163,1)-2)))","v":0},{"$f":"IF(ISERROR(FIND(BJ$3,'CFR - XML import'!$A163)),0,VALUE(MID('CFR - XML import'!$A163,SEARCH(\">\",'CFR - XML import'!$A163,1)+1,SEARCH(\"/\",'CFR - XML import'!$A163,1)-SEARCH(\">\",'CFR - XML import'!$A163,1)-2)))","v":0},{"$f":"IF(ISERROR(FIND(BK$3,'CFR - XML import'!$A163)),0,VALUE(MID('CFR - XML import'!$A163,SEARCH(\">\",'CFR - XML import'!$A163,1)+1,SEARCH(\"/\",'CFR - XML import'!$A163,1)-SEARCH(\">\",'CFR - XML import'!$A163,1)-2)))","v":0},{"$f":"IF(ISERROR(FIND(BL$3,'CFR - XML import'!$A163)),0,VALUE(MID('CFR - XML import'!$A163,SEARCH(\">\",'CFR - XML import'!$A163,1)+1,SEARCH(\"/\",'CFR - XML import'!$A163,1)-SEARCH(\">\",'CFR - XML import'!$A163,1)-2)))","v":0},{"$f":"IF(ISERROR(FIND(BM$3,'CFR - XML import'!$A163)),0,VALUE(MID('CFR - XML import'!$A163,SEARCH(\">\",'CFR - XML import'!$A163,1)+1,SEARCH(\"/\",'CFR - XML import'!$A163,1)-SEARCH(\">\",'CFR - XML import'!$A163,1)-2)))","v":0},{"$f":"IF(ISERROR(FIND(BN$3,'CFR - XML import'!$A163)),0,VALUE(MID('CFR - XML import'!$A163,SEARCH(\">\",'CFR - XML import'!$A163,1)+1,SEARCH(\"/\",'CFR - XML import'!$A163,1)-SEARCH(\">\",'CFR - XML import'!$A163,1)-2)))","v":0},{"$f":"IF(ISERROR(FIND(BO$3,'CFR - XML import'!$A163)),0,VALUE(MID('CFR - XML import'!$A163,SEARCH(\">\",'CFR - XML import'!$A163,1)+1,SEARCH(\"/\",'CFR - XML import'!$A163,1)-SEARCH(\">\",'CFR - XML import'!$A163,1)-2)))","v":0},{"$f":"IF(ISERROR(FIND(BP$3,'CFR - XML import'!$A163)),0,VALUE(MID('CFR - XML import'!$A163,SEARCH(\">\",'CFR - XML import'!$A163,1)+1,SEARCH(\"/\",'CFR - XML import'!$A163,1)-SEARCH(\">\",'CFR - XML import'!$A163,1)-2)))","v":0},{"$f":"IF(ISERROR(FIND(BQ$3,'CFR - XML import'!$A163)),0,VALUE(MID('CFR - XML import'!$A163,SEARCH(\">\",'CFR - XML import'!$A163,1)+1,SEARCH(\"/\",'CFR - XML import'!$A163,1)-SEARCH(\">\",'CFR - XML import'!$A163,1)-2)))","v":0},{"$f":"IF(ISERROR(FIND(BR$3,'CFR - XML import'!$A163)),0,VALUE(MID('CFR - XML import'!$A163,SEARCH(\">\",'CFR - XML import'!$A163,1)+1,SEARCH(\"/\",'CFR - XML import'!$A163,1)-SEARCH(\">\",'CFR - XML import'!$A163,1)-2)))","v":0},{"$f":"IF(ISERROR(FIND(BS$3,'CFR - XML import'!$A163)),0,VALUE(MID('CFR - XML import'!$A163,SEARCH(\">\",'CFR - XML import'!$A163,1)+1,SEARCH(\"/\",'CFR - XML import'!$A163,1)-SEARCH(\">\",'CFR - XML import'!$A163,1)-2)))","v":0},{"$f":"IF(ISERROR(FIND(BT$3,'CFR - XML import'!$A163)),0,VALUE(MID('CFR - XML import'!$A163,SEARCH(\">\",'CFR - XML import'!$A163,1)+1,SEARCH(\"/\",'CFR - XML import'!$A163,1)-SEARCH(\">\",'CFR - XML import'!$A163,1)-2)))","v":0},{"$f":"IF(ISERROR(FIND(BU$3,'CFR - XML import'!$A163)),0,VALUE(MID('CFR - XML import'!$A163,SEARCH(\">\",'CFR - XML import'!$A163,1)+1,SEARCH(\"/\",'CFR - XML import'!$A163,1)-SEARCH(\">\",'CFR - XML import'!$A163,1)-2)))","v":0},{"$f":"IF(ISERROR(FIND(BV$3,'CFR - XML import'!$A163)),0,VALUE(MID('CFR - XML import'!$A163,SEARCH(\">\",'CFR - XML import'!$A163,1)+1,SEARCH(\"/\",'CFR - XML import'!$A163,1)-SEARCH(\">\",'CFR - XML import'!$A163,1)-2)))","v":0},{"$f":"IF(ISERROR(FIND(BW$3,'CFR - XML import'!$A163)),0,VALUE(MID('CFR - XML import'!$A163,SEARCH(\">\",'CFR - XML import'!$A163,1)+1,SEARCH(\"/\",'CFR - XML import'!$A163,1)-SEARCH(\">\",'CFR - XML import'!$A163,1)-2)))","v":0},{"$f":"IF(ISERROR(FIND(BX$3,'CFR - XML import'!$A163)),0,VALUE(MID('CFR - XML import'!$A163,SEARCH(\">\",'CFR - XML import'!$A163,1)+1,SEARCH(\"/\",'CFR - XML import'!$A163,1)-SEARCH(\">\",'CFR - XML import'!$A163,1)-2)))","v":0},{"$f":"IF(ISERROR(FIND(BY$3,'CFR - XML import'!$A163)),0,VALUE(MID('CFR - XML import'!$A163,SEARCH(\">\",'CFR - XML import'!$A163,1)+1,SEARCH(\"/\",'CFR - XML import'!$A163,1)-SEARCH(\">\",'CFR - XML import'!$A163,1)-2)))","v":0},{"$f":"IF(ISERROR(FIND(BZ$3,'CFR - XML import'!$A163)),0,VALUE(MID('CFR - XML import'!$A163,SEARCH(\">\",'CFR - XML import'!$A163,1)+1,SEARCH(\"/\",'CFR - XML import'!$A163,1)-SEARCH(\">\",'CFR - XML import'!$A163,1)-2)))","v":0},null,null,null,null,null,null,{"$f":"IF(ISERROR(IF(MID('CFR - XML import'!$A163,LEN($CF$4)+1,LEN('CFR - XML import'!$A163)-(2*LEN($CF$4)+1))=\"RMMS\",1,IF(MID('CFR - XML import'!$A163,LEN(\"    <InputSystem>\")+1,LEN('CFR - XML import'!$A163)-(LEN(\"    <InputSystem>\")+LEN($CF$4)+1))=\"SIMS\",2,0))),0,IF(MID('CFR - XML import'!$A163,LEN($CF$4)+1,LEN('CFR - XML import'!$A163)-(2*LEN($CF$4)+1))=\"RMMS\",1,IF(MID('CFR - XML import'!$A163,LEN(\"    <InputSystem>\")+1,LEN('CFR - XML import'!$A163)-(LEN(\"    <InputSystem>\")+LEN($CF$4)+1))=\"SIMS\",2,0)))","v":0},{"$f":"IF(ISERROR(FIND(CH$3,'CFR - XML import'!$A163)),0,MID('CFR - XML import'!$A163,SEARCH(\">\",'CFR - XML import'!$A163,1)+1,SEARCH(\"/\",'CFR - XML import'!$A163,1)-SEARCH(\">\",'CFR - XML import'!$A163,1)-2))","v":0},{"$f":"IF(ISERROR(FIND(CI$3,'CFR - XML import'!$A163)),0,MID('CFR - XML import'!$A163,SEARCH(\">\",'CFR - XML import'!$A163,1)+1,SEARCH(\"/\",'CFR - XML import'!$A163,1)-SEARCH(\">\",'CFR - XML import'!$A163,1)-2))","v":0},{"$f":"IF(ISERROR(FIND(CJ$3,'CFR - XML import'!$A163)),0,MID('CFR - XML import'!$A163,SEARCH(\">\",'CFR - XML import'!$A163,1)+1,SEARCH(\"/\",'CFR - XML import'!$A163,1)-SEARCH(\">\",'CFR - XML import'!$A163,1)-2))","v":0},{"$f":"IF(ISERROR(FIND(CK$3,'CFR - XML import'!$A163)),0,MID('CFR - XML import'!$A163,SEARCH(\">\",'CFR - XML import'!$A163,1)+1,SEARCH(\"/\",'CFR - XML import'!$A163,1)-SEARCH(\">\",'CFR - XML import'!$A163,1)-2))","v":0},{"$f":"IF(ISERROR(FIND(CL$3,'CFR - XML import'!$A163)),0,MID('CFR - XML import'!$A163,SEARCH(\">\",'CFR - XML import'!$A163,1)+1,SEARCH(\"/\",'CFR - XML import'!$A163,1)-SEARCH(\">\",'CFR - XML import'!$A163,1)-2))","v":0}]
[{"$f":"IF(AND('CFR - XML import'!A164<>\"\",LEFT('CFR - XML import'!A164,1)<>\"<\",LEFT('CFR - XML import'!A164,3)<>\"  <\",LEFT('CFR - XML import'!A164,5)<>\"    <\",LEFT('CFR - XML import'!A164,7)<>\"      <\",LEFT('CFR - XML import'!A164,9)<>\"        <\",$B$1=\"SIMS\"),'CFR - XML import'!A164,IF(AND(LEFT('CFR - XML import'!A164,9)=\"<Details>\",$B$1=\"RM\"),'CFR - XML import'!A164,\"\"))","v":""},{"$f":"IF(ISERROR(FIND(B$3,'CFR - XML import'!$A164)),0,VALUE(MID('CFR - XML import'!$A164,SEARCH(\">\",'CFR - XML import'!$A164,1)+1,SEARCH(\"/\",'CFR - XML import'!$A164,1)-SEARCH(\">\",'CFR - XML import'!$A164,1)-2)))","v":0},null,{"$f":"IF(ISERROR(FIND(D$3,'CFR - XML import'!$A164)),0,MID('CFR - XML import'!$A164,SEARCH(\">\",'CFR - XML import'!$A164,1)+1,SEARCH(\"/\",'CFR - XML import'!$A164,1)-SEARCH(\">\",'CFR - XML import'!$A164,1)-2))","v":0},{"$f":"IF(ISERROR(FIND(E$3,'CFR - XML import'!$A164)),0,MID('CFR - XML import'!$A164,SEARCH(\">\",'CFR - XML import'!$A164,1)+1,SEARCH(\"/\",'CFR - XML import'!$A164,1)-SEARCH(\">\",'CFR - XML import'!$A164,1)-2))","v":0},{"$f":"IF($B$1=\"SIMS\",IF(ISERROR(FIND(F$3,'CFR - XML import'!$A164)),0,VALUE(MID('CFR - XML import'!$A164,15,10))),IF(ISERROR(FIND(F$3,'CFR - XML import'!$A164)),0,VALUE(MID('CFR - XML import'!$A164,11,10))))","v":"00:00:00"},{"$f":"IF(ISERROR(FIND(G$3,'CFR - XML import'!$A164)),0,VALUE(MID('CFR - XML import'!$A164,SEARCH(\">\",'CFR - XML import'!$A164,1)+1,SEARCH(\"/\",'CFR - XML import'!$A164,1)-SEARCH(\">\",'CFR - XML import'!$A164,1)-2)))","v":0},{"$f":"IF(ISERROR(FIND(H$3,'CFR - XML import'!$A164)),0,VALUE(MID('CFR - XML import'!$A164,SEARCH(\">\",'CFR - XML import'!$A164,1)+1,SEARCH(\"/\",'CFR - XML import'!$A164,1)-SEARCH(\">\",'CFR - XML import'!$A164,1)-2)))","v":0},{"$f":"IF(ISERROR(FIND(I$3,'CFR - XML import'!$A164)),0,VALUE(MID('CFR - XML import'!$A164,SEARCH(\">\",'CFR - XML import'!$A164,1)+1,SEARCH(\"/\",'CFR - XML import'!$A164,1)-SEARCH(\">\",'CFR - XML import'!$A164,1)-2)))","v":0},{"$f":"IF(ISERROR(FIND(J$3,'CFR - XML import'!$A164)),0,VALUE(MID('CFR - XML import'!$A164,SEARCH(\">\",'CFR - XML import'!$A164,1)+1,SEARCH(\"/\",'CFR - XML import'!$A164,1)-SEARCH(\">\",'CFR - XML import'!$A164,1)-2)))","v":0},{"$f":"IF(ISERROR(FIND(K$3,'CFR - XML import'!$A164)),0,VALUE(MID('CFR - XML import'!$A164,SEARCH(\">\",'CFR - XML import'!$A164,1)+1,SEARCH(\"/\",'CFR - XML import'!$A164,1)-SEARCH(\">\",'CFR - XML import'!$A164,1)-2)))","v":0},{"$f":"IF(ISERROR(FIND(L$3,'CFR - XML import'!$A164)),0,VALUE(MID('CFR - XML import'!$A164,SEARCH(\">\",'CFR - XML import'!$A164,1)+1,SEARCH(\"/\",'CFR - XML import'!$A164,1)-SEARCH(\">\",'CFR - XML import'!$A164,1)-2)))","v":0},{"$f":"IF(ISERROR(FIND(M$3,'CFR - XML import'!$A164)),0,VALUE(MID('CFR - XML import'!$A164,SEARCH(\">\",'CFR - XML import'!$A164,1)+1,SEARCH(\"/\",'CFR - XML import'!$A164,1)-SEARCH(\">\",'CFR - XML import'!$A164,1)-2)))","v":0},{"$f":"IF(ISERROR(FIND(N$3,'CFR - XML import'!$A164)),0,VALUE(MID('CFR - XML import'!$A164,SEARCH(\">\",'CFR - XML import'!$A164,1)+1,SEARCH(\"/\",'CFR - XML import'!$A164,1)-SEARCH(\">\",'CFR - XML import'!$A164,1)-2)))","v":0},{"$f":"IF(ISERROR(FIND(O$3,'CFR - XML import'!$A164)),0,VALUE(MID('CFR - XML import'!$A164,SEARCH(\">\",'CFR - XML import'!$A164,1)+1,SEARCH(\"/\",'CFR - XML import'!$A164,1)-SEARCH(\">\",'CFR - XML import'!$A164,1)-2)))","v":0},{"$f":"IF(ISERROR(FIND(P$3,'CFR - XML import'!$A164)),0,VALUE(MID('CFR - XML import'!$A164,SEARCH(\">\",'CFR - XML import'!$A164,1)+1,SEARCH(\"/\",'CFR - XML import'!$A164,1)-SEARCH(\">\",'CFR - XML import'!$A164,1)-2)))","v":0},{"$f":"IF(ISERROR(FIND(Q$3,'CFR - XML import'!$A164)),0,VALUE(MID('CFR - XML import'!$A164,SEARCH(\">\",'CFR - XML import'!$A164,1)+1,SEARCH(\"/\",'CFR - XML import'!$A164,1)-SEARCH(\">\",'CFR - XML import'!$A164,1)-2)))","v":0},{"$f":"IF(ISERROR(FIND(R$3,'CFR - XML import'!$A164)),0,VALUE(MID('CFR - XML import'!$A164,SEARCH(\">\",'CFR - XML import'!$A164,1)+1,SEARCH(\"/\",'CFR - XML import'!$A164,1)-SEARCH(\">\",'CFR - XML import'!$A164,1)-2)))","v":0},{"$f":"IF(ISERROR(FIND(S$3,'CFR - XML import'!$A164)),0,VALUE(MID('CFR - XML import'!$A164,SEARCH(\">\",'CFR - XML import'!$A164,1)+1,SEARCH(\"/\",'CFR - XML import'!$A164,1)-SEARCH(\">\",'CFR - XML import'!$A164,1)-2)))","v":0},{"$f":"IF(ISERROR(FIND(T$3,'CFR - XML import'!$A164)),0,VALUE(MID('CFR - XML import'!$A164,SEARCH(\">\",'CFR - XML import'!$A164,1)+1,SEARCH(\"/\",'CFR - XML import'!$A164,1)-SEARCH(\">\",'CFR - XML import'!$A164,1)-2)))","v":0},{"$f":"IF(ISERROR(FIND(U$3,'CFR - XML import'!$A164)),0,VALUE(MID('CFR - XML import'!$A164,SEARCH(\">\",'CFR - XML import'!$A164,1)+1,SEARCH(\"/\",'CFR - XML import'!$A164,1)-SEARCH(\">\",'CFR - XML import'!$A164,1)-2)))","v":0},{"$f":"IF(ISERROR(FIND(V$3,'CFR - XML import'!$A164)),0,VALUE(MID('CFR - XML import'!$A164,SEARCH(\">\",'CFR - XML import'!$A164,1)+1,SEARCH(\"/\",'CFR - XML import'!$A164,1)-SEARCH(\">\",'CFR - XML import'!$A164,1)-2)))","v":0},{"$f":"IF(ISERROR(FIND(W$3,'CFR - XML import'!$A164)),0,VALUE(MID('CFR - XML import'!$A164,SEARCH(\">\",'CFR - XML import'!$A164,1)+1,SEARCH(\"/\",'CFR - XML import'!$A164,1)-SEARCH(\">\",'CFR - XML import'!$A164,1)-2)))","v":0},null,{"$f":"IF(ISERROR(FIND(Y$3,'CFR - XML import'!$A164)),0,VALUE(MID('CFR - XML import'!$A164,SEARCH(\">\",'CFR - XML import'!$A164,1)+1,SEARCH(\"/\",'CFR - XML import'!$A164,1)-SEARCH(\">\",'CFR - XML import'!$A164,1)-2)))","v":0},{"$f":"IF(ISERROR(FIND(Z$3,'CFR - XML import'!$A164)),0,VALUE(MID('CFR - XML import'!$A164,SEARCH(\">\",'CFR - XML import'!$A164,1)+1,SEARCH(\"/\",'CFR - XML import'!$A164,1)-SEARCH(\">\",'CFR - XML import'!$A164,1)-2)))","v":0},{"$f":"IF(ISERROR(FIND(AA$3,'CFR - XML import'!$A164)),0,VALUE(MID('CFR - XML import'!$A164,SEARCH(\">\",'CFR - XML import'!$A164,1)+1,SEARCH(\"/\",'CFR - XML import'!$A164,1)-SEARCH(\">\",'CFR - XML import'!$A164,1)-2)))","v":0},{"$f":"IF(ISERROR(FIND(AB$3,'CFR - XML import'!$A164)),0,VALUE(MID('CFR - XML import'!$A164,SEARCH(\">\",'CFR - XML import'!$A164,1)+1,SEARCH(\"/\",'CFR - XML import'!$A164,1)-SEARCH(\">\",'CFR - XML import'!$A164,1)-2)))","v":0},{"$f":"IF(ISERROR(FIND(AC$3,'CFR - XML import'!$A164)),0,VALUE(MID('CFR - XML import'!$A164,SEARCH(\">\",'CFR - XML import'!$A164,1)+1,SEARCH(\"/\",'CFR - XML import'!$A164,1)-SEARCH(\">\",'CFR - XML import'!$A164,1)-2)))","v":0},{"$f":"IF(ISERROR(FIND(AD$3,'CFR - XML import'!$A164)),0,VALUE(MID('CFR - XML import'!$A164,SEARCH(\">\",'CFR - XML import'!$A164,1)+1,SEARCH(\"/\",'CFR - XML import'!$A164,1)-SEARCH(\">\",'CFR - XML import'!$A164,1)-2)))","v":0},{"$f":"IF(ISERROR(FIND(AE$3,'CFR - XML import'!$A164)),0,VALUE(MID('CFR - XML import'!$A164,SEARCH(\">\",'CFR - XML import'!$A164,1)+1,SEARCH(\"/\",'CFR - XML import'!$A164,1)-SEARCH(\">\",'CFR - XML import'!$A164,1)-2)))","v":0},{"$f":"IF(ISERROR(FIND(AF$3,'CFR - XML import'!$A164)),0,VALUE(MID('CFR - XML import'!$A164,SEARCH(\">\",'CFR - XML import'!$A164,1)+1,SEARCH(\"/\",'CFR - XML import'!$A164,1)-SEARCH(\">\",'CFR - XML import'!$A164,1)-2)))","v":0},{"$f":"IF(ISERROR(FIND(AG$3,'CFR - XML import'!$A164)),0,VALUE(MID('CFR - XML import'!$A164,SEARCH(\">\",'CFR - XML import'!$A164,1)+1,SEARCH(\"/\",'CFR - XML import'!$A164,1)-SEARCH(\">\",'CFR - XML import'!$A164,1)-2)))","v":0},{"$f":"IF(ISERROR(FIND(AH$3,'CFR - XML import'!$A164)),0,VALUE(MID('CFR - XML import'!$A164,SEARCH(\">\",'CFR - XML import'!$A164,1)+1,SEARCH(\"/\",'CFR - XML import'!$A164,1)-SEARCH(\">\",'CFR - XML import'!$A164,1)-2)))","v":0},{"$f":"IF(ISERROR(FIND(AI$3,'CFR - XML import'!$A164)),0,VALUE(MID('CFR - XML import'!$A164,SEARCH(\">\",'CFR - XML import'!$A164,1)+1,SEARCH(\"/\",'CFR - XML import'!$A164,1)-SEARCH(\">\",'CFR - XML import'!$A164,1)-2)))","v":0},{"$f":"IF(ISERROR(FIND(AJ$3,'CFR - XML import'!$A164)),0,VALUE(MID('CFR - XML import'!$A164,SEARCH(\">\",'CFR - XML import'!$A164,1)+1,SEARCH(\"/\",'CFR - XML import'!$A164,1)-SEARCH(\">\",'CFR - XML import'!$A164,1)-2)))","v":0},{"$f":"IF(ISERROR(FIND(AK$3,'CFR - XML import'!$A164)),0,VALUE(MID('CFR - XML import'!$A164,SEARCH(\">\",'CFR - XML import'!$A164,1)+1,SEARCH(\"/\",'CFR - XML import'!$A164,1)-SEARCH(\">\",'CFR - XML import'!$A164,1)-2)))","v":0},{"$f":"IF(ISERROR(FIND(AL$3,'CFR - XML import'!$A164)),0,VALUE(MID('CFR - XML import'!$A164,SEARCH(\">\",'CFR - XML import'!$A164,1)+1,SEARCH(\"/\",'CFR - XML import'!$A164,1)-SEARCH(\">\",'CFR - XML import'!$A164,1)-2)))","v":0},{"$f":"IF(ISERROR(FIND(AM$3,'CFR - XML import'!$A164)),0,VALUE(MID('CFR - XML import'!$A164,SEARCH(\">\",'CFR - XML import'!$A164,1)+1,SEARCH(\"/\",'CFR - XML import'!$A164,1)-SEARCH(\">\",'CFR - XML import'!$A164,1)-2)))","v":0},{"$f":"IF(ISERROR(FIND(AN$3,'CFR - XML import'!$A164)),0,VALUE(MID('CFR - XML import'!$A164,SEARCH(\">\",'CFR - XML import'!$A164,1)+1,SEARCH(\"/\",'CFR - XML import'!$A164,1)-SEARCH(\">\",'CFR - XML import'!$A164,1)-2)))","v":0},{"$f":"IF(ISERROR(FIND(AO$3,'CFR - XML import'!$A164)),0,VALUE(MID('CFR - XML import'!$A164,SEARCH(\">\",'CFR - XML import'!$A164,1)+1,SEARCH(\"/\",'CFR - XML import'!$A164,1)-SEARCH(\">\",'CFR - XML import'!$A164,1)-2)))","v":0},{"$f":"IF(ISERROR(FIND(AP$3,'CFR - XML import'!$A164)),0,VALUE(MID('CFR - XML import'!$A164,SEARCH(\">\",'CFR - XML import'!$A164,1)+1,SEARCH(\"/\",'CFR - XML import'!$A164,1)-SEARCH(\">\",'CFR - XML import'!$A164,1)-2)))","v":0},{"$f":"IF(ISERROR(FIND(AQ$3,'CFR - XML import'!$A164)),0,VALUE(MID('CFR - XML import'!$A164,SEARCH(\">\",'CFR - XML import'!$A164,1)+1,SEARCH(\"/\",'CFR - XML import'!$A164,1)-SEARCH(\">\",'CFR - XML import'!$A164,1)-2)))","v":0},{"$f":"IF(ISERROR(FIND(AR$3,'CFR - XML import'!$A164)),0,VALUE(MID('CFR - XML import'!$A164,SEARCH(\">\",'CFR - XML import'!$A164,1)+1,SEARCH(\"/\",'CFR - XML import'!$A164,1)-SEARCH(\">\",'CFR - XML import'!$A164,1)-2)))","v":0},{"$f":"IF(ISERROR(FIND(AS$3,'CFR - XML import'!$A164)),0,VALUE(MID('CFR - XML import'!$A164,SEARCH(\">\",'CFR - XML import'!$A164,1)+1,SEARCH(\"/\",'CFR - XML import'!$A164,1)-SEARCH(\">\",'CFR - XML import'!$A164,1)-2)))","v":0},{"$f":"IF(ISERROR(FIND(AT$3,'CFR - XML import'!$A164)),0,VALUE(MID('CFR - XML import'!$A164,SEARCH(\">\",'CFR - XML import'!$A164,1)+1,SEARCH(\"/\",'CFR - XML import'!$A164,1)-SEARCH(\">\",'CFR - XML import'!$A164,1)-2)))","v":0},{"$f":"IF(ISERROR(FIND(AU$3,'CFR - XML import'!$A164)),0,VALUE(MID('CFR - XML import'!$A164,SEARCH(\">\",'CFR - XML import'!$A164,1)+1,SEARCH(\"/\",'CFR - XML import'!$A164,1)-SEARCH(\">\",'CFR - XML import'!$A164,1)-2)))","v":0},{"$f":"IF(ISERROR(FIND(AV$3,'CFR - XML import'!$A164)),0,VALUE(MID('CFR - XML import'!$A164,SEARCH(\">\",'CFR - XML import'!$A164,1)+1,SEARCH(\"/\",'CFR - XML import'!$A164,1)-SEARCH(\">\",'CFR - XML import'!$A164,1)-2)))","v":0},{"$f":"IF(ISERROR(FIND(AW$3,'CFR - XML import'!$A164)),0,VALUE(MID('CFR - XML import'!$A164,SEARCH(\">\",'CFR - XML import'!$A164,1)+1,SEARCH(\"/\",'CFR - XML import'!$A164,1)-SEARCH(\">\",'CFR - XML import'!$A164,1)-2)))","v":0},{"$f":"IF(ISERROR(FIND(AX$3,'CFR - XML import'!$A164)),0,VALUE(MID('CFR - XML import'!$A164,SEARCH(\">\",'CFR - XML import'!$A164,1)+1,SEARCH(\"/\",'CFR - XML import'!$A164,1)-SEARCH(\">\",'CFR - XML import'!$A164,1)-2)))","v":0},{"$f":"IF(ISERROR(FIND(AY$3,'CFR - XML import'!$A164)),0,VALUE(MID('CFR - XML import'!$A164,SEARCH(\">\",'CFR - XML import'!$A164,1)+1,SEARCH(\"/\",'CFR - XML import'!$A164,1)-SEARCH(\">\",'CFR - XML import'!$A164,1)-2)))","v":0},{"$f":"IF(ISERROR(FIND(AZ$3,'CFR - XML import'!$A164)),0,VALUE(MID('CFR - XML import'!$A164,SEARCH(\">\",'CFR - XML import'!$A164,1)+1,SEARCH(\"/\",'CFR - XML import'!$A164,1)-SEARCH(\">\",'CFR - XML import'!$A164,1)-2)))","v":0},{"$f":"IF(ISERROR(FIND(BA$3,'CFR - XML import'!$A164)),0,VALUE(MID('CFR - XML import'!$A164,SEARCH(\">\",'CFR - XML import'!$A164,1)+1,SEARCH(\"/\",'CFR - XML import'!$A164,1)-SEARCH(\">\",'CFR - XML import'!$A164,1)-2)))","v":0},{"$f":"IF(ISERROR(FIND(BB$3,'CFR - XML import'!$A164)),0,VALUE(MID('CFR - XML import'!$A164,SEARCH(\">\",'CFR - XML import'!$A164,1)+1,SEARCH(\"/\",'CFR - XML import'!$A164,1)-SEARCH(\">\",'CFR - XML import'!$A164,1)-2)))","v":0},{"$f":"IF(ISERROR(FIND(BC$3,'CFR - XML import'!$A164)),0,VALUE(MID('CFR - XML import'!$A164,SEARCH(\">\",'CFR - XML import'!$A164,1)+1,SEARCH(\"/\",'CFR - XML import'!$A164,1)-SEARCH(\">\",'CFR - XML import'!$A164,1)-2)))","v":0},{"$f":"IF(ISERROR(FIND(BD$3,'CFR - XML import'!$A164)),0,VALUE(MID('CFR - XML import'!$A164,SEARCH(\">\",'CFR - XML import'!$A164,1)+1,SEARCH(\"/\",'CFR - XML import'!$A164,1)-SEARCH(\">\",'CFR - XML import'!$A164,1)-2)))","v":0},{"$f":"IF(ISERROR(FIND(BE$3,'CFR - XML import'!$A164)),0,VALUE(MID('CFR - XML import'!$A164,SEARCH(\">\",'CFR - XML import'!$A164,1)+1,SEARCH(\"/\",'CFR - XML import'!$A164,1)-SEARCH(\">\",'CFR - XML import'!$A164,1)-2)))","v":0},{"$f":"IF(ISERROR(FIND(BF$3,'CFR - XML import'!$A164)),0,VALUE(MID('CFR - XML import'!$A164,SEARCH(\">\",'CFR - XML import'!$A164,1)+1,SEARCH(\"/\",'CFR - XML import'!$A164,1)-SEARCH(\">\",'CFR - XML import'!$A164,1)-2)))","v":0},{"$f":"IF(ISERROR(FIND(BG$3,'CFR - XML import'!$A164)),0,VALUE(MID('CFR - XML import'!$A164,SEARCH(\">\",'CFR - XML import'!$A164,1)+1,SEARCH(\"/\",'CFR - XML import'!$A164,1)-SEARCH(\">\",'CFR - XML import'!$A164,1)-2)))","v":0},{"$f":"IF(ISERROR(FIND(BH$3,'CFR - XML import'!$A164)),0,VALUE(MID('CFR - XML import'!$A164,SEARCH(\">\",'CFR - XML import'!$A164,1)+1,SEARCH(\"/\",'CFR - XML import'!$A164,1)-SEARCH(\">\",'CFR - XML import'!$A164,1)-2)))","v":0},{"$f":"IF(ISERROR(FIND(BI$3,'CFR - XML import'!$A164)),0,VALUE(MID('CFR - XML import'!$A164,SEARCH(\">\",'CFR - XML import'!$A164,1)+1,SEARCH(\"/\",'CFR - XML import'!$A164,1)-SEARCH(\">\",'CFR - XML import'!$A164,1)-2)))","v":0},{"$f":"IF(ISERROR(FIND(BJ$3,'CFR - XML import'!$A164)),0,VALUE(MID('CFR - XML import'!$A164,SEARCH(\">\",'CFR - XML import'!$A164,1)+1,SEARCH(\"/\",'CFR - XML import'!$A164,1)-SEARCH(\">\",'CFR - XML import'!$A164,1)-2)))","v":0},{"$f":"IF(ISERROR(FIND(BK$3,'CFR - XML import'!$A164)),0,VALUE(MID('CFR - XML import'!$A164,SEARCH(\">\",'CFR - XML import'!$A164,1)+1,SEARCH(\"/\",'CFR - XML import'!$A164,1)-SEARCH(\">\",'CFR - XML import'!$A164,1)-2)))","v":0},{"$f":"IF(ISERROR(FIND(BL$3,'CFR - XML import'!$A164)),0,VALUE(MID('CFR - XML import'!$A164,SEARCH(\">\",'CFR - XML import'!$A164,1)+1,SEARCH(\"/\",'CFR - XML import'!$A164,1)-SEARCH(\">\",'CFR - XML import'!$A164,1)-2)))","v":0},{"$f":"IF(ISERROR(FIND(BM$3,'CFR - XML import'!$A164)),0,VALUE(MID('CFR - XML import'!$A164,SEARCH(\">\",'CFR - XML import'!$A164,1)+1,SEARCH(\"/\",'CFR - XML import'!$A164,1)-SEARCH(\">\",'CFR - XML import'!$A164,1)-2)))","v":0},{"$f":"IF(ISERROR(FIND(BN$3,'CFR - XML import'!$A164)),0,VALUE(MID('CFR - XML import'!$A164,SEARCH(\">\",'CFR - XML import'!$A164,1)+1,SEARCH(\"/\",'CFR - XML import'!$A164,1)-SEARCH(\">\",'CFR - XML import'!$A164,1)-2)))","v":0},{"$f":"IF(ISERROR(FIND(BO$3,'CFR - XML import'!$A164)),0,VALUE(MID('CFR - XML import'!$A164,SEARCH(\">\",'CFR - XML import'!$A164,1)+1,SEARCH(\"/\",'CFR - XML import'!$A164,1)-SEARCH(\">\",'CFR - XML import'!$A164,1)-2)))","v":0},{"$f":"IF(ISERROR(FIND(BP$3,'CFR - XML import'!$A164)),0,VALUE(MID('CFR - XML import'!$A164,SEARCH(\">\",'CFR - XML import'!$A164,1)+1,SEARCH(\"/\",'CFR - XML import'!$A164,1)-SEARCH(\">\",'CFR - XML import'!$A164,1)-2)))","v":0},{"$f":"IF(ISERROR(FIND(BQ$3,'CFR - XML import'!$A164)),0,VALUE(MID('CFR - XML import'!$A164,SEARCH(\">\",'CFR - XML import'!$A164,1)+1,SEARCH(\"/\",'CFR - XML import'!$A164,1)-SEARCH(\">\",'CFR - XML import'!$A164,1)-2)))","v":0},{"$f":"IF(ISERROR(FIND(BR$3,'CFR - XML import'!$A164)),0,VALUE(MID('CFR - XML import'!$A164,SEARCH(\">\",'CFR - XML import'!$A164,1)+1,SEARCH(\"/\",'CFR - XML import'!$A164,1)-SEARCH(\">\",'CFR - XML import'!$A164,1)-2)))","v":0},{"$f":"IF(ISERROR(FIND(BS$3,'CFR - XML import'!$A164)),0,VALUE(MID('CFR - XML import'!$A164,SEARCH(\">\",'CFR - XML import'!$A164,1)+1,SEARCH(\"/\",'CFR - XML import'!$A164,1)-SEARCH(\">\",'CFR - XML import'!$A164,1)-2)))","v":0},{"$f":"IF(ISERROR(FIND(BT$3,'CFR - XML import'!$A164)),0,VALUE(MID('CFR - XML import'!$A164,SEARCH(\">\",'CFR - XML import'!$A164,1)+1,SEARCH(\"/\",'CFR - XML import'!$A164,1)-SEARCH(\">\",'CFR - XML import'!$A164,1)-2)))","v":0},{"$f":"IF(ISERROR(FIND(BU$3,'CFR - XML import'!$A164)),0,VALUE(MID('CFR - XML import'!$A164,SEARCH(\">\",'CFR - XML import'!$A164,1)+1,SEARCH(\"/\",'CFR - XML import'!$A164,1)-SEARCH(\">\",'CFR - XML import'!$A164,1)-2)))","v":0},{"$f":"IF(ISERROR(FIND(BV$3,'CFR - XML import'!$A164)),0,VALUE(MID('CFR - XML import'!$A164,SEARCH(\">\",'CFR - XML import'!$A164,1)+1,SEARCH(\"/\",'CFR - XML import'!$A164,1)-SEARCH(\">\",'CFR - XML import'!$A164,1)-2)))","v":0},{"$f":"IF(ISERROR(FIND(BW$3,'CFR - XML import'!$A164)),0,VALUE(MID('CFR - XML import'!$A164,SEARCH(\">\",'CFR - XML import'!$A164,1)+1,SEARCH(\"/\",'CFR - XML import'!$A164,1)-SEARCH(\">\",'CFR - XML import'!$A164,1)-2)))","v":0},{"$f":"IF(ISERROR(FIND(BX$3,'CFR - XML import'!$A164)),0,VALUE(MID('CFR - XML import'!$A164,SEARCH(\">\",'CFR - XML import'!$A164,1)+1,SEARCH(\"/\",'CFR - XML import'!$A164,1)-SEARCH(\">\",'CFR - XML import'!$A164,1)-2)))","v":0},{"$f":"IF(ISERROR(FIND(BY$3,'CFR - XML import'!$A164)),0,VALUE(MID('CFR - XML import'!$A164,SEARCH(\">\",'CFR - XML import'!$A164,1)+1,SEARCH(\"/\",'CFR - XML import'!$A164,1)-SEARCH(\">\",'CFR - XML import'!$A164,1)-2)))","v":0},{"$f":"IF(ISERROR(FIND(BZ$3,'CFR - XML import'!$A164)),0,VALUE(MID('CFR - XML import'!$A164,SEARCH(\">\",'CFR - XML import'!$A164,1)+1,SEARCH(\"/\",'CFR - XML import'!$A164,1)-SEARCH(\">\",'CFR - XML import'!$A164,1)-2)))","v":0},null,null,null,null,null,null,{"$f":"IF(ISERROR(IF(MID('CFR - XML import'!$A164,LEN($CF$4)+1,LEN('CFR - XML import'!$A164)-(2*LEN($CF$4)+1))=\"RMMS\",1,IF(MID('CFR - XML import'!$A164,LEN(\"    <InputSystem>\")+1,LEN('CFR - XML import'!$A164)-(LEN(\"    <InputSystem>\")+LEN($CF$4)+1))=\"SIMS\",2,0))),0,IF(MID('CFR - XML import'!$A164,LEN($CF$4)+1,LEN('CFR - XML import'!$A164)-(2*LEN($CF$4)+1))=\"RMMS\",1,IF(MID('CFR - XML import'!$A164,LEN(\"    <InputSystem>\")+1,LEN('CFR - XML import'!$A164)-(LEN(\"    <InputSystem>\")+LEN($CF$4)+1))=\"SIMS\",2,0)))","v":0},{"$f":"IF(ISERROR(FIND(CH$3,'CFR - XML import'!$A164)),0,MID('CFR - XML import'!$A164,SEARCH(\">\",'CFR - XML import'!$A164,1)+1,SEARCH(\"/\",'CFR - XML import'!$A164,1)-SEARCH(\">\",'CFR - XML import'!$A164,1)-2))","v":0},{"$f":"IF(ISERROR(FIND(CI$3,'CFR - XML import'!$A164)),0,MID('CFR - XML import'!$A164,SEARCH(\">\",'CFR - XML import'!$A164,1)+1,SEARCH(\"/\",'CFR - XML import'!$A164,1)-SEARCH(\">\",'CFR - XML import'!$A164,1)-2))","v":0},{"$f":"IF(ISERROR(FIND(CJ$3,'CFR - XML import'!$A164)),0,MID('CFR - XML import'!$A164,SEARCH(\">\",'CFR - XML import'!$A164,1)+1,SEARCH(\"/\",'CFR - XML import'!$A164,1)-SEARCH(\">\",'CFR - XML import'!$A164,1)-2))","v":0},{"$f":"IF(ISERROR(FIND(CK$3,'CFR - XML import'!$A164)),0,MID('CFR - XML import'!$A164,SEARCH(\">\",'CFR - XML import'!$A164,1)+1,SEARCH(\"/\",'CFR - XML import'!$A164,1)-SEARCH(\">\",'CFR - XML import'!$A164,1)-2))","v":0},{"$f":"IF(ISERROR(FIND(CL$3,'CFR - XML import'!$A164)),0,MID('CFR - XML import'!$A164,SEARCH(\">\",'CFR - XML import'!$A164,1)+1,SEARCH(\"/\",'CFR - XML import'!$A164,1)-SEARCH(\">\",'CFR - XML import'!$A164,1)-2))","v":0}]
[{"$f":"IF(AND('CFR - XML import'!A165<>\"\",LEFT('CFR - XML import'!A165,1)<>\"<\",LEFT('CFR - XML import'!A165,3)<>\"  <\",LEFT('CFR - XML import'!A165,5)<>\"    <\",LEFT('CFR - XML import'!A165,7)<>\"      <\",LEFT('CFR - XML import'!A165,9)<>\"        <\",$B$1=\"SIMS\"),'CFR - XML import'!A165,IF(AND(LEFT('CFR - XML import'!A165,9)=\"<Details>\",$B$1=\"RM\"),'CFR - XML import'!A165,\"\"))","v":""},{"$f":"IF(ISERROR(FIND(B$3,'CFR - XML import'!$A165)),0,VALUE(MID('CFR - XML import'!$A165,SEARCH(\">\",'CFR - XML import'!$A165,1)+1,SEARCH(\"/\",'CFR - XML import'!$A165,1)-SEARCH(\">\",'CFR - XML import'!$A165,1)-2)))","v":0},null,{"$f":"IF(ISERROR(FIND(D$3,'CFR - XML import'!$A165)),0,MID('CFR - XML import'!$A165,SEARCH(\">\",'CFR - XML import'!$A165,1)+1,SEARCH(\"/\",'CFR - XML import'!$A165,1)-SEARCH(\">\",'CFR - XML import'!$A165,1)-2))","v":0},{"$f":"IF(ISERROR(FIND(E$3,'CFR - XML import'!$A165)),0,MID('CFR - XML import'!$A165,SEARCH(\">\",'CFR - XML import'!$A165,1)+1,SEARCH(\"/\",'CFR - XML import'!$A165,1)-SEARCH(\">\",'CFR - XML import'!$A165,1)-2))","v":0},{"$f":"IF($B$1=\"SIMS\",IF(ISERROR(FIND(F$3,'CFR - XML import'!$A165)),0,VALUE(MID('CFR - XML import'!$A165,15,10))),IF(ISERROR(FIND(F$3,'CFR - XML import'!$A165)),0,VALUE(MID('CFR - XML import'!$A165,11,10))))","v":"00:00:00"},{"$f":"IF(ISERROR(FIND(G$3,'CFR - XML import'!$A165)),0,VALUE(MID('CFR - XML import'!$A165,SEARCH(\">\",'CFR - XML import'!$A165,1)+1,SEARCH(\"/\",'CFR - XML import'!$A165,1)-SEARCH(\">\",'CFR - XML import'!$A165,1)-2)))","v":0},{"$f":"IF(ISERROR(FIND(H$3,'CFR - XML import'!$A165)),0,VALUE(MID('CFR - XML import'!$A165,SEARCH(\">\",'CFR - XML import'!$A165,1)+1,SEARCH(\"/\",'CFR - XML import'!$A165,1)-SEARCH(\">\",'CFR - XML import'!$A165,1)-2)))","v":0},{"$f":"IF(ISERROR(FIND(I$3,'CFR - XML import'!$A165)),0,VALUE(MID('CFR - XML import'!$A165,SEARCH(\">\",'CFR - XML import'!$A165,1)+1,SEARCH(\"/\",'CFR - XML import'!$A165,1)-SEARCH(\">\",'CFR - XML import'!$A165,1)-2)))","v":0},{"$f":"IF(ISERROR(FIND(J$3,'CFR - XML import'!$A165)),0,VALUE(MID('CFR - XML import'!$A165,SEARCH(\">\",'CFR - XML import'!$A165,1)+1,SEARCH(\"/\",'CFR - XML import'!$A165,1)-SEARCH(\">\",'CFR - XML import'!$A165,1)-2)))","v":0},{"$f":"IF(ISERROR(FIND(K$3,'CFR - XML import'!$A165)),0,VALUE(MID('CFR - XML import'!$A165,SEARCH(\">\",'CFR - XML import'!$A165,1)+1,SEARCH(\"/\",'CFR - XML import'!$A165,1)-SEARCH(\">\",'CFR - XML import'!$A165,1)-2)))","v":0},{"$f":"IF(ISERROR(FIND(L$3,'CFR - XML import'!$A165)),0,VALUE(MID('CFR - XML import'!$A165,SEARCH(\">\",'CFR - XML import'!$A165,1)+1,SEARCH(\"/\",'CFR - XML import'!$A165,1)-SEARCH(\">\",'CFR - XML import'!$A165,1)-2)))","v":0},{"$f":"IF(ISERROR(FIND(M$3,'CFR - XML import'!$A165)),0,VALUE(MID('CFR - XML import'!$A165,SEARCH(\">\",'CFR - XML import'!$A165,1)+1,SEARCH(\"/\",'CFR - XML import'!$A165,1)-SEARCH(\">\",'CFR - XML import'!$A165,1)-2)))","v":0},{"$f":"IF(ISERROR(FIND(N$3,'CFR - XML import'!$A165)),0,VALUE(MID('CFR - XML import'!$A165,SEARCH(\">\",'CFR - XML import'!$A165,1)+1,SEARCH(\"/\",'CFR - XML import'!$A165,1)-SEARCH(\">\",'CFR - XML import'!$A165,1)-2)))","v":0},{"$f":"IF(ISERROR(FIND(O$3,'CFR - XML import'!$A165)),0,VALUE(MID('CFR - XML import'!$A165,SEARCH(\">\",'CFR - XML import'!$A165,1)+1,SEARCH(\"/\",'CFR - XML import'!$A165,1)-SEARCH(\">\",'CFR - XML import'!$A165,1)-2)))","v":0},{"$f":"IF(ISERROR(FIND(P$3,'CFR - XML import'!$A165)),0,VALUE(MID('CFR - XML import'!$A165,SEARCH(\">\",'CFR - XML import'!$A165,1)+1,SEARCH(\"/\",'CFR - XML import'!$A165,1)-SEARCH(\">\",'CFR - XML import'!$A165,1)-2)))","v":0},{"$f":"IF(ISERROR(FIND(Q$3,'CFR - XML import'!$A165)),0,VALUE(MID('CFR - XML import'!$A165,SEARCH(\">\",'CFR - XML import'!$A165,1)+1,SEARCH(\"/\",'CFR - XML import'!$A165,1)-SEARCH(\">\",'CFR - XML import'!$A165,1)-2)))","v":0},{"$f":"IF(ISERROR(FIND(R$3,'CFR - XML import'!$A165)),0,VALUE(MID('CFR - XML import'!$A165,SEARCH(\">\",'CFR - XML import'!$A165,1)+1,SEARCH(\"/\",'CFR - XML import'!$A165,1)-SEARCH(\">\",'CFR - XML import'!$A165,1)-2)))","v":0},{"$f":"IF(ISERROR(FIND(S$3,'CFR - XML import'!$A165)),0,VALUE(MID('CFR - XML import'!$A165,SEARCH(\">\",'CFR - XML import'!$A165,1)+1,SEARCH(\"/\",'CFR - XML import'!$A165,1)-SEARCH(\">\",'CFR - XML import'!$A165,1)-2)))","v":0},{"$f":"IF(ISERROR(FIND(T$3,'CFR - XML import'!$A165)),0,VALUE(MID('CFR - XML import'!$A165,SEARCH(\">\",'CFR - XML import'!$A165,1)+1,SEARCH(\"/\",'CFR - XML import'!$A165,1)-SEARCH(\">\",'CFR - XML import'!$A165,1)-2)))","v":0},{"$f":"IF(ISERROR(FIND(U$3,'CFR - XML import'!$A165)),0,VALUE(MID('CFR - XML import'!$A165,SEARCH(\">\",'CFR - XML import'!$A165,1)+1,SEARCH(\"/\",'CFR - XML import'!$A165,1)-SEARCH(\">\",'CFR - XML import'!$A165,1)-2)))","v":0},{"$f":"IF(ISERROR(FIND(V$3,'CFR - XML import'!$A165)),0,VALUE(MID('CFR - XML import'!$A165,SEARCH(\">\",'CFR - XML import'!$A165,1)+1,SEARCH(\"/\",'CFR - XML import'!$A165,1)-SEARCH(\">\",'CFR - XML import'!$A165,1)-2)))","v":0},{"$f":"IF(ISERROR(FIND(W$3,'CFR - XML import'!$A165)),0,VALUE(MID('CFR - XML import'!$A165,SEARCH(\">\",'CFR - XML import'!$A165,1)+1,SEARCH(\"/\",'CFR - XML import'!$A165,1)-SEARCH(\">\",'CFR - XML import'!$A165,1)-2)))","v":0},null,{"$f":"IF(ISERROR(FIND(Y$3,'CFR - XML import'!$A165)),0,VALUE(MID('CFR - XML import'!$A165,SEARCH(\">\",'CFR - XML import'!$A165,1)+1,SEARCH(\"/\",'CFR - XML import'!$A165,1)-SEARCH(\">\",'CFR - XML import'!$A165,1)-2)))","v":0},{"$f":"IF(ISERROR(FIND(Z$3,'CFR - XML import'!$A165)),0,VALUE(MID('CFR - XML import'!$A165,SEARCH(\">\",'CFR - XML import'!$A165,1)+1,SEARCH(\"/\",'CFR - XML import'!$A165,1)-SEARCH(\">\",'CFR - XML import'!$A165,1)-2)))","v":0},{"$f":"IF(ISERROR(FIND(AA$3,'CFR - XML import'!$A165)),0,VALUE(MID('CFR - XML import'!$A165,SEARCH(\">\",'CFR - XML import'!$A165,1)+1,SEARCH(\"/\",'CFR - XML import'!$A165,1)-SEARCH(\">\",'CFR - XML import'!$A165,1)-2)))","v":0},{"$f":"IF(ISERROR(FIND(AB$3,'CFR - XML import'!$A165)),0,VALUE(MID('CFR - XML import'!$A165,SEARCH(\">\",'CFR - XML import'!$A165,1)+1,SEARCH(\"/\",'CFR - XML import'!$A165,1)-SEARCH(\">\",'CFR - XML import'!$A165,1)-2)))","v":0},{"$f":"IF(ISERROR(FIND(AC$3,'CFR - XML import'!$A165)),0,VALUE(MID('CFR - XML import'!$A165,SEARCH(\">\",'CFR - XML import'!$A165,1)+1,SEARCH(\"/\",'CFR - XML import'!$A165,1)-SEARCH(\">\",'CFR - XML import'!$A165,1)-2)))","v":0},{"$f":"IF(ISERROR(FIND(AD$3,'CFR - XML import'!$A165)),0,VALUE(MID('CFR - XML import'!$A165,SEARCH(\">\",'CFR - XML import'!$A165,1)+1,SEARCH(\"/\",'CFR - XML import'!$A165,1)-SEARCH(\">\",'CFR - XML import'!$A165,1)-2)))","v":0},{"$f":"IF(ISERROR(FIND(AE$3,'CFR - XML import'!$A165)),0,VALUE(MID('CFR - XML import'!$A165,SEARCH(\">\",'CFR - XML import'!$A165,1)+1,SEARCH(\"/\",'CFR - XML import'!$A165,1)-SEARCH(\">\",'CFR - XML import'!$A165,1)-2)))","v":0},{"$f":"IF(ISERROR(FIND(AF$3,'CFR - XML import'!$A165)),0,VALUE(MID('CFR - XML import'!$A165,SEARCH(\">\",'CFR - XML import'!$A165,1)+1,SEARCH(\"/\",'CFR - XML import'!$A165,1)-SEARCH(\">\",'CFR - XML import'!$A165,1)-2)))","v":0},{"$f":"IF(ISERROR(FIND(AG$3,'CFR - XML import'!$A165)),0,VALUE(MID('CFR - XML import'!$A165,SEARCH(\">\",'CFR - XML import'!$A165,1)+1,SEARCH(\"/\",'CFR - XML import'!$A165,1)-SEARCH(\">\",'CFR - XML import'!$A165,1)-2)))","v":0},{"$f":"IF(ISERROR(FIND(AH$3,'CFR - XML import'!$A165)),0,VALUE(MID('CFR - XML import'!$A165,SEARCH(\">\",'CFR - XML import'!$A165,1)+1,SEARCH(\"/\",'CFR - XML import'!$A165,1)-SEARCH(\">\",'CFR - XML import'!$A165,1)-2)))","v":0},{"$f":"IF(ISERROR(FIND(AI$3,'CFR - XML import'!$A165)),0,VALUE(MID('CFR - XML import'!$A165,SEARCH(\">\",'CFR - XML import'!$A165,1)+1,SEARCH(\"/\",'CFR - XML import'!$A165,1)-SEARCH(\">\",'CFR - XML import'!$A165,1)-2)))","v":0},{"$f":"IF(ISERROR(FIND(AJ$3,'CFR - XML import'!$A165)),0,VALUE(MID('CFR - XML import'!$A165,SEARCH(\">\",'CFR - XML import'!$A165,1)+1,SEARCH(\"/\",'CFR - XML import'!$A165,1)-SEARCH(\">\",'CFR - XML import'!$A165,1)-2)))","v":0},{"$f":"IF(ISERROR(FIND(AK$3,'CFR - XML import'!$A165)),0,VALUE(MID('CFR - XML import'!$A165,SEARCH(\">\",'CFR - XML import'!$A165,1)+1,SEARCH(\"/\",'CFR - XML import'!$A165,1)-SEARCH(\">\",'CFR - XML import'!$A165,1)-2)))","v":0},{"$f":"IF(ISERROR(FIND(AL$3,'CFR - XML import'!$A165)),0,VALUE(MID('CFR - XML import'!$A165,SEARCH(\">\",'CFR - XML import'!$A165,1)+1,SEARCH(\"/\",'CFR - XML import'!$A165,1)-SEARCH(\">\",'CFR - XML import'!$A165,1)-2)))","v":0},{"$f":"IF(ISERROR(FIND(AM$3,'CFR - XML import'!$A165)),0,VALUE(MID('CFR - XML import'!$A165,SEARCH(\">\",'CFR - XML import'!$A165,1)+1,SEARCH(\"/\",'CFR - XML import'!$A165,1)-SEARCH(\">\",'CFR - XML import'!$A165,1)-2)))","v":0},{"$f":"IF(ISERROR(FIND(AN$3,'CFR - XML import'!$A165)),0,VALUE(MID('CFR - XML import'!$A165,SEARCH(\">\",'CFR - XML import'!$A165,1)+1,SEARCH(\"/\",'CFR - XML import'!$A165,1)-SEARCH(\">\",'CFR - XML import'!$A165,1)-2)))","v":0},{"$f":"IF(ISERROR(FIND(AO$3,'CFR - XML import'!$A165)),0,VALUE(MID('CFR - XML import'!$A165,SEARCH(\">\",'CFR - XML import'!$A165,1)+1,SEARCH(\"/\",'CFR - XML import'!$A165,1)-SEARCH(\">\",'CFR - XML import'!$A165,1)-2)))","v":0},{"$f":"IF(ISERROR(FIND(AP$3,'CFR - XML import'!$A165)),0,VALUE(MID('CFR - XML import'!$A165,SEARCH(\">\",'CFR - XML import'!$A165,1)+1,SEARCH(\"/\",'CFR - XML import'!$A165,1)-SEARCH(\">\",'CFR - XML import'!$A165,1)-2)))","v":0},{"$f":"IF(ISERROR(FIND(AQ$3,'CFR - XML import'!$A165)),0,VALUE(MID('CFR - XML import'!$A165,SEARCH(\">\",'CFR - XML import'!$A165,1)+1,SEARCH(\"/\",'CFR - XML import'!$A165,1)-SEARCH(\">\",'CFR - XML import'!$A165,1)-2)))","v":0},{"$f":"IF(ISERROR(FIND(AR$3,'CFR - XML import'!$A165)),0,VALUE(MID('CFR - XML import'!$A165,SEARCH(\">\",'CFR - XML import'!$A165,1)+1,SEARCH(\"/\",'CFR - XML import'!$A165,1)-SEARCH(\">\",'CFR - XML import'!$A165,1)-2)))","v":0},{"$f":"IF(ISERROR(FIND(AS$3,'CFR - XML import'!$A165)),0,VALUE(MID('CFR - XML import'!$A165,SEARCH(\">\",'CFR - XML import'!$A165,1)+1,SEARCH(\"/\",'CFR - XML import'!$A165,1)-SEARCH(\">\",'CFR - XML import'!$A165,1)-2)))","v":0},{"$f":"IF(ISERROR(FIND(AT$3,'CFR - XML import'!$A165)),0,VALUE(MID('CFR - XML import'!$A165,SEARCH(\">\",'CFR - XML import'!$A165,1)+1,SEARCH(\"/\",'CFR - XML import'!$A165,1)-SEARCH(\">\",'CFR - XML import'!$A165,1)-2)))","v":0},{"$f":"IF(ISERROR(FIND(AU$3,'CFR - XML import'!$A165)),0,VALUE(MID('CFR - XML import'!$A165,SEARCH(\">\",'CFR - XML import'!$A165,1)+1,SEARCH(\"/\",'CFR - XML import'!$A165,1)-SEARCH(\">\",'CFR - XML import'!$A165,1)-2)))","v":0},{"$f":"IF(ISERROR(FIND(AV$3,'CFR - XML import'!$A165)),0,VALUE(MID('CFR - XML import'!$A165,SEARCH(\">\",'CFR - XML import'!$A165,1)+1,SEARCH(\"/\",'CFR - XML import'!$A165,1)-SEARCH(\">\",'CFR - XML import'!$A165,1)-2)))","v":0},{"$f":"IF(ISERROR(FIND(AW$3,'CFR - XML import'!$A165)),0,VALUE(MID('CFR - XML import'!$A165,SEARCH(\">\",'CFR - XML import'!$A165,1)+1,SEARCH(\"/\",'CFR - XML import'!$A165,1)-SEARCH(\">\",'CFR - XML import'!$A165,1)-2)))","v":0},{"$f":"IF(ISERROR(FIND(AX$3,'CFR - XML import'!$A165)),0,VALUE(MID('CFR - XML import'!$A165,SEARCH(\">\",'CFR - XML import'!$A165,1)+1,SEARCH(\"/\",'CFR - XML import'!$A165,1)-SEARCH(\">\",'CFR - XML import'!$A165,1)-2)))","v":0},{"$f":"IF(ISERROR(FIND(AY$3,'CFR - XML import'!$A165)),0,VALUE(MID('CFR - XML import'!$A165,SEARCH(\">\",'CFR - XML import'!$A165,1)+1,SEARCH(\"/\",'CFR - XML import'!$A165,1)-SEARCH(\">\",'CFR - XML import'!$A165,1)-2)))","v":0},{"$f":"IF(ISERROR(FIND(AZ$3,'CFR - XML import'!$A165)),0,VALUE(MID('CFR - XML import'!$A165,SEARCH(\">\",'CFR - XML import'!$A165,1)+1,SEARCH(\"/\",'CFR - XML import'!$A165,1)-SEARCH(\">\",'CFR - XML import'!$A165,1)-2)))","v":0},{"$f":"IF(ISERROR(FIND(BA$3,'CFR - XML import'!$A165)),0,VALUE(MID('CFR - XML import'!$A165,SEARCH(\">\",'CFR - XML import'!$A165,1)+1,SEARCH(\"/\",'CFR - XML import'!$A165,1)-SEARCH(\">\",'CFR - XML import'!$A165,1)-2)))","v":0},{"$f":"IF(ISERROR(FIND(BB$3,'CFR - XML import'!$A165)),0,VALUE(MID('CFR - XML import'!$A165,SEARCH(\">\",'CFR - XML import'!$A165,1)+1,SEARCH(\"/\",'CFR - XML import'!$A165,1)-SEARCH(\">\",'CFR - XML import'!$A165,1)-2)))","v":0},{"$f":"IF(ISERROR(FIND(BC$3,'CFR - XML import'!$A165)),0,VALUE(MID('CFR - XML import'!$A165,SEARCH(\">\",'CFR - XML import'!$A165,1)+1,SEARCH(\"/\",'CFR - XML import'!$A165,1)-SEARCH(\">\",'CFR - XML import'!$A165,1)-2)))","v":0},{"$f":"IF(ISERROR(FIND(BD$3,'CFR - XML import'!$A165)),0,VALUE(MID('CFR - XML import'!$A165,SEARCH(\">\",'CFR - XML import'!$A165,1)+1,SEARCH(\"/\",'CFR - XML import'!$A165,1)-SEARCH(\">\",'CFR - XML import'!$A165,1)-2)))","v":0},{"$f":"IF(ISERROR(FIND(BE$3,'CFR - XML import'!$A165)),0,VALUE(MID('CFR - XML import'!$A165,SEARCH(\">\",'CFR - XML import'!$A165,1)+1,SEARCH(\"/\",'CFR - XML import'!$A165,1)-SEARCH(\">\",'CFR - XML import'!$A165,1)-2)))","v":0},{"$f":"IF(ISERROR(FIND(BF$3,'CFR - XML import'!$A165)),0,VALUE(MID('CFR - XML import'!$A165,SEARCH(\">\",'CFR - XML import'!$A165,1)+1,SEARCH(\"/\",'CFR - XML import'!$A165,1)-SEARCH(\">\",'CFR - XML import'!$A165,1)-2)))","v":0},{"$f":"IF(ISERROR(FIND(BG$3,'CFR - XML import'!$A165)),0,VALUE(MID('CFR - XML import'!$A165,SEARCH(\">\",'CFR - XML import'!$A165,1)+1,SEARCH(\"/\",'CFR - XML import'!$A165,1)-SEARCH(\">\",'CFR - XML import'!$A165,1)-2)))","v":0},{"$f":"IF(ISERROR(FIND(BH$3,'CFR - XML import'!$A165)),0,VALUE(MID('CFR - XML import'!$A165,SEARCH(\">\",'CFR - XML import'!$A165,1)+1,SEARCH(\"/\",'CFR - XML import'!$A165,1)-SEARCH(\">\",'CFR - XML import'!$A165,1)-2)))","v":0},{"$f":"IF(ISERROR(FIND(BI$3,'CFR - XML import'!$A165)),0,VALUE(MID('CFR - XML import'!$A165,SEARCH(\">\",'CFR - XML import'!$A165,1)+1,SEARCH(\"/\",'CFR - XML import'!$A165,1)-SEARCH(\">\",'CFR - XML import'!$A165,1)-2)))","v":0},{"$f":"IF(ISERROR(FIND(BJ$3,'CFR - XML import'!$A165)),0,VALUE(MID('CFR - XML import'!$A165,SEARCH(\">\",'CFR - XML import'!$A165,1)+1,SEARCH(\"/\",'CFR - XML import'!$A165,1)-SEARCH(\">\",'CFR - XML import'!$A165,1)-2)))","v":0},{"$f":"IF(ISERROR(FIND(BK$3,'CFR - XML import'!$A165)),0,VALUE(MID('CFR - XML import'!$A165,SEARCH(\">\",'CFR - XML import'!$A165,1)+1,SEARCH(\"/\",'CFR - XML import'!$A165,1)-SEARCH(\">\",'CFR - XML import'!$A165,1)-2)))","v":0},{"$f":"IF(ISERROR(FIND(BL$3,'CFR - XML import'!$A165)),0,VALUE(MID('CFR - XML import'!$A165,SEARCH(\">\",'CFR - XML import'!$A165,1)+1,SEARCH(\"/\",'CFR - XML import'!$A165,1)-SEARCH(\">\",'CFR - XML import'!$A165,1)-2)))","v":0},{"$f":"IF(ISERROR(FIND(BM$3,'CFR - XML import'!$A165)),0,VALUE(MID('CFR - XML import'!$A165,SEARCH(\">\",'CFR - XML import'!$A165,1)+1,SEARCH(\"/\",'CFR - XML import'!$A165,1)-SEARCH(\">\",'CFR - XML import'!$A165,1)-2)))","v":0},{"$f":"IF(ISERROR(FIND(BN$3,'CFR - XML import'!$A165)),0,VALUE(MID('CFR - XML import'!$A165,SEARCH(\">\",'CFR - XML import'!$A165,1)+1,SEARCH(\"/\",'CFR - XML import'!$A165,1)-SEARCH(\">\",'CFR - XML import'!$A165,1)-2)))","v":0},{"$f":"IF(ISERROR(FIND(BO$3,'CFR - XML import'!$A165)),0,VALUE(MID('CFR - XML import'!$A165,SEARCH(\">\",'CFR - XML import'!$A165,1)+1,SEARCH(\"/\",'CFR - XML import'!$A165,1)-SEARCH(\">\",'CFR - XML import'!$A165,1)-2)))","v":0},{"$f":"IF(ISERROR(FIND(BP$3,'CFR - XML import'!$A165)),0,VALUE(MID('CFR - XML import'!$A165,SEARCH(\">\",'CFR - XML import'!$A165,1)+1,SEARCH(\"/\",'CFR - XML import'!$A165,1)-SEARCH(\">\",'CFR - XML import'!$A165,1)-2)))","v":0},{"$f":"IF(ISERROR(FIND(BQ$3,'CFR - XML import'!$A165)),0,VALUE(MID('CFR - XML import'!$A165,SEARCH(\">\",'CFR - XML import'!$A165,1)+1,SEARCH(\"/\",'CFR - XML import'!$A165,1)-SEARCH(\">\",'CFR - XML import'!$A165,1)-2)))","v":0},{"$f":"IF(ISERROR(FIND(BR$3,'CFR - XML import'!$A165)),0,VALUE(MID('CFR - XML import'!$A165,SEARCH(\">\",'CFR - XML import'!$A165,1)+1,SEARCH(\"/\",'CFR - XML import'!$A165,1)-SEARCH(\">\",'CFR - XML import'!$A165,1)-2)))","v":0},{"$f":"IF(ISERROR(FIND(BS$3,'CFR - XML import'!$A165)),0,VALUE(MID('CFR - XML import'!$A165,SEARCH(\">\",'CFR - XML import'!$A165,1)+1,SEARCH(\"/\",'CFR - XML import'!$A165,1)-SEARCH(\">\",'CFR - XML import'!$A165,1)-2)))","v":0},{"$f":"IF(ISERROR(FIND(BT$3,'CFR - XML import'!$A165)),0,VALUE(MID('CFR - XML import'!$A165,SEARCH(\">\",'CFR - XML import'!$A165,1)+1,SEARCH(\"/\",'CFR - XML import'!$A165,1)-SEARCH(\">\",'CFR - XML import'!$A165,1)-2)))","v":0},{"$f":"IF(ISERROR(FIND(BU$3,'CFR - XML import'!$A165)),0,VALUE(MID('CFR - XML import'!$A165,SEARCH(\">\",'CFR - XML import'!$A165,1)+1,SEARCH(\"/\",'CFR - XML import'!$A165,1)-SEARCH(\">\",'CFR - XML import'!$A165,1)-2)))","v":0},{"$f":"IF(ISERROR(FIND(BV$3,'CFR - XML import'!$A165)),0,VALUE(MID('CFR - XML import'!$A165,SEARCH(\">\",'CFR - XML import'!$A165,1)+1,SEARCH(\"/\",'CFR - XML import'!$A165,1)-SEARCH(\">\",'CFR - XML import'!$A165,1)-2)))","v":0},{"$f":"IF(ISERROR(FIND(BW$3,'CFR - XML import'!$A165)),0,VALUE(MID('CFR - XML import'!$A165,SEARCH(\">\",'CFR - XML import'!$A165,1)+1,SEARCH(\"/\",'CFR - XML import'!$A165,1)-SEARCH(\">\",'CFR - XML import'!$A165,1)-2)))","v":0},{"$f":"IF(ISERROR(FIND(BX$3,'CFR - XML import'!$A165)),0,VALUE(MID('CFR - XML import'!$A165,SEARCH(\">\",'CFR - XML import'!$A165,1)+1,SEARCH(\"/\",'CFR - XML import'!$A165,1)-SEARCH(\">\",'CFR - XML import'!$A165,1)-2)))","v":0},{"$f":"IF(ISERROR(FIND(BY$3,'CFR - XML import'!$A165)),0,VALUE(MID('CFR - XML import'!$A165,SEARCH(\">\",'CFR - XML import'!$A165,1)+1,SEARCH(\"/\",'CFR - XML import'!$A165,1)-SEARCH(\">\",'CFR - XML import'!$A165,1)-2)))","v":0},{"$f":"IF(ISERROR(FIND(BZ$3,'CFR - XML import'!$A165)),0,VALUE(MID('CFR - XML import'!$A165,SEARCH(\">\",'CFR - XML import'!$A165,1)+1,SEARCH(\"/\",'CFR - XML import'!$A165,1)-SEARCH(\">\",'CFR - XML import'!$A165,1)-2)))","v":0},null,null,null,null,null,null,{"$f":"IF(ISERROR(IF(MID('CFR - XML import'!$A165,LEN($CF$4)+1,LEN('CFR - XML import'!$A165)-(2*LEN($CF$4)+1))=\"RMMS\",1,IF(MID('CFR - XML import'!$A165,LEN(\"    <InputSystem>\")+1,LEN('CFR - XML import'!$A165)-(LEN(\"    <InputSystem>\")+LEN($CF$4)+1))=\"SIMS\",2,0))),0,IF(MID('CFR - XML import'!$A165,LEN($CF$4)+1,LEN('CFR - XML import'!$A165)-(2*LEN($CF$4)+1))=\"RMMS\",1,IF(MID('CFR - XML import'!$A165,LEN(\"    <InputSystem>\")+1,LEN('CFR - XML import'!$A165)-(LEN(\"    <InputSystem>\")+LEN($CF$4)+1))=\"SIMS\",2,0)))","v":0},{"$f":"IF(ISERROR(FIND(CH$3,'CFR - XML import'!$A165)),0,MID('CFR - XML import'!$A165,SEARCH(\">\",'CFR - XML import'!$A165,1)+1,SEARCH(\"/\",'CFR - XML import'!$A165,1)-SEARCH(\">\",'CFR - XML import'!$A165,1)-2))","v":0},{"$f":"IF(ISERROR(FIND(CI$3,'CFR - XML import'!$A165)),0,MID('CFR - XML import'!$A165,SEARCH(\">\",'CFR - XML import'!$A165,1)+1,SEARCH(\"/\",'CFR - XML import'!$A165,1)-SEARCH(\">\",'CFR - XML import'!$A165,1)-2))","v":0},{"$f":"IF(ISERROR(FIND(CJ$3,'CFR - XML import'!$A165)),0,MID('CFR - XML import'!$A165,SEARCH(\">\",'CFR - XML import'!$A165,1)+1,SEARCH(\"/\",'CFR - XML import'!$A165,1)-SEARCH(\">\",'CFR - XML import'!$A165,1)-2))","v":0},{"$f":"IF(ISERROR(FIND(CK$3,'CFR - XML import'!$A165)),0,MID('CFR - XML import'!$A165,SEARCH(\">\",'CFR - XML import'!$A165,1)+1,SEARCH(\"/\",'CFR - XML import'!$A165,1)-SEARCH(\">\",'CFR - XML import'!$A165,1)-2))","v":0},{"$f":"IF(ISERROR(FIND(CL$3,'CFR - XML import'!$A165)),0,MID('CFR - XML import'!$A165,SEARCH(\">\",'CFR - XML import'!$A165,1)+1,SEARCH(\"/\",'CFR - XML import'!$A165,1)-SEARCH(\">\",'CFR - XML import'!$A165,1)-2))","v":0}]
[{"$f":"IF(AND('CFR - XML import'!A166<>\"\",LEFT('CFR - XML import'!A166,1)<>\"<\",LEFT('CFR - XML import'!A166,3)<>\"  <\",LEFT('CFR - XML import'!A166,5)<>\"    <\",LEFT('CFR - XML import'!A166,7)<>\"      <\",LEFT('CFR - XML import'!A166,9)<>\"        <\",$B$1=\"SIMS\"),'CFR - XML import'!A166,IF(AND(LEFT('CFR - XML import'!A166,9)=\"<Details>\",$B$1=\"RM\"),'CFR - XML import'!A166,\"\"))","v":""},{"$f":"IF(ISERROR(FIND(B$3,'CFR - XML import'!$A166)),0,VALUE(MID('CFR - XML import'!$A166,SEARCH(\">\",'CFR - XML import'!$A166,1)+1,SEARCH(\"/\",'CFR - XML import'!$A166,1)-SEARCH(\">\",'CFR - XML import'!$A166,1)-2)))","v":0},null,{"$f":"IF(ISERROR(FIND(D$3,'CFR - XML import'!$A166)),0,MID('CFR - XML import'!$A166,SEARCH(\">\",'CFR - XML import'!$A166,1)+1,SEARCH(\"/\",'CFR - XML import'!$A166,1)-SEARCH(\">\",'CFR - XML import'!$A166,1)-2))","v":0},{"$f":"IF(ISERROR(FIND(E$3,'CFR - XML import'!$A166)),0,MID('CFR - XML import'!$A166,SEARCH(\">\",'CFR - XML import'!$A166,1)+1,SEARCH(\"/\",'CFR - XML import'!$A166,1)-SEARCH(\">\",'CFR - XML import'!$A166,1)-2))","v":0},{"$f":"IF($B$1=\"SIMS\",IF(ISERROR(FIND(F$3,'CFR - XML import'!$A166)),0,VALUE(MID('CFR - XML import'!$A166,15,10))),IF(ISERROR(FIND(F$3,'CFR - XML import'!$A166)),0,VALUE(MID('CFR - XML import'!$A166,11,10))))","v":"00:00:00"},{"$f":"IF(ISERROR(FIND(G$3,'CFR - XML import'!$A166)),0,VALUE(MID('CFR - XML import'!$A166,SEARCH(\">\",'CFR - XML import'!$A166,1)+1,SEARCH(\"/\",'CFR - XML import'!$A166,1)-SEARCH(\">\",'CFR - XML import'!$A166,1)-2)))","v":0},{"$f":"IF(ISERROR(FIND(H$3,'CFR - XML import'!$A166)),0,VALUE(MID('CFR - XML import'!$A166,SEARCH(\">\",'CFR - XML import'!$A166,1)+1,SEARCH(\"/\",'CFR - XML import'!$A166,1)-SEARCH(\">\",'CFR - XML import'!$A166,1)-2)))","v":0},{"$f":"IF(ISERROR(FIND(I$3,'CFR - XML import'!$A166)),0,VALUE(MID('CFR - XML import'!$A166,SEARCH(\">\",'CFR - XML import'!$A166,1)+1,SEARCH(\"/\",'CFR - XML import'!$A166,1)-SEARCH(\">\",'CFR - XML import'!$A166,1)-2)))","v":0},{"$f":"IF(ISERROR(FIND(J$3,'CFR - XML import'!$A166)),0,VALUE(MID('CFR - XML import'!$A166,SEARCH(\">\",'CFR - XML import'!$A166,1)+1,SEARCH(\"/\",'CFR - XML import'!$A166,1)-SEARCH(\">\",'CFR - XML import'!$A166,1)-2)))","v":0},{"$f":"IF(ISERROR(FIND(K$3,'CFR - XML import'!$A166)),0,VALUE(MID('CFR - XML import'!$A166,SEARCH(\">\",'CFR - XML import'!$A166,1)+1,SEARCH(\"/\",'CFR - XML import'!$A166,1)-SEARCH(\">\",'CFR - XML import'!$A166,1)-2)))","v":0},{"$f":"IF(ISERROR(FIND(L$3,'CFR - XML import'!$A166)),0,VALUE(MID('CFR - XML import'!$A166,SEARCH(\">\",'CFR - XML import'!$A166,1)+1,SEARCH(\"/\",'CFR - XML import'!$A166,1)-SEARCH(\">\",'CFR - XML import'!$A166,1)-2)))","v":0},{"$f":"IF(ISERROR(FIND(M$3,'CFR - XML import'!$A166)),0,VALUE(MID('CFR - XML import'!$A166,SEARCH(\">\",'CFR - XML import'!$A166,1)+1,SEARCH(\"/\",'CFR - XML import'!$A166,1)-SEARCH(\">\",'CFR - XML import'!$A166,1)-2)))","v":0},{"$f":"IF(ISERROR(FIND(N$3,'CFR - XML import'!$A166)),0,VALUE(MID('CFR - XML import'!$A166,SEARCH(\">\",'CFR - XML import'!$A166,1)+1,SEARCH(\"/\",'CFR - XML import'!$A166,1)-SEARCH(\">\",'CFR - XML import'!$A166,1)-2)))","v":0},{"$f":"IF(ISERROR(FIND(O$3,'CFR - XML import'!$A166)),0,VALUE(MID('CFR - XML import'!$A166,SEARCH(\">\",'CFR - XML import'!$A166,1)+1,SEARCH(\"/\",'CFR - XML import'!$A166,1)-SEARCH(\">\",'CFR - XML import'!$A166,1)-2)))","v":0},{"$f":"IF(ISERROR(FIND(P$3,'CFR - XML import'!$A166)),0,VALUE(MID('CFR - XML import'!$A166,SEARCH(\">\",'CFR - XML import'!$A166,1)+1,SEARCH(\"/\",'CFR - XML import'!$A166,1)-SEARCH(\">\",'CFR - XML import'!$A166,1)-2)))","v":0},{"$f":"IF(ISERROR(FIND(Q$3,'CFR - XML import'!$A166)),0,VALUE(MID('CFR - XML import'!$A166,SEARCH(\">\",'CFR - XML import'!$A166,1)+1,SEARCH(\"/\",'CFR - XML import'!$A166,1)-SEARCH(\">\",'CFR - XML import'!$A166,1)-2)))","v":0},{"$f":"IF(ISERROR(FIND(R$3,'CFR - XML import'!$A166)),0,VALUE(MID('CFR - XML import'!$A166,SEARCH(\">\",'CFR - XML import'!$A166,1)+1,SEARCH(\"/\",'CFR - XML import'!$A166,1)-SEARCH(\">\",'CFR - XML import'!$A166,1)-2)))","v":0},{"$f":"IF(ISERROR(FIND(S$3,'CFR - XML import'!$A166)),0,VALUE(MID('CFR - XML import'!$A166,SEARCH(\">\",'CFR - XML import'!$A166,1)+1,SEARCH(\"/\",'CFR - XML import'!$A166,1)-SEARCH(\">\",'CFR - XML import'!$A166,1)-2)))","v":0},{"$f":"IF(ISERROR(FIND(T$3,'CFR - XML import'!$A166)),0,VALUE(MID('CFR - XML import'!$A166,SEARCH(\">\",'CFR - XML import'!$A166,1)+1,SEARCH(\"/\",'CFR - XML import'!$A166,1)-SEARCH(\">\",'CFR - XML import'!$A166,1)-2)))","v":0},{"$f":"IF(ISERROR(FIND(U$3,'CFR - XML import'!$A166)),0,VALUE(MID('CFR - XML import'!$A166,SEARCH(\">\",'CFR - XML import'!$A166,1)+1,SEARCH(\"/\",'CFR - XML import'!$A166,1)-SEARCH(\">\",'CFR - XML import'!$A166,1)-2)))","v":0},{"$f":"IF(ISERROR(FIND(V$3,'CFR - XML import'!$A166)),0,VALUE(MID('CFR - XML import'!$A166,SEARCH(\">\",'CFR - XML import'!$A166,1)+1,SEARCH(\"/\",'CFR - XML import'!$A166,1)-SEARCH(\">\",'CFR - XML import'!$A166,1)-2)))","v":0},{"$f":"IF(ISERROR(FIND(W$3,'CFR - XML import'!$A166)),0,VALUE(MID('CFR - XML import'!$A166,SEARCH(\">\",'CFR - XML import'!$A166,1)+1,SEARCH(\"/\",'CFR - XML import'!$A166,1)-SEARCH(\">\",'CFR - XML import'!$A166,1)-2)))","v":0},null,{"$f":"IF(ISERROR(FIND(Y$3,'CFR - XML import'!$A166)),0,VALUE(MID('CFR - XML import'!$A166,SEARCH(\">\",'CFR - XML import'!$A166,1)+1,SEARCH(\"/\",'CFR - XML import'!$A166,1)-SEARCH(\">\",'CFR - XML import'!$A166,1)-2)))","v":0},{"$f":"IF(ISERROR(FIND(Z$3,'CFR - XML import'!$A166)),0,VALUE(MID('CFR - XML import'!$A166,SEARCH(\">\",'CFR - XML import'!$A166,1)+1,SEARCH(\"/\",'CFR - XML import'!$A166,1)-SEARCH(\">\",'CFR - XML import'!$A166,1)-2)))","v":0},{"$f":"IF(ISERROR(FIND(AA$3,'CFR - XML import'!$A166)),0,VALUE(MID('CFR - XML import'!$A166,SEARCH(\">\",'CFR - XML import'!$A166,1)+1,SEARCH(\"/\",'CFR - XML import'!$A166,1)-SEARCH(\">\",'CFR - XML import'!$A166,1)-2)))","v":0},{"$f":"IF(ISERROR(FIND(AB$3,'CFR - XML import'!$A166)),0,VALUE(MID('CFR - XML import'!$A166,SEARCH(\">\",'CFR - XML import'!$A166,1)+1,SEARCH(\"/\",'CFR - XML import'!$A166,1)-SEARCH(\">\",'CFR - XML import'!$A166,1)-2)))","v":0},{"$f":"IF(ISERROR(FIND(AC$3,'CFR - XML import'!$A166)),0,VALUE(MID('CFR - XML import'!$A166,SEARCH(\">\",'CFR - XML import'!$A166,1)+1,SEARCH(\"/\",'CFR - XML import'!$A166,1)-SEARCH(\">\",'CFR - XML import'!$A166,1)-2)))","v":0},{"$f":"IF(ISERROR(FIND(AD$3,'CFR - XML import'!$A166)),0,VALUE(MID('CFR - XML import'!$A166,SEARCH(\">\",'CFR - XML import'!$A166,1)+1,SEARCH(\"/\",'CFR - XML import'!$A166,1)-SEARCH(\">\",'CFR - XML import'!$A166,1)-2)))","v":0},{"$f":"IF(ISERROR(FIND(AE$3,'CFR - XML import'!$A166)),0,VALUE(MID('CFR - XML import'!$A166,SEARCH(\">\",'CFR - XML import'!$A166,1)+1,SEARCH(\"/\",'CFR - XML import'!$A166,1)-SEARCH(\">\",'CFR - XML import'!$A166,1)-2)))","v":0},{"$f":"IF(ISERROR(FIND(AF$3,'CFR - XML import'!$A166)),0,VALUE(MID('CFR - XML import'!$A166,SEARCH(\">\",'CFR - XML import'!$A166,1)+1,SEARCH(\"/\",'CFR - XML import'!$A166,1)-SEARCH(\">\",'CFR - XML import'!$A166,1)-2)))","v":0},{"$f":"IF(ISERROR(FIND(AG$3,'CFR - XML import'!$A166)),0,VALUE(MID('CFR - XML import'!$A166,SEARCH(\">\",'CFR - XML import'!$A166,1)+1,SEARCH(\"/\",'CFR - XML import'!$A166,1)-SEARCH(\">\",'CFR - XML import'!$A166,1)-2)))","v":0},{"$f":"IF(ISERROR(FIND(AH$3,'CFR - XML import'!$A166)),0,VALUE(MID('CFR - XML import'!$A166,SEARCH(\">\",'CFR - XML import'!$A166,1)+1,SEARCH(\"/\",'CFR - XML import'!$A166,1)-SEARCH(\">\",'CFR - XML import'!$A166,1)-2)))","v":0},{"$f":"IF(ISERROR(FIND(AI$3,'CFR - XML import'!$A166)),0,VALUE(MID('CFR - XML import'!$A166,SEARCH(\">\",'CFR - XML import'!$A166,1)+1,SEARCH(\"/\",'CFR - XML import'!$A166,1)-SEARCH(\">\",'CFR - XML import'!$A166,1)-2)))","v":0},{"$f":"IF(ISERROR(FIND(AJ$3,'CFR - XML import'!$A166)),0,VALUE(MID('CFR - XML import'!$A166,SEARCH(\">\",'CFR - XML import'!$A166,1)+1,SEARCH(\"/\",'CFR - XML import'!$A166,1)-SEARCH(\">\",'CFR - XML import'!$A166,1)-2)))","v":0},{"$f":"IF(ISERROR(FIND(AK$3,'CFR - XML import'!$A166)),0,VALUE(MID('CFR - XML import'!$A166,SEARCH(\">\",'CFR - XML import'!$A166,1)+1,SEARCH(\"/\",'CFR - XML import'!$A166,1)-SEARCH(\">\",'CFR - XML import'!$A166,1)-2)))","v":0},{"$f":"IF(ISERROR(FIND(AL$3,'CFR - XML import'!$A166)),0,VALUE(MID('CFR - XML import'!$A166,SEARCH(\">\",'CFR - XML import'!$A166,1)+1,SEARCH(\"/\",'CFR - XML import'!$A166,1)-SEARCH(\">\",'CFR - XML import'!$A166,1)-2)))","v":0},{"$f":"IF(ISERROR(FIND(AM$3,'CFR - XML import'!$A166)),0,VALUE(MID('CFR - XML import'!$A166,SEARCH(\">\",'CFR - XML import'!$A166,1)+1,SEARCH(\"/\",'CFR - XML import'!$A166,1)-SEARCH(\">\",'CFR - XML import'!$A166,1)-2)))","v":0},{"$f":"IF(ISERROR(FIND(AN$3,'CFR - XML import'!$A166)),0,VALUE(MID('CFR - XML import'!$A166,SEARCH(\">\",'CFR - XML import'!$A166,1)+1,SEARCH(\"/\",'CFR - XML import'!$A166,1)-SEARCH(\">\",'CFR - XML import'!$A166,1)-2)))","v":0},{"$f":"IF(ISERROR(FIND(AO$3,'CFR - XML import'!$A166)),0,VALUE(MID('CFR - XML import'!$A166,SEARCH(\">\",'CFR - XML import'!$A166,1)+1,SEARCH(\"/\",'CFR - XML import'!$A166,1)-SEARCH(\">\",'CFR - XML import'!$A166,1)-2)))","v":0},{"$f":"IF(ISERROR(FIND(AP$3,'CFR - XML import'!$A166)),0,VALUE(MID('CFR - XML import'!$A166,SEARCH(\">\",'CFR - XML import'!$A166,1)+1,SEARCH(\"/\",'CFR - XML import'!$A166,1)-SEARCH(\">\",'CFR - XML import'!$A166,1)-2)))","v":0},{"$f":"IF(ISERROR(FIND(AQ$3,'CFR - XML import'!$A166)),0,VALUE(MID('CFR - XML import'!$A166,SEARCH(\">\",'CFR - XML import'!$A166,1)+1,SEARCH(\"/\",'CFR - XML import'!$A166,1)-SEARCH(\">\",'CFR - XML import'!$A166,1)-2)))","v":0},{"$f":"IF(ISERROR(FIND(AR$3,'CFR - XML import'!$A166)),0,VALUE(MID('CFR - XML import'!$A166,SEARCH(\">\",'CFR - XML import'!$A166,1)+1,SEARCH(\"/\",'CFR - XML import'!$A166,1)-SEARCH(\">\",'CFR - XML import'!$A166,1)-2)))","v":0},{"$f":"IF(ISERROR(FIND(AS$3,'CFR - XML import'!$A166)),0,VALUE(MID('CFR - XML import'!$A166,SEARCH(\">\",'CFR - XML import'!$A166,1)+1,SEARCH(\"/\",'CFR - XML import'!$A166,1)-SEARCH(\">\",'CFR - XML import'!$A166,1)-2)))","v":0},{"$f":"IF(ISERROR(FIND(AT$3,'CFR - XML import'!$A166)),0,VALUE(MID('CFR - XML import'!$A166,SEARCH(\">\",'CFR - XML import'!$A166,1)+1,SEARCH(\"/\",'CFR - XML import'!$A166,1)-SEARCH(\">\",'CFR - XML import'!$A166,1)-2)))","v":0},{"$f":"IF(ISERROR(FIND(AU$3,'CFR - XML import'!$A166)),0,VALUE(MID('CFR - XML import'!$A166,SEARCH(\">\",'CFR - XML import'!$A166,1)+1,SEARCH(\"/\",'CFR - XML import'!$A166,1)-SEARCH(\">\",'CFR - XML import'!$A166,1)-2)))","v":0},{"$f":"IF(ISERROR(FIND(AV$3,'CFR - XML import'!$A166)),0,VALUE(MID('CFR - XML import'!$A166,SEARCH(\">\",'CFR - XML import'!$A166,1)+1,SEARCH(\"/\",'CFR - XML import'!$A166,1)-SEARCH(\">\",'CFR - XML import'!$A166,1)-2)))","v":0},{"$f":"IF(ISERROR(FIND(AW$3,'CFR - XML import'!$A166)),0,VALUE(MID('CFR - XML import'!$A166,SEARCH(\">\",'CFR - XML import'!$A166,1)+1,SEARCH(\"/\",'CFR - XML import'!$A166,1)-SEARCH(\">\",'CFR - XML import'!$A166,1)-2)))","v":0},{"$f":"IF(ISERROR(FIND(AX$3,'CFR - XML import'!$A166)),0,VALUE(MID('CFR - XML import'!$A166,SEARCH(\">\",'CFR - XML import'!$A166,1)+1,SEARCH(\"/\",'CFR - XML import'!$A166,1)-SEARCH(\">\",'CFR - XML import'!$A166,1)-2)))","v":0},{"$f":"IF(ISERROR(FIND(AY$3,'CFR - XML import'!$A166)),0,VALUE(MID('CFR - XML import'!$A166,SEARCH(\">\",'CFR - XML import'!$A166,1)+1,SEARCH(\"/\",'CFR - XML import'!$A166,1)-SEARCH(\">\",'CFR - XML import'!$A166,1)-2)))","v":0},{"$f":"IF(ISERROR(FIND(AZ$3,'CFR - XML import'!$A166)),0,VALUE(MID('CFR - XML import'!$A166,SEARCH(\">\",'CFR - XML import'!$A166,1)+1,SEARCH(\"/\",'CFR - XML import'!$A166,1)-SEARCH(\">\",'CFR - XML import'!$A166,1)-2)))","v":0},{"$f":"IF(ISERROR(FIND(BA$3,'CFR - XML import'!$A166)),0,VALUE(MID('CFR - XML import'!$A166,SEARCH(\">\",'CFR - XML import'!$A166,1)+1,SEARCH(\"/\",'CFR - XML import'!$A166,1)-SEARCH(\">\",'CFR - XML import'!$A166,1)-2)))","v":0},{"$f":"IF(ISERROR(FIND(BB$3,'CFR - XML import'!$A166)),0,VALUE(MID('CFR - XML import'!$A166,SEARCH(\">\",'CFR - XML import'!$A166,1)+1,SEARCH(\"/\",'CFR - XML import'!$A166,1)-SEARCH(\">\",'CFR - XML import'!$A166,1)-2)))","v":0},{"$f":"IF(ISERROR(FIND(BC$3,'CFR - XML import'!$A166)),0,VALUE(MID('CFR - XML import'!$A166,SEARCH(\">\",'CFR - XML import'!$A166,1)+1,SEARCH(\"/\",'CFR - XML import'!$A166,1)-SEARCH(\">\",'CFR - XML import'!$A166,1)-2)))","v":0},{"$f":"IF(ISERROR(FIND(BD$3,'CFR - XML import'!$A166)),0,VALUE(MID('CFR - XML import'!$A166,SEARCH(\">\",'CFR - XML import'!$A166,1)+1,SEARCH(\"/\",'CFR - XML import'!$A166,1)-SEARCH(\">\",'CFR - XML import'!$A166,1)-2)))","v":0},{"$f":"IF(ISERROR(FIND(BE$3,'CFR - XML import'!$A166)),0,VALUE(MID('CFR - XML import'!$A166,SEARCH(\">\",'CFR - XML import'!$A166,1)+1,SEARCH(\"/\",'CFR - XML import'!$A166,1)-SEARCH(\">\",'CFR - XML import'!$A166,1)-2)))","v":0},{"$f":"IF(ISERROR(FIND(BF$3,'CFR - XML import'!$A166)),0,VALUE(MID('CFR - XML import'!$A166,SEARCH(\">\",'CFR - XML import'!$A166,1)+1,SEARCH(\"/\",'CFR - XML import'!$A166,1)-SEARCH(\">\",'CFR - XML import'!$A166,1)-2)))","v":0},{"$f":"IF(ISERROR(FIND(BG$3,'CFR - XML import'!$A166)),0,VALUE(MID('CFR - XML import'!$A166,SEARCH(\">\",'CFR - XML import'!$A166,1)+1,SEARCH(\"/\",'CFR - XML import'!$A166,1)-SEARCH(\">\",'CFR - XML import'!$A166,1)-2)))","v":0},{"$f":"IF(ISERROR(FIND(BH$3,'CFR - XML import'!$A166)),0,VALUE(MID('CFR - XML import'!$A166,SEARCH(\">\",'CFR - XML import'!$A166,1)+1,SEARCH(\"/\",'CFR - XML import'!$A166,1)-SEARCH(\">\",'CFR - XML import'!$A166,1)-2)))","v":0},{"$f":"IF(ISERROR(FIND(BI$3,'CFR - XML import'!$A166)),0,VALUE(MID('CFR - XML import'!$A166,SEARCH(\">\",'CFR - XML import'!$A166,1)+1,SEARCH(\"/\",'CFR - XML import'!$A166,1)-SEARCH(\">\",'CFR - XML import'!$A166,1)-2)))","v":0},{"$f":"IF(ISERROR(FIND(BJ$3,'CFR - XML import'!$A166)),0,VALUE(MID('CFR - XML import'!$A166,SEARCH(\">\",'CFR - XML import'!$A166,1)+1,SEARCH(\"/\",'CFR - XML import'!$A166,1)-SEARCH(\">\",'CFR - XML import'!$A166,1)-2)))","v":0},{"$f":"IF(ISERROR(FIND(BK$3,'CFR - XML import'!$A166)),0,VALUE(MID('CFR - XML import'!$A166,SEARCH(\">\",'CFR - XML import'!$A166,1)+1,SEARCH(\"/\",'CFR - XML import'!$A166,1)-SEARCH(\">\",'CFR - XML import'!$A166,1)-2)))","v":0},{"$f":"IF(ISERROR(FIND(BL$3,'CFR - XML import'!$A166)),0,VALUE(MID('CFR - XML import'!$A166,SEARCH(\">\",'CFR - XML import'!$A166,1)+1,SEARCH(\"/\",'CFR - XML import'!$A166,1)-SEARCH(\">\",'CFR - XML import'!$A166,1)-2)))","v":0},{"$f":"IF(ISERROR(FIND(BM$3,'CFR - XML import'!$A166)),0,VALUE(MID('CFR - XML import'!$A166,SEARCH(\">\",'CFR - XML import'!$A166,1)+1,SEARCH(\"/\",'CFR - XML import'!$A166,1)-SEARCH(\">\",'CFR - XML import'!$A166,1)-2)))","v":0},{"$f":"IF(ISERROR(FIND(BN$3,'CFR - XML import'!$A166)),0,VALUE(MID('CFR - XML import'!$A166,SEARCH(\">\",'CFR - XML import'!$A166,1)+1,SEARCH(\"/\",'CFR - XML import'!$A166,1)-SEARCH(\">\",'CFR - XML import'!$A166,1)-2)))","v":0},{"$f":"IF(ISERROR(FIND(BO$3,'CFR - XML import'!$A166)),0,VALUE(MID('CFR - XML import'!$A166,SEARCH(\">\",'CFR - XML import'!$A166,1)+1,SEARCH(\"/\",'CFR - XML import'!$A166,1)-SEARCH(\">\",'CFR - XML import'!$A166,1)-2)))","v":0},{"$f":"IF(ISERROR(FIND(BP$3,'CFR - XML import'!$A166)),0,VALUE(MID('CFR - XML import'!$A166,SEARCH(\">\",'CFR - XML import'!$A166,1)+1,SEARCH(\"/\",'CFR - XML import'!$A166,1)-SEARCH(\">\",'CFR - XML import'!$A166,1)-2)))","v":0},{"$f":"IF(ISERROR(FIND(BQ$3,'CFR - XML import'!$A166)),0,VALUE(MID('CFR - XML import'!$A166,SEARCH(\">\",'CFR - XML import'!$A166,1)+1,SEARCH(\"/\",'CFR - XML import'!$A166,1)-SEARCH(\">\",'CFR - XML import'!$A166,1)-2)))","v":0},{"$f":"IF(ISERROR(FIND(BR$3,'CFR - XML import'!$A166)),0,VALUE(MID('CFR - XML import'!$A166,SEARCH(\">\",'CFR - XML import'!$A166,1)+1,SEARCH(\"/\",'CFR - XML import'!$A166,1)-SEARCH(\">\",'CFR - XML import'!$A166,1)-2)))","v":0},{"$f":"IF(ISERROR(FIND(BS$3,'CFR - XML import'!$A166)),0,VALUE(MID('CFR - XML import'!$A166,SEARCH(\">\",'CFR - XML import'!$A166,1)+1,SEARCH(\"/\",'CFR - XML import'!$A166,1)-SEARCH(\">\",'CFR - XML import'!$A166,1)-2)))","v":0},{"$f":"IF(ISERROR(FIND(BT$3,'CFR - XML import'!$A166)),0,VALUE(MID('CFR - XML import'!$A166,SEARCH(\">\",'CFR - XML import'!$A166,1)+1,SEARCH(\"/\",'CFR - XML import'!$A166,1)-SEARCH(\">\",'CFR - XML import'!$A166,1)-2)))","v":0},{"$f":"IF(ISERROR(FIND(BU$3,'CFR - XML import'!$A166)),0,VALUE(MID('CFR - XML import'!$A166,SEARCH(\">\",'CFR - XML import'!$A166,1)+1,SEARCH(\"/\",'CFR - XML import'!$A166,1)-SEARCH(\">\",'CFR - XML import'!$A166,1)-2)))","v":0},{"$f":"IF(ISERROR(FIND(BV$3,'CFR - XML import'!$A166)),0,VALUE(MID('CFR - XML import'!$A166,SEARCH(\">\",'CFR - XML import'!$A166,1)+1,SEARCH(\"/\",'CFR - XML import'!$A166,1)-SEARCH(\">\",'CFR - XML import'!$A166,1)-2)))","v":0},{"$f":"IF(ISERROR(FIND(BW$3,'CFR - XML import'!$A166)),0,VALUE(MID('CFR - XML import'!$A166,SEARCH(\">\",'CFR - XML import'!$A166,1)+1,SEARCH(\"/\",'CFR - XML import'!$A166,1)-SEARCH(\">\",'CFR - XML import'!$A166,1)-2)))","v":0},{"$f":"IF(ISERROR(FIND(BX$3,'CFR - XML import'!$A166)),0,VALUE(MID('CFR - XML import'!$A166,SEARCH(\">\",'CFR - XML import'!$A166,1)+1,SEARCH(\"/\",'CFR - XML import'!$A166,1)-SEARCH(\">\",'CFR - XML import'!$A166,1)-2)))","v":0},{"$f":"IF(ISERROR(FIND(BY$3,'CFR - XML import'!$A166)),0,VALUE(MID('CFR - XML import'!$A166,SEARCH(\">\",'CFR - XML import'!$A166,1)+1,SEARCH(\"/\",'CFR - XML import'!$A166,1)-SEARCH(\">\",'CFR - XML import'!$A166,1)-2)))","v":0},{"$f":"IF(ISERROR(FIND(BZ$3,'CFR - XML import'!$A166)),0,VALUE(MID('CFR - XML import'!$A166,SEARCH(\">\",'CFR - XML import'!$A166,1)+1,SEARCH(\"/\",'CFR - XML import'!$A166,1)-SEARCH(\">\",'CFR - XML import'!$A166,1)-2)))","v":0},null,null,null,null,null,null,{"$f":"IF(ISERROR(IF(MID('CFR - XML import'!$A166,LEN($CF$4)+1,LEN('CFR - XML import'!$A166)-(2*LEN($CF$4)+1))=\"RMMS\",1,IF(MID('CFR - XML import'!$A166,LEN(\"    <InputSystem>\")+1,LEN('CFR - XML import'!$A166)-(LEN(\"    <InputSystem>\")+LEN($CF$4)+1))=\"SIMS\",2,0))),0,IF(MID('CFR - XML import'!$A166,LEN($CF$4)+1,LEN('CFR - XML import'!$A166)-(2*LEN($CF$4)+1))=\"RMMS\",1,IF(MID('CFR - XML import'!$A166,LEN(\"    <InputSystem>\")+1,LEN('CFR - XML import'!$A166)-(LEN(\"    <InputSystem>\")+LEN($CF$4)+1))=\"SIMS\",2,0)))","v":0},{"$f":"IF(ISERROR(FIND(CH$3,'CFR - XML import'!$A166)),0,MID('CFR - XML import'!$A166,SEARCH(\">\",'CFR - XML import'!$A166,1)+1,SEARCH(\"/\",'CFR - XML import'!$A166,1)-SEARCH(\">\",'CFR - XML import'!$A166,1)-2))","v":0},{"$f":"IF(ISERROR(FIND(CI$3,'CFR - XML import'!$A166)),0,MID('CFR - XML import'!$A166,SEARCH(\">\",'CFR - XML import'!$A166,1)+1,SEARCH(\"/\",'CFR - XML import'!$A166,1)-SEARCH(\">\",'CFR - XML import'!$A166,1)-2))","v":0},{"$f":"IF(ISERROR(FIND(CJ$3,'CFR - XML import'!$A166)),0,MID('CFR - XML import'!$A166,SEARCH(\">\",'CFR - XML import'!$A166,1)+1,SEARCH(\"/\",'CFR - XML import'!$A166,1)-SEARCH(\">\",'CFR - XML import'!$A166,1)-2))","v":0},{"$f":"IF(ISERROR(FIND(CK$3,'CFR - XML import'!$A166)),0,MID('CFR - XML import'!$A166,SEARCH(\">\",'CFR - XML import'!$A166,1)+1,SEARCH(\"/\",'CFR - XML import'!$A166,1)-SEARCH(\">\",'CFR - XML import'!$A166,1)-2))","v":0},{"$f":"IF(ISERROR(FIND(CL$3,'CFR - XML import'!$A166)),0,MID('CFR - XML import'!$A166,SEARCH(\">\",'CFR - XML import'!$A166,1)+1,SEARCH(\"/\",'CFR - XML import'!$A166,1)-SEARCH(\">\",'CFR - XML import'!$A166,1)-2))","v":0}]
[{"$f":"IF(AND('CFR - XML import'!A167<>\"\",LEFT('CFR - XML import'!A167,1)<>\"<\",LEFT('CFR - XML import'!A167,3)<>\"  <\",LEFT('CFR - XML import'!A167,5)<>\"    <\",LEFT('CFR - XML import'!A167,7)<>\"      <\",LEFT('CFR - XML import'!A167,9)<>\"        <\",$B$1=\"SIMS\"),'CFR - XML import'!A167,IF(AND(LEFT('CFR - XML import'!A167,9)=\"<Details>\",$B$1=\"RM\"),'CFR - XML import'!A167,\"\"))","v":""},{"$f":"IF(ISERROR(FIND(B$3,'CFR - XML import'!$A167)),0,VALUE(MID('CFR - XML import'!$A167,SEARCH(\">\",'CFR - XML import'!$A167,1)+1,SEARCH(\"/\",'CFR - XML import'!$A167,1)-SEARCH(\">\",'CFR - XML import'!$A167,1)-2)))","v":0},null,{"$f":"IF(ISERROR(FIND(D$3,'CFR - XML import'!$A167)),0,MID('CFR - XML import'!$A167,SEARCH(\">\",'CFR - XML import'!$A167,1)+1,SEARCH(\"/\",'CFR - XML import'!$A167,1)-SEARCH(\">\",'CFR - XML import'!$A167,1)-2))","v":0},{"$f":"IF(ISERROR(FIND(E$3,'CFR - XML import'!$A167)),0,MID('CFR - XML import'!$A167,SEARCH(\">\",'CFR - XML import'!$A167,1)+1,SEARCH(\"/\",'CFR - XML import'!$A167,1)-SEARCH(\">\",'CFR - XML import'!$A167,1)-2))","v":0},{"$f":"IF($B$1=\"SIMS\",IF(ISERROR(FIND(F$3,'CFR - XML import'!$A167)),0,VALUE(MID('CFR - XML import'!$A167,15,10))),IF(ISERROR(FIND(F$3,'CFR - XML import'!$A167)),0,VALUE(MID('CFR - XML import'!$A167,11,10))))","v":"00:00:00"},{"$f":"IF(ISERROR(FIND(G$3,'CFR - XML import'!$A167)),0,VALUE(MID('CFR - XML import'!$A167,SEARCH(\">\",'CFR - XML import'!$A167,1)+1,SEARCH(\"/\",'CFR - XML import'!$A167,1)-SEARCH(\">\",'CFR - XML import'!$A167,1)-2)))","v":0},{"$f":"IF(ISERROR(FIND(H$3,'CFR - XML import'!$A167)),0,VALUE(MID('CFR - XML import'!$A167,SEARCH(\">\",'CFR - XML import'!$A167,1)+1,SEARCH(\"/\",'CFR - XML import'!$A167,1)-SEARCH(\">\",'CFR - XML import'!$A167,1)-2)))","v":0},{"$f":"IF(ISERROR(FIND(I$3,'CFR - XML import'!$A167)),0,VALUE(MID('CFR - XML import'!$A167,SEARCH(\">\",'CFR - XML import'!$A167,1)+1,SEARCH(\"/\",'CFR - XML import'!$A167,1)-SEARCH(\">\",'CFR - XML import'!$A167,1)-2)))","v":0},{"$f":"IF(ISERROR(FIND(J$3,'CFR - XML import'!$A167)),0,VALUE(MID('CFR - XML import'!$A167,SEARCH(\">\",'CFR - XML import'!$A167,1)+1,SEARCH(\"/\",'CFR - XML import'!$A167,1)-SEARCH(\">\",'CFR - XML import'!$A167,1)-2)))","v":0},{"$f":"IF(ISERROR(FIND(K$3,'CFR - XML import'!$A167)),0,VALUE(MID('CFR - XML import'!$A167,SEARCH(\">\",'CFR - XML import'!$A167,1)+1,SEARCH(\"/\",'CFR - XML import'!$A167,1)-SEARCH(\">\",'CFR - XML import'!$A167,1)-2)))","v":0},{"$f":"IF(ISERROR(FIND(L$3,'CFR - XML import'!$A167)),0,VALUE(MID('CFR - XML import'!$A167,SEARCH(\">\",'CFR - XML import'!$A167,1)+1,SEARCH(\"/\",'CFR - XML import'!$A167,1)-SEARCH(\">\",'CFR - XML import'!$A167,1)-2)))","v":0},{"$f":"IF(ISERROR(FIND(M$3,'CFR - XML import'!$A167)),0,VALUE(MID('CFR - XML import'!$A167,SEARCH(\">\",'CFR - XML import'!$A167,1)+1,SEARCH(\"/\",'CFR - XML import'!$A167,1)-SEARCH(\">\",'CFR - XML import'!$A167,1)-2)))","v":0},{"$f":"IF(ISERROR(FIND(N$3,'CFR - XML import'!$A167)),0,VALUE(MID('CFR - XML import'!$A167,SEARCH(\">\",'CFR - XML import'!$A167,1)+1,SEARCH(\"/\",'CFR - XML import'!$A167,1)-SEARCH(\">\",'CFR - XML import'!$A167,1)-2)))","v":0},{"$f":"IF(ISERROR(FIND(O$3,'CFR - XML import'!$A167)),0,VALUE(MID('CFR - XML import'!$A167,SEARCH(\">\",'CFR - XML import'!$A167,1)+1,SEARCH(\"/\",'CFR - XML import'!$A167,1)-SEARCH(\">\",'CFR - XML import'!$A167,1)-2)))","v":0},{"$f":"IF(ISERROR(FIND(P$3,'CFR - XML import'!$A167)),0,VALUE(MID('CFR - XML import'!$A167,SEARCH(\">\",'CFR - XML import'!$A167,1)+1,SEARCH(\"/\",'CFR - XML import'!$A167,1)-SEARCH(\">\",'CFR - XML import'!$A167,1)-2)))","v":0},{"$f":"IF(ISERROR(FIND(Q$3,'CFR - XML import'!$A167)),0,VALUE(MID('CFR - XML import'!$A167,SEARCH(\">\",'CFR - XML import'!$A167,1)+1,SEARCH(\"/\",'CFR - XML import'!$A167,1)-SEARCH(\">\",'CFR - XML import'!$A167,1)-2)))","v":0},{"$f":"IF(ISERROR(FIND(R$3,'CFR - XML import'!$A167)),0,VALUE(MID('CFR - XML import'!$A167,SEARCH(\">\",'CFR - XML import'!$A167,1)+1,SEARCH(\"/\",'CFR - XML import'!$A167,1)-SEARCH(\">\",'CFR - XML import'!$A167,1)-2)))","v":0},{"$f":"IF(ISERROR(FIND(S$3,'CFR - XML import'!$A167)),0,VALUE(MID('CFR - XML import'!$A167,SEARCH(\">\",'CFR - XML import'!$A167,1)+1,SEARCH(\"/\",'CFR - XML import'!$A167,1)-SEARCH(\">\",'CFR - XML import'!$A167,1)-2)))","v":0},{"$f":"IF(ISERROR(FIND(T$3,'CFR - XML import'!$A167)),0,VALUE(MID('CFR - XML import'!$A167,SEARCH(\">\",'CFR - XML import'!$A167,1)+1,SEARCH(\"/\",'CFR - XML import'!$A167,1)-SEARCH(\">\",'CFR - XML import'!$A167,1)-2)))","v":0},{"$f":"IF(ISERROR(FIND(U$3,'CFR - XML import'!$A167)),0,VALUE(MID('CFR - XML import'!$A167,SEARCH(\">\",'CFR - XML import'!$A167,1)+1,SEARCH(\"/\",'CFR - XML import'!$A167,1)-SEARCH(\">\",'CFR - XML import'!$A167,1)-2)))","v":0},{"$f":"IF(ISERROR(FIND(V$3,'CFR - XML import'!$A167)),0,VALUE(MID('CFR - XML import'!$A167,SEARCH(\">\",'CFR - XML import'!$A167,1)+1,SEARCH(\"/\",'CFR - XML import'!$A167,1)-SEARCH(\">\",'CFR - XML import'!$A167,1)-2)))","v":0},{"$f":"IF(ISERROR(FIND(W$3,'CFR - XML import'!$A167)),0,VALUE(MID('CFR - XML import'!$A167,SEARCH(\">\",'CFR - XML import'!$A167,1)+1,SEARCH(\"/\",'CFR - XML import'!$A167,1)-SEARCH(\">\",'CFR - XML import'!$A167,1)-2)))","v":0},null,{"$f":"IF(ISERROR(FIND(Y$3,'CFR - XML import'!$A167)),0,VALUE(MID('CFR - XML import'!$A167,SEARCH(\">\",'CFR - XML import'!$A167,1)+1,SEARCH(\"/\",'CFR - XML import'!$A167,1)-SEARCH(\">\",'CFR - XML import'!$A167,1)-2)))","v":0},{"$f":"IF(ISERROR(FIND(Z$3,'CFR - XML import'!$A167)),0,VALUE(MID('CFR - XML import'!$A167,SEARCH(\">\",'CFR - XML import'!$A167,1)+1,SEARCH(\"/\",'CFR - XML import'!$A167,1)-SEARCH(\">\",'CFR - XML import'!$A167,1)-2)))","v":0},{"$f":"IF(ISERROR(FIND(AA$3,'CFR - XML import'!$A167)),0,VALUE(MID('CFR - XML import'!$A167,SEARCH(\">\",'CFR - XML import'!$A167,1)+1,SEARCH(\"/\",'CFR - XML import'!$A167,1)-SEARCH(\">\",'CFR - XML import'!$A167,1)-2)))","v":0},{"$f":"IF(ISERROR(FIND(AB$3,'CFR - XML import'!$A167)),0,VALUE(MID('CFR - XML import'!$A167,SEARCH(\">\",'CFR - XML import'!$A167,1)+1,SEARCH(\"/\",'CFR - XML import'!$A167,1)-SEARCH(\">\",'CFR - XML import'!$A167,1)-2)))","v":0},{"$f":"IF(ISERROR(FIND(AC$3,'CFR - XML import'!$A167)),0,VALUE(MID('CFR - XML import'!$A167,SEARCH(\">\",'CFR - XML import'!$A167,1)+1,SEARCH(\"/\",'CFR - XML import'!$A167,1)-SEARCH(\">\",'CFR - XML import'!$A167,1)-2)))","v":0},{"$f":"IF(ISERROR(FIND(AD$3,'CFR - XML import'!$A167)),0,VALUE(MID('CFR - XML import'!$A167,SEARCH(\">\",'CFR - XML import'!$A167,1)+1,SEARCH(\"/\",'CFR - XML import'!$A167,1)-SEARCH(\">\",'CFR - XML import'!$A167,1)-2)))","v":0},{"$f":"IF(ISERROR(FIND(AE$3,'CFR - XML import'!$A167)),0,VALUE(MID('CFR - XML import'!$A167,SEARCH(\">\",'CFR - XML import'!$A167,1)+1,SEARCH(\"/\",'CFR - XML import'!$A167,1)-SEARCH(\">\",'CFR - XML import'!$A167,1)-2)))","v":0},{"$f":"IF(ISERROR(FIND(AF$3,'CFR - XML import'!$A167)),0,VALUE(MID('CFR - XML import'!$A167,SEARCH(\">\",'CFR - XML import'!$A167,1)+1,SEARCH(\"/\",'CFR - XML import'!$A167,1)-SEARCH(\">\",'CFR - XML import'!$A167,1)-2)))","v":0},{"$f":"IF(ISERROR(FIND(AG$3,'CFR - XML import'!$A167)),0,VALUE(MID('CFR - XML import'!$A167,SEARCH(\">\",'CFR - XML import'!$A167,1)+1,SEARCH(\"/\",'CFR - XML import'!$A167,1)-SEARCH(\">\",'CFR - XML import'!$A167,1)-2)))","v":0},{"$f":"IF(ISERROR(FIND(AH$3,'CFR - XML import'!$A167)),0,VALUE(MID('CFR - XML import'!$A167,SEARCH(\">\",'CFR - XML import'!$A167,1)+1,SEARCH(\"/\",'CFR - XML import'!$A167,1)-SEARCH(\">\",'CFR - XML import'!$A167,1)-2)))","v":0},{"$f":"IF(ISERROR(FIND(AI$3,'CFR - XML import'!$A167)),0,VALUE(MID('CFR - XML import'!$A167,SEARCH(\">\",'CFR - XML import'!$A167,1)+1,SEARCH(\"/\",'CFR - XML import'!$A167,1)-SEARCH(\">\",'CFR - XML import'!$A167,1)-2)))","v":0},{"$f":"IF(ISERROR(FIND(AJ$3,'CFR - XML import'!$A167)),0,VALUE(MID('CFR - XML import'!$A167,SEARCH(\">\",'CFR - XML import'!$A167,1)+1,SEARCH(\"/\",'CFR - XML import'!$A167,1)-SEARCH(\">\",'CFR - XML import'!$A167,1)-2)))","v":0},{"$f":"IF(ISERROR(FIND(AK$3,'CFR - XML import'!$A167)),0,VALUE(MID('CFR - XML import'!$A167,SEARCH(\">\",'CFR - XML import'!$A167,1)+1,SEARCH(\"/\",'CFR - XML import'!$A167,1)-SEARCH(\">\",'CFR - XML import'!$A167,1)-2)))","v":0},{"$f":"IF(ISERROR(FIND(AL$3,'CFR - XML import'!$A167)),0,VALUE(MID('CFR - XML import'!$A167,SEARCH(\">\",'CFR - XML import'!$A167,1)+1,SEARCH(\"/\",'CFR - XML import'!$A167,1)-SEARCH(\">\",'CFR - XML import'!$A167,1)-2)))","v":0},{"$f":"IF(ISERROR(FIND(AM$3,'CFR - XML import'!$A167)),0,VALUE(MID('CFR - XML import'!$A167,SEARCH(\">\",'CFR - XML import'!$A167,1)+1,SEARCH(\"/\",'CFR - XML import'!$A167,1)-SEARCH(\">\",'CFR - XML import'!$A167,1)-2)))","v":0},{"$f":"IF(ISERROR(FIND(AN$3,'CFR - XML import'!$A167)),0,VALUE(MID('CFR - XML import'!$A167,SEARCH(\">\",'CFR - XML import'!$A167,1)+1,SEARCH(\"/\",'CFR - XML import'!$A167,1)-SEARCH(\">\",'CFR - XML import'!$A167,1)-2)))","v":0},{"$f":"IF(ISERROR(FIND(AO$3,'CFR - XML import'!$A167)),0,VALUE(MID('CFR - XML import'!$A167,SEARCH(\">\",'CFR - XML import'!$A167,1)+1,SEARCH(\"/\",'CFR - XML import'!$A167,1)-SEARCH(\">\",'CFR - XML import'!$A167,1)-2)))","v":0},{"$f":"IF(ISERROR(FIND(AP$3,'CFR - XML import'!$A167)),0,VALUE(MID('CFR - XML import'!$A167,SEARCH(\">\",'CFR - XML import'!$A167,1)+1,SEARCH(\"/\",'CFR - XML import'!$A167,1)-SEARCH(\">\",'CFR - XML import'!$A167,1)-2)))","v":0},{"$f":"IF(ISERROR(FIND(AQ$3,'CFR - XML import'!$A167)),0,VALUE(MID('CFR - XML import'!$A167,SEARCH(\">\",'CFR - XML import'!$A167,1)+1,SEARCH(\"/\",'CFR - XML import'!$A167,1)-SEARCH(\">\",'CFR - XML import'!$A167,1)-2)))","v":0},{"$f":"IF(ISERROR(FIND(AR$3,'CFR - XML import'!$A167)),0,VALUE(MID('CFR - XML import'!$A167,SEARCH(\">\",'CFR - XML import'!$A167,1)+1,SEARCH(\"/\",'CFR - XML import'!$A167,1)-SEARCH(\">\",'CFR - XML import'!$A167,1)-2)))","v":0},{"$f":"IF(ISERROR(FIND(AS$3,'CFR - XML import'!$A167)),0,VALUE(MID('CFR - XML import'!$A167,SEARCH(\">\",'CFR - XML import'!$A167,1)+1,SEARCH(\"/\",'CFR - XML import'!$A167,1)-SEARCH(\">\",'CFR - XML import'!$A167,1)-2)))","v":0},{"$f":"IF(ISERROR(FIND(AT$3,'CFR - XML import'!$A167)),0,VALUE(MID('CFR - XML import'!$A167,SEARCH(\">\",'CFR - XML import'!$A167,1)+1,SEARCH(\"/\",'CFR - XML import'!$A167,1)-SEARCH(\">\",'CFR - XML import'!$A167,1)-2)))","v":0},{"$f":"IF(ISERROR(FIND(AU$3,'CFR - XML import'!$A167)),0,VALUE(MID('CFR - XML import'!$A167,SEARCH(\">\",'CFR - XML import'!$A167,1)+1,SEARCH(\"/\",'CFR - XML import'!$A167,1)-SEARCH(\">\",'CFR - XML import'!$A167,1)-2)))","v":0},{"$f":"IF(ISERROR(FIND(AV$3,'CFR - XML import'!$A167)),0,VALUE(MID('CFR - XML import'!$A167,SEARCH(\">\",'CFR - XML import'!$A167,1)+1,SEARCH(\"/\",'CFR - XML import'!$A167,1)-SEARCH(\">\",'CFR - XML import'!$A167,1)-2)))","v":0},{"$f":"IF(ISERROR(FIND(AW$3,'CFR - XML import'!$A167)),0,VALUE(MID('CFR - XML import'!$A167,SEARCH(\">\",'CFR - XML import'!$A167,1)+1,SEARCH(\"/\",'CFR - XML import'!$A167,1)-SEARCH(\">\",'CFR - XML import'!$A167,1)-2)))","v":0},{"$f":"IF(ISERROR(FIND(AX$3,'CFR - XML import'!$A167)),0,VALUE(MID('CFR - XML import'!$A167,SEARCH(\">\",'CFR - XML import'!$A167,1)+1,SEARCH(\"/\",'CFR - XML import'!$A167,1)-SEARCH(\">\",'CFR - XML import'!$A167,1)-2)))","v":0},{"$f":"IF(ISERROR(FIND(AY$3,'CFR - XML import'!$A167)),0,VALUE(MID('CFR - XML import'!$A167,SEARCH(\">\",'CFR - XML import'!$A167,1)+1,SEARCH(\"/\",'CFR - XML import'!$A167,1)-SEARCH(\">\",'CFR - XML import'!$A167,1)-2)))","v":0},{"$f":"IF(ISERROR(FIND(AZ$3,'CFR - XML import'!$A167)),0,VALUE(MID('CFR - XML import'!$A167,SEARCH(\">\",'CFR - XML import'!$A167,1)+1,SEARCH(\"/\",'CFR - XML import'!$A167,1)-SEARCH(\">\",'CFR - XML import'!$A167,1)-2)))","v":0},{"$f":"IF(ISERROR(FIND(BA$3,'CFR - XML import'!$A167)),0,VALUE(MID('CFR - XML import'!$A167,SEARCH(\">\",'CFR - XML import'!$A167,1)+1,SEARCH(\"/\",'CFR - XML import'!$A167,1)-SEARCH(\">\",'CFR - XML import'!$A167,1)-2)))","v":0},{"$f":"IF(ISERROR(FIND(BB$3,'CFR - XML import'!$A167)),0,VALUE(MID('CFR - XML import'!$A167,SEARCH(\">\",'CFR - XML import'!$A167,1)+1,SEARCH(\"/\",'CFR - XML import'!$A167,1)-SEARCH(\">\",'CFR - XML import'!$A167,1)-2)))","v":0},{"$f":"IF(ISERROR(FIND(BC$3,'CFR - XML import'!$A167)),0,VALUE(MID('CFR - XML import'!$A167,SEARCH(\">\",'CFR - XML import'!$A167,1)+1,SEARCH(\"/\",'CFR - XML import'!$A167,1)-SEARCH(\">\",'CFR - XML import'!$A167,1)-2)))","v":0},{"$f":"IF(ISERROR(FIND(BD$3,'CFR - XML import'!$A167)),0,VALUE(MID('CFR - XML import'!$A167,SEARCH(\">\",'CFR - XML import'!$A167,1)+1,SEARCH(\"/\",'CFR - XML import'!$A167,1)-SEARCH(\">\",'CFR - XML import'!$A167,1)-2)))","v":0},{"$f":"IF(ISERROR(FIND(BE$3,'CFR - XML import'!$A167)),0,VALUE(MID('CFR - XML import'!$A167,SEARCH(\">\",'CFR - XML import'!$A167,1)+1,SEARCH(\"/\",'CFR - XML import'!$A167,1)-SEARCH(\">\",'CFR - XML import'!$A167,1)-2)))","v":0},{"$f":"IF(ISERROR(FIND(BF$3,'CFR - XML import'!$A167)),0,VALUE(MID('CFR - XML import'!$A167,SEARCH(\">\",'CFR - XML import'!$A167,1)+1,SEARCH(\"/\",'CFR - XML import'!$A167,1)-SEARCH(\">\",'CFR - XML import'!$A167,1)-2)))","v":0},{"$f":"IF(ISERROR(FIND(BG$3,'CFR - XML import'!$A167)),0,VALUE(MID('CFR - XML import'!$A167,SEARCH(\">\",'CFR - XML import'!$A167,1)+1,SEARCH(\"/\",'CFR - XML import'!$A167,1)-SEARCH(\">\",'CFR - XML import'!$A167,1)-2)))","v":0},{"$f":"IF(ISERROR(FIND(BH$3,'CFR - XML import'!$A167)),0,VALUE(MID('CFR - XML import'!$A167,SEARCH(\">\",'CFR - XML import'!$A167,1)+1,SEARCH(\"/\",'CFR - XML import'!$A167,1)-SEARCH(\">\",'CFR - XML import'!$A167,1)-2)))","v":0},{"$f":"IF(ISERROR(FIND(BI$3,'CFR - XML import'!$A167)),0,VALUE(MID('CFR - XML import'!$A167,SEARCH(\">\",'CFR - XML import'!$A167,1)+1,SEARCH(\"/\",'CFR - XML import'!$A167,1)-SEARCH(\">\",'CFR - XML import'!$A167,1)-2)))","v":0},{"$f":"IF(ISERROR(FIND(BJ$3,'CFR - XML import'!$A167)),0,VALUE(MID('CFR - XML import'!$A167,SEARCH(\">\",'CFR - XML import'!$A167,1)+1,SEARCH(\"/\",'CFR - XML import'!$A167,1)-SEARCH(\">\",'CFR - XML import'!$A167,1)-2)))","v":0},{"$f":"IF(ISERROR(FIND(BK$3,'CFR - XML import'!$A167)),0,VALUE(MID('CFR - XML import'!$A167,SEARCH(\">\",'CFR - XML import'!$A167,1)+1,SEARCH(\"/\",'CFR - XML import'!$A167,1)-SEARCH(\">\",'CFR - XML import'!$A167,1)-2)))","v":0},{"$f":"IF(ISERROR(FIND(BL$3,'CFR - XML import'!$A167)),0,VALUE(MID('CFR - XML import'!$A167,SEARCH(\">\",'CFR - XML import'!$A167,1)+1,SEARCH(\"/\",'CFR - XML import'!$A167,1)-SEARCH(\">\",'CFR - XML import'!$A167,1)-2)))","v":0},{"$f":"IF(ISERROR(FIND(BM$3,'CFR - XML import'!$A167)),0,VALUE(MID('CFR - XML import'!$A167,SEARCH(\">\",'CFR - XML import'!$A167,1)+1,SEARCH(\"/\",'CFR - XML import'!$A167,1)-SEARCH(\">\",'CFR - XML import'!$A167,1)-2)))","v":0},{"$f":"IF(ISERROR(FIND(BN$3,'CFR - XML import'!$A167)),0,VALUE(MID('CFR - XML import'!$A167,SEARCH(\">\",'CFR - XML import'!$A167,1)+1,SEARCH(\"/\",'CFR - XML import'!$A167,1)-SEARCH(\">\",'CFR - XML import'!$A167,1)-2)))","v":0},{"$f":"IF(ISERROR(FIND(BO$3,'CFR - XML import'!$A167)),0,VALUE(MID('CFR - XML import'!$A167,SEARCH(\">\",'CFR - XML import'!$A167,1)+1,SEARCH(\"/\",'CFR - XML import'!$A167,1)-SEARCH(\">\",'CFR - XML import'!$A167,1)-2)))","v":0},{"$f":"IF(ISERROR(FIND(BP$3,'CFR - XML import'!$A167)),0,VALUE(MID('CFR - XML import'!$A167,SEARCH(\">\",'CFR - XML import'!$A167,1)+1,SEARCH(\"/\",'CFR - XML import'!$A167,1)-SEARCH(\">\",'CFR - XML import'!$A167,1)-2)))","v":0},{"$f":"IF(ISERROR(FIND(BQ$3,'CFR - XML import'!$A167)),0,VALUE(MID('CFR - XML import'!$A167,SEARCH(\">\",'CFR - XML import'!$A167,1)+1,SEARCH(\"/\",'CFR - XML import'!$A167,1)-SEARCH(\">\",'CFR - XML import'!$A167,1)-2)))","v":0},{"$f":"IF(ISERROR(FIND(BR$3,'CFR - XML import'!$A167)),0,VALUE(MID('CFR - XML import'!$A167,SEARCH(\">\",'CFR - XML import'!$A167,1)+1,SEARCH(\"/\",'CFR - XML import'!$A167,1)-SEARCH(\">\",'CFR - XML import'!$A167,1)-2)))","v":0},{"$f":"IF(ISERROR(FIND(BS$3,'CFR - XML import'!$A167)),0,VALUE(MID('CFR - XML import'!$A167,SEARCH(\">\",'CFR - XML import'!$A167,1)+1,SEARCH(\"/\",'CFR - XML import'!$A167,1)-SEARCH(\">\",'CFR - XML import'!$A167,1)-2)))","v":0},{"$f":"IF(ISERROR(FIND(BT$3,'CFR - XML import'!$A167)),0,VALUE(MID('CFR - XML import'!$A167,SEARCH(\">\",'CFR - XML import'!$A167,1)+1,SEARCH(\"/\",'CFR - XML import'!$A167,1)-SEARCH(\">\",'CFR - XML import'!$A167,1)-2)))","v":0},{"$f":"IF(ISERROR(FIND(BU$3,'CFR - XML import'!$A167)),0,VALUE(MID('CFR - XML import'!$A167,SEARCH(\">\",'CFR - XML import'!$A167,1)+1,SEARCH(\"/\",'CFR - XML import'!$A167,1)-SEARCH(\">\",'CFR - XML import'!$A167,1)-2)))","v":0},{"$f":"IF(ISERROR(FIND(BV$3,'CFR - XML import'!$A167)),0,VALUE(MID('CFR - XML import'!$A167,SEARCH(\">\",'CFR - XML import'!$A167,1)+1,SEARCH(\"/\",'CFR - XML import'!$A167,1)-SEARCH(\">\",'CFR - XML import'!$A167,1)-2)))","v":0},{"$f":"IF(ISERROR(FIND(BW$3,'CFR - XML import'!$A167)),0,VALUE(MID('CFR - XML import'!$A167,SEARCH(\">\",'CFR - XML import'!$A167,1)+1,SEARCH(\"/\",'CFR - XML import'!$A167,1)-SEARCH(\">\",'CFR - XML import'!$A167,1)-2)))","v":0},{"$f":"IF(ISERROR(FIND(BX$3,'CFR - XML import'!$A167)),0,VALUE(MID('CFR - XML import'!$A167,SEARCH(\">\",'CFR - XML import'!$A167,1)+1,SEARCH(\"/\",'CFR - XML import'!$A167,1)-SEARCH(\">\",'CFR - XML import'!$A167,1)-2)))","v":0},{"$f":"IF(ISERROR(FIND(BY$3,'CFR - XML import'!$A167)),0,VALUE(MID('CFR - XML import'!$A167,SEARCH(\">\",'CFR - XML import'!$A167,1)+1,SEARCH(\"/\",'CFR - XML import'!$A167,1)-SEARCH(\">\",'CFR - XML import'!$A167,1)-2)))","v":0},{"$f":"IF(ISERROR(FIND(BZ$3,'CFR - XML import'!$A167)),0,VALUE(MID('CFR - XML import'!$A167,SEARCH(\">\",'CFR - XML import'!$A167,1)+1,SEARCH(\"/\",'CFR - XML import'!$A167,1)-SEARCH(\">\",'CFR - XML import'!$A167,1)-2)))","v":0},null,null,null,null,null,null,{"$f":"IF(ISERROR(IF(MID('CFR - XML import'!$A167,LEN($CF$4)+1,LEN('CFR - XML import'!$A167)-(2*LEN($CF$4)+1))=\"RMMS\",1,IF(MID('CFR - XML import'!$A167,LEN(\"    <InputSystem>\")+1,LEN('CFR - XML import'!$A167)-(LEN(\"    <InputSystem>\")+LEN($CF$4)+1))=\"SIMS\",2,0))),0,IF(MID('CFR - XML import'!$A167,LEN($CF$4)+1,LEN('CFR - XML import'!$A167)-(2*LEN($CF$4)+1))=\"RMMS\",1,IF(MID('CFR - XML import'!$A167,LEN(\"    <InputSystem>\")+1,LEN('CFR - XML import'!$A167)-(LEN(\"    <InputSystem>\")+LEN($CF$4)+1))=\"SIMS\",2,0)))","v":0},{"$f":"IF(ISERROR(FIND(CH$3,'CFR - XML import'!$A167)),0,MID('CFR - XML import'!$A167,SEARCH(\">\",'CFR - XML import'!$A167,1)+1,SEARCH(\"/\",'CFR - XML import'!$A167,1)-SEARCH(\">\",'CFR - XML import'!$A167,1)-2))","v":0},{"$f":"IF(ISERROR(FIND(CI$3,'CFR - XML import'!$A167)),0,MID('CFR - XML import'!$A167,SEARCH(\">\",'CFR - XML import'!$A167,1)+1,SEARCH(\"/\",'CFR - XML import'!$A167,1)-SEARCH(\">\",'CFR - XML import'!$A167,1)-2))","v":0},{"$f":"IF(ISERROR(FIND(CJ$3,'CFR - XML import'!$A167)),0,MID('CFR - XML import'!$A167,SEARCH(\">\",'CFR - XML import'!$A167,1)+1,SEARCH(\"/\",'CFR - XML import'!$A167,1)-SEARCH(\">\",'CFR - XML import'!$A167,1)-2))","v":0},{"$f":"IF(ISERROR(FIND(CK$3,'CFR - XML import'!$A167)),0,MID('CFR - XML import'!$A167,SEARCH(\">\",'CFR - XML import'!$A167,1)+1,SEARCH(\"/\",'CFR - XML import'!$A167,1)-SEARCH(\">\",'CFR - XML import'!$A167,1)-2))","v":0},{"$f":"IF(ISERROR(FIND(CL$3,'CFR - XML import'!$A167)),0,MID('CFR - XML import'!$A167,SEARCH(\">\",'CFR - XML import'!$A167,1)+1,SEARCH(\"/\",'CFR - XML import'!$A167,1)-SEARCH(\">\",'CFR - XML import'!$A167,1)-2))","v":0}]
[{"$f":"IF(AND('CFR - XML import'!A168<>\"\",LEFT('CFR - XML import'!A168,1)<>\"<\",LEFT('CFR - XML import'!A168,3)<>\"  <\",LEFT('CFR - XML import'!A168,5)<>\"    <\",LEFT('CFR - XML import'!A168,7)<>\"      <\",LEFT('CFR - XML import'!A168,9)<>\"        <\",$B$1=\"SIMS\"),'CFR - XML import'!A168,IF(AND(LEFT('CFR - XML import'!A168,9)=\"<Details>\",$B$1=\"RM\"),'CFR - XML import'!A168,\"\"))","v":""},{"$f":"IF(ISERROR(FIND(B$3,'CFR - XML import'!$A168)),0,VALUE(MID('CFR - XML import'!$A168,SEARCH(\">\",'CFR - XML import'!$A168,1)+1,SEARCH(\"/\",'CFR - XML import'!$A168,1)-SEARCH(\">\",'CFR - XML import'!$A168,1)-2)))","v":0},null,{"$f":"IF(ISERROR(FIND(D$3,'CFR - XML import'!$A168)),0,MID('CFR - XML import'!$A168,SEARCH(\">\",'CFR - XML import'!$A168,1)+1,SEARCH(\"/\",'CFR - XML import'!$A168,1)-SEARCH(\">\",'CFR - XML import'!$A168,1)-2))","v":0},{"$f":"IF(ISERROR(FIND(E$3,'CFR - XML import'!$A168)),0,MID('CFR - XML import'!$A168,SEARCH(\">\",'CFR - XML import'!$A168,1)+1,SEARCH(\"/\",'CFR - XML import'!$A168,1)-SEARCH(\">\",'CFR - XML import'!$A168,1)-2))","v":0},{"$f":"IF($B$1=\"SIMS\",IF(ISERROR(FIND(F$3,'CFR - XML import'!$A168)),0,VALUE(MID('CFR - XML import'!$A168,15,10))),IF(ISERROR(FIND(F$3,'CFR - XML import'!$A168)),0,VALUE(MID('CFR - XML import'!$A168,11,10))))","v":"00:00:00"},{"$f":"IF(ISERROR(FIND(G$3,'CFR - XML import'!$A168)),0,VALUE(MID('CFR - XML import'!$A168,SEARCH(\">\",'CFR - XML import'!$A168,1)+1,SEARCH(\"/\",'CFR - XML import'!$A168,1)-SEARCH(\">\",'CFR - XML import'!$A168,1)-2)))","v":0},{"$f":"IF(ISERROR(FIND(H$3,'CFR - XML import'!$A168)),0,VALUE(MID('CFR - XML import'!$A168,SEARCH(\">\",'CFR - XML import'!$A168,1)+1,SEARCH(\"/\",'CFR - XML import'!$A168,1)-SEARCH(\">\",'CFR - XML import'!$A168,1)-2)))","v":0},{"$f":"IF(ISERROR(FIND(I$3,'CFR - XML import'!$A168)),0,VALUE(MID('CFR - XML import'!$A168,SEARCH(\">\",'CFR - XML import'!$A168,1)+1,SEARCH(\"/\",'CFR - XML import'!$A168,1)-SEARCH(\">\",'CFR - XML import'!$A168,1)-2)))","v":0},{"$f":"IF(ISERROR(FIND(J$3,'CFR - XML import'!$A168)),0,VALUE(MID('CFR - XML import'!$A168,SEARCH(\">\",'CFR - XML import'!$A168,1)+1,SEARCH(\"/\",'CFR - XML import'!$A168,1)-SEARCH(\">\",'CFR - XML import'!$A168,1)-2)))","v":0},{"$f":"IF(ISERROR(FIND(K$3,'CFR - XML import'!$A168)),0,VALUE(MID('CFR - XML import'!$A168,SEARCH(\">\",'CFR - XML import'!$A168,1)+1,SEARCH(\"/\",'CFR - XML import'!$A168,1)-SEARCH(\">\",'CFR - XML import'!$A168,1)-2)))","v":0},{"$f":"IF(ISERROR(FIND(L$3,'CFR - XML import'!$A168)),0,VALUE(MID('CFR - XML import'!$A168,SEARCH(\">\",'CFR - XML import'!$A168,1)+1,SEARCH(\"/\",'CFR - XML import'!$A168,1)-SEARCH(\">\",'CFR - XML import'!$A168,1)-2)))","v":0},{"$f":"IF(ISERROR(FIND(M$3,'CFR - XML import'!$A168)),0,VALUE(MID('CFR - XML import'!$A168,SEARCH(\">\",'CFR - XML import'!$A168,1)+1,SEARCH(\"/\",'CFR - XML import'!$A168,1)-SEARCH(\">\",'CFR - XML import'!$A168,1)-2)))","v":0},{"$f":"IF(ISERROR(FIND(N$3,'CFR - XML import'!$A168)),0,VALUE(MID('CFR - XML import'!$A168,SEARCH(\">\",'CFR - XML import'!$A168,1)+1,SEARCH(\"/\",'CFR - XML import'!$A168,1)-SEARCH(\">\",'CFR - XML import'!$A168,1)-2)))","v":0},{"$f":"IF(ISERROR(FIND(O$3,'CFR - XML import'!$A168)),0,VALUE(MID('CFR - XML import'!$A168,SEARCH(\">\",'CFR - XML import'!$A168,1)+1,SEARCH(\"/\",'CFR - XML import'!$A168,1)-SEARCH(\">\",'CFR - XML import'!$A168,1)-2)))","v":0},{"$f":"IF(ISERROR(FIND(P$3,'CFR - XML import'!$A168)),0,VALUE(MID('CFR - XML import'!$A168,SEARCH(\">\",'CFR - XML import'!$A168,1)+1,SEARCH(\"/\",'CFR - XML import'!$A168,1)-SEARCH(\">\",'CFR - XML import'!$A168,1)-2)))","v":0},{"$f":"IF(ISERROR(FIND(Q$3,'CFR - XML import'!$A168)),0,VALUE(MID('CFR - XML import'!$A168,SEARCH(\">\",'CFR - XML import'!$A168,1)+1,SEARCH(\"/\",'CFR - XML import'!$A168,1)-SEARCH(\">\",'CFR - XML import'!$A168,1)-2)))","v":0},{"$f":"IF(ISERROR(FIND(R$3,'CFR - XML import'!$A168)),0,VALUE(MID('CFR - XML import'!$A168,SEARCH(\">\",'CFR - XML import'!$A168,1)+1,SEARCH(\"/\",'CFR - XML import'!$A168,1)-SEARCH(\">\",'CFR - XML import'!$A168,1)-2)))","v":0},{"$f":"IF(ISERROR(FIND(S$3,'CFR - XML import'!$A168)),0,VALUE(MID('CFR - XML import'!$A168,SEARCH(\">\",'CFR - XML import'!$A168,1)+1,SEARCH(\"/\",'CFR - XML import'!$A168,1)-SEARCH(\">\",'CFR - XML import'!$A168,1)-2)))","v":0},{"$f":"IF(ISERROR(FIND(T$3,'CFR - XML import'!$A168)),0,VALUE(MID('CFR - XML import'!$A168,SEARCH(\">\",'CFR - XML import'!$A168,1)+1,SEARCH(\"/\",'CFR - XML import'!$A168,1)-SEARCH(\">\",'CFR - XML import'!$A168,1)-2)))","v":0},{"$f":"IF(ISERROR(FIND(U$3,'CFR - XML import'!$A168)),0,VALUE(MID('CFR - XML import'!$A168,SEARCH(\">\",'CFR - XML import'!$A168,1)+1,SEARCH(\"/\",'CFR - XML import'!$A168,1)-SEARCH(\">\",'CFR - XML import'!$A168,1)-2)))","v":0},{"$f":"IF(ISERROR(FIND(V$3,'CFR - XML import'!$A168)),0,VALUE(MID('CFR - XML import'!$A168,SEARCH(\">\",'CFR - XML import'!$A168,1)+1,SEARCH(\"/\",'CFR - XML import'!$A168,1)-SEARCH(\">\",'CFR - XML import'!$A168,1)-2)))","v":0},{"$f":"IF(ISERROR(FIND(W$3,'CFR - XML import'!$A168)),0,VALUE(MID('CFR - XML import'!$A168,SEARCH(\">\",'CFR - XML import'!$A168,1)+1,SEARCH(\"/\",'CFR - XML import'!$A168,1)-SEARCH(\">\",'CFR - XML import'!$A168,1)-2)))","v":0},null,{"$f":"IF(ISERROR(FIND(Y$3,'CFR - XML import'!$A168)),0,VALUE(MID('CFR - XML import'!$A168,SEARCH(\">\",'CFR - XML import'!$A168,1)+1,SEARCH(\"/\",'CFR - XML import'!$A168,1)-SEARCH(\">\",'CFR - XML import'!$A168,1)-2)))","v":0},{"$f":"IF(ISERROR(FIND(Z$3,'CFR - XML import'!$A168)),0,VALUE(MID('CFR - XML import'!$A168,SEARCH(\">\",'CFR - XML import'!$A168,1)+1,SEARCH(\"/\",'CFR - XML import'!$A168,1)-SEARCH(\">\",'CFR - XML import'!$A168,1)-2)))","v":0},{"$f":"IF(ISERROR(FIND(AA$3,'CFR - XML import'!$A168)),0,VALUE(MID('CFR - XML import'!$A168,SEARCH(\">\",'CFR - XML import'!$A168,1)+1,SEARCH(\"/\",'CFR - XML import'!$A168,1)-SEARCH(\">\",'CFR - XML import'!$A168,1)-2)))","v":0},{"$f":"IF(ISERROR(FIND(AB$3,'CFR - XML import'!$A168)),0,VALUE(MID('CFR - XML import'!$A168,SEARCH(\">\",'CFR - XML import'!$A168,1)+1,SEARCH(\"/\",'CFR - XML import'!$A168,1)-SEARCH(\">\",'CFR - XML import'!$A168,1)-2)))","v":0},{"$f":"IF(ISERROR(FIND(AC$3,'CFR - XML import'!$A168)),0,VALUE(MID('CFR - XML import'!$A168,SEARCH(\">\",'CFR - XML import'!$A168,1)+1,SEARCH(\"/\",'CFR - XML import'!$A168,1)-SEARCH(\">\",'CFR - XML import'!$A168,1)-2)))","v":0},{"$f":"IF(ISERROR(FIND(AD$3,'CFR - XML import'!$A168)),0,VALUE(MID('CFR - XML import'!$A168,SEARCH(\">\",'CFR - XML import'!$A168,1)+1,SEARCH(\"/\",'CFR - XML import'!$A168,1)-SEARCH(\">\",'CFR - XML import'!$A168,1)-2)))","v":0},{"$f":"IF(ISERROR(FIND(AE$3,'CFR - XML import'!$A168)),0,VALUE(MID('CFR - XML import'!$A168,SEARCH(\">\",'CFR - XML import'!$A168,1)+1,SEARCH(\"/\",'CFR - XML import'!$A168,1)-SEARCH(\">\",'CFR - XML import'!$A168,1)-2)))","v":0},{"$f":"IF(ISERROR(FIND(AF$3,'CFR - XML import'!$A168)),0,VALUE(MID('CFR - XML import'!$A168,SEARCH(\">\",'CFR - XML import'!$A168,1)+1,SEARCH(\"/\",'CFR - XML import'!$A168,1)-SEARCH(\">\",'CFR - XML import'!$A168,1)-2)))","v":0},{"$f":"IF(ISERROR(FIND(AG$3,'CFR - XML import'!$A168)),0,VALUE(MID('CFR - XML import'!$A168,SEARCH(\">\",'CFR - XML import'!$A168,1)+1,SEARCH(\"/\",'CFR - XML import'!$A168,1)-SEARCH(\">\",'CFR - XML import'!$A168,1)-2)))","v":0},{"$f":"IF(ISERROR(FIND(AH$3,'CFR - XML import'!$A168)),0,VALUE(MID('CFR - XML import'!$A168,SEARCH(\">\",'CFR - XML import'!$A168,1)+1,SEARCH(\"/\",'CFR - XML import'!$A168,1)-SEARCH(\">\",'CFR - XML import'!$A168,1)-2)))","v":0},{"$f":"IF(ISERROR(FIND(AI$3,'CFR - XML import'!$A168)),0,VALUE(MID('CFR - XML import'!$A168,SEARCH(\">\",'CFR - XML import'!$A168,1)+1,SEARCH(\"/\",'CFR - XML import'!$A168,1)-SEARCH(\">\",'CFR - XML import'!$A168,1)-2)))","v":0},{"$f":"IF(ISERROR(FIND(AJ$3,'CFR - XML import'!$A168)),0,VALUE(MID('CFR - XML import'!$A168,SEARCH(\">\",'CFR - XML import'!$A168,1)+1,SEARCH(\"/\",'CFR - XML import'!$A168,1)-SEARCH(\">\",'CFR - XML import'!$A168,1)-2)))","v":0},{"$f":"IF(ISERROR(FIND(AK$3,'CFR - XML import'!$A168)),0,VALUE(MID('CFR - XML import'!$A168,SEARCH(\">\",'CFR - XML import'!$A168,1)+1,SEARCH(\"/\",'CFR - XML import'!$A168,1)-SEARCH(\">\",'CFR - XML import'!$A168,1)-2)))","v":0},{"$f":"IF(ISERROR(FIND(AL$3,'CFR - XML import'!$A168)),0,VALUE(MID('CFR - XML import'!$A168,SEARCH(\">\",'CFR - XML import'!$A168,1)+1,SEARCH(\"/\",'CFR - XML import'!$A168,1)-SEARCH(\">\",'CFR - XML import'!$A168,1)-2)))","v":0},{"$f":"IF(ISERROR(FIND(AM$3,'CFR - XML import'!$A168)),0,VALUE(MID('CFR - XML import'!$A168,SEARCH(\">\",'CFR - XML import'!$A168,1)+1,SEARCH(\"/\",'CFR - XML import'!$A168,1)-SEARCH(\">\",'CFR - XML import'!$A168,1)-2)))","v":0},{"$f":"IF(ISERROR(FIND(AN$3,'CFR - XML import'!$A168)),0,VALUE(MID('CFR - XML import'!$A168,SEARCH(\">\",'CFR - XML import'!$A168,1)+1,SEARCH(\"/\",'CFR - XML import'!$A168,1)-SEARCH(\">\",'CFR - XML import'!$A168,1)-2)))","v":0},{"$f":"IF(ISERROR(FIND(AO$3,'CFR - XML import'!$A168)),0,VALUE(MID('CFR - XML import'!$A168,SEARCH(\">\",'CFR - XML import'!$A168,1)+1,SEARCH(\"/\",'CFR - XML import'!$A168,1)-SEARCH(\">\",'CFR - XML import'!$A168,1)-2)))","v":0},{"$f":"IF(ISERROR(FIND(AP$3,'CFR - XML import'!$A168)),0,VALUE(MID('CFR - XML import'!$A168,SEARCH(\">\",'CFR - XML import'!$A168,1)+1,SEARCH(\"/\",'CFR - XML import'!$A168,1)-SEARCH(\">\",'CFR - XML import'!$A168,1)-2)))","v":0},{"$f":"IF(ISERROR(FIND(AQ$3,'CFR - XML import'!$A168)),0,VALUE(MID('CFR - XML import'!$A168,SEARCH(\">\",'CFR - XML import'!$A168,1)+1,SEARCH(\"/\",'CFR - XML import'!$A168,1)-SEARCH(\">\",'CFR - XML import'!$A168,1)-2)))","v":0},{"$f":"IF(ISERROR(FIND(AR$3,'CFR - XML import'!$A168)),0,VALUE(MID('CFR - XML import'!$A168,SEARCH(\">\",'CFR - XML import'!$A168,1)+1,SEARCH(\"/\",'CFR - XML import'!$A168,1)-SEARCH(\">\",'CFR - XML import'!$A168,1)-2)))","v":0},{"$f":"IF(ISERROR(FIND(AS$3,'CFR - XML import'!$A168)),0,VALUE(MID('CFR - XML import'!$A168,SEARCH(\">\",'CFR - XML import'!$A168,1)+1,SEARCH(\"/\",'CFR - XML import'!$A168,1)-SEARCH(\">\",'CFR - XML import'!$A168,1)-2)))","v":0},{"$f":"IF(ISERROR(FIND(AT$3,'CFR - XML import'!$A168)),0,VALUE(MID('CFR - XML import'!$A168,SEARCH(\">\",'CFR - XML import'!$A168,1)+1,SEARCH(\"/\",'CFR - XML import'!$A168,1)-SEARCH(\">\",'CFR - XML import'!$A168,1)-2)))","v":0},{"$f":"IF(ISERROR(FIND(AU$3,'CFR - XML import'!$A168)),0,VALUE(MID('CFR - XML import'!$A168,SEARCH(\">\",'CFR - XML import'!$A168,1)+1,SEARCH(\"/\",'CFR - XML import'!$A168,1)-SEARCH(\">\",'CFR - XML import'!$A168,1)-2)))","v":0},{"$f":"IF(ISERROR(FIND(AV$3,'CFR - XML import'!$A168)),0,VALUE(MID('CFR - XML import'!$A168,SEARCH(\">\",'CFR - XML import'!$A168,1)+1,SEARCH(\"/\",'CFR - XML import'!$A168,1)-SEARCH(\">\",'CFR - XML import'!$A168,1)-2)))","v":0},{"$f":"IF(ISERROR(FIND(AW$3,'CFR - XML import'!$A168)),0,VALUE(MID('CFR - XML import'!$A168,SEARCH(\">\",'CFR - XML import'!$A168,1)+1,SEARCH(\"/\",'CFR - XML import'!$A168,1)-SEARCH(\">\",'CFR - XML import'!$A168,1)-2)))","v":0},{"$f":"IF(ISERROR(FIND(AX$3,'CFR - XML import'!$A168)),0,VALUE(MID('CFR - XML import'!$A168,SEARCH(\">\",'CFR - XML import'!$A168,1)+1,SEARCH(\"/\",'CFR - XML import'!$A168,1)-SEARCH(\">\",'CFR - XML import'!$A168,1)-2)))","v":0},{"$f":"IF(ISERROR(FIND(AY$3,'CFR - XML import'!$A168)),0,VALUE(MID('CFR - XML import'!$A168,SEARCH(\">\",'CFR - XML import'!$A168,1)+1,SEARCH(\"/\",'CFR - XML import'!$A168,1)-SEARCH(\">\",'CFR - XML import'!$A168,1)-2)))","v":0},{"$f":"IF(ISERROR(FIND(AZ$3,'CFR - XML import'!$A168)),0,VALUE(MID('CFR - XML import'!$A168,SEARCH(\">\",'CFR - XML import'!$A168,1)+1,SEARCH(\"/\",'CFR - XML import'!$A168,1)-SEARCH(\">\",'CFR - XML import'!$A168,1)-2)))","v":0},{"$f":"IF(ISERROR(FIND(BA$3,'CFR - XML import'!$A168)),0,VALUE(MID('CFR - XML import'!$A168,SEARCH(\">\",'CFR - XML import'!$A168,1)+1,SEARCH(\"/\",'CFR - XML import'!$A168,1)-SEARCH(\">\",'CFR - XML import'!$A168,1)-2)))","v":0},{"$f":"IF(ISERROR(FIND(BB$3,'CFR - XML import'!$A168)),0,VALUE(MID('CFR - XML import'!$A168,SEARCH(\">\",'CFR - XML import'!$A168,1)+1,SEARCH(\"/\",'CFR - XML import'!$A168,1)-SEARCH(\">\",'CFR - XML import'!$A168,1)-2)))","v":0},{"$f":"IF(ISERROR(FIND(BC$3,'CFR - XML import'!$A168)),0,VALUE(MID('CFR - XML import'!$A168,SEARCH(\">\",'CFR - XML import'!$A168,1)+1,SEARCH(\"/\",'CFR - XML import'!$A168,1)-SEARCH(\">\",'CFR - XML import'!$A168,1)-2)))","v":0},{"$f":"IF(ISERROR(FIND(BD$3,'CFR - XML import'!$A168)),0,VALUE(MID('CFR - XML import'!$A168,SEARCH(\">\",'CFR - XML import'!$A168,1)+1,SEARCH(\"/\",'CFR - XML import'!$A168,1)-SEARCH(\">\",'CFR - XML import'!$A168,1)-2)))","v":0},{"$f":"IF(ISERROR(FIND(BE$3,'CFR - XML import'!$A168)),0,VALUE(MID('CFR - XML import'!$A168,SEARCH(\">\",'CFR - XML import'!$A168,1)+1,SEARCH(\"/\",'CFR - XML import'!$A168,1)-SEARCH(\">\",'CFR - XML import'!$A168,1)-2)))","v":0},{"$f":"IF(ISERROR(FIND(BF$3,'CFR - XML import'!$A168)),0,VALUE(MID('CFR - XML import'!$A168,SEARCH(\">\",'CFR - XML import'!$A168,1)+1,SEARCH(\"/\",'CFR - XML import'!$A168,1)-SEARCH(\">\",'CFR - XML import'!$A168,1)-2)))","v":0},{"$f":"IF(ISERROR(FIND(BG$3,'CFR - XML import'!$A168)),0,VALUE(MID('CFR - XML import'!$A168,SEARCH(\">\",'CFR - XML import'!$A168,1)+1,SEARCH(\"/\",'CFR - XML import'!$A168,1)-SEARCH(\">\",'CFR - XML import'!$A168,1)-2)))","v":0},{"$f":"IF(ISERROR(FIND(BH$3,'CFR - XML import'!$A168)),0,VALUE(MID('CFR - XML import'!$A168,SEARCH(\">\",'CFR - XML import'!$A168,1)+1,SEARCH(\"/\",'CFR - XML import'!$A168,1)-SEARCH(\">\",'CFR - XML import'!$A168,1)-2)))","v":0},{"$f":"IF(ISERROR(FIND(BI$3,'CFR - XML import'!$A168)),0,VALUE(MID('CFR - XML import'!$A168,SEARCH(\">\",'CFR - XML import'!$A168,1)+1,SEARCH(\"/\",'CFR - XML import'!$A168,1)-SEARCH(\">\",'CFR - XML import'!$A168,1)-2)))","v":0},{"$f":"IF(ISERROR(FIND(BJ$3,'CFR - XML import'!$A168)),0,VALUE(MID('CFR - XML import'!$A168,SEARCH(\">\",'CFR - XML import'!$A168,1)+1,SEARCH(\"/\",'CFR - XML import'!$A168,1)-SEARCH(\">\",'CFR - XML import'!$A168,1)-2)))","v":0},{"$f":"IF(ISERROR(FIND(BK$3,'CFR - XML import'!$A168)),0,VALUE(MID('CFR - XML import'!$A168,SEARCH(\">\",'CFR - XML import'!$A168,1)+1,SEARCH(\"/\",'CFR - XML import'!$A168,1)-SEARCH(\">\",'CFR - XML import'!$A168,1)-2)))","v":0},{"$f":"IF(ISERROR(FIND(BL$3,'CFR - XML import'!$A168)),0,VALUE(MID('CFR - XML import'!$A168,SEARCH(\">\",'CFR - XML import'!$A168,1)+1,SEARCH(\"/\",'CFR - XML import'!$A168,1)-SEARCH(\">\",'CFR - XML import'!$A168,1)-2)))","v":0},{"$f":"IF(ISERROR(FIND(BM$3,'CFR - XML import'!$A168)),0,VALUE(MID('CFR - XML import'!$A168,SEARCH(\">\",'CFR - XML import'!$A168,1)+1,SEARCH(\"/\",'CFR - XML import'!$A168,1)-SEARCH(\">\",'CFR - XML import'!$A168,1)-2)))","v":0},{"$f":"IF(ISERROR(FIND(BN$3,'CFR - XML import'!$A168)),0,VALUE(MID('CFR - XML import'!$A168,SEARCH(\">\",'CFR - XML import'!$A168,1)+1,SEARCH(\"/\",'CFR - XML import'!$A168,1)-SEARCH(\">\",'CFR - XML import'!$A168,1)-2)))","v":0},{"$f":"IF(ISERROR(FIND(BO$3,'CFR - XML import'!$A168)),0,VALUE(MID('CFR - XML import'!$A168,SEARCH(\">\",'CFR - XML import'!$A168,1)+1,SEARCH(\"/\",'CFR - XML import'!$A168,1)-SEARCH(\">\",'CFR - XML import'!$A168,1)-2)))","v":0},{"$f":"IF(ISERROR(FIND(BP$3,'CFR - XML import'!$A168)),0,VALUE(MID('CFR - XML import'!$A168,SEARCH(\">\",'CFR - XML import'!$A168,1)+1,SEARCH(\"/\",'CFR - XML import'!$A168,1)-SEARCH(\">\",'CFR - XML import'!$A168,1)-2)))","v":0},{"$f":"IF(ISERROR(FIND(BQ$3,'CFR - XML import'!$A168)),0,VALUE(MID('CFR - XML import'!$A168,SEARCH(\">\",'CFR - XML import'!$A168,1)+1,SEARCH(\"/\",'CFR - XML import'!$A168,1)-SEARCH(\">\",'CFR - XML import'!$A168,1)-2)))","v":0},{"$f":"IF(ISERROR(FIND(BR$3,'CFR - XML import'!$A168)),0,VALUE(MID('CFR - XML import'!$A168,SEARCH(\">\",'CFR - XML import'!$A168,1)+1,SEARCH(\"/\",'CFR - XML import'!$A168,1)-SEARCH(\">\",'CFR - XML import'!$A168,1)-2)))","v":0},{"$f":"IF(ISERROR(FIND(BS$3,'CFR - XML import'!$A168)),0,VALUE(MID('CFR - XML import'!$A168,SEARCH(\">\",'CFR - XML import'!$A168,1)+1,SEARCH(\"/\",'CFR - XML import'!$A168,1)-SEARCH(\">\",'CFR - XML import'!$A168,1)-2)))","v":0},{"$f":"IF(ISERROR(FIND(BT$3,'CFR - XML import'!$A168)),0,VALUE(MID('CFR - XML import'!$A168,SEARCH(\">\",'CFR - XML import'!$A168,1)+1,SEARCH(\"/\",'CFR - XML import'!$A168,1)-SEARCH(\">\",'CFR - XML import'!$A168,1)-2)))","v":0},{"$f":"IF(ISERROR(FIND(BU$3,'CFR - XML import'!$A168)),0,VALUE(MID('CFR - XML import'!$A168,SEARCH(\">\",'CFR - XML import'!$A168,1)+1,SEARCH(\"/\",'CFR - XML import'!$A168,1)-SEARCH(\">\",'CFR - XML import'!$A168,1)-2)))","v":0},{"$f":"IF(ISERROR(FIND(BV$3,'CFR - XML import'!$A168)),0,VALUE(MID('CFR - XML import'!$A168,SEARCH(\">\",'CFR - XML import'!$A168,1)+1,SEARCH(\"/\",'CFR - XML import'!$A168,1)-SEARCH(\">\",'CFR - XML import'!$A168,1)-2)))","v":0},{"$f":"IF(ISERROR(FIND(BW$3,'CFR - XML import'!$A168)),0,VALUE(MID('CFR - XML import'!$A168,SEARCH(\">\",'CFR - XML import'!$A168,1)+1,SEARCH(\"/\",'CFR - XML import'!$A168,1)-SEARCH(\">\",'CFR - XML import'!$A168,1)-2)))","v":0},{"$f":"IF(ISERROR(FIND(BX$3,'CFR - XML import'!$A168)),0,VALUE(MID('CFR - XML import'!$A168,SEARCH(\">\",'CFR - XML import'!$A168,1)+1,SEARCH(\"/\",'CFR - XML import'!$A168,1)-SEARCH(\">\",'CFR - XML import'!$A168,1)-2)))","v":0},{"$f":"IF(ISERROR(FIND(BY$3,'CFR - XML import'!$A168)),0,VALUE(MID('CFR - XML import'!$A168,SEARCH(\">\",'CFR - XML import'!$A168,1)+1,SEARCH(\"/\",'CFR - XML import'!$A168,1)-SEARCH(\">\",'CFR - XML import'!$A168,1)-2)))","v":0},{"$f":"IF(ISERROR(FIND(BZ$3,'CFR - XML import'!$A168)),0,VALUE(MID('CFR - XML import'!$A168,SEARCH(\">\",'CFR - XML import'!$A168,1)+1,SEARCH(\"/\",'CFR - XML import'!$A168,1)-SEARCH(\">\",'CFR - XML import'!$A168,1)-2)))","v":0},null,null,null,null,null,null,{"$f":"IF(ISERROR(IF(MID('CFR - XML import'!$A168,LEN($CF$4)+1,LEN('CFR - XML import'!$A168)-(2*LEN($CF$4)+1))=\"RMMS\",1,IF(MID('CFR - XML import'!$A168,LEN(\"    <InputSystem>\")+1,LEN('CFR - XML import'!$A168)-(LEN(\"    <InputSystem>\")+LEN($CF$4)+1))=\"SIMS\",2,0))),0,IF(MID('CFR - XML import'!$A168,LEN($CF$4)+1,LEN('CFR - XML import'!$A168)-(2*LEN($CF$4)+1))=\"RMMS\",1,IF(MID('CFR - XML import'!$A168,LEN(\"    <InputSystem>\")+1,LEN('CFR - XML import'!$A168)-(LEN(\"    <InputSystem>\")+LEN($CF$4)+1))=\"SIMS\",2,0)))","v":0},{"$f":"IF(ISERROR(FIND(CH$3,'CFR - XML import'!$A168)),0,MID('CFR - XML import'!$A168,SEARCH(\">\",'CFR - XML import'!$A168,1)+1,SEARCH(\"/\",'CFR - XML import'!$A168,1)-SEARCH(\">\",'CFR - XML import'!$A168,1)-2))","v":0},{"$f":"IF(ISERROR(FIND(CI$3,'CFR - XML import'!$A168)),0,MID('CFR - XML import'!$A168,SEARCH(\">\",'CFR - XML import'!$A168,1)+1,SEARCH(\"/\",'CFR - XML import'!$A168,1)-SEARCH(\">\",'CFR - XML import'!$A168,1)-2))","v":0},{"$f":"IF(ISERROR(FIND(CJ$3,'CFR - XML import'!$A168)),0,MID('CFR - XML import'!$A168,SEARCH(\">\",'CFR - XML import'!$A168,1)+1,SEARCH(\"/\",'CFR - XML import'!$A168,1)-SEARCH(\">\",'CFR - XML import'!$A168,1)-2))","v":0},{"$f":"IF(ISERROR(FIND(CK$3,'CFR - XML import'!$A168)),0,MID('CFR - XML import'!$A168,SEARCH(\">\",'CFR - XML import'!$A168,1)+1,SEARCH(\"/\",'CFR - XML import'!$A168,1)-SEARCH(\">\",'CFR - XML import'!$A168,1)-2))","v":0},{"$f":"IF(ISERROR(FIND(CL$3,'CFR - XML import'!$A168)),0,MID('CFR - XML import'!$A168,SEARCH(\">\",'CFR - XML import'!$A168,1)+1,SEARCH(\"/\",'CFR - XML import'!$A168,1)-SEARCH(\">\",'CFR - XML import'!$A168,1)-2))","v":0}]
[{"$f":"IF(AND('CFR - XML import'!A169<>\"\",LEFT('CFR - XML import'!A169,1)<>\"<\",LEFT('CFR - XML import'!A169,3)<>\"  <\",LEFT('CFR - XML import'!A169,5)<>\"    <\",LEFT('CFR - XML import'!A169,7)<>\"      <\",LEFT('CFR - XML import'!A169,9)<>\"        <\",$B$1=\"SIMS\"),'CFR - XML import'!A169,IF(AND(LEFT('CFR - XML import'!A169,9)=\"<Details>\",$B$1=\"RM\"),'CFR - XML import'!A169,\"\"))","v":""},{"$f":"IF(ISERROR(FIND(B$3,'CFR - XML import'!$A169)),0,VALUE(MID('CFR - XML import'!$A169,SEARCH(\">\",'CFR - XML import'!$A169,1)+1,SEARCH(\"/\",'CFR - XML import'!$A169,1)-SEARCH(\">\",'CFR - XML import'!$A169,1)-2)))","v":0},null,{"$f":"IF(ISERROR(FIND(D$3,'CFR - XML import'!$A169)),0,MID('CFR - XML import'!$A169,SEARCH(\">\",'CFR - XML import'!$A169,1)+1,SEARCH(\"/\",'CFR - XML import'!$A169,1)-SEARCH(\">\",'CFR - XML import'!$A169,1)-2))","v":0},{"$f":"IF(ISERROR(FIND(E$3,'CFR - XML import'!$A169)),0,MID('CFR - XML import'!$A169,SEARCH(\">\",'CFR - XML import'!$A169,1)+1,SEARCH(\"/\",'CFR - XML import'!$A169,1)-SEARCH(\">\",'CFR - XML import'!$A169,1)-2))","v":0},{"$f":"IF($B$1=\"SIMS\",IF(ISERROR(FIND(F$3,'CFR - XML import'!$A169)),0,VALUE(MID('CFR - XML import'!$A169,15,10))),IF(ISERROR(FIND(F$3,'CFR - XML import'!$A169)),0,VALUE(MID('CFR - XML import'!$A169,11,10))))","v":"00:00:00"},{"$f":"IF(ISERROR(FIND(G$3,'CFR - XML import'!$A169)),0,VALUE(MID('CFR - XML import'!$A169,SEARCH(\">\",'CFR - XML import'!$A169,1)+1,SEARCH(\"/\",'CFR - XML import'!$A169,1)-SEARCH(\">\",'CFR - XML import'!$A169,1)-2)))","v":0},{"$f":"IF(ISERROR(FIND(H$3,'CFR - XML import'!$A169)),0,VALUE(MID('CFR - XML import'!$A169,SEARCH(\">\",'CFR - XML import'!$A169,1)+1,SEARCH(\"/\",'CFR - XML import'!$A169,1)-SEARCH(\">\",'CFR - XML import'!$A169,1)-2)))","v":0},{"$f":"IF(ISERROR(FIND(I$3,'CFR - XML import'!$A169)),0,VALUE(MID('CFR - XML import'!$A169,SEARCH(\">\",'CFR - XML import'!$A169,1)+1,SEARCH(\"/\",'CFR - XML import'!$A169,1)-SEARCH(\">\",'CFR - XML import'!$A169,1)-2)))","v":0},{"$f":"IF(ISERROR(FIND(J$3,'CFR - XML import'!$A169)),0,VALUE(MID('CFR - XML import'!$A169,SEARCH(\">\",'CFR - XML import'!$A169,1)+1,SEARCH(\"/\",'CFR - XML import'!$A169,1)-SEARCH(\">\",'CFR - XML import'!$A169,1)-2)))","v":0},{"$f":"IF(ISERROR(FIND(K$3,'CFR - XML import'!$A169)),0,VALUE(MID('CFR - XML import'!$A169,SEARCH(\">\",'CFR - XML import'!$A169,1)+1,SEARCH(\"/\",'CFR - XML import'!$A169,1)-SEARCH(\">\",'CFR - XML import'!$A169,1)-2)))","v":0},{"$f":"IF(ISERROR(FIND(L$3,'CFR - XML import'!$A169)),0,VALUE(MID('CFR - XML import'!$A169,SEARCH(\">\",'CFR - XML import'!$A169,1)+1,SEARCH(\"/\",'CFR - XML import'!$A169,1)-SEARCH(\">\",'CFR - XML import'!$A169,1)-2)))","v":0},{"$f":"IF(ISERROR(FIND(M$3,'CFR - XML import'!$A169)),0,VALUE(MID('CFR - XML import'!$A169,SEARCH(\">\",'CFR - XML import'!$A169,1)+1,SEARCH(\"/\",'CFR - XML import'!$A169,1)-SEARCH(\">\",'CFR - XML import'!$A169,1)-2)))","v":0},{"$f":"IF(ISERROR(FIND(N$3,'CFR - XML import'!$A169)),0,VALUE(MID('CFR - XML import'!$A169,SEARCH(\">\",'CFR - XML import'!$A169,1)+1,SEARCH(\"/\",'CFR - XML import'!$A169,1)-SEARCH(\">\",'CFR - XML import'!$A169,1)-2)))","v":0},{"$f":"IF(ISERROR(FIND(O$3,'CFR - XML import'!$A169)),0,VALUE(MID('CFR - XML import'!$A169,SEARCH(\">\",'CFR - XML import'!$A169,1)+1,SEARCH(\"/\",'CFR - XML import'!$A169,1)-SEARCH(\">\",'CFR - XML import'!$A169,1)-2)))","v":0},{"$f":"IF(ISERROR(FIND(P$3,'CFR - XML import'!$A169)),0,VALUE(MID('CFR - XML import'!$A169,SEARCH(\">\",'CFR - XML import'!$A169,1)+1,SEARCH(\"/\",'CFR - XML import'!$A169,1)-SEARCH(\">\",'CFR - XML import'!$A169,1)-2)))","v":0},{"$f":"IF(ISERROR(FIND(Q$3,'CFR - XML import'!$A169)),0,VALUE(MID('CFR - XML import'!$A169,SEARCH(\">\",'CFR - XML import'!$A169,1)+1,SEARCH(\"/\",'CFR - XML import'!$A169,1)-SEARCH(\">\",'CFR - XML import'!$A169,1)-2)))","v":0},{"$f":"IF(ISERROR(FIND(R$3,'CFR - XML import'!$A169)),0,VALUE(MID('CFR - XML import'!$A169,SEARCH(\">\",'CFR - XML import'!$A169,1)+1,SEARCH(\"/\",'CFR - XML import'!$A169,1)-SEARCH(\">\",'CFR - XML import'!$A169,1)-2)))","v":0},{"$f":"IF(ISERROR(FIND(S$3,'CFR - XML import'!$A169)),0,VALUE(MID('CFR - XML import'!$A169,SEARCH(\">\",'CFR - XML import'!$A169,1)+1,SEARCH(\"/\",'CFR - XML import'!$A169,1)-SEARCH(\">\",'CFR - XML import'!$A169,1)-2)))","v":0},{"$f":"IF(ISERROR(FIND(T$3,'CFR - XML import'!$A169)),0,VALUE(MID('CFR - XML import'!$A169,SEARCH(\">\",'CFR - XML import'!$A169,1)+1,SEARCH(\"/\",'CFR - XML import'!$A169,1)-SEARCH(\">\",'CFR - XML import'!$A169,1)-2)))","v":0},{"$f":"IF(ISERROR(FIND(U$3,'CFR - XML import'!$A169)),0,VALUE(MID('CFR - XML import'!$A169,SEARCH(\">\",'CFR - XML import'!$A169,1)+1,SEARCH(\"/\",'CFR - XML import'!$A169,1)-SEARCH(\">\",'CFR - XML import'!$A169,1)-2)))","v":0},{"$f":"IF(ISERROR(FIND(V$3,'CFR - XML import'!$A169)),0,VALUE(MID('CFR - XML import'!$A169,SEARCH(\">\",'CFR - XML import'!$A169,1)+1,SEARCH(\"/\",'CFR - XML import'!$A169,1)-SEARCH(\">\",'CFR - XML import'!$A169,1)-2)))","v":0},{"$f":"IF(ISERROR(FIND(W$3,'CFR - XML import'!$A169)),0,VALUE(MID('CFR - XML import'!$A169,SEARCH(\">\",'CFR - XML import'!$A169,1)+1,SEARCH(\"/\",'CFR - XML import'!$A169,1)-SEARCH(\">\",'CFR - XML import'!$A169,1)-2)))","v":0},null,{"$f":"IF(ISERROR(FIND(Y$3,'CFR - XML import'!$A169)),0,VALUE(MID('CFR - XML import'!$A169,SEARCH(\">\",'CFR - XML import'!$A169,1)+1,SEARCH(\"/\",'CFR - XML import'!$A169,1)-SEARCH(\">\",'CFR - XML import'!$A169,1)-2)))","v":0},{"$f":"IF(ISERROR(FIND(Z$3,'CFR - XML import'!$A169)),0,VALUE(MID('CFR - XML import'!$A169,SEARCH(\">\",'CFR - XML import'!$A169,1)+1,SEARCH(\"/\",'CFR - XML import'!$A169,1)-SEARCH(\">\",'CFR - XML import'!$A169,1)-2)))","v":0},{"$f":"IF(ISERROR(FIND(AA$3,'CFR - XML import'!$A169)),0,VALUE(MID('CFR - XML import'!$A169,SEARCH(\">\",'CFR - XML import'!$A169,1)+1,SEARCH(\"/\",'CFR - XML import'!$A169,1)-SEARCH(\">\",'CFR - XML import'!$A169,1)-2)))","v":0},{"$f":"IF(ISERROR(FIND(AB$3,'CFR - XML import'!$A169)),0,VALUE(MID('CFR - XML import'!$A169,SEARCH(\">\",'CFR - XML import'!$A169,1)+1,SEARCH(\"/\",'CFR - XML import'!$A169,1)-SEARCH(\">\",'CFR - XML import'!$A169,1)-2)))","v":0},{"$f":"IF(ISERROR(FIND(AC$3,'CFR - XML import'!$A169)),0,VALUE(MID('CFR - XML import'!$A169,SEARCH(\">\",'CFR - XML import'!$A169,1)+1,SEARCH(\"/\",'CFR - XML import'!$A169,1)-SEARCH(\">\",'CFR - XML import'!$A169,1)-2)))","v":0},{"$f":"IF(ISERROR(FIND(AD$3,'CFR - XML import'!$A169)),0,VALUE(MID('CFR - XML import'!$A169,SEARCH(\">\",'CFR - XML import'!$A169,1)+1,SEARCH(\"/\",'CFR - XML import'!$A169,1)-SEARCH(\">\",'CFR - XML import'!$A169,1)-2)))","v":0},{"$f":"IF(ISERROR(FIND(AE$3,'CFR - XML import'!$A169)),0,VALUE(MID('CFR - XML import'!$A169,SEARCH(\">\",'CFR - XML import'!$A169,1)+1,SEARCH(\"/\",'CFR - XML import'!$A169,1)-SEARCH(\">\",'CFR - XML import'!$A169,1)-2)))","v":0},{"$f":"IF(ISERROR(FIND(AF$3,'CFR - XML import'!$A169)),0,VALUE(MID('CFR - XML import'!$A169,SEARCH(\">\",'CFR - XML import'!$A169,1)+1,SEARCH(\"/\",'CFR - XML import'!$A169,1)-SEARCH(\">\",'CFR - XML import'!$A169,1)-2)))","v":0},{"$f":"IF(ISERROR(FIND(AG$3,'CFR - XML import'!$A169)),0,VALUE(MID('CFR - XML import'!$A169,SEARCH(\">\",'CFR - XML import'!$A169,1)+1,SEARCH(\"/\",'CFR - XML import'!$A169,1)-SEARCH(\">\",'CFR - XML import'!$A169,1)-2)))","v":0},{"$f":"IF(ISERROR(FIND(AH$3,'CFR - XML import'!$A169)),0,VALUE(MID('CFR - XML import'!$A169,SEARCH(\">\",'CFR - XML import'!$A169,1)+1,SEARCH(\"/\",'CFR - XML import'!$A169,1)-SEARCH(\">\",'CFR - XML import'!$A169,1)-2)))","v":0},{"$f":"IF(ISERROR(FIND(AI$3,'CFR - XML import'!$A169)),0,VALUE(MID('CFR - XML import'!$A169,SEARCH(\">\",'CFR - XML import'!$A169,1)+1,SEARCH(\"/\",'CFR - XML import'!$A169,1)-SEARCH(\">\",'CFR - XML import'!$A169,1)-2)))","v":0},{"$f":"IF(ISERROR(FIND(AJ$3,'CFR - XML import'!$A169)),0,VALUE(MID('CFR - XML import'!$A169,SEARCH(\">\",'CFR - XML import'!$A169,1)+1,SEARCH(\"/\",'CFR - XML import'!$A169,1)-SEARCH(\">\",'CFR - XML import'!$A169,1)-2)))","v":0},{"$f":"IF(ISERROR(FIND(AK$3,'CFR - XML import'!$A169)),0,VALUE(MID('CFR - XML import'!$A169,SEARCH(\">\",'CFR - XML import'!$A169,1)+1,SEARCH(\"/\",'CFR - XML import'!$A169,1)-SEARCH(\">\",'CFR - XML import'!$A169,1)-2)))","v":0},{"$f":"IF(ISERROR(FIND(AL$3,'CFR - XML import'!$A169)),0,VALUE(MID('CFR - XML import'!$A169,SEARCH(\">\",'CFR - XML import'!$A169,1)+1,SEARCH(\"/\",'CFR - XML import'!$A169,1)-SEARCH(\">\",'CFR - XML import'!$A169,1)-2)))","v":0},{"$f":"IF(ISERROR(FIND(AM$3,'CFR - XML import'!$A169)),0,VALUE(MID('CFR - XML import'!$A169,SEARCH(\">\",'CFR - XML import'!$A169,1)+1,SEARCH(\"/\",'CFR - XML import'!$A169,1)-SEARCH(\">\",'CFR - XML import'!$A169,1)-2)))","v":0},{"$f":"IF(ISERROR(FIND(AN$3,'CFR - XML import'!$A169)),0,VALUE(MID('CFR - XML import'!$A169,SEARCH(\">\",'CFR - XML import'!$A169,1)+1,SEARCH(\"/\",'CFR - XML import'!$A169,1)-SEARCH(\">\",'CFR - XML import'!$A169,1)-2)))","v":0},{"$f":"IF(ISERROR(FIND(AO$3,'CFR - XML import'!$A169)),0,VALUE(MID('CFR - XML import'!$A169,SEARCH(\">\",'CFR - XML import'!$A169,1)+1,SEARCH(\"/\",'CFR - XML import'!$A169,1)-SEARCH(\">\",'CFR - XML import'!$A169,1)-2)))","v":0},{"$f":"IF(ISERROR(FIND(AP$3,'CFR - XML import'!$A169)),0,VALUE(MID('CFR - XML import'!$A169,SEARCH(\">\",'CFR - XML import'!$A169,1)+1,SEARCH(\"/\",'CFR - XML import'!$A169,1)-SEARCH(\">\",'CFR - XML import'!$A169,1)-2)))","v":0},{"$f":"IF(ISERROR(FIND(AQ$3,'CFR - XML import'!$A169)),0,VALUE(MID('CFR - XML import'!$A169,SEARCH(\">\",'CFR - XML import'!$A169,1)+1,SEARCH(\"/\",'CFR - XML import'!$A169,1)-SEARCH(\">\",'CFR - XML import'!$A169,1)-2)))","v":0},{"$f":"IF(ISERROR(FIND(AR$3,'CFR - XML import'!$A169)),0,VALUE(MID('CFR - XML import'!$A169,SEARCH(\">\",'CFR - XML import'!$A169,1)+1,SEARCH(\"/\",'CFR - XML import'!$A169,1)-SEARCH(\">\",'CFR - XML import'!$A169,1)-2)))","v":0},{"$f":"IF(ISERROR(FIND(AS$3,'CFR - XML import'!$A169)),0,VALUE(MID('CFR - XML import'!$A169,SEARCH(\">\",'CFR - XML import'!$A169,1)+1,SEARCH(\"/\",'CFR - XML import'!$A169,1)-SEARCH(\">\",'CFR - XML import'!$A169,1)-2)))","v":0},{"$f":"IF(ISERROR(FIND(AT$3,'CFR - XML import'!$A169)),0,VALUE(MID('CFR - XML import'!$A169,SEARCH(\">\",'CFR - XML import'!$A169,1)+1,SEARCH(\"/\",'CFR - XML import'!$A169,1)-SEARCH(\">\",'CFR - XML import'!$A169,1)-2)))","v":0},{"$f":"IF(ISERROR(FIND(AU$3,'CFR - XML import'!$A169)),0,VALUE(MID('CFR - XML import'!$A169,SEARCH(\">\",'CFR - XML import'!$A169,1)+1,SEARCH(\"/\",'CFR - XML import'!$A169,1)-SEARCH(\">\",'CFR - XML import'!$A169,1)-2)))","v":0},{"$f":"IF(ISERROR(FIND(AV$3,'CFR - XML import'!$A169)),0,VALUE(MID('CFR - XML import'!$A169,SEARCH(\">\",'CFR - XML import'!$A169,1)+1,SEARCH(\"/\",'CFR - XML import'!$A169,1)-SEARCH(\">\",'CFR - XML import'!$A169,1)-2)))","v":0},{"$f":"IF(ISERROR(FIND(AW$3,'CFR - XML import'!$A169)),0,VALUE(MID('CFR - XML import'!$A169,SEARCH(\">\",'CFR - XML import'!$A169,1)+1,SEARCH(\"/\",'CFR - XML import'!$A169,1)-SEARCH(\">\",'CFR - XML import'!$A169,1)-2)))","v":0},{"$f":"IF(ISERROR(FIND(AX$3,'CFR - XML import'!$A169)),0,VALUE(MID('CFR - XML import'!$A169,SEARCH(\">\",'CFR - XML import'!$A169,1)+1,SEARCH(\"/\",'CFR - XML import'!$A169,1)-SEARCH(\">\",'CFR - XML import'!$A169,1)-2)))","v":0},{"$f":"IF(ISERROR(FIND(AY$3,'CFR - XML import'!$A169)),0,VALUE(MID('CFR - XML import'!$A169,SEARCH(\">\",'CFR - XML import'!$A169,1)+1,SEARCH(\"/\",'CFR - XML import'!$A169,1)-SEARCH(\">\",'CFR - XML import'!$A169,1)-2)))","v":0},{"$f":"IF(ISERROR(FIND(AZ$3,'CFR - XML import'!$A169)),0,VALUE(MID('CFR - XML import'!$A169,SEARCH(\">\",'CFR - XML import'!$A169,1)+1,SEARCH(\"/\",'CFR - XML import'!$A169,1)-SEARCH(\">\",'CFR - XML import'!$A169,1)-2)))","v":0},{"$f":"IF(ISERROR(FIND(BA$3,'CFR - XML import'!$A169)),0,VALUE(MID('CFR - XML import'!$A169,SEARCH(\">\",'CFR - XML import'!$A169,1)+1,SEARCH(\"/\",'CFR - XML import'!$A169,1)-SEARCH(\">\",'CFR - XML import'!$A169,1)-2)))","v":0},{"$f":"IF(ISERROR(FIND(BB$3,'CFR - XML import'!$A169)),0,VALUE(MID('CFR - XML import'!$A169,SEARCH(\">\",'CFR - XML import'!$A169,1)+1,SEARCH(\"/\",'CFR - XML import'!$A169,1)-SEARCH(\">\",'CFR - XML import'!$A169,1)-2)))","v":0},{"$f":"IF(ISERROR(FIND(BC$3,'CFR - XML import'!$A169)),0,VALUE(MID('CFR - XML import'!$A169,SEARCH(\">\",'CFR - XML import'!$A169,1)+1,SEARCH(\"/\",'CFR - XML import'!$A169,1)-SEARCH(\">\",'CFR - XML import'!$A169,1)-2)))","v":0},{"$f":"IF(ISERROR(FIND(BD$3,'CFR - XML import'!$A169)),0,VALUE(MID('CFR - XML import'!$A169,SEARCH(\">\",'CFR - XML import'!$A169,1)+1,SEARCH(\"/\",'CFR - XML import'!$A169,1)-SEARCH(\">\",'CFR - XML import'!$A169,1)-2)))","v":0},{"$f":"IF(ISERROR(FIND(BE$3,'CFR - XML import'!$A169)),0,VALUE(MID('CFR - XML import'!$A169,SEARCH(\">\",'CFR - XML import'!$A169,1)+1,SEARCH(\"/\",'CFR - XML import'!$A169,1)-SEARCH(\">\",'CFR - XML import'!$A169,1)-2)))","v":0},{"$f":"IF(ISERROR(FIND(BF$3,'CFR - XML import'!$A169)),0,VALUE(MID('CFR - XML import'!$A169,SEARCH(\">\",'CFR - XML import'!$A169,1)+1,SEARCH(\"/\",'CFR - XML import'!$A169,1)-SEARCH(\">\",'CFR - XML import'!$A169,1)-2)))","v":0},{"$f":"IF(ISERROR(FIND(BG$3,'CFR - XML import'!$A169)),0,VALUE(MID('CFR - XML import'!$A169,SEARCH(\">\",'CFR - XML import'!$A169,1)+1,SEARCH(\"/\",'CFR - XML import'!$A169,1)-SEARCH(\">\",'CFR - XML import'!$A169,1)-2)))","v":0},{"$f":"IF(ISERROR(FIND(BH$3,'CFR - XML import'!$A169)),0,VALUE(MID('CFR - XML import'!$A169,SEARCH(\">\",'CFR - XML import'!$A169,1)+1,SEARCH(\"/\",'CFR - XML import'!$A169,1)-SEARCH(\">\",'CFR - XML import'!$A169,1)-2)))","v":0},{"$f":"IF(ISERROR(FIND(BI$3,'CFR - XML import'!$A169)),0,VALUE(MID('CFR - XML import'!$A169,SEARCH(\">\",'CFR - XML import'!$A169,1)+1,SEARCH(\"/\",'CFR - XML import'!$A169,1)-SEARCH(\">\",'CFR - XML import'!$A169,1)-2)))","v":0},{"$f":"IF(ISERROR(FIND(BJ$3,'CFR - XML import'!$A169)),0,VALUE(MID('CFR - XML import'!$A169,SEARCH(\">\",'CFR - XML import'!$A169,1)+1,SEARCH(\"/\",'CFR - XML import'!$A169,1)-SEARCH(\">\",'CFR - XML import'!$A169,1)-2)))","v":0},{"$f":"IF(ISERROR(FIND(BK$3,'CFR - XML import'!$A169)),0,VALUE(MID('CFR - XML import'!$A169,SEARCH(\">\",'CFR - XML import'!$A169,1)+1,SEARCH(\"/\",'CFR - XML import'!$A169,1)-SEARCH(\">\",'CFR - XML import'!$A169,1)-2)))","v":0},{"$f":"IF(ISERROR(FIND(BL$3,'CFR - XML import'!$A169)),0,VALUE(MID('CFR - XML import'!$A169,SEARCH(\">\",'CFR - XML import'!$A169,1)+1,SEARCH(\"/\",'CFR - XML import'!$A169,1)-SEARCH(\">\",'CFR - XML import'!$A169,1)-2)))","v":0},{"$f":"IF(ISERROR(FIND(BM$3,'CFR - XML import'!$A169)),0,VALUE(MID('CFR - XML import'!$A169,SEARCH(\">\",'CFR - XML import'!$A169,1)+1,SEARCH(\"/\",'CFR - XML import'!$A169,1)-SEARCH(\">\",'CFR - XML import'!$A169,1)-2)))","v":0},{"$f":"IF(ISERROR(FIND(BN$3,'CFR - XML import'!$A169)),0,VALUE(MID('CFR - XML import'!$A169,SEARCH(\">\",'CFR - XML import'!$A169,1)+1,SEARCH(\"/\",'CFR - XML import'!$A169,1)-SEARCH(\">\",'CFR - XML import'!$A169,1)-2)))","v":0},{"$f":"IF(ISERROR(FIND(BO$3,'CFR - XML import'!$A169)),0,VALUE(MID('CFR - XML import'!$A169,SEARCH(\">\",'CFR - XML import'!$A169,1)+1,SEARCH(\"/\",'CFR - XML import'!$A169,1)-SEARCH(\">\",'CFR - XML import'!$A169,1)-2)))","v":0},{"$f":"IF(ISERROR(FIND(BP$3,'CFR - XML import'!$A169)),0,VALUE(MID('CFR - XML import'!$A169,SEARCH(\">\",'CFR - XML import'!$A169,1)+1,SEARCH(\"/\",'CFR - XML import'!$A169,1)-SEARCH(\">\",'CFR - XML import'!$A169,1)-2)))","v":0},{"$f":"IF(ISERROR(FIND(BQ$3,'CFR - XML import'!$A169)),0,VALUE(MID('CFR - XML import'!$A169,SEARCH(\">\",'CFR - XML import'!$A169,1)+1,SEARCH(\"/\",'CFR - XML import'!$A169,1)-SEARCH(\">\",'CFR - XML import'!$A169,1)-2)))","v":0},{"$f":"IF(ISERROR(FIND(BR$3,'CFR - XML import'!$A169)),0,VALUE(MID('CFR - XML import'!$A169,SEARCH(\">\",'CFR - XML import'!$A169,1)+1,SEARCH(\"/\",'CFR - XML import'!$A169,1)-SEARCH(\">\",'CFR - XML import'!$A169,1)-2)))","v":0},{"$f":"IF(ISERROR(FIND(BS$3,'CFR - XML import'!$A169)),0,VALUE(MID('CFR - XML import'!$A169,SEARCH(\">\",'CFR - XML import'!$A169,1)+1,SEARCH(\"/\",'CFR - XML import'!$A169,1)-SEARCH(\">\",'CFR - XML import'!$A169,1)-2)))","v":0},{"$f":"IF(ISERROR(FIND(BT$3,'CFR - XML import'!$A169)),0,VALUE(MID('CFR - XML import'!$A169,SEARCH(\">\",'CFR - XML import'!$A169,1)+1,SEARCH(\"/\",'CFR - XML import'!$A169,1)-SEARCH(\">\",'CFR - XML import'!$A169,1)-2)))","v":0},{"$f":"IF(ISERROR(FIND(BU$3,'CFR - XML import'!$A169)),0,VALUE(MID('CFR - XML import'!$A169,SEARCH(\">\",'CFR - XML import'!$A169,1)+1,SEARCH(\"/\",'CFR - XML import'!$A169,1)-SEARCH(\">\",'CFR - XML import'!$A169,1)-2)))","v":0},{"$f":"IF(ISERROR(FIND(BV$3,'CFR - XML import'!$A169)),0,VALUE(MID('CFR - XML import'!$A169,SEARCH(\">\",'CFR - XML import'!$A169,1)+1,SEARCH(\"/\",'CFR - XML import'!$A169,1)-SEARCH(\">\",'CFR - XML import'!$A169,1)-2)))","v":0},{"$f":"IF(ISERROR(FIND(BW$3,'CFR - XML import'!$A169)),0,VALUE(MID('CFR - XML import'!$A169,SEARCH(\">\",'CFR - XML import'!$A169,1)+1,SEARCH(\"/\",'CFR - XML import'!$A169,1)-SEARCH(\">\",'CFR - XML import'!$A169,1)-2)))","v":0},{"$f":"IF(ISERROR(FIND(BX$3,'CFR - XML import'!$A169)),0,VALUE(MID('CFR - XML import'!$A169,SEARCH(\">\",'CFR - XML import'!$A169,1)+1,SEARCH(\"/\",'CFR - XML import'!$A169,1)-SEARCH(\">\",'CFR - XML import'!$A169,1)-2)))","v":0},{"$f":"IF(ISERROR(FIND(BY$3,'CFR - XML import'!$A169)),0,VALUE(MID('CFR - XML import'!$A169,SEARCH(\">\",'CFR - XML import'!$A169,1)+1,SEARCH(\"/\",'CFR - XML import'!$A169,1)-SEARCH(\">\",'CFR - XML import'!$A169,1)-2)))","v":0},{"$f":"IF(ISERROR(FIND(BZ$3,'CFR - XML import'!$A169)),0,VALUE(MID('CFR - XML import'!$A169,SEARCH(\">\",'CFR - XML import'!$A169,1)+1,SEARCH(\"/\",'CFR - XML import'!$A169,1)-SEARCH(\">\",'CFR - XML import'!$A169,1)-2)))","v":0},null,null,null,null,null,null,{"$f":"IF(ISERROR(IF(MID('CFR - XML import'!$A169,LEN($CF$4)+1,LEN('CFR - XML import'!$A169)-(2*LEN($CF$4)+1))=\"RMMS\",1,IF(MID('CFR - XML import'!$A169,LEN(\"    <InputSystem>\")+1,LEN('CFR - XML import'!$A169)-(LEN(\"    <InputSystem>\")+LEN($CF$4)+1))=\"SIMS\",2,0))),0,IF(MID('CFR - XML import'!$A169,LEN($CF$4)+1,LEN('CFR - XML import'!$A169)-(2*LEN($CF$4)+1))=\"RMMS\",1,IF(MID('CFR - XML import'!$A169,LEN(\"    <InputSystem>\")+1,LEN('CFR - XML import'!$A169)-(LEN(\"    <InputSystem>\")+LEN($CF$4)+1))=\"SIMS\",2,0)))","v":0},{"$f":"IF(ISERROR(FIND(CH$3,'CFR - XML import'!$A169)),0,MID('CFR - XML import'!$A169,SEARCH(\">\",'CFR - XML import'!$A169,1)+1,SEARCH(\"/\",'CFR - XML import'!$A169,1)-SEARCH(\">\",'CFR - XML import'!$A169,1)-2))","v":0},{"$f":"IF(ISERROR(FIND(CI$3,'CFR - XML import'!$A169)),0,MID('CFR - XML import'!$A169,SEARCH(\">\",'CFR - XML import'!$A169,1)+1,SEARCH(\"/\",'CFR - XML import'!$A169,1)-SEARCH(\">\",'CFR - XML import'!$A169,1)-2))","v":0},{"$f":"IF(ISERROR(FIND(CJ$3,'CFR - XML import'!$A169)),0,MID('CFR - XML import'!$A169,SEARCH(\">\",'CFR - XML import'!$A169,1)+1,SEARCH(\"/\",'CFR - XML import'!$A169,1)-SEARCH(\">\",'CFR - XML import'!$A169,1)-2))","v":0},{"$f":"IF(ISERROR(FIND(CK$3,'CFR - XML import'!$A169)),0,MID('CFR - XML import'!$A169,SEARCH(\">\",'CFR - XML import'!$A169,1)+1,SEARCH(\"/\",'CFR - XML import'!$A169,1)-SEARCH(\">\",'CFR - XML import'!$A169,1)-2))","v":0},{"$f":"IF(ISERROR(FIND(CL$3,'CFR - XML import'!$A169)),0,MID('CFR - XML import'!$A169,SEARCH(\">\",'CFR - XML import'!$A169,1)+1,SEARCH(\"/\",'CFR - XML import'!$A169,1)-SEARCH(\">\",'CFR - XML import'!$A169,1)-2))","v":0}]
[{"$f":"IF(AND('CFR - XML import'!A170<>\"\",LEFT('CFR - XML import'!A170,1)<>\"<\",LEFT('CFR - XML import'!A170,3)<>\"  <\",LEFT('CFR - XML import'!A170,5)<>\"    <\",LEFT('CFR - XML import'!A170,7)<>\"      <\",LEFT('CFR - XML import'!A170,9)<>\"        <\",$B$1=\"SIMS\"),'CFR - XML import'!A170,IF(AND(LEFT('CFR - XML import'!A170,9)=\"<Details>\",$B$1=\"RM\"),'CFR - XML import'!A170,\"\"))","v":""},{"$f":"IF(ISERROR(FIND(B$3,'CFR - XML import'!$A170)),0,VALUE(MID('CFR - XML import'!$A170,SEARCH(\">\",'CFR - XML import'!$A170,1)+1,SEARCH(\"/\",'CFR - XML import'!$A170,1)-SEARCH(\">\",'CFR - XML import'!$A170,1)-2)))","v":0},null,{"$f":"IF(ISERROR(FIND(D$3,'CFR - XML import'!$A170)),0,MID('CFR - XML import'!$A170,SEARCH(\">\",'CFR - XML import'!$A170,1)+1,SEARCH(\"/\",'CFR - XML import'!$A170,1)-SEARCH(\">\",'CFR - XML import'!$A170,1)-2))","v":0},{"$f":"IF(ISERROR(FIND(E$3,'CFR - XML import'!$A170)),0,MID('CFR - XML import'!$A170,SEARCH(\">\",'CFR - XML import'!$A170,1)+1,SEARCH(\"/\",'CFR - XML import'!$A170,1)-SEARCH(\">\",'CFR - XML import'!$A170,1)-2))","v":0},{"$f":"IF($B$1=\"SIMS\",IF(ISERROR(FIND(F$3,'CFR - XML import'!$A170)),0,VALUE(MID('CFR - XML import'!$A170,15,10))),IF(ISERROR(FIND(F$3,'CFR - XML import'!$A170)),0,VALUE(MID('CFR - XML import'!$A170,11,10))))","v":"00:00:00"},{"$f":"IF(ISERROR(FIND(G$3,'CFR - XML import'!$A170)),0,VALUE(MID('CFR - XML import'!$A170,SEARCH(\">\",'CFR - XML import'!$A170,1)+1,SEARCH(\"/\",'CFR - XML import'!$A170,1)-SEARCH(\">\",'CFR - XML import'!$A170,1)-2)))","v":0},{"$f":"IF(ISERROR(FIND(H$3,'CFR - XML import'!$A170)),0,VALUE(MID('CFR - XML import'!$A170,SEARCH(\">\",'CFR - XML import'!$A170,1)+1,SEARCH(\"/\",'CFR - XML import'!$A170,1)-SEARCH(\">\",'CFR - XML import'!$A170,1)-2)))","v":0},{"$f":"IF(ISERROR(FIND(I$3,'CFR - XML import'!$A170)),0,VALUE(MID('CFR - XML import'!$A170,SEARCH(\">\",'CFR - XML import'!$A170,1)+1,SEARCH(\"/\",'CFR - XML import'!$A170,1)-SEARCH(\">\",'CFR - XML import'!$A170,1)-2)))","v":0},{"$f":"IF(ISERROR(FIND(J$3,'CFR - XML import'!$A170)),0,VALUE(MID('CFR - XML import'!$A170,SEARCH(\">\",'CFR - XML import'!$A170,1)+1,SEARCH(\"/\",'CFR - XML import'!$A170,1)-SEARCH(\">\",'CFR - XML import'!$A170,1)-2)))","v":0},{"$f":"IF(ISERROR(FIND(K$3,'CFR - XML import'!$A170)),0,VALUE(MID('CFR - XML import'!$A170,SEARCH(\">\",'CFR - XML import'!$A170,1)+1,SEARCH(\"/\",'CFR - XML import'!$A170,1)-SEARCH(\">\",'CFR - XML import'!$A170,1)-2)))","v":0},{"$f":"IF(ISERROR(FIND(L$3,'CFR - XML import'!$A170)),0,VALUE(MID('CFR - XML import'!$A170,SEARCH(\">\",'CFR - XML import'!$A170,1)+1,SEARCH(\"/\",'CFR - XML import'!$A170,1)-SEARCH(\">\",'CFR - XML import'!$A170,1)-2)))","v":0},{"$f":"IF(ISERROR(FIND(M$3,'CFR - XML import'!$A170)),0,VALUE(MID('CFR - XML import'!$A170,SEARCH(\">\",'CFR - XML import'!$A170,1)+1,SEARCH(\"/\",'CFR - XML import'!$A170,1)-SEARCH(\">\",'CFR - XML import'!$A170,1)-2)))","v":0},{"$f":"IF(ISERROR(FIND(N$3,'CFR - XML import'!$A170)),0,VALUE(MID('CFR - XML import'!$A170,SEARCH(\">\",'CFR - XML import'!$A170,1)+1,SEARCH(\"/\",'CFR - XML import'!$A170,1)-SEARCH(\">\",'CFR - XML import'!$A170,1)-2)))","v":0},{"$f":"IF(ISERROR(FIND(O$3,'CFR - XML import'!$A170)),0,VALUE(MID('CFR - XML import'!$A170,SEARCH(\">\",'CFR - XML import'!$A170,1)+1,SEARCH(\"/\",'CFR - XML import'!$A170,1)-SEARCH(\">\",'CFR - XML import'!$A170,1)-2)))","v":0},{"$f":"IF(ISERROR(FIND(P$3,'CFR - XML import'!$A170)),0,VALUE(MID('CFR - XML import'!$A170,SEARCH(\">\",'CFR - XML import'!$A170,1)+1,SEARCH(\"/\",'CFR - XML import'!$A170,1)-SEARCH(\">\",'CFR - XML import'!$A170,1)-2)))","v":0},{"$f":"IF(ISERROR(FIND(Q$3,'CFR - XML import'!$A170)),0,VALUE(MID('CFR - XML import'!$A170,SEARCH(\">\",'CFR - XML import'!$A170,1)+1,SEARCH(\"/\",'CFR - XML import'!$A170,1)-SEARCH(\">\",'CFR - XML import'!$A170,1)-2)))","v":0},{"$f":"IF(ISERROR(FIND(R$3,'CFR - XML import'!$A170)),0,VALUE(MID('CFR - XML import'!$A170,SEARCH(\">\",'CFR - XML import'!$A170,1)+1,SEARCH(\"/\",'CFR - XML import'!$A170,1)-SEARCH(\">\",'CFR - XML import'!$A170,1)-2)))","v":0},{"$f":"IF(ISERROR(FIND(S$3,'CFR - XML import'!$A170)),0,VALUE(MID('CFR - XML import'!$A170,SEARCH(\">\",'CFR - XML import'!$A170,1)+1,SEARCH(\"/\",'CFR - XML import'!$A170,1)-SEARCH(\">\",'CFR - XML import'!$A170,1)-2)))","v":0},{"$f":"IF(ISERROR(FIND(T$3,'CFR - XML import'!$A170)),0,VALUE(MID('CFR - XML import'!$A170,SEARCH(\">\",'CFR - XML import'!$A170,1)+1,SEARCH(\"/\",'CFR - XML import'!$A170,1)-SEARCH(\">\",'CFR - XML import'!$A170,1)-2)))","v":0},{"$f":"IF(ISERROR(FIND(U$3,'CFR - XML import'!$A170)),0,VALUE(MID('CFR - XML import'!$A170,SEARCH(\">\",'CFR - XML import'!$A170,1)+1,SEARCH(\"/\",'CFR - XML import'!$A170,1)-SEARCH(\">\",'CFR - XML import'!$A170,1)-2)))","v":0},{"$f":"IF(ISERROR(FIND(V$3,'CFR - XML import'!$A170)),0,VALUE(MID('CFR - XML import'!$A170,SEARCH(\">\",'CFR - XML import'!$A170,1)+1,SEARCH(\"/\",'CFR - XML import'!$A170,1)-SEARCH(\">\",'CFR - XML import'!$A170,1)-2)))","v":0},{"$f":"IF(ISERROR(FIND(W$3,'CFR - XML import'!$A170)),0,VALUE(MID('CFR - XML import'!$A170,SEARCH(\">\",'CFR - XML import'!$A170,1)+1,SEARCH(\"/\",'CFR - XML import'!$A170,1)-SEARCH(\">\",'CFR - XML import'!$A170,1)-2)))","v":0},null,{"$f":"IF(ISERROR(FIND(Y$3,'CFR - XML import'!$A170)),0,VALUE(MID('CFR - XML import'!$A170,SEARCH(\">\",'CFR - XML import'!$A170,1)+1,SEARCH(\"/\",'CFR - XML import'!$A170,1)-SEARCH(\">\",'CFR - XML import'!$A170,1)-2)))","v":0},{"$f":"IF(ISERROR(FIND(Z$3,'CFR - XML import'!$A170)),0,VALUE(MID('CFR - XML import'!$A170,SEARCH(\">\",'CFR - XML import'!$A170,1)+1,SEARCH(\"/\",'CFR - XML import'!$A170,1)-SEARCH(\">\",'CFR - XML import'!$A170,1)-2)))","v":0},{"$f":"IF(ISERROR(FIND(AA$3,'CFR - XML import'!$A170)),0,VALUE(MID('CFR - XML import'!$A170,SEARCH(\">\",'CFR - XML import'!$A170,1)+1,SEARCH(\"/\",'CFR - XML import'!$A170,1)-SEARCH(\">\",'CFR - XML import'!$A170,1)-2)))","v":0},{"$f":"IF(ISERROR(FIND(AB$3,'CFR - XML import'!$A170)),0,VALUE(MID('CFR - XML import'!$A170,SEARCH(\">\",'CFR - XML import'!$A170,1)+1,SEARCH(\"/\",'CFR - XML import'!$A170,1)-SEARCH(\">\",'CFR - XML import'!$A170,1)-2)))","v":0},{"$f":"IF(ISERROR(FIND(AC$3,'CFR - XML import'!$A170)),0,VALUE(MID('CFR - XML import'!$A170,SEARCH(\">\",'CFR - XML import'!$A170,1)+1,SEARCH(\"/\",'CFR - XML import'!$A170,1)-SEARCH(\">\",'CFR - XML import'!$A170,1)-2)))","v":0},{"$f":"IF(ISERROR(FIND(AD$3,'CFR - XML import'!$A170)),0,VALUE(MID('CFR - XML import'!$A170,SEARCH(\">\",'CFR - XML import'!$A170,1)+1,SEARCH(\"/\",'CFR - XML import'!$A170,1)-SEARCH(\">\",'CFR - XML import'!$A170,1)-2)))","v":0},{"$f":"IF(ISERROR(FIND(AE$3,'CFR - XML import'!$A170)),0,VALUE(MID('CFR - XML import'!$A170,SEARCH(\">\",'CFR - XML import'!$A170,1)+1,SEARCH(\"/\",'CFR - XML import'!$A170,1)-SEARCH(\">\",'CFR - XML import'!$A170,1)-2)))","v":0},{"$f":"IF(ISERROR(FIND(AF$3,'CFR - XML import'!$A170)),0,VALUE(MID('CFR - XML import'!$A170,SEARCH(\">\",'CFR - XML import'!$A170,1)+1,SEARCH(\"/\",'CFR - XML import'!$A170,1)-SEARCH(\">\",'CFR - XML import'!$A170,1)-2)))","v":0},{"$f":"IF(ISERROR(FIND(AG$3,'CFR - XML import'!$A170)),0,VALUE(MID('CFR - XML import'!$A170,SEARCH(\">\",'CFR - XML import'!$A170,1)+1,SEARCH(\"/\",'CFR - XML import'!$A170,1)-SEARCH(\">\",'CFR - XML import'!$A170,1)-2)))","v":0},{"$f":"IF(ISERROR(FIND(AH$3,'CFR - XML import'!$A170)),0,VALUE(MID('CFR - XML import'!$A170,SEARCH(\">\",'CFR - XML import'!$A170,1)+1,SEARCH(\"/\",'CFR - XML import'!$A170,1)-SEARCH(\">\",'CFR - XML import'!$A170,1)-2)))","v":0},{"$f":"IF(ISERROR(FIND(AI$3,'CFR - XML import'!$A170)),0,VALUE(MID('CFR - XML import'!$A170,SEARCH(\">\",'CFR - XML import'!$A170,1)+1,SEARCH(\"/\",'CFR - XML import'!$A170,1)-SEARCH(\">\",'CFR - XML import'!$A170,1)-2)))","v":0},{"$f":"IF(ISERROR(FIND(AJ$3,'CFR - XML import'!$A170)),0,VALUE(MID('CFR - XML import'!$A170,SEARCH(\">\",'CFR - XML import'!$A170,1)+1,SEARCH(\"/\",'CFR - XML import'!$A170,1)-SEARCH(\">\",'CFR - XML import'!$A170,1)-2)))","v":0},{"$f":"IF(ISERROR(FIND(AK$3,'CFR - XML import'!$A170)),0,VALUE(MID('CFR - XML import'!$A170,SEARCH(\">\",'CFR - XML import'!$A170,1)+1,SEARCH(\"/\",'CFR - XML import'!$A170,1)-SEARCH(\">\",'CFR - XML import'!$A170,1)-2)))","v":0},{"$f":"IF(ISERROR(FIND(AL$3,'CFR - XML import'!$A170)),0,VALUE(MID('CFR - XML import'!$A170,SEARCH(\">\",'CFR - XML import'!$A170,1)+1,SEARCH(\"/\",'CFR - XML import'!$A170,1)-SEARCH(\">\",'CFR - XML import'!$A170,1)-2)))","v":0},{"$f":"IF(ISERROR(FIND(AM$3,'CFR - XML import'!$A170)),0,VALUE(MID('CFR - XML import'!$A170,SEARCH(\">\",'CFR - XML import'!$A170,1)+1,SEARCH(\"/\",'CFR - XML import'!$A170,1)-SEARCH(\">\",'CFR - XML import'!$A170,1)-2)))","v":0},{"$f":"IF(ISERROR(FIND(AN$3,'CFR - XML import'!$A170)),0,VALUE(MID('CFR - XML import'!$A170,SEARCH(\">\",'CFR - XML import'!$A170,1)+1,SEARCH(\"/\",'CFR - XML import'!$A170,1)-SEARCH(\">\",'CFR - XML import'!$A170,1)-2)))","v":0},{"$f":"IF(ISERROR(FIND(AO$3,'CFR - XML import'!$A170)),0,VALUE(MID('CFR - XML import'!$A170,SEARCH(\">\",'CFR - XML import'!$A170,1)+1,SEARCH(\"/\",'CFR - XML import'!$A170,1)-SEARCH(\">\",'CFR - XML import'!$A170,1)-2)))","v":0},{"$f":"IF(ISERROR(FIND(AP$3,'CFR - XML import'!$A170)),0,VALUE(MID('CFR - XML import'!$A170,SEARCH(\">\",'CFR - XML import'!$A170,1)+1,SEARCH(\"/\",'CFR - XML import'!$A170,1)-SEARCH(\">\",'CFR - XML import'!$A170,1)-2)))","v":0},{"$f":"IF(ISERROR(FIND(AQ$3,'CFR - XML import'!$A170)),0,VALUE(MID('CFR - XML import'!$A170,SEARCH(\">\",'CFR - XML import'!$A170,1)+1,SEARCH(\"/\",'CFR - XML import'!$A170,1)-SEARCH(\">\",'CFR - XML import'!$A170,1)-2)))","v":0},{"$f":"IF(ISERROR(FIND(AR$3,'CFR - XML import'!$A170)),0,VALUE(MID('CFR - XML import'!$A170,SEARCH(\">\",'CFR - XML import'!$A170,1)+1,SEARCH(\"/\",'CFR - XML import'!$A170,1)-SEARCH(\">\",'CFR - XML import'!$A170,1)-2)))","v":0},{"$f":"IF(ISERROR(FIND(AS$3,'CFR - XML import'!$A170)),0,VALUE(MID('CFR - XML import'!$A170,SEARCH(\">\",'CFR - XML import'!$A170,1)+1,SEARCH(\"/\",'CFR - XML import'!$A170,1)-SEARCH(\">\",'CFR - XML import'!$A170,1)-2)))","v":0},{"$f":"IF(ISERROR(FIND(AT$3,'CFR - XML import'!$A170)),0,VALUE(MID('CFR - XML import'!$A170,SEARCH(\">\",'CFR - XML import'!$A170,1)+1,SEARCH(\"/\",'CFR - XML import'!$A170,1)-SEARCH(\">\",'CFR - XML import'!$A170,1)-2)))","v":0},{"$f":"IF(ISERROR(FIND(AU$3,'CFR - XML import'!$A170)),0,VALUE(MID('CFR - XML import'!$A170,SEARCH(\">\",'CFR - XML import'!$A170,1)+1,SEARCH(\"/\",'CFR - XML import'!$A170,1)-SEARCH(\">\",'CFR - XML import'!$A170,1)-2)))","v":0},{"$f":"IF(ISERROR(FIND(AV$3,'CFR - XML import'!$A170)),0,VALUE(MID('CFR - XML import'!$A170,SEARCH(\">\",'CFR - XML import'!$A170,1)+1,SEARCH(\"/\",'CFR - XML import'!$A170,1)-SEARCH(\">\",'CFR - XML import'!$A170,1)-2)))","v":0},{"$f":"IF(ISERROR(FIND(AW$3,'CFR - XML import'!$A170)),0,VALUE(MID('CFR - XML import'!$A170,SEARCH(\">\",'CFR - XML import'!$A170,1)+1,SEARCH(\"/\",'CFR - XML import'!$A170,1)-SEARCH(\">\",'CFR - XML import'!$A170,1)-2)))","v":0},{"$f":"IF(ISERROR(FIND(AX$3,'CFR - XML import'!$A170)),0,VALUE(MID('CFR - XML import'!$A170,SEARCH(\">\",'CFR - XML import'!$A170,1)+1,SEARCH(\"/\",'CFR - XML import'!$A170,1)-SEARCH(\">\",'CFR - XML import'!$A170,1)-2)))","v":0},{"$f":"IF(ISERROR(FIND(AY$3,'CFR - XML import'!$A170)),0,VALUE(MID('CFR - XML import'!$A170,SEARCH(\">\",'CFR - XML import'!$A170,1)+1,SEARCH(\"/\",'CFR - XML import'!$A170,1)-SEARCH(\">\",'CFR - XML import'!$A170,1)-2)))","v":0},{"$f":"IF(ISERROR(FIND(AZ$3,'CFR - XML import'!$A170)),0,VALUE(MID('CFR - XML import'!$A170,SEARCH(\">\",'CFR - XML import'!$A170,1)+1,SEARCH(\"/\",'CFR - XML import'!$A170,1)-SEARCH(\">\",'CFR - XML import'!$A170,1)-2)))","v":0},{"$f":"IF(ISERROR(FIND(BA$3,'CFR - XML import'!$A170)),0,VALUE(MID('CFR - XML import'!$A170,SEARCH(\">\",'CFR - XML import'!$A170,1)+1,SEARCH(\"/\",'CFR - XML import'!$A170,1)-SEARCH(\">\",'CFR - XML import'!$A170,1)-2)))","v":0},{"$f":"IF(ISERROR(FIND(BB$3,'CFR - XML import'!$A170)),0,VALUE(MID('CFR - XML import'!$A170,SEARCH(\">\",'CFR - XML import'!$A170,1)+1,SEARCH(\"/\",'CFR - XML import'!$A170,1)-SEARCH(\">\",'CFR - XML import'!$A170,1)-2)))","v":0},{"$f":"IF(ISERROR(FIND(BC$3,'CFR - XML import'!$A170)),0,VALUE(MID('CFR - XML import'!$A170,SEARCH(\">\",'CFR - XML import'!$A170,1)+1,SEARCH(\"/\",'CFR - XML import'!$A170,1)-SEARCH(\">\",'CFR - XML import'!$A170,1)-2)))","v":0},{"$f":"IF(ISERROR(FIND(BD$3,'CFR - XML import'!$A170)),0,VALUE(MID('CFR - XML import'!$A170,SEARCH(\">\",'CFR - XML import'!$A170,1)+1,SEARCH(\"/\",'CFR - XML import'!$A170,1)-SEARCH(\">\",'CFR - XML import'!$A170,1)-2)))","v":0},{"$f":"IF(ISERROR(FIND(BE$3,'CFR - XML import'!$A170)),0,VALUE(MID('CFR - XML import'!$A170,SEARCH(\">\",'CFR - XML import'!$A170,1)+1,SEARCH(\"/\",'CFR - XML import'!$A170,1)-SEARCH(\">\",'CFR - XML import'!$A170,1)-2)))","v":0},{"$f":"IF(ISERROR(FIND(BF$3,'CFR - XML import'!$A170)),0,VALUE(MID('CFR - XML import'!$A170,SEARCH(\">\",'CFR - XML import'!$A170,1)+1,SEARCH(\"/\",'CFR - XML import'!$A170,1)-SEARCH(\">\",'CFR - XML import'!$A170,1)-2)))","v":0},{"$f":"IF(ISERROR(FIND(BG$3,'CFR - XML import'!$A170)),0,VALUE(MID('CFR - XML import'!$A170,SEARCH(\">\",'CFR - XML import'!$A170,1)+1,SEARCH(\"/\",'CFR - XML import'!$A170,1)-SEARCH(\">\",'CFR - XML import'!$A170,1)-2)))","v":0},{"$f":"IF(ISERROR(FIND(BH$3,'CFR - XML import'!$A170)),0,VALUE(MID('CFR - XML import'!$A170,SEARCH(\">\",'CFR - XML import'!$A170,1)+1,SEARCH(\"/\",'CFR - XML import'!$A170,1)-SEARCH(\">\",'CFR - XML import'!$A170,1)-2)))","v":0},{"$f":"IF(ISERROR(FIND(BI$3,'CFR - XML import'!$A170)),0,VALUE(MID('CFR - XML import'!$A170,SEARCH(\">\",'CFR - XML import'!$A170,1)+1,SEARCH(\"/\",'CFR - XML import'!$A170,1)-SEARCH(\">\",'CFR - XML import'!$A170,1)-2)))","v":0},{"$f":"IF(ISERROR(FIND(BJ$3,'CFR - XML import'!$A170)),0,VALUE(MID('CFR - XML import'!$A170,SEARCH(\">\",'CFR - XML import'!$A170,1)+1,SEARCH(\"/\",'CFR - XML import'!$A170,1)-SEARCH(\">\",'CFR - XML import'!$A170,1)-2)))","v":0},{"$f":"IF(ISERROR(FIND(BK$3,'CFR - XML import'!$A170)),0,VALUE(MID('CFR - XML import'!$A170,SEARCH(\">\",'CFR - XML import'!$A170,1)+1,SEARCH(\"/\",'CFR - XML import'!$A170,1)-SEARCH(\">\",'CFR - XML import'!$A170,1)-2)))","v":0},{"$f":"IF(ISERROR(FIND(BL$3,'CFR - XML import'!$A170)),0,VALUE(MID('CFR - XML import'!$A170,SEARCH(\">\",'CFR - XML import'!$A170,1)+1,SEARCH(\"/\",'CFR - XML import'!$A170,1)-SEARCH(\">\",'CFR - XML import'!$A170,1)-2)))","v":0},{"$f":"IF(ISERROR(FIND(BM$3,'CFR - XML import'!$A170)),0,VALUE(MID('CFR - XML import'!$A170,SEARCH(\">\",'CFR - XML import'!$A170,1)+1,SEARCH(\"/\",'CFR - XML import'!$A170,1)-SEARCH(\">\",'CFR - XML import'!$A170,1)-2)))","v":0},{"$f":"IF(ISERROR(FIND(BN$3,'CFR - XML import'!$A170)),0,VALUE(MID('CFR - XML import'!$A170,SEARCH(\">\",'CFR - XML import'!$A170,1)+1,SEARCH(\"/\",'CFR - XML import'!$A170,1)-SEARCH(\">\",'CFR - XML import'!$A170,1)-2)))","v":0},{"$f":"IF(ISERROR(FIND(BO$3,'CFR - XML import'!$A170)),0,VALUE(MID('CFR - XML import'!$A170,SEARCH(\">\",'CFR - XML import'!$A170,1)+1,SEARCH(\"/\",'CFR - XML import'!$A170,1)-SEARCH(\">\",'CFR - XML import'!$A170,1)-2)))","v":0},{"$f":"IF(ISERROR(FIND(BP$3,'CFR - XML import'!$A170)),0,VALUE(MID('CFR - XML import'!$A170,SEARCH(\">\",'CFR - XML import'!$A170,1)+1,SEARCH(\"/\",'CFR - XML import'!$A170,1)-SEARCH(\">\",'CFR - XML import'!$A170,1)-2)))","v":0},{"$f":"IF(ISERROR(FIND(BQ$3,'CFR - XML import'!$A170)),0,VALUE(MID('CFR - XML import'!$A170,SEARCH(\">\",'CFR - XML import'!$A170,1)+1,SEARCH(\"/\",'CFR - XML import'!$A170,1)-SEARCH(\">\",'CFR - XML import'!$A170,1)-2)))","v":0},{"$f":"IF(ISERROR(FIND(BR$3,'CFR - XML import'!$A170)),0,VALUE(MID('CFR - XML import'!$A170,SEARCH(\">\",'CFR - XML import'!$A170,1)+1,SEARCH(\"/\",'CFR - XML import'!$A170,1)-SEARCH(\">\",'CFR - XML import'!$A170,1)-2)))","v":0},{"$f":"IF(ISERROR(FIND(BS$3,'CFR - XML import'!$A170)),0,VALUE(MID('CFR - XML import'!$A170,SEARCH(\">\",'CFR - XML import'!$A170,1)+1,SEARCH(\"/\",'CFR - XML import'!$A170,1)-SEARCH(\">\",'CFR - XML import'!$A170,1)-2)))","v":0},{"$f":"IF(ISERROR(FIND(BT$3,'CFR - XML import'!$A170)),0,VALUE(MID('CFR - XML import'!$A170,SEARCH(\">\",'CFR - XML import'!$A170,1)+1,SEARCH(\"/\",'CFR - XML import'!$A170,1)-SEARCH(\">\",'CFR - XML import'!$A170,1)-2)))","v":0},{"$f":"IF(ISERROR(FIND(BU$3,'CFR - XML import'!$A170)),0,VALUE(MID('CFR - XML import'!$A170,SEARCH(\">\",'CFR - XML import'!$A170,1)+1,SEARCH(\"/\",'CFR - XML import'!$A170,1)-SEARCH(\">\",'CFR - XML import'!$A170,1)-2)))","v":0},{"$f":"IF(ISERROR(FIND(BV$3,'CFR - XML import'!$A170)),0,VALUE(MID('CFR - XML import'!$A170,SEARCH(\">\",'CFR - XML import'!$A170,1)+1,SEARCH(\"/\",'CFR - XML import'!$A170,1)-SEARCH(\">\",'CFR - XML import'!$A170,1)-2)))","v":0},{"$f":"IF(ISERROR(FIND(BW$3,'CFR - XML import'!$A170)),0,VALUE(MID('CFR - XML import'!$A170,SEARCH(\">\",'CFR - XML import'!$A170,1)+1,SEARCH(\"/\",'CFR - XML import'!$A170,1)-SEARCH(\">\",'CFR - XML import'!$A170,1)-2)))","v":0},{"$f":"IF(ISERROR(FIND(BX$3,'CFR - XML import'!$A170)),0,VALUE(MID('CFR - XML import'!$A170,SEARCH(\">\",'CFR - XML import'!$A170,1)+1,SEARCH(\"/\",'CFR - XML import'!$A170,1)-SEARCH(\">\",'CFR - XML import'!$A170,1)-2)))","v":0},{"$f":"IF(ISERROR(FIND(BY$3,'CFR - XML import'!$A170)),0,VALUE(MID('CFR - XML import'!$A170,SEARCH(\">\",'CFR - XML import'!$A170,1)+1,SEARCH(\"/\",'CFR - XML import'!$A170,1)-SEARCH(\">\",'CFR - XML import'!$A170,1)-2)))","v":0},{"$f":"IF(ISERROR(FIND(BZ$3,'CFR - XML import'!$A170)),0,VALUE(MID('CFR - XML import'!$A170,SEARCH(\">\",'CFR - XML import'!$A170,1)+1,SEARCH(\"/\",'CFR - XML import'!$A170,1)-SEARCH(\">\",'CFR - XML import'!$A170,1)-2)))","v":0},null,null,null,null,null,null,{"$f":"IF(ISERROR(IF(MID('CFR - XML import'!$A170,LEN($CF$4)+1,LEN('CFR - XML import'!$A170)-(2*LEN($CF$4)+1))=\"RMMS\",1,IF(MID('CFR - XML import'!$A170,LEN(\"    <InputSystem>\")+1,LEN('CFR - XML import'!$A170)-(LEN(\"    <InputSystem>\")+LEN($CF$4)+1))=\"SIMS\",2,0))),0,IF(MID('CFR - XML import'!$A170,LEN($CF$4)+1,LEN('CFR - XML import'!$A170)-(2*LEN($CF$4)+1))=\"RMMS\",1,IF(MID('CFR - XML import'!$A170,LEN(\"    <InputSystem>\")+1,LEN('CFR - XML import'!$A170)-(LEN(\"    <InputSystem>\")+LEN($CF$4)+1))=\"SIMS\",2,0)))","v":0},{"$f":"IF(ISERROR(FIND(CH$3,'CFR - XML import'!$A170)),0,MID('CFR - XML import'!$A170,SEARCH(\">\",'CFR - XML import'!$A170,1)+1,SEARCH(\"/\",'CFR - XML import'!$A170,1)-SEARCH(\">\",'CFR - XML import'!$A170,1)-2))","v":0},{"$f":"IF(ISERROR(FIND(CI$3,'CFR - XML import'!$A170)),0,MID('CFR - XML import'!$A170,SEARCH(\">\",'CFR - XML import'!$A170,1)+1,SEARCH(\"/\",'CFR - XML import'!$A170,1)-SEARCH(\">\",'CFR - XML import'!$A170,1)-2))","v":0},{"$f":"IF(ISERROR(FIND(CJ$3,'CFR - XML import'!$A170)),0,MID('CFR - XML import'!$A170,SEARCH(\">\",'CFR - XML import'!$A170,1)+1,SEARCH(\"/\",'CFR - XML import'!$A170,1)-SEARCH(\">\",'CFR - XML import'!$A170,1)-2))","v":0},{"$f":"IF(ISERROR(FIND(CK$3,'CFR - XML import'!$A170)),0,MID('CFR - XML import'!$A170,SEARCH(\">\",'CFR - XML import'!$A170,1)+1,SEARCH(\"/\",'CFR - XML import'!$A170,1)-SEARCH(\">\",'CFR - XML import'!$A170,1)-2))","v":0},{"$f":"IF(ISERROR(FIND(CL$3,'CFR - XML import'!$A170)),0,MID('CFR - XML import'!$A170,SEARCH(\">\",'CFR - XML import'!$A170,1)+1,SEARCH(\"/\",'CFR - XML import'!$A170,1)-SEARCH(\">\",'CFR - XML import'!$A170,1)-2))","v":0}]
[{"$f":"IF(AND('CFR - XML import'!A171<>\"\",LEFT('CFR - XML import'!A171,1)<>\"<\",LEFT('CFR - XML import'!A171,3)<>\"  <\",LEFT('CFR - XML import'!A171,5)<>\"    <\",LEFT('CFR - XML import'!A171,7)<>\"      <\",LEFT('CFR - XML import'!A171,9)<>\"        <\",$B$1=\"SIMS\"),'CFR - XML import'!A171,IF(AND(LEFT('CFR - XML import'!A171,9)=\"<Details>\",$B$1=\"RM\"),'CFR - XML import'!A171,\"\"))","v":""},{"$f":"IF(ISERROR(FIND(B$3,'CFR - XML import'!$A171)),0,VALUE(MID('CFR - XML import'!$A171,SEARCH(\">\",'CFR - XML import'!$A171,1)+1,SEARCH(\"/\",'CFR - XML import'!$A171,1)-SEARCH(\">\",'CFR - XML import'!$A171,1)-2)))","v":0},null,{"$f":"IF(ISERROR(FIND(D$3,'CFR - XML import'!$A171)),0,MID('CFR - XML import'!$A171,SEARCH(\">\",'CFR - XML import'!$A171,1)+1,SEARCH(\"/\",'CFR - XML import'!$A171,1)-SEARCH(\">\",'CFR - XML import'!$A171,1)-2))","v":0},{"$f":"IF(ISERROR(FIND(E$3,'CFR - XML import'!$A171)),0,MID('CFR - XML import'!$A171,SEARCH(\">\",'CFR - XML import'!$A171,1)+1,SEARCH(\"/\",'CFR - XML import'!$A171,1)-SEARCH(\">\",'CFR - XML import'!$A171,1)-2))","v":0},{"$f":"IF($B$1=\"SIMS\",IF(ISERROR(FIND(F$3,'CFR - XML import'!$A171)),0,VALUE(MID('CFR - XML import'!$A171,15,10))),IF(ISERROR(FIND(F$3,'CFR - XML import'!$A171)),0,VALUE(MID('CFR - XML import'!$A171,11,10))))","v":"00:00:00"},{"$f":"IF(ISERROR(FIND(G$3,'CFR - XML import'!$A171)),0,VALUE(MID('CFR - XML import'!$A171,SEARCH(\">\",'CFR - XML import'!$A171,1)+1,SEARCH(\"/\",'CFR - XML import'!$A171,1)-SEARCH(\">\",'CFR - XML import'!$A171,1)-2)))","v":0},{"$f":"IF(ISERROR(FIND(H$3,'CFR - XML import'!$A171)),0,VALUE(MID('CFR - XML import'!$A171,SEARCH(\">\",'CFR - XML import'!$A171,1)+1,SEARCH(\"/\",'CFR - XML import'!$A171,1)-SEARCH(\">\",'CFR - XML import'!$A171,1)-2)))","v":0},{"$f":"IF(ISERROR(FIND(I$3,'CFR - XML import'!$A171)),0,VALUE(MID('CFR - XML import'!$A171,SEARCH(\">\",'CFR - XML import'!$A171,1)+1,SEARCH(\"/\",'CFR - XML import'!$A171,1)-SEARCH(\">\",'CFR - XML import'!$A171,1)-2)))","v":0},{"$f":"IF(ISERROR(FIND(J$3,'CFR - XML import'!$A171)),0,VALUE(MID('CFR - XML import'!$A171,SEARCH(\">\",'CFR - XML import'!$A171,1)+1,SEARCH(\"/\",'CFR - XML import'!$A171,1)-SEARCH(\">\",'CFR - XML import'!$A171,1)-2)))","v":0},{"$f":"IF(ISERROR(FIND(K$3,'CFR - XML import'!$A171)),0,VALUE(MID('CFR - XML import'!$A171,SEARCH(\">\",'CFR - XML import'!$A171,1)+1,SEARCH(\"/\",'CFR - XML import'!$A171,1)-SEARCH(\">\",'CFR - XML import'!$A171,1)-2)))","v":0},{"$f":"IF(ISERROR(FIND(L$3,'CFR - XML import'!$A171)),0,VALUE(MID('CFR - XML import'!$A171,SEARCH(\">\",'CFR - XML import'!$A171,1)+1,SEARCH(\"/\",'CFR - XML import'!$A171,1)-SEARCH(\">\",'CFR - XML import'!$A171,1)-2)))","v":0},{"$f":"IF(ISERROR(FIND(M$3,'CFR - XML import'!$A171)),0,VALUE(MID('CFR - XML import'!$A171,SEARCH(\">\",'CFR - XML import'!$A171,1)+1,SEARCH(\"/\",'CFR - XML import'!$A171,1)-SEARCH(\">\",'CFR - XML import'!$A171,1)-2)))","v":0},{"$f":"IF(ISERROR(FIND(N$3,'CFR - XML import'!$A171)),0,VALUE(MID('CFR - XML import'!$A171,SEARCH(\">\",'CFR - XML import'!$A171,1)+1,SEARCH(\"/\",'CFR - XML import'!$A171,1)-SEARCH(\">\",'CFR - XML import'!$A171,1)-2)))","v":0},{"$f":"IF(ISERROR(FIND(O$3,'CFR - XML import'!$A171)),0,VALUE(MID('CFR - XML import'!$A171,SEARCH(\">\",'CFR - XML import'!$A171,1)+1,SEARCH(\"/\",'CFR - XML import'!$A171,1)-SEARCH(\">\",'CFR - XML import'!$A171,1)-2)))","v":0},{"$f":"IF(ISERROR(FIND(P$3,'CFR - XML import'!$A171)),0,VALUE(MID('CFR - XML import'!$A171,SEARCH(\">\",'CFR - XML import'!$A171,1)+1,SEARCH(\"/\",'CFR - XML import'!$A171,1)-SEARCH(\">\",'CFR - XML import'!$A171,1)-2)))","v":0},{"$f":"IF(ISERROR(FIND(Q$3,'CFR - XML import'!$A171)),0,VALUE(MID('CFR - XML import'!$A171,SEARCH(\">\",'CFR - XML import'!$A171,1)+1,SEARCH(\"/\",'CFR - XML import'!$A171,1)-SEARCH(\">\",'CFR - XML import'!$A171,1)-2)))","v":0},{"$f":"IF(ISERROR(FIND(R$3,'CFR - XML import'!$A171)),0,VALUE(MID('CFR - XML import'!$A171,SEARCH(\">\",'CFR - XML import'!$A171,1)+1,SEARCH(\"/\",'CFR - XML import'!$A171,1)-SEARCH(\">\",'CFR - XML import'!$A171,1)-2)))","v":0},{"$f":"IF(ISERROR(FIND(S$3,'CFR - XML import'!$A171)),0,VALUE(MID('CFR - XML import'!$A171,SEARCH(\">\",'CFR - XML import'!$A171,1)+1,SEARCH(\"/\",'CFR - XML import'!$A171,1)-SEARCH(\">\",'CFR - XML import'!$A171,1)-2)))","v":0},{"$f":"IF(ISERROR(FIND(T$3,'CFR - XML import'!$A171)),0,VALUE(MID('CFR - XML import'!$A171,SEARCH(\">\",'CFR - XML import'!$A171,1)+1,SEARCH(\"/\",'CFR - XML import'!$A171,1)-SEARCH(\">\",'CFR - XML import'!$A171,1)-2)))","v":0},{"$f":"IF(ISERROR(FIND(U$3,'CFR - XML import'!$A171)),0,VALUE(MID('CFR - XML import'!$A171,SEARCH(\">\",'CFR - XML import'!$A171,1)+1,SEARCH(\"/\",'CFR - XML import'!$A171,1)-SEARCH(\">\",'CFR - XML import'!$A171,1)-2)))","v":0},{"$f":"IF(ISERROR(FIND(V$3,'CFR - XML import'!$A171)),0,VALUE(MID('CFR - XML import'!$A171,SEARCH(\">\",'CFR - XML import'!$A171,1)+1,SEARCH(\"/\",'CFR - XML import'!$A171,1)-SEARCH(\">\",'CFR - XML import'!$A171,1)-2)))","v":0},{"$f":"IF(ISERROR(FIND(W$3,'CFR - XML import'!$A171)),0,VALUE(MID('CFR - XML import'!$A171,SEARCH(\">\",'CFR - XML import'!$A171,1)+1,SEARCH(\"/\",'CFR - XML import'!$A171,1)-SEARCH(\">\",'CFR - XML import'!$A171,1)-2)))","v":0},null,{"$f":"IF(ISERROR(FIND(Y$3,'CFR - XML import'!$A171)),0,VALUE(MID('CFR - XML import'!$A171,SEARCH(\">\",'CFR - XML import'!$A171,1)+1,SEARCH(\"/\",'CFR - XML import'!$A171,1)-SEARCH(\">\",'CFR - XML import'!$A171,1)-2)))","v":0},{"$f":"IF(ISERROR(FIND(Z$3,'CFR - XML import'!$A171)),0,VALUE(MID('CFR - XML import'!$A171,SEARCH(\">\",'CFR - XML import'!$A171,1)+1,SEARCH(\"/\",'CFR - XML import'!$A171,1)-SEARCH(\">\",'CFR - XML import'!$A171,1)-2)))","v":0},{"$f":"IF(ISERROR(FIND(AA$3,'CFR - XML import'!$A171)),0,VALUE(MID('CFR - XML import'!$A171,SEARCH(\">\",'CFR - XML import'!$A171,1)+1,SEARCH(\"/\",'CFR - XML import'!$A171,1)-SEARCH(\">\",'CFR - XML import'!$A171,1)-2)))","v":0},{"$f":"IF(ISERROR(FIND(AB$3,'CFR - XML import'!$A171)),0,VALUE(MID('CFR - XML import'!$A171,SEARCH(\">\",'CFR - XML import'!$A171,1)+1,SEARCH(\"/\",'CFR - XML import'!$A171,1)-SEARCH(\">\",'CFR - XML import'!$A171,1)-2)))","v":0},{"$f":"IF(ISERROR(FIND(AC$3,'CFR - XML import'!$A171)),0,VALUE(MID('CFR - XML import'!$A171,SEARCH(\">\",'CFR - XML import'!$A171,1)+1,SEARCH(\"/\",'CFR - XML import'!$A171,1)-SEARCH(\">\",'CFR - XML import'!$A171,1)-2)))","v":0},{"$f":"IF(ISERROR(FIND(AD$3,'CFR - XML import'!$A171)),0,VALUE(MID('CFR - XML import'!$A171,SEARCH(\">\",'CFR - XML import'!$A171,1)+1,SEARCH(\"/\",'CFR - XML import'!$A171,1)-SEARCH(\">\",'CFR - XML import'!$A171,1)-2)))","v":0},{"$f":"IF(ISERROR(FIND(AE$3,'CFR - XML import'!$A171)),0,VALUE(MID('CFR - XML import'!$A171,SEARCH(\">\",'CFR - XML import'!$A171,1)+1,SEARCH(\"/\",'CFR - XML import'!$A171,1)-SEARCH(\">\",'CFR - XML import'!$A171,1)-2)))","v":0},{"$f":"IF(ISERROR(FIND(AF$3,'CFR - XML import'!$A171)),0,VALUE(MID('CFR - XML import'!$A171,SEARCH(\">\",'CFR - XML import'!$A171,1)+1,SEARCH(\"/\",'CFR - XML import'!$A171,1)-SEARCH(\">\",'CFR - XML import'!$A171,1)-2)))","v":0},{"$f":"IF(ISERROR(FIND(AG$3,'CFR - XML import'!$A171)),0,VALUE(MID('CFR - XML import'!$A171,SEARCH(\">\",'CFR - XML import'!$A171,1)+1,SEARCH(\"/\",'CFR - XML import'!$A171,1)-SEARCH(\">\",'CFR - XML import'!$A171,1)-2)))","v":0},{"$f":"IF(ISERROR(FIND(AH$3,'CFR - XML import'!$A171)),0,VALUE(MID('CFR - XML import'!$A171,SEARCH(\">\",'CFR - XML import'!$A171,1)+1,SEARCH(\"/\",'CFR - XML import'!$A171,1)-SEARCH(\">\",'CFR - XML import'!$A171,1)-2)))","v":0},{"$f":"IF(ISERROR(FIND(AI$3,'CFR - XML import'!$A171)),0,VALUE(MID('CFR - XML import'!$A171,SEARCH(\">\",'CFR - XML import'!$A171,1)+1,SEARCH(\"/\",'CFR - XML import'!$A171,1)-SEARCH(\">\",'CFR - XML import'!$A171,1)-2)))","v":0},{"$f":"IF(ISERROR(FIND(AJ$3,'CFR - XML import'!$A171)),0,VALUE(MID('CFR - XML import'!$A171,SEARCH(\">\",'CFR - XML import'!$A171,1)+1,SEARCH(\"/\",'CFR - XML import'!$A171,1)-SEARCH(\">\",'CFR - XML import'!$A171,1)-2)))","v":0},{"$f":"IF(ISERROR(FIND(AK$3,'CFR - XML import'!$A171)),0,VALUE(MID('CFR - XML import'!$A171,SEARCH(\">\",'CFR - XML import'!$A171,1)+1,SEARCH(\"/\",'CFR - XML import'!$A171,1)-SEARCH(\">\",'CFR - XML import'!$A171,1)-2)))","v":0},{"$f":"IF(ISERROR(FIND(AL$3,'CFR - XML import'!$A171)),0,VALUE(MID('CFR - XML import'!$A171,SEARCH(\">\",'CFR - XML import'!$A171,1)+1,SEARCH(\"/\",'CFR - XML import'!$A171,1)-SEARCH(\">\",'CFR - XML import'!$A171,1)-2)))","v":0},{"$f":"IF(ISERROR(FIND(AM$3,'CFR - XML import'!$A171)),0,VALUE(MID('CFR - XML import'!$A171,SEARCH(\">\",'CFR - XML import'!$A171,1)+1,SEARCH(\"/\",'CFR - XML import'!$A171,1)-SEARCH(\">\",'CFR - XML import'!$A171,1)-2)))","v":0},{"$f":"IF(ISERROR(FIND(AN$3,'CFR - XML import'!$A171)),0,VALUE(MID('CFR - XML import'!$A171,SEARCH(\">\",'CFR - XML import'!$A171,1)+1,SEARCH(\"/\",'CFR - XML import'!$A171,1)-SEARCH(\">\",'CFR - XML import'!$A171,1)-2)))","v":0},{"$f":"IF(ISERROR(FIND(AO$3,'CFR - XML import'!$A171)),0,VALUE(MID('CFR - XML import'!$A171,SEARCH(\">\",'CFR - XML import'!$A171,1)+1,SEARCH(\"/\",'CFR - XML import'!$A171,1)-SEARCH(\">\",'CFR - XML import'!$A171,1)-2)))","v":0},{"$f":"IF(ISERROR(FIND(AP$3,'CFR - XML import'!$A171)),0,VALUE(MID('CFR - XML import'!$A171,SEARCH(\">\",'CFR - XML import'!$A171,1)+1,SEARCH(\"/\",'CFR - XML import'!$A171,1)-SEARCH(\">\",'CFR - XML import'!$A171,1)-2)))","v":0},{"$f":"IF(ISERROR(FIND(AQ$3,'CFR - XML import'!$A171)),0,VALUE(MID('CFR - XML import'!$A171,SEARCH(\">\",'CFR - XML import'!$A171,1)+1,SEARCH(\"/\",'CFR - XML import'!$A171,1)-SEARCH(\">\",'CFR - XML import'!$A171,1)-2)))","v":0},{"$f":"IF(ISERROR(FIND(AR$3,'CFR - XML import'!$A171)),0,VALUE(MID('CFR - XML import'!$A171,SEARCH(\">\",'CFR - XML import'!$A171,1)+1,SEARCH(\"/\",'CFR - XML import'!$A171,1)-SEARCH(\">\",'CFR - XML import'!$A171,1)-2)))","v":0},{"$f":"IF(ISERROR(FIND(AS$3,'CFR - XML import'!$A171)),0,VALUE(MID('CFR - XML import'!$A171,SEARCH(\">\",'CFR - XML import'!$A171,1)+1,SEARCH(\"/\",'CFR - XML import'!$A171,1)-SEARCH(\">\",'CFR - XML import'!$A171,1)-2)))","v":0},{"$f":"IF(ISERROR(FIND(AT$3,'CFR - XML import'!$A171)),0,VALUE(MID('CFR - XML import'!$A171,SEARCH(\">\",'CFR - XML import'!$A171,1)+1,SEARCH(\"/\",'CFR - XML import'!$A171,1)-SEARCH(\">\",'CFR - XML import'!$A171,1)-2)))","v":0},{"$f":"IF(ISERROR(FIND(AU$3,'CFR - XML import'!$A171)),0,VALUE(MID('CFR - XML import'!$A171,SEARCH(\">\",'CFR - XML import'!$A171,1)+1,SEARCH(\"/\",'CFR - XML import'!$A171,1)-SEARCH(\">\",'CFR - XML import'!$A171,1)-2)))","v":0},{"$f":"IF(ISERROR(FIND(AV$3,'CFR - XML import'!$A171)),0,VALUE(MID('CFR - XML import'!$A171,SEARCH(\">\",'CFR - XML import'!$A171,1)+1,SEARCH(\"/\",'CFR - XML import'!$A171,1)-SEARCH(\">\",'CFR - XML import'!$A171,1)-2)))","v":0},{"$f":"IF(ISERROR(FIND(AW$3,'CFR - XML import'!$A171)),0,VALUE(MID('CFR - XML import'!$A171,SEARCH(\">\",'CFR - XML import'!$A171,1)+1,SEARCH(\"/\",'CFR - XML import'!$A171,1)-SEARCH(\">\",'CFR - XML import'!$A171,1)-2)))","v":0},{"$f":"IF(ISERROR(FIND(AX$3,'CFR - XML import'!$A171)),0,VALUE(MID('CFR - XML import'!$A171,SEARCH(\">\",'CFR - XML import'!$A171,1)+1,SEARCH(\"/\",'CFR - XML import'!$A171,1)-SEARCH(\">\",'CFR - XML import'!$A171,1)-2)))","v":0},{"$f":"IF(ISERROR(FIND(AY$3,'CFR - XML import'!$A171)),0,VALUE(MID('CFR - XML import'!$A171,SEARCH(\">\",'CFR - XML import'!$A171,1)+1,SEARCH(\"/\",'CFR - XML import'!$A171,1)-SEARCH(\">\",'CFR - XML import'!$A171,1)-2)))","v":0},{"$f":"IF(ISERROR(FIND(AZ$3,'CFR - XML import'!$A171)),0,VALUE(MID('CFR - XML import'!$A171,SEARCH(\">\",'CFR - XML import'!$A171,1)+1,SEARCH(\"/\",'CFR - XML import'!$A171,1)-SEARCH(\">\",'CFR - XML import'!$A171,1)-2)))","v":0},{"$f":"IF(ISERROR(FIND(BA$3,'CFR - XML import'!$A171)),0,VALUE(MID('CFR - XML import'!$A171,SEARCH(\">\",'CFR - XML import'!$A171,1)+1,SEARCH(\"/\",'CFR - XML import'!$A171,1)-SEARCH(\">\",'CFR - XML import'!$A171,1)-2)))","v":0},{"$f":"IF(ISERROR(FIND(BB$3,'CFR - XML import'!$A171)),0,VALUE(MID('CFR - XML import'!$A171,SEARCH(\">\",'CFR - XML import'!$A171,1)+1,SEARCH(\"/\",'CFR - XML import'!$A171,1)-SEARCH(\">\",'CFR - XML import'!$A171,1)-2)))","v":0},{"$f":"IF(ISERROR(FIND(BC$3,'CFR - XML import'!$A171)),0,VALUE(MID('CFR - XML import'!$A171,SEARCH(\">\",'CFR - XML import'!$A171,1)+1,SEARCH(\"/\",'CFR - XML import'!$A171,1)-SEARCH(\">\",'CFR - XML import'!$A171,1)-2)))","v":0},{"$f":"IF(ISERROR(FIND(BD$3,'CFR - XML import'!$A171)),0,VALUE(MID('CFR - XML import'!$A171,SEARCH(\">\",'CFR - XML import'!$A171,1)+1,SEARCH(\"/\",'CFR - XML import'!$A171,1)-SEARCH(\">\",'CFR - XML import'!$A171,1)-2)))","v":0},{"$f":"IF(ISERROR(FIND(BE$3,'CFR - XML import'!$A171)),0,VALUE(MID('CFR - XML import'!$A171,SEARCH(\">\",'CFR - XML import'!$A171,1)+1,SEARCH(\"/\",'CFR - XML import'!$A171,1)-SEARCH(\">\",'CFR - XML import'!$A171,1)-2)))","v":0},{"$f":"IF(ISERROR(FIND(BF$3,'CFR - XML import'!$A171)),0,VALUE(MID('CFR - XML import'!$A171,SEARCH(\">\",'CFR - XML import'!$A171,1)+1,SEARCH(\"/\",'CFR - XML import'!$A171,1)-SEARCH(\">\",'CFR - XML import'!$A171,1)-2)))","v":0},{"$f":"IF(ISERROR(FIND(BG$3,'CFR - XML import'!$A171)),0,VALUE(MID('CFR - XML import'!$A171,SEARCH(\">\",'CFR - XML import'!$A171,1)+1,SEARCH(\"/\",'CFR - XML import'!$A171,1)-SEARCH(\">\",'CFR - XML import'!$A171,1)-2)))","v":0},{"$f":"IF(ISERROR(FIND(BH$3,'CFR - XML import'!$A171)),0,VALUE(MID('CFR - XML import'!$A171,SEARCH(\">\",'CFR - XML import'!$A171,1)+1,SEARCH(\"/\",'CFR - XML import'!$A171,1)-SEARCH(\">\",'CFR - XML import'!$A171,1)-2)))","v":0},{"$f":"IF(ISERROR(FIND(BI$3,'CFR - XML import'!$A171)),0,VALUE(MID('CFR - XML import'!$A171,SEARCH(\">\",'CFR - XML import'!$A171,1)+1,SEARCH(\"/\",'CFR - XML import'!$A171,1)-SEARCH(\">\",'CFR - XML import'!$A171,1)-2)))","v":0},{"$f":"IF(ISERROR(FIND(BJ$3,'CFR - XML import'!$A171)),0,VALUE(MID('CFR - XML import'!$A171,SEARCH(\">\",'CFR - XML import'!$A171,1)+1,SEARCH(\"/\",'CFR - XML import'!$A171,1)-SEARCH(\">\",'CFR - XML import'!$A171,1)-2)))","v":0},{"$f":"IF(ISERROR(FIND(BK$3,'CFR - XML import'!$A171)),0,VALUE(MID('CFR - XML import'!$A171,SEARCH(\">\",'CFR - XML import'!$A171,1)+1,SEARCH(\"/\",'CFR - XML import'!$A171,1)-SEARCH(\">\",'CFR - XML import'!$A171,1)-2)))","v":0},{"$f":"IF(ISERROR(FIND(BL$3,'CFR - XML import'!$A171)),0,VALUE(MID('CFR - XML import'!$A171,SEARCH(\">\",'CFR - XML import'!$A171,1)+1,SEARCH(\"/\",'CFR - XML import'!$A171,1)-SEARCH(\">\",'CFR - XML import'!$A171,1)-2)))","v":0},{"$f":"IF(ISERROR(FIND(BM$3,'CFR - XML import'!$A171)),0,VALUE(MID('CFR - XML import'!$A171,SEARCH(\">\",'CFR - XML import'!$A171,1)+1,SEARCH(\"/\",'CFR - XML import'!$A171,1)-SEARCH(\">\",'CFR - XML import'!$A171,1)-2)))","v":0},{"$f":"IF(ISERROR(FIND(BN$3,'CFR - XML import'!$A171)),0,VALUE(MID('CFR - XML import'!$A171,SEARCH(\">\",'CFR - XML import'!$A171,1)+1,SEARCH(\"/\",'CFR - XML import'!$A171,1)-SEARCH(\">\",'CFR - XML import'!$A171,1)-2)))","v":0},{"$f":"IF(ISERROR(FIND(BO$3,'CFR - XML import'!$A171)),0,VALUE(MID('CFR - XML import'!$A171,SEARCH(\">\",'CFR - XML import'!$A171,1)+1,SEARCH(\"/\",'CFR - XML import'!$A171,1)-SEARCH(\">\",'CFR - XML import'!$A171,1)-2)))","v":0},{"$f":"IF(ISERROR(FIND(BP$3,'CFR - XML import'!$A171)),0,VALUE(MID('CFR - XML import'!$A171,SEARCH(\">\",'CFR - XML import'!$A171,1)+1,SEARCH(\"/\",'CFR - XML import'!$A171,1)-SEARCH(\">\",'CFR - XML import'!$A171,1)-2)))","v":0},{"$f":"IF(ISERROR(FIND(BQ$3,'CFR - XML import'!$A171)),0,VALUE(MID('CFR - XML import'!$A171,SEARCH(\">\",'CFR - XML import'!$A171,1)+1,SEARCH(\"/\",'CFR - XML import'!$A171,1)-SEARCH(\">\",'CFR - XML import'!$A171,1)-2)))","v":0},{"$f":"IF(ISERROR(FIND(BR$3,'CFR - XML import'!$A171)),0,VALUE(MID('CFR - XML import'!$A171,SEARCH(\">\",'CFR - XML import'!$A171,1)+1,SEARCH(\"/\",'CFR - XML import'!$A171,1)-SEARCH(\">\",'CFR - XML import'!$A171,1)-2)))","v":0},{"$f":"IF(ISERROR(FIND(BS$3,'CFR - XML import'!$A171)),0,VALUE(MID('CFR - XML import'!$A171,SEARCH(\">\",'CFR - XML import'!$A171,1)+1,SEARCH(\"/\",'CFR - XML import'!$A171,1)-SEARCH(\">\",'CFR - XML import'!$A171,1)-2)))","v":0},{"$f":"IF(ISERROR(FIND(BT$3,'CFR - XML import'!$A171)),0,VALUE(MID('CFR - XML import'!$A171,SEARCH(\">\",'CFR - XML import'!$A171,1)+1,SEARCH(\"/\",'CFR - XML import'!$A171,1)-SEARCH(\">\",'CFR - XML import'!$A171,1)-2)))","v":0},{"$f":"IF(ISERROR(FIND(BU$3,'CFR - XML import'!$A171)),0,VALUE(MID('CFR - XML import'!$A171,SEARCH(\">\",'CFR - XML import'!$A171,1)+1,SEARCH(\"/\",'CFR - XML import'!$A171,1)-SEARCH(\">\",'CFR - XML import'!$A171,1)-2)))","v":0},{"$f":"IF(ISERROR(FIND(BV$3,'CFR - XML import'!$A171)),0,VALUE(MID('CFR - XML import'!$A171,SEARCH(\">\",'CFR - XML import'!$A171,1)+1,SEARCH(\"/\",'CFR - XML import'!$A171,1)-SEARCH(\">\",'CFR - XML import'!$A171,1)-2)))","v":0},{"$f":"IF(ISERROR(FIND(BW$3,'CFR - XML import'!$A171)),0,VALUE(MID('CFR - XML import'!$A171,SEARCH(\">\",'CFR - XML import'!$A171,1)+1,SEARCH(\"/\",'CFR - XML import'!$A171,1)-SEARCH(\">\",'CFR - XML import'!$A171,1)-2)))","v":0},{"$f":"IF(ISERROR(FIND(BX$3,'CFR - XML import'!$A171)),0,VALUE(MID('CFR - XML import'!$A171,SEARCH(\">\",'CFR - XML import'!$A171,1)+1,SEARCH(\"/\",'CFR - XML import'!$A171,1)-SEARCH(\">\",'CFR - XML import'!$A171,1)-2)))","v":0},{"$f":"IF(ISERROR(FIND(BY$3,'CFR - XML import'!$A171)),0,VALUE(MID('CFR - XML import'!$A171,SEARCH(\">\",'CFR - XML import'!$A171,1)+1,SEARCH(\"/\",'CFR - XML import'!$A171,1)-SEARCH(\">\",'CFR - XML import'!$A171,1)-2)))","v":0},{"$f":"IF(ISERROR(FIND(BZ$3,'CFR - XML import'!$A171)),0,VALUE(MID('CFR - XML import'!$A171,SEARCH(\">\",'CFR - XML import'!$A171,1)+1,SEARCH(\"/\",'CFR - XML import'!$A171,1)-SEARCH(\">\",'CFR - XML import'!$A171,1)-2)))","v":0},null,null,null,null,null,null,{"$f":"IF(ISERROR(IF(MID('CFR - XML import'!$A171,LEN($CF$4)+1,LEN('CFR - XML import'!$A171)-(2*LEN($CF$4)+1))=\"RMMS\",1,IF(MID('CFR - XML import'!$A171,LEN(\"    <InputSystem>\")+1,LEN('CFR - XML import'!$A171)-(LEN(\"    <InputSystem>\")+LEN($CF$4)+1))=\"SIMS\",2,0))),0,IF(MID('CFR - XML import'!$A171,LEN($CF$4)+1,LEN('CFR - XML import'!$A171)-(2*LEN($CF$4)+1))=\"RMMS\",1,IF(MID('CFR - XML import'!$A171,LEN(\"    <InputSystem>\")+1,LEN('CFR - XML import'!$A171)-(LEN(\"    <InputSystem>\")+LEN($CF$4)+1))=\"SIMS\",2,0)))","v":0},{"$f":"IF(ISERROR(FIND(CH$3,'CFR - XML import'!$A171)),0,MID('CFR - XML import'!$A171,SEARCH(\">\",'CFR - XML import'!$A171,1)+1,SEARCH(\"/\",'CFR - XML import'!$A171,1)-SEARCH(\">\",'CFR - XML import'!$A171,1)-2))","v":0},{"$f":"IF(ISERROR(FIND(CI$3,'CFR - XML import'!$A171)),0,MID('CFR - XML import'!$A171,SEARCH(\">\",'CFR - XML import'!$A171,1)+1,SEARCH(\"/\",'CFR - XML import'!$A171,1)-SEARCH(\">\",'CFR - XML import'!$A171,1)-2))","v":0},{"$f":"IF(ISERROR(FIND(CJ$3,'CFR - XML import'!$A171)),0,MID('CFR - XML import'!$A171,SEARCH(\">\",'CFR - XML import'!$A171,1)+1,SEARCH(\"/\",'CFR - XML import'!$A171,1)-SEARCH(\">\",'CFR - XML import'!$A171,1)-2))","v":0},{"$f":"IF(ISERROR(FIND(CK$3,'CFR - XML import'!$A171)),0,MID('CFR - XML import'!$A171,SEARCH(\">\",'CFR - XML import'!$A171,1)+1,SEARCH(\"/\",'CFR - XML import'!$A171,1)-SEARCH(\">\",'CFR - XML import'!$A171,1)-2))","v":0},{"$f":"IF(ISERROR(FIND(CL$3,'CFR - XML import'!$A171)),0,MID('CFR - XML import'!$A171,SEARCH(\">\",'CFR - XML import'!$A171,1)+1,SEARCH(\"/\",'CFR - XML import'!$A171,1)-SEARCH(\">\",'CFR - XML import'!$A171,1)-2))","v":0}]
[{"$f":"IF(AND('CFR - XML import'!A172<>\"\",LEFT('CFR - XML import'!A172,1)<>\"<\",LEFT('CFR - XML import'!A172,3)<>\"  <\",LEFT('CFR - XML import'!A172,5)<>\"    <\",LEFT('CFR - XML import'!A172,7)<>\"      <\",LEFT('CFR - XML import'!A172,9)<>\"        <\",$B$1=\"SIMS\"),'CFR - XML import'!A172,IF(AND(LEFT('CFR - XML import'!A172,9)=\"<Details>\",$B$1=\"RM\"),'CFR - XML import'!A172,\"\"))","v":""},{"$f":"IF(ISERROR(FIND(B$3,'CFR - XML import'!$A172)),0,VALUE(MID('CFR - XML import'!$A172,SEARCH(\">\",'CFR - XML import'!$A172,1)+1,SEARCH(\"/\",'CFR - XML import'!$A172,1)-SEARCH(\">\",'CFR - XML import'!$A172,1)-2)))","v":0},null,{"$f":"IF(ISERROR(FIND(D$3,'CFR - XML import'!$A172)),0,MID('CFR - XML import'!$A172,SEARCH(\">\",'CFR - XML import'!$A172,1)+1,SEARCH(\"/\",'CFR - XML import'!$A172,1)-SEARCH(\">\",'CFR - XML import'!$A172,1)-2))","v":0},{"$f":"IF(ISERROR(FIND(E$3,'CFR - XML import'!$A172)),0,MID('CFR - XML import'!$A172,SEARCH(\">\",'CFR - XML import'!$A172,1)+1,SEARCH(\"/\",'CFR - XML import'!$A172,1)-SEARCH(\">\",'CFR - XML import'!$A172,1)-2))","v":0},{"$f":"IF($B$1=\"SIMS\",IF(ISERROR(FIND(F$3,'CFR - XML import'!$A172)),0,VALUE(MID('CFR - XML import'!$A172,15,10))),IF(ISERROR(FIND(F$3,'CFR - XML import'!$A172)),0,VALUE(MID('CFR - XML import'!$A172,11,10))))","v":"00:00:00"},{"$f":"IF(ISERROR(FIND(G$3,'CFR - XML import'!$A172)),0,VALUE(MID('CFR - XML import'!$A172,SEARCH(\">\",'CFR - XML import'!$A172,1)+1,SEARCH(\"/\",'CFR - XML import'!$A172,1)-SEARCH(\">\",'CFR - XML import'!$A172,1)-2)))","v":0},{"$f":"IF(ISERROR(FIND(H$3,'CFR - XML import'!$A172)),0,VALUE(MID('CFR - XML import'!$A172,SEARCH(\">\",'CFR - XML import'!$A172,1)+1,SEARCH(\"/\",'CFR - XML import'!$A172,1)-SEARCH(\">\",'CFR - XML import'!$A172,1)-2)))","v":0},{"$f":"IF(ISERROR(FIND(I$3,'CFR - XML import'!$A172)),0,VALUE(MID('CFR - XML import'!$A172,SEARCH(\">\",'CFR - XML import'!$A172,1)+1,SEARCH(\"/\",'CFR - XML import'!$A172,1)-SEARCH(\">\",'CFR - XML import'!$A172,1)-2)))","v":0},{"$f":"IF(ISERROR(FIND(J$3,'CFR - XML import'!$A172)),0,VALUE(MID('CFR - XML import'!$A172,SEARCH(\">\",'CFR - XML import'!$A172,1)+1,SEARCH(\"/\",'CFR - XML import'!$A172,1)-SEARCH(\">\",'CFR - XML import'!$A172,1)-2)))","v":0},{"$f":"IF(ISERROR(FIND(K$3,'CFR - XML import'!$A172)),0,VALUE(MID('CFR - XML import'!$A172,SEARCH(\">\",'CFR - XML import'!$A172,1)+1,SEARCH(\"/\",'CFR - XML import'!$A172,1)-SEARCH(\">\",'CFR - XML import'!$A172,1)-2)))","v":0},{"$f":"IF(ISERROR(FIND(L$3,'CFR - XML import'!$A172)),0,VALUE(MID('CFR - XML import'!$A172,SEARCH(\">\",'CFR - XML import'!$A172,1)+1,SEARCH(\"/\",'CFR - XML import'!$A172,1)-SEARCH(\">\",'CFR - XML import'!$A172,1)-2)))","v":0},{"$f":"IF(ISERROR(FIND(M$3,'CFR - XML import'!$A172)),0,VALUE(MID('CFR - XML import'!$A172,SEARCH(\">\",'CFR - XML import'!$A172,1)+1,SEARCH(\"/\",'CFR - XML import'!$A172,1)-SEARCH(\">\",'CFR - XML import'!$A172,1)-2)))","v":0},{"$f":"IF(ISERROR(FIND(N$3,'CFR - XML import'!$A172)),0,VALUE(MID('CFR - XML import'!$A172,SEARCH(\">\",'CFR - XML import'!$A172,1)+1,SEARCH(\"/\",'CFR - XML import'!$A172,1)-SEARCH(\">\",'CFR - XML import'!$A172,1)-2)))","v":0},{"$f":"IF(ISERROR(FIND(O$3,'CFR - XML import'!$A172)),0,VALUE(MID('CFR - XML import'!$A172,SEARCH(\">\",'CFR - XML import'!$A172,1)+1,SEARCH(\"/\",'CFR - XML import'!$A172,1)-SEARCH(\">\",'CFR - XML import'!$A172,1)-2)))","v":0},{"$f":"IF(ISERROR(FIND(P$3,'CFR - XML import'!$A172)),0,VALUE(MID('CFR - XML import'!$A172,SEARCH(\">\",'CFR - XML import'!$A172,1)+1,SEARCH(\"/\",'CFR - XML import'!$A172,1)-SEARCH(\">\",'CFR - XML import'!$A172,1)-2)))","v":0},{"$f":"IF(ISERROR(FIND(Q$3,'CFR - XML import'!$A172)),0,VALUE(MID('CFR - XML import'!$A172,SEARCH(\">\",'CFR - XML import'!$A172,1)+1,SEARCH(\"/\",'CFR - XML import'!$A172,1)-SEARCH(\">\",'CFR - XML import'!$A172,1)-2)))","v":0},{"$f":"IF(ISERROR(FIND(R$3,'CFR - XML import'!$A172)),0,VALUE(MID('CFR - XML import'!$A172,SEARCH(\">\",'CFR - XML import'!$A172,1)+1,SEARCH(\"/\",'CFR - XML import'!$A172,1)-SEARCH(\">\",'CFR - XML import'!$A172,1)-2)))","v":0},{"$f":"IF(ISERROR(FIND(S$3,'CFR - XML import'!$A172)),0,VALUE(MID('CFR - XML import'!$A172,SEARCH(\">\",'CFR - XML import'!$A172,1)+1,SEARCH(\"/\",'CFR - XML import'!$A172,1)-SEARCH(\">\",'CFR - XML import'!$A172,1)-2)))","v":0},{"$f":"IF(ISERROR(FIND(T$3,'CFR - XML import'!$A172)),0,VALUE(MID('CFR - XML import'!$A172,SEARCH(\">\",'CFR - XML import'!$A172,1)+1,SEARCH(\"/\",'CFR - XML import'!$A172,1)-SEARCH(\">\",'CFR - XML import'!$A172,1)-2)))","v":0},{"$f":"IF(ISERROR(FIND(U$3,'CFR - XML import'!$A172)),0,VALUE(MID('CFR - XML import'!$A172,SEARCH(\">\",'CFR - XML import'!$A172,1)+1,SEARCH(\"/\",'CFR - XML import'!$A172,1)-SEARCH(\">\",'CFR - XML import'!$A172,1)-2)))","v":0},{"$f":"IF(ISERROR(FIND(V$3,'CFR - XML import'!$A172)),0,VALUE(MID('CFR - XML import'!$A172,SEARCH(\">\",'CFR - XML import'!$A172,1)+1,SEARCH(\"/\",'CFR - XML import'!$A172,1)-SEARCH(\">\",'CFR - XML import'!$A172,1)-2)))","v":0},{"$f":"IF(ISERROR(FIND(W$3,'CFR - XML import'!$A172)),0,VALUE(MID('CFR - XML import'!$A172,SEARCH(\">\",'CFR - XML import'!$A172,1)+1,SEARCH(\"/\",'CFR - XML import'!$A172,1)-SEARCH(\">\",'CFR - XML import'!$A172,1)-2)))","v":0},null,{"$f":"IF(ISERROR(FIND(Y$3,'CFR - XML import'!$A172)),0,VALUE(MID('CFR - XML import'!$A172,SEARCH(\">\",'CFR - XML import'!$A172,1)+1,SEARCH(\"/\",'CFR - XML import'!$A172,1)-SEARCH(\">\",'CFR - XML import'!$A172,1)-2)))","v":0},{"$f":"IF(ISERROR(FIND(Z$3,'CFR - XML import'!$A172)),0,VALUE(MID('CFR - XML import'!$A172,SEARCH(\">\",'CFR - XML import'!$A172,1)+1,SEARCH(\"/\",'CFR - XML import'!$A172,1)-SEARCH(\">\",'CFR - XML import'!$A172,1)-2)))","v":0},{"$f":"IF(ISERROR(FIND(AA$3,'CFR - XML import'!$A172)),0,VALUE(MID('CFR - XML import'!$A172,SEARCH(\">\",'CFR - XML import'!$A172,1)+1,SEARCH(\"/\",'CFR - XML import'!$A172,1)-SEARCH(\">\",'CFR - XML import'!$A172,1)-2)))","v":0},{"$f":"IF(ISERROR(FIND(AB$3,'CFR - XML import'!$A172)),0,VALUE(MID('CFR - XML import'!$A172,SEARCH(\">\",'CFR - XML import'!$A172,1)+1,SEARCH(\"/\",'CFR - XML import'!$A172,1)-SEARCH(\">\",'CFR - XML import'!$A172,1)-2)))","v":0},{"$f":"IF(ISERROR(FIND(AC$3,'CFR - XML import'!$A172)),0,VALUE(MID('CFR - XML import'!$A172,SEARCH(\">\",'CFR - XML import'!$A172,1)+1,SEARCH(\"/\",'CFR - XML import'!$A172,1)-SEARCH(\">\",'CFR - XML import'!$A172,1)-2)))","v":0},{"$f":"IF(ISERROR(FIND(AD$3,'CFR - XML import'!$A172)),0,VALUE(MID('CFR - XML import'!$A172,SEARCH(\">\",'CFR - XML import'!$A172,1)+1,SEARCH(\"/\",'CFR - XML import'!$A172,1)-SEARCH(\">\",'CFR - XML import'!$A172,1)-2)))","v":0},{"$f":"IF(ISERROR(FIND(AE$3,'CFR - XML import'!$A172)),0,VALUE(MID('CFR - XML import'!$A172,SEARCH(\">\",'CFR - XML import'!$A172,1)+1,SEARCH(\"/\",'CFR - XML import'!$A172,1)-SEARCH(\">\",'CFR - XML import'!$A172,1)-2)))","v":0},{"$f":"IF(ISERROR(FIND(AF$3,'CFR - XML import'!$A172)),0,VALUE(MID('CFR - XML import'!$A172,SEARCH(\">\",'CFR - XML import'!$A172,1)+1,SEARCH(\"/\",'CFR - XML import'!$A172,1)-SEARCH(\">\",'CFR - XML import'!$A172,1)-2)))","v":0},{"$f":"IF(ISERROR(FIND(AG$3,'CFR - XML import'!$A172)),0,VALUE(MID('CFR - XML import'!$A172,SEARCH(\">\",'CFR - XML import'!$A172,1)+1,SEARCH(\"/\",'CFR - XML import'!$A172,1)-SEARCH(\">\",'CFR - XML import'!$A172,1)-2)))","v":0},{"$f":"IF(ISERROR(FIND(AH$3,'CFR - XML import'!$A172)),0,VALUE(MID('CFR - XML import'!$A172,SEARCH(\">\",'CFR - XML import'!$A172,1)+1,SEARCH(\"/\",'CFR - XML import'!$A172,1)-SEARCH(\">\",'CFR - XML import'!$A172,1)-2)))","v":0},{"$f":"IF(ISERROR(FIND(AI$3,'CFR - XML import'!$A172)),0,VALUE(MID('CFR - XML import'!$A172,SEARCH(\">\",'CFR - XML import'!$A172,1)+1,SEARCH(\"/\",'CFR - XML import'!$A172,1)-SEARCH(\">\",'CFR - XML import'!$A172,1)-2)))","v":0},{"$f":"IF(ISERROR(FIND(AJ$3,'CFR - XML import'!$A172)),0,VALUE(MID('CFR - XML import'!$A172,SEARCH(\">\",'CFR - XML import'!$A172,1)+1,SEARCH(\"/\",'CFR - XML import'!$A172,1)-SEARCH(\">\",'CFR - XML import'!$A172,1)-2)))","v":0},{"$f":"IF(ISERROR(FIND(AK$3,'CFR - XML import'!$A172)),0,VALUE(MID('CFR - XML import'!$A172,SEARCH(\">\",'CFR - XML import'!$A172,1)+1,SEARCH(\"/\",'CFR - XML import'!$A172,1)-SEARCH(\">\",'CFR - XML import'!$A172,1)-2)))","v":0},{"$f":"IF(ISERROR(FIND(AL$3,'CFR - XML import'!$A172)),0,VALUE(MID('CFR - XML import'!$A172,SEARCH(\">\",'CFR - XML import'!$A172,1)+1,SEARCH(\"/\",'CFR - XML import'!$A172,1)-SEARCH(\">\",'CFR - XML import'!$A172,1)-2)))","v":0},{"$f":"IF(ISERROR(FIND(AM$3,'CFR - XML import'!$A172)),0,VALUE(MID('CFR - XML import'!$A172,SEARCH(\">\",'CFR - XML import'!$A172,1)+1,SEARCH(\"/\",'CFR - XML import'!$A172,1)-SEARCH(\">\",'CFR - XML import'!$A172,1)-2)))","v":0},{"$f":"IF(ISERROR(FIND(AN$3,'CFR - XML import'!$A172)),0,VALUE(MID('CFR - XML import'!$A172,SEARCH(\">\",'CFR - XML import'!$A172,1)+1,SEARCH(\"/\",'CFR - XML import'!$A172,1)-SEARCH(\">\",'CFR - XML import'!$A172,1)-2)))","v":0},{"$f":"IF(ISERROR(FIND(AO$3,'CFR - XML import'!$A172)),0,VALUE(MID('CFR - XML import'!$A172,SEARCH(\">\",'CFR - XML import'!$A172,1)+1,SEARCH(\"/\",'CFR - XML import'!$A172,1)-SEARCH(\">\",'CFR - XML import'!$A172,1)-2)))","v":0},{"$f":"IF(ISERROR(FIND(AP$3,'CFR - XML import'!$A172)),0,VALUE(MID('CFR - XML import'!$A172,SEARCH(\">\",'CFR - XML import'!$A172,1)+1,SEARCH(\"/\",'CFR - XML import'!$A172,1)-SEARCH(\">\",'CFR - XML import'!$A172,1)-2)))","v":0},{"$f":"IF(ISERROR(FIND(AQ$3,'CFR - XML import'!$A172)),0,VALUE(MID('CFR - XML import'!$A172,SEARCH(\">\",'CFR - XML import'!$A172,1)+1,SEARCH(\"/\",'CFR - XML import'!$A172,1)-SEARCH(\">\",'CFR - XML import'!$A172,1)-2)))","v":0},{"$f":"IF(ISERROR(FIND(AR$3,'CFR - XML import'!$A172)),0,VALUE(MID('CFR - XML import'!$A172,SEARCH(\">\",'CFR - XML import'!$A172,1)+1,SEARCH(\"/\",'CFR - XML import'!$A172,1)-SEARCH(\">\",'CFR - XML import'!$A172,1)-2)))","v":0},{"$f":"IF(ISERROR(FIND(AS$3,'CFR - XML import'!$A172)),0,VALUE(MID('CFR - XML import'!$A172,SEARCH(\">\",'CFR - XML import'!$A172,1)+1,SEARCH(\"/\",'CFR - XML import'!$A172,1)-SEARCH(\">\",'CFR - XML import'!$A172,1)-2)))","v":0},{"$f":"IF(ISERROR(FIND(AT$3,'CFR - XML import'!$A172)),0,VALUE(MID('CFR - XML import'!$A172,SEARCH(\">\",'CFR - XML import'!$A172,1)+1,SEARCH(\"/\",'CFR - XML import'!$A172,1)-SEARCH(\">\",'CFR - XML import'!$A172,1)-2)))","v":0},{"$f":"IF(ISERROR(FIND(AU$3,'CFR - XML import'!$A172)),0,VALUE(MID('CFR - XML import'!$A172,SEARCH(\">\",'CFR - XML import'!$A172,1)+1,SEARCH(\"/\",'CFR - XML import'!$A172,1)-SEARCH(\">\",'CFR - XML import'!$A172,1)-2)))","v":0},{"$f":"IF(ISERROR(FIND(AV$3,'CFR - XML import'!$A172)),0,VALUE(MID('CFR - XML import'!$A172,SEARCH(\">\",'CFR - XML import'!$A172,1)+1,SEARCH(\"/\",'CFR - XML import'!$A172,1)-SEARCH(\">\",'CFR - XML import'!$A172,1)-2)))","v":0},{"$f":"IF(ISERROR(FIND(AW$3,'CFR - XML import'!$A172)),0,VALUE(MID('CFR - XML import'!$A172,SEARCH(\">\",'CFR - XML import'!$A172,1)+1,SEARCH(\"/\",'CFR - XML import'!$A172,1)-SEARCH(\">\",'CFR - XML import'!$A172,1)-2)))","v":0},{"$f":"IF(ISERROR(FIND(AX$3,'CFR - XML import'!$A172)),0,VALUE(MID('CFR - XML import'!$A172,SEARCH(\">\",'CFR - XML import'!$A172,1)+1,SEARCH(\"/\",'CFR - XML import'!$A172,1)-SEARCH(\">\",'CFR - XML import'!$A172,1)-2)))","v":0},{"$f":"IF(ISERROR(FIND(AY$3,'CFR - XML import'!$A172)),0,VALUE(MID('CFR - XML import'!$A172,SEARCH(\">\",'CFR - XML import'!$A172,1)+1,SEARCH(\"/\",'CFR - XML import'!$A172,1)-SEARCH(\">\",'CFR - XML import'!$A172,1)-2)))","v":0},{"$f":"IF(ISERROR(FIND(AZ$3,'CFR - XML import'!$A172)),0,VALUE(MID('CFR - XML import'!$A172,SEARCH(\">\",'CFR - XML import'!$A172,1)+1,SEARCH(\"/\",'CFR - XML import'!$A172,1)-SEARCH(\">\",'CFR - XML import'!$A172,1)-2)))","v":0},{"$f":"IF(ISERROR(FIND(BA$3,'CFR - XML import'!$A172)),0,VALUE(MID('CFR - XML import'!$A172,SEARCH(\">\",'CFR - XML import'!$A172,1)+1,SEARCH(\"/\",'CFR - XML import'!$A172,1)-SEARCH(\">\",'CFR - XML import'!$A172,1)-2)))","v":0},{"$f":"IF(ISERROR(FIND(BB$3,'CFR - XML import'!$A172)),0,VALUE(MID('CFR - XML import'!$A172,SEARCH(\">\",'CFR - XML import'!$A172,1)+1,SEARCH(\"/\",'CFR - XML import'!$A172,1)-SEARCH(\">\",'CFR - XML import'!$A172,1)-2)))","v":0},{"$f":"IF(ISERROR(FIND(BC$3,'CFR - XML import'!$A172)),0,VALUE(MID('CFR - XML import'!$A172,SEARCH(\">\",'CFR - XML import'!$A172,1)+1,SEARCH(\"/\",'CFR - XML import'!$A172,1)-SEARCH(\">\",'CFR - XML import'!$A172,1)-2)))","v":0},{"$f":"IF(ISERROR(FIND(BD$3,'CFR - XML import'!$A172)),0,VALUE(MID('CFR - XML import'!$A172,SEARCH(\">\",'CFR - XML import'!$A172,1)+1,SEARCH(\"/\",'CFR - XML import'!$A172,1)-SEARCH(\">\",'CFR - XML import'!$A172,1)-2)))","v":0},{"$f":"IF(ISERROR(FIND(BE$3,'CFR - XML import'!$A172)),0,VALUE(MID('CFR - XML import'!$A172,SEARCH(\">\",'CFR - XML import'!$A172,1)+1,SEARCH(\"/\",'CFR - XML import'!$A172,1)-SEARCH(\">\",'CFR - XML import'!$A172,1)-2)))","v":0},{"$f":"IF(ISERROR(FIND(BF$3,'CFR - XML import'!$A172)),0,VALUE(MID('CFR - XML import'!$A172,SEARCH(\">\",'CFR - XML import'!$A172,1)+1,SEARCH(\"/\",'CFR - XML import'!$A172,1)-SEARCH(\">\",'CFR - XML import'!$A172,1)-2)))","v":0},{"$f":"IF(ISERROR(FIND(BG$3,'CFR - XML import'!$A172)),0,VALUE(MID('CFR - XML import'!$A172,SEARCH(\">\",'CFR - XML import'!$A172,1)+1,SEARCH(\"/\",'CFR - XML import'!$A172,1)-SEARCH(\">\",'CFR - XML import'!$A172,1)-2)))","v":0},{"$f":"IF(ISERROR(FIND(BH$3,'CFR - XML import'!$A172)),0,VALUE(MID('CFR - XML import'!$A172,SEARCH(\">\",'CFR - XML import'!$A172,1)+1,SEARCH(\"/\",'CFR - XML import'!$A172,1)-SEARCH(\">\",'CFR - XML import'!$A172,1)-2)))","v":0},{"$f":"IF(ISERROR(FIND(BI$3,'CFR - XML import'!$A172)),0,VALUE(MID('CFR - XML import'!$A172,SEARCH(\">\",'CFR - XML import'!$A172,1)+1,SEARCH(\"/\",'CFR - XML import'!$A172,1)-SEARCH(\">\",'CFR - XML import'!$A172,1)-2)))","v":0},{"$f":"IF(ISERROR(FIND(BJ$3,'CFR - XML import'!$A172)),0,VALUE(MID('CFR - XML import'!$A172,SEARCH(\">\",'CFR - XML import'!$A172,1)+1,SEARCH(\"/\",'CFR - XML import'!$A172,1)-SEARCH(\">\",'CFR - XML import'!$A172,1)-2)))","v":0},{"$f":"IF(ISERROR(FIND(BK$3,'CFR - XML import'!$A172)),0,VALUE(MID('CFR - XML import'!$A172,SEARCH(\">\",'CFR - XML import'!$A172,1)+1,SEARCH(\"/\",'CFR - XML import'!$A172,1)-SEARCH(\">\",'CFR - XML import'!$A172,1)-2)))","v":0},{"$f":"IF(ISERROR(FIND(BL$3,'CFR - XML import'!$A172)),0,VALUE(MID('CFR - XML import'!$A172,SEARCH(\">\",'CFR - XML import'!$A172,1)+1,SEARCH(\"/\",'CFR - XML import'!$A172,1)-SEARCH(\">\",'CFR - XML import'!$A172,1)-2)))","v":0},{"$f":"IF(ISERROR(FIND(BM$3,'CFR - XML import'!$A172)),0,VALUE(MID('CFR - XML import'!$A172,SEARCH(\">\",'CFR - XML import'!$A172,1)+1,SEARCH(\"/\",'CFR - XML import'!$A172,1)-SEARCH(\">\",'CFR - XML import'!$A172,1)-2)))","v":0},{"$f":"IF(ISERROR(FIND(BN$3,'CFR - XML import'!$A172)),0,VALUE(MID('CFR - XML import'!$A172,SEARCH(\">\",'CFR - XML import'!$A172,1)+1,SEARCH(\"/\",'CFR - XML import'!$A172,1)-SEARCH(\">\",'CFR - XML import'!$A172,1)-2)))","v":0},{"$f":"IF(ISERROR(FIND(BO$3,'CFR - XML import'!$A172)),0,VALUE(MID('CFR - XML import'!$A172,SEARCH(\">\",'CFR - XML import'!$A172,1)+1,SEARCH(\"/\",'CFR - XML import'!$A172,1)-SEARCH(\">\",'CFR - XML import'!$A172,1)-2)))","v":0},{"$f":"IF(ISERROR(FIND(BP$3,'CFR - XML import'!$A172)),0,VALUE(MID('CFR - XML import'!$A172,SEARCH(\">\",'CFR - XML import'!$A172,1)+1,SEARCH(\"/\",'CFR - XML import'!$A172,1)-SEARCH(\">\",'CFR - XML import'!$A172,1)-2)))","v":0},{"$f":"IF(ISERROR(FIND(BQ$3,'CFR - XML import'!$A172)),0,VALUE(MID('CFR - XML import'!$A172,SEARCH(\">\",'CFR - XML import'!$A172,1)+1,SEARCH(\"/\",'CFR - XML import'!$A172,1)-SEARCH(\">\",'CFR - XML import'!$A172,1)-2)))","v":0},{"$f":"IF(ISERROR(FIND(BR$3,'CFR - XML import'!$A172)),0,VALUE(MID('CFR - XML import'!$A172,SEARCH(\">\",'CFR - XML import'!$A172,1)+1,SEARCH(\"/\",'CFR - XML import'!$A172,1)-SEARCH(\">\",'CFR - XML import'!$A172,1)-2)))","v":0},{"$f":"IF(ISERROR(FIND(BS$3,'CFR - XML import'!$A172)),0,VALUE(MID('CFR - XML import'!$A172,SEARCH(\">\",'CFR - XML import'!$A172,1)+1,SEARCH(\"/\",'CFR - XML import'!$A172,1)-SEARCH(\">\",'CFR - XML import'!$A172,1)-2)))","v":0},{"$f":"IF(ISERROR(FIND(BT$3,'CFR - XML import'!$A172)),0,VALUE(MID('CFR - XML import'!$A172,SEARCH(\">\",'CFR - XML import'!$A172,1)+1,SEARCH(\"/\",'CFR - XML import'!$A172,1)-SEARCH(\">\",'CFR - XML import'!$A172,1)-2)))","v":0},{"$f":"IF(ISERROR(FIND(BU$3,'CFR - XML import'!$A172)),0,VALUE(MID('CFR - XML import'!$A172,SEARCH(\">\",'CFR - XML import'!$A172,1)+1,SEARCH(\"/\",'CFR - XML import'!$A172,1)-SEARCH(\">\",'CFR - XML import'!$A172,1)-2)))","v":0},{"$f":"IF(ISERROR(FIND(BV$3,'CFR - XML import'!$A172)),0,VALUE(MID('CFR - XML import'!$A172,SEARCH(\">\",'CFR - XML import'!$A172,1)+1,SEARCH(\"/\",'CFR - XML import'!$A172,1)-SEARCH(\">\",'CFR - XML import'!$A172,1)-2)))","v":0},{"$f":"IF(ISERROR(FIND(BW$3,'CFR - XML import'!$A172)),0,VALUE(MID('CFR - XML import'!$A172,SEARCH(\">\",'CFR - XML import'!$A172,1)+1,SEARCH(\"/\",'CFR - XML import'!$A172,1)-SEARCH(\">\",'CFR - XML import'!$A172,1)-2)))","v":0},{"$f":"IF(ISERROR(FIND(BX$3,'CFR - XML import'!$A172)),0,VALUE(MID('CFR - XML import'!$A172,SEARCH(\">\",'CFR - XML import'!$A172,1)+1,SEARCH(\"/\",'CFR - XML import'!$A172,1)-SEARCH(\">\",'CFR - XML import'!$A172,1)-2)))","v":0},{"$f":"IF(ISERROR(FIND(BY$3,'CFR - XML import'!$A172)),0,VALUE(MID('CFR - XML import'!$A172,SEARCH(\">\",'CFR - XML import'!$A172,1)+1,SEARCH(\"/\",'CFR - XML import'!$A172,1)-SEARCH(\">\",'CFR - XML import'!$A172,1)-2)))","v":0},{"$f":"IF(ISERROR(FIND(BZ$3,'CFR - XML import'!$A172)),0,VALUE(MID('CFR - XML import'!$A172,SEARCH(\">\",'CFR - XML import'!$A172,1)+1,SEARCH(\"/\",'CFR - XML import'!$A172,1)-SEARCH(\">\",'CFR - XML import'!$A172,1)-2)))","v":0},null,null,null,null,null,null,{"$f":"IF(ISERROR(IF(MID('CFR - XML import'!$A172,LEN($CF$4)+1,LEN('CFR - XML import'!$A172)-(2*LEN($CF$4)+1))=\"RMMS\",1,IF(MID('CFR - XML import'!$A172,LEN(\"    <InputSystem>\")+1,LEN('CFR - XML import'!$A172)-(LEN(\"    <InputSystem>\")+LEN($CF$4)+1))=\"SIMS\",2,0))),0,IF(MID('CFR - XML import'!$A172,LEN($CF$4)+1,LEN('CFR - XML import'!$A172)-(2*LEN($CF$4)+1))=\"RMMS\",1,IF(MID('CFR - XML import'!$A172,LEN(\"    <InputSystem>\")+1,LEN('CFR - XML import'!$A172)-(LEN(\"    <InputSystem>\")+LEN($CF$4)+1))=\"SIMS\",2,0)))","v":0},{"$f":"IF(ISERROR(FIND(CH$3,'CFR - XML import'!$A172)),0,MID('CFR - XML import'!$A172,SEARCH(\">\",'CFR - XML import'!$A172,1)+1,SEARCH(\"/\",'CFR - XML import'!$A172,1)-SEARCH(\">\",'CFR - XML import'!$A172,1)-2))","v":0},{"$f":"IF(ISERROR(FIND(CI$3,'CFR - XML import'!$A172)),0,MID('CFR - XML import'!$A172,SEARCH(\">\",'CFR - XML import'!$A172,1)+1,SEARCH(\"/\",'CFR - XML import'!$A172,1)-SEARCH(\">\",'CFR - XML import'!$A172,1)-2))","v":0},{"$f":"IF(ISERROR(FIND(CJ$3,'CFR - XML import'!$A172)),0,MID('CFR - XML import'!$A172,SEARCH(\">\",'CFR - XML import'!$A172,1)+1,SEARCH(\"/\",'CFR - XML import'!$A172,1)-SEARCH(\">\",'CFR - XML import'!$A172,1)-2))","v":0},{"$f":"IF(ISERROR(FIND(CK$3,'CFR - XML import'!$A172)),0,MID('CFR - XML import'!$A172,SEARCH(\">\",'CFR - XML import'!$A172,1)+1,SEARCH(\"/\",'CFR - XML import'!$A172,1)-SEARCH(\">\",'CFR - XML import'!$A172,1)-2))","v":0},{"$f":"IF(ISERROR(FIND(CL$3,'CFR - XML import'!$A172)),0,MID('CFR - XML import'!$A172,SEARCH(\">\",'CFR - XML import'!$A172,1)+1,SEARCH(\"/\",'CFR - XML import'!$A172,1)-SEARCH(\">\",'CFR - XML import'!$A172,1)-2))","v":0}]
[{"$f":"IF(AND('CFR - XML import'!A173<>\"\",LEFT('CFR - XML import'!A173,1)<>\"<\",LEFT('CFR - XML import'!A173,3)<>\"  <\",LEFT('CFR - XML import'!A173,5)<>\"    <\",LEFT('CFR - XML import'!A173,7)<>\"      <\",LEFT('CFR - XML import'!A173,9)<>\"        <\",$B$1=\"SIMS\"),'CFR - XML import'!A173,IF(AND(LEFT('CFR - XML import'!A173,9)=\"<Details>\",$B$1=\"RM\"),'CFR - XML import'!A173,\"\"))","v":""},{"$f":"IF(ISERROR(FIND(B$3,'CFR - XML import'!$A173)),0,VALUE(MID('CFR - XML import'!$A173,SEARCH(\">\",'CFR - XML import'!$A173,1)+1,SEARCH(\"/\",'CFR - XML import'!$A173,1)-SEARCH(\">\",'CFR - XML import'!$A173,1)-2)))","v":0},null,{"$f":"IF(ISERROR(FIND(D$3,'CFR - XML import'!$A173)),0,MID('CFR - XML import'!$A173,SEARCH(\">\",'CFR - XML import'!$A173,1)+1,SEARCH(\"/\",'CFR - XML import'!$A173,1)-SEARCH(\">\",'CFR - XML import'!$A173,1)-2))","v":0},{"$f":"IF(ISERROR(FIND(E$3,'CFR - XML import'!$A173)),0,MID('CFR - XML import'!$A173,SEARCH(\">\",'CFR - XML import'!$A173,1)+1,SEARCH(\"/\",'CFR - XML import'!$A173,1)-SEARCH(\">\",'CFR - XML import'!$A173,1)-2))","v":0},{"$f":"IF($B$1=\"SIMS\",IF(ISERROR(FIND(F$3,'CFR - XML import'!$A173)),0,VALUE(MID('CFR - XML import'!$A173,15,10))),IF(ISERROR(FIND(F$3,'CFR - XML import'!$A173)),0,VALUE(MID('CFR - XML import'!$A173,11,10))))","v":"00:00:00"},{"$f":"IF(ISERROR(FIND(G$3,'CFR - XML import'!$A173)),0,VALUE(MID('CFR - XML import'!$A173,SEARCH(\">\",'CFR - XML import'!$A173,1)+1,SEARCH(\"/\",'CFR - XML import'!$A173,1)-SEARCH(\">\",'CFR - XML import'!$A173,1)-2)))","v":0},{"$f":"IF(ISERROR(FIND(H$3,'CFR - XML import'!$A173)),0,VALUE(MID('CFR - XML import'!$A173,SEARCH(\">\",'CFR - XML import'!$A173,1)+1,SEARCH(\"/\",'CFR - XML import'!$A173,1)-SEARCH(\">\",'CFR - XML import'!$A173,1)-2)))","v":0},{"$f":"IF(ISERROR(FIND(I$3,'CFR - XML import'!$A173)),0,VALUE(MID('CFR - XML import'!$A173,SEARCH(\">\",'CFR - XML import'!$A173,1)+1,SEARCH(\"/\",'CFR - XML import'!$A173,1)-SEARCH(\">\",'CFR - XML import'!$A173,1)-2)))","v":0},{"$f":"IF(ISERROR(FIND(J$3,'CFR - XML import'!$A173)),0,VALUE(MID('CFR - XML import'!$A173,SEARCH(\">\",'CFR - XML import'!$A173,1)+1,SEARCH(\"/\",'CFR - XML import'!$A173,1)-SEARCH(\">\",'CFR - XML import'!$A173,1)-2)))","v":0},{"$f":"IF(ISERROR(FIND(K$3,'CFR - XML import'!$A173)),0,VALUE(MID('CFR - XML import'!$A173,SEARCH(\">\",'CFR - XML import'!$A173,1)+1,SEARCH(\"/\",'CFR - XML import'!$A173,1)-SEARCH(\">\",'CFR - XML import'!$A173,1)-2)))","v":0},{"$f":"IF(ISERROR(FIND(L$3,'CFR - XML import'!$A173)),0,VALUE(MID('CFR - XML import'!$A173,SEARCH(\">\",'CFR - XML import'!$A173,1)+1,SEARCH(\"/\",'CFR - XML import'!$A173,1)-SEARCH(\">\",'CFR - XML import'!$A173,1)-2)))","v":0},{"$f":"IF(ISERROR(FIND(M$3,'CFR - XML import'!$A173)),0,VALUE(MID('CFR - XML import'!$A173,SEARCH(\">\",'CFR - XML import'!$A173,1)+1,SEARCH(\"/\",'CFR - XML import'!$A173,1)-SEARCH(\">\",'CFR - XML import'!$A173,1)-2)))","v":0},{"$f":"IF(ISERROR(FIND(N$3,'CFR - XML import'!$A173)),0,VALUE(MID('CFR - XML import'!$A173,SEARCH(\">\",'CFR - XML import'!$A173,1)+1,SEARCH(\"/\",'CFR - XML import'!$A173,1)-SEARCH(\">\",'CFR - XML import'!$A173,1)-2)))","v":0},{"$f":"IF(ISERROR(FIND(O$3,'CFR - XML import'!$A173)),0,VALUE(MID('CFR - XML import'!$A173,SEARCH(\">\",'CFR - XML import'!$A173,1)+1,SEARCH(\"/\",'CFR - XML import'!$A173,1)-SEARCH(\">\",'CFR - XML import'!$A173,1)-2)))","v":0},{"$f":"IF(ISERROR(FIND(P$3,'CFR - XML import'!$A173)),0,VALUE(MID('CFR - XML import'!$A173,SEARCH(\">\",'CFR - XML import'!$A173,1)+1,SEARCH(\"/\",'CFR - XML import'!$A173,1)-SEARCH(\">\",'CFR - XML import'!$A173,1)-2)))","v":0},{"$f":"IF(ISERROR(FIND(Q$3,'CFR - XML import'!$A173)),0,VALUE(MID('CFR - XML import'!$A173,SEARCH(\">\",'CFR - XML import'!$A173,1)+1,SEARCH(\"/\",'CFR - XML import'!$A173,1)-SEARCH(\">\",'CFR - XML import'!$A173,1)-2)))","v":0},{"$f":"IF(ISERROR(FIND(R$3,'CFR - XML import'!$A173)),0,VALUE(MID('CFR - XML import'!$A173,SEARCH(\">\",'CFR - XML import'!$A173,1)+1,SEARCH(\"/\",'CFR - XML import'!$A173,1)-SEARCH(\">\",'CFR - XML import'!$A173,1)-2)))","v":0},{"$f":"IF(ISERROR(FIND(S$3,'CFR - XML import'!$A173)),0,VALUE(MID('CFR - XML import'!$A173,SEARCH(\">\",'CFR - XML import'!$A173,1)+1,SEARCH(\"/\",'CFR - XML import'!$A173,1)-SEARCH(\">\",'CFR - XML import'!$A173,1)-2)))","v":0},{"$f":"IF(ISERROR(FIND(T$3,'CFR - XML import'!$A173)),0,VALUE(MID('CFR - XML import'!$A173,SEARCH(\">\",'CFR - XML import'!$A173,1)+1,SEARCH(\"/\",'CFR - XML import'!$A173,1)-SEARCH(\">\",'CFR - XML import'!$A173,1)-2)))","v":0},{"$f":"IF(ISERROR(FIND(U$3,'CFR - XML import'!$A173)),0,VALUE(MID('CFR - XML import'!$A173,SEARCH(\">\",'CFR - XML import'!$A173,1)+1,SEARCH(\"/\",'CFR - XML import'!$A173,1)-SEARCH(\">\",'CFR - XML import'!$A173,1)-2)))","v":0},{"$f":"IF(ISERROR(FIND(V$3,'CFR - XML import'!$A173)),0,VALUE(MID('CFR - XML import'!$A173,SEARCH(\">\",'CFR - XML import'!$A173,1)+1,SEARCH(\"/\",'CFR - XML import'!$A173,1)-SEARCH(\">\",'CFR - XML import'!$A173,1)-2)))","v":0},{"$f":"IF(ISERROR(FIND(W$3,'CFR - XML import'!$A173)),0,VALUE(MID('CFR - XML import'!$A173,SEARCH(\">\",'CFR - XML import'!$A173,1)+1,SEARCH(\"/\",'CFR - XML import'!$A173,1)-SEARCH(\">\",'CFR - XML import'!$A173,1)-2)))","v":0},null,{"$f":"IF(ISERROR(FIND(Y$3,'CFR - XML import'!$A173)),0,VALUE(MID('CFR - XML import'!$A173,SEARCH(\">\",'CFR - XML import'!$A173,1)+1,SEARCH(\"/\",'CFR - XML import'!$A173,1)-SEARCH(\">\",'CFR - XML import'!$A173,1)-2)))","v":0},{"$f":"IF(ISERROR(FIND(Z$3,'CFR - XML import'!$A173)),0,VALUE(MID('CFR - XML import'!$A173,SEARCH(\">\",'CFR - XML import'!$A173,1)+1,SEARCH(\"/\",'CFR - XML import'!$A173,1)-SEARCH(\">\",'CFR - XML import'!$A173,1)-2)))","v":0},{"$f":"IF(ISERROR(FIND(AA$3,'CFR - XML import'!$A173)),0,VALUE(MID('CFR - XML import'!$A173,SEARCH(\">\",'CFR - XML import'!$A173,1)+1,SEARCH(\"/\",'CFR - XML import'!$A173,1)-SEARCH(\">\",'CFR - XML import'!$A173,1)-2)))","v":0},{"$f":"IF(ISERROR(FIND(AB$3,'CFR - XML import'!$A173)),0,VALUE(MID('CFR - XML import'!$A173,SEARCH(\">\",'CFR - XML import'!$A173,1)+1,SEARCH(\"/\",'CFR - XML import'!$A173,1)-SEARCH(\">\",'CFR - XML import'!$A173,1)-2)))","v":0},{"$f":"IF(ISERROR(FIND(AC$3,'CFR - XML import'!$A173)),0,VALUE(MID('CFR - XML import'!$A173,SEARCH(\">\",'CFR - XML import'!$A173,1)+1,SEARCH(\"/\",'CFR - XML import'!$A173,1)-SEARCH(\">\",'CFR - XML import'!$A173,1)-2)))","v":0},{"$f":"IF(ISERROR(FIND(AD$3,'CFR - XML import'!$A173)),0,VALUE(MID('CFR - XML import'!$A173,SEARCH(\">\",'CFR - XML import'!$A173,1)+1,SEARCH(\"/\",'CFR - XML import'!$A173,1)-SEARCH(\">\",'CFR - XML import'!$A173,1)-2)))","v":0},{"$f":"IF(ISERROR(FIND(AE$3,'CFR - XML import'!$A173)),0,VALUE(MID('CFR - XML import'!$A173,SEARCH(\">\",'CFR - XML import'!$A173,1)+1,SEARCH(\"/\",'CFR - XML import'!$A173,1)-SEARCH(\">\",'CFR - XML import'!$A173,1)-2)))","v":0},{"$f":"IF(ISERROR(FIND(AF$3,'CFR - XML import'!$A173)),0,VALUE(MID('CFR - XML import'!$A173,SEARCH(\">\",'CFR - XML import'!$A173,1)+1,SEARCH(\"/\",'CFR - XML import'!$A173,1)-SEARCH(\">\",'CFR - XML import'!$A173,1)-2)))","v":0},{"$f":"IF(ISERROR(FIND(AG$3,'CFR - XML import'!$A173)),0,VALUE(MID('CFR - XML import'!$A173,SEARCH(\">\",'CFR - XML import'!$A173,1)+1,SEARCH(\"/\",'CFR - XML import'!$A173,1)-SEARCH(\">\",'CFR - XML import'!$A173,1)-2)))","v":0},{"$f":"IF(ISERROR(FIND(AH$3,'CFR - XML import'!$A173)),0,VALUE(MID('CFR - XML import'!$A173,SEARCH(\">\",'CFR - XML import'!$A173,1)+1,SEARCH(\"/\",'CFR - XML import'!$A173,1)-SEARCH(\">\",'CFR - XML import'!$A173,1)-2)))","v":0},{"$f":"IF(ISERROR(FIND(AI$3,'CFR - XML import'!$A173)),0,VALUE(MID('CFR - XML import'!$A173,SEARCH(\">\",'CFR - XML import'!$A173,1)+1,SEARCH(\"/\",'CFR - XML import'!$A173,1)-SEARCH(\">\",'CFR - XML import'!$A173,1)-2)))","v":0},{"$f":"IF(ISERROR(FIND(AJ$3,'CFR - XML import'!$A173)),0,VALUE(MID('CFR - XML import'!$A173,SEARCH(\">\",'CFR - XML import'!$A173,1)+1,SEARCH(\"/\",'CFR - XML import'!$A173,1)-SEARCH(\">\",'CFR - XML import'!$A173,1)-2)))","v":0},{"$f":"IF(ISERROR(FIND(AK$3,'CFR - XML import'!$A173)),0,VALUE(MID('CFR - XML import'!$A173,SEARCH(\">\",'CFR - XML import'!$A173,1)+1,SEARCH(\"/\",'CFR - XML import'!$A173,1)-SEARCH(\">\",'CFR - XML import'!$A173,1)-2)))","v":0},{"$f":"IF(ISERROR(FIND(AL$3,'CFR - XML import'!$A173)),0,VALUE(MID('CFR - XML import'!$A173,SEARCH(\">\",'CFR - XML import'!$A173,1)+1,SEARCH(\"/\",'CFR - XML import'!$A173,1)-SEARCH(\">\",'CFR - XML import'!$A173,1)-2)))","v":0},{"$f":"IF(ISERROR(FIND(AM$3,'CFR - XML import'!$A173)),0,VALUE(MID('CFR - XML import'!$A173,SEARCH(\">\",'CFR - XML import'!$A173,1)+1,SEARCH(\"/\",'CFR - XML import'!$A173,1)-SEARCH(\">\",'CFR - XML import'!$A173,1)-2)))","v":0},{"$f":"IF(ISERROR(FIND(AN$3,'CFR - XML import'!$A173)),0,VALUE(MID('CFR - XML import'!$A173,SEARCH(\">\",'CFR - XML import'!$A173,1)+1,SEARCH(\"/\",'CFR - XML import'!$A173,1)-SEARCH(\">\",'CFR - XML import'!$A173,1)-2)))","v":0},{"$f":"IF(ISERROR(FIND(AO$3,'CFR - XML import'!$A173)),0,VALUE(MID('CFR - XML import'!$A173,SEARCH(\">\",'CFR - XML import'!$A173,1)+1,SEARCH(\"/\",'CFR - XML import'!$A173,1)-SEARCH(\">\",'CFR - XML import'!$A173,1)-2)))","v":0},{"$f":"IF(ISERROR(FIND(AP$3,'CFR - XML import'!$A173)),0,VALUE(MID('CFR - XML import'!$A173,SEARCH(\">\",'CFR - XML import'!$A173,1)+1,SEARCH(\"/\",'CFR - XML import'!$A173,1)-SEARCH(\">\",'CFR - XML import'!$A173,1)-2)))","v":0},{"$f":"IF(ISERROR(FIND(AQ$3,'CFR - XML import'!$A173)),0,VALUE(MID('CFR - XML import'!$A173,SEARCH(\">\",'CFR - XML import'!$A173,1)+1,SEARCH(\"/\",'CFR - XML import'!$A173,1)-SEARCH(\">\",'CFR - XML import'!$A173,1)-2)))","v":0},{"$f":"IF(ISERROR(FIND(AR$3,'CFR - XML import'!$A173)),0,VALUE(MID('CFR - XML import'!$A173,SEARCH(\">\",'CFR - XML import'!$A173,1)+1,SEARCH(\"/\",'CFR - XML import'!$A173,1)-SEARCH(\">\",'CFR - XML import'!$A173,1)-2)))","v":0},{"$f":"IF(ISERROR(FIND(AS$3,'CFR - XML import'!$A173)),0,VALUE(MID('CFR - XML import'!$A173,SEARCH(\">\",'CFR - XML import'!$A173,1)+1,SEARCH(\"/\",'CFR - XML import'!$A173,1)-SEARCH(\">\",'CFR - XML import'!$A173,1)-2)))","v":0},{"$f":"IF(ISERROR(FIND(AT$3,'CFR - XML import'!$A173)),0,VALUE(MID('CFR - XML import'!$A173,SEARCH(\">\",'CFR - XML import'!$A173,1)+1,SEARCH(\"/\",'CFR - XML import'!$A173,1)-SEARCH(\">\",'CFR - XML import'!$A173,1)-2)))","v":0},{"$f":"IF(ISERROR(FIND(AU$3,'CFR - XML import'!$A173)),0,VALUE(MID('CFR - XML import'!$A173,SEARCH(\">\",'CFR - XML import'!$A173,1)+1,SEARCH(\"/\",'CFR - XML import'!$A173,1)-SEARCH(\">\",'CFR - XML import'!$A173,1)-2)))","v":0},{"$f":"IF(ISERROR(FIND(AV$3,'CFR - XML import'!$A173)),0,VALUE(MID('CFR - XML import'!$A173,SEARCH(\">\",'CFR - XML import'!$A173,1)+1,SEARCH(\"/\",'CFR - XML import'!$A173,1)-SEARCH(\">\",'CFR - XML import'!$A173,1)-2)))","v":0},{"$f":"IF(ISERROR(FIND(AW$3,'CFR - XML import'!$A173)),0,VALUE(MID('CFR - XML import'!$A173,SEARCH(\">\",'CFR - XML import'!$A173,1)+1,SEARCH(\"/\",'CFR - XML import'!$A173,1)-SEARCH(\">\",'CFR - XML import'!$A173,1)-2)))","v":0},{"$f":"IF(ISERROR(FIND(AX$3,'CFR - XML import'!$A173)),0,VALUE(MID('CFR - XML import'!$A173,SEARCH(\">\",'CFR - XML import'!$A173,1)+1,SEARCH(\"/\",'CFR - XML import'!$A173,1)-SEARCH(\">\",'CFR - XML import'!$A173,1)-2)))","v":0},{"$f":"IF(ISERROR(FIND(AY$3,'CFR - XML import'!$A173)),0,VALUE(MID('CFR - XML import'!$A173,SEARCH(\">\",'CFR - XML import'!$A173,1)+1,SEARCH(\"/\",'CFR - XML import'!$A173,1)-SEARCH(\">\",'CFR - XML import'!$A173,1)-2)))","v":0},{"$f":"IF(ISERROR(FIND(AZ$3,'CFR - XML import'!$A173)),0,VALUE(MID('CFR - XML import'!$A173,SEARCH(\">\",'CFR - XML import'!$A173,1)+1,SEARCH(\"/\",'CFR - XML import'!$A173,1)-SEARCH(\">\",'CFR - XML import'!$A173,1)-2)))","v":0},{"$f":"IF(ISERROR(FIND(BA$3,'CFR - XML import'!$A173)),0,VALUE(MID('CFR - XML import'!$A173,SEARCH(\">\",'CFR - XML import'!$A173,1)+1,SEARCH(\"/\",'CFR - XML import'!$A173,1)-SEARCH(\">\",'CFR - XML import'!$A173,1)-2)))","v":0},{"$f":"IF(ISERROR(FIND(BB$3,'CFR - XML import'!$A173)),0,VALUE(MID('CFR - XML import'!$A173,SEARCH(\">\",'CFR - XML import'!$A173,1)+1,SEARCH(\"/\",'CFR - XML import'!$A173,1)-SEARCH(\">\",'CFR - XML import'!$A173,1)-2)))","v":0},{"$f":"IF(ISERROR(FIND(BC$3,'CFR - XML import'!$A173)),0,VALUE(MID('CFR - XML import'!$A173,SEARCH(\">\",'CFR - XML import'!$A173,1)+1,SEARCH(\"/\",'CFR - XML import'!$A173,1)-SEARCH(\">\",'CFR - XML import'!$A173,1)-2)))","v":0},{"$f":"IF(ISERROR(FIND(BD$3,'CFR - XML import'!$A173)),0,VALUE(MID('CFR - XML import'!$A173,SEARCH(\">\",'CFR - XML import'!$A173,1)+1,SEARCH(\"/\",'CFR - XML import'!$A173,1)-SEARCH(\">\",'CFR - XML import'!$A173,1)-2)))","v":0},{"$f":"IF(ISERROR(FIND(BE$3,'CFR - XML import'!$A173)),0,VALUE(MID('CFR - XML import'!$A173,SEARCH(\">\",'CFR - XML import'!$A173,1)+1,SEARCH(\"/\",'CFR - XML import'!$A173,1)-SEARCH(\">\",'CFR - XML import'!$A173,1)-2)))","v":0},{"$f":"IF(ISERROR(FIND(BF$3,'CFR - XML import'!$A173)),0,VALUE(MID('CFR - XML import'!$A173,SEARCH(\">\",'CFR - XML import'!$A173,1)+1,SEARCH(\"/\",'CFR - XML import'!$A173,1)-SEARCH(\">\",'CFR - XML import'!$A173,1)-2)))","v":0},{"$f":"IF(ISERROR(FIND(BG$3,'CFR - XML import'!$A173)),0,VALUE(MID('CFR - XML import'!$A173,SEARCH(\">\",'CFR - XML import'!$A173,1)+1,SEARCH(\"/\",'CFR - XML import'!$A173,1)-SEARCH(\">\",'CFR - XML import'!$A173,1)-2)))","v":0},{"$f":"IF(ISERROR(FIND(BH$3,'CFR - XML import'!$A173)),0,VALUE(MID('CFR - XML import'!$A173,SEARCH(\">\",'CFR - XML import'!$A173,1)+1,SEARCH(\"/\",'CFR - XML import'!$A173,1)-SEARCH(\">\",'CFR - XML import'!$A173,1)-2)))","v":0},{"$f":"IF(ISERROR(FIND(BI$3,'CFR - XML import'!$A173)),0,VALUE(MID('CFR - XML import'!$A173,SEARCH(\">\",'CFR - XML import'!$A173,1)+1,SEARCH(\"/\",'CFR - XML import'!$A173,1)-SEARCH(\">\",'CFR - XML import'!$A173,1)-2)))","v":0},{"$f":"IF(ISERROR(FIND(BJ$3,'CFR - XML import'!$A173)),0,VALUE(MID('CFR - XML import'!$A173,SEARCH(\">\",'CFR - XML import'!$A173,1)+1,SEARCH(\"/\",'CFR - XML import'!$A173,1)-SEARCH(\">\",'CFR - XML import'!$A173,1)-2)))","v":0},{"$f":"IF(ISERROR(FIND(BK$3,'CFR - XML import'!$A173)),0,VALUE(MID('CFR - XML import'!$A173,SEARCH(\">\",'CFR - XML import'!$A173,1)+1,SEARCH(\"/\",'CFR - XML import'!$A173,1)-SEARCH(\">\",'CFR - XML import'!$A173,1)-2)))","v":0},{"$f":"IF(ISERROR(FIND(BL$3,'CFR - XML import'!$A173)),0,VALUE(MID('CFR - XML import'!$A173,SEARCH(\">\",'CFR - XML import'!$A173,1)+1,SEARCH(\"/\",'CFR - XML import'!$A173,1)-SEARCH(\">\",'CFR - XML import'!$A173,1)-2)))","v":0},{"$f":"IF(ISERROR(FIND(BM$3,'CFR - XML import'!$A173)),0,VALUE(MID('CFR - XML import'!$A173,SEARCH(\">\",'CFR - XML import'!$A173,1)+1,SEARCH(\"/\",'CFR - XML import'!$A173,1)-SEARCH(\">\",'CFR - XML import'!$A173,1)-2)))","v":0},{"$f":"IF(ISERROR(FIND(BN$3,'CFR - XML import'!$A173)),0,VALUE(MID('CFR - XML import'!$A173,SEARCH(\">\",'CFR - XML import'!$A173,1)+1,SEARCH(\"/\",'CFR - XML import'!$A173,1)-SEARCH(\">\",'CFR - XML import'!$A173,1)-2)))","v":0},{"$f":"IF(ISERROR(FIND(BO$3,'CFR - XML import'!$A173)),0,VALUE(MID('CFR - XML import'!$A173,SEARCH(\">\",'CFR - XML import'!$A173,1)+1,SEARCH(\"/\",'CFR - XML import'!$A173,1)-SEARCH(\">\",'CFR - XML import'!$A173,1)-2)))","v":0},{"$f":"IF(ISERROR(FIND(BP$3,'CFR - XML import'!$A173)),0,VALUE(MID('CFR - XML import'!$A173,SEARCH(\">\",'CFR - XML import'!$A173,1)+1,SEARCH(\"/\",'CFR - XML import'!$A173,1)-SEARCH(\">\",'CFR - XML import'!$A173,1)-2)))","v":0},{"$f":"IF(ISERROR(FIND(BQ$3,'CFR - XML import'!$A173)),0,VALUE(MID('CFR - XML import'!$A173,SEARCH(\">\",'CFR - XML import'!$A173,1)+1,SEARCH(\"/\",'CFR - XML import'!$A173,1)-SEARCH(\">\",'CFR - XML import'!$A173,1)-2)))","v":0},{"$f":"IF(ISERROR(FIND(BR$3,'CFR - XML import'!$A173)),0,VALUE(MID('CFR - XML import'!$A173,SEARCH(\">\",'CFR - XML import'!$A173,1)+1,SEARCH(\"/\",'CFR - XML import'!$A173,1)-SEARCH(\">\",'CFR - XML import'!$A173,1)-2)))","v":0},{"$f":"IF(ISERROR(FIND(BS$3,'CFR - XML import'!$A173)),0,VALUE(MID('CFR - XML import'!$A173,SEARCH(\">\",'CFR - XML import'!$A173,1)+1,SEARCH(\"/\",'CFR - XML import'!$A173,1)-SEARCH(\">\",'CFR - XML import'!$A173,1)-2)))","v":0},{"$f":"IF(ISERROR(FIND(BT$3,'CFR - XML import'!$A173)),0,VALUE(MID('CFR - XML import'!$A173,SEARCH(\">\",'CFR - XML import'!$A173,1)+1,SEARCH(\"/\",'CFR - XML import'!$A173,1)-SEARCH(\">\",'CFR - XML import'!$A173,1)-2)))","v":0},{"$f":"IF(ISERROR(FIND(BU$3,'CFR - XML import'!$A173)),0,VALUE(MID('CFR - XML import'!$A173,SEARCH(\">\",'CFR - XML import'!$A173,1)+1,SEARCH(\"/\",'CFR - XML import'!$A173,1)-SEARCH(\">\",'CFR - XML import'!$A173,1)-2)))","v":0},{"$f":"IF(ISERROR(FIND(BV$3,'CFR - XML import'!$A173)),0,VALUE(MID('CFR - XML import'!$A173,SEARCH(\">\",'CFR - XML import'!$A173,1)+1,SEARCH(\"/\",'CFR - XML import'!$A173,1)-SEARCH(\">\",'CFR - XML import'!$A173,1)-2)))","v":0},{"$f":"IF(ISERROR(FIND(BW$3,'CFR - XML import'!$A173)),0,VALUE(MID('CFR - XML import'!$A173,SEARCH(\">\",'CFR - XML import'!$A173,1)+1,SEARCH(\"/\",'CFR - XML import'!$A173,1)-SEARCH(\">\",'CFR - XML import'!$A173,1)-2)))","v":0},{"$f":"IF(ISERROR(FIND(BX$3,'CFR - XML import'!$A173)),0,VALUE(MID('CFR - XML import'!$A173,SEARCH(\">\",'CFR - XML import'!$A173,1)+1,SEARCH(\"/\",'CFR - XML import'!$A173,1)-SEARCH(\">\",'CFR - XML import'!$A173,1)-2)))","v":0},{"$f":"IF(ISERROR(FIND(BY$3,'CFR - XML import'!$A173)),0,VALUE(MID('CFR - XML import'!$A173,SEARCH(\">\",'CFR - XML import'!$A173,1)+1,SEARCH(\"/\",'CFR - XML import'!$A173,1)-SEARCH(\">\",'CFR - XML import'!$A173,1)-2)))","v":0},{"$f":"IF(ISERROR(FIND(BZ$3,'CFR - XML import'!$A173)),0,VALUE(MID('CFR - XML import'!$A173,SEARCH(\">\",'CFR - XML import'!$A173,1)+1,SEARCH(\"/\",'CFR - XML import'!$A173,1)-SEARCH(\">\",'CFR - XML import'!$A173,1)-2)))","v":0},null,null,null,null,null,null,{"$f":"IF(ISERROR(IF(MID('CFR - XML import'!$A173,LEN($CF$4)+1,LEN('CFR - XML import'!$A173)-(2*LEN($CF$4)+1))=\"RMMS\",1,IF(MID('CFR - XML import'!$A173,LEN(\"    <InputSystem>\")+1,LEN('CFR - XML import'!$A173)-(LEN(\"    <InputSystem>\")+LEN($CF$4)+1))=\"SIMS\",2,0))),0,IF(MID('CFR - XML import'!$A173,LEN($CF$4)+1,LEN('CFR - XML import'!$A173)-(2*LEN($CF$4)+1))=\"RMMS\",1,IF(MID('CFR - XML import'!$A173,LEN(\"    <InputSystem>\")+1,LEN('CFR - XML import'!$A173)-(LEN(\"    <InputSystem>\")+LEN($CF$4)+1))=\"SIMS\",2,0)))","v":0},{"$f":"IF(ISERROR(FIND(CH$3,'CFR - XML import'!$A173)),0,MID('CFR - XML import'!$A173,SEARCH(\">\",'CFR - XML import'!$A173,1)+1,SEARCH(\"/\",'CFR - XML import'!$A173,1)-SEARCH(\">\",'CFR - XML import'!$A173,1)-2))","v":0},{"$f":"IF(ISERROR(FIND(CI$3,'CFR - XML import'!$A173)),0,MID('CFR - XML import'!$A173,SEARCH(\">\",'CFR - XML import'!$A173,1)+1,SEARCH(\"/\",'CFR - XML import'!$A173,1)-SEARCH(\">\",'CFR - XML import'!$A173,1)-2))","v":0},{"$f":"IF(ISERROR(FIND(CJ$3,'CFR - XML import'!$A173)),0,MID('CFR - XML import'!$A173,SEARCH(\">\",'CFR - XML import'!$A173,1)+1,SEARCH(\"/\",'CFR - XML import'!$A173,1)-SEARCH(\">\",'CFR - XML import'!$A173,1)-2))","v":0},{"$f":"IF(ISERROR(FIND(CK$3,'CFR - XML import'!$A173)),0,MID('CFR - XML import'!$A173,SEARCH(\">\",'CFR - XML import'!$A173,1)+1,SEARCH(\"/\",'CFR - XML import'!$A173,1)-SEARCH(\">\",'CFR - XML import'!$A173,1)-2))","v":0},{"$f":"IF(ISERROR(FIND(CL$3,'CFR - XML import'!$A173)),0,MID('CFR - XML import'!$A173,SEARCH(\">\",'CFR - XML import'!$A173,1)+1,SEARCH(\"/\",'CFR - XML import'!$A173,1)-SEARCH(\">\",'CFR - XML import'!$A173,1)-2))","v":0}]
[{"$f":"IF(AND('CFR - XML import'!A174<>\"\",LEFT('CFR - XML import'!A174,1)<>\"<\",LEFT('CFR - XML import'!A174,3)<>\"  <\",LEFT('CFR - XML import'!A174,5)<>\"    <\",LEFT('CFR - XML import'!A174,7)<>\"      <\",LEFT('CFR - XML import'!A174,9)<>\"        <\",$B$1=\"SIMS\"),'CFR - XML import'!A174,IF(AND(LEFT('CFR - XML import'!A174,9)=\"<Details>\",$B$1=\"RM\"),'CFR - XML import'!A174,\"\"))","v":""},{"$f":"IF(ISERROR(FIND(B$3,'CFR - XML import'!$A174)),0,VALUE(MID('CFR - XML import'!$A174,SEARCH(\">\",'CFR - XML import'!$A174,1)+1,SEARCH(\"/\",'CFR - XML import'!$A174,1)-SEARCH(\">\",'CFR - XML import'!$A174,1)-2)))","v":0},null,{"$f":"IF(ISERROR(FIND(D$3,'CFR - XML import'!$A174)),0,MID('CFR - XML import'!$A174,SEARCH(\">\",'CFR - XML import'!$A174,1)+1,SEARCH(\"/\",'CFR - XML import'!$A174,1)-SEARCH(\">\",'CFR - XML import'!$A174,1)-2))","v":0},{"$f":"IF(ISERROR(FIND(E$3,'CFR - XML import'!$A174)),0,MID('CFR - XML import'!$A174,SEARCH(\">\",'CFR - XML import'!$A174,1)+1,SEARCH(\"/\",'CFR - XML import'!$A174,1)-SEARCH(\">\",'CFR - XML import'!$A174,1)-2))","v":0},{"$f":"IF($B$1=\"SIMS\",IF(ISERROR(FIND(F$3,'CFR - XML import'!$A174)),0,VALUE(MID('CFR - XML import'!$A174,15,10))),IF(ISERROR(FIND(F$3,'CFR - XML import'!$A174)),0,VALUE(MID('CFR - XML import'!$A174,11,10))))","v":"00:00:00"},{"$f":"IF(ISERROR(FIND(G$3,'CFR - XML import'!$A174)),0,VALUE(MID('CFR - XML import'!$A174,SEARCH(\">\",'CFR - XML import'!$A174,1)+1,SEARCH(\"/\",'CFR - XML import'!$A174,1)-SEARCH(\">\",'CFR - XML import'!$A174,1)-2)))","v":0},{"$f":"IF(ISERROR(FIND(H$3,'CFR - XML import'!$A174)),0,VALUE(MID('CFR - XML import'!$A174,SEARCH(\">\",'CFR - XML import'!$A174,1)+1,SEARCH(\"/\",'CFR - XML import'!$A174,1)-SEARCH(\">\",'CFR - XML import'!$A174,1)-2)))","v":0},{"$f":"IF(ISERROR(FIND(I$3,'CFR - XML import'!$A174)),0,VALUE(MID('CFR - XML import'!$A174,SEARCH(\">\",'CFR - XML import'!$A174,1)+1,SEARCH(\"/\",'CFR - XML import'!$A174,1)-SEARCH(\">\",'CFR - XML import'!$A174,1)-2)))","v":0},{"$f":"IF(ISERROR(FIND(J$3,'CFR - XML import'!$A174)),0,VALUE(MID('CFR - XML import'!$A174,SEARCH(\">\",'CFR - XML import'!$A174,1)+1,SEARCH(\"/\",'CFR - XML import'!$A174,1)-SEARCH(\">\",'CFR - XML import'!$A174,1)-2)))","v":0},{"$f":"IF(ISERROR(FIND(K$3,'CFR - XML import'!$A174)),0,VALUE(MID('CFR - XML import'!$A174,SEARCH(\">\",'CFR - XML import'!$A174,1)+1,SEARCH(\"/\",'CFR - XML import'!$A174,1)-SEARCH(\">\",'CFR - XML import'!$A174,1)-2)))","v":0},{"$f":"IF(ISERROR(FIND(L$3,'CFR - XML import'!$A174)),0,VALUE(MID('CFR - XML import'!$A174,SEARCH(\">\",'CFR - XML import'!$A174,1)+1,SEARCH(\"/\",'CFR - XML import'!$A174,1)-SEARCH(\">\",'CFR - XML import'!$A174,1)-2)))","v":0},{"$f":"IF(ISERROR(FIND(M$3,'CFR - XML import'!$A174)),0,VALUE(MID('CFR - XML import'!$A174,SEARCH(\">\",'CFR - XML import'!$A174,1)+1,SEARCH(\"/\",'CFR - XML import'!$A174,1)-SEARCH(\">\",'CFR - XML import'!$A174,1)-2)))","v":0},{"$f":"IF(ISERROR(FIND(N$3,'CFR - XML import'!$A174)),0,VALUE(MID('CFR - XML import'!$A174,SEARCH(\">\",'CFR - XML import'!$A174,1)+1,SEARCH(\"/\",'CFR - XML import'!$A174,1)-SEARCH(\">\",'CFR - XML import'!$A174,1)-2)))","v":0},{"$f":"IF(ISERROR(FIND(O$3,'CFR - XML import'!$A174)),0,VALUE(MID('CFR - XML import'!$A174,SEARCH(\">\",'CFR - XML import'!$A174,1)+1,SEARCH(\"/\",'CFR - XML import'!$A174,1)-SEARCH(\">\",'CFR - XML import'!$A174,1)-2)))","v":0},{"$f":"IF(ISERROR(FIND(P$3,'CFR - XML import'!$A174)),0,VALUE(MID('CFR - XML import'!$A174,SEARCH(\">\",'CFR - XML import'!$A174,1)+1,SEARCH(\"/\",'CFR - XML import'!$A174,1)-SEARCH(\">\",'CFR - XML import'!$A174,1)-2)))","v":0},{"$f":"IF(ISERROR(FIND(Q$3,'CFR - XML import'!$A174)),0,VALUE(MID('CFR - XML import'!$A174,SEARCH(\">\",'CFR - XML import'!$A174,1)+1,SEARCH(\"/\",'CFR - XML import'!$A174,1)-SEARCH(\">\",'CFR - XML import'!$A174,1)-2)))","v":0},{"$f":"IF(ISERROR(FIND(R$3,'CFR - XML import'!$A174)),0,VALUE(MID('CFR - XML import'!$A174,SEARCH(\">\",'CFR - XML import'!$A174,1)+1,SEARCH(\"/\",'CFR - XML import'!$A174,1)-SEARCH(\">\",'CFR - XML import'!$A174,1)-2)))","v":0},{"$f":"IF(ISERROR(FIND(S$3,'CFR - XML import'!$A174)),0,VALUE(MID('CFR - XML import'!$A174,SEARCH(\">\",'CFR - XML import'!$A174,1)+1,SEARCH(\"/\",'CFR - XML import'!$A174,1)-SEARCH(\">\",'CFR - XML import'!$A174,1)-2)))","v":0},{"$f":"IF(ISERROR(FIND(T$3,'CFR - XML import'!$A174)),0,VALUE(MID('CFR - XML import'!$A174,SEARCH(\">\",'CFR - XML import'!$A174,1)+1,SEARCH(\"/\",'CFR - XML import'!$A174,1)-SEARCH(\">\",'CFR - XML import'!$A174,1)-2)))","v":0},{"$f":"IF(ISERROR(FIND(U$3,'CFR - XML import'!$A174)),0,VALUE(MID('CFR - XML import'!$A174,SEARCH(\">\",'CFR - XML import'!$A174,1)+1,SEARCH(\"/\",'CFR - XML import'!$A174,1)-SEARCH(\">\",'CFR - XML import'!$A174,1)-2)))","v":0},{"$f":"IF(ISERROR(FIND(V$3,'CFR - XML import'!$A174)),0,VALUE(MID('CFR - XML import'!$A174,SEARCH(\">\",'CFR - XML import'!$A174,1)+1,SEARCH(\"/\",'CFR - XML import'!$A174,1)-SEARCH(\">\",'CFR - XML import'!$A174,1)-2)))","v":0},{"$f":"IF(ISERROR(FIND(W$3,'CFR - XML import'!$A174)),0,VALUE(MID('CFR - XML import'!$A174,SEARCH(\">\",'CFR - XML import'!$A174,1)+1,SEARCH(\"/\",'CFR - XML import'!$A174,1)-SEARCH(\">\",'CFR - XML import'!$A174,1)-2)))","v":0},null,{"$f":"IF(ISERROR(FIND(Y$3,'CFR - XML import'!$A174)),0,VALUE(MID('CFR - XML import'!$A174,SEARCH(\">\",'CFR - XML import'!$A174,1)+1,SEARCH(\"/\",'CFR - XML import'!$A174,1)-SEARCH(\">\",'CFR - XML import'!$A174,1)-2)))","v":0},{"$f":"IF(ISERROR(FIND(Z$3,'CFR - XML import'!$A174)),0,VALUE(MID('CFR - XML import'!$A174,SEARCH(\">\",'CFR - XML import'!$A174,1)+1,SEARCH(\"/\",'CFR - XML import'!$A174,1)-SEARCH(\">\",'CFR - XML import'!$A174,1)-2)))","v":0},{"$f":"IF(ISERROR(FIND(AA$3,'CFR - XML import'!$A174)),0,VALUE(MID('CFR - XML import'!$A174,SEARCH(\">\",'CFR - XML import'!$A174,1)+1,SEARCH(\"/\",'CFR - XML import'!$A174,1)-SEARCH(\">\",'CFR - XML import'!$A174,1)-2)))","v":0},{"$f":"IF(ISERROR(FIND(AB$3,'CFR - XML import'!$A174)),0,VALUE(MID('CFR - XML import'!$A174,SEARCH(\">\",'CFR - XML import'!$A174,1)+1,SEARCH(\"/\",'CFR - XML import'!$A174,1)-SEARCH(\">\",'CFR - XML import'!$A174,1)-2)))","v":0},{"$f":"IF(ISERROR(FIND(AC$3,'CFR - XML import'!$A174)),0,VALUE(MID('CFR - XML import'!$A174,SEARCH(\">\",'CFR - XML import'!$A174,1)+1,SEARCH(\"/\",'CFR - XML import'!$A174,1)-SEARCH(\">\",'CFR - XML import'!$A174,1)-2)))","v":0},{"$f":"IF(ISERROR(FIND(AD$3,'CFR - XML import'!$A174)),0,VALUE(MID('CFR - XML import'!$A174,SEARCH(\">\",'CFR - XML import'!$A174,1)+1,SEARCH(\"/\",'CFR - XML import'!$A174,1)-SEARCH(\">\",'CFR - XML import'!$A174,1)-2)))","v":0},{"$f":"IF(ISERROR(FIND(AE$3,'CFR - XML import'!$A174)),0,VALUE(MID('CFR - XML import'!$A174,SEARCH(\">\",'CFR - XML import'!$A174,1)+1,SEARCH(\"/\",'CFR - XML import'!$A174,1)-SEARCH(\">\",'CFR - XML import'!$A174,1)-2)))","v":0},{"$f":"IF(ISERROR(FIND(AF$3,'CFR - XML import'!$A174)),0,VALUE(MID('CFR - XML import'!$A174,SEARCH(\">\",'CFR - XML import'!$A174,1)+1,SEARCH(\"/\",'CFR - XML import'!$A174,1)-SEARCH(\">\",'CFR - XML import'!$A174,1)-2)))","v":0},{"$f":"IF(ISERROR(FIND(AG$3,'CFR - XML import'!$A174)),0,VALUE(MID('CFR - XML import'!$A174,SEARCH(\">\",'CFR - XML import'!$A174,1)+1,SEARCH(\"/\",'CFR - XML import'!$A174,1)-SEARCH(\">\",'CFR - XML import'!$A174,1)-2)))","v":0},{"$f":"IF(ISERROR(FIND(AH$3,'CFR - XML import'!$A174)),0,VALUE(MID('CFR - XML import'!$A174,SEARCH(\">\",'CFR - XML import'!$A174,1)+1,SEARCH(\"/\",'CFR - XML import'!$A174,1)-SEARCH(\">\",'CFR - XML import'!$A174,1)-2)))","v":0},{"$f":"IF(ISERROR(FIND(AI$3,'CFR - XML import'!$A174)),0,VALUE(MID('CFR - XML import'!$A174,SEARCH(\">\",'CFR - XML import'!$A174,1)+1,SEARCH(\"/\",'CFR - XML import'!$A174,1)-SEARCH(\">\",'CFR - XML import'!$A174,1)-2)))","v":0},{"$f":"IF(ISERROR(FIND(AJ$3,'CFR - XML import'!$A174)),0,VALUE(MID('CFR - XML import'!$A174,SEARCH(\">\",'CFR - XML import'!$A174,1)+1,SEARCH(\"/\",'CFR - XML import'!$A174,1)-SEARCH(\">\",'CFR - XML import'!$A174,1)-2)))","v":0},{"$f":"IF(ISERROR(FIND(AK$3,'CFR - XML import'!$A174)),0,VALUE(MID('CFR - XML import'!$A174,SEARCH(\">\",'CFR - XML import'!$A174,1)+1,SEARCH(\"/\",'CFR - XML import'!$A174,1)-SEARCH(\">\",'CFR - XML import'!$A174,1)-2)))","v":0},{"$f":"IF(ISERROR(FIND(AL$3,'CFR - XML import'!$A174)),0,VALUE(MID('CFR - XML import'!$A174,SEARCH(\">\",'CFR - XML import'!$A174,1)+1,SEARCH(\"/\",'CFR - XML import'!$A174,1)-SEARCH(\">\",'CFR - XML import'!$A174,1)-2)))","v":0},{"$f":"IF(ISERROR(FIND(AM$3,'CFR - XML import'!$A174)),0,VALUE(MID('CFR - XML import'!$A174,SEARCH(\">\",'CFR - XML import'!$A174,1)+1,SEARCH(\"/\",'CFR - XML import'!$A174,1)-SEARCH(\">\",'CFR - XML import'!$A174,1)-2)))","v":0},{"$f":"IF(ISERROR(FIND(AN$3,'CFR - XML import'!$A174)),0,VALUE(MID('CFR - XML import'!$A174,SEARCH(\">\",'CFR - XML import'!$A174,1)+1,SEARCH(\"/\",'CFR - XML import'!$A174,1)-SEARCH(\">\",'CFR - XML import'!$A174,1)-2)))","v":0},{"$f":"IF(ISERROR(FIND(AO$3,'CFR - XML import'!$A174)),0,VALUE(MID('CFR - XML import'!$A174,SEARCH(\">\",'CFR - XML import'!$A174,1)+1,SEARCH(\"/\",'CFR - XML import'!$A174,1)-SEARCH(\">\",'CFR - XML import'!$A174,1)-2)))","v":0},{"$f":"IF(ISERROR(FIND(AP$3,'CFR - XML import'!$A174)),0,VALUE(MID('CFR - XML import'!$A174,SEARCH(\">\",'CFR - XML import'!$A174,1)+1,SEARCH(\"/\",'CFR - XML import'!$A174,1)-SEARCH(\">\",'CFR - XML import'!$A174,1)-2)))","v":0},{"$f":"IF(ISERROR(FIND(AQ$3,'CFR - XML import'!$A174)),0,VALUE(MID('CFR - XML import'!$A174,SEARCH(\">\",'CFR - XML import'!$A174,1)+1,SEARCH(\"/\",'CFR - XML import'!$A174,1)-SEARCH(\">\",'CFR - XML import'!$A174,1)-2)))","v":0},{"$f":"IF(ISERROR(FIND(AR$3,'CFR - XML import'!$A174)),0,VALUE(MID('CFR - XML import'!$A174,SEARCH(\">\",'CFR - XML import'!$A174,1)+1,SEARCH(\"/\",'CFR - XML import'!$A174,1)-SEARCH(\">\",'CFR - XML import'!$A174,1)-2)))","v":0},{"$f":"IF(ISERROR(FIND(AS$3,'CFR - XML import'!$A174)),0,VALUE(MID('CFR - XML import'!$A174,SEARCH(\">\",'CFR - XML import'!$A174,1)+1,SEARCH(\"/\",'CFR - XML import'!$A174,1)-SEARCH(\">\",'CFR - XML import'!$A174,1)-2)))","v":0},{"$f":"IF(ISERROR(FIND(AT$3,'CFR - XML import'!$A174)),0,VALUE(MID('CFR - XML import'!$A174,SEARCH(\">\",'CFR - XML import'!$A174,1)+1,SEARCH(\"/\",'CFR - XML import'!$A174,1)-SEARCH(\">\",'CFR - XML import'!$A174,1)-2)))","v":0},{"$f":"IF(ISERROR(FIND(AU$3,'CFR - XML import'!$A174)),0,VALUE(MID('CFR - XML import'!$A174,SEARCH(\">\",'CFR - XML import'!$A174,1)+1,SEARCH(\"/\",'CFR - XML import'!$A174,1)-SEARCH(\">\",'CFR - XML import'!$A174,1)-2)))","v":0},{"$f":"IF(ISERROR(FIND(AV$3,'CFR - XML import'!$A174)),0,VALUE(MID('CFR - XML import'!$A174,SEARCH(\">\",'CFR - XML import'!$A174,1)+1,SEARCH(\"/\",'CFR - XML import'!$A174,1)-SEARCH(\">\",'CFR - XML import'!$A174,1)-2)))","v":0},{"$f":"IF(ISERROR(FIND(AW$3,'CFR - XML import'!$A174)),0,VALUE(MID('CFR - XML import'!$A174,SEARCH(\">\",'CFR - XML import'!$A174,1)+1,SEARCH(\"/\",'CFR - XML import'!$A174,1)-SEARCH(\">\",'CFR - XML import'!$A174,1)-2)))","v":0},{"$f":"IF(ISERROR(FIND(AX$3,'CFR - XML import'!$A174)),0,VALUE(MID('CFR - XML import'!$A174,SEARCH(\">\",'CFR - XML import'!$A174,1)+1,SEARCH(\"/\",'CFR - XML import'!$A174,1)-SEARCH(\">\",'CFR - XML import'!$A174,1)-2)))","v":0},{"$f":"IF(ISERROR(FIND(AY$3,'CFR - XML import'!$A174)),0,VALUE(MID('CFR - XML import'!$A174,SEARCH(\">\",'CFR - XML import'!$A174,1)+1,SEARCH(\"/\",'CFR - XML import'!$A174,1)-SEARCH(\">\",'CFR - XML import'!$A174,1)-2)))","v":0},{"$f":"IF(ISERROR(FIND(AZ$3,'CFR - XML import'!$A174)),0,VALUE(MID('CFR - XML import'!$A174,SEARCH(\">\",'CFR - XML import'!$A174,1)+1,SEARCH(\"/\",'CFR - XML import'!$A174,1)-SEARCH(\">\",'CFR - XML import'!$A174,1)-2)))","v":0},{"$f":"IF(ISERROR(FIND(BA$3,'CFR - XML import'!$A174)),0,VALUE(MID('CFR - XML import'!$A174,SEARCH(\">\",'CFR - XML import'!$A174,1)+1,SEARCH(\"/\",'CFR - XML import'!$A174,1)-SEARCH(\">\",'CFR - XML import'!$A174,1)-2)))","v":0},{"$f":"IF(ISERROR(FIND(BB$3,'CFR - XML import'!$A174)),0,VALUE(MID('CFR - XML import'!$A174,SEARCH(\">\",'CFR - XML import'!$A174,1)+1,SEARCH(\"/\",'CFR - XML import'!$A174,1)-SEARCH(\">\",'CFR - XML import'!$A174,1)-2)))","v":0},{"$f":"IF(ISERROR(FIND(BC$3,'CFR - XML import'!$A174)),0,VALUE(MID('CFR - XML import'!$A174,SEARCH(\">\",'CFR - XML import'!$A174,1)+1,SEARCH(\"/\",'CFR - XML import'!$A174,1)-SEARCH(\">\",'CFR - XML import'!$A174,1)-2)))","v":0},{"$f":"IF(ISERROR(FIND(BD$3,'CFR - XML import'!$A174)),0,VALUE(MID('CFR - XML import'!$A174,SEARCH(\">\",'CFR - XML import'!$A174,1)+1,SEARCH(\"/\",'CFR - XML import'!$A174,1)-SEARCH(\">\",'CFR - XML import'!$A174,1)-2)))","v":0},{"$f":"IF(ISERROR(FIND(BE$3,'CFR - XML import'!$A174)),0,VALUE(MID('CFR - XML import'!$A174,SEARCH(\">\",'CFR - XML import'!$A174,1)+1,SEARCH(\"/\",'CFR - XML import'!$A174,1)-SEARCH(\">\",'CFR - XML import'!$A174,1)-2)))","v":0},{"$f":"IF(ISERROR(FIND(BF$3,'CFR - XML import'!$A174)),0,VALUE(MID('CFR - XML import'!$A174,SEARCH(\">\",'CFR - XML import'!$A174,1)+1,SEARCH(\"/\",'CFR - XML import'!$A174,1)-SEARCH(\">\",'CFR - XML import'!$A174,1)-2)))","v":0},{"$f":"IF(ISERROR(FIND(BG$3,'CFR - XML import'!$A174)),0,VALUE(MID('CFR - XML import'!$A174,SEARCH(\">\",'CFR - XML import'!$A174,1)+1,SEARCH(\"/\",'CFR - XML import'!$A174,1)-SEARCH(\">\",'CFR - XML import'!$A174,1)-2)))","v":0},{"$f":"IF(ISERROR(FIND(BH$3,'CFR - XML import'!$A174)),0,VALUE(MID('CFR - XML import'!$A174,SEARCH(\">\",'CFR - XML import'!$A174,1)+1,SEARCH(\"/\",'CFR - XML import'!$A174,1)-SEARCH(\">\",'CFR - XML import'!$A174,1)-2)))","v":0},{"$f":"IF(ISERROR(FIND(BI$3,'CFR - XML import'!$A174)),0,VALUE(MID('CFR - XML import'!$A174,SEARCH(\">\",'CFR - XML import'!$A174,1)+1,SEARCH(\"/\",'CFR - XML import'!$A174,1)-SEARCH(\">\",'CFR - XML import'!$A174,1)-2)))","v":0},{"$f":"IF(ISERROR(FIND(BJ$3,'CFR - XML import'!$A174)),0,VALUE(MID('CFR - XML import'!$A174,SEARCH(\">\",'CFR - XML import'!$A174,1)+1,SEARCH(\"/\",'CFR - XML import'!$A174,1)-SEARCH(\">\",'CFR - XML import'!$A174,1)-2)))","v":0},{"$f":"IF(ISERROR(FIND(BK$3,'CFR - XML import'!$A174)),0,VALUE(MID('CFR - XML import'!$A174,SEARCH(\">\",'CFR - XML import'!$A174,1)+1,SEARCH(\"/\",'CFR - XML import'!$A174,1)-SEARCH(\">\",'CFR - XML import'!$A174,1)-2)))","v":0},{"$f":"IF(ISERROR(FIND(BL$3,'CFR - XML import'!$A174)),0,VALUE(MID('CFR - XML import'!$A174,SEARCH(\">\",'CFR - XML import'!$A174,1)+1,SEARCH(\"/\",'CFR - XML import'!$A174,1)-SEARCH(\">\",'CFR - XML import'!$A174,1)-2)))","v":0},{"$f":"IF(ISERROR(FIND(BM$3,'CFR - XML import'!$A174)),0,VALUE(MID('CFR - XML import'!$A174,SEARCH(\">\",'CFR - XML import'!$A174,1)+1,SEARCH(\"/\",'CFR - XML import'!$A174,1)-SEARCH(\">\",'CFR - XML import'!$A174,1)-2)))","v":0},{"$f":"IF(ISERROR(FIND(BN$3,'CFR - XML import'!$A174)),0,VALUE(MID('CFR - XML import'!$A174,SEARCH(\">\",'CFR - XML import'!$A174,1)+1,SEARCH(\"/\",'CFR - XML import'!$A174,1)-SEARCH(\">\",'CFR - XML import'!$A174,1)-2)))","v":0},{"$f":"IF(ISERROR(FIND(BO$3,'CFR - XML import'!$A174)),0,VALUE(MID('CFR - XML import'!$A174,SEARCH(\">\",'CFR - XML import'!$A174,1)+1,SEARCH(\"/\",'CFR - XML import'!$A174,1)-SEARCH(\">\",'CFR - XML import'!$A174,1)-2)))","v":0},{"$f":"IF(ISERROR(FIND(BP$3,'CFR - XML import'!$A174)),0,VALUE(MID('CFR - XML import'!$A174,SEARCH(\">\",'CFR - XML import'!$A174,1)+1,SEARCH(\"/\",'CFR - XML import'!$A174,1)-SEARCH(\">\",'CFR - XML import'!$A174,1)-2)))","v":0},{"$f":"IF(ISERROR(FIND(BQ$3,'CFR - XML import'!$A174)),0,VALUE(MID('CFR - XML import'!$A174,SEARCH(\">\",'CFR - XML import'!$A174,1)+1,SEARCH(\"/\",'CFR - XML import'!$A174,1)-SEARCH(\">\",'CFR - XML import'!$A174,1)-2)))","v":0},{"$f":"IF(ISERROR(FIND(BR$3,'CFR - XML import'!$A174)),0,VALUE(MID('CFR - XML import'!$A174,SEARCH(\">\",'CFR - XML import'!$A174,1)+1,SEARCH(\"/\",'CFR - XML import'!$A174,1)-SEARCH(\">\",'CFR - XML import'!$A174,1)-2)))","v":0},{"$f":"IF(ISERROR(FIND(BS$3,'CFR - XML import'!$A174)),0,VALUE(MID('CFR - XML import'!$A174,SEARCH(\">\",'CFR - XML import'!$A174,1)+1,SEARCH(\"/\",'CFR - XML import'!$A174,1)-SEARCH(\">\",'CFR - XML import'!$A174,1)-2)))","v":0},{"$f":"IF(ISERROR(FIND(BT$3,'CFR - XML import'!$A174)),0,VALUE(MID('CFR - XML import'!$A174,SEARCH(\">\",'CFR - XML import'!$A174,1)+1,SEARCH(\"/\",'CFR - XML import'!$A174,1)-SEARCH(\">\",'CFR - XML import'!$A174,1)-2)))","v":0},{"$f":"IF(ISERROR(FIND(BU$3,'CFR - XML import'!$A174)),0,VALUE(MID('CFR - XML import'!$A174,SEARCH(\">\",'CFR - XML import'!$A174,1)+1,SEARCH(\"/\",'CFR - XML import'!$A174,1)-SEARCH(\">\",'CFR - XML import'!$A174,1)-2)))","v":0},{"$f":"IF(ISERROR(FIND(BV$3,'CFR - XML import'!$A174)),0,VALUE(MID('CFR - XML import'!$A174,SEARCH(\">\",'CFR - XML import'!$A174,1)+1,SEARCH(\"/\",'CFR - XML import'!$A174,1)-SEARCH(\">\",'CFR - XML import'!$A174,1)-2)))","v":0},{"$f":"IF(ISERROR(FIND(BW$3,'CFR - XML import'!$A174)),0,VALUE(MID('CFR - XML import'!$A174,SEARCH(\">\",'CFR - XML import'!$A174,1)+1,SEARCH(\"/\",'CFR - XML import'!$A174,1)-SEARCH(\">\",'CFR - XML import'!$A174,1)-2)))","v":0},{"$f":"IF(ISERROR(FIND(BX$3,'CFR - XML import'!$A174)),0,VALUE(MID('CFR - XML import'!$A174,SEARCH(\">\",'CFR - XML import'!$A174,1)+1,SEARCH(\"/\",'CFR - XML import'!$A174,1)-SEARCH(\">\",'CFR - XML import'!$A174,1)-2)))","v":0},{"$f":"IF(ISERROR(FIND(BY$3,'CFR - XML import'!$A174)),0,VALUE(MID('CFR - XML import'!$A174,SEARCH(\">\",'CFR - XML import'!$A174,1)+1,SEARCH(\"/\",'CFR - XML import'!$A174,1)-SEARCH(\">\",'CFR - XML import'!$A174,1)-2)))","v":0},{"$f":"IF(ISERROR(FIND(BZ$3,'CFR - XML import'!$A174)),0,VALUE(MID('CFR - XML import'!$A174,SEARCH(\">\",'CFR - XML import'!$A174,1)+1,SEARCH(\"/\",'CFR - XML import'!$A174,1)-SEARCH(\">\",'CFR - XML import'!$A174,1)-2)))","v":0},null,null,null,null,null,null,{"$f":"IF(ISERROR(IF(MID('CFR - XML import'!$A174,LEN($CF$4)+1,LEN('CFR - XML import'!$A174)-(2*LEN($CF$4)+1))=\"RMMS\",1,IF(MID('CFR - XML import'!$A174,LEN(\"    <InputSystem>\")+1,LEN('CFR - XML import'!$A174)-(LEN(\"    <InputSystem>\")+LEN($CF$4)+1))=\"SIMS\",2,0))),0,IF(MID('CFR - XML import'!$A174,LEN($CF$4)+1,LEN('CFR - XML import'!$A174)-(2*LEN($CF$4)+1))=\"RMMS\",1,IF(MID('CFR - XML import'!$A174,LEN(\"    <InputSystem>\")+1,LEN('CFR - XML import'!$A174)-(LEN(\"    <InputSystem>\")+LEN($CF$4)+1))=\"SIMS\",2,0)))","v":0},{"$f":"IF(ISERROR(FIND(CH$3,'CFR - XML import'!$A174)),0,MID('CFR - XML import'!$A174,SEARCH(\">\",'CFR - XML import'!$A174,1)+1,SEARCH(\"/\",'CFR - XML import'!$A174,1)-SEARCH(\">\",'CFR - XML import'!$A174,1)-2))","v":0},{"$f":"IF(ISERROR(FIND(CI$3,'CFR - XML import'!$A174)),0,MID('CFR - XML import'!$A174,SEARCH(\">\",'CFR - XML import'!$A174,1)+1,SEARCH(\"/\",'CFR - XML import'!$A174,1)-SEARCH(\">\",'CFR - XML import'!$A174,1)-2))","v":0},{"$f":"IF(ISERROR(FIND(CJ$3,'CFR - XML import'!$A174)),0,MID('CFR - XML import'!$A174,SEARCH(\">\",'CFR - XML import'!$A174,1)+1,SEARCH(\"/\",'CFR - XML import'!$A174,1)-SEARCH(\">\",'CFR - XML import'!$A174,1)-2))","v":0},{"$f":"IF(ISERROR(FIND(CK$3,'CFR - XML import'!$A174)),0,MID('CFR - XML import'!$A174,SEARCH(\">\",'CFR - XML import'!$A174,1)+1,SEARCH(\"/\",'CFR - XML import'!$A174,1)-SEARCH(\">\",'CFR - XML import'!$A174,1)-2))","v":0},{"$f":"IF(ISERROR(FIND(CL$3,'CFR - XML import'!$A174)),0,MID('CFR - XML import'!$A174,SEARCH(\">\",'CFR - XML import'!$A174,1)+1,SEARCH(\"/\",'CFR - XML import'!$A174,1)-SEARCH(\">\",'CFR - XML import'!$A174,1)-2))","v":0}]
[{"$f":"IF(AND('CFR - XML import'!A175<>\"\",LEFT('CFR - XML import'!A175,1)<>\"<\",LEFT('CFR - XML import'!A175,3)<>\"  <\",LEFT('CFR - XML import'!A175,5)<>\"    <\",LEFT('CFR - XML import'!A175,7)<>\"      <\",LEFT('CFR - XML import'!A175,9)<>\"        <\",$B$1=\"SIMS\"),'CFR - XML import'!A175,IF(AND(LEFT('CFR - XML import'!A175,9)=\"<Details>\",$B$1=\"RM\"),'CFR - XML import'!A175,\"\"))","v":""},{"$f":"IF(ISERROR(FIND(B$3,'CFR - XML import'!$A175)),0,VALUE(MID('CFR - XML import'!$A175,SEARCH(\">\",'CFR - XML import'!$A175,1)+1,SEARCH(\"/\",'CFR - XML import'!$A175,1)-SEARCH(\">\",'CFR - XML import'!$A175,1)-2)))","v":0},null,{"$f":"IF(ISERROR(FIND(D$3,'CFR - XML import'!$A175)),0,MID('CFR - XML import'!$A175,SEARCH(\">\",'CFR - XML import'!$A175,1)+1,SEARCH(\"/\",'CFR - XML import'!$A175,1)-SEARCH(\">\",'CFR - XML import'!$A175,1)-2))","v":0},{"$f":"IF(ISERROR(FIND(E$3,'CFR - XML import'!$A175)),0,MID('CFR - XML import'!$A175,SEARCH(\">\",'CFR - XML import'!$A175,1)+1,SEARCH(\"/\",'CFR - XML import'!$A175,1)-SEARCH(\">\",'CFR - XML import'!$A175,1)-2))","v":0},{"$f":"IF($B$1=\"SIMS\",IF(ISERROR(FIND(F$3,'CFR - XML import'!$A175)),0,VALUE(MID('CFR - XML import'!$A175,15,10))),IF(ISERROR(FIND(F$3,'CFR - XML import'!$A175)),0,VALUE(MID('CFR - XML import'!$A175,11,10))))","v":"00:00:00"},{"$f":"IF(ISERROR(FIND(G$3,'CFR - XML import'!$A175)),0,VALUE(MID('CFR - XML import'!$A175,SEARCH(\">\",'CFR - XML import'!$A175,1)+1,SEARCH(\"/\",'CFR - XML import'!$A175,1)-SEARCH(\">\",'CFR - XML import'!$A175,1)-2)))","v":0},{"$f":"IF(ISERROR(FIND(H$3,'CFR - XML import'!$A175)),0,VALUE(MID('CFR - XML import'!$A175,SEARCH(\">\",'CFR - XML import'!$A175,1)+1,SEARCH(\"/\",'CFR - XML import'!$A175,1)-SEARCH(\">\",'CFR - XML import'!$A175,1)-2)))","v":0},{"$f":"IF(ISERROR(FIND(I$3,'CFR - XML import'!$A175)),0,VALUE(MID('CFR - XML import'!$A175,SEARCH(\">\",'CFR - XML import'!$A175,1)+1,SEARCH(\"/\",'CFR - XML import'!$A175,1)-SEARCH(\">\",'CFR - XML import'!$A175,1)-2)))","v":0},{"$f":"IF(ISERROR(FIND(J$3,'CFR - XML import'!$A175)),0,VALUE(MID('CFR - XML import'!$A175,SEARCH(\">\",'CFR - XML import'!$A175,1)+1,SEARCH(\"/\",'CFR - XML import'!$A175,1)-SEARCH(\">\",'CFR - XML import'!$A175,1)-2)))","v":0},{"$f":"IF(ISERROR(FIND(K$3,'CFR - XML import'!$A175)),0,VALUE(MID('CFR - XML import'!$A175,SEARCH(\">\",'CFR - XML import'!$A175,1)+1,SEARCH(\"/\",'CFR - XML import'!$A175,1)-SEARCH(\">\",'CFR - XML import'!$A175,1)-2)))","v":0},{"$f":"IF(ISERROR(FIND(L$3,'CFR - XML import'!$A175)),0,VALUE(MID('CFR - XML import'!$A175,SEARCH(\">\",'CFR - XML import'!$A175,1)+1,SEARCH(\"/\",'CFR - XML import'!$A175,1)-SEARCH(\">\",'CFR - XML import'!$A175,1)-2)))","v":0},{"$f":"IF(ISERROR(FIND(M$3,'CFR - XML import'!$A175)),0,VALUE(MID('CFR - XML import'!$A175,SEARCH(\">\",'CFR - XML import'!$A175,1)+1,SEARCH(\"/\",'CFR - XML import'!$A175,1)-SEARCH(\">\",'CFR - XML import'!$A175,1)-2)))","v":0},{"$f":"IF(ISERROR(FIND(N$3,'CFR - XML import'!$A175)),0,VALUE(MID('CFR - XML import'!$A175,SEARCH(\">\",'CFR - XML import'!$A175,1)+1,SEARCH(\"/\",'CFR - XML import'!$A175,1)-SEARCH(\">\",'CFR - XML import'!$A175,1)-2)))","v":0},{"$f":"IF(ISERROR(FIND(O$3,'CFR - XML import'!$A175)),0,VALUE(MID('CFR - XML import'!$A175,SEARCH(\">\",'CFR - XML import'!$A175,1)+1,SEARCH(\"/\",'CFR - XML import'!$A175,1)-SEARCH(\">\",'CFR - XML import'!$A175,1)-2)))","v":0},{"$f":"IF(ISERROR(FIND(P$3,'CFR - XML import'!$A175)),0,VALUE(MID('CFR - XML import'!$A175,SEARCH(\">\",'CFR - XML import'!$A175,1)+1,SEARCH(\"/\",'CFR - XML import'!$A175,1)-SEARCH(\">\",'CFR - XML import'!$A175,1)-2)))","v":0},{"$f":"IF(ISERROR(FIND(Q$3,'CFR - XML import'!$A175)),0,VALUE(MID('CFR - XML import'!$A175,SEARCH(\">\",'CFR - XML import'!$A175,1)+1,SEARCH(\"/\",'CFR - XML import'!$A175,1)-SEARCH(\">\",'CFR - XML import'!$A175,1)-2)))","v":0},{"$f":"IF(ISERROR(FIND(R$3,'CFR - XML import'!$A175)),0,VALUE(MID('CFR - XML import'!$A175,SEARCH(\">\",'CFR - XML import'!$A175,1)+1,SEARCH(\"/\",'CFR - XML import'!$A175,1)-SEARCH(\">\",'CFR - XML import'!$A175,1)-2)))","v":0},{"$f":"IF(ISERROR(FIND(S$3,'CFR - XML import'!$A175)),0,VALUE(MID('CFR - XML import'!$A175,SEARCH(\">\",'CFR - XML import'!$A175,1)+1,SEARCH(\"/\",'CFR - XML import'!$A175,1)-SEARCH(\">\",'CFR - XML import'!$A175,1)-2)))","v":0},{"$f":"IF(ISERROR(FIND(T$3,'CFR - XML import'!$A175)),0,VALUE(MID('CFR - XML import'!$A175,SEARCH(\">\",'CFR - XML import'!$A175,1)+1,SEARCH(\"/\",'CFR - XML import'!$A175,1)-SEARCH(\">\",'CFR - XML import'!$A175,1)-2)))","v":0},{"$f":"IF(ISERROR(FIND(U$3,'CFR - XML import'!$A175)),0,VALUE(MID('CFR - XML import'!$A175,SEARCH(\">\",'CFR - XML import'!$A175,1)+1,SEARCH(\"/\",'CFR - XML import'!$A175,1)-SEARCH(\">\",'CFR - XML import'!$A175,1)-2)))","v":0},{"$f":"IF(ISERROR(FIND(V$3,'CFR - XML import'!$A175)),0,VALUE(MID('CFR - XML import'!$A175,SEARCH(\">\",'CFR - XML import'!$A175,1)+1,SEARCH(\"/\",'CFR - XML import'!$A175,1)-SEARCH(\">\",'CFR - XML import'!$A175,1)-2)))","v":0},{"$f":"IF(ISERROR(FIND(W$3,'CFR - XML import'!$A175)),0,VALUE(MID('CFR - XML import'!$A175,SEARCH(\">\",'CFR - XML import'!$A175,1)+1,SEARCH(\"/\",'CFR - XML import'!$A175,1)-SEARCH(\">\",'CFR - XML import'!$A175,1)-2)))","v":0},null,{"$f":"IF(ISERROR(FIND(Y$3,'CFR - XML import'!$A175)),0,VALUE(MID('CFR - XML import'!$A175,SEARCH(\">\",'CFR - XML import'!$A175,1)+1,SEARCH(\"/\",'CFR - XML import'!$A175,1)-SEARCH(\">\",'CFR - XML import'!$A175,1)-2)))","v":0},{"$f":"IF(ISERROR(FIND(Z$3,'CFR - XML import'!$A175)),0,VALUE(MID('CFR - XML import'!$A175,SEARCH(\">\",'CFR - XML import'!$A175,1)+1,SEARCH(\"/\",'CFR - XML import'!$A175,1)-SEARCH(\">\",'CFR - XML import'!$A175,1)-2)))","v":0},{"$f":"IF(ISERROR(FIND(AA$3,'CFR - XML import'!$A175)),0,VALUE(MID('CFR - XML import'!$A175,SEARCH(\">\",'CFR - XML import'!$A175,1)+1,SEARCH(\"/\",'CFR - XML import'!$A175,1)-SEARCH(\">\",'CFR - XML import'!$A175,1)-2)))","v":0},{"$f":"IF(ISERROR(FIND(AB$3,'CFR - XML import'!$A175)),0,VALUE(MID('CFR - XML import'!$A175,SEARCH(\">\",'CFR - XML import'!$A175,1)+1,SEARCH(\"/\",'CFR - XML import'!$A175,1)-SEARCH(\">\",'CFR - XML import'!$A175,1)-2)))","v":0},{"$f":"IF(ISERROR(FIND(AC$3,'CFR - XML import'!$A175)),0,VALUE(MID('CFR - XML import'!$A175,SEARCH(\">\",'CFR - XML import'!$A175,1)+1,SEARCH(\"/\",'CFR - XML import'!$A175,1)-SEARCH(\">\",'CFR - XML import'!$A175,1)-2)))","v":0},{"$f":"IF(ISERROR(FIND(AD$3,'CFR - XML import'!$A175)),0,VALUE(MID('CFR - XML import'!$A175,SEARCH(\">\",'CFR - XML import'!$A175,1)+1,SEARCH(\"/\",'CFR - XML import'!$A175,1)-SEARCH(\">\",'CFR - XML import'!$A175,1)-2)))","v":0},{"$f":"IF(ISERROR(FIND(AE$3,'CFR - XML import'!$A175)),0,VALUE(MID('CFR - XML import'!$A175,SEARCH(\">\",'CFR - XML import'!$A175,1)+1,SEARCH(\"/\",'CFR - XML import'!$A175,1)-SEARCH(\">\",'CFR - XML import'!$A175,1)-2)))","v":0},{"$f":"IF(ISERROR(FIND(AF$3,'CFR - XML import'!$A175)),0,VALUE(MID('CFR - XML import'!$A175,SEARCH(\">\",'CFR - XML import'!$A175,1)+1,SEARCH(\"/\",'CFR - XML import'!$A175,1)-SEARCH(\">\",'CFR - XML import'!$A175,1)-2)))","v":0},{"$f":"IF(ISERROR(FIND(AG$3,'CFR - XML import'!$A175)),0,VALUE(MID('CFR - XML import'!$A175,SEARCH(\">\",'CFR - XML import'!$A175,1)+1,SEARCH(\"/\",'CFR - XML import'!$A175,1)-SEARCH(\">\",'CFR - XML import'!$A175,1)-2)))","v":0},{"$f":"IF(ISERROR(FIND(AH$3,'CFR - XML import'!$A175)),0,VALUE(MID('CFR - XML import'!$A175,SEARCH(\">\",'CFR - XML import'!$A175,1)+1,SEARCH(\"/\",'CFR - XML import'!$A175,1)-SEARCH(\">\",'CFR - XML import'!$A175,1)-2)))","v":0},{"$f":"IF(ISERROR(FIND(AI$3,'CFR - XML import'!$A175)),0,VALUE(MID('CFR - XML import'!$A175,SEARCH(\">\",'CFR - XML import'!$A175,1)+1,SEARCH(\"/\",'CFR - XML import'!$A175,1)-SEARCH(\">\",'CFR - XML import'!$A175,1)-2)))","v":0},{"$f":"IF(ISERROR(FIND(AJ$3,'CFR - XML import'!$A175)),0,VALUE(MID('CFR - XML import'!$A175,SEARCH(\">\",'CFR - XML import'!$A175,1)+1,SEARCH(\"/\",'CFR - XML import'!$A175,1)-SEARCH(\">\",'CFR - XML import'!$A175,1)-2)))","v":0},{"$f":"IF(ISERROR(FIND(AK$3,'CFR - XML import'!$A175)),0,VALUE(MID('CFR - XML import'!$A175,SEARCH(\">\",'CFR - XML import'!$A175,1)+1,SEARCH(\"/\",'CFR - XML import'!$A175,1)-SEARCH(\">\",'CFR - XML import'!$A175,1)-2)))","v":0},{"$f":"IF(ISERROR(FIND(AL$3,'CFR - XML import'!$A175)),0,VALUE(MID('CFR - XML import'!$A175,SEARCH(\">\",'CFR - XML import'!$A175,1)+1,SEARCH(\"/\",'CFR - XML import'!$A175,1)-SEARCH(\">\",'CFR - XML import'!$A175,1)-2)))","v":0},{"$f":"IF(ISERROR(FIND(AM$3,'CFR - XML import'!$A175)),0,VALUE(MID('CFR - XML import'!$A175,SEARCH(\">\",'CFR - XML import'!$A175,1)+1,SEARCH(\"/\",'CFR - XML import'!$A175,1)-SEARCH(\">\",'CFR - XML import'!$A175,1)-2)))","v":0},{"$f":"IF(ISERROR(FIND(AN$3,'CFR - XML import'!$A175)),0,VALUE(MID('CFR - XML import'!$A175,SEARCH(\">\",'CFR - XML import'!$A175,1)+1,SEARCH(\"/\",'CFR - XML import'!$A175,1)-SEARCH(\">\",'CFR - XML import'!$A175,1)-2)))","v":0},{"$f":"IF(ISERROR(FIND(AO$3,'CFR - XML import'!$A175)),0,VALUE(MID('CFR - XML import'!$A175,SEARCH(\">\",'CFR - XML import'!$A175,1)+1,SEARCH(\"/\",'CFR - XML import'!$A175,1)-SEARCH(\">\",'CFR - XML import'!$A175,1)-2)))","v":0},{"$f":"IF(ISERROR(FIND(AP$3,'CFR - XML import'!$A175)),0,VALUE(MID('CFR - XML import'!$A175,SEARCH(\">\",'CFR - XML import'!$A175,1)+1,SEARCH(\"/\",'CFR - XML import'!$A175,1)-SEARCH(\">\",'CFR - XML import'!$A175,1)-2)))","v":0},{"$f":"IF(ISERROR(FIND(AQ$3,'CFR - XML import'!$A175)),0,VALUE(MID('CFR - XML import'!$A175,SEARCH(\">\",'CFR - XML import'!$A175,1)+1,SEARCH(\"/\",'CFR - XML import'!$A175,1)-SEARCH(\">\",'CFR - XML import'!$A175,1)-2)))","v":0},{"$f":"IF(ISERROR(FIND(AR$3,'CFR - XML import'!$A175)),0,VALUE(MID('CFR - XML import'!$A175,SEARCH(\">\",'CFR - XML import'!$A175,1)+1,SEARCH(\"/\",'CFR - XML import'!$A175,1)-SEARCH(\">\",'CFR - XML import'!$A175,1)-2)))","v":0},{"$f":"IF(ISERROR(FIND(AS$3,'CFR - XML import'!$A175)),0,VALUE(MID('CFR - XML import'!$A175,SEARCH(\">\",'CFR - XML import'!$A175,1)+1,SEARCH(\"/\",'CFR - XML import'!$A175,1)-SEARCH(\">\",'CFR - XML import'!$A175,1)-2)))","v":0},{"$f":"IF(ISERROR(FIND(AT$3,'CFR - XML import'!$A175)),0,VALUE(MID('CFR - XML import'!$A175,SEARCH(\">\",'CFR - XML import'!$A175,1)+1,SEARCH(\"/\",'CFR - XML import'!$A175,1)-SEARCH(\">\",'CFR - XML import'!$A175,1)-2)))","v":0},{"$f":"IF(ISERROR(FIND(AU$3,'CFR - XML import'!$A175)),0,VALUE(MID('CFR - XML import'!$A175,SEARCH(\">\",'CFR - XML import'!$A175,1)+1,SEARCH(\"/\",'CFR - XML import'!$A175,1)-SEARCH(\">\",'CFR - XML import'!$A175,1)-2)))","v":0},{"$f":"IF(ISERROR(FIND(AV$3,'CFR - XML import'!$A175)),0,VALUE(MID('CFR - XML import'!$A175,SEARCH(\">\",'CFR - XML import'!$A175,1)+1,SEARCH(\"/\",'CFR - XML import'!$A175,1)-SEARCH(\">\",'CFR - XML import'!$A175,1)-2)))","v":0},{"$f":"IF(ISERROR(FIND(AW$3,'CFR - XML import'!$A175)),0,VALUE(MID('CFR - XML import'!$A175,SEARCH(\">\",'CFR - XML import'!$A175,1)+1,SEARCH(\"/\",'CFR - XML import'!$A175,1)-SEARCH(\">\",'CFR - XML import'!$A175,1)-2)))","v":0},{"$f":"IF(ISERROR(FIND(AX$3,'CFR - XML import'!$A175)),0,VALUE(MID('CFR - XML import'!$A175,SEARCH(\">\",'CFR - XML import'!$A175,1)+1,SEARCH(\"/\",'CFR - XML import'!$A175,1)-SEARCH(\">\",'CFR - XML import'!$A175,1)-2)))","v":0},{"$f":"IF(ISERROR(FIND(AY$3,'CFR - XML import'!$A175)),0,VALUE(MID('CFR - XML import'!$A175,SEARCH(\">\",'CFR - XML import'!$A175,1)+1,SEARCH(\"/\",'CFR - XML import'!$A175,1)-SEARCH(\">\",'CFR - XML import'!$A175,1)-2)))","v":0},{"$f":"IF(ISERROR(FIND(AZ$3,'CFR - XML import'!$A175)),0,VALUE(MID('CFR - XML import'!$A175,SEARCH(\">\",'CFR - XML import'!$A175,1)+1,SEARCH(\"/\",'CFR - XML import'!$A175,1)-SEARCH(\">\",'CFR - XML import'!$A175,1)-2)))","v":0},{"$f":"IF(ISERROR(FIND(BA$3,'CFR - XML import'!$A175)),0,VALUE(MID('CFR - XML import'!$A175,SEARCH(\">\",'CFR - XML import'!$A175,1)+1,SEARCH(\"/\",'CFR - XML import'!$A175,1)-SEARCH(\">\",'CFR - XML import'!$A175,1)-2)))","v":0},{"$f":"IF(ISERROR(FIND(BB$3,'CFR - XML import'!$A175)),0,VALUE(MID('CFR - XML import'!$A175,SEARCH(\">\",'CFR - XML import'!$A175,1)+1,SEARCH(\"/\",'CFR - XML import'!$A175,1)-SEARCH(\">\",'CFR - XML import'!$A175,1)-2)))","v":0},{"$f":"IF(ISERROR(FIND(BC$3,'CFR - XML import'!$A175)),0,VALUE(MID('CFR - XML import'!$A175,SEARCH(\">\",'CFR - XML import'!$A175,1)+1,SEARCH(\"/\",'CFR - XML import'!$A175,1)-SEARCH(\">\",'CFR - XML import'!$A175,1)-2)))","v":0},{"$f":"IF(ISERROR(FIND(BD$3,'CFR - XML import'!$A175)),0,VALUE(MID('CFR - XML import'!$A175,SEARCH(\">\",'CFR - XML import'!$A175,1)+1,SEARCH(\"/\",'CFR - XML import'!$A175,1)-SEARCH(\">\",'CFR - XML import'!$A175,1)-2)))","v":0},{"$f":"IF(ISERROR(FIND(BE$3,'CFR - XML import'!$A175)),0,VALUE(MID('CFR - XML import'!$A175,SEARCH(\">\",'CFR - XML import'!$A175,1)+1,SEARCH(\"/\",'CFR - XML import'!$A175,1)-SEARCH(\">\",'CFR - XML import'!$A175,1)-2)))","v":0},{"$f":"IF(ISERROR(FIND(BF$3,'CFR - XML import'!$A175)),0,VALUE(MID('CFR - XML import'!$A175,SEARCH(\">\",'CFR - XML import'!$A175,1)+1,SEARCH(\"/\",'CFR - XML import'!$A175,1)-SEARCH(\">\",'CFR - XML import'!$A175,1)-2)))","v":0},{"$f":"IF(ISERROR(FIND(BG$3,'CFR - XML import'!$A175)),0,VALUE(MID('CFR - XML import'!$A175,SEARCH(\">\",'CFR - XML import'!$A175,1)+1,SEARCH(\"/\",'CFR - XML import'!$A175,1)-SEARCH(\">\",'CFR - XML import'!$A175,1)-2)))","v":0},{"$f":"IF(ISERROR(FIND(BH$3,'CFR - XML import'!$A175)),0,VALUE(MID('CFR - XML import'!$A175,SEARCH(\">\",'CFR - XML import'!$A175,1)+1,SEARCH(\"/\",'CFR - XML import'!$A175,1)-SEARCH(\">\",'CFR - XML import'!$A175,1)-2)))","v":0},{"$f":"IF(ISERROR(FIND(BI$3,'CFR - XML import'!$A175)),0,VALUE(MID('CFR - XML import'!$A175,SEARCH(\">\",'CFR - XML import'!$A175,1)+1,SEARCH(\"/\",'CFR - XML import'!$A175,1)-SEARCH(\">\",'CFR - XML import'!$A175,1)-2)))","v":0},{"$f":"IF(ISERROR(FIND(BJ$3,'CFR - XML import'!$A175)),0,VALUE(MID('CFR - XML import'!$A175,SEARCH(\">\",'CFR - XML import'!$A175,1)+1,SEARCH(\"/\",'CFR - XML import'!$A175,1)-SEARCH(\">\",'CFR - XML import'!$A175,1)-2)))","v":0},{"$f":"IF(ISERROR(FIND(BK$3,'CFR - XML import'!$A175)),0,VALUE(MID('CFR - XML import'!$A175,SEARCH(\">\",'CFR - XML import'!$A175,1)+1,SEARCH(\"/\",'CFR - XML import'!$A175,1)-SEARCH(\">\",'CFR - XML import'!$A175,1)-2)))","v":0},{"$f":"IF(ISERROR(FIND(BL$3,'CFR - XML import'!$A175)),0,VALUE(MID('CFR - XML import'!$A175,SEARCH(\">\",'CFR - XML import'!$A175,1)+1,SEARCH(\"/\",'CFR - XML import'!$A175,1)-SEARCH(\">\",'CFR - XML import'!$A175,1)-2)))","v":0},{"$f":"IF(ISERROR(FIND(BM$3,'CFR - XML import'!$A175)),0,VALUE(MID('CFR - XML import'!$A175,SEARCH(\">\",'CFR - XML import'!$A175,1)+1,SEARCH(\"/\",'CFR - XML import'!$A175,1)-SEARCH(\">\",'CFR - XML import'!$A175,1)-2)))","v":0},{"$f":"IF(ISERROR(FIND(BN$3,'CFR - XML import'!$A175)),0,VALUE(MID('CFR - XML import'!$A175,SEARCH(\">\",'CFR - XML import'!$A175,1)+1,SEARCH(\"/\",'CFR - XML import'!$A175,1)-SEARCH(\">\",'CFR - XML import'!$A175,1)-2)))","v":0},{"$f":"IF(ISERROR(FIND(BO$3,'CFR - XML import'!$A175)),0,VALUE(MID('CFR - XML import'!$A175,SEARCH(\">\",'CFR - XML import'!$A175,1)+1,SEARCH(\"/\",'CFR - XML import'!$A175,1)-SEARCH(\">\",'CFR - XML import'!$A175,1)-2)))","v":0},{"$f":"IF(ISERROR(FIND(BP$3,'CFR - XML import'!$A175)),0,VALUE(MID('CFR - XML import'!$A175,SEARCH(\">\",'CFR - XML import'!$A175,1)+1,SEARCH(\"/\",'CFR - XML import'!$A175,1)-SEARCH(\">\",'CFR - XML import'!$A175,1)-2)))","v":0},{"$f":"IF(ISERROR(FIND(BQ$3,'CFR - XML import'!$A175)),0,VALUE(MID('CFR - XML import'!$A175,SEARCH(\">\",'CFR - XML import'!$A175,1)+1,SEARCH(\"/\",'CFR - XML import'!$A175,1)-SEARCH(\">\",'CFR - XML import'!$A175,1)-2)))","v":0},{"$f":"IF(ISERROR(FIND(BR$3,'CFR - XML import'!$A175)),0,VALUE(MID('CFR - XML import'!$A175,SEARCH(\">\",'CFR - XML import'!$A175,1)+1,SEARCH(\"/\",'CFR - XML import'!$A175,1)-SEARCH(\">\",'CFR - XML import'!$A175,1)-2)))","v":0},{"$f":"IF(ISERROR(FIND(BS$3,'CFR - XML import'!$A175)),0,VALUE(MID('CFR - XML import'!$A175,SEARCH(\">\",'CFR - XML import'!$A175,1)+1,SEARCH(\"/\",'CFR - XML import'!$A175,1)-SEARCH(\">\",'CFR - XML import'!$A175,1)-2)))","v":0},{"$f":"IF(ISERROR(FIND(BT$3,'CFR - XML import'!$A175)),0,VALUE(MID('CFR - XML import'!$A175,SEARCH(\">\",'CFR - XML import'!$A175,1)+1,SEARCH(\"/\",'CFR - XML import'!$A175,1)-SEARCH(\">\",'CFR - XML import'!$A175,1)-2)))","v":0},{"$f":"IF(ISERROR(FIND(BU$3,'CFR - XML import'!$A175)),0,VALUE(MID('CFR - XML import'!$A175,SEARCH(\">\",'CFR - XML import'!$A175,1)+1,SEARCH(\"/\",'CFR - XML import'!$A175,1)-SEARCH(\">\",'CFR - XML import'!$A175,1)-2)))","v":0},{"$f":"IF(ISERROR(FIND(BV$3,'CFR - XML import'!$A175)),0,VALUE(MID('CFR - XML import'!$A175,SEARCH(\">\",'CFR - XML import'!$A175,1)+1,SEARCH(\"/\",'CFR - XML import'!$A175,1)-SEARCH(\">\",'CFR - XML import'!$A175,1)-2)))","v":0},{"$f":"IF(ISERROR(FIND(BW$3,'CFR - XML import'!$A175)),0,VALUE(MID('CFR - XML import'!$A175,SEARCH(\">\",'CFR - XML import'!$A175,1)+1,SEARCH(\"/\",'CFR - XML import'!$A175,1)-SEARCH(\">\",'CFR - XML import'!$A175,1)-2)))","v":0},{"$f":"IF(ISERROR(FIND(BX$3,'CFR - XML import'!$A175)),0,VALUE(MID('CFR - XML import'!$A175,SEARCH(\">\",'CFR - XML import'!$A175,1)+1,SEARCH(\"/\",'CFR - XML import'!$A175,1)-SEARCH(\">\",'CFR - XML import'!$A175,1)-2)))","v":0},{"$f":"IF(ISERROR(FIND(BY$3,'CFR - XML import'!$A175)),0,VALUE(MID('CFR - XML import'!$A175,SEARCH(\">\",'CFR - XML import'!$A175,1)+1,SEARCH(\"/\",'CFR - XML import'!$A175,1)-SEARCH(\">\",'CFR - XML import'!$A175,1)-2)))","v":0},{"$f":"IF(ISERROR(FIND(BZ$3,'CFR - XML import'!$A175)),0,VALUE(MID('CFR - XML import'!$A175,SEARCH(\">\",'CFR - XML import'!$A175,1)+1,SEARCH(\"/\",'CFR - XML import'!$A175,1)-SEARCH(\">\",'CFR - XML import'!$A175,1)-2)))","v":0},null,null,null,null,null,null,{"$f":"IF(ISERROR(IF(MID('CFR - XML import'!$A175,LEN($CF$4)+1,LEN('CFR - XML import'!$A175)-(2*LEN($CF$4)+1))=\"RMMS\",1,IF(MID('CFR - XML import'!$A175,LEN(\"    <InputSystem>\")+1,LEN('CFR - XML import'!$A175)-(LEN(\"    <InputSystem>\")+LEN($CF$4)+1))=\"SIMS\",2,0))),0,IF(MID('CFR - XML import'!$A175,LEN($CF$4)+1,LEN('CFR - XML import'!$A175)-(2*LEN($CF$4)+1))=\"RMMS\",1,IF(MID('CFR - XML import'!$A175,LEN(\"    <InputSystem>\")+1,LEN('CFR - XML import'!$A175)-(LEN(\"    <InputSystem>\")+LEN($CF$4)+1))=\"SIMS\",2,0)))","v":0},{"$f":"IF(ISERROR(FIND(CH$3,'CFR - XML import'!$A175)),0,MID('CFR - XML import'!$A175,SEARCH(\">\",'CFR - XML import'!$A175,1)+1,SEARCH(\"/\",'CFR - XML import'!$A175,1)-SEARCH(\">\",'CFR - XML import'!$A175,1)-2))","v":0},{"$f":"IF(ISERROR(FIND(CI$3,'CFR - XML import'!$A175)),0,MID('CFR - XML import'!$A175,SEARCH(\">\",'CFR - XML import'!$A175,1)+1,SEARCH(\"/\",'CFR - XML import'!$A175,1)-SEARCH(\">\",'CFR - XML import'!$A175,1)-2))","v":0},{"$f":"IF(ISERROR(FIND(CJ$3,'CFR - XML import'!$A175)),0,MID('CFR - XML import'!$A175,SEARCH(\">\",'CFR - XML import'!$A175,1)+1,SEARCH(\"/\",'CFR - XML import'!$A175,1)-SEARCH(\">\",'CFR - XML import'!$A175,1)-2))","v":0},{"$f":"IF(ISERROR(FIND(CK$3,'CFR - XML import'!$A175)),0,MID('CFR - XML import'!$A175,SEARCH(\">\",'CFR - XML import'!$A175,1)+1,SEARCH(\"/\",'CFR - XML import'!$A175,1)-SEARCH(\">\",'CFR - XML import'!$A175,1)-2))","v":0},{"$f":"IF(ISERROR(FIND(CL$3,'CFR - XML import'!$A175)),0,MID('CFR - XML import'!$A175,SEARCH(\">\",'CFR - XML import'!$A175,1)+1,SEARCH(\"/\",'CFR - XML import'!$A175,1)-SEARCH(\">\",'CFR - XML import'!$A175,1)-2))","v":0}]
[{"$f":"IF(AND('CFR - XML import'!A176<>\"\",LEFT('CFR - XML import'!A176,1)<>\"<\",LEFT('CFR - XML import'!A176,3)<>\"  <\",LEFT('CFR - XML import'!A176,5)<>\"    <\",LEFT('CFR - XML import'!A176,7)<>\"      <\",LEFT('CFR - XML import'!A176,9)<>\"        <\",$B$1=\"SIMS\"),'CFR - XML import'!A176,IF(AND(LEFT('CFR - XML import'!A176,9)=\"<Details>\",$B$1=\"RM\"),'CFR - XML import'!A176,\"\"))","v":""},{"$f":"IF(ISERROR(FIND(B$3,'CFR - XML import'!$A176)),0,VALUE(MID('CFR - XML import'!$A176,SEARCH(\">\",'CFR - XML import'!$A176,1)+1,SEARCH(\"/\",'CFR - XML import'!$A176,1)-SEARCH(\">\",'CFR - XML import'!$A176,1)-2)))","v":0},null,{"$f":"IF(ISERROR(FIND(D$3,'CFR - XML import'!$A176)),0,MID('CFR - XML import'!$A176,SEARCH(\">\",'CFR - XML import'!$A176,1)+1,SEARCH(\"/\",'CFR - XML import'!$A176,1)-SEARCH(\">\",'CFR - XML import'!$A176,1)-2))","v":0},{"$f":"IF(ISERROR(FIND(E$3,'CFR - XML import'!$A176)),0,MID('CFR - XML import'!$A176,SEARCH(\">\",'CFR - XML import'!$A176,1)+1,SEARCH(\"/\",'CFR - XML import'!$A176,1)-SEARCH(\">\",'CFR - XML import'!$A176,1)-2))","v":0},{"$f":"IF($B$1=\"SIMS\",IF(ISERROR(FIND(F$3,'CFR - XML import'!$A176)),0,VALUE(MID('CFR - XML import'!$A176,15,10))),IF(ISERROR(FIND(F$3,'CFR - XML import'!$A176)),0,VALUE(MID('CFR - XML import'!$A176,11,10))))","v":"00:00:00"},{"$f":"IF(ISERROR(FIND(G$3,'CFR - XML import'!$A176)),0,VALUE(MID('CFR - XML import'!$A176,SEARCH(\">\",'CFR - XML import'!$A176,1)+1,SEARCH(\"/\",'CFR - XML import'!$A176,1)-SEARCH(\">\",'CFR - XML import'!$A176,1)-2)))","v":0},{"$f":"IF(ISERROR(FIND(H$3,'CFR - XML import'!$A176)),0,VALUE(MID('CFR - XML import'!$A176,SEARCH(\">\",'CFR - XML import'!$A176,1)+1,SEARCH(\"/\",'CFR - XML import'!$A176,1)-SEARCH(\">\",'CFR - XML import'!$A176,1)-2)))","v":0},{"$f":"IF(ISERROR(FIND(I$3,'CFR - XML import'!$A176)),0,VALUE(MID('CFR - XML import'!$A176,SEARCH(\">\",'CFR - XML import'!$A176,1)+1,SEARCH(\"/\",'CFR - XML import'!$A176,1)-SEARCH(\">\",'CFR - XML import'!$A176,1)-2)))","v":0},{"$f":"IF(ISERROR(FIND(J$3,'CFR - XML import'!$A176)),0,VALUE(MID('CFR - XML import'!$A176,SEARCH(\">\",'CFR - XML import'!$A176,1)+1,SEARCH(\"/\",'CFR - XML import'!$A176,1)-SEARCH(\">\",'CFR - XML import'!$A176,1)-2)))","v":0},{"$f":"IF(ISERROR(FIND(K$3,'CFR - XML import'!$A176)),0,VALUE(MID('CFR - XML import'!$A176,SEARCH(\">\",'CFR - XML import'!$A176,1)+1,SEARCH(\"/\",'CFR - XML import'!$A176,1)-SEARCH(\">\",'CFR - XML import'!$A176,1)-2)))","v":0},{"$f":"IF(ISERROR(FIND(L$3,'CFR - XML import'!$A176)),0,VALUE(MID('CFR - XML import'!$A176,SEARCH(\">\",'CFR - XML import'!$A176,1)+1,SEARCH(\"/\",'CFR - XML import'!$A176,1)-SEARCH(\">\",'CFR - XML import'!$A176,1)-2)))","v":0},{"$f":"IF(ISERROR(FIND(M$3,'CFR - XML import'!$A176)),0,VALUE(MID('CFR - XML import'!$A176,SEARCH(\">\",'CFR - XML import'!$A176,1)+1,SEARCH(\"/\",'CFR - XML import'!$A176,1)-SEARCH(\">\",'CFR - XML import'!$A176,1)-2)))","v":0},{"$f":"IF(ISERROR(FIND(N$3,'CFR - XML import'!$A176)),0,VALUE(MID('CFR - XML import'!$A176,SEARCH(\">\",'CFR - XML import'!$A176,1)+1,SEARCH(\"/\",'CFR - XML import'!$A176,1)-SEARCH(\">\",'CFR - XML import'!$A176,1)-2)))","v":0},{"$f":"IF(ISERROR(FIND(O$3,'CFR - XML import'!$A176)),0,VALUE(MID('CFR - XML import'!$A176,SEARCH(\">\",'CFR - XML import'!$A176,1)+1,SEARCH(\"/\",'CFR - XML import'!$A176,1)-SEARCH(\">\",'CFR - XML import'!$A176,1)-2)))","v":0},{"$f":"IF(ISERROR(FIND(P$3,'CFR - XML import'!$A176)),0,VALUE(MID('CFR - XML import'!$A176,SEARCH(\">\",'CFR - XML import'!$A176,1)+1,SEARCH(\"/\",'CFR - XML import'!$A176,1)-SEARCH(\">\",'CFR - XML import'!$A176,1)-2)))","v":0},{"$f":"IF(ISERROR(FIND(Q$3,'CFR - XML import'!$A176)),0,VALUE(MID('CFR - XML import'!$A176,SEARCH(\">\",'CFR - XML import'!$A176,1)+1,SEARCH(\"/\",'CFR - XML import'!$A176,1)-SEARCH(\">\",'CFR - XML import'!$A176,1)-2)))","v":0},{"$f":"IF(ISERROR(FIND(R$3,'CFR - XML import'!$A176)),0,VALUE(MID('CFR - XML import'!$A176,SEARCH(\">\",'CFR - XML import'!$A176,1)+1,SEARCH(\"/\",'CFR - XML import'!$A176,1)-SEARCH(\">\",'CFR - XML import'!$A176,1)-2)))","v":0},{"$f":"IF(ISERROR(FIND(S$3,'CFR - XML import'!$A176)),0,VALUE(MID('CFR - XML import'!$A176,SEARCH(\">\",'CFR - XML import'!$A176,1)+1,SEARCH(\"/\",'CFR - XML import'!$A176,1)-SEARCH(\">\",'CFR - XML import'!$A176,1)-2)))","v":0},{"$f":"IF(ISERROR(FIND(T$3,'CFR - XML import'!$A176)),0,VALUE(MID('CFR - XML import'!$A176,SEARCH(\">\",'CFR - XML import'!$A176,1)+1,SEARCH(\"/\",'CFR - XML import'!$A176,1)-SEARCH(\">\",'CFR - XML import'!$A176,1)-2)))","v":0},{"$f":"IF(ISERROR(FIND(U$3,'CFR - XML import'!$A176)),0,VALUE(MID('CFR - XML import'!$A176,SEARCH(\">\",'CFR - XML import'!$A176,1)+1,SEARCH(\"/\",'CFR - XML import'!$A176,1)-SEARCH(\">\",'CFR - XML import'!$A176,1)-2)))","v":0},{"$f":"IF(ISERROR(FIND(V$3,'CFR - XML import'!$A176)),0,VALUE(MID('CFR - XML import'!$A176,SEARCH(\">\",'CFR - XML import'!$A176,1)+1,SEARCH(\"/\",'CFR - XML import'!$A176,1)-SEARCH(\">\",'CFR - XML import'!$A176,1)-2)))","v":0},{"$f":"IF(ISERROR(FIND(W$3,'CFR - XML import'!$A176)),0,VALUE(MID('CFR - XML import'!$A176,SEARCH(\">\",'CFR - XML import'!$A176,1)+1,SEARCH(\"/\",'CFR - XML import'!$A176,1)-SEARCH(\">\",'CFR - XML import'!$A176,1)-2)))","v":0},null,{"$f":"IF(ISERROR(FIND(Y$3,'CFR - XML import'!$A176)),0,VALUE(MID('CFR - XML import'!$A176,SEARCH(\">\",'CFR - XML import'!$A176,1)+1,SEARCH(\"/\",'CFR - XML import'!$A176,1)-SEARCH(\">\",'CFR - XML import'!$A176,1)-2)))","v":0},{"$f":"IF(ISERROR(FIND(Z$3,'CFR - XML import'!$A176)),0,VALUE(MID('CFR - XML import'!$A176,SEARCH(\">\",'CFR - XML import'!$A176,1)+1,SEARCH(\"/\",'CFR - XML import'!$A176,1)-SEARCH(\">\",'CFR - XML import'!$A176,1)-2)))","v":0},{"$f":"IF(ISERROR(FIND(AA$3,'CFR - XML import'!$A176)),0,VALUE(MID('CFR - XML import'!$A176,SEARCH(\">\",'CFR - XML import'!$A176,1)+1,SEARCH(\"/\",'CFR - XML import'!$A176,1)-SEARCH(\">\",'CFR - XML import'!$A176,1)-2)))","v":0},{"$f":"IF(ISERROR(FIND(AB$3,'CFR - XML import'!$A176)),0,VALUE(MID('CFR - XML import'!$A176,SEARCH(\">\",'CFR - XML import'!$A176,1)+1,SEARCH(\"/\",'CFR - XML import'!$A176,1)-SEARCH(\">\",'CFR - XML import'!$A176,1)-2)))","v":0},{"$f":"IF(ISERROR(FIND(AC$3,'CFR - XML import'!$A176)),0,VALUE(MID('CFR - XML import'!$A176,SEARCH(\">\",'CFR - XML import'!$A176,1)+1,SEARCH(\"/\",'CFR - XML import'!$A176,1)-SEARCH(\">\",'CFR - XML import'!$A176,1)-2)))","v":0},{"$f":"IF(ISERROR(FIND(AD$3,'CFR - XML import'!$A176)),0,VALUE(MID('CFR - XML import'!$A176,SEARCH(\">\",'CFR - XML import'!$A176,1)+1,SEARCH(\"/\",'CFR - XML import'!$A176,1)-SEARCH(\">\",'CFR - XML import'!$A176,1)-2)))","v":0},{"$f":"IF(ISERROR(FIND(AE$3,'CFR - XML import'!$A176)),0,VALUE(MID('CFR - XML import'!$A176,SEARCH(\">\",'CFR - XML import'!$A176,1)+1,SEARCH(\"/\",'CFR - XML import'!$A176,1)-SEARCH(\">\",'CFR - XML import'!$A176,1)-2)))","v":0},{"$f":"IF(ISERROR(FIND(AF$3,'CFR - XML import'!$A176)),0,VALUE(MID('CFR - XML import'!$A176,SEARCH(\">\",'CFR - XML import'!$A176,1)+1,SEARCH(\"/\",'CFR - XML import'!$A176,1)-SEARCH(\">\",'CFR - XML import'!$A176,1)-2)))","v":0},{"$f":"IF(ISERROR(FIND(AG$3,'CFR - XML import'!$A176)),0,VALUE(MID('CFR - XML import'!$A176,SEARCH(\">\",'CFR - XML import'!$A176,1)+1,SEARCH(\"/\",'CFR - XML import'!$A176,1)-SEARCH(\">\",'CFR - XML import'!$A176,1)-2)))","v":0},{"$f":"IF(ISERROR(FIND(AH$3,'CFR - XML import'!$A176)),0,VALUE(MID('CFR - XML import'!$A176,SEARCH(\">\",'CFR - XML import'!$A176,1)+1,SEARCH(\"/\",'CFR - XML import'!$A176,1)-SEARCH(\">\",'CFR - XML import'!$A176,1)-2)))","v":0},{"$f":"IF(ISERROR(FIND(AI$3,'CFR - XML import'!$A176)),0,VALUE(MID('CFR - XML import'!$A176,SEARCH(\">\",'CFR - XML import'!$A176,1)+1,SEARCH(\"/\",'CFR - XML import'!$A176,1)-SEARCH(\">\",'CFR - XML import'!$A176,1)-2)))","v":0},{"$f":"IF(ISERROR(FIND(AJ$3,'CFR - XML import'!$A176)),0,VALUE(MID('CFR - XML import'!$A176,SEARCH(\">\",'CFR - XML import'!$A176,1)+1,SEARCH(\"/\",'CFR - XML import'!$A176,1)-SEARCH(\">\",'CFR - XML import'!$A176,1)-2)))","v":0},{"$f":"IF(ISERROR(FIND(AK$3,'CFR - XML import'!$A176)),0,VALUE(MID('CFR - XML import'!$A176,SEARCH(\">\",'CFR - XML import'!$A176,1)+1,SEARCH(\"/\",'CFR - XML import'!$A176,1)-SEARCH(\">\",'CFR - XML import'!$A176,1)-2)))","v":0},{"$f":"IF(ISERROR(FIND(AL$3,'CFR - XML import'!$A176)),0,VALUE(MID('CFR - XML import'!$A176,SEARCH(\">\",'CFR - XML import'!$A176,1)+1,SEARCH(\"/\",'CFR - XML import'!$A176,1)-SEARCH(\">\",'CFR - XML import'!$A176,1)-2)))","v":0},{"$f":"IF(ISERROR(FIND(AM$3,'CFR - XML import'!$A176)),0,VALUE(MID('CFR - XML import'!$A176,SEARCH(\">\",'CFR - XML import'!$A176,1)+1,SEARCH(\"/\",'CFR - XML import'!$A176,1)-SEARCH(\">\",'CFR - XML import'!$A176,1)-2)))","v":0},{"$f":"IF(ISERROR(FIND(AN$3,'CFR - XML import'!$A176)),0,VALUE(MID('CFR - XML import'!$A176,SEARCH(\">\",'CFR - XML import'!$A176,1)+1,SEARCH(\"/\",'CFR - XML import'!$A176,1)-SEARCH(\">\",'CFR - XML import'!$A176,1)-2)))","v":0},{"$f":"IF(ISERROR(FIND(AO$3,'CFR - XML import'!$A176)),0,VALUE(MID('CFR - XML import'!$A176,SEARCH(\">\",'CFR - XML import'!$A176,1)+1,SEARCH(\"/\",'CFR - XML import'!$A176,1)-SEARCH(\">\",'CFR - XML import'!$A176,1)-2)))","v":0},{"$f":"IF(ISERROR(FIND(AP$3,'CFR - XML import'!$A176)),0,VALUE(MID('CFR - XML import'!$A176,SEARCH(\">\",'CFR - XML import'!$A176,1)+1,SEARCH(\"/\",'CFR - XML import'!$A176,1)-SEARCH(\">\",'CFR - XML import'!$A176,1)-2)))","v":0},{"$f":"IF(ISERROR(FIND(AQ$3,'CFR - XML import'!$A176)),0,VALUE(MID('CFR - XML import'!$A176,SEARCH(\">\",'CFR - XML import'!$A176,1)+1,SEARCH(\"/\",'CFR - XML import'!$A176,1)-SEARCH(\">\",'CFR - XML import'!$A176,1)-2)))","v":0},{"$f":"IF(ISERROR(FIND(AR$3,'CFR - XML import'!$A176)),0,VALUE(MID('CFR - XML import'!$A176,SEARCH(\">\",'CFR - XML import'!$A176,1)+1,SEARCH(\"/\",'CFR - XML import'!$A176,1)-SEARCH(\">\",'CFR - XML import'!$A176,1)-2)))","v":0},{"$f":"IF(ISERROR(FIND(AS$3,'CFR - XML import'!$A176)),0,VALUE(MID('CFR - XML import'!$A176,SEARCH(\">\",'CFR - XML import'!$A176,1)+1,SEARCH(\"/\",'CFR - XML import'!$A176,1)-SEARCH(\">\",'CFR - XML import'!$A176,1)-2)))","v":0},{"$f":"IF(ISERROR(FIND(AT$3,'CFR - XML import'!$A176)),0,VALUE(MID('CFR - XML import'!$A176,SEARCH(\">\",'CFR - XML import'!$A176,1)+1,SEARCH(\"/\",'CFR - XML import'!$A176,1)-SEARCH(\">\",'CFR - XML import'!$A176,1)-2)))","v":0},{"$f":"IF(ISERROR(FIND(AU$3,'CFR - XML import'!$A176)),0,VALUE(MID('CFR - XML import'!$A176,SEARCH(\">\",'CFR - XML import'!$A176,1)+1,SEARCH(\"/\",'CFR - XML import'!$A176,1)-SEARCH(\">\",'CFR - XML import'!$A176,1)-2)))","v":0},{"$f":"IF(ISERROR(FIND(AV$3,'CFR - XML import'!$A176)),0,VALUE(MID('CFR - XML import'!$A176,SEARCH(\">\",'CFR - XML import'!$A176,1)+1,SEARCH(\"/\",'CFR - XML import'!$A176,1)-SEARCH(\">\",'CFR - XML import'!$A176,1)-2)))","v":0},{"$f":"IF(ISERROR(FIND(AW$3,'CFR - XML import'!$A176)),0,VALUE(MID('CFR - XML import'!$A176,SEARCH(\">\",'CFR - XML import'!$A176,1)+1,SEARCH(\"/\",'CFR - XML import'!$A176,1)-SEARCH(\">\",'CFR - XML import'!$A176,1)-2)))","v":0},{"$f":"IF(ISERROR(FIND(AX$3,'CFR - XML import'!$A176)),0,VALUE(MID('CFR - XML import'!$A176,SEARCH(\">\",'CFR - XML import'!$A176,1)+1,SEARCH(\"/\",'CFR - XML import'!$A176,1)-SEARCH(\">\",'CFR - XML import'!$A176,1)-2)))","v":0},{"$f":"IF(ISERROR(FIND(AY$3,'CFR - XML import'!$A176)),0,VALUE(MID('CFR - XML import'!$A176,SEARCH(\">\",'CFR - XML import'!$A176,1)+1,SEARCH(\"/\",'CFR - XML import'!$A176,1)-SEARCH(\">\",'CFR - XML import'!$A176,1)-2)))","v":0},{"$f":"IF(ISERROR(FIND(AZ$3,'CFR - XML import'!$A176)),0,VALUE(MID('CFR - XML import'!$A176,SEARCH(\">\",'CFR - XML import'!$A176,1)+1,SEARCH(\"/\",'CFR - XML import'!$A176,1)-SEARCH(\">\",'CFR - XML import'!$A176,1)-2)))","v":0},{"$f":"IF(ISERROR(FIND(BA$3,'CFR - XML import'!$A176)),0,VALUE(MID('CFR - XML import'!$A176,SEARCH(\">\",'CFR - XML import'!$A176,1)+1,SEARCH(\"/\",'CFR - XML import'!$A176,1)-SEARCH(\">\",'CFR - XML import'!$A176,1)-2)))","v":0},{"$f":"IF(ISERROR(FIND(BB$3,'CFR - XML import'!$A176)),0,VALUE(MID('CFR - XML import'!$A176,SEARCH(\">\",'CFR - XML import'!$A176,1)+1,SEARCH(\"/\",'CFR - XML import'!$A176,1)-SEARCH(\">\",'CFR - XML import'!$A176,1)-2)))","v":0},{"$f":"IF(ISERROR(FIND(BC$3,'CFR - XML import'!$A176)),0,VALUE(MID('CFR - XML import'!$A176,SEARCH(\">\",'CFR - XML import'!$A176,1)+1,SEARCH(\"/\",'CFR - XML import'!$A176,1)-SEARCH(\">\",'CFR - XML import'!$A176,1)-2)))","v":0},{"$f":"IF(ISERROR(FIND(BD$3,'CFR - XML import'!$A176)),0,VALUE(MID('CFR - XML import'!$A176,SEARCH(\">\",'CFR - XML import'!$A176,1)+1,SEARCH(\"/\",'CFR - XML import'!$A176,1)-SEARCH(\">\",'CFR - XML import'!$A176,1)-2)))","v":0},{"$f":"IF(ISERROR(FIND(BE$3,'CFR - XML import'!$A176)),0,VALUE(MID('CFR - XML import'!$A176,SEARCH(\">\",'CFR - XML import'!$A176,1)+1,SEARCH(\"/\",'CFR - XML import'!$A176,1)-SEARCH(\">\",'CFR - XML import'!$A176,1)-2)))","v":0},{"$f":"IF(ISERROR(FIND(BF$3,'CFR - XML import'!$A176)),0,VALUE(MID('CFR - XML import'!$A176,SEARCH(\">\",'CFR - XML import'!$A176,1)+1,SEARCH(\"/\",'CFR - XML import'!$A176,1)-SEARCH(\">\",'CFR - XML import'!$A176,1)-2)))","v":0},{"$f":"IF(ISERROR(FIND(BG$3,'CFR - XML import'!$A176)),0,VALUE(MID('CFR - XML import'!$A176,SEARCH(\">\",'CFR - XML import'!$A176,1)+1,SEARCH(\"/\",'CFR - XML import'!$A176,1)-SEARCH(\">\",'CFR - XML import'!$A176,1)-2)))","v":0},{"$f":"IF(ISERROR(FIND(BH$3,'CFR - XML import'!$A176)),0,VALUE(MID('CFR - XML import'!$A176,SEARCH(\">\",'CFR - XML import'!$A176,1)+1,SEARCH(\"/\",'CFR - XML import'!$A176,1)-SEARCH(\">\",'CFR - XML import'!$A176,1)-2)))","v":0},{"$f":"IF(ISERROR(FIND(BI$3,'CFR - XML import'!$A176)),0,VALUE(MID('CFR - XML import'!$A176,SEARCH(\">\",'CFR - XML import'!$A176,1)+1,SEARCH(\"/\",'CFR - XML import'!$A176,1)-SEARCH(\">\",'CFR - XML import'!$A176,1)-2)))","v":0},{"$f":"IF(ISERROR(FIND(BJ$3,'CFR - XML import'!$A176)),0,VALUE(MID('CFR - XML import'!$A176,SEARCH(\">\",'CFR - XML import'!$A176,1)+1,SEARCH(\"/\",'CFR - XML import'!$A176,1)-SEARCH(\">\",'CFR - XML import'!$A176,1)-2)))","v":0},{"$f":"IF(ISERROR(FIND(BK$3,'CFR - XML import'!$A176)),0,VALUE(MID('CFR - XML import'!$A176,SEARCH(\">\",'CFR - XML import'!$A176,1)+1,SEARCH(\"/\",'CFR - XML import'!$A176,1)-SEARCH(\">\",'CFR - XML import'!$A176,1)-2)))","v":0},{"$f":"IF(ISERROR(FIND(BL$3,'CFR - XML import'!$A176)),0,VALUE(MID('CFR - XML import'!$A176,SEARCH(\">\",'CFR - XML import'!$A176,1)+1,SEARCH(\"/\",'CFR - XML import'!$A176,1)-SEARCH(\">\",'CFR - XML import'!$A176,1)-2)))","v":0},{"$f":"IF(ISERROR(FIND(BM$3,'CFR - XML import'!$A176)),0,VALUE(MID('CFR - XML import'!$A176,SEARCH(\">\",'CFR - XML import'!$A176,1)+1,SEARCH(\"/\",'CFR - XML import'!$A176,1)-SEARCH(\">\",'CFR - XML import'!$A176,1)-2)))","v":0},{"$f":"IF(ISERROR(FIND(BN$3,'CFR - XML import'!$A176)),0,VALUE(MID('CFR - XML import'!$A176,SEARCH(\">\",'CFR - XML import'!$A176,1)+1,SEARCH(\"/\",'CFR - XML import'!$A176,1)-SEARCH(\">\",'CFR - XML import'!$A176,1)-2)))","v":0},{"$f":"IF(ISERROR(FIND(BO$3,'CFR - XML import'!$A176)),0,VALUE(MID('CFR - XML import'!$A176,SEARCH(\">\",'CFR - XML import'!$A176,1)+1,SEARCH(\"/\",'CFR - XML import'!$A176,1)-SEARCH(\">\",'CFR - XML import'!$A176,1)-2)))","v":0},{"$f":"IF(ISERROR(FIND(BP$3,'CFR - XML import'!$A176)),0,VALUE(MID('CFR - XML import'!$A176,SEARCH(\">\",'CFR - XML import'!$A176,1)+1,SEARCH(\"/\",'CFR - XML import'!$A176,1)-SEARCH(\">\",'CFR - XML import'!$A176,1)-2)))","v":0},{"$f":"IF(ISERROR(FIND(BQ$3,'CFR - XML import'!$A176)),0,VALUE(MID('CFR - XML import'!$A176,SEARCH(\">\",'CFR - XML import'!$A176,1)+1,SEARCH(\"/\",'CFR - XML import'!$A176,1)-SEARCH(\">\",'CFR - XML import'!$A176,1)-2)))","v":0},{"$f":"IF(ISERROR(FIND(BR$3,'CFR - XML import'!$A176)),0,VALUE(MID('CFR - XML import'!$A176,SEARCH(\">\",'CFR - XML import'!$A176,1)+1,SEARCH(\"/\",'CFR - XML import'!$A176,1)-SEARCH(\">\",'CFR - XML import'!$A176,1)-2)))","v":0},{"$f":"IF(ISERROR(FIND(BS$3,'CFR - XML import'!$A176)),0,VALUE(MID('CFR - XML import'!$A176,SEARCH(\">\",'CFR - XML import'!$A176,1)+1,SEARCH(\"/\",'CFR - XML import'!$A176,1)-SEARCH(\">\",'CFR - XML import'!$A176,1)-2)))","v":0},{"$f":"IF(ISERROR(FIND(BT$3,'CFR - XML import'!$A176)),0,VALUE(MID('CFR - XML import'!$A176,SEARCH(\">\",'CFR - XML import'!$A176,1)+1,SEARCH(\"/\",'CFR - XML import'!$A176,1)-SEARCH(\">\",'CFR - XML import'!$A176,1)-2)))","v":0},{"$f":"IF(ISERROR(FIND(BU$3,'CFR - XML import'!$A176)),0,VALUE(MID('CFR - XML import'!$A176,SEARCH(\">\",'CFR - XML import'!$A176,1)+1,SEARCH(\"/\",'CFR - XML import'!$A176,1)-SEARCH(\">\",'CFR - XML import'!$A176,1)-2)))","v":0},{"$f":"IF(ISERROR(FIND(BV$3,'CFR - XML import'!$A176)),0,VALUE(MID('CFR - XML import'!$A176,SEARCH(\">\",'CFR - XML import'!$A176,1)+1,SEARCH(\"/\",'CFR - XML import'!$A176,1)-SEARCH(\">\",'CFR - XML import'!$A176,1)-2)))","v":0},{"$f":"IF(ISERROR(FIND(BW$3,'CFR - XML import'!$A176)),0,VALUE(MID('CFR - XML import'!$A176,SEARCH(\">\",'CFR - XML import'!$A176,1)+1,SEARCH(\"/\",'CFR - XML import'!$A176,1)-SEARCH(\">\",'CFR - XML import'!$A176,1)-2)))","v":0},{"$f":"IF(ISERROR(FIND(BX$3,'CFR - XML import'!$A176)),0,VALUE(MID('CFR - XML import'!$A176,SEARCH(\">\",'CFR - XML import'!$A176,1)+1,SEARCH(\"/\",'CFR - XML import'!$A176,1)-SEARCH(\">\",'CFR - XML import'!$A176,1)-2)))","v":0},{"$f":"IF(ISERROR(FIND(BY$3,'CFR - XML import'!$A176)),0,VALUE(MID('CFR - XML import'!$A176,SEARCH(\">\",'CFR - XML import'!$A176,1)+1,SEARCH(\"/\",'CFR - XML import'!$A176,1)-SEARCH(\">\",'CFR - XML import'!$A176,1)-2)))","v":0},{"$f":"IF(ISERROR(FIND(BZ$3,'CFR - XML import'!$A176)),0,VALUE(MID('CFR - XML import'!$A176,SEARCH(\">\",'CFR - XML import'!$A176,1)+1,SEARCH(\"/\",'CFR - XML import'!$A176,1)-SEARCH(\">\",'CFR - XML import'!$A176,1)-2)))","v":0},null,null,null,null,null,null,{"$f":"IF(ISERROR(IF(MID('CFR - XML import'!$A176,LEN($CF$4)+1,LEN('CFR - XML import'!$A176)-(2*LEN($CF$4)+1))=\"RMMS\",1,IF(MID('CFR - XML import'!$A176,LEN(\"    <InputSystem>\")+1,LEN('CFR - XML import'!$A176)-(LEN(\"    <InputSystem>\")+LEN($CF$4)+1))=\"SIMS\",2,0))),0,IF(MID('CFR - XML import'!$A176,LEN($CF$4)+1,LEN('CFR - XML import'!$A176)-(2*LEN($CF$4)+1))=\"RMMS\",1,IF(MID('CFR - XML import'!$A176,LEN(\"    <InputSystem>\")+1,LEN('CFR - XML import'!$A176)-(LEN(\"    <InputSystem>\")+LEN($CF$4)+1))=\"SIMS\",2,0)))","v":0},{"$f":"IF(ISERROR(FIND(CH$3,'CFR - XML import'!$A176)),0,MID('CFR - XML import'!$A176,SEARCH(\">\",'CFR - XML import'!$A176,1)+1,SEARCH(\"/\",'CFR - XML import'!$A176,1)-SEARCH(\">\",'CFR - XML import'!$A176,1)-2))","v":0},{"$f":"IF(ISERROR(FIND(CI$3,'CFR - XML import'!$A176)),0,MID('CFR - XML import'!$A176,SEARCH(\">\",'CFR - XML import'!$A176,1)+1,SEARCH(\"/\",'CFR - XML import'!$A176,1)-SEARCH(\">\",'CFR - XML import'!$A176,1)-2))","v":0},{"$f":"IF(ISERROR(FIND(CJ$3,'CFR - XML import'!$A176)),0,MID('CFR - XML import'!$A176,SEARCH(\">\",'CFR - XML import'!$A176,1)+1,SEARCH(\"/\",'CFR - XML import'!$A176,1)-SEARCH(\">\",'CFR - XML import'!$A176,1)-2))","v":0},{"$f":"IF(ISERROR(FIND(CK$3,'CFR - XML import'!$A176)),0,MID('CFR - XML import'!$A176,SEARCH(\">\",'CFR - XML import'!$A176,1)+1,SEARCH(\"/\",'CFR - XML import'!$A176,1)-SEARCH(\">\",'CFR - XML import'!$A176,1)-2))","v":0},{"$f":"IF(ISERROR(FIND(CL$3,'CFR - XML import'!$A176)),0,MID('CFR - XML import'!$A176,SEARCH(\">\",'CFR - XML import'!$A176,1)+1,SEARCH(\"/\",'CFR - XML import'!$A176,1)-SEARCH(\">\",'CFR - XML import'!$A176,1)-2))","v":0}]
[{"$f":"IF(AND('CFR - XML import'!A177<>\"\",LEFT('CFR - XML import'!A177,1)<>\"<\",LEFT('CFR - XML import'!A177,3)<>\"  <\",LEFT('CFR - XML import'!A177,5)<>\"    <\",LEFT('CFR - XML import'!A177,7)<>\"      <\",LEFT('CFR - XML import'!A177,9)<>\"        <\",$B$1=\"SIMS\"),'CFR - XML import'!A177,IF(AND(LEFT('CFR - XML import'!A177,9)=\"<Details>\",$B$1=\"RM\"),'CFR - XML import'!A177,\"\"))","v":""},{"$f":"IF(ISERROR(FIND(B$3,'CFR - XML import'!$A177)),0,VALUE(MID('CFR - XML import'!$A177,SEARCH(\">\",'CFR - XML import'!$A177,1)+1,SEARCH(\"/\",'CFR - XML import'!$A177,1)-SEARCH(\">\",'CFR - XML import'!$A177,1)-2)))","v":0},null,{"$f":"IF(ISERROR(FIND(D$3,'CFR - XML import'!$A177)),0,MID('CFR - XML import'!$A177,SEARCH(\">\",'CFR - XML import'!$A177,1)+1,SEARCH(\"/\",'CFR - XML import'!$A177,1)-SEARCH(\">\",'CFR - XML import'!$A177,1)-2))","v":0},{"$f":"IF(ISERROR(FIND(E$3,'CFR - XML import'!$A177)),0,MID('CFR - XML import'!$A177,SEARCH(\">\",'CFR - XML import'!$A177,1)+1,SEARCH(\"/\",'CFR - XML import'!$A177,1)-SEARCH(\">\",'CFR - XML import'!$A177,1)-2))","v":0},{"$f":"IF($B$1=\"SIMS\",IF(ISERROR(FIND(F$3,'CFR - XML import'!$A177)),0,VALUE(MID('CFR - XML import'!$A177,15,10))),IF(ISERROR(FIND(F$3,'CFR - XML import'!$A177)),0,VALUE(MID('CFR - XML import'!$A177,11,10))))","v":"00:00:00"},{"$f":"IF(ISERROR(FIND(G$3,'CFR - XML import'!$A177)),0,VALUE(MID('CFR - XML import'!$A177,SEARCH(\">\",'CFR - XML import'!$A177,1)+1,SEARCH(\"/\",'CFR - XML import'!$A177,1)-SEARCH(\">\",'CFR - XML import'!$A177,1)-2)))","v":0},{"$f":"IF(ISERROR(FIND(H$3,'CFR - XML import'!$A177)),0,VALUE(MID('CFR - XML import'!$A177,SEARCH(\">\",'CFR - XML import'!$A177,1)+1,SEARCH(\"/\",'CFR - XML import'!$A177,1)-SEARCH(\">\",'CFR - XML import'!$A177,1)-2)))","v":0},{"$f":"IF(ISERROR(FIND(I$3,'CFR - XML import'!$A177)),0,VALUE(MID('CFR - XML import'!$A177,SEARCH(\">\",'CFR - XML import'!$A177,1)+1,SEARCH(\"/\",'CFR - XML import'!$A177,1)-SEARCH(\">\",'CFR - XML import'!$A177,1)-2)))","v":0},{"$f":"IF(ISERROR(FIND(J$3,'CFR - XML import'!$A177)),0,VALUE(MID('CFR - XML import'!$A177,SEARCH(\">\",'CFR - XML import'!$A177,1)+1,SEARCH(\"/\",'CFR - XML import'!$A177,1)-SEARCH(\">\",'CFR - XML import'!$A177,1)-2)))","v":0},{"$f":"IF(ISERROR(FIND(K$3,'CFR - XML import'!$A177)),0,VALUE(MID('CFR - XML import'!$A177,SEARCH(\">\",'CFR - XML import'!$A177,1)+1,SEARCH(\"/\",'CFR - XML import'!$A177,1)-SEARCH(\">\",'CFR - XML import'!$A177,1)-2)))","v":0},{"$f":"IF(ISERROR(FIND(L$3,'CFR - XML import'!$A177)),0,VALUE(MID('CFR - XML import'!$A177,SEARCH(\">\",'CFR - XML import'!$A177,1)+1,SEARCH(\"/\",'CFR - XML import'!$A177,1)-SEARCH(\">\",'CFR - XML import'!$A177,1)-2)))","v":0},{"$f":"IF(ISERROR(FIND(M$3,'CFR - XML import'!$A177)),0,VALUE(MID('CFR - XML import'!$A177,SEARCH(\">\",'CFR - XML import'!$A177,1)+1,SEARCH(\"/\",'CFR - XML import'!$A177,1)-SEARCH(\">\",'CFR - XML import'!$A177,1)-2)))","v":0},{"$f":"IF(ISERROR(FIND(N$3,'CFR - XML import'!$A177)),0,VALUE(MID('CFR - XML import'!$A177,SEARCH(\">\",'CFR - XML import'!$A177,1)+1,SEARCH(\"/\",'CFR - XML import'!$A177,1)-SEARCH(\">\",'CFR - XML import'!$A177,1)-2)))","v":0},{"$f":"IF(ISERROR(FIND(O$3,'CFR - XML import'!$A177)),0,VALUE(MID('CFR - XML import'!$A177,SEARCH(\">\",'CFR - XML import'!$A177,1)+1,SEARCH(\"/\",'CFR - XML import'!$A177,1)-SEARCH(\">\",'CFR - XML import'!$A177,1)-2)))","v":0},{"$f":"IF(ISERROR(FIND(P$3,'CFR - XML import'!$A177)),0,VALUE(MID('CFR - XML import'!$A177,SEARCH(\">\",'CFR - XML import'!$A177,1)+1,SEARCH(\"/\",'CFR - XML import'!$A177,1)-SEARCH(\">\",'CFR - XML import'!$A177,1)-2)))","v":0},{"$f":"IF(ISERROR(FIND(Q$3,'CFR - XML import'!$A177)),0,VALUE(MID('CFR - XML import'!$A177,SEARCH(\">\",'CFR - XML import'!$A177,1)+1,SEARCH(\"/\",'CFR - XML import'!$A177,1)-SEARCH(\">\",'CFR - XML import'!$A177,1)-2)))","v":0},{"$f":"IF(ISERROR(FIND(R$3,'CFR - XML import'!$A177)),0,VALUE(MID('CFR - XML import'!$A177,SEARCH(\">\",'CFR - XML import'!$A177,1)+1,SEARCH(\"/\",'CFR - XML import'!$A177,1)-SEARCH(\">\",'CFR - XML import'!$A177,1)-2)))","v":0},{"$f":"IF(ISERROR(FIND(S$3,'CFR - XML import'!$A177)),0,VALUE(MID('CFR - XML import'!$A177,SEARCH(\">\",'CFR - XML import'!$A177,1)+1,SEARCH(\"/\",'CFR - XML import'!$A177,1)-SEARCH(\">\",'CFR - XML import'!$A177,1)-2)))","v":0},{"$f":"IF(ISERROR(FIND(T$3,'CFR - XML import'!$A177)),0,VALUE(MID('CFR - XML import'!$A177,SEARCH(\">\",'CFR - XML import'!$A177,1)+1,SEARCH(\"/\",'CFR - XML import'!$A177,1)-SEARCH(\">\",'CFR - XML import'!$A177,1)-2)))","v":0},{"$f":"IF(ISERROR(FIND(U$3,'CFR - XML import'!$A177)),0,VALUE(MID('CFR - XML import'!$A177,SEARCH(\">\",'CFR - XML import'!$A177,1)+1,SEARCH(\"/\",'CFR - XML import'!$A177,1)-SEARCH(\">\",'CFR - XML import'!$A177,1)-2)))","v":0},{"$f":"IF(ISERROR(FIND(V$3,'CFR - XML import'!$A177)),0,VALUE(MID('CFR - XML import'!$A177,SEARCH(\">\",'CFR - XML import'!$A177,1)+1,SEARCH(\"/\",'CFR - XML import'!$A177,1)-SEARCH(\">\",'CFR - XML import'!$A177,1)-2)))","v":0},{"$f":"IF(ISERROR(FIND(W$3,'CFR - XML import'!$A177)),0,VALUE(MID('CFR - XML import'!$A177,SEARCH(\">\",'CFR - XML import'!$A177,1)+1,SEARCH(\"/\",'CFR - XML import'!$A177,1)-SEARCH(\">\",'CFR - XML import'!$A177,1)-2)))","v":0},null,{"$f":"IF(ISERROR(FIND(Y$3,'CFR - XML import'!$A177)),0,VALUE(MID('CFR - XML import'!$A177,SEARCH(\">\",'CFR - XML import'!$A177,1)+1,SEARCH(\"/\",'CFR - XML import'!$A177,1)-SEARCH(\">\",'CFR - XML import'!$A177,1)-2)))","v":0},{"$f":"IF(ISERROR(FIND(Z$3,'CFR - XML import'!$A177)),0,VALUE(MID('CFR - XML import'!$A177,SEARCH(\">\",'CFR - XML import'!$A177,1)+1,SEARCH(\"/\",'CFR - XML import'!$A177,1)-SEARCH(\">\",'CFR - XML import'!$A177,1)-2)))","v":0},{"$f":"IF(ISERROR(FIND(AA$3,'CFR - XML import'!$A177)),0,VALUE(MID('CFR - XML import'!$A177,SEARCH(\">\",'CFR - XML import'!$A177,1)+1,SEARCH(\"/\",'CFR - XML import'!$A177,1)-SEARCH(\">\",'CFR - XML import'!$A177,1)-2)))","v":0},{"$f":"IF(ISERROR(FIND(AB$3,'CFR - XML import'!$A177)),0,VALUE(MID('CFR - XML import'!$A177,SEARCH(\">\",'CFR - XML import'!$A177,1)+1,SEARCH(\"/\",'CFR - XML import'!$A177,1)-SEARCH(\">\",'CFR - XML import'!$A177,1)-2)))","v":0},{"$f":"IF(ISERROR(FIND(AC$3,'CFR - XML import'!$A177)),0,VALUE(MID('CFR - XML import'!$A177,SEARCH(\">\",'CFR - XML import'!$A177,1)+1,SEARCH(\"/\",'CFR - XML import'!$A177,1)-SEARCH(\">\",'CFR - XML import'!$A177,1)-2)))","v":0},{"$f":"IF(ISERROR(FIND(AD$3,'CFR - XML import'!$A177)),0,VALUE(MID('CFR - XML import'!$A177,SEARCH(\">\",'CFR - XML import'!$A177,1)+1,SEARCH(\"/\",'CFR - XML import'!$A177,1)-SEARCH(\">\",'CFR - XML import'!$A177,1)-2)))","v":0},{"$f":"IF(ISERROR(FIND(AE$3,'CFR - XML import'!$A177)),0,VALUE(MID('CFR - XML import'!$A177,SEARCH(\">\",'CFR - XML import'!$A177,1)+1,SEARCH(\"/\",'CFR - XML import'!$A177,1)-SEARCH(\">\",'CFR - XML import'!$A177,1)-2)))","v":0},{"$f":"IF(ISERROR(FIND(AF$3,'CFR - XML import'!$A177)),0,VALUE(MID('CFR - XML import'!$A177,SEARCH(\">\",'CFR - XML import'!$A177,1)+1,SEARCH(\"/\",'CFR - XML import'!$A177,1)-SEARCH(\">\",'CFR - XML import'!$A177,1)-2)))","v":0},{"$f":"IF(ISERROR(FIND(AG$3,'CFR - XML import'!$A177)),0,VALUE(MID('CFR - XML import'!$A177,SEARCH(\">\",'CFR - XML import'!$A177,1)+1,SEARCH(\"/\",'CFR - XML import'!$A177,1)-SEARCH(\">\",'CFR - XML import'!$A177,1)-2)))","v":0},{"$f":"IF(ISERROR(FIND(AH$3,'CFR - XML import'!$A177)),0,VALUE(MID('CFR - XML import'!$A177,SEARCH(\">\",'CFR - XML import'!$A177,1)+1,SEARCH(\"/\",'CFR - XML import'!$A177,1)-SEARCH(\">\",'CFR - XML import'!$A177,1)-2)))","v":0},{"$f":"IF(ISERROR(FIND(AI$3,'CFR - XML import'!$A177)),0,VALUE(MID('CFR - XML import'!$A177,SEARCH(\">\",'CFR - XML import'!$A177,1)+1,SEARCH(\"/\",'CFR - XML import'!$A177,1)-SEARCH(\">\",'CFR - XML import'!$A177,1)-2)))","v":0},{"$f":"IF(ISERROR(FIND(AJ$3,'CFR - XML import'!$A177)),0,VALUE(MID('CFR - XML import'!$A177,SEARCH(\">\",'CFR - XML import'!$A177,1)+1,SEARCH(\"/\",'CFR - XML import'!$A177,1)-SEARCH(\">\",'CFR - XML import'!$A177,1)-2)))","v":0},{"$f":"IF(ISERROR(FIND(AK$3,'CFR - XML import'!$A177)),0,VALUE(MID('CFR - XML import'!$A177,SEARCH(\">\",'CFR - XML import'!$A177,1)+1,SEARCH(\"/\",'CFR - XML import'!$A177,1)-SEARCH(\">\",'CFR - XML import'!$A177,1)-2)))","v":0},{"$f":"IF(ISERROR(FIND(AL$3,'CFR - XML import'!$A177)),0,VALUE(MID('CFR - XML import'!$A177,SEARCH(\">\",'CFR - XML import'!$A177,1)+1,SEARCH(\"/\",'CFR - XML import'!$A177,1)-SEARCH(\">\",'CFR - XML import'!$A177,1)-2)))","v":0},{"$f":"IF(ISERROR(FIND(AM$3,'CFR - XML import'!$A177)),0,VALUE(MID('CFR - XML import'!$A177,SEARCH(\">\",'CFR - XML import'!$A177,1)+1,SEARCH(\"/\",'CFR - XML import'!$A177,1)-SEARCH(\">\",'CFR - XML import'!$A177,1)-2)))","v":0},{"$f":"IF(ISERROR(FIND(AN$3,'CFR - XML import'!$A177)),0,VALUE(MID('CFR - XML import'!$A177,SEARCH(\">\",'CFR - XML import'!$A177,1)+1,SEARCH(\"/\",'CFR - XML import'!$A177,1)-SEARCH(\">\",'CFR - XML import'!$A177,1)-2)))","v":0},{"$f":"IF(ISERROR(FIND(AO$3,'CFR - XML import'!$A177)),0,VALUE(MID('CFR - XML import'!$A177,SEARCH(\">\",'CFR - XML import'!$A177,1)+1,SEARCH(\"/\",'CFR - XML import'!$A177,1)-SEARCH(\">\",'CFR - XML import'!$A177,1)-2)))","v":0},{"$f":"IF(ISERROR(FIND(AP$3,'CFR - XML import'!$A177)),0,VALUE(MID('CFR - XML import'!$A177,SEARCH(\">\",'CFR - XML import'!$A177,1)+1,SEARCH(\"/\",'CFR - XML import'!$A177,1)-SEARCH(\">\",'CFR - XML import'!$A177,1)-2)))","v":0},{"$f":"IF(ISERROR(FIND(AQ$3,'CFR - XML import'!$A177)),0,VALUE(MID('CFR - XML import'!$A177,SEARCH(\">\",'CFR - XML import'!$A177,1)+1,SEARCH(\"/\",'CFR - XML import'!$A177,1)-SEARCH(\">\",'CFR - XML import'!$A177,1)-2)))","v":0},{"$f":"IF(ISERROR(FIND(AR$3,'CFR - XML import'!$A177)),0,VALUE(MID('CFR - XML import'!$A177,SEARCH(\">\",'CFR - XML import'!$A177,1)+1,SEARCH(\"/\",'CFR - XML import'!$A177,1)-SEARCH(\">\",'CFR - XML import'!$A177,1)-2)))","v":0},{"$f":"IF(ISERROR(FIND(AS$3,'CFR - XML import'!$A177)),0,VALUE(MID('CFR - XML import'!$A177,SEARCH(\">\",'CFR - XML import'!$A177,1)+1,SEARCH(\"/\",'CFR - XML import'!$A177,1)-SEARCH(\">\",'CFR - XML import'!$A177,1)-2)))","v":0},{"$f":"IF(ISERROR(FIND(AT$3,'CFR - XML import'!$A177)),0,VALUE(MID('CFR - XML import'!$A177,SEARCH(\">\",'CFR - XML import'!$A177,1)+1,SEARCH(\"/\",'CFR - XML import'!$A177,1)-SEARCH(\">\",'CFR - XML import'!$A177,1)-2)))","v":0},{"$f":"IF(ISERROR(FIND(AU$3,'CFR - XML import'!$A177)),0,VALUE(MID('CFR - XML import'!$A177,SEARCH(\">\",'CFR - XML import'!$A177,1)+1,SEARCH(\"/\",'CFR - XML import'!$A177,1)-SEARCH(\">\",'CFR - XML import'!$A177,1)-2)))","v":0},{"$f":"IF(ISERROR(FIND(AV$3,'CFR - XML import'!$A177)),0,VALUE(MID('CFR - XML import'!$A177,SEARCH(\">\",'CFR - XML import'!$A177,1)+1,SEARCH(\"/\",'CFR - XML import'!$A177,1)-SEARCH(\">\",'CFR - XML import'!$A177,1)-2)))","v":0},{"$f":"IF(ISERROR(FIND(AW$3,'CFR - XML import'!$A177)),0,VALUE(MID('CFR - XML import'!$A177,SEARCH(\">\",'CFR - XML import'!$A177,1)+1,SEARCH(\"/\",'CFR - XML import'!$A177,1)-SEARCH(\">\",'CFR - XML import'!$A177,1)-2)))","v":0},{"$f":"IF(ISERROR(FIND(AX$3,'CFR - XML import'!$A177)),0,VALUE(MID('CFR - XML import'!$A177,SEARCH(\">\",'CFR - XML import'!$A177,1)+1,SEARCH(\"/\",'CFR - XML import'!$A177,1)-SEARCH(\">\",'CFR - XML import'!$A177,1)-2)))","v":0},{"$f":"IF(ISERROR(FIND(AY$3,'CFR - XML import'!$A177)),0,VALUE(MID('CFR - XML import'!$A177,SEARCH(\">\",'CFR - XML import'!$A177,1)+1,SEARCH(\"/\",'CFR - XML import'!$A177,1)-SEARCH(\">\",'CFR - XML import'!$A177,1)-2)))","v":0},{"$f":"IF(ISERROR(FIND(AZ$3,'CFR - XML import'!$A177)),0,VALUE(MID('CFR - XML import'!$A177,SEARCH(\">\",'CFR - XML import'!$A177,1)+1,SEARCH(\"/\",'CFR - XML import'!$A177,1)-SEARCH(\">\",'CFR - XML import'!$A177,1)-2)))","v":0},{"$f":"IF(ISERROR(FIND(BA$3,'CFR - XML import'!$A177)),0,VALUE(MID('CFR - XML import'!$A177,SEARCH(\">\",'CFR - XML import'!$A177,1)+1,SEARCH(\"/\",'CFR - XML import'!$A177,1)-SEARCH(\">\",'CFR - XML import'!$A177,1)-2)))","v":0},{"$f":"IF(ISERROR(FIND(BB$3,'CFR - XML import'!$A177)),0,VALUE(MID('CFR - XML import'!$A177,SEARCH(\">\",'CFR - XML import'!$A177,1)+1,SEARCH(\"/\",'CFR - XML import'!$A177,1)-SEARCH(\">\",'CFR - XML import'!$A177,1)-2)))","v":0},{"$f":"IF(ISERROR(FIND(BC$3,'CFR - XML import'!$A177)),0,VALUE(MID('CFR - XML import'!$A177,SEARCH(\">\",'CFR - XML import'!$A177,1)+1,SEARCH(\"/\",'CFR - XML import'!$A177,1)-SEARCH(\">\",'CFR - XML import'!$A177,1)-2)))","v":0},{"$f":"IF(ISERROR(FIND(BD$3,'CFR - XML import'!$A177)),0,VALUE(MID('CFR - XML import'!$A177,SEARCH(\">\",'CFR - XML import'!$A177,1)+1,SEARCH(\"/\",'CFR - XML import'!$A177,1)-SEARCH(\">\",'CFR - XML import'!$A177,1)-2)))","v":0},{"$f":"IF(ISERROR(FIND(BE$3,'CFR - XML import'!$A177)),0,VALUE(MID('CFR - XML import'!$A177,SEARCH(\">\",'CFR - XML import'!$A177,1)+1,SEARCH(\"/\",'CFR - XML import'!$A177,1)-SEARCH(\">\",'CFR - XML import'!$A177,1)-2)))","v":0},{"$f":"IF(ISERROR(FIND(BF$3,'CFR - XML import'!$A177)),0,VALUE(MID('CFR - XML import'!$A177,SEARCH(\">\",'CFR - XML import'!$A177,1)+1,SEARCH(\"/\",'CFR - XML import'!$A177,1)-SEARCH(\">\",'CFR - XML import'!$A177,1)-2)))","v":0},{"$f":"IF(ISERROR(FIND(BG$3,'CFR - XML import'!$A177)),0,VALUE(MID('CFR - XML import'!$A177,SEARCH(\">\",'CFR - XML import'!$A177,1)+1,SEARCH(\"/\",'CFR - XML import'!$A177,1)-SEARCH(\">\",'CFR - XML import'!$A177,1)-2)))","v":0},{"$f":"IF(ISERROR(FIND(BH$3,'CFR - XML import'!$A177)),0,VALUE(MID('CFR - XML import'!$A177,SEARCH(\">\",'CFR - XML import'!$A177,1)+1,SEARCH(\"/\",'CFR - XML import'!$A177,1)-SEARCH(\">\",'CFR - XML import'!$A177,1)-2)))","v":0},{"$f":"IF(ISERROR(FIND(BI$3,'CFR - XML import'!$A177)),0,VALUE(MID('CFR - XML import'!$A177,SEARCH(\">\",'CFR - XML import'!$A177,1)+1,SEARCH(\"/\",'CFR - XML import'!$A177,1)-SEARCH(\">\",'CFR - XML import'!$A177,1)-2)))","v":0},{"$f":"IF(ISERROR(FIND(BJ$3,'CFR - XML import'!$A177)),0,VALUE(MID('CFR - XML import'!$A177,SEARCH(\">\",'CFR - XML import'!$A177,1)+1,SEARCH(\"/\",'CFR - XML import'!$A177,1)-SEARCH(\">\",'CFR - XML import'!$A177,1)-2)))","v":0},{"$f":"IF(ISERROR(FIND(BK$3,'CFR - XML import'!$A177)),0,VALUE(MID('CFR - XML import'!$A177,SEARCH(\">\",'CFR - XML import'!$A177,1)+1,SEARCH(\"/\",'CFR - XML import'!$A177,1)-SEARCH(\">\",'CFR - XML import'!$A177,1)-2)))","v":0},{"$f":"IF(ISERROR(FIND(BL$3,'CFR - XML import'!$A177)),0,VALUE(MID('CFR - XML import'!$A177,SEARCH(\">\",'CFR - XML import'!$A177,1)+1,SEARCH(\"/\",'CFR - XML import'!$A177,1)-SEARCH(\">\",'CFR - XML import'!$A177,1)-2)))","v":0},{"$f":"IF(ISERROR(FIND(BM$3,'CFR - XML import'!$A177)),0,VALUE(MID('CFR - XML import'!$A177,SEARCH(\">\",'CFR - XML import'!$A177,1)+1,SEARCH(\"/\",'CFR - XML import'!$A177,1)-SEARCH(\">\",'CFR - XML import'!$A177,1)-2)))","v":0},{"$f":"IF(ISERROR(FIND(BN$3,'CFR - XML import'!$A177)),0,VALUE(MID('CFR - XML import'!$A177,SEARCH(\">\",'CFR - XML import'!$A177,1)+1,SEARCH(\"/\",'CFR - XML import'!$A177,1)-SEARCH(\">\",'CFR - XML import'!$A177,1)-2)))","v":0},{"$f":"IF(ISERROR(FIND(BO$3,'CFR - XML import'!$A177)),0,VALUE(MID('CFR - XML import'!$A177,SEARCH(\">\",'CFR - XML import'!$A177,1)+1,SEARCH(\"/\",'CFR - XML import'!$A177,1)-SEARCH(\">\",'CFR - XML import'!$A177,1)-2)))","v":0},{"$f":"IF(ISERROR(FIND(BP$3,'CFR - XML import'!$A177)),0,VALUE(MID('CFR - XML import'!$A177,SEARCH(\">\",'CFR - XML import'!$A177,1)+1,SEARCH(\"/\",'CFR - XML import'!$A177,1)-SEARCH(\">\",'CFR - XML import'!$A177,1)-2)))","v":0},{"$f":"IF(ISERROR(FIND(BQ$3,'CFR - XML import'!$A177)),0,VALUE(MID('CFR - XML import'!$A177,SEARCH(\">\",'CFR - XML import'!$A177,1)+1,SEARCH(\"/\",'CFR - XML import'!$A177,1)-SEARCH(\">\",'CFR - XML import'!$A177,1)-2)))","v":0},{"$f":"IF(ISERROR(FIND(BR$3,'CFR - XML import'!$A177)),0,VALUE(MID('CFR - XML import'!$A177,SEARCH(\">\",'CFR - XML import'!$A177,1)+1,SEARCH(\"/\",'CFR - XML import'!$A177,1)-SEARCH(\">\",'CFR - XML import'!$A177,1)-2)))","v":0},{"$f":"IF(ISERROR(FIND(BS$3,'CFR - XML import'!$A177)),0,VALUE(MID('CFR - XML import'!$A177,SEARCH(\">\",'CFR - XML import'!$A177,1)+1,SEARCH(\"/\",'CFR - XML import'!$A177,1)-SEARCH(\">\",'CFR - XML import'!$A177,1)-2)))","v":0},{"$f":"IF(ISERROR(FIND(BT$3,'CFR - XML import'!$A177)),0,VALUE(MID('CFR - XML import'!$A177,SEARCH(\">\",'CFR - XML import'!$A177,1)+1,SEARCH(\"/\",'CFR - XML import'!$A177,1)-SEARCH(\">\",'CFR - XML import'!$A177,1)-2)))","v":0},{"$f":"IF(ISERROR(FIND(BU$3,'CFR - XML import'!$A177)),0,VALUE(MID('CFR - XML import'!$A177,SEARCH(\">\",'CFR - XML import'!$A177,1)+1,SEARCH(\"/\",'CFR - XML import'!$A177,1)-SEARCH(\">\",'CFR - XML import'!$A177,1)-2)))","v":0},{"$f":"IF(ISERROR(FIND(BV$3,'CFR - XML import'!$A177)),0,VALUE(MID('CFR - XML import'!$A177,SEARCH(\">\",'CFR - XML import'!$A177,1)+1,SEARCH(\"/\",'CFR - XML import'!$A177,1)-SEARCH(\">\",'CFR - XML import'!$A177,1)-2)))","v":0},{"$f":"IF(ISERROR(FIND(BW$3,'CFR - XML import'!$A177)),0,VALUE(MID('CFR - XML import'!$A177,SEARCH(\">\",'CFR - XML import'!$A177,1)+1,SEARCH(\"/\",'CFR - XML import'!$A177,1)-SEARCH(\">\",'CFR - XML import'!$A177,1)-2)))","v":0},{"$f":"IF(ISERROR(FIND(BX$3,'CFR - XML import'!$A177)),0,VALUE(MID('CFR - XML import'!$A177,SEARCH(\">\",'CFR - XML import'!$A177,1)+1,SEARCH(\"/\",'CFR - XML import'!$A177,1)-SEARCH(\">\",'CFR - XML import'!$A177,1)-2)))","v":0},{"$f":"IF(ISERROR(FIND(BY$3,'CFR - XML import'!$A177)),0,VALUE(MID('CFR - XML import'!$A177,SEARCH(\">\",'CFR - XML import'!$A177,1)+1,SEARCH(\"/\",'CFR - XML import'!$A177,1)-SEARCH(\">\",'CFR - XML import'!$A177,1)-2)))","v":0},{"$f":"IF(ISERROR(FIND(BZ$3,'CFR - XML import'!$A177)),0,VALUE(MID('CFR - XML import'!$A177,SEARCH(\">\",'CFR - XML import'!$A177,1)+1,SEARCH(\"/\",'CFR - XML import'!$A177,1)-SEARCH(\">\",'CFR - XML import'!$A177,1)-2)))","v":0},null,null,null,null,null,null,{"$f":"IF(ISERROR(IF(MID('CFR - XML import'!$A177,LEN($CF$4)+1,LEN('CFR - XML import'!$A177)-(2*LEN($CF$4)+1))=\"RMMS\",1,IF(MID('CFR - XML import'!$A177,LEN(\"    <InputSystem>\")+1,LEN('CFR - XML import'!$A177)-(LEN(\"    <InputSystem>\")+LEN($CF$4)+1))=\"SIMS\",2,0))),0,IF(MID('CFR - XML import'!$A177,LEN($CF$4)+1,LEN('CFR - XML import'!$A177)-(2*LEN($CF$4)+1))=\"RMMS\",1,IF(MID('CFR - XML import'!$A177,LEN(\"    <InputSystem>\")+1,LEN('CFR - XML import'!$A177)-(LEN(\"    <InputSystem>\")+LEN($CF$4)+1))=\"SIMS\",2,0)))","v":0},{"$f":"IF(ISERROR(FIND(CH$3,'CFR - XML import'!$A177)),0,MID('CFR - XML import'!$A177,SEARCH(\">\",'CFR - XML import'!$A177,1)+1,SEARCH(\"/\",'CFR - XML import'!$A177,1)-SEARCH(\">\",'CFR - XML import'!$A177,1)-2))","v":0},{"$f":"IF(ISERROR(FIND(CI$3,'CFR - XML import'!$A177)),0,MID('CFR - XML import'!$A177,SEARCH(\">\",'CFR - XML import'!$A177,1)+1,SEARCH(\"/\",'CFR - XML import'!$A177,1)-SEARCH(\">\",'CFR - XML import'!$A177,1)-2))","v":0},{"$f":"IF(ISERROR(FIND(CJ$3,'CFR - XML import'!$A177)),0,MID('CFR - XML import'!$A177,SEARCH(\">\",'CFR - XML import'!$A177,1)+1,SEARCH(\"/\",'CFR - XML import'!$A177,1)-SEARCH(\">\",'CFR - XML import'!$A177,1)-2))","v":0},{"$f":"IF(ISERROR(FIND(CK$3,'CFR - XML import'!$A177)),0,MID('CFR - XML import'!$A177,SEARCH(\">\",'CFR - XML import'!$A177,1)+1,SEARCH(\"/\",'CFR - XML import'!$A177,1)-SEARCH(\">\",'CFR - XML import'!$A177,1)-2))","v":0},{"$f":"IF(ISERROR(FIND(CL$3,'CFR - XML import'!$A177)),0,MID('CFR - XML import'!$A177,SEARCH(\">\",'CFR - XML import'!$A177,1)+1,SEARCH(\"/\",'CFR - XML import'!$A177,1)-SEARCH(\">\",'CFR - XML import'!$A177,1)-2))","v":0}]
[{"$f":"IF(AND('CFR - XML import'!A178<>\"\",LEFT('CFR - XML import'!A178,1)<>\"<\",LEFT('CFR - XML import'!A178,3)<>\"  <\",LEFT('CFR - XML import'!A178,5)<>\"    <\",LEFT('CFR - XML import'!A178,7)<>\"      <\",LEFT('CFR - XML import'!A178,9)<>\"        <\",$B$1=\"SIMS\"),'CFR - XML import'!A178,IF(AND(LEFT('CFR - XML import'!A178,9)=\"<Details>\",$B$1=\"RM\"),'CFR - XML import'!A178,\"\"))","v":""},{"$f":"IF(ISERROR(FIND(B$3,'CFR - XML import'!$A178)),0,VALUE(MID('CFR - XML import'!$A178,SEARCH(\">\",'CFR - XML import'!$A178,1)+1,SEARCH(\"/\",'CFR - XML import'!$A178,1)-SEARCH(\">\",'CFR - XML import'!$A178,1)-2)))","v":0},null,{"$f":"IF(ISERROR(FIND(D$3,'CFR - XML import'!$A178)),0,MID('CFR - XML import'!$A178,SEARCH(\">\",'CFR - XML import'!$A178,1)+1,SEARCH(\"/\",'CFR - XML import'!$A178,1)-SEARCH(\">\",'CFR - XML import'!$A178,1)-2))","v":0},{"$f":"IF(ISERROR(FIND(E$3,'CFR - XML import'!$A178)),0,MID('CFR - XML import'!$A178,SEARCH(\">\",'CFR - XML import'!$A178,1)+1,SEARCH(\"/\",'CFR - XML import'!$A178,1)-SEARCH(\">\",'CFR - XML import'!$A178,1)-2))","v":0},{"$f":"IF($B$1=\"SIMS\",IF(ISERROR(FIND(F$3,'CFR - XML import'!$A178)),0,VALUE(MID('CFR - XML import'!$A178,15,10))),IF(ISERROR(FIND(F$3,'CFR - XML import'!$A178)),0,VALUE(MID('CFR - XML import'!$A178,11,10))))","v":"00:00:00"},{"$f":"IF(ISERROR(FIND(G$3,'CFR - XML import'!$A178)),0,VALUE(MID('CFR - XML import'!$A178,SEARCH(\">\",'CFR - XML import'!$A178,1)+1,SEARCH(\"/\",'CFR - XML import'!$A178,1)-SEARCH(\">\",'CFR - XML import'!$A178,1)-2)))","v":0},{"$f":"IF(ISERROR(FIND(H$3,'CFR - XML import'!$A178)),0,VALUE(MID('CFR - XML import'!$A178,SEARCH(\">\",'CFR - XML import'!$A178,1)+1,SEARCH(\"/\",'CFR - XML import'!$A178,1)-SEARCH(\">\",'CFR - XML import'!$A178,1)-2)))","v":0},{"$f":"IF(ISERROR(FIND(I$3,'CFR - XML import'!$A178)),0,VALUE(MID('CFR - XML import'!$A178,SEARCH(\">\",'CFR - XML import'!$A178,1)+1,SEARCH(\"/\",'CFR - XML import'!$A178,1)-SEARCH(\">\",'CFR - XML import'!$A178,1)-2)))","v":0},{"$f":"IF(ISERROR(FIND(J$3,'CFR - XML import'!$A178)),0,VALUE(MID('CFR - XML import'!$A178,SEARCH(\">\",'CFR - XML import'!$A178,1)+1,SEARCH(\"/\",'CFR - XML import'!$A178,1)-SEARCH(\">\",'CFR - XML import'!$A178,1)-2)))","v":0},{"$f":"IF(ISERROR(FIND(K$3,'CFR - XML import'!$A178)),0,VALUE(MID('CFR - XML import'!$A178,SEARCH(\">\",'CFR - XML import'!$A178,1)+1,SEARCH(\"/\",'CFR - XML import'!$A178,1)-SEARCH(\">\",'CFR - XML import'!$A178,1)-2)))","v":0},{"$f":"IF(ISERROR(FIND(L$3,'CFR - XML import'!$A178)),0,VALUE(MID('CFR - XML import'!$A178,SEARCH(\">\",'CFR - XML import'!$A178,1)+1,SEARCH(\"/\",'CFR - XML import'!$A178,1)-SEARCH(\">\",'CFR - XML import'!$A178,1)-2)))","v":0},{"$f":"IF(ISERROR(FIND(M$3,'CFR - XML import'!$A178)),0,VALUE(MID('CFR - XML import'!$A178,SEARCH(\">\",'CFR - XML import'!$A178,1)+1,SEARCH(\"/\",'CFR - XML import'!$A178,1)-SEARCH(\">\",'CFR - XML import'!$A178,1)-2)))","v":0},{"$f":"IF(ISERROR(FIND(N$3,'CFR - XML import'!$A178)),0,VALUE(MID('CFR - XML import'!$A178,SEARCH(\">\",'CFR - XML import'!$A178,1)+1,SEARCH(\"/\",'CFR - XML import'!$A178,1)-SEARCH(\">\",'CFR - XML import'!$A178,1)-2)))","v":0},{"$f":"IF(ISERROR(FIND(O$3,'CFR - XML import'!$A178)),0,VALUE(MID('CFR - XML import'!$A178,SEARCH(\">\",'CFR - XML import'!$A178,1)+1,SEARCH(\"/\",'CFR - XML import'!$A178,1)-SEARCH(\">\",'CFR - XML import'!$A178,1)-2)))","v":0},{"$f":"IF(ISERROR(FIND(P$3,'CFR - XML import'!$A178)),0,VALUE(MID('CFR - XML import'!$A178,SEARCH(\">\",'CFR - XML import'!$A178,1)+1,SEARCH(\"/\",'CFR - XML import'!$A178,1)-SEARCH(\">\",'CFR - XML import'!$A178,1)-2)))","v":0},{"$f":"IF(ISERROR(FIND(Q$3,'CFR - XML import'!$A178)),0,VALUE(MID('CFR - XML import'!$A178,SEARCH(\">\",'CFR - XML import'!$A178,1)+1,SEARCH(\"/\",'CFR - XML import'!$A178,1)-SEARCH(\">\",'CFR - XML import'!$A178,1)-2)))","v":0},{"$f":"IF(ISERROR(FIND(R$3,'CFR - XML import'!$A178)),0,VALUE(MID('CFR - XML import'!$A178,SEARCH(\">\",'CFR - XML import'!$A178,1)+1,SEARCH(\"/\",'CFR - XML import'!$A178,1)-SEARCH(\">\",'CFR - XML import'!$A178,1)-2)))","v":0},{"$f":"IF(ISERROR(FIND(S$3,'CFR - XML import'!$A178)),0,VALUE(MID('CFR - XML import'!$A178,SEARCH(\">\",'CFR - XML import'!$A178,1)+1,SEARCH(\"/\",'CFR - XML import'!$A178,1)-SEARCH(\">\",'CFR - XML import'!$A178,1)-2)))","v":0},{"$f":"IF(ISERROR(FIND(T$3,'CFR - XML import'!$A178)),0,VALUE(MID('CFR - XML import'!$A178,SEARCH(\">\",'CFR - XML import'!$A178,1)+1,SEARCH(\"/\",'CFR - XML import'!$A178,1)-SEARCH(\">\",'CFR - XML import'!$A178,1)-2)))","v":0},{"$f":"IF(ISERROR(FIND(U$3,'CFR - XML import'!$A178)),0,VALUE(MID('CFR - XML import'!$A178,SEARCH(\">\",'CFR - XML import'!$A178,1)+1,SEARCH(\"/\",'CFR - XML import'!$A178,1)-SEARCH(\">\",'CFR - XML import'!$A178,1)-2)))","v":0},{"$f":"IF(ISERROR(FIND(V$3,'CFR - XML import'!$A178)),0,VALUE(MID('CFR - XML import'!$A178,SEARCH(\">\",'CFR - XML import'!$A178,1)+1,SEARCH(\"/\",'CFR - XML import'!$A178,1)-SEARCH(\">\",'CFR - XML import'!$A178,1)-2)))","v":0},{"$f":"IF(ISERROR(FIND(W$3,'CFR - XML import'!$A178)),0,VALUE(MID('CFR - XML import'!$A178,SEARCH(\">\",'CFR - XML import'!$A178,1)+1,SEARCH(\"/\",'CFR - XML import'!$A178,1)-SEARCH(\">\",'CFR - XML import'!$A178,1)-2)))","v":0},null,{"$f":"IF(ISERROR(FIND(Y$3,'CFR - XML import'!$A178)),0,VALUE(MID('CFR - XML import'!$A178,SEARCH(\">\",'CFR - XML import'!$A178,1)+1,SEARCH(\"/\",'CFR - XML import'!$A178,1)-SEARCH(\">\",'CFR - XML import'!$A178,1)-2)))","v":0},{"$f":"IF(ISERROR(FIND(Z$3,'CFR - XML import'!$A178)),0,VALUE(MID('CFR - XML import'!$A178,SEARCH(\">\",'CFR - XML import'!$A178,1)+1,SEARCH(\"/\",'CFR - XML import'!$A178,1)-SEARCH(\">\",'CFR - XML import'!$A178,1)-2)))","v":0},{"$f":"IF(ISERROR(FIND(AA$3,'CFR - XML import'!$A178)),0,VALUE(MID('CFR - XML import'!$A178,SEARCH(\">\",'CFR - XML import'!$A178,1)+1,SEARCH(\"/\",'CFR - XML import'!$A178,1)-SEARCH(\">\",'CFR - XML import'!$A178,1)-2)))","v":0},{"$f":"IF(ISERROR(FIND(AB$3,'CFR - XML import'!$A178)),0,VALUE(MID('CFR - XML import'!$A178,SEARCH(\">\",'CFR - XML import'!$A178,1)+1,SEARCH(\"/\",'CFR - XML import'!$A178,1)-SEARCH(\">\",'CFR - XML import'!$A178,1)-2)))","v":0},{"$f":"IF(ISERROR(FIND(AC$3,'CFR - XML import'!$A178)),0,VALUE(MID('CFR - XML import'!$A178,SEARCH(\">\",'CFR - XML import'!$A178,1)+1,SEARCH(\"/\",'CFR - XML import'!$A178,1)-SEARCH(\">\",'CFR - XML import'!$A178,1)-2)))","v":0},{"$f":"IF(ISERROR(FIND(AD$3,'CFR - XML import'!$A178)),0,VALUE(MID('CFR - XML import'!$A178,SEARCH(\">\",'CFR - XML import'!$A178,1)+1,SEARCH(\"/\",'CFR - XML import'!$A178,1)-SEARCH(\">\",'CFR - XML import'!$A178,1)-2)))","v":0},{"$f":"IF(ISERROR(FIND(AE$3,'CFR - XML import'!$A178)),0,VALUE(MID('CFR - XML import'!$A178,SEARCH(\">\",'CFR - XML import'!$A178,1)+1,SEARCH(\"/\",'CFR - XML import'!$A178,1)-SEARCH(\">\",'CFR - XML import'!$A178,1)-2)))","v":0},{"$f":"IF(ISERROR(FIND(AF$3,'CFR - XML import'!$A178)),0,VALUE(MID('CFR - XML import'!$A178,SEARCH(\">\",'CFR - XML import'!$A178,1)+1,SEARCH(\"/\",'CFR - XML import'!$A178,1)-SEARCH(\">\",'CFR - XML import'!$A178,1)-2)))","v":0},{"$f":"IF(ISERROR(FIND(AG$3,'CFR - XML import'!$A178)),0,VALUE(MID('CFR - XML import'!$A178,SEARCH(\">\",'CFR - XML import'!$A178,1)+1,SEARCH(\"/\",'CFR - XML import'!$A178,1)-SEARCH(\">\",'CFR - XML import'!$A178,1)-2)))","v":0},{"$f":"IF(ISERROR(FIND(AH$3,'CFR - XML import'!$A178)),0,VALUE(MID('CFR - XML import'!$A178,SEARCH(\">\",'CFR - XML import'!$A178,1)+1,SEARCH(\"/\",'CFR - XML import'!$A178,1)-SEARCH(\">\",'CFR - XML import'!$A178,1)-2)))","v":0},{"$f":"IF(ISERROR(FIND(AI$3,'CFR - XML import'!$A178)),0,VALUE(MID('CFR - XML import'!$A178,SEARCH(\">\",'CFR - XML import'!$A178,1)+1,SEARCH(\"/\",'CFR - XML import'!$A178,1)-SEARCH(\">\",'CFR - XML import'!$A178,1)-2)))","v":0},{"$f":"IF(ISERROR(FIND(AJ$3,'CFR - XML import'!$A178)),0,VALUE(MID('CFR - XML import'!$A178,SEARCH(\">\",'CFR - XML import'!$A178,1)+1,SEARCH(\"/\",'CFR - XML import'!$A178,1)-SEARCH(\">\",'CFR - XML import'!$A178,1)-2)))","v":0},{"$f":"IF(ISERROR(FIND(AK$3,'CFR - XML import'!$A178)),0,VALUE(MID('CFR - XML import'!$A178,SEARCH(\">\",'CFR - XML import'!$A178,1)+1,SEARCH(\"/\",'CFR - XML import'!$A178,1)-SEARCH(\">\",'CFR - XML import'!$A178,1)-2)))","v":0},{"$f":"IF(ISERROR(FIND(AL$3,'CFR - XML import'!$A178)),0,VALUE(MID('CFR - XML import'!$A178,SEARCH(\">\",'CFR - XML import'!$A178,1)+1,SEARCH(\"/\",'CFR - XML import'!$A178,1)-SEARCH(\">\",'CFR - XML import'!$A178,1)-2)))","v":0},{"$f":"IF(ISERROR(FIND(AM$3,'CFR - XML import'!$A178)),0,VALUE(MID('CFR - XML import'!$A178,SEARCH(\">\",'CFR - XML import'!$A178,1)+1,SEARCH(\"/\",'CFR - XML import'!$A178,1)-SEARCH(\">\",'CFR - XML import'!$A178,1)-2)))","v":0},{"$f":"IF(ISERROR(FIND(AN$3,'CFR - XML import'!$A178)),0,VALUE(MID('CFR - XML import'!$A178,SEARCH(\">\",'CFR - XML import'!$A178,1)+1,SEARCH(\"/\",'CFR - XML import'!$A178,1)-SEARCH(\">\",'CFR - XML import'!$A178,1)-2)))","v":0},{"$f":"IF(ISERROR(FIND(AO$3,'CFR - XML import'!$A178)),0,VALUE(MID('CFR - XML import'!$A178,SEARCH(\">\",'CFR - XML import'!$A178,1)+1,SEARCH(\"/\",'CFR - XML import'!$A178,1)-SEARCH(\">\",'CFR - XML import'!$A178,1)-2)))","v":0},{"$f":"IF(ISERROR(FIND(AP$3,'CFR - XML import'!$A178)),0,VALUE(MID('CFR - XML import'!$A178,SEARCH(\">\",'CFR - XML import'!$A178,1)+1,SEARCH(\"/\",'CFR - XML import'!$A178,1)-SEARCH(\">\",'CFR - XML import'!$A178,1)-2)))","v":0},{"$f":"IF(ISERROR(FIND(AQ$3,'CFR - XML import'!$A178)),0,VALUE(MID('CFR - XML import'!$A178,SEARCH(\">\",'CFR - XML import'!$A178,1)+1,SEARCH(\"/\",'CFR - XML import'!$A178,1)-SEARCH(\">\",'CFR - XML import'!$A178,1)-2)))","v":0},{"$f":"IF(ISERROR(FIND(AR$3,'CFR - XML import'!$A178)),0,VALUE(MID('CFR - XML import'!$A178,SEARCH(\">\",'CFR - XML import'!$A178,1)+1,SEARCH(\"/\",'CFR - XML import'!$A178,1)-SEARCH(\">\",'CFR - XML import'!$A178,1)-2)))","v":0},{"$f":"IF(ISERROR(FIND(AS$3,'CFR - XML import'!$A178)),0,VALUE(MID('CFR - XML import'!$A178,SEARCH(\">\",'CFR - XML import'!$A178,1)+1,SEARCH(\"/\",'CFR - XML import'!$A178,1)-SEARCH(\">\",'CFR - XML import'!$A178,1)-2)))","v":0},{"$f":"IF(ISERROR(FIND(AT$3,'CFR - XML import'!$A178)),0,VALUE(MID('CFR - XML import'!$A178,SEARCH(\">\",'CFR - XML import'!$A178,1)+1,SEARCH(\"/\",'CFR - XML import'!$A178,1)-SEARCH(\">\",'CFR - XML import'!$A178,1)-2)))","v":0},{"$f":"IF(ISERROR(FIND(AU$3,'CFR - XML import'!$A178)),0,VALUE(MID('CFR - XML import'!$A178,SEARCH(\">\",'CFR - XML import'!$A178,1)+1,SEARCH(\"/\",'CFR - XML import'!$A178,1)-SEARCH(\">\",'CFR - XML import'!$A178,1)-2)))","v":0},{"$f":"IF(ISERROR(FIND(AV$3,'CFR - XML import'!$A178)),0,VALUE(MID('CFR - XML import'!$A178,SEARCH(\">\",'CFR - XML import'!$A178,1)+1,SEARCH(\"/\",'CFR - XML import'!$A178,1)-SEARCH(\">\",'CFR - XML import'!$A178,1)-2)))","v":0},{"$f":"IF(ISERROR(FIND(AW$3,'CFR - XML import'!$A178)),0,VALUE(MID('CFR - XML import'!$A178,SEARCH(\">\",'CFR - XML import'!$A178,1)+1,SEARCH(\"/\",'CFR - XML import'!$A178,1)-SEARCH(\">\",'CFR - XML import'!$A178,1)-2)))","v":0},{"$f":"IF(ISERROR(FIND(AX$3,'CFR - XML import'!$A178)),0,VALUE(MID('CFR - XML import'!$A178,SEARCH(\">\",'CFR - XML import'!$A178,1)+1,SEARCH(\"/\",'CFR - XML import'!$A178,1)-SEARCH(\">\",'CFR - XML import'!$A178,1)-2)))","v":0},{"$f":"IF(ISERROR(FIND(AY$3,'CFR - XML import'!$A178)),0,VALUE(MID('CFR - XML import'!$A178,SEARCH(\">\",'CFR - XML import'!$A178,1)+1,SEARCH(\"/\",'CFR - XML import'!$A178,1)-SEARCH(\">\",'CFR - XML import'!$A178,1)-2)))","v":0},{"$f":"IF(ISERROR(FIND(AZ$3,'CFR - XML import'!$A178)),0,VALUE(MID('CFR - XML import'!$A178,SEARCH(\">\",'CFR - XML import'!$A178,1)+1,SEARCH(\"/\",'CFR - XML import'!$A178,1)-SEARCH(\">\",'CFR - XML import'!$A178,1)-2)))","v":0},{"$f":"IF(ISERROR(FIND(BA$3,'CFR - XML import'!$A178)),0,VALUE(MID('CFR - XML import'!$A178,SEARCH(\">\",'CFR - XML import'!$A178,1)+1,SEARCH(\"/\",'CFR - XML import'!$A178,1)-SEARCH(\">\",'CFR - XML import'!$A178,1)-2)))","v":0},{"$f":"IF(ISERROR(FIND(BB$3,'CFR - XML import'!$A178)),0,VALUE(MID('CFR - XML import'!$A178,SEARCH(\">\",'CFR - XML import'!$A178,1)+1,SEARCH(\"/\",'CFR - XML import'!$A178,1)-SEARCH(\">\",'CFR - XML import'!$A178,1)-2)))","v":0},{"$f":"IF(ISERROR(FIND(BC$3,'CFR - XML import'!$A178)),0,VALUE(MID('CFR - XML import'!$A178,SEARCH(\">\",'CFR - XML import'!$A178,1)+1,SEARCH(\"/\",'CFR - XML import'!$A178,1)-SEARCH(\">\",'CFR - XML import'!$A178,1)-2)))","v":0},{"$f":"IF(ISERROR(FIND(BD$3,'CFR - XML import'!$A178)),0,VALUE(MID('CFR - XML import'!$A178,SEARCH(\">\",'CFR - XML import'!$A178,1)+1,SEARCH(\"/\",'CFR - XML import'!$A178,1)-SEARCH(\">\",'CFR - XML import'!$A178,1)-2)))","v":0},{"$f":"IF(ISERROR(FIND(BE$3,'CFR - XML import'!$A178)),0,VALUE(MID('CFR - XML import'!$A178,SEARCH(\">\",'CFR - XML import'!$A178,1)+1,SEARCH(\"/\",'CFR - XML import'!$A178,1)-SEARCH(\">\",'CFR - XML import'!$A178,1)-2)))","v":0},{"$f":"IF(ISERROR(FIND(BF$3,'CFR - XML import'!$A178)),0,VALUE(MID('CFR - XML import'!$A178,SEARCH(\">\",'CFR - XML import'!$A178,1)+1,SEARCH(\"/\",'CFR - XML import'!$A178,1)-SEARCH(\">\",'CFR - XML import'!$A178,1)-2)))","v":0},{"$f":"IF(ISERROR(FIND(BG$3,'CFR - XML import'!$A178)),0,VALUE(MID('CFR - XML import'!$A178,SEARCH(\">\",'CFR - XML import'!$A178,1)+1,SEARCH(\"/\",'CFR - XML import'!$A178,1)-SEARCH(\">\",'CFR - XML import'!$A178,1)-2)))","v":0},{"$f":"IF(ISERROR(FIND(BH$3,'CFR - XML import'!$A178)),0,VALUE(MID('CFR - XML import'!$A178,SEARCH(\">\",'CFR - XML import'!$A178,1)+1,SEARCH(\"/\",'CFR - XML import'!$A178,1)-SEARCH(\">\",'CFR - XML import'!$A178,1)-2)))","v":0},{"$f":"IF(ISERROR(FIND(BI$3,'CFR - XML import'!$A178)),0,VALUE(MID('CFR - XML import'!$A178,SEARCH(\">\",'CFR - XML import'!$A178,1)+1,SEARCH(\"/\",'CFR - XML import'!$A178,1)-SEARCH(\">\",'CFR - XML import'!$A178,1)-2)))","v":0},{"$f":"IF(ISERROR(FIND(BJ$3,'CFR - XML import'!$A178)),0,VALUE(MID('CFR - XML import'!$A178,SEARCH(\">\",'CFR - XML import'!$A178,1)+1,SEARCH(\"/\",'CFR - XML import'!$A178,1)-SEARCH(\">\",'CFR - XML import'!$A178,1)-2)))","v":0},{"$f":"IF(ISERROR(FIND(BK$3,'CFR - XML import'!$A178)),0,VALUE(MID('CFR - XML import'!$A178,SEARCH(\">\",'CFR - XML import'!$A178,1)+1,SEARCH(\"/\",'CFR - XML import'!$A178,1)-SEARCH(\">\",'CFR - XML import'!$A178,1)-2)))","v":0},{"$f":"IF(ISERROR(FIND(BL$3,'CFR - XML import'!$A178)),0,VALUE(MID('CFR - XML import'!$A178,SEARCH(\">\",'CFR - XML import'!$A178,1)+1,SEARCH(\"/\",'CFR - XML import'!$A178,1)-SEARCH(\">\",'CFR - XML import'!$A178,1)-2)))","v":0},{"$f":"IF(ISERROR(FIND(BM$3,'CFR - XML import'!$A178)),0,VALUE(MID('CFR - XML import'!$A178,SEARCH(\">\",'CFR - XML import'!$A178,1)+1,SEARCH(\"/\",'CFR - XML import'!$A178,1)-SEARCH(\">\",'CFR - XML import'!$A178,1)-2)))","v":0},{"$f":"IF(ISERROR(FIND(BN$3,'CFR - XML import'!$A178)),0,VALUE(MID('CFR - XML import'!$A178,SEARCH(\">\",'CFR - XML import'!$A178,1)+1,SEARCH(\"/\",'CFR - XML import'!$A178,1)-SEARCH(\">\",'CFR - XML import'!$A178,1)-2)))","v":0},{"$f":"IF(ISERROR(FIND(BO$3,'CFR - XML import'!$A178)),0,VALUE(MID('CFR - XML import'!$A178,SEARCH(\">\",'CFR - XML import'!$A178,1)+1,SEARCH(\"/\",'CFR - XML import'!$A178,1)-SEARCH(\">\",'CFR - XML import'!$A178,1)-2)))","v":0},{"$f":"IF(ISERROR(FIND(BP$3,'CFR - XML import'!$A178)),0,VALUE(MID('CFR - XML import'!$A178,SEARCH(\">\",'CFR - XML import'!$A178,1)+1,SEARCH(\"/\",'CFR - XML import'!$A178,1)-SEARCH(\">\",'CFR - XML import'!$A178,1)-2)))","v":0},{"$f":"IF(ISERROR(FIND(BQ$3,'CFR - XML import'!$A178)),0,VALUE(MID('CFR - XML import'!$A178,SEARCH(\">\",'CFR - XML import'!$A178,1)+1,SEARCH(\"/\",'CFR - XML import'!$A178,1)-SEARCH(\">\",'CFR - XML import'!$A178,1)-2)))","v":0},{"$f":"IF(ISERROR(FIND(BR$3,'CFR - XML import'!$A178)),0,VALUE(MID('CFR - XML import'!$A178,SEARCH(\">\",'CFR - XML import'!$A178,1)+1,SEARCH(\"/\",'CFR - XML import'!$A178,1)-SEARCH(\">\",'CFR - XML import'!$A178,1)-2)))","v":0},{"$f":"IF(ISERROR(FIND(BS$3,'CFR - XML import'!$A178)),0,VALUE(MID('CFR - XML import'!$A178,SEARCH(\">\",'CFR - XML import'!$A178,1)+1,SEARCH(\"/\",'CFR - XML import'!$A178,1)-SEARCH(\">\",'CFR - XML import'!$A178,1)-2)))","v":0},{"$f":"IF(ISERROR(FIND(BT$3,'CFR - XML import'!$A178)),0,VALUE(MID('CFR - XML import'!$A178,SEARCH(\">\",'CFR - XML import'!$A178,1)+1,SEARCH(\"/\",'CFR - XML import'!$A178,1)-SEARCH(\">\",'CFR - XML import'!$A178,1)-2)))","v":0},{"$f":"IF(ISERROR(FIND(BU$3,'CFR - XML import'!$A178)),0,VALUE(MID('CFR - XML import'!$A178,SEARCH(\">\",'CFR - XML import'!$A178,1)+1,SEARCH(\"/\",'CFR - XML import'!$A178,1)-SEARCH(\">\",'CFR - XML import'!$A178,1)-2)))","v":0},{"$f":"IF(ISERROR(FIND(BV$3,'CFR - XML import'!$A178)),0,VALUE(MID('CFR - XML import'!$A178,SEARCH(\">\",'CFR - XML import'!$A178,1)+1,SEARCH(\"/\",'CFR - XML import'!$A178,1)-SEARCH(\">\",'CFR - XML import'!$A178,1)-2)))","v":0},{"$f":"IF(ISERROR(FIND(BW$3,'CFR - XML import'!$A178)),0,VALUE(MID('CFR - XML import'!$A178,SEARCH(\">\",'CFR - XML import'!$A178,1)+1,SEARCH(\"/\",'CFR - XML import'!$A178,1)-SEARCH(\">\",'CFR - XML import'!$A178,1)-2)))","v":0},{"$f":"IF(ISERROR(FIND(BX$3,'CFR - XML import'!$A178)),0,VALUE(MID('CFR - XML import'!$A178,SEARCH(\">\",'CFR - XML import'!$A178,1)+1,SEARCH(\"/\",'CFR - XML import'!$A178,1)-SEARCH(\">\",'CFR - XML import'!$A178,1)-2)))","v":0},{"$f":"IF(ISERROR(FIND(BY$3,'CFR - XML import'!$A178)),0,VALUE(MID('CFR - XML import'!$A178,SEARCH(\">\",'CFR - XML import'!$A178,1)+1,SEARCH(\"/\",'CFR - XML import'!$A178,1)-SEARCH(\">\",'CFR - XML import'!$A178,1)-2)))","v":0},{"$f":"IF(ISERROR(FIND(BZ$3,'CFR - XML import'!$A178)),0,VALUE(MID('CFR - XML import'!$A178,SEARCH(\">\",'CFR - XML import'!$A178,1)+1,SEARCH(\"/\",'CFR - XML import'!$A178,1)-SEARCH(\">\",'CFR - XML import'!$A178,1)-2)))","v":0},null,null,null,null,null,null,{"$f":"IF(ISERROR(IF(MID('CFR - XML import'!$A178,LEN($CF$4)+1,LEN('CFR - XML import'!$A178)-(2*LEN($CF$4)+1))=\"RMMS\",1,IF(MID('CFR - XML import'!$A178,LEN(\"    <InputSystem>\")+1,LEN('CFR - XML import'!$A178)-(LEN(\"    <InputSystem>\")+LEN($CF$4)+1))=\"SIMS\",2,0))),0,IF(MID('CFR - XML import'!$A178,LEN($CF$4)+1,LEN('CFR - XML import'!$A178)-(2*LEN($CF$4)+1))=\"RMMS\",1,IF(MID('CFR - XML import'!$A178,LEN(\"    <InputSystem>\")+1,LEN('CFR - XML import'!$A178)-(LEN(\"    <InputSystem>\")+LEN($CF$4)+1))=\"SIMS\",2,0)))","v":0},{"$f":"IF(ISERROR(FIND(CH$3,'CFR - XML import'!$A178)),0,MID('CFR - XML import'!$A178,SEARCH(\">\",'CFR - XML import'!$A178,1)+1,SEARCH(\"/\",'CFR - XML import'!$A178,1)-SEARCH(\">\",'CFR - XML import'!$A178,1)-2))","v":0},{"$f":"IF(ISERROR(FIND(CI$3,'CFR - XML import'!$A178)),0,MID('CFR - XML import'!$A178,SEARCH(\">\",'CFR - XML import'!$A178,1)+1,SEARCH(\"/\",'CFR - XML import'!$A178,1)-SEARCH(\">\",'CFR - XML import'!$A178,1)-2))","v":0},{"$f":"IF(ISERROR(FIND(CJ$3,'CFR - XML import'!$A178)),0,MID('CFR - XML import'!$A178,SEARCH(\">\",'CFR - XML import'!$A178,1)+1,SEARCH(\"/\",'CFR - XML import'!$A178,1)-SEARCH(\">\",'CFR - XML import'!$A178,1)-2))","v":0},{"$f":"IF(ISERROR(FIND(CK$3,'CFR - XML import'!$A178)),0,MID('CFR - XML import'!$A178,SEARCH(\">\",'CFR - XML import'!$A178,1)+1,SEARCH(\"/\",'CFR - XML import'!$A178,1)-SEARCH(\">\",'CFR - XML import'!$A178,1)-2))","v":0},{"$f":"IF(ISERROR(FIND(CL$3,'CFR - XML import'!$A178)),0,MID('CFR - XML import'!$A178,SEARCH(\">\",'CFR - XML import'!$A178,1)+1,SEARCH(\"/\",'CFR - XML import'!$A178,1)-SEARCH(\">\",'CFR - XML import'!$A178,1)-2))","v":0}]
[{"$f":"IF(AND('CFR - XML import'!A179<>\"\",LEFT('CFR - XML import'!A179,1)<>\"<\",LEFT('CFR - XML import'!A179,3)<>\"  <\",LEFT('CFR - XML import'!A179,5)<>\"    <\",LEFT('CFR - XML import'!A179,7)<>\"      <\",LEFT('CFR - XML import'!A179,9)<>\"        <\",$B$1=\"SIMS\"),'CFR - XML import'!A179,IF(AND(LEFT('CFR - XML import'!A179,9)=\"<Details>\",$B$1=\"RM\"),'CFR - XML import'!A179,\"\"))","v":""},{"$f":"IF(ISERROR(FIND(B$3,'CFR - XML import'!$A179)),0,VALUE(MID('CFR - XML import'!$A179,SEARCH(\">\",'CFR - XML import'!$A179,1)+1,SEARCH(\"/\",'CFR - XML import'!$A179,1)-SEARCH(\">\",'CFR - XML import'!$A179,1)-2)))","v":0},null,{"$f":"IF(ISERROR(FIND(D$3,'CFR - XML import'!$A179)),0,MID('CFR - XML import'!$A179,SEARCH(\">\",'CFR - XML import'!$A179,1)+1,SEARCH(\"/\",'CFR - XML import'!$A179,1)-SEARCH(\">\",'CFR - XML import'!$A179,1)-2))","v":0},{"$f":"IF(ISERROR(FIND(E$3,'CFR - XML import'!$A179)),0,MID('CFR - XML import'!$A179,SEARCH(\">\",'CFR - XML import'!$A179,1)+1,SEARCH(\"/\",'CFR - XML import'!$A179,1)-SEARCH(\">\",'CFR - XML import'!$A179,1)-2))","v":0},{"$f":"IF($B$1=\"SIMS\",IF(ISERROR(FIND(F$3,'CFR - XML import'!$A179)),0,VALUE(MID('CFR - XML import'!$A179,15,10))),IF(ISERROR(FIND(F$3,'CFR - XML import'!$A179)),0,VALUE(MID('CFR - XML import'!$A179,11,10))))","v":"00:00:00"},{"$f":"IF(ISERROR(FIND(G$3,'CFR - XML import'!$A179)),0,VALUE(MID('CFR - XML import'!$A179,SEARCH(\">\",'CFR - XML import'!$A179,1)+1,SEARCH(\"/\",'CFR - XML import'!$A179,1)-SEARCH(\">\",'CFR - XML import'!$A179,1)-2)))","v":0},{"$f":"IF(ISERROR(FIND(H$3,'CFR - XML import'!$A179)),0,VALUE(MID('CFR - XML import'!$A179,SEARCH(\">\",'CFR - XML import'!$A179,1)+1,SEARCH(\"/\",'CFR - XML import'!$A179,1)-SEARCH(\">\",'CFR - XML import'!$A179,1)-2)))","v":0},{"$f":"IF(ISERROR(FIND(I$3,'CFR - XML import'!$A179)),0,VALUE(MID('CFR - XML import'!$A179,SEARCH(\">\",'CFR - XML import'!$A179,1)+1,SEARCH(\"/\",'CFR - XML import'!$A179,1)-SEARCH(\">\",'CFR - XML import'!$A179,1)-2)))","v":0},{"$f":"IF(ISERROR(FIND(J$3,'CFR - XML import'!$A179)),0,VALUE(MID('CFR - XML import'!$A179,SEARCH(\">\",'CFR - XML import'!$A179,1)+1,SEARCH(\"/\",'CFR - XML import'!$A179,1)-SEARCH(\">\",'CFR - XML import'!$A179,1)-2)))","v":0},{"$f":"IF(ISERROR(FIND(K$3,'CFR - XML import'!$A179)),0,VALUE(MID('CFR - XML import'!$A179,SEARCH(\">\",'CFR - XML import'!$A179,1)+1,SEARCH(\"/\",'CFR - XML import'!$A179,1)-SEARCH(\">\",'CFR - XML import'!$A179,1)-2)))","v":0},{"$f":"IF(ISERROR(FIND(L$3,'CFR - XML import'!$A179)),0,VALUE(MID('CFR - XML import'!$A179,SEARCH(\">\",'CFR - XML import'!$A179,1)+1,SEARCH(\"/\",'CFR - XML import'!$A179,1)-SEARCH(\">\",'CFR - XML import'!$A179,1)-2)))","v":0},{"$f":"IF(ISERROR(FIND(M$3,'CFR - XML import'!$A179)),0,VALUE(MID('CFR - XML import'!$A179,SEARCH(\">\",'CFR - XML import'!$A179,1)+1,SEARCH(\"/\",'CFR - XML import'!$A179,1)-SEARCH(\">\",'CFR - XML import'!$A179,1)-2)))","v":0},{"$f":"IF(ISERROR(FIND(N$3,'CFR - XML import'!$A179)),0,VALUE(MID('CFR - XML import'!$A179,SEARCH(\">\",'CFR - XML import'!$A179,1)+1,SEARCH(\"/\",'CFR - XML import'!$A179,1)-SEARCH(\">\",'CFR - XML import'!$A179,1)-2)))","v":0},{"$f":"IF(ISERROR(FIND(O$3,'CFR - XML import'!$A179)),0,VALUE(MID('CFR - XML import'!$A179,SEARCH(\">\",'CFR - XML import'!$A179,1)+1,SEARCH(\"/\",'CFR - XML import'!$A179,1)-SEARCH(\">\",'CFR - XML import'!$A179,1)-2)))","v":0},{"$f":"IF(ISERROR(FIND(P$3,'CFR - XML import'!$A179)),0,VALUE(MID('CFR - XML import'!$A179,SEARCH(\">\",'CFR - XML import'!$A179,1)+1,SEARCH(\"/\",'CFR - XML import'!$A179,1)-SEARCH(\">\",'CFR - XML import'!$A179,1)-2)))","v":0},{"$f":"IF(ISERROR(FIND(Q$3,'CFR - XML import'!$A179)),0,VALUE(MID('CFR - XML import'!$A179,SEARCH(\">\",'CFR - XML import'!$A179,1)+1,SEARCH(\"/\",'CFR - XML import'!$A179,1)-SEARCH(\">\",'CFR - XML import'!$A179,1)-2)))","v":0},{"$f":"IF(ISERROR(FIND(R$3,'CFR - XML import'!$A179)),0,VALUE(MID('CFR - XML import'!$A179,SEARCH(\">\",'CFR - XML import'!$A179,1)+1,SEARCH(\"/\",'CFR - XML import'!$A179,1)-SEARCH(\">\",'CFR - XML import'!$A179,1)-2)))","v":0},{"$f":"IF(ISERROR(FIND(S$3,'CFR - XML import'!$A179)),0,VALUE(MID('CFR - XML import'!$A179,SEARCH(\">\",'CFR - XML import'!$A179,1)+1,SEARCH(\"/\",'CFR - XML import'!$A179,1)-SEARCH(\">\",'CFR - XML import'!$A179,1)-2)))","v":0},{"$f":"IF(ISERROR(FIND(T$3,'CFR - XML import'!$A179)),0,VALUE(MID('CFR - XML import'!$A179,SEARCH(\">\",'CFR - XML import'!$A179,1)+1,SEARCH(\"/\",'CFR - XML import'!$A179,1)-SEARCH(\">\",'CFR - XML import'!$A179,1)-2)))","v":0},{"$f":"IF(ISERROR(FIND(U$3,'CFR - XML import'!$A179)),0,VALUE(MID('CFR - XML import'!$A179,SEARCH(\">\",'CFR - XML import'!$A179,1)+1,SEARCH(\"/\",'CFR - XML import'!$A179,1)-SEARCH(\">\",'CFR - XML import'!$A179,1)-2)))","v":0},{"$f":"IF(ISERROR(FIND(V$3,'CFR - XML import'!$A179)),0,VALUE(MID('CFR - XML import'!$A179,SEARCH(\">\",'CFR - XML import'!$A179,1)+1,SEARCH(\"/\",'CFR - XML import'!$A179,1)-SEARCH(\">\",'CFR - XML import'!$A179,1)-2)))","v":0},{"$f":"IF(ISERROR(FIND(W$3,'CFR - XML import'!$A179)),0,VALUE(MID('CFR - XML import'!$A179,SEARCH(\">\",'CFR - XML import'!$A179,1)+1,SEARCH(\"/\",'CFR - XML import'!$A179,1)-SEARCH(\">\",'CFR - XML import'!$A179,1)-2)))","v":0},null,{"$f":"IF(ISERROR(FIND(Y$3,'CFR - XML import'!$A179)),0,VALUE(MID('CFR - XML import'!$A179,SEARCH(\">\",'CFR - XML import'!$A179,1)+1,SEARCH(\"/\",'CFR - XML import'!$A179,1)-SEARCH(\">\",'CFR - XML import'!$A179,1)-2)))","v":0},{"$f":"IF(ISERROR(FIND(Z$3,'CFR - XML import'!$A179)),0,VALUE(MID('CFR - XML import'!$A179,SEARCH(\">\",'CFR - XML import'!$A179,1)+1,SEARCH(\"/\",'CFR - XML import'!$A179,1)-SEARCH(\">\",'CFR - XML import'!$A179,1)-2)))","v":0},{"$f":"IF(ISERROR(FIND(AA$3,'CFR - XML import'!$A179)),0,VALUE(MID('CFR - XML import'!$A179,SEARCH(\">\",'CFR - XML import'!$A179,1)+1,SEARCH(\"/\",'CFR - XML import'!$A179,1)-SEARCH(\">\",'CFR - XML import'!$A179,1)-2)))","v":0},{"$f":"IF(ISERROR(FIND(AB$3,'CFR - XML import'!$A179)),0,VALUE(MID('CFR - XML import'!$A179,SEARCH(\">\",'CFR - XML import'!$A179,1)+1,SEARCH(\"/\",'CFR - XML import'!$A179,1)-SEARCH(\">\",'CFR - XML import'!$A179,1)-2)))","v":0},{"$f":"IF(ISERROR(FIND(AC$3,'CFR - XML import'!$A179)),0,VALUE(MID('CFR - XML import'!$A179,SEARCH(\">\",'CFR - XML import'!$A179,1)+1,SEARCH(\"/\",'CFR - XML import'!$A179,1)-SEARCH(\">\",'CFR - XML import'!$A179,1)-2)))","v":0},{"$f":"IF(ISERROR(FIND(AD$3,'CFR - XML import'!$A179)),0,VALUE(MID('CFR - XML import'!$A179,SEARCH(\">\",'CFR - XML import'!$A179,1)+1,SEARCH(\"/\",'CFR - XML import'!$A179,1)-SEARCH(\">\",'CFR - XML import'!$A179,1)-2)))","v":0},{"$f":"IF(ISERROR(FIND(AE$3,'CFR - XML import'!$A179)),0,VALUE(MID('CFR - XML import'!$A179,SEARCH(\">\",'CFR - XML import'!$A179,1)+1,SEARCH(\"/\",'CFR - XML import'!$A179,1)-SEARCH(\">\",'CFR - XML import'!$A179,1)-2)))","v":0},{"$f":"IF(ISERROR(FIND(AF$3,'CFR - XML import'!$A179)),0,VALUE(MID('CFR - XML import'!$A179,SEARCH(\">\",'CFR - XML import'!$A179,1)+1,SEARCH(\"/\",'CFR - XML import'!$A179,1)-SEARCH(\">\",'CFR - XML import'!$A179,1)-2)))","v":0},{"$f":"IF(ISERROR(FIND(AG$3,'CFR - XML import'!$A179)),0,VALUE(MID('CFR - XML import'!$A179,SEARCH(\">\",'CFR - XML import'!$A179,1)+1,SEARCH(\"/\",'CFR - XML import'!$A179,1)-SEARCH(\">\",'CFR - XML import'!$A179,1)-2)))","v":0},{"$f":"IF(ISERROR(FIND(AH$3,'CFR - XML import'!$A179)),0,VALUE(MID('CFR - XML import'!$A179,SEARCH(\">\",'CFR - XML import'!$A179,1)+1,SEARCH(\"/\",'CFR - XML import'!$A179,1)-SEARCH(\">\",'CFR - XML import'!$A179,1)-2)))","v":0},{"$f":"IF(ISERROR(FIND(AI$3,'CFR - XML import'!$A179)),0,VALUE(MID('CFR - XML import'!$A179,SEARCH(\">\",'CFR - XML import'!$A179,1)+1,SEARCH(\"/\",'CFR - XML import'!$A179,1)-SEARCH(\">\",'CFR - XML import'!$A179,1)-2)))","v":0},{"$f":"IF(ISERROR(FIND(AJ$3,'CFR - XML import'!$A179)),0,VALUE(MID('CFR - XML import'!$A179,SEARCH(\">\",'CFR - XML import'!$A179,1)+1,SEARCH(\"/\",'CFR - XML import'!$A179,1)-SEARCH(\">\",'CFR - XML import'!$A179,1)-2)))","v":0},{"$f":"IF(ISERROR(FIND(AK$3,'CFR - XML import'!$A179)),0,VALUE(MID('CFR - XML import'!$A179,SEARCH(\">\",'CFR - XML import'!$A179,1)+1,SEARCH(\"/\",'CFR - XML import'!$A179,1)-SEARCH(\">\",'CFR - XML import'!$A179,1)-2)))","v":0},{"$f":"IF(ISERROR(FIND(AL$3,'CFR - XML import'!$A179)),0,VALUE(MID('CFR - XML import'!$A179,SEARCH(\">\",'CFR - XML import'!$A179,1)+1,SEARCH(\"/\",'CFR - XML import'!$A179,1)-SEARCH(\">\",'CFR - XML import'!$A179,1)-2)))","v":0},{"$f":"IF(ISERROR(FIND(AM$3,'CFR - XML import'!$A179)),0,VALUE(MID('CFR - XML import'!$A179,SEARCH(\">\",'CFR - XML import'!$A179,1)+1,SEARCH(\"/\",'CFR - XML import'!$A179,1)-SEARCH(\">\",'CFR - XML import'!$A179,1)-2)))","v":0},{"$f":"IF(ISERROR(FIND(AN$3,'CFR - XML import'!$A179)),0,VALUE(MID('CFR - XML import'!$A179,SEARCH(\">\",'CFR - XML import'!$A179,1)+1,SEARCH(\"/\",'CFR - XML import'!$A179,1)-SEARCH(\">\",'CFR - XML import'!$A179,1)-2)))","v":0},{"$f":"IF(ISERROR(FIND(AO$3,'CFR - XML import'!$A179)),0,VALUE(MID('CFR - XML import'!$A179,SEARCH(\">\",'CFR - XML import'!$A179,1)+1,SEARCH(\"/\",'CFR - XML import'!$A179,1)-SEARCH(\">\",'CFR - XML import'!$A179,1)-2)))","v":0},{"$f":"IF(ISERROR(FIND(AP$3,'CFR - XML import'!$A179)),0,VALUE(MID('CFR - XML import'!$A179,SEARCH(\">\",'CFR - XML import'!$A179,1)+1,SEARCH(\"/\",'CFR - XML import'!$A179,1)-SEARCH(\">\",'CFR - XML import'!$A179,1)-2)))","v":0},{"$f":"IF(ISERROR(FIND(AQ$3,'CFR - XML import'!$A179)),0,VALUE(MID('CFR - XML import'!$A179,SEARCH(\">\",'CFR - XML import'!$A179,1)+1,SEARCH(\"/\",'CFR - XML import'!$A179,1)-SEARCH(\">\",'CFR - XML import'!$A179,1)-2)))","v":0},{"$f":"IF(ISERROR(FIND(AR$3,'CFR - XML import'!$A179)),0,VALUE(MID('CFR - XML import'!$A179,SEARCH(\">\",'CFR - XML import'!$A179,1)+1,SEARCH(\"/\",'CFR - XML import'!$A179,1)-SEARCH(\">\",'CFR - XML import'!$A179,1)-2)))","v":0},{"$f":"IF(ISERROR(FIND(AS$3,'CFR - XML import'!$A179)),0,VALUE(MID('CFR - XML import'!$A179,SEARCH(\">\",'CFR - XML import'!$A179,1)+1,SEARCH(\"/\",'CFR - XML import'!$A179,1)-SEARCH(\">\",'CFR - XML import'!$A179,1)-2)))","v":0},{"$f":"IF(ISERROR(FIND(AT$3,'CFR - XML import'!$A179)),0,VALUE(MID('CFR - XML import'!$A179,SEARCH(\">\",'CFR - XML import'!$A179,1)+1,SEARCH(\"/\",'CFR - XML import'!$A179,1)-SEARCH(\">\",'CFR - XML import'!$A179,1)-2)))","v":0},{"$f":"IF(ISERROR(FIND(AU$3,'CFR - XML import'!$A179)),0,VALUE(MID('CFR - XML import'!$A179,SEARCH(\">\",'CFR - XML import'!$A179,1)+1,SEARCH(\"/\",'CFR - XML import'!$A179,1)-SEARCH(\">\",'CFR - XML import'!$A179,1)-2)))","v":0},{"$f":"IF(ISERROR(FIND(AV$3,'CFR - XML import'!$A179)),0,VALUE(MID('CFR - XML import'!$A179,SEARCH(\">\",'CFR - XML import'!$A179,1)+1,SEARCH(\"/\",'CFR - XML import'!$A179,1)-SEARCH(\">\",'CFR - XML import'!$A179,1)-2)))","v":0},{"$f":"IF(ISERROR(FIND(AW$3,'CFR - XML import'!$A179)),0,VALUE(MID('CFR - XML import'!$A179,SEARCH(\">\",'CFR - XML import'!$A179,1)+1,SEARCH(\"/\",'CFR - XML import'!$A179,1)-SEARCH(\">\",'CFR - XML import'!$A179,1)-2)))","v":0},{"$f":"IF(ISERROR(FIND(AX$3,'CFR - XML import'!$A179)),0,VALUE(MID('CFR - XML import'!$A179,SEARCH(\">\",'CFR - XML import'!$A179,1)+1,SEARCH(\"/\",'CFR - XML import'!$A179,1)-SEARCH(\">\",'CFR - XML import'!$A179,1)-2)))","v":0},{"$f":"IF(ISERROR(FIND(AY$3,'CFR - XML import'!$A179)),0,VALUE(MID('CFR - XML import'!$A179,SEARCH(\">\",'CFR - XML import'!$A179,1)+1,SEARCH(\"/\",'CFR - XML import'!$A179,1)-SEARCH(\">\",'CFR - XML import'!$A179,1)-2)))","v":0},{"$f":"IF(ISERROR(FIND(AZ$3,'CFR - XML import'!$A179)),0,VALUE(MID('CFR - XML import'!$A179,SEARCH(\">\",'CFR - XML import'!$A179,1)+1,SEARCH(\"/\",'CFR - XML import'!$A179,1)-SEARCH(\">\",'CFR - XML import'!$A179,1)-2)))","v":0},{"$f":"IF(ISERROR(FIND(BA$3,'CFR - XML import'!$A179)),0,VALUE(MID('CFR - XML import'!$A179,SEARCH(\">\",'CFR - XML import'!$A179,1)+1,SEARCH(\"/\",'CFR - XML import'!$A179,1)-SEARCH(\">\",'CFR - XML import'!$A179,1)-2)))","v":0},{"$f":"IF(ISERROR(FIND(BB$3,'CFR - XML import'!$A179)),0,VALUE(MID('CFR - XML import'!$A179,SEARCH(\">\",'CFR - XML import'!$A179,1)+1,SEARCH(\"/\",'CFR - XML import'!$A179,1)-SEARCH(\">\",'CFR - XML import'!$A179,1)-2)))","v":0},{"$f":"IF(ISERROR(FIND(BC$3,'CFR - XML import'!$A179)),0,VALUE(MID('CFR - XML import'!$A179,SEARCH(\">\",'CFR - XML import'!$A179,1)+1,SEARCH(\"/\",'CFR - XML import'!$A179,1)-SEARCH(\">\",'CFR - XML import'!$A179,1)-2)))","v":0},{"$f":"IF(ISERROR(FIND(BD$3,'CFR - XML import'!$A179)),0,VALUE(MID('CFR - XML import'!$A179,SEARCH(\">\",'CFR - XML import'!$A179,1)+1,SEARCH(\"/\",'CFR - XML import'!$A179,1)-SEARCH(\">\",'CFR - XML import'!$A179,1)-2)))","v":0},{"$f":"IF(ISERROR(FIND(BE$3,'CFR - XML import'!$A179)),0,VALUE(MID('CFR - XML import'!$A179,SEARCH(\">\",'CFR - XML import'!$A179,1)+1,SEARCH(\"/\",'CFR - XML import'!$A179,1)-SEARCH(\">\",'CFR - XML import'!$A179,1)-2)))","v":0},{"$f":"IF(ISERROR(FIND(BF$3,'CFR - XML import'!$A179)),0,VALUE(MID('CFR - XML import'!$A179,SEARCH(\">\",'CFR - XML import'!$A179,1)+1,SEARCH(\"/\",'CFR - XML import'!$A179,1)-SEARCH(\">\",'CFR - XML import'!$A179,1)-2)))","v":0},{"$f":"IF(ISERROR(FIND(BG$3,'CFR - XML import'!$A179)),0,VALUE(MID('CFR - XML import'!$A179,SEARCH(\">\",'CFR - XML import'!$A179,1)+1,SEARCH(\"/\",'CFR - XML import'!$A179,1)-SEARCH(\">\",'CFR - XML import'!$A179,1)-2)))","v":0},{"$f":"IF(ISERROR(FIND(BH$3,'CFR - XML import'!$A179)),0,VALUE(MID('CFR - XML import'!$A179,SEARCH(\">\",'CFR - XML import'!$A179,1)+1,SEARCH(\"/\",'CFR - XML import'!$A179,1)-SEARCH(\">\",'CFR - XML import'!$A179,1)-2)))","v":0},{"$f":"IF(ISERROR(FIND(BI$3,'CFR - XML import'!$A179)),0,VALUE(MID('CFR - XML import'!$A179,SEARCH(\">\",'CFR - XML import'!$A179,1)+1,SEARCH(\"/\",'CFR - XML import'!$A179,1)-SEARCH(\">\",'CFR - XML import'!$A179,1)-2)))","v":0},{"$f":"IF(ISERROR(FIND(BJ$3,'CFR - XML import'!$A179)),0,VALUE(MID('CFR - XML import'!$A179,SEARCH(\">\",'CFR - XML import'!$A179,1)+1,SEARCH(\"/\",'CFR - XML import'!$A179,1)-SEARCH(\">\",'CFR - XML import'!$A179,1)-2)))","v":0},{"$f":"IF(ISERROR(FIND(BK$3,'CFR - XML import'!$A179)),0,VALUE(MID('CFR - XML import'!$A179,SEARCH(\">\",'CFR - XML import'!$A179,1)+1,SEARCH(\"/\",'CFR - XML import'!$A179,1)-SEARCH(\">\",'CFR - XML import'!$A179,1)-2)))","v":0},{"$f":"IF(ISERROR(FIND(BL$3,'CFR - XML import'!$A179)),0,VALUE(MID('CFR - XML import'!$A179,SEARCH(\">\",'CFR - XML import'!$A179,1)+1,SEARCH(\"/\",'CFR - XML import'!$A179,1)-SEARCH(\">\",'CFR - XML import'!$A179,1)-2)))","v":0},{"$f":"IF(ISERROR(FIND(BM$3,'CFR - XML import'!$A179)),0,VALUE(MID('CFR - XML import'!$A179,SEARCH(\">\",'CFR - XML import'!$A179,1)+1,SEARCH(\"/\",'CFR - XML import'!$A179,1)-SEARCH(\">\",'CFR - XML import'!$A179,1)-2)))","v":0},{"$f":"IF(ISERROR(FIND(BN$3,'CFR - XML import'!$A179)),0,VALUE(MID('CFR - XML import'!$A179,SEARCH(\">\",'CFR - XML import'!$A179,1)+1,SEARCH(\"/\",'CFR - XML import'!$A179,1)-SEARCH(\">\",'CFR - XML import'!$A179,1)-2)))","v":0},{"$f":"IF(ISERROR(FIND(BO$3,'CFR - XML import'!$A179)),0,VALUE(MID('CFR - XML import'!$A179,SEARCH(\">\",'CFR - XML import'!$A179,1)+1,SEARCH(\"/\",'CFR - XML import'!$A179,1)-SEARCH(\">\",'CFR - XML import'!$A179,1)-2)))","v":0},{"$f":"IF(ISERROR(FIND(BP$3,'CFR - XML import'!$A179)),0,VALUE(MID('CFR - XML import'!$A179,SEARCH(\">\",'CFR - XML import'!$A179,1)+1,SEARCH(\"/\",'CFR - XML import'!$A179,1)-SEARCH(\">\",'CFR - XML import'!$A179,1)-2)))","v":0},{"$f":"IF(ISERROR(FIND(BQ$3,'CFR - XML import'!$A179)),0,VALUE(MID('CFR - XML import'!$A179,SEARCH(\">\",'CFR - XML import'!$A179,1)+1,SEARCH(\"/\",'CFR - XML import'!$A179,1)-SEARCH(\">\",'CFR - XML import'!$A179,1)-2)))","v":0},{"$f":"IF(ISERROR(FIND(BR$3,'CFR - XML import'!$A179)),0,VALUE(MID('CFR - XML import'!$A179,SEARCH(\">\",'CFR - XML import'!$A179,1)+1,SEARCH(\"/\",'CFR - XML import'!$A179,1)-SEARCH(\">\",'CFR - XML import'!$A179,1)-2)))","v":0},{"$f":"IF(ISERROR(FIND(BS$3,'CFR - XML import'!$A179)),0,VALUE(MID('CFR - XML import'!$A179,SEARCH(\">\",'CFR - XML import'!$A179,1)+1,SEARCH(\"/\",'CFR - XML import'!$A179,1)-SEARCH(\">\",'CFR - XML import'!$A179,1)-2)))","v":0},{"$f":"IF(ISERROR(FIND(BT$3,'CFR - XML import'!$A179)),0,VALUE(MID('CFR - XML import'!$A179,SEARCH(\">\",'CFR - XML import'!$A179,1)+1,SEARCH(\"/\",'CFR - XML import'!$A179,1)-SEARCH(\">\",'CFR - XML import'!$A179,1)-2)))","v":0},{"$f":"IF(ISERROR(FIND(BU$3,'CFR - XML import'!$A179)),0,VALUE(MID('CFR - XML import'!$A179,SEARCH(\">\",'CFR - XML import'!$A179,1)+1,SEARCH(\"/\",'CFR - XML import'!$A179,1)-SEARCH(\">\",'CFR - XML import'!$A179,1)-2)))","v":0},{"$f":"IF(ISERROR(FIND(BV$3,'CFR - XML import'!$A179)),0,VALUE(MID('CFR - XML import'!$A179,SEARCH(\">\",'CFR - XML import'!$A179,1)+1,SEARCH(\"/\",'CFR - XML import'!$A179,1)-SEARCH(\">\",'CFR - XML import'!$A179,1)-2)))","v":0},{"$f":"IF(ISERROR(FIND(BW$3,'CFR - XML import'!$A179)),0,VALUE(MID('CFR - XML import'!$A179,SEARCH(\">\",'CFR - XML import'!$A179,1)+1,SEARCH(\"/\",'CFR - XML import'!$A179,1)-SEARCH(\">\",'CFR - XML import'!$A179,1)-2)))","v":0},{"$f":"IF(ISERROR(FIND(BX$3,'CFR - XML import'!$A179)),0,VALUE(MID('CFR - XML import'!$A179,SEARCH(\">\",'CFR - XML import'!$A179,1)+1,SEARCH(\"/\",'CFR - XML import'!$A179,1)-SEARCH(\">\",'CFR - XML import'!$A179,1)-2)))","v":0},{"$f":"IF(ISERROR(FIND(BY$3,'CFR - XML import'!$A179)),0,VALUE(MID('CFR - XML import'!$A179,SEARCH(\">\",'CFR - XML import'!$A179,1)+1,SEARCH(\"/\",'CFR - XML import'!$A179,1)-SEARCH(\">\",'CFR - XML import'!$A179,1)-2)))","v":0},{"$f":"IF(ISERROR(FIND(BZ$3,'CFR - XML import'!$A179)),0,VALUE(MID('CFR - XML import'!$A179,SEARCH(\">\",'CFR - XML import'!$A179,1)+1,SEARCH(\"/\",'CFR - XML import'!$A179,1)-SEARCH(\">\",'CFR - XML import'!$A179,1)-2)))","v":0},null,null,null,null,null,null,{"$f":"IF(ISERROR(IF(MID('CFR - XML import'!$A179,LEN($CF$4)+1,LEN('CFR - XML import'!$A179)-(2*LEN($CF$4)+1))=\"RMMS\",1,IF(MID('CFR - XML import'!$A179,LEN(\"    <InputSystem>\")+1,LEN('CFR - XML import'!$A179)-(LEN(\"    <InputSystem>\")+LEN($CF$4)+1))=\"SIMS\",2,0))),0,IF(MID('CFR - XML import'!$A179,LEN($CF$4)+1,LEN('CFR - XML import'!$A179)-(2*LEN($CF$4)+1))=\"RMMS\",1,IF(MID('CFR - XML import'!$A179,LEN(\"    <InputSystem>\")+1,LEN('CFR - XML import'!$A179)-(LEN(\"    <InputSystem>\")+LEN($CF$4)+1))=\"SIMS\",2,0)))","v":0},{"$f":"IF(ISERROR(FIND(CH$3,'CFR - XML import'!$A179)),0,MID('CFR - XML import'!$A179,SEARCH(\">\",'CFR - XML import'!$A179,1)+1,SEARCH(\"/\",'CFR - XML import'!$A179,1)-SEARCH(\">\",'CFR - XML import'!$A179,1)-2))","v":0},{"$f":"IF(ISERROR(FIND(CI$3,'CFR - XML import'!$A179)),0,MID('CFR - XML import'!$A179,SEARCH(\">\",'CFR - XML import'!$A179,1)+1,SEARCH(\"/\",'CFR - XML import'!$A179,1)-SEARCH(\">\",'CFR - XML import'!$A179,1)-2))","v":0},{"$f":"IF(ISERROR(FIND(CJ$3,'CFR - XML import'!$A179)),0,MID('CFR - XML import'!$A179,SEARCH(\">\",'CFR - XML import'!$A179,1)+1,SEARCH(\"/\",'CFR - XML import'!$A179,1)-SEARCH(\">\",'CFR - XML import'!$A179,1)-2))","v":0},{"$f":"IF(ISERROR(FIND(CK$3,'CFR - XML import'!$A179)),0,MID('CFR - XML import'!$A179,SEARCH(\">\",'CFR - XML import'!$A179,1)+1,SEARCH(\"/\",'CFR - XML import'!$A179,1)-SEARCH(\">\",'CFR - XML import'!$A179,1)-2))","v":0},{"$f":"IF(ISERROR(FIND(CL$3,'CFR - XML import'!$A179)),0,MID('CFR - XML import'!$A179,SEARCH(\">\",'CFR - XML import'!$A179,1)+1,SEARCH(\"/\",'CFR - XML import'!$A179,1)-SEARCH(\">\",'CFR - XML import'!$A179,1)-2))","v":0}]
[{"$f":"IF(AND('CFR - XML import'!A180<>\"\",LEFT('CFR - XML import'!A180,1)<>\"<\",LEFT('CFR - XML import'!A180,3)<>\"  <\",LEFT('CFR - XML import'!A180,5)<>\"    <\",LEFT('CFR - XML import'!A180,7)<>\"      <\",LEFT('CFR - XML import'!A180,9)<>\"        <\",$B$1=\"SIMS\"),'CFR - XML import'!A180,IF(AND(LEFT('CFR - XML import'!A180,9)=\"<Details>\",$B$1=\"RM\"),'CFR - XML import'!A180,\"\"))","v":""},{"$f":"IF(ISERROR(FIND(B$3,'CFR - XML import'!$A180)),0,VALUE(MID('CFR - XML import'!$A180,SEARCH(\">\",'CFR - XML import'!$A180,1)+1,SEARCH(\"/\",'CFR - XML import'!$A180,1)-SEARCH(\">\",'CFR - XML import'!$A180,1)-2)))","v":0},null,{"$f":"IF(ISERROR(FIND(D$3,'CFR - XML import'!$A180)),0,MID('CFR - XML import'!$A180,SEARCH(\">\",'CFR - XML import'!$A180,1)+1,SEARCH(\"/\",'CFR - XML import'!$A180,1)-SEARCH(\">\",'CFR - XML import'!$A180,1)-2))","v":0},{"$f":"IF(ISERROR(FIND(E$3,'CFR - XML import'!$A180)),0,MID('CFR - XML import'!$A180,SEARCH(\">\",'CFR - XML import'!$A180,1)+1,SEARCH(\"/\",'CFR - XML import'!$A180,1)-SEARCH(\">\",'CFR - XML import'!$A180,1)-2))","v":0},{"$f":"IF($B$1=\"SIMS\",IF(ISERROR(FIND(F$3,'CFR - XML import'!$A180)),0,VALUE(MID('CFR - XML import'!$A180,15,10))),IF(ISERROR(FIND(F$3,'CFR - XML import'!$A180)),0,VALUE(MID('CFR - XML import'!$A180,11,10))))","v":"00:00:00"},{"$f":"IF(ISERROR(FIND(G$3,'CFR - XML import'!$A180)),0,VALUE(MID('CFR - XML import'!$A180,SEARCH(\">\",'CFR - XML import'!$A180,1)+1,SEARCH(\"/\",'CFR - XML import'!$A180,1)-SEARCH(\">\",'CFR - XML import'!$A180,1)-2)))","v":0},{"$f":"IF(ISERROR(FIND(H$3,'CFR - XML import'!$A180)),0,VALUE(MID('CFR - XML import'!$A180,SEARCH(\">\",'CFR - XML import'!$A180,1)+1,SEARCH(\"/\",'CFR - XML import'!$A180,1)-SEARCH(\">\",'CFR - XML import'!$A180,1)-2)))","v":0},{"$f":"IF(ISERROR(FIND(I$3,'CFR - XML import'!$A180)),0,VALUE(MID('CFR - XML import'!$A180,SEARCH(\">\",'CFR - XML import'!$A180,1)+1,SEARCH(\"/\",'CFR - XML import'!$A180,1)-SEARCH(\">\",'CFR - XML import'!$A180,1)-2)))","v":0},{"$f":"IF(ISERROR(FIND(J$3,'CFR - XML import'!$A180)),0,VALUE(MID('CFR - XML import'!$A180,SEARCH(\">\",'CFR - XML import'!$A180,1)+1,SEARCH(\"/\",'CFR - XML import'!$A180,1)-SEARCH(\">\",'CFR - XML import'!$A180,1)-2)))","v":0},{"$f":"IF(ISERROR(FIND(K$3,'CFR - XML import'!$A180)),0,VALUE(MID('CFR - XML import'!$A180,SEARCH(\">\",'CFR - XML import'!$A180,1)+1,SEARCH(\"/\",'CFR - XML import'!$A180,1)-SEARCH(\">\",'CFR - XML import'!$A180,1)-2)))","v":0},{"$f":"IF(ISERROR(FIND(L$3,'CFR - XML import'!$A180)),0,VALUE(MID('CFR - XML import'!$A180,SEARCH(\">\",'CFR - XML import'!$A180,1)+1,SEARCH(\"/\",'CFR - XML import'!$A180,1)-SEARCH(\">\",'CFR - XML import'!$A180,1)-2)))","v":0},{"$f":"IF(ISERROR(FIND(M$3,'CFR - XML import'!$A180)),0,VALUE(MID('CFR - XML import'!$A180,SEARCH(\">\",'CFR - XML import'!$A180,1)+1,SEARCH(\"/\",'CFR - XML import'!$A180,1)-SEARCH(\">\",'CFR - XML import'!$A180,1)-2)))","v":0},{"$f":"IF(ISERROR(FIND(N$3,'CFR - XML import'!$A180)),0,VALUE(MID('CFR - XML import'!$A180,SEARCH(\">\",'CFR - XML import'!$A180,1)+1,SEARCH(\"/\",'CFR - XML import'!$A180,1)-SEARCH(\">\",'CFR - XML import'!$A180,1)-2)))","v":0},{"$f":"IF(ISERROR(FIND(O$3,'CFR - XML import'!$A180)),0,VALUE(MID('CFR - XML import'!$A180,SEARCH(\">\",'CFR - XML import'!$A180,1)+1,SEARCH(\"/\",'CFR - XML import'!$A180,1)-SEARCH(\">\",'CFR - XML import'!$A180,1)-2)))","v":0},{"$f":"IF(ISERROR(FIND(P$3,'CFR - XML import'!$A180)),0,VALUE(MID('CFR - XML import'!$A180,SEARCH(\">\",'CFR - XML import'!$A180,1)+1,SEARCH(\"/\",'CFR - XML import'!$A180,1)-SEARCH(\">\",'CFR - XML import'!$A180,1)-2)))","v":0},{"$f":"IF(ISERROR(FIND(Q$3,'CFR - XML import'!$A180)),0,VALUE(MID('CFR - XML import'!$A180,SEARCH(\">\",'CFR - XML import'!$A180,1)+1,SEARCH(\"/\",'CFR - XML import'!$A180,1)-SEARCH(\">\",'CFR - XML import'!$A180,1)-2)))","v":0},{"$f":"IF(ISERROR(FIND(R$3,'CFR - XML import'!$A180)),0,VALUE(MID('CFR - XML import'!$A180,SEARCH(\">\",'CFR - XML import'!$A180,1)+1,SEARCH(\"/\",'CFR - XML import'!$A180,1)-SEARCH(\">\",'CFR - XML import'!$A180,1)-2)))","v":0},{"$f":"IF(ISERROR(FIND(S$3,'CFR - XML import'!$A180)),0,VALUE(MID('CFR - XML import'!$A180,SEARCH(\">\",'CFR - XML import'!$A180,1)+1,SEARCH(\"/\",'CFR - XML import'!$A180,1)-SEARCH(\">\",'CFR - XML import'!$A180,1)-2)))","v":0},{"$f":"IF(ISERROR(FIND(T$3,'CFR - XML import'!$A180)),0,VALUE(MID('CFR - XML import'!$A180,SEARCH(\">\",'CFR - XML import'!$A180,1)+1,SEARCH(\"/\",'CFR - XML import'!$A180,1)-SEARCH(\">\",'CFR - XML import'!$A180,1)-2)))","v":0},{"$f":"IF(ISERROR(FIND(U$3,'CFR - XML import'!$A180)),0,VALUE(MID('CFR - XML import'!$A180,SEARCH(\">\",'CFR - XML import'!$A180,1)+1,SEARCH(\"/\",'CFR - XML import'!$A180,1)-SEARCH(\">\",'CFR - XML import'!$A180,1)-2)))","v":0},{"$f":"IF(ISERROR(FIND(V$3,'CFR - XML import'!$A180)),0,VALUE(MID('CFR - XML import'!$A180,SEARCH(\">\",'CFR - XML import'!$A180,1)+1,SEARCH(\"/\",'CFR - XML import'!$A180,1)-SEARCH(\">\",'CFR - XML import'!$A180,1)-2)))","v":0},{"$f":"IF(ISERROR(FIND(W$3,'CFR - XML import'!$A180)),0,VALUE(MID('CFR - XML import'!$A180,SEARCH(\">\",'CFR - XML import'!$A180,1)+1,SEARCH(\"/\",'CFR - XML import'!$A180,1)-SEARCH(\">\",'CFR - XML import'!$A180,1)-2)))","v":0},null,{"$f":"IF(ISERROR(FIND(Y$3,'CFR - XML import'!$A180)),0,VALUE(MID('CFR - XML import'!$A180,SEARCH(\">\",'CFR - XML import'!$A180,1)+1,SEARCH(\"/\",'CFR - XML import'!$A180,1)-SEARCH(\">\",'CFR - XML import'!$A180,1)-2)))","v":0},{"$f":"IF(ISERROR(FIND(Z$3,'CFR - XML import'!$A180)),0,VALUE(MID('CFR - XML import'!$A180,SEARCH(\">\",'CFR - XML import'!$A180,1)+1,SEARCH(\"/\",'CFR - XML import'!$A180,1)-SEARCH(\">\",'CFR - XML import'!$A180,1)-2)))","v":0},{"$f":"IF(ISERROR(FIND(AA$3,'CFR - XML import'!$A180)),0,VALUE(MID('CFR - XML import'!$A180,SEARCH(\">\",'CFR - XML import'!$A180,1)+1,SEARCH(\"/\",'CFR - XML import'!$A180,1)-SEARCH(\">\",'CFR - XML import'!$A180,1)-2)))","v":0},{"$f":"IF(ISERROR(FIND(AB$3,'CFR - XML import'!$A180)),0,VALUE(MID('CFR - XML import'!$A180,SEARCH(\">\",'CFR - XML import'!$A180,1)+1,SEARCH(\"/\",'CFR - XML import'!$A180,1)-SEARCH(\">\",'CFR - XML import'!$A180,1)-2)))","v":0},{"$f":"IF(ISERROR(FIND(AC$3,'CFR - XML import'!$A180)),0,VALUE(MID('CFR - XML import'!$A180,SEARCH(\">\",'CFR - XML import'!$A180,1)+1,SEARCH(\"/\",'CFR - XML import'!$A180,1)-SEARCH(\">\",'CFR - XML import'!$A180,1)-2)))","v":0},{"$f":"IF(ISERROR(FIND(AD$3,'CFR - XML import'!$A180)),0,VALUE(MID('CFR - XML import'!$A180,SEARCH(\">\",'CFR - XML import'!$A180,1)+1,SEARCH(\"/\",'CFR - XML import'!$A180,1)-SEARCH(\">\",'CFR - XML import'!$A180,1)-2)))","v":0},{"$f":"IF(ISERROR(FIND(AE$3,'CFR - XML import'!$A180)),0,VALUE(MID('CFR - XML import'!$A180,SEARCH(\">\",'CFR - XML import'!$A180,1)+1,SEARCH(\"/\",'CFR - XML import'!$A180,1)-SEARCH(\">\",'CFR - XML import'!$A180,1)-2)))","v":0},{"$f":"IF(ISERROR(FIND(AF$3,'CFR - XML import'!$A180)),0,VALUE(MID('CFR - XML import'!$A180,SEARCH(\">\",'CFR - XML import'!$A180,1)+1,SEARCH(\"/\",'CFR - XML import'!$A180,1)-SEARCH(\">\",'CFR - XML import'!$A180,1)-2)))","v":0},{"$f":"IF(ISERROR(FIND(AG$3,'CFR - XML import'!$A180)),0,VALUE(MID('CFR - XML import'!$A180,SEARCH(\">\",'CFR - XML import'!$A180,1)+1,SEARCH(\"/\",'CFR - XML import'!$A180,1)-SEARCH(\">\",'CFR - XML import'!$A180,1)-2)))","v":0},{"$f":"IF(ISERROR(FIND(AH$3,'CFR - XML import'!$A180)),0,VALUE(MID('CFR - XML import'!$A180,SEARCH(\">\",'CFR - XML import'!$A180,1)+1,SEARCH(\"/\",'CFR - XML import'!$A180,1)-SEARCH(\">\",'CFR - XML import'!$A180,1)-2)))","v":0},{"$f":"IF(ISERROR(FIND(AI$3,'CFR - XML import'!$A180)),0,VALUE(MID('CFR - XML import'!$A180,SEARCH(\">\",'CFR - XML import'!$A180,1)+1,SEARCH(\"/\",'CFR - XML import'!$A180,1)-SEARCH(\">\",'CFR - XML import'!$A180,1)-2)))","v":0},{"$f":"IF(ISERROR(FIND(AJ$3,'CFR - XML import'!$A180)),0,VALUE(MID('CFR - XML import'!$A180,SEARCH(\">\",'CFR - XML import'!$A180,1)+1,SEARCH(\"/\",'CFR - XML import'!$A180,1)-SEARCH(\">\",'CFR - XML import'!$A180,1)-2)))","v":0},{"$f":"IF(ISERROR(FIND(AK$3,'CFR - XML import'!$A180)),0,VALUE(MID('CFR - XML import'!$A180,SEARCH(\">\",'CFR - XML import'!$A180,1)+1,SEARCH(\"/\",'CFR - XML import'!$A180,1)-SEARCH(\">\",'CFR - XML import'!$A180,1)-2)))","v":0},{"$f":"IF(ISERROR(FIND(AL$3,'CFR - XML import'!$A180)),0,VALUE(MID('CFR - XML import'!$A180,SEARCH(\">\",'CFR - XML import'!$A180,1)+1,SEARCH(\"/\",'CFR - XML import'!$A180,1)-SEARCH(\">\",'CFR - XML import'!$A180,1)-2)))","v":0},{"$f":"IF(ISERROR(FIND(AM$3,'CFR - XML import'!$A180)),0,VALUE(MID('CFR - XML import'!$A180,SEARCH(\">\",'CFR - XML import'!$A180,1)+1,SEARCH(\"/\",'CFR - XML import'!$A180,1)-SEARCH(\">\",'CFR - XML import'!$A180,1)-2)))","v":0},{"$f":"IF(ISERROR(FIND(AN$3,'CFR - XML import'!$A180)),0,VALUE(MID('CFR - XML import'!$A180,SEARCH(\">\",'CFR - XML import'!$A180,1)+1,SEARCH(\"/\",'CFR - XML import'!$A180,1)-SEARCH(\">\",'CFR - XML import'!$A180,1)-2)))","v":0},{"$f":"IF(ISERROR(FIND(AO$3,'CFR - XML import'!$A180)),0,VALUE(MID('CFR - XML import'!$A180,SEARCH(\">\",'CFR - XML import'!$A180,1)+1,SEARCH(\"/\",'CFR - XML import'!$A180,1)-SEARCH(\">\",'CFR - XML import'!$A180,1)-2)))","v":0},{"$f":"IF(ISERROR(FIND(AP$3,'CFR - XML import'!$A180)),0,VALUE(MID('CFR - XML import'!$A180,SEARCH(\">\",'CFR - XML import'!$A180,1)+1,SEARCH(\"/\",'CFR - XML import'!$A180,1)-SEARCH(\">\",'CFR - XML import'!$A180,1)-2)))","v":0},{"$f":"IF(ISERROR(FIND(AQ$3,'CFR - XML import'!$A180)),0,VALUE(MID('CFR - XML import'!$A180,SEARCH(\">\",'CFR - XML import'!$A180,1)+1,SEARCH(\"/\",'CFR - XML import'!$A180,1)-SEARCH(\">\",'CFR - XML import'!$A180,1)-2)))","v":0},{"$f":"IF(ISERROR(FIND(AR$3,'CFR - XML import'!$A180)),0,VALUE(MID('CFR - XML import'!$A180,SEARCH(\">\",'CFR - XML import'!$A180,1)+1,SEARCH(\"/\",'CFR - XML import'!$A180,1)-SEARCH(\">\",'CFR - XML import'!$A180,1)-2)))","v":0},{"$f":"IF(ISERROR(FIND(AS$3,'CFR - XML import'!$A180)),0,VALUE(MID('CFR - XML import'!$A180,SEARCH(\">\",'CFR - XML import'!$A180,1)+1,SEARCH(\"/\",'CFR - XML import'!$A180,1)-SEARCH(\">\",'CFR - XML import'!$A180,1)-2)))","v":0},{"$f":"IF(ISERROR(FIND(AT$3,'CFR - XML import'!$A180)),0,VALUE(MID('CFR - XML import'!$A180,SEARCH(\">\",'CFR - XML import'!$A180,1)+1,SEARCH(\"/\",'CFR - XML import'!$A180,1)-SEARCH(\">\",'CFR - XML import'!$A180,1)-2)))","v":0},{"$f":"IF(ISERROR(FIND(AU$3,'CFR - XML import'!$A180)),0,VALUE(MID('CFR - XML import'!$A180,SEARCH(\">\",'CFR - XML import'!$A180,1)+1,SEARCH(\"/\",'CFR - XML import'!$A180,1)-SEARCH(\">\",'CFR - XML import'!$A180,1)-2)))","v":0},{"$f":"IF(ISERROR(FIND(AV$3,'CFR - XML import'!$A180)),0,VALUE(MID('CFR - XML import'!$A180,SEARCH(\">\",'CFR - XML import'!$A180,1)+1,SEARCH(\"/\",'CFR - XML import'!$A180,1)-SEARCH(\">\",'CFR - XML import'!$A180,1)-2)))","v":0},{"$f":"IF(ISERROR(FIND(AW$3,'CFR - XML import'!$A180)),0,VALUE(MID('CFR - XML import'!$A180,SEARCH(\">\",'CFR - XML import'!$A180,1)+1,SEARCH(\"/\",'CFR - XML import'!$A180,1)-SEARCH(\">\",'CFR - XML import'!$A180,1)-2)))","v":0},{"$f":"IF(ISERROR(FIND(AX$3,'CFR - XML import'!$A180)),0,VALUE(MID('CFR - XML import'!$A180,SEARCH(\">\",'CFR - XML import'!$A180,1)+1,SEARCH(\"/\",'CFR - XML import'!$A180,1)-SEARCH(\">\",'CFR - XML import'!$A180,1)-2)))","v":0},{"$f":"IF(ISERROR(FIND(AY$3,'CFR - XML import'!$A180)),0,VALUE(MID('CFR - XML import'!$A180,SEARCH(\">\",'CFR - XML import'!$A180,1)+1,SEARCH(\"/\",'CFR - XML import'!$A180,1)-SEARCH(\">\",'CFR - XML import'!$A180,1)-2)))","v":0},{"$f":"IF(ISERROR(FIND(AZ$3,'CFR - XML import'!$A180)),0,VALUE(MID('CFR - XML import'!$A180,SEARCH(\">\",'CFR - XML import'!$A180,1)+1,SEARCH(\"/\",'CFR - XML import'!$A180,1)-SEARCH(\">\",'CFR - XML import'!$A180,1)-2)))","v":0},{"$f":"IF(ISERROR(FIND(BA$3,'CFR - XML import'!$A180)),0,VALUE(MID('CFR - XML import'!$A180,SEARCH(\">\",'CFR - XML import'!$A180,1)+1,SEARCH(\"/\",'CFR - XML import'!$A180,1)-SEARCH(\">\",'CFR - XML import'!$A180,1)-2)))","v":0},{"$f":"IF(ISERROR(FIND(BB$3,'CFR - XML import'!$A180)),0,VALUE(MID('CFR - XML import'!$A180,SEARCH(\">\",'CFR - XML import'!$A180,1)+1,SEARCH(\"/\",'CFR - XML import'!$A180,1)-SEARCH(\">\",'CFR - XML import'!$A180,1)-2)))","v":0},{"$f":"IF(ISERROR(FIND(BC$3,'CFR - XML import'!$A180)),0,VALUE(MID('CFR - XML import'!$A180,SEARCH(\">\",'CFR - XML import'!$A180,1)+1,SEARCH(\"/\",'CFR - XML import'!$A180,1)-SEARCH(\">\",'CFR - XML import'!$A180,1)-2)))","v":0},{"$f":"IF(ISERROR(FIND(BD$3,'CFR - XML import'!$A180)),0,VALUE(MID('CFR - XML import'!$A180,SEARCH(\">\",'CFR - XML import'!$A180,1)+1,SEARCH(\"/\",'CFR - XML import'!$A180,1)-SEARCH(\">\",'CFR - XML import'!$A180,1)-2)))","v":0},{"$f":"IF(ISERROR(FIND(BE$3,'CFR - XML import'!$A180)),0,VALUE(MID('CFR - XML import'!$A180,SEARCH(\">\",'CFR - XML import'!$A180,1)+1,SEARCH(\"/\",'CFR - XML import'!$A180,1)-SEARCH(\">\",'CFR - XML import'!$A180,1)-2)))","v":0},{"$f":"IF(ISERROR(FIND(BF$3,'CFR - XML import'!$A180)),0,VALUE(MID('CFR - XML import'!$A180,SEARCH(\">\",'CFR - XML import'!$A180,1)+1,SEARCH(\"/\",'CFR - XML import'!$A180,1)-SEARCH(\">\",'CFR - XML import'!$A180,1)-2)))","v":0},{"$f":"IF(ISERROR(FIND(BG$3,'CFR - XML import'!$A180)),0,VALUE(MID('CFR - XML import'!$A180,SEARCH(\">\",'CFR - XML import'!$A180,1)+1,SEARCH(\"/\",'CFR - XML import'!$A180,1)-SEARCH(\">\",'CFR - XML import'!$A180,1)-2)))","v":0},{"$f":"IF(ISERROR(FIND(BH$3,'CFR - XML import'!$A180)),0,VALUE(MID('CFR - XML import'!$A180,SEARCH(\">\",'CFR - XML import'!$A180,1)+1,SEARCH(\"/\",'CFR - XML import'!$A180,1)-SEARCH(\">\",'CFR - XML import'!$A180,1)-2)))","v":0},{"$f":"IF(ISERROR(FIND(BI$3,'CFR - XML import'!$A180)),0,VALUE(MID('CFR - XML import'!$A180,SEARCH(\">\",'CFR - XML import'!$A180,1)+1,SEARCH(\"/\",'CFR - XML import'!$A180,1)-SEARCH(\">\",'CFR - XML import'!$A180,1)-2)))","v":0},{"$f":"IF(ISERROR(FIND(BJ$3,'CFR - XML import'!$A180)),0,VALUE(MID('CFR - XML import'!$A180,SEARCH(\">\",'CFR - XML import'!$A180,1)+1,SEARCH(\"/\",'CFR - XML import'!$A180,1)-SEARCH(\">\",'CFR - XML import'!$A180,1)-2)))","v":0},{"$f":"IF(ISERROR(FIND(BK$3,'CFR - XML import'!$A180)),0,VALUE(MID('CFR - XML import'!$A180,SEARCH(\">\",'CFR - XML import'!$A180,1)+1,SEARCH(\"/\",'CFR - XML import'!$A180,1)-SEARCH(\">\",'CFR - XML import'!$A180,1)-2)))","v":0},{"$f":"IF(ISERROR(FIND(BL$3,'CFR - XML import'!$A180)),0,VALUE(MID('CFR - XML import'!$A180,SEARCH(\">\",'CFR - XML import'!$A180,1)+1,SEARCH(\"/\",'CFR - XML import'!$A180,1)-SEARCH(\">\",'CFR - XML import'!$A180,1)-2)))","v":0},{"$f":"IF(ISERROR(FIND(BM$3,'CFR - XML import'!$A180)),0,VALUE(MID('CFR - XML import'!$A180,SEARCH(\">\",'CFR - XML import'!$A180,1)+1,SEARCH(\"/\",'CFR - XML import'!$A180,1)-SEARCH(\">\",'CFR - XML import'!$A180,1)-2)))","v":0},{"$f":"IF(ISERROR(FIND(BN$3,'CFR - XML import'!$A180)),0,VALUE(MID('CFR - XML import'!$A180,SEARCH(\">\",'CFR - XML import'!$A180,1)+1,SEARCH(\"/\",'CFR - XML import'!$A180,1)-SEARCH(\">\",'CFR - XML import'!$A180,1)-2)))","v":0},{"$f":"IF(ISERROR(FIND(BO$3,'CFR - XML import'!$A180)),0,VALUE(MID('CFR - XML import'!$A180,SEARCH(\">\",'CFR - XML import'!$A180,1)+1,SEARCH(\"/\",'CFR - XML import'!$A180,1)-SEARCH(\">\",'CFR - XML import'!$A180,1)-2)))","v":0},{"$f":"IF(ISERROR(FIND(BP$3,'CFR - XML import'!$A180)),0,VALUE(MID('CFR - XML import'!$A180,SEARCH(\">\",'CFR - XML import'!$A180,1)+1,SEARCH(\"/\",'CFR - XML import'!$A180,1)-SEARCH(\">\",'CFR - XML import'!$A180,1)-2)))","v":0},{"$f":"IF(ISERROR(FIND(BQ$3,'CFR - XML import'!$A180)),0,VALUE(MID('CFR - XML import'!$A180,SEARCH(\">\",'CFR - XML import'!$A180,1)+1,SEARCH(\"/\",'CFR - XML import'!$A180,1)-SEARCH(\">\",'CFR - XML import'!$A180,1)-2)))","v":0},{"$f":"IF(ISERROR(FIND(BR$3,'CFR - XML import'!$A180)),0,VALUE(MID('CFR - XML import'!$A180,SEARCH(\">\",'CFR - XML import'!$A180,1)+1,SEARCH(\"/\",'CFR - XML import'!$A180,1)-SEARCH(\">\",'CFR - XML import'!$A180,1)-2)))","v":0},{"$f":"IF(ISERROR(FIND(BS$3,'CFR - XML import'!$A180)),0,VALUE(MID('CFR - XML import'!$A180,SEARCH(\">\",'CFR - XML import'!$A180,1)+1,SEARCH(\"/\",'CFR - XML import'!$A180,1)-SEARCH(\">\",'CFR - XML import'!$A180,1)-2)))","v":0},{"$f":"IF(ISERROR(FIND(BT$3,'CFR - XML import'!$A180)),0,VALUE(MID('CFR - XML import'!$A180,SEARCH(\">\",'CFR - XML import'!$A180,1)+1,SEARCH(\"/\",'CFR - XML import'!$A180,1)-SEARCH(\">\",'CFR - XML import'!$A180,1)-2)))","v":0},{"$f":"IF(ISERROR(FIND(BU$3,'CFR - XML import'!$A180)),0,VALUE(MID('CFR - XML import'!$A180,SEARCH(\">\",'CFR - XML import'!$A180,1)+1,SEARCH(\"/\",'CFR - XML import'!$A180,1)-SEARCH(\">\",'CFR - XML import'!$A180,1)-2)))","v":0},{"$f":"IF(ISERROR(FIND(BV$3,'CFR - XML import'!$A180)),0,VALUE(MID('CFR - XML import'!$A180,SEARCH(\">\",'CFR - XML import'!$A180,1)+1,SEARCH(\"/\",'CFR - XML import'!$A180,1)-SEARCH(\">\",'CFR - XML import'!$A180,1)-2)))","v":0},{"$f":"IF(ISERROR(FIND(BW$3,'CFR - XML import'!$A180)),0,VALUE(MID('CFR - XML import'!$A180,SEARCH(\">\",'CFR - XML import'!$A180,1)+1,SEARCH(\"/\",'CFR - XML import'!$A180,1)-SEARCH(\">\",'CFR - XML import'!$A180,1)-2)))","v":0},{"$f":"IF(ISERROR(FIND(BX$3,'CFR - XML import'!$A180)),0,VALUE(MID('CFR - XML import'!$A180,SEARCH(\">\",'CFR - XML import'!$A180,1)+1,SEARCH(\"/\",'CFR - XML import'!$A180,1)-SEARCH(\">\",'CFR - XML import'!$A180,1)-2)))","v":0},{"$f":"IF(ISERROR(FIND(BY$3,'CFR - XML import'!$A180)),0,VALUE(MID('CFR - XML import'!$A180,SEARCH(\">\",'CFR - XML import'!$A180,1)+1,SEARCH(\"/\",'CFR - XML import'!$A180,1)-SEARCH(\">\",'CFR - XML import'!$A180,1)-2)))","v":0},{"$f":"IF(ISERROR(FIND(BZ$3,'CFR - XML import'!$A180)),0,VALUE(MID('CFR - XML import'!$A180,SEARCH(\">\",'CFR - XML import'!$A180,1)+1,SEARCH(\"/\",'CFR - XML import'!$A180,1)-SEARCH(\">\",'CFR - XML import'!$A180,1)-2)))","v":0},null,null,null,null,null,null,{"$f":"IF(ISERROR(IF(MID('CFR - XML import'!$A180,LEN($CF$4)+1,LEN('CFR - XML import'!$A180)-(2*LEN($CF$4)+1))=\"RMMS\",1,IF(MID('CFR - XML import'!$A180,LEN(\"    <InputSystem>\")+1,LEN('CFR - XML import'!$A180)-(LEN(\"    <InputSystem>\")+LEN($CF$4)+1))=\"SIMS\",2,0))),0,IF(MID('CFR - XML import'!$A180,LEN($CF$4)+1,LEN('CFR - XML import'!$A180)-(2*LEN($CF$4)+1))=\"RMMS\",1,IF(MID('CFR - XML import'!$A180,LEN(\"    <InputSystem>\")+1,LEN('CFR - XML import'!$A180)-(LEN(\"    <InputSystem>\")+LEN($CF$4)+1))=\"SIMS\",2,0)))","v":0},{"$f":"IF(ISERROR(FIND(CH$3,'CFR - XML import'!$A180)),0,MID('CFR - XML import'!$A180,SEARCH(\">\",'CFR - XML import'!$A180,1)+1,SEARCH(\"/\",'CFR - XML import'!$A180,1)-SEARCH(\">\",'CFR - XML import'!$A180,1)-2))","v":0},{"$f":"IF(ISERROR(FIND(CI$3,'CFR - XML import'!$A180)),0,MID('CFR - XML import'!$A180,SEARCH(\">\",'CFR - XML import'!$A180,1)+1,SEARCH(\"/\",'CFR - XML import'!$A180,1)-SEARCH(\">\",'CFR - XML import'!$A180,1)-2))","v":0},{"$f":"IF(ISERROR(FIND(CJ$3,'CFR - XML import'!$A180)),0,MID('CFR - XML import'!$A180,SEARCH(\">\",'CFR - XML import'!$A180,1)+1,SEARCH(\"/\",'CFR - XML import'!$A180,1)-SEARCH(\">\",'CFR - XML import'!$A180,1)-2))","v":0},{"$f":"IF(ISERROR(FIND(CK$3,'CFR - XML import'!$A180)),0,MID('CFR - XML import'!$A180,SEARCH(\">\",'CFR - XML import'!$A180,1)+1,SEARCH(\"/\",'CFR - XML import'!$A180,1)-SEARCH(\">\",'CFR - XML import'!$A180,1)-2))","v":0},{"$f":"IF(ISERROR(FIND(CL$3,'CFR - XML import'!$A180)),0,MID('CFR - XML import'!$A180,SEARCH(\">\",'CFR - XML import'!$A180,1)+1,SEARCH(\"/\",'CFR - XML import'!$A180,1)-SEARCH(\">\",'CFR - XML import'!$A180,1)-2))","v":0}]
[{"$f":"IF(AND('CFR - XML import'!A181<>\"\",LEFT('CFR - XML import'!A181,1)<>\"<\",LEFT('CFR - XML import'!A181,3)<>\"  <\",LEFT('CFR - XML import'!A181,5)<>\"    <\",LEFT('CFR - XML import'!A181,7)<>\"      <\",LEFT('CFR - XML import'!A181,9)<>\"        <\",$B$1=\"SIMS\"),'CFR - XML import'!A181,IF(AND(LEFT('CFR - XML import'!A181,9)=\"<Details>\",$B$1=\"RM\"),'CFR - XML import'!A181,\"\"))","v":""},{"$f":"IF(ISERROR(FIND(B$3,'CFR - XML import'!$A181)),0,VALUE(MID('CFR - XML import'!$A181,SEARCH(\">\",'CFR - XML import'!$A181,1)+1,SEARCH(\"/\",'CFR - XML import'!$A181,1)-SEARCH(\">\",'CFR - XML import'!$A181,1)-2)))","v":0},null,{"$f":"IF(ISERROR(FIND(D$3,'CFR - XML import'!$A181)),0,MID('CFR - XML import'!$A181,SEARCH(\">\",'CFR - XML import'!$A181,1)+1,SEARCH(\"/\",'CFR - XML import'!$A181,1)-SEARCH(\">\",'CFR - XML import'!$A181,1)-2))","v":0},{"$f":"IF(ISERROR(FIND(E$3,'CFR - XML import'!$A181)),0,MID('CFR - XML import'!$A181,SEARCH(\">\",'CFR - XML import'!$A181,1)+1,SEARCH(\"/\",'CFR - XML import'!$A181,1)-SEARCH(\">\",'CFR - XML import'!$A181,1)-2))","v":0},{"$f":"IF($B$1=\"SIMS\",IF(ISERROR(FIND(F$3,'CFR - XML import'!$A181)),0,VALUE(MID('CFR - XML import'!$A181,15,10))),IF(ISERROR(FIND(F$3,'CFR - XML import'!$A181)),0,VALUE(MID('CFR - XML import'!$A181,11,10))))","v":"00:00:00"},{"$f":"IF(ISERROR(FIND(G$3,'CFR - XML import'!$A181)),0,VALUE(MID('CFR - XML import'!$A181,SEARCH(\">\",'CFR - XML import'!$A181,1)+1,SEARCH(\"/\",'CFR - XML import'!$A181,1)-SEARCH(\">\",'CFR - XML import'!$A181,1)-2)))","v":0},{"$f":"IF(ISERROR(FIND(H$3,'CFR - XML import'!$A181)),0,VALUE(MID('CFR - XML import'!$A181,SEARCH(\">\",'CFR - XML import'!$A181,1)+1,SEARCH(\"/\",'CFR - XML import'!$A181,1)-SEARCH(\">\",'CFR - XML import'!$A181,1)-2)))","v":0},{"$f":"IF(ISERROR(FIND(I$3,'CFR - XML import'!$A181)),0,VALUE(MID('CFR - XML import'!$A181,SEARCH(\">\",'CFR - XML import'!$A181,1)+1,SEARCH(\"/\",'CFR - XML import'!$A181,1)-SEARCH(\">\",'CFR - XML import'!$A181,1)-2)))","v":0},{"$f":"IF(ISERROR(FIND(J$3,'CFR - XML import'!$A181)),0,VALUE(MID('CFR - XML import'!$A181,SEARCH(\">\",'CFR - XML import'!$A181,1)+1,SEARCH(\"/\",'CFR - XML import'!$A181,1)-SEARCH(\">\",'CFR - XML import'!$A181,1)-2)))","v":0},{"$f":"IF(ISERROR(FIND(K$3,'CFR - XML import'!$A181)),0,VALUE(MID('CFR - XML import'!$A181,SEARCH(\">\",'CFR - XML import'!$A181,1)+1,SEARCH(\"/\",'CFR - XML import'!$A181,1)-SEARCH(\">\",'CFR - XML import'!$A181,1)-2)))","v":0},{"$f":"IF(ISERROR(FIND(L$3,'CFR - XML import'!$A181)),0,VALUE(MID('CFR - XML import'!$A181,SEARCH(\">\",'CFR - XML import'!$A181,1)+1,SEARCH(\"/\",'CFR - XML import'!$A181,1)-SEARCH(\">\",'CFR - XML import'!$A181,1)-2)))","v":0},{"$f":"IF(ISERROR(FIND(M$3,'CFR - XML import'!$A181)),0,VALUE(MID('CFR - XML import'!$A181,SEARCH(\">\",'CFR - XML import'!$A181,1)+1,SEARCH(\"/\",'CFR - XML import'!$A181,1)-SEARCH(\">\",'CFR - XML import'!$A181,1)-2)))","v":0},{"$f":"IF(ISERROR(FIND(N$3,'CFR - XML import'!$A181)),0,VALUE(MID('CFR - XML import'!$A181,SEARCH(\">\",'CFR - XML import'!$A181,1)+1,SEARCH(\"/\",'CFR - XML import'!$A181,1)-SEARCH(\">\",'CFR - XML import'!$A181,1)-2)))","v":0},{"$f":"IF(ISERROR(FIND(O$3,'CFR - XML import'!$A181)),0,VALUE(MID('CFR - XML import'!$A181,SEARCH(\">\",'CFR - XML import'!$A181,1)+1,SEARCH(\"/\",'CFR - XML import'!$A181,1)-SEARCH(\">\",'CFR - XML import'!$A181,1)-2)))","v":0},{"$f":"IF(ISERROR(FIND(P$3,'CFR - XML import'!$A181)),0,VALUE(MID('CFR - XML import'!$A181,SEARCH(\">\",'CFR - XML import'!$A181,1)+1,SEARCH(\"/\",'CFR - XML import'!$A181,1)-SEARCH(\">\",'CFR - XML import'!$A181,1)-2)))","v":0},{"$f":"IF(ISERROR(FIND(Q$3,'CFR - XML import'!$A181)),0,VALUE(MID('CFR - XML import'!$A181,SEARCH(\">\",'CFR - XML import'!$A181,1)+1,SEARCH(\"/\",'CFR - XML import'!$A181,1)-SEARCH(\">\",'CFR - XML import'!$A181,1)-2)))","v":0},{"$f":"IF(ISERROR(FIND(R$3,'CFR - XML import'!$A181)),0,VALUE(MID('CFR - XML import'!$A181,SEARCH(\">\",'CFR - XML import'!$A181,1)+1,SEARCH(\"/\",'CFR - XML import'!$A181,1)-SEARCH(\">\",'CFR - XML import'!$A181,1)-2)))","v":0},{"$f":"IF(ISERROR(FIND(S$3,'CFR - XML import'!$A181)),0,VALUE(MID('CFR - XML import'!$A181,SEARCH(\">\",'CFR - XML import'!$A181,1)+1,SEARCH(\"/\",'CFR - XML import'!$A181,1)-SEARCH(\">\",'CFR - XML import'!$A181,1)-2)))","v":0},{"$f":"IF(ISERROR(FIND(T$3,'CFR - XML import'!$A181)),0,VALUE(MID('CFR - XML import'!$A181,SEARCH(\">\",'CFR - XML import'!$A181,1)+1,SEARCH(\"/\",'CFR - XML import'!$A181,1)-SEARCH(\">\",'CFR - XML import'!$A181,1)-2)))","v":0},{"$f":"IF(ISERROR(FIND(U$3,'CFR - XML import'!$A181)),0,VALUE(MID('CFR - XML import'!$A181,SEARCH(\">\",'CFR - XML import'!$A181,1)+1,SEARCH(\"/\",'CFR - XML import'!$A181,1)-SEARCH(\">\",'CFR - XML import'!$A181,1)-2)))","v":0},{"$f":"IF(ISERROR(FIND(V$3,'CFR - XML import'!$A181)),0,VALUE(MID('CFR - XML import'!$A181,SEARCH(\">\",'CFR - XML import'!$A181,1)+1,SEARCH(\"/\",'CFR - XML import'!$A181,1)-SEARCH(\">\",'CFR - XML import'!$A181,1)-2)))","v":0},{"$f":"IF(ISERROR(FIND(W$3,'CFR - XML import'!$A181)),0,VALUE(MID('CFR - XML import'!$A181,SEARCH(\">\",'CFR - XML import'!$A181,1)+1,SEARCH(\"/\",'CFR - XML import'!$A181,1)-SEARCH(\">\",'CFR - XML import'!$A181,1)-2)))","v":0},null,{"$f":"IF(ISERROR(FIND(Y$3,'CFR - XML import'!$A181)),0,VALUE(MID('CFR - XML import'!$A181,SEARCH(\">\",'CFR - XML import'!$A181,1)+1,SEARCH(\"/\",'CFR - XML import'!$A181,1)-SEARCH(\">\",'CFR - XML import'!$A181,1)-2)))","v":0},{"$f":"IF(ISERROR(FIND(Z$3,'CFR - XML import'!$A181)),0,VALUE(MID('CFR - XML import'!$A181,SEARCH(\">\",'CFR - XML import'!$A181,1)+1,SEARCH(\"/\",'CFR - XML import'!$A181,1)-SEARCH(\">\",'CFR - XML import'!$A181,1)-2)))","v":0},{"$f":"IF(ISERROR(FIND(AA$3,'CFR - XML import'!$A181)),0,VALUE(MID('CFR - XML import'!$A181,SEARCH(\">\",'CFR - XML import'!$A181,1)+1,SEARCH(\"/\",'CFR - XML import'!$A181,1)-SEARCH(\">\",'CFR - XML import'!$A181,1)-2)))","v":0},{"$f":"IF(ISERROR(FIND(AB$3,'CFR - XML import'!$A181)),0,VALUE(MID('CFR - XML import'!$A181,SEARCH(\">\",'CFR - XML import'!$A181,1)+1,SEARCH(\"/\",'CFR - XML import'!$A181,1)-SEARCH(\">\",'CFR - XML import'!$A181,1)-2)))","v":0},{"$f":"IF(ISERROR(FIND(AC$3,'CFR - XML import'!$A181)),0,VALUE(MID('CFR - XML import'!$A181,SEARCH(\">\",'CFR - XML import'!$A181,1)+1,SEARCH(\"/\",'CFR - XML import'!$A181,1)-SEARCH(\">\",'CFR - XML import'!$A181,1)-2)))","v":0},{"$f":"IF(ISERROR(FIND(AD$3,'CFR - XML import'!$A181)),0,VALUE(MID('CFR - XML import'!$A181,SEARCH(\">\",'CFR - XML import'!$A181,1)+1,SEARCH(\"/\",'CFR - XML import'!$A181,1)-SEARCH(\">\",'CFR - XML import'!$A181,1)-2)))","v":0},{"$f":"IF(ISERROR(FIND(AE$3,'CFR - XML import'!$A181)),0,VALUE(MID('CFR - XML import'!$A181,SEARCH(\">\",'CFR - XML import'!$A181,1)+1,SEARCH(\"/\",'CFR - XML import'!$A181,1)-SEARCH(\">\",'CFR - XML import'!$A181,1)-2)))","v":0},{"$f":"IF(ISERROR(FIND(AF$3,'CFR - XML import'!$A181)),0,VALUE(MID('CFR - XML import'!$A181,SEARCH(\">\",'CFR - XML import'!$A181,1)+1,SEARCH(\"/\",'CFR - XML import'!$A181,1)-SEARCH(\">\",'CFR - XML import'!$A181,1)-2)))","v":0},{"$f":"IF(ISERROR(FIND(AG$3,'CFR - XML import'!$A181)),0,VALUE(MID('CFR - XML import'!$A181,SEARCH(\">\",'CFR - XML import'!$A181,1)+1,SEARCH(\"/\",'CFR - XML import'!$A181,1)-SEARCH(\">\",'CFR - XML import'!$A181,1)-2)))","v":0},{"$f":"IF(ISERROR(FIND(AH$3,'CFR - XML import'!$A181)),0,VALUE(MID('CFR - XML import'!$A181,SEARCH(\">\",'CFR - XML import'!$A181,1)+1,SEARCH(\"/\",'CFR - XML import'!$A181,1)-SEARCH(\">\",'CFR - XML import'!$A181,1)-2)))","v":0},{"$f":"IF(ISERROR(FIND(AI$3,'CFR - XML import'!$A181)),0,VALUE(MID('CFR - XML import'!$A181,SEARCH(\">\",'CFR - XML import'!$A181,1)+1,SEARCH(\"/\",'CFR - XML import'!$A181,1)-SEARCH(\">\",'CFR - XML import'!$A181,1)-2)))","v":0},{"$f":"IF(ISERROR(FIND(AJ$3,'CFR - XML import'!$A181)),0,VALUE(MID('CFR - XML import'!$A181,SEARCH(\">\",'CFR - XML import'!$A181,1)+1,SEARCH(\"/\",'CFR - XML import'!$A181,1)-SEARCH(\">\",'CFR - XML import'!$A181,1)-2)))","v":0},{"$f":"IF(ISERROR(FIND(AK$3,'CFR - XML import'!$A181)),0,VALUE(MID('CFR - XML import'!$A181,SEARCH(\">\",'CFR - XML import'!$A181,1)+1,SEARCH(\"/\",'CFR - XML import'!$A181,1)-SEARCH(\">\",'CFR - XML import'!$A181,1)-2)))","v":0},{"$f":"IF(ISERROR(FIND(AL$3,'CFR - XML import'!$A181)),0,VALUE(MID('CFR - XML import'!$A181,SEARCH(\">\",'CFR - XML import'!$A181,1)+1,SEARCH(\"/\",'CFR - XML import'!$A181,1)-SEARCH(\">\",'CFR - XML import'!$A181,1)-2)))","v":0},{"$f":"IF(ISERROR(FIND(AM$3,'CFR - XML import'!$A181)),0,VALUE(MID('CFR - XML import'!$A181,SEARCH(\">\",'CFR - XML import'!$A181,1)+1,SEARCH(\"/\",'CFR - XML import'!$A181,1)-SEARCH(\">\",'CFR - XML import'!$A181,1)-2)))","v":0},{"$f":"IF(ISERROR(FIND(AN$3,'CFR - XML import'!$A181)),0,VALUE(MID('CFR - XML import'!$A181,SEARCH(\">\",'CFR - XML import'!$A181,1)+1,SEARCH(\"/\",'CFR - XML import'!$A181,1)-SEARCH(\">\",'CFR - XML import'!$A181,1)-2)))","v":0},{"$f":"IF(ISERROR(FIND(AO$3,'CFR - XML import'!$A181)),0,VALUE(MID('CFR - XML import'!$A181,SEARCH(\">\",'CFR - XML import'!$A181,1)+1,SEARCH(\"/\",'CFR - XML import'!$A181,1)-SEARCH(\">\",'CFR - XML import'!$A181,1)-2)))","v":0},{"$f":"IF(ISERROR(FIND(AP$3,'CFR - XML import'!$A181)),0,VALUE(MID('CFR - XML import'!$A181,SEARCH(\">\",'CFR - XML import'!$A181,1)+1,SEARCH(\"/\",'CFR - XML import'!$A181,1)-SEARCH(\">\",'CFR - XML import'!$A181,1)-2)))","v":0},{"$f":"IF(ISERROR(FIND(AQ$3,'CFR - XML import'!$A181)),0,VALUE(MID('CFR - XML import'!$A181,SEARCH(\">\",'CFR - XML import'!$A181,1)+1,SEARCH(\"/\",'CFR - XML import'!$A181,1)-SEARCH(\">\",'CFR - XML import'!$A181,1)-2)))","v":0},{"$f":"IF(ISERROR(FIND(AR$3,'CFR - XML import'!$A181)),0,VALUE(MID('CFR - XML import'!$A181,SEARCH(\">\",'CFR - XML import'!$A181,1)+1,SEARCH(\"/\",'CFR - XML import'!$A181,1)-SEARCH(\">\",'CFR - XML import'!$A181,1)-2)))","v":0},{"$f":"IF(ISERROR(FIND(AS$3,'CFR - XML import'!$A181)),0,VALUE(MID('CFR - XML import'!$A181,SEARCH(\">\",'CFR - XML import'!$A181,1)+1,SEARCH(\"/\",'CFR - XML import'!$A181,1)-SEARCH(\">\",'CFR - XML import'!$A181,1)-2)))","v":0},{"$f":"IF(ISERROR(FIND(AT$3,'CFR - XML import'!$A181)),0,VALUE(MID('CFR - XML import'!$A181,SEARCH(\">\",'CFR - XML import'!$A181,1)+1,SEARCH(\"/\",'CFR - XML import'!$A181,1)-SEARCH(\">\",'CFR - XML import'!$A181,1)-2)))","v":0},{"$f":"IF(ISERROR(FIND(AU$3,'CFR - XML import'!$A181)),0,VALUE(MID('CFR - XML import'!$A181,SEARCH(\">\",'CFR - XML import'!$A181,1)+1,SEARCH(\"/\",'CFR - XML import'!$A181,1)-SEARCH(\">\",'CFR - XML import'!$A181,1)-2)))","v":0},{"$f":"IF(ISERROR(FIND(AV$3,'CFR - XML import'!$A181)),0,VALUE(MID('CFR - XML import'!$A181,SEARCH(\">\",'CFR - XML import'!$A181,1)+1,SEARCH(\"/\",'CFR - XML import'!$A181,1)-SEARCH(\">\",'CFR - XML import'!$A181,1)-2)))","v":0},{"$f":"IF(ISERROR(FIND(AW$3,'CFR - XML import'!$A181)),0,VALUE(MID('CFR - XML import'!$A181,SEARCH(\">\",'CFR - XML import'!$A181,1)+1,SEARCH(\"/\",'CFR - XML import'!$A181,1)-SEARCH(\">\",'CFR - XML import'!$A181,1)-2)))","v":0},{"$f":"IF(ISERROR(FIND(AX$3,'CFR - XML import'!$A181)),0,VALUE(MID('CFR - XML import'!$A181,SEARCH(\">\",'CFR - XML import'!$A181,1)+1,SEARCH(\"/\",'CFR - XML import'!$A181,1)-SEARCH(\">\",'CFR - XML import'!$A181,1)-2)))","v":0},{"$f":"IF(ISERROR(FIND(AY$3,'CFR - XML import'!$A181)),0,VALUE(MID('CFR - XML import'!$A181,SEARCH(\">\",'CFR - XML import'!$A181,1)+1,SEARCH(\"/\",'CFR - XML import'!$A181,1)-SEARCH(\">\",'CFR - XML import'!$A181,1)-2)))","v":0},{"$f":"IF(ISERROR(FIND(AZ$3,'CFR - XML import'!$A181)),0,VALUE(MID('CFR - XML import'!$A181,SEARCH(\">\",'CFR - XML import'!$A181,1)+1,SEARCH(\"/\",'CFR - XML import'!$A181,1)-SEARCH(\">\",'CFR - XML import'!$A181,1)-2)))","v":0},{"$f":"IF(ISERROR(FIND(BA$3,'CFR - XML import'!$A181)),0,VALUE(MID('CFR - XML import'!$A181,SEARCH(\">\",'CFR - XML import'!$A181,1)+1,SEARCH(\"/\",'CFR - XML import'!$A181,1)-SEARCH(\">\",'CFR - XML import'!$A181,1)-2)))","v":0},{"$f":"IF(ISERROR(FIND(BB$3,'CFR - XML import'!$A181)),0,VALUE(MID('CFR - XML import'!$A181,SEARCH(\">\",'CFR - XML import'!$A181,1)+1,SEARCH(\"/\",'CFR - XML import'!$A181,1)-SEARCH(\">\",'CFR - XML import'!$A181,1)-2)))","v":0},{"$f":"IF(ISERROR(FIND(BC$3,'CFR - XML import'!$A181)),0,VALUE(MID('CFR - XML import'!$A181,SEARCH(\">\",'CFR - XML import'!$A181,1)+1,SEARCH(\"/\",'CFR - XML import'!$A181,1)-SEARCH(\">\",'CFR - XML import'!$A181,1)-2)))","v":0},{"$f":"IF(ISERROR(FIND(BD$3,'CFR - XML import'!$A181)),0,VALUE(MID('CFR - XML import'!$A181,SEARCH(\">\",'CFR - XML import'!$A181,1)+1,SEARCH(\"/\",'CFR - XML import'!$A181,1)-SEARCH(\">\",'CFR - XML import'!$A181,1)-2)))","v":0},{"$f":"IF(ISERROR(FIND(BE$3,'CFR - XML import'!$A181)),0,VALUE(MID('CFR - XML import'!$A181,SEARCH(\">\",'CFR - XML import'!$A181,1)+1,SEARCH(\"/\",'CFR - XML import'!$A181,1)-SEARCH(\">\",'CFR - XML import'!$A181,1)-2)))","v":0},{"$f":"IF(ISERROR(FIND(BF$3,'CFR - XML import'!$A181)),0,VALUE(MID('CFR - XML import'!$A181,SEARCH(\">\",'CFR - XML import'!$A181,1)+1,SEARCH(\"/\",'CFR - XML import'!$A181,1)-SEARCH(\">\",'CFR - XML import'!$A181,1)-2)))","v":0},{"$f":"IF(ISERROR(FIND(BG$3,'CFR - XML import'!$A181)),0,VALUE(MID('CFR - XML import'!$A181,SEARCH(\">\",'CFR - XML import'!$A181,1)+1,SEARCH(\"/\",'CFR - XML import'!$A181,1)-SEARCH(\">\",'CFR - XML import'!$A181,1)-2)))","v":0},{"$f":"IF(ISERROR(FIND(BH$3,'CFR - XML import'!$A181)),0,VALUE(MID('CFR - XML import'!$A181,SEARCH(\">\",'CFR - XML import'!$A181,1)+1,SEARCH(\"/\",'CFR - XML import'!$A181,1)-SEARCH(\">\",'CFR - XML import'!$A181,1)-2)))","v":0},{"$f":"IF(ISERROR(FIND(BI$3,'CFR - XML import'!$A181)),0,VALUE(MID('CFR - XML import'!$A181,SEARCH(\">\",'CFR - XML import'!$A181,1)+1,SEARCH(\"/\",'CFR - XML import'!$A181,1)-SEARCH(\">\",'CFR - XML import'!$A181,1)-2)))","v":0},{"$f":"IF(ISERROR(FIND(BJ$3,'CFR - XML import'!$A181)),0,VALUE(MID('CFR - XML import'!$A181,SEARCH(\">\",'CFR - XML import'!$A181,1)+1,SEARCH(\"/\",'CFR - XML import'!$A181,1)-SEARCH(\">\",'CFR - XML import'!$A181,1)-2)))","v":0},{"$f":"IF(ISERROR(FIND(BK$3,'CFR - XML import'!$A181)),0,VALUE(MID('CFR - XML import'!$A181,SEARCH(\">\",'CFR - XML import'!$A181,1)+1,SEARCH(\"/\",'CFR - XML import'!$A181,1)-SEARCH(\">\",'CFR - XML import'!$A181,1)-2)))","v":0},{"$f":"IF(ISERROR(FIND(BL$3,'CFR - XML import'!$A181)),0,VALUE(MID('CFR - XML import'!$A181,SEARCH(\">\",'CFR - XML import'!$A181,1)+1,SEARCH(\"/\",'CFR - XML import'!$A181,1)-SEARCH(\">\",'CFR - XML import'!$A181,1)-2)))","v":0},{"$f":"IF(ISERROR(FIND(BM$3,'CFR - XML import'!$A181)),0,VALUE(MID('CFR - XML import'!$A181,SEARCH(\">\",'CFR - XML import'!$A181,1)+1,SEARCH(\"/\",'CFR - XML import'!$A181,1)-SEARCH(\">\",'CFR - XML import'!$A181,1)-2)))","v":0},{"$f":"IF(ISERROR(FIND(BN$3,'CFR - XML import'!$A181)),0,VALUE(MID('CFR - XML import'!$A181,SEARCH(\">\",'CFR - XML import'!$A181,1)+1,SEARCH(\"/\",'CFR - XML import'!$A181,1)-SEARCH(\">\",'CFR - XML import'!$A181,1)-2)))","v":0},{"$f":"IF(ISERROR(FIND(BO$3,'CFR - XML import'!$A181)),0,VALUE(MID('CFR - XML import'!$A181,SEARCH(\">\",'CFR - XML import'!$A181,1)+1,SEARCH(\"/\",'CFR - XML import'!$A181,1)-SEARCH(\">\",'CFR - XML import'!$A181,1)-2)))","v":0},{"$f":"IF(ISERROR(FIND(BP$3,'CFR - XML import'!$A181)),0,VALUE(MID('CFR - XML import'!$A181,SEARCH(\">\",'CFR - XML import'!$A181,1)+1,SEARCH(\"/\",'CFR - XML import'!$A181,1)-SEARCH(\">\",'CFR - XML import'!$A181,1)-2)))","v":0},{"$f":"IF(ISERROR(FIND(BQ$3,'CFR - XML import'!$A181)),0,VALUE(MID('CFR - XML import'!$A181,SEARCH(\">\",'CFR - XML import'!$A181,1)+1,SEARCH(\"/\",'CFR - XML import'!$A181,1)-SEARCH(\">\",'CFR - XML import'!$A181,1)-2)))","v":0},{"$f":"IF(ISERROR(FIND(BR$3,'CFR - XML import'!$A181)),0,VALUE(MID('CFR - XML import'!$A181,SEARCH(\">\",'CFR - XML import'!$A181,1)+1,SEARCH(\"/\",'CFR - XML import'!$A181,1)-SEARCH(\">\",'CFR - XML import'!$A181,1)-2)))","v":0},{"$f":"IF(ISERROR(FIND(BS$3,'CFR - XML import'!$A181)),0,VALUE(MID('CFR - XML import'!$A181,SEARCH(\">\",'CFR - XML import'!$A181,1)+1,SEARCH(\"/\",'CFR - XML import'!$A181,1)-SEARCH(\">\",'CFR - XML import'!$A181,1)-2)))","v":0},{"$f":"IF(ISERROR(FIND(BT$3,'CFR - XML import'!$A181)),0,VALUE(MID('CFR - XML import'!$A181,SEARCH(\">\",'CFR - XML import'!$A181,1)+1,SEARCH(\"/\",'CFR - XML import'!$A181,1)-SEARCH(\">\",'CFR - XML import'!$A181,1)-2)))","v":0},{"$f":"IF(ISERROR(FIND(BU$3,'CFR - XML import'!$A181)),0,VALUE(MID('CFR - XML import'!$A181,SEARCH(\">\",'CFR - XML import'!$A181,1)+1,SEARCH(\"/\",'CFR - XML import'!$A181,1)-SEARCH(\">\",'CFR - XML import'!$A181,1)-2)))","v":0},{"$f":"IF(ISERROR(FIND(BV$3,'CFR - XML import'!$A181)),0,VALUE(MID('CFR - XML import'!$A181,SEARCH(\">\",'CFR - XML import'!$A181,1)+1,SEARCH(\"/\",'CFR - XML import'!$A181,1)-SEARCH(\">\",'CFR - XML import'!$A181,1)-2)))","v":0},{"$f":"IF(ISERROR(FIND(BW$3,'CFR - XML import'!$A181)),0,VALUE(MID('CFR - XML import'!$A181,SEARCH(\">\",'CFR - XML import'!$A181,1)+1,SEARCH(\"/\",'CFR - XML import'!$A181,1)-SEARCH(\">\",'CFR - XML import'!$A181,1)-2)))","v":0},{"$f":"IF(ISERROR(FIND(BX$3,'CFR - XML import'!$A181)),0,VALUE(MID('CFR - XML import'!$A181,SEARCH(\">\",'CFR - XML import'!$A181,1)+1,SEARCH(\"/\",'CFR - XML import'!$A181,1)-SEARCH(\">\",'CFR - XML import'!$A181,1)-2)))","v":0},{"$f":"IF(ISERROR(FIND(BY$3,'CFR - XML import'!$A181)),0,VALUE(MID('CFR - XML import'!$A181,SEARCH(\">\",'CFR - XML import'!$A181,1)+1,SEARCH(\"/\",'CFR - XML import'!$A181,1)-SEARCH(\">\",'CFR - XML import'!$A181,1)-2)))","v":0},{"$f":"IF(ISERROR(FIND(BZ$3,'CFR - XML import'!$A181)),0,VALUE(MID('CFR - XML import'!$A181,SEARCH(\">\",'CFR - XML import'!$A181,1)+1,SEARCH(\"/\",'CFR - XML import'!$A181,1)-SEARCH(\">\",'CFR - XML import'!$A181,1)-2)))","v":0},null,null,null,null,null,null,{"$f":"IF(ISERROR(IF(MID('CFR - XML import'!$A181,LEN($CF$4)+1,LEN('CFR - XML import'!$A181)-(2*LEN($CF$4)+1))=\"RMMS\",1,IF(MID('CFR - XML import'!$A181,LEN(\"    <InputSystem>\")+1,LEN('CFR - XML import'!$A181)-(LEN(\"    <InputSystem>\")+LEN($CF$4)+1))=\"SIMS\",2,0))),0,IF(MID('CFR - XML import'!$A181,LEN($CF$4)+1,LEN('CFR - XML import'!$A181)-(2*LEN($CF$4)+1))=\"RMMS\",1,IF(MID('CFR - XML import'!$A181,LEN(\"    <InputSystem>\")+1,LEN('CFR - XML import'!$A181)-(LEN(\"    <InputSystem>\")+LEN($CF$4)+1))=\"SIMS\",2,0)))","v":0},{"$f":"IF(ISERROR(FIND(CH$3,'CFR - XML import'!$A181)),0,MID('CFR - XML import'!$A181,SEARCH(\">\",'CFR - XML import'!$A181,1)+1,SEARCH(\"/\",'CFR - XML import'!$A181,1)-SEARCH(\">\",'CFR - XML import'!$A181,1)-2))","v":0},{"$f":"IF(ISERROR(FIND(CI$3,'CFR - XML import'!$A181)),0,MID('CFR - XML import'!$A181,SEARCH(\">\",'CFR - XML import'!$A181,1)+1,SEARCH(\"/\",'CFR - XML import'!$A181,1)-SEARCH(\">\",'CFR - XML import'!$A181,1)-2))","v":0},{"$f":"IF(ISERROR(FIND(CJ$3,'CFR - XML import'!$A181)),0,MID('CFR - XML import'!$A181,SEARCH(\">\",'CFR - XML import'!$A181,1)+1,SEARCH(\"/\",'CFR - XML import'!$A181,1)-SEARCH(\">\",'CFR - XML import'!$A181,1)-2))","v":0},{"$f":"IF(ISERROR(FIND(CK$3,'CFR - XML import'!$A181)),0,MID('CFR - XML import'!$A181,SEARCH(\">\",'CFR - XML import'!$A181,1)+1,SEARCH(\"/\",'CFR - XML import'!$A181,1)-SEARCH(\">\",'CFR - XML import'!$A181,1)-2))","v":0},{"$f":"IF(ISERROR(FIND(CL$3,'CFR - XML import'!$A181)),0,MID('CFR - XML import'!$A181,SEARCH(\">\",'CFR - XML import'!$A181,1)+1,SEARCH(\"/\",'CFR - XML import'!$A181,1)-SEARCH(\">\",'CFR - XML import'!$A181,1)-2))","v":0}]
[{"$f":"IF(AND('CFR - XML import'!A182<>\"\",LEFT('CFR - XML import'!A182,1)<>\"<\",LEFT('CFR - XML import'!A182,3)<>\"  <\",LEFT('CFR - XML import'!A182,5)<>\"    <\",LEFT('CFR - XML import'!A182,7)<>\"      <\",LEFT('CFR - XML import'!A182,9)<>\"        <\",$B$1=\"SIMS\"),'CFR - XML import'!A182,IF(AND(LEFT('CFR - XML import'!A182,9)=\"<Details>\",$B$1=\"RM\"),'CFR - XML import'!A182,\"\"))","v":""},{"$f":"IF(ISERROR(FIND(B$3,'CFR - XML import'!$A182)),0,VALUE(MID('CFR - XML import'!$A182,SEARCH(\">\",'CFR - XML import'!$A182,1)+1,SEARCH(\"/\",'CFR - XML import'!$A182,1)-SEARCH(\">\",'CFR - XML import'!$A182,1)-2)))","v":0},null,{"$f":"IF(ISERROR(FIND(D$3,'CFR - XML import'!$A182)),0,MID('CFR - XML import'!$A182,SEARCH(\">\",'CFR - XML import'!$A182,1)+1,SEARCH(\"/\",'CFR - XML import'!$A182,1)-SEARCH(\">\",'CFR - XML import'!$A182,1)-2))","v":0},{"$f":"IF(ISERROR(FIND(E$3,'CFR - XML import'!$A182)),0,MID('CFR - XML import'!$A182,SEARCH(\">\",'CFR - XML import'!$A182,1)+1,SEARCH(\"/\",'CFR - XML import'!$A182,1)-SEARCH(\">\",'CFR - XML import'!$A182,1)-2))","v":0},{"$f":"IF($B$1=\"SIMS\",IF(ISERROR(FIND(F$3,'CFR - XML import'!$A182)),0,VALUE(MID('CFR - XML import'!$A182,15,10))),IF(ISERROR(FIND(F$3,'CFR - XML import'!$A182)),0,VALUE(MID('CFR - XML import'!$A182,11,10))))","v":"00:00:00"},{"$f":"IF(ISERROR(FIND(G$3,'CFR - XML import'!$A182)),0,VALUE(MID('CFR - XML import'!$A182,SEARCH(\">\",'CFR - XML import'!$A182,1)+1,SEARCH(\"/\",'CFR - XML import'!$A182,1)-SEARCH(\">\",'CFR - XML import'!$A182,1)-2)))","v":0},{"$f":"IF(ISERROR(FIND(H$3,'CFR - XML import'!$A182)),0,VALUE(MID('CFR - XML import'!$A182,SEARCH(\">\",'CFR - XML import'!$A182,1)+1,SEARCH(\"/\",'CFR - XML import'!$A182,1)-SEARCH(\">\",'CFR - XML import'!$A182,1)-2)))","v":0},{"$f":"IF(ISERROR(FIND(I$3,'CFR - XML import'!$A182)),0,VALUE(MID('CFR - XML import'!$A182,SEARCH(\">\",'CFR - XML import'!$A182,1)+1,SEARCH(\"/\",'CFR - XML import'!$A182,1)-SEARCH(\">\",'CFR - XML import'!$A182,1)-2)))","v":0},{"$f":"IF(ISERROR(FIND(J$3,'CFR - XML import'!$A182)),0,VALUE(MID('CFR - XML import'!$A182,SEARCH(\">\",'CFR - XML import'!$A182,1)+1,SEARCH(\"/\",'CFR - XML import'!$A182,1)-SEARCH(\">\",'CFR - XML import'!$A182,1)-2)))","v":0},{"$f":"IF(ISERROR(FIND(K$3,'CFR - XML import'!$A182)),0,VALUE(MID('CFR - XML import'!$A182,SEARCH(\">\",'CFR - XML import'!$A182,1)+1,SEARCH(\"/\",'CFR - XML import'!$A182,1)-SEARCH(\">\",'CFR - XML import'!$A182,1)-2)))","v":0},{"$f":"IF(ISERROR(FIND(L$3,'CFR - XML import'!$A182)),0,VALUE(MID('CFR - XML import'!$A182,SEARCH(\">\",'CFR - XML import'!$A182,1)+1,SEARCH(\"/\",'CFR - XML import'!$A182,1)-SEARCH(\">\",'CFR - XML import'!$A182,1)-2)))","v":0},{"$f":"IF(ISERROR(FIND(M$3,'CFR - XML import'!$A182)),0,VALUE(MID('CFR - XML import'!$A182,SEARCH(\">\",'CFR - XML import'!$A182,1)+1,SEARCH(\"/\",'CFR - XML import'!$A182,1)-SEARCH(\">\",'CFR - XML import'!$A182,1)-2)))","v":0},{"$f":"IF(ISERROR(FIND(N$3,'CFR - XML import'!$A182)),0,VALUE(MID('CFR - XML import'!$A182,SEARCH(\">\",'CFR - XML import'!$A182,1)+1,SEARCH(\"/\",'CFR - XML import'!$A182,1)-SEARCH(\">\",'CFR - XML import'!$A182,1)-2)))","v":0},{"$f":"IF(ISERROR(FIND(O$3,'CFR - XML import'!$A182)),0,VALUE(MID('CFR - XML import'!$A182,SEARCH(\">\",'CFR - XML import'!$A182,1)+1,SEARCH(\"/\",'CFR - XML import'!$A182,1)-SEARCH(\">\",'CFR - XML import'!$A182,1)-2)))","v":0},{"$f":"IF(ISERROR(FIND(P$3,'CFR - XML import'!$A182)),0,VALUE(MID('CFR - XML import'!$A182,SEARCH(\">\",'CFR - XML import'!$A182,1)+1,SEARCH(\"/\",'CFR - XML import'!$A182,1)-SEARCH(\">\",'CFR - XML import'!$A182,1)-2)))","v":0},{"$f":"IF(ISERROR(FIND(Q$3,'CFR - XML import'!$A182)),0,VALUE(MID('CFR - XML import'!$A182,SEARCH(\">\",'CFR - XML import'!$A182,1)+1,SEARCH(\"/\",'CFR - XML import'!$A182,1)-SEARCH(\">\",'CFR - XML import'!$A182,1)-2)))","v":0},{"$f":"IF(ISERROR(FIND(R$3,'CFR - XML import'!$A182)),0,VALUE(MID('CFR - XML import'!$A182,SEARCH(\">\",'CFR - XML import'!$A182,1)+1,SEARCH(\"/\",'CFR - XML import'!$A182,1)-SEARCH(\">\",'CFR - XML import'!$A182,1)-2)))","v":0},{"$f":"IF(ISERROR(FIND(S$3,'CFR - XML import'!$A182)),0,VALUE(MID('CFR - XML import'!$A182,SEARCH(\">\",'CFR - XML import'!$A182,1)+1,SEARCH(\"/\",'CFR - XML import'!$A182,1)-SEARCH(\">\",'CFR - XML import'!$A182,1)-2)))","v":0},{"$f":"IF(ISERROR(FIND(T$3,'CFR - XML import'!$A182)),0,VALUE(MID('CFR - XML import'!$A182,SEARCH(\">\",'CFR - XML import'!$A182,1)+1,SEARCH(\"/\",'CFR - XML import'!$A182,1)-SEARCH(\">\",'CFR - XML import'!$A182,1)-2)))","v":0},{"$f":"IF(ISERROR(FIND(U$3,'CFR - XML import'!$A182)),0,VALUE(MID('CFR - XML import'!$A182,SEARCH(\">\",'CFR - XML import'!$A182,1)+1,SEARCH(\"/\",'CFR - XML import'!$A182,1)-SEARCH(\">\",'CFR - XML import'!$A182,1)-2)))","v":0},{"$f":"IF(ISERROR(FIND(V$3,'CFR - XML import'!$A182)),0,VALUE(MID('CFR - XML import'!$A182,SEARCH(\">\",'CFR - XML import'!$A182,1)+1,SEARCH(\"/\",'CFR - XML import'!$A182,1)-SEARCH(\">\",'CFR - XML import'!$A182,1)-2)))","v":0},{"$f":"IF(ISERROR(FIND(W$3,'CFR - XML import'!$A182)),0,VALUE(MID('CFR - XML import'!$A182,SEARCH(\">\",'CFR - XML import'!$A182,1)+1,SEARCH(\"/\",'CFR - XML import'!$A182,1)-SEARCH(\">\",'CFR - XML import'!$A182,1)-2)))","v":0},null,{"$f":"IF(ISERROR(FIND(Y$3,'CFR - XML import'!$A182)),0,VALUE(MID('CFR - XML import'!$A182,SEARCH(\">\",'CFR - XML import'!$A182,1)+1,SEARCH(\"/\",'CFR - XML import'!$A182,1)-SEARCH(\">\",'CFR - XML import'!$A182,1)-2)))","v":0},{"$f":"IF(ISERROR(FIND(Z$3,'CFR - XML import'!$A182)),0,VALUE(MID('CFR - XML import'!$A182,SEARCH(\">\",'CFR - XML import'!$A182,1)+1,SEARCH(\"/\",'CFR - XML import'!$A182,1)-SEARCH(\">\",'CFR - XML import'!$A182,1)-2)))","v":0},{"$f":"IF(ISERROR(FIND(AA$3,'CFR - XML import'!$A182)),0,VALUE(MID('CFR - XML import'!$A182,SEARCH(\">\",'CFR - XML import'!$A182,1)+1,SEARCH(\"/\",'CFR - XML import'!$A182,1)-SEARCH(\">\",'CFR - XML import'!$A182,1)-2)))","v":0},{"$f":"IF(ISERROR(FIND(AB$3,'CFR - XML import'!$A182)),0,VALUE(MID('CFR - XML import'!$A182,SEARCH(\">\",'CFR - XML import'!$A182,1)+1,SEARCH(\"/\",'CFR - XML import'!$A182,1)-SEARCH(\">\",'CFR - XML import'!$A182,1)-2)))","v":0},{"$f":"IF(ISERROR(FIND(AC$3,'CFR - XML import'!$A182)),0,VALUE(MID('CFR - XML import'!$A182,SEARCH(\">\",'CFR - XML import'!$A182,1)+1,SEARCH(\"/\",'CFR - XML import'!$A182,1)-SEARCH(\">\",'CFR - XML import'!$A182,1)-2)))","v":0},{"$f":"IF(ISERROR(FIND(AD$3,'CFR - XML import'!$A182)),0,VALUE(MID('CFR - XML import'!$A182,SEARCH(\">\",'CFR - XML import'!$A182,1)+1,SEARCH(\"/\",'CFR - XML import'!$A182,1)-SEARCH(\">\",'CFR - XML import'!$A182,1)-2)))","v":0},{"$f":"IF(ISERROR(FIND(AE$3,'CFR - XML import'!$A182)),0,VALUE(MID('CFR - XML import'!$A182,SEARCH(\">\",'CFR - XML import'!$A182,1)+1,SEARCH(\"/\",'CFR - XML import'!$A182,1)-SEARCH(\">\",'CFR - XML import'!$A182,1)-2)))","v":0},{"$f":"IF(ISERROR(FIND(AF$3,'CFR - XML import'!$A182)),0,VALUE(MID('CFR - XML import'!$A182,SEARCH(\">\",'CFR - XML import'!$A182,1)+1,SEARCH(\"/\",'CFR - XML import'!$A182,1)-SEARCH(\">\",'CFR - XML import'!$A182,1)-2)))","v":0},{"$f":"IF(ISERROR(FIND(AG$3,'CFR - XML import'!$A182)),0,VALUE(MID('CFR - XML import'!$A182,SEARCH(\">\",'CFR - XML import'!$A182,1)+1,SEARCH(\"/\",'CFR - XML import'!$A182,1)-SEARCH(\">\",'CFR - XML import'!$A182,1)-2)))","v":0},{"$f":"IF(ISERROR(FIND(AH$3,'CFR - XML import'!$A182)),0,VALUE(MID('CFR - XML import'!$A182,SEARCH(\">\",'CFR - XML import'!$A182,1)+1,SEARCH(\"/\",'CFR - XML import'!$A182,1)-SEARCH(\">\",'CFR - XML import'!$A182,1)-2)))","v":0},{"$f":"IF(ISERROR(FIND(AI$3,'CFR - XML import'!$A182)),0,VALUE(MID('CFR - XML import'!$A182,SEARCH(\">\",'CFR - XML import'!$A182,1)+1,SEARCH(\"/\",'CFR - XML import'!$A182,1)-SEARCH(\">\",'CFR - XML import'!$A182,1)-2)))","v":0},{"$f":"IF(ISERROR(FIND(AJ$3,'CFR - XML import'!$A182)),0,VALUE(MID('CFR - XML import'!$A182,SEARCH(\">\",'CFR - XML import'!$A182,1)+1,SEARCH(\"/\",'CFR - XML import'!$A182,1)-SEARCH(\">\",'CFR - XML import'!$A182,1)-2)))","v":0},{"$f":"IF(ISERROR(FIND(AK$3,'CFR - XML import'!$A182)),0,VALUE(MID('CFR - XML import'!$A182,SEARCH(\">\",'CFR - XML import'!$A182,1)+1,SEARCH(\"/\",'CFR - XML import'!$A182,1)-SEARCH(\">\",'CFR - XML import'!$A182,1)-2)))","v":0},{"$f":"IF(ISERROR(FIND(AL$3,'CFR - XML import'!$A182)),0,VALUE(MID('CFR - XML import'!$A182,SEARCH(\">\",'CFR - XML import'!$A182,1)+1,SEARCH(\"/\",'CFR - XML import'!$A182,1)-SEARCH(\">\",'CFR - XML import'!$A182,1)-2)))","v":0},{"$f":"IF(ISERROR(FIND(AM$3,'CFR - XML import'!$A182)),0,VALUE(MID('CFR - XML import'!$A182,SEARCH(\">\",'CFR - XML import'!$A182,1)+1,SEARCH(\"/\",'CFR - XML import'!$A182,1)-SEARCH(\">\",'CFR - XML import'!$A182,1)-2)))","v":0},{"$f":"IF(ISERROR(FIND(AN$3,'CFR - XML import'!$A182)),0,VALUE(MID('CFR - XML import'!$A182,SEARCH(\">\",'CFR - XML import'!$A182,1)+1,SEARCH(\"/\",'CFR - XML import'!$A182,1)-SEARCH(\">\",'CFR - XML import'!$A182,1)-2)))","v":0},{"$f":"IF(ISERROR(FIND(AO$3,'CFR - XML import'!$A182)),0,VALUE(MID('CFR - XML import'!$A182,SEARCH(\">\",'CFR - XML import'!$A182,1)+1,SEARCH(\"/\",'CFR - XML import'!$A182,1)-SEARCH(\">\",'CFR - XML import'!$A182,1)-2)))","v":0},{"$f":"IF(ISERROR(FIND(AP$3,'CFR - XML import'!$A182)),0,VALUE(MID('CFR - XML import'!$A182,SEARCH(\">\",'CFR - XML import'!$A182,1)+1,SEARCH(\"/\",'CFR - XML import'!$A182,1)-SEARCH(\">\",'CFR - XML import'!$A182,1)-2)))","v":0},{"$f":"IF(ISERROR(FIND(AQ$3,'CFR - XML import'!$A182)),0,VALUE(MID('CFR - XML import'!$A182,SEARCH(\">\",'CFR - XML import'!$A182,1)+1,SEARCH(\"/\",'CFR - XML import'!$A182,1)-SEARCH(\">\",'CFR - XML import'!$A182,1)-2)))","v":0},{"$f":"IF(ISERROR(FIND(AR$3,'CFR - XML import'!$A182)),0,VALUE(MID('CFR - XML import'!$A182,SEARCH(\">\",'CFR - XML import'!$A182,1)+1,SEARCH(\"/\",'CFR - XML import'!$A182,1)-SEARCH(\">\",'CFR - XML import'!$A182,1)-2)))","v":0},{"$f":"IF(ISERROR(FIND(AS$3,'CFR - XML import'!$A182)),0,VALUE(MID('CFR - XML import'!$A182,SEARCH(\">\",'CFR - XML import'!$A182,1)+1,SEARCH(\"/\",'CFR - XML import'!$A182,1)-SEARCH(\">\",'CFR - XML import'!$A182,1)-2)))","v":0},{"$f":"IF(ISERROR(FIND(AT$3,'CFR - XML import'!$A182)),0,VALUE(MID('CFR - XML import'!$A182,SEARCH(\">\",'CFR - XML import'!$A182,1)+1,SEARCH(\"/\",'CFR - XML import'!$A182,1)-SEARCH(\">\",'CFR - XML import'!$A182,1)-2)))","v":0},{"$f":"IF(ISERROR(FIND(AU$3,'CFR - XML import'!$A182)),0,VALUE(MID('CFR - XML import'!$A182,SEARCH(\">\",'CFR - XML import'!$A182,1)+1,SEARCH(\"/\",'CFR - XML import'!$A182,1)-SEARCH(\">\",'CFR - XML import'!$A182,1)-2)))","v":0},{"$f":"IF(ISERROR(FIND(AV$3,'CFR - XML import'!$A182)),0,VALUE(MID('CFR - XML import'!$A182,SEARCH(\">\",'CFR - XML import'!$A182,1)+1,SEARCH(\"/\",'CFR - XML import'!$A182,1)-SEARCH(\">\",'CFR - XML import'!$A182,1)-2)))","v":0},{"$f":"IF(ISERROR(FIND(AW$3,'CFR - XML import'!$A182)),0,VALUE(MID('CFR - XML import'!$A182,SEARCH(\">\",'CFR - XML import'!$A182,1)+1,SEARCH(\"/\",'CFR - XML import'!$A182,1)-SEARCH(\">\",'CFR - XML import'!$A182,1)-2)))","v":0},{"$f":"IF(ISERROR(FIND(AX$3,'CFR - XML import'!$A182)),0,VALUE(MID('CFR - XML import'!$A182,SEARCH(\">\",'CFR - XML import'!$A182,1)+1,SEARCH(\"/\",'CFR - XML import'!$A182,1)-SEARCH(\">\",'CFR - XML import'!$A182,1)-2)))","v":0},{"$f":"IF(ISERROR(FIND(AY$3,'CFR - XML import'!$A182)),0,VALUE(MID('CFR - XML import'!$A182,SEARCH(\">\",'CFR - XML import'!$A182,1)+1,SEARCH(\"/\",'CFR - XML import'!$A182,1)-SEARCH(\">\",'CFR - XML import'!$A182,1)-2)))","v":0},{"$f":"IF(ISERROR(FIND(AZ$3,'CFR - XML import'!$A182)),0,VALUE(MID('CFR - XML import'!$A182,SEARCH(\">\",'CFR - XML import'!$A182,1)+1,SEARCH(\"/\",'CFR - XML import'!$A182,1)-SEARCH(\">\",'CFR - XML import'!$A182,1)-2)))","v":0},{"$f":"IF(ISERROR(FIND(BA$3,'CFR - XML import'!$A182)),0,VALUE(MID('CFR - XML import'!$A182,SEARCH(\">\",'CFR - XML import'!$A182,1)+1,SEARCH(\"/\",'CFR - XML import'!$A182,1)-SEARCH(\">\",'CFR - XML import'!$A182,1)-2)))","v":0},{"$f":"IF(ISERROR(FIND(BB$3,'CFR - XML import'!$A182)),0,VALUE(MID('CFR - XML import'!$A182,SEARCH(\">\",'CFR - XML import'!$A182,1)+1,SEARCH(\"/\",'CFR - XML import'!$A182,1)-SEARCH(\">\",'CFR - XML import'!$A182,1)-2)))","v":0},{"$f":"IF(ISERROR(FIND(BC$3,'CFR - XML import'!$A182)),0,VALUE(MID('CFR - XML import'!$A182,SEARCH(\">\",'CFR - XML import'!$A182,1)+1,SEARCH(\"/\",'CFR - XML import'!$A182,1)-SEARCH(\">\",'CFR - XML import'!$A182,1)-2)))","v":0},{"$f":"IF(ISERROR(FIND(BD$3,'CFR - XML import'!$A182)),0,VALUE(MID('CFR - XML import'!$A182,SEARCH(\">\",'CFR - XML import'!$A182,1)+1,SEARCH(\"/\",'CFR - XML import'!$A182,1)-SEARCH(\">\",'CFR - XML import'!$A182,1)-2)))","v":0},{"$f":"IF(ISERROR(FIND(BE$3,'CFR - XML import'!$A182)),0,VALUE(MID('CFR - XML import'!$A182,SEARCH(\">\",'CFR - XML import'!$A182,1)+1,SEARCH(\"/\",'CFR - XML import'!$A182,1)-SEARCH(\">\",'CFR - XML import'!$A182,1)-2)))","v":0},{"$f":"IF(ISERROR(FIND(BF$3,'CFR - XML import'!$A182)),0,VALUE(MID('CFR - XML import'!$A182,SEARCH(\">\",'CFR - XML import'!$A182,1)+1,SEARCH(\"/\",'CFR - XML import'!$A182,1)-SEARCH(\">\",'CFR - XML import'!$A182,1)-2)))","v":0},{"$f":"IF(ISERROR(FIND(BG$3,'CFR - XML import'!$A182)),0,VALUE(MID('CFR - XML import'!$A182,SEARCH(\">\",'CFR - XML import'!$A182,1)+1,SEARCH(\"/\",'CFR - XML import'!$A182,1)-SEARCH(\">\",'CFR - XML import'!$A182,1)-2)))","v":0},{"$f":"IF(ISERROR(FIND(BH$3,'CFR - XML import'!$A182)),0,VALUE(MID('CFR - XML import'!$A182,SEARCH(\">\",'CFR - XML import'!$A182,1)+1,SEARCH(\"/\",'CFR - XML import'!$A182,1)-SEARCH(\">\",'CFR - XML import'!$A182,1)-2)))","v":0},{"$f":"IF(ISERROR(FIND(BI$3,'CFR - XML import'!$A182)),0,VALUE(MID('CFR - XML import'!$A182,SEARCH(\">\",'CFR - XML import'!$A182,1)+1,SEARCH(\"/\",'CFR - XML import'!$A182,1)-SEARCH(\">\",'CFR - XML import'!$A182,1)-2)))","v":0},{"$f":"IF(ISERROR(FIND(BJ$3,'CFR - XML import'!$A182)),0,VALUE(MID('CFR - XML import'!$A182,SEARCH(\">\",'CFR - XML import'!$A182,1)+1,SEARCH(\"/\",'CFR - XML import'!$A182,1)-SEARCH(\">\",'CFR - XML import'!$A182,1)-2)))","v":0},{"$f":"IF(ISERROR(FIND(BK$3,'CFR - XML import'!$A182)),0,VALUE(MID('CFR - XML import'!$A182,SEARCH(\">\",'CFR - XML import'!$A182,1)+1,SEARCH(\"/\",'CFR - XML import'!$A182,1)-SEARCH(\">\",'CFR - XML import'!$A182,1)-2)))","v":0},{"$f":"IF(ISERROR(FIND(BL$3,'CFR - XML import'!$A182)),0,VALUE(MID('CFR - XML import'!$A182,SEARCH(\">\",'CFR - XML import'!$A182,1)+1,SEARCH(\"/\",'CFR - XML import'!$A182,1)-SEARCH(\">\",'CFR - XML import'!$A182,1)-2)))","v":0},{"$f":"IF(ISERROR(FIND(BM$3,'CFR - XML import'!$A182)),0,VALUE(MID('CFR - XML import'!$A182,SEARCH(\">\",'CFR - XML import'!$A182,1)+1,SEARCH(\"/\",'CFR - XML import'!$A182,1)-SEARCH(\">\",'CFR - XML import'!$A182,1)-2)))","v":0},{"$f":"IF(ISERROR(FIND(BN$3,'CFR - XML import'!$A182)),0,VALUE(MID('CFR - XML import'!$A182,SEARCH(\">\",'CFR - XML import'!$A182,1)+1,SEARCH(\"/\",'CFR - XML import'!$A182,1)-SEARCH(\">\",'CFR - XML import'!$A182,1)-2)))","v":0},{"$f":"IF(ISERROR(FIND(BO$3,'CFR - XML import'!$A182)),0,VALUE(MID('CFR - XML import'!$A182,SEARCH(\">\",'CFR - XML import'!$A182,1)+1,SEARCH(\"/\",'CFR - XML import'!$A182,1)-SEARCH(\">\",'CFR - XML import'!$A182,1)-2)))","v":0},{"$f":"IF(ISERROR(FIND(BP$3,'CFR - XML import'!$A182)),0,VALUE(MID('CFR - XML import'!$A182,SEARCH(\">\",'CFR - XML import'!$A182,1)+1,SEARCH(\"/\",'CFR - XML import'!$A182,1)-SEARCH(\">\",'CFR - XML import'!$A182,1)-2)))","v":0},{"$f":"IF(ISERROR(FIND(BQ$3,'CFR - XML import'!$A182)),0,VALUE(MID('CFR - XML import'!$A182,SEARCH(\">\",'CFR - XML import'!$A182,1)+1,SEARCH(\"/\",'CFR - XML import'!$A182,1)-SEARCH(\">\",'CFR - XML import'!$A182,1)-2)))","v":0},{"$f":"IF(ISERROR(FIND(BR$3,'CFR - XML import'!$A182)),0,VALUE(MID('CFR - XML import'!$A182,SEARCH(\">\",'CFR - XML import'!$A182,1)+1,SEARCH(\"/\",'CFR - XML import'!$A182,1)-SEARCH(\">\",'CFR - XML import'!$A182,1)-2)))","v":0},{"$f":"IF(ISERROR(FIND(BS$3,'CFR - XML import'!$A182)),0,VALUE(MID('CFR - XML import'!$A182,SEARCH(\">\",'CFR - XML import'!$A182,1)+1,SEARCH(\"/\",'CFR - XML import'!$A182,1)-SEARCH(\">\",'CFR - XML import'!$A182,1)-2)))","v":0},{"$f":"IF(ISERROR(FIND(BT$3,'CFR - XML import'!$A182)),0,VALUE(MID('CFR - XML import'!$A182,SEARCH(\">\",'CFR - XML import'!$A182,1)+1,SEARCH(\"/\",'CFR - XML import'!$A182,1)-SEARCH(\">\",'CFR - XML import'!$A182,1)-2)))","v":0},{"$f":"IF(ISERROR(FIND(BU$3,'CFR - XML import'!$A182)),0,VALUE(MID('CFR - XML import'!$A182,SEARCH(\">\",'CFR - XML import'!$A182,1)+1,SEARCH(\"/\",'CFR - XML import'!$A182,1)-SEARCH(\">\",'CFR - XML import'!$A182,1)-2)))","v":0},{"$f":"IF(ISERROR(FIND(BV$3,'CFR - XML import'!$A182)),0,VALUE(MID('CFR - XML import'!$A182,SEARCH(\">\",'CFR - XML import'!$A182,1)+1,SEARCH(\"/\",'CFR - XML import'!$A182,1)-SEARCH(\">\",'CFR - XML import'!$A182,1)-2)))","v":0},{"$f":"IF(ISERROR(FIND(BW$3,'CFR - XML import'!$A182)),0,VALUE(MID('CFR - XML import'!$A182,SEARCH(\">\",'CFR - XML import'!$A182,1)+1,SEARCH(\"/\",'CFR - XML import'!$A182,1)-SEARCH(\">\",'CFR - XML import'!$A182,1)-2)))","v":0},{"$f":"IF(ISERROR(FIND(BX$3,'CFR - XML import'!$A182)),0,VALUE(MID('CFR - XML import'!$A182,SEARCH(\">\",'CFR - XML import'!$A182,1)+1,SEARCH(\"/\",'CFR - XML import'!$A182,1)-SEARCH(\">\",'CFR - XML import'!$A182,1)-2)))","v":0},{"$f":"IF(ISERROR(FIND(BY$3,'CFR - XML import'!$A182)),0,VALUE(MID('CFR - XML import'!$A182,SEARCH(\">\",'CFR - XML import'!$A182,1)+1,SEARCH(\"/\",'CFR - XML import'!$A182,1)-SEARCH(\">\",'CFR - XML import'!$A182,1)-2)))","v":0},{"$f":"IF(ISERROR(FIND(BZ$3,'CFR - XML import'!$A182)),0,VALUE(MID('CFR - XML import'!$A182,SEARCH(\">\",'CFR - XML import'!$A182,1)+1,SEARCH(\"/\",'CFR - XML import'!$A182,1)-SEARCH(\">\",'CFR - XML import'!$A182,1)-2)))","v":0},null,null,null,null,null,null,{"$f":"IF(ISERROR(IF(MID('CFR - XML import'!$A182,LEN($CF$4)+1,LEN('CFR - XML import'!$A182)-(2*LEN($CF$4)+1))=\"RMMS\",1,IF(MID('CFR - XML import'!$A182,LEN(\"    <InputSystem>\")+1,LEN('CFR - XML import'!$A182)-(LEN(\"    <InputSystem>\")+LEN($CF$4)+1))=\"SIMS\",2,0))),0,IF(MID('CFR - XML import'!$A182,LEN($CF$4)+1,LEN('CFR - XML import'!$A182)-(2*LEN($CF$4)+1))=\"RMMS\",1,IF(MID('CFR - XML import'!$A182,LEN(\"    <InputSystem>\")+1,LEN('CFR - XML import'!$A182)-(LEN(\"    <InputSystem>\")+LEN($CF$4)+1))=\"SIMS\",2,0)))","v":0},{"$f":"IF(ISERROR(FIND(CH$3,'CFR - XML import'!$A182)),0,MID('CFR - XML import'!$A182,SEARCH(\">\",'CFR - XML import'!$A182,1)+1,SEARCH(\"/\",'CFR - XML import'!$A182,1)-SEARCH(\">\",'CFR - XML import'!$A182,1)-2))","v":0},{"$f":"IF(ISERROR(FIND(CI$3,'CFR - XML import'!$A182)),0,MID('CFR - XML import'!$A182,SEARCH(\">\",'CFR - XML import'!$A182,1)+1,SEARCH(\"/\",'CFR - XML import'!$A182,1)-SEARCH(\">\",'CFR - XML import'!$A182,1)-2))","v":0},{"$f":"IF(ISERROR(FIND(CJ$3,'CFR - XML import'!$A182)),0,MID('CFR - XML import'!$A182,SEARCH(\">\",'CFR - XML import'!$A182,1)+1,SEARCH(\"/\",'CFR - XML import'!$A182,1)-SEARCH(\">\",'CFR - XML import'!$A182,1)-2))","v":0},{"$f":"IF(ISERROR(FIND(CK$3,'CFR - XML import'!$A182)),0,MID('CFR - XML import'!$A182,SEARCH(\">\",'CFR - XML import'!$A182,1)+1,SEARCH(\"/\",'CFR - XML import'!$A182,1)-SEARCH(\">\",'CFR - XML import'!$A182,1)-2))","v":0},{"$f":"IF(ISERROR(FIND(CL$3,'CFR - XML import'!$A182)),0,MID('CFR - XML import'!$A182,SEARCH(\">\",'CFR - XML import'!$A182,1)+1,SEARCH(\"/\",'CFR - XML import'!$A182,1)-SEARCH(\">\",'CFR - XML import'!$A182,1)-2))","v":0}]
[{"$f":"IF(AND('CFR - XML import'!A183<>\"\",LEFT('CFR - XML import'!A183,1)<>\"<\",LEFT('CFR - XML import'!A183,3)<>\"  <\",LEFT('CFR - XML import'!A183,5)<>\"    <\",LEFT('CFR - XML import'!A183,7)<>\"      <\",LEFT('CFR - XML import'!A183,9)<>\"        <\",$B$1=\"SIMS\"),'CFR - XML import'!A183,IF(AND(LEFT('CFR - XML import'!A183,9)=\"<Details>\",$B$1=\"RM\"),'CFR - XML import'!A183,\"\"))","v":""},{"$f":"IF(ISERROR(FIND(B$3,'CFR - XML import'!$A183)),0,VALUE(MID('CFR - XML import'!$A183,SEARCH(\">\",'CFR - XML import'!$A183,1)+1,SEARCH(\"/\",'CFR - XML import'!$A183,1)-SEARCH(\">\",'CFR - XML import'!$A183,1)-2)))","v":0},null,{"$f":"IF(ISERROR(FIND(D$3,'CFR - XML import'!$A183)),0,MID('CFR - XML import'!$A183,SEARCH(\">\",'CFR - XML import'!$A183,1)+1,SEARCH(\"/\",'CFR - XML import'!$A183,1)-SEARCH(\">\",'CFR - XML import'!$A183,1)-2))","v":0},{"$f":"IF(ISERROR(FIND(E$3,'CFR - XML import'!$A183)),0,MID('CFR - XML import'!$A183,SEARCH(\">\",'CFR - XML import'!$A183,1)+1,SEARCH(\"/\",'CFR - XML import'!$A183,1)-SEARCH(\">\",'CFR - XML import'!$A183,1)-2))","v":0},{"$f":"IF($B$1=\"SIMS\",IF(ISERROR(FIND(F$3,'CFR - XML import'!$A183)),0,VALUE(MID('CFR - XML import'!$A183,15,10))),IF(ISERROR(FIND(F$3,'CFR - XML import'!$A183)),0,VALUE(MID('CFR - XML import'!$A183,11,10))))","v":"00:00:00"},{"$f":"IF(ISERROR(FIND(G$3,'CFR - XML import'!$A183)),0,VALUE(MID('CFR - XML import'!$A183,SEARCH(\">\",'CFR - XML import'!$A183,1)+1,SEARCH(\"/\",'CFR - XML import'!$A183,1)-SEARCH(\">\",'CFR - XML import'!$A183,1)-2)))","v":0},{"$f":"IF(ISERROR(FIND(H$3,'CFR - XML import'!$A183)),0,VALUE(MID('CFR - XML import'!$A183,SEARCH(\">\",'CFR - XML import'!$A183,1)+1,SEARCH(\"/\",'CFR - XML import'!$A183,1)-SEARCH(\">\",'CFR - XML import'!$A183,1)-2)))","v":0},{"$f":"IF(ISERROR(FIND(I$3,'CFR - XML import'!$A183)),0,VALUE(MID('CFR - XML import'!$A183,SEARCH(\">\",'CFR - XML import'!$A183,1)+1,SEARCH(\"/\",'CFR - XML import'!$A183,1)-SEARCH(\">\",'CFR - XML import'!$A183,1)-2)))","v":0},{"$f":"IF(ISERROR(FIND(J$3,'CFR - XML import'!$A183)),0,VALUE(MID('CFR - XML import'!$A183,SEARCH(\">\",'CFR - XML import'!$A183,1)+1,SEARCH(\"/\",'CFR - XML import'!$A183,1)-SEARCH(\">\",'CFR - XML import'!$A183,1)-2)))","v":0},{"$f":"IF(ISERROR(FIND(K$3,'CFR - XML import'!$A183)),0,VALUE(MID('CFR - XML import'!$A183,SEARCH(\">\",'CFR - XML import'!$A183,1)+1,SEARCH(\"/\",'CFR - XML import'!$A183,1)-SEARCH(\">\",'CFR - XML import'!$A183,1)-2)))","v":0},{"$f":"IF(ISERROR(FIND(L$3,'CFR - XML import'!$A183)),0,VALUE(MID('CFR - XML import'!$A183,SEARCH(\">\",'CFR - XML import'!$A183,1)+1,SEARCH(\"/\",'CFR - XML import'!$A183,1)-SEARCH(\">\",'CFR - XML import'!$A183,1)-2)))","v":0},{"$f":"IF(ISERROR(FIND(M$3,'CFR - XML import'!$A183)),0,VALUE(MID('CFR - XML import'!$A183,SEARCH(\">\",'CFR - XML import'!$A183,1)+1,SEARCH(\"/\",'CFR - XML import'!$A183,1)-SEARCH(\">\",'CFR - XML import'!$A183,1)-2)))","v":0},{"$f":"IF(ISERROR(FIND(N$3,'CFR - XML import'!$A183)),0,VALUE(MID('CFR - XML import'!$A183,SEARCH(\">\",'CFR - XML import'!$A183,1)+1,SEARCH(\"/\",'CFR - XML import'!$A183,1)-SEARCH(\">\",'CFR - XML import'!$A183,1)-2)))","v":0},{"$f":"IF(ISERROR(FIND(O$3,'CFR - XML import'!$A183)),0,VALUE(MID('CFR - XML import'!$A183,SEARCH(\">\",'CFR - XML import'!$A183,1)+1,SEARCH(\"/\",'CFR - XML import'!$A183,1)-SEARCH(\">\",'CFR - XML import'!$A183,1)-2)))","v":0},{"$f":"IF(ISERROR(FIND(P$3,'CFR - XML import'!$A183)),0,VALUE(MID('CFR - XML import'!$A183,SEARCH(\">\",'CFR - XML import'!$A183,1)+1,SEARCH(\"/\",'CFR - XML import'!$A183,1)-SEARCH(\">\",'CFR - XML import'!$A183,1)-2)))","v":0},{"$f":"IF(ISERROR(FIND(Q$3,'CFR - XML import'!$A183)),0,VALUE(MID('CFR - XML import'!$A183,SEARCH(\">\",'CFR - XML import'!$A183,1)+1,SEARCH(\"/\",'CFR - XML import'!$A183,1)-SEARCH(\">\",'CFR - XML import'!$A183,1)-2)))","v":0},{"$f":"IF(ISERROR(FIND(R$3,'CFR - XML import'!$A183)),0,VALUE(MID('CFR - XML import'!$A183,SEARCH(\">\",'CFR - XML import'!$A183,1)+1,SEARCH(\"/\",'CFR - XML import'!$A183,1)-SEARCH(\">\",'CFR - XML import'!$A183,1)-2)))","v":0},{"$f":"IF(ISERROR(FIND(S$3,'CFR - XML import'!$A183)),0,VALUE(MID('CFR - XML import'!$A183,SEARCH(\">\",'CFR - XML import'!$A183,1)+1,SEARCH(\"/\",'CFR - XML import'!$A183,1)-SEARCH(\">\",'CFR - XML import'!$A183,1)-2)))","v":0},{"$f":"IF(ISERROR(FIND(T$3,'CFR - XML import'!$A183)),0,VALUE(MID('CFR - XML import'!$A183,SEARCH(\">\",'CFR - XML import'!$A183,1)+1,SEARCH(\"/\",'CFR - XML import'!$A183,1)-SEARCH(\">\",'CFR - XML import'!$A183,1)-2)))","v":0},{"$f":"IF(ISERROR(FIND(U$3,'CFR - XML import'!$A183)),0,VALUE(MID('CFR - XML import'!$A183,SEARCH(\">\",'CFR - XML import'!$A183,1)+1,SEARCH(\"/\",'CFR - XML import'!$A183,1)-SEARCH(\">\",'CFR - XML import'!$A183,1)-2)))","v":0},{"$f":"IF(ISERROR(FIND(V$3,'CFR - XML import'!$A183)),0,VALUE(MID('CFR - XML import'!$A183,SEARCH(\">\",'CFR - XML import'!$A183,1)+1,SEARCH(\"/\",'CFR - XML import'!$A183,1)-SEARCH(\">\",'CFR - XML import'!$A183,1)-2)))","v":0},{"$f":"IF(ISERROR(FIND(W$3,'CFR - XML import'!$A183)),0,VALUE(MID('CFR - XML import'!$A183,SEARCH(\">\",'CFR - XML import'!$A183,1)+1,SEARCH(\"/\",'CFR - XML import'!$A183,1)-SEARCH(\">\",'CFR - XML import'!$A183,1)-2)))","v":0},null,{"$f":"IF(ISERROR(FIND(Y$3,'CFR - XML import'!$A183)),0,VALUE(MID('CFR - XML import'!$A183,SEARCH(\">\",'CFR - XML import'!$A183,1)+1,SEARCH(\"/\",'CFR - XML import'!$A183,1)-SEARCH(\">\",'CFR - XML import'!$A183,1)-2)))","v":0},{"$f":"IF(ISERROR(FIND(Z$3,'CFR - XML import'!$A183)),0,VALUE(MID('CFR - XML import'!$A183,SEARCH(\">\",'CFR - XML import'!$A183,1)+1,SEARCH(\"/\",'CFR - XML import'!$A183,1)-SEARCH(\">\",'CFR - XML import'!$A183,1)-2)))","v":0},{"$f":"IF(ISERROR(FIND(AA$3,'CFR - XML import'!$A183)),0,VALUE(MID('CFR - XML import'!$A183,SEARCH(\">\",'CFR - XML import'!$A183,1)+1,SEARCH(\"/\",'CFR - XML import'!$A183,1)-SEARCH(\">\",'CFR - XML import'!$A183,1)-2)))","v":0},{"$f":"IF(ISERROR(FIND(AB$3,'CFR - XML import'!$A183)),0,VALUE(MID('CFR - XML import'!$A183,SEARCH(\">\",'CFR - XML import'!$A183,1)+1,SEARCH(\"/\",'CFR - XML import'!$A183,1)-SEARCH(\">\",'CFR - XML import'!$A183,1)-2)))","v":0},{"$f":"IF(ISERROR(FIND(AC$3,'CFR - XML import'!$A183)),0,VALUE(MID('CFR - XML import'!$A183,SEARCH(\">\",'CFR - XML import'!$A183,1)+1,SEARCH(\"/\",'CFR - XML import'!$A183,1)-SEARCH(\">\",'CFR - XML import'!$A183,1)-2)))","v":0},{"$f":"IF(ISERROR(FIND(AD$3,'CFR - XML import'!$A183)),0,VALUE(MID('CFR - XML import'!$A183,SEARCH(\">\",'CFR - XML import'!$A183,1)+1,SEARCH(\"/\",'CFR - XML import'!$A183,1)-SEARCH(\">\",'CFR - XML import'!$A183,1)-2)))","v":0},{"$f":"IF(ISERROR(FIND(AE$3,'CFR - XML import'!$A183)),0,VALUE(MID('CFR - XML import'!$A183,SEARCH(\">\",'CFR - XML import'!$A183,1)+1,SEARCH(\"/\",'CFR - XML import'!$A183,1)-SEARCH(\">\",'CFR - XML import'!$A183,1)-2)))","v":0},{"$f":"IF(ISERROR(FIND(AF$3,'CFR - XML import'!$A183)),0,VALUE(MID('CFR - XML import'!$A183,SEARCH(\">\",'CFR - XML import'!$A183,1)+1,SEARCH(\"/\",'CFR - XML import'!$A183,1)-SEARCH(\">\",'CFR - XML import'!$A183,1)-2)))","v":0},{"$f":"IF(ISERROR(FIND(AG$3,'CFR - XML import'!$A183)),0,VALUE(MID('CFR - XML import'!$A183,SEARCH(\">\",'CFR - XML import'!$A183,1)+1,SEARCH(\"/\",'CFR - XML import'!$A183,1)-SEARCH(\">\",'CFR - XML import'!$A183,1)-2)))","v":0},{"$f":"IF(ISERROR(FIND(AH$3,'CFR - XML import'!$A183)),0,VALUE(MID('CFR - XML import'!$A183,SEARCH(\">\",'CFR - XML import'!$A183,1)+1,SEARCH(\"/\",'CFR - XML import'!$A183,1)-SEARCH(\">\",'CFR - XML import'!$A183,1)-2)))","v":0},{"$f":"IF(ISERROR(FIND(AI$3,'CFR - XML import'!$A183)),0,VALUE(MID('CFR - XML import'!$A183,SEARCH(\">\",'CFR - XML import'!$A183,1)+1,SEARCH(\"/\",'CFR - XML import'!$A183,1)-SEARCH(\">\",'CFR - XML import'!$A183,1)-2)))","v":0},{"$f":"IF(ISERROR(FIND(AJ$3,'CFR - XML import'!$A183)),0,VALUE(MID('CFR - XML import'!$A183,SEARCH(\">\",'CFR - XML import'!$A183,1)+1,SEARCH(\"/\",'CFR - XML import'!$A183,1)-SEARCH(\">\",'CFR - XML import'!$A183,1)-2)))","v":0},{"$f":"IF(ISERROR(FIND(AK$3,'CFR - XML import'!$A183)),0,VALUE(MID('CFR - XML import'!$A183,SEARCH(\">\",'CFR - XML import'!$A183,1)+1,SEARCH(\"/\",'CFR - XML import'!$A183,1)-SEARCH(\">\",'CFR - XML import'!$A183,1)-2)))","v":0},{"$f":"IF(ISERROR(FIND(AL$3,'CFR - XML import'!$A183)),0,VALUE(MID('CFR - XML import'!$A183,SEARCH(\">\",'CFR - XML import'!$A183,1)+1,SEARCH(\"/\",'CFR - XML import'!$A183,1)-SEARCH(\">\",'CFR - XML import'!$A183,1)-2)))","v":0},{"$f":"IF(ISERROR(FIND(AM$3,'CFR - XML import'!$A183)),0,VALUE(MID('CFR - XML import'!$A183,SEARCH(\">\",'CFR - XML import'!$A183,1)+1,SEARCH(\"/\",'CFR - XML import'!$A183,1)-SEARCH(\">\",'CFR - XML import'!$A183,1)-2)))","v":0},{"$f":"IF(ISERROR(FIND(AN$3,'CFR - XML import'!$A183)),0,VALUE(MID('CFR - XML import'!$A183,SEARCH(\">\",'CFR - XML import'!$A183,1)+1,SEARCH(\"/\",'CFR - XML import'!$A183,1)-SEARCH(\">\",'CFR - XML import'!$A183,1)-2)))","v":0},{"$f":"IF(ISERROR(FIND(AO$3,'CFR - XML import'!$A183)),0,VALUE(MID('CFR - XML import'!$A183,SEARCH(\">\",'CFR - XML import'!$A183,1)+1,SEARCH(\"/\",'CFR - XML import'!$A183,1)-SEARCH(\">\",'CFR - XML import'!$A183,1)-2)))","v":0},{"$f":"IF(ISERROR(FIND(AP$3,'CFR - XML import'!$A183)),0,VALUE(MID('CFR - XML import'!$A183,SEARCH(\">\",'CFR - XML import'!$A183,1)+1,SEARCH(\"/\",'CFR - XML import'!$A183,1)-SEARCH(\">\",'CFR - XML import'!$A183,1)-2)))","v":0},{"$f":"IF(ISERROR(FIND(AQ$3,'CFR - XML import'!$A183)),0,VALUE(MID('CFR - XML import'!$A183,SEARCH(\">\",'CFR - XML import'!$A183,1)+1,SEARCH(\"/\",'CFR - XML import'!$A183,1)-SEARCH(\">\",'CFR - XML import'!$A183,1)-2)))","v":0},{"$f":"IF(ISERROR(FIND(AR$3,'CFR - XML import'!$A183)),0,VALUE(MID('CFR - XML import'!$A183,SEARCH(\">\",'CFR - XML import'!$A183,1)+1,SEARCH(\"/\",'CFR - XML import'!$A183,1)-SEARCH(\">\",'CFR - XML import'!$A183,1)-2)))","v":0},{"$f":"IF(ISERROR(FIND(AS$3,'CFR - XML import'!$A183)),0,VALUE(MID('CFR - XML import'!$A183,SEARCH(\">\",'CFR - XML import'!$A183,1)+1,SEARCH(\"/\",'CFR - XML import'!$A183,1)-SEARCH(\">\",'CFR - XML import'!$A183,1)-2)))","v":0},{"$f":"IF(ISERROR(FIND(AT$3,'CFR - XML import'!$A183)),0,VALUE(MID('CFR - XML import'!$A183,SEARCH(\">\",'CFR - XML import'!$A183,1)+1,SEARCH(\"/\",'CFR - XML import'!$A183,1)-SEARCH(\">\",'CFR - XML import'!$A183,1)-2)))","v":0},{"$f":"IF(ISERROR(FIND(AU$3,'CFR - XML import'!$A183)),0,VALUE(MID('CFR - XML import'!$A183,SEARCH(\">\",'CFR - XML import'!$A183,1)+1,SEARCH(\"/\",'CFR - XML import'!$A183,1)-SEARCH(\">\",'CFR - XML import'!$A183,1)-2)))","v":0},{"$f":"IF(ISERROR(FIND(AV$3,'CFR - XML import'!$A183)),0,VALUE(MID('CFR - XML import'!$A183,SEARCH(\">\",'CFR - XML import'!$A183,1)+1,SEARCH(\"/\",'CFR - XML import'!$A183,1)-SEARCH(\">\",'CFR - XML import'!$A183,1)-2)))","v":0},{"$f":"IF(ISERROR(FIND(AW$3,'CFR - XML import'!$A183)),0,VALUE(MID('CFR - XML import'!$A183,SEARCH(\">\",'CFR - XML import'!$A183,1)+1,SEARCH(\"/\",'CFR - XML import'!$A183,1)-SEARCH(\">\",'CFR - XML import'!$A183,1)-2)))","v":0},{"$f":"IF(ISERROR(FIND(AX$3,'CFR - XML import'!$A183)),0,VALUE(MID('CFR - XML import'!$A183,SEARCH(\">\",'CFR - XML import'!$A183,1)+1,SEARCH(\"/\",'CFR - XML import'!$A183,1)-SEARCH(\">\",'CFR - XML import'!$A183,1)-2)))","v":0},{"$f":"IF(ISERROR(FIND(AY$3,'CFR - XML import'!$A183)),0,VALUE(MID('CFR - XML import'!$A183,SEARCH(\">\",'CFR - XML import'!$A183,1)+1,SEARCH(\"/\",'CFR - XML import'!$A183,1)-SEARCH(\">\",'CFR - XML import'!$A183,1)-2)))","v":0},{"$f":"IF(ISERROR(FIND(AZ$3,'CFR - XML import'!$A183)),0,VALUE(MID('CFR - XML import'!$A183,SEARCH(\">\",'CFR - XML import'!$A183,1)+1,SEARCH(\"/\",'CFR - XML import'!$A183,1)-SEARCH(\">\",'CFR - XML import'!$A183,1)-2)))","v":0},{"$f":"IF(ISERROR(FIND(BA$3,'CFR - XML import'!$A183)),0,VALUE(MID('CFR - XML import'!$A183,SEARCH(\">\",'CFR - XML import'!$A183,1)+1,SEARCH(\"/\",'CFR - XML import'!$A183,1)-SEARCH(\">\",'CFR - XML import'!$A183,1)-2)))","v":0},{"$f":"IF(ISERROR(FIND(BB$3,'CFR - XML import'!$A183)),0,VALUE(MID('CFR - XML import'!$A183,SEARCH(\">\",'CFR - XML import'!$A183,1)+1,SEARCH(\"/\",'CFR - XML import'!$A183,1)-SEARCH(\">\",'CFR - XML import'!$A183,1)-2)))","v":0},{"$f":"IF(ISERROR(FIND(BC$3,'CFR - XML import'!$A183)),0,VALUE(MID('CFR - XML import'!$A183,SEARCH(\">\",'CFR - XML import'!$A183,1)+1,SEARCH(\"/\",'CFR - XML import'!$A183,1)-SEARCH(\">\",'CFR - XML import'!$A183,1)-2)))","v":0},{"$f":"IF(ISERROR(FIND(BD$3,'CFR - XML import'!$A183)),0,VALUE(MID('CFR - XML import'!$A183,SEARCH(\">\",'CFR - XML import'!$A183,1)+1,SEARCH(\"/\",'CFR - XML import'!$A183,1)-SEARCH(\">\",'CFR - XML import'!$A183,1)-2)))","v":0},{"$f":"IF(ISERROR(FIND(BE$3,'CFR - XML import'!$A183)),0,VALUE(MID('CFR - XML import'!$A183,SEARCH(\">\",'CFR - XML import'!$A183,1)+1,SEARCH(\"/\",'CFR - XML import'!$A183,1)-SEARCH(\">\",'CFR - XML import'!$A183,1)-2)))","v":0},{"$f":"IF(ISERROR(FIND(BF$3,'CFR - XML import'!$A183)),0,VALUE(MID('CFR - XML import'!$A183,SEARCH(\">\",'CFR - XML import'!$A183,1)+1,SEARCH(\"/\",'CFR - XML import'!$A183,1)-SEARCH(\">\",'CFR - XML import'!$A183,1)-2)))","v":0},{"$f":"IF(ISERROR(FIND(BG$3,'CFR - XML import'!$A183)),0,VALUE(MID('CFR - XML import'!$A183,SEARCH(\">\",'CFR - XML import'!$A183,1)+1,SEARCH(\"/\",'CFR - XML import'!$A183,1)-SEARCH(\">\",'CFR - XML import'!$A183,1)-2)))","v":0},{"$f":"IF(ISERROR(FIND(BH$3,'CFR - XML import'!$A183)),0,VALUE(MID('CFR - XML import'!$A183,SEARCH(\">\",'CFR - XML import'!$A183,1)+1,SEARCH(\"/\",'CFR - XML import'!$A183,1)-SEARCH(\">\",'CFR - XML import'!$A183,1)-2)))","v":0},{"$f":"IF(ISERROR(FIND(BI$3,'CFR - XML import'!$A183)),0,VALUE(MID('CFR - XML import'!$A183,SEARCH(\">\",'CFR - XML import'!$A183,1)+1,SEARCH(\"/\",'CFR - XML import'!$A183,1)-SEARCH(\">\",'CFR - XML import'!$A183,1)-2)))","v":0},{"$f":"IF(ISERROR(FIND(BJ$3,'CFR - XML import'!$A183)),0,VALUE(MID('CFR - XML import'!$A183,SEARCH(\">\",'CFR - XML import'!$A183,1)+1,SEARCH(\"/\",'CFR - XML import'!$A183,1)-SEARCH(\">\",'CFR - XML import'!$A183,1)-2)))","v":0},{"$f":"IF(ISERROR(FIND(BK$3,'CFR - XML import'!$A183)),0,VALUE(MID('CFR - XML import'!$A183,SEARCH(\">\",'CFR - XML import'!$A183,1)+1,SEARCH(\"/\",'CFR - XML import'!$A183,1)-SEARCH(\">\",'CFR - XML import'!$A183,1)-2)))","v":0},{"$f":"IF(ISERROR(FIND(BL$3,'CFR - XML import'!$A183)),0,VALUE(MID('CFR - XML import'!$A183,SEARCH(\">\",'CFR - XML import'!$A183,1)+1,SEARCH(\"/\",'CFR - XML import'!$A183,1)-SEARCH(\">\",'CFR - XML import'!$A183,1)-2)))","v":0},{"$f":"IF(ISERROR(FIND(BM$3,'CFR - XML import'!$A183)),0,VALUE(MID('CFR - XML import'!$A183,SEARCH(\">\",'CFR - XML import'!$A183,1)+1,SEARCH(\"/\",'CFR - XML import'!$A183,1)-SEARCH(\">\",'CFR - XML import'!$A183,1)-2)))","v":0},{"$f":"IF(ISERROR(FIND(BN$3,'CFR - XML import'!$A183)),0,VALUE(MID('CFR - XML import'!$A183,SEARCH(\">\",'CFR - XML import'!$A183,1)+1,SEARCH(\"/\",'CFR - XML import'!$A183,1)-SEARCH(\">\",'CFR - XML import'!$A183,1)-2)))","v":0},{"$f":"IF(ISERROR(FIND(BO$3,'CFR - XML import'!$A183)),0,VALUE(MID('CFR - XML import'!$A183,SEARCH(\">\",'CFR - XML import'!$A183,1)+1,SEARCH(\"/\",'CFR - XML import'!$A183,1)-SEARCH(\">\",'CFR - XML import'!$A183,1)-2)))","v":0},{"$f":"IF(ISERROR(FIND(BP$3,'CFR - XML import'!$A183)),0,VALUE(MID('CFR - XML import'!$A183,SEARCH(\">\",'CFR - XML import'!$A183,1)+1,SEARCH(\"/\",'CFR - XML import'!$A183,1)-SEARCH(\">\",'CFR - XML import'!$A183,1)-2)))","v":0},{"$f":"IF(ISERROR(FIND(BQ$3,'CFR - XML import'!$A183)),0,VALUE(MID('CFR - XML import'!$A183,SEARCH(\">\",'CFR - XML import'!$A183,1)+1,SEARCH(\"/\",'CFR - XML import'!$A183,1)-SEARCH(\">\",'CFR - XML import'!$A183,1)-2)))","v":0},{"$f":"IF(ISERROR(FIND(BR$3,'CFR - XML import'!$A183)),0,VALUE(MID('CFR - XML import'!$A183,SEARCH(\">\",'CFR - XML import'!$A183,1)+1,SEARCH(\"/\",'CFR - XML import'!$A183,1)-SEARCH(\">\",'CFR - XML import'!$A183,1)-2)))","v":0},{"$f":"IF(ISERROR(FIND(BS$3,'CFR - XML import'!$A183)),0,VALUE(MID('CFR - XML import'!$A183,SEARCH(\">\",'CFR - XML import'!$A183,1)+1,SEARCH(\"/\",'CFR - XML import'!$A183,1)-SEARCH(\">\",'CFR - XML import'!$A183,1)-2)))","v":0},{"$f":"IF(ISERROR(FIND(BT$3,'CFR - XML import'!$A183)),0,VALUE(MID('CFR - XML import'!$A183,SEARCH(\">\",'CFR - XML import'!$A183,1)+1,SEARCH(\"/\",'CFR - XML import'!$A183,1)-SEARCH(\">\",'CFR - XML import'!$A183,1)-2)))","v":0},{"$f":"IF(ISERROR(FIND(BU$3,'CFR - XML import'!$A183)),0,VALUE(MID('CFR - XML import'!$A183,SEARCH(\">\",'CFR - XML import'!$A183,1)+1,SEARCH(\"/\",'CFR - XML import'!$A183,1)-SEARCH(\">\",'CFR - XML import'!$A183,1)-2)))","v":0},{"$f":"IF(ISERROR(FIND(BV$3,'CFR - XML import'!$A183)),0,VALUE(MID('CFR - XML import'!$A183,SEARCH(\">\",'CFR - XML import'!$A183,1)+1,SEARCH(\"/\",'CFR - XML import'!$A183,1)-SEARCH(\">\",'CFR - XML import'!$A183,1)-2)))","v":0},{"$f":"IF(ISERROR(FIND(BW$3,'CFR - XML import'!$A183)),0,VALUE(MID('CFR - XML import'!$A183,SEARCH(\">\",'CFR - XML import'!$A183,1)+1,SEARCH(\"/\",'CFR - XML import'!$A183,1)-SEARCH(\">\",'CFR - XML import'!$A183,1)-2)))","v":0},{"$f":"IF(ISERROR(FIND(BX$3,'CFR - XML import'!$A183)),0,VALUE(MID('CFR - XML import'!$A183,SEARCH(\">\",'CFR - XML import'!$A183,1)+1,SEARCH(\"/\",'CFR - XML import'!$A183,1)-SEARCH(\">\",'CFR - XML import'!$A183,1)-2)))","v":0},{"$f":"IF(ISERROR(FIND(BY$3,'CFR - XML import'!$A183)),0,VALUE(MID('CFR - XML import'!$A183,SEARCH(\">\",'CFR - XML import'!$A183,1)+1,SEARCH(\"/\",'CFR - XML import'!$A183,1)-SEARCH(\">\",'CFR - XML import'!$A183,1)-2)))","v":0},{"$f":"IF(ISERROR(FIND(BZ$3,'CFR - XML import'!$A183)),0,VALUE(MID('CFR - XML import'!$A183,SEARCH(\">\",'CFR - XML import'!$A183,1)+1,SEARCH(\"/\",'CFR - XML import'!$A183,1)-SEARCH(\">\",'CFR - XML import'!$A183,1)-2)))","v":0},null,null,null,null,null,null,{"$f":"IF(ISERROR(IF(MID('CFR - XML import'!$A183,LEN($CF$4)+1,LEN('CFR - XML import'!$A183)-(2*LEN($CF$4)+1))=\"RMMS\",1,IF(MID('CFR - XML import'!$A183,LEN(\"    <InputSystem>\")+1,LEN('CFR - XML import'!$A183)-(LEN(\"    <InputSystem>\")+LEN($CF$4)+1))=\"SIMS\",2,0))),0,IF(MID('CFR - XML import'!$A183,LEN($CF$4)+1,LEN('CFR - XML import'!$A183)-(2*LEN($CF$4)+1))=\"RMMS\",1,IF(MID('CFR - XML import'!$A183,LEN(\"    <InputSystem>\")+1,LEN('CFR - XML import'!$A183)-(LEN(\"    <InputSystem>\")+LEN($CF$4)+1))=\"SIMS\",2,0)))","v":0},{"$f":"IF(ISERROR(FIND(CH$3,'CFR - XML import'!$A183)),0,MID('CFR - XML import'!$A183,SEARCH(\">\",'CFR - XML import'!$A183,1)+1,SEARCH(\"/\",'CFR - XML import'!$A183,1)-SEARCH(\">\",'CFR - XML import'!$A183,1)-2))","v":0},{"$f":"IF(ISERROR(FIND(CI$3,'CFR - XML import'!$A183)),0,MID('CFR - XML import'!$A183,SEARCH(\">\",'CFR - XML import'!$A183,1)+1,SEARCH(\"/\",'CFR - XML import'!$A183,1)-SEARCH(\">\",'CFR - XML import'!$A183,1)-2))","v":0},{"$f":"IF(ISERROR(FIND(CJ$3,'CFR - XML import'!$A183)),0,MID('CFR - XML import'!$A183,SEARCH(\">\",'CFR - XML import'!$A183,1)+1,SEARCH(\"/\",'CFR - XML import'!$A183,1)-SEARCH(\">\",'CFR - XML import'!$A183,1)-2))","v":0},{"$f":"IF(ISERROR(FIND(CK$3,'CFR - XML import'!$A183)),0,MID('CFR - XML import'!$A183,SEARCH(\">\",'CFR - XML import'!$A183,1)+1,SEARCH(\"/\",'CFR - XML import'!$A183,1)-SEARCH(\">\",'CFR - XML import'!$A183,1)-2))","v":0},{"$f":"IF(ISERROR(FIND(CL$3,'CFR - XML import'!$A183)),0,MID('CFR - XML import'!$A183,SEARCH(\">\",'CFR - XML import'!$A183,1)+1,SEARCH(\"/\",'CFR - XML import'!$A183,1)-SEARCH(\">\",'CFR - XML import'!$A183,1)-2))","v":0}]
[{"$f":"IF(AND('CFR - XML import'!A184<>\"\",LEFT('CFR - XML import'!A184,1)<>\"<\",LEFT('CFR - XML import'!A184,3)<>\"  <\",LEFT('CFR - XML import'!A184,5)<>\"    <\",LEFT('CFR - XML import'!A184,7)<>\"      <\",LEFT('CFR - XML import'!A184,9)<>\"        <\",$B$1=\"SIMS\"),'CFR - XML import'!A184,IF(AND(LEFT('CFR - XML import'!A184,9)=\"<Details>\",$B$1=\"RM\"),'CFR - XML import'!A184,\"\"))","v":""},{"$f":"IF(ISERROR(FIND(B$3,'CFR - XML import'!$A184)),0,VALUE(MID('CFR - XML import'!$A184,SEARCH(\">\",'CFR - XML import'!$A184,1)+1,SEARCH(\"/\",'CFR - XML import'!$A184,1)-SEARCH(\">\",'CFR - XML import'!$A184,1)-2)))","v":0},null,{"$f":"IF(ISERROR(FIND(D$3,'CFR - XML import'!$A184)),0,MID('CFR - XML import'!$A184,SEARCH(\">\",'CFR - XML import'!$A184,1)+1,SEARCH(\"/\",'CFR - XML import'!$A184,1)-SEARCH(\">\",'CFR - XML import'!$A184,1)-2))","v":0},{"$f":"IF(ISERROR(FIND(E$3,'CFR - XML import'!$A184)),0,MID('CFR - XML import'!$A184,SEARCH(\">\",'CFR - XML import'!$A184,1)+1,SEARCH(\"/\",'CFR - XML import'!$A184,1)-SEARCH(\">\",'CFR - XML import'!$A184,1)-2))","v":0},{"$f":"IF($B$1=\"SIMS\",IF(ISERROR(FIND(F$3,'CFR - XML import'!$A184)),0,VALUE(MID('CFR - XML import'!$A184,15,10))),IF(ISERROR(FIND(F$3,'CFR - XML import'!$A184)),0,VALUE(MID('CFR - XML import'!$A184,11,10))))","v":"00:00:00"},{"$f":"IF(ISERROR(FIND(G$3,'CFR - XML import'!$A184)),0,VALUE(MID('CFR - XML import'!$A184,SEARCH(\">\",'CFR - XML import'!$A184,1)+1,SEARCH(\"/\",'CFR - XML import'!$A184,1)-SEARCH(\">\",'CFR - XML import'!$A184,1)-2)))","v":0},{"$f":"IF(ISERROR(FIND(H$3,'CFR - XML import'!$A184)),0,VALUE(MID('CFR - XML import'!$A184,SEARCH(\">\",'CFR - XML import'!$A184,1)+1,SEARCH(\"/\",'CFR - XML import'!$A184,1)-SEARCH(\">\",'CFR - XML import'!$A184,1)-2)))","v":0},{"$f":"IF(ISERROR(FIND(I$3,'CFR - XML import'!$A184)),0,VALUE(MID('CFR - XML import'!$A184,SEARCH(\">\",'CFR - XML import'!$A184,1)+1,SEARCH(\"/\",'CFR - XML import'!$A184,1)-SEARCH(\">\",'CFR - XML import'!$A184,1)-2)))","v":0},{"$f":"IF(ISERROR(FIND(J$3,'CFR - XML import'!$A184)),0,VALUE(MID('CFR - XML import'!$A184,SEARCH(\">\",'CFR - XML import'!$A184,1)+1,SEARCH(\"/\",'CFR - XML import'!$A184,1)-SEARCH(\">\",'CFR - XML import'!$A184,1)-2)))","v":0},{"$f":"IF(ISERROR(FIND(K$3,'CFR - XML import'!$A184)),0,VALUE(MID('CFR - XML import'!$A184,SEARCH(\">\",'CFR - XML import'!$A184,1)+1,SEARCH(\"/\",'CFR - XML import'!$A184,1)-SEARCH(\">\",'CFR - XML import'!$A184,1)-2)))","v":0},{"$f":"IF(ISERROR(FIND(L$3,'CFR - XML import'!$A184)),0,VALUE(MID('CFR - XML import'!$A184,SEARCH(\">\",'CFR - XML import'!$A184,1)+1,SEARCH(\"/\",'CFR - XML import'!$A184,1)-SEARCH(\">\",'CFR - XML import'!$A184,1)-2)))","v":0},{"$f":"IF(ISERROR(FIND(M$3,'CFR - XML import'!$A184)),0,VALUE(MID('CFR - XML import'!$A184,SEARCH(\">\",'CFR - XML import'!$A184,1)+1,SEARCH(\"/\",'CFR - XML import'!$A184,1)-SEARCH(\">\",'CFR - XML import'!$A184,1)-2)))","v":0},{"$f":"IF(ISERROR(FIND(N$3,'CFR - XML import'!$A184)),0,VALUE(MID('CFR - XML import'!$A184,SEARCH(\">\",'CFR - XML import'!$A184,1)+1,SEARCH(\"/\",'CFR - XML import'!$A184,1)-SEARCH(\">\",'CFR - XML import'!$A184,1)-2)))","v":0},{"$f":"IF(ISERROR(FIND(O$3,'CFR - XML import'!$A184)),0,VALUE(MID('CFR - XML import'!$A184,SEARCH(\">\",'CFR - XML import'!$A184,1)+1,SEARCH(\"/\",'CFR - XML import'!$A184,1)-SEARCH(\">\",'CFR - XML import'!$A184,1)-2)))","v":0},{"$f":"IF(ISERROR(FIND(P$3,'CFR - XML import'!$A184)),0,VALUE(MID('CFR - XML import'!$A184,SEARCH(\">\",'CFR - XML import'!$A184,1)+1,SEARCH(\"/\",'CFR - XML import'!$A184,1)-SEARCH(\">\",'CFR - XML import'!$A184,1)-2)))","v":0},{"$f":"IF(ISERROR(FIND(Q$3,'CFR - XML import'!$A184)),0,VALUE(MID('CFR - XML import'!$A184,SEARCH(\">\",'CFR - XML import'!$A184,1)+1,SEARCH(\"/\",'CFR - XML import'!$A184,1)-SEARCH(\">\",'CFR - XML import'!$A184,1)-2)))","v":0},{"$f":"IF(ISERROR(FIND(R$3,'CFR - XML import'!$A184)),0,VALUE(MID('CFR - XML import'!$A184,SEARCH(\">\",'CFR - XML import'!$A184,1)+1,SEARCH(\"/\",'CFR - XML import'!$A184,1)-SEARCH(\">\",'CFR - XML import'!$A184,1)-2)))","v":0},{"$f":"IF(ISERROR(FIND(S$3,'CFR - XML import'!$A184)),0,VALUE(MID('CFR - XML import'!$A184,SEARCH(\">\",'CFR - XML import'!$A184,1)+1,SEARCH(\"/\",'CFR - XML import'!$A184,1)-SEARCH(\">\",'CFR - XML import'!$A184,1)-2)))","v":0},{"$f":"IF(ISERROR(FIND(T$3,'CFR - XML import'!$A184)),0,VALUE(MID('CFR - XML import'!$A184,SEARCH(\">\",'CFR - XML import'!$A184,1)+1,SEARCH(\"/\",'CFR - XML import'!$A184,1)-SEARCH(\">\",'CFR - XML import'!$A184,1)-2)))","v":0},{"$f":"IF(ISERROR(FIND(U$3,'CFR - XML import'!$A184)),0,VALUE(MID('CFR - XML import'!$A184,SEARCH(\">\",'CFR - XML import'!$A184,1)+1,SEARCH(\"/\",'CFR - XML import'!$A184,1)-SEARCH(\">\",'CFR - XML import'!$A184,1)-2)))","v":0},{"$f":"IF(ISERROR(FIND(V$3,'CFR - XML import'!$A184)),0,VALUE(MID('CFR - XML import'!$A184,SEARCH(\">\",'CFR - XML import'!$A184,1)+1,SEARCH(\"/\",'CFR - XML import'!$A184,1)-SEARCH(\">\",'CFR - XML import'!$A184,1)-2)))","v":0},{"$f":"IF(ISERROR(FIND(W$3,'CFR - XML import'!$A184)),0,VALUE(MID('CFR - XML import'!$A184,SEARCH(\">\",'CFR - XML import'!$A184,1)+1,SEARCH(\"/\",'CFR - XML import'!$A184,1)-SEARCH(\">\",'CFR - XML import'!$A184,1)-2)))","v":0},null,{"$f":"IF(ISERROR(FIND(Y$3,'CFR - XML import'!$A184)),0,VALUE(MID('CFR - XML import'!$A184,SEARCH(\">\",'CFR - XML import'!$A184,1)+1,SEARCH(\"/\",'CFR - XML import'!$A184,1)-SEARCH(\">\",'CFR - XML import'!$A184,1)-2)))","v":0},{"$f":"IF(ISERROR(FIND(Z$3,'CFR - XML import'!$A184)),0,VALUE(MID('CFR - XML import'!$A184,SEARCH(\">\",'CFR - XML import'!$A184,1)+1,SEARCH(\"/\",'CFR - XML import'!$A184,1)-SEARCH(\">\",'CFR - XML import'!$A184,1)-2)))","v":0},{"$f":"IF(ISERROR(FIND(AA$3,'CFR - XML import'!$A184)),0,VALUE(MID('CFR - XML import'!$A184,SEARCH(\">\",'CFR - XML import'!$A184,1)+1,SEARCH(\"/\",'CFR - XML import'!$A184,1)-SEARCH(\">\",'CFR - XML import'!$A184,1)-2)))","v":0},{"$f":"IF(ISERROR(FIND(AB$3,'CFR - XML import'!$A184)),0,VALUE(MID('CFR - XML import'!$A184,SEARCH(\">\",'CFR - XML import'!$A184,1)+1,SEARCH(\"/\",'CFR - XML import'!$A184,1)-SEARCH(\">\",'CFR - XML import'!$A184,1)-2)))","v":0},{"$f":"IF(ISERROR(FIND(AC$3,'CFR - XML import'!$A184)),0,VALUE(MID('CFR - XML import'!$A184,SEARCH(\">\",'CFR - XML import'!$A184,1)+1,SEARCH(\"/\",'CFR - XML import'!$A184,1)-SEARCH(\">\",'CFR - XML import'!$A184,1)-2)))","v":0},{"$f":"IF(ISERROR(FIND(AD$3,'CFR - XML import'!$A184)),0,VALUE(MID('CFR - XML import'!$A184,SEARCH(\">\",'CFR - XML import'!$A184,1)+1,SEARCH(\"/\",'CFR - XML import'!$A184,1)-SEARCH(\">\",'CFR - XML import'!$A184,1)-2)))","v":0},{"$f":"IF(ISERROR(FIND(AE$3,'CFR - XML import'!$A184)),0,VALUE(MID('CFR - XML import'!$A184,SEARCH(\">\",'CFR - XML import'!$A184,1)+1,SEARCH(\"/\",'CFR - XML import'!$A184,1)-SEARCH(\">\",'CFR - XML import'!$A184,1)-2)))","v":0},{"$f":"IF(ISERROR(FIND(AF$3,'CFR - XML import'!$A184)),0,VALUE(MID('CFR - XML import'!$A184,SEARCH(\">\",'CFR - XML import'!$A184,1)+1,SEARCH(\"/\",'CFR - XML import'!$A184,1)-SEARCH(\">\",'CFR - XML import'!$A184,1)-2)))","v":0},{"$f":"IF(ISERROR(FIND(AG$3,'CFR - XML import'!$A184)),0,VALUE(MID('CFR - XML import'!$A184,SEARCH(\">\",'CFR - XML import'!$A184,1)+1,SEARCH(\"/\",'CFR - XML import'!$A184,1)-SEARCH(\">\",'CFR - XML import'!$A184,1)-2)))","v":0},{"$f":"IF(ISERROR(FIND(AH$3,'CFR - XML import'!$A184)),0,VALUE(MID('CFR - XML import'!$A184,SEARCH(\">\",'CFR - XML import'!$A184,1)+1,SEARCH(\"/\",'CFR - XML import'!$A184,1)-SEARCH(\">\",'CFR - XML import'!$A184,1)-2)))","v":0},{"$f":"IF(ISERROR(FIND(AI$3,'CFR - XML import'!$A184)),0,VALUE(MID('CFR - XML import'!$A184,SEARCH(\">\",'CFR - XML import'!$A184,1)+1,SEARCH(\"/\",'CFR - XML import'!$A184,1)-SEARCH(\">\",'CFR - XML import'!$A184,1)-2)))","v":0},{"$f":"IF(ISERROR(FIND(AJ$3,'CFR - XML import'!$A184)),0,VALUE(MID('CFR - XML import'!$A184,SEARCH(\">\",'CFR - XML import'!$A184,1)+1,SEARCH(\"/\",'CFR - XML import'!$A184,1)-SEARCH(\">\",'CFR - XML import'!$A184,1)-2)))","v":0},{"$f":"IF(ISERROR(FIND(AK$3,'CFR - XML import'!$A184)),0,VALUE(MID('CFR - XML import'!$A184,SEARCH(\">\",'CFR - XML import'!$A184,1)+1,SEARCH(\"/\",'CFR - XML import'!$A184,1)-SEARCH(\">\",'CFR - XML import'!$A184,1)-2)))","v":0},{"$f":"IF(ISERROR(FIND(AL$3,'CFR - XML import'!$A184)),0,VALUE(MID('CFR - XML import'!$A184,SEARCH(\">\",'CFR - XML import'!$A184,1)+1,SEARCH(\"/\",'CFR - XML import'!$A184,1)-SEARCH(\">\",'CFR - XML import'!$A184,1)-2)))","v":0},{"$f":"IF(ISERROR(FIND(AM$3,'CFR - XML import'!$A184)),0,VALUE(MID('CFR - XML import'!$A184,SEARCH(\">\",'CFR - XML import'!$A184,1)+1,SEARCH(\"/\",'CFR - XML import'!$A184,1)-SEARCH(\">\",'CFR - XML import'!$A184,1)-2)))","v":0},{"$f":"IF(ISERROR(FIND(AN$3,'CFR - XML import'!$A184)),0,VALUE(MID('CFR - XML import'!$A184,SEARCH(\">\",'CFR - XML import'!$A184,1)+1,SEARCH(\"/\",'CFR - XML import'!$A184,1)-SEARCH(\">\",'CFR - XML import'!$A184,1)-2)))","v":0},{"$f":"IF(ISERROR(FIND(AO$3,'CFR - XML import'!$A184)),0,VALUE(MID('CFR - XML import'!$A184,SEARCH(\">\",'CFR - XML import'!$A184,1)+1,SEARCH(\"/\",'CFR - XML import'!$A184,1)-SEARCH(\">\",'CFR - XML import'!$A184,1)-2)))","v":0},{"$f":"IF(ISERROR(FIND(AP$3,'CFR - XML import'!$A184)),0,VALUE(MID('CFR - XML import'!$A184,SEARCH(\">\",'CFR - XML import'!$A184,1)+1,SEARCH(\"/\",'CFR - XML import'!$A184,1)-SEARCH(\">\",'CFR - XML import'!$A184,1)-2)))","v":0},{"$f":"IF(ISERROR(FIND(AQ$3,'CFR - XML import'!$A184)),0,VALUE(MID('CFR - XML import'!$A184,SEARCH(\">\",'CFR - XML import'!$A184,1)+1,SEARCH(\"/\",'CFR - XML import'!$A184,1)-SEARCH(\">\",'CFR - XML import'!$A184,1)-2)))","v":0},{"$f":"IF(ISERROR(FIND(AR$3,'CFR - XML import'!$A184)),0,VALUE(MID('CFR - XML import'!$A184,SEARCH(\">\",'CFR - XML import'!$A184,1)+1,SEARCH(\"/\",'CFR - XML import'!$A184,1)-SEARCH(\">\",'CFR - XML import'!$A184,1)-2)))","v":0},{"$f":"IF(ISERROR(FIND(AS$3,'CFR - XML import'!$A184)),0,VALUE(MID('CFR - XML import'!$A184,SEARCH(\">\",'CFR - XML import'!$A184,1)+1,SEARCH(\"/\",'CFR - XML import'!$A184,1)-SEARCH(\">\",'CFR - XML import'!$A184,1)-2)))","v":0},{"$f":"IF(ISERROR(FIND(AT$3,'CFR - XML import'!$A184)),0,VALUE(MID('CFR - XML import'!$A184,SEARCH(\">\",'CFR - XML import'!$A184,1)+1,SEARCH(\"/\",'CFR - XML import'!$A184,1)-SEARCH(\">\",'CFR - XML import'!$A184,1)-2)))","v":0},{"$f":"IF(ISERROR(FIND(AU$3,'CFR - XML import'!$A184)),0,VALUE(MID('CFR - XML import'!$A184,SEARCH(\">\",'CFR - XML import'!$A184,1)+1,SEARCH(\"/\",'CFR - XML import'!$A184,1)-SEARCH(\">\",'CFR - XML import'!$A184,1)-2)))","v":0},{"$f":"IF(ISERROR(FIND(AV$3,'CFR - XML import'!$A184)),0,VALUE(MID('CFR - XML import'!$A184,SEARCH(\">\",'CFR - XML import'!$A184,1)+1,SEARCH(\"/\",'CFR - XML import'!$A184,1)-SEARCH(\">\",'CFR - XML import'!$A184,1)-2)))","v":0},{"$f":"IF(ISERROR(FIND(AW$3,'CFR - XML import'!$A184)),0,VALUE(MID('CFR - XML import'!$A184,SEARCH(\">\",'CFR - XML import'!$A184,1)+1,SEARCH(\"/\",'CFR - XML import'!$A184,1)-SEARCH(\">\",'CFR - XML import'!$A184,1)-2)))","v":0},{"$f":"IF(ISERROR(FIND(AX$3,'CFR - XML import'!$A184)),0,VALUE(MID('CFR - XML import'!$A184,SEARCH(\">\",'CFR - XML import'!$A184,1)+1,SEARCH(\"/\",'CFR - XML import'!$A184,1)-SEARCH(\">\",'CFR - XML import'!$A184,1)-2)))","v":0},{"$f":"IF(ISERROR(FIND(AY$3,'CFR - XML import'!$A184)),0,VALUE(MID('CFR - XML import'!$A184,SEARCH(\">\",'CFR - XML import'!$A184,1)+1,SEARCH(\"/\",'CFR - XML import'!$A184,1)-SEARCH(\">\",'CFR - XML import'!$A184,1)-2)))","v":0},{"$f":"IF(ISERROR(FIND(AZ$3,'CFR - XML import'!$A184)),0,VALUE(MID('CFR - XML import'!$A184,SEARCH(\">\",'CFR - XML import'!$A184,1)+1,SEARCH(\"/\",'CFR - XML import'!$A184,1)-SEARCH(\">\",'CFR - XML import'!$A184,1)-2)))","v":0},{"$f":"IF(ISERROR(FIND(BA$3,'CFR - XML import'!$A184)),0,VALUE(MID('CFR - XML import'!$A184,SEARCH(\">\",'CFR - XML import'!$A184,1)+1,SEARCH(\"/\",'CFR - XML import'!$A184,1)-SEARCH(\">\",'CFR - XML import'!$A184,1)-2)))","v":0},{"$f":"IF(ISERROR(FIND(BB$3,'CFR - XML import'!$A184)),0,VALUE(MID('CFR - XML import'!$A184,SEARCH(\">\",'CFR - XML import'!$A184,1)+1,SEARCH(\"/\",'CFR - XML import'!$A184,1)-SEARCH(\">\",'CFR - XML import'!$A184,1)-2)))","v":0},{"$f":"IF(ISERROR(FIND(BC$3,'CFR - XML import'!$A184)),0,VALUE(MID('CFR - XML import'!$A184,SEARCH(\">\",'CFR - XML import'!$A184,1)+1,SEARCH(\"/\",'CFR - XML import'!$A184,1)-SEARCH(\">\",'CFR - XML import'!$A184,1)-2)))","v":0},{"$f":"IF(ISERROR(FIND(BD$3,'CFR - XML import'!$A184)),0,VALUE(MID('CFR - XML import'!$A184,SEARCH(\">\",'CFR - XML import'!$A184,1)+1,SEARCH(\"/\",'CFR - XML import'!$A184,1)-SEARCH(\">\",'CFR - XML import'!$A184,1)-2)))","v":0},{"$f":"IF(ISERROR(FIND(BE$3,'CFR - XML import'!$A184)),0,VALUE(MID('CFR - XML import'!$A184,SEARCH(\">\",'CFR - XML import'!$A184,1)+1,SEARCH(\"/\",'CFR - XML import'!$A184,1)-SEARCH(\">\",'CFR - XML import'!$A184,1)-2)))","v":0},{"$f":"IF(ISERROR(FIND(BF$3,'CFR - XML import'!$A184)),0,VALUE(MID('CFR - XML import'!$A184,SEARCH(\">\",'CFR - XML import'!$A184,1)+1,SEARCH(\"/\",'CFR - XML import'!$A184,1)-SEARCH(\">\",'CFR - XML import'!$A184,1)-2)))","v":0},{"$f":"IF(ISERROR(FIND(BG$3,'CFR - XML import'!$A184)),0,VALUE(MID('CFR - XML import'!$A184,SEARCH(\">\",'CFR - XML import'!$A184,1)+1,SEARCH(\"/\",'CFR - XML import'!$A184,1)-SEARCH(\">\",'CFR - XML import'!$A184,1)-2)))","v":0},{"$f":"IF(ISERROR(FIND(BH$3,'CFR - XML import'!$A184)),0,VALUE(MID('CFR - XML import'!$A184,SEARCH(\">\",'CFR - XML import'!$A184,1)+1,SEARCH(\"/\",'CFR - XML import'!$A184,1)-SEARCH(\">\",'CFR - XML import'!$A184,1)-2)))","v":0},{"$f":"IF(ISERROR(FIND(BI$3,'CFR - XML import'!$A184)),0,VALUE(MID('CFR - XML import'!$A184,SEARCH(\">\",'CFR - XML import'!$A184,1)+1,SEARCH(\"/\",'CFR - XML import'!$A184,1)-SEARCH(\">\",'CFR - XML import'!$A184,1)-2)))","v":0},{"$f":"IF(ISERROR(FIND(BJ$3,'CFR - XML import'!$A184)),0,VALUE(MID('CFR - XML import'!$A184,SEARCH(\">\",'CFR - XML import'!$A184,1)+1,SEARCH(\"/\",'CFR - XML import'!$A184,1)-SEARCH(\">\",'CFR - XML import'!$A184,1)-2)))","v":0},{"$f":"IF(ISERROR(FIND(BK$3,'CFR - XML import'!$A184)),0,VALUE(MID('CFR - XML import'!$A184,SEARCH(\">\",'CFR - XML import'!$A184,1)+1,SEARCH(\"/\",'CFR - XML import'!$A184,1)-SEARCH(\">\",'CFR - XML import'!$A184,1)-2)))","v":0},{"$f":"IF(ISERROR(FIND(BL$3,'CFR - XML import'!$A184)),0,VALUE(MID('CFR - XML import'!$A184,SEARCH(\">\",'CFR - XML import'!$A184,1)+1,SEARCH(\"/\",'CFR - XML import'!$A184,1)-SEARCH(\">\",'CFR - XML import'!$A184,1)-2)))","v":0},{"$f":"IF(ISERROR(FIND(BM$3,'CFR - XML import'!$A184)),0,VALUE(MID('CFR - XML import'!$A184,SEARCH(\">\",'CFR - XML import'!$A184,1)+1,SEARCH(\"/\",'CFR - XML import'!$A184,1)-SEARCH(\">\",'CFR - XML import'!$A184,1)-2)))","v":0},{"$f":"IF(ISERROR(FIND(BN$3,'CFR - XML import'!$A184)),0,VALUE(MID('CFR - XML import'!$A184,SEARCH(\">\",'CFR - XML import'!$A184,1)+1,SEARCH(\"/\",'CFR - XML import'!$A184,1)-SEARCH(\">\",'CFR - XML import'!$A184,1)-2)))","v":0},{"$f":"IF(ISERROR(FIND(BO$3,'CFR - XML import'!$A184)),0,VALUE(MID('CFR - XML import'!$A184,SEARCH(\">\",'CFR - XML import'!$A184,1)+1,SEARCH(\"/\",'CFR - XML import'!$A184,1)-SEARCH(\">\",'CFR - XML import'!$A184,1)-2)))","v":0},{"$f":"IF(ISERROR(FIND(BP$3,'CFR - XML import'!$A184)),0,VALUE(MID('CFR - XML import'!$A184,SEARCH(\">\",'CFR - XML import'!$A184,1)+1,SEARCH(\"/\",'CFR - XML import'!$A184,1)-SEARCH(\">\",'CFR - XML import'!$A184,1)-2)))","v":0},{"$f":"IF(ISERROR(FIND(BQ$3,'CFR - XML import'!$A184)),0,VALUE(MID('CFR - XML import'!$A184,SEARCH(\">\",'CFR - XML import'!$A184,1)+1,SEARCH(\"/\",'CFR - XML import'!$A184,1)-SEARCH(\">\",'CFR - XML import'!$A184,1)-2)))","v":0},{"$f":"IF(ISERROR(FIND(BR$3,'CFR - XML import'!$A184)),0,VALUE(MID('CFR - XML import'!$A184,SEARCH(\">\",'CFR - XML import'!$A184,1)+1,SEARCH(\"/\",'CFR - XML import'!$A184,1)-SEARCH(\">\",'CFR - XML import'!$A184,1)-2)))","v":0},{"$f":"IF(ISERROR(FIND(BS$3,'CFR - XML import'!$A184)),0,VALUE(MID('CFR - XML import'!$A184,SEARCH(\">\",'CFR - XML import'!$A184,1)+1,SEARCH(\"/\",'CFR - XML import'!$A184,1)-SEARCH(\">\",'CFR - XML import'!$A184,1)-2)))","v":0},{"$f":"IF(ISERROR(FIND(BT$3,'CFR - XML import'!$A184)),0,VALUE(MID('CFR - XML import'!$A184,SEARCH(\">\",'CFR - XML import'!$A184,1)+1,SEARCH(\"/\",'CFR - XML import'!$A184,1)-SEARCH(\">\",'CFR - XML import'!$A184,1)-2)))","v":0},{"$f":"IF(ISERROR(FIND(BU$3,'CFR - XML import'!$A184)),0,VALUE(MID('CFR - XML import'!$A184,SEARCH(\">\",'CFR - XML import'!$A184,1)+1,SEARCH(\"/\",'CFR - XML import'!$A184,1)-SEARCH(\">\",'CFR - XML import'!$A184,1)-2)))","v":0},{"$f":"IF(ISERROR(FIND(BV$3,'CFR - XML import'!$A184)),0,VALUE(MID('CFR - XML import'!$A184,SEARCH(\">\",'CFR - XML import'!$A184,1)+1,SEARCH(\"/\",'CFR - XML import'!$A184,1)-SEARCH(\">\",'CFR - XML import'!$A184,1)-2)))","v":0},{"$f":"IF(ISERROR(FIND(BW$3,'CFR - XML import'!$A184)),0,VALUE(MID('CFR - XML import'!$A184,SEARCH(\">\",'CFR - XML import'!$A184,1)+1,SEARCH(\"/\",'CFR - XML import'!$A184,1)-SEARCH(\">\",'CFR - XML import'!$A184,1)-2)))","v":0},{"$f":"IF(ISERROR(FIND(BX$3,'CFR - XML import'!$A184)),0,VALUE(MID('CFR - XML import'!$A184,SEARCH(\">\",'CFR - XML import'!$A184,1)+1,SEARCH(\"/\",'CFR - XML import'!$A184,1)-SEARCH(\">\",'CFR - XML import'!$A184,1)-2)))","v":0},{"$f":"IF(ISERROR(FIND(BY$3,'CFR - XML import'!$A184)),0,VALUE(MID('CFR - XML import'!$A184,SEARCH(\">\",'CFR - XML import'!$A184,1)+1,SEARCH(\"/\",'CFR - XML import'!$A184,1)-SEARCH(\">\",'CFR - XML import'!$A184,1)-2)))","v":0},{"$f":"IF(ISERROR(FIND(BZ$3,'CFR - XML import'!$A184)),0,VALUE(MID('CFR - XML import'!$A184,SEARCH(\">\",'CFR - XML import'!$A184,1)+1,SEARCH(\"/\",'CFR - XML import'!$A184,1)-SEARCH(\">\",'CFR - XML import'!$A184,1)-2)))","v":0},null,null,null,null,null,null,{"$f":"IF(ISERROR(IF(MID('CFR - XML import'!$A184,LEN($CF$4)+1,LEN('CFR - XML import'!$A184)-(2*LEN($CF$4)+1))=\"RMMS\",1,IF(MID('CFR - XML import'!$A184,LEN(\"    <InputSystem>\")+1,LEN('CFR - XML import'!$A184)-(LEN(\"    <InputSystem>\")+LEN($CF$4)+1))=\"SIMS\",2,0))),0,IF(MID('CFR - XML import'!$A184,LEN($CF$4)+1,LEN('CFR - XML import'!$A184)-(2*LEN($CF$4)+1))=\"RMMS\",1,IF(MID('CFR - XML import'!$A184,LEN(\"    <InputSystem>\")+1,LEN('CFR - XML import'!$A184)-(LEN(\"    <InputSystem>\")+LEN($CF$4)+1))=\"SIMS\",2,0)))","v":0},{"$f":"IF(ISERROR(FIND(CH$3,'CFR - XML import'!$A184)),0,MID('CFR - XML import'!$A184,SEARCH(\">\",'CFR - XML import'!$A184,1)+1,SEARCH(\"/\",'CFR - XML import'!$A184,1)-SEARCH(\">\",'CFR - XML import'!$A184,1)-2))","v":0},{"$f":"IF(ISERROR(FIND(CI$3,'CFR - XML import'!$A184)),0,MID('CFR - XML import'!$A184,SEARCH(\">\",'CFR - XML import'!$A184,1)+1,SEARCH(\"/\",'CFR - XML import'!$A184,1)-SEARCH(\">\",'CFR - XML import'!$A184,1)-2))","v":0},{"$f":"IF(ISERROR(FIND(CJ$3,'CFR - XML import'!$A184)),0,MID('CFR - XML import'!$A184,SEARCH(\">\",'CFR - XML import'!$A184,1)+1,SEARCH(\"/\",'CFR - XML import'!$A184,1)-SEARCH(\">\",'CFR - XML import'!$A184,1)-2))","v":0},{"$f":"IF(ISERROR(FIND(CK$3,'CFR - XML import'!$A184)),0,MID('CFR - XML import'!$A184,SEARCH(\">\",'CFR - XML import'!$A184,1)+1,SEARCH(\"/\",'CFR - XML import'!$A184,1)-SEARCH(\">\",'CFR - XML import'!$A184,1)-2))","v":0},{"$f":"IF(ISERROR(FIND(CL$3,'CFR - XML import'!$A184)),0,MID('CFR - XML import'!$A184,SEARCH(\">\",'CFR - XML import'!$A184,1)+1,SEARCH(\"/\",'CFR - XML import'!$A184,1)-SEARCH(\">\",'CFR - XML import'!$A184,1)-2))","v":0}]
[{"$f":"IF(AND('CFR - XML import'!A185<>\"\",LEFT('CFR - XML import'!A185,1)<>\"<\",LEFT('CFR - XML import'!A185,3)<>\"  <\",LEFT('CFR - XML import'!A185,5)<>\"    <\",LEFT('CFR - XML import'!A185,7)<>\"      <\",LEFT('CFR - XML import'!A185,9)<>\"        <\",$B$1=\"SIMS\"),'CFR - XML import'!A185,IF(AND(LEFT('CFR - XML import'!A185,9)=\"<Details>\",$B$1=\"RM\"),'CFR - XML import'!A185,\"\"))","v":""},{"$f":"IF(ISERROR(FIND(B$3,'CFR - XML import'!$A185)),0,VALUE(MID('CFR - XML import'!$A185,SEARCH(\">\",'CFR - XML import'!$A185,1)+1,SEARCH(\"/\",'CFR - XML import'!$A185,1)-SEARCH(\">\",'CFR - XML import'!$A185,1)-2)))","v":0},null,{"$f":"IF(ISERROR(FIND(D$3,'CFR - XML import'!$A185)),0,MID('CFR - XML import'!$A185,SEARCH(\">\",'CFR - XML import'!$A185,1)+1,SEARCH(\"/\",'CFR - XML import'!$A185,1)-SEARCH(\">\",'CFR - XML import'!$A185,1)-2))","v":0},{"$f":"IF(ISERROR(FIND(E$3,'CFR - XML import'!$A185)),0,MID('CFR - XML import'!$A185,SEARCH(\">\",'CFR - XML import'!$A185,1)+1,SEARCH(\"/\",'CFR - XML import'!$A185,1)-SEARCH(\">\",'CFR - XML import'!$A185,1)-2))","v":0},{"$f":"IF($B$1=\"SIMS\",IF(ISERROR(FIND(F$3,'CFR - XML import'!$A185)),0,VALUE(MID('CFR - XML import'!$A185,15,10))),IF(ISERROR(FIND(F$3,'CFR - XML import'!$A185)),0,VALUE(MID('CFR - XML import'!$A185,11,10))))","v":"00:00:00"},{"$f":"IF(ISERROR(FIND(G$3,'CFR - XML import'!$A185)),0,VALUE(MID('CFR - XML import'!$A185,SEARCH(\">\",'CFR - XML import'!$A185,1)+1,SEARCH(\"/\",'CFR - XML import'!$A185,1)-SEARCH(\">\",'CFR - XML import'!$A185,1)-2)))","v":0},{"$f":"IF(ISERROR(FIND(H$3,'CFR - XML import'!$A185)),0,VALUE(MID('CFR - XML import'!$A185,SEARCH(\">\",'CFR - XML import'!$A185,1)+1,SEARCH(\"/\",'CFR - XML import'!$A185,1)-SEARCH(\">\",'CFR - XML import'!$A185,1)-2)))","v":0},{"$f":"IF(ISERROR(FIND(I$3,'CFR - XML import'!$A185)),0,VALUE(MID('CFR - XML import'!$A185,SEARCH(\">\",'CFR - XML import'!$A185,1)+1,SEARCH(\"/\",'CFR - XML import'!$A185,1)-SEARCH(\">\",'CFR - XML import'!$A185,1)-2)))","v":0},{"$f":"IF(ISERROR(FIND(J$3,'CFR - XML import'!$A185)),0,VALUE(MID('CFR - XML import'!$A185,SEARCH(\">\",'CFR - XML import'!$A185,1)+1,SEARCH(\"/\",'CFR - XML import'!$A185,1)-SEARCH(\">\",'CFR - XML import'!$A185,1)-2)))","v":0},{"$f":"IF(ISERROR(FIND(K$3,'CFR - XML import'!$A185)),0,VALUE(MID('CFR - XML import'!$A185,SEARCH(\">\",'CFR - XML import'!$A185,1)+1,SEARCH(\"/\",'CFR - XML import'!$A185,1)-SEARCH(\">\",'CFR - XML import'!$A185,1)-2)))","v":0},{"$f":"IF(ISERROR(FIND(L$3,'CFR - XML import'!$A185)),0,VALUE(MID('CFR - XML import'!$A185,SEARCH(\">\",'CFR - XML import'!$A185,1)+1,SEARCH(\"/\",'CFR - XML import'!$A185,1)-SEARCH(\">\",'CFR - XML import'!$A185,1)-2)))","v":0},{"$f":"IF(ISERROR(FIND(M$3,'CFR - XML import'!$A185)),0,VALUE(MID('CFR - XML import'!$A185,SEARCH(\">\",'CFR - XML import'!$A185,1)+1,SEARCH(\"/\",'CFR - XML import'!$A185,1)-SEARCH(\">\",'CFR - XML import'!$A185,1)-2)))","v":0},{"$f":"IF(ISERROR(FIND(N$3,'CFR - XML import'!$A185)),0,VALUE(MID('CFR - XML import'!$A185,SEARCH(\">\",'CFR - XML import'!$A185,1)+1,SEARCH(\"/\",'CFR - XML import'!$A185,1)-SEARCH(\">\",'CFR - XML import'!$A185,1)-2)))","v":0},{"$f":"IF(ISERROR(FIND(O$3,'CFR - XML import'!$A185)),0,VALUE(MID('CFR - XML import'!$A185,SEARCH(\">\",'CFR - XML import'!$A185,1)+1,SEARCH(\"/\",'CFR - XML import'!$A185,1)-SEARCH(\">\",'CFR - XML import'!$A185,1)-2)))","v":0},{"$f":"IF(ISERROR(FIND(P$3,'CFR - XML import'!$A185)),0,VALUE(MID('CFR - XML import'!$A185,SEARCH(\">\",'CFR - XML import'!$A185,1)+1,SEARCH(\"/\",'CFR - XML import'!$A185,1)-SEARCH(\">\",'CFR - XML import'!$A185,1)-2)))","v":0},{"$f":"IF(ISERROR(FIND(Q$3,'CFR - XML import'!$A185)),0,VALUE(MID('CFR - XML import'!$A185,SEARCH(\">\",'CFR - XML import'!$A185,1)+1,SEARCH(\"/\",'CFR - XML import'!$A185,1)-SEARCH(\">\",'CFR - XML import'!$A185,1)-2)))","v":0},{"$f":"IF(ISERROR(FIND(R$3,'CFR - XML import'!$A185)),0,VALUE(MID('CFR - XML import'!$A185,SEARCH(\">\",'CFR - XML import'!$A185,1)+1,SEARCH(\"/\",'CFR - XML import'!$A185,1)-SEARCH(\">\",'CFR - XML import'!$A185,1)-2)))","v":0},{"$f":"IF(ISERROR(FIND(S$3,'CFR - XML import'!$A185)),0,VALUE(MID('CFR - XML import'!$A185,SEARCH(\">\",'CFR - XML import'!$A185,1)+1,SEARCH(\"/\",'CFR - XML import'!$A185,1)-SEARCH(\">\",'CFR - XML import'!$A185,1)-2)))","v":0},{"$f":"IF(ISERROR(FIND(T$3,'CFR - XML import'!$A185)),0,VALUE(MID('CFR - XML import'!$A185,SEARCH(\">\",'CFR - XML import'!$A185,1)+1,SEARCH(\"/\",'CFR - XML import'!$A185,1)-SEARCH(\">\",'CFR - XML import'!$A185,1)-2)))","v":0},{"$f":"IF(ISERROR(FIND(U$3,'CFR - XML import'!$A185)),0,VALUE(MID('CFR - XML import'!$A185,SEARCH(\">\",'CFR - XML import'!$A185,1)+1,SEARCH(\"/\",'CFR - XML import'!$A185,1)-SEARCH(\">\",'CFR - XML import'!$A185,1)-2)))","v":0},{"$f":"IF(ISERROR(FIND(V$3,'CFR - XML import'!$A185)),0,VALUE(MID('CFR - XML import'!$A185,SEARCH(\">\",'CFR - XML import'!$A185,1)+1,SEARCH(\"/\",'CFR - XML import'!$A185,1)-SEARCH(\">\",'CFR - XML import'!$A185,1)-2)))","v":0},{"$f":"IF(ISERROR(FIND(W$3,'CFR - XML import'!$A185)),0,VALUE(MID('CFR - XML import'!$A185,SEARCH(\">\",'CFR - XML import'!$A185,1)+1,SEARCH(\"/\",'CFR - XML import'!$A185,1)-SEARCH(\">\",'CFR - XML import'!$A185,1)-2)))","v":0},null,{"$f":"IF(ISERROR(FIND(Y$3,'CFR - XML import'!$A185)),0,VALUE(MID('CFR - XML import'!$A185,SEARCH(\">\",'CFR - XML import'!$A185,1)+1,SEARCH(\"/\",'CFR - XML import'!$A185,1)-SEARCH(\">\",'CFR - XML import'!$A185,1)-2)))","v":0},{"$f":"IF(ISERROR(FIND(Z$3,'CFR - XML import'!$A185)),0,VALUE(MID('CFR - XML import'!$A185,SEARCH(\">\",'CFR - XML import'!$A185,1)+1,SEARCH(\"/\",'CFR - XML import'!$A185,1)-SEARCH(\">\",'CFR - XML import'!$A185,1)-2)))","v":0},{"$f":"IF(ISERROR(FIND(AA$3,'CFR - XML import'!$A185)),0,VALUE(MID('CFR - XML import'!$A185,SEARCH(\">\",'CFR - XML import'!$A185,1)+1,SEARCH(\"/\",'CFR - XML import'!$A185,1)-SEARCH(\">\",'CFR - XML import'!$A185,1)-2)))","v":0},{"$f":"IF(ISERROR(FIND(AB$3,'CFR - XML import'!$A185)),0,VALUE(MID('CFR - XML import'!$A185,SEARCH(\">\",'CFR - XML import'!$A185,1)+1,SEARCH(\"/\",'CFR - XML import'!$A185,1)-SEARCH(\">\",'CFR - XML import'!$A185,1)-2)))","v":0},{"$f":"IF(ISERROR(FIND(AC$3,'CFR - XML import'!$A185)),0,VALUE(MID('CFR - XML import'!$A185,SEARCH(\">\",'CFR - XML import'!$A185,1)+1,SEARCH(\"/\",'CFR - XML import'!$A185,1)-SEARCH(\">\",'CFR - XML import'!$A185,1)-2)))","v":0},{"$f":"IF(ISERROR(FIND(AD$3,'CFR - XML import'!$A185)),0,VALUE(MID('CFR - XML import'!$A185,SEARCH(\">\",'CFR - XML import'!$A185,1)+1,SEARCH(\"/\",'CFR - XML import'!$A185,1)-SEARCH(\">\",'CFR - XML import'!$A185,1)-2)))","v":0},{"$f":"IF(ISERROR(FIND(AE$3,'CFR - XML import'!$A185)),0,VALUE(MID('CFR - XML import'!$A185,SEARCH(\">\",'CFR - XML import'!$A185,1)+1,SEARCH(\"/\",'CFR - XML import'!$A185,1)-SEARCH(\">\",'CFR - XML import'!$A185,1)-2)))","v":0},{"$f":"IF(ISERROR(FIND(AF$3,'CFR - XML import'!$A185)),0,VALUE(MID('CFR - XML import'!$A185,SEARCH(\">\",'CFR - XML import'!$A185,1)+1,SEARCH(\"/\",'CFR - XML import'!$A185,1)-SEARCH(\">\",'CFR - XML import'!$A185,1)-2)))","v":0},{"$f":"IF(ISERROR(FIND(AG$3,'CFR - XML import'!$A185)),0,VALUE(MID('CFR - XML import'!$A185,SEARCH(\">\",'CFR - XML import'!$A185,1)+1,SEARCH(\"/\",'CFR - XML import'!$A185,1)-SEARCH(\">\",'CFR - XML import'!$A185,1)-2)))","v":0},{"$f":"IF(ISERROR(FIND(AH$3,'CFR - XML import'!$A185)),0,VALUE(MID('CFR - XML import'!$A185,SEARCH(\">\",'CFR - XML import'!$A185,1)+1,SEARCH(\"/\",'CFR - XML import'!$A185,1)-SEARCH(\">\",'CFR - XML import'!$A185,1)-2)))","v":0},{"$f":"IF(ISERROR(FIND(AI$3,'CFR - XML import'!$A185)),0,VALUE(MID('CFR - XML import'!$A185,SEARCH(\">\",'CFR - XML import'!$A185,1)+1,SEARCH(\"/\",'CFR - XML import'!$A185,1)-SEARCH(\">\",'CFR - XML import'!$A185,1)-2)))","v":0},{"$f":"IF(ISERROR(FIND(AJ$3,'CFR - XML import'!$A185)),0,VALUE(MID('CFR - XML import'!$A185,SEARCH(\">\",'CFR - XML import'!$A185,1)+1,SEARCH(\"/\",'CFR - XML import'!$A185,1)-SEARCH(\">\",'CFR - XML import'!$A185,1)-2)))","v":0},{"$f":"IF(ISERROR(FIND(AK$3,'CFR - XML import'!$A185)),0,VALUE(MID('CFR - XML import'!$A185,SEARCH(\">\",'CFR - XML import'!$A185,1)+1,SEARCH(\"/\",'CFR - XML import'!$A185,1)-SEARCH(\">\",'CFR - XML import'!$A185,1)-2)))","v":0},{"$f":"IF(ISERROR(FIND(AL$3,'CFR - XML import'!$A185)),0,VALUE(MID('CFR - XML import'!$A185,SEARCH(\">\",'CFR - XML import'!$A185,1)+1,SEARCH(\"/\",'CFR - XML import'!$A185,1)-SEARCH(\">\",'CFR - XML import'!$A185,1)-2)))","v":0},{"$f":"IF(ISERROR(FIND(AM$3,'CFR - XML import'!$A185)),0,VALUE(MID('CFR - XML import'!$A185,SEARCH(\">\",'CFR - XML import'!$A185,1)+1,SEARCH(\"/\",'CFR - XML import'!$A185,1)-SEARCH(\">\",'CFR - XML import'!$A185,1)-2)))","v":0},{"$f":"IF(ISERROR(FIND(AN$3,'CFR - XML import'!$A185)),0,VALUE(MID('CFR - XML import'!$A185,SEARCH(\">\",'CFR - XML import'!$A185,1)+1,SEARCH(\"/\",'CFR - XML import'!$A185,1)-SEARCH(\">\",'CFR - XML import'!$A185,1)-2)))","v":0},{"$f":"IF(ISERROR(FIND(AO$3,'CFR - XML import'!$A185)),0,VALUE(MID('CFR - XML import'!$A185,SEARCH(\">\",'CFR - XML import'!$A185,1)+1,SEARCH(\"/\",'CFR - XML import'!$A185,1)-SEARCH(\">\",'CFR - XML import'!$A185,1)-2)))","v":0},{"$f":"IF(ISERROR(FIND(AP$3,'CFR - XML import'!$A185)),0,VALUE(MID('CFR - XML import'!$A185,SEARCH(\">\",'CFR - XML import'!$A185,1)+1,SEARCH(\"/\",'CFR - XML import'!$A185,1)-SEARCH(\">\",'CFR - XML import'!$A185,1)-2)))","v":0},{"$f":"IF(ISERROR(FIND(AQ$3,'CFR - XML import'!$A185)),0,VALUE(MID('CFR - XML import'!$A185,SEARCH(\">\",'CFR - XML import'!$A185,1)+1,SEARCH(\"/\",'CFR - XML import'!$A185,1)-SEARCH(\">\",'CFR - XML import'!$A185,1)-2)))","v":0},{"$f":"IF(ISERROR(FIND(AR$3,'CFR - XML import'!$A185)),0,VALUE(MID('CFR - XML import'!$A185,SEARCH(\">\",'CFR - XML import'!$A185,1)+1,SEARCH(\"/\",'CFR - XML import'!$A185,1)-SEARCH(\">\",'CFR - XML import'!$A185,1)-2)))","v":0},{"$f":"IF(ISERROR(FIND(AS$3,'CFR - XML import'!$A185)),0,VALUE(MID('CFR - XML import'!$A185,SEARCH(\">\",'CFR - XML import'!$A185,1)+1,SEARCH(\"/\",'CFR - XML import'!$A185,1)-SEARCH(\">\",'CFR - XML import'!$A185,1)-2)))","v":0},{"$f":"IF(ISERROR(FIND(AT$3,'CFR - XML import'!$A185)),0,VALUE(MID('CFR - XML import'!$A185,SEARCH(\">\",'CFR - XML import'!$A185,1)+1,SEARCH(\"/\",'CFR - XML import'!$A185,1)-SEARCH(\">\",'CFR - XML import'!$A185,1)-2)))","v":0},{"$f":"IF(ISERROR(FIND(AU$3,'CFR - XML import'!$A185)),0,VALUE(MID('CFR - XML import'!$A185,SEARCH(\">\",'CFR - XML import'!$A185,1)+1,SEARCH(\"/\",'CFR - XML import'!$A185,1)-SEARCH(\">\",'CFR - XML import'!$A185,1)-2)))","v":0},{"$f":"IF(ISERROR(FIND(AV$3,'CFR - XML import'!$A185)),0,VALUE(MID('CFR - XML import'!$A185,SEARCH(\">\",'CFR - XML import'!$A185,1)+1,SEARCH(\"/\",'CFR - XML import'!$A185,1)-SEARCH(\">\",'CFR - XML import'!$A185,1)-2)))","v":0},{"$f":"IF(ISERROR(FIND(AW$3,'CFR - XML import'!$A185)),0,VALUE(MID('CFR - XML import'!$A185,SEARCH(\">\",'CFR - XML import'!$A185,1)+1,SEARCH(\"/\",'CFR - XML import'!$A185,1)-SEARCH(\">\",'CFR - XML import'!$A185,1)-2)))","v":0},{"$f":"IF(ISERROR(FIND(AX$3,'CFR - XML import'!$A185)),0,VALUE(MID('CFR - XML import'!$A185,SEARCH(\">\",'CFR - XML import'!$A185,1)+1,SEARCH(\"/\",'CFR - XML import'!$A185,1)-SEARCH(\">\",'CFR - XML import'!$A185,1)-2)))","v":0},{"$f":"IF(ISERROR(FIND(AY$3,'CFR - XML import'!$A185)),0,VALUE(MID('CFR - XML import'!$A185,SEARCH(\">\",'CFR - XML import'!$A185,1)+1,SEARCH(\"/\",'CFR - XML import'!$A185,1)-SEARCH(\">\",'CFR - XML import'!$A185,1)-2)))","v":0},{"$f":"IF(ISERROR(FIND(AZ$3,'CFR - XML import'!$A185)),0,VALUE(MID('CFR - XML import'!$A185,SEARCH(\">\",'CFR - XML import'!$A185,1)+1,SEARCH(\"/\",'CFR - XML import'!$A185,1)-SEARCH(\">\",'CFR - XML import'!$A185,1)-2)))","v":0},{"$f":"IF(ISERROR(FIND(BA$3,'CFR - XML import'!$A185)),0,VALUE(MID('CFR - XML import'!$A185,SEARCH(\">\",'CFR - XML import'!$A185,1)+1,SEARCH(\"/\",'CFR - XML import'!$A185,1)-SEARCH(\">\",'CFR - XML import'!$A185,1)-2)))","v":0},{"$f":"IF(ISERROR(FIND(BB$3,'CFR - XML import'!$A185)),0,VALUE(MID('CFR - XML import'!$A185,SEARCH(\">\",'CFR - XML import'!$A185,1)+1,SEARCH(\"/\",'CFR - XML import'!$A185,1)-SEARCH(\">\",'CFR - XML import'!$A185,1)-2)))","v":0},{"$f":"IF(ISERROR(FIND(BC$3,'CFR - XML import'!$A185)),0,VALUE(MID('CFR - XML import'!$A185,SEARCH(\">\",'CFR - XML import'!$A185,1)+1,SEARCH(\"/\",'CFR - XML import'!$A185,1)-SEARCH(\">\",'CFR - XML import'!$A185,1)-2)))","v":0},{"$f":"IF(ISERROR(FIND(BD$3,'CFR - XML import'!$A185)),0,VALUE(MID('CFR - XML import'!$A185,SEARCH(\">\",'CFR - XML import'!$A185,1)+1,SEARCH(\"/\",'CFR - XML import'!$A185,1)-SEARCH(\">\",'CFR - XML import'!$A185,1)-2)))","v":0},{"$f":"IF(ISERROR(FIND(BE$3,'CFR - XML import'!$A185)),0,VALUE(MID('CFR - XML import'!$A185,SEARCH(\">\",'CFR - XML import'!$A185,1)+1,SEARCH(\"/\",'CFR - XML import'!$A185,1)-SEARCH(\">\",'CFR - XML import'!$A185,1)-2)))","v":0},{"$f":"IF(ISERROR(FIND(BF$3,'CFR - XML import'!$A185)),0,VALUE(MID('CFR - XML import'!$A185,SEARCH(\">\",'CFR - XML import'!$A185,1)+1,SEARCH(\"/\",'CFR - XML import'!$A185,1)-SEARCH(\">\",'CFR - XML import'!$A185,1)-2)))","v":0},{"$f":"IF(ISERROR(FIND(BG$3,'CFR - XML import'!$A185)),0,VALUE(MID('CFR - XML import'!$A185,SEARCH(\">\",'CFR - XML import'!$A185,1)+1,SEARCH(\"/\",'CFR - XML import'!$A185,1)-SEARCH(\">\",'CFR - XML import'!$A185,1)-2)))","v":0},{"$f":"IF(ISERROR(FIND(BH$3,'CFR - XML import'!$A185)),0,VALUE(MID('CFR - XML import'!$A185,SEARCH(\">\",'CFR - XML import'!$A185,1)+1,SEARCH(\"/\",'CFR - XML import'!$A185,1)-SEARCH(\">\",'CFR - XML import'!$A185,1)-2)))","v":0},{"$f":"IF(ISERROR(FIND(BI$3,'CFR - XML import'!$A185)),0,VALUE(MID('CFR - XML import'!$A185,SEARCH(\">\",'CFR - XML import'!$A185,1)+1,SEARCH(\"/\",'CFR - XML import'!$A185,1)-SEARCH(\">\",'CFR - XML import'!$A185,1)-2)))","v":0},{"$f":"IF(ISERROR(FIND(BJ$3,'CFR - XML import'!$A185)),0,VALUE(MID('CFR - XML import'!$A185,SEARCH(\">\",'CFR - XML import'!$A185,1)+1,SEARCH(\"/\",'CFR - XML import'!$A185,1)-SEARCH(\">\",'CFR - XML import'!$A185,1)-2)))","v":0},{"$f":"IF(ISERROR(FIND(BK$3,'CFR - XML import'!$A185)),0,VALUE(MID('CFR - XML import'!$A185,SEARCH(\">\",'CFR - XML import'!$A185,1)+1,SEARCH(\"/\",'CFR - XML import'!$A185,1)-SEARCH(\">\",'CFR - XML import'!$A185,1)-2)))","v":0},{"$f":"IF(ISERROR(FIND(BL$3,'CFR - XML import'!$A185)),0,VALUE(MID('CFR - XML import'!$A185,SEARCH(\">\",'CFR - XML import'!$A185,1)+1,SEARCH(\"/\",'CFR - XML import'!$A185,1)-SEARCH(\">\",'CFR - XML import'!$A185,1)-2)))","v":0},{"$f":"IF(ISERROR(FIND(BM$3,'CFR - XML import'!$A185)),0,VALUE(MID('CFR - XML import'!$A185,SEARCH(\">\",'CFR - XML import'!$A185,1)+1,SEARCH(\"/\",'CFR - XML import'!$A185,1)-SEARCH(\">\",'CFR - XML import'!$A185,1)-2)))","v":0},{"$f":"IF(ISERROR(FIND(BN$3,'CFR - XML import'!$A185)),0,VALUE(MID('CFR - XML import'!$A185,SEARCH(\">\",'CFR - XML import'!$A185,1)+1,SEARCH(\"/\",'CFR - XML import'!$A185,1)-SEARCH(\">\",'CFR - XML import'!$A185,1)-2)))","v":0},{"$f":"IF(ISERROR(FIND(BO$3,'CFR - XML import'!$A185)),0,VALUE(MID('CFR - XML import'!$A185,SEARCH(\">\",'CFR - XML import'!$A185,1)+1,SEARCH(\"/\",'CFR - XML import'!$A185,1)-SEARCH(\">\",'CFR - XML import'!$A185,1)-2)))","v":0},{"$f":"IF(ISERROR(FIND(BP$3,'CFR - XML import'!$A185)),0,VALUE(MID('CFR - XML import'!$A185,SEARCH(\">\",'CFR - XML import'!$A185,1)+1,SEARCH(\"/\",'CFR - XML import'!$A185,1)-SEARCH(\">\",'CFR - XML import'!$A185,1)-2)))","v":0},{"$f":"IF(ISERROR(FIND(BQ$3,'CFR - XML import'!$A185)),0,VALUE(MID('CFR - XML import'!$A185,SEARCH(\">\",'CFR - XML import'!$A185,1)+1,SEARCH(\"/\",'CFR - XML import'!$A185,1)-SEARCH(\">\",'CFR - XML import'!$A185,1)-2)))","v":0},{"$f":"IF(ISERROR(FIND(BR$3,'CFR - XML import'!$A185)),0,VALUE(MID('CFR - XML import'!$A185,SEARCH(\">\",'CFR - XML import'!$A185,1)+1,SEARCH(\"/\",'CFR - XML import'!$A185,1)-SEARCH(\">\",'CFR - XML import'!$A185,1)-2)))","v":0},{"$f":"IF(ISERROR(FIND(BS$3,'CFR - XML import'!$A185)),0,VALUE(MID('CFR - XML import'!$A185,SEARCH(\">\",'CFR - XML import'!$A185,1)+1,SEARCH(\"/\",'CFR - XML import'!$A185,1)-SEARCH(\">\",'CFR - XML import'!$A185,1)-2)))","v":0},{"$f":"IF(ISERROR(FIND(BT$3,'CFR - XML import'!$A185)),0,VALUE(MID('CFR - XML import'!$A185,SEARCH(\">\",'CFR - XML import'!$A185,1)+1,SEARCH(\"/\",'CFR - XML import'!$A185,1)-SEARCH(\">\",'CFR - XML import'!$A185,1)-2)))","v":0},{"$f":"IF(ISERROR(FIND(BU$3,'CFR - XML import'!$A185)),0,VALUE(MID('CFR - XML import'!$A185,SEARCH(\">\",'CFR - XML import'!$A185,1)+1,SEARCH(\"/\",'CFR - XML import'!$A185,1)-SEARCH(\">\",'CFR - XML import'!$A185,1)-2)))","v":0},{"$f":"IF(ISERROR(FIND(BV$3,'CFR - XML import'!$A185)),0,VALUE(MID('CFR - XML import'!$A185,SEARCH(\">\",'CFR - XML import'!$A185,1)+1,SEARCH(\"/\",'CFR - XML import'!$A185,1)-SEARCH(\">\",'CFR - XML import'!$A185,1)-2)))","v":0},{"$f":"IF(ISERROR(FIND(BW$3,'CFR - XML import'!$A185)),0,VALUE(MID('CFR - XML import'!$A185,SEARCH(\">\",'CFR - XML import'!$A185,1)+1,SEARCH(\"/\",'CFR - XML import'!$A185,1)-SEARCH(\">\",'CFR - XML import'!$A185,1)-2)))","v":0},{"$f":"IF(ISERROR(FIND(BX$3,'CFR - XML import'!$A185)),0,VALUE(MID('CFR - XML import'!$A185,SEARCH(\">\",'CFR - XML import'!$A185,1)+1,SEARCH(\"/\",'CFR - XML import'!$A185,1)-SEARCH(\">\",'CFR - XML import'!$A185,1)-2)))","v":0},{"$f":"IF(ISERROR(FIND(BY$3,'CFR - XML import'!$A185)),0,VALUE(MID('CFR - XML import'!$A185,SEARCH(\">\",'CFR - XML import'!$A185,1)+1,SEARCH(\"/\",'CFR - XML import'!$A185,1)-SEARCH(\">\",'CFR - XML import'!$A185,1)-2)))","v":0},{"$f":"IF(ISERROR(FIND(BZ$3,'CFR - XML import'!$A185)),0,VALUE(MID('CFR - XML import'!$A185,SEARCH(\">\",'CFR - XML import'!$A185,1)+1,SEARCH(\"/\",'CFR - XML import'!$A185,1)-SEARCH(\">\",'CFR - XML import'!$A185,1)-2)))","v":0},null,null,null,null,null,null,{"$f":"IF(ISERROR(IF(MID('CFR - XML import'!$A185,LEN($CF$4)+1,LEN('CFR - XML import'!$A185)-(2*LEN($CF$4)+1))=\"RMMS\",1,IF(MID('CFR - XML import'!$A185,LEN(\"    <InputSystem>\")+1,LEN('CFR - XML import'!$A185)-(LEN(\"    <InputSystem>\")+LEN($CF$4)+1))=\"SIMS\",2,0))),0,IF(MID('CFR - XML import'!$A185,LEN($CF$4)+1,LEN('CFR - XML import'!$A185)-(2*LEN($CF$4)+1))=\"RMMS\",1,IF(MID('CFR - XML import'!$A185,LEN(\"    <InputSystem>\")+1,LEN('CFR - XML import'!$A185)-(LEN(\"    <InputSystem>\")+LEN($CF$4)+1))=\"SIMS\",2,0)))","v":0},{"$f":"IF(ISERROR(FIND(CH$3,'CFR - XML import'!$A185)),0,MID('CFR - XML import'!$A185,SEARCH(\">\",'CFR - XML import'!$A185,1)+1,SEARCH(\"/\",'CFR - XML import'!$A185,1)-SEARCH(\">\",'CFR - XML import'!$A185,1)-2))","v":0},{"$f":"IF(ISERROR(FIND(CI$3,'CFR - XML import'!$A185)),0,MID('CFR - XML import'!$A185,SEARCH(\">\",'CFR - XML import'!$A185,1)+1,SEARCH(\"/\",'CFR - XML import'!$A185,1)-SEARCH(\">\",'CFR - XML import'!$A185,1)-2))","v":0},{"$f":"IF(ISERROR(FIND(CJ$3,'CFR - XML import'!$A185)),0,MID('CFR - XML import'!$A185,SEARCH(\">\",'CFR - XML import'!$A185,1)+1,SEARCH(\"/\",'CFR - XML import'!$A185,1)-SEARCH(\">\",'CFR - XML import'!$A185,1)-2))","v":0},{"$f":"IF(ISERROR(FIND(CK$3,'CFR - XML import'!$A185)),0,MID('CFR - XML import'!$A185,SEARCH(\">\",'CFR - XML import'!$A185,1)+1,SEARCH(\"/\",'CFR - XML import'!$A185,1)-SEARCH(\">\",'CFR - XML import'!$A185,1)-2))","v":0},{"$f":"IF(ISERROR(FIND(CL$3,'CFR - XML import'!$A185)),0,MID('CFR - XML import'!$A185,SEARCH(\">\",'CFR - XML import'!$A185,1)+1,SEARCH(\"/\",'CFR - XML import'!$A185,1)-SEARCH(\">\",'CFR - XML import'!$A185,1)-2))","v":0}]
[{"$f":"IF(AND('CFR - XML import'!A186<>\"\",LEFT('CFR - XML import'!A186,1)<>\"<\",LEFT('CFR - XML import'!A186,3)<>\"  <\",LEFT('CFR - XML import'!A186,5)<>\"    <\",LEFT('CFR - XML import'!A186,7)<>\"      <\",LEFT('CFR - XML import'!A186,9)<>\"        <\",$B$1=\"SIMS\"),'CFR - XML import'!A186,IF(AND(LEFT('CFR - XML import'!A186,9)=\"<Details>\",$B$1=\"RM\"),'CFR - XML import'!A186,\"\"))","v":""},{"$f":"IF(ISERROR(FIND(B$3,'CFR - XML import'!$A186)),0,VALUE(MID('CFR - XML import'!$A186,SEARCH(\">\",'CFR - XML import'!$A186,1)+1,SEARCH(\"/\",'CFR - XML import'!$A186,1)-SEARCH(\">\",'CFR - XML import'!$A186,1)-2)))","v":0},null,{"$f":"IF(ISERROR(FIND(D$3,'CFR - XML import'!$A186)),0,MID('CFR - XML import'!$A186,SEARCH(\">\",'CFR - XML import'!$A186,1)+1,SEARCH(\"/\",'CFR - XML import'!$A186,1)-SEARCH(\">\",'CFR - XML import'!$A186,1)-2))","v":0},{"$f":"IF(ISERROR(FIND(E$3,'CFR - XML import'!$A186)),0,MID('CFR - XML import'!$A186,SEARCH(\">\",'CFR - XML import'!$A186,1)+1,SEARCH(\"/\",'CFR - XML import'!$A186,1)-SEARCH(\">\",'CFR - XML import'!$A186,1)-2))","v":0},{"$f":"IF($B$1=\"SIMS\",IF(ISERROR(FIND(F$3,'CFR - XML import'!$A186)),0,VALUE(MID('CFR - XML import'!$A186,15,10))),IF(ISERROR(FIND(F$3,'CFR - XML import'!$A186)),0,VALUE(MID('CFR - XML import'!$A186,11,10))))","v":"00:00:00"},{"$f":"IF(ISERROR(FIND(G$3,'CFR - XML import'!$A186)),0,VALUE(MID('CFR - XML import'!$A186,SEARCH(\">\",'CFR - XML import'!$A186,1)+1,SEARCH(\"/\",'CFR - XML import'!$A186,1)-SEARCH(\">\",'CFR - XML import'!$A186,1)-2)))","v":0},{"$f":"IF(ISERROR(FIND(H$3,'CFR - XML import'!$A186)),0,VALUE(MID('CFR - XML import'!$A186,SEARCH(\">\",'CFR - XML import'!$A186,1)+1,SEARCH(\"/\",'CFR - XML import'!$A186,1)-SEARCH(\">\",'CFR - XML import'!$A186,1)-2)))","v":0},{"$f":"IF(ISERROR(FIND(I$3,'CFR - XML import'!$A186)),0,VALUE(MID('CFR - XML import'!$A186,SEARCH(\">\",'CFR - XML import'!$A186,1)+1,SEARCH(\"/\",'CFR - XML import'!$A186,1)-SEARCH(\">\",'CFR - XML import'!$A186,1)-2)))","v":0},{"$f":"IF(ISERROR(FIND(J$3,'CFR - XML import'!$A186)),0,VALUE(MID('CFR - XML import'!$A186,SEARCH(\">\",'CFR - XML import'!$A186,1)+1,SEARCH(\"/\",'CFR - XML import'!$A186,1)-SEARCH(\">\",'CFR - XML import'!$A186,1)-2)))","v":0},{"$f":"IF(ISERROR(FIND(K$3,'CFR - XML import'!$A186)),0,VALUE(MID('CFR - XML import'!$A186,SEARCH(\">\",'CFR - XML import'!$A186,1)+1,SEARCH(\"/\",'CFR - XML import'!$A186,1)-SEARCH(\">\",'CFR - XML import'!$A186,1)-2)))","v":0},{"$f":"IF(ISERROR(FIND(L$3,'CFR - XML import'!$A186)),0,VALUE(MID('CFR - XML import'!$A186,SEARCH(\">\",'CFR - XML import'!$A186,1)+1,SEARCH(\"/\",'CFR - XML import'!$A186,1)-SEARCH(\">\",'CFR - XML import'!$A186,1)-2)))","v":0},{"$f":"IF(ISERROR(FIND(M$3,'CFR - XML import'!$A186)),0,VALUE(MID('CFR - XML import'!$A186,SEARCH(\">\",'CFR - XML import'!$A186,1)+1,SEARCH(\"/\",'CFR - XML import'!$A186,1)-SEARCH(\">\",'CFR - XML import'!$A186,1)-2)))","v":0},{"$f":"IF(ISERROR(FIND(N$3,'CFR - XML import'!$A186)),0,VALUE(MID('CFR - XML import'!$A186,SEARCH(\">\",'CFR - XML import'!$A186,1)+1,SEARCH(\"/\",'CFR - XML import'!$A186,1)-SEARCH(\">\",'CFR - XML import'!$A186,1)-2)))","v":0},{"$f":"IF(ISERROR(FIND(O$3,'CFR - XML import'!$A186)),0,VALUE(MID('CFR - XML import'!$A186,SEARCH(\">\",'CFR - XML import'!$A186,1)+1,SEARCH(\"/\",'CFR - XML import'!$A186,1)-SEARCH(\">\",'CFR - XML import'!$A186,1)-2)))","v":0},{"$f":"IF(ISERROR(FIND(P$3,'CFR - XML import'!$A186)),0,VALUE(MID('CFR - XML import'!$A186,SEARCH(\">\",'CFR - XML import'!$A186,1)+1,SEARCH(\"/\",'CFR - XML import'!$A186,1)-SEARCH(\">\",'CFR - XML import'!$A186,1)-2)))","v":0},{"$f":"IF(ISERROR(FIND(Q$3,'CFR - XML import'!$A186)),0,VALUE(MID('CFR - XML import'!$A186,SEARCH(\">\",'CFR - XML import'!$A186,1)+1,SEARCH(\"/\",'CFR - XML import'!$A186,1)-SEARCH(\">\",'CFR - XML import'!$A186,1)-2)))","v":0},{"$f":"IF(ISERROR(FIND(R$3,'CFR - XML import'!$A186)),0,VALUE(MID('CFR - XML import'!$A186,SEARCH(\">\",'CFR - XML import'!$A186,1)+1,SEARCH(\"/\",'CFR - XML import'!$A186,1)-SEARCH(\">\",'CFR - XML import'!$A186,1)-2)))","v":0},{"$f":"IF(ISERROR(FIND(S$3,'CFR - XML import'!$A186)),0,VALUE(MID('CFR - XML import'!$A186,SEARCH(\">\",'CFR - XML import'!$A186,1)+1,SEARCH(\"/\",'CFR - XML import'!$A186,1)-SEARCH(\">\",'CFR - XML import'!$A186,1)-2)))","v":0},{"$f":"IF(ISERROR(FIND(T$3,'CFR - XML import'!$A186)),0,VALUE(MID('CFR - XML import'!$A186,SEARCH(\">\",'CFR - XML import'!$A186,1)+1,SEARCH(\"/\",'CFR - XML import'!$A186,1)-SEARCH(\">\",'CFR - XML import'!$A186,1)-2)))","v":0},{"$f":"IF(ISERROR(FIND(U$3,'CFR - XML import'!$A186)),0,VALUE(MID('CFR - XML import'!$A186,SEARCH(\">\",'CFR - XML import'!$A186,1)+1,SEARCH(\"/\",'CFR - XML import'!$A186,1)-SEARCH(\">\",'CFR - XML import'!$A186,1)-2)))","v":0},{"$f":"IF(ISERROR(FIND(V$3,'CFR - XML import'!$A186)),0,VALUE(MID('CFR - XML import'!$A186,SEARCH(\">\",'CFR - XML import'!$A186,1)+1,SEARCH(\"/\",'CFR - XML import'!$A186,1)-SEARCH(\">\",'CFR - XML import'!$A186,1)-2)))","v":0},{"$f":"IF(ISERROR(FIND(W$3,'CFR - XML import'!$A186)),0,VALUE(MID('CFR - XML import'!$A186,SEARCH(\">\",'CFR - XML import'!$A186,1)+1,SEARCH(\"/\",'CFR - XML import'!$A186,1)-SEARCH(\">\",'CFR - XML import'!$A186,1)-2)))","v":0},null,{"$f":"IF(ISERROR(FIND(Y$3,'CFR - XML import'!$A186)),0,VALUE(MID('CFR - XML import'!$A186,SEARCH(\">\",'CFR - XML import'!$A186,1)+1,SEARCH(\"/\",'CFR - XML import'!$A186,1)-SEARCH(\">\",'CFR - XML import'!$A186,1)-2)))","v":0},{"$f":"IF(ISERROR(FIND(Z$3,'CFR - XML import'!$A186)),0,VALUE(MID('CFR - XML import'!$A186,SEARCH(\">\",'CFR - XML import'!$A186,1)+1,SEARCH(\"/\",'CFR - XML import'!$A186,1)-SEARCH(\">\",'CFR - XML import'!$A186,1)-2)))","v":0},{"$f":"IF(ISERROR(FIND(AA$3,'CFR - XML import'!$A186)),0,VALUE(MID('CFR - XML import'!$A186,SEARCH(\">\",'CFR - XML import'!$A186,1)+1,SEARCH(\"/\",'CFR - XML import'!$A186,1)-SEARCH(\">\",'CFR - XML import'!$A186,1)-2)))","v":0},{"$f":"IF(ISERROR(FIND(AB$3,'CFR - XML import'!$A186)),0,VALUE(MID('CFR - XML import'!$A186,SEARCH(\">\",'CFR - XML import'!$A186,1)+1,SEARCH(\"/\",'CFR - XML import'!$A186,1)-SEARCH(\">\",'CFR - XML import'!$A186,1)-2)))","v":0},{"$f":"IF(ISERROR(FIND(AC$3,'CFR - XML import'!$A186)),0,VALUE(MID('CFR - XML import'!$A186,SEARCH(\">\",'CFR - XML import'!$A186,1)+1,SEARCH(\"/\",'CFR - XML import'!$A186,1)-SEARCH(\">\",'CFR - XML import'!$A186,1)-2)))","v":0},{"$f":"IF(ISERROR(FIND(AD$3,'CFR - XML import'!$A186)),0,VALUE(MID('CFR - XML import'!$A186,SEARCH(\">\",'CFR - XML import'!$A186,1)+1,SEARCH(\"/\",'CFR - XML import'!$A186,1)-SEARCH(\">\",'CFR - XML import'!$A186,1)-2)))","v":0},{"$f":"IF(ISERROR(FIND(AE$3,'CFR - XML import'!$A186)),0,VALUE(MID('CFR - XML import'!$A186,SEARCH(\">\",'CFR - XML import'!$A186,1)+1,SEARCH(\"/\",'CFR - XML import'!$A186,1)-SEARCH(\">\",'CFR - XML import'!$A186,1)-2)))","v":0},{"$f":"IF(ISERROR(FIND(AF$3,'CFR - XML import'!$A186)),0,VALUE(MID('CFR - XML import'!$A186,SEARCH(\">\",'CFR - XML import'!$A186,1)+1,SEARCH(\"/\",'CFR - XML import'!$A186,1)-SEARCH(\">\",'CFR - XML import'!$A186,1)-2)))","v":0},{"$f":"IF(ISERROR(FIND(AG$3,'CFR - XML import'!$A186)),0,VALUE(MID('CFR - XML import'!$A186,SEARCH(\">\",'CFR - XML import'!$A186,1)+1,SEARCH(\"/\",'CFR - XML import'!$A186,1)-SEARCH(\">\",'CFR - XML import'!$A186,1)-2)))","v":0},{"$f":"IF(ISERROR(FIND(AH$3,'CFR - XML import'!$A186)),0,VALUE(MID('CFR - XML import'!$A186,SEARCH(\">\",'CFR - XML import'!$A186,1)+1,SEARCH(\"/\",'CFR - XML import'!$A186,1)-SEARCH(\">\",'CFR - XML import'!$A186,1)-2)))","v":0},{"$f":"IF(ISERROR(FIND(AI$3,'CFR - XML import'!$A186)),0,VALUE(MID('CFR - XML import'!$A186,SEARCH(\">\",'CFR - XML import'!$A186,1)+1,SEARCH(\"/\",'CFR - XML import'!$A186,1)-SEARCH(\">\",'CFR - XML import'!$A186,1)-2)))","v":0},{"$f":"IF(ISERROR(FIND(AJ$3,'CFR - XML import'!$A186)),0,VALUE(MID('CFR - XML import'!$A186,SEARCH(\">\",'CFR - XML import'!$A186,1)+1,SEARCH(\"/\",'CFR - XML import'!$A186,1)-SEARCH(\">\",'CFR - XML import'!$A186,1)-2)))","v":0},{"$f":"IF(ISERROR(FIND(AK$3,'CFR - XML import'!$A186)),0,VALUE(MID('CFR - XML import'!$A186,SEARCH(\">\",'CFR - XML import'!$A186,1)+1,SEARCH(\"/\",'CFR - XML import'!$A186,1)-SEARCH(\">\",'CFR - XML import'!$A186,1)-2)))","v":0},{"$f":"IF(ISERROR(FIND(AL$3,'CFR - XML import'!$A186)),0,VALUE(MID('CFR - XML import'!$A186,SEARCH(\">\",'CFR - XML import'!$A186,1)+1,SEARCH(\"/\",'CFR - XML import'!$A186,1)-SEARCH(\">\",'CFR - XML import'!$A186,1)-2)))","v":0},{"$f":"IF(ISERROR(FIND(AM$3,'CFR - XML import'!$A186)),0,VALUE(MID('CFR - XML import'!$A186,SEARCH(\">\",'CFR - XML import'!$A186,1)+1,SEARCH(\"/\",'CFR - XML import'!$A186,1)-SEARCH(\">\",'CFR - XML import'!$A186,1)-2)))","v":0},{"$f":"IF(ISERROR(FIND(AN$3,'CFR - XML import'!$A186)),0,VALUE(MID('CFR - XML import'!$A186,SEARCH(\">\",'CFR - XML import'!$A186,1)+1,SEARCH(\"/\",'CFR - XML import'!$A186,1)-SEARCH(\">\",'CFR - XML import'!$A186,1)-2)))","v":0},{"$f":"IF(ISERROR(FIND(AO$3,'CFR - XML import'!$A186)),0,VALUE(MID('CFR - XML import'!$A186,SEARCH(\">\",'CFR - XML import'!$A186,1)+1,SEARCH(\"/\",'CFR - XML import'!$A186,1)-SEARCH(\">\",'CFR - XML import'!$A186,1)-2)))","v":0},{"$f":"IF(ISERROR(FIND(AP$3,'CFR - XML import'!$A186)),0,VALUE(MID('CFR - XML import'!$A186,SEARCH(\">\",'CFR - XML import'!$A186,1)+1,SEARCH(\"/\",'CFR - XML import'!$A186,1)-SEARCH(\">\",'CFR - XML import'!$A186,1)-2)))","v":0},{"$f":"IF(ISERROR(FIND(AQ$3,'CFR - XML import'!$A186)),0,VALUE(MID('CFR - XML import'!$A186,SEARCH(\">\",'CFR - XML import'!$A186,1)+1,SEARCH(\"/\",'CFR - XML import'!$A186,1)-SEARCH(\">\",'CFR - XML import'!$A186,1)-2)))","v":0},{"$f":"IF(ISERROR(FIND(AR$3,'CFR - XML import'!$A186)),0,VALUE(MID('CFR - XML import'!$A186,SEARCH(\">\",'CFR - XML import'!$A186,1)+1,SEARCH(\"/\",'CFR - XML import'!$A186,1)-SEARCH(\">\",'CFR - XML import'!$A186,1)-2)))","v":0},{"$f":"IF(ISERROR(FIND(AS$3,'CFR - XML import'!$A186)),0,VALUE(MID('CFR - XML import'!$A186,SEARCH(\">\",'CFR - XML import'!$A186,1)+1,SEARCH(\"/\",'CFR - XML import'!$A186,1)-SEARCH(\">\",'CFR - XML import'!$A186,1)-2)))","v":0},{"$f":"IF(ISERROR(FIND(AT$3,'CFR - XML import'!$A186)),0,VALUE(MID('CFR - XML import'!$A186,SEARCH(\">\",'CFR - XML import'!$A186,1)+1,SEARCH(\"/\",'CFR - XML import'!$A186,1)-SEARCH(\">\",'CFR - XML import'!$A186,1)-2)))","v":0},{"$f":"IF(ISERROR(FIND(AU$3,'CFR - XML import'!$A186)),0,VALUE(MID('CFR - XML import'!$A186,SEARCH(\">\",'CFR - XML import'!$A186,1)+1,SEARCH(\"/\",'CFR - XML import'!$A186,1)-SEARCH(\">\",'CFR - XML import'!$A186,1)-2)))","v":0},{"$f":"IF(ISERROR(FIND(AV$3,'CFR - XML import'!$A186)),0,VALUE(MID('CFR - XML import'!$A186,SEARCH(\">\",'CFR - XML import'!$A186,1)+1,SEARCH(\"/\",'CFR - XML import'!$A186,1)-SEARCH(\">\",'CFR - XML import'!$A186,1)-2)))","v":0},{"$f":"IF(ISERROR(FIND(AW$3,'CFR - XML import'!$A186)),0,VALUE(MID('CFR - XML import'!$A186,SEARCH(\">\",'CFR - XML import'!$A186,1)+1,SEARCH(\"/\",'CFR - XML import'!$A186,1)-SEARCH(\">\",'CFR - XML import'!$A186,1)-2)))","v":0},{"$f":"IF(ISERROR(FIND(AX$3,'CFR - XML import'!$A186)),0,VALUE(MID('CFR - XML import'!$A186,SEARCH(\">\",'CFR - XML import'!$A186,1)+1,SEARCH(\"/\",'CFR - XML import'!$A186,1)-SEARCH(\">\",'CFR - XML import'!$A186,1)-2)))","v":0},{"$f":"IF(ISERROR(FIND(AY$3,'CFR - XML import'!$A186)),0,VALUE(MID('CFR - XML import'!$A186,SEARCH(\">\",'CFR - XML import'!$A186,1)+1,SEARCH(\"/\",'CFR - XML import'!$A186,1)-SEARCH(\">\",'CFR - XML import'!$A186,1)-2)))","v":0},{"$f":"IF(ISERROR(FIND(AZ$3,'CFR - XML import'!$A186)),0,VALUE(MID('CFR - XML import'!$A186,SEARCH(\">\",'CFR - XML import'!$A186,1)+1,SEARCH(\"/\",'CFR - XML import'!$A186,1)-SEARCH(\">\",'CFR - XML import'!$A186,1)-2)))","v":0},{"$f":"IF(ISERROR(FIND(BA$3,'CFR - XML import'!$A186)),0,VALUE(MID('CFR - XML import'!$A186,SEARCH(\">\",'CFR - XML import'!$A186,1)+1,SEARCH(\"/\",'CFR - XML import'!$A186,1)-SEARCH(\">\",'CFR - XML import'!$A186,1)-2)))","v":0},{"$f":"IF(ISERROR(FIND(BB$3,'CFR - XML import'!$A186)),0,VALUE(MID('CFR - XML import'!$A186,SEARCH(\">\",'CFR - XML import'!$A186,1)+1,SEARCH(\"/\",'CFR - XML import'!$A186,1)-SEARCH(\">\",'CFR - XML import'!$A186,1)-2)))","v":0},{"$f":"IF(ISERROR(FIND(BC$3,'CFR - XML import'!$A186)),0,VALUE(MID('CFR - XML import'!$A186,SEARCH(\">\",'CFR - XML import'!$A186,1)+1,SEARCH(\"/\",'CFR - XML import'!$A186,1)-SEARCH(\">\",'CFR - XML import'!$A186,1)-2)))","v":0},{"$f":"IF(ISERROR(FIND(BD$3,'CFR - XML import'!$A186)),0,VALUE(MID('CFR - XML import'!$A186,SEARCH(\">\",'CFR - XML import'!$A186,1)+1,SEARCH(\"/\",'CFR - XML import'!$A186,1)-SEARCH(\">\",'CFR - XML import'!$A186,1)-2)))","v":0},{"$f":"IF(ISERROR(FIND(BE$3,'CFR - XML import'!$A186)),0,VALUE(MID('CFR - XML import'!$A186,SEARCH(\">\",'CFR - XML import'!$A186,1)+1,SEARCH(\"/\",'CFR - XML import'!$A186,1)-SEARCH(\">\",'CFR - XML import'!$A186,1)-2)))","v":0},{"$f":"IF(ISERROR(FIND(BF$3,'CFR - XML import'!$A186)),0,VALUE(MID('CFR - XML import'!$A186,SEARCH(\">\",'CFR - XML import'!$A186,1)+1,SEARCH(\"/\",'CFR - XML import'!$A186,1)-SEARCH(\">\",'CFR - XML import'!$A186,1)-2)))","v":0},{"$f":"IF(ISERROR(FIND(BG$3,'CFR - XML import'!$A186)),0,VALUE(MID('CFR - XML import'!$A186,SEARCH(\">\",'CFR - XML import'!$A186,1)+1,SEARCH(\"/\",'CFR - XML import'!$A186,1)-SEARCH(\">\",'CFR - XML import'!$A186,1)-2)))","v":0},{"$f":"IF(ISERROR(FIND(BH$3,'CFR - XML import'!$A186)),0,VALUE(MID('CFR - XML import'!$A186,SEARCH(\">\",'CFR - XML import'!$A186,1)+1,SEARCH(\"/\",'CFR - XML import'!$A186,1)-SEARCH(\">\",'CFR - XML import'!$A186,1)-2)))","v":0},{"$f":"IF(ISERROR(FIND(BI$3,'CFR - XML import'!$A186)),0,VALUE(MID('CFR - XML import'!$A186,SEARCH(\">\",'CFR - XML import'!$A186,1)+1,SEARCH(\"/\",'CFR - XML import'!$A186,1)-SEARCH(\">\",'CFR - XML import'!$A186,1)-2)))","v":0},{"$f":"IF(ISERROR(FIND(BJ$3,'CFR - XML import'!$A186)),0,VALUE(MID('CFR - XML import'!$A186,SEARCH(\">\",'CFR - XML import'!$A186,1)+1,SEARCH(\"/\",'CFR - XML import'!$A186,1)-SEARCH(\">\",'CFR - XML import'!$A186,1)-2)))","v":0},{"$f":"IF(ISERROR(FIND(BK$3,'CFR - XML import'!$A186)),0,VALUE(MID('CFR - XML import'!$A186,SEARCH(\">\",'CFR - XML import'!$A186,1)+1,SEARCH(\"/\",'CFR - XML import'!$A186,1)-SEARCH(\">\",'CFR - XML import'!$A186,1)-2)))","v":0},{"$f":"IF(ISERROR(FIND(BL$3,'CFR - XML import'!$A186)),0,VALUE(MID('CFR - XML import'!$A186,SEARCH(\">\",'CFR - XML import'!$A186,1)+1,SEARCH(\"/\",'CFR - XML import'!$A186,1)-SEARCH(\">\",'CFR - XML import'!$A186,1)-2)))","v":0},{"$f":"IF(ISERROR(FIND(BM$3,'CFR - XML import'!$A186)),0,VALUE(MID('CFR - XML import'!$A186,SEARCH(\">\",'CFR - XML import'!$A186,1)+1,SEARCH(\"/\",'CFR - XML import'!$A186,1)-SEARCH(\">\",'CFR - XML import'!$A186,1)-2)))","v":0},{"$f":"IF(ISERROR(FIND(BN$3,'CFR - XML import'!$A186)),0,VALUE(MID('CFR - XML import'!$A186,SEARCH(\">\",'CFR - XML import'!$A186,1)+1,SEARCH(\"/\",'CFR - XML import'!$A186,1)-SEARCH(\">\",'CFR - XML import'!$A186,1)-2)))","v":0},{"$f":"IF(ISERROR(FIND(BO$3,'CFR - XML import'!$A186)),0,VALUE(MID('CFR - XML import'!$A186,SEARCH(\">\",'CFR - XML import'!$A186,1)+1,SEARCH(\"/\",'CFR - XML import'!$A186,1)-SEARCH(\">\",'CFR - XML import'!$A186,1)-2)))","v":0},{"$f":"IF(ISERROR(FIND(BP$3,'CFR - XML import'!$A186)),0,VALUE(MID('CFR - XML import'!$A186,SEARCH(\">\",'CFR - XML import'!$A186,1)+1,SEARCH(\"/\",'CFR - XML import'!$A186,1)-SEARCH(\">\",'CFR - XML import'!$A186,1)-2)))","v":0},{"$f":"IF(ISERROR(FIND(BQ$3,'CFR - XML import'!$A186)),0,VALUE(MID('CFR - XML import'!$A186,SEARCH(\">\",'CFR - XML import'!$A186,1)+1,SEARCH(\"/\",'CFR - XML import'!$A186,1)-SEARCH(\">\",'CFR - XML import'!$A186,1)-2)))","v":0},{"$f":"IF(ISERROR(FIND(BR$3,'CFR - XML import'!$A186)),0,VALUE(MID('CFR - XML import'!$A186,SEARCH(\">\",'CFR - XML import'!$A186,1)+1,SEARCH(\"/\",'CFR - XML import'!$A186,1)-SEARCH(\">\",'CFR - XML import'!$A186,1)-2)))","v":0},{"$f":"IF(ISERROR(FIND(BS$3,'CFR - XML import'!$A186)),0,VALUE(MID('CFR - XML import'!$A186,SEARCH(\">\",'CFR - XML import'!$A186,1)+1,SEARCH(\"/\",'CFR - XML import'!$A186,1)-SEARCH(\">\",'CFR - XML import'!$A186,1)-2)))","v":0},{"$f":"IF(ISERROR(FIND(BT$3,'CFR - XML import'!$A186)),0,VALUE(MID('CFR - XML import'!$A186,SEARCH(\">\",'CFR - XML import'!$A186,1)+1,SEARCH(\"/\",'CFR - XML import'!$A186,1)-SEARCH(\">\",'CFR - XML import'!$A186,1)-2)))","v":0},{"$f":"IF(ISERROR(FIND(BU$3,'CFR - XML import'!$A186)),0,VALUE(MID('CFR - XML import'!$A186,SEARCH(\">\",'CFR - XML import'!$A186,1)+1,SEARCH(\"/\",'CFR - XML import'!$A186,1)-SEARCH(\">\",'CFR - XML import'!$A186,1)-2)))","v":0},{"$f":"IF(ISERROR(FIND(BV$3,'CFR - XML import'!$A186)),0,VALUE(MID('CFR - XML import'!$A186,SEARCH(\">\",'CFR - XML import'!$A186,1)+1,SEARCH(\"/\",'CFR - XML import'!$A186,1)-SEARCH(\">\",'CFR - XML import'!$A186,1)-2)))","v":0},{"$f":"IF(ISERROR(FIND(BW$3,'CFR - XML import'!$A186)),0,VALUE(MID('CFR - XML import'!$A186,SEARCH(\">\",'CFR - XML import'!$A186,1)+1,SEARCH(\"/\",'CFR - XML import'!$A186,1)-SEARCH(\">\",'CFR - XML import'!$A186,1)-2)))","v":0},{"$f":"IF(ISERROR(FIND(BX$3,'CFR - XML import'!$A186)),0,VALUE(MID('CFR - XML import'!$A186,SEARCH(\">\",'CFR - XML import'!$A186,1)+1,SEARCH(\"/\",'CFR - XML import'!$A186,1)-SEARCH(\">\",'CFR - XML import'!$A186,1)-2)))","v":0},{"$f":"IF(ISERROR(FIND(BY$3,'CFR - XML import'!$A186)),0,VALUE(MID('CFR - XML import'!$A186,SEARCH(\">\",'CFR - XML import'!$A186,1)+1,SEARCH(\"/\",'CFR - XML import'!$A186,1)-SEARCH(\">\",'CFR - XML import'!$A186,1)-2)))","v":0},{"$f":"IF(ISERROR(FIND(BZ$3,'CFR - XML import'!$A186)),0,VALUE(MID('CFR - XML import'!$A186,SEARCH(\">\",'CFR - XML import'!$A186,1)+1,SEARCH(\"/\",'CFR - XML import'!$A186,1)-SEARCH(\">\",'CFR - XML import'!$A186,1)-2)))","v":0},null,null,null,null,null,null,{"$f":"IF(ISERROR(IF(MID('CFR - XML import'!$A186,LEN($CF$4)+1,LEN('CFR - XML import'!$A186)-(2*LEN($CF$4)+1))=\"RMMS\",1,IF(MID('CFR - XML import'!$A186,LEN(\"    <InputSystem>\")+1,LEN('CFR - XML import'!$A186)-(LEN(\"    <InputSystem>\")+LEN($CF$4)+1))=\"SIMS\",2,0))),0,IF(MID('CFR - XML import'!$A186,LEN($CF$4)+1,LEN('CFR - XML import'!$A186)-(2*LEN($CF$4)+1))=\"RMMS\",1,IF(MID('CFR - XML import'!$A186,LEN(\"    <InputSystem>\")+1,LEN('CFR - XML import'!$A186)-(LEN(\"    <InputSystem>\")+LEN($CF$4)+1))=\"SIMS\",2,0)))","v":0},{"$f":"IF(ISERROR(FIND(CH$3,'CFR - XML import'!$A186)),0,MID('CFR - XML import'!$A186,SEARCH(\">\",'CFR - XML import'!$A186,1)+1,SEARCH(\"/\",'CFR - XML import'!$A186,1)-SEARCH(\">\",'CFR - XML import'!$A186,1)-2))","v":0},{"$f":"IF(ISERROR(FIND(CI$3,'CFR - XML import'!$A186)),0,MID('CFR - XML import'!$A186,SEARCH(\">\",'CFR - XML import'!$A186,1)+1,SEARCH(\"/\",'CFR - XML import'!$A186,1)-SEARCH(\">\",'CFR - XML import'!$A186,1)-2))","v":0},{"$f":"IF(ISERROR(FIND(CJ$3,'CFR - XML import'!$A186)),0,MID('CFR - XML import'!$A186,SEARCH(\">\",'CFR - XML import'!$A186,1)+1,SEARCH(\"/\",'CFR - XML import'!$A186,1)-SEARCH(\">\",'CFR - XML import'!$A186,1)-2))","v":0},{"$f":"IF(ISERROR(FIND(CK$3,'CFR - XML import'!$A186)),0,MID('CFR - XML import'!$A186,SEARCH(\">\",'CFR - XML import'!$A186,1)+1,SEARCH(\"/\",'CFR - XML import'!$A186,1)-SEARCH(\">\",'CFR - XML import'!$A186,1)-2))","v":0},{"$f":"IF(ISERROR(FIND(CL$3,'CFR - XML import'!$A186)),0,MID('CFR - XML import'!$A186,SEARCH(\">\",'CFR - XML import'!$A186,1)+1,SEARCH(\"/\",'CFR - XML import'!$A186,1)-SEARCH(\">\",'CFR - XML import'!$A186,1)-2))","v":0}]
[{"$f":"IF(AND('CFR - XML import'!A187<>\"\",LEFT('CFR - XML import'!A187,1)<>\"<\",LEFT('CFR - XML import'!A187,3)<>\"  <\",LEFT('CFR - XML import'!A187,5)<>\"    <\",LEFT('CFR - XML import'!A187,7)<>\"      <\",LEFT('CFR - XML import'!A187,9)<>\"        <\",$B$1=\"SIMS\"),'CFR - XML import'!A187,IF(AND(LEFT('CFR - XML import'!A187,9)=\"<Details>\",$B$1=\"RM\"),'CFR - XML import'!A187,\"\"))","v":""},{"$f":"IF(ISERROR(FIND(B$3,'CFR - XML import'!$A187)),0,VALUE(MID('CFR - XML import'!$A187,SEARCH(\">\",'CFR - XML import'!$A187,1)+1,SEARCH(\"/\",'CFR - XML import'!$A187,1)-SEARCH(\">\",'CFR - XML import'!$A187,1)-2)))","v":0},null,{"$f":"IF(ISERROR(FIND(D$3,'CFR - XML import'!$A187)),0,MID('CFR - XML import'!$A187,SEARCH(\">\",'CFR - XML import'!$A187,1)+1,SEARCH(\"/\",'CFR - XML import'!$A187,1)-SEARCH(\">\",'CFR - XML import'!$A187,1)-2))","v":0},{"$f":"IF(ISERROR(FIND(E$3,'CFR - XML import'!$A187)),0,MID('CFR - XML import'!$A187,SEARCH(\">\",'CFR - XML import'!$A187,1)+1,SEARCH(\"/\",'CFR - XML import'!$A187,1)-SEARCH(\">\",'CFR - XML import'!$A187,1)-2))","v":0},{"$f":"IF($B$1=\"SIMS\",IF(ISERROR(FIND(F$3,'CFR - XML import'!$A187)),0,VALUE(MID('CFR - XML import'!$A187,15,10))),IF(ISERROR(FIND(F$3,'CFR - XML import'!$A187)),0,VALUE(MID('CFR - XML import'!$A187,11,10))))","v":"00:00:00"},{"$f":"IF(ISERROR(FIND(G$3,'CFR - XML import'!$A187)),0,VALUE(MID('CFR - XML import'!$A187,SEARCH(\">\",'CFR - XML import'!$A187,1)+1,SEARCH(\"/\",'CFR - XML import'!$A187,1)-SEARCH(\">\",'CFR - XML import'!$A187,1)-2)))","v":0},{"$f":"IF(ISERROR(FIND(H$3,'CFR - XML import'!$A187)),0,VALUE(MID('CFR - XML import'!$A187,SEARCH(\">\",'CFR - XML import'!$A187,1)+1,SEARCH(\"/\",'CFR - XML import'!$A187,1)-SEARCH(\">\",'CFR - XML import'!$A187,1)-2)))","v":0},{"$f":"IF(ISERROR(FIND(I$3,'CFR - XML import'!$A187)),0,VALUE(MID('CFR - XML import'!$A187,SEARCH(\">\",'CFR - XML import'!$A187,1)+1,SEARCH(\"/\",'CFR - XML import'!$A187,1)-SEARCH(\">\",'CFR - XML import'!$A187,1)-2)))","v":0},{"$f":"IF(ISERROR(FIND(J$3,'CFR - XML import'!$A187)),0,VALUE(MID('CFR - XML import'!$A187,SEARCH(\">\",'CFR - XML import'!$A187,1)+1,SEARCH(\"/\",'CFR - XML import'!$A187,1)-SEARCH(\">\",'CFR - XML import'!$A187,1)-2)))","v":0},{"$f":"IF(ISERROR(FIND(K$3,'CFR - XML import'!$A187)),0,VALUE(MID('CFR - XML import'!$A187,SEARCH(\">\",'CFR - XML import'!$A187,1)+1,SEARCH(\"/\",'CFR - XML import'!$A187,1)-SEARCH(\">\",'CFR - XML import'!$A187,1)-2)))","v":0},{"$f":"IF(ISERROR(FIND(L$3,'CFR - XML import'!$A187)),0,VALUE(MID('CFR - XML import'!$A187,SEARCH(\">\",'CFR - XML import'!$A187,1)+1,SEARCH(\"/\",'CFR - XML import'!$A187,1)-SEARCH(\">\",'CFR - XML import'!$A187,1)-2)))","v":0},{"$f":"IF(ISERROR(FIND(M$3,'CFR - XML import'!$A187)),0,VALUE(MID('CFR - XML import'!$A187,SEARCH(\">\",'CFR - XML import'!$A187,1)+1,SEARCH(\"/\",'CFR - XML import'!$A187,1)-SEARCH(\">\",'CFR - XML import'!$A187,1)-2)))","v":0},{"$f":"IF(ISERROR(FIND(N$3,'CFR - XML import'!$A187)),0,VALUE(MID('CFR - XML import'!$A187,SEARCH(\">\",'CFR - XML import'!$A187,1)+1,SEARCH(\"/\",'CFR - XML import'!$A187,1)-SEARCH(\">\",'CFR - XML import'!$A187,1)-2)))","v":0},{"$f":"IF(ISERROR(FIND(O$3,'CFR - XML import'!$A187)),0,VALUE(MID('CFR - XML import'!$A187,SEARCH(\">\",'CFR - XML import'!$A187,1)+1,SEARCH(\"/\",'CFR - XML import'!$A187,1)-SEARCH(\">\",'CFR - XML import'!$A187,1)-2)))","v":0},{"$f":"IF(ISERROR(FIND(P$3,'CFR - XML import'!$A187)),0,VALUE(MID('CFR - XML import'!$A187,SEARCH(\">\",'CFR - XML import'!$A187,1)+1,SEARCH(\"/\",'CFR - XML import'!$A187,1)-SEARCH(\">\",'CFR - XML import'!$A187,1)-2)))","v":0},{"$f":"IF(ISERROR(FIND(Q$3,'CFR - XML import'!$A187)),0,VALUE(MID('CFR - XML import'!$A187,SEARCH(\">\",'CFR - XML import'!$A187,1)+1,SEARCH(\"/\",'CFR - XML import'!$A187,1)-SEARCH(\">\",'CFR - XML import'!$A187,1)-2)))","v":0},{"$f":"IF(ISERROR(FIND(R$3,'CFR - XML import'!$A187)),0,VALUE(MID('CFR - XML import'!$A187,SEARCH(\">\",'CFR - XML import'!$A187,1)+1,SEARCH(\"/\",'CFR - XML import'!$A187,1)-SEARCH(\">\",'CFR - XML import'!$A187,1)-2)))","v":0},{"$f":"IF(ISERROR(FIND(S$3,'CFR - XML import'!$A187)),0,VALUE(MID('CFR - XML import'!$A187,SEARCH(\">\",'CFR - XML import'!$A187,1)+1,SEARCH(\"/\",'CFR - XML import'!$A187,1)-SEARCH(\">\",'CFR - XML import'!$A187,1)-2)))","v":0},{"$f":"IF(ISERROR(FIND(T$3,'CFR - XML import'!$A187)),0,VALUE(MID('CFR - XML import'!$A187,SEARCH(\">\",'CFR - XML import'!$A187,1)+1,SEARCH(\"/\",'CFR - XML import'!$A187,1)-SEARCH(\">\",'CFR - XML import'!$A187,1)-2)))","v":0},{"$f":"IF(ISERROR(FIND(U$3,'CFR - XML import'!$A187)),0,VALUE(MID('CFR - XML import'!$A187,SEARCH(\">\",'CFR - XML import'!$A187,1)+1,SEARCH(\"/\",'CFR - XML import'!$A187,1)-SEARCH(\">\",'CFR - XML import'!$A187,1)-2)))","v":0},{"$f":"IF(ISERROR(FIND(V$3,'CFR - XML import'!$A187)),0,VALUE(MID('CFR - XML import'!$A187,SEARCH(\">\",'CFR - XML import'!$A187,1)+1,SEARCH(\"/\",'CFR - XML import'!$A187,1)-SEARCH(\">\",'CFR - XML import'!$A187,1)-2)))","v":0},{"$f":"IF(ISERROR(FIND(W$3,'CFR - XML import'!$A187)),0,VALUE(MID('CFR - XML import'!$A187,SEARCH(\">\",'CFR - XML import'!$A187,1)+1,SEARCH(\"/\",'CFR - XML import'!$A187,1)-SEARCH(\">\",'CFR - XML import'!$A187,1)-2)))","v":0},null,{"$f":"IF(ISERROR(FIND(Y$3,'CFR - XML import'!$A187)),0,VALUE(MID('CFR - XML import'!$A187,SEARCH(\">\",'CFR - XML import'!$A187,1)+1,SEARCH(\"/\",'CFR - XML import'!$A187,1)-SEARCH(\">\",'CFR - XML import'!$A187,1)-2)))","v":0},{"$f":"IF(ISERROR(FIND(Z$3,'CFR - XML import'!$A187)),0,VALUE(MID('CFR - XML import'!$A187,SEARCH(\">\",'CFR - XML import'!$A187,1)+1,SEARCH(\"/\",'CFR - XML import'!$A187,1)-SEARCH(\">\",'CFR - XML import'!$A187,1)-2)))","v":0},{"$f":"IF(ISERROR(FIND(AA$3,'CFR - XML import'!$A187)),0,VALUE(MID('CFR - XML import'!$A187,SEARCH(\">\",'CFR - XML import'!$A187,1)+1,SEARCH(\"/\",'CFR - XML import'!$A187,1)-SEARCH(\">\",'CFR - XML import'!$A187,1)-2)))","v":0},{"$f":"IF(ISERROR(FIND(AB$3,'CFR - XML import'!$A187)),0,VALUE(MID('CFR - XML import'!$A187,SEARCH(\">\",'CFR - XML import'!$A187,1)+1,SEARCH(\"/\",'CFR - XML import'!$A187,1)-SEARCH(\">\",'CFR - XML import'!$A187,1)-2)))","v":0},{"$f":"IF(ISERROR(FIND(AC$3,'CFR - XML import'!$A187)),0,VALUE(MID('CFR - XML import'!$A187,SEARCH(\">\",'CFR - XML import'!$A187,1)+1,SEARCH(\"/\",'CFR - XML import'!$A187,1)-SEARCH(\">\",'CFR - XML import'!$A187,1)-2)))","v":0},{"$f":"IF(ISERROR(FIND(AD$3,'CFR - XML import'!$A187)),0,VALUE(MID('CFR - XML import'!$A187,SEARCH(\">\",'CFR - XML import'!$A187,1)+1,SEARCH(\"/\",'CFR - XML import'!$A187,1)-SEARCH(\">\",'CFR - XML import'!$A187,1)-2)))","v":0},{"$f":"IF(ISERROR(FIND(AE$3,'CFR - XML import'!$A187)),0,VALUE(MID('CFR - XML import'!$A187,SEARCH(\">\",'CFR - XML import'!$A187,1)+1,SEARCH(\"/\",'CFR - XML import'!$A187,1)-SEARCH(\">\",'CFR - XML import'!$A187,1)-2)))","v":0},{"$f":"IF(ISERROR(FIND(AF$3,'CFR - XML import'!$A187)),0,VALUE(MID('CFR - XML import'!$A187,SEARCH(\">\",'CFR - XML import'!$A187,1)+1,SEARCH(\"/\",'CFR - XML import'!$A187,1)-SEARCH(\">\",'CFR - XML import'!$A187,1)-2)))","v":0},{"$f":"IF(ISERROR(FIND(AG$3,'CFR - XML import'!$A187)),0,VALUE(MID('CFR - XML import'!$A187,SEARCH(\">\",'CFR - XML import'!$A187,1)+1,SEARCH(\"/\",'CFR - XML import'!$A187,1)-SEARCH(\">\",'CFR - XML import'!$A187,1)-2)))","v":0},{"$f":"IF(ISERROR(FIND(AH$3,'CFR - XML import'!$A187)),0,VALUE(MID('CFR - XML import'!$A187,SEARCH(\">\",'CFR - XML import'!$A187,1)+1,SEARCH(\"/\",'CFR - XML import'!$A187,1)-SEARCH(\">\",'CFR - XML import'!$A187,1)-2)))","v":0},{"$f":"IF(ISERROR(FIND(AI$3,'CFR - XML import'!$A187)),0,VALUE(MID('CFR - XML import'!$A187,SEARCH(\">\",'CFR - XML import'!$A187,1)+1,SEARCH(\"/\",'CFR - XML import'!$A187,1)-SEARCH(\">\",'CFR - XML import'!$A187,1)-2)))","v":0},{"$f":"IF(ISERROR(FIND(AJ$3,'CFR - XML import'!$A187)),0,VALUE(MID('CFR - XML import'!$A187,SEARCH(\">\",'CFR - XML import'!$A187,1)+1,SEARCH(\"/\",'CFR - XML import'!$A187,1)-SEARCH(\">\",'CFR - XML import'!$A187,1)-2)))","v":0},{"$f":"IF(ISERROR(FIND(AK$3,'CFR - XML import'!$A187)),0,VALUE(MID('CFR - XML import'!$A187,SEARCH(\">\",'CFR - XML import'!$A187,1)+1,SEARCH(\"/\",'CFR - XML import'!$A187,1)-SEARCH(\">\",'CFR - XML import'!$A187,1)-2)))","v":0},{"$f":"IF(ISERROR(FIND(AL$3,'CFR - XML import'!$A187)),0,VALUE(MID('CFR - XML import'!$A187,SEARCH(\">\",'CFR - XML import'!$A187,1)+1,SEARCH(\"/\",'CFR - XML import'!$A187,1)-SEARCH(\">\",'CFR - XML import'!$A187,1)-2)))","v":0},{"$f":"IF(ISERROR(FIND(AM$3,'CFR - XML import'!$A187)),0,VALUE(MID('CFR - XML import'!$A187,SEARCH(\">\",'CFR - XML import'!$A187,1)+1,SEARCH(\"/\",'CFR - XML import'!$A187,1)-SEARCH(\">\",'CFR - XML import'!$A187,1)-2)))","v":0},{"$f":"IF(ISERROR(FIND(AN$3,'CFR - XML import'!$A187)),0,VALUE(MID('CFR - XML import'!$A187,SEARCH(\">\",'CFR - XML import'!$A187,1)+1,SEARCH(\"/\",'CFR - XML import'!$A187,1)-SEARCH(\">\",'CFR - XML import'!$A187,1)-2)))","v":0},{"$f":"IF(ISERROR(FIND(AO$3,'CFR - XML import'!$A187)),0,VALUE(MID('CFR - XML import'!$A187,SEARCH(\">\",'CFR - XML import'!$A187,1)+1,SEARCH(\"/\",'CFR - XML import'!$A187,1)-SEARCH(\">\",'CFR - XML import'!$A187,1)-2)))","v":0},{"$f":"IF(ISERROR(FIND(AP$3,'CFR - XML import'!$A187)),0,VALUE(MID('CFR - XML import'!$A187,SEARCH(\">\",'CFR - XML import'!$A187,1)+1,SEARCH(\"/\",'CFR - XML import'!$A187,1)-SEARCH(\">\",'CFR - XML import'!$A187,1)-2)))","v":0},{"$f":"IF(ISERROR(FIND(AQ$3,'CFR - XML import'!$A187)),0,VALUE(MID('CFR - XML import'!$A187,SEARCH(\">\",'CFR - XML import'!$A187,1)+1,SEARCH(\"/\",'CFR - XML import'!$A187,1)-SEARCH(\">\",'CFR - XML import'!$A187,1)-2)))","v":0},{"$f":"IF(ISERROR(FIND(AR$3,'CFR - XML import'!$A187)),0,VALUE(MID('CFR - XML import'!$A187,SEARCH(\">\",'CFR - XML import'!$A187,1)+1,SEARCH(\"/\",'CFR - XML import'!$A187,1)-SEARCH(\">\",'CFR - XML import'!$A187,1)-2)))","v":0},{"$f":"IF(ISERROR(FIND(AS$3,'CFR - XML import'!$A187)),0,VALUE(MID('CFR - XML import'!$A187,SEARCH(\">\",'CFR - XML import'!$A187,1)+1,SEARCH(\"/\",'CFR - XML import'!$A187,1)-SEARCH(\">\",'CFR - XML import'!$A187,1)-2)))","v":0},{"$f":"IF(ISERROR(FIND(AT$3,'CFR - XML import'!$A187)),0,VALUE(MID('CFR - XML import'!$A187,SEARCH(\">\",'CFR - XML import'!$A187,1)+1,SEARCH(\"/\",'CFR - XML import'!$A187,1)-SEARCH(\">\",'CFR - XML import'!$A187,1)-2)))","v":0},{"$f":"IF(ISERROR(FIND(AU$3,'CFR - XML import'!$A187)),0,VALUE(MID('CFR - XML import'!$A187,SEARCH(\">\",'CFR - XML import'!$A187,1)+1,SEARCH(\"/\",'CFR - XML import'!$A187,1)-SEARCH(\">\",'CFR - XML import'!$A187,1)-2)))","v":0},{"$f":"IF(ISERROR(FIND(AV$3,'CFR - XML import'!$A187)),0,VALUE(MID('CFR - XML import'!$A187,SEARCH(\">\",'CFR - XML import'!$A187,1)+1,SEARCH(\"/\",'CFR - XML import'!$A187,1)-SEARCH(\">\",'CFR - XML import'!$A187,1)-2)))","v":0},{"$f":"IF(ISERROR(FIND(AW$3,'CFR - XML import'!$A187)),0,VALUE(MID('CFR - XML import'!$A187,SEARCH(\">\",'CFR - XML import'!$A187,1)+1,SEARCH(\"/\",'CFR - XML import'!$A187,1)-SEARCH(\">\",'CFR - XML import'!$A187,1)-2)))","v":0},{"$f":"IF(ISERROR(FIND(AX$3,'CFR - XML import'!$A187)),0,VALUE(MID('CFR - XML import'!$A187,SEARCH(\">\",'CFR - XML import'!$A187,1)+1,SEARCH(\"/\",'CFR - XML import'!$A187,1)-SEARCH(\">\",'CFR - XML import'!$A187,1)-2)))","v":0},{"$f":"IF(ISERROR(FIND(AY$3,'CFR - XML import'!$A187)),0,VALUE(MID('CFR - XML import'!$A187,SEARCH(\">\",'CFR - XML import'!$A187,1)+1,SEARCH(\"/\",'CFR - XML import'!$A187,1)-SEARCH(\">\",'CFR - XML import'!$A187,1)-2)))","v":0},{"$f":"IF(ISERROR(FIND(AZ$3,'CFR - XML import'!$A187)),0,VALUE(MID('CFR - XML import'!$A187,SEARCH(\">\",'CFR - XML import'!$A187,1)+1,SEARCH(\"/\",'CFR - XML import'!$A187,1)-SEARCH(\">\",'CFR - XML import'!$A187,1)-2)))","v":0},{"$f":"IF(ISERROR(FIND(BA$3,'CFR - XML import'!$A187)),0,VALUE(MID('CFR - XML import'!$A187,SEARCH(\">\",'CFR - XML import'!$A187,1)+1,SEARCH(\"/\",'CFR - XML import'!$A187,1)-SEARCH(\">\",'CFR - XML import'!$A187,1)-2)))","v":0},{"$f":"IF(ISERROR(FIND(BB$3,'CFR - XML import'!$A187)),0,VALUE(MID('CFR - XML import'!$A187,SEARCH(\">\",'CFR - XML import'!$A187,1)+1,SEARCH(\"/\",'CFR - XML import'!$A187,1)-SEARCH(\">\",'CFR - XML import'!$A187,1)-2)))","v":0},{"$f":"IF(ISERROR(FIND(BC$3,'CFR - XML import'!$A187)),0,VALUE(MID('CFR - XML import'!$A187,SEARCH(\">\",'CFR - XML import'!$A187,1)+1,SEARCH(\"/\",'CFR - XML import'!$A187,1)-SEARCH(\">\",'CFR - XML import'!$A187,1)-2)))","v":0},{"$f":"IF(ISERROR(FIND(BD$3,'CFR - XML import'!$A187)),0,VALUE(MID('CFR - XML import'!$A187,SEARCH(\">\",'CFR - XML import'!$A187,1)+1,SEARCH(\"/\",'CFR - XML import'!$A187,1)-SEARCH(\">\",'CFR - XML import'!$A187,1)-2)))","v":0},{"$f":"IF(ISERROR(FIND(BE$3,'CFR - XML import'!$A187)),0,VALUE(MID('CFR - XML import'!$A187,SEARCH(\">\",'CFR - XML import'!$A187,1)+1,SEARCH(\"/\",'CFR - XML import'!$A187,1)-SEARCH(\">\",'CFR - XML import'!$A187,1)-2)))","v":0},{"$f":"IF(ISERROR(FIND(BF$3,'CFR - XML import'!$A187)),0,VALUE(MID('CFR - XML import'!$A187,SEARCH(\">\",'CFR - XML import'!$A187,1)+1,SEARCH(\"/\",'CFR - XML import'!$A187,1)-SEARCH(\">\",'CFR - XML import'!$A187,1)-2)))","v":0},{"$f":"IF(ISERROR(FIND(BG$3,'CFR - XML import'!$A187)),0,VALUE(MID('CFR - XML import'!$A187,SEARCH(\">\",'CFR - XML import'!$A187,1)+1,SEARCH(\"/\",'CFR - XML import'!$A187,1)-SEARCH(\">\",'CFR - XML import'!$A187,1)-2)))","v":0},{"$f":"IF(ISERROR(FIND(BH$3,'CFR - XML import'!$A187)),0,VALUE(MID('CFR - XML import'!$A187,SEARCH(\">\",'CFR - XML import'!$A187,1)+1,SEARCH(\"/\",'CFR - XML import'!$A187,1)-SEARCH(\">\",'CFR - XML import'!$A187,1)-2)))","v":0},{"$f":"IF(ISERROR(FIND(BI$3,'CFR - XML import'!$A187)),0,VALUE(MID('CFR - XML import'!$A187,SEARCH(\">\",'CFR - XML import'!$A187,1)+1,SEARCH(\"/\",'CFR - XML import'!$A187,1)-SEARCH(\">\",'CFR - XML import'!$A187,1)-2)))","v":0},{"$f":"IF(ISERROR(FIND(BJ$3,'CFR - XML import'!$A187)),0,VALUE(MID('CFR - XML import'!$A187,SEARCH(\">\",'CFR - XML import'!$A187,1)+1,SEARCH(\"/\",'CFR - XML import'!$A187,1)-SEARCH(\">\",'CFR - XML import'!$A187,1)-2)))","v":0},{"$f":"IF(ISERROR(FIND(BK$3,'CFR - XML import'!$A187)),0,VALUE(MID('CFR - XML import'!$A187,SEARCH(\">\",'CFR - XML import'!$A187,1)+1,SEARCH(\"/\",'CFR - XML import'!$A187,1)-SEARCH(\">\",'CFR - XML import'!$A187,1)-2)))","v":0},{"$f":"IF(ISERROR(FIND(BL$3,'CFR - XML import'!$A187)),0,VALUE(MID('CFR - XML import'!$A187,SEARCH(\">\",'CFR - XML import'!$A187,1)+1,SEARCH(\"/\",'CFR - XML import'!$A187,1)-SEARCH(\">\",'CFR - XML import'!$A187,1)-2)))","v":0},{"$f":"IF(ISERROR(FIND(BM$3,'CFR - XML import'!$A187)),0,VALUE(MID('CFR - XML import'!$A187,SEARCH(\">\",'CFR - XML import'!$A187,1)+1,SEARCH(\"/\",'CFR - XML import'!$A187,1)-SEARCH(\">\",'CFR - XML import'!$A187,1)-2)))","v":0},{"$f":"IF(ISERROR(FIND(BN$3,'CFR - XML import'!$A187)),0,VALUE(MID('CFR - XML import'!$A187,SEARCH(\">\",'CFR - XML import'!$A187,1)+1,SEARCH(\"/\",'CFR - XML import'!$A187,1)-SEARCH(\">\",'CFR - XML import'!$A187,1)-2)))","v":0},{"$f":"IF(ISERROR(FIND(BO$3,'CFR - XML import'!$A187)),0,VALUE(MID('CFR - XML import'!$A187,SEARCH(\">\",'CFR - XML import'!$A187,1)+1,SEARCH(\"/\",'CFR - XML import'!$A187,1)-SEARCH(\">\",'CFR - XML import'!$A187,1)-2)))","v":0},{"$f":"IF(ISERROR(FIND(BP$3,'CFR - XML import'!$A187)),0,VALUE(MID('CFR - XML import'!$A187,SEARCH(\">\",'CFR - XML import'!$A187,1)+1,SEARCH(\"/\",'CFR - XML import'!$A187,1)-SEARCH(\">\",'CFR - XML import'!$A187,1)-2)))","v":0},{"$f":"IF(ISERROR(FIND(BQ$3,'CFR - XML import'!$A187)),0,VALUE(MID('CFR - XML import'!$A187,SEARCH(\">\",'CFR - XML import'!$A187,1)+1,SEARCH(\"/\",'CFR - XML import'!$A187,1)-SEARCH(\">\",'CFR - XML import'!$A187,1)-2)))","v":0},{"$f":"IF(ISERROR(FIND(BR$3,'CFR - XML import'!$A187)),0,VALUE(MID('CFR - XML import'!$A187,SEARCH(\">\",'CFR - XML import'!$A187,1)+1,SEARCH(\"/\",'CFR - XML import'!$A187,1)-SEARCH(\">\",'CFR - XML import'!$A187,1)-2)))","v":0},{"$f":"IF(ISERROR(FIND(BS$3,'CFR - XML import'!$A187)),0,VALUE(MID('CFR - XML import'!$A187,SEARCH(\">\",'CFR - XML import'!$A187,1)+1,SEARCH(\"/\",'CFR - XML import'!$A187,1)-SEARCH(\">\",'CFR - XML import'!$A187,1)-2)))","v":0},{"$f":"IF(ISERROR(FIND(BT$3,'CFR - XML import'!$A187)),0,VALUE(MID('CFR - XML import'!$A187,SEARCH(\">\",'CFR - XML import'!$A187,1)+1,SEARCH(\"/\",'CFR - XML import'!$A187,1)-SEARCH(\">\",'CFR - XML import'!$A187,1)-2)))","v":0},{"$f":"IF(ISERROR(FIND(BU$3,'CFR - XML import'!$A187)),0,VALUE(MID('CFR - XML import'!$A187,SEARCH(\">\",'CFR - XML import'!$A187,1)+1,SEARCH(\"/\",'CFR - XML import'!$A187,1)-SEARCH(\">\",'CFR - XML import'!$A187,1)-2)))","v":0},{"$f":"IF(ISERROR(FIND(BV$3,'CFR - XML import'!$A187)),0,VALUE(MID('CFR - XML import'!$A187,SEARCH(\">\",'CFR - XML import'!$A187,1)+1,SEARCH(\"/\",'CFR - XML import'!$A187,1)-SEARCH(\">\",'CFR - XML import'!$A187,1)-2)))","v":0},{"$f":"IF(ISERROR(FIND(BW$3,'CFR - XML import'!$A187)),0,VALUE(MID('CFR - XML import'!$A187,SEARCH(\">\",'CFR - XML import'!$A187,1)+1,SEARCH(\"/\",'CFR - XML import'!$A187,1)-SEARCH(\">\",'CFR - XML import'!$A187,1)-2)))","v":0},{"$f":"IF(ISERROR(FIND(BX$3,'CFR - XML import'!$A187)),0,VALUE(MID('CFR - XML import'!$A187,SEARCH(\">\",'CFR - XML import'!$A187,1)+1,SEARCH(\"/\",'CFR - XML import'!$A187,1)-SEARCH(\">\",'CFR - XML import'!$A187,1)-2)))","v":0},{"$f":"IF(ISERROR(FIND(BY$3,'CFR - XML import'!$A187)),0,VALUE(MID('CFR - XML import'!$A187,SEARCH(\">\",'CFR - XML import'!$A187,1)+1,SEARCH(\"/\",'CFR - XML import'!$A187,1)-SEARCH(\">\",'CFR - XML import'!$A187,1)-2)))","v":0},{"$f":"IF(ISERROR(FIND(BZ$3,'CFR - XML import'!$A187)),0,VALUE(MID('CFR - XML import'!$A187,SEARCH(\">\",'CFR - XML import'!$A187,1)+1,SEARCH(\"/\",'CFR - XML import'!$A187,1)-SEARCH(\">\",'CFR - XML import'!$A187,1)-2)))","v":0},null,null,null,null,null,null,{"$f":"IF(ISERROR(IF(MID('CFR - XML import'!$A187,LEN($CF$4)+1,LEN('CFR - XML import'!$A187)-(2*LEN($CF$4)+1))=\"RMMS\",1,IF(MID('CFR - XML import'!$A187,LEN(\"    <InputSystem>\")+1,LEN('CFR - XML import'!$A187)-(LEN(\"    <InputSystem>\")+LEN($CF$4)+1))=\"SIMS\",2,0))),0,IF(MID('CFR - XML import'!$A187,LEN($CF$4)+1,LEN('CFR - XML import'!$A187)-(2*LEN($CF$4)+1))=\"RMMS\",1,IF(MID('CFR - XML import'!$A187,LEN(\"    <InputSystem>\")+1,LEN('CFR - XML import'!$A187)-(LEN(\"    <InputSystem>\")+LEN($CF$4)+1))=\"SIMS\",2,0)))","v":0},{"$f":"IF(ISERROR(FIND(CH$3,'CFR - XML import'!$A187)),0,MID('CFR - XML import'!$A187,SEARCH(\">\",'CFR - XML import'!$A187,1)+1,SEARCH(\"/\",'CFR - XML import'!$A187,1)-SEARCH(\">\",'CFR - XML import'!$A187,1)-2))","v":0},{"$f":"IF(ISERROR(FIND(CI$3,'CFR - XML import'!$A187)),0,MID('CFR - XML import'!$A187,SEARCH(\">\",'CFR - XML import'!$A187,1)+1,SEARCH(\"/\",'CFR - XML import'!$A187,1)-SEARCH(\">\",'CFR - XML import'!$A187,1)-2))","v":0},{"$f":"IF(ISERROR(FIND(CJ$3,'CFR - XML import'!$A187)),0,MID('CFR - XML import'!$A187,SEARCH(\">\",'CFR - XML import'!$A187,1)+1,SEARCH(\"/\",'CFR - XML import'!$A187,1)-SEARCH(\">\",'CFR - XML import'!$A187,1)-2))","v":0},{"$f":"IF(ISERROR(FIND(CK$3,'CFR - XML import'!$A187)),0,MID('CFR - XML import'!$A187,SEARCH(\">\",'CFR - XML import'!$A187,1)+1,SEARCH(\"/\",'CFR - XML import'!$A187,1)-SEARCH(\">\",'CFR - XML import'!$A187,1)-2))","v":0},{"$f":"IF(ISERROR(FIND(CL$3,'CFR - XML import'!$A187)),0,MID('CFR - XML import'!$A187,SEARCH(\">\",'CFR - XML import'!$A187,1)+1,SEARCH(\"/\",'CFR - XML import'!$A187,1)-SEARCH(\">\",'CFR - XML import'!$A187,1)-2))","v":0}]
[{"$f":"IF(AND('CFR - XML import'!A188<>\"\",LEFT('CFR - XML import'!A188,1)<>\"<\",LEFT('CFR - XML import'!A188,3)<>\"  <\",LEFT('CFR - XML import'!A188,5)<>\"    <\",LEFT('CFR - XML import'!A188,7)<>\"      <\",LEFT('CFR - XML import'!A188,9)<>\"        <\",$B$1=\"SIMS\"),'CFR - XML import'!A188,IF(AND(LEFT('CFR - XML import'!A188,9)=\"<Details>\",$B$1=\"RM\"),'CFR - XML import'!A188,\"\"))","v":""},{"$f":"IF(ISERROR(FIND(B$3,'CFR - XML import'!$A188)),0,VALUE(MID('CFR - XML import'!$A188,SEARCH(\">\",'CFR - XML import'!$A188,1)+1,SEARCH(\"/\",'CFR - XML import'!$A188,1)-SEARCH(\">\",'CFR - XML import'!$A188,1)-2)))","v":0},null,{"$f":"IF(ISERROR(FIND(D$3,'CFR - XML import'!$A188)),0,MID('CFR - XML import'!$A188,SEARCH(\">\",'CFR - XML import'!$A188,1)+1,SEARCH(\"/\",'CFR - XML import'!$A188,1)-SEARCH(\">\",'CFR - XML import'!$A188,1)-2))","v":0},{"$f":"IF(ISERROR(FIND(E$3,'CFR - XML import'!$A188)),0,MID('CFR - XML import'!$A188,SEARCH(\">\",'CFR - XML import'!$A188,1)+1,SEARCH(\"/\",'CFR - XML import'!$A188,1)-SEARCH(\">\",'CFR - XML import'!$A188,1)-2))","v":0},{"$f":"IF($B$1=\"SIMS\",IF(ISERROR(FIND(F$3,'CFR - XML import'!$A188)),0,VALUE(MID('CFR - XML import'!$A188,15,10))),IF(ISERROR(FIND(F$3,'CFR - XML import'!$A188)),0,VALUE(MID('CFR - XML import'!$A188,11,10))))","v":"00:00:00"},{"$f":"IF(ISERROR(FIND(G$3,'CFR - XML import'!$A188)),0,VALUE(MID('CFR - XML import'!$A188,SEARCH(\">\",'CFR - XML import'!$A188,1)+1,SEARCH(\"/\",'CFR - XML import'!$A188,1)-SEARCH(\">\",'CFR - XML import'!$A188,1)-2)))","v":0},{"$f":"IF(ISERROR(FIND(H$3,'CFR - XML import'!$A188)),0,VALUE(MID('CFR - XML import'!$A188,SEARCH(\">\",'CFR - XML import'!$A188,1)+1,SEARCH(\"/\",'CFR - XML import'!$A188,1)-SEARCH(\">\",'CFR - XML import'!$A188,1)-2)))","v":0},{"$f":"IF(ISERROR(FIND(I$3,'CFR - XML import'!$A188)),0,VALUE(MID('CFR - XML import'!$A188,SEARCH(\">\",'CFR - XML import'!$A188,1)+1,SEARCH(\"/\",'CFR - XML import'!$A188,1)-SEARCH(\">\",'CFR - XML import'!$A188,1)-2)))","v":0},{"$f":"IF(ISERROR(FIND(J$3,'CFR - XML import'!$A188)),0,VALUE(MID('CFR - XML import'!$A188,SEARCH(\">\",'CFR - XML import'!$A188,1)+1,SEARCH(\"/\",'CFR - XML import'!$A188,1)-SEARCH(\">\",'CFR - XML import'!$A188,1)-2)))","v":0},{"$f":"IF(ISERROR(FIND(K$3,'CFR - XML import'!$A188)),0,VALUE(MID('CFR - XML import'!$A188,SEARCH(\">\",'CFR - XML import'!$A188,1)+1,SEARCH(\"/\",'CFR - XML import'!$A188,1)-SEARCH(\">\",'CFR - XML import'!$A188,1)-2)))","v":0},{"$f":"IF(ISERROR(FIND(L$3,'CFR - XML import'!$A188)),0,VALUE(MID('CFR - XML import'!$A188,SEARCH(\">\",'CFR - XML import'!$A188,1)+1,SEARCH(\"/\",'CFR - XML import'!$A188,1)-SEARCH(\">\",'CFR - XML import'!$A188,1)-2)))","v":0},{"$f":"IF(ISERROR(FIND(M$3,'CFR - XML import'!$A188)),0,VALUE(MID('CFR - XML import'!$A188,SEARCH(\">\",'CFR - XML import'!$A188,1)+1,SEARCH(\"/\",'CFR - XML import'!$A188,1)-SEARCH(\">\",'CFR - XML import'!$A188,1)-2)))","v":0},{"$f":"IF(ISERROR(FIND(N$3,'CFR - XML import'!$A188)),0,VALUE(MID('CFR - XML import'!$A188,SEARCH(\">\",'CFR - XML import'!$A188,1)+1,SEARCH(\"/\",'CFR - XML import'!$A188,1)-SEARCH(\">\",'CFR - XML import'!$A188,1)-2)))","v":0},{"$f":"IF(ISERROR(FIND(O$3,'CFR - XML import'!$A188)),0,VALUE(MID('CFR - XML import'!$A188,SEARCH(\">\",'CFR - XML import'!$A188,1)+1,SEARCH(\"/\",'CFR - XML import'!$A188,1)-SEARCH(\">\",'CFR - XML import'!$A188,1)-2)))","v":0},{"$f":"IF(ISERROR(FIND(P$3,'CFR - XML import'!$A188)),0,VALUE(MID('CFR - XML import'!$A188,SEARCH(\">\",'CFR - XML import'!$A188,1)+1,SEARCH(\"/\",'CFR - XML import'!$A188,1)-SEARCH(\">\",'CFR - XML import'!$A188,1)-2)))","v":0},{"$f":"IF(ISERROR(FIND(Q$3,'CFR - XML import'!$A188)),0,VALUE(MID('CFR - XML import'!$A188,SEARCH(\">\",'CFR - XML import'!$A188,1)+1,SEARCH(\"/\",'CFR - XML import'!$A188,1)-SEARCH(\">\",'CFR - XML import'!$A188,1)-2)))","v":0},{"$f":"IF(ISERROR(FIND(R$3,'CFR - XML import'!$A188)),0,VALUE(MID('CFR - XML import'!$A188,SEARCH(\">\",'CFR - XML import'!$A188,1)+1,SEARCH(\"/\",'CFR - XML import'!$A188,1)-SEARCH(\">\",'CFR - XML import'!$A188,1)-2)))","v":0},{"$f":"IF(ISERROR(FIND(S$3,'CFR - XML import'!$A188)),0,VALUE(MID('CFR - XML import'!$A188,SEARCH(\">\",'CFR - XML import'!$A188,1)+1,SEARCH(\"/\",'CFR - XML import'!$A188,1)-SEARCH(\">\",'CFR - XML import'!$A188,1)-2)))","v":0},{"$f":"IF(ISERROR(FIND(T$3,'CFR - XML import'!$A188)),0,VALUE(MID('CFR - XML import'!$A188,SEARCH(\">\",'CFR - XML import'!$A188,1)+1,SEARCH(\"/\",'CFR - XML import'!$A188,1)-SEARCH(\">\",'CFR - XML import'!$A188,1)-2)))","v":0},{"$f":"IF(ISERROR(FIND(U$3,'CFR - XML import'!$A188)),0,VALUE(MID('CFR - XML import'!$A188,SEARCH(\">\",'CFR - XML import'!$A188,1)+1,SEARCH(\"/\",'CFR - XML import'!$A188,1)-SEARCH(\">\",'CFR - XML import'!$A188,1)-2)))","v":0},{"$f":"IF(ISERROR(FIND(V$3,'CFR - XML import'!$A188)),0,VALUE(MID('CFR - XML import'!$A188,SEARCH(\">\",'CFR - XML import'!$A188,1)+1,SEARCH(\"/\",'CFR - XML import'!$A188,1)-SEARCH(\">\",'CFR - XML import'!$A188,1)-2)))","v":0},{"$f":"IF(ISERROR(FIND(W$3,'CFR - XML import'!$A188)),0,VALUE(MID('CFR - XML import'!$A188,SEARCH(\">\",'CFR - XML import'!$A188,1)+1,SEARCH(\"/\",'CFR - XML import'!$A188,1)-SEARCH(\">\",'CFR - XML import'!$A188,1)-2)))","v":0},null,{"$f":"IF(ISERROR(FIND(Y$3,'CFR - XML import'!$A188)),0,VALUE(MID('CFR - XML import'!$A188,SEARCH(\">\",'CFR - XML import'!$A188,1)+1,SEARCH(\"/\",'CFR - XML import'!$A188,1)-SEARCH(\">\",'CFR - XML import'!$A188,1)-2)))","v":0},{"$f":"IF(ISERROR(FIND(Z$3,'CFR - XML import'!$A188)),0,VALUE(MID('CFR - XML import'!$A188,SEARCH(\">\",'CFR - XML import'!$A188,1)+1,SEARCH(\"/\",'CFR - XML import'!$A188,1)-SEARCH(\">\",'CFR - XML import'!$A188,1)-2)))","v":0},{"$f":"IF(ISERROR(FIND(AA$3,'CFR - XML import'!$A188)),0,VALUE(MID('CFR - XML import'!$A188,SEARCH(\">\",'CFR - XML import'!$A188,1)+1,SEARCH(\"/\",'CFR - XML import'!$A188,1)-SEARCH(\">\",'CFR - XML import'!$A188,1)-2)))","v":0},{"$f":"IF(ISERROR(FIND(AB$3,'CFR - XML import'!$A188)),0,VALUE(MID('CFR - XML import'!$A188,SEARCH(\">\",'CFR - XML import'!$A188,1)+1,SEARCH(\"/\",'CFR - XML import'!$A188,1)-SEARCH(\">\",'CFR - XML import'!$A188,1)-2)))","v":0},{"$f":"IF(ISERROR(FIND(AC$3,'CFR - XML import'!$A188)),0,VALUE(MID('CFR - XML import'!$A188,SEARCH(\">\",'CFR - XML import'!$A188,1)+1,SEARCH(\"/\",'CFR - XML import'!$A188,1)-SEARCH(\">\",'CFR - XML import'!$A188,1)-2)))","v":0},{"$f":"IF(ISERROR(FIND(AD$3,'CFR - XML import'!$A188)),0,VALUE(MID('CFR - XML import'!$A188,SEARCH(\">\",'CFR - XML import'!$A188,1)+1,SEARCH(\"/\",'CFR - XML import'!$A188,1)-SEARCH(\">\",'CFR - XML import'!$A188,1)-2)))","v":0},{"$f":"IF(ISERROR(FIND(AE$3,'CFR - XML import'!$A188)),0,VALUE(MID('CFR - XML import'!$A188,SEARCH(\">\",'CFR - XML import'!$A188,1)+1,SEARCH(\"/\",'CFR - XML import'!$A188,1)-SEARCH(\">\",'CFR - XML import'!$A188,1)-2)))","v":0},{"$f":"IF(ISERROR(FIND(AF$3,'CFR - XML import'!$A188)),0,VALUE(MID('CFR - XML import'!$A188,SEARCH(\">\",'CFR - XML import'!$A188,1)+1,SEARCH(\"/\",'CFR - XML import'!$A188,1)-SEARCH(\">\",'CFR - XML import'!$A188,1)-2)))","v":0},{"$f":"IF(ISERROR(FIND(AG$3,'CFR - XML import'!$A188)),0,VALUE(MID('CFR - XML import'!$A188,SEARCH(\">\",'CFR - XML import'!$A188,1)+1,SEARCH(\"/\",'CFR - XML import'!$A188,1)-SEARCH(\">\",'CFR - XML import'!$A188,1)-2)))","v":0},{"$f":"IF(ISERROR(FIND(AH$3,'CFR - XML import'!$A188)),0,VALUE(MID('CFR - XML import'!$A188,SEARCH(\">\",'CFR - XML import'!$A188,1)+1,SEARCH(\"/\",'CFR - XML import'!$A188,1)-SEARCH(\">\",'CFR - XML import'!$A188,1)-2)))","v":0},{"$f":"IF(ISERROR(FIND(AI$3,'CFR - XML import'!$A188)),0,VALUE(MID('CFR - XML import'!$A188,SEARCH(\">\",'CFR - XML import'!$A188,1)+1,SEARCH(\"/\",'CFR - XML import'!$A188,1)-SEARCH(\">\",'CFR - XML import'!$A188,1)-2)))","v":0},{"$f":"IF(ISERROR(FIND(AJ$3,'CFR - XML import'!$A188)),0,VALUE(MID('CFR - XML import'!$A188,SEARCH(\">\",'CFR - XML import'!$A188,1)+1,SEARCH(\"/\",'CFR - XML import'!$A188,1)-SEARCH(\">\",'CFR - XML import'!$A188,1)-2)))","v":0},{"$f":"IF(ISERROR(FIND(AK$3,'CFR - XML import'!$A188)),0,VALUE(MID('CFR - XML import'!$A188,SEARCH(\">\",'CFR - XML import'!$A188,1)+1,SEARCH(\"/\",'CFR - XML import'!$A188,1)-SEARCH(\">\",'CFR - XML import'!$A188,1)-2)))","v":0},{"$f":"IF(ISERROR(FIND(AL$3,'CFR - XML import'!$A188)),0,VALUE(MID('CFR - XML import'!$A188,SEARCH(\">\",'CFR - XML import'!$A188,1)+1,SEARCH(\"/\",'CFR - XML import'!$A188,1)-SEARCH(\">\",'CFR - XML import'!$A188,1)-2)))","v":0},{"$f":"IF(ISERROR(FIND(AM$3,'CFR - XML import'!$A188)),0,VALUE(MID('CFR - XML import'!$A188,SEARCH(\">\",'CFR - XML import'!$A188,1)+1,SEARCH(\"/\",'CFR - XML import'!$A188,1)-SEARCH(\">\",'CFR - XML import'!$A188,1)-2)))","v":0},{"$f":"IF(ISERROR(FIND(AN$3,'CFR - XML import'!$A188)),0,VALUE(MID('CFR - XML import'!$A188,SEARCH(\">\",'CFR - XML import'!$A188,1)+1,SEARCH(\"/\",'CFR - XML import'!$A188,1)-SEARCH(\">\",'CFR - XML import'!$A188,1)-2)))","v":0},{"$f":"IF(ISERROR(FIND(AO$3,'CFR - XML import'!$A188)),0,VALUE(MID('CFR - XML import'!$A188,SEARCH(\">\",'CFR - XML import'!$A188,1)+1,SEARCH(\"/\",'CFR - XML import'!$A188,1)-SEARCH(\">\",'CFR - XML import'!$A188,1)-2)))","v":0},{"$f":"IF(ISERROR(FIND(AP$3,'CFR - XML import'!$A188)),0,VALUE(MID('CFR - XML import'!$A188,SEARCH(\">\",'CFR - XML import'!$A188,1)+1,SEARCH(\"/\",'CFR - XML import'!$A188,1)-SEARCH(\">\",'CFR - XML import'!$A188,1)-2)))","v":0},{"$f":"IF(ISERROR(FIND(AQ$3,'CFR - XML import'!$A188)),0,VALUE(MID('CFR - XML import'!$A188,SEARCH(\">\",'CFR - XML import'!$A188,1)+1,SEARCH(\"/\",'CFR - XML import'!$A188,1)-SEARCH(\">\",'CFR - XML import'!$A188,1)-2)))","v":0},{"$f":"IF(ISERROR(FIND(AR$3,'CFR - XML import'!$A188)),0,VALUE(MID('CFR - XML import'!$A188,SEARCH(\">\",'CFR - XML import'!$A188,1)+1,SEARCH(\"/\",'CFR - XML import'!$A188,1)-SEARCH(\">\",'CFR - XML import'!$A188,1)-2)))","v":0},{"$f":"IF(ISERROR(FIND(AS$3,'CFR - XML import'!$A188)),0,VALUE(MID('CFR - XML import'!$A188,SEARCH(\">\",'CFR - XML import'!$A188,1)+1,SEARCH(\"/\",'CFR - XML import'!$A188,1)-SEARCH(\">\",'CFR - XML import'!$A188,1)-2)))","v":0},{"$f":"IF(ISERROR(FIND(AT$3,'CFR - XML import'!$A188)),0,VALUE(MID('CFR - XML import'!$A188,SEARCH(\">\",'CFR - XML import'!$A188,1)+1,SEARCH(\"/\",'CFR - XML import'!$A188,1)-SEARCH(\">\",'CFR - XML import'!$A188,1)-2)))","v":0},{"$f":"IF(ISERROR(FIND(AU$3,'CFR - XML import'!$A188)),0,VALUE(MID('CFR - XML import'!$A188,SEARCH(\">\",'CFR - XML import'!$A188,1)+1,SEARCH(\"/\",'CFR - XML import'!$A188,1)-SEARCH(\">\",'CFR - XML import'!$A188,1)-2)))","v":0},{"$f":"IF(ISERROR(FIND(AV$3,'CFR - XML import'!$A188)),0,VALUE(MID('CFR - XML import'!$A188,SEARCH(\">\",'CFR - XML import'!$A188,1)+1,SEARCH(\"/\",'CFR - XML import'!$A188,1)-SEARCH(\">\",'CFR - XML import'!$A188,1)-2)))","v":0},{"$f":"IF(ISERROR(FIND(AW$3,'CFR - XML import'!$A188)),0,VALUE(MID('CFR - XML import'!$A188,SEARCH(\">\",'CFR - XML import'!$A188,1)+1,SEARCH(\"/\",'CFR - XML import'!$A188,1)-SEARCH(\">\",'CFR - XML import'!$A188,1)-2)))","v":0},{"$f":"IF(ISERROR(FIND(AX$3,'CFR - XML import'!$A188)),0,VALUE(MID('CFR - XML import'!$A188,SEARCH(\">\",'CFR - XML import'!$A188,1)+1,SEARCH(\"/\",'CFR - XML import'!$A188,1)-SEARCH(\">\",'CFR - XML import'!$A188,1)-2)))","v":0},{"$f":"IF(ISERROR(FIND(AY$3,'CFR - XML import'!$A188)),0,VALUE(MID('CFR - XML import'!$A188,SEARCH(\">\",'CFR - XML import'!$A188,1)+1,SEARCH(\"/\",'CFR - XML import'!$A188,1)-SEARCH(\">\",'CFR - XML import'!$A188,1)-2)))","v":0},{"$f":"IF(ISERROR(FIND(AZ$3,'CFR - XML import'!$A188)),0,VALUE(MID('CFR - XML import'!$A188,SEARCH(\">\",'CFR - XML import'!$A188,1)+1,SEARCH(\"/\",'CFR - XML import'!$A188,1)-SEARCH(\">\",'CFR - XML import'!$A188,1)-2)))","v":0},{"$f":"IF(ISERROR(FIND(BA$3,'CFR - XML import'!$A188)),0,VALUE(MID('CFR - XML import'!$A188,SEARCH(\">\",'CFR - XML import'!$A188,1)+1,SEARCH(\"/\",'CFR - XML import'!$A188,1)-SEARCH(\">\",'CFR - XML import'!$A188,1)-2)))","v":0},{"$f":"IF(ISERROR(FIND(BB$3,'CFR - XML import'!$A188)),0,VALUE(MID('CFR - XML import'!$A188,SEARCH(\">\",'CFR - XML import'!$A188,1)+1,SEARCH(\"/\",'CFR - XML import'!$A188,1)-SEARCH(\">\",'CFR - XML import'!$A188,1)-2)))","v":0},{"$f":"IF(ISERROR(FIND(BC$3,'CFR - XML import'!$A188)),0,VALUE(MID('CFR - XML import'!$A188,SEARCH(\">\",'CFR - XML import'!$A188,1)+1,SEARCH(\"/\",'CFR - XML import'!$A188,1)-SEARCH(\">\",'CFR - XML import'!$A188,1)-2)))","v":0},{"$f":"IF(ISERROR(FIND(BD$3,'CFR - XML import'!$A188)),0,VALUE(MID('CFR - XML import'!$A188,SEARCH(\">\",'CFR - XML import'!$A188,1)+1,SEARCH(\"/\",'CFR - XML import'!$A188,1)-SEARCH(\">\",'CFR - XML import'!$A188,1)-2)))","v":0},{"$f":"IF(ISERROR(FIND(BE$3,'CFR - XML import'!$A188)),0,VALUE(MID('CFR - XML import'!$A188,SEARCH(\">\",'CFR - XML import'!$A188,1)+1,SEARCH(\"/\",'CFR - XML import'!$A188,1)-SEARCH(\">\",'CFR - XML import'!$A188,1)-2)))","v":0},{"$f":"IF(ISERROR(FIND(BF$3,'CFR - XML import'!$A188)),0,VALUE(MID('CFR - XML import'!$A188,SEARCH(\">\",'CFR - XML import'!$A188,1)+1,SEARCH(\"/\",'CFR - XML import'!$A188,1)-SEARCH(\">\",'CFR - XML import'!$A188,1)-2)))","v":0},{"$f":"IF(ISERROR(FIND(BG$3,'CFR - XML import'!$A188)),0,VALUE(MID('CFR - XML import'!$A188,SEARCH(\">\",'CFR - XML import'!$A188,1)+1,SEARCH(\"/\",'CFR - XML import'!$A188,1)-SEARCH(\">\",'CFR - XML import'!$A188,1)-2)))","v":0},{"$f":"IF(ISERROR(FIND(BH$3,'CFR - XML import'!$A188)),0,VALUE(MID('CFR - XML import'!$A188,SEARCH(\">\",'CFR - XML import'!$A188,1)+1,SEARCH(\"/\",'CFR - XML import'!$A188,1)-SEARCH(\">\",'CFR - XML import'!$A188,1)-2)))","v":0},{"$f":"IF(ISERROR(FIND(BI$3,'CFR - XML import'!$A188)),0,VALUE(MID('CFR - XML import'!$A188,SEARCH(\">\",'CFR - XML import'!$A188,1)+1,SEARCH(\"/\",'CFR - XML import'!$A188,1)-SEARCH(\">\",'CFR - XML import'!$A188,1)-2)))","v":0},{"$f":"IF(ISERROR(FIND(BJ$3,'CFR - XML import'!$A188)),0,VALUE(MID('CFR - XML import'!$A188,SEARCH(\">\",'CFR - XML import'!$A188,1)+1,SEARCH(\"/\",'CFR - XML import'!$A188,1)-SEARCH(\">\",'CFR - XML import'!$A188,1)-2)))","v":0},{"$f":"IF(ISERROR(FIND(BK$3,'CFR - XML import'!$A188)),0,VALUE(MID('CFR - XML import'!$A188,SEARCH(\">\",'CFR - XML import'!$A188,1)+1,SEARCH(\"/\",'CFR - XML import'!$A188,1)-SEARCH(\">\",'CFR - XML import'!$A188,1)-2)))","v":0},{"$f":"IF(ISERROR(FIND(BL$3,'CFR - XML import'!$A188)),0,VALUE(MID('CFR - XML import'!$A188,SEARCH(\">\",'CFR - XML import'!$A188,1)+1,SEARCH(\"/\",'CFR - XML import'!$A188,1)-SEARCH(\">\",'CFR - XML import'!$A188,1)-2)))","v":0},{"$f":"IF(ISERROR(FIND(BM$3,'CFR - XML import'!$A188)),0,VALUE(MID('CFR - XML import'!$A188,SEARCH(\">\",'CFR - XML import'!$A188,1)+1,SEARCH(\"/\",'CFR - XML import'!$A188,1)-SEARCH(\">\",'CFR - XML import'!$A188,1)-2)))","v":0},{"$f":"IF(ISERROR(FIND(BN$3,'CFR - XML import'!$A188)),0,VALUE(MID('CFR - XML import'!$A188,SEARCH(\">\",'CFR - XML import'!$A188,1)+1,SEARCH(\"/\",'CFR - XML import'!$A188,1)-SEARCH(\">\",'CFR - XML import'!$A188,1)-2)))","v":0},{"$f":"IF(ISERROR(FIND(BO$3,'CFR - XML import'!$A188)),0,VALUE(MID('CFR - XML import'!$A188,SEARCH(\">\",'CFR - XML import'!$A188,1)+1,SEARCH(\"/\",'CFR - XML import'!$A188,1)-SEARCH(\">\",'CFR - XML import'!$A188,1)-2)))","v":0},{"$f":"IF(ISERROR(FIND(BP$3,'CFR - XML import'!$A188)),0,VALUE(MID('CFR - XML import'!$A188,SEARCH(\">\",'CFR - XML import'!$A188,1)+1,SEARCH(\"/\",'CFR - XML import'!$A188,1)-SEARCH(\">\",'CFR - XML import'!$A188,1)-2)))","v":0},{"$f":"IF(ISERROR(FIND(BQ$3,'CFR - XML import'!$A188)),0,VALUE(MID('CFR - XML import'!$A188,SEARCH(\">\",'CFR - XML import'!$A188,1)+1,SEARCH(\"/\",'CFR - XML import'!$A188,1)-SEARCH(\">\",'CFR - XML import'!$A188,1)-2)))","v":0},{"$f":"IF(ISERROR(FIND(BR$3,'CFR - XML import'!$A188)),0,VALUE(MID('CFR - XML import'!$A188,SEARCH(\">\",'CFR - XML import'!$A188,1)+1,SEARCH(\"/\",'CFR - XML import'!$A188,1)-SEARCH(\">\",'CFR - XML import'!$A188,1)-2)))","v":0},{"$f":"IF(ISERROR(FIND(BS$3,'CFR - XML import'!$A188)),0,VALUE(MID('CFR - XML import'!$A188,SEARCH(\">\",'CFR - XML import'!$A188,1)+1,SEARCH(\"/\",'CFR - XML import'!$A188,1)-SEARCH(\">\",'CFR - XML import'!$A188,1)-2)))","v":0},{"$f":"IF(ISERROR(FIND(BT$3,'CFR - XML import'!$A188)),0,VALUE(MID('CFR - XML import'!$A188,SEARCH(\">\",'CFR - XML import'!$A188,1)+1,SEARCH(\"/\",'CFR - XML import'!$A188,1)-SEARCH(\">\",'CFR - XML import'!$A188,1)-2)))","v":0},{"$f":"IF(ISERROR(FIND(BU$3,'CFR - XML import'!$A188)),0,VALUE(MID('CFR - XML import'!$A188,SEARCH(\">\",'CFR - XML import'!$A188,1)+1,SEARCH(\"/\",'CFR - XML import'!$A188,1)-SEARCH(\">\",'CFR - XML import'!$A188,1)-2)))","v":0},{"$f":"IF(ISERROR(FIND(BV$3,'CFR - XML import'!$A188)),0,VALUE(MID('CFR - XML import'!$A188,SEARCH(\">\",'CFR - XML import'!$A188,1)+1,SEARCH(\"/\",'CFR - XML import'!$A188,1)-SEARCH(\">\",'CFR - XML import'!$A188,1)-2)))","v":0},{"$f":"IF(ISERROR(FIND(BW$3,'CFR - XML import'!$A188)),0,VALUE(MID('CFR - XML import'!$A188,SEARCH(\">\",'CFR - XML import'!$A188,1)+1,SEARCH(\"/\",'CFR - XML import'!$A188,1)-SEARCH(\">\",'CFR - XML import'!$A188,1)-2)))","v":0},{"$f":"IF(ISERROR(FIND(BX$3,'CFR - XML import'!$A188)),0,VALUE(MID('CFR - XML import'!$A188,SEARCH(\">\",'CFR - XML import'!$A188,1)+1,SEARCH(\"/\",'CFR - XML import'!$A188,1)-SEARCH(\">\",'CFR - XML import'!$A188,1)-2)))","v":0},{"$f":"IF(ISERROR(FIND(BY$3,'CFR - XML import'!$A188)),0,VALUE(MID('CFR - XML import'!$A188,SEARCH(\">\",'CFR - XML import'!$A188,1)+1,SEARCH(\"/\",'CFR - XML import'!$A188,1)-SEARCH(\">\",'CFR - XML import'!$A188,1)-2)))","v":0},{"$f":"IF(ISERROR(FIND(BZ$3,'CFR - XML import'!$A188)),0,VALUE(MID('CFR - XML import'!$A188,SEARCH(\">\",'CFR - XML import'!$A188,1)+1,SEARCH(\"/\",'CFR - XML import'!$A188,1)-SEARCH(\">\",'CFR - XML import'!$A188,1)-2)))","v":0},null,null,null,null,null,null,{"$f":"IF(ISERROR(IF(MID('CFR - XML import'!$A188,LEN($CF$4)+1,LEN('CFR - XML import'!$A188)-(2*LEN($CF$4)+1))=\"RMMS\",1,IF(MID('CFR - XML import'!$A188,LEN(\"    <InputSystem>\")+1,LEN('CFR - XML import'!$A188)-(LEN(\"    <InputSystem>\")+LEN($CF$4)+1))=\"SIMS\",2,0))),0,IF(MID('CFR - XML import'!$A188,LEN($CF$4)+1,LEN('CFR - XML import'!$A188)-(2*LEN($CF$4)+1))=\"RMMS\",1,IF(MID('CFR - XML import'!$A188,LEN(\"    <InputSystem>\")+1,LEN('CFR - XML import'!$A188)-(LEN(\"    <InputSystem>\")+LEN($CF$4)+1))=\"SIMS\",2,0)))","v":0},{"$f":"IF(ISERROR(FIND(CH$3,'CFR - XML import'!$A188)),0,MID('CFR - XML import'!$A188,SEARCH(\">\",'CFR - XML import'!$A188,1)+1,SEARCH(\"/\",'CFR - XML import'!$A188,1)-SEARCH(\">\",'CFR - XML import'!$A188,1)-2))","v":0},{"$f":"IF(ISERROR(FIND(CI$3,'CFR - XML import'!$A188)),0,MID('CFR - XML import'!$A188,SEARCH(\">\",'CFR - XML import'!$A188,1)+1,SEARCH(\"/\",'CFR - XML import'!$A188,1)-SEARCH(\">\",'CFR - XML import'!$A188,1)-2))","v":0},{"$f":"IF(ISERROR(FIND(CJ$3,'CFR - XML import'!$A188)),0,MID('CFR - XML import'!$A188,SEARCH(\">\",'CFR - XML import'!$A188,1)+1,SEARCH(\"/\",'CFR - XML import'!$A188,1)-SEARCH(\">\",'CFR - XML import'!$A188,1)-2))","v":0},{"$f":"IF(ISERROR(FIND(CK$3,'CFR - XML import'!$A188)),0,MID('CFR - XML import'!$A188,SEARCH(\">\",'CFR - XML import'!$A188,1)+1,SEARCH(\"/\",'CFR - XML import'!$A188,1)-SEARCH(\">\",'CFR - XML import'!$A188,1)-2))","v":0},{"$f":"IF(ISERROR(FIND(CL$3,'CFR - XML import'!$A188)),0,MID('CFR - XML import'!$A188,SEARCH(\">\",'CFR - XML import'!$A188,1)+1,SEARCH(\"/\",'CFR - XML import'!$A188,1)-SEARCH(\">\",'CFR - XML import'!$A188,1)-2))","v":0}]
[{"$f":"IF(AND('CFR - XML import'!A189<>\"\",LEFT('CFR - XML import'!A189,1)<>\"<\",LEFT('CFR - XML import'!A189,3)<>\"  <\",LEFT('CFR - XML import'!A189,5)<>\"    <\",LEFT('CFR - XML import'!A189,7)<>\"      <\",LEFT('CFR - XML import'!A189,9)<>\"        <\",$B$1=\"SIMS\"),'CFR - XML import'!A189,IF(AND(LEFT('CFR - XML import'!A189,9)=\"<Details>\",$B$1=\"RM\"),'CFR - XML import'!A189,\"\"))","v":""},{"$f":"IF(ISERROR(FIND(B$3,'CFR - XML import'!$A189)),0,VALUE(MID('CFR - XML import'!$A189,SEARCH(\">\",'CFR - XML import'!$A189,1)+1,SEARCH(\"/\",'CFR - XML import'!$A189,1)-SEARCH(\">\",'CFR - XML import'!$A189,1)-2)))","v":0},null,{"$f":"IF(ISERROR(FIND(D$3,'CFR - XML import'!$A189)),0,MID('CFR - XML import'!$A189,SEARCH(\">\",'CFR - XML import'!$A189,1)+1,SEARCH(\"/\",'CFR - XML import'!$A189,1)-SEARCH(\">\",'CFR - XML import'!$A189,1)-2))","v":0},{"$f":"IF(ISERROR(FIND(E$3,'CFR - XML import'!$A189)),0,MID('CFR - XML import'!$A189,SEARCH(\">\",'CFR - XML import'!$A189,1)+1,SEARCH(\"/\",'CFR - XML import'!$A189,1)-SEARCH(\">\",'CFR - XML import'!$A189,1)-2))","v":0},{"$f":"IF($B$1=\"SIMS\",IF(ISERROR(FIND(F$3,'CFR - XML import'!$A189)),0,VALUE(MID('CFR - XML import'!$A189,15,10))),IF(ISERROR(FIND(F$3,'CFR - XML import'!$A189)),0,VALUE(MID('CFR - XML import'!$A189,11,10))))","v":"00:00:00"},{"$f":"IF(ISERROR(FIND(G$3,'CFR - XML import'!$A189)),0,VALUE(MID('CFR - XML import'!$A189,SEARCH(\">\",'CFR - XML import'!$A189,1)+1,SEARCH(\"/\",'CFR - XML import'!$A189,1)-SEARCH(\">\",'CFR - XML import'!$A189,1)-2)))","v":0},{"$f":"IF(ISERROR(FIND(H$3,'CFR - XML import'!$A189)),0,VALUE(MID('CFR - XML import'!$A189,SEARCH(\">\",'CFR - XML import'!$A189,1)+1,SEARCH(\"/\",'CFR - XML import'!$A189,1)-SEARCH(\">\",'CFR - XML import'!$A189,1)-2)))","v":0},{"$f":"IF(ISERROR(FIND(I$3,'CFR - XML import'!$A189)),0,VALUE(MID('CFR - XML import'!$A189,SEARCH(\">\",'CFR - XML import'!$A189,1)+1,SEARCH(\"/\",'CFR - XML import'!$A189,1)-SEARCH(\">\",'CFR - XML import'!$A189,1)-2)))","v":0},{"$f":"IF(ISERROR(FIND(J$3,'CFR - XML import'!$A189)),0,VALUE(MID('CFR - XML import'!$A189,SEARCH(\">\",'CFR - XML import'!$A189,1)+1,SEARCH(\"/\",'CFR - XML import'!$A189,1)-SEARCH(\">\",'CFR - XML import'!$A189,1)-2)))","v":0},{"$f":"IF(ISERROR(FIND(K$3,'CFR - XML import'!$A189)),0,VALUE(MID('CFR - XML import'!$A189,SEARCH(\">\",'CFR - XML import'!$A189,1)+1,SEARCH(\"/\",'CFR - XML import'!$A189,1)-SEARCH(\">\",'CFR - XML import'!$A189,1)-2)))","v":0},{"$f":"IF(ISERROR(FIND(L$3,'CFR - XML import'!$A189)),0,VALUE(MID('CFR - XML import'!$A189,SEARCH(\">\",'CFR - XML import'!$A189,1)+1,SEARCH(\"/\",'CFR - XML import'!$A189,1)-SEARCH(\">\",'CFR - XML import'!$A189,1)-2)))","v":0},{"$f":"IF(ISERROR(FIND(M$3,'CFR - XML import'!$A189)),0,VALUE(MID('CFR - XML import'!$A189,SEARCH(\">\",'CFR - XML import'!$A189,1)+1,SEARCH(\"/\",'CFR - XML import'!$A189,1)-SEARCH(\">\",'CFR - XML import'!$A189,1)-2)))","v":0},{"$f":"IF(ISERROR(FIND(N$3,'CFR - XML import'!$A189)),0,VALUE(MID('CFR - XML import'!$A189,SEARCH(\">\",'CFR - XML import'!$A189,1)+1,SEARCH(\"/\",'CFR - XML import'!$A189,1)-SEARCH(\">\",'CFR - XML import'!$A189,1)-2)))","v":0},{"$f":"IF(ISERROR(FIND(O$3,'CFR - XML import'!$A189)),0,VALUE(MID('CFR - XML import'!$A189,SEARCH(\">\",'CFR - XML import'!$A189,1)+1,SEARCH(\"/\",'CFR - XML import'!$A189,1)-SEARCH(\">\",'CFR - XML import'!$A189,1)-2)))","v":0},{"$f":"IF(ISERROR(FIND(P$3,'CFR - XML import'!$A189)),0,VALUE(MID('CFR - XML import'!$A189,SEARCH(\">\",'CFR - XML import'!$A189,1)+1,SEARCH(\"/\",'CFR - XML import'!$A189,1)-SEARCH(\">\",'CFR - XML import'!$A189,1)-2)))","v":0},{"$f":"IF(ISERROR(FIND(Q$3,'CFR - XML import'!$A189)),0,VALUE(MID('CFR - XML import'!$A189,SEARCH(\">\",'CFR - XML import'!$A189,1)+1,SEARCH(\"/\",'CFR - XML import'!$A189,1)-SEARCH(\">\",'CFR - XML import'!$A189,1)-2)))","v":0},{"$f":"IF(ISERROR(FIND(R$3,'CFR - XML import'!$A189)),0,VALUE(MID('CFR - XML import'!$A189,SEARCH(\">\",'CFR - XML import'!$A189,1)+1,SEARCH(\"/\",'CFR - XML import'!$A189,1)-SEARCH(\">\",'CFR - XML import'!$A189,1)-2)))","v":0},{"$f":"IF(ISERROR(FIND(S$3,'CFR - XML import'!$A189)),0,VALUE(MID('CFR - XML import'!$A189,SEARCH(\">\",'CFR - XML import'!$A189,1)+1,SEARCH(\"/\",'CFR - XML import'!$A189,1)-SEARCH(\">\",'CFR - XML import'!$A189,1)-2)))","v":0},{"$f":"IF(ISERROR(FIND(T$3,'CFR - XML import'!$A189)),0,VALUE(MID('CFR - XML import'!$A189,SEARCH(\">\",'CFR - XML import'!$A189,1)+1,SEARCH(\"/\",'CFR - XML import'!$A189,1)-SEARCH(\">\",'CFR - XML import'!$A189,1)-2)))","v":0},{"$f":"IF(ISERROR(FIND(U$3,'CFR - XML import'!$A189)),0,VALUE(MID('CFR - XML import'!$A189,SEARCH(\">\",'CFR - XML import'!$A189,1)+1,SEARCH(\"/\",'CFR - XML import'!$A189,1)-SEARCH(\">\",'CFR - XML import'!$A189,1)-2)))","v":0},{"$f":"IF(ISERROR(FIND(V$3,'CFR - XML import'!$A189)),0,VALUE(MID('CFR - XML import'!$A189,SEARCH(\">\",'CFR - XML import'!$A189,1)+1,SEARCH(\"/\",'CFR - XML import'!$A189,1)-SEARCH(\">\",'CFR - XML import'!$A189,1)-2)))","v":0},{"$f":"IF(ISERROR(FIND(W$3,'CFR - XML import'!$A189)),0,VALUE(MID('CFR - XML import'!$A189,SEARCH(\">\",'CFR - XML import'!$A189,1)+1,SEARCH(\"/\",'CFR - XML import'!$A189,1)-SEARCH(\">\",'CFR - XML import'!$A189,1)-2)))","v":0},null,{"$f":"IF(ISERROR(FIND(Y$3,'CFR - XML import'!$A189)),0,VALUE(MID('CFR - XML import'!$A189,SEARCH(\">\",'CFR - XML import'!$A189,1)+1,SEARCH(\"/\",'CFR - XML import'!$A189,1)-SEARCH(\">\",'CFR - XML import'!$A189,1)-2)))","v":0},{"$f":"IF(ISERROR(FIND(Z$3,'CFR - XML import'!$A189)),0,VALUE(MID('CFR - XML import'!$A189,SEARCH(\">\",'CFR - XML import'!$A189,1)+1,SEARCH(\"/\",'CFR - XML import'!$A189,1)-SEARCH(\">\",'CFR - XML import'!$A189,1)-2)))","v":0},{"$f":"IF(ISERROR(FIND(AA$3,'CFR - XML import'!$A189)),0,VALUE(MID('CFR - XML import'!$A189,SEARCH(\">\",'CFR - XML import'!$A189,1)+1,SEARCH(\"/\",'CFR - XML import'!$A189,1)-SEARCH(\">\",'CFR - XML import'!$A189,1)-2)))","v":0},{"$f":"IF(ISERROR(FIND(AB$3,'CFR - XML import'!$A189)),0,VALUE(MID('CFR - XML import'!$A189,SEARCH(\">\",'CFR - XML import'!$A189,1)+1,SEARCH(\"/\",'CFR - XML import'!$A189,1)-SEARCH(\">\",'CFR - XML import'!$A189,1)-2)))","v":0},{"$f":"IF(ISERROR(FIND(AC$3,'CFR - XML import'!$A189)),0,VALUE(MID('CFR - XML import'!$A189,SEARCH(\">\",'CFR - XML import'!$A189,1)+1,SEARCH(\"/\",'CFR - XML import'!$A189,1)-SEARCH(\">\",'CFR - XML import'!$A189,1)-2)))","v":0},{"$f":"IF(ISERROR(FIND(AD$3,'CFR - XML import'!$A189)),0,VALUE(MID('CFR - XML import'!$A189,SEARCH(\">\",'CFR - XML import'!$A189,1)+1,SEARCH(\"/\",'CFR - XML import'!$A189,1)-SEARCH(\">\",'CFR - XML import'!$A189,1)-2)))","v":0},{"$f":"IF(ISERROR(FIND(AE$3,'CFR - XML import'!$A189)),0,VALUE(MID('CFR - XML import'!$A189,SEARCH(\">\",'CFR - XML import'!$A189,1)+1,SEARCH(\"/\",'CFR - XML import'!$A189,1)-SEARCH(\">\",'CFR - XML import'!$A189,1)-2)))","v":0},{"$f":"IF(ISERROR(FIND(AF$3,'CFR - XML import'!$A189)),0,VALUE(MID('CFR - XML import'!$A189,SEARCH(\">\",'CFR - XML import'!$A189,1)+1,SEARCH(\"/\",'CFR - XML import'!$A189,1)-SEARCH(\">\",'CFR - XML import'!$A189,1)-2)))","v":0},{"$f":"IF(ISERROR(FIND(AG$3,'CFR - XML import'!$A189)),0,VALUE(MID('CFR - XML import'!$A189,SEARCH(\">\",'CFR - XML import'!$A189,1)+1,SEARCH(\"/\",'CFR - XML import'!$A189,1)-SEARCH(\">\",'CFR - XML import'!$A189,1)-2)))","v":0},{"$f":"IF(ISERROR(FIND(AH$3,'CFR - XML import'!$A189)),0,VALUE(MID('CFR - XML import'!$A189,SEARCH(\">\",'CFR - XML import'!$A189,1)+1,SEARCH(\"/\",'CFR - XML import'!$A189,1)-SEARCH(\">\",'CFR - XML import'!$A189,1)-2)))","v":0},{"$f":"IF(ISERROR(FIND(AI$3,'CFR - XML import'!$A189)),0,VALUE(MID('CFR - XML import'!$A189,SEARCH(\">\",'CFR - XML import'!$A189,1)+1,SEARCH(\"/\",'CFR - XML import'!$A189,1)-SEARCH(\">\",'CFR - XML import'!$A189,1)-2)))","v":0},{"$f":"IF(ISERROR(FIND(AJ$3,'CFR - XML import'!$A189)),0,VALUE(MID('CFR - XML import'!$A189,SEARCH(\">\",'CFR - XML import'!$A189,1)+1,SEARCH(\"/\",'CFR - XML import'!$A189,1)-SEARCH(\">\",'CFR - XML import'!$A189,1)-2)))","v":0},{"$f":"IF(ISERROR(FIND(AK$3,'CFR - XML import'!$A189)),0,VALUE(MID('CFR - XML import'!$A189,SEARCH(\">\",'CFR - XML import'!$A189,1)+1,SEARCH(\"/\",'CFR - XML import'!$A189,1)-SEARCH(\">\",'CFR - XML import'!$A189,1)-2)))","v":0},{"$f":"IF(ISERROR(FIND(AL$3,'CFR - XML import'!$A189)),0,VALUE(MID('CFR - XML import'!$A189,SEARCH(\">\",'CFR - XML import'!$A189,1)+1,SEARCH(\"/\",'CFR - XML import'!$A189,1)-SEARCH(\">\",'CFR - XML import'!$A189,1)-2)))","v":0},{"$f":"IF(ISERROR(FIND(AM$3,'CFR - XML import'!$A189)),0,VALUE(MID('CFR - XML import'!$A189,SEARCH(\">\",'CFR - XML import'!$A189,1)+1,SEARCH(\"/\",'CFR - XML import'!$A189,1)-SEARCH(\">\",'CFR - XML import'!$A189,1)-2)))","v":0},{"$f":"IF(ISERROR(FIND(AN$3,'CFR - XML import'!$A189)),0,VALUE(MID('CFR - XML import'!$A189,SEARCH(\">\",'CFR - XML import'!$A189,1)+1,SEARCH(\"/\",'CFR - XML import'!$A189,1)-SEARCH(\">\",'CFR - XML import'!$A189,1)-2)))","v":0},{"$f":"IF(ISERROR(FIND(AO$3,'CFR - XML import'!$A189)),0,VALUE(MID('CFR - XML import'!$A189,SEARCH(\">\",'CFR - XML import'!$A189,1)+1,SEARCH(\"/\",'CFR - XML import'!$A189,1)-SEARCH(\">\",'CFR - XML import'!$A189,1)-2)))","v":0},{"$f":"IF(ISERROR(FIND(AP$3,'CFR - XML import'!$A189)),0,VALUE(MID('CFR - XML import'!$A189,SEARCH(\">\",'CFR - XML import'!$A189,1)+1,SEARCH(\"/\",'CFR - XML import'!$A189,1)-SEARCH(\">\",'CFR - XML import'!$A189,1)-2)))","v":0},{"$f":"IF(ISERROR(FIND(AQ$3,'CFR - XML import'!$A189)),0,VALUE(MID('CFR - XML import'!$A189,SEARCH(\">\",'CFR - XML import'!$A189,1)+1,SEARCH(\"/\",'CFR - XML import'!$A189,1)-SEARCH(\">\",'CFR - XML import'!$A189,1)-2)))","v":0},{"$f":"IF(ISERROR(FIND(AR$3,'CFR - XML import'!$A189)),0,VALUE(MID('CFR - XML import'!$A189,SEARCH(\">\",'CFR - XML import'!$A189,1)+1,SEARCH(\"/\",'CFR - XML import'!$A189,1)-SEARCH(\">\",'CFR - XML import'!$A189,1)-2)))","v":0},{"$f":"IF(ISERROR(FIND(AS$3,'CFR - XML import'!$A189)),0,VALUE(MID('CFR - XML import'!$A189,SEARCH(\">\",'CFR - XML import'!$A189,1)+1,SEARCH(\"/\",'CFR - XML import'!$A189,1)-SEARCH(\">\",'CFR - XML import'!$A189,1)-2)))","v":0},{"$f":"IF(ISERROR(FIND(AT$3,'CFR - XML import'!$A189)),0,VALUE(MID('CFR - XML import'!$A189,SEARCH(\">\",'CFR - XML import'!$A189,1)+1,SEARCH(\"/\",'CFR - XML import'!$A189,1)-SEARCH(\">\",'CFR - XML import'!$A189,1)-2)))","v":0},{"$f":"IF(ISERROR(FIND(AU$3,'CFR - XML import'!$A189)),0,VALUE(MID('CFR - XML import'!$A189,SEARCH(\">\",'CFR - XML import'!$A189,1)+1,SEARCH(\"/\",'CFR - XML import'!$A189,1)-SEARCH(\">\",'CFR - XML import'!$A189,1)-2)))","v":0},{"$f":"IF(ISERROR(FIND(AV$3,'CFR - XML import'!$A189)),0,VALUE(MID('CFR - XML import'!$A189,SEARCH(\">\",'CFR - XML import'!$A189,1)+1,SEARCH(\"/\",'CFR - XML import'!$A189,1)-SEARCH(\">\",'CFR - XML import'!$A189,1)-2)))","v":0},{"$f":"IF(ISERROR(FIND(AW$3,'CFR - XML import'!$A189)),0,VALUE(MID('CFR - XML import'!$A189,SEARCH(\">\",'CFR - XML import'!$A189,1)+1,SEARCH(\"/\",'CFR - XML import'!$A189,1)-SEARCH(\">\",'CFR - XML import'!$A189,1)-2)))","v":0},{"$f":"IF(ISERROR(FIND(AX$3,'CFR - XML import'!$A189)),0,VALUE(MID('CFR - XML import'!$A189,SEARCH(\">\",'CFR - XML import'!$A189,1)+1,SEARCH(\"/\",'CFR - XML import'!$A189,1)-SEARCH(\">\",'CFR - XML import'!$A189,1)-2)))","v":0},{"$f":"IF(ISERROR(FIND(AY$3,'CFR - XML import'!$A189)),0,VALUE(MID('CFR - XML import'!$A189,SEARCH(\">\",'CFR - XML import'!$A189,1)+1,SEARCH(\"/\",'CFR - XML import'!$A189,1)-SEARCH(\">\",'CFR - XML import'!$A189,1)-2)))","v":0},{"$f":"IF(ISERROR(FIND(AZ$3,'CFR - XML import'!$A189)),0,VALUE(MID('CFR - XML import'!$A189,SEARCH(\">\",'CFR - XML import'!$A189,1)+1,SEARCH(\"/\",'CFR - XML import'!$A189,1)-SEARCH(\">\",'CFR - XML import'!$A189,1)-2)))","v":0},{"$f":"IF(ISERROR(FIND(BA$3,'CFR - XML import'!$A189)),0,VALUE(MID('CFR - XML import'!$A189,SEARCH(\">\",'CFR - XML import'!$A189,1)+1,SEARCH(\"/\",'CFR - XML import'!$A189,1)-SEARCH(\">\",'CFR - XML import'!$A189,1)-2)))","v":0},{"$f":"IF(ISERROR(FIND(BB$3,'CFR - XML import'!$A189)),0,VALUE(MID('CFR - XML import'!$A189,SEARCH(\">\",'CFR - XML import'!$A189,1)+1,SEARCH(\"/\",'CFR - XML import'!$A189,1)-SEARCH(\">\",'CFR - XML import'!$A189,1)-2)))","v":0},{"$f":"IF(ISERROR(FIND(BC$3,'CFR - XML import'!$A189)),0,VALUE(MID('CFR - XML import'!$A189,SEARCH(\">\",'CFR - XML import'!$A189,1)+1,SEARCH(\"/\",'CFR - XML import'!$A189,1)-SEARCH(\">\",'CFR - XML import'!$A189,1)-2)))","v":0},{"$f":"IF(ISERROR(FIND(BD$3,'CFR - XML import'!$A189)),0,VALUE(MID('CFR - XML import'!$A189,SEARCH(\">\",'CFR - XML import'!$A189,1)+1,SEARCH(\"/\",'CFR - XML import'!$A189,1)-SEARCH(\">\",'CFR - XML import'!$A189,1)-2)))","v":0},{"$f":"IF(ISERROR(FIND(BE$3,'CFR - XML import'!$A189)),0,VALUE(MID('CFR - XML import'!$A189,SEARCH(\">\",'CFR - XML import'!$A189,1)+1,SEARCH(\"/\",'CFR - XML import'!$A189,1)-SEARCH(\">\",'CFR - XML import'!$A189,1)-2)))","v":0},{"$f":"IF(ISERROR(FIND(BF$3,'CFR - XML import'!$A189)),0,VALUE(MID('CFR - XML import'!$A189,SEARCH(\">\",'CFR - XML import'!$A189,1)+1,SEARCH(\"/\",'CFR - XML import'!$A189,1)-SEARCH(\">\",'CFR - XML import'!$A189,1)-2)))","v":0},{"$f":"IF(ISERROR(FIND(BG$3,'CFR - XML import'!$A189)),0,VALUE(MID('CFR - XML import'!$A189,SEARCH(\">\",'CFR - XML import'!$A189,1)+1,SEARCH(\"/\",'CFR - XML import'!$A189,1)-SEARCH(\">\",'CFR - XML import'!$A189,1)-2)))","v":0},{"$f":"IF(ISERROR(FIND(BH$3,'CFR - XML import'!$A189)),0,VALUE(MID('CFR - XML import'!$A189,SEARCH(\">\",'CFR - XML import'!$A189,1)+1,SEARCH(\"/\",'CFR - XML import'!$A189,1)-SEARCH(\">\",'CFR - XML import'!$A189,1)-2)))","v":0},{"$f":"IF(ISERROR(FIND(BI$3,'CFR - XML import'!$A189)),0,VALUE(MID('CFR - XML import'!$A189,SEARCH(\">\",'CFR - XML import'!$A189,1)+1,SEARCH(\"/\",'CFR - XML import'!$A189,1)-SEARCH(\">\",'CFR - XML import'!$A189,1)-2)))","v":0},{"$f":"IF(ISERROR(FIND(BJ$3,'CFR - XML import'!$A189)),0,VALUE(MID('CFR - XML import'!$A189,SEARCH(\">\",'CFR - XML import'!$A189,1)+1,SEARCH(\"/\",'CFR - XML import'!$A189,1)-SEARCH(\">\",'CFR - XML import'!$A189,1)-2)))","v":0},{"$f":"IF(ISERROR(FIND(BK$3,'CFR - XML import'!$A189)),0,VALUE(MID('CFR - XML import'!$A189,SEARCH(\">\",'CFR - XML import'!$A189,1)+1,SEARCH(\"/\",'CFR - XML import'!$A189,1)-SEARCH(\">\",'CFR - XML import'!$A189,1)-2)))","v":0},{"$f":"IF(ISERROR(FIND(BL$3,'CFR - XML import'!$A189)),0,VALUE(MID('CFR - XML import'!$A189,SEARCH(\">\",'CFR - XML import'!$A189,1)+1,SEARCH(\"/\",'CFR - XML import'!$A189,1)-SEARCH(\">\",'CFR - XML import'!$A189,1)-2)))","v":0},{"$f":"IF(ISERROR(FIND(BM$3,'CFR - XML import'!$A189)),0,VALUE(MID('CFR - XML import'!$A189,SEARCH(\">\",'CFR - XML import'!$A189,1)+1,SEARCH(\"/\",'CFR - XML import'!$A189,1)-SEARCH(\">\",'CFR - XML import'!$A189,1)-2)))","v":0},{"$f":"IF(ISERROR(FIND(BN$3,'CFR - XML import'!$A189)),0,VALUE(MID('CFR - XML import'!$A189,SEARCH(\">\",'CFR - XML import'!$A189,1)+1,SEARCH(\"/\",'CFR - XML import'!$A189,1)-SEARCH(\">\",'CFR - XML import'!$A189,1)-2)))","v":0},{"$f":"IF(ISERROR(FIND(BO$3,'CFR - XML import'!$A189)),0,VALUE(MID('CFR - XML import'!$A189,SEARCH(\">\",'CFR - XML import'!$A189,1)+1,SEARCH(\"/\",'CFR - XML import'!$A189,1)-SEARCH(\">\",'CFR - XML import'!$A189,1)-2)))","v":0},{"$f":"IF(ISERROR(FIND(BP$3,'CFR - XML import'!$A189)),0,VALUE(MID('CFR - XML import'!$A189,SEARCH(\">\",'CFR - XML import'!$A189,1)+1,SEARCH(\"/\",'CFR - XML import'!$A189,1)-SEARCH(\">\",'CFR - XML import'!$A189,1)-2)))","v":0},{"$f":"IF(ISERROR(FIND(BQ$3,'CFR - XML import'!$A189)),0,VALUE(MID('CFR - XML import'!$A189,SEARCH(\">\",'CFR - XML import'!$A189,1)+1,SEARCH(\"/\",'CFR - XML import'!$A189,1)-SEARCH(\">\",'CFR - XML import'!$A189,1)-2)))","v":0},{"$f":"IF(ISERROR(FIND(BR$3,'CFR - XML import'!$A189)),0,VALUE(MID('CFR - XML import'!$A189,SEARCH(\">\",'CFR - XML import'!$A189,1)+1,SEARCH(\"/\",'CFR - XML import'!$A189,1)-SEARCH(\">\",'CFR - XML import'!$A189,1)-2)))","v":0},{"$f":"IF(ISERROR(FIND(BS$3,'CFR - XML import'!$A189)),0,VALUE(MID('CFR - XML import'!$A189,SEARCH(\">\",'CFR - XML import'!$A189,1)+1,SEARCH(\"/\",'CFR - XML import'!$A189,1)-SEARCH(\">\",'CFR - XML import'!$A189,1)-2)))","v":0},{"$f":"IF(ISERROR(FIND(BT$3,'CFR - XML import'!$A189)),0,VALUE(MID('CFR - XML import'!$A189,SEARCH(\">\",'CFR - XML import'!$A189,1)+1,SEARCH(\"/\",'CFR - XML import'!$A189,1)-SEARCH(\">\",'CFR - XML import'!$A189,1)-2)))","v":0},{"$f":"IF(ISERROR(FIND(BU$3,'CFR - XML import'!$A189)),0,VALUE(MID('CFR - XML import'!$A189,SEARCH(\">\",'CFR - XML import'!$A189,1)+1,SEARCH(\"/\",'CFR - XML import'!$A189,1)-SEARCH(\">\",'CFR - XML import'!$A189,1)-2)))","v":0},{"$f":"IF(ISERROR(FIND(BV$3,'CFR - XML import'!$A189)),0,VALUE(MID('CFR - XML import'!$A189,SEARCH(\">\",'CFR - XML import'!$A189,1)+1,SEARCH(\"/\",'CFR - XML import'!$A189,1)-SEARCH(\">\",'CFR - XML import'!$A189,1)-2)))","v":0},{"$f":"IF(ISERROR(FIND(BW$3,'CFR - XML import'!$A189)),0,VALUE(MID('CFR - XML import'!$A189,SEARCH(\">\",'CFR - XML import'!$A189,1)+1,SEARCH(\"/\",'CFR - XML import'!$A189,1)-SEARCH(\">\",'CFR - XML import'!$A189,1)-2)))","v":0},{"$f":"IF(ISERROR(FIND(BX$3,'CFR - XML import'!$A189)),0,VALUE(MID('CFR - XML import'!$A189,SEARCH(\">\",'CFR - XML import'!$A189,1)+1,SEARCH(\"/\",'CFR - XML import'!$A189,1)-SEARCH(\">\",'CFR - XML import'!$A189,1)-2)))","v":0},{"$f":"IF(ISERROR(FIND(BY$3,'CFR - XML import'!$A189)),0,VALUE(MID('CFR - XML import'!$A189,SEARCH(\">\",'CFR - XML import'!$A189,1)+1,SEARCH(\"/\",'CFR - XML import'!$A189,1)-SEARCH(\">\",'CFR - XML import'!$A189,1)-2)))","v":0},{"$f":"IF(ISERROR(FIND(BZ$3,'CFR - XML import'!$A189)),0,VALUE(MID('CFR - XML import'!$A189,SEARCH(\">\",'CFR - XML import'!$A189,1)+1,SEARCH(\"/\",'CFR - XML import'!$A189,1)-SEARCH(\">\",'CFR - XML import'!$A189,1)-2)))","v":0},null,null,null,null,null,null,{"$f":"IF(ISERROR(IF(MID('CFR - XML import'!$A189,LEN($CF$4)+1,LEN('CFR - XML import'!$A189)-(2*LEN($CF$4)+1))=\"RMMS\",1,IF(MID('CFR - XML import'!$A189,LEN(\"    <InputSystem>\")+1,LEN('CFR - XML import'!$A189)-(LEN(\"    <InputSystem>\")+LEN($CF$4)+1))=\"SIMS\",2,0))),0,IF(MID('CFR - XML import'!$A189,LEN($CF$4)+1,LEN('CFR - XML import'!$A189)-(2*LEN($CF$4)+1))=\"RMMS\",1,IF(MID('CFR - XML import'!$A189,LEN(\"    <InputSystem>\")+1,LEN('CFR - XML import'!$A189)-(LEN(\"    <InputSystem>\")+LEN($CF$4)+1))=\"SIMS\",2,0)))","v":0},{"$f":"IF(ISERROR(FIND(CH$3,'CFR - XML import'!$A189)),0,MID('CFR - XML import'!$A189,SEARCH(\">\",'CFR - XML import'!$A189,1)+1,SEARCH(\"/\",'CFR - XML import'!$A189,1)-SEARCH(\">\",'CFR - XML import'!$A189,1)-2))","v":0},{"$f":"IF(ISERROR(FIND(CI$3,'CFR - XML import'!$A189)),0,MID('CFR - XML import'!$A189,SEARCH(\">\",'CFR - XML import'!$A189,1)+1,SEARCH(\"/\",'CFR - XML import'!$A189,1)-SEARCH(\">\",'CFR - XML import'!$A189,1)-2))","v":0},{"$f":"IF(ISERROR(FIND(CJ$3,'CFR - XML import'!$A189)),0,MID('CFR - XML import'!$A189,SEARCH(\">\",'CFR - XML import'!$A189,1)+1,SEARCH(\"/\",'CFR - XML import'!$A189,1)-SEARCH(\">\",'CFR - XML import'!$A189,1)-2))","v":0},{"$f":"IF(ISERROR(FIND(CK$3,'CFR - XML import'!$A189)),0,MID('CFR - XML import'!$A189,SEARCH(\">\",'CFR - XML import'!$A189,1)+1,SEARCH(\"/\",'CFR - XML import'!$A189,1)-SEARCH(\">\",'CFR - XML import'!$A189,1)-2))","v":0},{"$f":"IF(ISERROR(FIND(CL$3,'CFR - XML import'!$A189)),0,MID('CFR - XML import'!$A189,SEARCH(\">\",'CFR - XML import'!$A189,1)+1,SEARCH(\"/\",'CFR - XML import'!$A189,1)-SEARCH(\">\",'CFR - XML import'!$A189,1)-2))","v":0}]
[{"$f":"IF(AND('CFR - XML import'!A190<>\"\",LEFT('CFR - XML import'!A190,1)<>\"<\",LEFT('CFR - XML import'!A190,3)<>\"  <\",LEFT('CFR - XML import'!A190,5)<>\"    <\",LEFT('CFR - XML import'!A190,7)<>\"      <\",LEFT('CFR - XML import'!A190,9)<>\"        <\",$B$1=\"SIMS\"),'CFR - XML import'!A190,IF(AND(LEFT('CFR - XML import'!A190,9)=\"<Details>\",$B$1=\"RM\"),'CFR - XML import'!A190,\"\"))","v":""},{"$f":"IF(ISERROR(FIND(B$3,'CFR - XML import'!$A190)),0,VALUE(MID('CFR - XML import'!$A190,SEARCH(\">\",'CFR - XML import'!$A190,1)+1,SEARCH(\"/\",'CFR - XML import'!$A190,1)-SEARCH(\">\",'CFR - XML import'!$A190,1)-2)))","v":0},null,{"$f":"IF(ISERROR(FIND(D$3,'CFR - XML import'!$A190)),0,MID('CFR - XML import'!$A190,SEARCH(\">\",'CFR - XML import'!$A190,1)+1,SEARCH(\"/\",'CFR - XML import'!$A190,1)-SEARCH(\">\",'CFR - XML import'!$A190,1)-2))","v":0},{"$f":"IF(ISERROR(FIND(E$3,'CFR - XML import'!$A190)),0,MID('CFR - XML import'!$A190,SEARCH(\">\",'CFR - XML import'!$A190,1)+1,SEARCH(\"/\",'CFR - XML import'!$A190,1)-SEARCH(\">\",'CFR - XML import'!$A190,1)-2))","v":0},{"$f":"IF($B$1=\"SIMS\",IF(ISERROR(FIND(F$3,'CFR - XML import'!$A190)),0,VALUE(MID('CFR - XML import'!$A190,15,10))),IF(ISERROR(FIND(F$3,'CFR - XML import'!$A190)),0,VALUE(MID('CFR - XML import'!$A190,11,10))))","v":"00:00:00"},{"$f":"IF(ISERROR(FIND(G$3,'CFR - XML import'!$A190)),0,VALUE(MID('CFR - XML import'!$A190,SEARCH(\">\",'CFR - XML import'!$A190,1)+1,SEARCH(\"/\",'CFR - XML import'!$A190,1)-SEARCH(\">\",'CFR - XML import'!$A190,1)-2)))","v":0},{"$f":"IF(ISERROR(FIND(H$3,'CFR - XML import'!$A190)),0,VALUE(MID('CFR - XML import'!$A190,SEARCH(\">\",'CFR - XML import'!$A190,1)+1,SEARCH(\"/\",'CFR - XML import'!$A190,1)-SEARCH(\">\",'CFR - XML import'!$A190,1)-2)))","v":0},{"$f":"IF(ISERROR(FIND(I$3,'CFR - XML import'!$A190)),0,VALUE(MID('CFR - XML import'!$A190,SEARCH(\">\",'CFR - XML import'!$A190,1)+1,SEARCH(\"/\",'CFR - XML import'!$A190,1)-SEARCH(\">\",'CFR - XML import'!$A190,1)-2)))","v":0},{"$f":"IF(ISERROR(FIND(J$3,'CFR - XML import'!$A190)),0,VALUE(MID('CFR - XML import'!$A190,SEARCH(\">\",'CFR - XML import'!$A190,1)+1,SEARCH(\"/\",'CFR - XML import'!$A190,1)-SEARCH(\">\",'CFR - XML import'!$A190,1)-2)))","v":0},{"$f":"IF(ISERROR(FIND(K$3,'CFR - XML import'!$A190)),0,VALUE(MID('CFR - XML import'!$A190,SEARCH(\">\",'CFR - XML import'!$A190,1)+1,SEARCH(\"/\",'CFR - XML import'!$A190,1)-SEARCH(\">\",'CFR - XML import'!$A190,1)-2)))","v":0},{"$f":"IF(ISERROR(FIND(L$3,'CFR - XML import'!$A190)),0,VALUE(MID('CFR - XML import'!$A190,SEARCH(\">\",'CFR - XML import'!$A190,1)+1,SEARCH(\"/\",'CFR - XML import'!$A190,1)-SEARCH(\">\",'CFR - XML import'!$A190,1)-2)))","v":0},{"$f":"IF(ISERROR(FIND(M$3,'CFR - XML import'!$A190)),0,VALUE(MID('CFR - XML import'!$A190,SEARCH(\">\",'CFR - XML import'!$A190,1)+1,SEARCH(\"/\",'CFR - XML import'!$A190,1)-SEARCH(\">\",'CFR - XML import'!$A190,1)-2)))","v":0},{"$f":"IF(ISERROR(FIND(N$3,'CFR - XML import'!$A190)),0,VALUE(MID('CFR - XML import'!$A190,SEARCH(\">\",'CFR - XML import'!$A190,1)+1,SEARCH(\"/\",'CFR - XML import'!$A190,1)-SEARCH(\">\",'CFR - XML import'!$A190,1)-2)))","v":0},{"$f":"IF(ISERROR(FIND(O$3,'CFR - XML import'!$A190)),0,VALUE(MID('CFR - XML import'!$A190,SEARCH(\">\",'CFR - XML import'!$A190,1)+1,SEARCH(\"/\",'CFR - XML import'!$A190,1)-SEARCH(\">\",'CFR - XML import'!$A190,1)-2)))","v":0},{"$f":"IF(ISERROR(FIND(P$3,'CFR - XML import'!$A190)),0,VALUE(MID('CFR - XML import'!$A190,SEARCH(\">\",'CFR - XML import'!$A190,1)+1,SEARCH(\"/\",'CFR - XML import'!$A190,1)-SEARCH(\">\",'CFR - XML import'!$A190,1)-2)))","v":0},{"$f":"IF(ISERROR(FIND(Q$3,'CFR - XML import'!$A190)),0,VALUE(MID('CFR - XML import'!$A190,SEARCH(\">\",'CFR - XML import'!$A190,1)+1,SEARCH(\"/\",'CFR - XML import'!$A190,1)-SEARCH(\">\",'CFR - XML import'!$A190,1)-2)))","v":0},{"$f":"IF(ISERROR(FIND(R$3,'CFR - XML import'!$A190)),0,VALUE(MID('CFR - XML import'!$A190,SEARCH(\">\",'CFR - XML import'!$A190,1)+1,SEARCH(\"/\",'CFR - XML import'!$A190,1)-SEARCH(\">\",'CFR - XML import'!$A190,1)-2)))","v":0},{"$f":"IF(ISERROR(FIND(S$3,'CFR - XML import'!$A190)),0,VALUE(MID('CFR - XML import'!$A190,SEARCH(\">\",'CFR - XML import'!$A190,1)+1,SEARCH(\"/\",'CFR - XML import'!$A190,1)-SEARCH(\">\",'CFR - XML import'!$A190,1)-2)))","v":0},{"$f":"IF(ISERROR(FIND(T$3,'CFR - XML import'!$A190)),0,VALUE(MID('CFR - XML import'!$A190,SEARCH(\">\",'CFR - XML import'!$A190,1)+1,SEARCH(\"/\",'CFR - XML import'!$A190,1)-SEARCH(\">\",'CFR - XML import'!$A190,1)-2)))","v":0},{"$f":"IF(ISERROR(FIND(U$3,'CFR - XML import'!$A190)),0,VALUE(MID('CFR - XML import'!$A190,SEARCH(\">\",'CFR - XML import'!$A190,1)+1,SEARCH(\"/\",'CFR - XML import'!$A190,1)-SEARCH(\">\",'CFR - XML import'!$A190,1)-2)))","v":0},{"$f":"IF(ISERROR(FIND(V$3,'CFR - XML import'!$A190)),0,VALUE(MID('CFR - XML import'!$A190,SEARCH(\">\",'CFR - XML import'!$A190,1)+1,SEARCH(\"/\",'CFR - XML import'!$A190,1)-SEARCH(\">\",'CFR - XML import'!$A190,1)-2)))","v":0},{"$f":"IF(ISERROR(FIND(W$3,'CFR - XML import'!$A190)),0,VALUE(MID('CFR - XML import'!$A190,SEARCH(\">\",'CFR - XML import'!$A190,1)+1,SEARCH(\"/\",'CFR - XML import'!$A190,1)-SEARCH(\">\",'CFR - XML import'!$A190,1)-2)))","v":0},null,{"$f":"IF(ISERROR(FIND(Y$3,'CFR - XML import'!$A190)),0,VALUE(MID('CFR - XML import'!$A190,SEARCH(\">\",'CFR - XML import'!$A190,1)+1,SEARCH(\"/\",'CFR - XML import'!$A190,1)-SEARCH(\">\",'CFR - XML import'!$A190,1)-2)))","v":0},{"$f":"IF(ISERROR(FIND(Z$3,'CFR - XML import'!$A190)),0,VALUE(MID('CFR - XML import'!$A190,SEARCH(\">\",'CFR - XML import'!$A190,1)+1,SEARCH(\"/\",'CFR - XML import'!$A190,1)-SEARCH(\">\",'CFR - XML import'!$A190,1)-2)))","v":0},{"$f":"IF(ISERROR(FIND(AA$3,'CFR - XML import'!$A190)),0,VALUE(MID('CFR - XML import'!$A190,SEARCH(\">\",'CFR - XML import'!$A190,1)+1,SEARCH(\"/\",'CFR - XML import'!$A190,1)-SEARCH(\">\",'CFR - XML import'!$A190,1)-2)))","v":0},{"$f":"IF(ISERROR(FIND(AB$3,'CFR - XML import'!$A190)),0,VALUE(MID('CFR - XML import'!$A190,SEARCH(\">\",'CFR - XML import'!$A190,1)+1,SEARCH(\"/\",'CFR - XML import'!$A190,1)-SEARCH(\">\",'CFR - XML import'!$A190,1)-2)))","v":0},{"$f":"IF(ISERROR(FIND(AC$3,'CFR - XML import'!$A190)),0,VALUE(MID('CFR - XML import'!$A190,SEARCH(\">\",'CFR - XML import'!$A190,1)+1,SEARCH(\"/\",'CFR - XML import'!$A190,1)-SEARCH(\">\",'CFR - XML import'!$A190,1)-2)))","v":0},{"$f":"IF(ISERROR(FIND(AD$3,'CFR - XML import'!$A190)),0,VALUE(MID('CFR - XML import'!$A190,SEARCH(\">\",'CFR - XML import'!$A190,1)+1,SEARCH(\"/\",'CFR - XML import'!$A190,1)-SEARCH(\">\",'CFR - XML import'!$A190,1)-2)))","v":0},{"$f":"IF(ISERROR(FIND(AE$3,'CFR - XML import'!$A190)),0,VALUE(MID('CFR - XML import'!$A190,SEARCH(\">\",'CFR - XML import'!$A190,1)+1,SEARCH(\"/\",'CFR - XML import'!$A190,1)-SEARCH(\">\",'CFR - XML import'!$A190,1)-2)))","v":0},{"$f":"IF(ISERROR(FIND(AF$3,'CFR - XML import'!$A190)),0,VALUE(MID('CFR - XML import'!$A190,SEARCH(\">\",'CFR - XML import'!$A190,1)+1,SEARCH(\"/\",'CFR - XML import'!$A190,1)-SEARCH(\">\",'CFR - XML import'!$A190,1)-2)))","v":0},{"$f":"IF(ISERROR(FIND(AG$3,'CFR - XML import'!$A190)),0,VALUE(MID('CFR - XML import'!$A190,SEARCH(\">\",'CFR - XML import'!$A190,1)+1,SEARCH(\"/\",'CFR - XML import'!$A190,1)-SEARCH(\">\",'CFR - XML import'!$A190,1)-2)))","v":0},{"$f":"IF(ISERROR(FIND(AH$3,'CFR - XML import'!$A190)),0,VALUE(MID('CFR - XML import'!$A190,SEARCH(\">\",'CFR - XML import'!$A190,1)+1,SEARCH(\"/\",'CFR - XML import'!$A190,1)-SEARCH(\">\",'CFR - XML import'!$A190,1)-2)))","v":0},{"$f":"IF(ISERROR(FIND(AI$3,'CFR - XML import'!$A190)),0,VALUE(MID('CFR - XML import'!$A190,SEARCH(\">\",'CFR - XML import'!$A190,1)+1,SEARCH(\"/\",'CFR - XML import'!$A190,1)-SEARCH(\">\",'CFR - XML import'!$A190,1)-2)))","v":0},{"$f":"IF(ISERROR(FIND(AJ$3,'CFR - XML import'!$A190)),0,VALUE(MID('CFR - XML import'!$A190,SEARCH(\">\",'CFR - XML import'!$A190,1)+1,SEARCH(\"/\",'CFR - XML import'!$A190,1)-SEARCH(\">\",'CFR - XML import'!$A190,1)-2)))","v":0},{"$f":"IF(ISERROR(FIND(AK$3,'CFR - XML import'!$A190)),0,VALUE(MID('CFR - XML import'!$A190,SEARCH(\">\",'CFR - XML import'!$A190,1)+1,SEARCH(\"/\",'CFR - XML import'!$A190,1)-SEARCH(\">\",'CFR - XML import'!$A190,1)-2)))","v":0},{"$f":"IF(ISERROR(FIND(AL$3,'CFR - XML import'!$A190)),0,VALUE(MID('CFR - XML import'!$A190,SEARCH(\">\",'CFR - XML import'!$A190,1)+1,SEARCH(\"/\",'CFR - XML import'!$A190,1)-SEARCH(\">\",'CFR - XML import'!$A190,1)-2)))","v":0},{"$f":"IF(ISERROR(FIND(AM$3,'CFR - XML import'!$A190)),0,VALUE(MID('CFR - XML import'!$A190,SEARCH(\">\",'CFR - XML import'!$A190,1)+1,SEARCH(\"/\",'CFR - XML import'!$A190,1)-SEARCH(\">\",'CFR - XML import'!$A190,1)-2)))","v":0},{"$f":"IF(ISERROR(FIND(AN$3,'CFR - XML import'!$A190)),0,VALUE(MID('CFR - XML import'!$A190,SEARCH(\">\",'CFR - XML import'!$A190,1)+1,SEARCH(\"/\",'CFR - XML import'!$A190,1)-SEARCH(\">\",'CFR - XML import'!$A190,1)-2)))","v":0},{"$f":"IF(ISERROR(FIND(AO$3,'CFR - XML import'!$A190)),0,VALUE(MID('CFR - XML import'!$A190,SEARCH(\">\",'CFR - XML import'!$A190,1)+1,SEARCH(\"/\",'CFR - XML import'!$A190,1)-SEARCH(\">\",'CFR - XML import'!$A190,1)-2)))","v":0},{"$f":"IF(ISERROR(FIND(AP$3,'CFR - XML import'!$A190)),0,VALUE(MID('CFR - XML import'!$A190,SEARCH(\">\",'CFR - XML import'!$A190,1)+1,SEARCH(\"/\",'CFR - XML import'!$A190,1)-SEARCH(\">\",'CFR - XML import'!$A190,1)-2)))","v":0},{"$f":"IF(ISERROR(FIND(AQ$3,'CFR - XML import'!$A190)),0,VALUE(MID('CFR - XML import'!$A190,SEARCH(\">\",'CFR - XML import'!$A190,1)+1,SEARCH(\"/\",'CFR - XML import'!$A190,1)-SEARCH(\">\",'CFR - XML import'!$A190,1)-2)))","v":0},{"$f":"IF(ISERROR(FIND(AR$3,'CFR - XML import'!$A190)),0,VALUE(MID('CFR - XML import'!$A190,SEARCH(\">\",'CFR - XML import'!$A190,1)+1,SEARCH(\"/\",'CFR - XML import'!$A190,1)-SEARCH(\">\",'CFR - XML import'!$A190,1)-2)))","v":0},{"$f":"IF(ISERROR(FIND(AS$3,'CFR - XML import'!$A190)),0,VALUE(MID('CFR - XML import'!$A190,SEARCH(\">\",'CFR - XML import'!$A190,1)+1,SEARCH(\"/\",'CFR - XML import'!$A190,1)-SEARCH(\">\",'CFR - XML import'!$A190,1)-2)))","v":0},{"$f":"IF(ISERROR(FIND(AT$3,'CFR - XML import'!$A190)),0,VALUE(MID('CFR - XML import'!$A190,SEARCH(\">\",'CFR - XML import'!$A190,1)+1,SEARCH(\"/\",'CFR - XML import'!$A190,1)-SEARCH(\">\",'CFR - XML import'!$A190,1)-2)))","v":0},{"$f":"IF(ISERROR(FIND(AU$3,'CFR - XML import'!$A190)),0,VALUE(MID('CFR - XML import'!$A190,SEARCH(\">\",'CFR - XML import'!$A190,1)+1,SEARCH(\"/\",'CFR - XML import'!$A190,1)-SEARCH(\">\",'CFR - XML import'!$A190,1)-2)))","v":0},{"$f":"IF(ISERROR(FIND(AV$3,'CFR - XML import'!$A190)),0,VALUE(MID('CFR - XML import'!$A190,SEARCH(\">\",'CFR - XML import'!$A190,1)+1,SEARCH(\"/\",'CFR - XML import'!$A190,1)-SEARCH(\">\",'CFR - XML import'!$A190,1)-2)))","v":0},{"$f":"IF(ISERROR(FIND(AW$3,'CFR - XML import'!$A190)),0,VALUE(MID('CFR - XML import'!$A190,SEARCH(\">\",'CFR - XML import'!$A190,1)+1,SEARCH(\"/\",'CFR - XML import'!$A190,1)-SEARCH(\">\",'CFR - XML import'!$A190,1)-2)))","v":0},{"$f":"IF(ISERROR(FIND(AX$3,'CFR - XML import'!$A190)),0,VALUE(MID('CFR - XML import'!$A190,SEARCH(\">\",'CFR - XML import'!$A190,1)+1,SEARCH(\"/\",'CFR - XML import'!$A190,1)-SEARCH(\">\",'CFR - XML import'!$A190,1)-2)))","v":0},{"$f":"IF(ISERROR(FIND(AY$3,'CFR - XML import'!$A190)),0,VALUE(MID('CFR - XML import'!$A190,SEARCH(\">\",'CFR - XML import'!$A190,1)+1,SEARCH(\"/\",'CFR - XML import'!$A190,1)-SEARCH(\">\",'CFR - XML import'!$A190,1)-2)))","v":0},{"$f":"IF(ISERROR(FIND(AZ$3,'CFR - XML import'!$A190)),0,VALUE(MID('CFR - XML import'!$A190,SEARCH(\">\",'CFR - XML import'!$A190,1)+1,SEARCH(\"/\",'CFR - XML import'!$A190,1)-SEARCH(\">\",'CFR - XML import'!$A190,1)-2)))","v":0},{"$f":"IF(ISERROR(FIND(BA$3,'CFR - XML import'!$A190)),0,VALUE(MID('CFR - XML import'!$A190,SEARCH(\">\",'CFR - XML import'!$A190,1)+1,SEARCH(\"/\",'CFR - XML import'!$A190,1)-SEARCH(\">\",'CFR - XML import'!$A190,1)-2)))","v":0},{"$f":"IF(ISERROR(FIND(BB$3,'CFR - XML import'!$A190)),0,VALUE(MID('CFR - XML import'!$A190,SEARCH(\">\",'CFR - XML import'!$A190,1)+1,SEARCH(\"/\",'CFR - XML import'!$A190,1)-SEARCH(\">\",'CFR - XML import'!$A190,1)-2)))","v":0},{"$f":"IF(ISERROR(FIND(BC$3,'CFR - XML import'!$A190)),0,VALUE(MID('CFR - XML import'!$A190,SEARCH(\">\",'CFR - XML import'!$A190,1)+1,SEARCH(\"/\",'CFR - XML import'!$A190,1)-SEARCH(\">\",'CFR - XML import'!$A190,1)-2)))","v":0},{"$f":"IF(ISERROR(FIND(BD$3,'CFR - XML import'!$A190)),0,VALUE(MID('CFR - XML import'!$A190,SEARCH(\">\",'CFR - XML import'!$A190,1)+1,SEARCH(\"/\",'CFR - XML import'!$A190,1)-SEARCH(\">\",'CFR - XML import'!$A190,1)-2)))","v":0},{"$f":"IF(ISERROR(FIND(BE$3,'CFR - XML import'!$A190)),0,VALUE(MID('CFR - XML import'!$A190,SEARCH(\">\",'CFR - XML import'!$A190,1)+1,SEARCH(\"/\",'CFR - XML import'!$A190,1)-SEARCH(\">\",'CFR - XML import'!$A190,1)-2)))","v":0},{"$f":"IF(ISERROR(FIND(BF$3,'CFR - XML import'!$A190)),0,VALUE(MID('CFR - XML import'!$A190,SEARCH(\">\",'CFR - XML import'!$A190,1)+1,SEARCH(\"/\",'CFR - XML import'!$A190,1)-SEARCH(\">\",'CFR - XML import'!$A190,1)-2)))","v":0},{"$f":"IF(ISERROR(FIND(BG$3,'CFR - XML import'!$A190)),0,VALUE(MID('CFR - XML import'!$A190,SEARCH(\">\",'CFR - XML import'!$A190,1)+1,SEARCH(\"/\",'CFR - XML import'!$A190,1)-SEARCH(\">\",'CFR - XML import'!$A190,1)-2)))","v":0},{"$f":"IF(ISERROR(FIND(BH$3,'CFR - XML import'!$A190)),0,VALUE(MID('CFR - XML import'!$A190,SEARCH(\">\",'CFR - XML import'!$A190,1)+1,SEARCH(\"/\",'CFR - XML import'!$A190,1)-SEARCH(\">\",'CFR - XML import'!$A190,1)-2)))","v":0},{"$f":"IF(ISERROR(FIND(BI$3,'CFR - XML import'!$A190)),0,VALUE(MID('CFR - XML import'!$A190,SEARCH(\">\",'CFR - XML import'!$A190,1)+1,SEARCH(\"/\",'CFR - XML import'!$A190,1)-SEARCH(\">\",'CFR - XML import'!$A190,1)-2)))","v":0},{"$f":"IF(ISERROR(FIND(BJ$3,'CFR - XML import'!$A190)),0,VALUE(MID('CFR - XML import'!$A190,SEARCH(\">\",'CFR - XML import'!$A190,1)+1,SEARCH(\"/\",'CFR - XML import'!$A190,1)-SEARCH(\">\",'CFR - XML import'!$A190,1)-2)))","v":0},{"$f":"IF(ISERROR(FIND(BK$3,'CFR - XML import'!$A190)),0,VALUE(MID('CFR - XML import'!$A190,SEARCH(\">\",'CFR - XML import'!$A190,1)+1,SEARCH(\"/\",'CFR - XML import'!$A190,1)-SEARCH(\">\",'CFR - XML import'!$A190,1)-2)))","v":0},{"$f":"IF(ISERROR(FIND(BL$3,'CFR - XML import'!$A190)),0,VALUE(MID('CFR - XML import'!$A190,SEARCH(\">\",'CFR - XML import'!$A190,1)+1,SEARCH(\"/\",'CFR - XML import'!$A190,1)-SEARCH(\">\",'CFR - XML import'!$A190,1)-2)))","v":0},{"$f":"IF(ISERROR(FIND(BM$3,'CFR - XML import'!$A190)),0,VALUE(MID('CFR - XML import'!$A190,SEARCH(\">\",'CFR - XML import'!$A190,1)+1,SEARCH(\"/\",'CFR - XML import'!$A190,1)-SEARCH(\">\",'CFR - XML import'!$A190,1)-2)))","v":0},{"$f":"IF(ISERROR(FIND(BN$3,'CFR - XML import'!$A190)),0,VALUE(MID('CFR - XML import'!$A190,SEARCH(\">\",'CFR - XML import'!$A190,1)+1,SEARCH(\"/\",'CFR - XML import'!$A190,1)-SEARCH(\">\",'CFR - XML import'!$A190,1)-2)))","v":0},{"$f":"IF(ISERROR(FIND(BO$3,'CFR - XML import'!$A190)),0,VALUE(MID('CFR - XML import'!$A190,SEARCH(\">\",'CFR - XML import'!$A190,1)+1,SEARCH(\"/\",'CFR - XML import'!$A190,1)-SEARCH(\">\",'CFR - XML import'!$A190,1)-2)))","v":0},{"$f":"IF(ISERROR(FIND(BP$3,'CFR - XML import'!$A190)),0,VALUE(MID('CFR - XML import'!$A190,SEARCH(\">\",'CFR - XML import'!$A190,1)+1,SEARCH(\"/\",'CFR - XML import'!$A190,1)-SEARCH(\">\",'CFR - XML import'!$A190,1)-2)))","v":0},{"$f":"IF(ISERROR(FIND(BQ$3,'CFR - XML import'!$A190)),0,VALUE(MID('CFR - XML import'!$A190,SEARCH(\">\",'CFR - XML import'!$A190,1)+1,SEARCH(\"/\",'CFR - XML import'!$A190,1)-SEARCH(\">\",'CFR - XML import'!$A190,1)-2)))","v":0},{"$f":"IF(ISERROR(FIND(BR$3,'CFR - XML import'!$A190)),0,VALUE(MID('CFR - XML import'!$A190,SEARCH(\">\",'CFR - XML import'!$A190,1)+1,SEARCH(\"/\",'CFR - XML import'!$A190,1)-SEARCH(\">\",'CFR - XML import'!$A190,1)-2)))","v":0},{"$f":"IF(ISERROR(FIND(BS$3,'CFR - XML import'!$A190)),0,VALUE(MID('CFR - XML import'!$A190,SEARCH(\">\",'CFR - XML import'!$A190,1)+1,SEARCH(\"/\",'CFR - XML import'!$A190,1)-SEARCH(\">\",'CFR - XML import'!$A190,1)-2)))","v":0},{"$f":"IF(ISERROR(FIND(BT$3,'CFR - XML import'!$A190)),0,VALUE(MID('CFR - XML import'!$A190,SEARCH(\">\",'CFR - XML import'!$A190,1)+1,SEARCH(\"/\",'CFR - XML import'!$A190,1)-SEARCH(\">\",'CFR - XML import'!$A190,1)-2)))","v":0},{"$f":"IF(ISERROR(FIND(BU$3,'CFR - XML import'!$A190)),0,VALUE(MID('CFR - XML import'!$A190,SEARCH(\">\",'CFR - XML import'!$A190,1)+1,SEARCH(\"/\",'CFR - XML import'!$A190,1)-SEARCH(\">\",'CFR - XML import'!$A190,1)-2)))","v":0},{"$f":"IF(ISERROR(FIND(BV$3,'CFR - XML import'!$A190)),0,VALUE(MID('CFR - XML import'!$A190,SEARCH(\">\",'CFR - XML import'!$A190,1)+1,SEARCH(\"/\",'CFR - XML import'!$A190,1)-SEARCH(\">\",'CFR - XML import'!$A190,1)-2)))","v":0},{"$f":"IF(ISERROR(FIND(BW$3,'CFR - XML import'!$A190)),0,VALUE(MID('CFR - XML import'!$A190,SEARCH(\">\",'CFR - XML import'!$A190,1)+1,SEARCH(\"/\",'CFR - XML import'!$A190,1)-SEARCH(\">\",'CFR - XML import'!$A190,1)-2)))","v":0},{"$f":"IF(ISERROR(FIND(BX$3,'CFR - XML import'!$A190)),0,VALUE(MID('CFR - XML import'!$A190,SEARCH(\">\",'CFR - XML import'!$A190,1)+1,SEARCH(\"/\",'CFR - XML import'!$A190,1)-SEARCH(\">\",'CFR - XML import'!$A190,1)-2)))","v":0},{"$f":"IF(ISERROR(FIND(BY$3,'CFR - XML import'!$A190)),0,VALUE(MID('CFR - XML import'!$A190,SEARCH(\">\",'CFR - XML import'!$A190,1)+1,SEARCH(\"/\",'CFR - XML import'!$A190,1)-SEARCH(\">\",'CFR - XML import'!$A190,1)-2)))","v":0},{"$f":"IF(ISERROR(FIND(BZ$3,'CFR - XML import'!$A190)),0,VALUE(MID('CFR - XML import'!$A190,SEARCH(\">\",'CFR - XML import'!$A190,1)+1,SEARCH(\"/\",'CFR - XML import'!$A190,1)-SEARCH(\">\",'CFR - XML import'!$A190,1)-2)))","v":0},null,null,null,null,null,null,{"$f":"IF(ISERROR(IF(MID('CFR - XML import'!$A190,LEN($CF$4)+1,LEN('CFR - XML import'!$A190)-(2*LEN($CF$4)+1))=\"RMMS\",1,IF(MID('CFR - XML import'!$A190,LEN(\"    <InputSystem>\")+1,LEN('CFR - XML import'!$A190)-(LEN(\"    <InputSystem>\")+LEN($CF$4)+1))=\"SIMS\",2,0))),0,IF(MID('CFR - XML import'!$A190,LEN($CF$4)+1,LEN('CFR - XML import'!$A190)-(2*LEN($CF$4)+1))=\"RMMS\",1,IF(MID('CFR - XML import'!$A190,LEN(\"    <InputSystem>\")+1,LEN('CFR - XML import'!$A190)-(LEN(\"    <InputSystem>\")+LEN($CF$4)+1))=\"SIMS\",2,0)))","v":0},{"$f":"IF(ISERROR(FIND(CH$3,'CFR - XML import'!$A190)),0,MID('CFR - XML import'!$A190,SEARCH(\">\",'CFR - XML import'!$A190,1)+1,SEARCH(\"/\",'CFR - XML import'!$A190,1)-SEARCH(\">\",'CFR - XML import'!$A190,1)-2))","v":0},{"$f":"IF(ISERROR(FIND(CI$3,'CFR - XML import'!$A190)),0,MID('CFR - XML import'!$A190,SEARCH(\">\",'CFR - XML import'!$A190,1)+1,SEARCH(\"/\",'CFR - XML import'!$A190,1)-SEARCH(\">\",'CFR - XML import'!$A190,1)-2))","v":0},{"$f":"IF(ISERROR(FIND(CJ$3,'CFR - XML import'!$A190)),0,MID('CFR - XML import'!$A190,SEARCH(\">\",'CFR - XML import'!$A190,1)+1,SEARCH(\"/\",'CFR - XML import'!$A190,1)-SEARCH(\">\",'CFR - XML import'!$A190,1)-2))","v":0},{"$f":"IF(ISERROR(FIND(CK$3,'CFR - XML import'!$A190)),0,MID('CFR - XML import'!$A190,SEARCH(\">\",'CFR - XML import'!$A190,1)+1,SEARCH(\"/\",'CFR - XML import'!$A190,1)-SEARCH(\">\",'CFR - XML import'!$A190,1)-2))","v":0},{"$f":"IF(ISERROR(FIND(CL$3,'CFR - XML import'!$A190)),0,MID('CFR - XML import'!$A190,SEARCH(\">\",'CFR - XML import'!$A190,1)+1,SEARCH(\"/\",'CFR - XML import'!$A190,1)-SEARCH(\">\",'CFR - XML import'!$A190,1)-2))","v":0}]
[{"$f":"IF(AND('CFR - XML import'!A191<>\"\",LEFT('CFR - XML import'!A191,1)<>\"<\",LEFT('CFR - XML import'!A191,3)<>\"  <\",LEFT('CFR - XML import'!A191,5)<>\"    <\",LEFT('CFR - XML import'!A191,7)<>\"      <\",LEFT('CFR - XML import'!A191,9)<>\"        <\",$B$1=\"SIMS\"),'CFR - XML import'!A191,IF(AND(LEFT('CFR - XML import'!A191,9)=\"<Details>\",$B$1=\"RM\"),'CFR - XML import'!A191,\"\"))","v":""},{"$f":"IF(ISERROR(FIND(B$3,'CFR - XML import'!$A191)),0,VALUE(MID('CFR - XML import'!$A191,SEARCH(\">\",'CFR - XML import'!$A191,1)+1,SEARCH(\"/\",'CFR - XML import'!$A191,1)-SEARCH(\">\",'CFR - XML import'!$A191,1)-2)))","v":0},null,{"$f":"IF(ISERROR(FIND(D$3,'CFR - XML import'!$A191)),0,MID('CFR - XML import'!$A191,SEARCH(\">\",'CFR - XML import'!$A191,1)+1,SEARCH(\"/\",'CFR - XML import'!$A191,1)-SEARCH(\">\",'CFR - XML import'!$A191,1)-2))","v":0},{"$f":"IF(ISERROR(FIND(E$3,'CFR - XML import'!$A191)),0,MID('CFR - XML import'!$A191,SEARCH(\">\",'CFR - XML import'!$A191,1)+1,SEARCH(\"/\",'CFR - XML import'!$A191,1)-SEARCH(\">\",'CFR - XML import'!$A191,1)-2))","v":0},{"$f":"IF($B$1=\"SIMS\",IF(ISERROR(FIND(F$3,'CFR - XML import'!$A191)),0,VALUE(MID('CFR - XML import'!$A191,15,10))),IF(ISERROR(FIND(F$3,'CFR - XML import'!$A191)),0,VALUE(MID('CFR - XML import'!$A191,11,10))))","v":"00:00:00"},{"$f":"IF(ISERROR(FIND(G$3,'CFR - XML import'!$A191)),0,VALUE(MID('CFR - XML import'!$A191,SEARCH(\">\",'CFR - XML import'!$A191,1)+1,SEARCH(\"/\",'CFR - XML import'!$A191,1)-SEARCH(\">\",'CFR - XML import'!$A191,1)-2)))","v":0},{"$f":"IF(ISERROR(FIND(H$3,'CFR - XML import'!$A191)),0,VALUE(MID('CFR - XML import'!$A191,SEARCH(\">\",'CFR - XML import'!$A191,1)+1,SEARCH(\"/\",'CFR - XML import'!$A191,1)-SEARCH(\">\",'CFR - XML import'!$A191,1)-2)))","v":0},{"$f":"IF(ISERROR(FIND(I$3,'CFR - XML import'!$A191)),0,VALUE(MID('CFR - XML import'!$A191,SEARCH(\">\",'CFR - XML import'!$A191,1)+1,SEARCH(\"/\",'CFR - XML import'!$A191,1)-SEARCH(\">\",'CFR - XML import'!$A191,1)-2)))","v":0},{"$f":"IF(ISERROR(FIND(J$3,'CFR - XML import'!$A191)),0,VALUE(MID('CFR - XML import'!$A191,SEARCH(\">\",'CFR - XML import'!$A191,1)+1,SEARCH(\"/\",'CFR - XML import'!$A191,1)-SEARCH(\">\",'CFR - XML import'!$A191,1)-2)))","v":0},{"$f":"IF(ISERROR(FIND(K$3,'CFR - XML import'!$A191)),0,VALUE(MID('CFR - XML import'!$A191,SEARCH(\">\",'CFR - XML import'!$A191,1)+1,SEARCH(\"/\",'CFR - XML import'!$A191,1)-SEARCH(\">\",'CFR - XML import'!$A191,1)-2)))","v":0},{"$f":"IF(ISERROR(FIND(L$3,'CFR - XML import'!$A191)),0,VALUE(MID('CFR - XML import'!$A191,SEARCH(\">\",'CFR - XML import'!$A191,1)+1,SEARCH(\"/\",'CFR - XML import'!$A191,1)-SEARCH(\">\",'CFR - XML import'!$A191,1)-2)))","v":0},{"$f":"IF(ISERROR(FIND(M$3,'CFR - XML import'!$A191)),0,VALUE(MID('CFR - XML import'!$A191,SEARCH(\">\",'CFR - XML import'!$A191,1)+1,SEARCH(\"/\",'CFR - XML import'!$A191,1)-SEARCH(\">\",'CFR - XML import'!$A191,1)-2)))","v":0},{"$f":"IF(ISERROR(FIND(N$3,'CFR - XML import'!$A191)),0,VALUE(MID('CFR - XML import'!$A191,SEARCH(\">\",'CFR - XML import'!$A191,1)+1,SEARCH(\"/\",'CFR - XML import'!$A191,1)-SEARCH(\">\",'CFR - XML import'!$A191,1)-2)))","v":0},{"$f":"IF(ISERROR(FIND(O$3,'CFR - XML import'!$A191)),0,VALUE(MID('CFR - XML import'!$A191,SEARCH(\">\",'CFR - XML import'!$A191,1)+1,SEARCH(\"/\",'CFR - XML import'!$A191,1)-SEARCH(\">\",'CFR - XML import'!$A191,1)-2)))","v":0},{"$f":"IF(ISERROR(FIND(P$3,'CFR - XML import'!$A191)),0,VALUE(MID('CFR - XML import'!$A191,SEARCH(\">\",'CFR - XML import'!$A191,1)+1,SEARCH(\"/\",'CFR - XML import'!$A191,1)-SEARCH(\">\",'CFR - XML import'!$A191,1)-2)))","v":0},{"$f":"IF(ISERROR(FIND(Q$3,'CFR - XML import'!$A191)),0,VALUE(MID('CFR - XML import'!$A191,SEARCH(\">\",'CFR - XML import'!$A191,1)+1,SEARCH(\"/\",'CFR - XML import'!$A191,1)-SEARCH(\">\",'CFR - XML import'!$A191,1)-2)))","v":0},{"$f":"IF(ISERROR(FIND(R$3,'CFR - XML import'!$A191)),0,VALUE(MID('CFR - XML import'!$A191,SEARCH(\">\",'CFR - XML import'!$A191,1)+1,SEARCH(\"/\",'CFR - XML import'!$A191,1)-SEARCH(\">\",'CFR - XML import'!$A191,1)-2)))","v":0},{"$f":"IF(ISERROR(FIND(S$3,'CFR - XML import'!$A191)),0,VALUE(MID('CFR - XML import'!$A191,SEARCH(\">\",'CFR - XML import'!$A191,1)+1,SEARCH(\"/\",'CFR - XML import'!$A191,1)-SEARCH(\">\",'CFR - XML import'!$A191,1)-2)))","v":0},{"$f":"IF(ISERROR(FIND(T$3,'CFR - XML import'!$A191)),0,VALUE(MID('CFR - XML import'!$A191,SEARCH(\">\",'CFR - XML import'!$A191,1)+1,SEARCH(\"/\",'CFR - XML import'!$A191,1)-SEARCH(\">\",'CFR - XML import'!$A191,1)-2)))","v":0},{"$f":"IF(ISERROR(FIND(U$3,'CFR - XML import'!$A191)),0,VALUE(MID('CFR - XML import'!$A191,SEARCH(\">\",'CFR - XML import'!$A191,1)+1,SEARCH(\"/\",'CFR - XML import'!$A191,1)-SEARCH(\">\",'CFR - XML import'!$A191,1)-2)))","v":0},{"$f":"IF(ISERROR(FIND(V$3,'CFR - XML import'!$A191)),0,VALUE(MID('CFR - XML import'!$A191,SEARCH(\">\",'CFR - XML import'!$A191,1)+1,SEARCH(\"/\",'CFR - XML import'!$A191,1)-SEARCH(\">\",'CFR - XML import'!$A191,1)-2)))","v":0},{"$f":"IF(ISERROR(FIND(W$3,'CFR - XML import'!$A191)),0,VALUE(MID('CFR - XML import'!$A191,SEARCH(\">\",'CFR - XML import'!$A191,1)+1,SEARCH(\"/\",'CFR - XML import'!$A191,1)-SEARCH(\">\",'CFR - XML import'!$A191,1)-2)))","v":0},null,{"$f":"IF(ISERROR(FIND(Y$3,'CFR - XML import'!$A191)),0,VALUE(MID('CFR - XML import'!$A191,SEARCH(\">\",'CFR - XML import'!$A191,1)+1,SEARCH(\"/\",'CFR - XML import'!$A191,1)-SEARCH(\">\",'CFR - XML import'!$A191,1)-2)))","v":0},{"$f":"IF(ISERROR(FIND(Z$3,'CFR - XML import'!$A191)),0,VALUE(MID('CFR - XML import'!$A191,SEARCH(\">\",'CFR - XML import'!$A191,1)+1,SEARCH(\"/\",'CFR - XML import'!$A191,1)-SEARCH(\">\",'CFR - XML import'!$A191,1)-2)))","v":0},{"$f":"IF(ISERROR(FIND(AA$3,'CFR - XML import'!$A191)),0,VALUE(MID('CFR - XML import'!$A191,SEARCH(\">\",'CFR - XML import'!$A191,1)+1,SEARCH(\"/\",'CFR - XML import'!$A191,1)-SEARCH(\">\",'CFR - XML import'!$A191,1)-2)))","v":0},{"$f":"IF(ISERROR(FIND(AB$3,'CFR - XML import'!$A191)),0,VALUE(MID('CFR - XML import'!$A191,SEARCH(\">\",'CFR - XML import'!$A191,1)+1,SEARCH(\"/\",'CFR - XML import'!$A191,1)-SEARCH(\">\",'CFR - XML import'!$A191,1)-2)))","v":0},{"$f":"IF(ISERROR(FIND(AC$3,'CFR - XML import'!$A191)),0,VALUE(MID('CFR - XML import'!$A191,SEARCH(\">\",'CFR - XML import'!$A191,1)+1,SEARCH(\"/\",'CFR - XML import'!$A191,1)-SEARCH(\">\",'CFR - XML import'!$A191,1)-2)))","v":0},{"$f":"IF(ISERROR(FIND(AD$3,'CFR - XML import'!$A191)),0,VALUE(MID('CFR - XML import'!$A191,SEARCH(\">\",'CFR - XML import'!$A191,1)+1,SEARCH(\"/\",'CFR - XML import'!$A191,1)-SEARCH(\">\",'CFR - XML import'!$A191,1)-2)))","v":0},{"$f":"IF(ISERROR(FIND(AE$3,'CFR - XML import'!$A191)),0,VALUE(MID('CFR - XML import'!$A191,SEARCH(\">\",'CFR - XML import'!$A191,1)+1,SEARCH(\"/\",'CFR - XML import'!$A191,1)-SEARCH(\">\",'CFR - XML import'!$A191,1)-2)))","v":0},{"$f":"IF(ISERROR(FIND(AF$3,'CFR - XML import'!$A191)),0,VALUE(MID('CFR - XML import'!$A191,SEARCH(\">\",'CFR - XML import'!$A191,1)+1,SEARCH(\"/\",'CFR - XML import'!$A191,1)-SEARCH(\">\",'CFR - XML import'!$A191,1)-2)))","v":0},{"$f":"IF(ISERROR(FIND(AG$3,'CFR - XML import'!$A191)),0,VALUE(MID('CFR - XML import'!$A191,SEARCH(\">\",'CFR - XML import'!$A191,1)+1,SEARCH(\"/\",'CFR - XML import'!$A191,1)-SEARCH(\">\",'CFR - XML import'!$A191,1)-2)))","v":0},{"$f":"IF(ISERROR(FIND(AH$3,'CFR - XML import'!$A191)),0,VALUE(MID('CFR - XML import'!$A191,SEARCH(\">\",'CFR - XML import'!$A191,1)+1,SEARCH(\"/\",'CFR - XML import'!$A191,1)-SEARCH(\">\",'CFR - XML import'!$A191,1)-2)))","v":0},{"$f":"IF(ISERROR(FIND(AI$3,'CFR - XML import'!$A191)),0,VALUE(MID('CFR - XML import'!$A191,SEARCH(\">\",'CFR - XML import'!$A191,1)+1,SEARCH(\"/\",'CFR - XML import'!$A191,1)-SEARCH(\">\",'CFR - XML import'!$A191,1)-2)))","v":0},{"$f":"IF(ISERROR(FIND(AJ$3,'CFR - XML import'!$A191)),0,VALUE(MID('CFR - XML import'!$A191,SEARCH(\">\",'CFR - XML import'!$A191,1)+1,SEARCH(\"/\",'CFR - XML import'!$A191,1)-SEARCH(\">\",'CFR - XML import'!$A191,1)-2)))","v":0},{"$f":"IF(ISERROR(FIND(AK$3,'CFR - XML import'!$A191)),0,VALUE(MID('CFR - XML import'!$A191,SEARCH(\">\",'CFR - XML import'!$A191,1)+1,SEARCH(\"/\",'CFR - XML import'!$A191,1)-SEARCH(\">\",'CFR - XML import'!$A191,1)-2)))","v":0},{"$f":"IF(ISERROR(FIND(AL$3,'CFR - XML import'!$A191)),0,VALUE(MID('CFR - XML import'!$A191,SEARCH(\">\",'CFR - XML import'!$A191,1)+1,SEARCH(\"/\",'CFR - XML import'!$A191,1)-SEARCH(\">\",'CFR - XML import'!$A191,1)-2)))","v":0},{"$f":"IF(ISERROR(FIND(AM$3,'CFR - XML import'!$A191)),0,VALUE(MID('CFR - XML import'!$A191,SEARCH(\">\",'CFR - XML import'!$A191,1)+1,SEARCH(\"/\",'CFR - XML import'!$A191,1)-SEARCH(\">\",'CFR - XML import'!$A191,1)-2)))","v":0},{"$f":"IF(ISERROR(FIND(AN$3,'CFR - XML import'!$A191)),0,VALUE(MID('CFR - XML import'!$A191,SEARCH(\">\",'CFR - XML import'!$A191,1)+1,SEARCH(\"/\",'CFR - XML import'!$A191,1)-SEARCH(\">\",'CFR - XML import'!$A191,1)-2)))","v":0},{"$f":"IF(ISERROR(FIND(AO$3,'CFR - XML import'!$A191)),0,VALUE(MID('CFR - XML import'!$A191,SEARCH(\">\",'CFR - XML import'!$A191,1)+1,SEARCH(\"/\",'CFR - XML import'!$A191,1)-SEARCH(\">\",'CFR - XML import'!$A191,1)-2)))","v":0},{"$f":"IF(ISERROR(FIND(AP$3,'CFR - XML import'!$A191)),0,VALUE(MID('CFR - XML import'!$A191,SEARCH(\">\",'CFR - XML import'!$A191,1)+1,SEARCH(\"/\",'CFR - XML import'!$A191,1)-SEARCH(\">\",'CFR - XML import'!$A191,1)-2)))","v":0},{"$f":"IF(ISERROR(FIND(AQ$3,'CFR - XML import'!$A191)),0,VALUE(MID('CFR - XML import'!$A191,SEARCH(\">\",'CFR - XML import'!$A191,1)+1,SEARCH(\"/\",'CFR - XML import'!$A191,1)-SEARCH(\">\",'CFR - XML import'!$A191,1)-2)))","v":0},{"$f":"IF(ISERROR(FIND(AR$3,'CFR - XML import'!$A191)),0,VALUE(MID('CFR - XML import'!$A191,SEARCH(\">\",'CFR - XML import'!$A191,1)+1,SEARCH(\"/\",'CFR - XML import'!$A191,1)-SEARCH(\">\",'CFR - XML import'!$A191,1)-2)))","v":0},{"$f":"IF(ISERROR(FIND(AS$3,'CFR - XML import'!$A191)),0,VALUE(MID('CFR - XML import'!$A191,SEARCH(\">\",'CFR - XML import'!$A191,1)+1,SEARCH(\"/\",'CFR - XML import'!$A191,1)-SEARCH(\">\",'CFR - XML import'!$A191,1)-2)))","v":0},{"$f":"IF(ISERROR(FIND(AT$3,'CFR - XML import'!$A191)),0,VALUE(MID('CFR - XML import'!$A191,SEARCH(\">\",'CFR - XML import'!$A191,1)+1,SEARCH(\"/\",'CFR - XML import'!$A191,1)-SEARCH(\">\",'CFR - XML import'!$A191,1)-2)))","v":0},{"$f":"IF(ISERROR(FIND(AU$3,'CFR - XML import'!$A191)),0,VALUE(MID('CFR - XML import'!$A191,SEARCH(\">\",'CFR - XML import'!$A191,1)+1,SEARCH(\"/\",'CFR - XML import'!$A191,1)-SEARCH(\">\",'CFR - XML import'!$A191,1)-2)))","v":0},{"$f":"IF(ISERROR(FIND(AV$3,'CFR - XML import'!$A191)),0,VALUE(MID('CFR - XML import'!$A191,SEARCH(\">\",'CFR - XML import'!$A191,1)+1,SEARCH(\"/\",'CFR - XML import'!$A191,1)-SEARCH(\">\",'CFR - XML import'!$A191,1)-2)))","v":0},{"$f":"IF(ISERROR(FIND(AW$3,'CFR - XML import'!$A191)),0,VALUE(MID('CFR - XML import'!$A191,SEARCH(\">\",'CFR - XML import'!$A191,1)+1,SEARCH(\"/\",'CFR - XML import'!$A191,1)-SEARCH(\">\",'CFR - XML import'!$A191,1)-2)))","v":0},{"$f":"IF(ISERROR(FIND(AX$3,'CFR - XML import'!$A191)),0,VALUE(MID('CFR - XML import'!$A191,SEARCH(\">\",'CFR - XML import'!$A191,1)+1,SEARCH(\"/\",'CFR - XML import'!$A191,1)-SEARCH(\">\",'CFR - XML import'!$A191,1)-2)))","v":0},{"$f":"IF(ISERROR(FIND(AY$3,'CFR - XML import'!$A191)),0,VALUE(MID('CFR - XML import'!$A191,SEARCH(\">\",'CFR - XML import'!$A191,1)+1,SEARCH(\"/\",'CFR - XML import'!$A191,1)-SEARCH(\">\",'CFR - XML import'!$A191,1)-2)))","v":0},{"$f":"IF(ISERROR(FIND(AZ$3,'CFR - XML import'!$A191)),0,VALUE(MID('CFR - XML import'!$A191,SEARCH(\">\",'CFR - XML import'!$A191,1)+1,SEARCH(\"/\",'CFR - XML import'!$A191,1)-SEARCH(\">\",'CFR - XML import'!$A191,1)-2)))","v":0},{"$f":"IF(ISERROR(FIND(BA$3,'CFR - XML import'!$A191)),0,VALUE(MID('CFR - XML import'!$A191,SEARCH(\">\",'CFR - XML import'!$A191,1)+1,SEARCH(\"/\",'CFR - XML import'!$A191,1)-SEARCH(\">\",'CFR - XML import'!$A191,1)-2)))","v":0},{"$f":"IF(ISERROR(FIND(BB$3,'CFR - XML import'!$A191)),0,VALUE(MID('CFR - XML import'!$A191,SEARCH(\">\",'CFR - XML import'!$A191,1)+1,SEARCH(\"/\",'CFR - XML import'!$A191,1)-SEARCH(\">\",'CFR - XML import'!$A191,1)-2)))","v":0},{"$f":"IF(ISERROR(FIND(BC$3,'CFR - XML import'!$A191)),0,VALUE(MID('CFR - XML import'!$A191,SEARCH(\">\",'CFR - XML import'!$A191,1)+1,SEARCH(\"/\",'CFR - XML import'!$A191,1)-SEARCH(\">\",'CFR - XML import'!$A191,1)-2)))","v":0},{"$f":"IF(ISERROR(FIND(BD$3,'CFR - XML import'!$A191)),0,VALUE(MID('CFR - XML import'!$A191,SEARCH(\">\",'CFR - XML import'!$A191,1)+1,SEARCH(\"/\",'CFR - XML import'!$A191,1)-SEARCH(\">\",'CFR - XML import'!$A191,1)-2)))","v":0},{"$f":"IF(ISERROR(FIND(BE$3,'CFR - XML import'!$A191)),0,VALUE(MID('CFR - XML import'!$A191,SEARCH(\">\",'CFR - XML import'!$A191,1)+1,SEARCH(\"/\",'CFR - XML import'!$A191,1)-SEARCH(\">\",'CFR - XML import'!$A191,1)-2)))","v":0},{"$f":"IF(ISERROR(FIND(BF$3,'CFR - XML import'!$A191)),0,VALUE(MID('CFR - XML import'!$A191,SEARCH(\">\",'CFR - XML import'!$A191,1)+1,SEARCH(\"/\",'CFR - XML import'!$A191,1)-SEARCH(\">\",'CFR - XML import'!$A191,1)-2)))","v":0},{"$f":"IF(ISERROR(FIND(BG$3,'CFR - XML import'!$A191)),0,VALUE(MID('CFR - XML import'!$A191,SEARCH(\">\",'CFR - XML import'!$A191,1)+1,SEARCH(\"/\",'CFR - XML import'!$A191,1)-SEARCH(\">\",'CFR - XML import'!$A191,1)-2)))","v":0},{"$f":"IF(ISERROR(FIND(BH$3,'CFR - XML import'!$A191)),0,VALUE(MID('CFR - XML import'!$A191,SEARCH(\">\",'CFR - XML import'!$A191,1)+1,SEARCH(\"/\",'CFR - XML import'!$A191,1)-SEARCH(\">\",'CFR - XML import'!$A191,1)-2)))","v":0},{"$f":"IF(ISERROR(FIND(BI$3,'CFR - XML import'!$A191)),0,VALUE(MID('CFR - XML import'!$A191,SEARCH(\">\",'CFR - XML import'!$A191,1)+1,SEARCH(\"/\",'CFR - XML import'!$A191,1)-SEARCH(\">\",'CFR - XML import'!$A191,1)-2)))","v":0},{"$f":"IF(ISERROR(FIND(BJ$3,'CFR - XML import'!$A191)),0,VALUE(MID('CFR - XML import'!$A191,SEARCH(\">\",'CFR - XML import'!$A191,1)+1,SEARCH(\"/\",'CFR - XML import'!$A191,1)-SEARCH(\">\",'CFR - XML import'!$A191,1)-2)))","v":0},{"$f":"IF(ISERROR(FIND(BK$3,'CFR - XML import'!$A191)),0,VALUE(MID('CFR - XML import'!$A191,SEARCH(\">\",'CFR - XML import'!$A191,1)+1,SEARCH(\"/\",'CFR - XML import'!$A191,1)-SEARCH(\">\",'CFR - XML import'!$A191,1)-2)))","v":0},{"$f":"IF(ISERROR(FIND(BL$3,'CFR - XML import'!$A191)),0,VALUE(MID('CFR - XML import'!$A191,SEARCH(\">\",'CFR - XML import'!$A191,1)+1,SEARCH(\"/\",'CFR - XML import'!$A191,1)-SEARCH(\">\",'CFR - XML import'!$A191,1)-2)))","v":0},{"$f":"IF(ISERROR(FIND(BM$3,'CFR - XML import'!$A191)),0,VALUE(MID('CFR - XML import'!$A191,SEARCH(\">\",'CFR - XML import'!$A191,1)+1,SEARCH(\"/\",'CFR - XML import'!$A191,1)-SEARCH(\">\",'CFR - XML import'!$A191,1)-2)))","v":0},{"$f":"IF(ISERROR(FIND(BN$3,'CFR - XML import'!$A191)),0,VALUE(MID('CFR - XML import'!$A191,SEARCH(\">\",'CFR - XML import'!$A191,1)+1,SEARCH(\"/\",'CFR - XML import'!$A191,1)-SEARCH(\">\",'CFR - XML import'!$A191,1)-2)))","v":0},{"$f":"IF(ISERROR(FIND(BO$3,'CFR - XML import'!$A191)),0,VALUE(MID('CFR - XML import'!$A191,SEARCH(\">\",'CFR - XML import'!$A191,1)+1,SEARCH(\"/\",'CFR - XML import'!$A191,1)-SEARCH(\">\",'CFR - XML import'!$A191,1)-2)))","v":0},{"$f":"IF(ISERROR(FIND(BP$3,'CFR - XML import'!$A191)),0,VALUE(MID('CFR - XML import'!$A191,SEARCH(\">\",'CFR - XML import'!$A191,1)+1,SEARCH(\"/\",'CFR - XML import'!$A191,1)-SEARCH(\">\",'CFR - XML import'!$A191,1)-2)))","v":0},{"$f":"IF(ISERROR(FIND(BQ$3,'CFR - XML import'!$A191)),0,VALUE(MID('CFR - XML import'!$A191,SEARCH(\">\",'CFR - XML import'!$A191,1)+1,SEARCH(\"/\",'CFR - XML import'!$A191,1)-SEARCH(\">\",'CFR - XML import'!$A191,1)-2)))","v":0},{"$f":"IF(ISERROR(FIND(BR$3,'CFR - XML import'!$A191)),0,VALUE(MID('CFR - XML import'!$A191,SEARCH(\">\",'CFR - XML import'!$A191,1)+1,SEARCH(\"/\",'CFR - XML import'!$A191,1)-SEARCH(\">\",'CFR - XML import'!$A191,1)-2)))","v":0},{"$f":"IF(ISERROR(FIND(BS$3,'CFR - XML import'!$A191)),0,VALUE(MID('CFR - XML import'!$A191,SEARCH(\">\",'CFR - XML import'!$A191,1)+1,SEARCH(\"/\",'CFR - XML import'!$A191,1)-SEARCH(\">\",'CFR - XML import'!$A191,1)-2)))","v":0},{"$f":"IF(ISERROR(FIND(BT$3,'CFR - XML import'!$A191)),0,VALUE(MID('CFR - XML import'!$A191,SEARCH(\">\",'CFR - XML import'!$A191,1)+1,SEARCH(\"/\",'CFR - XML import'!$A191,1)-SEARCH(\">\",'CFR - XML import'!$A191,1)-2)))","v":0},{"$f":"IF(ISERROR(FIND(BU$3,'CFR - XML import'!$A191)),0,VALUE(MID('CFR - XML import'!$A191,SEARCH(\">\",'CFR - XML import'!$A191,1)+1,SEARCH(\"/\",'CFR - XML import'!$A191,1)-SEARCH(\">\",'CFR - XML import'!$A191,1)-2)))","v":0},{"$f":"IF(ISERROR(FIND(BV$3,'CFR - XML import'!$A191)),0,VALUE(MID('CFR - XML import'!$A191,SEARCH(\">\",'CFR - XML import'!$A191,1)+1,SEARCH(\"/\",'CFR - XML import'!$A191,1)-SEARCH(\">\",'CFR - XML import'!$A191,1)-2)))","v":0},{"$f":"IF(ISERROR(FIND(BW$3,'CFR - XML import'!$A191)),0,VALUE(MID('CFR - XML import'!$A191,SEARCH(\">\",'CFR - XML import'!$A191,1)+1,SEARCH(\"/\",'CFR - XML import'!$A191,1)-SEARCH(\">\",'CFR - XML import'!$A191,1)-2)))","v":0},{"$f":"IF(ISERROR(FIND(BX$3,'CFR - XML import'!$A191)),0,VALUE(MID('CFR - XML import'!$A191,SEARCH(\">\",'CFR - XML import'!$A191,1)+1,SEARCH(\"/\",'CFR - XML import'!$A191,1)-SEARCH(\">\",'CFR - XML import'!$A191,1)-2)))","v":0},{"$f":"IF(ISERROR(FIND(BY$3,'CFR - XML import'!$A191)),0,VALUE(MID('CFR - XML import'!$A191,SEARCH(\">\",'CFR - XML import'!$A191,1)+1,SEARCH(\"/\",'CFR - XML import'!$A191,1)-SEARCH(\">\",'CFR - XML import'!$A191,1)-2)))","v":0},{"$f":"IF(ISERROR(FIND(BZ$3,'CFR - XML import'!$A191)),0,VALUE(MID('CFR - XML import'!$A191,SEARCH(\">\",'CFR - XML import'!$A191,1)+1,SEARCH(\"/\",'CFR - XML import'!$A191,1)-SEARCH(\">\",'CFR - XML import'!$A191,1)-2)))","v":0},null,null,null,null,null,null,{"$f":"IF(ISERROR(IF(MID('CFR - XML import'!$A191,LEN($CF$4)+1,LEN('CFR - XML import'!$A191)-(2*LEN($CF$4)+1))=\"RMMS\",1,IF(MID('CFR - XML import'!$A191,LEN(\"    <InputSystem>\")+1,LEN('CFR - XML import'!$A191)-(LEN(\"    <InputSystem>\")+LEN($CF$4)+1))=\"SIMS\",2,0))),0,IF(MID('CFR - XML import'!$A191,LEN($CF$4)+1,LEN('CFR - XML import'!$A191)-(2*LEN($CF$4)+1))=\"RMMS\",1,IF(MID('CFR - XML import'!$A191,LEN(\"    <InputSystem>\")+1,LEN('CFR - XML import'!$A191)-(LEN(\"    <InputSystem>\")+LEN($CF$4)+1))=\"SIMS\",2,0)))","v":0},{"$f":"IF(ISERROR(FIND(CH$3,'CFR - XML import'!$A191)),0,MID('CFR - XML import'!$A191,SEARCH(\">\",'CFR - XML import'!$A191,1)+1,SEARCH(\"/\",'CFR - XML import'!$A191,1)-SEARCH(\">\",'CFR - XML import'!$A191,1)-2))","v":0},{"$f":"IF(ISERROR(FIND(CI$3,'CFR - XML import'!$A191)),0,MID('CFR - XML import'!$A191,SEARCH(\">\",'CFR - XML import'!$A191,1)+1,SEARCH(\"/\",'CFR - XML import'!$A191,1)-SEARCH(\">\",'CFR - XML import'!$A191,1)-2))","v":0},{"$f":"IF(ISERROR(FIND(CJ$3,'CFR - XML import'!$A191)),0,MID('CFR - XML import'!$A191,SEARCH(\">\",'CFR - XML import'!$A191,1)+1,SEARCH(\"/\",'CFR - XML import'!$A191,1)-SEARCH(\">\",'CFR - XML import'!$A191,1)-2))","v":0},{"$f":"IF(ISERROR(FIND(CK$3,'CFR - XML import'!$A191)),0,MID('CFR - XML import'!$A191,SEARCH(\">\",'CFR - XML import'!$A191,1)+1,SEARCH(\"/\",'CFR - XML import'!$A191,1)-SEARCH(\">\",'CFR - XML import'!$A191,1)-2))","v":0},{"$f":"IF(ISERROR(FIND(CL$3,'CFR - XML import'!$A191)),0,MID('CFR - XML import'!$A191,SEARCH(\">\",'CFR - XML import'!$A191,1)+1,SEARCH(\"/\",'CFR - XML import'!$A191,1)-SEARCH(\">\",'CFR - XML import'!$A191,1)-2))","v":0}]
[{"$f":"IF(AND('CFR - XML import'!A192<>\"\",LEFT('CFR - XML import'!A192,1)<>\"<\",LEFT('CFR - XML import'!A192,3)<>\"  <\",LEFT('CFR - XML import'!A192,5)<>\"    <\",LEFT('CFR - XML import'!A192,7)<>\"      <\",LEFT('CFR - XML import'!A192,9)<>\"        <\",$B$1=\"SIMS\"),'CFR - XML import'!A192,IF(AND(LEFT('CFR - XML import'!A192,9)=\"<Details>\",$B$1=\"RM\"),'CFR - XML import'!A192,\"\"))","v":""},{"$f":"IF(ISERROR(FIND(B$3,'CFR - XML import'!$A192)),0,VALUE(MID('CFR - XML import'!$A192,SEARCH(\">\",'CFR - XML import'!$A192,1)+1,SEARCH(\"/\",'CFR - XML import'!$A192,1)-SEARCH(\">\",'CFR - XML import'!$A192,1)-2)))","v":0},null,{"$f":"IF(ISERROR(FIND(D$3,'CFR - XML import'!$A192)),0,MID('CFR - XML import'!$A192,SEARCH(\">\",'CFR - XML import'!$A192,1)+1,SEARCH(\"/\",'CFR - XML import'!$A192,1)-SEARCH(\">\",'CFR - XML import'!$A192,1)-2))","v":0},{"$f":"IF(ISERROR(FIND(E$3,'CFR - XML import'!$A192)),0,MID('CFR - XML import'!$A192,SEARCH(\">\",'CFR - XML import'!$A192,1)+1,SEARCH(\"/\",'CFR - XML import'!$A192,1)-SEARCH(\">\",'CFR - XML import'!$A192,1)-2))","v":0},{"$f":"IF($B$1=\"SIMS\",IF(ISERROR(FIND(F$3,'CFR - XML import'!$A192)),0,VALUE(MID('CFR - XML import'!$A192,15,10))),IF(ISERROR(FIND(F$3,'CFR - XML import'!$A192)),0,VALUE(MID('CFR - XML import'!$A192,11,10))))","v":"00:00:00"},{"$f":"IF(ISERROR(FIND(G$3,'CFR - XML import'!$A192)),0,VALUE(MID('CFR - XML import'!$A192,SEARCH(\">\",'CFR - XML import'!$A192,1)+1,SEARCH(\"/\",'CFR - XML import'!$A192,1)-SEARCH(\">\",'CFR - XML import'!$A192,1)-2)))","v":0},{"$f":"IF(ISERROR(FIND(H$3,'CFR - XML import'!$A192)),0,VALUE(MID('CFR - XML import'!$A192,SEARCH(\">\",'CFR - XML import'!$A192,1)+1,SEARCH(\"/\",'CFR - XML import'!$A192,1)-SEARCH(\">\",'CFR - XML import'!$A192,1)-2)))","v":0},{"$f":"IF(ISERROR(FIND(I$3,'CFR - XML import'!$A192)),0,VALUE(MID('CFR - XML import'!$A192,SEARCH(\">\",'CFR - XML import'!$A192,1)+1,SEARCH(\"/\",'CFR - XML import'!$A192,1)-SEARCH(\">\",'CFR - XML import'!$A192,1)-2)))","v":0},{"$f":"IF(ISERROR(FIND(J$3,'CFR - XML import'!$A192)),0,VALUE(MID('CFR - XML import'!$A192,SEARCH(\">\",'CFR - XML import'!$A192,1)+1,SEARCH(\"/\",'CFR - XML import'!$A192,1)-SEARCH(\">\",'CFR - XML import'!$A192,1)-2)))","v":0},{"$f":"IF(ISERROR(FIND(K$3,'CFR - XML import'!$A192)),0,VALUE(MID('CFR - XML import'!$A192,SEARCH(\">\",'CFR - XML import'!$A192,1)+1,SEARCH(\"/\",'CFR - XML import'!$A192,1)-SEARCH(\">\",'CFR - XML import'!$A192,1)-2)))","v":0},{"$f":"IF(ISERROR(FIND(L$3,'CFR - XML import'!$A192)),0,VALUE(MID('CFR - XML import'!$A192,SEARCH(\">\",'CFR - XML import'!$A192,1)+1,SEARCH(\"/\",'CFR - XML import'!$A192,1)-SEARCH(\">\",'CFR - XML import'!$A192,1)-2)))","v":0},{"$f":"IF(ISERROR(FIND(M$3,'CFR - XML import'!$A192)),0,VALUE(MID('CFR - XML import'!$A192,SEARCH(\">\",'CFR - XML import'!$A192,1)+1,SEARCH(\"/\",'CFR - XML import'!$A192,1)-SEARCH(\">\",'CFR - XML import'!$A192,1)-2)))","v":0},{"$f":"IF(ISERROR(FIND(N$3,'CFR - XML import'!$A192)),0,VALUE(MID('CFR - XML import'!$A192,SEARCH(\">\",'CFR - XML import'!$A192,1)+1,SEARCH(\"/\",'CFR - XML import'!$A192,1)-SEARCH(\">\",'CFR - XML import'!$A192,1)-2)))","v":0},{"$f":"IF(ISERROR(FIND(O$3,'CFR - XML import'!$A192)),0,VALUE(MID('CFR - XML import'!$A192,SEARCH(\">\",'CFR - XML import'!$A192,1)+1,SEARCH(\"/\",'CFR - XML import'!$A192,1)-SEARCH(\">\",'CFR - XML import'!$A192,1)-2)))","v":0},{"$f":"IF(ISERROR(FIND(P$3,'CFR - XML import'!$A192)),0,VALUE(MID('CFR - XML import'!$A192,SEARCH(\">\",'CFR - XML import'!$A192,1)+1,SEARCH(\"/\",'CFR - XML import'!$A192,1)-SEARCH(\">\",'CFR - XML import'!$A192,1)-2)))","v":0},{"$f":"IF(ISERROR(FIND(Q$3,'CFR - XML import'!$A192)),0,VALUE(MID('CFR - XML import'!$A192,SEARCH(\">\",'CFR - XML import'!$A192,1)+1,SEARCH(\"/\",'CFR - XML import'!$A192,1)-SEARCH(\">\",'CFR - XML import'!$A192,1)-2)))","v":0},{"$f":"IF(ISERROR(FIND(R$3,'CFR - XML import'!$A192)),0,VALUE(MID('CFR - XML import'!$A192,SEARCH(\">\",'CFR - XML import'!$A192,1)+1,SEARCH(\"/\",'CFR - XML import'!$A192,1)-SEARCH(\">\",'CFR - XML import'!$A192,1)-2)))","v":0},{"$f":"IF(ISERROR(FIND(S$3,'CFR - XML import'!$A192)),0,VALUE(MID('CFR - XML import'!$A192,SEARCH(\">\",'CFR - XML import'!$A192,1)+1,SEARCH(\"/\",'CFR - XML import'!$A192,1)-SEARCH(\">\",'CFR - XML import'!$A192,1)-2)))","v":0},{"$f":"IF(ISERROR(FIND(T$3,'CFR - XML import'!$A192)),0,VALUE(MID('CFR - XML import'!$A192,SEARCH(\">\",'CFR - XML import'!$A192,1)+1,SEARCH(\"/\",'CFR - XML import'!$A192,1)-SEARCH(\">\",'CFR - XML import'!$A192,1)-2)))","v":0},{"$f":"IF(ISERROR(FIND(U$3,'CFR - XML import'!$A192)),0,VALUE(MID('CFR - XML import'!$A192,SEARCH(\">\",'CFR - XML import'!$A192,1)+1,SEARCH(\"/\",'CFR - XML import'!$A192,1)-SEARCH(\">\",'CFR - XML import'!$A192,1)-2)))","v":0},{"$f":"IF(ISERROR(FIND(V$3,'CFR - XML import'!$A192)),0,VALUE(MID('CFR - XML import'!$A192,SEARCH(\">\",'CFR - XML import'!$A192,1)+1,SEARCH(\"/\",'CFR - XML import'!$A192,1)-SEARCH(\">\",'CFR - XML import'!$A192,1)-2)))","v":0},{"$f":"IF(ISERROR(FIND(W$3,'CFR - XML import'!$A192)),0,VALUE(MID('CFR - XML import'!$A192,SEARCH(\">\",'CFR - XML import'!$A192,1)+1,SEARCH(\"/\",'CFR - XML import'!$A192,1)-SEARCH(\">\",'CFR - XML import'!$A192,1)-2)))","v":0},null,{"$f":"IF(ISERROR(FIND(Y$3,'CFR - XML import'!$A192)),0,VALUE(MID('CFR - XML import'!$A192,SEARCH(\">\",'CFR - XML import'!$A192,1)+1,SEARCH(\"/\",'CFR - XML import'!$A192,1)-SEARCH(\">\",'CFR - XML import'!$A192,1)-2)))","v":0},{"$f":"IF(ISERROR(FIND(Z$3,'CFR - XML import'!$A192)),0,VALUE(MID('CFR - XML import'!$A192,SEARCH(\">\",'CFR - XML import'!$A192,1)+1,SEARCH(\"/\",'CFR - XML import'!$A192,1)-SEARCH(\">\",'CFR - XML import'!$A192,1)-2)))","v":0},{"$f":"IF(ISERROR(FIND(AA$3,'CFR - XML import'!$A192)),0,VALUE(MID('CFR - XML import'!$A192,SEARCH(\">\",'CFR - XML import'!$A192,1)+1,SEARCH(\"/\",'CFR - XML import'!$A192,1)-SEARCH(\">\",'CFR - XML import'!$A192,1)-2)))","v":0},{"$f":"IF(ISERROR(FIND(AB$3,'CFR - XML import'!$A192)),0,VALUE(MID('CFR - XML import'!$A192,SEARCH(\">\",'CFR - XML import'!$A192,1)+1,SEARCH(\"/\",'CFR - XML import'!$A192,1)-SEARCH(\">\",'CFR - XML import'!$A192,1)-2)))","v":0},{"$f":"IF(ISERROR(FIND(AC$3,'CFR - XML import'!$A192)),0,VALUE(MID('CFR - XML import'!$A192,SEARCH(\">\",'CFR - XML import'!$A192,1)+1,SEARCH(\"/\",'CFR - XML import'!$A192,1)-SEARCH(\">\",'CFR - XML import'!$A192,1)-2)))","v":0},{"$f":"IF(ISERROR(FIND(AD$3,'CFR - XML import'!$A192)),0,VALUE(MID('CFR - XML import'!$A192,SEARCH(\">\",'CFR - XML import'!$A192,1)+1,SEARCH(\"/\",'CFR - XML import'!$A192,1)-SEARCH(\">\",'CFR - XML import'!$A192,1)-2)))","v":0},{"$f":"IF(ISERROR(FIND(AE$3,'CFR - XML import'!$A192)),0,VALUE(MID('CFR - XML import'!$A192,SEARCH(\">\",'CFR - XML import'!$A192,1)+1,SEARCH(\"/\",'CFR - XML import'!$A192,1)-SEARCH(\">\",'CFR - XML import'!$A192,1)-2)))","v":0},{"$f":"IF(ISERROR(FIND(AF$3,'CFR - XML import'!$A192)),0,VALUE(MID('CFR - XML import'!$A192,SEARCH(\">\",'CFR - XML import'!$A192,1)+1,SEARCH(\"/\",'CFR - XML import'!$A192,1)-SEARCH(\">\",'CFR - XML import'!$A192,1)-2)))","v":0},{"$f":"IF(ISERROR(FIND(AG$3,'CFR - XML import'!$A192)),0,VALUE(MID('CFR - XML import'!$A192,SEARCH(\">\",'CFR - XML import'!$A192,1)+1,SEARCH(\"/\",'CFR - XML import'!$A192,1)-SEARCH(\">\",'CFR - XML import'!$A192,1)-2)))","v":0},{"$f":"IF(ISERROR(FIND(AH$3,'CFR - XML import'!$A192)),0,VALUE(MID('CFR - XML import'!$A192,SEARCH(\">\",'CFR - XML import'!$A192,1)+1,SEARCH(\"/\",'CFR - XML import'!$A192,1)-SEARCH(\">\",'CFR - XML import'!$A192,1)-2)))","v":0},{"$f":"IF(ISERROR(FIND(AI$3,'CFR - XML import'!$A192)),0,VALUE(MID('CFR - XML import'!$A192,SEARCH(\">\",'CFR - XML import'!$A192,1)+1,SEARCH(\"/\",'CFR - XML import'!$A192,1)-SEARCH(\">\",'CFR - XML import'!$A192,1)-2)))","v":0},{"$f":"IF(ISERROR(FIND(AJ$3,'CFR - XML import'!$A192)),0,VALUE(MID('CFR - XML import'!$A192,SEARCH(\">\",'CFR - XML import'!$A192,1)+1,SEARCH(\"/\",'CFR - XML import'!$A192,1)-SEARCH(\">\",'CFR - XML import'!$A192,1)-2)))","v":0},{"$f":"IF(ISERROR(FIND(AK$3,'CFR - XML import'!$A192)),0,VALUE(MID('CFR - XML import'!$A192,SEARCH(\">\",'CFR - XML import'!$A192,1)+1,SEARCH(\"/\",'CFR - XML import'!$A192,1)-SEARCH(\">\",'CFR - XML import'!$A192,1)-2)))","v":0},{"$f":"IF(ISERROR(FIND(AL$3,'CFR - XML import'!$A192)),0,VALUE(MID('CFR - XML import'!$A192,SEARCH(\">\",'CFR - XML import'!$A192,1)+1,SEARCH(\"/\",'CFR - XML import'!$A192,1)-SEARCH(\">\",'CFR - XML import'!$A192,1)-2)))","v":0},{"$f":"IF(ISERROR(FIND(AM$3,'CFR - XML import'!$A192)),0,VALUE(MID('CFR - XML import'!$A192,SEARCH(\">\",'CFR - XML import'!$A192,1)+1,SEARCH(\"/\",'CFR - XML import'!$A192,1)-SEARCH(\">\",'CFR - XML import'!$A192,1)-2)))","v":0},{"$f":"IF(ISERROR(FIND(AN$3,'CFR - XML import'!$A192)),0,VALUE(MID('CFR - XML import'!$A192,SEARCH(\">\",'CFR - XML import'!$A192,1)+1,SEARCH(\"/\",'CFR - XML import'!$A192,1)-SEARCH(\">\",'CFR - XML import'!$A192,1)-2)))","v":0},{"$f":"IF(ISERROR(FIND(AO$3,'CFR - XML import'!$A192)),0,VALUE(MID('CFR - XML import'!$A192,SEARCH(\">\",'CFR - XML import'!$A192,1)+1,SEARCH(\"/\",'CFR - XML import'!$A192,1)-SEARCH(\">\",'CFR - XML import'!$A192,1)-2)))","v":0},{"$f":"IF(ISERROR(FIND(AP$3,'CFR - XML import'!$A192)),0,VALUE(MID('CFR - XML import'!$A192,SEARCH(\">\",'CFR - XML import'!$A192,1)+1,SEARCH(\"/\",'CFR - XML import'!$A192,1)-SEARCH(\">\",'CFR - XML import'!$A192,1)-2)))","v":0},{"$f":"IF(ISERROR(FIND(AQ$3,'CFR - XML import'!$A192)),0,VALUE(MID('CFR - XML import'!$A192,SEARCH(\">\",'CFR - XML import'!$A192,1)+1,SEARCH(\"/\",'CFR - XML import'!$A192,1)-SEARCH(\">\",'CFR - XML import'!$A192,1)-2)))","v":0},{"$f":"IF(ISERROR(FIND(AR$3,'CFR - XML import'!$A192)),0,VALUE(MID('CFR - XML import'!$A192,SEARCH(\">\",'CFR - XML import'!$A192,1)+1,SEARCH(\"/\",'CFR - XML import'!$A192,1)-SEARCH(\">\",'CFR - XML import'!$A192,1)-2)))","v":0},{"$f":"IF(ISERROR(FIND(AS$3,'CFR - XML import'!$A192)),0,VALUE(MID('CFR - XML import'!$A192,SEARCH(\">\",'CFR - XML import'!$A192,1)+1,SEARCH(\"/\",'CFR - XML import'!$A192,1)-SEARCH(\">\",'CFR - XML import'!$A192,1)-2)))","v":0},{"$f":"IF(ISERROR(FIND(AT$3,'CFR - XML import'!$A192)),0,VALUE(MID('CFR - XML import'!$A192,SEARCH(\">\",'CFR - XML import'!$A192,1)+1,SEARCH(\"/\",'CFR - XML import'!$A192,1)-SEARCH(\">\",'CFR - XML import'!$A192,1)-2)))","v":0},{"$f":"IF(ISERROR(FIND(AU$3,'CFR - XML import'!$A192)),0,VALUE(MID('CFR - XML import'!$A192,SEARCH(\">\",'CFR - XML import'!$A192,1)+1,SEARCH(\"/\",'CFR - XML import'!$A192,1)-SEARCH(\">\",'CFR - XML import'!$A192,1)-2)))","v":0},{"$f":"IF(ISERROR(FIND(AV$3,'CFR - XML import'!$A192)),0,VALUE(MID('CFR - XML import'!$A192,SEARCH(\">\",'CFR - XML import'!$A192,1)+1,SEARCH(\"/\",'CFR - XML import'!$A192,1)-SEARCH(\">\",'CFR - XML import'!$A192,1)-2)))","v":0},{"$f":"IF(ISERROR(FIND(AW$3,'CFR - XML import'!$A192)),0,VALUE(MID('CFR - XML import'!$A192,SEARCH(\">\",'CFR - XML import'!$A192,1)+1,SEARCH(\"/\",'CFR - XML import'!$A192,1)-SEARCH(\">\",'CFR - XML import'!$A192,1)-2)))","v":0},{"$f":"IF(ISERROR(FIND(AX$3,'CFR - XML import'!$A192)),0,VALUE(MID('CFR - XML import'!$A192,SEARCH(\">\",'CFR - XML import'!$A192,1)+1,SEARCH(\"/\",'CFR - XML import'!$A192,1)-SEARCH(\">\",'CFR - XML import'!$A192,1)-2)))","v":0},{"$f":"IF(ISERROR(FIND(AY$3,'CFR - XML import'!$A192)),0,VALUE(MID('CFR - XML import'!$A192,SEARCH(\">\",'CFR - XML import'!$A192,1)+1,SEARCH(\"/\",'CFR - XML import'!$A192,1)-SEARCH(\">\",'CFR - XML import'!$A192,1)-2)))","v":0},{"$f":"IF(ISERROR(FIND(AZ$3,'CFR - XML import'!$A192)),0,VALUE(MID('CFR - XML import'!$A192,SEARCH(\">\",'CFR - XML import'!$A192,1)+1,SEARCH(\"/\",'CFR - XML import'!$A192,1)-SEARCH(\">\",'CFR - XML import'!$A192,1)-2)))","v":0},{"$f":"IF(ISERROR(FIND(BA$3,'CFR - XML import'!$A192)),0,VALUE(MID('CFR - XML import'!$A192,SEARCH(\">\",'CFR - XML import'!$A192,1)+1,SEARCH(\"/\",'CFR - XML import'!$A192,1)-SEARCH(\">\",'CFR - XML import'!$A192,1)-2)))","v":0},{"$f":"IF(ISERROR(FIND(BB$3,'CFR - XML import'!$A192)),0,VALUE(MID('CFR - XML import'!$A192,SEARCH(\">\",'CFR - XML import'!$A192,1)+1,SEARCH(\"/\",'CFR - XML import'!$A192,1)-SEARCH(\">\",'CFR - XML import'!$A192,1)-2)))","v":0},{"$f":"IF(ISERROR(FIND(BC$3,'CFR - XML import'!$A192)),0,VALUE(MID('CFR - XML import'!$A192,SEARCH(\">\",'CFR - XML import'!$A192,1)+1,SEARCH(\"/\",'CFR - XML import'!$A192,1)-SEARCH(\">\",'CFR - XML import'!$A192,1)-2)))","v":0},{"$f":"IF(ISERROR(FIND(BD$3,'CFR - XML import'!$A192)),0,VALUE(MID('CFR - XML import'!$A192,SEARCH(\">\",'CFR - XML import'!$A192,1)+1,SEARCH(\"/\",'CFR - XML import'!$A192,1)-SEARCH(\">\",'CFR - XML import'!$A192,1)-2)))","v":0},{"$f":"IF(ISERROR(FIND(BE$3,'CFR - XML import'!$A192)),0,VALUE(MID('CFR - XML import'!$A192,SEARCH(\">\",'CFR - XML import'!$A192,1)+1,SEARCH(\"/\",'CFR - XML import'!$A192,1)-SEARCH(\">\",'CFR - XML import'!$A192,1)-2)))","v":0},{"$f":"IF(ISERROR(FIND(BF$3,'CFR - XML import'!$A192)),0,VALUE(MID('CFR - XML import'!$A192,SEARCH(\">\",'CFR - XML import'!$A192,1)+1,SEARCH(\"/\",'CFR - XML import'!$A192,1)-SEARCH(\">\",'CFR - XML import'!$A192,1)-2)))","v":0},{"$f":"IF(ISERROR(FIND(BG$3,'CFR - XML import'!$A192)),0,VALUE(MID('CFR - XML import'!$A192,SEARCH(\">\",'CFR - XML import'!$A192,1)+1,SEARCH(\"/\",'CFR - XML import'!$A192,1)-SEARCH(\">\",'CFR - XML import'!$A192,1)-2)))","v":0},{"$f":"IF(ISERROR(FIND(BH$3,'CFR - XML import'!$A192)),0,VALUE(MID('CFR - XML import'!$A192,SEARCH(\">\",'CFR - XML import'!$A192,1)+1,SEARCH(\"/\",'CFR - XML import'!$A192,1)-SEARCH(\">\",'CFR - XML import'!$A192,1)-2)))","v":0},{"$f":"IF(ISERROR(FIND(BI$3,'CFR - XML import'!$A192)),0,VALUE(MID('CFR - XML import'!$A192,SEARCH(\">\",'CFR - XML import'!$A192,1)+1,SEARCH(\"/\",'CFR - XML import'!$A192,1)-SEARCH(\">\",'CFR - XML import'!$A192,1)-2)))","v":0},{"$f":"IF(ISERROR(FIND(BJ$3,'CFR - XML import'!$A192)),0,VALUE(MID('CFR - XML import'!$A192,SEARCH(\">\",'CFR - XML import'!$A192,1)+1,SEARCH(\"/\",'CFR - XML import'!$A192,1)-SEARCH(\">\",'CFR - XML import'!$A192,1)-2)))","v":0},{"$f":"IF(ISERROR(FIND(BK$3,'CFR - XML import'!$A192)),0,VALUE(MID('CFR - XML import'!$A192,SEARCH(\">\",'CFR - XML import'!$A192,1)+1,SEARCH(\"/\",'CFR - XML import'!$A192,1)-SEARCH(\">\",'CFR - XML import'!$A192,1)-2)))","v":0},{"$f":"IF(ISERROR(FIND(BL$3,'CFR - XML import'!$A192)),0,VALUE(MID('CFR - XML import'!$A192,SEARCH(\">\",'CFR - XML import'!$A192,1)+1,SEARCH(\"/\",'CFR - XML import'!$A192,1)-SEARCH(\">\",'CFR - XML import'!$A192,1)-2)))","v":0},{"$f":"IF(ISERROR(FIND(BM$3,'CFR - XML import'!$A192)),0,VALUE(MID('CFR - XML import'!$A192,SEARCH(\">\",'CFR - XML import'!$A192,1)+1,SEARCH(\"/\",'CFR - XML import'!$A192,1)-SEARCH(\">\",'CFR - XML import'!$A192,1)-2)))","v":0},{"$f":"IF(ISERROR(FIND(BN$3,'CFR - XML import'!$A192)),0,VALUE(MID('CFR - XML import'!$A192,SEARCH(\">\",'CFR - XML import'!$A192,1)+1,SEARCH(\"/\",'CFR - XML import'!$A192,1)-SEARCH(\">\",'CFR - XML import'!$A192,1)-2)))","v":0},{"$f":"IF(ISERROR(FIND(BO$3,'CFR - XML import'!$A192)),0,VALUE(MID('CFR - XML import'!$A192,SEARCH(\">\",'CFR - XML import'!$A192,1)+1,SEARCH(\"/\",'CFR - XML import'!$A192,1)-SEARCH(\">\",'CFR - XML import'!$A192,1)-2)))","v":0},{"$f":"IF(ISERROR(FIND(BP$3,'CFR - XML import'!$A192)),0,VALUE(MID('CFR - XML import'!$A192,SEARCH(\">\",'CFR - XML import'!$A192,1)+1,SEARCH(\"/\",'CFR - XML import'!$A192,1)-SEARCH(\">\",'CFR - XML import'!$A192,1)-2)))","v":0},{"$f":"IF(ISERROR(FIND(BQ$3,'CFR - XML import'!$A192)),0,VALUE(MID('CFR - XML import'!$A192,SEARCH(\">\",'CFR - XML import'!$A192,1)+1,SEARCH(\"/\",'CFR - XML import'!$A192,1)-SEARCH(\">\",'CFR - XML import'!$A192,1)-2)))","v":0},{"$f":"IF(ISERROR(FIND(BR$3,'CFR - XML import'!$A192)),0,VALUE(MID('CFR - XML import'!$A192,SEARCH(\">\",'CFR - XML import'!$A192,1)+1,SEARCH(\"/\",'CFR - XML import'!$A192,1)-SEARCH(\">\",'CFR - XML import'!$A192,1)-2)))","v":0},{"$f":"IF(ISERROR(FIND(BS$3,'CFR - XML import'!$A192)),0,VALUE(MID('CFR - XML import'!$A192,SEARCH(\">\",'CFR - XML import'!$A192,1)+1,SEARCH(\"/\",'CFR - XML import'!$A192,1)-SEARCH(\">\",'CFR - XML import'!$A192,1)-2)))","v":0},{"$f":"IF(ISERROR(FIND(BT$3,'CFR - XML import'!$A192)),0,VALUE(MID('CFR - XML import'!$A192,SEARCH(\">\",'CFR - XML import'!$A192,1)+1,SEARCH(\"/\",'CFR - XML import'!$A192,1)-SEARCH(\">\",'CFR - XML import'!$A192,1)-2)))","v":0},{"$f":"IF(ISERROR(FIND(BU$3,'CFR - XML import'!$A192)),0,VALUE(MID('CFR - XML import'!$A192,SEARCH(\">\",'CFR - XML import'!$A192,1)+1,SEARCH(\"/\",'CFR - XML import'!$A192,1)-SEARCH(\">\",'CFR - XML import'!$A192,1)-2)))","v":0},{"$f":"IF(ISERROR(FIND(BV$3,'CFR - XML import'!$A192)),0,VALUE(MID('CFR - XML import'!$A192,SEARCH(\">\",'CFR - XML import'!$A192,1)+1,SEARCH(\"/\",'CFR - XML import'!$A192,1)-SEARCH(\">\",'CFR - XML import'!$A192,1)-2)))","v":0},{"$f":"IF(ISERROR(FIND(BW$3,'CFR - XML import'!$A192)),0,VALUE(MID('CFR - XML import'!$A192,SEARCH(\">\",'CFR - XML import'!$A192,1)+1,SEARCH(\"/\",'CFR - XML import'!$A192,1)-SEARCH(\">\",'CFR - XML import'!$A192,1)-2)))","v":0},{"$f":"IF(ISERROR(FIND(BX$3,'CFR - XML import'!$A192)),0,VALUE(MID('CFR - XML import'!$A192,SEARCH(\">\",'CFR - XML import'!$A192,1)+1,SEARCH(\"/\",'CFR - XML import'!$A192,1)-SEARCH(\">\",'CFR - XML import'!$A192,1)-2)))","v":0},{"$f":"IF(ISERROR(FIND(BY$3,'CFR - XML import'!$A192)),0,VALUE(MID('CFR - XML import'!$A192,SEARCH(\">\",'CFR - XML import'!$A192,1)+1,SEARCH(\"/\",'CFR - XML import'!$A192,1)-SEARCH(\">\",'CFR - XML import'!$A192,1)-2)))","v":0},{"$f":"IF(ISERROR(FIND(BZ$3,'CFR - XML import'!$A192)),0,VALUE(MID('CFR - XML import'!$A192,SEARCH(\">\",'CFR - XML import'!$A192,1)+1,SEARCH(\"/\",'CFR - XML import'!$A192,1)-SEARCH(\">\",'CFR - XML import'!$A192,1)-2)))","v":0},null,null,null,null,null,null,{"$f":"IF(ISERROR(IF(MID('CFR - XML import'!$A192,LEN($CF$4)+1,LEN('CFR - XML import'!$A192)-(2*LEN($CF$4)+1))=\"RMMS\",1,IF(MID('CFR - XML import'!$A192,LEN(\"    <InputSystem>\")+1,LEN('CFR - XML import'!$A192)-(LEN(\"    <InputSystem>\")+LEN($CF$4)+1))=\"SIMS\",2,0))),0,IF(MID('CFR - XML import'!$A192,LEN($CF$4)+1,LEN('CFR - XML import'!$A192)-(2*LEN($CF$4)+1))=\"RMMS\",1,IF(MID('CFR - XML import'!$A192,LEN(\"    <InputSystem>\")+1,LEN('CFR - XML import'!$A192)-(LEN(\"    <InputSystem>\")+LEN($CF$4)+1))=\"SIMS\",2,0)))","v":0},{"$f":"IF(ISERROR(FIND(CH$3,'CFR - XML import'!$A192)),0,MID('CFR - XML import'!$A192,SEARCH(\">\",'CFR - XML import'!$A192,1)+1,SEARCH(\"/\",'CFR - XML import'!$A192,1)-SEARCH(\">\",'CFR - XML import'!$A192,1)-2))","v":0},{"$f":"IF(ISERROR(FIND(CI$3,'CFR - XML import'!$A192)),0,MID('CFR - XML import'!$A192,SEARCH(\">\",'CFR - XML import'!$A192,1)+1,SEARCH(\"/\",'CFR - XML import'!$A192,1)-SEARCH(\">\",'CFR - XML import'!$A192,1)-2))","v":0},{"$f":"IF(ISERROR(FIND(CJ$3,'CFR - XML import'!$A192)),0,MID('CFR - XML import'!$A192,SEARCH(\">\",'CFR - XML import'!$A192,1)+1,SEARCH(\"/\",'CFR - XML import'!$A192,1)-SEARCH(\">\",'CFR - XML import'!$A192,1)-2))","v":0},{"$f":"IF(ISERROR(FIND(CK$3,'CFR - XML import'!$A192)),0,MID('CFR - XML import'!$A192,SEARCH(\">\",'CFR - XML import'!$A192,1)+1,SEARCH(\"/\",'CFR - XML import'!$A192,1)-SEARCH(\">\",'CFR - XML import'!$A192,1)-2))","v":0},{"$f":"IF(ISERROR(FIND(CL$3,'CFR - XML import'!$A192)),0,MID('CFR - XML import'!$A192,SEARCH(\">\",'CFR - XML import'!$A192,1)+1,SEARCH(\"/\",'CFR - XML import'!$A192,1)-SEARCH(\">\",'CFR - XML import'!$A192,1)-2))","v":0}]
[{"$f":"IF(AND('CFR - XML import'!A193<>\"\",LEFT('CFR - XML import'!A193,1)<>\"<\",LEFT('CFR - XML import'!A193,3)<>\"  <\",LEFT('CFR - XML import'!A193,5)<>\"    <\",LEFT('CFR - XML import'!A193,7)<>\"      <\",LEFT('CFR - XML import'!A193,9)<>\"        <\",$B$1=\"SIMS\"),'CFR - XML import'!A193,IF(AND(LEFT('CFR - XML import'!A193,9)=\"<Details>\",$B$1=\"RM\"),'CFR - XML import'!A193,\"\"))","v":""},{"$f":"IF(ISERROR(FIND(B$3,'CFR - XML import'!$A193)),0,VALUE(MID('CFR - XML import'!$A193,SEARCH(\">\",'CFR - XML import'!$A193,1)+1,SEARCH(\"/\",'CFR - XML import'!$A193,1)-SEARCH(\">\",'CFR - XML import'!$A193,1)-2)))","v":0},null,{"$f":"IF(ISERROR(FIND(D$3,'CFR - XML import'!$A193)),0,MID('CFR - XML import'!$A193,SEARCH(\">\",'CFR - XML import'!$A193,1)+1,SEARCH(\"/\",'CFR - XML import'!$A193,1)-SEARCH(\">\",'CFR - XML import'!$A193,1)-2))","v":0},{"$f":"IF(ISERROR(FIND(E$3,'CFR - XML import'!$A193)),0,MID('CFR - XML import'!$A193,SEARCH(\">\",'CFR - XML import'!$A193,1)+1,SEARCH(\"/\",'CFR - XML import'!$A193,1)-SEARCH(\">\",'CFR - XML import'!$A193,1)-2))","v":0},{"$f":"IF($B$1=\"SIMS\",IF(ISERROR(FIND(F$3,'CFR - XML import'!$A193)),0,VALUE(MID('CFR - XML import'!$A193,15,10))),IF(ISERROR(FIND(F$3,'CFR - XML import'!$A193)),0,VALUE(MID('CFR - XML import'!$A193,11,10))))","v":"00:00:00"},{"$f":"IF(ISERROR(FIND(G$3,'CFR - XML import'!$A193)),0,VALUE(MID('CFR - XML import'!$A193,SEARCH(\">\",'CFR - XML import'!$A193,1)+1,SEARCH(\"/\",'CFR - XML import'!$A193,1)-SEARCH(\">\",'CFR - XML import'!$A193,1)-2)))","v":0},{"$f":"IF(ISERROR(FIND(H$3,'CFR - XML import'!$A193)),0,VALUE(MID('CFR - XML import'!$A193,SEARCH(\">\",'CFR - XML import'!$A193,1)+1,SEARCH(\"/\",'CFR - XML import'!$A193,1)-SEARCH(\">\",'CFR - XML import'!$A193,1)-2)))","v":0},{"$f":"IF(ISERROR(FIND(I$3,'CFR - XML import'!$A193)),0,VALUE(MID('CFR - XML import'!$A193,SEARCH(\">\",'CFR - XML import'!$A193,1)+1,SEARCH(\"/\",'CFR - XML import'!$A193,1)-SEARCH(\">\",'CFR - XML import'!$A193,1)-2)))","v":0},{"$f":"IF(ISERROR(FIND(J$3,'CFR - XML import'!$A193)),0,VALUE(MID('CFR - XML import'!$A193,SEARCH(\">\",'CFR - XML import'!$A193,1)+1,SEARCH(\"/\",'CFR - XML import'!$A193,1)-SEARCH(\">\",'CFR - XML import'!$A193,1)-2)))","v":0},{"$f":"IF(ISERROR(FIND(K$3,'CFR - XML import'!$A193)),0,VALUE(MID('CFR - XML import'!$A193,SEARCH(\">\",'CFR - XML import'!$A193,1)+1,SEARCH(\"/\",'CFR - XML import'!$A193,1)-SEARCH(\">\",'CFR - XML import'!$A193,1)-2)))","v":0},{"$f":"IF(ISERROR(FIND(L$3,'CFR - XML import'!$A193)),0,VALUE(MID('CFR - XML import'!$A193,SEARCH(\">\",'CFR - XML import'!$A193,1)+1,SEARCH(\"/\",'CFR - XML import'!$A193,1)-SEARCH(\">\",'CFR - XML import'!$A193,1)-2)))","v":0},{"$f":"IF(ISERROR(FIND(M$3,'CFR - XML import'!$A193)),0,VALUE(MID('CFR - XML import'!$A193,SEARCH(\">\",'CFR - XML import'!$A193,1)+1,SEARCH(\"/\",'CFR - XML import'!$A193,1)-SEARCH(\">\",'CFR - XML import'!$A193,1)-2)))","v":0},{"$f":"IF(ISERROR(FIND(N$3,'CFR - XML import'!$A193)),0,VALUE(MID('CFR - XML import'!$A193,SEARCH(\">\",'CFR - XML import'!$A193,1)+1,SEARCH(\"/\",'CFR - XML import'!$A193,1)-SEARCH(\">\",'CFR - XML import'!$A193,1)-2)))","v":0},{"$f":"IF(ISERROR(FIND(O$3,'CFR - XML import'!$A193)),0,VALUE(MID('CFR - XML import'!$A193,SEARCH(\">\",'CFR - XML import'!$A193,1)+1,SEARCH(\"/\",'CFR - XML import'!$A193,1)-SEARCH(\">\",'CFR - XML import'!$A193,1)-2)))","v":0},{"$f":"IF(ISERROR(FIND(P$3,'CFR - XML import'!$A193)),0,VALUE(MID('CFR - XML import'!$A193,SEARCH(\">\",'CFR - XML import'!$A193,1)+1,SEARCH(\"/\",'CFR - XML import'!$A193,1)-SEARCH(\">\",'CFR - XML import'!$A193,1)-2)))","v":0},{"$f":"IF(ISERROR(FIND(Q$3,'CFR - XML import'!$A193)),0,VALUE(MID('CFR - XML import'!$A193,SEARCH(\">\",'CFR - XML import'!$A193,1)+1,SEARCH(\"/\",'CFR - XML import'!$A193,1)-SEARCH(\">\",'CFR - XML import'!$A193,1)-2)))","v":0},{"$f":"IF(ISERROR(FIND(R$3,'CFR - XML import'!$A193)),0,VALUE(MID('CFR - XML import'!$A193,SEARCH(\">\",'CFR - XML import'!$A193,1)+1,SEARCH(\"/\",'CFR - XML import'!$A193,1)-SEARCH(\">\",'CFR - XML import'!$A193,1)-2)))","v":0},{"$f":"IF(ISERROR(FIND(S$3,'CFR - XML import'!$A193)),0,VALUE(MID('CFR - XML import'!$A193,SEARCH(\">\",'CFR - XML import'!$A193,1)+1,SEARCH(\"/\",'CFR - XML import'!$A193,1)-SEARCH(\">\",'CFR - XML import'!$A193,1)-2)))","v":0},{"$f":"IF(ISERROR(FIND(T$3,'CFR - XML import'!$A193)),0,VALUE(MID('CFR - XML import'!$A193,SEARCH(\">\",'CFR - XML import'!$A193,1)+1,SEARCH(\"/\",'CFR - XML import'!$A193,1)-SEARCH(\">\",'CFR - XML import'!$A193,1)-2)))","v":0},{"$f":"IF(ISERROR(FIND(U$3,'CFR - XML import'!$A193)),0,VALUE(MID('CFR - XML import'!$A193,SEARCH(\">\",'CFR - XML import'!$A193,1)+1,SEARCH(\"/\",'CFR - XML import'!$A193,1)-SEARCH(\">\",'CFR - XML import'!$A193,1)-2)))","v":0},{"$f":"IF(ISERROR(FIND(V$3,'CFR - XML import'!$A193)),0,VALUE(MID('CFR - XML import'!$A193,SEARCH(\">\",'CFR - XML import'!$A193,1)+1,SEARCH(\"/\",'CFR - XML import'!$A193,1)-SEARCH(\">\",'CFR - XML import'!$A193,1)-2)))","v":0},{"$f":"IF(ISERROR(FIND(W$3,'CFR - XML import'!$A193)),0,VALUE(MID('CFR - XML import'!$A193,SEARCH(\">\",'CFR - XML import'!$A193,1)+1,SEARCH(\"/\",'CFR - XML import'!$A193,1)-SEARCH(\">\",'CFR - XML import'!$A193,1)-2)))","v":0},null,{"$f":"IF(ISERROR(FIND(Y$3,'CFR - XML import'!$A193)),0,VALUE(MID('CFR - XML import'!$A193,SEARCH(\">\",'CFR - XML import'!$A193,1)+1,SEARCH(\"/\",'CFR - XML import'!$A193,1)-SEARCH(\">\",'CFR - XML import'!$A193,1)-2)))","v":0},{"$f":"IF(ISERROR(FIND(Z$3,'CFR - XML import'!$A193)),0,VALUE(MID('CFR - XML import'!$A193,SEARCH(\">\",'CFR - XML import'!$A193,1)+1,SEARCH(\"/\",'CFR - XML import'!$A193,1)-SEARCH(\">\",'CFR - XML import'!$A193,1)-2)))","v":0},{"$f":"IF(ISERROR(FIND(AA$3,'CFR - XML import'!$A193)),0,VALUE(MID('CFR - XML import'!$A193,SEARCH(\">\",'CFR - XML import'!$A193,1)+1,SEARCH(\"/\",'CFR - XML import'!$A193,1)-SEARCH(\">\",'CFR - XML import'!$A193,1)-2)))","v":0},{"$f":"IF(ISERROR(FIND(AB$3,'CFR - XML import'!$A193)),0,VALUE(MID('CFR - XML import'!$A193,SEARCH(\">\",'CFR - XML import'!$A193,1)+1,SEARCH(\"/\",'CFR - XML import'!$A193,1)-SEARCH(\">\",'CFR - XML import'!$A193,1)-2)))","v":0},{"$f":"IF(ISERROR(FIND(AC$3,'CFR - XML import'!$A193)),0,VALUE(MID('CFR - XML import'!$A193,SEARCH(\">\",'CFR - XML import'!$A193,1)+1,SEARCH(\"/\",'CFR - XML import'!$A193,1)-SEARCH(\">\",'CFR - XML import'!$A193,1)-2)))","v":0},{"$f":"IF(ISERROR(FIND(AD$3,'CFR - XML import'!$A193)),0,VALUE(MID('CFR - XML import'!$A193,SEARCH(\">\",'CFR - XML import'!$A193,1)+1,SEARCH(\"/\",'CFR - XML import'!$A193,1)-SEARCH(\">\",'CFR - XML import'!$A193,1)-2)))","v":0},{"$f":"IF(ISERROR(FIND(AE$3,'CFR - XML import'!$A193)),0,VALUE(MID('CFR - XML import'!$A193,SEARCH(\">\",'CFR - XML import'!$A193,1)+1,SEARCH(\"/\",'CFR - XML import'!$A193,1)-SEARCH(\">\",'CFR - XML import'!$A193,1)-2)))","v":0},{"$f":"IF(ISERROR(FIND(AF$3,'CFR - XML import'!$A193)),0,VALUE(MID('CFR - XML import'!$A193,SEARCH(\">\",'CFR - XML import'!$A193,1)+1,SEARCH(\"/\",'CFR - XML import'!$A193,1)-SEARCH(\">\",'CFR - XML import'!$A193,1)-2)))","v":0},{"$f":"IF(ISERROR(FIND(AG$3,'CFR - XML import'!$A193)),0,VALUE(MID('CFR - XML import'!$A193,SEARCH(\">\",'CFR - XML import'!$A193,1)+1,SEARCH(\"/\",'CFR - XML import'!$A193,1)-SEARCH(\">\",'CFR - XML import'!$A193,1)-2)))","v":0},{"$f":"IF(ISERROR(FIND(AH$3,'CFR - XML import'!$A193)),0,VALUE(MID('CFR - XML import'!$A193,SEARCH(\">\",'CFR - XML import'!$A193,1)+1,SEARCH(\"/\",'CFR - XML import'!$A193,1)-SEARCH(\">\",'CFR - XML import'!$A193,1)-2)))","v":0},{"$f":"IF(ISERROR(FIND(AI$3,'CFR - XML import'!$A193)),0,VALUE(MID('CFR - XML import'!$A193,SEARCH(\">\",'CFR - XML import'!$A193,1)+1,SEARCH(\"/\",'CFR - XML import'!$A193,1)-SEARCH(\">\",'CFR - XML import'!$A193,1)-2)))","v":0},{"$f":"IF(ISERROR(FIND(AJ$3,'CFR - XML import'!$A193)),0,VALUE(MID('CFR - XML import'!$A193,SEARCH(\">\",'CFR - XML import'!$A193,1)+1,SEARCH(\"/\",'CFR - XML import'!$A193,1)-SEARCH(\">\",'CFR - XML import'!$A193,1)-2)))","v":0},{"$f":"IF(ISERROR(FIND(AK$3,'CFR - XML import'!$A193)),0,VALUE(MID('CFR - XML import'!$A193,SEARCH(\">\",'CFR - XML import'!$A193,1)+1,SEARCH(\"/\",'CFR - XML import'!$A193,1)-SEARCH(\">\",'CFR - XML import'!$A193,1)-2)))","v":0},{"$f":"IF(ISERROR(FIND(AL$3,'CFR - XML import'!$A193)),0,VALUE(MID('CFR - XML import'!$A193,SEARCH(\">\",'CFR - XML import'!$A193,1)+1,SEARCH(\"/\",'CFR - XML import'!$A193,1)-SEARCH(\">\",'CFR - XML import'!$A193,1)-2)))","v":0},{"$f":"IF(ISERROR(FIND(AM$3,'CFR - XML import'!$A193)),0,VALUE(MID('CFR - XML import'!$A193,SEARCH(\">\",'CFR - XML import'!$A193,1)+1,SEARCH(\"/\",'CFR - XML import'!$A193,1)-SEARCH(\">\",'CFR - XML import'!$A193,1)-2)))","v":0},{"$f":"IF(ISERROR(FIND(AN$3,'CFR - XML import'!$A193)),0,VALUE(MID('CFR - XML import'!$A193,SEARCH(\">\",'CFR - XML import'!$A193,1)+1,SEARCH(\"/\",'CFR - XML import'!$A193,1)-SEARCH(\">\",'CFR - XML import'!$A193,1)-2)))","v":0},{"$f":"IF(ISERROR(FIND(AO$3,'CFR - XML import'!$A193)),0,VALUE(MID('CFR - XML import'!$A193,SEARCH(\">\",'CFR - XML import'!$A193,1)+1,SEARCH(\"/\",'CFR - XML import'!$A193,1)-SEARCH(\">\",'CFR - XML import'!$A193,1)-2)))","v":0},{"$f":"IF(ISERROR(FIND(AP$3,'CFR - XML import'!$A193)),0,VALUE(MID('CFR - XML import'!$A193,SEARCH(\">\",'CFR - XML import'!$A193,1)+1,SEARCH(\"/\",'CFR - XML import'!$A193,1)-SEARCH(\">\",'CFR - XML import'!$A193,1)-2)))","v":0},{"$f":"IF(ISERROR(FIND(AQ$3,'CFR - XML import'!$A193)),0,VALUE(MID('CFR - XML import'!$A193,SEARCH(\">\",'CFR - XML import'!$A193,1)+1,SEARCH(\"/\",'CFR - XML import'!$A193,1)-SEARCH(\">\",'CFR - XML import'!$A193,1)-2)))","v":0},{"$f":"IF(ISERROR(FIND(AR$3,'CFR - XML import'!$A193)),0,VALUE(MID('CFR - XML import'!$A193,SEARCH(\">\",'CFR - XML import'!$A193,1)+1,SEARCH(\"/\",'CFR - XML import'!$A193,1)-SEARCH(\">\",'CFR - XML import'!$A193,1)-2)))","v":0},{"$f":"IF(ISERROR(FIND(AS$3,'CFR - XML import'!$A193)),0,VALUE(MID('CFR - XML import'!$A193,SEARCH(\">\",'CFR - XML import'!$A193,1)+1,SEARCH(\"/\",'CFR - XML import'!$A193,1)-SEARCH(\">\",'CFR - XML import'!$A193,1)-2)))","v":0},{"$f":"IF(ISERROR(FIND(AT$3,'CFR - XML import'!$A193)),0,VALUE(MID('CFR - XML import'!$A193,SEARCH(\">\",'CFR - XML import'!$A193,1)+1,SEARCH(\"/\",'CFR - XML import'!$A193,1)-SEARCH(\">\",'CFR - XML import'!$A193,1)-2)))","v":0},{"$f":"IF(ISERROR(FIND(AU$3,'CFR - XML import'!$A193)),0,VALUE(MID('CFR - XML import'!$A193,SEARCH(\">\",'CFR - XML import'!$A193,1)+1,SEARCH(\"/\",'CFR - XML import'!$A193,1)-SEARCH(\">\",'CFR - XML import'!$A193,1)-2)))","v":0},{"$f":"IF(ISERROR(FIND(AV$3,'CFR - XML import'!$A193)),0,VALUE(MID('CFR - XML import'!$A193,SEARCH(\">\",'CFR - XML import'!$A193,1)+1,SEARCH(\"/\",'CFR - XML import'!$A193,1)-SEARCH(\">\",'CFR - XML import'!$A193,1)-2)))","v":0},{"$f":"IF(ISERROR(FIND(AW$3,'CFR - XML import'!$A193)),0,VALUE(MID('CFR - XML import'!$A193,SEARCH(\">\",'CFR - XML import'!$A193,1)+1,SEARCH(\"/\",'CFR - XML import'!$A193,1)-SEARCH(\">\",'CFR - XML import'!$A193,1)-2)))","v":0},{"$f":"IF(ISERROR(FIND(AX$3,'CFR - XML import'!$A193)),0,VALUE(MID('CFR - XML import'!$A193,SEARCH(\">\",'CFR - XML import'!$A193,1)+1,SEARCH(\"/\",'CFR - XML import'!$A193,1)-SEARCH(\">\",'CFR - XML import'!$A193,1)-2)))","v":0},{"$f":"IF(ISERROR(FIND(AY$3,'CFR - XML import'!$A193)),0,VALUE(MID('CFR - XML import'!$A193,SEARCH(\">\",'CFR - XML import'!$A193,1)+1,SEARCH(\"/\",'CFR - XML import'!$A193,1)-SEARCH(\">\",'CFR - XML import'!$A193,1)-2)))","v":0},{"$f":"IF(ISERROR(FIND(AZ$3,'CFR - XML import'!$A193)),0,VALUE(MID('CFR - XML import'!$A193,SEARCH(\">\",'CFR - XML import'!$A193,1)+1,SEARCH(\"/\",'CFR - XML import'!$A193,1)-SEARCH(\">\",'CFR - XML import'!$A193,1)-2)))","v":0},{"$f":"IF(ISERROR(FIND(BA$3,'CFR - XML import'!$A193)),0,VALUE(MID('CFR - XML import'!$A193,SEARCH(\">\",'CFR - XML import'!$A193,1)+1,SEARCH(\"/\",'CFR - XML import'!$A193,1)-SEARCH(\">\",'CFR - XML import'!$A193,1)-2)))","v":0},{"$f":"IF(ISERROR(FIND(BB$3,'CFR - XML import'!$A193)),0,VALUE(MID('CFR - XML import'!$A193,SEARCH(\">\",'CFR - XML import'!$A193,1)+1,SEARCH(\"/\",'CFR - XML import'!$A193,1)-SEARCH(\">\",'CFR - XML import'!$A193,1)-2)))","v":0},{"$f":"IF(ISERROR(FIND(BC$3,'CFR - XML import'!$A193)),0,VALUE(MID('CFR - XML import'!$A193,SEARCH(\">\",'CFR - XML import'!$A193,1)+1,SEARCH(\"/\",'CFR - XML import'!$A193,1)-SEARCH(\">\",'CFR - XML import'!$A193,1)-2)))","v":0},{"$f":"IF(ISERROR(FIND(BD$3,'CFR - XML import'!$A193)),0,VALUE(MID('CFR - XML import'!$A193,SEARCH(\">\",'CFR - XML import'!$A193,1)+1,SEARCH(\"/\",'CFR - XML import'!$A193,1)-SEARCH(\">\",'CFR - XML import'!$A193,1)-2)))","v":0},{"$f":"IF(ISERROR(FIND(BE$3,'CFR - XML import'!$A193)),0,VALUE(MID('CFR - XML import'!$A193,SEARCH(\">\",'CFR - XML import'!$A193,1)+1,SEARCH(\"/\",'CFR - XML import'!$A193,1)-SEARCH(\">\",'CFR - XML import'!$A193,1)-2)))","v":0},{"$f":"IF(ISERROR(FIND(BF$3,'CFR - XML import'!$A193)),0,VALUE(MID('CFR - XML import'!$A193,SEARCH(\">\",'CFR - XML import'!$A193,1)+1,SEARCH(\"/\",'CFR - XML import'!$A193,1)-SEARCH(\">\",'CFR - XML import'!$A193,1)-2)))","v":0},{"$f":"IF(ISERROR(FIND(BG$3,'CFR - XML import'!$A193)),0,VALUE(MID('CFR - XML import'!$A193,SEARCH(\">\",'CFR - XML import'!$A193,1)+1,SEARCH(\"/\",'CFR - XML import'!$A193,1)-SEARCH(\">\",'CFR - XML import'!$A193,1)-2)))","v":0},{"$f":"IF(ISERROR(FIND(BH$3,'CFR - XML import'!$A193)),0,VALUE(MID('CFR - XML import'!$A193,SEARCH(\">\",'CFR - XML import'!$A193,1)+1,SEARCH(\"/\",'CFR - XML import'!$A193,1)-SEARCH(\">\",'CFR - XML import'!$A193,1)-2)))","v":0},{"$f":"IF(ISERROR(FIND(BI$3,'CFR - XML import'!$A193)),0,VALUE(MID('CFR - XML import'!$A193,SEARCH(\">\",'CFR - XML import'!$A193,1)+1,SEARCH(\"/\",'CFR - XML import'!$A193,1)-SEARCH(\">\",'CFR - XML import'!$A193,1)-2)))","v":0},{"$f":"IF(ISERROR(FIND(BJ$3,'CFR - XML import'!$A193)),0,VALUE(MID('CFR - XML import'!$A193,SEARCH(\">\",'CFR - XML import'!$A193,1)+1,SEARCH(\"/\",'CFR - XML import'!$A193,1)-SEARCH(\">\",'CFR - XML import'!$A193,1)-2)))","v":0},{"$f":"IF(ISERROR(FIND(BK$3,'CFR - XML import'!$A193)),0,VALUE(MID('CFR - XML import'!$A193,SEARCH(\">\",'CFR - XML import'!$A193,1)+1,SEARCH(\"/\",'CFR - XML import'!$A193,1)-SEARCH(\">\",'CFR - XML import'!$A193,1)-2)))","v":0},{"$f":"IF(ISERROR(FIND(BL$3,'CFR - XML import'!$A193)),0,VALUE(MID('CFR - XML import'!$A193,SEARCH(\">\",'CFR - XML import'!$A193,1)+1,SEARCH(\"/\",'CFR - XML import'!$A193,1)-SEARCH(\">\",'CFR - XML import'!$A193,1)-2)))","v":0},{"$f":"IF(ISERROR(FIND(BM$3,'CFR - XML import'!$A193)),0,VALUE(MID('CFR - XML import'!$A193,SEARCH(\">\",'CFR - XML import'!$A193,1)+1,SEARCH(\"/\",'CFR - XML import'!$A193,1)-SEARCH(\">\",'CFR - XML import'!$A193,1)-2)))","v":0},{"$f":"IF(ISERROR(FIND(BN$3,'CFR - XML import'!$A193)),0,VALUE(MID('CFR - XML import'!$A193,SEARCH(\">\",'CFR - XML import'!$A193,1)+1,SEARCH(\"/\",'CFR - XML import'!$A193,1)-SEARCH(\">\",'CFR - XML import'!$A193,1)-2)))","v":0},{"$f":"IF(ISERROR(FIND(BO$3,'CFR - XML import'!$A193)),0,VALUE(MID('CFR - XML import'!$A193,SEARCH(\">\",'CFR - XML import'!$A193,1)+1,SEARCH(\"/\",'CFR - XML import'!$A193,1)-SEARCH(\">\",'CFR - XML import'!$A193,1)-2)))","v":0},{"$f":"IF(ISERROR(FIND(BP$3,'CFR - XML import'!$A193)),0,VALUE(MID('CFR - XML import'!$A193,SEARCH(\">\",'CFR - XML import'!$A193,1)+1,SEARCH(\"/\",'CFR - XML import'!$A193,1)-SEARCH(\">\",'CFR - XML import'!$A193,1)-2)))","v":0},{"$f":"IF(ISERROR(FIND(BQ$3,'CFR - XML import'!$A193)),0,VALUE(MID('CFR - XML import'!$A193,SEARCH(\">\",'CFR - XML import'!$A193,1)+1,SEARCH(\"/\",'CFR - XML import'!$A193,1)-SEARCH(\">\",'CFR - XML import'!$A193,1)-2)))","v":0},{"$f":"IF(ISERROR(FIND(BR$3,'CFR - XML import'!$A193)),0,VALUE(MID('CFR - XML import'!$A193,SEARCH(\">\",'CFR - XML import'!$A193,1)+1,SEARCH(\"/\",'CFR - XML import'!$A193,1)-SEARCH(\">\",'CFR - XML import'!$A193,1)-2)))","v":0},{"$f":"IF(ISERROR(FIND(BS$3,'CFR - XML import'!$A193)),0,VALUE(MID('CFR - XML import'!$A193,SEARCH(\">\",'CFR - XML import'!$A193,1)+1,SEARCH(\"/\",'CFR - XML import'!$A193,1)-SEARCH(\">\",'CFR - XML import'!$A193,1)-2)))","v":0},{"$f":"IF(ISERROR(FIND(BT$3,'CFR - XML import'!$A193)),0,VALUE(MID('CFR - XML import'!$A193,SEARCH(\">\",'CFR - XML import'!$A193,1)+1,SEARCH(\"/\",'CFR - XML import'!$A193,1)-SEARCH(\">\",'CFR - XML import'!$A193,1)-2)))","v":0},{"$f":"IF(ISERROR(FIND(BU$3,'CFR - XML import'!$A193)),0,VALUE(MID('CFR - XML import'!$A193,SEARCH(\">\",'CFR - XML import'!$A193,1)+1,SEARCH(\"/\",'CFR - XML import'!$A193,1)-SEARCH(\">\",'CFR - XML import'!$A193,1)-2)))","v":0},{"$f":"IF(ISERROR(FIND(BV$3,'CFR - XML import'!$A193)),0,VALUE(MID('CFR - XML import'!$A193,SEARCH(\">\",'CFR - XML import'!$A193,1)+1,SEARCH(\"/\",'CFR - XML import'!$A193,1)-SEARCH(\">\",'CFR - XML import'!$A193,1)-2)))","v":0},{"$f":"IF(ISERROR(FIND(BW$3,'CFR - XML import'!$A193)),0,VALUE(MID('CFR - XML import'!$A193,SEARCH(\">\",'CFR - XML import'!$A193,1)+1,SEARCH(\"/\",'CFR - XML import'!$A193,1)-SEARCH(\">\",'CFR - XML import'!$A193,1)-2)))","v":0},{"$f":"IF(ISERROR(FIND(BX$3,'CFR - XML import'!$A193)),0,VALUE(MID('CFR - XML import'!$A193,SEARCH(\">\",'CFR - XML import'!$A193,1)+1,SEARCH(\"/\",'CFR - XML import'!$A193,1)-SEARCH(\">\",'CFR - XML import'!$A193,1)-2)))","v":0},{"$f":"IF(ISERROR(FIND(BY$3,'CFR - XML import'!$A193)),0,VALUE(MID('CFR - XML import'!$A193,SEARCH(\">\",'CFR - XML import'!$A193,1)+1,SEARCH(\"/\",'CFR - XML import'!$A193,1)-SEARCH(\">\",'CFR - XML import'!$A193,1)-2)))","v":0},{"$f":"IF(ISERROR(FIND(BZ$3,'CFR - XML import'!$A193)),0,VALUE(MID('CFR - XML import'!$A193,SEARCH(\">\",'CFR - XML import'!$A193,1)+1,SEARCH(\"/\",'CFR - XML import'!$A193,1)-SEARCH(\">\",'CFR - XML import'!$A193,1)-2)))","v":0},null,null,null,null,null,null,{"$f":"IF(ISERROR(IF(MID('CFR - XML import'!$A193,LEN($CF$4)+1,LEN('CFR - XML import'!$A193)-(2*LEN($CF$4)+1))=\"RMMS\",1,IF(MID('CFR - XML import'!$A193,LEN(\"    <InputSystem>\")+1,LEN('CFR - XML import'!$A193)-(LEN(\"    <InputSystem>\")+LEN($CF$4)+1))=\"SIMS\",2,0))),0,IF(MID('CFR - XML import'!$A193,LEN($CF$4)+1,LEN('CFR - XML import'!$A193)-(2*LEN($CF$4)+1))=\"RMMS\",1,IF(MID('CFR - XML import'!$A193,LEN(\"    <InputSystem>\")+1,LEN('CFR - XML import'!$A193)-(LEN(\"    <InputSystem>\")+LEN($CF$4)+1))=\"SIMS\",2,0)))","v":0},{"$f":"IF(ISERROR(FIND(CH$3,'CFR - XML import'!$A193)),0,MID('CFR - XML import'!$A193,SEARCH(\">\",'CFR - XML import'!$A193,1)+1,SEARCH(\"/\",'CFR - XML import'!$A193,1)-SEARCH(\">\",'CFR - XML import'!$A193,1)-2))","v":0},{"$f":"IF(ISERROR(FIND(CI$3,'CFR - XML import'!$A193)),0,MID('CFR - XML import'!$A193,SEARCH(\">\",'CFR - XML import'!$A193,1)+1,SEARCH(\"/\",'CFR - XML import'!$A193,1)-SEARCH(\">\",'CFR - XML import'!$A193,1)-2))","v":0},{"$f":"IF(ISERROR(FIND(CJ$3,'CFR - XML import'!$A193)),0,MID('CFR - XML import'!$A193,SEARCH(\">\",'CFR - XML import'!$A193,1)+1,SEARCH(\"/\",'CFR - XML import'!$A193,1)-SEARCH(\">\",'CFR - XML import'!$A193,1)-2))","v":0},{"$f":"IF(ISERROR(FIND(CK$3,'CFR - XML import'!$A193)),0,MID('CFR - XML import'!$A193,SEARCH(\">\",'CFR - XML import'!$A193,1)+1,SEARCH(\"/\",'CFR - XML import'!$A193,1)-SEARCH(\">\",'CFR - XML import'!$A193,1)-2))","v":0},{"$f":"IF(ISERROR(FIND(CL$3,'CFR - XML import'!$A193)),0,MID('CFR - XML import'!$A193,SEARCH(\">\",'CFR - XML import'!$A193,1)+1,SEARCH(\"/\",'CFR - XML import'!$A193,1)-SEARCH(\">\",'CFR - XML import'!$A193,1)-2))","v":0}]
[{"$f":"IF(AND('CFR - XML import'!A194<>\"\",LEFT('CFR - XML import'!A194,1)<>\"<\",LEFT('CFR - XML import'!A194,3)<>\"  <\",LEFT('CFR - XML import'!A194,5)<>\"    <\",LEFT('CFR - XML import'!A194,7)<>\"      <\",LEFT('CFR - XML import'!A194,9)<>\"        <\",$B$1=\"SIMS\"),'CFR - XML import'!A194,IF(AND(LEFT('CFR - XML import'!A194,9)=\"<Details>\",$B$1=\"RM\"),'CFR - XML import'!A194,\"\"))","v":""},{"$f":"IF(ISERROR(FIND(B$3,'CFR - XML import'!$A194)),0,VALUE(MID('CFR - XML import'!$A194,SEARCH(\">\",'CFR - XML import'!$A194,1)+1,SEARCH(\"/\",'CFR - XML import'!$A194,1)-SEARCH(\">\",'CFR - XML import'!$A194,1)-2)))","v":0},null,{"$f":"IF(ISERROR(FIND(D$3,'CFR - XML import'!$A194)),0,MID('CFR - XML import'!$A194,SEARCH(\">\",'CFR - XML import'!$A194,1)+1,SEARCH(\"/\",'CFR - XML import'!$A194,1)-SEARCH(\">\",'CFR - XML import'!$A194,1)-2))","v":0},{"$f":"IF(ISERROR(FIND(E$3,'CFR - XML import'!$A194)),0,MID('CFR - XML import'!$A194,SEARCH(\">\",'CFR - XML import'!$A194,1)+1,SEARCH(\"/\",'CFR - XML import'!$A194,1)-SEARCH(\">\",'CFR - XML import'!$A194,1)-2))","v":0},{"$f":"IF($B$1=\"SIMS\",IF(ISERROR(FIND(F$3,'CFR - XML import'!$A194)),0,VALUE(MID('CFR - XML import'!$A194,15,10))),IF(ISERROR(FIND(F$3,'CFR - XML import'!$A194)),0,VALUE(MID('CFR - XML import'!$A194,11,10))))","v":"00:00:00"},{"$f":"IF(ISERROR(FIND(G$3,'CFR - XML import'!$A194)),0,VALUE(MID('CFR - XML import'!$A194,SEARCH(\">\",'CFR - XML import'!$A194,1)+1,SEARCH(\"/\",'CFR - XML import'!$A194,1)-SEARCH(\">\",'CFR - XML import'!$A194,1)-2)))","v":0},{"$f":"IF(ISERROR(FIND(H$3,'CFR - XML import'!$A194)),0,VALUE(MID('CFR - XML import'!$A194,SEARCH(\">\",'CFR - XML import'!$A194,1)+1,SEARCH(\"/\",'CFR - XML import'!$A194,1)-SEARCH(\">\",'CFR - XML import'!$A194,1)-2)))","v":0},{"$f":"IF(ISERROR(FIND(I$3,'CFR - XML import'!$A194)),0,VALUE(MID('CFR - XML import'!$A194,SEARCH(\">\",'CFR - XML import'!$A194,1)+1,SEARCH(\"/\",'CFR - XML import'!$A194,1)-SEARCH(\">\",'CFR - XML import'!$A194,1)-2)))","v":0},{"$f":"IF(ISERROR(FIND(J$3,'CFR - XML import'!$A194)),0,VALUE(MID('CFR - XML import'!$A194,SEARCH(\">\",'CFR - XML import'!$A194,1)+1,SEARCH(\"/\",'CFR - XML import'!$A194,1)-SEARCH(\">\",'CFR - XML import'!$A194,1)-2)))","v":0},{"$f":"IF(ISERROR(FIND(K$3,'CFR - XML import'!$A194)),0,VALUE(MID('CFR - XML import'!$A194,SEARCH(\">\",'CFR - XML import'!$A194,1)+1,SEARCH(\"/\",'CFR - XML import'!$A194,1)-SEARCH(\">\",'CFR - XML import'!$A194,1)-2)))","v":0},{"$f":"IF(ISERROR(FIND(L$3,'CFR - XML import'!$A194)),0,VALUE(MID('CFR - XML import'!$A194,SEARCH(\">\",'CFR - XML import'!$A194,1)+1,SEARCH(\"/\",'CFR - XML import'!$A194,1)-SEARCH(\">\",'CFR - XML import'!$A194,1)-2)))","v":0},{"$f":"IF(ISERROR(FIND(M$3,'CFR - XML import'!$A194)),0,VALUE(MID('CFR - XML import'!$A194,SEARCH(\">\",'CFR - XML import'!$A194,1)+1,SEARCH(\"/\",'CFR - XML import'!$A194,1)-SEARCH(\">\",'CFR - XML import'!$A194,1)-2)))","v":0},{"$f":"IF(ISERROR(FIND(N$3,'CFR - XML import'!$A194)),0,VALUE(MID('CFR - XML import'!$A194,SEARCH(\">\",'CFR - XML import'!$A194,1)+1,SEARCH(\"/\",'CFR - XML import'!$A194,1)-SEARCH(\">\",'CFR - XML import'!$A194,1)-2)))","v":0},{"$f":"IF(ISERROR(FIND(O$3,'CFR - XML import'!$A194)),0,VALUE(MID('CFR - XML import'!$A194,SEARCH(\">\",'CFR - XML import'!$A194,1)+1,SEARCH(\"/\",'CFR - XML import'!$A194,1)-SEARCH(\">\",'CFR - XML import'!$A194,1)-2)))","v":0},{"$f":"IF(ISERROR(FIND(P$3,'CFR - XML import'!$A194)),0,VALUE(MID('CFR - XML import'!$A194,SEARCH(\">\",'CFR - XML import'!$A194,1)+1,SEARCH(\"/\",'CFR - XML import'!$A194,1)-SEARCH(\">\",'CFR - XML import'!$A194,1)-2)))","v":0},{"$f":"IF(ISERROR(FIND(Q$3,'CFR - XML import'!$A194)),0,VALUE(MID('CFR - XML import'!$A194,SEARCH(\">\",'CFR - XML import'!$A194,1)+1,SEARCH(\"/\",'CFR - XML import'!$A194,1)-SEARCH(\">\",'CFR - XML import'!$A194,1)-2)))","v":0},{"$f":"IF(ISERROR(FIND(R$3,'CFR - XML import'!$A194)),0,VALUE(MID('CFR - XML import'!$A194,SEARCH(\">\",'CFR - XML import'!$A194,1)+1,SEARCH(\"/\",'CFR - XML import'!$A194,1)-SEARCH(\">\",'CFR - XML import'!$A194,1)-2)))","v":0},{"$f":"IF(ISERROR(FIND(S$3,'CFR - XML import'!$A194)),0,VALUE(MID('CFR - XML import'!$A194,SEARCH(\">\",'CFR - XML import'!$A194,1)+1,SEARCH(\"/\",'CFR - XML import'!$A194,1)-SEARCH(\">\",'CFR - XML import'!$A194,1)-2)))","v":0},{"$f":"IF(ISERROR(FIND(T$3,'CFR - XML import'!$A194)),0,VALUE(MID('CFR - XML import'!$A194,SEARCH(\">\",'CFR - XML import'!$A194,1)+1,SEARCH(\"/\",'CFR - XML import'!$A194,1)-SEARCH(\">\",'CFR - XML import'!$A194,1)-2)))","v":0},{"$f":"IF(ISERROR(FIND(U$3,'CFR - XML import'!$A194)),0,VALUE(MID('CFR - XML import'!$A194,SEARCH(\">\",'CFR - XML import'!$A194,1)+1,SEARCH(\"/\",'CFR - XML import'!$A194,1)-SEARCH(\">\",'CFR - XML import'!$A194,1)-2)))","v":0},{"$f":"IF(ISERROR(FIND(V$3,'CFR - XML import'!$A194)),0,VALUE(MID('CFR - XML import'!$A194,SEARCH(\">\",'CFR - XML import'!$A194,1)+1,SEARCH(\"/\",'CFR - XML import'!$A194,1)-SEARCH(\">\",'CFR - XML import'!$A194,1)-2)))","v":0},{"$f":"IF(ISERROR(FIND(W$3,'CFR - XML import'!$A194)),0,VALUE(MID('CFR - XML import'!$A194,SEARCH(\">\",'CFR - XML import'!$A194,1)+1,SEARCH(\"/\",'CFR - XML import'!$A194,1)-SEARCH(\">\",'CFR - XML import'!$A194,1)-2)))","v":0},null,{"$f":"IF(ISERROR(FIND(Y$3,'CFR - XML import'!$A194)),0,VALUE(MID('CFR - XML import'!$A194,SEARCH(\">\",'CFR - XML import'!$A194,1)+1,SEARCH(\"/\",'CFR - XML import'!$A194,1)-SEARCH(\">\",'CFR - XML import'!$A194,1)-2)))","v":0},{"$f":"IF(ISERROR(FIND(Z$3,'CFR - XML import'!$A194)),0,VALUE(MID('CFR - XML import'!$A194,SEARCH(\">\",'CFR - XML import'!$A194,1)+1,SEARCH(\"/\",'CFR - XML import'!$A194,1)-SEARCH(\">\",'CFR - XML import'!$A194,1)-2)))","v":0},{"$f":"IF(ISERROR(FIND(AA$3,'CFR - XML import'!$A194)),0,VALUE(MID('CFR - XML import'!$A194,SEARCH(\">\",'CFR - XML import'!$A194,1)+1,SEARCH(\"/\",'CFR - XML import'!$A194,1)-SEARCH(\">\",'CFR - XML import'!$A194,1)-2)))","v":0},{"$f":"IF(ISERROR(FIND(AB$3,'CFR - XML import'!$A194)),0,VALUE(MID('CFR - XML import'!$A194,SEARCH(\">\",'CFR - XML import'!$A194,1)+1,SEARCH(\"/\",'CFR - XML import'!$A194,1)-SEARCH(\">\",'CFR - XML import'!$A194,1)-2)))","v":0},{"$f":"IF(ISERROR(FIND(AC$3,'CFR - XML import'!$A194)),0,VALUE(MID('CFR - XML import'!$A194,SEARCH(\">\",'CFR - XML import'!$A194,1)+1,SEARCH(\"/\",'CFR - XML import'!$A194,1)-SEARCH(\">\",'CFR - XML import'!$A194,1)-2)))","v":0},{"$f":"IF(ISERROR(FIND(AD$3,'CFR - XML import'!$A194)),0,VALUE(MID('CFR - XML import'!$A194,SEARCH(\">\",'CFR - XML import'!$A194,1)+1,SEARCH(\"/\",'CFR - XML import'!$A194,1)-SEARCH(\">\",'CFR - XML import'!$A194,1)-2)))","v":0},{"$f":"IF(ISERROR(FIND(AE$3,'CFR - XML import'!$A194)),0,VALUE(MID('CFR - XML import'!$A194,SEARCH(\">\",'CFR - XML import'!$A194,1)+1,SEARCH(\"/\",'CFR - XML import'!$A194,1)-SEARCH(\">\",'CFR - XML import'!$A194,1)-2)))","v":0},{"$f":"IF(ISERROR(FIND(AF$3,'CFR - XML import'!$A194)),0,VALUE(MID('CFR - XML import'!$A194,SEARCH(\">\",'CFR - XML import'!$A194,1)+1,SEARCH(\"/\",'CFR - XML import'!$A194,1)-SEARCH(\">\",'CFR - XML import'!$A194,1)-2)))","v":0},{"$f":"IF(ISERROR(FIND(AG$3,'CFR - XML import'!$A194)),0,VALUE(MID('CFR - XML import'!$A194,SEARCH(\">\",'CFR - XML import'!$A194,1)+1,SEARCH(\"/\",'CFR - XML import'!$A194,1)-SEARCH(\">\",'CFR - XML import'!$A194,1)-2)))","v":0},{"$f":"IF(ISERROR(FIND(AH$3,'CFR - XML import'!$A194)),0,VALUE(MID('CFR - XML import'!$A194,SEARCH(\">\",'CFR - XML import'!$A194,1)+1,SEARCH(\"/\",'CFR - XML import'!$A194,1)-SEARCH(\">\",'CFR - XML import'!$A194,1)-2)))","v":0},{"$f":"IF(ISERROR(FIND(AI$3,'CFR - XML import'!$A194)),0,VALUE(MID('CFR - XML import'!$A194,SEARCH(\">\",'CFR - XML import'!$A194,1)+1,SEARCH(\"/\",'CFR - XML import'!$A194,1)-SEARCH(\">\",'CFR - XML import'!$A194,1)-2)))","v":0},{"$f":"IF(ISERROR(FIND(AJ$3,'CFR - XML import'!$A194)),0,VALUE(MID('CFR - XML import'!$A194,SEARCH(\">\",'CFR - XML import'!$A194,1)+1,SEARCH(\"/\",'CFR - XML import'!$A194,1)-SEARCH(\">\",'CFR - XML import'!$A194,1)-2)))","v":0},{"$f":"IF(ISERROR(FIND(AK$3,'CFR - XML import'!$A194)),0,VALUE(MID('CFR - XML import'!$A194,SEARCH(\">\",'CFR - XML import'!$A194,1)+1,SEARCH(\"/\",'CFR - XML import'!$A194,1)-SEARCH(\">\",'CFR - XML import'!$A194,1)-2)))","v":0},{"$f":"IF(ISERROR(FIND(AL$3,'CFR - XML import'!$A194)),0,VALUE(MID('CFR - XML import'!$A194,SEARCH(\">\",'CFR - XML import'!$A194,1)+1,SEARCH(\"/\",'CFR - XML import'!$A194,1)-SEARCH(\">\",'CFR - XML import'!$A194,1)-2)))","v":0},{"$f":"IF(ISERROR(FIND(AM$3,'CFR - XML import'!$A194)),0,VALUE(MID('CFR - XML import'!$A194,SEARCH(\">\",'CFR - XML import'!$A194,1)+1,SEARCH(\"/\",'CFR - XML import'!$A194,1)-SEARCH(\">\",'CFR - XML import'!$A194,1)-2)))","v":0},{"$f":"IF(ISERROR(FIND(AN$3,'CFR - XML import'!$A194)),0,VALUE(MID('CFR - XML import'!$A194,SEARCH(\">\",'CFR - XML import'!$A194,1)+1,SEARCH(\"/\",'CFR - XML import'!$A194,1)-SEARCH(\">\",'CFR - XML import'!$A194,1)-2)))","v":0},{"$f":"IF(ISERROR(FIND(AO$3,'CFR - XML import'!$A194)),0,VALUE(MID('CFR - XML import'!$A194,SEARCH(\">\",'CFR - XML import'!$A194,1)+1,SEARCH(\"/\",'CFR - XML import'!$A194,1)-SEARCH(\">\",'CFR - XML import'!$A194,1)-2)))","v":0},{"$f":"IF(ISERROR(FIND(AP$3,'CFR - XML import'!$A194)),0,VALUE(MID('CFR - XML import'!$A194,SEARCH(\">\",'CFR - XML import'!$A194,1)+1,SEARCH(\"/\",'CFR - XML import'!$A194,1)-SEARCH(\">\",'CFR - XML import'!$A194,1)-2)))","v":0},{"$f":"IF(ISERROR(FIND(AQ$3,'CFR - XML import'!$A194)),0,VALUE(MID('CFR - XML import'!$A194,SEARCH(\">\",'CFR - XML import'!$A194,1)+1,SEARCH(\"/\",'CFR - XML import'!$A194,1)-SEARCH(\">\",'CFR - XML import'!$A194,1)-2)))","v":0},{"$f":"IF(ISERROR(FIND(AR$3,'CFR - XML import'!$A194)),0,VALUE(MID('CFR - XML import'!$A194,SEARCH(\">\",'CFR - XML import'!$A194,1)+1,SEARCH(\"/\",'CFR - XML import'!$A194,1)-SEARCH(\">\",'CFR - XML import'!$A194,1)-2)))","v":0},{"$f":"IF(ISERROR(FIND(AS$3,'CFR - XML import'!$A194)),0,VALUE(MID('CFR - XML import'!$A194,SEARCH(\">\",'CFR - XML import'!$A194,1)+1,SEARCH(\"/\",'CFR - XML import'!$A194,1)-SEARCH(\">\",'CFR - XML import'!$A194,1)-2)))","v":0},{"$f":"IF(ISERROR(FIND(AT$3,'CFR - XML import'!$A194)),0,VALUE(MID('CFR - XML import'!$A194,SEARCH(\">\",'CFR - XML import'!$A194,1)+1,SEARCH(\"/\",'CFR - XML import'!$A194,1)-SEARCH(\">\",'CFR - XML import'!$A194,1)-2)))","v":0},{"$f":"IF(ISERROR(FIND(AU$3,'CFR - XML import'!$A194)),0,VALUE(MID('CFR - XML import'!$A194,SEARCH(\">\",'CFR - XML import'!$A194,1)+1,SEARCH(\"/\",'CFR - XML import'!$A194,1)-SEARCH(\">\",'CFR - XML import'!$A194,1)-2)))","v":0},{"$f":"IF(ISERROR(FIND(AV$3,'CFR - XML import'!$A194)),0,VALUE(MID('CFR - XML import'!$A194,SEARCH(\">\",'CFR - XML import'!$A194,1)+1,SEARCH(\"/\",'CFR - XML import'!$A194,1)-SEARCH(\">\",'CFR - XML import'!$A194,1)-2)))","v":0},{"$f":"IF(ISERROR(FIND(AW$3,'CFR - XML import'!$A194)),0,VALUE(MID('CFR - XML import'!$A194,SEARCH(\">\",'CFR - XML import'!$A194,1)+1,SEARCH(\"/\",'CFR - XML import'!$A194,1)-SEARCH(\">\",'CFR - XML import'!$A194,1)-2)))","v":0},{"$f":"IF(ISERROR(FIND(AX$3,'CFR - XML import'!$A194)),0,VALUE(MID('CFR - XML import'!$A194,SEARCH(\">\",'CFR - XML import'!$A194,1)+1,SEARCH(\"/\",'CFR - XML import'!$A194,1)-SEARCH(\">\",'CFR - XML import'!$A194,1)-2)))","v":0},{"$f":"IF(ISERROR(FIND(AY$3,'CFR - XML import'!$A194)),0,VALUE(MID('CFR - XML import'!$A194,SEARCH(\">\",'CFR - XML import'!$A194,1)+1,SEARCH(\"/\",'CFR - XML import'!$A194,1)-SEARCH(\">\",'CFR - XML import'!$A194,1)-2)))","v":0},{"$f":"IF(ISERROR(FIND(AZ$3,'CFR - XML import'!$A194)),0,VALUE(MID('CFR - XML import'!$A194,SEARCH(\">\",'CFR - XML import'!$A194,1)+1,SEARCH(\"/\",'CFR - XML import'!$A194,1)-SEARCH(\">\",'CFR - XML import'!$A194,1)-2)))","v":0},{"$f":"IF(ISERROR(FIND(BA$3,'CFR - XML import'!$A194)),0,VALUE(MID('CFR - XML import'!$A194,SEARCH(\">\",'CFR - XML import'!$A194,1)+1,SEARCH(\"/\",'CFR - XML import'!$A194,1)-SEARCH(\">\",'CFR - XML import'!$A194,1)-2)))","v":0},{"$f":"IF(ISERROR(FIND(BB$3,'CFR - XML import'!$A194)),0,VALUE(MID('CFR - XML import'!$A194,SEARCH(\">\",'CFR - XML import'!$A194,1)+1,SEARCH(\"/\",'CFR - XML import'!$A194,1)-SEARCH(\">\",'CFR - XML import'!$A194,1)-2)))","v":0},{"$f":"IF(ISERROR(FIND(BC$3,'CFR - XML import'!$A194)),0,VALUE(MID('CFR - XML import'!$A194,SEARCH(\">\",'CFR - XML import'!$A194,1)+1,SEARCH(\"/\",'CFR - XML import'!$A194,1)-SEARCH(\">\",'CFR - XML import'!$A194,1)-2)))","v":0},{"$f":"IF(ISERROR(FIND(BD$3,'CFR - XML import'!$A194)),0,VALUE(MID('CFR - XML import'!$A194,SEARCH(\">\",'CFR - XML import'!$A194,1)+1,SEARCH(\"/\",'CFR - XML import'!$A194,1)-SEARCH(\">\",'CFR - XML import'!$A194,1)-2)))","v":0},{"$f":"IF(ISERROR(FIND(BE$3,'CFR - XML import'!$A194)),0,VALUE(MID('CFR - XML import'!$A194,SEARCH(\">\",'CFR - XML import'!$A194,1)+1,SEARCH(\"/\",'CFR - XML import'!$A194,1)-SEARCH(\">\",'CFR - XML import'!$A194,1)-2)))","v":0},{"$f":"IF(ISERROR(FIND(BF$3,'CFR - XML import'!$A194)),0,VALUE(MID('CFR - XML import'!$A194,SEARCH(\">\",'CFR - XML import'!$A194,1)+1,SEARCH(\"/\",'CFR - XML import'!$A194,1)-SEARCH(\">\",'CFR - XML import'!$A194,1)-2)))","v":0},{"$f":"IF(ISERROR(FIND(BG$3,'CFR - XML import'!$A194)),0,VALUE(MID('CFR - XML import'!$A194,SEARCH(\">\",'CFR - XML import'!$A194,1)+1,SEARCH(\"/\",'CFR - XML import'!$A194,1)-SEARCH(\">\",'CFR - XML import'!$A194,1)-2)))","v":0},{"$f":"IF(ISERROR(FIND(BH$3,'CFR - XML import'!$A194)),0,VALUE(MID('CFR - XML import'!$A194,SEARCH(\">\",'CFR - XML import'!$A194,1)+1,SEARCH(\"/\",'CFR - XML import'!$A194,1)-SEARCH(\">\",'CFR - XML import'!$A194,1)-2)))","v":0},{"$f":"IF(ISERROR(FIND(BI$3,'CFR - XML import'!$A194)),0,VALUE(MID('CFR - XML import'!$A194,SEARCH(\">\",'CFR - XML import'!$A194,1)+1,SEARCH(\"/\",'CFR - XML import'!$A194,1)-SEARCH(\">\",'CFR - XML import'!$A194,1)-2)))","v":0},{"$f":"IF(ISERROR(FIND(BJ$3,'CFR - XML import'!$A194)),0,VALUE(MID('CFR - XML import'!$A194,SEARCH(\">\",'CFR - XML import'!$A194,1)+1,SEARCH(\"/\",'CFR - XML import'!$A194,1)-SEARCH(\">\",'CFR - XML import'!$A194,1)-2)))","v":0},{"$f":"IF(ISERROR(FIND(BK$3,'CFR - XML import'!$A194)),0,VALUE(MID('CFR - XML import'!$A194,SEARCH(\">\",'CFR - XML import'!$A194,1)+1,SEARCH(\"/\",'CFR - XML import'!$A194,1)-SEARCH(\">\",'CFR - XML import'!$A194,1)-2)))","v":0},{"$f":"IF(ISERROR(FIND(BL$3,'CFR - XML import'!$A194)),0,VALUE(MID('CFR - XML import'!$A194,SEARCH(\">\",'CFR - XML import'!$A194,1)+1,SEARCH(\"/\",'CFR - XML import'!$A194,1)-SEARCH(\">\",'CFR - XML import'!$A194,1)-2)))","v":0},{"$f":"IF(ISERROR(FIND(BM$3,'CFR - XML import'!$A194)),0,VALUE(MID('CFR - XML import'!$A194,SEARCH(\">\",'CFR - XML import'!$A194,1)+1,SEARCH(\"/\",'CFR - XML import'!$A194,1)-SEARCH(\">\",'CFR - XML import'!$A194,1)-2)))","v":0},{"$f":"IF(ISERROR(FIND(BN$3,'CFR - XML import'!$A194)),0,VALUE(MID('CFR - XML import'!$A194,SEARCH(\">\",'CFR - XML import'!$A194,1)+1,SEARCH(\"/\",'CFR - XML import'!$A194,1)-SEARCH(\">\",'CFR - XML import'!$A194,1)-2)))","v":0},{"$f":"IF(ISERROR(FIND(BO$3,'CFR - XML import'!$A194)),0,VALUE(MID('CFR - XML import'!$A194,SEARCH(\">\",'CFR - XML import'!$A194,1)+1,SEARCH(\"/\",'CFR - XML import'!$A194,1)-SEARCH(\">\",'CFR - XML import'!$A194,1)-2)))","v":0},{"$f":"IF(ISERROR(FIND(BP$3,'CFR - XML import'!$A194)),0,VALUE(MID('CFR - XML import'!$A194,SEARCH(\">\",'CFR - XML import'!$A194,1)+1,SEARCH(\"/\",'CFR - XML import'!$A194,1)-SEARCH(\">\",'CFR - XML import'!$A194,1)-2)))","v":0},{"$f":"IF(ISERROR(FIND(BQ$3,'CFR - XML import'!$A194)),0,VALUE(MID('CFR - XML import'!$A194,SEARCH(\">\",'CFR - XML import'!$A194,1)+1,SEARCH(\"/\",'CFR - XML import'!$A194,1)-SEARCH(\">\",'CFR - XML import'!$A194,1)-2)))","v":0},{"$f":"IF(ISERROR(FIND(BR$3,'CFR - XML import'!$A194)),0,VALUE(MID('CFR - XML import'!$A194,SEARCH(\">\",'CFR - XML import'!$A194,1)+1,SEARCH(\"/\",'CFR - XML import'!$A194,1)-SEARCH(\">\",'CFR - XML import'!$A194,1)-2)))","v":0},{"$f":"IF(ISERROR(FIND(BS$3,'CFR - XML import'!$A194)),0,VALUE(MID('CFR - XML import'!$A194,SEARCH(\">\",'CFR - XML import'!$A194,1)+1,SEARCH(\"/\",'CFR - XML import'!$A194,1)-SEARCH(\">\",'CFR - XML import'!$A194,1)-2)))","v":0},{"$f":"IF(ISERROR(FIND(BT$3,'CFR - XML import'!$A194)),0,VALUE(MID('CFR - XML import'!$A194,SEARCH(\">\",'CFR - XML import'!$A194,1)+1,SEARCH(\"/\",'CFR - XML import'!$A194,1)-SEARCH(\">\",'CFR - XML import'!$A194,1)-2)))","v":0},{"$f":"IF(ISERROR(FIND(BU$3,'CFR - XML import'!$A194)),0,VALUE(MID('CFR - XML import'!$A194,SEARCH(\">\",'CFR - XML import'!$A194,1)+1,SEARCH(\"/\",'CFR - XML import'!$A194,1)-SEARCH(\">\",'CFR - XML import'!$A194,1)-2)))","v":0},{"$f":"IF(ISERROR(FIND(BV$3,'CFR - XML import'!$A194)),0,VALUE(MID('CFR - XML import'!$A194,SEARCH(\">\",'CFR - XML import'!$A194,1)+1,SEARCH(\"/\",'CFR - XML import'!$A194,1)-SEARCH(\">\",'CFR - XML import'!$A194,1)-2)))","v":0},{"$f":"IF(ISERROR(FIND(BW$3,'CFR - XML import'!$A194)),0,VALUE(MID('CFR - XML import'!$A194,SEARCH(\">\",'CFR - XML import'!$A194,1)+1,SEARCH(\"/\",'CFR - XML import'!$A194,1)-SEARCH(\">\",'CFR - XML import'!$A194,1)-2)))","v":0},{"$f":"IF(ISERROR(FIND(BX$3,'CFR - XML import'!$A194)),0,VALUE(MID('CFR - XML import'!$A194,SEARCH(\">\",'CFR - XML import'!$A194,1)+1,SEARCH(\"/\",'CFR - XML import'!$A194,1)-SEARCH(\">\",'CFR - XML import'!$A194,1)-2)))","v":0},{"$f":"IF(ISERROR(FIND(BY$3,'CFR - XML import'!$A194)),0,VALUE(MID('CFR - XML import'!$A194,SEARCH(\">\",'CFR - XML import'!$A194,1)+1,SEARCH(\"/\",'CFR - XML import'!$A194,1)-SEARCH(\">\",'CFR - XML import'!$A194,1)-2)))","v":0},{"$f":"IF(ISERROR(FIND(BZ$3,'CFR - XML import'!$A194)),0,VALUE(MID('CFR - XML import'!$A194,SEARCH(\">\",'CFR - XML import'!$A194,1)+1,SEARCH(\"/\",'CFR - XML import'!$A194,1)-SEARCH(\">\",'CFR - XML import'!$A194,1)-2)))","v":0},null,null,null,null,null,null,{"$f":"IF(ISERROR(IF(MID('CFR - XML import'!$A194,LEN($CF$4)+1,LEN('CFR - XML import'!$A194)-(2*LEN($CF$4)+1))=\"RMMS\",1,IF(MID('CFR - XML import'!$A194,LEN(\"    <InputSystem>\")+1,LEN('CFR - XML import'!$A194)-(LEN(\"    <InputSystem>\")+LEN($CF$4)+1))=\"SIMS\",2,0))),0,IF(MID('CFR - XML import'!$A194,LEN($CF$4)+1,LEN('CFR - XML import'!$A194)-(2*LEN($CF$4)+1))=\"RMMS\",1,IF(MID('CFR - XML import'!$A194,LEN(\"    <InputSystem>\")+1,LEN('CFR - XML import'!$A194)-(LEN(\"    <InputSystem>\")+LEN($CF$4)+1))=\"SIMS\",2,0)))","v":0},{"$f":"IF(ISERROR(FIND(CH$3,'CFR - XML import'!$A194)),0,MID('CFR - XML import'!$A194,SEARCH(\">\",'CFR - XML import'!$A194,1)+1,SEARCH(\"/\",'CFR - XML import'!$A194,1)-SEARCH(\">\",'CFR - XML import'!$A194,1)-2))","v":0},{"$f":"IF(ISERROR(FIND(CI$3,'CFR - XML import'!$A194)),0,MID('CFR - XML import'!$A194,SEARCH(\">\",'CFR - XML import'!$A194,1)+1,SEARCH(\"/\",'CFR - XML import'!$A194,1)-SEARCH(\">\",'CFR - XML import'!$A194,1)-2))","v":0},{"$f":"IF(ISERROR(FIND(CJ$3,'CFR - XML import'!$A194)),0,MID('CFR - XML import'!$A194,SEARCH(\">\",'CFR - XML import'!$A194,1)+1,SEARCH(\"/\",'CFR - XML import'!$A194,1)-SEARCH(\">\",'CFR - XML import'!$A194,1)-2))","v":0},{"$f":"IF(ISERROR(FIND(CK$3,'CFR - XML import'!$A194)),0,MID('CFR - XML import'!$A194,SEARCH(\">\",'CFR - XML import'!$A194,1)+1,SEARCH(\"/\",'CFR - XML import'!$A194,1)-SEARCH(\">\",'CFR - XML import'!$A194,1)-2))","v":0},{"$f":"IF(ISERROR(FIND(CL$3,'CFR - XML import'!$A194)),0,MID('CFR - XML import'!$A194,SEARCH(\">\",'CFR - XML import'!$A194,1)+1,SEARCH(\"/\",'CFR - XML import'!$A194,1)-SEARCH(\">\",'CFR - XML import'!$A194,1)-2))","v":0}]

{"sheet":"FinYr Lookup","index":13,"n_rows":3,"n_cols":3,"rows_kept":3,"cut":false,"hidden":true,"merged":[]}
[]
[]
[null,"FinYr","2023-24"]

{"sheet":"Lookup","index":14,"n_rows":236,"n_cols":7,"rows_kept":236,"cut":false,"hidden":true,"merged":[]}
["Cost Code","DfE No","School Name\n\n(use short names without location etc)","IFS Cost Centre","Cost Code",null,"PFI School?"]
[4750,3257,"Abacus Primary","RB054750",4750,null,""]
[2842,3822,"All Saints CE P Dovercourt Harwich","RB052842",2842,null,""]
[2298,3024,"All Saints CE P Fordham","RB052298",2298,null,""]
[3332,3201,"All Saints CE P Maldon","RB053332",3332,null,""]
[2552,3314,"All Saints'CE (Aided) P Great Oakley","RB052552",2552,null,""]
[1010,2043,"Alresford C P","RB051010",1010,null,""]
[1026,2710,"Ashdon C P","RB051026",1026,null,""]
[2452,2579,"Baddow Hall C I Gt Baddow","RB052452",2452,null,""]
[2450,2609,"Baddow Hall C J Gt Baddow","RB052450",2450,null,""]
[4432,2088,"Baynards C P Tiptree","RB054432",4432,null,""]
[2454,2789,"Beehive Lane C P Gt Baddow","RB052454",2454,null,""]
[4200,2747,"Bentfield C P Stansted","RB054200",4200,null,""]
[1232,3402,"Bentley St Pauls CE P","RB051232",1232,null,""]
[1292,3309,"Birch CE (V/A) P","RB051292",1292,null,""]
[1300,3241,"Birchanger CE P","RB051300",1300,null,""]
[2528,3324,"Bishop William Ward CE P Gt Horkesley","RB052528",2528,null,""]
[1696,3823,"Bishops CE & RC P The Chelmsford","RB051696",1696]
[1308,2640,"Blackmore C P","RB051308",1308,null,""]
[1324,2659,"Boreham C P","RB051324",1324]
[1340,3018,"Boxted CE P","RB051340",1340,null,""]
[1348,2044,"Bradfield C P","RB051348",1348,null,""]
[1460,2068,"Brightlingsea C P","RB051460",1460,null,""]
[1251,2015,"Brightside Primary School","RB051251",1251,null,""]
[1814,5280,"Brinkley Grove Primary School","GMPS1814",1814,null,""]
[1476,5252,"Broomfield Primary School","GMPS1476",1476,null,""]
[4856,2069,"Broomgrove C I Wivenhoe","RB054856",4856,null,""]
[4854,2073,"Broomgrove C J Wivenhoe","RB054854",4854,null,""]
[1496,3008,"Bulmer St Andrews CE Primary ","RB051496",1496,null,""]
[1504,2310,"Burnham on Crouch C P","RB051504",1504,null,""]
[1254,5236,"Buttsbury Infant School","GMPS1254",1254,null,""]
[1560,3103,"Canewdon Endowed P & N","RB051560",1560,null,""]
[1564,2751,"Canvey C I Canvey Island","RB051564",1564,null,""]
[1562,2311,"Canvey C J Canvey Island","RB051562",1562,null,""]
[1646,5249,"Cathedral School","GMPS1646",1646,null,""]
[1643,3826,"Chancellor Park","RB051643",1643,null,""]
[1634,3019,"Chappel CE P","RB051634",1634,null,""]
[2844,5261,"Chase Lane Primary School","GMPS2844",2844,null,""]
[4816,2330,"Chipping Hill School Witham","RB054816",4816,null,""]
[1760,3795,"Chrishall Holy Trinity & St NicholasCE P","RB051760",1760,null,""]
[2706,2082,"Church Langley C P Harlow","RB052706",2706,null,""]
[2708,3501,"Churchgate CE P Harlow","RB052708",2708,null,""]
[1802,2720,"Clavering C P","RB051802",1802,null,""]
[1950,2590,"Cold Norton C P","RB051950",1950,null,""]
[4146,5265,"Collingwood Primary School","GMPS4146",4146]
[1974,3123,"Coopersale & Theydon Garnon CE P","RB051974",1974,null,""]
[1966,3020,"Copford CE P","RB051966",1966,null,""]
[2070,2779,"Danbury Park C P","RB052070",2070,null,""]
[2092,3022,"Dedham CE P","RB052092",2092,null,""]
[2102,2729,"Doddinghurst C I","RB052102",2102,null,""]
[3704,2656,"Down Hall C P Rayleigh","RB053704",3704,null,""]
[2114,3224,"Downham CE P","RB052114",2114,null,""]
[2122,5259,"Dunmow St Marys CE Primary School","GMPS2122",2122,null,""]
[2160,5272,"Earls Colne Primary School","GMPS2160",2160,null,""]
[2176,3215,"East Hanningfield CE P","RB052176",2176,null,""]
[3706,2821,"Edward Francis P Rayleigh","RB053706",3706]
[2184,3021,"Eight Ash Green CE P","RB052184",2184,null,""]
[2192,5220,"Elmstead Primary School","GMPS2192",2192,null,""]
[4140,5200,"Elmwood Primary School","GMPS4140",4140,null,""]
[2200,3244,"Elsenham CE P","RB052200",2200,null,""]
[3254,5274,"Engaines Primary School","GMPS3254",3254,null,""]
[2211,3837,"Epping Primary","RB052211",2211,null,""]
[3590,2798,"Eversley C P Pitsea","RB053590",3590,null,""]
[2250,3700,"Farnham CE P","RB052250",2250]
[2266,2510,"Felsted C P","RB052266",2266,null,""]
[2282,3310,"Fingringhoe CE (Aided) P","RB052282",2282]
[1820,2075,"Friars Grove C P Colchester","RB051820",1820,null,""]
[2322,2028,"Frinton C P","RB052322",2322,null,""]
[2334,3238,"Fyfield Dr Walker's CE P","RB052334",2334,null,""]
[2370,2549,"Galleywood C I","RB052370",2370,null,""]
[1114,2611,"Ghyllgrove C P Basildon","RB051114",1114]
[1822,2054,"Gosbecks C P Colchester","RB051822",1822,null,""]
[4768,2005,"Grange CP Wickford","RB054768",4768,null,""]
[2480,2380,"Great Bardfield C P","RB052480",2480,null,""]
[2488,2045,"Great Bentley C P","RB052488",2488,null,""]
[1368,2769,"Great Bradfords C I & N Braintree","RB051368",1368]
[1366,2759,"Great Bradfords C J Braintree","RB051366",1366,null,""]
[2124,5258,"Great Dunmow Primary School","GMPS2124",2124,null,""]
[2512,3570,"Great Easton CE (Aided) P","RB052512",2512,null,""]
[2536,2450,"Great Leighs C P","RB052536",2536,null,""]
[2560,2730,"Great Sampford C P","RB052560",2560,null,""]
[2568,3025,"Great Tey CE (Cont) P","RB052568",2568,null,""]
[2576,5204,"Great Totham Primary School","GMPS2576",2576,null,""]
[2592,3217,"Great Waltham CE P","RB052592",2592,null,""]
[1824,2003,"Hamilton C P Colchester","RB051824",1824,null,""]
[2715,3254,"Hare Street Primary School","RB052715",2715,null,""]
[2848,2414,"Harwich C P & N","RB052848",2848,null,""]
[2886,2737,"Hatfield Peverel C I","RB052886",2886]
[1828,2058,"Hazelmere C I & N Colchester","RB051828",1828,null,""]
[1826,2057,"Hazelmere C J Colchester","RB051826",1826,null,""]
[4698,3029,"Heathlands CE P West Bergholt","RB054698",4698,null,""]
[2912,2740,"Henham & Ugley C P","RB052912",2912,null,""]
[3234,2090,"Highfields C P Lawford","RB053234",3234,null,""]
[2944,2500,"Highwood C P","RB052944",2944,null,""]
[1412,2838,"Hogarth C P Brentwood","RB051412",1412,null,""]
[1776,5216,"Holland Haven Primary School","GMPS1776",1776,null,""]
[1417,2013,"Holly Trees Primary, Brentwood","RB051417",1417,null,""]
[3788,2521,"Holt Farm C I Hawkwell","RB053788",3788,null,""]
[2682,3006,"Holy Trinity CE P Halstead","RB052682",2682,null,""]
[4824,5276,"Howbridge Infant School","GMPS4824",4824,null,""]
[3052,3780,"Ingatestone & Fryerning CE (A) J","RB053052",3052,null,""]
[3050,2599,"Ingatestone C I","RB053050",3050,null,""]
[3064,3422,"Ingrave Johnstone CE P","RB053064",3064,null,""]
[1372,2300,"John Bunyan C P & N Braintree","RB051372",1372,null,""]
[1376,2669,"John Ray C I Braintree","RB051376",1376,null,""]
[3108,2680,"Kelvedon Hatch C P","RB053108",3108,null,""]
[1832,3001,"Kendall CE P Colchester","RB051832",1832,null,""]
[1836,2017,"Kings Ford C I & N Colchester","RB051836",1836,null,""]
[1122,5228,"Kingswood Primary School","GMPS1122",1122,null,""]
[3208,2038,"Langenhoe C P","RB053208",3208,null,""]
[3216,2039,"Langham C P","RB053216",3216,null,""]
[3232,5257,"Lawford CE Primary School","GMPS3232",3232,null,""]
[3246,3026,"Layer de la Haye CE P","RB053246",3246,null,""]
[4656,5242,"Leverton Primary School","GMPS4656",4656,null,""]
[1838,2006,"Lexden C P Colchester","RB051838",1838,null,""]
[1734,2647,"Limes Farm C J The Chigwell","RB051734",1734,null,""]
[1129,3781,"Lincewood Primary Basildon","RB051129",1129,null,""]
[3262,3610,"Little Hallingbury CE P","RB053262",3262,null,""]
[3278,3530,"Little Waltham CE P","RB053278",3278,null,""]
[2992,2588,"Long Ridings C P Hutton","RB052992",2992,null,""]
[3350,2750,"Manuden C P","RB053350",3350,null,""]
[3370,3239,"Matching Green CE P","RB053370",3370,null,""]
[2856,2059,"Mayflower C P The Harwich","RB052856",2856]
[4714,5271,"Mersea Island School","GMPS4714",4714,null,""]
[4438,2074,"Milldene C P The Tiptree","RB054438",4438,null,""]
[4852,5221,"Millfields Primary School","GMPS4852",4852,null,""]
[3176,2606,"Millhouse C P Laindon","RB053176",3176]
[1846,2063,"Montgomery C I & N Colchester","RB051846",1846,null,""]
[1844,2062,"Montgomery C J Colchester","RB051844",1844,null,""]
[3402,3670,"Moreton CE P","RB053402",3402,null,""]
[1848,2007,"Myland C P Colchester","RB051848",1848,null,""]
[3440,2733,"Nazeing C P","RB053440",3440,null,""]
[3456,2760,"Newport C P","RB053456",3456,null,""]
[1850,2008,"North C P Colchester","RB051850",1850,null,""]
[4770,2004,"Oakfield Primary","RB054770",4770,null,""]
[1784,2027,"Oakwood C I The Clacton","RB051784",1784,null,""]
[1852,2010,"Old Heath C P Colchester","RB051852",1852,null,""]
[1854,3040,"Parsons Heath CE (Cont) P Colchester","RB051854",1854,null,""]
[1858,2056,"Prettygate C I Colchester","RB051858",1858,null,""]
[1856,2055,"Prettygate C J Colchester","RB051856",1856,null,""]
[1240,2799,"Priory C P The Bicknacre","RB051240",1240,null,""]
[1888,3839,"Queen Boudica Primary","RB051888",1888,null,""]
[1258,2541,"Quilters C I Billericay","RB051258",1258,null,""]
[1256,2181,"Quilters C J Billericay","RB051256",1256,null,""]
[3670,3730,"Radwinter CE P","RB053670",3670,null,""]
[3750,2460,"Rettendon C P","RB053750",3750,null,""]
[3758,3247,"Rickling CE P","RB053758",3758,null,""]
[2975,3840,"Riverside C P Hullbridge","RB052975",2975,null,""]
[1860,2317,"Roach Vale C P Colchester","RB051860",1860,null,""]
[3810,5226,"Rodings Primary School","GMPS3810",3810,null,""]
[3908,3131,"Sheering CE P","RB053908",3908,null,""]
[1262,2911,"South Green C I & N Billericay","RB051262",1262,null,""]
[1260,2681,"South Green C J Billericay","RB051260",1260,null,""]
[4132,3462,"South Weald St Peter's CE P","RB054132",4132,null,""]
[2846,2374,"Spring Meadow C P Dovercourt Harwich","RB052846",2846,null,""]
[1673,2020,"Springfield C Primary","RB051673",1673,null,""]
[2888,5279,"St Andrew's CE Junior School Hatfield Peverel","GMPS2888",2888,null,""]
[3362,3027,"St Andrews CE P Marks Tey","RB053362",3362,null,""]
[3464,5241,"St Andrew's CE Primary School, North Weald","GMPS3464",3464,null,""]
[1148,3451,"St Anne Line RC I The Basildon","RB051148",1148,null,""]
[1146,3431,"St Anne Line RC J The Basildon","RB051146",1146,null,""]
[1380,3790,"St Francis RC P Braintree","RB051380",1380,null,""]
[3338,3811,"St Francis RC P Maldon","RB053338",3338,null,""]
[1870,2001,"St Georges C P Colchester","RB051870",1870,null,""]
[2496,3032,"St Georges CE P Gt Bromley","RB052496",2496,null,""]
[2544,3009,"St Giles CE P Gt Maplestead","RB052544",2544,null,""]
[1424,5267,"St Helens RC Infant School","GMPS1424",1424,null,""]
[3574,3308,"St John Baptist CE P Pebmarsh","RB053574",3574,null,""]
[2072,3214,"St Johns CE P Danbury","RB052072",2072,null,""]
[1876,3003,"St Johns CE V/C P Colchester","RB051876",1876,null,""]
[1878,2011,"St Johns Green C P Colchester","RB051878",1878,null,""]
[2996,3612,"St Joseph the Worker RC P Hutton","RB052996",2996,null,""]
[4148,3815,"St Josephs RC P South Woodham","RB054148",4148,null,""]
[1578,5224,"St Katherine's CE Primary School","GMPS1578",1578,null,""]
[2168,3023,"St Lawrence CE (C) P Rowhedge","RB052168",2168,null,""]
[4436,3028,"St Lukes P Tiptree","RB054436",4436,null,""]
[4508,3015,"St Margarets CE P Toppesfield","RB054508",4508,null,""]
[3884,3430,"St Marys CE (A) P Saffron Walden","RB053884",3884,null,""]
[1018,3030,"St Marys CE P Ardleigh","RB051018",1018,null,""]
[1506,3450,"St Marys CE P Burnham-on-Crouch","RB051506",1506,null,""]
[2870,3580,"St Marys CE P Hatfield Broad Oak","RB052870",2870,null,""]
[4202,5229,"St Mary's CE Primary School, Stansted","GMPS4202",4202,null,""]
[1880,2297,"St Michaels C P Colchester","RB051880",1880,null,""]
[2372,3810,"St Michaels CE J Galleywood","RB052372",2372,null,""]
[1382,3440,"St Michaels CE P Braintree","RB051382",1382,null,""]
[3688,3102,"St Nicholas CofE Primary, Rawreth","RB053688",3688,null,""]
[1808,3209,"St Peters CE P Coggeshall","RB051808",1808,null,""]
[3932,3013,"St Peters CE P Sible Hedingham","RB053932",3932,null,""]
[1428,3622,"St Thomas of Canterbury CE I Brentwood","RB051428",1428,null,""]
[1426,3592,"St Thomas of Canterbury CE P Brentwood","RB051426",1426,null,""]
[4216,2041,"Stanway C P","RB054216",4216,null,""]
[4218,2081,"Stanway Fiveways C P","RB054218",4218,null,""]
[4238,2550,"Stebbing C P","RB054238",4238,null,""]
[4262,3225,"Stock CE P","RB054262",4262,null,""]
[1268,2671,"Sunnymede C I Billericay","RB051268",1268,null,""]
[1266,2601,"Sunnymede C P Billericay","RB051266",1266,null,""]
[1640,1000,"Tanglewood Nursery School","RB051640",1640,null,""]
[4358,2050,"Tendring C P","RB054358",4358]
[4366,3470,"Terling CE P","RB054366",4366,null,""]
[4374,5248,"Thaxted Primary School","GMPS4374",4374]
[3294,5269,"Thomas Willingale School","GMPS3294",3294]
[4490,2630,"Tollesbury C P","RB054490",4490]
[1688,2210,"Trinity Road C P Chelmsford","RB051688",1688]
[4150,3814,"Trinity St Marys CE P South Woodham","RB054150",4150]
[4550,5270,"Upshire Primary Foundation School","GMPS4550",4550]
[4600,2261,"Vange C P & N","RB054600",4600]
[4724,3820,"W & S Hanningfield St Peters CE P","RB054724",4724]
[4680,5260,"Walton Primary School","GMPS4680",4680]
[1430,2919,"Warley C P Brentwood","RB051430",1430]
[3336,2649,"Wentworth C P Maldon ","RB053336",3336]
[4706,2624,"West Horndon C P","RB054706",4706]
[1690,2879,"Westlands C P Chelmsford","RB051690",1690]
[4734,3212,"Wethersfield CE P","RB054734",4734]
[1384,2767,"White Court C P Braintree","RB051384",1384]
[4744,3213,"White Notley CE P","RB054744",4744]
[4754,2271,"Wickford C P","RB054754",4754]
[2988,2918,"Willowbrook C P, Hutton","RB052988",2988]
[4810,2770,"Wimbish C P","RB054810",4810]
[4864,2051,"Wix C P","RB054864",4864]
[1642,1001,"Woodcroft Nursery School","RB051642",1642]
[4880,3235,"Woodham Walter CE P","RB054880",4880]
[4898,2619,"Writtle C I","RB054898",4898]
[4896,2950,"Writtle C J","RB054896",4896]
[7880,5406,"Beauchamps School","GMSS7880",7880]
[5090,4680,"De La Salle Basildon","RB055090",5090]
[5890,5466,"St Benedict's College (RC)","GMSS5890",5890]
[5690,4701,"St John Payne RC Chelmsford","RB055690",5690]
[8148,1115,"Poplar Adolescent Unit","RB088148",8148]
[8106,1120,"South Alternative Provision School","RB088106",8106]
[8154,1108,"The St Aubyns Centre","RB088154",8154]
[8013,7036,"Cedar Hall Benfleet","RB088013",8013]
[8019,7048,"Edith Borthwick The Braintree","RB088019",8019]
[8014,7054,"Glenwood Benfleet","RB088014",8014]
[8061,7070,"Harlow Fields","RB088061",8061]
[8048,7069,"Lexden Springs Colchester","RB088048",8048]
[8040,7060,"Shorefields","RB088040",8040]